{"text_format":"1","workbook":"xlsx","n_sheets":142,"sheets":["CONFIGURATION","Currency Table","Submission","Company Information","Content","Index","Import","Export","Import Differences","Attachments","FileStorage","Declaration","Zones","Information Sheet","Financial Condition","SAR & Sanc. (All)","Form 1SFS (Unconsolidated)","Form 2SFS (Unconsolidated)","Form 8SFS (Unconsolidated)","Form 1SFS (Consolidated)","Form 2SFS (Consolidated)","Form 8SFS (Consolidated)","Form 1EBS","Schedule II (Unconsolidated)","Schedule II","Schedule IIA (Unconsolidated)","Schedule IIA","Investment Reconciliation","Schedule IIB","Schedule IIC","Schedule IID","Schedule IIE","Schedule IIF","Schedule III (Unconsolidated)","Schedule III","Schedule IIIA","Schedule IV (Unconsolidated)","Schedule IVA","Schedule IVC","Schedule IVD","Schedule IVE","Schedule IVF","Schedule V","Schedule V(a)","Schedule V(c)","Schedule V(e)","Schedule V(g)","Schedule V(k)","Schedule V(l)","Schedule V(m)","Schedule VI (Unconsolidated)","Schedule VI Prior","Schedule VI (New)","Schedule VIA (New)","Schedule VI (EBS) (New)","Schedule VIA (EBS) (New)","Schedule VI","Schedule VIA","Schedule IX(a)","Schedule IX(b)","Schedule IX(c)","Schedule X(a)","Schedule X(b)","Schedule X(c)","Schedule X(d)","Schedule X(e)","Schedule X(f)","Schedule X(g)","Schedule X(h)","Schedule X(i)","Schedule X(j)","Schedule XI","Schedule XI(a)","Sch XI(a)(i)","Sch XI(a)(ii)","Sch XI(a)(iii)","Sch XI(a)(iv)","Sch XI(a)(v)","Sch XI(a)(vi)","Sch XI(a)(vii)","Sch XI(a)(viii)","Schedule XI(b)","Sch XI(b)(i)","Sch XI(b)(ii)","Sch XI(b)(iii)","Sch XI(b)(iv)","Sch XI(b)(v)","Sch XI(b)(vi)","Sch XI(b)(vii)","Sch XI(b)(viii)","Schedule XII(a)","Schedule XII(b)","Schedule XVI","Schedule XVII","Schedule XVIII (Unconsolidated)","Schedule XVIII","Schedule XIX","Schedule XIXA","Schedule XX","Schedule XXA","Schedule XXI","Schedule XXIA","Schedule XXIII","Schedule XXV","Corp Gov","Risk Man","Identification","Measurement","Response","Monitoring & Reporting","Op Risk (old)","Op Risk","Summary","Fixed Income Investments (old)","Fixed Income Investments","Equity Investments (old)","Equity Investments","Interest Rate-Liquidity Risk","Interest Rate-Liquidity (Rev.)","Currency Risk (old)","Currency Risk","Digital Assets","Concentration Risk (old)","Concentration Risk","Geographic Diversification (old","Geographic Diversification","Premium Risk (old)","Premium Risk","Reserve Risk (old)","Reserve Risk","Credit Risk (old)","Credit Risk","Catastrophe Risk (old)","Catastrophe Risk","CSP (old)","Correlation Matrix","Company Specific Parameters","Crosscheck - SFS","Crosscheck-Model","Crosscheck - Op Risk","prt_res","HiddenFormulas"],"not_rendered":{"charts":2,"images":3,"macros":1,"external_links":0,"defined_names":289,"comments":54,"pivot_tables":0},"unopened":[],"bounds":{"document_bytes":16777216,"sheet_cells":100000,"rows_first":2000,"rows_last":500,"rows_between":2000,"halvings":0,"cell_chars":16384,"cell_head_chars":4096},"cells_cut":0,"cells_raw":0,"read":"whole","date_system":"1900"}

{"sheet":"CONFIGURATION","index":0,"n_rows":22,"n_cols":4,"rows_kept":22,"cut":false,"hidden":true,"merged":[]}
["ENTITY_ID",{"$f":"'Company Information'!$F$9","v":0}]
["ENTITY_NAME",{"$f":"'Company Information'!C7","v":"Enter Company Name"}]
["FILING_TYPE",{"$f":"\"BSCR\" & B11","v":"BSCR3A"}]
["FILING_YEAR",{"$f":"YEAR('Company Information'!C3)","v":2022}]
["CONTACT_PERSON_NAME",{"$f":"'Company Information'!C15&\" \"&'Company Information'!F15","v":" "}]
["CONTACT_PERSON_EMAIL",{"$f":"'Company Information'!C29","v":0}]
["CONTACT_PERSON_PHONE",{"$f":"IF('Company Information'!E27=\"\",'Company Information'!C27,'Company Information'!C27&\" Extension:\"&'Company Information'!E27)","v":0}]
["OPTION"]
["COMMENT",{"$f":"IF(Submission!B14=\"\",\"\",Submission!B14)","v":""}]
["CURRENCY_CODE",{"$f":"VLOOKUP('Form 1EBS'!C4,'Currency Table'!A:B,2,FALSE)","v":"USD"}]
["CLASS",{"$f":"IF('Company Information'!F11=\"IIGB\",\"3A\",IF('Company Information'!F11=\"Class 3B\",\"3B\",\"4\"))","v":"3A"}]
["DECIMALS",{"$f":"IF(C12=\"Units\",1,IF(C12=\"Thousand Units\",1000,\"\"))","v":1000},"Thousand Units",{"$f":"IF(CONFIGURATION!$B$12=\"\",\"\",IF(CONFIGURATION!$B$12>1,\" ('\"&MID(CONFIGURATION!$B$12,2,LEN(CONFIGURATION!$B$12))&\"s)\",\"\"))","v":" ('000s)"}]
["FILINGWEBSERVICE","https://xbrl.bma.bm/ExternalWebPH3-1/filing.ashx",null,"https://xbrl.bma.bm/ExternalWebPH3-1/filing.ashx"]
["VALIDATIONWEBSERVICE","https://xbrl.bma.bm/ExternalWebPH3-1/validator.ashx",null,"https://xbrl.bma.bm/ExternalWebPH3-1/validator.ashx"]
["FILINGCOUNTERWEBSERVICE","https://xbrl.bma.bm/ExternalWebPH3-1/FilingCounter.ashx",null,"https://xbrl.bma.bm/ExternalWebPH3-1/FilingCounter.ashx"]
["DUMMYWEBSERVICE","https://xbrl.bma.bm/ExternalWebPH3-1/dummy.ashx",null,"https://xbrl.bma.bm/ExternalWebPH3-1/dummy.ashx"]
["XBRLCONVERSIONWEBSERVICE","https://xbrl.bma.bm/ExternalWebPH3-1/XBRLConv.ashx",null,"https://xbrl.bma.bm/ExternalWebPH3-1/XBRLConv.ashx"]
["PREPOPULATEWEBSERVICE","https://xbrl.bma.bm/ExternalWebPH3-1/GetEntityDataByFilingYear.ashx"]
["PREYEARSTARTDATE",{"$f":"'Form 1EBS'!M5","v":"00:00:00"}]
["PREYEARENDDATE",{"$f":"'Form 1EBS'!M6","v":"00:00:00"}]
["SAVEDDATAPOPULATEWEBSERVICE"]
["FORMVERSION","2021 Year-end IIGB Model"]

{"sheet":"Currency Table","index":1,"n_rows":170,"n_cols":4,"rows_kept":170,"cut":false,"hidden":true,"merged":[]}
["United States Dollars","USD",null,"Units"]
["Euro","EUR",null,"Thousand Units"]
["Afghanistan Afghanis","AFN"]
["Albania Leke","ALL"]
["Armenia Drams","AMD"]
["Netherlands Antilles Guilders","ANG"]
["Angola Kwanza","AOA"]
["Argentina Pesos","ARS"]
["Australia Dollars","AUD"]
["Aruba Guilders","AWG"]
["Azerbaijan New Manats","AZN"]
["Bosnia and Herzegovina Convertible Marka","BAM"]
["Barbados Dollars","BBD"]
["Bangladesh Taka","BDT"]
["Bulgaria Leva","BGN"]
["Bahrain Dinars","BHD"]
["Burundi Francs","BIF"]
["Bermuda Dollars","BMD"]
["Brunei Dollars","BND"]
["Bolivia Bolivianos","BOB"]
["Brazil Reais","BRL"]
["Bahamas Dollars","BSD"]
["Bhutan Ngultrum","BTN"]
["Botswana Pulas","BWP"]
["Belarus Rubles","BYR"]
["Belize Dollars","BZD"]
["Canada Dollars","CAD"]
["Congo/Kinshasa Francs","CDF"]
["Switzerland Francs","CHF"]
["Chile Pesos","CLP"]
["China Yuan Renminbi","CNY"]
["Colombia Pesos","COP"]
["Costa Rica Colones","CRC"]
["Cuba Convertible Pesos","CUC"]
["Cuba Pesos","CUP"]
["Cape Verde Escudos","CVE"]
["Czech Republic Koruny","CZK"]
["Djibouti Francs","DJF"]
["Denmark Kroner","DKK"]
["Dominican Republic Pesos","DOP"]
["Algeria Dinars","DZD"]
["Estonia Krooni","EEK"]
["Egypt Pounds","EGP"]
["Eritrea Nakfa","ERN"]
["Ethiopia Birr","ETB"]
["Fiji Dollars","FJD"]
["Falkland Islands Pounds","FKP"]
["United Kingdom Pounds","GBP"]
["Georgia Lari","GEL"]
["Guernsey Pounds","GGP"]
["Ghana Cedis","GHS"]
["Gibraltar Pounds","GIP"]
["Gambia Dalasi","GMD"]
["Guinea Francs","GNF"]
["Guatemala Quetzales","GTQ"]
["Guyana Dollars","GYD"]
["Hong Kong Dollars","HKD"]
["Honduras Lempiras","HNL"]
["Croatia Kuna","HRK"]
["Haiti Gourdes","HTG"]
["Hungary Forint","HUF"]
["Indonesia Rupiahs","IDR"]
["Israel New Shekels","ILS"]
["Isle of Man Pounds","IMP"]
["India Rupees","INR"]
["Iraq Dinars","IQD"]
["Iran Rials","IRR"]
["Iceland Kronur","ISK"]
["Jersey Pounds","JEP"]
["Jamaica Dollars","JMD"]
["Jordan Dinars","JOD"]
["Japan Yen","JPY"]
["Kenya Shillings","KES"]
["Kyrgyzstan Soms","KGS"]
["Cambodia Riels","KHR"]
["Comoros Francs","KMF"]
["North Korea Won","KPW"]
["South Korea Won","KRW"]
["Kuwait Dinars","KWD"]
["Cayman Islands Dollars","KYD"]
["Kazakhstan Tenge","KZT"]
["Laos Kips","LAK"]
["Lebanon Pounds","LBP"]
["Sri Lanka Rupees","LKR"]
["Liberia Dollars","LRD"]
["Lesotho Maloti","LSL"]
["Lithuania Litai","LTL"]
["Latvia Lati","LVL"]
["Libya Dinars","LYD"]
["Morocco Dirhams","MAD"]
["Moldova Lei","MDL"]
["Madagascar Ariary","MGA"]
["Macedonia Denars","MKD"]
["Myanmar Kyats","MMK"]
["Mongolia Tugriks","MNT"]
["Macau Patacas","MOP"]
["Mauritania Ouguiyas","MRO"]
["Mauritius Rupees","MUR"]
["Maldives Rufiyaa","MVR"]
["Malawi Kwachas","MWK"]
["Mexico Pesos","MXN"]
["Malaysia Ringgits","MYR"]
["Mozambique Meticais","MZN"]
["Namibia Dollars","NAD"]
["Nigeria Nairas","NGN"]
["Nicaragua Cordobas","NIO"]
["Norway Kroner","NOK"]
["Nepal Rupees","NPR"]
["New Zealand Dollars","NZD"]
["Oman Rials","OMR"]
["Panama Balboas","PAB"]
["Peru Nuevos Soles","PEN"]
["Papua New Guinea Kina","PGK"]
["Philippines Pesos","PHP"]
["Pakistan Rupees","PKR"]
["Poland Zlotych","PLN"]
["Paraguay Guarani","PYG"]
["Qatar Riyals","QAR"]
["Romania New Lei","RON"]
["Serbia Dinars","RSD"]
["Russia Rubles","RUB"]
["Rwanda Francs","RWF"]
["Saudi Arabia Riyals","SAR"]
["Solomon Islands Dollars","SBD"]
["Seychelles Rupees","SCR"]
["Sudan Pounds","SDG"]
["Sweden Kronor","SEK"]
["Singapore Dollars","SGD"]
["Saint Helena Pounds","SHP"]
["Slovakia Koruny","SKK"]
["Sierra Leone Leones","SLL"]
["Somalia Shillings","SOS"]
["Seborga Luigini","SPL"]
["Suriname Dollars","SRD"]
["São Tome and Principe Dobras","STD"]
["El Salvador Colones","SVC"]
["Syria Pounds","SYP"]
["Swaziland Emalangeni","SZL"]
["Thailand Baht","THB"]
["Tajikistan Somoni","TJS"]
["Turkmenistan Manats","TMM"]
["Tunisia Dinars","TND"]
["Tonga Pa'anga","TOP"]
["Turkey New Lira","TRY"]
["Trinidad and Tobago Dollars","TTD"]
["Tuvalu Dollars","TVD"]
["Taiwan New Dollars","TWD"]
["Tanzania Shillings","TZS"]
["Ukraine Hryvnia","UAH"]
["Uganda Shillings","UGX"]
["Uruguay Pesos","UYU"]
["Uzbekistan Sums","UZS"]
["Venezuela Bolivares","VEB"]
["Venezuela Bolivares Fuertes","VEF"]
["Vietnam Dong","VND"]
["Vanuatu Vatu","VUV"]
["Samoa Tala","WST"]
["Communauté Financière Africaine Francs BEAC","XAF"]
["Silver Ounces","XAG"]
["Gold Ounces","XAU"]
["East Caribbean Dollars","XCD"]
["International Monetary Fund Special Drawing Rights","XDR"]
["Communauté Financière Africaine Francs BCEAO","XOF"]
["Palladium Ounces","XPD"]
["Comptoirs Français du Pacifique Francs","XPF"]
["Platinum Ounces","XPT"]
["Yemen Rials","YER"]
["South Africa Rand","ZAR"]
["Zambia Kwacha","ZMK"]
["Zimbabwe Dollars","ZWD"]

{"sheet":"Submission","index":2,"n_rows":35,"n_cols":3,"rows_kept":35,"cut":false,"hidden":false,"merged":[[1,1,1,2],[32,1,32,2],[4,1,4,2],[2,1,2,2],[13,1,13,2]]}
[]
[null,"BSCR Model for IIGB"]
[null,"IMPORTANT: Completion of this submission requires an internet connection. \n\nQuestions and comments can be directed to: riskanalytics@bma.bm\n"]
[]
[null,"Submission Process:"]
[null,{"$f":"IF(CONFIGURATION!$C$12=\"Units\",\"Units\",\"Thousands\")","v":"Thousands"},"Select Unit: Prior to inputting BSCR form, select units which the monetary values are reported in."]
[null,null,"Get last saved data: Prefill form with last saved data from unfinished submission."]
[null,null,"Prepopulate previous data: Prefill form with previously submitted data."]
[null,null,"Input BSCR data"]
[null," ","Validate data: Prior to submitting to the Bermuda Monetary Authority (Authority or BMA), validation of the data is required. To complete this step click the \"VALIDATE RETURN\" button. Users must acknowledge all failed validations and provide comments in the 'Comments' box below. Once the validation is complete, click the location link to go to the error location."]
[null,null,"Save Data: Data can be saved prior to submission. Click the \"SAVE\" button to save the unfinished submission. "]
[null,null,"Submit Data: Once data has been completed, please submit for review. To complete this step, click the \"SUBMIT\" button. If data is submitted more than twice, the latest data will be accepted. You will be required to select a reason for re-submissions. The time to submit will vary depending on the speed of the internet connection. A white status bar will appear when the data is transmitting. Please wait for the submission acknowledgement and record your submission number for later reference.\n\nIf there are issues submitting the BSCR model, contact RiskAnalytics@bma.bm for assistance."]
[null,"Comments:"]
[]
[null,"Validation results:"]
[null,"MSM requirement met",{"$f":"Summary!L33","v":"NO"}]
[null,"ECR requirement met",{"$f":"Summary!N126","v":"n/a"}]
[null,"MSM Eligible Capital requirement met",{"$f":"Summary!E138","v":"NO"}]
[null,"ECR Eligible Capital requirement met",{"$f":"Summary!L138","v":"NO"}]
[null,"Liquidity test met",{"$f":"Summary!R33","v":"YES"}]
[null,"Capital Reduction requirement met",{"$f":"Summary!R46","v":"NO"}]
[null,"C&S Reduction requirement met",{"$f":"Summary!L46","v":"YES"}]
[null,"Unqualified Opinion issued",{"$f":"'Information Sheet'!H41","v":"Select Yes/No"}]
[null,"CISSA document attached",{"$f":"IF(Attachments!F35=\"<Attach file>\",\"Outstanding\",\"File Attached\")","v":"Outstanding"}]
[null,"FCR document attached",{"$f":"IF(Attachments!F15=\"<Attach file>\",\"Outstanding\",\"File Attached\")","v":"Outstanding"}]
[null,"DOC document attached",{"$f":"IF(Attachments!F25=\"<Attach file>\",\"Outstanding\",\"File Attached\")","v":"Outstanding"}]
[null,"Blank Schedules",{"$f":"Content!H4","v":57}]
[null,"Acknowledged",{"$f":"Content!I4","v":0}]
[null,"Failed Validation Checks",{"$f":"Content!K4","v":0}]
[null,"Acknowledged",{"$f":"Content!L4","v":0}]
[]
[null,"Comments from BMA:"]
[]
[]
[null,"Validation results:"]

{"sheet":"Company Information","index":3,"n_rows":40,"n_cols":7,"rows_kept":40,"cut":false,"hidden":false,"merged":[[6,2,6,5],[18,2,18,5],[0,0,0,1],[14,5,14,6]]}
["COMPANY INFORMATION PAGE",null,null,null,null,null,{"$f":"HYPERLINK(\"#'Index'!A1\",\"Return to Index\")","v":"Return to Index"}]
[]
[null,"For the Year Ending ","2022-12-31",{"$f":"IF(C3=\"\",\"\",TEXT(C3,\"yyyy-mm-dd\"))","v":"2022-12-31"}]
[]
[null,"COMPANY INFORMATION"]
[]
[null,"Company Name","Enter Company Name"]
[]
[null,"Date Incorporated/Organised",null,null,"Registration No."]
[]
[null,"Date Commenced Business",null,null,"Class of Business","IIGB"]
[]
[null,"CONTACT PERSON FOR RISK-BASED CAPITAL"]
[]
[null,"First Name",null,null,"Last Name"]
[]
[null,"CONTACT PERSON INFORMATION"]
[]
[null,"Street and Number of P.O. Box"]
[]
[null,"City"]
[]
[null,"Country"]
[]
[null,"Postal Code"]
[]
[null,"Phone Number",null,"Extension"]
[]
[null,"Email"]
[]
[null,"Date Prepared"]
[]
[]
[]
[]
[]
[]
[null,null,null,null,"Class 4"]
[null,null,null,null,"Class 3B"]
[null,null,null,null,"Class 3A"]

{"sheet":"Content","index":4,"n_rows":255,"n_cols":23,"rows_kept":255,"cut":false,"hidden":true,"merged":[[3,0,3,3],[4,7,4,8],[4,10,4,11],[132,1,132,2],[137,1,137,2],[143,1,143,2],[94,3,94,4],[95,3,95,4],[96,3,96,4],[101,3,101,4],[104,3,104,4],[44,1,44,2],[45,1,45,2],[55,1,55,2],[58,1,58,2],[64,1,64,2],[78,2,79,2],[91,3,91,4],[92,3,92,4],[93,3,93,4],[46,1,46,2],[49,1,49,2],[52,1,52,2],[53,1,53,2],[54,1,54,2],[72,1,72,2],[73,1,73,3],[4,0,4,2],[28,2,29,2],[30,2,31,2],[40,2,41,2],[19,2,20,2],[23,2,24,2],[21,2,22,2],[35,2,36,2],[6,1,6,2],[7,1,7,2],[8,1,8,2],[9,1,9,2],[10,1,10,2],[11,1,11,2],[15,1,15,2],[34,1,34,2],[39,1,39,2],[18,1,18,2],[25,1,25,2],[26,1,26,2],[27,1,27,2],[122,1,122,2],[124,1,124,2],[126,1,126,2],[128,1,128,2],[130,1,130,2],[56,2,57,2],[67,2,68,2],[88,3,88,4],[114,1,114,3],[118,1,118,2],[120,1,120,2],[100,1,100,2],[97,3,97,4],[105,1,105,2],[90,3,90,4],[59,2,60,2],[61,2,62,2],[69,2,70,2],[63,1,63,3],[66,1,66,2],[71,1,71,3],[74,1,74,2],[87,1,87,2],[89,3,89,4],[163,1,163,2],[173,1,173,2],[175,1,175,2],[177,1,177,2],[180,1,180,2],[134,1,134,2],[140,1,140,2],[148,1,148,2],[157,1,157,2],[160,1,160,2],[208,1,208,2],[209,1,209,2],[201,1,201,2],[202,1,202,2],[203,1,203,2],[204,1,204,2],[205,1,205,2],[182,1,182,2],[190,1,190,2],[192,1,192,2],[195,1,195,2],[198,1,198,2],[206,1,206,2],[207,1,207,2],[251,1,251,2],[241,1,241,2],[242,1,242,2],[243,1,243,2],[244,1,244,2],[247,1,247,2],[223,1,223,2],[231,1,231,2],[235,1,235,2],[239,1,239,2],[240,1,240,2],[228,1,228,2],[217,1,217,2],[218,1,218,2],[219,1,219,2],[220,1,220,2],[211,1,211,2],[213,1,213,2],[214,1,214,2],[215,1,215,2],[216,1,216,2]]}
["CONTENTS OF THE BSCR MODEL",null,null,null,null,null,null,null,null,null,null,null,null,{"$f":"HYPERLINK(\"#'Index'!A1\",\"Return to Index\")","v":"Return to Index"},null,null,null,null,null,null,null,null,{"$f":"IF(C3=\"\",\"\",TEXT(DATE(YEAR(C3+1)-1,MONTH(C3+1),DAY(C3+1)),\"mm/dd/yyyy\"))","v":"01/01/2022"}]
[{"$f":"'Company Information'!C7","v":"Enter Company Name"},null,null,null,null,null,null,null,null,null,""]
["As At:",null,{"$f":"'Company Information'!C3","v":"2022-12-31"}]
[{"$f":"HYPERLINK(\"#'Submission'!B14\",\"If Confirm Message Check Box is Selected, include comments in Submission Tab Cell B14\")","v":"If Confirm Message Check Box is Selected, include comments in Submission Tab Cell B14"},null,null,null,null,null,null,{"$f":"COUNTIF(H13:H254,H6)","v":57},{"$f":"COUNTIF(I13:I254,\"Yes\")","v":0},null,{"$f":"COUNTIF(K13:K254,\"False.\")","v":0},{"$f":"COUNTIF(L13:L254,\"Yes\")","v":0}]
["Text in Column C Have Been Hyperlinked for Ease",null,null,null,null,null,null,"Form / Schedule ",null,null,"Validation Check"]
[null,"Company Information / Reference Schedules",null,"True / False","Difference $","Difference %",null,"Blank","Blank Confirm",null,false,"Unbal. Confirm",null,"Message"]
[1,{"$f":"HYPERLINK(\"#'Submission'!A1\",\"Submission Tab\")","v":"Submission Tab"}]
[{"$f":"A7+1","v":2},{"$f":"HYPERLINK(\"#'Index'!A1\",\"Index\")","v":"Index"}]
[3,{"$f":"HYPERLINK(\"#'Attachments'!A1\",\"Attachments\")","v":"Attachments"}]
[4,{"$f":"HYPERLINK(\"#'Company Information'!A1\",\"Company Information\")","v":"Company Information"}]
[5,{"$f":"HYPERLINK(\"#'Declaration'!A1\",\"Declaration\")","v":"Declaration"}]
[6,{"$f":"HYPERLINK(\"#'Information Sheet'!A1\",\"Information Sheet\")","v":"Information Sheet"}]
[null,"i)",{"$f":"HYPERLINK(\"#'Information Sheet'!H13\",\"Section (e)Filing Period Start Date check\")","v":"Section (e)Filing Period Start Date check"},{"$f":"IF('Information Sheet'!H13=0,\"Filing Period Start Date is Blank\",\"TRUE\")","v":"Filing Period Start Date is Blank"},null,null,null,{"$f":"IF(D13=\"Filing Period Start Date is Blank\",\"Blank\",\"\")","v":"Blank"},{"$f":"IF(H13=\"Blank\",IF(P13=TRUE,\"Yes\",\"\"),\"\")","v":""},null,{"$f":"IF(D13=\"False\",\"False.\",\"\")","v":""},{"$f":"IF(K13=\"\",\"\",IF(P13=TRUE,\"Yes\",\"\"))","v":""},null,null,null,false]
[null,"ii)",{"$f":"HYPERLINK(\"#'Information Sheet'!H18\",\"Section (h)Exchange Rate check\")","v":"Section (h)Exchange Rate check"},{"$f":"IF('Information Sheet'!H18=0,\"Exchange Rate is Blank\",\"TRUE\")","v":"TRUE"},null,null,null,{"$f":"IF(D14=\"Exchange Rate is Blank\",\"Blank\",\"\")","v":""},{"$f":"IF(H14=\"Blank\",IF(P14=TRUE,\"Yes\",\"\"),\"\")","v":""},null,{"$f":"IF(D14=\"False\",\"False.\",\"\")","v":""},{"$f":"IF(K14=\"\",\"\",IF(P14=TRUE,\"Yes\",\"\"))","v":""}]
[{"$f":"A12+1","v":7},{"$f":"HYPERLINK(\"#'SAR & Sanc. (All)'!A1\",\"SARS and Sanctions for All Insurers\")","v":"SARS and Sanctions for All Insurers"}]
[8,{"$f":"HYPERLINK(\"#'Zones'!A1\",\"Zones\")","v":"Zones"}]
[]
[null,"Statutory Forms & Economic Balance Sheet"]
[{"$f":"A16+1","v":9},{"$f":"HYPERLINK(\"#'Form 1SFS'!A1\",\"Form 1SFS - Statutory Balance Sheet\")","v":"Form 1SFS - Statutory Balance Sheet"}]
[null,"i)",{"$f":"HYPERLINK(\"#'Form 1SFS'!A1\",\"Unconsolidated Assets equals Total General Business Insurance Reserves & Other Liabilities and Statutory Capital & Surplus\")","v":"Unconsolidated Assets equals Total General Business Insurance Reserves & Other Liabilities and Statutory Capital & Surplus"},{"$f":"IF('Company Information'!$B$2=\"Unconsolidated BSCR Model\",\"N/A\",IF(+'Form 1SFS (Consolidated)'!E91=0,\"Form 1SFS Unconsolidated is Blank\",'Form 1SFS (Consolidated)'!E153))","v":"Form 1SFS Unconsolidated is Blank"},{"$f":"+'Form 1SFS (Consolidated)'!E155","v":0},{"$f":"IF('Form 1SFS (Consolidated)'!E91=0,0,('Form 1SFS (Consolidated)'!E155)/'Form 1SFS (Consolidated)'!E91)","v":0},null,{"$f":"IF(D20=\"Form 1SFS Unconsolidated is Blank\",\"Blank\",\"\")","v":"Blank"},{"$f":"IF(H20=\"Blank\",IF(P20=TRUE,\"Yes\",\"\"),\"\")","v":""},null,{"$f":"IF(D20=\"False\",\"False.\",\"\")","v":""},{"$f":"IF(K20=\"\",\"\",IF(P20=TRUE,\"Yes\",\"\"))","v":""},null,null,null,false]
[]
[null,"ii)",{"$f":"HYPERLINK(\"#'Form 1SFS'!A1\",\"Consolidated Assets equals Total General Business Insurance Reserves & Other Liabilities and Statutory Capital & Surplus\")","v":"Consolidated Assets equals Total General Business Insurance Reserves & Other Liabilities and Statutory Capital & Surplus"},{"$f":"IF('Company Information'!$B$2=\"Unconsolidated BSCR Model\",\"N/A\",IF(+'Form 1SFS (Consolidated)'!M91=0,\"Form 1SFS Consolidated is Blank\",'Form 1SFS (Consolidated)'!M153))","v":"Form 1SFS Consolidated is Blank"},{"$f":"+'Form 1SFS (Consolidated)'!I155","v":0},{"$f":"IF('Form 1SFS (Consolidated)'!I91=0,0,('Form 1SFS (Consolidated)'!I155)/'Form 1SFS (Consolidated)'!I91)","v":0},null,{"$f":"IF(D22=\"Form 1SFS Consolidated is Blank\",\"Blank\",\"\")","v":"Blank"},{"$f":"IF(H22=\"Blank\",IF(P22=TRUE,\"Yes\",\"\"),\"\")","v":""},null,{"$f":"IF(D22=\"False\",\"False.\",\"\")","v":""},{"$f":"IF(K22=\"\",\"\",IF(P22=TRUE,\"Yes\",\"\"))","v":""},null,null,null,false]
[]
[null,"iii)",{"$f":"HYPERLINK(\"#'Form 1SFS'!B237:O265\",\"Reconcilation of Gross Loss and Loss Expense Provision at End of Year equals Statutory Balance Sheet Total\")","v":"Reconcilation of Gross Loss and Loss Expense Provision at End of Year equals Statutory Balance Sheet Total"},{"$f":"IF('Company Information'!$B$2=\"Unconsolidated BSCR Model\",\"N/A\",IF(+'Form 1SFS (Consolidated)'!M230=0,\"Reconciliation is Blank\",'Form 1SFS (Consolidated)'!M232))","v":"Reconciliation is Blank"},{"$f":"+'Form 1SFS (Consolidated)'!M234","v":0},{"$f":"IF(+'Form 1SFS (Consolidated)'!E98=0,0,('Form 1SFS (Consolidated)'!M234)/+'Form 1SFS (Consolidated)'!E98)","v":0},null,{"$f":"IF(D24=\"Reconciliation is Blank\",\"Blank\",\"\")","v":"Blank"},{"$f":"IF(H24=\"Blank\",IF(P24=TRUE,\"Yes\",\"\"),\"\")","v":""},null,{"$f":"IF(D24=\"False\",\"False.\",\"\")","v":""},{"$f":"IF(K24=\"\",\"\",IF(P24=TRUE,\"Yes\",\"\"))","v":""},null,null,null,false]
[]
[{"$f":"A19+1","v":10},{"$f":"HYPERLINK(\"#'Form 2SFS'!A1\",\"Form 2SFS - Statutory Statement of Income\")","v":"Form 2SFS - Statutory Statement of Income"}]
[{"$f":"A26+1","v":11},{"$f":"HYPERLINK(\"#'Form 8SFS'!A1\",\"Form 8SFS - Statutory Statement of Capital and Surplus\")","v":"Form 8SFS - Statutory Statement of Capital and Surplus"}]
[{"$f":"A27+1","v":12},{"$f":"HYPERLINK(\"#'Form 1EBS'!A1\",\"Form 1EBS - Economic Balance Sheet\")","v":"Form 1EBS - Economic Balance Sheet"}]
[null,"i)",{"$f":"HYPERLINK(\"#'Form 1EBS'!A1\",\"Assets equals Total General Business Insurance Reserves & Other Liabilities and Statutory Capital & Surplus\")","v":"Assets equals Total General Business Insurance Reserves & Other Liabilities and Statutory Capital & Surplus"},{"$f":"IF(+'Form 1EBS'!F90=0,\"Form 1EBS is Blank\",'Form 1EBS'!F171)","v":{"$error":"#REF!"}},{"$f":"'Form 1EBS'!F173","v":{"$error":"#REF!"}},{"$f":"IF(+'Form 1EBS'!F90=0,0,('Form 1EBS'!F173/+'Form 1EBS'!F90))","v":{"$error":"#REF!"}},null,{"$f":"IF(D29=\"Form 1EBS is Blank\",\"Blank\",\"\")","v":{"$error":"#REF!"}},{"$f":"IF(H29=\"Blank\",IF(P29=TRUE,\"Yes\",\"\"),\"\")","v":{"$error":"#REF!"}},null,{"$f":"IF(D29=\"False\",\"False.\",\"\")","v":{"$error":"#REF!"}},{"$f":"IF(K29=\"\",\"\",IF(P29=TRUE,\"Yes\",\"\"))","v":{"$error":"#REF!"}},null,null,null,false]
[]
[null,"ii)",{"$f":"HYPERLINK(\"#'Form 1EBS'!B222:H237\",\"Reconcilation of Gross Loss and Loss Expense Provision at End of Year equals Statutory Balance Sheet Total\")","v":"Reconcilation of Gross Loss and Loss Expense Provision at End of Year equals Statutory Balance Sheet Total"},{"$f":"IF(+'Form 1EBS'!F232=0,\"Reconciliation is Blank\",'Form 1EBS'!F234)","v":"Reconciliation is Blank"},{"$f":"'Form 1EBS'!F236","v":0},{"$f":"IF(+'Form 1EBS'!F115=0,0,IF('Form 1EBS'!F232=0,0,('Form 1EBS'!F236)/+'Form 1EBS'!F115))","v":0},null,{"$f":"IF(OR(D31=\"False\",D31=\"Reconciliation is Blank\"),\"Blank\",\"\")","v":"Blank"},{"$f":"IF(H31=\"Blank\",IF(P31=TRUE,\"Yes\",\"\"),\"\")","v":""},null,{"$f":"IF(D31=\"False\",\"False.\",\"\")","v":""},{"$f":"IF(K31=\"\",\"\",IF(P31=TRUE,\"Yes\",\"\"))","v":""}]
[]
[]
[null,"BSCR Capital Schedules"]
[{"$f":"A28+1","v":13},{"$f":"HYPERLINK(\"#'Schedule II'!A1\",\"Schedule II - Schedule of Fixed Income & Equity Investments By BSCR Rating\")","v":"Schedule II - Schedule of Fixed Income & Equity Investments By BSCR Rating"}]
[null,"i)",{"$f":"HYPERLINK(\"#'Schedule II'!A1\",\"Quoted & Unquoted Bond Debentures as reported on Schedule II equals Form 1SFS\")","v":"Quoted & Unquoted Bond Debentures as reported on Schedule II equals Form 1SFS"},{"$f":"IF((('Form 1SFS (Consolidated)'!E18+'Form 1SFS (Consolidated)'!I18+'Form 1SFS (Consolidated)'!E35+'Form 1SFS (Consolidated)'!I35))=0,\"N/A\",IF('Schedule II (Unconsolidated)'!T22=0,\"Schedule is Blank\",'Schedule II (Unconsolidated)'!T24))","v":"N/A"},{"$f":"+'Schedule II (Unconsolidated)'!T26","v":0},{"$f":"IF(('Form 1SFS (Consolidated)'!E18+'Form 1SFS (Consolidated)'!E35)=0,0,'Schedule II (Unconsolidated)'!T26/('Form 1SFS (Consolidated)'!E18+'Form 1SFS (Consolidated)'!E35))","v":0},null,{"$f":"IF(D36=\"Schedule is Blank\",\"Blank\",\"\")","v":""},{"$f":"IF(H36=\"Blank\",IF(P36=TRUE,\"Yes\",\"\"),\"\")","v":""},null,{"$f":"IF(D36=\"False\",\"False.\",\"\")","v":""},{"$f":"IF(K36=\"\",\"\",IF(P36=TRUE,\"Yes\",\"\"))","v":""}]
[]
[null,"ii)",{"$f":"HYPERLINK(\"#'Schedule II'!A32\",\"Quoted & Unquoted Equities as reported on Schedule II equals Form 1SFS\")","v":"Quoted & Unquoted Equities as reported on Schedule II equals Form 1SFS"},{"$f":"IF((('Form 1SFS (Consolidated)'!E23+'Form 1SFS (Consolidated)'!I23+'Form 1SFS (Consolidated)'!E40+'Form 1SFS (Consolidated)'!I40))=0,\"N/A\",IF('Schedule II (Unconsolidated)'!T44=0,\"Schedule is Blank\",'Schedule II (Unconsolidated)'!T46))","v":"N/A"},{"$f":"+'Schedule II (Unconsolidated)'!T48","v":0},{"$f":"IF(('Form 1SFS (Consolidated)'!E23+'Form 1SFS (Consolidated)'!E40)=0,0,('Schedule II (Unconsolidated)'!T48)/('Form 1SFS (Consolidated)'!E23+'Form 1SFS (Consolidated)'!E40))","v":0},null,{"$f":"IF(D38=\"Schedule is Blank\",\"Blank\",\"\")","v":""},{"$f":"IF(H38=\"Blank\",IF(P38=TRUE,\"Yes\",\"\"),\"\")","v":""},null,{"$f":"IF(D38=\"False\",\"False.\",\"\")","v":""},{"$f":"IF(K38=\"\",\"\",IF(P38=TRUE,\"Yes\",\"\"))","v":""}]
[null,"iii)",{"$f":"HYPERLINK(\"#'Schedule II'!A55\",\"Mortgage Loans as reported on Schedule II equals Form 1SFS\")","v":"Mortgage Loans as reported on Schedule II equals Form 1SFS"},{"$f":"IF('Form 1SFS (Consolidated)'!E53=0,\"N/A\",IF('Schedule II (Unconsolidated)'!D62=0,\"Schedule is Blank\",'Schedule II (Unconsolidated)'!D64))","v":"N/A"},{"$f":"'Schedule II (Unconsolidated)'!D66","v":0},{"$f":"IF('Form 1SFS (Consolidated)'!E53=0,0,('Schedule II (Unconsolidated)'!D66)/'Form 1SFS (Consolidated)'!E53)","v":0},null,{"$f":"IF(D39=\"Schedule is Blank\",\"Blank\",\"\")","v":""},{"$f":"IF(H39=\"Blank\",IF(P39=TRUE,\"Yes\",\"\"),\"\")","v":""},null,{"$f":"IF(D39=\"False\",\"False.\",\"\")","v":""},{"$f":"IF(K39=\"\",\"\",IF(P39=TRUE,\"Yes\",\"\"))","v":""}]
[{"$f":"A35+1","v":14},{"$f":"HYPERLINK(\"#'Schedule II (EBS)'!A1\",\"Schedule II (EBS)- Schedule of Fixed Income & Equity Investments By BSCR Rating\")","v":"Schedule II (EBS)- Schedule of Fixed Income & Equity Investments By BSCR Rating"}]
[null,"i)",{"$f":"HYPERLINK(\"#'Schedule II (EBS)'!A1\",\"Quoted & Unquoted Bond Debentures as reported on Schedule II (EBS) equals Form 1EBS\")","v":"Quoted & Unquoted Bond Debentures as reported on Schedule II (EBS) equals Form 1EBS"},{"$f":"IF(('Form 1EBS'!F13+'Form 1EBS'!F23)=0,\"N/A\",IF('Schedule II'!T22=0,\"Schedule is Blank\",'Schedule II'!T24))","v":"N/A"},{"$f":"+'Schedule II'!T26","v":0},{"$f":"IF(('Form 1EBS'!F13+'Form 1EBS'!F23)=0,0,'Schedule II'!T26/('Form 1EBS'!F13+'Form 1EBS'!F23))","v":0},null,{"$f":"IF(D41=\"Schedule is Blank\",\"Blank\",\"\")","v":""},{"$f":"IF(H41=\"Blank\",IF(P41=TRUE,\"Yes\",\"\"),\"\")","v":""},null,{"$f":"IF(D41=\"False\",\"False.\",\"\")","v":""},{"$f":"IF(K41=\"\",\"\",IF(P41=TRUE,\"Yes\",\"\"))","v":""}]
[]
[null,"ii)",{"$f":"HYPERLINK(\"#'Schedule II (EBS)'!A32\",\"Quoted & Unquoted Equities as reported on Schedule II (EBS) equals Form 1EBS\")","v":"Quoted & Unquoted Equities as reported on Schedule II (EBS) equals Form 1EBS"},{"$f":"IF(('Form 1EBS'!F18+'Form 1EBS'!F28)=0,\"N/A\",IF('Schedule II'!T44=0,\"Schedule is Blank\",'Schedule II'!T46))","v":"N/A"},{"$f":"+'Schedule II'!T48","v":0},{"$f":"IF(('Form 1EBS'!F18+'Form 1EBS'!F28)=0,0,('Schedule II'!T48)/('Form 1EBS'!F18+'Form 1EBS'!F28))","v":0},null,{"$f":"IF(D43=\"Schedule is Blank\",\"Blank\",\"\")","v":""},{"$f":"IF(H43=\"Blank\",IF(P43=TRUE,\"Yes\",\"\"),\"\")","v":""},null,{"$f":"IF(D43=\"False\",\"False.\",\"\")","v":""},{"$f":"IF(K43=\"\",\"\",IF(P43=TRUE,\"Yes\",\"\"))","v":""}]
[null,"iii)",{"$f":"HYPERLINK(\"#'Schedule II (EBS)'!A55\",\"Mortgage Loans as reported on Schedule II (EBS) equals Form 1EBS\")","v":"Mortgage Loans as reported on Schedule II (EBS) equals Form 1EBS"},{"$f":"IF('Form 1EBS'!F45=0,\"N/A\",IF('Schedule II'!D62=0,\"Schedule is Blank\",'Schedule II'!D64))","v":"N/A"},{"$f":"'Schedule II'!D66","v":0},{"$f":"IF('Form 1EBS'!F45=0,0,('Schedule II'!D66)/'Form 1EBS'!F45)","v":0},null,{"$f":"IF(D44=\"Schedule is Blank\",\"Blank\",\"\")","v":""},{"$f":"IF(H44=\"Blank\",IF(P44=TRUE,\"Yes\",\"\"),\"\")","v":""},null,{"$f":"IF(D44=\"False\",\"False.\",\"\")","v":""},{"$f":"IF(K44=\"\",\"\",IF(P44=TRUE,\"Yes\",\"\"))","v":""}]
[{"$f":"A40+1","v":15},{"$f":"HYPERLINK(\"#'Schedule IIA'!A1\",\"Schedule IIA - Schedule of Funds Held By Ceding Reinsurers in Segregated Accounts\")","v":"Schedule IIA - Schedule of Funds Held By Ceding Reinsurers in Segregated Accounts"}]
[{"$f":"A45+1","v":16},{"$f":"HYPERLINK(\"#'Schedule IIA (EBS)'!A1\",\"Schedule IIA (EBS) - Schedule of Funds Held By Ceding Reinsurers in Segregated Accounts\")","v":"Schedule IIA (EBS) - Schedule of Funds Held By Ceding Reinsurers in Segregated Accounts"}]
[{"$f":"A46+1","v":17},{"$f":"HYPERLINK(\"#'Schedule IIB (EBS)'!A1\",\"Schedule IIB (EBS)- Schedule of Fixed Income & Equity Investments By BSCR Rating\")","v":"Schedule IIB (EBS)- Schedule of Fixed Income & Equity Investments By BSCR Rating"}]
[null,"Interest rate-sensitive investments",null,{"$f":"IF('Investment Reconciliation'!G10=0,\"N/A\",IF('Investment Reconciliation'!G28=0,\"Schedule is Blank\",'Investment Reconciliation'!G30))","v":"N/A"},{"$f":"'Investment Reconciliation'!G32","v":0},{"$f":"IF('Investment Reconciliation'!G28=0,0,('Investment Reconciliation'!G32)/'Investment Reconciliation'!G28)","v":0},null,{"$f":"IF(D48=\"Schedule is Blank\",\"Blank\",\"\")","v":""},{"$f":"IF(H48=\"Blank\",IF(P48=TRUE,\"Yes\",\"\"),\"\")","v":""},null,{"$f":"IF(D48=\"False\",\"False.\",\"\")","v":""},{"$f":"IF(K48=\"\",\"\",IF(P48=TRUE,\"Yes\",\"\"))","v":""}]
[null,"Investments sensitive to equity prices",null,{"$f":"IF('Investment Reconciliation'!H10=0,\"N/A\",IF('Investment Reconciliation'!H28=0,\"Schedule is Blank\",'Investment Reconciliation'!H30))","v":"N/A"},{"$f":"'Investment Reconciliation'!H32","v":0},{"$f":"IF('Investment Reconciliation'!H28=0,0,('Investment Reconciliation'!H32)/'Investment Reconciliation'!H28)","v":0},null,{"$f":"IF(D49=\"Schedule is Blank\",\"Blank\",\"\")","v":""},{"$f":"IF(H49=\"Blank\",IF(P49=TRUE,\"Yes\",\"\"),\"\")","v":""},null,{"$f":"IF(D49=\"False\",\"False.\",\"\")","v":""},{"$f":"IF(K49=\"\",\"\",IF(P49=TRUE,\"Yes\",\"\"))","v":""}]
[{"$f":"A47+1","v":18},{"$f":"HYPERLINK(\"#'Schedule IIC (EBS)'!A1\",\"Schedule IIC (EBS) - Schedule of Funds Held By Ceding Reinsurers in Segregated Accounts\")","v":"Schedule IIC (EBS) - Schedule of Funds Held By Ceding Reinsurers in Segregated Accounts"}]
[null,"Interest rate-sensitive investments",null,{"$f":"IF('Investment Reconciliation'!I10=0,\"N/A\",IF('Investment Reconciliation'!I28=0,\"Schedule is Blank\",'Investment Reconciliation'!I30))","v":"N/A"},{"$f":"'Investment Reconciliation'!I32","v":0},{"$f":"IF('Investment Reconciliation'!I28=0,0,('Investment Reconciliation'!I32)/'Investment Reconciliation'!I28)","v":0},null,{"$f":"IF(D51=\"Schedule is Blank\",\"Blank\",\"\")","v":""},{"$f":"IF(H51=\"Blank\",IF(P51=TRUE,\"Yes\",\"\"),\"\")","v":""},null,{"$f":"IF(D51=\"False\",\"False.\",\"\")","v":""},{"$f":"IF(K51=\"\",\"\",IF(P51=TRUE,\"Yes\",\"\"))","v":""}]
[null,"Investments sensitive to equity prices",null,{"$f":"IF('Investment Reconciliation'!J10=0,\"N/A\",IF('Investment Reconciliation'!J28=0,\"Schedule is Blank\",'Investment Reconciliation'!J30))","v":"N/A"},{"$f":"'Investment Reconciliation'!J32","v":0},{"$f":"IF('Investment Reconciliation'!J28=0,0,('Investment Reconciliation'!J32)/'Investment Reconciliation'!J28)","v":0},null,{"$f":"IF(D52=\"Schedule is Blank\",\"Blank\",\"\")","v":""},{"$f":"IF(H52=\"Blank\",IF(P52=TRUE,\"Yes\",\"\"),\"\")","v":""},null,{"$f":"IF(D52=\"False\",\"False.\",\"\")","v":""},{"$f":"IF(K52=\"\",\"\",IF(P52=TRUE,\"Yes\",\"\"))","v":""}]
[{"$f":"A50+1","v":19},{"$f":"HYPERLINK(\"#'Schedule IID (EBS)'!A1\",\"Schedule IID (EBS) - Schedule of Segregated Accounts\")","v":"Schedule IID (EBS) - Schedule of Segregated Accounts"},null,{"$f":"IF(('Form 1EBS'!F75)=0,\"N/A\",IF('Schedule IID'!D97=0,\"Schedule is Blank\",'Investment Reconciliation'!K30))","v":{"$error":"#REF!"}},{"$f":"'Investment Reconciliation'!K32","v":0},{"$f":"IF('Investment Reconciliation'!K28=0,0,('Investment Reconciliation'!K32)/'Investment Reconciliation'!K28)","v":0},null,{"$f":"IF(D53=\"Schedule is Blank\",\"Blank\",\"\")","v":{"$error":"#REF!"}},{"$f":"IF(H53=\"Blank\",IF(P53=TRUE,\"Yes\",\"\"),\"\")","v":{"$error":"#REF!"}},null,{"$f":"IF(D53=\"False\",\"False.\",\"\")","v":{"$error":"#REF!"}},{"$f":"IF(K53=\"\",\"\",IF(P53=TRUE,\"Yes\",\"\"))","v":{"$error":"#REF!"}}]
[{"$f":"A53+1","v":20},{"$f":"HYPERLINK(\"#'Schedule IIE (EBS)'!A1\",\"Schedule IIE (EBS) - Schedule of Deposit Assets & Liabilities\")","v":"Schedule IIE (EBS) - Schedule of Deposit Assets & Liabilities"},null,{"$f":"IF('Form 1EBS'!F76=0,\"N/A\",IF('Schedule IIE'!D97=0,\"Schedule is Blank\",'Investment Reconciliation'!M30))","v":"N/A"},{"$f":"'Investment Reconciliation'!M32","v":0},{"$f":"IF('Investment Reconciliation'!M28=0,0,('Investment Reconciliation'!M32)/'Investment Reconciliation'!M28)","v":0},null,{"$f":"IF(D54=\"Schedule is Blank\",\"Blank\",\"\")","v":""},{"$f":"IF(H54=\"Blank\",IF(P54=TRUE,\"Yes\",\"\"),\"\")","v":""},null,{"$f":"IF(D54=\"False\",\"False.\",\"\")","v":""},{"$f":"IF(K54=\"\",\"\",IF(P54=TRUE,\"Yes\",\"\"))","v":""}]
[{"$f":"A54+1","v":21},{"$f":"HYPERLINK(\"#'Schedule IIF (EBS)'!A1\",\"Schedule IIF (EBS) - Schedule of Sundry Assets\")","v":"Schedule IIF (EBS) - Schedule of Sundry Assets"},null,{"$f":"IF(('Form 1EBS'!F78+'Form 1EBS'!F80+'Form 1EBS'!F81)=0,\"N/A\",IF('Schedule IIF'!D97=0,\"Schedule is Blank\",'Investment Reconciliation'!O30))","v":{"$error":"#REF!"}},{"$f":"'Investment Reconciliation'!O32","v":0},{"$f":"IF('Investment Reconciliation'!O28=0,0,('Investment Reconciliation'!O32)/'Investment Reconciliation'!O28)","v":0},null,{"$f":"IF(D55=\"Schedule is Blank\",\"Blank\",\"\")","v":{"$error":"#REF!"}},{"$f":"IF(H55=\"Blank\",IF(P55=TRUE,\"Yes\",\"\"),\"\")","v":{"$error":"#REF!"}},null,{"$f":"IF(D55=\"False\",\"False.\",\"\")","v":{"$error":"#REF!"}},{"$f":"IF(K55=\"\",\"\",IF(P55=TRUE,\"Yes\",\"\"))","v":{"$error":"#REF!"}}]
[{"$f":"A46+1","v":17},{"$f":"HYPERLINK(\"#'Schedule III'!A1\",\"Schedule III - Schedule of Net Loss and Loss Expense Provisions By Line of Business\")","v":"Schedule III - Schedule of Net Loss and Loss Expense Provisions By Line of Business"}]
[null,"i)",{"$f":"HYPERLINK(\"#'Schedule III'!A1\",\"Net Loss & Loss Expense Provision as reported on Schedule III equals Form 1SFS\")","v":"Net Loss & Loss Expense Provision as reported on Schedule III equals Form 1SFS"},{"$f":"IF('Form 1SFS (Consolidated)'!E105=0,\"N/A\",IF('Schedule III (Unconsolidated)'!E33=0,\"Schedule is Blank\",'Schedule III (Unconsolidated)'!E35))","v":"N/A"},{"$f":"'Schedule III (Unconsolidated)'!E37","v":0},{"$f":"IF('Form 1SFS (Consolidated)'!E105=0,0,('Schedule III (Unconsolidated)'!E37)/'Form 1SFS (Consolidated)'!E105)","v":0},null,{"$f":"IF(D57=\"Schedule is Blank\",\"Blank\",\"\")","v":""},{"$f":"IF(H57=\"Blank\",IF(P57=TRUE,\"Yes\",\"\"),\"\")","v":""},null,{"$f":"IF(D57=\"False\",\"False.\",\"\")","v":""},{"$f":"IF(K57=\"\",\"\",IF(P57=TRUE,\"Yes\",\"\"))","v":""},null,null,null,false]
[]
[{"$f":"A56+1","v":18},{"$f":"HYPERLINK(\"#'Schedule III (EBS)'!A1\",\"Schedule III (EBS) - Schedule of Net Loss and Loss Expense Provisions By Line of Business\")","v":"Schedule III (EBS) - Schedule of Net Loss and Loss Expense Provisions By Line of Business"}]
[null,"i)",{"$f":"HYPERLINK(\"#'Schedule III (EBS)'!A1\",\"Net Loss & Loss Expense Provision as reported on Schedule III (EBS) equals Form 1EBS\")","v":"Net Loss & Loss Expense Provision as reported on Schedule III (EBS) equals Form 1EBS"},{"$f":"IF('Form 1EBS'!F115=0,\"N/A\",IF('Schedule III'!F34=0,\"Schedule is Blank\",'Schedule III'!F38))","v":"N/A"},{"$f":"'Schedule III'!F40","v":0},{"$f":"IF('Form 1EBS'!F115=0,0,('Schedule III'!F40)/'Form 1EBS'!F115)","v":0},null,{"$f":"IF(D60=\"Schedule is Blank\",\"Blank\",\"\")","v":""},{"$f":"IF(H60=\"Blank\",IF(P60=TRUE,\"Yes\",\"\"),\"\")","v":""},null,{"$f":"IF(D60=\"False\",\"False.\",\"\")","v":""},{"$f":"IF(K60=\"\",\"\",IF(P60=TRUE,\"Yes\",\"\"))","v":""}]
[]
[null,"ii)",{"$f":"HYPERLINK(\"#'Schedule IIIA (EBS)'!A1\",\"Insurer has taken advantage of Net Loss & Loss Expense Provision Geographic Diversification\")","v":"Insurer has taken advantage of Net Loss & Loss Expense Provision Geographic Diversification"},{"$f":"IF('Schedule IIIA'!X34=0,\"No\",\"Yes\")","v":"No"}]
[]
[{"$f":"A59+1","v":19},{"$f":"HYPERLINK(\"#'Schedule IIIA (EBS)'!A1\",\"Schedule IIIA (EBS) - Schedule of Geographic Diversification of Net Loss and Loss Expense Provisions\")","v":"Schedule IIIA (EBS) - Schedule of Geographic Diversification of Net Loss and Loss Expense Provisions"}]
[{"$f":"A64+1","v":20},{"$f":"HYPERLINK(\"#'Schedule IV'!A1\",\"Schedule IV - Schedule of Premiums Written By Line of Business\")","v":"Schedule IV - Schedule of Premiums Written By Line of Business"}]
[null,"i)",{"$f":"HYPERLINK(\"#'Schedule IV'!A1\",\"Net Premium Written as reported on Schedule IV equals Form 2SFS\")","v":"Net Premium Written as reported on Schedule IV equals Form 2SFS"},{"$f":"IF('Company Information'!$B$2=\"Unconsolidated BSCR Model\",\"N/A\",IF('Form 2SFS (Consolidated)'!E18=0,\"N/A\",IF('Schedule IV (Unconsolidated)'!Q35=0,\"Schedule is Blank\",'Schedule IV (Unconsolidated)'!Q37)))","v":"N/A"},{"$f":"+'Schedule IV (Unconsolidated)'!Q39","v":0},{"$f":"IF('Form 2SFS (Consolidated)'!E18=0,0,('Schedule IV (Unconsolidated)'!Q39)/'Form 2SFS (Consolidated)'!E18)","v":0},null,{"$f":"IF(OR(D66=\"False\",D66=\"Schedule is Blank\"),\"Blank\",\"\")","v":""},{"$f":"IF(H66=\"Blank\",IF(P66=TRUE,\"Yes\",\"\"),\"\")","v":""},null,{"$f":"IF(D66=\"False\",\"False.\",\"\")","v":""},{"$f":"IF(K66=\"\",\"\",IF(P66=TRUE,\"Yes\",\"\"))","v":""},null,null,null,false]
[{"$f":"A65+1","v":21},{"$f":"HYPERLINK(\"#'Schedule IVA (EBS)'!A1\",\"Schedule IVA (EBS) - Schedule of Premiums Written By Line of Business\")","v":"Schedule IVA (EBS) - Schedule of Premiums Written By Line of Business"}]
[null,"i)",{"$f":"HYPERLINK(\"#'Schedule IVA (EBS)'!A1\",\"Net Premium Written as reported on Schedule IVA (EBS) equals Consolidated Form 2SFS\")","v":"Net Premium Written as reported on Schedule IVA (EBS) equals Consolidated Form 2SFS"},{"$f":"IF('Form 2SFS (Consolidated)'!M18=0,\"N/A\",IF('Schedule IVA'!Q35=0,\"Schedule is Blank\",'Schedule IVA'!Q37))","v":"N/A"},{"$f":"+'Schedule IVA'!Q39","v":0},{"$f":"IF('Form 2SFS (Consolidated)'!M18=0,0,('Schedule IVA'!Q39)/'Form 2SFS (Consolidated)'!M18)","v":0},null,{"$f":"IF(D68=\"Schedule is Blank\",\"Blank\",\"\")","v":""},{"$f":"IF(H68=\"Blank\",IF(P68=TRUE,\"Yes\",\"\"),\"\")","v":""},null,{"$f":"IF(D68=\"False\",\"False.\",\"\")","v":""},{"$f":"IF(K68=\"\",\"\",IF(P68=TRUE,\"Yes\",\"\"))","v":""},null,null,null,false]
[]
[null,"ii)",{"$f":"HYPERLINK(\"#'Schedule IVC (EBS)'!A1\",\"Insurer has taken advantage of Net Premium Written Geographic Diversification\")","v":"Insurer has taken advantage of Net Premium Written Geographic Diversification"},{"$f":"IF('Schedule IVC'!X33=0,\"No\",\"Yes\")","v":"No"}]
[]
[{"$f":"A67+1","v":22},{"$f":"HYPERLINK(\"#'Schedule IVC (EBS)'!A1\",\"Schedule IVC (EBS) - Schedule of Geographic Diversification of Premiums Written\")","v":"Schedule IVC (EBS) - Schedule of Geographic Diversification of Premiums Written"}]
[{"$f":"A72+1","v":23},{"$f":"HYPERLINK(\"#'Schedule IVD'!A1\",\"Schedule IVD - Exposure Measure By Line of Business\")","v":"Schedule IVD - Exposure Measure By Line of Business"},null,{"$f":"IF('Form 2SFS (Consolidated)'!M18=0,\"N/A\",IF(('Schedule IVD'!G33+'Schedule IVD'!K33+'Schedule IVD'!M33)=0,\"Schedule is Blank\",\"True\"))","v":"N/A"},null,null,null,{"$f":"IF(D73=\"Schedule is Blank\",\"Blank\",\"\")","v":""},{"$f":"IF(H73=\"Blank\",IF(P73=TRUE,\"Yes\",\"\"),\"\")","v":""},null,{"$f":"IF(D73=\"False\",\"False.\",\"\")","v":""},{"$f":"IF(K73=\"\",\"\",IF(P73=TRUE,\"Yes\",\"\"))","v":""},null,null,null,false]
[{"$f":"A73+1","v":24},{"$f":"HYPERLINK(\"#'Schedule IVE (EBS)'!A1\",\"Schedule IVE (EBS) - Schedule of Geographic Diversification of Exposure Measure\")","v":"Schedule IVE (EBS) - Schedule of Geographic Diversification of Exposure Measure"}]
[{"$f":"A74+1","v":25},{"$f":"HYPERLINK(\"#'Schedule V'!A1\",\"Schedule V - Schedule of Risk Management\")","v":"Schedule V - Schedule of Risk Management"}]
[null,"i)",{"$f":"HYPERLINK(\"#'Schedule V'!H10\",\"Effective Duration of Assets\")","v":"Effective Duration of Assets"},{"$f":"IF('Schedule V'!H10=0,\"Asset Duration is not Reported\",\"True\")","v":"Asset Duration is not Reported"},null,null,null,{"$f":"IF(D76=\"Asset Duration is not Reported\",\"Blank\",\"\")","v":"Blank"},{"$f":"IF(H76=\"Blank\",IF(P76=TRUE,\"Yes\",\"\"),\"\")","v":""}]
[null,"ii)",{"$f":"HYPERLINK(\"#'Schedule V'!H12\",\"Effective Duration of Liabilities\")","v":"Effective Duration of Liabilities"},{"$f":"IF('Schedule V'!H12=0,\"Liability Duration is not Reported\",\"True\")","v":"Liability Duration is not Reported"},null,null,null,{"$f":"IF(D77=\"Liability Duration is not Reported\",\"Blank\",\"\")","v":"Blank"},{"$f":"IF(H77=\"Blank\",IF(P77=TRUE,\"Yes\",\"\"),\"\")","v":""}]
[null,"iii)",{"$f":"HYPERLINK(\"#'Schedule V'!H16\",\"Gross Probable Maximum Loss\")","v":"Gross Probable Maximum Loss"},{"$f":"IF('Schedule V'!H16=0,\"Gross PML is not Reported\",\"True\")","v":"Gross PML is not Reported"}]
[null,"iv)",{"$f":"HYPERLINK(\"#'Schedule X(a)'!F11\",\"Gross Probable Maximum Loss to Catastrophe Risk Return 100 Year Aggregate\")","v":"Gross Probable Maximum Loss to Catastrophe Risk Return 100 Year Aggregate"},{"$f":"IF('Schedule V'!H16=0,\"Gross PML is not Reported\",IF('Schedule X(a)'!F10=0,\"Schedule X(a) is Blank\",IF(ROUND('Schedule V'!H16-(IF(CONFIGURATION!$C$12=\"Units\",1000000*'Schedule X(a)'!F10,1000*'Schedule X(a)'!F10)),0)=0,\"True\",\"False\")))","v":"Gross PML is not Reported"},{"$f":"(IF(CONFIGURATION!$C$12=\"Units\",'Schedule X(a)'!F10*1000000,'Schedule X(a)'!F10*1000))-'Schedule V'!H16","v":0},{"$f":"IF('Schedule X(a)'!F10=0,0,((IF(CONFIGURATION!$C$12=\"Units\",'Schedule X(a)'!F10*1000000,'Schedule X(a)'!F10*1000))-'Schedule V'!H16)/(IF(CONFIGURATION!$C$12=\"Units\",'Schedule X(a)'!F10*1000000,'Schedule X(a)'!F10*1000)))","v":0}]
[]
[null,"v)",{"$f":"HYPERLINK(\"#'Schedule V'!H18\",\"Net Probable Maximum Loss\")","v":"Net Probable Maximum Loss"},{"$f":"IF('Schedule V'!H18=0,\"Net PML is not Reported\",\"True\")","v":"Net PML is not Reported"}]
[null,"vi)",{"$f":"HYPERLINK(\"#'Schedule X(a)'!H11\",\"Net Probable Maximum Loss to Catastrophe Risk Return 100 Year Aggregate\")","v":"Net Probable Maximum Loss to Catastrophe Risk Return 100 Year Aggregate"},{"$f":"IF('Schedule V'!H18=0,\"Net PML is not Reported\",IF('Schedule X(a)'!H10=0,\"Schedule X(a) is Blank\",IF(ROUND(((IF(CONFIGURATION!$C$12=\"Units\",'Schedule X(a)'!H10*1000000,'Schedule X(a)'!H10*1000))-'Schedule V'!H18),0)=0,\"True\",\"False\")))","v":"Net PML is not Reported"},{"$f":"(IF(CONFIGURATION!$C$12=\"Units\",'Schedule X(a)'!H10*1000000,'Schedule X(a)'!H10*1000))-'Schedule V'!H18","v":0},{"$f":"IF('Schedule X(a)'!H10=0,0,(IF(CONFIGURATION!$C$12=\"Units\",'Schedule X(a)'!H10*1000000,'Schedule X(a)'!H10*1000)-'Schedule V'!H18)/(IF(CONFIGURATION!$C$12=\"Units\",'Schedule X(a)'!H10*1000000,'Schedule X(a)'!H10*1000)))","v":0}]
[null,"vii)",{"$f":"HYPERLINK(\"#'Schedule V'!H20\",\"Average Annual Loss\")","v":"Average Annual Loss"},{"$f":"IF('Schedule V'!H20=0,\"Avg Annual Loss is not Reported\",\"True\")","v":"Avg Annual Loss is not Reported"}]
[null,"viii)",{"$f":"HYPERLINK(\"#'Schedule X(a)'!J17\",\"Average Annual Loss (Sch X(a)) Net is greater than Sch V\")","v":"Average Annual Loss (Sch X(a)) Net is greater than Sch V"},{"$f":"IF('Schedule V'!H20=0,\"Average Annual Loss is not Reported\",IF('Schedule X(a)'!J16=0,\"Schedule X(a) is Blank\",IF((('Schedule X(a)'!J16*1000)>'Schedule V'!H20),\"True\",\"False\")))","v":"Average Annual Loss is not Reported"}]
[null,"ix)",{"$f":"HYPERLINK(\"#'Schedule V'!H22\",\"Actual attritional Losses and Large Claims Losses - Relevant Year\")","v":"Actual attritional Losses and Large Claims Losses - Relevant Year"},{"$f":"IF('Schedule V'!H22=0,\"Attritional Loss is not Reported\",\"True\")","v":"Attritional Loss is not Reported"}]
[null,"x)",{"$f":"HYPERLINK(\"#'Schedule V'!H25:H29\",\"Property Catastrophe Recoverables\")","v":"Property Catastrophe Recoverables"},{"$f":"IF('Schedule V'!H29=0,\"Property Cat Rec. is not Reported\",\"True\")","v":"Property Cat Rec. is not Reported"}]
[null,"xi)",{"$f":"HYPERLINK(\"#'Schedule V'!H34:H38\",\"Summary of Projected Performance\")","v":"Summary of Projected Performance"},{"$f":"IF(COUNTIF('Schedule V'!H34:H36,0)>0,\"Projected Performance is not Reported\",\"True\")","v":"Projected Performance is not Reported"},null,null,null,{"$f":"IF(D87=\"Projected Performance is not Reported\",\"Blank\",\"\")","v":"Blank"},{"$f":"IF(H87=\"Blank\",IF(P87=TRUE,\"Yes\",\"\"),\"\")","v":""}]
[{"$f":"A75+1","v":26},{"$f":"HYPERLINK(\"#'Schedule V(a)'!A1\",\"Schedule V(a) Schedule of Risk Management - Governance and Group Structure\")","v":"Schedule V(a) Schedule of Risk Management - Governance and Group Structure"}]
[null,"i)",{"$f":"HYPERLINK(\"#'Schedule V(a)'!E11\",\"Directors - Country of Residence\")","v":"Directors - Country of Residence"},{"$f":"IF('Schedule V(a)'!E12=0,\"Directors- Country of Residence is not Reported\",\"True\")","v":"Directors- Country of Residence is not Reported"},null,null,null,{"$f":"IF(D89=\"Directors- Country of Residence is not Reported\",\"Blank\",\"\")","v":"Blank"},{"$f":"IF(H89=\"Blank\",IF(P89=TRUE,\"Yes\",\"\"),\"\")","v":""},null,null,null,null,null,null,false]
[null,"ii)",{"$f":"HYPERLINK(\"#'Schedule V(a)'!H11\",\"Directors - Status\")","v":"Directors - Status"},{"$f":"IF('Schedule V(a)'!H12=0,\"Directors- Status is not Reported\",\"True\")","v":"True"},null,null,null,{"$f":"IF(D90=\"Directors- Status is not Reported\",\"Blank\",\"\")","v":""},"",null,null,null,null,null,null,false]
[null,"iii)",{"$f":"HYPERLINK(\"#'Schedule V(a)'!E36\",\"Chief & Senior Executives - Residence\")","v":"Chief & Senior Executives - Residence"},{"$f":"IF('Schedule V(a)'!E37=0,\"Chief & Senior Executives - Country of Residence is not Reported\",\"True\")","v":"Chief & Senior Executives - Country of Residence is not Reported"},null,null,null,{"$f":"IF(D91=\"Chief & Senior Executives - Country of Residence is not Reported\",\"Blank\",\"\")","v":"Blank"},"",null,null,null,null,null,null,false]
[null,"iv)",{"$f":"HYPERLINK(\"#'Schedule V(a)'!H36\",\"Chief & Senior Executives - Employee Arrangement\")","v":"Chief & Senior Executives - Employee Arrangement"},{"$f":"IF('Schedule V(a)'!H37=0,\"Chief & Senior Executives - Employee Arrangement is not Reported\",\"True\")","v":"True"},null,null,null,{"$f":"IF(D92=\"Chief & Senior Executives - Employee Arrangement is not Reported\",\"Blank\",\"\")","v":""},"",null,null,null,null,null,null,false]
[null,"v)",{"$f":"HYPERLINK(\"#'Schedule V(a)'!I36\",\"Chief & Senior Executives - Description of Responsibilities\")","v":"Chief & Senior Executives - Description of Responsibilities"},{"$f":"IF('Schedule V(a)'!I37=0,\"Chief & Senior Executives - Description of Responsibilities is not Reported\",\"True\")","v":"True"},null,null,null,{"$f":"IF(D93=\"Chief & Senior Executives - Description of Responsibilities is not Reported\",\"Blank\",\"\")","v":""},"",null,null,null,null,null,null,false]
[null,"vi)",{"$f":"HYPERLINK(\"#'Schedule V(a)'!C60:G65\",\"Jurisdiction of Activities\")","v":"Jurisdiction of Activities"},{"$f":"IF(COUNTIF('Schedule V(a)'!E65:E68,0)=0,\"True\",\"Jurisdiction of Activities is not Reported\")","v":"True"},null,null,null,{"$f":"IF(D94=\"Jurisdiction of Activities is not Reported\",\"Blank\",\"\")","v":""},""]
[null,"vii)",{"$f":"HYPERLINK(\"#'Schedule V(a)'!C67:G74\",\"Jurisdiction of Operations\")","v":"Jurisdiction of Operations"},{"$f":"IF(COUNTIF('Schedule V(a)'!E72:E77,0)=0,\"True\",\"Jurisdiction of Operations is not Reported\")","v":"True"},null,null,null,{"$f":"IF(D95=\"Jurisdiction of Operations is not Reported\",\"Blank\",\"\")","v":""},""]
[null,"viii)",{"$f":"HYPERLINK(\"#'Schedule V(a)'!h67:h74\",\"Services Outsourced\")","v":"Services Outsourced"},{"$f":"IF(COUNTIF('Schedule V(a)'!H72:H77,0)=0,\"True\",\"Services Outsourced is not Reported\")","v":"True"},null,null,null,{"$f":"IF(D96=\"Services Outsourced is not Reported\",\"Blank\",\"\")","v":""},"",null,null,null,null,null,null,false]
[null,"ix)",{"$f":"HYPERLINK(\"#'Schedule V(a)'!G76\",\"Number of Employees in Bermuda\")","v":"Number of Employees in Bermuda"},{"$f":"IF('Schedule V(a)'!G98=0,\"Numbers of Employees in Bermuda is not Reported\",\"True\")","v":"Numbers of Employees in Bermuda is not Reported"},null,null,null,{"$f":"IF(D97=\"Numbers of Employees in Bermuda is not Reported\",\"Blank\",\"\")","v":"Blank"},"",null,null,null,null,null,null,false]
[null,"x)",{"$f":"HYPERLINK(\"#'Schedule V(a)'!G92:G94\",\"Group Financial Position\")","v":"Group Financial Position"},{"$f":"IF(COUNTIF('Schedule V(a)'!G123:G125,0)=0,\"True\",\"Group Financial Position is not Reported\")","v":"Group Financial Position is not Reported"},null,null,null,{"$f":"IF(D98=\"Group Financial Position is not Reported\",\"Blank\",\"\")","v":"Blank"},""]
[null,"xi)",{"$f":"HYPERLINK(\"#'Schedule V(a)'!C99:G107\",\"Largest Balance Sheet Values\")","v":"Largest Balance Sheet Values"},{"$f":"IF(COUNTIF('Schedule V(a)'!C130:G138,0)=45,\"Largest Values is not Reported\",\"True\")","v":"Largest Values is not Reported"},null,null,null,{"$f":"IF(D99=\"Largest Values is not Reported\",\"Blank\",\"\")","v":"Blank"},""]
[null,"xii)",{"$f":"HYPERLINK(\"#'Schedule V(a)'!C111\",\"Subsequent Events\")","v":"Subsequent Events"},{"$f":"IF('Schedule V(a)'!C142=0,\"Subsequent Events is not Reported\",\"True\")","v":"Subsequent Events is not Reported"},null,null,null,{"$f":"IF(D100=\"Subsequent Events is not Reported\",\"Blank\",\"\")","v":"Blank"},"",null,null,null,null,null,null,false]
[{"$f":"A88+1","v":27},{"$f":"HYPERLINK(\"#'Schedule V(c)'!A1\",\"Schedule V(c) Schedule of Risk Management - Intra-Group Exposures\")","v":"Schedule V(c) Schedule of Risk Management - Intra-Group Exposures"}]
[null,"i)",{"$f":"HYPERLINK(\"#'Schedule V(c)'!E9\",\"Intra-Group Transactions\")","v":"Intra-Group Transactions"},{"$f":"IF('Schedule V(c)'!C15=0,\"Intra-Group Transactions is not Reported\",\"True\")","v":"Intra-Group Transactions is not Reported"},null,null,null,{"$f":"IF(D102=\"Intra-Group Transactions is not Reported\",\"Blank\",\"\")","v":"Blank"},{"$f":"IF(H102=\"Blank\",IF(P102=TRUE,\"Yes\",\"\"),\"\")","v":""},null,null,null,null,null,null,false]
[null,"ii)",{"$f":"HYPERLINK(\"#'Schedule V(c)'!E43\",\"Intra-Group Reinsurance & Retrocession\")","v":"Intra-Group Reinsurance & Retrocession"},{"$f":"IF('Schedule V(c)'!C48=0,\"Intra-Group R/I is not Reported\",\"True\")","v":"Intra-Group R/I is not Reported"},null,null,null,{"$f":"IF(D103=\"Intra-Group R/I is not Reported\",\"Blank\",\"\")","v":"Blank"},{"$f":"IF(H103=\"Blank\",IF(P103=TRUE,\"Yes\",\"\"),\"\")","v":""}]
[null,"iii)",{"$f":"HYPERLINK(\"#'Schedule V(c)'!J74\",\"Proportion of Internal Reinsurance\")","v":"Proportion of Internal Reinsurance"},{"$f":"IF('Schedule V(c)'!L74=0,\"Proportion R/I is not Reported\",\"True\")","v":"Proportion R/I is not Reported"},null,null,null,{"$f":"IF(D104=\"Proportion R/I is not Reported\",\"Blank\",\"\")","v":"Blank"},{"$f":"IF(H104=\"Blank\",IF(P104=TRUE,\"Yes\",\"\"),\"\")","v":""}]
[null,"iv)",{"$f":"HYPERLINK(\"#'Schedule V(c)'!E79\",\"10 Largest Counterparty Exposures\")","v":"10 Largest Counterparty Exposures"},{"$f":"IF('Schedule V(c)'!C83=0,\"Counterparty Exposure is not Completed\",\"True\")","v":"Counterparty Exposure is not Completed"},null,null,null,{"$f":"IF(D105=\"Counterparty Exposure is not Completed\",\"Blank\",\"\")","v":"Blank"},{"$f":"IF(H105=\"Blank\",IF(P105=TRUE,\"Yes\",\"\"),\"\")","v":""}]
[{"$f":"A101+1","v":28},{"$f":"HYPERLINK(\"#'Schedule V(e)'!A1\",\"Schedule V(e) Schedule of Risk Management - Stress & Scenario Tests\")","v":"Schedule V(e) Schedule of Risk Management - Stress & Scenario Tests"}]
[null,"i)",{"$f":"HYPERLINK(\"#'Schedule V(e)'!F13:G18\",\"Financial Market Scenarios\")","v":"Financial Market Scenarios"},{"$f":"IF('Schedule V(e)'!I8=\"\",IF(COUNTIF('Schedule V(e)'!F12:G19,0)>0,\"Financial Market Scenario is not Reported\",\"True\"),\"True\")","v":"Financial Market Scenario is not Reported"},null,null,null,{"$f":"IF(D107=\"Financial Market Scenario is not Reported\",\"Blank\",\"\")","v":"Blank"},{"$f":"IF(H107=\"Blank\",IF(P107=TRUE,\"Yes\",\"\"),\"\")","v":""}]
[null,"ii)",{"$f":"HYPERLINK(\"#'Schedule V(e)'!I34:J52\",\"Underwriting Loss Scenarios Completed\")","v":"Underwriting Loss Scenarios Completed"},{"$f":"IF('Company Information'!F11=\"Class 3A\",\"N/A\",IF(COUNTIF('Schedule V(e)'!H51:H69,0)=19,\"Underwriting Loss Scenarios is not Reported\",\"True\"))","v":"Underwriting Loss Scenarios is not Reported"},null,null,null,{"$f":"IF(D108=\"Underwriting Loss Scenarios is not Reported\",\"Blank\",\"\")","v":"Blank"},{"$f":"IF(H108=\"Blank\",IF(P108=TRUE,\"Yes\",\"\"),\"\")","v":""}]
[null,"iii)",{"$f":"HYPERLINK(\"#'Schedule V(e)'!G34:G52\",\"Underwriting Loss Scenarios - Gross Loss Negative Surplus\")","v":"Underwriting Loss Scenarios - Gross Loss Negative Surplus"},{"$f":"IF('Company Information'!F11=\"Class 3A\",\"N/A\",'Schedule V(e)'!S70)","v":"True"},null,null,null,null,null,null,{"$f":"IF(D109=\"False\",\"False.\",\"\")","v":""},{"$f":"IF(K109=\"\",\"\",IF(P109=TRUE,\"Yes\",\"\"))","v":""}]
[null,"iv)",{"$f":"HYPERLINK(\"#'Schedule V(e)'!k34:k52\",\"Underwriting Loss Scenarios - Net Loss Negative Surplus\")","v":"Underwriting Loss Scenarios - Net Loss Negative Surplus"},{"$f":"IF('Company Information'!F11=\"Class 3A\",\"N/A\",'Schedule V(e)'!T70)","v":"True"},null,null,null,null,null,null,{"$f":"IF(D110=\"False\",\"False.\",\"\")","v":""},{"$f":"IF(K110=\"\",\"\",IF(P110=TRUE,\"Yes\",\"\"))","v":""}]
[null,"v)",{"$f":"HYPERLINK(\"#'Schedule V(e)'!D28:N46\",\"Underwriting Loss Scenarios - Gross Loss Less than Net Loss Impact\")","v":"Underwriting Loss Scenarios - Gross Loss Less than Net Loss Impact"},{"$f":"IF('Company Information'!F11=\"Class 3A\",\"N/A\",'Schedule V(e)'!U70)","v":"True"},null,null,null,null,null,null,{"$f":"IF(D111=\"False\",\"False.\",\"\")","v":""},{"$f":"IF(K111=\"\",\"\",IF(P111=TRUE,\"Yes\",\"\"))","v":""}]
[null,"vi)",{"$f":"HYPERLINK(\"#'Schedule V(e)'!J62:K64\",\"Other Underwriting Loss Scenarios\")","v":"Other Underwriting Loss Scenarios"},{"$f":"IF('Schedule V(e)'!I8=\"\",IF(COUNTIF('Schedule V(e)'!K79:K81,0)=0,\"True\",\"Other Underwriting Loss Scenarios is not Reported\"),\"True\")","v":"Other Underwriting Loss Scenarios is not Reported"},null,null,null,null,null,null,{"$f":"IF(D112=\"False\",\"False.\",\"\")","v":""},{"$f":"IF(K112=\"\",\"\",IF(P112=TRUE,\"Yes\",\"\"))","v":""}]
[null,"vii)",{"$f":"HYPERLINK(\"#'Schedule V(e)'!A100:J116\",\"Series of Loss Simulations or R/I Specific Worst Case Scenario\")","v":"Series of Loss Simulations or R/I Specific Worst Case Scenario"},{"$f":"IF('Company Information'!F11=\"Class 3A\",(IF(COUNTIF('Schedule V(e)'!D199:E200,0)>2,\"Loss Simulations is not Reported\",\"True\")),IF((COUNTIF('Schedule V(e)'!D186:E187,0)+COUNTIF('Schedule V(e)'!D199:E200,0))>2,\"Loss Simulations is not Reported\",\"True\"))","v":"Loss Simulations is not Reported"},null,null,null,{"$f":"IF(D113=\"Loss Simulations is not Reported\",\"Blank\",\"\")","v":"Blank"},{"$f":"IF(H113=\"Blank\",IF(P113=TRUE,\"Yes\",\"\"),\"\")","v":""},null,null,null,null,null,null,false]
[null,"viii)",{"$f":"HYPERLINK(\"#'Schedule V(e)'!D121:M127\",\"Terrorism to a 2-tonne bomb\")","v":"Terrorism to a 2-tonne bomb"},{"$f":"IF('Company Information'!F11=\"Class 3A\",\"N/A\",IF(COUNTIF('Schedule V(e)'!D218:M224,0)=70,\"Terrorism is not Reported\",\"True\"))","v":"Terrorism is not Reported"},null,null,null,{"$f":"IF(D114=\"Terrorism is not Reported\",\"Blank\",\"\")","v":"Blank"},{"$f":"IF(H114=\"Blank\",IF(P114=TRUE,\"Yes\",\"\"),\"\")","v":""}]
[{"$f":"A106+1","v":29},{"$f":"HYPERLINK(\"#'Schedule V(g)'!A1\",\"Schedule V(g) Schedule of Risk Management - Reconciliation from Form 1SFS to Form 1EBS\")","v":"Schedule V(g) Schedule of Risk Management - Reconciliation from Form 1SFS to Form 1EBS"}]
[null,"i)",{"$f":"HYPERLINK(\"#'Schedule V(g)'!A1\",\"SFS Assets equals Form 1EBS\")","v":"SFS Assets equals Form 1EBS"},{"$f":"IF('Schedule V(g)'!D51=0,\"Schedule is Blank\",'Schedule V(g)'!D53)","v":"Schedule is Blank"},{"$f":"'Schedule V(g)'!D55","v":{"$error":"#REF!"}},{"$f":"IF('Schedule V(g)'!D51=0,0,'Schedule V(g)'!D55/'Form 1EBS'!F90)","v":0},null,{"$f":"IF(OR(D116=\"False\",D116=\"Schedule is Blank\"),\"Blank\",\"\")","v":"Blank"},{"$f":"IF(H116=\"Blank\",IF(P116=TRUE,\"Yes\",\"\"),\"\")","v":""},null,{"$f":"IF(D116=\"False\",\"False.\",\"\")","v":""},{"$f":"IF(K116=\"\",\"\",IF(P116=TRUE,\"Yes\",\"\"))","v":""}]
[null,"ii)",{"$f":"HYPERLINK(\"#'Schedule V(g)'!A1\",\"SFS Liabilities equals Form 1EBS\")","v":"SFS Liabilities equals Form 1EBS"},{"$f":"IF('Schedule V(g)'!E51=0,\"Schedule is Blank\",'Schedule V(g)'!E53)","v":"Schedule is Blank"},{"$f":"'Schedule V(g)'!E55","v":{"$error":"#REF!"}},{"$f":"IF('Schedule V(g)'!E51=0,0,'Schedule V(g)'!E55/'Form 1EBS'!F163)","v":0},null,{"$f":"IF(OR(D117=\"False\",D117=\"Schedule is Blank\"),\"Blank\",\"\")","v":"Blank"},{"$f":"IF(H117=\"Blank\",IF(P117=TRUE,\"Yes\",\"\"),\"\")","v":""},null,{"$f":"IF(D117=\"False\",\"False.\",\"\")","v":""},{"$f":"IF(K117=\"\",\"\",IF(P117=TRUE,\"Yes\",\"\"))","v":""}]
[null,"iii)",{"$f":"HYPERLINK(\"#'Schedule V(g)'!A1\",\"SFS Capital & Surplus equals Form 1EBS\")","v":"SFS Capital & Surplus equals Form 1EBS"},{"$f":"IF('Schedule V(g)'!G51=0,\"Schedule is Blank\",'Schedule V(g)'!G53)","v":"Schedule is Blank"},{"$f":"'Schedule V(g)'!G55","v":0},{"$f":"IF('Schedule V(g)'!G51=0,0,'Schedule V(g)'!G55/'Form 1EBS'!F167)","v":0},null,{"$f":"IF(OR(D118=\"False\",D118=\"Schedule is Blank\"),\"Blank\",\"\")","v":"Blank"},{"$f":"IF(H118=\"Blank\",IF(P118=TRUE,\"Yes\",\"\"),\"\")","v":""},null,{"$f":"IF(D118=\"False\",\"False.\",\"\")","v":""},{"$f":"IF(K118=\"\",\"\",IF(P118=TRUE,\"Yes\",\"\"))","v":""}]
[{"$f":"A115+1","v":30},{"$f":"HYPERLINK(\"#'Schedule V(k)'!A1\",\"Schedule V(k) Schedule of Risk Management - Details of Deposit Assets and Liabilities\")","v":"Schedule V(k) Schedule of Risk Management - Details of Deposit Assets and Liabilities"}]
[null,"i)",{"$f":"HYPERLINK(\"#'Schedule V(k)'!A1\",\"Details of Deposit Assets and Liabilities\")","v":"Details of Deposit Assets and Liabilities"},{"$f":"IF(('Form 1SFS (Consolidated)'!E77+'Form 1SFS (Consolidated)'!I77+'Form 1SFS (Consolidated)'!M77)=0,\"N/A\",IF('Schedule V(k)'!F58=0,\"Schedule is Blank\",\"True\"))","v":"N/A"},null,null,null,{"$f":"IF(D120=\"Schedule is Blank\",\"Blank\",\"\")","v":""},{"$f":"IF(H120=\"Blank\",IF(P120=TRUE,\"Yes\",\"\"),\"\")","v":""},null,null,null,null,null,null,false]
[{"$f":"A119+1","v":31},{"$f":"HYPERLINK(\"#'Schedule V(l)'!A1\",\"Schedule V(l) Schedule of Risk Management - Schedule of Segregated Accounts\")","v":"Schedule V(l) Schedule of Risk Management - Schedule of Segregated Accounts"}]
[null,"i)",{"$f":"HYPERLINK(\"#'Schedule V(l)'!A1\",\"Schedule of Segregated Accounts\")","v":"Schedule of Segregated Accounts"},{"$f":"IF(('Form 1SFS (Consolidated)'!#REF!+'Form 1SFS (Consolidated)'!#REF!+'Form 1SFS (Consolidated)'!#REF!+'Form 1SFS (Consolidated)'!#REF!)=0,\"N/A\",IF('Schedule V(l)'!BC21=0,\"Schedule is Blank\",\"True\"))","v":{"$error":"#REF!"}},null,null,null,{"$f":"IF(D122=\"Schedule is Blank\",\"Blank\",\"\")","v":{"$error":"#REF!"}},{"$f":"IF(H122=\"Blank\",IF(P122=TRUE,\"Yes\",\"\"),\"\")","v":{"$error":"#REF!"}},null,null,null,null,null,null,false]
[{"$f":"A121+1","v":32},{"$f":"HYPERLINK(\"#'Schedule VI'!A1\",\"Schedule VI - Schedule of Fixed Income Securities\")","v":"Schedule VI - Schedule of Fixed Income Securities"}]
[null,"i)",{"$f":"HYPERLINK(\"#'Schedule VI'!A1\",\"Fixed Income Securities equals Form 1SFS\")","v":"Fixed Income Securities equals Form 1SFS"},{"$f":"IF(('Form 1SFS (Consolidated)'!E18+'Form 1SFS (Consolidated)'!E35)=0,\"N/A\",IF('Schedule VI (Unconsolidated)'!E28=0,\"Schedule is Blank\",'Schedule VI (Unconsolidated)'!E30))","v":"N/A"},{"$f":"'Schedule VI (Unconsolidated)'!E32","v":{"$error":"#REF!"}},{"$f":"IF(('Form 1SFS (Consolidated)'!E18+'Form 1SFS (Consolidated)'!E35)=0,0,('Schedule VI (Unconsolidated)'!E32)/('Form 1SFS (Consolidated)'!E18+'Form 1SFS (Consolidated)'!E35))","v":0},null,{"$f":"IF(D124=\"Schedule is Blank\",\"Blank\",\"\")","v":""},{"$f":"IF(H124=\"Blank\",IF(P124=TRUE,\"Yes\",\"\"),\"\")","v":""},null,{"$f":"IF(D124=\"False\",\"False.\",\"\")","v":""},{"$f":"IF(K124=\"\",\"\",IF(P124=TRUE,\"Yes\",\"\"))","v":""}]
[{"$f":"A123+1","v":33},{"$f":"HYPERLINK(\"#'Schedule VI (EBS)'!A1\",\"Schedule VI (EBS) - Schedule of Fixed Income Securities\")","v":"Schedule VI (EBS) - Schedule of Fixed Income Securities"}]
[null,"i)",{"$f":"HYPERLINK(\"#'Schedule VI (EBS)'!A1\",\"Fixed Income Securities equals Form 1EBS\")","v":"Fixed Income Securities equals Form 1EBS"},{"$f":"IF(('Form 1EBS'!F13+'Form 1EBS'!F23)=0,\"N/A\",IF('Schedule VI Prior'!E28=0,\"Schedule is Blank\",'Schedule VI Prior'!E30))","v":"N/A"},{"$f":"'Schedule VI Prior'!E32","v":0},{"$f":"IF(('Form 1EBS'!F13+'Form 1EBS'!F23)=0,0,('Schedule VI Prior'!E32)/('Form 1EBS'!F13+'Form 1EBS'!F23))","v":0},null,{"$f":"IF(D126=\"Schedule is Blank\",\"Blank\",\"\")","v":""},{"$f":"IF(H126=\"Blank\",IF(P126=TRUE,\"Yes\",\"\"),\"\")","v":""},null,{"$f":"IF(D126=\"False\",\"False.\",\"\")","v":""},{"$f":"IF(K126=\"\",\"\",IF(P126=TRUE,\"Yes\",\"\"))","v":""}]
[{"$f":"A125+1","v":34},{"$f":"HYPERLINK(\"#'Schedule XVIII'!A1\",\"Schedule XVIII Schedule of Risk Management - Particulars of Reinsurance Balances\")","v":"Schedule XVIII Schedule of Risk Management - Particulars of Reinsurance Balances"}]
[null,"i)",{"$f":"HYPERLINK(\"#'Schedule XVIII'!A1\",\"R/I Balances as reported on Schedules XVIII & II equals Form 1SFS\")","v":"R/I Balances as reported on Schedules XVIII & II equals Form 1SFS"},{"$f":"IF('Company Information'!$B$2=\"Unconsolidated BSCR Model\",\"N/A\",IF('Schedule XVIII (Unconsolidated)'!G72=0,\"N/A\",IF('Schedule XVIII (Unconsolidated)'!G55=0,\"Schedule is Blank\",'Schedule XVIII (Unconsolidated)'!G76)))","v":{"$error":"#REF!"}},{"$f":"'Schedule XVIII (Unconsolidated)'!G78","v":{"$error":"#REF!"}},{"$f":"IF('Schedule XVIII (Unconsolidated)'!G72=0,0,('Schedule XVIII (Unconsolidated)'!G78)/'Schedule XVIII (Unconsolidated)'!G72)","v":{"$error":"#REF!"}},null,{"$f":"IF(D128=\"Schedule is Blank\",\"Blank\",\"\")","v":{"$error":"#REF!"}},{"$f":"IF(H128=\"Blank\",IF(P128=TRUE,\"Yes\",\"\"),\"\")","v":{"$error":"#REF!"}},null,{"$f":"IF(D128=\"False\",\"False.\",\"\")","v":{"$error":"#REF!"}},{"$f":"IF(K128=\"\",\"\",IF(P128=TRUE,\"Yes\",\"\"))","v":{"$error":"#REF!"}}]
[{"$f":"A127+1","v":35},{"$f":"HYPERLINK(\"#'Schedule XVIII (EBS)'!A1\",\"Schedule XVIII (EBS) Schedule of Risk Management - Particulars of Reinsurance Balances\")","v":"Schedule XVIII (EBS) Schedule of Risk Management - Particulars of Reinsurance Balances"}]
[null,"i)",{"$f":"HYPERLINK(\"#'Schedule XVIII (EBS)'!A1\",\"R/I Balances as reported on Schs XVIII(d) (EBS) & II (EBS) equals Form 1EBS\")","v":"R/I Balances as reported on Schs XVIII(d) (EBS) & II (EBS) equals Form 1EBS"},{"$f":"IF('Schedule XVIII'!G72=0,\"N/A\",IF('Schedule XVIII'!G55=0,\"Schedule is Blank\",'Schedule XVIII'!G76))","v":"N/A"},{"$f":"'Schedule XVIII'!G78","v":0},{"$f":"IF('Schedule XVIII'!G72=0,0,('Schedule XVIII'!G78)/'Schedule XVIII'!G72)","v":0},null,{"$f":"IF(D130=\"Schedule is Blank\",\"Blank\",\"\")","v":""},{"$f":"IF(H130=\"Blank\",IF(P130=TRUE,\"Yes\",\"\"),\"\")","v":""},null,{"$f":"IF(D130=\"False\",\"False.\",\"\")","v":""},{"$f":"IF(K130=\"\",\"\",IF(P130=TRUE,\"Yes\",\"\"))","v":""},null,null,null,false]
[{"$f":"A129+1","v":36},{"$f":"HYPERLINK(\"#'Schedule XIX'!A1\",\"Schedule XIX Particulars of Cash and Cash Equivalents\")","v":"Schedule XIX Particulars of Cash and Cash Equivalents"}]
[null,"i)",{"$f":"HYPERLINK(\"#'Schedule XIX'!A1\",\"Particulars of Cash and Cash Equivalents equals Form 1EBS\")","v":"Particulars of Cash and Cash Equivalents equals Form 1EBS"},{"$f":"IF('Schedule XIX'!H54=0,\"Schedule is Blank\",'Schedule XIX'!H74)","v":"Schedule is Blank"},{"$f":"'Schedule XIX'!H76","v":0},{"$f":"IF('Schedule XIX'!H54=0,0,('Schedule XIX'!H76)/'Schedule XIX'!H72)","v":0},null,{"$f":"IF(D132=\"Schedule is Blank\",\"Blank\",\"\")","v":"Blank"},{"$f":"IF(H132=\"Blank\",IF(P132=TRUE,\"Yes\",\"\"),\"\")","v":""},null,{"$f":"IF(D132=\"False\",\"False.\",\"\")","v":""},{"$f":"IF(K132=\"\",\"\",IF(P132=TRUE,\"Yes\",\"\"))","v":""},null,null,null,false]
[{"$f":"A131+1","v":37},{"$f":"HYPERLINK(\"#'Schedule XIXA'!A1\",\"Schedule XIXA Particulars of Cash and Cash Equivalents\")","v":"Schedule XIXA Particulars of Cash and Cash Equivalents"}]
[null,"i)",{"$f":"HYPERLINK(\"#'Schedule XIXA'!A1\",\"Particulars of Cash and Cash Equivalents equals Form 1EBS\")","v":"Particulars of Cash and Cash Equivalents equals Form 1EBS"},{"$f":"IF('Schedule XIXA'!F54=0,\"Schedule is Blank\",'Schedule XIXA'!F74)","v":"Schedule is Blank"},{"$f":"'Schedule XIXA'!F76","v":0},{"$f":"IF('Schedule XIXA'!F72=0,0,('Schedule XIXA'!F76)/'Schedule XIXA'!F72)","v":0},null,{"$f":"IF(D134=\"Schedule is Blank\",\"Blank\",\"\")","v":"Blank"},{"$f":"IF(H134=\"Blank\",IF(P134=TRUE,\"Yes\",\"\"),\"\")","v":""},null,{"$f":"IF(D134=\"False\",\"False.\",\"\")","v":""},{"$f":"IF(K134=\"\",\"\",IF(P134=TRUE,\"Yes\",\"\"))","v":""}]
[{"$f":"A133+1","v":38},{"$f":"HYPERLINK(\"#'Schedule XX'!A1\",\"Schedule XX Schedule of Currency Risk\")","v":"Schedule XX Schedule of Currency Risk"}]
[null,"i)",{"$f":"HYPERLINK(\"#'Schedule XX'!A1\",\"Currency Test of Minimum of 95% Has Been Met\")","v":"Currency Test of Minimum of 95% Has Been Met"},{"$f":"IF(+'Schedule XX'!L24=0,\"Schedule is Blank\",'Schedule XX'!L30)","v":"Schedule is Blank"},{"$f":"+'Schedule XX'!L27-'Schedule XX'!L24","v":0},{"$f":"IF(+'Schedule XX'!L27=0,0,('Schedule XX'!L24-'Schedule XX'!L27)/+'Schedule XX'!L27)","v":0},null,{"$f":"IF(D136=\"Schedule is Blank\",\"Blank\",\"\")","v":"Blank"},{"$f":"IF(H136=\"Blank\",IF(P136=TRUE,\"Yes\",\"\"),\"\")","v":""},null,{"$f":"IF(D136=\"False\",\"False.\",\"\")","v":""},{"$f":"IF(K136=\"\",\"\",IF(P136=TRUE,\"Yes\",\"\"))","v":""},null,null,null,false]
[null,"ii)",{"$f":"HYPERLINK(\"#'Schedule XX'!T36\",\"Liabilities and ECR Charge has been completed\")","v":"Liabilities and ECR Charge has been completed"},{"$f":"IF(COUNTIF('Schedule XX'!L34:P36,0)>0,\"Schedule is not Complete\",\"True\")","v":"Schedule is not Complete"},null,null,null,{"$f":"IF(D137=\"Schedule is not complete\",\"Blank\",\"\")","v":"Blank"},{"$f":"IF(H137=\"Blank\",IF(P137=TRUE,\"Yes\",\"\"),\"\")","v":""}]
[{"$f":"A135+1","v":39},{"$f":"HYPERLINK(\"#'Schedule XXA'!A1\",\"Schedule XXA Schedule of Currency Risk\")","v":"Schedule XXA Schedule of Currency Risk"}]
[null,"i)",{"$f":"HYPERLINK(\"#'Schedule XXA'!A1\",\"Currency Test of Minimum of 95% Has Been Met\")","v":"Currency Test of Minimum of 95% Has Been Met"},{"$f":"IF('Schedule XXA'!D33=0,\"Schedule is Blank\",'Schedule XXA'!D39)","v":"Schedule is Blank"},{"$f":"'Schedule XXA'!D36-'Schedule XXA'!D33-'Schedule XXA'!F33-'Schedule XXA'!H33-'Schedule XXA'!J33-'Schedule XXA'!L33","v":0},{"$f":"IF('Schedule XXA'!D33=0,0,('Schedule XXA'!D36-'Schedule XXA'!D33-'Schedule XXA'!F33-'Schedule XXA'!H33-'Schedule XXA'!J33-'Schedule XXA'!L33)/'Schedule XXA'!D36)","v":0},null,{"$f":"IF(D139=\"Schedule is Blank\",\"Blank\",\"\")","v":"Blank"},{"$f":"IF(H139=\"Blank\",IF(P139=TRUE,\"Yes\",\"\"),\"\")","v":""},null,{"$f":"IF(D139=\"False\",\"False.\",\"\")","v":""},{"$f":"IF(K139=\"\",\"\",IF(P139=TRUE,\"Yes\",\"\"))","v":""}]
[null,"ii)",{"$f":"HYPERLINK(\"#'Schedule XXA'!P45\",\"Liabilities and ECR Charge has been completed\")","v":"Liabilities and ECR Charge has been completed"},{"$f":"IF(COUNTIF('Schedule XXA'!D43:H45,0)>0,\"Schedule is not Complete\",\"True\")","v":"Schedule is not Complete"},null,null,null,{"$f":"IF(D140=\"Schedule is not complete\",\"Blank\",\"\")","v":"Blank"},{"$f":"IF(H140=\"Blank\",IF(P140=TRUE,\"Yes\",\"\"),\"\")","v":""}]
[{"$f":"A138+1","v":40},{"$f":"HYPERLINK(\"#'Schedule XXI'!A1\",\"Schedule XXI Schedule of Concentration Risk\")","v":"Schedule XXI Schedule of Concentration Risk"}]
[null,"i)",{"$f":"HYPERLINK(\"#'Schedule XXI'!A1\",\"Particulars of Concentration Risk\")","v":"Particulars of Concentration Risk"},{"$f":"IF('Schedule XXI'!M58=0,\"Schedule is Blank\",\"True\")","v":"Schedule is Blank"},null,null,null,{"$f":"IF(D142=\"Schedule is Blank\",\"Blank\",\"\")","v":"Blank"},{"$f":"IF(H142=\"Blank\",IF(P142=TRUE,\"Yes\",\"\"),\"\")","v":""},null,{"$f":"IF(D142=\"False\",\"False.\",\"\")","v":""},{"$f":"IF(K142=\"\",\"\",IF(P142=TRUE,\"Yes\",\"\"))","v":""},null,null,null,false]
[null,"ii)",{"$f":"HYPERLINK(\"#'Schedule XXI'!A1\",\"Particulars of Concentration Risk - Bond Type and BSCR Rating Complete\")","v":"Particulars of Concentration Risk - Bond Type and BSCR Rating Complete"},{"$f":"IF('Schedule XXI'!M58=0,\"Schedule is Blank\",IF(ROUND('Schedule XXI'!M58-'Concentration Risk (old)'!D111,0)=0,\"True\",\"Schedule is not Complete\"))","v":"Schedule is Blank"},{"$f":"'Schedule XXI'!M58-'Concentration Risk (old)'!D111","v":0},{"$f":"IF('Schedule XXI'!M58=0,0,('Schedule XXI'!M58-'Concentration Risk (old)'!D111)/'Schedule XXI'!M58)","v":0},null,{"$f":"IF(D143=\"Schedule is Blank\",\"Blank\",\"\")","v":"Blank"},{"$f":"IF(H143=\"Blank\",IF(P143=TRUE,\"Yes\",\"\"),\"\")","v":""}]
[{"$f":"A141+1","v":41},{"$f":"HYPERLINK(\"#'Schedule XXIA'!A1\",\"Schedule XXIA Schedule of Concentration Risk\")","v":"Schedule XXIA Schedule of Concentration Risk"}]
[null,"i)",{"$f":"HYPERLINK(\"#'Schedule XXIA'!A1\",\"Particulars of Concentration Risk\")","v":"Particulars of Concentration Risk"},{"$f":"IF('Schedule XXIA'!M58=0,\"Schedule is Blank\",\"True\")","v":"Schedule is Blank"},null,null,null,{"$f":"IF(D145=\"Schedule is Blank\",\"Blank\",\"\")","v":"Blank"},{"$f":"IF(H145=\"Blank\",IF(P145=TRUE,\"Yes\",\"\"),\"\")","v":""},null,{"$f":"IF(D145=\"False\",\"False.\",\"\")","v":""},{"$f":"IF(K145=\"\",\"\",IF(P145=TRUE,\"Yes\",\"\"))","v":""}]
[null,"ii)",{"$f":"HYPERLINK(\"#'Schedule XXIA'!A1\",\"Particulars of Concentration Risk - Bond Type and BSCR Rating Complete\")","v":"Particulars of Concentration Risk - Bond Type and BSCR Rating Complete"},{"$f":"IF('Schedule XXIA'!M58=0,\"Schedule is Blank\",IF(ROUND('Schedule XXIA'!M58-'Concentration Risk'!D110,0)=0,\"True\",\"Schedule is not Complete\"))","v":"Schedule is Blank"},{"$f":"'Schedule XXIA'!M58-'Concentration Risk'!D110","v":0},{"$f":"IF('Schedule XXIA'!M58=0,0,('Schedule XXIA'!M58-'Concentration Risk'!D110)/'Schedule XXIA'!M58)","v":0},null,{"$f":"IF(D146=\"Schedule is Blank\",\"Blank\",\"\")","v":"Blank"},{"$f":"IF(H146=\"Blank\",IF(P146=TRUE,\"Yes\",\"\"),\"\")","v":""}]
[]
[null,"CISSA Schedules"]
[{"$f":"A144+1","v":42},{"$f":"HYPERLINK(\"#'Schedule IX(a)'!A1\",\"Schedule IX(a) - CISSA Capital Summary\")","v":"Schedule IX(a) - CISSA Capital Summary"}]
[null,"i)",{"$f":"HYPERLINK(\"#'Schedule IX(a)'!A1\",\"CISSA Capital Summary\")","v":"CISSA Capital Summary"},{"$f":"IF('Schedule IX(a)'!E27=0,\"CISSA Capital Summary is Blank\",\"True\")","v":"CISSA Capital Summary is Blank"},null,null,null,{"$f":"IF(D150=\"CISSA Capital Summary is Blank\",\"Blank\",\"\")","v":"Blank"},{"$f":"IF(H150=\"Blank\",IF(P150=TRUE,\"Yes\",\"\"),\"\")","v":""}]
[null,"ii)",{"$f":"HYPERLINK(\"#'Schedule IX(a)'!B41:C47\",\"Insurer's Reason for Maintaining CISSA Capital Amount\")","v":"Insurer's Reason for Maintaining CISSA Capital Amount"},{"$f":"IF(COUNTIF('Schedule IX(a)'!B40:B46,\"Select\")=7,\"CISSA Section is Blank\",\"True\")","v":"True"},null,null,null,{"$f":"IF(D151=\"CISSA Section is Blank\",\"Blank\",\"\")","v":""},""]
[null,"iii)",{"$f":"HYPERLINK(\"#'Schedule IX(a)'!B51:C57\",\"Insurer's Method of Aggregating CISSA Capital\")","v":"Insurer's Method of Aggregating CISSA Capital"},{"$f":"IF(COUNTIF('Schedule IX(a)'!B50:B56,\"Select\")=7,\"CISSA Section is Blank\",\"True\")","v":"True"},null,null,null,"","",null,null,null,null,null,null,false]
[null,"iv)",{"$f":"HYPERLINK(\"#'Schedule IX(a)'!B61:C69\",\"Insurer's Contingency Plan\")","v":"Insurer's Contingency Plan"},{"$f":"IF(COUNTIF('Schedule IX(a)'!B60:B68,\"Select\")=9,\"CISSA Section is Blank\",\"True\")","v":"True"},null,null,null,"",""]
[null,"v)",{"$f":"HYPERLINK(\"#'Schedule IX(a)'!B71:G74\",\"Insurer's Confirmation of Contractual Commits under Stressed Situations\")","v":"Insurer's Confirmation of Contractual Commits under Stressed Situations"},{"$f":"IF('Schedule IX(a)'!G70=\"Select\",\"CISSA Section is Blank\",\"True\")","v":"True"},null,null,null,"",""]
[null,"vi)",{"$f":"HYPERLINK(\"#'Schedule IX(a)'!B76:G78\",\"Insurer's Confirmation of Issurance of Downstream of Debt\")","v":"Insurer's Confirmation of Issurance of Downstream of Debt"},{"$f":"IF('Schedule IX(a)'!G75=\"Select\",\"CISSA Section is Blank\",\"True\")","v":"True"},null,null,null,"",""]
[null,"vii)",{"$f":"HYPERLINK(\"#'Schedule IX(a)'!B80:G82\",\"Insurer's Confirmation of Receipt of Downstream of Debt\")","v":"Insurer's Confirmation of Receipt of Downstream of Debt"},{"$f":"IF('Schedule IX(a)'!G79=\"Select\",\"CISSA Section is Blank\",\"True\")","v":"True"},null,null,null,"",""]
[null,"viii)",{"$f":"HYPERLINK(\"#'Schedule IX(a)'!B84:G90\",\"Insurer's Confirmation of Transferrability of Assets\")","v":"Insurer's Confirmation of Transferrability of Assets"},{"$f":"IF('Schedule IX(a)'!G83=\"Select\",\"CISSA Section is Blank\",\"True\")","v":"True"},null,null,null,"",""]
[{"$f":"A149+1","v":43},{"$f":"HYPERLINK(\"#'Schedule IX(b)'!A1\",\"Schedule IX(b) - CISSA General Questions\")","v":"Schedule IX(b) - CISSA General Questions"}]
[null,"i)",{"$f":"HYPERLINK(\"#'Schedule IX(b)'!B8:F28\",\"CISSA Integration\")","v":"CISSA Integration"},{"$f":"IF('Schedule IX(b)'!F7=\"Select\",\"CISSA Section is Blank\",\"True\")","v":"True"},null,null,null,{"$f":"IF(D159=\"CISSA Section is Blank\",\"Blank\",\"\")","v":""},{"$f":"IF(H159=\"Blank\",IF(P159=TRUE,\"Yes\",\"\"),\"\")","v":""}]
[null,"ii)",{"$f":"HYPERLINK(\"#'Schedule IX(b)'!B60:F70\",\"CISSA General Questions\")","v":"CISSA General Questions"},{"$f":"IF(COUNTIF('Schedule IX(b)'!F59:F65,\"Select\")>=2,\"CISSA Section is Blank\",\"True\")","v":"True"},null,null,null,{"$f":"IF(D160=\"CISSA Section is Blank\",\"Blank\",\"\")","v":""},{"$f":"IF(H160=\"Blank\",IF(P160=TRUE,\"Yes\",\"\"),\"\")","v":""}]
[{"$f":"A158+1","v":44},{"$f":"HYPERLINK(\"#'Schedule IX(c)'!A1\",\"Schedule IX(c) - CISSA Assessment of Material Risks\")","v":"Schedule IX(c) - CISSA Assessment of Material Risks"}]
[]
[null,"Catastrophe Risk Schedules"]
[{"$f":"A161+1","v":45},{"$f":"HYPERLINK(\"#'Schedule X(a)'!A1\",\"Schedule X(a) Catastrophe Risk Return - EP Curve Total\")","v":"Schedule X(a) Catastrophe Risk Return - EP Curve Total"}]
[null,"i)",{"$f":"HYPERLINK(\"#'Schedule X(a)'!D10:H14\",\"Total Exceedance Probability Details\")","v":"Total Exceedance Probability Details"},{"$f":"IF(COUNTIF('Schedule X(a)'!E9:H13,0)>0,\"Section is Blank/Field Omitted\",\"True\")","v":"Section is Blank/Field Omitted"},null,null,null,{"$f":"IF(D165=\"Section is Blank/Field Omitted\",\"Blank\",\"\")","v":"Blank"},{"$f":"IF(H165=\"Blank\",IF(P165=TRUE,\"Yes\",\"\"),\"\")","v":""}]
[null,null,null,"Gross Occur","Gross Agg","Net Occ.",null,null,null,null,null,null,null,"Net Agg."]
[null,null,"50 Loss Return Period Reported in Millions",{"$f":"IF(SUM('Schedule X(a)'!$E$9:$H$13)=0,0,IF(Submission!$B$6=\"Units\",('Schedule X(a)'!E9*1000000)/'Form 1SFS (Consolidated)'!$M$149,('Schedule X(a)'!E9*1000)/'Form 1SFS (Consolidated)'!$M$149))","v":0},{"$f":"IF(SUM('Schedule X(a)'!$E$9:$H$13)=0,0,IF(Submission!$B$6=\"Units\",('Schedule X(a)'!F9*1000000)/'Form 1SFS (Consolidated)'!$M$149,('Schedule X(a)'!F9*1000)/'Form 1SFS (Consolidated)'!$M$149))","v":0},{"$f":"IF(SUM('Schedule X(a)'!$E$9:$H$13)=0,0,IF(Submission!$B$6=\"Units\",('Schedule X(a)'!G9*1000000)/'Form 1SFS (Consolidated)'!$M$149,('Schedule X(a)'!G9*1000)/'Form 1SFS (Consolidated)'!$M$149))","v":0},null,null,null,null,null,null,null,{"$f":"IF(SUM('Schedule X(a)'!$E$9:$H$13)=0,0,IF(Submission!$B$6=\"Units\",('Schedule X(a)'!H9*1000000)/'Form 1SFS (Consolidated)'!$M$149,('Schedule X(a)'!H9*1000)/'Form 1SFS (Consolidated)'!$M$149))","v":0}]
[null,null,"100 Loss Return Period Reported in Millions",{"$f":"IF(SUM('Schedule X(a)'!$E$9:$H$13)=0,0,IF(Submission!$B$6=\"Units\",('Schedule X(a)'!E10*1000000)/'Form 1SFS (Consolidated)'!$M$149,('Schedule X(a)'!E10*1000)/'Form 1SFS (Consolidated)'!$M$149))","v":0},{"$f":"IF(SUM('Schedule X(a)'!$E$9:$H$13)=0,0,IF(Submission!$B$6=\"Units\",('Schedule X(a)'!F10*1000000)/'Form 1SFS (Consolidated)'!$M$149,('Schedule X(a)'!F10*1000)/'Form 1SFS (Consolidated)'!$M$149))","v":0},{"$f":"IF(SUM('Schedule X(a)'!$E$9:$H$13)=0,0,IF(Submission!$B$6=\"Units\",('Schedule X(a)'!G10*1000000)/'Form 1SFS (Consolidated)'!$M$149,('Schedule X(a)'!G10*1000)/'Form 1SFS (Consolidated)'!$M$149))","v":0},null,null,null,null,null,null,null,{"$f":"IF(SUM('Schedule X(a)'!$E$9:$H$13)=0,0,IF(Submission!$B$6=\"Units\",('Schedule X(a)'!H10*1000000)/'Form 1SFS (Consolidated)'!$M$149,('Schedule X(a)'!H10*1000)/'Form 1SFS (Consolidated)'!$M$149))","v":0}]
[null,null,"250 Loss Return Period Reported in Millions",{"$f":"IF(SUM('Schedule X(a)'!$E$9:$H$13)=0,0,IF(Submission!$B$6=\"Units\",('Schedule X(a)'!E11*1000000)/'Form 1SFS (Consolidated)'!$M$149,('Schedule X(a)'!E11*1000)/'Form 1SFS (Consolidated)'!$M$149))","v":0},{"$f":"IF(SUM('Schedule X(a)'!$E$9:$H$13)=0,0,IF(Submission!$B$6=\"Units\",('Schedule X(a)'!F11*1000000)/'Form 1SFS (Consolidated)'!$M$149,('Schedule X(a)'!F11*1000)/'Form 1SFS (Consolidated)'!$M$149))","v":0},{"$f":"IF(SUM('Schedule X(a)'!$E$9:$H$13)=0,0,IF(Submission!$B$6=\"Units\",('Schedule X(a)'!G11*1000000)/'Form 1SFS (Consolidated)'!$M$149,('Schedule X(a)'!G11*1000)/'Form 1SFS (Consolidated)'!$M$149))","v":0},null,null,null,null,null,null,null,{"$f":"IF(SUM('Schedule X(a)'!$E$9:$H$13)=0,0,IF(Submission!$B$6=\"Units\",('Schedule X(a)'!H11*1000000)/'Form 1SFS (Consolidated)'!$M$149,('Schedule X(a)'!H11*1000)/'Form 1SFS (Consolidated)'!$M$149))","v":0}]
[null,null,"500 Loss Return Period Reported in Millions",{"$f":"IF(SUM('Schedule X(a)'!$E$9:$H$13)=0,0,IF(Submission!$B$6=\"Units\",('Schedule X(a)'!E12*1000000)/'Form 1SFS (Consolidated)'!$M$149,('Schedule X(a)'!E12*1000)/'Form 1SFS (Consolidated)'!$M$149))","v":0},{"$f":"IF(SUM('Schedule X(a)'!$E$9:$H$13)=0,0,IF(Submission!$B$6=\"Units\",('Schedule X(a)'!F12*1000000)/'Form 1SFS (Consolidated)'!$M$149,('Schedule X(a)'!F12*1000)/'Form 1SFS (Consolidated)'!$M$149))","v":0},{"$f":"IF(SUM('Schedule X(a)'!$E$9:$H$13)=0,0,IF(Submission!$B$6=\"Units\",('Schedule X(a)'!G12*1000000)/'Form 1SFS (Consolidated)'!$M$149,('Schedule X(a)'!G12*1000)/'Form 1SFS (Consolidated)'!$M$149))","v":0},null,null,null,null,null,null,null,{"$f":"IF(SUM('Schedule X(a)'!$E$9:$H$13)=0,0,IF(Submission!$B$6=\"Units\",('Schedule X(a)'!H12*1000000)/'Form 1SFS (Consolidated)'!$M$149,('Schedule X(a)'!H12*1000)/'Form 1SFS (Consolidated)'!$M$149))","v":0}]
[null,null,"1,000 Loss Return Period Reported in Millions"]
[null,null,"If ratios are highlighted in yellow, confirm if the figures are correctly reported in millions"]
[]
[{"$f":"A164+1","v":46},{"$f":"HYPERLINK(\"#'Schedule X(b)'!A1\",\"Schedule X(b) Catastrophe Risk Return - EP Curve Insurance\")","v":"Schedule X(b) Catastrophe Risk Return - EP Curve Insurance"}]
[null,"i)",{"$f":"HYPERLINK(\"#'Schedule X(b)'!D12:H16\",\"Insurance Exceedance Probability Details\")","v":"Insurance Exceedance Probability Details"},{"$f":"IF(COUNTIF('Schedule X(b)'!E11:H15,0)=20,\"Section is Blank/Field Omitted\",\"True\")","v":"Section is Blank/Field Omitted"},null,null,null,{"$f":"IF(D175=\"Section is Blank/Field Omitted\",\"Blank\",\"\")","v":"Blank"},{"$f":"IF(H175=\"Blank\",IF(P175=TRUE,\"Yes\",\"\"),\"\")","v":""}]
[{"$f":"A174+1","v":47},{"$f":"HYPERLINK(\"#'Schedule X(c)'!A1\",\"Schedule X(c) Catastrophe Risk Return - EP Curve Region Perils\")","v":"Schedule X(c) Catastrophe Risk Return - EP Curve Region Perils"}]
[null,"i)",{"$f":"HYPERLINK(\"#'Schedule X(c)'!A1\",\"Region Peril Exceedance Probability Details\")","v":"Region Peril Exceedance Probability Details"},{"$f":"IF((COUNTIF('Schedule X(c)'!D16:G20,0)+COUNTIF('Schedule X(c)'!D38:G42,0)+COUNTIF('Schedule X(c)'!D60:G64,0)+COUNTIF('Schedule X(c)'!D82:G86,0)+COUNTIF('Schedule X(c)'!D104:G108,0))>0,\"Section is Blank/Field Omitted\",\"True\")","v":"Section is Blank/Field Omitted"},null,null,null,{"$f":"IF(D177=\"Section is Blank/Field Omitted\",\"Blank\",\"\")","v":"Blank"},{"$f":"IF(H177=\"Blank\",IF(P177=TRUE,\"Yes\",\"\"),\"\")","v":""}]
[{"$f":"A176+1","v":48},{"$f":"HYPERLINK(\"#'Schedule X(d)'!A1\",\"Schedule X(d) Catastrophe Risk Return - Region Perils Exposure to Zones and Lines of Business\")","v":"Schedule X(d) Catastrophe Risk Return - Region Perils Exposure to Zones and Lines of Business"}]
[null,"i)",{"$f":"HYPERLINK(\"#'Schedule X(d)'!B10:H22\",\"Region Peril Zone Exposures\")","v":"Region Peril Zone Exposures"},{"$f":"IF((COUNTIF('Schedule X(d)'!C9:H21,0))=78,\"Section is Blank/Field Omitted\",\"True\")","v":"True"},null,null,null,{"$f":"IF(D179=\"Section is Blank/Field Omitted\",\"Blank\",\"\")","v":""},{"$f":"IF(H179=\"Blank\",IF(P179=TRUE,\"Yes\",\"\"),\"\")","v":""}]
[null,"ii)",{"$f":"HYPERLINK(\"#'Schedule X(d)'!B25:H49\",\"Region Peril Lines of Business Exposures\")","v":"Region Peril Lines of Business Exposures"},{"$f":"IF((COUNTIF('Schedule X(d)'!C25:H48,0))=144,\"Section is Blank/Field Omitted\",\"True\")","v":"True"},null,null,null,{"$f":"IF(D180=\"Section is Blank/Field Omitted\",\"Blank\",\"\")","v":""},{"$f":"IF(H180=\"Blank\",IF(P180=TRUE,\"Yes\",\"\"),\"\")","v":""}]
[{"$f":"A178+1","v":49},{"$f":"HYPERLINK(\"#'Schedule X(e)'!A1\",\"Schedule X(e) Catastrophe Risk Return - Accumulations Overview\")","v":"Schedule X(e) Catastrophe Risk Return - Accumulations Overview"}]
[null,"i)",{"$f":"HYPERLINK(\"#'Schedule X(e)'!A1\",\"Accumulations Overview Questions\")","v":"Accumulations Overview Questions"},{"$f":"IF((COUNTIF('Schedule X(e)'!C6,0)+COUNTIF('Schedule X(e)'!L8,0)+COUNTIF('Schedule X(e)'!C13,0)+COUNTIF('Schedule X(e)'!C16,0)+COUNTIF('Schedule X(e)'!C19,0)+COUNTIF('Schedule X(e)'!C22,0)+COUNTIF('Schedule X(e)'!C29,0)+COUNTIF('Schedule X(e)'!C32,0)+COUNTIF('Schedule X(e)'!C35,0)+COUNTIF('Schedule X(e)'!C43,0))>0,\"Section is Blank/Field Omitted\",\"True\")","v":"True"},null,null,null,{"$f":"IF(D182=\"Section is Blank/Field Omitted\",\"Blank\",\"\")","v":""},{"$f":"IF(H182=\"Blank\",IF(P182=TRUE,\"Yes\",\"\"),\"\")","v":""}]
[{"$f":"A181+1","v":50},{"$f":"HYPERLINK(\"#'Schedule X(f)'!A1\",\"Schedule X(f) Catastrophe Risk Return - Data Analysis\")","v":"Schedule X(f) Catastrophe Risk Return - Data Analysis"}]
[null,"i)",{"$f":"HYPERLINK(\"#'Schedule X(f)'!L13\",\"X(f) Total Gross Limits to X(a) Gross Limits Exposed\")","v":"X(f) Total Gross Limits to X(a) Gross Limits Exposed"},{"$f":"IF('Schedule X(f)'!L12=0,\"Schedule is Blank\",IF(ROUND(('Schedule X(f)'!L12-SUM('Schedule X(a)'!E23:E26)),0)=0,\"True\",\"False\"))","v":"Schedule is Blank"},{"$f":"('Schedule X(f)'!L12-SUM('Schedule X(a)'!E23:E26))","v":0},{"$f":"IF(SUM('Schedule X(a)'!E23:E26)=0,0,('Schedule X(f)'!L12-SUM('Schedule X(a)'!E23:E26))/SUM('Schedule X(a)'!E23:E26))","v":0},null,{"$f":"IF(D184=\"Schedule is Blank\",\"Blank\",\"\")","v":"Blank"},{"$f":"IF(H184=\"Blank\",IF(P184=TRUE,\"Yes\",\"\"),\"\")","v":""},null,{"$f":"IF(D184=\"False\",\"False.\",\"\")","v":""},{"$f":"IF(K184=\"\",\"\",IF(P184=TRUE,\"Yes\",\"\"))","v":""}]
[null,"ii)",{"$f":"HYPERLINK(\"#'Schedule X(f)'!M13\",\"X(f) Total Net Limits to X(a) Net Limits Exposed\")","v":"X(f) Total Net Limits to X(a) Net Limits Exposed"},{"$f":"IF('Schedule X(f)'!M12=0,\"Schedule is Blank\",IF(ROUND(('Schedule X(f)'!M12-SUM('Schedule X(a)'!J23:J26)),0)=0,\"True\",\"False\"))","v":"Schedule is Blank"},{"$f":"('Schedule X(f)'!M12-SUM('Schedule X(a)'!J23:J26))","v":0},{"$f":"IF(SUM('Schedule X(a)'!J23:J26)=0,0,('Schedule X(f)'!M12-SUM('Schedule X(a)'!J23:J26))/SUM('Schedule X(a)'!J23:J26))","v":0},null,{"$f":"IF(D185=\"Schedule is Blank\",\"Blank\",\"\")","v":"Blank"},""]
[null,"iii)",{"$f":"HYPERLINK(\"#'Schedule X(f)'!C6:M13\",\"All Contracts Written\")","v":"All Contracts Written"},{"$f":"IF(OR('Schedule X(f)'!K12=0,'Schedule X(f)'!L12=0,'Schedule X(f)'!M12=0),\"Schedule is Blank\",\"True\")","v":"Schedule is Blank"},null,null,null,{"$f":"IF(D186=\"Schedule is Blank\",\"Blank\",\"\")","v":"Blank"},""]
[null,"iv)",{"$f":"HYPERLINK(\"#'Schedule X(f)'!C15:M22\",\"Contracts that May Be Modeled to Contracts that are Modelable\")","v":"Contracts that May Be Modeled to Contracts that are Modelable"},{"$f":"IF('Schedule X(f)'!K10=0,\"True\",IF('Schedule X(f)'!K21=0,\"Section is Blank\",IF(ROUND('Schedule X(f)'!K21,0)=ROUND('Schedule X(f)'!K10,0),\"True\",\"May Be Modeled not Reconciled\")))","v":"True"},{"$f":"'Schedule X(f)'!K21-'Schedule X(f)'!K10","v":0},{"$f":"IF('Schedule X(f)'!K10=0,0,('Schedule X(f)'!K21-'Schedule X(f)'!K10)/'Schedule X(f)'!K10)","v":0},null,{"$f":"IF(D187=\"Section is Blank\",\"Blank\",\"\")","v":""},""]
[null,"v)",{"$f":"HYPERLINK(\"#'Schedule X(f)'!C24:M34\",\"Contracts Modeled to Contracts that May Be Modeled\")","v":"Contracts Modeled to Contracts that May Be Modeled"},{"$f":"IF('Schedule X(f)'!K19=0,\"True\",IF('Schedule X(f)'!K33=0,\"Section is Blank\",IF(ROUND('Schedule X(f)'!K33,0)=ROUND('Schedule X(f)'!K19,0),\"True\",\"Modeled not Reconciled\")))","v":"True"},{"$f":"'Schedule X(f)'!K33-'Schedule X(f)'!K19","v":0},{"$f":"IF('Schedule X(f)'!K33=0,0,('Schedule X(f)'!K33-'Schedule X(f)'!K19)/'Schedule X(f)'!K19)","v":0},null,{"$f":"IF(D188=\"Section is Blank\",\"Blank\",\"\")","v":""},""]
[null,"vi)",{"$f":"HYPERLINK(\"#'Schedule X(f)'!C39:M47\",\"Contracts Not Modeled to Contracts that May Be Modeled\")","v":"Contracts Not Modeled to Contracts that May Be Modeled"},{"$f":"IF('Schedule X(f)'!K20=0,\"True\",IF('Schedule X(f)'!K46=0,\"Section is Blank\",IF(ROUND('Schedule X(f)'!K46,0)=ROUND('Schedule X(f)'!K20,0),\"True\",\"Not Modeled not Reconciled\")))","v":"True"},{"$f":"'Schedule X(f)'!K46-'Schedule X(f)'!K20","v":0},{"$f":"IF('Schedule X(f)'!K46=0,0,('Schedule X(f)'!K46-'Schedule X(f)'!K20)/'Schedule X(f)'!K20)","v":0},null,{"$f":"IF(D189=\"Section is Blank\",\"Blank\",\"\")","v":""},""]
[null,"vii)",{"$f":"HYPERLINK(\"#'Schedule X(f)'!C56:M65\",\"Contracts Not Able to Model to Contracts that are Not Modelable\")","v":"Contracts Not Able to Model to Contracts that are Not Modelable"},{"$f":"IF('Schedule X(f)'!K11=0,\"True\",IF('Schedule X(f)'!K64=0,\"Section is Blank\",IF(ROUND('Schedule X(f)'!K64,0)=ROUND('Schedule X(f)'!K11,0),\"True\",\"Unable to Model not Reconciled\")))","v":"True"},{"$f":"'Schedule X(f)'!K64-'Schedule X(f)'!K11","v":0},{"$f":"IF('Schedule X(f)'!K64=0,0,('Schedule X(f)'!K64-'Schedule X(f)'!K11)/'Schedule X(f)'!K11)","v":0},null,{"$f":"IF(D190=\"Section is Blank\",\"Blank\",\"\")","v":""},""]
[{"$f":"A183+1","v":51},{"$f":"HYPERLINK(\"#'Schedule X(g)'!A1\",\"Schedule X(g) Catastrophe Risk Return - Reinsurance Disclosures\")","v":"Schedule X(g) Catastrophe Risk Return - Reinsurance Disclosures"}]
[null,"i)",{"$f":"HYPERLINK(\"#'Schedule X(g)'!A1\",\"Catastrophe Risk Reinsurance Disclosures\")","v":"Catastrophe Risk Reinsurance Disclosures"},{"$f":"IF((COUNTIF('Schedule X(g)'!D10:I18,0))=54,\"Schedule is Blank\",\"True\")","v":"Schedule is Blank"},null,null,null,{"$f":"IF(D192=\"Schedule is Blank\",\"Blank\",\"\")","v":"Blank"},{"$f":"IF(H192=\"Blank\",IF(P192=TRUE,\"Yes\",\"\"),\"\")","v":""}]
[{"$f":"A191+1","v":52},{"$f":"HYPERLINK(\"#'Schedule X(h)'!A1\",\"Schedule X(h) Catastrophe Risk Return - Insurance Terrorism Exposure\")","v":"Schedule X(h) Catastrophe Risk Return - Insurance Terrorism Exposure"}]
[null,"i)",{"$f":"HYPERLINK(\"#'Schedule X(h)'!A6:K19\",\"Insurance Terrorism Exposure to Conventional Terrorism\")","v":"Insurance Terrorism Exposure to Conventional Terrorism"},{"$f":"IF((COUNTIF('Schedule X(h)'!D9:I18,0))=60,\"Schedule is Blank\",\"True\")","v":"Schedule is Blank"},null,null,null,{"$f":"IF(D194=\"Schedule is Blank\",\"Blank\",\"\")","v":"Blank"},{"$f":"IF(H194=\"Blank\",IF(P194=TRUE,\"Yes\",\"\"),\"\")","v":""}]
[null,"ii)",{"$f":"HYPERLINK(\"#'Schedule X(h)'!A22:K35\",\"Insurance Terrorism Exposure to NBCR Terrorism\")","v":"Insurance Terrorism Exposure to NBCR Terrorism"},{"$f":"IF((COUNTIF('Schedule X(h)'!D24:I33,0))=60,\"Schedule is Blank\",\"True\")","v":"Schedule is Blank"},null,null,null,{"$f":"IF(D195=\"Schedule is Blank\",\"Blank\",\"\")","v":"Blank"},{"$f":"IF(H195=\"Blank\",IF(P195=TRUE,\"Yes\",\"\"),\"\")","v":""}]
[{"$f":"A193+1","v":53},{"$f":"HYPERLINK(\"#'Schedule X(i)'!A1\",\"Schedule X(i) Catastrophe Risk Return - Reinsurance Terrorism Exposure\")","v":"Schedule X(i) Catastrophe Risk Return - Reinsurance Terrorism Exposure"}]
[null,"i)",{"$f":"HYPERLINK(\"#'Schedule X(i)'!A7:K18\",\"Reinsurance Terrorism Exposure to Conventional Terrorism\")","v":"Reinsurance Terrorism Exposure to Conventional Terrorism"},{"$f":"IF((COUNTIF('Schedule X(i)'!E9:J18,0))=60,\"Schedule is Blank\",\"True\")","v":"Schedule is Blank"},null,null,null,{"$f":"IF(D197=\"Schedule is Blank\",\"Blank\",\"\")","v":"Blank"},{"$f":"IF(H197=\"Blank\",IF(P197=TRUE,\"Yes\",\"\"),\"\")","v":""}]
[null,"ii)",{"$f":"HYPERLINK(\"#'Schedule X(h)'!A21:K32\",\"Reinsurance Terrorism Exposure to NBCR Terrorism\")","v":"Reinsurance Terrorism Exposure to NBCR Terrorism"},{"$f":"IF((COUNTIF('Schedule X(i)'!E24:J33,0))=60,\"Schedule is Blank\",\"True\")","v":"Schedule is Blank"},null,null,null,{"$f":"IF(D198=\"Schedule is Blank\",\"Blank\",\"\")","v":"Blank"},{"$f":"IF(H198=\"Blank\",IF(P198=TRUE,\"Yes\",\"\"),\"\")","v":""},null,null,null,null,null,null,false]
[{"$f":"A196+1","v":54},{"$f":"HYPERLINK(\"#'Schedule X(j)'!A1\",\"Schedule X(j) Catastrophe Risk Return - Assumed Exchange Rates\")","v":"Schedule X(j) Catastrophe Risk Return - Assumed Exchange Rates"}]
[]
[null,"Loss Triangles/Loss Reserve Reconciliation (Class 4 and 3B Insurers Only)"]
[{"$f":"A199+1","v":55},{"$f":"HYPERLINK(\"#'Schedule XI(a)'!A1\",\"Schedule XI(a) Schedule of Loss Triangles - Summary\")","v":"Schedule XI(a) Schedule of Loss Triangles - Summary"}]
[{"$f":"A202+1","v":56},{"$f":"HYPERLINK(\"#'Sch XI(a)(i)'!A1\",\"Schedule XI(a)(i) Schedule of Loss Triangles - Property Castarophe\")","v":"Schedule XI(a)(i) Schedule of Loss Triangles - Property Castarophe"}]
[57,{"$f":"HYPERLINK(\"#'Sch XI(a)(ii)'!A1\",\"Schedule XI(a)(ii) Schedule of Loss Triangles - Property\")","v":"Schedule XI(a)(ii) Schedule of Loss Triangles - Property"}]
[58,{"$f":"HYPERLINK(\"#'Sch XI(a)(iii)'!A1\",\"Schedule XI(a)(iii) Schedule of Loss Triangles - Property Non-Proportional\")","v":"Schedule XI(a)(iii) Schedule of Loss Triangles - Property Non-Proportional"}]
[59,{"$f":"HYPERLINK(\"#'Sch XI(a)(iv)'!A1\",\"Schedule XI(a)(iv) Schedule of Loss Triangles - Casualty\")","v":"Schedule XI(a)(iv) Schedule of Loss Triangles - Casualty"}]
[60,{"$f":"HYPERLINK(\"#'Sch XI(a)(v)'!A1\",\"Schedule XI(a)(v) Schedule of Loss Triangles - Casualty Non-Proportional\")","v":"Schedule XI(a)(v) Schedule of Loss Triangles - Casualty Non-Proportional"}]
[61,{"$f":"HYPERLINK(\"#'Sch XI(a)(vi)'!A1\",\"Schedule XI(a)(vi) Schedule of Loss Triangles - Financial Lines\")","v":"Schedule XI(a)(vi) Schedule of Loss Triangles - Financial Lines"}]
[62,{"$f":"HYPERLINK(\"#'Sch XI(a)(vii)'!A1\",\"Schedule XI(a)(vii) Schedule of Loss Triangles - Other Specialty Lines\")","v":"Schedule XI(a)(vii) Schedule of Loss Triangles - Other Specialty Lines"}]
[63,{"$f":"HYPERLINK(\"#'Sch XI(a)(viii)'!A1\",\"Schedule XI(a)(viii) Schedule of Loss Triangles - Structured/Finite Lines\")","v":"Schedule XI(a)(viii) Schedule of Loss Triangles - Structured/Finite Lines"}]
[]
[{"$f":"A210+1","v":64},{"$f":"HYPERLINK(\"#'Schedule XI(b) (EBS)'!A1\",\"Schedule XI(b) Schedule of Reconciliation - Summary\")","v":"Schedule XI(b) Schedule of Reconciliation - Summary"}]
[null,"i)",{"$f":"HYPERLINK(\"#'Schedule XI(b) (EBS)'!A1\",\"Schedule of Loss Reserve Reconciliation (EBS)\")","v":"Schedule of Loss Reserve Reconciliation (EBS)"},{"$f":"IF('Company Information'!F11=\"Class 3A\",\"N/A\",IF('Schedule XI(b)'!D24=0,\"Schedule is Blank\",'Schedule XI(b)'!D26))","v":"Schedule is Blank"},{"$f":"'Form 1EBS'!F115-'Schedule XI(b)'!D24","v":0},{"$f":"IF('Schedule XI(b)'!D24=0,0,('Form 1EBS'!F115-'Schedule XI(b)'!D24)/'Form 1EBS'!F115)","v":0},null,{"$f":"IF(D213=\"Schedule is Blank\",\"Blank\",\"\")","v":"Blank"},{"$f":"IF(H213=\"Blank\",IF(P213=TRUE,\"Yes\",\"\"),\"\")","v":""},null,{"$f":"IF(D213=\"False\",\"False.\",\"\")","v":""},{"$f":"IF(K213=\"\",\"\",IF(P213=TRUE,\"Yes\",\"\"))","v":""}]
[{"$f":"A212+1","v":65},{"$f":"HYPERLINK(\"#'Sch XI(b)(i) (EBS)'!A1\",\"Schedule XI(b)(i) Schedule of Reserve Reconciliation - Property Castarophe\")","v":"Schedule XI(b)(i) Schedule of Reserve Reconciliation - Property Castarophe"}]
[{"$f":"A214+1","v":66},{"$f":"HYPERLINK(\"#'Sch XI(b)(ii) (EBS)'!A1\",\"Schedule XI(b)(ii) Schedule of Reserve Reconciliation - Property\")","v":"Schedule XI(b)(ii) Schedule of Reserve Reconciliation - Property"}]
[67,{"$f":"HYPERLINK(\"#'Sch XI(b)(iii) (EBS)'!A1\",\"Schedule XI(b)(iii) Schedule of Reserve Reconciliation - Property Non-Proportional\")","v":"Schedule XI(b)(iii) Schedule of Reserve Reconciliation - Property Non-Proportional"}]
[68,{"$f":"HYPERLINK(\"#'Sch XI(b)(iv) (EBS)'!A1\",\"Schedule XI(b)(iv) Schedule of Reserve Reconciliation - Casualty\")","v":"Schedule XI(b)(iv) Schedule of Reserve Reconciliation - Casualty"}]
[69,{"$f":"HYPERLINK(\"#'Sch XI(b)(v) (EBS)'!A1\",\"Schedule XI(b)(v) Schedule of Reserve Reconciliation - Casualty Non-Proportional\")","v":"Schedule XI(b)(v) Schedule of Reserve Reconciliation - Casualty Non-Proportional"}]
[70,{"$f":"HYPERLINK(\"#'Sch XI(b)(vi) (EBS)'!A1\",\"Schedule XI(b)(vi) Schedule of Reserve Reconciliation - Financial Lines\")","v":"Schedule XI(b)(vi) Schedule of Reserve Reconciliation - Financial Lines"}]
[71,{"$f":"HYPERLINK(\"#'Sch XI(b)(vii) (EBS)'!A1\",\"Schedule XI(b)(vii) Schedule of Reserve Reconciliation - Other Specialty Lines\")","v":"Schedule XI(b)(vii) Schedule of Reserve Reconciliation - Other Specialty Lines"}]
[72,{"$f":"HYPERLINK(\"#'Sch XI(b)(viii) (EBS)'!A1\",\"Schedule XI(b)(viii) Schedule of Reserve Reconciliation - Structured/Finite Lines\")","v":"Schedule XI(b)(viii) Schedule of Reserve Reconciliation - Structured/Finite Lines"}]
[]
[null,"Eligible Capital"]
[{"$f":"A221+1","v":73},{"$f":"HYPERLINK(\"#'Schedule XII(a)'!A1\",\"Schedule XII(a) - Schedule of Eligible Capital\")","v":"Schedule XII(a) - Schedule of Eligible Capital"}]
[null,"i)",{"$f":"HYPERLINK(\"#'Schedule XII(a)'!G26:G30\",\"Policyholder Obligations equals Form 1EBS\")","v":"Policyholder Obligations equals Form 1EBS"},{"$f":"IF('Schedule XII(a)'!H30=0,\"N/A\",IF('Schedule XII(a)'!G28=0,\"Schedule Not Completed\",IF(ROUND('Schedule XII(a)'!H32=0,0),\"True\",\"False\")))","v":"N/A"},{"$f":"'Schedule XII(a)'!G28-('Form 1EBS'!F98+'Form 1EBS'!F108)","v":0},{"$f":"IF('Schedule XII(a)'!G28=0,0,('Schedule XII(a)'!G28-('Form 1EBS'!F98+'Form 1EBS'!F108))/('Form 1EBS'!F98+'Form 1EBS'!F108))","v":0},null,{"$f":"IF(D225=\"Schedule Not Completed\",\"Blank\",\"\")","v":""},{"$f":"IF(H225=\"Blank\",IF(P225=TRUE,\"Yes\",\"\"),\"\")","v":""}]
[]
[null,"ii)",{"$f":"HYPERLINK(\"#'Schedule XII(a) (EBS)'!H26:H30\",\"Encumbered Assets equals Form 1EBS\")","v":"Encumbered Assets equals Form 1EBS"},{"$f":"IF('Schedule XII(a)'!H34=0,\"N/A\",IF('Schedule XII(a)'!H28=0,\"Schedule Not Completed\",IF('Form 1EBS'!F193='Schedule XII(a)'!H28,\"True\",\"False\")))","v":{"$error":"#REF!"}},{"$f":"'Schedule XII(a)'!H28-'Form 1EBS'!F193","v":{"$error":"#REF!"}},{"$f":"IF('Schedule XII(a)'!H28=0,0,('Schedule XII(a)'!H28-'Form 1EBS'!F193)/'Form 1EBS'!F193)","v":0},null,{"$f":"IF(D227=\"Schedule Not Completed\",\"Blank\",\"\")","v":{"$error":"#REF!"}},{"$f":"IF(H227=\"Blank\",IF(P227=TRUE,\"Yes\",\"\"),\"\")","v":{"$error":"#REF!"}}]
[null,"iii)",{"$f":"HYPERLINK(\"#'Schedule XII(a)'!J79:J81\",\"Eligible Capital equals Economic Available Capital & Surplus\")","v":"Eligible Capital equals Economic Available Capital & Surplus"},{"$f":"IF('Schedule XII(a)'!J79=0,\"N/A\",'Schedule XII(a)'!J81)","v":"N/A"},{"$f":"'Schedule XII(a)'!J83","v":0},{"$f":"IF('Schedule XII(a)'!J79=0,0,('Schedule XII(a)'!J83/'Schedule XII(a)'!J9))","v":0},null,{"$f":"IF(D228=\"N/A\",\"Blank\",\"\")","v":"Blank"},{"$f":"IF(H228=\"Blank\",IF(P228=TRUE,\"Yes\",\"\"),\"\")","v":""},null,{"$f":"IF(D228=\"False\",\"False.\",\"\")","v":""},{"$f":"IF(K228=\"\",\"\",IF(P228=TRUE,\"Yes\",\"\"))","v":""}]
[{"$f":"A224+1","v":74},{"$f":"HYPERLINK(\"#'Schedule XII(b)'!A1\",\"Schedule XII(b) - Schedule of Eligible Capital - Additional Details\")","v":"Schedule XII(b) - Schedule of Eligible Capital - Additional Details"}]
[]
[null,"Schedule XVI - Schedule of Regulated Non-Insurance Financial Operating Entities"]
[{"$f":"A224+1","v":74},{"$f":"HYPERLINK(\"#'Schedule XVI'!A1\",\"Schedule XVI - Schedule of Regulated Non-Insurance Financial Operating Entities\")","v":"Schedule XVI - Schedule of Regulated Non-Insurance Financial Operating Entities"}]
[null,"i)",{"$f":"HYPERLINK(\"#'Schedule XVI'!A1\",\"Schedule of Regulated Non-Insurance Financial Operating Entities\")","v":"Schedule of Regulated Non-Insurance Financial Operating Entities"},{"$f":"IF('Schedule XVI'!B11=0,\"Schedule is Blank\",\"True\")","v":"Schedule is Blank"},null,null,null,{"$f":"IF(D233=\"Schedule is Blank\",\"Blank\",\"\")","v":"Blank"},{"$f":"IF(H233=\"Blank\",IF(P233=TRUE,\"Yes\",\"\"),\"\")","v":""}]
[]
[null,"Schedule XVII - Schedule of Solvency"]
[{"$f":"A232+1","v":75},{"$f":"HYPERLINK(\"#'Schedule XVII'!A1\",\"Schedule XVII - Schedule of Solvency\")","v":"Schedule XVII - Schedule of Solvency"}]
[null,"i)",{"$f":"HYPERLINK(\"#'Schedule XVII'!A1\",\"Schedule of Solvency\")","v":"Schedule of Solvency"},{"$f":"IF('Schedule XVII'!J211=0,\"Schedule is Blank\",\"True\")","v":"Schedule is Blank"},null,null,null,{"$f":"IF(D237=\"Schedule is Blank\",\"Blank\",\"\")","v":"Blank"},{"$f":"IF(H237=\"Blank\",IF(P237=TRUE,\"Yes\",\"\"),\"\")","v":""},null,null,null,null,null,null,false]
[]
[null,"Commercial Insurers Risk Assessment (CIRA)"]
[{"$f":"A236+1","v":76},{"$f":"HYPERLINK(\"#'Corp Gov'!A1\",\"Corporate Goverance\")","v":"Corporate Goverance"},null,{"$f":"IF('Corp Gov'!D17=0,\"Schedule is Blank\",\"True\")","v":"Schedule is Blank"},null,null,null,{"$f":"IF(D240=\"Schedule is Blank\",\"Blank\",\"\")","v":"Blank"},{"$f":"IF(H240=\"Blank\",IF(P240=TRUE,\"Yes\",\"\"),\"\")","v":""}]
[{"$f":"A240+1","v":77},{"$f":"HYPERLINK(\"#'Risk Man'!A1\",\"Risk Management\")","v":"Risk Management"},null,{"$f":"IF('Risk Man'!D18=0,\"Schedule is Blank\",\"True\")","v":"Schedule is Blank"},null,null,null,"Blank",""]
[{"$f":"A241+1","v":78},{"$f":"HYPERLINK(\"#'Identification'!A1\",\"Identification (Class 4 & 3B Insurers Only)\")","v":"Identification (Class 4 & 3B Insurers Only)"},null,{"$f":"IF('Company Information'!$F$11=\"Class 3A\",\"N/A\",IF(Identification!M19=0,\"Schedule is Blank\",\"True\"))","v":"Schedule is Blank"},null,null,null,"Blank",""]
[{"$f":"A242+1","v":79},{"$f":"HYPERLINK(\"#'Measurement'!A1\",\"Measurement (Class 4 & 3B Insurers Only)\")","v":"Measurement (Class 4 & 3B Insurers Only)"},null,{"$f":"IF('Company Information'!$F$11=\"Class 3A\",\"N/A\",IF(Measurement!M19=0,\"Schedule is Blank\",\"True\"))","v":"Schedule is Blank"},null,null,null,"Blank",""]
[{"$f":"A243+1","v":80},{"$f":"HYPERLINK(\"#'Response'!A1\",\"Response (Class 4 & 3B Insurers Only)\")","v":"Response (Class 4 & 3B Insurers Only)"},null,{"$f":"IF('Company Information'!$F$11=\"Class 3A\",\"N/A\",IF(Response!M19=0,\"Schedule is Blank\",\"True\"))","v":"Schedule is Blank"},null,null,null,"Blank",""]
[{"$f":"A244+1","v":81},{"$f":"HYPERLINK(\"#'Monitoring & Reporting'!A1\",\"Monitoring & Reporting (Class 4 & 3B Insurers Only)\")","v":"Monitoring & Reporting (Class 4 & 3B Insurers Only)"},null,{"$f":"IF('Company Information'!$F$11=\"Class 3A\",\"N/A\",IF('Monitoring & Reporting'!M19=0,\"Schedule is Blank\",\"True\"))","v":"Schedule is Blank"},null,null,null,"Blank",""]
[]
[null,"Summary"]
[{"$f":"A245+1","v":82},{"$f":"HYPERLINK(\"#'Summary'!A1\",\"Summary Tab\")","v":"Summary Tab"}]
[null,"i)",{"$f":"HYPERLINK(\"#'Summary'!B60:F60\",\"ECR Ratio Met\")","v":"ECR Ratio Met"},{"$f":"IF(Summary!N88=0,\"EBS is Blank\",IF(Summary!N122>100%,\"ECR Ratio of \"&ROUND(Summary!N122,2)*100&\"% Met\",\"ECR of \"&ROUND(Summary!N122,2)*100&\"% is not Met\"))","v":"EBS is Blank"}]
[]
[null,"Company Specific Parameters"]
[{"$f":"A248+1","v":83},{"$f":"HYPERLINK(\"#'Company Specific Parameters'!A1\",\"Company Specific Parameters\")","v":"Company Specific Parameters"}]
[null,"i)",{"$f":"HYPERLINK(\"#'Company Specific Parameters'!A1\",\"Capital Charge has been amended\")","v":"Capital Charge has been amended"},{"$f":"IF(Summary!N84=0,\"No\",\"Adjustment made to a BSCR Capital Charge\")","v":"No"},{"$f":"Summary!G84","v":0},{"$f":"IF(Summary!G84=0,0,(Summary!G84-Summary!G72)/Summary!G72)","v":0}]
[]
[null,null,null,null,null,null,null,null,null,null,""]

{"sheet":"Index","index":5,"n_rows":65,"n_cols":40,"rows_kept":65,"cut":false,"hidden":false,"merged":[[58,39,59,44],[40,39,41,44],[58,2,59,7],[37,39,38,44],[37,32,38,37],[37,25,38,30],[58,9,59,14],[58,16,59,21],[46,25,47,30],[37,16,38,21],[52,9,53,14],[52,2,53,7],[46,2,47,7],[46,9,47,14],[46,16,47,21],[28,39,29,44],[52,16,53,21],[28,32,29,37],[40,2,41,7],[40,9,41,14],[37,2,38,7],[28,9,29,14],[31,2,32,7],[28,16,29,21],[28,2,29,7],[4,2,5,7],[4,9,5,14],[19,2,20,7],[19,9,20,14],[16,2,17,7],[7,2,8,7],[16,9,17,14],[13,2,14,7],[22,25,23,30],[19,16,20,21],[13,16,14,21],[16,16,17,21],[64,2,65,7],[22,9,23,14],[25,2,26,7],[22,2,23,7],[25,9,26,14],[25,16,26,21],[61,2,62,7],[22,16,23,21],[13,39,14,44],[19,32,20,37],[19,39,20,44],[13,9,14,14],[4,39,5,44],[4,32,5,37],[16,32,17,37],[16,39,17,44],[13,32,14,37],[4,25,5,30],[16,25,17,30],[4,16,5,21],[13,25,14,30],[19,25,20,30],[22,32,23,37],[22,39,23,44],[64,9,65,14],[25,39,26,44],[61,32,62,37],[61,25,62,30],[61,9,62,14],[58,25,59,30],[28,25,29,30],[37,9,38,14],[58,32,59,37],[61,39,62,44],[40,32,41,37],[25,25,26,30],[25,32,26,37],[61,16,62,21]]}
[null,"INDEX"]
[null,{"$f":"'Company Information'!C7","v":"Enter Company Name"}]
[null,"CLICK BUTTON TO NAVIGATE"]
[]
[null,null,{"$f":"HYPERLINK(\"#'Submission'!A1\",\"Submission\")","v":"Submission"},null,null,null,null,null,null,{"$f":"HYPERLINK(\"#'Content'!A1\",\"Content\")","v":"Content"},null,null,null,null,null,null,{"$f":"HYPERLINK(\"#'Attachments'!A1\",\"Attachments\")","v":"Attachments"},null,null,null,null,null,null,null,null,{"$f":"HYPERLINK(\"#'Zones'!A1\",\"Zones\")","v":"Zones"},null,null,null,null,null,null,{"$f":"HYPERLINK(\"#'Company Information'!A1\",\"Company Information\")","v":"Company Information"},null,null,null,null,null,null,{"$f":"HYPERLINK(\"#'Declaration'!A1\",\"Declaration Sheet\")","v":"Declaration Sheet"}]
[]
[]
[null,null,{"$f":"HYPERLINK(\"#'SAR & Sanc. (All)'!A1\",\"SAR & Sanctions (All insurers)\")","v":"SAR & Sanctions (All insurers)"}]
[]
[]
[]
[null,"STATUTORY AND BSCR SCHEDULES"]
[]
[null,null,{"$f":"HYPERLINK(\"#'Information Sheet'!A1\",\"Information Sheet\")","v":"Information Sheet"},null,null,null,null,null,null,{"$f":"HYPERLINK(\"#'Form 1SFS (Unconsolidated)'!A1\",\"Form 1SFS \nBalance Sheet\")","v":"Form 1SFS \nBalance Sheet"},null,null,null,null,null,null,{"$f":"HYPERLINK(\"#'Form 2SFS (Unconsolidated)'!A1\",\"Form 2SFS \nIncome Stmt\")","v":"Form 2SFS \nIncome Stmt"},null,null,null,null,null,null,null,null,{"$f":"HYPERLINK(\"#'Form 8SFS (Unconsolidated)'!A1\",\"Form 8SFS \nCapital & Surplus\")","v":"Form 8SFS \nCapital & Surplus"},null,null,null,null,null,null,{"$f":"HYPERLINK(\"#'Form 1SFS (Consolidated)'!A1\",\"Form 1SFS \nBalance Sheet\")","v":"Form 1SFS \nBalance Sheet"},null,null,null,null,null,null,{"$f":"HYPERLINK(\"#'Form 2SFS (Consolidated)'!A1\",\"Form 2SFS \nIncome Stmt\")","v":"Form 2SFS \nIncome Stmt"}]
[]
[]
[null,null,{"$f":"HYPERLINK(\"#'Form 8SFS (Consolidated)'!A1\",\"Form 8SFS \nCapital & Surplus\")","v":"Form 8SFS \nCapital & Surplus"},null,null,null,null,null,null,{"$f":"HYPERLINK(\"#'Schedule II'!A1\",\"Sch II     Investments\")","v":"Sch II     Investments"},null,null,null,null,null,null,{"$f":"HYPERLINK(\"#'Schedule IIA'!A1\",\"Sch IIA          Funds Held\")","v":"Sch IIA          Funds Held"},null,null,null,null,null,null,null,null,{"$f":"HYPERLINK(\"#'Investment Reconciliation'!A1\",\"Investment Reconciliation\")","v":"Investment Reconciliation"},null,null,null,null,null,null,{"$f":"HYPERLINK(\"#'Schedule IIB'!A1\",\"Sch IIB  Investments\")","v":"Sch IIB  Investments"},null,null,null,null,null,null,{"$f":"HYPERLINK(\"#'Schedule IIC'!A1\",\"Sch IIC Funds Held\")","v":"Sch IIC Funds Held"}]
[]
[]
[null,null,{"$f":"HYPERLINK(\"#'SCHEDULE IID'!A1\",\"Sch IID Segregated Acc\")","v":"Sch IID Segregated Acc"},null,null,null,null,null,null,{"$f":"HYPERLINK(\"#'SCHEDULE IIE'!A1\",\"Sch IIE Deposits\")","v":"Sch IIE Deposits"},null,null,null,null,null,null,{"$f":"HYPERLINK(\"#'SCHEDULE IIF'!A1\",\"Sch IIF \nOther Sundry\")","v":"Sch IIF \nOther Sundry"},null,null,null,null,null,null,null,null,{"$f":"HYPERLINK(\"#'SCHEDULE III'!A1\",\"Sch III \nReserves By LOB\")","v":"Sch III \nReserves By LOB"},null,null,null,null,null,null,{"$f":"HYPERLINK(\"#'SCHEDULE IIIA'!A1\",\"Sch IIIA\nReserves by Zone\")","v":"Sch IIIA\nReserves by Zone"},null,null,null,null,null,null,{"$f":"HYPERLINK(\"#'SCHEDULE IV'!A1\",\"Sch IV\nPremium by LOB\")","v":"Sch IV\nPremium by LOB"}]
[]
[]
[null,null,{"$f":"HYPERLINK(\"#'SCHEDULE IVC'!A1\",\"Sch IVC Premium by Zone\")","v":"Sch IVC Premium by Zone"},null,null,null,null,null,null,{"$f":"HYPERLINK(\"#'SCHEDULE IVD'!A1\",\"Sch IVD Exposure by LOB\")","v":"Sch IVD Exposure by LOB"},null,null,null,null,null,null,{"$f":"HYPERLINK(\"#'SCHEDULE IVE'!A1\",\"Sch IVE Exposure by Zone\")","v":"Sch IVE Exposure by Zone"},null,null,null,null,null,null,null,null,{"$f":"HYPERLINK(\"#'SCHEDULE V'!A1\",\"Sch V \nRisk Mgmt\")","v":"Sch V \nRisk Mgmt"},null,null,null,null,null,null,{"$f":"HYPERLINK(\"#'SCHEDULE V(a)'!A1\",\"Sch V(a) Governance\")","v":"Sch V(a) Governance"},null,null,null,null,null,null,{"$f":"HYPERLINK(\"#'SCHEDULE V(c)'!A1\",\"Sch V(c) \nIntra-Group\")","v":"Sch V(c) \nIntra-Group"}]
[]
[]
[null,null,{"$f":"HYPERLINK(\"#'SCHEDULE V(e)'!A1\",\"Sch V(e) \nStress Scenario\")","v":"Sch V(e) \nStress Scenario"},null,null,null,null,null,null,{"$f":"HYPERLINK(\"#'SCHEDULE V(k)'!A1\",\"Sch V(k) \nDeposit Assets\")","v":"Sch V(k) \nDeposit Assets"},null,null,null,null,null,null,{"$f":"HYPERLINK(\"#'SCHEDULE V(l)'!A1\",\"Sch V(l) \nSegregated Acc\")","v":"Sch V(l) \nSegregated Acc"},null,null,null,null,null,null,null,null,{"$f":"HYPERLINK(\"#'SCHEDULE V(m)'!A1\",\"Sch V(m) \nAlt. Capital\")","v":"Sch V(m) \nAlt. Capital"},null,null,null,null,null,null,{"$f":"HYPERLINK(\"#'SCHEDULE VI'!A1\",\"Sch VI\nFixed Income Sec\")","v":"Sch VI\nFixed Income Sec"},null,null,null,null,null,null,{"$f":"HYPERLINK(\"#'SCHEDULE XVII'!A1\",\"Sch XVII \nSolvency Analysis\")","v":"Sch XVII \nSolvency Analysis"}]
[]
[]
[null,null,{"$f":"HYPERLINK(\"#'SCHEDULE XVIII'!A1\",\"Sch XVIII \nCeded Reins\")","v":"Sch XVIII \nCeded Reins"},null,null,null,null,null,null,{"$f":"HYPERLINK(\"#'SCHEDULE XXIA'!A1\",\"Sch XXIA\nCash Counterpart\")","v":"Sch XXIA\nCash Counterpart"},null,null,null,null,null,null,{"$f":"HYPERLINK(\"#'SCHEDULE XXA'!A1\",\"Sch XXA\nCurrency Analysis\")","v":"Sch XXA\nCurrency Analysis"},null,null,null,null,null,null,null,null,{"$f":"HYPERLINK(\"#'SCHEDULE XXI'!A1\",\"Sch XXI \nCon Risk\")","v":"Sch XXI \nCon Risk"},null,null,null,null,null,null,{"$f":"HYPERLINK(\"#'SCHEDULE XXIA'!A1\",\"Sch XXIA \nCon Risk\")","v":"Sch XXIA \nCon Risk"},null,null,null,null,null,null,{"$f":"HYPERLINK(\"#'SCHEDULE XXIII'!A1\",\"Sch XXIII \nInterest Rates\")","v":"Sch XXIII \nInterest Rates"}]
[]
[]
[null,null,{"$f":"HYPERLINK(\"#'SCHEDULE XXV'!A1\",\"Sch XXV \nDigital Assets\")","v":"Sch XXV \nDigital Assets"}]
[]
[]
[]
[null,"CATASTROPHE RISK RETURN"]
[]
[null,null,{"$f":"HYPERLINK(\"#'Schedule X(a)'!A1\",\"Schedule X(a)\")","v":"Schedule X(a)"},null,null,null,null,null,null,{"$f":"HYPERLINK(\"#'Schedule X(b)'!A1\",\"Schedule X(b)\")","v":"Schedule X(b)"},null,null,null,null,null,null,{"$f":"HYPERLINK(\"#'Schedule X(c)'!A1\",\"Schedule X(c)\")","v":"Schedule X(c)"},null,null,null,null,null,null,null,null,{"$f":"HYPERLINK(\"#'Schedule X(d)'!A1\",\"Schedule X(d)\")","v":"Schedule X(d)"},null,null,null,null,null,null,{"$f":"HYPERLINK(\"#'Schedule X(e)'!A1\",\"Schedule X(e)\")","v":"Schedule X(e)"},null,null,null,null,null,null,{"$f":"HYPERLINK(\"#'Schedule X(f)'!A1\",\"Schedule X(f)\")","v":"Schedule X(f)"}]
[]
[]
[null,null,{"$f":"HYPERLINK(\"#'Schedule X(g)'!A1\",\"Schedule X(g)\")","v":"Schedule X(g)"},null,null,null,null,null,null,{"$f":"HYPERLINK(\"#'Schedule X(h)'!A1\",\"Schedule X(h)\")","v":"Schedule X(h)"},null,null,null,null,null,null,null,null,null,null,null,null,null,null,null,null,null,null,null,null,null,null,{"$f":"HYPERLINK(\"#'Schedule X(i)'!A1\",\"Schedule X(i)\")","v":"Schedule X(i)"},null,null,null,null,null,null,{"$f":"HYPERLINK(\"#'Schedule X(j)'!A1\",\"Schedule X(j)\")","v":"Schedule X(j)"}]
[]
[]
[]
[null,"CISSA",null,null,null,null,null,null,null,null,null,null,null,null,null,null,null,null,null,null,null,null,null,null,"ELIGIBLE CAPITAL"]
[]
[null,null,{"$f":"HYPERLINK(\"#'Schedule IX(a)'!A1\",\"Sch IX(a) \nCapital Summary\")","v":"Sch IX(a) \nCapital Summary"},null,null,null,null,null,null,{"$f":"HYPERLINK(\"#'Schedule IX(b)'!A1\",\"Sch IX(b)\nGen. Questions\")","v":"Sch IX(b)\nGen. Questions"},null,null,null,null,null,null,{"$f":"HYPERLINK(\"#'Schedule IX(c)'!A1\",\"Sch IX(c)\nRisk Assessment\")","v":"Sch IX(c)\nRisk Assessment"},null,null,null,null,null,null,null,null,{"$f":"HYPERLINK(\"#'Schedule XII(b)'!A1\",\"Schedule XII(b)\")","v":"Schedule XII(b)"}]
[]
[]
[]
[null,"OPERATIONAL RISK CHARGE"]
[]
[null,null,{"$f":"HYPERLINK(\"#'Corp Gov'!A1\",\"Corporate Governance\")","v":"Corporate Governance"},null,null,null,null,null,null,{"$f":"HYPERLINK(\"#'Risk Man'!A1\",\"Risk Management\")","v":"Risk Management"},null,null,null,null,null,null,{"$f":"HYPERLINK(\"#'Op Risk'!A1\",\"Operational Risk Charge\")","v":"Operational Risk Charge"}]
[]
[]
[]
[null,"BSCR"]
[]
[null,null,{"$f":"HYPERLINK(\"#'Summary'!A1\",\"Summary\")","v":"Summary"},null,null,null,null,null,null,{"$f":"HYPERLINK(\"#'Fixed Income Investments'!A1\",\"Fixed Income Investments\")","v":"Fixed Income Investments"},null,null,null,null,null,null,{"$f":"HYPERLINK(\"#'Equity Investments'!A1\",\"Equity Investments\")","v":"Equity Investments"},null,null,null,null,null,null,null,null,{"$f":"HYPERLINK(\"#'Interest Rate-Liquidity Risk'!A1\",\"Interest Rate-Liquidity Risk\")","v":"Interest Rate-Liquidity Risk"},null,null,null,null,null,null,{"$f":"HYPERLINK(\"#'Interest Rate-Liquidity (Rev.)'!A1\",\"Interest-Liquidity Risk (Revised)\")","v":"Interest-Liquidity Risk (Revised)"},null,null,null,null,null,null,{"$f":"HYPERLINK(\"#'Currency Risk'!A1\",\"Currency Risk\")","v":"Currency Risk"}]
[]
[]
[null,null,{"$f":"HYPERLINK(\"#'Concentration Risk'!A1\",\"Concentration Risk\")","v":"Concentration Risk"},null,null,null,null,null,null,{"$f":"HYPERLINK(\"#'Geographic Diversification'!A1\",\"Geographic Diversification\")","v":"Geographic Diversification"},null,null,null,null,null,null,{"$f":"HYPERLINK(\"#'Premium Risk'!A1\",\"Premium Risk\")","v":"Premium Risk"},null,null,null,null,null,null,null,null,{"$f":"HYPERLINK(\"#'Reserve Risk'!A1\",\"Reserve Risk\")","v":"Reserve Risk"},null,null,null,null,null,null,{"$f":"HYPERLINK(\"#'Credit Risk'!A1\",\"Credit Risk\")","v":"Credit Risk"},null,null,null,null,null,null,{"$f":"HYPERLINK(\"#'Catastrophe Risk'!A1\",\"Catastrophe Risk\")","v":"Catastrophe Risk"}]
[]
[]
[null,null,{"$f":"HYPERLINK(\"#'Company Specific Parameters'!A1\",\"Company Specific Parameters\")","v":"Company Specific Parameters"},null,null,null,null,null,null,{"$f":"HYPERLINK(\"#'Correlation Matrix'!A1\",\"Correlation Matrix\")","v":"Correlation Matrix"}]

{"sheet":"Import","index":6,"n_rows":17858,"n_cols":20,"rows_kept":4500,"cut":true,"hidden":false,"merged":[[0,4,0,6],[0,12,0,14],[0,16,0,18],[0,8,0,10]],"bounds":{"rows_first":2000,"rows_last":500,"rows_between":2000,"halvings":0}}
[null,null,null,null,"In Fiat",null,null,null,"In Digital Assets",null,null,null,"Consolidated"]
["Sheet Name","Sheet Short Description","Field Code","Field Description",{"$f":"YEAR('Company Information'!$C$3)","v":2022},null,{"$f":"E2-1","v":2021},null,null,null,null,null,{"$f":"YEAR('Company Information'!$C$3)","v":2022},null,{"$f":"M2-1","v":2021}]
["Summary",null,null,"Comments",0]
[]
["Declaration",null,null,"Authorised Signing Authority 1",0]
["Declaration",null,null,"Date","00:00:00"]
["Declaration",null,null,"Authorised Signing Authority 2",0]
["Declaration",null,null,"Date","00:00:00"]
["Declaration",null,null,"Authorised Signing Authority 3",0]
["Declaration",null,null,"Date","00:00:00"]
[]
["Info Sheet",null,null,"(d) Statements Held at Registered Office","Select Yes/No"]
["Info Sheet",null,null,"(e) Filing Period - Period Start Date","00:00:00"]
["Info Sheet",null,null,"(g) Figures Translated at:",1]
["Info Sheet",null,null,"(h) Ultimate Parent",0]
["Info Sheet",null,null,"(i) Insurer's Parent Company",0]
["Info Sheet",null,null,"(j) Industry Sector of Insurer's Parent","Select from Drop-Down"]
["Info Sheet",null,null,"(k) Insurer's Ownership Structure","Select from Drop-Down"]
["Info Sheet",null,null,"(l) Insurer's Company Structure","Select from Drop-Down"]
["Info Sheet",null,null,"(l).1 Confirm if Company writes LT Insurance","Select Yes/No"]
["Info Sheet",null,null,"(l).2 LT Insurance written during the period","Select Yes/No"]
["Info Sheet",null,null,"(l).3 Subsidiaries wrote Long-Term insurance","Select Yes/No"]
["Info Sheet",null,null,"(l).4 Subsidiaries wrote LT Ins. Outside of BDA","Select Yes/No"]
["Info Sheet",null,null,"(l).5 Subsidiaries Ins. Outside of BDA jurisdiction 1",0]
["Info Sheet",null,null,"(l).5 Subsidiaries Ins. Outside of BDA jurisdiction 2",0]
["Info Sheet",null,null,"(l).5 Subsidiaries Ins. Outside of BDA jurisdiction 3",0]
["Info Sheet",null,null,"(m)(i) Is the Insurer a Member of Ins. Group?","Select Yes/No"]
["Info Sheet",null,null,"(m)(ii) Are there Segregated Accounts?","Select Yes/No"]
["Info Sheet",null,null,"(m)(iii) Is the Insurer in Run-Off?","Select Yes/No"]
["Info Sheet",null,null,"(m)(iv) Statements have a Qualified Opinion?","Select Yes/No"]
["Info Sheet",null,null,"(m)(iv) Details of Qualified Opinion",0]
["Info Sheet",null,null,"(m)(v) Minimum Solvency Margin Met","Select Yes/No"]
["Info Sheet",null,null,"(m)(vi) Liquidity Ratio Met","Select Yes/No"]
["Info Sheet",null,null,"(n)(1) Certificate of Registration Date",""]
["Info Sheet",null,null,"(n)(2) # of Conditions",0]
["Info Sheet",null,null,"Effective Start Date of Condition - 1","00:00:00"]
["Info Sheet",null,null,"Effective Start Date of Condition - 2","00:00:00"]
["Info Sheet",null,null,"Effective Start Date of Condition - 3","00:00:00"]
["Info Sheet",null,null,"Effective Start Date of Condition - 4","00:00:00"]
["Info Sheet",null,null,"Effective Start Date of Condition - 5","00:00:00"]
["Info Sheet",null,null,"Effective Start Date of Condition - 6","00:00:00"]
["Info Sheet",null,null,"Effective Start Date of Condition - 7","00:00:00"]
["Info Sheet",null,null,"Effective Start Date of Condition - 8","00:00:00"]
["Info Sheet",null,null,"Effective Start Date of Condition - 9","00:00:00"]
["Info Sheet",null,null,"Effective Start Date of Condition - 10","00:00:00"]
["Info Sheet",null,null,"Effective End Date of Condition - 1","00:00:00"]
["Info Sheet",null,null,"Effective End Date of Condition - 2","00:00:00"]
["Info Sheet",null,null,"Effective End Date of Condition - 3","00:00:00"]
["Info Sheet",null,null,"Effective End Date of Condition - 4","00:00:00"]
["Info Sheet",null,null,"Effective End Date of Condition - 5","00:00:00"]
["Info Sheet",null,null,"Effective End Date of Condition - 6","00:00:00"]
["Info Sheet",null,null,"Effective End Date of Condition - 7","00:00:00"]
["Info Sheet",null,null,"Effective End Date of Condition - 8","00:00:00"]
["Info Sheet",null,null,"Effective End Date of Condition - 9","00:00:00"]
["Info Sheet",null,null,"Effective End Date of Condition - 10","00:00:00"]
["Info Sheet",null,null,"Description of Condition - 1",0]
["Info Sheet",null,null,"Description of Condition - 2",0]
["Info Sheet",null,null,"Description of Condition - 3",0]
["Info Sheet",null,null,"Description of Condition - 4",0]
["Info Sheet",null,null,"Description of Condition - 5",0]
["Info Sheet",null,null,"Description of Condition - 6",0]
["Info Sheet",null,null,"Description of Condition - 7",0]
["Info Sheet",null,null,"Description of Condition - 8",0]
["Info Sheet",null,null,"Description of Condition - 9",0]
["Info Sheet",null,null,"Description of Condition - 10",0]
["Info Sheet",null,null,"Insurer Complied with All Conditions?","Select Yes/No"]
["Info Sheet",null,null,"(p) # of Directions",0]
["Info Sheet",null,null,"Effective Start Date of Direction - 1","00:00:00"]
["Info Sheet",null,null,"Effective Start Date of Direction - 2","00:00:00"]
["Info Sheet",null,null,"Effective Start Date of Direction - 3","00:00:00"]
["Info Sheet",null,null,"Effective Start Date of Direction - 4","00:00:00"]
["Info Sheet",null,null,"Effective Start Date of Direction - 5","00:00:00"]
["Info Sheet",null,null,"Effective Start Date of Direction - 6","00:00:00"]
["Info Sheet",null,null,"Effective Start Date of Direction - 7","00:00:00"]
["Info Sheet",null,null,"Effective Start Date of Direction - 8","00:00:00"]
["Info Sheet",null,null,"Effective Start Date of Direction - 9","00:00:00"]
["Info Sheet",null,null,"Effective Start Date of Direction - 10","00:00:00"]
["Info Sheet",null,null,"Effective End Date of Direction - 1","00:00:00"]
["Info Sheet",null,null,"Effective End Date of Direction - 2","00:00:00"]
["Info Sheet",null,null,"Effective End Date of Direction - 3","00:00:00"]
["Info Sheet",null,null,"Effective End Date of Direction - 4","00:00:00"]
["Info Sheet",null,null,"Effective End Date of Direction - 5","00:00:00"]
["Info Sheet",null,null,"Effective End Date of Direction - 6","00:00:00"]
["Info Sheet",null,null,"Effective End Date of Direction - 7","00:00:00"]
["Info Sheet",null,null,"Effective End Date of Direction - 8","00:00:00"]
["Info Sheet",null,null,"Effective End Date of Direction - 9","00:00:00"]
["Info Sheet",null,null,"Effective End Date of Direction - 10","00:00:00"]
["Info Sheet",null,null,"Description of Direction - 1",0]
["Info Sheet",null,null,"Description of Direction - 2",0]
["Info Sheet",null,null,"Description of Direction - 3",0]
["Info Sheet",null,null,"Description of Direction - 4",0]
["Info Sheet",null,null,"Description of Direction - 5",0]
["Info Sheet",null,null,"Description of Direction - 6",0]
["Info Sheet",null,null,"Description of Direction - 7",0]
["Info Sheet",null,null,"Description of Direction - 8",0]
["Info Sheet",null,null,"Description of Direction - 9",0]
["Info Sheet",null,null,"Description of Direction - 10",0]
["Info Sheet",null,null,"(q) Confirm If Any Negative Responses?","Select Yes/No"]
["Info Sheet",null,null,"Details of Negative Responses",0]
[]
[null,null,null,"Balance Sheet - UNCONSOLIDATED"]
["Form 1SFS","Balance Sheet GEN/CON","1SFS1","Cash and Cash Equivalents",0,null,0,null,0,null,0,null,0,null,0]
["Form 1SFS","Balance Sheet GEN/CON","1SFS2ai","Quoted - Bonds - Held to Maturity",0,null,0,null,0,null,0,null,0,null,0]
["Form 1SFS","Balance Sheet GEN/CON","1SFS2aii","Quoted - Bonds - Other",0,null,0,null,0,null,0,null,0,null,0]
["Form 1SFS","Balance Sheet GEN/CON","1SFS2b","Quoted - Bonds - Total",null,null,null,null,0,null,0]
["Form 1SFS","Balance Sheet GEN/CON","1SFS2ci","Quoted - Equities - Common Stocks",0,null,0,null,0,null,0,null,0,null,0]
["Form 1SFS","Balance Sheet GEN/CON","1SFS2cii","Quoted - Equities - Preferred Stocks",0,null,0,null,0,null,0,null,0,null,0]
["Form 1SFS","Balance Sheet GEN/CON","1SFS2ciii","Quoted - Equities - Mutual Funds",0,null,0,null,0,null,0,null,0,null,0]
["Form 1SFS","Balance Sheet GEN/CON","1SFS2ei","Quoted - Other Investments - Digital Assets",0,null,0,null,0,null,0,null,0,null,0]
["Form 1SFS","Balance Sheet GEN/CON","1SFS2eii","Quoted - Other Investments - Preferred Stocks",0,null,0,null,0,null,0,null,0,null,0]
["Form 1SFS","Balance Sheet GEN/CON","1SFS2eiii","Quoted - Other Investments - Others",0,null,0,null,0,null,0,null,0,null,0]
["Form 1SFS","Balance Sheet GEN/CON","1SFS3ai","Unquoted - Bonds - Held to Maturity",0,null,0,null,0,null,0,null,0,null,0]
["Form 1SFS","Balance Sheet GEN/CON","1SFS3aii","Unquoted - Bonds - Other",0,null,0,null,0,null,0,null,0,null,0]
["Form 1SFS","Balance Sheet GEN/CON","1SFS3b","Unquoted - Bonds - Total",null,null,null,null,0,null,0]
["Form 1SFS","Balance Sheet GEN/CON","1SFS3ci","Unquoted - Equities - Common Stocks",0,null,0,null,0,null,0,null,0,null,0]
["Form 1SFS","Balance Sheet GEN/CON","1SFS3cii","Unquoted - Equities - Preferred Stocks",0,null,0,null,0,null,0,null,0,null,0]
["Form 1SFS","Balance Sheet GEN/CON","1SFS3ciii","Unquoted - Equities - Mutual Funds",0,null,0,null,0,null,0,null,0,null,0]
["Form 1SFS","Balance Sheet GEN/CON","1SFS3ei","Unquoted - Other Investments - Digital Assets",0,null,0,null,0,null,0,null,0,null,0]
["Form 1SFS","Balance Sheet GEN/CON","1SFS3eii","Unquoted - Other Investments - Preferred Stocks",0,null,0,null,0,null,0,null,0,null,0]
["Form 1SFS","Balance Sheet GEN/CON","1SFS3eiii","Unquoted - Other Investments - Others",0,null,0,null,0,null,0,null,0,null,0]
["Form 1SFS","Balance Sheet GEN/CON","1SFS4","Inv. In and Advances to Affiliates",0,null,0,null,0,null,0,null,0,null,0]
["Form 1SFS","Balance Sheet GEN/CON","1SFS5a","Inv. In Mortg. Loans on Real Estate - 1st Lien",0,null,0,null,0,null,0,null,0,null,0]
["Form 1SFS","Balance Sheet GEN/CON","1SFS5b","Inv. In Mortg. Loans on Real Estate - Other",0,null,0,null,0,null,0,null,0,null,0]
["Form 1SFS","Balance Sheet GEN/CON","1SFS6","Equipment Net of Depreciation",0,null,0,null,0,null,0,null,0,null,0]
["Form 1SFS","Balance Sheet GEN/CON","1SFS7","Real Estate",0,null,0,null,0,null,0,null,0,null,0]
["Form 1SFS","Balance Sheet GEN/CON","1SFS8a","Loans Receivable - Due in one year or less",0,null,0,null,0,null,0,null,0,null,0]
["Form 1SFS","Balance Sheet GEN/CON","1SFS8b","Loans Receivable - Due in over a year",0,null,0,null,0,null,0,null,0,null,0]
["Form 1SFS","Balance Sheet GEN/CON","1SFS9","Investment Income Due and Accrued",0,null,0,null,0,null,0,null,0,null,0]
["Form 1SFS","Balance Sheet GEN/CON","1SFS10","Receivables from Clearing Brokers",0,null,0,null,0,null,0,null,0,null,0]
["Form 1SFS","Balance Sheet GEN/CON","1SFS11a","Other Received From Digital Asset Business  - Due in one year or less",0,null,0,null,0,null,0,null,0,null,0]
["Form 1SFS","Balance Sheet GEN/CON","1SFS11b","Other Received From Digital Asset Business - Due in over a year",0,null,0,null,0,null,0,null,0,null,0]
["Form 1SFS","Balance Sheet GEN/CON","1SFS12","Digital Assets Held in Custody for Clients",0,null,0,null,0,null,0,null,0,null,0]
["Form 1SFS","Balance Sheet GEN/CON","1SFS13a","Sundry Assets - Derivatives",0,null,0,null,0,null,0,null,0,null,0]
["Form 1SFS","Balance Sheet GEN/CON","1SFS13b","Sundry Assets - Net Rec. for Investments",0,null,0,null,0,null,0,null,0,null,0]
["Form 1SFS","Balance Sheet GEN/CON","1SFS13c","Sundry Assets - Prepaid Expenses",0,null,0,null,0,null,0,null,0,null,0]
["Form 1SFS","Balance Sheet GEN/CON","1SFS13d","Sundry Assets - Goodwill and Other Intangibles",0,null,0,null,0,null,0,null,0,null,0]
["Form 1SFS","Balance Sheet GEN/CON","1SFS13e","Sundry Assets - Other 1",0,null,0,null,0,null,0,null,0,null,0]
["Form 1SFS","Balance Sheet GEN/CON","1SFS13f","Sundry Assets - Other 2",0,null,0,null,0,null,0,null,0,null,0]
["Form 1SFS","Balance Sheet GEN/CON","1SFS13g","Sundry Assets - Other 3",0,null,0,null,0,null,0,null,0,null,0]
["Form 1SFS","Balance Sheet GEN/CON","1SFS14a","Letters of Credit",0,null,0,null,0,null,0,null,0,null,0]
["Form 1SFS","Balance Sheet GEN/CON","1SFS14b","Guarantees",0,null,0,null,0,null,0,null,0,null,0]
["Form 1SFS","Balance Sheet GEN/CON","1SFS14c","Other Instruments",0,null,0,null,0,null,0,null,0,null,0]
["Form 1SFS","Balance Sheet GEN/CON","1SFS15","Total Assets",0,null,0,null,0,null,0]
["Form 1SFS","Balance Sheet GEN/CON","1SFS16","Unearned Premium Reserve ",0,null,0,null,0,null,0,null,0,null,0]
["Form 1SFS","Balance Sheet GEN/CON","1SFS17a","Loss Provision - Gross",0,null,0,null,0,null,0,null,0,null,0]
["Form 1SFS","Balance Sheet GEN/CON","1SFS17bi","R/I Recoverable - Foreign Affiliates",0,null,0,null,0,null,0,null,0,null,0]
["Form 1SFS","Balance Sheet GEN/CON","1SFS17bii","R/I Recoverable - Domestic Affiliates",0,null,0,null,0,null,0,null,0,null,0]
["Form 1SFS","Balance Sheet GEN/CON","1SFS17biii","R/I Recoverable - Pools & Assoc.",0,null,0,null,0,null,0,null,0,null,0]
["Form 1SFS","Balance Sheet GEN/CON","1SFS17biv","R/I Recoverable - All Other",0,null,0,null,0,null,0,null,0,null,0]
["Form 1SFS","Balance Sheet GEN/CON","1SFS18","Other Insurance Reserves",0,null,0,null,0,null,0,null,0,null,0]
["Form 1SFS","Balance Sheet GEN/CON","1SFS28","Contractual Liabilities from Digital Asset Issuance",0,null,0,null,0,null,0,null,0,null,0]
["Form 1SFS","Balance Sheet GEN/CON","1SFS29","Commissions, Expenses and Taxes Payable",0,null,0,null,0,null,0,null,0,null,0]
["Form 1SFS","Balance Sheet GEN/CON","1SFS30","Loans and Notes Payable",0,null,0,null,0,null,0,null,0,null,0]
["Form 1SFS","Balance Sheet GEN/CON","1SFS31a","Income Taxes Payable",0,null,0,null,0,null,0,null,0,null,0]
["Form 1SFS","Balance Sheet GEN/CON","1SFS32","Amounts Due to Affiliates",0,null,0,null,0,null,0,null,0,null,0]
["Form 1SFS","Balance Sheet GEN/CON","1SFS33","Accounts Payable and Accrued Liabilities",0,null,0,null,0,null,0,null,0,null,0]
["Form 1SFS","Balance Sheet GEN/CON","1SFS34","Digital Assets Held in Custody for Clients",0,null,0,null,0,null,0,null,0,null,0]
["Form 1SFS","Balance Sheet GEN/CON","1SFS35","Dividends Payable",0,null,0,null,0,null,0,null,0,null,0]
["Form 1SFS","Balance Sheet GEN/CON","1SFS36a","Sundry Liabilities - Derivative Instruments",0,null,0,null,0,null,0,null,0,null,0]
["Form 1SFS","Balance Sheet GEN/CON","1SFS36b","Sundry Liabilities - Investments Purchased",0,null,0,null,0,null,0,null,0,null,0]
["Form 1SFS","Balance Sheet GEN/CON","1SFS36c","Sundry Liabilities - Other 1",0,null,0,null,0,null,0,null,0,null,0]
["Form 1SFS","Balance Sheet GEN/CON","1SFS36d","Sundry Liabilities - Other 2",0,null,0,null,0,null,0,null,0,null,0]
["Form 1SFS","Balance Sheet GEN/CON","1SFS36e","Sundry Liabilities - Other 3",0,null,0,null,0,null,0,null,0,null,0]
["Form 1SFS","Balance Sheet GEN/CON","1SFS37a","Letters of Credit",0,null,0,null,0,null,0,null,0,null,0]
["Form 1SFS","Balance Sheet GEN/CON","1SFS37b","Guarantees",0,null,0,null,0,null,0,null,0,null,0]
["Form 1SFS","Balance Sheet GEN/CON","1SFS37c","Other Instruments",0,null,0,null,0,null,0,null,0,null,0]
["Form 1SFS","Balance Sheet GEN/CON","1SFS40","Economic Capital & Surplus"]
[]
["Form 1SFS","Notes","Form 1SFS","Line 10 - Collaterized Balances",0,null,0]
["Form 1SFS","Notes","Form 1SFS","Line 11(e) - Collaterized Balances",0,null,0]
["Form 1SFS","Notes","Form 1SFS","Line 17cii - Collat. in Favour of Insurer",0,null,0]
["Form 1SFS","Notes","Form 1SFS","Line 13 - Sundry Assets",0,null,0]
["Form 1SFS","Notes","Form 1SFS","Line 15 - Policy. Oblig. - Cash",0,null,0]
["Form 1SFS","Notes","Form 1SFS","Line 15 - Policy. Oblig. - Quoted. Inv.",0,null,0]
["Form 1SFS","Notes","Form 1SFS","Line 15 - Policy. Oblig. - Unquoted. Inv.",0,null,0]
["Form 1SFS","Notes","Form 1SFS","Line 15 - Policy. Oblig. - Funds Held",0,null,0]
["Form 1SFS","Notes","Form 1SFS","Line 15 - Policy. Oblig. - Other Assets",0,null,0]
["Form 1SFS","Notes","Form 1SFS","Line 15 - Policy. Oblig. - Total",0,null,0]
["Form 1SFS","Notes","Form 1SFS","Line 15 - Other - Cash",0,null,0]
["Form 1SFS","Notes","Form 1SFS","Line 15 - Other - Quoted. Inv.",0,null,0]
["Form 1SFS","Notes","Form 1SFS","Line 15 - Other - Unquoted. Inv.",0,null,0]
["Form 1SFS","Notes","Form 1SFS","Line 15 - Other - Other Assets",0,null,0]
["Form 1SFS","Notes","Form 1SFS","Line 15 - Other - Total",0,null,0]
["Form 1SFS","Notes","Form 1SFS","Line 36 - Sundry Liabilities",0,null,0]
["Form 1SFS","Notes","Form 1SFS","Line 37 - LOC's & Guarantees",0,null,0]
["Form 1SFS","Notes","Form 1SFS","Line 17 - Prior year note disclosure",0]
["Form 1SFS","Notes","Form 1SFS","Gross Provision - Beg. Of Year",0,null,0]
["Form 1SFS","Notes","Form 1SFS","R/I Recoverable - Beg. Of Year",0,null,0]
["Form 1SFS","Notes","Form 1SFS","Net Provision - Beg. Of Year",0,null,0]
["Form 1SFS","Notes","Form 1SFS","Acquisition / Sale of loss reserves (net):",0,null,0]
["Form 1SFS","Notes","Form 1SFS","Net Losses Incurred - Current Year",0,null,0]
["Form 1SFS","Notes","Form 1SFS","Net Losses Incurred - Prior Years",0,null,0]
["Form 1SFS","Notes","Form 1SFS","Net Losses Incurred - Total",0,null,0]
["Form 1SFS","Notes","Form 1SFS","Losses Paid - Current Year",0,null,0]
["Form 1SFS","Notes","Form 1SFS","Losses Paid - Prior Years",0,null,0]
["Form 1SFS","Notes","Form 1SFS","Losses Paid - Total",0,null,0]
["Form 1SFS","Notes","Form 1SFS","Foreign Exchange and Other",0,null,0]
["Form 1SFS","Notes","Form 1SFS","Net Provision - End Of Year",0,null,0]
["Form 1SFS","Notes","Form 1SFS","R/I Recoverable - End Of Year",0,null,0]
["Form 1SFS","Notes","Form 1SFS","Gross Provision - End Of Year",0,null,0]
["Form 1SFS","Notes","Form 1SFS","Insurance - Gross - Open Balance",0,null,0]
["Form 1SFS","Notes","Form 1SFS","Insurance - Gross - Terminations",0,null,0]
["Form 1SFS","Notes","Form 1SFS","Insurance - Gross - New Business",0,null,0]
["Form 1SFS","Notes","Form 1SFS","Insurance - Gross - Chg.In Force",0,null,0]
["Form 1SFS","Notes","Form 1SFS","Insurance - Gross - Mgmt. Actions",0,null,0]
["Form 1SFS","Notes","Form 1SFS","Insurance - Gross - FX",0,null,0]
["Form 1SFS","Notes","Form 1SFS","Insurance - Gross - Closing Balance",0,null,0]
["Form 1SFS","Notes","Form 1SFS","Insurance - R/I - Open Balance",0,null,0]
["Form 1SFS","Notes","Form 1SFS","Insurance - R/I - Terminations",0,null,0]
["Form 1SFS","Notes","Form 1SFS","Insurance - R/I - New Business",0,null,0]
["Form 1SFS","Notes","Form 1SFS","Insurance - R/I - Chg.In Force",0,null,0]
["Form 1SFS","Notes","Form 1SFS","Insurance - R/I - Mgmt. Actions",0,null,0]
["Form 1SFS","Notes","Form 1SFS","Insurance - R/I - FX",0,null,0]
["Form 1SFS","Notes","Form 1SFS","Insurance - R/I - Closing Balance",0,null,0]
["Form 1SFS","Notes","Form 1SFS","Insurance - Net - Open Balance",0,null,0]
["Form 1SFS","Notes","Form 1SFS","Insurance - Net - Terminations",0,null,0]
["Form 1SFS","Notes","Form 1SFS","Insurance - Net - New Business",0,null,0]
["Form 1SFS","Notes","Form 1SFS","Insurance - Net - Chg.In Force",0,null,0]
["Form 1SFS","Notes","Form 1SFS","Insurance - Net - Mgmt. Actions",0,null,0]
["Form 1SFS","Notes","Form 1SFS","Insurance - Net - FX",0,null,0]
["Form 1SFS","Notes","Form 1SFS","Insurance - Net - Closing Balance",0,null,0]
["Form 1SFS","Notes","Form 1SFS","Invmnt - Gross - Open Balance",0,null,0]
["Form 1SFS","Notes","Form 1SFS","Invmnt - Gross - Terminations",0,null,0]
["Form 1SFS","Notes","Form 1SFS","Invmnt - Gross - New Business",0,null,0]
["Form 1SFS","Notes","Form 1SFS","Invmnt - Gross - Chg.In Force",0,null,0]
["Form 1SFS","Notes","Form 1SFS","Invmnt - Gross - Mgmt. Actions",0,null,0]
["Form 1SFS","Notes","Form 1SFS","Invmnt - Gross - FX",0,null,0]
["Form 1SFS","Notes","Form 1SFS","Invmnt - Gross - Closing Balance",0,null,0]
["Form 1SFS","Notes","Form 1SFS","Invmnt - R/I - Open Balance",0,null,0]
["Form 1SFS","Notes","Form 1SFS","Invmnt - R/I - Terminations",0,null,0]
["Form 1SFS","Notes","Form 1SFS","Invmnt - R/I - New Business",0,null,0]
["Form 1SFS","Notes","Form 1SFS","Invmnt - R/I - Chg.In Force",0,null,0]
["Form 1SFS","Notes","Form 1SFS","Invmnt - R/I - Mgmt. Actions",0,null,0]
["Form 1SFS","Notes","Form 1SFS","Invmnt - R/I - FX",0,null,0]
["Form 1SFS","Notes","Form 1SFS","Invmnt - R/I - Closing Balance",0,null,0]
["Form 1SFS","Notes","Form 1SFS","Invmnt - Net - Open Balance",0,null,0]
["Form 1SFS","Notes","Form 1SFS","Invmnt - Net - Terminations",0,null,0]
["Form 1SFS","Notes","Form 1SFS","Invmnt - Net - New Business",0,null,0]
["Form 1SFS","Notes","Form 1SFS","Invmnt - Net - Chg.In Force",0,null,0]
["Form 1SFS","Notes","Form 1SFS","Invmnt - Net - Mgmt. Actions",0,null,0]
["Form 1SFS","Notes","Form 1SFS","Invmnt - Net - FX",0,null,0]
["Form 1SFS","Notes","Form 1SFS","Invmnt - Net - Closing Balance",0,null,0]
[]
[null,null,null,"Line 36(i) - Any Other Liabilities"]
[null,null,null,"Line 36(f) - Details of Deposit Liab."]
[null,null,null,"Line 40 - Recon. 1SFS 40 to 40"]
[null,null,null,"Line 16c - Adj. Counterparty Default"]
[null,null,null,"Line 17ci - Adj. Counterparty Default"]
[null,null,null,"Line 16di - BBNI Premium"]
[null,null,null,"Line 16dii - BBNI Best Est. Prem"]
[null,null,null,"Line 17di - Loss Provision Discount"]
[null,null,null,"Line 17dii - Scenario Based Approach"]
[null,null,null,"Best Estimate Provision - Beg. Of Year"]
[null,null,null,"Unwind of Discount"]
[null,null,null,"Net Loss Paid - Prior Years"]
[null,null,null,"Net Losses Incurred - Prior Years"]
[null,null,null,"Best Estimate Provision - From PY"]
[null,null,null,"Net Losses Incurred - Current Year"]
[null,null,null,"Net Loss Paid - Current Year"]
[null,null,null,"Foreign Exchange and Other"]
[null,null,null,"Best Estimate Provision - From CY"]
[null,null,null,"Impact of Change in Discount Curve"]
[null,null,null,"Best Estimate Provision - End Of Year"]
[]
[null,null,null,"Income Statement - UNCONSOLIDATED"]
["Form 2SFS","Income Stmt Uncon GEN / CON","2SFS1a","Gross Premium Written - Direct",0,null,0,null,0,null,0,null,0,null,0]
["Form 2SFS","Income Stmt Uncon GEN / CON","2SFS1b","Gross Premium Written - Assumed",0,null,0,null,0,null,0,null,0,null,0]
["Form 2SFS","Income Stmt Uncon GEN / CON","2SFS2","R/I Premiums Ceded",0,null,0,null,0,null,0,null,0,null,0]
["Form 2SFS","Income Stmt Uncon GEN / CON","2SFS4","Change in Unearned Premiums",0,null,0,null,0,null,0,null,0,null,0]
["Form 2SFS","Income Stmt Uncon GEN / CON","2SFS6","Other Insurance Income",0,null,0,null,0,null,0,null,0,null,0]
["Form 2SFS","Income Stmt Uncon GEN / CON","2SFS8","Net Losses Incurred",0,null,0,null,0,null,0,null,0,null,0]
["Form 2SFS","Income Stmt Uncon GEN / CON","2SFS9","Commissions & Brokerage",0,null,0,null,0,null,0,null,0,null,0]
["Form 2SFS","Income Stmt Uncon GEN / CON","2SFS30a","Operating Expense - G&A",0,null,0,null,0,null,0,null,0,null,0]
["Form 2SFS","Income Stmt Uncon GEN / CON","2SFS30b","Operating Expense - Personnel Costs",0,null,0,null,0,null,0,null,0,null,0]
["Form 2SFS","Income Stmt Uncon GEN / CON","2SFS30c","Operating Expense - Other",0,null,0,null,0,null,0,null,0,null,0]
["Form 2SFS","Income Stmt Uncon GEN / CON","2SFS31","Investment Income",0,null,0,null,0,null,0,null,0,null,0]
["Form 2SFS","Income Stmt Uncon GEN / CON","2SFS32","Other Income",0,null,0,null,0,null,0,null,0,null,0]
["Form 2SFS","Income Stmt Uncon GEN / CON","2SFS34a","Income Tax - Current",0,null,0,null,0,null,0,null,0,null,0]
["Form 2SFS","Income Stmt Uncon GEN / CON","2SFS34b","Income Tax - Deferred",0,null,0,null,0,null,0,null,0,null,0]
["Form 2SFS","Income Stmt Uncon GEN / CON","2SFS36","Realized Gains/Losses",0,null,0,null,0,null,0,null,0,null,0]
["Form 2SFS","Income Stmt Uncon GEN / CON","2SFS37","Interest Charges",0,null,0,null,0,null,0,null,0,null,0]
[]
[null,null,null,"Statement of Capital & Surplus - UNCONSOLIDATED"]
["Form 8SFS","Stmt of C&S Uncon GEN / CON","8SFS1ai","Capital Stock",0,null,0,null,0,null,0]
["Form 8SFS","Stmt of C&S Uncon GEN / CON",null,"Common Stock",null,null,null,null,null,null,null,null,0,null,0]
["Form 8SFS","Stmt of C&S Uncon GEN / CON","8SFS1aii","Preferred Shares",null,null,null,null,null,null,null,null,0,null,0]
["Form 8SFS","Stmt of C&S Uncon GEN / CON","8SFS1aiii","Treasury Shares",null,null,null,null,null,null,null,null,0,null,0]
["Form 8SFS","Stmt of C&S Uncon GEN / CON","8SFS1aiv","Tokenized Equity Shares",null,null,null,null,null,null,null,null,0,null,0]
["Form 8SFS","Stmt of C&S Uncon GEN / CON","8SFS1b","Contributed Surplus",0,null,0,null,0,null,0,null,0,null,0]
["Form 8SFS","Stmt of C&S Uncon GEN / CON","8SFS1ci","Other Fixed Capital - Hybrid Instruments",0,null,0,null,0,null,0,null,0,null,0]
["Form 8SFS","Stmt of C&S Uncon GEN / CON","8SFS1cii","Other Fixed Capital - Guarantees & Others",0,null,0,null,0,null,0,null,0,null,0]
["Form 8SFS","Stmt of C&S Uncon GEN / CON","8SFS2a","Statutory Surplus - Beginning of Year",0,null,0,null,0,null,0,null,0,null,0]
["Form 8SFS","Stmt of C&S Uncon GEN / CON","8SFS2c","Dividends",0,null,0,null,0,null,0,null,0,null,0]
["Form 8SFS","Stmt of C&S Uncon GEN / CON","8SFS2d","Unrealized Change in Investments",0,null,0,null,0,null,0,null,0,null,0]
["Form 8SFS","Stmt of C&S Uncon GEN / CON","8SFS2e","Change in Non-Admitted Assets",0,null,0,null,0,null,0,null,0,null,0]
["Form 8SFS","Stmt of C&S Uncon GEN / CON","8SFS2f","Change in Real Estate",0,null,0,null,0,null,0,null,0,null,0]
["Form 8SFS","Stmt of C&S Uncon GEN / CON","8SFS2g","Change in Other Statutory Capital",0,null,0,null,0,null,0,null,0,null,0]
["Form 8SFS","Stmt of C&S Uncon GEN / CON","8SFS3","Minority Interest",0,null,0,null,0,null,0,null,0,null,0]
[]
[null,null,null,"Balance Sheet - CONSOLIDATED"]
["Form 1SFS","Balance Sheet GEN/CON","1SFS1","Cash and Cash Equivalents",0,null,0,null,0,null,0,null,0,null,0]
["Form 1SFS","Balance Sheet GEN/CON","1SFS2ai","Quoted - Bonds - Held to Maturity",0,null,0,null,0,null,0,null,0,null,0]
["Form 1SFS","Balance Sheet GEN/CON","1SFS2aii","Quoted - Bonds - Other",0,null,0,null,0,null,0,null,0,null,0]
["Form 1SFS","Balance Sheet GEN/CON","1SFS2b","Quoted - Bonds - Total",null,null,null,null,0,null,0]
["Form 1SFS","Balance Sheet GEN/CON","1SFS2ci","Quoted - Equities - Common Stocks",0,null,0,null,0,null,0,null,0,null,0]
["Form 1SFS","Balance Sheet GEN/CON","1SFS2cii","Quoted - Equities - Preferred Stocks",0,null,0,null,0,null,0,null,0,null,0]
["Form 1SFS","Balance Sheet GEN/CON","1SFS2ciii","Quoted - Equities - Mutual Funds",0,null,0,null,0,null,0,null,0,null,0]
["Form 1SFS","Balance Sheet GEN/CON","1SFS2ei","Quoted - Other Investments - Digital Assets",0,null,0,null,0,null,0,null,0,null,0]
["Form 1SFS","Balance Sheet GEN/CON","1SFS2eii","Quoted - Other Investments - Preferred Stocks",0,null,0,null,0,null,0,null,0,null,0]
["Form 1SFS","Balance Sheet GEN/CON","1SFS2eiii","Quoted - Other Investments - Others",0,null,0,null,0,null,0,null,0,null,0]
["Form 1SFS","Balance Sheet GEN/CON","1SFS3ai","Unquoted - Bonds - Held to Maturity",0,null,0,null,0,null,0,null,0,null,0]
["Form 1SFS","Balance Sheet GEN/CON","1SFS3aii","Unquoted - Bonds - Other",0,null,0,null,0,null,0,null,0,null,0]
["Form 1SFS","Balance Sheet GEN/CON","1SFS3b","Unquoted - Bonds - Total",null,null,null,null,0,null,0]
["Form 1SFS","Balance Sheet GEN/CON","1SFS3ci","Unquoted - Equities - Common Stocks",0,null,0,null,0,null,0,null,0,null,0]
["Form 1SFS","Balance Sheet GEN/CON","1SFS3cii","Unquoted - Equities - Preferred Stocks",0,null,0,null,0,null,0,null,0,null,0]
["Form 1SFS","Balance Sheet GEN/CON","1SFS3ciii","Unquoted - Equities - Mutual Funds",0,null,0,null,0,null,0,null,0,null,0]
["Form 1SFS","Balance Sheet GEN/CON","1SFS3ei","Unquoted - Other Investments - Digital Assets",0,null,0,null,0,null,0,null,0,null,0]
["Form 1SFS","Balance Sheet GEN/CON","1SFS3eii","Unquoted - Other Investments - Preferred Stocks",0,null,0,null,0,null,0,null,0,null,0]
["Form 1SFS","Balance Sheet GEN/CON","1SFS3eiii","Unquoted - Other Investments - Others",0,null,0,null,0,null,0,null,0,null,0]
["Form 1SFS","Balance Sheet GEN/CON","1SFS4","Inv. In and Advances to Affiliates",0,null,0,null,0,null,0,null,0,null,0]
["Form 1SFS","Balance Sheet GEN/CON","1SFS5a","Inv. In Mortg. Loans on Real Estate - 1st Lien",0,null,0,null,0,null,0,null,0,null,0]
["Form 1SFS","Balance Sheet GEN/CON","1SFS5b","Inv. In Mortg. Loans on Real Estate - Other",0,null,0,null,0,null,0,null,0,null,0]
["Form 1SFS","Balance Sheet GEN/CON","1SFS6","Equipment Net of Depreciation",0,null,0,null,0,null,0,null,0,null,0]
["Form 1SFS","Balance Sheet GEN/CON","1SFS7","Real Estate",0,null,0,null,0,null,0,null,0,null,0]
["Form 1SFS","Balance Sheet GEN/CON","1SFS8a","Loans Receivable - Due in one year or less",0,null,0,null,0,null,0,null,0,null,0]
["Form 1SFS","Balance Sheet GEN/CON","1SFS8b","Loans Receivable - Due in over a year",0,null,0,null,0,null,0,null,0,null,0]
["Form 1SFS","Balance Sheet GEN/CON","1SFS9","Investment Income Due and Accrued",0,null,0,null,0,null,0,null,0,null,0]
["Form 1SFS","Balance Sheet GEN/CON","1SFS10","Receivables from Clearing Brokers",0,null,0,null,0,null,0,null,0,null,0]
["Form 1SFS","Balance Sheet GEN/CON","1SFS11a","Other Received From Digital Asset Business  - Due in one year or less",0,null,0,null,0,null,0,null,0,null,0]
["Form 1SFS","Balance Sheet GEN/CON","1SFS11b","Other Received From Digital Asset Business - Due in over a year",0,null,0,null,0,null,0,null,0,null,0]
["Form 1SFS","Balance Sheet GEN/CON","1SFS12","Digital Assets Held in Custody for Clients",0,null,0,null,0,null,0,null,0,null,0]
["Form 1SFS","Balance Sheet GEN/CON","1SFS13a","Sundry Assets - Derivatives",0,null,0,null,0,null,0,null,0,null,0]
["Form 1SFS","Balance Sheet GEN/CON","1SFS13b","Sundry Assets - Net Rec. for Investments",0,null,0,null,0,null,0,null,0,null,0]
["Form 1SFS","Balance Sheet GEN/CON","1SFS13c","Sundry Assets - Prepaid Expenses",0,null,0,null,0,null,0,null,0,null,0]
["Form 1SFS","Balance Sheet GEN/CON","1SFS13d","Sundry Assets - Goodwill and Other Intangibles",0,null,0,null,0,null,0,null,0,null,0]
["Form 1SFS","Balance Sheet GEN/CON","1SFS13e","Sundry Assets - Other 1",0,null,0,null,0,null,0,null,0,null,0]
["Form 1SFS","Balance Sheet GEN/CON","1SFS13f","Sundry Assets - Other 2",0,null,0,null,0,null,0,null,0,null,0]
["Form 1SFS","Balance Sheet GEN/CON","1SFS13g","Sundry Assets - Other 3",0,null,0,null,0,null,0,null,0,null,0]
["Form 1SFS","Balance Sheet GEN/CON","1SFS14a","Letters of Credit",0,null,0,null,0,null,0,null,0,null,0]
["Form 1SFS","Balance Sheet GEN/CON","1SFS14b","Guarantees",0,null,0,null,0,null,0,null,0,null,0]
["Form 1SFS","Balance Sheet GEN/CON","1SFS14c","Other Instruments",0,null,0,null,0,null,0,null,0,null,0]
["Form 1SFS","Balance Sheet GEN/CON","1SFS15","Total Assets",0,null,0,null,0,null,0]
["Form 1SFS","Balance Sheet GEN/CON","1SFS16","Unearned Premium Reserve ",0,null,0,null,0,null,0,null,0,null,0]
["Form 1SFS","Balance Sheet GEN/CON","1SFS17a","Loss Provision - Gross",0,null,0,null,0,null,0,null,0,null,0]
["Form 1SFS","Balance Sheet GEN/CON","1SFS17bi","R/I Recoverable - Foreign Affiliates",0,null,0,null,0,null,0,null,0,null,0]
["Form 1SFS","Balance Sheet GEN/CON","1SFS17bii","R/I Recoverable - Domestic Affiliates",0,null,0,null,0,null,0,null,0,null,0]
["Form 1SFS","Balance Sheet GEN/CON","1SFS17biii","R/I Recoverable - Pools & Assoc.",0,null,0,null,0,null,0,null,0,null,0]
["Form 1SFS","Balance Sheet GEN/CON","1SFS17biv","R/I Recoverable - All Other",0,null,0,null,0,null,0,null,0,null,0]
["Form 1SFS","Balance Sheet GEN/CON","1SFS18","Other Insurance Reserves",0,null,0,null,0,null,0,null,0,null,0]
["Form 1SFS","Balance Sheet GEN/CON","1SFS28","Contractual Liabilities from Digital Asset Issuance",0,null,0,null,0,null,0,null,0,null,0]
["Form 1SFS","Balance Sheet GEN/CON","1SFS29","Commissions, Expenses and Taxes Payable",0,null,0,null,0,null,0,null,0,null,0]
["Form 1SFS","Balance Sheet GEN/CON","1SFS30","Loans and Notes Payable",0,null,0,null,0,null,0,null,0,null,0]
["Form 1SFS","Balance Sheet GEN/CON","1SFS31a","Income Taxes Payable",0,null,0,null,0,null,0,null,0,null,0]
["Form 1SFS","Balance Sheet GEN/CON","1SFS32","Amounts Due to Affiliates",0,null,0,null,0,null,0,null,0,null,0]
["Form 1SFS","Balance Sheet GEN/CON","1SFS33","Accounts Payable and Accrued Liabilities",0,null,0,null,0,null,0,null,0,null,0]
["Form 1SFS","Balance Sheet GEN/CON","1SFS34","Digital Assets Held in Custody for Clients",0,null,0,null,0,null,0,null,0,null,0]
["Form 1SFS","Balance Sheet GEN/CON","1SFS35","Dividends Payable",0,null,0,null,0,null,0,null,0,null,0]
["Form 1SFS","Balance Sheet GEN/CON","1SFS36a","Sundry Liabilities - Derivative Instruments",0,null,0,null,0,null,0,null,0,null,0]
["Form 1SFS","Balance Sheet GEN/CON","1SFS36b","Sundry Liabilities - Investments Purchased",0,null,0,null,0,null,0,null,0,null,0]
["Form 1SFS","Balance Sheet GEN/CON","1SFS36c","Sundry Liabilities - Other 1",0,null,0,null,0,null,0,null,0,null,0]
["Form 1SFS","Balance Sheet GEN/CON","1SFS36d","Sundry Liabilities - Other 2",0,null,0,null,0,null,0,null,0,null,0]
["Form 1SFS","Balance Sheet GEN/CON","1SFS36e","Sundry Liabilities - Other 3",0,null,0,null,0,null,0,null,0,null,0]
["Form 1SFS","Balance Sheet GEN/CON","1SFS37a","Letters of Credit",0,null,0,null,0,null,0,null,0,null,0]
["Form 1SFS","Balance Sheet GEN/CON","1SFS37b","Guarantees",0,null,0,null,0,null,0,null,0,null,0]
["Form 1SFS","Balance Sheet GEN/CON","1SFS37c","Other Instruments",0,null,0,null,0,null,0,null,0,null,0]
["Form 1SFS","Balance Sheet GEN/CON",null,"Economic Capital & Surplus"]
[]
["Form 1SFS","Notes","Form 1SFS","Line 10 - Collaterized Balances",0,null,0]
["Form 1SFS","Notes","Form 1SFS","Line 11(e) - Collaterized Balances",0,null,0]
["Form 1SFS","Notes","Form 1SFS","Line 17cii - Collat. in Favour of Insurer",0,null,0]
["Form 1SFS","Notes","Form 1SFS","Line 13 - Sundry Assets",0,null,0]
["Form 1SFS","Notes","Form 1SFS","Line 15 - Policy. Oblig. - Cash",0,null,0]
["Form 1SFS","Notes","Form 1SFS","Line 15 - Policy. Oblig. - Quoted. Inv.",0,null,0]
["Form 1SFS","Notes","Form 1SFS","Line 15 - Policy. Oblig. - Unquoted. Inv.",0,null,0]
["Form 1SFS","Notes","Form 1SFS","Line 15 - Policy. Oblig. - Funds Held",0,null,0]
["Form 1SFS","Notes","Form 1SFS","Line 15 - Policy. Oblig. - Other Assets",0,null,0]
["Form 1SFS","Notes","Form 1SFS","Line 15 - Policy. Oblig. - Total",0,null,0]
["Form 1SFS","Notes","Form 1SFS","Line 15 - Other - Cash",0,null,0]
["Form 1SFS","Notes","Form 1SFS","Line 15 - Other - Quoted. Inv.",0,null,0]
["Form 1SFS","Notes","Form 1SFS","Line 15 - Other - Unquoted. Inv.",0,null,0]
["Form 1SFS","Notes","Form 1SFS","Line 15 - Other - Other Assets",0,null,0]
["Form 1SFS","Notes","Form 1SFS","Line 15 - Other - Total",0,null,0]
["Form 1SFS","Notes","Form 1SFS","Line 36 - Sundry Liabilities",0,null,0]
["Form 1SFS","Notes","Form 1SFS","Line 37 - LOC's & Guarantees",0,null,0]
["Form 1SFS","Notes","Form 1SFS","Line 17 - Prior year note disclosure",0]
["Form 1SFS","Notes","Form 1SFS","Gross Provision - Beg. Of Year",0,null,0]
["Form 1SFS","Notes","Form 1SFS","R/I Recoverable - Beg. Of Year",0,null,0]
["Form 1SFS","Notes","Form 1SFS","Net Provision - Beg. Of Year",0,null,0]
["Form 1SFS","Notes","Form 1SFS","Acquisition / Sale of loss reserves (net):",0,null,0]
["Form 1SFS","Notes","Form 1SFS","Net Losses Incurred - Current Year",0,null,0]
["Form 1SFS","Notes","Form 1SFS","Net Losses Incurred - Prior Years",0,null,0]
["Form 1SFS","Notes","Form 1SFS","Net Losses Incurred - Total",0,null,0]
["Form 1SFS","Notes","Form 1SFS","Losses Paid - Current Year",0,null,0]
["Form 1SFS","Notes","Form 1SFS","Losses Paid - Prior Years",0,null,0]
["Form 1SFS","Notes","Form 1SFS","Losses Paid - Total",0,null,0]
["Form 1SFS","Notes","Form 1SFS","Foreign Exchange and Other",0,null,0]
["Form 1SFS","Notes","Form 1SFS","Net Provision - End Of Year",0,null,0]
["Form 1SFS","Notes","Form 1SFS","R/I Recoverable - End Of Year",0,null,0]
["Form 1SFS","Notes","Form 1SFS","Gross Provision - End Of Year",0,null,0]
["Form 1SFS","Notes","Form 1SFS","Insurance - Gross - Open Balance",0,null,0]
["Form 1SFS","Notes","Form 1SFS","Insurance - Gross - Terminations",0,null,0]
["Form 1SFS","Notes","Form 1SFS","Insurance - Gross - New Business",0,null,0]
["Form 1SFS","Notes","Form 1SFS","Insurance - Gross - Chg.In Force",0,null,0]
["Form 1SFS","Notes","Form 1SFS","Insurance - Gross - Mgmt. Actions",0,null,0]
["Form 1SFS","Notes","Form 1SFS","Insurance - Gross - FX",0,null,0]
["Form 1SFS","Notes","Form 1SFS","Insurance - Gross - Closing Balance",0,null,0]
["Form 1SFS","Notes","Form 1SFS","Insurance - R/I - Open Balance",0,null,0]
["Form 1SFS","Notes","Form 1SFS","Insurance - R/I - Terminations",0,null,0]
["Form 1SFS","Notes","Form 1SFS","Insurance - R/I - New Business",0,null,0]
["Form 1SFS","Notes","Form 1SFS","Insurance - R/I - Chg.In Force",0,null,0]
["Form 1SFS","Notes","Form 1SFS","Insurance - R/I - Mgmt. Actions",0,null,0]
["Form 1SFS","Notes","Form 1SFS","Insurance - R/I - FX",0,null,0]
["Form 1SFS","Notes","Form 1SFS","Insurance - R/I - Closing Balance",0,null,0]
["Form 1SFS","Notes","Form 1SFS","Insurance - Net - Open Balance",0,null,0]
["Form 1SFS","Notes","Form 1SFS","Insurance - Net - Terminations",0,null,0]
["Form 1SFS","Notes","Form 1SFS","Insurance - Net - New Business",0,null,0]
["Form 1SFS","Notes","Form 1SFS","Insurance - Net - Chg.In Force",0,null,0]
["Form 1SFS","Notes","Form 1SFS","Insurance - Net - Mgmt. Actions",0,null,0]
["Form 1SFS","Notes","Form 1SFS","Insurance - Net - FX",0,null,0]
["Form 1SFS","Notes","Form 1SFS","Insurance - Net - Closing Balance",0,null,0]
["Form 1SFS","Notes","Form 1SFS","Invmnt - Gross - Open Balance",0,null,0]
["Form 1SFS","Notes","Form 1SFS","Invmnt - Gross - Terminations",0,null,0]
["Form 1SFS","Notes","Form 1SFS","Invmnt - Gross - New Business",0,null,0]
["Form 1SFS","Notes","Form 1SFS","Invmnt - Gross - Chg.In Force",0,null,0]
["Form 1SFS","Notes","Form 1SFS","Invmnt - Gross - Mgmt. Actions",0,null,0]
["Form 1SFS","Notes","Form 1SFS","Invmnt - Gross - FX",0,null,0]
["Form 1SFS","Notes","Form 1SFS","Invmnt - Gross - Closing Balance",0,null,0]
["Form 1SFS","Notes","Form 1SFS","Invmnt - R/I - Open Balance",0,null,0]
["Form 1SFS","Notes","Form 1SFS","Invmnt - R/I - Terminations",0,null,0]
["Form 1SFS","Notes","Form 1SFS","Invmnt - R/I - New Business",0,null,0]
["Form 1SFS","Notes","Form 1SFS","Invmnt - R/I - Chg.In Force",0,null,0]
["Form 1SFS","Notes","Form 1SFS","Invmnt - R/I - Mgmt. Actions",0,null,0]
["Form 1SFS","Notes","Form 1SFS","Invmnt - R/I - FX",0,null,0]
["Form 1SFS","Notes","Form 1SFS","Invmnt - R/I - Closing Balance",0,null,0]
["Form 1SFS","Notes","Form 1SFS","Invmnt - Net - Open Balance",0,null,0]
["Form 1SFS","Notes","Form 1SFS","Invmnt - Net - Terminations",0,null,0]
["Form 1SFS","Notes","Form 1SFS","Invmnt - Net - New Business",0,null,0]
["Form 1SFS","Notes","Form 1SFS","Invmnt - Net - Chg.In Force",0,null,0]
["Form 1SFS","Notes","Form 1SFS","Invmnt - Net - Mgmt. Actions",0,null,0]
["Form 1SFS","Notes","Form 1SFS","Invmnt - Net - FX",0,null,0]
["Form 1SFS","Notes","Form 1SFS","Invmnt - Net - Closing Balance",0,null,0]
[]
[null,null,null,"Line 36(i) - Any Other Liabilities"]
[null,null,null,"Line 36(f) - Details of Deposit Liab."]
[null,null,null,"Line 40 - Recon. 1SFS 40 to 40"]
[null,null,null,"Line 16c - Adj. Counterparty Default"]
[null,null,null,"Line 17ci - Adj. Counterparty Default"]
[null,null,null,"Line 16di - BBNI Premium"]
[null,null,null,"Line 16dii - BBNI Best Est. Prem"]
[null,null,null,"Line 17di - Loss Provision Discount"]
[null,null,null,"Line 17dii - Scenario Based Approach"]
[null,null,null,"Best Estimate Provision - Beg. Of Year"]
[null,null,null,"Unwind of Discount"]
[null,null,null,"Net Loss Paid - Prior Years"]
[null,null,null,"Net Losses Incurred - Prior Years"]
[null,null,null,"Best Estimate Provision - From PY"]
[null,null,null,"Net Losses Incurred - Current Year"]
[null,null,null,"Net Loss Paid - Current Year"]
[null,null,null,"Foreign Exchange and Other"]
[null,null,null,"Best Estimate Provision - From CY"]
[null,null,null,"Impact of Change in Discount Curve"]
[null,null,null,"Best Estimate Provision - End Of Year"]
[]
[null,null,null,"Income Statement - CONSOLIDATED"]
["Form 2SFS","Income Stmt Uncon GEN / CON","2SFS1a","Gross Premium Written - Direct",0,null,0,null,0,null,0,null,0,null,0]
["Form 2SFS","Income Stmt Uncon GEN / CON","2SFS1b","Gross Premium Written - Assumed",0,null,0,null,0,null,0,null,0,null,0]
["Form 2SFS","Income Stmt Uncon GEN / CON","2SFS2","R/I Premiums Ceded",0,null,0,null,0,null,0,null,0,null,0]
["Form 2SFS","Income Stmt Uncon GEN / CON","2SFS4","Change in Unearned Premiums",0,null,0,null,0,null,0,null,0,null,0]
["Form 2SFS","Income Stmt Uncon GEN / CON","2SFS6","Other Insurance Income",0,null,0,null,0,null,0,null,0,null,0]
["Form 2SFS","Income Stmt Uncon GEN / CON","2SFS8","Net Losses Incurred",0,null,0,null,0,null,0,null,0,null,0]
["Form 2SFS","Income Stmt Uncon GEN / CON","2SFS9","Commissions & Brokerage",0,null,0,null,0,null,0,null,0,null,0]
["Form 2SFS","Income Stmt Uncon GEN / CON","2SFS30a","Operating Expense - G&A",0,null,0,null,0,null,0,null,0,null,0]
["Form 2SFS","Income Stmt Uncon GEN / CON","2SFS30b","Operating Expense - Personnel Costs",0,null,0,null,0,null,0,null,0,null,0]
["Form 2SFS","Income Stmt Uncon GEN / CON","2SFS30c","Operating Expense - Other",0,null,0,null,0,null,0,null,0,null,0]
["Form 2SFS","Income Stmt Uncon GEN / CON","2SFS31","Investment Income",0,null,0,null,0,null,0,null,0,null,0]
["Form 2SFS","Income Stmt Uncon GEN / CON","2SFS32","Other Income",0,null,0,null,0,null,0,null,0,null,0]
["Form 2SFS","Income Stmt Uncon GEN / CON","2SFS34a","Income Tax - Current",0,null,0,null,0,null,0,null,0,null,0]
["Form 2SFS","Income Stmt Uncon GEN / CON","2SFS34b","Income Tax - Deferred",0,null,0,null,0,null,0,null,0,null,0]
["Form 2SFS","Income Stmt Uncon GEN / CON","2SFS36","Realized Gains/Losses",0,null,0,null,0,null,0,null,0,null,0]
["Form 2SFS","Income Stmt Uncon GEN / CON","2SFS37","Interest Charges",0,null,0,null,0,null,0,null,0,null,0]
[]
[null,null,null,"Statement of Capital & Surplus - CONSOLIDATED"]
["Form 8SFS","Stmt of C&S Uncon GEN / CON","8SFS1ai","Capital Stock",0,null,0,null,0,null,0]
["Form 8SFS","Stmt of C&S Uncon GEN / CON",null,"Common Stock",null,null,null,null,null,null,null,null,0,null,0]
["Form 8SFS","Stmt of C&S Uncon GEN / CON","8SFS1aii","Preferred Shares",null,null,null,null,null,null,null,null,0,null,0]
["Form 8SFS","Stmt of C&S Uncon GEN / CON","8SFS1aiii","Treasury Shares",null,null,null,null,null,null,null,null,0,null,0]
["Form 8SFS","Stmt of C&S Uncon GEN / CON","8SFS1aiv","Tokenized Equity Shares",null,null,null,null,null,null,null,null,0,null,0]
["Form 8SFS","Stmt of C&S Uncon GEN / CON","8SFS1b","Contributed Surplus",0,null,0,null,0,null,0,null,0,null,0]
["Form 8SFS","Stmt of C&S Uncon GEN / CON","8SFS1ci","Other Fixed Capital - Hybrid Instruments",0,null,0,null,0,null,0,null,0,null,0]
["Form 8SFS","Stmt of C&S Uncon GEN / CON","8SFS1cii","Other Fixed Capital - Guarantees & Others",0,null,0,null,0,null,0,null,0,null,0]
["Form 8SFS","Stmt of C&S Uncon GEN / CON","8SFS2a","Statutory Surplus - Beginning of Year",0,null,0,null,0,null,0,null,0,null,0]
["Form 8SFS","Stmt of C&S Uncon GEN / CON","8SFS2c","Dividends",0,null,0,null,0,null,0,null,0,null,0]
["Form 8SFS","Stmt of C&S Uncon GEN / CON","8SFS2d","Unrealized Change in Investments",0,null,0,null,0,null,0,null,0,null,0]
["Form 8SFS","Stmt of C&S Uncon GEN / CON","8SFS2e","Change in Non-Admitted Assets",0,null,0,null,0,null,0,null,0,null,0]
["Form 8SFS","Stmt of C&S Uncon GEN / CON","8SFS2f","Change in Real Estate",0,null,0,null,0,null,0,null,0,null,0]
["Form 8SFS","Stmt of C&S Uncon GEN / CON","8SFS2g","Change in Other Statutory Capital",0,null,0,null,0,null,0,null,0,null,0]
["Form 8SFS","Stmt of C&S Uncon GEN / CON","8SFS3","Minority Interest",0,null,0,null,0,null,0,null,0,null,0]
[]
[null,null,null,"BSCR Schedules "]
["Sch II","Investments",null,"Corp. Bonds - BSCR Rate 0",0,null,0,null,null,null,null,null,0,null,0]
["Sch II","Investments",null,"Corp. Bonds - BSCR Rate 1",0,null,0,null,null,null,null,null,0,null,0]
["Sch II","Investments",null,"Corp. Bonds - BSCR Rate 2",0,null,0,null,null,null,null,null,0,null,0]
["Sch II","Investments",null,"Corp. Bonds - BSCR Rate 3",0,null,0,null,null,null,null,null,0,null,0]
["Sch II","Investments",null,"Corp. Bonds - BSCR Rate 4",0,null,0,null,null,null,null,null,0,null,0]
["Sch II","Investments",null,"Corp. Bonds - BSCR Rate 5",0,null,0,null,null,null,null,null,0,null,0]
["Sch II","Investments",null,"Corp. Bonds - BSCR Rate 6",0,null,0,null,null,null,null,null,0,null,0]
["Sch II","Investments",null,"Corp. Bonds - BSCR Rate 7",0,null,0,null,null,null,null,null,0,null,0]
["Sch II","Investments",null,"Corp. Bonds - BSCR Rate 8",0,null,0,null,null,null,null,null,0,null,0]
["Sch II","Investments",null,"Residential MBS - BSCR Rate 1",0,null,0,null,null,null,null,null,0,null,0]
["Sch II","Investments",null,"Residential MBS - BSCR Rate 2",0,null,0,null,null,null,null,null,0,null,0]
["Sch II","Investments",null,"Residential MBS - BSCR Rate 3",0,null,0,null,null,null,null,null,0,null,0]
["Sch II","Investments",null,"Residential MBS - BSCR Rate 4",0,null,0,null,null,null,null,null,0,null,0]
["Sch II","Investments",null,"Residential MBS - BSCR Rate 5",0,null,0,null,null,null,null,null,0,null,0]
["Sch II","Investments",null,"Residential MBS - BSCR Rate 6",0,null,0,null,null,null,null,null,0,null,0]
["Sch II","Investments",null,"Residential MBS - BSCR Rate 7",0,null,0,null,null,null,null,null,0,null,0]
["Sch II","Investments",null,"Residential MBS - BSCR Rate 8",0,null,0,null,null,null,null,null,0,null,0]
["Sch II","Investments",null,"Commercial MBS - BSCR Rate 1",0,null,0,null,null,null,null,null,0,null,0]
["Sch II","Investments",null,"Commercial MBS - BSCR Rate 2",0,null,0,null,null,null,null,null,0,null,0]
["Sch II","Investments",null,"Commercial MBS - BSCR Rate 3",0,null,0,null,null,null,null,null,0,null,0]
["Sch II","Investments",null,"Commercial MBS - BSCR Rate 4",0,null,0,null,null,null,null,null,0,null,0]
["Sch II","Investments",null,"Commercial MBS - BSCR Rate 5",0,null,0,null,null,null,null,null,0,null,0]
["Sch II","Investments",null,"Commercial MBS - BSCR Rate 6",0,null,0,null,null,null,null,null,0,null,0]
["Sch II","Investments",null,"Commercial MBS - BSCR Rate 7",0,null,0,null,null,null,null,null,0,null,0]
["Sch II","Investments",null,"Commercial MBS - BSCR Rate 8",0,null,0,null,null,null,null,null,0,null,0]
["Sch II","Investments",null,"Bonds Mutual Fund - BSCR Rate 0",0,null,0,null,null,null,null,null,0,null,0]
["Sch II","Investments",null,"Bonds Mutual Fund - BSCR Rate 1",0,null,0,null,null,null,null,null,0,null,0]
["Sch II","Investments",null,"Bonds Mutual Fund - BSCR Rate 2",0,null,0,null,null,null,null,null,0,null,0]
["Sch II","Investments",null,"Bonds Mutual Fund - BSCR Rate 3",0,null,0,null,null,null,null,null,0,null,0]
["Sch II","Investments",null,"Bonds Mutual Fund - BSCR Rate 4",0,null,0,null,null,null,null,null,0,null,0]
["Sch II","Investments",null,"Bonds Mutual Fund - BSCR Rate 5",0,null,0,null,null,null,null,null,0,null,0]
["Sch II","Investments",null,"Bonds Mutual Fund - BSCR Rate 6",0,null,0,null,null,null,null,null,0,null,0]
["Sch II","Investments",null,"Bonds Mutual Fund - BSCR Rate 7",0,null,0,null,null,null,null,null,0,null,0]
["Sch II","Investments",null,"Bonds Mutual Fund - BSCR Rate 8",0,null,0,null,null,null,null,null,0,null,0]
["Sch II","Investments",null,"Common Shares - Quoted",0,null,0,null,null,null,null,null,0,null,0]
["Sch II","Investments",null,"Common Shares - Unquoted",0,null,0,null,null,null,null,null,0,null,0]
["Sch II","Investments",null,"Preferred Shares - BSCR Rate 1",0,null,0,null,null,null,null,null,0,null,0]
["Sch II","Investments",null,"Preferred Shares - BSCR Rate 2",0,null,0,null,null,null,null,null,0,null,0]
["Sch II","Investments",null,"Preferred Shares - BSCR Rate 3",0,null,0,null,null,null,null,null,0,null,0]
["Sch II","Investments",null,"Preferred Shares - BSCR Rate 4",0,null,0,null,null,null,null,null,0,null,0]
["Sch II","Investments",null,"Preferred Shares - BSCR Rate 5",0,null,0,null,null,null,null,null,0,null,0]
["Sch II","Investments",null,"Preferred Shares - BSCR Rate 6",0,null,0,null,null,null,null,null,0,null,0]
["Sch II","Investments",null,"Preferred Shares - BSCR Rate 7",0,null,0,null,null,null,null,null,0,null,0]
["Sch II","Investments",null,"Preferred Shares - BSCR Rate 8",0,null,0,null,null,null,null,null,0,null,0]
["Sch II","Investments",null,"Equity Mutual Funds -  Quoted",0,null,0,null,null,null,null,null,0,null,0]
["Sch II","Investments",null,"Equity Mutual Funds -  Unquoted",0,null,0,null,null,null,null,null,0,null,0]
["Sch II","Investments",null,"Mortgage Loans - Insured",0,null,0,null,null,null,null,null,0,null,0]
["Sch II","Investments",null,"Mortgage Loans - Other Commercial",0,null,0,null,null,null,null,null,0,null,0]
["Sch II","Investments",null,"Mortgage Loans - Other Residential",0,null,0,null,null,null,null,null,0,null,0]
["Sch II","Investments",null,"Mortgage Loans - Not Good Stand.",0,null,0,null,null,null,null,null,0,null,0]
["Sch II","Investments",null,"NAIC Resid. MBS - Orig. Class 1",0,null,null,null,null,null,null,null,0]
["Sch II","Investments",null,"NAIC Resid. MBS - Orig. Class 2",0,null,null,null,null,null,null,null,0]
["Sch II","Investments",null,"NAIC Resid. MBS - Orig. Class 3",0,null,null,null,null,null,null,null,0]
["Sch II","Investments",null,"NAIC Resid. MBS - Orig. Class 4",0,null,null,null,null,null,null,null,0]
["Sch II","Investments",null,"NAIC Resid. MBS - Orig. Class 5",0,null,null,null,null,null,null,null,0]
["Sch II","Investments",null,"NAIC Resid. MBS - Orig. Class 6",0,null,null,null,null,null,null,null,0]
["Sch II","Investments",null,"NAIC Resid. MBS - Orig. Total",0,null,null,null,null,null,null,null,0]
["Sch II","Investments",null,"NAIC Resid. MBS - Rev. Class 1",0,null,null,null,null,null,null,null,0]
["Sch II","Investments",null,"NAIC Resid. MBS - Rev. Class 2",0,null,null,null,null,null,null,null,0]
["Sch II","Investments",null,"NAIC Resid. MBS - Rev. Class 3",0,null,null,null,null,null,null,null,0]
["Sch II","Investments",null,"NAIC Resid. MBS - Rev. Class 4",0,null,null,null,null,null,null,null,0]
["Sch II","Investments",null,"NAIC Resid. MBS - Rev. Class 5",0,null,null,null,null,null,null,null,0]
["Sch II","Investments",null,"NAIC Resid. MBS - Rev. Class 6",0,null,null,null,null,null,null,null,0]
["Sch II","Investments",null,"NAIC Resid. MBS - Rev. Total",0,null,null,null,null,null,null,null,0]
["Sch II","Investments",null,"NAIC Comm. MBS - Orig. Class 1",0,null,null,null,null,null,null,null,0]
["Sch II","Investments",null,"NAIC Comm. MBS - Orig. Class 2",0,null,null,null,null,null,null,null,0]
["Sch II","Investments",null,"NAIC Comm. MBS - Orig. Class 3",0,null,null,null,null,null,null,null,0]
["Sch II","Investments",null,"NAIC Comm. MBS - Orig. Class 4",0,null,null,null,null,null,null,null,0]
["Sch II","Investments",null,"NAIC Comm. MBS - Orig. Class 5",0,null,null,null,null,null,null,null,0]
["Sch II","Investments",null,"NAIC Comm. MBS - Orig. Class 6",0,null,null,null,null,null,null,null,0]
["Sch II","Investments",null,"NAIC Comm. MBS - Orig. Total",0,null,null,null,null,null,null,null,0]
["Sch II","Investments",null,"NAIC Comm. MBS - Rev. Class 1",0,null,null,null,null,null,null,null,0]
["Sch II","Investments",null,"NAIC Comm. MBS - Rev. Class 2",0,null,null,null,null,null,null,null,0]
["Sch II","Investments",null,"NAIC Comm. MBS - Rev. Class 3",0,null,null,null,null,null,null,null,0]
["Sch II","Investments",null,"NAIC Comm. MBS - Rev. Class 4",0,null,null,null,null,null,null,null,0]
["Sch II","Investments",null,"NAIC Comm. MBS - Rev. Class 5",0,null,null,null,null,null,null,null,0]
["Sch II","Investments",null,"NAIC Comm. MBS - Rev. Class 6",0,null,null,null,null,null,null,null,0]
["Sch II","Investments",null,"NAIC Comm. MBS - Rev. Total",0,null,null,null,null,null,null,null,0]
[]
["Sch IIA","Funds Held",null,"Corp. Bonds - BSCR Rate 0",0,null,0,null,null,null,null,null,0,null,0]
["Sch IIA","Funds Held",null,"Corp. Bonds - BSCR Rate 1",0,null,0,null,null,null,null,null,0,null,0]
["Sch IIA","Funds Held",null,"Corp. Bonds - BSCR Rate 2",0,null,0,null,null,null,null,null,0,null,0]
["Sch IIA","Funds Held",null,"Corp. Bonds - BSCR Rate 3",0,null,0,null,null,null,null,null,0,null,0]
["Sch IIA","Funds Held",null,"Corp. Bonds - BSCR Rate 4",0,null,0,null,null,null,null,null,0,null,0]
["Sch IIA","Funds Held",null,"Corp. Bonds - BSCR Rate 5",0,null,0,null,null,null,null,null,0,null,0]
["Sch IIA","Funds Held",null,"Corp. Bonds - BSCR Rate 6",0,null,0,null,null,null,null,null,0,null,0]
["Sch IIA","Funds Held",null,"Corp. Bonds - BSCR Rate 7",0,null,0,null,null,null,null,null,0,null,0]
["Sch IIA","Funds Held",null,"Corp. Bonds - BSCR Rate 8",0,null,0,null,null,null,null,null,0,null,0]
["Sch IIA","Funds Held",null,"Residential MBS - BSCR Rate 1",0,null,0,null,null,null,null,null,0,null,0]
["Sch IIA","Funds Held",null,"Residential MBS - BSCR Rate 2",0,null,0,null,null,null,null,null,0,null,0]
["Sch IIA","Funds Held",null,"Residential MBS - BSCR Rate 3",0,null,0,null,null,null,null,null,0,null,0]
["Sch IIA","Funds Held",null,"Residential MBS - BSCR Rate 4",0,null,0,null,null,null,null,null,0,null,0]
["Sch IIA","Funds Held",null,"Residential MBS - BSCR Rate 5",0,null,0,null,null,null,null,null,0,null,0]
["Sch IIA","Funds Held",null,"Residential MBS - BSCR Rate 6",0,null,0,null,null,null,null,null,0,null,0]
["Sch IIA","Funds Held",null,"Residential MBS - BSCR Rate 7",0,null,0,null,null,null,null,null,0,null,0]
["Sch IIA","Funds Held",null,"Residential MBS - BSCR Rate 8",0,null,0,null,null,null,null,null,0,null,0]
["Sch IIA","Funds Held",null,"Commercial MBS - BSCR Rate 1",0,null,0,null,null,null,null,null,0,null,0]
["Sch IIA","Funds Held",null,"Commercial MBS - BSCR Rate 2",0,null,0,null,null,null,null,null,0,null,0]
["Sch IIA","Funds Held",null,"Commercial MBS - BSCR Rate 3",0,null,0,null,null,null,null,null,0,null,0]
["Sch IIA","Funds Held",null,"Commercial MBS - BSCR Rate 4",0,null,0,null,null,null,null,null,0,null,0]
["Sch IIA","Funds Held",null,"Commercial MBS - BSCR Rate 5",0,null,0,null,null,null,null,null,0,null,0]
["Sch IIA","Funds Held",null,"Commercial MBS - BSCR Rate 6",0,null,0,null,null,null,null,null,0,null,0]
["Sch IIA","Funds Held",null,"Commercial MBS - BSCR Rate 7",0,null,0,null,null,null,null,null,0,null,0]
["Sch IIA","Funds Held",null,"Commercial MBS - BSCR Rate 8",0,null,0,null,null,null,null,null,0,null,0]
["Sch IIA","Funds Held",null,"Bonds Mutual Fund - BSCR Rate 0",0,null,0,null,null,null,null,null,0,null,0]
["Sch IIA","Funds Held",null,"Bonds Mutual Fund - BSCR Rate 1",0,null,0,null,null,null,null,null,0,null,0]
["Sch IIA","Funds Held",null,"Bonds Mutual Fund - BSCR Rate 2",0,null,0,null,null,null,null,null,0,null,0]
["Sch IIA","Funds Held",null,"Bonds Mutual Fund - BSCR Rate 3",0,null,0,null,null,null,null,null,0,null,0]
["Sch IIA","Funds Held",null,"Bonds Mutual Fund - BSCR Rate 4",0,null,0,null,null,null,null,null,0,null,0]
["Sch IIA","Funds Held",null,"Bonds Mutual Fund - BSCR Rate 5",0,null,0,null,null,null,null,null,0,null,0]
["Sch IIA","Funds Held",null,"Bonds Mutual Fund - BSCR Rate 6",0,null,0,null,null,null,null,null,0,null,0]
["Sch IIA","Funds Held",null,"Bonds Mutual Fund - BSCR Rate 7",0,null,0,null,null,null,null,null,0,null,0]
["Sch IIA","Funds Held",null,"Bonds Mutual Fund - BSCR Rate 8",0,null,0,null,null,null,null,null,0,null,0]
["Sch IIA","Funds Held",null,"Common Shares - Quoted",0,null,0,null,null,null,null,null,0,null,0]
["Sch IIA","Funds Held",null,"Common Shares - Unquoted",0,null,0,null,null,null,null,null,0,null,0]
["Sch IIA","Funds Held",null,"Preferred Shares - BSCR Rate 1",0,null,0,null,null,null,null,null,0,null,0]
["Sch IIA","Funds Held",null,"Preferred Shares - BSCR Rate 2",0,null,0,null,null,null,null,null,0,null,0]
["Sch IIA","Funds Held",null,"Preferred Shares - BSCR Rate 3",0,null,0,null,null,null,null,null,0,null,0]
["Sch IIA","Funds Held",null,"Preferred Shares - BSCR Rate 4",0,null,0,null,null,null,null,null,0,null,0]
["Sch IIA","Funds Held",null,"Preferred Shares - BSCR Rate 5",0,null,0,null,null,null,null,null,0,null,0]
["Sch IIA","Funds Held",null,"Preferred Shares - BSCR Rate 6",0,null,0,null,null,null,null,null,0,null,0]
["Sch IIA","Funds Held",null,"Preferred Shares - BSCR Rate 7",0,null,0,null,null,null,null,null,0,null,0]
["Sch IIA","Funds Held",null,"Preferred Shares - BSCR Rate 8",0,null,0,null,null,null,null,null,0,null,0]
["Sch IIA","Funds Held",null,"Equity Mutual Funds -  Quoted",0,null,0,null,null,null,null,null,0,null,0]
["Sch IIA","Funds Held",null,"Equity Mutual Funds -  Unquoted",0,null,0,null,null,null,null,null,0,null,0]
["Sch IIA","Funds Held",null,"Other Investments -  Quoted",0,null,0,null,null,null,null,null,0,null,0]
["Sch IIA","Funds Held",null,"Other Investments -  Unquoted",0,null,0,null,null,null,null,null,0,null,0]
["Sch IIA","Funds Held",null,"Mortgage Loans - Insured",0,null,0,null,null,null,null,null,0,null,0]
["Sch IIA","Funds Held",null,"Mortgage Loans - Other Commercial",0,null,0,null,null,null,null,null,0,null,0]
["Sch IIA","Funds Held",null,"Mortgage Loans - Other Residential",0,null,0,null,null,null,null,null,0,null,0]
["Sch IIA","Funds Held",null,"Mortgage Loans - Not Good Stand.",0,null,0,null,null,null,null,null,0,null,0]
["Sch IIA","Funds Held",null,"Cash and Cash Equivalents",0,null,0,null,null,null,null,null,0,null,0]
["Sch IIA","Funds Held",null,"NAIC Resid. MBS - Orig. Class 1",0,null,null,null,null,null,null,null,0]
["Sch IIA","Funds Held",null,"NAIC Resid. MBS - Orig. Class 2",0,null,null,null,null,null,null,null,0]
["Sch IIA","Funds Held",null,"NAIC Resid. MBS - Orig. Class 3",0,null,null,null,null,null,null,null,0]
["Sch IIA","Funds Held",null,"NAIC Resid. MBS - Orig. Class 4",0,null,null,null,null,null,null,null,0]
["Sch IIA","Funds Held",null,"NAIC Resid. MBS - Orig. Class 5",0,null,null,null,null,null,null,null,0]
["Sch IIA","Funds Held",null,"NAIC Resid. MBS - Orig. Class 6",0,null,null,null,null,null,null,null,0]
["Sch IIA","Funds Held",null,"NAIC Resid. MBS - Orig. Total",0,null,null,null,null,null,null,null,0]
["Sch IIA","Funds Held",null,"NAIC Resid. MBS - Rev. Class 1",0,null,null,null,null,null,null,null,0]
["Sch IIA","Funds Held",null,"NAIC Resid. MBS - Rev. Class 2",0,null,null,null,null,null,null,null,0]
["Sch IIA","Funds Held",null,"NAIC Resid. MBS - Rev. Class 3",0,null,null,null,null,null,null,null,0]
["Sch IIA","Funds Held",null,"NAIC Resid. MBS - Rev. Class 4",0,null,null,null,null,null,null,null,0]
["Sch IIA","Funds Held",null,"NAIC Resid. MBS - Rev. Class 5",0,null,null,null,null,null,null,null,0]
["Sch IIA","Funds Held",null,"NAIC Resid. MBS - Rev. Class 6",0,null,null,null,null,null,null,null,0]
["Sch IIA","Funds Held",null,"NAIC Resid. MBS - Rev. Total",0,null,null,null,null,null,null,null,0]
["Sch IIA","Funds Held",null,"NAIC Comm. MBS - Orig. Class 1",0,null,null,null,null,null,null,null,0]
["Sch IIA","Funds Held",null,"NAIC Comm. MBS - Orig. Class 2",0,null,null,null,null,null,null,null,0]
["Sch IIA","Funds Held",null,"NAIC Comm. MBS - Orig. Class 3",0,null,null,null,null,null,null,null,0]
["Sch IIA","Funds Held",null,"NAIC Comm. MBS - Orig. Class 4",0,null,null,null,null,null,null,null,0]
["Sch IIA","Funds Held",null,"NAIC Comm. MBS - Orig. Class 5",0,null,null,null,null,null,null,null,0]
["Sch IIA","Funds Held",null,"NAIC Comm. MBS - Orig. Class 6",0,null,null,null,null,null,null,null,0]
["Sch IIA","Funds Held",null,"NAIC Comm. MBS - Orig. Total",0,null,null,null,null,null,null,null,0]
["Sch IIA","Funds Held",null,"NAIC Comm. MBS - Rev. Class 1",0,null,null,null,null,null,null,null,0]
["Sch IIA","Funds Held",null,"NAIC Comm. MBS - Rev. Class 2",0,null,null,null,null,null,null,null,0]
["Sch IIA","Funds Held",null,"NAIC Comm. MBS - Rev. Class 3",0,null,null,null,null,null,null,null,0]
["Sch IIA","Funds Held",null,"NAIC Comm. MBS - Rev. Class 4",0,null,null,null,null,null,null,null,0]
["Sch IIA","Funds Held",null,"NAIC Comm. MBS - Rev. Class 5",0,null,null,null,null,null,null,null,0]
["Sch IIA","Funds Held",null,"NAIC Comm. MBS - Rev. Class 6",0,null,null,null,null,null,null,null,0]
["Sch IIA","Funds Held",null,"NAIC Comm. MBS - Rev. Total",0,null,null,null,null,null,null,null,0]
[]
["Sch III","Losses by Line",null,"Reserve - Property Catastrophe",0,null,0]
["Sch III","Losses by Line",null,"Reserve - Property",0,null,0]
["Sch III","Losses by Line",null,"Reserve - Property Non-Proportion",0,null,0]
["Sch III","Losses by Line",null,"Reserve - Personal Accident",0,null,0]
["Sch III","Losses by Line",null,"Reserve - Personal Acc. Non Prop.",0,null,0]
["Sch III","Losses by Line",null,"Reserve - Aviation",0,null,0]
["Sch III","Losses by Line",null,"Reserve - Aviation Non-Proportional",0,null,0]
["Sch III","Losses by Line",null,"Reserve - Credit Surety",0,null,0]
["Sch III","Losses by Line",null,"Reserve - Credit Surety Non-Prop.",0,null,0]
["Sch III","Losses by Line",null,"Reserve - Energy",0,null,0]
["Sch III","Losses by Line",null,"Reserve - Energy Non-Proportional",0,null,0]
["Sch III","Losses by Line",null,"Reserve - US Casualty",0,null,0]
["Sch III","Losses by Line",null,"Reserve - US Casualty Non-Prop.",0,null,0]
["Sch III","Losses by Line",null,"Reserve - US Professional",0,null,0]
["Sch III","Losses by Line",null,"Reserve - US Professional Non-Prop.",0,null,0]
["Sch III","Losses by Line",null,"Reserve - US Specialty",0,null,0]
["Sch III","Losses by Line",null,"Reserve - US Specialty Non-Prop.",0,null,0]
["Sch III","Losses by Line",null,"Reserve - Int'l Motor",0,null,0]
["Sch III","Losses by Line",null,"Reserve - Int'l Motor Non-Prop.",0,null,0]
["Sch III","Losses by Line",null,"Reserve - Int'l Casualty",0,null,0]
["Sch III","Losses by Line",null,"Reserve - Int'l Casualty Non-Prop.",0,null,0]
["Sch III","Losses by Line",null,"Reserve - Retro Property",0,null,0]
["Sch III","Losses by Line",null,"Reserve - Structured / Finite R/I",0,null,0]
["Sch III","Losses by Line",null,"Reserve - Health",0,null,0]
[]
["Sch IIB","Investments",null,"Corp. Bonds - BSCR Rate 0",null,null,null,null,null,null,null,null,0,null,0]
["Sch IIB","Investments",null,"Corp. Bonds - BSCR Rate 1",null,null,null,null,null,null,null,null,0,null,0]
["Sch IIB","Investments",null,"Corp. Bonds - BSCR Rate 2",null,null,null,null,null,null,null,null,0,null,0]
["Sch IIB","Investments",null,"Corp. Bonds - BSCR Rate 3",null,null,null,null,null,null,null,null,0,null,0]
["Sch IIB","Investments",null,"Corp. Bonds - BSCR Rate 4",null,null,null,null,null,null,null,null,0,null,0]
["Sch IIB","Investments",null,"Corp. Bonds - BSCR Rate 5",null,null,null,null,null,null,null,null,0,null,0]
["Sch IIB","Investments",null,"Corp. Bonds - BSCR Rate 6",null,null,null,null,null,null,null,null,0,null,0]
["Sch IIB","Investments",null,"Corp. Bonds - BSCR Rate 7",null,null,null,null,null,null,null,null,0,null,0]
["Sch IIB","Investments",null,"Corp. Bonds - BSCR Rate 8",null,null,null,null,null,null,null,null,0,null,0]
["Sch IIB","Investments",null,"Residential MBS - BSCR Rate 1",null,null,null,null,null,null,null,null,0,null,0]
["Sch IIB","Investments",null,"Residential MBS - BSCR Rate 2",null,null,null,null,null,null,null,null,0,null,0]
["Sch IIB","Investments",null,"Residential MBS - BSCR Rate 3",null,null,null,null,null,null,null,null,0,null,0]
["Sch IIB","Investments",null,"Residential MBS - BSCR Rate 4",null,null,null,null,null,null,null,null,0,null,0]
["Sch IIB","Investments",null,"Residential MBS - BSCR Rate 5",null,null,null,null,null,null,null,null,0,null,0]
["Sch IIB","Investments",null,"Residential MBS - BSCR Rate 6",null,null,null,null,null,null,null,null,0,null,0]
["Sch IIB","Investments",null,"Residential MBS - BSCR Rate 7",null,null,null,null,null,null,null,null,0,null,0]
["Sch IIB","Investments",null,"Residential MBS - BSCR Rate 8",null,null,null,null,null,null,null,null,0,null,0]
["Sch IIB","Investments",null,"Commercial MBS - BSCR Rate 1",null,null,null,null,null,null,null,null,0,null,0]
["Sch IIB","Investments",null,"Commercial MBS - BSCR Rate 2",null,null,null,null,null,null,null,null,0,null,0]
["Sch IIB","Investments",null,"Commercial MBS - BSCR Rate 3",null,null,null,null,null,null,null,null,0,null,0]
["Sch IIB","Investments",null,"Commercial MBS - BSCR Rate 4",null,null,null,null,null,null,null,null,0,null,0]
["Sch IIB","Investments",null,"Commercial MBS - BSCR Rate 5",null,null,null,null,null,null,null,null,0,null,0]
["Sch IIB","Investments",null,"Commercial MBS - BSCR Rate 6",null,null,null,null,null,null,null,null,0,null,0]
["Sch IIB","Investments",null,"Commercial MBS - BSCR Rate 7",null,null,null,null,null,null,null,null,0,null,0]
["Sch IIB","Investments",null,"Commercial MBS - BSCR Rate 8",null,null,null,null,null,null,null,null,0,null,0]
["Sch IIB","Investments",null,"Bonds Mutual Fund - BSCR Rate 0",null,null,null,null,null,null,null,null,0,null,0]
["Sch IIB","Investments",null,"Bonds Mutual Fund - BSCR Rate 1",null,null,null,null,null,null,null,null,0,null,0]
["Sch IIB","Investments",null,"Bonds Mutual Fund - BSCR Rate 2",null,null,null,null,null,null,null,null,0,null,0]
["Sch IIB","Investments",null,"Bonds Mutual Fund - BSCR Rate 3",null,null,null,null,null,null,null,null,0,null,0]
["Sch IIB","Investments",null,"Bonds Mutual Fund - BSCR Rate 4",null,null,null,null,null,null,null,null,0,null,0]
["Sch IIB","Investments",null,"Bonds Mutual Fund - BSCR Rate 5",null,null,null,null,null,null,null,null,0,null,0]
["Sch IIB","Investments",null,"Bonds Mutual Fund - BSCR Rate 6",null,null,null,null,null,null,null,null,0,null,0]
["Sch IIB","Investments",null,"Bonds Mutual Fund - BSCR Rate 7",null,null,null,null,null,null,null,null,0,null,0]
["Sch IIB","Investments",null,"Bonds Mutual Fund - BSCR Rate 8",null,null,null,null,null,null,null,null,0,null,0]
["Sch IIB","Investments",null,"Mortgage Loans - Insured",null,null,null,null,null,null,null,null,0,null,0]
["Sch IIB","Investments",null,"Mortgage Loans - Other Commercial",null,null,null,null,null,null,null,null,0,null,0]
["Sch IIB","Investments",null,"Mortgage Loans - Other Residential",null,null,null,null,null,null,null,null,0,null,0]
["Sch IIB","Investments",null,"Mortgage Loans - Not Good Stand.",null,null,null,null,null,null,null,null,0,null,0]
["Sch IIB","Investments",null,"Long Positions - Before - Strategic Holdings - Listed",null,null,null,null,null,null,null,null,0]
["Sch IIB","Investments",null,"Long Positions - Before - Duration Based",null,null,null,null,null,null,null,null,0]
["Sch IIB","Investments",null,"Long Positions - Before - Listed Equity Securities in Developed Markets",null,null,null,null,null,null,null,null,0]
["Sch IIB","Investments",null,"Long Positions - Before - Preferred Stocks, BSCR Rating 1",null,null,null,null,null,null,null,null,0]
["Sch IIB","Investments",null,"Long Positions - Before - Preferred Stocks, BSCR Rating 2",null,null,null,null,null,null,null,null,0]
["Sch IIB","Investments",null,"Long Positions - Before - Preferred Stocks, BSCR Rating 3",null,null,null,null,null,null,null,null,0]
["Sch IIB","Investments",null,"Long Positions - Before - Preferred Stocks, BSCR Rating 4",null,null,null,null,null,null,null,null,0]
["Sch IIB","Investments",null,"Long Positions - Before - Preferred Stocks, BSCR Rating 5",null,null,null,null,null,null,null,null,0]
["Sch IIB","Investments",null,"Long Positions - Before - Preferred Stocks, BSCR Rating 6",null,null,null,null,null,null,null,null,0]
["Sch IIB","Investments",null,"Long Positions - Before - Preferred Stocks, BSCR Rating 7",null,null,null,null,null,null,null,null,0]
["Sch IIB","Investments",null,"Long Positions - Before - Preferred Stocks, BSCR Rating 8",null,null,null,null,null,null,null,null,0]
["Sch IIB","Investments",null,"Long Positions - Before - Equity Derivatives on Type 1 Equities",null,null,null,null,null,null,null,null,0]
["Sch IIB","Investments",null,"Long Positions - Before - Strategic Holdings - Unlisted",null,null,null,null,null,null,null,null,0]
["Sch IIB","Investments",null,"Long Positions - Before - Other Equities",null,null,null,null,null,null,null,null,0]
["Sch IIB","Investments",null,"Long Positions - Before - Letters of Credit",null,null,null,null,null,null,null,null,0]
["Sch IIB","Investments",null,"Long Positions - Before - Intangible assets",null,null,null,null,null,null,null,null,0]
["Sch IIB","Investments",null,"Long Positions - Before - Pension Benefit Surplus",null,null,null,null,null,null,null,null,0]
["Sch IIB","Investments",null,"Long Positions - Before - Equity Derivatives on Type 2 Equities",null,null,null,null,null,null,null,null,0]
["Sch IIB","Investments",null,"Long Positions - Before - Infrastructure",null,null,null,null,null,null,null,null,0]
["Sch IIB","Investments",null,"Long Positions - Before - Derivatives on Infrastructure",null,null,null,null,null,null,null,null,0]
["Sch IIB","Investments",null,"Long Positions - Before - Equity Real Estate 1",null,null,null,null,null,null,null,null,0]
["Sch IIB","Investments",null,"Long Positions - Before - Equity Real Estate 2",null,null,null,null,null,null,null,null,0]
["Sch IIB","Investments",null,"Long Positions - After - Strategic Holdings - Listed",null,null,null,null,null,null,null,null,0]
["Sch IIB","Investments",null,"Long Positions - After - Duration Based",null,null,null,null,null,null,null,null,0]
["Sch IIB","Investments",null,"Long Positions - After - Listed Equity Securities in Developed Markets",null,null,null,null,null,null,null,null,0]
["Sch IIB","Investments",null,"Long Positions - After - Preferred Stocks, BSCR Rating 1",null,null,null,null,null,null,null,null,0]
["Sch IIB","Investments",null,"Long Positions - After - Preferred Stocks, BSCR Rating 2",null,null,null,null,null,null,null,null,0]
["Sch IIB","Investments",null,"Long Positions - After - Preferred Stocks, BSCR Rating 3",null,null,null,null,null,null,null,null,0]
["Sch IIB","Investments",null,"Long Positions - After - Preferred Stocks, BSCR Rating 4",null,null,null,null,null,null,null,null,0]
["Sch IIB","Investments",null,"Long Positions - After - Preferred Stocks, BSCR Rating 5",null,null,null,null,null,null,null,null,0]
["Sch IIB","Investments",null,"Long Positions - After - Preferred Stocks, BSCR Rating 6",null,null,null,null,null,null,null,null,0]
["Sch IIB","Investments",null,"Long Positions - After - Preferred Stocks, BSCR Rating 7",null,null,null,null,null,null,null,null,0]
["Sch IIB","Investments",null,"Long Positions - After - Preferred Stocks, BSCR Rating 8",null,null,null,null,null,null,null,null,0]
["Sch IIB","Investments",null,"Long Positions - After - Equity Derivatives on Type 1 Equities",null,null,null,null,null,null,null,null,0]
["Sch IIB","Investments",null,"Long Positions - After - Strategic Holdings - Unlisted",null,null,null,null,null,null,null,null,0]
["Sch IIB","Investments",null,"Long Positions - After - Other Equities",null,null,null,null,null,null,null,null,0]
["Sch IIB","Investments",null,"Long Positions - After - Letters of Credit",null,null,null,null,null,null,null,null,0]
["Sch IIB","Investments",null,"Long Positions - After - Intangible assets",null,null,null,null,null,null,null,null,0]
["Sch IIB","Investments",null,"Long Positions - After - Pension Benefit Surplus",null,null,null,null,null,null,null,null,0]
["Sch IIB","Investments",null,"Long Positions - After - Equity Derivatives on Type 2 Equities",null,null,null,null,null,null,null,null,0]
["Sch IIB","Investments",null,"Long Positions - After - Infrastructure",null,null,null,null,null,null,null,null,0]
["Sch IIB","Investments",null,"Long Positions - After - Derivatives on Infrastructure",null,null,null,null,null,null,null,null,0]
["Sch IIB","Investments",null,"Long Positions - After - Equity Real Estate 1",null,null,null,null,null,null,null,null,0]
["Sch IIB","Investments",null,"Long Positions - After - Equity Real Estate 2",null,null,null,null,null,null,null,null,0]
["Sch IIB","Investments",null,"Short - Before - Qualified Assets - Strategic Holdings - Listed",null,null,null,null,null,null,null,null,0]
["Sch IIB","Investments",null,"Short - Before - Qualified Assets - Duration Based",null,null,null,null,null,null,null,null,0]
["Sch IIB","Investments",null,"Short - Before - Qualified Assets - Listed Equity Securities in Developed Markets",null,null,null,null,null,null,null,null,0]
["Sch IIB","Investments",null,"Short - Before - Qualified Assets - Preferred Stocks, BSCR Rating 1",null,null,null,null,null,null,null,null,0]
["Sch IIB","Investments",null,"Short - Before - Qualified Assets - Preferred Stocks, BSCR Rating 2",null,null,null,null,null,null,null,null,0]
["Sch IIB","Investments",null,"Short - Before - Qualified Assets - Preferred Stocks, BSCR Rating 3",null,null,null,null,null,null,null,null,0]
["Sch IIB","Investments",null,"Short - Before - Qualified Assets - Preferred Stocks, BSCR Rating 4",null,null,null,null,null,null,null,null,0]
["Sch IIB","Investments",null,"Short - Before - Qualified Assets - Preferred Stocks, BSCR Rating 5",null,null,null,null,null,null,null,null,0]
["Sch IIB","Investments",null,"Short - Before - Qualified Assets - Preferred Stocks, BSCR Rating 6",null,null,null,null,null,null,null,null,0]
["Sch IIB","Investments",null,"Short - Before - Qualified Assets - Preferred Stocks, BSCR Rating 7",null,null,null,null,null,null,null,null,0]
["Sch IIB","Investments",null,"Short - Before - Qualified Assets - Preferred Stocks, BSCR Rating 8",null,null,null,null,null,null,null,null,0]
["Sch IIB","Investments",null,"Short - Before - Qualified Assets - Equity Derivatives on Type 1 Equities",null,null,null,null,null,null,null,null,0]
["Sch IIB","Investments",null,"Short - Before - Qualified Assets - Strategic Holdings - Unlisted",null,null,null,null,null,null,null,null,0]
["Sch IIB","Investments",null,"Short - Before - Qualified Assets - Other Equities",null,null,null,null,null,null,null,null,0]
["Sch IIB","Investments",null,"Short - Before - Qualified Assets - Letters of Credit",null,null,null,null,null,null,null,null,0]
["Sch IIB","Investments",null,"Short - Before - Qualified Assets - Intangible assets",null,null,null,null,null,null,null,null,0]
["Sch IIB","Investments",null,"Short - Before - Qualified Assets - Pension Benefit Surplus",null,null,null,null,null,null,null,null,0]
["Sch IIB","Investments",null,"Short - Before - Qualified Assets - Equity Derivatives on Type 2 Equities",null,null,null,null,null,null,null,null,0]
["Sch IIB","Investments",null,"Short - Before - Qualified Assets - Infrastructure",null,null,null,null,null,null,null,null,0]
["Sch IIB","Investments",null,"Short - Before - Qualified Assets - Derivatives on Infrastructure",null,null,null,null,null,null,null,null,0]
["Sch IIB","Investments",null,"Short - Before - Qualified Assets - Equity Real Estate 1",null,null,null,null,null,null,null,null,0]
["Sch IIB","Investments",null,"Short - Before - Qualified Assets - Equity Real Estate 2",null,null,null,null,null,null,null,null,0]
["Sch IIB","Investments",null,"Short - After - Qualified Assets - Strategic Holdings - Listed",null,null,null,null,null,null,null,null,0]
["Sch IIB","Investments",null,"Short - After - Qualified Assets - Duration Based",null,null,null,null,null,null,null,null,0]
["Sch IIB","Investments",null,"Short - After - Qualified Assets - Listed Equity Securities in Developed Markets",null,null,null,null,null,null,null,null,0]
["Sch IIB","Investments",null,"Short - After - Qualified Assets - Preferred Stocks, BSCR Rating 1",null,null,null,null,null,null,null,null,0]
["Sch IIB","Investments",null,"Short - After - Qualified Assets - Preferred Stocks, BSCR Rating 2",null,null,null,null,null,null,null,null,0]
["Sch IIB","Investments",null,"Short - After - Qualified Assets - Preferred Stocks, BSCR Rating 3",null,null,null,null,null,null,null,null,0]
["Sch IIB","Investments",null,"Short - After - Qualified Assets - Preferred Stocks, BSCR Rating 4",null,null,null,null,null,null,null,null,0]
["Sch IIB","Investments",null,"Short - After - Qualified Assets - Preferred Stocks, BSCR Rating 5",null,null,null,null,null,null,null,null,0]
["Sch IIB","Investments",null,"Short - After - Qualified Assets - Preferred Stocks, BSCR Rating 6",null,null,null,null,null,null,null,null,0]
["Sch IIB","Investments",null,"Short - After - Qualified Assets - Preferred Stocks, BSCR Rating 7",null,null,null,null,null,null,null,null,0]
["Sch IIB","Investments",null,"Short - After - Qualified Assets - Preferred Stocks, BSCR Rating 8",null,null,null,null,null,null,null,null,0]
["Sch IIB","Investments",null,"Short - After - Qualified Assets - Equity Derivatives on Type 1 Equities",null,null,null,null,null,null,null,null,0]
["Sch IIB","Investments",null,"Short - After - Qualified Assets - Strategic Holdings - Unlisted",null,null,null,null,null,null,null,null,0]
["Sch IIB","Investments",null,"Short - After - Qualified Assets - Other Equities",null,null,null,null,null,null,null,null,0]
["Sch IIB","Investments",null,"Short - After - Qualified Assets - Letters of Credit",null,null,null,null,null,null,null,null,0]
["Sch IIB","Investments",null,"Short - After - Qualified Assets - Intangible assets",null,null,null,null,null,null,null,null,0]
["Sch IIB","Investments",null,"Short - After - Qualified Assets - Pension Benefit Surplus",null,null,null,null,null,null,null,null,0]
["Sch IIB","Investments",null,"Short - After - Qualified Assets - Equity Derivatives on Type 2 Equities",null,null,null,null,null,null,null,null,0]
["Sch IIB","Investments",null,"Short - After - Qualified Assets - Infrastructure",null,null,null,null,null,null,null,null,0]
["Sch IIB","Investments",null,"Short - After - Qualified Assets - Derivatives on Infrastructure",null,null,null,null,null,null,null,null,0]
["Sch IIB","Investments",null,"Short - After - Qualified Assets - Equity Real Estate 1",null,null,null,null,null,null,null,null,0]
["Sch IIB","Investments",null,"Short - After - Qualified Assets - Equity Real Estate 2",null,null,null,null,null,null,null,null,0]
["Sch IIB","Investments",null,"Short - Before - UnQualified Assets - Strategic Holdings - Listed",null,null,null,null,null,null,null,null,0]
["Sch IIB","Investments",null,"Short - Before - UnQualified Assets - Duration Based",null,null,null,null,null,null,null,null,0]
["Sch IIB","Investments",null,"Short - Before - UnQualified Assets - Listed Equity Securities in Developed Markets",null,null,null,null,null,null,null,null,0]
["Sch IIB","Investments",null,"Short - Before - UnQualified Assets - Preferred Stocks, BSCR Rating 1",null,null,null,null,null,null,null,null,0]
["Sch IIB","Investments",null,"Short - Before - UnQualified Assets - Preferred Stocks, BSCR Rating 2",null,null,null,null,null,null,null,null,0]
["Sch IIB","Investments",null,"Short - Before - UnQualified Assets - Preferred Stocks, BSCR Rating 3",null,null,null,null,null,null,null,null,0]
["Sch IIB","Investments",null,"Short - Before - UnQualified Assets - Preferred Stocks, BSCR Rating 4",null,null,null,null,null,null,null,null,0]
["Sch IIB","Investments",null,"Short - Before - UnQualified Assets - Preferred Stocks, BSCR Rating 5",null,null,null,null,null,null,null,null,0]
["Sch IIB","Investments",null,"Short - Before - UnQualified Assets - Preferred Stocks, BSCR Rating 6",null,null,null,null,null,null,null,null,0]
["Sch IIB","Investments",null,"Short - Before - UnQualified Assets - Preferred Stocks, BSCR Rating 7",null,null,null,null,null,null,null,null,0]
["Sch IIB","Investments",null,"Short - Before - UnQualified Assets - Preferred Stocks, BSCR Rating 8",null,null,null,null,null,null,null,null,0]
["Sch IIB","Investments",null,"Short - Before - UnQualified Assets - Equity Derivatives on Type 1 Equities",null,null,null,null,null,null,null,null,0]
["Sch IIB","Investments",null,"Short - Before - UnQualified Assets - Strategic Holdings - Unlisted",null,null,null,null,null,null,null,null,0]
["Sch IIB","Investments",null,"Short - Before - UnQualified Assets - Other Equities",null,null,null,null,null,null,null,null,0]
["Sch IIB","Investments",null,"Short - Before - UnQualified Assets - Letters of Credit",null,null,null,null,null,null,null,null,0]
["Sch IIB","Investments",null,"Short - Before - UnQualified Assets - Intangible assets",null,null,null,null,null,null,null,null,0]
["Sch IIB","Investments",null,"Short - Before - UnQualified Assets - Pension Benefit Surplus",null,null,null,null,null,null,null,null,0]
["Sch IIB","Investments",null,"Short - Before - UnQualified Assets - Equity Derivatives on Type 2 Equities",null,null,null,null,null,null,null,null,0]
["Sch IIB","Investments",null,"Short - Before - UnQualified Assets - Infrastructure",null,null,null,null,null,null,null,null,0]
["Sch IIB","Investments",null,"Short - Before - UnQualified Assets - Derivatives on Infrastructure",null,null,null,null,null,null,null,null,0]
["Sch IIB","Investments",null,"Short - Before - UnQualified Assets - Equity Real Estate 1",null,null,null,null,null,null,null,null,0]
["Sch IIB","Investments",null,"Short - Before - UnQualified Assets - Equity Real Estate 2",null,null,null,null,null,null,null,null,0]
["Sch IIB","Investments",null,"Short - After - UnQualified Assets - Strategic Holdings - Listed",null,null,null,null,null,null,null,null,0]
["Sch IIB","Investments",null,"Short - After - UnQualified Assets - Duration Based",null,null,null,null,null,null,null,null,0]
["Sch IIB","Investments",null,"Short - After - UnQualified Assets - Listed Equity Securities in Developed Markets",null,null,null,null,null,null,null,null,0]
["Sch IIB","Investments",null,"Short - After - UnQualified Assets - Preferred Stocks, BSCR Rating 1",null,null,null,null,null,null,null,null,0]
["Sch IIB","Investments",null,"Short - After - UnQualified Assets - Preferred Stocks, BSCR Rating 2",null,null,null,null,null,null,null,null,0]
["Sch IIB","Investments",null,"Short - After - UnQualified Assets - Preferred Stocks, BSCR Rating 3",null,null,null,null,null,null,null,null,0]
["Sch IIB","Investments",null,"Short - After - UnQualified Assets - Preferred Stocks, BSCR Rating 4",null,null,null,null,null,null,null,null,0]
["Sch IIB","Investments",null,"Short - After - UnQualified Assets - Preferred Stocks, BSCR Rating 5",null,null,null,null,null,null,null,null,0]
["Sch IIB","Investments",null,"Short - After - UnQualified Assets - Preferred Stocks, BSCR Rating 6",null,null,null,null,null,null,null,null,0]
["Sch IIB","Investments",null,"Short - After - UnQualified Assets - Preferred Stocks, BSCR Rating 7",null,null,null,null,null,null,null,null,0]
["Sch IIB","Investments",null,"Short - After - UnQualified Assets - Preferred Stocks, BSCR Rating 8",null,null,null,null,null,null,null,null,0]
["Sch IIB","Investments",null,"Short - After - UnQualified Assets - Equity Derivatives on Type 1 Equities",null,null,null,null,null,null,null,null,0]
["Sch IIB","Investments",null,"Short - After - UnQualified Assets - Strategic Holdings - Unlisted",null,null,null,null,null,null,null,null,0]
["Sch IIB","Investments",null,"Short - After - UnQualified Assets - Other Equities",null,null,null,null,null,null,null,null,0]
["Sch IIB","Investments",null,"Short - After - UnQualified Assets - Letters of Credit",null,null,null,null,null,null,null,null,0]
["Sch IIB","Investments",null,"Short - After - UnQualified Assets - Intangible assets",null,null,null,null,null,null,null,null,0]
["Sch IIB","Investments",null,"Short - After - UnQualified Assets - Pension Benefit Surplus",null,null,null,null,null,null,null,null,0]
["Sch IIB","Investments",null,"Short - After - UnQualified Assets - Equity Derivatives on Type 2 Equities",null,null,null,null,null,null,null,null,0]
["Sch IIB","Investments",null,"Short - After - UnQualified Assets - Infrastructure",null,null,null,null,null,null,null,null,0]
["Sch IIB","Investments",null,"Short - After - UnQualified Assets - Derivatives on Infrastructure",null,null,null,null,null,null,null,null,0]
["Sch IIB","Investments",null,"Short - After - UnQualified Assets - Equity Real Estate 1",null,null,null,null,null,null,null,null,0]
["Sch IIB","Investments",null,"Short - After - UnQualified Assets - Equity Real Estate 2",null,null,null,null,null,null,null,null,0]
["Sch IIB","Investments",null,"Liabilities - Before - W/O Mgmt. Actions - Strategic Holdings - Listed",null,null,null,null,null,null,null,null,0]
["Sch IIB","Investments",null,"Liabilities - Before - W/O Mgmt. Actions - Duration Based",null,null,null,null,null,null,null,null,0]
["Sch IIB","Investments",null,"Liabilities - Before - W/O Mgmt. Actions - Listed Equity Securities in Developed Markets",null,null,null,null,null,null,null,null,0]
["Sch IIB","Investments",null,"Liabilities - Before - W/O Mgmt. Actions - Preferred Stocks, BSCR Rating 1",null,null,null,null,null,null,null,null,0]
["Sch IIB","Investments",null,"Liabilities - Before - W/O Mgmt. Actions - Preferred Stocks, BSCR Rating 2",null,null,null,null,null,null,null,null,0]
["Sch IIB","Investments",null,"Liabilities - Before - W/O Mgmt. Actions - Preferred Stocks, BSCR Rating 3",null,null,null,null,null,null,null,null,0]
["Sch IIB","Investments",null,"Liabilities - Before - W/O Mgmt. Actions - Preferred Stocks, BSCR Rating 4",null,null,null,null,null,null,null,null,0]
["Sch IIB","Investments",null,"Liabilities - Before - W/O Mgmt. Actions - Preferred Stocks, BSCR Rating 5",null,null,null,null,null,null,null,null,0]
["Sch IIB","Investments",null,"Liabilities - Before - W/O Mgmt. Actions - Preferred Stocks, BSCR Rating 6",null,null,null,null,null,null,null,null,0]
["Sch IIB","Investments",null,"Liabilities - Before - W/O Mgmt. Actions - Preferred Stocks, BSCR Rating 7",null,null,null,null,null,null,null,null,0]
["Sch IIB","Investments",null,"Liabilities - Before - W/O Mgmt. Actions - Preferred Stocks, BSCR Rating 8",null,null,null,null,null,null,null,null,0]
["Sch IIB","Investments",null,"Liabilities - Before - W/O Mgmt. Actions - Equity Derivatives on Type 1 Equities",null,null,null,null,null,null,null,null,0]
["Sch IIB","Investments",null,"Liabilities - Before - W/O Mgmt. Actions - Strategic Holdings - Unlisted",null,null,null,null,null,null,null,null,0]
["Sch IIB","Investments",null,"Liabilities - Before - W/O Mgmt. Actions - Other Equities",null,null,null,null,null,null,null,null,0]
["Sch IIB","Investments",null,"Liabilities - Before - W/O Mgmt. Actions - Letters of Credit",null,null,null,null,null,null,null,null,0]
["Sch IIB","Investments",null,"Liabilities - Before - W/O Mgmt. Actions - Intangible assets",null,null,null,null,null,null,null,null,0]
["Sch IIB","Investments",null,"Liabilities - Before - W/O Mgmt. Actions - Pension Benefit Surplus",null,null,null,null,null,null,null,null,0]
["Sch IIB","Investments",null,"Liabilities - Before - W/O Mgmt. Actions - Equity Derivatives on Type 2 Equities",null,null,null,null,null,null,null,null,0]
["Sch IIB","Investments",null,"Liabilities - Before - W/O Mgmt. Actions - Infrastructure",null,null,null,null,null,null,null,null,0]
["Sch IIB","Investments",null,"Liabilities - Before - W/O Mgmt. Actions - Derivatives on Infrastructure",null,null,null,null,null,null,null,null,0]
["Sch IIB","Investments",null,"Liabilities - Before - W/O Mgmt. Actions - Equity Real Estate 1",null,null,null,null,null,null,null,null,0]
["Sch IIB","Investments",null,"Liabilities - Before - W/O Mgmt. Actions - Equity Real Estate 2",null,null,null,null,null,null,null,null,0]
["Sch IIB","Investments",null,"Liabilities - After - W/O Mgmt. Actions - Strategic Holdings - Listed",null,null,null,null,null,null,null,null,0]
["Sch IIB","Investments",null,"Liabilities - After - W/O Mgmt. Actions - Duration Based",null,null,null,null,null,null,null,null,0]
["Sch IIB","Investments",null,"Liabilities - After - W/O Mgmt. Actions - Listed Equity Securities in Developed Markets",null,null,null,null,null,null,null,null,0]
["Sch IIB","Investments",null,"Liabilities - After - W/O Mgmt. Actions - Preferred Stocks, BSCR Rating 1",null,null,null,null,null,null,null,null,0]
["Sch IIB","Investments",null,"Liabilities - After - W/O Mgmt. Actions - Preferred Stocks, BSCR Rating 2",null,null,null,null,null,null,null,null,0]
["Sch IIB","Investments",null,"Liabilities - After - W/O Mgmt. Actions - Preferred Stocks, BSCR Rating 3",null,null,null,null,null,null,null,null,0]
["Sch IIB","Investments",null,"Liabilities - After - W/O Mgmt. Actions - Preferred Stocks, BSCR Rating 4",null,null,null,null,null,null,null,null,0]
["Sch IIB","Investments",null,"Liabilities - After - W/O Mgmt. Actions - Preferred Stocks, BSCR Rating 5",null,null,null,null,null,null,null,null,0]
["Sch IIB","Investments",null,"Liabilities - After - W/O Mgmt. Actions - Preferred Stocks, BSCR Rating 6",null,null,null,null,null,null,null,null,0]
["Sch IIB","Investments",null,"Liabilities - After - W/O Mgmt. Actions - Preferred Stocks, BSCR Rating 7",null,null,null,null,null,null,null,null,0]
["Sch IIB","Investments",null,"Liabilities - After - W/O Mgmt. Actions - Preferred Stocks, BSCR Rating 8",null,null,null,null,null,null,null,null,0]
["Sch IIB","Investments",null,"Liabilities - After - W/O Mgmt. Actions - Equity Derivatives on Type 1 Equities",null,null,null,null,null,null,null,null,0]
["Sch IIB","Investments",null,"Liabilities - After - W/O Mgmt. Actions - Strategic Holdings - Unlisted",null,null,null,null,null,null,null,null,0]
["Sch IIB","Investments",null,"Liabilities - After - W/O Mgmt. Actions - Other Equities",null,null,null,null,null,null,null,null,0]
["Sch IIB","Investments",null,"Liabilities - After - W/O Mgmt. Actions - Letters of Credit",null,null,null,null,null,null,null,null,0]
["Sch IIB","Investments",null,"Liabilities - After - W/O Mgmt. Actions - Intangible assets",null,null,null,null,null,null,null,null,0]
["Sch IIB","Investments",null,"Liabilities - After - W/O Mgmt. Actions - Pension Benefit Surplus",null,null,null,null,null,null,null,null,0]
["Sch IIB","Investments",null,"Liabilities - After - W/O Mgmt. Actions - Equity Derivatives on Type 2 Equities",null,null,null,null,null,null,null,null,0]
["Sch IIB","Investments",null,"Liabilities - After - W/O Mgmt. Actions - Infrastructure",null,null,null,null,null,null,null,null,0]
["Sch IIB","Investments",null,"Liabilities - After - W/O Mgmt. Actions - Derivatives on Infrastructure",null,null,null,null,null,null,null,null,0]
["Sch IIB","Investments",null,"Liabilities - After - W/O Mgmt. Actions - Equity Real Estate 1",null,null,null,null,null,null,null,null,0]
["Sch IIB","Investments",null,"Liabilities - After - W/O Mgmt. Actions - Equity Real Estate 2",null,null,null,null,null,null,null,null,0]
["Sch IIB","Investments",null,"Liabilities - After - With Mgmt. Actions - Strategic Holdings - Listed",null,null,null,null,null,null,null,null,0]
["Sch IIB","Investments",null,"Liabilities - After - With Mgmt. Actions - Duration Based",null,null,null,null,null,null,null,null,0]
["Sch IIB","Investments",null,"Liabilities - After - With Mgmt. Actions - Listed Equity Securities in Developed Markets",null,null,null,null,null,null,null,null,0]
["Sch IIB","Investments",null,"Liabilities - After - With Mgmt. Actions - Preferred Stocks, BSCR Rating 1",null,null,null,null,null,null,null,null,0]
["Sch IIB","Investments",null,"Liabilities - After - With Mgmt. Actions - Preferred Stocks, BSCR Rating 2",null,null,null,null,null,null,null,null,0]
["Sch IIB","Investments",null,"Liabilities - After - With Mgmt. Actions - Preferred Stocks, BSCR Rating 3",null,null,null,null,null,null,null,null,0]
["Sch IIB","Investments",null,"Liabilities - After - With Mgmt. Actions - Preferred Stocks, BSCR Rating 4",null,null,null,null,null,null,null,null,0]
["Sch IIB","Investments",null,"Liabilities - After - With Mgmt. Actions - Preferred Stocks, BSCR Rating 5",null,null,null,null,null,null,null,null,0]
["Sch IIB","Investments",null,"Liabilities - After - With Mgmt. Actions - Preferred Stocks, BSCR Rating 6",null,null,null,null,null,null,null,null,0]
["Sch IIB","Investments",null,"Liabilities - After - With Mgmt. Actions - Preferred Stocks, BSCR Rating 7",null,null,null,null,null,null,null,null,0]
["Sch IIB","Investments",null,"Liabilities - After - With Mgmt. Actions - Preferred Stocks, BSCR Rating 8",null,null,null,null,null,null,null,null,0]
["Sch IIB","Investments",null,"Liabilities - After - With Mgmt. Actions - Equity Derivatives on Type 1 Equities",null,null,null,null,null,null,null,null,0]
["Sch IIB","Investments",null,"Liabilities - After - With Mgmt. Actions - Strategic Holdings - Unlisted",null,null,null,null,null,null,null,null,0]
["Sch IIB","Investments",null,"Liabilities - After - With Mgmt. Actions - Other Equities",null,null,null,null,null,null,null,null,0]
["Sch IIB","Investments",null,"Liabilities - After - With Mgmt. Actions - Letters of Credit",null,null,null,null,null,null,null,null,0]
["Sch IIB","Investments",null,"Liabilities - After - With Mgmt. Actions - Intangible assets",null,null,null,null,null,null,null,null,0]
["Sch IIB","Investments",null,"Liabilities - After - With Mgmt. Actions - Pension Benefit Surplus",null,null,null,null,null,null,null,null,0]
["Sch IIB","Investments",null,"Liabilities - After - With Mgmt. Actions - Equity Derivatives on Type 2 Equities",null,null,null,null,null,null,null,null,0]
["Sch IIB","Investments",null,"Liabilities - After - With Mgmt. Actions - Infrastructure",null,null,null,null,null,null,null,null,0]
["Sch IIB","Investments",null,"Liabilities - After - With Mgmt. Actions - Derivatives on Infrastructure",null,null,null,null,null,null,null,null,0]
["Sch IIB","Investments",null,"Liabilities - After - With Mgmt. Actions - Equity Real Estate 1",null,null,null,null,null,null,null,null,0]
["Sch IIB","Investments",null,"Liabilities - After - With Mgmt. Actions - Equity Real Estate 2",null,null,null,null,null,null,null,null,0]
["Sch IIB","Investments",null,"Credit Derivatives - Up - Before - Long-Rating 0",null,null,null,null,null,null,null,null,0]
["Sch IIB","Investments",null,"Credit Derivatives - Up - Before - Long-Rating 1",null,null,null,null,null,null,null,null,0]
["Sch IIB","Investments",null,"Credit Derivatives - Up - Before - Long-Rating 2",null,null,null,null,null,null,null,null,0]
["Sch IIB","Investments",null,"Credit Derivatives - Up - Before - Long-Rating 3",null,null,null,null,null,null,null,null,0]
["Sch IIB","Investments",null,"Credit Derivatives - Up - Before - Long-Rating 4",null,null,null,null,null,null,null,null,0]
["Sch IIB","Investments",null,"Credit Derivatives - Up - Before - Long-Rating 5",null,null,null,null,null,null,null,null,0]
["Sch IIB","Investments",null,"Credit Derivatives - Up - Before - Long-Rating 6",null,null,null,null,null,null,null,null,0]
["Sch IIB","Investments",null,"Credit Derivatives - Up - Before - Long-Rating 7",null,null,null,null,null,null,null,null,0]
["Sch IIB","Investments",null,"Credit Derivatives - Up - Before - Long-Rating 8",null,null,null,null,null,null,null,null,0]
["Sch IIB","Investments",null,"Credit Derivatives - Up - After - Long- Rating 0",null,null,null,null,null,null,null,null,0]
["Sch IIB","Investments",null,"Credit Derivatives - Up - After - Long- Rating 1",null,null,null,null,null,null,null,null,0]
["Sch IIB","Investments",null,"Credit Derivatives - Up - After - Long- Rating 2",null,null,null,null,null,null,null,null,0]
["Sch IIB","Investments",null,"Credit Derivatives - Up - After - Long- Rating 3",null,null,null,null,null,null,null,null,0]
["Sch IIB","Investments",null,"Credit Derivatives - Up - After - Long- Rating 4",null,null,null,null,null,null,null,null,0]
["Sch IIB","Investments",null,"Credit Derivatives - Up - After - Long- Rating 5",null,null,null,null,null,null,null,null,0]
["Sch IIB","Investments",null,"Credit Derivatives - Up - After - Long- Rating 6",null,null,null,null,null,null,null,null,0]
["Sch IIB","Investments",null,"Credit Derivatives - Up - After - Long- Rating 7",null,null,null,null,null,null,null,null,0]
["Sch IIB","Investments",null,"Credit Derivatives - Up - After - Long- Rating 8",null,null,null,null,null,null,null,null,0]
["Sch IIB","Investments",null,"Credit Derivatives - Up - Before - Short- Rating 0",null,null,null,null,null,null,null,null,0]
["Sch IIB","Investments",null,"Credit Derivatives - Up - Before - Short- Rating 1",null,null,null,null,null,null,null,null,0]
["Sch IIB","Investments",null,"Credit Derivatives - Up - Before - Short- Rating 2",null,null,null,null,null,null,null,null,0]
["Sch IIB","Investments",null,"Credit Derivatives - Up - Before - Short- Rating 3",null,null,null,null,null,null,null,null,0]
["Sch IIB","Investments",null,"Credit Derivatives - Up - Before - Short- Rating 4",null,null,null,null,null,null,null,null,0]
["Sch IIB","Investments",null,"Credit Derivatives - Up - Before - Short- Rating 5",null,null,null,null,null,null,null,null,0]
["Sch IIB","Investments",null,"Credit Derivatives - Up - Before - Short- Rating 6",null,null,null,null,null,null,null,null,0]
["Sch IIB","Investments",null,"Credit Derivatives - Up - Before - Short- Rating 7",null,null,null,null,null,null,null,null,0]
["Sch IIB","Investments",null,"Credit Derivatives - Up - Before - Short- Rating 8",null,null,null,null,null,null,null,null,0]
["Sch IIB","Investments",null,"Credit Derivatives - Up - After - Short- Rating 0",null,null,null,null,null,null,null,null,0]
["Sch IIB","Investments",null,"Credit Derivatives - Up - After - Short- Rating 1",null,null,null,null,null,null,null,null,0]
["Sch IIB","Investments",null,"Credit Derivatives - Up - After - Short- Rating 2",null,null,null,null,null,null,null,null,0]
["Sch IIB","Investments",null,"Credit Derivatives - Up - After - Short- Rating 3",null,null,null,null,null,null,null,null,0]
["Sch IIB","Investments",null,"Credit Derivatives - Up - After - Short- Rating 4",null,null,null,null,null,null,null,null,0]
["Sch IIB","Investments",null,"Credit Derivatives - Up - After - Short- Rating 5",null,null,null,null,null,null,null,null,0]
["Sch IIB","Investments",null,"Credit Derivatives - Up - After - Short- Rating 6",null,null,null,null,null,null,null,null,0]
["Sch IIB","Investments",null,"Credit Derivatives - Up - After - Short- Rating 7",null,null,null,null,null,null,null,null,0]
["Sch IIB","Investments",null,"Credit Derivatives - Up - After - Short- Rating 8",null,null,null,null,null,null,null,null,0]
["Sch IIB","Investments",null,"Credit Derivatives - Down - Before - Long-Rating 0",null,null,null,null,null,null,null,null,0]
["Sch IIB","Investments",null,"Credit Derivatives - Down - Before - Long-Rating 1",null,null,null,null,null,null,null,null,0]
["Sch IIB","Investments",null,"Credit Derivatives - Down - Before - Long-Rating 2",null,null,null,null,null,null,null,null,0]
["Sch IIB","Investments",null,"Credit Derivatives - Down - Before - Long-Rating 3",null,null,null,null,null,null,null,null,0]
["Sch IIB","Investments",null,"Credit Derivatives - Down - Before - Long-Rating 4",null,null,null,null,null,null,null,null,0]
["Sch IIB","Investments",null,"Credit Derivatives - Down - Before - Long-Rating 5",null,null,null,null,null,null,null,null,0]
["Sch IIB","Investments",null,"Credit Derivatives - Down - Before - Long-Rating 6",null,null,null,null,null,null,null,null,0]
["Sch IIB","Investments",null,"Credit Derivatives - Down - Before - Long-Rating 7",null,null,null,null,null,null,null,null,0]
["Sch IIB","Investments",null,"Credit Derivatives - Down - Before - Long-Rating 8",null,null,null,null,null,null,null,null,0]
["Sch IIB","Investments",null,"Credit Derivatives - Down - After - Long- Rating 0",null,null,null,null,null,null,null,null,0]
["Sch IIB","Investments",null,"Credit Derivatives - Down - After - Long- Rating 1",null,null,null,null,null,null,null,null,0]
["Sch IIB","Investments",null,"Credit Derivatives - Down - After - Long- Rating 2",null,null,null,null,null,null,null,null,0]
["Sch IIB","Investments",null,"Credit Derivatives - Down - After - Long- Rating 3",null,null,null,null,null,null,null,null,0]
["Sch IIB","Investments",null,"Credit Derivatives - Down - After - Long- Rating 4",null,null,null,null,null,null,null,null,0]
["Sch IIB","Investments",null,"Credit Derivatives - Down - After - Long- Rating 5",null,null,null,null,null,null,null,null,0]
["Sch IIB","Investments",null,"Credit Derivatives - Down - After - Long- Rating 6",null,null,null,null,null,null,null,null,0]
["Sch IIB","Investments",null,"Credit Derivatives - Down - After - Long- Rating 7",null,null,null,null,null,null,null,null,0]
["Sch IIB","Investments",null,"Credit Derivatives - Down - After - Long- Rating 8",null,null,null,null,null,null,null,null,0]
["Sch IIB","Investments",null,"Credit Derivatives - Down - Before - Short- Rating 0",null,null,null,null,null,null,null,null,0]
["Sch IIB","Investments",null,"Credit Derivatives - Down - Before - Short- Rating 1",null,null,null,null,null,null,null,null,0]
["Sch IIB","Investments",null,"Credit Derivatives - Down - Before - Short- Rating 2",null,null,null,null,null,null,null,null,0]
["Sch IIB","Investments",null,"Credit Derivatives - Down - Before - Short- Rating 3",null,null,null,null,null,null,null,null,0]
["Sch IIB","Investments",null,"Credit Derivatives - Down - Before - Short- Rating 4",null,null,null,null,null,null,null,null,0]
["Sch IIB","Investments",null,"Credit Derivatives - Down - Before - Short- Rating 5",null,null,null,null,null,null,null,null,0]
["Sch IIB","Investments",null,"Credit Derivatives - Down - Before - Short- Rating 6",null,null,null,null,null,null,null,null,0]
["Sch IIB","Investments",null,"Credit Derivatives - Down - Before - Short- Rating 7",null,null,null,null,null,null,null,null,0]
["Sch IIB","Investments",null,"Credit Derivatives - Down - Before - Short- Rating 8",null,null,null,null,null,null,null,null,0]
["Sch IIB","Investments",null,"Credit Derivatives - Down - After - Short- Rating 0",null,null,null,null,null,null,null,null,0]
["Sch IIB","Investments",null,"Credit Derivatives - Down - After - Short- Rating 1",null,null,null,null,null,null,null,null,0]
["Sch IIB","Investments",null,"Credit Derivatives - Down - After - Short- Rating 2",null,null,null,null,null,null,null,null,0]
["Sch IIB","Investments",null,"Credit Derivatives - Down - After - Short- Rating 3",null,null,null,null,null,null,null,null,0]
["Sch IIB","Investments",null,"Credit Derivatives - Down - After - Short- Rating 4",null,null,null,null,null,null,null,null,0]
["Sch IIB","Investments",null,"Credit Derivatives - Down - After - Short- Rating 5",null,null,null,null,null,null,null,null,0]
["Sch IIB","Investments",null,"Credit Derivatives - Down - After - Short- Rating 6",null,null,null,null,null,null,null,null,0]
["Sch IIB","Investments",null,"Credit Derivatives - Down - After - Short- Rating 7",null,null,null,null,null,null,null,null,0]
["Sch IIB","Investments",null,"Credit Derivatives - Down - After - Short- Rating 8",null,null,null,null,null,null,null,null,0]
["Sch IIB","Investments",null,"Counterparty Default Risk - MV of Derivatives - MV Positive - Rating 0",null,null,null,null,null,null,null,null,0]
["Sch IIB","Investments",null,"Counterparty Default Risk - MV of Derivatives - MV Positive - Rating 1",null,null,null,null,null,null,null,null,0]
["Sch IIB","Investments",null,"Counterparty Default Risk - MV of Derivatives - MV Positive - Rating 2",null,null,null,null,null,null,null,null,0]
["Sch IIB","Investments",null,"Counterparty Default Risk - MV of Derivatives - MV Positive - Rating 3",null,null,null,null,null,null,null,null,0]
["Sch IIB","Investments",null,"Counterparty Default Risk - MV of Derivatives - MV Positive - Rating 4",null,null,null,null,null,null,null,null,0]
["Sch IIB","Investments",null,"Counterparty Default Risk - MV of Derivatives - MV Positive - Rating 5",null,null,null,null,null,null,null,null,0]
["Sch IIB","Investments",null,"Counterparty Default Risk - MV of Derivatives - MV Positive - Rating 6",null,null,null,null,null,null,null,null,0]
["Sch IIB","Investments",null,"Counterparty Default Risk - MV of Derivatives - MV Positive - Rating 7",null,null,null,null,null,null,null,null,0]
["Sch IIB","Investments",null,"Counterparty Default Risk - MV of Derivatives - MV Positive - Rating 8",null,null,null,null,null,null,null,null,0]
["Sch IIB","Investments",null,"Counterparty Default Risk - MV of Derivatives - MV Negative - Rating 0",null,null,null,null,null,null,null,null,0]
["Sch IIB","Investments",null,"Counterparty Default Risk - MV of Derivatives - MV Negative - Rating 1",null,null,null,null,null,null,null,null,0]
["Sch IIB","Investments",null,"Counterparty Default Risk - MV of Derivatives - MV Negative - Rating 2",null,null,null,null,null,null,null,null,0]
["Sch IIB","Investments",null,"Counterparty Default Risk - MV of Derivatives - MV Negative - Rating 3",null,null,null,null,null,null,null,null,0]
["Sch IIB","Investments",null,"Counterparty Default Risk - MV of Derivatives - MV Negative - Rating 4",null,null,null,null,null,null,null,null,0]
["Sch IIB","Investments",null,"Counterparty Default Risk - MV of Derivatives - MV Negative - Rating 5",null,null,null,null,null,null,null,null,0]
["Sch IIB","Investments",null,"Counterparty Default Risk - MV of Derivatives - MV Negative - Rating 6",null,null,null,null,null,null,null,null,0]
["Sch IIB","Investments",null,"Counterparty Default Risk - MV of Derivatives - MV Negative - Rating 7",null,null,null,null,null,null,null,null,0]
["Sch IIB","Investments",null,"Counterparty Default Risk - MV of Derivatives - MV Negative - Rating 8",null,null,null,null,null,null,null,null,0]
["Sch IIB","Investments",null,"Counterparty Default Risk - MV of Collateral - Rating 0",null,null,null,null,null,null,null,null,0]
["Sch IIB","Investments",null,"Counterparty Default Risk - MV of Collateral - Rating 1",null,null,null,null,null,null,null,null,0]
["Sch IIB","Investments",null,"Counterparty Default Risk - MV of Collateral - Rating 2",null,null,null,null,null,null,null,null,0]
["Sch IIB","Investments",null,"Counterparty Default Risk - MV of Collateral - Rating 3",null,null,null,null,null,null,null,null,0]
["Sch IIB","Investments",null,"Counterparty Default Risk - MV of Collateral - Rating 4",null,null,null,null,null,null,null,null,0]
["Sch IIB","Investments",null,"Counterparty Default Risk - MV of Collateral - Rating 5",null,null,null,null,null,null,null,null,0]
["Sch IIB","Investments",null,"Counterparty Default Risk - MV of Collateral - Rating 6",null,null,null,null,null,null,null,null,0]
["Sch IIB","Investments",null,"Counterparty Default Risk - MV of Collateral - Rating 7",null,null,null,null,null,null,null,null,0]
["Sch IIB","Investments",null,"Counterparty Default Risk - MV of Collateral - Rating 8",null,null,null,null,null,null,null,null,0]
["Sch IIB","Investments",null,"Cash and Cash Equivalents",null,null,null,null,null,null,null,null,0]
["Sch IIB","Investments",null,"NAIC Resid. MBS - Orig. Class 1",null,null,null,null,null,null,null,null,0]
["Sch IIB","Investments",null,"NAIC Resid. MBS - Orig. Class 2",null,null,null,null,null,null,null,null,0]
["Sch IIB","Investments",null,"NAIC Resid. MBS - Orig. Class 3",null,null,null,null,null,null,null,null,0]
["Sch IIB","Investments",null,"NAIC Resid. MBS - Orig. Class 4",null,null,null,null,null,null,null,null,0]
["Sch IIB","Investments",null,"NAIC Resid. MBS - Orig. Class 5",null,null,null,null,null,null,null,null,0]
["Sch IIB","Investments",null,"NAIC Resid. MBS - Orig. Class 6",null,null,null,null,null,null,null,null,0]
["Sch IIB","Investments",null,"NAIC Resid. MBS - Orig. Total",null,null,null,null,null,null,null,null,0]
["Sch IIB","Investments",null,"NAIC Resid. MBS - Rev. Class 1",null,null,null,null,null,null,null,null,0]
["Sch IIB","Investments",null,"NAIC Resid. MBS - Rev. Class 2",null,null,null,null,null,null,null,null,0]
["Sch IIB","Investments",null,"NAIC Resid. MBS - Rev. Class 3",null,null,null,null,null,null,null,null,0]
["Sch IIB","Investments",null,"NAIC Resid. MBS - Rev. Class 4",null,null,null,null,null,null,null,null,0]
["Sch IIB","Investments",null,"NAIC Resid. MBS - Rev. Class 5",null,null,null,null,null,null,null,null,0]
["Sch IIB","Investments",null,"NAIC Resid. MBS - Rev. Class 6",null,null,null,null,null,null,null,null,0]
["Sch IIB","Investments",null,"NAIC Resid. MBS - Rev. Total",null,null,null,null,null,null,null,null,0]
["Sch IIB","Investments",null,"NAIC Comm. MBS - Orig. Class 1",null,null,null,null,null,null,null,null,0]
["Sch IIB","Investments",null,"NAIC Comm. MBS - Orig. Class 2",null,null,null,null,null,null,null,null,0]
["Sch IIB","Investments",null,"NAIC Comm. MBS - Orig. Class 3",null,null,null,null,null,null,null,null,0]
["Sch IIB","Investments",null,"NAIC Comm. MBS - Orig. Class 4",null,null,null,null,null,null,null,null,0]
["Sch IIB","Investments",null,"NAIC Comm. MBS - Orig. Class 5",null,null,null,null,null,null,null,null,0]
["Sch IIB","Investments",null,"NAIC Comm. MBS - Orig. Class 6",null,null,null,null,null,null,null,null,0]
["Sch IIB","Investments",null,"NAIC Comm. MBS - Orig. Total",null,null,null,null,null,null,null,null,0]
["Sch IIB","Investments",null,"NAIC Comm. MBS - Rev. Class 1",null,null,null,null,null,null,null,null,0]
["Sch IIB","Investments",null,"NAIC Comm. MBS - Rev. Class 2",null,null,null,null,null,null,null,null,0]
["Sch IIB","Investments",null,"NAIC Comm. MBS - Rev. Class 3",null,null,null,null,null,null,null,null,0]
["Sch IIB","Investments",null,"NAIC Comm. MBS - Rev. Class 4",null,null,null,null,null,null,null,null,0]
["Sch IIB","Investments",null,"NAIC Comm. MBS - Rev. Class 5",null,null,null,null,null,null,null,null,0]
["Sch IIB","Investments",null,"NAIC Comm. MBS - Rev. Class 6",null,null,null,null,null,null,null,null,0]
["Sch IIB","Investments",null,"NAIC Comm. MBS - Rev. Total",null,null,null,null,null,null,null,null,0]
["Sch IIB","Investments",null,"NAIC Rating Corp & Sov. Bond - Class 1",null,null,null,null,null,null,null,null,0]
["Sch IIB","Investments",null,"NAIC Rating Corp & Sov. Bond - Class 2",null,null,null,null,null,null,null,null,0]
["Sch IIB","Investments",null,"NAIC Rating Corp & Sov. Bond - Class 3",null,null,null,null,null,null,null,null,0]
["Sch IIB","Investments",null,"NAIC Rating Corp & Sov. Bond - Class 4",null,null,null,null,null,null,null,null,0]
["Sch IIB","Investments",null,"NAIC Rating Corp & Sov. Bond - Class 5",null,null,null,null,null,null,null,null,0]
["Sch IIB","Investments",null,"NAIC Rating Corp & Sov. Bond - Class 6",null,null,null,null,null,null,null,null,0]
["Sch IIB","Investments",null,"NAIC Rating Corp & Sov. Bond - Total",null,null,null,null,null,null,null,null,0]
["Sch IIB","Investments",null,"NAIC Rating Resid. MBS - Class 1",null,null,null,null,null,null,null,null,0]
["Sch IIB","Investments",null,"NAIC Rating Resid. MBS - Class 2",null,null,null,null,null,null,null,null,0]
["Sch IIB","Investments",null,"NAIC Rating Resid. MBS - Class 3",null,null,null,null,null,null,null,null,0]
["Sch IIB","Investments",null,"NAIC Rating Resid. MBS - Class 4",null,null,null,null,null,null,null,null,0]
["Sch IIB","Investments",null,"NAIC Rating Resid. MBS - Class 5",null,null,null,null,null,null,null,null,0]
["Sch IIB","Investments",null,"NAIC Rating Resid. MBS - Class 6",null,null,null,null,null,null,null,null,0]
["Sch IIB","Investments",null,"NAIC Rating Resid. MBS - Total",null,null,null,null,null,null,null,null,0]
["Sch IIB","Investments",null,"NAIC Rating Comm. MBS - Class 1",null,null,null,null,null,null,null,null,0]
["Sch IIB","Investments",null,"NAIC Rating Comm. MBS - Class 2",null,null,null,null,null,null,null,null,0]
["Sch IIB","Investments",null,"NAIC Rating Comm. MBS - Class 3",null,null,null,null,null,null,null,null,0]
["Sch IIB","Investments",null,"NAIC Rating Comm. MBS - Class 4",null,null,null,null,null,null,null,null,0]
["Sch IIB","Investments",null,"NAIC Rating Comm. MBS - Class 5",null,null,null,null,null,null,null,null,0]
["Sch IIB","Investments",null,"NAIC Rating Comm. MBS - Class 6",null,null,null,null,null,null,null,null,0]
["Sch IIB","Investments",null,"NAIC Rating Comm. MBS - Total",null,null,null,null,null,null,null,null,0]
["Sch IIB","Investments",null,"NAIC Rating Bond Mutual - Class 1",null,null,null,null,null,null,null,null,0]
["Sch IIB","Investments",null,"NAIC Rating Bond Mutual - Class 2",null,null,null,null,null,null,null,null,0]
["Sch IIB","Investments",null,"NAIC Rating Bond Mutual - Class 3",null,null,null,null,null,null,null,null,0]
["Sch IIB","Investments",null,"NAIC Rating Bond Mutual - Class 4",null,null,null,null,null,null,null,null,0]
["Sch IIB","Investments",null,"NAIC Rating Bond Mutual - Class 5",null,null,null,null,null,null,null,null,0]
["Sch IIB","Investments",null,"NAIC Rating Bond Mutual - Class 6",null,null,null,null,null,null,null,null,0]
["Sch IIB","Investments",null,"NAIC Rating Bond Mutual - Total",null,null,null,null,null,null,null,null,0]
["Sch IIB","Investments",null,"NAIC Rating Mort. Loan - Class 1",null,null,null,null,null,null,null,null,0]
["Sch IIB","Investments",null,"NAIC Rating Mort. Loan - Class 2",null,null,null,null,null,null,null,null,0]
["Sch IIB","Investments",null,"NAIC Rating Mort. Loan - Class 3",null,null,null,null,null,null,null,null,0]
["Sch IIB","Investments",null,"NAIC Rating Mort. Loan - Class 4",null,null,null,null,null,null,null,null,0]
["Sch IIB","Investments",null,"NAIC Rating Mort. Loan - Class 5",null,null,null,null,null,null,null,null,0]
["Sch IIB","Investments",null,"NAIC Rating Mort. Loan - Class 6",null,null,null,null,null,null,null,null,0]
["Sch IIB","Investments",null,"NAIC Rating Mort. Loan - Total",null,null,null,null,null,null,null,null,0]
["Sch IIB","Investments",null,"NAIC Rating Pref. Stock - Class 1",null,null,null,null,null,null,null,null,0]
["Sch IIB","Investments",null,"NAIC Rating Pref. Stock - Class 2",null,null,null,null,null,null,null,null,0]
["Sch IIB","Investments",null,"NAIC Rating Pref. Stock - Class 3",null,null,null,null,null,null,null,null,0]
["Sch IIB","Investments",null,"NAIC Rating Pref. Stock - Class 4",null,null,null,null,null,null,null,null,0]
["Sch IIB","Investments",null,"NAIC Rating Pref. Stock - Class 5",null,null,null,null,null,null,null,null,0]
["Sch IIB","Investments",null,"NAIC Rating Pref. Stock - Class 6",null,null,null,null,null,null,null,null,0]
["Sch IIB","Investments",null,"NAIC Rating Pref. Stock - Total",null,null,null,null,null,null,null,null,0]
["Sch IIB","Investments",null,"NAIC Rating Other Assets - Class 1",null,null,null,null,null,null,null,null,0]
["Sch IIB","Investments",null,"NAIC Rating Other Assets - Class 2",null,null,null,null,null,null,null,null,0]
["Sch IIB","Investments",null,"NAIC Rating Other Assets - Class 3",null,null,null,null,null,null,null,null,0]
["Sch IIB","Investments",null,"NAIC Rating Other Assets - Class 4",null,null,null,null,null,null,null,null,0]
["Sch IIB","Investments",null,"NAIC Rating Other Assets - Class 5",null,null,null,null,null,null,null,null,0]
["Sch IIB","Investments",null,"NAIC Rating Other Assets - Class 6",null,null,null,null,null,null,null,null,0]
["Sch IIB","Investments",null,"NAIC Rating Other Assets - Total",null,null,null,null,null,null,null,null,0]
[]
["Sch IIC","Funds Held",null,"Corp. Bonds - BSCR Rate 0",null,null,null,null,null,null,null,null,0,null,0]
["Sch IIC","Funds Held",null,"Corp. Bonds - BSCR Rate 1",null,null,null,null,null,null,null,null,0,null,0]
["Sch IIC","Funds Held",null,"Corp. Bonds - BSCR Rate 2",null,null,null,null,null,null,null,null,0,null,0]
["Sch IIC","Funds Held",null,"Corp. Bonds - BSCR Rate 3",null,null,null,null,null,null,null,null,0,null,0]
["Sch IIC","Funds Held",null,"Corp. Bonds - BSCR Rate 4",null,null,null,null,null,null,null,null,0,null,0]
["Sch IIC","Funds Held",null,"Corp. Bonds - BSCR Rate 5",null,null,null,null,null,null,null,null,0,null,0]
["Sch IIC","Funds Held",null,"Corp. Bonds - BSCR Rate 6",null,null,null,null,null,null,null,null,0,null,0]
["Sch IIC","Funds Held",null,"Corp. Bonds - BSCR Rate 7",null,null,null,null,null,null,null,null,0,null,0]
["Sch IIC","Funds Held",null,"Corp. Bonds - BSCR Rate 8",null,null,null,null,null,null,null,null,0,null,0]
["Sch IIC","Funds Held",null,"Residential MBS - BSCR Rate 1",null,null,null,null,null,null,null,null,0,null,0]
["Sch IIC","Funds Held",null,"Residential MBS - BSCR Rate 2",null,null,null,null,null,null,null,null,0,null,0]
["Sch IIC","Funds Held",null,"Residential MBS - BSCR Rate 3",null,null,null,null,null,null,null,null,0,null,0]
["Sch IIC","Funds Held",null,"Residential MBS - BSCR Rate 4",null,null,null,null,null,null,null,null,0,null,0]
["Sch IIC","Funds Held",null,"Residential MBS - BSCR Rate 5",null,null,null,null,null,null,null,null,0,null,0]
["Sch IIC","Funds Held",null,"Residential MBS - BSCR Rate 6",null,null,null,null,null,null,null,null,0,null,0]
["Sch IIC","Funds Held",null,"Residential MBS - BSCR Rate 7",null,null,null,null,null,null,null,null,0,null,0]
["Sch IIC","Funds Held",null,"Residential MBS - BSCR Rate 8",null,null,null,null,null,null,null,null,0,null,0]
["Sch IIC","Funds Held",null,"Commercial MBS - BSCR Rate 1",null,null,null,null,null,null,null,null,0,null,0]
["Sch IIC","Funds Held",null,"Commercial MBS - BSCR Rate 2",null,null,null,null,null,null,null,null,0,null,0]
["Sch IIC","Funds Held",null,"Commercial MBS - BSCR Rate 3",null,null,null,null,null,null,null,null,0,null,0]
["Sch IIC","Funds Held",null,"Commercial MBS - BSCR Rate 4",null,null,null,null,null,null,null,null,0,null,0]
["Sch IIC","Funds Held",null,"Commercial MBS - BSCR Rate 5",null,null,null,null,null,null,null,null,0,null,0]
["Sch IIC","Funds Held",null,"Commercial MBS - BSCR Rate 6",null,null,null,null,null,null,null,null,0,null,0]
["Sch IIC","Funds Held",null,"Commercial MBS - BSCR Rate 7",null,null,null,null,null,null,null,null,0,null,0]
["Sch IIC","Funds Held",null,"Commercial MBS - BSCR Rate 8",null,null,null,null,null,null,null,null,0,null,0]
["Sch IIC","Funds Held",null,"Bonds Mutual Fund - BSCR Rate 0",null,null,null,null,null,null,null,null,0,null,0]
["Sch IIC","Funds Held",null,"Bonds Mutual Fund - BSCR Rate 1",null,null,null,null,null,null,null,null,0,null,0]
["Sch IIC","Funds Held",null,"Bonds Mutual Fund - BSCR Rate 2",null,null,null,null,null,null,null,null,0,null,0]
["Sch IIC","Funds Held",null,"Bonds Mutual Fund - BSCR Rate 3",null,null,null,null,null,null,null,null,0,null,0]
["Sch IIC","Funds Held",null,"Bonds Mutual Fund - BSCR Rate 4",null,null,null,null,null,null,null,null,0,null,0]
["Sch IIC","Funds Held",null,"Bonds Mutual Fund - BSCR Rate 5",null,null,null,null,null,null,null,null,0,null,0]
["Sch IIC","Funds Held",null,"Bonds Mutual Fund - BSCR Rate 6",null,null,null,null,null,null,null,null,0,null,0]
["Sch IIC","Funds Held",null,"Bonds Mutual Fund - BSCR Rate 7",null,null,null,null,null,null,null,null,0,null,0]
["Sch IIC","Funds Held",null,"Bonds Mutual Fund - BSCR Rate 8",null,null,null,null,null,null,null,null,0,null,0]
["Sch IIC","Funds Held",null,"Mortgage Loans - Insured",null,null,null,null,null,null,null,null,0,null,0]
["Sch IIC","Funds Held",null,"Mortgage Loans - Other Commercial",null,null,null,null,null,null,null,null,0,null,0]
["Sch IIC","Funds Held",null,"Mortgage Loans - Other Residential",null,null,null,null,null,null,null,null,0,null,0]
["Sch IIC","Funds Held",null,"Mortgage Loans - Not Good Stand.",null,null,null,null,null,null,null,null,0,null,0]
["Sch IIC","Funds Held",null,"Long Positions - Before - Strategic Holdings - Listed",null,null,null,null,null,null,null,null,0]
["Sch IIC","Funds Held",null,"Long Positions - Before - Duration Based",null,null,null,null,null,null,null,null,0]
["Sch IIC","Funds Held",null,"Long Positions - Before - Listed Equity Securities in Developed Markets",null,null,null,null,null,null,null,null,0]
["Sch IIC","Funds Held",null,"Long Positions - Before - Preferred Stocks, BSCR Rating 1",null,null,null,null,null,null,null,null,0]
["Sch IIC","Funds Held",null,"Long Positions - Before - Preferred Stocks, BSCR Rating 2",null,null,null,null,null,null,null,null,0]
["Sch IIC","Funds Held",null,"Long Positions - Before - Preferred Stocks, BSCR Rating 3",null,null,null,null,null,null,null,null,0]
["Sch IIC","Funds Held",null,"Long Positions - Before - Preferred Stocks, BSCR Rating 4",null,null,null,null,null,null,null,null,0]
["Sch IIC","Funds Held",null,"Long Positions - Before - Preferred Stocks, BSCR Rating 5",null,null,null,null,null,null,null,null,0]
["Sch IIC","Funds Held",null,"Long Positions - Before - Preferred Stocks, BSCR Rating 6",null,null,null,null,null,null,null,null,0]
["Sch IIC","Funds Held",null,"Long Positions - Before - Preferred Stocks, BSCR Rating 7",null,null,null,null,null,null,null,null,0]
["Sch IIC","Funds Held",null,"Long Positions - Before - Preferred Stocks, BSCR Rating 8",null,null,null,null,null,null,null,null,0]
["Sch IIC","Funds Held",null,"Long Positions - Before - Equity Derivatives on Type 1 Equities",null,null,null,null,null,null,null,null,0]
["Sch IIC","Funds Held",null,"Long Positions - Before - Strategic Holdings - Unlisted",null,null,null,null,null,null,null,null,0]
["Sch IIC","Funds Held",null,"Long Positions - Before - Other Equities",null,null,null,null,null,null,null,null,0]
["Sch IIC","Funds Held",null,"Long Positions - Before - Letters of Credit",null,null,null,null,null,null,null,null,0]
["Sch IIC","Funds Held",null,"Long Positions - Before - Intangible assets",null,null,null,null,null,null,null,null,0]
["Sch IIC","Funds Held",null,"Long Positions - Before - Pension Benefit Surplus",null,null,null,null,null,null,null,null,0]
["Sch IIC","Funds Held",null,"Long Positions - Before - Equity Derivatives on Type 2 Equities",null,null,null,null,null,null,null,null,0]
["Sch IIC","Funds Held",null,"Long Positions - Before - Infrastructure",null,null,null,null,null,null,null,null,0]
["Sch IIC","Funds Held",null,"Long Positions - Before - Derivatives on Infrastructure",null,null,null,null,null,null,null,null,0]
["Sch IIC","Funds Held",null,"Long Positions - Before - Equity Real Estate 1",null,null,null,null,null,null,null,null,0]
["Sch IIC","Funds Held",null,"Long Positions - Before - Equity Real Estate 2",null,null,null,null,null,null,null,null,0]
["Sch IIC","Funds Held",null,"Long Positions - After - Strategic Holdings - Listed",null,null,null,null,null,null,null,null,0]
["Sch IIC","Funds Held",null,"Long Positions - After - Duration Based",null,null,null,null,null,null,null,null,0]
["Sch IIC","Funds Held",null,"Long Positions - After - Listed Equity Securities in Developed Markets",null,null,null,null,null,null,null,null,0]
["Sch IIC","Funds Held",null,"Long Positions - After - Preferred Stocks, BSCR Rating 1",null,null,null,null,null,null,null,null,0]
["Sch IIC","Funds Held",null,"Long Positions - After - Preferred Stocks, BSCR Rating 2",null,null,null,null,null,null,null,null,0]
["Sch IIC","Funds Held",null,"Long Positions - After - Preferred Stocks, BSCR Rating 3",null,null,null,null,null,null,null,null,0]
["Sch IIC","Funds Held",null,"Long Positions - After - Preferred Stocks, BSCR Rating 4",null,null,null,null,null,null,null,null,0]
["Sch IIC","Funds Held",null,"Long Positions - After - Preferred Stocks, BSCR Rating 5",null,null,null,null,null,null,null,null,0]
["Sch IIC","Funds Held",null,"Long Positions - After - Preferred Stocks, BSCR Rating 6",null,null,null,null,null,null,null,null,0]
["Sch IIC","Funds Held",null,"Long Positions - After - Preferred Stocks, BSCR Rating 7",null,null,null,null,null,null,null,null,0]
["Sch IIC","Funds Held",null,"Long Positions - After - Preferred Stocks, BSCR Rating 8",null,null,null,null,null,null,null,null,0]
["Sch IIC","Funds Held",null,"Long Positions - After - Equity Derivatives on Type 1 Equities",null,null,null,null,null,null,null,null,0]
["Sch IIC","Funds Held",null,"Long Positions - After - Strategic Holdings - Unlisted",null,null,null,null,null,null,null,null,0]
["Sch IIC","Funds Held",null,"Long Positions - After - Other Equities",null,null,null,null,null,null,null,null,0]
["Sch IIC","Funds Held",null,"Long Positions - After - Letters of Credit",null,null,null,null,null,null,null,null,0]
["Sch IIC","Funds Held",null,"Long Positions - After - Intangible assets",null,null,null,null,null,null,null,null,0]
["Sch IIC","Funds Held",null,"Long Positions - After - Pension Benefit Surplus",null,null,null,null,null,null,null,null,0]
["Sch IIC","Funds Held",null,"Long Positions - After - Equity Derivatives on Type 2 Equities",null,null,null,null,null,null,null,null,0]
["Sch IIC","Funds Held",null,"Long Positions - After - Infrastructure",null,null,null,null,null,null,null,null,0]
["Sch IIC","Funds Held",null,"Long Positions - After - Derivatives on Infrastructure",null,null,null,null,null,null,null,null,0]
["Sch IIC","Funds Held",null,"Long Positions - After - Equity Real Estate 1",null,null,null,null,null,null,null,null,0]
["Sch IIC","Funds Held",null,"Long Positions - After - Equity Real Estate 2",null,null,null,null,null,null,null,null,0]
["Sch IIC","Funds Held",null,"Short - Before - Qualified Assets - Strategic Holdings - Listed",null,null,null,null,null,null,null,null,0]
["Sch IIC","Funds Held",null,"Short - Before - Qualified Assets - Duration Based",null,null,null,null,null,null,null,null,0]
["Sch IIC","Funds Held",null,"Short - Before - Qualified Assets - Listed Equity Securities in Developed Markets",null,null,null,null,null,null,null,null,0]
["Sch IIC","Funds Held",null,"Short - Before - Qualified Assets - Preferred Stocks, BSCR Rating 1",null,null,null,null,null,null,null,null,0]
["Sch IIC","Funds Held",null,"Short - Before - Qualified Assets - Preferred Stocks, BSCR Rating 2",null,null,null,null,null,null,null,null,0]
["Sch IIC","Funds Held",null,"Short - Before - Qualified Assets - Preferred Stocks, BSCR Rating 3",null,null,null,null,null,null,null,null,0]
["Sch IIC","Funds Held",null,"Short - Before - Qualified Assets - Preferred Stocks, BSCR Rating 4",null,null,null,null,null,null,null,null,0]
["Sch IIC","Funds Held",null,"Short - Before - Qualified Assets - Preferred Stocks, BSCR Rating 5",null,null,null,null,null,null,null,null,0]
["Sch IIC","Funds Held",null,"Short - Before - Qualified Assets - Preferred Stocks, BSCR Rating 6",null,null,null,null,null,null,null,null,0]
["Sch IIC","Funds Held",null,"Short - Before - Qualified Assets - Preferred Stocks, BSCR Rating 7",null,null,null,null,null,null,null,null,0]
["Sch IIC","Funds Held",null,"Short - Before - Qualified Assets - Preferred Stocks, BSCR Rating 8",null,null,null,null,null,null,null,null,0]
["Sch IIC","Funds Held",null,"Short - Before - Qualified Assets - Equity Derivatives on Type 1 Equities",null,null,null,null,null,null,null,null,0]
["Sch IIC","Funds Held",null,"Short - Before - Qualified Assets - Strategic Holdings - Unlisted",null,null,null,null,null,null,null,null,0]
["Sch IIC","Funds Held",null,"Short - Before - Qualified Assets - Other Equities",null,null,null,null,null,null,null,null,0]
["Sch IIC","Funds Held",null,"Short - Before - Qualified Assets - Letters of Credit",null,null,null,null,null,null,null,null,0]
["Sch IIC","Funds Held",null,"Short - Before - Qualified Assets - Intangible assets",null,null,null,null,null,null,null,null,0]
["Sch IIC","Funds Held",null,"Short - Before - Qualified Assets - Pension Benefit Surplus",null,null,null,null,null,null,null,null,0]
["Sch IIC","Funds Held",null,"Short - Before - Qualified Assets - Equity Derivatives on Type 2 Equities",null,null,null,null,null,null,null,null,0]
["Sch IIC","Funds Held",null,"Short - Before - Qualified Assets - Infrastructure",null,null,null,null,null,null,null,null,0]
["Sch IIC","Funds Held",null,"Short - Before - Qualified Assets - Derivatives on Infrastructure",null,null,null,null,null,null,null,null,0]
["Sch IIC","Funds Held",null,"Short - Before - Qualified Assets - Equity Real Estate 1",null,null,null,null,null,null,null,null,0]
["Sch IIC","Funds Held",null,"Short - Before - Qualified Assets - Equity Real Estate 2",null,null,null,null,null,null,null,null,0]
["Sch IIC","Funds Held",null,"Short - After - Qualified Assets - Strategic Holdings - Listed",null,null,null,null,null,null,null,null,0]
["Sch IIC","Funds Held",null,"Short - After - Qualified Assets - Duration Based",null,null,null,null,null,null,null,null,0]
["Sch IIC","Funds Held",null,"Short - After - Qualified Assets - Listed Equity Securities in Developed Markets",null,null,null,null,null,null,null,null,0]
["Sch IIC","Funds Held",null,"Short - After - Qualified Assets - Preferred Stocks, BSCR Rating 1",null,null,null,null,null,null,null,null,0]
["Sch IIC","Funds Held",null,"Short - After - Qualified Assets - Preferred Stocks, BSCR Rating 2",null,null,null,null,null,null,null,null,0]
["Sch IIC","Funds Held",null,"Short - After - Qualified Assets - Preferred Stocks, BSCR Rating 3",null,null,null,null,null,null,null,null,0]
["Sch IIC","Funds Held",null,"Short - After - Qualified Assets - Preferred Stocks, BSCR Rating 4",null,null,null,null,null,null,null,null,0]
["Sch IIC","Funds Held",null,"Short - After - Qualified Assets - Preferred Stocks, BSCR Rating 5",null,null,null,null,null,null,null,null,0]
["Sch IIC","Funds Held",null,"Short - After - Qualified Assets - Preferred Stocks, BSCR Rating 6",null,null,null,null,null,null,null,null,0]
["Sch IIC","Funds Held",null,"Short - After - Qualified Assets - Preferred Stocks, BSCR Rating 7",null,null,null,null,null,null,null,null,0]
["Sch IIC","Funds Held",null,"Short - After - Qualified Assets - Preferred Stocks, BSCR Rating 8",null,null,null,null,null,null,null,null,0]
["Sch IIC","Funds Held",null,"Short - After - Qualified Assets - Equity Derivatives on Type 1 Equities",null,null,null,null,null,null,null,null,0]
["Sch IIC","Funds Held",null,"Short - After - Qualified Assets - Strategic Holdings - Unlisted",null,null,null,null,null,null,null,null,0]
["Sch IIC","Funds Held",null,"Short - After - Qualified Assets - Other Equities",null,null,null,null,null,null,null,null,0]
["Sch IIC","Funds Held",null,"Short - After - Qualified Assets - Letters of Credit",null,null,null,null,null,null,null,null,0]
["Sch IIC","Funds Held",null,"Short - After - Qualified Assets - Intangible assets",null,null,null,null,null,null,null,null,0]
["Sch IIC","Funds Held",null,"Short - After - Qualified Assets - Pension Benefit Surplus",null,null,null,null,null,null,null,null,0]
["Sch IIC","Funds Held",null,"Short - After - Qualified Assets - Equity Derivatives on Type 2 Equities",null,null,null,null,null,null,null,null,0]
["Sch IIC","Funds Held",null,"Short - After - Qualified Assets - Infrastructure",null,null,null,null,null,null,null,null,0]
["Sch IIC","Funds Held",null,"Short - After - Qualified Assets - Derivatives on Infrastructure",null,null,null,null,null,null,null,null,0]
["Sch IIC","Funds Held",null,"Short - After - Qualified Assets - Equity Real Estate 1",null,null,null,null,null,null,null,null,0]
["Sch IIC","Funds Held",null,"Short - After - Qualified Assets - Equity Real Estate 2",null,null,null,null,null,null,null,null,0]
["Sch IIC","Funds Held",null,"Short - Before - UnQualified Assets - Strategic Holdings - Listed",null,null,null,null,null,null,null,null,0]
["Sch IIC","Funds Held",null,"Short - Before - UnQualified Assets - Duration Based",null,null,null,null,null,null,null,null,0]
["Sch IIC","Funds Held",null,"Short - Before - UnQualified Assets - Listed Equity Securities in Developed Markets",null,null,null,null,null,null,null,null,0]
["Sch IIC","Funds Held",null,"Short - Before - UnQualified Assets - Preferred Stocks, BSCR Rating 1",null,null,null,null,null,null,null,null,0]
["Sch IIC","Funds Held",null,"Short - Before - UnQualified Assets - Preferred Stocks, BSCR Rating 2",null,null,null,null,null,null,null,null,0]
["Sch IIC","Funds Held",null,"Short - Before - UnQualified Assets - Preferred Stocks, BSCR Rating 3",null,null,null,null,null,null,null,null,0]
["Sch IIC","Funds Held",null,"Short - Before - UnQualified Assets - Preferred Stocks, BSCR Rating 4",null,null,null,null,null,null,null,null,0]
["Sch IIC","Funds Held",null,"Short - Before - UnQualified Assets - Preferred Stocks, BSCR Rating 5",null,null,null,null,null,null,null,null,0]
["Sch IIC","Funds Held",null,"Short - Before - UnQualified Assets - Preferred Stocks, BSCR Rating 6",null,null,null,null,null,null,null,null,0]
["Sch IIC","Funds Held",null,"Short - Before - UnQualified Assets - Preferred Stocks, BSCR Rating 7",null,null,null,null,null,null,null,null,0]
["Sch IIC","Funds Held",null,"Short - Before - UnQualified Assets - Preferred Stocks, BSCR Rating 8",null,null,null,null,null,null,null,null,0]
["Sch IIC","Funds Held",null,"Short - Before - UnQualified Assets - Equity Derivatives on Type 1 Equities",null,null,null,null,null,null,null,null,0]
["Sch IIC","Funds Held",null,"Short - Before - UnQualified Assets - Strategic Holdings - Unlisted",null,null,null,null,null,null,null,null,0]
["Sch IIC","Funds Held",null,"Short - Before - UnQualified Assets - Other Equities",null,null,null,null,null,null,null,null,0]
["Sch IIC","Funds Held",null,"Short - Before - UnQualified Assets - Letters of Credit",null,null,null,null,null,null,null,null,0]
["Sch IIC","Funds Held",null,"Short - Before - UnQualified Assets - Intangible assets",null,null,null,null,null,null,null,null,0]
["Sch IIC","Funds Held",null,"Short - Before - UnQualified Assets - Pension Benefit Surplus",null,null,null,null,null,null,null,null,0]
["Sch IIC","Funds Held",null,"Short - Before - UnQualified Assets - Equity Derivatives on Type 2 Equities",null,null,null,null,null,null,null,null,0]
["Sch IIC","Funds Held",null,"Short - Before - UnQualified Assets - Infrastructure",null,null,null,null,null,null,null,null,0]
["Sch IIC","Funds Held",null,"Short - Before - UnQualified Assets - Derivatives on Infrastructure",null,null,null,null,null,null,null,null,0]
["Sch IIC","Funds Held",null,"Short - Before - UnQualified Assets - Equity Real Estate 1",null,null,null,null,null,null,null,null,0]
["Sch IIC","Funds Held",null,"Short - Before - UnQualified Assets - Equity Real Estate 2",null,null,null,null,null,null,null,null,0]
["Sch IIC","Funds Held",null,"Short - After - UnQualified Assets - Strategic Holdings - Listed",null,null,null,null,null,null,null,null,0]
["Sch IIC","Funds Held",null,"Short - After - UnQualified Assets - Duration Based",null,null,null,null,null,null,null,null,0]
["Sch IIC","Funds Held",null,"Short - After - UnQualified Assets - Listed Equity Securities in Developed Markets",null,null,null,null,null,null,null,null,0]
["Sch IIC","Funds Held",null,"Short - After - UnQualified Assets - Preferred Stocks, BSCR Rating 1",null,null,null,null,null,null,null,null,0]
["Sch IIC","Funds Held",null,"Short - After - UnQualified Assets - Preferred Stocks, BSCR Rating 2",null,null,null,null,null,null,null,null,0]
["Sch IIC","Funds Held",null,"Short - After - UnQualified Assets - Preferred Stocks, BSCR Rating 3",null,null,null,null,null,null,null,null,0]
["Sch IIC","Funds Held",null,"Short - After - UnQualified Assets - Preferred Stocks, BSCR Rating 4",null,null,null,null,null,null,null,null,0]
["Sch IIC","Funds Held",null,"Short - After - UnQualified Assets - Preferred Stocks, BSCR Rating 5",null,null,null,null,null,null,null,null,0]
["Sch IIC","Funds Held",null,"Short - After - UnQualified Assets - Preferred Stocks, BSCR Rating 6",null,null,null,null,null,null,null,null,0]
["Sch IIC","Funds Held",null,"Short - After - UnQualified Assets - Preferred Stocks, BSCR Rating 7",null,null,null,null,null,null,null,null,0]
["Sch IIC","Funds Held",null,"Short - After - UnQualified Assets - Preferred Stocks, BSCR Rating 8",null,null,null,null,null,null,null,null,0]
["Sch IIC","Funds Held",null,"Short - After - UnQualified Assets - Equity Derivatives on Type 1 Equities",null,null,null,null,null,null,null,null,0]
["Sch IIC","Funds Held",null,"Short - After - UnQualified Assets - Strategic Holdings - Unlisted",null,null,null,null,null,null,null,null,0]
["Sch IIC","Funds Held",null,"Short - After - UnQualified Assets - Other Equities",null,null,null,null,null,null,null,null,0]
["Sch IIC","Funds Held",null,"Short - After - UnQualified Assets - Letters of Credit",null,null,null,null,null,null,null,null,0]
["Sch IIC","Funds Held",null,"Short - After - UnQualified Assets - Intangible assets",null,null,null,null,null,null,null,null,0]
["Sch IIC","Funds Held",null,"Short - After - UnQualified Assets - Pension Benefit Surplus",null,null,null,null,null,null,null,null,0]
["Sch IIC","Funds Held",null,"Short - After - UnQualified Assets - Equity Derivatives on Type 2 Equities",null,null,null,null,null,null,null,null,0]
["Sch IIC","Funds Held",null,"Short - After - UnQualified Assets - Infrastructure",null,null,null,null,null,null,null,null,0]
["Sch IIC","Funds Held",null,"Short - After - UnQualified Assets - Derivatives on Infrastructure",null,null,null,null,null,null,null,null,0]
["Sch IIC","Funds Held",null,"Short - After - UnQualified Assets - Equity Real Estate 1",null,null,null,null,null,null,null,null,0]
["Sch IIC","Funds Held",null,"Short - After - UnQualified Assets - Equity Real Estate 2",null,null,null,null,null,null,null,null,0]
["Sch IIC","Funds Held",null,"Liabilities - Before - W/O Mgmt. Actions - Strategic Holdings - Listed",null,null,null,null,null,null,null,null,0]
["Sch IIC","Funds Held",null,"Liabilities - Before - W/O Mgmt. Actions - Duration Based",null,null,null,null,null,null,null,null,0]
["Sch IIC","Funds Held",null,"Liabilities - Before - W/O Mgmt. Actions - Listed Equity Securities in Developed Markets",null,null,null,null,null,null,null,null,0]
["Sch IIC","Funds Held",null,"Liabilities - Before - W/O Mgmt. Actions - Preferred Stocks, BSCR Rating 1",null,null,null,null,null,null,null,null,0]
["Sch IIC","Funds Held",null,"Liabilities - Before - W/O Mgmt. Actions - Preferred Stocks, BSCR Rating 2",null,null,null,null,null,null,null,null,0]
["Sch IIC","Funds Held",null,"Liabilities - Before - W/O Mgmt. Actions - Preferred Stocks, BSCR Rating 3",null,null,null,null,null,null,null,null,0]
["Sch IIC","Funds Held",null,"Liabilities - Before - W/O Mgmt. Actions - Preferred Stocks, BSCR Rating 4",null,null,null,null,null,null,null,null,0]
["Sch IIC","Funds Held",null,"Liabilities - Before - W/O Mgmt. Actions - Preferred Stocks, BSCR Rating 5",null,null,null,null,null,null,null,null,0]
["Sch IIC","Funds Held",null,"Liabilities - Before - W/O Mgmt. Actions - Preferred Stocks, BSCR Rating 6",null,null,null,null,null,null,null,null,0]
["Sch IIC","Funds Held",null,"Liabilities - Before - W/O Mgmt. Actions - Preferred Stocks, BSCR Rating 7",null,null,null,null,null,null,null,null,0]
["Sch IIC","Funds Held",null,"Liabilities - Before - W/O Mgmt. Actions - Preferred Stocks, BSCR Rating 8",null,null,null,null,null,null,null,null,0]
["Sch IIC","Funds Held",null,"Liabilities - Before - W/O Mgmt. Actions - Equity Derivatives on Type 1 Equities",null,null,null,null,null,null,null,null,0]
["Sch IIC","Funds Held",null,"Liabilities - Before - W/O Mgmt. Actions - Strategic Holdings - Unlisted",null,null,null,null,null,null,null,null,0]
["Sch IIC","Funds Held",null,"Liabilities - Before - W/O Mgmt. Actions - Other Equities",null,null,null,null,null,null,null,null,0]
["Sch IIC","Funds Held",null,"Liabilities - Before - W/O Mgmt. Actions - Letters of Credit",null,null,null,null,null,null,null,null,0]
["Sch IIC","Funds Held",null,"Liabilities - Before - W/O Mgmt. Actions - Intangible assets",null,null,null,null,null,null,null,null,0]
["Sch IIC","Funds Held",null,"Liabilities - Before - W/O Mgmt. Actions - Pension Benefit Surplus",null,null,null,null,null,null,null,null,0]
["Sch IIC","Funds Held",null,"Liabilities - Before - W/O Mgmt. Actions - Equity Derivatives on Type 2 Equities",null,null,null,null,null,null,null,null,0]
["Sch IIC","Funds Held",null,"Liabilities - Before - W/O Mgmt. Actions - Infrastructure",null,null,null,null,null,null,null,null,0]
["Sch IIC","Funds Held",null,"Liabilities - Before - W/O Mgmt. Actions - Derivatives on Infrastructure",null,null,null,null,null,null,null,null,0]
["Sch IIC","Funds Held",null,"Liabilities - Before - W/O Mgmt. Actions - Equity Real Estate 1",null,null,null,null,null,null,null,null,0]
["Sch IIC","Funds Held",null,"Liabilities - Before - W/O Mgmt. Actions - Equity Real Estate 2",null,null,null,null,null,null,null,null,0]
["Sch IIC","Funds Held",null,"Liabilities - After - W/O Mgmt. Actions - Strategic Holdings - Listed",null,null,null,null,null,null,null,null,0]
["Sch IIC","Funds Held",null,"Liabilities - After - W/O Mgmt. Actions - Duration Based",null,null,null,null,null,null,null,null,0]
["Sch IIC","Funds Held",null,"Liabilities - After - W/O Mgmt. Actions - Listed Equity Securities in Developed Markets",null,null,null,null,null,null,null,null,0]
["Sch IIC","Funds Held",null,"Liabilities - After - W/O Mgmt. Actions - Preferred Stocks, BSCR Rating 1",null,null,null,null,null,null,null,null,0]
["Sch IIC","Funds Held",null,"Liabilities - After - W/O Mgmt. Actions - Preferred Stocks, BSCR Rating 2",null,null,null,null,null,null,null,null,0]
["Sch IIC","Funds Held",null,"Liabilities - After - W/O Mgmt. Actions - Preferred Stocks, BSCR Rating 3",null,null,null,null,null,null,null,null,0]
["Sch IIC","Funds Held",null,"Liabilities - After - W/O Mgmt. Actions - Preferred Stocks, BSCR Rating 4",null,null,null,null,null,null,null,null,0]
["Sch IIC","Funds Held",null,"Liabilities - After - W/O Mgmt. Actions - Preferred Stocks, BSCR Rating 5",null,null,null,null,null,null,null,null,0]
["Sch IIC","Funds Held",null,"Liabilities - After - W/O Mgmt. Actions - Preferred Stocks, BSCR Rating 6",null,null,null,null,null,null,null,null,0]
["Sch IIC","Funds Held",null,"Liabilities - After - W/O Mgmt. Actions - Preferred Stocks, BSCR Rating 7",null,null,null,null,null,null,null,null,0]
["Sch IIC","Funds Held",null,"Liabilities - After - W/O Mgmt. Actions - Preferred Stocks, BSCR Rating 8",null,null,null,null,null,null,null,null,0]
["Sch IIC","Funds Held",null,"Liabilities - After - W/O Mgmt. Actions - Equity Derivatives on Type 1 Equities",null,null,null,null,null,null,null,null,0]
["Sch IIC","Funds Held",null,"Liabilities - After - W/O Mgmt. Actions - Strategic Holdings - Unlisted",null,null,null,null,null,null,null,null,0]
["Sch IIC","Funds Held",null,"Liabilities - After - W/O Mgmt. Actions - Other Equities",null,null,null,null,null,null,null,null,0]
["Sch IIC","Funds Held",null,"Liabilities - After - W/O Mgmt. Actions - Letters of Credit",null,null,null,null,null,null,null,null,0]
["Sch IIC","Funds Held",null,"Liabilities - After - W/O Mgmt. Actions - Intangible assets",null,null,null,null,null,null,null,null,0]
["Sch IIC","Funds Held",null,"Liabilities - After - W/O Mgmt. Actions - Pension Benefit Surplus",null,null,null,null,null,null,null,null,0]
["Sch IIC","Funds Held",null,"Liabilities - After - W/O Mgmt. Actions - Equity Derivatives on Type 2 Equities",null,null,null,null,null,null,null,null,0]
["Sch IIC","Funds Held",null,"Liabilities - After - W/O Mgmt. Actions - Infrastructure",null,null,null,null,null,null,null,null,0]
["Sch IIC","Funds Held",null,"Liabilities - After - W/O Mgmt. Actions - Derivatives on Infrastructure",null,null,null,null,null,null,null,null,0]
["Sch IIC","Funds Held",null,"Liabilities - After - W/O Mgmt. Actions - Equity Real Estate 1",null,null,null,null,null,null,null,null,0]
["Sch IIC","Funds Held",null,"Liabilities - After - W/O Mgmt. Actions - Equity Real Estate 2",null,null,null,null,null,null,null,null,0]
["Sch IIC","Funds Held",null,"Liabilities - After - With Mgmt. Actions - Strategic Holdings - Listed",null,null,null,null,null,null,null,null,0]
["Sch IIC","Funds Held",null,"Liabilities - After - With Mgmt. Actions - Duration Based",null,null,null,null,null,null,null,null,0]
["Sch IIC","Funds Held",null,"Liabilities - After - With Mgmt. Actions - Listed Equity Securities in Developed Markets",null,null,null,null,null,null,null,null,0]
["Sch IIC","Funds Held",null,"Liabilities - After - With Mgmt. Actions - Preferred Stocks, BSCR Rating 1",null,null,null,null,null,null,null,null,0]
["Sch IIC","Funds Held",null,"Liabilities - After - With Mgmt. Actions - Preferred Stocks, BSCR Rating 2",null,null,null,null,null,null,null,null,0]
["Sch IIC","Funds Held",null,"Liabilities - After - With Mgmt. Actions - Preferred Stocks, BSCR Rating 3",null,null,null,null,null,null,null,null,0]
["Sch IIC","Funds Held",null,"Liabilities - After - With Mgmt. Actions - Preferred Stocks, BSCR Rating 4",null,null,null,null,null,null,null,null,0]
["Sch IIC","Funds Held",null,"Liabilities - After - With Mgmt. Actions - Preferred Stocks, BSCR Rating 5",null,null,null,null,null,null,null,null,0]
["Sch IIC","Funds Held",null,"Liabilities - After - With Mgmt. Actions - Preferred Stocks, BSCR Rating 6",null,null,null,null,null,null,null,null,0]
["Sch IIC","Funds Held",null,"Liabilities - After - With Mgmt. Actions - Preferred Stocks, BSCR Rating 7",null,null,null,null,null,null,null,null,0]
["Sch IIC","Funds Held",null,"Liabilities - After - With Mgmt. Actions - Preferred Stocks, BSCR Rating 8",null,null,null,null,null,null,null,null,0]
["Sch IIC","Funds Held",null,"Liabilities - After - With Mgmt. Actions - Equity Derivatives on Type 1 Equities",null,null,null,null,null,null,null,null,0]
["Sch IIC","Funds Held",null,"Liabilities - After - With Mgmt. Actions - Strategic Holdings - Unlisted",null,null,null,null,null,null,null,null,0]
["Sch IIC","Funds Held",null,"Liabilities - After - With Mgmt. Actions - Other Equities",null,null,null,null,null,null,null,null,0]
["Sch IIC","Funds Held",null,"Liabilities - After - With Mgmt. Actions - Letters of Credit",null,null,null,null,null,null,null,null,0]
["Sch IIC","Funds Held",null,"Liabilities - After - With Mgmt. Actions - Intangible assets",null,null,null,null,null,null,null,null,0]
["Sch IIC","Funds Held",null,"Liabilities - After - With Mgmt. Actions - Pension Benefit Surplus",null,null,null,null,null,null,null,null,0]
["Sch IIC","Funds Held",null,"Liabilities - After - With Mgmt. Actions - Equity Derivatives on Type 2 Equities",null,null,null,null,null,null,null,null,0]
["Sch IIC","Funds Held",null,"Liabilities - After - With Mgmt. Actions - Infrastructure",null,null,null,null,null,null,null,null,0]
["Sch IIC","Funds Held",null,"Liabilities - After - With Mgmt. Actions - Derivatives on Infrastructure",null,null,null,null,null,null,null,null,0]
["Sch IIC","Funds Held",null,"Liabilities - After - With Mgmt. Actions - Equity Real Estate 1",null,null,null,null,null,null,null,null,0]
["Sch IIC","Funds Held",null,"Liabilities - After - With Mgmt. Actions - Equity Real Estate 2",null,null,null,null,null,null,null,null,0]
["Sch IIC","Funds Held",null,"Credit Derivatives - Up - Before - Long-Rating 0",null,null,null,null,null,null,null,null,0]
["Sch IIC","Funds Held",null,"Credit Derivatives - Up - Before - Long-Rating 1",null,null,null,null,null,null,null,null,0]
["Sch IIC","Funds Held",null,"Credit Derivatives - Up - Before - Long-Rating 2",null,null,null,null,null,null,null,null,0]
["Sch IIC","Funds Held",null,"Credit Derivatives - Up - Before - Long-Rating 3",null,null,null,null,null,null,null,null,0]
["Sch IIC","Funds Held",null,"Credit Derivatives - Up - Before - Long-Rating 4",null,null,null,null,null,null,null,null,0]
["Sch IIC","Funds Held",null,"Credit Derivatives - Up - Before - Long-Rating 5",null,null,null,null,null,null,null,null,0]
["Sch IIC","Funds Held",null,"Credit Derivatives - Up - Before - Long-Rating 6",null,null,null,null,null,null,null,null,0]
["Sch IIC","Funds Held",null,"Credit Derivatives - Up - Before - Long-Rating 7",null,null,null,null,null,null,null,null,0]
["Sch IIC","Funds Held",null,"Credit Derivatives - Up - Before - Long-Rating 8",null,null,null,null,null,null,null,null,0]
["Sch IIC","Funds Held",null,"Credit Derivatives - Up - After - Long- Rating 0",null,null,null,null,null,null,null,null,0]
["Sch IIC","Funds Held",null,"Credit Derivatives - Up - After - Long- Rating 1",null,null,null,null,null,null,null,null,0]
["Sch IIC","Funds Held",null,"Credit Derivatives - Up - After - Long- Rating 2",null,null,null,null,null,null,null,null,0]
["Sch IIC","Funds Held",null,"Credit Derivatives - Up - After - Long- Rating 3",null,null,null,null,null,null,null,null,0]
["Sch IIC","Funds Held",null,"Credit Derivatives - Up - After - Long- Rating 4",null,null,null,null,null,null,null,null,0]
["Sch IIC","Funds Held",null,"Credit Derivatives - Up - After - Long- Rating 5",null,null,null,null,null,null,null,null,0]
["Sch IIC","Funds Held",null,"Credit Derivatives - Up - After - Long- Rating 6",null,null,null,null,null,null,null,null,0]
["Sch IIC","Funds Held",null,"Credit Derivatives - Up - After - Long- Rating 7",null,null,null,null,null,null,null,null,0]
["Sch IIC","Funds Held",null,"Credit Derivatives - Up - After - Long- Rating 8",null,null,null,null,null,null,null,null,0]
["Sch IIC","Funds Held",null,"Credit Derivatives - Up - Before - Short- Rating 0",null,null,null,null,null,null,null,null,0]
["Sch IIC","Funds Held",null,"Credit Derivatives - Up - Before - Short- Rating 1",null,null,null,null,null,null,null,null,0]
["Sch IIC","Funds Held",null,"Credit Derivatives - Up - Before - Short- Rating 2",null,null,null,null,null,null,null,null,0]
["Sch IIC","Funds Held",null,"Credit Derivatives - Up - Before - Short- Rating 3",null,null,null,null,null,null,null,null,0]
["Sch IIC","Funds Held",null,"Credit Derivatives - Up - Before - Short- Rating 4",null,null,null,null,null,null,null,null,0]
["Sch IIC","Funds Held",null,"Credit Derivatives - Up - Before - Short- Rating 5",null,null,null,null,null,null,null,null,0]
["Sch IIC","Funds Held",null,"Credit Derivatives - Up - Before - Short- Rating 6",null,null,null,null,null,null,null,null,0]
["Sch IIC","Funds Held",null,"Credit Derivatives - Up - Before - Short- Rating 7",null,null,null,null,null,null,null,null,0]
["Sch IIC","Funds Held",null,"Credit Derivatives - Up - Before - Short- Rating 8",null,null,null,null,null,null,null,null,0]
["Sch IIC","Funds Held",null,"Credit Derivatives - Up - After - Short- Rating 0",null,null,null,null,null,null,null,null,0]
["Sch IIC","Funds Held",null,"Credit Derivatives - Up - After - Short- Rating 1",null,null,null,null,null,null,null,null,0]
["Sch IIC","Funds Held",null,"Credit Derivatives - Up - After - Short- Rating 2",null,null,null,null,null,null,null,null,0]
["Sch IIC","Funds Held",null,"Credit Derivatives - Up - After - Short- Rating 3",null,null,null,null,null,null,null,null,0]
["Sch IIC","Funds Held",null,"Credit Derivatives - Up - After - Short- Rating 4",null,null,null,null,null,null,null,null,0]
["Sch IIC","Funds Held",null,"Credit Derivatives - Up - After - Short- Rating 5",null,null,null,null,null,null,null,null,0]
["Sch IIC","Funds Held",null,"Credit Derivatives - Up - After - Short- Rating 6",null,null,null,null,null,null,null,null,0]
["Sch IIC","Funds Held",null,"Credit Derivatives - Up - After - Short- Rating 7",null,null,null,null,null,null,null,null,0]
["Sch IIC","Funds Held",null,"Credit Derivatives - Up - After - Short- Rating 8",null,null,null,null,null,null,null,null,0]
["Sch IIC","Funds Held",null,"Credit Derivatives - Down - Before - Long-Rating 0",null,null,null,null,null,null,null,null,0]
["Sch IIC","Funds Held",null,"Credit Derivatives - Down - Before - Long-Rating 1",null,null,null,null,null,null,null,null,0]
["Sch IIC","Funds Held",null,"Credit Derivatives - Down - Before - Long-Rating 2",null,null,null,null,null,null,null,null,0]
["Sch IIC","Funds Held",null,"Credit Derivatives - Down - Before - Long-Rating 3",null,null,null,null,null,null,null,null,0]
["Sch IIC","Funds Held",null,"Credit Derivatives - Down - Before - Long-Rating 4",null,null,null,null,null,null,null,null,0]
["Sch IIC","Funds Held",null,"Credit Derivatives - Down - Before - Long-Rating 5",null,null,null,null,null,null,null,null,0]
["Sch IIC","Funds Held",null,"Credit Derivatives - Down - Before - Long-Rating 6",null,null,null,null,null,null,null,null,0]
["Sch IIC","Funds Held",null,"Credit Derivatives - Down - Before - Long-Rating 7",null,null,null,null,null,null,null,null,0]
["Sch IIC","Funds Held",null,"Credit Derivatives - Down - Before - Long-Rating 8",null,null,null,null,null,null,null,null,0]
["Sch IIC","Funds Held",null,"Credit Derivatives - Down - After - Long- Rating 0",null,null,null,null,null,null,null,null,0]
["Sch IIC","Funds Held",null,"Credit Derivatives - Down - After - Long- Rating 1",null,null,null,null,null,null,null,null,0]
["Sch IIC","Funds Held",null,"Credit Derivatives - Down - After - Long- Rating 2",null,null,null,null,null,null,null,null,0]
["Sch IIC","Funds Held",null,"Credit Derivatives - Down - After - Long- Rating 3",null,null,null,null,null,null,null,null,0]
["Sch IIC","Funds Held",null,"Credit Derivatives - Down - After - Long- Rating 4",null,null,null,null,null,null,null,null,0]
["Sch IIC","Funds Held",null,"Credit Derivatives - Down - After - Long- Rating 5",null,null,null,null,null,null,null,null,0]
["Sch IIC","Funds Held",null,"Credit Derivatives - Down - After - Long- Rating 6",null,null,null,null,null,null,null,null,0]
["Sch IIC","Funds Held",null,"Credit Derivatives - Down - After - Long- Rating 7",null,null,null,null,null,null,null,null,0]
["Sch IIC","Funds Held",null,"Credit Derivatives - Down - After - Long- Rating 8",null,null,null,null,null,null,null,null,0]
["Sch IIC","Funds Held",null,"Credit Derivatives - Down - Before - Short- Rating 0",null,null,null,null,null,null,null,null,0]
["Sch IIC","Funds Held",null,"Credit Derivatives - Down - Before - Short- Rating 1",null,null,null,null,null,null,null,null,0]
["Sch IIC","Funds Held",null,"Credit Derivatives - Down - Before - Short- Rating 2",null,null,null,null,null,null,null,null,0]
["Sch IIC","Funds Held",null,"Credit Derivatives - Down - Before - Short- Rating 3",null,null,null,null,null,null,null,null,0]
["Sch IIC","Funds Held",null,"Credit Derivatives - Down - Before - Short- Rating 4",null,null,null,null,null,null,null,null,0]
["Sch IIC","Funds Held",null,"Credit Derivatives - Down - Before - Short- Rating 5",null,null,null,null,null,null,null,null,0]
["Sch IIC","Funds Held",null,"Credit Derivatives - Down - Before - Short- Rating 6",null,null,null,null,null,null,null,null,0]
["Sch IIC","Funds Held",null,"Credit Derivatives - Down - Before - Short- Rating 7",null,null,null,null,null,null,null,null,0]
["Sch IIC","Funds Held",null,"Credit Derivatives - Down - Before - Short- Rating 8",null,null,null,null,null,null,null,null,0]
["Sch IIC","Funds Held",null,"Credit Derivatives - Down - After - Short- Rating 0",null,null,null,null,null,null,null,null,0]
["Sch IIC","Funds Held",null,"Credit Derivatives - Down - After - Short- Rating 1",null,null,null,null,null,null,null,null,0]
["Sch IIC","Funds Held",null,"Credit Derivatives - Down - After - Short- Rating 2",null,null,null,null,null,null,null,null,0]
["Sch IIC","Funds Held",null,"Credit Derivatives - Down - After - Short- Rating 3",null,null,null,null,null,null,null,null,0]
["Sch IIC","Funds Held",null,"Credit Derivatives - Down - After - Short- Rating 4",null,null,null,null,null,null,null,null,0]
["Sch IIC","Funds Held",null,"Credit Derivatives - Down - After - Short- Rating 5",null,null,null,null,null,null,null,null,0]
["Sch IIC","Funds Held",null,"Credit Derivatives - Down - After - Short- Rating 6",null,null,null,null,null,null,null,null,0]
["Sch IIC","Funds Held",null,"Credit Derivatives - Down - After - Short- Rating 7",null,null,null,null,null,null,null,null,0]
["Sch IIC","Funds Held",null,"Credit Derivatives - Down - After - Short- Rating 8",null,null,null,null,null,null,null,null,0]
["Sch IIC","Funds Held",null,"Counterparty Default Risk - MV of Derivatives - MV Positive - Rating 0",null,null,null,null,null,null,null,null,0]
["Sch IIC","Funds Held",null,"Counterparty Default Risk - MV of Derivatives - MV Positive - Rating 1",null,null,null,null,null,null,null,null,0]
["Sch IIC","Funds Held",null,"Counterparty Default Risk - MV of Derivatives - MV Positive - Rating 2",null,null,null,null,null,null,null,null,0]
["Sch IIC","Funds Held",null,"Counterparty Default Risk - MV of Derivatives - MV Positive - Rating 3",null,null,null,null,null,null,null,null,0]
["Sch IIC","Funds Held",null,"Counterparty Default Risk - MV of Derivatives - MV Positive - Rating 4",null,null,null,null,null,null,null,null,0]
["Sch IIC","Funds Held",null,"Counterparty Default Risk - MV of Derivatives - MV Positive - Rating 5",null,null,null,null,null,null,null,null,0]
["Sch IIC","Funds Held",null,"Counterparty Default Risk - MV of Derivatives - MV Positive - Rating 6",null,null,null,null,null,null,null,null,0]
["Sch IIC","Funds Held",null,"Counterparty Default Risk - MV of Derivatives - MV Positive - Rating 7",null,null,null,null,null,null,null,null,0]
["Sch IIC","Funds Held",null,"Counterparty Default Risk - MV of Derivatives - MV Positive - Rating 8",null,null,null,null,null,null,null,null,0]
["Sch IIC","Funds Held",null,"Counterparty Default Risk - MV of Derivatives - MV Negative - Rating 0",null,null,null,null,null,null,null,null,0]
["Sch IIC","Funds Held",null,"Counterparty Default Risk - MV of Derivatives - MV Negative - Rating 1",null,null,null,null,null,null,null,null,0]
["Sch IIC","Funds Held",null,"Counterparty Default Risk - MV of Derivatives - MV Negative - Rating 2",null,null,null,null,null,null,null,null,0]
["Sch IIC","Funds Held",null,"Counterparty Default Risk - MV of Derivatives - MV Negative - Rating 3",null,null,null,null,null,null,null,null,0]
["Sch IIC","Funds Held",null,"Counterparty Default Risk - MV of Derivatives - MV Negative - Rating 4",null,null,null,null,null,null,null,null,0]
["Sch IIC","Funds Held",null,"Counterparty Default Risk - MV of Derivatives - MV Negative - Rating 5",null,null,null,null,null,null,null,null,0]
["Sch IIC","Funds Held",null,"Counterparty Default Risk - MV of Derivatives - MV Negative - Rating 6",null,null,null,null,null,null,null,null,0]
["Sch IIC","Funds Held",null,"Counterparty Default Risk - MV of Derivatives - MV Negative - Rating 7",null,null,null,null,null,null,null,null,0]
["Sch IIC","Funds Held",null,"Counterparty Default Risk - MV of Derivatives - MV Negative - Rating 8",null,null,null,null,null,null,null,null,0]
["Sch IIC","Funds Held",null,"Counterparty Default Risk - MV of Collateral - Rating 0",null,null,null,null,null,null,null,null,0]
["Sch IIC","Funds Held",null,"Counterparty Default Risk - MV of Collateral - Rating 1",null,null,null,null,null,null,null,null,0]
["Sch IIC","Funds Held",null,"Counterparty Default Risk - MV of Collateral - Rating 2",null,null,null,null,null,null,null,null,0]
["Sch IIC","Funds Held",null,"Counterparty Default Risk - MV of Collateral - Rating 3",null,null,null,null,null,null,null,null,0]
["Sch IIC","Funds Held",null,"Counterparty Default Risk - MV of Collateral - Rating 4",null,null,null,null,null,null,null,null,0]
["Sch IIC","Funds Held",null,"Counterparty Default Risk - MV of Collateral - Rating 5",null,null,null,null,null,null,null,null,0]
["Sch IIC","Funds Held",null,"Counterparty Default Risk - MV of Collateral - Rating 6",null,null,null,null,null,null,null,null,0]
["Sch IIC","Funds Held",null,"Counterparty Default Risk - MV of Collateral - Rating 7",null,null,null,null,null,null,null,null,0]
["Sch IIC","Funds Held",null,"Counterparty Default Risk - MV of Collateral - Rating 8",null,null,null,null,null,null,null,null,0]
["Sch IIC","Funds Held",null,"Cash and Cash Equivalents",null,null,null,null,null,null,null,null,0]
["Sch IIC","Funds Held",null,"NAIC Rating Corp & Sov. Bond - Class 1",null,null,null,null,null,null,null,null,0]
["Sch IIC","Funds Held",null,"NAIC Rating Corp & Sov. Bond - Class 2",null,null,null,null,null,null,null,null,0]
["Sch IIC","Funds Held",null,"NAIC Rating Corp & Sov. Bond - Class 3",null,null,null,null,null,null,null,null,0]
["Sch IIC","Funds Held",null,"NAIC Rating Corp & Sov. Bond - Class 4",null,null,null,null,null,null,null,null,0]
["Sch IIC","Funds Held",null,"NAIC Rating Corp & Sov. Bond - Class 5",null,null,null,null,null,null,null,null,0]
["Sch IIC","Funds Held",null,"NAIC Rating Corp & Sov. Bond - Class 6",null,null,null,null,null,null,null,null,0]
["Sch IIC","Funds Held",null,"NAIC Rating Corp & Sov. Bond - Total",null,null,null,null,null,null,null,null,0]
["Sch IIC","Funds Held",null,"NAIC Rating Resid. MBS - Class 1",null,null,null,null,null,null,null,null,0]
["Sch IIC","Funds Held",null,"NAIC Rating Resid. MBS - Class 2",null,null,null,null,null,null,null,null,0]
["Sch IIC","Funds Held",null,"NAIC Rating Resid. MBS - Class 3",null,null,null,null,null,null,null,null,0]
["Sch IIC","Funds Held",null,"NAIC Rating Resid. MBS - Class 4",null,null,null,null,null,null,null,null,0]
["Sch IIC","Funds Held",null,"NAIC Rating Resid. MBS - Class 5",null,null,null,null,null,null,null,null,0]
["Sch IIC","Funds Held",null,"NAIC Rating Resid. MBS - Class 6",null,null,null,null,null,null,null,null,0]
["Sch IIC","Funds Held",null,"NAIC Rating Resid. MBS - Total",null,null,null,null,null,null,null,null,0]
["Sch IIC","Funds Held",null,"NAIC Rating Comm. MBS - Class 1",null,null,null,null,null,null,null,null,0]
["Sch IIC","Funds Held",null,"NAIC Rating Comm. MBS - Class 2",null,null,null,null,null,null,null,null,0]
["Sch IIC","Funds Held",null,"NAIC Rating Comm. MBS - Class 3",null,null,null,null,null,null,null,null,0]
["Sch IIC","Funds Held",null,"NAIC Rating Comm. MBS - Class 4",null,null,null,null,null,null,null,null,0]
["Sch IIC","Funds Held",null,"NAIC Rating Comm. MBS - Class 5",null,null,null,null,null,null,null,null,0]
["Sch IIC","Funds Held",null,"NAIC Rating Comm. MBS - Class 6",null,null,null,null,null,null,null,null,0]
["Sch IIC","Funds Held",null,"NAIC Rating Comm. MBS - Total",null,null,null,null,null,null,null,null,0]
["Sch IIC","Funds Held",null,"NAIC Rating Bond Mutual - Class 1",null,null,null,null,null,null,null,null,0]
["Sch IIC","Funds Held",null,"NAIC Rating Bond Mutual - Class 2",null,null,null,null,null,null,null,null,0]
["Sch IIC","Funds Held",null,"NAIC Rating Bond Mutual - Class 3",null,null,null,null,null,null,null,null,0]
["Sch IIC","Funds Held",null,"NAIC Rating Bond Mutual - Class 4",null,null,null,null,null,null,null,null,0]
["Sch IIC","Funds Held",null,"NAIC Rating Bond Mutual - Class 5",null,null,null,null,null,null,null,null,0]
["Sch IIC","Funds Held",null,"NAIC Rating Bond Mutual - Class 6",null,null,null,null,null,null,null,null,0]
["Sch IIC","Funds Held",null,"NAIC Rating Bond Mutual - Total",null,null,null,null,null,null,null,null,0]
["Sch IIC","Funds Held",null,"NAIC Rating Mort. Loan - Class 1",null,null,null,null,null,null,null,null,0]
["Sch IIC","Funds Held",null,"NAIC Rating Mort. Loan - Class 2",null,null,null,null,null,null,null,null,0]
["Sch IIC","Funds Held",null,"NAIC Rating Mort. Loan - Class 3",null,null,null,null,null,null,null,null,0]
["Sch IIC","Funds Held",null,"NAIC Rating Mort. Loan - Class 4",null,null,null,null,null,null,null,null,0]
["Sch IIC","Funds Held",null,"NAIC Rating Mort. Loan - Class 5",null,null,null,null,null,null,null,null,0]
["Sch IIC","Funds Held",null,"NAIC Rating Mort. Loan - Class 6",null,null,null,null,null,null,null,null,0]
["Sch IIC","Funds Held",null,"NAIC Rating Mort. Loan - Total",null,null,null,null,null,null,null,null,0]
["Sch IIC","Funds Held",null,"NAIC Rating Pref. Stock - Class 1",null,null,null,null,null,null,null,null,0]
["Sch IIC","Funds Held",null,"NAIC Rating Pref. Stock - Class 2",null,null,null,null,null,null,null,null,0]
["Sch IIC","Funds Held",null,"NAIC Rating Pref. Stock - Class 3",null,null,null,null,null,null,null,null,0]
["Sch IIC","Funds Held",null,"NAIC Rating Pref. Stock - Class 4",null,null,null,null,null,null,null,null,0]
["Sch IIC","Funds Held",null,"NAIC Rating Pref. Stock - Class 5",null,null,null,null,null,null,null,null,0]
["Sch IIC","Funds Held",null,"NAIC Rating Pref. Stock - Class 6",null,null,null,null,null,null,null,null,0]
["Sch IIC","Funds Held",null,"NAIC Rating Pref. Stock - Total",null,null,null,null,null,null,null,null,0]
["Sch IIC","Funds Held",null,"NAIC Rating Other Assets - Class 1",null,null,null,null,null,null,null,null,0]
["Sch IIC","Funds Held",null,"NAIC Rating Other Assets - Class 2",null,null,null,null,null,null,null,null,0]
["Sch IIC","Funds Held",null,"NAIC Rating Other Assets - Class 3",null,null,null,null,null,null,null,null,0]
["Sch IIC","Funds Held",null,"NAIC Rating Other Assets - Class 4",null,null,null,null,null,null,null,null,0]
["Sch IIC","Funds Held",null,"NAIC Rating Other Assets - Class 5",null,null,null,null,null,null,null,null,0]
["Sch IIC","Funds Held",null,"NAIC Rating Other Assets - Class 6",null,null,null,null,null,null,null,null,0]
["Sch IIC","Funds Held",null,"NAIC Rating Other Assets - Total",null,null,null,null,null,null,null,null,0]
[]
["Sch IID","Segregated Acc",null,"Corp. Bonds - BSCR Rate 0",null,null,null,null,null,null,null,null,0]
["Sch IID","Segregated Acc",null,"Corp. Bonds - BSCR Rate 1",null,null,null,null,null,null,null,null,0]
["Sch IID","Segregated Acc",null,"Corp. Bonds - BSCR Rate 2",null,null,null,null,null,null,null,null,0]
["Sch IID","Segregated Acc",null,"Corp. Bonds - BSCR Rate 3",null,null,null,null,null,null,null,null,0]
["Sch IID","Segregated Acc",null,"Corp. Bonds - BSCR Rate 4",null,null,null,null,null,null,null,null,0]
["Sch IID","Segregated Acc",null,"Corp. Bonds - BSCR Rate 5",null,null,null,null,null,null,null,null,0]
["Sch IID","Segregated Acc",null,"Corp. Bonds - BSCR Rate 6",null,null,null,null,null,null,null,null,0]
["Sch IID","Segregated Acc",null,"Corp. Bonds - BSCR Rate 7",null,null,null,null,null,null,null,null,0]
["Sch IID","Segregated Acc",null,"Corp. Bonds - BSCR Rate 8",null,null,null,null,null,null,null,null,0]
["Sch IID","Segregated Acc",null,"Liabilities Supported by Corp. Bonds - BSCR Rate 0",null,null,null,null,null,null,null,null,0]
["Sch IID","Segregated Acc",null,"Liabilities Supported by Corp. Bonds - BSCR Rate 1",null,null,null,null,null,null,null,null,0]
["Sch IID","Segregated Acc",null,"Liabilities Supported by Corp. Bonds - BSCR Rate 2",null,null,null,null,null,null,null,null,0]
["Sch IID","Segregated Acc",null,"Liabilities Supported by Corp. Bonds - BSCR Rate 3",null,null,null,null,null,null,null,null,0]
["Sch IID","Segregated Acc",null,"Liabilities Supported by Corp. Bonds - BSCR Rate 4",null,null,null,null,null,null,null,null,0]
["Sch IID","Segregated Acc",null,"Liabilities Supported by Corp. Bonds - BSCR Rate 5",null,null,null,null,null,null,null,null,0]
["Sch IID","Segregated Acc",null,"Liabilities Supported by Corp. Bonds - BSCR Rate 6",null,null,null,null,null,null,null,null,0]
["Sch IID","Segregated Acc",null,"Liabilities Supported by Corp. Bonds - BSCR Rate 7",null,null,null,null,null,null,null,null,0]
["Sch IID","Segregated Acc",null,"Liabilities Supported by Corp. Bonds - BSCR Rate 8",null,null,null,null,null,null,null,null,0]
["Sch IID","Segregated Acc",null,"Residential MBS - BSCR Rate 1",null,null,null,null,null,null,null,null,0]
["Sch IID","Segregated Acc",null,"Residential MBS - BSCR Rate 2",null,null,null,null,null,null,null,null,0]
["Sch IID","Segregated Acc",null,"Residential MBS - BSCR Rate 3",null,null,null,null,null,null,null,null,0]
["Sch IID","Segregated Acc",null,"Residential MBS - BSCR Rate 4",null,null,null,null,null,null,null,null,0]
["Sch IID","Segregated Acc",null,"Residential MBS - BSCR Rate 5",null,null,null,null,null,null,null,null,0]
["Sch IID","Segregated Acc",null,"Residential MBS - BSCR Rate 6",null,null,null,null,null,null,null,null,0]
["Sch IID","Segregated Acc",null,"Residential MBS - BSCR Rate 7",null,null,null,null,null,null,null,null,0]
["Sch IID","Segregated Acc",null,"Residential MBS - BSCR Rate 8",null,null,null,null,null,null,null,null,0]
["Sch IID","Segregated Acc",null,"Liabilities Supported by Residential MBS - BSCR Rate 1",null,null,null,null,null,null,null,null,0]
["Sch IID","Segregated Acc",null,"Liabilities Supported by Residential MBS - BSCR Rate 2",null,null,null,null,null,null,null,null,0]
["Sch IID","Segregated Acc",null,"Liabilities Supported by Residential MBS - BSCR Rate 3",null,null,null,null,null,null,null,null,0]
["Sch IID","Segregated Acc",null,"Liabilities Supported by Residential MBS - BSCR Rate 4",null,null,null,null,null,null,null,null,0]
["Sch IID","Segregated Acc",null,"Liabilities Supported by Residential MBS - BSCR Rate 5",null,null,null,null,null,null,null,null,0]
["Sch IID","Segregated Acc",null,"Liabilities Supported by Residential MBS - BSCR Rate 6",null,null,null,null,null,null,null,null,0]
["Sch IID","Segregated Acc",null,"Liabilities Supported by Residential MBS - BSCR Rate 7",null,null,null,null,null,null,null,null,0]
["Sch IID","Segregated Acc",null,"Liabilities Supported by Residential MBS - BSCR Rate 8",null,null,null,null,null,null,null,null,0]
["Sch IID","Segregated Acc",null,"Commercial MBS - BSCR Rate 1",null,null,null,null,null,null,null,null,0]
["Sch IID","Segregated Acc",null,"Commercial MBS - BSCR Rate 2",null,null,null,null,null,null,null,null,0]
["Sch IID","Segregated Acc",null,"Commercial MBS - BSCR Rate 3",null,null,null,null,null,null,null,null,0]
["Sch IID","Segregated Acc",null,"Commercial MBS - BSCR Rate 4",null,null,null,null,null,null,null,null,0]
["Sch IID","Segregated Acc",null,"Commercial MBS - BSCR Rate 5",null,null,null,null,null,null,null,null,0]
["Sch IID","Segregated Acc",null,"Commercial MBS - BSCR Rate 6",null,null,null,null,null,null,null,null,0]
["Sch IID","Segregated Acc",null,"Commercial MBS - BSCR Rate 7",null,null,null,null,null,null,null,null,0]
["Sch IID","Segregated Acc",null,"Commercial MBS - BSCR Rate 8",null,null,null,null,null,null,null,null,0]
["Sch IID","Segregated Acc",null,"Liabilities Supported by Commercial MBS - BSCR Rate 1",null,null,null,null,null,null,null,null,0]
["Sch IID","Segregated Acc",null,"Liabilities Supported by Commercial MBS - BSCR Rate 2",null,null,null,null,null,null,null,null,0]
["Sch IID","Segregated Acc",null,"Liabilities Supported by Commercial MBS - BSCR Rate 3",null,null,null,null,null,null,null,null,0]
["Sch IID","Segregated Acc",null,"Liabilities Supported by Commercial MBS - BSCR Rate 4",null,null,null,null,null,null,null,null,0]
["Sch IID","Segregated Acc",null,"Liabilities Supported by Commercial MBS - BSCR Rate 5",null,null,null,null,null,null,null,null,0]
["Sch IID","Segregated Acc",null,"Liabilities Supported by Commercial MBS - BSCR Rate 6",null,null,null,null,null,null,null,null,0]
["Sch IID","Segregated Acc",null,"Liabilities Supported by Commercial MBS - BSCR Rate 7",null,null,null,null,null,null,null,null,0]
["Sch IID","Segregated Acc",null,"Liabilities Supported by Commercial MBS - BSCR Rate 8",null,null,null,null,null,null,null,null,0]
["Sch IID","Segregated Acc",null,"Bonds Mutual Fund - BSCR Rate 0",null,null,null,null,null,null,null,null,0]
["Sch IID","Segregated Acc",null,"Bonds Mutual Fund - BSCR Rate 1",null,null,null,null,null,null,null,null,0]
["Sch IID","Segregated Acc",null,"Bonds Mutual Fund - BSCR Rate 2",null,null,null,null,null,null,null,null,0]
["Sch IID","Segregated Acc",null,"Bonds Mutual Fund - BSCR Rate 3",null,null,null,null,null,null,null,null,0]
["Sch IID","Segregated Acc",null,"Bonds Mutual Fund - BSCR Rate 4",null,null,null,null,null,null,null,null,0]
["Sch IID","Segregated Acc",null,"Bonds Mutual Fund - BSCR Rate 5",null,null,null,null,null,null,null,null,0]
["Sch IID","Segregated Acc",null,"Bonds Mutual Fund - BSCR Rate 6",null,null,null,null,null,null,null,null,0]
["Sch IID","Segregated Acc",null,"Bonds Mutual Fund - BSCR Rate 7",null,null,null,null,null,null,null,null,0]
["Sch IID","Segregated Acc",null,"Bonds Mutual Fund - BSCR Rate 8",null,null,null,null,null,null,null,null,0]
["Sch IID","Segregated Acc",null,"Liabilities Supported by Bonds Mutual Fund - BSCR Rate 0",null,null,null,null,null,null,null,null,0]
["Sch IID","Segregated Acc",null,"Liabilities Supported by Bonds Mutual Fund - BSCR Rate 1",null,null,null,null,null,null,null,null,0]
["Sch IID","Segregated Acc",null,"Liabilities Supported by Bonds Mutual Fund - BSCR Rate 2",null,null,null,null,null,null,null,null,0]
["Sch IID","Segregated Acc",null,"Liabilities Supported by Bonds Mutual Fund - BSCR Rate 3",null,null,null,null,null,null,null,null,0]
["Sch IID","Segregated Acc",null,"Liabilities Supported by Bonds Mutual Fund - BSCR Rate 4",null,null,null,null,null,null,null,null,0]
["Sch IID","Segregated Acc",null,"Liabilities Supported by Bonds Mutual Fund - BSCR Rate 5",null,null,null,null,null,null,null,null,0]
["Sch IID","Segregated Acc",null,"Liabilities Supported by Bonds Mutual Fund - BSCR Rate 6",null,null,null,null,null,null,null,null,0]
["Sch IID","Segregated Acc",null,"Liabilities Supported by Bonds Mutual Fund - BSCR Rate 7",null,null,null,null,null,null,null,null,0]
["Sch IID","Segregated Acc",null,"Liabilities Supported by Bonds Mutual Fund - BSCR Rate 8",null,null,null,null,null,null,null,null,0]
["Sch IID","Segregated Acc",null,"Mortgage Loans - Insured",null,null,null,null,null,null,null,null,0]
["Sch IID","Segregated Acc",null,"Mortgage Loans - Other Commercial",null,null,null,null,null,null,null,null,0]
["Sch IID","Segregated Acc",null,"Mortgage Loans - Other Residential",null,null,null,null,null,null,null,null,0]
["Sch IID","Segregated Acc",null,"Mortgage Loans - Not Good Stand.",null,null,null,null,null,null,null,null,0]
["Sch IID","Segregated Acc",null,"Liabilities Supported by Mortgage Loans - Insured",null,null,null,null,null,null,null,null,0]
["Sch IID","Segregated Acc",null,"Liabilities Supported by Mortgage Loans - Other Commercial",null,null,null,null,null,null,null,null,0]
["Sch IID","Segregated Acc",null,"Liabilities Supported by Mortgage Loans - Other Residential",null,null,null,null,null,null,null,null,0]
["Sch IID","Segregated Acc",null,"Liabilities Supported by Mortgage Loans - Not Good Stand.",null,null,null,null,null,null,null,null,0]
["Sch IID","Segregated Acc",null,"Long Positions - Before - Strategic Holdings - Listed",null,null,null,null,null,null,null,null,0]
["Sch IID","Segregated Acc",null,"Long Positions - Before - Duration Based",null,null,null,null,null,null,null,null,0]
["Sch IID","Segregated Acc",null,"Long Positions - Before - Listed Equity Securities in Developed Markets",null,null,null,null,null,null,null,null,0]
["Sch IID","Segregated Acc",null,"Long Positions - Before - Preferred Stocks, BSCR Rating 1",null,null,null,null,null,null,null,null,0]
["Sch IID","Segregated Acc",null,"Long Positions - Before - Preferred Stocks, BSCR Rating 2",null,null,null,null,null,null,null,null,0]
["Sch IID","Segregated Acc",null,"Long Positions - Before - Preferred Stocks, BSCR Rating 3",null,null,null,null,null,null,null,null,0]
["Sch IID","Segregated Acc",null,"Long Positions - Before - Preferred Stocks, BSCR Rating 4",null,null,null,null,null,null,null,null,0]
["Sch IID","Segregated Acc",null,"Long Positions - Before - Preferred Stocks, BSCR Rating 5",null,null,null,null,null,null,null,null,0]
["Sch IID","Segregated Acc",null,"Long Positions - Before - Preferred Stocks, BSCR Rating 6",null,null,null,null,null,null,null,null,0]
["Sch IID","Segregated Acc",null,"Long Positions - Before - Preferred Stocks, BSCR Rating 7",null,null,null,null,null,null,null,null,0]
["Sch IID","Segregated Acc",null,"Long Positions - Before - Preferred Stocks, BSCR Rating 8",null,null,null,null,null,null,null,null,0]
["Sch IID","Segregated Acc",null,"Long Positions - Before - Equity Derivatives on Type 1 Equities",null,null,null,null,null,null,null,null,0]
["Sch IID","Segregated Acc",null,"Long Positions - Before - Strategic Holdings - Unlisted",null,null,null,null,null,null,null,null,0]
["Sch IID","Segregated Acc",null,"Long Positions - Before - Other Equities",null,null,null,null,null,null,null,null,0]
["Sch IID","Segregated Acc",null,"Long Positions - Before - Letters of Credit",null,null,null,null,null,null,null,null,0]
["Sch IID","Segregated Acc",null,"Long Positions - Before - Intangible assets",null,null,null,null,null,null,null,null,0]
["Sch IID","Segregated Acc",null,"Long Positions - Before - Pension Benefit Surplus",null,null,null,null,null,null,null,null,0]
["Sch IID","Segregated Acc",null,"Long Positions - Before - Equity Derivatives on Type 2 Equities",null,null,null,null,null,null,null,null,0]
["Sch IID","Segregated Acc",null,"Long Positions - Before - Infrastructure",null,null,null,null,null,null,null,null,0]
["Sch IID","Segregated Acc",null,"Long Positions - Before - Derivatives on Infrastructure",null,null,null,null,null,null,null,null,0]
["Sch IID","Segregated Acc",null,"Long Positions - Before - Equity Real Estate 1",null,null,null,null,null,null,null,null,0]
["Sch IID","Segregated Acc",null,"Long Positions - Before - Equity Real Estate 2",null,null,null,null,null,null,null,null,0]
["Sch IID","Segregated Acc",null,"Long Positions - After - Strategic Holdings - Listed",null,null,null,null,null,null,null,null,0]
["Sch IID","Segregated Acc",null,"Long Positions - After - Duration Based",null,null,null,null,null,null,null,null,0]
["Sch IID","Segregated Acc",null,"Long Positions - After - Listed Equity Securities in Developed Markets",null,null,null,null,null,null,null,null,0]
["Sch IID","Segregated Acc",null,"Long Positions - After - Preferred Stocks, BSCR Rating 1",null,null,null,null,null,null,null,null,0]
["Sch IID","Segregated Acc",null,"Long Positions - After - Preferred Stocks, BSCR Rating 2",null,null,null,null,null,null,null,null,0]
["Sch IID","Segregated Acc",null,"Long Positions - After - Preferred Stocks, BSCR Rating 3",null,null,null,null,null,null,null,null,0]
["Sch IID","Segregated Acc",null,"Long Positions - After - Preferred Stocks, BSCR Rating 4",null,null,null,null,null,null,null,null,0]
["Sch IID","Segregated Acc",null,"Long Positions - After - Preferred Stocks, BSCR Rating 5",null,null,null,null,null,null,null,null,0]
["Sch IID","Segregated Acc",null,"Long Positions - After - Preferred Stocks, BSCR Rating 6",null,null,null,null,null,null,null,null,0]
["Sch IID","Segregated Acc",null,"Long Positions - After - Preferred Stocks, BSCR Rating 7",null,null,null,null,null,null,null,null,0]
["Sch IID","Segregated Acc",null,"Long Positions - After - Preferred Stocks, BSCR Rating 8",null,null,null,null,null,null,null,null,0]
["Sch IID","Segregated Acc",null,"Long Positions - After - Equity Derivatives on Type 1 Equities",null,null,null,null,null,null,null,null,0]
["Sch IID","Segregated Acc",null,"Long Positions - After - Strategic Holdings - Unlisted",null,null,null,null,null,null,null,null,0]
["Sch IID","Segregated Acc",null,"Long Positions - After - Other Equities",null,null,null,null,null,null,null,null,0]
["Sch IID","Segregated Acc",null,"Long Positions - After - Letters of Credit",null,null,null,null,null,null,null,null,0]
["Sch IID","Segregated Acc",null,"Long Positions - After - Intangible assets",null,null,null,null,null,null,null,null,0]
["Sch IID","Segregated Acc",null,"Long Positions - After - Pension Benefit Surplus",null,null,null,null,null,null,null,null,0]
["Sch IID","Segregated Acc",null,"Long Positions - After - Equity Derivatives on Type 2 Equities",null,null,null,null,null,null,null,null,0]
["Sch IID","Segregated Acc",null,"Long Positions - After - Infrastructure",null,null,null,null,null,null,null,null,0]
["Sch IID","Segregated Acc",null,"Long Positions - After - Derivatives on Infrastructure",null,null,null,null,null,null,null,null,0]
["Sch IID","Segregated Acc",null,"Long Positions - After - Equity Real Estate 1",null,null,null,null,null,null,null,null,0]
["Sch IID","Segregated Acc",null,"Long Positions - After - Equity Real Estate 2",null,null,null,null,null,null,null,null,0]
["Sch IID","Segregated Acc",null,"Short - Before - Qualified Assets - Strategic Holdings - Listed",null,null,null,null,null,null,null,null,0]
["Sch IID","Segregated Acc",null,"Short - Before - Qualified Assets - Duration Based",null,null,null,null,null,null,null,null,0]
["Sch IID","Segregated Acc",null,"Short - Before - Qualified Assets - Listed Equity Securities in Developed Markets",null,null,null,null,null,null,null,null,0]
["Sch IID","Segregated Acc",null,"Short - Before - Qualified Assets - Preferred Stocks, BSCR Rating 1",null,null,null,null,null,null,null,null,0]
["Sch IID","Segregated Acc",null,"Short - Before - Qualified Assets - Preferred Stocks, BSCR Rating 2",null,null,null,null,null,null,null,null,0]
["Sch IID","Segregated Acc",null,"Short - Before - Qualified Assets - Preferred Stocks, BSCR Rating 3",null,null,null,null,null,null,null,null,0]
["Sch IID","Segregated Acc",null,"Short - Before - Qualified Assets - Preferred Stocks, BSCR Rating 4",null,null,null,null,null,null,null,null,0]
["Sch IID","Segregated Acc",null,"Short - Before - Qualified Assets - Preferred Stocks, BSCR Rating 5",null,null,null,null,null,null,null,null,0]
["Sch IID","Segregated Acc",null,"Short - Before - Qualified Assets - Preferred Stocks, BSCR Rating 6",null,null,null,null,null,null,null,null,0]
["Sch IID","Segregated Acc",null,"Short - Before - Qualified Assets - Preferred Stocks, BSCR Rating 7",null,null,null,null,null,null,null,null,0]
["Sch IID","Segregated Acc",null,"Short - Before - Qualified Assets - Preferred Stocks, BSCR Rating 8",null,null,null,null,null,null,null,null,0]
["Sch IID","Segregated Acc",null,"Short - Before - Qualified Assets - Equity Derivatives on Type 1 Equities",null,null,null,null,null,null,null,null,0]
["Sch IID","Segregated Acc",null,"Short - Before - Qualified Assets - Strategic Holdings - Unlisted",null,null,null,null,null,null,null,null,0]
["Sch IID","Segregated Acc",null,"Short - Before - Qualified Assets - Other Equities",null,null,null,null,null,null,null,null,0]
["Sch IID","Segregated Acc",null,"Short - Before - Qualified Assets - Letters of Credit",null,null,null,null,null,null,null,null,0]
["Sch IID","Segregated Acc",null,"Short - Before - Qualified Assets - Intangible assets",null,null,null,null,null,null,null,null,0]
["Sch IID","Segregated Acc",null,"Short - Before - Qualified Assets - Pension Benefit Surplus",null,null,null,null,null,null,null,null,0]
["Sch IID","Segregated Acc",null,"Short - Before - Qualified Assets - Equity Derivatives on Type 2 Equities",null,null,null,null,null,null,null,null,0]
["Sch IID","Segregated Acc",null,"Short - Before - Qualified Assets - Infrastructure",null,null,null,null,null,null,null,null,0]
["Sch IID","Segregated Acc",null,"Short - Before - Qualified Assets - Derivatives on Infrastructure",null,null,null,null,null,null,null,null,0]
["Sch IID","Segregated Acc",null,"Short - Before - Qualified Assets - Equity Real Estate 1",null,null,null,null,null,null,null,null,0]
["Sch IID","Segregated Acc",null,"Short - Before - Qualified Assets - Equity Real Estate 2",null,null,null,null,null,null,null,null,0]
["Sch IID","Segregated Acc",null,"Short - After - Qualified Assets - Strategic Holdings - Listed",null,null,null,null,null,null,null,null,0]
["Sch IID","Segregated Acc",null,"Short - After - Qualified Assets - Duration Based",null,null,null,null,null,null,null,null,0]
["Sch IID","Segregated Acc",null,"Short - After - Qualified Assets - Listed Equity Securities in Developed Markets",null,null,null,null,null,null,null,null,0]
["Sch IID","Segregated Acc",null,"Short - After - Qualified Assets - Preferred Stocks, BSCR Rating 1",null,null,null,null,null,null,null,null,0]
["Sch IID","Segregated Acc",null,"Short - After - Qualified Assets - Preferred Stocks, BSCR Rating 2",null,null,null,null,null,null,null,null,0]
["Sch IID","Segregated Acc",null,"Short - After - Qualified Assets - Preferred Stocks, BSCR Rating 3",null,null,null,null,null,null,null,null,0]
["Sch IID","Segregated Acc",null,"Short - After - Qualified Assets - Preferred Stocks, BSCR Rating 4",null,null,null,null,null,null,null,null,0]
["Sch IID","Segregated Acc",null,"Short - After - Qualified Assets - Preferred Stocks, BSCR Rating 5",null,null,null,null,null,null,null,null,0]
["Sch IID","Segregated Acc",null,"Short - After - Qualified Assets - Preferred Stocks, BSCR Rating 6",null,null,null,null,null,null,null,null,0]
["Sch IID","Segregated Acc",null,"Short - After - Qualified Assets - Preferred Stocks, BSCR Rating 7",null,null,null,null,null,null,null,null,0]
["Sch IID","Segregated Acc",null,"Short - After - Qualified Assets - Preferred Stocks, BSCR Rating 8",null,null,null,null,null,null,null,null,0]
["Sch IID","Segregated Acc",null,"Short - After - Qualified Assets - Equity Derivatives on Type 1 Equities",null,null,null,null,null,null,null,null,0]
["Sch IID","Segregated Acc",null,"Short - After - Qualified Assets - Strategic Holdings - Unlisted",null,null,null,null,null,null,null,null,0]
["Sch IID","Segregated Acc",null,"Short - After - Qualified Assets - Other Equities",null,null,null,null,null,null,null,null,0]
["Sch IID","Segregated Acc",null,"Short - After - Qualified Assets - Letters of Credit",null,null,null,null,null,null,null,null,0]
["Sch IID","Segregated Acc",null,"Short - After - Qualified Assets - Intangible assets",null,null,null,null,null,null,null,null,0]
["Sch IID","Segregated Acc",null,"Short - After - Qualified Assets - Pension Benefit Surplus",null,null,null,null,null,null,null,null,0]
["Sch IID","Segregated Acc",null,"Short - After - Qualified Assets - Equity Derivatives on Type 2 Equities",null,null,null,null,null,null,null,null,0]
["Sch IID","Segregated Acc",null,"Short - After - Qualified Assets - Infrastructure",null,null,null,null,null,null,null,null,0]
["Sch IID","Segregated Acc",null,"Short - After - Qualified Assets - Derivatives on Infrastructure",null,null,null,null,null,null,null,null,0]
["Sch IID","Segregated Acc",null,"Short - After - Qualified Assets - Equity Real Estate 1",null,null,null,null,null,null,null,null,0]
["Sch IID","Segregated Acc",null,"Short - After - Qualified Assets - Equity Real Estate 2",null,null,null,null,null,null,null,null,0]
["Sch IID","Segregated Acc",null,"Short - Before - UnQualified Assets - Strategic Holdings - Listed",null,null,null,null,null,null,null,null,0]
["Sch IID","Segregated Acc",null,"Short - Before - UnQualified Assets - Duration Based",null,null,null,null,null,null,null,null,0]
["Sch IID","Segregated Acc",null,"Short - Before - UnQualified Assets - Listed Equity Securities in Developed Markets",null,null,null,null,null,null,null,null,0]
["Sch IID","Segregated Acc",null,"Short - Before - UnQualified Assets - Preferred Stocks, BSCR Rating 1",null,null,null,null,null,null,null,null,0]
["Sch IID","Segregated Acc",null,"Short - Before - UnQualified Assets - Preferred Stocks, BSCR Rating 2",null,null,null,null,null,null,null,null,0]
["Sch IID","Segregated Acc",null,"Short - Before - UnQualified Assets - Preferred Stocks, BSCR Rating 3",null,null,null,null,null,null,null,null,0]
["Sch IID","Segregated Acc",null,"Short - Before - UnQualified Assets - Preferred Stocks, BSCR Rating 4",null,null,null,null,null,null,null,null,0]
["Sch IID","Segregated Acc",null,"Short - Before - UnQualified Assets - Preferred Stocks, BSCR Rating 5",null,null,null,null,null,null,null,null,0]
["Sch IID","Segregated Acc",null,"Short - Before - UnQualified Assets - Preferred Stocks, BSCR Rating 6",null,null,null,null,null,null,null,null,0]
["Sch IID","Segregated Acc",null,"Short - Before - UnQualified Assets - Preferred Stocks, BSCR Rating 7",null,null,null,null,null,null,null,null,0]
["Sch IID","Segregated Acc",null,"Short - Before - UnQualified Assets - Preferred Stocks, BSCR Rating 8",null,null,null,null,null,null,null,null,0]
["Sch IID","Segregated Acc",null,"Short - Before - UnQualified Assets - Equity Derivatives on Type 1 Equities",null,null,null,null,null,null,null,null,0]
["Sch IID","Segregated Acc",null,"Short - Before - UnQualified Assets - Strategic Holdings - Unlisted",null,null,null,null,null,null,null,null,0]
["Sch IID","Segregated Acc",null,"Short - Before - UnQualified Assets - Other Equities",null,null,null,null,null,null,null,null,0]
["Sch IID","Segregated Acc",null,"Short - Before - UnQualified Assets - Letters of Credit",null,null,null,null,null,null,null,null,0]
["Sch IID","Segregated Acc",null,"Short - Before - UnQualified Assets - Intangible assets",null,null,null,null,null,null,null,null,0]
["Sch IID","Segregated Acc",null,"Short - Before - UnQualified Assets - Pension Benefit Surplus",null,null,null,null,null,null,null,null,0]
["Sch IID","Segregated Acc",null,"Short - Before - UnQualified Assets - Equity Derivatives on Type 2 Equities",null,null,null,null,null,null,null,null,0]
["Sch IID","Segregated Acc",null,"Short - Before - UnQualified Assets - Infrastructure",null,null,null,null,null,null,null,null,0]
["Sch IID","Segregated Acc",null,"Short - Before - UnQualified Assets - Derivatives on Infrastructure",null,null,null,null,null,null,null,null,0]
["Sch IID","Segregated Acc",null,"Short - Before - UnQualified Assets - Equity Real Estate 1",null,null,null,null,null,null,null,null,0]
["Sch IID","Segregated Acc",null,"Short - Before - UnQualified Assets - Equity Real Estate 2",null,null,null,null,null,null,null,null,0]
["Sch IID","Segregated Acc",null,"Short - After - UnQualified Assets - Strategic Holdings - Listed",null,null,null,null,null,null,null,null,0]
["Sch IID","Segregated Acc",null,"Short - After - UnQualified Assets - Duration Based",null,null,null,null,null,null,null,null,0]
["Sch IID","Segregated Acc",null,"Short - After - UnQualified Assets - Listed Equity Securities in Developed Markets",null,null,null,null,null,null,null,null,0]
["Sch IID","Segregated Acc",null,"Short - After - UnQualified Assets - Preferred Stocks, BSCR Rating 1",null,null,null,null,null,null,null,null,0]
["Sch IID","Segregated Acc",null,"Short - After - UnQualified Assets - Preferred Stocks, BSCR Rating 2",null,null,null,null,null,null,null,null,0]
["Sch IID","Segregated Acc",null,"Short - After - UnQualified Assets - Preferred Stocks, BSCR Rating 3",null,null,null,null,null,null,null,null,0]
["Sch IID","Segregated Acc",null,"Short - After - UnQualified Assets - Preferred Stocks, BSCR Rating 4",null,null,null,null,null,null,null,null,0]
["Sch IID","Segregated Acc",null,"Short - After - UnQualified Assets - Preferred Stocks, BSCR Rating 5",null,null,null,null,null,null,null,null,0]
["Sch IID","Segregated Acc",null,"Short - After - UnQualified Assets - Preferred Stocks, BSCR Rating 6",null,null,null,null,null,null,null,null,0]
["Sch IID","Segregated Acc",null,"Short - After - UnQualified Assets - Preferred Stocks, BSCR Rating 7",null,null,null,null,null,null,null,null,0]
["Sch IID","Segregated Acc",null,"Short - After - UnQualified Assets - Preferred Stocks, BSCR Rating 8",null,null,null,null,null,null,null,null,0]
["Sch IID","Segregated Acc",null,"Short - After - UnQualified Assets - Equity Derivatives on Type 1 Equities",null,null,null,null,null,null,null,null,0]
["Sch IID","Segregated Acc",null,"Short - After - UnQualified Assets - Strategic Holdings - Unlisted",null,null,null,null,null,null,null,null,0]
["Sch IID","Segregated Acc",null,"Short - After - UnQualified Assets - Other Equities",null,null,null,null,null,null,null,null,0]
["Sch IID","Segregated Acc",null,"Short - After - UnQualified Assets - Letters of Credit",null,null,null,null,null,null,null,null,0]
["Sch IID","Segregated Acc",null,"Short - After - UnQualified Assets - Intangible assets",null,null,null,null,null,null,null,null,0]
["Sch IID","Segregated Acc",null,"Short - After - UnQualified Assets - Pension Benefit Surplus",null,null,null,null,null,null,null,null,0]
["Sch IID","Segregated Acc",null,"Short - After - UnQualified Assets - Equity Derivatives on Type 2 Equities",null,null,null,null,null,null,null,null,0]
["Sch IID","Segregated Acc",null,"Short - After - UnQualified Assets - Infrastructure",null,null,null,null,null,null,null,null,0]
["Sch IID","Segregated Acc",null,"Short - After - UnQualified Assets - Derivatives on Infrastructure",null,null,null,null,null,null,null,null,0]
["Sch IID","Segregated Acc",null,"Short - After - UnQualified Assets - Equity Real Estate 1",null,null,null,null,null,null,null,null,0]
["Sch IID","Segregated Acc",null,"Short - After - UnQualified Assets - Equity Real Estate 2",null,null,null,null,null,null,null,null,0]
["Sch IID","Segregated Acc",null,"Liabilities - Before - W/O Mgmt. Actions - Strategic Holdings - Listed",null,null,null,null,null,null,null,null,0]
["Sch IID","Segregated Acc",null,"Liabilities - Before - W/O Mgmt. Actions - Duration Based",null,null,null,null,null,null,null,null,0]
["Sch IID","Segregated Acc",null,"Liabilities - Before - W/O Mgmt. Actions - Listed Equity Securities in Developed Markets",null,null,null,null,null,null,null,null,0]
["Sch IID","Segregated Acc",null,"Liabilities - Before - W/O Mgmt. Actions - Preferred Stocks, BSCR Rating 1",null,null,null,null,null,null,null,null,0]
["Sch IID","Segregated Acc",null,"Liabilities - Before - W/O Mgmt. Actions - Preferred Stocks, BSCR Rating 2",null,null,null,null,null,null,null,null,0]
["Sch IID","Segregated Acc",null,"Liabilities - Before - W/O Mgmt. Actions - Preferred Stocks, BSCR Rating 3",null,null,null,null,null,null,null,null,0]
["Sch IID","Segregated Acc",null,"Liabilities - Before - W/O Mgmt. Actions - Preferred Stocks, BSCR Rating 4",null,null,null,null,null,null,null,null,0]
["Sch IID","Segregated Acc",null,"Liabilities - Before - W/O Mgmt. Actions - Preferred Stocks, BSCR Rating 5",null,null,null,null,null,null,null,null,0]
["Sch IID","Segregated Acc",null,"Liabilities - Before - W/O Mgmt. Actions - Preferred Stocks, BSCR Rating 6",null,null,null,null,null,null,null,null,0]
["Sch IID","Segregated Acc",null,"Liabilities - Before - W/O Mgmt. Actions - Preferred Stocks, BSCR Rating 7",null,null,null,null,null,null,null,null,0]
["Sch IID","Segregated Acc",null,"Liabilities - Before - W/O Mgmt. Actions - Preferred Stocks, BSCR Rating 8",null,null,null,null,null,null,null,null,0]
["Sch IID","Segregated Acc",null,"Liabilities - Before - W/O Mgmt. Actions - Equity Derivatives on Type 1 Equities",null,null,null,null,null,null,null,null,0]
["Sch IID","Segregated Acc",null,"Liabilities - Before - W/O Mgmt. Actions - Strategic Holdings - Unlisted",null,null,null,null,null,null,null,null,0]
["Sch IID","Segregated Acc",null,"Liabilities - Before - W/O Mgmt. Actions - Other Equities",null,null,null,null,null,null,null,null,0]
["Sch IID","Segregated Acc",null,"Liabilities - Before - W/O Mgmt. Actions - Letters of Credit",null,null,null,null,null,null,null,null,0]
["Sch IID","Segregated Acc",null,"Liabilities - Before - W/O Mgmt. Actions - Intangible assets",null,null,null,null,null,null,null,null,0]
["Sch IID","Segregated Acc",null,"Liabilities - Before - W/O Mgmt. Actions - Pension Benefit Surplus",null,null,null,null,null,null,null,null,0]
["Sch IID","Segregated Acc",null,"Liabilities - Before - W/O Mgmt. Actions - Equity Derivatives on Type 2 Equities",null,null,null,null,null,null,null,null,0]
["Sch IID","Segregated Acc",null,"Liabilities - Before - W/O Mgmt. Actions - Infrastructure",null,null,null,null,null,null,null,null,0]
["Sch IID","Segregated Acc",null,"Liabilities - Before - W/O Mgmt. Actions - Derivatives on Infrastructure",null,null,null,null,null,null,null,null,0]
["Sch IID","Segregated Acc",null,"Liabilities - Before - W/O Mgmt. Actions - Equity Real Estate 1",null,null,null,null,null,null,null,null,0]
["Sch IID","Segregated Acc",null,"Liabilities - Before - W/O Mgmt. Actions - Equity Real Estate 2",null,null,null,null,null,null,null,null,0]
["Sch IID","Segregated Acc",null,"Liabilities - After - W/O Mgmt. Actions - Strategic Holdings - Listed",null,null,null,null,null,null,null,null,0]
["Sch IID","Segregated Acc",null,"Liabilities - After - W/O Mgmt. Actions - Duration Based",null,null,null,null,null,null,null,null,0]
["Sch IID","Segregated Acc",null,"Liabilities - After - W/O Mgmt. Actions - Listed Equity Securities in Developed Markets",null,null,null,null,null,null,null,null,0]
["Sch IID","Segregated Acc",null,"Liabilities - After - W/O Mgmt. Actions - Preferred Stocks, BSCR Rating 1",null,null,null,null,null,null,null,null,0]
["Sch IID","Segregated Acc",null,"Liabilities - After - W/O Mgmt. Actions - Preferred Stocks, BSCR Rating 2",null,null,null,null,null,null,null,null,0]
["Sch IID","Segregated Acc",null,"Liabilities - After - W/O Mgmt. Actions - Preferred Stocks, BSCR Rating 3",null,null,null,null,null,null,null,null,0]
["Sch IID","Segregated Acc",null,"Liabilities - After - W/O Mgmt. Actions - Preferred Stocks, BSCR Rating 4",null,null,null,null,null,null,null,null,0]
["Sch IID","Segregated Acc",null,"Liabilities - After - W/O Mgmt. Actions - Preferred Stocks, BSCR Rating 5",null,null,null,null,null,null,null,null,0]
["Sch IID","Segregated Acc",null,"Liabilities - After - W/O Mgmt. Actions - Preferred Stocks, BSCR Rating 6",null,null,null,null,null,null,null,null,0]
["Sch IID","Segregated Acc",null,"Liabilities - After - W/O Mgmt. Actions - Preferred Stocks, BSCR Rating 7",null,null,null,null,null,null,null,null,0]
["Sch IID","Segregated Acc",null,"Liabilities - After - W/O Mgmt. Actions - Preferred Stocks, BSCR Rating 8",null,null,null,null,null,null,null,null,0]
["Sch IID","Segregated Acc",null,"Liabilities - After - W/O Mgmt. Actions - Equity Derivatives on Type 1 Equities",null,null,null,null,null,null,null,null,0]
["Sch IID","Segregated Acc",null,"Liabilities - After - W/O Mgmt. Actions - Strategic Holdings - Unlisted",null,null,null,null,null,null,null,null,0]
["Sch IID","Segregated Acc",null,"Liabilities - After - W/O Mgmt. Actions - Other Equities",null,null,null,null,null,null,null,null,0]
["Sch IID","Segregated Acc",null,"Liabilities - After - W/O Mgmt. Actions - Letters of Credit",null,null,null,null,null,null,null,null,0]
["Sch IID","Segregated Acc",null,"Liabilities - After - W/O Mgmt. Actions - Intangible assets",null,null,null,null,null,null,null,null,0]
["Sch IID","Segregated Acc",null,"Liabilities - After - W/O Mgmt. Actions - Pension Benefit Surplus",null,null,null,null,null,null,null,null,0]
["Sch IID","Segregated Acc",null,"Liabilities - After - W/O Mgmt. Actions - Equity Derivatives on Type 2 Equities",null,null,null,null,null,null,null,null,0]
["Sch IID","Segregated Acc",null,"Liabilities - After - W/O Mgmt. Actions - Infrastructure",null,null,null,null,null,null,null,null,0]
["Sch IID","Segregated Acc",null,"Liabilities - After - W/O Mgmt. Actions - Derivatives on Infrastructure",null,null,null,null,null,null,null,null,0]
["Sch IID","Segregated Acc",null,"Liabilities - After - W/O Mgmt. Actions - Equity Real Estate 1",null,null,null,null,null,null,null,null,0]
["Sch IID","Segregated Acc",null,"Liabilities - After - W/O Mgmt. Actions - Equity Real Estate 2",null,null,null,null,null,null,null,null,0]
["Sch IID","Segregated Acc",null,"Liabilities - After - With Mgmt. Actions - Strategic Holdings - Listed",null,null,null,null,null,null,null,null,0]
["Sch IID","Segregated Acc",null,"Liabilities - After - With Mgmt. Actions - Duration Based",null,null,null,null,null,null,null,null,0]
["Sch IID","Segregated Acc",null,"Liabilities - After - With Mgmt. Actions - Listed Equity Securities in Developed Markets",null,null,null,null,null,null,null,null,0]
["Sch IID","Segregated Acc",null,"Liabilities - After - With Mgmt. Actions - Preferred Stocks, BSCR Rating 1",null,null,null,null,null,null,null,null,0]
["Sch IID","Segregated Acc",null,"Liabilities - After - With Mgmt. Actions - Preferred Stocks, BSCR Rating 2",null,null,null,null,null,null,null,null,0]
["Sch IID","Segregated Acc",null,"Liabilities - After - With Mgmt. Actions - Preferred Stocks, BSCR Rating 3",null,null,null,null,null,null,null,null,0]
["Sch IID","Segregated Acc",null,"Liabilities - After - With Mgmt. Actions - Preferred Stocks, BSCR Rating 4",null,null,null,null,null,null,null,null,0]
["Sch IID","Segregated Acc",null,"Liabilities - After - With Mgmt. Actions - Preferred Stocks, BSCR Rating 5",null,null,null,null,null,null,null,null,0]
["Sch IID","Segregated Acc",null,"Liabilities - After - With Mgmt. Actions - Preferred Stocks, BSCR Rating 6",null,null,null,null,null,null,null,null,0]
["Sch IID","Segregated Acc",null,"Liabilities - After - With Mgmt. Actions - Preferred Stocks, BSCR Rating 7",null,null,null,null,null,null,null,null,0]
["Sch IID","Segregated Acc",null,"Liabilities - After - With Mgmt. Actions - Preferred Stocks, BSCR Rating 8",null,null,null,null,null,null,null,null,0]
["Sch IID","Segregated Acc",null,"Liabilities - After - With Mgmt. Actions - Equity Derivatives on Type 1 Equities",null,null,null,null,null,null,null,null,0]
["Sch IID","Segregated Acc",null,"Liabilities - After - With Mgmt. Actions - Strategic Holdings - Unlisted",null,null,null,null,null,null,null,null,0]
["Sch IID","Segregated Acc",null,"Liabilities - After - With Mgmt. Actions - Other Equities",null,null,null,null,null,null,null,null,0]
["Sch IID","Segregated Acc",null,"Liabilities - After - With Mgmt. Actions - Letters of Credit",null,null,null,null,null,null,null,null,0]
["Sch IID","Segregated Acc",null,"Liabilities - After - With Mgmt. Actions - Intangible assets",null,null,null,null,null,null,null,null,0]
["Sch IID","Segregated Acc",null,"Liabilities - After - With Mgmt. Actions - Pension Benefit Surplus",null,null,null,null,null,null,null,null,0]
["Sch IID","Segregated Acc",null,"Liabilities - After - With Mgmt. Actions - Equity Derivatives on Type 2 Equities",null,null,null,null,null,null,null,null,0]
["Sch IID","Segregated Acc",null,"Liabilities - After - With Mgmt. Actions - Infrastructure",null,null,null,null,null,null,null,null,0]
["Sch IID","Segregated Acc",null,"Liabilities - After - With Mgmt. Actions - Derivatives on Infrastructure",null,null,null,null,null,null,null,null,0]
["Sch IID","Segregated Acc",null,"Liabilities - After - With Mgmt. Actions - Equity Real Estate 1",null,null,null,null,null,null,null,null,0]
["Sch IID","Segregated Acc",null,"Liabilities - After - With Mgmt. Actions - Equity Real Estate 2",null,null,null,null,null,null,null,null,0]
["Sch IID","Segregated Acc",null,"Credit Derivatives - Up - Before - Long-Rating 0",null,null,null,null,null,null,null,null,0]
["Sch IID","Segregated Acc",null,"Credit Derivatives - Up - Before - Long-Rating 1",null,null,null,null,null,null,null,null,0]
["Sch IID","Segregated Acc",null,"Credit Derivatives - Up - Before - Long-Rating 2",null,null,null,null,null,null,null,null,0]
["Sch IID","Segregated Acc",null,"Credit Derivatives - Up - Before - Long-Rating 3",null,null,null,null,null,null,null,null,0]
["Sch IID","Segregated Acc",null,"Credit Derivatives - Up - Before - Long-Rating 4",null,null,null,null,null,null,null,null,0]
["Sch IID","Segregated Acc",null,"Credit Derivatives - Up - Before - Long-Rating 5",null,null,null,null,null,null,null,null,0]
["Sch IID","Segregated Acc",null,"Credit Derivatives - Up - Before - Long-Rating 6",null,null,null,null,null,null,null,null,0]
["Sch IID","Segregated Acc",null,"Credit Derivatives - Up - Before - Long-Rating 7",null,null,null,null,null,null,null,null,0]
["Sch IID","Segregated Acc",null,"Credit Derivatives - Up - Before - Long-Rating 8",null,null,null,null,null,null,null,null,0]
["Sch IID","Segregated Acc",null,"Credit Derivatives - Up - After - Long- Rating 0",null,null,null,null,null,null,null,null,0]
["Sch IID","Segregated Acc",null,"Credit Derivatives - Up - After - Long- Rating 1",null,null,null,null,null,null,null,null,0]
["Sch IID","Segregated Acc",null,"Credit Derivatives - Up - After - Long- Rating 2",null,null,null,null,null,null,null,null,0]
["Sch IID","Segregated Acc",null,"Credit Derivatives - Up - After - Long- Rating 3",null,null,null,null,null,null,null,null,0]
["Sch IID","Segregated Acc",null,"Credit Derivatives - Up - After - Long- Rating 4",null,null,null,null,null,null,null,null,0]
["Sch IID","Segregated Acc",null,"Credit Derivatives - Up - After - Long- Rating 5",null,null,null,null,null,null,null,null,0]
["Sch IID","Segregated Acc",null,"Credit Derivatives - Up - After - Long- Rating 6",null,null,null,null,null,null,null,null,0]
["Sch IID","Segregated Acc",null,"Credit Derivatives - Up - After - Long- Rating 7",null,null,null,null,null,null,null,null,0]
["Sch IID","Segregated Acc",null,"Credit Derivatives - Up - After - Long- Rating 8",null,null,null,null,null,null,null,null,0]
["Sch IID","Segregated Acc",null,"Credit Derivatives - Up - Before - Short- Rating 0",null,null,null,null,null,null,null,null,0]
["Sch IID","Segregated Acc",null,"Credit Derivatives - Up - Before - Short- Rating 1",null,null,null,null,null,null,null,null,0]
["Sch IID","Segregated Acc",null,"Credit Derivatives - Up - Before - Short- Rating 2",null,null,null,null,null,null,null,null,0]
["Sch IID","Segregated Acc",null,"Credit Derivatives - Up - Before - Short- Rating 3",null,null,null,null,null,null,null,null,0]
["Sch IID","Segregated Acc",null,"Credit Derivatives - Up - Before - Short- Rating 4",null,null,null,null,null,null,null,null,0]
["Sch IID","Segregated Acc",null,"Credit Derivatives - Up - Before - Short- Rating 5",null,null,null,null,null,null,null,null,0]
["Sch IID","Segregated Acc",null,"Credit Derivatives - Up - Before - Short- Rating 6",null,null,null,null,null,null,null,null,0]
["Sch IID","Segregated Acc",null,"Credit Derivatives - Up - Before - Short- Rating 7",null,null,null,null,null,null,null,null,0]
["Sch IID","Segregated Acc",null,"Credit Derivatives - Up - Before - Short- Rating 8",null,null,null,null,null,null,null,null,0]
["Sch IID","Segregated Acc",null,"Credit Derivatives - Up - After - Short- Rating 0",null,null,null,null,null,null,null,null,0]
["Sch IID","Segregated Acc",null,"Credit Derivatives - Up - After - Short- Rating 1",null,null,null,null,null,null,null,null,0]
["Sch IID","Segregated Acc",null,"Credit Derivatives - Up - After - Short- Rating 2",null,null,null,null,null,null,null,null,0]
["Sch IID","Segregated Acc",null,"Credit Derivatives - Up - After - Short- Rating 3",null,null,null,null,null,null,null,null,0]
["Sch IID","Segregated Acc",null,"Credit Derivatives - Up - After - Short- Rating 4",null,null,null,null,null,null,null,null,0]
["Sch IID","Segregated Acc",null,"Credit Derivatives - Up - After - Short- Rating 5",null,null,null,null,null,null,null,null,0]
["Sch IID","Segregated Acc",null,"Credit Derivatives - Up - After - Short- Rating 6",null,null,null,null,null,null,null,null,0]
["Sch IID","Segregated Acc",null,"Credit Derivatives - Up - After - Short- Rating 7",null,null,null,null,null,null,null,null,0]
["Sch IID","Segregated Acc",null,"Credit Derivatives - Up - After - Short- Rating 8",null,null,null,null,null,null,null,null,0]
["Sch IID","Segregated Acc",null,"Credit Derivatives - Down - Before - Long-Rating 0",null,null,null,null,null,null,null,null,0]
["Sch IID","Segregated Acc",null,"Credit Derivatives - Down - Before - Long-Rating 1",null,null,null,null,null,null,null,null,0]
["Sch IID","Segregated Acc",null,"Credit Derivatives - Down - Before - Long-Rating 2",null,null,null,null,null,null,null,null,0]
["Sch IID","Segregated Acc",null,"Credit Derivatives - Down - Before - Long-Rating 3",null,null,null,null,null,null,null,null,0]
["Sch IID","Segregated Acc",null,"Credit Derivatives - Down - Before - Long-Rating 4",null,null,null,null,null,null,null,null,0]
["Sch IID","Segregated Acc",null,"Credit Derivatives - Down - Before - Long-Rating 5",null,null,null,null,null,null,null,null,0]
["Sch IID","Segregated Acc",null,"Credit Derivatives - Down - Before - Long-Rating 6",null,null,null,null,null,null,null,null,0]
["Sch IID","Segregated Acc",null,"Credit Derivatives - Down - Before - Long-Rating 7",null,null,null,null,null,null,null,null,0]
["Sch IID","Segregated Acc",null,"Credit Derivatives - Down - Before - Long-Rating 8",null,null,null,null,null,null,null,null,0]
["Sch IID","Segregated Acc",null,"Credit Derivatives - Down - After - Long- Rating 0",null,null,null,null,null,null,null,null,0]
["Sch IID","Segregated Acc",null,"Credit Derivatives - Down - After - Long- Rating 1",null,null,null,null,null,null,null,null,0]
["Sch IID","Segregated Acc",null,"Credit Derivatives - Down - After - Long- Rating 2",null,null,null,null,null,null,null,null,0]
["Sch IID","Segregated Acc",null,"Credit Derivatives - Down - After - Long- Rating 3",null,null,null,null,null,null,null,null,0]
["Sch IID","Segregated Acc",null,"Credit Derivatives - Down - After - Long- Rating 4",null,null,null,null,null,null,null,null,0]
["Sch IID","Segregated Acc",null,"Credit Derivatives - Down - After - Long- Rating 5",null,null,null,null,null,null,null,null,0]
["Sch IID","Segregated Acc",null,"Credit Derivatives - Down - After - Long- Rating 6",null,null,null,null,null,null,null,null,0]
["Sch IID","Segregated Acc",null,"Credit Derivatives - Down - After - Long- Rating 7",null,null,null,null,null,null,null,null,0]
["Sch IID","Segregated Acc",null,"Credit Derivatives - Down - After - Long- Rating 8",null,null,null,null,null,null,null,null,0]
["Sch IID","Segregated Acc",null,"Credit Derivatives - Down - Before - Short- Rating 0",null,null,null,null,null,null,null,null,0]
["Sch IID","Segregated Acc",null,"Credit Derivatives - Down - Before - Short- Rating 1",null,null,null,null,null,null,null,null,0]
["Sch IID","Segregated Acc",null,"Credit Derivatives - Down - Before - Short- Rating 2",null,null,null,null,null,null,null,null,0]
["Sch IID","Segregated Acc",null,"Credit Derivatives - Down - Before - Short- Rating 3",null,null,null,null,null,null,null,null,0]
["Sch IID","Segregated Acc",null,"Credit Derivatives - Down - Before - Short- Rating 4",null,null,null,null,null,null,null,null,0]
["Sch IID","Segregated Acc",null,"Credit Derivatives - Down - Before - Short- Rating 5",null,null,null,null,null,null,null,null,0]
["Sch IID","Segregated Acc",null,"Credit Derivatives - Down - Before - Short- Rating 6",null,null,null,null,null,null,null,null,0]
["Sch IID","Segregated Acc",null,"Credit Derivatives - Down - Before - Short- Rating 7",null,null,null,null,null,null,null,null,0]
["Sch IID","Segregated Acc",null,"Credit Derivatives - Down - Before - Short- Rating 8",null,null,null,null,null,null,null,null,0]
["Sch IID","Segregated Acc",null,"Credit Derivatives - Down - After - Short- Rating 0",null,null,null,null,null,null,null,null,0]
["Sch IID","Segregated Acc",null,"Credit Derivatives - Down - After - Short- Rating 1",null,null,null,null,null,null,null,null,0]
["Sch IID","Segregated Acc",null,"Credit Derivatives - Down - After - Short- Rating 2",null,null,null,null,null,null,null,null,0]
["Sch IID","Segregated Acc",null,"Credit Derivatives - Down - After - Short- Rating 3",null,null,null,null,null,null,null,null,0]
["Sch IID","Segregated Acc",null,"Credit Derivatives - Down - After - Short- Rating 4",null,null,null,null,null,null,null,null,0]
["Sch IID","Segregated Acc",null,"Credit Derivatives - Down - After - Short- Rating 5",null,null,null,null,null,null,null,null,0]
["Sch IID","Segregated Acc",null,"Credit Derivatives - Down - After - Short- Rating 6",null,null,null,null,null,null,null,null,0]
["Sch IID","Segregated Acc",null,"Credit Derivatives - Down - After - Short- Rating 7",null,null,null,null,null,null,null,null,0]
["Sch IID","Segregated Acc",null,"Credit Derivatives - Down - After - Short- Rating 8",null,null,null,null,null,null,null,null,0]
["Sch IID","Segregated Acc",null,"Counterparty Default Risk - MV of Derivatives - MV Positive - Rating 0",null,null,null,null,null,null,null,null,0]
["Sch IID","Segregated Acc",null,"Counterparty Default Risk - MV of Derivatives - MV Positive - Rating 1",null,null,null,null,null,null,null,null,0]
["Sch IID","Segregated Acc",null,"Counterparty Default Risk - MV of Derivatives - MV Positive - Rating 2",null,null,null,null,null,null,null,null,0]
["Sch IID","Segregated Acc",null,"Counterparty Default Risk - MV of Derivatives - MV Positive - Rating 3",null,null,null,null,null,null,null,null,0]
["Sch IID","Segregated Acc",null,"Counterparty Default Risk - MV of Derivatives - MV Positive - Rating 4",null,null,null,null,null,null,null,null,0]
["Sch IID","Segregated Acc",null,"Counterparty Default Risk - MV of Derivatives - MV Positive - Rating 5",null,null,null,null,null,null,null,null,0]
["Sch IID","Segregated Acc",null,"Counterparty Default Risk - MV of Derivatives - MV Positive - Rating 6",null,null,null,null,null,null,null,null,0]
["Sch IID","Segregated Acc",null,"Counterparty Default Risk - MV of Derivatives - MV Positive - Rating 7",null,null,null,null,null,null,null,null,0]
["Sch IID","Segregated Acc",null,"Counterparty Default Risk - MV of Derivatives - MV Positive - Rating 8",null,null,null,null,null,null,null,null,0]
["Sch IID","Segregated Acc",null,"Counterparty Default Risk - MV of Derivatives - MV Negative - Rating 0",null,null,null,null,null,null,null,null,0]
["Sch IID","Segregated Acc",null,"Counterparty Default Risk - MV of Derivatives - MV Negative - Rating 1",null,null,null,null,null,null,null,null,0]
["Sch IID","Segregated Acc",null,"Counterparty Default Risk - MV of Derivatives - MV Negative - Rating 2",null,null,null,null,null,null,null,null,0]
["Sch IID","Segregated Acc",null,"Counterparty Default Risk - MV of Derivatives - MV Negative - Rating 3",null,null,null,null,null,null,null,null,0]
["Sch IID","Segregated Acc",null,"Counterparty Default Risk - MV of Derivatives - MV Negative - Rating 4",null,null,null,null,null,null,null,null,0]
["Sch IID","Segregated Acc",null,"Counterparty Default Risk - MV of Derivatives - MV Negative - Rating 5",null,null,null,null,null,null,null,null,0]
["Sch IID","Segregated Acc",null,"Counterparty Default Risk - MV of Derivatives - MV Negative - Rating 6",null,null,null,null,null,null,null,null,0]
["Sch IID","Segregated Acc",null,"Counterparty Default Risk - MV of Derivatives - MV Negative - Rating 7",null,null,null,null,null,null,null,null,0]
["Sch IID","Segregated Acc",null,"Counterparty Default Risk - MV of Derivatives - MV Negative - Rating 8",null,null,null,null,null,null,null,null,0]
["Sch IID","Segregated Acc",null,"Counterparty Default Risk - MV of Collateral - Rating 0",null,null,null,null,null,null,null,null,0]
["Sch IID","Segregated Acc",null,"Counterparty Default Risk - MV of Collateral - Rating 1",null,null,null,null,null,null,null,null,0]
["Sch IID","Segregated Acc",null,"Counterparty Default Risk - MV of Collateral - Rating 2",null,null,null,null,null,null,null,null,0]
["Sch IID","Segregated Acc",null,"Counterparty Default Risk - MV of Collateral - Rating 3",null,null,null,null,null,null,null,null,0]
["Sch IID","Segregated Acc",null,"Counterparty Default Risk - MV of Collateral - Rating 4",null,null,null,null,null,null,null,null,0]
["Sch IID","Segregated Acc",null,"Counterparty Default Risk - MV of Collateral - Rating 5",null,null,null,null,null,null,null,null,0]
["Sch IID","Segregated Acc",null,"Counterparty Default Risk - MV of Collateral - Rating 6",null,null,null,null,null,null,null,null,0]
["Sch IID","Segregated Acc",null,"Counterparty Default Risk - MV of Collateral - Rating 7",null,null,null,null,null,null,null,null,0]
["Sch IID","Segregated Acc",null,"Counterparty Default Risk - MV of Collateral - Rating 8",null,null,null,null,null,null,null,null,0]
["Sch IID","Segregated Acc",null,"Cash and Cash Equivalents",null,null,null,null,null,null,null,null,0]
["Sch IID","Segregated Acc",null,"NAIC Rating Corp & Sov. Bond - Class 1",null,null,null,null,null,null,null,null,0]
["Sch IID","Segregated Acc",null,"NAIC Rating Corp & Sov. Bond - Class 2",null,null,null,null,null,null,null,null,0]
["Sch IID","Segregated Acc",null,"NAIC Rating Corp & Sov. Bond - Class 3",null,null,null,null,null,null,null,null,0]
["Sch IID","Segregated Acc",null,"NAIC Rating Corp & Sov. Bond - Class 4",null,null,null,null,null,null,null,null,0]
["Sch IID","Segregated Acc",null,"NAIC Rating Corp & Sov. Bond - Class 5",null,null,null,null,null,null,null,null,0]
["Sch IID","Segregated Acc",null,"NAIC Rating Corp & Sov. Bond - Class 6",null,null,null,null,null,null,null,null,0]
["Sch IID","Segregated Acc",null,"NAIC Rating Corp & Sov. Bond - Total",null,null,null,null,null,null,null,null,0]
["Sch IID","Segregated Acc",null,"NAIC Rating Resid. MBS - Class 1",null,null,null,null,null,null,null,null,0]
["Sch IID","Segregated Acc",null,"NAIC Rating Resid. MBS - Class 2",null,null,null,null,null,null,null,null,0]
["Sch IID","Segregated Acc",null,"NAIC Rating Resid. MBS - Class 3",null,null,null,null,null,null,null,null,0]
["Sch IID","Segregated Acc",null,"NAIC Rating Resid. MBS - Class 4",null,null,null,null,null,null,null,null,0]
["Sch IID","Segregated Acc",null,"NAIC Rating Resid. MBS - Class 5",null,null,null,null,null,null,null,null,0]
["Sch IID","Segregated Acc",null,"NAIC Rating Resid. MBS - Class 6",null,null,null,null,null,null,null,null,0]
["Sch IID","Segregated Acc",null,"NAIC Rating Resid. MBS - Total",null,null,null,null,null,null,null,null,0]
["Sch IID","Segregated Acc",null,"NAIC Rating Comm. MBS - Class 1",null,null,null,null,null,null,null,null,0]
["Sch IID","Segregated Acc",null,"NAIC Rating Comm. MBS - Class 2",null,null,null,null,null,null,null,null,0]
["Sch IID","Segregated Acc",null,"NAIC Rating Comm. MBS - Class 3",null,null,null,null,null,null,null,null,0]
["Sch IID","Segregated Acc",null,"NAIC Rating Comm. MBS - Class 4",null,null,null,null,null,null,null,null,0]
["Sch IID","Segregated Acc",null,"NAIC Rating Comm. MBS - Class 5",null,null,null,null,null,null,null,null,0]
["Sch IID","Segregated Acc",null,"NAIC Rating Comm. MBS - Class 6",null,null,null,null,null,null,null,null,0]
["Sch IID","Segregated Acc",null,"NAIC Rating Comm. MBS - Total",null,null,null,null,null,null,null,null,0]
["Sch IID","Segregated Acc",null,"NAIC Rating Bond Mutual - Class 1",null,null,null,null,null,null,null,null,0]
["Sch IID","Segregated Acc",null,"NAIC Rating Bond Mutual - Class 2",null,null,null,null,null,null,null,null,0]
["Sch IID","Segregated Acc",null,"NAIC Rating Bond Mutual - Class 3",null,null,null,null,null,null,null,null,0]
["Sch IID","Segregated Acc",null,"NAIC Rating Bond Mutual - Class 4",null,null,null,null,null,null,null,null,0]
["Sch IID","Segregated Acc",null,"NAIC Rating Bond Mutual - Class 5",null,null,null,null,null,null,null,null,0]
["Sch IID","Segregated Acc",null,"NAIC Rating Bond Mutual - Class 6",null,null,null,null,null,null,null,null,0]
["Sch IID","Segregated Acc",null,"NAIC Rating Bond Mutual - Total",null,null,null,null,null,null,null,null,0]
["Sch IID","Segregated Acc",null,"NAIC Rating Mort. Loan - Class 1",null,null,null,null,null,null,null,null,0]
["Sch IID","Segregated Acc",null,"NAIC Rating Mort. Loan - Class 2",null,null,null,null,null,null,null,null,0]
["Sch IID","Segregated Acc",null,"NAIC Rating Mort. Loan - Class 3",null,null,null,null,null,null,null,null,0]
["Sch IID","Segregated Acc",null,"NAIC Rating Mort. Loan - Class 4",null,null,null,null,null,null,null,null,0]
["Sch IID","Segregated Acc",null,"NAIC Rating Mort. Loan - Class 5",null,null,null,null,null,null,null,null,0]
["Sch IID","Segregated Acc",null,"NAIC Rating Mort. Loan - Class 6",null,null,null,null,null,null,null,null,0]
["Sch IID","Segregated Acc",null,"NAIC Rating Mort. Loan - Total",null,null,null,null,null,null,null,null,0]
["Sch IID","Segregated Acc",null,"NAIC Rating Pref. Stock - Class 1",null,null,null,null,null,null,null,null,0]
["Sch IID","Segregated Acc",null,"NAIC Rating Pref. Stock - Class 2",null,null,null,null,null,null,null,null,0]
["Sch IID","Segregated Acc",null,"NAIC Rating Pref. Stock - Class 3",null,null,null,null,null,null,null,null,0]
["Sch IID","Segregated Acc",null,"NAIC Rating Pref. Stock - Class 4",null,null,null,null,null,null,null,null,0]
["Sch IID","Segregated Acc",null,"NAIC Rating Pref. Stock - Class 5",null,null,null,null,null,null,null,null,0]
["Sch IID","Segregated Acc",null,"NAIC Rating Pref. Stock - Class 6",null,null,null,null,null,null,null,null,0]
["Sch IID","Segregated Acc",null,"NAIC Rating Pref. Stock - Total",null,null,null,null,null,null,null,null,0]
["Sch IID","Segregated Acc",null,"NAIC Rating Other Assets - Class 1",null,null,null,null,null,null,null,null,0]
["Sch IID","Segregated Acc",null,"NAIC Rating Other Assets - Class 2",null,null,null,null,null,null,null,null,0]
["Sch IID","Segregated Acc",null,"NAIC Rating Other Assets - Class 3",null,null,null,null,null,null,null,null,0]
["Sch IID","Segregated Acc",null,"NAIC Rating Other Assets - Class 4",null,null,null,null,null,null,null,null,0]
["Sch IID","Segregated Acc",null,"NAIC Rating Other Assets - Class 5",null,null,null,null,null,null,null,null,0]
["Sch IID","Segregated Acc",null,"NAIC Rating Other Assets - Class 6",null,null,null,null,null,null,null,null,0]
["Sch IID","Segregated Acc",null,"NAIC Rating Other Assets - Total",null,null,null,null,null,null,null,null,0]
[]
["Sch IIE","Deposits",null,"Corp. Bonds - BSCR Rate 0",null,null,null,null,null,null,null,null,0,null,0]
["Sch IIE","Deposits",null,"Corp. Bonds - BSCR Rate 1",null,null,null,null,null,null,null,null,0,null,0]
["Sch IIE","Deposits",null,"Corp. Bonds - BSCR Rate 2",null,null,null,null,null,null,null,null,0,null,0]
["Sch IIE","Deposits",null,"Corp. Bonds - BSCR Rate 3",null,null,null,null,null,null,null,null,0,null,0]
["Sch IIE","Deposits",null,"Corp. Bonds - BSCR Rate 4",null,null,null,null,null,null,null,null,0,null,0]
["Sch IIE","Deposits",null,"Corp. Bonds - BSCR Rate 5",null,null,null,null,null,null,null,null,0,null,0]
["Sch IIE","Deposits",null,"Corp. Bonds - BSCR Rate 6",null,null,null,null,null,null,null,null,0,null,0]
["Sch IIE","Deposits",null,"Corp. Bonds - BSCR Rate 7",null,null,null,null,null,null,null,null,0,null,0]
["Sch IIE","Deposits",null,"Corp. Bonds - BSCR Rate 8",null,null,null,null,null,null,null,null,0,null,0]
["Sch IIE","Deposits",null,"Residential MBS - BSCR Rate 1",null,null,null,null,null,null,null,null,0,null,0]
["Sch IIE","Deposits",null,"Residential MBS - BSCR Rate 2",null,null,null,null,null,null,null,null,0,null,0]
["Sch IIE","Deposits",null,"Residential MBS - BSCR Rate 3",null,null,null,null,null,null,null,null,0,null,0]
["Sch IIE","Deposits",null,"Residential MBS - BSCR Rate 4",null,null,null,null,null,null,null,null,0,null,0]
["Sch IIE","Deposits",null,"Residential MBS - BSCR Rate 5",null,null,null,null,null,null,null,null,0,null,0]
["Sch IIE","Deposits",null,"Residential MBS - BSCR Rate 6",null,null,null,null,null,null,null,null,0,null,0]
["Sch IIE","Deposits",null,"Residential MBS - BSCR Rate 7",null,null,null,null,null,null,null,null,0,null,0]
["Sch IIE","Deposits",null,"Residential MBS - BSCR Rate 8",null,null,null,null,null,null,null,null,0,null,0]
["Sch IIE","Deposits",null,"Commercial MBS - BSCR Rate 1",null,null,null,null,null,null,null,null,0,null,0]
["Sch IIE","Deposits",null,"Commercial MBS - BSCR Rate 2",null,null,null,null,null,null,null,null,0,null,0]
["Sch IIE","Deposits",null,"Commercial MBS - BSCR Rate 3",null,null,null,null,null,null,null,null,0,null,0]
["Sch IIE","Deposits",null,"Commercial MBS - BSCR Rate 4",null,null,null,null,null,null,null,null,0,null,0]
["Sch IIE","Deposits",null,"Commercial MBS - BSCR Rate 5",null,null,null,null,null,null,null,null,0,null,0]
["Sch IIE","Deposits",null,"Commercial MBS - BSCR Rate 6",null,null,null,null,null,null,null,null,0,null,0]
["Sch IIE","Deposits",null,"Commercial MBS - BSCR Rate 7",null,null,null,null,null,null,null,null,0,null,0]
["Sch IIE","Deposits",null,"Commercial MBS - BSCR Rate 8",null,null,null,null,null,null,null,null,0,null,0]
["Sch IIE","Deposits",null,"Bonds Mutual Fund - BSCR Rate 0",null,null,null,null,null,null,null,null,0,null,0]
["Sch IIE","Deposits",null,"Bonds Mutual Fund - BSCR Rate 1",null,null,null,null,null,null,null,null,0,null,0]
["Sch IIE","Deposits",null,"Bonds Mutual Fund - BSCR Rate 2",null,null,null,null,null,null,null,null,0,null,0]
["Sch IIE","Deposits",null,"Bonds Mutual Fund - BSCR Rate 3",null,null,null,null,null,null,null,null,0,null,0]
["Sch IIE","Deposits",null,"Bonds Mutual Fund - BSCR Rate 4",null,null,null,null,null,null,null,null,0,null,0]
["Sch IIE","Deposits",null,"Bonds Mutual Fund - BSCR Rate 5",null,null,null,null,null,null,null,null,0,null,0]
["Sch IIE","Deposits",null,"Bonds Mutual Fund - BSCR Rate 6",null,null,null,null,null,null,null,null,0,null,0]
["Sch IIE","Deposits",null,"Bonds Mutual Fund - BSCR Rate 7",null,null,null,null,null,null,null,null,0,null,0]
["Sch IIE","Deposits",null,"Bonds Mutual Fund - BSCR Rate 8",null,null,null,null,null,null,null,null,0,null,0]
["Sch IIE","Deposits",null,"Mortgage Loans - Insured",null,null,null,null,null,null,null,null,0,null,0]
["Sch IIE","Deposits",null,"Mortgage Loans - Other Commercial",null,null,null,null,null,null,null,null,0,null,0]
["Sch IIE","Deposits",null,"Mortgage Loans - Other Residential",null,null,null,null,null,null,null,null,0,null,0]
["Sch IIE","Deposits",null,"Mortgage Loans - Not Good Stand.",null,null,null,null,null,null,null,null,0,null,0]
["Sch IIE","Deposits",null,"Long Positions - Before - Strategic Holdings - Listed",null,null,null,null,null,null,null,null,0]
["Sch IIE","Deposits",null,"Long Positions - Before - Duration Based",null,null,null,null,null,null,null,null,0]
["Sch IIE","Deposits",null,"Long Positions - Before - Listed Equity Securities in Developed Markets",null,null,null,null,null,null,null,null,0]
["Sch IIE","Deposits",null,"Long Positions - Before - Preferred Stocks, BSCR Rating 1",null,null,null,null,null,null,null,null,0]
["Sch IIE","Deposits",null,"Long Positions - Before - Preferred Stocks, BSCR Rating 2",null,null,null,null,null,null,null,null,0]
["Sch IIE","Deposits",null,"Long Positions - Before - Preferred Stocks, BSCR Rating 3",null,null,null,null,null,null,null,null,0]
["Sch IIE","Deposits",null,"Long Positions - Before - Preferred Stocks, BSCR Rating 4",null,null,null,null,null,null,null,null,0]
["Sch IIE","Deposits",null,"Long Positions - Before - Preferred Stocks, BSCR Rating 5",null,null,null,null,null,null,null,null,0]
["Sch IIE","Deposits",null,"Long Positions - Before - Preferred Stocks, BSCR Rating 6",null,null,null,null,null,null,null,null,0]
["Sch IIE","Deposits",null,"Long Positions - Before - Preferred Stocks, BSCR Rating 7",null,null,null,null,null,null,null,null,0]
["Sch IIE","Deposits",null,"Long Positions - Before - Preferred Stocks, BSCR Rating 8",null,null,null,null,null,null,null,null,0]
["Sch IIE","Deposits",null,"Long Positions - Before - Equity Derivatives on Type 1 Equities",null,null,null,null,null,null,null,null,0]
["Sch IIE","Deposits",null,"Long Positions - Before - Strategic Holdings - Unlisted",null,null,null,null,null,null,null,null,0]
["Sch IIE","Deposits",null,"Long Positions - Before - Other Equities",null,null,null,null,null,null,null,null,0]
["Sch IIE","Deposits",null,"Long Positions - Before - Letters of Credit",null,null,null,null,null,null,null,null,0]
["Sch IIE","Deposits",null,"Long Positions - Before - Intangible assets",null,null,null,null,null,null,null,null,0]
["Sch IIE","Deposits",null,"Long Positions - Before - Pension Benefit Surplus",null,null,null,null,null,null,null,null,0]
["Sch IIE","Deposits",null,"Long Positions - Before - Equity Derivatives on Type 2 Equities",null,null,null,null,null,null,null,null,0]
["Sch IIE","Deposits",null,"Long Positions - Before - Infrastructure",null,null,null,null,null,null,null,null,0]
["Sch IIE","Deposits",null,"Long Positions - Before - Derivatives on Infrastructure",null,null,null,null,null,null,null,null,0]
["Sch IIE","Deposits",null,"Long Positions - Before - Equity Real Estate 1",null,null,null,null,null,null,null,null,0]
["Sch IIE","Deposits",null,"Long Positions - Before - Equity Real Estate 2",null,null,null,null,null,null,null,null,0]
["Sch IIE","Deposits",null,"Long Positions - After - Strategic Holdings - Listed",null,null,null,null,null,null,null,null,0]
["Sch IIE","Deposits",null,"Long Positions - After - Duration Based",null,null,null,null,null,null,null,null,0]
["Sch IIE","Deposits",null,"Long Positions - After - Listed Equity Securities in Developed Markets",null,null,null,null,null,null,null,null,0]
["Sch IIE","Deposits",null,"Long Positions - After - Preferred Stocks, BSCR Rating 1",null,null,null,null,null,null,null,null,0]
["Sch IIE","Deposits",null,"Long Positions - After - Preferred Stocks, BSCR Rating 2",null,null,null,null,null,null,null,null,0]
["Sch IIE","Deposits",null,"Long Positions - After - Preferred Stocks, BSCR Rating 3",null,null,null,null,null,null,null,null,0]
["Sch IIE","Deposits",null,"Long Positions - After - Preferred Stocks, BSCR Rating 4",null,null,null,null,null,null,null,null,0]
["Sch IIE","Deposits",null,"Long Positions - After - Preferred Stocks, BSCR Rating 5",null,null,null,null,null,null,null,null,0]
["Sch IIE","Deposits",null,"Long Positions - After - Preferred Stocks, BSCR Rating 6",null,null,null,null,null,null,null,null,0]
["Sch IIE","Deposits",null,"Long Positions - After - Preferred Stocks, BSCR Rating 7",null,null,null,null,null,null,null,null,0]
["Sch IIE","Deposits",null,"Long Positions - After - Preferred Stocks, BSCR Rating 8",null,null,null,null,null,null,null,null,0]
["Sch IIE","Deposits",null,"Long Positions - After - Equity Derivatives on Type 1 Equities",null,null,null,null,null,null,null,null,0]
["Sch IIE","Deposits",null,"Long Positions - After - Strategic Holdings - Unlisted",null,null,null,null,null,null,null,null,0]
["Sch IIE","Deposits",null,"Long Positions - After - Other Equities",null,null,null,null,null,null,null,null,0]
["Sch IIE","Deposits",null,"Long Positions - After - Letters of Credit",null,null,null,null,null,null,null,null,0]
["Sch IIE","Deposits",null,"Long Positions - After - Intangible assets",null,null,null,null,null,null,null,null,0]
["Sch IIE","Deposits",null,"Long Positions - After - Pension Benefit Surplus",null,null,null,null,null,null,null,null,0]
["Sch IIE","Deposits",null,"Long Positions - After - Equity Derivatives on Type 2 Equities",null,null,null,null,null,null,null,null,0]
["Sch IIE","Deposits",null,"Long Positions - After - Infrastructure",null,null,null,null,null,null,null,null,0]
["Sch IIE","Deposits",null,"Long Positions - After - Derivatives on Infrastructure",null,null,null,null,null,null,null,null,0]
["Sch IIE","Deposits",null,"Long Positions - After - Equity Real Estate 1",null,null,null,null,null,null,null,null,0]
["Sch IIE","Deposits",null,"Long Positions - After - Equity Real Estate 2",null,null,null,null,null,null,null,null,0]
["Sch IIE","Deposits",null,"Short - Before - Qualified Assets - Strategic Holdings - Listed",null,null,null,null,null,null,null,null,0]
["Sch IIE","Deposits",null,"Short - Before - Qualified Assets - Duration Based",null,null,null,null,null,null,null,null,0]
["Sch IIE","Deposits",null,"Short - Before - Qualified Assets - Listed Equity Securities in Developed Markets",null,null,null,null,null,null,null,null,0]
["Sch IIE","Deposits",null,"Short - Before - Qualified Assets - Preferred Stocks, BSCR Rating 1",null,null,null,null,null,null,null,null,0]
["Sch IIE","Deposits",null,"Short - Before - Qualified Assets - Preferred Stocks, BSCR Rating 2",null,null,null,null,null,null,null,null,0]
["Sch IIE","Deposits",null,"Short - Before - Qualified Assets - Preferred Stocks, BSCR Rating 3",null,null,null,null,null,null,null,null,0]
["Sch IIE","Deposits",null,"Short - Before - Qualified Assets - Preferred Stocks, BSCR Rating 4",null,null,null,null,null,null,null,null,0]
["Sch IIE","Deposits",null,"Short - Before - Qualified Assets - Preferred Stocks, BSCR Rating 5",null,null,null,null,null,null,null,null,0]
["Sch IIE","Deposits",null,"Short - Before - Qualified Assets - Preferred Stocks, BSCR Rating 6",null,null,null,null,null,null,null,null,0]
["Sch IIE","Deposits",null,"Short - Before - Qualified Assets - Other Equities",null,null,null,null,null,null,null,null,0]
["Sch IIE","Deposits",null,"Short - Before - Qualified Assets - Infrastructure",null,null,null,null,null,null,null,null,0]
["Sch IIE","Deposits",null,"Short - After - Qualified Assets - Preferred Stocks, BSCR Rating 3",null,null,null,null,null,null,null,null,0]
["Sch IIE","Deposits",null,"Short - After - Qualified Assets - Equity Derivatives on Type 1 Equities",null,null,null,null,null,null,null,null,0]
["Sch IIE","Deposits",null,"Short - Before - UnQualified Assets - Strategic Holdings - Listed",null,null,null,null,null,null,null,null,0]
["Sch IIE","Deposits",null,"Short - Before - UnQualified Assets - Preferred Stocks, BSCR Rating 7",null,null,null,null,null,null,null,null,0]
["Sch IIE","Deposits",null,"Short - Before - UnQualified Assets - Strategic Holdings - Unlisted",null,null,null,null,null,null,null,null,0]
["Sch IIE","Deposits",null,"Short - Before - UnQualified Assets - Infrastructure",null,null,null,null,null,null,null,null,0]
["Sch IIE","Deposits",null,"Short - After - UnQualified Assets - Preferred Stocks, BSCR Rating 3",null,null,null,null,null,null,null,null,0]
["Sch IIE","Deposits",null,"Short - After - UnQualified Assets - Other Equities",null,null,null,null,null,null,null,null,0]
["Sch IIE","Deposits",null,"Liabilities - Before - W/O Mgmt. Actions - Strategic Holdings - Listed",null,null,null,null,null,null,null,null,0]
["Sch IIE","Deposits",null,"Liabilities - Before - W/O Mgmt. Actions - Preferred Stocks, BSCR Rating 7",null,null,null,null,null,null,null,null,0]
["Sch IIE","Deposits",null,"Liabilities - Before - W/O Mgmt. Actions - Letters of Credit",null,null,null,null,null,null,null,null,0]
["Sch IIE","Deposits",null,"Liabilities - After - W/O Mgmt. Actions - Preferred Stocks, BSCR Rating 2",null,null,null,null,null,null,null,null,0]
["Sch IIE","Deposits",null,"Liabilities - After - W/O Mgmt. Actions - Other Equities",null,null,null,null,null,null,null,null,0]
["Sch IIE","Deposits",null,"Liabilities - After - W/O Mgmt. Actions - Intangible assets",null,null,null,null,null,null,null,null,0]
["Sch IIE","Deposits",null,"Liabilities - After - With Mgmt. Actions - Strategic Holdings - Listed",null,null,null,null,null,null,null,null,0]
["Sch IIE","Deposits",null,"Liabilities - After - With Mgmt. Actions - Preferred Stocks, BSCR Rating 7",null,null,null,null,null,null,null,null,0]
["Sch IIE","Deposits",null,"Liabilities - After - With Mgmt. Actions - Pension Benefit Surplus",null,null,null,null,null,null,null,null,0]
["Sch IIE","Deposits",null,"Credit Derivatives - Up - Before - Long-Rating 4",null,null,null,null,null,null,null,null,0]
["Sch IIE","Deposits",null,"Credit Derivatives - Up - After - Long- Rating 4",null,null,null,null,null,null,null,null,0]
["Sch IIE","Deposits",null,"Credit Derivatives - Up - Before - Short- Rating 3",null,null,null,null,null,null,null,null,0]
["Sch IIE","Deposits",null,"Credit Derivatives - Up - After - Short- Rating 3",null,null,null,null,null,null,null,null,0]
["Sch IIE","Deposits",null,"Credit Derivatives - Up - After - Short- Rating 4",null,null,null,null,null,null,null,null,0]
["Sch IIE","Deposits",null,"Credit Derivatives - Down - Before - Long-Rating 8",null,null,null,null,null,null,null,null,0]
["Sch IIE","Deposits",null,"Credit Derivatives - Down - After - Long- Rating 3",null,null,null,null,null,null,null,null,0]
["Sch IIE","Deposits",null,"Credit Derivatives - Down - Before - Short- Rating 3",null,null,null,null,null,null,null,null,0]
["Sch IIE","Deposits",null,"Credit Derivatives - Down - After - Short- Rating 3",null,null,null,null,null,null,null,null,0]
["Sch IIE","Deposits",null,"Counterparty Default Risk - MV of Derivatives - MV Positive - Rating 4",null,null,null,null,null,null,null,null,0]
["Sch IIE","Deposits",null,"Counterparty Default Risk - MV of Derivatives - MV Negative - Rating 2",null,null,null,null,null,null,null,null,0]
["Sch IIE","Deposits",null,"Counterparty Default Risk - MV of Collateral - Rating 2",null,null,null,null,null,null,null,null,0]
["Sch IIE","Deposits",null,"Cash and Cash Equivalents",null,null,null,null,null,null,null,null,0]
["Sch IIE","Deposits",null,"NAIC Rating Corp & Sov. Bond - Class 2",null,null,null,null,null,null,null,null,0]
["Sch IIE","Deposits",null,"NAIC Rating Resid. MBS - Class 4",null,null,null,null,null,null,null,null,0]
["Sch IIE","Deposits",null,"NAIC Rating Bond Mutual - Class 2",null,null,null,null,null,null,null,null,0]
["Sch IIE","Deposits",null,"NAIC Rating Bond Mutual - Total",null,null,null,null,null,null,null,null,0]
["Sch IIE","Deposits",null,"NAIC Rating Pref. Stock - Class 2",null,null,null,null,null,null,null,null,0]
["Sch IIE","Deposits",null,"NAIC Rating Other Assets - Class 1",null,null,null,null,null,null,null,null,0]
["Sch IIF","Other Sundry",null,"Corp. Bonds - BSCR Rate 3",null,null,null,null,null,null,null,null,0,null,0]
["Sch IIF","Other Sundry",null,"Corp. Bonds - BSCR Rate 4",null,null,null,null,null,null,null,null,0,null,0]
["Sch IIF","Other Sundry",null,"Residential MBS - BSCR Rate 7",null,null,null,null,null,null,null,null,0,null,0]
["Sch IIF","Other Sundry",null,"Commercial MBS - BSCR Rate 5",null,null,null,null,null,null,null,null,0,null,0]
["Sch IIF","Other Sundry",null,"Bonds Mutual Fund - BSCR Rate 5",null,null,null,null,null,null,null,null,0,null,0]
["Sch IIF","Other Sundry",null,"Long Positions - Before - Strategic Holdings - Listed",null,null,null,null,null,null,null,null,0]
["Sch IIF","Other Sundry",null,"Long Positions - Before - Preferred Stocks, BSCR Rating 7",null,null,null,null,null,null,null,null,0]
["Sch IIF","Other Sundry",null,"Long Positions - Before - Infrastructure",null,null,null,null,null,null,null,null,0]
["Sch IIF","Other Sundry",null,"Long Positions - After - Duration Based",null,null,null,null,null,null,null,null,0]
["Sch IIF","Other Sundry",null,"Long Positions - After - Preferred Stocks, BSCR Rating 3",null,null,null,null,null,null,null,null,0]
["Sch IIF","Other Sundry",null,"Long Positions - After - Letters of Credit",null,null,null,null,null,null,null,null,0]
["Sch IIF","Other Sundry",null,"Short - Before - Qualified Assets - Listed Equity Securities in Developed Markets",null,null,null,null,null,null,null,null,0]
["Sch IIF","Other Sundry",null,"Short - Before - Qualified Assets - Preferred Stocks, BSCR Rating 7",null,null,null,null,null,null,null,null,0]
["Sch IIF","Other Sundry",null,"Short - Before - Qualified Assets - Infrastructure",null,null,null,null,null,null,null,null,0]
["Sch IIF","Other Sundry",null,"Short - After - Qualified Assets - Preferred Stocks, BSCR Rating 1",null,null,null,null,null,null,null,null,0]
["Sch IIF","Other Sundry",null,"Short - After - Qualified Assets - Other Equities",null,null,null,null,null,null,null,null,0]
["Sch IIF","Other Sundry",null,"Short - Before - UnQualified Assets - Strategic Holdings - Listed",null,null,null,null,null,null,null,null,0]
["Sch IIF","Other Sundry",null,"Short - Before - UnQualified Assets - Duration Based",null,null,null,null,null,null,null,null,0]
["Sch IIF","Other Sundry",null,"Short - Before - UnQualified Assets - Preferred Stocks, BSCR Rating 8",null,null,null,null,null,null,null,null,0]
["Sch IIF","Other Sundry",null,"Short - Before - UnQualified Assets - Infrastructure",null,null,null,null,null,null,null,null,0]
["Sch IIF","Other Sundry",null,"Short - After - UnQualified Assets - Preferred Stocks, BSCR Rating 3",null,null,null,null,null,null,null,null,0]
["Sch IIF","Other Sundry",null,"Short - After - UnQualified Assets - Equity Derivatives on Type 1 Equities",null,null,null,null,null,null,null,null,0]
["Sch IIF","Other Sundry",null,"Liabilities - Before - W/O Mgmt. Actions - Strategic Holdings - Listed",null,null,null,null,null,null,null,null,0]
["Sch IIF","Other Sundry",null,"Liabilities - Before - W/O Mgmt. Actions - Preferred Stocks, BSCR Rating 7",null,null,null,null,null,null,null,null,0]
["Sch IIF","Other Sundry",null,"Liabilities - Before - W/O Mgmt. Actions - Strategic Holdings - Unlisted",null,null,null,null,null,null,null,null,0]
["Sch IIF","Other Sundry",null,"Liabilities - Before - W/O Mgmt. Actions - Infrastructure",null,null,null,null,null,null,null,null,0]
["Sch IIF","Other Sundry",null,"Liabilities - After - W/O Mgmt. Actions - Preferred Stocks, BSCR Rating 3",null,null,null,null,null,null,null,null,0]
["Sch IIF","Other Sundry",null,"Liabilities - After - W/O Mgmt. Actions - Other Equities",null,null,null,null,null,null,null,null,0]
["Sch IIF","Other Sundry",null,"Liabilities - After - With Mgmt. Actions - Strategic Holdings - Listed",null,null,null,null,null,null,null,null,0]
["Sch IIF","Other Sundry",null,"Liabilities - After - With Mgmt. Actions - Preferred Stocks, BSCR Rating 7",null,null,null,null,null,null,null,null,0]
["Sch IIF","Other Sundry",null,"Liabilities - After - With Mgmt. Actions - Letters of Credit",null,null,null,null,null,null,null,null,0]
["Sch IIF","Other Sundry",null,"Credit Derivatives - Up - Before - Long-Rating 4",null,null,null,null,null,null,null,null,0]
["Sch IIF","Other Sundry",null,"Credit Derivatives - Up - After - Long- Rating 4",null,null,null,null,null,null,null,null,0]
["Sch IIF","Other Sundry",null,"Credit Derivatives - Up - Before - Short- Rating 1",null,null,null,null,null,null,null,null,0]
["Sch IIF","Other Sundry",null,"Credit Derivatives - Up - Before - Short- Rating 4",null,null,null,null,null,null,null,null,0]
["Sch IIF","Other Sundry",null,"Credit Derivatives - Up - After - Short- Rating 4",null,null,null,null,null,null,null,null,0]
["Sch IIF","Other Sundry",null,"Credit Derivatives - Down - Before - Long-Rating 6",null,null,null,null,null,null,null,null,0]
["Sch IIF","Other Sundry",null,"Credit Derivatives - Down - After - Long- Rating 3",null,null,null,null,null,null,null,null,0]
["Sch IIF","Other Sundry",null,"Credit Derivatives - Down - Before - Short- Rating 3",null,null,null,null,null,null,null,null,0]
["Sch IIF","Other Sundry",null,"Credit Derivatives - Down - After - Short- Rating 2",null,null,null,null,null,null,null,null,0]
["Sch IIF","Other Sundry",null,"Counterparty Default Risk - MV of Derivatives - MV Positive - Rating 2",null,null,null,null,null,null,null,null,0]
["Sch IIF","Other Sundry",null,"Counterparty Default Risk - MV of Derivatives - MV Positive - Rating 3",null,null,null,null,null,null,null,null,0]
["Sch IIF","Other Sundry",null,"Counterparty Default Risk - MV of Derivatives - MV Negative - Rating 7",null,null,null,null,null,null,null,null,0]
["Sch IIF","Other Sundry",null,"Counterparty Default Risk - MV of Collateral - Rating 2",null,null,null,null,null,null,null,null,0]
["Sch IIF","Other Sundry",null,"NAIC Rating Corp & Sov. Bond - Class 2",null,null,null,null,null,null,null,null,0]
["Sch IIF","Other Sundry",null,"NAIC Rating Resid. MBS - Class 4",null,null,null,null,null,null,null,null,0]
["Sch IIF","Other Sundry",null,"NAIC Rating Comm. MBS - Class 4",null,null,null,null,null,null,null,null,0]
["Sch IIF","Other Sundry",null,"NAIC Rating Bond Mutual - Total",null,null,null,null,null,null,null,null,0]
["Sch IIF","Other Sundry",null,"NAIC Rating Pref. Stock - Class 2",null,null,null,null,null,null,null,null,0]
["Sch IIF","Other Sundry",null,"NAIC Rating Pref. Stock - Class 6",null,null,null,null,null,null,null,null,0]
["Sch IIF","Other Sundry",null,"NAIC Rating Other Assets - Class 4",null,null,null,null,null,null,null,null,0]
["Sch III","Losses by Line",null,"Res. Gross - Personal Acc. Non Prop.",null,null,null,null,null,null,null,null,0]
["Sch III","Losses by Line",null,"Res. Gross - US Professional",null,null,null,null,null,null,null,null,0]
["Sch III","Losses by Line",null,"Res. Gross - Retro Property",null,null,null,null,null,null,null,null,0]
["Sch III","Losses by Line",null,"Res. Net - Aviation Non-Proportional",null,null,null,null,null,null,null,null,0]
["Sch III","Losses by Line",null,"Res. Net - US Casualty Non-Prop.",null,null,null,null,null,null,null,null,0]
["Sch III","Losses by Line",null,"Res. Net - Health",null,null,null,null,null,null,null,null,0]
["Sch III","Losses by Line",null,"Note 16di - Property Catastrophe",null,null,null,null,null,null,null,null,0]
["Sch III","Losses by Line",null,"Note 16di - US Casualty",null,null,null,null,null,null,null,null,0]
["Sch III","Losses by Line",null,"Note 16di - Int'l Motor",null,null,null,null,null,null,null,null,0]
["Sch III","Losses by Line",null,"Note 16dii - Property Non-Proportion",null,null,null,null,null,null,null,null,0]
["Sch III","Losses by Line",null,"Note 16dii - Energy Non-Proportional",null,null,null,null,null,null,null,null,0]
["Sch III","Losses by Line",null,"Note 16dii - Int'l Casualty",null,null,null,null,null,null,null,null,0]
["Sch III","Losses by Line",null,"Note 17d - Personal Acc. Non Prop.",null,null,null,null,null,null,null,null,0]
["Sch III","Losses by Line",null,"Note 17d - Energy",null,null,null,null,null,null,null,null,0]
["Sch III","Losses by Line",null,"Note 17d - US Professional",null,null,null,null,null,null,null,null,0]
["Sch III","Losses by Line",null,"Note 17d - Structured / Finite R/I",null,null,null,null,null,null,null,null,0]
["Sch IIIA","Losses by Zone",null,"Res. Zn 1 - Personal Acc. Non Prop.",null,null,null,null,null,null,null,null,0]
["Sch IIIA","Losses by Zone",null,"Res. Zn 1 - US Professional Non-Prop.",null,null,null,null,null,null,null,null,0]
["Sch IIIA","Losses by Zone",null,"Res. Zn 1 - Health",null,null,null,null,null,null,null,null,0]
["Sch IIIA","Losses by Zone",null,"Res. Zn 2 - Credit Surety",null,null,null,null,null,null,null,null,0]
["Sch IIIA","Losses by Zone",null,"Res. Zn 2 - US Casualty",null,null,null,null,null,null,null,null,0]
["Sch IIIA","Losses by Zone",null,"Res. Zn 2 - Total",null,null,null,null,null,null,null,null,0]
["Sch IIIA","Losses by Zone",null,"Res. Zn 3 - Property Catastrophe",null,null,null,null,null,null,null,null,0]
["Sch IIIA","Losses by Zone",null,"Res. Zn 3 - Energy",null,null,null,null,null,null,null,null,0]
["Sch IIIA","Losses by Zone",null,"Res. Zn 3 - Int'l Motor",null,null,null,null,null,null,null,null,0]
["Sch IIIA","Losses by Zone",null,"Res. Zn 4 - Property",null,null,null,null,null,null,null,null,0]
["Sch IIIA","Losses by Zone",null,"Res. Zn 4 - Credit Surety",null,null,null,null,null,null,null,null,0]
["Sch IIIA","Losses by Zone",null,"Res. Zn 4 - Int'l Motor Non-Prop.",null,null,null,null,null,null,null,null,0]
["Sch IIIA","Losses by Zone",null,"Res. Zn 5 - Property Non-Proportion",null,null,null,null,null,null,null,null,0]
["Sch IIIA","Losses by Zone",null,"Res. Zn 5 - Energy",null,null,null,null,null,null,null,null,0]
["Sch IIIA","Losses by Zone",null,"Res. Zn 5 - US Casualty",null,null,null,null,null,null,null,null,0]
["Sch IIIA","Losses by Zone",null,"Res. Zn 5 - Int'l Casualty Non-Prop.",null,null,null,null,null,null,null,null,0]
["Sch IIIA","Losses by Zone",null,"Res. Zn 6 - Credit Surety",null,null,null,null,null,null,null,null,0]
["Sch IIIA","Losses by Zone",null,"Res. Zn 6 - US Casualty Non-Prop.",null,null,null,null,null,null,null,null,0]
["Sch IIIA","Losses by Zone",null,"Res. Zn 6 - Retro Property",null,null,null,null,null,null,null,null,0]
["Sch IIIA","Losses by Zone",null,"Res. Zn 7 - Aviation",null,null,null,null,null,null,null,null,0]
["Sch IIIA","Losses by Zone",null,"Res. Zn 7 - US Professional",null,null,null,null,null,null,null,null,0]
["Sch IIIA","Losses by Zone",null,"Res. Zn 7 - Structured / Finite R/I",null,null,null,null,null,null,null,null,0]
["Sch IIIA","Losses by Zone",null,"Res. Zn 8 - Personal Accident",null,null,null,null,null,null,null,null,0]
["Sch IIIA","Losses by Zone",null,"Res. Zn 8 - Aviation Non-Proportional",null,null,null,null,null,null,null,null,0]
["Sch IIIA","Losses by Zone",null,"Res. Zn 8 - US Specialty",null,null,null,null,null,null,null,null,0]
["Sch IIIA","Losses by Zone",null,"Res. Zn 9 - Property",null,null,null,null,null,null,null,null,0]
["Sch IIIA","Losses by Zone",null,"Res. Zn 9 - Credit Surety",null,null,null,null,null,null,null,null,0]
["Sch IIIA","Losses by Zone",null,"Res. Zn 9 - US Specialty Non-Prop.",null,null,null,null,null,null,null,null,0]
["Sch IIIA","Losses by Zone",null,"Res. Zn 9 - Total",null,null,null,null,null,null,null,null,0]
["Sch IIIA","Losses by Zone",null,"Res. Zn 10 - Credit Surety Non-Prop.",null,null,null,null,null,null,null,null,0]
["Sch IIIA","Losses by Zone",null,"Res. Zn 10 - Energy",null,null,null,null,null,null,null,null,0]
["Sch IIIA","Losses by Zone",null,"Res. Zn 10 - Int'l Motor Non-Prop.",null,null,null,null,null,null,null,null,0]
["Sch IIIA","Losses by Zone",null,"Res. Zn 11 - Personal Accident",null,null,null,null,null,null,null,null,0]
["Sch IIIA","Losses by Zone",null,"Res. Zn 11 - Energy Non-Proportional",null,null,null,null,null,null,null,null,0]
["Sch IIIA","Losses by Zone",null,"Res. Zn 11 - Int'l Casualty",null,null,null,null,null,null,null,null,0]
["Sch IIIA","Losses by Zone",null,"Res. Zn 12 - Property",null,null,null,null,null,null,null,null,0]
["Sch IIIA","Losses by Zone",null,"Res. Zn 12 - US Casualty",null,null,null,null,null,null,null,null,0]
["Sch IIIA","Losses by Zone",null,"Res. Zn 12 - Int'l Casualty Non-Prop.",null,null,null,null,null,null,null,null,0]
["Sch IIIA","Losses by Zone",null,"Res. Zn 12 - Total",null,null,null,null,null,null,null,null,0]
["Sch IIIA","Losses by Zone",null,"Res. Zn 13 - Personal Acc. Non Prop.",null,null,null,null,null,null,null,null,0]
["Sch IIIA","Losses by Zone",null,"Res. Zn 13 - US Professional",null,null,null,null,null,null,null,null,0]
["Sch IIIA","Losses by Zone",null,"Res. Zn 13 - Structured / Finite R/I",null,null,null,null,null,null,null,null,0]
["Sch IIIA","Losses by Zone",null,"Res. Zn 14 - Aviation",null,null,null,null,null,null,null,null,0]
["Sch IIIA","Losses by Zone",null,"Res. Zn 14 - US Professional Non-Prop.",null,null,null,null,null,null,null,null,0]
["Sch IIIA","Losses by Zone",null,"Res. Zn 14 - Int'l Casualty Non-Prop.",null,null,null,null,null,null,null,null,0]
["Sch IIIA","Losses by Zone",null,"Res. Zn 15 - Aviation Non-Proportional",null,null,null,null,null,null,null,null,0]
["Sch IIIA","Losses by Zone",null,"Res. Zn 15 - Credit Surety",null,null,null,null,null,null,null,null,0]
["Sch IIIA","Losses by Zone",null,"Res. Zn 15 - US Specialty",null,null,null,null,null,null,null,null,0]
["Sch IIIA","Losses by Zone",null,"Res. Zn 15 - Total",null,null,null,null,null,null,null,null,0]
["Sch IIIA","Losses by Zone",null,"Res. Zn 16 - Credit Surety Non-Prop.",null,null,null,null,null,null,null,null,0]
["Sch IIIA","Losses by Zone",null,"Res. Zn 16 - US Professional",null,null,null,null,null,null,null,null,0]
["Sch IIIA","Losses by Zone",null,"Res. Zn 17 - Property Catastrophe",null,null,null,null,null,null,null,null,0]
["Sch IIIA","Losses by Zone",null,"Res. Zn 17 - Energy",null,null,null,null,null,null,null,null,0]
["Sch IIIA","Losses by Zone",null,"Res. Zn 17 - US Casualty",null,null,null,null,null,null,null,null,0]
["Sch IIIA","Losses by Zone",null,"Res. Zn 17 - Int'l Motor Non-Prop.",null,null,null,null,null,null,null,null,0]
["Sch IIIA","Losses by Zone",null,"Res. Zn 18 - Property Non-Proportion",null,null,null,null,null,null,null,null,0]
["Sch IIIA","Losses by Zone",null,"Res. Zn 18 - Energy",null,null,null,null,null,null,null,null,0]
["Sch IIIA","Losses by Zone",null,"Res. Zn 18 - Int'l Casualty",null,null,null,null,null,null,null,null,0]
["Sch IIIA","Losses by Zone",null,"Res. Total - Personal Accident",null,null,null,null,null,null,null,null,0]
["Sch IIIA","Losses by Zone",null,"Res. Total - US Casualty Non-Prop.",null,null,null,null,null,null,null,null,0]
["Sch IIIA","Losses by Zone",null,"Res. Total - Int'l Casualty Non-Prop.",null,null,null,null,null,null,null,null,0]
["Sch IV","Premium by Line",null,"Unrelated - Personal Accident",0,null,0,null,null,null,null,null,0,null,0]
["Sch IV","Premium by Line",null,"Unrelated - Personal Acc. Non Prop.",0,null,0,null,null,null,null,null,0,null,0]
["Sch IV","Premium by Line",null,"Unrelated - Int'l Motor",0,null,0,null,null,null,null,null,0,null,0]
["Sch IV","Premium by Line",null,"Unrelated - Retro Property",0,null,0,null,null,null,null,null,0,null,0]
["Sch IV","Premium by Line",null,"Related - Aviation Non-Proportional",0,null,0,null,null,null,null,null,0,null,0]
["Sch IV","Premium by Line",null,"Related - US Specialty Non-Prop.",0,null,0,null,null,null,null,null,0,null,0]
["Sch IV","Premium by Line",null,"Related - Health",0,null,0,null,null,null,null,null,0,null,0]
["Sch IV","Premium by Line",null,"NPW - Credit Surety Non-Prop.",0,null,0,null,null,null,null,null,0,null,0]
["Sch IV","Premium by Line",null,"NPW - US Specialty",0,null,0,null,null,null,null,null,0,null,0]
["Sch IV","Premium by Line",null,"NPW - Int'l Motor",0,null,0,null,null,null,null,null,0,null,0]
["Sch IVC","Premium by Zone",null,"NPW Zn 1 - Property Catastrophe",null,null,null,null,null,null,null,null,0]
["Sch IVC","Premium by Zone",null,"NPW Zn 1 - US Casualty Non-Prop.",null,null,null,null,null,null,null,null,0]
["Sch IVC","Premium by Zone",null,"NPW Zn 1 - Int'l Motor",null,null,null,null,null,null,null,null,0]
["Sch IVC","Premium by Zone",null,"NPW Zn 2 - Property",null,null,null,null,null,null,null,null,0]
["Sch IVC","Premium by Zone",null,"NPW Zn 2 - Energy Non-Proportional",null,null,null,null,null,null,null,null,0]
["Sch IVC","Premium by Zone",null,"NPW Zn 2 - Int'l Motor Non-Prop.",null,null,null,null,null,null,null,null,0]
["Sch IVC","Premium by Zone",null,"NPW Zn 3 - Property Non-Proportion",null,null,null,null,null,null,null,null,0]
["Sch IVC","Premium by Zone",null,"NPW Zn 3 - Credit Surety Non-Prop.",null,null,null,null,null,null,null,null,0]
["Sch IVC","Premium by Zone",null,"NPW Zn 3 - US Casualty",null,null,null,null,null,null,null,null,0]
["Sch IVC","Premium by Zone",null,"NPW Zn 3 - Int'l Casualty Non-Prop.",null,null,null,null,null,null,null,null,0]
["Sch IVC","Premium by Zone",null,"NPW Zn 4 - Personal Accident",null,null,null,null,null,null,null,null,0]
["Sch IVC","Premium by Zone",null,"NPW Zn 4 - US Casualty Non-Prop.",null,null,null,null,null,null,null,null,0]
["Sch IVC","Premium by Zone",null,"NPW Zn 4 - Retro Property",null,null,null,null,null,null,null,null,0]
["Sch IVC","Premium by Zone",null,"NPW Zn 5 - Aviation",null,null,null,null,null,null,null,null,0]
["Sch IVC","Premium by Zone",null,"NPW Zn 5 - Energy Non-Proportional",null,null,null,null,null,null,null,null,0]
["Sch IVC","Premium by Zone",null,"NPW Zn 5 - US Professional Non-Prop.",null,null,null,null,null,null,null,null,0]
["Sch IVC","Premium by Zone",null,"NPW Zn 5 - Health",null,null,null,null,null,null,null,null,0]
["Sch IVC","Premium by Zone",null,"NPW Zn 6 - Credit Surety Non-Prop.",null,null,null,null,null,null,null,null,0]
["Sch IVC","Premium by Zone",null,"NPW Zn 6 - US Specialty",null,null,null,null,null,null,null,null,0]
["Sch IVC","Premium by Zone",null,"NPW Zn 6 - Total",null,null,null,null,null,null,null,null,0]
["Sch IVC","Premium by Zone",null,"NPW Zn 7 - Aviation Non-Proportional",null,null,null,null,null,null,null,null,0]
["Sch IVC","Premium by Zone",null,"NPW Zn 7 - US Specialty Non-Prop.",null,null,null,null,null,null,null,null,0]
["Sch IVC","Premium by Zone",null,"NPW Zn 8 - Property Catastrophe",null,null,null,null,null,null,null,null,0]
["Sch IVC","Premium by Zone",null,"NPW Zn 8 - Property",null,null,null,null,null,null,null,null,0]
["Sch IVC","Premium by Zone",null,"NPW Zn 8 - Energy",null,null,null,null,null,null,null,null,0]
["Sch IVC","Premium by Zone",null,"NPW Zn 8 - Int'l Motor Non-Prop.",null,null,null,null,null,null,null,null,0]
["Sch IVC","Premium by Zone",null,"NPW Zn 8 - Total",null,null,null,null,null,null,null,null,0]
["Sch IVC","Premium by Zone",null,"NPW Zn 9 - Energy Non-Proportional",null,null,null,null,null,null,null,null,0]
["Sch IVC","Premium by Zone",null,"NPW Zn 9 - Int'l Casualty",null,null,null,null,null,null,null,null,0]
["Sch IVC","Premium by Zone",null,"NPW Zn 9 - Structured / Finite R/I",null,null,null,null,null,null,null,null,0]
["Sch IVC","Premium by Zone",null,"NPW Zn 10 - US Casualty",null,null,null,null,null,null,null,null,0]
["Sch IVC","Premium by Zone",null,"NPW Zn 10 - US Casualty Non-Prop.",null,null,null,null,null,null,null,null,0]
["Sch IVC","Premium by Zone",null,"NPW Zn 10 - Int'l Casualty Non-Prop.",null,null,null,null,null,null,null,null,0]
["Sch IVC","Premium by Zone",null,"NPW Zn 11 - Personal Acc. Non Prop.",null,null,null,null,null,null,null,null,0]
["Sch IVC","Premium by Zone",null,"NPW Zn 11 - US Professional",null,null,null,null,null,null,null,null,0]
["Sch IVC","Premium by Zone",null,"NPW Zn 11 - Int'l Motor Non-Prop.",null,null,null,null,null,null,null,null,0]
["Sch IVC","Premium by Zone",null,"NPW Zn 12 - Aviation",null,null,null,null,null,null,null,null,0]
["Sch IVC","Premium by Zone",null,"NPW Zn 12 - US Professional Non-Prop.",null,null,null,null,null,null,null,null,0]
["Sch IVC","Premium by Zone",null,"NPW Zn 12 - US Specialty Non-Prop.",null,null,null,null,null,null,null,null,0]
["Sch IVC","Premium by Zone",null,"NPW Zn 12 - Health",null,null,null,null,null,null,null,null,0]
["Sch IVC","Premium by Zone",null,"NPW Zn 13 - Credit Surety",null,null,null,null,null,null,null,null,0]
["Sch IVC","Premium by Zone",null,"NPW Zn 13 - US Specialty Non-Prop.",null,null,null,null,null,null,null,null,0]
["Sch IVC","Premium by Zone",null,"NPW Zn 14 - Property Non-Proportion",null,null,null,null,null,null,null,null,0]
["Sch IVC","Premium by Zone",null,"NPW Zn 14 - Credit Surety Non-Prop.",null,null,null,null,null,null,null,null,0]
["Sch IVC","Premium by Zone",null,"NPW Zn 14 - Int'l Motor",null,null,null,null,null,null,null,null,0]
["Sch IVC","Premium by Zone",null,"NPW Zn 15 - Property Catastrophe",null,null,null,null,null,null,null,null,0]
["Sch IVC","Premium by Zone",null,"NPW Zn 15 - Energy",null,null,null,null,null,null,null,null,0]
["Sch IVC","Premium by Zone",null,"NPW Zn 15 - Energy Non-Proportional",null,null,null,null,null,null,null,null,0]
["Sch IVC","Premium by Zone",null,"NPW Zn 15 - Health",null,null,null,null,null,null,null,null,0]
["Sch IVC","Premium by Zone",null,"NPW Zn 16 - Property Non-Proportion",null,null,null,null,null,null,null,null,0]
["Sch IVC","Premium by Zone",null,"NPW Zn 16 - US Casualty",null,null,null,null,null,null,null,null,0]
["Sch IVC","Premium by Zone",null,"NPW Zn 16 - Retro Property",null,null,null,null,null,null,null,null,0]
["Sch IVC","Premium by Zone",null,"NPW Zn 17 - Personal Accident",null,null,null,null,null,null,null,null,0]
["Sch IVC","Premium by Zone",null,"NPW Zn 17 - US Casualty Non-Prop.",null,null,null,null,null,null,null,null,0]
["Sch IVC","Premium by Zone",null,"NPW Zn 17 - Int'l Casualty",null,null,null,null,null,null,null,null,0]
["Sch IVC","Premium by Zone",null,"NPW Zn 17 - Retro Property",null,null,null,null,null,null,null,null,0]
["Sch IVC","Premium by Zone",null,"NPW Zn 18 - Aviation",null,null,null,null,null,null,null,null,0]
["Sch IVC","Premium by Zone",null,"NPW Zn 18 - Int'l Motor",null,null,null,null,null,null,null,null,0]
["Sch IVC","Premium by Zone",null,"NPW Zn 18 - Structured / Finite R/I",null,null,null,null,null,null,null,null,0]
["Sch IVD","Exposure by Line",null,"NPE - Est. Next 12 Month - Aviation",null,null,null,null,null,null,null,null,0]
["Sch IVD","Exposure by Line",null,"NPE - Est. Next 12 Month - US Casualty",null,null,null,null,null,null,null,null,0]
["Sch IVD","Exposure by Line",null,"NPE - Est. Next 12 Month - Structured / Finite R/I",null,null,null,null,null,null,null,null,0]
["Sch IVD","Exposure by Line",null,"NPE FP Existing - Aviation Non-Proportional",null,null,null,null,null,null,null,null,0]
["Sch IVD","Exposure by Line",null,"NPE FP Existing - Energy",null,null,null,null,null,null,null,null,0]
["Sch IVD","Exposure by Line",null,"NPE FP Existing - US Specialty",null,null,null,null,null,null,null,null,0]
["Sch IVD","Exposure by Line",null,"NPE FP Existing - Total",null,null,null,null,null,null,null,null,0]
["Sch IVD","Exposure by Line",null,"NPE FP Future - Credit Surety",null,null,null,null,null,null,null,null,0]
["Sch IVD","Exposure by Line",null,"NPE FP Future - US Specialty Non-Prop.",null,null,null,null,null,null,null,null,0]
["Sch IVD","Exposure by Line",null,"Gross Premium Exposure - Property Catastrophe",null,null,null,null,null,null,null,null,0]
["Sch IVD","Exposure by Line",null,"Gross Premium Exposure - Energy",null,null,null,null,null,null,null,null,0]
["Sch IVD","Exposure by Line",null,"Gross Premium Exposure - US Professional Non-Prop.",null,null,null,null,null,null,null,null,0]
["Sch IVD","Exposure by Line",null,"Gross Premium Exposure - Int'l Motor Non-Prop.",null,null,null,null,null,null,null,null,0]
["Sch IVE","Net Prem by Zone",null,"NPE Zn 1 - Property",null,null,null,null,null,null,null,null,0]
["Sch IVE","Net Prem by Zone",null,"NPE Zn 1 - Credit Surety Non-Prop.",null,null,null,null,null,null,null,null,0]
["Sch IVE","Net Prem by Zone",null,"NPE Zn 1 - Int'l Motor Non-Prop.",null,null,null,null,null,null,null,null,0]
["Sch IVE","Net Prem by Zone",null,"NPE Zn 2 - Property Non-Proportion",null,null,null,null,null,null,null,null,0]
["Sch IVE","Net Prem by Zone",null,"NPE Zn 2 - Aviation Non-Proportional",null,null,null,null,null,null,null,null,0]
["Sch IVE","Net Prem by Zone",null,"NPE Zn 2 - Int'l Casualty",null,null,null,null,null,null,null,null,0]
["Sch IVE","Net Prem by Zone",null,"NPE Zn 3 - Personal Accident",null,null,null,null,null,null,null,null,0]
["Sch IVE","Net Prem by Zone",null,"NPE Zn 3 - Personal Acc. Non Prop.",null,null,null,null,null,null,null,null,0]
["Sch IVE","Net Prem by Zone",null,"NPE Zn 3 - US Casualty Non-Prop.",null,null,null,null,null,null,null,null,0]
["Sch IVE","Net Prem by Zone",null,"NPE Zn 3 - Retro Property",null,null,null,null,null,null,null,null,0]
["Sch IVE","Net Prem by Zone",null,"NPE Zn 4 - Property Non-Proportion",null,null,null,null,null,null,null,null,0]
["Sch IVE","Net Prem by Zone",null,"NPE Zn 4 - US Professional",null,null,null,null,null,null,null,null,0]
["Sch IVE","Net Prem by Zone",null,"NPE Zn 4 - Structured / Finite R/I",null,null,null,null,null,null,null,null,0]
["Sch IVE","Net Prem by Zone",null,"NPE Zn 5 - Property Catastrophe",null,null,null,null,null,null,null,null,0]
["Sch IVE","Net Prem by Zone",null,"NPE Zn 5 - US Professional Non-Prop.",null,null,null,null,null,null,null,null,0]
["Sch IVE","Net Prem by Zone",null,"NPE Zn 5 - US Specialty",null,null,null,null,null,null,null,null,0]
["Sch IVE","Net Prem by Zone",null,"NPE Zn 5 - Health",null,null,null,null,null,null,null,null,0]
["Sch IVE","Net Prem by Zone",null,"NPE Zn 6 - Credit Surety",null,null,null,null,null,null,null,null,0]
["Sch IVE","Net Prem by Zone",null,"NPE Zn 6 - US Specialty Non-Prop.",null,null,null,null,null,null,null,null,0]
["Sch IVE","Net Prem by Zone",null,"NPE Zn 6 - Retro Property",null,null,null,null,null,null,null,null,0]
["Sch IVE","Net Prem by Zone",null,"NPE Zn 7 - Credit Surety Non-Prop.",null,null,null,null,null,null,null,null,0]
["Sch IVE","Net Prem by Zone",null,"NPE Zn 7 - Int'l Motor",null,null,null,null,null,null,null,null,0]
["Sch IVE","Net Prem by Zone",null,"NPE Zn 8 - Property",null,null,null,null,null,null,null,null,0]
["Sch IVE","Net Prem by Zone",null,"NPE Zn 8 - Credit Surety",null,null,null,null,null,null,null,null,0]
["Sch IVE","Net Prem by Zone",null,"NPE Zn 8 - Energy Non-Proportional",null,null,null,null,null,null,null,null,0]
["Sch IVE","Net Prem by Zone",null,"NPE Zn 8 - Int'l Casualty",null,null,null,null,null,null,null,null,0]
["Sch IVE","Net Prem by Zone",null,"NPE Zn 9 - Aviation",null,null,null,null,null,null,null,null,0]
["Sch IVE","Net Prem by Zone",null,"NPE Zn 9 - US Casualty",null,null,null,null,null,null,null,null,0]
["Sch IVE","Net Prem by Zone",null,"NPE Zn 9 - Int'l Casualty Non-Prop.",null,null,null,null,null,null,null,null,0]
["Sch IVE","Net Prem by Zone",null,"NPE Zn 10 - Personal Accident",null,null,null,null,null,null,null,null,0]
["Sch IVE","Net Prem by Zone",null,"NPE Zn 10 - US Casualty Non-Prop.",null,null,null,null,null,null,null,null,0]
["Sch IVE","Net Prem by Zone",null,"NPE Zn 10 - US Professional",null,null,null,null,null,null,null,null,0]
["Sch IVE","Net Prem by Zone",null,"NPE Zn 11 - Property",null,null,null,null,null,null,null,null,0]
["Sch IVE","Net Prem by Zone",null,"NPE Zn 11 - Aviation",null,null,null,null,null,null,null,null,0]
["Sch IVE","Net Prem by Zone",null,"NPE Zn 11 - US Professional Non-Prop.",null,null,null,null,null,null,null,null,0]
["Sch IVE","Net Prem by Zone",null,"NPE Zn 11 - Retro Property",null,null,null,null,null,null,null,null,0]
["Sch IVE","Net Prem by Zone",null,"NPE Zn 12 - Aviation Non-Proportional",null,null,null,null,null,null,null,null,0]
["Sch IVE","Net Prem by Zone",null,"NPE Zn 12 - US Specialty",null,null,null,null,null,null,null,null,0]
["Sch IVE","Net Prem by Zone",null,"NPE Zn 12 - Int'l Casualty",null,null,null,null,null,null,null,null,0]
["Sch IVE","Net Prem by Zone",null,"NPE Zn 12 - Total",null,null,null,null,null,null,null,null,0]
["Sch IVE","Net Prem by Zone",null,"NPE Zn 13 - Credit Surety Non-Prop.",null,null,null,null,null,null,null,null,0]
["Sch IVE","Net Prem by Zone",null,"NPE Zn 13 - Int'l Motor",null,null,null,null,null,null,null,null,0]
["Sch IVE","Net Prem by Zone",null,"NPE Zn 14 - Property Catastrophe",null,null,null,null,null,null,null,null,0]
["Sch IVE","Net Prem by Zone",null,"NPE Zn 14 - Energy",null,null,null,null,null,null,null,null,0]
["Sch IVE","Net Prem by Zone",null,"NPE Zn 14 - US Specialty",null,null,null,null,null,null,null,null,0]
["Sch IVE","Net Prem by Zone",null,"NPE Zn 15 - Property",null,null,null,null,null,null,null,null,0]
["Sch IVE","Net Prem by Zone",null,"NPE Zn 15 - Energy Non-Proportional",null,null,null,null,null,null,null,null,0]
["Sch IVE","Net Prem by Zone",null,"NPE Zn 15 - US Professional",null,null,null,null,null,null,null,null,0]
["Sch IVE","Net Prem by Zone",null,"NPE Zn 15 - Int'l Casualty",null,null,null,null,null,null,null,null,0]
["Sch IVE","Net Prem by Zone",null,"NPE Zn 16 - Personal Accident",null,null,null,null,null,null,null,null,0]
["Sch IVE","Net Prem by Zone",null,"NPE Zn 16 - US Casualty Non-Prop.",null,null,null,null,null,null,null,null,0]
["Sch IVE","Net Prem by Zone",null,"NPE Zn 16 - Int'l Motor",null,null,null,null,null,null,null,null,0]
["Sch IVE","Net Prem by Zone",null,"NPE Zn 17 - Personal Acc. Non Prop.",null,null,null,null,null,null,null,null,0]
["Sch IVE","Net Prem by Zone",null,"NPE Zn 17 - US Professional",null,null,null,null,null,null,null,null,0]
["Sch IVE","Net Prem by Zone",null,"NPE Zn 17 - US Specialty",null,null,null,null,null,null,null,null,0]
["Sch IVE","Net Prem by Zone",null,"NPE Zn 17 - Structured / Finite R/I",null,null,null,null,null,null,null,null,0]
["Sch IVE","Net Prem by Zone",null,"NPE Zn 18 - Aviation Non-Proportional",null,null,null,null,null,null,null,null,0]
["Sch IVE","Net Prem by Zone",null,"NPE Zn 18 - US Professional",null,null,null,null,null,null,null,null,0]
["Sch IVE","Net Prem by Zone",null,"NPE Zn 18 - Health",null,null,null,null,null,null,null,null,0]
["Sch IVF","Exposure of Risk",null,"1. # of Subsidiaries - 6.Czechia",null,null,null,null,null,null,null,null,0]
["Sch IVF","Exposure of Risk",null,"1. # of Subsidiaries - 10.France",null,null,null,null,null,null,null,null,0]
["Sch IVF","Exposure of Risk",null,"1. # of Subsidiaries - 23.Romania",null,null,null,null,null,null,null,null,0]
["Sch IVF","Exposure of Risk",null,"1. # of Subsidiaries - 32.United States of America",null,null,null,null,null,null,null,null,0]
["Sch IVF","Exposure of Risk",null,"1. # of Subsidiaries - 33.Canada",null,null,null,null,null,null,null,null,0]
["Sch IVF","Exposure of Risk",null,"2. GPW Cat - 2.Belgium",null,null,null,null,null,null,null,null,0]
["Sch IVF","Exposure of Risk",null,"2. GPW Cat - 11.Germany",null,null,null,null,null,null,null,null,0]
["Sch IVF","Exposure of Risk",null,"2. GPW Cat - 17.Lithuania",null,null,null,null,null,null,null,null,0]
["Sch IVF","Exposure of Risk",null,"2. GPW Cat - 28.Sub Total European Union",null,null,null,null,null,null,null,null,0]
["Sch IVF","Exposure of Risk",null,"2. GPW Cat - 37.Australia",null,null,null,null,null,null,null,null,0]
["Sch IVF","Exposure of Risk",null,"3. GPW Other - 5.Cyprus",null,null,null,null,null,null,null,null,0]
["Sch IVF","Exposure of Risk",null,"3. GPW Other - 15.Italy",null,null,null,null,null,null,null,null,0]
["Sch IVF","Exposure of Risk",null,"3. GPW Other - 16.Latvia",null,null,null,null,null,null,null,null,0]
["Sch IVF","Exposure of Risk",null,"3. GPW Other - 28.Sub Total European Union",null,null,null,null,null,null,null,null,0]
["Sch IVF","Exposure of Risk",null,"3. GPW Other - 33.Canada",null,null,null,null,null,null,null,null,0]
["Sch IVF","Exposure of Risk",null,"4. Ceded Cat - 3.Bulgaria",null,null,null,null,null,null,null,null,0]
["Sch IVF","Exposure of Risk",null,"4. Ceded Cat - 12.Greece",null,null,null,null,null,null,null,null,0]
["Sch IVF","Exposure of Risk",null,"4. Ceded Cat - 20.Netherlands",null,null,null,null,null,null,null,null,0]
["Sch IVF","Exposure of Risk",null,"4. Ceded Cat - 29.Bermuda",null,null,null,null,null,null,null,null,0]
["Sch IVF","Exposure of Risk",null,"4. Ceded Cat - 38.All Other Locations",null,null,null,null,null,null,null,null,0]
["Sch IVF","Exposure of Risk",null,"5. Ceded Other - 5.Cyprus",null,null,null,null,null,null,null,null,0]
["Sch IVF","Exposure of Risk",null,"5. Ceded Other - 8.Estonia",null,null,null,null,null,null,null,null,0]
["Sch IVF","Exposure of Risk",null,"5. Ceded Other - 17.Lithuania",null,null,null,null,null,null,null,null,0]
["Sch IVF","Exposure of Risk",null,"5. Ceded Other - 25.Slovenia",null,null,null,null,null,null,null,null,0]
["Sch IVF","Exposure of Risk",null,"5. Ceded Other - 34.China",null,null,null,null,null,null,null,null,0]
["Sch IVF","Exposure of Risk",null,"6. Losses Cat - 4.Croatia",null,null,null,null,null,null,null,null,0]
["Sch IVF","Exposure of Risk",null,"6. Losses Cat - 9.Finland",null,null,null,null,null,null,null,null,0]
["Sch IVF","Exposure of Risk",null,"6. Losses Cat - 21.Poland",null,null,null,null,null,null,null,null,0]
["Sch IVF","Exposure of Risk",null,"6. Losses Cat - 22.Portugal",null,null,null,null,null,null,null,null,0]
["Sch IVF","Exposure of Risk",null,"6. Losses Cat - 32.United States of America",null,null,null,null,null,null,null,null,0]
["Sch IVF","Exposure of Risk",null,"6. Losses Cat - 39.Total",null,null,null,null,null,null,null,null,0]
["Sch IVF","Exposure of Risk",null,"7. Losses Other - 9.Finland",null,null,null,null,null,null,null,null,0]
["Sch IVF","Exposure of Risk",null,"7. Losses Other - 16.Latvia",null,null,null,null,null,null,null,null,0]
["Sch IVF","Exposure of Risk",null,"7. Losses Other - 26.Spain",null,null,null,null,null,null,null,null,0]
["Sch IVF","Exposure of Risk",null,"7. Losses Other - 35.Japan",null,null,null,null,null,null,null,null,0]
["Sch IVF","Exposure of Risk",null,"7. Losses Other - 39.Total",null,null,null,null,null,null,null,null,0]
["Sch IVF","Exposure of Risk",null,"8. GB Reserves - 5.Cyprus",null,null,null,null,null,null,null,null,0]
["Sch IVF","Exposure of Risk",null,"8. GB Reserves - 14.Ireland",null,null,null,null,null,null,null,null,0]
["Sch IVF","Exposure of Risk",null,"8. GB Reserves - 23.Romania",null,null,null,null,null,null,null,null,0]
["Sch IVF","Exposure of Risk",null,"8. GB Reserves - 31.Switzerland",null,null,null,null,null,null,null,null,0]
[]
["Sch V","Risk Mgmt.",null,"Actual Attritional Loss - Relevant Yr.",null,null,null,null,null,null,null,null,0]
["Sch Va","Governance",null,"Director Name - 1",0]
["Sch Va","Governance",null,"Director Name - 10",0]
["Sch Va","Governance",null,"Director Name - 11",0]
["Sch Va","Governance",null,"Director Name - 19",0]
["Sch Va","Governance",null,"Director Position - 8",0]
["Sch Va","Governance",null,"Director Position - 17",0]
["Sch Va","Governance",null,"Director Residence - 2",0]
["Sch Va","Governance",null,"Director Residence - 14",0]
["Sch Va","Governance",null,"Director Work Experience - 3",0]
["Sch Va","Governance",null,"Director Work Experience - 5",0]
["Sch Va","Governance",null,"Director Work Experience - 12",0]
["Sch Va","Governance",null,"Director Status on Board - 1","Select"]
["Sch Va","Governance",null,"Director Status on Board - 8","Select"]
["Sch Va","Governance",null,"Director Status on Board - 18","Select"]
["Sch Va","Governance",null,"Executive Name - 6",0]
["Sch Va","Governance",null,"Executive Name - 14",0]
["Sch Va","Governance",null,"Executive Position - 3",0]
["Sch Va","Governance",null,"Executive Position - 12",0]
["Sch Va","Governance",null,"Executive Position - 17",0]
["Sch Va","Governance",null,"Executive Residence - 1",0]
["Sch Va","Governance",null,"Executive Residence - 10",0]
["Sch Va","Governance",null,"Executive Residence - 20",0]
["Sch Va","Governance",null,"Executive Work Experience - 7",0]
["Sch Va","Governance",null,"Executive Work Experience - 16",0]
["Sch Va","Governance",null,"Executive Employee Arrangement - 3","Select"]
["Sch Va","Governance",null,"Executive Employee Arrangement - 13","Select"]
["Sch Va","Governance",null,"Executive Employee Arrangement - 14","Select"]
["Sch Va","Governance",null,"Executive Responsibilities - 6","Select"]
["Sch Va","Governance",null,"Executive Responsibilities - 11","Select"]
["Sch Va","Governance",null,"Executive Responsibilities - 20","Select"]
["Sch Va","Governance",null,"BOD Location - LOB Decisions",0]
["Sch Va","Governance",null,"Compliance - Operation in Bermuda","Select Yes/No"]
["Sch Va","Governance",null,"Actuarial - Outsourced","Select Yes/No"]
["Sch Va","Governance",null,"U/W - Name of Provider",0]
["Sch Va","Governance",null,"Actuarial - Name of Provider",0]
["Sch Va","Governance",null,"Services Outsourced - Accounting","Select Yes/No"]
["Sch Va","Governance",null,"Services Outsourced - Compliance","Select Yes/No"]
["Sch Va","Governance",null,"Services in BDA - Prep. SFR/Prudential","Select Yes/No"]
["Sch Va","Governance",null,"Services in BDA - AML/ATF/Sanctions","Select Yes/No"]
["Sch Va","Governance",null,"7c Group BOD-Corp. Struct.- Location",null,null,null,null,null,null,null,null,0]
["Sch Va","Governance",null,"10a Group's Total Assets",null,null,null,null,null,null,null,null,0]
["Sch Va","Governance",null,"Insurer Location - 1",null,null,null,null,null,null,null,null,0]
["Sch Va","Governance",null,"Insurer Location - 2",null,null,null,null,null,null,null,null,0]
["Sch Va","Governance",null,"Insurer Asset - 3",null,null,null,null,null,null,null,null,0]
["Sch Va","Governance",null,"Insurer Reserve - 1",null,null,null,null,null,null,null,null,0]
["Sch Va","Governance",null,"Insurer Capital & Surplus - 1",null,null,null,null,null,null,null,null,0]
["Sch Va","Governance",null,"Insurer Capital & Surplus - 8",null,null,null,null,null,null,null,null,0]
["Sch Vc","Group Structure",null,"Issuer/Borrower Name - 7",0]
["Sch Vc","Group Structure",null,"Issuer/Borrower Name - 16",0]
["Sch Vc","Group Structure",null,"Issuer/Borrower Name - 24",0]
["Sch Vc","Group Structure",null,"Issuer/Borrower Name - 25",0]
["Sch Vc","Group Structure",null,"Issuer Jurisdiction - 9",0]
["Sch Vc","Group Structure",null,"Issuer Jurisdiction - 22",0]
["Sch Vc","Group Structure",null,"Investor/Lender Name - 1",0]
["Sch Vc","Group Structure",null,"Investor/Lender Name - 10",0]
["Sch Vc","Group Structure",null,"Investor/Lender Name - 20",0]
["Sch Vc","Group Structure",null,"Investor Jurisdiction - 2",0]
["Sch Vc","Group Structure",null,"Investor Jurisdiction - 11",0]
["Sch Vc","Group Structure",null,"Investor Jurisdiction - 12",0]
["Sch Vc","Group Structure",null,"Investor Jurisdiction - 20",0]
["Sch Vc","Group Structure",null,"Transaction Details - 4",0]
["Sch Vc","Group Structure",null,"Transaction Details - 13",0]
["Sch Vc","Group Structure",null,"Transaction Details - 18",0]
["Sch Vc","Group Structure",null,"Exposure Value - 5",0]
["Sch Vc","Group Structure",null,"Exposure Value - 14",0]
["Sch Vc","Group Structure",null,"Exposure Value - 20",0]
["Sch Vc","Group Structure",null,"Exposure Value - 23",0]
["Sch Vc","Group Structure",null,"Assuming Party Name - 6",0]
["Sch Vc","Group Structure",null,"Assuming Party Name - 17",0]
["Sch Vc","Group Structure",null,"Assuming Party Name - 23",0]
["Sch Vc","Group Structure",null,"Assuming Party Jurisdiction - 7",0]
["Sch Vc","Group Structure",null,"Assuming Party Jurisdiction - 15",0]
["Sch Vc","Group Structure",null,"Assuming Party Jurisdiction - 24",0]
["Sch Vc","Group Structure",null,"Assuming Party Rating - 8",0]
["Sch Vc","Group Structure",null,"Assuming Party Rating - 13",0]
["Sch Vc","Group Structure",null,"Assuming Party Rating - 17",0]
["Sch Vc","Group Structure",null,"Ceding Party Name - 1",0]
["Sch Vc","Group Structure",null,"Ceding Party Name - 11",0]
["Sch Vc","Group Structure",null,"Ceding Party Name - 18",0]
["Sch Vc","Group Structure",null,"Ceding Party Jurisdiction - 2",0]
["Sch Vc","Group Structure",null,"Ceding Party Jurisdiction - 9",0]
["Sch Vc","Group Structure",null,"Ceding Party Jurisdiction - 19",0]
["Sch Vc","Group Structure",null,"Ceding Party Jurisdiction - 20",0]
["Sch Vc","Group Structure",null,"Ceding Party Rating - 4",0]
["Sch Vc","Group Structure",null,"Ceding Party Rating - 13",0]
["Sch Vc","Group Structure",null,"Ceding Party Rating - 21",0]
["Sch Vc","Group Structure",null,"Gross Exposure Limit - 5",0]
["Sch Vc","Group Structure",null,"Gross Exposure Limit - 11",0]
["Sch Vc","Group Structure",null,"Gross Exposure Limit - 22",0]
["Sch Vc","Group Structure",null,"Net Exposure Limit - 6",0]
["Sch Vc","Group Structure",null,"Net Exposure Limit - 9",0]
["Sch Vc","Group Structure",null,"Net Exposure Limit - 15",0]
["Sch Vc","Group Structure",null,"Net Exposure Limit - 24",0]
["Sch Vc","Group Structure",null,"Gross Premium Written - 7",0]
["Sch Vc","Group Structure",null,"Gross Premium Written - 16",0]
["Sch Vc","Group Structure",null,"Gross Premium Written - 25",0]
["Sch Vc","Group Structure",null,"Net Premium Written - 5",0]
["Sch Vc","Group Structure",null,"Net Premium Written - 17",0]
["Sch Vc","Group Structure",null,"Net Premium Written - 18",0]
["Sch Vc","Group Structure",null,"Counterparty Name - 5",0]
["Sch Vc","Group Structure",null,"Counterparty Name - 8",0]
["Sch Vc","Group Structure",null,"Counterparty Name - 17",0]
["Sch Vc","Group Structure",null,"Counterparty Name - 28",0]
["Sch Vc","Group Structure",null,"Counterparty Name - 34",0]
["Sch Vc","Group Structure",null,"Counterparty Location - 3",0]
["Sch Vc","Group Structure",null,"Counterparty Location - 11",0]
["Sch Vc","Group Structure",null,"Counterparty Location - 12",0]
["Sch Vc","Group Structure",null,"Counterparty Location - 21",0]
["Sch Vc","Group Structure",null,"Counterparty Location - 34",0]
["Sch Vc","Group Structure",null,"Counterparty Location - 38",0]
["Sch Vc","Group Structure",null,"Exposure Fair Value - 7",0]
["Sch Vc","Group Structure",null,"Exposure Fair Value - 16",0]
["Sch Vc","Group Structure",null,"Exposure Fair Value - 23",0]
["Sch Vc","Group Structure",null,"Exposure Fair Value - 33",0]
["Sch Vc","Group Structure",null,"Exposure Fair Value - 34",0]
["Sch Vc","Group Structure",null,"Exposure Market Value - 6",0]
["Sch Vc","Group Structure",null,"Exposure Market Value - 11",0]
["Sch Vc","Group Structure",null,"Exposure Market Value - 20",0]
["Sch Vc","Group Structure",null,"Exposure Market Value - 29",0]
["Sch Vc","Group Structure",null,"Exposure Market Value - 37",0]
["Sch Vc","Group Structure",null,"Transaction Type - 6",0]
["Sch Vc","Group Structure",null,"Transaction Type - 12",0]
["Sch Vc","Group Structure",null,"Transaction Type - 15",0]
["Sch Vc","Group Structure",null,"Transaction Type - 24",0]
["Sch Vc","Group Structure",null,"Transaction Type - 35",0]
[]
["Sch Ve","Scenario Tests",null,"R1 Scenario - Liabilities",null,null,null,null,null,null,null,null,0]
["Sch Ve","Scenario Tests",null,"R5 - Greece",null,null,null,null,null,null,null,null,0]
["Sch Ve","Scenario Tests",null,"Mortgage Loan - Shock 2 Assets",null,null,null,null,null,null,null,null,0]
["Sch Ve","Scenario Tests",null,"Mortgage Loan - GPW - Unrelated - R/I - US",null,null,null,null,null,null,null,null,0]
["Sch Ve","Scenario Tests",null,"Mortgage Loan - NPW - Related - R/I - US",null,null,null,null,null,null,null,null,0]
["Sch Ve","Scenario Tests",null,"Mortgage Loan - NPW - Unrelated - Insurance - US",null,null,null,null,null,null,null,null,0]
["Sch Ve","Scenario Tests",null,"Mortgage Loan - Claims - Related - Total",null,null,null,null,null,null,null,null,0]
["Sch Ve","Scenario Tests",null,"Mortgage Loan - Reserves - Related - R/I - US",null,null,null,null,null,null,null,null,0]
["Sch Ve","Scenario Tests",null,"Mortgage Loan - Risk in Force",null,null,null,null,null,null,null,null,0]
["Sch Ve","Scenario Tests",null,"UW1. Gross Loss ",null,null,null,null,null,null,null,null,0]
["Sch Ve","Scenario Tests",null,"UW5. Gross Loss ",null,null,null,null,null,null,null,null,0]
["Sch Ve","Scenario Tests",null,"N4. Gross Loss ",null,null,null,null,null,null,null,null,0]
["Sch Ve","Scenario Tests",null,"P1. Gross Loss ",null,null,null,null,null,null,null,null,0]
["Sch Ve","Scenario Tests",null,"IW1. Net Loss - After Reinsurance",null,null,null,null,null,null,null,null,0]
["Sch Ve","Scenario Tests",null,"N4. Net Loss - After Reinsurance",null,null,null,null,null,null,null,null,0]
["Sch Ve","Scenario Tests",null,"UE2. Net Loss - Cat Mitigation Tech.",null,null,null,null,null,null,null,null,0]
["Sch Ve","Scenario Tests",null,"N2. Net Loss - Cat Mitigation Tech.",null,null,null,null,null,null,null,null,0]
["Sch Ve","Scenario Tests",null,"UW3. Return Period 1",null,null,null,null,null,null,null,null,0]
["Sch Ve","Scenario Tests",null,"M2. Return Period 1",null,null,null,null,null,null,null,null,0]
["Sch Ve","Scenario Tests",null,"UW5. Return Period 2",null,null,null,null,null,null,null,null,0]
["Sch Ve","Scenario Tests",null,"A1. Return Period 2",null,null,null,null,null,null,null,null,0]
["Sch Ve","Scenario Tests",null,"M2. Return Period 2",null,null,null,null,null,null,null,null,0]
["Sch Ve","Scenario Tests",null,"UW5. Catastrophe Model",null,null,null,null,null,null,null,null,0]
["Sch Ve","Scenario Tests",null,"N3. Catastrophe Model",null,null,null,null,null,null,null,null,0]
["Sch Ve","Scenario Tests",null," Other Scenario - Name 3",null,null,null,null,null,null,null,null,0]
["Sch Ve","Scenario Tests",null," Other - Net Loss 1 - Cat. Mitigation Tech.",null,null,null,null,null,null,null,null,0]
["Sch Ve","Scenario Tests",null," Other - Catastrophe Model -  3",null,null,null,null,null,null,null,null,0]
["Sch Ve","Scenario Tests",null,"Latent Liab - Scen 1 - NPW - Product Liab - Non Pro - US/Canada",null,null,null,null,null,null,null,null,0]
["Sch Ve","Scenario Tests",null,"Latent Liab - Scen 1 - NPW - Product Liab - Non Pro - Japan",null,null,null,null,null,null,null,null,0]
["Sch Ve","Scenario Tests",null,"Latent Liab - Scen 1 - NPW - Gen Comm Liab - Non Pro - Other Developed Mkts",null,null,null,null,null,null,null,null,0]
["Sch Ve","Scenario Tests",null,"Latent Liab - Scen 1 - NPW - Empl. Liab/Workers Comp - Pro - US/Canada",null,null,null,null,null,null,null,null,0]
["Sch Ve","Scenario Tests",null,"Latent Liab - Scen 1 - NPW - Empl. Liab/Workers Comp - Non Pro - Other Developed Mkts",null,null,null,null,null,null,null,null,0]
["Sch Ve","Scenario Tests",null,"Latent Liab - Scen 1 - Prem. Growth - Product Liab - Non Pro - China",null,null,null,null,null,null,null,null,0]
["Sch Ve","Scenario Tests",null,"Latent Liab - Scen 1 - Prem. Growth - Gen Comm Liab - Pro - China",null,null,null,null,null,null,null,null,0]
["Sch Ve","Scenario Tests",null,"Latent Liab - Scen 1 - Prem. Growth - Empl. Liab/Workers Comp - Pro - EEA & Switzerland",null,null,null,null,null,null,null,null,0]
["Sch Ve","Scenario Tests",null,"Latent Liab - Scen 1 - Prem. Growth - Empl. Liab/Workers Comp - Non Pro - Japan",null,null,null,null,null,null,null,null,0]
["Sch Ve","Scenario Tests",null,"Latent Liab - Scen 1 - Prem. Growth - Empl. Liab/Workers Comp - Non Pro - China",null,null,null,null,null,null,null,null,0]
["Sch Ve","Scenario Tests",null,"Latent Liab - Scen 1 - Yr Growth - Product Liab - Non Pro - EEA & Switzerland",null,null,null,null,null,null,null,null,0]
["Sch Ve","Scenario Tests",null,"Latent Liab - Scen 1 - Yr Growth - Gen Comm Liab - Pro - China",null,null,null,null,null,null,null,null,0]
["Sch Ve","Scenario Tests",null,"Latent Liab - Scen 1 - Yr Growth - Empl. Liab/Workers Comp - Pro - US/Canada",null,null,null,null,null,null,null,null,0]
["Sch Ve","Scenario Tests",null,"Latent Liab - Scen 1 - Yr Growth - Empl. Liab/Workers Comp - Non Pro - Japan",null,null,null,null,null,null,null,null,0]
["Sch Ve","Scenario Tests",null,"Latent Liab - Scen 2 - US Asbestos - Cur Yr - Reserves after Inflation",null,null,null,null,null,null,null,null,0]
["Sch Ve","Scenario Tests",null,"Latent Liab - Scen 2 - US Enviro - Cur Yr - Net Paid",null,null,null,null,null,null,null,null,0]
["Sch Ve","Scenario Tests",null,"Latent Liab - Scen 2 - UK Asbestos - Cur Yr - Reserve post claims",null,null,null,null,null,null,null,null,0]
["Sch Ve","Scenario Tests",null,"Latent Liab - Scen 2 - UK Asbestos - Cur Yr - loading for future medical advances",null,null,null,null,null,null,null,null,0]
["Sch Ve","Scenario Tests",null," 2a. Series of Loss - Return Period 2",null,null,null,null,null,null,null,null,0]
["Sch Ve","Scenario Tests",null,"2b. Specific WC Scen.- RP 1",null,null,null,null,null,null,null,null,0]
["Sch Ve","Scenario Tests",null," Terrorism Loss 1 - Country",null,null,null,null,null,null,null,null,0]
["Sch Ve","Scenario Tests",null," Terrorism Loss 2 - TRIP",null,null,null,null,null,null,null,null,0]
["Sch Ve","Scenario Tests",null," Terrorism Loss 3 - R/I Recoverable",null,null,null,null,null,null,null,null,0]
["Sch Ve","Scenario Tests",null," Terrorism Loss 4 - Location",null,null,null,null,null,null,null,null,0]
["Sch Ve","Scenario Tests",null," Terrorism Loss 5 - Net Loss",null,null,null,null,null,null,null,null,0]
["Sch Ve","Scenario Tests",null," Terrorism Loss 6 - Country",null,null,null,null,null,null,null,null,0]
["Sch Ve","Scenario Tests",null," Terrorism Loss 7 - TRIP",null,null,null,null,null,null,null,null,0]
["Sch Ve","Scenario Tests",null," Terrorism Loss 8 - R/I Recoverable",null,null,null,null,null,null,null,null,0]
["Sch Ve","Scenario Tests",null," Terrorism Loss 9 - Location",null,null,null,null,null,null,null,null,0]
["Sch Ve","Scenario Tests",null,"Name of the Parent Bermuda (re)insurer",null,null,null,null,null,null,null,null,0]
["Sch Ve","Scenario Tests",null,"Cyber - 1. Cyber GPW Non-Proportional - Direct",0,null,0,null,null,null,null,null,0,null,0]
["Sch Ve","Scenario Tests",null,"Cyber - 1. Cyber Policies in Force - No - R/I",0,null,0,null,null,null,null,null,0,null,0]
["Sch Ve","Scenario Tests",null,"Cyber - 1. Claims Paid - R/I",0,null,0,null,null,null,null,null,0,null,0]
["Sch Ve","Scenario Tests",null,"Cyber - 1. Cyber Avg. Claims - R/I",0,null,0,null,null,null,null,null,0,null,0]
["Sch Ve","Scenario Tests",null,"Cyber - 1. Net Exp. in Force - Package",0,null,0,null,null,null,null,null,0,null,0]
["Sch Ve","Scenario Tests",null,"Cyber - 1. Cyber Avg. Claims - Package",0,null,0,null,null,null,null,null,0,null,0]
["Sch Ve","Scenario Tests",null,"Cyber - 1. Net Exp. in Force - Related",0,null,0]
["Sch Ve","Scenario Tests",null,"Cyber - 1. Cyber Lrg Claims - Related",0,null,0]
["Sch Ve","Scenario Tests",null,"Cyber - 1. Cyber NPW - Unrelated",0,null,0]
["Sch Ve","Scenario Tests",null,"Cyber - 1. Gross Cyber Limit - Unrelated",0,null,0]
["Sch Ve","Scenario Tests",null,"Cyber - 1. # of Policies Direct - Other",0,null,null,null,null,null,null,null,0]
["Sch Ve","Scenario Tests",null,"Cyber - 1. Cyber GPW-Direct - US",0,null,null,null,null,null,null,null,0]
["Sch Ve","Scenario Tests",null,"Cyber - 1. Cyber NPW-Direct - UK & Europe",0,null,null,null,null,null,null,null,0]
["Sch Ve","Scenario Tests",null,"Cyber - 1. Cyber Net Exposure-Direct - Canada",0,null,null,null,null,null,null,null,0]
["Sch Ve","Scenario Tests",null,"Cyber - 1. Cyber Net Exposure-Direct - Worldwide",0,null,null,null,null,null,null,null,0]
["Sch Ve","Scenario Tests",null,"Cyber - 1. Cyber GPW-R/I - US",0,null,null,null,null,null,null,null,0]
["Sch Ve","Scenario Tests",null,"Cyber - 1. Cyber NPW-R/I - Australia & New Zealand",0,null,null,null,null,null,null,null,0]
["Sch Ve","Scenario Tests",null,"Cyber - 1. Cyber Gross Exposure-R/I - Australia & New Zealand",0,null,null,null,null,null,null,null,0]
["Sch Ve","Scenario Tests",null,"Cyber - 1. Cyber Net Exposure-R/I - Worldwide",0,null,null,null,null,null,null,null,0]
["Sch Ve","Scenario Tests",null,"Cyber - 1. # of Policies Package - Worldwide",0,null,null,null,null,null,null,null,0]
["Sch Ve","Scenario Tests",null,"Cyber - 1. Cyber GPW-Package - US",0,null,null,null,null,null,null,null,0]
["Sch Ve","Scenario Tests",null,"Cyber - 1. Cyber NPW-Package - UK & Europe",0,null,null,null,null,null,null,null,0]
["Sch Ve","Scenario Tests",null,"Cyber - 1. Cyber Net Exposure-Package - US",0,null,null,null,null,null,null,null,0]
["Sch Ve","Scenario Tests",null,"Cyber - 1. Cyber Net Exposure-Package - Worldwide",0,null,null,null,null,null,null,null,0]
["Sch Ve","Scenario Tests",null,"Cyber - 2. Exclusion Clause - Credit/Surety - Non-Proportional",null,null,null,null,null,null,null,null,"Select"]
["Sch Ve","Scenario Tests",null,"Cyber - 2. Exclusion Clause - International Motor",null,null,null,null,null,null,null,null,"Select"]
["Sch Ve","Scenario Tests",null,"Cyber - 2. Current Yr Property Non-Proportional",null,null,null,null,null,null,null,null,0]
["Sch Ve","Scenario Tests",null,"Cyber - 2. Current Yr Personal Accident",null,null,null,null,null,null,null,null,0]
["Sch Ve","Scenario Tests",null,"Cyber - 2. Current Yr International Motor",null,null,null,null,null,null,null,null,0]
["Sch Ve","Scenario Tests",null,"Cyber - 2. Current Yr International Casualty Non-Motor Non-Proportional",null,null,null,null,null,null,null,null,0]
["Sch Ve","Scenario Tests",null,"Cyber - 2. Prior Yr Aviation Non-Proportional",null,null,null,null,null,null,null,null,0]
["Sch Ve","Scenario Tests",null,"Cyber - 2. Prior Yr US Professional Non-Proportional",null,null,null,null,null,null,null,null,0]
["Sch Ve","Scenario Tests",null,"Cyber - 2. Prior Yr Health",null,null,null,null,null,null,null,null,0]
["Sch Ve","Scenario Tests",null,"Cyber - 2. Claims Made or Occurrence -  Energy Offshore/Marine",null,null,null,null,null,null,null,null,"Select from Drop-down"]
["Sch Ve","Scenario Tests",null,"Cyber - 2. Claims Made or Occurrence -  US Professional Non-Proportional",null,null,null,null,null,null,null,null,"Select from Drop-down"]
["Sch Ve","Scenario Tests",null,"Cyber - 2. Claims Made or Occurrence -  International Motor Non-Proportional",null,null,null,null,null,null,null,null,"Select from Drop-down"]
["Sch Ve","Scenario Tests",null,"Cyber - 3. Net Loss Cover - Cloud Outage",null,null,null,null,null,null,null,null,0]
["Sch Ve","Scenario Tests",null,"Cyber - 3. Return Period - Cloud Outage",null,null,null,null,null,null,null,null,0]
["Sch Ve","Scenario Tests",null,"Cyber - 3. 1. Cloud Outage - Gross Coverage - 5. GL / Failure to Supply",null,null,null,null,null,null,null,null,0]
["Sch Ve","Scenario Tests",null,"Cyber - 3. 1. Cloud Outage - Net Coverage - 6. Other Lines",null,null,null,null,null,null,null,null,0]
["Sch Ve","Scenario Tests",null,"Cyber - 3. 2. Ransomware - Net Coverage - 3. Tech. E&O",null,null,null,null,null,null,null,null,0]
["Sch Ve","Scenario Tests",null,"Cyber - 3. 3. Data Breach - Gross Coverage - 4. D&O",null,null,null,null,null,null,null,null,0]
["Sch Ve","Scenario Tests",null,"Cyber - 3. Gross Policy Limits",null,null,null,null,null,null,null,null,0]
["Sch Ve","Scenario Tests",null,"Cyber - 3. Net Policy Limits",null,null,null,null,null,null,null,null,0]
["Sch Ve","Scenario Tests",null,"A5) Utilize a cloud hosting company to host servers","Select Yes/No"]
["Sch Ve","Scenario Tests",null,"A13) Designated IT Risk Manager","Select Yes/No"]
["Sch Ve","Scenario Tests",null,"A17a) Designated Data Privacy Officer details","Confirm role holder's name"]
["Sch Ve","Scenario Tests",null,"B4) 3 lines of defence clearly defined","Select Yes/No"]
["Sch Ve","Scenario Tests",null,"B15) Formal process for software changes","Select Yes/No"]
["Sch Ve","Scenario Tests",null,"C1) Antivirus software installed","Select Yes/No"]
["Sch Ve","Scenario Tests",null,"C4) Internal Vulnerability scanning conducted","Select Yes/No"]
["Sch Ve","Scenario Tests",null,"C8) Internet borne DDOS defence in place","Select Yes/No"]
["Sch Vg","GAAP - BSCR Rec",null,"Assets Fin. Stmts. - Other 4",0]
["Sch Vg","GAAP - BSCR Rec",null,"Liab. Fin. Stmts. - Other 1",0]
["Sch Vg","GAAP - BSCR Rec",null,"Net. Inc. Fin. Stmts. - Goodwill",0]
["Sch Vg","GAAP - BSCR Rec",null,"Capital & Surplus Fin. Stmts. - Open Balance",0]
["Sch Vg","GAAP - BSCR Rec",null,"Assets Form 1SFS - Risk Margin",0]
["Sch Vg","GAAP - BSCR Rec",null,"Assets Form 1SFS - Other 2",0]
["Sch Vg","GAAP - BSCR Rec",null,"Liab. Form 1SFS - Goodwill",0]
["Sch Vg","GAAP - BSCR Rec",null,"Liab. Form 1SFS - Quoted Investments",0]
["Sch Vg","GAAP - BSCR Rec",null,"Liab. Form 1SFS - Other 1",0]
["Sch Vg","GAAP - BSCR Rec",null,"Net Inc. Form 1SFS - Contingent Liabilities",0]
["Sch Vg","GAAP - BSCR Rec",null,"Net Inc. Form 1SFS - Intangible",0]
["Sch Vg","GAAP - BSCR Rec",null,"C&S Form 1SFS - Goodwill",0]
["Sch Vg","GAAP - BSCR Rec",null,"C&S Form 1SFS - Off Balance Sheet Ins.",0]
["Sch Vk","Deposit Details",null,"Name of Exposure - 1",0]
["Sch Vk","Deposit Details",null,"Name of Exposure - 9",0]
["Sch Vk","Deposit Details",null,"Name of Exposure - 10",0]
["Sch Vk","Deposit Details",null,"Name of Exposure - 19",0]
["Sch Vk","Deposit Details",null,"Line of Business - 7",0]
["Sch Vk","Deposit Details",null,"Line of Business - 11",0]
["Sch Vk","Deposit Details",null,"Line of Business - 20",0]
["Sch Vk","Deposit Details",null,"Assets in Trust - 5",0]
["Sch Vk","Deposit Details",null,"Assets in Trust - 12",0]
["Sch Vk","Deposit Details",null,"Assets in Trust - 21",0]
["Sch Vk","Deposit Details",null,"Collateral - 2",0]
["Sch Vk","Deposit Details",null,"Collateral - 4",0]
["Sch Vk","Deposit Details",null,"Collateral - 13",0]
["Sch Vk","Deposit Details",null,"Collateral - 25",0]
["Sch Vk","Deposit Details",null,"GPW for the Period - 4",0]
["Sch Vk","Deposit Details",null,"GPW for the Period - 13",0]
["Sch Vk","Deposit Details",null,"GPW for the Period - 19",0]
["Sch Vk","Deposit Details",null,"NPW for the Period - 4",0]
["Sch Vk","Deposit Details",null,"NPW for the Period - 5",0]
["Sch Vk","Deposit Details",null,"NPW for the Period - 16",0]
["Sch Vk","Deposit Details",null,"NPW for the Period - 22",0]
["Sch Vk","Deposit Details",null,"Exposure - 5",0]
["Sch Vk","Deposit Details",null,"Exposure - 13",0]
["Sch Vk","Deposit Details",null,"Exposure - 22",0]
["Sch Vk","Deposit Details",null,"Limit @ 99.0 TVAR - 5",0]
["Sch Vk","Deposit Details",null,"Limit @ 99.0 TVAR - 14",0]
["Sch Vk","Deposit Details",null,"Limit @ 99.0 TVAR - 19",0]
["Sch Vk","Deposit Details",null,"Limit @ 99.0 TVAR - 23",0]
["Sch Vk","Deposit Details",null,"Unlimited Exposure Details - 6",0]
["Sch Vk","Deposit Details",null,"Unlimited Exposure Details - 13",0]
["Sch Vk","Deposit Details",null,"Unlimited Exposure Details - 23",0]
["Sch V(L)","Segregated Acc","(E)","Quoted: Bonds and Debentures - Cell 1",0]
["Sch V(L)","Segregated Acc","(I)","Funds Held by Ceding Reinsurers - Cell 1",0]
["Sch V(L)","Segregated Acc","(V) ","Capital Returned & Dividends Paid/Payable - Cell 1",0]
["Sch V(L)","Segregated Acc","(W) ","Is Collateral required - Cell 1","Select Yes/No"]
["Sch V(L)","Segregated Acc","(AD) ","Cell to Cell Activity  - Cell 1","Confirm Activity"]
["Sch V(L)","Segregated Acc","(AI) ","Details of Beneficial Owners of Cell - Cell 1","Confirm"]
["Sch V(L)","Segregated Acc","(AP) ","Operational Risk Mitigants - Cell 1","Confirm Mitigants & Attach Support"]
["Sch V(L)","Segregated Acc","(AQ) ","ii) GPW - Cell 1",0]
["Sch V(L)","Segregated Acc","(AQ) ","v) Statutory Line of Business - Cell 1","Select Line of Business"]
["Sch V(L)","Segregated Acc","(F)","Quoted: Equites and Other - Cell 2",0]
["Sch V(L)","Segregated Acc","(I)","Funds Held by Ceding Reinsurers - Cell 2",0]
["Sch V(L)","Segregated Acc","(O)","Statutory Surplus - Cell 2",0]
["Sch V(L)","Segregated Acc","(X) ","Collateral required to be posted by Cell/Insurer - Cell 2",0]
["Sch V(L)","Segregated Acc","(AD) ","Cell to Cell Activity  - Cell 2","Confirm Activity"]
["Sch V(L)","Segregated Acc","(AJ) ","Beneficial Owners - Cell 2","Confirm"]
["Sch V(L)","Segregated Acc","(AQ) ","i) Statutory Line of Business - Cell 2","Select Line of Business"]
["Sch V(L)","Segregated Acc","(AQ) ","ii) GPW - Cell 2",0]
["Sch V(L)","Segregated Acc","(AQ) ","v) GPW - Cell 2",0]
["Sch V(L)","Segregated Acc","(G)","Unquoted: Bonds, and Debentures - Cell 3",0]
["Sch V(L)","Segregated Acc","(M)","Other Liabilities - Cell 3",0]
["Sch V(L)","Segregated Acc","(P)","Gross Premiums Written - Cell 3",0]
["Sch V(L)","Segregated Acc","(Y) ","Actual collateral posted by Cell/Insurer - Cell 3",0]
["Sch V(L)","Segregated Acc","(AE) ","General Cell to Cell Activity - Cell 3","Confirm Activity"]
["Sch V(L)","Segregated Acc","(AM) ","Beneficial Ownership Gov Intrument - Cell 3","Confirm Instrument"]
["Sch V(L)","Segregated Acc","(AQ) ","i) GPW - Cell 3",0]
["Sch V(L)","Segregated Acc","(AQ) ","iii) Premiums Ceded - Cell 3",0]
["Sch V(L)","Segregated Acc","(AQ) ","v) Premiums Ceded - Cell 3",0]
["Sch V(L)","Segregated Acc","(AQ) ","v) NPW - Cell 3",0]
["Sch V(L)","Segregated Acc","(I)","Funds Held by Ceding Reinsurers - Cell 4",0]
["Sch V(L)","Segregated Acc","(V) ","Capital Returned & Dividends Paid/Payable - Cell 4",0]
["Sch V(L)","Segregated Acc","(Z) ","Primary Cell Funding - Cell 4","Select Funding"]
["Sch V(L)","Segregated Acc","(AE.1) ","General Cell to Cell Activity Details - Cell 4",0]
["Sch V(L)","Segregated Acc","(AK) ","Beneficial Ownership - Cell 4","Confirm"]
["Sch V(L)","Segregated Acc","(AQ) ","i) Premiums Ceded - Cell 4",0]
["Sch V(L)","Segregated Acc","(AQ) ","iii) NPW - Cell 4",0]
["Sch V(L)","Segregated Acc","(AQ) ","iv) NPW - Cell 4",0]
["Sch V(L)","Segregated Acc","(A)","Cell Ref # - Cell 5",0]
["Sch V(L)","Segregated Acc","(J)","Other Assets - Cell 5",0]
["Sch V(L)","Segregated Acc","(S) ","Net loss and Loss Expenses Incurred - Cell 5",0]
["Sch V(L)","Segregated Acc","(AA) ","Limit of Cell  Funding/ Collateral - Cell 5","Confirm Funding / Collateral"]
["Sch V(L)","Segregated Acc","(AF) ","Cell Deficit - Cell 5",0]
["Sch V(L)","Segregated Acc","(AK) ","Beneficial Ownership - Cell 5","Confirm"]
["Sch V(L)","Segregated Acc","(AQ) ","i) NPW - Cell 5",0]
["Sch V(L)","Segregated Acc","(AQ) ","ii) Statutory Line of Business - Cell 5","Select Line of Business"]
["Sch V(L)","Segregated Acc","(AQ) ","iv) NPW - Cell 5",0]
["Sch V(L)","Segregated Acc","(B)","Cell name - Cell 6",0]
["Sch V(L)","Segregated Acc","(K)","Unearned Premiums - Cell 6",0]
["Sch V(L)","Segregated Acc","(T) ","Commissions and Brokerage - Cell 6",0]
["Sch V(L)","Segregated Acc","(Y) ","Actual collateral posted by Cell/Insurer - Cell 6",0]
["Sch V(L)","Segregated Acc","(AG) ","Additional Capital Support - Cell 6","Confirm"]
["Sch V(L)","Segregated Acc","(AM.1) ","Beneficial Ownership Gov Intrument Det. - Cell 6",0]
["Sch V(L)","Segregated Acc","(AO) ","Limited recourse  - Cell 6","Select Yes/No"]
["Sch V(L)","Segregated Acc","(AQ) ","ii) GPW - Cell 6",0]
["Sch V(L)","Segregated Acc","(AQ) ","iv) Premiums Ceded - Cell 6",0]
["Sch V(L)","Segregated Acc","(B)","Cell name - Cell 7",0]
["Sch V(L)","Segregated Acc","(L)","Net Loss & Loss Expense Provisions - Cell 7",0]
["Sch V(L)","Segregated Acc","(U) ","Other Expenses - Cell 7",0]
["Sch V(L)","Segregated Acc","(Y) ","Actual collateral posted by Cell/Insurer - Cell 7",0]
["Sch V(L)","Segregated Acc","(AG.1) ","Additional Capital Support Details - Cell 7",0]
["Sch V(L)","Segregated Acc","(AH) ","Details of Beneficial Owners of Risk - Cell 7","Confirm"]
["Sch V(L)","Segregated Acc","(AO) ","Limited recourse  - Cell 7","Select Yes/No"]
["Sch V(L)","Segregated Acc","(AQ) ","ii) Premiums Ceded - Cell 7",0]
["Sch V(L)","Segregated Acc","(AQ) ","iv) NPW - Cell 7",0]
["Sch V(L)","Segregated Acc","(B)","Cell name - Cell 8",0]
["Sch V(L)","Segregated Acc","(M)","Other Liabilities - Cell 8",0]
["Sch V(L)","Segregated Acc","(V) ","Capital Returned & Dividends Paid/Payable - Cell 8",0]
["Sch V(L)","Segregated Acc","(AA.2) ","Limit of Cell  Funding/ Collateral Details - Cell 8",0]
["Sch V(L)","Segregated Acc","(AC) ","currency used - Cell 8","Select Currency"]
["Sch V(L)","Segregated Acc","(AI) ","Details of Beneficial Owners of Cell - Cell 8","Confirm"]
["Sch V(L)","Segregated Acc","(AQ) ","i) Premiums Ceded - Cell 8",0]
["Sch V(L)","Segregated Acc","(AQ) ","ii) NPW - Cell 8",0]
["Sch V(L)","Segregated Acc","(AQ) ","v) Statutory Line of Business - Cell 8","Select Line of Business"]
["Sch V(L)","Segregated Acc","(F)","Quoted: Equites and Other - Cell 9",0]
["Sch V(L)","Segregated Acc","(N)","Statutory Capital - Cell 9",0]
["Sch V(L)","Segregated Acc","(W) ","Is Collateral required - Cell 9","Select Yes/No"]
["Sch V(L)","Segregated Acc","(X) ","Collateral required to be posted by Cell/Insurer - Cell 9",0]
["Sch V(L)","Segregated Acc","(AG.1) ","Additional Capital Support Details - Cell 9",0]
["Sch V(L)","Segregated Acc","(AJ) ","Beneficial Owners - Cell 9","Confirm"]
["Sch V(L)","Segregated Acc","(AQ) ","i) Statutory Line of Business - Cell 9","Select Line of Business"]
["Sch V(L)","Segregated Acc","(AQ) ","iii) Statutory Line of Business - Cell 9","Select Line of Business"]
["Sch V(L)","Segregated Acc","(AQ) ","v) GPW - Cell 9",0]
["Sch V(L)","Segregated Acc","(G)","Unquoted: Bonds, and Debentures - Cell 10",0]
["Sch V(L)","Segregated Acc","(L)","Net Loss & Loss Expense Provisions - Cell 10",0]
["Sch V(L)","Segregated Acc","(P)","Gross Premiums Written - Cell 10",0]
["Sch V(L)","Segregated Acc","(Y) ","Actual collateral posted by Cell/Insurer - Cell 10",0]
["Sch V(L)","Segregated Acc","(AE.1) ","General Cell to Cell Activity Details - Cell 10",0]
["Sch V(L)","Segregated Acc","(AK) ","Beneficial Ownership - Cell 10","Confirm"]
["Sch V(L)","Segregated Acc","(AQ) ","i) GPW - Cell 10",0]
["Sch V(L)","Segregated Acc","(AQ) ","iii) Statutory Line of Business - Cell 10","Select Line of Business"]
["Sch V(L)","Segregated Acc","(AQ) ","v) Premiums Ceded - Cell 10",0]
["Sch V(L)","Segregated Acc","(H)","Investments in and Advances to Affiliates - Cell 11",0]
["Sch V(L)","Segregated Acc","(L)","Net Loss & Loss Expense Provisions - Cell 11",0]
["Sch V(L)","Segregated Acc","(Q)","Net Premiums Written - Cell 11",0]
["Sch V(L)","Segregated Acc","(Z) ","Primary Cell Funding - Cell 11","Select Funding"]
["Sch V(L)","Segregated Acc","(AE.1) ","General Cell to Cell Activity Details - Cell 11",0]
["Sch V(L)","Segregated Acc","(AK.1) ","Beneficial Ownership Add. Details - Cell 11",0]
["Sch V(L)","Segregated Acc","(AQ) ","i) Premiums Ceded - Cell 11",0]
["Sch V(L)","Segregated Acc","(AQ) ","iii) Statutory Line of Business - Cell 11","Select Line of Business"]
["Sch V(L)","Segregated Acc","(AQ) ","v) NPW - Cell 11",0]
["Sch V(L)","Segregated Acc","(A)","Cell Ref # - Cell 12",0]
["Sch V(L)","Segregated Acc","(I)","Funds Held by Ceding Reinsurers - Cell 12",0]
["Sch V(L)","Segregated Acc","(R)","Total Income (Insurance and Other) - Cell 12",0]
["Sch V(L)","Segregated Acc","(AA) ","Limit of Cell Funding/ Collateral - Cell 12","Confirm Funding / Collateral"]
["Sch V(L)","Segregated Acc","(AF) ","Cell Deficit - Cell 12",0]
["Sch V(L)","Segregated Acc","(AJ) ","Beneficial Owners - Cell 12","Confirm"]
["Sch V(L)","Segregated Acc","(AQ) ","i) NPW - Cell 12",0]
["Sch V(L)","Segregated Acc","(AQ) ","iv) Statutory Line of Business - Cell 12","Select Line of Business"]
["Sch V(L)","Segregated Acc","(AQ) ","iv) Premiums Ceded - Cell 12",0]
["Sch V(L)","Segregated Acc","(B)","Cell name - Cell 13",0]
["Sch V(L)","Segregated Acc","(K)","Unearned Premiums - Cell 13",0]
["Sch V(L)","Segregated Acc","(R)","Total Income (Insurance and Other) - Cell 13",0]
["Sch V(L)","Segregated Acc","(AA.1) ","Aggregate Limit Amount - Cell 13",0]
["Sch V(L)","Segregated Acc","(AG) ","Additional Capital Support - Cell 13","Confirm"]
["Sch V(L)","Segregated Acc","(AM) ","Beneficial Ownership Gov Intrument - Cell 13","Confirm Instrument"]
["Sch V(L)","Segregated Acc","(AQ) ","ii) Statutory Line of Business - Cell 13","Select Line of Business"]
["Sch V(L)","Segregated Acc","(AQ) ","ii) GPW - Cell 13",0]
["Sch V(L)","Segregated Acc","(AQ) ","v) Premiums Ceded - Cell 13",0]
["Sch V(L)","Segregated Acc","(C)","Direct Insurer, Reinsurer or Both - Cell 14","Select Premiums Written"]
["Sch V(L)","Segregated Acc","(L)","Net Loss & Loss Expense Provisions - Cell 14",0]
["Sch V(L)","Segregated Acc","(V) ","Capital Returned & Dividends Paid/Payable - Cell 14",0]
["Sch V(L)","Segregated Acc","(AA.2) ","Limit of Cell Funding/ Collateral Details - Cell 14",0]
["Sch V(L)","Segregated Acc","(AG.1) ","Additional Capital Support Details - Cell 14",0]
["Sch V(L)","Segregated Acc","(AM) ","Beneficial Ownership Gov Intrument - Cell 14","Confirm Instrument"]
["Sch V(L)","Segregated Acc","(AN) ","Indemnity Provisions - Cell 14","Select Yes/No"]
["Sch V(L)","Segregated Acc","(AQ) ","ii) Premiums Ceded - Cell 14",0]
["Sch V(L)","Segregated Acc","(AQ) ","v) Premiums Ceded - Cell 14",0]
["Sch V(L)","Segregated Acc","(D)","Cash and Time Deposits - Cell 15",0]
["Sch V(L)","Segregated Acc","(M)","Other Liabilities - Cell 15",0]
["Sch V(L)","Segregated Acc","(V) ","Capital Returned & Dividends Paid/Payable - Cell 15",0]
["Sch V(L)","Segregated Acc","(AA.1) ","Aggregate Limit Amount - Cell 15",0]
["Sch V(L)","Segregated Acc","(AH) ","Details of Beneficial Owners of Risk - Cell 15","Confirm"]
["Sch V(L)","Segregated Acc","(AI) ","Details of Beneficial Owners of Cell 1- Cell 15","Confirm"]
["Sch V(L)","Segregated Acc","(AQ) ","i) GPW - Cell 15",0]
["Sch V(L)","Segregated Acc","(AQ) ","ii) NPW - Cell 15",0]
["Sch V(L)","Segregated Acc","(AQ) ","v) Statutory Line of Business - Cell 15","Select Line of Business"]
["Sch V(L)","Segregated Acc","(E)","Quoted: Bonds and Debentures - Cell 16",0]
["Sch V(L)","Segregated Acc","(N)","Statutory Capital - Cell 16",0]
["Sch V(L)","Segregated Acc","(W) ","Is Collateral required - Cell 16","Select Yes/No"]
["Sch V(L)","Segregated Acc","(AA.1) ","Aggregate Limit Amount - Cell 16",0]
["Sch V(L)","Segregated Acc","(AD) ","Cell to Cell Activity  - Cell 16","Confirm Activity"]
["Sch V(L)","Segregated Acc","(AJ) ","Beneficial Owners - Cell 16","Confirm"]
["Sch V(L)","Segregated Acc","(AQ) ","i) GPW - Cell 16",0]
["Sch V(L)","Segregated Acc","(AQ) ","iii) Statutory Line of Business - Cell 16","Select Line of Business"]
["Sch V(L)","Segregated Acc","(AQ) ","v) GPW - Cell 16",0]
["Sch V(L)","Segregated Acc","(E)","Quoted: Bonds and Debentures - Cell 17",0]
["Sch V(L)","Segregated Acc","(O)","Statutory Surplus - Cell 17",0]
["Sch V(L)","Segregated Acc","(X) ","Collateral required to be posted by Cell/Insurer - Cell 17",0]
["Sch V(L)","Segregated Acc","(Y) ","Actual collateral posted by Cell/Insurer - Cell 17",0]
["Sch V(L)","Segregated Acc","(AD.1) ","Cell to Cell Activity Details - Cell 17",0]
["Sch V(L)","Segregated Acc","(AK) ","Beneficial Ownership - Cell 17","Confirm"]
["Sch V(L)","Segregated Acc","(AO) ","Limited recourse  - Cell 17","Select Yes/No"]
["Sch V(L)","Segregated Acc","(AQ) ","iii) GPW - Cell 17",0]
["Sch V(L)","Segregated Acc","(AQ) ","v) Premiums Ceded - Cell 17",0]
["Sch V(L)","Segregated Acc","(B)","Cell name - Cell 18",0]
["Sch V(L)","Segregated Acc","(P)","Gross Premiums Written - Cell 18",0]
["Sch V(L)","Segregated Acc","(Q)","Net Premiums Written - Cell 18",0]
["Sch V(L)","Segregated Acc","(Z) ","Primary Cell Funding - Cell 18","Select Funding"]
["Sch V(L)","Segregated Acc","(AE) ","General Cell to Cell Activity - Cell 18","Confirm Activity"]
["Sch V(L)","Segregated Acc","(AK.1) ","Beneficial Ownership Add. Details - Cell 18",0]
["Sch V(L)","Segregated Acc","(AQ) ","i) Premiums Ceded - Cell 18",0]
["Sch V(L)","Segregated Acc","(AQ) ","ii) NPW - Cell 18",0]
["Sch V(L)","Segregated Acc","(AQ) ","v) NPW - Cell 18",0]
["Sch V(L)","Segregated Acc","(I)","Funds Held by Ceding Reinsurers - Cell 19",0]
["Sch V(L)","Segregated Acc","(O)","Statutory Surplus - Cell 19",0]
["Sch V(L)","Segregated Acc","(R)","Total Income (Insurance and Other) - Cell 19",0]
["Sch V(L)","Segregated Acc","(AA) ","Limit of Cell Funding/ Collateral - Cell 19","Confirm Funding / Collateral"]
["Sch V(L)","Segregated Acc","(AG.1) ","Additional Capital Support Details - Cell 19",0]
["Sch V(L)","Segregated Acc","(AL) ","Jurisdiction - Cell 19","Confirm Jurisdiction"]
["Sch V(L)","Segregated Acc","(AQ) ","i) NPW - Cell 19",0]
["Sch V(L)","Segregated Acc","(AQ) ","iii) NPW - Cell 19",0]
["Sch V(L)","Segregated Acc","(A)","Cell Ref # - Cell 20",0]
["Sch V(L)","Segregated Acc","(B)","Cell name - Cell 20",0]
["Sch V(L)","Segregated Acc","(O)","Statutory Surplus - Cell 20",0]
["Sch V(L)","Segregated Acc","(S) ","Net loss and Loss Expenses Incurred - Cell 20",0]
["Sch V(L)","Segregated Acc","(AA.1) ","Aggregate Limit Amount - Cell 20",0]
["Sch V(L)","Segregated Acc","(AG.1) ","Additional Capital Support Details - Cell 20",0]
["Sch V(L)","Segregated Acc","(AM) ","Beneficial Ownership Gov Intrument - Cell 20","Confirm Instrument"]
["Sch V(L)","Segregated Acc","(AQ) ","ii) Statutory Line of Business - Cell 20","Select Line of Business"]
["Sch V(L)","Segregated Acc","(AQ) ","iii) NPW - Cell 20",0]
["Sch V(L)","Segregated Acc","(AQ) ","iv) GPW - Cell 20",0]
["Sch V(L)","Segregated Acc","(C)","Direct Insurer, Reinsurer or Both - Cell 21","Select Premiums Written"]
["Sch V(L)","Segregated Acc","(L)","Net Loss & Loss Expense Provisions - Cell 21",0]
["Sch V(L)","Segregated Acc","(T) ","Commissions and Brokerage - Cell 21",0]
["Sch V(L)","Segregated Acc","(AA.2) ","Limit of Cell 2 Funding/ Collateral Details - Cell 21",0]
["Sch V(L)","Segregated Acc","(AG.1) ","Additional Capital Support Details - Cell 21",0]
["Sch V(L)","Segregated Acc","(AL) ","Jurisdiction - Cell 21","Confirm Jurisdiction"]
["Sch V(L)","Segregated Acc","(AQ) ","ii) GPW - Cell 21",0]
["Sch V(L)","Segregated Acc","(AQ) ","ii) Premiums Ceded - Cell 21",0]
["Sch V(L)","Segregated Acc","(AQ) ","v) GPW - Cell 21",0]
["Sch V(L)","Segregated Acc","(D)","Cash and Time Deposits - Cell 22",0]
["Sch V(L)","Segregated Acc","(M)","Other Liabilities - Cell 22",0]
["Sch V(L)","Segregated Acc","(U) ","Other Expenses - Cell 22",0]
["Sch V(L)","Segregated Acc","(AB) ","Cell  in Run-Off - Cell 22","Select Yes/No"]
["Sch V(L)","Segregated Acc","(AH) ","Details of Beneficial Owners of Risk - Cell 22","Confirm"]
["Sch V(L)","Segregated Acc","(AL) ","Jurisdiction - Cell 22","Confirm Jurisdiction"]
["Sch V(L)","Segregated Acc","(AO) ","Limited recourse  - Cell 22","Select Yes/No"]
["Sch V(L)","Segregated Acc","(AQ) ","ii) NPW - Cell 22",0]
["Sch V(L)","Segregated Acc","(AQ) ","iv) Premiums Ceded - Cell 22",0]
["Sch V(L)","Segregated Acc","(E)","Quoted: Bonds and Debentures - Cell 23",0]
["Sch V(L)","Segregated Acc","(N)","Statutory Capital - Cell 23",0]
["Sch V(L)","Segregated Acc","(R)","Total Income (Insurance and Other) - Cell 23",0]
["Sch V(L)","Segregated Acc","(AC) ","currency used - Cell 23","Select Currency"]
["Sch V(L)","Segregated Acc","(AI) ","Details of Beneficial Owners of Cell 2- Cell 23","Confirm"]
["Sch V(L)","Segregated Acc","(AJ) ","Beneficial Owners - Cell 23","Confirm"]
["Sch V(L)","Segregated Acc","(AP) ","Operational Risk Mitigants - Cell 23","Confirm Mitigants & Attach Support"]
["Sch V(L)","Segregated Acc","(AQ) ","iii) Statutory Line of Business - Cell 23","Select Line of Business"]
["Sch V(L)","Segregated Acc","(AQ) ","iv) Premiums Ceded - Cell 23",0]
["Sch V(L)","Segregated Acc","(F)","Quoted: Equites and Other - Cell 24",0]
["Sch V(L)","Segregated Acc","(O)","Statutory Surplus - Cell 24",0]
["Sch V(L)","Segregated Acc","(X) ","Collateral required to be posted by Cell/Insurer - Cell 24",0]
["Sch V(L)","Segregated Acc","(AC) ","currency used - Cell 24","Select Currency"]
["Sch V(L)","Segregated Acc","(AD.1) ","Cell to Cell Activity Details - Cell 24",0]
["Sch V(L)","Segregated Acc","(AK) ","Beneficial Ownership - Cell 24","Confirm"]
["Sch V(L)","Segregated Acc","(AQ) ","ii) Statutory Line of Business - Cell 24","Select Line of Business"]
["Sch V(L)","Segregated Acc","(AQ) ","iii) GPW - Cell 24",0]
["Sch V(L)","Segregated Acc","(AQ) ","v) Premiums Ceded - Cell 24",0]
["Sch V(L)","Segregated Acc","(H)","Investments in and Advances to Affiliates - Cell 25",0]
["Sch V(L)","Segregated Acc","(P)","Gross Premiums Written - Cell 25",0]
["Sch V(L)","Segregated Acc","(Y) ","Actual collateral posted by Cell/Insurer - Cell 25",0]
["Sch V(L)","Segregated Acc","(AC) ","currency used - Cell 25","Select Currency"]
["Sch V(L)","Segregated Acc","(AE) ","General Cell to Cell Activity - Cell 25","Confirm Activity"]
["Sch V(L)","Segregated Acc","(AK.1) ","Beneficial Ownership Add. Details - Cell 25",0]
["Sch V(L)","Segregated Acc","(AQ) ","ii) Statutory Line of Business - Cell 25","Select Line of Business"]
["Sch V(L)","Segregated Acc","(AQ) ","iii) Premiums Ceded - Cell 25",0]
["Sch V(L)","Segregated Acc","(AQ) ","v) NPW - Cell 25",0]
["Sch V(L)","Segregated Acc",null,"i) GPW - Gen Acc.",0]
["Sch V(L)","Segregated Acc",null,"iii) Premiums Ceded - Gen Acc.",0]
["Sch V(L)","Segregated Acc",null,"iii) NPW - Gen Acc.",0]
["Sch V(L)","Segregated Acc",null,"Comment on Statutory Net Income Difference",0]
["Sch V(m)","Alternative Capital",null,"Name of Cedant - 1",0]
["Sch V(m)","Alternative Capital",null,"Name of Cedant - 10",0]
["Sch V(m)","Alternative Capital",null,"Name of Cedant - 17",0]
["Sch V(m)","Alternative Capital",null,"Contract Reference - 2",0]
["Sch V(m)","Alternative Capital",null,"Contract Reference - 11",0]
["Sch V(m)","Alternative Capital",null,"Contract Reference - 15",0]
["Sch V(m)","Alternative Capital",null,"Contract Reference - 20",0]
["Sch V(m)","Alternative Capital",null,"Type of Coverage - 4","Select from Drop Down"]
["Sch V(m)","Alternative Capital",null,"Type of Coverage - 13","Select from Drop Down"]
["Sch V(m)","Alternative Capital",null,"Type of Coverage - 22","Select from Drop Down"]
["Sch V(m)","Alternative Capital",null,"Statutory Line of Business - 5","Select from Drop Down"]
["Sch V(m)","Alternative Capital",null,"Statutory Line of Business - 14","Select from Drop Down"]
["Sch V(m)","Alternative Capital",null,"Statutory Line of Business - 20","Select from Drop Down"]
["Sch V(m)","Alternative Capital",null,"Location of Coverage - 6","Select from Drop Down"]
["Sch V(m)","Alternative Capital",null,"Location of Coverage - 7","Select from Drop Down"]
["Sch V(m)","Alternative Capital",null,"Location of Coverage - 15","Select from Drop Down"]
["Sch V(m)","Alternative Capital",null,"Location of Coverage - 24","Select from Drop Down"]
["Sch V(m)","Alternative Capital",null,"Agg. Max. Limit at Inception - 8",0]
["Sch V(m)","Alternative Capital",null,"Agg. Max. Limit at Inception - 13",0]
["Sch V(m)","Alternative Capital",null,"Agg. Max. Limit at Inception - 25",0]
["Sch V(m)","Alternative Capital",null,"Net Agg. Max. Limit at End of Year - 8",0]
["Sch V(m)","Alternative Capital",null,"Net Agg. Max. Limit at End of Year - 10",0]
["Sch V(m)","Alternative Capital",null,"Net Agg. Max. Limit at End of Year - 17",0]
["Sch V(m)","Alternative Capital",null,"Net Agg. Max. Limit at End of Year - Total",0]
["Sch V(m)","Alternative Capital",null,"Inception Date of Cover Period - 7","00:00:00"]
["Sch V(m)","Alternative Capital",null,"Inception Date of Cover Period - 17","00:00:00"]
["Sch V(m)","Alternative Capital",null,"Effective Date of Contract - 1","00:00:00"]
["Sch V(m)","Alternative Capital",null,"Effective Date of Contract - 5","00:00:00"]
["Sch V(m)","Alternative Capital",null,"Effective Date of Contract - 18","00:00:00"]
["Sch V(m)","Alternative Capital",null,"Expiry Date of Cover - 2","00:00:00"]
["Sch V(m)","Alternative Capital",null,"Expiry Date of Cover - 3","00:00:00"]
["Sch V(m)","Alternative Capital",null,"Expiry Date of Cover - 11","00:00:00"]
["Sch V(m)","Alternative Capital",null,"Expiry Date of Cover - 20","00:00:00"]
["Sch V(m)","Alternative Capital",null,"Cover Period GPW - 1",0]
["Sch V(m)","Alternative Capital",null,"Cover Period GPW - 12",0]
["Sch V(m)","Alternative Capital",null,"Cover Period GPW - 21",0]
["Sch V(m)","Alternative Capital",null,"Cover Period NPW - 4",0]
["Sch V(m)","Alternative Capital",null,"Cover Period NPW - 11",0]
["Sch V(m)","Alternative Capital",null,"Cover Period NPW - 13",0]
["Sch V(m)","Alternative Capital",null,"Cover Period NPW - 22",0]
["Sch V(m)","Alternative Capital",null,"Attachment Point - 8",0]
["Sch V(m)","Alternative Capital",null,"Attachment Point - 13",0]
["Sch V(m)","Alternative Capital",null,"Attachment Point - 22",0]
["Sch V(m)","Alternative Capital",null,"Aggregate Losses Beg. Of Year - 5",0]
["Sch V(m)","Alternative Capital",null,"Aggregate Losses Beg. Of Year - 13",0]
["Sch V(m)","Alternative Capital",null,"Aggregate Losses Beg. Of Year - 22",0]
["Sch V(m)","Alternative Capital",null,"Aggregate Losses Incurred - 2",0]
["Sch V(m)","Alternative Capital",null,"Aggregate Losses Incurred - 5",0]
["Sch V(m)","Alternative Capital",null,"Aggregate Losses Incurred - 14",0]
["Sch V(m)","Alternative Capital",null,"Aggregate Losses Incurred - 22",0]
["Sch V(m)","Alternative Capital",null,"Aggregate Losses End Of Year - 5",0]
["Sch V(m)","Alternative Capital",null,"Aggregate Losses End Of Year - 14",0]
["Sch V(m)","Alternative Capital",null,"Aggregate Losses End Of Year - 19",0]
["Sch V(m)","Alternative Capital",null,"Collateral Reserve Buffer - 5",0]
["Sch V(m)","Alternative Capital",null,"Collateral Reserve Buffer - 6",0]
["Sch V(m)","Alternative Capital",null,"Collateral Reserve Buffer - 16",0]
["Sch V(m)","Alternative Capital",null,"Collateral Reserve Buffer - 23",0]
["Sch V(m)","Alternative Capital",null,"Currency of Exposure - 6","Select from Drop Down"]
["Sch V(m)","Alternative Capital",null,"Currency of Exposure - 13","Select from Drop Down"]
["Sch V(m)","Alternative Capital",null,"Currency of Exposure - 23","Select from Drop Down"]
["Sch V(m)","Alternative Capital",null,"Nature of Collateral - 7","Select from Drop Down"]
["Sch V(m)","Alternative Capital",null,"Nature of Collateral - 16","Select from Drop Down"]
["Sch V(m)","Alternative Capital",null,"Nature of Collateral - 17","Select from Drop Down"]
["Sch V(m)","Alternative Capital",null,"Nature of Collateral - 25","Select from Drop Down"]
["Sch V(m)","Alternative Capital",null,"Collateral Rating - 9","Select from Drop Down"]
["Sch V(m)","Alternative Capital",null,"Collateral Rating - 15","Select from Drop Down"]
["Sch V(m)","Alternative Capital",null,"Amount of Collateral - 1",0]
["Sch V(m)","Alternative Capital",null,"Amount of Collateral - 10",0]
["Sch V(m)","Alternative Capital",null,"Amount of Collateral - 13",0]
["Sch V(m)","Alternative Capital",null,"Comments - 1",0]
["Sch V(m)","Alternative Capital",null,"Comments - 2",0]
["Sch V(m)","Alternative Capital",null,"Comments - 10",0]
["Sch V(m)","Alternative Capital",null,"Comments - 19",0]
["Sch VI","Assets",null,"(A) Cash - # of Asset Types",null,null,null,null,null,null,null,null,0]
["Sch VI","Assets",null,"(A) Cash - Asset Type - 5",null,null,null,null,null,null,null,null,"Select"]
["Sch VI","Assets",null,"(A) Cash - Asset Type - 17",null,null,null,null,null,null,null,null,"Select"]
["Sch VI","Assets",null,"(A) Cash - Jurisdiction - 6",null,null,null,null,null,null,null,null,"Select"]
["Sch VI","Assets",null,"(A) Cash - Jurisdiction - 8",null,null,null,null,null,null,null,null,"Select"]
["Sch VI","Assets",null,"(A) Cash - Jurisdiction - 15",null,null,null,null,null,null,null,null,"Select"]
["Sch VI","Assets",null,"(A) Cash - BSCR Rating - 4",null,null,null,null,null,null,null,null,"Select"]
["Sch VI","Assets",null,"(A) Cash - BSCR Rating - 11",null,null,null,null,null,null,null,null,"Select"]
["Sch VI","Assets",null,"(A) Cash - Face Value - 1",null,null,null,null,null,null,null,null,0]
["Sch VI","Assets",null,"(A) Cash - Face Value - 10",null,null,null,null,null,null,null,null,0]
["Sch VI","Assets",null,"(A) Cash - Face Value - 18",null,null,null,null,null,null,null,null,0]
["Sch VI","Assets",null,"(A) Cash - Fair Value - 7",null,null,null,null,null,null,null,null,0]
["Sch VI","Assets",null,"(A) Cash - Fair Value - 16",null,null,null,null,null,null,null,null,0]
["Sch VI","Assets",null,"(B) Bonds - # of Asset Types",null,null,null,null,null,null,null,null,0]
["Sch VI","Assets",null,"(B) Bonds - Asset Type - 4",null,null,null,null,null,null,null,null,"Select"]
["Sch VI","Assets",null,"(B) Bonds - Asset Type - 13",null,null,null,null,null,null,null,null,"Select"]
["Sch VI","Assets",null,"(B) Bonds - Jurisdiction - 2",null,null,null,null,null,null,null,null,"Select"]
["Sch VI","Assets",null,"(B) Bonds - Jurisdiction - 12",null,null,null,null,null,null,null,null,"Select"]
["Sch VI","Assets",null,"(B) Bonds - Jurisdiction - 19",null,null,null,null,null,null,null,null,"Select"]
["Sch VI","Assets",null,"(B) Bonds - BSCR Rating - 8",null,null,null,null,null,null,null,null,"Select"]
["Sch VI","Assets",null,"(B) Bonds - BSCR Rating - 15",null,null,null,null,null,null,null,null,"Select"]
["Sch VI","Assets",null,"(B) Bonds - BSCR Rating - 17",null,null,null,null,null,null,null,null,"Select"]
["Sch VI","Assets",null,"(B) Bonds - Face Value - 6",null,null,null,null,null,null,null,null,0]
["Sch VI","Assets",null,"(B) Bonds - Face Value - 15",null,null,null,null,null,null,null,null,0]
["Sch VI","Assets",null,"(B) Bonds - Fair Value - 3",null,null,null,null,null,null,null,null,0]
["Sch VI","Assets",null,"(B) Bonds - Fair Value - 12",null,null,null,null,null,null,null,null,0]
["Sch VI","Assets",null,"(B) Bonds - Fair Value - 18",null,null,null,null,null,null,null,null,0]
["Sch VI","Assets",null,"(B) Bonds - Average YTM - 9",null,null,null,null,null,null,null,null,0]
["Sch VI","Assets",null,"(B) Bonds - Average YTM - 18",null,null,null,null,null,null,null,null,0]
["Sch VI","Assets",null,"(B) Bonds - Effective Duration - 1",null,null,null,null,null,null,null,null,0]
["Sch VI","Assets",null,"(B) Bonds - Effective Duration - 7",null,null,null,null,null,null,null,null,0]
["Sch VI","Assets",null,"(B) Bonds - Effective Duration - 16",null,null,null,null,null,null,null,null,0]
["Sch VI","Assets",null,"(B) Bonds - Effective Convexity - 4",null,null,null,null,null,null,null,null,0]
["Sch VI","Assets",null,"(B) Bonds - Effective Convexity - 13",null,null,null,null,null,null,null,null,0]
["Sch VI","Assets",null,"(C) Securities - Asset Type - 1",null,null,null,null,null,null,null,null,"Select"]
["Sch VI","Assets",null,"(C) Securities - Asset Type - 6",null,null,null,null,null,null,null,null,"Select"]
["Sch VI","Assets",null,"(C) Securities - Asset Type - 18",null,null,null,null,null,null,null,null,"Select"]
["Sch VI","Assets",null,"(C) Securities - Asset Type - 19",null,null,null,null,null,null,null,null,"Select"]
["Sch VI","Assets",null,"(C) Securities - Jurisdiction - 9",null,null,null,null,null,null,null,null,"Select"]
["Sch VI","Assets",null,"(C) Securities - Jurisdiction - 16",null,null,null,null,null,null,null,null,"Select"]
["Sch VI","Assets",null,"(C) Securities - BSCR Rating - 5",null,null,null,null,null,null,null,null,"Select"]
["Sch VI","Assets",null,"(C) Securities - BSCR Rating - 12",null,null,null,null,null,null,null,null,"Select"]
["Sch VI","Assets",null,"(C) Securities - Face Value - 2",null,null,null,null,null,null,null,null,0]
["Sch VI","Assets",null,"(C) Securities - Face Value - 11",null,null,null,null,null,null,null,null,0]
["Sch VI","Assets",null,"(C) Securities - Face Value - 20",null,null,null,null,null,null,null,null,0]
["Sch VI","Assets",null,"(C) Securities - Fair Value - 1",null,null,null,null,null,null,null,null,0]
["Sch VI","Assets",null,"(C) Securities - Fair Value - 9",null,null,null,null,null,null,null,null,0]
["Sch VI","Assets",null,"(C) Securities - Fair Value - 18",null,null,null,null,null,null,null,null,0]
["Sch VI","Assets",null,"(C) Securities - Average YTM - 4",null,null,null,null,null,null,null,null,0]
["Sch VI","Assets",null,"(C) Securities - Average YTM - 15",null,null,null,null,null,null,null,null,0]
["Sch VI","Assets",null,"(C) Securities - Effective Duration - 4",null,null,null,null,null,null,null,null,0]
["Sch VI","Assets",null,"(C) Securities - Effective Duration - 7",null,null,null,null,null,null,null,null,0]
["Sch VI","Assets",null,"(C) Securities - Effective Convexity - 1",null,null,null,null,null,null,null,null,0]
["Sch VI","Assets",null,"(C) Securities - Effective Convexity - 2",null,null,null,null,null,null,null,null,0]
["Sch VI","Assets",null,"(C) Securities - Effective Convexity - 10",null,null,null,null,null,null,null,null,0]
["Sch VI","Assets",null,"(C) Securities - Effective Convexity - 19",null,null,null,null,null,null,null,null,0]
["Sch VI","Assets",null,"(D) Equities - Asset Type - 7",null,null,null,null,null,null,null,null,"Select"]
["Sch VI","Assets",null,"(D) Equities - Asset Type - 16",null,null,null,null,null,null,null,null,"Select"]
["Sch VI","Assets",null,"(D) Equities - Stock Exchange - 4",null,null,null,null,null,null,null,null,0]
["Sch VI","Assets",null,"(D) Equities - Stock Exchange - 13",null,null,null,null,null,null,null,null,0]
["Sch VI","Assets",null,"(D) Equities - Stock Exchange - 19",null,null,null,null,null,null,null,null,0]
["Sch VI","Assets",null,"(D) Equities - BSCR Rating - 2",null,null,null,null,null,null,null,null,"Select"]
["Sch VI","Assets",null,"(D) Equities - BSCR Rating - 11",null,null,null,null,null,null,null,null,"Select"]
["Sch VI","Assets",null,"(D) Equities - Face Value - 2",null,null,null,null,null,null,null,null,0]
["Sch VI","Assets",null,"(D) Equities - Face Value - 8",null,null,null,null,null,null,null,null,0]
["Sch VI","Assets",null,"(D) Equities - Face Value - 17",null,null,null,null,null,null,null,null,0]
["Sch VI","Assets",null,"(D) Equities - Fair Value - 5",null,null,null,null,null,null,null,null,0]
["Sch VI","Assets",null,"(D) Equities - Fair Value - 14",null,null,null,null,null,null,null,null,0]
["Sch VI","Assets",null,"(E) Alternative - Asset Type - 2",null,null,null,null,null,null,null,null,"Select"]
["Sch VI","Assets",null,"(E) Alternative - Asset Type - 3",null,null,null,null,null,null,null,null,"Select"]
["Sch VI","Assets",null,"(E) Alternative - Asset Type - 16",null,null,null,null,null,null,null,null,"Select"]
["Sch VI","Assets",null,"(E) Alternative - Asset Type - 20",null,null,null,null,null,null,null,null,"Select"]
["Sch VI","Assets",null,"(E) Alternative - Jurisdiction - 9",null,null,null,null,null,null,null,null,"Select"]
["Sch VI","Assets",null,"(E) Alternative - Jurisdiction - 16",null,null,null,null,null,null,null,null,"Select"]
["Sch VI","Assets",null,"(E) Alternative - BSCR Rating - 6",null,null,null,null,null,null,null,null,"Select"]
["Sch VI","Assets",null,"(E) Alternative - BSCR Rating - 15",null,null,null,null,null,null,null,null,"Select"]
["Sch VI","Assets",null,"(E) Alternative - BSCR Rating - 19",null,null,null,null,null,null,null,null,"Select"]
["Sch VI","Assets",null,"(E) Alternative - Face Value - 4",null,null,null,null,null,null,null,null,0]
["Sch VI","Assets",null,"(E) Alternative - Face Value - 13",null,null,null,null,null,null,null,null,0]
["Sch VI","Assets",null,"(E) Alternative - Fair Value - 2",null,null,null,null,null,null,null,null,0]
["Sch VI","Assets",null,"(E) Alternative - Fair Value - 10",null,null,null,null,null,null,null,null,0]
["Sch VI","Assets",null,"(E) Alternative - Fair Value - 19",null,null,null,null,null,null,null,null,0]
["Sch VI","Assets",null,"(E) Alternative - Average YTM - 5",null,null,null,null,null,null,null,null,0]
["Sch VI","Assets",null,"(E) Alternative - Average YTM - 16",null,null,null,null,null,null,null,null,0]
["Sch VI","Assets",null,"(E) Alternative - Effective Duration - 5",null,null,null,null,null,null,null,null,0]
["Sch VI","Assets",null,"(E) Alternative - Effective Duration - 8",null,null,null,null,null,null,null,null,0]
["Sch VI","Assets",null,"(E) Alternative - Effective Duration - 14",null,null,null,null,null,null,null,null,0]
["Sch VI","Assets",null,"(E) Alternative - Effective Convexity - 3",null,null,null,null,null,null,null,null,0]
["Sch VI","Assets",null,"(E) Alternative - Effective Convexity - 11",null,null,null,null,null,null,null,null,0]
["Sch VI","Assets",null,"(E) Alternative - Effective Convexity - 20",null,null,null,null,null,null,null,null,0]
["Sch VI","Assets",null,"(F) Loans - Asset Type - 8",null,null,null,null,null,null,null,null,"Select"]
["Sch VI","Assets",null,"(F) Loans - Asset Type - 13",null,null,null,null,null,null,null,null,"Select"]
["Sch VI","Assets",null,"(F) Loans - Jurisdiction - 5",null,null,null,null,null,null,null,null,"Select"]
["Sch VI","Assets",null,"(F) Loans - Jurisdiction - 6",null,null,null,null,null,null,null,null,"Select"]
["Sch VI","Assets",null,"(F) Loans - Jurisdiction - 20",null,null,null,null,null,null,null,null,"Select"]
["Sch VI","Assets",null,"(F) Loans - BSCR Rating - 3",null,null,null,null,null,null,null,null,"Select"]
["Sch VI","Assets",null,"(F) Loans - BSCR Rating - 12",null,null,null,null,null,null,null,null,"Select"]
["Sch VI","Assets",null,"(F) Loans - Face Value - 1",null,null,null,null,null,null,null,null,0]
["Sch VI","Assets",null,"(F) Loans - Face Value - 5",null,null,null,null,null,null,null,null,0]
["Sch VI","Assets",null,"(F) Loans - Face Value - 18",null,null,null,null,null,null,null,null,0]
["Sch VI","Assets",null,"(F) Loans - Fair Value - 7",null,null,null,null,null,null,null,null,0]
["Sch VI","Assets",null,"(F) Loans - Fair Value - 8",null,null,null,null,null,null,null,null,0]
["Sch VI","Assets",null,"(F) Loans - Fair Value - 16",null,null,null,null,null,null,null,null,0]
["Sch VI","Assets",null,"(F) Loans - Average YTM - 5",null,null,null,null,null,null,null,null,0]
["Sch VI","Assets",null,"(F) Loans - Average YTM - 11",null,null,null,null,null,null,null,null,0]
["Sch VI","Assets",null,"(F) Loans - Effective Duration - 2",null,null,null,null,null,null,null,null,0]
["Sch VI","Assets",null,"(F) Loans - Effective Duration - 11",null,null,null,null,null,null,null,null,0]
["Sch VI","Assets",null,"(F) Loans - Effective Duration - 18",null,null,null,null,null,null,null,null,0]
["Sch VI","Assets",null,"(F) Loans - Effective Convexity - 8",null,null,null,null,null,null,null,null,0]
["Sch VI","Assets",null,"(F) Loans - Effective Convexity - 9",null,null,null,null,null,null,null,null,0]
["Sch VI","Assets",null,"(G) Real Estate - # of Asset Types",null,null,null,null,null,null,null,null,0]
["Sch VI","Assets",null,"(G) Real Estate - Asset Type - 5",null,null,null,null,null,null,null,null,"Select"]
["Sch VI","Assets",null,"(G) Real Estate - Asset Type - 14",null,null,null,null,null,null,null,null,"Select"]
["Sch VI","Assets",null,"(G) Real Estate - Jurisdiction - 3",null,null,null,null,null,null,null,null,"Select"]
["Sch VI","Assets",null,"(G) Real Estate - Jurisdiction - 11",null,null,null,null,null,null,null,null,"Select"]
["Sch VI","Assets",null,"(G) Real Estate - Jurisdiction - 20",null,null,null,null,null,null,null,null,"Select"]
["Sch VI","Assets",null,"(G) Real Estate - Purpose - 6",null,null,null,null,null,null,null,null,"Select"]
["Sch VI","Assets",null,"(G) Real Estate - Purpose - 9",null,null,null,null,null,null,null,null,"Select"]
["Sch VI","Assets",null,"(G) Real Estate - Purpose - 18",null,null,null,null,null,null,null,null,"Select"]
["Sch VI","Assets",null,"(G) Real Estate - Face Value - 9",null,null,null,null,null,null,null,null,0]
["Sch VI","Assets",null,"(G) Real Estate - Face Value - 15",null,null,null,null,null,null,null,null,0]
["Sch VI","Assets",null,"(G) Real Estate - Fair Value - 4",null,null,null,null,null,null,null,null,0]
["Sch VI","Assets",null,"(G) Real Estate - Fair Value - 12",null,null,null,null,null,null,null,null,0]
["Sch VI","Assets",null,"(H) Derivatives - # of Asset Types",null,null,null,null,null,null,null,null,0]
["Sch VI","Assets",null,"(H) Derivatives - Derivative Type - 9",null,null,null,null,null,null,null,null,"Select"]
["Sch VI","Assets",null,"(H) Derivatives - Derivative Type - 10",null,null,null,null,null,null,null,null,"Select"]
["Sch VI","Assets",null,"(H) Derivatives - Derivative Type - 20",null,null,null,null,null,null,null,null,"Select"]
["Sch VI","Assets",null,"(H) Derivatives - Underlying - 7",null,null,null,null,null,null,null,null,"Select"]
["Sch VI","Assets",null,"(H) Derivatives - Underlying - 16",null,null,null,null,null,null,null,null,"Select"]
["Sch VI","Assets",null,"(H) Derivatives - Purpose - 3",null,null,null,null,null,null,null,null,"Select"]
["Sch VI","Assets",null,"(H) Derivatives - Purpose - 13",null,null,null,null,null,null,null,null,"Select"]
["Sch VI","Assets",null,"(H) Derivatives - Position - 2",null,null,null,null,null,null,null,null,"Select"]
["Sch VI","Assets",null,"(H) Derivatives - Position - 6",null,null,null,null,null,null,null,null,"Select"]
["Sch VI","Assets",null,"(H) Derivatives - Position - 11",null,null,null,null,null,null,null,null,"Select"]
["Sch VI","Assets",null,"(H) Derivatives - Position - 20",null,null,null,null,null,null,null,null,"Select"]
["Sch VI","Assets",null,"(H) Derivatives - Market Value - 9",null,null,null,null,null,null,null,null,0]
["Sch VI","Assets",null,"(H) Derivatives - Market Value - 17",null,null,null,null,null,null,null,null,0]
["Sch VI","Assets",null,"(H) Derivatives - Centrally Cleared - 6",null,null,null,null,null,null,null,null,"Select"]
["Sch VI","Assets",null,"(H) Derivatives - Centrally Cleared - 12",null,null,null,null,null,null,null,null,"Select"]
["Sch VI","Assets",null,"(H) Derivatives - Notional Value - 3",null,null,null,null,null,null,null,null,0]
["Sch VI","Assets",null,"(H) Derivatives - Notional Value - 12",null,null,null,null,null,null,null,null,0]
["Sch VI","Assets",null,"(H) Derivatives - Notional Value - 19",null,null,null,null,null,null,null,null,0]
["Sch VI","Assets",null,"(H) Derivatives - Exposure - 1",null,null,null,null,null,null,null,null,0]
["Sch VI","Assets",null,"(H) Derivatives - Exposure - 10",null,null,null,null,null,null,null,null,0]
["Sch VI","Assets",null,"(I) Other - Asset Type - 1",null,null,null,null,null,null,null,null,"Select"]
["Sch VI","Assets",null,"(I) Other - Asset Type - 6",null,null,null,null,null,null,null,null,"Select"]
["Sch VI","Assets",null,"(I) Other - Asset Type - 15",null,null,null,null,null,null,null,null,"Select"]
["Sch VI","Assets",null,"(I) Other - Jurisdiction - 4",null,null,null,null,null,null,null,null,"Select"]
["Sch VI","Assets",null,"(I) Other - Jurisdiction - 12",null,null,null,null,null,null,null,null,"Select"]
["Sch VI","Assets",null,"(I) Other - Jurisdiction - 13",null,null,null,null,null,null,null,null,"Select"]
["Sch VI","Assets",null,"(I) Other - BSCR Rating - 7",null,null,null,null,null,null,null,null,"Select"]
["Sch VI","Assets",null,"(I) Other - BSCR Rating - 10",null,null,null,null,null,null,null,null,"Select"]
["Sch VI","Assets",null,"(I) Other - BSCR Rating - 19",null,null,null,null,null,null,null,null,"Select"]
["Sch VI","Assets",null,"(I) Other - Face Value - 8",null,null,null,null,null,null,null,null,0]
["Sch VI","Assets",null,"(I) Other - Face Value - 16",null,null,null,null,null,null,null,null,0]
["Sch VI","Assets",null,"(I) Other - Fair Value - 5",null,null,null,null,null,null,null,null,0]
["Sch VI","Assets",null,"(I) Other - Fair Value - 14",null,null,null,null,null,null,null,null,0]
["Sch VI","Assets",null,"(I) Other - Fair Value - 19",null,null,null,null,null,null,null,null,0]
[]
["Sch VIA","Funds Held by Ceding Reinsurers",null,"(A) Cash - Asset Type - 7",null,null,null,null,null,null,null,null,"Select"]
["Sch VIA","Funds Held by Ceding Reinsurers",null,"(A) Cash - Asset Type - 17",null,null,null,null,null,null,null,null,"Select"]
["Sch VIA","Funds Held by Ceding Reinsurers",null,"(A) Cash - Jurisdiction - 4",null,null,null,null,null,null,null,null,"Select"]
["Sch VIA","Funds Held by Ceding Reinsurers",null,"(A) Cash - Jurisdiction - 13",null,null,null,null,null,null,null,null,"Select"]
["Sch VIA","Funds Held by Ceding Reinsurers",null,"(A) Cash - Jurisdiction - 20",null,null,null,null,null,null,null,null,"Select"]
["Sch VIA","Funds Held by Ceding Reinsurers",null,"(A) Cash - BSCR Rating - 10",null,null,null,null,null,null,null,null,"Select"]
["Sch VIA","Funds Held by Ceding Reinsurers",null,"(A) Cash - BSCR Rating - 11",null,null,null,null,null,null,null,null,"Select"]
["Sch VIA","Funds Held by Ceding Reinsurers",null,"(A) Cash - Face Value - 3",null,null,null,null,null,null,null,null,0]
["Sch VIA","Funds Held by Ceding Reinsurers",null,"(A) Cash - Face Value - 8",null,null,null,null,null,null,null,null,0]
["Sch VIA","Funds Held by Ceding Reinsurers",null,"(A) Cash - Face Value - 17",null,null,null,null,null,null,null,null,0]
["Sch VIA","Funds Held by Ceding Reinsurers",null,"(A) Cash - Fair Value - 6",null,null,null,null,null,null,null,null,0]
["Sch VIA","Funds Held by Ceding Reinsurers",null,"(A) Cash - Fair Value - 14",null,null,null,null,null,null,null,null,0]
["Sch VIA","Funds Held by Ceding Reinsurers",null,"(B) Bonds - Asset Type - 2",null,null,null,null,null,null,null,null,"Select"]
["Sch VIA","Funds Held by Ceding Reinsurers",null,"(B) Bonds - Asset Type - 8",null,null,null,null,null,null,null,null,"Select"]
["Sch VIA","Funds Held by Ceding Reinsurers",null,"(B) Bonds - Asset Type - 11",null,null,null,null,null,null,null,null,"Select"]
["Sch VIA","Funds Held by Ceding Reinsurers",null,"(B) Bonds - Asset Type - 20",null,null,null,null,null,null,null,null,"Select"]
["Sch VIA","Funds Held by Ceding Reinsurers",null,"(B) Bonds - Jurisdiction - 8",null,null,null,null,null,null,null,null,"Select"]
["Sch VIA","Funds Held by Ceding Reinsurers",null,"(B) Bonds - Jurisdiction - 17",null,null,null,null,null,null,null,null,"Select"]
["Sch VIA","Funds Held by Ceding Reinsurers",null,"(B) Bonds - BSCR Rating - 6",null,null,null,null,null,null,null,null,"Select"]
["Sch VIA","Funds Held by Ceding Reinsurers",null,"(B) Bonds - BSCR Rating - 15",null,null,null,null,null,null,null,null,"Select"]
["Sch VIA","Funds Held by Ceding Reinsurers",null,"(B) Bonds - BSCR Rating - 20",null,null,null,null,null,null,null,null,"Select"]
["Sch VIA","Funds Held by Ceding Reinsurers",null,"(B) Bonds - Face Value - 12",null,null,null,null,null,null,null,null,0]
["Sch VIA","Funds Held by Ceding Reinsurers",null,"(B) Bonds - Face Value - 13",null,null,null,null,null,null,null,null,0]
["Sch VIA","Funds Held by Ceding Reinsurers",null,"(B) Bonds - Fair Value - 3",null,null,null,null,null,null,null,null,0]
["Sch VIA","Funds Held by Ceding Reinsurers",null,"(B) Bonds - Fair Value - 10",null,null,null,null,null,null,null,null,0]
["Sch VIA","Funds Held by Ceding Reinsurers",null,"(B) Bonds - Fair Value - 19",null,null,null,null,null,null,null,null,0]
["Sch VIA","Funds Held by Ceding Reinsurers",null,"(B) Bonds - Average YTM - 6",null,null,null,null,null,null,null,null,0]
["Sch VIA","Funds Held by Ceding Reinsurers",null,"(B) Bonds - Average YTM - 16",null,null,null,null,null,null,null,null,0]
["Sch VIA","Funds Held by Ceding Reinsurers",null,"(B) Bonds - Effective Duration - 5",null,null,null,null,null,null,null,null,0]
["Sch VIA","Funds Held by Ceding Reinsurers",null,"(B) Bonds - Effective Duration - 13",null,null,null,null,null,null,null,null,0]
["Sch VIA","Funds Held by Ceding Reinsurers",null,"(B) Bonds - Effective Duration - 14",null,null,null,null,null,null,null,null,0]
["Sch VIA","Funds Held by Ceding Reinsurers",null,"(B) Bonds - Effective Convexity - 3",null,null,null,null,null,null,null,null,0]
["Sch VIA","Funds Held by Ceding Reinsurers",null,"(B) Bonds - Effective Convexity - 16",null,null,null,null,null,null,null,null,0]
["Sch VIA","Funds Held by Ceding Reinsurers",null,"(B) Bonds - Effective Convexity - 20",null,null,null,null,null,null,null,null,0]
["Sch VIA","Funds Held by Ceding Reinsurers",null,"(C) Securities - Asset Type - 8",null,null,null,null,null,null,null,null,"Select"]
["Sch VIA","Funds Held by Ceding Reinsurers",null,"(C) Securities - Asset Type - 18",null,null,null,null,null,null,null,null,"Select"]
["Sch VIA","Funds Held by Ceding Reinsurers",null,"(C) Securities - Jurisdiction - 5",null,null,null,null,null,null,null,null,"Select"]
["Sch VIA","Funds Held by Ceding Reinsurers",null,"(C) Securities - Jurisdiction - 14",null,null,null,null,null,null,null,null,"Select"]
["Sch VIA","Funds Held by Ceding Reinsurers",null,"(C) Securities - BSCR Rating - 1",null,null,null,null,null,null,null,null,"Select"]
["Sch VIA","Funds Held by Ceding Reinsurers",null,"(C) Securities - BSCR Rating - 3",null,null,null,null,null,null,null,null,"Select"]
["Sch VIA","Funds Held by Ceding Reinsurers",null,"(C) Securities - BSCR Rating - 12",null,null,null,null,null,null,null,null,"Select"]
["Sch VIA","Funds Held by Ceding Reinsurers",null,"(C) Securities - Face Value - 4",null,null,null,null,null,null,null,null,0]
["Sch VIA","Funds Held by Ceding Reinsurers",null,"(C) Securities - Face Value - 9",null,null,null,null,null,null,null,null,0]
["Sch VIA","Funds Held by Ceding Reinsurers",null,"(C) Securities - Face Value - 18",null,null,null,null,null,null,null,null,0]
["Sch VIA","Funds Held by Ceding Reinsurers",null,"(C) Securities - Fair Value - 7",null,null,null,null,null,null,null,null,0]
["Sch VIA","Funds Held by Ceding Reinsurers",null,"(C) Securities - Fair Value - 15",null,null,null,null,null,null,null,null,0]
["Sch VIA","Funds Held by Ceding Reinsurers",null,"(C) Securities - Fair Value - 16",null,null,null,null,null,null,null,null,0]
["Sch VIA","Funds Held by Ceding Reinsurers",null,"(C) Securities - Average YTM - 5",null,null,null,null,null,null,null,null,0]
["Sch VIA","Funds Held by Ceding Reinsurers",null,"(C) Securities - Average YTM - 16",null,null,null,null,null,null,null,null,0]
["Sch VIA","Funds Held by Ceding Reinsurers",null,"(C) Securities - Effective Duration - 2",null,null,null,null,null,null,null,null,0]
["Sch VIA","Funds Held by Ceding Reinsurers",null,"(C) Securities - Effective Duration - 11",null,null,null,null,null,null,null,null,0]
["Sch VIA","Funds Held by Ceding Reinsurers",null,"(C) Securities - Effective Duration - 19",null,null,null,null,null,null,null,null,0]
["Sch VIA","Funds Held by Ceding Reinsurers",null,"(C) Securities - Effective Convexity - 8",null,null,null,null,null,null,null,null,0]
["Sch VIA","Funds Held by Ceding Reinsurers",null,"(C) Securities - Effective Convexity - 17",null,null,null,null,null,null,null,null,0]
["Sch VIA","Funds Held by Ceding Reinsurers",null,"(D) Equities - Asset Type - 1",null,null,null,null,null,null,null,null,"Select"]
["Sch VIA","Funds Held by Ceding Reinsurers",null,"(D) Equities - Asset Type - 5",null,null,null,null,null,null,null,null,"Select"]
["Sch VIA","Funds Held by Ceding Reinsurers",null,"(D) Equities - Asset Type - 14",null,null,null,null,null,null,null,null,"Select"]
["Sch VIA","Funds Held by Ceding Reinsurers",null,"(D) Equities - Stock Exchange - 4",null,null,null,null,null,null,null,null,0]
["Sch VIA","Funds Held by Ceding Reinsurers",null,"(D) Equities - Stock Exchange - 11",null,null,null,null,null,null,null,null,0]
["Sch VIA","Funds Held by Ceding Reinsurers",null,"(D) Equities - Stock Exchange - 20",null,null,null,null,null,null,null,null,0]
["Sch VIA","Funds Held by Ceding Reinsurers",null,"(D) Equities - BSCR Rating - 7",null,null,null,null,null,null,null,null,"Select"]
["Sch VIA","Funds Held by Ceding Reinsurers",null,"(D) Equities - BSCR Rating - 17",null,null,null,null,null,null,null,null,"Select"]
["Sch VIA","Funds Held by Ceding Reinsurers",null,"(D) Equities - BSCR Rating - 18",null,null,null,null,null,null,null,null,"Select"]
["Sch VIA","Funds Held by Ceding Reinsurers",null,"(D) Equities - Face Value - 7",null,null,null,null,null,null,null,null,0]
["Sch VIA","Funds Held by Ceding Reinsurers",null,"(D) Equities - Face Value - 15",null,null,null,null,null,null,null,null,0]
["Sch VIA","Funds Held by Ceding Reinsurers",null,"(D) Equities - Fair Value - 4",null,null,null,null,null,null,null,null,0]
["Sch VIA","Funds Held by Ceding Reinsurers",null,"(D) Equities - Fair Value - 10",null,null,null,null,null,null,null,null,0]
["Sch VIA","Funds Held by Ceding Reinsurers",null,"(E) Alternative - # of Asset Types",null,null,null,null,null,null,null,null,0]
["Sch VIA","Funds Held by Ceding Reinsurers",null,"(E) Alternative - Asset Type - 9",null,null,null,null,null,null,null,null,"Select"]
["Sch VIA","Funds Held by Ceding Reinsurers",null,"(E) Alternative - Asset Type - 12",null,null,null,null,null,null,null,null,"Select"]
["Sch VIA","Funds Held by Ceding Reinsurers",null,"(E) Alternative - Asset Type - 18",null,null,null,null,null,null,null,null,"Select"]
["Sch VIA","Funds Held by Ceding Reinsurers",null,"(E) Alternative - Jurisdiction - 7",null,null,null,null,null,null,null,null,"Select"]
["Sch VIA","Funds Held by Ceding Reinsurers",null,"(E) Alternative - Jurisdiction - 15",null,null,null,null,null,null,null,null,"Select"]
["Sch VIA","Funds Held by Ceding Reinsurers",null,"(E) Alternative - BSCR Rating - 4",null,null,null,null,null,null,null,null,"Select"]
["Sch VIA","Funds Held by Ceding Reinsurers",null,"(E) Alternative - BSCR Rating - 13",null,null,null,null,null,null,null,null,"Select"]
["Sch VIA","Funds Held by Ceding Reinsurers",null,"(E) Alternative - Face Value - 2",null,null,null,null,null,null,null,null,0]
["Sch VIA","Funds Held by Ceding Reinsurers",null,"(E) Alternative - Face Value - 7",null,null,null,null,null,null,null,null,0]
["Sch VIA","Funds Held by Ceding Reinsurers",null,"(E) Alternative - Face Value - 19",null,null,null,null,null,null,null,null,0]
["Sch VIA","Funds Held by Ceding Reinsurers",null,"(E) Alternative - Face Value - 20",null,null,null,null,null,null,null,null,0]
["Sch VIA","Funds Held by Ceding Reinsurers",null,"(E) Alternative - Fair Value - 14",null,null,null,null,null,null,null,null,0]
["Sch VIA","Funds Held by Ceding Reinsurers",null,"(E) Alternative - Fair Value - 17",null,null,null,null,null,null,null,null,0]
["Sch VIA","Funds Held by Ceding Reinsurers",null,"(E) Alternative - Average YTM - 6",null,null,null,null,null,null,null,null,0]
["Sch VIA","Funds Held by Ceding Reinsurers",null,"(E) Alternative - Average YTM - 17",null,null,null,null,null,null,null,null,0]
["Sch VIA","Funds Held by Ceding Reinsurers",null,"(E) Alternative - Effective Duration - 3",null,null,null,null,null,null,null,null,0]
["Sch VIA","Funds Held by Ceding Reinsurers",null,"(E) Alternative - Effective Duration - 12",null,null,null,null,null,null,null,null,0]
["Sch VIA","Funds Held by Ceding Reinsurers",null,"(E) Alternative - Effective Duration - 20",null,null,null,null,null,null,null,null,0]
["Sch VIA","Funds Held by Ceding Reinsurers",null,"(E) Alternative - Effective Convexity - 1",null,null,null,null,null,null,null,null,0]
["Sch VIA","Funds Held by Ceding Reinsurers",null,"(E) Alternative - Effective Convexity - 10",null,null,null,null,null,null,null,null,0]
["Sch VIA","Funds Held by Ceding Reinsurers",null,"(F) Loans - Asset Type - 2",null,null,null,null,null,null,null,null,"Select"]
["Sch VIA","Funds Held by Ceding Reinsurers",null,"(F) Loans - Asset Type - 6",null,null,null,null,null,null,null,null,"Select"]
["Sch VIA","Funds Held by Ceding Reinsurers",null,"(F) Loans - Asset Type - 15",null,null,null,null,null,null,null,null,"Select"]
["Sch VIA","Funds Held by Ceding Reinsurers",null,"(F) Loans - Jurisdiction - 5",null,null,null,null,null,null,null,null,"Select"]
["Sch VIA","Funds Held by Ceding Reinsurers",null,"(F) Loans - Jurisdiction - 12",null,null,null,null,null,null,null,null,"Select"]
["Sch VIA","Funds Held by Ceding Reinsurers",null,"(F) Loans - BSCR Rating - 1",null,null,null,null,null,null,null,null,"Select"]
["Sch VIA","Funds Held by Ceding Reinsurers",null,"(F) Loans - BSCR Rating - 8",null,null,null,null,null,null,null,null,"Select"]
["Sch VIA","Funds Held by Ceding Reinsurers",null,"(F) Loans - BSCR Rating - 10",null,null,null,null,null,null,null,null,"Select"]
["Sch VIA","Funds Held by Ceding Reinsurers",null,"(F) Loans - BSCR Rating - 19",null,null,null,null,null,null,null,null,"Select"]
["Sch VIA","Funds Held by Ceding Reinsurers",null,"(F) Loans - Face Value - 8",null,null,null,null,null,null,null,null,0]
["Sch VIA","Funds Held by Ceding Reinsurers",null,"(F) Loans - Face Value - 16",null,null,null,null,null,null,null,null,0]
["Sch VIA","Funds Held by Ceding Reinsurers",null,"(F) Loans - Fair Value - 5",null,null,null,null,null,null,null,null,0]
["Sch VIA","Funds Held by Ceding Reinsurers",null,"(F) Loans - Fair Value - 14",null,null,null,null,null,null,null,null,0]
["Sch VIA","Funds Held by Ceding Reinsurers",null,"(F) Loans - Fair Value - 20",null,null,null,null,null,null,null,null,0]
["Sch VIA","Funds Held by Ceding Reinsurers",null,"(F) Loans - Average YTM - 3",null,null,null,null,null,null,null,null,0]
["Sch VIA","Funds Held by Ceding Reinsurers",null,"(F) Loans - Average YTM - 12",null,null,null,null,null,null,null,null,0]
["Sch VIA","Funds Held by Ceding Reinsurers",null,"(F) Loans - Effective Duration - 3",null,null,null,null,null,null,null,null,0]
["Sch VIA","Funds Held by Ceding Reinsurers",null,"(F) Loans - Effective Duration - 9",null,null,null,null,null,null,null,null,0]
["Sch VIA","Funds Held by Ceding Reinsurers",null,"(F) Loans - Effective Duration - 18",null,null,null,null,null,null,null,null,0]
["Sch VIA","Funds Held by Ceding Reinsurers",null,"(F) Loans - Effective Convexity - 6",null,null,null,null,null,null,null,null,0]
["Sch VIA","Funds Held by Ceding Reinsurers",null,"(F) Loans - Effective Convexity - 15",null,null,null,null,null,null,null,null,0]
["Sch VIA","Funds Held by Ceding Reinsurers",null,"(G) Real Estate - Asset Type - 3",null,null,null,null,null,null,null,null,"Select"]
["Sch VIA","Funds Held by Ceding Reinsurers",null,"(G) Real Estate - Asset Type - 8",null,null,null,null,null,null,null,null,"Select"]
["Sch VIA","Funds Held by Ceding Reinsurers",null,"(G) Real Estate - Asset Type - 12",null,null,null,null,null,null,null,null,"Select"]
["Sch VIA","Funds Held by Ceding Reinsurers",null,"(G) Real Estate - Jurisdiction - 1",null,null,null,null,null,null,null,null,"Select"]
["Sch VIA","Funds Held by Ceding Reinsurers",null,"(G) Real Estate - Jurisdiction - 8",null,null,null,null,null,null,null,null,"Select"]
["Sch VIA","Funds Held by Ceding Reinsurers",null,"(G) Real Estate - Jurisdiction - 18",null,null,null,null,null,null,null,null,"Select"]
["Sch VIA","Funds Held by Ceding Reinsurers",null,"(G) Real Estate - Purpose - 7",null,null,null,null,null,null,null,null,"Select"]
["Sch VIA","Funds Held by Ceding Reinsurers",null,"(G) Real Estate - Purpose - 11",null,null,null,null,null,null,null,null,"Select"]
["Sch VIA","Funds Held by Ceding Reinsurers",null,"(G) Real Estate - Face Value - 4",null,null,null,null,null,null,null,null,0]
["Sch VIA","Funds Held by Ceding Reinsurers",null,"(G) Real Estate - Face Value - 5",null,null,null,null,null,null,null,null,0]
["Sch VIA","Funds Held by Ceding Reinsurers",null,"(G) Real Estate - Face Value - 14",null,null,null,null,null,null,null,null,0]
["Sch VIA","Funds Held by Ceding Reinsurers",null,"(G) Real Estate - Fair Value - 2",null,null,null,null,null,null,null,null,0]
["Sch VIA","Funds Held by Ceding Reinsurers",null,"(G) Real Estate - Fair Value - 11",null,null,null,null,null,null,null,null,0]
["Sch VIA","Funds Held by Ceding Reinsurers",null,"(G) Real Estate - Fair Value - 17",null,null,null,null,null,null,null,null,0]
["Sch VIA","Funds Held by Ceding Reinsurers",null,"(H) Derivatives - Derivative Type - 7",null,null,null,null,null,null,null,null,"Select"]
["Sch VIA","Funds Held by Ceding Reinsurers",null,"(H) Derivatives - Derivative Type - 16",null,null,null,null,null,null,null,null,"Select"]
["Sch VIA","Funds Held by Ceding Reinsurers",null,"(H) Derivatives - Derivative Type - 19",null,null,null,null,null,null,null,null,"Select"]
["Sch VIA","Funds Held by Ceding Reinsurers",null,"(H) Derivatives - Underlying - 5",null,null,null,null,null,null,null,null,"Select"]
["Sch VIA","Funds Held by Ceding Reinsurers",null,"(H) Derivatives - Underlying - 14",null,null,null,null,null,null,null,null,"Select"]
["Sch VIA","Funds Held by Ceding Reinsurers",null,"(H) Derivatives - Purpose - 3",null,null,null,null,null,null,null,null,"Select"]
["Sch VIA","Funds Held by Ceding Reinsurers",null,"(H) Derivatives - Purpose - 15",null,null,null,null,null,null,null,null,"Select"]
["Sch VIA","Funds Held by Ceding Reinsurers",null,"(H) Derivatives - Purpose - 20",null,null,null,null,null,null,null,null,"Select"]
["Sch VIA","Funds Held by Ceding Reinsurers",null,"(H) Derivatives - Position - 9",null,null,null,null,null,null,null,null,"Select"]
["Sch VIA","Funds Held by Ceding Reinsurers",null,"(H) Derivatives - Position - 18",null,null,null,null,null,null,null,null,"Select"]
["Sch VIA","Funds Held by Ceding Reinsurers",null,"(H) Derivatives - Market Value - 6",null,null,null,null,null,null,null,null,0]
["Sch VIA","Funds Held by Ceding Reinsurers",null,"(H) Derivatives - Market Value - 7",null,null,null,null,null,null,null,null,0]
["Sch VIA","Funds Held by Ceding Reinsurers",null,"(H) Derivatives - Centrally Cleared - 1",null,null,null,null,null,null,null,null,"Select"]
["Sch VIA","Funds Held by Ceding Reinsurers",null,"(H) Derivatives - Centrally Cleared - 4",null,null,null,null,null,null,null,null,"Select"]
["Sch VIA","Funds Held by Ceding Reinsurers",null,"(H) Derivatives - Centrally Cleared - 13",null,null,null,null,null,null,null,null,"Select"]
["Sch VIA","Funds Held by Ceding Reinsurers",null,"(H) Derivatives - Notional Value - 4",null,null,null,null,null,null,null,null,0]
["Sch VIA","Funds Held by Ceding Reinsurers",null,"(H) Derivatives - Notional Value - 10",null,null,null,null,null,null,null,null,0]
["Sch VIA","Funds Held by Ceding Reinsurers",null,"(H) Derivatives - Notional Value - 19",null,null,null,null,null,null,null,null,0]
["Sch VIA","Funds Held by Ceding Reinsurers",null,"(H) Derivatives - Exposure - 7",null,null,null,null,null,null,null,null,0]
["Sch VIA","Funds Held by Ceding Reinsurers",null,"(H) Derivatives - Exposure - 8",null,null,null,null,null,null,null,null,0]
["Sch VIA","Funds Held by Ceding Reinsurers",null,"(H) Derivatives - Exposure - 17",null,null,null,null,null,null,null,null,0]
["Sch VIA","Funds Held by Ceding Reinsurers",null,"(I) Other - Asset Type - 9",null,null,null,null,null,null,null,null,"Select"]
["Sch VIA","Funds Held by Ceding Reinsurers",null,"(I) Other - Asset Type - 13",null,null,null,null,null,null,null,null,"Select"]
["Sch VIA","Funds Held by Ceding Reinsurers",null,"(I) Other - Jurisdiction - 2",null,null,null,null,null,null,null,null,"Select"]
["Sch VIA","Funds Held by Ceding Reinsurers",null,"(I) Other - Jurisdiction - 9",null,null,null,null,null,null,null,null,"Select"]
["Sch VIA","Funds Held by Ceding Reinsurers",null,"(I) Other - Jurisdiction - 19",null,null,null,null,null,null,null,null,"Select"]
["Sch VIA","Funds Held by Ceding Reinsurers",null,"(I) Other - BSCR Rating - 8",null,null,null,null,null,null,null,null,"Select"]
["Sch VIA","Funds Held by Ceding Reinsurers",null,"(I) Other - BSCR Rating - 12",null,null,null,null,null,null,null,null,"Select"]
["Sch VIA","Funds Held by Ceding Reinsurers",null,"(I) Other - BSCR Rating - 17",null,null,null,null,null,null,null,null,"Select"]
["Sch VIA","Funds Held by Ceding Reinsurers",null,"(I) Other - Face Value - 6",null,null,null,null,null,null,null,null,0]
["Sch VIA","Funds Held by Ceding Reinsurers",null,"(I) Other - Face Value - 15",null,null,null,null,null,null,null,null,0]
["Sch VIA","Funds Held by Ceding Reinsurers",null,"(I) Other - Fair Value - 3",null,null,null,null,null,null,null,null,0]
["Sch VIA","Funds Held by Ceding Reinsurers",null,"(I) Other - Fair Value - 12",null,null,null,null,null,null,null,null,0]
["Sch VIA","Funds Held by Ceding Reinsurers",null,"Portfolio Duration",null,null,null,null,null,null,null,null,0]
["Sch IX(a)","CISSA Capital Summary",null,"Market Risk",null,null,null,null,null,null,null,null,0]
["Sch IX(a)","CISSA Capital Summary",null,"Group, Concentration & Strategic Risk",null,null,null,null,null,null,null,null,0]
["Sch IX(a)","CISSA Capital Summary",null,"1. Reason for CISSA - Business Expansion","Select Yes/No"]
["Sch IX(a)","CISSA Capital Summary",null,"2. Agg. Risk Categories - T-Copulas","Select Yes/No"]
["Sch IX(a)","CISSA Capital Summary",null,"3. Contingency Plan - Preferred Shares","Select Yes/No"]
["Sch IX(a)","CISSA Capital Summary",null,"5. Insurer Issues Downstream Debt ","Select Yes/No"]
["Sch IX(a)","CISSA Capital Summary",null,"7. Restricted Assets",0]
["Sch IX(b)","CISSA General Questions",null,"1. CISSA Used For - Pricing & U/W Guidelines","Select Yes/No"]
["Sch IX(b)","CISSA General Questions",null,"1. CISSA Used For - Others","Select Yes/No"]
["Sch IX(b)","CISSA General Questions",null,"2. Insurer has applied reserve stress testing","Select Yes/No"]
["Sch IX(c)","CISSA Assessment of Material Risks",null,"12b. Governance - BOD review frequency","Select"]
["Sch IX(c)","CISSA Assessment of Material Risks",null,"12j. Internal Controls - Strict Protocols","Select Yes/No"]
["Sch IX(c)","CISSA Assessment of Material Risks",null,"12g. Doc. Comment - Formal Structure",0]
["Sch X(a)","CAT Return - EP Curve Total",null,"Gross Loss - Occurrence - 500 Yrs",null,null,null,null,null,null,null,null,0]
["Sch X(a)","CAT Return - EP Curve Total",null,"Net Loss - Occurrence - 250 Yrs",null,null,null,null,null,null,null,null,0]
["Sch X(a)","CAT Return - EP Curve Total",null,"Net Loss - Aggregate - 100 Yrs",null,null,null,null,null,null,null,null,0]
["Sch X(a)","CAT Return - EP Curve Total",null,"Gross - with Not Determinable TIV",null,null,null,null,null,null,null,null,0]
["Sch X(a)","CAT Return - EP Curve Total",null,"Net - Average Annual Loss",null,null,null,null,null,null,null,null,0]
["Sch X(a)","CAT Return - EP Curve Total",null,"Net - Premium W/O Limit",null,null,null,null,null,null,null,null,0]
["Sch X(a)","CAT Return - EP Curve Total",null,"2. Workers Compensation",null,null,null,null,null,null,null,null,"Select"]
["Sch X(a)","CAT Return - EP Curve Total",null,"2. Other Primary Insurance",null,null,null,null,null,null,null,null,"Select"]
["Sch X(a)","CAT Return - EP Curve Total",null,"4. Voluntary Pools and/or Assessments",null,null,null,null,null,null,null,null,"Select"]
["Sch X(a)","CAT Return - EP Curve Total",null,"6. Losses for Non-Modelled Line of Bus.",null,null,null,null,null,null,null,null,"Select Yes/No"]
[]
["Sch X(b)","CAT Return - EP Curve Insurance",null,"Gross Loss - Aggregate - 500 Yrs",null,null,null,null,null,null,null,null,0]
["Sch X(b)","CAT Return - EP Curve Insurance",null,"Net Loss - Aggregate - 50 Yrs",null,null,null,null,null,null,null,null,0]
["Sch X(b)","CAT Return - EP Curve Insurance",null,"Net Loss - Aggregate - 250 Yrs",null,null,null,null,null,null,null,null,0]
["Sch X(b)","CAT Return - EP Curve Insurance",null,"Gross - All Other Limited - Modelled",null,null,null,null,null,null,null,null,0]
["Sch X(b)","CAT Return - EP Curve Insurance",null,"Net - All Other Limited - Not Modelled",null,null,null,null,null,null,null,null,0]
["Sch X(c)","CAT Return - EP Curve Region Perils",null,"Atlantic Hurricane - Cat. Model Version",null,null,null,null,null,null,null,null,0]
["Sch X(c)","CAT Return - EP Curve Region Perils",null,"Atl. Hurr. - Gross Aggregate - 500 Yrs",null,null,null,null,null,null,null,null,0]
["Sch X(c)","CAT Return - EP Curve Region Perils",null,"Atl. Hurr. - Net Aggregate - 250 Yrs",null,null,null,null,null,null,null,null,0]
["Sch X(c)","CAT Return - EP Curve Region Perils",null,"Atl. Hurr. - Net All Other Premium",null,null,null,null,null,null,null,null,0]
["Sch X(c)","CAT Return - EP Curve Region Perils",null,"Atl. Hurr. - Net Prop. Cat. Limits",null,null,null,null,null,null,null,null,0]
["Sch X(c)","CAT Return - EP Curve Region Perils",null,"NA. EQ. - Net Occurrence - 50 Yrs",null,null,null,null,null,null,null,null,0]
["Sch X(c)","CAT Return - EP Curve Region Perils",null,"NA. EQ. - Net Occurrence - 500 Yrs",null,null,null,null,null,null,null,null,0]
["Sch X(c)","CAT Return - EP Curve Region Perils",null,"NA. EQ. - Gross Prop. Cat. Limits",null,null,null,null,null,null,null,null,0]
["Sch X(c)","CAT Return - EP Curve Region Perils",null,"Eur. Wind - Gross Occurrence - 50 Yrs",null,null,null,null,null,null,null,null,0]
["Sch X(c)","CAT Return - EP Curve Region Perils",null,"Eur. Wind - Gross Aggregate - 1,000 Yrs",null,null,null,null,null,null,null,null,0]
["Sch X(c)","CAT Return - EP Curve Region Perils",null,"Eur. Wind - Net Aggregate - 500 Yrs",null,null,null,null,null,null,null,null,0]
["Sch X(c)","CAT Return - EP Curve Region Perils",null,"Eur. Wind - Gross All Other Limits",null,null,null,null,null,null,null,null,0]
["Sch X(c)","CAT Return - EP Curve Region Perils",null,"Eur. Wind - Net All Other Limits",null,null,null,null,null,null,null,null,0]
["Sch X(c)","CAT Return - EP Curve Region Perils",null,"Japan EQ. - Gross Aggregate - 100 Yrs",null,null,null,null,null,null,null,null,0]
["Sch X(c)","CAT Return - EP Curve Region Perils",null,"Japan EQ. - Net Aggregate - 100 Yrs",null,null,null,null,null,null,null,null,0]
["Sch X(c)","CAT Return - EP Curve Region Perils",null,"Japan EQ. - Gross All Other Limits",null,null,null,null,null,null,null,null,0]
["Sch X(c)","CAT Return - EP Curve Region Perils",null,"Jpn. Typ. - Gross Occurrence - 250 Yrs",null,null,null,null,null,null,null,null,0]
["Sch X(c)","CAT Return - EP Curve Region Perils",null,"Jpn. Typ. - Gross Aggregate - 1,000 Yrs",null,null,null,null,null,null,null,null,0]
["Sch X(c)","CAT Return - EP Curve Region Perils",null,"Jpn. Typ. - Net Aggregate - 1,000 Yrs",null,null,null,null,null,null,null,null,0]
[]
["Sch X(d)","CAT Return - Region Perils Exposure to Zones and Lines of Business",null,"Atlantic Hurricane - Zone 4",null,null,null,null,null,null,null,null,"Select Yes/No"]
["Sch X(d)","CAT Return - Region Perils Exposure to Zones and Lines of Business",null,"Atlantic Hurricane - Zone 9",null,null,null,null,null,null,null,null,"Select Yes/No"]
["Sch X(d)","CAT Return - Region Perils Exposure to Zones and Lines of Business",null,"North American Earthquake - Zone 5",null,null,null,null,null,null,null,null,"Select Yes/No"]
["Sch X(d)","CAT Return - Region Perils Exposure to Zones and Lines of Business",null,"European Windstorm - Zone 1",null,null,null,null,null,null,null,null,"Select Yes/No"]
["Sch X(d)","CAT Return - Region Perils Exposure to Zones and Lines of Business",null,"European Windstorm - Zone 7",null,null,null,null,null,null,null,null,"Select Yes/No"]
["Sch X(d)","CAT Return - Region Perils Exposure to Zones and Lines of Business",null,"Japan Earthquake - Zone 5",null,null,null,null,null,null,null,null,"Select Yes/No"]
["Sch X(d)","CAT Return - Region Perils Exposure to Zones and Lines of Business",null,"Japan Typhoon - Zone 1",null,null,null,null,null,null,null,null,"Select Yes/No"]
["Sch X(d)","CAT Return - Region Perils Exposure to Zones and Lines of Business",null,"Japan Typhoon - Zone 4",null,null,null,null,null,null,null,null,"Select Yes/No"]
["Sch X(d)","CAT Return - Region Perils Exposure to Zones and Lines of Business",null,"Japan Typhoon - Zone 10",null,null,null,null,null,null,null,null,"Select Yes/No"]
["Sch X(d)","CAT Return - Region Perils Exposure to Zones and Lines of Business",null,"All Other - Zone 6",null,null,null,null,null,null,null,null,"Select Yes/No"]
["Sch X(d)","CAT Return - Region Perils Exposure to Zones and Lines of Business",null,"Atlantic Hurricane - Line 1",null,null,null,null,null,null,null,null,"Select Yes/No"]
["Sch X(d)","CAT Return - Region Perils Exposure to Zones and Lines of Business",null,"Atlantic Hurricane - Line 10",null,null,null,null,null,null,null,null,"Select Yes/No"]
["Sch X(d)","CAT Return - Region Perils Exposure to Zones and Lines of Business",null,"Atlantic Hurricane - Line 19",null,null,null,null,null,null,null,null,"Select Yes/No"]
["Sch X(d)","CAT Return - Region Perils Exposure to Zones and Lines of Business",null,"Atlantic Hurricane - Line 24",null,null,null,null,null,null,null,null,"Select Yes/No"]
["Sch X(d)","CAT Return - Region Perils Exposure to Zones and Lines of Business",null,"North American Earthquake - Line 12",null,null,null,null,null,null,null,null,"Select Yes/No"]
["Sch X(d)","CAT Return - Region Perils Exposure to Zones and Lines of Business",null,"North American Earthquake - Line 21",null,null,null,null,null,null,null,null,"Select Yes/No"]
["Sch X(d)","CAT Return - Region Perils Exposure to Zones and Lines of Business",null,"North American Earthquake - Line 23",null,null,null,null,null,null,null,null,"Select Yes/No"]
["Sch X(d)","CAT Return - Region Perils Exposure to Zones and Lines of Business",null,"European Windstorm - Line 6",null,null,null,null,null,null,null,null,"Select Yes/No"]
["Sch X(d)","CAT Return - Region Perils Exposure to Zones and Lines of Business",null,"European Windstorm - Line 15",null,null,null,null,null,null,null,null,"Select Yes/No"]
["Sch X(d)","CAT Return - Region Perils Exposure to Zones and Lines of Business",null,"European Windstorm - Line 22",null,null,null,null,null,null,null,null,"Select Yes/No"]
["Sch X(d)","CAT Return - Region Perils Exposure to Zones and Lines of Business",null,"Japan Earthquake - Line 8",null,null,null,null,null,null,null,null,"Select Yes/No"]
["Sch X(d)","CAT Return - Region Perils Exposure to Zones and Lines of Business",null,"Japan Earthquake - Line 17",null,null,null,null,null,null,null,null,"Select Yes/No"]
["Sch X(d)","CAT Return - Region Perils Exposure to Zones and Lines of Business",null,"Japan Typhoon - Line 1",null,null,null,null,null,null,null,null,"Select Yes/No"]
["Sch X(d)","CAT Return - Region Perils Exposure to Zones and Lines of Business",null,"Japan Typhoon - Line 10",null,null,null,null,null,null,null,null,"Select Yes/No"]
["Sch X(d)","CAT Return - Region Perils Exposure to Zones and Lines of Business",null,"Japan Typhoon - Line 11",null,null,null,null,null,null,null,null,"Select Yes/No"]
["Sch X(d)","CAT Return - Region Perils Exposure to Zones and Lines of Business",null,"Japan Typhoon - Line 24",null,null,null,null,null,null,null,null,"Select Yes/No"]
["Sch X(d)","CAT Return - Region Perils Exposure to Zones and Lines of Business",null,"All Other - Line 4",null,null,null,null,null,null,null,null,"Select Yes/No"]
["Sch X(d)","CAT Return - Region Perils Exposure to Zones and Lines of Business",null,"All Other - Line 13",null,null,null,null,null,null,null,null,"Select Yes/No"]
["Sch X(d)","CAT Return - Region Perils Exposure to Zones and Lines of Business",null,"All Other - Line 23",null,null,null,null,null,null,null,null,"Select Yes/No"]
["Sch X(e)","CAT Return - Accumulations Overview",null,"Q4. Internal Catastrophe Models",null,null,null,null,null,null,null,null,"Select Yes/No"]
[]
["Sch X(f)","CAT Return - Data Analysis",null,"1. All - Total - US - Net Limit",null,null,null,null,null,null,null,null,0]
["Sch X(f)","CAT Return - Data Analysis",null,"1. All - Modelable - Other - Net Limit",null,null,null,null,null,null,null,null,0]
["Sch X(f)","CAT Return - Data Analysis",null,"1. All - Total - Other - Net Limit",null,null,null,null,null,null,null,null,0]
["Sch X(f)","CAT Return - Data Analysis",null,"2. Modelable - Total - US - Net Limit",null,null,null,null,null,null,null,null,0]
["Sch X(f)","CAT Return - Data Analysis",null,"2. Modelable - Total - Other -Net Limit",null,null,null,null,null,null,null,null,0]
["Sch X(f)","CAT Return - Data Analysis",null,"3. Modelled - Agg. Data - US - Gross Limit",null,null,null,null,null,null,null,null,0]
["Sch X(f)","CAT Return - Data Analysis",null,"3. Modelled - Other - US - Net Limit",null,null,null,null,null,null,null,null,0]
["Sch X(f)","CAT Return - Data Analysis",null,"3. Modelled - Other - Other - Contract",null,null,null,null,null,null,null,null,0]
["Sch X(f)","CAT Return - Data Analysis",null,"3. Modelled - Ind. Loss Curve - Other - Net Limit",null,null,null,null,null,null,null,null,0]
["Sch X(f)","CAT Return - Data Analysis",null,"3. Modelled - Other - Other - Net Limit",null,null,null,null,null,null,null,null,0]
["Sch X(f)","CAT Return - Data Analysis",null,"4. Not Modelled - Data Deficient - US - Net Limit",null,null,null,null,null,null,null,null,0]
["Sch X(f)","CAT Return - Data Analysis",null,"4. Not Modelled - Other - Other - Contract",null,null,null,null,null,null,null,null,0]
["Sch X(f)","CAT Return - Data Analysis",null,"4. Not Modelled - Total - Other - Net Limit",null,null,null,null,null,null,null,null,0]
["Sch X(f)","CAT Return - Data Analysis",null,"6. Unable Model - Data Deficient - US - Gross Limit",null,null,null,null,null,null,null,null,0]
["Sch X(f)","CAT Return - Data Analysis",null,"6. Unable Model - Total - US - Net Limit",null,null,null,null,null,null,null,null,0]
["Sch X(f)","CAT Return - Data Analysis",null,"6. Unable Model - Other - Other - Gross Limit",null,null,null,null,null,null,null,null,0]
["Sch X(f)","CAT Return - Data Analysis",null,"6. Unable Model - Other - Other - Net Limit",null,null,null,null,null,null,null,null,0]
["Sch X(f)","CAT Return - Data Analysis",null,"Q8 Contracts Not Modelable, Acc. Details",null,null,null,null,null,null,null,null,0]
["Sch X(g)","CAT Return - Reinsurance Disclosures",null,"US - Premium - Property Retro Contracts",null,null,null,null,null,null,null,null,0]
["Sch X(g)","CAT Return - Reinsurance Disclosures",null,"US - Occuren. - Property Retro Contracts",null,null,null,null,null,null,null,null,0]
["Sch X(g)","CAT Return - Reinsurance Disclosures",null,"World - Premium - Property Cat. Contracts",null,null,null,null,null,null,null,null,0]
["Sch X(g)","CAT Return - Reinsurance Disclosures",null,"World - Occuren. - Other Method Risk Mitigation",null,null,null,null,null,null,null,null,0]
["Sch X(g)","CAT Return - Reinsurance Disclosures",null,"World - Occuren. - Total",null,null,null,null,null,null,null,null,0]
["Sch X(g)","CAT Return - Reinsurance Disclosures",null,"Other - Premium - Total",null,null,null,null,null,null,null,null,0]
["Sch X(g)","CAT Return - Reinsurance Disclosures",null,"Other - Occuren. - Surplus Share Contracts",null,null,null,null,null,null,null,null,0]
["Sch X(g)","CAT Return - Reinsurance Disclosures",null,"Other - Occuren. - Total",null,null,null,null,null,null,null,null,0]
["Sch X(h)","CAT Return - Insurance Terrorism Exposure",null,"Insurance - Convent. Terrorism - State 7",null,null,null,null,null,null,null,null,0]
["Sch X(h)","CAT Return - Insurance Terrorism Exposure",null,"Insurance - Convent. Terrorism - Country 5",null,null,null,null,null,null,null,null,0]
["Sch X(h)","CAT Return - Insurance Terrorism Exposure",null,"Insurance - Convent. Terrorism - Property Exposure 4",null,null,null,null,null,null,null,null,0]
["Sch X(h)","CAT Return - Insurance Terrorism Exposure",null,"Insurance - Convent. Terrorism - Property Exposure 10",null,null,null,null,null,null,null,null,0]
["Sch X(h)","CAT Return - Insurance Terrorism Exposure",null,"Insurance - Convent. Terrorism - TRIP Recover. 1",null,null,null,null,null,null,null,null,0]
["Sch X(h)","CAT Return - Insurance Terrorism Exposure",null,"Insurance - Convent. Terrorism - TRIP Recover. 10",null,null,null,null,null,null,null,null,0]
["Sch X(h)","CAT Return - Insurance Terrorism Exposure",null,"Insurance - Convent. Terrorism - R/I Recover. 3",null,null,null,null,null,null,null,null,0]
["Sch X(h)","CAT Return - Insurance Terrorism Exposure",null,"Insurance - Convent. Terrorism - R/I Recover. 9",null,null,null,null,null,null,null,null,0]
["Sch X(h)","CAT Return - Insurance Terrorism Exposure",null,"Insurance - Convent. Terrorism - Net Exposure 8",null,null,null,null,null,null,null,null,0]
["Sch X(h)","CAT Return - Insurance Terrorism Exposure",null,"Insurance - Convent. Terrorism - Location 6",null,null,null,null,null,null,null,null,0]
["Sch X(h)","CAT Return - Insurance Terrorism Exposure",null,"Insurance - NBCR Terrorism - State 5",null,null,null,null,null,null,null,null,0]
["Sch X(h)","CAT Return - Insurance Terrorism Exposure",null,"Insurance - NBCR Terrorism - Country 4",null,null,null,null,null,null,null,null,0]
["Sch X(h)","CAT Return - Insurance Terrorism Exposure",null,"Insurance - NBCR Terrorism - Property Exposure 3",null,null,null,null,null,null,null,null,0]
["Sch X(h)","CAT Return - Insurance Terrorism Exposure",null,"Insurance - NBCR Terrorism - Gross Exposure 1",null,null,null,null,null,null,null,null,0]
["Sch X(h)","CAT Return - Insurance Terrorism Exposure",null,"Insurance - NBCR Terrorism - Gross Exposure 10",null,null,null,null,null,null,null,null,0]
["Sch X(h)","CAT Return - Insurance Terrorism Exposure",null,"Insurance - NBCR Terrorism - TRIP Recover. 6",null,null,null,null,null,null,null,null,0]
["Sch X(h)","CAT Return - Insurance Terrorism Exposure",null,"Insurance - NBCR Terrorism - TRIP Recover. 9",null,null,null,null,null,null,null,null,0]
["Sch X(h)","CAT Return - Insurance Terrorism Exposure",null,"Insurance - NBCR Terrorism - R/I Recover. 8",null,null,null,null,null,null,null,null,0]
["Sch X(h)","CAT Return - Insurance Terrorism Exposure",null,"Insurance - NBCR Terrorism - Net Exposure 9",null,null,null,null,null,null,null,null,0]
["Sch X(i)","CAT Return - Reinsurance Terrorism Exposure",null,"Reins. - Convent. Terrorism - State 4",null,null,null,null,null,null,null,null,0]
["Sch X(i)","CAT Return - Reinsurance Terrorism Exposure",null,"Reins. - Convent. Terrorism - Country 3",null,null,null,null,null,null,null,null,0]
["Sch X(i)","CAT Return - Reinsurance Terrorism Exposure",null,"Reins. - Convent. Terrorism - Property Exposure 1",null,null,null,null,null,null,null,null,0]
["Sch X(i)","CAT Return - Reinsurance Terrorism Exposure",null,"Reins. - Convent. Terrorism - Property Exposure 10",null,null,null,null,null,null,null,null,0]
["Sch X(i)","CAT Return - Reinsurance Terrorism Exposure",null,"Reins. - Convent. Terrorism - Gross Exposure 1",null,null,null,null,null,null,null,null,0]
["Sch X(i)","CAT Return - Reinsurance Terrorism Exposure",null,"Reins. - Convent. Terrorism - TRIP Recover. 4",null,null,null,null,null,null,null,null,0]
["Sch X(i)","CAT Return - Reinsurance Terrorism Exposure",null,"Reins. - Convent. Terrorism - TRIP Recover. 8",null,null,null,null,null,null,null,null,0]
["Sch X(i)","CAT Return - Reinsurance Terrorism Exposure",null,"Reins. - Convent. Terrorism - R/I Recover. 7",null,null,null,null,null,null,null,null,0]
["Sch X(i)","CAT Return - Reinsurance Terrorism Exposure",null,"Reins. - Convent. Terrorism - Net Exposure 6",null,null,null,null,null,null,null,null,0]
["Sch X(i)","CAT Return - Reinsurance Terrorism Exposure",null,"Reins. - NBCR Terrorism - State 3",null,null,null,null,null,null,null,null,0]
["Sch X(i)","CAT Return - Reinsurance Terrorism Exposure",null,"Reins. - NBCR Terrorism - Country 3",null,null,null,null,null,null,null,null,0]
["Sch X(i)","CAT Return - Reinsurance Terrorism Exposure",null,"Reins. - NBCR Terrorism - Property Exposure 2",null,null,null,null,null,null,null,null,0]
["Sch X(i)","CAT Return - Reinsurance Terrorism Exposure",null,"Reins. - NBCR Terrorism - Property Exposure 6",null,null,null,null,null,null,null,null,0]
["Sch X(i)","CAT Return - Reinsurance Terrorism Exposure",null,"Reins. - NBCR Terrorism - Gross Exposure 1",null,null,null,null,null,null,null,null,0]
["Sch X(i)","CAT Return - Reinsurance Terrorism Exposure",null,"Reins. - NBCR Terrorism - Gross Exposure 10",null,null,null,null,null,null,null,null,0]
["Sch X(i)","CAT Return - Reinsurance Terrorism Exposure",null,"Reins. - NBCR Terrorism - TRIP Recover. 9",null,null,null,null,null,null,null,null,0]
["Sch X(i)","CAT Return - Reinsurance Terrorism Exposure",null,"Reins. - NBCR Terrorism - R/I Recover. 7",null,null,null,null,null,null,null,null,0]
["Sch X(i)","CAT Return - Reinsurance Terrorism Exposure",null,"Reins. - NBCR Terrorism - Net Exposure 6",null,null,null,null,null,null,null,null,0]
["Sch X(j)","CAT Return - Assumed Exchange Rates",null,"Currency - USD",null,null,null,null,null,null,null,null,"USD"]
["Sch X(j)","CAT Return - Assumed Exchange Rates",null,"Exchange Rate - USD",null,null,null,null,null,null,null,null,1]
["Sch X(j)","CAT Return - Assumed Exchange Rates",null,"Exchange Rate - USD:Eur",null,null,null,null,null,null,null,null,0]
["Sch XI(a)(i)","Loss Triangles - Property Catastrophe",null,{"$f":"\"Prop Cat - Incurred - Line 1 - \"&$E$2-9&\" - Prior\"","v":"Prop Cat - Incurred - Line 1 - 2013 - Prior"},null,null,null,null,null,null,null,null,0]
["Sch XI(a)(i)","Loss Triangles - Property Catastrophe",null,{"$f":"\"Prop Cat - Incurred - Line 2 - \"&$E$2-7&\" - \"&$E$2-9","v":"Prop Cat - Incurred - Line 2 - 2015 - 2013"},null,null,null,null,null,null,null,null,0]
["Sch XI(a)(i)","Loss Triangles - Property Catastrophe",null,{"$f":"\"Prop Cat - Incurred - Line 2 - \"&$E$2-5&\" - \"&$E$2-9","v":"Prop Cat - Incurred - Line 2 - 2017 - 2013"},null,null,null,null,null,null,null,null,0]
["Sch XI(a)(i)","Loss Triangles - Property Catastrophe",null,{"$f":"\"Prop Cat - Incurred - Line 4 - \"&$E$2-4&\" - \"&$E$2-7","v":"Prop Cat - Incurred - Line 4 - 2018 - 2015"},null,null,null,null,null,null,null,null,0]
["Sch XI(a)(i)","Loss Triangles - Property Catastrophe",null,{"$f":"\"Prop Cat - Incurred - Line 6 - \"&$E$2-3&\" - \"&$E$2-5","v":"Prop Cat - Incurred - Line 6 - 2019 - 2017"},null,null,null,null,null,null,null,null,0]
["Sch XI(a)(i)","Loss Triangles - Property Catastrophe",null,{"$f":"\"Prop Cat - Incurred - Line 7 - \"&$E$2-2&\" - \"&$E$2-4","v":"Prop Cat - Incurred - Line 7 - 2020 - 2018"},null,null,null,null,null,null,null,null,0]
["Sch XI(a)(i)","Loss Triangles - Property Catastrophe",null,{"$f":"\"Prop Cat - Incurred - Line 3 - \"&$E$2-1&\" - \"&$E$2-8","v":"Prop Cat - Incurred - Line 3 - 2021 - 2014"},null,null,null,null,null,null,null,null,0]
["Sch XI(a)(i)","Loss Triangles - Property Catastrophe",null,{"$f":"\"Prop Cat - Incurred - Line 7 - \"&$E$2-1&\" - \"&$E$2-4","v":"Prop Cat - Incurred - Line 7 - 2021 - 2018"},null,null,null,null,null,null,null,null,0]
["Sch XI(a)(i)","Loss Triangles - Property Catastrophe",null,{"$f":"\"Prop Cat - Incurred - Line 6 - \"&$E$2&\" - \"&$E$2-5","v":"Prop Cat - Incurred - Line 6 - 2022 - 2017"},null,null,null,null,null,null,null,null,0]
["Sch XI(a)(i)","Loss Triangles - Property Catastrophe",null,{"$f":"\"Prop Cat - Incurred - Line 2 - Cat Loss. - \"&$E$2-9","v":"Prop Cat - Incurred - Line 2 - Cat Loss. - 2013"},null,null,null,null,null,null,null,null,0]
["Sch XI(a)(i)","Loss Triangles - Property Catastrophe",null,{"$f":"\"Prop Cat - Paid - Line 13 - \"&$E$2-9&\" - Prior\"","v":"Prop Cat - Paid - Line 13 - 2013 - Prior"},null,null,null,null,null,null,null,null,0]
["Sch XI(a)(i)","Loss Triangles - Property Catastrophe",null,{"$f":"\"Prop Cat - Paid - Line 13 - \"&$E$2-6&\" - Prior\"","v":"Prop Cat - Paid - Line 13 - 2016 - Prior"},null,null,null,null,null,null,null,null,0]
["Sch XI(a)(i)","Loss Triangles - Property Catastrophe",null,{"$f":"\"Prop Cat - Paid - Line 17 - \"&$E$2-6&\" - \"&$E$2-6","v":"Prop Cat - Paid - Line 17 - 2016 - 2016"},null,null,null,null,null,null,null,null,0]
["Sch XI(a)(i)","Loss Triangles - Property Catastrophe",null,{"$f":"\"Prop Cat - Paid - Line 19 - \"&$E$2-4&\" - \"&$E$2-4","v":"Prop Cat - Paid - Line 19 - 2018 - 2018"},null,null,null,null,null,null,null,null,0]
["Sch XI(a)(i)","Loss Triangles - Property Catastrophe",null,{"$f":"\"Prop Cat - Paid - Line 13 - \"&$E$2-2&\" - Prior\"","v":"Prop Cat - Paid - Line 13 - 2020 - Prior"},null,null,null,null,null,null,null,null,0]
["Sch XI(a)(i)","Loss Triangles - Property Catastrophe",null,{"$f":"\"Prop Cat - Paid - Line 14 - \"&$E$2-2&\" - \"&$E$2-9","v":"Prop Cat - Paid - Line 14 - 2020 - 2013"},null,null,null,null,null,null,null,null,0]
["Sch XI(a)(i)","Loss Triangles - Property Catastrophe",null,{"$f":"\"Prop Cat - Paid - Line 14 - \"&$E$2-1&\" - \"&$E$2-9","v":"Prop Cat - Paid - Line 14 - 2021 - 2013"},null,null,null,null,null,null,null,null,0]
["Sch XI(a)(i)","Loss Triangles - Property Catastrophe",null,{"$f":"\"Prop Cat - Paid - Line 22 - \"&$E$2-1&\" - \"&$E$2-1","v":"Prop Cat - Paid - Line 22 - 2021 - 2021"},null,null,null,null,null,null,null,null,0]
["Sch XI(a)(i)","Loss Triangles - Property Catastrophe",null,{"$f":"\"Prop Cat - Paid - Line 21 - \"&$E$2&\" - \"&$E$2-2","v":"Prop Cat - Paid - Line 21 - 2022 - 2020"},null,null,null,null,null,null,null,null,0]
["Sch XI(a)(i)","Loss Triangles - Property Catastrophe",null,{"$f":"\"Prop Cat - Paid - Line 16 - Cat Loss. - \"&$E$2-7","v":"Prop Cat - Paid - Line 16 - Cat Loss. - 2015"},null,null,null,null,null,null,null,null,0]
["Sch XI(a)(i)","Loss Triangles - Property Catastrophe",null,{"$f":"\"Prop Cat - Reserve - Line 26 - \"&$E$2-8&\" - \"&$E$2-9","v":"Prop Cat - Reserve - Line 26 - 2014 - 2013"},null,null,null,null,null,null,null,null,0]
["Sch XI(a)(i)","Loss Triangles - Property Catastrophe",null,{"$f":"\"Prop Cat - Reserve - Line 28 - \"&$E$2-6&\" - \"&$E$2-7","v":"Prop Cat - Reserve - Line 28 - 2016 - 2015"},null,null,null,null,null,null,null,null,0]
["Sch XI(a)(i)","Loss Triangles - Property Catastrophe",null,{"$f":"\"Prop Cat - Reserve - Line 30 - \"&$E$2-5&\" - \"&$E$2-5","v":"Prop Cat - Reserve - Line 30 - 2017 - 2017"},null,null,null,null,null,null,null,null,0]
["Sch XI(a)(i)","Loss Triangles - Property Catastrophe",null,{"$f":"\"Prop Cat - Reserve - Line 26 - \"&$E$2-4&\" - \"&$E$2-9","v":"Prop Cat - Reserve - Line 26 - 2018 - 2013"},null,null,null,null,null,null,null,null,0]
["Sch XI(a)(i)","Loss Triangles - Property Catastrophe",null,{"$f":"\"Prop Cat - Reserve - Line 28 - \"&$E$2-3&\" - \"&$E$2-7","v":"Prop Cat - Reserve - Line 28 - 2019 - 2015"},null,null,null,null,null,null,null,null,0]
["Sch XI(a)(i)","Loss Triangles - Property Catastrophe",null,{"$f":"\"Prop Cat - Reserve - Line 32 - \"&$E$2-2&\" - \"&$E$2-3","v":"Prop Cat - Reserve - Line 32 - 2020 - 2019"},null,null,null,null,null,null,null,null,0]
["Sch XI(a)(i)","Loss Triangles - Property Catastrophe",null,{"$f":"\"Prop Cat - Reserve - Line 28 - \"&$E$2-1&\" - \"&$E$2-7","v":"Prop Cat - Reserve - Line 28 - 2021 - 2015"},null,null,null,null,null,null,null,null,0]
["Sch XI(a)(i)","Loss Triangles - Property Catastrophe",null,{"$f":"\"Prop Cat - Reserve - Line 27 - \"&$E$2&\" - \"&$E$2-8","v":"Prop Cat - Reserve - Line 27 - 2022 - 2014"},null,null,null,null,null,null,null,null,0]
["Sch XI(a)(i)","Loss Triangles - Property Catastrophe",null,{"$f":"\"Prop Cat - Reserve - Line 25 - Cat Loss - Prior\"","v":"Prop Cat - Reserve - Line 25 - Cat Loss - Prior"},null,null,null,null,null,null,null,null,0]
["Sch XI(a)(i)","Loss Triangles - Property Catastrophe",null,{"$f":"\"Prop Cat - Reserve - Line 33 - Cat Loss. - \"&$E$2-2","v":"Prop Cat - Reserve - Line 33 - Cat Loss. - 2020"},null,null,null,null,null,null,null,null,0]
["Sch XI(a)(i)","Loss Triangles - Property Catastrophe",null,{"$f":"\"Prop Cat - GPW - Line 43 - \"&$E$2-4","v":"Prop Cat - GPW - Line 43 - 2018"},null,null,null,null,null,null,null,null,0]
["Sch XI(a)(i)","Loss Triangles - Property Catastrophe",null,{"$f":"\"Prop Cat - Gross Premiums Earned - Line 38 - \"&$E$2-9","v":"Prop Cat - Gross Premiums Earned - Line 38 - 2013"},null,null,null,null,null,null,null,null,0]
["Sch XI(a)(i)","Loss Triangles - Property Catastrophe",null,{"$f":"\"Prop Cat - Gross Premiums Earned - Line 41 - \"&$E$2-6","v":"Prop Cat - Gross Premiums Earned - Line 41 - 2016"},null,null,null,null,null,null,null,null,0]
["Sch XI(a)(i)","Loss Triangles - Property Catastrophe",null,{"$f":"\"Prop Cat - NPW - Line 39 - \"&$E$2-8","v":"Prop Cat - NPW - Line 39 - 2014"},null,null,null,null,null,null,null,null,0]
["Sch XI(a)(i)","Loss Triangles - Property Catastrophe",null,{"$f":"\"Prop Cat - Net Premiums Earned - Line 39 - \"&$E$2-8","v":"Prop Cat - Net Premiums Earned - Line 39 - 2014"},null,null,null,null,null,null,null,null,0]
["Sch XI(a)(i)","Loss Triangles - Property Catastrophe",null,{"$f":"\"Prop Cat - Net Premiums Earned - Line 45 - \"&$E$2-2","v":"Prop Cat - Net Premiums Earned - Line 45 - 2020"},null,null,null,null,null,null,null,null,0]
["Sch XI(a)(i)","Loss Triangles - Property Catastrophe",null,{"$f":"\"Prop Cat - Expenses Paid - Line 43 - \"&$E$2-4","v":"Prop Cat - Expenses Paid - Line 43 - 2018"},null,null,null,null,null,null,null,null,0]
["Sch XI(a)(i)","Loss Triangles - Property Catastrophe",null,{"$f":"\"Prop Cat - Expenses Incurred - Line 40 - \"&$E$2-7","v":"Prop Cat - Expenses Incurred - Line 40 - 2015"},null,null,null,null,null,null,null,null,0]
["Sch XI(a)(i)","Loss Triangles - Property Catastrophe",null,{"$f":"\"Prop Cat - Brokerage - Line 38 - \"&$E$2-9","v":"Prop Cat - Brokerage - Line 38 - 2013"},null,null,null,null,null,null,null,null,0]
["Sch XI(a)(i)","Loss Triangles - Property Catastrophe",null,{"$f":"\"Prop Cat - Brokerage - Line 39 - \"&$E$2-8","v":"Prop Cat - Brokerage - Line 39 - 2014"},null,null,null,null,null,null,null,null,0]
["Sch XI(a)(i)","Loss Triangles - Property Catastrophe",null,{"$f":"\"Prop Cat - G&A - Line 37 - Prior\"","v":"Prop Cat - G&A - Line 37 - Prior"},null,null,null,null,null,null,null,null,0]
["Sch XI(a)(i)","Loss Triangles - Property Catastrophe",null,{"$f":"\"Prop Cat - G&A - Line 47 - \"&$E$2","v":"Prop Cat - G&A - Line 47 - 2022"},null,null,null,null,null,null,null,null,0]
["Sch XI(a)(i)","Loss Triangles - Property Catastrophe",null,{"$f":"\"Prop Cat - Personnel Costs - Line 43 - \"&$E$2-4","v":"Prop Cat - Personnel Costs - Line 43 - 2018"},null,null,null,null,null,null,null,null,0]
["Sch XI(a)(i)","Loss Triangles - Property Catastrophe",null,{"$f":"\"Prop Cat - Other Exp. - Line 41 - \"&$E$2-6","v":"Prop Cat - Other Exp. - Line 41 - 2016"},null,null,null,null,null,null,null,null,0]
["Sch XI(a)(i)","Loss Triangles - Property Catastrophe",null,"Property Catastrophe - Note",null,null,null,null,null,null,null,null,0]
["Sch XI(a)(ii)","Loss Triangles - Property",null,{"$f":"\"Property - Incurred - Line 1 - \"&$E$2-6&\" - Prior\"","v":"Property - Incurred - Line 1 - 2016 - Prior"},null,null,null,null,null,null,null,null,0]
["Sch XI(a)(ii)","Loss Triangles - Property",null,{"$f":"\"Property - Incurred - Line 5 - \"&$E$2-5&\" - \"&$E$2-6","v":"Property - Incurred - Line 5 - 2017 - 2016"},null,null,null,null,null,null,null,null,0]
["Sch XI(a)(ii)","Loss Triangles - Property",null,{"$f":"\"Property - Incurred - Line 3 - \"&$E$2-4&\" - \"&$E$2-8","v":"Property - Incurred - Line 3 - 2018 - 2014"},null,null,null,null,null,null,null,null,0]
["Sch XI(a)(ii)","Loss Triangles - Property",null,{"$f":"\"Property - Incurred - Line 1 - \"&$E$2-3&\" - Prior\"","v":"Property - Incurred - Line 1 - 2019 - Prior"},null,null,null,null,null,null,null,null,0]
["Sch XI(a)(ii)","Loss Triangles - Property",null,{"$f":"\"Property - Incurred - Line 2 - \"&$E$2-2&\" - \"&$E$2-9","v":"Property - Incurred - Line 2 - 2020 - 2013"},null,null,null,null,null,null,null,null,0]
["Sch XI(a)(ii)","Loss Triangles - Property",null,{"$f":"\"Property - Incurred - Line 2 - \"&$E$2-1&\" - \"&$E$2-9","v":"Property - Incurred - Line 2 - 2021 - 2013"},null,null,null,null,null,null,null,null,0]
["Sch XI(a)(ii)","Loss Triangles - Property",null,{"$f":"\"Property - Incurred - Line 10 - \"&$E$2-1&\" - \"&$E$2-1","v":"Property - Incurred - Line 10 - 2021 - 2021"},null,null,null,null,null,null,null,null,0]
["Sch XI(a)(ii)","Loss Triangles - Property",null,{"$f":"\"Property - Incurred - Line 9 - \"&$E$2&\" - \"&$E$2-2","v":"Property - Incurred - Line 9 - 2022 - 2020"},null,null,null,null,null,null,null,null,0]
["Sch XI(a)(ii)","Loss Triangles - Property",null,{"$f":"\"Property - Incurred - Line 4 - Cat Loss. - \"&$E$2-7","v":"Property - Incurred - Line 4 - Cat Loss. - 2015"},null,null,null,null,null,null,null,null,0]
["Sch XI(a)(ii)","Loss Triangles - Property",null,{"$f":"\"Property - Paid - Line 14 - \"&$E$2-8&\" - \"&$E$2-9","v":"Property - Paid - Line 14 - 2014 - 2013"},null,null,null,null,null,null,null,null,0]
["Sch XI(a)(ii)","Loss Triangles - Property",null,{"$f":"\"Property - Paid - Line 15 - \"&$E$2-8&\" - \"&$E$2-8","v":"Property - Paid - Line 15 - 2014 - 2014"},null,null,null,null,null,null,null,null,0]
["Sch XI(a)(ii)","Loss Triangles - Property",null,{"$f":"\"Property - Paid - Line 16 - \"&$E$2-6&\" - \"&$E$2-7","v":"Property - Paid - Line 16 - 2016 - 2015"},null,null,null,null,null,null,null,null,0]
["Sch XI(a)(ii)","Loss Triangles - Property",null,{"$f":"\"Property - Paid - Line 14 - \"&$E$2-4&\" - \"&$E$2-9","v":"Property - Paid - Line 14 - 2018 - 2013"},null,null,null,null,null,null,null,null,0]
["Sch XI(a)(ii)","Loss Triangles - Property",null,{"$f":"\"Property - Paid - Line 16 - \"&$E$2-3&\" - \"&$E$2-7","v":"Property - Paid - Line 16 - 2019 - 2015"},null,null,null,null,null,null,null,null,0]
["Sch XI(a)(ii)","Loss Triangles - Property",null,{"$f":"\"Property - Paid - Line 13 - \"&$E$2-2&\" - Prior\"","v":"Property - Paid - Line 13 - 2020 - Prior"},null,null,null,null,null,null,null,null,0]
["Sch XI(a)(ii)","Loss Triangles - Property",null,{"$f":"\"Property - Paid - Line 16 - \"&$E$2-1&\" - \"&$E$2-7","v":"Property - Paid - Line 16 - 2021 - 2015"},null,null,null,null,null,null,null,null,0]
["Sch XI(a)(ii)","Loss Triangles - Property",null,{"$f":"\"Property - Paid - Line 15 - \"&$E$2&\" - \"&$E$2-8","v":"Property - Paid - Line 15 - 2022 - 2014"},null,null,null,null,null,null,null,null,0]
["Sch XI(a)(ii)","Loss Triangles - Property",null,{"$f":"\"Property - Paid - Line 17 - \"&$E$2&\" - \"&$E$2-6","v":"Property - Paid - Line 17 - 2022 - 2016"},null,null,null,null,null,null,null,null,0]
["Sch XI(a)(ii)","Loss Triangles - Property",null,{"$f":"\"Property - Paid - Line 13 - Cat Loss - Prior\"","v":"Property - Paid - Line 13 - Cat Loss - Prior"},null,null,null,null,null,null,null,null,0]
["Sch XI(a)(ii)","Loss Triangles - Property",null,{"$f":"\"Property - Paid - Line 22 - Cat Loss. - \"&$E$2-1","v":"Property - Paid - Line 22 - Cat Loss. - 2021"},null,null,null,null,null,null,null,null,0]
["Sch XI(a)(ii)","Loss Triangles - Property",null,{"$f":"\"Property - Reserve - Line 25 - \"&$E$2-7&\" - Prior\"","v":"Property - Reserve - Line 25 - 2015 - Prior"},null,null,null,null,null,null,null,null,0]
["Sch XI(a)(ii)","Loss Triangles - Property",null,{"$f":"\"Property - Reserve - Line 26 - \"&$E$2-5&\" - \"&$E$2-9","v":"Property - Reserve - Line 26 - 2017 - 2013"},null,null,null,null,null,null,null,null,0]
["Sch XI(a)(ii)","Loss Triangles - Property",null,{"$f":"\"Property - Reserve - Line 29 - \"&$E$2-4&\" - \"&$E$2-6","v":"Property - Reserve - Line 29 - 2018 - 2016"},null,null,null,null,null,null,null,null,0]
["Sch XI(a)(ii)","Loss Triangles - Property",null,{"$f":"\"Property - Reserve - Line 31 - \"&$E$2-3&\" - \"&$E$2-4","v":"Property - Reserve - Line 31 - 2019 - 2018"},null,null,null,null,null,null,null,null,0]
["Sch XI(a)(ii)","Loss Triangles - Property",null,{"$f":"\"Property - Reserve - Line 31 - \"&$E$2-2&\" - \"&$E$2-4","v":"Property - Reserve - Line 31 - 2020 - 2018"},null,null,null,null,null,null,null,null,0]
["Sch XI(a)(ii)","Loss Triangles - Property",null,{"$f":"\"Property - Reserve - Line 31 - \"&$E$2-1&\" - \"&$E$2-4","v":"Property - Reserve - Line 31 - 2021 - 2018"},null,null,null,null,null,null,null,null,0]
["Sch XI(a)(ii)","Loss Triangles - Property",null,{"$f":"\"Property - Reserve - Line 32 - \"&$E$2-1&\" - \"&$E$2-3","v":"Property - Reserve - Line 32 - 2021 - 2019"},null,null,null,null,null,null,null,null,0]
["Sch XI(a)(ii)","Loss Triangles - Property",null,{"$f":"\"Property - Reserve - Line 35 - \"&$E$2&\" - \"&$E$2","v":"Property - Reserve - Line 35 - 2022 - 2022"},null,null,null,null,null,null,null,null,0]
["Sch XI(a)(ii)","Loss Triangles - Property",null,{"$f":"\"Property - Reserve - Line 28 - Cat Loss. - \"&$E$2-7","v":"Property - Reserve - Line 28 - Cat Loss. - 2015"},null,null,null,null,null,null,null,null,0]
["Sch XI(a)(ii)","Loss Triangles - Property",null,{"$f":"\"Property - GPW - Line 38 - \"&$E$2-9","v":"Property - GPW - Line 38 - 2013"},null,null,null,null,null,null,null,null,0]
["Sch XI(a)(ii)","Loss Triangles - Property",null,{"$f":"\"Property - Gross Premiums Earned - Line 37 - Prior\"","v":"Property - Gross Premiums Earned - Line 37 - Prior"},null,null,null,null,null,null,null,null,"XXX"]
["Sch XI(a)(ii)","Loss Triangles - Property",null,{"$f":"\"Property - Gross Premiums Earned - Line 44 - \"&$E$2-3","v":"Property - Gross Premiums Earned - Line 44 - 2019"},null,null,null,null,null,null,null,null,0]
["Sch XI(a)(ii)","Loss Triangles - Property",null,{"$f":"\"Property - NPW - Line 42 - \"&$E$2-5","v":"Property - NPW - Line 42 - 2017"},null,null,null,null,null,null,null,null,0]
["Sch XI(a)(ii)","Loss Triangles - Property",null,{"$f":"\"Property - Net Premiums Earned - Line 38 - \"&$E$2-9","v":"Property - Net Premiums Earned - Line 38 - 2013"},null,null,null,null,null,null,null,null,0]
["Sch XI(a)(ii)","Loss Triangles - Property",null,{"$f":"\"Property - Net Premiums Earned - Line 40 - \"&$E$2-7","v":"Property - Net Premiums Earned - Line 40 - 2015"},null,null,null,null,null,null,null,null,0]
["Sch XI(a)(ii)","Loss Triangles - Property",null,{"$f":"\"Property - Expenses Paid - Line 38 - \"&$E$2-9","v":"Property - Expenses Paid - Line 38 - 2013"},null,null,null,null,null,null,null,null,0]
["Sch XI(a)(ii)","Loss Triangles - Property",null,{"$f":"\"Property - Expenses Incurred - Line 39 - \"&$E$2-8","v":"Property - Expenses Incurred - Line 39 - 2014"},null,null,null,null,null,null,null,null,0]
["Sch XI(a)(ii)","Loss Triangles - Property",null,{"$f":"\"Property - Expenses Incurred - Line 44 - \"&$E$2-3","v":"Property - Expenses Incurred - Line 44 - 2019"},null,null,null,null,null,null,null,null,0]
["Sch XI(a)(ii)","Loss Triangles - Property",null,{"$f":"\"Property - Brokerage - Line 42 - \"&$E$2-5","v":"Property - Brokerage - Line 42 - 2017"},null,null,null,null,null,null,null,null,0]
["Sch XI(a)(ii)","Loss Triangles - Property",null,{"$f":"\"Property - G&A - Line 40 - \"&$E$2-7","v":"Property - G&A - Line 40 - 2015"},null,null,null,null,null,null,null,null,0]
["Sch XI(a)(ii)","Loss Triangles - Property",null,{"$f":"\"Property - Personnel Costs - Line 37 - Prior\"","v":"Property - Personnel Costs - Line 37 - Prior"},null,null,null,null,null,null,null,null,0]
["Sch XI(a)(ii)","Loss Triangles - Property",null,{"$f":"\"Property - Personnel Costs - Line 46 - \"&$E$2-1","v":"Property - Personnel Costs - Line 46 - 2021"},null,null,null,null,null,null,null,null,0]
["Sch XI(a)(ii)","Loss Triangles - Property",null,{"$f":"\"Property - Other Exp. - Line 41 - \"&$E$2-6","v":"Property - Other Exp. - Line 41 - 2016"},null,null,null,null,null,null,null,null,0]
["Sch XI(a)(ii)","Loss Triangles - Property",null,{"$f":"\"Property - Other Exp. - Line 44 - \"&$E$2-3","v":"Property - Other Exp. - Line 44 - 2019"},null,null,null,null,null,null,null,null,0]
["Sch XI(a)(iii)","Loss Triangles - Property Non-Proportional",null,{"$f":"\"Prop. Non-Prop.- Incurred - Line 3 - \"&$E$2-8&\" - \"&$E$2-8","v":"Prop. Non-Prop.- Incurred - Line 3 - 2014 - 2014"},null,null,null,null,null,null,null,null,0]
["Sch XI(a)(iii)","Loss Triangles - Property Non-Proportional",null,{"$f":"\"Prop. Non-Prop.- Incurred - Line 4 - \"&$E$2-6&\" - \"&$E$2-7","v":"Prop. Non-Prop.- Incurred - Line 4 - 2016 - 2015"},null,null,null,null,null,null,null,null,0]
["Sch XI(a)(iii)","Loss Triangles - Property Non-Proportional",null,{"$f":"\"Prop. Non-Prop.- Incurred - Line 2 - \"&$E$2-4&\" - \"&$E$2-9","v":"Prop. Non-Prop.- Incurred - Line 2 - 2018 - 2013"},null,null,null,null,null,null,null,null,0]
["Sch XI(a)(iii)","Loss Triangles - Property Non-Proportional",null,{"$f":"\"Prop. Non-Prop.- Incurred - Line 4 - \"&$E$2-3&\" - \"&$E$2-7","v":"Prop. Non-Prop.- Incurred - Line 4 - 2019 - 2015"},null,null,null,null,null,null,null,null,0]
["Sch XI(a)(iii)","Loss Triangles - Property Non-Proportional",null,{"$f":"\"Prop. Non-Prop.- Incurred - Line 1 - \"&$E$2-2&\" - Prior\"","v":"Prop. Non-Prop.- Incurred - Line 1 - 2020 - Prior"},null,null,null,null,null,null,null,null,0]
["Sch XI(a)(iii)","Loss Triangles - Property Non-Proportional",null,{"$f":"\"Prop. Non-Prop.- Incurred - Line 4 - \"&$E$2-1&\" - \"&$E$2-7","v":"Prop. Non-Prop.- Incurred - Line 4 - 2021 - 2015"},null,null,null,null,null,null,null,null,0]
["Sch XI(a)(iii)","Loss Triangles - Property Non-Proportional",null,{"$f":"\"Prop. Non-Prop.- Incurred - Line 5 - \"&$E$2-1&\" - \"&$E$2-6","v":"Prop. Non-Prop.- Incurred - Line 5 - 2021 - 2016"},null,null,null,null,null,null,null,null,0]
["Sch XI(a)(iii)","Loss Triangles - Property Non-Proportional",null,{"$f":"\"Prop. Non-Prop.- Incurred - Line 4 - \"&$E$2&\" - \"&$E$2-7","v":"Prop. Non-Prop.- Incurred - Line 4 - 2022 - 2015"},null,null,null,null,null,null,null,null,0]
["Sch XI(a)(iii)","Loss Triangles - Property Non-Proportional",null,{"$f":"\"Prop. Non-Prop.- Incurred - Line 3 - Cat Loss. - \"&$E$2-8","v":"Prop. Non-Prop.- Incurred - Line 3 - Cat Loss. - 2014"},null,null,null,null,null,null,null,null,0]
["Sch XI(a)(iii)","Loss Triangles - Property Non-Proportional",null,{"$f":"\"Prop. Non-Prop.- Incurred - Line 10 - Cat Loss. - \"&$E$2-1","v":"Prop. Non-Prop.- Incurred - Line 10 - Cat Loss. - 2021"},null,null,null,null,null,null,null,null,0]
["Sch XI(a)(iii)","Loss Triangles - Property Non-Proportional",null,{"$f":"\"Prop. Non-Prop.- Paid - Line 15 - \"&$E$2-7&\" - \"&$E$2-8","v":"Prop. Non-Prop.- Paid - Line 15 - 2015 - 2014"},null,null,null,null,null,null,null,null,0]
["Sch XI(a)(iii)","Loss Triangles - Property Non-Proportional",null,{"$f":"\"Prop. Non-Prop.- Paid - Line 13 - \"&$E$2-5&\" - Prior\"","v":"Prop. Non-Prop.- Paid - Line 13 - 2017 - Prior"},null,null,null,null,null,null,null,null,0]
["Sch XI(a)(iii)","Loss Triangles - Property Non-Proportional",null,{"$f":"\"Prop. Non-Prop.- Paid - Line 17 - \"&$E$2-4&\" - \"&$E$2-6","v":"Prop. Non-Prop.- Paid - Line 17 - 2018 - 2016"},null,null,null,null,null,null,null,null,0]
["Sch XI(a)(iii)","Loss Triangles - Property Non-Proportional",null,{"$f":"\"Prop. Non-Prop.- Paid - Line 19 - \"&$E$2-3&\" - \"&$E$2-4","v":"Prop. Non-Prop.- Paid - Line 19 - 2019 - 2018"},null,null,null,null,null,null,null,null,0]
["Sch XI(a)(iii)","Loss Triangles - Property Non-Proportional",null,{"$f":"\"Prop. Non-Prop.- Paid - Line 20 - \"&$E$2-3&\" - \"&$E$2-3","v":"Prop. Non-Prop.- Paid - Line 20 - 2019 - 2019"},null,null,null,null,null,null,null,null,0]
["Sch XI(a)(iii)","Loss Triangles - Property Non-Proportional",null,{"$f":"\"Prop. Non-Prop.- Paid - Line 20 - \"&$E$2-2&\" - \"&$E$2-3","v":"Prop. Non-Prop.- Paid - Line 20 - 2020 - 2019"},null,null,null,null,null,null,null,null,0]
["Sch XI(a)(iii)","Loss Triangles - Property Non-Proportional",null,{"$f":"\"Prop. Non-Prop.- Paid - Line 20 - \"&$E$2-1&\" - \"&$E$2-3","v":"Prop. Non-Prop.- Paid - Line 20 - 2021 - 2019"},null,null,null,null,null,null,null,null,0]
["Sch XI(a)(iii)","Loss Triangles - Property Non-Proportional",null,{"$f":"\"Prop. Non-Prop.- Paid - Line 16 - \"&$E$2&\" - \"&$E$2-7","v":"Prop. Non-Prop.- Paid - Line 16 - 2022 - 2015"},null,null,null,null,null,null,null,null,0]
["Sch XI(a)(iii)","Loss Triangles - Property Non-Proportional",null,{"$f":"\"Prop. Non-Prop.- Paid - Line 16 - Cat Loss. - \"&$E$2-7","v":"Prop. Non-Prop.- Paid - Line 16 - Cat Loss. - 2015"},null,null,null,null,null,null,null,null,0]
["Sch XI(a)(iii)","Loss Triangles - Property Non-Proportional",null,{"$f":"\"Prop. Non-Prop.- Reserve - Line 26 - \"&$E$2-9&\" - \"&$E$2-9","v":"Prop. Non-Prop.- Reserve - Line 26 - 2013 - 2013"},null,null,null,null,null,null,null,null,0]
["Sch XI(a)(iii)","Loss Triangles - Property Non-Proportional",null,{"$f":"\"Prop. Non-Prop.- Reserve - Line 27 - \"&$E$2-8&\" - \"&$E$2-8","v":"Prop. Non-Prop.- Reserve - Line 27 - 2014 - 2014"},null,null,null,null,null,null,null,null,0]
["Sch XI(a)(iii)","Loss Triangles - Property Non-Proportional",null,{"$f":"\"Prop. Non-Prop.- Reserve - Line 29 - \"&$E$2-5&\" - \"&$E$2-6","v":"Prop. Non-Prop.- Reserve - Line 29 - 2017 - 2016"},null,null,null,null,null,null,null,null,0]
["Sch XI(a)(iii)","Loss Triangles - Property Non-Proportional",null,{"$f":"\"Prop. Non-Prop.- Reserve - Line 30 - \"&$E$2-5&\" - \"&$E$2-5","v":"Prop. Non-Prop.- Reserve - Line 30 - 2017 - 2017"},null,null,null,null,null,null,null,null,0]
["Sch XI(a)(iii)","Loss Triangles - Property Non-Proportional",null,{"$f":"\"Prop. Non-Prop.- Reserve - Line 25 - \"&$E$2-3&\" - Prior\"","v":"Prop. Non-Prop.- Reserve - Line 25 - 2019 - Prior"},null,null,null,null,null,null,null,null,0]
["Sch XI(a)(iii)","Loss Triangles - Property Non-Proportional",null,{"$f":"\"Prop. Non-Prop.- Reserve - Line 26 - \"&$E$2-2&\" - \"&$E$2-9","v":"Prop. Non-Prop.- Reserve - Line 26 - 2020 - 2013"},null,null,null,null,null,null,null,null,0]
["Sch XI(a)(iii)","Loss Triangles - Property Non-Proportional",null,{"$f":"\"Prop. Non-Prop.- Reserve - Line 26 - \"&$E$2-1&\" - \"&$E$2-9","v":"Prop. Non-Prop.- Reserve - Line 26 - 2021 - 2013"},null,null,null,null,null,null,null,null,0]
["Sch XI(a)(iii)","Loss Triangles - Property Non-Proportional",null,{"$f":"\"Prop. Non-Prop.- Reserve - Line 31 - \"&$E$2-1&\" - \"&$E$2-4","v":"Prop. Non-Prop.- Reserve - Line 31 - 2021 - 2018"},null,null,null,null,null,null,null,null,0]
["Sch XI(a)(iii)","Loss Triangles - Property Non-Proportional",null,{"$f":"\"Prop. Non-Prop.- Reserve - Line 33 - \"&$E$2&\" - \"&$E$2-2","v":"Prop. Non-Prop.- Reserve - Line 33 - 2022 - 2020"},null,null,null,null,null,null,null,null,0]
["Sch XI(a)(iii)","Loss Triangles - Property Non-Proportional",null,{"$f":"\"Prop. Non-Prop.- Reserve - Line 31 - Cat Loss. - \"&$E$2-4","v":"Prop. Non-Prop.- Reserve - Line 31 - Cat Loss. - 2018"},null,null,null,null,null,null,null,null,0]
["Sch XI(a)(iii)","Loss Triangles - Property Non-Proportional",null,{"$f":"\"Prop. Non-Prop.- Reserve - Line 33 - Cat Loss. - \"&$E$2-2","v":"Prop. Non-Prop.- Reserve - Line 33 - Cat Loss. - 2020"},null,null,null,null,null,null,null,null,0]
["Sch XI(a)(iii)","Loss Triangles - Property Non-Proportional",null,{"$f":"\"Prop. Non-Prop.- GPW - Line 41 - \"&$E$2-6","v":"Prop. Non-Prop.- GPW - Line 41 - 2016"},null,null,null,null,null,null,null,null,0]
["Sch XI(a)(iii)","Loss Triangles - Property Non-Proportional",null,{"$f":"\"Prop. Non-Prop.- Gross Premiums Earned - Line 39 - \"&$E$2-8","v":"Prop. Non-Prop.- Gross Premiums Earned - Line 39 - 2014"},null,null,null,null,null,null,null,null,0]
["Sch XI(a)(iii)","Loss Triangles - Property Non-Proportional",null,{"$f":"\"Prop. Non-Prop.- NPW - Line 37 - Prior\"","v":"Prop. Non-Prop.- NPW - Line 37 - Prior"},null,null,null,null,null,null,null,null,"XXX"]
["Sch XI(a)(iii)","Loss Triangles - Property Non-Proportional",null,{"$f":"\"Prop. Non-Prop.- Net Premiums Earned - Line 37 - Prior\"","v":"Prop. Non-Prop.- Net Premiums Earned - Line 37 - Prior"},null,null,null,null,null,null,null,null,"XXX"]
["Sch XI(a)(iii)","Loss Triangles - Property Non-Proportional",null,{"$f":"\"Prop. Non-Prop.- Net Premiums Earned - Line 43 - \"&$E$2-4","v":"Prop. Non-Prop.- Net Premiums Earned - Line 43 - 2018"},null,null,null,null,null,null,null,null,0]
["Sch XI(a)(iii)","Loss Triangles - Property Non-Proportional",null,{"$f":"\"Prop. Non-Prop.- Expenses Paid - Line 41 - \"&$E$2-6","v":"Prop. Non-Prop.- Expenses Paid - Line 41 - 2016"},null,null,null,null,null,null,null,null,0]
["Sch XI(a)(iii)","Loss Triangles - Property Non-Proportional",null,{"$f":"\"Prop. Non-Prop.- Expenses Incurred - Line 38 - \"&$E$2-9","v":"Prop. Non-Prop.- Expenses Incurred - Line 38 - 2013"},null,null,null,null,null,null,null,null,0]
["Sch XI(a)(iii)","Loss Triangles - Property Non-Proportional",null,{"$f":"\"Prop. Non-Prop.- Expenses Incurred - Line 47 - \"&$E$2","v":"Prop. Non-Prop.- Expenses Incurred - Line 47 - 2022"},null,null,null,null,null,null,null,null,0]
["Sch XI(a)(iii)","Loss Triangles - Property Non-Proportional",null,{"$f":"\"Prop. Non-Prop.- Brokerage - Line 37 - Prior\"","v":"Prop. Non-Prop.- Brokerage - Line 37 - Prior"},null,null,null,null,null,null,null,null,0]
["Sch XI(a)(iii)","Loss Triangles - Property Non-Proportional",null,{"$f":"\"Prop. Non-Prop.- G&A - Line 39 - \"&$E$2-8","v":"Prop. Non-Prop.- G&A - Line 39 - 2014"},null,null,null,null,null,null,null,null,0]
["Sch XI(a)(iii)","Loss Triangles - Property Non-Proportional",null,{"$f":"\"Prop. Non-Prop.- G&A - Line 43 - \"&$E$2-4","v":"Prop. Non-Prop.- G&A - Line 43 - 2018"},null,null,null,null,null,null,null,null,0]
["Sch XI(a)(iii)","Loss Triangles - Property Non-Proportional",null,{"$f":"\"Prop. Non-Prop.- Personnel Costs - Line 41 - \"&$E$2-6","v":"Prop. Non-Prop.- Personnel Costs - Line 41 - 2016"},null,null,null,null,null,null,null,null,0]
["Sch XI(a)(iii)","Loss Triangles - Property Non-Proportional",null,{"$f":"\"Prop. Non-Prop.- Other Exp. - Line 40 - \"&$E$2-7","v":"Prop. Non-Prop.- Other Exp. - Line 40 - 2015"},null,null,null,null,null,null,null,null,0]
["Sch XI(a)(iii)","Loss Triangles - Property Non-Proportional",null,{"$f":"\"Prop. Non-Prop.- Other Exp. - Line 47 - \"&$E$2","v":"Prop. Non-Prop.- Other Exp. - Line 47 - 2022"},null,null,null,null,null,null,null,null,0]
["Sch XI(a)(iv)","Loss Triangles - Casualty",null,{"$f":"\"Casualty - Incurred - Line 3 - \"&$E$2-7&\" - \"&$E$2-8","v":"Casualty - Incurred - Line 3 - 2015 - 2014"},null,null,null,null,null,null,null,null,0]
["Sch XI(a)(iv)","Loss Triangles - Casualty",null,{"$f":"\"Casualty - Incurred - Line 1 - \"&$E$2-5&\" - Prior\"","v":"Casualty - Incurred - Line 1 - 2017 - Prior"},null,null,null,null,null,null,null,null,0]
["Sch XI(a)(iv)","Loss Triangles - Casualty",null,{"$f":"\"Casualty - Incurred - Line 3 - \"&$E$2-5&\" - \"&$E$2-8","v":"Casualty - Incurred - Line 3 - 2017 - 2014"},null,null,null,null,null,null,null,null,0]
["Sch XI(a)(iv)","Loss Triangles - Casualty",null,{"$f":"\"Casualty - Incurred - Line 6 - \"&$E$2-4&\" - \"&$E$2-5","v":"Casualty - Incurred - Line 6 - 2018 - 2017"},null,null,null,null,null,null,null,null,0]
["Sch XI(a)(iv)","Loss Triangles - Casualty",null,{"$f":"\"Casualty - Incurred - Line 8 - \"&$E$2-3&\" - \"&$E$2-3","v":"Casualty - Incurred - Line 8 - 2019 - 2019"},null,null,null,null,null,null,null,null,0]
["Sch XI(a)(iv)","Loss Triangles - Casualty",null,{"$f":"\"Casualty - Incurred - Line 8 - \"&$E$2-2&\" - \"&$E$2-3","v":"Casualty - Incurred - Line 8 - 2020 - 2019"},null,null,null,null,null,null,null,null,0]
["Sch XI(a)(iv)","Loss Triangles - Casualty",null,{"$f":"\"Casualty - Incurred - Line 8 - \"&$E$2-1&\" - \"&$E$2-3","v":"Casualty - Incurred - Line 8 - 2021 - 2019"},null,null,null,null,null,null,null,null,0]
["Sch XI(a)(iv)","Loss Triangles - Casualty",null,{"$f":"\"Casualty - Incurred - Line 4 - \"&$E$2&\" - \"&$E$2-7","v":"Casualty - Incurred - Line 4 - 2022 - 2015"},null,null,null,null,null,null,null,null,0]
["Sch XI(a)(iv)","Loss Triangles - Casualty",null,{"$f":"\"Casualty - Incurred - Line 4 - Cat Loss. - \"&$E$2-7","v":"Casualty - Incurred - Line 4 - Cat Loss. - 2015"},null,null,null,null,null,null,null,null,0]
["Sch XI(a)(iv)","Loss Triangles - Casualty",null,{"$f":"\"Casualty - Paid - Line 14 - \"&$E$2-9&\" - \"&$E$2-9","v":"Casualty - Paid - Line 14 - 2013 - 2013"},null,null,null,null,null,null,null,null,0]
["Sch XI(a)(iv)","Loss Triangles - Casualty",null,{"$f":"\"Casualty - Paid - Line 15 - \"&$E$2-8&\" - \"&$E$2-8","v":"Casualty - Paid - Line 15 - 2014 - 2014"},null,null,null,null,null,null,null,null,0]
["Sch XI(a)(iv)","Loss Triangles - Casualty",null,{"$f":"\"Casualty - Paid - Line 14 - \"&$E$2-6&\" - \"&$E$2-9","v":"Casualty - Paid - Line 14 - 2016 - 2013"},null,null,null,null,null,null,null,null,0]
["Sch XI(a)(iv)","Loss Triangles - Casualty",null,{"$f":"\"Casualty - Paid - Line 18 - \"&$E$2-5&\" - \"&$E$2-5","v":"Casualty - Paid - Line 18 - 2017 - 2017"},null,null,null,null,null,null,null,null,0]
["Sch XI(a)(iv)","Loss Triangles - Casualty",null,{"$f":"\"Casualty - Paid - Line 13 - \"&$E$2-3&\" - Prior\"","v":"Casualty - Paid - Line 13 - 2019 - Prior"},null,null,null,null,null,null,null,null,0]
["Sch XI(a)(iv)","Loss Triangles - Casualty",null,{"$f":"\"Casualty - Paid - Line 14 - \"&$E$2-2&\" - \"&$E$2-9","v":"Casualty - Paid - Line 14 - 2020 - 2013"},null,null,null,null,null,null,null,null,0]
["Sch XI(a)(iv)","Loss Triangles - Casualty",null,{"$f":"\"Casualty - Paid - Line 14 - \"&$E$2-1&\" - \"&$E$2-9","v":"Casualty - Paid - Line 14 - 2021 - 2013"},null,null,null,null,null,null,null,null,0]
["Sch XI(a)(iv)","Loss Triangles - Casualty",null,{"$f":"\"Casualty - Paid - Line 13 - \"&$E$2&\" - Prior\"","v":"Casualty - Paid - Line 13 - 2022 - Prior"},null,null,null,null,null,null,null,null,0]
["Sch XI(a)(iv)","Loss Triangles - Casualty",null,{"$f":"\"Casualty - Paid - Line 18 - \"&$E$2&\" - \"&$E$2-5","v":"Casualty - Paid - Line 18 - 2022 - 2017"},null,null,null,null,null,null,null,null,0]
["Sch XI(a)(iv)","Loss Triangles - Casualty",null,{"$f":"\"Casualty - Paid - Line 22 - \"&$E$2&\" - \"&$E$2-1","v":"Casualty - Paid - Line 22 - 2022 - 2021"},null,null,null,null,null,null,null,null,0]
["Sch XI(a)(iv)","Loss Triangles - Casualty",null,{"$f":"\"Casualty - Paid - Line 20 - Cat Loss. - \"&$E$2-3","v":"Casualty - Paid - Line 20 - Cat Loss. - 2019"},null,null,null,null,null,null,null,null,0]
["Sch XI(a)(iv)","Loss Triangles - Casualty",null,{"$f":"\"Casualty - Reserve - Line 26 - \"&$E$2-8&\" - \"&$E$2-9","v":"Casualty - Reserve - Line 26 - 2014 - 2013"},null,null,null,null,null,null,null,null,0]
["Sch XI(a)(iv)","Loss Triangles - Casualty",null,{"$f":"\"Casualty - Reserve - Line 29 - \"&$E$2-6&\" - \"&$E$2-6","v":"Casualty - Reserve - Line 29 - 2016 - 2016"},null,null,null,null,null,null,null,null,0]
["Sch XI(a)(iv)","Loss Triangles - Casualty",null,{"$f":"\"Casualty - Reserve - Line 27 - \"&$E$2-4&\" - \"&$E$2-8","v":"Casualty - Reserve - Line 27 - 2018 - 2014"},null,null,null,null,null,null,null,null,0]
["Sch XI(a)(iv)","Loss Triangles - Casualty",null,{"$f":"\"Casualty - Reserve - Line 31 - \"&$E$2-4&\" - \"&$E$2-4","v":"Casualty - Reserve - Line 31 - 2018 - 2018"},null,null,null,null,null,null,null,null,0]
["Sch XI(a)(iv)","Loss Triangles - Casualty",null,{"$f":"\"Casualty - Reserve - Line 29 - \"&$E$2-2&\" - \"&$E$2-6","v":"Casualty - Reserve - Line 29 - 2020 - 2016"},null,null,null,null,null,null,null,null,0]
["Sch XI(a)(iv)","Loss Triangles - Casualty",null,{"$f":"\"Casualty - Reserve - Line 29 - \"&$E$2-1&\" - \"&$E$2-6","v":"Casualty - Reserve - Line 29 - 2021 - 2016"},null,null,null,null,null,null,null,null,0]
["Sch XI(a)(iv)","Loss Triangles - Casualty",null,{"$f":"\"Casualty - Reserve - Line 30 - \"&$E$2-1&\" - \"&$E$2-5","v":"Casualty - Reserve - Line 30 - 2021 - 2017"},null,null,null,null,null,null,null,null,0]
["Sch XI(a)(iv)","Loss Triangles - Casualty",null,{"$f":"\"Casualty - Reserve - Line 28 - \"&$E$2&\" - \"&$E$2-7","v":"Casualty - Reserve - Line 28 - 2022 - 2015"},null,null,null,null,null,null,null,null,0]
["Sch XI(a)(iv)","Loss Triangles - Casualty",null,{"$f":"\"Casualty - Reserve - Line 26 - Cat Loss. - \"&$E$2-9","v":"Casualty - Reserve - Line 26 - Cat Loss. - 2013"},null,null,null,null,null,null,null,null,0]
["Sch XI(a)(iv)","Loss Triangles - Casualty",null,{"$f":"\"Casualty - Reserve - Line 32 - Cat Loss. - \"&$E$2-3","v":"Casualty - Reserve - Line 32 - Cat Loss. - 2019"},null,null,null,null,null,null,null,null,0]
["Sch XI(a)(iv)","Loss Triangles - Casualty",null,{"$f":"\"Casualty - GPW - Line 44 - \"&$E$2-3","v":"Casualty - GPW - Line 44 - 2019"},null,null,null,null,null,null,null,null,0]
["Sch XI(a)(iv)","Loss Triangles - Casualty",null,{"$f":"\"Casualty - Gross Premiums Earned - Line 42 - \"&$E$2-5","v":"Casualty - Gross Premiums Earned - Line 42 - 2017"},null,null,null,null,null,null,null,null,0]
["Sch XI(a)(iv)","Loss Triangles - Casualty",null,{"$f":"\"Casualty - Gross Premiums Earned - Line 45 - \"&$E$2-2","v":"Casualty - Gross Premiums Earned - Line 45 - 2020"},null,null,null,null,null,null,null,null,0]
["Sch XI(a)(iv)","Loss Triangles - Casualty",null,{"$f":"\"Casualty - Net Premiums Earned - Line 37 - Prior\"","v":"Casualty - Net Premiums Earned - Line 37 - Prior"},null,null,null,null,null,null,null,null,"XXX"]
["Sch XI(a)(iv)","Loss Triangles - Casualty",null,{"$f":"\"Casualty - Net Premiums Earned - Line 38 - \"&$E$2-9","v":"Casualty - Net Premiums Earned - Line 38 - 2013"},null,null,null,null,null,null,null,null,0]
["Sch XI(a)(iv)","Loss Triangles - Casualty",null,{"$f":"\"Casualty - Net Premiums Earned - Line 46 - \"&$E$2-1","v":"Casualty - Net Premiums Earned - Line 46 - 2021"},null,null,null,null,null,null,null,null,0]
["Sch XI(a)(iv)","Loss Triangles - Casualty",null,{"$f":"\"Casualty - Expenses Paid - Line 44 - \"&$E$2-3","v":"Casualty - Expenses Paid - Line 44 - 2019"},null,null,null,null,null,null,null,null,0]
["Sch XI(a)(iv)","Loss Triangles - Casualty",null,{"$f":"\"Casualty - Expenses Incurred - Line 42 - \"&$E$2-5","v":"Casualty - Expenses Incurred - Line 42 - 2017"},null,null,null,null,null,null,null,null,0]
["Sch XI(a)(iv)","Loss Triangles - Casualty",null,{"$f":"\"Casualty - Brokerage - Line 40 - \"&$E$2-7","v":"Casualty - Brokerage - Line 40 - 2015"},null,null,null,null,null,null,null,null,0]
["Sch XI(a)(iv)","Loss Triangles - Casualty",null,{"$f":"\"Casualty - G&A - Line 37 - Prior\"","v":"Casualty - G&A - Line 37 - Prior"},null,null,null,null,null,null,null,null,0]
["Sch XI(a)(iv)","Loss Triangles - Casualty",null,{"$f":"\"Casualty - G&A - Line 46 - \"&$E$2-1","v":"Casualty - G&A - Line 46 - 2021"},null,null,null,null,null,null,null,null,0]
["Sch XI(a)(iv)","Loss Triangles - Casualty",null,{"$f":"\"Casualty - Personnel Costs - Line 41 - \"&$E$2-6","v":"Casualty - Personnel Costs - Line 41 - 2016"},null,null,null,null,null,null,null,null,0]
["Sch XI(a)(iv)","Loss Triangles - Casualty",null,{"$f":"\"Casualty - Personnel Costs - Line 44 - \"&$E$2-3","v":"Casualty - Personnel Costs - Line 44 - 2019"},null,null,null,null,null,null,null,null,0]
["Sch XI(a)(iv)","Loss Triangles - Casualty",null,{"$f":"\"Casualty - Other Exp. - Line 42 - \"&$E$2-5","v":"Casualty - Other Exp. - Line 42 - 2017"},null,null,null,null,null,null,null,null,0]
["Sch XI(a)(v)","Loss Triangles - Casualty Non-Proportional",null,{"$f":"\"Cas. Non-Prop.- Incurred - Line 1 - \"&$E$2-8&\" - Prior\"","v":"Cas. Non-Prop.- Incurred - Line 1 - 2014 - Prior"},null,null,null,null,null,null,null,null,0]
["Sch XI(a)(v)","Loss Triangles - Casualty Non-Proportional",null,{"$f":"\"Cas. Non-Prop.- Incurred - Line 5 - \"&$E$2-6&\" - \"&$E$2-6","v":"Cas. Non-Prop.- Incurred - Line 5 - 2016 - 2016"},null,null,null,null,null,null,null,null,0]
["Sch XI(a)(v)","Loss Triangles - Casualty Non-Proportional",null,{"$f":"\"Cas. Non-Prop.- Incurred - Line 6 - \"&$E$2-5&\" - \"&$E$2-5","v":"Cas. Non-Prop.- Incurred - Line 6 - 2017 - 2017"},null,null,null,null,null,null,null,null,0]
["Sch XI(a)(v)","Loss Triangles - Casualty Non-Proportional",null,{"$f":"\"Cas. Non-Prop.- Incurred - Line 2 - \"&$E$2-3&\" - \"&$E$2-9","v":"Cas. Non-Prop.- Incurred - Line 2 - 2019 - 2013"},null,null,null,null,null,null,null,null,0]
["Sch XI(a)(v)","Loss Triangles - Casualty Non-Proportional",null,{"$f":"\"Cas. Non-Prop.- Incurred - Line 2 - \"&$E$2-2&\" - \"&$E$2-9","v":"Cas. Non-Prop.- Incurred - Line 2 - 2020 - 2013"},null,null,null,null,null,null,null,null,0]
["Sch XI(a)(v)","Loss Triangles - Casualty Non-Proportional",null,{"$f":"\"Cas. Non-Prop.- Incurred - Line 2 - \"&$E$2-1&\" - \"&$E$2-9","v":"Cas. Non-Prop.- Incurred - Line 2 - 2021 - 2013"},null,null,null,null,null,null,null,null,0]
["Sch XI(a)(v)","Loss Triangles - Casualty Non-Proportional",null,{"$f":"\"Cas. Non-Prop.- Incurred - Line 3 - \"&$E$2-1&\" - \"&$E$2-8","v":"Cas. Non-Prop.- Incurred - Line 3 - 2021 - 2014"},null,null,null,null,null,null,null,null,0]
["Sch XI(a)(v)","Loss Triangles - Casualty Non-Proportional",null,{"$f":"\"Cas. Non-Prop.- Incurred - Line 6 - \"&$E$2&\" - \"&$E$2-5","v":"Cas. Non-Prop.- Incurred - Line 6 - 2022 - 2017"},null,null,null,null,null,null,null,null,0]
["Sch XI(a)(v)","Loss Triangles - Casualty Non-Proportional",null,{"$f":"\"Cas. Non-Prop.- Incurred - Line 10 - \"&$E$2&\" - \"&$E$2-1","v":"Cas. Non-Prop.- Incurred - Line 10 - 2022 - 2021"},null,null,null,null,null,null,null,null,0]
["Sch XI(a)(v)","Loss Triangles - Casualty Non-Proportional",null,{"$f":"\"Cas. Non-Prop.- Incurred - Line 8 - Cat Loss. - \"&$E$2-3","v":"Cas. Non-Prop.- Incurred - Line 8 - Cat Loss. - 2019"},null,null,null,null,null,null,null,null,0]
["Sch XI(a)(v)","Loss Triangles - Casualty Non-Proportional",null,{"$f":"\"Cas. Non-Prop.- Paid - Line 14 - \"&$E$2-8&\" - \"&$E$2-9","v":"Cas. Non-Prop.- Paid - Line 14 - 2014 - 2013"},null,null,null,null,null,null,null,null,0]
["Sch XI(a)(v)","Loss Triangles - Casualty Non-Proportional",null,{"$f":"\"Cas. Non-Prop.- Paid - Line 17 - \"&$E$2-6&\" - \"&$E$2-6","v":"Cas. Non-Prop.- Paid - Line 17 - 2016 - 2016"},null,null,null,null,null,null,null,null,0]
["Sch XI(a)(v)","Loss Triangles - Casualty Non-Proportional",null,{"$f":"\"Cas. Non-Prop.- Paid - Line 15 - \"&$E$2-4&\" - \"&$E$2-8","v":"Cas. Non-Prop.- Paid - Line 15 - 2018 - 2014"},null,null,null,null,null,null,null,null,0]
["Sch XI(a)(v)","Loss Triangles - Casualty Non-Proportional",null,{"$f":"\"Cas. Non-Prop.- Paid - Line 19 - \"&$E$2-4&\" - \"&$E$2-4","v":"Cas. Non-Prop.- Paid - Line 19 - 2018 - 2018"},null,null,null,null,null,null,null,null,0]
["Sch XI(a)(v)","Loss Triangles - Casualty Non-Proportional",null,{"$f":"\"Cas. Non-Prop.- Paid - Line 17 - \"&$E$2-3&\" - \"&$E$2-6","v":"Cas. Non-Prop.- Paid - Line 17 - 2019 - 2016"},null,null,null,null,null,null,null,null,0]
["Sch XI(a)(v)","Loss Triangles - Casualty Non-Proportional",null,{"$f":"\"Cas. Non-Prop.- Paid - Line 18 - \"&$E$2-2&\" - \"&$E$2-5","v":"Cas. Non-Prop.- Paid - Line 18 - 2020 - 2017"},null,null,null,null,null,null,null,null,0]
["Sch XI(a)(v)","Loss Triangles - Casualty Non-Proportional",null,{"$f":"\"Cas. Non-Prop.- Paid - Line 18 - \"&$E$2-1&\" - \"&$E$2-5","v":"Cas. Non-Prop.- Paid - Line 18 - 2021 - 2017"},null,null,null,null,null,null,null,null,0]
["Sch XI(a)(v)","Loss Triangles - Casualty Non-Proportional",null,{"$f":"\"Cas. Non-Prop.- Paid - Line 16 - \"&$E$2&\" - \"&$E$2-7","v":"Cas. Non-Prop.- Paid - Line 16 - 2022 - 2015"},null,null,null,null,null,null,null,null,0]
["Sch XI(a)(v)","Loss Triangles - Casualty Non-Proportional",null,{"$f":"\"Cas. Non-Prop.- Paid - Line 14 - Cat Loss. - \"&$E$2-9","v":"Cas. Non-Prop.- Paid - Line 14 - Cat Loss. - 2013"},null,null,null,null,null,null,null,null,0]
["Sch XI(a)(v)","Loss Triangles - Casualty Non-Proportional",null,{"$f":"\"Cas. Non-Prop.- Paid - Line 20 - Cat Loss. - \"&$E$2-3","v":"Cas. Non-Prop.- Paid - Line 20 - Cat Loss. - 2019"},null,null,null,null,null,null,null,null,0]
["Sch XI(a)(v)","Loss Triangles - Casualty Non-Proportional",null,{"$f":"\"Cas. Non-Prop.- Reserve - Line 27 - \"&$E$2-7&\" - \"&$E$2-8","v":"Cas. Non-Prop.- Reserve - Line 27 - 2015 - 2014"},null,null,null,null,null,null,null,null,0]
["Sch XI(a)(v)","Loss Triangles - Casualty Non-Proportional",null,{"$f":"\"Cas. Non-Prop.- Reserve - Line 27 - \"&$E$2-5&\" - \"&$E$2-8","v":"Cas. Non-Prop.- Reserve - Line 27 - 2017 - 2014"},null,null,null,null,null,null,null,null,0]
["Sch XI(a)(v)","Loss Triangles - Casualty Non-Proportional",null,{"$f":"\"Cas. Non-Prop.- Reserve - Line 30 - \"&$E$2-5&\" - \"&$E$2-5","v":"Cas. Non-Prop.- Reserve - Line 30 - 2017 - 2017"},null,null,null,null,null,null,null,null,0]
["Sch XI(a)(v)","Loss Triangles - Casualty Non-Proportional",null,{"$f":"\"Cas. Non-Prop.- Reserve - Line 30 - \"&$E$2-4&\" - \"&$E$2-5","v":"Cas. Non-Prop.- Reserve - Line 30 - 2018 - 2017"},null,null,null,null,null,null,null,null,0]
["Sch XI(a)(v)","Loss Triangles - Casualty Non-Proportional",null,{"$f":"\"Cas. Non-Prop.- Reserve - Line 32 - \"&$E$2-3&\" - \"&$E$2-3","v":"Cas. Non-Prop.- Reserve - Line 32 - 2019 - 2019"},null,null,null,null,null,null,null,null,0]
["Sch XI(a)(v)","Loss Triangles - Casualty Non-Proportional",null,{"$f":"\"Cas. Non-Prop.- Reserve - Line 33 - \"&$E$2-2&\" - \"&$E$2-2","v":"Cas. Non-Prop.- Reserve - Line 33 - 2020 - 2020"},null,null,null,null,null,null,null,null,0]
["Sch XI(a)(v)","Loss Triangles - Casualty Non-Proportional",null,{"$f":"\"Cas. Non-Prop.- Reserve - Line 29 - \"&$E$2-1&\" - \"&$E$2-6","v":"Cas. Non-Prop.- Reserve - Line 29 - 2021 - 2016"},null,null,null,null,null,null,null,null,0]
["Sch XI(a)(v)","Loss Triangles - Casualty Non-Proportional",null,{"$f":"\"Cas. Non-Prop.- Reserve - Line 31 - \"&$E$2&\" - \"&$E$2-4","v":"Cas. Non-Prop.- Reserve - Line 31 - 2022 - 2018"},null,null,null,null,null,null,null,null,0]
["Sch XI(a)(v)","Loss Triangles - Casualty Non-Proportional",null,{"$f":"\"Cas. Non-Prop.- Reserve - Line 29 - Cat Loss. - \"&$E$2-6","v":"Cas. Non-Prop.- Reserve - Line 29 - Cat Loss. - 2016"},null,null,null,null,null,null,null,null,0]
["Sch XI(a)(v)","Loss Triangles - Casualty Non-Proportional",null,{"$f":"\"Cas. Non-Prop.- Reserve - Line 31 - Cat Loss. - \"&$E$2-4","v":"Cas. Non-Prop.- Reserve - Line 31 - Cat Loss. - 2018"},null,null,null,null,null,null,null,null,0]
["Sch XI(a)(v)","Loss Triangles - Casualty Non-Proportional",null,{"$f":"\"Cas. Non-Prop.- GPW - Line 39 - \"&$E$2-8","v":"Cas. Non-Prop.- GPW - Line 39 - 2014"},null,null,null,null,null,null,null,null,0]
["Sch XI(a)(v)","Loss Triangles - Casualty Non-Proportional",null,{"$f":"\"Cas. Non-Prop.- Gross Premiums Earned - Line 37 - Prior\"","v":"Cas. Non-Prop.- Gross Premiums Earned - Line 37 - Prior"},null,null,null,null,null,null,null,null,"XXX"]
["Sch XI(a)(v)","Loss Triangles - Casualty Non-Proportional",null,{"$f":"\"Cas. Non-Prop.- Gross Premiums Earned - Line 44 - \"&$E$2-3","v":"Cas. Non-Prop.- Gross Premiums Earned - Line 44 - 2019"},null,null,null,null,null,null,null,null,0]
["Sch XI(a)(v)","Loss Triangles - Casualty Non-Proportional",null,{"$f":"\"Cas. Non-Prop.- NPW - Line 43 - \"&$E$2-4","v":"Cas. Non-Prop.- NPW - Line 43 - 2018"},null,null,null,null,null,null,null,null,0]
["Sch XI(a)(v)","Loss Triangles - Casualty Non-Proportional",null,{"$f":"\"Cas. Non-Prop.- Net Premiums Earned - Line 41 - \"&$E$2-6","v":"Cas. Non-Prop.- Net Premiums Earned - Line 41 - 2016"},null,null,null,null,null,null,null,null,0]
["Sch XI(a)(v)","Loss Triangles - Casualty Non-Proportional",null,{"$f":"\"Cas. Non-Prop.- Net Premiums Earned - Line 45 - \"&$E$2-2","v":"Cas. Non-Prop.- Net Premiums Earned - Line 45 - 2020"},null,null,null,null,null,null,null,null,0]
["Sch XI(a)(v)","Loss Triangles - Casualty Non-Proportional",null,{"$f":"\"Cas. Non-Prop.- Expenses Paid - Line 47 - \"&$E$2","v":"Cas. Non-Prop.- Expenses Paid - Line 47 - 2022"},null,null,null,null,null,null,null,null,0]
["Sch XI(a)(v)","Loss Triangles - Casualty Non-Proportional",null,{"$f":"\"Cas. Non-Prop.- Expenses Incurred - Line 45 - \"&$E$2-2","v":"Cas. Non-Prop.- Expenses Incurred - Line 45 - 2020"},null,null,null,null,null,null,null,null,0]
["Sch XI(a)(v)","Loss Triangles - Casualty Non-Proportional",null,{"$f":"\"Cas. Non-Prop.- Expenses Incurred - Line 46 - \"&$E$2-1","v":"Cas. Non-Prop.- Expenses Incurred - Line 46 - 2021"},null,null,null,null,null,null,null,null,0]
["Sch XI(a)(v)","Loss Triangles - Casualty Non-Proportional",null,{"$f":"\"Cas. Non-Prop.- Brokerage - Line 43 - \"&$E$2-4","v":"Cas. Non-Prop.- Brokerage - Line 43 - 2018"},null,null,null,null,null,null,null,null,0]
["Sch XI(a)(v)","Loss Triangles - Casualty Non-Proportional",null,{"$f":"\"Cas. Non-Prop.- G&A - Line 41 - \"&$E$2-6","v":"Cas. Non-Prop.- G&A - Line 41 - 2016"},null,null,null,null,null,null,null,null,0]
["Sch XI(a)(v)","Loss Triangles - Casualty Non-Proportional",null,{"$f":"\"Cas. Non-Prop.- G&A - Line 47 - \"&$E$2","v":"Cas. Non-Prop.- G&A - Line 47 - 2022"},null,null,null,null,null,null,null,null,0]
["Sch XI(a)(v)","Loss Triangles - Casualty Non-Proportional",null,{"$f":"\"Cas. Non-Prop.- Personnel Costs - Line 47 - \"&$E$2","v":"Cas. Non-Prop.- Personnel Costs - Line 47 - 2022"},null,null,null,null,null,null,null,null,0]
["Sch XI(a)(v)","Loss Triangles - Casualty Non-Proportional",null,{"$f":"\"Cas. Non-Prop.- Other Exp. - Line 45 - \"&$E$2-2","v":"Cas. Non-Prop.- Other Exp. - Line 45 - 2020"},null,null,null,null,null,null,null,null,0]
["Sch XI(a)(vi)","Loss Triangles - Financial Lines",null,{"$f":"\"Fin Lines Incurred - Line 2 - \"&$E$2-8&\" - \"&$E$2-9","v":"Fin Lines Incurred - Line 2 - 2014 - 2013"},null,null,null,null,null,null,null,null,0]
["Sch XI(a)(vi)","Loss Triangles - Financial Lines",null,{"$f":"\"Fin Lines Incurred - Line 5 - \"&$E$2-6&\" - \"&$E$2-6","v":"Fin Lines Incurred - Line 5 - 2016 - 2016"},null,null,null,null,null,null,null,null,0]
["Sch XI(a)(vi)","Loss Triangles - Financial Lines",null,{"$f":"\"Fin Lines Incurred - Line 1 - \"&$E$2-5&\" - Prior\"","v":"Fin Lines Incurred - Line 1 - 2017 - Prior"},null,null,null,null,null,null,null,null,0]
["Sch XI(a)(vi)","Loss Triangles - Financial Lines",null,{"$f":"\"Fin Lines Incurred - Line 7 - \"&$E$2-4&\" - \"&$E$2-4","v":"Fin Lines Incurred - Line 7 - 2018 - 2018"},null,null,null,null,null,null,null,null,0]
["Sch XI(a)(vi)","Loss Triangles - Financial Lines",null,{"$f":"\"Fin Lines Incurred - Line 5 - \"&$E$2-3&\" - \"&$E$2-6","v":"Fin Lines Incurred - Line 5 - 2019 - 2016"},null,null,null,null,null,null,null,null,0]
["Sch XI(a)(vi)","Loss Triangles - Financial Lines",null,{"$f":"\"Fin Lines Incurred - Line 6 - \"&$E$2-2&\" - \"&$E$2-5","v":"Fin Lines Incurred - Line 6 - 2020 - 2017"},null,null,null,null,null,null,null,null,0]
["Sch XI(a)(vi)","Loss Triangles - Financial Lines",null,{"$f":"\"Fin Lines Incurred - Line 6 - \"&$E$2-1&\" - \"&$E$2-5","v":"Fin Lines Incurred - Line 6 - 2021 - 2017"},null,null,null,null,null,null,null,null,0]
["Sch XI(a)(vi)","Loss Triangles - Financial Lines",null,{"$f":"\"Fin Lines Incurred - Line 4 - \"&$E$2&\" - \"&$E$2-7","v":"Fin Lines Incurred - Line 4 - 2022 - 2015"},null,null,null,null,null,null,null,null,0]
["Sch XI(a)(vi)","Loss Triangles - Financial Lines",null,{"$f":"\"Fin Lines Incurred - Line 2 - Cat Loss. - \"&$E$2-9","v":"Fin Lines Incurred - Line 2 - Cat Loss. - 2013"},null,null,null,null,null,null,null,null,0]
["Sch XI(a)(vi)","Loss Triangles - Financial Lines",null,{"$f":"\"Fin Lines Incurred - Line 11 - Cat Loss. - \"&$E$2","v":"Fin Lines Incurred - Line 11 - Cat Loss. - 2022"},null,null,null,null,null,null,null,null,0]
["Sch XI(a)(vi)","Loss Triangles - Financial Lines",null,{"$f":"\"Fin Lines Paid - Line 13 - \"&$E$2-7&\" - Prior\"","v":"Fin Lines Paid - Line 13 - 2015 - Prior"},null,null,null,null,null,null,null,null,0]
["Sch XI(a)(vi)","Loss Triangles - Financial Lines",null,{"$f":"\"Fin Lines Paid - Line 16 - \"&$E$2-7&\" - \"&$E$2-7","v":"Fin Lines Paid - Line 16 - 2015 - 2015"},null,null,null,null,null,null,null,null,0]
["Sch XI(a)(vi)","Loss Triangles - Financial Lines",null,{"$f":"\"Fin Lines Paid - Line 16 - \"&$E$2-5&\" - \"&$E$2-7","v":"Fin Lines Paid - Line 16 - 2017 - 2015"},null,null,null,null,null,null,null,null,0]
["Sch XI(a)(vi)","Loss Triangles - Financial Lines",null,{"$f":"\"Fin Lines Paid - Line 18 - \"&$E$2-4&\" - \"&$E$2-5","v":"Fin Lines Paid - Line 18 - 2018 - 2017"},null,null,null,null,null,null,null,null,0]
["Sch XI(a)(vi)","Loss Triangles - Financial Lines",null,{"$f":"\"Fin Lines Paid - Line 20 - \"&$E$2-3&\" - \"&$E$2-3","v":"Fin Lines Paid - Line 20 - 2019 - 2019"},null,null,null,null,null,null,null,null,0]
["Sch XI(a)(vi)","Loss Triangles - Financial Lines",null,{"$f":"\"Fin Lines Paid - Line 21 - \"&$E$2-2&\" - \"&$E$2-2","v":"Fin Lines Paid - Line 21 - 2020 - 2020"},null,null,null,null,null,null,null,null,0]
["Sch XI(a)(vi)","Loss Triangles - Financial Lines",null,{"$f":"\"Fin Lines Paid - Line 17 - \"&$E$2-1&\" - \"&$E$2-6","v":"Fin Lines Paid - Line 17 - 2021 - 2016"},null,null,null,null,null,null,null,null,0]
["Sch XI(a)(vi)","Loss Triangles - Financial Lines",null,{"$f":"\"Fin Lines Paid - Line 19 - \"&$E$2&\" - \"&$E$2-4","v":"Fin Lines Paid - Line 19 - 2022 - 2018"},null,null,null,null,null,null,null,null,0]
["Sch XI(a)(vi)","Loss Triangles - Financial Lines",null,{"$f":"\"Fin Lines Paid - Line 20 - \"&$E$2&\" - \"&$E$2-3","v":"Fin Lines Paid - Line 20 - 2022 - 2019"},null,null,null,null,null,null,null,null,0]
["Sch XI(a)(vi)","Loss Triangles - Financial Lines",null,{"$f":"\"Fin Lines Paid - Line 19 - Cat Loss. - \"&$E$2-4","v":"Fin Lines Paid - Line 19 - Cat Loss. - 2018"},null,null,null,null,null,null,null,null,0]
["Sch XI(a)(vi)","Loss Triangles - Financial Lines",null,{"$f":"\"Fin Lines Reserve - Line 25 - \"&$E$2-8&\" - Prior\"","v":"Fin Lines Reserve - Line 25 - 2014 - Prior"},null,null,null,null,null,null,null,null,0]
["Sch XI(a)(vi)","Loss Triangles - Financial Lines",null,{"$f":"\"Fin Lines Reserve - Line 27 - \"&$E$2-6&\" - \"&$E$2-8","v":"Fin Lines Reserve - Line 27 - 2016 - 2014"},null,null,null,null,null,null,null,null,0]
["Sch XI(a)(vi)","Loss Triangles - Financial Lines",null,{"$f":"\"Fin Lines Reserve - Line 29 - \"&$E$2-5&\" - \"&$E$2-6","v":"Fin Lines Reserve - Line 29 - 2017 - 2016"},null,null,null,null,null,null,null,null,0]
["Sch XI(a)(vi)","Loss Triangles - Financial Lines",null,{"$f":"\"Fin Lines Reserve - Line 26 - \"&$E$2-3&\" - \"&$E$2-9","v":"Fin Lines Reserve - Line 26 - 2019 - 2013"},null,null,null,null,null,null,null,null,0]
["Sch XI(a)(vi)","Loss Triangles - Financial Lines",null,{"$f":"\"Fin Lines Reserve - Line 27 - \"&$E$2-2&\" - \"&$E$2-8","v":"Fin Lines Reserve - Line 27 - 2020 - 2014"},null,null,null,null,null,null,null,null,0]
["Sch XI(a)(vi)","Loss Triangles - Financial Lines",null,{"$f":"\"Fin Lines Reserve - Line 31 - \"&$E$2-2&\" - \"&$E$2-4","v":"Fin Lines Reserve - Line 31 - 2020 - 2018"},null,null,null,null,null,null,null,null,0]
["Sch XI(a)(vi)","Loss Triangles - Financial Lines",null,{"$f":"\"Fin Lines Reserve - Line 27 - \"&$E$2-1&\" - \"&$E$2-8","v":"Fin Lines Reserve - Line 27 - 2021 - 2014"},null,null,null,null,null,null,null,null,0]
["Sch XI(a)(vi)","Loss Triangles - Financial Lines",null,{"$f":"\"Fin Lines Reserve - Line 26 - \"&$E$2&\" - \"&$E$2-9","v":"Fin Lines Reserve - Line 26 - 2022 - 2013"},null,null,null,null,null,null,null,null,0]
["Sch XI(a)(vi)","Loss Triangles - Financial Lines",null,{"$f":"\"Fin Lines Reserve - Line 35 - \"&$E$2&\" - \"&$E$2","v":"Fin Lines Reserve - Line 35 - 2022 - 2022"},null,null,null,null,null,null,null,null,0]
["Sch XI(a)(vi)","Loss Triangles - Financial Lines",null,{"$f":"\"Fin Lines Reserve - Line 32 - Cat Loss. - \"&$E$2-3","v":"Fin Lines Reserve - Line 32 - Cat Loss. - 2019"},null,null,null,null,null,null,null,null,0]
["Sch XI(a)(vi)","Loss Triangles - Financial Lines",null,{"$f":"\"Fin Lines GPW - Line 42 - \"&$E$2-5","v":"Fin Lines GPW - Line 42 - 2017"},null,null,null,null,null,null,null,null,0]
["Sch XI(a)(vi)","Loss Triangles - Financial Lines",null,{"$f":"\"Fin Lines Gross Premiums Earned - Line 37 - Prior\"","v":"Fin Lines Gross Premiums Earned - Line 37 - Prior"},null,null,null,null,null,null,null,null,"XXX"]
["Sch XI(a)(vi)","Loss Triangles - Financial Lines",null,{"$f":"\"Fin Lines NPW - Line 37 - Prior\"","v":"Fin Lines NPW - Line 37 - Prior"},null,null,null,null,null,null,null,null,"XXX"]
["Sch XI(a)(vi)","Loss Triangles - Financial Lines",null,{"$f":"\"Fin Lines NPW - Line 46 - \"&$E$2-1","v":"Fin Lines NPW - Line 46 - 2021"},null,null,null,null,null,null,null,null,0]
["Sch XI(a)(vi)","Loss Triangles - Financial Lines",null,{"$f":"\"Fin Lines Net Premiums Earned - Line 42 - \"&$E$2-5","v":"Fin Lines Net Premiums Earned - Line 42 - 2017"},null,null,null,null,null,null,null,null,0]
["Sch XI(a)(vi)","Loss Triangles - Financial Lines",null,{"$f":"\"Fin Lines Net Premiums Earned - Line 44 - \"&$E$2-3","v":"Fin Lines Net Premiums Earned - Line 44 - 2019"},null,null,null,null,null,null,null,null,0]
["Sch XI(a)(vi)","Loss Triangles - Financial Lines",null,{"$f":"\"Fin Lines Expenses Paid - Line 42 - \"&$E$2-5","v":"Fin Lines Expenses Paid - Line 42 - 2017"},null,null,null,null,null,null,null,null,0]
["Sch XI(a)(vi)","Loss Triangles - Financial Lines",null,{"$f":"\"Fin Lines Expenses Incurred - Line 40 - \"&$E$2-7","v":"Fin Lines Expenses Incurred - Line 40 - 2015"},null,null,null,null,null,null,null,null,0]
["Sch XI(a)(vi)","Loss Triangles - Financial Lines",null,{"$f":"\"Fin Lines Expenses Incurred - Line 45 - \"&$E$2-2","v":"Fin Lines Expenses Incurred - Line 45 - 2020"},null,null,null,null,null,null,null,null,0]
["Sch XI(a)(vi)","Loss Triangles - Financial Lines",null,{"$f":"\"Fin Lines Brokerage - Line 46 - \"&$E$2-1","v":"Fin Lines Brokerage - Line 46 - 2021"},null,null,null,null,null,null,null,null,0]
["Sch XI(a)(vi)","Loss Triangles - Financial Lines",null,{"$f":"\"Fin Lines G&A - Line 44 - \"&$E$2-3","v":"Fin Lines G&A - Line 44 - 2019"},null,null,null,null,null,null,null,null,0]
["Sch XI(a)(vi)","Loss Triangles - Financial Lines",null,{"$f":"\"Fin Lines G&A - Line 46 - \"&$E$2-1","v":"Fin Lines G&A - Line 46 - 2021"},null,null,null,null,null,null,null,null,0]
["Sch XI(a)(vi)","Loss Triangles - Financial Lines",null,{"$f":"\"Fin Lines Personnel Costs - Line 42 - \"&$E$2-5","v":"Fin Lines Personnel Costs - Line 42 - 2017"},null,null,null,null,null,null,null,null,0]
["Sch XI(a)(vi)","Loss Triangles - Financial Lines",null,{"$f":"\"Fin Lines Other Exp. - Line 40 - \"&$E$2-7","v":"Fin Lines Other Exp. - Line 40 - 2015"},null,null,null,null,null,null,null,null,0]
["Sch XI(a)(vi)","Loss Triangles - Financial Lines",null,{"$f":"\"Fin Lines Other Exp. - Line 47 - \"&$E$2","v":"Fin Lines Other Exp. - Line 47 - 2022"},null,null,null,null,null,null,null,null,0]
["Sch XI(a)(vii)","Loss Triangles - Other Specialty Lines",null,{"$f":"\"Otr. Special - Incurred - Line 4 - \"&$E$2-7&\" - \"&$E$2-7","v":"Otr. Special - Incurred - Line 4 - 2015 - 2015"},null,null,null,null,null,null,null,null,0]
["Sch XI(a)(vii)","Loss Triangles - Other Specialty Lines",null,{"$f":"\"Otr. Special - Incurred - Line 4 - \"&$E$2-5&\" - \"&$E$2-7","v":"Otr. Special - Incurred - Line 4 - 2017 - 2015"},null,null,null,null,null,null,null,null,0]
["Sch XI(a)(vii)","Loss Triangles - Other Specialty Lines",null,{"$f":"\"Otr. Special - Incurred - Line 6 - \"&$E$2-4&\" - \"&$E$2-5","v":"Otr. Special - Incurred - Line 6 - 2018 - 2017"},null,null,null,null,null,null,null,null,0]
["Sch XI(a)(vii)","Loss Triangles - Other Specialty Lines",null,{"$f":"\"Otr. Special - Incurred - Line 8 - \"&$E$2-3&\" - \"&$E$2-3","v":"Otr. Special - Incurred - Line 8 - 2019 - 2019"},null,null,null,null,null,null,null,null,0]
["Sch XI(a)(vii)","Loss Triangles - Other Specialty Lines",null,{"$f":"\"Otr. Special - Incurred - Line 9 - \"&$E$2-2&\" - \"&$E$2-2","v":"Otr. Special - Incurred - Line 9 - 2020 - 2020"},null,null,null,null,null,null,null,null,0]
["Sch XI(a)(vii)","Loss Triangles - Other Specialty Lines",null,{"$f":"\"Otr. Special - Incurred - Line 5 - \"&$E$2-1&\" - \"&$E$2-6","v":"Otr. Special - Incurred - Line 5 - 2021 - 2016"},null,null,null,null,null,null,null,null,0]
["Sch XI(a)(vii)","Loss Triangles - Other Specialty Lines",null,{"$f":"\"Otr. Special - Incurred - Line 9 - \"&$E$2-1&\" - \"&$E$2-2","v":"Otr. Special - Incurred - Line 9 - 2021 - 2020"},null,null,null,null,null,null,null,null,0]
["Sch XI(a)(vii)","Loss Triangles - Other Specialty Lines",null,{"$f":"\"Otr. Special - Incurred - Line 8 - \"&$E$2&\" - \"&$E$2-3","v":"Otr. Special - Incurred - Line 8 - 2022 - 2019"},null,null,null,null,null,null,null,null,0]
["Sch XI(a)(vii)","Loss Triangles - Other Specialty Lines",null,{"$f":"\"Otr. Special - Incurred - Line 7 - Cat Loss. - \"&$E$2-4","v":"Otr. Special - Incurred - Line 7 - Cat Loss. - 2018"},null,null,null,null,null,null,null,null,0]
["Sch XI(a)(vii)","Loss Triangles - Other Specialty Lines",null,{"$f":"\"Otr. Special - Paid - Line 13 - \"&$E$2-8&\" - Prior\"","v":"Otr. Special - Paid - Line 13 - 2014 - Prior"},null,null,null,null,null,null,null,null,0]
["Sch XI(a)(vii)","Loss Triangles - Other Specialty Lines",null,{"$f":"\"Otr. Special - Paid - Line 15 - \"&$E$2-6&\" - \"&$E$2-8","v":"Otr. Special - Paid - Line 15 - 2016 - 2014"},null,null,null,null,null,null,null,null,0]
["Sch XI(a)(vii)","Loss Triangles - Other Specialty Lines",null,{"$f":"\"Otr. Special - Paid - Line 17 - \"&$E$2-5&\" - \"&$E$2-6","v":"Otr. Special - Paid - Line 17 - 2017 - 2016"},null,null,null,null,null,null,null,null,0]
["Sch XI(a)(vii)","Loss Triangles - Other Specialty Lines",null,{"$f":"\"Otr. Special - Paid - Line 14 - \"&$E$2-3&\" - \"&$E$2-9","v":"Otr. Special - Paid - Line 14 - 2019 - 2013"},null,null,null,null,null,null,null,null,0]
["Sch XI(a)(vii)","Loss Triangles - Other Specialty Lines",null,{"$f":"\"Otr. Special - Paid - Line 15 - \"&$E$2-3&\" - \"&$E$2-8","v":"Otr. Special - Paid - Line 15 - 2019 - 2014"},null,null,null,null,null,null,null,null,0]
["Sch XI(a)(vii)","Loss Triangles - Other Specialty Lines",null,{"$f":"\"Otr. Special - Paid - Line 19 - \"&$E$2-2&\" - \"&$E$2-4","v":"Otr. Special - Paid - Line 19 - 2020 - 2018"},null,null,null,null,null,null,null,null,0]
["Sch XI(a)(vii)","Loss Triangles - Other Specialty Lines",null,{"$f":"\"Otr. Special - Paid - Line 15 - \"&$E$2-1&\" - \"&$E$2-8","v":"Otr. Special - Paid - Line 15 - 2021 - 2014"},null,null,null,null,null,null,null,null,0]
["Sch XI(a)(vii)","Loss Triangles - Other Specialty Lines",null,{"$f":"\"Otr. Special - Paid - Line 14 - \"&$E$2&\" - \"&$E$2-9","v":"Otr. Special - Paid - Line 14 - 2022 - 2013"},null,null,null,null,null,null,null,null,0]
["Sch XI(a)(vii)","Loss Triangles - Other Specialty Lines",null,{"$f":"\"Otr. Special - Paid - Line 23 - \"&$E$2&\" - \"&$E$2","v":"Otr. Special - Paid - Line 23 - 2022 - 2022"},null,null,null,null,null,null,null,null,0]
["Sch XI(a)(vii)","Loss Triangles - Other Specialty Lines",null,{"$f":"\"Otr. Special - Paid - Line 18 - Cat Loss. - \"&$E$2-5","v":"Otr. Special - Paid - Line 18 - Cat Loss. - 2017"},null,null,null,null,null,null,null,null,0]
["Sch XI(a)(vii)","Loss Triangles - Other Specialty Lines",null,{"$f":"\"Otr. Special - Reserve - Line 25 - \"&$E$2-7&\" - Prior\"","v":"Otr. Special - Reserve - Line 25 - 2015 - Prior"},null,null,null,null,null,null,null,null,0]
["Sch XI(a)(vii)","Loss Triangles - Other Specialty Lines",null,{"$f":"\"Otr. Special - Reserve - Line 25 - \"&$E$2-5&\" - Prior\"","v":"Otr. Special - Reserve - Line 25 - 2017 - Prior"},null,null,null,null,null,null,null,null,0]
["Sch XI(a)(vii)","Loss Triangles - Other Specialty Lines",null,{"$f":"\"Otr. Special - Reserve - Line 28 - \"&$E$2-5&\" - \"&$E$2-7","v":"Otr. Special - Reserve - Line 28 - 2017 - 2015"},null,null,null,null,null,null,null,null,0]
["Sch XI(a)(vii)","Loss Triangles - Other Specialty Lines",null,{"$f":"\"Otr. Special - Reserve - Line 28 - \"&$E$2-4&\" - \"&$E$2-7","v":"Otr. Special - Reserve - Line 28 - 2018 - 2015"},null,null,null,null,null,null,null,null,0]
["Sch XI(a)(vii)","Loss Triangles - Other Specialty Lines",null,{"$f":"\"Otr. Special - Reserve - Line 30 - \"&$E$2-3&\" - \"&$E$2-5","v":"Otr. Special - Reserve - Line 30 - 2019 - 2017"},null,null,null,null,null,null,null,null,0]
["Sch XI(a)(vii)","Loss Triangles - Other Specialty Lines",null,{"$f":"\"Otr. Special - Reserve - Line 30 - \"&$E$2-2&\" - \"&$E$2-5","v":"Otr. Special - Reserve - Line 30 - 2020 - 2017"},null,null,null,null,null,null,null,null,0]
["Sch XI(a)(vii)","Loss Triangles - Other Specialty Lines",null,{"$f":"\"Otr. Special - Reserve - Line 30 - \"&$E$2-1&\" - \"&$E$2-5","v":"Otr. Special - Reserve - Line 30 - 2021 - 2017"},null,null,null,null,null,null,null,null,0]
["Sch XI(a)(vii)","Loss Triangles - Other Specialty Lines",null,{"$f":"\"Otr. Special - Reserve - Line 29 - \"&$E$2&\" - \"&$E$2-6","v":"Otr. Special - Reserve - Line 29 - 2022 - 2016"},null,null,null,null,null,null,null,null,0]
["Sch XI(a)(vii)","Loss Triangles - Other Specialty Lines",null,{"$f":"\"Otr. Special - Reserve - Line 34 - \"&$E$2&\" - \"&$E$2-1","v":"Otr. Special - Reserve - Line 34 - 2022 - 2021"},null,null,null,null,null,null,null,null,0]
["Sch XI(a)(vii)","Loss Triangles - Other Specialty Lines",null,{"$f":"\"Otr. Special - Reserve - Line 35 - Cat Loss. - \"&$E$2","v":"Otr. Special - Reserve - Line 35 - Cat Loss. - 2022"},null,null,null,null,null,null,null,null,0]
["Sch XI(a)(vii)","Loss Triangles - Other Specialty Lines",null,{"$f":"\"Otr. Special - GPW - Line 37 - Prior\"","v":"Otr. Special - GPW - Line 37 - Prior"},null,null,null,null,null,null,null,null,"XXX"]
["Sch XI(a)(vii)","Loss Triangles - Other Specialty Lines",null,{"$f":"\"Otr. Special - GPW - Line 47 - \"&$E$2","v":"Otr. Special - GPW - Line 47 - 2022"},null,null,null,null,null,null,null,null,0]
["Sch XI(a)(vii)","Loss Triangles - Other Specialty Lines",null,{"$f":"\"Otr. Special - Gross Premiums Earned - Line 43 - \"&$E$2-4","v":"Otr. Special - Gross Premiums Earned - Line 43 - 2018"},null,null,null,null,null,null,null,null,0]
["Sch XI(a)(vii)","Loss Triangles - Other Specialty Lines",null,{"$f":"\"Otr. Special - NPW - Line 41 - \"&$E$2-6","v":"Otr. Special - NPW - Line 41 - 2016"},null,null,null,null,null,null,null,null,0]
["Sch XI(a)(vii)","Loss Triangles - Other Specialty Lines",null,{"$f":"\"Otr. Special - Net Premiums Earned - Line 37 - Prior\"","v":"Otr. Special - Net Premiums Earned - Line 37 - Prior"},null,null,null,null,null,null,null,null,"XXX"]
["Sch XI(a)(vii)","Loss Triangles - Other Specialty Lines",null,{"$f":"\"Otr. Special - Net Premiums Earned - Line 47 - \"&$E$2","v":"Otr. Special - Net Premiums Earned - Line 47 - 2022"},null,null,null,null,null,null,null,null,0]
["Sch XI(a)(vii)","Loss Triangles - Other Specialty Lines",null,{"$f":"\"Otr. Special - Expenses Paid - Line 45 - \"&$E$2-2","v":"Otr. Special - Expenses Paid - Line 45 - 2020"},null,null,null,null,null,null,null,null,0]
["Sch XI(a)(vii)","Loss Triangles - Other Specialty Lines",null,{"$f":"\"Otr. Special - Expenses Incurred - Line 42 - \"&$E$2-5","v":"Otr. Special - Expenses Incurred - Line 42 - 2017"},null,null,null,null,null,null,null,null,0]
["Sch XI(a)(vii)","Loss Triangles - Other Specialty Lines",null,{"$f":"\"Otr. Special - Expenses Incurred - Line 43 - \"&$E$2-4","v":"Otr. Special - Expenses Incurred - Line 43 - 2018"},null,null,null,null,null,null,null,null,0]
["Sch XI(a)(vii)","Loss Triangles - Other Specialty Lines",null,{"$f":"\"Otr. Special - Brokerage - Line 41 - \"&$E$2-6","v":"Otr. Special - Brokerage - Line 41 - 2016"},null,null,null,null,null,null,null,null,0]
["Sch XI(a)(vii)","Loss Triangles - Other Specialty Lines",null,{"$f":"\"Otr. Special - G&A - Line 43 - \"&$E$2-4","v":"Otr. Special - G&A - Line 43 - 2018"},null,null,null,null,null,null,null,null,0]
["Sch XI(a)(vii)","Loss Triangles - Other Specialty Lines",null,{"$f":"\"Otr. Special - G&A - Line 47 - \"&$E$2","v":"Otr. Special - G&A - Line 47 - 2022"},null,null,null,null,null,null,null,null,0]
["Sch XI(a)(vii)","Loss Triangles - Other Specialty Lines",null,{"$f":"\"Otr. Special - Personnel Costs - Line 45 - \"&$E$2-2","v":"Otr. Special - Personnel Costs - Line 45 - 2020"},null,null,null,null,null,null,null,null,0]
["Sch XI(a)(vii)","Loss Triangles - Other Specialty Lines",null,{"$f":"\"Otr. Special - Other Exp. - Line 44 - \"&$E$2-3","v":"Otr. Special - Other Exp. - Line 44 - 2019"},null,null,null,null,null,null,null,null,0]
["Sch XI(a)(viii)","Loss Triangles - Structured/Finite Lines",null,{"$f":"\"Stuct. Lines - Incurred - Line 1 - \"&$E$2-8&\" - Prior\"","v":"Stuct. Lines - Incurred - Line 1 - 2014 - Prior"},null,null,null,null,null,null,null,null,0]
["Sch XI(a)(viii)","Loss Triangles - Structured/Finite Lines",null,{"$f":"\"Stuct. Lines - Incurred - Line 3 - \"&$E$2-6&\" - \"&$E$2-8","v":"Stuct. Lines - Incurred - Line 3 - 2016 - 2014"},null,null,null,null,null,null,null,null,0]
["Sch XI(a)(viii)","Loss Triangles - Structured/Finite Lines",null,{"$f":"\"Stuct. Lines - Incurred - Line 4 - \"&$E$2-6&\" - \"&$E$2-7","v":"Stuct. Lines - Incurred - Line 4 - 2016 - 2015"},null,null,null,null,null,null,null,null,0]
["Sch XI(a)(viii)","Loss Triangles - Structured/Finite Lines",null,{"$f":"\"Stuct. Lines - Incurred - Line 1 - \"&$E$2-4&\" - Prior\"","v":"Stuct. Lines - Incurred - Line 1 - 2018 - Prior"},null,null,null,null,null,null,null,null,0]
["Sch XI(a)(viii)","Loss Triangles - Structured/Finite Lines",null,{"$f":"\"Stuct. Lines - Incurred - Line 3 - \"&$E$2-3&\" - \"&$E$2-8","v":"Stuct. Lines - Incurred - Line 3 - 2019 - 2014"},null,null,null,null,null,null,null,null,0]
["Sch XI(a)(viii)","Loss Triangles - Structured/Finite Lines",null,{"$f":"\"Stuct. Lines - Incurred - Line 4 - \"&$E$2-2&\" - \"&$E$2-7","v":"Stuct. Lines - Incurred - Line 4 - 2020 - 2015"},null,null,null,null,null,null,null,null,0]
["Sch XI(a)(viii)","Loss Triangles - Structured/Finite Lines",null,{"$f":"\"Stuct. Lines - Incurred - Line 4 - \"&$E$2-1&\" - \"&$E$2-7","v":"Stuct. Lines - Incurred - Line 4 - 2021 - 2015"},null,null,null,null,null,null,null,null,0]
["Sch XI(a)(viii)","Loss Triangles - Structured/Finite Lines",null,{"$f":"\"Stuct. Lines - Incurred - Line 2 - \"&$E$2&\" - \"&$E$2-9","v":"Stuct. Lines - Incurred - Line 2 - 2022 - 2013"},null,null,null,null,null,null,null,null,0]
["Sch XI(a)(viii)","Loss Triangles - Structured/Finite Lines",null,{"$f":"\"Stuct. Lines - Incurred - Line 11 - \"&$E$2&\" - \"&$E$2","v":"Stuct. Lines - Incurred - Line 11 - 2022 - 2022"},null,null,null,null,null,null,null,null,0]
["Sch XI(a)(viii)","Loss Triangles - Structured/Finite Lines",null,{"$f":"\"Stuct. Lines - Incurred - Line 6 - Cat Loss. - \"&$E$2-5","v":"Stuct. Lines - Incurred - Line 6 - Cat Loss. - 2017"},null,null,null,null,null,null,null,null,0]
["Sch XI(a)(viii)","Loss Triangles - Structured/Finite Lines",null,{"$f":"\"Stuct. Lines - Incurred - Line 9 - Cat Loss. - \"&$E$2-2","v":"Stuct. Lines - Incurred - Line 9 - Cat Loss. - 2020"},null,null,null,null,null,null,null,null,0]
["Sch XI(a)(viii)","Loss Triangles - Structured/Finite Lines",null,{"$f":"\"Stuct. Lines - Paid - Line 14 - \"&$E$2-7&\" - \"&$E$2-9","v":"Stuct. Lines - Paid - Line 14 - 2015 - 2013"},null,null,null,null,null,null,null,null,0]
["Sch XI(a)(viii)","Loss Triangles - Structured/Finite Lines",null,{"$f":"\"Stuct. Lines - Paid - Line 16 - \"&$E$2-5&\" - \"&$E$2-7","v":"Stuct. Lines - Paid - Line 16 - 2017 - 2015"},null,null,null,null,null,null,null,null,0]
["Sch XI(a)(viii)","Loss Triangles - Structured/Finite Lines",null,{"$f":"\"Stuct. Lines - Paid - Line 16 - \"&$E$2-4&\" - \"&$E$2-7","v":"Stuct. Lines - Paid - Line 16 - 2018 - 2015"},null,null,null,null,null,null,null,null,0]
["Sch XI(a)(viii)","Loss Triangles - Structured/Finite Lines",null,{"$f":"\"Stuct. Lines - Paid - Line 18 - \"&$E$2-3&\" - \"&$E$2-5","v":"Stuct. Lines - Paid - Line 18 - 2019 - 2017"},null,null,null,null,null,null,null,null,0]
["Sch XI(a)(viii)","Loss Triangles - Structured/Finite Lines",null,{"$f":"\"Stuct. Lines - Paid - Line 18 - \"&$E$2-2&\" - \"&$E$2-5","v":"Stuct. Lines - Paid - Line 18 - 2020 - 2017"},null,null,null,null,null,null,null,null,0]
["Sch XI(a)(viii)","Loss Triangles - Structured/Finite Lines",null,{"$f":"\"Stuct. Lines - Paid - Line 18 - \"&$E$2-1&\" - \"&$E$2-5","v":"Stuct. Lines - Paid - Line 18 - 2021 - 2017"},null,null,null,null,null,null,null,null,0]
["Sch XI(a)(viii)","Loss Triangles - Structured/Finite Lines",null,{"$f":"\"Stuct. Lines - Paid - Line 17 - \"&$E$2&\" - \"&$E$2-6","v":"Stuct. Lines - Paid - Line 17 - 2022 - 2016"},null,null,null,null,null,null,null,null,0]
["Sch XI(a)(viii)","Loss Triangles - Structured/Finite Lines",null,{"$f":"\"Stuct. Lines - Paid - Line 22 - \"&$E$2&\" - \"&$E$2-1","v":"Stuct. Lines - Paid - Line 22 - 2022 - 2021"},null,null,null,null,null,null,null,null,0]
["Sch XI(a)(viii)","Loss Triangles - Structured/Finite Lines",null,{"$f":"\"Stuct. Lines - Paid - Line 15 - Cat Loss. - \"&$E$2-8","v":"Stuct. Lines - Paid - Line 15 - Cat Loss. - 2014"},null,null,null,null,null,null,null,null,0]
["Sch XI(a)(viii)","Loss Triangles - Structured/Finite Lines",null,{"$f":"\"Stuct. Lines - Reserve - Line 25 - \"&$E$2-9&\" - Prior\"","v":"Stuct. Lines - Reserve - Line 25 - 2013 - Prior"},null,null,null,null,null,null,null,null,0]
["Sch XI(a)(viii)","Loss Triangles - Structured/Finite Lines",null,{"$f":"\"Stuct. Lines - Reserve - Line 26 - \"&$E$2-6&\" - \"&$E$2-9","v":"Stuct. Lines - Reserve - Line 26 - 2016 - 2013"},null,null,null,null,null,null,null,null,0]
["Sch XI(a)(viii)","Loss Triangles - Structured/Finite Lines",null,{"$f":"\"Stuct. Lines - Reserve - Line 28 - \"&$E$2-5&\" - \"&$E$2-7","v":"Stuct. Lines - Reserve - Line 28 - 2017 - 2015"},null,null,null,null,null,null,null,null,0]
["Sch XI(a)(viii)","Loss Triangles - Structured/Finite Lines",null,{"$f":"\"Stuct. Lines - Reserve - Line 31 - \"&$E$2-4&\" - \"&$E$2-4","v":"Stuct. Lines - Reserve - Line 31 - 2018 - 2018"},null,null,null,null,null,null,null,null,0]
["Sch XI(a)(viii)","Loss Triangles - Structured/Finite Lines",null,{"$f":"\"Stuct. Lines - Reserve - Line 31 - \"&$E$2-3&\" - \"&$E$2-4","v":"Stuct. Lines - Reserve - Line 31 - 2019 - 2018"},null,null,null,null,null,null,null,null,0]
["Sch XI(a)(viii)","Loss Triangles - Structured/Finite Lines",null,{"$f":"\"Stuct. Lines - Reserve - Line 33 - \"&$E$2-2&\" - \"&$E$2-2","v":"Stuct. Lines - Reserve - Line 33 - 2020 - 2020"},null,null,null,null,null,null,null,null,0]
["Sch XI(a)(viii)","Loss Triangles - Structured/Finite Lines",null,{"$f":"\"Stuct. Lines - Reserve - Line 25 - \"&$E$2-1&\" - Prior\"","v":"Stuct. Lines - Reserve - Line 25 - 2021 - Prior"},null,null,null,null,null,null,null,null,0]
["Sch XI(a)(viii)","Loss Triangles - Structured/Finite Lines",null,{"$f":"\"Stuct. Lines - Reserve - Line 34 - \"&$E$2-1&\" - \"&$E$2-1","v":"Stuct. Lines - Reserve - Line 34 - 2021 - 2021"},null,null,null,null,null,null,null,null,0]
["Sch XI(a)(viii)","Loss Triangles - Structured/Finite Lines",null,{"$f":"\"Stuct. Lines - Reserve - Line 32 - \"&$E$2&\" - \"&$E$2-3","v":"Stuct. Lines - Reserve - Line 32 - 2022 - 2019"},null,null,null,null,null,null,null,null,0]
["Sch XI(a)(viii)","Loss Triangles - Structured/Finite Lines",null,{"$f":"\"Stuct. Lines - Reserve - Line 30 - Cat Loss. - \"&$E$2-5","v":"Stuct. Lines - Reserve - Line 30 - Cat Loss. - 2017"},null,null,null,null,null,null,null,null,0]
["Sch XI(a)(viii)","Loss Triangles - Structured/Finite Lines",null,{"$f":"\"Stuct. Lines - GPW - Line 40 - \"&$E$2-7","v":"Stuct. Lines - GPW - Line 40 - 2015"},null,null,null,null,null,null,null,null,0]
["Sch XI(a)(viii)","Loss Triangles - Structured/Finite Lines",null,{"$f":"\"Stuct. Lines - GPW - Line 46 - \"&$E$2-1","v":"Stuct. Lines - GPW - Line 46 - 2021"},null,null,null,null,null,null,null,null,0]
["Sch XI(a)(viii)","Loss Triangles - Structured/Finite Lines",null,{"$f":"\"Stuct. Lines - Gross Premiums Earned - Line 46 - \"&$E$2-1","v":"Stuct. Lines - Gross Premiums Earned - Line 46 - 2021"},null,null,null,null,null,null,null,null,0]
["Sch XI(a)(viii)","Loss Triangles - Structured/Finite Lines",null,{"$f":"\"Stuct. Lines - NPW - Line 44 - \"&$E$2-3","v":"Stuct. Lines - NPW - Line 44 - 2019"},null,null,null,null,null,null,null,null,0]
["Sch XI(a)(viii)","Loss Triangles - Structured/Finite Lines",null,{"$f":"\"Stuct. Lines - NPW - Line 47 - \"&$E$2","v":"Stuct. Lines - NPW - Line 47 - 2022"},null,null,null,null,null,null,null,null,0]
["Sch XI(a)(viii)","Loss Triangles - Structured/Finite Lines",null,{"$f":"\"Stuct. Lines - Net Premiums Earned - Line 42 - \"&$E$2-5","v":"Stuct. Lines - Net Premiums Earned - Line 42 - 2017"},null,null,null,null,null,null,null,null,0]
["Sch XI(a)(viii)","Loss Triangles - Structured/Finite Lines",null,{"$f":"\"Stuct. Lines - Expenses Paid - Line 40 - \"&$E$2-7","v":"Stuct. Lines - Expenses Paid - Line 40 - 2015"},null,null,null,null,null,null,null,null,0]
["Sch XI(a)(viii)","Loss Triangles - Structured/Finite Lines",null,{"$f":"\"Stuct. Lines - Expenses Incurred - Line 37 - Prior\"","v":"Stuct. Lines - Expenses Incurred - Line 37 - Prior"},null,null,null,null,null,null,null,null,0]
["Sch XI(a)(viii)","Loss Triangles - Structured/Finite Lines",null,{"$f":"\"Stuct. Lines - Expenses Incurred - Line 46 - \"&$E$2-1","v":"Stuct. Lines - Expenses Incurred - Line 46 - 2021"},null,null,null,null,null,null,null,null,0]
["Sch XI(a)(viii)","Loss Triangles - Structured/Finite Lines",null,{"$f":"\"Stuct. Lines - Brokerage - Line 44 - \"&$E$2-3","v":"Stuct. Lines - Brokerage - Line 44 - 2019"},null,null,null,null,null,null,null,null,0]
["Sch XI(a)(viii)","Loss Triangles - Structured/Finite Lines",null,{"$f":"\"Stuct. Lines - G&A - Line 42 - \"&$E$2-5","v":"Stuct. Lines - G&A - Line 42 - 2017"},null,null,null,null,null,null,null,null,0]
["Sch XI(a)(viii)","Loss Triangles - Structured/Finite Lines",null,{"$f":"\"Stuct. Lines - Personnel Costs - Line 39 - \"&$E$2-8","v":"Stuct. Lines - Personnel Costs - Line 39 - 2014"},null,null,null,null,null,null,null,null,0]
["Sch XI(a)(viii)","Loss Triangles - Structured/Finite Lines",null,{"$f":"\"Stuct. Lines - Personnel Costs - Line 40 - \"&$E$2-7","v":"Stuct. Lines - Personnel Costs - Line 40 - 2015"},null,null,null,null,null,null,null,null,0]
["Sch XI(a)(viii)","Loss Triangles - Structured/Finite Lines",null,{"$f":"\"Stuct. Lines - Other Exp. - Line 43 - \"&$E$2-4","v":"Stuct. Lines - Other Exp. - Line 43 - 2018"},null,null,null,null,null,null,null,null,0]
["Sch XI(a)(viii)","Loss Triangles - Structured/Finite Lines",null,{"$f":"\"Stuct. Lines - Other Exp. - Line 46 - \"&$E$2-1","v":"Stuct. Lines - Other Exp. - Line 46 - 2021"},null,null,null,null,null,null,null,null,0]
["SchXI(bi)","Reserve Rec - Property Catastrophe",null,"Cat. - Net Losses Incurred - Current Year",null,null,null,null,null,null,null,null,0,null,0]
["SchXI(bii)","Reserve Rec - Property",null,"Property - Net Losses Incurred - Current Year",null,null,null,null,null,null,null,null,0,null,0]
["SchXI(biii)","Reserve Rec - Property Non-Proportional",null,"Prop. Non-Prop - Best Estimate Provision - Beg. Of Year",null,null,null,null,null,null,null,null,0,null,0]
["SchXI(biii)","Reserve Rec - Property Non-Proportional",null,"Prop. Non-Prop - Impact of Change in Discount Curve",null,null,null,null,null,null,null,null,0,null,0]
["SchXI(biv)","Reserve Rec - Casualty",null,"Casualty - Net Loss Paid - Current Year",null,null,null,null,null,null,null,null,0,null,0]
["SchXI(biv)","Reserve Rec - Casualty",null,"Casualty - Foreign Exchange and Other",null,null,null,null,null,null,null,null,0,null,0]
["SchXI(bv)","Reserve Rec - Casualty Non-Proportional",null,"Caus. Non-Prop. - Net Losses Incurred - Current Year",null,null,null,null,null,null,null,null,0,null,0]
["SchXI(bvi)","Reserve Rec - Financial Lines",null,"Fin. Lines - Foreign Exchange and Other",null,null,null,null,null,null,null,null,0,null,0]
["SchXI(bvii)","Reserve Rec - Other Specialty Lines",null,"Otr. Specialty - Best Estimate Provision - Beg. Of Year",null,null,null,null,null,null,null,null,0,null,0]
["SchXI(bvii)","Reserve Rec - Other Specialty Lines",null,"Otr. Specialty - Impact of Change in Discount Curve",null,null,null,null,null,null,null,null,0,null,0]
["SchXI(bviii)","Reserve Rec - Structured/Finite Lines",null,"Stuct. Lines - Net Loss Paid - Current Year",null,null,null,null,null,null,null,null,0,null,0]
["Sch XII(a)","Eligible Capital",null,"Tier 1 - 1d. Capital Adjustments",null,null,null,null,null,null,null,null,0]
["Sch XII(a)","Eligible Capital",null,"Encumb. Assets - Pledged Asset - Less Than",null,null,null,null,null,null,null,null,0]
["Sch XII(a)","Eligible Capital",null,"Encumb. Assets - Pledged Asset - Total",null,null,null,null,null,null,null,null,0]
["Sch XII(a)","Eligible Capital",null,"Tier 2 Ancillary - d. Subordinated Debt",null,null,null,null,null,null,null,null,0]
["Sch XII(a)","Eligible Capital",null,"Tier 3 Ancillary - a. Subordinated Debt",null,null,null,null,null,null,null,null,0]
["Sch XII(b)","Eligible Capital - Additional Details",null,"Description of Capital Instrument 3",0]
["Sch XII(b)","Eligible Capital - Additional Details",null,"Description of Capital Instrument 12",0]
["Sch XII(b)","Eligible Capital - Additional Details",null,"Description of Capital Instrument 20",0]
["Sch XII(b)","Eligible Capital - Additional Details",null,"Date of Issue - Instrument 9",0]
["Sch XII(b)","Eligible Capital - Additional Details",null,"Date of Issue - Instrument 15",0]
["Sch XII(b)","Eligible Capital - Additional Details",null,"Date of Issue - Instrument 18",0]
["Sch XII(b)","Eligible Capital - Additional Details",null,"Maturity Date - Instrument 7",0]
["Sch XII(b)","Eligible Capital - Additional Details",null,"Maturity Date - Instrument 18",0]
["Sch XII(b)","Eligible Capital - Additional Details",null,"Authority Approval Date - Instrument 4",0]
["Sch XII(b)","Eligible Capital - Additional Details",null,"Authority Approval Date - Instrument 13",0]
["Sch XII(b)","Eligible Capital - Additional Details",null,"Valuation - Instrument 1",0]
["Sch XII(b)","Eligible Capital - Additional Details",null,"Valuation - Instrument 10",0]
["Sch XII(b)","Eligible Capital - Additional Details",null,"Valuation - Instrument 19",0]
["Sch XII(b)","Eligible Capital - Additional Details",null,"Tier - Instrument 4",0]
["Sch XII(b)","Eligible Capital - Additional Details",null,"Tier - Instrument 8",0]
["Sch XII(b)","Eligible Capital - Additional Details",null,"Tier - Instrument 17",0]
["Sch XVI","Non-Insurance",null,"Entity Name - 2",null,null,null,null,null,null,null,null,0]
["Sch XVI","Non-Insurance",null,"Entity Name - 12",null,null,null,null,null,null,null,null,0]
["Sch XVI","Non-Insurance",null,"Entity Jurisdiction - 6",null,null,null,null,null,null,null,null,0]
["Sch XVI","Non-Insurance",null,"Entity Jurisdiction - 10",null,null,null,null,null,null,null,null,0]
["Sch XVI","Non-Insurance",null,"Entity Sector - 8",null,null,null,null,null,null,null,null,"Select"]
["Sch XVI","Non-Insurance",null,"Entity Sector - 9",null,null,null,null,null,null,null,null,"Select"]
["Sch XVI","Non-Insurance",null,"Entity Strategic Purpose - 3",null,null,null,null,null,null,null,null,0]
["Sch XVI","Non-Insurance",null,"Entity Strategic Purpose - 12",null,null,null,null,null,null,null,null,0]
["Sch XVI","Non-Insurance",null,"Entity Type - 5",null,null,null,null,null,null,null,null,"Select"]
["Sch XVI","Non-Insurance",null,"Entity Type - 14",null,null,null,null,null,null,null,null,"Select"]
["Sch XVI","Non-Insurance",null,"Entity Product & Services - 5",null,null,null,null,null,null,null,null,0]
["Sch XVI","Non-Insurance",null,"Entity Participation - 1",null,null,null,null,null,null,null,null,"Select"]
["Sch XVI","Non-Insurance",null,"Entity Participation - 10",null,null,null,null,null,null,null,null,"Select"]
["Sch XVI","Non-Insurance",null,"% Interest in Entity - 2",null,null,null,null,null,null,null,null,0]
["Sch XVI","Non-Insurance",null,"% Interest in Entity - 4",null,null,null,null,null,null,null,null,0]
["Sch XVI","Non-Insurance",null,"% Interest in Entity - 13",null,null,null,null,null,null,null,null,0]
["Sch XVI","Non-Insurance",null,"Total Assets in Entity - 10",null,null,null,null,null,null,null,null,0]
["Sch XVI","Non-Insurance",null,"Total Assets in Entity - 15",null,null,null,null,null,null,null,null,0]
["Sch XVI","Non-Insurance",null,"Investments in Entity - 8",null,null,null,null,null,null,null,null,0]
["Sch XVI","Non-Insurance",null,"Regulatory Capital in Entity - 1",null,null,null,null,null,null,null,null,0]
["Sch XVI","Non-Insurance",null,"Regulatory Capital in Entity - 9",null,null,null,null,null,null,null,null,0]
["Sch XVI","Non-Insurance",null,"Regulatory Capital in Entity - 10",null,null,null,null,null,null,null,null,0]
["Sch XVI","Non-Insurance",null,"RCR 9",null,null,null,null,null,null,null,null,0]
["Sch XVI","Non-Insurance",null,"RCR 12",null,null,null,null,null,null,null,null,0]
["Sch XVII","Solvency Analysis",null,"Name of Entity - 3",null,null,null,null,null,null,null,null,0]
["Sch XVII","Solvency Analysis",null,"Name of Entity - 14",null,null,null,null,null,null,null,null,0]
["Sch XVII","Solvency Analysis",null,"Name of Entity - 20",null,null,null,null,null,null,null,null,0]
["Sch XVII","Solvency Analysis",null,"Name of Entity - 29",null,null,null,null,null,null,null,null,0]
["Sch XVII","Solvency Analysis",null,"Jurisdiction of Entity - 7",null,null,null,null,null,null,null,null,0]
["Sch XVII","Solvency Analysis",null,"Jurisdiction of Entity - 8",null,null,null,null,null,null,null,null,0]
["Sch XVII","Solvency Analysis",null,"Jurisdiction of Entity - 17",null,null,null,null,null,null,null,null,0]
["Sch XVII","Solvency Analysis",null,"Jurisdiction of Entity - 30",null,null,null,null,null,null,null,null,0]
["Sch XVII","Solvency Analysis",null,"Type of Entity - 4",null,null,null,null,null,null,null,null,"Select"]
["Sch XVII","Solvency Analysis",null,"Type of Entity - 13",null,null,null,null,null,null,null,null,"Select"]
["Sch XVII","Solvency Analysis",null,"Type of Entity - 22",null,null,null,null,null,null,null,null,"Select"]
["Sch XVII","Solvency Analysis",null,"Type of Entity - 29",null,null,null,null,null,null,null,null,"Select"]
["Sch XVII","Solvency Analysis",null,"% Ownership of Entity - 9",null,null,null,null,null,null,null,null,0]
["Sch XVII","Solvency Analysis",null,"% Ownership of Entity - 10",null,null,null,null,null,null,null,null,0]
["Sch XVII","Solvency Analysis",null,"% Ownership of Entity - 22",null,null,null,null,null,null,null,null,0]
["Sch XVII","Solvency Analysis",null,"% Ownership of Entity - 27",null,null,null,null,null,null,null,null,0]
["Sch XVII","Solvency Analysis",null,"GPW of Entity - 6",null,null,null,null,null,null,null,null,0]
["Sch XVII","Solvency Analysis",null,"GPW of Entity - 15",null,null,null,null,null,null,null,null,0]
["Sch XVII","Solvency Analysis",null,"GPW of Entity - 23",null,null,null,null,null,null,null,null,0]
["Sch XVII","Solvency Analysis",null,"NPW of Entity - 1",null,null,null,null,null,null,null,null,0]
["Sch XVII","Solvency Analysis",null,"NPW of Entity - 7",null,null,null,null,null,null,null,null,0]
["Sch XVII","Solvency Analysis",null,"NPW of Entity - 10",null,null,null,null,null,null,null,null,0]
["Sch XVII","Solvency Analysis",null,"NPW of Entity - 19",null,null,null,null,null,null,null,null,0]
["Sch XVII","Solvency Analysis",null,"NPW of Entity - 27",null,null,null,null,null,null,null,null,0]
["Sch XVII","Solvency Analysis",null,"Total Assets of Entity - 5",null,null,null,null,null,null,null,null,0]
["Sch XVII","Solvency Analysis",null,"Total Assets of Entity - 14",null,null,null,null,null,null,null,null,0]
["Sch XVII","Solvency Analysis",null,"Total Assets of Entity - 19",null,null,null,null,null,null,null,null,0]
["Sch XVII","Solvency Analysis",null,"Total Assets",null,null,null,null,null,null,null,null,0]
["Sch XVII","Solvency Analysis",null,"Net Assets of Entity - 9",null,null,null,null,null,null,null,null,0]
["Sch XVII","Solvency Analysis",null,"Net Assets of Entity - 11",null,null,null,null,null,null,null,null,0]
["Sch XVII","Solvency Analysis",null,"Net Assets of Entity - 18",null,null,null,null,null,null,null,null,0]
["Sch XVII","Solvency Analysis",null,"Net Assets of Entity - 27",null,null,null,null,null,null,null,null,0]
["Sch XVII","Solvency Analysis",null,"Regulatory Capital of Entity - 3",null,null,null,null,null,null,null,null,0]
["Sch XVII","Solvency Analysis",null,"Regulatory Capital of Entity - 13",null,null,null,null,null,null,null,null,0]
["Sch XVII","Solvency Analysis",null,"Regulatory Capital of Entity - 22",null,null,null,null,null,null,null,null,0]
["Sch XVII","Solvency Analysis",null,"Regulatory Capital Total",null,null,null,null,null,null,null,null,0]
["Sch XVIII","Ceded Reins",null,"Reinsurer Name - 6",0,null,null,null,null,null,null,null,0]
["Sch XVIII","Ceded Reins",null,"Reinsurer Name - 7",0,null,null,null,null,null,null,null,0]
["Sch XVIII","Ceded Reins",null,"Reinsurer Name - 16",0,null,null,null,null,null,null,null,0]
["Sch XVIII","Ceded Reins",null,"Reinsurer Name - 29",0,null,null,null,null,null,null,null,0]
["Sch XVIII","Ceded Reins",null,"Reinsurer BSCR Rating - 3","Select",null,null,null,null,null,null,null,"Select"]
["Sch XVIII","Ceded Reins",null,"Reinsurer BSCR Rating - 12","Select",null,null,null,null,null,null,null,"Select"]
["Sch XVIII","Ceded Reins",null,"Reinsurer BSCR Rating - 22","Select",null,null,null,null,null,null,null,"Select"]
["Sch XVIII","Ceded Reins",null,"Reinsurer BSCR Rating - 29","Select",null,null,null,null,null,null,null,"Select"]
["Sch XVIII","Ceded Reins",null,"Reinsurer R/I Assets - 8",0,null,null,null,null,null,null,null,0]
["Sch XVIII","Ceded Reins",null,"Reinsurer R/I Assets - 15",0,null,null,null,null,null,null,null,0]
["Sch XVIII","Ceded Reins",null,"Reinsurer R/I Assets - 17",0,null,null,null,null,null,null,null,0]
["Sch XVIII","Ceded Reins",null,"Reinsurer R/I Assets - 26",0,null,null,null,null,null,null,null,0]
["Sch XVIII","Ceded Reins",null,"Reinsurer R/I Payable - 7",0,null,null,null,null,null,null,null,0]
["Sch XVIII","Ceded Reins",null,"Reinsurer R/I Payable - 12",0,null,null,null,null,null,null,null,0]
["Sch XVIII","Ceded Reins",null,"Reinsurer R/I Payable - 21",0,null,null,null,null,null,null,null,0]
["Sch XVIII","Ceded Reins",null,"Reinsurer R/I Payable - 30",0,null,null,null,null,null,null,null,0]
["Sch XVIII","Ceded Reins",null,"Reinsurer Collateral - 7",0,null,null,null,null,null,null,null,0]
["Sch XVIII","Ceded Reins",null,"Reinsurer Collateral - 8",0,null,null,null,null,null,null,null,0]
["Sch XVIII","Ceded Reins",null,"Reinsurer Collateral - 22",0,null,null,null,null,null,null,null,0]
["Sch XVIII","Ceded Reins",null,"Reinsurer Collateral - 25",0,null,null,null,null,null,null,null,0]
["Sch XVIII","Ceded Reins",null,"R/I Assets - Exposure by BSCR Rate 2",0,null,null,null,null,null,null,null,0]
["Sch XVIII","Ceded Reins",null,"R/I Assets - Single Cons. Exp.",0,null,null,null,null,null,null,null,0]
["Sch XVIII","Ceded Reins",null,"R/I Payable - Exposure by BSCR Rate 8",0,null,null,null,null,null,null,null,0]
["Sch XVIII","Ceded Reins",null,"Collateral - Exposure by BSCR Rate 6",0,null,null,null,null,null,null,null,0]
["Sch XIX","Cash Counterpart",null,"Number",0]
["Sch XIX","Cash Counterpart",null,"Name - Counterparty 4",0]
["Sch XIX","Cash Counterpart",null,"Name - Counterparty 13",0]
["Sch XIX","Cash Counterpart",null,"BSCR Rating - Counterparty 2","Select"]
["Sch XIX","Cash Counterpart",null,"BSCR Rating - Counterparty 12","Select"]
["Sch XIX","Cash Counterpart",null,"BSCR Rating - Counterparty 19","Select"]
["Sch XIX","Cash Counterpart",null,"Counterparty Value 8",0,null,null,null,null,null,null,null,0]
["Sch XIX","Cash Counterpart",null,"Counterparty Value 15",0,null,null,null,null,null,null,null,0]
["Sch XIX","Cash Counterpart",null,"Exposure BSCR Rate 3",0,null,null,null,null,null,null,null,0]
["Sch XIX","Cash Counterpart",null,"Exposure BSCR Rate 4",0,null,null,null,null,null,null,null,0]
["Sch XIXA","Cash Counterpart",null,"Name - Counterparty 3",null,null,null,null,null,null,null,null,0]
["Sch XIXA","Cash Counterpart",null,"Name - Counterparty 11",null,null,null,null,null,null,null,null,0]
["Sch XIXA","Cash Counterpart",null,"Name - Counterparty 20",null,null,null,null,null,null,null,null,0]
["Sch XIXA","Cash Counterpart",null,"BSCR Rating - Counterparty 6",null,null,null,null,null,null,null,null,"Select"]
["Sch XIXA","Cash Counterpart",null,"BSCR Rating - Counterparty 17",null,null,null,null,null,null,null,null,"Select"]
["Sch XIXA","Cash Counterpart",null,"Counterparty Value 6",null,null,null,null,null,null,null,null,0]
["Sch XIXA","Cash Counterpart",null,"Counterparty Value 9",null,null,null,null,null,null,null,null,0]
["Sch XIXA","Cash Counterpart",null,"Counterparty Value 15",null,null,null,null,null,null,null,null,0]
["Sch XIXA","Cash Counterpart",null,"Exposure BSCR Rate 2",null,null,null,null,null,null,null,null,0]
["Sch XX","Currency Analysis",null,"Assets - USD",0,null,null,null,null,null,null,null,0]
["Sch XX","Currency Analysis",null,"Assets - Other 5",0,null,null,null,null,null,null,null,0]
["Sch XX","Currency Analysis",null,"Hedge Assets - UK £",0,null,null,null,null,null,null,null,0]
["Sch XX","Currency Analysis",null,"Hedge Assets - Other 3",0,null,null,null,null,null,null,null,0]
["Sch XX","Currency Analysis",null,"Liab. - CDN",0,null,null,null,null,null,null,null,0]
["Sch XX","Currency Analysis",null,"Liab. - Other 8",0,null,null,null,null,null,null,null,0]
["Sch XX","Currency Analysis",null,"Liab. - Other 10",0,null,null,null,null,null,null,null,0]
["Sch XX","Currency Analysis",null,"Hedge Liab. - Other 1",0,null,null,null,null,null,null,null,0]
["Sch XX","Currency Analysis",null,"Hedge Liab. - Other 10",0,null,null,null,null,null,null,null,0]
["Sch XX","Currency Analysis",null,"ECR Prior Year 3",null,null,null,null,null,null,null,null,0]
["Sch XXA","Currency Shock",null,"Other Currency 9",null,null,null,null,null,null,null,null,"Other currency 9"]
["Sch XXA","Currency Shock",null,{"$f":"\"Before Shock - Assets - Excluding Currency - Sensitive Derivatives \"&'Schedule XXA'!$B$17","v":"Before Shock - Assets - Excluding Currency - Sensitive Derivatives West African CFA Francs"},null,null,null,null,null,null,null,null,0]
["Sch XXA","Currency Shock",null,{"$f":"\"Before Shock - Assets - Excluding Currency - Sensitive Derivatives \"&'Schedule XXA'!$B$26","v":"Before Shock - Assets - Excluding Currency - Sensitive Derivatives Other currency 4"},null,null,null,null,null,null,null,null,0]
["Sch XXA","Currency Shock",null,{"$f":"\"Before Shock - Long Exposures - Currency Derivatives Qualifying as held for risk-mitigation purposes \"&'Schedule XXA'!$B$11","v":"Before Shock - Long Exposures - Currency Derivatives Qualifying as held for risk-mitigation purposes Bermuda Dollars"},null,null,null,null,null,null,null,null,0]
["Sch XXA","Currency Shock",null,{"$f":"\"Before Shock - Long Exposures - Currency Derivatives Qualifying as held for risk-mitigation purposes \"&'Schedule XXA'!$B$12","v":"Before Shock - Long Exposures - Currency Derivatives Qualifying as held for risk-mitigation purposes Qatar Riyals"},null,null,null,null,null,null,null,null,0]
["Sch XXA","Currency Shock",null,{"$f":"\"Before Shock - Long Exposures - Currency Derivatives Qualifying as held for risk-mitigation purposes \"&'Schedule XXA'!$B$21","v":"Before Shock - Long Exposures - Currency Derivatives Qualifying as held for risk-mitigation purposes Canada Dollars"},null,null,null,null,null,null,null,null,0]
["Sch XXA","Currency Shock",null,{"$f":"\"Before Shock - Long Exposures - Currency Derivatives Not Qualifying as held for risk-mitigation purposes \"&'Schedule XXA'!$B$11","v":"Before Shock - Long Exposures - Currency Derivatives Not Qualifying as held for risk-mitigation purposes Bermuda Dollars"},null,null,null,null,null,null,null,null,0]
["Sch XXA","Currency Shock",null,{"$f":"\"Before Shock - Long Exposures - Currency Derivatives Not Qualifying as held for risk-mitigation purposes \"&'Schedule XXA'!$B$15","v":"Before Shock - Long Exposures - Currency Derivatives Not Qualifying as held for risk-mitigation purposes Denmark Kroner"},null,null,null,null,null,null,null,null,0]
["Sch XXA","Currency Shock",null,{"$f":"\"Before Shock - Long Exposures - Currency Derivatives Not Qualifying as held for risk-mitigation purposes \"&'Schedule XXA'!$B$24","v":"Before Shock - Long Exposures - Currency Derivatives Not Qualifying as held for risk-mitigation purposes Other currency 2"},null,null,null,null,null,null,null,null,0]
["Sch XXA","Currency Shock",null,{"$f":"\"Before Shock - Short Exposures - Currency Derivatives Qualifying as held for risk-mitigation purposes \"&'Schedule XXA'!$B$11","v":"Before Shock - Short Exposures - Currency Derivatives Qualifying as held for risk-mitigation purposes Bermuda Dollars"},null,null,null,null,null,null,null,null,0]
["Sch XXA","Currency Shock",null,{"$f":"\"Before Shock - Short Exposures - Currency Derivatives Qualifying as held for risk-mitigation purposes \"&'Schedule XXA'!$B$18","v":"Before Shock - Short Exposures - Currency Derivatives Qualifying as held for risk-mitigation purposes Central African CFA Francs"},null,null,null,null,null,null,null,null,0]
["Sch XXA","Currency Shock",null,{"$f":"\"Before Shock - Short Exposures - Currency Derivatives Qualifying as held for risk-mitigation purposes \"&'Schedule XXA'!$B$27","v":"Before Shock - Short Exposures - Currency Derivatives Qualifying as held for risk-mitigation purposes Other currency 5"},null,null,null,null,null,null,null,null,0]
["Sch XXA","Currency Shock",null,{"$f":"\"Before Shock - Short Exposures - Currency Derivatives Not Qualifying as held for risk-mitigation purposes \"&'Schedule XXA'!$B$11","v":"Before Shock - Short Exposures - Currency Derivatives Not Qualifying as held for risk-mitigation purposes Bermuda Dollars"},null,null,null,null,null,null,null,null,0]
["Sch XXA","Currency Shock",null,{"$f":"\"Before Shock - Short Exposures - Currency Derivatives Not Qualifying as held for risk-mitigation purposes \"&'Schedule XXA'!$B$13","v":"Before Shock - Short Exposures - Currency Derivatives Not Qualifying as held for risk-mitigation purposes Hong Kong Dollars"},null,null,null,null,null,null,null,null,0]
["Sch XXA","Currency Shock",null,{"$f":"\"Before Shock - Short Exposures - Currency Derivatives Not Qualifying as held for risk-mitigation purposes \"&'Schedule XXA'!$B$22","v":"Before Shock - Short Exposures - Currency Derivatives Not Qualifying as held for risk-mitigation purposes Japan Yen"},null,null,null,null,null,null,null,null,0]
["Sch XXA","Currency Shock",null,{"$f":"\"Before Shock - Short Exposures - Currency Derivatives Not Qualifying as held for risk-mitigation purposes \"&'Schedule XXA'!$B$31","v":"Before Shock - Short Exposures - Currency Derivatives Not Qualifying as held for risk-mitigation purposes Other currency 9"},null,null,null,null,null,null,null,null,0]
["Sch XXA","Currency Shock",null,{"$f":"\"Before Shock - B.E. Liabilities \"&'Schedule XXA'!$B$16","v":"Before Shock - B.E. Liabilities Bulgaria Leva"},null,null,null,null,null,null,null,null,0]
["Sch XXA","Currency Shock",null,{"$f":"\"Before Shock - B.E. Liabilities \"&'Schedule XXA'!$B$25","v":"Before Shock - B.E. Liabilities Other currency 3"},null,null,null,null,null,null,null,null,0]
["Sch XXA","Currency Shock",null,{"$f":"\"Before Shock - B.E. Liabilities \"&'Schedule XXA'!$B$31","v":"Before Shock - B.E. Liabilities Other currency 9"},null,null,null,null,null,null,null,null,0]
["Sch XXA","Currency Shock",null,{"$f":"\"After Shock - Assets - Excluding Currency - Sensitive Derivatives \"&'Schedule XXA'!$B$19","v":"After Shock - Assets - Excluding Currency - Sensitive Derivatives Comorian Francs"},null,null,null,null,null,null,null,null,0]
["Sch XXA","Currency Shock",null,{"$f":"\"After Shock - Assets - Excluding Currency - Sensitive Derivatives \"&'Schedule XXA'!$B$20","v":"After Shock - Assets - Excluding Currency - Sensitive Derivatives United Kingdom Pounds"},null,null,null,null,null,null,null,null,0]
["Sch XXA","Currency Shock",null,{"$f":"\"After Shock - Assets - Excluding Currency - Sensitive Derivatives \"&'Schedule XXA'!$B$31","v":"After Shock - Assets - Excluding Currency - Sensitive Derivatives Other currency 9"},null,null,null,null,null,null,null,null,0]
["Sch XXA","Currency Shock",null,{"$f":"\"After Shock - Long Exposures - Currency Derivatives Qualifying as held for risk-mitigation purposes \"&'Schedule XXA'!$B$14","v":"After Shock - Long Exposures - Currency Derivatives Qualifying as held for risk-mitigation purposes Euro"},null,null,null,null,null,null,null,null,0]
["Sch XXA","Currency Shock",null,{"$f":"\"After Shock - Long Exposures - Currency Derivatives Qualifying as held for risk-mitigation purposes \"&'Schedule XXA'!$B$23","v":"After Shock - Long Exposures - Currency Derivatives Qualifying as held for risk-mitigation purposes Other currency 1"},null,null,null,null,null,null,null,null,0]
["Sch XXA","Currency Shock",null,{"$f":"\"After Shock - Long Exposures - Currency Derivatives Qualifying as held for risk-mitigation purposes \"&'Schedule XXA'!$B$31","v":"After Shock - Long Exposures - Currency Derivatives Qualifying as held for risk-mitigation purposes Other currency 9"},null,null,null,null,null,null,null,null,0]
["Sch XXA","Currency Shock",null,{"$f":"\"After Shock - Long Exposures - Currency Derivatives Not Qualifying as held for risk-mitigation purposes \"&'Schedule XXA'!$B$17","v":"After Shock - Long Exposures - Currency Derivatives Not Qualifying as held for risk-mitigation purposes West African CFA Francs"},null,null,null,null,null,null,null,null,0]
["Sch XXA","Currency Shock",null,{"$f":"\"After Shock - Long Exposures - Currency Derivatives Not Qualifying as held for risk-mitigation purposes \"&'Schedule XXA'!$B$26","v":"After Shock - Long Exposures - Currency Derivatives Not Qualifying as held for risk-mitigation purposes Other currency 4"},null,null,null,null,null,null,null,null,0]
["Sch XXA","Currency Shock",null,{"$f":"\"After Shock - Short Exposures - Currency Derivatives Qualifying as held for risk-mitigation purposes \"&'Schedule XXA'!$B$12","v":"After Shock - Short Exposures - Currency Derivatives Qualifying as held for risk-mitigation purposes Qatar Riyals"},null,null,null,null,null,null,null,null,0]
["Sch XXA","Currency Shock",null,{"$f":"\"After Shock - Short Exposures - Currency Derivatives Qualifying as held for risk-mitigation purposes \"&'Schedule XXA'!$B$17","v":"After Shock - Short Exposures - Currency Derivatives Qualifying as held for risk-mitigation purposes West African CFA Francs"},null,null,null,null,null,null,null,null,0]
["Sch XXA","Currency Shock",null,{"$f":"\"After Shock - Short Exposures - Currency Derivatives Qualifying as held for risk-mitigation purposes \"&'Schedule XXA'!$B$21","v":"After Shock - Short Exposures - Currency Derivatives Qualifying as held for risk-mitigation purposes Canada Dollars"},null,null,null,null,null,null,null,null,0]
["Sch XXA","Currency Shock",null,{"$f":"\"After Shock - Short Exposures - Currency Derivatives Qualifying as held for risk-mitigation purposes \"&'Schedule XXA'!$B$30","v":"After Shock - Short Exposures - Currency Derivatives Qualifying as held for risk-mitigation purposes Other currency 8"},null,null,null,null,null,null,null,null,0]
["Sch XXA","Currency Shock",null,{"$f":"\"After Shock - Short Exposures - Currency Derivatives Not Qualifying as held for risk-mitigation purposes \"&'Schedule XXA'!$B$14","v":"After Shock - Short Exposures - Currency Derivatives Not Qualifying as held for risk-mitigation purposes Euro"},null,null,null,null,null,null,null,null,0]
["Sch XXA","Currency Shock",null,{"$f":"\"After Shock - Short Exposures - Currency Derivatives Not Qualifying as held for risk-mitigation purposes \"&'Schedule XXA'!$B$24","v":"After Shock - Short Exposures - Currency Derivatives Not Qualifying as held for risk-mitigation purposes Other currency 2"},null,null,null,null,null,null,null,null,0]
["Sch XXA","Currency Shock",null,{"$f":"\"After Shock - B.E. Liabilities \"&'Schedule XXA'!$B$10","v":"After Shock - B.E. Liabilities United States Dollars"},null,null,null,null,null,null,null,null,0]
["Sch XXA","Currency Shock",null,{"$f":"\"After Shock - B.E. Liabilities \"&'Schedule XXA'!$B$14","v":"After Shock - B.E. Liabilities Euro"},null,null,null,null,null,null,null,null,0]
["Sch XXA","Currency Shock",null,{"$f":"\"After Shock - B.E. Liabilities \"&'Schedule XXA'!$B$27","v":"After Shock - B.E. Liabilities Other currency 5"},null,null,null,null,null,null,null,null,0]
["Sch XXA","Currency Shock",null,{"$f":"\"After Shock - B.E. Liabilities \"&'Schedule XXA'!$B$28","v":"After Shock - B.E. Liabilities Other currency 6"},null,null,null,null,null,null,null,null,0]
["Sch XXA","Currency Shock",null,{"$f":"\"After Shock - Liabilities w Mgmt. Actions \"&'Schedule XXA'!$B$14","v":"After Shock - Liabilities w Mgmt. Actions Euro"},null,null,null,null,null,null,null,null,0]
["Sch XXA","Currency Shock",null,{"$f":"\"After Shock - Liabilities w Mgmt. Actions \"&'Schedule XXA'!$B$22","v":"After Shock - Liabilities w Mgmt. Actions Japan Yen"},null,null,null,null,null,null,null,null,0]
["Sch XXA","Currency Shock",null,{"$f":"\"After Shock - Liabilities w Mgmt. Actions \"&'Schedule XXA'!$B$31","v":"After Shock - Liabilities w Mgmt. Actions Other currency 9"},null,null,null,null,null,null,null,null,0]
["Sch XXA","Currency Shock",null,"ECR Prior Year 2",null,null,null,null,null,null,null,null,0]
["Sch XXI","Inv Con Risk",null,"Name of Exposure - 8",0]
["Sch XXI","Inv Con Risk",null,"Name of Exposure - 17",0]
["Sch XXI","Inv Con Risk",null,"Name of Exposure - 20",0]
["Sch XXI","Inv Con Risk",null,"Name of Exposure - 26",0]
["Sch XXI","Inv Con Risk",null,"Name of Exposure - 35",0]
["Sch XXI","Inv Con Risk",null,"Asset Type - 3","Select",null,null,null,null,null,null,null,"Select"]
["Sch XXI","Inv Con Risk",null,"Asset Type - 12","Select",null,null,null,null,null,null,null,"Select"]
["Sch XXI","Inv Con Risk",null,"Asset Type - 21","Select",null,null,null,null,null,null,null,"Select"]
["Sch XXI","Inv Con Risk",null,"Asset Type - 30","Select",null,null,null,null,null,null,null,"Select"]
["Sch XXI","Inv Con Risk",null,"Asset Type - 38","Select",null,null,null,null,null,null,null,"Select"]
["Sch XXI","Inv Con Risk",null,"Bond Type - 7","Select",null,null,null,null,null,null,null,"Select"]
["Sch XXI","Inv Con Risk",null,"Bond Type - 13","Select",null,null,null,null,null,null,null,"Select"]
["Sch XXI","Inv Con Risk",null,"Bond Type - 16","Select",null,null,null,null,null,null,null,"Select"]
["Sch XXI","Inv Con Risk",null,"Bond Type - 25","Select",null,null,null,null,null,null,null,"Select"]
["Sch XXI","Inv Con Risk",null,"Bond Type - 34","Select",null,null,null,null,null,null,null,"Select"]
["Sch XXI","Inv Con Risk",null,"BSCR Rating - 5","Select",null,null,null,null,null,null,null,"Select"]
["Sch XXI","Inv Con Risk",null,"BSCR Rating - 11","Select",null,null,null,null,null,null,null,"Select"]
["Sch XXI","Inv Con Risk",null,"BSCR Rating - 20","Select",null,null,null,null,null,null,null,"Select"]
["Sch XXI","Inv Con Risk",null,"BSCR Rating - 28","Select",null,null,null,null,null,null,null,"Select"]
["Sch XXI","Inv Con Risk",null,"BSCR Rating - 29","Select",null,null,null,null,null,null,null,"Select"]
["Sch XXI","Inv Con Risk",null,"BSCR Rating - 38","Select",null,null,null,null,null,null,null,"Select"]
["Sch XXI","Inv Con Risk",null,"Asset Value - 11",0,null,null,null,null,null,null,null,0]
["Sch XXI","Inv Con Risk",null,"Asset Value - 15",0,null,null,null,null,null,null,null,0]
["Sch XXI","Inv Con Risk",null,"Asset Value - 24",0,null,null,null,null,null,null,null,0]
["Sch XXI","Inv Con Risk",null,"Asset Value - 31",0,null,null,null,null,null,null,null,0]
["Sch XXI","Inv Con Risk",null,"Asset Value - Total",0,null,null,null,null,null,null,null,0]
["Sch XXIA","Inv Con Risk",null,"Name of Exposure - 7",0]
["Sch XXIA","Inv Con Risk",null,"Name of Exposure - 11",0]
["Sch XXIA","Inv Con Risk",null,"Name of Exposure - 16",0]
["Sch XXIA","Inv Con Risk",null,"Name of Exposure - 25",0]
["Sch XXIA","Inv Con Risk",null,"Name of Exposure - 34",0]
["Sch XXIA","Inv Con Risk",null,"Name of Exposure - 42",0]
["Sch XXIA","Inv Con Risk",null,"Asset Type - 1","Select",null,null,null,null,null,null,null,"Select"]
["Sch XXIA","Inv Con Risk",null,"Asset Type - 7","Select",null,null,null,null,null,null,null,"Select"]
["Sch XXIA","Inv Con Risk",null,"Asset Type - 18","Select",null,null,null,null,null,null,null,"Select"]
["Sch XXIA","Inv Con Risk",null,"Asset Type - 19","Select",null,null,null,null,null,null,null,"Select"]
["Sch XXIA","Inv Con Risk",null,"Asset Type - 30","Select",null,null,null,null,null,null,null,"Select"]
["Sch XXIA","Inv Con Risk",null,"Asset Type - 36","Select",null,null,null,null,null,null,null,"Select"]
["Sch XXIA","Inv Con Risk",null,"Asset Type - 45","Select",null,null,null,null,null,null,null,"Select"]
["Sch XXIA","Inv Con Risk",null,"Bond Type - 3","Select",null,null,null,null,null,null,null,"Select"]
["Sch XXIA","Inv Con Risk",null,"Bond Type - 12","Select",null,null,null,null,null,null,null,"Select"]
["Sch XXIA","Inv Con Risk",null,"Bond Type - 21","Select",null,null,null,null,null,null,null,"Select"]
["Sch XXIA","Inv Con Risk",null,"Bond Type - 30","Select",null,null,null,null,null,null,null,"Select"]
["Sch XXIA","Inv Con Risk",null,"Bond Type - 32","Select",null,null,null,null,null,null,null,"Select"]
["Sch XXIA","Inv Con Risk",null,"Bond Type - 39","Select",null,null,null,null,null,null,null,"Select"]
["Sch XXIA","Inv Con Risk",null,"Bond Type - 48","Select",null,null,null,null,null,null,null,"Select"]
["Sch XXIA","Inv Con Risk",null,"BSCR Rating - 5","Select",null,null,null,null,null,null,null,"Select"]
["Sch XXIA","Inv Con Risk",null,"BSCR Rating - 15","Select",null,null,null,null,null,null,null,"Select"]
["Sch XXIA","Inv Con Risk",null,"BSCR Rating - 24","Select",null,null,null,null,null,null,null,"Select"]
["Sch XXIA","Inv Con Risk",null,"BSCR Rating - 28","Select",null,null,null,null,null,null,null,"Select"]
["Sch XXIA","Inv Con Risk",null,"BSCR Rating - 41","Select",null,null,null,null,null,null,null,"Select"]
["Sch XXIA","Inv Con Risk",null,"BSCR Rating - 42","Select",null,null,null,null,null,null,null,"Select"]
["Sch XXIA","Inv Con Risk",null,"Asset Value - 1",0,null,null,null,null,null,null,null,0]
["Sch XXIA","Inv Con Risk",null,"Asset Value - 9",0,null,null,null,null,null,null,null,0]
["Sch XXIA","Inv Con Risk",null,"Asset Value - 18",0,null,null,null,null,null,null,null,0]
["Sch XXIA","Inv Con Risk",null,"Asset Value - 24",0,null,null,null,null,null,null,null,0]
["Sch XXIA","Inv Con Risk",null,"Asset Value - 35",0,null,null,null,null,null,null,null,0]
["Sch XXIA","Inv Con Risk",null,"Asset Value - 44",0,null,null,null,null,null,null,null,0]
["Sch XXIA","Inv Con Risk",null,"Asset Value - Total",0,null,null,null,null,null,null,null,0]
["Sch XXIII","Interest Rates",null,"Other currency 1",null,null,null,null,null,null,null,null,"Other currency 1"]
["Sch XXIII","Interest Rates",null,"Other currency 10",null,null,null,null,null,null,null,null,"Other currency 10"]
["Sch XXIII","Interest Rates",null,{"$f":"\"Int. Down - Before Shock - Other - Qualifying Assets - \"&'Schedule XXIII'!$C$21","v":"Int. Down - Before Shock - Other - Qualifying Assets - Other currency 4"},null,null,null,null,null,null,null,null,0]
["Sch XXIII","Interest Rates",null,{"$f":"\"Int. Down - Before Shock - Other - Qualifying Assets - \"&'Schedule XXIII'!$C$26","v":"Int. Down - Before Shock - Other - Qualifying Assets - Other currency 9"},null,null,null,null,null,null,null,null,0]
["Sch XXIII","Interest Rates",null,"Int. Down - After Shock - Other - Qualifying Assets - Australia Dollar",null,null,null,null,null,null,null,null,0]
["Sch XXIII","Interest Rates",null,{"$f":"\"Int. Down - After Shock - Other - Qualifying Assets - \"&'Schedule XXIII'!$C$25","v":"Int. Down - After Shock - Other - Qualifying Assets - Other currency 8"},null,null,null,null,null,null,null,null,0]
["Sch XXIII","Interest Rates",null,"Int. Down - Before Shock - Other - Liab. w/o Mgmt. Action - Canada Dollars",null,null,null,null,null,null,null,null,0]
["Sch XXIII","Interest Rates",null,{"$f":"\"Int. Down - Before Shock - Other - Liab. w/o Mgmt Action - \"&'Schedule XXIII'!$C$23","v":"Int. Down - Before Shock - Other - Liab. w/o Mgmt Action - Other currency 6"},null,null,null,null,null,null,null,null,0]
["Sch XXIII","Interest Rates",null,{"$f":"\"Int. Down - Before Shock - Other - Liab. w/o Mgmt Action - \"&'Schedule XXIII'!$C$24","v":"Int. Down - Before Shock - Other - Liab. w/o Mgmt Action - Other currency 7"},null,null,null,null,null,null,null,null,0]
["Sch XXIII","Interest Rates",null,"Int. Down - After Shock - Other - Liab. w/o Mgmt. Action - Japan Yen",null,null,null,null,null,null,null,null,0]
["Sch XXIII","Interest Rates",null,"Int. Down - After Shock - Other - Liab. w/o Mgmt. Action - Canada Dollars",null,null,null,null,null,null,null,null,0]
["Sch XXIII","Interest Rates",null,"Int. Down - After Shock - Other - Liab. w/o Mgmt. Action - Swiss Francs",null,null,null,null,null,null,null,null,0]
["Sch XXIII","Interest Rates",null,"Int. Down - After Shock - Other - Liab. w/o Mgmt. Action - Australia Dollar",null,null,null,null,null,null,null,null,0]
["Sch XXIII","Interest Rates",null,"Int. Down - After Shock - Other - Liab. w/o Mgmt. Action - New Zealand Dollar",null,null,null,null,null,null,null,null,0]
["Sch XXIII","Interest Rates",null,{"$f":"\"Int. Down - After Shock - Other - Liab. w/o Mgmt Action - \"&'Schedule XXIII'!$C$18","v":"Int. Down - After Shock - Other - Liab. w/o Mgmt Action - Other currency 1"},null,null,null,null,null,null,null,null,0]
["Sch XXIII","Interest Rates",null,{"$f":"\"Int. Down - After Shock - Other - Liab. w/o Mgmt Action - \"&'Schedule XXIII'!$C$19","v":"Int. Down - After Shock - Other - Liab. w/o Mgmt Action - Other currency 2"},null,null,null,null,null,null,null,null,0]
["Sch XXIII","Interest Rates",null,{"$f":"\"Int. Down - After Shock - Other - Liab. w/o Mgmt Action - \"&'Schedule XXIII'!$C$20","v":"Int. Down - After Shock - Other - Liab. w/o Mgmt Action - Other currency 3"},null,null,null,null,null,null,null,null,0]
["Sch XXIII","Interest Rates",null,{"$f":"\"Int. Down - After Shock - Other - Liab. w/o Mgmt Action - \"&'Schedule XXIII'!$C$21","v":"Int. Down - After Shock - Other - Liab. w/o Mgmt Action - Other currency 4"},null,null,null,null,null,null,null,null,0]
["Sch XXIII","Interest Rates",null,{"$f":"\"Int. Down - After Shock - Other - Liab. w/o Mgmt Action - \"&'Schedule XXIII'!$C$22","v":"Int. Down - After Shock - Other - Liab. w/o Mgmt Action - Other currency 5"},null,null,null,null,null,null,null,null,0]
["Sch XXIII","Interest Rates",null,{"$f":"\"Int. Down - After Shock - Other - Liab. w/o Mgmt Action - \"&'Schedule XXIII'!$C$23","v":"Int. Down - After Shock - Other - Liab. w/o Mgmt Action - Other currency 6"},null,null,null,null,null,null,null,null,0]
["Sch XXIII","Interest Rates",null,{"$f":"\"Int. Down - After Shock - Other - Liab. w/o Mgmt Action - \"&'Schedule XXIII'!$C$24","v":"Int. Down - After Shock - Other - Liab. w/o Mgmt Action - Other currency 7"},null,null,null,null,null,null,null,null,0]
["Sch XXIII","Interest Rates",null,{"$f":"\"Int. Down - After Shock - Other - Liab. w/o Mgmt Action - \"&'Schedule XXIII'!$C$25","v":"Int. Down - After Shock - Other - Liab. w/o Mgmt Action - Other currency 8"},null,null,null,null,null,null,null,null,0]
["Sch XXIII","Interest Rates",null,{"$f":"\"Int. Down - After Shock - Other - Liab. w/o Mgmt Action - \"&'Schedule XXIII'!$C$26","v":"Int. Down - After Shock - Other - Liab. w/o Mgmt Action - Other currency 9"},null,null,null,null,null,null,null,null,0]
["Sch XXIII","Interest Rates",null,{"$f":"\"Int. Down - After Shock - Other - Liab. w/o Mgmt Action - \"&'Schedule XXIII'!$C$27","v":"Int. Down - After Shock - Other - Liab. w/o Mgmt Action - Other currency 10"},null,null,null,null,null,null,null,null,0]
["Sch XXIII","Interest Rates",null,"Int. Down - After Shock - Other - Liab. w/o Mgmt. Action - Total",null,null,null,null,null,null,null,null,0]
["Sch XXIII","Interest Rates",null,"Int. Down - After Shock - Other - Liab. with Mgmt. Action - United States Dollars",null,null,null,null,null,null,null,null,0]
["Sch XXIII","Interest Rates",null,"Int. Down - After Shock - Other - Liab. with Mgmt. Action - Euro",null,null,null,null,null,null,null,null,0]
["Sch XXIII","Interest Rates",null,"Int. Down - After Shock - Other - Liab. with Mgmt. Action - United Kingdom Pounds",null,null,null,null,null,null,null,null,0]
["Sch XXIII","Interest Rates",null,"Int. Down - After Shock - Other - Liab. with Mgmt. Action - Japan Yen",null,null,null,null,null,null,null,null,0]
["Sch XXIII","Interest Rates",null,"Int. Down - After Shock - Other - Liab. with Mgmt. Action - Canada Dollars",null,null,null,null,null,null,null,null,0]
["Sch XXIII","Interest Rates",null,"Int. Down - After Shock - Other - Liab. with Mgmt. Action - Swiss Francs",null,null,null,null,null,null,null,null,0]
["Sch XXIII","Interest Rates",null,"Int. Down - After Shock - Other - Liab. with Mgmt. Action - Australia Dollar",null,null,null,null,null,null,null,null,0]
["Sch XXIII","Interest Rates",null,"Int. Down - After Shock - Other - Liab. with Mgmt. Action - New Zealand Dollar",null,null,null,null,null,null,null,null,0]
["Sch XXIII","Interest Rates",null,{"$f":"\"Int. Down - After Shock - Other - Liab. with Mgmt Action - \"&'Schedule XXIII'!$C$18","v":"Int. Down - After Shock - Other - Liab. with Mgmt Action - Other currency 1"},null,null,null,null,null,null,null,null,0]
["Sch XXIII","Interest Rates",null,{"$f":"\"Int. Down - After Shock - Other - Liab. with Mgmt Action - \"&'Schedule XXIII'!$C$19","v":"Int. Down - After Shock - Other - Liab. with Mgmt Action - Other currency 2"},null,null,null,null,null,null,null,null,0]
["Sch XXIII","Interest Rates",null,{"$f":"\"Int. Down - After Shock - Other - Liab. with Mgmt Action - \"&'Schedule XXIII'!$C$20","v":"Int. Down - After Shock - Other - Liab. with Mgmt Action - Other currency 3"},null,null,null,null,null,null,null,null,0]
["Sch XXIII","Interest Rates",null,{"$f":"\"Int. Down - After Shock - Other - Liab. with Mgmt Action - \"&'Schedule XXIII'!$C$21","v":"Int. Down - After Shock - Other - Liab. with Mgmt Action - Other currency 4"},null,null,null,null,null,null,null,null,0]
["Sch XXIII","Interest Rates",null,{"$f":"\"Int. Down - After Shock - Other - Liab. with Mgmt Action - \"&'Schedule XXIII'!$C$22","v":"Int. Down - After Shock - Other - Liab. with Mgmt Action - Other currency 5"},null,null,null,null,null,null,null,null,0]
["Sch XXIII","Interest Rates",null,{"$f":"\"Int. Down - After Shock - Other - Liab. with Mgmt Action - \"&'Schedule XXIII'!$C$23","v":"Int. Down - After Shock - Other - Liab. with Mgmt Action - Other currency 6"},null,null,null,null,null,null,null,null,0]
["Sch XXIII","Interest Rates",null,{"$f":"\"Int. Down - After Shock - Other - Liab. with Mgmt Action - \"&'Schedule XXIII'!$C$24","v":"Int. Down - After Shock - Other - Liab. with Mgmt Action - Other currency 7"},null,null,null,null,null,null,null,null,0]
["Sch XXIII","Interest Rates",null,{"$f":"\"Int. Down - After Shock - Other - Liab. with Mgmt Action - \"&'Schedule XXIII'!$C$25","v":"Int. Down - After Shock - Other - Liab. with Mgmt Action - Other currency 8"},null,null,null,null,null,null,null,null,0]
["Sch XXIII","Interest Rates",null,{"$f":"\"Int. Down - After Shock - Other - Liab. with Mgmt Action - \"&'Schedule XXIII'!$C$26","v":"Int. Down - After Shock - Other - Liab. with Mgmt Action - Other currency 9"},null,null,null,null,null,null,null,null,0]
["Sch XXIII","Interest Rates",null,{"$f":"\"Int. Down - After Shock - Other - Liab. with Mgmt Action - \"&'Schedule XXIII'!$C$27","v":"Int. Down - After Shock - Other - Liab. with Mgmt Action - Other currency 10"},null,null,null,null,null,null,null,null,0]
["Sch XXIII","Interest Rates",null,"Int. Down - After Shock - Other - Liab. with Mgmt. Action - Total",null,null,null,null,null,null,null,null,0]
["Sch XXIII","Interest Rates",null,"Int. Down - Before Shock - Derivatives - Qualifying Assets - United States Dollars",null,null,null,null,null,null,null,null,0]
["Sch XXIII","Interest Rates",null,"Int. Down - Before Shock - Derivatives - Qualifying Assets - Euro",null,null,null,null,null,null,null,null,0]
["Sch XXIII","Interest Rates",null,"Int. Down - Before Shock - Derivatives - Qualifying Assets - United Kingdom Pounds",null,null,null,null,null,null,null,null,0]
["Sch XXIII","Interest Rates",null,"Int. Down - Before Shock - Derivatives - Qualifying Assets - Japan Yen",null,null,null,null,null,null,null,null,0]
["Sch XXIII","Interest Rates",null,"Int. Down - Before Shock - Derivatives - Qualifying Assets - Canada Dollars",null,null,null,null,null,null,null,null,0]
["Sch XXIII","Interest Rates",null,"Int. Down - Before Shock - Derivatives - Qualifying Assets - Swiss Francs",null,null,null,null,null,null,null,null,0]
["Sch XXIII","Interest Rates",null,"Int. Down - Before Shock - Derivatives - Qualifying Assets - Australia Dollar",null,null,null,null,null,null,null,null,0]
["Sch XXIII","Interest Rates",null,"Int. Down - Before Shock - Derivatives - Qualifying Assets - New Zealand Dollar",null,null,null,null,null,null,null,null,0]
["Sch XXIII","Interest Rates",null,{"$f":"\"Int. Down - Before Shock - Derivatives - Qualifying Assets - \"&'Schedule XXIII'!$C$18","v":"Int. Down - Before Shock - Derivatives - Qualifying Assets - Other currency 1"},null,null,null,null,null,null,null,null,0]
["Sch XXIII","Interest Rates",null,{"$f":"\"Int. Down - Before Shock - Derivatives - Qualifying Assets - \"&'Schedule XXIII'!$C$19","v":"Int. Down - Before Shock - Derivatives - Qualifying Assets - Other currency 2"},null,null,null,null,null,null,null,null,0]
["Sch XXIII","Interest Rates",null,{"$f":"\"Int. Down - Before Shock - Derivatives - Qualifying Assets - \"&'Schedule XXIII'!$C$20","v":"Int. Down - Before Shock - Derivatives - Qualifying Assets - Other currency 3"},null,null,null,null,null,null,null,null,0]
["Sch XXIII","Interest Rates",null,{"$f":"\"Int. Down - Before Shock - Derivatives - Qualifying Assets - \"&'Schedule XXIII'!$C$21","v":"Int. Down - Before Shock - Derivatives - Qualifying Assets - Other currency 4"},null,null,null,null,null,null,null,null,0]
["Sch XXIII","Interest Rates",null,{"$f":"\"Int. Down - Before Shock - Derivatives - Qualifying Assets - \"&'Schedule XXIII'!$C$22","v":"Int. Down - Before Shock - Derivatives - Qualifying Assets - Other currency 5"},null,null,null,null,null,null,null,null,0]
["Sch XXIII","Interest Rates",null,{"$f":"\"Int. Down - Before Shock - Derivatives - Qualifying Assets - \"&'Schedule XXIII'!$C$23","v":"Int. Down - Before Shock - Derivatives - Qualifying Assets - Other currency 6"},null,null,null,null,null,null,null,null,0]
["Sch XXIII","Interest Rates",null,{"$f":"\"Int. Down - Before Shock - Derivatives - Qualifying Assets - \"&'Schedule XXIII'!$C$24","v":"Int. Down - Before Shock - Derivatives - Qualifying Assets - Other currency 7"},null,null,null,null,null,null,null,null,0]
["Sch XXIII","Interest Rates",null,{"$f":"\"Int. Down - Before Shock - Derivatives - Qualifying Assets - \"&'Schedule XXIII'!$C$25","v":"Int. Down - Before Shock - Derivatives - Qualifying Assets - Other currency 8"},null,null,null,null,null,null,null,null,0]
["Sch XXIII","Interest Rates",null,{"$f":"\"Int. Down - Before Shock - Derivatives - Qualifying Assets - \"&'Schedule XXIII'!$C$26","v":"Int. Down - Before Shock - Derivatives - Qualifying Assets - Other currency 9"},null,null,null,null,null,null,null,null,0]
["Sch XXIII","Interest Rates",null,{"$f":"\"Int. Down - Before Shock - Derivatives - Qualifying Assets - \"&'Schedule XXIII'!$C$27","v":"Int. Down - Before Shock - Derivatives - Qualifying Assets - Other currency 10"},null,null,null,null,null,null,null,null,0]
["Sch XXIII","Interest Rates",null,"Int. Down - Before Shock - Derivatives - Qualifying Assets - Total",null,null,null,null,null,null,null,null,0]
["Sch XXIII","Interest Rates",null,"Int. Down - After Shock - Derivatives - Qualifying Assets - United States Dollars",null,null,null,null,null,null,null,null,0]
["Sch XXIII","Interest Rates",null,"Int. Down - After Shock - Derivatives - Qualifying Assets - Euro",null,null,null,null,null,null,null,null,0]
["Sch XXIII","Interest Rates",null,"Int. Down - After Shock - Derivatives - Qualifying Assets - United Kingdom Pounds",null,null,null,null,null,null,null,null,0]
["Sch XXIII","Interest Rates",null,"Int. Down - After Shock - Derivatives - Qualifying Assets - Japan Yen",null,null,null,null,null,null,null,null,0]
["Sch XXIII","Interest Rates",null,"Int. Down - After Shock - Derivatives - Qualifying Assets - Canada Dollars",null,null,null,null,null,null,null,null,0]
["Sch XXIII","Interest Rates",null,"Int. Down - After Shock - Derivatives - Qualifying Assets - Swiss Francs",null,null,null,null,null,null,null,null,0]
["Sch XXIII","Interest Rates",null,"Int. Down - After Shock - Derivatives - Qualifying Assets - Australia Dollar",null,null,null,null,null,null,null,null,0]
["Sch XXIII","Interest Rates",null,"Int. Down - After Shock - Derivatives - Qualifying Assets - New Zealand Dollar",null,null,null,null,null,null,null,null,0]
["Sch XXIII","Interest Rates",null,{"$f":"\"Int. Down - After Shock - Derivatives - Qualifying Assets - \"&'Schedule XXIII'!$C$18","v":"Int. Down - After Shock - Derivatives - Qualifying Assets - Other currency 1"},null,null,null,null,null,null,null,null,0]
["Sch XXIII","Interest Rates",null,{"$f":"\"Int. Down - After Shock - Derivatives - Qualifying Assets - \"&'Schedule XXIII'!$C$19","v":"Int. Down - After Shock - Derivatives - Qualifying Assets - Other currency 2"},null,null,null,null,null,null,null,null,0]
["Sch XXIII","Interest Rates",null,{"$f":"\"Int. Down - After Shock - Derivatives - Qualifying Assets - \"&'Schedule XXIII'!$C$20","v":"Int. Down - After Shock - Derivatives - Qualifying Assets - Other currency 3"},null,null,null,null,null,null,null,null,0]
["Sch XXIII","Interest Rates",null,{"$f":"\"Int. Down - After Shock - Derivatives - Qualifying Assets - \"&'Schedule XXIII'!$C$21","v":"Int. Down - After Shock - Derivatives - Qualifying Assets - Other currency 4"},null,null,null,null,null,null,null,null,0]
["Sch XXIII","Interest Rates",null,{"$f":"\"Int. Down - After Shock - Derivatives - Qualifying Assets - \"&'Schedule XXIII'!$C$22","v":"Int. Down - After Shock - Derivatives - Qualifying Assets - Other currency 5"},null,null,null,null,null,null,null,null,0]
["Sch XXIII","Interest Rates",null,{"$f":"\"Int. Down - After Shock - Derivatives - Qualifying Assets - \"&'Schedule XXIII'!$C$23","v":"Int. Down - After Shock - Derivatives - Qualifying Assets - Other currency 6"},null,null,null,null,null,null,null,null,0]
["Sch XXIII","Interest Rates",null,{"$f":"\"Int. Down - After Shock - Derivatives - Qualifying Assets - \"&'Schedule XXIII'!$C$24","v":"Int. Down - After Shock - Derivatives - Qualifying Assets - Other currency 7"},null,null,null,null,null,null,null,null,0]
["Sch XXIII","Interest Rates",null,{"$f":"\"Int. Down - After Shock - Derivatives - Qualifying Assets - \"&'Schedule XXIII'!$C$25","v":"Int. Down - After Shock - Derivatives - Qualifying Assets - Other currency 8"},null,null,null,null,null,null,null,null,0]
["Sch XXIII","Interest Rates",null,{"$f":"\"Int. Down - After Shock - Derivatives - Qualifying Assets - \"&'Schedule XXIII'!$C$26","v":"Int. Down - After Shock - Derivatives - Qualifying Assets - Other currency 9"},null,null,null,null,null,null,null,null,0]
["Sch XXIII","Interest Rates",null,{"$f":"\"Int. Down - After Shock - Derivatives - Qualifying Assets - \"&'Schedule XXIII'!$C$27","v":"Int. Down - After Shock - Derivatives - Qualifying Assets - Other currency 10"},null,null,null,null,null,null,null,null,0]
["Sch XXIII","Interest Rates",null,"Int. Down - After Shock - Derivatives - Qualifying Assets - Total",null,null,null,null,null,null,null,null,0]
["Sch XXIII","Interest Rates",null,"Int. Down - Before Shock - Derivatives - Not Qualifying Assets - United States Dollars",null,null,null,null,null,null,null,null,0]
["Sch XXIII","Interest Rates",null,"Int. Down - Before Shock - Derivatives - Not Qualifying Assets - Euro",null,null,null,null,null,null,null,null,0]
["Sch XXIII","Interest Rates",null,"Int. Down - Before Shock - Derivatives - Not Qualifying Assets - United Kingdom Pounds",null,null,null,null,null,null,null,null,0]
["Sch XXIII","Interest Rates",null,"Int. Down - Before Shock - Derivatives - Not Qualifying Assets - Japan Yen",null,null,null,null,null,null,null,null,0]
["Sch XXIII","Interest Rates",null,"Int. Down - Before Shock - Derivatives - Not Qualifying Assets - Canada Dollars",null,null,null,null,null,null,null,null,0]
["Sch XXIII","Interest Rates",null,"Int. Down - Before Shock - Derivatives - Not Qualifying Assets - Swiss Francs",null,null,null,null,null,null,null,null,0]
["Sch XXIII","Interest Rates",null,"Int. Down - Before Shock - Derivatives - Not Qualifying Assets - Australia Dollar",null,null,null,null,null,null,null,null,0]
["Sch XXIII","Interest Rates",null,"Int. Down - Before Shock - Derivatives - Not Qualifying Assets - New Zealand Dollar",null,null,null,null,null,null,null,null,0]
["Sch XXIII","Interest Rates",null,{"$f":"\"Int. Down - Before Shock - Derivatives - Not Qualifying Assets - \"&'Schedule XXIII'!$C$18","v":"Int. Down - Before Shock - Derivatives - Not Qualifying Assets - Other currency 1"},null,null,null,null,null,null,null,null,0]
["Sch XXIII","Interest Rates",null,{"$f":"\"Int. Down - Before Shock - Derivatives - Not Qualifying Assets - \"&'Schedule XXIII'!$C$19","v":"Int. Down - Before Shock - Derivatives - Not Qualifying Assets - Other currency 2"},null,null,null,null,null,null,null,null,0]
["Sch XXIII","Interest Rates",null,{"$f":"\"Int. Down - Before Shock - Derivatives - Not Qualifying Assets - \"&'Schedule XXIII'!$C$20","v":"Int. Down - Before Shock - Derivatives - Not Qualifying Assets - Other currency 3"},null,null,null,null,null,null,null,null,0]
["Sch XXIII","Interest Rates",null,{"$f":"\"Int. Down - Before Shock - Derivatives - Not Qualifying Assets - \"&'Schedule XXIII'!$C$21","v":"Int. Down - Before Shock - Derivatives - Not Qualifying Assets - Other currency 4"},null,null,null,null,null,null,null,null,0]
["Sch XXIII","Interest Rates",null,{"$f":"\"Int. Down - Before Shock - Derivatives - Not Qualifying Assets - \"&'Schedule XXIII'!$C$22","v":"Int. Down - Before Shock - Derivatives - Not Qualifying Assets - Other currency 5"},null,null,null,null,null,null,null,null,0]
["Sch XXIII","Interest Rates",null,{"$f":"\"Int. Down - Before Shock - Derivatives - Not Qualifying Assets - \"&'Schedule XXIII'!$C$23","v":"Int. Down - Before Shock - Derivatives - Not Qualifying Assets - Other currency 6"},null,null,null,null,null,null,null,null,0]
["Sch XXIII","Interest Rates",null,{"$f":"\"Int. Down - Before Shock - Derivatives - Not Qualifying Assets - \"&'Schedule XXIII'!$C$24","v":"Int. Down - Before Shock - Derivatives - Not Qualifying Assets - Other currency 7"},null,null,null,null,null,null,null,null,0]
["Sch XXIII","Interest Rates",null,{"$f":"\"Int. Down - Before Shock - Derivatives - Not Qualifying Assets - \"&'Schedule XXIII'!$C$25","v":"Int. Down - Before Shock - Derivatives - Not Qualifying Assets - Other currency 8"},null,null,null,null,null,null,null,null,0]
["Sch XXIII","Interest Rates",null,{"$f":"\"Int. Down - Before Shock - Derivatives - Not Qualifying Assets - \"&'Schedule XXIII'!$C$26","v":"Int. Down - Before Shock - Derivatives - Not Qualifying Assets - Other currency 9"},null,null,null,null,null,null,null,null,0]
["Sch XXIII","Interest Rates",null,{"$f":"\"Int. Down - Before Shock - Derivatives - Not Qualifying Assets - \"&'Schedule XXIII'!$C$27","v":"Int. Down - Before Shock - Derivatives - Not Qualifying Assets - Other currency 10"},null,null,null,null,null,null,null,null,0]
["Sch XXIII","Interest Rates",null,"Int. Down - Before Shock - Derivatives - Not Qualifying Assets - Total",null,null,null,null,null,null,null,null,0]
["Sch XXIII","Interest Rates",null,"Int. Down - After Shock - Derivatives - Not Qualifying Assets - United States Dollars",null,null,null,null,null,null,null,null,0]
["Sch XXIII","Interest Rates",null,"Int. Down - After Shock - Derivatives - Not Qualifying Assets - Euro",null,null,null,null,null,null,null,null,0]
["Sch XXIII","Interest Rates",null,"Int. Down - After Shock - Derivatives - Not Qualifying Assets - United Kingdom Pounds",null,null,null,null,null,null,null,null,0]
["Sch XXIII","Interest Rates",null,"Int. Down - After Shock - Derivatives - Not Qualifying Assets - Japan Yen",null,null,null,null,null,null,null,null,0]
["Sch XXIII","Interest Rates",null,"Int. Down - After Shock - Derivatives - Not Qualifying Assets - Canada Dollars",null,null,null,null,null,null,null,null,0]
["Sch XXIII","Interest Rates",null,"Int. Down - After Shock - Derivatives - Not Qualifying Assets - Swiss Francs",null,null,null,null,null,null,null,null,0]
["Sch XXIII","Interest Rates",null,"Int. Down - After Shock - Derivatives - Not Qualifying Assets - Australia Dollar",null,null,null,null,null,null,null,null,0]
["Sch XXIII","Interest Rates",null,"Int. Down - After Shock - Derivatives - Not Qualifying Assets - New Zealand Dollar",null,null,null,null,null,null,null,null,0]
["Sch XXIII","Interest Rates",null,{"$f":"\"Int. Down - After Shock - Derivatives - Not Qualifying Assets - \"&'Schedule XXIII'!$C$18","v":"Int. Down - After Shock - Derivatives - Not Qualifying Assets - Other currency 1"},null,null,null,null,null,null,null,null,0]
["Sch XXIII","Interest Rates",null,{"$f":"\"Int. Down - After Shock - Derivatives - Not Qualifying Assets - \"&'Schedule XXIII'!$C$19","v":"Int. Down - After Shock - Derivatives - Not Qualifying Assets - Other currency 2"},null,null,null,null,null,null,null,null,0]
["Sch XXIII","Interest Rates",null,{"$f":"\"Int. Down - After Shock - Derivatives - Not Qualifying Assets - \"&'Schedule XXIII'!$C$20","v":"Int. Down - After Shock - Derivatives - Not Qualifying Assets - Other currency 3"},null,null,null,null,null,null,null,null,0]
["Sch XXIII","Interest Rates",null,{"$f":"\"Int. Down - After Shock - Derivatives - Not Qualifying Assets - \"&'Schedule XXIII'!$C$21","v":"Int. Down - After Shock - Derivatives - Not Qualifying Assets - Other currency 4"},null,null,null,null,null,null,null,null,0]
["Sch XXIII","Interest Rates",null,{"$f":"\"Int. Down - After Shock - Derivatives - Not Qualifying Assets - \"&'Schedule XXIII'!$C$22","v":"Int. Down - After Shock - Derivatives - Not Qualifying Assets - Other currency 5"},null,null,null,null,null,null,null,null,0]
["Sch XXIII","Interest Rates",null,{"$f":"\"Int. Down - After Shock - Derivatives - Not Qualifying Assets - \"&'Schedule XXIII'!$C$23","v":"Int. Down - After Shock - Derivatives - Not Qualifying Assets - Other currency 6"},null,null,null,null,null,null,null,null,0]
["Sch XXIII","Interest Rates",null,{"$f":"\"Int. Down - After Shock - Derivatives - Not Qualifying Assets - \"&'Schedule XXIII'!$C$24","v":"Int. Down - After Shock - Derivatives - Not Qualifying Assets - Other currency 7"},null,null,null,null,null,null,null,null,0]
["Sch XXIII","Interest Rates",null,{"$f":"\"Int. Down - After Shock - Derivatives - Not Qualifying Assets - \"&'Schedule XXIII'!$C$25","v":"Int. Down - After Shock - Derivatives - Not Qualifying Assets - Other currency 8"},null,null,null,null,null,null,null,null,0]
["Sch XXIII","Interest Rates",null,{"$f":"\"Int. Down - After Shock - Derivatives - Not Qualifying Assets - \"&'Schedule XXIII'!$C$26","v":"Int. Down - After Shock - Derivatives - Not Qualifying Assets - Other currency 9"},null,null,null,null,null,null,null,null,0]
["Sch XXIII","Interest Rates",null,{"$f":"\"Int. Down - After Shock - Derivatives - Not Qualifying Assets - \"&'Schedule XXIII'!$C$27","v":"Int. Down - After Shock - Derivatives - Not Qualifying Assets - Other currency 10"},null,null,null,null,null,null,null,null,0]
["Sch XXIII","Interest Rates",null,"Int. Down - After Shock - Derivatives - Not Qualifying Assets - Total",null,null,null,null,null,null,null,null,0]
["Sch XXIII","Interest Rates",null,"Int. Down - Before Shock - Derivatives - Liab. w/o Mgmt. Action - United States Dollars",null,null,null,null,null,null,null,null,0]
["Sch XXIII","Interest Rates",null,"Int. Down - Before Shock - Derivatives - Liab. w/o Mgmt. Action - Euro",null,null,null,null,null,null,null,null,0]
["Sch XXIII","Interest Rates",null,"Int. Down - Before Shock - Derivatives - Liab. w/o Mgmt. Action - United Kingdom Pounds",null,null,null,null,null,null,null,null,0]
["Sch XXIII","Interest Rates",null,"Int. Down - Before Shock - Derivatives - Liab. w/o Mgmt. Action - Japan Yen",null,null,null,null,null,null,null,null,0]
["Sch XXIII","Interest Rates",null,"Int. Down - Before Shock - Derivatives - Liab. w/o Mgmt. Action - Canada Dollars",null,null,null,null,null,null,null,null,0]
["Sch XXIII","Interest Rates",null,"Int. Down - Before Shock - Derivatives - Liab. w/o Mgmt. Action - Swiss Francs",null,null,null,null,null,null,null,null,0]
["Sch XXIII","Interest Rates",null,"Int. Down - Before Shock - Derivatives - Liab. w/o Mgmt. Action - Australia Dollar",null,null,null,null,null,null,null,null,0]
["Sch XXIII","Interest Rates",null,"Int. Down - Before Shock - Derivatives - Liab. w/o Mgmt. Action - New Zealand Dollar",null,null,null,null,null,null,null,null,0]
["Sch XXIII","Interest Rates",null,{"$f":"\"Int. Down - Before Shock - Derivatives - Liab. w/o Mgmt Action - \"&'Schedule XXIII'!$C$18","v":"Int. Down - Before Shock - Derivatives - Liab. w/o Mgmt Action - Other currency 1"},null,null,null,null,null,null,null,null,0]
["Sch XXIII","Interest Rates",null,{"$f":"\"Int. Down - Before Shock - Derivatives - Liab. w/o Mgmt Action - \"&'Schedule XXIII'!$C$19","v":"Int. Down - Before Shock - Derivatives - Liab. w/o Mgmt Action - Other currency 2"},null,null,null,null,null,null,null,null,0]
["Sch XXIII","Interest Rates",null,{"$f":"\"Int. Down - Before Shock - Derivatives - Liab. w/o Mgmt Action - \"&'Schedule XXIII'!$C$20","v":"Int. Down - Before Shock - Derivatives - Liab. w/o Mgmt Action - Other currency 3"},null,null,null,null,null,null,null,null,0]
["Sch XXIII","Interest Rates",null,{"$f":"\"Int. Down - Before Shock - Derivatives - Liab. w/o Mgmt Action - \"&'Schedule XXIII'!$C$21","v":"Int. Down - Before Shock - Derivatives - Liab. w/o Mgmt Action - Other currency 4"},null,null,null,null,null,null,null,null,0]
["Sch XXIII","Interest Rates",null,{"$f":"\"Int. Down - Before Shock - Derivatives - Liab. w/o Mgmt Action - \"&'Schedule XXIII'!$C$22","v":"Int. Down - Before Shock - Derivatives - Liab. w/o Mgmt Action - Other currency 5"},null,null,null,null,null,null,null,null,0]
["Sch XXIII","Interest Rates",null,{"$f":"\"Int. Down - Before Shock - Derivatives - Liab. w/o Mgmt Action - \"&'Schedule XXIII'!$C$23","v":"Int. Down - Before Shock - Derivatives - Liab. w/o Mgmt Action - Other currency 6"},null,null,null,null,null,null,null,null,0]
["Sch XXIII","Interest Rates",null,{"$f":"\"Int. Down - Before Shock - Derivatives - Liab. w/o Mgmt Action - \"&'Schedule XXIII'!$C$24","v":"Int. Down - Before Shock - Derivatives - Liab. w/o Mgmt Action - Other currency 7"},null,null,null,null,null,null,null,null,0]
["Sch XXIII","Interest Rates",null,{"$f":"\"Int. Down - Before Shock - Derivatives - Liab. w/o Mgmt Action - \"&'Schedule XXIII'!$C$25","v":"Int. Down - Before Shock - Derivatives - Liab. w/o Mgmt Action - Other currency 8"},null,null,null,null,null,null,null,null,0]
["Sch XXIII","Interest Rates",null,{"$f":"\"Int. Down - Before Shock - Derivatives - Liab. w/o Mgmt Action - \"&'Schedule XXIII'!$C$26","v":"Int. Down - Before Shock - Derivatives - Liab. w/o Mgmt Action - Other currency 9"},null,null,null,null,null,null,null,null,0]
["Sch XXIII","Interest Rates",null,{"$f":"\"Int. Down - Before Shock - Derivatives - Liab. w/o Mgmt Action - \"&'Schedule XXIII'!$C$27","v":"Int. Down - Before Shock - Derivatives - Liab. w/o Mgmt Action - Other currency 10"},null,null,null,null,null,null,null,null,0]
["Sch XXIII","Interest Rates",null,"Int. Down - Before Shock - Derivatives - Liab. w/o Mgmt. Action - Total",null,null,null,null,null,null,null,null,0]
["Sch XXIII","Interest Rates",null,"Int. Down - After Shock - Derivatives - Liab. w/o Mgmt. Action - United States Dollars",null,null,null,null,null,null,null,null,0]
["Sch XXIII","Interest Rates",null,"Int. Down - After Shock - Derivatives - Liab. w/o Mgmt. Action - Euro",null,null,null,null,null,null,null,null,0]
["Sch XXIII","Interest Rates",null,"Int. Down - After Shock - Derivatives - Liab. w/o Mgmt. Action - United Kingdom Pounds",null,null,null,null,null,null,null,null,0]
["Sch XXIII","Interest Rates",null,"Int. Down - After Shock - Derivatives - Liab. w/o Mgmt. Action - Japan Yen",null,null,null,null,null,null,null,null,0]
["Sch XXIII","Interest Rates",null,"Int. Down - After Shock - Derivatives - Liab. w/o Mgmt. Action - Canada Dollars",null,null,null,null,null,null,null,null,0]
["Sch XXIII","Interest Rates",null,"Int. Down - After Shock - Derivatives - Liab. w/o Mgmt. Action - Swiss Francs",null,null,null,null,null,null,null,null,0]
["Sch XXIII","Interest Rates",null,"Int. Down - After Shock - Derivatives - Liab. w/o Mgmt. Action - Australia Dollar",null,null,null,null,null,null,null,null,0]
["Sch XXIII","Interest Rates",null,"Int. Down - After Shock - Derivatives - Liab. w/o Mgmt. Action - New Zealand Dollar",null,null,null,null,null,null,null,null,0]
["Sch XXIII","Interest Rates",null,{"$f":"\"Int. Down - After Shock - Derivatives - Liab. w/o Mgmt Action - \"&'Schedule XXIII'!$C$18","v":"Int. Down - After Shock - Derivatives - Liab. w/o Mgmt Action - Other currency 1"},null,null,null,null,null,null,null,null,0]
["Sch XXIII","Interest Rates",null,{"$f":"\"Int. Down - After Shock - Derivatives - Liab. w/o Mgmt Action - \"&'Schedule XXIII'!$C$19","v":"Int. Down - After Shock - Derivatives - Liab. w/o Mgmt Action - Other currency 2"},null,null,null,null,null,null,null,null,0]
["Sch XXIII","Interest Rates",null,{"$f":"\"Int. Down - After Shock - Derivatives - Liab. w/o Mgmt Action - \"&'Schedule XXIII'!$C$20","v":"Int. Down - After Shock - Derivatives - Liab. w/o Mgmt Action - Other currency 3"},null,null,null,null,null,null,null,null,0]
["Sch XXIII","Interest Rates",null,{"$f":"\"Int. Down - After Shock - Derivatives - Liab. w/o Mgmt Action - \"&'Schedule XXIII'!$C$21","v":"Int. Down - After Shock - Derivatives - Liab. w/o Mgmt Action - Other currency 4"},null,null,null,null,null,null,null,null,0]
["Sch XXIII","Interest Rates",null,{"$f":"\"Int. Down - After Shock - Derivatives - Liab. w/o Mgmt Action - \"&'Schedule XXIII'!$C$22","v":"Int. Down - After Shock - Derivatives - Liab. w/o Mgmt Action - Other currency 5"},null,null,null,null,null,null,null,null,0]
["Sch XXIII","Interest Rates",null,{"$f":"\"Int. Down - After Shock - Derivatives - Liab. w/o Mgmt Action - \"&'Schedule XXIII'!$C$23","v":"Int. Down - After Shock - Derivatives - Liab. w/o Mgmt Action - Other currency 6"},null,null,null,null,null,null,null,null,0]
["Sch XXIII","Interest Rates",null,{"$f":"\"Int. Down - After Shock - Derivatives - Liab. w/o Mgmt Action - \"&'Schedule XXIII'!$C$24","v":"Int. Down - After Shock - Derivatives - Liab. w/o Mgmt Action - Other currency 7"},null,null,null,null,null,null,null,null,0]
["Sch XXIII","Interest Rates",null,{"$f":"\"Int. Down - After Shock - Derivatives - Liab. w/o Mgmt Action - \"&'Schedule XXIII'!$C$25","v":"Int. Down - After Shock - Derivatives - Liab. w/o Mgmt Action - Other currency 8"},null,null,null,null,null,null,null,null,0]
["Sch XXIII","Interest Rates",null,{"$f":"\"Int. Down - After Shock - Derivatives - Liab. w/o Mgmt Action - \"&'Schedule XXIII'!$C$26","v":"Int. Down - After Shock - Derivatives - Liab. w/o Mgmt Action - Other currency 9"},null,null,null,null,null,null,null,null,0]
["Sch XXIII","Interest Rates",null,{"$f":"\"Int. Down - After Shock - Derivatives - Liab. w/o Mgmt Action - \"&'Schedule XXIII'!$C$27","v":"Int. Down - After Shock - Derivatives - Liab. w/o Mgmt Action - Other currency 10"},null,null,null,null,null,null,null,null,0]
["Sch XXIII","Interest Rates",null,"Int. Down - After Shock - Derivatives - Liab. w/o Mgmt. Action - Total",null,null,null,null,null,null,null,null,0]
["Sch XXIII","Interest Rates",null,"Int. Down - After Shock - Derivatives - Liab. with Mgmt. Action - United States Dollars",null,null,null,null,null,null,null,null,0]
["Sch XXIII","Interest Rates",null,"Int. Down - After Shock - Derivatives - Liab. with Mgmt. Action - Euro",null,null,null,null,null,null,null,null,0]
["Sch XXIII","Interest Rates",null,"Int. Down - After Shock - Derivatives - Liab. with Mgmt. Action - United Kingdom Pounds",null,null,null,null,null,null,null,null,0]
["Sch XXIII","Interest Rates",null,"Int. Down - After Shock - Derivatives - Liab. with Mgmt. Action - Japan Yen",null,null,null,null,null,null,null,null,0]
["Sch XXIII","Interest Rates",null,"Int. Down - After Shock - Derivatives - Liab. with Mgmt. Action - Canada Dollars",null,null,null,null,null,null,null,null,0]
["Sch XXIII","Interest Rates",null,"Int. Down - After Shock - Derivatives - Liab. with Mgmt. Action - Swiss Francs",null,null,null,null,null,null,null,null,0]
["Sch XXIII","Interest Rates",null,"Int. Down - After Shock - Derivatives - Liab. with Mgmt. Action - Australia Dollar",null,null,null,null,null,null,null,null,0]
["Sch XXIII","Interest Rates",null,"Int. Down - After Shock - Derivatives - Liab. with Mgmt. Action - New Zealand Dollar",null,null,null,null,null,null,null,null,0]
["Sch XXIII","Interest Rates",null,{"$f":"\"Int. Down - After Shock - Derivatives - Liab. with Mgmt Action - \"&'Schedule XXIII'!$C$18","v":"Int. Down - After Shock - Derivatives - Liab. with Mgmt Action - Other currency 1"},null,null,null,null,null,null,null,null,0]
["Sch XXIII","Interest Rates",null,{"$f":"\"Int. Down - After Shock - Derivatives - Liab. with Mgmt Action - \"&'Schedule XXIII'!$C$19","v":"Int. Down - After Shock - Derivatives - Liab. with Mgmt Action - Other currency 2"},null,null,null,null,null,null,null,null,0]
["Sch XXIII","Interest Rates",null,{"$f":"\"Int. Down - After Shock - Derivatives - Liab. with Mgmt Action - \"&'Schedule XXIII'!$C$20","v":"Int. Down - After Shock - Derivatives - Liab. with Mgmt Action - Other currency 3"},null,null,null,null,null,null,null,null,0]
["Sch XXIII","Interest Rates",null,{"$f":"\"Int. Down - After Shock - Derivatives - Liab. with Mgmt Action - \"&'Schedule XXIII'!$C$21","v":"Int. Down - After Shock - Derivatives - Liab. with Mgmt Action - Other currency 4"},null,null,null,null,null,null,null,null,0]
["Sch XXIII","Interest Rates",null,{"$f":"\"Int. Down - After Shock - Derivatives - Liab. with Mgmt Action - \"&'Schedule XXIII'!$C$22","v":"Int. Down - After Shock - Derivatives - Liab. with Mgmt Action - Other currency 5"},null,null,null,null,null,null,null,null,0]
["Sch XXIII","Interest Rates",null,{"$f":"\"Int. Down - After Shock - Derivatives - Liab. with Mgmt Action - \"&'Schedule XXIII'!$C$23","v":"Int. Down - After Shock - Derivatives - Liab. with Mgmt Action - Other currency 6"},null,null,null,null,null,null,null,null,0]
["Sch XXIII","Interest Rates",null,{"$f":"\"Int. Down - After Shock - Derivatives - Liab. with Mgmt Action - \"&'Schedule XXIII'!$C$24","v":"Int. Down - After Shock - Derivatives - Liab. with Mgmt Action - Other currency 7"},null,null,null,null,null,null,null,null,0]
["Sch XXIII","Interest Rates",null,{"$f":"\"Int. Down - After Shock - Derivatives - Liab. with Mgmt Action - \"&'Schedule XXIII'!$C$25","v":"Int. Down - After Shock - Derivatives - Liab. with Mgmt Action - Other currency 8"},null,null,null,null,null,null,null,null,0]
["Sch XXIII","Interest Rates",null,{"$f":"\"Int. Down - After Shock - Derivatives - Liab. with Mgmt Action - \"&'Schedule XXIII'!$C$26","v":"Int. Down - After Shock - Derivatives - Liab. with Mgmt Action - Other currency 9"},null,null,null,null,null,null,null,null,0]
["Sch XXIII","Interest Rates",null,{"$f":"\"Int. Down - After Shock - Derivatives - Liab. with Mgmt Action - \"&'Schedule XXIII'!$C$27","v":"Int. Down - After Shock - Derivatives - Liab. with Mgmt Action - Other currency 10"},null,null,null,null,null,null,null,null,0]
["Sch XXIII","Interest Rates",null,"Int. Down - After Shock - Derivatives - Liab. with Mgmt. Action - Total",null,null,null,null,null,null,null,null,0]
["Sch XXIII","Interest Rates",null,"Other currency 1",null,null,null,null,null,null,null,null,"Other currency 1"]
["Sch XXIII","Interest Rates",null,"Other currency 2",null,null,null,null,null,null,null,null,"Other currency 2"]
["Sch XXIII","Interest Rates",null,"Other currency 3",null,null,null,null,null,null,null,null,"Other currency 3"]
["Sch XXIII","Interest Rates",null,"Other currency 4",null,null,null,null,null,null,null,null,"Other currency 4"]
["Sch XXIII","Interest Rates",null,"Other currency 5",null,null,null,null,null,null,null,null,"Other currency 5"]
["Sch XXIII","Interest Rates",null,"Other currency 6",null,null,null,null,null,null,null,null,"Other currency 6"]
["Sch XXIII","Interest Rates",null,"Other currency 7",null,null,null,null,null,null,null,null,"Other currency 7"]
["Sch XXIII","Interest Rates",null,"Other currency 8",null,null,null,null,null,null,null,null,"Other currency 8"]
["Sch XXIII","Interest Rates",null,"Other currency 9",null,null,null,null,null,null,null,null,"Other currency 9"]
["Sch XXIII","Interest Rates",null,"Other currency 10",null,null,null,null,null,null,null,null,"Other currency 10"]
["Sch XXIII","Interest Rates",null,"Int. Up - Before Shock - Other - Qualifying Assets - United States Dollars",null,null,null,null,null,null,null,null,0]
["Sch XXIII","Interest Rates",null,"Int. Up - Before Shock - Other - Qualifying Assets - Euro",null,null,null,null,null,null,null,null,0]
["Sch XXIII","Interest Rates",null,"Int. Up - Before Shock - Other - Qualifying Assets - United Kingdom Pounds",null,null,null,null,null,null,null,null,0]
["Sch XXIII","Interest Rates",null,"Int. Up - Before Shock - Other - Qualifying Assets - Japan Yen",null,null,null,null,null,null,null,null,0]
["Sch XXIII","Interest Rates",null,"Int. Up - Before Shock - Other - Qualifying Assets - Canada Dollars",null,null,null,null,null,null,null,null,0]
["Sch XXIII","Interest Rates",null,"Int. Up - Before Shock - Other - Qualifying Assets - Swiss Francs",null,null,null,null,null,null,null,null,0]
["Sch XXIII","Interest Rates",null,"Int. Up - Before Shock - Other - Qualifying Assets - Australia Dollar",null,null,null,null,null,null,null,null,0]
["Sch XXIII","Interest Rates",null,"Int. Up - Before Shock - Other - Qualifying Assets - New Zealand Dollar",null,null,null,null,null,null,null,null,0]
["Sch XXIII","Interest Rates",null,{"$f":"\"Int. Up - Before Shock - Other - Qualifying Assets - \"&'Schedule XXIII'!$C$18","v":"Int. Up - Before Shock - Other - Qualifying Assets - Other currency 1"},null,null,null,null,null,null,null,null,0]
["Sch XXIII","Interest Rates",null,{"$f":"\"Int. Up - Before Shock - Other - Qualifying Assets - \"&'Schedule XXIII'!$C$19","v":"Int. Up - Before Shock - Other - Qualifying Assets - Other currency 2"},null,null,null,null,null,null,null,null,0]
["Sch XXIII","Interest Rates",null,{"$f":"\"Int. Up - Before Shock - Other - Qualifying Assets - \"&'Schedule XXIII'!$C$20","v":"Int. Up - Before Shock - Other - Qualifying Assets - Other currency 3"},null,null,null,null,null,null,null,null,0]
["Sch XXIII","Interest Rates",null,{"$f":"\"Int. Up - Before Shock - Other - Qualifying Assets - \"&'Schedule XXIII'!$C$21","v":"Int. Up - Before Shock - Other - Qualifying Assets - Other currency 4"},null,null,null,null,null,null,null,null,0]
["Sch XXIII","Interest Rates",null,{"$f":"\"Int. Up - Before Shock - Other - Qualifying Assets - \"&'Schedule XXIII'!$C$22","v":"Int. Up - Before Shock - Other - Qualifying Assets - Other currency 5"},null,null,null,null,null,null,null,null,0]
["Sch XXIII","Interest Rates",null,{"$f":"\"Int. Up - Before Shock - Other - Qualifying Assets - \"&'Schedule XXIII'!$C$23","v":"Int. Up - Before Shock - Other - Qualifying Assets - Other currency 6"},null,null,null,null,null,null,null,null,0]
["Sch XXIII","Interest Rates",null,{"$f":"\"Int. Up - Before Shock - Other - Qualifying Assets - \"&'Schedule XXIII'!$C$24","v":"Int. Up - Before Shock - Other - Qualifying Assets - Other currency 7"},null,null,null,null,null,null,null,null,0]
["Sch XXIII","Interest Rates",null,{"$f":"\"Int. Up - Before Shock - Other - Qualifying Assets - \"&'Schedule XXIII'!$C$25","v":"Int. Up - Before Shock - Other - Qualifying Assets - Other currency 8"},null,null,null,null,null,null,null,null,0]
["Sch XXIII","Interest Rates",null,{"$f":"\"Int. Up - Before Shock - Other - Qualifying Assets - \"&'Schedule XXIII'!$C$26","v":"Int. Up - Before Shock - Other - Qualifying Assets - Other currency 9"},null,null,null,null,null,null,null,null,0]
["Sch XXIII","Interest Rates",null,{"$f":"\"Int. Up - Before Shock - Other - Qualifying Assets - \"&'Schedule XXIII'!$C$27","v":"Int. Up - Before Shock - Other - Qualifying Assets - Other currency 10"},null,null,null,null,null,null,null,null,0]
["Sch XXIII","Interest Rates",null,"Int. Up - Before Shock - Other - Qualifying Assets - Total",null,null,null,null,null,null,null,null,0]
["Sch XXIII","Interest Rates",null,"Int. Up - After Shock - Other - Qualifying Assets - United States Dollars",null,null,null,null,null,null,null,null,0]
["Sch XXIII","Interest Rates",null,"Int. Up - After Shock - Other - Qualifying Assets - Euro",null,null,null,null,null,null,null,null,0]
["Sch XXIII","Interest Rates",null,"Int. Up - After Shock - Other - Qualifying Assets - United Kingdom Pounds",null,null,null,null,null,null,null,null,0]
["Sch XXIII","Interest Rates",null,"Int. Up - After Shock - Other - Qualifying Assets - Japan Yen",null,null,null,null,null,null,null,null,0]
["Sch XXIII","Interest Rates",null,"Int. Up - After Shock - Other - Qualifying Assets - Canada Dollars",null,null,null,null,null,null,null,null,0]
["Sch XXIII","Interest Rates",null,"Int. Up - After Shock - Other - Qualifying Assets - Swiss Francs",null,null,null,null,null,null,null,null,0]
["Sch XXIII","Interest Rates",null,"Int. Up - After Shock - Other - Qualifying Assets - Australia Dollar",null,null,null,null,null,null,null,null,0]
["Sch XXIII","Interest Rates",null,"Int. Up - After Shock - Other - Qualifying Assets - New Zealand Dollar",null,null,null,null,null,null,null,null,0]
["Sch XXIII","Interest Rates",null,{"$f":"\"Int. Up - After Shock - Other - Qualifying Assets - \"&'Schedule XXIII'!$C$18","v":"Int. Up - After Shock - Other - Qualifying Assets - Other currency 1"},null,null,null,null,null,null,null,null,0]
["Sch XXIII","Interest Rates",null,{"$f":"\"Int. Up - After Shock - Other - Qualifying Assets - \"&'Schedule XXIII'!$C$19","v":"Int. Up - After Shock - Other - Qualifying Assets - Other currency 2"},null,null,null,null,null,null,null,null,0]
["Sch XXIII","Interest Rates",null,{"$f":"\"Int. Up - After Shock - Other - Qualifying Assets - \"&'Schedule XXIII'!$C$20","v":"Int. Up - After Shock - Other - Qualifying Assets - Other currency 3"},null,null,null,null,null,null,null,null,0]
["Sch XXIII","Interest Rates",null,{"$f":"\"Int. Up - After Shock - Other - Qualifying Assets - \"&'Schedule XXIII'!$C$21","v":"Int. Up - After Shock - Other - Qualifying Assets - Other currency 4"},null,null,null,null,null,null,null,null,0]
["Sch XXIII","Interest Rates",null,{"$f":"\"Int. Up - After Shock - Other - Qualifying Assets - \"&'Schedule XXIII'!$C$22","v":"Int. Up - After Shock - Other - Qualifying Assets - Other currency 5"},null,null,null,null,null,null,null,null,0]
["Sch XXIII","Interest Rates",null,{"$f":"\"Int. Up - After Shock - Other - Qualifying Assets - \"&'Schedule XXIII'!$C$23","v":"Int. Up - After Shock - Other - Qualifying Assets - Other currency 6"},null,null,null,null,null,null,null,null,0]
["Sch XXIII","Interest Rates",null,{"$f":"\"Int. Up - After Shock - Other - Qualifying Assets - \"&'Schedule XXIII'!$C$24","v":"Int. Up - After Shock - Other - Qualifying Assets - Other currency 7"},null,null,null,null,null,null,null,null,0]
["Sch XXIII","Interest Rates",null,{"$f":"\"Int. Up - After Shock - Other - Qualifying Assets - \"&'Schedule XXIII'!$C$25","v":"Int. Up - After Shock - Other - Qualifying Assets - Other currency 8"},null,null,null,null,null,null,null,null,0]
["Sch XXIII","Interest Rates",null,{"$f":"\"Int. Up - After Shock - Other - Qualifying Assets - \"&'Schedule XXIII'!$C$26","v":"Int. Up - After Shock - Other - Qualifying Assets - Other currency 9"},null,null,null,null,null,null,null,null,0]
["Sch XXIII","Interest Rates",null,{"$f":"\"Int. Up - After Shock - Other - Qualifying Assets - \"&'Schedule XXIII'!$C$27","v":"Int. Up - After Shock - Other - Qualifying Assets - Other currency 10"},null,null,null,null,null,null,null,null,0]
["Sch XXIII","Interest Rates",null,"Int. Up - After Shock - Other - Qualifying Assets - Total",null,null,null,null,null,null,null,null,0]
["Sch XXIII","Interest Rates",null,"Int. Up - Before Shock - Other - Liab. w/o Mgmt. Action - United States Dollars",null,null,null,null,null,null,null,null,0]
["Sch XXIII","Interest Rates",null,"Int. Up - Before Shock - Other - Liab. w/o Mgmt. Action - Euro",null,null,null,null,null,null,null,null,0]
["Sch XXIII","Interest Rates",null,"Int. Up - Before Shock - Other - Liab. w/o Mgmt. Action - United Kingdom Pounds",null,null,null,null,null,null,null,null,0]
["Sch XXIII","Interest Rates",null,"Int. Up - Before Shock - Other - Liab. w/o Mgmt. Action - Japan Yen",null,null,null,null,null,null,null,null,0]
["Sch XXIII","Interest Rates",null,"Int. Up - Before Shock - Other - Liab. w/o Mgmt. Action - Canada Dollars",null,null,null,null,null,null,null,null,0]
["Sch XXIII","Interest Rates",null,"Int. Up - Before Shock - Other - Liab. w/o Mgmt. Action - Swiss Francs",null,null,null,null,null,null,null,null,0]
["Sch XXIII","Interest Rates",null,"Int. Up - Before Shock - Other - Liab. w/o Mgmt. Action - Australia Dollar",null,null,null,null,null,null,null,null,0]
["Sch XXIII","Interest Rates",null,"Int. Up - Before Shock - Other - Liab. w/o Mgmt. Action - New Zealand Dollar",null,null,null,null,null,null,null,null,0]
["Sch XXIII","Interest Rates",null,{"$f":"\"Int. Up - Before Shock - Other - Liab. w/o Mgmt Action - \"&'Schedule XXIII'!$C$18","v":"Int. Up - Before Shock - Other - Liab. w/o Mgmt Action - Other currency 1"},null,null,null,null,null,null,null,null,0]
["Sch XXIII","Interest Rates",null,{"$f":"\"Int. Up - Before Shock - Other - Liab. w/o Mgmt Action - \"&'Schedule XXIII'!$C$19","v":"Int. Up - Before Shock - Other - Liab. w/o Mgmt Action - Other currency 2"},null,null,null,null,null,null,null,null,0]
["Sch XXIII","Interest Rates",null,{"$f":"\"Int. Up - Before Shock - Other - Liab. w/o Mgmt Action - \"&'Schedule XXIII'!$C$20","v":"Int. Up - Before Shock - Other - Liab. w/o Mgmt Action - Other currency 3"},null,null,null,null,null,null,null,null,0]
["Sch XXIII","Interest Rates",null,{"$f":"\"Int. Up - Before Shock - Other - Liab. w/o Mgmt Action - \"&'Schedule XXIII'!$C$21","v":"Int. Up - Before Shock - Other - Liab. w/o Mgmt Action - Other currency 4"},null,null,null,null,null,null,null,null,0]
["Sch XXIII","Interest Rates",null,{"$f":"\"Int. Up - Before Shock - Other - Liab. w/o Mgmt Action - \"&'Schedule XXIII'!$C$22","v":"Int. Up - Before Shock - Other - Liab. w/o Mgmt Action - Other currency 5"},null,null,null,null,null,null,null,null,0]
["Sch XXIII","Interest Rates",null,{"$f":"\"Int. Up - Before Shock - Other - Liab. w/o Mgmt Action - \"&'Schedule XXIII'!$C$23","v":"Int. Up - Before Shock - Other - Liab. w/o Mgmt Action - Other currency 6"},null,null,null,null,null,null,null,null,0]
["Sch XXIII","Interest Rates",null,{"$f":"\"Int. Up - Before Shock - Other - Liab. w/o Mgmt Action - \"&'Schedule XXIII'!$C$24","v":"Int. Up - Before Shock - Other - Liab. w/o Mgmt Action - Other currency 7"},null,null,null,null,null,null,null,null,0]
["Sch XXIII","Interest Rates",null,{"$f":"\"Int. Up - Before Shock - Other - Liab. w/o Mgmt Action - \"&'Schedule XXIII'!$C$25","v":"Int. Up - Before Shock - Other - Liab. w/o Mgmt Action - Other currency 8"},null,null,null,null,null,null,null,null,0]
["Sch XXIII","Interest Rates",null,{"$f":"\"Int. Up - Before Shock - Other - Liab. w/o Mgmt Action - \"&'Schedule XXIII'!$C$26","v":"Int. Up - Before Shock - Other - Liab. w/o Mgmt Action - Other currency 9"},null,null,null,null,null,null,null,null,0]
["Sch XXIII","Interest Rates",null,{"$f":"\"Int. Up - Before Shock - Other - Liab. w/o Mgmt Action - \"&'Schedule XXIII'!$C$27","v":"Int. Up - Before Shock - Other - Liab. w/o Mgmt Action - Other currency 10"},null,null,null,null,null,null,null,null,0]
["Sch XXIII","Interest Rates",null,"Int. Up - Before Shock - Other - Liab. w/o Mgmt. Action - Total",null,null,null,null,null,null,null,null,0]
["Sch XXIII","Interest Rates",null,"Int. Up - After Shock - Other - Liab. w/o Mgmt. Action - United States Dollars",null,null,null,null,null,null,null,null,0]
["Sch XXIII","Interest Rates",null,"Int. Up - After Shock - Other - Liab. w/o Mgmt. Action - Euro",null,null,null,null,null,null,null,null,0]
["Sch XXIII","Interest Rates",null,"Int. Up - After Shock - Other - Liab. w/o Mgmt. Action - United Kingdom Pounds",null,null,null,null,null,null,null,null,0]
["Sch XXIII","Interest Rates",null,"Int. Up - After Shock - Other - Liab. w/o Mgmt. Action - Japan Yen",null,null,null,null,null,null,null,null,0]
["Sch XXIII","Interest Rates",null,"Int. Up - After Shock - Other - Liab. w/o Mgmt. Action - Canada Dollars",null,null,null,null,null,null,null,null,0]
["Sch XXIII","Interest Rates",null,"Int. Up - After Shock - Other - Liab. w/o Mgmt. Action - Swiss Francs",null,null,null,null,null,null,null,null,0]
["Sch XXIII","Interest Rates",null,"Int. Up - After Shock - Other - Liab. w/o Mgmt. Action - Australia Dollar",null,null,null,null,null,null,null,null,0]
["Sch XXIII","Interest Rates",null,"Int. Up - After Shock - Other - Liab. w/o Mgmt. Action - New Zealand Dollar",null,null,null,null,null,null,null,null,0]
["Sch XXIII","Interest Rates",null,{"$f":"\"Int. Up - After Shock - Other - Liab. w/o Mgmt Action - \"&'Schedule XXIII'!$C$18","v":"Int. Up - After Shock - Other - Liab. w/o Mgmt Action - Other currency 1"},null,null,null,null,null,null,null,null,0]
["Sch XXIII","Interest Rates",null,{"$f":"\"Int. Up - After Shock - Other - Liab. w/o Mgmt Action - \"&'Schedule XXIII'!$C$19","v":"Int. Up - After Shock - Other - Liab. w/o Mgmt Action - Other currency 2"},null,null,null,null,null,null,null,null,0]
["Sch XXIII","Interest Rates",null,{"$f":"\"Int. Up - After Shock - Other - Liab. w/o Mgmt Action - \"&'Schedule XXIII'!$C$20","v":"Int. Up - After Shock - Other - Liab. w/o Mgmt Action - Other currency 3"},null,null,null,null,null,null,null,null,0]
["Sch XXIII","Interest Rates",null,{"$f":"\"Int. Up - After Shock - Other - Liab. w/o Mgmt Action - \"&'Schedule XXIII'!$C$21","v":"Int. Up - After Shock - Other - Liab. w/o Mgmt Action - Other currency 4"},null,null,null,null,null,null,null,null,0]
["Sch XXIII","Interest Rates",null,{"$f":"\"Int. Up - After Shock - Other - Liab. w/o Mgmt Action - \"&'Schedule XXIII'!$C$22","v":"Int. Up - After Shock - Other - Liab. w/o Mgmt Action - Other currency 5"},null,null,null,null,null,null,null,null,0]
["Sch XXIII","Interest Rates",null,{"$f":"\"Int. Up - After Shock - Other - Liab. w/o Mgmt Action - \"&'Schedule XXIII'!$C$23","v":"Int. Up - After Shock - Other - Liab. w/o Mgmt Action - Other currency 6"},null,null,null,null,null,null,null,null,0]
["Sch XXIII","Interest Rates",null,{"$f":"\"Int. Up - After Shock - Other - Liab. w/o Mgmt Action - \"&'Schedule XXIII'!$C$24","v":"Int. Up - After Shock - Other - Liab. w/o Mgmt Action - Other currency 7"},null,null,null,null,null,null,null,null,0]
["Sch XXIII","Interest Rates",null,{"$f":"\"Int. Up - After Shock - Other - Liab. w/o Mgmt Action - \"&'Schedule XXIII'!$C$25","v":"Int. Up - After Shock - Other - Liab. w/o Mgmt Action - Other currency 8"},null,null,null,null,null,null,null,null,0]
["Sch XXIII","Interest Rates",null,{"$f":"\"Int. Up - After Shock - Other - Liab. w/o Mgmt Action - \"&'Schedule XXIII'!$C$26","v":"Int. Up - After Shock - Other - Liab. w/o Mgmt Action - Other currency 9"},null,null,null,null,null,null,null,null,0]
["Sch XXIII","Interest Rates",null,{"$f":"\"Int. Up - After Shock - Other - Liab. w/o Mgmt Action - \"&'Schedule XXIII'!$C$27","v":"Int. Up - After Shock - Other - Liab. w/o Mgmt Action - Other currency 10"},null,null,null,null,null,null,null,null,0]
["Sch XXIII","Interest Rates",null,"Int. Up - After Shock - Other - Liab. w/o Mgmt. Action - Total",null,null,null,null,null,null,null,null,0]
["Sch XXIII","Interest Rates",null,"Int. Up - After Shock - Other - Liab. with Mgmt. Action - United States Dollars",null,null,null,null,null,null,null,null,0]
["Sch XXIII","Interest Rates",null,"Int. Up - After Shock - Other - Liab. with Mgmt. Action - Euro",null,null,null,null,null,null,null,null,0]
["Sch XXIII","Interest Rates",null,"Int. Up - After Shock - Other - Liab. with Mgmt. Action - United Kingdom Pounds",null,null,null,null,null,null,null,null,0]
["Sch XXIII","Interest Rates",null,"Int. Up - After Shock - Other - Liab. with Mgmt. Action - Japan Yen",null,null,null,null,null,null,null,null,0]
["Sch XXIII","Interest Rates",null,"Int. Up - After Shock - Other - Liab. with Mgmt. Action - Canada Dollars",null,null,null,null,null,null,null,null,0]
["Sch XXIII","Interest Rates",null,"Int. Up - After Shock - Other - Liab. with Mgmt. Action - Swiss Francs",null,null,null,null,null,null,null,null,0]
["Sch XXIII","Interest Rates",null,"Int. Up - After Shock - Other - Liab. with Mgmt. Action - Australia Dollar",null,null,null,null,null,null,null,null,0]
["Sch XXIII","Interest Rates",null,"Int. Up - After Shock - Other - Liab. with Mgmt. Action - New Zealand Dollar",null,null,null,null,null,null,null,null,0]
["Sch XXIII","Interest Rates",null,{"$f":"\"Int. Up - After Shock - Other - Liab. with Mgmt Action - \"&'Schedule XXIII'!$C$18","v":"Int. Up - After Shock - Other - Liab. with Mgmt Action - Other currency 1"},null,null,null,null,null,null,null,null,0]
["Sch XXIII","Interest Rates",null,{"$f":"\"Int. Up - After Shock - Other - Liab. with Mgmt Action - \"&'Schedule XXIII'!$C$19","v":"Int. Up - After Shock - Other - Liab. with Mgmt Action - Other currency 2"},null,null,null,null,null,null,null,null,0]
["Sch XXIII","Interest Rates",null,{"$f":"\"Int. Up - After Shock - Other - Liab. with Mgmt Action - \"&'Schedule XXIII'!$C$20","v":"Int. Up - After Shock - Other - Liab. with Mgmt Action - Other currency 3"},null,null,null,null,null,null,null,null,0]
["Sch XXIII","Interest Rates",null,{"$f":"\"Int. Up - After Shock - Other - Liab. with Mgmt Action - \"&'Schedule XXIII'!$C$21","v":"Int. Up - After Shock - Other - Liab. with Mgmt Action - Other currency 4"},null,null,null,null,null,null,null,null,0]
["Sch XXIII","Interest Rates",null,{"$f":"\"Int. Up - After Shock - Other - Liab. with Mgmt Action - \"&'Schedule XXIII'!$C$22","v":"Int. Up - After Shock - Other - Liab. with Mgmt Action - Other currency 5"},null,null,null,null,null,null,null,null,0]
["Sch XXIII","Interest Rates",null,{"$f":"\"Int. Up - After Shock - Other - Liab. with Mgmt Action - \"&'Schedule XXIII'!$C$23","v":"Int. Up - After Shock - Other - Liab. with Mgmt Action - Other currency 6"},null,null,null,null,null,null,null,null,0]
["Sch XXIII","Interest Rates",null,{"$f":"\"Int. Up - After Shock - Other - Liab. with Mgmt Action - \"&'Schedule XXIII'!$C$24","v":"Int. Up - After Shock - Other - Liab. with Mgmt Action - Other currency 7"},null,null,null,null,null,null,null,null,0]
["Sch XXIII","Interest Rates",null,{"$f":"\"Int. Up - After Shock - Other - Liab. with Mgmt Action - \"&'Schedule XXIII'!$C$25","v":"Int. Up - After Shock - Other - Liab. with Mgmt Action - Other currency 8"},null,null,null,null,null,null,null,null,0]
["Sch XXIII","Interest Rates",null,{"$f":"\"Int. Up - After Shock - Other - Liab. with Mgmt Action - \"&'Schedule XXIII'!$C$26","v":"Int. Up - After Shock - Other - Liab. with Mgmt Action - Other currency 9"},null,null,null,null,null,null,null,null,0]
["Sch XXIII","Interest Rates",null,{"$f":"\"Int. Up - After Shock - Other - Liab. with Mgmt Action - \"&'Schedule XXIII'!$C$27","v":"Int. Up - After Shock - Other - Liab. with Mgmt Action - Other currency 10"},null,null,null,null,null,null,null,null,0]
["Sch XXIII","Interest Rates",null,"Int. Up - After Shock - Other - Liab. with Mgmt. Action - Total",null,null,null,null,null,null,null,null,0]
["Sch XXIII","Interest Rates",null,"Int. Up - Before Shock - Derivatives - Qualifying Assets - United States Dollars",null,null,null,null,null,null,null,null,0]
["Sch XXIII","Interest Rates",null,"Int. Up - Before Shock - Derivatives - Qualifying Assets - Euro",null,null,null,null,null,null,null,null,0]
["Sch XXIII","Interest Rates",null,"Int. Up - Before Shock - Derivatives - Qualifying Assets - United Kingdom Pounds",null,null,null,null,null,null,null,null,0]
["Sch XXIII","Interest Rates",null,"Int. Up - Before Shock - Derivatives - Qualifying Assets - Japan Yen",null,null,null,null,null,null,null,null,0]
["Sch XXIII","Interest Rates",null,"Int. Up - Before Shock - Derivatives - Qualifying Assets - Canada Dollars",null,null,null,null,null,null,null,null,0]
["Sch XXIII","Interest Rates",null,"Int. Up - Before Shock - Derivatives - Qualifying Assets - Swiss Francs",null,null,null,null,null,null,null,null,0]
["Sch XXIII","Interest Rates",null,"Int. Up - Before Shock - Derivatives - Qualifying Assets - Australia Dollar",null,null,null,null,null,null,null,null,0]
["Sch XXIII","Interest Rates",null,"Int. Up - Before Shock - Derivatives - Qualifying Assets - New Zealand Dollar",null,null,null,null,null,null,null,null,0]
["Sch XXIII","Interest Rates",null,{"$f":"\"Int. Up - Before Shock - Derivatives - Qualifying Assets - \"&'Schedule XXIII'!$C$18","v":"Int. Up - Before Shock - Derivatives - Qualifying Assets - Other currency 1"},null,null,null,null,null,null,null,null,0]
["Sch XXIII","Interest Rates",null,{"$f":"\"Int. Up - Before Shock - Derivatives - Qualifying Assets - \"&'Schedule XXIII'!$C$19","v":"Int. Up - Before Shock - Derivatives - Qualifying Assets - Other currency 2"},null,null,null,null,null,null,null,null,0]
["Sch XXIII","Interest Rates",null,{"$f":"\"Int. Up - Before Shock - Derivatives - Qualifying Assets - \"&'Schedule XXIII'!$C$20","v":"Int. Up - Before Shock - Derivatives - Qualifying Assets - Other currency 3"},null,null,null,null,null,null,null,null,0]
["Sch XXIII","Interest Rates",null,{"$f":"\"Int. Up - Before Shock - Derivatives - Qualifying Assets - \"&'Schedule XXIII'!$C$21","v":"Int. Up - Before Shock - Derivatives - Qualifying Assets - Other currency 4"},null,null,null,null,null,null,null,null,0]
["Sch XXIII","Interest Rates",null,{"$f":"\"Int. Up - Before Shock - Derivatives - Qualifying Assets - \"&'Schedule XXIII'!$C$22","v":"Int. Up - Before Shock - Derivatives - Qualifying Assets - Other currency 5"},null,null,null,null,null,null,null,null,0]
["Sch XXIII","Interest Rates",null,{"$f":"\"Int. Up - Before Shock - Derivatives - Qualifying Assets - \"&'Schedule XXIII'!$C$23","v":"Int. Up - Before Shock - Derivatives - Qualifying Assets - Other currency 6"},null,null,null,null,null,null,null,null,0]
["Sch XXIII","Interest Rates",null,{"$f":"\"Int. Up - Before Shock - Derivatives - Qualifying Assets - \"&'Schedule XXIII'!$C$24","v":"Int. Up - Before Shock - Derivatives - Qualifying Assets - Other currency 7"},null,null,null,null,null,null,null,null,0]
["Sch XXIII","Interest Rates",null,{"$f":"\"Int. Up - Before Shock - Derivatives - Qualifying Assets - \"&'Schedule XXIII'!$C$25","v":"Int. Up - Before Shock - Derivatives - Qualifying Assets - Other currency 8"},null,null,null,null,null,null,null,null,0]
["Sch XXIII","Interest Rates",null,{"$f":"\"Int. Up - Before Shock - Derivatives - Qualifying Assets - \"&'Schedule XXIII'!$C$26","v":"Int. Up - Before Shock - Derivatives - Qualifying Assets - Other currency 9"},null,null,null,null,null,null,null,null,0]
["Sch XXIII","Interest Rates",null,{"$f":"\"Int. Up - Before Shock - Derivatives - Qualifying Assets - \"&'Schedule XXIII'!$C$27","v":"Int. Up - Before Shock - Derivatives - Qualifying Assets - Other currency 10"},null,null,null,null,null,null,null,null,0]
["Sch XXIII","Interest Rates",null,"Int. Up - Before Shock - Derivatives - Qualifying Assets - Total",null,null,null,null,null,null,null,null,0]
["Sch XXIII","Interest Rates",null,"Int. Up - After Shock - Derivatives - Qualifying Assets - United States Dollars",null,null,null,null,null,null,null,null,0]
["Sch XXIII","Interest Rates",null,"Int. Up - After Shock - Derivatives - Qualifying Assets - Euro",null,null,null,null,null,null,null,null,0]
["Sch XXIII","Interest Rates",null,"Int. Up - After Shock - Derivatives - Qualifying Assets - United Kingdom Pounds",null,null,null,null,null,null,null,null,0]
["Sch XXIII","Interest Rates",null,"Int. Up - After Shock - Derivatives - Qualifying Assets - Japan Yen",null,null,null,null,null,null,null,null,0]
["Sch XXIII","Interest Rates",null,"Int. Up - After Shock - Derivatives - Qualifying Assets - Canada Dollars",null,null,null,null,null,null,null,null,0]
["Sch XXIII","Interest Rates",null,"Int. Up - After Shock - Derivatives - Qualifying Assets - Swiss Francs",null,null,null,null,null,null,null,null,0]
["Sch XXIII","Interest Rates",null,"Int. Up - After Shock - Derivatives - Qualifying Assets - Australia Dollar",null,null,null,null,null,null,null,null,0]
["Sch XXIII","Interest Rates",null,"Int. Up - After Shock - Derivatives - Qualifying Assets - New Zealand Dollar",null,null,null,null,null,null,null,null,0]
["Sch XXIII","Interest Rates",null,{"$f":"\"Int. Up - After Shock - Derivatives - Qualifying Assets - \"&'Schedule XXIII'!$C$18","v":"Int. Up - After Shock - Derivatives - Qualifying Assets - Other currency 1"},null,null,null,null,null,null,null,null,0]
["Sch XXIII","Interest Rates",null,{"$f":"\"Int. Up - After Shock - Derivatives - Qualifying Assets - \"&'Schedule XXIII'!$C$19","v":"Int. Up - After Shock - Derivatives - Qualifying Assets - Other currency 2"},null,null,null,null,null,null,null,null,0]
["Sch XXIII","Interest Rates",null,{"$f":"\"Int. Up - After Shock - Derivatives - Qualifying Assets - \"&'Schedule XXIII'!$C$20","v":"Int. Up - After Shock - Derivatives - Qualifying Assets - Other currency 3"},null,null,null,null,null,null,null,null,0]
["Sch XXIII","Interest Rates",null,{"$f":"\"Int. Up - After Shock - Derivatives - Qualifying Assets - \"&'Schedule XXIII'!$C$21","v":"Int. Up - After Shock - Derivatives - Qualifying Assets - Other currency 4"},null,null,null,null,null,null,null,null,0]
["Sch XXIII","Interest Rates",null,{"$f":"\"Int. Up - After Shock - Derivatives - Qualifying Assets - \"&'Schedule XXIII'!$C$22","v":"Int. Up - After Shock - Derivatives - Qualifying Assets - Other currency 5"},null,null,null,null,null,null,null,null,0]
["Sch XXIII","Interest Rates",null,{"$f":"\"Int. Up - After Shock - Derivatives - Qualifying Assets - \"&'Schedule XXIII'!$C$23","v":"Int. Up - After Shock - Derivatives - Qualifying Assets - Other currency 6"},null,null,null,null,null,null,null,null,0]
["Sch XXIII","Interest Rates",null,{"$f":"\"Int. Up - After Shock - Derivatives - Qualifying Assets - \"&'Schedule XXIII'!$C$24","v":"Int. Up - After Shock - Derivatives - Qualifying Assets - Other currency 7"},null,null,null,null,null,null,null,null,0]
["Sch XXIII","Interest Rates",null,{"$f":"\"Int. Up - After Shock - Derivatives - Qualifying Assets - \"&'Schedule XXIII'!$C$25","v":"Int. Up - After Shock - Derivatives - Qualifying Assets - Other currency 8"},null,null,null,null,null,null,null,null,0]
["Sch XXIII","Interest Rates",null,{"$f":"\"Int. Up - After Shock - Derivatives - Qualifying Assets - \"&'Schedule XXIII'!$C$26","v":"Int. Up - After Shock - Derivatives - Qualifying Assets - Other currency 9"},null,null,null,null,null,null,null,null,0]
["Sch XXIII","Interest Rates",null,{"$f":"\"Int. Up - After Shock - Derivatives - Qualifying Assets - \"&'Schedule XXIII'!$C$27","v":"Int. Up - After Shock - Derivatives - Qualifying Assets - Other currency 10"},null,null,null,null,null,null,null,null,0]
["Sch XXIII","Interest Rates",null,"Int. Up - After Shock - Derivatives - Qualifying Assets - Total",null,null,null,null,null,null,null,null,0]
["Sch XXIII","Interest Rates",null,"Int. Up - Before Shock - Derivatives - Not Qualifying Assets - United States Dollars",null,null,null,null,null,null,null,null,0]
["Sch XXIII","Interest Rates",null,"Int. Up - Before Shock - Derivatives - Not Qualifying Assets - Euro",null,null,null,null,null,null,null,null,0]
["Sch XXIII","Interest Rates",null,"Int. Up - Before Shock - Derivatives - Not Qualifying Assets - United Kingdom Pounds",null,null,null,null,null,null,null,null,0]
["Sch XXIII","Interest Rates",null,"Int. Up - Before Shock - Derivatives - Not Qualifying Assets - Japan Yen",null,null,null,null,null,null,null,null,0]
["Sch XXIII","Interest Rates",null,"Int. Up - Before Shock - Derivatives - Not Qualifying Assets - Canada Dollars",null,null,null,null,null,null,null,null,0]
["Sch XXIII","Interest Rates",null,"Int. Up - Before Shock - Derivatives - Not Qualifying Assets - Swiss Francs",null,null,null,null,null,null,null,null,0]
["Sch XXIII","Interest Rates",null,"Int. Up - Before Shock - Derivatives - Not Qualifying Assets - Australia Dollar",null,null,null,null,null,null,null,null,0]
["Sch XXIII","Interest Rates",null,"Int. Up - Before Shock - Derivatives - Not Qualifying Assets - New Zealand Dollar",null,null,null,null,null,null,null,null,0]
["Sch XXIII","Interest Rates",null,{"$f":"\"Int. Up - Before Shock - Derivatives - Not Qualifying Assets - \"&'Schedule XXIII'!$C$18","v":"Int. Up - Before Shock - Derivatives - Not Qualifying Assets - Other currency 1"},null,null,null,null,null,null,null,null,0]
["Sch XXIII","Interest Rates",null,{"$f":"\"Int. Up - Before Shock - Derivatives - Not Qualifying Assets - \"&'Schedule XXIII'!$C$19","v":"Int. Up - Before Shock - Derivatives - Not Qualifying Assets - Other currency 2"},null,null,null,null,null,null,null,null,0]
["Sch XXIII","Interest Rates",null,{"$f":"\"Int. Up - Before Shock - Derivatives - Not Qualifying Assets - \"&'Schedule XXIII'!$C$20","v":"Int. Up - Before Shock - Derivatives - Not Qualifying Assets - Other currency 3"},null,null,null,null,null,null,null,null,0]
["Sch XXIII","Interest Rates",null,{"$f":"\"Int. Up - Before Shock - Derivatives - Not Qualifying Assets - \"&'Schedule XXIII'!$C$21","v":"Int. Up - Before Shock - Derivatives - Not Qualifying Assets - Other currency 4"},null,null,null,null,null,null,null,null,0]
["Sch XXIII","Interest Rates",null,{"$f":"\"Int. Up - Before Shock - Derivatives - Not Qualifying Assets - \"&'Schedule XXIII'!$C$22","v":"Int. Up - Before Shock - Derivatives - Not Qualifying Assets - Other currency 5"},null,null,null,null,null,null,null,null,0]
["Sch XXIII","Interest Rates",null,{"$f":"\"Int. Up - Before Shock - Derivatives - Not Qualifying Assets - \"&'Schedule XXIII'!$C$23","v":"Int. Up - Before Shock - Derivatives - Not Qualifying Assets - Other currency 6"},null,null,null,null,null,null,null,null,0]
["Sch XXIII","Interest Rates",null,{"$f":"\"Int. Up - Before Shock - Derivatives - Not Qualifying Assets - \"&'Schedule XXIII'!$C$24","v":"Int. Up - Before Shock - Derivatives - Not Qualifying Assets - Other currency 7"},null,null,null,null,null,null,null,null,0]
["Sch XXIII","Interest Rates",null,{"$f":"\"Int. Up - Before Shock - Derivatives - Not Qualifying Assets - \"&'Schedule XXIII'!$C$25","v":"Int. Up - Before Shock - Derivatives - Not Qualifying Assets - Other currency 8"},null,null,null,null,null,null,null,null,0]
["Sch XXIII","Interest Rates",null,{"$f":"\"Int. Up - Before Shock - Derivatives - Not Qualifying Assets - \"&'Schedule XXIII'!$C$26","v":"Int. Up - Before Shock - Derivatives - Not Qualifying Assets - Other currency 9"},null,null,null,null,null,null,null,null,0]
["Sch XXIII","Interest Rates",null,{"$f":"\"Int. Up - Before Shock - Derivatives - Not Qualifying Assets - \"&'Schedule XXIII'!$C$27","v":"Int. Up - Before Shock - Derivatives - Not Qualifying Assets - Other currency 10"},null,null,null,null,null,null,null,null,0]
["Sch XXIII","Interest Rates",null,"Int. Up - Before Shock - Derivatives - Not Qualifying Assets - Total",null,null,null,null,null,null,null,null,0]
["Sch XXIII","Interest Rates",null,"Int. Up - After Shock - Derivatives - Not Qualifying Assets - United States Dollars",null,null,null,null,null,null,null,null,0]
["Sch XXIII","Interest Rates",null,"Int. Up - After Shock - Derivatives - Not Qualifying Assets - Euro",null,null,null,null,null,null,null,null,0]
["Sch XXIII","Interest Rates",null,"Int. Up - After Shock - Derivatives - Not Qualifying Assets - United Kingdom Pounds",null,null,null,null,null,null,null,null,0]
["Sch XXIII","Interest Rates",null,"Int. Up - After Shock - Derivatives - Not Qualifying Assets - Japan Yen",null,null,null,null,null,null,null,null,0]
["Sch XXIII","Interest Rates",null,"Int. Up - After Shock - Derivatives - Not Qualifying Assets - Canada Dollars",null,null,null,null,null,null,null,null,0]
["Sch XXIII","Interest Rates",null,"Int. Up - After Shock - Derivatives - Not Qualifying Assets - Swiss Francs",null,null,null,null,null,null,null,null,0]
["Sch XXIII","Interest Rates",null,"Int. Up - After Shock - Derivatives - Not Qualifying Assets - Australia Dollar",null,null,null,null,null,null,null,null,0]
["Sch XXIII","Interest Rates",null,"Int. Up - After Shock - Derivatives - Not Qualifying Assets - New Zealand Dollar",null,null,null,null,null,null,null,null,0]
["Sch XXIII","Interest Rates",null,{"$f":"\"Int. Up - After Shock - Derivatives - Not Qualifying Assets - \"&'Schedule XXIII'!$C$18","v":"Int. Up - After Shock - Derivatives - Not Qualifying Assets - Other currency 1"},null,null,null,null,null,null,null,null,0]
["Sch XXIII","Interest Rates",null,{"$f":"\"Int. Up - After Shock - Derivatives - Not Qualifying Assets - \"&'Schedule XXIII'!$C$19","v":"Int. Up - After Shock - Derivatives - Not Qualifying Assets - Other currency 2"},null,null,null,null,null,null,null,null,0]
["Sch XXIII","Interest Rates",null,{"$f":"\"Int. Up - After Shock - Derivatives - Not Qualifying Assets - \"&'Schedule XXIII'!$C$20","v":"Int. Up - After Shock - Derivatives - Not Qualifying Assets - Other currency 3"},null,null,null,null,null,null,null,null,0]
["Sch XXIII","Interest Rates",null,{"$f":"\"Int. Up - After Shock - Derivatives - Not Qualifying Assets - \"&'Schedule XXIII'!$C$21","v":"Int. Up - After Shock - Derivatives - Not Qualifying Assets - Other currency 4"},null,null,null,null,null,null,null,null,0]
["Sch XXIII","Interest Rates",null,{"$f":"\"Int. Up - After Shock - Derivatives - Not Qualifying Assets - \"&'Schedule XXIII'!$C$22","v":"Int. Up - After Shock - Derivatives - Not Qualifying Assets - Other currency 5"},null,null,null,null,null,null,null,null,0]
["Sch XXIII","Interest Rates",null,{"$f":"\"Int. Up - After Shock - Derivatives - Not Qualifying Assets - \"&'Schedule XXIII'!$C$23","v":"Int. Up - After Shock - Derivatives - Not Qualifying Assets - Other currency 6"},null,null,null,null,null,null,null,null,0]
["Sch XXIII","Interest Rates",null,{"$f":"\"Int. Up - After Shock - Derivatives - Not Qualifying Assets - \"&'Schedule XXIII'!$C$24","v":"Int. Up - After Shock - Derivatives - Not Qualifying Assets - Other currency 7"},null,null,null,null,null,null,null,null,0]
["Sch XXIII","Interest Rates",null,{"$f":"\"Int. Up - After Shock - Derivatives - Not Qualifying Assets - \"&'Schedule XXIII'!$C$25","v":"Int. Up - After Shock - Derivatives - Not Qualifying Assets - Other currency 8"},null,null,null,null,null,null,null,null,0]
["Sch XXIII","Interest Rates",null,{"$f":"\"Int. Up - After Shock - Derivatives - Not Qualifying Assets - \"&'Schedule XXIII'!$C$26","v":"Int. Up - After Shock - Derivatives - Not Qualifying Assets - Other currency 9"},null,null,null,null,null,null,null,null,0]
["Sch XXIII","Interest Rates",null,{"$f":"\"Int. Up - After Shock - Derivatives - Not Qualifying Assets - \"&'Schedule XXIII'!$C$27","v":"Int. Up - After Shock - Derivatives - Not Qualifying Assets - Other currency 10"},null,null,null,null,null,null,null,null,0]
["Sch XXIII","Interest Rates",null,"Int. Up - After Shock - Derivatives - Not Qualifying Assets - Total",null,null,null,null,null,null,null,null,0]
["Sch XXIII","Interest Rates",null,"Int. Up - Before Shock - Derivatives - Liab. w/o Mgmt. Action - United States Dollars",null,null,null,null,null,null,null,null,0]
["Sch XXIII","Interest Rates",null,"Int. Up - Before Shock - Derivatives - Liab. w/o Mgmt. Action - Euro",null,null,null,null,null,null,null,null,0]
["Sch XXIII","Interest Rates",null,"Int. Up - Before Shock - Derivatives - Liab. w/o Mgmt. Action - United Kingdom Pounds",null,null,null,null,null,null,null,null,0]
["Sch XXIII","Interest Rates",null,"Int. Up - Before Shock - Derivatives - Liab. w/o Mgmt. Action - Japan Yen",null,null,null,null,null,null,null,null,0]
["Sch XXIII","Interest Rates",null,"Int. Up - Before Shock - Derivatives - Liab. w/o Mgmt. Action - Canada Dollars",null,null,null,null,null,null,null,null,0]
["Sch XXIII","Interest Rates",null,"Int. Up - Before Shock - Derivatives - Liab. w/o Mgmt. Action - Swiss Francs",null,null,null,null,null,null,null,null,0]
["Sch XXIII","Interest Rates",null,"Int. Up - Before Shock - Derivatives - Liab. w/o Mgmt. Action - Australia Dollar",null,null,null,null,null,null,null,null,0]
["Sch XXIII","Interest Rates",null,"Int. Up - Before Shock - Derivatives - Liab. w/o Mgmt. Action - New Zealand Dollar",null,null,null,null,null,null,null,null,0]
["Sch XXIII","Interest Rates",null,{"$f":"\"Int. Up - Before Shock - Derivatives - Liab. w/o Mgmt Action - \"&'Schedule XXIII'!$C$18","v":"Int. Up - Before Shock - Derivatives - Liab. w/o Mgmt Action - Other currency 1"},null,null,null,null,null,null,null,null,0]
["Sch XXIII","Interest Rates",null,{"$f":"\"Int. Up - Before Shock - Derivatives - Liab. w/o Mgmt Action - \"&'Schedule XXIII'!$C$19","v":"Int. Up - Before Shock - Derivatives - Liab. w/o Mgmt Action - Other currency 2"},null,null,null,null,null,null,null,null,0]
["Sch XXIII","Interest Rates",null,{"$f":"\"Int. Up - Before Shock - Derivatives - Liab. w/o Mgmt Action - \"&'Schedule XXIII'!$C$20","v":"Int. Up - Before Shock - Derivatives - Liab. w/o Mgmt Action - Other currency 3"},null,null,null,null,null,null,null,null,0]
["Sch XXIII","Interest Rates",null,{"$f":"\"Int. Up - Before Shock - Derivatives - Liab. w/o Mgmt Action - \"&'Schedule XXIII'!$C$21","v":"Int. Up - Before Shock - Derivatives - Liab. w/o Mgmt Action - Other currency 4"},null,null,null,null,null,null,null,null,0]
["Sch XXIII","Interest Rates",null,{"$f":"\"Int. Up - Before Shock - Derivatives - Liab. w/o Mgmt Action - \"&'Schedule XXIII'!$C$22","v":"Int. Up - Before Shock - Derivatives - Liab. w/o Mgmt Action - Other currency 5"},null,null,null,null,null,null,null,null,0]
["Sch XXIII","Interest Rates",null,{"$f":"\"Int. Up - Before Shock - Derivatives - Liab. w/o Mgmt Action - \"&'Schedule XXIII'!$C$23","v":"Int. Up - Before Shock - Derivatives - Liab. w/o Mgmt Action - Other currency 6"},null,null,null,null,null,null,null,null,0]
["Sch XXIII","Interest Rates",null,{"$f":"\"Int. Up - Before Shock - Derivatives - Liab. w/o Mgmt Action - \"&'Schedule XXIII'!$C$24","v":"Int. Up - Before Shock - Derivatives - Liab. w/o Mgmt Action - Other currency 7"},null,null,null,null,null,null,null,null,0]
["Sch XXIII","Interest Rates",null,{"$f":"\"Int. Up - Before Shock - Derivatives - Liab. w/o Mgmt Action - \"&'Schedule XXIII'!$C$25","v":"Int. Up - Before Shock - Derivatives - Liab. w/o Mgmt Action - Other currency 8"},null,null,null,null,null,null,null,null,0]
["Sch XXIII","Interest Rates",null,{"$f":"\"Int. Up - Before Shock - Derivatives - Liab. w/o Mgmt Action - \"&'Schedule XXIII'!$C$26","v":"Int. Up - Before Shock - Derivatives - Liab. w/o Mgmt Action - Other currency 9"},null,null,null,null,null,null,null,null,0]
["Sch XXIII","Interest Rates",null,{"$f":"\"Int. Up - Before Shock - Derivatives - Liab. w/o Mgmt Action - \"&'Schedule XXIII'!$C$27","v":"Int. Up - Before Shock - Derivatives - Liab. w/o Mgmt Action - Other currency 10"},null,null,null,null,null,null,null,null,0]
["Sch XXIII","Interest Rates",null,"Int. Up - Before Shock - Derivatives - Liab. w/o Mgmt. Action - Total",null,null,null,null,null,null,null,null,0]
["Sch XXIII","Interest Rates",null,"Int. Up - After Shock - Derivatives - Liab. w/o Mgmt. Action - United States Dollars",null,null,null,null,null,null,null,null,0]
["Sch XXIII","Interest Rates",null,"Int. Up - After Shock - Derivatives - Liab. w/o Mgmt. Action - Euro",null,null,null,null,null,null,null,null,0]
["Sch XXIII","Interest Rates",null,"Int. Up - After Shock - Derivatives - Liab. w/o Mgmt. Action - United Kingdom Pounds",null,null,null,null,null,null,null,null,0]
["Sch XXIII","Interest Rates",null,"Int. Up - After Shock - Derivatives - Liab. w/o Mgmt. Action - Japan Yen",null,null,null,null,null,null,null,null,0]
["Sch XXIII","Interest Rates",null,"Int. Up - After Shock - Derivatives - Liab. w/o Mgmt. Action - Canada Dollars",null,null,null,null,null,null,null,null,0]
["Sch XXIII","Interest Rates",null,"Int. Up - After Shock - Derivatives - Liab. w/o Mgmt. Action - Swiss Francs",null,null,null,null,null,null,null,null,0]
["Sch XXIII","Interest Rates",null,"Int. Up - After Shock - Derivatives - Liab. w/o Mgmt. Action - Australia Dollar",null,null,null,null,null,null,null,null,0]
["Sch XXIII","Interest Rates",null,"Int. Up - After Shock - Derivatives - Liab. w/o Mgmt. Action - New Zealand Dollar",null,null,null,null,null,null,null,null,0]
["Sch XXIII","Interest Rates",null,{"$f":"\"Int. Up - After Shock - Derivatives - Liab. w/o Mgmt Action - \"&'Schedule XXIII'!$C$18","v":"Int. Up - After Shock - Derivatives - Liab. w/o Mgmt Action - Other currency 1"},null,null,null,null,null,null,null,null,0]
["Sch XXIII","Interest Rates",null,{"$f":"\"Int. Up - After Shock - Derivatives - Liab. w/o Mgmt Action - \"&'Schedule XXIII'!$C$19","v":"Int. Up - After Shock - Derivatives - Liab. w/o Mgmt Action - Other currency 2"},null,null,null,null,null,null,null,null,0]
["Sch XXIII","Interest Rates",null,{"$f":"\"Int. Up - After Shock - Derivatives - Liab. w/o Mgmt Action - \"&'Schedule XXIII'!$C$20","v":"Int. Up - After Shock - Derivatives - Liab. w/o Mgmt Action - Other currency 3"},null,null,null,null,null,null,null,null,0]
["Sch XXIII","Interest Rates",null,{"$f":"\"Int. Up - After Shock - Derivatives - Liab. w/o Mgmt Action - \"&'Schedule XXIII'!$C$21","v":"Int. Up - After Shock - Derivatives - Liab. w/o Mgmt Action - Other currency 4"},null,null,null,null,null,null,null,null,0]
["Sch XXIII","Interest Rates",null,{"$f":"\"Int. Up - After Shock - Derivatives - Liab. w/o Mgmt Action - \"&'Schedule XXIII'!$C$22","v":"Int. Up - After Shock - Derivatives - Liab. w/o Mgmt Action - Other currency 5"},null,null,null,null,null,null,null,null,0]
["Sch XXIII","Interest Rates",null,{"$f":"\"Int. Up - After Shock - Derivatives - Liab. w/o Mgmt Action - \"&'Schedule XXIII'!$C$23","v":"Int. Up - After Shock - Derivatives - Liab. w/o Mgmt Action - Other currency 6"},null,null,null,null,null,null,null,null,0]
["Sch XXIII","Interest Rates",null,{"$f":"\"Int. Up - After Shock - Derivatives - Liab. w/o Mgmt Action - \"&'Schedule XXIII'!$C$24","v":"Int. Up - After Shock - Derivatives - Liab. w/o Mgmt Action - Other currency 7"},null,null,null,null,null,null,null,null,0]
["Sch XXIII","Interest Rates",null,{"$f":"\"Int. Up - After Shock - Derivatives - Liab. w/o Mgmt Action - \"&'Schedule XXIII'!$C$25","v":"Int. Up - After Shock - Derivatives - Liab. w/o Mgmt Action - Other currency 8"},null,null,null,null,null,null,null,null,0]
["Sch XXIII","Interest Rates",null,{"$f":"\"Int. Up - After Shock - Derivatives - Liab. w/o Mgmt Action - \"&'Schedule XXIII'!$C$26","v":"Int. Up - After Shock - Derivatives - Liab. w/o Mgmt Action - Other currency 9"},null,null,null,null,null,null,null,null,0]
["Sch XXIII","Interest Rates",null,{"$f":"\"Int. Up - After Shock - Derivatives - Liab. w/o Mgmt Action - \"&'Schedule XXIII'!$C$27","v":"Int. Up - After Shock - Derivatives - Liab. w/o Mgmt Action - Other currency 10"},null,null,null,null,null,null,null,null,0]
["Sch XXIII","Interest Rates",null,"Int. Up - After Shock - Derivatives - Liab. w/o Mgmt. Action - Total",null,null,null,null,null,null,null,null,0]
["Sch XXIII","Interest Rates",null,"Int. Up - After Shock - Derivatives - Liab. with Mgmt. Action - United States Dollars",null,null,null,null,null,null,null,null,0]
["Sch XXIII","Interest Rates",null,"Int. Up - After Shock - Derivatives - Liab. with Mgmt. Action - Euro",null,null,null,null,null,null,null,null,0]
["Sch XXIII","Interest Rates",null,"Int. Up - After Shock - Derivatives - Liab. with Mgmt. Action - United Kingdom Pounds",null,null,null,null,null,null,null,null,0]
["Sch XXIII","Interest Rates",null,"Int. Up - After Shock - Derivatives - Liab. with Mgmt. Action - Japan Yen",null,null,null,null,null,null,null,null,0]
["Sch XXIII","Interest Rates",null,"Int. Up - After Shock - Derivatives - Liab. with Mgmt. Action - Canada Dollars",null,null,null,null,null,null,null,null,0]
["Sch XXIII","Interest Rates",null,"Int. Up - After Shock - Derivatives - Liab. with Mgmt. Action - Swiss Francs",null,null,null,null,null,null,null,null,0]
["Sch XXIII","Interest Rates",null,"Int. Up - After Shock - Derivatives - Liab. with Mgmt. Action - Australia Dollar",null,null,null,null,null,null,null,null,0]
["Sch XXIII","Interest Rates",null,"Int. Up - After Shock - Derivatives - Liab. with Mgmt. Action - New Zealand Dollar",null,null,null,null,null,null,null,null,0]
["Sch XXIII","Interest Rates",null,{"$f":"\"Int. Up - After Shock - Derivatives - Liab. with Mgmt Action - \"&'Schedule XXIII'!$C$18","v":"Int. Up - After Shock - Derivatives - Liab. with Mgmt Action - Other currency 1"},null,null,null,null,null,null,null,null,0]
["Sch XXIII","Interest Rates",null,{"$f":"\"Int. Up - After Shock - Derivatives - Liab. with Mgmt Action - \"&'Schedule XXIII'!$C$19","v":"Int. Up - After Shock - Derivatives - Liab. with Mgmt Action - Other currency 2"},null,null,null,null,null,null,null,null,0]
["Sch XXIII","Interest Rates",null,{"$f":"\"Int. Up - After Shock - Derivatives - Liab. with Mgmt Action - \"&'Schedule XXIII'!$C$20","v":"Int. Up - After Shock - Derivatives - Liab. with Mgmt Action - Other currency 3"},null,null,null,null,null,null,null,null,0]
["Sch XXIII","Interest Rates",null,{"$f":"\"Int. Up - After Shock - Derivatives - Liab. with Mgmt Action - \"&'Schedule XXIII'!$C$21","v":"Int. Up - After Shock - Derivatives - Liab. with Mgmt Action - Other currency 4"},null,null,null,null,null,null,null,null,0]
["Sch XXIII","Interest Rates",null,{"$f":"\"Int. Up - After Shock - Derivatives - Liab. with Mgmt Action - \"&'Schedule XXIII'!$C$22","v":"Int. Up - After Shock - Derivatives - Liab. with Mgmt Action - Other currency 5"},null,null,null,null,null,null,null,null,0]
["Sch XXIII","Interest Rates",null,{"$f":"\"Int. Up - After Shock - Derivatives - Liab. with Mgmt Action - \"&'Schedule XXIII'!$C$23","v":"Int. Up - After Shock - Derivatives - Liab. with Mgmt Action - Other currency 6"},null,null,null,null,null,null,null,null,0]
["Sch XXIII","Interest Rates",null,{"$f":"\"Int. Up - After Shock - Derivatives - Liab. with Mgmt Action - \"&'Schedule XXIII'!$C$24","v":"Int. Up - After Shock - Derivatives - Liab. with Mgmt Action - Other currency 7"},null,null,null,null,null,null,null,null,0]
["Sch XXIII","Interest Rates",null,{"$f":"\"Int. Up - After Shock - Derivatives - Liab. with Mgmt Action - \"&'Schedule XXIII'!$C$25","v":"Int. Up - After Shock - Derivatives - Liab. with Mgmt Action - Other currency 8"},null,null,null,null,null,null,null,null,0]
["Sch XXIII","Interest Rates",null,{"$f":"\"Int. Up - After Shock - Derivatives - Liab. with Mgmt Action - \"&'Schedule XXIII'!$C$26","v":"Int. Up - After Shock - Derivatives - Liab. with Mgmt Action - Other currency 9"},null,null,null,null,null,null,null,null,0]
["Sch XXIII","Interest Rates",null,{"$f":"\"Int. Up - After Shock - Derivatives - Liab. with Mgmt Action - \"&'Schedule XXIII'!$C$27","v":"Int. Up - After Shock - Derivatives - Liab. with Mgmt Action - Other currency 10"},null,null,null,null,null,null,null,null,0]
["Sch XXIII","Interest Rates",null,"Int. Up - After Shock - Derivatives - Liab. with Mgmt. Action - Total",null,null,null,null,null,null,null,null,0]
[]
["Op Risk","Corp Gov",null,"Corporate Governance Q1",null,null,null,null,null,null,null,null,0,null,null,null,null,null,null,0]
["Op Risk","Corp Gov",null,"Corporate Governance Q2 (Class 3A Only)",null,null,null,null,null,null,null,null,0,null,null,null,null,null,null,{"$f":"IF('Company Information'!$F$11=\"IIGB\",200,0)","v":200}]
["Op Risk","Corp Gov",null,"Corporate Governance Q3",null,null,null,null,null,null,null,null,0]
["Op Risk","Corp Gov",null,"Corporate Governance Q4",null,null,null,null,null,null,null,null,0]
["Op Risk","Corp Gov",null,"Corporate Governance Q5",null,null,null,null,null,null,null,null,0]
["Op Risk","Corp Gov",null,"Corporate Governance Q6",null,null,null,null,null,null,null,null,0]
["Op Risk","Corp Gov",null,"Corporate Governance Q7",null,null,null,null,null,null,null,null,0]
["Op Risk","Risk Mngt",null,"Risk Management Q1",null,null,null,null,null,null,null,null,0,null,null,null,null,null,null,0]
["Op Risk","Risk Mngt",null,"Risk Management Q2",null,null,null,null,null,null,null,null,0,null,null,null,null,null,null,{"$f":"IF('Company Information'!$F$11=\"IIGB\",200,150)","v":200}]
["Op Risk","Risk Mngt",null,"Risk Management Q3",null,null,null,null,null,null,null,null,0]
["Op Risk","Risk Mngt",null,"Risk Management Q4",null,null,null,null,null,null,null,null,0]
["Op Risk","Risk Mngt",null,"Risk Management Q5",null,null,null,null,null,null,null,null,0]
["Op Risk","Risk Mngt",null,"Risk Management Q6",null,null,null,null,null,null,null,null,0]
["Op Risk","Risk Mngt",null,"Risk Management Q7",null,null,null,null,null,null,null,null,0]
["Op Risk","Identification",null,"Identification - Fraud (Class 4/3B Only)",null,null,null,null,null,null,null,null,0,null,null,null,null,null,null,{"$f":"IF('Company Information'!$F$11=\"IIGB\",0,0)","v":0}]
["Op Risk","Identification",null,"Identification - HR (Class 4/3B Only)",null,null,null,null,null,null,null,null,0,null,null,null,null,null,null,{"$f":"IF('Company Information'!$F$11=\"IIGB\",0,50)","v":0}]
["Op Risk","Identification",null,"Identification - Outsourcing (Class 4/3B Only)",null,null,null,null,null,null,null,null,0,null,null,null,null,null,null,{"$f":"IF('Company Information'!$F$11=\"IIGB\",0,100)","v":0}]
["Op Risk","Identification",null,"Identification - Dis. Channels (Class 4/3B Only)",null,null,null,null,null,null,null,null,0,null,null,null,null,null,null,{"$f":"IF('Company Information'!$F$11=\"IIGB\",0,150)","v":0}]
["Op Risk","Identification",null,"Identification - Bus. Processes (Class 4/3B Only)",null,null,null,null,null,null,null,null,0,null,null,null,null,null,null,{"$f":"IF('Company Information'!$F$11=\"IIGB\",0,200)","v":0}]
["Op Risk","Identification",null,"Identification - Bus. Continuity (Class 4/3B Only)",null,null,null,null,null,null,null,null,0]
["Op Risk","Identification",null,"Identification - Info. Systems (Class 4/3B Only)",null,null,null,null,null,null,null,null,0]
["Op Risk","Identification",null,"Identification - Compliance (Class 4/3B Only)",null,null,null,null,null,null,null,null,0]
["Op Risk","Measurement",null,"Measurement - Fraud (Class 4/3B Only)",null,null,null,null,null,null,null,null,0]
["Op Risk","Measurement",null,"Measurement - HR (Class 4/3B Only)",null,null,null,null,null,null,null,null,0]
["Op Risk","Measurement",null,"Measurement - Outsourcing (Class 4/3B Only)",null,null,null,null,null,null,null,null,0]
["Op Risk","Measurement",null,"Measurement - Dis. Channels (Class 4/3B Only)",null,null,null,null,null,null,null,null,0]
["Op Risk","Measurement",null,"Measurement - Bus. Processes (Class 4/3B Only)",null,null,null,null,null,null,null,null,0]
["Op Risk","Measurement",null,"Measurement - Bus. Continuity (Class 4/3B Only)",null,null,null,null,null,null,null,null,0]
["Op Risk","Measurement",null,"Measurement - Info. Systems (Class 4/3B Only)",null,null,null,null,null,null,null,null,0]
["Op Risk","Measurement",null,"Measurement - Compliance (Class 4/3B Only)",null,null,null,null,null,null,null,null,0]
["Op Risk","Response",null,"Response - Fraud (Class 4/3B Only)",null,null,null,null,null,null,null,null,0]
["Op Risk","Response",null,"Response - HR (Class 4/3B Only)",null,null,null,null,null,null,null,null,0]
["Op Risk","Response",null,"Response - Outsourcing (Class 4/3B Only)",null,null,null,null,null,null,null,null,0]
["Op Risk","Response",null,"Response - Dis. Channels (Class 4/3B Only)",null,null,null,null,null,null,null,null,0]
["Op Risk","Response",null,"Response - Bus. Processes (Class 4/3B Only)",null,null,null,null,null,null,null,null,0]
["Op Risk","Response",null,"Response - Bus. Continuity (Class 4/3B Only)",null,null,null,null,null,null,null,null,0]
["Op Risk","Response",null,"Response - Info. Systems (Class 4/3B Only)",null,null,null,null,null,null,null,null,0]
["Op Risk","Response",null,"Response - Compliance (Class 4/3B Only)",null,null,null,null,null,null,null,null,0]
["Op Risk","Mont. & Reporting",null,"Mont. & Reporting - Fraud (Class 4/3B Only)",null,null,null,null,null,null,null,null,0]
["Op Risk","Mont. & Reporting",null,"Mont. & Reporting - HR (Class 4/3B Only)",null,null,null,null,null,null,null,null,0]
["Op Risk","Mont. & Reporting",null,"Mont. & Reporting - Outsourcing (Class 4/3B Only)",null,null,null,null,null,null,null,null,0]
["Op Risk","Mont. & Reporting",null,"Mont. & Reporting - Dis. Channels (Class 4/3B Only)",null,null,null,null,null,null,null,null,0]
["Op Risk","Mont. & Reporting",null,"Mont. & Reporting - Bus. Processes (Class 4/3B Only)",null,null,null,null,null,null,null,null,0]
["Op Risk","Mont. & Reporting",null,"Mont. & Reporting - Bus. Continuity (Class 4/3B Only)",null,null,null,null,null,null,null,null,0]
["Op Risk","Mont. & Reporting",null,"Mont. & Reporting - Info. Systems (Class 4/3B Only)",null,null,null,null,null,null,null,null,0]
["Op Risk","Mont. & Reporting",null,"Mont. & Reporting - Compliance (Class 4/3B Only)",null,null,null,null,null,null,null,null,0]
[]
["Entry Fields for 2019 Methodology"]
[]
["Summary",null,null,"Deferred Tax Asset - T",null,null,null,null,null,null,null,null,0]
["Summary",null,null,"Deferred Tax Asset - Loss Carryback Provision",null,null,null,null,null,null,null,null,0]
["Summary",null,null,"Management Action - Net Future Discretionary Benefits/Bonus Reserve",null,null,null,null,null,null,null,null,0]
[]
["Sar & Sanc.","SAR & Sanctions",null,"E.1 Registered GoAML","Select Yes/No"]
["Sar & Sanc.","SAR & Sanctions",null,"E.1.1 When","(Select)"]
["Sar & Sanc.","SAR & Sanctions",null,"E.1.1 Name",0]
["Sar & Sanc.","SAR & Sanctions",null,"E.1.2 Another Registered","Select Yes/No"]
["Sar & Sanc.","SAR & Sanctions",null,"E.1.3 Name",0]
["Sar & Sanc.","SAR & Sanctions",null,"E.1.4 Filed SAR",0]
["Sar & Sanc.","SAR & Sanctions",null,"E.2 SAR Filed - Internal - Current Year",0]
["Sar & Sanc.","SAR & Sanctions",null,"E.2 SAR Filed - Internal - Prior Year",0]
["Sar & Sanc.","SAR & Sanctions",null,"E.2 SAR Filed - Internal - 2 Years Prior",0]
["Sar & Sanc.","SAR & Sanctions",null,"E.2 SAR Filed - Internal - 3 Years Prior",0]
["Sar & Sanc.","SAR & Sanctions",null,"E.2 SAR Filed - Internal - Total",0]
["Sar & Sanc.","SAR & Sanctions",null,"E.2 SAR Filed - w FIA - Current Year",0]
["Sar & Sanc.","SAR & Sanctions",null,"E.2 SAR Filed - w FIA - Prior Year",0]
["Sar & Sanc.","SAR & Sanctions",null,"E.2 SAR Filed - w FIA - 2 Years Prior",0]
["Sar & Sanc.","SAR & Sanctions",null,"E.2 SAR Filed - w FIA - 3 Years Prior",0]
["Sar & Sanc.","SAR & Sanctions",null,"E.2 SAR Filed - w FIA - Total",0]
["Sar & Sanc.","SAR & Sanctions",null,"E.2 Additional Comments",0]
["Sar & Sanc.","SAR & Sanctions",null,"E. Sanction - 1. Screen insurers","Select Yes/No"]
["Sar & Sanc.","SAR & Sanctions",null,"E. Sanction - 2. Screen employees","Select Yes/No"]
["Sar & Sanc.","SAR & Sanctions",null,"E. Sanction - 3. Freeze Assets","Select Yes/No"]
["Sar & Sanc.","SAR & Sanctions",null,"E. Sanction - 3.1 # of Assets Frozen",0]
["Sar & Sanc.","SAR & Sanctions",null,"E. Sanction - 3.2 Group ID 1",0]
["Sar & Sanc.","SAR & Sanctions",null,"E. Sanction - 3.2 Group ID 2",0]
["Sar & Sanc.","SAR & Sanctions",null,"E. Sanction - 3.2 Group ID 3",0]
["Sar & Sanc.","SAR & Sanctions",null,"E. Sanction - 3.2 Group ID 4",0]
["Sar & Sanc.","SAR & Sanctions",null,"E. Sanction - 3.2 Name Given 1",0]
["Sar & Sanc.","SAR & Sanctions",null,"E. Sanction - 3.2 Name Given 2",0]
["Sar & Sanc.","SAR & Sanctions",null,"E. Sanction - 3.2 Name Given 3",0]
["Sar & Sanc.","SAR & Sanctions",null,"E. Sanction - 3.2 Name Given 4",0]
["Sar & Sanc.","SAR & Sanctions",null,"E. Sanction - 3.2 Owned 1",0]
["Sar & Sanc.","SAR & Sanctions",null,"E. Sanction - 3.2 Owned 2",0]
["Sar & Sanc.","SAR & Sanctions",null,"E. Sanction - 3.2 Owned 3",0]
["Sar & Sanc.","SAR & Sanctions",null,"E. Sanction - 3.2 Owned 4",0]
["Sar & Sanc.","SAR & Sanctions",null,"E. Sanction - 3.2 Value of Assets 1",0]
["Sar & Sanc.","SAR & Sanctions",null,"E. Sanction - 3.2 Value of Assets 2",0]
["Sar & Sanc.","SAR & Sanctions",null,"E. Sanction - 3.2 Value of Assets 3",0]
["Sar & Sanc.","SAR & Sanctions",null,"E. Sanction - 3.2 Value of Assets 4",0]
["Sar & Sanc.","SAR & Sanctions",null,"E. Sanction - 3.2 Value of Total",0]
["Sar & Sanc.","SAR & Sanctions",null,"E. Sanction - 4 Frequency of Screen for Sanctions","Select"]
["Sar & Sanc.","SAR & Sanctions",null,"E. Sanction - Additional Comments ",0]

{"sheet":"Export","index":7,"n_rows":17857,"n_cols":15,"rows_kept":4500,"cut":true,"hidden":false,"merged":[[0,4,0,6],[0,12,0,14],[0,16,0,18],[0,8,0,10]],"bounds":{"rows_first":2000,"rows_last":500,"rows_between":2000,"halvings":0}}
[null,null,null,null,"In Fiat",null,null,null,"In Digital Assets",null,null,null,"Consolidated"]
["Sheet Name","Sheet Short Description","Field Code","Field Description",{"$f":"YEAR('Company Information'!$C$3)","v":2022},null,{"$f":"E2-1","v":2021},null,null,null,null,null,{"$f":"YEAR('Company Information'!$C$3)","v":2022},null,{"$f":"M2-1","v":2021}]
["Summary",null,null,"Comments",{"$f":"Submission!B14","v":0}]
[]
["Declaration",null,null,"Authorised Signing Authority 1",{"$f":"+Declaration!C11","v":0}]
["Declaration",null,null,"Date",{"$f":"+Declaration!C14","v":"00:00:00"}]
["Declaration",null,null,"Authorised Signing Authority 2",{"$f":"+Declaration!C19","v":0}]
["Declaration",null,null,"Date",{"$f":"+Declaration!C22","v":"00:00:00"}]
["Declaration",null,null,"Authorised Signing Authority 3",{"$f":"+Declaration!C26","v":0}]
["Declaration",null,null,"Date",{"$f":"+Declaration!C29","v":"00:00:00"}]
[]
["Info Sheet",null,null,"(d) Statements Held at Registered Office",{"$f":"'Information Sheet'!H9","v":"Select Yes/No"}]
["Info Sheet",null,null,"(e) Filing Period - Period Start Date",{"$f":"'Information Sheet'!H13","v":"00:00:00"}]
["Info Sheet",null,null,"(g) Figures Translated at:",{"$f":"'Information Sheet'!H18","v":1}]
["Info Sheet",null,null,"(h) Ultimate Parent",{"$f":"'Information Sheet'!H20","v":0}]
["Info Sheet",null,null,"(i) Insurer's Parent Company",{"$f":"'Information Sheet'!H22","v":0}]
["Info Sheet",null,null,"(j) Industry Sector of Insurer's Parent",{"$f":"'Information Sheet'!H24","v":"Select from Drop-Down"}]
["Info Sheet",null,null,"(k) Insurer's Ownership Structure",{"$f":"'Information Sheet'!H26","v":"Select from Drop-Down"}]
["Info Sheet",null,null,"(l) Insurer's Company Structure",{"$f":"'Information Sheet'!H28","v":"Select from Drop-Down"}]
["Info Sheet",null,null,"(l).1 Confirm if Company writes LT Insurance",{"$f":"'Information Sheet'!H29","v":"Select Yes/No"}]
["Info Sheet",null,null,"(l).2 LT Insurance written during the period",{"$f":"'Information Sheet'!H30","v":"Select Yes/No"}]
["Info Sheet",null,null,"(l).3 Subsidiaries wrote Long-Term insurance",{"$f":"'Information Sheet'!H31","v":"Select Yes/No"}]
["Info Sheet",null,null,"(l).4 Subsidiaries wrote LT Ins. Outside of BDA",{"$f":"'Information Sheet'!H32","v":"Select Yes/No"}]
["Info Sheet",null,null,"(l).5 Subsidiaries Ins. Outside of BDA jurisdiction 1",{"$f":"'Information Sheet'!H33","v":0}]
["Info Sheet",null,null,"(l).5 Subsidiaries Ins. Outside of BDA jurisdiction 2",{"$f":"'Information Sheet'!H34","v":0}]
["Info Sheet",null,null,"(l).5 Subsidiaries Ins. Outside of BDA jurisdiction 3",{"$f":"'Information Sheet'!H35","v":0}]
["Info Sheet",null,null,"(m)(i) Is the Insurer a Member of Ins. Group?",{"$f":"'Information Sheet'!H38","v":"Select Yes/No"}]
["Info Sheet",null,null,"(m)(ii) Are there Segregated Accounts?",{"$f":"'Information Sheet'!H39","v":"Select Yes/No"}]
["Info Sheet",null,null,"(m)(iii) Is the Insurer in Run-Off?",{"$f":"'Information Sheet'!H40","v":"Select Yes/No"}]
["Info Sheet",null,null,"(m)(iv) Statements have a Qualified Opinion?",{"$f":"'Information Sheet'!H41","v":"Select Yes/No"}]
["Info Sheet",null,null,"(m)(iv) Details of Qualified Opinion",{"$f":"'Information Sheet'!C43","v":0}]
["Info Sheet",null,null,"(m)(v) Minimum Solvency Margin Met",{"$f":"'Information Sheet'!H46","v":"Select Yes/No"}]
["Info Sheet",null,null,"(m)(vi) Liquidity Ratio Met",{"$f":"'Information Sheet'!H47","v":"Select Yes/No"}]
["Info Sheet",null,null,"(n)(1) Certificate of Registration Date",{"$f":"'Information Sheet'!H51","v":""}]
["Info Sheet",null,null,"(n)(2) # of Conditions",{"$f":"'Information Sheet'!H53","v":0}]
["Info Sheet",null,null,"Effective Start Date of Condition - 1",{"$f":"'Information Sheet'!E56","v":"00:00:00"}]
["Info Sheet",null,null,"Effective Start Date of Condition - 2",{"$f":"'Information Sheet'!E57","v":"00:00:00"}]
["Info Sheet",null,null,"Effective Start Date of Condition - 3",{"$f":"'Information Sheet'!E58","v":"00:00:00"}]
["Info Sheet",null,null,"Effective Start Date of Condition - 4",{"$f":"'Information Sheet'!E59","v":"00:00:00"}]
["Info Sheet",null,null,"Effective Start Date of Condition - 5",{"$f":"'Information Sheet'!E60","v":"00:00:00"}]
["Info Sheet",null,null,"Effective Start Date of Condition - 6",{"$f":"'Information Sheet'!E61","v":"00:00:00"}]
["Info Sheet",null,null,"Effective Start Date of Condition - 7",{"$f":"'Information Sheet'!E62","v":"00:00:00"}]
["Info Sheet",null,null,"Effective Start Date of Condition - 8",{"$f":"'Information Sheet'!E63","v":"00:00:00"}]
["Info Sheet",null,null,"Effective Start Date of Condition - 9",{"$f":"'Information Sheet'!E64","v":"00:00:00"}]
["Info Sheet",null,null,"Effective Start Date of Condition - 10",{"$f":"'Information Sheet'!E65","v":"00:00:00"}]
["Info Sheet",null,null,"Effective End Date of Condition - 1",{"$f":"'Information Sheet'!F56","v":"00:00:00"}]
["Info Sheet",null,null,"Effective End Date of Condition - 2",{"$f":"'Information Sheet'!F57","v":"00:00:00"}]
["Info Sheet",null,null,"Effective End Date of Condition - 3",{"$f":"'Information Sheet'!F58","v":"00:00:00"}]
["Info Sheet",null,null,"Effective End Date of Condition - 4",{"$f":"'Information Sheet'!F59","v":"00:00:00"}]
["Info Sheet",null,null,"Effective End Date of Condition - 5",{"$f":"'Information Sheet'!F60","v":"00:00:00"}]
["Info Sheet",null,null,"Effective End Date of Condition - 6",{"$f":"'Information Sheet'!F61","v":"00:00:00"}]
["Info Sheet",null,null,"Effective End Date of Condition - 7",{"$f":"'Information Sheet'!F62","v":"00:00:00"}]
["Info Sheet",null,null,"Effective End Date of Condition - 8",{"$f":"'Information Sheet'!F63","v":"00:00:00"}]
["Info Sheet",null,null,"Effective End Date of Condition - 9",{"$f":"'Information Sheet'!F64","v":"00:00:00"}]
["Info Sheet",null,null,"Effective End Date of Condition - 10",{"$f":"'Information Sheet'!F65","v":"00:00:00"}]
["Info Sheet",null,null,"Description of Condition - 1",{"$f":"'Information Sheet'!G56","v":0}]
["Info Sheet",null,null,"Description of Condition - 2",{"$f":"'Information Sheet'!G57","v":0}]
["Info Sheet",null,null,"Description of Condition - 3",{"$f":"'Information Sheet'!G58","v":0}]
["Info Sheet",null,null,"Description of Condition - 4",{"$f":"'Information Sheet'!G59","v":0}]
["Info Sheet",null,null,"Description of Condition - 5",{"$f":"'Information Sheet'!G60","v":0}]
["Info Sheet",null,null,"Description of Condition - 6",{"$f":"'Information Sheet'!G61","v":0}]
["Info Sheet",null,null,"Description of Condition - 7",{"$f":"'Information Sheet'!G62","v":0}]
["Info Sheet",null,null,"Description of Condition - 8",{"$f":"'Information Sheet'!G63","v":0}]
["Info Sheet",null,null,"Description of Condition - 9",{"$f":"'Information Sheet'!G64","v":0}]
["Info Sheet",null,null,"Description of Condition - 10",{"$f":"'Information Sheet'!G65","v":0}]
["Info Sheet",null,null,"Insurer Complied with All Conditions?",{"$f":"'Information Sheet'!H67","v":"Select Yes/No"}]
["Info Sheet",null,null,"(p) # of Directions",{"$f":"'Information Sheet'!H71","v":0}]
["Info Sheet",null,null,"Effective Start Date of Direction - 1",{"$f":"'Information Sheet'!E74","v":"00:00:00"}]
["Info Sheet",null,null,"Effective Start Date of Direction - 2",{"$f":"'Information Sheet'!E75","v":"00:00:00"}]
["Info Sheet",null,null,"Effective Start Date of Direction - 3",{"$f":"'Information Sheet'!E76","v":"00:00:00"}]
["Info Sheet",null,null,"Effective Start Date of Direction - 4",{"$f":"'Information Sheet'!E77","v":"00:00:00"}]
["Info Sheet",null,null,"Effective Start Date of Direction - 5",{"$f":"'Information Sheet'!E78","v":"00:00:00"}]
["Info Sheet",null,null,"Effective Start Date of Direction - 6",{"$f":"'Information Sheet'!E79","v":"00:00:00"}]
["Info Sheet",null,null,"Effective Start Date of Direction - 7",{"$f":"'Information Sheet'!E80","v":"00:00:00"}]
["Info Sheet",null,null,"Effective Start Date of Direction - 8",{"$f":"'Information Sheet'!E81","v":"00:00:00"}]
["Info Sheet",null,null,"Effective Start Date of Direction - 9",{"$f":"'Information Sheet'!E82","v":"00:00:00"}]
["Info Sheet",null,null,"Effective Start Date of Direction - 10",{"$f":"'Information Sheet'!E83","v":"00:00:00"}]
["Info Sheet",null,null,"Effective End Date of Direction - 1",{"$f":"'Information Sheet'!F74","v":"00:00:00"}]
["Info Sheet",null,null,"Effective End Date of Direction - 2",{"$f":"'Information Sheet'!F75","v":"00:00:00"}]
["Info Sheet",null,null,"Effective End Date of Direction - 3",{"$f":"'Information Sheet'!F76","v":"00:00:00"}]
["Info Sheet",null,null,"Effective End Date of Direction - 4",{"$f":"'Information Sheet'!F77","v":"00:00:00"}]
["Info Sheet",null,null,"Effective End Date of Direction - 5",{"$f":"'Information Sheet'!F78","v":"00:00:00"}]
["Info Sheet",null,null,"Effective End Date of Direction - 6",{"$f":"'Information Sheet'!F79","v":"00:00:00"}]
["Info Sheet",null,null,"Effective End Date of Direction - 7",{"$f":"'Information Sheet'!F80","v":"00:00:00"}]
["Info Sheet",null,null,"Effective End Date of Direction - 8",{"$f":"'Information Sheet'!F81","v":"00:00:00"}]
["Info Sheet",null,null,"Effective End Date of Direction - 9",{"$f":"'Information Sheet'!F82","v":"00:00:00"}]
["Info Sheet",null,null,"Effective End Date of Direction - 10",{"$f":"'Information Sheet'!F83","v":"00:00:00"}]
["Info Sheet",null,null,"Description of Direction - 1",{"$f":"'Information Sheet'!G74","v":0}]
["Info Sheet",null,null,"Description of Direction - 2",{"$f":"'Information Sheet'!G75","v":0}]
["Info Sheet",null,null,"Description of Direction - 3",{"$f":"'Information Sheet'!G76","v":0}]
["Info Sheet",null,null,"Description of Direction - 4",{"$f":"'Information Sheet'!G77","v":0}]
["Info Sheet",null,null,"Description of Direction - 5",{"$f":"'Information Sheet'!G78","v":0}]
["Info Sheet",null,null,"Description of Direction - 6",{"$f":"'Information Sheet'!G79","v":0}]
["Info Sheet",null,null,"Description of Direction - 7",{"$f":"'Information Sheet'!G80","v":0}]
["Info Sheet",null,null,"Description of Direction - 8",{"$f":"'Information Sheet'!G81","v":0}]
["Info Sheet",null,null,"Description of Direction - 9",{"$f":"'Information Sheet'!G82","v":0}]
["Info Sheet",null,null,"Description of Direction - 10",{"$f":"'Information Sheet'!G83","v":0}]
["Info Sheet",null,null,"(q) Confirm If Any Negative Responses?",{"$f":"'Information Sheet'!H87","v":"Select Yes/No"}]
["Info Sheet",null,null,"Details of Negative Responses",{"$f":"'Information Sheet'!C89","v":0}]
[]
[null,null,null,"Balance Sheet - UNCONSOLIDATED"]
["Form 1SFS","Balance Sheet GEN/CON","1SFS1","Cash and Cash Equivalents",{"$f":"'Form 1SFS (Unconsolidated)'!E12","v":0},null,{"$f":"'Form 1SFS (Unconsolidated)'!G12","v":0},null,{"$f":"'Form 1SFS (Unconsolidated)'!I12","v":0},null,{"$f":"'Form 1SFS (Unconsolidated)'!K12","v":0},null,{"$f":"'Form 1SFS (Unconsolidated)'!M12","v":0},null,{"$f":"'Form 1SFS (Unconsolidated)'!O12","v":0}]
["Form 1SFS","Balance Sheet GEN/CON","1SFS2ai","Quoted - Bonds - Held to Maturity",{"$f":"'Form 1SFS (Unconsolidated)'!E16","v":0},null,{"$f":"'Form 1SFS (Unconsolidated)'!G16","v":0},null,{"$f":"'Form 1SFS (Unconsolidated)'!I16","v":0},null,{"$f":"'Form 1SFS (Unconsolidated)'!K16","v":0},null,{"$f":"'Form 1SFS (Unconsolidated)'!M16","v":0},null,{"$f":"'Form 1SFS (Unconsolidated)'!O16","v":0}]
["Form 1SFS","Balance Sheet GEN/CON","1SFS2aii","Quoted - Bonds - Other",{"$f":"'Form 1SFS (Unconsolidated)'!E17","v":0},null,{"$f":"'Form 1SFS (Unconsolidated)'!G17","v":0},null,{"$f":"'Form 1SFS (Unconsolidated)'!I17","v":0},null,{"$f":"'Form 1SFS (Unconsolidated)'!K17","v":0},null,{"$f":"'Form 1SFS (Unconsolidated)'!M17","v":0},null,{"$f":"'Form 1SFS (Unconsolidated)'!O17","v":0}]
["Form 1SFS","Balance Sheet GEN/CON","1SFS2b","Quoted - Bonds - Total",null,null,null,null,{"$f":"'Form 1SFS (Unconsolidated)'!I20","v":0},null,{"$f":"'Form 1SFS (Unconsolidated)'!K20","v":0}]
["Form 1SFS","Balance Sheet GEN/CON","1SFS2ci","Quoted - Equities - Common Stocks",{"$f":"'Form 1SFS (Unconsolidated)'!E20","v":0},null,{"$f":"'Form 1SFS (Unconsolidated)'!G20","v":0},null,{"$f":"'Form 1SFS (Unconsolidated)'!I21","v":0},null,{"$f":"'Form 1SFS (Unconsolidated)'!K21","v":0},null,{"$f":"'Form 1SFS (Unconsolidated)'!M20","v":0},null,{"$f":"'Form 1SFS (Unconsolidated)'!O20","v":0}]
["Form 1SFS","Balance Sheet GEN/CON","1SFS2cii","Quoted - Equities - Preferred Stocks",{"$f":"'Form 1SFS (Unconsolidated)'!E21","v":0},null,{"$f":"'Form 1SFS (Unconsolidated)'!G21","v":0},null,{"$f":"'Form 1SFS (Unconsolidated)'!I22","v":0},null,{"$f":"'Form 1SFS (Unconsolidated)'!K22","v":0},null,{"$f":"'Form 1SFS (Unconsolidated)'!M21","v":0},null,{"$f":"'Form 1SFS (Unconsolidated)'!O21","v":0}]
["Form 1SFS","Balance Sheet GEN/CON","1SFS2ciii","Quoted - Equities - Mutual Funds",{"$f":"'Form 1SFS (Unconsolidated)'!E22","v":0},null,{"$f":"'Form 1SFS (Unconsolidated)'!G22","v":0},null,{"$f":"'Form 1SFS (Unconsolidated)'!I28","v":0},null,{"$f":"'Form 1SFS (Unconsolidated)'!K28","v":0},null,{"$f":"'Form 1SFS (Unconsolidated)'!M22","v":0},null,{"$f":"'Form 1SFS (Unconsolidated)'!O22","v":0}]
["Form 1SFS","Balance Sheet GEN/CON","1SFS2ei","Quoted - Other Investments - Digital Assets",{"$f":"'Form 1SFS (Unconsolidated)'!E25","v":0},null,{"$f":"'Form 1SFS (Unconsolidated)'!G25","v":0},null,{"$f":"'Form 1SFS (Unconsolidated)'!I33","v":0},null,{"$f":"'Form 1SFS (Unconsolidated)'!K33","v":0},null,{"$f":"'Form 1SFS (Unconsolidated)'!M25","v":0},null,{"$f":"'Form 1SFS (Unconsolidated)'!O25","v":0}]
["Form 1SFS","Balance Sheet GEN/CON","1SFS2eii","Quoted - Other Investments - Preferred Stocks",{"$f":"'Form 1SFS (Unconsolidated)'!E26","v":0},null,{"$f":"'Form 1SFS (Unconsolidated)'!G26","v":0},null,{"$f":"'Form 1SFS (Unconsolidated)'!I34","v":0},null,{"$f":"'Form 1SFS (Unconsolidated)'!K34","v":0},null,{"$f":"'Form 1SFS (Unconsolidated)'!M26","v":0},null,{"$f":"'Form 1SFS (Unconsolidated)'!O26","v":0}]
["Form 1SFS","Balance Sheet GEN/CON","1SFS2eiii","Quoted - Other Investments - Others",{"$f":"'Form 1SFS (Unconsolidated)'!E27","v":0},null,{"$f":"'Form 1SFS (Unconsolidated)'!G27","v":0},null,{"$f":"'Form 1SFS (Unconsolidated)'!I37","v":0},null,{"$f":"'Form 1SFS (Unconsolidated)'!K37","v":0},null,{"$f":"'Form 1SFS (Unconsolidated)'!M27","v":0},null,{"$f":"'Form 1SFS (Unconsolidated)'!O27","v":0}]
["Form 1SFS","Balance Sheet GEN/CON","1SFS3ai","Unquoted - Bonds - Held to Maturity",{"$f":"'Form 1SFS (Unconsolidated)'!E33","v":0},null,{"$f":"'Form 1SFS (Unconsolidated)'!G33","v":0},null,{"$f":"'Form 1SFS (Unconsolidated)'!I38","v":0},null,{"$f":"'Form 1SFS (Unconsolidated)'!K38","v":0},null,{"$f":"'Form 1SFS (Unconsolidated)'!M33","v":0},null,{"$f":"'Form 1SFS (Unconsolidated)'!O33","v":0}]
["Form 1SFS","Balance Sheet GEN/CON","1SFS3aii","Unquoted - Bonds - Other",{"$f":"'Form 1SFS (Unconsolidated)'!E34","v":0},null,{"$f":"'Form 1SFS (Unconsolidated)'!G34","v":0},null,{"$f":"'Form 1SFS (Unconsolidated)'!I39","v":0},null,{"$f":"'Form 1SFS (Unconsolidated)'!K39","v":0},null,{"$f":"'Form 1SFS (Unconsolidated)'!M34","v":0},null,{"$f":"'Form 1SFS (Unconsolidated)'!O34","v":0}]
["Form 1SFS","Balance Sheet GEN/CON","1SFS3b","Unquoted - Bonds - Total",null,null,null,null,{"$f":"'Form 1SFS (Unconsolidated)'!I45","v":0},null,{"$f":"'Form 1SFS (Unconsolidated)'!K45","v":0}]
["Form 1SFS","Balance Sheet GEN/CON","1SFS3ci","Unquoted - Equities - Common Stocks",{"$f":"'Form 1SFS (Unconsolidated)'!E37","v":0},null,{"$f":"'Form 1SFS (Unconsolidated)'!G37","v":0},null,{"$f":"'Form 1SFS (Unconsolidated)'!I37","v":0},null,{"$f":"'Form 1SFS (Unconsolidated)'!K37","v":0},null,{"$f":"'Form 1SFS (Unconsolidated)'!M37","v":0},null,{"$f":"'Form 1SFS (Unconsolidated)'!O37","v":0}]
["Form 1SFS","Balance Sheet GEN/CON","1SFS3cii","Unquoted - Equities - Preferred Stocks",{"$f":"'Form 1SFS (Unconsolidated)'!E38","v":0},null,{"$f":"'Form 1SFS (Unconsolidated)'!G38","v":0},null,{"$f":"'Form 1SFS (Unconsolidated)'!I38","v":0},null,{"$f":"'Form 1SFS (Unconsolidated)'!K38","v":0},null,{"$f":"'Form 1SFS (Unconsolidated)'!M38","v":0},null,{"$f":"'Form 1SFS (Unconsolidated)'!O38","v":0}]
["Form 1SFS","Balance Sheet GEN/CON","1SFS3ciii","Unquoted - Equities - Mutual Funds",{"$f":"'Form 1SFS (Unconsolidated)'!E39","v":0},null,{"$f":"'Form 1SFS (Unconsolidated)'!G39","v":0},null,{"$f":"'Form 1SFS (Unconsolidated)'!I39","v":0},null,{"$f":"'Form 1SFS (Unconsolidated)'!K39","v":0},null,{"$f":"'Form 1SFS (Unconsolidated)'!M39","v":0},null,{"$f":"'Form 1SFS (Unconsolidated)'!O39","v":0}]
["Form 1SFS","Balance Sheet GEN/CON","1SFS3ei","Unquoted - Other Investments - Digital Assets",{"$f":"'Form 1SFS (Unconsolidated)'!E42","v":0},null,{"$f":"'Form 1SFS (Unconsolidated)'!G42","v":0},null,{"$f":"'Form 1SFS (Unconsolidated)'!I42","v":0},null,{"$f":"'Form 1SFS (Unconsolidated)'!K42","v":0},null,{"$f":"'Form 1SFS (Unconsolidated)'!M42","v":0},null,{"$f":"'Form 1SFS (Unconsolidated)'!O42","v":0}]
["Form 1SFS","Balance Sheet GEN/CON","1SFS3eii","Unquoted - Other Investments - Preferred Stocks",{"$f":"'Form 1SFS (Unconsolidated)'!E43","v":0},null,{"$f":"'Form 1SFS (Unconsolidated)'!G43","v":0},null,{"$f":"'Form 1SFS (Unconsolidated)'!I43","v":0},null,{"$f":"'Form 1SFS (Unconsolidated)'!K43","v":0},null,{"$f":"'Form 1SFS (Unconsolidated)'!M43","v":0},null,{"$f":"'Form 1SFS (Unconsolidated)'!O43","v":0}]
["Form 1SFS","Balance Sheet GEN/CON","1SFS3eiii","Unquoted - Other Investments - Others",{"$f":"'Form 1SFS (Unconsolidated)'!E44","v":0},null,{"$f":"'Form 1SFS (Unconsolidated)'!G44","v":0},null,{"$f":"'Form 1SFS (Unconsolidated)'!I44","v":0},null,{"$f":"'Form 1SFS (Unconsolidated)'!K44","v":0},null,{"$f":"'Form 1SFS (Unconsolidated)'!M44","v":0},null,{"$f":"'Form 1SFS (Unconsolidated)'!O44","v":0}]
["Form 1SFS","Balance Sheet GEN/CON","1SFS4","Inv. In and Advances to Affiliates",{"$f":"'Form 1SFS (Unconsolidated)'!E48","v":0},null,{"$f":"'Form 1SFS (Unconsolidated)'!G48","v":0},null,{"$f":"'Form 1SFS (Unconsolidated)'!I48","v":0},null,{"$f":"'Form 1SFS (Unconsolidated)'!K48","v":0},null,{"$f":"'Form 1SFS (Unconsolidated)'!M48","v":0},null,{"$f":"'Form 1SFS (Unconsolidated)'!O48","v":0}]
["Form 1SFS","Balance Sheet GEN/CON","1SFS5a","Inv. In Mortg. Loans on Real Estate - 1st Lien",{"$f":"'Form 1SFS (Unconsolidated)'!E51","v":0},null,{"$f":"'Form 1SFS (Unconsolidated)'!G51","v":0},null,{"$f":"'Form 1SFS (Unconsolidated)'!I51","v":0},null,{"$f":"'Form 1SFS (Unconsolidated)'!K51","v":0},null,{"$f":"'Form 1SFS (Unconsolidated)'!M51","v":0},null,{"$f":"'Form 1SFS (Unconsolidated)'!O51","v":0}]
["Form 1SFS","Balance Sheet GEN/CON","1SFS5b","Inv. In Mortg. Loans on Real Estate - Other",{"$f":"'Form 1SFS (Unconsolidated)'!E52","v":0},null,{"$f":"'Form 1SFS (Unconsolidated)'!G52","v":0},null,{"$f":"'Form 1SFS (Unconsolidated)'!I52","v":0},null,{"$f":"'Form 1SFS (Unconsolidated)'!K52","v":0},null,{"$f":"'Form 1SFS (Unconsolidated)'!M52","v":0},null,{"$f":"'Form 1SFS (Unconsolidated)'!O52","v":0}]
["Form 1SFS","Balance Sheet GEN/CON","1SFS6","Equipment Net of Depreciation",{"$f":"'Form 1SFS (Unconsolidated)'!E55","v":0},null,{"$f":"'Form 1SFS (Unconsolidated)'!G55","v":0},null,{"$f":"'Form 1SFS (Unconsolidated)'!I55","v":0},null,{"$f":"'Form 1SFS (Unconsolidated)'!K55","v":0},null,{"$f":"'Form 1SFS (Unconsolidated)'!M55","v":0},null,{"$f":"'Form 1SFS (Unconsolidated)'!O55","v":0}]
["Form 1SFS","Balance Sheet GEN/CON","1SFS7","Real Estate",{"$f":"'Form 1SFS (Unconsolidated)'!E57","v":0},null,{"$f":"'Form 1SFS (Unconsolidated)'!G57","v":0},null,{"$f":"'Form 1SFS (Unconsolidated)'!I57","v":0},null,{"$f":"'Form 1SFS (Unconsolidated)'!K57","v":0},null,{"$f":"'Form 1SFS (Unconsolidated)'!M57","v":0},null,{"$f":"'Form 1SFS (Unconsolidated)'!O57","v":0}]
["Form 1SFS","Balance Sheet GEN/CON","1SFS8a","Loans Receivable - Due in one year or less",{"$f":"'Form 1SFS (Unconsolidated)'!E60","v":0},null,{"$f":"'Form 1SFS (Unconsolidated)'!G60","v":0},null,{"$f":"'Form 1SFS (Unconsolidated)'!I60","v":0},null,{"$f":"'Form 1SFS (Unconsolidated)'!K60","v":0},null,{"$f":"'Form 1SFS (Unconsolidated)'!M60","v":0},null,{"$f":"'Form 1SFS (Unconsolidated)'!O60","v":0}]
["Form 1SFS","Balance Sheet GEN/CON","1SFS8b","Loans Receivable - Due in over a year",{"$f":"'Form 1SFS (Unconsolidated)'!E61","v":0},null,{"$f":"'Form 1SFS (Unconsolidated)'!G61","v":0},null,{"$f":"'Form 1SFS (Unconsolidated)'!I61","v":0},null,{"$f":"'Form 1SFS (Unconsolidated)'!K61","v":0},null,{"$f":"'Form 1SFS (Unconsolidated)'!M61","v":0},null,{"$f":"'Form 1SFS (Unconsolidated)'!O61","v":0}]
["Form 1SFS","Balance Sheet GEN/CON","1SFS9","Investment Income Due and Accrued",{"$f":"'Form 1SFS (Unconsolidated)'!E64","v":0},null,{"$f":"'Form 1SFS (Unconsolidated)'!G64","v":0},null,{"$f":"'Form 1SFS (Unconsolidated)'!I64","v":0},null,{"$f":"'Form 1SFS (Unconsolidated)'!K64","v":0},null,{"$f":"'Form 1SFS (Unconsolidated)'!M64","v":0},null,{"$f":"'Form 1SFS (Unconsolidated)'!O64","v":0}]
["Form 1SFS","Balance Sheet GEN/CON","1SFS10","Receivables from Clearing Brokers",{"$f":"'Form 1SFS (Unconsolidated)'!E66","v":0},null,{"$f":"'Form 1SFS (Unconsolidated)'!G66","v":0},null,{"$f":"'Form 1SFS (Unconsolidated)'!I66","v":0},null,{"$f":"'Form 1SFS (Unconsolidated)'!K66","v":0},null,{"$f":"'Form 1SFS (Unconsolidated)'!M66","v":0},null,{"$f":"'Form 1SFS (Unconsolidated)'!O66","v":0}]
["Form 1SFS","Balance Sheet GEN/CON","1SFS11a","Other Received From Digital Asset Business  - Due in one year or less",{"$f":"'Form 1SFS (Unconsolidated)'!E69","v":0},null,{"$f":"'Form 1SFS (Unconsolidated)'!G69","v":0},null,{"$f":"'Form 1SFS (Unconsolidated)'!I69","v":0},null,{"$f":"'Form 1SFS (Unconsolidated)'!K69","v":0},null,{"$f":"'Form 1SFS (Unconsolidated)'!M69","v":0},null,{"$f":"'Form 1SFS (Unconsolidated)'!O69","v":0}]
["Form 1SFS","Balance Sheet GEN/CON","1SFS11b","Other Received From Digital Asset Business - Due in over a year",{"$f":"'Form 1SFS (Unconsolidated)'!E70","v":0},null,{"$f":"'Form 1SFS (Unconsolidated)'!G70","v":0},null,{"$f":"'Form 1SFS (Unconsolidated)'!I70","v":0},null,{"$f":"'Form 1SFS (Unconsolidated)'!K70","v":0},null,{"$f":"'Form 1SFS (Unconsolidated)'!M70","v":0},null,{"$f":"'Form 1SFS (Unconsolidated)'!O70","v":0}]
["Form 1SFS","Balance Sheet GEN/CON","1SFS12","Digital Assets Held in Custody for Clients",{"$f":"'Form 1SFS (Unconsolidated)'!E73","v":0},null,{"$f":"'Form 1SFS (Unconsolidated)'!G73","v":0},null,{"$f":"'Form 1SFS (Unconsolidated)'!I73","v":0},null,{"$f":"'Form 1SFS (Unconsolidated)'!K73","v":0},null,{"$f":"'Form 1SFS (Unconsolidated)'!M73","v":0},null,{"$f":"'Form 1SFS (Unconsolidated)'!O73","v":0}]
["Form 1SFS","Balance Sheet GEN/CON","1SFS13a","Sundry Assets - Derivatives",{"$f":"'Form 1SFS (Unconsolidated)'!E76","v":0},null,{"$f":"'Form 1SFS (Unconsolidated)'!G76","v":0},null,{"$f":"'Form 1SFS (Unconsolidated)'!I76","v":0},null,{"$f":"'Form 1SFS (Unconsolidated)'!K76","v":0},null,{"$f":"'Form 1SFS (Unconsolidated)'!M76","v":0},null,{"$f":"'Form 1SFS (Unconsolidated)'!O76","v":0}]
["Form 1SFS","Balance Sheet GEN/CON","1SFS13b","Sundry Assets - Net Rec. for Investments",{"$f":"'Form 1SFS (Unconsolidated)'!E77","v":0},null,{"$f":"'Form 1SFS (Unconsolidated)'!G77","v":0},null,{"$f":"'Form 1SFS (Unconsolidated)'!I77","v":0},null,{"$f":"'Form 1SFS (Unconsolidated)'!K77","v":0},null,{"$f":"'Form 1SFS (Unconsolidated)'!M77","v":0},null,{"$f":"'Form 1SFS (Unconsolidated)'!O77","v":0}]
["Form 1SFS","Balance Sheet GEN/CON","1SFS13c","Sundry Assets - Prepaid Expenses",{"$f":"'Form 1SFS (Unconsolidated)'!E78","v":0},null,{"$f":"'Form 1SFS (Unconsolidated)'!G78","v":0},null,{"$f":"'Form 1SFS (Unconsolidated)'!I77","v":0},null,{"$f":"'Form 1SFS (Unconsolidated)'!K77","v":0},null,{"$f":"'Form 1SFS (Unconsolidated)'!M78","v":0},null,{"$f":"'Form 1SFS (Unconsolidated)'!O78","v":0}]
["Form 1SFS","Balance Sheet GEN/CON","1SFS13d","Sundry Assets - Goodwill and Other Intangibles",{"$f":"'Form 1SFS (Unconsolidated)'!E79","v":0},null,{"$f":"'Form 1SFS (Unconsolidated)'!G79","v":0},null,{"$f":"'Form 1SFS (Unconsolidated)'!I78","v":0},null,{"$f":"'Form 1SFS (Unconsolidated)'!K78","v":0},null,{"$f":"'Form 1SFS (Unconsolidated)'!M79","v":0},null,{"$f":"'Form 1SFS (Unconsolidated)'!O79","v":0}]
["Form 1SFS","Balance Sheet GEN/CON","1SFS13e","Sundry Assets - Other 1",{"$f":"'Form 1SFS (Unconsolidated)'!E80","v":0},null,{"$f":"'Form 1SFS (Unconsolidated)'!G80","v":0},null,{"$f":"'Form 1SFS (Unconsolidated)'!I79","v":0},null,{"$f":"'Form 1SFS (Unconsolidated)'!K79","v":0},null,{"$f":"'Form 1SFS (Unconsolidated)'!M80","v":0},null,{"$f":"'Form 1SFS (Unconsolidated)'!O80","v":0}]
["Form 1SFS","Balance Sheet GEN/CON","1SFS13f","Sundry Assets - Other 2",{"$f":"'Form 1SFS (Unconsolidated)'!E81","v":0},null,{"$f":"'Form 1SFS (Unconsolidated)'!G81","v":0},null,{"$f":"'Form 1SFS (Unconsolidated)'!I80","v":0},null,{"$f":"'Form 1SFS (Unconsolidated)'!K80","v":0},null,{"$f":"'Form 1SFS (Unconsolidated)'!M81","v":0},null,{"$f":"'Form 1SFS (Unconsolidated)'!O81","v":0}]
["Form 1SFS","Balance Sheet GEN/CON","1SFS13g","Sundry Assets - Other 3",{"$f":"'Form 1SFS (Unconsolidated)'!E82","v":0},null,{"$f":"'Form 1SFS (Unconsolidated)'!G82","v":0},null,{"$f":"'Form 1SFS (Unconsolidated)'!I81","v":0},null,{"$f":"'Form 1SFS (Unconsolidated)'!K81","v":0},null,{"$f":"'Form 1SFS (Unconsolidated)'!M82","v":0},null,{"$f":"'Form 1SFS (Unconsolidated)'!O82","v":0}]
["Form 1SFS","Balance Sheet GEN/CON","1SFS14a","Letters of Credit",{"$f":"'Form 1SFS (Unconsolidated)'!E86","v":0},null,{"$f":"'Form 1SFS (Unconsolidated)'!G86","v":0},null,{"$f":"'Form 1SFS (Unconsolidated)'!I82","v":0},null,{"$f":"'Form 1SFS (Unconsolidated)'!K82","v":0},null,{"$f":"'Form 1SFS (Unconsolidated)'!M86","v":0},null,{"$f":"'Form 1SFS (Unconsolidated)'!O86","v":0}]
["Form 1SFS","Balance Sheet GEN/CON","1SFS14b","Guarantees",{"$f":"'Form 1SFS (Unconsolidated)'!E87","v":0},null,{"$f":"'Form 1SFS (Unconsolidated)'!G87","v":0},null,{"$f":"'Form 1SFS (Unconsolidated)'!I86","v":0},null,{"$f":"'Form 1SFS (Unconsolidated)'!K86","v":0},null,{"$f":"'Form 1SFS (Unconsolidated)'!M87","v":0},null,{"$f":"'Form 1SFS (Unconsolidated)'!O87","v":0}]
["Form 1SFS","Balance Sheet GEN/CON","1SFS14c","Other Instruments",{"$f":"'Form 1SFS (Unconsolidated)'!E88","v":0},null,{"$f":"'Form 1SFS (Unconsolidated)'!G88","v":0},null,{"$f":"'Form 1SFS (Unconsolidated)'!I87","v":0},null,{"$f":"'Form 1SFS (Unconsolidated)'!K87","v":0},null,{"$f":"'Form 1SFS (Unconsolidated)'!M88","v":0},null,{"$f":"'Form 1SFS (Unconsolidated)'!O88","v":0}]
["Form 1SFS","Balance Sheet GEN/CON","1SFS15","Total Assets",{"$f":"'Form 1SFS (Unconsolidated)'!E91","v":0},null,{"$f":"'Form 1SFS (Unconsolidated)'!G91","v":0},null,{"$f":"'Form 1SFS (Unconsolidated)'!I88","v":0},null,{"$f":"'Form 1SFS (Unconsolidated)'!K88","v":0}]
["Form 1SFS","Balance Sheet GEN/CON","1SFS16","Unearned Premium Reserve ",{"$f":"'Form 1SFS (Unconsolidated)'!E95","v":0},null,{"$f":"'Form 1SFS (Unconsolidated)'!G95","v":0},null,{"$f":"'Form 1SFS (Unconsolidated)'!I95","v":0},null,{"$f":"'Form 1SFS (Unconsolidated)'!K95","v":0},null,{"$f":"'Form 1SFS (Unconsolidated)'!M95","v":0},null,{"$f":"'Form 1SFS (Unconsolidated)'!O95","v":0}]
["Form 1SFS","Balance Sheet GEN/CON","1SFS17a","Loss Provision - Gross",{"$f":"'Form 1SFS (Unconsolidated)'!E98","v":0},null,{"$f":"'Form 1SFS (Unconsolidated)'!G98","v":0},null,{"$f":"'Form 1SFS (Unconsolidated)'!I98","v":0},null,{"$f":"'Form 1SFS (Unconsolidated)'!K98","v":0},null,{"$f":"'Form 1SFS (Unconsolidated)'!M98","v":0},null,{"$f":"'Form 1SFS (Unconsolidated)'!O98","v":0}]
["Form 1SFS","Balance Sheet GEN/CON","1SFS17bi","R/I Recoverable - Foreign Affiliates",{"$f":"'Form 1SFS (Unconsolidated)'!E100","v":0},null,{"$f":"'Form 1SFS (Unconsolidated)'!G100","v":0},null,{"$f":"'Form 1SFS (Unconsolidated)'!I100","v":0},null,{"$f":"'Form 1SFS (Unconsolidated)'!K100","v":0},null,{"$f":"'Form 1SFS (Unconsolidated)'!M100","v":0},null,{"$f":"'Form 1SFS (Unconsolidated)'!O100","v":0}]
["Form 1SFS","Balance Sheet GEN/CON","1SFS17bii","R/I Recoverable - Domestic Affiliates",{"$f":"'Form 1SFS (Unconsolidated)'!E101","v":0},null,{"$f":"'Form 1SFS (Unconsolidated)'!G101","v":0},null,{"$f":"'Form 1SFS (Unconsolidated)'!I101","v":0},null,{"$f":"'Form 1SFS (Unconsolidated)'!K101","v":0},null,{"$f":"'Form 1SFS (Unconsolidated)'!M101","v":0},null,{"$f":"'Form 1SFS (Unconsolidated)'!O101","v":0}]
["Form 1SFS","Balance Sheet GEN/CON","1SFS17biii","R/I Recoverable - Pools & Assoc.",{"$f":"'Form 1SFS (Unconsolidated)'!E102","v":0},null,{"$f":"'Form 1SFS (Unconsolidated)'!G102","v":0},null,{"$f":"'Form 1SFS (Unconsolidated)'!I102","v":0},null,{"$f":"'Form 1SFS (Unconsolidated)'!K102","v":0},null,{"$f":"'Form 1SFS (Unconsolidated)'!M102","v":0},null,{"$f":"'Form 1SFS (Unconsolidated)'!O102","v":0}]
["Form 1SFS","Balance Sheet GEN/CON","1SFS17biv","R/I Recoverable - All Other",{"$f":"'Form 1SFS (Unconsolidated)'!E103","v":0},null,{"$f":"'Form 1SFS (Unconsolidated)'!G103","v":0},null,{"$f":"'Form 1SFS (Unconsolidated)'!I103","v":0},null,{"$f":"'Form 1SFS (Unconsolidated)'!K103","v":0},null,{"$f":"'Form 1SFS (Unconsolidated)'!M103","v":0},null,{"$f":"'Form 1SFS (Unconsolidated)'!O103","v":0}]
["Form 1SFS","Balance Sheet GEN/CON","1SFS18","Other Insurance Reserves",{"$f":"'Form 1SFS (Unconsolidated)'!E107","v":0},null,{"$f":"'Form 1SFS (Unconsolidated)'!G107","v":0},null,{"$f":"'Form 1SFS (Unconsolidated)'!I107","v":0},null,{"$f":"'Form 1SFS (Unconsolidated)'!K107","v":0},null,{"$f":"'Form 1SFS (Unconsolidated)'!M107","v":0},null,{"$f":"'Form 1SFS (Unconsolidated)'!O107","v":0}]
["Form 1SFS","Balance Sheet GEN/CON","1SFS28","Contractual Liabilities from Digital Asset Issuance",{"$f":"'Form 1SFS (Unconsolidated)'!E113","v":0},null,{"$f":"'Form 1SFS (Unconsolidated)'!G113","v":0},null,{"$f":"'Form 1SFS (Unconsolidated)'!I113","v":0},null,{"$f":"'Form 1SFS (Unconsolidated)'!K113","v":0},null,{"$f":"'Form 1SFS (Unconsolidated)'!M113","v":0},null,{"$f":"'Form 1SFS (Unconsolidated)'!O113","v":0}]
["Form 1SFS","Balance Sheet GEN/CON","1SFS29","Commissions, Expenses and Taxes Payable",{"$f":"'Form 1SFS (Unconsolidated)'!E115","v":0},null,{"$f":"'Form 1SFS (Unconsolidated)'!G115","v":0},null,{"$f":"'Form 1SFS (Unconsolidated)'!I115","v":0},null,{"$f":"'Form 1SFS (Unconsolidated)'!K115","v":0},null,{"$f":"'Form 1SFS (Unconsolidated)'!M115","v":0},null,{"$f":"'Form 1SFS (Unconsolidated)'!O115","v":0}]
["Form 1SFS","Balance Sheet GEN/CON","1SFS30","Loans and Notes Payable",{"$f":"'Form 1SFS (Unconsolidated)'!E117","v":0},null,{"$f":"'Form 1SFS (Unconsolidated)'!G117","v":0},null,{"$f":"'Form 1SFS (Unconsolidated)'!I117","v":0},null,{"$f":"'Form 1SFS (Unconsolidated)'!K117","v":0},null,{"$f":"'Form 1SFS (Unconsolidated)'!M117","v":0},null,{"$f":"'Form 1SFS (Unconsolidated)'!O117","v":0}]
["Form 1SFS","Balance Sheet GEN/CON","1SFS31a","Income Taxes Payable",{"$f":"'Form 1SFS (Unconsolidated)'!E119","v":0},null,{"$f":"'Form 1SFS (Unconsolidated)'!G119","v":0},null,{"$f":"'Form 1SFS (Unconsolidated)'!I119","v":0},null,{"$f":"'Form 1SFS (Unconsolidated)'!K119","v":0},null,{"$f":"'Form 1SFS (Unconsolidated)'!M119","v":0},null,{"$f":"'Form 1SFS (Unconsolidated)'!O119","v":0}]
["Form 1SFS","Balance Sheet GEN/CON","1SFS32","Amounts Due to Affiliates",{"$f":"'Form 1SFS (Unconsolidated)'!E121","v":0},null,{"$f":"'Form 1SFS (Unconsolidated)'!G121","v":0},null,{"$f":"'Form 1SFS (Unconsolidated)'!I121","v":0},null,{"$f":"'Form 1SFS (Unconsolidated)'!K121","v":0},null,{"$f":"'Form 1SFS (Unconsolidated)'!M121","v":0},null,{"$f":"'Form 1SFS (Unconsolidated)'!O121","v":0}]
["Form 1SFS","Balance Sheet GEN/CON","1SFS33","Accounts Payable and Accrued Liabilities",{"$f":"'Form 1SFS (Unconsolidated)'!E123","v":0},null,{"$f":"'Form 1SFS (Unconsolidated)'!G123","v":0},null,{"$f":"'Form 1SFS (Unconsolidated)'!I123","v":0},null,{"$f":"'Form 1SFS (Unconsolidated)'!K123","v":0},null,{"$f":"'Form 1SFS (Unconsolidated)'!M123","v":0},null,{"$f":"'Form 1SFS (Unconsolidated)'!O123","v":0}]
["Form 1SFS","Balance Sheet GEN/CON","1SFS34","Digital Assets Held in Custody for Clients",{"$f":"'Form 1SFS (Unconsolidated)'!E125","v":0},null,{"$f":"'Form 1SFS (Unconsolidated)'!G125","v":0},null,{"$f":"'Form 1SFS (Unconsolidated)'!I125","v":0},null,{"$f":"'Form 1SFS (Unconsolidated)'!K125","v":0},null,{"$f":"'Form 1SFS (Unconsolidated)'!M125","v":0},null,{"$f":"'Form 1SFS (Unconsolidated)'!O125","v":0}]
["Form 1SFS","Balance Sheet GEN/CON","1SFS35","Dividends Payable",{"$f":"'Form 1SFS (Unconsolidated)'!E127","v":0},null,{"$f":"'Form 1SFS (Unconsolidated)'!G127","v":0},null,{"$f":"'Form 1SFS (Unconsolidated)'!I127","v":0},null,{"$f":"'Form 1SFS (Unconsolidated)'!K127","v":0},null,{"$f":"'Form 1SFS (Unconsolidated)'!M127","v":0},null,{"$f":"'Form 1SFS (Unconsolidated)'!O127","v":0}]
["Form 1SFS","Balance Sheet GEN/CON","1SFS36a","Sundry Liabilities - Derivative Instruments",{"$f":"'Form 1SFS (Unconsolidated)'!E130","v":0},null,{"$f":"'Form 1SFS (Unconsolidated)'!G130","v":0},null,{"$f":"'Form 1SFS (Unconsolidated)'!I130","v":0},null,{"$f":"'Form 1SFS (Unconsolidated)'!K130","v":0},null,{"$f":"'Form 1SFS (Unconsolidated)'!M130","v":0},null,{"$f":"'Form 1SFS (Unconsolidated)'!O130","v":0}]
["Form 1SFS","Balance Sheet GEN/CON","1SFS36b","Sundry Liabilities - Investments Purchased",{"$f":"'Form 1SFS (Unconsolidated)'!E131","v":0},null,{"$f":"'Form 1SFS (Unconsolidated)'!G131","v":0},null,{"$f":"'Form 1SFS (Unconsolidated)'!I131","v":0},null,{"$f":"'Form 1SFS (Unconsolidated)'!K132","v":0},null,{"$f":"'Form 1SFS (Unconsolidated)'!M131","v":0},null,{"$f":"'Form 1SFS (Unconsolidated)'!O131","v":0}]
["Form 1SFS","Balance Sheet GEN/CON","1SFS36c","Sundry Liabilities - Other 1",{"$f":"'Form 1SFS (Unconsolidated)'!E132","v":0},null,{"$f":"'Form 1SFS (Unconsolidated)'!G132","v":0},null,{"$f":"'Form 1SFS (Unconsolidated)'!I132","v":0},null,{"$f":"'Form 1SFS (Unconsolidated)'!K133","v":0},null,{"$f":"'Form 1SFS (Unconsolidated)'!M132","v":0},null,{"$f":"'Form 1SFS (Unconsolidated)'!O132","v":0}]
["Form 1SFS","Balance Sheet GEN/CON","1SFS36d","Sundry Liabilities - Other 2",{"$f":"'Form 1SFS (Unconsolidated)'!E133","v":0},null,{"$f":"'Form 1SFS (Unconsolidated)'!G133","v":0},null,{"$f":"'Form 1SFS (Unconsolidated)'!I133","v":0},null,{"$f":"'Form 1SFS (Unconsolidated)'!K134","v":0},null,{"$f":"'Form 1SFS (Unconsolidated)'!M133","v":0},null,{"$f":"'Form 1SFS (Unconsolidated)'!O133","v":0}]
["Form 1SFS","Balance Sheet GEN/CON","1SFS36e","Sundry Liabilities - Other 3",{"$f":"'Form 1SFS (Unconsolidated)'!E134","v":0},null,{"$f":"'Form 1SFS (Unconsolidated)'!G134","v":0},null,{"$f":"'Form 1SFS (Unconsolidated)'!I134","v":0},null,{"$f":"'Form 1SFS (Unconsolidated)'!K138","v":0},null,{"$f":"'Form 1SFS (Unconsolidated)'!M134","v":0},null,{"$f":"'Form 1SFS (Unconsolidated)'!O134","v":0}]
["Form 1SFS","Balance Sheet GEN/CON","1SFS37a","Letters of Credit",{"$f":"'Form 1SFS (Unconsolidated)'!E138","v":0},null,{"$f":"'Form 1SFS (Unconsolidated)'!G138","v":0},null,{"$f":"'Form 1SFS (Unconsolidated)'!I138","v":0},null,{"$f":"'Form 1SFS (Unconsolidated)'!K139","v":0},null,{"$f":"'Form 1SFS (Unconsolidated)'!M138","v":0},null,{"$f":"'Form 1SFS (Unconsolidated)'!O138","v":0}]
["Form 1SFS","Balance Sheet GEN/CON","1SFS37b","Guarantees",{"$f":"'Form 1SFS (Unconsolidated)'!E139","v":0},null,{"$f":"'Form 1SFS (Unconsolidated)'!G139","v":0},null,{"$f":"'Form 1SFS (Unconsolidated)'!I139","v":0},null,{"$f":"'Form 1SFS (Unconsolidated)'!K140","v":0},null,{"$f":"'Form 1SFS (Unconsolidated)'!M139","v":0},null,{"$f":"'Form 1SFS (Unconsolidated)'!O139","v":0}]
["Form 1SFS","Balance Sheet GEN/CON","1SFS37c","Other Instruments",{"$f":"'Form 1SFS (Unconsolidated)'!E140","v":0},null,{"$f":"'Form 1SFS (Unconsolidated)'!G140","v":0},null,{"$f":"'Form 1SFS (Unconsolidated)'!I140","v":0},null,null,null,{"$f":"'Form 1SFS (Unconsolidated)'!M140","v":0},null,{"$f":"'Form 1SFS (Unconsolidated)'!O140","v":0}]
["Form 1SFS","Balance Sheet GEN/CON","1SFS40","Economic Capital & Surplus"]
[]
["Form 1SFS","Notes","Form 1SFS","Line 10 - Collaterized Balances",{"$f":"'Form 1SFS (Unconsolidated)'!M161","v":0},null,{"$f":"'Form 1SFS (Unconsolidated)'!O161","v":0}]
["Form 1SFS","Notes","Form 1SFS","Line 11(e) - Collaterized Balances",{"$f":"'Form 1SFS (Unconsolidated)'!M163","v":0}]
["Form 1SFS","Notes","Form 1SFS","Line 17cii - Collat. in Favour of Insurer",{"$f":"'Form 1SFS (Unconsolidated)'!M165","v":0}]
["Form 1SFS","Notes","Form 1SFS","Line 13 - Sundry Assets",{"$f":"'Form 1SFS (Unconsolidated)'!M167","v":0},null,{"$f":"'Form 1SFS (Unconsolidated)'!O167","v":0}]
["Form 1SFS","Notes","Form 1SFS","Line 15 - Policy. Oblig. - Cash",{"$f":"'Form 1SFS (Unconsolidated)'!M172","v":0},null,{"$f":"'Form 1SFS (Unconsolidated)'!O172","v":0}]
["Form 1SFS","Notes","Form 1SFS","Line 15 - Policy. Oblig. - Quoted. Inv.",{"$f":"'Form 1SFS (Unconsolidated)'!M173","v":0},null,{"$f":"'Form 1SFS (Unconsolidated)'!O173","v":0}]
["Form 1SFS","Notes","Form 1SFS","Line 15 - Policy. Oblig. - Unquoted. Inv.",{"$f":"'Form 1SFS (Unconsolidated)'!M174","v":0},null,{"$f":"'Form 1SFS (Unconsolidated)'!O174","v":0}]
["Form 1SFS","Notes","Form 1SFS","Line 15 - Policy. Oblig. - Funds Held",{"$f":"'Form 1SFS (Unconsolidated)'!M175","v":0},null,{"$f":"'Form 1SFS (Unconsolidated)'!O175","v":0}]
["Form 1SFS","Notes","Form 1SFS","Line 15 - Policy. Oblig. - Other Assets",{"$f":"'Form 1SFS (Unconsolidated)'!M176","v":0},null,{"$f":"'Form 1SFS (Unconsolidated)'!O176","v":0}]
["Form 1SFS","Notes","Form 1SFS","Line 15 - Policy. Oblig. - Total",{"$f":"'Form 1SFS (Unconsolidated)'!M177","v":0},null,{"$f":"'Form 1SFS (Unconsolidated)'!O177","v":0}]
["Form 1SFS","Notes","Form 1SFS","Line 15 - Other - Cash",{"$f":"'Form 1SFS (Unconsolidated)'!M182","v":0},null,{"$f":"'Form 1SFS (Unconsolidated)'!O182","v":0}]
["Form 1SFS","Notes","Form 1SFS","Line 15 - Other - Quoted. Inv.",{"$f":"'Form 1SFS (Unconsolidated)'!M183","v":0},null,{"$f":"'Form 1SFS (Unconsolidated)'!O183","v":0}]
["Form 1SFS","Notes","Form 1SFS","Line 15 - Other - Unquoted. Inv.",{"$f":"'Form 1SFS (Unconsolidated)'!M184","v":0},null,{"$f":"'Form 1SFS (Unconsolidated)'!O184","v":0}]
["Form 1SFS","Notes","Form 1SFS","Line 15 - Other - Other Assets",{"$f":"'Form 1SFS (Unconsolidated)'!M185","v":0},null,{"$f":"'Form 1SFS (Unconsolidated)'!O185","v":0}]
["Form 1SFS","Notes","Form 1SFS","Line 15 - Other - Total",{"$f":"'Form 1SFS (Unconsolidated)'!M186","v":0},null,{"$f":"'Form 1SFS (Unconsolidated)'!O186","v":0}]
["Form 1SFS","Notes","Form 1SFS","Line 36 - Sundry Liabilities",{"$f":"'Form 1SFS (Unconsolidated)'!M188","v":0},null,{"$f":"'Form 1SFS (Unconsolidated)'!O188","v":0}]
["Form 1SFS","Notes","Form 1SFS","Line 37 - LOC's & Guarantees",{"$f":"'Form 1SFS (Unconsolidated)'!M190","v":0},null,{"$f":"'Form 1SFS (Unconsolidated)'!O190","v":0}]
["Form 1SFS","Notes","Form 1SFS","Line 17 - Prior year note disclosure",{"$f":"'Form 1SFS (Unconsolidated)'!K193","v":0}]
["Form 1SFS","Notes","Form 1SFS","Gross Provision - Beg. Of Year",{"$f":"'Form 1SFS (Unconsolidated)'!M202","v":0},null,{"$f":"'Form 1SFS (Unconsolidated)'!O202","v":0}]
["Form 1SFS","Notes","Form 1SFS","R/I Recoverable - Beg. Of Year",{"$f":"'Form 1SFS (Unconsolidated)'!M204","v":0},null,{"$f":"'Form 1SFS (Unconsolidated)'!O204","v":0}]
["Form 1SFS","Notes","Form 1SFS","Net Provision - Beg. Of Year",{"$f":"'Form 1SFS (Unconsolidated)'!M206","v":0},null,{"$f":"'Form 1SFS (Unconsolidated)'!O206","v":0}]
["Form 1SFS","Notes","Form 1SFS","Acquisition / Sale of loss reserves (net):",{"$f":"'Form 1SFS (Unconsolidated)'!M208","v":0},null,{"$f":"'Form 1SFS (Unconsolidated)'!O208","v":0}]
["Form 1SFS","Notes","Form 1SFS","Net Losses Incurred - Current Year",{"$f":"'Form 1SFS (Unconsolidated)'!M212","v":0},null,{"$f":"'Form 1SFS (Unconsolidated)'!O212","v":0}]
["Form 1SFS","Notes","Form 1SFS","Net Losses Incurred - Prior Years",{"$f":"'Form 1SFS (Unconsolidated)'!M213","v":0},null,{"$f":"'Form 1SFS (Unconsolidated)'!O213","v":0}]
["Form 1SFS","Notes","Form 1SFS","Net Losses Incurred - Total",{"$f":"'Form 1SFS (Unconsolidated)'!M215","v":0},null,{"$f":"'Form 1SFS (Unconsolidated)'!O215","v":0}]
["Form 1SFS","Notes","Form 1SFS","Losses Paid - Current Year",{"$f":"'Form 1SFS (Unconsolidated)'!M219","v":0},null,{"$f":"'Form 1SFS (Unconsolidated)'!O219","v":0}]
["Form 1SFS","Notes","Form 1SFS","Losses Paid - Prior Years",{"$f":"'Form 1SFS (Unconsolidated)'!M220","v":0},null,{"$f":"'Form 1SFS (Unconsolidated)'!O220","v":0}]
["Form 1SFS","Notes","Form 1SFS","Losses Paid - Total",{"$f":"'Form 1SFS (Unconsolidated)'!M222","v":0},null,{"$f":"'Form 1SFS (Unconsolidated)'!O222","v":0}]
["Form 1SFS","Notes","Form 1SFS","Foreign Exchange and Other",{"$f":"'Form 1SFS (Unconsolidated)'!M224","v":0},null,{"$f":"'Form 1SFS (Unconsolidated)'!O224","v":0}]
["Form 1SFS","Notes","Form 1SFS","Net Provision - End Of Year",{"$f":"'Form 1SFS (Unconsolidated)'!M226","v":0},null,{"$f":"'Form 1SFS (Unconsolidated)'!O226","v":0}]
["Form 1SFS","Notes","Form 1SFS","R/I Recoverable - End Of Year",{"$f":"'Form 1SFS (Unconsolidated)'!M228","v":0},null,{"$f":"'Form 1SFS (Unconsolidated)'!O228","v":0}]
["Form 1SFS","Notes","Form 1SFS","Gross Provision - End Of Year",{"$f":"'Form 1SFS (Unconsolidated)'!M230","v":0},null,{"$f":"'Form 1SFS (Unconsolidated)'!O230","v":0}]
["Form 1SFS","Notes","Form 1SFS","Insurance - Gross - Open Balance",{"$f":"'Form 1SFS (Unconsolidated)'!E272","v":0},null,{"$f":"'Form 1SFS (Unconsolidated)'!E281","v":0}]
["Form 1SFS","Notes","Form 1SFS","Insurance - Gross - Terminations",{"$f":"'Form 1SFS (Unconsolidated)'!E273","v":0},null,{"$f":"'Form 1SFS (Unconsolidated)'!E282","v":0}]
["Form 1SFS","Notes","Form 1SFS","Insurance - Gross - New Business",{"$f":"'Form 1SFS (Unconsolidated)'!E274","v":0},null,{"$f":"'Form 1SFS (Unconsolidated)'!E283","v":0}]
["Form 1SFS","Notes","Form 1SFS","Insurance - Gross - Chg.In Force",{"$f":"'Form 1SFS (Unconsolidated)'!E275","v":0},null,{"$f":"'Form 1SFS (Unconsolidated)'!E284","v":0}]
["Form 1SFS","Notes","Form 1SFS","Insurance - Gross - Mgmt. Actions",{"$f":"'Form 1SFS (Unconsolidated)'!E276","v":0},null,{"$f":"'Form 1SFS (Unconsolidated)'!E285","v":0}]
["Form 1SFS","Notes","Form 1SFS","Insurance - Gross - FX",{"$f":"'Form 1SFS (Unconsolidated)'!E277","v":0},null,{"$f":"'Form 1SFS (Unconsolidated)'!E286","v":0}]
["Form 1SFS","Notes","Form 1SFS","Insurance - Gross - Closing Balance",{"$f":"'Form 1SFS (Unconsolidated)'!E278","v":0},null,{"$f":"'Form 1SFS (Unconsolidated)'!E287","v":0}]
["Form 1SFS","Notes","Form 1SFS","Insurance - R/I - Open Balance",{"$f":"'Form 1SFS (Unconsolidated)'!G272","v":0},null,{"$f":"'Form 1SFS (Unconsolidated)'!G281","v":0}]
["Form 1SFS","Notes","Form 1SFS","Insurance - R/I - Terminations",{"$f":"'Form 1SFS (Unconsolidated)'!G273","v":0},null,{"$f":"'Form 1SFS (Unconsolidated)'!G282","v":0}]
["Form 1SFS","Notes","Form 1SFS","Insurance - R/I - New Business",{"$f":"'Form 1SFS (Unconsolidated)'!G274","v":0},null,{"$f":"'Form 1SFS (Unconsolidated)'!G283","v":0}]
["Form 1SFS","Notes","Form 1SFS","Insurance - R/I - Chg.In Force",{"$f":"'Form 1SFS (Unconsolidated)'!G275","v":0},null,{"$f":"'Form 1SFS (Unconsolidated)'!G284","v":0}]
["Form 1SFS","Notes","Form 1SFS","Insurance - R/I - Mgmt. Actions",{"$f":"'Form 1SFS (Unconsolidated)'!G276","v":0},null,{"$f":"'Form 1SFS (Unconsolidated)'!G285","v":0}]
["Form 1SFS","Notes","Form 1SFS","Insurance - R/I - FX",{"$f":"'Form 1SFS (Unconsolidated)'!G277","v":0},null,{"$f":"'Form 1SFS (Unconsolidated)'!G286","v":0}]
["Form 1SFS","Notes","Form 1SFS","Insurance - R/I - Closing Balance",{"$f":"'Form 1SFS (Unconsolidated)'!G278","v":0},null,{"$f":"'Form 1SFS (Unconsolidated)'!G287","v":0}]
["Form 1SFS","Notes","Form 1SFS","Insurance - Net - Open Balance",{"$f":"'Form 1SFS (Unconsolidated)'!I272","v":0},null,{"$f":"'Form 1SFS (Unconsolidated)'!I281","v":0}]
["Form 1SFS","Notes","Form 1SFS","Insurance - Net - Terminations",{"$f":"'Form 1SFS (Unconsolidated)'!I273","v":0},null,{"$f":"'Form 1SFS (Unconsolidated)'!I282","v":0}]
["Form 1SFS","Notes","Form 1SFS","Insurance - Net - New Business",{"$f":"'Form 1SFS (Unconsolidated)'!I274","v":0},null,{"$f":"'Form 1SFS (Unconsolidated)'!I283","v":0}]
["Form 1SFS","Notes","Form 1SFS","Insurance - Net - Chg.In Force",{"$f":"'Form 1SFS (Unconsolidated)'!I275","v":0},null,{"$f":"'Form 1SFS (Unconsolidated)'!I284","v":0}]
["Form 1SFS","Notes","Form 1SFS","Insurance - Net - Mgmt. Actions",{"$f":"'Form 1SFS (Unconsolidated)'!I276","v":0},null,{"$f":"'Form 1SFS (Unconsolidated)'!I285","v":0}]
["Form 1SFS","Notes","Form 1SFS","Insurance - Net - FX",{"$f":"'Form 1SFS (Unconsolidated)'!I277","v":0},null,{"$f":"'Form 1SFS (Unconsolidated)'!I286","v":0}]
["Form 1SFS","Notes","Form 1SFS","Insurance - Net - Closing Balance",{"$f":"'Form 1SFS (Unconsolidated)'!I278","v":0},null,{"$f":"'Form 1SFS (Unconsolidated)'!I287","v":0}]
["Form 1SFS","Notes","Form 1SFS","Invmnt - Gross - Open Balance",{"$f":"'Form 1SFS (Unconsolidated)'!K272","v":0},null,{"$f":"'Form 1SFS (Unconsolidated)'!K281","v":0}]
["Form 1SFS","Notes","Form 1SFS","Invmnt - Gross - Terminations",{"$f":"'Form 1SFS (Unconsolidated)'!K273","v":0},null,{"$f":"'Form 1SFS (Unconsolidated)'!K282","v":0}]
["Form 1SFS","Notes","Form 1SFS","Invmnt - Gross - New Business",{"$f":"'Form 1SFS (Unconsolidated)'!K274","v":0},null,{"$f":"'Form 1SFS (Unconsolidated)'!K283","v":0}]
["Form 1SFS","Notes","Form 1SFS","Invmnt - Gross - Chg.In Force",{"$f":"'Form 1SFS (Unconsolidated)'!K275","v":0},null,{"$f":"'Form 1SFS (Unconsolidated)'!K284","v":0}]
["Form 1SFS","Notes","Form 1SFS","Invmnt - Gross - Mgmt. Actions",{"$f":"'Form 1SFS (Unconsolidated)'!K276","v":0},null,{"$f":"'Form 1SFS (Unconsolidated)'!K285","v":0}]
["Form 1SFS","Notes","Form 1SFS","Invmnt - Gross - FX",{"$f":"'Form 1SFS (Unconsolidated)'!K277","v":0},null,{"$f":"'Form 1SFS (Unconsolidated)'!K286","v":0}]
["Form 1SFS","Notes","Form 1SFS","Invmnt - Gross - Closing Balance",{"$f":"'Form 1SFS (Unconsolidated)'!K278","v":0},null,{"$f":"'Form 1SFS (Unconsolidated)'!K287","v":0}]
["Form 1SFS","Notes","Form 1SFS","Invmnt - R/I - Open Balance",{"$f":"'Form 1SFS (Unconsolidated)'!M272","v":0},null,{"$f":"'Form 1SFS (Unconsolidated)'!M281","v":0}]
["Form 1SFS","Notes","Form 1SFS","Invmnt - R/I - Terminations",{"$f":"'Form 1SFS (Unconsolidated)'!M273","v":0},null,{"$f":"'Form 1SFS (Unconsolidated)'!M282","v":0}]
["Form 1SFS","Notes","Form 1SFS","Invmnt - R/I - New Business",{"$f":"'Form 1SFS (Unconsolidated)'!M274","v":0},null,{"$f":"'Form 1SFS (Unconsolidated)'!M283","v":0}]
["Form 1SFS","Notes","Form 1SFS","Invmnt - R/I - Chg.In Force",{"$f":"'Form 1SFS (Unconsolidated)'!M275","v":0},null,{"$f":"'Form 1SFS (Unconsolidated)'!M284","v":0}]
["Form 1SFS","Notes","Form 1SFS","Invmnt - R/I - Mgmt. Actions",{"$f":"'Form 1SFS (Unconsolidated)'!M276","v":0},null,{"$f":"'Form 1SFS (Unconsolidated)'!M285","v":0}]
["Form 1SFS","Notes","Form 1SFS","Invmnt - R/I - FX",{"$f":"'Form 1SFS (Unconsolidated)'!M277","v":0},null,{"$f":"'Form 1SFS (Unconsolidated)'!M286","v":0}]
["Form 1SFS","Notes","Form 1SFS","Invmnt - R/I - Closing Balance",{"$f":"'Form 1SFS (Unconsolidated)'!M278","v":0},null,{"$f":"'Form 1SFS (Unconsolidated)'!M287","v":0}]
["Form 1SFS","Notes","Form 1SFS","Invmnt - Net - Open Balance",{"$f":"'Form 1SFS (Unconsolidated)'!O272","v":0},null,{"$f":"'Form 1SFS (Unconsolidated)'!O281","v":0}]
["Form 1SFS","Notes","Form 1SFS","Invmnt - Net - Terminations",{"$f":"'Form 1SFS (Unconsolidated)'!O273","v":0},null,{"$f":"'Form 1SFS (Unconsolidated)'!O282","v":0}]
["Form 1SFS","Notes","Form 1SFS","Invmnt - Net - New Business",{"$f":"'Form 1SFS (Unconsolidated)'!O274","v":0},null,{"$f":"'Form 1SFS (Unconsolidated)'!O283","v":0}]
["Form 1SFS","Notes","Form 1SFS","Invmnt - Net - Chg.In Force",{"$f":"'Form 1SFS (Unconsolidated)'!O275","v":0},null,{"$f":"'Form 1SFS (Unconsolidated)'!O284","v":0}]
["Form 1SFS","Notes","Form 1SFS","Invmnt - Net - Mgmt. Actions",{"$f":"'Form 1SFS (Unconsolidated)'!O276","v":0},null,{"$f":"'Form 1SFS (Unconsolidated)'!O285","v":0}]
["Form 1SFS","Notes","Form 1SFS","Invmnt - Net - FX",{"$f":"'Form 1SFS (Unconsolidated)'!O277","v":0},null,{"$f":"'Form 1SFS (Unconsolidated)'!O286","v":0}]
["Form 1SFS","Notes","Form 1SFS","Invmnt - Net - Closing Balance",{"$f":"'Form 1SFS (Unconsolidated)'!O278","v":0},null,{"$f":"'Form 1SFS (Unconsolidated)'!O287","v":0}]
[]
[null,null,null,"Line 36(i) - Any Other Liabilities"]
[null,null,null,"Line 36(f) - Details of Deposit Liab."]
[null,null,null,"Line 40 - Recon. 1SFS 40 to 40"]
[null,null,null,"Line 16c - Adj. Counterparty Default"]
[null,null,null,"Line 17ci - Adj. Counterparty Default"]
[null,null,null,"Line 16di - BBNI Premium"]
[null,null,null,"Line 16dii - BBNI Best Est. Prem"]
[null,null,null,"Line 17di - Loss Provision Discount"]
[null,null,null,"Line 17dii - Scenario Based Approach"]
[null,null,null,"Best Estimate Provision - Beg. Of Year"]
[null,null,null,"Unwind of Discount"]
[null,null,null,"Net Loss Paid - Prior Years"]
[null,null,null,"Net Losses Incurred - Prior Years"]
[null,null,null,"Best Estimate Provision - From PY"]
[null,null,null,"Net Losses Incurred - Current Year"]
[null,null,null,"Net Loss Paid - Current Year"]
[null,null,null,"Foreign Exchange and Other"]
[null,null,null,"Best Estimate Provision - From CY"]
[null,null,null,"Impact of Change in Discount Curve"]
[null,null,null,"Best Estimate Provision - End Of Year"]
[]
[null,null,null,"Income Statement - UNCONSOLIDATED"]
["Form 2SFS","Income Stmt Uncon GEN / CON","2SFS1a","Gross Premium Written - Direct",{"$f":"'Form 2SFS (Unconsolidated)'!E12","v":0},null,{"$f":"'Form 2SFS (Unconsolidated)'!G12","v":0},null,{"$f":"'Form 2SFS (Unconsolidated)'!I12","v":0},null,{"$f":"'Form 2SFS (Unconsolidated)'!K12","v":0},null,{"$f":"'Form 2SFS (Unconsolidated)'!M12","v":0},null,{"$f":"'Form 2SFS (Unconsolidated)'!O12","v":0}]
["Form 2SFS","Income Stmt Uncon GEN / CON","2SFS1b","Gross Premium Written - Assumed",{"$f":"'Form 2SFS (Unconsolidated)'!E13","v":0},null,{"$f":"'Form 2SFS (Unconsolidated)'!G13","v":0},null,{"$f":"'Form 2SFS (Unconsolidated)'!I13","v":0},null,{"$f":"'Form 2SFS (Unconsolidated)'!K13","v":0},null,{"$f":"'Form 2SFS (Unconsolidated)'!M13","v":0},null,{"$f":"'Form 2SFS (Unconsolidated)'!O13","v":0}]
["Form 2SFS","Income Stmt Uncon GEN / CON","2SFS2","R/I Premiums Ceded",{"$f":"'Form 2SFS (Unconsolidated)'!E16","v":0},null,{"$f":"'Form 2SFS (Unconsolidated)'!G16","v":0},null,{"$f":"'Form 2SFS (Unconsolidated)'!I16","v":0},null,{"$f":"'Form 2SFS (Unconsolidated)'!K16","v":0},null,{"$f":"'Form 2SFS (Unconsolidated)'!M16","v":0},null,{"$f":"'Form 2SFS (Unconsolidated)'!O16","v":0}]
["Form 2SFS","Income Stmt Uncon GEN / CON","2SFS4","Change in Unearned Premiums",{"$f":"'Form 2SFS (Unconsolidated)'!E20","v":0},null,{"$f":"'Form 2SFS (Unconsolidated)'!G20","v":0},null,{"$f":"'Form 2SFS (Unconsolidated)'!I20","v":0},null,{"$f":"'Form 2SFS (Unconsolidated)'!K20","v":0},null,{"$f":"'Form 2SFS (Unconsolidated)'!M20","v":0},null,{"$f":"'Form 2SFS (Unconsolidated)'!O20","v":0}]
["Form 2SFS","Income Stmt Uncon GEN / CON","2SFS6","Other Insurance Income",{"$f":"'Form 2SFS (Unconsolidated)'!E24","v":0},null,{"$f":"'Form 2SFS (Unconsolidated)'!G24","v":0},null,{"$f":"'Form 2SFS (Unconsolidated)'!I24","v":0},null,{"$f":"'Form 2SFS (Unconsolidated)'!K24","v":0},null,{"$f":"'Form 2SFS (Unconsolidated)'!M24","v":0},null,{"$f":"'Form 2SFS (Unconsolidated)'!O24","v":0}]
["Form 2SFS","Income Stmt Uncon GEN / CON","2SFS8","Net Losses Incurred",{"$f":"'Form 2SFS (Unconsolidated)'!E30","v":0},null,{"$f":"'Form 2SFS (Unconsolidated)'!G30","v":0},null,{"$f":"'Form 2SFS (Unconsolidated)'!I30","v":0},null,{"$f":"'Form 2SFS (Unconsolidated)'!K30","v":0},null,{"$f":"'Form 2SFS (Unconsolidated)'!M30","v":0},null,{"$f":"'Form 2SFS (Unconsolidated)'!O30","v":0}]
["Form 2SFS","Income Stmt Uncon GEN / CON","2SFS9","Commissions & Brokerage",{"$f":"'Form 2SFS (Unconsolidated)'!E32","v":0},null,{"$f":"'Form 2SFS (Unconsolidated)'!G32","v":0},null,{"$f":"'Form 2SFS (Unconsolidated)'!I32","v":0},null,{"$f":"'Form 2SFS (Unconsolidated)'!K32","v":0},null,{"$f":"'Form 2SFS (Unconsolidated)'!M32","v":0},null,{"$f":"'Form 2SFS (Unconsolidated)'!O32","v":0}]
["Form 2SFS","Income Stmt Uncon GEN / CON","2SFS30a","Operating Expense - G&A",{"$f":"'Form 2SFS (Unconsolidated)'!E41","v":0},null,{"$f":"'Form 2SFS (Unconsolidated)'!G41","v":0},null,{"$f":"'Form 2SFS (Unconsolidated)'!I41","v":0},null,{"$f":"'Form 2SFS (Unconsolidated)'!K41","v":0},null,{"$f":"'Form 2SFS (Unconsolidated)'!M41","v":0},null,{"$f":"'Form 2SFS (Unconsolidated)'!O41","v":0}]
["Form 2SFS","Income Stmt Uncon GEN / CON","2SFS30b","Operating Expense - Personnel Costs",{"$f":"'Form 2SFS (Unconsolidated)'!E42","v":0},null,{"$f":"'Form 2SFS (Unconsolidated)'!G42","v":0},null,{"$f":"'Form 2SFS (Unconsolidated)'!I42","v":0},null,{"$f":"'Form 2SFS (Unconsolidated)'!K42","v":0},null,{"$f":"'Form 2SFS (Unconsolidated)'!M42","v":0},null,{"$f":"'Form 2SFS (Unconsolidated)'!O42","v":0}]
["Form 2SFS","Income Stmt Uncon GEN / CON","2SFS30c","Operating Expense - Other",{"$f":"'Form 2SFS (Unconsolidated)'!E43","v":0},null,{"$f":"'Form 2SFS (Unconsolidated)'!G43","v":0},null,{"$f":"'Form 2SFS (Unconsolidated)'!I43","v":0},null,{"$f":"'Form 2SFS (Unconsolidated)'!K43","v":0},null,{"$f":"'Form 2SFS (Unconsolidated)'!M43","v":0},null,{"$f":"'Form 2SFS (Unconsolidated)'!O43","v":0}]
["Form 2SFS","Income Stmt Uncon GEN / CON","2SFS31","Investment Income",{"$f":"'Form 2SFS (Unconsolidated)'!E46","v":0},null,{"$f":"'Form 2SFS (Unconsolidated)'!G46","v":0},null,{"$f":"'Form 2SFS (Unconsolidated)'!I46","v":0},null,{"$f":"'Form 2SFS (Unconsolidated)'!K46","v":0},null,{"$f":"'Form 2SFS (Unconsolidated)'!M46","v":0},null,{"$f":"'Form 2SFS (Unconsolidated)'!O46","v":0}]
["Form 2SFS","Income Stmt Uncon GEN / CON","2SFS32","Other Income",{"$f":"'Form 2SFS (Unconsolidated)'!E48","v":0},null,{"$f":"'Form 2SFS (Unconsolidated)'!G48","v":0},null,{"$f":"'Form 2SFS (Unconsolidated)'!I48","v":0},null,{"$f":"'Form 2SFS (Unconsolidated)'!K48","v":0},null,{"$f":"'Form 2SFS (Unconsolidated)'!M48","v":0},null,{"$f":"'Form 2SFS (Unconsolidated)'!O48","v":0}]
["Form 2SFS","Income Stmt Uncon GEN / CON","2SFS34a","Income Tax - Current",{"$f":"'Form 2SFS (Unconsolidated)'!E53","v":0},null,{"$f":"'Form 2SFS (Unconsolidated)'!G53","v":0},null,{"$f":"'Form 2SFS (Unconsolidated)'!I53","v":0},null,{"$f":"'Form 2SFS (Unconsolidated)'!K53","v":0},null,{"$f":"'Form 2SFS (Unconsolidated)'!M53","v":0},null,{"$f":"'Form 2SFS (Unconsolidated)'!O53","v":0}]
["Form 2SFS","Income Stmt Uncon GEN / CON","2SFS34b","Income Tax - Deferred",{"$f":"'Form 2SFS (Unconsolidated)'!E54","v":0},null,{"$f":"'Form 2SFS (Unconsolidated)'!G54","v":0},null,{"$f":"'Form 2SFS (Unconsolidated)'!I54","v":0},null,{"$f":"'Form 2SFS (Unconsolidated)'!K54","v":0},null,{"$f":"'Form 2SFS (Unconsolidated)'!M54","v":0},null,{"$f":"'Form 2SFS (Unconsolidated)'!O54","v":0}]
["Form 2SFS","Income Stmt Uncon GEN / CON","2SFS36","Realized Gains/Losses",{"$f":"'Form 2SFS (Unconsolidated)'!E59","v":0},null,{"$f":"'Form 2SFS (Unconsolidated)'!G59","v":0},null,{"$f":"'Form 2SFS (Unconsolidated)'!I59","v":0},null,{"$f":"'Form 2SFS (Unconsolidated)'!K59","v":0},null,{"$f":"'Form 2SFS (Unconsolidated)'!M59","v":0},null,{"$f":"'Form 2SFS (Unconsolidated)'!O59","v":0}]
["Form 2SFS","Income Stmt Uncon GEN / CON","2SFS37","Interest Charges",{"$f":"'Form 2SFS (Unconsolidated)'!E61","v":0},null,{"$f":"'Form 2SFS (Unconsolidated)'!G61","v":0},null,{"$f":"'Form 2SFS (Unconsolidated)'!I61","v":0},null,{"$f":"'Form 2SFS (Unconsolidated)'!K61","v":0},null,{"$f":"'Form 2SFS (Unconsolidated)'!M61","v":0},null,{"$f":"'Form 2SFS (Unconsolidated)'!O61","v":0}]
[]
[null,null,null,"Statement of Capital & Surplus - UNCONSOLIDATED"]
["Form 8SFS","Stmt of C&S Uncon GEN / CON","8SFS1ai","Capital Stock",{"$f":"'Form 8SFS (Unconsolidated)'!G11","v":0},null,{"$f":"'Form 8SFS (Unconsolidated)'!I11","v":0},null,{"$f":"'Form 8SFS (Unconsolidated)'!K11","v":0},null,{"$f":"'Form 8SFS (Unconsolidated)'!M11","v":0}]
["Form 8SFS","Stmt of C&S Uncon GEN / CON",null,"Common Stock",null,null,null,null,null,null,null,null,{"$f":"'Form 8SFS (Unconsolidated)'!O12","v":0},null,{"$f":"'Form 8SFS (Unconsolidated)'!Q12","v":0}]
["Form 8SFS","Stmt of C&S Uncon GEN / CON","8SFS1aii","Preferred Shares",null,null,null,null,null,null,null,null,{"$f":"'Form 8SFS (Unconsolidated)'!O17","v":0},null,{"$f":"'Form 8SFS (Unconsolidated)'!Q17","v":0}]
["Form 8SFS","Stmt of C&S Uncon GEN / CON","8SFS1aiii","Treasury Shares",null,null,null,null,null,null,null,null,{"$f":"'Form 8SFS (Unconsolidated)'!O25","v":0},null,{"$f":"'Form 8SFS (Unconsolidated)'!Q25","v":0}]
["Form 8SFS","Stmt of C&S Uncon GEN / CON","8SFS1aiv","Tokenized Equity Shares",null,null,null,null,null,null,null,null,{"$f":"'Form 8SFS (Unconsolidated)'!O29","v":0},null,{"$f":"'Form 8SFS (Unconsolidated)'!Q29","v":0}]
["Form 8SFS","Stmt of C&S Uncon GEN / CON","8SFS1b","Contributed Surplus",{"$f":"'Form 8SFS (Unconsolidated)'!G31","v":0},null,{"$f":"'Form 8SFS (Unconsolidated)'!I31","v":0},null,{"$f":"'Form 8SFS (Unconsolidated)'!K31","v":0},null,{"$f":"'Form 8SFS (Unconsolidated)'!M31","v":0},null,{"$f":"'Form 8SFS (Unconsolidated)'!O31","v":0},null,{"$f":"'Form 8SFS (Unconsolidated)'!Q31","v":0}]
["Form 8SFS","Stmt of C&S Uncon GEN / CON","8SFS1ci","Other Fixed Capital - Hybrid Instruments",{"$f":"'Form 8SFS (Unconsolidated)'!G34","v":0},null,{"$f":"'Form 8SFS (Unconsolidated)'!I34","v":0},null,{"$f":"'Form 8SFS (Unconsolidated)'!K34","v":0},null,{"$f":"'Form 8SFS (Unconsolidated)'!M34","v":0},null,{"$f":"'Form 8SFS (Unconsolidated)'!O34","v":0},null,{"$f":"'Form 8SFS (Unconsolidated)'!Q34","v":0}]
["Form 8SFS","Stmt of C&S Uncon GEN / CON","8SFS1cii","Other Fixed Capital - Guarantees & Others",{"$f":"'Form 8SFS (Unconsolidated)'!G35","v":0},null,{"$f":"'Form 8SFS (Unconsolidated)'!I35","v":0},null,{"$f":"'Form 8SFS (Unconsolidated)'!K35","v":0},null,{"$f":"'Form 8SFS (Unconsolidated)'!M35","v":0},null,{"$f":"'Form 8SFS (Unconsolidated)'!O35","v":0},null,{"$f":"'Form 8SFS (Unconsolidated)'!Q35","v":0}]
["Form 8SFS","Stmt of C&S Uncon GEN / CON","8SFS2a","Statutory Surplus - Beginning of Year",{"$f":"'Form 8SFS (Unconsolidated)'!G42","v":0},null,{"$f":"'Form 8SFS (Unconsolidated)'!I42","v":0},null,{"$f":"'Form 8SFS (Unconsolidated)'!K42","v":0},null,{"$f":"'Form 8SFS (Unconsolidated)'!M42","v":0},null,{"$f":"'Form 8SFS (Unconsolidated)'!O42","v":0},null,{"$f":"'Form 8SFS (Unconsolidated)'!Q42","v":0}]
["Form 8SFS","Stmt of C&S Uncon GEN / CON","8SFS2c","Dividends",{"$f":"'Form 8SFS (Unconsolidated)'!G46","v":0},null,{"$f":"'Form 8SFS (Unconsolidated)'!I46","v":0},null,{"$f":"'Form 8SFS (Unconsolidated)'!K46","v":0},null,{"$f":"'Form 8SFS (Unconsolidated)'!M46","v":0},null,{"$f":"'Form 8SFS (Unconsolidated)'!O46","v":0},null,{"$f":"'Form 8SFS (Unconsolidated)'!Q46","v":0}]
["Form 8SFS","Stmt of C&S Uncon GEN / CON","8SFS2d","Unrealized Change in Investments",{"$f":"'Form 8SFS (Unconsolidated)'!G48","v":0},null,{"$f":"'Form 8SFS (Unconsolidated)'!I48","v":0},null,{"$f":"'Form 8SFS (Unconsolidated)'!K48","v":0},null,{"$f":"'Form 8SFS (Unconsolidated)'!M48","v":0},null,{"$f":"'Form 8SFS (Unconsolidated)'!O48","v":0},null,{"$f":"'Form 8SFS (Unconsolidated)'!Q48","v":0}]
["Form 8SFS","Stmt of C&S Uncon GEN / CON","8SFS2e","Change in Non-Admitted Assets",{"$f":"'Form 8SFS (Unconsolidated)'!G50","v":0},null,{"$f":"'Form 8SFS (Unconsolidated)'!I50","v":0},null,{"$f":"'Form 8SFS (Unconsolidated)'!K50","v":0},null,{"$f":"'Form 8SFS (Unconsolidated)'!M50","v":0},null,{"$f":"'Form 8SFS (Unconsolidated)'!O50","v":0},null,{"$f":"'Form 8SFS (Unconsolidated)'!Q50","v":0}]
["Form 8SFS","Stmt of C&S Uncon GEN / CON","8SFS2f","Change in Real Estate",{"$f":"'Form 8SFS (Unconsolidated)'!G52","v":0},null,{"$f":"'Form 8SFS (Unconsolidated)'!I52","v":0},null,{"$f":"'Form 8SFS (Unconsolidated)'!K52","v":0},null,{"$f":"'Form 8SFS (Unconsolidated)'!M52","v":0},null,{"$f":"'Form 8SFS (Unconsolidated)'!O52","v":0},null,{"$f":"'Form 8SFS (Unconsolidated)'!Q52","v":0}]
["Form 8SFS","Stmt of C&S Uncon GEN / CON","8SFS2g","Change in Other Statutory Capital",{"$f":"'Form 8SFS (Unconsolidated)'!G54","v":0},null,{"$f":"'Form 8SFS (Unconsolidated)'!I54","v":0},null,{"$f":"'Form 8SFS (Unconsolidated)'!K54","v":0},null,{"$f":"'Form 8SFS (Unconsolidated)'!M54","v":0},null,{"$f":"'Form 8SFS (Unconsolidated)'!O54","v":0},null,{"$f":"'Form 8SFS (Unconsolidated)'!Q54","v":0}]
["Form 8SFS","Stmt of C&S Uncon GEN / CON","8SFS3","Minority Interest",{"$f":"'Form 8SFS (Unconsolidated)'!G58","v":0},null,{"$f":"'Form 8SFS (Unconsolidated)'!I58","v":0},null,{"$f":"'Form 8SFS (Unconsolidated)'!K58","v":0},null,{"$f":"'Form 8SFS (Unconsolidated)'!M58","v":0},null,{"$f":"'Form 8SFS (Unconsolidated)'!O58","v":0},null,{"$f":"'Form 8SFS (Unconsolidated)'!Q58","v":0}]
[]
[null,null,null,"Balance Sheet - CONSOLIDATED"]
["Form 1SFS","Balance Sheet GEN/CON","1SFS1","Cash and Cash Equivalents",{"$f":"'Form 1SFS (Consolidated)'!E12","v":0},null,{"$f":"'Form 1SFS (Consolidated)'!G12","v":0},null,{"$f":"'Form 1SFS (Consolidated)'!I12","v":0},null,{"$f":"'Form 1SFS (Consolidated)'!K12","v":0},null,{"$f":"'Form 1SFS (Consolidated)'!M12","v":0},null,{"$f":"'Form 1SFS (Consolidated)'!O12","v":0}]
["Form 1SFS","Balance Sheet GEN/CON","1SFS2ai","Quoted - Bonds - Held to Maturity",{"$f":"'Form 1SFS (Consolidated)'!E16","v":0},null,{"$f":"'Form 1SFS (Consolidated)'!G16","v":0},null,{"$f":"'Form 1SFS (Consolidated)'!I16","v":0},null,{"$f":"'Form 1SFS (Consolidated)'!K16","v":0},null,{"$f":"'Form 1SFS (Consolidated)'!M16","v":0},null,{"$f":"'Form 1SFS (Consolidated)'!O16","v":0}]
["Form 1SFS","Balance Sheet GEN/CON","1SFS2aii","Quoted - Bonds - Other",{"$f":"'Form 1SFS (Consolidated)'!E17","v":0},null,{"$f":"'Form 1SFS (Consolidated)'!G17","v":0},null,{"$f":"'Form 1SFS (Consolidated)'!I17","v":0},null,{"$f":"'Form 1SFS (Consolidated)'!K17","v":0},null,{"$f":"'Form 1SFS (Consolidated)'!M17","v":0},null,{"$f":"'Form 1SFS (Consolidated)'!O17","v":0}]
["Form 1SFS","Balance Sheet GEN/CON","1SFS2b","Quoted - Bonds - Total",null,null,null,null,{"$f":"'Form 1SFS (Consolidated)'!I20","v":0},null,{"$f":"'Form 1SFS (Consolidated)'!K20","v":0}]
["Form 1SFS","Balance Sheet GEN/CON","1SFS2ci","Quoted - Equities - Common Stocks",{"$f":"'Form 1SFS (Consolidated)'!E20","v":0},null,{"$f":"'Form 1SFS (Consolidated)'!G20","v":0},null,{"$f":"'Form 1SFS (Consolidated)'!I21","v":0},null,{"$f":"'Form 1SFS (Consolidated)'!K21","v":0},null,{"$f":"'Form 1SFS (Consolidated)'!M20","v":0},null,{"$f":"'Form 1SFS (Consolidated)'!O20","v":0}]
["Form 1SFS","Balance Sheet GEN/CON","1SFS2cii","Quoted - Equities - Preferred Stocks",{"$f":"'Form 1SFS (Consolidated)'!E21","v":0},null,{"$f":"'Form 1SFS (Consolidated)'!G21","v":0},null,{"$f":"'Form 1SFS (Consolidated)'!I22","v":0},null,{"$f":"'Form 1SFS (Consolidated)'!K22","v":0},null,{"$f":"'Form 1SFS (Consolidated)'!M21","v":0},null,{"$f":"'Form 1SFS (Consolidated)'!O21","v":0}]
["Form 1SFS","Balance Sheet GEN/CON","1SFS2ciii","Quoted - Equities - Mutual Funds",{"$f":"'Form 1SFS (Consolidated)'!E22","v":0},null,{"$f":"'Form 1SFS (Consolidated)'!G22","v":0},null,{"$f":"'Form 1SFS (Consolidated)'!I28","v":0},null,{"$f":"'Form 1SFS (Consolidated)'!K28","v":0},null,{"$f":"'Form 1SFS (Consolidated)'!M22","v":0},null,{"$f":"'Form 1SFS (Consolidated)'!O22","v":0}]
["Form 1SFS","Balance Sheet GEN/CON","1SFS2ei","Quoted - Other Investments - Digital Assets",{"$f":"'Form 1SFS (Consolidated)'!E25","v":0},null,{"$f":"'Form 1SFS (Consolidated)'!G25","v":0},null,{"$f":"'Form 1SFS (Consolidated)'!I33","v":0},null,{"$f":"'Form 1SFS (Consolidated)'!K33","v":0},null,{"$f":"'Form 1SFS (Consolidated)'!M25","v":0},null,{"$f":"'Form 1SFS (Consolidated)'!O25","v":0}]
["Form 1SFS","Balance Sheet GEN/CON","1SFS2eii","Quoted - Other Investments - Preferred Stocks",{"$f":"'Form 1SFS (Consolidated)'!E26","v":0},null,{"$f":"'Form 1SFS (Consolidated)'!G26","v":0},null,{"$f":"'Form 1SFS (Consolidated)'!I34","v":0},null,{"$f":"'Form 1SFS (Consolidated)'!K34","v":0},null,{"$f":"'Form 1SFS (Consolidated)'!M26","v":0},null,{"$f":"'Form 1SFS (Consolidated)'!O26","v":0}]
["Form 1SFS","Balance Sheet GEN/CON","1SFS2eiii","Quoted - Other Investments - Others",{"$f":"'Form 1SFS (Consolidated)'!E27","v":0},null,{"$f":"'Form 1SFS (Consolidated)'!G27","v":0},null,{"$f":"'Form 1SFS (Consolidated)'!I37","v":0},null,{"$f":"'Form 1SFS (Consolidated)'!K37","v":0},null,{"$f":"'Form 1SFS (Consolidated)'!M27","v":0},null,{"$f":"'Form 1SFS (Consolidated)'!O27","v":0}]
["Form 1SFS","Balance Sheet GEN/CON","1SFS3ai","Unquoted - Bonds - Held to Maturity",{"$f":"'Form 1SFS (Consolidated)'!E33","v":0},null,{"$f":"'Form 1SFS (Consolidated)'!G33","v":0},null,{"$f":"'Form 1SFS (Consolidated)'!I38","v":0},null,{"$f":"'Form 1SFS (Consolidated)'!K38","v":0},null,{"$f":"'Form 1SFS (Consolidated)'!M33","v":0},null,{"$f":"'Form 1SFS (Consolidated)'!O33","v":0}]
["Form 1SFS","Balance Sheet GEN/CON","1SFS3aii","Unquoted - Bonds - Other",{"$f":"'Form 1SFS (Consolidated)'!E34","v":0},null,{"$f":"'Form 1SFS (Consolidated)'!G34","v":0},null,{"$f":"'Form 1SFS (Consolidated)'!I39","v":0},null,{"$f":"'Form 1SFS (Consolidated)'!K39","v":0},null,{"$f":"'Form 1SFS (Consolidated)'!M34","v":0},null,{"$f":"'Form 1SFS (Consolidated)'!O34","v":0}]
["Form 1SFS","Balance Sheet GEN/CON","1SFS3b","Unquoted - Bonds - Total",null,null,null,null,{"$f":"'Form 1SFS (Consolidated)'!I45","v":0},null,{"$f":"'Form 1SFS (Consolidated)'!K45","v":0}]
["Form 1SFS","Balance Sheet GEN/CON","1SFS3ci","Unquoted - Equities - Common Stocks",{"$f":"'Form 1SFS (Consolidated)'!E37","v":0},null,{"$f":"'Form 1SFS (Consolidated)'!G37","v":0},null,{"$f":"'Form 1SFS (Consolidated)'!I37","v":0},null,{"$f":"'Form 1SFS (Consolidated)'!K37","v":0},null,{"$f":"'Form 1SFS (Consolidated)'!M37","v":0},null,{"$f":"'Form 1SFS (Consolidated)'!O37","v":0}]
["Form 1SFS","Balance Sheet GEN/CON","1SFS3cii","Unquoted - Equities - Preferred Stocks",{"$f":"'Form 1SFS (Consolidated)'!E38","v":0},null,{"$f":"'Form 1SFS (Consolidated)'!G38","v":0},null,{"$f":"'Form 1SFS (Consolidated)'!I38","v":0},null,{"$f":"'Form 1SFS (Consolidated)'!K38","v":0},null,{"$f":"'Form 1SFS (Consolidated)'!M38","v":0},null,{"$f":"'Form 1SFS (Consolidated)'!O38","v":0}]
["Form 1SFS","Balance Sheet GEN/CON","1SFS3ciii","Unquoted - Equities - Mutual Funds",{"$f":"'Form 1SFS (Consolidated)'!E39","v":0},null,{"$f":"'Form 1SFS (Consolidated)'!G39","v":0},null,{"$f":"'Form 1SFS (Consolidated)'!I39","v":0},null,{"$f":"'Form 1SFS (Consolidated)'!K39","v":0},null,{"$f":"'Form 1SFS (Consolidated)'!M39","v":0},null,{"$f":"'Form 1SFS (Consolidated)'!O39","v":0}]
["Form 1SFS","Balance Sheet GEN/CON","1SFS3ei","Unquoted - Other Investments - Digital Assets",{"$f":"'Form 1SFS (Consolidated)'!E42","v":0},null,{"$f":"'Form 1SFS (Consolidated)'!G42","v":0},null,{"$f":"'Form 1SFS (Consolidated)'!I42","v":0},null,{"$f":"'Form 1SFS (Consolidated)'!K42","v":0},null,{"$f":"'Form 1SFS (Consolidated)'!M42","v":0},null,{"$f":"'Form 1SFS (Consolidated)'!O42","v":0}]
["Form 1SFS","Balance Sheet GEN/CON","1SFS3eii","Unquoted - Other Investments - Preferred Stocks",{"$f":"'Form 1SFS (Consolidated)'!E43","v":0},null,{"$f":"'Form 1SFS (Consolidated)'!G43","v":0},null,{"$f":"'Form 1SFS (Consolidated)'!I43","v":0},null,{"$f":"'Form 1SFS (Consolidated)'!K43","v":0},null,{"$f":"'Form 1SFS (Consolidated)'!M43","v":0},null,{"$f":"'Form 1SFS (Consolidated)'!O43","v":0}]
["Form 1SFS","Balance Sheet GEN/CON","1SFS3eiii","Unquoted - Other Investments - Others",{"$f":"'Form 1SFS (Consolidated)'!E44","v":0},null,{"$f":"'Form 1SFS (Consolidated)'!G44","v":0},null,{"$f":"'Form 1SFS (Consolidated)'!I44","v":0},null,{"$f":"'Form 1SFS (Consolidated)'!K44","v":0},null,{"$f":"'Form 1SFS (Consolidated)'!M44","v":0},null,{"$f":"'Form 1SFS (Consolidated)'!O44","v":0}]
["Form 1SFS","Balance Sheet GEN/CON","1SFS4","Inv. In and Advances to Affiliates",{"$f":"'Form 1SFS (Consolidated)'!E48","v":0},null,{"$f":"'Form 1SFS (Consolidated)'!G48","v":0},null,{"$f":"'Form 1SFS (Consolidated)'!I48","v":0},null,{"$f":"'Form 1SFS (Consolidated)'!K48","v":0},null,{"$f":"'Form 1SFS (Consolidated)'!M48","v":0},null,{"$f":"'Form 1SFS (Consolidated)'!O48","v":0}]
["Form 1SFS","Balance Sheet GEN/CON","1SFS5a","Inv. In Mortg. Loans on Real Estate - 1st Lien",{"$f":"'Form 1SFS (Consolidated)'!E51","v":0},null,{"$f":"'Form 1SFS (Consolidated)'!G51","v":0},null,{"$f":"'Form 1SFS (Consolidated)'!I51","v":0},null,{"$f":"'Form 1SFS (Consolidated)'!K51","v":0},null,{"$f":"'Form 1SFS (Consolidated)'!M51","v":0},null,{"$f":"'Form 1SFS (Consolidated)'!O51","v":0}]
["Form 1SFS","Balance Sheet GEN/CON","1SFS5b","Inv. In Mortg. Loans on Real Estate - Other",{"$f":"'Form 1SFS (Consolidated)'!E52","v":0},null,{"$f":"'Form 1SFS (Consolidated)'!G52","v":0},null,{"$f":"'Form 1SFS (Consolidated)'!I52","v":0},null,{"$f":"'Form 1SFS (Consolidated)'!K52","v":0},null,{"$f":"'Form 1SFS (Consolidated)'!M52","v":0},null,{"$f":"'Form 1SFS (Consolidated)'!O52","v":0}]
["Form 1SFS","Balance Sheet GEN/CON","1SFS6","Equipment Net of Depreciation",{"$f":"'Form 1SFS (Consolidated)'!E55","v":0},null,{"$f":"'Form 1SFS (Consolidated)'!G55","v":0},null,{"$f":"'Form 1SFS (Consolidated)'!I55","v":0},null,{"$f":"'Form 1SFS (Consolidated)'!K55","v":0},null,{"$f":"'Form 1SFS (Consolidated)'!M55","v":0},null,{"$f":"'Form 1SFS (Consolidated)'!O55","v":0}]
["Form 1SFS","Balance Sheet GEN/CON","1SFS7","Real Estate",{"$f":"'Form 1SFS (Consolidated)'!E57","v":0},null,{"$f":"'Form 1SFS (Consolidated)'!G57","v":0},null,{"$f":"'Form 1SFS (Consolidated)'!I57","v":0},null,{"$f":"'Form 1SFS (Consolidated)'!K57","v":0},null,{"$f":"'Form 1SFS (Consolidated)'!M57","v":0},null,{"$f":"'Form 1SFS (Consolidated)'!O57","v":0}]
["Form 1SFS","Balance Sheet GEN/CON","1SFS8a","Loans Receivable - Due in one year or less",{"$f":"'Form 1SFS (Consolidated)'!E60","v":0},null,{"$f":"'Form 1SFS (Consolidated)'!G60","v":0},null,{"$f":"'Form 1SFS (Consolidated)'!I60","v":0},null,{"$f":"'Form 1SFS (Consolidated)'!K60","v":0},null,{"$f":"'Form 1SFS (Consolidated)'!M60","v":0},null,{"$f":"'Form 1SFS (Consolidated)'!O60","v":0}]
["Form 1SFS","Balance Sheet GEN/CON","1SFS8b","Loans Receivable - Due in over a year",{"$f":"'Form 1SFS (Consolidated)'!E61","v":0},null,{"$f":"'Form 1SFS (Consolidated)'!G61","v":0},null,{"$f":"'Form 1SFS (Consolidated)'!I61","v":0},null,{"$f":"'Form 1SFS (Consolidated)'!K61","v":0},null,{"$f":"'Form 1SFS (Consolidated)'!M61","v":0},null,{"$f":"'Form 1SFS (Consolidated)'!O61","v":0}]
["Form 1SFS","Balance Sheet GEN/CON","1SFS9","Investment Income Due and Accrued",{"$f":"'Form 1SFS (Consolidated)'!E64","v":0},null,{"$f":"'Form 1SFS (Consolidated)'!G64","v":0},null,{"$f":"'Form 1SFS (Consolidated)'!I64","v":0},null,{"$f":"'Form 1SFS (Consolidated)'!K64","v":0},null,{"$f":"'Form 1SFS (Consolidated)'!M64","v":0},null,{"$f":"'Form 1SFS (Consolidated)'!O64","v":0}]
["Form 1SFS","Balance Sheet GEN/CON","1SFS10","Receivables from Clearing Brokers",{"$f":"'Form 1SFS (Consolidated)'!E66","v":0},null,{"$f":"'Form 1SFS (Consolidated)'!G66","v":0},null,{"$f":"'Form 1SFS (Consolidated)'!I66","v":0},null,{"$f":"'Form 1SFS (Consolidated)'!K66","v":0},null,{"$f":"'Form 1SFS (Consolidated)'!M66","v":0},null,{"$f":"'Form 1SFS (Consolidated)'!O66","v":0}]
["Form 1SFS","Balance Sheet GEN/CON","1SFS11a","Other Received From Digital Asset Business  - Due in one year or less",{"$f":"'Form 1SFS (Consolidated)'!E69","v":0},null,{"$f":"'Form 1SFS (Consolidated)'!G69","v":0},null,{"$f":"'Form 1SFS (Consolidated)'!I69","v":0},null,{"$f":"'Form 1SFS (Consolidated)'!K69","v":0},null,{"$f":"'Form 1SFS (Consolidated)'!M69","v":0},null,{"$f":"'Form 1SFS (Consolidated)'!O69","v":0}]
["Form 1SFS","Balance Sheet GEN/CON","1SFS11b","Other Received From Digital Asset Business - Due in over a year",{"$f":"'Form 1SFS (Consolidated)'!E70","v":0},null,{"$f":"'Form 1SFS (Consolidated)'!G70","v":0},null,{"$f":"'Form 1SFS (Consolidated)'!I70","v":0},null,{"$f":"'Form 1SFS (Consolidated)'!K70","v":0},null,{"$f":"'Form 1SFS (Consolidated)'!M70","v":0},null,{"$f":"'Form 1SFS (Consolidated)'!O70","v":0}]
["Form 1SFS","Balance Sheet GEN/CON","1SFS12","Digital Assets Held in Custody for Clients",{"$f":"'Form 1SFS (Consolidated)'!E73","v":0},null,{"$f":"'Form 1SFS (Consolidated)'!G73","v":0},null,{"$f":"'Form 1SFS (Consolidated)'!I73","v":0},null,{"$f":"'Form 1SFS (Consolidated)'!K73","v":0},null,{"$f":"'Form 1SFS (Consolidated)'!M73","v":0},null,{"$f":"'Form 1SFS (Consolidated)'!O73","v":0}]
["Form 1SFS","Balance Sheet GEN/CON","1SFS13a","Sundry Assets - Derivatives",{"$f":"'Form 1SFS (Consolidated)'!E76","v":0},null,{"$f":"'Form 1SFS (Consolidated)'!G76","v":0},null,{"$f":"'Form 1SFS (Consolidated)'!I76","v":0},null,{"$f":"'Form 1SFS (Consolidated)'!K76","v":0},null,{"$f":"'Form 1SFS (Consolidated)'!M76","v":0},null,{"$f":"'Form 1SFS (Consolidated)'!O76","v":0}]
["Form 1SFS","Balance Sheet GEN/CON","1SFS13b","Sundry Assets - Net Rec. for Investments",{"$f":"'Form 1SFS (Consolidated)'!E77","v":0},null,{"$f":"'Form 1SFS (Consolidated)'!G77","v":0},null,{"$f":"'Form 1SFS (Consolidated)'!I77","v":0},null,{"$f":"'Form 1SFS (Consolidated)'!K77","v":0},null,{"$f":"'Form 1SFS (Consolidated)'!M77","v":0},null,{"$f":"'Form 1SFS (Consolidated)'!O77","v":0}]
["Form 1SFS","Balance Sheet GEN/CON","1SFS13c","Sundry Assets - Prepaid Expenses",{"$f":"'Form 1SFS (Consolidated)'!E78","v":0},null,{"$f":"'Form 1SFS (Consolidated)'!G78","v":0},null,{"$f":"'Form 1SFS (Consolidated)'!I77","v":0},null,{"$f":"'Form 1SFS (Consolidated)'!K77","v":0},null,{"$f":"'Form 1SFS (Consolidated)'!M78","v":0},null,{"$f":"'Form 1SFS (Consolidated)'!O78","v":0}]
["Form 1SFS","Balance Sheet GEN/CON","1SFS13d","Sundry Assets - Goodwill and Other Intangibles",{"$f":"'Form 1SFS (Consolidated)'!E79","v":0},null,{"$f":"'Form 1SFS (Consolidated)'!G79","v":0},null,{"$f":"'Form 1SFS (Consolidated)'!I78","v":0},null,{"$f":"'Form 1SFS (Consolidated)'!K78","v":0},null,{"$f":"'Form 1SFS (Consolidated)'!M79","v":0},null,{"$f":"'Form 1SFS (Consolidated)'!O79","v":0}]
["Form 1SFS","Balance Sheet GEN/CON","1SFS13e","Sundry Assets - Other 1",{"$f":"'Form 1SFS (Consolidated)'!E80","v":0},null,{"$f":"'Form 1SFS (Consolidated)'!G80","v":0},null,{"$f":"'Form 1SFS (Consolidated)'!I79","v":0},null,{"$f":"'Form 1SFS (Consolidated)'!K79","v":0},null,{"$f":"'Form 1SFS (Consolidated)'!M80","v":0},null,{"$f":"'Form 1SFS (Consolidated)'!O80","v":0}]
["Form 1SFS","Balance Sheet GEN/CON","1SFS13f","Sundry Assets - Other 2",{"$f":"'Form 1SFS (Consolidated)'!E81","v":0},null,{"$f":"'Form 1SFS (Consolidated)'!G81","v":0},null,{"$f":"'Form 1SFS (Consolidated)'!I80","v":0},null,{"$f":"'Form 1SFS (Consolidated)'!K80","v":0},null,{"$f":"'Form 1SFS (Consolidated)'!M81","v":0},null,{"$f":"'Form 1SFS (Consolidated)'!O81","v":0}]
["Form 1SFS","Balance Sheet GEN/CON","1SFS13g","Sundry Assets - Other 3",{"$f":"'Form 1SFS (Consolidated)'!E82","v":0},null,{"$f":"'Form 1SFS (Consolidated)'!G82","v":0},null,{"$f":"'Form 1SFS (Consolidated)'!I81","v":0},null,{"$f":"'Form 1SFS (Consolidated)'!K81","v":0},null,{"$f":"'Form 1SFS (Consolidated)'!M82","v":0},null,{"$f":"'Form 1SFS (Consolidated)'!O82","v":0}]
["Form 1SFS","Balance Sheet GEN/CON","1SFS14a","Letters of Credit",{"$f":"'Form 1SFS (Consolidated)'!E86","v":0},null,{"$f":"'Form 1SFS (Consolidated)'!G86","v":0},null,{"$f":"'Form 1SFS (Consolidated)'!I82","v":0},null,{"$f":"'Form 1SFS (Consolidated)'!K82","v":0},null,{"$f":"'Form 1SFS (Consolidated)'!M86","v":0},null,{"$f":"'Form 1SFS (Consolidated)'!O86","v":0}]
["Form 1SFS","Balance Sheet GEN/CON","1SFS14b","Guarantees",{"$f":"'Form 1SFS (Consolidated)'!E87","v":0},null,{"$f":"'Form 1SFS (Consolidated)'!G87","v":0},null,{"$f":"'Form 1SFS (Consolidated)'!I86","v":0},null,{"$f":"'Form 1SFS (Consolidated)'!K86","v":0},null,{"$f":"'Form 1SFS (Consolidated)'!M87","v":0},null,{"$f":"'Form 1SFS (Consolidated)'!O87","v":0}]
["Form 1SFS","Balance Sheet GEN/CON","1SFS14c","Other Instruments",{"$f":"'Form 1SFS (Consolidated)'!E88","v":0},null,{"$f":"'Form 1SFS (Consolidated)'!G88","v":0},null,{"$f":"'Form 1SFS (Consolidated)'!I87","v":0},null,{"$f":"'Form 1SFS (Consolidated)'!K87","v":0},null,{"$f":"'Form 1SFS (Consolidated)'!M88","v":0},null,{"$f":"'Form 1SFS (Consolidated)'!O88","v":0}]
["Form 1SFS","Balance Sheet GEN/CON","1SFS15","Total Assets",{"$f":"'Form 1SFS (Consolidated)'!E91","v":0},null,{"$f":"'Form 1SFS (Consolidated)'!G91","v":0},null,{"$f":"'Form 1SFS (Consolidated)'!I88","v":0},null,{"$f":"'Form 1SFS (Consolidated)'!K88","v":0}]
["Form 1SFS","Balance Sheet GEN/CON","1SFS16","Unearned Premium Reserve ",{"$f":"'Form 1SFS (Consolidated)'!E95","v":0},null,{"$f":"'Form 1SFS (Consolidated)'!G95","v":0},null,{"$f":"'Form 1SFS (Consolidated)'!I95","v":0},null,{"$f":"'Form 1SFS (Consolidated)'!K95","v":0},null,{"$f":"'Form 1SFS (Consolidated)'!M95","v":0},null,{"$f":"'Form 1SFS (Consolidated)'!O95","v":0}]
["Form 1SFS","Balance Sheet GEN/CON","1SFS17a","Loss Provision - Gross",{"$f":"'Form 1SFS (Consolidated)'!E98","v":0},null,{"$f":"'Form 1SFS (Consolidated)'!G98","v":0},null,{"$f":"'Form 1SFS (Consolidated)'!I98","v":0},null,{"$f":"'Form 1SFS (Consolidated)'!K98","v":0},null,{"$f":"'Form 1SFS (Consolidated)'!M98","v":0},null,{"$f":"'Form 1SFS (Consolidated)'!O98","v":0}]
["Form 1SFS","Balance Sheet GEN/CON","1SFS17bi","R/I Recoverable - Foreign Affiliates",{"$f":"'Form 1SFS (Consolidated)'!E100","v":0},null,{"$f":"'Form 1SFS (Consolidated)'!G100","v":0},null,{"$f":"'Form 1SFS (Consolidated)'!I100","v":0},null,{"$f":"'Form 1SFS (Consolidated)'!K100","v":0},null,{"$f":"'Form 1SFS (Consolidated)'!M100","v":0},null,{"$f":"'Form 1SFS (Consolidated)'!O100","v":0}]
["Form 1SFS","Balance Sheet GEN/CON","1SFS17bii","R/I Recoverable - Domestic Affiliates",{"$f":"'Form 1SFS (Consolidated)'!E101","v":0},null,{"$f":"'Form 1SFS (Consolidated)'!G101","v":0},null,{"$f":"'Form 1SFS (Consolidated)'!I101","v":0},null,{"$f":"'Form 1SFS (Consolidated)'!K101","v":0},null,{"$f":"'Form 1SFS (Consolidated)'!M101","v":0},null,{"$f":"'Form 1SFS (Consolidated)'!O101","v":0}]
["Form 1SFS","Balance Sheet GEN/CON","1SFS17biii","R/I Recoverable - Pools & Assoc.",{"$f":"'Form 1SFS (Consolidated)'!E102","v":0},null,{"$f":"'Form 1SFS (Consolidated)'!G102","v":0},null,{"$f":"'Form 1SFS (Consolidated)'!I102","v":0},null,{"$f":"'Form 1SFS (Consolidated)'!K102","v":0},null,{"$f":"'Form 1SFS (Consolidated)'!M102","v":0},null,{"$f":"'Form 1SFS (Consolidated)'!O102","v":0}]
["Form 1SFS","Balance Sheet GEN/CON","1SFS17biv","R/I Recoverable - All Other",{"$f":"'Form 1SFS (Consolidated)'!E103","v":0},null,{"$f":"'Form 1SFS (Consolidated)'!G103","v":0},null,{"$f":"'Form 1SFS (Consolidated)'!I103","v":0},null,{"$f":"'Form 1SFS (Consolidated)'!K103","v":0},null,{"$f":"'Form 1SFS (Consolidated)'!M103","v":0},null,{"$f":"'Form 1SFS (Consolidated)'!O103","v":0}]
["Form 1SFS","Balance Sheet GEN/CON","1SFS18","Other Insurance Reserves",{"$f":"'Form 1SFS (Consolidated)'!E107","v":0},null,{"$f":"'Form 1SFS (Consolidated)'!G107","v":0},null,{"$f":"'Form 1SFS (Consolidated)'!I107","v":0},null,{"$f":"'Form 1SFS (Consolidated)'!K107","v":0},null,{"$f":"'Form 1SFS (Consolidated)'!M107","v":0},null,{"$f":"'Form 1SFS (Consolidated)'!O107","v":0}]
["Form 1SFS","Balance Sheet GEN/CON","1SFS28","Contractual Liabilities from Digital Asset Issuance",{"$f":"'Form 1SFS (Consolidated)'!E113","v":0},null,{"$f":"'Form 1SFS (Consolidated)'!G113","v":0},null,{"$f":"'Form 1SFS (Consolidated)'!I113","v":0},null,{"$f":"'Form 1SFS (Consolidated)'!K113","v":0},null,{"$f":"'Form 1SFS (Consolidated)'!M113","v":0},null,{"$f":"'Form 1SFS (Consolidated)'!O113","v":0}]
["Form 1SFS","Balance Sheet GEN/CON","1SFS29","Commissions, Expenses and Taxes Payable",{"$f":"'Form 1SFS (Consolidated)'!E115","v":0},null,{"$f":"'Form 1SFS (Consolidated)'!G115","v":0},null,{"$f":"'Form 1SFS (Consolidated)'!I115","v":0},null,{"$f":"'Form 1SFS (Consolidated)'!K115","v":0},null,{"$f":"'Form 1SFS (Consolidated)'!M115","v":0},null,{"$f":"'Form 1SFS (Consolidated)'!O115","v":0}]
["Form 1SFS","Balance Sheet GEN/CON","1SFS30","Loans and Notes Payable",{"$f":"'Form 1SFS (Consolidated)'!E117","v":0},null,{"$f":"'Form 1SFS (Consolidated)'!G117","v":0},null,{"$f":"'Form 1SFS (Consolidated)'!I117","v":0},null,{"$f":"'Form 1SFS (Consolidated)'!K117","v":0},null,{"$f":"'Form 1SFS (Consolidated)'!M117","v":0},null,{"$f":"'Form 1SFS (Consolidated)'!O117","v":0}]
["Form 1SFS","Balance Sheet GEN/CON","1SFS31a","Income Taxes Payable",{"$f":"'Form 1SFS (Consolidated)'!E119","v":0},null,{"$f":"'Form 1SFS (Consolidated)'!G119","v":0},null,{"$f":"'Form 1SFS (Consolidated)'!I119","v":0},null,{"$f":"'Form 1SFS (Consolidated)'!K119","v":0},null,{"$f":"'Form 1SFS (Consolidated)'!M119","v":0},null,{"$f":"'Form 1SFS (Consolidated)'!O119","v":0}]
["Form 1SFS","Balance Sheet GEN/CON","1SFS32","Amounts Due to Affiliates",{"$f":"'Form 1SFS (Consolidated)'!E121","v":0},null,{"$f":"'Form 1SFS (Consolidated)'!G121","v":0},null,{"$f":"'Form 1SFS (Consolidated)'!I121","v":0},null,{"$f":"'Form 1SFS (Consolidated)'!K121","v":0},null,{"$f":"'Form 1SFS (Consolidated)'!M121","v":0},null,{"$f":"'Form 1SFS (Consolidated)'!O121","v":0}]
["Form 1SFS","Balance Sheet GEN/CON","1SFS33","Accounts Payable and Accrued Liabilities",{"$f":"'Form 1SFS (Consolidated)'!E123","v":0},null,{"$f":"'Form 1SFS (Consolidated)'!G123","v":0},null,{"$f":"'Form 1SFS (Consolidated)'!I123","v":0},null,{"$f":"'Form 1SFS (Consolidated)'!K123","v":0},null,{"$f":"'Form 1SFS (Consolidated)'!M123","v":0},null,{"$f":"'Form 1SFS (Consolidated)'!O123","v":0}]
["Form 1SFS","Balance Sheet GEN/CON","1SFS34","Digital Assets Held in Custody for Clients",{"$f":"'Form 1SFS (Consolidated)'!E125","v":0},null,{"$f":"'Form 1SFS (Consolidated)'!G125","v":0},null,{"$f":"'Form 1SFS (Consolidated)'!I125","v":0},null,{"$f":"'Form 1SFS (Consolidated)'!K125","v":0},null,{"$f":"'Form 1SFS (Consolidated)'!M125","v":0},null,{"$f":"'Form 1SFS (Consolidated)'!O125","v":0}]
["Form 1SFS","Balance Sheet GEN/CON","1SFS35","Dividends Payable",{"$f":"'Form 1SFS (Consolidated)'!E127","v":0},null,{"$f":"'Form 1SFS (Consolidated)'!G127","v":0},null,{"$f":"'Form 1SFS (Consolidated)'!I127","v":0},null,{"$f":"'Form 1SFS (Consolidated)'!K127","v":0},null,{"$f":"'Form 1SFS (Consolidated)'!M127","v":0},null,{"$f":"'Form 1SFS (Consolidated)'!O127","v":0}]
["Form 1SFS","Balance Sheet GEN/CON","1SFS36a","Sundry Liabilities - Derivative Instruments",{"$f":"'Form 1SFS (Consolidated)'!E130","v":0},null,{"$f":"'Form 1SFS (Consolidated)'!G130","v":0},null,{"$f":"'Form 1SFS (Consolidated)'!I130","v":0},null,{"$f":"'Form 1SFS (Consolidated)'!K130","v":0},null,{"$f":"'Form 1SFS (Consolidated)'!M130","v":0},null,{"$f":"'Form 1SFS (Consolidated)'!O130","v":0}]
["Form 1SFS","Balance Sheet GEN/CON","1SFS36b","Sundry Liabilities - Investments Purchased",{"$f":"'Form 1SFS (Consolidated)'!E131","v":0},null,{"$f":"'Form 1SFS (Consolidated)'!G131","v":0},null,{"$f":"'Form 1SFS (Consolidated)'!I131","v":0},null,{"$f":"'Form 1SFS (Consolidated)'!K132","v":0},null,{"$f":"'Form 1SFS (Consolidated)'!M131","v":0},null,{"$f":"'Form 1SFS (Consolidated)'!O131","v":0}]
["Form 1SFS","Balance Sheet GEN/CON","1SFS36c","Sundry Liabilities - Other 1",{"$f":"'Form 1SFS (Consolidated)'!E132","v":0},null,{"$f":"'Form 1SFS (Consolidated)'!G132","v":0},null,{"$f":"'Form 1SFS (Consolidated)'!I132","v":0},null,{"$f":"'Form 1SFS (Consolidated)'!K133","v":0},null,{"$f":"'Form 1SFS (Consolidated)'!M132","v":0},null,{"$f":"'Form 1SFS (Consolidated)'!O132","v":0}]
["Form 1SFS","Balance Sheet GEN/CON","1SFS36d","Sundry Liabilities - Other 2",{"$f":"'Form 1SFS (Consolidated)'!E133","v":0},null,{"$f":"'Form 1SFS (Consolidated)'!G133","v":0},null,{"$f":"'Form 1SFS (Consolidated)'!I133","v":0},null,{"$f":"'Form 1SFS (Consolidated)'!K134","v":0},null,{"$f":"'Form 1SFS (Consolidated)'!M133","v":0},null,{"$f":"'Form 1SFS (Consolidated)'!O133","v":0}]
["Form 1SFS","Balance Sheet GEN/CON","1SFS36e","Sundry Liabilities - Other 3",{"$f":"'Form 1SFS (Consolidated)'!E134","v":0},null,{"$f":"'Form 1SFS (Consolidated)'!G134","v":0},null,{"$f":"'Form 1SFS (Consolidated)'!I134","v":0},null,{"$f":"'Form 1SFS (Consolidated)'!K138","v":0},null,{"$f":"'Form 1SFS (Consolidated)'!M134","v":0},null,{"$f":"'Form 1SFS (Consolidated)'!O134","v":0}]
["Form 1SFS","Balance Sheet GEN/CON","1SFS37a","Letters of Credit",{"$f":"'Form 1SFS (Consolidated)'!E138","v":0},null,{"$f":"'Form 1SFS (Consolidated)'!G138","v":0},null,{"$f":"'Form 1SFS (Consolidated)'!I138","v":0},null,{"$f":"'Form 1SFS (Consolidated)'!K139","v":0},null,{"$f":"'Form 1SFS (Consolidated)'!M138","v":0},null,{"$f":"'Form 1SFS (Consolidated)'!O138","v":0}]
["Form 1SFS","Balance Sheet GEN/CON","1SFS37b","Guarantees",{"$f":"'Form 1SFS (Consolidated)'!E139","v":0},null,{"$f":"'Form 1SFS (Consolidated)'!G139","v":0},null,{"$f":"'Form 1SFS (Consolidated)'!I139","v":0},null,{"$f":"'Form 1SFS (Consolidated)'!K140","v":0},null,{"$f":"'Form 1SFS (Consolidated)'!M139","v":0},null,{"$f":"'Form 1SFS (Consolidated)'!O139","v":0}]
["Form 1SFS","Balance Sheet GEN/CON","1SFS37c","Other Instruments",{"$f":"'Form 1SFS (Consolidated)'!E140","v":0},null,{"$f":"'Form 1SFS (Consolidated)'!G140","v":0},null,{"$f":"'Form 1SFS (Consolidated)'!I140","v":0},null,null,null,{"$f":"'Form 1SFS (Consolidated)'!M140","v":0},null,{"$f":"'Form 1SFS (Consolidated)'!O140","v":0}]
["Form 1SFS","Balance Sheet GEN/CON",null,"Economic Capital & Surplus"]
[]
["Form 1SFS","Notes","Form 1SFS","Line 10 - Collaterized Balances",{"$f":"'Form 1SFS (Consolidated)'!M161","v":0},null,{"$f":"'Form 1SFS (Consolidated)'!O161","v":0}]
["Form 1SFS","Notes","Form 1SFS","Line 11(e) - Collaterized Balances",{"$f":"'Form 1SFS (Consolidated)'!M163","v":0}]
["Form 1SFS","Notes","Form 1SFS","Line 17cii - Collat. in Favour of Insurer",{"$f":"'Form 1SFS (Consolidated)'!M165","v":0}]
["Form 1SFS","Notes","Form 1SFS","Line 13 - Sundry Assets",{"$f":"'Form 1SFS (Consolidated)'!M167","v":0},null,{"$f":"'Form 1SFS (Consolidated)'!O167","v":0}]
["Form 1SFS","Notes","Form 1SFS","Line 15 - Policy. Oblig. - Cash",{"$f":"'Form 1SFS (Consolidated)'!M172","v":0},null,{"$f":"'Form 1SFS (Consolidated)'!O172","v":0}]
["Form 1SFS","Notes","Form 1SFS","Line 15 - Policy. Oblig. - Quoted. Inv.",{"$f":"'Form 1SFS (Consolidated)'!M173","v":0},null,{"$f":"'Form 1SFS (Consolidated)'!O173","v":0}]
["Form 1SFS","Notes","Form 1SFS","Line 15 - Policy. Oblig. - Unquoted. Inv.",{"$f":"'Form 1SFS (Consolidated)'!M174","v":0},null,{"$f":"'Form 1SFS (Consolidated)'!O174","v":0}]
["Form 1SFS","Notes","Form 1SFS","Line 15 - Policy. Oblig. - Funds Held",{"$f":"'Form 1SFS (Consolidated)'!M175","v":0},null,{"$f":"'Form 1SFS (Consolidated)'!O175","v":0}]
["Form 1SFS","Notes","Form 1SFS","Line 15 - Policy. Oblig. - Other Assets",{"$f":"'Form 1SFS (Consolidated)'!M176","v":0},null,{"$f":"'Form 1SFS (Consolidated)'!O176","v":0}]
["Form 1SFS","Notes","Form 1SFS","Line 15 - Policy. Oblig. - Total",{"$f":"'Form 1SFS (Consolidated)'!M177","v":0},null,{"$f":"'Form 1SFS (Consolidated)'!O177","v":0}]
["Form 1SFS","Notes","Form 1SFS","Line 15 - Other - Cash",{"$f":"'Form 1SFS (Consolidated)'!M182","v":0},null,{"$f":"'Form 1SFS (Consolidated)'!O182","v":0}]
["Form 1SFS","Notes","Form 1SFS","Line 15 - Other - Quoted. Inv.",{"$f":"'Form 1SFS (Consolidated)'!M183","v":0},null,{"$f":"'Form 1SFS (Consolidated)'!O183","v":0}]
["Form 1SFS","Notes","Form 1SFS","Line 15 - Other - Unquoted. Inv.",{"$f":"'Form 1SFS (Consolidated)'!M184","v":0},null,{"$f":"'Form 1SFS (Consolidated)'!O184","v":0}]
["Form 1SFS","Notes","Form 1SFS","Line 15 - Other - Other Assets",{"$f":"'Form 1SFS (Consolidated)'!M185","v":0},null,{"$f":"'Form 1SFS (Consolidated)'!O185","v":0}]
["Form 1SFS","Notes","Form 1SFS","Line 15 - Other - Total",{"$f":"'Form 1SFS (Consolidated)'!M186","v":0},null,{"$f":"'Form 1SFS (Consolidated)'!O186","v":0}]
["Form 1SFS","Notes","Form 1SFS","Line 36 - Sundry Liabilities",{"$f":"'Form 1SFS (Consolidated)'!M188","v":0},null,{"$f":"'Form 1SFS (Consolidated)'!O188","v":0}]
["Form 1SFS","Notes","Form 1SFS","Line 37 - LOC's & Guarantees",{"$f":"'Form 1SFS (Consolidated)'!M190","v":0},null,{"$f":"'Form 1SFS (Consolidated)'!O190","v":0}]
["Form 1SFS","Notes","Form 1SFS","Line 17 - Prior year note disclosure",{"$f":"'Form 1SFS (Consolidated)'!K193","v":0}]
["Form 1SFS","Notes","Form 1SFS","Gross Provision - Beg. Of Year",{"$f":"'Form 1SFS (Consolidated)'!M202","v":0},null,{"$f":"'Form 1SFS (Consolidated)'!O202","v":0}]
["Form 1SFS","Notes","Form 1SFS","R/I Recoverable - Beg. Of Year",{"$f":"'Form 1SFS (Consolidated)'!M204","v":0},null,{"$f":"'Form 1SFS (Consolidated)'!O204","v":0}]
["Form 1SFS","Notes","Form 1SFS","Net Provision - Beg. Of Year",{"$f":"'Form 1SFS (Consolidated)'!M206","v":0},null,{"$f":"'Form 1SFS (Consolidated)'!O206","v":0}]
["Form 1SFS","Notes","Form 1SFS","Acquisition / Sale of loss reserves (net):",{"$f":"'Form 1SFS (Consolidated)'!M208","v":0},null,{"$f":"'Form 1SFS (Consolidated)'!O208","v":0}]
["Form 1SFS","Notes","Form 1SFS","Net Losses Incurred - Current Year",{"$f":"'Form 1SFS (Consolidated)'!M212","v":0},null,{"$f":"'Form 1SFS (Consolidated)'!O212","v":0}]
["Form 1SFS","Notes","Form 1SFS","Net Losses Incurred - Prior Years",{"$f":"'Form 1SFS (Consolidated)'!M213","v":0},null,{"$f":"'Form 1SFS (Consolidated)'!O213","v":0}]
["Form 1SFS","Notes","Form 1SFS","Net Losses Incurred - Total",{"$f":"'Form 1SFS (Consolidated)'!M215","v":0},null,{"$f":"'Form 1SFS (Consolidated)'!O215","v":0}]
["Form 1SFS","Notes","Form 1SFS","Losses Paid - Current Year",{"$f":"'Form 1SFS (Consolidated)'!M219","v":0},null,{"$f":"'Form 1SFS (Consolidated)'!O219","v":0}]
["Form 1SFS","Notes","Form 1SFS","Losses Paid - Prior Years",{"$f":"'Form 1SFS (Consolidated)'!M220","v":0},null,{"$f":"'Form 1SFS (Consolidated)'!O220","v":0}]
["Form 1SFS","Notes","Form 1SFS","Losses Paid - Total",{"$f":"'Form 1SFS (Consolidated)'!M222","v":0},null,{"$f":"'Form 1SFS (Consolidated)'!O222","v":0}]
["Form 1SFS","Notes","Form 1SFS","Foreign Exchange and Other",{"$f":"'Form 1SFS (Consolidated)'!M224","v":0},null,{"$f":"'Form 1SFS (Consolidated)'!O224","v":0}]
["Form 1SFS","Notes","Form 1SFS","Net Provision - End Of Year",{"$f":"'Form 1SFS (Consolidated)'!M226","v":0},null,{"$f":"'Form 1SFS (Consolidated)'!O226","v":0}]
["Form 1SFS","Notes","Form 1SFS","R/I Recoverable - End Of Year",{"$f":"'Form 1SFS (Consolidated)'!M228","v":0},null,{"$f":"'Form 1SFS (Consolidated)'!O228","v":0}]
["Form 1SFS","Notes","Form 1SFS","Gross Provision - End Of Year",{"$f":"'Form 1SFS (Consolidated)'!M230","v":0},null,{"$f":"'Form 1SFS (Consolidated)'!O230","v":0}]
["Form 1SFS","Notes","Form 1SFS","Insurance - Gross - Open Balance",{"$f":"'Form 1SFS (Consolidated)'!E272","v":0},null,{"$f":"'Form 1SFS (Consolidated)'!E281","v":0}]
["Form 1SFS","Notes","Form 1SFS","Insurance - Gross - Terminations",{"$f":"'Form 1SFS (Consolidated)'!E273","v":0},null,{"$f":"'Form 1SFS (Consolidated)'!E282","v":0}]
["Form 1SFS","Notes","Form 1SFS","Insurance - Gross - New Business",{"$f":"'Form 1SFS (Consolidated)'!E274","v":0},null,{"$f":"'Form 1SFS (Consolidated)'!E283","v":0}]
["Form 1SFS","Notes","Form 1SFS","Insurance - Gross - Chg.In Force",{"$f":"'Form 1SFS (Consolidated)'!E275","v":0},null,{"$f":"'Form 1SFS (Consolidated)'!E284","v":0}]
["Form 1SFS","Notes","Form 1SFS","Insurance - Gross - Mgmt. Actions",{"$f":"'Form 1SFS (Consolidated)'!E276","v":0},null,{"$f":"'Form 1SFS (Consolidated)'!E285","v":0}]
["Form 1SFS","Notes","Form 1SFS","Insurance - Gross - FX",{"$f":"'Form 1SFS (Consolidated)'!E277","v":0},null,{"$f":"'Form 1SFS (Consolidated)'!E286","v":0}]
["Form 1SFS","Notes","Form 1SFS","Insurance - Gross - Closing Balance",{"$f":"'Form 1SFS (Consolidated)'!E278","v":0},null,{"$f":"'Form 1SFS (Consolidated)'!E287","v":0}]
["Form 1SFS","Notes","Form 1SFS","Insurance - R/I - Open Balance",{"$f":"'Form 1SFS (Consolidated)'!G272","v":0},null,{"$f":"'Form 1SFS (Consolidated)'!G281","v":0}]
["Form 1SFS","Notes","Form 1SFS","Insurance - R/I - Terminations",{"$f":"'Form 1SFS (Consolidated)'!G273","v":0},null,{"$f":"'Form 1SFS (Consolidated)'!G282","v":0}]
["Form 1SFS","Notes","Form 1SFS","Insurance - R/I - New Business",{"$f":"'Form 1SFS (Consolidated)'!G274","v":0},null,{"$f":"'Form 1SFS (Consolidated)'!G283","v":0}]
["Form 1SFS","Notes","Form 1SFS","Insurance - R/I - Chg.In Force",{"$f":"'Form 1SFS (Consolidated)'!G275","v":0},null,{"$f":"'Form 1SFS (Consolidated)'!G284","v":0}]
["Form 1SFS","Notes","Form 1SFS","Insurance - R/I - Mgmt. Actions",{"$f":"'Form 1SFS (Consolidated)'!G276","v":0},null,{"$f":"'Form 1SFS (Consolidated)'!G285","v":0}]
["Form 1SFS","Notes","Form 1SFS","Insurance - R/I - FX",{"$f":"'Form 1SFS (Consolidated)'!G277","v":0},null,{"$f":"'Form 1SFS (Consolidated)'!G286","v":0}]
["Form 1SFS","Notes","Form 1SFS","Insurance - R/I - Closing Balance",{"$f":"'Form 1SFS (Consolidated)'!G278","v":0},null,{"$f":"'Form 1SFS (Consolidated)'!G287","v":0}]
["Form 1SFS","Notes","Form 1SFS","Insurance - Net - Open Balance",{"$f":"'Form 1SFS (Consolidated)'!I272","v":0},null,{"$f":"'Form 1SFS (Consolidated)'!I281","v":0}]
["Form 1SFS","Notes","Form 1SFS","Insurance - Net - Terminations",{"$f":"'Form 1SFS (Consolidated)'!I273","v":0},null,{"$f":"'Form 1SFS (Consolidated)'!I282","v":0}]
["Form 1SFS","Notes","Form 1SFS","Insurance - Net - New Business",{"$f":"'Form 1SFS (Consolidated)'!I274","v":0},null,{"$f":"'Form 1SFS (Consolidated)'!I283","v":0}]
["Form 1SFS","Notes","Form 1SFS","Insurance - Net - Chg.In Force",{"$f":"'Form 1SFS (Consolidated)'!I275","v":0},null,{"$f":"'Form 1SFS (Consolidated)'!I284","v":0}]
["Form 1SFS","Notes","Form 1SFS","Insurance - Net - Mgmt. Actions",{"$f":"'Form 1SFS (Consolidated)'!I276","v":0},null,{"$f":"'Form 1SFS (Consolidated)'!I285","v":0}]
["Form 1SFS","Notes","Form 1SFS","Insurance - Net - FX",{"$f":"'Form 1SFS (Consolidated)'!I277","v":0},null,{"$f":"'Form 1SFS (Consolidated)'!I286","v":0}]
["Form 1SFS","Notes","Form 1SFS","Insurance - Net - Closing Balance",{"$f":"'Form 1SFS (Consolidated)'!I278","v":0},null,{"$f":"'Form 1SFS (Consolidated)'!I287","v":0}]
["Form 1SFS","Notes","Form 1SFS","Invmnt - Gross - Open Balance",{"$f":"'Form 1SFS (Consolidated)'!K272","v":0},null,{"$f":"'Form 1SFS (Consolidated)'!K281","v":0}]
["Form 1SFS","Notes","Form 1SFS","Invmnt - Gross - Terminations",{"$f":"'Form 1SFS (Consolidated)'!K273","v":0},null,{"$f":"'Form 1SFS (Consolidated)'!K282","v":0}]
["Form 1SFS","Notes","Form 1SFS","Invmnt - Gross - New Business",{"$f":"'Form 1SFS (Consolidated)'!K274","v":0},null,{"$f":"'Form 1SFS (Consolidated)'!K283","v":0}]
["Form 1SFS","Notes","Form 1SFS","Invmnt - Gross - Chg.In Force",{"$f":"'Form 1SFS (Consolidated)'!K275","v":0},null,{"$f":"'Form 1SFS (Consolidated)'!K284","v":0}]
["Form 1SFS","Notes","Form 1SFS","Invmnt - Gross - Mgmt. Actions",{"$f":"'Form 1SFS (Consolidated)'!K276","v":0},null,{"$f":"'Form 1SFS (Consolidated)'!K285","v":0}]
["Form 1SFS","Notes","Form 1SFS","Invmnt - Gross - FX",{"$f":"'Form 1SFS (Consolidated)'!K277","v":0},null,{"$f":"'Form 1SFS (Consolidated)'!K286","v":0}]
["Form 1SFS","Notes","Form 1SFS","Invmnt - Gross - Closing Balance",{"$f":"'Form 1SFS (Consolidated)'!K278","v":0},null,{"$f":"'Form 1SFS (Consolidated)'!K287","v":0}]
["Form 1SFS","Notes","Form 1SFS","Invmnt - R/I - Open Balance",{"$f":"'Form 1SFS (Consolidated)'!M272","v":0},null,{"$f":"'Form 1SFS (Consolidated)'!M281","v":0}]
["Form 1SFS","Notes","Form 1SFS","Invmnt - R/I - Terminations",{"$f":"'Form 1SFS (Consolidated)'!M273","v":0},null,{"$f":"'Form 1SFS (Consolidated)'!M282","v":0}]
["Form 1SFS","Notes","Form 1SFS","Invmnt - R/I - New Business",{"$f":"'Form 1SFS (Consolidated)'!M274","v":0},null,{"$f":"'Form 1SFS (Consolidated)'!M283","v":0}]
["Form 1SFS","Notes","Form 1SFS","Invmnt - R/I - Chg.In Force",{"$f":"'Form 1SFS (Consolidated)'!M275","v":0},null,{"$f":"'Form 1SFS (Consolidated)'!M284","v":0}]
["Form 1SFS","Notes","Form 1SFS","Invmnt - R/I - Mgmt. Actions",{"$f":"'Form 1SFS (Consolidated)'!M276","v":0},null,{"$f":"'Form 1SFS (Consolidated)'!M285","v":0}]
["Form 1SFS","Notes","Form 1SFS","Invmnt - R/I - FX",{"$f":"'Form 1SFS (Consolidated)'!M277","v":0},null,{"$f":"'Form 1SFS (Consolidated)'!M286","v":0}]
["Form 1SFS","Notes","Form 1SFS","Invmnt - R/I - Closing Balance",{"$f":"'Form 1SFS (Consolidated)'!M278","v":0},null,{"$f":"'Form 1SFS (Consolidated)'!M287","v":0}]
["Form 1SFS","Notes","Form 1SFS","Invmnt - Net - Open Balance",{"$f":"'Form 1SFS (Consolidated)'!O272","v":0},null,{"$f":"'Form 1SFS (Consolidated)'!O281","v":0}]
["Form 1SFS","Notes","Form 1SFS","Invmnt - Net - Terminations",{"$f":"'Form 1SFS (Consolidated)'!O273","v":0},null,{"$f":"'Form 1SFS (Consolidated)'!O282","v":0}]
["Form 1SFS","Notes","Form 1SFS","Invmnt - Net - New Business",{"$f":"'Form 1SFS (Consolidated)'!O274","v":0},null,{"$f":"'Form 1SFS (Consolidated)'!O283","v":0}]
["Form 1SFS","Notes","Form 1SFS","Invmnt - Net - Chg.In Force",{"$f":"'Form 1SFS (Consolidated)'!O275","v":0},null,{"$f":"'Form 1SFS (Consolidated)'!O284","v":0}]
["Form 1SFS","Notes","Form 1SFS","Invmnt - Net - Mgmt. Actions",{"$f":"'Form 1SFS (Consolidated)'!O276","v":0},null,{"$f":"'Form 1SFS (Consolidated)'!O285","v":0}]
["Form 1SFS","Notes","Form 1SFS","Invmnt - Net - FX",{"$f":"'Form 1SFS (Consolidated)'!O277","v":0},null,{"$f":"'Form 1SFS (Consolidated)'!O286","v":0}]
["Form 1SFS","Notes","Form 1SFS","Invmnt - Net - Closing Balance",{"$f":"'Form 1SFS (Consolidated)'!O278","v":0},null,{"$f":"'Form 1SFS (Consolidated)'!O287","v":0}]
[]
[null,null,null,"Line 36(i) - Any Other Liabilities"]
[null,null,null,"Line 36(f) - Details of Deposit Liab."]
[null,null,null,"Line 40 - Recon. 1SFS 40 to 40"]
[null,null,null,"Line 16c - Adj. Counterparty Default"]
[null,null,null,"Line 17ci - Adj. Counterparty Default"]
[null,null,null,"Line 16di - BBNI Premium"]
[null,null,null,"Line 16dii - BBNI Best Est. Prem"]
[null,null,null,"Line 17di - Loss Provision Discount"]
[null,null,null,"Line 17dii - Scenario Based Approach"]
[null,null,null,"Best Estimate Provision - Beg. Of Year"]
[null,null,null,"Unwind of Discount"]
[null,null,null,"Net Loss Paid - Prior Years"]
[null,null,null,"Net Losses Incurred - Prior Years"]
[null,null,null,"Best Estimate Provision - From PY"]
[null,null,null,"Net Losses Incurred - Current Year"]
[null,null,null,"Net Loss Paid - Current Year"]
[null,null,null,"Foreign Exchange and Other"]
[null,null,null,"Best Estimate Provision - From CY"]
[null,null,null,"Impact of Change in Discount Curve"]
[null,null,null,"Best Estimate Provision - End Of Year"]
[]
[null,null,null,"Income Statement - CONSOLIDATED"]
["Form 2SFS","Income Stmt Uncon GEN / CON","2SFS1a","Gross Premium Written - Direct",{"$f":"'Form 2SFS (Consolidated)'!E12","v":0},null,{"$f":"'Form 2SFS (Consolidated)'!G12","v":0},null,{"$f":"'Form 2SFS (Consolidated)'!I12","v":0},null,{"$f":"'Form 2SFS (Consolidated)'!K12","v":0},null,{"$f":"'Form 2SFS (Consolidated)'!M12","v":0},null,{"$f":"'Form 2SFS (Consolidated)'!O12","v":0}]
["Form 2SFS","Income Stmt Uncon GEN / CON","2SFS1b","Gross Premium Written - Assumed",{"$f":"'Form 2SFS (Consolidated)'!E13","v":0},null,{"$f":"'Form 2SFS (Consolidated)'!G13","v":0},null,{"$f":"'Form 2SFS (Consolidated)'!I13","v":0},null,{"$f":"'Form 2SFS (Consolidated)'!K13","v":0},null,{"$f":"'Form 2SFS (Consolidated)'!M13","v":0},null,{"$f":"'Form 2SFS (Consolidated)'!O13","v":0}]
["Form 2SFS","Income Stmt Uncon GEN / CON","2SFS2","R/I Premiums Ceded",{"$f":"'Form 2SFS (Consolidated)'!E16","v":0},null,{"$f":"'Form 2SFS (Consolidated)'!G16","v":0},null,{"$f":"'Form 2SFS (Consolidated)'!I16","v":0},null,{"$f":"'Form 2SFS (Consolidated)'!K16","v":0},null,{"$f":"'Form 2SFS (Consolidated)'!M16","v":0},null,{"$f":"'Form 2SFS (Consolidated)'!O16","v":0}]
["Form 2SFS","Income Stmt Uncon GEN / CON","2SFS4","Change in Unearned Premiums",{"$f":"'Form 2SFS (Consolidated)'!E20","v":0},null,{"$f":"'Form 2SFS (Consolidated)'!G20","v":0},null,{"$f":"'Form 2SFS (Consolidated)'!I20","v":0},null,{"$f":"'Form 2SFS (Consolidated)'!K20","v":0},null,{"$f":"'Form 2SFS (Consolidated)'!M20","v":0},null,{"$f":"'Form 2SFS (Consolidated)'!O20","v":0}]
["Form 2SFS","Income Stmt Uncon GEN / CON","2SFS6","Other Insurance Income",{"$f":"'Form 2SFS (Consolidated)'!E24","v":0},null,{"$f":"'Form 2SFS (Consolidated)'!G24","v":0},null,{"$f":"'Form 2SFS (Consolidated)'!I24","v":0},null,{"$f":"'Form 2SFS (Consolidated)'!K24","v":0},null,{"$f":"'Form 2SFS (Consolidated)'!M24","v":0},null,{"$f":"'Form 2SFS (Consolidated)'!O24","v":0}]
["Form 2SFS","Income Stmt Uncon GEN / CON","2SFS8","Net Losses Incurred",{"$f":"'Form 2SFS (Consolidated)'!E30","v":0},null,{"$f":"'Form 2SFS (Consolidated)'!G30","v":0},null,{"$f":"'Form 2SFS (Consolidated)'!I30","v":0},null,{"$f":"'Form 2SFS (Consolidated)'!K30","v":0},null,{"$f":"'Form 2SFS (Consolidated)'!M30","v":0},null,{"$f":"'Form 2SFS (Consolidated)'!O30","v":0}]
["Form 2SFS","Income Stmt Uncon GEN / CON","2SFS9","Commissions & Brokerage",{"$f":"'Form 2SFS (Consolidated)'!E32","v":0},null,{"$f":"'Form 2SFS (Consolidated)'!G32","v":0},null,{"$f":"'Form 2SFS (Consolidated)'!I32","v":0},null,{"$f":"'Form 2SFS (Consolidated)'!K32","v":0},null,{"$f":"'Form 2SFS (Consolidated)'!M32","v":0},null,{"$f":"'Form 2SFS (Consolidated)'!O32","v":0}]
["Form 2SFS","Income Stmt Uncon GEN / CON","2SFS30a","Operating Expense - G&A",{"$f":"'Form 2SFS (Consolidated)'!E41","v":0},null,{"$f":"'Form 2SFS (Consolidated)'!G41","v":0},null,{"$f":"'Form 2SFS (Consolidated)'!I41","v":0},null,{"$f":"'Form 2SFS (Consolidated)'!K41","v":0},null,{"$f":"'Form 2SFS (Consolidated)'!M41","v":0},null,{"$f":"'Form 2SFS (Consolidated)'!O41","v":0}]
["Form 2SFS","Income Stmt Uncon GEN / CON","2SFS30b","Operating Expense - Personnel Costs",{"$f":"'Form 2SFS (Consolidated)'!E42","v":0},null,{"$f":"'Form 2SFS (Consolidated)'!G42","v":0},null,{"$f":"'Form 2SFS (Consolidated)'!I42","v":0},null,{"$f":"'Form 2SFS (Consolidated)'!K42","v":0},null,{"$f":"'Form 2SFS (Consolidated)'!M42","v":0},null,{"$f":"'Form 2SFS (Consolidated)'!O42","v":0}]
["Form 2SFS","Income Stmt Uncon GEN / CON","2SFS30c","Operating Expense - Other",{"$f":"'Form 2SFS (Consolidated)'!E43","v":0},null,{"$f":"'Form 2SFS (Consolidated)'!G43","v":0},null,{"$f":"'Form 2SFS (Consolidated)'!I43","v":0},null,{"$f":"'Form 2SFS (Consolidated)'!K43","v":0},null,{"$f":"'Form 2SFS (Consolidated)'!M43","v":0},null,{"$f":"'Form 2SFS (Consolidated)'!O43","v":0}]
["Form 2SFS","Income Stmt Uncon GEN / CON","2SFS31","Investment Income",{"$f":"'Form 2SFS (Consolidated)'!E46","v":0},null,{"$f":"'Form 2SFS (Consolidated)'!G46","v":0},null,{"$f":"'Form 2SFS (Consolidated)'!I46","v":0},null,{"$f":"'Form 2SFS (Consolidated)'!K46","v":0},null,{"$f":"'Form 2SFS (Consolidated)'!M46","v":0},null,{"$f":"'Form 2SFS (Consolidated)'!O46","v":0}]
["Form 2SFS","Income Stmt Uncon GEN / CON","2SFS32","Other Income",{"$f":"'Form 2SFS (Consolidated)'!E48","v":0},null,{"$f":"'Form 2SFS (Consolidated)'!G48","v":0},null,{"$f":"'Form 2SFS (Consolidated)'!I48","v":0},null,{"$f":"'Form 2SFS (Consolidated)'!K48","v":0},null,{"$f":"'Form 2SFS (Consolidated)'!M48","v":0},null,{"$f":"'Form 2SFS (Consolidated)'!O48","v":0}]
["Form 2SFS","Income Stmt Uncon GEN / CON","2SFS34a","Income Tax - Current",{"$f":"'Form 2SFS (Consolidated)'!E53","v":0},null,{"$f":"'Form 2SFS (Consolidated)'!G53","v":0},null,{"$f":"'Form 2SFS (Consolidated)'!I53","v":0},null,{"$f":"'Form 2SFS (Consolidated)'!K53","v":0},null,{"$f":"'Form 2SFS (Consolidated)'!M53","v":0},null,{"$f":"'Form 2SFS (Consolidated)'!O53","v":0}]
["Form 2SFS","Income Stmt Uncon GEN / CON","2SFS34b","Income Tax - Deferred",{"$f":"'Form 2SFS (Consolidated)'!E54","v":0},null,{"$f":"'Form 2SFS (Consolidated)'!G54","v":0},null,{"$f":"'Form 2SFS (Consolidated)'!I54","v":0},null,{"$f":"'Form 2SFS (Consolidated)'!K54","v":0},null,{"$f":"'Form 2SFS (Consolidated)'!M54","v":0},null,{"$f":"'Form 2SFS (Consolidated)'!O54","v":0}]
["Form 2SFS","Income Stmt Uncon GEN / CON","2SFS36","Realized Gains/Losses",{"$f":"'Form 2SFS (Consolidated)'!E59","v":0},null,{"$f":"'Form 2SFS (Consolidated)'!G59","v":0},null,{"$f":"'Form 2SFS (Consolidated)'!I59","v":0},null,{"$f":"'Form 2SFS (Consolidated)'!K59","v":0},null,{"$f":"'Form 2SFS (Consolidated)'!M59","v":0},null,{"$f":"'Form 2SFS (Consolidated)'!O59","v":0}]
["Form 2SFS","Income Stmt Uncon GEN / CON","2SFS37","Interest Charges",{"$f":"'Form 2SFS (Consolidated)'!E61","v":0},null,{"$f":"'Form 2SFS (Consolidated)'!G61","v":0},null,{"$f":"'Form 2SFS (Consolidated)'!I61","v":0},null,{"$f":"'Form 2SFS (Consolidated)'!K61","v":0},null,{"$f":"'Form 2SFS (Consolidated)'!M61","v":0},null,{"$f":"'Form 2SFS (Consolidated)'!O61","v":0}]
[]
[null,null,null,"Statement of Capital & Surplus - CONSOLIDATED"]
["Form 8SFS","Stmt of C&S Uncon GEN / CON","8SFS1ai","Capital Stock",{"$f":"'Form 8SFS (Consolidated)'!G11","v":0},null,{"$f":"'Form 8SFS (Consolidated)'!I11","v":0},null,{"$f":"'Form 8SFS (Consolidated)'!K11","v":0},null,{"$f":"'Form 8SFS (Consolidated)'!M11","v":0}]
["Form 8SFS","Stmt of C&S Uncon GEN / CON",null,"Common Stock",null,null,null,null,null,null,null,null,{"$f":"'Form 8SFS (Consolidated)'!O12","v":0},null,{"$f":"'Form 8SFS (Consolidated)'!Q12","v":0}]
["Form 8SFS","Stmt of C&S Uncon GEN / CON","8SFS1aii","Preferred Shares",null,null,null,null,null,null,null,null,{"$f":"'Form 8SFS (Consolidated)'!O17","v":0},null,{"$f":"'Form 8SFS (Consolidated)'!Q17","v":0}]
["Form 8SFS","Stmt of C&S Uncon GEN / CON","8SFS1aiii","Treasury Shares",null,null,null,null,null,null,null,null,{"$f":"'Form 8SFS (Consolidated)'!O25","v":0},null,{"$f":"'Form 8SFS (Consolidated)'!Q25","v":0}]
["Form 8SFS","Stmt of C&S Uncon GEN / CON","8SFS1aiv","Tokenized Equity Shares",null,null,null,null,null,null,null,null,{"$f":"'Form 8SFS (Consolidated)'!O29","v":0},null,{"$f":"'Form 8SFS (Consolidated)'!Q29","v":0}]
["Form 8SFS","Stmt of C&S Uncon GEN / CON","8SFS1b","Contributed Surplus",{"$f":"'Form 8SFS (Consolidated)'!G31","v":0},null,{"$f":"'Form 8SFS (Consolidated)'!I31","v":0},null,{"$f":"'Form 8SFS (Consolidated)'!K31","v":0},null,{"$f":"'Form 8SFS (Consolidated)'!M31","v":0},null,{"$f":"'Form 8SFS (Consolidated)'!O31","v":0},null,{"$f":"'Form 8SFS (Consolidated)'!Q31","v":0}]
["Form 8SFS","Stmt of C&S Uncon GEN / CON","8SFS1ci","Other Fixed Capital - Hybrid Instruments",{"$f":"'Form 8SFS (Consolidated)'!G34","v":0},null,{"$f":"'Form 8SFS (Consolidated)'!I34","v":0},null,{"$f":"'Form 8SFS (Consolidated)'!K34","v":0},null,{"$f":"'Form 8SFS (Consolidated)'!M34","v":0},null,{"$f":"'Form 8SFS (Consolidated)'!O34","v":0},null,{"$f":"'Form 8SFS (Consolidated)'!Q34","v":0}]
["Form 8SFS","Stmt of C&S Uncon GEN / CON","8SFS1cii","Other Fixed Capital - Guarantees & Others",{"$f":"'Form 8SFS (Consolidated)'!G35","v":0},null,{"$f":"'Form 8SFS (Consolidated)'!I35","v":0},null,{"$f":"'Form 8SFS (Consolidated)'!K35","v":0},null,{"$f":"'Form 8SFS (Consolidated)'!M35","v":0},null,{"$f":"'Form 8SFS (Consolidated)'!O35","v":0},null,{"$f":"'Form 8SFS (Consolidated)'!Q35","v":0}]
["Form 8SFS","Stmt of C&S Uncon GEN / CON","8SFS2a","Statutory Surplus - Beginning of Year",{"$f":"'Form 8SFS (Consolidated)'!G42","v":0},null,{"$f":"'Form 8SFS (Consolidated)'!I42","v":0},null,{"$f":"'Form 8SFS (Consolidated)'!K42","v":0},null,{"$f":"'Form 8SFS (Consolidated)'!M42","v":0},null,{"$f":"'Form 8SFS (Consolidated)'!O42","v":0},null,{"$f":"'Form 8SFS (Consolidated)'!Q42","v":0}]
["Form 8SFS","Stmt of C&S Uncon GEN / CON","8SFS2c","Dividends",{"$f":"'Form 8SFS (Consolidated)'!G46","v":0},null,{"$f":"'Form 8SFS (Consolidated)'!I46","v":0},null,{"$f":"'Form 8SFS (Consolidated)'!K46","v":0},null,{"$f":"'Form 8SFS (Consolidated)'!M46","v":0},null,{"$f":"'Form 8SFS (Consolidated)'!O46","v":0},null,{"$f":"'Form 8SFS (Consolidated)'!Q46","v":0}]
["Form 8SFS","Stmt of C&S Uncon GEN / CON","8SFS2d","Unrealized Change in Investments",{"$f":"'Form 8SFS (Consolidated)'!G48","v":0},null,{"$f":"'Form 8SFS (Consolidated)'!I48","v":0},null,{"$f":"'Form 8SFS (Consolidated)'!K48","v":0},null,{"$f":"'Form 8SFS (Consolidated)'!M48","v":0},null,{"$f":"'Form 8SFS (Consolidated)'!O48","v":0},null,{"$f":"'Form 8SFS (Consolidated)'!Q48","v":0}]
["Form 8SFS","Stmt of C&S Uncon GEN / CON","8SFS2e","Change in Non-Admitted Assets",{"$f":"'Form 8SFS (Consolidated)'!G50","v":0},null,{"$f":"'Form 8SFS (Consolidated)'!I50","v":0},null,{"$f":"'Form 8SFS (Consolidated)'!K50","v":0},null,{"$f":"'Form 8SFS (Consolidated)'!M50","v":0},null,{"$f":"'Form 8SFS (Consolidated)'!O50","v":0},null,{"$f":"'Form 8SFS (Consolidated)'!Q50","v":0}]
["Form 8SFS","Stmt of C&S Uncon GEN / CON","8SFS2f","Change in Real Estate",{"$f":"'Form 8SFS (Consolidated)'!G52","v":0},null,{"$f":"'Form 8SFS (Consolidated)'!I52","v":0},null,{"$f":"'Form 8SFS (Consolidated)'!K52","v":0},null,{"$f":"'Form 8SFS (Consolidated)'!M52","v":0},null,{"$f":"'Form 8SFS (Consolidated)'!O52","v":0},null,{"$f":"'Form 8SFS (Consolidated)'!Q52","v":0}]
["Form 8SFS","Stmt of C&S Uncon GEN / CON","8SFS2g","Change in Other Statutory Capital",{"$f":"'Form 8SFS (Consolidated)'!G54","v":0},null,{"$f":"'Form 8SFS (Consolidated)'!I54","v":0},null,{"$f":"'Form 8SFS (Consolidated)'!K54","v":0},null,{"$f":"'Form 8SFS (Consolidated)'!M54","v":0},null,{"$f":"'Form 8SFS (Consolidated)'!O54","v":0},null,{"$f":"'Form 8SFS (Consolidated)'!Q54","v":0}]
["Form 8SFS","Stmt of C&S Uncon GEN / CON","8SFS3","Minority Interest",{"$f":"'Form 8SFS (Consolidated)'!G58","v":0},null,{"$f":"'Form 8SFS (Consolidated)'!I58","v":0},null,{"$f":"'Form 8SFS (Consolidated)'!K58","v":0},null,{"$f":"'Form 8SFS (Consolidated)'!M58","v":0},null,{"$f":"'Form 8SFS (Consolidated)'!O58","v":0},null,{"$f":"'Form 8SFS (Consolidated)'!Q58","v":0}]
[]
[null,null,null,"BSCR Schedules "]
["Sch II","Investments",null,"Corp. Bonds - BSCR Rate 0",{"$f":"'Schedule II (Unconsolidated)'!D12","v":0},null,{"$f":"'Schedule II (Unconsolidated)'!F12","v":0},null,null,null,null,null,{"$f":"'Schedule II'!D12","v":0},null,{"$f":"'Schedule II'!F12","v":0}]
["Sch II","Investments",null,"Corp. Bonds - BSCR Rate 1",{"$f":"'Schedule II (Unconsolidated)'!D13","v":0},null,{"$f":"'Schedule II (Unconsolidated)'!F13","v":0},null,null,null,null,null,{"$f":"'Schedule II'!D13","v":0},null,{"$f":"'Schedule II'!F13","v":0}]
["Sch II","Investments",null,"Corp. Bonds - BSCR Rate 2",{"$f":"'Schedule II (Unconsolidated)'!D14","v":0},null,{"$f":"'Schedule II (Unconsolidated)'!F14","v":0},null,null,null,null,null,{"$f":"'Schedule II'!D14","v":0},null,{"$f":"'Schedule II'!F14","v":0}]
["Sch II","Investments",null,"Corp. Bonds - BSCR Rate 3",{"$f":"'Schedule II (Unconsolidated)'!D15","v":0},null,{"$f":"'Schedule II (Unconsolidated)'!F15","v":0},null,null,null,null,null,{"$f":"'Schedule II'!D15","v":0},null,{"$f":"'Schedule II'!F15","v":0}]
["Sch II","Investments",null,"Corp. Bonds - BSCR Rate 4",{"$f":"'Schedule II (Unconsolidated)'!D16","v":0},null,{"$f":"'Schedule II (Unconsolidated)'!F16","v":0},null,null,null,null,null,{"$f":"'Schedule II'!D16","v":0},null,{"$f":"'Schedule II'!F16","v":0}]
["Sch II","Investments",null,"Corp. Bonds - BSCR Rate 5",{"$f":"'Schedule II (Unconsolidated)'!D17","v":0},null,{"$f":"'Schedule II (Unconsolidated)'!F17","v":0},null,null,null,null,null,{"$f":"'Schedule II'!D17","v":0},null,{"$f":"'Schedule II'!F17","v":0}]
["Sch II","Investments",null,"Corp. Bonds - BSCR Rate 6",{"$f":"'Schedule II (Unconsolidated)'!D18","v":0},null,{"$f":"'Schedule II (Unconsolidated)'!F18","v":0},null,null,null,null,null,{"$f":"'Schedule II'!D18","v":0},null,{"$f":"'Schedule II'!F18","v":0}]
["Sch II","Investments",null,"Corp. Bonds - BSCR Rate 7",{"$f":"'Schedule II (Unconsolidated)'!D19","v":0},null,{"$f":"'Schedule II (Unconsolidated)'!F19","v":0},null,null,null,null,null,{"$f":"'Schedule II'!D19","v":0},null,{"$f":"'Schedule II'!F19","v":0}]
["Sch II","Investments",null,"Corp. Bonds - BSCR Rate 8",{"$f":"'Schedule II (Unconsolidated)'!D20","v":0},null,{"$f":"'Schedule II (Unconsolidated)'!F20","v":0},null,null,null,null,null,{"$f":"'Schedule II'!D20","v":0},null,{"$f":"'Schedule II'!F20","v":0}]
["Sch II","Investments",null,"Residential MBS - BSCR Rate 1",{"$f":"'Schedule II (Unconsolidated)'!H13","v":0},null,{"$f":"'Schedule II (Unconsolidated)'!J13","v":0},null,null,null,null,null,{"$f":"'Schedule II'!H13","v":0},null,{"$f":"'Schedule II'!J13","v":0}]
["Sch II","Investments",null,"Residential MBS - BSCR Rate 2",{"$f":"'Schedule II (Unconsolidated)'!H14","v":0},null,{"$f":"'Schedule II (Unconsolidated)'!J14","v":0},null,null,null,null,null,{"$f":"'Schedule II'!H14","v":0},null,{"$f":"'Schedule II'!J14","v":0}]
["Sch II","Investments",null,"Residential MBS - BSCR Rate 3",{"$f":"'Schedule II (Unconsolidated)'!H15","v":0},null,{"$f":"'Schedule II (Unconsolidated)'!J15","v":0},null,null,null,null,null,{"$f":"'Schedule II'!H15","v":0},null,{"$f":"'Schedule II'!J15","v":0}]
["Sch II","Investments",null,"Residential MBS - BSCR Rate 4",{"$f":"'Schedule II (Unconsolidated)'!H16","v":0},null,{"$f":"'Schedule II (Unconsolidated)'!J16","v":0},null,null,null,null,null,{"$f":"'Schedule II'!H16","v":0},null,{"$f":"'Schedule II'!J16","v":0}]
["Sch II","Investments",null,"Residential MBS - BSCR Rate 5",{"$f":"'Schedule II (Unconsolidated)'!H17","v":0},null,{"$f":"'Schedule II (Unconsolidated)'!J17","v":0},null,null,null,null,null,{"$f":"'Schedule II'!H17","v":0},null,{"$f":"'Schedule II'!J17","v":0}]
["Sch II","Investments",null,"Residential MBS - BSCR Rate 6",{"$f":"'Schedule II (Unconsolidated)'!H18","v":0},null,{"$f":"'Schedule II (Unconsolidated)'!J18","v":0},null,null,null,null,null,{"$f":"'Schedule II'!H18","v":0},null,{"$f":"'Schedule II'!J18","v":0}]
["Sch II","Investments",null,"Residential MBS - BSCR Rate 7",{"$f":"'Schedule II (Unconsolidated)'!H19","v":0},null,{"$f":"'Schedule II (Unconsolidated)'!J19","v":0},null,null,null,null,null,{"$f":"'Schedule II'!H19","v":0},null,{"$f":"'Schedule II'!J19","v":0}]
["Sch II","Investments",null,"Residential MBS - BSCR Rate 8",{"$f":"'Schedule II (Unconsolidated)'!H20","v":0},null,{"$f":"'Schedule II (Unconsolidated)'!J20","v":0},null,null,null,null,null,{"$f":"'Schedule II'!H20","v":0},null,{"$f":"'Schedule II'!J20","v":0}]
["Sch II","Investments",null,"Commercial MBS - BSCR Rate 1",{"$f":"'Schedule II (Unconsolidated)'!L13","v":0},null,{"$f":"'Schedule II (Unconsolidated)'!N13","v":0},null,null,null,null,null,{"$f":"'Schedule II'!L13","v":0},null,{"$f":"'Schedule II'!N13","v":0}]
["Sch II","Investments",null,"Commercial MBS - BSCR Rate 2",{"$f":"'Schedule II (Unconsolidated)'!L14","v":0},null,{"$f":"'Schedule II (Unconsolidated)'!N14","v":0},null,null,null,null,null,{"$f":"'Schedule II'!L14","v":0},null,{"$f":"'Schedule II'!N14","v":0}]
["Sch II","Investments",null,"Commercial MBS - BSCR Rate 3",{"$f":"'Schedule II (Unconsolidated)'!L15","v":0},null,{"$f":"'Schedule II (Unconsolidated)'!N15","v":0},null,null,null,null,null,{"$f":"'Schedule II'!L15","v":0},null,{"$f":"'Schedule II'!N15","v":0}]
["Sch II","Investments",null,"Commercial MBS - BSCR Rate 4",{"$f":"'Schedule II (Unconsolidated)'!L16","v":0},null,{"$f":"'Schedule II (Unconsolidated)'!N16","v":0},null,null,null,null,null,{"$f":"'Schedule II'!L16","v":0},null,{"$f":"'Schedule II'!N16","v":0}]
["Sch II","Investments",null,"Commercial MBS - BSCR Rate 5",{"$f":"'Schedule II (Unconsolidated)'!L17","v":0},null,{"$f":"'Schedule II (Unconsolidated)'!N17","v":0},null,null,null,null,null,{"$f":"'Schedule II'!L17","v":0},null,{"$f":"'Schedule II'!N17","v":0}]
["Sch II","Investments",null,"Commercial MBS - BSCR Rate 6",{"$f":"'Schedule II (Unconsolidated)'!L18","v":0},null,{"$f":"'Schedule II (Unconsolidated)'!N18","v":0},null,null,null,null,null,{"$f":"'Schedule II'!L18","v":0},null,{"$f":"'Schedule II'!N18","v":0}]
["Sch II","Investments",null,"Commercial MBS - BSCR Rate 7",{"$f":"'Schedule II (Unconsolidated)'!L19","v":0},null,{"$f":"'Schedule II (Unconsolidated)'!N19","v":0},null,null,null,null,null,{"$f":"'Schedule II'!L19","v":0},null,{"$f":"'Schedule II'!N19","v":0}]
["Sch II","Investments",null,"Commercial MBS - BSCR Rate 8",{"$f":"'Schedule II (Unconsolidated)'!L20","v":0},null,{"$f":"'Schedule II (Unconsolidated)'!N20","v":0},null,null,null,null,null,{"$f":"'Schedule II'!L20","v":0},null,{"$f":"'Schedule II'!N20","v":0}]
["Sch II","Investments",null,"Bonds Mutual Fund - BSCR Rate 0",{"$f":"'Schedule II (Unconsolidated)'!P12","v":0},null,{"$f":"'Schedule II (Unconsolidated)'!R12","v":0},null,null,null,null,null,{"$f":"'Schedule II'!P12","v":0},null,{"$f":"'Schedule II'!R12","v":0}]
["Sch II","Investments",null,"Bonds Mutual Fund - BSCR Rate 1",{"$f":"'Schedule II (Unconsolidated)'!P13","v":0},null,{"$f":"'Schedule II (Unconsolidated)'!R13","v":0},null,null,null,null,null,{"$f":"'Schedule II'!P13","v":0},null,{"$f":"'Schedule II'!R13","v":0}]
["Sch II","Investments",null,"Bonds Mutual Fund - BSCR Rate 2",{"$f":"'Schedule II (Unconsolidated)'!P14","v":0},null,{"$f":"'Schedule II (Unconsolidated)'!R14","v":0},null,null,null,null,null,{"$f":"'Schedule II'!P14","v":0},null,{"$f":"'Schedule II'!R14","v":0}]
["Sch II","Investments",null,"Bonds Mutual Fund - BSCR Rate 3",{"$f":"'Schedule II (Unconsolidated)'!P15","v":0},null,{"$f":"'Schedule II (Unconsolidated)'!R15","v":0},null,null,null,null,null,{"$f":"'Schedule II'!P15","v":0},null,{"$f":"'Schedule II'!R15","v":0}]
["Sch II","Investments",null,"Bonds Mutual Fund - BSCR Rate 4",{"$f":"'Schedule II (Unconsolidated)'!P16","v":0},null,{"$f":"'Schedule II (Unconsolidated)'!R16","v":0},null,null,null,null,null,{"$f":"'Schedule II'!P16","v":0},null,{"$f":"'Schedule II'!R16","v":0}]
["Sch II","Investments",null,"Bonds Mutual Fund - BSCR Rate 5",{"$f":"'Schedule II (Unconsolidated)'!P17","v":0},null,{"$f":"'Schedule II (Unconsolidated)'!R17","v":0},null,null,null,null,null,{"$f":"'Schedule II'!P17","v":0},null,{"$f":"'Schedule II'!R17","v":0}]
["Sch II","Investments",null,"Bonds Mutual Fund - BSCR Rate 6",{"$f":"'Schedule II (Unconsolidated)'!P18","v":0},null,{"$f":"'Schedule II (Unconsolidated)'!R18","v":0},null,null,null,null,null,{"$f":"'Schedule II'!P18","v":0},null,{"$f":"'Schedule II'!R18","v":0}]
["Sch II","Investments",null,"Bonds Mutual Fund - BSCR Rate 7",{"$f":"'Schedule II (Unconsolidated)'!P19","v":0},null,{"$f":"'Schedule II (Unconsolidated)'!R19","v":0},null,null,null,null,null,{"$f":"'Schedule II'!P19","v":0},null,{"$f":"'Schedule II'!R19","v":0}]
["Sch II","Investments",null,"Bonds Mutual Fund - BSCR Rate 8",{"$f":"'Schedule II (Unconsolidated)'!P20","v":0},null,{"$f":"'Schedule II (Unconsolidated)'!R20","v":0},null,null,null,null,null,{"$f":"'Schedule II'!P20","v":0},null,{"$f":"'Schedule II'!R20","v":0}]
["Sch II","Investments",null,"Common Shares - Quoted",{"$f":"'Schedule II (Unconsolidated)'!D41","v":0},null,{"$f":"'Schedule II (Unconsolidated)'!F41","v":0},null,null,null,null,null,{"$f":"'Schedule II'!D41","v":0},null,{"$f":"'Schedule II'!F41","v":0}]
["Sch II","Investments",null,"Common Shares - Unquoted",{"$f":"'Schedule II (Unconsolidated)'!D42","v":0},null,{"$f":"'Schedule II (Unconsolidated)'!F42","v":0},null,null,null,null,null,{"$f":"'Schedule II'!D42","v":0},null,{"$f":"'Schedule II'!F42","v":0}]
["Sch II","Investments",null,"Preferred Shares - BSCR Rate 1",{"$f":"'Schedule II (Unconsolidated)'!H33","v":0},null,{"$f":"'Schedule II (Unconsolidated)'!J33","v":0},null,null,null,null,null,{"$f":"'Schedule II'!H33","v":0},null,{"$f":"'Schedule II'!J33","v":0}]
["Sch II","Investments",null,"Preferred Shares - BSCR Rate 2",{"$f":"'Schedule II (Unconsolidated)'!H34","v":0},null,{"$f":"'Schedule II (Unconsolidated)'!J34","v":0},null,null,null,null,null,{"$f":"'Schedule II'!H34","v":0},null,{"$f":"'Schedule II'!J34","v":0}]
["Sch II","Investments",null,"Preferred Shares - BSCR Rate 3",{"$f":"'Schedule II (Unconsolidated)'!H35","v":0},null,{"$f":"'Schedule II (Unconsolidated)'!J35","v":0},null,null,null,null,null,{"$f":"'Schedule II'!H35","v":0},null,{"$f":"'Schedule II'!J35","v":0}]
["Sch II","Investments",null,"Preferred Shares - BSCR Rate 4",{"$f":"'Schedule II (Unconsolidated)'!H36","v":0},null,{"$f":"'Schedule II (Unconsolidated)'!J36","v":0},null,null,null,null,null,{"$f":"'Schedule II'!H36","v":0},null,{"$f":"'Schedule II'!J36","v":0}]
["Sch II","Investments",null,"Preferred Shares - BSCR Rate 5",{"$f":"'Schedule II (Unconsolidated)'!H37","v":0},null,{"$f":"'Schedule II (Unconsolidated)'!J37","v":0},null,null,null,null,null,{"$f":"'Schedule II'!H37","v":0},null,{"$f":"'Schedule II'!J37","v":0}]
["Sch II","Investments",null,"Preferred Shares - BSCR Rate 6",{"$f":"'Schedule II (Unconsolidated)'!H38","v":0},null,{"$f":"'Schedule II (Unconsolidated)'!J38","v":0},null,null,null,null,null,{"$f":"'Schedule II'!H38","v":0},null,{"$f":"'Schedule II'!J38","v":0}]
["Sch II","Investments",null,"Preferred Shares - BSCR Rate 7",{"$f":"'Schedule II (Unconsolidated)'!H39","v":0},null,{"$f":"'Schedule II (Unconsolidated)'!J39","v":0},null,null,null,null,null,{"$f":"'Schedule II'!H39","v":0},null,{"$f":"'Schedule II'!J39","v":0}]
["Sch II","Investments",null,"Preferred Shares - BSCR Rate 8",{"$f":"'Schedule II (Unconsolidated)'!H40","v":0},null,{"$f":"'Schedule II (Unconsolidated)'!J40","v":0},null,null,null,null,null,{"$f":"'Schedule II'!H40","v":0},null,{"$f":"'Schedule II'!J40","v":0}]
["Sch II","Investments",null,"Equity Mutual Funds -  Quoted",{"$f":"'Schedule II (Unconsolidated)'!L41","v":0},null,{"$f":"'Schedule II (Unconsolidated)'!N41","v":0},null,null,null,null,null,{"$f":"'Schedule II'!L41","v":0},null,{"$f":"'Schedule II'!N41","v":0}]
["Sch II","Investments",null,"Equity Mutual Funds -  Unquoted",{"$f":"'Schedule II (Unconsolidated)'!L42","v":0},null,{"$f":"'Schedule II (Unconsolidated)'!N42","v":0},null,null,null,null,null,{"$f":"'Schedule II'!L42","v":0},null,{"$f":"'Schedule II'!N42","v":0}]
["Sch II","Investments",null,"Mortgage Loans - Insured",{"$f":"'Schedule II (Unconsolidated)'!D57","v":0},null,{"$f":"'Schedule II (Unconsolidated)'!F57","v":0},null,null,null,null,null,{"$f":"'Schedule II'!D57","v":0},null,{"$f":"'Schedule II'!F57","v":0}]
["Sch II","Investments",null,"Mortgage Loans - Other Commercial",{"$f":"'Schedule II (Unconsolidated)'!D58","v":0},null,{"$f":"'Schedule II (Unconsolidated)'!F58","v":0},null,null,null,null,null,{"$f":"'Schedule II'!D58","v":0},null,{"$f":"'Schedule II'!F58","v":0}]
["Sch II","Investments",null,"Mortgage Loans - Other Residential",{"$f":"'Schedule II (Unconsolidated)'!D59","v":0},null,{"$f":"'Schedule II (Unconsolidated)'!F59","v":0},null,null,null,null,null,{"$f":"'Schedule II'!D59","v":0},null,{"$f":"'Schedule II'!F59","v":0}]
["Sch II","Investments",null,"Mortgage Loans - Not Good Stand.",{"$f":"'Schedule II (Unconsolidated)'!D60","v":0},null,{"$f":"'Schedule II (Unconsolidated)'!F60","v":0},null,null,null,null,null,{"$f":"'Schedule II'!D60","v":0},null,{"$f":"'Schedule II'!F60","v":0}]
["Sch II","Investments",null,"NAIC Resid. MBS - Orig. Class 1",{"$f":"'Schedule II (Unconsolidated)'!L55","v":0},null,null,null,null,null,null,null,{"$f":"'Schedule II'!L55","v":0}]
["Sch II","Investments",null,"NAIC Resid. MBS - Orig. Class 2",{"$f":"'Schedule II (Unconsolidated)'!L56","v":0},null,null,null,null,null,null,null,{"$f":"'Schedule II'!L56","v":0}]
["Sch II","Investments",null,"NAIC Resid. MBS - Orig. Class 3",{"$f":"'Schedule II (Unconsolidated)'!L57","v":0},null,null,null,null,null,null,null,{"$f":"'Schedule II'!L57","v":0}]
["Sch II","Investments",null,"NAIC Resid. MBS - Orig. Class 4",{"$f":"'Schedule II (Unconsolidated)'!L58","v":0},null,null,null,null,null,null,null,{"$f":"'Schedule II'!L58","v":0}]
["Sch II","Investments",null,"NAIC Resid. MBS - Orig. Class 5",{"$f":"'Schedule II (Unconsolidated)'!L59","v":0},null,null,null,null,null,null,null,{"$f":"'Schedule II'!L59","v":0}]
["Sch II","Investments",null,"NAIC Resid. MBS - Orig. Class 6",{"$f":"'Schedule II (Unconsolidated)'!L60","v":0},null,null,null,null,null,null,null,{"$f":"'Schedule II'!L60","v":0}]
["Sch II","Investments",null,"NAIC Resid. MBS - Orig. Total",{"$f":"'Schedule II (Unconsolidated)'!L62","v":0},null,null,null,null,null,null,null,{"$f":"'Schedule II'!L62","v":0}]
["Sch II","Investments",null,"NAIC Resid. MBS - Rev. Class 1",{"$f":"'Schedule II (Unconsolidated)'!N55","v":0},null,null,null,null,null,null,null,{"$f":"'Schedule II'!N55","v":0}]
["Sch II","Investments",null,"NAIC Resid. MBS - Rev. Class 2",{"$f":"'Schedule II (Unconsolidated)'!N56","v":0},null,null,null,null,null,null,null,{"$f":"'Schedule II'!N56","v":0}]
["Sch II","Investments",null,"NAIC Resid. MBS - Rev. Class 3",{"$f":"'Schedule II (Unconsolidated)'!N57","v":0},null,null,null,null,null,null,null,{"$f":"'Schedule II'!N57","v":0}]
["Sch II","Investments",null,"NAIC Resid. MBS - Rev. Class 4",{"$f":"'Schedule II (Unconsolidated)'!N58","v":0},null,null,null,null,null,null,null,{"$f":"'Schedule II'!N58","v":0}]
["Sch II","Investments",null,"NAIC Resid. MBS - Rev. Class 5",{"$f":"'Schedule II (Unconsolidated)'!N59","v":0},null,null,null,null,null,null,null,{"$f":"'Schedule II'!N59","v":0}]
["Sch II","Investments",null,"NAIC Resid. MBS - Rev. Class 6",{"$f":"'Schedule II (Unconsolidated)'!N60","v":0},null,null,null,null,null,null,null,{"$f":"'Schedule II'!N60","v":0}]
["Sch II","Investments",null,"NAIC Resid. MBS - Rev. Total",{"$f":"'Schedule II (Unconsolidated)'!N62","v":0},null,null,null,null,null,null,null,{"$f":"'Schedule II'!N62","v":0}]
["Sch II","Investments",null,"NAIC Comm. MBS - Orig. Class 1",{"$f":"'Schedule II (Unconsolidated)'!P55","v":0},null,null,null,null,null,null,null,{"$f":"'Schedule II'!P55","v":0}]
["Sch II","Investments",null,"NAIC Comm. MBS - Orig. Class 2",{"$f":"'Schedule II (Unconsolidated)'!P56","v":0},null,null,null,null,null,null,null,{"$f":"'Schedule II'!P56","v":0}]
["Sch II","Investments",null,"NAIC Comm. MBS - Orig. Class 3",{"$f":"'Schedule II (Unconsolidated)'!P57","v":0},null,null,null,null,null,null,null,{"$f":"'Schedule II'!P57","v":0}]
["Sch II","Investments",null,"NAIC Comm. MBS - Orig. Class 4",{"$f":"'Schedule II (Unconsolidated)'!P58","v":0},null,null,null,null,null,null,null,{"$f":"'Schedule II'!P58","v":0}]
["Sch II","Investments",null,"NAIC Comm. MBS - Orig. Class 5",{"$f":"'Schedule II (Unconsolidated)'!P59","v":0},null,null,null,null,null,null,null,{"$f":"'Schedule II'!P59","v":0}]
["Sch II","Investments",null,"NAIC Comm. MBS - Orig. Class 6",{"$f":"'Schedule II (Unconsolidated)'!P60","v":0},null,null,null,null,null,null,null,{"$f":"'Schedule II'!P60","v":0}]
["Sch II","Investments",null,"NAIC Comm. MBS - Orig. Total",{"$f":"'Schedule II (Unconsolidated)'!P62","v":0},null,null,null,null,null,null,null,{"$f":"'Schedule II'!P62","v":0}]
["Sch II","Investments",null,"NAIC Comm. MBS - Rev. Class 1",{"$f":"'Schedule II (Unconsolidated)'!R55","v":0},null,null,null,null,null,null,null,{"$f":"'Schedule II'!R55","v":0}]
["Sch II","Investments",null,"NAIC Comm. MBS - Rev. Class 2",{"$f":"'Schedule II (Unconsolidated)'!R56","v":0},null,null,null,null,null,null,null,{"$f":"'Schedule II'!R56","v":0}]
["Sch II","Investments",null,"NAIC Comm. MBS - Rev. Class 3",{"$f":"'Schedule II (Unconsolidated)'!R57","v":0},null,null,null,null,null,null,null,{"$f":"'Schedule II'!R57","v":0}]
["Sch II","Investments",null,"NAIC Comm. MBS - Rev. Class 4",{"$f":"'Schedule II (Unconsolidated)'!R58","v":0},null,null,null,null,null,null,null,{"$f":"'Schedule II'!R58","v":0}]
["Sch II","Investments",null,"NAIC Comm. MBS - Rev. Class 5",{"$f":"'Schedule II (Unconsolidated)'!R59","v":0},null,null,null,null,null,null,null,{"$f":"'Schedule II'!R59","v":0}]
["Sch II","Investments",null,"NAIC Comm. MBS - Rev. Class 6",{"$f":"'Schedule II (Unconsolidated)'!R60","v":0},null,null,null,null,null,null,null,{"$f":"'Schedule II'!R60","v":0}]
["Sch II","Investments",null,"NAIC Comm. MBS - Rev. Total",{"$f":"'Schedule II (Unconsolidated)'!R62","v":0},null,null,null,null,null,null,null,{"$f":"'Schedule II'!R62","v":0}]
[]
["Sch IIA","Funds Held",null,"Corp. Bonds - BSCR Rate 0",{"$f":"'Schedule IIA (Unconsolidated)'!D12","v":0},null,{"$f":"'Schedule IIA (Unconsolidated)'!F12","v":0},null,null,null,null,null,{"$f":"'Schedule IIA'!D12","v":0},null,{"$f":"'Schedule IIA'!F12","v":0}]
["Sch IIA","Funds Held",null,"Corp. Bonds - BSCR Rate 1",{"$f":"'Schedule IIA (Unconsolidated)'!D13","v":0},null,{"$f":"'Schedule IIA (Unconsolidated)'!F13","v":0},null,null,null,null,null,{"$f":"'Schedule IIA'!D13","v":0},null,{"$f":"'Schedule IIA'!F13","v":0}]
["Sch IIA","Funds Held",null,"Corp. Bonds - BSCR Rate 2",{"$f":"'Schedule IIA (Unconsolidated)'!D14","v":0},null,{"$f":"'Schedule IIA (Unconsolidated)'!F14","v":0},null,null,null,null,null,{"$f":"'Schedule IIA'!D14","v":0},null,{"$f":"'Schedule IIA'!F14","v":0}]
["Sch IIA","Funds Held",null,"Corp. Bonds - BSCR Rate 3",{"$f":"'Schedule IIA (Unconsolidated)'!D15","v":0},null,{"$f":"'Schedule IIA (Unconsolidated)'!F15","v":0},null,null,null,null,null,{"$f":"'Schedule IIA'!D15","v":0},null,{"$f":"'Schedule IIA'!F15","v":0}]
["Sch IIA","Funds Held",null,"Corp. Bonds - BSCR Rate 4",{"$f":"'Schedule IIA (Unconsolidated)'!D16","v":0},null,{"$f":"'Schedule IIA (Unconsolidated)'!F16","v":0},null,null,null,null,null,{"$f":"'Schedule IIA'!D16","v":0},null,{"$f":"'Schedule IIA'!F16","v":0}]
["Sch IIA","Funds Held",null,"Corp. Bonds - BSCR Rate 5",{"$f":"'Schedule IIA (Unconsolidated)'!D17","v":0},null,{"$f":"'Schedule IIA (Unconsolidated)'!F17","v":0},null,null,null,null,null,{"$f":"'Schedule IIA'!D17","v":0},null,{"$f":"'Schedule IIA'!F17","v":0}]
["Sch IIA","Funds Held",null,"Corp. Bonds - BSCR Rate 6",{"$f":"'Schedule IIA (Unconsolidated)'!D18","v":0},null,{"$f":"'Schedule IIA (Unconsolidated)'!F18","v":0},null,null,null,null,null,{"$f":"'Schedule IIA'!D18","v":0},null,{"$f":"'Schedule IIA'!F18","v":0}]
["Sch IIA","Funds Held",null,"Corp. Bonds - BSCR Rate 7",{"$f":"'Schedule IIA (Unconsolidated)'!D19","v":0},null,{"$f":"'Schedule IIA (Unconsolidated)'!F19","v":0},null,null,null,null,null,{"$f":"'Schedule IIA'!D19","v":0},null,{"$f":"'Schedule IIA'!F19","v":0}]
["Sch IIA","Funds Held",null,"Corp. Bonds - BSCR Rate 8",{"$f":"'Schedule IIA (Unconsolidated)'!D20","v":0},null,{"$f":"'Schedule IIA (Unconsolidated)'!F20","v":0},null,null,null,null,null,{"$f":"'Schedule IIA'!D20","v":0},null,{"$f":"'Schedule IIA'!F20","v":0}]
["Sch IIA","Funds Held",null,"Residential MBS - BSCR Rate 1",{"$f":"'Schedule IIA (Unconsolidated)'!H13","v":0},null,{"$f":"'Schedule IIA (Unconsolidated)'!J13","v":0},null,null,null,null,null,{"$f":"'Schedule IIA'!H13","v":0},null,{"$f":"'Schedule IIA'!J13","v":0}]
["Sch IIA","Funds Held",null,"Residential MBS - BSCR Rate 2",{"$f":"'Schedule IIA (Unconsolidated)'!H14","v":0},null,{"$f":"'Schedule IIA (Unconsolidated)'!J14","v":0},null,null,null,null,null,{"$f":"'Schedule IIA'!H14","v":0},null,{"$f":"'Schedule IIA'!J14","v":0}]
["Sch IIA","Funds Held",null,"Residential MBS - BSCR Rate 3",{"$f":"'Schedule IIA (Unconsolidated)'!H15","v":0},null,{"$f":"'Schedule IIA (Unconsolidated)'!J15","v":0},null,null,null,null,null,{"$f":"'Schedule IIA'!H15","v":0},null,{"$f":"'Schedule IIA'!J15","v":0}]
["Sch IIA","Funds Held",null,"Residential MBS - BSCR Rate 4",{"$f":"'Schedule IIA (Unconsolidated)'!H16","v":0},null,{"$f":"'Schedule IIA (Unconsolidated)'!J16","v":0},null,null,null,null,null,{"$f":"'Schedule IIA'!H16","v":0},null,{"$f":"'Schedule IIA'!J16","v":0}]
["Sch IIA","Funds Held",null,"Residential MBS - BSCR Rate 5",{"$f":"'Schedule IIA (Unconsolidated)'!H17","v":0},null,{"$f":"'Schedule IIA (Unconsolidated)'!J17","v":0},null,null,null,null,null,{"$f":"'Schedule IIA'!H17","v":0},null,{"$f":"'Schedule IIA'!J17","v":0}]
["Sch IIA","Funds Held",null,"Residential MBS - BSCR Rate 6",{"$f":"'Schedule IIA (Unconsolidated)'!H18","v":0},null,{"$f":"'Schedule IIA (Unconsolidated)'!J18","v":0},null,null,null,null,null,{"$f":"'Schedule IIA'!H18","v":0},null,{"$f":"'Schedule IIA'!J18","v":0}]
["Sch IIA","Funds Held",null,"Residential MBS - BSCR Rate 7",{"$f":"'Schedule IIA (Unconsolidated)'!H19","v":0},null,{"$f":"'Schedule IIA (Unconsolidated)'!J19","v":0},null,null,null,null,null,{"$f":"'Schedule IIA'!H19","v":0},null,{"$f":"'Schedule IIA'!J19","v":0}]
["Sch IIA","Funds Held",null,"Residential MBS - BSCR Rate 8",{"$f":"'Schedule IIA (Unconsolidated)'!H20","v":0},null,{"$f":"'Schedule IIA (Unconsolidated)'!J20","v":0},null,null,null,null,null,{"$f":"'Schedule IIA'!H20","v":0},null,{"$f":"'Schedule IIA'!J20","v":0}]
["Sch IIA","Funds Held",null,"Commercial MBS - BSCR Rate 1",{"$f":"'Schedule IIA (Unconsolidated)'!L13","v":0},null,{"$f":"'Schedule IIA (Unconsolidated)'!N13","v":0},null,null,null,null,null,{"$f":"'Schedule IIA'!L13","v":0},null,{"$f":"'Schedule IIA'!N13","v":0}]
["Sch IIA","Funds Held",null,"Commercial MBS - BSCR Rate 2",{"$f":"'Schedule IIA (Unconsolidated)'!L14","v":0},null,{"$f":"'Schedule IIA (Unconsolidated)'!N14","v":0},null,null,null,null,null,{"$f":"'Schedule IIA'!L14","v":0},null,{"$f":"'Schedule IIA'!N14","v":0}]
["Sch IIA","Funds Held",null,"Commercial MBS - BSCR Rate 3",{"$f":"'Schedule IIA (Unconsolidated)'!L15","v":0},null,{"$f":"'Schedule IIA (Unconsolidated)'!N15","v":0},null,null,null,null,null,{"$f":"'Schedule IIA'!L15","v":0},null,{"$f":"'Schedule IIA'!N15","v":0}]
["Sch IIA","Funds Held",null,"Commercial MBS - BSCR Rate 4",{"$f":"'Schedule IIA (Unconsolidated)'!L16","v":0},null,{"$f":"'Schedule IIA (Unconsolidated)'!N16","v":0},null,null,null,null,null,{"$f":"'Schedule IIA'!L16","v":0},null,{"$f":"'Schedule IIA'!N16","v":0}]
["Sch IIA","Funds Held",null,"Commercial MBS - BSCR Rate 5",{"$f":"'Schedule IIA (Unconsolidated)'!L17","v":0},null,{"$f":"'Schedule IIA (Unconsolidated)'!N17","v":0},null,null,null,null,null,{"$f":"'Schedule IIA'!L17","v":0},null,{"$f":"'Schedule IIA'!N17","v":0}]
["Sch IIA","Funds Held",null,"Commercial MBS - BSCR Rate 6",{"$f":"'Schedule IIA (Unconsolidated)'!L18","v":0},null,{"$f":"'Schedule IIA (Unconsolidated)'!N18","v":0},null,null,null,null,null,{"$f":"'Schedule IIA'!L18","v":0},null,{"$f":"'Schedule IIA'!N18","v":0}]
["Sch IIA","Funds Held",null,"Commercial MBS - BSCR Rate 7",{"$f":"'Schedule IIA (Unconsolidated)'!L19","v":0},null,{"$f":"'Schedule IIA (Unconsolidated)'!N19","v":0},null,null,null,null,null,{"$f":"'Schedule IIA'!L19","v":0},null,{"$f":"'Schedule IIA'!N19","v":0}]
["Sch IIA","Funds Held",null,"Commercial MBS - BSCR Rate 8",{"$f":"'Schedule IIA (Unconsolidated)'!L20","v":0},null,{"$f":"'Schedule IIA (Unconsolidated)'!N20","v":0},null,null,null,null,null,{"$f":"'Schedule IIA'!L20","v":0},null,{"$f":"'Schedule IIA'!N20","v":0}]
["Sch IIA","Funds Held",null,"Bonds Mutual Fund - BSCR Rate 0",{"$f":"'Schedule IIA (Unconsolidated)'!P12","v":0},null,{"$f":"'Schedule IIA (Unconsolidated)'!R12","v":0},null,null,null,null,null,{"$f":"'Schedule IIA'!P12","v":0},null,{"$f":"'Schedule IIA'!R12","v":0}]
["Sch IIA","Funds Held",null,"Bonds Mutual Fund - BSCR Rate 1",{"$f":"'Schedule IIA (Unconsolidated)'!P13","v":0},null,{"$f":"'Schedule IIA (Unconsolidated)'!R13","v":0},null,null,null,null,null,{"$f":"'Schedule IIA'!P13","v":0},null,{"$f":"'Schedule IIA'!R13","v":0}]
["Sch IIA","Funds Held",null,"Bonds Mutual Fund - BSCR Rate 2",{"$f":"'Schedule IIA (Unconsolidated)'!P14","v":0},null,{"$f":"'Schedule IIA (Unconsolidated)'!R14","v":0},null,null,null,null,null,{"$f":"'Schedule IIA'!P14","v":0},null,{"$f":"'Schedule IIA'!R14","v":0}]
["Sch IIA","Funds Held",null,"Bonds Mutual Fund - BSCR Rate 3",{"$f":"'Schedule IIA (Unconsolidated)'!P15","v":0},null,{"$f":"'Schedule IIA (Unconsolidated)'!R15","v":0},null,null,null,null,null,{"$f":"'Schedule IIA'!P15","v":0},null,{"$f":"'Schedule IIA'!R15","v":0}]
["Sch IIA","Funds Held",null,"Bonds Mutual Fund - BSCR Rate 4",{"$f":"'Schedule IIA (Unconsolidated)'!P16","v":0},null,{"$f":"'Schedule IIA (Unconsolidated)'!R16","v":0},null,null,null,null,null,{"$f":"'Schedule IIA'!P16","v":0},null,{"$f":"'Schedule IIA'!R16","v":0}]
["Sch IIA","Funds Held",null,"Bonds Mutual Fund - BSCR Rate 5",{"$f":"'Schedule IIA (Unconsolidated)'!P17","v":0},null,{"$f":"'Schedule IIA (Unconsolidated)'!R17","v":0},null,null,null,null,null,{"$f":"'Schedule IIA'!P17","v":0},null,{"$f":"'Schedule IIA'!R17","v":0}]
["Sch IIA","Funds Held",null,"Bonds Mutual Fund - BSCR Rate 6",{"$f":"'Schedule IIA (Unconsolidated)'!P18","v":0},null,{"$f":"'Schedule IIA (Unconsolidated)'!R18","v":0},null,null,null,null,null,{"$f":"'Schedule IIA'!P18","v":0},null,{"$f":"'Schedule IIA'!R18","v":0}]
["Sch IIA","Funds Held",null,"Bonds Mutual Fund - BSCR Rate 7",{"$f":"'Schedule IIA (Unconsolidated)'!P19","v":0},null,{"$f":"'Schedule IIA (Unconsolidated)'!R19","v":0},null,null,null,null,null,{"$f":"'Schedule IIA'!P19","v":0},null,{"$f":"'Schedule IIA'!R19","v":0}]
["Sch IIA","Funds Held",null,"Bonds Mutual Fund - BSCR Rate 8",{"$f":"'Schedule IIA (Unconsolidated)'!P20","v":0},null,{"$f":"'Schedule IIA (Unconsolidated)'!R20","v":0},null,null,null,null,null,{"$f":"'Schedule IIA'!P20","v":0},null,{"$f":"'Schedule IIA'!R20","v":0}]
["Sch IIA","Funds Held",null,"Common Shares - Quoted",{"$f":"'Schedule IIA (Unconsolidated)'!D41","v":0},null,{"$f":"'Schedule IIA (Unconsolidated)'!F41","v":0},null,null,null,null,null,{"$f":"'Schedule IIA'!D41","v":0},null,{"$f":"'Schedule IIA'!F41","v":0}]
["Sch IIA","Funds Held",null,"Common Shares - Unquoted",{"$f":"'Schedule IIA (Unconsolidated)'!D42","v":0},null,{"$f":"'Schedule IIA (Unconsolidated)'!F42","v":0},null,null,null,null,null,{"$f":"'Schedule IIA'!D42","v":0},null,{"$f":"'Schedule IIA'!F42","v":0}]
["Sch IIA","Funds Held",null,"Preferred Shares - BSCR Rate 1",{"$f":"'Schedule IIA (Unconsolidated)'!H33","v":0},null,{"$f":"'Schedule IIA (Unconsolidated)'!J33","v":0},null,null,null,null,null,{"$f":"'Schedule IIA'!H33","v":0},null,{"$f":"'Schedule IIA'!J33","v":0}]
["Sch IIA","Funds Held",null,"Preferred Shares - BSCR Rate 2",{"$f":"'Schedule IIA (Unconsolidated)'!H34","v":0},null,{"$f":"'Schedule IIA (Unconsolidated)'!J34","v":0},null,null,null,null,null,{"$f":"'Schedule IIA'!H34","v":0},null,{"$f":"'Schedule IIA'!J34","v":0}]
["Sch IIA","Funds Held",null,"Preferred Shares - BSCR Rate 3",{"$f":"'Schedule IIA (Unconsolidated)'!H35","v":0},null,{"$f":"'Schedule IIA (Unconsolidated)'!J35","v":0},null,null,null,null,null,{"$f":"'Schedule IIA'!H35","v":0},null,{"$f":"'Schedule IIA'!J35","v":0}]
["Sch IIA","Funds Held",null,"Preferred Shares - BSCR Rate 4",{"$f":"'Schedule IIA (Unconsolidated)'!H36","v":0},null,{"$f":"'Schedule IIA (Unconsolidated)'!J36","v":0},null,null,null,null,null,{"$f":"'Schedule IIA'!H36","v":0},null,{"$f":"'Schedule IIA'!J36","v":0}]
["Sch IIA","Funds Held",null,"Preferred Shares - BSCR Rate 5",{"$f":"'Schedule IIA (Unconsolidated)'!H37","v":0},null,{"$f":"'Schedule IIA (Unconsolidated)'!J37","v":0},null,null,null,null,null,{"$f":"'Schedule IIA'!H37","v":0},null,{"$f":"'Schedule IIA'!J37","v":0}]
["Sch IIA","Funds Held",null,"Preferred Shares - BSCR Rate 6",{"$f":"'Schedule IIA (Unconsolidated)'!H38","v":0},null,{"$f":"'Schedule IIA (Unconsolidated)'!J38","v":0},null,null,null,null,null,{"$f":"'Schedule IIA'!H38","v":0},null,{"$f":"'Schedule IIA'!J38","v":0}]
["Sch IIA","Funds Held",null,"Preferred Shares - BSCR Rate 7",{"$f":"'Schedule IIA (Unconsolidated)'!H39","v":0},null,{"$f":"'Schedule IIA (Unconsolidated)'!J39","v":0},null,null,null,null,null,{"$f":"'Schedule IIA'!H39","v":0},null,{"$f":"'Schedule IIA'!J39","v":0}]
["Sch IIA","Funds Held",null,"Preferred Shares - BSCR Rate 8",{"$f":"'Schedule IIA (Unconsolidated)'!H40","v":0},null,{"$f":"'Schedule IIA (Unconsolidated)'!J40","v":0},null,null,null,null,null,{"$f":"'Schedule IIA'!H40","v":0},null,{"$f":"'Schedule IIA'!J40","v":0}]
["Sch IIA","Funds Held",null,"Equity Mutual Funds -  Quoted",{"$f":"'Schedule IIA (Unconsolidated)'!L41","v":0},null,{"$f":"'Schedule IIA (Unconsolidated)'!N41","v":0},null,null,null,null,null,{"$f":"'Schedule IIA'!L41","v":0},null,{"$f":"'Schedule IIA'!N41","v":0}]
["Sch IIA","Funds Held",null,"Equity Mutual Funds -  Unquoted",{"$f":"'Schedule IIA (Unconsolidated)'!L42","v":0},null,{"$f":"'Schedule IIA (Unconsolidated)'!N42","v":0},null,null,null,null,null,{"$f":"'Schedule IIA'!L42","v":0},null,{"$f":"'Schedule IIA'!N42","v":0}]
["Sch IIA","Funds Held",null,"Other Investments -  Quoted",{"$f":"+'Schedule IIA (Unconsolidated)'!P41","v":0},null,{"$f":"+'Schedule IIA (Unconsolidated)'!R41","v":0},null,null,null,null,null,{"$f":"'Schedule IIA'!P41","v":0},null,{"$f":"'Schedule IIA'!R41","v":0}]
["Sch IIA","Funds Held",null,"Other Investments -  Unquoted",{"$f":"+'Schedule IIA (Unconsolidated)'!P42","v":0},null,{"$f":"+'Schedule IIA (Unconsolidated)'!R42","v":0},null,null,null,null,null,{"$f":"'Schedule IIA'!P42","v":0},null,{"$f":"'Schedule IIA'!R42","v":0}]
["Sch IIA","Funds Held",null,"Mortgage Loans - Insured",{"$f":"'Schedule IIA (Unconsolidated)'!D57","v":0},null,{"$f":"'Schedule IIA (Unconsolidated)'!F57","v":0},null,null,null,null,null,{"$f":"'Schedule IIA'!D57","v":0},null,{"$f":"'Schedule IIA'!F57","v":0}]
["Sch IIA","Funds Held",null,"Mortgage Loans - Other Commercial",{"$f":"'Schedule IIA (Unconsolidated)'!D58","v":0},null,{"$f":"'Schedule IIA (Unconsolidated)'!F58","v":0},null,null,null,null,null,{"$f":"'Schedule IIA'!D58","v":0},null,{"$f":"'Schedule IIA'!F58","v":0}]
["Sch IIA","Funds Held",null,"Mortgage Loans - Other Residential",{"$f":"'Schedule IIA (Unconsolidated)'!D59","v":0},null,{"$f":"'Schedule IIA (Unconsolidated)'!F59","v":0},null,null,null,null,null,{"$f":"'Schedule IIA'!D59","v":0},null,{"$f":"'Schedule IIA'!F59","v":0}]
["Sch IIA","Funds Held",null,"Mortgage Loans - Not Good Stand.",{"$f":"'Schedule IIA (Unconsolidated)'!D60","v":0},null,{"$f":"'Schedule IIA (Unconsolidated)'!F60","v":0},null,null,null,null,null,{"$f":"'Schedule IIA'!D60","v":0},null,{"$f":"'Schedule IIA'!F60","v":0}]
["Sch IIA","Funds Held",null,"Cash and Cash Equivalents",{"$f":"'Schedule IIA (Unconsolidated)'!D68","v":0},null,{"$f":"'Schedule IIA (Unconsolidated)'!F68","v":0},null,null,null,null,null,{"$f":"'Schedule IIA'!D68","v":0},null,{"$f":"'Schedule IIA'!F68","v":0}]
["Sch IIA","Funds Held",null,"NAIC Resid. MBS - Orig. Class 1",{"$f":"'Schedule IIA (Unconsolidated)'!L55","v":0},null,null,null,null,null,null,null,{"$f":"'Schedule IIA'!L55","v":0}]
["Sch IIA","Funds Held",null,"NAIC Resid. MBS - Orig. Class 2",{"$f":"'Schedule IIA (Unconsolidated)'!L56","v":0},null,null,null,null,null,null,null,{"$f":"'Schedule IIA'!L56","v":0}]
["Sch IIA","Funds Held",null,"NAIC Resid. MBS - Orig. Class 3",{"$f":"'Schedule IIA (Unconsolidated)'!L57","v":0},null,null,null,null,null,null,null,{"$f":"'Schedule IIA'!L57","v":0}]
["Sch IIA","Funds Held",null,"NAIC Resid. MBS - Orig. Class 4",{"$f":"'Schedule IIA (Unconsolidated)'!L58","v":0},null,null,null,null,null,null,null,{"$f":"'Schedule IIA'!L58","v":0}]
["Sch IIA","Funds Held",null,"NAIC Resid. MBS - Orig. Class 5",{"$f":"'Schedule IIA (Unconsolidated)'!L59","v":0},null,null,null,null,null,null,null,{"$f":"'Schedule IIA'!L59","v":0}]
["Sch IIA","Funds Held",null,"NAIC Resid. MBS - Orig. Class 6",{"$f":"'Schedule IIA (Unconsolidated)'!L60","v":0},null,null,null,null,null,null,null,{"$f":"'Schedule IIA'!L60","v":0}]
["Sch IIA","Funds Held",null,"NAIC Resid. MBS - Orig. Total",{"$f":"'Schedule IIA (Unconsolidated)'!L62","v":0},null,null,null,null,null,null,null,{"$f":"'Schedule IIA'!L62","v":0}]
["Sch IIA","Funds Held",null,"NAIC Resid. MBS - Rev. Class 1",{"$f":"'Schedule IIA (Unconsolidated)'!N55","v":0},null,null,null,null,null,null,null,{"$f":"'Schedule IIA'!N55","v":0}]
["Sch IIA","Funds Held",null,"NAIC Resid. MBS - Rev. Class 2",{"$f":"'Schedule IIA (Unconsolidated)'!N56","v":0},null,null,null,null,null,null,null,{"$f":"'Schedule IIA'!N56","v":0}]
["Sch IIA","Funds Held",null,"NAIC Resid. MBS - Rev. Class 3",{"$f":"'Schedule IIA (Unconsolidated)'!N57","v":0},null,null,null,null,null,null,null,{"$f":"'Schedule IIA'!N57","v":0}]
["Sch IIA","Funds Held",null,"NAIC Resid. MBS - Rev. Class 4",{"$f":"'Schedule IIA (Unconsolidated)'!N58","v":0},null,null,null,null,null,null,null,{"$f":"'Schedule IIA'!N58","v":0}]
["Sch IIA","Funds Held",null,"NAIC Resid. MBS - Rev. Class 5",{"$f":"'Schedule IIA (Unconsolidated)'!N59","v":0},null,null,null,null,null,null,null,{"$f":"'Schedule IIA'!N59","v":0}]
["Sch IIA","Funds Held",null,"NAIC Resid. MBS - Rev. Class 6",{"$f":"'Schedule IIA (Unconsolidated)'!N60","v":0},null,null,null,null,null,null,null,{"$f":"'Schedule IIA'!N60","v":0}]
["Sch IIA","Funds Held",null,"NAIC Resid. MBS - Rev. Total",{"$f":"'Schedule IIA (Unconsolidated)'!N62","v":0},null,null,null,null,null,null,null,{"$f":"'Schedule IIA'!N62","v":0}]
["Sch IIA","Funds Held",null,"NAIC Comm. MBS - Orig. Class 1",{"$f":"'Schedule IIA (Unconsolidated)'!P55","v":0},null,null,null,null,null,null,null,{"$f":"'Schedule IIA'!P55","v":0}]
["Sch IIA","Funds Held",null,"NAIC Comm. MBS - Orig. Class 2",{"$f":"'Schedule IIA (Unconsolidated)'!P56","v":0},null,null,null,null,null,null,null,{"$f":"'Schedule IIA'!P56","v":0}]
["Sch IIA","Funds Held",null,"NAIC Comm. MBS - Orig. Class 3",{"$f":"'Schedule IIA (Unconsolidated)'!P57","v":0},null,null,null,null,null,null,null,{"$f":"'Schedule IIA'!P57","v":0}]
["Sch IIA","Funds Held",null,"NAIC Comm. MBS - Orig. Class 4",{"$f":"'Schedule IIA (Unconsolidated)'!P58","v":0},null,null,null,null,null,null,null,{"$f":"'Schedule IIA'!P58","v":0}]
["Sch IIA","Funds Held",null,"NAIC Comm. MBS - Orig. Class 5",{"$f":"'Schedule IIA (Unconsolidated)'!P59","v":0},null,null,null,null,null,null,null,{"$f":"'Schedule IIA'!P59","v":0}]
["Sch IIA","Funds Held",null,"NAIC Comm. MBS - Orig. Class 6",{"$f":"'Schedule IIA (Unconsolidated)'!P60","v":0},null,null,null,null,null,null,null,{"$f":"'Schedule IIA'!P60","v":0}]
["Sch IIA","Funds Held",null,"NAIC Comm. MBS - Orig. Total",{"$f":"'Schedule IIA (Unconsolidated)'!P62","v":0},null,null,null,null,null,null,null,{"$f":"'Schedule IIA'!P62","v":0}]
["Sch IIA","Funds Held",null,"NAIC Comm. MBS - Rev. Class 1",{"$f":"'Schedule IIA (Unconsolidated)'!R55","v":0},null,null,null,null,null,null,null,{"$f":"'Schedule IIA'!R55","v":0}]
["Sch IIA","Funds Held",null,"NAIC Comm. MBS - Rev. Class 2",{"$f":"'Schedule IIA (Unconsolidated)'!R56","v":0},null,null,null,null,null,null,null,{"$f":"'Schedule IIA'!R56","v":0}]
["Sch IIA","Funds Held",null,"NAIC Comm. MBS - Rev. Class 3",{"$f":"'Schedule IIA (Unconsolidated)'!R57","v":0},null,null,null,null,null,null,null,{"$f":"'Schedule IIA'!R57","v":0}]
["Sch IIA","Funds Held",null,"NAIC Comm. MBS - Rev. Class 4",{"$f":"'Schedule IIA (Unconsolidated)'!R58","v":0},null,null,null,null,null,null,null,{"$f":"'Schedule IIA'!R58","v":0}]
["Sch IIA","Funds Held",null,"NAIC Comm. MBS - Rev. Class 5",{"$f":"'Schedule IIA (Unconsolidated)'!R59","v":0},null,null,null,null,null,null,null,{"$f":"'Schedule IIA'!R59","v":0}]
["Sch IIA","Funds Held",null,"NAIC Comm. MBS - Rev. Class 6",{"$f":"'Schedule IIA (Unconsolidated)'!R60","v":0},null,null,null,null,null,null,null,{"$f":"'Schedule IIA'!R60","v":0}]
["Sch IIA","Funds Held",null,"NAIC Comm. MBS - Rev. Total",{"$f":"'Schedule IIA (Unconsolidated)'!R62","v":0},null,null,null,null,null,null,null,{"$f":"'Schedule IIA'!R62","v":0}]
[]
["Sch III","Losses by Line",null,"Reserve - Property Catastrophe",{"$f":"'Schedule III (Unconsolidated)'!E9","v":0},null,{"$f":"'Schedule III (Unconsolidated)'!G9","v":0}]
["Sch III","Losses by Line",null,"Reserve - Property",{"$f":"'Schedule III (Unconsolidated)'!E10","v":0},null,{"$f":"'Schedule III (Unconsolidated)'!G10","v":0}]
["Sch III","Losses by Line",null,"Reserve - Property Non-Proportion",{"$f":"'Schedule III (Unconsolidated)'!E11","v":0},null,{"$f":"'Schedule III (Unconsolidated)'!G11","v":0}]
["Sch III","Losses by Line",null,"Reserve - Personal Accident",{"$f":"'Schedule III (Unconsolidated)'!E12","v":0},null,{"$f":"'Schedule III (Unconsolidated)'!G12","v":0}]
["Sch III","Losses by Line",null,"Reserve - Personal Acc. Non Prop.",{"$f":"'Schedule III (Unconsolidated)'!E13","v":0},null,{"$f":"'Schedule III (Unconsolidated)'!G13","v":0}]
["Sch III","Losses by Line",null,"Reserve - Aviation",{"$f":"'Schedule III (Unconsolidated)'!E14","v":0},null,{"$f":"'Schedule III (Unconsolidated)'!G14","v":0}]
["Sch III","Losses by Line",null,"Reserve - Aviation Non-Proportional",{"$f":"'Schedule III (Unconsolidated)'!E15","v":0},null,{"$f":"'Schedule III (Unconsolidated)'!G15","v":0}]
["Sch III","Losses by Line",null,"Reserve - Credit Surety",{"$f":"'Schedule III (Unconsolidated)'!E16","v":0},null,{"$f":"'Schedule III (Unconsolidated)'!G16","v":0}]
["Sch III","Losses by Line",null,"Reserve - Credit Surety Non-Prop.",{"$f":"'Schedule III (Unconsolidated)'!E17","v":0},null,{"$f":"'Schedule III (Unconsolidated)'!G17","v":0}]
["Sch III","Losses by Line",null,"Reserve - Energy",{"$f":"'Schedule III (Unconsolidated)'!E18","v":0},null,{"$f":"'Schedule III (Unconsolidated)'!G18","v":0}]
["Sch III","Losses by Line",null,"Reserve - Energy Non-Proportional",{"$f":"'Schedule III (Unconsolidated)'!E19","v":0},null,{"$f":"'Schedule III (Unconsolidated)'!G19","v":0}]
["Sch III","Losses by Line",null,"Reserve - US Casualty",{"$f":"'Schedule III (Unconsolidated)'!E20","v":0},null,{"$f":"'Schedule III (Unconsolidated)'!G20","v":0}]
["Sch III","Losses by Line",null,"Reserve - US Casualty Non-Prop.",{"$f":"'Schedule III (Unconsolidated)'!E21","v":0},null,{"$f":"'Schedule III (Unconsolidated)'!G21","v":0}]
["Sch III","Losses by Line",null,"Reserve - US Professional",{"$f":"'Schedule III (Unconsolidated)'!E22","v":0},null,{"$f":"'Schedule III (Unconsolidated)'!G22","v":0}]
["Sch III","Losses by Line",null,"Reserve - US Professional Non-Prop.",{"$f":"'Schedule III (Unconsolidated)'!E23","v":0},null,{"$f":"'Schedule III (Unconsolidated)'!G23","v":0}]
["Sch III","Losses by Line",null,"Reserve - US Specialty",{"$f":"'Schedule III (Unconsolidated)'!E24","v":0},null,{"$f":"'Schedule III (Unconsolidated)'!G24","v":0}]
["Sch III","Losses by Line",null,"Reserve - US Specialty Non-Prop.",{"$f":"'Schedule III (Unconsolidated)'!E25","v":0},null,{"$f":"'Schedule III (Unconsolidated)'!G25","v":0}]
["Sch III","Losses by Line",null,"Reserve - Int'l Motor",{"$f":"'Schedule III (Unconsolidated)'!E26","v":0},null,{"$f":"'Schedule III (Unconsolidated)'!G26","v":0}]
["Sch III","Losses by Line",null,"Reserve - Int'l Motor Non-Prop.",{"$f":"'Schedule III (Unconsolidated)'!E27","v":0},null,{"$f":"'Schedule III (Unconsolidated)'!G27","v":0}]
["Sch III","Losses by Line",null,"Reserve - Int'l Casualty",{"$f":"'Schedule III (Unconsolidated)'!E28","v":0},null,{"$f":"'Schedule III (Unconsolidated)'!G28","v":0}]
["Sch III","Losses by Line",null,"Reserve - Int'l Casualty Non-Prop.",{"$f":"'Schedule III (Unconsolidated)'!E29","v":0},null,{"$f":"'Schedule III (Unconsolidated)'!G29","v":0}]
["Sch III","Losses by Line",null,"Reserve - Retro Property",{"$f":"'Schedule III (Unconsolidated)'!E30","v":0},null,{"$f":"'Schedule III (Unconsolidated)'!G30","v":0}]
["Sch III","Losses by Line",null,"Reserve - Structured / Finite R/I",{"$f":"'Schedule III (Unconsolidated)'!E31","v":0},null,{"$f":"'Schedule III (Unconsolidated)'!G31","v":0}]
["Sch III","Losses by Line",null,"Reserve - Health",{"$f":"'Schedule III (Unconsolidated)'!E32","v":0},null,{"$f":"'Schedule III (Unconsolidated)'!G32","v":0}]
[]
["Sch IIB","Investments",null,"Corp. Bonds - BSCR Rate 0",null,null,null,null,null,null,null,null,{"$f":"'Schedule IIB'!D13","v":0},null,{"$f":"'Schedule IIB'!F13","v":0}]
["Sch IIB","Investments",null,"Corp. Bonds - BSCR Rate 1",null,null,null,null,null,null,null,null,{"$f":"'Schedule IIB'!D14","v":0},null,{"$f":"'Schedule IIB'!F14","v":0}]
["Sch IIB","Investments",null,"Corp. Bonds - BSCR Rate 2",null,null,null,null,null,null,null,null,{"$f":"'Schedule IIB'!D15","v":0},null,{"$f":"'Schedule IIB'!F15","v":0}]
["Sch IIB","Investments",null,"Corp. Bonds - BSCR Rate 3",null,null,null,null,null,null,null,null,{"$f":"'Schedule IIB'!D16","v":0},null,{"$f":"'Schedule IIB'!F16","v":0}]
["Sch IIB","Investments",null,"Corp. Bonds - BSCR Rate 4",null,null,null,null,null,null,null,null,{"$f":"'Schedule IIB'!D17","v":0},null,{"$f":"'Schedule IIB'!F17","v":0}]
["Sch IIB","Investments",null,"Corp. Bonds - BSCR Rate 5",null,null,null,null,null,null,null,null,{"$f":"'Schedule IIB'!D18","v":0},null,{"$f":"'Schedule IIB'!F18","v":0}]
["Sch IIB","Investments",null,"Corp. Bonds - BSCR Rate 6",null,null,null,null,null,null,null,null,{"$f":"'Schedule IIB'!D19","v":0},null,{"$f":"'Schedule IIB'!F19","v":0}]
["Sch IIB","Investments",null,"Corp. Bonds - BSCR Rate 7",null,null,null,null,null,null,null,null,{"$f":"'Schedule IIB'!D20","v":0},null,{"$f":"'Schedule IIB'!F20","v":0}]
["Sch IIB","Investments",null,"Corp. Bonds - BSCR Rate 8",null,null,null,null,null,null,null,null,{"$f":"'Schedule IIB'!D21","v":0},null,{"$f":"'Schedule IIB'!F21","v":0}]
["Sch IIB","Investments",null,"Residential MBS - BSCR Rate 1",null,null,null,null,null,null,null,null,{"$f":"'Schedule IIB'!H14","v":0},null,{"$f":"'Schedule IIB'!J14","v":0}]
["Sch IIB","Investments",null,"Residential MBS - BSCR Rate 2",null,null,null,null,null,null,null,null,{"$f":"'Schedule IIB'!H15","v":0},null,{"$f":"'Schedule IIB'!J15","v":0}]
["Sch IIB","Investments",null,"Residential MBS - BSCR Rate 3",null,null,null,null,null,null,null,null,{"$f":"'Schedule IIB'!H16","v":0},null,{"$f":"'Schedule IIB'!J16","v":0}]
["Sch IIB","Investments",null,"Residential MBS - BSCR Rate 4",null,null,null,null,null,null,null,null,{"$f":"'Schedule IIB'!H17","v":0},null,{"$f":"'Schedule IIB'!J17","v":0}]
["Sch IIB","Investments",null,"Residential MBS - BSCR Rate 5",null,null,null,null,null,null,null,null,{"$f":"'Schedule IIB'!H18","v":0},null,{"$f":"'Schedule IIB'!J18","v":0}]
["Sch IIB","Investments",null,"Residential MBS - BSCR Rate 6",null,null,null,null,null,null,null,null,{"$f":"'Schedule IIB'!H19","v":0},null,{"$f":"'Schedule IIB'!J19","v":0}]
["Sch IIB","Investments",null,"Residential MBS - BSCR Rate 7",null,null,null,null,null,null,null,null,{"$f":"'Schedule IIB'!H20","v":0},null,{"$f":"'Schedule IIB'!J20","v":0}]
["Sch IIB","Investments",null,"Residential MBS - BSCR Rate 8",null,null,null,null,null,null,null,null,{"$f":"'Schedule IIB'!H21","v":0},null,{"$f":"'Schedule IIB'!J21","v":0}]
["Sch IIB","Investments",null,"Commercial MBS - BSCR Rate 1",null,null,null,null,null,null,null,null,{"$f":"'Schedule IIB'!L14","v":0},null,{"$f":"'Schedule IIB'!N14","v":0}]
["Sch IIB","Investments",null,"Commercial MBS - BSCR Rate 2",null,null,null,null,null,null,null,null,{"$f":"'Schedule IIB'!L15","v":0},null,{"$f":"'Schedule IIB'!N15","v":0}]
["Sch IIB","Investments",null,"Commercial MBS - BSCR Rate 3",null,null,null,null,null,null,null,null,{"$f":"'Schedule IIB'!L16","v":0},null,{"$f":"'Schedule IIB'!N16","v":0}]
["Sch IIB","Investments",null,"Commercial MBS - BSCR Rate 4",null,null,null,null,null,null,null,null,{"$f":"'Schedule IIB'!L17","v":0},null,{"$f":"'Schedule IIB'!N17","v":0}]
["Sch IIB","Investments",null,"Commercial MBS - BSCR Rate 5",null,null,null,null,null,null,null,null,{"$f":"'Schedule IIB'!L18","v":0},null,{"$f":"'Schedule IIB'!N18","v":0}]
["Sch IIB","Investments",null,"Commercial MBS - BSCR Rate 6",null,null,null,null,null,null,null,null,{"$f":"'Schedule IIB'!L19","v":0},null,{"$f":"'Schedule IIB'!N19","v":0}]
["Sch IIB","Investments",null,"Commercial MBS - BSCR Rate 7",null,null,null,null,null,null,null,null,{"$f":"'Schedule IIB'!L20","v":0},null,{"$f":"'Schedule IIB'!N20","v":0}]
["Sch IIB","Investments",null,"Commercial MBS - BSCR Rate 8",null,null,null,null,null,null,null,null,{"$f":"'Schedule IIB'!L21","v":0},null,{"$f":"'Schedule IIB'!N21","v":0}]
["Sch IIB","Investments",null,"Bonds Mutual Fund - BSCR Rate 0",null,null,null,null,null,null,null,null,{"$f":"'Schedule IIB'!P13","v":0},null,{"$f":"'Schedule IIB'!R13","v":0}]
["Sch IIB","Investments",null,"Bonds Mutual Fund - BSCR Rate 1",null,null,null,null,null,null,null,null,{"$f":"'Schedule IIB'!P14","v":0},null,{"$f":"'Schedule IIB'!R14","v":0}]
["Sch IIB","Investments",null,"Bonds Mutual Fund - BSCR Rate 2",null,null,null,null,null,null,null,null,{"$f":"'Schedule IIB'!P15","v":0},null,{"$f":"'Schedule IIB'!R15","v":0}]
["Sch IIB","Investments",null,"Bonds Mutual Fund - BSCR Rate 3",null,null,null,null,null,null,null,null,{"$f":"'Schedule IIB'!P16","v":0},null,{"$f":"'Schedule IIB'!R16","v":0}]
["Sch IIB","Investments",null,"Bonds Mutual Fund - BSCR Rate 4",null,null,null,null,null,null,null,null,{"$f":"'Schedule IIB'!P17","v":0},null,{"$f":"'Schedule IIB'!R17","v":0}]
["Sch IIB","Investments",null,"Bonds Mutual Fund - BSCR Rate 5",null,null,null,null,null,null,null,null,{"$f":"'Schedule IIB'!P18","v":0},null,{"$f":"'Schedule IIB'!R18","v":0}]
["Sch IIB","Investments",null,"Bonds Mutual Fund - BSCR Rate 6",null,null,null,null,null,null,null,null,{"$f":"'Schedule IIB'!P19","v":0},null,{"$f":"'Schedule IIB'!R19","v":0}]
["Sch IIB","Investments",null,"Bonds Mutual Fund - BSCR Rate 7",null,null,null,null,null,null,null,null,{"$f":"'Schedule IIB'!P20","v":0},null,{"$f":"'Schedule IIB'!R20","v":0}]
["Sch IIB","Investments",null,"Bonds Mutual Fund - BSCR Rate 8",null,null,null,null,null,null,null,null,{"$f":"'Schedule IIB'!P21","v":0},null,{"$f":"'Schedule IIB'!R21","v":0}]
["Sch IIB","Investments",null,"Mortgage Loans - Insured",null,null,null,null,null,null,null,null,{"$f":"'Schedule IIB'!T22","v":0},null,{"$f":"'Schedule IIB'!V22","v":0}]
["Sch IIB","Investments",null,"Mortgage Loans - Other Commercial",null,null,null,null,null,null,null,null,{"$f":"'Schedule IIB'!T23","v":0},null,{"$f":"'Schedule IIB'!V23","v":0}]
["Sch IIB","Investments",null,"Mortgage Loans - Other Residential",null,null,null,null,null,null,null,null,{"$f":"'Schedule IIB'!T24","v":0},null,{"$f":"'Schedule IIB'!V24","v":0}]
["Sch IIB","Investments",null,"Mortgage Loans - Not Good Stand.",null,null,null,null,null,null,null,null,{"$f":"'Schedule IIB'!T25","v":0},null,{"$f":"'Schedule IIB'!V25","v":0}]
["Sch IIB","Investments",null,"Long Positions - Before - Strategic Holdings - Listed",null,null,null,null,null,null,null,null,{"$f":"'Schedule IIB'!D39","v":0}]
["Sch IIB","Investments",null,"Long Positions - Before - Duration Based",null,null,null,null,null,null,null,null,{"$f":"'Schedule IIB'!D40","v":0}]
["Sch IIB","Investments",null,"Long Positions - Before - Listed Equity Securities in Developed Markets",null,null,null,null,null,null,null,null,{"$f":"'Schedule IIB'!D41","v":0}]
["Sch IIB","Investments",null,"Long Positions - Before - Preferred Stocks, BSCR Rating 1",null,null,null,null,null,null,null,null,{"$f":"'Schedule IIB'!D42","v":0}]
["Sch IIB","Investments",null,"Long Positions - Before - Preferred Stocks, BSCR Rating 2",null,null,null,null,null,null,null,null,{"$f":"'Schedule IIB'!D43","v":0}]
["Sch IIB","Investments",null,"Long Positions - Before - Preferred Stocks, BSCR Rating 3",null,null,null,null,null,null,null,null,{"$f":"'Schedule IIB'!D44","v":0}]
["Sch IIB","Investments",null,"Long Positions - Before - Preferred Stocks, BSCR Rating 4",null,null,null,null,null,null,null,null,{"$f":"'Schedule IIB'!D45","v":0}]
["Sch IIB","Investments",null,"Long Positions - Before - Preferred Stocks, BSCR Rating 5",null,null,null,null,null,null,null,null,{"$f":"'Schedule IIB'!D46","v":0}]
["Sch IIB","Investments",null,"Long Positions - Before - Preferred Stocks, BSCR Rating 6",null,null,null,null,null,null,null,null,{"$f":"'Schedule IIB'!D47","v":0}]
["Sch IIB","Investments",null,"Long Positions - Before - Preferred Stocks, BSCR Rating 7",null,null,null,null,null,null,null,null,{"$f":"'Schedule IIB'!D48","v":0}]
["Sch IIB","Investments",null,"Long Positions - Before - Preferred Stocks, BSCR Rating 8",null,null,null,null,null,null,null,null,{"$f":"'Schedule IIB'!D49","v":0}]
["Sch IIB","Investments",null,"Long Positions - Before - Equity Derivatives on Type 1 Equities",null,null,null,null,null,null,null,null,{"$f":"'Schedule IIB'!D50","v":0}]
["Sch IIB","Investments",null,"Long Positions - Before - Strategic Holdings - Unlisted",null,null,null,null,null,null,null,null,{"$f":"'Schedule IIB'!D51","v":0}]
["Sch IIB","Investments",null,"Long Positions - Before - Other Equities",null,null,null,null,null,null,null,null,{"$f":"'Schedule IIB'!D52","v":0}]
["Sch IIB","Investments",null,"Long Positions - Before - Letters of Credit",null,null,null,null,null,null,null,null,{"$f":"'Schedule IIB'!D53","v":0}]
["Sch IIB","Investments",null,"Long Positions - Before - Intangible assets",null,null,null,null,null,null,null,null,{"$f":"'Schedule IIB'!D54","v":0}]
["Sch IIB","Investments",null,"Long Positions - Before - Pension Benefit Surplus",null,null,null,null,null,null,null,null,{"$f":"'Schedule IIB'!D55","v":0}]
["Sch IIB","Investments",null,"Long Positions - Before - Equity Derivatives on Type 2 Equities",null,null,null,null,null,null,null,null,{"$f":"'Schedule IIB'!D56","v":0}]
["Sch IIB","Investments",null,"Long Positions - Before - Infrastructure",null,null,null,null,null,null,null,null,{"$f":"'Schedule IIB'!D57","v":0}]
["Sch IIB","Investments",null,"Long Positions - Before - Derivatives on Infrastructure",null,null,null,null,null,null,null,null,{"$f":"'Schedule IIB'!D58","v":0}]
["Sch IIB","Investments",null,"Long Positions - Before - Equity Real Estate 1",null,null,null,null,null,null,null,null,{"$f":"'Schedule IIB'!D59","v":0}]
["Sch IIB","Investments",null,"Long Positions - Before - Equity Real Estate 2",null,null,null,null,null,null,null,null,{"$f":"'Schedule IIB'!D60","v":0}]
["Sch IIB","Investments",null,"Long Positions - After - Strategic Holdings - Listed",null,null,null,null,null,null,null,null,{"$f":"'Schedule IIB'!F39","v":0}]
["Sch IIB","Investments",null,"Long Positions - After - Duration Based",null,null,null,null,null,null,null,null,{"$f":"'Schedule IIB'!F40","v":0}]
["Sch IIB","Investments",null,"Long Positions - After - Listed Equity Securities in Developed Markets",null,null,null,null,null,null,null,null,{"$f":"'Schedule IIB'!F41","v":0}]
["Sch IIB","Investments",null,"Long Positions - After - Preferred Stocks, BSCR Rating 1",null,null,null,null,null,null,null,null,{"$f":"'Schedule IIB'!F42","v":0}]
["Sch IIB","Investments",null,"Long Positions - After - Preferred Stocks, BSCR Rating 2",null,null,null,null,null,null,null,null,{"$f":"'Schedule IIB'!F43","v":0}]
["Sch IIB","Investments",null,"Long Positions - After - Preferred Stocks, BSCR Rating 3",null,null,null,null,null,null,null,null,{"$f":"'Schedule IIB'!F44","v":0}]
["Sch IIB","Investments",null,"Long Positions - After - Preferred Stocks, BSCR Rating 4",null,null,null,null,null,null,null,null,{"$f":"'Schedule IIB'!F45","v":0}]
["Sch IIB","Investments",null,"Long Positions - After - Preferred Stocks, BSCR Rating 5",null,null,null,null,null,null,null,null,{"$f":"'Schedule IIB'!F46","v":0}]
["Sch IIB","Investments",null,"Long Positions - After - Preferred Stocks, BSCR Rating 6",null,null,null,null,null,null,null,null,{"$f":"'Schedule IIB'!F47","v":0}]
["Sch IIB","Investments",null,"Long Positions - After - Preferred Stocks, BSCR Rating 7",null,null,null,null,null,null,null,null,{"$f":"'Schedule IIB'!F48","v":0}]
["Sch IIB","Investments",null,"Long Positions - After - Preferred Stocks, BSCR Rating 8",null,null,null,null,null,null,null,null,{"$f":"'Schedule IIB'!F49","v":0}]
["Sch IIB","Investments",null,"Long Positions - After - Equity Derivatives on Type 1 Equities",null,null,null,null,null,null,null,null,{"$f":"'Schedule IIB'!F50","v":0}]
["Sch IIB","Investments",null,"Long Positions - After - Strategic Holdings - Unlisted",null,null,null,null,null,null,null,null,{"$f":"'Schedule IIB'!F51","v":0}]
["Sch IIB","Investments",null,"Long Positions - After - Other Equities",null,null,null,null,null,null,null,null,{"$f":"'Schedule IIB'!F52","v":0}]
["Sch IIB","Investments",null,"Long Positions - After - Letters of Credit",null,null,null,null,null,null,null,null,{"$f":"'Schedule IIB'!F53","v":0}]
["Sch IIB","Investments",null,"Long Positions - After - Intangible assets",null,null,null,null,null,null,null,null,{"$f":"'Schedule IIB'!F54","v":0}]
["Sch IIB","Investments",null,"Long Positions - After - Pension Benefit Surplus",null,null,null,null,null,null,null,null,{"$f":"'Schedule IIB'!F55","v":0}]
["Sch IIB","Investments",null,"Long Positions - After - Equity Derivatives on Type 2 Equities",null,null,null,null,null,null,null,null,{"$f":"'Schedule IIB'!F56","v":0}]
["Sch IIB","Investments",null,"Long Positions - After - Infrastructure",null,null,null,null,null,null,null,null,{"$f":"'Schedule IIB'!F57","v":0}]
["Sch IIB","Investments",null,"Long Positions - After - Derivatives on Infrastructure",null,null,null,null,null,null,null,null,{"$f":"'Schedule IIB'!F58","v":0}]
["Sch IIB","Investments",null,"Long Positions - After - Equity Real Estate 1",null,null,null,null,null,null,null,null,{"$f":"'Schedule IIB'!F59","v":0}]
["Sch IIB","Investments",null,"Long Positions - After - Equity Real Estate 2",null,null,null,null,null,null,null,null,{"$f":"'Schedule IIB'!F60","v":0}]
["Sch IIB","Investments",null,"Short - Before - Qualified Assets - Strategic Holdings - Listed",null,null,null,null,null,null,null,null,{"$f":"'Schedule IIB'!H39","v":0}]
["Sch IIB","Investments",null,"Short - Before - Qualified Assets - Duration Based",null,null,null,null,null,null,null,null,{"$f":"'Schedule IIB'!H40","v":0}]
["Sch IIB","Investments",null,"Short - Before - Qualified Assets - Listed Equity Securities in Developed Markets",null,null,null,null,null,null,null,null,{"$f":"'Schedule IIB'!H41","v":0}]
["Sch IIB","Investments",null,"Short - Before - Qualified Assets - Preferred Stocks, BSCR Rating 1",null,null,null,null,null,null,null,null,{"$f":"'Schedule IIB'!H42","v":0}]
["Sch IIB","Investments",null,"Short - Before - Qualified Assets - Preferred Stocks, BSCR Rating 2",null,null,null,null,null,null,null,null,{"$f":"'Schedule IIB'!H43","v":0}]
["Sch IIB","Investments",null,"Short - Before - Qualified Assets - Preferred Stocks, BSCR Rating 3",null,null,null,null,null,null,null,null,{"$f":"'Schedule IIB'!H44","v":0}]
["Sch IIB","Investments",null,"Short - Before - Qualified Assets - Preferred Stocks, BSCR Rating 4",null,null,null,null,null,null,null,null,{"$f":"'Schedule IIB'!H45","v":0}]
["Sch IIB","Investments",null,"Short - Before - Qualified Assets - Preferred Stocks, BSCR Rating 5",null,null,null,null,null,null,null,null,{"$f":"'Schedule IIB'!H46","v":0}]
["Sch IIB","Investments",null,"Short - Before - Qualified Assets - Preferred Stocks, BSCR Rating 6",null,null,null,null,null,null,null,null,{"$f":"'Schedule IIB'!H47","v":0}]
["Sch IIB","Investments",null,"Short - Before - Qualified Assets - Preferred Stocks, BSCR Rating 7",null,null,null,null,null,null,null,null,{"$f":"'Schedule IIB'!H48","v":0}]
["Sch IIB","Investments",null,"Short - Before - Qualified Assets - Preferred Stocks, BSCR Rating 8",null,null,null,null,null,null,null,null,{"$f":"'Schedule IIB'!H49","v":0}]
["Sch IIB","Investments",null,"Short - Before - Qualified Assets - Equity Derivatives on Type 1 Equities",null,null,null,null,null,null,null,null,{"$f":"'Schedule IIB'!H50","v":0}]
["Sch IIB","Investments",null,"Short - Before - Qualified Assets - Strategic Holdings - Unlisted",null,null,null,null,null,null,null,null,{"$f":"'Schedule IIB'!H51","v":0}]
["Sch IIB","Investments",null,"Short - Before - Qualified Assets - Other Equities",null,null,null,null,null,null,null,null,{"$f":"'Schedule IIB'!H52","v":0}]
["Sch IIB","Investments",null,"Short - Before - Qualified Assets - Letters of Credit",null,null,null,null,null,null,null,null,{"$f":"'Schedule IIB'!H53","v":0}]
["Sch IIB","Investments",null,"Short - Before - Qualified Assets - Intangible assets",null,null,null,null,null,null,null,null,{"$f":"'Schedule IIB'!H54","v":0}]
["Sch IIB","Investments",null,"Short - Before - Qualified Assets - Pension Benefit Surplus",null,null,null,null,null,null,null,null,{"$f":"'Schedule IIB'!H55","v":0}]
["Sch IIB","Investments",null,"Short - Before - Qualified Assets - Equity Derivatives on Type 2 Equities",null,null,null,null,null,null,null,null,{"$f":"'Schedule IIB'!H56","v":0}]
["Sch IIB","Investments",null,"Short - Before - Qualified Assets - Infrastructure",null,null,null,null,null,null,null,null,{"$f":"'Schedule IIB'!H57","v":0}]
["Sch IIB","Investments",null,"Short - Before - Qualified Assets - Derivatives on Infrastructure",null,null,null,null,null,null,null,null,{"$f":"'Schedule IIB'!H58","v":0}]
["Sch IIB","Investments",null,"Short - Before - Qualified Assets - Equity Real Estate 1",null,null,null,null,null,null,null,null,{"$f":"'Schedule IIB'!H59","v":0}]
["Sch IIB","Investments",null,"Short - Before - Qualified Assets - Equity Real Estate 2",null,null,null,null,null,null,null,null,{"$f":"'Schedule IIB'!H60","v":0}]
["Sch IIB","Investments",null,"Short - After - Qualified Assets - Strategic Holdings - Listed",null,null,null,null,null,null,null,null,{"$f":"'Schedule IIB'!J39","v":0}]
["Sch IIB","Investments",null,"Short - After - Qualified Assets - Duration Based",null,null,null,null,null,null,null,null,{"$f":"'Schedule IIB'!J40","v":0}]
["Sch IIB","Investments",null,"Short - After - Qualified Assets - Listed Equity Securities in Developed Markets",null,null,null,null,null,null,null,null,{"$f":"'Schedule IIB'!J41","v":0}]
["Sch IIB","Investments",null,"Short - After - Qualified Assets - Preferred Stocks, BSCR Rating 1",null,null,null,null,null,null,null,null,{"$f":"'Schedule IIB'!J42","v":0}]
["Sch IIB","Investments",null,"Short - After - Qualified Assets - Preferred Stocks, BSCR Rating 2",null,null,null,null,null,null,null,null,{"$f":"'Schedule IIB'!J43","v":0}]
["Sch IIB","Investments",null,"Short - After - Qualified Assets - Preferred Stocks, BSCR Rating 3",null,null,null,null,null,null,null,null,{"$f":"'Schedule IIB'!J44","v":0}]
["Sch IIB","Investments",null,"Short - After - Qualified Assets - Preferred Stocks, BSCR Rating 4",null,null,null,null,null,null,null,null,{"$f":"'Schedule IIB'!J45","v":0}]
["Sch IIB","Investments",null,"Short - After - Qualified Assets - Preferred Stocks, BSCR Rating 5",null,null,null,null,null,null,null,null,{"$f":"'Schedule IIB'!J46","v":0}]
["Sch IIB","Investments",null,"Short - After - Qualified Assets - Preferred Stocks, BSCR Rating 6",null,null,null,null,null,null,null,null,{"$f":"'Schedule IIB'!J47","v":0}]
["Sch IIB","Investments",null,"Short - After - Qualified Assets - Preferred Stocks, BSCR Rating 7",null,null,null,null,null,null,null,null,{"$f":"'Schedule IIB'!J48","v":0}]
["Sch IIB","Investments",null,"Short - After - Qualified Assets - Preferred Stocks, BSCR Rating 8",null,null,null,null,null,null,null,null,{"$f":"'Schedule IIB'!J49","v":0}]
["Sch IIB","Investments",null,"Short - After - Qualified Assets - Equity Derivatives on Type 1 Equities",null,null,null,null,null,null,null,null,{"$f":"'Schedule IIB'!J50","v":0}]
["Sch IIB","Investments",null,"Short - After - Qualified Assets - Strategic Holdings - Unlisted",null,null,null,null,null,null,null,null,{"$f":"'Schedule IIB'!J51","v":0}]
["Sch IIB","Investments",null,"Short - After - Qualified Assets - Other Equities",null,null,null,null,null,null,null,null,{"$f":"'Schedule IIB'!J52","v":0}]
["Sch IIB","Investments",null,"Short - After - Qualified Assets - Letters of Credit",null,null,null,null,null,null,null,null,{"$f":"'Schedule IIB'!J53","v":0}]
["Sch IIB","Investments",null,"Short - After - Qualified Assets - Intangible assets",null,null,null,null,null,null,null,null,{"$f":"'Schedule IIB'!J54","v":0}]
["Sch IIB","Investments",null,"Short - After - Qualified Assets - Pension Benefit Surplus",null,null,null,null,null,null,null,null,{"$f":"'Schedule IIB'!J55","v":0}]
["Sch IIB","Investments",null,"Short - After - Qualified Assets - Equity Derivatives on Type 2 Equities",null,null,null,null,null,null,null,null,{"$f":"'Schedule IIB'!J56","v":0}]
["Sch IIB","Investments",null,"Short - After - Qualified Assets - Infrastructure",null,null,null,null,null,null,null,null,{"$f":"'Schedule IIB'!J57","v":0}]
["Sch IIB","Investments",null,"Short - After - Qualified Assets - Derivatives on Infrastructure",null,null,null,null,null,null,null,null,{"$f":"'Schedule IIB'!J58","v":0}]
["Sch IIB","Investments",null,"Short - After - Qualified Assets - Equity Real Estate 1",null,null,null,null,null,null,null,null,{"$f":"'Schedule IIB'!J59","v":0}]
["Sch IIB","Investments",null,"Short - After - Qualified Assets - Equity Real Estate 2",null,null,null,null,null,null,null,null,{"$f":"'Schedule IIB'!J60","v":0}]
["Sch IIB","Investments",null,"Short - Before - UnQualified Assets - Strategic Holdings - Listed",null,null,null,null,null,null,null,null,{"$f":"'Schedule IIB'!L39","v":0}]
["Sch IIB","Investments",null,"Short - Before - UnQualified Assets - Duration Based",null,null,null,null,null,null,null,null,{"$f":"'Schedule IIB'!L40","v":0}]
["Sch IIB","Investments",null,"Short - Before - UnQualified Assets - Listed Equity Securities in Developed Markets",null,null,null,null,null,null,null,null,{"$f":"'Schedule IIB'!L41","v":0}]
["Sch IIB","Investments",null,"Short - Before - UnQualified Assets - Preferred Stocks, BSCR Rating 1",null,null,null,null,null,null,null,null,{"$f":"'Schedule IIB'!L42","v":0}]
["Sch IIB","Investments",null,"Short - Before - UnQualified Assets - Preferred Stocks, BSCR Rating 2",null,null,null,null,null,null,null,null,{"$f":"'Schedule IIB'!L43","v":0}]
["Sch IIB","Investments",null,"Short - Before - UnQualified Assets - Preferred Stocks, BSCR Rating 3",null,null,null,null,null,null,null,null,{"$f":"'Schedule IIB'!L44","v":0}]
["Sch IIB","Investments",null,"Short - Before - UnQualified Assets - Preferred Stocks, BSCR Rating 4",null,null,null,null,null,null,null,null,{"$f":"'Schedule IIB'!L45","v":0}]
["Sch IIB","Investments",null,"Short - Before - UnQualified Assets - Preferred Stocks, BSCR Rating 5",null,null,null,null,null,null,null,null,{"$f":"'Schedule IIB'!L46","v":0}]
["Sch IIB","Investments",null,"Short - Before - UnQualified Assets - Preferred Stocks, BSCR Rating 6",null,null,null,null,null,null,null,null,{"$f":"'Schedule IIB'!L47","v":0}]
["Sch IIB","Investments",null,"Short - Before - UnQualified Assets - Preferred Stocks, BSCR Rating 7",null,null,null,null,null,null,null,null,{"$f":"'Schedule IIB'!L48","v":0}]
["Sch IIB","Investments",null,"Short - Before - UnQualified Assets - Preferred Stocks, BSCR Rating 8",null,null,null,null,null,null,null,null,{"$f":"'Schedule IIB'!L49","v":0}]
["Sch IIB","Investments",null,"Short - Before - UnQualified Assets - Equity Derivatives on Type 1 Equities",null,null,null,null,null,null,null,null,{"$f":"'Schedule IIB'!L50","v":0}]
["Sch IIB","Investments",null,"Short - Before - UnQualified Assets - Strategic Holdings - Unlisted",null,null,null,null,null,null,null,null,{"$f":"'Schedule IIB'!L51","v":0}]
["Sch IIB","Investments",null,"Short - Before - UnQualified Assets - Other Equities",null,null,null,null,null,null,null,null,{"$f":"'Schedule IIB'!L52","v":0}]
["Sch IIB","Investments",null,"Short - Before - UnQualified Assets - Letters of Credit",null,null,null,null,null,null,null,null,{"$f":"'Schedule IIB'!L53","v":0}]
["Sch IIB","Investments",null,"Short - Before - UnQualified Assets - Intangible assets",null,null,null,null,null,null,null,null,{"$f":"'Schedule IIB'!L54","v":0}]
["Sch IIB","Investments",null,"Short - Before - UnQualified Assets - Pension Benefit Surplus",null,null,null,null,null,null,null,null,{"$f":"'Schedule IIB'!L55","v":0}]
["Sch IIB","Investments",null,"Short - Before - UnQualified Assets - Equity Derivatives on Type 2 Equities",null,null,null,null,null,null,null,null,{"$f":"'Schedule IIB'!L56","v":0}]
["Sch IIB","Investments",null,"Short - Before - UnQualified Assets - Infrastructure",null,null,null,null,null,null,null,null,{"$f":"'Schedule IIB'!L57","v":0}]
["Sch IIB","Investments",null,"Short - Before - UnQualified Assets - Derivatives on Infrastructure",null,null,null,null,null,null,null,null,{"$f":"'Schedule IIB'!L58","v":0}]
["Sch IIB","Investments",null,"Short - Before - UnQualified Assets - Equity Real Estate 1",null,null,null,null,null,null,null,null,{"$f":"'Schedule IIB'!L59","v":0}]
["Sch IIB","Investments",null,"Short - Before - UnQualified Assets - Equity Real Estate 2",null,null,null,null,null,null,null,null,{"$f":"'Schedule IIB'!L60","v":0}]
["Sch IIB","Investments",null,"Short - After - UnQualified Assets - Strategic Holdings - Listed",null,null,null,null,null,null,null,null,{"$f":"'Schedule IIB'!N39","v":0}]
["Sch IIB","Investments",null,"Short - After - UnQualified Assets - Duration Based",null,null,null,null,null,null,null,null,{"$f":"'Schedule IIB'!N40","v":0}]
["Sch IIB","Investments",null,"Short - After - UnQualified Assets - Listed Equity Securities in Developed Markets",null,null,null,null,null,null,null,null,{"$f":"'Schedule IIB'!N41","v":0}]
["Sch IIB","Investments",null,"Short - After - UnQualified Assets - Preferred Stocks, BSCR Rating 1",null,null,null,null,null,null,null,null,{"$f":"'Schedule IIB'!N42","v":0}]
["Sch IIB","Investments",null,"Short - After - UnQualified Assets - Preferred Stocks, BSCR Rating 2",null,null,null,null,null,null,null,null,{"$f":"'Schedule IIB'!N43","v":0}]
["Sch IIB","Investments",null,"Short - After - UnQualified Assets - Preferred Stocks, BSCR Rating 3",null,null,null,null,null,null,null,null,{"$f":"'Schedule IIB'!N44","v":0}]
["Sch IIB","Investments",null,"Short - After - UnQualified Assets - Preferred Stocks, BSCR Rating 4",null,null,null,null,null,null,null,null,{"$f":"'Schedule IIB'!N45","v":0}]
["Sch IIB","Investments",null,"Short - After - UnQualified Assets - Preferred Stocks, BSCR Rating 5",null,null,null,null,null,null,null,null,{"$f":"'Schedule IIB'!N46","v":0}]
["Sch IIB","Investments",null,"Short - After - UnQualified Assets - Preferred Stocks, BSCR Rating 6",null,null,null,null,null,null,null,null,{"$f":"'Schedule IIB'!N47","v":0}]
["Sch IIB","Investments",null,"Short - After - UnQualified Assets - Preferred Stocks, BSCR Rating 7",null,null,null,null,null,null,null,null,{"$f":"'Schedule IIB'!N48","v":0}]
["Sch IIB","Investments",null,"Short - After - UnQualified Assets - Preferred Stocks, BSCR Rating 8",null,null,null,null,null,null,null,null,{"$f":"'Schedule IIB'!N49","v":0}]
["Sch IIB","Investments",null,"Short - After - UnQualified Assets - Equity Derivatives on Type 1 Equities",null,null,null,null,null,null,null,null,{"$f":"'Schedule IIB'!N50","v":0}]
["Sch IIB","Investments",null,"Short - After - UnQualified Assets - Strategic Holdings - Unlisted",null,null,null,null,null,null,null,null,{"$f":"'Schedule IIB'!N51","v":0}]
["Sch IIB","Investments",null,"Short - After - UnQualified Assets - Other Equities",null,null,null,null,null,null,null,null,{"$f":"'Schedule IIB'!N52","v":0}]
["Sch IIB","Investments",null,"Short - After - UnQualified Assets - Letters of Credit",null,null,null,null,null,null,null,null,{"$f":"'Schedule IIB'!N53","v":0}]
["Sch IIB","Investments",null,"Short - After - UnQualified Assets - Intangible assets",null,null,null,null,null,null,null,null,{"$f":"'Schedule IIB'!N54","v":0}]
["Sch IIB","Investments",null,"Short - After - UnQualified Assets - Pension Benefit Surplus",null,null,null,null,null,null,null,null,{"$f":"'Schedule IIB'!N55","v":0}]
["Sch IIB","Investments",null,"Short - After - UnQualified Assets - Equity Derivatives on Type 2 Equities",null,null,null,null,null,null,null,null,{"$f":"'Schedule IIB'!N56","v":0}]
["Sch IIB","Investments",null,"Short - After - UnQualified Assets - Infrastructure",null,null,null,null,null,null,null,null,{"$f":"'Schedule IIB'!N57","v":0}]
["Sch IIB","Investments",null,"Short - After - UnQualified Assets - Derivatives on Infrastructure",null,null,null,null,null,null,null,null,{"$f":"'Schedule IIB'!N58","v":0}]
["Sch IIB","Investments",null,"Short - After - UnQualified Assets - Equity Real Estate 1",null,null,null,null,null,null,null,null,{"$f":"'Schedule IIB'!N59","v":0}]
["Sch IIB","Investments",null,"Short - After - UnQualified Assets - Equity Real Estate 2",null,null,null,null,null,null,null,null,{"$f":"'Schedule IIB'!N60","v":0}]
["Sch IIB","Investments",null,"Liabilities - Before - W/O Mgmt. Actions - Strategic Holdings - Listed",null,null,null,null,null,null,null,null,{"$f":"'Schedule IIB'!P39","v":0}]
["Sch IIB","Investments",null,"Liabilities - Before - W/O Mgmt. Actions - Duration Based",null,null,null,null,null,null,null,null,{"$f":"'Schedule IIB'!P40","v":0}]
["Sch IIB","Investments",null,"Liabilities - Before - W/O Mgmt. Actions - Listed Equity Securities in Developed Markets",null,null,null,null,null,null,null,null,{"$f":"'Schedule IIB'!P41","v":0}]
["Sch IIB","Investments",null,"Liabilities - Before - W/O Mgmt. Actions - Preferred Stocks, BSCR Rating 1",null,null,null,null,null,null,null,null,{"$f":"'Schedule IIB'!P42","v":0}]
["Sch IIB","Investments",null,"Liabilities - Before - W/O Mgmt. Actions - Preferred Stocks, BSCR Rating 2",null,null,null,null,null,null,null,null,{"$f":"'Schedule IIB'!P43","v":0}]
["Sch IIB","Investments",null,"Liabilities - Before - W/O Mgmt. Actions - Preferred Stocks, BSCR Rating 3",null,null,null,null,null,null,null,null,{"$f":"'Schedule IIB'!P44","v":0}]
["Sch IIB","Investments",null,"Liabilities - Before - W/O Mgmt. Actions - Preferred Stocks, BSCR Rating 4",null,null,null,null,null,null,null,null,{"$f":"'Schedule IIB'!P45","v":0}]
["Sch IIB","Investments",null,"Liabilities - Before - W/O Mgmt. Actions - Preferred Stocks, BSCR Rating 5",null,null,null,null,null,null,null,null,{"$f":"'Schedule IIB'!P46","v":0}]
["Sch IIB","Investments",null,"Liabilities - Before - W/O Mgmt. Actions - Preferred Stocks, BSCR Rating 6",null,null,null,null,null,null,null,null,{"$f":"'Schedule IIB'!P47","v":0}]
["Sch IIB","Investments",null,"Liabilities - Before - W/O Mgmt. Actions - Preferred Stocks, BSCR Rating 7",null,null,null,null,null,null,null,null,{"$f":"'Schedule IIB'!P48","v":0}]
["Sch IIB","Investments",null,"Liabilities - Before - W/O Mgmt. Actions - Preferred Stocks, BSCR Rating 8",null,null,null,null,null,null,null,null,{"$f":"'Schedule IIB'!P49","v":0}]
["Sch IIB","Investments",null,"Liabilities - Before - W/O Mgmt. Actions - Equity Derivatives on Type 1 Equities",null,null,null,null,null,null,null,null,{"$f":"'Schedule IIB'!P50","v":0}]
["Sch IIB","Investments",null,"Liabilities - Before - W/O Mgmt. Actions - Strategic Holdings - Unlisted",null,null,null,null,null,null,null,null,{"$f":"'Schedule IIB'!P51","v":0}]
["Sch IIB","Investments",null,"Liabilities - Before - W/O Mgmt. Actions - Other Equities",null,null,null,null,null,null,null,null,{"$f":"'Schedule IIB'!P52","v":0}]
["Sch IIB","Investments",null,"Liabilities - Before - W/O Mgmt. Actions - Letters of Credit",null,null,null,null,null,null,null,null,{"$f":"'Schedule IIB'!P53","v":0}]
["Sch IIB","Investments",null,"Liabilities - Before - W/O Mgmt. Actions - Intangible assets",null,null,null,null,null,null,null,null,{"$f":"'Schedule IIB'!P54","v":0}]
["Sch IIB","Investments",null,"Liabilities - Before - W/O Mgmt. Actions - Pension Benefit Surplus",null,null,null,null,null,null,null,null,{"$f":"'Schedule IIB'!P55","v":0}]
["Sch IIB","Investments",null,"Liabilities - Before - W/O Mgmt. Actions - Equity Derivatives on Type 2 Equities",null,null,null,null,null,null,null,null,{"$f":"'Schedule IIB'!P56","v":0}]
["Sch IIB","Investments",null,"Liabilities - Before - W/O Mgmt. Actions - Infrastructure",null,null,null,null,null,null,null,null,{"$f":"'Schedule IIB'!P57","v":0}]
["Sch IIB","Investments",null,"Liabilities - Before - W/O Mgmt. Actions - Derivatives on Infrastructure",null,null,null,null,null,null,null,null,{"$f":"'Schedule IIB'!P58","v":0}]
["Sch IIB","Investments",null,"Liabilities - Before - W/O Mgmt. Actions - Equity Real Estate 1",null,null,null,null,null,null,null,null,{"$f":"'Schedule IIB'!P59","v":0}]
["Sch IIB","Investments",null,"Liabilities - Before - W/O Mgmt. Actions - Equity Real Estate 2",null,null,null,null,null,null,null,null,{"$f":"'Schedule IIB'!P60","v":0}]
["Sch IIB","Investments",null,"Liabilities - After - W/O Mgmt. Actions - Strategic Holdings - Listed",null,null,null,null,null,null,null,null,{"$f":"'Schedule IIB'!R39","v":0}]
["Sch IIB","Investments",null,"Liabilities - After - W/O Mgmt. Actions - Duration Based",null,null,null,null,null,null,null,null,{"$f":"'Schedule IIB'!R40","v":0}]
["Sch IIB","Investments",null,"Liabilities - After - W/O Mgmt. Actions - Listed Equity Securities in Developed Markets",null,null,null,null,null,null,null,null,{"$f":"'Schedule IIB'!R41","v":0}]
["Sch IIB","Investments",null,"Liabilities - After - W/O Mgmt. Actions - Preferred Stocks, BSCR Rating 1",null,null,null,null,null,null,null,null,{"$f":"'Schedule IIB'!R42","v":0}]
["Sch IIB","Investments",null,"Liabilities - After - W/O Mgmt. Actions - Preferred Stocks, BSCR Rating 2",null,null,null,null,null,null,null,null,{"$f":"'Schedule IIB'!R43","v":0}]
["Sch IIB","Investments",null,"Liabilities - After - W/O Mgmt. Actions - Preferred Stocks, BSCR Rating 3",null,null,null,null,null,null,null,null,{"$f":"'Schedule IIB'!R44","v":0}]
["Sch IIB","Investments",null,"Liabilities - After - W/O Mgmt. Actions - Preferred Stocks, BSCR Rating 4",null,null,null,null,null,null,null,null,{"$f":"'Schedule IIB'!R45","v":0}]
["Sch IIB","Investments",null,"Liabilities - After - W/O Mgmt. Actions - Preferred Stocks, BSCR Rating 5",null,null,null,null,null,null,null,null,{"$f":"'Schedule IIB'!R46","v":0}]
["Sch IIB","Investments",null,"Liabilities - After - W/O Mgmt. Actions - Preferred Stocks, BSCR Rating 6",null,null,null,null,null,null,null,null,{"$f":"'Schedule IIB'!R47","v":0}]
["Sch IIB","Investments",null,"Liabilities - After - W/O Mgmt. Actions - Preferred Stocks, BSCR Rating 7",null,null,null,null,null,null,null,null,{"$f":"'Schedule IIB'!R48","v":0}]
["Sch IIB","Investments",null,"Liabilities - After - W/O Mgmt. Actions - Preferred Stocks, BSCR Rating 8",null,null,null,null,null,null,null,null,{"$f":"'Schedule IIB'!R49","v":0}]
["Sch IIB","Investments",null,"Liabilities - After - W/O Mgmt. Actions - Equity Derivatives on Type 1 Equities",null,null,null,null,null,null,null,null,{"$f":"'Schedule IIB'!R50","v":0}]
["Sch IIB","Investments",null,"Liabilities - After - W/O Mgmt. Actions - Strategic Holdings - Unlisted",null,null,null,null,null,null,null,null,{"$f":"'Schedule IIB'!R51","v":0}]
["Sch IIB","Investments",null,"Liabilities - After - W/O Mgmt. Actions - Other Equities",null,null,null,null,null,null,null,null,{"$f":"'Schedule IIB'!R52","v":0}]
["Sch IIB","Investments",null,"Liabilities - After - W/O Mgmt. Actions - Letters of Credit",null,null,null,null,null,null,null,null,{"$f":"'Schedule IIB'!R53","v":0}]
["Sch IIB","Investments",null,"Liabilities - After - W/O Mgmt. Actions - Intangible assets",null,null,null,null,null,null,null,null,{"$f":"'Schedule IIB'!R54","v":0}]
["Sch IIB","Investments",null,"Liabilities - After - W/O Mgmt. Actions - Pension Benefit Surplus",null,null,null,null,null,null,null,null,{"$f":"'Schedule IIB'!R55","v":0}]
["Sch IIB","Investments",null,"Liabilities - After - W/O Mgmt. Actions - Equity Derivatives on Type 2 Equities",null,null,null,null,null,null,null,null,{"$f":"'Schedule IIB'!R56","v":0}]
["Sch IIB","Investments",null,"Liabilities - After - W/O Mgmt. Actions - Infrastructure",null,null,null,null,null,null,null,null,{"$f":"'Schedule IIB'!R57","v":0}]
["Sch IIB","Investments",null,"Liabilities - After - W/O Mgmt. Actions - Derivatives on Infrastructure",null,null,null,null,null,null,null,null,{"$f":"'Schedule IIB'!R58","v":0}]
["Sch IIB","Investments",null,"Liabilities - After - W/O Mgmt. Actions - Equity Real Estate 1",null,null,null,null,null,null,null,null,{"$f":"'Schedule IIB'!R59","v":0}]
["Sch IIB","Investments",null,"Liabilities - After - W/O Mgmt. Actions - Equity Real Estate 2",null,null,null,null,null,null,null,null,{"$f":"'Schedule IIB'!R60","v":0}]
["Sch IIB","Investments",null,"Liabilities - After - With Mgmt. Actions - Strategic Holdings - Listed",null,null,null,null,null,null,null,null,{"$f":"'Schedule IIB'!T39","v":0}]
["Sch IIB","Investments",null,"Liabilities - After - With Mgmt. Actions - Duration Based",null,null,null,null,null,null,null,null,{"$f":"'Schedule IIB'!T40","v":0}]
["Sch IIB","Investments",null,"Liabilities - After - With Mgmt. Actions - Listed Equity Securities in Developed Markets",null,null,null,null,null,null,null,null,{"$f":"'Schedule IIB'!T41","v":0}]
["Sch IIB","Investments",null,"Liabilities - After - With Mgmt. Actions - Preferred Stocks, BSCR Rating 1",null,null,null,null,null,null,null,null,{"$f":"'Schedule IIB'!T42","v":0}]
["Sch IIB","Investments",null,"Liabilities - After - With Mgmt. Actions - Preferred Stocks, BSCR Rating 2",null,null,null,null,null,null,null,null,{"$f":"'Schedule IIB'!T43","v":0}]
["Sch IIB","Investments",null,"Liabilities - After - With Mgmt. Actions - Preferred Stocks, BSCR Rating 3",null,null,null,null,null,null,null,null,{"$f":"'Schedule IIB'!T44","v":0}]
["Sch IIB","Investments",null,"Liabilities - After - With Mgmt. Actions - Preferred Stocks, BSCR Rating 4",null,null,null,null,null,null,null,null,{"$f":"'Schedule IIB'!T45","v":0}]
["Sch IIB","Investments",null,"Liabilities - After - With Mgmt. Actions - Preferred Stocks, BSCR Rating 5",null,null,null,null,null,null,null,null,{"$f":"'Schedule IIB'!T46","v":0}]
["Sch IIB","Investments",null,"Liabilities - After - With Mgmt. Actions - Preferred Stocks, BSCR Rating 6",null,null,null,null,null,null,null,null,{"$f":"'Schedule IIB'!T47","v":0}]
["Sch IIB","Investments",null,"Liabilities - After - With Mgmt. Actions - Preferred Stocks, BSCR Rating 7",null,null,null,null,null,null,null,null,{"$f":"'Schedule IIB'!T48","v":0}]
["Sch IIB","Investments",null,"Liabilities - After - With Mgmt. Actions - Preferred Stocks, BSCR Rating 8",null,null,null,null,null,null,null,null,{"$f":"'Schedule IIB'!T49","v":0}]
["Sch IIB","Investments",null,"Liabilities - After - With Mgmt. Actions - Equity Derivatives on Type 1 Equities",null,null,null,null,null,null,null,null,{"$f":"'Schedule IIB'!T50","v":0}]
["Sch IIB","Investments",null,"Liabilities - After - With Mgmt. Actions - Strategic Holdings - Unlisted",null,null,null,null,null,null,null,null,{"$f":"'Schedule IIB'!T51","v":0}]
["Sch IIB","Investments",null,"Liabilities - After - With Mgmt. Actions - Other Equities",null,null,null,null,null,null,null,null,{"$f":"'Schedule IIB'!T52","v":0}]
["Sch IIB","Investments",null,"Liabilities - After - With Mgmt. Actions - Letters of Credit",null,null,null,null,null,null,null,null,{"$f":"'Schedule IIB'!T53","v":0}]
["Sch IIB","Investments",null,"Liabilities - After - With Mgmt. Actions - Intangible assets",null,null,null,null,null,null,null,null,{"$f":"'Schedule IIB'!T54","v":0}]
["Sch IIB","Investments",null,"Liabilities - After - With Mgmt. Actions - Pension Benefit Surplus",null,null,null,null,null,null,null,null,{"$f":"'Schedule IIB'!T55","v":0}]
["Sch IIB","Investments",null,"Liabilities - After - With Mgmt. Actions - Equity Derivatives on Type 2 Equities",null,null,null,null,null,null,null,null,{"$f":"'Schedule IIB'!T56","v":0}]
["Sch IIB","Investments",null,"Liabilities - After - With Mgmt. Actions - Infrastructure",null,null,null,null,null,null,null,null,{"$f":"'Schedule IIB'!T57","v":0}]
["Sch IIB","Investments",null,"Liabilities - After - With Mgmt. Actions - Derivatives on Infrastructure",null,null,null,null,null,null,null,null,{"$f":"'Schedule IIB'!T58","v":0}]
["Sch IIB","Investments",null,"Liabilities - After - With Mgmt. Actions - Equity Real Estate 1",null,null,null,null,null,null,null,null,{"$f":"'Schedule IIB'!T59","v":0}]
["Sch IIB","Investments",null,"Liabilities - After - With Mgmt. Actions - Equity Real Estate 2",null,null,null,null,null,null,null,null,{"$f":"'Schedule IIB'!T60","v":0}]
["Sch IIB","Investments",null,"Credit Derivatives - Up - Before - Long-Rating 0",null,null,null,null,null,null,null,null,{"$f":"'Schedule IIB'!D68","v":0}]
["Sch IIB","Investments",null,"Credit Derivatives - Up - Before - Long-Rating 1",null,null,null,null,null,null,null,null,{"$f":"'Schedule IIB'!D69","v":0}]
["Sch IIB","Investments",null,"Credit Derivatives - Up - Before - Long-Rating 2",null,null,null,null,null,null,null,null,{"$f":"'Schedule IIB'!D70","v":0}]
["Sch IIB","Investments",null,"Credit Derivatives - Up - Before - Long-Rating 3",null,null,null,null,null,null,null,null,{"$f":"'Schedule IIB'!D71","v":0}]
["Sch IIB","Investments",null,"Credit Derivatives - Up - Before - Long-Rating 4",null,null,null,null,null,null,null,null,{"$f":"'Schedule IIB'!D72","v":0}]
["Sch IIB","Investments",null,"Credit Derivatives - Up - Before - Long-Rating 5",null,null,null,null,null,null,null,null,{"$f":"'Schedule IIB'!D73","v":0}]
["Sch IIB","Investments",null,"Credit Derivatives - Up - Before - Long-Rating 6",null,null,null,null,null,null,null,null,{"$f":"'Schedule IIB'!D74","v":0}]
["Sch IIB","Investments",null,"Credit Derivatives - Up - Before - Long-Rating 7",null,null,null,null,null,null,null,null,{"$f":"'Schedule IIB'!D75","v":0}]
["Sch IIB","Investments",null,"Credit Derivatives - Up - Before - Long-Rating 8",null,null,null,null,null,null,null,null,{"$f":"'Schedule IIB'!D76","v":0}]
["Sch IIB","Investments",null,"Credit Derivatives - Up - After - Long- Rating 0",null,null,null,null,null,null,null,null,{"$f":"'Schedule IIB'!F68","v":0}]
["Sch IIB","Investments",null,"Credit Derivatives - Up - After - Long- Rating 1",null,null,null,null,null,null,null,null,{"$f":"'Schedule IIB'!F69","v":0}]
["Sch IIB","Investments",null,"Credit Derivatives - Up - After - Long- Rating 2",null,null,null,null,null,null,null,null,{"$f":"'Schedule IIB'!F70","v":0}]
["Sch IIB","Investments",null,"Credit Derivatives - Up - After - Long- Rating 3",null,null,null,null,null,null,null,null,{"$f":"'Schedule IIB'!F71","v":0}]
["Sch IIB","Investments",null,"Credit Derivatives - Up - After - Long- Rating 4",null,null,null,null,null,null,null,null,{"$f":"'Schedule IIB'!F72","v":0}]
["Sch IIB","Investments",null,"Credit Derivatives - Up - After - Long- Rating 5",null,null,null,null,null,null,null,null,{"$f":"'Schedule IIB'!F73","v":0}]
["Sch IIB","Investments",null,"Credit Derivatives - Up - After - Long- Rating 6",null,null,null,null,null,null,null,null,{"$f":"'Schedule IIB'!F74","v":0}]
["Sch IIB","Investments",null,"Credit Derivatives - Up - After - Long- Rating 7",null,null,null,null,null,null,null,null,{"$f":"'Schedule IIB'!F75","v":0}]
["Sch IIB","Investments",null,"Credit Derivatives - Up - After - Long- Rating 8",null,null,null,null,null,null,null,null,{"$f":"'Schedule IIB'!F76","v":0}]
["Sch IIB","Investments",null,"Credit Derivatives - Up - Before - Short- Rating 0",null,null,null,null,null,null,null,null,{"$f":"'Schedule IIB'!H68","v":0}]
["Sch IIB","Investments",null,"Credit Derivatives - Up - Before - Short- Rating 1",null,null,null,null,null,null,null,null,{"$f":"'Schedule IIB'!H69","v":0}]
["Sch IIB","Investments",null,"Credit Derivatives - Up - Before - Short- Rating 2",null,null,null,null,null,null,null,null,{"$f":"'Schedule IIB'!H70","v":0}]
["Sch IIB","Investments",null,"Credit Derivatives - Up - Before - Short- Rating 3",null,null,null,null,null,null,null,null,{"$f":"'Schedule IIB'!H71","v":0}]
["Sch IIB","Investments",null,"Credit Derivatives - Up - Before - Short- Rating 4",null,null,null,null,null,null,null,null,{"$f":"'Schedule IIB'!H72","v":0}]
["Sch IIB","Investments",null,"Credit Derivatives - Up - Before - Short- Rating 5",null,null,null,null,null,null,null,null,{"$f":"'Schedule IIB'!H73","v":0}]
["Sch IIB","Investments",null,"Credit Derivatives - Up - Before - Short- Rating 6",null,null,null,null,null,null,null,null,{"$f":"'Schedule IIB'!H74","v":0}]
["Sch IIB","Investments",null,"Credit Derivatives - Up - Before - Short- Rating 7",null,null,null,null,null,null,null,null,{"$f":"'Schedule IIB'!H75","v":0}]
["Sch IIB","Investments",null,"Credit Derivatives - Up - Before - Short- Rating 8",null,null,null,null,null,null,null,null,{"$f":"'Schedule IIB'!H76","v":0}]
["Sch IIB","Investments",null,"Credit Derivatives - Up - After - Short- Rating 0",null,null,null,null,null,null,null,null,{"$f":"'Schedule IIB'!J68","v":0}]
["Sch IIB","Investments",null,"Credit Derivatives - Up - After - Short- Rating 1",null,null,null,null,null,null,null,null,{"$f":"'Schedule IIB'!J69","v":0}]
["Sch IIB","Investments",null,"Credit Derivatives - Up - After - Short- Rating 2",null,null,null,null,null,null,null,null,{"$f":"'Schedule IIB'!J70","v":0}]
["Sch IIB","Investments",null,"Credit Derivatives - Up - After - Short- Rating 3",null,null,null,null,null,null,null,null,{"$f":"'Schedule IIB'!J71","v":0}]
["Sch IIB","Investments",null,"Credit Derivatives - Up - After - Short- Rating 4",null,null,null,null,null,null,null,null,{"$f":"'Schedule IIB'!J72","v":0}]
["Sch IIB","Investments",null,"Credit Derivatives - Up - After - Short- Rating 5",null,null,null,null,null,null,null,null,{"$f":"'Schedule IIB'!J73","v":0}]
["Sch IIB","Investments",null,"Credit Derivatives - Up - After - Short- Rating 6",null,null,null,null,null,null,null,null,{"$f":"'Schedule IIB'!J74","v":0}]
["Sch IIB","Investments",null,"Credit Derivatives - Up - After - Short- Rating 7",null,null,null,null,null,null,null,null,{"$f":"'Schedule IIB'!J75","v":0}]
["Sch IIB","Investments",null,"Credit Derivatives - Up - After - Short- Rating 8",null,null,null,null,null,null,null,null,{"$f":"'Schedule IIB'!J76","v":0}]
["Sch IIB","Investments",null,"Credit Derivatives - Down - Before - Long-Rating 0",null,null,null,null,null,null,null,null,{"$f":"'Schedule IIB'!N68","v":0}]
["Sch IIB","Investments",null,"Credit Derivatives - Down - Before - Long-Rating 1",null,null,null,null,null,null,null,null,{"$f":"'Schedule IIB'!N69","v":0}]
["Sch IIB","Investments",null,"Credit Derivatives - Down - Before - Long-Rating 2",null,null,null,null,null,null,null,null,{"$f":"'Schedule IIB'!N70","v":0}]
["Sch IIB","Investments",null,"Credit Derivatives - Down - Before - Long-Rating 3",null,null,null,null,null,null,null,null,{"$f":"'Schedule IIB'!N71","v":0}]
["Sch IIB","Investments",null,"Credit Derivatives - Down - Before - Long-Rating 4",null,null,null,null,null,null,null,null,{"$f":"'Schedule IIB'!N72","v":0}]
["Sch IIB","Investments",null,"Credit Derivatives - Down - Before - Long-Rating 5",null,null,null,null,null,null,null,null,{"$f":"'Schedule IIB'!N73","v":0}]
["Sch IIB","Investments",null,"Credit Derivatives - Down - Before - Long-Rating 6",null,null,null,null,null,null,null,null,{"$f":"'Schedule IIB'!N74","v":0}]
["Sch IIB","Investments",null,"Credit Derivatives - Down - Before - Long-Rating 7",null,null,null,null,null,null,null,null,{"$f":"'Schedule IIB'!N75","v":0}]
["Sch IIB","Investments",null,"Credit Derivatives - Down - Before - Long-Rating 8",null,null,null,null,null,null,null,null,{"$f":"'Schedule IIB'!N76","v":0}]
["Sch IIB","Investments",null,"Credit Derivatives - Down - After - Long- Rating 0",null,null,null,null,null,null,null,null,{"$f":"'Schedule IIB'!P68","v":0}]
["Sch IIB","Investments",null,"Credit Derivatives - Down - After - Long- Rating 1",null,null,null,null,null,null,null,null,{"$f":"'Schedule IIB'!P69","v":0}]
["Sch IIB","Investments",null,"Credit Derivatives - Down - After - Long- Rating 2",null,null,null,null,null,null,null,null,{"$f":"'Schedule IIB'!P70","v":0}]
["Sch IIB","Investments",null,"Credit Derivatives - Down - After - Long- Rating 3",null,null,null,null,null,null,null,null,{"$f":"'Schedule IIB'!P71","v":0}]
["Sch IIB","Investments",null,"Credit Derivatives - Down - After - Long- Rating 4",null,null,null,null,null,null,null,null,{"$f":"'Schedule IIB'!P72","v":0}]
["Sch IIB","Investments",null,"Credit Derivatives - Down - After - Long- Rating 5",null,null,null,null,null,null,null,null,{"$f":"'Schedule IIB'!P73","v":0}]
["Sch IIB","Investments",null,"Credit Derivatives - Down - After - Long- Rating 6",null,null,null,null,null,null,null,null,{"$f":"'Schedule IIB'!P74","v":0}]
["Sch IIB","Investments",null,"Credit Derivatives - Down - After - Long- Rating 7",null,null,null,null,null,null,null,null,{"$f":"'Schedule IIB'!P75","v":0}]
["Sch IIB","Investments",null,"Credit Derivatives - Down - After - Long- Rating 8",null,null,null,null,null,null,null,null,{"$f":"'Schedule IIB'!P76","v":0}]
["Sch IIB","Investments",null,"Credit Derivatives - Down - Before - Short- Rating 0",null,null,null,null,null,null,null,null,{"$f":"'Schedule IIB'!R68","v":0}]
["Sch IIB","Investments",null,"Credit Derivatives - Down - Before - Short- Rating 1",null,null,null,null,null,null,null,null,{"$f":"'Schedule IIB'!R69","v":0}]
["Sch IIB","Investments",null,"Credit Derivatives - Down - Before - Short- Rating 2",null,null,null,null,null,null,null,null,{"$f":"'Schedule IIB'!R70","v":0}]
["Sch IIB","Investments",null,"Credit Derivatives - Down - Before - Short- Rating 3",null,null,null,null,null,null,null,null,{"$f":"'Schedule IIB'!R71","v":0}]
["Sch IIB","Investments",null,"Credit Derivatives - Down - Before - Short- Rating 4",null,null,null,null,null,null,null,null,{"$f":"'Schedule IIB'!R72","v":0}]
["Sch IIB","Investments",null,"Credit Derivatives - Down - Before - Short- Rating 5",null,null,null,null,null,null,null,null,{"$f":"'Schedule IIB'!R73","v":0}]
["Sch IIB","Investments",null,"Credit Derivatives - Down - Before - Short- Rating 6",null,null,null,null,null,null,null,null,{"$f":"'Schedule IIB'!R74","v":0}]
["Sch IIB","Investments",null,"Credit Derivatives - Down - Before - Short- Rating 7",null,null,null,null,null,null,null,null,{"$f":"'Schedule IIB'!R75","v":0}]
["Sch IIB","Investments",null,"Credit Derivatives - Down - Before - Short- Rating 8",null,null,null,null,null,null,null,null,{"$f":"'Schedule IIB'!R76","v":0}]
["Sch IIB","Investments",null,"Credit Derivatives - Down - After - Short- Rating 0",null,null,null,null,null,null,null,null,{"$f":"'Schedule IIB'!T68","v":0}]
["Sch IIB","Investments",null,"Credit Derivatives - Down - After - Short- Rating 1",null,null,null,null,null,null,null,null,{"$f":"'Schedule IIB'!T69","v":0}]
["Sch IIB","Investments",null,"Credit Derivatives - Down - After - Short- Rating 2",null,null,null,null,null,null,null,null,{"$f":"'Schedule IIB'!T70","v":0}]
["Sch IIB","Investments",null,"Credit Derivatives - Down - After - Short- Rating 3",null,null,null,null,null,null,null,null,{"$f":"'Schedule IIB'!T71","v":0}]
["Sch IIB","Investments",null,"Credit Derivatives - Down - After - Short- Rating 4",null,null,null,null,null,null,null,null,{"$f":"'Schedule IIB'!T72","v":0}]
["Sch IIB","Investments",null,"Credit Derivatives - Down - After - Short- Rating 5",null,null,null,null,null,null,null,null,{"$f":"'Schedule IIB'!T73","v":0}]
["Sch IIB","Investments",null,"Credit Derivatives - Down - After - Short- Rating 6",null,null,null,null,null,null,null,null,{"$f":"'Schedule IIB'!T74","v":0}]
["Sch IIB","Investments",null,"Credit Derivatives - Down - After - Short- Rating 7",null,null,null,null,null,null,null,null,{"$f":"'Schedule IIB'!T75","v":0}]
["Sch IIB","Investments",null,"Credit Derivatives - Down - After - Short- Rating 8",null,null,null,null,null,null,null,null,{"$f":"'Schedule IIB'!T76","v":0}]
["Sch IIB","Investments",null,"Counterparty Default Risk - MV of Derivatives - MV Positive - Rating 0",null,null,null,null,null,null,null,null,{"$f":"'Schedule IIB'!D84","v":0}]
["Sch IIB","Investments",null,"Counterparty Default Risk - MV of Derivatives - MV Positive - Rating 1",null,null,null,null,null,null,null,null,{"$f":"'Schedule IIB'!D85","v":0}]
["Sch IIB","Investments",null,"Counterparty Default Risk - MV of Derivatives - MV Positive - Rating 2",null,null,null,null,null,null,null,null,{"$f":"'Schedule IIB'!D86","v":0}]
["Sch IIB","Investments",null,"Counterparty Default Risk - MV of Derivatives - MV Positive - Rating 3",null,null,null,null,null,null,null,null,{"$f":"'Schedule IIB'!D87","v":0}]
["Sch IIB","Investments",null,"Counterparty Default Risk - MV of Derivatives - MV Positive - Rating 4",null,null,null,null,null,null,null,null,{"$f":"'Schedule IIB'!D88","v":0}]
["Sch IIB","Investments",null,"Counterparty Default Risk - MV of Derivatives - MV Positive - Rating 5",null,null,null,null,null,null,null,null,{"$f":"'Schedule IIB'!D89","v":0}]
["Sch IIB","Investments",null,"Counterparty Default Risk - MV of Derivatives - MV Positive - Rating 6",null,null,null,null,null,null,null,null,{"$f":"'Schedule IIB'!D90","v":0}]
["Sch IIB","Investments",null,"Counterparty Default Risk - MV of Derivatives - MV Positive - Rating 7",null,null,null,null,null,null,null,null,{"$f":"'Schedule IIB'!D91","v":0}]
["Sch IIB","Investments",null,"Counterparty Default Risk - MV of Derivatives - MV Positive - Rating 8",null,null,null,null,null,null,null,null,{"$f":"'Schedule IIB'!D92","v":0}]
["Sch IIB","Investments",null,"Counterparty Default Risk - MV of Derivatives - MV Negative - Rating 0",null,null,null,null,null,null,null,null,{"$f":"'Schedule IIB'!F84","v":0}]
["Sch IIB","Investments",null,"Counterparty Default Risk - MV of Derivatives - MV Negative - Rating 1",null,null,null,null,null,null,null,null,{"$f":"'Schedule IIB'!F85","v":0}]
["Sch IIB","Investments",null,"Counterparty Default Risk - MV of Derivatives - MV Negative - Rating 2",null,null,null,null,null,null,null,null,{"$f":"'Schedule IIB'!F86","v":0}]
["Sch IIB","Investments",null,"Counterparty Default Risk - MV of Derivatives - MV Negative - Rating 3",null,null,null,null,null,null,null,null,{"$f":"'Schedule IIB'!F87","v":0}]
["Sch IIB","Investments",null,"Counterparty Default Risk - MV of Derivatives - MV Negative - Rating 4",null,null,null,null,null,null,null,null,{"$f":"'Schedule IIB'!F88","v":0}]
["Sch IIB","Investments",null,"Counterparty Default Risk - MV of Derivatives - MV Negative - Rating 5",null,null,null,null,null,null,null,null,{"$f":"'Schedule IIB'!F89","v":0}]
["Sch IIB","Investments",null,"Counterparty Default Risk - MV of Derivatives - MV Negative - Rating 6",null,null,null,null,null,null,null,null,{"$f":"'Schedule IIB'!F90","v":0}]
["Sch IIB","Investments",null,"Counterparty Default Risk - MV of Derivatives - MV Negative - Rating 7",null,null,null,null,null,null,null,null,{"$f":"'Schedule IIB'!F91","v":0}]
["Sch IIB","Investments",null,"Counterparty Default Risk - MV of Derivatives - MV Negative - Rating 8",null,null,null,null,null,null,null,null,{"$f":"'Schedule IIB'!F92","v":0}]
["Sch IIB","Investments",null,"Counterparty Default Risk - MV of Collateral - Rating 0",null,null,null,null,null,null,null,null,{"$f":"'Schedule IIB'!H84","v":0}]
["Sch IIB","Investments",null,"Counterparty Default Risk - MV of Collateral - Rating 1",null,null,null,null,null,null,null,null,{"$f":"'Schedule IIB'!H85","v":0}]
["Sch IIB","Investments",null,"Counterparty Default Risk - MV of Collateral - Rating 2",null,null,null,null,null,null,null,null,{"$f":"'Schedule IIB'!H86","v":0}]
["Sch IIB","Investments",null,"Counterparty Default Risk - MV of Collateral - Rating 3",null,null,null,null,null,null,null,null,{"$f":"'Schedule IIB'!H87","v":0}]
["Sch IIB","Investments",null,"Counterparty Default Risk - MV of Collateral - Rating 4",null,null,null,null,null,null,null,null,{"$f":"'Schedule IIB'!H88","v":0}]
["Sch IIB","Investments",null,"Counterparty Default Risk - MV of Collateral - Rating 5",null,null,null,null,null,null,null,null,{"$f":"'Schedule IIB'!H89","v":0}]
["Sch IIB","Investments",null,"Counterparty Default Risk - MV of Collateral - Rating 6",null,null,null,null,null,null,null,null,{"$f":"'Schedule IIB'!H90","v":0}]
["Sch IIB","Investments",null,"Counterparty Default Risk - MV of Collateral - Rating 7",null,null,null,null,null,null,null,null,{"$f":"'Schedule IIB'!H91","v":0}]
["Sch IIB","Investments",null,"Counterparty Default Risk - MV of Collateral - Rating 8",null,null,null,null,null,null,null,null,{"$f":"'Schedule IIB'!H92","v":0}]
["Sch IIB","Investments",null,"Cash and Cash Equivalents",null,null,null,null,null,null,null,null,{"$f":"'Schedule IIB'!D95","v":0}]
["Sch IIB","Investments",null,"NAIC Resid. MBS - Orig. Class 1",null,null,null,null,null,null,null,null,{"$f":"'Schedule IIB'!N86","v":0}]
["Sch IIB","Investments",null,"NAIC Resid. MBS - Orig. Class 2",null,null,null,null,null,null,null,null,{"$f":"'Schedule IIB'!N87","v":0}]
["Sch IIB","Investments",null,"NAIC Resid. MBS - Orig. Class 3",null,null,null,null,null,null,null,null,{"$f":"'Schedule IIB'!N88","v":0}]
["Sch IIB","Investments",null,"NAIC Resid. MBS - Orig. Class 4",null,null,null,null,null,null,null,null,{"$f":"'Schedule IIB'!N89","v":0}]
["Sch IIB","Investments",null,"NAIC Resid. MBS - Orig. Class 5",null,null,null,null,null,null,null,null,{"$f":"'Schedule IIB'!N90","v":0}]
["Sch IIB","Investments",null,"NAIC Resid. MBS - Orig. Class 6",null,null,null,null,null,null,null,null,{"$f":"'Schedule IIB'!N91","v":0}]
["Sch IIB","Investments",null,"NAIC Resid. MBS - Orig. Total",null,null,null,null,null,null,null,null,{"$f":"'Schedule IIB'!N92","v":0}]
["Sch IIB","Investments",null,"NAIC Resid. MBS - Rev. Class 1",null,null,null,null,null,null,null,null,{"$f":"'Schedule IIB'!P86","v":0}]
["Sch IIB","Investments",null,"NAIC Resid. MBS - Rev. Class 2",null,null,null,null,null,null,null,null,{"$f":"'Schedule IIB'!P87","v":0}]
["Sch IIB","Investments",null,"NAIC Resid. MBS - Rev. Class 3",null,null,null,null,null,null,null,null,{"$f":"'Schedule IIB'!P88","v":0}]
["Sch IIB","Investments",null,"NAIC Resid. MBS - Rev. Class 4",null,null,null,null,null,null,null,null,{"$f":"'Schedule IIB'!P89","v":0}]
["Sch IIB","Investments",null,"NAIC Resid. MBS - Rev. Class 5",null,null,null,null,null,null,null,null,{"$f":"'Schedule IIB'!P90","v":0}]
["Sch IIB","Investments",null,"NAIC Resid. MBS - Rev. Class 6",null,null,null,null,null,null,null,null,{"$f":"'Schedule IIB'!P91","v":0}]
["Sch IIB","Investments",null,"NAIC Resid. MBS - Rev. Total",null,null,null,null,null,null,null,null,{"$f":"'Schedule IIB'!P92","v":0}]
["Sch IIB","Investments",null,"NAIC Comm. MBS - Orig. Class 1",null,null,null,null,null,null,null,null,{"$f":"'Schedule IIB'!R86","v":0}]
["Sch IIB","Investments",null,"NAIC Comm. MBS - Orig. Class 2",null,null,null,null,null,null,null,null,{"$f":"'Schedule IIB'!R87","v":0}]
["Sch IIB","Investments",null,"NAIC Comm. MBS - Orig. Class 3",null,null,null,null,null,null,null,null,{"$f":"'Schedule IIB'!R88","v":0}]
["Sch IIB","Investments",null,"NAIC Comm. MBS - Orig. Class 4",null,null,null,null,null,null,null,null,{"$f":"'Schedule IIB'!R89","v":0}]
["Sch IIB","Investments",null,"NAIC Comm. MBS - Orig. Class 5",null,null,null,null,null,null,null,null,{"$f":"'Schedule IIB'!R90","v":0}]
["Sch IIB","Investments",null,"NAIC Comm. MBS - Orig. Class 6",null,null,null,null,null,null,null,null,{"$f":"'Schedule IIB'!R91","v":0}]
["Sch IIB","Investments",null,"NAIC Comm. MBS - Orig. Total",null,null,null,null,null,null,null,null,{"$f":"'Schedule IIB'!R92","v":0}]
["Sch IIB","Investments",null,"NAIC Comm. MBS - Rev. Class 1",null,null,null,null,null,null,null,null,{"$f":"'Schedule IIB'!T86","v":0}]
["Sch IIB","Investments",null,"NAIC Comm. MBS - Rev. Class 2",null,null,null,null,null,null,null,null,{"$f":"'Schedule IIB'!T87","v":0}]
["Sch IIB","Investments",null,"NAIC Comm. MBS - Rev. Class 3",null,null,null,null,null,null,null,null,{"$f":"'Schedule IIB'!T88","v":0}]
["Sch IIB","Investments",null,"NAIC Comm. MBS - Rev. Class 4",null,null,null,null,null,null,null,null,{"$f":"'Schedule IIB'!T89","v":0}]
["Sch IIB","Investments",null,"NAIC Comm. MBS - Rev. Class 5",null,null,null,null,null,null,null,null,{"$f":"'Schedule IIB'!T90","v":0}]
["Sch IIB","Investments",null,"NAIC Comm. MBS - Rev. Class 6",null,null,null,null,null,null,null,null,{"$f":"'Schedule IIB'!T91","v":0}]
["Sch IIB","Investments",null,"NAIC Comm. MBS - Rev. Total",null,null,null,null,null,null,null,null,{"$f":"'Schedule IIB'!T92","v":0}]
["Sch IIB","Investments",null,"NAIC Rating Corp & Sov. Bond - Class 1",null,null,null,null,null,null,null,null,{"$f":"'Schedule IIB'!D101","v":0}]
["Sch IIB","Investments",null,"NAIC Rating Corp & Sov. Bond - Class 2",null,null,null,null,null,null,null,null,{"$f":"'Schedule IIB'!D102","v":0}]
["Sch IIB","Investments",null,"NAIC Rating Corp & Sov. Bond - Class 3",null,null,null,null,null,null,null,null,{"$f":"'Schedule IIB'!D103","v":0}]
["Sch IIB","Investments",null,"NAIC Rating Corp & Sov. Bond - Class 4",null,null,null,null,null,null,null,null,{"$f":"'Schedule IIB'!D104","v":0}]
["Sch IIB","Investments",null,"NAIC Rating Corp & Sov. Bond - Class 5",null,null,null,null,null,null,null,null,{"$f":"'Schedule IIB'!D105","v":0}]
["Sch IIB","Investments",null,"NAIC Rating Corp & Sov. Bond - Class 6",null,null,null,null,null,null,null,null,{"$f":"'Schedule IIB'!D106","v":0}]
["Sch IIB","Investments",null,"NAIC Rating Corp & Sov. Bond - Total",null,null,null,null,null,null,null,null,{"$f":"'Schedule IIB'!D107","v":0}]
["Sch IIB","Investments",null,"NAIC Rating Resid. MBS - Class 1",null,null,null,null,null,null,null,null,{"$f":"'Schedule IIB'!F101","v":0}]
["Sch IIB","Investments",null,"NAIC Rating Resid. MBS - Class 2",null,null,null,null,null,null,null,null,{"$f":"'Schedule IIB'!F102","v":0}]
["Sch IIB","Investments",null,"NAIC Rating Resid. MBS - Class 3",null,null,null,null,null,null,null,null,{"$f":"'Schedule IIB'!F103","v":0}]
["Sch IIB","Investments",null,"NAIC Rating Resid. MBS - Class 4",null,null,null,null,null,null,null,null,{"$f":"'Schedule IIB'!F104","v":0}]
["Sch IIB","Investments",null,"NAIC Rating Resid. MBS - Class 5",null,null,null,null,null,null,null,null,{"$f":"'Schedule IIB'!F105","v":0}]
["Sch IIB","Investments",null,"NAIC Rating Resid. MBS - Class 6",null,null,null,null,null,null,null,null,{"$f":"'Schedule IIB'!F106","v":0}]
["Sch IIB","Investments",null,"NAIC Rating Resid. MBS - Total",null,null,null,null,null,null,null,null,{"$f":"'Schedule IIB'!F107","v":0}]
["Sch IIB","Investments",null,"NAIC Rating Comm. MBS - Class 1",null,null,null,null,null,null,null,null,{"$f":"'Schedule IIB'!H101","v":0}]
["Sch IIB","Investments",null,"NAIC Rating Comm. MBS - Class 2",null,null,null,null,null,null,null,null,{"$f":"'Schedule IIB'!H102","v":0}]
["Sch IIB","Investments",null,"NAIC Rating Comm. MBS - Class 3",null,null,null,null,null,null,null,null,{"$f":"'Schedule IIB'!H103","v":0}]
["Sch IIB","Investments",null,"NAIC Rating Comm. MBS - Class 4",null,null,null,null,null,null,null,null,{"$f":"'Schedule IIB'!H104","v":0}]
["Sch IIB","Investments",null,"NAIC Rating Comm. MBS - Class 5",null,null,null,null,null,null,null,null,{"$f":"'Schedule IIB'!H105","v":0}]
["Sch IIB","Investments",null,"NAIC Rating Comm. MBS - Class 6",null,null,null,null,null,null,null,null,{"$f":"'Schedule IIB'!H106","v":0}]
["Sch IIB","Investments",null,"NAIC Rating Comm. MBS - Total",null,null,null,null,null,null,null,null,{"$f":"'Schedule IIB'!H107","v":0}]
["Sch IIB","Investments",null,"NAIC Rating Bond Mutual - Class 1",null,null,null,null,null,null,null,null,{"$f":"'Schedule IIB'!J101","v":0}]
["Sch IIB","Investments",null,"NAIC Rating Bond Mutual - Class 2",null,null,null,null,null,null,null,null,{"$f":"'Schedule IIB'!J102","v":0}]
["Sch IIB","Investments",null,"NAIC Rating Bond Mutual - Class 3",null,null,null,null,null,null,null,null,{"$f":"'Schedule IIB'!J103","v":0}]
["Sch IIB","Investments",null,"NAIC Rating Bond Mutual - Class 4",null,null,null,null,null,null,null,null,{"$f":"'Schedule IIB'!J104","v":0}]
["Sch IIB","Investments",null,"NAIC Rating Bond Mutual - Class 5",null,null,null,null,null,null,null,null,{"$f":"'Schedule IIB'!J105","v":0}]
["Sch IIB","Investments",null,"NAIC Rating Bond Mutual - Class 6",null,null,null,null,null,null,null,null,{"$f":"'Schedule IIB'!J106","v":0}]
["Sch IIB","Investments",null,"NAIC Rating Bond Mutual - Total",null,null,null,null,null,null,null,null,{"$f":"'Schedule IIB'!J107","v":0}]
["Sch IIB","Investments",null,"NAIC Rating Mort. Loan - Class 1",null,null,null,null,null,null,null,null,{"$f":"'Schedule IIB'!L101","v":0}]
["Sch IIB","Investments",null,"NAIC Rating Mort. Loan - Class 2",null,null,null,null,null,null,null,null,{"$f":"'Schedule IIB'!L102","v":0}]
["Sch IIB","Investments",null,"NAIC Rating Mort. Loan - Class 3",null,null,null,null,null,null,null,null,{"$f":"'Schedule IIB'!L103","v":0}]
["Sch IIB","Investments",null,"NAIC Rating Mort. Loan - Class 4",null,null,null,null,null,null,null,null,{"$f":"'Schedule IIB'!L104","v":0}]
["Sch IIB","Investments",null,"NAIC Rating Mort. Loan - Class 5",null,null,null,null,null,null,null,null,{"$f":"'Schedule IIB'!L105","v":0}]
["Sch IIB","Investments",null,"NAIC Rating Mort. Loan - Class 6",null,null,null,null,null,null,null,null,{"$f":"'Schedule IIB'!L106","v":0}]
["Sch IIB","Investments",null,"NAIC Rating Mort. Loan - Total",null,null,null,null,null,null,null,null,{"$f":"'Schedule IIB'!L107","v":0}]
["Sch IIB","Investments",null,"NAIC Rating Pref. Stock - Class 1",null,null,null,null,null,null,null,null,{"$f":"'Schedule IIB'!N101","v":0}]
["Sch IIB","Investments",null,"NAIC Rating Pref. Stock - Class 2",null,null,null,null,null,null,null,null,{"$f":"'Schedule IIB'!N102","v":0}]
["Sch IIB","Investments",null,"NAIC Rating Pref. Stock - Class 3",null,null,null,null,null,null,null,null,{"$f":"'Schedule IIB'!N103","v":0}]
["Sch IIB","Investments",null,"NAIC Rating Pref. Stock - Class 4",null,null,null,null,null,null,null,null,{"$f":"'Schedule IIB'!N104","v":0}]
["Sch IIB","Investments",null,"NAIC Rating Pref. Stock - Class 5",null,null,null,null,null,null,null,null,{"$f":"'Schedule IIB'!N105","v":0}]
["Sch IIB","Investments",null,"NAIC Rating Pref. Stock - Class 6",null,null,null,null,null,null,null,null,{"$f":"'Schedule IIB'!N106","v":0}]
["Sch IIB","Investments",null,"NAIC Rating Pref. Stock - Total",null,null,null,null,null,null,null,null,{"$f":"'Schedule IIB'!N107","v":0}]
["Sch IIB","Investments",null,"NAIC Rating Other Assets - Class 1",null,null,null,null,null,null,null,null,{"$f":"'Schedule IIB'!P101","v":0}]
["Sch IIB","Investments",null,"NAIC Rating Other Assets - Class 2",null,null,null,null,null,null,null,null,{"$f":"'Schedule IIB'!P102","v":0}]
["Sch IIB","Investments",null,"NAIC Rating Other Assets - Class 3",null,null,null,null,null,null,null,null,{"$f":"'Schedule IIB'!P103","v":0}]
["Sch IIB","Investments",null,"NAIC Rating Other Assets - Class 4",null,null,null,null,null,null,null,null,{"$f":"'Schedule IIB'!P104","v":0}]
["Sch IIB","Investments",null,"NAIC Rating Other Assets - Class 5",null,null,null,null,null,null,null,null,{"$f":"'Schedule IIB'!P105","v":0}]
["Sch IIB","Investments",null,"NAIC Rating Other Assets - Class 6",null,null,null,null,null,null,null,null,{"$f":"'Schedule IIB'!P106","v":0}]
["Sch IIB","Investments",null,"NAIC Rating Other Assets - Total",null,null,null,null,null,null,null,null,{"$f":"'Schedule IIB'!P107","v":0}]
[]
["Sch IIC","Funds Held",null,"Corp. Bonds - BSCR Rate 0",null,null,null,null,null,null,null,null,{"$f":"'Schedule IIC'!D13","v":0},null,{"$f":"'Schedule IIC'!F13","v":0}]
["Sch IIC","Funds Held",null,"Corp. Bonds - BSCR Rate 1",null,null,null,null,null,null,null,null,{"$f":"'Schedule IIC'!D14","v":0},null,{"$f":"'Schedule IIC'!F14","v":0}]
["Sch IIC","Funds Held",null,"Corp. Bonds - BSCR Rate 2",null,null,null,null,null,null,null,null,{"$f":"'Schedule IIC'!D15","v":0},null,{"$f":"'Schedule IIC'!F15","v":0}]
["Sch IIC","Funds Held",null,"Corp. Bonds - BSCR Rate 3",null,null,null,null,null,null,null,null,{"$f":"'Schedule IIC'!D16","v":0},null,{"$f":"'Schedule IIC'!F16","v":0}]
["Sch IIC","Funds Held",null,"Corp. Bonds - BSCR Rate 4",null,null,null,null,null,null,null,null,{"$f":"'Schedule IIC'!D17","v":0},null,{"$f":"'Schedule IIC'!F17","v":0}]
["Sch IIC","Funds Held",null,"Corp. Bonds - BSCR Rate 5",null,null,null,null,null,null,null,null,{"$f":"'Schedule IIC'!D18","v":0},null,{"$f":"'Schedule IIC'!F18","v":0}]
["Sch IIC","Funds Held",null,"Corp. Bonds - BSCR Rate 6",null,null,null,null,null,null,null,null,{"$f":"'Schedule IIC'!D19","v":0},null,{"$f":"'Schedule IIC'!F19","v":0}]
["Sch IIC","Funds Held",null,"Corp. Bonds - BSCR Rate 7",null,null,null,null,null,null,null,null,{"$f":"'Schedule IIC'!D20","v":0},null,{"$f":"'Schedule IIC'!F20","v":0}]
["Sch IIC","Funds Held",null,"Corp. Bonds - BSCR Rate 8",null,null,null,null,null,null,null,null,{"$f":"'Schedule IIC'!D21","v":0},null,{"$f":"'Schedule IIC'!F21","v":0}]
["Sch IIC","Funds Held",null,"Residential MBS - BSCR Rate 1",null,null,null,null,null,null,null,null,{"$f":"'Schedule IIC'!H14","v":0},null,{"$f":"'Schedule IIC'!J14","v":0}]
["Sch IIC","Funds Held",null,"Residential MBS - BSCR Rate 2",null,null,null,null,null,null,null,null,{"$f":"'Schedule IIC'!H15","v":0},null,{"$f":"'Schedule IIC'!J15","v":0}]
["Sch IIC","Funds Held",null,"Residential MBS - BSCR Rate 3",null,null,null,null,null,null,null,null,{"$f":"'Schedule IIC'!H16","v":0},null,{"$f":"'Schedule IIC'!J16","v":0}]
["Sch IIC","Funds Held",null,"Residential MBS - BSCR Rate 4",null,null,null,null,null,null,null,null,{"$f":"'Schedule IIC'!H17","v":0},null,{"$f":"'Schedule IIC'!J17","v":0}]
["Sch IIC","Funds Held",null,"Residential MBS - BSCR Rate 5",null,null,null,null,null,null,null,null,{"$f":"'Schedule IIC'!H18","v":0},null,{"$f":"'Schedule IIC'!J18","v":0}]
["Sch IIC","Funds Held",null,"Residential MBS - BSCR Rate 6",null,null,null,null,null,null,null,null,{"$f":"'Schedule IIC'!H19","v":0},null,{"$f":"'Schedule IIC'!J19","v":0}]
["Sch IIC","Funds Held",null,"Residential MBS - BSCR Rate 7",null,null,null,null,null,null,null,null,{"$f":"'Schedule IIC'!H20","v":0},null,{"$f":"'Schedule IIC'!J20","v":0}]
["Sch IIC","Funds Held",null,"Residential MBS - BSCR Rate 8",null,null,null,null,null,null,null,null,{"$f":"'Schedule IIC'!H21","v":0},null,{"$f":"'Schedule IIC'!J21","v":0}]
["Sch IIC","Funds Held",null,"Commercial MBS - BSCR Rate 1",null,null,null,null,null,null,null,null,{"$f":"'Schedule IIC'!L14","v":0},null,{"$f":"'Schedule IIC'!N14","v":0}]
["Sch IIC","Funds Held",null,"Commercial MBS - BSCR Rate 2",null,null,null,null,null,null,null,null,{"$f":"'Schedule IIC'!L15","v":0},null,{"$f":"'Schedule IIC'!N15","v":0}]
["Sch IIC","Funds Held",null,"Commercial MBS - BSCR Rate 3",null,null,null,null,null,null,null,null,{"$f":"'Schedule IIC'!L16","v":0},null,{"$f":"'Schedule IIC'!N16","v":0}]
["Sch IIC","Funds Held",null,"Commercial MBS - BSCR Rate 4",null,null,null,null,null,null,null,null,{"$f":"'Schedule IIC'!L17","v":0},null,{"$f":"'Schedule IIC'!N17","v":0}]
["Sch IIC","Funds Held",null,"Commercial MBS - BSCR Rate 5",null,null,null,null,null,null,null,null,{"$f":"'Schedule IIC'!L18","v":0},null,{"$f":"'Schedule IIC'!N18","v":0}]
["Sch IIC","Funds Held",null,"Commercial MBS - BSCR Rate 6",null,null,null,null,null,null,null,null,{"$f":"'Schedule IIC'!L19","v":0},null,{"$f":"'Schedule IIC'!N19","v":0}]
["Sch IIC","Funds Held",null,"Commercial MBS - BSCR Rate 7",null,null,null,null,null,null,null,null,{"$f":"'Schedule IIC'!L20","v":0},null,{"$f":"'Schedule IIC'!N20","v":0}]
["Sch IIC","Funds Held",null,"Commercial MBS - BSCR Rate 8",null,null,null,null,null,null,null,null,{"$f":"'Schedule IIC'!L21","v":0},null,{"$f":"'Schedule IIC'!N21","v":0}]
["Sch IIC","Funds Held",null,"Bonds Mutual Fund - BSCR Rate 0",null,null,null,null,null,null,null,null,{"$f":"'Schedule IIC'!P13","v":0},null,{"$f":"'Schedule IIC'!R13","v":0}]
["Sch IIC","Funds Held",null,"Bonds Mutual Fund - BSCR Rate 1",null,null,null,null,null,null,null,null,{"$f":"'Schedule IIC'!P14","v":0},null,{"$f":"'Schedule IIC'!R14","v":0}]
["Sch IIC","Funds Held",null,"Bonds Mutual Fund - BSCR Rate 2",null,null,null,null,null,null,null,null,{"$f":"'Schedule IIC'!P15","v":0},null,{"$f":"'Schedule IIC'!R15","v":0}]
["Sch IIC","Funds Held",null,"Bonds Mutual Fund - BSCR Rate 3",null,null,null,null,null,null,null,null,{"$f":"'Schedule IIC'!P16","v":0},null,{"$f":"'Schedule IIC'!R16","v":0}]
["Sch IIC","Funds Held",null,"Bonds Mutual Fund - BSCR Rate 4",null,null,null,null,null,null,null,null,{"$f":"'Schedule IIC'!P17","v":0},null,{"$f":"'Schedule IIC'!R17","v":0}]
["Sch IIC","Funds Held",null,"Bonds Mutual Fund - BSCR Rate 5",null,null,null,null,null,null,null,null,{"$f":"'Schedule IIC'!P18","v":0},null,{"$f":"'Schedule IIC'!R18","v":0}]
["Sch IIC","Funds Held",null,"Bonds Mutual Fund - BSCR Rate 6",null,null,null,null,null,null,null,null,{"$f":"'Schedule IIC'!P19","v":0},null,{"$f":"'Schedule IIC'!R19","v":0}]
["Sch IIC","Funds Held",null,"Bonds Mutual Fund - BSCR Rate 7",null,null,null,null,null,null,null,null,{"$f":"'Schedule IIC'!P20","v":0},null,{"$f":"'Schedule IIC'!R20","v":0}]
["Sch IIC","Funds Held",null,"Bonds Mutual Fund - BSCR Rate 8",null,null,null,null,null,null,null,null,{"$f":"'Schedule IIC'!P21","v":0},null,{"$f":"'Schedule IIC'!R21","v":0}]
["Sch IIC","Funds Held",null,"Mortgage Loans - Insured",null,null,null,null,null,null,null,null,{"$f":"'Schedule IIC'!T22","v":0},null,{"$f":"'Schedule IIC'!V22","v":0}]
["Sch IIC","Funds Held",null,"Mortgage Loans - Other Commercial",null,null,null,null,null,null,null,null,{"$f":"'Schedule IIC'!T23","v":0},null,{"$f":"'Schedule IIC'!V23","v":0}]
["Sch IIC","Funds Held",null,"Mortgage Loans - Other Residential",null,null,null,null,null,null,null,null,{"$f":"'Schedule IIC'!T24","v":0},null,{"$f":"'Schedule IIC'!V24","v":0}]
["Sch IIC","Funds Held",null,"Mortgage Loans - Not Good Stand.",null,null,null,null,null,null,null,null,{"$f":"'Schedule IIC'!T25","v":0},null,{"$f":"'Schedule IIC'!V25","v":0}]
["Sch IIC","Funds Held",null,"Long Positions - Before - Strategic Holdings - Listed",null,null,null,null,null,null,null,null,{"$f":"'Schedule IIC'!D39","v":0}]
["Sch IIC","Funds Held",null,"Long Positions - Before - Duration Based",null,null,null,null,null,null,null,null,{"$f":"'Schedule IIC'!D40","v":0}]
["Sch IIC","Funds Held",null,"Long Positions - Before - Listed Equity Securities in Developed Markets",null,null,null,null,null,null,null,null,{"$f":"'Schedule IIC'!D41","v":0}]
["Sch IIC","Funds Held",null,"Long Positions - Before - Preferred Stocks, BSCR Rating 1",null,null,null,null,null,null,null,null,{"$f":"'Schedule IIC'!D42","v":0}]
["Sch IIC","Funds Held",null,"Long Positions - Before - Preferred Stocks, BSCR Rating 2",null,null,null,null,null,null,null,null,{"$f":"'Schedule IIC'!D43","v":0}]
["Sch IIC","Funds Held",null,"Long Positions - Before - Preferred Stocks, BSCR Rating 3",null,null,null,null,null,null,null,null,{"$f":"'Schedule IIC'!D44","v":0}]
["Sch IIC","Funds Held",null,"Long Positions - Before - Preferred Stocks, BSCR Rating 4",null,null,null,null,null,null,null,null,{"$f":"'Schedule IIC'!D45","v":0}]
["Sch IIC","Funds Held",null,"Long Positions - Before - Preferred Stocks, BSCR Rating 5",null,null,null,null,null,null,null,null,{"$f":"'Schedule IIC'!D46","v":0}]
["Sch IIC","Funds Held",null,"Long Positions - Before - Preferred Stocks, BSCR Rating 6",null,null,null,null,null,null,null,null,{"$f":"'Schedule IIC'!D47","v":0}]
["Sch IIC","Funds Held",null,"Long Positions - Before - Preferred Stocks, BSCR Rating 7",null,null,null,null,null,null,null,null,{"$f":"'Schedule IIC'!D48","v":0}]
["Sch IIC","Funds Held",null,"Long Positions - Before - Preferred Stocks, BSCR Rating 8",null,null,null,null,null,null,null,null,{"$f":"'Schedule IIC'!D49","v":0}]
["Sch IIC","Funds Held",null,"Long Positions - Before - Equity Derivatives on Type 1 Equities",null,null,null,null,null,null,null,null,{"$f":"'Schedule IIC'!D50","v":0}]
["Sch IIC","Funds Held",null,"Long Positions - Before - Strategic Holdings - Unlisted",null,null,null,null,null,null,null,null,{"$f":"'Schedule IIC'!D51","v":0}]
["Sch IIC","Funds Held",null,"Long Positions - Before - Other Equities",null,null,null,null,null,null,null,null,{"$f":"'Schedule IIC'!D52","v":0}]
["Sch IIC","Funds Held",null,"Long Positions - Before - Letters of Credit",null,null,null,null,null,null,null,null,{"$f":"'Schedule IIC'!D53","v":0}]
["Sch IIC","Funds Held",null,"Long Positions - Before - Intangible assets",null,null,null,null,null,null,null,null,{"$f":"'Schedule IIC'!D54","v":0}]
["Sch IIC","Funds Held",null,"Long Positions - Before - Pension Benefit Surplus",null,null,null,null,null,null,null,null,{"$f":"'Schedule IIC'!D55","v":0}]
["Sch IIC","Funds Held",null,"Long Positions - Before - Equity Derivatives on Type 2 Equities",null,null,null,null,null,null,null,null,{"$f":"'Schedule IIC'!D56","v":0}]
["Sch IIC","Funds Held",null,"Long Positions - Before - Infrastructure",null,null,null,null,null,null,null,null,{"$f":"'Schedule IIC'!D57","v":0}]
["Sch IIC","Funds Held",null,"Long Positions - Before - Derivatives on Infrastructure",null,null,null,null,null,null,null,null,{"$f":"'Schedule IIC'!D58","v":0}]
["Sch IIC","Funds Held",null,"Long Positions - Before - Equity Real Estate 1",null,null,null,null,null,null,null,null,{"$f":"'Schedule IIC'!D59","v":0}]
["Sch IIC","Funds Held",null,"Long Positions - Before - Equity Real Estate 2",null,null,null,null,null,null,null,null,{"$f":"'Schedule IIC'!D60","v":0}]
["Sch IIC","Funds Held",null,"Long Positions - After - Strategic Holdings - Listed",null,null,null,null,null,null,null,null,{"$f":"'Schedule IIC'!F39","v":0}]
["Sch IIC","Funds Held",null,"Long Positions - After - Duration Based",null,null,null,null,null,null,null,null,{"$f":"'Schedule IIC'!F40","v":0}]
["Sch IIC","Funds Held",null,"Long Positions - After - Listed Equity Securities in Developed Markets",null,null,null,null,null,null,null,null,{"$f":"'Schedule IIC'!F41","v":0}]
["Sch IIC","Funds Held",null,"Long Positions - After - Preferred Stocks, BSCR Rating 1",null,null,null,null,null,null,null,null,{"$f":"'Schedule IIC'!F42","v":0}]
["Sch IIC","Funds Held",null,"Long Positions - After - Preferred Stocks, BSCR Rating 2",null,null,null,null,null,null,null,null,{"$f":"'Schedule IIC'!F43","v":0}]
["Sch IIC","Funds Held",null,"Long Positions - After - Preferred Stocks, BSCR Rating 3",null,null,null,null,null,null,null,null,{"$f":"'Schedule IIC'!F44","v":0}]
["Sch IIC","Funds Held",null,"Long Positions - After - Preferred Stocks, BSCR Rating 4",null,null,null,null,null,null,null,null,{"$f":"'Schedule IIC'!F45","v":0}]
["Sch IIC","Funds Held",null,"Long Positions - After - Preferred Stocks, BSCR Rating 5",null,null,null,null,null,null,null,null,{"$f":"'Schedule IIC'!F46","v":0}]
["Sch IIC","Funds Held",null,"Long Positions - After - Preferred Stocks, BSCR Rating 6",null,null,null,null,null,null,null,null,{"$f":"'Schedule IIC'!F47","v":0}]
["Sch IIC","Funds Held",null,"Long Positions - After - Preferred Stocks, BSCR Rating 7",null,null,null,null,null,null,null,null,{"$f":"'Schedule IIC'!F48","v":0}]
["Sch IIC","Funds Held",null,"Long Positions - After - Preferred Stocks, BSCR Rating 8",null,null,null,null,null,null,null,null,{"$f":"'Schedule IIC'!F49","v":0}]
["Sch IIC","Funds Held",null,"Long Positions - After - Equity Derivatives on Type 1 Equities",null,null,null,null,null,null,null,null,{"$f":"'Schedule IIC'!F50","v":0}]
["Sch IIC","Funds Held",null,"Long Positions - After - Strategic Holdings - Unlisted",null,null,null,null,null,null,null,null,{"$f":"'Schedule IIC'!F51","v":0}]
["Sch IIC","Funds Held",null,"Long Positions - After - Other Equities",null,null,null,null,null,null,null,null,{"$f":"'Schedule IIC'!F52","v":0}]
["Sch IIC","Funds Held",null,"Long Positions - After - Letters of Credit",null,null,null,null,null,null,null,null,{"$f":"'Schedule IIC'!F53","v":0}]
["Sch IIC","Funds Held",null,"Long Positions - After - Intangible assets",null,null,null,null,null,null,null,null,{"$f":"'Schedule IIC'!F54","v":0}]
["Sch IIC","Funds Held",null,"Long Positions - After - Pension Benefit Surplus",null,null,null,null,null,null,null,null,{"$f":"'Schedule IIC'!F55","v":0}]
["Sch IIC","Funds Held",null,"Long Positions - After - Equity Derivatives on Type 2 Equities",null,null,null,null,null,null,null,null,{"$f":"'Schedule IIC'!F56","v":0}]
["Sch IIC","Funds Held",null,"Long Positions - After - Infrastructure",null,null,null,null,null,null,null,null,{"$f":"'Schedule IIC'!F57","v":0}]
["Sch IIC","Funds Held",null,"Long Positions - After - Derivatives on Infrastructure",null,null,null,null,null,null,null,null,{"$f":"'Schedule IIC'!F58","v":0}]
["Sch IIC","Funds Held",null,"Long Positions - After - Equity Real Estate 1",null,null,null,null,null,null,null,null,{"$f":"'Schedule IIC'!F59","v":0}]
["Sch IIC","Funds Held",null,"Long Positions - After - Equity Real Estate 2",null,null,null,null,null,null,null,null,{"$f":"'Schedule IIC'!F60","v":0}]
["Sch IIC","Funds Held",null,"Short - Before - Qualified Assets - Strategic Holdings - Listed",null,null,null,null,null,null,null,null,{"$f":"'Schedule IIC'!H39","v":0}]
["Sch IIC","Funds Held",null,"Short - Before - Qualified Assets - Duration Based",null,null,null,null,null,null,null,null,{"$f":"'Schedule IIC'!H40","v":0}]
["Sch IIC","Funds Held",null,"Short - Before - Qualified Assets - Listed Equity Securities in Developed Markets",null,null,null,null,null,null,null,null,{"$f":"'Schedule IIC'!H41","v":0}]
["Sch IIC","Funds Held",null,"Short - Before - Qualified Assets - Preferred Stocks, BSCR Rating 1",null,null,null,null,null,null,null,null,{"$f":"'Schedule IIC'!H42","v":0}]
["Sch IIC","Funds Held",null,"Short - Before - Qualified Assets - Preferred Stocks, BSCR Rating 2",null,null,null,null,null,null,null,null,{"$f":"'Schedule IIC'!H43","v":0}]
["Sch IIC","Funds Held",null,"Short - Before - Qualified Assets - Preferred Stocks, BSCR Rating 3",null,null,null,null,null,null,null,null,{"$f":"'Schedule IIC'!H44","v":0}]
["Sch IIC","Funds Held",null,"Short - Before - Qualified Assets - Preferred Stocks, BSCR Rating 4",null,null,null,null,null,null,null,null,{"$f":"'Schedule IIC'!H45","v":0}]
["Sch IIC","Funds Held",null,"Short - Before - Qualified Assets - Preferred Stocks, BSCR Rating 5",null,null,null,null,null,null,null,null,{"$f":"'Schedule IIC'!H46","v":0}]
["Sch IIC","Funds Held",null,"Short - Before - Qualified Assets - Preferred Stocks, BSCR Rating 6",null,null,null,null,null,null,null,null,{"$f":"'Schedule IIC'!H47","v":0}]
["Sch IIC","Funds Held",null,"Short - Before - Qualified Assets - Preferred Stocks, BSCR Rating 7",null,null,null,null,null,null,null,null,{"$f":"'Schedule IIC'!H48","v":0}]
["Sch IIC","Funds Held",null,"Short - Before - Qualified Assets - Preferred Stocks, BSCR Rating 8",null,null,null,null,null,null,null,null,{"$f":"'Schedule IIC'!H49","v":0}]
["Sch IIC","Funds Held",null,"Short - Before - Qualified Assets - Equity Derivatives on Type 1 Equities",null,null,null,null,null,null,null,null,{"$f":"'Schedule IIC'!H50","v":0}]
["Sch IIC","Funds Held",null,"Short - Before - Qualified Assets - Strategic Holdings - Unlisted",null,null,null,null,null,null,null,null,{"$f":"'Schedule IIC'!H51","v":0}]
["Sch IIC","Funds Held",null,"Short - Before - Qualified Assets - Other Equities",null,null,null,null,null,null,null,null,{"$f":"'Schedule IIC'!H52","v":0}]
["Sch IIC","Funds Held",null,"Short - Before - Qualified Assets - Letters of Credit",null,null,null,null,null,null,null,null,{"$f":"'Schedule IIC'!H53","v":0}]
["Sch IIC","Funds Held",null,"Short - Before - Qualified Assets - Intangible assets",null,null,null,null,null,null,null,null,{"$f":"'Schedule IIC'!H54","v":0}]
["Sch IIC","Funds Held",null,"Short - Before - Qualified Assets - Pension Benefit Surplus",null,null,null,null,null,null,null,null,{"$f":"'Schedule IIC'!H55","v":0}]
["Sch IIC","Funds Held",null,"Short - Before - Qualified Assets - Equity Derivatives on Type 2 Equities",null,null,null,null,null,null,null,null,{"$f":"'Schedule IIC'!H56","v":0}]
["Sch IIC","Funds Held",null,"Short - Before - Qualified Assets - Infrastructure",null,null,null,null,null,null,null,null,{"$f":"'Schedule IIC'!H57","v":0}]
["Sch IIC","Funds Held",null,"Short - Before - Qualified Assets - Derivatives on Infrastructure",null,null,null,null,null,null,null,null,{"$f":"'Schedule IIC'!H58","v":0}]
["Sch IIC","Funds Held",null,"Short - Before - Qualified Assets - Equity Real Estate 1",null,null,null,null,null,null,null,null,{"$f":"'Schedule IIC'!H59","v":0}]
["Sch IIC","Funds Held",null,"Short - Before - Qualified Assets - Equity Real Estate 2",null,null,null,null,null,null,null,null,{"$f":"'Schedule IIC'!H60","v":0}]
["Sch IIC","Funds Held",null,"Short - After - Qualified Assets - Strategic Holdings - Listed",null,null,null,null,null,null,null,null,{"$f":"'Schedule IIC'!J39","v":0}]
["Sch IIC","Funds Held",null,"Short - After - Qualified Assets - Duration Based",null,null,null,null,null,null,null,null,{"$f":"'Schedule IIC'!J40","v":0}]
["Sch IIC","Funds Held",null,"Short - After - Qualified Assets - Listed Equity Securities in Developed Markets",null,null,null,null,null,null,null,null,{"$f":"'Schedule IIC'!J41","v":0}]
["Sch IIC","Funds Held",null,"Short - After - Qualified Assets - Preferred Stocks, BSCR Rating 1",null,null,null,null,null,null,null,null,{"$f":"'Schedule IIC'!J42","v":0}]
["Sch IIC","Funds Held",null,"Short - After - Qualified Assets - Preferred Stocks, BSCR Rating 2",null,null,null,null,null,null,null,null,{"$f":"'Schedule IIC'!J43","v":0}]
["Sch IIC","Funds Held",null,"Short - After - Qualified Assets - Preferred Stocks, BSCR Rating 3",null,null,null,null,null,null,null,null,{"$f":"'Schedule IIC'!J44","v":0}]
["Sch IIC","Funds Held",null,"Short - After - Qualified Assets - Preferred Stocks, BSCR Rating 4",null,null,null,null,null,null,null,null,{"$f":"'Schedule IIC'!J45","v":0}]
["Sch IIC","Funds Held",null,"Short - After - Qualified Assets - Preferred Stocks, BSCR Rating 5",null,null,null,null,null,null,null,null,{"$f":"'Schedule IIC'!J46","v":0}]
["Sch IIC","Funds Held",null,"Short - After - Qualified Assets - Preferred Stocks, BSCR Rating 6",null,null,null,null,null,null,null,null,{"$f":"'Schedule IIC'!J47","v":0}]
["Sch IIC","Funds Held",null,"Short - After - Qualified Assets - Preferred Stocks, BSCR Rating 7",null,null,null,null,null,null,null,null,{"$f":"'Schedule IIC'!J48","v":0}]
["Sch IIC","Funds Held",null,"Short - After - Qualified Assets - Preferred Stocks, BSCR Rating 8",null,null,null,null,null,null,null,null,{"$f":"'Schedule IIC'!J49","v":0}]
["Sch IIC","Funds Held",null,"Short - After - Qualified Assets - Equity Derivatives on Type 1 Equities",null,null,null,null,null,null,null,null,{"$f":"'Schedule IIC'!J50","v":0}]
["Sch IIC","Funds Held",null,"Short - After - Qualified Assets - Strategic Holdings - Unlisted",null,null,null,null,null,null,null,null,{"$f":"'Schedule IIC'!J51","v":0}]
["Sch IIC","Funds Held",null,"Short - After - Qualified Assets - Other Equities",null,null,null,null,null,null,null,null,{"$f":"'Schedule IIC'!J52","v":0}]
["Sch IIC","Funds Held",null,"Short - After - Qualified Assets - Letters of Credit",null,null,null,null,null,null,null,null,{"$f":"'Schedule IIC'!J53","v":0}]
["Sch IIC","Funds Held",null,"Short - After - Qualified Assets - Intangible assets",null,null,null,null,null,null,null,null,{"$f":"'Schedule IIC'!J54","v":0}]
["Sch IIC","Funds Held",null,"Short - After - Qualified Assets - Pension Benefit Surplus",null,null,null,null,null,null,null,null,{"$f":"'Schedule IIC'!J55","v":0}]
["Sch IIC","Funds Held",null,"Short - After - Qualified Assets - Equity Derivatives on Type 2 Equities",null,null,null,null,null,null,null,null,{"$f":"'Schedule IIC'!J56","v":0}]
["Sch IIC","Funds Held",null,"Short - After - Qualified Assets - Infrastructure",null,null,null,null,null,null,null,null,{"$f":"'Schedule IIC'!J57","v":0}]
["Sch IIC","Funds Held",null,"Short - After - Qualified Assets - Derivatives on Infrastructure",null,null,null,null,null,null,null,null,{"$f":"'Schedule IIC'!J58","v":0}]
["Sch IIC","Funds Held",null,"Short - After - Qualified Assets - Equity Real Estate 1",null,null,null,null,null,null,null,null,{"$f":"'Schedule IIC'!J59","v":0}]
["Sch IIC","Funds Held",null,"Short - After - Qualified Assets - Equity Real Estate 2",null,null,null,null,null,null,null,null,{"$f":"'Schedule IIC'!J60","v":0}]
["Sch IIC","Funds Held",null,"Short - Before - UnQualified Assets - Strategic Holdings - Listed",null,null,null,null,null,null,null,null,{"$f":"'Schedule IIC'!L39","v":0}]
["Sch IIC","Funds Held",null,"Short - Before - UnQualified Assets - Duration Based",null,null,null,null,null,null,null,null,{"$f":"'Schedule IIC'!L40","v":0}]
["Sch IIC","Funds Held",null,"Short - Before - UnQualified Assets - Listed Equity Securities in Developed Markets",null,null,null,null,null,null,null,null,{"$f":"'Schedule IIC'!L41","v":0}]
["Sch IIC","Funds Held",null,"Short - Before - UnQualified Assets - Preferred Stocks, BSCR Rating 1",null,null,null,null,null,null,null,null,{"$f":"'Schedule IIC'!L42","v":0}]
["Sch IIC","Funds Held",null,"Short - Before - UnQualified Assets - Preferred Stocks, BSCR Rating 2",null,null,null,null,null,null,null,null,{"$f":"'Schedule IIC'!L43","v":0}]
["Sch IIC","Funds Held",null,"Short - Before - UnQualified Assets - Preferred Stocks, BSCR Rating 3",null,null,null,null,null,null,null,null,{"$f":"'Schedule IIC'!L44","v":0}]
["Sch IIC","Funds Held",null,"Short - Before - UnQualified Assets - Preferred Stocks, BSCR Rating 4",null,null,null,null,null,null,null,null,{"$f":"'Schedule IIC'!L45","v":0}]
["Sch IIC","Funds Held",null,"Short - Before - UnQualified Assets - Preferred Stocks, BSCR Rating 5",null,null,null,null,null,null,null,null,{"$f":"'Schedule IIC'!L46","v":0}]
["Sch IIC","Funds Held",null,"Short - Before - UnQualified Assets - Preferred Stocks, BSCR Rating 6",null,null,null,null,null,null,null,null,{"$f":"'Schedule IIC'!L47","v":0}]
["Sch IIC","Funds Held",null,"Short - Before - UnQualified Assets - Preferred Stocks, BSCR Rating 7",null,null,null,null,null,null,null,null,{"$f":"'Schedule IIC'!L48","v":0}]
["Sch IIC","Funds Held",null,"Short - Before - UnQualified Assets - Preferred Stocks, BSCR Rating 8",null,null,null,null,null,null,null,null,{"$f":"'Schedule IIC'!L49","v":0}]
["Sch IIC","Funds Held",null,"Short - Before - UnQualified Assets - Equity Derivatives on Type 1 Equities",null,null,null,null,null,null,null,null,{"$f":"'Schedule IIC'!L50","v":0}]
["Sch IIC","Funds Held",null,"Short - Before - UnQualified Assets - Strategic Holdings - Unlisted",null,null,null,null,null,null,null,null,{"$f":"'Schedule IIC'!L51","v":0}]
["Sch IIC","Funds Held",null,"Short - Before - UnQualified Assets - Other Equities",null,null,null,null,null,null,null,null,{"$f":"'Schedule IIC'!L52","v":0}]
["Sch IIC","Funds Held",null,"Short - Before - UnQualified Assets - Letters of Credit",null,null,null,null,null,null,null,null,{"$f":"'Schedule IIC'!L53","v":0}]
["Sch IIC","Funds Held",null,"Short - Before - UnQualified Assets - Intangible assets",null,null,null,null,null,null,null,null,{"$f":"'Schedule IIC'!L54","v":0}]
["Sch IIC","Funds Held",null,"Short - Before - UnQualified Assets - Pension Benefit Surplus",null,null,null,null,null,null,null,null,{"$f":"'Schedule IIC'!L55","v":0}]
["Sch IIC","Funds Held",null,"Short - Before - UnQualified Assets - Equity Derivatives on Type 2 Equities",null,null,null,null,null,null,null,null,{"$f":"'Schedule IIC'!L56","v":0}]
["Sch IIC","Funds Held",null,"Short - Before - UnQualified Assets - Infrastructure",null,null,null,null,null,null,null,null,{"$f":"'Schedule IIC'!L57","v":0}]
["Sch IIC","Funds Held",null,"Short - Before - UnQualified Assets - Derivatives on Infrastructure",null,null,null,null,null,null,null,null,{"$f":"'Schedule IIC'!L58","v":0}]
["Sch IIC","Funds Held",null,"Short - Before - UnQualified Assets - Equity Real Estate 1",null,null,null,null,null,null,null,null,{"$f":"'Schedule IIC'!L59","v":0}]
["Sch IIC","Funds Held",null,"Short - Before - UnQualified Assets - Equity Real Estate 2",null,null,null,null,null,null,null,null,{"$f":"'Schedule IIC'!L60","v":0}]
["Sch IIC","Funds Held",null,"Short - After - UnQualified Assets - Strategic Holdings - Listed",null,null,null,null,null,null,null,null,{"$f":"'Schedule IIC'!N39","v":0}]
["Sch IIC","Funds Held",null,"Short - After - UnQualified Assets - Duration Based",null,null,null,null,null,null,null,null,{"$f":"'Schedule IIC'!N40","v":0}]
["Sch IIC","Funds Held",null,"Short - After - UnQualified Assets - Listed Equity Securities in Developed Markets",null,null,null,null,null,null,null,null,{"$f":"'Schedule IIC'!N41","v":0}]
["Sch IIC","Funds Held",null,"Short - After - UnQualified Assets - Preferred Stocks, BSCR Rating 1",null,null,null,null,null,null,null,null,{"$f":"'Schedule IIC'!N42","v":0}]
["Sch IIC","Funds Held",null,"Short - After - UnQualified Assets - Preferred Stocks, BSCR Rating 2",null,null,null,null,null,null,null,null,{"$f":"'Schedule IIC'!N43","v":0}]
["Sch IIC","Funds Held",null,"Short - After - UnQualified Assets - Preferred Stocks, BSCR Rating 3",null,null,null,null,null,null,null,null,{"$f":"'Schedule IIC'!N44","v":0}]
["Sch IIC","Funds Held",null,"Short - After - UnQualified Assets - Preferred Stocks, BSCR Rating 4",null,null,null,null,null,null,null,null,{"$f":"'Schedule IIC'!N45","v":0}]
["Sch IIC","Funds Held",null,"Short - After - UnQualified Assets - Preferred Stocks, BSCR Rating 5",null,null,null,null,null,null,null,null,{"$f":"'Schedule IIC'!N46","v":0}]
["Sch IIC","Funds Held",null,"Short - After - UnQualified Assets - Preferred Stocks, BSCR Rating 6",null,null,null,null,null,null,null,null,{"$f":"'Schedule IIC'!N47","v":0}]
["Sch IIC","Funds Held",null,"Short - After - UnQualified Assets - Preferred Stocks, BSCR Rating 7",null,null,null,null,null,null,null,null,{"$f":"'Schedule IIC'!N48","v":0}]
["Sch IIC","Funds Held",null,"Short - After - UnQualified Assets - Preferred Stocks, BSCR Rating 8",null,null,null,null,null,null,null,null,{"$f":"'Schedule IIC'!N49","v":0}]
["Sch IIC","Funds Held",null,"Short - After - UnQualified Assets - Equity Derivatives on Type 1 Equities",null,null,null,null,null,null,null,null,{"$f":"'Schedule IIC'!N50","v":0}]
["Sch IIC","Funds Held",null,"Short - After - UnQualified Assets - Strategic Holdings - Unlisted",null,null,null,null,null,null,null,null,{"$f":"'Schedule IIC'!N51","v":0}]
["Sch IIC","Funds Held",null,"Short - After - UnQualified Assets - Other Equities",null,null,null,null,null,null,null,null,{"$f":"'Schedule IIC'!N52","v":0}]
["Sch IIC","Funds Held",null,"Short - After - UnQualified Assets - Letters of Credit",null,null,null,null,null,null,null,null,{"$f":"'Schedule IIC'!N53","v":0}]
["Sch IIC","Funds Held",null,"Short - After - UnQualified Assets - Intangible assets",null,null,null,null,null,null,null,null,{"$f":"'Schedule IIC'!N54","v":0}]
["Sch IIC","Funds Held",null,"Short - After - UnQualified Assets - Pension Benefit Surplus",null,null,null,null,null,null,null,null,{"$f":"'Schedule IIC'!N55","v":0}]
["Sch IIC","Funds Held",null,"Short - After - UnQualified Assets - Equity Derivatives on Type 2 Equities",null,null,null,null,null,null,null,null,{"$f":"'Schedule IIC'!N56","v":0}]
["Sch IIC","Funds Held",null,"Short - After - UnQualified Assets - Infrastructure",null,null,null,null,null,null,null,null,{"$f":"'Schedule IIC'!N57","v":0}]
["Sch IIC","Funds Held",null,"Short - After - UnQualified Assets - Derivatives on Infrastructure",null,null,null,null,null,null,null,null,{"$f":"'Schedule IIC'!N58","v":0}]
["Sch IIC","Funds Held",null,"Short - After - UnQualified Assets - Equity Real Estate 1",null,null,null,null,null,null,null,null,{"$f":"'Schedule IIC'!N59","v":0}]
["Sch IIC","Funds Held",null,"Short - After - UnQualified Assets - Equity Real Estate 2",null,null,null,null,null,null,null,null,{"$f":"'Schedule IIC'!N60","v":0}]
["Sch IIC","Funds Held",null,"Liabilities - Before - W/O Mgmt. Actions - Strategic Holdings - Listed",null,null,null,null,null,null,null,null,{"$f":"'Schedule IIC'!P39","v":0}]
["Sch IIC","Funds Held",null,"Liabilities - Before - W/O Mgmt. Actions - Duration Based",null,null,null,null,null,null,null,null,{"$f":"'Schedule IIC'!P40","v":0}]
["Sch IIC","Funds Held",null,"Liabilities - Before - W/O Mgmt. Actions - Listed Equity Securities in Developed Markets",null,null,null,null,null,null,null,null,{"$f":"'Schedule IIC'!P41","v":0}]
["Sch IIC","Funds Held",null,"Liabilities - Before - W/O Mgmt. Actions - Preferred Stocks, BSCR Rating 1",null,null,null,null,null,null,null,null,{"$f":"'Schedule IIC'!P42","v":0}]
["Sch IIC","Funds Held",null,"Liabilities - Before - W/O Mgmt. Actions - Preferred Stocks, BSCR Rating 2",null,null,null,null,null,null,null,null,{"$f":"'Schedule IIC'!P43","v":0}]
["Sch IIC","Funds Held",null,"Liabilities - Before - W/O Mgmt. Actions - Preferred Stocks, BSCR Rating 3",null,null,null,null,null,null,null,null,{"$f":"'Schedule IIC'!P44","v":0}]
["Sch IIC","Funds Held",null,"Liabilities - Before - W/O Mgmt. Actions - Preferred Stocks, BSCR Rating 4",null,null,null,null,null,null,null,null,{"$f":"'Schedule IIC'!P45","v":0}]
["Sch IIC","Funds Held",null,"Liabilities - Before - W/O Mgmt. Actions - Preferred Stocks, BSCR Rating 5",null,null,null,null,null,null,null,null,{"$f":"'Schedule IIC'!P46","v":0}]
["Sch IIC","Funds Held",null,"Liabilities - Before - W/O Mgmt. Actions - Preferred Stocks, BSCR Rating 6",null,null,null,null,null,null,null,null,{"$f":"'Schedule IIC'!P47","v":0}]
["Sch IIC","Funds Held",null,"Liabilities - Before - W/O Mgmt. Actions - Preferred Stocks, BSCR Rating 7",null,null,null,null,null,null,null,null,{"$f":"'Schedule IIC'!P48","v":0}]
["Sch IIC","Funds Held",null,"Liabilities - Before - W/O Mgmt. Actions - Preferred Stocks, BSCR Rating 8",null,null,null,null,null,null,null,null,{"$f":"'Schedule IIC'!P49","v":0}]
["Sch IIC","Funds Held",null,"Liabilities - Before - W/O Mgmt. Actions - Equity Derivatives on Type 1 Equities",null,null,null,null,null,null,null,null,{"$f":"'Schedule IIC'!P50","v":0}]
["Sch IIC","Funds Held",null,"Liabilities - Before - W/O Mgmt. Actions - Strategic Holdings - Unlisted",null,null,null,null,null,null,null,null,{"$f":"'Schedule IIC'!P51","v":0}]
["Sch IIC","Funds Held",null,"Liabilities - Before - W/O Mgmt. Actions - Other Equities",null,null,null,null,null,null,null,null,{"$f":"'Schedule IIC'!P52","v":0}]
["Sch IIC","Funds Held",null,"Liabilities - Before - W/O Mgmt. Actions - Letters of Credit",null,null,null,null,null,null,null,null,{"$f":"'Schedule IIC'!P53","v":0}]
["Sch IIC","Funds Held",null,"Liabilities - Before - W/O Mgmt. Actions - Intangible assets",null,null,null,null,null,null,null,null,{"$f":"'Schedule IIC'!P54","v":0}]
["Sch IIC","Funds Held",null,"Liabilities - Before - W/O Mgmt. Actions - Pension Benefit Surplus",null,null,null,null,null,null,null,null,{"$f":"'Schedule IIC'!P55","v":0}]
["Sch IIC","Funds Held",null,"Liabilities - Before - W/O Mgmt. Actions - Equity Derivatives on Type 2 Equities",null,null,null,null,null,null,null,null,{"$f":"'Schedule IIC'!P56","v":0}]
["Sch IIC","Funds Held",null,"Liabilities - Before - W/O Mgmt. Actions - Infrastructure",null,null,null,null,null,null,null,null,{"$f":"'Schedule IIC'!P57","v":0}]
["Sch IIC","Funds Held",null,"Liabilities - Before - W/O Mgmt. Actions - Derivatives on Infrastructure",null,null,null,null,null,null,null,null,{"$f":"'Schedule IIC'!P58","v":0}]
["Sch IIC","Funds Held",null,"Liabilities - Before - W/O Mgmt. Actions - Equity Real Estate 1",null,null,null,null,null,null,null,null,{"$f":"'Schedule IIC'!P59","v":0}]
["Sch IIC","Funds Held",null,"Liabilities - Before - W/O Mgmt. Actions - Equity Real Estate 2",null,null,null,null,null,null,null,null,{"$f":"'Schedule IIC'!P60","v":0}]
["Sch IIC","Funds Held",null,"Liabilities - After - W/O Mgmt. Actions - Strategic Holdings - Listed",null,null,null,null,null,null,null,null,{"$f":"'Schedule IIC'!R39","v":0}]
["Sch IIC","Funds Held",null,"Liabilities - After - W/O Mgmt. Actions - Duration Based",null,null,null,null,null,null,null,null,{"$f":"'Schedule IIC'!R40","v":0}]
["Sch IIC","Funds Held",null,"Liabilities - After - W/O Mgmt. Actions - Listed Equity Securities in Developed Markets",null,null,null,null,null,null,null,null,{"$f":"'Schedule IIC'!R41","v":0}]
["Sch IIC","Funds Held",null,"Liabilities - After - W/O Mgmt. Actions - Preferred Stocks, BSCR Rating 1",null,null,null,null,null,null,null,null,{"$f":"'Schedule IIC'!R42","v":0}]
["Sch IIC","Funds Held",null,"Liabilities - After - W/O Mgmt. Actions - Preferred Stocks, BSCR Rating 2",null,null,null,null,null,null,null,null,{"$f":"'Schedule IIC'!R43","v":0}]
["Sch IIC","Funds Held",null,"Liabilities - After - W/O Mgmt. Actions - Preferred Stocks, BSCR Rating 3",null,null,null,null,null,null,null,null,{"$f":"'Schedule IIC'!R44","v":0}]
["Sch IIC","Funds Held",null,"Liabilities - After - W/O Mgmt. Actions - Preferred Stocks, BSCR Rating 4",null,null,null,null,null,null,null,null,{"$f":"'Schedule IIC'!R45","v":0}]
["Sch IIC","Funds Held",null,"Liabilities - After - W/O Mgmt. Actions - Preferred Stocks, BSCR Rating 5",null,null,null,null,null,null,null,null,{"$f":"'Schedule IIC'!R46","v":0}]
["Sch IIC","Funds Held",null,"Liabilities - After - W/O Mgmt. Actions - Preferred Stocks, BSCR Rating 6",null,null,null,null,null,null,null,null,{"$f":"'Schedule IIC'!R47","v":0}]
["Sch IIC","Funds Held",null,"Liabilities - After - W/O Mgmt. Actions - Preferred Stocks, BSCR Rating 7",null,null,null,null,null,null,null,null,{"$f":"'Schedule IIC'!R48","v":0}]
["Sch IIC","Funds Held",null,"Liabilities - After - W/O Mgmt. Actions - Preferred Stocks, BSCR Rating 8",null,null,null,null,null,null,null,null,{"$f":"'Schedule IIC'!R49","v":0}]
["Sch IIC","Funds Held",null,"Liabilities - After - W/O Mgmt. Actions - Equity Derivatives on Type 1 Equities",null,null,null,null,null,null,null,null,{"$f":"'Schedule IIC'!R50","v":0}]
["Sch IIC","Funds Held",null,"Liabilities - After - W/O Mgmt. Actions - Strategic Holdings - Unlisted",null,null,null,null,null,null,null,null,{"$f":"'Schedule IIC'!R51","v":0}]
["Sch IIC","Funds Held",null,"Liabilities - After - W/O Mgmt. Actions - Other Equities",null,null,null,null,null,null,null,null,{"$f":"'Schedule IIC'!R52","v":0}]
["Sch IIC","Funds Held",null,"Liabilities - After - W/O Mgmt. Actions - Letters of Credit",null,null,null,null,null,null,null,null,{"$f":"'Schedule IIC'!R53","v":0}]
["Sch IIC","Funds Held",null,"Liabilities - After - W/O Mgmt. Actions - Intangible assets",null,null,null,null,null,null,null,null,{"$f":"'Schedule IIC'!R54","v":0}]
["Sch IIC","Funds Held",null,"Liabilities - After - W/O Mgmt. Actions - Pension Benefit Surplus",null,null,null,null,null,null,null,null,{"$f":"'Schedule IIC'!R55","v":0}]
["Sch IIC","Funds Held",null,"Liabilities - After - W/O Mgmt. Actions - Equity Derivatives on Type 2 Equities",null,null,null,null,null,null,null,null,{"$f":"'Schedule IIC'!R56","v":0}]
["Sch IIC","Funds Held",null,"Liabilities - After - W/O Mgmt. Actions - Infrastructure",null,null,null,null,null,null,null,null,{"$f":"'Schedule IIC'!R57","v":0}]
["Sch IIC","Funds Held",null,"Liabilities - After - W/O Mgmt. Actions - Derivatives on Infrastructure",null,null,null,null,null,null,null,null,{"$f":"'Schedule IIC'!R58","v":0}]
["Sch IIC","Funds Held",null,"Liabilities - After - W/O Mgmt. Actions - Equity Real Estate 1",null,null,null,null,null,null,null,null,{"$f":"'Schedule IIC'!R59","v":0}]
["Sch IIC","Funds Held",null,"Liabilities - After - W/O Mgmt. Actions - Equity Real Estate 2",null,null,null,null,null,null,null,null,{"$f":"'Schedule IIC'!R60","v":0}]
["Sch IIC","Funds Held",null,"Liabilities - After - With Mgmt. Actions - Strategic Holdings - Listed",null,null,null,null,null,null,null,null,{"$f":"'Schedule IIC'!T39","v":0}]
["Sch IIC","Funds Held",null,"Liabilities - After - With Mgmt. Actions - Duration Based",null,null,null,null,null,null,null,null,{"$f":"'Schedule IIC'!T40","v":0}]
["Sch IIC","Funds Held",null,"Liabilities - After - With Mgmt. Actions - Listed Equity Securities in Developed Markets",null,null,null,null,null,null,null,null,{"$f":"'Schedule IIC'!T41","v":0}]
["Sch IIC","Funds Held",null,"Liabilities - After - With Mgmt. Actions - Preferred Stocks, BSCR Rating 1",null,null,null,null,null,null,null,null,{"$f":"'Schedule IIC'!T42","v":0}]
["Sch IIC","Funds Held",null,"Liabilities - After - With Mgmt. Actions - Preferred Stocks, BSCR Rating 2",null,null,null,null,null,null,null,null,{"$f":"'Schedule IIC'!T43","v":0}]
["Sch IIC","Funds Held",null,"Liabilities - After - With Mgmt. Actions - Preferred Stocks, BSCR Rating 3",null,null,null,null,null,null,null,null,{"$f":"'Schedule IIC'!T44","v":0}]
["Sch IIC","Funds Held",null,"Liabilities - After - With Mgmt. Actions - Preferred Stocks, BSCR Rating 4",null,null,null,null,null,null,null,null,{"$f":"'Schedule IIC'!T45","v":0}]
["Sch IIC","Funds Held",null,"Liabilities - After - With Mgmt. Actions - Preferred Stocks, BSCR Rating 5",null,null,null,null,null,null,null,null,{"$f":"'Schedule IIC'!T46","v":0}]
["Sch IIC","Funds Held",null,"Liabilities - After - With Mgmt. Actions - Preferred Stocks, BSCR Rating 6",null,null,null,null,null,null,null,null,{"$f":"'Schedule IIC'!T47","v":0}]
["Sch IIC","Funds Held",null,"Liabilities - After - With Mgmt. Actions - Preferred Stocks, BSCR Rating 7",null,null,null,null,null,null,null,null,{"$f":"'Schedule IIC'!T48","v":0}]
["Sch IIC","Funds Held",null,"Liabilities - After - With Mgmt. Actions - Preferred Stocks, BSCR Rating 8",null,null,null,null,null,null,null,null,{"$f":"'Schedule IIC'!T49","v":0}]
["Sch IIC","Funds Held",null,"Liabilities - After - With Mgmt. Actions - Equity Derivatives on Type 1 Equities",null,null,null,null,null,null,null,null,{"$f":"'Schedule IIC'!T50","v":0}]
["Sch IIC","Funds Held",null,"Liabilities - After - With Mgmt. Actions - Strategic Holdings - Unlisted",null,null,null,null,null,null,null,null,{"$f":"'Schedule IIC'!T51","v":0}]
["Sch IIC","Funds Held",null,"Liabilities - After - With Mgmt. Actions - Other Equities",null,null,null,null,null,null,null,null,{"$f":"'Schedule IIC'!T52","v":0}]
["Sch IIC","Funds Held",null,"Liabilities - After - With Mgmt. Actions - Letters of Credit",null,null,null,null,null,null,null,null,{"$f":"'Schedule IIC'!T53","v":0}]
["Sch IIC","Funds Held",null,"Liabilities - After - With Mgmt. Actions - Intangible assets",null,null,null,null,null,null,null,null,{"$f":"'Schedule IIC'!T54","v":0}]
["Sch IIC","Funds Held",null,"Liabilities - After - With Mgmt. Actions - Pension Benefit Surplus",null,null,null,null,null,null,null,null,{"$f":"'Schedule IIC'!T55","v":0}]
["Sch IIC","Funds Held",null,"Liabilities - After - With Mgmt. Actions - Equity Derivatives on Type 2 Equities",null,null,null,null,null,null,null,null,{"$f":"'Schedule IIC'!T56","v":0}]
["Sch IIC","Funds Held",null,"Liabilities - After - With Mgmt. Actions - Infrastructure",null,null,null,null,null,null,null,null,{"$f":"'Schedule IIC'!T57","v":0}]
["Sch IIC","Funds Held",null,"Liabilities - After - With Mgmt. Actions - Derivatives on Infrastructure",null,null,null,null,null,null,null,null,{"$f":"'Schedule IIC'!T58","v":0}]
["Sch IIC","Funds Held",null,"Liabilities - After - With Mgmt. Actions - Equity Real Estate 1",null,null,null,null,null,null,null,null,{"$f":"'Schedule IIC'!T59","v":0}]
["Sch IIC","Funds Held",null,"Liabilities - After - With Mgmt. Actions - Equity Real Estate 2",null,null,null,null,null,null,null,null,{"$f":"'Schedule IIC'!T60","v":0}]
["Sch IIC","Funds Held",null,"Credit Derivatives - Up - Before - Long-Rating 0",null,null,null,null,null,null,null,null,{"$f":"'Schedule IIC'!D68","v":0}]
["Sch IIC","Funds Held",null,"Credit Derivatives - Up - Before - Long-Rating 1",null,null,null,null,null,null,null,null,{"$f":"'Schedule IIC'!D69","v":0}]
["Sch IIC","Funds Held",null,"Credit Derivatives - Up - Before - Long-Rating 2",null,null,null,null,null,null,null,null,{"$f":"'Schedule IIC'!D70","v":0}]
["Sch IIC","Funds Held",null,"Credit Derivatives - Up - Before - Long-Rating 3",null,null,null,null,null,null,null,null,{"$f":"'Schedule IIC'!D71","v":0}]
["Sch IIC","Funds Held",null,"Credit Derivatives - Up - Before - Long-Rating 4",null,null,null,null,null,null,null,null,{"$f":"'Schedule IIC'!D72","v":0}]
["Sch IIC","Funds Held",null,"Credit Derivatives - Up - Before - Long-Rating 5",null,null,null,null,null,null,null,null,{"$f":"'Schedule IIC'!D73","v":0}]
["Sch IIC","Funds Held",null,"Credit Derivatives - Up - Before - Long-Rating 6",null,null,null,null,null,null,null,null,{"$f":"'Schedule IIC'!D74","v":0}]
["Sch IIC","Funds Held",null,"Credit Derivatives - Up - Before - Long-Rating 7",null,null,null,null,null,null,null,null,{"$f":"'Schedule IIC'!D75","v":0}]
["Sch IIC","Funds Held",null,"Credit Derivatives - Up - Before - Long-Rating 8",null,null,null,null,null,null,null,null,{"$f":"'Schedule IIC'!D76","v":0}]
["Sch IIC","Funds Held",null,"Credit Derivatives - Up - After - Long- Rating 0",null,null,null,null,null,null,null,null,{"$f":"'Schedule IIC'!F68","v":0}]
["Sch IIC","Funds Held",null,"Credit Derivatives - Up - After - Long- Rating 1",null,null,null,null,null,null,null,null,{"$f":"'Schedule IIC'!F69","v":0}]
["Sch IIC","Funds Held",null,"Credit Derivatives - Up - After - Long- Rating 2",null,null,null,null,null,null,null,null,{"$f":"'Schedule IIC'!F70","v":0}]
["Sch IIC","Funds Held",null,"Credit Derivatives - Up - After - Long- Rating 3",null,null,null,null,null,null,null,null,{"$f":"'Schedule IIC'!F71","v":0}]
["Sch IIC","Funds Held",null,"Credit Derivatives - Up - After - Long- Rating 4",null,null,null,null,null,null,null,null,{"$f":"'Schedule IIC'!F72","v":0}]
["Sch IIC","Funds Held",null,"Credit Derivatives - Up - After - Long- Rating 5",null,null,null,null,null,null,null,null,{"$f":"'Schedule IIC'!F73","v":0}]
["Sch IIC","Funds Held",null,"Credit Derivatives - Up - After - Long- Rating 6",null,null,null,null,null,null,null,null,{"$f":"'Schedule IIC'!F74","v":0}]
["Sch IIC","Funds Held",null,"Credit Derivatives - Up - After - Long- Rating 7",null,null,null,null,null,null,null,null,{"$f":"'Schedule IIC'!F75","v":0}]
["Sch IIC","Funds Held",null,"Credit Derivatives - Up - After - Long- Rating 8",null,null,null,null,null,null,null,null,{"$f":"'Schedule IIC'!F76","v":0}]
["Sch IIC","Funds Held",null,"Credit Derivatives - Up - Before - Short- Rating 0",null,null,null,null,null,null,null,null,{"$f":"'Schedule IIC'!H68","v":0}]
["Sch IIC","Funds Held",null,"Credit Derivatives - Up - Before - Short- Rating 1",null,null,null,null,null,null,null,null,{"$f":"'Schedule IIC'!H69","v":0}]
["Sch IIC","Funds Held",null,"Credit Derivatives - Up - Before - Short- Rating 2",null,null,null,null,null,null,null,null,{"$f":"'Schedule IIC'!H70","v":0}]
["Sch IIC","Funds Held",null,"Credit Derivatives - Up - Before - Short- Rating 3",null,null,null,null,null,null,null,null,{"$f":"'Schedule IIC'!H71","v":0}]
["Sch IIC","Funds Held",null,"Credit Derivatives - Up - Before - Short- Rating 4",null,null,null,null,null,null,null,null,{"$f":"'Schedule IIC'!H72","v":0}]
["Sch IIC","Funds Held",null,"Credit Derivatives - Up - Before - Short- Rating 5",null,null,null,null,null,null,null,null,{"$f":"'Schedule IIC'!H73","v":0}]
["Sch IIC","Funds Held",null,"Credit Derivatives - Up - Before - Short- Rating 6",null,null,null,null,null,null,null,null,{"$f":"'Schedule IIC'!H74","v":0}]
["Sch IIC","Funds Held",null,"Credit Derivatives - Up - Before - Short- Rating 7",null,null,null,null,null,null,null,null,{"$f":"'Schedule IIC'!H75","v":0}]
["Sch IIC","Funds Held",null,"Credit Derivatives - Up - Before - Short- Rating 8",null,null,null,null,null,null,null,null,{"$f":"'Schedule IIC'!H76","v":0}]
["Sch IIC","Funds Held",null,"Credit Derivatives - Up - After - Short- Rating 0",null,null,null,null,null,null,null,null,{"$f":"'Schedule IIC'!J68","v":0}]
["Sch IIC","Funds Held",null,"Credit Derivatives - Up - After - Short- Rating 1",null,null,null,null,null,null,null,null,{"$f":"'Schedule IIC'!J69","v":0}]
["Sch IIC","Funds Held",null,"Credit Derivatives - Up - After - Short- Rating 2",null,null,null,null,null,null,null,null,{"$f":"'Schedule IIC'!J70","v":0}]
["Sch IIC","Funds Held",null,"Credit Derivatives - Up - After - Short- Rating 3",null,null,null,null,null,null,null,null,{"$f":"'Schedule IIC'!J71","v":0}]
["Sch IIC","Funds Held",null,"Credit Derivatives - Up - After - Short- Rating 4",null,null,null,null,null,null,null,null,{"$f":"'Schedule IIC'!J72","v":0}]
["Sch IIC","Funds Held",null,"Credit Derivatives - Up - After - Short- Rating 5",null,null,null,null,null,null,null,null,{"$f":"'Schedule IIC'!J73","v":0}]
["Sch IIC","Funds Held",null,"Credit Derivatives - Up - After - Short- Rating 6",null,null,null,null,null,null,null,null,{"$f":"'Schedule IIC'!J74","v":0}]
["Sch IIC","Funds Held",null,"Credit Derivatives - Up - After - Short- Rating 7",null,null,null,null,null,null,null,null,{"$f":"'Schedule IIC'!J75","v":0}]
["Sch IIC","Funds Held",null,"Credit Derivatives - Up - After - Short- Rating 8",null,null,null,null,null,null,null,null,{"$f":"'Schedule IIC'!J76","v":0}]
["Sch IIC","Funds Held",null,"Credit Derivatives - Down - Before - Long-Rating 0",null,null,null,null,null,null,null,null,{"$f":"'Schedule IIC'!N68","v":0}]
["Sch IIC","Funds Held",null,"Credit Derivatives - Down - Before - Long-Rating 1",null,null,null,null,null,null,null,null,{"$f":"'Schedule IIC'!N69","v":0}]
["Sch IIC","Funds Held",null,"Credit Derivatives - Down - Before - Long-Rating 2",null,null,null,null,null,null,null,null,{"$f":"'Schedule IIC'!N70","v":0}]
["Sch IIC","Funds Held",null,"Credit Derivatives - Down - Before - Long-Rating 3",null,null,null,null,null,null,null,null,{"$f":"'Schedule IIC'!N71","v":0}]
["Sch IIC","Funds Held",null,"Credit Derivatives - Down - Before - Long-Rating 4",null,null,null,null,null,null,null,null,{"$f":"'Schedule IIC'!N72","v":0}]
["Sch IIC","Funds Held",null,"Credit Derivatives - Down - Before - Long-Rating 5",null,null,null,null,null,null,null,null,{"$f":"'Schedule IIC'!N73","v":0}]
["Sch IIC","Funds Held",null,"Credit Derivatives - Down - Before - Long-Rating 6",null,null,null,null,null,null,null,null,{"$f":"'Schedule IIC'!N74","v":0}]
["Sch IIC","Funds Held",null,"Credit Derivatives - Down - Before - Long-Rating 7",null,null,null,null,null,null,null,null,{"$f":"'Schedule IIC'!N75","v":0}]
["Sch IIC","Funds Held",null,"Credit Derivatives - Down - Before - Long-Rating 8",null,null,null,null,null,null,null,null,{"$f":"'Schedule IIC'!N76","v":0}]
["Sch IIC","Funds Held",null,"Credit Derivatives - Down - After - Long- Rating 0",null,null,null,null,null,null,null,null,{"$f":"'Schedule IIC'!P68","v":0}]
["Sch IIC","Funds Held",null,"Credit Derivatives - Down - After - Long- Rating 1",null,null,null,null,null,null,null,null,{"$f":"'Schedule IIC'!P69","v":0}]
["Sch IIC","Funds Held",null,"Credit Derivatives - Down - After - Long- Rating 2",null,null,null,null,null,null,null,null,{"$f":"'Schedule IIC'!P70","v":0}]
["Sch IIC","Funds Held",null,"Credit Derivatives - Down - After - Long- Rating 3",null,null,null,null,null,null,null,null,{"$f":"'Schedule IIC'!P71","v":0}]
["Sch IIC","Funds Held",null,"Credit Derivatives - Down - After - Long- Rating 4",null,null,null,null,null,null,null,null,{"$f":"'Schedule IIC'!P72","v":0}]
["Sch IIC","Funds Held",null,"Credit Derivatives - Down - After - Long- Rating 5",null,null,null,null,null,null,null,null,{"$f":"'Schedule IIC'!P73","v":0}]
["Sch IIC","Funds Held",null,"Credit Derivatives - Down - After - Long- Rating 6",null,null,null,null,null,null,null,null,{"$f":"'Schedule IIC'!P74","v":0}]
["Sch IIC","Funds Held",null,"Credit Derivatives - Down - After - Long- Rating 7",null,null,null,null,null,null,null,null,{"$f":"'Schedule IIC'!P75","v":0}]
["Sch IIC","Funds Held",null,"Credit Derivatives - Down - After - Long- Rating 8",null,null,null,null,null,null,null,null,{"$f":"'Schedule IIC'!P76","v":0}]
["Sch IIC","Funds Held",null,"Credit Derivatives - Down - Before - Short- Rating 0",null,null,null,null,null,null,null,null,{"$f":"'Schedule IIC'!R68","v":0}]
["Sch IIC","Funds Held",null,"Credit Derivatives - Down - Before - Short- Rating 1",null,null,null,null,null,null,null,null,{"$f":"'Schedule IIC'!R69","v":0}]
["Sch IIC","Funds Held",null,"Credit Derivatives - Down - Before - Short- Rating 2",null,null,null,null,null,null,null,null,{"$f":"'Schedule IIC'!R70","v":0}]
["Sch IIC","Funds Held",null,"Credit Derivatives - Down - Before - Short- Rating 3",null,null,null,null,null,null,null,null,{"$f":"'Schedule IIC'!R71","v":0}]
["Sch IIC","Funds Held",null,"Credit Derivatives - Down - Before - Short- Rating 4",null,null,null,null,null,null,null,null,{"$f":"'Schedule IIC'!R72","v":0}]
["Sch IIC","Funds Held",null,"Credit Derivatives - Down - Before - Short- Rating 5",null,null,null,null,null,null,null,null,{"$f":"'Schedule IIC'!R73","v":0}]
["Sch IIC","Funds Held",null,"Credit Derivatives - Down - Before - Short- Rating 6",null,null,null,null,null,null,null,null,{"$f":"'Schedule IIC'!R74","v":0}]
["Sch IIC","Funds Held",null,"Credit Derivatives - Down - Before - Short- Rating 7",null,null,null,null,null,null,null,null,{"$f":"'Schedule IIC'!R75","v":0}]
["Sch IIC","Funds Held",null,"Credit Derivatives - Down - Before - Short- Rating 8",null,null,null,null,null,null,null,null,{"$f":"'Schedule IIC'!R76","v":0}]
["Sch IIC","Funds Held",null,"Credit Derivatives - Down - After - Short- Rating 0",null,null,null,null,null,null,null,null,{"$f":"'Schedule IIC'!T68","v":0}]
["Sch IIC","Funds Held",null,"Credit Derivatives - Down - After - Short- Rating 1",null,null,null,null,null,null,null,null,{"$f":"'Schedule IIC'!T69","v":0}]
["Sch IIC","Funds Held",null,"Credit Derivatives - Down - After - Short- Rating 2",null,null,null,null,null,null,null,null,{"$f":"'Schedule IIC'!T70","v":0}]
["Sch IIC","Funds Held",null,"Credit Derivatives - Down - After - Short- Rating 3",null,null,null,null,null,null,null,null,{"$f":"'Schedule IIC'!T71","v":0}]
["Sch IIC","Funds Held",null,"Credit Derivatives - Down - After - Short- Rating 4",null,null,null,null,null,null,null,null,{"$f":"'Schedule IIC'!T72","v":0}]
["Sch IIC","Funds Held",null,"Credit Derivatives - Down - After - Short- Rating 5",null,null,null,null,null,null,null,null,{"$f":"'Schedule IIC'!T73","v":0}]
["Sch IIC","Funds Held",null,"Credit Derivatives - Down - After - Short- Rating 6",null,null,null,null,null,null,null,null,{"$f":"'Schedule IIC'!T74","v":0}]
["Sch IIC","Funds Held",null,"Credit Derivatives - Down - After - Short- Rating 7",null,null,null,null,null,null,null,null,{"$f":"'Schedule IIC'!T75","v":0}]
["Sch IIC","Funds Held",null,"Credit Derivatives - Down - After - Short- Rating 8",null,null,null,null,null,null,null,null,{"$f":"'Schedule IIC'!T76","v":0}]
["Sch IIC","Funds Held",null,"Counterparty Default Risk - MV of Derivatives - MV Positive - Rating 0",null,null,null,null,null,null,null,null,{"$f":"'Schedule IIC'!D84","v":0}]
["Sch IIC","Funds Held",null,"Counterparty Default Risk - MV of Derivatives - MV Positive - Rating 1",null,null,null,null,null,null,null,null,{"$f":"'Schedule IIC'!D85","v":0}]
["Sch IIC","Funds Held",null,"Counterparty Default Risk - MV of Derivatives - MV Positive - Rating 2",null,null,null,null,null,null,null,null,{"$f":"'Schedule IIC'!D86","v":0}]
["Sch IIC","Funds Held",null,"Counterparty Default Risk - MV of Derivatives - MV Positive - Rating 3",null,null,null,null,null,null,null,null,{"$f":"'Schedule IIC'!D87","v":0}]
["Sch IIC","Funds Held",null,"Counterparty Default Risk - MV of Derivatives - MV Positive - Rating 4",null,null,null,null,null,null,null,null,{"$f":"'Schedule IIC'!D88","v":0}]
["Sch IIC","Funds Held",null,"Counterparty Default Risk - MV of Derivatives - MV Positive - Rating 5",null,null,null,null,null,null,null,null,{"$f":"'Schedule IIC'!D89","v":0}]
["Sch IIC","Funds Held",null,"Counterparty Default Risk - MV of Derivatives - MV Positive - Rating 6",null,null,null,null,null,null,null,null,{"$f":"'Schedule IIC'!D90","v":0}]
["Sch IIC","Funds Held",null,"Counterparty Default Risk - MV of Derivatives - MV Positive - Rating 7",null,null,null,null,null,null,null,null,{"$f":"'Schedule IIC'!D91","v":0}]
["Sch IIC","Funds Held",null,"Counterparty Default Risk - MV of Derivatives - MV Positive - Rating 8",null,null,null,null,null,null,null,null,{"$f":"'Schedule IIC'!D92","v":0}]
["Sch IIC","Funds Held",null,"Counterparty Default Risk - MV of Derivatives - MV Negative - Rating 0",null,null,null,null,null,null,null,null,{"$f":"'Schedule IIC'!F84","v":0}]
["Sch IIC","Funds Held",null,"Counterparty Default Risk - MV of Derivatives - MV Negative - Rating 1",null,null,null,null,null,null,null,null,{"$f":"'Schedule IIC'!F85","v":0}]
["Sch IIC","Funds Held",null,"Counterparty Default Risk - MV of Derivatives - MV Negative - Rating 2",null,null,null,null,null,null,null,null,{"$f":"'Schedule IIC'!F86","v":0}]
["Sch IIC","Funds Held",null,"Counterparty Default Risk - MV of Derivatives - MV Negative - Rating 3",null,null,null,null,null,null,null,null,{"$f":"'Schedule IIC'!F87","v":0}]
["Sch IIC","Funds Held",null,"Counterparty Default Risk - MV of Derivatives - MV Negative - Rating 4",null,null,null,null,null,null,null,null,{"$f":"'Schedule IIC'!F88","v":0}]
["Sch IIC","Funds Held",null,"Counterparty Default Risk - MV of Derivatives - MV Negative - Rating 5",null,null,null,null,null,null,null,null,{"$f":"'Schedule IIC'!F89","v":0}]
["Sch IIC","Funds Held",null,"Counterparty Default Risk - MV of Derivatives - MV Negative - Rating 6",null,null,null,null,null,null,null,null,{"$f":"'Schedule IIC'!F90","v":0}]
["Sch IIC","Funds Held",null,"Counterparty Default Risk - MV of Derivatives - MV Negative - Rating 7",null,null,null,null,null,null,null,null,{"$f":"'Schedule IIC'!F91","v":0}]
["Sch IIC","Funds Held",null,"Counterparty Default Risk - MV of Derivatives - MV Negative - Rating 8",null,null,null,null,null,null,null,null,{"$f":"'Schedule IIC'!F92","v":0}]
["Sch IIC","Funds Held",null,"Counterparty Default Risk - MV of Collateral - Rating 0",null,null,null,null,null,null,null,null,{"$f":"'Schedule IIC'!H84","v":0}]
["Sch IIC","Funds Held",null,"Counterparty Default Risk - MV of Collateral - Rating 1",null,null,null,null,null,null,null,null,{"$f":"'Schedule IIC'!H85","v":0}]
["Sch IIC","Funds Held",null,"Counterparty Default Risk - MV of Collateral - Rating 2",null,null,null,null,null,null,null,null,{"$f":"'Schedule IIC'!H86","v":0}]
["Sch IIC","Funds Held",null,"Counterparty Default Risk - MV of Collateral - Rating 3",null,null,null,null,null,null,null,null,{"$f":"'Schedule IIC'!H87","v":0}]
["Sch IIC","Funds Held",null,"Counterparty Default Risk - MV of Collateral - Rating 4",null,null,null,null,null,null,null,null,{"$f":"'Schedule IIC'!H88","v":0}]
["Sch IIC","Funds Held",null,"Counterparty Default Risk - MV of Collateral - Rating 5",null,null,null,null,null,null,null,null,{"$f":"'Schedule IIC'!H89","v":0}]
["Sch IIC","Funds Held",null,"Counterparty Default Risk - MV of Collateral - Rating 6",null,null,null,null,null,null,null,null,{"$f":"'Schedule IIC'!H90","v":0}]
["Sch IIC","Funds Held",null,"Counterparty Default Risk - MV of Collateral - Rating 7",null,null,null,null,null,null,null,null,{"$f":"'Schedule IIC'!H91","v":0}]
["Sch IIC","Funds Held",null,"Counterparty Default Risk - MV of Collateral - Rating 8",null,null,null,null,null,null,null,null,{"$f":"'Schedule IIC'!H92","v":0}]
["Sch IIC","Funds Held",null,"Cash and Cash Equivalents",null,null,null,null,null,null,null,null,{"$f":"'Schedule IIC'!D95","v":0}]
["Sch IIC","Funds Held",null,"NAIC Rating Corp & Sov. Bond - Class 1",null,null,null,null,null,null,null,null,{"$f":"'Schedule IIC'!D101","v":0}]
["Sch IIC","Funds Held",null,"NAIC Rating Corp & Sov. Bond - Class 2",null,null,null,null,null,null,null,null,{"$f":"'Schedule IIC'!D102","v":0}]
["Sch IIC","Funds Held",null,"NAIC Rating Corp & Sov. Bond - Class 3",null,null,null,null,null,null,null,null,{"$f":"'Schedule IIC'!D103","v":0}]
["Sch IIC","Funds Held",null,"NAIC Rating Corp & Sov. Bond - Class 4",null,null,null,null,null,null,null,null,{"$f":"'Schedule IIC'!D104","v":0}]
["Sch IIC","Funds Held",null,"NAIC Rating Corp & Sov. Bond - Class 5",null,null,null,null,null,null,null,null,{"$f":"'Schedule IIC'!D105","v":0}]
["Sch IIC","Funds Held",null,"NAIC Rating Corp & Sov. Bond - Class 6",null,null,null,null,null,null,null,null,{"$f":"'Schedule IIC'!D106","v":0}]
["Sch IIC","Funds Held",null,"NAIC Rating Corp & Sov. Bond - Total",null,null,null,null,null,null,null,null,{"$f":"'Schedule IIC'!D107","v":0}]
["Sch IIC","Funds Held",null,"NAIC Rating Resid. MBS - Class 1",null,null,null,null,null,null,null,null,{"$f":"'Schedule IIC'!F101","v":0}]
["Sch IIC","Funds Held",null,"NAIC Rating Resid. MBS - Class 2",null,null,null,null,null,null,null,null,{"$f":"'Schedule IIC'!F102","v":0}]
["Sch IIC","Funds Held",null,"NAIC Rating Resid. MBS - Class 3",null,null,null,null,null,null,null,null,{"$f":"'Schedule IIC'!F103","v":0}]
["Sch IIC","Funds Held",null,"NAIC Rating Resid. MBS - Class 4",null,null,null,null,null,null,null,null,{"$f":"'Schedule IIC'!F104","v":0}]
["Sch IIC","Funds Held",null,"NAIC Rating Resid. MBS - Class 5",null,null,null,null,null,null,null,null,{"$f":"'Schedule IIC'!F105","v":0}]
["Sch IIC","Funds Held",null,"NAIC Rating Resid. MBS - Class 6",null,null,null,null,null,null,null,null,{"$f":"'Schedule IIC'!F106","v":0}]
["Sch IIC","Funds Held",null,"NAIC Rating Resid. MBS - Total",null,null,null,null,null,null,null,null,{"$f":"'Schedule IIC'!F107","v":0}]
["Sch IIC","Funds Held",null,"NAIC Rating Comm. MBS - Class 1",null,null,null,null,null,null,null,null,{"$f":"'Schedule IIC'!H101","v":0}]
["Sch IIC","Funds Held",null,"NAIC Rating Comm. MBS - Class 2",null,null,null,null,null,null,null,null,{"$f":"'Schedule IIC'!H102","v":0}]
["Sch IIC","Funds Held",null,"NAIC Rating Comm. MBS - Class 3",null,null,null,null,null,null,null,null,{"$f":"'Schedule IIC'!H103","v":0}]
["Sch IIC","Funds Held",null,"NAIC Rating Comm. MBS - Class 4",null,null,null,null,null,null,null,null,{"$f":"'Schedule IIC'!H104","v":0}]
["Sch IIC","Funds Held",null,"NAIC Rating Comm. MBS - Class 5",null,null,null,null,null,null,null,null,{"$f":"'Schedule IIC'!H105","v":0}]
["Sch IIC","Funds Held",null,"NAIC Rating Comm. MBS - Class 6",null,null,null,null,null,null,null,null,{"$f":"'Schedule IIC'!H106","v":0}]
["Sch IIC","Funds Held",null,"NAIC Rating Comm. MBS - Total",null,null,null,null,null,null,null,null,{"$f":"'Schedule IIC'!H107","v":0}]
["Sch IIC","Funds Held",null,"NAIC Rating Bond Mutual - Class 1",null,null,null,null,null,null,null,null,{"$f":"'Schedule IIC'!J101","v":0}]
["Sch IIC","Funds Held",null,"NAIC Rating Bond Mutual - Class 2",null,null,null,null,null,null,null,null,{"$f":"'Schedule IIC'!J102","v":0}]
["Sch IIC","Funds Held",null,"NAIC Rating Bond Mutual - Class 3",null,null,null,null,null,null,null,null,{"$f":"'Schedule IIC'!J103","v":0}]
["Sch IIC","Funds Held",null,"NAIC Rating Bond Mutual - Class 4",null,null,null,null,null,null,null,null,{"$f":"'Schedule IIC'!J104","v":0}]
["Sch IIC","Funds Held",null,"NAIC Rating Bond Mutual - Class 5",null,null,null,null,null,null,null,null,{"$f":"'Schedule IIC'!J105","v":0}]
["Sch IIC","Funds Held",null,"NAIC Rating Bond Mutual - Class 6",null,null,null,null,null,null,null,null,{"$f":"'Schedule IIC'!J106","v":0}]
["Sch IIC","Funds Held",null,"NAIC Rating Bond Mutual - Total",null,null,null,null,null,null,null,null,{"$f":"'Schedule IIC'!J107","v":0}]
["Sch IIC","Funds Held",null,"NAIC Rating Mort. Loan - Class 1",null,null,null,null,null,null,null,null,{"$f":"'Schedule IIC'!L101","v":0}]
["Sch IIC","Funds Held",null,"NAIC Rating Mort. Loan - Class 2",null,null,null,null,null,null,null,null,{"$f":"'Schedule IIC'!L102","v":0}]
["Sch IIC","Funds Held",null,"NAIC Rating Mort. Loan - Class 3",null,null,null,null,null,null,null,null,{"$f":"'Schedule IIC'!L103","v":0}]
["Sch IIC","Funds Held",null,"NAIC Rating Mort. Loan - Class 4",null,null,null,null,null,null,null,null,{"$f":"'Schedule IIC'!L104","v":0}]
["Sch IIC","Funds Held",null,"NAIC Rating Mort. Loan - Class 5",null,null,null,null,null,null,null,null,{"$f":"'Schedule IIC'!L105","v":0}]
["Sch IIC","Funds Held",null,"NAIC Rating Mort. Loan - Class 6",null,null,null,null,null,null,null,null,{"$f":"'Schedule IIC'!L106","v":0}]
["Sch IIC","Funds Held",null,"NAIC Rating Mort. Loan - Total",null,null,null,null,null,null,null,null,{"$f":"'Schedule IIC'!L107","v":0}]
["Sch IIC","Funds Held",null,"NAIC Rating Pref. Stock - Class 1",null,null,null,null,null,null,null,null,{"$f":"'Schedule IIC'!N101","v":0}]
["Sch IIC","Funds Held",null,"NAIC Rating Pref. Stock - Class 2",null,null,null,null,null,null,null,null,{"$f":"'Schedule IIC'!N102","v":0}]
["Sch IIC","Funds Held",null,"NAIC Rating Pref. Stock - Class 3",null,null,null,null,null,null,null,null,{"$f":"'Schedule IIC'!N103","v":0}]
["Sch IIC","Funds Held",null,"NAIC Rating Pref. Stock - Class 4",null,null,null,null,null,null,null,null,{"$f":"'Schedule IIC'!N104","v":0}]
["Sch IIC","Funds Held",null,"NAIC Rating Pref. Stock - Class 5",null,null,null,null,null,null,null,null,{"$f":"'Schedule IIC'!N105","v":0}]
["Sch IIC","Funds Held",null,"NAIC Rating Pref. Stock - Class 6",null,null,null,null,null,null,null,null,{"$f":"'Schedule IIC'!N106","v":0}]
["Sch IIC","Funds Held",null,"NAIC Rating Pref. Stock - Total",null,null,null,null,null,null,null,null,{"$f":"'Schedule IIC'!N107","v":0}]
["Sch IIC","Funds Held",null,"NAIC Rating Other Assets - Class 1",null,null,null,null,null,null,null,null,{"$f":"'Schedule IIC'!P101","v":0}]
["Sch IIC","Funds Held",null,"NAIC Rating Other Assets - Class 2",null,null,null,null,null,null,null,null,{"$f":"'Schedule IIC'!P102","v":0}]
["Sch IIC","Funds Held",null,"NAIC Rating Other Assets - Class 3",null,null,null,null,null,null,null,null,{"$f":"'Schedule IIC'!P103","v":0}]
["Sch IIC","Funds Held",null,"NAIC Rating Other Assets - Class 4",null,null,null,null,null,null,null,null,{"$f":"'Schedule IIC'!P104","v":0}]
["Sch IIC","Funds Held",null,"NAIC Rating Other Assets - Class 5",null,null,null,null,null,null,null,null,{"$f":"'Schedule IIC'!P105","v":0}]
["Sch IIC","Funds Held",null,"NAIC Rating Other Assets - Class 6",null,null,null,null,null,null,null,null,{"$f":"'Schedule IIC'!P106","v":0}]
["Sch IIC","Funds Held",null,"NAIC Rating Other Assets - Total",null,null,null,null,null,null,null,null,{"$f":"'Schedule IIC'!P107","v":0}]
[]
["Sch IID","Segregated Acc",null,"Corp. Bonds - BSCR Rate 0",null,null,null,null,null,null,null,null,{"$f":"'Schedule IID'!D13","v":0}]
["Sch IID","Segregated Acc",null,"Corp. Bonds - BSCR Rate 1",null,null,null,null,null,null,null,null,{"$f":"'Schedule IID'!D14","v":0}]
["Sch IID","Segregated Acc",null,"Corp. Bonds - BSCR Rate 2",null,null,null,null,null,null,null,null,{"$f":"'Schedule IID'!D15","v":0}]
["Sch IID","Segregated Acc",null,"Corp. Bonds - BSCR Rate 3",null,null,null,null,null,null,null,null,{"$f":"'Schedule IID'!D16","v":0}]
["Sch IID","Segregated Acc",null,"Corp. Bonds - BSCR Rate 4",null,null,null,null,null,null,null,null,{"$f":"'Schedule IID'!D17","v":0}]
["Sch IID","Segregated Acc",null,"Corp. Bonds - BSCR Rate 5",null,null,null,null,null,null,null,null,{"$f":"'Schedule IID'!D18","v":0}]
["Sch IID","Segregated Acc",null,"Corp. Bonds - BSCR Rate 6",null,null,null,null,null,null,null,null,{"$f":"'Schedule IID'!D19","v":0}]
["Sch IID","Segregated Acc",null,"Corp. Bonds - BSCR Rate 7",null,null,null,null,null,null,null,null,{"$f":"'Schedule IID'!D20","v":0}]
["Sch IID","Segregated Acc",null,"Corp. Bonds - BSCR Rate 8",null,null,null,null,null,null,null,null,{"$f":"'Schedule IID'!D21","v":0}]
["Sch IID","Segregated Acc",null,"Liabilities Supported by Corp. Bonds - BSCR Rate 0",null,null,null,null,null,null,null,null,{"$f":"'Schedule IID'!F13","v":0}]
["Sch IID","Segregated Acc",null,"Liabilities Supported by Corp. Bonds - BSCR Rate 1",null,null,null,null,null,null,null,null,{"$f":"'Schedule IID'!F14","v":0}]
["Sch IID","Segregated Acc",null,"Liabilities Supported by Corp. Bonds - BSCR Rate 2",null,null,null,null,null,null,null,null,{"$f":"'Schedule IID'!F15","v":0}]
["Sch IID","Segregated Acc",null,"Liabilities Supported by Corp. Bonds - BSCR Rate 3",null,null,null,null,null,null,null,null,{"$f":"'Schedule IID'!F16","v":0}]
["Sch IID","Segregated Acc",null,"Liabilities Supported by Corp. Bonds - BSCR Rate 4",null,null,null,null,null,null,null,null,{"$f":"'Schedule IID'!F17","v":0}]
["Sch IID","Segregated Acc",null,"Liabilities Supported by Corp. Bonds - BSCR Rate 5",null,null,null,null,null,null,null,null,{"$f":"'Schedule IID'!F18","v":0}]
["Sch IID","Segregated Acc",null,"Liabilities Supported by Corp. Bonds - BSCR Rate 6",null,null,null,null,null,null,null,null,{"$f":"'Schedule IID'!F19","v":0}]
["Sch IID","Segregated Acc",null,"Liabilities Supported by Corp. Bonds - BSCR Rate 7",null,null,null,null,null,null,null,null,{"$f":"'Schedule IID'!F20","v":0}]
["Sch IID","Segregated Acc",null,"Liabilities Supported by Corp. Bonds - BSCR Rate 8",null,null,null,null,null,null,null,null,{"$f":"'Schedule IID'!F21","v":0}]
["Sch IID","Segregated Acc",null,"Residential MBS - BSCR Rate 1",null,null,null,null,null,null,null,null,{"$f":"'Schedule IID'!H14","v":0}]
["Sch IID","Segregated Acc",null,"Residential MBS - BSCR Rate 2",null,null,null,null,null,null,null,null,{"$f":"'Schedule IID'!H15","v":0}]
["Sch IID","Segregated Acc",null,"Residential MBS - BSCR Rate 3",null,null,null,null,null,null,null,null,{"$f":"'Schedule IID'!H16","v":0}]
["Sch IID","Segregated Acc",null,"Residential MBS - BSCR Rate 4",null,null,null,null,null,null,null,null,{"$f":"'Schedule IID'!H17","v":0}]
["Sch IID","Segregated Acc",null,"Residential MBS - BSCR Rate 5",null,null,null,null,null,null,null,null,{"$f":"'Schedule IID'!H18","v":0}]
["Sch IID","Segregated Acc",null,"Residential MBS - BSCR Rate 6",null,null,null,null,null,null,null,null,{"$f":"'Schedule IID'!H19","v":0}]
["Sch IID","Segregated Acc",null,"Residential MBS - BSCR Rate 7",null,null,null,null,null,null,null,null,{"$f":"'Schedule IID'!H20","v":0}]
["Sch IID","Segregated Acc",null,"Residential MBS - BSCR Rate 8",null,null,null,null,null,null,null,null,{"$f":"'Schedule IID'!H21","v":0}]
["Sch IID","Segregated Acc",null,"Liabilities Supported by Residential MBS - BSCR Rate 1",null,null,null,null,null,null,null,null,{"$f":"'Schedule IID'!J14","v":0}]
["Sch IID","Segregated Acc",null,"Liabilities Supported by Residential MBS - BSCR Rate 2",null,null,null,null,null,null,null,null,{"$f":"'Schedule IID'!J15","v":0}]
["Sch IID","Segregated Acc",null,"Liabilities Supported by Residential MBS - BSCR Rate 3",null,null,null,null,null,null,null,null,{"$f":"'Schedule IID'!J16","v":0}]
["Sch IID","Segregated Acc",null,"Liabilities Supported by Residential MBS - BSCR Rate 4",null,null,null,null,null,null,null,null,{"$f":"'Schedule IID'!J17","v":0}]
["Sch IID","Segregated Acc",null,"Liabilities Supported by Residential MBS - BSCR Rate 5",null,null,null,null,null,null,null,null,{"$f":"'Schedule IID'!J18","v":0}]
["Sch IID","Segregated Acc",null,"Liabilities Supported by Residential MBS - BSCR Rate 6",null,null,null,null,null,null,null,null,{"$f":"'Schedule IID'!J19","v":0}]
["Sch IID","Segregated Acc",null,"Liabilities Supported by Residential MBS - BSCR Rate 7",null,null,null,null,null,null,null,null,{"$f":"'Schedule IID'!J20","v":0}]
["Sch IID","Segregated Acc",null,"Liabilities Supported by Residential MBS - BSCR Rate 8",null,null,null,null,null,null,null,null,{"$f":"'Schedule IID'!J21","v":0}]
["Sch IID","Segregated Acc",null,"Commercial MBS - BSCR Rate 1",null,null,null,null,null,null,null,null,{"$f":"'Schedule IID'!L14","v":0}]
["Sch IID","Segregated Acc",null,"Commercial MBS - BSCR Rate 2",null,null,null,null,null,null,null,null,{"$f":"'Schedule IID'!L15","v":0}]
["Sch IID","Segregated Acc",null,"Commercial MBS - BSCR Rate 3",null,null,null,null,null,null,null,null,{"$f":"'Schedule IID'!L16","v":0}]
["Sch IID","Segregated Acc",null,"Commercial MBS - BSCR Rate 4",null,null,null,null,null,null,null,null,{"$f":"'Schedule IID'!L17","v":0}]
["Sch IID","Segregated Acc",null,"Commercial MBS - BSCR Rate 5",null,null,null,null,null,null,null,null,{"$f":"'Schedule IID'!L18","v":0}]
["Sch IID","Segregated Acc",null,"Commercial MBS - BSCR Rate 6",null,null,null,null,null,null,null,null,{"$f":"'Schedule IID'!L19","v":0}]
["Sch IID","Segregated Acc",null,"Commercial MBS - BSCR Rate 7",null,null,null,null,null,null,null,null,{"$f":"'Schedule IID'!L20","v":0}]
["Sch IID","Segregated Acc",null,"Commercial MBS - BSCR Rate 8",null,null,null,null,null,null,null,null,{"$f":"'Schedule IID'!L21","v":0}]
["Sch IID","Segregated Acc",null,"Liabilities Supported by Commercial MBS - BSCR Rate 1",null,null,null,null,null,null,null,null,{"$f":"'Schedule IID'!N14","v":0}]
["Sch IID","Segregated Acc",null,"Liabilities Supported by Commercial MBS - BSCR Rate 2",null,null,null,null,null,null,null,null,{"$f":"'Schedule IID'!N15","v":0}]
["Sch IID","Segregated Acc",null,"Liabilities Supported by Commercial MBS - BSCR Rate 3",null,null,null,null,null,null,null,null,{"$f":"'Schedule IID'!N16","v":0}]
["Sch IID","Segregated Acc",null,"Liabilities Supported by Commercial MBS - BSCR Rate 4",null,null,null,null,null,null,null,null,{"$f":"'Schedule IID'!N17","v":0}]
["Sch IID","Segregated Acc",null,"Liabilities Supported by Commercial MBS - BSCR Rate 5",null,null,null,null,null,null,null,null,{"$f":"'Schedule IID'!N18","v":0}]
["Sch IID","Segregated Acc",null,"Liabilities Supported by Commercial MBS - BSCR Rate 6",null,null,null,null,null,null,null,null,{"$f":"'Schedule IID'!N19","v":0}]
["Sch IID","Segregated Acc",null,"Liabilities Supported by Commercial MBS - BSCR Rate 7",null,null,null,null,null,null,null,null,{"$f":"'Schedule IID'!N20","v":0}]
["Sch IID","Segregated Acc",null,"Liabilities Supported by Commercial MBS - BSCR Rate 8",null,null,null,null,null,null,null,null,{"$f":"'Schedule IID'!N21","v":0}]
["Sch IID","Segregated Acc",null,"Bonds Mutual Fund - BSCR Rate 0",null,null,null,null,null,null,null,null,{"$f":"'Schedule IID'!P13","v":0}]
["Sch IID","Segregated Acc",null,"Bonds Mutual Fund - BSCR Rate 1",null,null,null,null,null,null,null,null,{"$f":"'Schedule IID'!P14","v":0}]
["Sch IID","Segregated Acc",null,"Bonds Mutual Fund - BSCR Rate 2",null,null,null,null,null,null,null,null,{"$f":"'Schedule IID'!P15","v":0}]
["Sch IID","Segregated Acc",null,"Bonds Mutual Fund - BSCR Rate 3",null,null,null,null,null,null,null,null,{"$f":"'Schedule IID'!P16","v":0}]
["Sch IID","Segregated Acc",null,"Bonds Mutual Fund - BSCR Rate 4",null,null,null,null,null,null,null,null,{"$f":"'Schedule IID'!P17","v":0}]
["Sch IID","Segregated Acc",null,"Bonds Mutual Fund - BSCR Rate 5",null,null,null,null,null,null,null,null,{"$f":"'Schedule IID'!P18","v":0}]
["Sch IID","Segregated Acc",null,"Bonds Mutual Fund - BSCR Rate 6",null,null,null,null,null,null,null,null,{"$f":"'Schedule IID'!P19","v":0}]
["Sch IID","Segregated Acc",null,"Bonds Mutual Fund - BSCR Rate 7",null,null,null,null,null,null,null,null,{"$f":"'Schedule IID'!P20","v":0}]
["Sch IID","Segregated Acc",null,"Bonds Mutual Fund - BSCR Rate 8",null,null,null,null,null,null,null,null,{"$f":"'Schedule IID'!P21","v":0}]
["Sch IID","Segregated Acc",null,"Liabilities Supported by Bonds Mutual Fund - BSCR Rate 0",null,null,null,null,null,null,null,null,{"$f":"'Schedule IID'!R13","v":0}]
["Sch IID","Segregated Acc",null,"Liabilities Supported by Bonds Mutual Fund - BSCR Rate 1",null,null,null,null,null,null,null,null,{"$f":"'Schedule IID'!R14","v":0}]
["Sch IID","Segregated Acc",null,"Liabilities Supported by Bonds Mutual Fund - BSCR Rate 2",null,null,null,null,null,null,null,null,{"$f":"'Schedule IID'!R15","v":0}]
["Sch IID","Segregated Acc",null,"Liabilities Supported by Bonds Mutual Fund - BSCR Rate 3",null,null,null,null,null,null,null,null,{"$f":"'Schedule IID'!R16","v":0}]
["Sch IID","Segregated Acc",null,"Liabilities Supported by Bonds Mutual Fund - BSCR Rate 4",null,null,null,null,null,null,null,null,{"$f":"'Schedule IID'!R17","v":0}]
["Sch IID","Segregated Acc",null,"Liabilities Supported by Bonds Mutual Fund - BSCR Rate 5",null,null,null,null,null,null,null,null,{"$f":"'Schedule IID'!R18","v":0}]
["Sch IID","Segregated Acc",null,"Liabilities Supported by Bonds Mutual Fund - BSCR Rate 6",null,null,null,null,null,null,null,null,{"$f":"'Schedule IID'!R19","v":0}]
["Sch IID","Segregated Acc",null,"Liabilities Supported by Bonds Mutual Fund - BSCR Rate 7",null,null,null,null,null,null,null,null,{"$f":"'Schedule IID'!R20","v":0}]
["Sch IID","Segregated Acc",null,"Liabilities Supported by Bonds Mutual Fund - BSCR Rate 8",null,null,null,null,null,null,null,null,{"$f":"'Schedule IID'!R21","v":0}]
["Sch IID","Segregated Acc",null,"Mortgage Loans - Insured",null,null,null,null,null,null,null,null,{"$f":"'Schedule IID'!T22","v":0}]
["Sch IID","Segregated Acc",null,"Mortgage Loans - Other Commercial",null,null,null,null,null,null,null,null,{"$f":"'Schedule IID'!T23","v":0}]
["Sch IID","Segregated Acc",null,"Mortgage Loans - Other Residential",null,null,null,null,null,null,null,null,{"$f":"'Schedule IID'!T24","v":0}]
["Sch IID","Segregated Acc",null,"Mortgage Loans - Not Good Stand.",null,null,null,null,null,null,null,null,{"$f":"'Schedule IID'!T25","v":0}]
["Sch IID","Segregated Acc",null,"Liabilities Supported by Mortgage Loans - Insured",null,null,null,null,null,null,null,null,{"$f":"'Schedule IID'!V22","v":0}]
["Sch IID","Segregated Acc",null,"Liabilities Supported by Mortgage Loans - Other Commercial",null,null,null,null,null,null,null,null,{"$f":"'Schedule IID'!V23","v":0}]
["Sch IID","Segregated Acc",null,"Liabilities Supported by Mortgage Loans - Other Residential",null,null,null,null,null,null,null,null,{"$f":"'Schedule IID'!V24","v":0}]
["Sch IID","Segregated Acc",null,"Liabilities Supported by Mortgage Loans - Not Good Stand.",null,null,null,null,null,null,null,null,{"$f":"'Schedule IID'!V25","v":0}]
["Sch IID","Segregated Acc",null,"Long Positions - Before - Strategic Holdings - Listed",null,null,null,null,null,null,null,null,{"$f":"'Schedule IID'!D39","v":0}]
["Sch IID","Segregated Acc",null,"Long Positions - Before - Duration Based",null,null,null,null,null,null,null,null,{"$f":"'Schedule IID'!D40","v":0}]
["Sch IID","Segregated Acc",null,"Long Positions - Before - Listed Equity Securities in Developed Markets",null,null,null,null,null,null,null,null,{"$f":"'Schedule IID'!D41","v":0}]
["Sch IID","Segregated Acc",null,"Long Positions - Before - Preferred Stocks, BSCR Rating 1",null,null,null,null,null,null,null,null,{"$f":"'Schedule IID'!D42","v":0}]
["Sch IID","Segregated Acc",null,"Long Positions - Before - Preferred Stocks, BSCR Rating 2",null,null,null,null,null,null,null,null,{"$f":"'Schedule IID'!D43","v":0}]
["Sch IID","Segregated Acc",null,"Long Positions - Before - Preferred Stocks, BSCR Rating 3",null,null,null,null,null,null,null,null,{"$f":"'Schedule IID'!D44","v":0}]
["Sch IID","Segregated Acc",null,"Long Positions - Before - Preferred Stocks, BSCR Rating 4",null,null,null,null,null,null,null,null,{"$f":"'Schedule IID'!D45","v":0}]
["Sch IID","Segregated Acc",null,"Long Positions - Before - Preferred Stocks, BSCR Rating 5",null,null,null,null,null,null,null,null,{"$f":"'Schedule IID'!D46","v":0}]
["Sch IID","Segregated Acc",null,"Long Positions - Before - Preferred Stocks, BSCR Rating 6",null,null,null,null,null,null,null,null,{"$f":"'Schedule IID'!D47","v":0}]
["Sch IID","Segregated Acc",null,"Long Positions - Before - Preferred Stocks, BSCR Rating 7",null,null,null,null,null,null,null,null,{"$f":"'Schedule IID'!D48","v":0}]
["Sch IID","Segregated Acc",null,"Long Positions - Before - Preferred Stocks, BSCR Rating 8",null,null,null,null,null,null,null,null,{"$f":"'Schedule IID'!D49","v":0}]
["Sch IID","Segregated Acc",null,"Long Positions - Before - Equity Derivatives on Type 1 Equities",null,null,null,null,null,null,null,null,{"$f":"'Schedule IID'!D50","v":0}]
["Sch IID","Segregated Acc",null,"Long Positions - Before - Strategic Holdings - Unlisted",null,null,null,null,null,null,null,null,{"$f":"'Schedule IID'!D51","v":0}]
["Sch IID","Segregated Acc",null,"Long Positions - Before - Other Equities",null,null,null,null,null,null,null,null,{"$f":"'Schedule IID'!D52","v":0}]
["Sch IID","Segregated Acc",null,"Long Positions - Before - Letters of Credit",null,null,null,null,null,null,null,null,{"$f":"'Schedule IID'!D53","v":0}]
["Sch IID","Segregated Acc",null,"Long Positions - Before - Intangible assets",null,null,null,null,null,null,null,null,{"$f":"'Schedule IID'!D54","v":0}]
["Sch IID","Segregated Acc",null,"Long Positions - Before - Pension Benefit Surplus",null,null,null,null,null,null,null,null,{"$f":"'Schedule IID'!D55","v":0}]
["Sch IID","Segregated Acc",null,"Long Positions - Before - Equity Derivatives on Type 2 Equities",null,null,null,null,null,null,null,null,{"$f":"'Schedule IID'!D56","v":0}]
["Sch IID","Segregated Acc",null,"Long Positions - Before - Infrastructure",null,null,null,null,null,null,null,null,{"$f":"'Schedule IID'!D57","v":0}]
["Sch IID","Segregated Acc",null,"Long Positions - Before - Derivatives on Infrastructure",null,null,null,null,null,null,null,null,{"$f":"'Schedule IID'!D58","v":0}]
["Sch IID","Segregated Acc",null,"Long Positions - Before - Equity Real Estate 1",null,null,null,null,null,null,null,null,{"$f":"'Schedule IID'!D59","v":0}]
["Sch IID","Segregated Acc",null,"Long Positions - Before - Equity Real Estate 2",null,null,null,null,null,null,null,null,{"$f":"'Schedule IID'!D60","v":0}]
["Sch IID","Segregated Acc",null,"Long Positions - After - Strategic Holdings - Listed",null,null,null,null,null,null,null,null,{"$f":"'Schedule IID'!F39","v":0}]
["Sch IID","Segregated Acc",null,"Long Positions - After - Duration Based",null,null,null,null,null,null,null,null,{"$f":"'Schedule IID'!F40","v":0}]
["Sch IID","Segregated Acc",null,"Long Positions - After - Listed Equity Securities in Developed Markets",null,null,null,null,null,null,null,null,{"$f":"'Schedule IID'!F41","v":0}]
["Sch IID","Segregated Acc",null,"Long Positions - After - Preferred Stocks, BSCR Rating 1",null,null,null,null,null,null,null,null,{"$f":"'Schedule IID'!F42","v":0}]
["Sch IID","Segregated Acc",null,"Long Positions - After - Preferred Stocks, BSCR Rating 2",null,null,null,null,null,null,null,null,{"$f":"'Schedule IID'!F43","v":0}]
["Sch IID","Segregated Acc",null,"Long Positions - After - Preferred Stocks, BSCR Rating 3",null,null,null,null,null,null,null,null,{"$f":"'Schedule IID'!F44","v":0}]
["Sch IID","Segregated Acc",null,"Long Positions - After - Preferred Stocks, BSCR Rating 4",null,null,null,null,null,null,null,null,{"$f":"'Schedule IID'!F45","v":0}]
["Sch IID","Segregated Acc",null,"Long Positions - After - Preferred Stocks, BSCR Rating 5",null,null,null,null,null,null,null,null,{"$f":"'Schedule IID'!F46","v":0}]
["Sch IID","Segregated Acc",null,"Long Positions - After - Preferred Stocks, BSCR Rating 6",null,null,null,null,null,null,null,null,{"$f":"'Schedule IID'!F47","v":0}]
["Sch IID","Segregated Acc",null,"Long Positions - After - Preferred Stocks, BSCR Rating 7",null,null,null,null,null,null,null,null,{"$f":"'Schedule IID'!F48","v":0}]
["Sch IID","Segregated Acc",null,"Long Positions - After - Preferred Stocks, BSCR Rating 8",null,null,null,null,null,null,null,null,{"$f":"'Schedule IID'!F49","v":0}]
["Sch IID","Segregated Acc",null,"Long Positions - After - Equity Derivatives on Type 1 Equities",null,null,null,null,null,null,null,null,{"$f":"'Schedule IID'!F50","v":0}]
["Sch IID","Segregated Acc",null,"Long Positions - After - Strategic Holdings - Unlisted",null,null,null,null,null,null,null,null,{"$f":"'Schedule IID'!F51","v":0}]
["Sch IID","Segregated Acc",null,"Long Positions - After - Other Equities",null,null,null,null,null,null,null,null,{"$f":"'Schedule IID'!F52","v":0}]
["Sch IID","Segregated Acc",null,"Long Positions - After - Letters of Credit",null,null,null,null,null,null,null,null,{"$f":"'Schedule IID'!F53","v":0}]
["Sch IID","Segregated Acc",null,"Long Positions - After - Intangible assets",null,null,null,null,null,null,null,null,{"$f":"'Schedule IID'!F54","v":0}]
["Sch IID","Segregated Acc",null,"Long Positions - After - Pension Benefit Surplus",null,null,null,null,null,null,null,null,{"$f":"'Schedule IID'!F55","v":0}]
["Sch IID","Segregated Acc",null,"Long Positions - After - Equity Derivatives on Type 2 Equities",null,null,null,null,null,null,null,null,{"$f":"'Schedule IID'!F56","v":0}]
["Sch IID","Segregated Acc",null,"Long Positions - After - Infrastructure",null,null,null,null,null,null,null,null,{"$f":"'Schedule IID'!F57","v":0}]
["Sch IID","Segregated Acc",null,"Long Positions - After - Derivatives on Infrastructure",null,null,null,null,null,null,null,null,{"$f":"'Schedule IID'!F58","v":0}]
["Sch IID","Segregated Acc",null,"Long Positions - After - Equity Real Estate 1",null,null,null,null,null,null,null,null,{"$f":"'Schedule IID'!F59","v":0}]
["Sch IID","Segregated Acc",null,"Long Positions - After - Equity Real Estate 2",null,null,null,null,null,null,null,null,{"$f":"'Schedule IID'!F60","v":0}]
["Sch IID","Segregated Acc",null,"Short - Before - Qualified Assets - Strategic Holdings - Listed",null,null,null,null,null,null,null,null,{"$f":"'Schedule IID'!H39","v":0}]
["Sch IID","Segregated Acc",null,"Short - Before - Qualified Assets - Duration Based",null,null,null,null,null,null,null,null,{"$f":"'Schedule IID'!H40","v":0}]
["Sch IID","Segregated Acc",null,"Short - Before - Qualified Assets - Listed Equity Securities in Developed Markets",null,null,null,null,null,null,null,null,{"$f":"'Schedule IID'!H41","v":0}]
["Sch IID","Segregated Acc",null,"Short - Before - Qualified Assets - Preferred Stocks, BSCR Rating 1",null,null,null,null,null,null,null,null,{"$f":"'Schedule IID'!H42","v":0}]
["Sch IID","Segregated Acc",null,"Short - Before - Qualified Assets - Preferred Stocks, BSCR Rating 2",null,null,null,null,null,null,null,null,{"$f":"'Schedule IID'!H43","v":0}]
["Sch IID","Segregated Acc",null,"Short - Before - Qualified Assets - Preferred Stocks, BSCR Rating 3",null,null,null,null,null,null,null,null,{"$f":"'Schedule IID'!H44","v":0}]
["Sch IID","Segregated Acc",null,"Short - Before - Qualified Assets - Preferred Stocks, BSCR Rating 4",null,null,null,null,null,null,null,null,{"$f":"'Schedule IID'!H45","v":0}]
["Sch IID","Segregated Acc",null,"Short - Before - Qualified Assets - Preferred Stocks, BSCR Rating 5",null,null,null,null,null,null,null,null,{"$f":"'Schedule IID'!H46","v":0}]
["Sch IID","Segregated Acc",null,"Short - Before - Qualified Assets - Preferred Stocks, BSCR Rating 6",null,null,null,null,null,null,null,null,{"$f":"'Schedule IID'!H47","v":0}]
["Sch IID","Segregated Acc",null,"Short - Before - Qualified Assets - Preferred Stocks, BSCR Rating 7",null,null,null,null,null,null,null,null,{"$f":"'Schedule IID'!H48","v":0}]
["Sch IID","Segregated Acc",null,"Short - Before - Qualified Assets - Preferred Stocks, BSCR Rating 8",null,null,null,null,null,null,null,null,{"$f":"'Schedule IID'!H49","v":0}]
["Sch IID","Segregated Acc",null,"Short - Before - Qualified Assets - Equity Derivatives on Type 1 Equities",null,null,null,null,null,null,null,null,{"$f":"'Schedule IID'!H50","v":0}]
["Sch IID","Segregated Acc",null,"Short - Before - Qualified Assets - Strategic Holdings - Unlisted",null,null,null,null,null,null,null,null,{"$f":"'Schedule IID'!H51","v":0}]
["Sch IID","Segregated Acc",null,"Short - Before - Qualified Assets - Other Equities",null,null,null,null,null,null,null,null,{"$f":"'Schedule IID'!H52","v":0}]
["Sch IID","Segregated Acc",null,"Short - Before - Qualified Assets - Letters of Credit",null,null,null,null,null,null,null,null,{"$f":"'Schedule IID'!H53","v":0}]
["Sch IID","Segregated Acc",null,"Short - Before - Qualified Assets - Intangible assets",null,null,null,null,null,null,null,null,{"$f":"'Schedule IID'!H54","v":0}]
["Sch IID","Segregated Acc",null,"Short - Before - Qualified Assets - Pension Benefit Surplus",null,null,null,null,null,null,null,null,{"$f":"'Schedule IID'!H55","v":0}]
["Sch IID","Segregated Acc",null,"Short - Before - Qualified Assets - Equity Derivatives on Type 2 Equities",null,null,null,null,null,null,null,null,{"$f":"'Schedule IID'!H56","v":0}]
["Sch IID","Segregated Acc",null,"Short - Before - Qualified Assets - Infrastructure",null,null,null,null,null,null,null,null,{"$f":"'Schedule IID'!H57","v":0}]
["Sch IID","Segregated Acc",null,"Short - Before - Qualified Assets - Derivatives on Infrastructure",null,null,null,null,null,null,null,null,{"$f":"'Schedule IID'!H58","v":0}]
["Sch IID","Segregated Acc",null,"Short - Before - Qualified Assets - Equity Real Estate 1",null,null,null,null,null,null,null,null,{"$f":"'Schedule IID'!H59","v":0}]
["Sch IID","Segregated Acc",null,"Short - Before - Qualified Assets - Equity Real Estate 2",null,null,null,null,null,null,null,null,{"$f":"'Schedule IID'!H60","v":0}]
["Sch IID","Segregated Acc",null,"Short - After - Qualified Assets - Strategic Holdings - Listed",null,null,null,null,null,null,null,null,{"$f":"'Schedule IID'!J39","v":0}]
["Sch IID","Segregated Acc",null,"Short - After - Qualified Assets - Duration Based",null,null,null,null,null,null,null,null,{"$f":"'Schedule IID'!J40","v":0}]
["Sch IID","Segregated Acc",null,"Short - After - Qualified Assets - Listed Equity Securities in Developed Markets",null,null,null,null,null,null,null,null,{"$f":"'Schedule IID'!J41","v":0}]
["Sch IID","Segregated Acc",null,"Short - After - Qualified Assets - Preferred Stocks, BSCR Rating 1",null,null,null,null,null,null,null,null,{"$f":"'Schedule IID'!J42","v":0}]
["Sch IID","Segregated Acc",null,"Short - After - Qualified Assets - Preferred Stocks, BSCR Rating 2",null,null,null,null,null,null,null,null,{"$f":"'Schedule IID'!J43","v":0}]
["Sch IID","Segregated Acc",null,"Short - After - Qualified Assets - Preferred Stocks, BSCR Rating 3",null,null,null,null,null,null,null,null,{"$f":"'Schedule IID'!J44","v":0}]
["Sch IID","Segregated Acc",null,"Short - After - Qualified Assets - Preferred Stocks, BSCR Rating 4",null,null,null,null,null,null,null,null,{"$f":"'Schedule IID'!J45","v":0}]
["Sch IID","Segregated Acc",null,"Short - After - Qualified Assets - Preferred Stocks, BSCR Rating 5",null,null,null,null,null,null,null,null,{"$f":"'Schedule IID'!J46","v":0}]
["Sch IID","Segregated Acc",null,"Short - After - Qualified Assets - Preferred Stocks, BSCR Rating 6",null,null,null,null,null,null,null,null,{"$f":"'Schedule IID'!J47","v":0}]
["Sch IID","Segregated Acc",null,"Short - After - Qualified Assets - Preferred Stocks, BSCR Rating 7",null,null,null,null,null,null,null,null,{"$f":"'Schedule IID'!J48","v":0}]
["Sch IID","Segregated Acc",null,"Short - After - Qualified Assets - Preferred Stocks, BSCR Rating 8",null,null,null,null,null,null,null,null,{"$f":"'Schedule IID'!J49","v":0}]
["Sch IID","Segregated Acc",null,"Short - After - Qualified Assets - Equity Derivatives on Type 1 Equities",null,null,null,null,null,null,null,null,{"$f":"'Schedule IID'!J50","v":0}]
["Sch IID","Segregated Acc",null,"Short - After - Qualified Assets - Strategic Holdings - Unlisted",null,null,null,null,null,null,null,null,{"$f":"'Schedule IID'!J51","v":0}]
["Sch IID","Segregated Acc",null,"Short - After - Qualified Assets - Other Equities",null,null,null,null,null,null,null,null,{"$f":"'Schedule IID'!J52","v":0}]
["Sch IID","Segregated Acc",null,"Short - After - Qualified Assets - Letters of Credit",null,null,null,null,null,null,null,null,{"$f":"'Schedule IID'!J53","v":0}]
["Sch IID","Segregated Acc",null,"Short - After - Qualified Assets - Intangible assets",null,null,null,null,null,null,null,null,{"$f":"'Schedule IID'!J54","v":0}]
["Sch IID","Segregated Acc",null,"Short - After - Qualified Assets - Pension Benefit Surplus",null,null,null,null,null,null,null,null,{"$f":"'Schedule IID'!J55","v":0}]
["Sch IID","Segregated Acc",null,"Short - After - Qualified Assets - Equity Derivatives on Type 2 Equities",null,null,null,null,null,null,null,null,{"$f":"'Schedule IID'!J56","v":0}]
["Sch IID","Segregated Acc",null,"Short - After - Qualified Assets - Infrastructure",null,null,null,null,null,null,null,null,{"$f":"'Schedule IID'!J57","v":0}]
["Sch IID","Segregated Acc",null,"Short - After - Qualified Assets - Derivatives on Infrastructure",null,null,null,null,null,null,null,null,{"$f":"'Schedule IID'!J58","v":0}]
["Sch IID","Segregated Acc",null,"Short - After - Qualified Assets - Equity Real Estate 1",null,null,null,null,null,null,null,null,{"$f":"'Schedule IID'!J59","v":0}]
["Sch IID","Segregated Acc",null,"Short - After - Qualified Assets - Equity Real Estate 2",null,null,null,null,null,null,null,null,{"$f":"'Schedule IID'!J60","v":0}]
["Sch IID","Segregated Acc",null,"Short - Before - UnQualified Assets - Strategic Holdings - Listed",null,null,null,null,null,null,null,null,{"$f":"'Schedule IID'!L39","v":0}]
["Sch IID","Segregated Acc",null,"Short - Before - UnQualified Assets - Duration Based",null,null,null,null,null,null,null,null,{"$f":"'Schedule IID'!L40","v":0}]
["Sch IID","Segregated Acc",null,"Short - Before - UnQualified Assets - Listed Equity Securities in Developed Markets",null,null,null,null,null,null,null,null,{"$f":"'Schedule IID'!L41","v":0}]
["Sch IID","Segregated Acc",null,"Short - Before - UnQualified Assets - Preferred Stocks, BSCR Rating 1",null,null,null,null,null,null,null,null,{"$f":"'Schedule IID'!L42","v":0}]
["Sch IID","Segregated Acc",null,"Short - Before - UnQualified Assets - Preferred Stocks, BSCR Rating 2",null,null,null,null,null,null,null,null,{"$f":"'Schedule IID'!L43","v":0}]
["Sch IID","Segregated Acc",null,"Short - Before - UnQualified Assets - Preferred Stocks, BSCR Rating 3",null,null,null,null,null,null,null,null,{"$f":"'Schedule IID'!L44","v":0}]
["Sch IID","Segregated Acc",null,"Short - Before - UnQualified Assets - Preferred Stocks, BSCR Rating 4",null,null,null,null,null,null,null,null,{"$f":"'Schedule IID'!L45","v":0}]
["Sch IID","Segregated Acc",null,"Short - Before - UnQualified Assets - Preferred Stocks, BSCR Rating 5",null,null,null,null,null,null,null,null,{"$f":"'Schedule IID'!L46","v":0}]
["Sch IID","Segregated Acc",null,"Short - Before - UnQualified Assets - Preferred Stocks, BSCR Rating 6",null,null,null,null,null,null,null,null,{"$f":"'Schedule IID'!L47","v":0}]
["Sch IID","Segregated Acc",null,"Short - Before - UnQualified Assets - Preferred Stocks, BSCR Rating 7",null,null,null,null,null,null,null,null,{"$f":"'Schedule IID'!L48","v":0}]
["Sch IID","Segregated Acc",null,"Short - Before - UnQualified Assets - Preferred Stocks, BSCR Rating 8",null,null,null,null,null,null,null,null,{"$f":"'Schedule IID'!L49","v":0}]
["Sch IID","Segregated Acc",null,"Short - Before - UnQualified Assets - Equity Derivatives on Type 1 Equities",null,null,null,null,null,null,null,null,{"$f":"'Schedule IID'!L50","v":0}]
["Sch IID","Segregated Acc",null,"Short - Before - UnQualified Assets - Strategic Holdings - Unlisted",null,null,null,null,null,null,null,null,{"$f":"'Schedule IID'!L51","v":0}]
["Sch IID","Segregated Acc",null,"Short - Before - UnQualified Assets - Other Equities",null,null,null,null,null,null,null,null,{"$f":"'Schedule IID'!L52","v":0}]
["Sch IID","Segregated Acc",null,"Short - Before - UnQualified Assets - Letters of Credit",null,null,null,null,null,null,null,null,{"$f":"'Schedule IID'!L53","v":0}]
["Sch IID","Segregated Acc",null,"Short - Before - UnQualified Assets - Intangible assets",null,null,null,null,null,null,null,null,{"$f":"'Schedule IID'!L54","v":0}]
["Sch IID","Segregated Acc",null,"Short - Before - UnQualified Assets - Pension Benefit Surplus",null,null,null,null,null,null,null,null,{"$f":"'Schedule IID'!L55","v":0}]
["Sch IID","Segregated Acc",null,"Short - Before - UnQualified Assets - Equity Derivatives on Type 2 Equities",null,null,null,null,null,null,null,null,{"$f":"'Schedule IID'!L56","v":0}]
["Sch IID","Segregated Acc",null,"Short - Before - UnQualified Assets - Infrastructure",null,null,null,null,null,null,null,null,{"$f":"'Schedule IID'!L57","v":0}]
["Sch IID","Segregated Acc",null,"Short - Before - UnQualified Assets - Derivatives on Infrastructure",null,null,null,null,null,null,null,null,{"$f":"'Schedule IID'!L58","v":0}]
["Sch IID","Segregated Acc",null,"Short - Before - UnQualified Assets - Equity Real Estate 1",null,null,null,null,null,null,null,null,{"$f":"'Schedule IID'!L59","v":0}]
["Sch IID","Segregated Acc",null,"Short - Before - UnQualified Assets - Equity Real Estate 2",null,null,null,null,null,null,null,null,{"$f":"'Schedule IID'!L60","v":0}]
["Sch IID","Segregated Acc",null,"Short - After - UnQualified Assets - Strategic Holdings - Listed",null,null,null,null,null,null,null,null,{"$f":"'Schedule IID'!N39","v":0}]
["Sch IID","Segregated Acc",null,"Short - After - UnQualified Assets - Duration Based",null,null,null,null,null,null,null,null,{"$f":"'Schedule IID'!N40","v":0}]
["Sch IID","Segregated Acc",null,"Short - After - UnQualified Assets - Listed Equity Securities in Developed Markets",null,null,null,null,null,null,null,null,{"$f":"'Schedule IID'!N41","v":0}]
["Sch IID","Segregated Acc",null,"Short - After - UnQualified Assets - Preferred Stocks, BSCR Rating 1",null,null,null,null,null,null,null,null,{"$f":"'Schedule IID'!N42","v":0}]
["Sch IID","Segregated Acc",null,"Short - After - UnQualified Assets - Preferred Stocks, BSCR Rating 2",null,null,null,null,null,null,null,null,{"$f":"'Schedule IID'!N43","v":0}]
["Sch IID","Segregated Acc",null,"Short - After - UnQualified Assets - Preferred Stocks, BSCR Rating 3",null,null,null,null,null,null,null,null,{"$f":"'Schedule IID'!N44","v":0}]
["Sch IID","Segregated Acc",null,"Short - After - UnQualified Assets - Preferred Stocks, BSCR Rating 4",null,null,null,null,null,null,null,null,{"$f":"'Schedule IID'!N45","v":0}]
["Sch IID","Segregated Acc",null,"Short - After - UnQualified Assets - Preferred Stocks, BSCR Rating 5",null,null,null,null,null,null,null,null,{"$f":"'Schedule IID'!N46","v":0}]
["Sch IID","Segregated Acc",null,"Short - After - UnQualified Assets - Preferred Stocks, BSCR Rating 6",null,null,null,null,null,null,null,null,{"$f":"'Schedule IID'!N47","v":0}]
["Sch IID","Segregated Acc",null,"Short - After - UnQualified Assets - Preferred Stocks, BSCR Rating 7",null,null,null,null,null,null,null,null,{"$f":"'Schedule IID'!N48","v":0}]
["Sch IID","Segregated Acc",null,"Short - After - UnQualified Assets - Preferred Stocks, BSCR Rating 8",null,null,null,null,null,null,null,null,{"$f":"'Schedule IID'!N49","v":0}]
["Sch IID","Segregated Acc",null,"Short - After - UnQualified Assets - Equity Derivatives on Type 1 Equities",null,null,null,null,null,null,null,null,{"$f":"'Schedule IID'!N50","v":0}]
["Sch IID","Segregated Acc",null,"Short - After - UnQualified Assets - Strategic Holdings - Unlisted",null,null,null,null,null,null,null,null,{"$f":"'Schedule IID'!N51","v":0}]
["Sch IID","Segregated Acc",null,"Short - After - UnQualified Assets - Other Equities",null,null,null,null,null,null,null,null,{"$f":"'Schedule IID'!N52","v":0}]
["Sch IID","Segregated Acc",null,"Short - After - UnQualified Assets - Letters of Credit",null,null,null,null,null,null,null,null,{"$f":"'Schedule IID'!N53","v":0}]
["Sch IID","Segregated Acc",null,"Short - After - UnQualified Assets - Intangible assets",null,null,null,null,null,null,null,null,{"$f":"'Schedule IID'!N54","v":0}]
["Sch IID","Segregated Acc",null,"Short - After - UnQualified Assets - Pension Benefit Surplus",null,null,null,null,null,null,null,null,{"$f":"'Schedule IID'!N55","v":0}]
["Sch IID","Segregated Acc",null,"Short - After - UnQualified Assets - Equity Derivatives on Type 2 Equities",null,null,null,null,null,null,null,null,{"$f":"'Schedule IID'!N56","v":0}]
["Sch IID","Segregated Acc",null,"Short - After - UnQualified Assets - Infrastructure",null,null,null,null,null,null,null,null,{"$f":"'Schedule IID'!N57","v":0}]
["Sch IID","Segregated Acc",null,"Short - After - UnQualified Assets - Derivatives on Infrastructure",null,null,null,null,null,null,null,null,{"$f":"'Schedule IID'!N58","v":0}]
["Sch IID","Segregated Acc",null,"Short - After - UnQualified Assets - Equity Real Estate 1",null,null,null,null,null,null,null,null,{"$f":"'Schedule IID'!N59","v":0}]
["Sch IID","Segregated Acc",null,"Short - After - UnQualified Assets - Equity Real Estate 2",null,null,null,null,null,null,null,null,{"$f":"'Schedule IID'!N60","v":0}]
["Sch IID","Segregated Acc",null,"Liabilities - Before - W/O Mgmt. Actions - Strategic Holdings - Listed",null,null,null,null,null,null,null,null,{"$f":"'Schedule IID'!P39","v":0}]
["Sch IID","Segregated Acc",null,"Liabilities - Before - W/O Mgmt. Actions - Duration Based",null,null,null,null,null,null,null,null,{"$f":"'Schedule IID'!P40","v":0}]
["Sch IID","Segregated Acc",null,"Liabilities - Before - W/O Mgmt. Actions - Listed Equity Securities in Developed Markets",null,null,null,null,null,null,null,null,{"$f":"'Schedule IID'!P41","v":0}]
["Sch IID","Segregated Acc",null,"Liabilities - Before - W/O Mgmt. Actions - Preferred Stocks, BSCR Rating 1",null,null,null,null,null,null,null,null,{"$f":"'Schedule IID'!P42","v":0}]
["Sch IID","Segregated Acc",null,"Liabilities - Before - W/O Mgmt. Actions - Preferred Stocks, BSCR Rating 2",null,null,null,null,null,null,null,null,{"$f":"'Schedule IID'!P43","v":0}]
["Sch IID","Segregated Acc",null,"Liabilities - Before - W/O Mgmt. Actions - Preferred Stocks, BSCR Rating 3",null,null,null,null,null,null,null,null,{"$f":"'Schedule IID'!P44","v":0}]
["Sch IID","Segregated Acc",null,"Liabilities - Before - W/O Mgmt. Actions - Preferred Stocks, BSCR Rating 4",null,null,null,null,null,null,null,null,{"$f":"'Schedule IID'!P45","v":0}]
["Sch IID","Segregated Acc",null,"Liabilities - Before - W/O Mgmt. Actions - Preferred Stocks, BSCR Rating 5",null,null,null,null,null,null,null,null,{"$f":"'Schedule IID'!P46","v":0}]
["Sch IID","Segregated Acc",null,"Liabilities - Before - W/O Mgmt. Actions - Preferred Stocks, BSCR Rating 6",null,null,null,null,null,null,null,null,{"$f":"'Schedule IID'!P47","v":0}]
["Sch IID","Segregated Acc",null,"Liabilities - Before - W/O Mgmt. Actions - Preferred Stocks, BSCR Rating 7",null,null,null,null,null,null,null,null,{"$f":"'Schedule IID'!P48","v":0}]
["Sch IID","Segregated Acc",null,"Liabilities - Before - W/O Mgmt. Actions - Preferred Stocks, BSCR Rating 8",null,null,null,null,null,null,null,null,{"$f":"'Schedule IID'!P49","v":0}]
["Sch IID","Segregated Acc",null,"Liabilities - Before - W/O Mgmt. Actions - Equity Derivatives on Type 1 Equities",null,null,null,null,null,null,null,null,{"$f":"'Schedule IID'!P50","v":0}]
["Sch IID","Segregated Acc",null,"Liabilities - Before - W/O Mgmt. Actions - Strategic Holdings - Unlisted",null,null,null,null,null,null,null,null,{"$f":"'Schedule IID'!P51","v":0}]
["Sch IID","Segregated Acc",null,"Liabilities - Before - W/O Mgmt. Actions - Other Equities",null,null,null,null,null,null,null,null,{"$f":"'Schedule IID'!P52","v":0}]
["Sch IID","Segregated Acc",null,"Liabilities - Before - W/O Mgmt. Actions - Letters of Credit",null,null,null,null,null,null,null,null,{"$f":"'Schedule IID'!P53","v":0}]
["Sch IID","Segregated Acc",null,"Liabilities - Before - W/O Mgmt. Actions - Intangible assets",null,null,null,null,null,null,null,null,{"$f":"'Schedule IID'!P54","v":0}]
["Sch IID","Segregated Acc",null,"Liabilities - Before - W/O Mgmt. Actions - Pension Benefit Surplus",null,null,null,null,null,null,null,null,{"$f":"'Schedule IID'!P55","v":0}]
["Sch IID","Segregated Acc",null,"Liabilities - Before - W/O Mgmt. Actions - Equity Derivatives on Type 2 Equities",null,null,null,null,null,null,null,null,{"$f":"'Schedule IID'!P56","v":0}]
["Sch IID","Segregated Acc",null,"Liabilities - Before - W/O Mgmt. Actions - Infrastructure",null,null,null,null,null,null,null,null,{"$f":"'Schedule IID'!P57","v":0}]
["Sch IID","Segregated Acc",null,"Liabilities - Before - W/O Mgmt. Actions - Derivatives on Infrastructure",null,null,null,null,null,null,null,null,{"$f":"'Schedule IID'!P58","v":0}]
["Sch IID","Segregated Acc",null,"Liabilities - Before - W/O Mgmt. Actions - Equity Real Estate 1",null,null,null,null,null,null,null,null,{"$f":"'Schedule IID'!P59","v":0}]
["Sch IID","Segregated Acc",null,"Liabilities - Before - W/O Mgmt. Actions - Equity Real Estate 2",null,null,null,null,null,null,null,null,{"$f":"'Schedule IID'!P60","v":0}]
["Sch IID","Segregated Acc",null,"Liabilities - After - W/O Mgmt. Actions - Strategic Holdings - Listed",null,null,null,null,null,null,null,null,{"$f":"'Schedule IID'!R39","v":0}]
["Sch IID","Segregated Acc",null,"Liabilities - After - W/O Mgmt. Actions - Duration Based",null,null,null,null,null,null,null,null,{"$f":"'Schedule IID'!R40","v":0}]
["Sch IID","Segregated Acc",null,"Liabilities - After - W/O Mgmt. Actions - Listed Equity Securities in Developed Markets",null,null,null,null,null,null,null,null,{"$f":"'Schedule IID'!R41","v":0}]
["Sch IID","Segregated Acc",null,"Liabilities - After - W/O Mgmt. Actions - Preferred Stocks, BSCR Rating 1",null,null,null,null,null,null,null,null,{"$f":"'Schedule IID'!R42","v":0}]
["Sch IID","Segregated Acc",null,"Liabilities - After - W/O Mgmt. Actions - Preferred Stocks, BSCR Rating 2",null,null,null,null,null,null,null,null,{"$f":"'Schedule IID'!R43","v":0}]
["Sch IID","Segregated Acc",null,"Liabilities - After - W/O Mgmt. Actions - Preferred Stocks, BSCR Rating 3",null,null,null,null,null,null,null,null,{"$f":"'Schedule IID'!R44","v":0}]
["Sch IID","Segregated Acc",null,"Liabilities - After - W/O Mgmt. Actions - Preferred Stocks, BSCR Rating 4",null,null,null,null,null,null,null,null,{"$f":"'Schedule IID'!R45","v":0}]
["Sch IID","Segregated Acc",null,"Liabilities - After - W/O Mgmt. Actions - Preferred Stocks, BSCR Rating 5",null,null,null,null,null,null,null,null,{"$f":"'Schedule IID'!R46","v":0}]
["Sch IID","Segregated Acc",null,"Liabilities - After - W/O Mgmt. Actions - Preferred Stocks, BSCR Rating 6",null,null,null,null,null,null,null,null,{"$f":"'Schedule IID'!R47","v":0}]
["Sch IID","Segregated Acc",null,"Liabilities - After - W/O Mgmt. Actions - Preferred Stocks, BSCR Rating 7",null,null,null,null,null,null,null,null,{"$f":"'Schedule IID'!R48","v":0}]
["Sch IID","Segregated Acc",null,"Liabilities - After - W/O Mgmt. Actions - Preferred Stocks, BSCR Rating 8",null,null,null,null,null,null,null,null,{"$f":"'Schedule IID'!R49","v":0}]
["Sch IID","Segregated Acc",null,"Liabilities - After - W/O Mgmt. Actions - Equity Derivatives on Type 1 Equities",null,null,null,null,null,null,null,null,{"$f":"'Schedule IID'!R50","v":0}]
["Sch IID","Segregated Acc",null,"Liabilities - After - W/O Mgmt. Actions - Strategic Holdings - Unlisted",null,null,null,null,null,null,null,null,{"$f":"'Schedule IID'!R51","v":0}]
["Sch IID","Segregated Acc",null,"Liabilities - After - W/O Mgmt. Actions - Other Equities",null,null,null,null,null,null,null,null,{"$f":"'Schedule IID'!R52","v":0}]
["Sch IID","Segregated Acc",null,"Liabilities - After - W/O Mgmt. Actions - Letters of Credit",null,null,null,null,null,null,null,null,{"$f":"'Schedule IID'!R53","v":0}]
["Sch IID","Segregated Acc",null,"Liabilities - After - W/O Mgmt. Actions - Intangible assets",null,null,null,null,null,null,null,null,{"$f":"'Schedule IID'!R54","v":0}]
["Sch IID","Segregated Acc",null,"Liabilities - After - W/O Mgmt. Actions - Pension Benefit Surplus",null,null,null,null,null,null,null,null,{"$f":"'Schedule IID'!R55","v":0}]
["Sch IID","Segregated Acc",null,"Liabilities - After - W/O Mgmt. Actions - Equity Derivatives on Type 2 Equities",null,null,null,null,null,null,null,null,{"$f":"'Schedule IID'!R56","v":0}]
["Sch IID","Segregated Acc",null,"Liabilities - After - W/O Mgmt. Actions - Infrastructure",null,null,null,null,null,null,null,null,{"$f":"'Schedule IID'!R57","v":0}]
["Sch IID","Segregated Acc",null,"Liabilities - After - W/O Mgmt. Actions - Derivatives on Infrastructure",null,null,null,null,null,null,null,null,{"$f":"'Schedule IID'!R58","v":0}]
["Sch IID","Segregated Acc",null,"Liabilities - After - W/O Mgmt. Actions - Equity Real Estate 1",null,null,null,null,null,null,null,null,{"$f":"'Schedule IID'!R59","v":0}]
["Sch IID","Segregated Acc",null,"Liabilities - After - W/O Mgmt. Actions - Equity Real Estate 2",null,null,null,null,null,null,null,null,{"$f":"'Schedule IID'!R60","v":0}]
["Sch IID","Segregated Acc",null,"Liabilities - After - With Mgmt. Actions - Strategic Holdings - Listed",null,null,null,null,null,null,null,null,{"$f":"'Schedule IID'!T39","v":0}]
["Sch IID","Segregated Acc",null,"Liabilities - After - With Mgmt. Actions - Duration Based",null,null,null,null,null,null,null,null,{"$f":"'Schedule IID'!T40","v":0}]
["Sch IID","Segregated Acc",null,"Liabilities - After - With Mgmt. Actions - Listed Equity Securities in Developed Markets",null,null,null,null,null,null,null,null,{"$f":"'Schedule IID'!T41","v":0}]
["Sch IID","Segregated Acc",null,"Liabilities - After - With Mgmt. Actions - Preferred Stocks, BSCR Rating 1",null,null,null,null,null,null,null,null,{"$f":"'Schedule IID'!T42","v":0}]
["Sch IID","Segregated Acc",null,"Liabilities - After - With Mgmt. Actions - Preferred Stocks, BSCR Rating 2",null,null,null,null,null,null,null,null,{"$f":"'Schedule IID'!T43","v":0}]
["Sch IID","Segregated Acc",null,"Liabilities - After - With Mgmt. Actions - Preferred Stocks, BSCR Rating 3",null,null,null,null,null,null,null,null,{"$f":"'Schedule IID'!T44","v":0}]
["Sch IID","Segregated Acc",null,"Liabilities - After - With Mgmt. Actions - Preferred Stocks, BSCR Rating 4",null,null,null,null,null,null,null,null,{"$f":"'Schedule IID'!T45","v":0}]
["Sch IID","Segregated Acc",null,"Liabilities - After - With Mgmt. Actions - Preferred Stocks, BSCR Rating 5",null,null,null,null,null,null,null,null,{"$f":"'Schedule IID'!T46","v":0}]
["Sch IID","Segregated Acc",null,"Liabilities - After - With Mgmt. Actions - Preferred Stocks, BSCR Rating 6",null,null,null,null,null,null,null,null,{"$f":"'Schedule IID'!T47","v":0}]
["Sch IID","Segregated Acc",null,"Liabilities - After - With Mgmt. Actions - Preferred Stocks, BSCR Rating 7",null,null,null,null,null,null,null,null,{"$f":"'Schedule IID'!T48","v":0}]
["Sch IID","Segregated Acc",null,"Liabilities - After - With Mgmt. Actions - Preferred Stocks, BSCR Rating 8",null,null,null,null,null,null,null,null,{"$f":"'Schedule IID'!T49","v":0}]
["Sch IID","Segregated Acc",null,"Liabilities - After - With Mgmt. Actions - Equity Derivatives on Type 1 Equities",null,null,null,null,null,null,null,null,{"$f":"'Schedule IID'!T50","v":0}]
["Sch IID","Segregated Acc",null,"Liabilities - After - With Mgmt. Actions - Strategic Holdings - Unlisted",null,null,null,null,null,null,null,null,{"$f":"'Schedule IID'!T51","v":0}]
["Sch IID","Segregated Acc",null,"Liabilities - After - With Mgmt. Actions - Other Equities",null,null,null,null,null,null,null,null,{"$f":"'Schedule IID'!T52","v":0}]
["Sch IID","Segregated Acc",null,"Liabilities - After - With Mgmt. Actions - Letters of Credit",null,null,null,null,null,null,null,null,{"$f":"'Schedule IID'!T53","v":0}]
["Sch IID","Segregated Acc",null,"Liabilities - After - With Mgmt. Actions - Intangible assets",null,null,null,null,null,null,null,null,{"$f":"'Schedule IID'!T54","v":0}]
["Sch IID","Segregated Acc",null,"Liabilities - After - With Mgmt. Actions - Pension Benefit Surplus",null,null,null,null,null,null,null,null,{"$f":"'Schedule IID'!T55","v":0}]
["Sch IID","Segregated Acc",null,"Liabilities - After - With Mgmt. Actions - Equity Derivatives on Type 2 Equities",null,null,null,null,null,null,null,null,{"$f":"'Schedule IID'!T56","v":0}]
["Sch IID","Segregated Acc",null,"Liabilities - After - With Mgmt. Actions - Infrastructure",null,null,null,null,null,null,null,null,{"$f":"'Schedule IID'!T57","v":0}]
["Sch IID","Segregated Acc",null,"Liabilities - After - With Mgmt. Actions - Derivatives on Infrastructure",null,null,null,null,null,null,null,null,{"$f":"'Schedule IID'!T58","v":0}]
["Sch IID","Segregated Acc",null,"Liabilities - After - With Mgmt. Actions - Equity Real Estate 1",null,null,null,null,null,null,null,null,{"$f":"'Schedule IID'!T59","v":0}]
["Sch IID","Segregated Acc",null,"Liabilities - After - With Mgmt. Actions - Equity Real Estate 2",null,null,null,null,null,null,null,null,{"$f":"'Schedule IID'!T60","v":0}]
["Sch IID","Segregated Acc",null,"Credit Derivatives - Up - Before - Long-Rating 0",null,null,null,null,null,null,null,null,{"$f":"'Schedule IID'!D68","v":0}]
["Sch IID","Segregated Acc",null,"Credit Derivatives - Up - Before - Long-Rating 1",null,null,null,null,null,null,null,null,{"$f":"'Schedule IID'!D69","v":0}]
["Sch IID","Segregated Acc",null,"Credit Derivatives - Up - Before - Long-Rating 2",null,null,null,null,null,null,null,null,{"$f":"'Schedule IID'!D70","v":0}]
["Sch IID","Segregated Acc",null,"Credit Derivatives - Up - Before - Long-Rating 3",null,null,null,null,null,null,null,null,{"$f":"'Schedule IID'!D71","v":0}]
["Sch IID","Segregated Acc",null,"Credit Derivatives - Up - Before - Long-Rating 4",null,null,null,null,null,null,null,null,{"$f":"'Schedule IID'!D72","v":0}]
["Sch IID","Segregated Acc",null,"Credit Derivatives - Up - Before - Long-Rating 5",null,null,null,null,null,null,null,null,{"$f":"'Schedule IID'!D73","v":0}]
["Sch IID","Segregated Acc",null,"Credit Derivatives - Up - Before - Long-Rating 6",null,null,null,null,null,null,null,null,{"$f":"'Schedule IID'!D74","v":0}]
["Sch IID","Segregated Acc",null,"Credit Derivatives - Up - Before - Long-Rating 7",null,null,null,null,null,null,null,null,{"$f":"'Schedule IID'!D75","v":0}]
["Sch IID","Segregated Acc",null,"Credit Derivatives - Up - Before - Long-Rating 8",null,null,null,null,null,null,null,null,{"$f":"'Schedule IID'!D76","v":0}]
["Sch IID","Segregated Acc",null,"Credit Derivatives - Up - After - Long- Rating 0",null,null,null,null,null,null,null,null,{"$f":"'Schedule IID'!F68","v":0}]
["Sch IID","Segregated Acc",null,"Credit Derivatives - Up - After - Long- Rating 1",null,null,null,null,null,null,null,null,{"$f":"'Schedule IID'!F69","v":0}]
["Sch IID","Segregated Acc",null,"Credit Derivatives - Up - After - Long- Rating 2",null,null,null,null,null,null,null,null,{"$f":"'Schedule IID'!F70","v":0}]
["Sch IID","Segregated Acc",null,"Credit Derivatives - Up - After - Long- Rating 3",null,null,null,null,null,null,null,null,{"$f":"'Schedule IID'!F71","v":0}]
["Sch IID","Segregated Acc",null,"Credit Derivatives - Up - After - Long- Rating 4",null,null,null,null,null,null,null,null,{"$f":"'Schedule IID'!F72","v":0}]
["Sch IID","Segregated Acc",null,"Credit Derivatives - Up - After - Long- Rating 5",null,null,null,null,null,null,null,null,{"$f":"'Schedule IID'!F73","v":0}]
["Sch IID","Segregated Acc",null,"Credit Derivatives - Up - After - Long- Rating 6",null,null,null,null,null,null,null,null,{"$f":"'Schedule IID'!F74","v":0}]
["Sch IID","Segregated Acc",null,"Credit Derivatives - Up - After - Long- Rating 7",null,null,null,null,null,null,null,null,{"$f":"'Schedule IID'!F75","v":0}]
["Sch IID","Segregated Acc",null,"Credit Derivatives - Up - After - Long- Rating 8",null,null,null,null,null,null,null,null,{"$f":"'Schedule IID'!F76","v":0}]
["Sch IID","Segregated Acc",null,"Credit Derivatives - Up - Before - Short- Rating 0",null,null,null,null,null,null,null,null,{"$f":"'Schedule IID'!H68","v":0}]
["Sch IID","Segregated Acc",null,"Credit Derivatives - Up - Before - Short- Rating 1",null,null,null,null,null,null,null,null,{"$f":"'Schedule IID'!H69","v":0}]
["Sch IID","Segregated Acc",null,"Credit Derivatives - Up - Before - Short- Rating 2",null,null,null,null,null,null,null,null,{"$f":"'Schedule IID'!H70","v":0}]
["Sch IID","Segregated Acc",null,"Credit Derivatives - Up - Before - Short- Rating 3",null,null,null,null,null,null,null,null,{"$f":"'Schedule IID'!H71","v":0}]
["Sch IID","Segregated Acc",null,"Credit Derivatives - Up - Before - Short- Rating 4",null,null,null,null,null,null,null,null,{"$f":"'Schedule IID'!H72","v":0}]
["Sch IID","Segregated Acc",null,"Credit Derivatives - Up - Before - Short- Rating 5",null,null,null,null,null,null,null,null,{"$f":"'Schedule IID'!H73","v":0}]
["Sch IID","Segregated Acc",null,"Credit Derivatives - Up - Before - Short- Rating 6",null,null,null,null,null,null,null,null,{"$f":"'Schedule IID'!H74","v":0}]
["Sch IID","Segregated Acc",null,"Credit Derivatives - Up - Before - Short- Rating 7",null,null,null,null,null,null,null,null,{"$f":"'Schedule IID'!H75","v":0}]
["Sch IID","Segregated Acc",null,"Credit Derivatives - Up - Before - Short- Rating 8",null,null,null,null,null,null,null,null,{"$f":"'Schedule IID'!H76","v":0}]
["Sch IID","Segregated Acc",null,"Credit Derivatives - Up - After - Short- Rating 0",null,null,null,null,null,null,null,null,{"$f":"'Schedule IID'!J68","v":0}]
["Sch IID","Segregated Acc",null,"Credit Derivatives - Up - After - Short- Rating 1",null,null,null,null,null,null,null,null,{"$f":"'Schedule IID'!J69","v":0}]
["Sch IID","Segregated Acc",null,"Credit Derivatives - Up - After - Short- Rating 2",null,null,null,null,null,null,null,null,{"$f":"'Schedule IID'!J70","v":0}]
["Sch IID","Segregated Acc",null,"Credit Derivatives - Up - After - Short- Rating 3",null,null,null,null,null,null,null,null,{"$f":"'Schedule IID'!J71","v":0}]
["Sch IID","Segregated Acc",null,"Credit Derivatives - Up - After - Short- Rating 4",null,null,null,null,null,null,null,null,{"$f":"'Schedule IID'!J72","v":0}]
["Sch IID","Segregated Acc",null,"Credit Derivatives - Up - After - Short- Rating 5",null,null,null,null,null,null,null,null,{"$f":"'Schedule IID'!J73","v":0}]
["Sch IID","Segregated Acc",null,"Credit Derivatives - Up - After - Short- Rating 6",null,null,null,null,null,null,null,null,{"$f":"'Schedule IID'!J74","v":0}]
["Sch IID","Segregated Acc",null,"Credit Derivatives - Up - After - Short- Rating 7",null,null,null,null,null,null,null,null,{"$f":"'Schedule IID'!J75","v":0}]
["Sch IID","Segregated Acc",null,"Credit Derivatives - Up - After - Short- Rating 8",null,null,null,null,null,null,null,null,{"$f":"'Schedule IID'!J76","v":0}]
["Sch IID","Segregated Acc",null,"Credit Derivatives - Down - Before - Long-Rating 0",null,null,null,null,null,null,null,null,{"$f":"'Schedule IID'!N68","v":0}]
["Sch IID","Segregated Acc",null,"Credit Derivatives - Down - Before - Long-Rating 1",null,null,null,null,null,null,null,null,{"$f":"'Schedule IID'!N69","v":0}]
["Sch IID","Segregated Acc",null,"Credit Derivatives - Down - Before - Long-Rating 2",null,null,null,null,null,null,null,null,{"$f":"'Schedule IID'!N70","v":0}]
["Sch IID","Segregated Acc",null,"Credit Derivatives - Down - Before - Long-Rating 3",null,null,null,null,null,null,null,null,{"$f":"'Schedule IID'!N71","v":0}]
["Sch IID","Segregated Acc",null,"Credit Derivatives - Down - Before - Long-Rating 4",null,null,null,null,null,null,null,null,{"$f":"'Schedule IID'!N72","v":0}]
["Sch IID","Segregated Acc",null,"Credit Derivatives - Down - Before - Long-Rating 5",null,null,null,null,null,null,null,null,{"$f":"'Schedule IID'!N73","v":0}]
["Sch IID","Segregated Acc",null,"Credit Derivatives - Down - Before - Long-Rating 6",null,null,null,null,null,null,null,null,{"$f":"'Schedule IID'!N74","v":0}]
["Sch IID","Segregated Acc",null,"Credit Derivatives - Down - Before - Long-Rating 7",null,null,null,null,null,null,null,null,{"$f":"'Schedule IID'!N75","v":0}]
["Sch IID","Segregated Acc",null,"Credit Derivatives - Down - Before - Long-Rating 8",null,null,null,null,null,null,null,null,{"$f":"'Schedule IID'!N76","v":0}]
["Sch IID","Segregated Acc",null,"Credit Derivatives - Down - After - Long- Rating 0",null,null,null,null,null,null,null,null,{"$f":"'Schedule IID'!P68","v":0}]
["Sch IID","Segregated Acc",null,"Credit Derivatives - Down - After - Long- Rating 1",null,null,null,null,null,null,null,null,{"$f":"'Schedule IID'!P69","v":0}]
["Sch IID","Segregated Acc",null,"Credit Derivatives - Down - After - Long- Rating 2",null,null,null,null,null,null,null,null,{"$f":"'Schedule IID'!P70","v":0}]
["Sch IID","Segregated Acc",null,"Credit Derivatives - Down - After - Long- Rating 3",null,null,null,null,null,null,null,null,{"$f":"'Schedule IID'!P71","v":0}]
["Sch IID","Segregated Acc",null,"Credit Derivatives - Down - After - Long- Rating 4",null,null,null,null,null,null,null,null,{"$f":"'Schedule IID'!P72","v":0}]
["Sch IID","Segregated Acc",null,"Credit Derivatives - Down - After - Long- Rating 5",null,null,null,null,null,null,null,null,{"$f":"'Schedule IID'!P73","v":0}]
["Sch IID","Segregated Acc",null,"Credit Derivatives - Down - After - Long- Rating 6",null,null,null,null,null,null,null,null,{"$f":"'Schedule IID'!P74","v":0}]
["Sch IID","Segregated Acc",null,"Credit Derivatives - Down - After - Long- Rating 7",null,null,null,null,null,null,null,null,{"$f":"'Schedule IID'!P75","v":0}]
["Sch IID","Segregated Acc",null,"Credit Derivatives - Down - After - Long- Rating 8",null,null,null,null,null,null,null,null,{"$f":"'Schedule IID'!P76","v":0}]
["Sch IID","Segregated Acc",null,"Credit Derivatives - Down - Before - Short- Rating 0",null,null,null,null,null,null,null,null,{"$f":"'Schedule IID'!R68","v":0}]
["Sch IID","Segregated Acc",null,"Credit Derivatives - Down - Before - Short- Rating 1",null,null,null,null,null,null,null,null,{"$f":"'Schedule IID'!R69","v":0}]
["Sch IID","Segregated Acc",null,"Credit Derivatives - Down - Before - Short- Rating 2",null,null,null,null,null,null,null,null,{"$f":"'Schedule IID'!R70","v":0}]
["Sch IID","Segregated Acc",null,"Credit Derivatives - Down - Before - Short- Rating 3",null,null,null,null,null,null,null,null,{"$f":"'Schedule IID'!R71","v":0}]
["Sch IID","Segregated Acc",null,"Credit Derivatives - Down - Before - Short- Rating 4",null,null,null,null,null,null,null,null,{"$f":"'Schedule IID'!R72","v":0}]
["Sch IID","Segregated Acc",null,"Credit Derivatives - Down - Before - Short- Rating 5",null,null,null,null,null,null,null,null,{"$f":"'Schedule IID'!R73","v":0}]
["Sch IID","Segregated Acc",null,"Credit Derivatives - Down - Before - Short- Rating 6",null,null,null,null,null,null,null,null,{"$f":"'Schedule IID'!R74","v":0}]
["Sch IID","Segregated Acc",null,"Credit Derivatives - Down - Before - Short- Rating 7",null,null,null,null,null,null,null,null,{"$f":"'Schedule IID'!R75","v":0}]
["Sch IID","Segregated Acc",null,"Credit Derivatives - Down - Before - Short- Rating 8",null,null,null,null,null,null,null,null,{"$f":"'Schedule IID'!R76","v":0}]
["Sch IID","Segregated Acc",null,"Credit Derivatives - Down - After - Short- Rating 0",null,null,null,null,null,null,null,null,{"$f":"'Schedule IID'!T68","v":0}]
["Sch IID","Segregated Acc",null,"Credit Derivatives - Down - After - Short- Rating 1",null,null,null,null,null,null,null,null,{"$f":"'Schedule IID'!T69","v":0}]
["Sch IID","Segregated Acc",null,"Credit Derivatives - Down - After - Short- Rating 2",null,null,null,null,null,null,null,null,{"$f":"'Schedule IID'!T70","v":0}]
["Sch IID","Segregated Acc",null,"Credit Derivatives - Down - After - Short- Rating 3",null,null,null,null,null,null,null,null,{"$f":"'Schedule IID'!T71","v":0}]
["Sch IID","Segregated Acc",null,"Credit Derivatives - Down - After - Short- Rating 4",null,null,null,null,null,null,null,null,{"$f":"'Schedule IID'!T72","v":0}]
["Sch IID","Segregated Acc",null,"Credit Derivatives - Down - After - Short- Rating 5",null,null,null,null,null,null,null,null,{"$f":"'Schedule IID'!T73","v":0}]
["Sch IID","Segregated Acc",null,"Credit Derivatives - Down - After - Short- Rating 6",null,null,null,null,null,null,null,null,{"$f":"'Schedule IID'!T74","v":0}]
["Sch IID","Segregated Acc",null,"Credit Derivatives - Down - After - Short- Rating 7",null,null,null,null,null,null,null,null,{"$f":"'Schedule IID'!T75","v":0}]
["Sch IID","Segregated Acc",null,"Credit Derivatives - Down - After - Short- Rating 8",null,null,null,null,null,null,null,null,{"$f":"'Schedule IID'!T76","v":0}]
["Sch IID","Segregated Acc",null,"Counterparty Default Risk - MV of Derivatives - MV Positive - Rating 0",null,null,null,null,null,null,null,null,{"$f":"'Schedule IID'!D84","v":0}]
["Sch IID","Segregated Acc",null,"Counterparty Default Risk - MV of Derivatives - MV Positive - Rating 1",null,null,null,null,null,null,null,null,{"$f":"'Schedule IID'!D85","v":0}]
["Sch IID","Segregated Acc",null,"Counterparty Default Risk - MV of Derivatives - MV Positive - Rating 2",null,null,null,null,null,null,null,null,{"$f":"'Schedule IID'!D86","v":0}]
["Sch IID","Segregated Acc",null,"Counterparty Default Risk - MV of Derivatives - MV Positive - Rating 3",null,null,null,null,null,null,null,null,{"$f":"'Schedule IID'!D87","v":0}]
["Sch IID","Segregated Acc",null,"Counterparty Default Risk - MV of Derivatives - MV Positive - Rating 4",null,null,null,null,null,null,null,null,{"$f":"'Schedule IID'!D88","v":0}]
["Sch IID","Segregated Acc",null,"Counterparty Default Risk - MV of Derivatives - MV Positive - Rating 5",null,null,null,null,null,null,null,null,{"$f":"'Schedule IID'!D89","v":0}]
["Sch IID","Segregated Acc",null,"Counterparty Default Risk - MV of Derivatives - MV Positive - Rating 6",null,null,null,null,null,null,null,null,{"$f":"'Schedule IID'!D90","v":0}]
["Sch IID","Segregated Acc",null,"Counterparty Default Risk - MV of Derivatives - MV Positive - Rating 7",null,null,null,null,null,null,null,null,{"$f":"'Schedule IID'!D91","v":0}]
["Sch IID","Segregated Acc",null,"Counterparty Default Risk - MV of Derivatives - MV Positive - Rating 8",null,null,null,null,null,null,null,null,{"$f":"'Schedule IID'!D92","v":0}]
["Sch IID","Segregated Acc",null,"Counterparty Default Risk - MV of Derivatives - MV Negative - Rating 0",null,null,null,null,null,null,null,null,{"$f":"'Schedule IID'!F84","v":0}]
["Sch IID","Segregated Acc",null,"Counterparty Default Risk - MV of Derivatives - MV Negative - Rating 1",null,null,null,null,null,null,null,null,{"$f":"'Schedule IID'!F85","v":0}]
["Sch IID","Segregated Acc",null,"Counterparty Default Risk - MV of Derivatives - MV Negative - Rating 2",null,null,null,null,null,null,null,null,{"$f":"'Schedule IID'!F86","v":0}]
["Sch IID","Segregated Acc",null,"Counterparty Default Risk - MV of Derivatives - MV Negative - Rating 3",null,null,null,null,null,null,null,null,{"$f":"'Schedule IID'!F87","v":0}]
["Sch IID","Segregated Acc",null,"Counterparty Default Risk - MV of Derivatives - MV Negative - Rating 4",null,null,null,null,null,null,null,null,{"$f":"'Schedule IID'!F88","v":0}]
["Sch IID","Segregated Acc",null,"Counterparty Default Risk - MV of Derivatives - MV Negative - Rating 5",null,null,null,null,null,null,null,null,{"$f":"'Schedule IID'!F89","v":0}]
["Sch IID","Segregated Acc",null,"Counterparty Default Risk - MV of Derivatives - MV Negative - Rating 6",null,null,null,null,null,null,null,null,{"$f":"'Schedule IID'!F90","v":0}]
["Sch IID","Segregated Acc",null,"Counterparty Default Risk - MV of Derivatives - MV Negative - Rating 7",null,null,null,null,null,null,null,null,{"$f":"'Schedule IID'!F91","v":0}]
["Sch IID","Segregated Acc",null,"Counterparty Default Risk - MV of Derivatives - MV Negative - Rating 8",null,null,null,null,null,null,null,null,{"$f":"'Schedule IID'!F92","v":0}]
["Sch IID","Segregated Acc",null,"Counterparty Default Risk - MV of Collateral - Rating 0",null,null,null,null,null,null,null,null,{"$f":"'Schedule IID'!H84","v":0}]
["Sch IID","Segregated Acc",null,"Counterparty Default Risk - MV of Collateral - Rating 1",null,null,null,null,null,null,null,null,{"$f":"'Schedule IID'!H85","v":0}]
["Sch IID","Segregated Acc",null,"Counterparty Default Risk - MV of Collateral - Rating 2",null,null,null,null,null,null,null,null,{"$f":"'Schedule IID'!H86","v":0}]
["Sch IID","Segregated Acc",null,"Counterparty Default Risk - MV of Collateral - Rating 3",null,null,null,null,null,null,null,null,{"$f":"'Schedule IID'!H87","v":0}]
["Sch IID","Segregated Acc",null,"Counterparty Default Risk - MV of Collateral - Rating 4",null,null,null,null,null,null,null,null,{"$f":"'Schedule IID'!H88","v":0}]
["Sch IID","Segregated Acc",null,"Counterparty Default Risk - MV of Collateral - Rating 5",null,null,null,null,null,null,null,null,{"$f":"'Schedule IID'!H89","v":0}]
["Sch IID","Segregated Acc",null,"Counterparty Default Risk - MV of Collateral - Rating 6",null,null,null,null,null,null,null,null,{"$f":"'Schedule IID'!H90","v":0}]
["Sch IID","Segregated Acc",null,"Counterparty Default Risk - MV of Collateral - Rating 7",null,null,null,null,null,null,null,null,{"$f":"'Schedule IID'!H91","v":0}]
["Sch IID","Segregated Acc",null,"Counterparty Default Risk - MV of Collateral - Rating 8",null,null,null,null,null,null,null,null,{"$f":"'Schedule IID'!H92","v":0}]
["Sch IID","Segregated Acc",null,"Cash and Cash Equivalents",null,null,null,null,null,null,null,null,{"$f":"'Schedule IID'!D95","v":0}]
["Sch IID","Segregated Acc",null,"NAIC Rating Corp & Sov. Bond - Class 1",null,null,null,null,null,null,null,null,{"$f":"'Schedule IID'!D101","v":0}]
["Sch IID","Segregated Acc",null,"NAIC Rating Corp & Sov. Bond - Class 2",null,null,null,null,null,null,null,null,{"$f":"'Schedule IID'!D102","v":0}]
["Sch IID","Segregated Acc",null,"NAIC Rating Corp & Sov. Bond - Class 3",null,null,null,null,null,null,null,null,{"$f":"'Schedule IID'!D103","v":0}]
["Sch IID","Segregated Acc",null,"NAIC Rating Corp & Sov. Bond - Class 4",null,null,null,null,null,null,null,null,{"$f":"'Schedule IID'!D104","v":0}]
["Sch IID","Segregated Acc",null,"NAIC Rating Corp & Sov. Bond - Class 5",null,null,null,null,null,null,null,null,{"$f":"'Schedule IID'!D105","v":0}]
["Sch IID","Segregated Acc",null,"NAIC Rating Corp & Sov. Bond - Class 6",null,null,null,null,null,null,null,null,{"$f":"'Schedule IID'!D106","v":0}]
["Sch IID","Segregated Acc",null,"NAIC Rating Corp & Sov. Bond - Total",null,null,null,null,null,null,null,null,{"$f":"'Schedule IID'!D107","v":0}]
["Sch IID","Segregated Acc",null,"NAIC Rating Resid. MBS - Class 1",null,null,null,null,null,null,null,null,{"$f":"'Schedule IID'!F101","v":0}]
["Sch IID","Segregated Acc",null,"NAIC Rating Resid. MBS - Class 2",null,null,null,null,null,null,null,null,{"$f":"'Schedule IID'!F102","v":0}]
["Sch IID","Segregated Acc",null,"NAIC Rating Resid. MBS - Class 3",null,null,null,null,null,null,null,null,{"$f":"'Schedule IID'!F103","v":0}]
["Sch IID","Segregated Acc",null,"NAIC Rating Resid. MBS - Class 4",null,null,null,null,null,null,null,null,{"$f":"'Schedule IID'!F104","v":0}]
["Sch IID","Segregated Acc",null,"NAIC Rating Resid. MBS - Class 5",null,null,null,null,null,null,null,null,{"$f":"'Schedule IID'!F105","v":0}]
["Sch IID","Segregated Acc",null,"NAIC Rating Resid. MBS - Class 6",null,null,null,null,null,null,null,null,{"$f":"'Schedule IID'!F106","v":0}]
["Sch IID","Segregated Acc",null,"NAIC Rating Resid. MBS - Total",null,null,null,null,null,null,null,null,{"$f":"'Schedule IID'!F107","v":0}]
["Sch IID","Segregated Acc",null,"NAIC Rating Comm. MBS - Class 1",null,null,null,null,null,null,null,null,{"$f":"'Schedule IID'!H101","v":0}]
["Sch IID","Segregated Acc",null,"NAIC Rating Comm. MBS - Class 2",null,null,null,null,null,null,null,null,{"$f":"'Schedule IID'!H102","v":0}]
["Sch IID","Segregated Acc",null,"NAIC Rating Comm. MBS - Class 3",null,null,null,null,null,null,null,null,{"$f":"'Schedule IID'!H103","v":0}]
["Sch IID","Segregated Acc",null,"NAIC Rating Comm. MBS - Class 4",null,null,null,null,null,null,null,null,{"$f":"'Schedule IID'!H104","v":0}]
["Sch IID","Segregated Acc",null,"NAIC Rating Comm. MBS - Class 5",null,null,null,null,null,null,null,null,{"$f":"'Schedule IID'!H105","v":0}]
["Sch IID","Segregated Acc",null,"NAIC Rating Comm. MBS - Class 6",null,null,null,null,null,null,null,null,{"$f":"'Schedule IID'!H106","v":0}]
["Sch IID","Segregated Acc",null,"NAIC Rating Comm. MBS - Total",null,null,null,null,null,null,null,null,{"$f":"'Schedule IID'!H107","v":0}]
["Sch IID","Segregated Acc",null,"NAIC Rating Bond Mutual - Class 1",null,null,null,null,null,null,null,null,{"$f":"'Schedule IID'!J101","v":0}]
["Sch IID","Segregated Acc",null,"NAIC Rating Bond Mutual - Class 2",null,null,null,null,null,null,null,null,{"$f":"'Schedule IID'!J102","v":0}]
["Sch IID","Segregated Acc",null,"NAIC Rating Bond Mutual - Class 3",null,null,null,null,null,null,null,null,{"$f":"'Schedule IID'!J103","v":0}]
["Sch IID","Segregated Acc",null,"NAIC Rating Bond Mutual - Class 4",null,null,null,null,null,null,null,null,{"$f":"'Schedule IID'!J104","v":0}]
["Sch IID","Segregated Acc",null,"NAIC Rating Bond Mutual - Class 5",null,null,null,null,null,null,null,null,{"$f":"'Schedule IID'!J105","v":0}]
["Sch IID","Segregated Acc",null,"NAIC Rating Bond Mutual - Class 6",null,null,null,null,null,null,null,null,{"$f":"'Schedule IID'!J106","v":0}]
["Sch IID","Segregated Acc",null,"NAIC Rating Bond Mutual - Total",null,null,null,null,null,null,null,null,{"$f":"'Schedule IID'!J107","v":0}]
["Sch IID","Segregated Acc",null,"NAIC Rating Mort. Loan - Class 1",null,null,null,null,null,null,null,null,{"$f":"'Schedule IID'!L101","v":0}]
["Sch IID","Segregated Acc",null,"NAIC Rating Mort. Loan - Class 2",null,null,null,null,null,null,null,null,{"$f":"'Schedule IID'!L102","v":0}]
["Sch IID","Segregated Acc",null,"NAIC Rating Mort. Loan - Class 3",null,null,null,null,null,null,null,null,{"$f":"'Schedule IID'!L103","v":0}]
["Sch IID","Segregated Acc",null,"NAIC Rating Mort. Loan - Class 4",null,null,null,null,null,null,null,null,{"$f":"'Schedule IID'!L104","v":0}]
["Sch IID","Segregated Acc",null,"NAIC Rating Mort. Loan - Class 5",null,null,null,null,null,null,null,null,{"$f":"'Schedule IID'!L105","v":0}]
["Sch IID","Segregated Acc",null,"NAIC Rating Mort. Loan - Class 6",null,null,null,null,null,null,null,null,{"$f":"'Schedule IID'!L106","v":0}]
["Sch IID","Segregated Acc",null,"NAIC Rating Mort. Loan - Total",null,null,null,null,null,null,null,null,{"$f":"'Schedule IID'!L107","v":0}]
["Sch IID","Segregated Acc",null,"NAIC Rating Pref. Stock - Class 1",null,null,null,null,null,null,null,null,{"$f":"'Schedule IID'!N101","v":0}]
["Sch IID","Segregated Acc",null,"NAIC Rating Pref. Stock - Class 2",null,null,null,null,null,null,null,null,{"$f":"'Schedule IID'!N102","v":0}]
["Sch IID","Segregated Acc",null,"NAIC Rating Pref. Stock - Class 3",null,null,null,null,null,null,null,null,{"$f":"'Schedule IID'!N103","v":0}]
["Sch IID","Segregated Acc",null,"NAIC Rating Pref. Stock - Class 4",null,null,null,null,null,null,null,null,{"$f":"'Schedule IID'!N104","v":0}]
["Sch IID","Segregated Acc",null,"NAIC Rating Pref. Stock - Class 5",null,null,null,null,null,null,null,null,{"$f":"'Schedule IID'!N105","v":0}]
["Sch IID","Segregated Acc",null,"NAIC Rating Pref. Stock - Class 6",null,null,null,null,null,null,null,null,{"$f":"'Schedule IID'!N106","v":0}]
["Sch IID","Segregated Acc",null,"NAIC Rating Pref. Stock - Total",null,null,null,null,null,null,null,null,{"$f":"'Schedule IID'!N107","v":0}]
["Sch IID","Segregated Acc",null,"NAIC Rating Other Assets - Class 1",null,null,null,null,null,null,null,null,{"$f":"'Schedule IID'!P101","v":0}]
["Sch IID","Segregated Acc",null,"NAIC Rating Other Assets - Class 2",null,null,null,null,null,null,null,null,{"$f":"'Schedule IID'!P102","v":0}]
["Sch IID","Segregated Acc",null,"NAIC Rating Other Assets - Class 3",null,null,null,null,null,null,null,null,{"$f":"'Schedule IID'!P103","v":0}]
["Sch IID","Segregated Acc",null,"NAIC Rating Other Assets - Class 4",null,null,null,null,null,null,null,null,{"$f":"'Schedule IID'!P104","v":0}]
["Sch IID","Segregated Acc",null,"NAIC Rating Other Assets - Class 5",null,null,null,null,null,null,null,null,{"$f":"'Schedule IID'!P105","v":0}]
["Sch IID","Segregated Acc",null,"NAIC Rating Other Assets - Class 6",null,null,null,null,null,null,null,null,{"$f":"'Schedule IID'!P106","v":0}]
["Sch IID","Segregated Acc",null,"NAIC Rating Other Assets - Total",null,null,null,null,null,null,null,null,{"$f":"'Schedule IID'!P107","v":0}]
[]
["Sch IIE","Deposits",null,"Corp. Bonds - BSCR Rate 0",null,null,null,null,null,null,null,null,{"$f":"'Schedule IIE'!D13","v":0},null,{"$f":"'Schedule IIE'!F13","v":0}]
["Sch IIE","Deposits",null,"Corp. Bonds - BSCR Rate 1",null,null,null,null,null,null,null,null,{"$f":"'Schedule IIE'!D14","v":0},null,{"$f":"'Schedule IIE'!F14","v":0}]
["Sch IIE","Deposits",null,"Corp. Bonds - BSCR Rate 2",null,null,null,null,null,null,null,null,{"$f":"'Schedule IIE'!D15","v":0},null,{"$f":"'Schedule IIE'!F15","v":0}]
["Sch IIE","Deposits",null,"Corp. Bonds - BSCR Rate 3",null,null,null,null,null,null,null,null,{"$f":"'Schedule IIE'!D16","v":0},null,{"$f":"'Schedule IIE'!F16","v":0}]
["Sch IIE","Deposits",null,"Corp. Bonds - BSCR Rate 4",null,null,null,null,null,null,null,null,{"$f":"'Schedule IIE'!D17","v":0},null,{"$f":"'Schedule IIE'!F17","v":0}]
["Sch IIE","Deposits",null,"Corp. Bonds - BSCR Rate 5",null,null,null,null,null,null,null,null,{"$f":"'Schedule IIE'!D18","v":0},null,{"$f":"'Schedule IIE'!F18","v":0}]
["Sch IIE","Deposits",null,"Corp. Bonds - BSCR Rate 6",null,null,null,null,null,null,null,null,{"$f":"'Schedule IIE'!D19","v":0},null,{"$f":"'Schedule IIE'!F19","v":0}]
["Sch IIE","Deposits",null,"Corp. Bonds - BSCR Rate 7",null,null,null,null,null,null,null,null,{"$f":"'Schedule IIE'!D20","v":0},null,{"$f":"'Schedule IIE'!F20","v":0}]
["Sch IIE","Deposits",null,"Corp. Bonds - BSCR Rate 8",null,null,null,null,null,null,null,null,{"$f":"'Schedule IIE'!D21","v":0},null,{"$f":"'Schedule IIE'!F21","v":0}]
["Sch IIE","Deposits",null,"Residential MBS - BSCR Rate 1",null,null,null,null,null,null,null,null,{"$f":"'Schedule IIE'!H14","v":0},null,{"$f":"'Schedule IIE'!J14","v":0}]
["Sch IIE","Deposits",null,"Residential MBS - BSCR Rate 2",null,null,null,null,null,null,null,null,{"$f":"'Schedule IIE'!H15","v":0},null,{"$f":"'Schedule IIE'!J15","v":0}]
["Sch IIE","Deposits",null,"Residential MBS - BSCR Rate 3",null,null,null,null,null,null,null,null,{"$f":"'Schedule IIE'!H16","v":0},null,{"$f":"'Schedule IIE'!J16","v":0}]
["Sch IIE","Deposits",null,"Residential MBS - BSCR Rate 4",null,null,null,null,null,null,null,null,{"$f":"'Schedule IIE'!H17","v":0},null,{"$f":"'Schedule IIE'!J17","v":0}]
["Sch IIE","Deposits",null,"Residential MBS - BSCR Rate 5",null,null,null,null,null,null,null,null,{"$f":"'Schedule IIE'!H18","v":0},null,{"$f":"'Schedule IIE'!J18","v":0}]
["Sch IIE","Deposits",null,"Residential MBS - BSCR Rate 6",null,null,null,null,null,null,null,null,{"$f":"'Schedule IIE'!H19","v":0},null,{"$f":"'Schedule IIE'!J19","v":0}]
["Sch IIE","Deposits",null,"Residential MBS - BSCR Rate 7",null,null,null,null,null,null,null,null,{"$f":"'Schedule IIE'!H20","v":0},null,{"$f":"'Schedule IIE'!J20","v":0}]
["Sch IIE","Deposits",null,"Residential MBS - BSCR Rate 8",null,null,null,null,null,null,null,null,{"$f":"'Schedule IIE'!H21","v":0},null,{"$f":"'Schedule IIE'!J21","v":0}]
["Sch IIE","Deposits",null,"Commercial MBS - BSCR Rate 1",null,null,null,null,null,null,null,null,{"$f":"'Schedule IIE'!L14","v":0},null,{"$f":"'Schedule IIE'!N14","v":0}]
["Sch IIE","Deposits",null,"Commercial MBS - BSCR Rate 2",null,null,null,null,null,null,null,null,{"$f":"'Schedule IIE'!L15","v":0},null,{"$f":"'Schedule IIE'!N15","v":0}]
["Sch IIE","Deposits",null,"Commercial MBS - BSCR Rate 3",null,null,null,null,null,null,null,null,{"$f":"'Schedule IIE'!L16","v":0},null,{"$f":"'Schedule IIE'!N16","v":0}]
["Sch IIE","Deposits",null,"Commercial MBS - BSCR Rate 4",null,null,null,null,null,null,null,null,{"$f":"'Schedule IIE'!L17","v":0},null,{"$f":"'Schedule IIE'!N17","v":0}]
["Sch IIE","Deposits",null,"Commercial MBS - BSCR Rate 5",null,null,null,null,null,null,null,null,{"$f":"'Schedule IIE'!L18","v":0},null,{"$f":"'Schedule IIE'!N18","v":0}]
["Sch IIE","Deposits",null,"Commercial MBS - BSCR Rate 6",null,null,null,null,null,null,null,null,{"$f":"'Schedule IIE'!L19","v":0},null,{"$f":"'Schedule IIE'!N19","v":0}]
["Sch IIE","Deposits",null,"Commercial MBS - BSCR Rate 7",null,null,null,null,null,null,null,null,{"$f":"'Schedule IIE'!L20","v":0},null,{"$f":"'Schedule IIE'!N20","v":0}]
["Sch IIE","Deposits",null,"Commercial MBS - BSCR Rate 8",null,null,null,null,null,null,null,null,{"$f":"'Schedule IIE'!L21","v":0},null,{"$f":"'Schedule IIE'!N21","v":0}]
["Sch IIE","Deposits",null,"Bonds Mutual Fund - BSCR Rate 0",null,null,null,null,null,null,null,null,{"$f":"'Schedule IIE'!P13","v":0},null,{"$f":"'Schedule IIE'!R13","v":0}]
["Sch IIE","Deposits",null,"Bonds Mutual Fund - BSCR Rate 1",null,null,null,null,null,null,null,null,{"$f":"'Schedule IIE'!P14","v":0},null,{"$f":"'Schedule IIE'!R14","v":0}]
["Sch IIE","Deposits",null,"Bonds Mutual Fund - BSCR Rate 2",null,null,null,null,null,null,null,null,{"$f":"'Schedule IIE'!P15","v":0},null,{"$f":"'Schedule IIE'!R15","v":0}]
["Sch IIE","Deposits",null,"Bonds Mutual Fund - BSCR Rate 3",null,null,null,null,null,null,null,null,{"$f":"'Schedule IIE'!P16","v":0},null,{"$f":"'Schedule IIE'!R16","v":0}]
["Sch IIE","Deposits",null,"Bonds Mutual Fund - BSCR Rate 4",null,null,null,null,null,null,null,null,{"$f":"'Schedule IIE'!P17","v":0},null,{"$f":"'Schedule IIE'!R17","v":0}]
["Sch IIE","Deposits",null,"Bonds Mutual Fund - BSCR Rate 5",null,null,null,null,null,null,null,null,{"$f":"'Schedule IIE'!P18","v":0},null,{"$f":"'Schedule IIE'!R18","v":0}]
["Sch IIE","Deposits",null,"Bonds Mutual Fund - BSCR Rate 6",null,null,null,null,null,null,null,null,{"$f":"'Schedule IIE'!P19","v":0},null,{"$f":"'Schedule IIE'!R19","v":0}]
["Sch IIE","Deposits",null,"Bonds Mutual Fund - BSCR Rate 7",null,null,null,null,null,null,null,null,{"$f":"'Schedule IIE'!P20","v":0},null,{"$f":"'Schedule IIE'!R20","v":0}]
["Sch IIE","Deposits",null,"Bonds Mutual Fund - BSCR Rate 8",null,null,null,null,null,null,null,null,{"$f":"'Schedule IIE'!P21","v":0},null,{"$f":"'Schedule IIE'!R21","v":0}]
["Sch IIE","Deposits",null,"Mortgage Loans - Insured",null,null,null,null,null,null,null,null,{"$f":"'Schedule IIE'!T22","v":0},null,{"$f":"'Schedule IIE'!V22","v":0}]
["Sch IIE","Deposits",null,"Mortgage Loans - Other Commercial",null,null,null,null,null,null,null,null,{"$f":"'Schedule IIE'!T23","v":0},null,{"$f":"'Schedule IIE'!V23","v":0}]
["Sch IIE","Deposits",null,"Mortgage Loans - Other Residential",null,null,null,null,null,null,null,null,{"$f":"'Schedule IIE'!T24","v":0},null,{"$f":"'Schedule IIE'!V24","v":0}]
["Sch IIE","Deposits",null,"Mortgage Loans - Not Good Stand.",null,null,null,null,null,null,null,null,{"$f":"'Schedule IIE'!T25","v":0},null,{"$f":"'Schedule IIE'!V25","v":0}]
["Sch IIE","Deposits",null,"Long Positions - Before - Strategic Holdings - Listed",null,null,null,null,null,null,null,null,{"$f":"'Schedule IIE'!D39","v":0}]
["Sch IIE","Deposits",null,"Long Positions - Before - Duration Based",null,null,null,null,null,null,null,null,{"$f":"'Schedule IIE'!D40","v":0}]
["Sch IIE","Deposits",null,"Long Positions - Before - Listed Equity Securities in Developed Markets",null,null,null,null,null,null,null,null,{"$f":"'Schedule IIE'!D41","v":0}]
["Sch IIE","Deposits",null,"Long Positions - Before - Preferred Stocks, BSCR Rating 1",null,null,null,null,null,null,null,null,{"$f":"'Schedule IIE'!D42","v":0}]
["Sch IIE","Deposits",null,"Long Positions - Before - Preferred Stocks, BSCR Rating 2",null,null,null,null,null,null,null,null,{"$f":"'Schedule IIE'!D43","v":0}]
["Sch IIE","Deposits",null,"Long Positions - Before - Preferred Stocks, BSCR Rating 3",null,null,null,null,null,null,null,null,{"$f":"'Schedule IIE'!D44","v":0}]
["Sch IIE","Deposits",null,"Long Positions - Before - Preferred Stocks, BSCR Rating 4",null,null,null,null,null,null,null,null,{"$f":"'Schedule IIE'!D45","v":0}]
["Sch IIE","Deposits",null,"Long Positions - Before - Preferred Stocks, BSCR Rating 5",null,null,null,null,null,null,null,null,{"$f":"'Schedule IIE'!D46","v":0}]
["Sch IIE","Deposits",null,"Long Positions - Before - Preferred Stocks, BSCR Rating 6",null,null,null,null,null,null,null,null,{"$f":"'Schedule IIE'!D47","v":0}]
["Sch IIE","Deposits",null,"Long Positions - Before - Preferred Stocks, BSCR Rating 7",null,null,null,null,null,null,null,null,{"$f":"'Schedule IIE'!D48","v":0}]
["Sch IIE","Deposits",null,"Long Positions - Before - Preferred Stocks, BSCR Rating 8",null,null,null,null,null,null,null,null,{"$f":"'Schedule IIE'!D49","v":0}]
["Sch IIE","Deposits",null,"Long Positions - Before - Equity Derivatives on Type 1 Equities",null,null,null,null,null,null,null,null,{"$f":"'Schedule IIE'!D50","v":0}]
["Sch IIE","Deposits",null,"Long Positions - Before - Strategic Holdings - Unlisted",null,null,null,null,null,null,null,null,{"$f":"'Schedule IIE'!D51","v":0}]
["Sch IIE","Deposits",null,"Long Positions - Before - Other Equities",null,null,null,null,null,null,null,null,{"$f":"'Schedule IIE'!D52","v":0}]
["Sch IIE","Deposits",null,"Long Positions - Before - Letters of Credit",null,null,null,null,null,null,null,null,{"$f":"'Schedule IIE'!D53","v":0}]
["Sch IIE","Deposits",null,"Long Positions - Before - Intangible assets",null,null,null,null,null,null,null,null,{"$f":"'Schedule IIE'!D54","v":0}]
["Sch IIE","Deposits",null,"Long Positions - Before - Pension Benefit Surplus",null,null,null,null,null,null,null,null,{"$f":"'Schedule IIE'!D55","v":0}]
["Sch IIE","Deposits",null,"Long Positions - Before - Equity Derivatives on Type 2 Equities",null,null,null,null,null,null,null,null,{"$f":"'Schedule IIE'!D56","v":0}]
["Sch IIE","Deposits",null,"Long Positions - Before - Infrastructure",null,null,null,null,null,null,null,null,{"$f":"'Schedule IIE'!D57","v":0}]
["Sch IIE","Deposits",null,"Long Positions - Before - Derivatives on Infrastructure",null,null,null,null,null,null,null,null,{"$f":"'Schedule IIE'!D58","v":0}]
["Sch IIE","Deposits",null,"Long Positions - Before - Equity Real Estate 1",null,null,null,null,null,null,null,null,{"$f":"'Schedule IIE'!D59","v":0}]
["Sch IIE","Deposits",null,"Long Positions - Before - Equity Real Estate 2",null,null,null,null,null,null,null,null,{"$f":"'Schedule IIE'!D60","v":0}]
["Sch IIE","Deposits",null,"Long Positions - After - Strategic Holdings - Listed",null,null,null,null,null,null,null,null,{"$f":"'Schedule IIE'!F39","v":0}]
["Sch IIE","Deposits",null,"Long Positions - After - Duration Based",null,null,null,null,null,null,null,null,{"$f":"'Schedule IIE'!F40","v":0}]
["Sch IIE","Deposits",null,"Long Positions - After - Listed Equity Securities in Developed Markets",null,null,null,null,null,null,null,null,{"$f":"'Schedule IIE'!F41","v":0}]
["Sch IIE","Deposits",null,"Long Positions - After - Preferred Stocks, BSCR Rating 1",null,null,null,null,null,null,null,null,{"$f":"'Schedule IIE'!F42","v":0}]
["Sch IIE","Deposits",null,"Long Positions - After - Preferred Stocks, BSCR Rating 2",null,null,null,null,null,null,null,null,{"$f":"'Schedule IIE'!F43","v":0}]
["Sch IIE","Deposits",null,"Long Positions - After - Preferred Stocks, BSCR Rating 3",null,null,null,null,null,null,null,null,{"$f":"'Schedule IIE'!F44","v":0}]
["Sch IIE","Deposits",null,"Long Positions - After - Preferred Stocks, BSCR Rating 4",null,null,null,null,null,null,null,null,{"$f":"'Schedule IIE'!F45","v":0}]
["Sch IIE","Deposits",null,"Long Positions - After - Preferred Stocks, BSCR Rating 5",null,null,null,null,null,null,null,null,{"$f":"'Schedule IIE'!F46","v":0}]
["Sch IIE","Deposits",null,"Long Positions - After - Preferred Stocks, BSCR Rating 6",null,null,null,null,null,null,null,null,{"$f":"'Schedule IIE'!F47","v":0}]
["Sch IIE","Deposits",null,"Long Positions - After - Preferred Stocks, BSCR Rating 7",null,null,null,null,null,null,null,null,{"$f":"'Schedule IIE'!F48","v":0}]
["Sch IIE","Deposits",null,"Long Positions - After - Preferred Stocks, BSCR Rating 8",null,null,null,null,null,null,null,null,{"$f":"'Schedule IIE'!F49","v":0}]
["Sch IIE","Deposits",null,"Long Positions - After - Equity Derivatives on Type 1 Equities",null,null,null,null,null,null,null,null,{"$f":"'Schedule IIE'!F50","v":0}]
["Sch IIE","Deposits",null,"Long Positions - After - Strategic Holdings - Unlisted",null,null,null,null,null,null,null,null,{"$f":"'Schedule IIE'!F51","v":0}]
["Sch IIE","Deposits",null,"Long Positions - After - Other Equities",null,null,null,null,null,null,null,null,{"$f":"'Schedule IIE'!F52","v":0}]
["Sch IIE","Deposits",null,"Long Positions - After - Letters of Credit",null,null,null,null,null,null,null,null,{"$f":"'Schedule IIE'!F53","v":0}]
["Sch IIE","Deposits",null,"Long Positions - After - Intangible assets",null,null,null,null,null,null,null,null,{"$f":"'Schedule IIE'!F54","v":0}]
["Sch IIE","Deposits",null,"Long Positions - After - Pension Benefit Surplus",null,null,null,null,null,null,null,null,{"$f":"'Schedule IIE'!F55","v":0}]
["Sch IIE","Deposits",null,"Long Positions - After - Equity Derivatives on Type 2 Equities",null,null,null,null,null,null,null,null,{"$f":"'Schedule IIE'!F56","v":0}]
["Sch IIE","Deposits",null,"Long Positions - After - Infrastructure",null,null,null,null,null,null,null,null,{"$f":"'Schedule IIE'!F57","v":0}]
["Sch IIE","Deposits",null,"Long Positions - After - Derivatives on Infrastructure",null,null,null,null,null,null,null,null,{"$f":"'Schedule IIE'!F58","v":0}]
["Sch IIE","Deposits",null,"Long Positions - After - Equity Real Estate 1",null,null,null,null,null,null,null,null,{"$f":"'Schedule IIE'!F59","v":0}]
["Sch IIE","Deposits",null,"Long Positions - After - Equity Real Estate 2",null,null,null,null,null,null,null,null,{"$f":"'Schedule IIE'!F60","v":0}]
["Sch IIE","Deposits",null,"Short - Before - Qualified Assets - Strategic Holdings - Listed",null,null,null,null,null,null,null,null,{"$f":"'Schedule IIE'!H39","v":0}]
["Sch IIE","Deposits",null,"Short - Before - Qualified Assets - Duration Based",null,null,null,null,null,null,null,null,{"$f":"'Schedule IIE'!H40","v":0}]
["Sch IIE","Deposits",null,"Short - Before - Qualified Assets - Listed Equity Securities in Developed Markets",null,null,null,null,null,null,null,null,{"$f":"'Schedule IIE'!H41","v":0}]
["Sch IIE","Deposits",null,"Short - Before - Qualified Assets - Preferred Stocks, BSCR Rating 1",null,null,null,null,null,null,null,null,{"$f":"'Schedule IIE'!H42","v":0}]
["Sch IIE","Deposits",null,"Short - Before - Qualified Assets - Preferred Stocks, BSCR Rating 2",null,null,null,null,null,null,null,null,{"$f":"'Schedule IIE'!H43","v":0}]
["Sch IIE","Deposits",null,"Short - Before - Qualified Assets - Preferred Stocks, BSCR Rating 3",null,null,null,null,null,null,null,null,{"$f":"'Schedule IIE'!H44","v":0}]
["Sch IIE","Deposits",null,"Short - Before - Qualified Assets - Preferred Stocks, BSCR Rating 4",null,null,null,null,null,null,null,null,{"$f":"'Schedule IIE'!H45","v":0}]
["Sch IIE","Deposits",null,"Short - Before - Qualified Assets - Preferred Stocks, BSCR Rating 5",null,null,null,null,null,null,null,null,{"$f":"'Schedule IIE'!H46","v":0}]
["Sch IIE","Deposits",null,"Short - Before - Qualified Assets - Preferred Stocks, BSCR Rating 6",null,null,null,null,null,null,null,null,{"$f":"'Schedule IIE'!H47","v":0}]
["Sch IIE","Deposits",null,"Short - Before - Qualified Assets - Other Equities",null,null,null,null,null,null,null,null,{"$f":"'Schedule IIE'!H52","v":0}]
["Sch IIE","Deposits",null,"Short - Before - Qualified Assets - Infrastructure",null,null,null,null,null,null,null,null,{"$f":"'Schedule IIE'!H57","v":0}]
["Sch IIE","Deposits",null,"Short - After - Qualified Assets - Preferred Stocks, BSCR Rating 3",null,null,null,null,null,null,null,null,{"$f":"'Schedule IIE'!J44","v":0}]
["Sch IIE","Deposits",null,"Short - After - Qualified Assets - Equity Derivatives on Type 1 Equities",null,null,null,null,null,null,null,null,{"$f":"'Schedule IIE'!J50","v":0}]
["Sch IIE","Deposits",null,"Short - Before - UnQualified Assets - Strategic Holdings - Listed",null,null,null,null,null,null,null,null,{"$f":"'Schedule IIE'!L39","v":0}]
["Sch IIE","Deposits",null,"Short - Before - UnQualified Assets - Preferred Stocks, BSCR Rating 7",null,null,null,null,null,null,null,null,{"$f":"'Schedule IIE'!L48","v":0}]
["Sch IIE","Deposits",null,"Short - Before - UnQualified Assets - Strategic Holdings - Unlisted",null,null,null,null,null,null,null,null,{"$f":"'Schedule IIE'!L51","v":0}]
["Sch IIE","Deposits",null,"Short - Before - UnQualified Assets - Infrastructure",null,null,null,null,null,null,null,null,{"$f":"'Schedule IIE'!L57","v":0}]
["Sch IIE","Deposits",null,"Short - After - UnQualified Assets - Preferred Stocks, BSCR Rating 3",null,null,null,null,null,null,null,null,{"$f":"'Schedule IIE'!N44","v":0}]
["Sch IIE","Deposits",null,"Short - After - UnQualified Assets - Other Equities",null,null,null,null,null,null,null,null,{"$f":"'Schedule IIE'!N52","v":0}]
["Sch IIE","Deposits",null,"Liabilities - Before - W/O Mgmt. Actions - Strategic Holdings - Listed",null,null,null,null,null,null,null,null,{"$f":"'Schedule IIE'!P39","v":0}]
["Sch IIE","Deposits",null,"Liabilities - Before - W/O Mgmt. Actions - Preferred Stocks, BSCR Rating 7",null,null,null,null,null,null,null,null,{"$f":"'Schedule IIE'!P48","v":0}]
["Sch IIE","Deposits",null,"Liabilities - Before - W/O Mgmt. Actions - Letters of Credit",null,null,null,null,null,null,null,null,{"$f":"'Schedule IIE'!P53","v":0}]
["Sch IIE","Deposits",null,"Liabilities - After - W/O Mgmt. Actions - Preferred Stocks, BSCR Rating 2",null,null,null,null,null,null,null,null,{"$f":"'Schedule IIE'!R43","v":0}]
["Sch IIE","Deposits",null,"Liabilities - After - W/O Mgmt. Actions - Other Equities",null,null,null,null,null,null,null,null,{"$f":"'Schedule IIE'!R52","v":0}]
["Sch IIE","Deposits",null,"Liabilities - After - W/O Mgmt. Actions - Intangible assets",null,null,null,null,null,null,null,null,{"$f":"'Schedule IIE'!R54","v":0}]
["Sch IIE","Deposits",null,"Liabilities - After - With Mgmt. Actions - Strategic Holdings - Listed",null,null,null,null,null,null,null,null,{"$f":"'Schedule IIE'!T39","v":0}]
["Sch IIE","Deposits",null,"Liabilities - After - With Mgmt. Actions - Preferred Stocks, BSCR Rating 7",null,null,null,null,null,null,null,null,{"$f":"'Schedule IIE'!T48","v":0}]
["Sch IIE","Deposits",null,"Liabilities - After - With Mgmt. Actions - Pension Benefit Surplus",null,null,null,null,null,null,null,null,{"$f":"'Schedule IIE'!T55","v":0}]
["Sch IIE","Deposits",null,"Credit Derivatives - Up - Before - Long-Rating 4",null,null,null,null,null,null,null,null,{"$f":"'Schedule IIE'!D72","v":0}]
["Sch IIE","Deposits",null,"Credit Derivatives - Up - After - Long- Rating 4",null,null,null,null,null,null,null,null,{"$f":"'Schedule IIE'!F72","v":0}]
["Sch IIE","Deposits",null,"Credit Derivatives - Up - Before - Short- Rating 3",null,null,null,null,null,null,null,null,{"$f":"'Schedule IIE'!H71","v":0}]
["Sch IIE","Deposits",null,"Credit Derivatives - Up - After - Short- Rating 3",null,null,null,null,null,null,null,null,{"$f":"'Schedule IIE'!J71","v":0}]
["Sch IIE","Deposits",null,"Credit Derivatives - Up - After - Short- Rating 4",null,null,null,null,null,null,null,null,{"$f":"'Schedule IIE'!J72","v":0}]
["Sch IIE","Deposits",null,"Credit Derivatives - Down - Before - Long-Rating 8",null,null,null,null,null,null,null,null,{"$f":"'Schedule IIE'!N76","v":0}]
["Sch IIE","Deposits",null,"Credit Derivatives - Down - After - Long- Rating 3",null,null,null,null,null,null,null,null,{"$f":"'Schedule IIE'!P71","v":0}]
["Sch IIE","Deposits",null,"Credit Derivatives - Down - Before - Short- Rating 3",null,null,null,null,null,null,null,null,{"$f":"'Schedule IIE'!R71","v":0}]
["Sch IIE","Deposits",null,"Credit Derivatives - Down - After - Short- Rating 4",null,null,null,null,null,null,null,null,{"$f":"'Schedule IIE'!T72","v":0}]
["Sch IIE","Deposits",null,"Counterparty Default Risk - MV of Derivatives - MV Positive - Rating 2",null,null,null,null,null,null,null,null,{"$f":"'Schedule IIE'!D86","v":0}]
["Sch IIE","Deposits",null,"Counterparty Default Risk - MV of Derivatives - MV Negative - Rating 2",null,null,null,null,null,null,null,null,{"$f":"'Schedule IIE'!F86","v":0}]
["Sch IIE","Deposits",null,"Counterparty Default Risk - MV of Collateral - Rating 2",null,null,null,null,null,null,null,null,{"$f":"'Schedule IIE'!H86","v":0}]
["Sch IIE","Deposits",null,"Cash and Cash Equivalents",null,null,null,null,null,null,null,null,{"$f":"'Schedule IIE'!D95","v":0}]
["Sch IIE","Deposits",null,"NAIC Rating Corp & Sov. Bond - Class 2",null,null,null,null,null,null,null,null,{"$f":"'Schedule IIE'!D102","v":0}]
["Sch IIE","Deposits",null,"NAIC Rating Resid. MBS - Class 4",null,null,null,null,null,null,null,null,{"$f":"'Schedule IIE'!F104","v":0}]
["Sch IIE","Deposits",null,"NAIC Rating Bond Mutual - Class 2",null,null,null,null,null,null,null,null,{"$f":"'Schedule IIE'!J102","v":0}]
["Sch IIE","Deposits",null,"NAIC Rating Bond Mutual - Total",null,null,null,null,null,null,null,null,{"$f":"'Schedule IIE'!J107","v":0}]
["Sch IIE","Deposits",null,"NAIC Rating Pref. Stock - Class 2",null,null,null,null,null,null,null,null,{"$f":"'Schedule IIE'!N102","v":0}]
["Sch IIE","Deposits",null,"NAIC Rating Other Assets - Class 1",null,null,null,null,null,null,null,null,{"$f":"'Schedule IIE'!P101","v":0}]
["Sch IIF","Other Sundry",null,"Corp. Bonds - BSCR Rate 3",null,null,null,null,null,null,null,null,{"$f":"'Schedule IIF'!D16","v":0},null,{"$f":"'Schedule IIF'!F16","v":0}]
["Sch IIF","Other Sundry",null,"Corp. Bonds - BSCR Rate 4",null,null,null,null,null,null,null,null,{"$f":"'Schedule IIF'!D17","v":0},null,{"$f":"'Schedule IIF'!F17","v":0}]
["Sch IIF","Other Sundry",null,"Residential MBS - BSCR Rate 7",null,null,null,null,null,null,null,null,{"$f":"'Schedule IIF'!H20","v":0},null,{"$f":"'Schedule IIF'!J20","v":0}]
["Sch IIF","Other Sundry",null,"Commercial MBS - BSCR Rate 5",null,null,null,null,null,null,null,null,{"$f":"'Schedule IIF'!L18","v":0},null,{"$f":"'Schedule IIF'!N18","v":0}]
["Sch IIF","Other Sundry",null,"Bonds Mutual Fund - BSCR Rate 5",null,null,null,null,null,null,null,null,{"$f":"'Schedule IIF'!P18","v":0},null,{"$f":"'Schedule IIF'!R18","v":0}]
["Sch IIF","Other Sundry",null,"Long Positions - Before - Strategic Holdings - Listed",null,null,null,null,null,null,null,null,{"$f":"'Schedule IIF'!D39","v":0}]
["Sch IIF","Other Sundry",null,"Long Positions - Before - Preferred Stocks, BSCR Rating 7",null,null,null,null,null,null,null,null,{"$f":"'Schedule IIF'!D48","v":0}]
["Sch IIF","Other Sundry",null,"Long Positions - Before - Infrastructure",null,null,null,null,null,null,null,null,{"$f":"'Schedule IIF'!D57","v":0}]
["Sch IIF","Other Sundry",null,"Long Positions - After - Duration Based",null,null,null,null,null,null,null,null,{"$f":"'Schedule IIF'!F40","v":0}]
["Sch IIF","Other Sundry",null,"Long Positions - After - Preferred Stocks, BSCR Rating 3",null,null,null,null,null,null,null,null,{"$f":"'Schedule IIF'!F44","v":0}]
["Sch IIF","Other Sundry",null,"Long Positions - After - Letters of Credit",null,null,null,null,null,null,null,null,{"$f":"'Schedule IIF'!F53","v":0}]
["Sch IIF","Other Sundry",null,"Short - Before - Qualified Assets - Listed Equity Securities in Developed Markets",null,null,null,null,null,null,null,null,{"$f":"'Schedule IIF'!H41","v":0}]
["Sch IIF","Other Sundry",null,"Short - Before - Qualified Assets - Preferred Stocks, BSCR Rating 7",null,null,null,null,null,null,null,null,{"$f":"'Schedule IIF'!H48","v":0}]
["Sch IIF","Other Sundry",null,"Short - Before - Qualified Assets - Infrastructure",null,null,null,null,null,null,null,null,{"$f":"'Schedule IIF'!H57","v":0}]
["Sch IIF","Other Sundry",null,"Short - After - Qualified Assets - Preferred Stocks, BSCR Rating 1",null,null,null,null,null,null,null,null,{"$f":"'Schedule IIF'!J42","v":0}]
["Sch IIF","Other Sundry",null,"Short - After - Qualified Assets - Other Equities",null,null,null,null,null,null,null,null,{"$f":"'Schedule IIF'!J52","v":0}]
["Sch IIF","Other Sundry",null,"Short - Before - UnQualified Assets - Strategic Holdings - Listed",null,null,null,null,null,null,null,null,{"$f":"'Schedule IIF'!L39","v":0}]
["Sch IIF","Other Sundry",null,"Short - Before - UnQualified Assets - Duration Based",null,null,null,null,null,null,null,null,{"$f":"'Schedule IIF'!L40","v":0}]
["Sch IIF","Other Sundry",null,"Short - Before - UnQualified Assets - Preferred Stocks, BSCR Rating 7",null,null,null,null,null,null,null,null,{"$f":"'Schedule IIF'!L48","v":0}]
["Sch IIF","Other Sundry",null,"Short - Before - UnQualified Assets - Infrastructure",null,null,null,null,null,null,null,null,{"$f":"'Schedule IIF'!L57","v":0}]
["Sch IIF","Other Sundry",null,"Short - After - UnQualified Assets - Preferred Stocks, BSCR Rating 3",null,null,null,null,null,null,null,null,{"$f":"'Schedule IIF'!N44","v":0}]
["Sch IIF","Other Sundry",null,"Short - After - UnQualified Assets - Equity Derivatives on Type 1 Equities",null,null,null,null,null,null,null,null,{"$f":"'Schedule IIF'!N50","v":0}]
["Sch IIF","Other Sundry",null,"Liabilities - Before - W/O Mgmt. Actions - Strategic Holdings - Listed",null,null,null,null,null,null,null,null,{"$f":"'Schedule IIF'!P39","v":0}]
["Sch IIF","Other Sundry",null,"Liabilities - Before - W/O Mgmt. Actions - Preferred Stocks, BSCR Rating 7",null,null,null,null,null,null,null,null,{"$f":"'Schedule IIF'!P48","v":0}]
["Sch IIF","Other Sundry",null,"Liabilities - Before - W/O Mgmt. Actions - Strategic Holdings - Unlisted",null,null,null,null,null,null,null,null,{"$f":"'Schedule IIF'!P51","v":0}]
["Sch IIF","Other Sundry",null,"Liabilities - Before - W/O Mgmt. Actions - Infrastructure",null,null,null,null,null,null,null,null,{"$f":"'Schedule IIF'!P57","v":0}]
["Sch IIF","Other Sundry",null,"Liabilities - After - W/O Mgmt. Actions - Preferred Stocks, BSCR Rating 3",null,null,null,null,null,null,null,null,{"$f":"'Schedule IIF'!R44","v":0}]
["Sch IIF","Other Sundry",null,"Liabilities - After - W/O Mgmt. Actions - Other Equities",null,null,null,null,null,null,null,null,{"$f":"'Schedule IIF'!R52","v":0}]
["Sch IIF","Other Sundry",null,"Liabilities - After - With Mgmt. Actions - Strategic Holdings - Listed",null,null,null,null,null,null,null,null,{"$f":"'Schedule IIF'!T39","v":0}]
["Sch IIF","Other Sundry",null,"Liabilities - After - With Mgmt. Actions - Preferred Stocks, BSCR Rating 7",null,null,null,null,null,null,null,null,{"$f":"'Schedule IIF'!T48","v":0}]
["Sch IIF","Other Sundry",null,"Liabilities - After - With Mgmt. Actions - Letters of Credit",null,null,null,null,null,null,null,null,{"$f":"'Schedule IIF'!T53","v":0}]
["Sch IIF","Other Sundry",null,"Credit Derivatives - Up - Before - Long-Rating 4",null,null,null,null,null,null,null,null,{"$f":"'Schedule IIF'!D72","v":0}]
["Sch IIF","Other Sundry",null,"Credit Derivatives - Up - After - Long- Rating 4",null,null,null,null,null,null,null,null,{"$f":"'Schedule IIF'!F72","v":0}]
["Sch IIF","Other Sundry",null,"Credit Derivatives - Up - Before - Short- Rating 1",null,null,null,null,null,null,null,null,{"$f":"'Schedule IIF'!H69","v":0}]
["Sch IIF","Other Sundry",null,"Credit Derivatives - Up - Before - Short- Rating 4",null,null,null,null,null,null,null,null,{"$f":"'Schedule IIF'!H72","v":0}]
["Sch IIF","Other Sundry",null,"Credit Derivatives - Up - After - Short- Rating 4",null,null,null,null,null,null,null,null,{"$f":"'Schedule IIF'!J72","v":0}]
["Sch IIF","Other Sundry",null,"Credit Derivatives - Down - Before - Long-Rating 6",null,null,null,null,null,null,null,null,{"$f":"'Schedule IIF'!N74","v":0}]
["Sch IIF","Other Sundry",null,"Credit Derivatives - Down - After - Long- Rating 3",null,null,null,null,null,null,null,null,{"$f":"'Schedule IIF'!P71","v":0}]
["Sch IIF","Other Sundry",null,"Credit Derivatives - Down - Before - Short- Rating 3",null,null,null,null,null,null,null,null,{"$f":"'Schedule IIF'!R71","v":0}]
["Sch IIF","Other Sundry",null,"Credit Derivatives - Down - After - Short- Rating 2",null,null,null,null,null,null,null,null,{"$f":"'Schedule IIF'!T70","v":0}]
["Sch IIF","Other Sundry",null,"Counterparty Default Risk - MV of Derivatives - MV Positive - Rating 2",null,null,null,null,null,null,null,null,{"$f":"'Schedule IIF'!D86","v":0}]
["Sch IIF","Other Sundry",null,"Counterparty Default Risk - MV of Derivatives - MV Positive - Rating 3",null,null,null,null,null,null,null,null,{"$f":"'Schedule IIF'!D87","v":0}]
["Sch IIF","Other Sundry",null,"Counterparty Default Risk - MV of Derivatives - MV Negative - Rating 7",null,null,null,null,null,null,null,null,{"$f":"'Schedule IIF'!F91","v":0}]
["Sch IIF","Other Sundry",null,"Counterparty Default Risk - MV of Collateral - Rating 2",null,null,null,null,null,null,null,null,{"$f":"'Schedule IIF'!H86","v":0}]
["Sch IIF","Other Sundry",null,"NAIC Rating Corp & Sov. Bond - Class 2",null,null,null,null,null,null,null,null,{"$f":"'Schedule IIF'!D102","v":0}]
["Sch IIF","Other Sundry",null,"NAIC Rating Resid. MBS - Class 5",null,null,null,null,null,null,null,null,{"$f":"'Schedule IIF'!F105","v":0}]
["Sch IIF","Other Sundry",null,"NAIC Rating Comm. MBS - Class 5",null,null,null,null,null,null,null,null,{"$f":"'Schedule IIF'!H105","v":0}]
["Sch IIF","Other Sundry",null,"NAIC Rating Bond Mutual - Total",null,null,null,null,null,null,null,null,{"$f":"'Schedule IIF'!J107","v":0}]
["Sch IIF","Other Sundry",null,"NAIC Rating Pref. Stock - Class 2",null,null,null,null,null,null,null,null,{"$f":"'Schedule IIF'!N102","v":0}]
["Sch IIF","Other Sundry",null,"NAIC Rating Pref. Stock - Class 6",null,null,null,null,null,null,null,null,{"$f":"'Schedule IIF'!N106","v":0}]
["Sch IIF","Other Sundry",null,"NAIC Rating Other Assets - Class 4",null,null,null,null,null,null,null,null,{"$f":"'Schedule IIF'!P104","v":0}]
["Sch III","Losses by Line",null,"Res. Gross - Personal Acc. Non Prop.",null,null,null,null,null,null,null,null,{"$f":"'Schedule III'!D14","v":0}]
["Sch III","Losses by Line",null,"Res. Gross - US Professional",null,null,null,null,null,null,null,null,{"$f":"'Schedule III'!D23","v":0}]
["Sch III","Losses by Line",null,"Res. Gross - Retro Property",null,null,null,null,null,null,null,null,{"$f":"'Schedule III'!D31","v":0}]
["Sch III","Losses by Line",null,"Res. Net - Aviation Non-Proportional",null,null,null,null,null,null,null,null,{"$f":"'Schedule III'!F16","v":0}]
["Sch III","Losses by Line",null,"Res. Net - US Casualty Non-Prop.",null,null,null,null,null,null,null,null,{"$f":"'Schedule III'!F22","v":0}]
["Sch III","Losses by Line",null,"Res. Net - Health",null,null,null,null,null,null,null,null,{"$f":"'Schedule III'!F33","v":0}]
["Sch III","Losses by Line",null,"Note 16di - Property Catastrophe",null,null,null,null,null,null,null,null,{"$f":"'Schedule III'!J10","v":0}]
["Sch III","Losses by Line",null,"Note 16di - US Casualty",null,null,null,null,null,null,null,null,{"$f":"'Schedule III'!J21","v":0}]
["Sch III","Losses by Line",null,"Note 16di - Int'l Motor",null,null,null,null,null,null,null,null,{"$f":"'Schedule III'!J27","v":0}]
["Sch III","Losses by Line",null,"Note 16dii - Property Non-Proportion",null,null,null,null,null,null,null,null,{"$f":"'Schedule III'!K12","v":0}]
["Sch III","Losses by Line",null,"Note 16dii - Energy Non-Proportional",null,null,null,null,null,null,null,null,{"$f":"'Schedule III'!K20","v":0}]
["Sch III","Losses by Line",null,"Note 16dii - Int'l Casualty",null,null,null,null,null,null,null,null,{"$f":"'Schedule III'!K29","v":0}]
["Sch III","Losses by Line",null,"Note 17d - Personal Acc. Non Prop.",null,null,null,null,null,null,null,null,{"$f":"'Schedule III'!L14","v":0}]
["Sch III","Losses by Line",null,"Note 17d - Energy",null,null,null,null,null,null,null,null,{"$f":"'Schedule III'!L19","v":0}]
["Sch III","Losses by Line",null,"Note 17d - US Professional",null,null,null,null,null,null,null,null,{"$f":"'Schedule III'!L23","v":0}]
["Sch III","Losses by Line",null,"Note 17d - Structured / Finite R/I",null,null,null,null,null,null,null,null,{"$f":"'Schedule III'!L32","v":0}]
["Sch IIIA","Losses by Zone",null,"Res. Zn 1 - Personal Acc. Non Prop.",null,null,null,null,null,null,null,null,{"$f":"'Schedule IIIA'!E14","v":0}]
["Sch IIIA","Losses by Zone",null,"Res. Zn 1 - US Professional Non-Prop.",null,null,null,null,null,null,null,null,{"$f":"'Schedule IIIA'!E24","v":0}]
["Sch IIIA","Losses by Zone",null,"Res. Zn 1 - Health",null,null,null,null,null,null,null,null,{"$f":"'Schedule IIIA'!E33","v":0}]
["Sch IIIA","Losses by Zone",null,"Res. Zn 2 - Property Non-Proportion",null,null,null,null,null,null,null,null,{"$f":"'Schedule IIIA'!F12","v":0}]
["Sch IIIA","Losses by Zone",null,"Res. Zn 2 - US Specialty",null,null,null,null,null,null,null,null,{"$f":"'Schedule IIIA'!F25","v":0}]
["Sch IIIA","Losses by Zone",null,"Res. Zn 2 - Total",null,null,null,null,null,null,null,null,{"$f":"'Schedule IIIA'!F34","v":0}]
["Sch IIIA","Losses by Zone",null,"Res. Zn 3 - Property Catastrophe",null,null,null,null,null,null,null,null,{"$f":"'Schedule IIIA'!G10","v":0}]
["Sch IIIA","Losses by Zone",null,"Res. Zn 3 - Credit Surety Non-Prop.",null,null,null,null,null,null,null,null,{"$f":"'Schedule IIIA'!G18","v":0}]
["Sch IIIA","Losses by Zone",null,"Res. Zn 3 - Int'l Motor",null,null,null,null,null,null,null,null,{"$f":"'Schedule IIIA'!G27","v":0}]
["Sch IIIA","Losses by Zone",null,"Res. Zn 4 - Property",null,null,null,null,null,null,null,null,{"$f":"'Schedule IIIA'!H11","v":0}]
["Sch IIIA","Losses by Zone",null,"Res. Zn 4 - Credit Surety",null,null,null,null,null,null,null,null,{"$f":"'Schedule IIIA'!H17","v":0}]
["Sch IIIA","Losses by Zone",null,"Res. Zn 4 - Int'l Motor Non-Prop.",null,null,null,null,null,null,null,null,{"$f":"'Schedule IIIA'!H28","v":0}]
["Sch IIIA","Losses by Zone",null,"Res. Zn 5 - Property Non-Proportion",null,null,null,null,null,null,null,null,{"$f":"'Schedule IIIA'!I12","v":0}]
["Sch IIIA","Losses by Zone",null,"Res. Zn 5 - Energy",null,null,null,null,null,null,null,null,{"$f":"'Schedule IIIA'!I19","v":0}]
["Sch IIIA","Losses by Zone",null,"Res. Zn 5 - US Casualty",null,null,null,null,null,null,null,null,{"$f":"'Schedule IIIA'!I21","v":0}]
["Sch IIIA","Losses by Zone",null,"Res. Zn 5 - Int'l Casualty Non-Prop.",null,null,null,null,null,null,null,null,{"$f":"'Schedule IIIA'!I30","v":0}]
["Sch IIIA","Losses by Zone",null,"Res. Zn 6 - Credit Surety",null,null,null,null,null,null,null,null,{"$f":"'Schedule IIIA'!J17","v":0}]
["Sch IIIA","Losses by Zone",null,"Res. Zn 6 - US Casualty Non-Prop.",null,null,null,null,null,null,null,null,{"$f":"'Schedule IIIA'!J22","v":0}]
["Sch IIIA","Losses by Zone",null,"Res. Zn 6 - Retro Property",null,null,null,null,null,null,null,null,{"$f":"'Schedule IIIA'!J31","v":0}]
["Sch IIIA","Losses by Zone",null,"Res. Zn 7 - Aviation",null,null,null,null,null,null,null,null,{"$f":"'Schedule IIIA'!K15","v":0}]
["Sch IIIA","Losses by Zone",null,"Res. Zn 7 - US Professional",null,null,null,null,null,null,null,null,{"$f":"'Schedule IIIA'!K23","v":0}]
["Sch IIIA","Losses by Zone",null,"Res. Zn 7 - Structured / Finite R/I",null,null,null,null,null,null,null,null,{"$f":"'Schedule IIIA'!K32","v":0}]
["Sch IIIA","Losses by Zone",null,"Res. Zn 8 - Personal Accident",null,null,null,null,null,null,null,null,{"$f":"'Schedule IIIA'!L13","v":0}]
["Sch IIIA","Losses by Zone",null,"Res. Zn 8 - Aviation Non-Proportional",null,null,null,null,null,null,null,null,{"$f":"'Schedule IIIA'!L16","v":0}]
["Sch IIIA","Losses by Zone",null,"Res. Zn 8 - US Specialty",null,null,null,null,null,null,null,null,{"$f":"'Schedule IIIA'!L25","v":0}]
["Sch IIIA","Losses by Zone",null,"Res. Zn 9 - Property",null,null,null,null,null,null,null,null,{"$f":"'Schedule IIIA'!M11","v":0}]
["Sch IIIA","Losses by Zone",null,"Res. Zn 9 - Credit Surety",null,null,null,null,null,null,null,null,{"$f":"'Schedule IIIA'!M17","v":0}]
["Sch IIIA","Losses by Zone",null,"Res. Zn 9 - US Specialty Non-Prop.",null,null,null,null,null,null,null,null,{"$f":"'Schedule IIIA'!M26","v":0}]
["Sch IIIA","Losses by Zone",null,"Res. Zn 9 - Total",null,null,null,null,null,null,null,null,{"$f":"'Schedule IIIA'!M34","v":0}]
["Sch IIIA","Losses by Zone",null,"Res. Zn 10 - Credit Surety Non-Prop.",null,null,null,null,null,null,null,null,{"$f":"'Schedule IIIA'!N18","v":0}]
["Sch IIIA","Losses by Zone",null,"Res. Zn 10 - Energy",null,null,null,null,null,null,null,null,{"$f":"'Schedule IIIA'!N19","v":0}]
["Sch IIIA","Losses by Zone",null,"Res. Zn 10 - Structured / Finite R/I",null,null,null,null,null,null,null,null,{"$f":"'Schedule IIIA'!N32","v":0}]
["Sch IIIA","Losses by Zone",null,"Res. Zn 11 - Property",null,null,null,null,null,null,null,null,{"$f":"'Schedule IIIA'!O11","v":0}]
["Sch IIIA","Losses by Zone",null,"Res. Zn 11 - Energy Non-Proportional",null,null,null,null,null,null,null,null,{"$f":"'Schedule IIIA'!O20","v":0}]
["Sch IIIA","Losses by Zone",null,"Res. Zn 11 - Int'l Motor",null,null,null,null,null,null,null,null,{"$f":"'Schedule IIIA'!O27","v":0}]
["Sch IIIA","Losses by Zone",null,"Res. Zn 12 - Property Non-Proportion",null,null,null,null,null,null,null,null,{"$f":"'Schedule IIIA'!P12","v":0}]
["Sch IIIA","Losses by Zone",null,"Res. Zn 12 - US Casualty",null,null,null,null,null,null,null,null,{"$f":"'Schedule IIIA'!P21","v":0}]
["Sch IIIA","Losses by Zone",null,"Res. Zn 12 - Int'l Casualty Non-Prop.",null,null,null,null,null,null,null,null,{"$f":"'Schedule IIIA'!P30","v":0}]
["Sch IIIA","Losses by Zone",null,"Res. Zn 12 - Total",null,null,null,null,null,null,null,null,{"$f":"'Schedule IIIA'!P34","v":0}]
["Sch IIIA","Losses by Zone",null,"Res. Zn 13 - Personal Acc. Non Prop.",null,null,null,null,null,null,null,null,{"$f":"'Schedule IIIA'!Q14","v":0}]
["Sch IIIA","Losses by Zone",null,"Res. Zn 13 - US Professional",null,null,null,null,null,null,null,null,{"$f":"'Schedule IIIA'!Q23","v":0}]
["Sch IIIA","Losses by Zone",null,"Res. Zn 13 - Structured / Finite R/I",null,null,null,null,null,null,null,null,{"$f":"'Schedule IIIA'!Q32","v":0}]
["Sch IIIA","Losses by Zone",null,"Res. Zn 14 - Aviation",null,null,null,null,null,null,null,null,{"$f":"'Schedule IIIA'!R15","v":0}]
["Sch IIIA","Losses by Zone",null,"Res. Zn 14 - US Professional Non-Prop.",null,null,null,null,null,null,null,null,{"$f":"'Schedule IIIA'!R24","v":0}]
["Sch IIIA","Losses by Zone",null,"Res. Zn 14 - Int'l Casualty Non-Prop.",null,null,null,null,null,null,null,null,{"$f":"'Schedule IIIA'!R30","v":0}]
["Sch IIIA","Losses by Zone",null,"Res. Zn 15 - Aviation Non-Proportional",null,null,null,null,null,null,null,null,{"$f":"'Schedule IIIA'!S16","v":0}]
["Sch IIIA","Losses by Zone",null,"Res. Zn 15 - Credit Surety",null,null,null,null,null,null,null,null,{"$f":"'Schedule IIIA'!S17","v":0}]
["Sch IIIA","Losses by Zone",null,"Res. Zn 15 - US Specialty",null,null,null,null,null,null,null,null,{"$f":"'Schedule IIIA'!S25","v":0}]
["Sch IIIA","Losses by Zone",null,"Res. Zn 15 - Total",null,null,null,null,null,null,null,null,{"$f":"'Schedule IIIA'!S34","v":0}]
["Sch IIIA","Losses by Zone",null,"Res. Zn 16 - Credit Surety Non-Prop.",null,null,null,null,null,null,null,null,{"$f":"'Schedule IIIA'!T18","v":0}]
["Sch IIIA","Losses by Zone",null,"Res. Zn 16 - US Professional",null,null,null,null,null,null,null,null,{"$f":"'Schedule IIIA'!T23","v":0}]
["Sch IIIA","Losses by Zone",null,"Res. Zn 17 - Property Catastrophe",null,null,null,null,null,null,null,null,{"$f":"'Schedule IIIA'!U10","v":0}]
["Sch IIIA","Losses by Zone",null,"Res. Zn 17 - Energy",null,null,null,null,null,null,null,null,{"$f":"'Schedule IIIA'!U19","v":0}]
["Sch IIIA","Losses by Zone",null,"Res. Zn 17 - US Casualty",null,null,null,null,null,null,null,null,{"$f":"'Schedule IIIA'!U21","v":0}]
["Sch IIIA","Losses by Zone",null,"Res. Zn 17 - Int'l Motor Non-Prop.",null,null,null,null,null,null,null,null,{"$f":"'Schedule IIIA'!U28","v":0}]
["Sch IIIA","Losses by Zone",null,"Res. Zn 18 - Property Non-Proportion",null,null,null,null,null,null,null,null,{"$f":"'Schedule IIIA'!V12","v":0}]
["Sch IIIA","Losses by Zone",null,"Res. Zn 18 - Energy",null,null,null,null,null,null,null,null,{"$f":"'Schedule IIIA'!V19","v":0}]
["Sch IIIA","Losses by Zone",null,"Res. Zn 18 - Int'l Casualty",null,null,null,null,null,null,null,null,{"$f":"'Schedule IIIA'!V29","v":0}]
["Sch IIIA","Losses by Zone",null,"Res. Total - Personal Accident",null,null,null,null,null,null,null,null,{"$f":"'Schedule IIIA'!X13","v":0}]
["Sch IIIA","Losses by Zone",null,"Res. Total - Credit Surety",null,null,null,null,null,null,null,null,{"$f":"'Schedule IIIA'!X17","v":0}]
["Sch IIIA","Losses by Zone",null,"Res. Total - Int'l Casualty Non-Prop.",null,null,null,null,null,null,null,null,{"$f":"'Schedule IIIA'!X30","v":0}]
["Sch IV","Premium by Line",null,"Unrelated - Personal Accident",{"$f":"'Schedule IV (Unconsolidated)'!E14","v":0},null,{"$f":"'Schedule IV (Unconsolidated)'!G14","v":0},null,null,null,null,null,{"$f":"'Schedule IVA'!E14","v":0},null,{"$f":"'Schedule IVA'!G14","v":0}]
["Sch IV","Premium by Line",null,"Unrelated - Personal Acc. Non Prop.",{"$f":"'Schedule IV (Unconsolidated)'!E15","v":0},null,{"$f":"'Schedule IV (Unconsolidated)'!G15","v":0},null,null,null,null,null,{"$f":"'Schedule IVA'!E15","v":0},null,{"$f":"'Schedule IVA'!G15","v":0}]
["Sch IV","Premium by Line",null,"Unrelated - US Casualty Non-Prop.",{"$f":"'Schedule IV (Unconsolidated)'!E23","v":0},null,{"$f":"'Schedule IV (Unconsolidated)'!G23","v":0},null,null,null,null,null,{"$f":"'Schedule IVA'!E23","v":0},null,{"$f":"'Schedule IVA'!G23","v":0}]
["Sch IV","Premium by Line",null,"Unrelated - Retro Property",{"$f":"'Schedule IV (Unconsolidated)'!E32","v":0},null,{"$f":"'Schedule IV (Unconsolidated)'!G32","v":0},null,null,null,null,null,{"$f":"'Schedule IVA'!E32","v":0},null,{"$f":"'Schedule IVA'!G32","v":0}]
["Sch IV","Premium by Line",null,"Related - Aviation Non-Proportional",{"$f":"'Schedule IV (Unconsolidated)'!I17","v":0},null,{"$f":"'Schedule IV (Unconsolidated)'!K17","v":0},null,null,null,null,null,{"$f":"'Schedule IVA'!I17","v":0},null,{"$f":"'Schedule IVA'!K17","v":0}]
["Sch IV","Premium by Line",null,"Related - US Specialty Non-Prop.",{"$f":"'Schedule IV (Unconsolidated)'!I27","v":0},null,{"$f":"'Schedule IV (Unconsolidated)'!K27","v":0},null,null,null,null,null,{"$f":"'Schedule IVA'!I27","v":0},null,{"$f":"'Schedule IVA'!K27","v":0}]
["Sch IV","Premium by Line",null,"Related - Health",{"$f":"'Schedule IV (Unconsolidated)'!I34","v":0},null,{"$f":"'Schedule IV (Unconsolidated)'!K34","v":0},null,null,null,null,null,{"$f":"'Schedule IVA'!I34","v":0},null,{"$f":"'Schedule IVA'!K34","v":0}]
["Sch IV","Premium by Line",null,"NPW - Credit Surety Non-Prop.",{"$f":"'Schedule IV (Unconsolidated)'!Q19","v":0},null,{"$f":"'Schedule IV (Unconsolidated)'!S19","v":0},null,null,null,null,null,{"$f":"'Schedule IVA'!Q19","v":0},null,{"$f":"'Schedule IVA'!S19","v":0}]
["Sch IV","Premium by Line",null,"NPW - US Specialty",{"$f":"'Schedule IV (Unconsolidated)'!Q26","v":0},null,{"$f":"'Schedule IV (Unconsolidated)'!S26","v":0},null,null,null,null,null,{"$f":"'Schedule IVA'!Q26","v":0},null,{"$f":"'Schedule IVA'!S26","v":0}]
["Sch IV","Premium by Line",null,"NPW - Int'l Motor",{"$f":"'Schedule IV (Unconsolidated)'!Q28","v":0},null,{"$f":"'Schedule IV (Unconsolidated)'!S28","v":0},null,null,null,null,null,{"$f":"'Schedule IVA'!Q28","v":0},null,{"$f":"'Schedule IVA'!S28","v":0}]
["Sch IVC","Premium by Zone",null,"NPW Zn 1 - Property Catastrophe",null,null,null,null,null,null,null,null,{"$f":"'Schedule IVC'!E9","v":0}]
["Sch IVC","Premium by Zone",null,"NPW Zn 1 - US Casualty Non-Prop.",null,null,null,null,null,null,null,null,{"$f":"'Schedule IVC'!E21","v":0}]
["Sch IVC","Premium by Zone",null,"NPW Zn 1 - Int'l Motor",null,null,null,null,null,null,null,null,{"$f":"'Schedule IVC'!E26","v":0}]
["Sch IVC","Premium by Zone",null,"NPW Zn 2 - Property",null,null,null,null,null,null,null,null,{"$f":"'Schedule IVC'!F10","v":0}]
["Sch IVC","Premium by Zone",null,"NPW Zn 2 - Energy Non-Proportional",null,null,null,null,null,null,null,null,{"$f":"'Schedule IVC'!F19","v":0}]
["Sch IVC","Premium by Zone",null,"NPW Zn 2 - Int'l Motor Non-Prop.",null,null,null,null,null,null,null,null,{"$f":"'Schedule IVC'!F27","v":0}]
["Sch IVC","Premium by Zone",null,"NPW Zn 3 - Property Non-Proportion",null,null,null,null,null,null,null,null,{"$f":"'Schedule IVC'!G11","v":0}]
["Sch IVC","Premium by Zone",null,"NPW Zn 3 - Credit Surety Non-Prop.",null,null,null,null,null,null,null,null,{"$f":"'Schedule IVC'!G17","v":0}]
["Sch IVC","Premium by Zone",null,"NPW Zn 3 - US Casualty",null,null,null,null,null,null,null,null,{"$f":"'Schedule IVC'!G20","v":0}]
["Sch IVC","Premium by Zone",null,"NPW Zn 3 - Int'l Casualty Non-Prop.",null,null,null,null,null,null,null,null,{"$f":"'Schedule IVC'!G29","v":0}]
["Sch IVC","Premium by Zone",null,"NPW Zn 4 - Personal Accident",null,null,null,null,null,null,null,null,{"$f":"'Schedule IVC'!H12","v":0}]
["Sch IVC","Premium by Zone",null,"NPW Zn 4 - US Casualty Non-Prop.",null,null,null,null,null,null,null,null,{"$f":"'Schedule IVC'!H21","v":0}]
["Sch IVC","Premium by Zone",null,"NPW Zn 4 - Retro Property",null,null,null,null,null,null,null,null,{"$f":"'Schedule IVC'!H30","v":0}]
["Sch IVC","Premium by Zone",null,"NPW Zn 5 - Property",null,null,null,null,null,null,null,null,{"$f":"'Schedule IVC'!I10","v":0}]
["Sch IVC","Premium by Zone",null,"NPW Zn 5 - US Professional",null,null,null,null,null,null,null,null,{"$f":"'Schedule IVC'!I22","v":0}]
["Sch IVC","Premium by Zone",null,"NPW Zn 5 - US Professional Non-Prop.",null,null,null,null,null,null,null,null,{"$f":"'Schedule IVC'!I23","v":0}]
["Sch IVC","Premium by Zone",null,"NPW Zn 5 - Total",null,null,null,null,null,null,null,null,{"$f":"'Schedule IVC'!I33","v":0}]
["Sch IVC","Premium by Zone",null,"NPW Zn 6 - Aviation Non-Proportional",null,null,null,null,null,null,null,null,{"$f":"'Schedule IVC'!J15","v":0}]
["Sch IVC","Premium by Zone",null,"NPW Zn 6 - US Specialty",null,null,null,null,null,null,null,null,{"$f":"'Schedule IVC'!J24","v":0}]
["Sch IVC","Premium by Zone",null,"NPW Zn 6 - Structured / Finite R/I",null,null,null,null,null,null,null,null,{"$f":"'Schedule IVC'!J31","v":0}]
["Sch IVC","Premium by Zone",null,"NPW Zn 7 - Credit Surety",null,null,null,null,null,null,null,null,{"$f":"'Schedule IVC'!K16","v":0}]
["Sch IVC","Premium by Zone",null,"NPW Zn 7 - US Specialty Non-Prop.",null,null,null,null,null,null,null,null,{"$f":"'Schedule IVC'!K25","v":0}]
["Sch IVC","Premium by Zone",null,"NPW Zn 8 - Property Catastrophe",null,null,null,null,null,null,null,null,{"$f":"'Schedule IVC'!L9","v":0}]
["Sch IVC","Premium by Zone",null,"NPW Zn 8 - Property",null,null,null,null,null,null,null,null,{"$f":"'Schedule IVC'!L10","v":0}]
["Sch IVC","Premium by Zone",null,"NPW Zn 8 - Energy",null,null,null,null,null,null,null,null,{"$f":"'Schedule IVC'!L18","v":0}]
["Sch IVC","Premium by Zone",null,"NPW Zn 8 - Int'l Motor Non-Prop.",null,null,null,null,null,null,null,null,{"$f":"'Schedule IVC'!L27","v":0}]
["Sch IVC","Premium by Zone",null,"NPW Zn 8 - Total",null,null,null,null,null,null,null,null,{"$f":"'Schedule IVC'!L33","v":0}]
["Sch IVC","Premium by Zone",null,"NPW Zn 9 - Energy Non-Proportional",null,null,null,null,null,null,null,null,{"$f":"'Schedule IVC'!M19","v":0}]
["Sch IVC","Premium by Zone",null,"NPW Zn 9 - Int'l Casualty",null,null,null,null,null,null,null,null,{"$f":"'Schedule IVC'!M28","v":0}]
["Sch IVC","Premium by Zone",null,"NPW Zn 9 - Structured / Finite R/I",null,null,null,null,null,null,null,null,{"$f":"'Schedule IVC'!M31","v":0}]
["Sch IVC","Premium by Zone",null,"NPW Zn 10 - US Casualty",null,null,null,null,null,null,null,null,{"$f":"'Schedule IVC'!N20","v":0}]
["Sch IVC","Premium by Zone",null,"NPW Zn 10 - US Casualty Non-Prop.",null,null,null,null,null,null,null,null,{"$f":"'Schedule IVC'!N21","v":0}]
["Sch IVC","Premium by Zone",null,"NPW Zn 10 - Int'l Casualty Non-Prop.",null,null,null,null,null,null,null,null,{"$f":"'Schedule IVC'!N29","v":0}]
["Sch IVC","Premium by Zone",null,"NPW Zn 11 - Personal Acc. Non Prop.",null,null,null,null,null,null,null,null,{"$f":"'Schedule IVC'!O13","v":0}]
["Sch IVC","Premium by Zone",null,"NPW Zn 11 - US Professional",null,null,null,null,null,null,null,null,{"$f":"'Schedule IVC'!O22","v":0}]
["Sch IVC","Premium by Zone",null,"NPW Zn 11 - Int'l Motor Non-Prop.",null,null,null,null,null,null,null,null,{"$f":"'Schedule IVC'!O27","v":0}]
["Sch IVC","Premium by Zone",null,"NPW Zn 12 - Aviation",null,null,null,null,null,null,null,null,{"$f":"'Schedule IVC'!P14","v":0}]
["Sch IVC","Premium by Zone",null,"NPW Zn 12 - US Professional Non-Prop.",null,null,null,null,null,null,null,null,{"$f":"'Schedule IVC'!P23","v":0}]
["Sch IVC","Premium by Zone",null,"NPW Zn 12 - US Specialty Non-Prop.",null,null,null,null,null,null,null,null,{"$f":"'Schedule IVC'!P25","v":0}]
["Sch IVC","Premium by Zone",null,"NPW Zn 12 - Health",null,null,null,null,null,null,null,null,{"$f":"'Schedule IVC'!P32","v":0}]
["Sch IVC","Premium by Zone",null,"NPW Zn 13 - Credit Surety",null,null,null,null,null,null,null,null,{"$f":"'Schedule IVC'!Q16","v":0}]
["Sch IVC","Premium by Zone",null,"NPW Zn 13 - US Professional Non-Prop.",null,null,null,null,null,null,null,null,{"$f":"'Schedule IVC'!Q23","v":0}]
["Sch IVC","Premium by Zone",null,"NPW Zn 13 - Total",null,null,null,null,null,null,null,null,{"$f":"'Schedule IVC'!Q33","v":0}]
["Sch IVC","Premium by Zone",null,"NPW Zn 14 - Credit Surety Non-Prop.",null,null,null,null,null,null,null,null,{"$f":"'Schedule IVC'!R17","v":0}]
["Sch IVC","Premium by Zone",null,"NPW Zn 14 - US Specialty Non-Prop.",null,null,null,null,null,null,null,null,{"$f":"'Schedule IVC'!R25","v":0}]
["Sch IVC","Premium by Zone",null,"NPW Zn 15 - Property Catastrophe",null,null,null,null,null,null,null,null,{"$f":"'Schedule IVC'!S9","v":0}]
["Sch IVC","Premium by Zone",null,"NPW Zn 15 - Energy",null,null,null,null,null,null,null,null,{"$f":"'Schedule IVC'!S18","v":0}]
["Sch IVC","Premium by Zone",null,"NPW Zn 15 - US Professional Non-Prop.",null,null,null,null,null,null,null,null,{"$f":"'Schedule IVC'!S23","v":0}]
["Sch IVC","Premium by Zone",null,"NPW Zn 15 - Int'l Motor Non-Prop.",null,null,null,null,null,null,null,null,{"$f":"'Schedule IVC'!S27","v":0}]
["Sch IVC","Premium by Zone",null,"NPW Zn 16 - Property Non-Proportion",null,null,null,null,null,null,null,null,{"$f":"'Schedule IVC'!T11","v":0}]
["Sch IVC","Premium by Zone",null,"NPW Zn 16 - US Casualty",null,null,null,null,null,null,null,null,{"$f":"'Schedule IVC'!T20","v":0}]
["Sch IVC","Premium by Zone",null,"NPW Zn 16 - Retro Property",null,null,null,null,null,null,null,null,{"$f":"'Schedule IVC'!T30","v":0}]
["Sch IVC","Premium by Zone",null,"NPW Zn 17 - Personal Accident",null,null,null,null,null,null,null,null,{"$f":"'Schedule IVC'!U12","v":0}]
["Sch IVC","Premium by Zone",null,"NPW Zn 17 - US Casualty Non-Prop.",null,null,null,null,null,null,null,null,{"$f":"'Schedule IVC'!U21","v":0}]
["Sch IVC","Premium by Zone",null,"NPW Zn 17 - Int'l Casualty",null,null,null,null,null,null,null,null,{"$f":"'Schedule IVC'!U28","v":0}]
["Sch IVC","Premium by Zone",null,"NPW Zn 17 - Retro Property",null,null,null,null,null,null,null,null,{"$f":"'Schedule IVC'!U30","v":0}]
["Sch IVC","Premium by Zone",null,"NPW Zn 18 - Aviation",null,null,null,null,null,null,null,null,{"$f":"'Schedule IVC'!V14","v":0}]
["Sch IVC","Premium by Zone",null,"NPW Zn 18 - Int'l Motor",null,null,null,null,null,null,null,null,{"$f":"'Schedule IVC'!V26","v":0}]
["Sch IVC","Premium by Zone",null,"NPW Zn 18 - Structured / Finite R/I",null,null,null,null,null,null,null,null,{"$f":"'Schedule IVC'!V31","v":0}]
["Sch IVD","Exposure by Line",null,"NPE - Est. Next 12 Month - Aviation",null,null,null,null,null,null,null,null,{"$f":"'Schedule IVD'!G14","v":0}]
["Sch IVD","Exposure by Line",null,"NPE - Est. Next 12 Month - US Casualty",null,null,null,null,null,null,null,null,{"$f":"'Schedule IVD'!G20","v":0}]
["Sch IVD","Exposure by Line",null,"NPE - Est. Next 12 Month - Structured / Finite R/I",null,null,null,null,null,null,null,null,{"$f":"'Schedule IVD'!G31","v":0}]
["Sch IVD","Exposure by Line",null,"NPE FP Existing - Aviation Non-Proportional",null,null,null,null,null,null,null,null,{"$f":"'Schedule IVD'!K15","v":0}]
["Sch IVD","Exposure by Line",null,"NPE FP Existing - Energy",null,null,null,null,null,null,null,null,{"$f":"'Schedule IVD'!K18","v":0}]
["Sch IVD","Exposure by Line",null,"NPE FP Existing - US Specialty",null,null,null,null,null,null,null,null,{"$f":"'Schedule IVD'!K24","v":0}]
["Sch IVD","Exposure by Line",null,"NPE FP Existing - Total",null,null,null,null,null,null,null,null,{"$f":"'Schedule IVD'!K33","v":0}]
["Sch IVD","Exposure by Line",null,"NPE FP Future - Credit Surety",null,null,null,null,null,null,null,null,{"$f":"'Schedule IVD'!M16","v":0}]
["Sch IVD","Exposure by Line",null,"NPE FP Future - US Specialty Non-Prop.",null,null,null,null,null,null,null,null,{"$f":"'Schedule IVD'!M25","v":0}]
["Sch IVD","Exposure by Line",null,"Gross Premium Exposure - Property Catastrophe",null,null,null,null,null,null,null,null,{"$f":"'Schedule IVD'!Q9","v":0}]
["Sch IVD","Exposure by Line",null,"Gross Premium Exposure - Aviation",null,null,null,null,null,null,null,null,{"$f":"'Schedule IVD'!Q14","v":0}]
["Sch IVD","Exposure by Line",null,"Gross Premium Exposure - Int'l Motor",null,null,null,null,null,null,null,null,{"$f":"'Schedule IVD'!Q26","v":0}]
["Sch IVD","Exposure by Line",null,"Gross Premium Exposure - Int'l Motor Non-Prop.",null,null,null,null,null,null,null,null,{"$f":"'Schedule IVD'!Q27","v":0}]
["Sch IVE","Net Prem by Zone",null,"NPE Zn 1 - Property Non-Proportion",null,null,null,null,null,null,null,null,{"$f":"'Schedule IVE'!E11","v":0}]
["Sch IVE","Net Prem by Zone",null,"NPE Zn 1 - Energy",null,null,null,null,null,null,null,null,{"$f":"'Schedule IVE'!E18","v":0}]
["Sch IVE","Net Prem by Zone",null,"NPE Zn 1 - Int'l Motor Non-Prop.",null,null,null,null,null,null,null,null,{"$f":"'Schedule IVE'!E27","v":0}]
["Sch IVE","Net Prem by Zone",null,"NPE Zn 2 - Property Catastrophe",null,null,null,null,null,null,null,null,{"$f":"'Schedule IVE'!F9","v":0}]
["Sch IVE","Net Prem by Zone",null,"NPE Zn 2 - Energy Non-Proportional",null,null,null,null,null,null,null,null,{"$f":"'Schedule IVE'!F19","v":0}]
["Sch IVE","Net Prem by Zone",null,"NPE Zn 2 - Int'l Casualty",null,null,null,null,null,null,null,null,{"$f":"'Schedule IVE'!F28","v":0}]
["Sch IVE","Net Prem by Zone",null,"NPE Zn 3 - Personal Accident",null,null,null,null,null,null,null,null,{"$f":"'Schedule IVE'!G12","v":0}]
["Sch IVE","Net Prem by Zone",null,"NPE Zn 3 - Personal Acc. Non Prop.",null,null,null,null,null,null,null,null,{"$f":"'Schedule IVE'!G13","v":0}]
["Sch IVE","Net Prem by Zone",null,"NPE Zn 3 - US Casualty Non-Prop.",null,null,null,null,null,null,null,null,{"$f":"'Schedule IVE'!G21","v":0}]
["Sch IVE","Net Prem by Zone",null,"NPE Zn 3 - Retro Property",null,null,null,null,null,null,null,null,{"$f":"'Schedule IVE'!G30","v":0}]
["Sch IVE","Net Prem by Zone",null,"NPE Zn 4 - Property Non-Proportion",null,null,null,null,null,null,null,null,{"$f":"'Schedule IVE'!H11","v":0}]
["Sch IVE","Net Prem by Zone",null,"NPE Zn 4 - US Professional",null,null,null,null,null,null,null,null,{"$f":"'Schedule IVE'!H22","v":0}]
["Sch IVE","Net Prem by Zone",null,"NPE Zn 4 - Structured / Finite R/I",null,null,null,null,null,null,null,null,{"$f":"'Schedule IVE'!H31","v":0}]
["Sch IVE","Net Prem by Zone",null,"NPE Zn 5 - Property Catastrophe",null,null,null,null,null,null,null,null,{"$f":"'Schedule IVE'!I9","v":0}]
["Sch IVE","Net Prem by Zone",null,"NPE Zn 5 - US Professional Non-Prop.",null,null,null,null,null,null,null,null,{"$f":"'Schedule IVE'!I23","v":0}]
["Sch IVE","Net Prem by Zone",null,"NPE Zn 5 - US Specialty",null,null,null,null,null,null,null,null,{"$f":"'Schedule IVE'!I24","v":0}]
["Sch IVE","Net Prem by Zone",null,"NPE Zn 5 - Health",null,null,null,null,null,null,null,null,{"$f":"'Schedule IVE'!I32","v":0}]
["Sch IVE","Net Prem by Zone",null,"NPE Zn 6 - Credit Surety",null,null,null,null,null,null,null,null,{"$f":"'Schedule IVE'!J16","v":0}]
["Sch IVE","Net Prem by Zone",null,"NPE Zn 6 - US Specialty Non-Prop.",null,null,null,null,null,null,null,null,{"$f":"'Schedule IVE'!J25","v":0}]
["Sch IVE","Net Prem by Zone",null,"NPE Zn 6 - Retro Property",null,null,null,null,null,null,null,null,{"$f":"'Schedule IVE'!J30","v":0}]
["Sch IVE","Net Prem by Zone",null,"NPE Zn 7 - Credit Surety Non-Prop.",null,null,null,null,null,null,null,null,{"$f":"'Schedule IVE'!K17","v":0}]
["Sch IVE","Net Prem by Zone",null,"NPE Zn 7 - Int'l Motor",null,null,null,null,null,null,null,null,{"$f":"'Schedule IVE'!K26","v":0}]
["Sch IVE","Net Prem by Zone",null,"NPE Zn 7 - Health",null,null,null,null,null,null,null,null,{"$f":"'Schedule IVE'!K32","v":0}]
["Sch IVE","Net Prem by Zone",null,"NPE Zn 8 - Property",null,null,null,null,null,null,null,null,{"$f":"'Schedule IVE'!L10","v":0}]
["Sch IVE","Net Prem by Zone",null,"NPE Zn 8 - Energy Non-Proportional",null,null,null,null,null,null,null,null,{"$f":"'Schedule IVE'!L19","v":0}]
["Sch IVE","Net Prem by Zone",null,"NPE Zn 8 - Retro Property",null,null,null,null,null,null,null,null,{"$f":"'Schedule IVE'!L30","v":0}]
["Sch IVE","Net Prem by Zone",null,"NPE Zn 9 - Property Non-Proportion",null,null,null,null,null,null,null,null,{"$f":"'Schedule IVE'!M11","v":0}]
["Sch IVE","Net Prem by Zone",null,"NPE Zn 9 - US Casualty",null,null,null,null,null,null,null,null,{"$f":"'Schedule IVE'!M20","v":0}]
["Sch IVE","Net Prem by Zone",null,"NPE Zn 9 - Int'l Casualty",null,null,null,null,null,null,null,null,{"$f":"'Schedule IVE'!M28","v":0}]
["Sch IVE","Net Prem by Zone",null,"NPE Zn 10 - Personal Accident",null,null,null,null,null,null,null,null,{"$f":"'Schedule IVE'!N12","v":0}]
["Sch IVE","Net Prem by Zone",null,"NPE Zn 10 - US Casualty Non-Prop.",null,null,null,null,null,null,null,null,{"$f":"'Schedule IVE'!N21","v":0}]
["Sch IVE","Net Prem by Zone",null,"NPE Zn 10 - Int'l Motor",null,null,null,null,null,null,null,null,{"$f":"'Schedule IVE'!N26","v":0}]
["Sch IVE","Net Prem by Zone",null,"NPE Zn 10 - Retro Property",null,null,null,null,null,null,null,null,{"$f":"'Schedule IVE'!N30","v":0}]
["Sch IVE","Net Prem by Zone",null,"NPE Zn 11 - Aviation",null,null,null,null,null,null,null,null,{"$f":"'Schedule IVE'!O14","v":0}]
["Sch IVE","Net Prem by Zone",null,"NPE Zn 11 - US Professional Non-Prop.",null,null,null,null,null,null,null,null,{"$f":"'Schedule IVE'!O23","v":0}]
["Sch IVE","Net Prem by Zone",null,"NPE Zn 11 - Retro Property",null,null,null,null,null,null,null,null,{"$f":"'Schedule IVE'!O30","v":0}]
["Sch IVE","Net Prem by Zone",null,"NPE Zn 12 - Aviation Non-Proportional",null,null,null,null,null,null,null,null,{"$f":"'Schedule IVE'!P15","v":0}]
["Sch IVE","Net Prem by Zone",null,"NPE Zn 12 - US Specialty",null,null,null,null,null,null,null,null,{"$f":"'Schedule IVE'!P24","v":0}]
["Sch IVE","Net Prem by Zone",null,"NPE Zn 12 - Int'l Casualty",null,null,null,null,null,null,null,null,{"$f":"'Schedule IVE'!P28","v":0}]
["Sch IVE","Net Prem by Zone",null,"NPE Zn 12 - Total",null,null,null,null,null,null,null,null,{"$f":"'Schedule IVE'!P33","v":0}]
["Sch IVE","Net Prem by Zone",null,"NPE Zn 13 - Credit Surety Non-Prop.",null,null,null,null,null,null,null,null,{"$f":"'Schedule IVE'!Q17","v":0}]
["Sch IVE","Net Prem by Zone",null,"NPE Zn 13 - Int'l Motor",null,null,null,null,null,null,null,null,{"$f":"'Schedule IVE'!Q26","v":0}]
["Sch IVE","Net Prem by Zone",null,"NPE Zn 14 - Property Catastrophe",null,null,null,null,null,null,null,null,{"$f":"'Schedule IVE'!R9","v":0}]
["Sch IVE","Net Prem by Zone",null,"NPE Zn 14 - Energy",null,null,null,null,null,null,null,null,{"$f":"'Schedule IVE'!R18","v":0}]
["Sch IVE","Net Prem by Zone",null,"NPE Zn 14 - US Specialty",null,null,null,null,null,null,null,null,{"$f":"'Schedule IVE'!R24","v":0}]
["Sch IVE","Net Prem by Zone",null,"NPE Zn 15 - Property",null,null,null,null,null,null,null,null,{"$f":"'Schedule IVE'!S10","v":0}]
["Sch IVE","Net Prem by Zone",null,"NPE Zn 15 - Energy Non-Proportional",null,null,null,null,null,null,null,null,{"$f":"'Schedule IVE'!S19","v":0}]
["Sch IVE","Net Prem by Zone",null,"NPE Zn 15 - US Professional",null,null,null,null,null,null,null,null,{"$f":"'Schedule IVE'!S22","v":0}]
["Sch IVE","Net Prem by Zone",null,"NPE Zn 15 - Int'l Casualty",null,null,null,null,null,null,null,null,{"$f":"'Schedule IVE'!S28","v":0}]
["Sch IVE","Net Prem by Zone",null,"NPE Zn 16 - Personal Accident",null,null,null,null,null,null,null,null,{"$f":"'Schedule IVE'!T12","v":0}]
["Sch IVE","Net Prem by Zone",null,"NPE Zn 16 - US Casualty",null,null,null,null,null,null,null,null,{"$f":"'Schedule IVE'!T20","v":0}]
["Sch IVE","Net Prem by Zone",null,"NPE Zn 16 - Int'l Casualty Non-Prop.",null,null,null,null,null,null,null,null,{"$f":"'Schedule IVE'!T29","v":0}]
["Sch IVE","Net Prem by Zone",null,"NPE Zn 17 - Personal Acc. Non Prop.",null,null,null,null,null,null,null,null,{"$f":"'Schedule IVE'!U13","v":0}]
["Sch IVE","Net Prem by Zone",null,"NPE Zn 17 - Energy",null,null,null,null,null,null,null,null,{"$f":"'Schedule IVE'!U18","v":0}]
["Sch IVE","Net Prem by Zone",null,"NPE Zn 17 - Retro Property",null,null,null,null,null,null,null,null,{"$f":"'Schedule IVE'!U30","v":0}]
["Sch IVE","Net Prem by Zone",null,"NPE Zn 17 - Structured / Finite R/I",null,null,null,null,null,null,null,null,{"$f":"'Schedule IVE'!U31","v":0}]
["Sch IVE","Net Prem by Zone",null,"NPE Zn 18 - US Casualty",null,null,null,null,null,null,null,null,{"$f":"'Schedule IVE'!V20","v":0}]
["Sch IVE","Net Prem by Zone",null,"NPE Zn 18 - US Professional Non-Prop.",null,null,null,null,null,null,null,null,{"$f":"'Schedule IVE'!V23","v":0}]
["Sch IVE","Net Prem by Zone",null,"NPE Zn 18 - Health",null,null,null,null,null,null,null,null,{"$f":"'Schedule IVE'!V32","v":0}]
["Sch IVF","Exposure of Risk",null,"1. # of Subsidiaries - 8.Estonia",null,null,null,null,null,null,null,null,{"$f":"'Schedule IVF'!D20","v":0}]
["Sch IVF","Exposure of Risk",null,"1. # of Subsidiaries - 14.Ireland",null,null,null,null,null,null,null,null,{"$f":"'Schedule IVF'!D26","v":0}]
["Sch IVF","Exposure of Risk",null,"1. # of Subsidiaries - 23.Romania",null,null,null,null,null,null,null,null,{"$f":"'Schedule IVF'!D35","v":0}]
["Sch IVF","Exposure of Risk",null,"1. # of Subsidiaries - 32.United States of America",null,null,null,null,null,null,null,null,{"$f":"'Schedule IVF'!D45","v":0}]
["Sch IVF","Exposure of Risk",null,"1. # of Subsidiaries - 33.Canada",null,null,null,null,null,null,null,null,{"$f":"'Schedule IVF'!D46","v":0}]
["Sch IVF","Exposure of Risk",null,"2. GPW Cat - 2.Belgium",null,null,null,null,null,null,null,null,{"$f":"'Schedule IVF'!E14","v":0}]
["Sch IVF","Exposure of Risk",null,"2. GPW Cat - 11.Germany",null,null,null,null,null,null,null,null,{"$f":"'Schedule IVF'!E23","v":0}]
["Sch IVF","Exposure of Risk",null,"2. GPW Cat - 17.Lithuania",null,null,null,null,null,null,null,null,{"$f":"'Schedule IVF'!E29","v":0}]
["Sch IVF","Exposure of Risk",null,"2. GPW Cat - 28.Sub Total European Union",null,null,null,null,null,null,null,null,{"$f":"'Schedule IVF'!E40","v":0}]
["Sch IVF","Exposure of Risk",null,"2. GPW Cat - 37.Australia",null,null,null,null,null,null,null,null,{"$f":"'Schedule IVF'!E50","v":0}]
["Sch IVF","Exposure of Risk",null,"3. GPW Other - 5.Cyprus",null,null,null,null,null,null,null,null,{"$f":"'Schedule IVF'!F17","v":0}]
["Sch IVF","Exposure of Risk",null,"3. GPW Other - 15.Italy",null,null,null,null,null,null,null,null,{"$f":"'Schedule IVF'!F27","v":0}]
["Sch IVF","Exposure of Risk",null,"3. GPW Other - 16.Latvia",null,null,null,null,null,null,null,null,{"$f":"'Schedule IVF'!F28","v":0}]
["Sch IVF","Exposure of Risk",null,"3. GPW Other - 28.Sub Total European Union",null,null,null,null,null,null,null,null,{"$f":"'Schedule IVF'!F40","v":0}]
["Sch IVF","Exposure of Risk",null,"3. GPW Other - 33.Canada",null,null,null,null,null,null,null,null,{"$f":"'Schedule IVF'!F46","v":0}]
["Sch IVF","Exposure of Risk",null,"4. Ceded Cat - 3.Bulgaria",null,null,null,null,null,null,null,null,{"$f":"'Schedule IVF'!G15","v":0}]
["Sch IVF","Exposure of Risk",null,"4. Ceded Cat - 12.Greece",null,null,null,null,null,null,null,null,{"$f":"'Schedule IVF'!G24","v":0}]
["Sch IVF","Exposure of Risk",null,"4. Ceded Cat - 20.Netherlands",null,null,null,null,null,null,null,null,{"$f":"'Schedule IVF'!G32","v":0}]
["Sch IVF","Exposure of Risk",null,"4. Ceded Cat - 29.Bermuda",null,null,null,null,null,null,null,null,{"$f":"'Schedule IVF'!G42","v":0}]
["Sch IVF","Exposure of Risk",null,"4. Ceded Cat - 35.Japan",null,null,null,null,null,null,null,null,{"$f":"'Schedule IVF'!G48","v":0}]
["Sch IVF","Exposure of Risk",null,"4. Ceded Cat - 38.All Other Locations",null,null,null,null,null,null,null,null,{"$f":"'Schedule IVF'!G51","v":0}]
["Sch IVF","Exposure of Risk",null,"5. Ceded Other - 8.Estonia",null,null,null,null,null,null,null,null,{"$f":"'Schedule IVF'!H20","v":0}]
["Sch IVF","Exposure of Risk",null,"5. Ceded Other - 19.Malta",null,null,null,null,null,null,null,null,{"$f":"'Schedule IVF'!H31","v":0}]
["Sch IVF","Exposure of Risk",null,"5. Ceded Other - 25.Slovenia",null,null,null,null,null,null,null,null,{"$f":"'Schedule IVF'!H37","v":0}]
["Sch IVF","Exposure of Risk",null,"5. Ceded Other - 34.China",null,null,null,null,null,null,null,null,{"$f":"'Schedule IVF'!H47","v":0}]
["Sch IVF","Exposure of Risk",null,"6. Losses Cat - 3.Bulgaria",null,null,null,null,null,null,null,null,{"$f":"'Schedule IVF'!J15","v":0}]
["Sch IVF","Exposure of Risk",null,"6. Losses Cat - 12.Greece",null,null,null,null,null,null,null,null,{"$f":"'Schedule IVF'!J24","v":0}]
["Sch IVF","Exposure of Risk",null,"6. Losses Cat - 21.Poland",null,null,null,null,null,null,null,null,{"$f":"'Schedule IVF'!J33","v":0}]
["Sch IVF","Exposure of Risk",null,"6. Losses Cat - 26.Spain",null,null,null,null,null,null,null,null,{"$f":"'Schedule IVF'!J38","v":0}]
["Sch IVF","Exposure of Risk",null,"6. Losses Cat - 30.United Kingdom",null,null,null,null,null,null,null,null,{"$f":"'Schedule IVF'!J43","v":0}]
["Sch IVF","Exposure of Risk",null,"6. Losses Cat - 39.Total",null,null,null,null,null,null,null,null,{"$f":"'Schedule IVF'!J52","v":0}]
["Sch IVF","Exposure of Risk",null,"7. Losses Other - 9.Finland",null,null,null,null,null,null,null,null,{"$f":"'Schedule IVF'!K21","v":0}]
["Sch IVF","Exposure of Risk",null,"7. Losses Other - 16.Latvia",null,null,null,null,null,null,null,null,{"$f":"'Schedule IVF'!K28","v":0}]
["Sch IVF","Exposure of Risk",null,"7. Losses Other - 26.Spain",null,null,null,null,null,null,null,null,{"$f":"'Schedule IVF'!K38","v":0}]
["Sch IVF","Exposure of Risk",null,"7. Losses Other - 35.Japan",null,null,null,null,null,null,null,null,{"$f":"'Schedule IVF'!K48","v":0}]
["Sch IVF","Exposure of Risk",null,"7. Losses Other - 39.Total",null,null,null,null,null,null,null,null,{"$f":"'Schedule IVF'!K52","v":0}]
["Sch IVF","Exposure of Risk",null,"8. GB Reserves - 5.Cyprus",null,null,null,null,null,null,null,null,{"$f":"'Schedule IVF'!L17","v":0}]
["Sch IVF","Exposure of Risk",null,"8. GB Reserves - 14.Ireland",null,null,null,null,null,null,null,null,{"$f":"'Schedule IVF'!L26","v":0}]
["Sch IVF","Exposure of Risk",null,"8. GB Reserves - 23.Romania",null,null,null,null,null,null,null,null,{"$f":"'Schedule IVF'!L35","v":0}]
["Sch IVF","Exposure of Risk",null,"8. GB Reserves - 31.Switzerland",null,null,null,null,null,null,null,null,{"$f":"'Schedule IVF'!L44","v":0}]
[]
["Sch V","Risk Mgmt.",null,"Actual Attritional Loss - Relevant Yr.",null,null,null,null,null,null,null,null,{"$f":"'Schedule V'!H22","v":0}]
["Sch Va","Governance",null,"Director Name - 1",{"$f":"'Schedule V(a)'!C12","v":0}]
["Sch Va","Governance",null,"Director Name - 10",{"$f":"'Schedule V(a)'!C21","v":0}]
["Sch Va","Governance",null,"Director Name - 17",{"$f":"'Schedule V(a)'!C28","v":0}]
["Sch Va","Governance",null,"Director Name - 19",{"$f":"'Schedule V(a)'!C30","v":0}]
["Sch Va","Governance",null,"Director Position - 8",{"$f":"'Schedule V(a)'!D19","v":0}]
["Sch Va","Governance",null,"Director Position - 20",{"$f":"'Schedule V(a)'!D31","v":0}]
["Sch Va","Governance",null,"Director Residence - 5",{"$f":"'Schedule V(a)'!E16","v":0}]
["Sch Va","Governance",null,"Director Residence - 14",{"$f":"'Schedule V(a)'!E25","v":0}]
["Sch Va","Governance",null,"Director Work Experience - 3",{"$f":"'Schedule V(a)'!F14","v":0}]
["Sch Va","Governance",null,"Director Work Experience - 11",{"$f":"'Schedule V(a)'!F22","v":0}]
["Sch Va","Governance",null,"Director Work Experience - 12",{"$f":"'Schedule V(a)'!F23","v":0}]
["Sch Va","Governance",null,"Director Status on Board - 6",{"$f":"'Schedule V(a)'!H17","v":"Select"}]
["Sch Va","Governance",null,"Director Status on Board - 9",{"$f":"'Schedule V(a)'!H20","v":"Select"}]
["Sch Va","Governance",null,"Director Status on Board - 18",{"$f":"'Schedule V(a)'!H29","v":"Select"}]
["Sch Va","Governance",null,"Executive Name - 8",{"$f":"'Schedule V(a)'!C44","v":0}]
["Sch Va","Governance",null,"Executive Name - 14",{"$f":"'Schedule V(a)'!C50","v":0}]
["Sch Va","Governance",null,"Executive Position - 3",{"$f":"'Schedule V(a)'!D39","v":0}]
["Sch Va","Governance",null,"Executive Position - 12",{"$f":"'Schedule V(a)'!D48","v":0}]
["Sch Va","Governance",null,"Executive Position - 17",{"$f":"'Schedule V(a)'!D53","v":0}]
["Sch Va","Governance",null,"Executive Residence - 1",{"$f":"'Schedule V(a)'!E37","v":0}]
["Sch Va","Governance",null,"Executive Residence - 10",{"$f":"'Schedule V(a)'!E46","v":0}]
["Sch Va","Governance",null,"Executive Residence - 20",{"$f":"'Schedule V(a)'!E56","v":0}]
["Sch Va","Governance",null,"Executive Work Experience - 7",{"$f":"'Schedule V(a)'!F43","v":0}]
["Sch Va","Governance",null,"Executive Work Experience - 16",{"$f":"'Schedule V(a)'!F52","v":0}]
["Sch Va","Governance",null,"Executive Employee Arrangement - 3",{"$f":"'Schedule V(a)'!H39","v":"Select"}]
["Sch Va","Governance",null,"Executive Employee Arrangement - 13",{"$f":"'Schedule V(a)'!H49","v":"Select"}]
["Sch Va","Governance",null,"Executive Employee Arrangement - 14",{"$f":"'Schedule V(a)'!H50","v":"Select"}]
["Sch Va","Governance",null,"Executive Responsibilities - 6",{"$f":"'Schedule V(a)'!I42","v":"Select"}]
["Sch Va","Governance",null,"Executive Responsibilities - 11",{"$f":"'Schedule V(a)'!I47","v":"Select"}]
["Sch Va","Governance",null,"Executive Responsibilities - 20",{"$f":"'Schedule V(a)'!I56","v":"Select"}]
["Sch Va","Governance",null,"BOD Location - LOB Decisions",{"$f":"IF('Schedule V(a)'!F67=\"\",\"Bermuda\",'Schedule V(a)'!F67)","v":0}]
["Sch Va","Governance",null,"U/W - Operation Location",{"$f":"IF('Schedule V(a)'!F72=\"\",\"Bermuda\",'Schedule V(a)'!F72)","v":0}]
["Sch Va","Governance",null,"Actuarial - Outsourced",{"$f":"'Schedule V(a)'!H75","v":"Select Yes/No"}]
["Sch Va","Governance",null,"Actuarial - Provider Type",{"$f":"'Schedule V(a)'!I75","v":"Select"}]
["Sch Va","Governance",null,"U/W - Name of Provider",{"$f":"'Schedule V(a)'!J72","v":0}]
["Sch Va","Governance",null,"Services Outsourced - Accounting",{"$f":"'Schedule V(a)'!F84","v":"Select Yes/No"}]
["Sch Va","Governance",null,"Services Outsourced - Internal Audit",{"$f":"'Schedule V(a)'!F92","v":"Select Yes/No"}]
["Sch Va","Governance",null,"Services in BDA - Prep. SFR/Prudential",{"$f":"'Schedule V(a)'!G85","v":"Select Yes/No"}]
["Sch Va","Governance",null,"Services in BDA - AML/ATF/Sanctions",{"$f":"'Schedule V(a)'!G94","v":"Select Yes/No"}]
["Sch Va","Governance",null,"Number of Employees in BDA - Technical Officer",{"$f":"'Schedule V(a)'!G103","v":0}]
["Sch Va","Governance",null,"Name of Insurer - 1",null,null,null,null,null,null,null,null,{"$f":"'Schedule V(a)'!C130","v":0}]
["Sch Va","Governance",null,"Insurer Location - 1",null,null,null,null,null,null,null,null,{"$f":"'Schedule V(a)'!D130","v":0}]
["Sch Va","Governance",null,"Insurer Location - 3",null,null,null,null,null,null,null,null,{"$f":"'Schedule V(a)'!D132","v":0}]
["Sch Va","Governance",null,"Insurer Asset - 1",null,null,null,null,null,null,null,null,{"$f":"'Schedule V(a)'!E130","v":0}]
["Sch Va","Governance",null,"Insurer Reserve - 1",null,null,null,null,null,null,null,null,{"$f":"'Schedule V(a)'!F130","v":0}]
["Sch Va","Governance",null,"Insurer Capital & Surplus - 1",null,null,null,null,null,null,null,null,{"$f":"'Schedule V(a)'!G130","v":0}]
["Sch Va","Governance",null,"Insurer Capital & Surplus - 8",null,null,null,null,null,null,null,null,{"$f":"'Schedule V(a)'!G137","v":0}]
["Sch Vc","Group Structure",null,"Issuer/Borrower Name - 7",{"$f":"'Schedule V(c)'!C21","v":0}]
["Sch Vc","Group Structure",null,"Issuer/Borrower Name - 16",{"$f":"'Schedule V(c)'!C30","v":0}]
["Sch Vc","Group Structure",null,"Issuer/Borrower Name - 24",{"$f":"'Schedule V(c)'!C38","v":0}]
["Sch Vc","Group Structure",null,"Issuer/Borrower Name - 25",{"$f":"'Schedule V(c)'!C39","v":0}]
["Sch Vc","Group Structure",null,"Issuer Jurisdiction - 9",{"$f":"'Schedule V(c)'!D23","v":0}]
["Sch Vc","Group Structure",null,"Issuer Jurisdiction - 22",{"$f":"'Schedule V(c)'!D36","v":0}]
["Sch Vc","Group Structure",null,"Investor/Lender Name - 1",{"$f":"'Schedule V(c)'!E15","v":0}]
["Sch Vc","Group Structure",null,"Investor/Lender Name - 10",{"$f":"'Schedule V(c)'!E24","v":0}]
["Sch Vc","Group Structure",null,"Investor/Lender Name - 20",{"$f":"'Schedule V(c)'!E34","v":0}]
["Sch Vc","Group Structure",null,"Investor Jurisdiction - 2",{"$f":"'Schedule V(c)'!F16","v":0}]
["Sch Vc","Group Structure",null,"Investor Jurisdiction - 11",{"$f":"'Schedule V(c)'!F25","v":0}]
["Sch Vc","Group Structure",null,"Investor Jurisdiction - 18",{"$f":"'Schedule V(c)'!F32","v":0}]
["Sch Vc","Group Structure",null,"Investor Jurisdiction - 20",{"$f":"'Schedule V(c)'!F34","v":0}]
["Sch Vc","Group Structure",null,"Transaction Details - 4",{"$f":"'Schedule V(c)'!G18","v":0}]
["Sch Vc","Group Structure",null,"Transaction Details - 16",{"$f":"'Schedule V(c)'!G30","v":0}]
["Sch Vc","Group Structure",null,"Transaction Details - 21",{"$f":"'Schedule V(c)'!G35","v":0}]
["Sch Vc","Group Structure",null,"Exposure Value - 5",{"$f":"'Schedule V(c)'!J19","v":0}]
["Sch Vc","Group Structure",null,"Exposure Value - 14",{"$f":"'Schedule V(c)'!J28","v":0}]
["Sch Vc","Group Structure",null,"Exposure Value - 22",{"$f":"'Schedule V(c)'!J36","v":0}]
["Sch Vc","Group Structure",null,"Exposure Value - 23",{"$f":"'Schedule V(c)'!J37","v":0}]
["Sch Vc","Group Structure",null,"Assuming Party Name - 11",{"$f":"'Schedule V(c)'!C58","v":0}]
["Sch Vc","Group Structure",null,"Assuming Party Name - 14",{"$f":"'Schedule V(c)'!C61","v":0}]
["Sch Vc","Group Structure",null,"Assuming Party Name - 23",{"$f":"'Schedule V(c)'!C70","v":0}]
["Sch Vc","Group Structure",null,"Assuming Party Jurisdiction - 6",{"$f":"'Schedule V(c)'!D53","v":0}]
["Sch Vc","Group Structure",null,"Assuming Party Jurisdiction - 15",{"$f":"'Schedule V(c)'!D62","v":0}]
["Sch Vc","Group Structure",null,"Assuming Party Jurisdiction - 24",{"$f":"'Schedule V(c)'!D71","v":0}]
["Sch Vc","Group Structure",null,"Assuming Party Rating - 8",{"$f":"'Schedule V(c)'!E55","v":0}]
["Sch Vc","Group Structure",null,"Assuming Party Rating - 13",{"$f":"'Schedule V(c)'!E60","v":0}]
["Sch Vc","Group Structure",null,"Assuming Party Rating - 17",{"$f":"'Schedule V(c)'!E64","v":0}]
["Sch Vc","Group Structure",null,"Ceding Party Name - 1",{"$f":"'Schedule V(c)'!F48","v":0}]
["Sch Vc","Group Structure",null,"Ceding Party Name - 11",{"$f":"'Schedule V(c)'!F58","v":0}]
["Sch Vc","Group Structure",null,"Ceding Party Name - 18",{"$f":"'Schedule V(c)'!F65","v":0}]
["Sch Vc","Group Structure",null,"Ceding Party Jurisdiction - 2",{"$f":"'Schedule V(c)'!G49","v":0}]
["Sch Vc","Group Structure",null,"Ceding Party Jurisdiction - 9",{"$f":"'Schedule V(c)'!G56","v":0}]
["Sch Vc","Group Structure",null,"Ceding Party Jurisdiction - 19",{"$f":"'Schedule V(c)'!G66","v":0}]
["Sch Vc","Group Structure",null,"Ceding Party Jurisdiction - 20",{"$f":"'Schedule V(c)'!G67","v":0}]
["Sch Vc","Group Structure",null,"Ceding Party Rating - 4",{"$f":"'Schedule V(c)'!H51","v":0}]
["Sch Vc","Group Structure",null,"Ceding Party Rating - 12",{"$f":"'Schedule V(c)'!H59","v":0}]
["Sch Vc","Group Structure",null,"Ceding Party Rating - 21",{"$f":"'Schedule V(c)'!H68","v":0}]
["Sch Vc","Group Structure",null,"Gross Exposure Limit - 2",{"$f":"'Schedule V(c)'!I49","v":0}]
["Sch Vc","Group Structure",null,"Gross Exposure Limit - 13",{"$f":"'Schedule V(c)'!I60","v":0}]
["Sch Vc","Group Structure",null,"Gross Exposure Limit - 22",{"$f":"'Schedule V(c)'!I69","v":0}]
["Sch Vc","Group Structure",null,"Gross Exposure Limit - 25",{"$f":"'Schedule V(c)'!I72","v":0}]
["Sch Vc","Group Structure",null,"Net Exposure Limit - 6",{"$f":"'Schedule V(c)'!J53","v":0}]
["Sch Vc","Group Structure",null,"Net Exposure Limit - 15",{"$f":"'Schedule V(c)'!J62","v":0}]
["Sch Vc","Group Structure",null,"Net Exposure Limit - 23",{"$f":"'Schedule V(c)'!J70","v":0}]
["Sch Vc","Group Structure",null,"Gross Premium Written - 7",{"$f":"'Schedule V(c)'!K54","v":0}]
["Sch Vc","Group Structure",null,"Gross Premium Written - 16",{"$f":"'Schedule V(c)'!K63","v":0}]
["Sch Vc","Group Structure",null,"Gross Premium Written - 21",{"$f":"'Schedule V(c)'!K68","v":0}]
["Sch Vc","Group Structure",null,"Net Premium Written - 8",{"$f":"'Schedule V(c)'!L55","v":0}]
["Sch Vc","Group Structure",null,"Net Premium Written - 17",{"$f":"'Schedule V(c)'!L64","v":0}]
["Sch Vc","Group Structure",null,"Net Premium Written - 19",{"$f":"'Schedule V(c)'!L66","v":0}]
["Sch Vc","Group Structure",null,"Q4 Proportion of Internal R/I",{"$f":"'Schedule V(c)'!L74","v":0}]
["Sch Vc","Group Structure",null,"Counterparty Name - 8",{"$f":"'Schedule V(c)'!C90","v":0}]
["Sch Vc","Group Structure",null,"Counterparty Name - 17",{"$f":"'Schedule V(c)'!C99","v":0}]
["Sch Vc","Group Structure",null,"Counterparty Name - 28",{"$f":"'Schedule V(c)'!C110","v":0}]
["Sch Vc","Group Structure",null,"Counterparty Name - 34",{"$f":"'Schedule V(c)'!C116","v":0}]
["Sch Vc","Group Structure",null,"Counterparty Location - 3",{"$f":"'Schedule V(c)'!G85","v":0}]
["Sch Vc","Group Structure",null,"Counterparty Location - 11",{"$f":"'Schedule V(c)'!G93","v":0}]
["Sch Vc","Group Structure",null,"Counterparty Location - 12",{"$f":"'Schedule V(c)'!G94","v":0}]
["Sch Vc","Group Structure",null,"Counterparty Location - 21",{"$f":"'Schedule V(c)'!G103","v":0}]
["Sch Vc","Group Structure",null,"Counterparty Location - 34",{"$f":"'Schedule V(c)'!G116","v":0}]
["Sch Vc","Group Structure",null,"Counterparty Location - 38",{"$f":"'Schedule V(c)'!G120","v":0}]
["Sch Vc","Group Structure",null,"Exposure Fair Value - 7",{"$f":"'Schedule V(c)'!H89","v":0}]
["Sch Vc","Group Structure",null,"Exposure Fair Value - 17",{"$f":"'Schedule V(c)'!H99","v":0}]
["Sch Vc","Group Structure",null,"Exposure Fair Value - 24",{"$f":"'Schedule V(c)'!H106","v":0}]
["Sch Vc","Group Structure",null,"Exposure Fair Value - 33",{"$f":"'Schedule V(c)'!H115","v":0}]
["Sch Vc","Group Structure",null,"Exposure Fair Value - 40",{"$f":"'Schedule V(c)'!H122","v":0}]
["Sch Vc","Group Structure",null,"Exposure Market Value - 2",{"$f":"'Schedule V(c)'!I84","v":0}]
["Sch Vc","Group Structure",null,"Exposure Market Value - 11",{"$f":"'Schedule V(c)'!I93","v":0}]
["Sch Vc","Group Structure",null,"Exposure Market Value - 23",{"$f":"'Schedule V(c)'!I105","v":0}]
["Sch Vc","Group Structure",null,"Exposure Market Value - 28",{"$f":"'Schedule V(c)'!I110","v":0}]
["Sch Vc","Group Structure",null,"Exposure Market Value - 37",{"$f":"'Schedule V(c)'!I119","v":0}]
["Sch Vc","Group Structure",null,"Transaction Type - 3",{"$f":"'Schedule V(c)'!J85","v":0}]
["Sch Vc","Group Structure",null,"Transaction Type - 14",{"$f":"'Schedule V(c)'!J96","v":0}]
["Sch Vc","Group Structure",null,"Transaction Type - 15",{"$f":"'Schedule V(c)'!J97","v":0}]
["Sch Vc","Group Structure",null,"Transaction Type - 26",{"$f":"'Schedule V(c)'!J108","v":0}]
["Sch Vc","Group Structure",null,"Transaction Type - 32",{"$f":"'Schedule V(c)'!J114","v":0}]
[]
["Sch Ve","Scenario Tests",null,"R8 Scenario - Assets",null,null,null,null,null,null,null,null,{"$f":"'Schedule V(e)'!F19","v":0}]
["Sch Ve","Scenario Tests",null,"R5 - Greece",null,null,null,null,null,null,null,null,{"$f":"'Schedule V(e)'!E22","v":0}]
["Sch Ve","Scenario Tests",null,"Mortgage Loan - Shock 2 Assets",null,null,null,null,null,null,null,null,{"$f":"'Schedule V(e)'!F27","v":0}]
["Sch Ve","Scenario Tests",null,"Mortgage Loan - GPW - Unrelated - R/I - US",null,null,null,null,null,null,null,null,{"$f":"'Schedule V(e)'!E32","v":0}]
["Sch Ve","Scenario Tests",null,"Mortgage Loan - NPW - Related - R/I - US",null,null,null,null,null,null,null,null,{"$f":"'Schedule V(e)'!F32","v":0}]
["Sch Ve","Scenario Tests",null,"Mortgage Loan - NPW - Unrelated - Insurance - US",null,null,null,null,null,null,null,null,{"$f":"'Schedule V(e)'!G31","v":0}]
["Sch Ve","Scenario Tests",null,"Mortgage Loan - Claims - Related - Total",null,null,null,null,null,null,null,null,{"$f":"'Schedule V(e)'!H35","v":0}]
["Sch Ve","Scenario Tests",null,"Mortgage Loan - Reserves - Related - R/I - US",null,null,null,null,null,null,null,null,{"$f":"'Schedule V(e)'!J32","v":0}]
["Sch Ve","Scenario Tests",null,"Mortgage Loan - Risk in Force",null,null,null,null,null,null,null,null,{"$f":"'Schedule V(e)'!E39","v":0}]
["Sch Ve","Scenario Tests",null,"UW1. Gross Loss ",null,null,null,null,null,null,null,null,{"$f":"Import!M5722","v":0}]
["Sch Ve","Scenario Tests",null,"UW5. Gross Loss ",null,null,null,null,null,null,null,null,{"$f":"Import!M5726","v":0}]
["Sch Ve","Scenario Tests",null,"N4. Gross Loss ",null,null,null,null,null,null,null,null,{"$f":"Import!M5739","v":0}]
["Sch Ve","Scenario Tests",null,"P1. Gross Loss ",null,null,null,null,null,null,null,null,{"$f":"Import!M5740","v":0}]
["Sch Ve","Scenario Tests",null,"IW1. Net Loss - After Reinsurance",null,null,null,null,null,null,null,null,{"$f":"'Schedule V(e)'!F59","v":0}]
["Sch Ve","Scenario Tests",null,"N3. Net Loss - After Reinsurance",null,null,null,null,null,null,null,null,{"$f":"'Schedule V(e)'!F67","v":0}]
["Sch Ve","Scenario Tests",null,"UE2. Net Loss - Cat Mitigation Tech.",null,null,null,null,null,null,null,null,{"$f":"'Schedule V(e)'!G57","v":0}]
["Sch Ve","Scenario Tests",null,"M1. Net Loss - Cat Mitigation Tech.",null,null,null,null,null,null,null,null,{"$f":"'Schedule V(e)'!G63","v":0}]
["Sch Ve","Scenario Tests",null,"UW5. Return Period 1",null,null,null,null,null,null,null,null,{"$f":"'Schedule V(e)'!J55","v":0}]
["Sch Ve","Scenario Tests",null,"M2. Return Period 1",null,null,null,null,null,null,null,null,{"$f":"'Schedule V(e)'!J64","v":0}]
["Sch Ve","Scenario Tests",null,"N3. Return Period 1",null,null,null,null,null,null,null,null,{"$f":"'Schedule V(e)'!J67","v":0}]
["Sch Ve","Scenario Tests",null,"UW5. Return Period 2",null,null,null,null,null,null,null,null,{"$f":"'Schedule V(e)'!K55","v":0}]
["Sch Ve","Scenario Tests",null,"M2. Return Period 2",null,null,null,null,null,null,null,null,{"$f":"'Schedule V(e)'!K64","v":0}]
["Sch Ve","Scenario Tests",null,"UW4. Catastrophe Model",null,null,null,null,null,null,null,null,{"$f":"'Schedule V(e)'!L54","v":0}]
["Sch Ve","Scenario Tests",null,"M1. Catastrophe Model",null,null,null,null,null,null,null,null,{"$f":"'Schedule V(e)'!L63","v":0}]
["Sch Ve","Scenario Tests",null," Other Scenario - Name 3",null,null,null,null,null,null,null,null,{"$f":"'Schedule V(e)'!B81","v":0}]
["Sch Ve","Scenario Tests",null," Other - Net Loss 2 - After Reinsurance",null,null,null,null,null,null,null,null,{"$f":"'Schedule V(e)'!I80","v":0}]
["Sch Ve","Scenario Tests",null," Other - Catastrophe Model -  2",null,null,null,null,null,null,null,null,{"$f":"'Schedule V(e)'!O80","v":0}]
["Sch Ve","Scenario Tests",null,"Latent Liab - Scen 1 - NPW - Product Liab - Non Pro - US/Canada",null,null,null,null,null,null,null,null,{"$f":"'Schedule V(e)'!E98","v":0}]
["Sch Ve","Scenario Tests",null,"Latent Liab - Scen 1 - NPW - Gen Comm Liab - Pro - US/Canada",null,null,null,null,null,null,null,null,{"$f":"'Schedule V(e)'!F98","v":0}]
["Sch Ve","Scenario Tests",null,"Latent Liab - Scen 1 - NPW - Gen Comm Liab - Pro - Other Developed Mkts",null,null,null,null,null,null,null,null,{"$f":"'Schedule V(e)'!F101","v":0}]
["Sch Ve","Scenario Tests",null,"Latent Liab - Scen 1 - NPW - Empl. Liab/Workers Comp - Pro - US/Canada",null,null,null,null,null,null,null,null,{"$f":"'Schedule V(e)'!H98","v":0}]
["Sch Ve","Scenario Tests",null,"Latent Liab - Scen 1 - Prem. Growth - Product Liab - Pro - EEA & Switzerland",null,null,null,null,null,null,null,null,{"$f":"'Schedule V(e)'!D106","v":0}]
["Sch Ve","Scenario Tests",null,"Latent Liab - Scen 1 - Prem. Growth - Product Liab - Non Pro - EEA & Switzerland",null,null,null,null,null,null,null,null,{"$f":"'Schedule V(e)'!E106","v":0}]
["Sch Ve","Scenario Tests",null,"Latent Liab - Scen 1 - Prem. Growth - Gen Comm Liab - Pro - China",null,null,null,null,null,null,null,null,{"$f":"'Schedule V(e)'!F109","v":0}]
["Sch Ve","Scenario Tests",null,"Latent Liab - Scen 1 - Prem. Growth - Empl. Liab/Workers Comp - Pro - EEA & Switzerland",null,null,null,null,null,null,null,null,{"$f":"'Schedule V(e)'!H106","v":0}]
["Sch Ve","Scenario Tests",null,"Latent Liab - Scen 1 - Prem. Growth - Empl. Liab/Workers Comp - Non Pro - Japan",null,null,null,null,null,null,null,null,{"$f":"'Schedule V(e)'!I108","v":0}]
["Sch Ve","Scenario Tests",null,"Latent Liab - Scen 1 - Prem. Growth - Empl. Liab/Workers Comp - Non Pro - China",null,null,null,null,null,null,null,null,{"$f":"'Schedule V(e)'!I109","v":0}]
["Sch Ve","Scenario Tests",null,"Latent Liab - Scen 1 - Yr Growth - Product Liab - Non Pro - EEA & Switzerland",null,null,null,null,null,null,null,null,{"$f":"'Schedule V(e)'!M106","v":0}]
["Sch Ve","Scenario Tests",null,"Latent Liab - Scen 1 - Yr Growth - Gen Comm Liab - Non Pro - US/Canada",null,null,null,null,null,null,null,null,{"$f":"'Schedule V(e)'!O107","v":0}]
["Sch Ve","Scenario Tests",null,"Latent Liab - Scen 1 - Yr Growth - Gen Comm Liab - Non Pro - Emerging Mkts",null,null,null,null,null,null,null,null,{"$f":"'Schedule V(e)'!O111","v":0}]
["Sch Ve","Scenario Tests",null,"Latent Liab - Scen 1 - Yr Growth - Empl. Liab/Workers Comp - Non Pro - Japan",null,null,null,null,null,null,null,null,{"$f":"'Schedule V(e)'!Q108","v":0}]
["Sch Ve","Scenario Tests",null,"Latent Liab - Scen 2 - US Asbestos - Cur Yr - loading for future medical advances",null,null,null,null,null,null,null,null,{"$f":"'Schedule V(e)'!E139","v":0}]
["Sch Ve","Scenario Tests",null,"Latent Liab - Scen 2 - US Enviro - Cur Yr - Survival Ratio",null,null,null,null,null,null,null,null,{"$f":"'Schedule V(e)'!H136","v":0}]
["Sch Ve","Scenario Tests",null,"Latent Liab - Scen 2 - UK Asbestos - Cur Yr - Reserve post claims",null,null,null,null,null,null,null,null,{"$f":"'Schedule V(e)'!E151","v":0}]
["Sch Ve","Scenario Tests",null,"Latent Liab - Scen 2 - UK Asbestos - Cur Yr - 1yr emergence factor",null,null,null,null,null,null,null,null,{"$f":"'Schedule V(e)'!E160","v":0}]
["Sch Ve","Scenario Tests",null," 2a. Series of Loss - Net Loss",null,null,null,null,null,null,null,null,{"$f":"'Schedule V(e)'!D187","v":0}]
["Sch Ve","Scenario Tests",null,"2b. Specific WC Scen.- RP 1",null,null,null,null,null,null,null,null,{"$f":"'Schedule V(e)'!D201","v":0}]
["Sch Ve","Scenario Tests",null," Terrorism Loss 1 - Country",null,null,null,null,null,null,null,null,{"$f":"'Schedule V(e)'!D219","v":0}]
["Sch Ve","Scenario Tests",null," Terrorism Loss 2 - Gross Loss",null,null,null,null,null,null,null,null,{"$f":"'Schedule V(e)'!E220","v":0}]
["Sch Ve","Scenario Tests",null," Terrorism Loss 3 - R/I Recoverable",null,null,null,null,null,null,null,null,{"$f":"'Schedule V(e)'!F222","v":0}]
["Sch Ve","Scenario Tests",null," Terrorism Loss 4 - TRIP",null,null,null,null,null,null,null,null,{"$f":"'Schedule V(e)'!G221","v":0}]
["Sch Ve","Scenario Tests",null," Terrorism Loss 6 - State",null,null,null,null,null,null,null,null,{"$f":"'Schedule V(e)'!I218","v":0}]
["Sch Ve","Scenario Tests",null," Terrorism Loss 6 - Country",null,null,null,null,null,null,null,null,{"$f":"'Schedule V(e)'!I219","v":0}]
["Sch Ve","Scenario Tests",null," Terrorism Loss 7 - Net Loss",null,null,null,null,null,null,null,null,{"$f":"'Schedule V(e)'!J223","v":0}]
["Sch Ve","Scenario Tests",null," Terrorism Loss 8 - R/I Recoverable",null,null,null,null,null,null,null,null,{"$f":"'Schedule V(e)'!K222","v":0}]
["Sch Ve","Scenario Tests",null," Terrorism Loss 9 - Location",null,null,null,null,null,null,null,null,{"$f":"'Schedule V(e)'!L224","v":0}]
["Sch Ve","Scenario Tests",null,"Results consolidated by a Bermuda (re)insurer",null,null,null,null,null,null,null,null,{"$f":"'Schedule V(e)'!D235","v":"Select"}]
["Sch Ve","Scenario Tests",null,"Cyber - 1. Net Reserves - Direct",{"$f":"'Schedule V(e)'!D270","v":0},null,{"$f":"'Schedule V(e)'!E270","v":0},null,null,null,null,null,{"$f":"'Schedule V(e)'!D249","v":0},null,{"$f":"'Schedule V(e)'!E249","v":0}]
["Sch Ve","Scenario Tests",null,"Cyber - 1. Cyber Policies in Force - No - R/I",{"$f":"'Schedule V(e)'!G262","v":0},null,{"$f":"'Schedule V(e)'!H262","v":0},null,null,null,null,null,{"$f":"'Schedule V(e)'!G241","v":0},null,{"$f":"'Schedule V(e)'!H241","v":0}]
["Sch Ve","Scenario Tests",null,"Cyber - 1. Cyber NPW - R/I",{"$f":"'Schedule V(e)'!G268","v":0},null,{"$f":"'Schedule V(e)'!H268","v":0},null,null,null,null,null,{"$f":"'Schedule V(e)'!G247","v":0},null,{"$f":"'Schedule V(e)'!H247","v":0}]
["Sch Ve","Scenario Tests",null,"Cyber - 1. Claims Paid - R/I",{"$f":"'Schedule V(e)'!G272","v":0},null,{"$f":"'Schedule V(e)'!H272","v":0},null,null,null,null,null,{"$f":"'Schedule V(e)'!G251","v":0},null,{"$f":"'Schedule V(e)'!H251","v":0}]
["Sch Ve","Scenario Tests",null,"Cyber - 1. Net Exp. in Force - Package",{"$f":"'Schedule V(e)'!J264","v":0},null,{"$f":"'Schedule V(e)'!K264","v":0},null,null,null,null,null,{"$f":"'Schedule V(e)'!J243","v":0},null,{"$f":"'Schedule V(e)'!K243","v":0}]
["Sch Ve","Scenario Tests",null,"Cyber - 1. Cyber Avg. Claims - Package",{"$f":"'Schedule V(e)'!J274","v":0},null,{"$f":"'Schedule V(e)'!K274","v":0},null,null,null,null,null,{"$f":"'Schedule V(e)'!J253","v":0},null,{"$f":"'Schedule V(e)'!K253","v":0}]
["Sch Ve","Scenario Tests",null,"Cyber - 1. Net Exp. in Force - Related",{"$f":"'Schedule V(e)'!M264","v":0},null,{"$f":"'Schedule V(e)'!N264","v":0}]
["Sch Ve","Scenario Tests",null,"Cyber - 1. Cyber Lrg Claims - Related",{"$f":"'Schedule V(e)'!M275","v":0},null,{"$f":"'Schedule V(e)'!N275","v":0}]
["Sch Ve","Scenario Tests",null,"Cyber - 1. Cyber NPW - Unrelated",{"$f":"'Schedule V(e)'!P268","v":0},null,{"$f":"'Schedule V(e)'!Q268","v":0}]
["Sch Ve","Scenario Tests",null,"Cyber - 1. Claims Paid - Unrelated",{"$f":"'Schedule V(e)'!P272","v":0},null,{"$f":"'Schedule V(e)'!Q272","v":0}]
["Sch Ve","Scenario Tests",null,"Cyber - 1. # of Policies Direct - Other",{"$f":"'Schedule V(e)'!D305","v":0},null,null,null,null,null,null,null,{"$f":"'Schedule V(e)'!D291","v":0}]
["Sch Ve","Scenario Tests",null,"Cyber - 1. Cyber GPW-Direct - US",{"$f":"'Schedule V(e)'!E299","v":0},null,null,null,null,null,null,null,{"$f":"'Schedule V(e)'!E285","v":0}]
["Sch Ve","Scenario Tests",null,"Cyber - 1. Cyber NPW-Direct - UK & Europe",{"$f":"'Schedule V(e)'!F301","v":0},null,null,null,null,null,null,null,{"$f":"'Schedule V(e)'!F287","v":0}]
["Sch Ve","Scenario Tests",null,"Cyber - 1. Cyber Gross Exposure-Direct - Australia & New Zealand",{"$f":"'Schedule V(e)'!G302","v":0},null,null,null,null,null,null,null,{"$f":"'Schedule V(e)'!G288","v":0}]
["Sch Ve","Scenario Tests",null,"Cyber - 1. Cyber Net Exposure-Direct - Worldwide",{"$f":"'Schedule V(e)'!H304","v":0},null,null,null,null,null,null,null,{"$f":"'Schedule V(e)'!H290","v":0}]
["Sch Ve","Scenario Tests",null,"Cyber - 1. # of Policies R/I - Japan",{"$f":"'Schedule V(e)'!I303","v":0},null,null,null,null,null,null,null,{"$f":"'Schedule V(e)'!I289","v":0}]
["Sch Ve","Scenario Tests",null,"Cyber - 1. Cyber NPW-R/I - Canada",{"$f":"'Schedule V(e)'!K300","v":0},null,null,null,null,null,null,null,{"$f":"'Schedule V(e)'!K286","v":0}]
["Sch Ve","Scenario Tests",null,"Cyber - 1. Cyber Gross Exposure-R/I - Australia & New Zealand",{"$f":"'Schedule V(e)'!L302","v":0},null,null,null,null,null,null,null,{"$f":"'Schedule V(e)'!L288","v":0}]
["Sch Ve","Scenario Tests",null,"Cyber - 1. Cyber Net Exposure-R/I - Australia & New Zealand",{"$f":"'Schedule V(e)'!M302","v":0},null,null,null,null,null,null,null,{"$f":"'Schedule V(e)'!M288","v":0}]
["Sch Ve","Scenario Tests",null,"Cyber - 1. Cyber Net Exposure-R/I - Worldwide",{"$f":"'Schedule V(e)'!M304","v":0},null,null,null,null,null,null,null,{"$f":"'Schedule V(e)'!M290","v":0}]
["Sch Ve","Scenario Tests",null,"Cyber - 1. Cyber GPW-Package - US",{"$f":"'Schedule V(e)'!O299","v":0},null,null,null,null,null,null,null,{"$f":"'Schedule V(e)'!O285","v":0}]
["Sch Ve","Scenario Tests",null,"Cyber - 1. Cyber NPW-Package - Worldwide",{"$f":"'Schedule V(e)'!P304","v":0},null,null,null,null,null,null,null,{"$f":"'Schedule V(e)'!P290","v":0}]
["Sch Ve","Scenario Tests",null,"Cyber - 1. Cyber Gross Exposure-Package - Australia & New Zealand",{"$f":"'Schedule V(e)'!Q302","v":0},null,null,null,null,null,null,null,{"$f":"'Schedule V(e)'!Q288","v":0}]
["Sch Ve","Scenario Tests",null,"Cyber - 1. Cyber Net Exposure-Package - Worldwide",{"$f":"'Schedule V(e)'!R304","v":0},null,null,null,null,null,null,null,{"$f":"'Schedule V(e)'!R290","v":0}]
["Sch Ve","Scenario Tests",null,"Cyber - 2. Exclusion Clause - Credit/Surety - Non-Proportional",null,null,null,null,null,null,null,null,{"$f":"'Schedule V(e)'!F325","v":"Select"}]
["Sch Ve","Scenario Tests",null,"Cyber - 2. Exclusion Clause - US Specialty Non-Proportional",null,null,null,null,null,null,null,null,{"$f":"'Schedule V(e)'!F333","v":"Select"}]
["Sch Ve","Scenario Tests",null,"Cyber - 2. Current Yr Property Non-Proportional",null,null,null,null,null,null,null,null,{"$f":"'Schedule V(e)'!G319","v":0}]
["Sch Ve","Scenario Tests",null,"Cyber - 2. Current Yr Credit/Surety - Non-Proportional",null,null,null,null,null,null,null,null,{"$f":"'Schedule V(e)'!G325","v":0}]
["Sch Ve","Scenario Tests",null,"Cyber - 2. Current Yr US Casualty",null,null,null,null,null,null,null,null,{"$f":"'Schedule V(e)'!G328","v":0}]
["Sch Ve","Scenario Tests",null,"Cyber - 2. Current Yr International Casualty Non-Motor Non-Proportional",null,null,null,null,null,null,null,null,{"$f":"'Schedule V(e)'!G337","v":0}]
["Sch Ve","Scenario Tests",null,"Cyber - 2. Prior Yr Credit/Surety - Non-Proportional",null,null,null,null,null,null,null,null,{"$f":"'Schedule V(e)'!H325","v":0}]
["Sch Ve","Scenario Tests",null,"Cyber - 2. Prior Yr US Professional Non-Proportional",null,null,null,null,null,null,null,null,{"$f":"'Schedule V(e)'!H331","v":0}]
["Sch Ve","Scenario Tests",null,"Cyber - 2. Prior Yr Health",null,null,null,null,null,null,null,null,{"$f":"'Schedule V(e)'!H340","v":0}]
["Sch Ve","Scenario Tests",null,"Cyber - 2. Claims Made or Occurrence -  Energy Offshore/Marine",null,null,null,null,null,null,null,null,{"$f":"'Schedule V(e)'!I326","v":"Select from Drop-down"}]
["Sch Ve","Scenario Tests",null,"Cyber - 2. Claims Made or Occurrence -  US Professional Non-Proportional",null,null,null,null,null,null,null,null,{"$f":"'Schedule V(e)'!I331","v":"Select from Drop-down"}]
["Sch Ve","Scenario Tests",null,"Cyber - 2. Claims Made or Occurrence -  International Motor Non-Proportional",null,null,null,null,null,null,null,null,{"$f":"'Schedule V(e)'!I335","v":"Select from Drop-down"}]
["Sch Ve","Scenario Tests",null,"Cyber - 3. Net Loss Cover - Cloud Outage",null,null,null,null,null,null,null,null,{"$f":"'Schedule V(e)'!G352","v":0}]
["Sch Ve","Scenario Tests",null,"Cyber - 3. Return Period - Ransomware",null,null,null,null,null,null,null,null,{"$f":"'Schedule V(e)'!J353","v":0}]
["Sch Ve","Scenario Tests",null,"Cyber - 3. 1. Cloud Outage - Gross Coverage - 3. Tech. E&O",null,null,null,null,null,null,null,null,{"$f":"'Schedule V(e)'!E360","v":0}]
["Sch Ve","Scenario Tests",null,"Cyber - 3. 1. Cloud Outage - Net Coverage - 6. Other Lines",null,null,null,null,null,null,null,null,{"$f":"'Schedule V(e)'!F363","v":0}]
["Sch Ve","Scenario Tests",null,"Cyber - 3. 2. Ransomware - Net Coverage - 1. Crime",null,null,null,null,null,null,null,null,{"$f":"'Schedule V(e)'!H358","v":0}]
["Sch Ve","Scenario Tests",null,"Cyber - 3. 3. Data Breach - Gross Coverage - 5. GL / Failure to Supply",null,null,null,null,null,null,null,null,{"$f":"'Schedule V(e)'!I362","v":0}]
["Sch Ve","Scenario Tests",null,"Cyber - 3. Gross Policy Limits",null,null,null,null,null,null,null,null,{"$f":"'Schedule V(e)'!D370","v":0}]
["Sch Ve","Scenario Tests",null,"Cyber - 3. Occurrence Return Limit",null,null,null,null,null,null,null,null,{"$f":"'Schedule V(e)'!D374","v":0}]
["Sch Ve","Scenario Tests",null,"A4) Data centre in Bermuda to host servers",{"$f":"'Schedule V(e)'!L394","v":"Select Yes/No"}]
["Sch Ve","Scenario Tests",null,"A13) Designated IT Risk Manager",{"$f":"'Schedule V(e)'!L406","v":"Select Yes/No"}]
["Sch Ve","Scenario Tests",null,"A17a) Designated Data Privacy Officer details",{"$f":"'Schedule V(e)'!N410","v":"Confirm role holder's name"}]
["Sch Ve","Scenario Tests",null,"B6) Asset Management inventoried",{"$f":"'Schedule V(e)'!L420","v":"Select Yes/No"}]
["Sch Ve","Scenario Tests",null,"B15) Formal process for software changes",{"$f":"'Schedule V(e)'!L430","v":"Select Yes/No"}]
["Sch Ve","Scenario Tests",null,"B21) 4th Line Expertise service for major incident",{"$f":"'Schedule V(e)'!L438","v":"Select Yes/No"}]
["Sch Ve","Scenario Tests",null,"C7) Network IDS/IPS control",{"$f":"'Schedule V(e)'!L451","v":"Select Yes/No"}]
["Sch Ve","Scenario Tests",null,"C8) Internet borne DDOS defence in place",{"$f":"'Schedule V(e)'!L452","v":"Select Yes/No"}]
["Sch Vg","GAAP - BSCR Rec",null,"Assets Fin. Stmts. - Other 3",{"$f":"'Schedule V(g)'!D16","v":0}]
["Sch Vg","GAAP - BSCR Rec",null,"Liab. Fin. Stmts. - Other 1",{"$f":"'Schedule V(g)'!E14","v":0}]
["Sch Vg","GAAP - BSCR Rec",null,"Net. Inc. Fin. Stmts. - Goodwill",{"$f":"'Schedule V(g)'!F12","v":0}]
["Sch Vg","GAAP - BSCR Rec",null,"Net. Inc. Fin. Stmts. - Other 4",{"$f":"'Schedule V(g)'!F17","v":0}]
["Sch Vg","GAAP - BSCR Rec",null,"Assets Form 1SFS - Deferred Tax",{"$f":"'Schedule V(g)'!D37","v":0}]
["Sch Vg","GAAP - BSCR Rec",null,"Assets Form 1SFS - Other 2",{"$f":"'Schedule V(g)'!D46","v":0}]
["Sch Vg","GAAP - BSCR Rec",null,"Assets Form 1SFS - Total",{"$f":"'Schedule V(g)'!D51","v":0}]
["Sch Vg","GAAP - BSCR Rec",null,"Liab. Form 1SFS - Goodwill",{"$f":"'Schedule V(g)'!E36","v":0}]
["Sch Vg","GAAP - BSCR Rec",null,"Liab. Form 1SFS - Other 1",{"$f":"'Schedule V(g)'!E45","v":0}]
["Sch Vg","GAAP - BSCR Rec",null,"Net Inc. Form 1SFS - Contingent Liabilities",{"$f":"'Schedule V(g)'!F35","v":0}]
["Sch Vg","GAAP - BSCR Rec",null,"Net Inc. Form 1SFS - Off Balance Sheet Ins.",{"$f":"'Schedule V(g)'!F42","v":0}]
["Sch Vg","GAAP - BSCR Rec",null,"C&S Form 1SFS - R/I Recoverable",{"$f":"'Schedule V(g)'!G33","v":0}]
["Sch Vg","GAAP - BSCR Rec",null,"C&S Form 1SFS - Off Balance Sheet Ins.",{"$f":"'Schedule V(g)'!G42","v":0}]
["Sch Vk","Deposit Details",null,"# of Deposit Assets & Liabilities",{"$f":"'Schedule V(k)'!E3","v":0}]
["Sch Vk","Deposit Details",null,"Name of Exposure - 9",{"$f":"'Schedule V(k)'!C16","v":0}]
["Sch Vk","Deposit Details",null,"Name of Exposure - 10",{"$f":"'Schedule V(k)'!C17","v":0}]
["Sch Vk","Deposit Details",null,"Name of Exposure - 23",{"$f":"'Schedule V(k)'!C30","v":0}]
["Sch Vk","Deposit Details",null,"Line of Business - 2",{"$f":"'Schedule V(k)'!E9","v":0}]
["Sch Vk","Deposit Details",null,"Line of Business - 11",{"$f":"'Schedule V(k)'!E18","v":0}]
["Sch Vk","Deposit Details",null,"Line of Business - 21",{"$f":"'Schedule V(k)'!E28","v":0}]
["Sch Vk","Deposit Details",null,"Assets in Trust - 3",{"$f":"'Schedule V(k)'!F10","v":0}]
["Sch Vk","Deposit Details",null,"Assets in Trust - 12",{"$f":"'Schedule V(k)'!F19","v":0}]
["Sch Vk","Deposit Details",null,"Assets in Trust - 19",{"$f":"'Schedule V(k)'!F26","v":0}]
["Sch Vk","Deposit Details",null,"Assets in Trust - 21",{"$f":"'Schedule V(k)'!F28","v":0}]
["Sch Vk","Deposit Details",null,"Collateral - 4",{"$f":"'Schedule V(k)'!G11","v":0}]
["Sch Vk","Deposit Details",null,"Collateral - 16",{"$f":"'Schedule V(k)'!G23","v":0}]
["Sch Vk","Deposit Details",null,"Collateral - 21",{"$f":"'Schedule V(k)'!G28","v":0}]
["Sch Vk","Deposit Details",null,"GPW for the Period - 4",{"$f":"'Schedule V(k)'!H11","v":0}]
["Sch Vk","Deposit Details",null,"GPW for the Period - 13",{"$f":"'Schedule V(k)'!H20","v":0}]
["Sch Vk","Deposit Details",null,"GPW for the Period - 21",{"$f":"'Schedule V(k)'!H28","v":0}]
["Sch Vk","Deposit Details",null,"NPW for the Period - 4",{"$f":"'Schedule V(k)'!I11","v":0}]
["Sch Vk","Deposit Details",null,"NPW for the Period - 10",{"$f":"'Schedule V(k)'!I17","v":0}]
["Sch Vk","Deposit Details",null,"NPW for the Period - 13",{"$f":"'Schedule V(k)'!I20","v":0}]
["Sch Vk","Deposit Details",null,"NPW for the Period - 22",{"$f":"'Schedule V(k)'!I29","v":0}]
["Sch Vk","Deposit Details",null,"Exposure - 4",{"$f":"'Schedule V(k)'!J11","v":0}]
["Sch Vk","Deposit Details",null,"Exposure - 13",{"$f":"'Schedule V(k)'!J20","v":0}]
["Sch Vk","Deposit Details",null,"Exposure - 22",{"$f":"'Schedule V(k)'!J29","v":0}]
["Sch Vk","Deposit Details",null,"Limit @ 99.0 TVAR - 5",{"$f":"'Schedule V(k)'!K12","v":0}]
["Sch Vk","Deposit Details",null,"Limit @ 99.0 TVAR - 10",{"$f":"'Schedule V(k)'!K17","v":0}]
["Sch Vk","Deposit Details",null,"Limit @ 99.0 TVAR - 14",{"$f":"'Schedule V(k)'!K21","v":0}]
["Sch Vk","Deposit Details",null,"Limit @ 99.0 TVAR - 23",{"$f":"'Schedule V(k)'!K30","v":0}]
["Sch Vk","Deposit Details",null,"Unlimited Exposure Details - 7",{"$f":"'Schedule V(k)'!L14","v":0}]
["Sch Vk","Deposit Details",null,"Unlimited Exposure Details - 14",{"$f":"'Schedule V(k)'!L21","v":0}]
["Sch Vk","Deposit Details",null,"Unlimited Exposure Details - 23",{"$f":"'Schedule V(k)'!L30","v":0}]
["Sch V(L)","Segregated Acc","(C)","Direct Insurer, Reinsurer or Both - Cell 1",{"$f":"'Schedule V(l)'!D8","v":"Select Premiums Written"}]
["Sch V(L)","Segregated Acc","(M)","Other Liabilities - Cell 1",{"$f":"'Schedule V(l)'!D23","v":0}]
["Sch V(L)","Segregated Acc","(V) ","Capital Returned & Dividends Paid/Payable - Cell 1",{"$f":"'Schedule V(l)'!D37","v":0}]
["Sch V(L)","Segregated Acc","(W) ","Is Collateral required - Cell 1",{"$f":"'Schedule V(l)'!D40","v":"Select Yes/No"}]
["Sch V(L)","Segregated Acc","(AC) ","currency used - Cell 1",{"$f":"'Schedule V(l)'!D51","v":"Select Currency"}]
["Sch V(L)","Segregated Acc","(AI) ","Details of Beneficial Owners of Cell - Cell 1",{"$f":"'Schedule V(l)'!D62","v":"Confirm"}]
["Sch V(L)","Segregated Acc","(AM.1) ","Beneficial Ownership Gov Intrument Det. - Cell 1",{"$f":"'Schedule V(l)'!D68","v":0}]
["Sch V(L)","Segregated Acc","(AQ) ","ii) NPW - Cell 1",{"$f":"'Schedule V(l)'!D81","v":0}]
["Sch V(L)","Segregated Acc","(AQ) ","v) Statutory Line of Business - Cell 1",{"$f":"'Schedule V(l)'!D90","v":"Select Line of Business"}]
["Sch V(L)","Segregated Acc","(AQ) ","v) NPW - Cell 1",{"$f":"'Schedule V(l)'!D93","v":0}]
["Sch V(L)","Segregated Acc","(N)","Statutory Capital - Cell 2",{"$f":"'Schedule V(l)'!E24","v":0}]
["Sch V(L)","Segregated Acc","(O)","Statutory Surplus - Cell 2",{"$f":"'Schedule V(l)'!E25","v":0}]
["Sch V(L)","Segregated Acc","(W) ","Is Collateral required - Cell 2",{"$f":"'Schedule V(l)'!E40","v":"Select Yes/No"}]
["Sch V(L)","Segregated Acc","(AD) ","Cell to Cell Activity  - Cell 2",{"$f":"'Schedule V(l)'!E52","v":"Confirm Activity"}]
["Sch V(L)","Segregated Acc","(AJ) ","Beneficial Owners - Cell 2",{"$f":"'Schedule V(l)'!E63","v":"Confirm"}]
["Sch V(L)","Segregated Acc","(AM.1) ","Beneficial Ownership Gov Intrument Det. - Cell 2",{"$f":"'Schedule V(l)'!E68","v":0}]
["Sch V(L)","Segregated Acc","(AQ) ","iii) Statutory Line of Business - Cell 2",{"$f":"'Schedule V(l)'!E82","v":"Select Line of Business"}]
["Sch V(L)","Segregated Acc","(AQ) ","v) GPW - Cell 2",{"$f":"'Schedule V(l)'!E91","v":0}]
["Sch V(L)","Segregated Acc","(AQ) ","v) NPW - Cell 2",{"$f":"'Schedule V(l)'!E93","v":0}]
["Sch V(L)","Segregated Acc","(G)","Unquoted: Bonds, and Debentures - Cell 3",{"$f":"'Schedule V(l)'!F14","v":0}]
["Sch V(L)","Segregated Acc","(P)","Gross Premiums Written - Cell 3",{"$f":"'Schedule V(l)'!F30","v":0}]
["Sch V(L)","Segregated Acc","(Y) ","Actual collateral posted by Cell/Insurer - Cell 3",{"$f":"'Schedule V(l)'!F42","v":0}]
["Sch V(L)","Segregated Acc","(AF) ","Cell Deficit - Cell 3",{"$f":"'Schedule V(l)'!F56","v":0}]
["Sch V(L)","Segregated Acc","(AK) ","Beneficial Ownership - Cell 3",{"$f":"'Schedule V(l)'!F64","v":"Confirm"}]
["Sch V(L)","Segregated Acc","(AQ) ","i) GPW - Cell 3",{"$f":"'Schedule V(l)'!F75","v":0}]
["Sch V(L)","Segregated Acc","(AQ) ","iii) GPW - Cell 3",{"$f":"'Schedule V(l)'!F83","v":0}]
["Sch V(L)","Segregated Acc","(AQ) ","v) Premiums Ceded - Cell 3",{"$f":"'Schedule V(l)'!F92","v":0}]
["Sch V(L)","Segregated Acc","(AQ) ","v) NPW - Cell 3",{"$f":"'Schedule V(l)'!F93","v":0}]
["Sch V(L)","Segregated Acc","(M)","Other Liabilities - Cell 4",{"$f":"'Schedule V(l)'!G23","v":0}]
["Sch V(L)","Segregated Acc","(Q)","Net Premiums Written - Cell 4",{"$f":"'Schedule V(l)'!G31","v":0}]
["Sch V(L)","Segregated Acc","(Z) ","Primary Cell Funding - Cell 4",{"$f":"'Schedule V(l)'!G44","v":"Select Funding"}]
["Sch V(L)","Segregated Acc","(AF) ","Cell Deficit - Cell 4",{"$f":"'Schedule V(l)'!G56","v":0}]
["Sch V(L)","Segregated Acc","(AK.1) ","Beneficial Ownership Add. Details - Cell 4",{"$f":"'Schedule V(l)'!G65","v":0}]
["Sch V(L)","Segregated Acc","(AQ) ","i) Premiums Ceded - Cell 4",{"$f":"'Schedule V(l)'!G76","v":0}]
["Sch V(L)","Segregated Acc","(AQ) ","iii) GPW - Cell 4",{"$f":"'Schedule V(l)'!G83","v":0}]
["Sch V(L)","Segregated Acc","(AQ) ","iii) NPW - Cell 4",{"$f":"'Schedule V(l)'!G85","v":0}]
["Sch V(L)","Segregated Acc","(A)","Cell Ref # - Cell 5",{"$f":"'Schedule V(l)'!H6","v":0}]
["Sch V(L)","Segregated Acc","(J)","Other Assets - Cell 5",{"$f":"'Schedule V(l)'!H17","v":0}]
["Sch V(L)","Segregated Acc","(R)","Total Income (Insurance and Other) - Cell 5",{"$f":"'Schedule V(l)'!H32","v":0}]
["Sch V(L)","Segregated Acc","(AA) ","Limit of Cell  Funding/ Collateral - Cell 5",{"$f":"'Schedule V(l)'!H45","v":"Confirm Funding / Collateral"}]
["Sch V(L)","Segregated Acc","(AD.1) ","Cell to Cell Activity Details - Cell 5",{"$f":"'Schedule V(l)'!H53","v":0}]
["Sch V(L)","Segregated Acc","(AL) ","Jurisdiction - Cell 5",{"$f":"'Schedule V(l)'!H66","v":"Confirm Jurisdiction"}]
["Sch V(L)","Segregated Acc","(AQ) ","i) NPW - Cell 5",{"$f":"'Schedule V(l)'!H77","v":0}]
["Sch V(L)","Segregated Acc","(AQ) ","ii) Premiums Ceded - Cell 5",{"$f":"'Schedule V(l)'!H80","v":0}]
["Sch V(L)","Segregated Acc","(AQ) ","iv) Statutory Line of Business - Cell 5",{"$f":"'Schedule V(l)'!H86","v":"Select Line of Business"}]
["Sch V(L)","Segregated Acc","(B)","Cell name - Cell 6",{"$f":"'Schedule V(l)'!I7","v":0}]
["Sch V(L)","Segregated Acc","(J)","Other Assets - Cell 6",{"$f":"'Schedule V(l)'!I17","v":0}]
["Sch V(L)","Segregated Acc","(S) ","Net loss and Loss Expenses Incurred - Cell 6",{"$f":"'Schedule V(l)'!I33","v":0}]
["Sch V(L)","Segregated Acc","(AA.1) ","Aggregate Limit Amount - Cell 6",{"$f":"'Schedule V(l)'!I46","v":0}]
["Sch V(L)","Segregated Acc","(AG) ","Additional Capital Support - Cell 6",{"$f":"'Schedule V(l)'!I57","v":"Confirm"}]
["Sch V(L)","Segregated Acc","(AK) ","Beneficial Ownership - Cell 6",{"$f":"'Schedule V(l)'!I64","v":"Confirm"}]
["Sch V(L)","Segregated Acc","(AM.1) ","Beneficial Ownership Gov Intrument Det. - Cell 6",{"$f":"'Schedule V(l)'!I68","v":0}]
["Sch V(L)","Segregated Acc","(AQ) ","ii) GPW - Cell 6",{"$f":"'Schedule V(l)'!I79","v":0}]
["Sch V(L)","Segregated Acc","(AQ) ","iv) Statutory Line of Business - Cell 6",{"$f":"'Schedule V(l)'!I86","v":"Select Line of Business"}]
["Sch V(L)","Segregated Acc","(C)","Direct Insurer, Reinsurer or Both - Cell 7",{"$f":"'Schedule V(l)'!J8","v":"Select Premiums Written"}]
["Sch V(L)","Segregated Acc","(L)","Net Loss & Loss Expense Provisions - Cell 7",{"$f":"'Schedule V(l)'!J22","v":0}]
["Sch V(L)","Segregated Acc","(P)","Gross Premiums Written - Cell 7",{"$f":"'Schedule V(l)'!J30","v":0}]
["Sch V(L)","Segregated Acc","(AA.2) ","Limit of Cell  Funding/ Collateral Details - Cell 7",{"$f":"'Schedule V(l)'!J47","v":0}]
["Sch V(L)","Segregated Acc","(AG.1) ","Additional Capital Support Details - Cell 7",{"$f":"'Schedule V(l)'!J58","v":0}]
["Sch V(L)","Segregated Acc","(AH) ","Details of Beneficial Owners of Risk - Cell 7",{"$f":"'Schedule V(l)'!J61","v":"Confirm"}]
["Sch V(L)","Segregated Acc","(AN) ","Indemnity Provisions - Cell 7",{"$f":"'Schedule V(l)'!J69","v":"Select Yes/No"}]
["Sch V(L)","Segregated Acc","(AQ) ","ii) Premiums Ceded - Cell 7",{"$f":"'Schedule V(l)'!J80","v":0}]
["Sch V(L)","Segregated Acc","(AQ) ","iv) Statutory Line of Business - Cell 7",{"$f":"'Schedule V(l)'!J86","v":"Select Line of Business"}]
["Sch V(L)","Segregated Acc","(D)","Cash and Time Deposits - Cell 8",{"$f":"'Schedule V(l)'!K11","v":0}]
["Sch V(L)","Segregated Acc","(M)","Other Liabilities - Cell 8",{"$f":"'Schedule V(l)'!K23","v":0}]
["Sch V(L)","Segregated Acc","(P)","Gross Premiums Written - Cell 8",{"$f":"'Schedule V(l)'!K30","v":0}]
["Sch V(L)","Segregated Acc","(AB) ","Cell is in Run-Off - Cell 8",{"$f":"'Schedule V(l)'!K50","v":"Select Yes/No"}]
["Sch V(L)","Segregated Acc","(AC) ","currency used - Cell 8",{"$f":"'Schedule V(l)'!K51","v":"Select Currency"}]
["Sch V(L)","Segregated Acc","(AH) ","Details of Beneficial Owners of Risk - Cell 8",{"$f":"'Schedule V(l)'!K61","v":"Confirm"}]
["Sch V(L)","Segregated Acc","(AO) ","Limited recourse  - Cell 8",{"$f":"'Schedule V(l)'!K70","v":"Select Yes/No"}]
["Sch V(L)","Segregated Acc","(AQ) ","ii) NPW - Cell 8",{"$f":"'Schedule V(l)'!K81","v":0}]
["Sch V(L)","Segregated Acc","(AQ) ","iv) Statutory Line of Business - Cell 8",{"$f":"'Schedule V(l)'!K86","v":"Select Line of Business"}]
["Sch V(L)","Segregated Acc","(E)","Quoted: Bonds and Debentures - Cell 9",{"$f":"'Schedule V(l)'!L12","v":0}]
["Sch V(L)","Segregated Acc","(N)","Statutory Capital - Cell 9",{"$f":"'Schedule V(l)'!L24","v":0}]
["Sch V(L)","Segregated Acc","(T) ","Commissions and Brokerage - Cell 9",{"$f":"'Schedule V(l)'!L34","v":0}]
["Sch V(L)","Segregated Acc","(W) ","Is Collateral required - Cell 9",{"$f":"'Schedule V(l)'!L40","v":"Select Yes/No"}]
["Sch V(L)","Segregated Acc","(AD) ","Cell to Cell Activity  - Cell 9",{"$f":"'Schedule V(l)'!L52","v":"Confirm Activity"}]
["Sch V(L)","Segregated Acc","(AJ) ","Beneficial Owners - Cell 9",{"$f":"'Schedule V(l)'!L63","v":"Confirm"}]
["Sch V(L)","Segregated Acc","(AQ) ","i) Premiums Ceded - Cell 9",{"$f":"'Schedule V(l)'!L76","v":0}]
["Sch V(L)","Segregated Acc","(AQ) ","iii) Statutory Line of Business - Cell 9",{"$f":"'Schedule V(l)'!L82","v":"Select Line of Business"}]
["Sch V(L)","Segregated Acc","(AQ) ","v) GPW - Cell 9",{"$f":"'Schedule V(l)'!L91","v":0}]
["Sch V(L)","Segregated Acc","(F)","Quoted: Equites and Other - Cell 10",{"$f":"'Schedule V(l)'!M13","v":0}]
["Sch V(L)","Segregated Acc","(O)","Statutory Surplus - Cell 10",{"$f":"'Schedule V(l)'!M25","v":0}]
["Sch V(L)","Segregated Acc","(P)","Gross Premiums Written - Cell 10",{"$f":"'Schedule V(l)'!M30","v":0}]
["Sch V(L)","Segregated Acc","(AA.2) ","Limit of Cell  Funding/ Collateral Details - Cell 10",{"$f":"'Schedule V(l)'!M47","v":0}]
["Sch V(L)","Segregated Acc","(AD.1) ","Cell to Cell Activity Details - Cell 10",{"$f":"'Schedule V(l)'!M53","v":0}]
["Sch V(L)","Segregated Acc","(AK) ","Beneficial Ownership - Cell 10",{"$f":"'Schedule V(l)'!M64","v":"Confirm"}]
["Sch V(L)","Segregated Acc","(AP) ","Operational Risk Mitigants - Cell 10",{"$f":"'Schedule V(l)'!M71","v":"Confirm Mitigants & Attach Support"}]
["Sch V(L)","Segregated Acc","(AQ) ","iii) GPW - Cell 10",{"$f":"'Schedule V(l)'!M83","v":0}]
["Sch V(L)","Segregated Acc","(AQ) ","v) Premiums Ceded - Cell 10",{"$f":"'Schedule V(l)'!M92","v":0}]
["Sch V(L)","Segregated Acc","(C)","Direct Insurer, Reinsurer or Both - Cell 11",{"$f":"'Schedule V(l)'!N8","v":"Select Premiums Written"}]
["Sch V(L)","Segregated Acc","(H)","Investments in and Advances to Affiliates - Cell 11",{"$f":"'Schedule V(l)'!N15","v":0}]
["Sch V(L)","Segregated Acc","(Q)","Net Premiums Written - Cell 11",{"$f":"'Schedule V(l)'!N31","v":0}]
["Sch V(L)","Segregated Acc","(Z) ","Primary Cell Funding - Cell 11",{"$f":"'Schedule V(l)'!N44","v":"Select Funding"}]
["Sch V(L)","Segregated Acc","(AE) ","General Cell to Cell Activity - Cell 11",{"$f":"'Schedule V(l)'!N54","v":"Confirm Activity"}]
["Sch V(L)","Segregated Acc","(AK.1) ","Beneficial Ownership Add. Details - Cell 11",{"$f":"'Schedule V(l)'!N65","v":0}]
["Sch V(L)","Segregated Acc","(AP) ","Operational Risk Mitigants - Cell 11",{"$f":"'Schedule V(l)'!N71","v":"Confirm Mitigants & Attach Support"}]
["Sch V(L)","Segregated Acc","(AQ) ","iii) Premiums Ceded - Cell 11",{"$f":"'Schedule V(l)'!N84","v":0}]
["Sch V(L)","Segregated Acc","(AQ) ","v) NPW - Cell 11",{"$f":"'Schedule V(l)'!N93","v":0}]
["Sch V(L)","Segregated Acc","(C)","Direct Insurer, Reinsurer or Both - Cell 12",{"$f":"'Schedule V(l)'!O8","v":"Select Premiums Written"}]
["Sch V(L)","Segregated Acc","(I)","Funds Held by Ceding Reinsurers - Cell 12",{"$f":"'Schedule V(l)'!O16","v":0}]
["Sch V(L)","Segregated Acc","(R)","Total Income (Insurance and Other) - Cell 12",{"$f":"'Schedule V(l)'!O32","v":0}]
["Sch V(L)","Segregated Acc","(Z) ","Primary Cell Funding - Cell 12",{"$f":"'Schedule V(l)'!O44","v":"Select Funding"}]
["Sch V(L)","Segregated Acc","(AE.1) ","General Cell to Cell Activity Details - Cell 12",{"$f":"'Schedule V(l)'!O55","v":0}]
["Sch V(L)","Segregated Acc","(AL) ","Jurisdiction - Cell 12",{"$f":"'Schedule V(l)'!O66","v":"Confirm Jurisdiction"}]
["Sch V(L)","Segregated Acc","(AQ) ","i) NPW - Cell 12",{"$f":"'Schedule V(l)'!O77","v":0}]
["Sch V(L)","Segregated Acc","(AQ) ","ii) GPW - Cell 12",{"$f":"'Schedule V(l)'!O79","v":0}]
["Sch V(L)","Segregated Acc","(AQ) ","iv) Statutory Line of Business - Cell 12",{"$f":"'Schedule V(l)'!O86","v":"Select Line of Business"}]
["Sch V(L)","Segregated Acc","(B)","Cell name - Cell 13",{"$f":"'Schedule V(l)'!P7","v":0}]
["Sch V(L)","Segregated Acc","(I)","Funds Held by Ceding Reinsurers - Cell 13",{"$f":"'Schedule V(l)'!P16","v":0}]
["Sch V(L)","Segregated Acc","(S) ","Net loss and Loss Expenses Incurred - Cell 13",{"$f":"'Schedule V(l)'!P33","v":0}]
["Sch V(L)","Segregated Acc","(AA.1) ","Aggregate Limit Amount - Cell 13",{"$f":"'Schedule V(l)'!P46","v":0}]
["Sch V(L)","Segregated Acc","(AD) ","Cell to Cell Activity  - Cell 13",{"$f":"'Schedule V(l)'!P52","v":"Confirm Activity"}]
["Sch V(L)","Segregated Acc","(AM) ","Beneficial Ownership Gov Intrument - Cell 13",{"$f":"'Schedule V(l)'!P67","v":"Confirm Instrument"}]
["Sch V(L)","Segregated Acc","(AQ) ","ii) Statutory Line of Business - Cell 13",{"$f":"'Schedule V(l)'!P78","v":"Select Line of Business"}]
["Sch V(L)","Segregated Acc","(AQ) ","ii) GPW - Cell 13",{"$f":"'Schedule V(l)'!P79","v":0}]
["Sch V(L)","Segregated Acc","(AQ) ","iv) GPW - Cell 13",{"$f":"'Schedule V(l)'!P87","v":0}]
["Sch V(L)","Segregated Acc","(C)","Direct Insurer, Reinsurer or Both - Cell 14",{"$f":"'Schedule V(l)'!Q8","v":"Select Premiums Written"}]
["Sch V(L)","Segregated Acc","(I)","Funds Held by Ceding Reinsurers - Cell 14",{"$f":"'Schedule V(l)'!Q16","v":0}]
["Sch V(L)","Segregated Acc","(T) ","Commissions and Brokerage - Cell 14",{"$f":"'Schedule V(l)'!Q34","v":0}]
["Sch V(L)","Segregated Acc","(AA.2) ","Limit of Cell Funding/ Collateral Details - Cell 14",{"$f":"'Schedule V(l)'!Q47","v":0}]
["Sch V(L)","Segregated Acc","(AF) ","Cell Deficit - Cell 14",{"$f":"'Schedule V(l)'!Q56","v":0}]
["Sch V(L)","Segregated Acc","(AM.1) ","Beneficial Ownership Gov Intrument Det. - Cell 14",{"$f":"'Schedule V(l)'!Q68","v":0}]
["Sch V(L)","Segregated Acc","(AN) ","Indemnity Provisions - Cell 14",{"$f":"'Schedule V(l)'!Q69","v":"Select Yes/No"}]
["Sch V(L)","Segregated Acc","(AQ) ","iii) GPW - Cell 14",{"$f":"'Schedule V(l)'!Q83","v":0}]
["Sch V(L)","Segregated Acc","(AQ) ","iv) Premiums Ceded - Cell 14",{"$f":"'Schedule V(l)'!Q88","v":0}]
["Sch V(L)","Segregated Acc","(D)","Cash and Time Deposits - Cell 15",{"$f":"'Schedule V(l)'!R11","v":0}]
["Sch V(L)","Segregated Acc","(M)","Other Liabilities - Cell 15",{"$f":"'Schedule V(l)'!R23","v":0}]
["Sch V(L)","Segregated Acc","(U) ","Other Expenses - Cell 15",{"$f":"'Schedule V(l)'!R35","v":0}]
["Sch V(L)","Segregated Acc","(AB) ","Cell  in Run-Off - Cell 15",{"$f":"'Schedule V(l)'!R50","v":"Select Yes/No"}]
["Sch V(L)","Segregated Acc","(AF) ","Cell Deficit - Cell 15",{"$f":"'Schedule V(l)'!R56","v":0}]
["Sch V(L)","Segregated Acc","(AH) ","Details of Beneficial Owners of Risk - Cell 15",{"$f":"'Schedule V(l)'!R61","v":"Confirm"}]
["Sch V(L)","Segregated Acc","(AO) ","Limited recourse  - Cell 15",{"$f":"'Schedule V(l)'!R70","v":"Select Yes/No"}]
["Sch V(L)","Segregated Acc","(AQ) ","ii) NPW - Cell 15",{"$f":"'Schedule V(l)'!R81","v":0}]
["Sch V(L)","Segregated Acc","(AQ) ","iv) NPW - Cell 15",{"$f":"'Schedule V(l)'!R89","v":0}]
["Sch V(L)","Segregated Acc","(E)","Quoted: Bonds and Debentures - Cell 16",{"$f":"'Schedule V(l)'!S12","v":0}]
["Sch V(L)","Segregated Acc","(N)","Statutory Capital - Cell 16",{"$f":"'Schedule V(l)'!S24","v":0}]
["Sch V(L)","Segregated Acc","(S) ","Net loss and Loss Expenses Incurred - Cell 16",{"$f":"'Schedule V(l)'!S33","v":0}]
["Sch V(L)","Segregated Acc","(AC) ","currency used - Cell 16",{"$f":"'Schedule V(l)'!S51","v":"Select Currency"}]
["Sch V(L)","Segregated Acc","(AD) ","Cell to Cell Activity  - Cell 16",{"$f":"'Schedule V(l)'!S52","v":"Confirm Activity"}]
["Sch V(L)","Segregated Acc","(AK) ","Beneficial Ownership - Cell 16",{"$f":"'Schedule V(l)'!S64","v":"Confirm"}]
["Sch V(L)","Segregated Acc","(AP) ","Operational Risk Mitigants - Cell 16",{"$f":"'Schedule V(l)'!S71","v":"Confirm Mitigants & Attach Support"}]
["Sch V(L)","Segregated Acc","(AQ) ","iii) Statutory Line of Business - Cell 16",{"$f":"'Schedule V(l)'!S82","v":"Select Line of Business"}]
["Sch V(L)","Segregated Acc","(AQ) ","iv) NPW - Cell 16",{"$f":"'Schedule V(l)'!S89","v":0}]
["Sch V(L)","Segregated Acc","(F)","Quoted: Equites and Other - Cell 17",{"$f":"'Schedule V(l)'!T13","v":0}]
["Sch V(L)","Segregated Acc","(O)","Statutory Surplus - Cell 17",{"$f":"'Schedule V(l)'!T25","v":0}]
["Sch V(L)","Segregated Acc","(S) ","Net loss and Loss Expenses Incurred - Cell 17",{"$f":"'Schedule V(l)'!T33","v":0}]
["Sch V(L)","Segregated Acc","(X) ","Collateral required to be posted by Cell/Insurer - Cell 17",{"$f":"'Schedule V(l)'!T41","v":0}]
["Sch V(L)","Segregated Acc","(AD.1) ","Cell to Cell Activity Details - Cell 17",{"$f":"'Schedule V(l)'!T53","v":0}]
["Sch V(L)","Segregated Acc","(AK) ","Beneficial Ownership - Cell 17",{"$f":"'Schedule V(l)'!T64","v":"Confirm"}]
["Sch V(L)","Segregated Acc","(AQ) ","i) Statutory Line of Business - Cell 17",{"$f":"'Schedule V(l)'!T74","v":"Select Line of Business"}]
["Sch V(L)","Segregated Acc","(AQ) ","iii) GPW - Cell 17",{"$f":"'Schedule V(l)'!T83","v":0}]
["Sch V(L)","Segregated Acc","(AQ) ","iv) NPW - Cell 17",{"$f":"'Schedule V(l)'!T89","v":0}]
["Sch V(L)","Segregated Acc","(G)","Unquoted: Bonds, and Debentures - Cell 18",{"$f":"'Schedule V(l)'!U14","v":0}]
["Sch V(L)","Segregated Acc","(P)","Gross Premiums Written - Cell 18",{"$f":"'Schedule V(l)'!U30","v":0}]
["Sch V(L)","Segregated Acc","(W) ","Is Collateral required - Cell 18",{"$f":"'Schedule V(l)'!U40","v":"Select Yes/No"}]
["Sch V(L)","Segregated Acc","(Y) ","Actual collateral posted by Cell/Insurer - Cell 18",{"$f":"'Schedule V(l)'!U42","v":0}]
["Sch V(L)","Segregated Acc","(AE) ","General Cell to Cell Activity - Cell 18",{"$f":"'Schedule V(l)'!U54","v":"Confirm Activity"}]
["Sch V(L)","Segregated Acc","(AM.1) ","Beneficial Ownership Gov Intrument Det. - Cell 18",{"$f":"'Schedule V(l)'!U68","v":0}]
["Sch V(L)","Segregated Acc","(AQ) ","i) GPW - Cell 18",{"$f":"'Schedule V(l)'!U75","v":0}]
["Sch V(L)","Segregated Acc","(AQ) ","iii) Premiums Ceded - Cell 18",{"$f":"'Schedule V(l)'!U84","v":0}]
["Sch V(L)","Segregated Acc","(AQ) ","v) NPW - Cell 18",{"$f":"'Schedule V(l)'!U93","v":0}]
["Sch V(L)","Segregated Acc","(B)","Cell name - Cell 19",{"$f":"'Schedule V(l)'!V7","v":0}]
["Sch V(L)","Segregated Acc","(I)","Funds Held by Ceding Reinsurers - Cell 19",{"$f":"'Schedule V(l)'!V16","v":0}]
["Sch V(L)","Segregated Acc","(R)","Total Income (Insurance and Other) - Cell 19",{"$f":"'Schedule V(l)'!V32","v":0}]
["Sch V(L)","Segregated Acc","(Y) ","Actual collateral posted by Cell/Insurer - Cell 19",{"$f":"'Schedule V(l)'!V42","v":0}]
["Sch V(L)","Segregated Acc","(AE.1) ","General Cell to Cell Activity Details - Cell 19",{"$f":"'Schedule V(l)'!V55","v":0}]
["Sch V(L)","Segregated Acc","(AL) ","Jurisdiction - Cell 19",{"$f":"'Schedule V(l)'!V66","v":"Confirm Jurisdiction"}]
["Sch V(L)","Segregated Acc","(AQ) ","i) Premiums Ceded - Cell 19",{"$f":"'Schedule V(l)'!V76","v":0}]
["Sch V(L)","Segregated Acc","(AQ) ","iii) NPW - Cell 19",{"$f":"'Schedule V(l)'!V85","v":0}]
["Sch V(L)","Segregated Acc","(A)","Cell Ref # - Cell 20",{"$f":"'Schedule V(l)'!W6","v":0}]
["Sch V(L)","Segregated Acc","(F)","Quoted: Equites and Other - Cell 20",{"$f":"'Schedule V(l)'!W13","v":0}]
["Sch V(L)","Segregated Acc","(J)","Other Assets - Cell 20",{"$f":"'Schedule V(l)'!W17","v":0}]
["Sch V(L)","Segregated Acc","(S) ","Net loss and Loss Expenses Incurred - Cell 20",{"$f":"'Schedule V(l)'!W33","v":0}]
["Sch V(L)","Segregated Acc","(AA.2) ","Limit of Cell  Funding/ Collateral Details - Cell 20",{"$f":"'Schedule V(l)'!W47","v":0}]
["Sch V(L)","Segregated Acc","(AF) ","Cell Deficit - Cell 20",{"$f":"'Schedule V(l)'!W56","v":0}]
["Sch V(L)","Segregated Acc","(AM) ","Beneficial Ownership Gov Intrument - Cell 20",{"$f":"'Schedule V(l)'!W67","v":"Confirm Instrument"}]
["Sch V(L)","Segregated Acc","(AQ) ","i) Premiums Ceded - Cell 20",{"$f":"'Schedule V(l)'!W76","v":0}]
["Sch V(L)","Segregated Acc","(AQ) ","iv) Statutory Line of Business - Cell 20",{"$f":"'Schedule V(l)'!W86","v":"Select Line of Business"}]
["Sch V(L)","Segregated Acc","(AQ) ","iv) GPW - Cell 20",{"$f":"'Schedule V(l)'!W87","v":0}]
["Sch V(L)","Segregated Acc","(F)","Quoted: Equites and Other - Cell 21",{"$f":"'Schedule V(l)'!X13","v":0}]
["Sch V(L)","Segregated Acc","(K)","Unearned Premiums - Cell 21",{"$f":"'Schedule V(l)'!X21","v":0}]
["Sch V(L)","Segregated Acc","(T) ","Commissions and Brokerage - Cell 21",{"$f":"'Schedule V(l)'!X34","v":0}]
["Sch V(L)","Segregated Acc","(AA.2) ","Limit of Cell 2 Funding/ Collateral Details - Cell 21",{"$f":"'Schedule V(l)'!X47","v":0}]
["Sch V(L)","Segregated Acc","(AG) ","Additional Capital Support - Cell 21",{"$f":"'Schedule V(l)'!X57","v":"Confirm"}]
["Sch V(L)","Segregated Acc","(AM.1) ","Beneficial Ownership Gov Intrument Det. - Cell 21",{"$f":"'Schedule V(l)'!X68","v":0}]
["Sch V(L)","Segregated Acc","(AQ) ","i) Premiums Ceded - Cell 21",{"$f":"'Schedule V(l)'!X76","v":0}]
["Sch V(L)","Segregated Acc","(AQ) ","ii) GPW - Cell 21",{"$f":"'Schedule V(l)'!X79","v":0}]
["Sch V(L)","Segregated Acc","(AQ) ","iv) Premiums Ceded - Cell 21",{"$f":"'Schedule V(l)'!X88","v":0}]
["Sch V(L)","Segregated Acc","(D)","Cash and Time Deposits - Cell 22",{"$f":"'Schedule V(l)'!Y11","v":0}]
["Sch V(L)","Segregated Acc","(L)","Net Loss & Loss Expense Provisions - Cell 22",{"$f":"'Schedule V(l)'!Y22","v":0}]
["Sch V(L)","Segregated Acc","(U) ","Other Expenses - Cell 22",{"$f":"'Schedule V(l)'!Y35","v":0}]
["Sch V(L)","Segregated Acc","(AB) ","Cell  in Run-Off - Cell 22",{"$f":"'Schedule V(l)'!Y50","v":"Select Yes/No"}]
["Sch V(L)","Segregated Acc","(AE.1) ","General Cell to Cell Activity Details - Cell 22",{"$f":"'Schedule V(l)'!Y55","v":0}]
["Sch V(L)","Segregated Acc","(AN) ","Indemnity Provisions - Cell 22",{"$f":"'Schedule V(l)'!Y69","v":"Select Yes/No"}]
["Sch V(L)","Segregated Acc","(AO) ","Limited recourse  - Cell 22",{"$f":"'Schedule V(l)'!Y70","v":"Select Yes/No"}]
["Sch V(L)","Segregated Acc","(AQ) ","iii) Statutory Line of Business - Cell 22",{"$f":"'Schedule V(l)'!Y82","v":"Select Line of Business"}]
["Sch V(L)","Segregated Acc","(AQ) ","iv) NPW - Cell 22",{"$f":"'Schedule V(l)'!Y89","v":0}]
["Sch V(L)","Segregated Acc","(E)","Quoted: Bonds and Debentures - Cell 23",{"$f":"'Schedule V(l)'!Z12","v":0}]
["Sch V(L)","Segregated Acc","(L)","Net Loss & Loss Expense Provisions - Cell 23",{"$f":"'Schedule V(l)'!Z22","v":0}]
["Sch V(L)","Segregated Acc","(V) ","Capital Returned & Dividends Paid/Payable - Cell 23",{"$f":"'Schedule V(l)'!Z37","v":0}]
["Sch V(L)","Segregated Acc","(AC) ","currency used - Cell 23",{"$f":"'Schedule V(l)'!Z51","v":"Select Currency"}]
["Sch V(L)","Segregated Acc","(AH) ","Details of Beneficial Owners of Risk - Cell 23",{"$f":"'Schedule V(l)'!Z61","v":"Confirm"}]
["Sch V(L)","Segregated Acc","(AI) ","Details of Beneficial Owners of Cell 2- Cell 23",{"$f":"'Schedule V(l)'!Z62","v":"Confirm"}]
["Sch V(L)","Segregated Acc","(AP) ","Operational Risk Mitigants - Cell 23",{"$f":"'Schedule V(l)'!Z71","v":"Confirm Mitigants & Attach Support"}]
["Sch V(L)","Segregated Acc","(AQ) ","iv) Statutory Line of Business - Cell 23",{"$f":"'Schedule V(l)'!Z86","v":"Select Line of Business"}]
["Sch V(L)","Segregated Acc","(AQ) ","v) Statutory Line of Business - Cell 23",{"$f":"'Schedule V(l)'!Z90","v":"Select Line of Business"}]
["Sch V(L)","Segregated Acc","(F)","Quoted: Equites and Other - Cell 24",{"$f":"'Schedule V(l)'!AA13","v":0}]
["Sch V(L)","Segregated Acc","(P)","Gross Premiums Written - Cell 24",{"$f":"'Schedule V(l)'!AA30","v":0}]
["Sch V(L)","Segregated Acc","(W) ","Is Collateral required - Cell 24",{"$f":"'Schedule V(l)'!AA40","v":"Select Yes/No"}]
["Sch V(L)","Segregated Acc","(AD) ","Cell to Cell Activity  - Cell 24",{"$f":"'Schedule V(l)'!AA52","v":"Confirm Activity"}]
["Sch V(L)","Segregated Acc","(AH) ","Details of Beneficial Owners of Risk - Cell 24",{"$f":"'Schedule V(l)'!AA61","v":"Confirm"}]
["Sch V(L)","Segregated Acc","(AJ) ","Beneficial Owners - Cell 24",{"$f":"'Schedule V(l)'!AA63","v":"Confirm"}]
["Sch V(L)","Segregated Acc","(AQ) ","i) Statutory Line of Business - Cell 24",{"$f":"'Schedule V(l)'!AA74","v":"Select Line of Business"}]
["Sch V(L)","Segregated Acc","(AQ) ","iv) Statutory Line of Business - Cell 24",{"$f":"'Schedule V(l)'!AA86","v":"Select Line of Business"}]
["Sch V(L)","Segregated Acc","(AQ) ","v) GPW - Cell 24",{"$f":"'Schedule V(l)'!AA91","v":0}]
["Sch V(L)","Segregated Acc","(G)","Unquoted: Bonds, and Debentures - Cell 25",{"$f":"'Schedule V(l)'!AB14","v":0}]
["Sch V(L)","Segregated Acc","(P)","Gross Premiums Written - Cell 25",{"$f":"'Schedule V(l)'!AB30","v":0}]
["Sch V(L)","Segregated Acc","(V) ","Capital Returned & Dividends Paid/Payable - Cell 25",{"$f":"'Schedule V(l)'!AB37","v":0}]
["Sch V(L)","Segregated Acc","(Y) ","Actual collateral posted by Cell/Insurer - Cell 25",{"$f":"'Schedule V(l)'!AB42","v":0}]
["Sch V(L)","Segregated Acc","(AE) ","General Cell to Cell Activity - Cell 25",{"$f":"'Schedule V(l)'!AB54","v":"Confirm Activity"}]
["Sch V(L)","Segregated Acc","(AM) ","Beneficial Ownership Gov Intrument - Cell 25",{"$f":"'Schedule V(l)'!AB67","v":"Confirm Instrument"}]
["Sch V(L)","Segregated Acc","(AQ) ","i) GPW - Cell 25",{"$f":"'Schedule V(l)'!AB75","v":0}]
["Sch V(L)","Segregated Acc","(AQ) ","iii) Premiums Ceded - Cell 25",{"$f":"'Schedule V(l)'!AB84","v":0}]
["Sch V(L)","Segregated Acc","(AQ) ","v) Premiums Ceded - Cell 25",{"$f":"'Schedule V(l)'!AB92","v":0}]
["Sch V(L)","Segregated Acc",null,"i) GPW - Gen Acc.",{"$f":"'Schedule V(l)'!BE75","v":0}]
["Sch V(L)","Segregated Acc",null,"iii) Premiums Ceded - Gen Acc.",{"$f":"'Schedule V(l)'!BE84","v":0}]
["Sch V(L)","Segregated Acc",null,"iv) NPW - Gen Acc.",{"$f":"'Schedule V(l)'!BE89","v":0}]
["Sch V(L)","Segregated Acc",null,"v) NPW - Gen Acc.",{"$f":"'Schedule V(l)'!BE93","v":0}]
["Sch V(m)","Alternative Capital",null,"Name of Cedant - 1",{"$f":"'Schedule V(m)'!B11","v":0}]
["Sch V(m)","Alternative Capital",null,"Name of Cedant - 11",{"$f":"'Schedule V(m)'!B21","v":0}]
["Sch V(m)","Alternative Capital",null,"Name of Cedant - 18",{"$f":"'Schedule V(m)'!B28","v":0}]
["Sch V(m)","Alternative Capital",null,"Contract Reference - 2",{"$f":"'Schedule V(m)'!C12","v":0}]
["Sch V(m)","Alternative Capital",null,"Contract Reference - 9",{"$f":"'Schedule V(m)'!C19","v":0}]
["Sch V(m)","Alternative Capital",null,"Contract Reference - 19",{"$f":"'Schedule V(m)'!C29","v":0}]
["Sch V(m)","Alternative Capital",null,"Contract Reference - 20",{"$f":"'Schedule V(m)'!C30","v":0}]
["Sch V(m)","Alternative Capital",null,"Type of Coverage - 4",{"$f":"'Schedule V(m)'!D14","v":"Select from Drop Down"}]
["Sch V(m)","Alternative Capital",null,"Type of Coverage - 12",{"$f":"'Schedule V(m)'!D22","v":"Select from Drop Down"}]
["Sch V(m)","Alternative Capital",null,"Type of Coverage - 21",{"$f":"'Schedule V(m)'!D31","v":"Select from Drop Down"}]
["Sch V(m)","Alternative Capital",null,"Statutory Line of Business - 2",{"$f":"'Schedule V(m)'!E12","v":"Select from Drop Down"}]
["Sch V(m)","Alternative Capital",null,"Statutory Line of Business - 13",{"$f":"'Schedule V(m)'!E23","v":"Select from Drop Down"}]
["Sch V(m)","Alternative Capital",null,"Statutory Line of Business - 22",{"$f":"'Schedule V(m)'!E32","v":"Select from Drop Down"}]
["Sch V(m)","Alternative Capital",null,"Statutory Line of Business - 25",{"$f":"'Schedule V(m)'!E35","v":"Select from Drop Down"}]
["Sch V(m)","Alternative Capital",null,"Location of Coverage - 6",{"$f":"'Schedule V(m)'!F16","v":"Select from Drop Down"}]
["Sch V(m)","Alternative Capital",null,"Location of Coverage - 15",{"$f":"'Schedule V(m)'!F25","v":"Select from Drop Down"}]
["Sch V(m)","Alternative Capital",null,"Location of Coverage - 24",{"$f":"'Schedule V(m)'!F34","v":"Select from Drop Down"}]
["Sch V(m)","Alternative Capital",null,"Agg. Max. Limit at Inception - 7",{"$f":"'Schedule V(m)'!G17","v":0}]
["Sch V(m)","Alternative Capital",null,"Agg. Max. Limit at Inception - 16",{"$f":"'Schedule V(m)'!G26","v":0}]
["Sch V(m)","Alternative Capital",null,"Agg. Max. Limit at Inception - 25",{"$f":"'Schedule V(m)'!G35","v":0}]
["Sch V(m)","Alternative Capital",null,"Net Agg. Max. Limit at End of Year - 4",{"$f":"'Schedule V(m)'!H14","v":0}]
["Sch V(m)","Alternative Capital",null,"Net Agg. Max. Limit at End of Year - 16",{"$f":"'Schedule V(m)'!H26","v":0}]
["Sch V(m)","Alternative Capital",null,"Net Agg. Max. Limit at End of Year - 17",{"$f":"'Schedule V(m)'!H27","v":0}]
["Sch V(m)","Alternative Capital",null,"Inception Date of Cover Period - 5",{"$f":"'Schedule V(m)'!I15","v":""}]
["Sch V(m)","Alternative Capital",null,"Inception Date of Cover Period - 8",{"$f":"'Schedule V(m)'!I18","v":""}]
["Sch V(m)","Alternative Capital",null,"Inception Date of Cover Period - 17",{"$f":"'Schedule V(m)'!I27","v":""}]
["Sch V(m)","Alternative Capital",null,"Effective Date of Contract - 3",{"$f":"'Schedule V(m)'!J13","v":""}]
["Sch V(m)","Alternative Capital",null,"Effective Date of Contract - 9",{"$f":"'Schedule V(m)'!J19","v":""}]
["Sch V(m)","Alternative Capital",null,"Effective Date of Contract - 18",{"$f":"'Schedule V(m)'!J28","v":""}]
["Sch V(m)","Alternative Capital",null,"Expiry Date of Cover - 1",{"$f":"'Schedule V(m)'!K11","v":""}]
["Sch V(m)","Alternative Capital",null,"Expiry Date of Cover - 2",{"$f":"'Schedule V(m)'!K12","v":""}]
["Sch V(m)","Alternative Capital",null,"Expiry Date of Cover - 11",{"$f":"'Schedule V(m)'!K21","v":""}]
["Sch V(m)","Alternative Capital",null,"Expiry Date of Cover - 24",{"$f":"'Schedule V(m)'!K34","v":""}]
["Sch V(m)","Alternative Capital",null,"Cover Period GPW - 3",{"$f":"'Schedule V(m)'!L13","v":0}]
["Sch V(m)","Alternative Capital",null,"Cover Period GPW - 12",{"$f":"'Schedule V(m)'!L22","v":0}]
["Sch V(m)","Alternative Capital",null,"Cover Period GPW - 22",{"$f":"'Schedule V(m)'!L32","v":0}]
["Sch V(m)","Alternative Capital",null,"Cover Period NPW - 3",{"$f":"'Schedule V(m)'!M13","v":0}]
["Sch V(m)","Alternative Capital",null,"Cover Period NPW - 12",{"$f":"'Schedule V(m)'!M22","v":0}]
["Sch V(m)","Alternative Capital",null,"Cover Period NPW - 19",{"$f":"'Schedule V(m)'!M29","v":0}]
["Sch V(m)","Alternative Capital",null,"Cover Period NPW - 21",{"$f":"'Schedule V(m)'!M31","v":0}]
["Sch V(m)","Alternative Capital",null,"Attachment Point - 4",{"$f":"'Schedule V(m)'!N14","v":0}]
["Sch V(m)","Alternative Capital",null,"Attachment Point - 13",{"$f":"'Schedule V(m)'!N23","v":0}]
["Sch V(m)","Alternative Capital",null,"Attachment Point - 21",{"$f":"'Schedule V(m)'!N31","v":0}]
["Sch V(m)","Alternative Capital",null,"Aggregate Losses Beg. Of Year - 4",{"$f":"'Schedule V(m)'!O14","v":0}]
["Sch V(m)","Alternative Capital",null,"Aggregate Losses Beg. Of Year - 13",{"$f":"'Schedule V(m)'!O23","v":0}]
["Sch V(m)","Alternative Capital",null,"Aggregate Losses Beg. Of Year - 19",{"$f":"'Schedule V(m)'!O29","v":0}]
["Sch V(m)","Alternative Capital",null,"Aggregate Losses Beg. Of Year - 22",{"$f":"'Schedule V(m)'!O32","v":0}]
["Sch V(m)","Alternative Capital",null,"Aggregate Losses Incurred - 5",{"$f":"'Schedule V(m)'!P15","v":0}]
["Sch V(m)","Alternative Capital",null,"Aggregate Losses Incurred - 16",{"$f":"'Schedule V(m)'!P26","v":0}]
["Sch V(m)","Alternative Capital",null,"Aggregate Losses Incurred - 22",{"$f":"'Schedule V(m)'!P32","v":0}]
["Sch V(m)","Alternative Capital",null,"Aggregate Losses End Of Year - 5",{"$f":"'Schedule V(m)'!Q15","v":0}]
["Sch V(m)","Alternative Capital",null,"Aggregate Losses End Of Year - 13",{"$f":"'Schedule V(m)'!Q23","v":0}]
["Sch V(m)","Alternative Capital",null,"Aggregate Losses End Of Year - 22",{"$f":"'Schedule V(m)'!Q32","v":0}]
["Sch V(m)","Alternative Capital",null,"Collateral Reserve Buffer - 5",{"$f":"'Schedule V(m)'!R15","v":0}]
["Sch V(m)","Alternative Capital",null,"Collateral Reserve Buffer - 10",{"$f":"'Schedule V(m)'!R20","v":0}]
["Sch V(m)","Alternative Capital",null,"Collateral Reserve Buffer - 14",{"$f":"'Schedule V(m)'!R24","v":0}]
["Sch V(m)","Alternative Capital",null,"Collateral Reserve Buffer - 23",{"$f":"'Schedule V(m)'!R33","v":0}]
["Sch V(m)","Alternative Capital",null,"Currency of Exposure - 4",{"$f":"'Schedule V(m)'!S14","v":"Select from Drop Down"}]
["Sch V(m)","Alternative Capital",null,"Currency of Exposure - 14",{"$f":"'Schedule V(m)'!S24","v":"Select from Drop Down"}]
["Sch V(m)","Alternative Capital",null,"Currency of Exposure - 23",{"$f":"'Schedule V(m)'!S33","v":"Select from Drop Down"}]
["Sch V(m)","Alternative Capital",null,"Nature of Collateral - 2",{"$f":"'Schedule V(m)'!T12","v":"Select from Drop Down"}]
["Sch V(m)","Alternative Capital",null,"Nature of Collateral - 15",{"$f":"'Schedule V(m)'!T25","v":"Select from Drop Down"}]
["Sch V(m)","Alternative Capital",null,"Nature of Collateral - 16",{"$f":"'Schedule V(m)'!T26","v":"Select from Drop Down"}]
["Sch V(m)","Alternative Capital",null,"Nature of Collateral - 25",{"$f":"'Schedule V(m)'!T35","v":"Select from Drop Down"}]
["Sch V(m)","Alternative Capital",null,"Collateral Rating - 8",{"$f":"'Schedule V(m)'!U18","v":"Select from Drop Down"}]
["Sch V(m)","Alternative Capital",null,"Collateral Rating - 17",{"$f":"'Schedule V(m)'!U27","v":"Select from Drop Down"}]
["Sch V(m)","Alternative Capital",null,"Collateral Rating - 23",{"$f":"'Schedule V(m)'!U33","v":"Select from Drop Down"}]
["Sch V(m)","Alternative Capital",null,"Amount of Collateral - 9",{"$f":"'Schedule V(m)'!V19","v":0}]
["Sch V(m)","Alternative Capital",null,"Amount of Collateral - 18",{"$f":"'Schedule V(m)'!V28","v":0}]
["Sch V(m)","Alternative Capital",null,"Amount of Collateral - 21",{"$f":"'Schedule V(m)'!V31","v":0}]
["Sch V(m)","Alternative Capital",null,"Comments - 1",{"$f":"'Schedule V(m)'!W11","v":0}]
["Sch V(m)","Alternative Capital",null,"Comments - 10",{"$f":"'Schedule V(m)'!W20","v":0}]
["Sch V(m)","Alternative Capital",null,"Comments - 19",{"$f":"'Schedule V(m)'!W29","v":0}]
["Sch VI","Assets",null,"(A) Cash - Asset Type - 3",null,null,null,null,null,null,null,null,{"$f":"'Schedule VI'!B15","v":"Select"}]
["Sch VI","Assets",null,"(A) Cash - Asset Type - 8",null,null,null,null,null,null,null,null,{"$f":"'Schedule VI'!B20","v":"Select"}]
["Sch VI","Assets",null,"(A) Cash - Asset Type - 17",null,null,null,null,null,null,null,null,{"$f":"'Schedule VI'!B29","v":"Select"}]
["Sch VI","Assets",null,"(A) Cash - Jurisdiction - 6",null,null,null,null,null,null,null,null,{"$f":"'Schedule VI'!C18","v":"Select"}]
["Sch VI","Assets",null,"(A) Cash - Jurisdiction - 14",null,null,null,null,null,null,null,null,{"$f":"'Schedule VI'!C26","v":"Select"}]
["Sch VI","Assets",null,"(A) Cash - Jurisdiction - 15",null,null,null,null,null,null,null,null,{"$f":"'Schedule VI'!C27","v":"Select"}]
["Sch VI","Assets",null,"(A) Cash - BSCR Rating - 9",null,null,null,null,null,null,null,null,{"$f":"'Schedule VI'!D21","v":"Select"}]
["Sch VI","Assets",null,"(A) Cash - BSCR Rating - 12",null,null,null,null,null,null,null,null,{"$f":"'Schedule VI'!D24","v":"Select"}]
["Sch VI","Assets",null,"(A) Cash - Face Value - 1",null,null,null,null,null,null,null,null,{"$f":"'Schedule VI'!E13","v":0}]
["Sch VI","Assets",null,"(A) Cash - Face Value - 12",null,null,null,null,null,null,null,null,{"$f":"'Schedule VI'!E24","v":0}]
["Sch VI","Assets",null,"(A) Cash - Face Value - 18",null,null,null,null,null,null,null,null,{"$f":"'Schedule VI'!E30","v":0}]
["Sch VI","Assets",null,"(A) Cash - Fair Value - 7",null,null,null,null,null,null,null,null,{"$f":"'Schedule VI'!F19","v":0}]
["Sch VI","Assets",null,"(A) Cash - Fair Value - 15",null,null,null,null,null,null,null,null,{"$f":"'Schedule VI'!F27","v":0}]
["Sch VI","Assets",null,"(A) Cash - Fair Value - 16",null,null,null,null,null,null,null,null,{"$f":"'Schedule VI'!F28","v":0}]
["Sch VI","Assets",null,"(B) Bonds - Asset Type - 4",null,null,null,null,null,null,null,null,{"$f":"'Schedule VI'!B49","v":"Select"}]
["Sch VI","Assets",null,"(B) Bonds - Asset Type - 17",null,null,null,null,null,null,null,null,{"$f":"'Schedule VI'!B62","v":"Select"}]
["Sch VI","Assets",null,"(B) Bonds - Jurisdiction - 1",null,null,null,null,null,null,null,null,{"$f":"'Schedule VI'!C46","v":"Select"}]
["Sch VI","Assets",null,"(B) Bonds - Jurisdiction - 10",null,null,null,null,null,null,null,null,{"$f":"'Schedule VI'!C55","v":"Select"}]
["Sch VI","Assets",null,"(B) Bonds - Jurisdiction - 17",null,null,null,null,null,null,null,null,{"$f":"'Schedule VI'!C62","v":"Select"}]
["Sch VI","Assets",null,"(B) Bonds - BSCR Rating - 7",null,null,null,null,null,null,null,null,{"$f":"'Schedule VI'!D52","v":"Select"}]
["Sch VI","Assets",null,"(B) Bonds - BSCR Rating - 16",null,null,null,null,null,null,null,null,{"$f":"'Schedule VI'!D61","v":"Select"}]
["Sch VI","Assets",null,"(B) Bonds - BSCR Rating - 20",null,null,null,null,null,null,null,null,{"$f":"'Schedule VI'!D65","v":"Select"}]
["Sch VI","Assets",null,"(B) Bonds - Face Value - 5",null,null,null,null,null,null,null,null,{"$f":"'Schedule VI'!E50","v":0}]
["Sch VI","Assets",null,"(B) Bonds - Face Value - 14",null,null,null,null,null,null,null,null,{"$f":"'Schedule VI'!E59","v":0}]
["Sch VI","Assets",null,"(B) Bonds - Fair Value - 3",null,null,null,null,null,null,null,null,{"$f":"'Schedule VI'!F48","v":0}]
["Sch VI","Assets",null,"(B) Bonds - Fair Value - 11",null,null,null,null,null,null,null,null,{"$f":"'Schedule VI'!F56","v":0}]
["Sch VI","Assets",null,"(B) Bonds - Fair Value - 20",null,null,null,null,null,null,null,null,{"$f":"'Schedule VI'!F65","v":0}]
["Sch VI","Assets",null,"(B) Bonds - Average YTM - 9",null,null,null,null,null,null,null,null,{"$f":"'Schedule VI'!G54","v":0}]
["Sch VI","Assets",null,"(B) Bonds - Average YTM - 15",null,null,null,null,null,null,null,null,{"$f":"'Schedule VI'!G60","v":0}]
["Sch VI","Assets",null,"(B) Bonds - Average YTM - 18",null,null,null,null,null,null,null,null,{"$f":"'Schedule VI'!G63","v":0}]
["Sch VI","Assets",null,"(B) Bonds - Effective Duration - 7",null,null,null,null,null,null,null,null,{"$f":"'Schedule VI'!H52","v":0}]
["Sch VI","Assets",null,"(B) Bonds - Effective Duration - 15",null,null,null,null,null,null,null,null,{"$f":"'Schedule VI'!H60","v":0}]
["Sch VI","Assets",null,"(B) Bonds - Effective Convexity - 4",null,null,null,null,null,null,null,null,{"$f":"'Schedule VI'!I49","v":0}]
["Sch VI","Assets",null,"(B) Bonds - Effective Convexity - 13",null,null,null,null,null,null,null,null,{"$f":"'Schedule VI'!I58","v":0}]
["Sch VI","Assets",null,"(B) Bonds - Effective Convexity - 18",null,null,null,null,null,null,null,null,{"$f":"'Schedule VI'!I63","v":0}]
["Sch VI","Assets",null,"(C) Securities - Asset Type - 9",null,null,null,null,null,null,null,null,{"$f":"'Schedule VI'!B83","v":"Select"}]
["Sch VI","Assets",null,"(C) Securities - Asset Type - 18",null,null,null,null,null,null,null,null,{"$f":"'Schedule VI'!B92","v":"Select"}]
["Sch VI","Assets",null,"(C) Securities - Asset Type - 20",null,null,null,null,null,null,null,null,{"$f":"'Schedule VI'!B94","v":"Select"}]
["Sch VI","Assets",null,"(C) Securities - Jurisdiction - 7",null,null,null,null,null,null,null,null,{"$f":"'Schedule VI'!C81","v":"Select"}]
["Sch VI","Assets",null,"(C) Securities - Jurisdiction - 16",null,null,null,null,null,null,null,null,{"$f":"'Schedule VI'!C90","v":"Select"}]
["Sch VI","Assets",null,"(C) Securities - BSCR Rating - 3",null,null,null,null,null,null,null,null,{"$f":"'Schedule VI'!D77","v":"Select"}]
["Sch VI","Assets",null,"(C) Securities - BSCR Rating - 13",null,null,null,null,null,null,null,null,{"$f":"'Schedule VI'!D87","v":"Select"}]
["Sch VI","Assets",null,"(C) Securities - Face Value - 2",null,null,null,null,null,null,null,null,{"$f":"'Schedule VI'!E76","v":0}]
["Sch VI","Assets",null,"(C) Securities - Face Value - 6",null,null,null,null,null,null,null,null,{"$f":"'Schedule VI'!E80","v":0}]
["Sch VI","Assets",null,"(C) Securities - Face Value - 19",null,null,null,null,null,null,null,null,{"$f":"'Schedule VI'!E93","v":0}]
["Sch VI","Assets",null,"(C) Securities - Face Value - 20",null,null,null,null,null,null,null,null,{"$f":"'Schedule VI'!E94","v":0}]
["Sch VI","Assets",null,"(C) Securities - Fair Value - 9",null,null,null,null,null,null,null,null,{"$f":"'Schedule VI'!F83","v":0}]
["Sch VI","Assets",null,"(C) Securities - Fair Value - 17",null,null,null,null,null,null,null,null,{"$f":"'Schedule VI'!F91","v":0}]
["Sch VI","Assets",null,"(C) Securities - Average YTM - 6",null,null,null,null,null,null,null,null,{"$f":"'Schedule VI'!G80","v":0}]
["Sch VI","Assets",null,"(C) Securities - Average YTM - 12",null,null,null,null,null,null,null,null,{"$f":"'Schedule VI'!G86","v":0}]
["Sch VI","Assets",null,"(C) Securities - Effective Duration - 3",null,null,null,null,null,null,null,null,{"$f":"'Schedule VI'!H77","v":0}]
["Sch VI","Assets",null,"(C) Securities - Effective Duration - 12",null,null,null,null,null,null,null,null,{"$f":"'Schedule VI'!H86","v":0}]
["Sch VI","Assets",null,"(C) Securities - Effective Duration - 19",null,null,null,null,null,null,null,null,{"$f":"'Schedule VI'!H93","v":0}]
["Sch VI","Assets",null,"(C) Securities - Effective Convexity - 1",null,null,null,null,null,null,null,null,{"$f":"'Schedule VI'!I75","v":0}]
["Sch VI","Assets",null,"(C) Securities - Effective Convexity - 10",null,null,null,null,null,null,null,null,{"$f":"'Schedule VI'!I84","v":0}]
["Sch VI","Assets",null,"(C) Securities - Effective Convexity - 19",null,null,null,null,null,null,null,null,{"$f":"'Schedule VI'!I93","v":0}]
["Sch VI","Assets",null,"(D) Equities - Asset Type - 10",null,null,null,null,null,null,null,null,{"$f":"'Schedule VI'!B117","v":"Select"}]
["Sch VI","Assets",null,"(D) Equities - Asset Type - 15",null,null,null,null,null,null,null,null,{"$f":"'Schedule VI'!B122","v":"Select"}]
["Sch VI","Assets",null,"(D) Equities - Stock Exchange - 4",null,null,null,null,null,null,null,null,{"$f":"'Schedule VI'!C111","v":0}]
["Sch VI","Assets",null,"(D) Equities - Stock Exchange - 13",null,null,null,null,null,null,null,null,{"$f":"'Schedule VI'!C120","v":0}]
["Sch VI","Assets",null,"(D) Equities - BSCR Rating - 1",null,null,null,null,null,null,null,null,{"$f":"'Schedule VI'!D108","v":"Select"}]
["Sch VI","Assets",null,"(D) Equities - BSCR Rating - 2",null,null,null,null,null,null,null,null,{"$f":"'Schedule VI'!D109","v":"Select"}]
["Sch VI","Assets",null,"(D) Equities - BSCR Rating - 16",null,null,null,null,null,null,null,null,{"$f":"'Schedule VI'!D123","v":"Select"}]
["Sch VI","Assets",null,"(D) Equities - BSCR Rating - 19",null,null,null,null,null,null,null,null,{"$f":"'Schedule VI'!D126","v":"Select"}]
["Sch VI","Assets",null,"(D) Equities - Face Value - 8",null,null,null,null,null,null,null,null,{"$f":"'Schedule VI'!E115","v":0}]
["Sch VI","Assets",null,"(D) Equities - Face Value - 16",null,null,null,null,null,null,null,null,{"$f":"'Schedule VI'!E123","v":0}]
["Sch VI","Assets",null,"(D) Equities - Fair Value - 5",null,null,null,null,null,null,null,null,{"$f":"'Schedule VI'!F112","v":0}]
["Sch VI","Assets",null,"(D) Equities - Fair Value - 14",null,null,null,null,null,null,null,null,{"$f":"'Schedule VI'!F121","v":0}]
["Sch VI","Assets",null,"(D) Equities - Fair Value - 19",null,null,null,null,null,null,null,null,{"$f":"'Schedule VI'!F126","v":0}]
["Sch VI","Assets",null,"(E) Alternative - Asset Type - 2",null,null,null,null,null,null,null,null,{"$f":"'Schedule VI'!B143","v":"Select"}]
["Sch VI","Assets",null,"(E) Alternative - Asset Type - 11",null,null,null,null,null,null,null,null,{"$f":"'Schedule VI'!B152","v":"Select"}]
["Sch VI","Assets",null,"(E) Alternative - Jurisdiction - 1",null,null,null,null,null,null,null,null,{"$f":"'Schedule VI'!C142","v":"Select"}]
["Sch VI","Assets",null,"(E) Alternative - Jurisdiction - 8",null,null,null,null,null,null,null,null,{"$f":"'Schedule VI'!C149","v":"Select"}]
["Sch VI","Assets",null,"(E) Alternative - Jurisdiction - 17",null,null,null,null,null,null,null,null,{"$f":"'Schedule VI'!C158","v":"Select"}]
["Sch VI","Assets",null,"(E) Alternative - BSCR Rating - 4",null,null,null,null,null,null,null,null,{"$f":"'Schedule VI'!D145","v":"Select"}]
["Sch VI","Assets",null,"(E) Alternative - BSCR Rating - 14",null,null,null,null,null,null,null,null,{"$f":"'Schedule VI'!D155","v":"Select"}]
["Sch VI","Assets",null,"(E) Alternative - Face Value - 3",null,null,null,null,null,null,null,null,{"$f":"'Schedule VI'!E144","v":0}]
["Sch VI","Assets",null,"(E) Alternative - Face Value - 7",null,null,null,null,null,null,null,null,{"$f":"'Schedule VI'!E148","v":0}]
["Sch VI","Assets",null,"(E) Alternative - Face Value - 12",null,null,null,null,null,null,null,null,{"$f":"'Schedule VI'!E153","v":0}]
["Sch VI","Assets",null,"(E) Alternative - Fair Value - 1",null,null,null,null,null,null,null,null,{"$f":"'Schedule VI'!F142","v":0}]
["Sch VI","Assets",null,"(E) Alternative - Fair Value - 10",null,null,null,null,null,null,null,null,{"$f":"'Schedule VI'!F151","v":0}]
["Sch VI","Assets",null,"(E) Alternative - Fair Value - 18",null,null,null,null,null,null,null,null,{"$f":"'Schedule VI'!F159","v":0}]
["Sch VI","Assets",null,"(E) Alternative - Average YTM - 7",null,null,null,null,null,null,null,null,{"$f":"'Schedule VI'!G148","v":0}]
["Sch VI","Assets",null,"(E) Alternative - Average YTM - 13",null,null,null,null,null,null,null,null,{"$f":"'Schedule VI'!G154","v":0}]
["Sch VI","Assets",null,"(E) Alternative - Effective Duration - 4",null,null,null,null,null,null,null,null,{"$f":"'Schedule VI'!H145","v":0}]
["Sch VI","Assets",null,"(E) Alternative - Effective Duration - 5",null,null,null,null,null,null,null,null,{"$f":"'Schedule VI'!H146","v":0}]
["Sch VI","Assets",null,"(E) Alternative - Effective Duration - 14",null,null,null,null,null,null,null,null,{"$f":"'Schedule VI'!H155","v":0}]
["Sch VI","Assets",null,"(E) Alternative - Effective Convexity - 2",null,null,null,null,null,null,null,null,{"$f":"'Schedule VI'!I143","v":0}]
["Sch VI","Assets",null,"(E) Alternative - Effective Convexity - 11",null,null,null,null,null,null,null,null,{"$f":"'Schedule VI'!I152","v":0}]
["Sch VI","Assets",null,"(E) Alternative - Effective Convexity - 20",null,null,null,null,null,null,null,null,{"$f":"'Schedule VI'!I161","v":0}]
["Sch VI","Assets",null,"(F) Loans - Asset Type - 4",null,null,null,null,null,null,null,null,{"$f":"'Schedule VI'!B178","v":"Select"}]
["Sch VI","Assets",null,"(F) Loans - Asset Type - 16",null,null,null,null,null,null,null,null,{"$f":"'Schedule VI'!B190","v":"Select"}]
["Sch VI","Assets",null,"(F) Loans - Jurisdiction - 5",null,null,null,null,null,null,null,null,{"$f":"'Schedule VI'!C179","v":"Select"}]
["Sch VI","Assets",null,"(F) Loans - Jurisdiction - 7",null,null,null,null,null,null,null,null,{"$f":"'Schedule VI'!C181","v":"Select"}]
["Sch VI","Assets",null,"(F) Loans - Jurisdiction - 14",null,null,null,null,null,null,null,null,{"$f":"'Schedule VI'!C188","v":"Select"}]
["Sch VI","Assets",null,"(F) Loans - BSCR Rating - 3",null,null,null,null,null,null,null,null,{"$f":"'Schedule VI'!D177","v":"Select"}]
["Sch VI","Assets",null,"(F) Loans - BSCR Rating - 10",null,null,null,null,null,null,null,null,{"$f":"'Schedule VI'!D184","v":"Select"}]
["Sch VI","Assets",null,"(F) Loans - BSCR Rating - 20",null,null,null,null,null,null,null,null,{"$f":"'Schedule VI'!D194","v":"Select"}]
["Sch VI","Assets",null,"(F) Loans - Face Value - 9",null,null,null,null,null,null,null,null,{"$f":"'Schedule VI'!E183","v":0}]
["Sch VI","Assets",null,"(F) Loans - Face Value - 17",null,null,null,null,null,null,null,null,{"$f":"'Schedule VI'!E191","v":0}]
["Sch VI","Assets",null,"(F) Loans - Fair Value - 6",null,null,null,null,null,null,null,null,{"$f":"'Schedule VI'!F180","v":0}]
["Sch VI","Assets",null,"(F) Loans - Fair Value - 7",null,null,null,null,null,null,null,null,{"$f":"'Schedule VI'!F181","v":0}]
["Sch VI","Assets",null,"(F) Loans - Fair Value - 20",null,null,null,null,null,null,null,null,{"$f":"'Schedule VI'!F194","v":0}]
["Sch VI","Assets",null,"(F) Loans - Average YTM - 4",null,null,null,null,null,null,null,null,{"$f":"'Schedule VI'!G178","v":0}]
["Sch VI","Assets",null,"(F) Loans - Average YTM - 13",null,null,null,null,null,null,null,null,{"$f":"'Schedule VI'!G187","v":0}]
["Sch VI","Assets",null,"(F) Loans - Effective Duration - 3",null,null,null,null,null,null,null,null,{"$f":"'Schedule VI'!H177","v":0}]
["Sch VI","Assets",null,"(F) Loans - Effective Duration - 10",null,null,null,null,null,null,null,null,{"$f":"'Schedule VI'!H184","v":0}]
["Sch VI","Assets",null,"(F) Loans - Effective Duration - 19",null,null,null,null,null,null,null,null,{"$f":"'Schedule VI'!H193","v":0}]
["Sch VI","Assets",null,"(F) Loans - Effective Convexity - 6",null,null,null,null,null,null,null,null,{"$f":"'Schedule VI'!I180","v":0}]
["Sch VI","Assets",null,"(F) Loans - Effective Convexity - 8",null,null,null,null,null,null,null,null,{"$f":"'Schedule VI'!I182","v":0}]
["Sch VI","Assets",null,"(F) Loans - Effective Convexity - 17",null,null,null,null,null,null,null,null,{"$f":"'Schedule VI'!I191","v":0}]
["Sch VI","Assets",null,"(G) Real Estate - Asset Type - 8",null,null,null,null,null,null,null,null,{"$f":"'Schedule VI'!B216","v":"Select"}]
["Sch VI","Assets",null,"(G) Real Estate - Asset Type - 13",null,null,null,null,null,null,null,null,{"$f":"'Schedule VI'!B221","v":"Select"}]
["Sch VI","Assets",null,"(G) Real Estate - Jurisdiction - 2",null,null,null,null,null,null,null,null,{"$f":"'Schedule VI'!C210","v":"Select"}]
["Sch VI","Assets",null,"(G) Real Estate - Jurisdiction - 11",null,null,null,null,null,null,null,null,{"$f":"'Schedule VI'!C219","v":"Select"}]
["Sch VI","Assets",null,"(G) Real Estate - Jurisdiction - 17",null,null,null,null,null,null,null,null,{"$f":"'Schedule VI'!C225","v":"Select"}]
["Sch VI","Assets",null,"(G) Real Estate - Purpose - 8",null,null,null,null,null,null,null,null,{"$f":"'Schedule VI'!D216","v":"Select"}]
["Sch VI","Assets",null,"(G) Real Estate - Purpose - 9",null,null,null,null,null,null,null,null,{"$f":"'Schedule VI'!D217","v":"Select"}]
["Sch VI","Assets",null,"(G) Real Estate - Purpose - 20",null,null,null,null,null,null,null,null,{"$f":"'Schedule VI'!D228","v":"Select"}]
["Sch VI","Assets",null,"(G) Real Estate - Face Value - 6",null,null,null,null,null,null,null,null,{"$f":"'Schedule VI'!E214","v":0}]
["Sch VI","Assets",null,"(G) Real Estate - Face Value - 15",null,null,null,null,null,null,null,null,{"$f":"'Schedule VI'!E223","v":0}]
["Sch VI","Assets",null,"(G) Real Estate - Fair Value - 3",null,null,null,null,null,null,null,null,{"$f":"'Schedule VI'!F211","v":0}]
["Sch VI","Assets",null,"(G) Real Estate - Fair Value - 12",null,null,null,null,null,null,null,null,{"$f":"'Schedule VI'!F220","v":0}]
["Sch VI","Assets",null,"(H) Derivatives - # of Asset Types",null,null,null,null,null,null,null,null,{"$f":"'Schedule VI'!D238","v":0}]
["Sch VI","Assets",null,"(H) Derivatives - Derivative Type - 5",null,null,null,null,null,null,null,null,{"$f":"'Schedule VI'!B245","v":"Select"}]
["Sch VI","Assets",null,"(H) Derivatives - Derivative Type - 9",null,null,null,null,null,null,null,null,{"$f":"'Schedule VI'!B249","v":"Select"}]
["Sch VI","Assets",null,"(H) Derivatives - Derivative Type - 18",null,null,null,null,null,null,null,null,{"$f":"'Schedule VI'!B258","v":"Select"}]
["Sch VI","Assets",null,"(H) Derivatives - Underlying - 8",null,null,null,null,null,null,null,null,{"$f":"'Schedule VI'!C248","v":"Select"}]
["Sch VI","Assets",null,"(H) Derivatives - Underlying - 15",null,null,null,null,null,null,null,null,{"$f":"'Schedule VI'!C255","v":"Select"}]
["Sch VI","Assets",null,"(H) Derivatives - Purpose - 4",null,null,null,null,null,null,null,null,{"$f":"'Schedule VI'!D244","v":"Select"}]
["Sch VI","Assets",null,"(H) Derivatives - Purpose - 11",null,null,null,null,null,null,null,null,{"$f":"'Schedule VI'!D251","v":"Select"}]
["Sch VI","Assets",null,"(H) Derivatives - Position - 1",null,null,null,null,null,null,null,null,{"$f":"'Schedule VI'!E241","v":"Select"}]
["Sch VI","Assets",null,"(H) Derivatives - Position - 10",null,null,null,null,null,null,null,null,{"$f":"'Schedule VI'!E250","v":"Select"}]
["Sch VI","Assets",null,"(H) Derivatives - Position - 11",null,null,null,null,null,null,null,null,{"$f":"'Schedule VI'!E251","v":"Select"}]
["Sch VI","Assets",null,"(H) Derivatives - Position - 19",null,null,null,null,null,null,null,null,{"$f":"'Schedule VI'!E259","v":"Select"}]
["Sch VI","Assets",null,"(H) Derivatives - Market Value - 8",null,null,null,null,null,null,null,null,{"$f":"'Schedule VI'!F248","v":0}]
["Sch VI","Assets",null,"(H) Derivatives - Market Value - 14",null,null,null,null,null,null,null,null,{"$f":"'Schedule VI'!F254","v":0}]
["Sch VI","Assets",null,"(H) Derivatives - Centrally Cleared - 5",null,null,null,null,null,null,null,null,{"$f":"'Schedule VI'!G245","v":"Select"}]
["Sch VI","Assets",null,"(H) Derivatives - Centrally Cleared - 14",null,null,null,null,null,null,null,null,{"$f":"'Schedule VI'!G254","v":"Select"}]
["Sch VI","Assets",null,"(H) Derivatives - Centrally Cleared - 17",null,null,null,null,null,null,null,null,{"$f":"'Schedule VI'!G257","v":"Select"}]
["Sch VI","Assets",null,"(H) Derivatives - Notional Value - 11",null,null,null,null,null,null,null,null,{"$f":"'Schedule VI'!H251","v":0}]
["Sch VI","Assets",null,"(H) Derivatives - Notional Value - 12",null,null,null,null,null,null,null,null,{"$f":"'Schedule VI'!H252","v":0}]
["Sch VI","Assets",null,"(H) Derivatives - Exposure - 1",null,null,null,null,null,null,null,null,{"$f":"'Schedule VI'!I241","v":0}]
["Sch VI","Assets",null,"(H) Derivatives - Exposure - 9",null,null,null,null,null,null,null,null,{"$f":"'Schedule VI'!I249","v":0}]
["Sch VI","Assets",null,"(H) Derivatives - Exposure - 18",null,null,null,null,null,null,null,null,{"$f":"'Schedule VI'!I258","v":0}]
["Sch VI","Assets",null,"(I) Other - Asset Type - 6",null,null,null,null,null,null,null,null,{"$f":"'Schedule VI'!B280","v":"Select"}]
["Sch VI","Assets",null,"(I) Other - Asset Type - 11",null,null,null,null,null,null,null,null,{"$f":"'Schedule VI'!B285","v":"Select"}]
["Sch VI","Assets",null,"(I) Other - Jurisdiction - 3",null,null,null,null,null,null,null,null,{"$f":"'Schedule VI'!C277","v":"Select"}]
["Sch VI","Assets",null,"(I) Other - Jurisdiction - 12",null,null,null,null,null,null,null,null,{"$f":"'Schedule VI'!C286","v":"Select"}]
["Sch VI","Assets",null,"(I) Other - Jurisdiction - 18",null,null,null,null,null,null,null,null,{"$f":"'Schedule VI'!C292","v":"Select"}]
["Sch VI","Assets",null,"(I) Other - BSCR Rating - 1",null,null,null,null,null,null,null,null,{"$f":"'Schedule VI'!D275","v":"Select"}]
["Sch VI","Assets",null,"(I) Other - BSCR Rating - 10",null,null,null,null,null,null,null,null,{"$f":"'Schedule VI'!D284","v":"Select"}]
["Sch VI","Assets",null,"(I) Other - Face Value - 1",null,null,null,null,null,null,null,null,{"$f":"'Schedule VI'!E275","v":0}]
["Sch VI","Assets",null,"(I) Other - Face Value - 7",null,null,null,null,null,null,null,null,{"$f":"'Schedule VI'!E281","v":0}]
["Sch VI","Assets",null,"(I) Other - Face Value - 16",null,null,null,null,null,null,null,null,{"$f":"'Schedule VI'!E290","v":0}]
["Sch VI","Assets",null,"(I) Other - Fair Value - 4",null,null,null,null,null,null,null,null,{"$f":"'Schedule VI'!F278","v":0}]
["Sch VI","Assets",null,"(I) Other - Fair Value - 13",null,null,null,null,null,null,null,null,{"$f":"'Schedule VI'!F287","v":0}]
["Sch VI","Assets",null,"(I) Other - Fair Value - 14",null,null,null,null,null,null,null,null,{"$f":"'Schedule VI'!F288","v":0}]
["Sch VIA","Funds Held by Ceding Reinsurers",null,"(A) Cash - Asset Type - 3",null,null,null,null,null,null,null,null,{"$f":"'Schedule VIA'!B15","v":"Select"}]
["Sch VIA","Funds Held by Ceding Reinsurers",null,"(A) Cash - Asset Type - 7",null,null,null,null,null,null,null,null,{"$f":"'Schedule VIA'!B19","v":"Select"}]
["Sch VIA","Funds Held by Ceding Reinsurers",null,"(A) Cash - Asset Type - 16",null,null,null,null,null,null,null,null,{"$f":"'Schedule VIA'!B28","v":"Select"}]
["Sch VIA","Funds Held by Ceding Reinsurers",null,"(A) Cash - Jurisdiction - 6",null,null,null,null,null,null,null,null,{"$f":"'Schedule VIA'!C18","v":"Select"}]
["Sch VIA","Funds Held by Ceding Reinsurers",null,"(A) Cash - Jurisdiction - 13",null,null,null,null,null,null,null,null,{"$f":"'Schedule VIA'!C25","v":"Select"}]
["Sch VIA","Funds Held by Ceding Reinsurers",null,"(A) Cash - BSCR Rating - 2",null,null,null,null,null,null,null,null,{"$f":"'Schedule VIA'!D14","v":"Select"}]
["Sch VIA","Funds Held by Ceding Reinsurers",null,"(A) Cash - BSCR Rating - 9",null,null,null,null,null,null,null,null,{"$f":"'Schedule VIA'!D21","v":"Select"}]
["Sch VIA","Funds Held by Ceding Reinsurers",null,"(A) Cash - BSCR Rating - 11",null,null,null,null,null,null,null,null,{"$f":"'Schedule VIA'!D23","v":"Select"}]
["Sch VIA","Funds Held by Ceding Reinsurers",null,"(A) Cash - BSCR Rating - 20",null,null,null,null,null,null,null,null,{"$f":"'Schedule VIA'!D32","v":"Select"}]
["Sch VIA","Funds Held by Ceding Reinsurers",null,"(A) Cash - Face Value - 9",null,null,null,null,null,null,null,null,{"$f":"'Schedule VIA'!E21","v":0}]
["Sch VIA","Funds Held by Ceding Reinsurers",null,"(A) Cash - Face Value - 17",null,null,null,null,null,null,null,null,{"$f":"'Schedule VIA'!E29","v":0}]
["Sch VIA","Funds Held by Ceding Reinsurers",null,"(A) Cash - Fair Value - 6",null,null,null,null,null,null,null,null,{"$f":"'Schedule VIA'!F18","v":0}]
["Sch VIA","Funds Held by Ceding Reinsurers",null,"(A) Cash - Fair Value - 15",null,null,null,null,null,null,null,null,{"$f":"'Schedule VIA'!F27","v":0}]
["Sch VIA","Funds Held by Ceding Reinsurers",null,"(B) Bonds - # of Asset Types",null,null,null,null,null,null,null,null,{"$f":"'Schedule VIA'!D42","v":0}]
["Sch VIA","Funds Held by Ceding Reinsurers",null,"(B) Bonds - Asset Type - 11",null,null,null,null,null,null,null,null,{"$f":"'Schedule VIA'!B56","v":"Select"}]
["Sch VIA","Funds Held by Ceding Reinsurers",null,"(B) Bonds - Asset Type - 12",null,null,null,null,null,null,null,null,{"$f":"'Schedule VIA'!B57","v":"Select"}]
["Sch VIA","Funds Held by Ceding Reinsurers",null,"(B) Bonds - Jurisdiction - 3",null,null,null,null,null,null,null,null,{"$f":"'Schedule VIA'!C48","v":"Select"}]
["Sch VIA","Funds Held by Ceding Reinsurers",null,"(B) Bonds - Jurisdiction - 9",null,null,null,null,null,null,null,null,{"$f":"'Schedule VIA'!C54","v":"Select"}]
["Sch VIA","Funds Held by Ceding Reinsurers",null,"(B) Bonds - Jurisdiction - 18",null,null,null,null,null,null,null,null,{"$f":"'Schedule VIA'!C63","v":"Select"}]
["Sch VIA","Funds Held by Ceding Reinsurers",null,"(B) Bonds - BSCR Rating - 6",null,null,null,null,null,null,null,null,{"$f":"'Schedule VIA'!D51","v":"Select"}]
["Sch VIA","Funds Held by Ceding Reinsurers",null,"(B) Bonds - BSCR Rating - 15",null,null,null,null,null,null,null,null,{"$f":"'Schedule VIA'!D60","v":"Select"}]
["Sch VIA","Funds Held by Ceding Reinsurers",null,"(B) Bonds - Face Value - 4",null,null,null,null,null,null,null,null,{"$f":"'Schedule VIA'!E49","v":0}]
["Sch VIA","Funds Held by Ceding Reinsurers",null,"(B) Bonds - Face Value - 9",null,null,null,null,null,null,null,null,{"$f":"'Schedule VIA'!E54","v":0}]
["Sch VIA","Funds Held by Ceding Reinsurers",null,"(B) Bonds - Face Value - 13",null,null,null,null,null,null,null,null,{"$f":"'Schedule VIA'!E58","v":0}]
["Sch VIA","Funds Held by Ceding Reinsurers",null,"(B) Bonds - Fair Value - 2",null,null,null,null,null,null,null,null,{"$f":"'Schedule VIA'!F47","v":0}]
["Sch VIA","Funds Held by Ceding Reinsurers",null,"(B) Bonds - Fair Value - 9",null,null,null,null,null,null,null,null,{"$f":"'Schedule VIA'!F54","v":0}]
["Sch VIA","Funds Held by Ceding Reinsurers",null,"(B) Bonds - Fair Value - 19",null,null,null,null,null,null,null,null,{"$f":"'Schedule VIA'!F64","v":0}]
["Sch VIA","Funds Held by Ceding Reinsurers",null,"(B) Bonds - Average YTM - 8",null,null,null,null,null,null,null,null,{"$f":"'Schedule VIA'!G53","v":0}]
["Sch VIA","Funds Held by Ceding Reinsurers",null,"(B) Bonds - Average YTM - 12",null,null,null,null,null,null,null,null,{"$f":"'Schedule VIA'!G57","v":0}]
["Sch VIA","Funds Held by Ceding Reinsurers",null,"(B) Bonds - Effective Duration - 5",null,null,null,null,null,null,null,null,{"$f":"'Schedule VIA'!H50","v":0}]
["Sch VIA","Funds Held by Ceding Reinsurers",null,"(B) Bonds - Effective Duration - 14",null,null,null,null,null,null,null,null,{"$f":"'Schedule VIA'!H59","v":0}]
["Sch VIA","Funds Held by Ceding Reinsurers",null,"(B) Bonds - Effective Duration - 15",null,null,null,null,null,null,null,null,{"$f":"'Schedule VIA'!H60","v":0}]
["Sch VIA","Funds Held by Ceding Reinsurers",null,"(B) Bonds - Effective Convexity - 3",null,null,null,null,null,null,null,null,{"$f":"'Schedule VIA'!I48","v":0}]
["Sch VIA","Funds Held by Ceding Reinsurers",null,"(B) Bonds - Effective Convexity - 12",null,null,null,null,null,null,null,null,{"$f":"'Schedule VIA'!I57","v":0}]
["Sch VIA","Funds Held by Ceding Reinsurers",null,"(B) Bonds - Effective Convexity - 18",null,null,null,null,null,null,null,null,{"$f":"'Schedule VIA'!I63","v":0}]
["Sch VIA","Funds Held by Ceding Reinsurers",null,"(C) Securities - Asset Type - 8",null,null,null,null,null,null,null,null,{"$f":"'Schedule VIA'!B82","v":"Select"}]
["Sch VIA","Funds Held by Ceding Reinsurers",null,"(C) Securities - Asset Type - 17",null,null,null,null,null,null,null,null,{"$f":"'Schedule VIA'!B91","v":"Select"}]
["Sch VIA","Funds Held by Ceding Reinsurers",null,"(C) Securities - Asset Type - 20",null,null,null,null,null,null,null,null,{"$f":"'Schedule VIA'!B94","v":"Select"}]
["Sch VIA","Funds Held by Ceding Reinsurers",null,"(C) Securities - Jurisdiction - 14",null,null,null,null,null,null,null,null,{"$f":"'Schedule VIA'!C88","v":"Select"}]
["Sch VIA","Funds Held by Ceding Reinsurers",null,"(C) Securities - Jurisdiction - 15",null,null,null,null,null,null,null,null,{"$f":"'Schedule VIA'!C89","v":"Select"}]
["Sch VIA","Funds Held by Ceding Reinsurers",null,"(C) Securities - BSCR Rating - 4",null,null,null,null,null,null,null,null,{"$f":"'Schedule VIA'!D78","v":"Select"}]
["Sch VIA","Funds Held by Ceding Reinsurers",null,"(C) Securities - BSCR Rating - 16",null,null,null,null,null,null,null,null,{"$f":"'Schedule VIA'!D90","v":"Select"}]
["Sch VIA","Funds Held by Ceding Reinsurers",null,"(C) Securities - Face Value - 1",null,null,null,null,null,null,null,null,{"$f":"'Schedule VIA'!E75","v":0}]
["Sch VIA","Funds Held by Ceding Reinsurers",null,"(C) Securities - Face Value - 10",null,null,null,null,null,null,null,null,{"$f":"'Schedule VIA'!E84","v":0}]
["Sch VIA","Funds Held by Ceding Reinsurers",null,"(C) Securities - Face Value - 19",null,null,null,null,null,null,null,null,{"$f":"'Schedule VIA'!E93","v":0}]
["Sch VIA","Funds Held by Ceding Reinsurers",null,"(C) Securities - Fair Value - 7",null,null,null,null,null,null,null,null,{"$f":"'Schedule VIA'!F81","v":0}]
["Sch VIA","Funds Held by Ceding Reinsurers",null,"(C) Securities - Fair Value - 16",null,null,null,null,null,null,null,null,{"$f":"'Schedule VIA'!F90","v":0}]
["Sch VIA","Funds Held by Ceding Reinsurers",null,"(C) Securities - Average YTM - 2",null,null,null,null,null,null,null,null,{"$f":"'Schedule VIA'!G76","v":0}]
["Sch VIA","Funds Held by Ceding Reinsurers",null,"(C) Securities - Average YTM - 5",null,null,null,null,null,null,null,null,{"$f":"'Schedule VIA'!G79","v":0}]
["Sch VIA","Funds Held by Ceding Reinsurers",null,"(C) Securities - Average YTM - 14",null,null,null,null,null,null,null,null,{"$f":"'Schedule VIA'!G88","v":0}]
["Sch VIA","Funds Held by Ceding Reinsurers",null,"(C) Securities - Effective Duration - 5",null,null,null,null,null,null,null,null,{"$f":"'Schedule VIA'!H79","v":0}]
["Sch VIA","Funds Held by Ceding Reinsurers",null,"(C) Securities - Effective Duration - 11",null,null,null,null,null,null,null,null,{"$f":"'Schedule VIA'!H85","v":0}]
["Sch VIA","Funds Held by Ceding Reinsurers",null,"(C) Securities - Effective Duration - 20",null,null,null,null,null,null,null,null,{"$f":"'Schedule VIA'!H94","v":0}]
["Sch VIA","Funds Held by Ceding Reinsurers",null,"(C) Securities - Effective Convexity - 8",null,null,null,null,null,null,null,null,{"$f":"'Schedule VIA'!I82","v":0}]
["Sch VIA","Funds Held by Ceding Reinsurers",null,"(C) Securities - Effective Convexity - 17",null,null,null,null,null,null,null,null,{"$f":"'Schedule VIA'!I91","v":0}]
["Sch VIA","Funds Held by Ceding Reinsurers",null,"(C) Securities - Effective Convexity - 18",null,null,null,null,null,null,null,null,{"$f":"'Schedule VIA'!I92","v":0}]
["Sch VIA","Funds Held by Ceding Reinsurers",null,"(D) Equities - Asset Type - 10",null,null,null,null,null,null,null,null,{"$f":"'Schedule VIA'!B117","v":"Select"}]
["Sch VIA","Funds Held by Ceding Reinsurers",null,"(D) Equities - Asset Type - 14",null,null,null,null,null,null,null,null,{"$f":"'Schedule VIA'!B121","v":"Select"}]
["Sch VIA","Funds Held by Ceding Reinsurers",null,"(D) Equities - Stock Exchange - 3",null,null,null,null,null,null,null,null,{"$f":"'Schedule VIA'!C110","v":0}]
["Sch VIA","Funds Held by Ceding Reinsurers",null,"(D) Equities - Stock Exchange - 10",null,null,null,null,null,null,null,null,{"$f":"'Schedule VIA'!C117","v":0}]
["Sch VIA","Funds Held by Ceding Reinsurers",null,"(D) Equities - Stock Exchange - 20",null,null,null,null,null,null,null,null,{"$f":"'Schedule VIA'!C127","v":0}]
["Sch VIA","Funds Held by Ceding Reinsurers",null,"(D) Equities - BSCR Rating - 9",null,null,null,null,null,null,null,null,{"$f":"'Schedule VIA'!D116","v":"Select"}]
["Sch VIA","Funds Held by Ceding Reinsurers",null,"(D) Equities - BSCR Rating - 13",null,null,null,null,null,null,null,null,{"$f":"'Schedule VIA'!D120","v":"Select"}]
["Sch VIA","Funds Held by Ceding Reinsurers",null,"(D) Equities - BSCR Rating - 18",null,null,null,null,null,null,null,null,{"$f":"'Schedule VIA'!D125","v":"Select"}]
["Sch VIA","Funds Held by Ceding Reinsurers",null,"(D) Equities - Face Value - 7",null,null,null,null,null,null,null,null,{"$f":"'Schedule VIA'!E114","v":0}]
["Sch VIA","Funds Held by Ceding Reinsurers",null,"(D) Equities - Face Value - 16",null,null,null,null,null,null,null,null,{"$f":"'Schedule VIA'!E123","v":0}]
["Sch VIA","Funds Held by Ceding Reinsurers",null,"(D) Equities - Fair Value - 4",null,null,null,null,null,null,null,null,{"$f":"'Schedule VIA'!F111","v":0}]
["Sch VIA","Funds Held by Ceding Reinsurers",null,"(D) Equities - Fair Value - 13",null,null,null,null,null,null,null,null,{"$f":"'Schedule VIA'!F120","v":0}]
["Sch VIA","Funds Held by Ceding Reinsurers",null,"(E) Alternative - Asset Type - 1",null,null,null,null,null,null,null,null,{"$f":"'Schedule VIA'!B142","v":"Select"}]
["Sch VIA","Funds Held by Ceding Reinsurers",null,"(E) Alternative - Asset Type - 7",null,null,null,null,null,null,null,null,{"$f":"'Schedule VIA'!B148","v":"Select"}]
["Sch VIA","Funds Held by Ceding Reinsurers",null,"(E) Alternative - Asset Type - 18",null,null,null,null,null,null,null,null,{"$f":"'Schedule VIA'!B159","v":"Select"}]
["Sch VIA","Funds Held by Ceding Reinsurers",null,"(E) Alternative - Asset Type - 19",null,null,null,null,null,null,null,null,{"$f":"'Schedule VIA'!B160","v":"Select"}]
["Sch VIA","Funds Held by Ceding Reinsurers",null,"(E) Alternative - Jurisdiction - 7",null,null,null,null,null,null,null,null,{"$f":"'Schedule VIA'!C148","v":"Select"}]
["Sch VIA","Funds Held by Ceding Reinsurers",null,"(E) Alternative - Jurisdiction - 16",null,null,null,null,null,null,null,null,{"$f":"'Schedule VIA'!C157","v":"Select"}]
["Sch VIA","Funds Held by Ceding Reinsurers",null,"(E) Alternative - BSCR Rating - 5",null,null,null,null,null,null,null,null,{"$f":"'Schedule VIA'!D146","v":"Select"}]
["Sch VIA","Funds Held by Ceding Reinsurers",null,"(E) Alternative - BSCR Rating - 10",null,null,null,null,null,null,null,null,{"$f":"'Schedule VIA'!D151","v":"Select"}]
["Sch VIA","Funds Held by Ceding Reinsurers",null,"(E) Alternative - Face Value - 2",null,null,null,null,null,null,null,null,{"$f":"'Schedule VIA'!E143","v":0}]
["Sch VIA","Funds Held by Ceding Reinsurers",null,"(E) Alternative - Face Value - 11",null,null,null,null,null,null,null,null,{"$f":"'Schedule VIA'!E152","v":0}]
["Sch VIA","Funds Held by Ceding Reinsurers",null,"(E) Alternative - Face Value - 13",null,null,null,null,null,null,null,null,{"$f":"'Schedule VIA'!E154","v":0}]
["Sch VIA","Funds Held by Ceding Reinsurers",null,"(E) Alternative - Face Value - 20",null,null,null,null,null,null,null,null,{"$f":"'Schedule VIA'!E161","v":0}]
["Sch VIA","Funds Held by Ceding Reinsurers",null,"(E) Alternative - Fair Value - 9",null,null,null,null,null,null,null,null,{"$f":"'Schedule VIA'!F150","v":0}]
["Sch VIA","Funds Held by Ceding Reinsurers",null,"(E) Alternative - Fair Value - 16",null,null,null,null,null,null,null,null,{"$f":"'Schedule VIA'!F157","v":0}]
["Sch VIA","Funds Held by Ceding Reinsurers",null,"(E) Alternative - Average YTM - 6",null,null,null,null,null,null,null,null,{"$f":"'Schedule VIA'!G147","v":0}]
["Sch VIA","Funds Held by Ceding Reinsurers",null,"(E) Alternative - Average YTM - 15",null,null,null,null,null,null,null,null,{"$f":"'Schedule VIA'!G156","v":0}]
["Sch VIA","Funds Held by Ceding Reinsurers",null,"(E) Alternative - Average YTM - 19",null,null,null,null,null,null,null,null,{"$f":"'Schedule VIA'!G160","v":0}]
["Sch VIA","Funds Held by Ceding Reinsurers",null,"(E) Alternative - Effective Duration - 12",null,null,null,null,null,null,null,null,{"$f":"'Schedule VIA'!H153","v":0}]
["Sch VIA","Funds Held by Ceding Reinsurers",null,"(E) Alternative - Effective Convexity - 1",null,null,null,null,null,null,null,null,{"$f":"'Schedule VIA'!I142","v":0}]
["Sch VIA","Funds Held by Ceding Reinsurers",null,"(E) Alternative - Effective Convexity - 2",null,null,null,null,null,null,null,null,{"$f":"'Schedule VIA'!I143","v":0}]
["Sch VIA","Funds Held by Ceding Reinsurers",null,"(E) Alternative - Effective Convexity - 10",null,null,null,null,null,null,null,null,{"$f":"'Schedule VIA'!I151","v":0}]
["Sch VIA","Funds Held by Ceding Reinsurers",null,"(E) Alternative - Effective Convexity - 19",null,null,null,null,null,null,null,null,{"$f":"'Schedule VIA'!I160","v":0}]
["Sch VIA","Funds Held by Ceding Reinsurers",null,"(F) Loans - Asset Type - 4",null,null,null,null,null,null,null,null,{"$f":"'Schedule VIA'!B178","v":"Select"}]
["Sch VIA","Funds Held by Ceding Reinsurers",null,"(F) Loans - Asset Type - 15",null,null,null,null,null,null,null,null,{"$f":"'Schedule VIA'!B189","v":"Select"}]
["Sch VIA","Funds Held by Ceding Reinsurers",null,"(F) Loans - Jurisdiction - 4",null,null,null,null,null,null,null,null,{"$f":"'Schedule VIA'!C178","v":"Select"}]
["Sch VIA","Funds Held by Ceding Reinsurers",null,"(F) Loans - Jurisdiction - 11",null,null,null,null,null,null,null,null,{"$f":"'Schedule VIA'!C185","v":"Select"}]
["Sch VIA","Funds Held by Ceding Reinsurers",null,"(F) Loans - BSCR Rating - 1",null,null,null,null,null,null,null,null,{"$f":"'Schedule VIA'!D175","v":"Select"}]
["Sch VIA","Funds Held by Ceding Reinsurers",null,"(F) Loans - BSCR Rating - 2",null,null,null,null,null,null,null,null,{"$f":"'Schedule VIA'!D176","v":"Select"}]
["Sch VIA","Funds Held by Ceding Reinsurers",null,"(F) Loans - BSCR Rating - 11",null,null,null,null,null,null,null,null,{"$f":"'Schedule VIA'!D185","v":"Select"}]
["Sch VIA","Funds Held by Ceding Reinsurers",null,"(F) Loans - Face Value - 3",null,null,null,null,null,null,null,null,{"$f":"'Schedule VIA'!E177","v":0}]
["Sch VIA","Funds Held by Ceding Reinsurers",null,"(F) Loans - Face Value - 8",null,null,null,null,null,null,null,null,{"$f":"'Schedule VIA'!E182","v":0}]
["Sch VIA","Funds Held by Ceding Reinsurers",null,"(F) Loans - Face Value - 17",null,null,null,null,null,null,null,null,{"$f":"'Schedule VIA'!E191","v":0}]
["Sch VIA","Funds Held by Ceding Reinsurers",null,"(F) Loans - Fair Value - 6",null,null,null,null,null,null,null,null,{"$f":"'Schedule VIA'!F180","v":0}]
["Sch VIA","Funds Held by Ceding Reinsurers",null,"(F) Loans - Fair Value - 14",null,null,null,null,null,null,null,null,{"$f":"'Schedule VIA'!F188","v":0}]
["Sch VIA","Funds Held by Ceding Reinsurers",null,"(F) Loans - Average YTM - 3",null,null,null,null,null,null,null,null,{"$f":"'Schedule VIA'!G177","v":0}]
["Sch VIA","Funds Held by Ceding Reinsurers",null,"(F) Loans - Average YTM - 9",null,null,null,null,null,null,null,null,{"$f":"'Schedule VIA'!G183","v":0}]
["Sch VIA","Funds Held by Ceding Reinsurers",null,"(F) Loans - Average YTM - 12",null,null,null,null,null,null,null,null,{"$f":"'Schedule VIA'!G186","v":0}]
["Sch VIA","Funds Held by Ceding Reinsurers",null,"(F) Loans - Effective Duration - 1",null,null,null,null,null,null,null,null,{"$f":"'Schedule VIA'!H175","v":0}]
["Sch VIA","Funds Held by Ceding Reinsurers",null,"(F) Loans - Effective Duration - 9",null,null,null,null,null,null,null,null,{"$f":"'Schedule VIA'!H183","v":0}]
["Sch VIA","Funds Held by Ceding Reinsurers",null,"(F) Loans - Effective Duration - 18",null,null,null,null,null,null,null,null,{"$f":"'Schedule VIA'!H192","v":0}]
["Sch VIA","Funds Held by Ceding Reinsurers",null,"(F) Loans - Effective Convexity - 7",null,null,null,null,null,null,null,null,{"$f":"'Schedule VIA'!I181","v":0}]
["Sch VIA","Funds Held by Ceding Reinsurers",null,"(F) Loans - Effective Convexity - 12",null,null,null,null,null,null,null,null,{"$f":"'Schedule VIA'!I186","v":0}]
["Sch VIA","Funds Held by Ceding Reinsurers",null,"(G) Real Estate - Asset Type - 3",null,null,null,null,null,null,null,null,{"$f":"'Schedule VIA'!B211","v":"Select"}]
["Sch VIA","Funds Held by Ceding Reinsurers",null,"(G) Real Estate - Asset Type - 4",null,null,null,null,null,null,null,null,{"$f":"'Schedule VIA'!B212","v":"Select"}]
["Sch VIA","Funds Held by Ceding Reinsurers",null,"(G) Real Estate - Asset Type - 14",null,null,null,null,null,null,null,null,{"$f":"'Schedule VIA'!B222","v":"Select"}]
["Sch VIA","Funds Held by Ceding Reinsurers",null,"(G) Real Estate - Jurisdiction - 1",null,null,null,null,null,null,null,null,{"$f":"'Schedule VIA'!C209","v":"Select"}]
["Sch VIA","Funds Held by Ceding Reinsurers",null,"(G) Real Estate - Jurisdiction - 10",null,null,null,null,null,null,null,null,{"$f":"'Schedule VIA'!C218","v":"Select"}]
["Sch VIA","Funds Held by Ceding Reinsurers",null,"(G) Real Estate - Jurisdiction - 17",null,null,null,null,null,null,null,null,{"$f":"'Schedule VIA'!C225","v":"Select"}]
["Sch VIA","Funds Held by Ceding Reinsurers",null,"(G) Real Estate - Purpose - 7",null,null,null,null,null,null,null,null,{"$f":"'Schedule VIA'!D215","v":"Select"}]
["Sch VIA","Funds Held by Ceding Reinsurers",null,"(G) Real Estate - Purpose - 16",null,null,null,null,null,null,null,null,{"$f":"'Schedule VIA'!D224","v":"Select"}]
["Sch VIA","Funds Held by Ceding Reinsurers",null,"(G) Real Estate - Purpose - 20",null,null,null,null,null,null,null,null,{"$f":"'Schedule VIA'!D228","v":"Select"}]
["Sch VIA","Funds Held by Ceding Reinsurers",null,"(G) Real Estate - Face Value - 5",null,null,null,null,null,null,null,null,{"$f":"'Schedule VIA'!E213","v":0}]
["Sch VIA","Funds Held by Ceding Reinsurers",null,"(G) Real Estate - Face Value - 14",null,null,null,null,null,null,null,null,{"$f":"'Schedule VIA'!E222","v":0}]
["Sch VIA","Funds Held by Ceding Reinsurers",null,"(G) Real Estate - Fair Value - 3",null,null,null,null,null,null,null,null,{"$f":"'Schedule VIA'!F211","v":0}]
["Sch VIA","Funds Held by Ceding Reinsurers",null,"(G) Real Estate - Fair Value - 11",null,null,null,null,null,null,null,null,{"$f":"'Schedule VIA'!F219","v":0}]
["Sch VIA","Funds Held by Ceding Reinsurers",null,"(G) Real Estate - Fair Value - 20",null,null,null,null,null,null,null,null,{"$f":"'Schedule VIA'!F228","v":0}]
["Sch VIA","Funds Held by Ceding Reinsurers",null,"(H) Derivatives - Derivative Type - 8",null,null,null,null,null,null,null,null,{"$f":"'Schedule VIA'!B248","v":"Select"}]
["Sch VIA","Funds Held by Ceding Reinsurers",null,"(H) Derivatives - Derivative Type - 11",null,null,null,null,null,null,null,null,{"$f":"'Schedule VIA'!B251","v":"Select"}]
["Sch VIA","Funds Held by Ceding Reinsurers",null,"(H) Derivatives - Underlying - 5",null,null,null,null,null,null,null,null,{"$f":"'Schedule VIA'!C245","v":"Select"}]
["Sch VIA","Funds Held by Ceding Reinsurers",null,"(H) Derivatives - Underlying - 6",null,null,null,null,null,null,null,null,{"$f":"'Schedule VIA'!C246","v":"Select"}]
["Sch VIA","Funds Held by Ceding Reinsurers",null,"(H) Derivatives - Underlying - 14",null,null,null,null,null,null,null,null,{"$f":"'Schedule VIA'!C254","v":"Select"}]
["Sch VIA","Funds Held by Ceding Reinsurers",null,"(H) Derivatives - Purpose - 3",null,null,null,null,null,null,null,null,{"$f":"'Schedule VIA'!D243","v":"Select"}]
["Sch VIA","Funds Held by Ceding Reinsurers",null,"(H) Derivatives - Purpose - 12",null,null,null,null,null,null,null,null,{"$f":"'Schedule VIA'!D252","v":"Select"}]
["Sch VIA","Funds Held by Ceding Reinsurers",null,"(H) Derivatives - Purpose - 17",null,null,null,null,null,null,null,null,{"$f":"'Schedule VIA'!D257","v":"Select"}]
["Sch VIA","Funds Held by Ceding Reinsurers",null,"(H) Derivatives - Position - 9",null,null,null,null,null,null,null,null,{"$f":"'Schedule VIA'!E249","v":"Select"}]
["Sch VIA","Funds Held by Ceding Reinsurers",null,"(H) Derivatives - Position - 18",null,null,null,null,null,null,null,null,{"$f":"'Schedule VIA'!E258","v":"Select"}]
["Sch VIA","Funds Held by Ceding Reinsurers",null,"(H) Derivatives - Position - 20",null,null,null,null,null,null,null,null,{"$f":"'Schedule VIA'!E260","v":"Select"}]
["Sch VIA","Funds Held by Ceding Reinsurers",null,"(H) Derivatives - Market Value - 7",null,null,null,null,null,null,null,null,{"$f":"'Schedule VIA'!F247","v":0}]
["Sch VIA","Funds Held by Ceding Reinsurers",null,"(H) Derivatives - Market Value - 16",null,null,null,null,null,null,null,null,{"$f":"'Schedule VIA'!F256","v":0}]
["Sch VIA","Funds Held by Ceding Reinsurers",null,"(H) Derivatives - Centrally Cleared - 3",null,null,null,null,null,null,null,null,{"$f":"'Schedule VIA'!G243","v":"Select"}]
["Sch VIA","Funds Held by Ceding Reinsurers",null,"(H) Derivatives - Centrally Cleared - 13",null,null,null,null,null,null,null,null,{"$f":"'Schedule VIA'!G253","v":"Select"}]
["Sch VIA","Funds Held by Ceding Reinsurers",null,"(H) Derivatives - Notional Value - 2",null,null,null,null,null,null,null,null,{"$f":"'Schedule VIA'!H242","v":0}]
["Sch VIA","Funds Held by Ceding Reinsurers",null,"(H) Derivatives - Notional Value - 10",null,null,null,null,null,null,null,null,{"$f":"'Schedule VIA'!H250","v":0}]
["Sch VIA","Funds Held by Ceding Reinsurers",null,"(H) Derivatives - Notional Value - 19",null,null,null,null,null,null,null,null,{"$f":"'Schedule VIA'!H259","v":0}]
["Sch VIA","Funds Held by Ceding Reinsurers",null,"(H) Derivatives - Exposure - 8",null,null,null,null,null,null,null,null,{"$f":"'Schedule VIA'!I248","v":0}]
["Sch VIA","Funds Held by Ceding Reinsurers",null,"(H) Derivatives - Exposure - 13",null,null,null,null,null,null,null,null,{"$f":"'Schedule VIA'!I253","v":0}]
["Sch VIA","Funds Held by Ceding Reinsurers",null,"(H) Derivatives - Exposure - 17",null,null,null,null,null,null,null,null,{"$f":"'Schedule VIA'!I257","v":0}]
["Sch VIA","Funds Held by Ceding Reinsurers",null,"(I) Other - Asset Type - 5",null,null,null,null,null,null,null,null,{"$f":"'Schedule VIA'!B279","v":"Select"}]
["Sch VIA","Funds Held by Ceding Reinsurers",null,"(I) Other - Asset Type - 15",null,null,null,null,null,null,null,null,{"$f":"'Schedule VIA'!B289","v":"Select"}]
["Sch VIA","Funds Held by Ceding Reinsurers",null,"(I) Other - Jurisdiction - 2",null,null,null,null,null,null,null,null,{"$f":"'Schedule VIA'!C276","v":"Select"}]
["Sch VIA","Funds Held by Ceding Reinsurers",null,"(I) Other - Jurisdiction - 11",null,null,null,null,null,null,null,null,{"$f":"'Schedule VIA'!C285","v":"Select"}]
["Sch VIA","Funds Held by Ceding Reinsurers",null,"(I) Other - Jurisdiction - 18",null,null,null,null,null,null,null,null,{"$f":"'Schedule VIA'!C292","v":"Select"}]
["Sch VIA","Funds Held by Ceding Reinsurers",null,"(I) Other - BSCR Rating - 8",null,null,null,null,null,null,null,null,{"$f":"'Schedule VIA'!D282","v":"Select"}]
["Sch VIA","Funds Held by Ceding Reinsurers",null,"(I) Other - BSCR Rating - 9",null,null,null,null,null,null,null,null,{"$f":"'Schedule VIA'!D283","v":"Select"}]
["Sch VIA","Funds Held by Ceding Reinsurers",null,"(I) Other - BSCR Rating - 18",null,null,null,null,null,null,null,null,{"$f":"'Schedule VIA'!D292","v":"Select"}]
["Sch VIA","Funds Held by Ceding Reinsurers",null,"(I) Other - Face Value - 7",null,null,null,null,null,null,null,null,{"$f":"'Schedule VIA'!E281","v":0}]
["Sch VIA","Funds Held by Ceding Reinsurers",null,"(I) Other - Face Value - 15",null,null,null,null,null,null,null,null,{"$f":"'Schedule VIA'!E289","v":0}]
["Sch VIA","Funds Held by Ceding Reinsurers",null,"(I) Other - Fair Value - 4",null,null,null,null,null,null,null,null,{"$f":"'Schedule VIA'!F278","v":0}]
["Sch VIA","Funds Held by Ceding Reinsurers",null,"(I) Other - Fair Value - 10",null,null,null,null,null,null,null,null,{"$f":"'Schedule VIA'!F284","v":0}]
["Sch VIA","Funds Held by Ceding Reinsurers",null,"Portfolio Duration",null,null,null,null,null,null,null,null,{"$f":"'Schedule VIA'!E308","v":0}]
["Sch IX(a)","CISSA Capital Summary",null,"Group, Concentration & Strategic Risk",null,null,null,null,null,null,null,null,{"$f":"'Schedule IX(a)'!E16","v":0}]
["Sch IX(a)","CISSA Capital Summary",null,"Diversification Credit",null,null,null,null,null,null,null,null,{"$f":"'Schedule IX(a)'!E21","v":0}]
["Sch IX(a)","CISSA Capital Summary",null,"1. Reason for CISSA - Business Expansion",{"$f":"IF('Schedule IX(a)'!B42=0,\"No\",'Schedule IX(a)'!B42)","v":"Select Yes/No"}]
["Sch IX(a)","CISSA Capital Summary",null,"2. Agg. Risk Categories - Gumbel Copulas",{"$f":"IF('Schedule IX(a)'!B53=0,\"No\",'Schedule IX(a)'!B53)","v":"Select Yes/No"}]
["Sch IX(a)","CISSA Capital Summary",null,"3. Contingency Plan - Preferred Shares",{"$f":"IF('Schedule IX(a)'!B63=0,\"No\",'Schedule IX(a)'!B63)","v":"Select Yes/No"}]
["Sch IX(a)","CISSA Capital Summary",null,"5. Insurer Issues Downstream Debt ",{"$f":"IF('Schedule IX(a)'!G75=0,\"No\",'Schedule IX(a)'!G75)","v":"Select Yes/No"}]
["Sch IX(b)","CISSA General Questions",null,"1. CISSA Integrated in Risk Mgmt. Process",{"$f":"IF('Schedule IX(b)'!F7=0,\"No\",'Schedule IX(b)'!F7)","v":"Select Yes/No"}]
["Sch IX(b)","CISSA General Questions",null,"1. CISSA Used For - Capital Adequacy",{"$f":"IF('Schedule IX(b)'!F15=0,\"No\",'Schedule IX(b)'!F15)","v":"Select Yes/No"}]
["Sch IX(b)","CISSA General Questions",null,"1. CISSA Used For - Others",{"$f":"IF('Schedule IX(b)'!F27=0,\"No\",'Schedule IX(b)'!F27)","v":"Select Yes/No"}]
["Sch IX(b)","CISSA General Questions",null,"1. CISSA Used For - Others - Description",{"$f":"'Schedule IX(b)'!C27","v":0}]
["Sch IX(c)","CISSA Assessment of Material Risks",null,"12d. Validation - Regular Review",{"$f":"IF('Schedule IX(c)'!E71=0,\"No\",'Schedule IX(c)'!E71)","v":"Select Yes/No"}]
["Sch IX(c)","CISSA Assessment of Material Risks",null,"12j. Internal Controls - Strict Protocols",{"$f":"IF('Schedule IX(c)'!E80=0,\"No\",'Schedule IX(c)'!E80)","v":"Select Yes/No"}]
["Sch IX(c)","CISSA Assessment of Material Risks",null,"12i. Doc. Comment - BOD Review Frequency",{"$f":"'Schedule IX(c)'!F77","v":0}]
["Sch X(a)","CAT Return - EP Curve Total",null,"Gross Loss - Occurrence - 250 Yrs",null,null,null,null,null,null,null,null,{"$f":"'Schedule X(a)'!E11","v":0}]
["Sch X(a)","CAT Return - EP Curve Total",null,"Net Loss - Occurrence - 250 Yrs",null,null,null,null,null,null,null,null,{"$f":"'Schedule X(a)'!G11","v":0}]
["Sch X(a)","CAT Return - EP Curve Total",null,"Gross - Standard Deviation",null,null,null,null,null,null,null,null,{"$f":"'Schedule X(a)'!E18","v":0}]
["Sch X(a)","CAT Return - EP Curve Total",null,"Gross - with Not Determinable TIV",null,null,null,null,null,null,null,null,{"$f":"'Schedule X(a)'!E28","v":0}]
["Sch X(a)","CAT Return - EP Curve Total",null,"Net - Average Annual Loss",null,null,null,null,null,null,null,null,{"$f":"'Schedule X(a)'!J16","v":0}]
["Sch X(a)","CAT Return - EP Curve Total",null,"Net - Premium W/O Limit",null,null,null,null,null,null,null,null,{"$f":"'Schedule X(a)'!J27","v":0}]
["Sch X(a)","CAT Return - EP Curve Total",null,"2. Ocean Marine",null,null,null,null,null,null,null,null,{"$f":"IF('Schedule X(a)'!E42=0,\"No\",'Schedule X(a)'!E42)","v":"Select"}]
["Sch X(a)","CAT Return - EP Curve Total",null,"2. Other Primary Insurance",null,null,null,null,null,null,null,null,{"$f":"IF('Schedule X(a)'!E46=0,\"No\",'Schedule X(a)'!E46)","v":"Select"}]
["Sch X(a)","CAT Return - EP Curve Total",null,"5. Sprinkler Leakage",null,null,null,null,null,null,null,null,{"$f":"IF('Schedule X(a)'!E61=0,\"No\",'Schedule X(a)'!E61)","v":"Select"}]
["Sch X(a)","CAT Return - EP Curve Total",null,"6. Adj. for Model Deficiencies - Severity",null,null,null,null,null,null,null,null,{"$f":"IF('Schedule X(a)'!E72=0,\"No\",'Schedule X(a)'!E72)","v":"Select"}]
["Sch X(a)","CAT Return - EP Curve Total",null,"6. Other Factors for Prudence",null,null,null,null,null,null,null,null,{"$f":"IF('Schedule X(a)'!E75=0,\"No\",'Schedule X(a)'!E75)","v":"Select Yes/No"}]
["Sch X(b)","CAT Return - EP Curve Insurance",null,"Gross Loss - Aggregate - 500 Yrs",null,null,null,null,null,null,null,null,{"$f":"'Schedule X(b)'!F14","v":0}]
["Sch X(b)","CAT Return - EP Curve Insurance",null,"Gross Loss - Aggregate - 1,000 Yrs",null,null,null,null,null,null,null,null,{"$f":"'Schedule X(b)'!F15","v":0}]
["Sch X(b)","CAT Return - EP Curve Insurance",null,"Net Loss - Aggregate - 250 Yrs",null,null,null,null,null,null,null,null,{"$f":"'Schedule X(b)'!H13","v":0}]
["Sch X(b)","CAT Return - EP Curve Insurance",null,"Gross - All Other Limited - Modelled",null,null,null,null,null,null,null,null,{"$f":"'Schedule X(b)'!E27","v":0}]
["Sch X(b)","CAT Return - EP Curve Insurance",null,"Net - Property Cat. Limited - Modelled",null,null,null,null,null,null,null,null,{"$f":"'Schedule X(b)'!J25","v":0}]
["Sch X(c)","CAT Return - EP Curve Region Perils",null,"Atl. Hurr. - Gross Occurrence - 50 Yrs",null,null,null,null,null,null,null,null,{"$f":"'Schedule X(c)'!D16","v":0}]
["Sch X(c)","CAT Return - EP Curve Region Perils",null,"Atl. Hurr. - Gross Aggregate - 500 Yrs",null,null,null,null,null,null,null,null,{"$f":"'Schedule X(c)'!E19","v":0}]
["Sch X(c)","CAT Return - EP Curve Region Perils",null,"Atl. Hurr. - Net Aggregate - 250 Yrs",null,null,null,null,null,null,null,null,{"$f":"'Schedule X(c)'!G18","v":0}]
["Sch X(c)","CAT Return - EP Curve Region Perils",null,"Atl. Hurr. - Gross All Other Limits",null,null,null,null,null,null,null,null,{"$f":"'Schedule X(c)'!E27","v":0}]
["Sch X(c)","CAT Return - EP Curve Region Perils",null,"Atl. Hurr. - Net Prop. Cat. Limits",null,null,null,null,null,null,null,null,{"$f":"'Schedule X(c)'!F26","v":0}]
["Sch X(c)","CAT Return - EP Curve Region Perils",null,"NA. EQ. - Gross Aggregate - 50 Yrs",null,null,null,null,null,null,null,null,{"$f":"'Schedule X(c)'!E38","v":0}]
["Sch X(c)","CAT Return - EP Curve Region Perils",null,"NA. EQ. - Net Aggregate - 100 Yrs",null,null,null,null,null,null,null,null,{"$f":"'Schedule X(c)'!G39","v":0}]
["Sch X(c)","CAT Return - EP Curve Region Perils",null,"NA. EQ. - Gross Prop. Cat. Limits",null,null,null,null,null,null,null,null,{"$f":"'Schedule X(c)'!E48","v":0}]
["Sch X(c)","CAT Return - EP Curve Region Perils",null,"Eur. Wind - Gross Occurrence - 100 Yrs",null,null,null,null,null,null,null,null,{"$f":"'Schedule X(c)'!D61","v":0}]
["Sch X(c)","CAT Return - EP Curve Region Perils",null,"Eur. Wind - Gross Aggregate - 1,000 Yrs",null,null,null,null,null,null,null,null,{"$f":"'Schedule X(c)'!E64","v":0}]
["Sch X(c)","CAT Return - EP Curve Region Perils",null,"Eur. Wind - Net Aggregate - 500 Yrs",null,null,null,null,null,null,null,null,{"$f":"'Schedule X(c)'!G63","v":0}]
["Sch X(c)","CAT Return - EP Curve Region Perils",null,"Eur. Wind - Net All Other Limits",null,null,null,null,null,null,null,null,{"$f":"'Schedule X(c)'!F71","v":0}]
["Sch X(c)","CAT Return - EP Curve Region Perils",null,"Japan EQ. - Gross Occurrence - 250 Yrs",null,null,null,null,null,null,null,null,{"$f":"'Schedule X(c)'!D84","v":0}]
["Sch X(c)","CAT Return - EP Curve Region Perils",null,"Japan EQ. - Gross Aggregate - 100 Yrs",null,null,null,null,null,null,null,null,{"$f":"'Schedule X(c)'!E83","v":0}]
["Sch X(c)","CAT Return - EP Curve Region Perils",null,"Japan EQ. - Net Aggregate - 50 Yrs",null,null,null,null,null,null,null,null,{"$f":"'Schedule X(c)'!G82","v":0}]
["Sch X(c)","CAT Return - EP Curve Region Perils",null,"Japan EQ. - Net All Other Premium",null,null,null,null,null,null,null,null,{"$f":"'Schedule X(c)'!F91","v":0}]
["Sch X(c)","CAT Return - EP Curve Region Perils",null,"Jpn. Typ. - Gross Occurrence - 250 Yrs",null,null,null,null,null,null,null,null,{"$f":"'Schedule X(c)'!D106","v":0}]
["Sch X(c)","CAT Return - EP Curve Region Perils",null,"Jpn. Typ. - Net Occurrence - 100 Yrs",null,null,null,null,null,null,null,null,{"$f":"'Schedule X(c)'!F105","v":0}]
["Sch X(c)","CAT Return - EP Curve Region Perils",null,"Jpn. Typ. - Net Aggregate - 500 Yrs",null,null,null,null,null,null,null,null,{"$f":"'Schedule X(c)'!G107","v":0}]
[]
["Sch X(d)","CAT Return - Region Perils Exposure to Zones and Lines of Business",null,"Atlantic Hurricane - Zone 1",null,null,null,null,null,null,null,null,{"$f":"'Schedule X(d)'!C9","v":"Select Yes/No"}]
["Sch X(d)","CAT Return - Region Perils Exposure to Zones and Lines of Business",null,"Atlantic Hurricane - Zone 10",null,null,null,null,null,null,null,null,{"$f":"'Schedule X(d)'!C18","v":"Select Yes/No"}]
["Sch X(d)","CAT Return - Region Perils Exposure to Zones and Lines of Business",null,"North American Earthquake - Zone 6",null,null,null,null,null,null,null,null,{"$f":"'Schedule X(d)'!D14","v":"Select Yes/No"}]
["Sch X(d)","CAT Return - Region Perils Exposure to Zones and Lines of Business",null,"European Windstorm - Zone 1",null,null,null,null,null,null,null,null,{"$f":"'Schedule X(d)'!E9","v":"Select Yes/No"}]
["Sch X(d)","CAT Return - Region Perils Exposure to Zones and Lines of Business",null,"European Windstorm - Zone 10",null,null,null,null,null,null,null,null,{"$f":"'Schedule X(d)'!E18","v":"Select Yes/No"}]
["Sch X(d)","CAT Return - Region Perils Exposure to Zones and Lines of Business",null,"Japan Earthquake - Zone 3",null,null,null,null,null,null,null,null,{"$f":"'Schedule X(d)'!F11","v":"Select Yes/No"}]
["Sch X(d)","CAT Return - Region Perils Exposure to Zones and Lines of Business",null,"Japan Typhoon - Zone 1",null,null,null,null,null,null,null,null,{"$f":"'Schedule X(d)'!G9","v":"Select Yes/No"}]
["Sch X(d)","CAT Return - Region Perils Exposure to Zones and Lines of Business",null,"Japan Typhoon - Zone 10",null,null,null,null,null,null,null,null,{"$f":"'Schedule X(d)'!G18","v":"Select Yes/No"}]
["Sch X(d)","CAT Return - Region Perils Exposure to Zones and Lines of Business",null,"Japan Typhoon - Zone 13",null,null,null,null,null,null,null,null,{"$f":"'Schedule X(d)'!G21","v":"Select Yes/No"}]
["Sch X(d)","CAT Return - Region Perils Exposure to Zones and Lines of Business",null,"All Other - Zone 6",null,null,null,null,null,null,null,null,{"$f":"'Schedule X(d)'!H14","v":"Select Yes/No"}]
["Sch X(d)","CAT Return - Region Perils Exposure to Zones and Lines of Business",null,"Atlantic Hurricane - Line 2",null,null,null,null,null,null,null,null,{"$f":"'Schedule X(d)'!C26","v":"Select Yes/No"}]
["Sch X(d)","CAT Return - Region Perils Exposure to Zones and Lines of Business",null,"Atlantic Hurricane - Line 10",null,null,null,null,null,null,null,null,{"$f":"'Schedule X(d)'!C34","v":"Select Yes/No"}]
["Sch X(d)","CAT Return - Region Perils Exposure to Zones and Lines of Business",null,"Atlantic Hurricane - Line 19",null,null,null,null,null,null,null,null,{"$f":"'Schedule X(d)'!C43","v":"Select Yes/No"}]
["Sch X(d)","CAT Return - Region Perils Exposure to Zones and Lines of Business",null,"North American Earthquake - Line 4",null,null,null,null,null,null,null,null,{"$f":"'Schedule X(d)'!D28","v":"Select Yes/No"}]
["Sch X(d)","CAT Return - Region Perils Exposure to Zones and Lines of Business",null,"North American Earthquake - Line 9",null,null,null,null,null,null,null,null,{"$f":"'Schedule X(d)'!D33","v":"Select Yes/No"}]
["Sch X(d)","CAT Return - Region Perils Exposure to Zones and Lines of Business",null,"North American Earthquake - Line 21",null,null,null,null,null,null,null,null,{"$f":"'Schedule X(d)'!D45","v":"Select Yes/No"}]
["Sch X(d)","CAT Return - Region Perils Exposure to Zones and Lines of Business",null,"North American Earthquake - Line 22",null,null,null,null,null,null,null,null,{"$f":"'Schedule X(d)'!D46","v":"Select Yes/No"}]
["Sch X(d)","CAT Return - Region Perils Exposure to Zones and Lines of Business",null,"European Windstorm - Line 12",null,null,null,null,null,null,null,null,{"$f":"'Schedule X(d)'!E36","v":"Select Yes/No"}]
["Sch X(d)","CAT Return - Region Perils Exposure to Zones and Lines of Business",null,"European Windstorm - Line 15",null,null,null,null,null,null,null,null,{"$f":"'Schedule X(d)'!E39","v":"Select Yes/No"}]
["Sch X(d)","CAT Return - Region Perils Exposure to Zones and Lines of Business",null,"European Windstorm - Line 24",null,null,null,null,null,null,null,null,{"$f":"'Schedule X(d)'!E48","v":"Select Yes/No"}]
["Sch X(d)","CAT Return - Region Perils Exposure to Zones and Lines of Business",null,"Japan Earthquake - Line 11",null,null,null,null,null,null,null,null,{"$f":"'Schedule X(d)'!F35","v":"Select Yes/No"}]
["Sch X(d)","CAT Return - Region Perils Exposure to Zones and Lines of Business",null,"Japan Earthquake - Line 17",null,null,null,null,null,null,null,null,{"$f":"'Schedule X(d)'!F41","v":"Select Yes/No"}]
["Sch X(d)","CAT Return - Region Perils Exposure to Zones and Lines of Business",null,"Japan Typhoon - Line 2",null,null,null,null,null,null,null,null,{"$f":"'Schedule X(d)'!G26","v":"Select Yes/No"}]
["Sch X(d)","CAT Return - Region Perils Exposure to Zones and Lines of Business",null,"Japan Typhoon - Line 10",null,null,null,null,null,null,null,null,{"$f":"'Schedule X(d)'!G34","v":"Select Yes/No"}]
["Sch X(d)","CAT Return - Region Perils Exposure to Zones and Lines of Business",null,"Japan Typhoon - Line 11",null,null,null,null,null,null,null,null,{"$f":"'Schedule X(d)'!G35","v":"Select Yes/No"}]
["Sch X(d)","CAT Return - Region Perils Exposure to Zones and Lines of Business",null,"Japan Typhoon - Line 20",null,null,null,null,null,null,null,null,{"$f":"'Schedule X(d)'!G44","v":"Select Yes/No"}]
["Sch X(d)","CAT Return - Region Perils Exposure to Zones and Lines of Business",null,"All Other - Line 9",null,null,null,null,null,null,null,null,{"$f":"'Schedule X(d)'!H33","v":"Select Yes/No"}]
["Sch X(d)","CAT Return - Region Perils Exposure to Zones and Lines of Business",null,"All Other - Line 13",null,null,null,null,null,null,null,null,{"$f":"'Schedule X(d)'!H37","v":"Select Yes/No"}]
["Sch X(d)","CAT Return - Region Perils Exposure to Zones and Lines of Business",null,"All Other - Line 22",null,null,null,null,null,null,null,null,{"$f":"'Schedule X(d)'!H46","v":"Select Yes/No"}]
["Sch X(e)","CAT Return - Accumulations Overview",null,"Q5. Accumulation Methodology",null,null,null,null,null,null,null,null,{"$f":"'Schedule X(e)'!C19","v":"Select"}]
["Sch X(e)","CAT Return - Accumulations Overview",null,"Q11. Outward R/I Protection Considered",null,null,null,null,null,null,null,null,{"$f":"'Schedule X(e)'!C43","v":"Select"}]
["Sch X(f)","CAT Return - Data Analysis",null,"1. All - Total - US - Net Limit",null,null,null,null,null,null,null,null,{"$f":"'Schedule X(f)'!G12","v":0}]
["Sch X(f)","CAT Return - Data Analysis",null,"1. All - Modelable - Other - Contract",null,null,null,null,null,null,null,null,{"$f":"'Schedule X(f)'!H10","v":0}]
["Sch X(f)","CAT Return - Data Analysis",null,"2. Modelable - Modelled - US - Gross Limit",null,null,null,null,null,null,null,null,{"$f":"'Schedule X(f)'!F19","v":0}]
["Sch X(f)","CAT Return - Data Analysis",null,"2. Modelable - Total - US - Net Limit",null,null,null,null,null,null,null,null,{"$f":"'Schedule X(f)'!G21","v":0}]
["Sch X(f)","CAT Return - Data Analysis",null,"2. Modelable - Total - Other -Net Limit",null,null,null,null,null,null,null,null,{"$f":"'Schedule X(f)'!J21","v":0}]
["Sch X(f)","CAT Return - Data Analysis",null,"3. Modelled - Peer Proxy - US - Gross Limit",null,null,null,null,null,null,null,null,{"$f":"'Schedule X(f)'!F30","v":0}]
["Sch X(f)","CAT Return - Data Analysis",null,"3. Modelled - Other - US - Net Limit",null,null,null,null,null,null,null,null,{"$f":"'Schedule X(f)'!G32","v":0}]
["Sch X(f)","CAT Return - Data Analysis",null,"3. Modelled - Agg. Data - Other - Gross Limit",null,null,null,null,null,null,null,null,{"$f":"'Schedule X(f)'!I29","v":0}]
["Sch X(f)","CAT Return - Data Analysis",null,"3. Modelled - Agg. Data - Other - Net Limit",null,null,null,null,null,null,null,null,{"$f":"'Schedule X(f)'!J29","v":0}]
["Sch X(f)","CAT Return - Data Analysis",null,"3. Modelled - Other - Other - Net Limit",null,null,null,null,null,null,null,null,{"$f":"'Schedule X(f)'!J32","v":0}]
["Sch X(f)","CAT Return - Data Analysis",null,"4. Not Modelled - Other - US - Gross Limit",null,null,null,null,null,null,null,null,{"$f":"'Schedule X(f)'!F45","v":0}]
["Sch X(f)","CAT Return - Data Analysis",null,"4. Not Modelled - Model Deficient - Other - Gross Limit",null,null,null,null,null,null,null,null,{"$f":"'Schedule X(f)'!I44","v":0}]
["Sch X(f)","CAT Return - Data Analysis",null,"4. Not Modelled - Total - Other - Net Limit",null,null,null,null,null,null,null,null,{"$f":"'Schedule X(f)'!J46","v":0}]
["Sch X(f)","CAT Return - Data Analysis",null,"6. Unable Model - No Cat. Model - US - Gross Limit",null,null,null,null,null,null,null,null,{"$f":"'Schedule X(f)'!F61","v":0}]
["Sch X(f)","CAT Return - Data Analysis",null,"6. Unable Model - Total - US - Net Limit",null,null,null,null,null,null,null,null,{"$f":"'Schedule X(f)'!G64","v":0}]
["Sch X(f)","CAT Return - Data Analysis",null,"6. Unable Model - Other - Other - Gross Limit",null,null,null,null,null,null,null,null,{"$f":"'Schedule X(f)'!I63","v":0}]
["Sch X(f)","CAT Return - Data Analysis",null,"Q8 Contracts Not Modelable, Acc. Details",null,null,null,null,null,null,null,null,{"$f":"'Schedule X(f)'!C74","v":0}]
["Sch X(g)","CAT Return - Reinsurance Disclosures",null,"US - Premium - Other Method Risk Mitigation",null,null,null,null,null,null,null,null,{"$f":"'Schedule X(g)'!D12","v":0}]
["Sch X(g)","CAT Return - Reinsurance Disclosures",null,"US - Premium - Property Retro Contracts",null,null,null,null,null,null,null,null,{"$f":"'Schedule X(g)'!D16","v":0}]
["Sch X(g)","CAT Return - Reinsurance Disclosures",null,"US - Occuren. - Property per Risk Contracts",null,null,null,null,null,null,null,null,{"$f":"'Schedule X(g)'!E15","v":0}]
["Sch X(g)","CAT Return - Reinsurance Disclosures",null,"World - Premium - Other Method Risk Mitigation",null,null,null,null,null,null,null,null,{"$f":"'Schedule X(g)'!F12","v":0}]
["Sch X(g)","CAT Return - Reinsurance Disclosures",null,"World - Occuren. - Other Method Risk Mitigation",null,null,null,null,null,null,null,null,{"$f":"'Schedule X(g)'!G12","v":0}]
["Sch X(g)","CAT Return - Reinsurance Disclosures",null,"Other - Premium - Ind. Loss Warranty Contracts",null,null,null,null,null,null,null,null,{"$f":"'Schedule X(g)'!H11","v":0}]
["Sch X(g)","CAT Return - Reinsurance Disclosures",null,"Other - Premium - Property per Risk Contracts",null,null,null,null,null,null,null,null,{"$f":"'Schedule X(g)'!H15","v":0}]
["Sch X(g)","CAT Return - Reinsurance Disclosures",null,"Other - Occuren. - Surplus Share Contracts",null,null,null,null,null,null,null,null,{"$f":"'Schedule X(g)'!I18","v":0}]
["Sch X(g)","CAT Return - Reinsurance Disclosures",null,"Other - Occuren. - Total",null,null,null,null,null,null,null,null,{"$f":"'Schedule X(g)'!I19","v":0}]
["Sch X(h)","CAT Return - Insurance Terrorism Exposure",null,"Insurance - Convent. Terrorism - State 7",null,null,null,null,null,null,null,null,{"$f":"IF('Schedule X(h)'!D15=\"\",\"\",'Schedule X(h)'!D15)","v":0}]
["Sch X(h)","CAT Return - Insurance Terrorism Exposure",null,"Insurance - Convent. Terrorism - Country 6",null,null,null,null,null,null,null,null,{"$f":"IF('Schedule X(h)'!E14=\"\",\"\",'Schedule X(h)'!E14)","v":0}]
["Sch X(h)","CAT Return - Insurance Terrorism Exposure",null,"Insurance - Convent. Terrorism - Property Exposure 4",null,null,null,null,null,null,null,null,{"$f":"'Schedule X(h)'!F12","v":0}]
["Sch X(h)","CAT Return - Insurance Terrorism Exposure",null,"Insurance - Convent. Terrorism - Gross Exposure 3",null,null,null,null,null,null,null,null,{"$f":"'Schedule X(h)'!G11","v":0}]
["Sch X(h)","CAT Return - Insurance Terrorism Exposure",null,"Insurance - Convent. Terrorism - Gross Exposure 9",null,null,null,null,null,null,null,null,{"$f":"'Schedule X(h)'!G17","v":0}]
["Sch X(h)","CAT Return - Insurance Terrorism Exposure",null,"Insurance - Convent. Terrorism - TRIP Recover. 10",null,null,null,null,null,null,null,null,{"$f":"'Schedule X(h)'!H18","v":0}]
["Sch X(h)","CAT Return - Insurance Terrorism Exposure",null,"Insurance - Convent. Terrorism - R/I Recover. 9",null,null,null,null,null,null,null,null,{"$f":"'Schedule X(h)'!I17","v":0}]
["Sch X(h)","CAT Return - Insurance Terrorism Exposure",null,"Insurance - Convent. Terrorism - Net Exposure 6",null,null,null,null,null,null,null,null,{"$f":"'Schedule X(h)'!J14","v":0}]
["Sch X(h)","CAT Return - Insurance Terrorism Exposure",null,"Insurance - Convent. Terrorism - Net Exposure 8",null,null,null,null,null,null,null,null,{"$f":"'Schedule X(h)'!J16","v":0}]
["Sch X(h)","CAT Return - Insurance Terrorism Exposure",null,"Insurance - Convent. Terrorism - Location 7",null,null,null,null,null,null,null,null,{"$f":"IF('Schedule X(h)'!K15=\"\",\"\",'Schedule X(h)'!K15)","v":0}]
["Sch X(h)","CAT Return - Insurance Terrorism Exposure",null,"Insurance - NBCR Terrorism - State 9",null,null,null,null,null,null,null,null,{"$f":"IF('Schedule X(h)'!D32=\"\",\"\",'Schedule X(h)'!D32)","v":0}]
["Sch X(h)","CAT Return - Insurance Terrorism Exposure",null,"Insurance - NBCR Terrorism - Country 4",null,null,null,null,null,null,null,null,{"$f":"IF('Schedule X(h)'!E27=\"\",\"\",'Schedule X(h)'!E27)","v":0}]
["Sch X(h)","CAT Return - Insurance Terrorism Exposure",null,"Insurance - NBCR Terrorism - Property Exposure 3",null,null,null,null,null,null,null,null,{"$f":"'Schedule X(h)'!F26","v":0}]
["Sch X(h)","CAT Return - Insurance Terrorism Exposure",null,"Insurance - NBCR Terrorism - Gross Exposure 2",null,null,null,null,null,null,null,null,{"$f":"'Schedule X(h)'!G25","v":0}]
["Sch X(h)","CAT Return - Insurance Terrorism Exposure",null,"Insurance - NBCR Terrorism - Gross Exposure 10",null,null,null,null,null,null,null,null,{"$f":"'Schedule X(h)'!G33","v":0}]
["Sch X(h)","CAT Return - Insurance Terrorism Exposure",null,"Insurance - NBCR Terrorism - TRIP Recover. 1",null,null,null,null,null,null,null,null,{"$f":"'Schedule X(h)'!H24","v":0}]
["Sch X(h)","CAT Return - Insurance Terrorism Exposure",null,"Insurance - NBCR Terrorism - R/I Recover. 5",null,null,null,null,null,null,null,null,{"$f":"'Schedule X(h)'!I28","v":0}]
["Sch X(h)","CAT Return - Insurance Terrorism Exposure",null,"Insurance - NBCR Terrorism - R/I Recover. 8",null,null,null,null,null,null,null,null,{"$f":"'Schedule X(h)'!I31","v":0}]
["Sch X(h)","CAT Return - Insurance Terrorism Exposure",null,"Insurance - NBCR Terrorism - Net Exposure 7",null,null,null,null,null,null,null,null,{"$f":"'Schedule X(h)'!J30","v":0}]
["Sch X(i)","CAT Return - Reinsurance Terrorism Exposure",null,"Reins. - Convent. Terrorism - State 7",null,null,null,null,null,null,null,null,{"$f":"IF('Schedule X(i)'!E15=\"\",\"\",'Schedule X(i)'!E15)","v":0}]
["Sch X(i)","CAT Return - Reinsurance Terrorism Exposure",null,"Reins. - Convent. Terrorism - Country 3",null,null,null,null,null,null,null,null,{"$f":"IF('Schedule X(i)'!F11=\"\",\"\",'Schedule X(i)'!F11)","v":0}]
["Sch X(i)","CAT Return - Reinsurance Terrorism Exposure",null,"Reins. - Convent. Terrorism - Property Exposure 2",null,null,null,null,null,null,null,null,{"$f":"'Schedule X(i)'!G10","v":0}]
["Sch X(i)","CAT Return - Reinsurance Terrorism Exposure",null,"Reins. - Convent. Terrorism - Property Exposure 10",null,null,null,null,null,null,null,null,{"$f":"'Schedule X(i)'!G18","v":0}]
["Sch X(i)","CAT Return - Reinsurance Terrorism Exposure",null,"Reins. - Convent. Terrorism - Gross Exposure 1",null,null,null,null,null,null,null,null,{"$f":"'Schedule X(i)'!H9","v":0}]
["Sch X(i)","CAT Return - Reinsurance Terrorism Exposure",null,"Reins. - Convent. Terrorism - Gross Exposure 10",null,null,null,null,null,null,null,null,{"$f":"'Schedule X(i)'!H18","v":0}]
["Sch X(i)","CAT Return - Reinsurance Terrorism Exposure",null,"Reins. - Convent. Terrorism - R/I Recover. 3",null,null,null,null,null,null,null,null,{"$f":"'Schedule X(i)'!J11","v":0}]
["Sch X(i)","CAT Return - Reinsurance Terrorism Exposure",null,"Reins. - Convent. Terrorism - R/I Recover. 7",null,null,null,null,null,null,null,null,{"$f":"'Schedule X(i)'!J15","v":0}]
["Sch X(i)","CAT Return - Reinsurance Terrorism Exposure",null,"Reins. - Convent. Terrorism - Net Exposure 6",null,null,null,null,null,null,null,null,{"$f":"'Schedule X(i)'!K14","v":0}]
["Sch X(i)","CAT Return - Reinsurance Terrorism Exposure",null,"Reins. - NBCR Terrorism - State 5",null,null,null,null,null,null,null,null,{"$f":"IF('Schedule X(i)'!E28=\"\",\"\",'Schedule X(i)'!E28)","v":0}]
["Sch X(i)","CAT Return - Reinsurance Terrorism Exposure",null,"Reins. - NBCR Terrorism - Country 2",null,null,null,null,null,null,null,null,{"$f":"IF('Schedule X(i)'!F25=\"\",\"\",'Schedule X(i)'!F25)","v":0}]
["Sch X(i)","CAT Return - Reinsurance Terrorism Exposure",null,"Reins. - NBCR Terrorism - Property Exposure 2",null,null,null,null,null,null,null,null,{"$f":"'Schedule X(i)'!G25","v":0}]
["Sch X(i)","CAT Return - Reinsurance Terrorism Exposure",null,"Reins. - NBCR Terrorism - Property Exposure 3",null,null,null,null,null,null,null,null,{"$f":"'Schedule X(i)'!G26","v":0}]
["Sch X(i)","CAT Return - Reinsurance Terrorism Exposure",null,"Reins. - NBCR Terrorism - Gross Exposure 5",null,null,null,null,null,null,null,null,{"$f":"'Schedule X(i)'!H28","v":0}]
["Sch X(i)","CAT Return - Reinsurance Terrorism Exposure",null,"Reins. - NBCR Terrorism - Gross Exposure 10",null,null,null,null,null,null,null,null,{"$f":"'Schedule X(i)'!H33","v":0}]
["Sch X(i)","CAT Return - Reinsurance Terrorism Exposure",null,"Reins. - NBCR Terrorism - TRIP Recover. 9",null,null,null,null,null,null,null,null,{"$f":"'Schedule X(i)'!I32","v":0}]
["Sch X(i)","CAT Return - Reinsurance Terrorism Exposure",null,"Reins. - NBCR Terrorism - R/I Recover. 8",null,null,null,null,null,null,null,null,{"$f":"'Schedule X(i)'!J31","v":0}]
["Sch X(i)","CAT Return - Reinsurance Terrorism Exposure",null,"Reins. - NBCR Terrorism - Net Exposure 6",null,null,null,null,null,null,null,null,{"$f":"'Schedule X(i)'!K29","v":0}]
["Sch X(j)","CAT Return - Assumed Exchange Rates",null,"Currency - USD:Yen",null,null,null,null,null,null,null,null,{"$f":"'Schedule X(j)'!C11","v":"USD:Yen"}]
["Sch X(j)","CAT Return - Assumed Exchange Rates",null,"Currency - USD:Other 5",null,null,null,null,null,null,null,null,{"$f":"'Schedule X(j)'!C17","v":"USD:"}]
["Sch X(j)","CAT Return - Assumed Exchange Rates",null,"Exchange Rate - USD:Eur",null,null,null,null,null,null,null,null,{"$f":"'Schedule X(j)'!D9","v":0}]
["Sch X(j)","CAT Return - Assumed Exchange Rates",null,"Exchange Rate - USD:Other 6",null,null,null,null,null,null,null,null,{"$f":"'Schedule X(j)'!D18","v":0}]
["Sch XI(a)(i)","Loss Triangles - Property Catastrophe",null,{"$f":"\"Prop Cat - Incurred - Line 2 - \"&$E$2-7&\" - \"&$E$2-9","v":"Prop Cat - Incurred - Line 2 - 2015 - 2013"},null,null,null,null,null,null,null,null,{"$f":"+'Sch XI(a)(i)'!E12","v":0}]
["Sch XI(a)(i)","Loss Triangles - Property Catastrophe",null,{"$f":"\"Prop Cat - Incurred - Line 2 - \"&$E$2-5&\" - \"&$E$2-9","v":"Prop Cat - Incurred - Line 2 - 2017 - 2013"},null,null,null,null,null,null,null,null,{"$f":"+'Sch XI(a)(i)'!G12","v":0}]
["Sch XI(a)(i)","Loss Triangles - Property Catastrophe",null,{"$f":"\"Prop Cat - Incurred - Line 5 - \"&$E$2-4&\" - \"&$E$2-6","v":"Prop Cat - Incurred - Line 5 - 2018 - 2016"},null,null,null,null,null,null,null,null,{"$f":"+'Sch XI(a)(i)'!H15","v":0}]
["Sch XI(a)(i)","Loss Triangles - Property Catastrophe",null,{"$f":"\"Prop Cat - Incurred - Line 3 - \"&$E$2-3&\" - \"&$E$2-8","v":"Prop Cat - Incurred - Line 3 - 2019 - 2014"},null,null,null,null,null,null,null,null,{"$f":"+'Sch XI(a)(i)'!I13","v":0}]
["Sch XI(a)(i)","Loss Triangles - Property Catastrophe",null,{"$f":"\"Prop Cat - Incurred - Line 7 - \"&$E$2-2&\" - \"&$E$2-4","v":"Prop Cat - Incurred - Line 7 - 2020 - 2018"},null,null,null,null,null,null,null,null,{"$f":"+'Sch XI(a)(i)'!J17","v":0}]
["Sch XI(a)(i)","Loss Triangles - Property Catastrophe",null,{"$f":"\"Prop Cat - Incurred - Line 7 - \"&$E$2-1&\" - \"&$E$2-4","v":"Prop Cat - Incurred - Line 7 - 2021 - 2018"},null,null,null,null,null,null,null,null,{"$f":"+'Sch XI(a)(i)'!K17","v":0}]
["Sch XI(a)(i)","Loss Triangles - Property Catastrophe",null,{"$f":"\"Prop Cat - Incurred - Line 9 - \"&$E$2-1&\" - \"&$E$2-2","v":"Prop Cat - Incurred - Line 9 - 2021 - 2020"},null,null,null,null,null,null,null,null,{"$f":"+'Sch XI(a)(i)'!K19","v":0}]
["Sch XI(a)(i)","Loss Triangles - Property Catastrophe",null,{"$f":"\"Prop Cat - Incurred - Line 6 - \"&$E$2&\" - \"&$E$2-5","v":"Prop Cat - Incurred - Line 6 - 2022 - 2017"},null,null,null,null,null,null,null,null,{"$f":"+'Sch XI(a)(i)'!L16","v":0}]
["Sch XI(a)(i)","Loss Triangles - Property Catastrophe",null,{"$f":"\"Prop Cat - Incurred - Line 4 - Cat Loss. - \"&$E$2-7","v":"Prop Cat - Incurred - Line 4 - Cat Loss. - 2015"},null,null,null,null,null,null,null,null,{"$f":"+'Sch XI(a)(i)'!M14","v":0}]
["Sch XI(a)(i)","Loss Triangles - Property Catastrophe",null,{"$f":"\"Prop Cat - Incurred - Line 11 - Cat Loss. - \"&$E$2","v":"Prop Cat - Incurred - Line 11 - Cat Loss. - 2022"},null,null,null,null,null,null,null,null,{"$f":"+'Sch XI(a)(i)'!M21","v":0}]
["Sch XI(a)(i)","Loss Triangles - Property Catastrophe",null,{"$f":"\"Prop Cat - Paid - Line 13 - \"&$E$2-6&\" - Prior\"","v":"Prop Cat - Paid - Line 13 - 2016 - Prior"},null,null,null,null,null,null,null,null,{"$f":"+'Sch XI(a)(i)'!F29","v":0}]
["Sch XI(a)(i)","Loss Triangles - Property Catastrophe",null,{"$f":"\"Prop Cat - Paid - Line 17 - \"&$E$2-5&\" - \"&$E$2-6","v":"Prop Cat - Paid - Line 17 - 2017 - 2016"},null,null,null,null,null,null,null,null,{"$f":"+'Sch XI(a)(i)'!G33","v":0}]
["Sch XI(a)(i)","Loss Triangles - Property Catastrophe",null,{"$f":"\"Prop Cat - Paid - Line 15 - \"&$E$2-4&\" - \"&$E$2-8","v":"Prop Cat - Paid - Line 15 - 2018 - 2014"},null,null,null,null,null,null,null,null,{"$f":"+'Sch XI(a)(i)'!H31","v":0}]
["Sch XI(a)(i)","Loss Triangles - Property Catastrophe",null,{"$f":"\"Prop Cat - Paid - Line 13 - \"&$E$2-2&\" - Prior\"","v":"Prop Cat - Paid - Line 13 - 2020 - Prior"},null,null,null,null,null,null,null,null,{"$f":"+'Sch XI(a)(i)'!J29","v":0}]
["Sch XI(a)(i)","Loss Triangles - Property Catastrophe",null,{"$f":"\"Prop Cat - Paid - Line 14 - \"&$E$2-2&\" - \"&$E$2-9","v":"Prop Cat - Paid - Line 14 - 2020 - 2013"},null,null,null,null,null,null,null,null,{"$f":"+'Sch XI(a)(i)'!J30","v":0}]
["Sch XI(a)(i)","Loss Triangles - Property Catastrophe",null,{"$f":"\"Prop Cat - Paid - Line 14 - \"&$E$2-1&\" - \"&$E$2-9","v":"Prop Cat - Paid - Line 14 - 2021 - 2013"},null,null,null,null,null,null,null,null,{"$f":"+'Sch XI(a)(i)'!K30","v":0}]
["Sch XI(a)(i)","Loss Triangles - Property Catastrophe",null,{"$f":"\"Prop Cat - Paid - Line 17 - \"&$E$2&\" - \"&$E$2-6","v":"Prop Cat - Paid - Line 17 - 2022 - 2016"},null,null,null,null,null,null,null,null,{"$f":"+'Sch XI(a)(i)'!L33","v":0}]
["Sch XI(a)(i)","Loss Triangles - Property Catastrophe",null,{"$f":"\"Prop Cat - Paid - Line 21 - \"&$E$2&\" - \"&$E$2-2","v":"Prop Cat - Paid - Line 21 - 2022 - 2020"},null,null,null,null,null,null,null,null,{"$f":"+'Sch XI(a)(i)'!L37","v":0}]
["Sch XI(a)(i)","Loss Triangles - Property Catastrophe",null,{"$f":"\"Prop Cat - Paid - Line 19 - Cat Loss. - \"&$E$2-4","v":"Prop Cat - Paid - Line 19 - Cat Loss. - 2018"},null,null,null,null,null,null,null,null,{"$f":"+'Sch XI(a)(i)'!M35","v":0}]
["Sch XI(a)(i)","Loss Triangles - Property Catastrophe",null,{"$f":"\"Prop Cat - Reserve - Line 25 - \"&$E$2-7&\" - Prior\"","v":"Prop Cat - Reserve - Line 25 - 2015 - Prior"},null,null,null,null,null,null,null,null,{"$f":"+'Sch XI(a)(i)'!E47","v":0}]
["Sch XI(a)(i)","Loss Triangles - Property Catastrophe",null,{"$f":"\"Prop Cat - Reserve - Line 28 - \"&$E$2-6&\" - \"&$E$2-7","v":"Prop Cat - Reserve - Line 28 - 2016 - 2015"},null,null,null,null,null,null,null,null,{"$f":"+'Sch XI(a)(i)'!F50","v":0}]
["Sch XI(a)(i)","Loss Triangles - Property Catastrophe",null,{"$f":"\"Prop Cat - Reserve - Line 26 - \"&$E$2-4&\" - \"&$E$2-9","v":"Prop Cat - Reserve - Line 26 - 2018 - 2013"},null,null,null,null,null,null,null,null,{"$f":"+'Sch XI(a)(i)'!H48","v":0}]
["Sch XI(a)(i)","Loss Triangles - Property Catastrophe",null,{"$f":"\"Prop Cat - Reserve - Line 26 - \"&$E$2-3&\" - \"&$E$2-9","v":"Prop Cat - Reserve - Line 26 - 2019 - 2013"},null,null,null,null,null,null,null,null,{"$f":"+'Sch XI(a)(i)'!I48","v":0}]
["Sch XI(a)(i)","Loss Triangles - Property Catastrophe",null,{"$f":"\"Prop Cat - Reserve - Line 28 - \"&$E$2-3&\" - \"&$E$2-7","v":"Prop Cat - Reserve - Line 28 - 2019 - 2015"},null,null,null,null,null,null,null,null,{"$f":"+'Sch XI(a)(i)'!I50","v":0}]
["Sch XI(a)(i)","Loss Triangles - Property Catastrophe",null,{"$f":"\"Prop Cat - Reserve - Line 29 - \"&$E$2-2&\" - \"&$E$2-6","v":"Prop Cat - Reserve - Line 29 - 2020 - 2016"},null,null,null,null,null,null,null,null,{"$f":"+'Sch XI(a)(i)'!J51","v":0}]
["Sch XI(a)(i)","Loss Triangles - Property Catastrophe",null,{"$f":"\"Prop Cat - Reserve - Line 32 - \"&$E$2-1&\" - \"&$E$2-3","v":"Prop Cat - Reserve - Line 32 - 2021 - 2019"},null,null,null,null,null,null,null,null,{"$f":"+'Sch XI(a)(i)'!K54","v":0}]
["Sch XI(a)(i)","Loss Triangles - Property Catastrophe",null,{"$f":"\"Prop Cat - Reserve - Line 27 - \"&$E$2&\" - \"&$E$2-8","v":"Prop Cat - Reserve - Line 27 - 2022 - 2014"},null,null,null,null,null,null,null,null,{"$f":"+'Sch XI(a)(i)'!L49","v":0}]
["Sch XI(a)(i)","Loss Triangles - Property Catastrophe",null,{"$f":"\"Prop Cat - Reserve - Line 25 - Cat Loss - Prior\"","v":"Prop Cat - Reserve - Line 25 - Cat Loss - Prior"},null,null,null,null,null,null,null,null,{"$f":"+'Sch XI(a)(i)'!M47","v":0}]
["Sch XI(a)(i)","Loss Triangles - Property Catastrophe",null,{"$f":"\"Prop Cat - Reserve - Line 34 - Cat Loss. - \"&$E$2-1","v":"Prop Cat - Reserve - Line 34 - Cat Loss. - 2021"},null,null,null,null,null,null,null,null,{"$f":"+'Sch XI(a)(i)'!M56","v":0}]
["Sch XI(a)(i)","Loss Triangles - Property Catastrophe",null,{"$f":"\"Prop Cat - GPW - Line 43 - \"&$E$2-4","v":"Prop Cat - GPW - Line 43 - 2018"},null,null,null,null,null,null,null,null,{"$f":"+'Sch XI(a)(i)'!C73","v":0}]
["Sch XI(a)(i)","Loss Triangles - Property Catastrophe",null,{"$f":"\"Prop Cat - GPW - Line 44 - \"&$E$2-3","v":"Prop Cat - GPW - Line 44 - 2019"},null,null,null,null,null,null,null,null,{"$f":"+'Sch XI(a)(i)'!C74","v":0}]
["Sch XI(a)(i)","Loss Triangles - Property Catastrophe",null,{"$f":"\"Prop Cat - Gross Premiums Earned - Line 47 - \"&$E$2","v":"Prop Cat - Gross Premiums Earned - Line 47 - 2022"},null,null,null,null,null,null,null,null,{"$f":"+'Sch XI(a)(i)'!D77","v":0}]
["Sch XI(a)(i)","Loss Triangles - Property Catastrophe",null,{"$f":"\"Prop Cat - NPW - Line 39 - \"&$E$2-8","v":"Prop Cat - NPW - Line 39 - 2014"},null,null,null,null,null,null,null,null,{"$f":"+'Sch XI(a)(i)'!E69","v":0}]
["Sch XI(a)(i)","Loss Triangles - Property Catastrophe",null,{"$f":"\"Prop Cat - Net Premiums Earned - Line 37 - Prior\"","v":"Prop Cat - Net Premiums Earned - Line 37 - Prior"},null,null,null,null,null,null,null,null,{"$f":"+'Sch XI(a)(i)'!F67","v":"XXX"}]
["Sch XI(a)(i)","Loss Triangles - Property Catastrophe",null,{"$f":"\"Prop Cat - Net Premiums Earned - Line 45 - \"&$E$2-2","v":"Prop Cat - Net Premiums Earned - Line 45 - 2020"},null,null,null,null,null,null,null,null,{"$f":"+'Sch XI(a)(i)'!F75","v":0}]
["Sch XI(a)(i)","Loss Triangles - Property Catastrophe",null,{"$f":"\"Prop Cat - Expenses Paid - Line 43 - \"&$E$2-4","v":"Prop Cat - Expenses Paid - Line 43 - 2018"},null,null,null,null,null,null,null,null,{"$f":"+'Sch XI(a)(i)'!G73","v":0}]
["Sch XI(a)(i)","Loss Triangles - Property Catastrophe",null,{"$f":"\"Prop Cat - Expenses Incurred - Line 41 - \"&$E$2-6","v":"Prop Cat - Expenses Incurred - Line 41 - 2016"},null,null,null,null,null,null,null,null,{"$f":"+'Sch XI(a)(i)'!H71","v":0}]
["Sch XI(a)(i)","Loss Triangles - Property Catastrophe",null,{"$f":"\"Prop Cat - Expenses Incurred - Line 46 - \"&$E$2-1","v":"Prop Cat - Expenses Incurred - Line 46 - 2021"},null,null,null,null,null,null,null,null,{"$f":"+'Sch XI(a)(i)'!H76","v":0}]
["Sch XI(a)(i)","Loss Triangles - Property Catastrophe",null,{"$f":"\"Prop Cat - Brokerage - Line 39 - \"&$E$2-8","v":"Prop Cat - Brokerage - Line 39 - 2014"},null,null,null,null,null,null,null,null,{"$f":"+'Sch XI(a)(i)'!J69","v":0}]
["Sch XI(a)(i)","Loss Triangles - Property Catastrophe",null,{"$f":"\"Prop Cat - G&A - Line 37 - Prior\"","v":"Prop Cat - G&A - Line 37 - Prior"},null,null,null,null,null,null,null,null,{"$f":"+'Sch XI(a)(i)'!K67","v":0}]
["Sch XI(a)(i)","Loss Triangles - Property Catastrophe",null,{"$f":"\"Prop Cat - G&A - Line 47 - \"&$E$2","v":"Prop Cat - G&A - Line 47 - 2022"},null,null,null,null,null,null,null,null,{"$f":"+'Sch XI(a)(i)'!K77","v":0}]
["Sch XI(a)(i)","Loss Triangles - Property Catastrophe",null,{"$f":"\"Prop Cat - Personnel Costs - Line 43 - \"&$E$2-4","v":"Prop Cat - Personnel Costs - Line 43 - 2018"},null,null,null,null,null,null,null,null,{"$f":"+'Sch XI(a)(i)'!L73","v":0}]
["Sch XI(a)(i)","Loss Triangles - Property Catastrophe",null,{"$f":"\"Prop Cat - Other Exp. - Line 41 - \"&$E$2-6","v":"Prop Cat - Other Exp. - Line 41 - 2016"},null,null,null,null,null,null,null,null,{"$f":"+'Sch XI(a)(i)'!M71","v":0}]
["Sch XI(a)(ii)","Loss Triangles - Property",null,{"$f":"\"Property - Incurred - Line 2 - \"&$E$2-9&\" - \"&$E$2-9","v":"Property - Incurred - Line 2 - 2013 - 2013"},null,null,null,null,null,null,null,null,{"$f":"+'Sch XI(a)(ii)'!C12","v":0}]
["Sch XI(a)(ii)","Loss Triangles - Property",null,{"$f":"\"Property - Incurred - Line 4 - \"&$E$2-7&\" - \"&$E$2-7","v":"Property - Incurred - Line 4 - 2015 - 2015"},null,null,null,null,null,null,null,null,{"$f":"+'Sch XI(a)(ii)'!E14","v":0}]
["Sch XI(a)(ii)","Loss Triangles - Property",null,{"$f":"\"Property - Incurred - Line 5 - \"&$E$2-5&\" - \"&$E$2-6","v":"Property - Incurred - Line 5 - 2017 - 2016"},null,null,null,null,null,null,null,null,{"$f":"+'Sch XI(a)(ii)'!G15","v":0}]
["Sch XI(a)(ii)","Loss Triangles - Property",null,{"$f":"\"Property - Incurred - Line 6 - \"&$E$2-5&\" - \"&$E$2-5","v":"Property - Incurred - Line 6 - 2017 - 2017"},null,null,null,null,null,null,null,null,{"$f":"+'Sch XI(a)(ii)'!G16","v":0}]
["Sch XI(a)(ii)","Loss Triangles - Property",null,{"$f":"\"Property - Incurred - Line 2 - \"&$E$2-3&\" - \"&$E$2-9","v":"Property - Incurred - Line 2 - 2019 - 2013"},null,null,null,null,null,null,null,null,{"$f":"+'Sch XI(a)(ii)'!I12","v":0}]
["Sch XI(a)(ii)","Loss Triangles - Property",null,{"$f":"\"Property - Incurred - Line 2 - \"&$E$2-2&\" - \"&$E$2-9","v":"Property - Incurred - Line 2 - 2020 - 2013"},null,null,null,null,null,null,null,null,{"$f":"+'Sch XI(a)(ii)'!J12","v":0}]
["Sch XI(a)(ii)","Loss Triangles - Property",null,{"$f":"\"Property - Incurred - Line 2 - \"&$E$2-1&\" - \"&$E$2-9","v":"Property - Incurred - Line 2 - 2021 - 2013"},null,null,null,null,null,null,null,null,{"$f":"+'Sch XI(a)(ii)'!K12","v":0}]
["Sch XI(a)(ii)","Loss Triangles - Property",null,{"$f":"\"Property - Incurred - Line 8 - \"&$E$2-1&\" - \"&$E$2-3","v":"Property - Incurred - Line 8 - 2021 - 2019"},null,null,null,null,null,null,null,null,{"$f":"+'Sch XI(a)(ii)'!K18","v":0}]
["Sch XI(a)(ii)","Loss Triangles - Property",null,{"$f":"\"Property - Incurred - Line 9 - \"&$E$2&\" - \"&$E$2-2","v":"Property - Incurred - Line 9 - 2022 - 2020"},null,null,null,null,null,null,null,null,{"$f":"+'Sch XI(a)(ii)'!L19","v":0}]
["Sch XI(a)(ii)","Loss Triangles - Property",null,{"$f":"\"Property - Incurred - Line 7 - Cat Loss. - \"&$E$2-4","v":"Property - Incurred - Line 7 - Cat Loss. - 2018"},null,null,null,null,null,null,null,null,{"$f":"+'Sch XI(a)(ii)'!M17","v":0}]
["Sch XI(a)(ii)","Loss Triangles - Property",null,{"$f":"\"Property - Incurred - Line 10 - Cat Loss. - \"&$E$2-1","v":"Property - Incurred - Line 10 - Cat Loss. - 2021"},null,null,null,null,null,null,null,null,{"$f":"+'Sch XI(a)(ii)'!M20","v":0}]
["Sch XI(a)(ii)","Loss Triangles - Property",null,{"$f":"\"Property - Paid - Line 15 - \"&$E$2-8&\" - \"&$E$2-8","v":"Property - Paid - Line 15 - 2014 - 2014"},null,null,null,null,null,null,null,null,{"$f":"+'Sch XI(a)(ii)'!D31","v":0}]
["Sch XI(a)(ii)","Loss Triangles - Property",null,{"$f":"\"Property - Paid - Line 17 - \"&$E$2-6&\" - \"&$E$2-6","v":"Property - Paid - Line 17 - 2016 - 2016"},null,null,null,null,null,null,null,null,{"$f":"+'Sch XI(a)(ii)'!F33","v":0}]
["Sch XI(a)(ii)","Loss Triangles - Property",null,{"$f":"\"Property - Paid - Line 14 - \"&$E$2-4&\" - \"&$E$2-9","v":"Property - Paid - Line 14 - 2018 - 2013"},null,null,null,null,null,null,null,null,{"$f":"+'Sch XI(a)(ii)'!H30","v":0}]
["Sch XI(a)(ii)","Loss Triangles - Property",null,{"$f":"\"Property - Paid - Line 16 - \"&$E$2-3&\" - \"&$E$2-7","v":"Property - Paid - Line 16 - 2019 - 2015"},null,null,null,null,null,null,null,null,{"$f":"+'Sch XI(a)(ii)'!I32","v":0}]
["Sch XI(a)(ii)","Loss Triangles - Property",null,{"$f":"\"Property - Paid - Line 17 - \"&$E$2-2&\" - \"&$E$2-6","v":"Property - Paid - Line 17 - 2020 - 2016"},null,null,null,null,null,null,null,null,{"$f":"+'Sch XI(a)(ii)'!J33","v":0}]
["Sch XI(a)(ii)","Loss Triangles - Property",null,{"$f":"\"Property - Paid - Line 13 - \"&$E$2-1&\" - Prior\"","v":"Property - Paid - Line 13 - 2021 - Prior"},null,null,null,null,null,null,null,null,{"$f":"+'Sch XI(a)(ii)'!K29","v":0}]
["Sch XI(a)(ii)","Loss Triangles - Property",null,{"$f":"\"Property - Paid - Line 15 - \"&$E$2&\" - \"&$E$2-8","v":"Property - Paid - Line 15 - 2022 - 2014"},null,null,null,null,null,null,null,null,{"$f":"+'Sch XI(a)(ii)'!L31","v":0}]
["Sch XI(a)(ii)","Loss Triangles - Property",null,{"$f":"\"Property - Paid - Line 13 - Cat Loss - Prior\"","v":"Property - Paid - Line 13 - Cat Loss - Prior"},null,null,null,null,null,null,null,null,{"$f":"+'Sch XI(a)(ii)'!M29","v":0}]
["Sch XI(a)(ii)","Loss Triangles - Property",null,{"$f":"\"Property - Paid - Line 15 - Cat Loss. - \"&$E$2-8","v":"Property - Paid - Line 15 - Cat Loss. - 2014"},null,null,null,null,null,null,null,null,{"$f":"+'Sch XI(a)(ii)'!M31","v":0}]
["Sch XI(a)(ii)","Loss Triangles - Property",null,{"$f":"\"Property - Paid - Line 22 - Cat Loss. - \"&$E$2-1","v":"Property - Paid - Line 22 - Cat Loss. - 2021"},null,null,null,null,null,null,null,null,{"$f":"+'Sch XI(a)(ii)'!M38","v":0}]
["Sch XI(a)(ii)","Loss Triangles - Property",null,{"$f":"\"Property - Reserve - Line 27 - \"&$E$2-7&\" - \"&$E$2-8","v":"Property - Reserve - Line 27 - 2015 - 2014"},null,null,null,null,null,null,null,null,{"$f":"+'Sch XI(a)(ii)'!E49","v":0}]
["Sch XI(a)(ii)","Loss Triangles - Property",null,{"$f":"\"Property - Reserve - Line 25 - \"&$E$2-5&\" - Prior\"","v":"Property - Reserve - Line 25 - 2017 - Prior"},null,null,null,null,null,null,null,null,{"$f":"+'Sch XI(a)(ii)'!G47","v":0}]
["Sch XI(a)(ii)","Loss Triangles - Property",null,{"$f":"\"Property - Reserve - Line 29 - \"&$E$2-4&\" - \"&$E$2-6","v":"Property - Reserve - Line 29 - 2018 - 2016"},null,null,null,null,null,null,null,null,{"$f":"+'Sch XI(a)(ii)'!H51","v":0}]
["Sch XI(a)(ii)","Loss Triangles - Property",null,{"$f":"\"Property - Reserve - Line 31 - \"&$E$2-3&\" - \"&$E$2-4","v":"Property - Reserve - Line 31 - 2019 - 2018"},null,null,null,null,null,null,null,null,{"$f":"+'Sch XI(a)(ii)'!I53","v":0}]
["Sch XI(a)(ii)","Loss Triangles - Property",null,{"$f":"\"Property - Reserve - Line 31 - \"&$E$2-2&\" - \"&$E$2-4","v":"Property - Reserve - Line 31 - 2020 - 2018"},null,null,null,null,null,null,null,null,{"$f":"+'Sch XI(a)(ii)'!J53","v":0}]
["Sch XI(a)(ii)","Loss Triangles - Property",null,{"$f":"\"Property - Reserve - Line 31 - \"&$E$2-1&\" - \"&$E$2-4","v":"Property - Reserve - Line 31 - 2021 - 2018"},null,null,null,null,null,null,null,null,{"$f":"+'Sch XI(a)(ii)'!K53","v":0}]
["Sch XI(a)(ii)","Loss Triangles - Property",null,{"$f":"\"Property - Reserve - Line 32 - \"&$E$2-1&\" - \"&$E$2-3","v":"Property - Reserve - Line 32 - 2021 - 2019"},null,null,null,null,null,null,null,null,{"$f":"+'Sch XI(a)(ii)'!K54","v":0}]
["Sch XI(a)(ii)","Loss Triangles - Property",null,{"$f":"\"Property - Reserve - Line 31 - \"&$E$2&\" - \"&$E$2-4","v":"Property - Reserve - Line 31 - 2022 - 2018"},null,null,null,null,null,null,null,null,{"$f":"+'Sch XI(a)(ii)'!L53","v":0}]
["Sch XI(a)(ii)","Loss Triangles - Property",null,{"$f":"\"Property - Reserve - Line 33 - Cat Loss. - \"&$E$2-2","v":"Property - Reserve - Line 33 - Cat Loss. - 2020"},null,null,null,null,null,null,null,null,{"$f":"+'Sch XI(a)(ii)'!M55","v":0}]
["Sch XI(a)(ii)","Loss Triangles - Property",null,{"$f":"\"Property - GPW - Line 38 - \"&$E$2-9","v":"Property - GPW - Line 38 - 2013"},null,null,null,null,null,null,null,null,{"$f":"+'Sch XI(a)(ii)'!C68","v":0}]
["Sch XI(a)(ii)","Loss Triangles - Property",null,{"$f":"\"Property - GPW - Line 47 - \"&$E$2","v":"Property - GPW - Line 47 - 2022"},null,null,null,null,null,null,null,null,{"$f":"+'Sch XI(a)(ii)'!C77","v":0}]
["Sch XI(a)(ii)","Loss Triangles - Property",null,{"$f":"\"Property - Gross Premiums Earned - Line 46 - \"&$E$2-1","v":"Property - Gross Premiums Earned - Line 46 - 2021"},null,null,null,null,null,null,null,null,{"$f":"+'Sch XI(a)(ii)'!D76","v":0}]
["Sch XI(a)(ii)","Loss Triangles - Property",null,{"$f":"\"Property - NPW - Line 42 - \"&$E$2-5","v":"Property - NPW - Line 42 - 2017"},null,null,null,null,null,null,null,null,{"$f":"+'Sch XI(a)(ii)'!E72","v":0}]
["Sch XI(a)(ii)","Loss Triangles - Property",null,{"$f":"\"Property - Net Premiums Earned - Line 40 - \"&$E$2-7","v":"Property - Net Premiums Earned - Line 40 - 2015"},null,null,null,null,null,null,null,null,{"$f":"+'Sch XI(a)(ii)'!F70","v":0}]
["Sch XI(a)(ii)","Loss Triangles - Property",null,{"$f":"\"Property - Net Premiums Earned - Line 47 - \"&$E$2","v":"Property - Net Premiums Earned - Line 47 - 2022"},null,null,null,null,null,null,null,null,{"$f":"+'Sch XI(a)(ii)'!F77","v":0}]
["Sch XI(a)(ii)","Loss Triangles - Property",null,{"$f":"\"Property - Expenses Paid - Line 38 - \"&$E$2-9","v":"Property - Expenses Paid - Line 38 - 2013"},null,null,null,null,null,null,null,null,{"$f":"+'Sch XI(a)(ii)'!G68","v":0}]
["Sch XI(a)(ii)","Loss Triangles - Property",null,{"$f":"\"Property - Expenses Paid - Line 47 - \"&$E$2","v":"Property - Expenses Paid - Line 47 - 2022"},null,null,null,null,null,null,null,null,{"$f":"+'Sch XI(a)(ii)'!G77","v":0}]
["Sch XI(a)(ii)","Loss Triangles - Property",null,{"$f":"\"Property - Expenses Incurred - Line 45 - \"&$E$2-2","v":"Property - Expenses Incurred - Line 45 - 2020"},null,null,null,null,null,null,null,null,{"$f":"+'Sch XI(a)(ii)'!H75","v":0}]
["Sch XI(a)(ii)","Loss Triangles - Property",null,{"$f":"\"Property - Brokerage - Line 42 - \"&$E$2-5","v":"Property - Brokerage - Line 42 - 2017"},null,null,null,null,null,null,null,null,{"$f":"+'Sch XI(a)(ii)'!J72","v":0}]
["Sch XI(a)(ii)","Loss Triangles - Property",null,{"$f":"\"Property - G&A - Line 40 - \"&$E$2-7","v":"Property - G&A - Line 40 - 2015"},null,null,null,null,null,null,null,null,{"$f":"+'Sch XI(a)(ii)'!K70","v":0}]
["Sch XI(a)(ii)","Loss Triangles - Property",null,{"$f":"\"Property - G&A - Line 46 - \"&$E$2-1","v":"Property - G&A - Line 46 - 2021"},null,null,null,null,null,null,null,null,{"$f":"+'Sch XI(a)(ii)'!K76","v":0}]
["Sch XI(a)(ii)","Loss Triangles - Property",null,{"$f":"\"Property - Personnel Costs - Line 46 - \"&$E$2-1","v":"Property - Personnel Costs - Line 46 - 2021"},null,null,null,null,null,null,null,null,{"$f":"+'Sch XI(a)(ii)'!L76","v":0}]
["Sch XI(a)(ii)","Loss Triangles - Property",null,{"$f":"\"Property - Personnel Costs - Line 47 - \"&$E$2","v":"Property - Personnel Costs - Line 47 - 2022"},null,null,null,null,null,null,null,null,{"$f":"+'Sch XI(a)(ii)'!L77","v":0}]
["Sch XI(a)(ii)","Loss Triangles - Property",null,{"$f":"\"Property - Other Exp. - Line 47 - \"&$E$2","v":"Property - Other Exp. - Line 47 - 2022"},null,null,null,null,null,null,null,null,{"$f":"+'Sch XI(a)(ii)'!M77","v":0}]
["Sch XI(a)(iii)","Loss Triangles - Property Non-Proportional",null,{"$f":"\"Prop. Non-Prop.- Incurred - Line 3 - \"&$E$2-8&\" - \"&$E$2-8","v":"Prop. Non-Prop.- Incurred - Line 3 - 2014 - 2014"},null,null,null,null,null,null,null,null,{"$f":"+'Sch XI(a)(iii)'!D13","v":0}]
["Sch XI(a)(iii)","Loss Triangles - Property Non-Proportional",null,{"$f":"\"Prop. Non-Prop.- Incurred - Line 5 - \"&$E$2-6&\" - \"&$E$2-6","v":"Prop. Non-Prop.- Incurred - Line 5 - 2016 - 2016"},null,null,null,null,null,null,null,null,{"$f":"+'Sch XI(a)(iii)'!F15","v":0}]
["Sch XI(a)(iii)","Loss Triangles - Property Non-Proportional",null,{"$f":"\"Prop. Non-Prop.- Incurred - Line 2 - \"&$E$2-4&\" - \"&$E$2-9","v":"Prop. Non-Prop.- Incurred - Line 2 - 2018 - 2013"},null,null,null,null,null,null,null,null,{"$f":"+'Sch XI(a)(iii)'!H12","v":0}]
["Sch XI(a)(iii)","Loss Triangles - Property Non-Proportional",null,{"$f":"\"Prop. Non-Prop.- Incurred - Line 4 - \"&$E$2-3&\" - \"&$E$2-7","v":"Prop. Non-Prop.- Incurred - Line 4 - 2019 - 2015"},null,null,null,null,null,null,null,null,{"$f":"+'Sch XI(a)(iii)'!I14","v":0}]
["Sch XI(a)(iii)","Loss Triangles - Property Non-Proportional",null,{"$f":"\"Prop. Non-Prop.- Incurred - Line 5 - \"&$E$2-2&\" - \"&$E$2-6","v":"Prop. Non-Prop.- Incurred - Line 5 - 2020 - 2016"},null,null,null,null,null,null,null,null,{"$f":"+'Sch XI(a)(iii)'!J15","v":0}]
["Sch XI(a)(iii)","Loss Triangles - Property Non-Proportional",null,{"$f":"\"Prop. Non-Prop.- Incurred - Line 1 - \"&$E$2-1&\" - Prior\"","v":"Prop. Non-Prop.- Incurred - Line 1 - 2021 - Prior"},null,null,null,null,null,null,null,null,{"$f":"+'Sch XI(a)(iii)'!K11","v":0}]
["Sch XI(a)(iii)","Loss Triangles - Property Non-Proportional",null,{"$f":"\"Prop. Non-Prop.- Incurred - Line 5 - \"&$E$2-1&\" - \"&$E$2-6","v":"Prop. Non-Prop.- Incurred - Line 5 - 2021 - 2016"},null,null,null,null,null,null,null,null,{"$f":"+'Sch XI(a)(iii)'!K15","v":0}]
["Sch XI(a)(iii)","Loss Triangles - Property Non-Proportional",null,{"$f":"\"Prop. Non-Prop.- Incurred - Line 4 - \"&$E$2&\" - \"&$E$2-7","v":"Prop. Non-Prop.- Incurred - Line 4 - 2022 - 2015"},null,null,null,null,null,null,null,null,{"$f":"+'Sch XI(a)(iii)'!L14","v":0}]
["Sch XI(a)(iii)","Loss Triangles - Property Non-Proportional",null,{"$f":"\"Prop. Non-Prop.- Incurred - Line 3 - Cat Loss. - \"&$E$2-8","v":"Prop. Non-Prop.- Incurred - Line 3 - Cat Loss. - 2014"},null,null,null,null,null,null,null,null,{"$f":"+'Sch XI(a)(iii)'!M13","v":0}]
["Sch XI(a)(iii)","Loss Triangles - Property Non-Proportional",null,{"$f":"\"Prop. Non-Prop.- Incurred - Line 10 - Cat Loss. - \"&$E$2-1","v":"Prop. Non-Prop.- Incurred - Line 10 - Cat Loss. - 2021"},null,null,null,null,null,null,null,null,{"$f":"+'Sch XI(a)(iii)'!M20","v":0}]
["Sch XI(a)(iii)","Loss Triangles - Property Non-Proportional",null,{"$f":"\"Prop. Non-Prop.- Paid - Line 15 - \"&$E$2-7&\" - \"&$E$2-8","v":"Prop. Non-Prop.- Paid - Line 15 - 2015 - 2014"},null,null,null,null,null,null,null,null,{"$f":"+'Sch XI(a)(iii)'!E31","v":0}]
["Sch XI(a)(iii)","Loss Triangles - Property Non-Proportional",null,{"$f":"\"Prop. Non-Prop.- Paid - Line 15 - \"&$E$2-5&\" - \"&$E$2-8","v":"Prop. Non-Prop.- Paid - Line 15 - 2017 - 2014"},null,null,null,null,null,null,null,null,{"$f":"+'Sch XI(a)(iii)'!G31","v":0}]
["Sch XI(a)(iii)","Loss Triangles - Property Non-Proportional",null,{"$f":"\"Prop. Non-Prop.- Paid - Line 13 - \"&$E$2-4&\" - Prior\"","v":"Prop. Non-Prop.- Paid - Line 13 - 2018 - Prior"},null,null,null,null,null,null,null,null,{"$f":"+'Sch XI(a)(iii)'!H29","v":0}]
["Sch XI(a)(iii)","Loss Triangles - Property Non-Proportional",null,{"$f":"\"Prop. Non-Prop.- Paid - Line 19 - \"&$E$2-3&\" - \"&$E$2-4","v":"Prop. Non-Prop.- Paid - Line 19 - 2019 - 2018"},null,null,null,null,null,null,null,null,{"$f":"+'Sch XI(a)(iii)'!I35","v":0}]
["Sch XI(a)(iii)","Loss Triangles - Property Non-Proportional",null,{"$f":"\"Prop. Non-Prop.- Paid - Line 20 - \"&$E$2-3&\" - \"&$E$2-3","v":"Prop. Non-Prop.- Paid - Line 20 - 2019 - 2019"},null,null,null,null,null,null,null,null,{"$f":"+'Sch XI(a)(iii)'!I36","v":0}]
["Sch XI(a)(iii)","Loss Triangles - Property Non-Proportional",null,{"$f":"\"Prop. Non-Prop.- Paid - Line 21 - \"&$E$2-2&\" - \"&$E$2-2","v":"Prop. Non-Prop.- Paid - Line 21 - 2020 - 2020"},null,null,null,null,null,null,null,null,{"$f":"+'Sch XI(a)(iii)'!J37","v":0}]
["Sch XI(a)(iii)","Loss Triangles - Property Non-Proportional",null,{"$f":"\"Prop. Non-Prop.- Paid - Line 20 - \"&$E$2-1&\" - \"&$E$2-3","v":"Prop. Non-Prop.- Paid - Line 20 - 2021 - 2019"},null,null,null,null,null,null,null,null,{"$f":"+'Sch XI(a)(iii)'!K36","v":0}]
["Sch XI(a)(iii)","Loss Triangles - Property Non-Proportional",null,{"$f":"\"Prop. Non-Prop.- Paid - Line 19 - \"&$E$2&\" - \"&$E$2-4","v":"Prop. Non-Prop.- Paid - Line 19 - 2022 - 2018"},null,null,null,null,null,null,null,null,{"$f":"+'Sch XI(a)(iii)'!L35","v":0}]
["Sch XI(a)(iii)","Loss Triangles - Property Non-Proportional",null,{"$f":"\"Prop. Non-Prop.- Paid - Line 14 - Cat Loss. - \"&$E$2-9","v":"Prop. Non-Prop.- Paid - Line 14 - Cat Loss. - 2013"},null,null,null,null,null,null,null,null,{"$f":"+'Sch XI(a)(iii)'!M30","v":0}]
["Sch XI(a)(iii)","Loss Triangles - Property Non-Proportional",null,{"$f":"\"Prop. Non-Prop.- Reserve - Line 26 - \"&$E$2-9&\" - \"&$E$2-9","v":"Prop. Non-Prop.- Reserve - Line 26 - 2013 - 2013"},null,null,null,null,null,null,null,null,{"$f":"+'Sch XI(a)(iii)'!C48","v":0}]
["Sch XI(a)(iii)","Loss Triangles - Property Non-Proportional",null,{"$f":"\"Prop. Non-Prop.- Reserve - Line 26 - \"&$E$2-6&\" - \"&$E$2-9","v":"Prop. Non-Prop.- Reserve - Line 26 - 2016 - 2013"},null,null,null,null,null,null,null,null,{"$f":"+'Sch XI(a)(iii)'!F48","v":0}]
["Sch XI(a)(iii)","Loss Triangles - Property Non-Proportional",null,{"$f":"\"Prop. Non-Prop.- Reserve - Line 29 - \"&$E$2-6&\" - \"&$E$2-6","v":"Prop. Non-Prop.- Reserve - Line 29 - 2016 - 2016"},null,null,null,null,null,null,null,null,{"$f":"+'Sch XI(a)(iii)'!F51","v":0}]
["Sch XI(a)(iii)","Loss Triangles - Property Non-Proportional",null,{"$f":"\"Prop. Non-Prop.- Reserve - Line 30 - \"&$E$2-5&\" - \"&$E$2-5","v":"Prop. Non-Prop.- Reserve - Line 30 - 2017 - 2017"},null,null,null,null,null,null,null,null,{"$f":"+'Sch XI(a)(iii)'!G52","v":0}]
["Sch XI(a)(iii)","Loss Triangles - Property Non-Proportional",null,{"$f":"\"Prop. Non-Prop.- Reserve - Line 26 - \"&$E$2-3&\" - \"&$E$2-9","v":"Prop. Non-Prop.- Reserve - Line 26 - 2019 - 2013"},null,null,null,null,null,null,null,null,{"$f":"+'Sch XI(a)(iii)'!I48","v":0}]
["Sch XI(a)(iii)","Loss Triangles - Property Non-Proportional",null,{"$f":"\"Prop. Non-Prop.- Reserve - Line 26 - \"&$E$2-2&\" - \"&$E$2-9","v":"Prop. Non-Prop.- Reserve - Line 26 - 2020 - 2013"},null,null,null,null,null,null,null,null,{"$f":"+'Sch XI(a)(iii)'!J48","v":0}]
["Sch XI(a)(iii)","Loss Triangles - Property Non-Proportional",null,{"$f":"\"Prop. Non-Prop.- Reserve - Line 26 - \"&$E$2-1&\" - \"&$E$2-9","v":"Prop. Non-Prop.- Reserve - Line 26 - 2021 - 2013"},null,null,null,null,null,null,null,null,{"$f":"+'Sch XI(a)(iii)'!K48","v":0}]
["Sch XI(a)(iii)","Loss Triangles - Property Non-Proportional",null,{"$f":"\"Prop. Non-Prop.- Reserve - Line 25 - \"&$E$2&\" - Prior\"","v":"Prop. Non-Prop.- Reserve - Line 25 - 2022 - Prior"},null,null,null,null,null,null,null,null,{"$f":"+'Sch XI(a)(iii)'!L47","v":0}]
["Sch XI(a)(iii)","Loss Triangles - Property Non-Proportional",null,{"$f":"\"Prop. Non-Prop.- Reserve - Line 34 - \"&$E$2&\" - \"&$E$2-1","v":"Prop. Non-Prop.- Reserve - Line 34 - 2022 - 2021"},null,null,null,null,null,null,null,null,{"$f":"+'Sch XI(a)(iii)'!L56","v":0}]
["Sch XI(a)(iii)","Loss Triangles - Property Non-Proportional",null,{"$f":"\"Prop. Non-Prop.- Reserve - Line 31 - Cat Loss. - \"&$E$2-4","v":"Prop. Non-Prop.- Reserve - Line 31 - Cat Loss. - 2018"},null,null,null,null,null,null,null,null,{"$f":"+'Sch XI(a)(iii)'!M53","v":0}]
["Sch XI(a)(iii)","Loss Triangles - Property Non-Proportional",null,{"$f":"\"Prop. Non-Prop.- GPW - Line 41 - \"&$E$2-6","v":"Prop. Non-Prop.- GPW - Line 41 - 2016"},null,null,null,null,null,null,null,null,{"$f":"+'Sch XI(a)(iii)'!C71","v":0}]
["Sch XI(a)(iii)","Loss Triangles - Property Non-Proportional",null,{"$f":"\"Prop. Non-Prop.- GPW - Line 47 - \"&$E$2","v":"Prop. Non-Prop.- GPW - Line 47 - 2022"},null,null,null,null,null,null,null,null,{"$f":"+'Sch XI(a)(iii)'!C77","v":0}]
["Sch XI(a)(iii)","Loss Triangles - Property Non-Proportional",null,{"$f":"\"Prop. Non-Prop.- Gross Premiums Earned - Line 39 - \"&$E$2-8","v":"Prop. Non-Prop.- Gross Premiums Earned - Line 39 - 2014"},null,null,null,null,null,null,null,null,{"$f":"+'Sch XI(a)(iii)'!D69","v":0}]
["Sch XI(a)(iii)","Loss Triangles - Property Non-Proportional",null,{"$f":"\"Prop. Non-Prop.- NPW - Line 37 - Prior\"","v":"Prop. Non-Prop.- NPW - Line 37 - Prior"},null,null,null,null,null,null,null,null,{"$f":"+'Sch XI(a)(iii)'!E67","v":"XXX"}]
["Sch XI(a)(iii)","Loss Triangles - Property Non-Proportional",null,{"$f":"\"Prop. Non-Prop.- Net Premiums Earned - Line 37 - Prior\"","v":"Prop. Non-Prop.- Net Premiums Earned - Line 37 - Prior"},null,null,null,null,null,null,null,null,{"$f":"+'Sch XI(a)(iii)'!F67","v":"XXX"}]
["Sch XI(a)(iii)","Loss Triangles - Property Non-Proportional",null,{"$f":"\"Prop. Non-Prop.- Net Premiums Earned - Line 43 - \"&$E$2-4","v":"Prop. Non-Prop.- Net Premiums Earned - Line 43 - 2018"},null,null,null,null,null,null,null,null,{"$f":"+'Sch XI(a)(iii)'!F73","v":0}]
["Sch XI(a)(iii)","Loss Triangles - Property Non-Proportional",null,{"$f":"\"Prop. Non-Prop.- Expenses Paid - Line 41 - \"&$E$2-6","v":"Prop. Non-Prop.- Expenses Paid - Line 41 - 2016"},null,null,null,null,null,null,null,null,{"$f":"+'Sch XI(a)(iii)'!G71","v":0}]
["Sch XI(a)(iii)","Loss Triangles - Property Non-Proportional",null,{"$f":"\"Prop. Non-Prop.- Expenses Incurred - Line 38 - \"&$E$2-9","v":"Prop. Non-Prop.- Expenses Incurred - Line 38 - 2013"},null,null,null,null,null,null,null,null,{"$f":"+'Sch XI(a)(iii)'!H68","v":0}]
["Sch XI(a)(iii)","Loss Triangles - Property Non-Proportional",null,{"$f":"\"Prop. Non-Prop.- Expenses Incurred - Line 47 - \"&$E$2","v":"Prop. Non-Prop.- Expenses Incurred - Line 47 - 2022"},null,null,null,null,null,null,null,null,{"$f":"+'Sch XI(a)(iii)'!H77","v":0}]
["Sch XI(a)(iii)","Loss Triangles - Property Non-Proportional",null,{"$f":"\"Prop. Non-Prop.- Brokerage - Line 37 - Prior\"","v":"Prop. Non-Prop.- Brokerage - Line 37 - Prior"},null,null,null,null,null,null,null,null,{"$f":"+'Sch XI(a)(iii)'!J67","v":0}]
["Sch XI(a)(iii)","Loss Triangles - Property Non-Proportional",null,{"$f":"\"Prop. Non-Prop.- G&A - Line 39 - \"&$E$2-8","v":"Prop. Non-Prop.- G&A - Line 39 - 2014"},null,null,null,null,null,null,null,null,{"$f":"+'Sch XI(a)(iii)'!K69","v":0}]
["Sch XI(a)(iii)","Loss Triangles - Property Non-Proportional",null,{"$f":"\"Prop. Non-Prop.- G&A - Line 43 - \"&$E$2-4","v":"Prop. Non-Prop.- G&A - Line 43 - 2018"},null,null,null,null,null,null,null,null,{"$f":"+'Sch XI(a)(iii)'!K73","v":0}]
["Sch XI(a)(iii)","Loss Triangles - Property Non-Proportional",null,{"$f":"\"Prop. Non-Prop.- Personnel Costs - Line 41 - \"&$E$2-6","v":"Prop. Non-Prop.- Personnel Costs - Line 41 - 2016"},null,null,null,null,null,null,null,null,{"$f":"+'Sch XI(a)(iii)'!L71","v":0}]
["Sch XI(a)(iii)","Loss Triangles - Property Non-Proportional",null,{"$f":"\"Prop. Non-Prop.- Other Exp. - Line 39 - \"&$E$2-8","v":"Prop. Non-Prop.- Other Exp. - Line 39 - 2014"},null,null,null,null,null,null,null,null,{"$f":"+'Sch XI(a)(iii)'!M69","v":0}]
["Sch XI(a)(iii)","Loss Triangles - Property Non-Proportional",null,{"$f":"\"Prop. Non-Prop.- Other Exp. - Line 46 - \"&$E$2-1","v":"Prop. Non-Prop.- Other Exp. - Line 46 - 2021"},null,null,null,null,null,null,null,null,{"$f":"+'Sch XI(a)(iii)'!M76","v":0}]
["Sch XI(a)(iv)","Loss Triangles - Casualty",null,{"$f":"\"Casualty - Incurred - Line 3 - \"&$E$2-7&\" - \"&$E$2-8","v":"Casualty - Incurred - Line 3 - 2015 - 2014"},null,null,null,null,null,null,null,null,{"$f":"+'Sch XI(a)(iv)'!E13","v":0}]
["Sch XI(a)(iv)","Loss Triangles - Casualty",null,{"$f":"\"Casualty - Incurred - Line 3 - \"&$E$2-5&\" - \"&$E$2-8","v":"Casualty - Incurred - Line 3 - 2017 - 2014"},null,null,null,null,null,null,null,null,{"$f":"+'Sch XI(a)(iv)'!G13","v":0}]
["Sch XI(a)(iv)","Loss Triangles - Casualty",null,{"$f":"\"Casualty - Incurred - Line 1 - \"&$E$2-4&\" - Prior\"","v":"Casualty - Incurred - Line 1 - 2018 - Prior"},null,null,null,null,null,null,null,null,{"$f":"+'Sch XI(a)(iv)'!H11","v":0}]
["Sch XI(a)(iv)","Loss Triangles - Casualty",null,{"$f":"\"Casualty - Incurred - Line 6 - \"&$E$2-4&\" - \"&$E$2-5","v":"Casualty - Incurred - Line 6 - 2018 - 2017"},null,null,null,null,null,null,null,null,{"$f":"+'Sch XI(a)(iv)'!H16","v":0}]
["Sch XI(a)(iv)","Loss Triangles - Casualty",null,{"$f":"\"Casualty - Incurred - Line 8 - \"&$E$2-3&\" - \"&$E$2-3","v":"Casualty - Incurred - Line 8 - 2019 - 2019"},null,null,null,null,null,null,null,null,{"$f":"+'Sch XI(a)(iv)'!I18","v":0}]
["Sch XI(a)(iv)","Loss Triangles - Casualty",null,{"$f":"\"Casualty - Incurred - Line 9 - \"&$E$2-2&\" - \"&$E$2-2","v":"Casualty - Incurred - Line 9 - 2020 - 2020"},null,null,null,null,null,null,null,null,{"$f":"+'Sch XI(a)(iv)'!J19","v":0}]
["Sch XI(a)(iv)","Loss Triangles - Casualty",null,{"$f":"\"Casualty - Incurred - Line 8 - \"&$E$2-1&\" - \"&$E$2-3","v":"Casualty - Incurred - Line 8 - 2021 - 2019"},null,null,null,null,null,null,null,null,{"$f":"+'Sch XI(a)(iv)'!K18","v":0}]
["Sch XI(a)(iv)","Loss Triangles - Casualty",null,{"$f":"\"Casualty - Incurred - Line 7 - \"&$E$2&\" - \"&$E$2-4","v":"Casualty - Incurred - Line 7 - 2022 - 2018"},null,null,null,null,null,null,null,null,{"$f":"+'Sch XI(a)(iv)'!L17","v":0}]
["Sch XI(a)(iv)","Loss Triangles - Casualty",null,{"$f":"\"Casualty - Incurred - Line 2 - Cat Loss. - \"&$E$2-9","v":"Casualty - Incurred - Line 2 - Cat Loss. - 2013"},null,null,null,null,null,null,null,null,{"$f":"+'Sch XI(a)(iv)'!M12","v":0}]
["Sch XI(a)(iv)","Loss Triangles - Casualty",null,{"$f":"\"Casualty - Paid - Line 14 - \"&$E$2-9&\" - \"&$E$2-9","v":"Casualty - Paid - Line 14 - 2013 - 2013"},null,null,null,null,null,null,null,null,{"$f":"+'Sch XI(a)(iv)'!C30","v":0}]
["Sch XI(a)(iv)","Loss Triangles - Casualty",null,{"$f":"\"Casualty - Paid - Line 13 - \"&$E$2-8&\" - Prior\"","v":"Casualty - Paid - Line 13 - 2014 - Prior"},null,null,null,null,null,null,null,null,{"$f":"+'Sch XI(a)(iv)'!D29","v":0}]
["Sch XI(a)(iv)","Loss Triangles - Casualty",null,{"$f":"\"Casualty - Paid - Line 17 - \"&$E$2-6&\" - \"&$E$2-6","v":"Casualty - Paid - Line 17 - 2016 - 2016"},null,null,null,null,null,null,null,null,{"$f":"+'Sch XI(a)(iv)'!F33","v":0}]
["Sch XI(a)(iv)","Loss Triangles - Casualty",null,{"$f":"\"Casualty - Paid - Line 18 - \"&$E$2-5&\" - \"&$E$2-5","v":"Casualty - Paid - Line 18 - 2017 - 2017"},null,null,null,null,null,null,null,null,{"$f":"+'Sch XI(a)(iv)'!G34","v":0}]
["Sch XI(a)(iv)","Loss Triangles - Casualty",null,{"$f":"\"Casualty - Paid - Line 14 - \"&$E$2-3&\" - \"&$E$2-9","v":"Casualty - Paid - Line 14 - 2019 - 2013"},null,null,null,null,null,null,null,null,{"$f":"+'Sch XI(a)(iv)'!I30","v":0}]
["Sch XI(a)(iv)","Loss Triangles - Casualty",null,{"$f":"\"Casualty - Paid - Line 14 - \"&$E$2-2&\" - \"&$E$2-9","v":"Casualty - Paid - Line 14 - 2020 - 2013"},null,null,null,null,null,null,null,null,{"$f":"+'Sch XI(a)(iv)'!J30","v":0}]
["Sch XI(a)(iv)","Loss Triangles - Casualty",null,{"$f":"\"Casualty - Paid - Line 14 - \"&$E$2-1&\" - \"&$E$2-9","v":"Casualty - Paid - Line 14 - 2021 - 2013"},null,null,null,null,null,null,null,null,{"$f":"+'Sch XI(a)(iv)'!K30","v":0}]
["Sch XI(a)(iv)","Loss Triangles - Casualty",null,{"$f":"\"Casualty - Paid - Line 13 - \"&$E$2&\" - Prior\"","v":"Casualty - Paid - Line 13 - 2022 - Prior"},null,null,null,null,null,null,null,null,{"$f":"+'Sch XI(a)(iv)'!L29","v":0}]
["Sch XI(a)(iv)","Loss Triangles - Casualty",null,{"$f":"\"Casualty - Paid - Line 18 - \"&$E$2&\" - \"&$E$2-5","v":"Casualty - Paid - Line 18 - 2022 - 2017"},null,null,null,null,null,null,null,null,{"$f":"+'Sch XI(a)(iv)'!L34","v":0}]
["Sch XI(a)(iv)","Loss Triangles - Casualty",null,{"$f":"\"Casualty - Paid - Line 22 - \"&$E$2&\" - \"&$E$2-1","v":"Casualty - Paid - Line 22 - 2022 - 2021"},null,null,null,null,null,null,null,null,{"$f":"+'Sch XI(a)(iv)'!L38","v":0}]
["Sch XI(a)(iv)","Loss Triangles - Casualty",null,{"$f":"\"Casualty - Paid - Line 20 - Cat Loss. - \"&$E$2-3","v":"Casualty - Paid - Line 20 - Cat Loss. - 2019"},null,null,null,null,null,null,null,null,{"$f":"+'Sch XI(a)(iv)'!M36","v":0}]
["Sch XI(a)(iv)","Loss Triangles - Casualty",null,{"$f":"\"Casualty - Reserve - Line 26 - \"&$E$2-8&\" - \"&$E$2-9","v":"Casualty - Reserve - Line 26 - 2014 - 2013"},null,null,null,null,null,null,null,null,{"$f":"+'Sch XI(a)(iv)'!D48","v":0}]
["Sch XI(a)(iv)","Loss Triangles - Casualty",null,{"$f":"\"Casualty - Reserve - Line 29 - \"&$E$2-6&\" - \"&$E$2-6","v":"Casualty - Reserve - Line 29 - 2016 - 2016"},null,null,null,null,null,null,null,null,{"$f":"+'Sch XI(a)(iv)'!F51","v":0}]
["Sch XI(a)(iv)","Loss Triangles - Casualty",null,{"$f":"\"Casualty - Reserve - Line 27 - \"&$E$2-4&\" - \"&$E$2-8","v":"Casualty - Reserve - Line 27 - 2018 - 2014"},null,null,null,null,null,null,null,null,{"$f":"+'Sch XI(a)(iv)'!H49","v":0}]
["Sch XI(a)(iv)","Loss Triangles - Casualty",null,{"$f":"\"Casualty - Reserve - Line 31 - \"&$E$2-4&\" - \"&$E$2-4","v":"Casualty - Reserve - Line 31 - 2018 - 2018"},null,null,null,null,null,null,null,null,{"$f":"+'Sch XI(a)(iv)'!H53","v":0}]
["Sch XI(a)(iv)","Loss Triangles - Casualty",null,{"$f":"\"Casualty - Reserve - Line 29 - \"&$E$2-2&\" - \"&$E$2-6","v":"Casualty - Reserve - Line 29 - 2020 - 2016"},null,null,null,null,null,null,null,null,{"$f":"+'Sch XI(a)(iv)'!J51","v":0}]
["Sch XI(a)(iv)","Loss Triangles - Casualty",null,{"$f":"\"Casualty - Reserve - Line 29 - \"&$E$2-1&\" - \"&$E$2-6","v":"Casualty - Reserve - Line 29 - 2021 - 2016"},null,null,null,null,null,null,null,null,{"$f":"+'Sch XI(a)(iv)'!K51","v":0}]
["Sch XI(a)(iv)","Loss Triangles - Casualty",null,{"$f":"\"Casualty - Reserve - Line 30 - \"&$E$2-1&\" - \"&$E$2-5","v":"Casualty - Reserve - Line 30 - 2021 - 2017"},null,null,null,null,null,null,null,null,{"$f":"+'Sch XI(a)(iv)'!K52","v":0}]
["Sch XI(a)(iv)","Loss Triangles - Casualty",null,{"$f":"\"Casualty - Reserve - Line 29 - \"&$E$2&\" - \"&$E$2-6","v":"Casualty - Reserve - Line 29 - 2022 - 2016"},null,null,null,null,null,null,null,null,{"$f":"+'Sch XI(a)(iv)'!L51","v":0}]
["Sch XI(a)(iv)","Loss Triangles - Casualty",null,{"$f":"\"Casualty - Reserve - Line 26 - Cat Loss. - \"&$E$2-9","v":"Casualty - Reserve - Line 26 - Cat Loss. - 2013"},null,null,null,null,null,null,null,null,{"$f":"+'Sch XI(a)(iv)'!M48","v":0}]
["Sch XI(a)(iv)","Loss Triangles - Casualty",null,{"$f":"\"Casualty - Reserve - Line 35 - Cat Loss. - \"&$E$2","v":"Casualty - Reserve - Line 35 - Cat Loss. - 2022"},null,null,null,null,null,null,null,null,{"$f":"+'Sch XI(a)(iv)'!M57","v":0}]
["Sch XI(a)(iv)","Loss Triangles - Casualty",null,{"$f":"\"Casualty - GPW - Line 42 - \"&$E$2-5","v":"Casualty - GPW - Line 42 - 2017"},null,null,null,null,null,null,null,null,{"$f":"+'Sch XI(a)(iv)'!C72","v":0}]
["Sch XI(a)(iv)","Loss Triangles - Casualty",null,{"$f":"\"Casualty - Gross Premiums Earned - Line 42 - \"&$E$2-5","v":"Casualty - Gross Premiums Earned - Line 42 - 2017"},null,null,null,null,null,null,null,null,{"$f":"+'Sch XI(a)(iv)'!D72","v":0}]
["Sch XI(a)(iv)","Loss Triangles - Casualty",null,{"$f":"\"Casualty - NPW - Line 40 - \"&$E$2-7","v":"Casualty - NPW - Line 40 - 2015"},null,null,null,null,null,null,null,null,{"$f":"+'Sch XI(a)(iv)'!E70","v":0}]
["Sch XI(a)(iv)","Loss Triangles - Casualty",null,{"$f":"\"Casualty - NPW - Line 47 - \"&$E$2","v":"Casualty - NPW - Line 47 - 2022"},null,null,null,null,null,null,null,null,{"$f":"+'Sch XI(a)(iv)'!E77","v":0}]
["Sch XI(a)(iv)","Loss Triangles - Casualty",null,{"$f":"\"Casualty - Net Premiums Earned - Line 38 - \"&$E$2-9","v":"Casualty - Net Premiums Earned - Line 38 - 2013"},null,null,null,null,null,null,null,null,{"$f":"+'Sch XI(a)(iv)'!F68","v":0}]
["Sch XI(a)(iv)","Loss Triangles - Casualty",null,{"$f":"\"Casualty - Net Premiums Earned - Line 47 - \"&$E$2","v":"Casualty - Net Premiums Earned - Line 47 - 2022"},null,null,null,null,null,null,null,null,{"$f":"+'Sch XI(a)(iv)'!F77","v":0}]
["Sch XI(a)(iv)","Loss Triangles - Casualty",null,{"$f":"\"Casualty - Expenses Incurred - Line 37 - Prior\"","v":"Casualty - Expenses Incurred - Line 37 - Prior"},null,null,null,null,null,null,null,null,{"$f":"+'Sch XI(a)(iv)'!H67","v":0}]
["Sch XI(a)(iv)","Loss Triangles - Casualty",null,{"$f":"\"Casualty - Expenses Incurred - Line 42 - \"&$E$2-5","v":"Casualty - Expenses Incurred - Line 42 - 2017"},null,null,null,null,null,null,null,null,{"$f":"+'Sch XI(a)(iv)'!H72","v":0}]
["Sch XI(a)(iv)","Loss Triangles - Casualty",null,{"$f":"\"Casualty - Brokerage - Line 40 - \"&$E$2-7","v":"Casualty - Brokerage - Line 40 - 2015"},null,null,null,null,null,null,null,null,{"$f":"+'Sch XI(a)(iv)'!J70","v":0}]
["Sch XI(a)(iv)","Loss Triangles - Casualty",null,{"$f":"\"Casualty - G&A - Line 38 - \"&$E$2-9","v":"Casualty - G&A - Line 38 - 2013"},null,null,null,null,null,null,null,null,{"$f":"+'Sch XI(a)(iv)'!K68","v":0}]
["Sch XI(a)(iv)","Loss Triangles - Casualty",null,{"$f":"\"Casualty - G&A - Line 46 - \"&$E$2-1","v":"Casualty - G&A - Line 46 - 2021"},null,null,null,null,null,null,null,null,{"$f":"+'Sch XI(a)(iv)'!K76","v":0}]
["Sch XI(a)(iv)","Loss Triangles - Casualty",null,{"$f":"\"Casualty - Personnel Costs - Line 44 - \"&$E$2-3","v":"Casualty - Personnel Costs - Line 44 - 2019"},null,null,null,null,null,null,null,null,{"$f":"+'Sch XI(a)(iv)'!L74","v":0}]
["Sch XI(a)(iv)","Loss Triangles - Casualty",null,{"$f":"\"Casualty - Other Exp. - Line 39 - \"&$E$2-8","v":"Casualty - Other Exp. - Line 39 - 2014"},null,null,null,null,null,null,null,null,{"$f":"+'Sch XI(a)(iv)'!M69","v":0}]
["Sch XI(a)(iv)","Loss Triangles - Casualty",null,{"$f":"\"Casualty - Other Exp. - Line 42 - \"&$E$2-5","v":"Casualty - Other Exp. - Line 42 - 2017"},null,null,null,null,null,null,null,null,{"$f":"+'Sch XI(a)(iv)'!M72","v":0}]
["Sch XI(a)(v)","Loss Triangles - Casualty Non-Proportional",null,{"$f":"\"Cas. Non-Prop.- Incurred - Line 1 - \"&$E$2-8&\" - Prior\"","v":"Cas. Non-Prop.- Incurred - Line 1 - 2014 - Prior"},null,null,null,null,null,null,null,null,{"$f":"+'Sch XI(a)(v)'!D11","v":0}]
["Sch XI(a)(v)","Loss Triangles - Casualty Non-Proportional",null,{"$f":"\"Cas. Non-Prop.- Incurred - Line 5 - \"&$E$2-6&\" - \"&$E$2-6","v":"Cas. Non-Prop.- Incurred - Line 5 - 2016 - 2016"},null,null,null,null,null,null,null,null,{"$f":"+'Sch XI(a)(v)'!F15","v":0}]
["Sch XI(a)(v)","Loss Triangles - Casualty Non-Proportional",null,{"$f":"\"Cas. Non-Prop.- Incurred - Line 6 - \"&$E$2-5&\" - \"&$E$2-5","v":"Cas. Non-Prop.- Incurred - Line 6 - 2017 - 2017"},null,null,null,null,null,null,null,null,{"$f":"+'Sch XI(a)(v)'!G16","v":0}]
["Sch XI(a)(v)","Loss Triangles - Casualty Non-Proportional",null,{"$f":"\"Cas. Non-Prop.- Incurred - Line 2 - \"&$E$2-3&\" - \"&$E$2-9","v":"Cas. Non-Prop.- Incurred - Line 2 - 2019 - 2013"},null,null,null,null,null,null,null,null,{"$f":"+'Sch XI(a)(v)'!I12","v":0}]
["Sch XI(a)(v)","Loss Triangles - Casualty Non-Proportional",null,{"$f":"\"Cas. Non-Prop.- Incurred - Line 2 - \"&$E$2-2&\" - \"&$E$2-9","v":"Cas. Non-Prop.- Incurred - Line 2 - 2020 - 2013"},null,null,null,null,null,null,null,null,{"$f":"+'Sch XI(a)(v)'!J12","v":0}]
["Sch XI(a)(v)","Loss Triangles - Casualty Non-Proportional",null,{"$f":"\"Cas. Non-Prop.- Incurred - Line 2 - \"&$E$2-1&\" - \"&$E$2-9","v":"Cas. Non-Prop.- Incurred - Line 2 - 2021 - 2013"},null,null,null,null,null,null,null,null,{"$f":"+'Sch XI(a)(v)'!K12","v":0}]
["Sch XI(a)(v)","Loss Triangles - Casualty Non-Proportional",null,{"$f":"\"Cas. Non-Prop.- Incurred - Line 3 - \"&$E$2-1&\" - \"&$E$2-8","v":"Cas. Non-Prop.- Incurred - Line 3 - 2021 - 2014"},null,null,null,null,null,null,null,null,{"$f":"+'Sch XI(a)(v)'!K13","v":0}]
["Sch XI(a)(v)","Loss Triangles - Casualty Non-Proportional",null,{"$f":"\"Cas. Non-Prop.- Incurred - Line 6 - \"&$E$2&\" - \"&$E$2-5","v":"Cas. Non-Prop.- Incurred - Line 6 - 2022 - 2017"},null,null,null,null,null,null,null,null,{"$f":"+'Sch XI(a)(v)'!L16","v":0}]
["Sch XI(a)(v)","Loss Triangles - Casualty Non-Proportional",null,{"$f":"\"Cas. Non-Prop.- Incurred - Line 10 - \"&$E$2&\" - \"&$E$2-1","v":"Cas. Non-Prop.- Incurred - Line 10 - 2022 - 2021"},null,null,null,null,null,null,null,null,{"$f":"+'Sch XI(a)(v)'!L20","v":0}]
["Sch XI(a)(v)","Loss Triangles - Casualty Non-Proportional",null,{"$f":"\"Cas. Non-Prop.- Incurred - Line 8 - Cat Loss. - \"&$E$2-3","v":"Cas. Non-Prop.- Incurred - Line 8 - Cat Loss. - 2019"},null,null,null,null,null,null,null,null,{"$f":"+'Sch XI(a)(v)'!M18","v":0}]
["Sch XI(a)(v)","Loss Triangles - Casualty Non-Proportional",null,{"$f":"\"Cas. Non-Prop.- Paid - Line 13 - \"&$E$2-7&\" - Prior\"","v":"Cas. Non-Prop.- Paid - Line 13 - 2015 - Prior"},null,null,null,null,null,null,null,null,{"$f":"+'Sch XI(a)(v)'!E29","v":0}]
["Sch XI(a)(v)","Loss Triangles - Casualty Non-Proportional",null,{"$f":"\"Cas. Non-Prop.- Paid - Line 16 - \"&$E$2-6&\" - \"&$E$2-7","v":"Cas. Non-Prop.- Paid - Line 16 - 2016 - 2015"},null,null,null,null,null,null,null,null,{"$f":"+'Sch XI(a)(v)'!F32","v":0}]
["Sch XI(a)(v)","Loss Triangles - Casualty Non-Proportional",null,{"$f":"\"Cas. Non-Prop.- Paid - Line 15 - \"&$E$2-4&\" - \"&$E$2-8","v":"Cas. Non-Prop.- Paid - Line 15 - 2018 - 2014"},null,null,null,null,null,null,null,null,{"$f":"+'Sch XI(a)(v)'!H31","v":0}]
["Sch XI(a)(v)","Loss Triangles - Casualty Non-Proportional",null,{"$f":"\"Cas. Non-Prop.- Paid - Line 17 - \"&$E$2-3&\" - \"&$E$2-6","v":"Cas. Non-Prop.- Paid - Line 17 - 2019 - 2016"},null,null,null,null,null,null,null,null,{"$f":"+'Sch XI(a)(v)'!I33","v":0}]
["Sch XI(a)(v)","Loss Triangles - Casualty Non-Proportional",null,{"$f":"\"Cas. Non-Prop.- Paid - Line 13 - \"&$E$2-2&\" - Prior\"","v":"Cas. Non-Prop.- Paid - Line 13 - 2020 - Prior"},null,null,null,null,null,null,null,null,{"$f":"+'Sch XI(a)(v)'!J29","v":0}]
["Sch XI(a)(v)","Loss Triangles - Casualty Non-Proportional",null,{"$f":"\"Cas. Non-Prop.- Paid - Line 18 - \"&$E$2-2&\" - \"&$E$2-5","v":"Cas. Non-Prop.- Paid - Line 18 - 2020 - 2017"},null,null,null,null,null,null,null,null,{"$f":"+'Sch XI(a)(v)'!J34","v":0}]
["Sch XI(a)(v)","Loss Triangles - Casualty Non-Proportional",null,{"$f":"\"Cas. Non-Prop.- Paid - Line 18 - \"&$E$2-1&\" - \"&$E$2-5","v":"Cas. Non-Prop.- Paid - Line 18 - 2021 - 2017"},null,null,null,null,null,null,null,null,{"$f":"+'Sch XI(a)(v)'!K34","v":0}]
["Sch XI(a)(v)","Loss Triangles - Casualty Non-Proportional",null,{"$f":"\"Cas. Non-Prop.- Paid - Line 17 - \"&$E$2&\" - \"&$E$2-6","v":"Cas. Non-Prop.- Paid - Line 17 - 2022 - 2016"},null,null,null,null,null,null,null,null,{"$f":"+'Sch XI(a)(v)'!L33","v":0}]
["Sch XI(a)(v)","Loss Triangles - Casualty Non-Proportional",null,{"$f":"\"Cas. Non-Prop.- Paid - Line 14 - Cat Loss. - \"&$E$2-9","v":"Cas. Non-Prop.- Paid - Line 14 - Cat Loss. - 2013"},null,null,null,null,null,null,null,null,{"$f":"+'Sch XI(a)(v)'!M30","v":0}]
["Sch XI(a)(v)","Loss Triangles - Casualty Non-Proportional",null,{"$f":"\"Cas. Non-Prop.- Paid - Line 23 - Cat Loss. - \"&$E$2","v":"Cas. Non-Prop.- Paid - Line 23 - Cat Loss. - 2022"},null,null,null,null,null,null,null,null,{"$f":"+'Sch XI(a)(v)'!M39","v":0}]
["Sch XI(a)(v)","Loss Triangles - Casualty Non-Proportional",null,{"$f":"\"Cas. Non-Prop.- Reserve - Line 25 - \"&$E$2-7&\" - Prior\"","v":"Cas. Non-Prop.- Reserve - Line 25 - 2015 - Prior"},null,null,null,null,null,null,null,null,{"$f":"+'Sch XI(a)(v)'!E47","v":0}]
["Sch XI(a)(v)","Loss Triangles - Casualty Non-Proportional",null,{"$f":"\"Cas. Non-Prop.- Reserve - Line 27 - \"&$E$2-5&\" - \"&$E$2-8","v":"Cas. Non-Prop.- Reserve - Line 27 - 2017 - 2014"},null,null,null,null,null,null,null,null,{"$f":"+'Sch XI(a)(v)'!G49","v":0}]
["Sch XI(a)(v)","Loss Triangles - Casualty Non-Proportional",null,{"$f":"\"Cas. Non-Prop.- Reserve - Line 28 - \"&$E$2-5&\" - \"&$E$2-7","v":"Cas. Non-Prop.- Reserve - Line 28 - 2017 - 2015"},null,null,null,null,null,null,null,null,{"$f":"+'Sch XI(a)(v)'!G50","v":0}]
["Sch XI(a)(v)","Loss Triangles - Casualty Non-Proportional",null,{"$f":"\"Cas. Non-Prop.- Reserve - Line 30 - \"&$E$2-4&\" - \"&$E$2-5","v":"Cas. Non-Prop.- Reserve - Line 30 - 2018 - 2017"},null,null,null,null,null,null,null,null,{"$f":"+'Sch XI(a)(v)'!H52","v":0}]
["Sch XI(a)(v)","Loss Triangles - Casualty Non-Proportional",null,{"$f":"\"Cas. Non-Prop.- Reserve - Line 32 - \"&$E$2-3&\" - \"&$E$2-3","v":"Cas. Non-Prop.- Reserve - Line 32 - 2019 - 2019"},null,null,null,null,null,null,null,null,{"$f":"+'Sch XI(a)(v)'!I54","v":0}]
["Sch XI(a)(v)","Loss Triangles - Casualty Non-Proportional",null,{"$f":"\"Cas. Non-Prop.- Reserve - Line 33 - \"&$E$2-2&\" - \"&$E$2-2","v":"Cas. Non-Prop.- Reserve - Line 33 - 2020 - 2020"},null,null,null,null,null,null,null,null,{"$f":"+'Sch XI(a)(v)'!J55","v":0}]
["Sch XI(a)(v)","Loss Triangles - Casualty Non-Proportional",null,{"$f":"\"Cas. Non-Prop.- Reserve - Line 29 - \"&$E$2-1&\" - \"&$E$2-6","v":"Cas. Non-Prop.- Reserve - Line 29 - 2021 - 2016"},null,null,null,null,null,null,null,null,{"$f":"+'Sch XI(a)(v)'!K51","v":0}]
["Sch XI(a)(v)","Loss Triangles - Casualty Non-Proportional",null,{"$f":"\"Cas. Non-Prop.- Reserve - Line 31 - \"&$E$2&\" - \"&$E$2-4","v":"Cas. Non-Prop.- Reserve - Line 31 - 2022 - 2018"},null,null,null,null,null,null,null,null,{"$f":"+'Sch XI(a)(v)'!L53","v":0}]
["Sch XI(a)(v)","Loss Triangles - Casualty Non-Proportional",null,{"$f":"\"Cas. Non-Prop.- Reserve - Line 29 - Cat Loss. - \"&$E$2-6","v":"Cas. Non-Prop.- Reserve - Line 29 - Cat Loss. - 2016"},null,null,null,null,null,null,null,null,{"$f":"+'Sch XI(a)(v)'!M51","v":0}]
["Sch XI(a)(v)","Loss Triangles - Casualty Non-Proportional",null,{"$f":"\"Cas. Non-Prop.- Reserve - Line 31 - Cat Loss. - \"&$E$2-4","v":"Cas. Non-Prop.- Reserve - Line 31 - Cat Loss. - 2018"},null,null,null,null,null,null,null,null,{"$f":"+'Sch XI(a)(v)'!M53","v":0}]
["Sch XI(a)(v)","Loss Triangles - Casualty Non-Proportional",null,{"$f":"\"Cas. Non-Prop.- GPW - Line 39 - \"&$E$2-8","v":"Cas. Non-Prop.- GPW - Line 39 - 2014"},null,null,null,null,null,null,null,null,{"$f":"+'Sch XI(a)(v)'!C69","v":0}]
["Sch XI(a)(v)","Loss Triangles - Casualty Non-Proportional",null,{"$f":"\"Cas. Non-Prop.- Gross Premiums Earned - Line 37 - Prior\"","v":"Cas. Non-Prop.- Gross Premiums Earned - Line 37 - Prior"},null,null,null,null,null,null,null,null,{"$f":"+'Sch XI(a)(v)'!D67","v":"XXX"}]
["Sch XI(a)(v)","Loss Triangles - Casualty Non-Proportional",null,{"$f":"\"Cas. Non-Prop.- Gross Premiums Earned - Line 44 - \"&$E$2-3","v":"Cas. Non-Prop.- Gross Premiums Earned - Line 44 - 2019"},null,null,null,null,null,null,null,null,{"$f":"+'Sch XI(a)(v)'!D74","v":0}]
["Sch XI(a)(v)","Loss Triangles - Casualty Non-Proportional",null,{"$f":"\"Cas. Non-Prop.- NPW - Line 43 - \"&$E$2-4","v":"Cas. Non-Prop.- NPW - Line 43 - 2018"},null,null,null,null,null,null,null,null,{"$f":"+'Sch XI(a)(v)'!E73","v":0}]
["Sch XI(a)(v)","Loss Triangles - Casualty Non-Proportional",null,{"$f":"\"Cas. Non-Prop.- Net Premiums Earned - Line 41 - \"&$E$2-6","v":"Cas. Non-Prop.- Net Premiums Earned - Line 41 - 2016"},null,null,null,null,null,null,null,null,{"$f":"+'Sch XI(a)(v)'!F71","v":0}]
["Sch XI(a)(v)","Loss Triangles - Casualty Non-Proportional",null,{"$f":"\"Cas. Non-Prop.- Net Premiums Earned - Line 45 - \"&$E$2-2","v":"Cas. Non-Prop.- Net Premiums Earned - Line 45 - 2020"},null,null,null,null,null,null,null,null,{"$f":"+'Sch XI(a)(v)'!F75","v":0}]
["Sch XI(a)(v)","Loss Triangles - Casualty Non-Proportional",null,{"$f":"\"Cas. Non-Prop.- Expenses Paid - Line 47 - \"&$E$2","v":"Cas. Non-Prop.- Expenses Paid - Line 47 - 2022"},null,null,null,null,null,null,null,null,{"$f":"+'Sch XI(a)(v)'!G77","v":0}]
["Sch XI(a)(v)","Loss Triangles - Casualty Non-Proportional",null,{"$f":"\"Cas. Non-Prop.- Expenses Incurred - Line 45 - \"&$E$2-2","v":"Cas. Non-Prop.- Expenses Incurred - Line 45 - 2020"},null,null,null,null,null,null,null,null,{"$f":"+'Sch XI(a)(v)'!H75","v":0}]
["Sch XI(a)(v)","Loss Triangles - Casualty Non-Proportional",null,{"$f":"\"Cas. Non-Prop.- Expenses Incurred - Line 46 - \"&$E$2-1","v":"Cas. Non-Prop.- Expenses Incurred - Line 46 - 2021"},null,null,null,null,null,null,null,null,{"$f":"+'Sch XI(a)(v)'!H76","v":0}]
["Sch XI(a)(v)","Loss Triangles - Casualty Non-Proportional",null,{"$f":"\"Cas. Non-Prop.- G&A - Line 37 - Prior\"","v":"Cas. Non-Prop.- G&A - Line 37 - Prior"},null,null,null,null,null,null,null,null,{"$f":"+'Sch XI(a)(v)'!K67","v":0}]
["Sch XI(a)(v)","Loss Triangles - Casualty Non-Proportional",null,{"$f":"\"Cas. Non-Prop.- G&A - Line 41 - \"&$E$2-6","v":"Cas. Non-Prop.- G&A - Line 41 - 2016"},null,null,null,null,null,null,null,null,{"$f":"+'Sch XI(a)(v)'!K71","v":0}]
["Sch XI(a)(v)","Loss Triangles - Casualty Non-Proportional",null,{"$f":"\"Cas. Non-Prop.- Personnel Costs - Line 39 - \"&$E$2-8","v":"Cas. Non-Prop.- Personnel Costs - Line 39 - 2014"},null,null,null,null,null,null,null,null,{"$f":"+'Sch XI(a)(v)'!L69","v":0}]
["Sch XI(a)(v)","Loss Triangles - Casualty Non-Proportional",null,{"$f":"\"Cas. Non-Prop.- Other Exp. - Line 38 - \"&$E$2-9","v":"Cas. Non-Prop.- Other Exp. - Line 38 - 2013"},null,null,null,null,null,null,null,null,{"$f":"+'Sch XI(a)(v)'!M68","v":0}]
["Sch XI(a)(v)","Loss Triangles - Casualty Non-Proportional",null,{"$f":"\"Cas. Non-Prop.- Other Exp. - Line 45 - \"&$E$2-2","v":"Cas. Non-Prop.- Other Exp. - Line 45 - 2020"},null,null,null,null,null,null,null,null,{"$f":"+'Sch XI(a)(v)'!M75","v":0}]
["Sch XI(a)(vi)","Loss Triangles - Financial Lines",null,{"$f":"\"Fin Lines Incurred - Line 1 - \"&$E$2-7&\" - Prior\"","v":"Fin Lines Incurred - Line 1 - 2015 - Prior"},null,null,null,null,null,null,null,null,{"$f":"+'Sch XI(a)(vi)'!E11","v":0}]
["Sch XI(a)(vi)","Loss Triangles - Financial Lines",null,{"$f":"\"Fin Lines Incurred - Line 4 - \"&$E$2-6&\" - \"&$E$2-7","v":"Fin Lines Incurred - Line 4 - 2016 - 2015"},null,null,null,null,null,null,null,null,{"$f":"+'Sch XI(a)(vi)'!F14","v":0}]
["Sch XI(a)(vi)","Loss Triangles - Financial Lines",null,{"$f":"\"Fin Lines Incurred - Line 1 - \"&$E$2-5&\" - Prior\"","v":"Fin Lines Incurred - Line 1 - 2017 - Prior"},null,null,null,null,null,null,null,null,{"$f":"+'Sch XI(a)(vi)'!G11","v":0}]
["Sch XI(a)(vi)","Loss Triangles - Financial Lines",null,{"$f":"\"Fin Lines Incurred - Line 4 - \"&$E$2-4&\" - \"&$E$2-7","v":"Fin Lines Incurred - Line 4 - 2018 - 2015"},null,null,null,null,null,null,null,null,{"$f":"+'Sch XI(a)(vi)'!H14","v":0}]
["Sch XI(a)(vi)","Loss Triangles - Financial Lines",null,{"$f":"\"Fin Lines Incurred - Line 1 - \"&$E$2-2&\" - Prior\"","v":"Fin Lines Incurred - Line 1 - 2020 - Prior"},null,null,null,null,null,null,null,null,{"$f":"+'Sch XI(a)(vi)'!J11","v":0}]
["Sch XI(a)(vi)","Loss Triangles - Financial Lines",null,{"$f":"\"Fin Lines Incurred - Line 6 - \"&$E$2-2&\" - \"&$E$2-5","v":"Fin Lines Incurred - Line 6 - 2020 - 2017"},null,null,null,null,null,null,null,null,{"$f":"+'Sch XI(a)(vi)'!J16","v":0}]
["Sch XI(a)(vi)","Loss Triangles - Financial Lines",null,{"$f":"\"Fin Lines Incurred - Line 6 - \"&$E$2-1&\" - \"&$E$2-5","v":"Fin Lines Incurred - Line 6 - 2021 - 2017"},null,null,null,null,null,null,null,null,{"$f":"+'Sch XI(a)(vi)'!K16","v":0}]
["Sch XI(a)(vi)","Loss Triangles - Financial Lines",null,{"$f":"\"Fin Lines Incurred - Line 5 - \"&$E$2&\" - \"&$E$2-6","v":"Fin Lines Incurred - Line 5 - 2022 - 2016"},null,null,null,null,null,null,null,null,{"$f":"+'Sch XI(a)(vi)'!L15","v":0}]
["Sch XI(a)(vi)","Loss Triangles - Financial Lines",null,{"$f":"\"Fin Lines Incurred - Line 2 - Cat Loss. - \"&$E$2-9","v":"Fin Lines Incurred - Line 2 - Cat Loss. - 2013"},null,null,null,null,null,null,null,null,{"$f":"+'Sch XI(a)(vi)'!M12","v":0}]
["Sch XI(a)(vi)","Loss Triangles - Financial Lines",null,{"$f":"\"Fin Lines Incurred - Line 11 - Cat Loss. - \"&$E$2","v":"Fin Lines Incurred - Line 11 - Cat Loss. - 2022"},null,null,null,null,null,null,null,null,{"$f":"+'Sch XI(a)(vi)'!M21","v":0}]
["Sch XI(a)(vi)","Loss Triangles - Financial Lines",null,{"$f":"\"Fin Lines Paid - Line 13 - \"&$E$2-7&\" - Prior\"","v":"Fin Lines Paid - Line 13 - 2015 - Prior"},null,null,null,null,null,null,null,null,{"$f":"+'Sch XI(a)(vi)'!E29","v":0}]
["Sch XI(a)(vi)","Loss Triangles - Financial Lines",null,{"$f":"\"Fin Lines Paid - Line 16 - \"&$E$2-7&\" - \"&$E$2-7","v":"Fin Lines Paid - Line 16 - 2015 - 2015"},null,null,null,null,null,null,null,null,{"$f":"+'Sch XI(a)(vi)'!E32","v":0}]
["Sch XI(a)(vi)","Loss Triangles - Financial Lines",null,{"$f":"\"Fin Lines Paid - Line 16 - \"&$E$2-5&\" - \"&$E$2-7","v":"Fin Lines Paid - Line 16 - 2017 - 2015"},null,null,null,null,null,null,null,null,{"$f":"+'Sch XI(a)(vi)'!G32","v":0}]
["Sch XI(a)(vi)","Loss Triangles - Financial Lines",null,{"$f":"\"Fin Lines Paid - Line 18 - \"&$E$2-4&\" - \"&$E$2-5","v":"Fin Lines Paid - Line 18 - 2018 - 2017"},null,null,null,null,null,null,null,null,{"$f":"+'Sch XI(a)(vi)'!H34","v":0}]
["Sch XI(a)(vi)","Loss Triangles - Financial Lines",null,{"$f":"\"Fin Lines Paid - Line 20 - \"&$E$2-3&\" - \"&$E$2-3","v":"Fin Lines Paid - Line 20 - 2019 - 2019"},null,null,null,null,null,null,null,null,{"$f":"+'Sch XI(a)(vi)'!I36","v":0}]
["Sch XI(a)(vi)","Loss Triangles - Financial Lines",null,{"$f":"\"Fin Lines Paid - Line 21 - \"&$E$2-2&\" - \"&$E$2-2","v":"Fin Lines Paid - Line 21 - 2020 - 2020"},null,null,null,null,null,null,null,null,{"$f":"+'Sch XI(a)(vi)'!J37","v":0}]
["Sch XI(a)(vi)","Loss Triangles - Financial Lines",null,{"$f":"\"Fin Lines Paid - Line 17 - \"&$E$2-1&\" - \"&$E$2-6","v":"Fin Lines Paid - Line 17 - 2021 - 2016"},null,null,null,null,null,null,null,null,{"$f":"+'Sch XI(a)(vi)'!K33","v":0}]
["Sch XI(a)(vi)","Loss Triangles - Financial Lines",null,{"$f":"\"Fin Lines Paid - Line 19 - \"&$E$2&\" - \"&$E$2-4","v":"Fin Lines Paid - Line 19 - 2022 - 2018"},null,null,null,null,null,null,null,null,{"$f":"+'Sch XI(a)(vi)'!L35","v":0}]
["Sch XI(a)(vi)","Loss Triangles - Financial Lines",null,{"$f":"\"Fin Lines Paid - Line 20 - \"&$E$2&\" - \"&$E$2-3","v":"Fin Lines Paid - Line 20 - 2022 - 2019"},null,null,null,null,null,null,null,null,{"$f":"+'Sch XI(a)(vi)'!L36","v":0}]
["Sch XI(a)(vi)","Loss Triangles - Financial Lines",null,{"$f":"\"Fin Lines Paid - Line 19 - Cat Loss. - \"&$E$2-4","v":"Fin Lines Paid - Line 19 - Cat Loss. - 2018"},null,null,null,null,null,null,null,null,{"$f":"+'Sch XI(a)(vi)'!M35","v":0}]
["Sch XI(a)(vi)","Loss Triangles - Financial Lines",null,{"$f":"\"Fin Lines Reserve - Line 25 - \"&$E$2-8&\" - Prior\"","v":"Fin Lines Reserve - Line 25 - 2014 - Prior"},null,null,null,null,null,null,null,null,{"$f":"+'Sch XI(a)(vi)'!D47","v":0}]
["Sch XI(a)(vi)","Loss Triangles - Financial Lines",null,{"$f":"\"Fin Lines Reserve - Line 27 - \"&$E$2-6&\" - \"&$E$2-8","v":"Fin Lines Reserve - Line 27 - 2016 - 2014"},null,null,null,null,null,null,null,null,{"$f":"+'Sch XI(a)(vi)'!F49","v":0}]
["Sch XI(a)(vi)","Loss Triangles - Financial Lines",null,{"$f":"\"Fin Lines Reserve - Line 25 - \"&E2-4&\" - Prior\"","v":"Fin Lines Reserve - Line 25 - 2018 - Prior"},null,null,null,null,null,null,null,null,{"$f":"+'Sch XI(a)(vi)'!H47","v":0}]
["Sch XI(a)(vi)","Loss Triangles - Financial Lines",null,{"$f":"\"Fin Lines Reserve - Line 25 - \"&$E$2-3&\" - Prior\"","v":"Fin Lines Reserve - Line 25 - 2019 - Prior"},null,null,null,null,null,null,null,null,{"$f":"+'Sch XI(a)(vi)'!I47","v":0}]
["Sch XI(a)(vi)","Loss Triangles - Financial Lines",null,{"$f":"\"Fin Lines Reserve - Line 27 - \"&$E$2-2&\" - \"&$E$2-8","v":"Fin Lines Reserve - Line 27 - 2020 - 2014"},null,null,null,null,null,null,null,null,{"$f":"+'Sch XI(a)(vi)'!J49","v":0}]
["Sch XI(a)(vi)","Loss Triangles - Financial Lines",null,{"$f":"\"Fin Lines Reserve - Line 27 - \"&$E$2-1&\" - \"&$E$2-8","v":"Fin Lines Reserve - Line 27 - 2021 - 2014"},null,null,null,null,null,null,null,null,{"$f":"+'Sch XI(a)(vi)'!K49","v":0}]
["Sch XI(a)(vi)","Loss Triangles - Financial Lines",null,{"$f":"\"Fin Lines Reserve - Line 28 - \"&$E$2-1&\" - \"&$E$2-7","v":"Fin Lines Reserve - Line 28 - 2021 - 2015"},null,null,null,null,null,null,null,null,{"$f":"+'Sch XI(a)(vi)'!K50","v":0}]
["Sch XI(a)(vi)","Loss Triangles - Financial Lines",null,{"$f":"\"Fin Lines Reserve - Line 26 - \"&$E$2&\" - \"&$E$2-9","v":"Fin Lines Reserve - Line 26 - 2022 - 2013"},null,null,null,null,null,null,null,null,{"$f":"+'Sch XI(a)(vi)'!L48","v":0}]
["Sch XI(a)(vi)","Loss Triangles - Financial Lines",null,{"$f":"\"Fin Lines Reserve - Line 35 - \"&$E$2&\" - \"&$E$2","v":"Fin Lines Reserve - Line 35 - 2022 - 2022"},null,null,null,null,null,null,null,null,{"$f":"+'Sch XI(a)(vi)'!L57","v":0}]
["Sch XI(a)(vi)","Loss Triangles - Financial Lines",null,{"$f":"\"Fin Lines Reserve - Line 30 - Cat Loss. - \"&$E$2-5","v":"Fin Lines Reserve - Line 30 - Cat Loss. - 2017"},null,null,null,null,null,null,null,null,{"$f":"+'Sch XI(a)(vi)'!M52","v":0}]
["Sch XI(a)(vi)","Loss Triangles - Financial Lines",null,{"$f":"\"Fin Lines GPW - Line 42 - \"&$E$2-5","v":"Fin Lines GPW - Line 42 - 2017"},null,null,null,null,null,null,null,null,{"$f":"+'Sch XI(a)(vi)'!C72","v":0}]
["Sch XI(a)(vi)","Loss Triangles - Financial Lines",null,{"$f":"\"Fin Lines Gross Premiums Earned - Line 40 - \"&$E$2-7","v":"Fin Lines Gross Premiums Earned - Line 40 - 2015"},null,null,null,null,null,null,null,null,{"$f":"+'Sch XI(a)(vi)'!D70","v":0}]
["Sch XI(a)(vi)","Loss Triangles - Financial Lines",null,{"$f":"\"Fin Lines Gross Premiums Earned - Line 43 - \"&$E$2-4","v":"Fin Lines Gross Premiums Earned - Line 43 - 2018"},null,null,null,null,null,null,null,null,{"$f":"+'Sch XI(a)(vi)'!D73","v":0}]
["Sch XI(a)(vi)","Loss Triangles - Financial Lines",null,{"$f":"\"Fin Lines NPW - Line 46 - \"&$E$2-1","v":"Fin Lines NPW - Line 46 - 2021"},null,null,null,null,null,null,null,null,{"$f":"+'Sch XI(a)(vi)'!E76","v":0}]
["Sch XI(a)(vi)","Loss Triangles - Financial Lines",null,{"$f":"\"Fin Lines NPW - Line 47 - \"&$E$2","v":"Fin Lines NPW - Line 47 - 2022"},null,null,null,null,null,null,null,null,{"$f":"+'Sch XI(a)(vi)'!E77","v":0}]
["Sch XI(a)(vi)","Loss Triangles - Financial Lines",null,{"$f":"\"Fin Lines Net Premiums Earned - Line 44 - \"&$E$2-3","v":"Fin Lines Net Premiums Earned - Line 44 - 2019"},null,null,null,null,null,null,null,null,{"$f":"+'Sch XI(a)(vi)'!F74","v":0}]
["Sch XI(a)(vi)","Loss Triangles - Financial Lines",null,{"$f":"\"Fin Lines Expenses Paid - Line 42 - \"&$E$2-5","v":"Fin Lines Expenses Paid - Line 42 - 2017"},null,null,null,null,null,null,null,null,{"$f":"+'Sch XI(a)(vi)'!G72","v":0}]
["Sch XI(a)(vi)","Loss Triangles - Financial Lines",null,{"$f":"\"Fin Lines Expenses Incurred - Line 40 - \"&$E$2-7","v":"Fin Lines Expenses Incurred - Line 40 - 2015"},null,null,null,null,null,null,null,null,{"$f":"+'Sch XI(a)(vi)'!H70","v":0}]
["Sch XI(a)(vi)","Loss Triangles - Financial Lines",null,{"$f":"\"Fin Lines Expenses Incurred - Line 45 - \"&$E$2-2","v":"Fin Lines Expenses Incurred - Line 45 - 2020"},null,null,null,null,null,null,null,null,{"$f":"+'Sch XI(a)(vi)'!H75","v":0}]
["Sch XI(a)(vi)","Loss Triangles - Financial Lines",null,{"$f":"\"Fin Lines Brokerage - Line 46 - \"&$E$2-1","v":"Fin Lines Brokerage - Line 46 - 2021"},null,null,null,null,null,null,null,null,{"$f":"+'Sch XI(a)(vi)'!J76","v":0}]
["Sch XI(a)(vi)","Loss Triangles - Financial Lines",null,{"$f":"\"Fin Lines G&A - Line 44 - \"&$E$2-3","v":"Fin Lines G&A - Line 44 - 2019"},null,null,null,null,null,null,null,null,{"$f":"+'Sch XI(a)(vi)'!K74","v":0}]
["Sch XI(a)(vi)","Loss Triangles - Financial Lines",null,{"$f":"\"Fin Lines G&A - Line 46 - \"&$E$2-1","v":"Fin Lines G&A - Line 46 - 2021"},null,null,null,null,null,null,null,null,{"$f":"+'Sch XI(a)(vi)'!K76","v":0}]
["Sch XI(a)(vi)","Loss Triangles - Financial Lines",null,{"$f":"\"Fin Lines Personnel Costs - Line 42 - \"&$E$2-5","v":"Fin Lines Personnel Costs - Line 42 - 2017"},null,null,null,null,null,null,null,null,{"$f":"+'Sch XI(a)(vi)'!L72","v":0}]
["Sch XI(a)(vi)","Loss Triangles - Financial Lines",null,{"$f":"\"Fin Lines Other Exp. - Line 40 - \"&$E$2-7","v":"Fin Lines Other Exp. - Line 40 - 2015"},null,null,null,null,null,null,null,null,{"$f":"+'Sch XI(a)(vi)'!M70","v":0}]
["Sch XI(a)(vi)","Loss Triangles - Financial Lines",null,{"$f":"\"Fin Lines Other Exp. - Line 47 - \"&$E$2","v":"Fin Lines Other Exp. - Line 47 - 2022"},null,null,null,null,null,null,null,null,{"$f":"+'Sch XI(a)(vi)'!M77","v":0}]
["Sch XI(a)(vii)","Loss Triangles - Other Specialty Lines",null,{"$f":"\"Otr. Special - Incurred - Line 4 - \"&$E$2-7&\" - \"&$E$2-7","v":"Otr. Special - Incurred - Line 4 - 2015 - 2015"},null,null,null,null,null,null,null,null,{"$f":"+'Sch XI(a)(vii)'!E14","v":0}]
["Sch XI(a)(vii)","Loss Triangles - Other Specialty Lines",null,{"$f":"\"Otr. Special - Incurred - Line 4 - \"&$E$2-5&\" - \"&$E$2-7","v":"Otr. Special - Incurred - Line 4 - 2017 - 2015"},null,null,null,null,null,null,null,null,{"$f":"+'Sch XI(a)(vii)'!G14","v":0}]
["Sch XI(a)(vii)","Loss Triangles - Other Specialty Lines",null,{"$f":"\"Otr. Special - Incurred - Line 6 - \"&$E$2-4&\" - \"&$E$2-5","v":"Otr. Special - Incurred - Line 6 - 2018 - 2017"},null,null,null,null,null,null,null,null,{"$f":"+'Sch XI(a)(vii)'!H16","v":0}]
["Sch XI(a)(vii)","Loss Triangles - Other Specialty Lines",null,{"$f":"\"Otr. Special - Incurred - Line 8 - \"&$E$2-3&\" - \"&$E$2-3","v":"Otr. Special - Incurred - Line 8 - 2019 - 2019"},null,null,null,null,null,null,null,null,{"$f":"+'Sch XI(a)(vii)'!I18","v":0}]
["Sch XI(a)(vii)","Loss Triangles - Other Specialty Lines",null,{"$f":"\"Otr. Special - Incurred - Line 9 - \"&$E$2-2&\" - \"&$E$2-2","v":"Otr. Special - Incurred - Line 9 - 2020 - 2020"},null,null,null,null,null,null,null,null,{"$f":"+'Sch XI(a)(vii)'!J19","v":0}]
["Sch XI(a)(vii)","Loss Triangles - Other Specialty Lines",null,{"$f":"\"Otr. Special - Incurred - Line 1 - \"&$E$2-1&\" - Prior\"","v":"Otr. Special - Incurred - Line 1 - 2021 - Prior"},null,null,null,null,null,null,null,null,{"$f":"+'Sch XI(a)(vii)'!K11","v":0}]
["Sch XI(a)(vii)","Loss Triangles - Other Specialty Lines",null,{"$f":"\"Otr. Special - Incurred - Line 4 - \"&$E$2&\" - \"&$E$2-7","v":"Otr. Special - Incurred - Line 4 - 2022 - 2015"},null,null,null,null,null,null,null,null,{"$f":"+'Sch XI(a)(vii)'!L14","v":0}]
["Sch XI(a)(vii)","Loss Triangles - Other Specialty Lines",null,{"$f":"\"Otr. Special - Incurred - Line 8 - \"&$E$2&\" - \"&$E$2-3","v":"Otr. Special - Incurred - Line 8 - 2022 - 2019"},null,null,null,null,null,null,null,null,{"$f":"+'Sch XI(a)(vii)'!L18","v":0}]
["Sch XI(a)(vii)","Loss Triangles - Other Specialty Lines",null,{"$f":"\"Otr. Special - Incurred - Line 6 - Cat Loss. - \"&$E$2-5","v":"Otr. Special - Incurred - Line 6 - Cat Loss. - 2017"},null,null,null,null,null,null,null,null,{"$f":"+'Sch XI(a)(vii)'!M16","v":0}]
["Sch XI(a)(vii)","Loss Triangles - Other Specialty Lines",null,{"$f":"\"Otr. Special - Paid - Line 15 - \"&$E$2-8&\" - \"&$E$2-8","v":"Otr. Special - Paid - Line 15 - 2014 - 2014"},null,null,null,null,null,null,null,null,{"$f":"+'Sch XI(a)(vii)'!D31","v":0}]
["Sch XI(a)(vii)","Loss Triangles - Other Specialty Lines",null,{"$f":"\"Otr. Special - Paid - Line 15 - \"&$E$2-6&\" - \"&$E$2-8","v":"Otr. Special - Paid - Line 15 - 2016 - 2014"},null,null,null,null,null,null,null,null,{"$f":"+'Sch XI(a)(vii)'!F31","v":0}]
["Sch XI(a)(vii)","Loss Triangles - Other Specialty Lines",null,{"$f":"\"Otr. Special - Paid - Line 13 - \"&$E$2-4&\" - Prior\"","v":"Otr. Special - Paid - Line 13 - 2018 - Prior"},null,null,null,null,null,null,null,null,{"$f":"+'Sch XI(a)(vii)'!H29","v":0}]
["Sch XI(a)(vii)","Loss Triangles - Other Specialty Lines",null,{"$f":"\"Otr. Special - Paid - Line 13 - \"&$E$2-3&\" - Prior\"","v":"Otr. Special - Paid - Line 13 - 2019 - Prior"},null,null,null,null,null,null,null,null,{"$f":"+'Sch XI(a)(vii)'!I29","v":0}]
["Sch XI(a)(vii)","Loss Triangles - Other Specialty Lines",null,{"$f":"\"Otr. Special - Paid - Line 15 - \"&$E$2-3&\" - \"&$E$2-8","v":"Otr. Special - Paid - Line 15 - 2019 - 2014"},null,null,null,null,null,null,null,null,{"$f":"+'Sch XI(a)(vii)'!I31","v":0}]
["Sch XI(a)(vii)","Loss Triangles - Other Specialty Lines",null,{"$f":"\"Otr. Special - Paid - Line 16 - \"&$E$2-2&\" - \"&$E$2-7","v":"Otr. Special - Paid - Line 16 - 2020 - 2015"},null,null,null,null,null,null,null,null,{"$f":"+'Sch XI(a)(vii)'!J32","v":0}]
["Sch XI(a)(vii)","Loss Triangles - Other Specialty Lines",null,{"$f":"\"Otr. Special - Paid - Line 16 - \"&$E$2-1&\" - \"&$E$2-7","v":"Otr. Special - Paid - Line 16 - 2021 - 2015"},null,null,null,null,null,null,null,null,{"$f":"+'Sch XI(a)(vii)'!K32","v":0}]
["Sch XI(a)(vii)","Loss Triangles - Other Specialty Lines",null,{"$f":"\"Otr. Special - Paid - Line 14 - \"&$E$2&\" - \"&$E$2-9","v":"Otr. Special - Paid - Line 14 - 2022 - 2013"},null,null,null,null,null,null,null,null,{"$f":"+'Sch XI(a)(vii)'!L30","v":0}]
["Sch XI(a)(vii)","Loss Triangles - Other Specialty Lines",null,{"$f":"\"Otr. Special - Paid - Line 23 - \"&$E$2&\" - \"&$E$2","v":"Otr. Special - Paid - Line 23 - 2022 - 2022"},null,null,null,null,null,null,null,null,{"$f":"+'Sch XI(a)(vii)'!L39","v":0}]
["Sch XI(a)(vii)","Loss Triangles - Other Specialty Lines",null,{"$f":"\"Otr. Special - Paid - Line 18 - Cat Loss. - \"&$E$2-5","v":"Otr. Special - Paid - Line 18 - Cat Loss. - 2017"},null,null,null,null,null,null,null,null,{"$f":"+'Sch XI(a)(vii)'!M34","v":0}]
["Sch XI(a)(vii)","Loss Triangles - Other Specialty Lines",null,{"$f":"\"Otr. Special - Reserve - Line 25 - \"&$E$2-7&\" - Prior\"","v":"Otr. Special - Reserve - Line 25 - 2015 - Prior"},null,null,null,null,null,null,null,null,{"$f":"+'Sch XI(a)(vii)'!E47","v":0}]
["Sch XI(a)(vii)","Loss Triangles - Other Specialty Lines",null,{"$f":"\"Otr. Special - Reserve - Line 25 - \"&$E$2-5&\" - Prior\"","v":"Otr. Special - Reserve - Line 25 - 2017 - Prior"},null,null,null,null,null,null,null,null,{"$f":"+'Sch XI(a)(vii)'!G47","v":0}]
["Sch XI(a)(vii)","Loss Triangles - Other Specialty Lines",null,{"$f":"\"Otr. Special - Reserve - Line 28 - \"&$E$2-5&\" - \"&$E$2-7","v":"Otr. Special - Reserve - Line 28 - 2017 - 2015"},null,null,null,null,null,null,null,null,{"$f":"+'Sch XI(a)(vii)'!G50","v":0}]
["Sch XI(a)(vii)","Loss Triangles - Other Specialty Lines",null,{"$f":"\"Otr. Special - Reserve - Line 28 - \"&$E$2-4&\" - \"&$E$2-7","v":"Otr. Special - Reserve - Line 28 - 2018 - 2015"},null,null,null,null,null,null,null,null,{"$f":"+'Sch XI(a)(vii)'!H50","v":0}]
["Sch XI(a)(vii)","Loss Triangles - Other Specialty Lines",null,{"$f":"\"Otr. Special - Reserve - Line 30 - \"&$E$2-3&\" - \"&$E$2-5","v":"Otr. Special - Reserve - Line 30 - 2019 - 2017"},null,null,null,null,null,null,null,null,{"$f":"+'Sch XI(a)(vii)'!I52","v":0}]
["Sch XI(a)(vii)","Loss Triangles - Other Specialty Lines",null,{"$f":"\"Otr. Special - Reserve - Line 30 - \"&$E$2-2&\" - \"&$E$2-5","v":"Otr. Special - Reserve - Line 30 - 2020 - 2017"},null,null,null,null,null,null,null,null,{"$f":"+'Sch XI(a)(vii)'!J52","v":0}]
["Sch XI(a)(vii)","Loss Triangles - Other Specialty Lines",null,{"$f":"\"Otr. Special - Reserve - Line 30 - \"&$E$2-1&\" - \"&$E$2-5","v":"Otr. Special - Reserve - Line 30 - 2021 - 2017"},null,null,null,null,null,null,null,null,{"$f":"+'Sch XI(a)(vii)'!K52","v":0}]
["Sch XI(a)(vii)","Loss Triangles - Other Specialty Lines",null,{"$f":"\"Otr. Special - Reserve - Line 29 - \"&$E$2&\" - \"&$E$2-6","v":"Otr. Special - Reserve - Line 29 - 2022 - 2016"},null,null,null,null,null,null,null,null,{"$f":"+'Sch XI(a)(vii)'!L51","v":0}]
["Sch XI(a)(vii)","Loss Triangles - Other Specialty Lines",null,{"$f":"\"Otr. Special - Reserve - Line 34 - \"&$E$2&\" - \"&$E$2-1","v":"Otr. Special - Reserve - Line 34 - 2022 - 2021"},null,null,null,null,null,null,null,null,{"$f":"+'Sch XI(a)(vii)'!L56","v":0}]
["Sch XI(a)(vii)","Loss Triangles - Other Specialty Lines",null,{"$f":"\"Otr. Special - Reserve - Line 35 - Cat Loss. - \"&$E$2","v":"Otr. Special - Reserve - Line 35 - Cat Loss. - 2022"},null,null,null,null,null,null,null,null,{"$f":"+'Sch XI(a)(vii)'!M57","v":0}]
["Sch XI(a)(vii)","Loss Triangles - Other Specialty Lines",null,{"$f":"\"Otr. Special - GPW - Line 37 - Prior\"","v":"Otr. Special - GPW - Line 37 - Prior"},null,null,null,null,null,null,null,null,{"$f":"+'Sch XI(a)(vii)'!C67","v":"XXX"}]
["Sch XI(a)(vii)","Loss Triangles - Other Specialty Lines",null,{"$f":"\"Otr. Special - GPW - Line 47 - \"&$E$2","v":"Otr. Special - GPW - Line 47 - 2022"},null,null,null,null,null,null,null,null,{"$f":"+'Sch XI(a)(vii)'!C77","v":0}]
["Sch XI(a)(vii)","Loss Triangles - Other Specialty Lines",null,{"$f":"\"Otr. Special - Gross Premiums Earned - Line 43 - \"&$E$2-4","v":"Otr. Special - Gross Premiums Earned - Line 43 - 2018"},null,null,null,null,null,null,null,null,{"$f":"+'Sch XI(a)(vii)'!D73","v":0}]
["Sch XI(a)(vii)","Loss Triangles - Other Specialty Lines",null,{"$f":"\"Otr. Special - NPW - Line 41 - \"&$E$2-6","v":"Otr. Special - NPW - Line 41 - 2016"},null,null,null,null,null,null,null,null,{"$f":"+'Sch XI(a)(vii)'!E71","v":0}]
["Sch XI(a)(vii)","Loss Triangles - Other Specialty Lines",null,{"$f":"\"Otr. Special - Net Premiums Earned - Line 39 - \"&$E$2-8","v":"Otr. Special - Net Premiums Earned - Line 39 - 2014"},null,null,null,null,null,null,null,null,{"$f":"+'Sch XI(a)(vii)'!F69","v":0}]
["Sch XI(a)(vii)","Loss Triangles - Other Specialty Lines",null,{"$f":"\"Otr. Special - Net Premiums Earned - Line 43 - \"&$E$2-4","v":"Otr. Special - Net Premiums Earned - Line 43 - 2018"},null,null,null,null,null,null,null,null,{"$f":"+'Sch XI(a)(vii)'!F73","v":0}]
["Sch XI(a)(vii)","Loss Triangles - Other Specialty Lines",null,{"$f":"\"Otr. Special - Expenses Paid - Line 45 - \"&$E$2-2","v":"Otr. Special - Expenses Paid - Line 45 - 2020"},null,null,null,null,null,null,null,null,{"$f":"+'Sch XI(a)(vii)'!G75","v":0}]
["Sch XI(a)(vii)","Loss Triangles - Other Specialty Lines",null,{"$f":"\"Otr. Special - Expenses Incurred - Line 43 - \"&$E$2-4","v":"Otr. Special - Expenses Incurred - Line 43 - 2018"},null,null,null,null,null,null,null,null,{"$f":"+'Sch XI(a)(vii)'!H73","v":0}]
["Sch XI(a)(vii)","Loss Triangles - Other Specialty Lines",null,{"$f":"\"Otr. Special - Expenses Incurred - Line 44 - \"&$E$2-3","v":"Otr. Special - Expenses Incurred - Line 44 - 2019"},null,null,null,null,null,null,null,null,{"$f":"+'Sch XI(a)(vii)'!H74","v":0}]
["Sch XI(a)(vii)","Loss Triangles - Other Specialty Lines",null,{"$f":"\"Otr. Special - Brokerage - Line 41 - \"&$E$2-6","v":"Otr. Special - Brokerage - Line 41 - 2016"},null,null,null,null,null,null,null,null,{"$f":"+'Sch XI(a)(vii)'!J71","v":0}]
["Sch XI(a)(vii)","Loss Triangles - Other Specialty Lines",null,{"$f":"\"Otr. Special - G&A - Line 39 - \"&$E$2-8","v":"Otr. Special - G&A - Line 39 - 2014"},null,null,null,null,null,null,null,null,{"$f":"+'Sch XI(a)(vii)'!K69","v":0}]
["Sch XI(a)(vii)","Loss Triangles - Other Specialty Lines",null,{"$f":"\"Otr. Special - G&A - Line 45 - \"&$E$2-2","v":"Otr. Special - G&A - Line 45 - 2020"},null,null,null,null,null,null,null,null,{"$f":"+'Sch XI(a)(vii)'!K75","v":0}]
["Sch XI(a)(vii)","Loss Triangles - Other Specialty Lines",null,{"$f":"\"Otr. Special - Personnel Costs - Line 45 - \"&$E$2-2","v":"Otr. Special - Personnel Costs - Line 45 - 2020"},null,null,null,null,null,null,null,null,{"$f":"+'Sch XI(a)(vii)'!L75","v":0}]
["Sch XI(a)(vii)","Loss Triangles - Other Specialty Lines",null,{"$f":"\"Otr. Special - Other Exp. - Line 43 - \"&$E$2-4","v":"Otr. Special - Other Exp. - Line 43 - 2018"},null,null,null,null,null,null,null,null,{"$f":"+'Sch XI(a)(vii)'!M73","v":0}]
["Sch XI(a)(vii)","Loss Triangles - Other Specialty Lines",null,{"$f":"\"Otr. Special - Other Exp. - Line 46 - \"&$E$2-1","v":"Otr. Special - Other Exp. - Line 46 - 2021"},null,null,null,null,null,null,null,null,{"$f":"+'Sch XI(a)(vii)'!M76","v":0}]
["Sch XI(a)(viii)","Loss Triangles - Structured/Finite Lines",null,{"$f":"\"Stuct. Lines - Incurred - Line 3 - \"&$E$2-6&\" - \"&$E$2-8","v":"Stuct. Lines - Incurred - Line 3 - 2016 - 2014"},null,null,null,null,null,null,null,null,{"$f":"+'Sch XI(a)(viii)'!F13","v":0}]
["Sch XI(a)(viii)","Loss Triangles - Structured/Finite Lines",null,{"$f":"\"Stuct. Lines - Incurred - Line 4 - \"&$E$2-6&\" - \"&$E$2-7","v":"Stuct. Lines - Incurred - Line 4 - 2016 - 2015"},null,null,null,null,null,null,null,null,{"$f":"+'Sch XI(a)(viii)'!F14","v":0}]
["Sch XI(a)(viii)","Loss Triangles - Structured/Finite Lines",null,{"$f":"\"Stuct. Lines - Incurred - Line 1 - \"&$E$2-4&\" - Prior\"","v":"Stuct. Lines - Incurred - Line 1 - 2018 - Prior"},null,null,null,null,null,null,null,null,{"$f":"+'Sch XI(a)(viii)'!H11","v":0}]
["Sch XI(a)(viii)","Loss Triangles - Structured/Finite Lines",null,{"$f":"\"Stuct. Lines - Incurred - Line 3 - \"&$E$2-3&\" - \"&$E$2-8","v":"Stuct. Lines - Incurred - Line 3 - 2019 - 2014"},null,null,null,null,null,null,null,null,{"$f":"+'Sch XI(a)(viii)'!I13","v":0}]
["Sch XI(a)(viii)","Loss Triangles - Structured/Finite Lines",null,{"$f":"\"Stuct. Lines - Incurred - Line 4 - \"&$E$2-2&\" - \"&$E$2-7","v":"Stuct. Lines - Incurred - Line 4 - 2020 - 2015"},null,null,null,null,null,null,null,null,{"$f":"+'Sch XI(a)(viii)'!J14","v":0}]
["Sch XI(a)(viii)","Loss Triangles - Structured/Finite Lines",null,{"$f":"\"Stuct. Lines - Incurred - Line 4 - \"&$E$2-1&\" - \"&$E$2-7","v":"Stuct. Lines - Incurred - Line 4 - 2021 - 2015"},null,null,null,null,null,null,null,null,{"$f":"+'Sch XI(a)(viii)'!K14","v":0}]
["Sch XI(a)(viii)","Loss Triangles - Structured/Finite Lines",null,{"$f":"\"Stuct. Lines - Incurred - Line 2 - \"&$E$2&\" - \"&$E$2-9","v":"Stuct. Lines - Incurred - Line 2 - 2022 - 2013"},null,null,null,null,null,null,null,null,{"$f":"+'Sch XI(a)(viii)'!L12","v":0}]
["Sch XI(a)(viii)","Loss Triangles - Structured/Finite Lines",null,{"$f":"\"Stuct. Lines - Incurred - Line 11 - \"&$E$2&\" - \"&$E$2","v":"Stuct. Lines - Incurred - Line 11 - 2022 - 2022"},null,null,null,null,null,null,null,null,{"$f":"+'Sch XI(a)(viii)'!L21","v":0}]
["Sch XI(a)(viii)","Loss Triangles - Structured/Finite Lines",null,{"$f":"\"Stuct. Lines - Incurred - Line 6 - Cat Loss. - \"&$E$2-5","v":"Stuct. Lines - Incurred - Line 6 - Cat Loss. - 2017"},null,null,null,null,null,null,null,null,{"$f":"+'Sch XI(a)(viii)'!M16","v":0}]
["Sch XI(a)(viii)","Loss Triangles - Structured/Finite Lines",null,{"$f":"\"Stuct. Lines - Incurred - Line 9 - Cat Loss. - \"&$E$2-2","v":"Stuct. Lines - Incurred - Line 9 - Cat Loss. - 2020"},null,null,null,null,null,null,null,null,{"$f":"+'Sch XI(a)(viii)'!M19","v":0}]
["Sch XI(a)(viii)","Loss Triangles - Structured/Finite Lines",null,{"$f":"\"Stuct. Lines - Paid - Line 14 - \"&$E$2-7&\" - \"&$E$2-9","v":"Stuct. Lines - Paid - Line 14 - 2015 - 2013"},null,null,null,null,null,null,null,null,{"$f":"+'Sch XI(a)(viii)'!E30","v":0}]
["Sch XI(a)(viii)","Loss Triangles - Structured/Finite Lines",null,{"$f":"\"Stuct. Lines - Paid - Line 16 - \"&$E$2-5&\" - \"&$E$2-7","v":"Stuct. Lines - Paid - Line 16 - 2017 - 2015"},null,null,null,null,null,null,null,null,{"$f":"+'Sch XI(a)(viii)'!G32","v":0}]
["Sch XI(a)(viii)","Loss Triangles - Structured/Finite Lines",null,{"$f":"\"Stuct. Lines - Paid - Line 16 - \"&$E$2-4&\" - \"&$E$2-7","v":"Stuct. Lines - Paid - Line 16 - 2018 - 2015"},null,null,null,null,null,null,null,null,{"$f":"+'Sch XI(a)(viii)'!H32","v":0}]
["Sch XI(a)(viii)","Loss Triangles - Structured/Finite Lines",null,{"$f":"\"Stuct. Lines - Paid - Line 18 - \"&$E$2-3&\" - \"&$E$2-5","v":"Stuct. Lines - Paid - Line 18 - 2019 - 2017"},null,null,null,null,null,null,null,null,{"$f":"+'Sch XI(a)(viii)'!I34","v":0}]
["Sch XI(a)(viii)","Loss Triangles - Structured/Finite Lines",null,{"$f":"\"Stuct. Lines - Paid - Line 18 - \"&$E$2-2&\" - \"&$E$2-5","v":"Stuct. Lines - Paid - Line 18 - 2020 - 2017"},null,null,null,null,null,null,null,null,{"$f":"+'Sch XI(a)(viii)'!J34","v":0}]
["Sch XI(a)(viii)","Loss Triangles - Structured/Finite Lines",null,{"$f":"\"Stuct. Lines - Paid - Line 18 - \"&$E$2-1&\" - \"&$E$2-5","v":"Stuct. Lines - Paid - Line 18 - 2021 - 2017"},null,null,null,null,null,null,null,null,{"$f":"+'Sch XI(a)(viii)'!K34","v":0}]
["Sch XI(a)(viii)","Loss Triangles - Structured/Finite Lines",null,{"$f":"\"Stuct. Lines - Paid - Line 17 - \"&$E$2&\" - \"&$E$2-6","v":"Stuct. Lines - Paid - Line 17 - 2022 - 2016"},null,null,null,null,null,null,null,null,{"$f":"+'Sch XI(a)(viii)'!L33","v":0}]
["Sch XI(a)(viii)","Loss Triangles - Structured/Finite Lines",null,{"$f":"\"Stuct. Lines - Paid - Line 18 - \"&$E$2&\" - \"&$E$2-5","v":"Stuct. Lines - Paid - Line 18 - 2022 - 2017"},null,null,null,null,null,null,null,null,{"$f":"+'Sch XI(a)(viii)'!L34","v":0}]
["Sch XI(a)(viii)","Loss Triangles - Structured/Finite Lines",null,{"$f":"\"Stuct. Lines - Paid - Line 20 - Cat Loss. - \"&$E$2-3","v":"Stuct. Lines - Paid - Line 20 - Cat Loss. - 2019"},null,null,null,null,null,null,null,null,{"$f":"+'Sch XI(a)(viii)'!M36","v":0}]
["Sch XI(a)(viii)","Loss Triangles - Structured/Finite Lines",null,{"$f":"\"Stuct. Lines - Reserve - Line 25 - \"&$E$2-9&\" - Prior\"","v":"Stuct. Lines - Reserve - Line 25 - 2013 - Prior"},null,null,null,null,null,null,null,null,{"$f":"+'Sch XI(a)(viii)'!C47","v":0}]
["Sch XI(a)(viii)","Loss Triangles - Structured/Finite Lines",null,{"$f":"\"Stuct. Lines - Reserve - Line 25 - \"&$E$2-6&\" - Prior\"","v":"Stuct. Lines - Reserve - Line 25 - 2016 - Prior"},null,null,null,null,null,null,null,null,{"$f":"+'Sch XI(a)(viii)'!F47","v":0}]
["Sch XI(a)(viii)","Loss Triangles - Structured/Finite Lines",null,{"$f":"\"Stuct. Lines - Reserve - Line 27 - \"&$E$2-5&\" - \"&$E$2-8","v":"Stuct. Lines - Reserve - Line 27 - 2017 - 2014"},null,null,null,null,null,null,null,null,{"$f":"+'Sch XI(a)(viii)'!G49","v":0}]
["Sch XI(a)(viii)","Loss Triangles - Structured/Finite Lines",null,{"$f":"\"Stuct. Lines - Reserve - Line 31 - \"&$E$2-4&\" - \"&$E$2-4","v":"Stuct. Lines - Reserve - Line 31 - 2018 - 2018"},null,null,null,null,null,null,null,null,{"$f":"+'Sch XI(a)(viii)'!H53","v":0}]
["Sch XI(a)(viii)","Loss Triangles - Structured/Finite Lines",null,{"$f":"\"Stuct. Lines - Reserve - Line 25 - \"&$E$2-2&\" - Prior\"","v":"Stuct. Lines - Reserve - Line 25 - 2020 - Prior"},null,null,null,null,null,null,null,null,{"$f":"+'Sch XI(a)(viii)'!J47","v":0}]
["Sch XI(a)(viii)","Loss Triangles - Structured/Finite Lines",null,{"$f":"\"Stuct. Lines - Reserve - Line 29 - \"&$E$2-2&\" - \"&$E$2-6","v":"Stuct. Lines - Reserve - Line 29 - 2020 - 2016"},null,null,null,null,null,null,null,null,{"$f":"+'Sch XI(a)(viii)'!J51","v":0}]
["Sch XI(a)(viii)","Loss Triangles - Structured/Finite Lines",null,{"$f":"\"Stuct. Lines - Reserve - Line 25 - \"&$E$2-1&\" - Prior\"","v":"Stuct. Lines - Reserve - Line 25 - 2021 - Prior"},null,null,null,null,null,null,null,null,{"$f":"+'Sch XI(a)(viii)'!K47","v":0}]
["Sch XI(a)(viii)","Loss Triangles - Structured/Finite Lines",null,{"$f":"\"Stuct. Lines - Reserve - Line 34 - \"&$E$2-1&\" - \"&$E$2-1","v":"Stuct. Lines - Reserve - Line 34 - 2021 - 2021"},null,null,null,null,null,null,null,null,{"$f":"+'Sch XI(a)(viii)'!K56","v":0}]
["Sch XI(a)(viii)","Loss Triangles - Structured/Finite Lines",null,{"$f":"\"Stuct. Lines - Reserve - Line 33 - \"&$E$2&\" - \"&$E$2-2","v":"Stuct. Lines - Reserve - Line 33 - 2022 - 2020"},null,null,null,null,null,null,null,null,{"$f":"+'Sch XI(a)(viii)'!L55","v":0}]
["Sch XI(a)(viii)","Loss Triangles - Structured/Finite Lines",null,{"$f":"\"Stuct. Lines - Reserve - Line 30 - Cat Loss. - \"&$E$2-5","v":"Stuct. Lines - Reserve - Line 30 - Cat Loss. - 2017"},null,null,null,null,null,null,null,null,{"$f":"+'Sch XI(a)(viii)'!M52","v":0}]
["Sch XI(a)(viii)","Loss Triangles - Structured/Finite Lines",null,{"$f":"\"Stuct. Lines - GPW - Line 40 - \"&$E$2-7","v":"Stuct. Lines - GPW - Line 40 - 2015"},null,null,null,null,null,null,null,null,{"$f":"+'Sch XI(a)(viii)'!C70","v":0}]
["Sch XI(a)(viii)","Loss Triangles - Structured/Finite Lines",null,{"$f":"\"Stuct. Lines - GPW - Line 46 - \"&$E$2-1","v":"Stuct. Lines - GPW - Line 46 - 2021"},null,null,null,null,null,null,null,null,{"$f":"+'Sch XI(a)(viii)'!C76","v":0}]
["Sch XI(a)(viii)","Loss Triangles - Structured/Finite Lines",null,{"$f":"\"Stuct. Lines - Gross Premiums Earned - Line 46 - \"&$E$2-1","v":"Stuct. Lines - Gross Premiums Earned - Line 46 - 2021"},null,null,null,null,null,null,null,null,{"$f":"+'Sch XI(a)(viii)'!D76","v":0}]
["Sch XI(a)(viii)","Loss Triangles - Structured/Finite Lines",null,{"$f":"\"Stuct. Lines - NPW - Line 44 - \"&$E$2-3","v":"Stuct. Lines - NPW - Line 44 - 2019"},null,null,null,null,null,null,null,null,{"$f":"+'Sch XI(a)(viii)'!E74","v":0}]
["Sch XI(a)(viii)","Loss Triangles - Structured/Finite Lines",null,{"$f":"\"Stuct. Lines - NPW - Line 47 - \"&$E$2","v":"Stuct. Lines - NPW - Line 47 - 2022"},null,null,null,null,null,null,null,null,{"$f":"+'Sch XI(a)(viii)'!E77","v":0}]
["Sch XI(a)(viii)","Loss Triangles - Structured/Finite Lines",null,{"$f":"\"Stuct. Lines - Net Premiums Earned - Line 42 - \"&$E$2-5","v":"Stuct. Lines - Net Premiums Earned - Line 42 - 2017"},null,null,null,null,null,null,null,null,{"$f":"+'Sch XI(a)(viii)'!F72","v":0}]
["Sch XI(a)(viii)","Loss Triangles - Structured/Finite Lines",null,{"$f":"\"Stuct. Lines - Expenses Paid - Line 40 - \"&$E$2-7","v":"Stuct. Lines - Expenses Paid - Line 40 - 2015"},null,null,null,null,null,null,null,null,{"$f":"+'Sch XI(a)(viii)'!G70","v":0}]
["Sch XI(a)(viii)","Loss Triangles - Structured/Finite Lines",null,{"$f":"\"Stuct. Lines - Expenses Incurred - Line 37 - Prior\"","v":"Stuct. Lines - Expenses Incurred - Line 37 - Prior"},null,null,null,null,null,null,null,null,{"$f":"+'Sch XI(a)(viii)'!H67","v":0}]
["Sch XI(a)(viii)","Loss Triangles - Structured/Finite Lines",null,{"$f":"\"Stuct. Lines - Expenses Incurred - Line 46 - \"&$E$2-1","v":"Stuct. Lines - Expenses Incurred - Line 46 - 2021"},null,null,null,null,null,null,null,null,{"$f":"+'Sch XI(a)(viii)'!H76","v":0}]
["Sch XI(a)(viii)","Loss Triangles - Structured/Finite Lines",null,{"$f":"\"Stuct. Lines - Brokerage - Line 44 - \"&$E$2-3","v":"Stuct. Lines - Brokerage - Line 44 - 2019"},null,null,null,null,null,null,null,null,{"$f":"+'Sch XI(a)(viii)'!J74","v":0}]
["Sch XI(a)(viii)","Loss Triangles - Structured/Finite Lines",null,{"$f":"\"Stuct. Lines - G&A - Line 42 - \"&$E$2-5","v":"Stuct. Lines - G&A - Line 42 - 2017"},null,null,null,null,null,null,null,null,{"$f":"+'Sch XI(a)(viii)'!K72","v":0}]
["Sch XI(a)(viii)","Loss Triangles - Structured/Finite Lines",null,{"$f":"\"Stuct. Lines - Personnel Costs - Line 39 - \"&$E$2-8","v":"Stuct. Lines - Personnel Costs - Line 39 - 2014"},null,null,null,null,null,null,null,null,{"$f":"+'Sch XI(a)(viii)'!L69","v":0}]
["Sch XI(a)(viii)","Loss Triangles - Structured/Finite Lines",null,{"$f":"\"Stuct. Lines - Personnel Costs - Line 40 - \"&$E$2-7","v":"Stuct. Lines - Personnel Costs - Line 40 - 2015"},null,null,null,null,null,null,null,null,{"$f":"+'Sch XI(a)(viii)'!L70","v":0}]
["Sch XI(a)(viii)","Loss Triangles - Structured/Finite Lines",null,{"$f":"\"Stuct. Lines - Other Exp. - Line 43 - \"&$E$2-4","v":"Stuct. Lines - Other Exp. - Line 43 - 2018"},null,null,null,null,null,null,null,null,{"$f":"+'Sch XI(a)(viii)'!M73","v":0}]
["Sch XI(a)(viii)","Loss Triangles - Structured/Finite Lines",null,{"$f":"\"Stuct. Lines - Other Exp. - Line 46 - \"&$E$2-1","v":"Stuct. Lines - Other Exp. - Line 46 - 2021"},null,null,null,null,null,null,null,null,{"$f":"+'Sch XI(a)(viii)'!M76","v":0}]
["SchXI(bi)","Reserve Rec - Property Catastrophe",null,"Cat. - Net Losses Incurred - Current Year",null,null,null,null,null,null,null,null,{"$f":"'Sch XI(b)(i)'!D17","v":0},null,{"$f":"'Sch XI(b)(i)'!F17","v":0}]
["SchXI(bii)","Reserve Rec - Property",null,"Property - Net Losses Incurred - Prior Years",null,null,null,null,null,null,null,null,{"$f":"'Sch XI(b)(ii)'!D14","v":0},null,{"$f":"'Sch XI(b)(ii)'!F14","v":0}]
["SchXI(bii)","Reserve Rec - Property",null,"Property - Foreign Exchange and Other",null,null,null,null,null,null,null,null,{"$f":"'Sch XI(b)(ii)'!D19","v":0},null,{"$f":"'Sch XI(b)(ii)'!F19","v":0}]
["SchXI(biii)","Reserve Rec - Property Non-Proportional",null,"Prop. Non-Prop - Impact of Change in Discount Curve",null,null,null,null,null,null,null,null,{"$f":"'Sch XI(b)(iii)'!D22","v":0},null,{"$f":"'Sch XI(b)(iii)'!F22","v":0}]
["SchXI(biv)","Reserve Rec - Casualty",null,"Casualty - Foreign Exchange and Other",null,null,null,null,null,null,null,null,{"$f":"'Sch XI(b)(iv)'!D19","v":0},null,{"$f":"'Sch XI(b)(iv)'!F19","v":0}]
["SchXI(biv)","Reserve Rec - Casualty",null,"Casualty - Best Estimate Provision - From CY",null,null,null,null,null,null,null,null,{"$f":"'Sch XI(b)(iv)'!D20","v":0},null,{"$f":"'Sch XI(b)(iv)'!F20","v":0}]
["SchXI(bv)","Reserve Rec - Casualty Non-Proportional",null,"Caus. Non-Prop. - Net Losses Incurred - Current Year",null,null,null,null,null,null,null,null,{"$f":"'Sch XI(b)(v)'!D17","v":0},null,{"$f":"'Sch XI(b)(v)'!F17","v":0}]
["SchXI(bvi)","Reserve Rec - Financial Lines",null,"Fin. Lines - Net Losses Incurred - Prior Years",null,null,null,null,null,null,null,null,{"$f":"'Sch XI(b)(vi)'!D14","v":0},null,{"$f":"'Sch XI(b)(vi)'!F14","v":0}]
["SchXI(bvi)","Reserve Rec - Financial Lines",null,"Fin. Lines - Impact of Change in Discount Curve",null,null,null,null,null,null,null,null,{"$f":"'Sch XI(b)(vi)'!D22","v":0},null,{"$f":"'Sch XI(b)(vi)'!F22","v":0}]
["SchXI(bvii)","Reserve Rec - Other Specialty Lines",null,"Otr. Specialty - Impact of Change in Discount Curve",null,null,null,null,null,null,null,null,{"$f":"'Sch XI(b)(vii)'!D22","v":0},null,{"$f":"'Sch XI(b)(vii)'!F22","v":0}]
["SchXI(bviii)","Reserve Rec - Structured/Finite Lines",null,"Stuct. Lines - Net Loss Paid - Current Year",null,null,null,null,null,null,null,null,{"$f":"'Sch XI(b)(viii)'!D19","v":0},null,{"$f":"'Sch XI(b)(viii)'!F19","v":0}]
["Sch XII(a)","Eligible Capital",null,"Tier 1 - 1d. Capital Adjustments",null,null,null,null,null,null,null,null,{"$f":"'Schedule XII(a)'!J15","v":0}]
["Sch XII(a)","Eligible Capital",null,"Encumb. Assets - Pledged Asset - Less Than",null,null,null,null,null,null,null,null,{"$f":"'Schedule XII(a)'!H26","v":0}]
["Sch XII(a)","Eligible Capital",null,"Encumb. Assets - Pledged Asset - Total",null,null,null,null,null,null,null,null,{"$f":"'Schedule XII(a)'!H28","v":0}]
["Sch XII(a)","Eligible Capital",null,"Tier 2 Ancillary - d. Subordinated Debt",null,null,null,null,null,null,null,null,{"$f":"'Schedule XII(a)'!J66","v":0}]
["Sch XII(a)","Eligible Capital",null,"Tier 3 Ancillary - a. Subordinated Debt",null,null,null,null,null,null,null,null,{"$f":"'Schedule XII(a)'!J74","v":0}]
["Sch XII(b)","Eligible Capital - Additional Details",null,"Description of Capital Instrument 3",{"$f":"'Schedule XII(b)'!B13","v":0}]
["Sch XII(b)","Eligible Capital - Additional Details",null,"Description of Capital Instrument 12",{"$f":"'Schedule XII(b)'!B22","v":0}]
["Sch XII(b)","Eligible Capital - Additional Details",null,"Description of Capital Instrument 20",{"$f":"'Schedule XII(b)'!B30","v":0}]
["Sch XII(b)","Eligible Capital - Additional Details",null,"Date of Issue - Instrument 9",{"$f":"'Schedule XII(b)'!C19","v":0}]
["Sch XII(b)","Eligible Capital - Additional Details",null,"Date of Issue - Instrument 15",{"$f":"'Schedule XII(b)'!C25","v":0}]
["Sch XII(b)","Eligible Capital - Additional Details",null,"Date of Issue - Instrument 18",{"$f":"'Schedule XII(b)'!C28","v":0}]
["Sch XII(b)","Eligible Capital - Additional Details",null,"Maturity Date - Instrument 7",{"$f":"'Schedule XII(b)'!D17","v":0}]
["Sch XII(b)","Eligible Capital - Additional Details",null,"Maturity Date - Instrument 18",{"$f":"'Schedule XII(b)'!D28","v":0}]
["Sch XII(b)","Eligible Capital - Additional Details",null,"Authority Approval Date - Instrument 4",{"$f":"'Schedule XII(b)'!E14","v":0}]
["Sch XII(b)","Eligible Capital - Additional Details",null,"Authority Approval Date - Instrument 13",{"$f":"'Schedule XII(b)'!E23","v":0}]
["Sch XII(b)","Eligible Capital - Additional Details",null,"Valuation - Instrument 1",{"$f":"+'Schedule XII(b)'!F11","v":0}]
["Sch XII(b)","Eligible Capital - Additional Details",null,"Valuation - Instrument 10",{"$f":"+'Schedule XII(b)'!F20","v":0}]
["Sch XII(b)","Eligible Capital - Additional Details",null,"Valuation - Instrument 19",{"$f":"+'Schedule XII(b)'!F29","v":0}]
["Sch XII(b)","Eligible Capital - Additional Details",null,"Valuation - Instrument 20",{"$f":"+'Schedule XII(b)'!F30","v":0}]
["Sch XII(b)","Eligible Capital - Additional Details",null,"Tier - Instrument 10",{"$f":"'Schedule XII(b)'!G20","v":0}]
["Sch XII(b)","Eligible Capital - Additional Details",null,"Tier - Instrument 17",{"$f":"'Schedule XII(b)'!G27","v":0}]
["Sch XVI","Non-Insurance",null,"Entity Name - 4",null,null,null,null,null,null,null,null,{"$f":"'Schedule XVI'!B14","v":0}]
["Sch XVI","Non-Insurance",null,"Entity Name - 11",null,null,null,null,null,null,null,null,{"$f":"'Schedule XVI'!B21","v":0}]
["Sch XVI","Non-Insurance",null,"Entity Jurisdiction - 6",null,null,null,null,null,null,null,null,{"$f":"'Schedule XVI'!C16","v":0}]
["Sch XVI","Non-Insurance",null,"Entity Jurisdiction - 15",null,null,null,null,null,null,null,null,{"$f":"'Schedule XVI'!C25","v":0}]
["Sch XVI","Non-Insurance",null,"Entity Sector - 4",null,null,null,null,null,null,null,null,{"$f":"'Schedule XVI'!D14","v":"Select"}]
["Sch XVI","Non-Insurance",null,"Entity Sector - 9",null,null,null,null,null,null,null,null,{"$f":"'Schedule XVI'!D19","v":"Select"}]
["Sch XVI","Non-Insurance",null,"Entity Strategic Purpose - 3",null,null,null,null,null,null,null,null,{"$f":"'Schedule XVI'!E13","v":0}]
["Sch XVI","Non-Insurance",null,"Entity Strategic Purpose - 12",null,null,null,null,null,null,null,null,{"$f":"'Schedule XVI'!E22","v":0}]
["Sch XVI","Non-Insurance",null,"Entity Type - 5",null,null,null,null,null,null,null,null,{"$f":"'Schedule XVI'!F15","v":"Select"}]
["Sch XVI","Non-Insurance",null,"Entity Type - 14",null,null,null,null,null,null,null,null,{"$f":"'Schedule XVI'!F24","v":"Select"}]
["Sch XVI","Non-Insurance",null,"Entity Product & Services - 5",null,null,null,null,null,null,null,null,{"$f":"'Schedule XVI'!G15","v":0}]
["Sch XVI","Non-Insurance",null,"Entity Participation - 1",null,null,null,null,null,null,null,null,{"$f":"'Schedule XVI'!H11","v":"Select"}]
["Sch XVI","Non-Insurance",null,"Entity Participation - 10",null,null,null,null,null,null,null,null,{"$f":"'Schedule XVI'!H20","v":"Select"}]
["Sch XVI","Non-Insurance",null,"% Interest in Entity - 2",null,null,null,null,null,null,null,null,{"$f":"'Schedule XVI'!I12","v":0}]
["Sch XVI","Non-Insurance",null,"% Interest in Entity - 4",null,null,null,null,null,null,null,null,{"$f":"'Schedule XVI'!I14","v":0}]
["Sch XVI","Non-Insurance",null,"% Interest in Entity - 13",null,null,null,null,null,null,null,null,{"$f":"'Schedule XVI'!I23","v":0}]
["Sch XVI","Non-Insurance",null,"Total Assets in Entity - 10",null,null,null,null,null,null,null,null,{"$f":"'Schedule XVI'!J20","v":0}]
["Sch XVI","Non-Insurance",null,"Total Assets in Entity - 15",null,null,null,null,null,null,null,null,{"$f":"'Schedule XVI'!J25","v":0}]
["Sch XVI","Non-Insurance",null,"Investments in Entity - 8",null,null,null,null,null,null,null,null,{"$f":"'Schedule XVI'!K18","v":0}]
["Sch XVI","Non-Insurance",null,"Regulatory Capital in Entity - 1",null,null,null,null,null,null,null,null,{"$f":"'Schedule XVI'!L11","v":0}]
["Sch XVI","Non-Insurance",null,"Regulatory Capital in Entity - 9",null,null,null,null,null,null,null,null,{"$f":"'Schedule XVI'!L19","v":0}]
["Sch XVI","Non-Insurance",null,"Regulatory Capital in Entity - 10",null,null,null,null,null,null,null,null,{"$f":"'Schedule XVI'!L20","v":0}]
["Sch XVI","Non-Insurance",null,"RCR 9",null,null,null,null,null,null,null,null,{"$f":"'Schedule XVI'!M19","v":0}]
["Sch XVI","Non-Insurance",null,"RCR 12",null,null,null,null,null,null,null,null,{"$f":"'Schedule XVI'!M22","v":0}]
["Sch XVII","Solvency Analysis",null,"Name of Entity - 3",null,null,null,null,null,null,null,null,{"$f":"'Schedule XVII'!B13","v":0}]
["Sch XVII","Solvency Analysis",null,"Name of Entity - 12",null,null,null,null,null,null,null,null,{"$f":"'Schedule XVII'!B22","v":0}]
["Sch XVII","Solvency Analysis",null,"Name of Entity - 20",null,null,null,null,null,null,null,null,{"$f":"'Schedule XVII'!B30","v":0}]
["Sch XVII","Solvency Analysis",null,"Name of Entity - 29",null,null,null,null,null,null,null,null,{"$f":"'Schedule XVII'!B39","v":0}]
["Sch XVII","Solvency Analysis",null,"Jurisdiction of Entity - 8",null,null,null,null,null,null,null,null,{"$f":"'Schedule XVII'!C18","v":0}]
["Sch XVII","Solvency Analysis",null,"Jurisdiction of Entity - 13",null,null,null,null,null,null,null,null,{"$f":"'Schedule XVII'!C23","v":0}]
["Sch XVII","Solvency Analysis",null,"Jurisdiction of Entity - 17",null,null,null,null,null,null,null,null,{"$f":"'Schedule XVII'!C27","v":0}]
["Sch XVII","Solvency Analysis",null,"Jurisdiction of Entity - 26",null,null,null,null,null,null,null,null,{"$f":"'Schedule XVII'!C36","v":0}]
["Sch XVII","Solvency Analysis",null,"Type of Entity - 6",null,null,null,null,null,null,null,null,{"$f":"'Schedule XVII'!D16","v":"Select"}]
["Sch XVII","Solvency Analysis",null,"Type of Entity - 13",null,null,null,null,null,null,null,null,{"$f":"'Schedule XVII'!D23","v":"Select"}]
["Sch XVII","Solvency Analysis",null,"Type of Entity - 22",null,null,null,null,null,null,null,null,{"$f":"'Schedule XVII'!D32","v":"Select"}]
["Sch XVII","Solvency Analysis",null,"Type of Entity - 29",null,null,null,null,null,null,null,null,{"$f":"'Schedule XVII'!D39","v":"Select"}]
["Sch XVII","Solvency Analysis",null,"% Ownership of Entity - 9",null,null,null,null,null,null,null,null,{"$f":"'Schedule XVII'!E19","v":0}]
["Sch XVII","Solvency Analysis",null,"% Ownership of Entity - 10",null,null,null,null,null,null,null,null,{"$f":"'Schedule XVII'!E20","v":0}]
["Sch XVII","Solvency Analysis",null,"% Ownership of Entity - 22",null,null,null,null,null,null,null,null,{"$f":"'Schedule XVII'!E32","v":0}]
["Sch XVII","Solvency Analysis",null,"% Ownership of Entity - 27",null,null,null,null,null,null,null,null,{"$f":"'Schedule XVII'!E37","v":0}]
["Sch XVII","Solvency Analysis",null,"GPW of Entity - 6",null,null,null,null,null,null,null,null,{"$f":"'Schedule XVII'!F16","v":0}]
["Sch XVII","Solvency Analysis",null,"GPW of Entity - 15",null,null,null,null,null,null,null,null,{"$f":"'Schedule XVII'!F25","v":0}]
["Sch XVII","Solvency Analysis",null,"GPW of Entity - 23",null,null,null,null,null,null,null,null,{"$f":"'Schedule XVII'!F33","v":0}]
["Sch XVII","Solvency Analysis",null,"NPW of Entity - 1",null,null,null,null,null,null,null,null,{"$f":"'Schedule XVII'!G11","v":0}]
["Sch XVII","Solvency Analysis",null,"NPW of Entity - 7",null,null,null,null,null,null,null,null,{"$f":"'Schedule XVII'!G17","v":0}]
["Sch XVII","Solvency Analysis",null,"NPW of Entity - 10",null,null,null,null,null,null,null,null,{"$f":"'Schedule XVII'!G20","v":0}]
["Sch XVII","Solvency Analysis",null,"NPW of Entity - 19",null,null,null,null,null,null,null,null,{"$f":"'Schedule XVII'!G29","v":0}]
["Sch XVII","Solvency Analysis",null,"NPW of Entity - 27",null,null,null,null,null,null,null,null,{"$f":"'Schedule XVII'!G37","v":0}]
["Sch XVII","Solvency Analysis",null,"Total Assets of Entity - 5",null,null,null,null,null,null,null,null,{"$f":"'Schedule XVII'!H15","v":0}]
["Sch XVII","Solvency Analysis",null,"Total Assets of Entity - 14",null,null,null,null,null,null,null,null,{"$f":"'Schedule XVII'!H24","v":0}]
["Sch XVII","Solvency Analysis",null,"Total Assets of Entity - 19",null,null,null,null,null,null,null,null,{"$f":"'Schedule XVII'!H29","v":0}]
["Sch XVII","Solvency Analysis",null,"Total Assets",null,null,null,null,null,null,null,null,{"$f":"'Schedule XVII'!H211","v":0}]
["Sch XVII","Solvency Analysis",null,"Net Assets of Entity - 9",null,null,null,null,null,null,null,null,{"$f":"'Schedule XVII'!I19","v":0}]
["Sch XVII","Solvency Analysis",null,"Net Assets of Entity - 10",null,null,null,null,null,null,null,null,{"$f":"'Schedule XVII'!I20","v":0}]
["Sch XVII","Solvency Analysis",null,"Net Assets of Entity - 20",null,null,null,null,null,null,null,null,{"$f":"'Schedule XVII'!I30","v":0}]
["Sch XVII","Solvency Analysis",null,"Net Assets of Entity - 27",null,null,null,null,null,null,null,null,{"$f":"'Schedule XVII'!I37","v":0}]
["Sch XVII","Solvency Analysis",null,"Regulatory Capital of Entity - 5",null,null,null,null,null,null,null,null,{"$f":"'Schedule XVII'!J15","v":0}]
["Sch XVII","Solvency Analysis",null,"Regulatory Capital of Entity - 12",null,null,null,null,null,null,null,null,{"$f":"'Schedule XVII'!J22","v":0}]
["Sch XVII","Solvency Analysis",null,"Regulatory Capital of Entity - 22",null,null,null,null,null,null,null,null,{"$f":"'Schedule XVII'!J32","v":0}]
["Sch XVII","Solvency Analysis",null,"Regulatory Capital Total",null,null,null,null,null,null,null,null,{"$f":"'Schedule XVII'!J211","v":0}]
["Sch XVIII","Ceded Reins",null,"Reinsurer Name - 6",{"$f":"'Schedule XVIII (Unconsolidated)'!C20","v":0},null,null,null,null,null,null,null,{"$f":"'Schedule XVIII'!C20","v":0}]
["Sch XVIII","Ceded Reins",null,"Reinsurer Name - 7",{"$f":"'Schedule XVIII (Unconsolidated)'!C21","v":0},null,null,null,null,null,null,null,{"$f":"'Schedule XVIII'!C21","v":0}]
["Sch XVIII","Ceded Reins",null,"Reinsurer Name - 16",{"$f":"'Schedule XVIII (Unconsolidated)'!C30","v":0},null,null,null,null,null,null,null,{"$f":"'Schedule XVIII'!C30","v":0}]
["Sch XVIII","Ceded Reins",null,"Reinsurer Name - 29",{"$f":"'Schedule XVIII (Unconsolidated)'!C43","v":0},null,null,null,null,null,null,null,{"$f":"'Schedule XVIII'!C43","v":0}]
["Sch XVIII","Ceded Reins",null,"Reinsurer BSCR Rating - 3",{"$f":"'Schedule XVIII (Unconsolidated)'!E17","v":"Select"},null,null,null,null,null,null,null,{"$f":"'Schedule XVIII'!E17","v":"Select"}]
["Sch XVIII","Ceded Reins",null,"Reinsurer BSCR Rating - 12",{"$f":"'Schedule XVIII (Unconsolidated)'!E26","v":"Select"},null,null,null,null,null,null,null,{"$f":"'Schedule XVIII'!E26","v":"Select"}]
["Sch XVIII","Ceded Reins",null,"Reinsurer BSCR Rating - 22",{"$f":"'Schedule XVIII (Unconsolidated)'!E36","v":"Select"},null,null,null,null,null,null,null,{"$f":"'Schedule XVIII'!E36","v":"Select"}]
["Sch XVIII","Ceded Reins",null,"Reinsurer BSCR Rating - 29",{"$f":"'Schedule XVIII (Unconsolidated)'!E43","v":"Select"},null,null,null,null,null,null,null,{"$f":"'Schedule XVIII'!E43","v":"Select"}]
["Sch XVIII","Ceded Reins",null,"Reinsurer R/I Assets - 8",{"$f":"'Schedule XVIII (Unconsolidated)'!G22","v":0},null,null,null,null,null,null,null,{"$f":"'Schedule XVIII'!G22","v":0}]
["Sch XVIII","Ceded Reins",null,"Reinsurer R/I Assets - 15",{"$f":"'Schedule XVIII (Unconsolidated)'!G29","v":0},null,null,null,null,null,null,null,{"$f":"'Schedule XVIII'!G29","v":0}]
["Sch XVIII","Ceded Reins",null,"Reinsurer R/I Assets - 17",{"$f":"'Schedule XVIII (Unconsolidated)'!G31","v":0},null,null,null,null,null,null,null,{"$f":"'Schedule XVIII'!G31","v":0}]
["Sch XVIII","Ceded Reins",null,"Reinsurer R/I Assets - 26",{"$f":"'Schedule XVIII (Unconsolidated)'!G40","v":0},null,null,null,null,null,null,null,{"$f":"'Schedule XVIII'!G40","v":0}]
["Sch XVIII","Ceded Reins",null,"Reinsurer R/I Payable - 7",{"$f":"'Schedule XVIII (Unconsolidated)'!I21","v":0},null,null,null,null,null,null,null,{"$f":"'Schedule XVIII'!I21","v":0}]
["Sch XVIII","Ceded Reins",null,"Reinsurer R/I Payable - 12",{"$f":"'Schedule XVIII (Unconsolidated)'!I26","v":0},null,null,null,null,null,null,null,{"$f":"'Schedule XVIII'!I26","v":0}]
["Sch XVIII","Ceded Reins",null,"Reinsurer R/I Payable - 21",{"$f":"'Schedule XVIII (Unconsolidated)'!I35","v":0},null,null,null,null,null,null,null,{"$f":"'Schedule XVIII'!I35","v":0}]
["Sch XVIII","Ceded Reins",null,"Reinsurer R/I Payable - 30",{"$f":"'Schedule XVIII (Unconsolidated)'!I44","v":0},null,null,null,null,null,null,null,{"$f":"'Schedule XVIII'!I44","v":0}]
["Sch XVIII","Ceded Reins",null,"Reinsurer Collateral - 7",{"$f":"'Schedule XVIII (Unconsolidated)'!K21","v":0},null,null,null,null,null,null,null,{"$f":"'Schedule XVIII'!K21","v":0}]
["Sch XVIII","Ceded Reins",null,"Reinsurer Collateral - 8",{"$f":"'Schedule XVIII (Unconsolidated)'!K22","v":0},null,null,null,null,null,null,null,{"$f":"'Schedule XVIII'!K22","v":0}]
["Sch XVIII","Ceded Reins",null,"Reinsurer Collateral - 22",{"$f":"'Schedule XVIII (Unconsolidated)'!K36","v":0},null,null,null,null,null,null,null,{"$f":"'Schedule XVIII'!K36","v":0}]
["Sch XVIII","Ceded Reins",null,"Reinsurer Collateral - 25",{"$f":"'Schedule XVIII (Unconsolidated)'!K39","v":0},null,null,null,null,null,null,null,{"$f":"'Schedule XVIII'!K39","v":0}]
["Sch XVIII","Ceded Reins",null,"R/I Assets - Exposure by BSCR Rate 2",{"$f":"'Schedule XVIII (Unconsolidated)'!G60","v":0},null,null,null,null,null,null,null,{"$f":"'Schedule XVIII'!G60","v":0}]
["Sch XVIII","Ceded Reins",null,"R/I Payable - Exposure by BSCR Rate 0",{"$f":"'Schedule XVIII (Unconsolidated)'!I58","v":0},null,null,null,null,null,null,null,{"$f":"'Schedule XVIII'!I58","v":0}]
["Sch XVIII","Ceded Reins",null,"R/I Payable - Exposure by BSCR Rate 8",{"$f":"'Schedule XVIII (Unconsolidated)'!I66","v":0},null,null,null,null,null,null,null,{"$f":"'Schedule XVIII'!I66","v":0}]
["Sch XVIII","Ceded Reins",null,"Collateral - Exposure by BSCR Rate 6",{"$f":"'Schedule XVIII (Unconsolidated)'!K64","v":0},null,null,null,null,null,null,null,{"$f":"'Schedule XVIII'!K64","v":0}]
["Sch XIX","Cash Counterpart",null,"Name - Counterparty 4",{"$f":"'Schedule XIX'!C17","v":0}]
["Sch XIX","Cash Counterpart",null,"Name - Counterparty 9",{"$f":"'Schedule XIX'!C22","v":0}]
["Sch XIX","Cash Counterpart",null,"Name - Counterparty 13",{"$f":"'Schedule XIX'!C26","v":0}]
["Sch XIX","Cash Counterpart",null,"BSCR Rating - Counterparty 2",{"$f":"'Schedule XIX'!D15","v":"Select"}]
["Sch XIX","Cash Counterpart",null,"BSCR Rating - Counterparty 12",{"$f":"'Schedule XIX'!D25","v":"Select"}]
["Sch XIX","Cash Counterpart",null,"BSCR Rating - Counterparty 19",{"$f":"'Schedule XIX'!D32","v":"Select"}]
["Sch XIX","Cash Counterpart",null,"Counterparty Value 8",{"$f":"'Schedule XIX'!F21","v":0},null,null,null,null,null,null,null,{"$f":"'Schedule XIX'!H21","v":0}]
["Sch XIX","Cash Counterpart",null,"Counterparty Value 15",{"$f":"'Schedule XIX'!F28","v":0},null,null,null,null,null,null,null,{"$f":"'Schedule XIX'!H28","v":0}]
["Sch XIX","Cash Counterpart",null,"Exposure BSCR Rate 3",{"$f":"'Schedule XIX'!F60","v":0},null,null,null,null,null,null,null,{"$f":"'Schedule XIX'!H60","v":0}]
["Sch XIX","Cash Counterpart",null,"Exposure BSCR Rate 4",{"$f":"'Schedule XIX'!F61","v":0},null,null,null,null,null,null,null,{"$f":"'Schedule XIX'!H61","v":0}]
["Sch XIXA","Cash Counterpart",null,"Name - Counterparty 3",null,null,null,null,null,null,null,null,{"$f":"'Schedule XIXA'!C16","v":0}]
["Sch XIXA","Cash Counterpart",null,"Name - Counterparty 11",null,null,null,null,null,null,null,null,{"$f":"'Schedule XIXA'!C24","v":0}]
["Sch XIXA","Cash Counterpart",null,"Name - Counterparty 20",null,null,null,null,null,null,null,null,{"$f":"'Schedule XIXA'!C33","v":0}]
["Sch XIXA","Cash Counterpart",null,"BSCR Rating - Counterparty 6",null,null,null,null,null,null,null,null,{"$f":"'Schedule XIXA'!D19","v":"Select"}]
["Sch XIXA","Cash Counterpart",null,"BSCR Rating - Counterparty 17",null,null,null,null,null,null,null,null,{"$f":"'Schedule XIXA'!D30","v":"Select"}]
["Sch XIXA","Cash Counterpart",null,"Counterparty Value 6",null,null,null,null,null,null,null,null,{"$f":"'Schedule XIXA'!F19","v":0}]
["Sch XIXA","Cash Counterpart",null,"Counterparty Value 9",null,null,null,null,null,null,null,null,{"$f":"'Schedule XIXA'!F22","v":0}]
["Sch XIXA","Cash Counterpart",null,"Counterparty Value 15",null,null,null,null,null,null,null,null,{"$f":"'Schedule XIXA'!F28","v":0}]
["Sch XIXA","Cash Counterpart",null,"Exposure BSCR Rate 2",null,null,null,null,null,null,null,null,{"$f":"'Schedule XIXA'!F59","v":0}]
["Sch XX","Currency Analysis",null,"Assets - USD",{"$f":"'Schedule XX'!D9","v":0},null,null,null,null,null,null,null,{"$f":"'Schedule XX'!L9","v":0}]
["Sch XX","Currency Analysis",null,"Assets - Other 5",{"$f":"'Schedule XX'!D18","v":0},null,null,null,null,null,null,null,{"$f":"'Schedule XX'!L18","v":0}]
["Sch XX","Currency Analysis",null,"Hedge Assets - UK £",{"$f":"'Schedule XX'!F11","v":0},null,null,null,null,null,null,null,{"$f":"'Schedule XX'!N11","v":0}]
["Sch XX","Currency Analysis",null,"Hedge Assets - Other 3",{"$f":"'Schedule XX'!F16","v":0},null,null,null,null,null,null,null,{"$f":"'Schedule XX'!N16","v":0}]
["Sch XX","Currency Analysis",null,"Liab. - CDN",{"$f":"'Schedule XX'!H12","v":0},null,null,null,null,null,null,null,{"$f":"'Schedule XX'!P12","v":0}]
["Sch XX","Currency Analysis",null,"Liab. - Other 8",{"$f":"'Schedule XX'!H21","v":0},null,null,null,null,null,null,null,{"$f":"'Schedule XX'!P21","v":0}]
["Sch XX","Currency Analysis",null,"Liab. - Other 9",{"$f":"'Schedule XX'!H22","v":0},null,null,null,null,null,null,null,{"$f":"'Schedule XX'!P22","v":0}]
["Sch XX","Currency Analysis",null,"Hedge Liab. - Other 7",{"$f":"'Schedule XX'!J20","v":0},null,null,null,null,null,null,null,{"$f":"'Schedule XX'!R20","v":0}]
["Sch XX","Currency Analysis",null,"Hedge Liab. - Other 10",{"$f":"'Schedule XX'!J23","v":0},null,null,null,null,null,null,null,{"$f":"'Schedule XX'!R23","v":0}]
["Sch XXA","Currency Shock",null,"Other Currency 1",null,null,null,null,null,null,null,null,{"$f":"'Schedule XXA'!B23","v":"Other currency 1"}]
["Sch XXA","Currency Shock",null,{"$f":"\"Before Shock - Assets - Excluding Currency - Sensitive Derivatives \"&'Schedule XXA'!$B$11","v":"Before Shock - Assets - Excluding Currency - Sensitive Derivatives Bermuda Dollars"},null,null,null,null,null,null,null,null,{"$f":"'Schedule XXA'!D11","v":0}]
["Sch XXA","Currency Shock",null,{"$f":"\"Before Shock - Assets - Excluding Currency - Sensitive Derivatives \"&'Schedule XXA'!$B$17","v":"Before Shock - Assets - Excluding Currency - Sensitive Derivatives West African CFA Francs"},null,null,null,null,null,null,null,null,{"$f":"'Schedule XXA'!D17","v":0}]
["Sch XXA","Currency Shock",null,{"$f":"\"Before Shock - Assets - Excluding Currency - Sensitive Derivatives \"&'Schedule XXA'!$B$26","v":"Before Shock - Assets - Excluding Currency - Sensitive Derivatives Other currency 4"},null,null,null,null,null,null,null,null,{"$f":"'Schedule XXA'!D26","v":0}]
["Sch XXA","Currency Shock",null,{"$f":"\"Before Shock - Long Exposures - Currency Derivatives Qualifying as held for risk-mitigation purposes \"&'Schedule XXA'!$B$11","v":"Before Shock - Long Exposures - Currency Derivatives Qualifying as held for risk-mitigation purposes Bermuda Dollars"},null,null,null,null,null,null,null,null,{"$f":"'Schedule XXA'!F11","v":0}]
["Sch XXA","Currency Shock",null,{"$f":"\"Before Shock - Long Exposures - Currency Derivatives Qualifying as held for risk-mitigation purposes \"&'Schedule XXA'!$B$12","v":"Before Shock - Long Exposures - Currency Derivatives Qualifying as held for risk-mitigation purposes Qatar Riyals"},null,null,null,null,null,null,null,null,{"$f":"'Schedule XXA'!F12","v":0}]
["Sch XXA","Currency Shock",null,{"$f":"\"Before Shock - Long Exposures - Currency Derivatives Qualifying as held for risk-mitigation purposes \"&'Schedule XXA'!$B$21","v":"Before Shock - Long Exposures - Currency Derivatives Qualifying as held for risk-mitigation purposes Canada Dollars"},null,null,null,null,null,null,null,null,{"$f":"'Schedule XXA'!F21","v":0}]
["Sch XXA","Currency Shock",null,{"$f":"\"Before Shock - Long Exposures - Currency Derivatives Not Qualifying as held for risk-mitigation purposes \"&'Schedule XXA'!$B$11","v":"Before Shock - Long Exposures - Currency Derivatives Not Qualifying as held for risk-mitigation purposes Bermuda Dollars"},null,null,null,null,null,null,null,null,{"$f":"'Schedule XXA'!H11","v":0}]
["Sch XXA","Currency Shock",null,{"$f":"\"Before Shock - Long Exposures - Currency Derivatives Not Qualifying as held for risk-mitigation purposes \"&'Schedule XXA'!$B$15","v":"Before Shock - Long Exposures - Currency Derivatives Not Qualifying as held for risk-mitigation purposes Denmark Kroner"},null,null,null,null,null,null,null,null,{"$f":"'Schedule XXA'!H15","v":0}]
["Sch XXA","Currency Shock",null,{"$f":"\"Before Shock - Long Exposures - Currency Derivatives Not Qualifying as held for risk-mitigation purposes \"&'Schedule XXA'!$B$24","v":"Before Shock - Long Exposures - Currency Derivatives Not Qualifying as held for risk-mitigation purposes Other currency 2"},null,null,null,null,null,null,null,null,{"$f":"'Schedule XXA'!H24","v":0}]
["Sch XXA","Currency Shock",null,{"$f":"\"Before Shock - Short Exposures - Currency Derivatives Qualifying as held for risk-mitigation purposes \"&'Schedule XXA'!$B$11","v":"Before Shock - Short Exposures - Currency Derivatives Qualifying as held for risk-mitigation purposes Bermuda Dollars"},null,null,null,null,null,null,null,null,{"$f":"'Schedule XXA'!J11","v":0}]
["Sch XXA","Currency Shock",null,{"$f":"\"Before Shock - Short Exposures - Currency Derivatives Qualifying as held for risk-mitigation purposes \"&'Schedule XXA'!$B$18","v":"Before Shock - Short Exposures - Currency Derivatives Qualifying as held for risk-mitigation purposes Central African CFA Francs"},null,null,null,null,null,null,null,null,{"$f":"'Schedule XXA'!J18","v":0}]
["Sch XXA","Currency Shock",null,{"$f":"\"Before Shock - Short Exposures - Currency Derivatives Qualifying as held for risk-mitigation purposes \"&'Schedule XXA'!$B$27","v":"Before Shock - Short Exposures - Currency Derivatives Qualifying as held for risk-mitigation purposes Other currency 5"},null,null,null,null,null,null,null,null,{"$f":"'Schedule XXA'!J27","v":0}]
["Sch XXA","Currency Shock",null,{"$f":"\"Before Shock - Short Exposures - Currency Derivatives Not Qualifying as held for risk-mitigation purposes \"&'Schedule XXA'!$B$11","v":"Before Shock - Short Exposures - Currency Derivatives Not Qualifying as held for risk-mitigation purposes Bermuda Dollars"},null,null,null,null,null,null,null,null,{"$f":"'Schedule XXA'!L11","v":0}]
["Sch XXA","Currency Shock",null,{"$f":"\"Before Shock - Short Exposures - Currency Derivatives Not Qualifying as held for risk-mitigation purposes \"&'Schedule XXA'!$B$13","v":"Before Shock - Short Exposures - Currency Derivatives Not Qualifying as held for risk-mitigation purposes Hong Kong Dollars"},null,null,null,null,null,null,null,null,{"$f":"'Schedule XXA'!L13","v":0}]
["Sch XXA","Currency Shock",null,{"$f":"\"Before Shock - Short Exposures - Currency Derivatives Not Qualifying as held for risk-mitigation purposes \"&'Schedule XXA'!$B$22","v":"Before Shock - Short Exposures - Currency Derivatives Not Qualifying as held for risk-mitigation purposes Japan Yen"},null,null,null,null,null,null,null,null,{"$f":"'Schedule XXA'!L22","v":0}]
["Sch XXA","Currency Shock",null,{"$f":"\"Before Shock - Short Exposures - Currency Derivatives Not Qualifying as held for risk-mitigation purposes \"&'Schedule XXA'!$B$31","v":"Before Shock - Short Exposures - Currency Derivatives Not Qualifying as held for risk-mitigation purposes Other currency 9"},null,null,null,null,null,null,null,null,{"$f":"'Schedule XXA'!L31","v":0}]
["Sch XXA","Currency Shock",null,{"$f":"\"Before Shock - B.E. Liabilities \"&'Schedule XXA'!$B$16","v":"Before Shock - B.E. Liabilities Bulgaria Leva"},null,null,null,null,null,null,null,null,{"$f":"'Schedule XXA'!N16","v":0}]
["Sch XXA","Currency Shock",null,{"$f":"\"Before Shock - B.E. Liabilities \"&'Schedule XXA'!$B$25","v":"Before Shock - B.E. Liabilities Other currency 3"},null,null,null,null,null,null,null,null,{"$f":"'Schedule XXA'!N25","v":0}]
["Sch XXA","Currency Shock",null,{"$f":"\"Before Shock - B.E. Liabilities \"&'Schedule XXA'!$B$31","v":"Before Shock - B.E. Liabilities Other currency 9"},null,null,null,null,null,null,null,null,{"$f":"'Schedule XXA'!N31","v":0}]
["Sch XXA","Currency Shock",null,{"$f":"\"After Shock - Assets - Excluding Currency - Sensitive Derivatives \"&'Schedule XXA'!$B$19","v":"After Shock - Assets - Excluding Currency - Sensitive Derivatives Comorian Francs"},null,null,null,null,null,null,null,null,{"$f":"'Schedule XXA'!V19","v":0}]
["Sch XXA","Currency Shock",null,{"$f":"\"After Shock - Assets - Excluding Currency - Sensitive Derivatives \"&'Schedule XXA'!$B$20","v":"After Shock - Assets - Excluding Currency - Sensitive Derivatives United Kingdom Pounds"},null,null,null,null,null,null,null,null,{"$f":"'Schedule XXA'!V20","v":0}]
["Sch XXA","Currency Shock",null,{"$f":"\"After Shock - Assets - Excluding Currency - Sensitive Derivatives \"&'Schedule XXA'!$B$31","v":"After Shock - Assets - Excluding Currency - Sensitive Derivatives Other currency 9"},null,null,null,null,null,null,null,null,{"$f":"'Schedule XXA'!V31","v":0}]
["Sch XXA","Currency Shock",null,{"$f":"\"After Shock - Long Exposures - Currency Derivatives Qualifying as held for risk-mitigation purposes \"&'Schedule XXA'!$B$14","v":"After Shock - Long Exposures - Currency Derivatives Qualifying as held for risk-mitigation purposes Euro"},null,null,null,null,null,null,null,null,{"$f":"'Schedule XXA'!X14","v":0}]
["Sch XXA","Currency Shock",null,{"$f":"\"After Shock - Long Exposures - Currency Derivatives Qualifying as held for risk-mitigation purposes \"&'Schedule XXA'!$B$23","v":"After Shock - Long Exposures - Currency Derivatives Qualifying as held for risk-mitigation purposes Other currency 1"},null,null,null,null,null,null,null,null,{"$f":"'Schedule XXA'!X23","v":0}]
["Sch XXA","Currency Shock",null,{"$f":"\"After Shock - Long Exposures - Currency Derivatives Qualifying as held for risk-mitigation purposes \"&'Schedule XXA'!$B$32","v":"After Shock - Long Exposures - Currency Derivatives Qualifying as held for risk-mitigation purposes Other currency 10"},null,null,null,null,null,null,null,null,{"$f":"'Schedule XXA'!X32","v":0}]
["Sch XXA","Currency Shock",null,{"$f":"\"After Shock - Long Exposures - Currency Derivatives Not Qualifying as held for risk-mitigation purposes \"&'Schedule XXA'!$B$17","v":"After Shock - Long Exposures - Currency Derivatives Not Qualifying as held for risk-mitigation purposes West African CFA Francs"},null,null,null,null,null,null,null,null,{"$f":"'Schedule XXA'!Z17","v":0}]
["Sch XXA","Currency Shock",null,{"$f":"\"After Shock - Long Exposures - Currency Derivatives Not Qualifying as held for risk-mitigation purposes \"&'Schedule XXA'!$B$26","v":"After Shock - Long Exposures - Currency Derivatives Not Qualifying as held for risk-mitigation purposes Other currency 4"},null,null,null,null,null,null,null,null,{"$f":"'Schedule XXA'!Z26","v":0}]
["Sch XXA","Currency Shock",null,{"$f":"\"After Shock - Short Exposures - Currency Derivatives Qualifying as held for risk-mitigation purposes \"&'Schedule XXA'!$B$12","v":"After Shock - Short Exposures - Currency Derivatives Qualifying as held for risk-mitigation purposes Qatar Riyals"},null,null,null,null,null,null,null,null,{"$f":"'Schedule XXA'!AB12","v":0}]
["Sch XXA","Currency Shock",null,{"$f":"\"After Shock - Short Exposures - Currency Derivatives Qualifying as held for risk-mitigation purposes \"&'Schedule XXA'!$B$17","v":"After Shock - Short Exposures - Currency Derivatives Qualifying as held for risk-mitigation purposes West African CFA Francs"},null,null,null,null,null,null,null,null,{"$f":"'Schedule XXA'!AB17","v":0}]
["Sch XXA","Currency Shock",null,{"$f":"\"After Shock - Short Exposures - Currency Derivatives Qualifying as held for risk-mitigation purposes \"&'Schedule XXA'!$B$21","v":"After Shock - Short Exposures - Currency Derivatives Qualifying as held for risk-mitigation purposes Canada Dollars"},null,null,null,null,null,null,null,null,{"$f":"'Schedule XXA'!AB21","v":0}]
["Sch XXA","Currency Shock",null,{"$f":"\"After Shock - Short Exposures - Currency Derivatives Qualifying as held for risk-mitigation purposes \"&'Schedule XXA'!$B$30","v":"After Shock - Short Exposures - Currency Derivatives Qualifying as held for risk-mitigation purposes Other currency 8"},null,null,null,null,null,null,null,null,{"$f":"'Schedule XXA'!AB30","v":0}]
["Sch XXA","Currency Shock",null,{"$f":"\"After Shock - Short Exposures - Currency Derivatives Not Qualifying as held for risk-mitigation purposes \"&'Schedule XXA'!$B$14","v":"After Shock - Short Exposures - Currency Derivatives Not Qualifying as held for risk-mitigation purposes Euro"},null,null,null,null,null,null,null,null,{"$f":"'Schedule XXA'!AD14","v":0}]
["Sch XXA","Currency Shock",null,{"$f":"\"After Shock - Short Exposures - Currency Derivatives Not Qualifying as held for risk-mitigation purposes \"&'Schedule XXA'!$B$24","v":"After Shock - Short Exposures - Currency Derivatives Not Qualifying as held for risk-mitigation purposes Other currency 2"},null,null,null,null,null,null,null,null,{"$f":"'Schedule XXA'!AD24","v":0}]
["Sch XXA","Currency Shock",null,{"$f":"\"After Shock - B.E. Liabilities \"&'Schedule XXA'!$B$10","v":"After Shock - B.E. Liabilities United States Dollars"},null,null,null,null,null,null,null,null,{"$f":"'Schedule XXA'!AF10","v":0}]
["Sch XXA","Currency Shock",null,{"$f":"\"After Shock - B.E. Liabilities \"&'Schedule XXA'!$B$14","v":"After Shock - B.E. Liabilities Euro"},null,null,null,null,null,null,null,null,{"$f":"'Schedule XXA'!AF14","v":0}]
["Sch XXA","Currency Shock",null,{"$f":"\"After Shock - B.E. Liabilities \"&'Schedule XXA'!$B$27","v":"After Shock - B.E. Liabilities Other currency 5"},null,null,null,null,null,null,null,null,{"$f":"'Schedule XXA'!AF27","v":0}]
["Sch XXA","Currency Shock",null,{"$f":"\"After Shock - B.E. Liabilities \"&'Schedule XXA'!$B$28","v":"After Shock - B.E. Liabilities Other currency 6"},null,null,null,null,null,null,null,null,{"$f":"'Schedule XXA'!AF28","v":0}]
["Sch XXA","Currency Shock",null,{"$f":"\"After Shock - Liabilities w Mgmt. Actions \"&'Schedule XXA'!$B$14","v":"After Shock - Liabilities w Mgmt. Actions Euro"},null,null,null,null,null,null,null,null,{"$f":"'Schedule XXA'!AH14","v":0}]
["Sch XXA","Currency Shock",null,{"$f":"\"After Shock - Liabilities w Mgmt. Actions \"&'Schedule XXA'!$B$22","v":"After Shock - Liabilities w Mgmt. Actions Japan Yen"},null,null,null,null,null,null,null,null,{"$f":"'Schedule XXA'!AH22","v":0}]
["Sch XXA","Currency Shock",null,{"$f":"\"After Shock - Liabilities w Mgmt. Actions \"&'Schedule XXA'!$B$31","v":"After Shock - Liabilities w Mgmt. Actions Other currency 9"},null,null,null,null,null,null,null,null,{"$f":"'Schedule XXA'!AH31","v":0}]
["Sch XXA","Currency Shock",null,"ECR Prior Year 2",null,null,null,null,null,null,null,null,{"$f":"'Schedule XXA'!H44","v":0}]
["Sch XXI","Inv Con Risk",null,"Name of Exposure - 8",{"$f":"'Schedule XXI'!C15","v":0}]
["Sch XXI","Inv Con Risk",null,"Name of Exposure - 17",{"$f":"'Schedule XXI'!C24","v":0}]
["Sch XXI","Inv Con Risk",null,"Name of Exposure - 20",{"$f":"'Schedule XXI'!C27","v":0}]
["Sch XXI","Inv Con Risk",null,"Name of Exposure - 26",{"$f":"'Schedule XXI'!C33","v":0}]
["Sch XXI","Inv Con Risk",null,"Name of Exposure - 35",{"$f":"'Schedule XXI'!C42","v":0}]
["Sch XXI","Inv Con Risk",null,"Asset Type - 3",{"$f":"'Schedule XXI'!E10","v":"Select"},null,null,null,null,null,null,null,{"$f":"'Schedule XXI'!J10","v":"Select"}]
["Sch XXI","Inv Con Risk",null,"Asset Type - 12",{"$f":"'Schedule XXI'!E19","v":"Select"},null,null,null,null,null,null,null,{"$f":"'Schedule XXI'!J19","v":"Select"}]
["Sch XXI","Inv Con Risk",null,"Asset Type - 21",{"$f":"'Schedule XXI'!E28","v":"Select"},null,null,null,null,null,null,null,{"$f":"'Schedule XXI'!J28","v":"Select"}]
["Sch XXI","Inv Con Risk",null,"Asset Type - 30",{"$f":"'Schedule XXI'!E37","v":"Select"},null,null,null,null,null,null,null,{"$f":"'Schedule XXI'!J37","v":"Select"}]
["Sch XXI","Inv Con Risk",null,"Asset Type - 38",{"$f":"'Schedule XXI'!E45","v":"Select"},null,null,null,null,null,null,null,{"$f":"'Schedule XXI'!J45","v":"Select"}]
["Sch XXI","Inv Con Risk",null,"Bond Type - 7",{"$f":"'Schedule XXI'!F14","v":"Select"},null,null,null,null,null,null,null,{"$f":"'Schedule XXI'!K14","v":"Select"}]
["Sch XXI","Inv Con Risk",null,"Bond Type - 8",{"$f":"'Schedule XXI'!F15","v":"Select"},null,null,null,null,null,null,null,{"$f":"'Schedule XXI'!K15","v":"Select"}]
["Sch XXI","Inv Con Risk",null,"Bond Type - 22",{"$f":"'Schedule XXI'!F29","v":"Select"},null,null,null,null,null,null,null,{"$f":"'Schedule XXI'!K29","v":"Select"}]
["Sch XXI","Inv Con Risk",null,"Bond Type - 25",{"$f":"'Schedule XXI'!F32","v":"Select"},null,null,null,null,null,null,null,{"$f":"'Schedule XXI'!K32","v":"Select"}]
["Sch XXI","Inv Con Risk",null,"Bond Type - 34",{"$f":"'Schedule XXI'!F41","v":"Select"},null,null,null,null,null,null,null,{"$f":"'Schedule XXI'!K41","v":"Select"}]
["Sch XXI","Inv Con Risk",null,"BSCR Rating - 5",{"$f":"'Schedule XXI'!G12","v":"Select"},null,null,null,null,null,null,null,{"$f":"'Schedule XXI'!L12","v":"Select"}]
["Sch XXI","Inv Con Risk",null,"BSCR Rating - 11",{"$f":"'Schedule XXI'!G18","v":"Select"},null,null,null,null,null,null,null,{"$f":"'Schedule XXI'!L18","v":"Select"}]
["Sch XXI","Inv Con Risk",null,"BSCR Rating - 20",{"$f":"'Schedule XXI'!G27","v":"Select"},null,null,null,null,null,null,null,{"$f":"'Schedule XXI'!L27","v":"Select"}]
["Sch XXI","Inv Con Risk",null,"BSCR Rating - 28",{"$f":"'Schedule XXI'!G35","v":"Select"},null,null,null,null,null,null,null,{"$f":"'Schedule XXI'!L35","v":"Select"}]
["Sch XXI","Inv Con Risk",null,"BSCR Rating - 29",{"$f":"'Schedule XXI'!G36","v":"Select"},null,null,null,null,null,null,null,{"$f":"'Schedule XXI'!L36","v":"Select"}]
["Sch XXI","Inv Con Risk",null,"BSCR Rating - 38",{"$f":"'Schedule XXI'!G45","v":"Select"},null,null,null,null,null,null,null,{"$f":"'Schedule XXI'!L45","v":"Select"}]
["Sch XXI","Inv Con Risk",null,"Asset Value - 11",{"$f":"'Schedule XXI'!H18","v":0},null,null,null,null,null,null,null,{"$f":"'Schedule XXI'!M18","v":0}]
["Sch XXI","Inv Con Risk",null,"Asset Value - 15",{"$f":"'Schedule XXI'!H22","v":0},null,null,null,null,null,null,null,{"$f":"'Schedule XXI'!M22","v":0}]
["Sch XXI","Inv Con Risk",null,"Asset Value - 24",{"$f":"'Schedule XXI'!H31","v":0},null,null,null,null,null,null,null,{"$f":"'Schedule XXI'!M31","v":0}]
["Sch XXI","Inv Con Risk",null,"Asset Value - 31",{"$f":"'Schedule XXI'!H38","v":0},null,null,null,null,null,null,null,{"$f":"'Schedule XXI'!M38","v":0}]
["Sch XXI","Inv Con Risk",null,"Asset Value - Total",{"$f":"'Schedule XXI'!H58","v":0},null,null,null,null,null,null,null,{"$f":"'Schedule XXI'!M58","v":0}]
["Sch XXIA","Inv Con Risk",null,"Name of Exposure - 7",{"$f":"'Schedule XXIA'!C14","v":0}]
["Sch XXIA","Inv Con Risk",null,"Name of Exposure - 11",{"$f":"'Schedule XXIA'!C18","v":0}]
["Sch XXIA","Inv Con Risk",null,"Name of Exposure - 16",{"$f":"'Schedule XXIA'!C23","v":0}]
["Sch XXIA","Inv Con Risk",null,"Name of Exposure - 25",{"$f":"'Schedule XXIA'!C32","v":0}]
["Sch XXIA","Inv Con Risk",null,"Name of Exposure - 34",{"$f":"'Schedule XXIA'!C41","v":0}]
["Sch XXIA","Inv Con Risk",null,"Name of Exposure - 42",{"$f":"'Schedule XXIA'!C49","v":0}]
["Sch XXIA","Inv Con Risk",null,"Asset Type - 1",{"$f":"'Schedule XXIA'!E8","v":"Select"},null,null,null,null,null,null,null,{"$f":"'Schedule XXIA'!J8","v":"Select"}]
["Sch XXIA","Inv Con Risk",null,"Asset Type - 7",{"$f":"'Schedule XXIA'!E14","v":"Select"},null,null,null,null,null,null,null,{"$f":"'Schedule XXIA'!J14","v":"Select"}]
["Sch XXIA","Inv Con Risk",null,"Asset Type - 18",{"$f":"'Schedule XXIA'!E25","v":"Select"},null,null,null,null,null,null,null,{"$f":"'Schedule XXIA'!J25","v":"Select"}]
["Sch XXIA","Inv Con Risk",null,"Asset Type - 19",{"$f":"'Schedule XXIA'!E26","v":"Select"},null,null,null,null,null,null,null,{"$f":"'Schedule XXIA'!J26","v":"Select"}]
["Sch XXIA","Inv Con Risk",null,"Asset Type - 30",{"$f":"'Schedule XXIA'!E37","v":"Select"},null,null,null,null,null,null,null,{"$f":"'Schedule XXIA'!J37","v":"Select"}]
["Sch XXIA","Inv Con Risk",null,"Asset Type - 36",{"$f":"'Schedule XXIA'!E43","v":"Select"},null,null,null,null,null,null,null,{"$f":"'Schedule XXIA'!J43","v":"Select"}]
["Sch XXIA","Inv Con Risk",null,"Asset Type - 45",{"$f":"'Schedule XXIA'!E52","v":"Select"},null,null,null,null,null,null,null,{"$f":"'Schedule XXIA'!J52","v":"Select"}]
["Sch XXIA","Inv Con Risk",null,"Bond Type - 4",{"$f":"'Schedule XXIA'!F11","v":"Select"},null,null,null,null,null,null,null,{"$f":"'Schedule XXIA'!K11","v":"Select"}]
["Sch XXIA","Inv Con Risk",null,"Bond Type - 9",{"$f":"'Schedule XXIA'!F16","v":"Select"},null,null,null,null,null,null,null,{"$f":"'Schedule XXIA'!K16","v":"Select"}]
["Sch XXIA","Inv Con Risk",null,"Bond Type - 21",{"$f":"'Schedule XXIA'!F28","v":"Select"},null,null,null,null,null,null,null,{"$f":"'Schedule XXIA'!K28","v":"Select"}]
["Sch XXIA","Inv Con Risk",null,"Bond Type - 30",{"$f":"'Schedule XXIA'!F37","v":"Select"},null,null,null,null,null,null,null,{"$f":"'Schedule XXIA'!K37","v":"Select"}]
["Sch XXIA","Inv Con Risk",null,"Bond Type - 32",{"$f":"'Schedule XXIA'!F39","v":"Select"},null,null,null,null,null,null,null,{"$f":"'Schedule XXIA'!K39","v":"Select"}]
["Sch XXIA","Inv Con Risk",null,"Bond Type - 39",{"$f":"'Schedule XXIA'!F46","v":"Select"},null,null,null,null,null,null,null,{"$f":"'Schedule XXIA'!K46","v":"Select"}]
["Sch XXIA","Inv Con Risk",null,"Bond Type - 48",{"$f":"'Schedule XXIA'!F55","v":"Select"},null,null,null,null,null,null,null,{"$f":"'Schedule XXIA'!K55","v":"Select"}]
["Sch XXIA","Inv Con Risk",null,"BSCR Rating - 5",{"$f":"'Schedule XXIA'!G12","v":"Select"},null,null,null,null,null,null,null,{"$f":"'Schedule XXIA'!L12","v":"Select"}]
["Sch XXIA","Inv Con Risk",null,"BSCR Rating - 15",{"$f":"'Schedule XXIA'!G22","v":"Select"},null,null,null,null,null,null,null,{"$f":"'Schedule XXIA'!L22","v":"Select"}]
["Sch XXIA","Inv Con Risk",null,"BSCR Rating - 24",{"$f":"'Schedule XXIA'!G31","v":"Select"},null,null,null,null,null,null,null,{"$f":"'Schedule XXIA'!L31","v":"Select"}]
["Sch XXIA","Inv Con Risk",null,"BSCR Rating - 28",{"$f":"'Schedule XXIA'!G35","v":"Select"},null,null,null,null,null,null,null,{"$f":"'Schedule XXIA'!L35","v":"Select"}]
["Sch XXIA","Inv Con Risk",null,"BSCR Rating - 41",{"$f":"'Schedule XXIA'!G48","v":"Select"},null,null,null,null,null,null,null,{"$f":"'Schedule XXIA'!L48","v":"Select"}]
["Sch XXIA","Inv Con Risk",null,"BSCR Rating - 42",{"$f":"'Schedule XXIA'!G49","v":"Select"},null,null,null,null,null,null,null,{"$f":"'Schedule XXIA'!L49","v":"Select"}]
["Sch XXIA","Inv Con Risk",null,"Asset Value - 1",{"$f":"'Schedule XXIA'!H8","v":0},null,null,null,null,null,null,null,{"$f":"'Schedule XXIA'!M8","v":0}]
["Sch XXIA","Inv Con Risk",null,"Asset Value - 9",{"$f":"'Schedule XXIA'!H16","v":0},null,null,null,null,null,null,null,{"$f":"'Schedule XXIA'!M16","v":0}]
["Sch XXIA","Inv Con Risk",null,"Asset Value - 18",{"$f":"'Schedule XXIA'!H25","v":0},null,null,null,null,null,null,null,{"$f":"'Schedule XXIA'!M25","v":0}]
["Sch XXIA","Inv Con Risk",null,"Asset Value - 24",{"$f":"'Schedule XXIA'!H31","v":0},null,null,null,null,null,null,null,{"$f":"'Schedule XXIA'!M31","v":0}]
["Sch XXIA","Inv Con Risk",null,"Asset Value - 35",{"$f":"'Schedule XXIA'!H42","v":0},null,null,null,null,null,null,null,{"$f":"'Schedule XXIA'!M42","v":0}]
["Sch XXIA","Inv Con Risk",null,"Asset Value - 44",{"$f":"'Schedule XXIA'!H51","v":0},null,null,null,null,null,null,null,{"$f":"'Schedule XXIA'!M51","v":0}]
["Sch XXIA","Inv Con Risk",null,"Asset Value - Total",{"$f":"'Schedule XXIA'!H58","v":0},null,null,null,null,null,null,null,{"$f":"'Schedule XXIA'!M58","v":0}]
["Sch XXIII","Interest Rates",null,"Other currency 1",null,null,null,null,null,null,null,null,{"$f":"'Schedule XXIII'!C18","v":"Other currency 1"}]
["Sch XXIII","Interest Rates",null,"Other currency 10",null,null,null,null,null,null,null,null,{"$f":"'Schedule XXIII'!C27","v":"Other currency 10"}]
["Sch XXIII","Interest Rates",null,{"$f":"\"Int. Down - Before Shock - Other - Qualifying Assets - \"&'Schedule XXIII'!$C$21","v":"Int. Down - Before Shock - Other - Qualifying Assets - Other currency 4"},null,null,null,null,null,null,null,null,{"$f":"'Schedule XXIII'!E21","v":0}]
["Sch XXIII","Interest Rates",null,{"$f":"\"Int. Down - Before Shock - Other - Qualifying Assets - \"&'Schedule XXIII'!$C$26","v":"Int. Down - Before Shock - Other - Qualifying Assets - Other currency 9"},null,null,null,null,null,null,null,null,{"$f":"'Schedule XXIII'!E26","v":0}]
["Sch XXIII","Interest Rates",null,"Int. Down - After Shock - Other - Qualifying Assets - Australia Dollar",null,null,null,null,null,null,null,null,{"$f":"'Schedule XXIII'!F16","v":0}]
["Sch XXIII","Interest Rates",null,{"$f":"\"Int. Down - After Shock - Other - Qualifying Assets - \"&'Schedule XXIII'!$C$25","v":"Int. Down - After Shock - Other - Qualifying Assets - Other currency 8"},null,null,null,null,null,null,null,null,{"$f":"'Schedule XXIII'!F25","v":0}]
["Sch XXIII","Interest Rates",null,"Int. Down - Before Shock - Other - Liab. w/o Mgmt. Action - Canada Dollars",null,null,null,null,null,null,null,null,{"$f":"'Schedule XXIII'!H14","v":0}]
["Sch XXIII","Interest Rates",null,{"$f":"\"Int. Down - Before Shock - Other - Liab. w/o Mgmt Action - \"&'Schedule XXIII'!$C$23","v":"Int. Down - Before Shock - Other - Liab. w/o Mgmt Action - Other currency 6"},null,null,null,null,null,null,null,null,{"$f":"'Schedule XXIII'!H23","v":0}]
["Sch XXIII","Interest Rates",null,{"$f":"\"Int. Down - Before Shock - Other - Liab. w/o Mgmt Action - \"&'Schedule XXIII'!$C$24","v":"Int. Down - Before Shock - Other - Liab. w/o Mgmt Action - Other currency 7"},null,null,null,null,null,null,null,null,{"$f":"'Schedule XXIII'!H24","v":0}]
["Sch XXIII","Interest Rates",null,"Int. Down - After Shock - Other - Liab. w/o Mgmt. Action - Japan Yen",null,null,null,null,null,null,null,null,{"$f":"'Schedule XXIII'!I13","v":0}]
["Sch XXIII","Interest Rates",null,"Int. Down - After Shock - Other - Liab. w/o Mgmt. Action - Canada Dollars",null,null,null,null,null,null,null,null,{"$f":"'Schedule XXIII'!I14","v":0}]
["Sch XXIII","Interest Rates",null,"Int. Down - After Shock - Other - Liab. w/o Mgmt. Action - Swiss Francs",null,null,null,null,null,null,null,null,{"$f":"'Schedule XXIII'!I15","v":0}]
["Sch XXIII","Interest Rates",null,"Int. Down - After Shock - Other - Liab. w/o Mgmt. Action - Australia Dollar",null,null,null,null,null,null,null,null,{"$f":"'Schedule XXIII'!I16","v":0}]
["Sch XXIII","Interest Rates",null,"Int. Down - After Shock - Other - Liab. w/o Mgmt. Action - New Zealand Dollar",null,null,null,null,null,null,null,null,{"$f":"'Schedule XXIII'!I17","v":0}]
["Sch XXIII","Interest Rates",null,{"$f":"\"Int. Down - After Shock - Other - Liab. w/o Mgmt Action - \"&'Schedule XXIII'!$C$18","v":"Int. Down - After Shock - Other - Liab. w/o Mgmt Action - Other currency 1"},null,null,null,null,null,null,null,null,{"$f":"'Schedule XXIII'!I18","v":0}]
["Sch XXIII","Interest Rates",null,{"$f":"\"Int. Down - After Shock - Other - Liab. w/o Mgmt Action - \"&'Schedule XXIII'!$C$19","v":"Int. Down - After Shock - Other - Liab. w/o Mgmt Action - Other currency 2"},null,null,null,null,null,null,null,null,{"$f":"'Schedule XXIII'!I19","v":0}]
["Sch XXIII","Interest Rates",null,{"$f":"\"Int. Down - After Shock - Other - Liab. w/o Mgmt Action - \"&'Schedule XXIII'!$C$20","v":"Int. Down - After Shock - Other - Liab. w/o Mgmt Action - Other currency 3"},null,null,null,null,null,null,null,null,{"$f":"'Schedule XXIII'!I20","v":0}]
["Sch XXIII","Interest Rates",null,{"$f":"\"Int. Down - After Shock - Other - Liab. w/o Mgmt Action - \"&'Schedule XXIII'!$C$21","v":"Int. Down - After Shock - Other - Liab. w/o Mgmt Action - Other currency 4"},null,null,null,null,null,null,null,null,{"$f":"'Schedule XXIII'!I21","v":0}]
["Sch XXIII","Interest Rates",null,{"$f":"\"Int. Down - After Shock - Other - Liab. w/o Mgmt Action - \"&'Schedule XXIII'!$C$22","v":"Int. Down - After Shock - Other - Liab. w/o Mgmt Action - Other currency 5"},null,null,null,null,null,null,null,null,{"$f":"'Schedule XXIII'!I22","v":0}]
["Sch XXIII","Interest Rates",null,{"$f":"\"Int. Down - After Shock - Other - Liab. w/o Mgmt Action - \"&'Schedule XXIII'!$C$23","v":"Int. Down - After Shock - Other - Liab. w/o Mgmt Action - Other currency 6"},null,null,null,null,null,null,null,null,{"$f":"'Schedule XXIII'!I23","v":0}]
["Sch XXIII","Interest Rates",null,{"$f":"\"Int. Down - After Shock - Other - Liab. w/o Mgmt Action - \"&'Schedule XXIII'!$C$24","v":"Int. Down - After Shock - Other - Liab. w/o Mgmt Action - Other currency 7"},null,null,null,null,null,null,null,null,{"$f":"'Schedule XXIII'!I24","v":0}]
["Sch XXIII","Interest Rates",null,{"$f":"\"Int. Down - After Shock - Other - Liab. w/o Mgmt Action - \"&'Schedule XXIII'!$C$25","v":"Int. Down - After Shock - Other - Liab. w/o Mgmt Action - Other currency 8"},null,null,null,null,null,null,null,null,{"$f":"'Schedule XXIII'!I25","v":0}]
["Sch XXIII","Interest Rates",null,{"$f":"\"Int. Down - After Shock - Other - Liab. w/o Mgmt Action - \"&'Schedule XXIII'!$C$26","v":"Int. Down - After Shock - Other - Liab. w/o Mgmt Action - Other currency 9"},null,null,null,null,null,null,null,null,{"$f":"'Schedule XXIII'!I26","v":0}]
["Sch XXIII","Interest Rates",null,{"$f":"\"Int. Down - After Shock - Other - Liab. w/o Mgmt Action - \"&'Schedule XXIII'!$C$27","v":"Int. Down - After Shock - Other - Liab. w/o Mgmt Action - Other currency 10"},null,null,null,null,null,null,null,null,{"$f":"'Schedule XXIII'!I27","v":0}]
["Sch XXIII","Interest Rates",null,"Int. Down - After Shock - Other - Liab. w/o Mgmt. Action - Total",null,null,null,null,null,null,null,null,{"$f":"'Schedule XXIII'!I28","v":0}]
["Sch XXIII","Interest Rates",null,"Int. Down - After Shock - Other - Liab. with Mgmt. Action - United States Dollars",null,null,null,null,null,null,null,null,{"$f":"'Schedule XXIII'!K10","v":0}]
["Sch XXIII","Interest Rates",null,"Int. Down - After Shock - Other - Liab. with Mgmt. Action - Euro",null,null,null,null,null,null,null,null,{"$f":"'Schedule XXIII'!K11","v":0}]
["Sch XXIII","Interest Rates",null,"Int. Down - After Shock - Other - Liab. with Mgmt. Action - United Kingdom Pounds",null,null,null,null,null,null,null,null,{"$f":"'Schedule XXIII'!K12","v":0}]
["Sch XXIII","Interest Rates",null,"Int. Down - After Shock - Other - Liab. with Mgmt. Action - Japan Yen",null,null,null,null,null,null,null,null,{"$f":"'Schedule XXIII'!K13","v":0}]
["Sch XXIII","Interest Rates",null,"Int. Down - After Shock - Other - Liab. with Mgmt. Action - Canada Dollars",null,null,null,null,null,null,null,null,{"$f":"'Schedule XXIII'!K14","v":0}]
["Sch XXIII","Interest Rates",null,"Int. Down - After Shock - Other - Liab. with Mgmt. Action - Swiss Francs",null,null,null,null,null,null,null,null,{"$f":"'Schedule XXIII'!K15","v":0}]
["Sch XXIII","Interest Rates",null,"Int. Down - After Shock - Other - Liab. with Mgmt. Action - Australia Dollar",null,null,null,null,null,null,null,null,{"$f":"'Schedule XXIII'!K16","v":0}]
["Sch XXIII","Interest Rates",null,"Int. Down - After Shock - Other - Liab. with Mgmt. Action - New Zealand Dollar",null,null,null,null,null,null,null,null,{"$f":"'Schedule XXIII'!K17","v":0}]
["Sch XXIII","Interest Rates",null,{"$f":"\"Int. Down - After Shock - Other - Liab. with Mgmt Action - \"&'Schedule XXIII'!$C$18","v":"Int. Down - After Shock - Other - Liab. with Mgmt Action - Other currency 1"},null,null,null,null,null,null,null,null,{"$f":"'Schedule XXIII'!K18","v":0}]
["Sch XXIII","Interest Rates",null,{"$f":"\"Int. Down - After Shock - Other - Liab. with Mgmt Action - \"&'Schedule XXIII'!$C$19","v":"Int. Down - After Shock - Other - Liab. with Mgmt Action - Other currency 2"},null,null,null,null,null,null,null,null,{"$f":"'Schedule XXIII'!K19","v":0}]
["Sch XXIII","Interest Rates",null,{"$f":"\"Int. Down - After Shock - Other - Liab. with Mgmt Action - \"&'Schedule XXIII'!$C$20","v":"Int. Down - After Shock - Other - Liab. with Mgmt Action - Other currency 3"},null,null,null,null,null,null,null,null,{"$f":"'Schedule XXIII'!K20","v":0}]
["Sch XXIII","Interest Rates",null,{"$f":"\"Int. Down - After Shock - Other - Liab. with Mgmt Action - \"&'Schedule XXIII'!$C$21","v":"Int. Down - After Shock - Other - Liab. with Mgmt Action - Other currency 4"},null,null,null,null,null,null,null,null,{"$f":"'Schedule XXIII'!K21","v":0}]
["Sch XXIII","Interest Rates",null,{"$f":"\"Int. Down - After Shock - Other - Liab. with Mgmt Action - \"&'Schedule XXIII'!$C$22","v":"Int. Down - After Shock - Other - Liab. with Mgmt Action - Other currency 5"},null,null,null,null,null,null,null,null,{"$f":"'Schedule XXIII'!K22","v":0}]
["Sch XXIII","Interest Rates",null,{"$f":"\"Int. Down - After Shock - Other - Liab. with Mgmt Action - \"&'Schedule XXIII'!$C$23","v":"Int. Down - After Shock - Other - Liab. with Mgmt Action - Other currency 6"},null,null,null,null,null,null,null,null,{"$f":"'Schedule XXIII'!K23","v":0}]
["Sch XXIII","Interest Rates",null,{"$f":"\"Int. Down - After Shock - Other - Liab. with Mgmt Action - \"&'Schedule XXIII'!$C$24","v":"Int. Down - After Shock - Other - Liab. with Mgmt Action - Other currency 7"},null,null,null,null,null,null,null,null,{"$f":"'Schedule XXIII'!K24","v":0}]
["Sch XXIII","Interest Rates",null,{"$f":"\"Int. Down - After Shock - Other - Liab. with Mgmt Action - \"&'Schedule XXIII'!$C$25","v":"Int. Down - After Shock - Other - Liab. with Mgmt Action - Other currency 8"},null,null,null,null,null,null,null,null,{"$f":"'Schedule XXIII'!K25","v":0}]
["Sch XXIII","Interest Rates",null,{"$f":"\"Int. Down - After Shock - Other - Liab. with Mgmt Action - \"&'Schedule XXIII'!$C$26","v":"Int. Down - After Shock - Other - Liab. with Mgmt Action - Other currency 9"},null,null,null,null,null,null,null,null,{"$f":"'Schedule XXIII'!K26","v":0}]
["Sch XXIII","Interest Rates",null,{"$f":"\"Int. Down - After Shock - Other - Liab. with Mgmt Action - \"&'Schedule XXIII'!$C$27","v":"Int. Down - After Shock - Other - Liab. with Mgmt Action - Other currency 10"},null,null,null,null,null,null,null,null,{"$f":"'Schedule XXIII'!K27","v":0}]
["Sch XXIII","Interest Rates",null,"Int. Down - After Shock - Other - Liab. with Mgmt. Action - Total",null,null,null,null,null,null,null,null,{"$f":"'Schedule XXIII'!K28","v":0}]
["Sch XXIII","Interest Rates",null,"Int. Down - Before Shock - Derivatives - Qualifying Assets - United States Dollars",null,null,null,null,null,null,null,null,{"$f":"'Schedule XXIII'!M10","v":0}]
["Sch XXIII","Interest Rates",null,"Int. Down - Before Shock - Derivatives - Qualifying Assets - Euro",null,null,null,null,null,null,null,null,{"$f":"'Schedule XXIII'!M11","v":0}]
["Sch XXIII","Interest Rates",null,"Int. Down - Before Shock - Derivatives - Qualifying Assets - United Kingdom Pounds",null,null,null,null,null,null,null,null,{"$f":"'Schedule XXIII'!M12","v":0}]
["Sch XXIII","Interest Rates",null,"Int. Down - Before Shock - Derivatives - Qualifying Assets - Japan Yen",null,null,null,null,null,null,null,null,{"$f":"'Schedule XXIII'!M13","v":0}]
["Sch XXIII","Interest Rates",null,"Int. Down - Before Shock - Derivatives - Qualifying Assets - Canada Dollars",null,null,null,null,null,null,null,null,{"$f":"'Schedule XXIII'!M14","v":0}]
["Sch XXIII","Interest Rates",null,"Int. Down - Before Shock - Derivatives - Qualifying Assets - Swiss Francs",null,null,null,null,null,null,null,null,{"$f":"'Schedule XXIII'!M15","v":0}]
["Sch XXIII","Interest Rates",null,"Int. Down - Before Shock - Derivatives - Qualifying Assets - Australia Dollar",null,null,null,null,null,null,null,null,{"$f":"'Schedule XXIII'!M16","v":0}]
["Sch XXIII","Interest Rates",null,"Int. Down - Before Shock - Derivatives - Qualifying Assets - New Zealand Dollar",null,null,null,null,null,null,null,null,{"$f":"'Schedule XXIII'!M17","v":0}]
["Sch XXIII","Interest Rates",null,{"$f":"\"Int. Down - Before Shock - Derivatives - Qualifying Assets - \"&'Schedule XXIII'!$C$18","v":"Int. Down - Before Shock - Derivatives - Qualifying Assets - Other currency 1"},null,null,null,null,null,null,null,null,{"$f":"'Schedule XXIII'!M18","v":0}]
["Sch XXIII","Interest Rates",null,{"$f":"\"Int. Down - Before Shock - Derivatives - Qualifying Assets - \"&'Schedule XXIII'!$C$19","v":"Int. Down - Before Shock - Derivatives - Qualifying Assets - Other currency 2"},null,null,null,null,null,null,null,null,{"$f":"'Schedule XXIII'!M19","v":0}]
["Sch XXIII","Interest Rates",null,{"$f":"\"Int. Down - Before Shock - Derivatives - Qualifying Assets - \"&'Schedule XXIII'!$C$20","v":"Int. Down - Before Shock - Derivatives - Qualifying Assets - Other currency 3"},null,null,null,null,null,null,null,null,{"$f":"'Schedule XXIII'!M20","v":0}]
["Sch XXIII","Interest Rates",null,{"$f":"\"Int. Down - Before Shock - Derivatives - Qualifying Assets - \"&'Schedule XXIII'!$C$21","v":"Int. Down - Before Shock - Derivatives - Qualifying Assets - Other currency 4"},null,null,null,null,null,null,null,null,{"$f":"'Schedule XXIII'!M21","v":0}]
["Sch XXIII","Interest Rates",null,{"$f":"\"Int. Down - Before Shock - Derivatives - Qualifying Assets - \"&'Schedule XXIII'!$C$22","v":"Int. Down - Before Shock - Derivatives - Qualifying Assets - Other currency 5"},null,null,null,null,null,null,null,null,{"$f":"'Schedule XXIII'!M22","v":0}]
["Sch XXIII","Interest Rates",null,{"$f":"\"Int. Down - Before Shock - Derivatives - Qualifying Assets - \"&'Schedule XXIII'!$C$23","v":"Int. Down - Before Shock - Derivatives - Qualifying Assets - Other currency 6"},null,null,null,null,null,null,null,null,{"$f":"'Schedule XXIII'!M23","v":0}]
["Sch XXIII","Interest Rates",null,{"$f":"\"Int. Down - Before Shock - Derivatives - Qualifying Assets - \"&'Schedule XXIII'!$C$24","v":"Int. Down - Before Shock - Derivatives - Qualifying Assets - Other currency 7"},null,null,null,null,null,null,null,null,{"$f":"'Schedule XXIII'!M24","v":0}]
["Sch XXIII","Interest Rates",null,{"$f":"\"Int. Down - Before Shock - Derivatives - Qualifying Assets - \"&'Schedule XXIII'!$C$25","v":"Int. Down - Before Shock - Derivatives - Qualifying Assets - Other currency 8"},null,null,null,null,null,null,null,null,{"$f":"'Schedule XXIII'!M25","v":0}]
["Sch XXIII","Interest Rates",null,{"$f":"\"Int. Down - Before Shock - Derivatives - Qualifying Assets - \"&'Schedule XXIII'!$C$26","v":"Int. Down - Before Shock - Derivatives - Qualifying Assets - Other currency 9"},null,null,null,null,null,null,null,null,{"$f":"'Schedule XXIII'!M26","v":0}]
["Sch XXIII","Interest Rates",null,{"$f":"\"Int. Down - Before Shock - Derivatives - Qualifying Assets - \"&'Schedule XXIII'!$C$27","v":"Int. Down - Before Shock - Derivatives - Qualifying Assets - Other currency 10"},null,null,null,null,null,null,null,null,{"$f":"'Schedule XXIII'!M27","v":0}]
["Sch XXIII","Interest Rates",null,"Int. Down - Before Shock - Derivatives - Qualifying Assets - Total",null,null,null,null,null,null,null,null,{"$f":"'Schedule XXIII'!M28","v":0}]
["Sch XXIII","Interest Rates",null,"Int. Down - After Shock - Derivatives - Qualifying Assets - United States Dollars",null,null,null,null,null,null,null,null,{"$f":"'Schedule XXIII'!N10","v":0}]
["Sch XXIII","Interest Rates",null,"Int. Down - After Shock - Derivatives - Qualifying Assets - Euro",null,null,null,null,null,null,null,null,{"$f":"'Schedule XXIII'!N11","v":0}]
["Sch XXIII","Interest Rates",null,"Int. Down - After Shock - Derivatives - Qualifying Assets - United Kingdom Pounds",null,null,null,null,null,null,null,null,{"$f":"'Schedule XXIII'!N12","v":0}]
["Sch XXIII","Interest Rates",null,"Int. Down - After Shock - Derivatives - Qualifying Assets - Japan Yen",null,null,null,null,null,null,null,null,{"$f":"'Schedule XXIII'!N13","v":0}]
["Sch XXIII","Interest Rates",null,"Int. Down - After Shock - Derivatives - Qualifying Assets - Canada Dollars",null,null,null,null,null,null,null,null,{"$f":"'Schedule XXIII'!N14","v":0}]
["Sch XXIII","Interest Rates",null,"Int. Down - After Shock - Derivatives - Qualifying Assets - Swiss Francs",null,null,null,null,null,null,null,null,{"$f":"'Schedule XXIII'!N15","v":0}]
["Sch XXIII","Interest Rates",null,"Int. Down - After Shock - Derivatives - Qualifying Assets - Australia Dollar",null,null,null,null,null,null,null,null,{"$f":"'Schedule XXIII'!N16","v":0}]
["Sch XXIII","Interest Rates",null,"Int. Down - After Shock - Derivatives - Qualifying Assets - New Zealand Dollar",null,null,null,null,null,null,null,null,{"$f":"'Schedule XXIII'!N17","v":0}]
["Sch XXIII","Interest Rates",null,{"$f":"\"Int. Down - After Shock - Derivatives - Qualifying Assets - \"&'Schedule XXIII'!$C$18","v":"Int. Down - After Shock - Derivatives - Qualifying Assets - Other currency 1"},null,null,null,null,null,null,null,null,{"$f":"'Schedule XXIII'!N18","v":0}]
["Sch XXIII","Interest Rates",null,{"$f":"\"Int. Down - After Shock - Derivatives - Qualifying Assets - \"&'Schedule XXIII'!$C$19","v":"Int. Down - After Shock - Derivatives - Qualifying Assets - Other currency 2"},null,null,null,null,null,null,null,null,{"$f":"'Schedule XXIII'!N19","v":0}]
["Sch XXIII","Interest Rates",null,{"$f":"\"Int. Down - After Shock - Derivatives - Qualifying Assets - \"&'Schedule XXIII'!$C$20","v":"Int. Down - After Shock - Derivatives - Qualifying Assets - Other currency 3"},null,null,null,null,null,null,null,null,{"$f":"'Schedule XXIII'!N20","v":0}]
["Sch XXIII","Interest Rates",null,{"$f":"\"Int. Down - After Shock - Derivatives - Qualifying Assets - \"&'Schedule XXIII'!$C$21","v":"Int. Down - After Shock - Derivatives - Qualifying Assets - Other currency 4"},null,null,null,null,null,null,null,null,{"$f":"'Schedule XXIII'!N21","v":0}]
["Sch XXIII","Interest Rates",null,{"$f":"\"Int. Down - After Shock - Derivatives - Qualifying Assets - \"&'Schedule XXIII'!$C$22","v":"Int. Down - After Shock - Derivatives - Qualifying Assets - Other currency 5"},null,null,null,null,null,null,null,null,{"$f":"'Schedule XXIII'!N22","v":0}]
["Sch XXIII","Interest Rates",null,{"$f":"\"Int. Down - After Shock - Derivatives - Qualifying Assets - \"&'Schedule XXIII'!$C$23","v":"Int. Down - After Shock - Derivatives - Qualifying Assets - Other currency 6"},null,null,null,null,null,null,null,null,{"$f":"'Schedule XXIII'!N23","v":0}]
["Sch XXIII","Interest Rates",null,{"$f":"\"Int. Down - After Shock - Derivatives - Qualifying Assets - \"&'Schedule XXIII'!$C$24","v":"Int. Down - After Shock - Derivatives - Qualifying Assets - Other currency 7"},null,null,null,null,null,null,null,null,{"$f":"'Schedule XXIII'!N24","v":0}]
["Sch XXIII","Interest Rates",null,{"$f":"\"Int. Down - After Shock - Derivatives - Qualifying Assets - \"&'Schedule XXIII'!$C$25","v":"Int. Down - After Shock - Derivatives - Qualifying Assets - Other currency 8"},null,null,null,null,null,null,null,null,{"$f":"'Schedule XXIII'!N25","v":0}]
["Sch XXIII","Interest Rates",null,{"$f":"\"Int. Down - After Shock - Derivatives - Qualifying Assets - \"&'Schedule XXIII'!$C$26","v":"Int. Down - After Shock - Derivatives - Qualifying Assets - Other currency 9"},null,null,null,null,null,null,null,null,{"$f":"'Schedule XXIII'!N26","v":0}]
["Sch XXIII","Interest Rates",null,{"$f":"\"Int. Down - After Shock - Derivatives - Qualifying Assets - \"&'Schedule XXIII'!$C$27","v":"Int. Down - After Shock - Derivatives - Qualifying Assets - Other currency 10"},null,null,null,null,null,null,null,null,{"$f":"'Schedule XXIII'!N27","v":0}]
["Sch XXIII","Interest Rates",null,"Int. Down - After Shock - Derivatives - Qualifying Assets - Total",null,null,null,null,null,null,null,null,{"$f":"'Schedule XXIII'!N28","v":0}]
["Sch XXIII","Interest Rates",null,"Int. Down - Before Shock - Derivatives - Not Qualifying Assets - United States Dollars",null,null,null,null,null,null,null,null,{"$f":"'Schedule XXIII'!P10","v":0}]
["Sch XXIII","Interest Rates",null,"Int. Down - Before Shock - Derivatives - Not Qualifying Assets - Euro",null,null,null,null,null,null,null,null,{"$f":"'Schedule XXIII'!P11","v":0}]
["Sch XXIII","Interest Rates",null,"Int. Down - Before Shock - Derivatives - Not Qualifying Assets - United Kingdom Pounds",null,null,null,null,null,null,null,null,{"$f":"'Schedule XXIII'!P12","v":0}]
["Sch XXIII","Interest Rates",null,"Int. Down - Before Shock - Derivatives - Not Qualifying Assets - Japan Yen",null,null,null,null,null,null,null,null,{"$f":"'Schedule XXIII'!P13","v":0}]
["Sch XXIII","Interest Rates",null,"Int. Down - Before Shock - Derivatives - Not Qualifying Assets - Canada Dollars",null,null,null,null,null,null,null,null,{"$f":"'Schedule XXIII'!P14","v":0}]
["Sch XXIII","Interest Rates",null,"Int. Down - Before Shock - Derivatives - Not Qualifying Assets - Swiss Francs",null,null,null,null,null,null,null,null,{"$f":"'Schedule XXIII'!P15","v":0}]
["Sch XXIII","Interest Rates",null,"Int. Down - Before Shock - Derivatives - Not Qualifying Assets - Australia Dollar",null,null,null,null,null,null,null,null,{"$f":"'Schedule XXIII'!P16","v":0}]
["Sch XXIII","Interest Rates",null,"Int. Down - Before Shock - Derivatives - Not Qualifying Assets - New Zealand Dollar",null,null,null,null,null,null,null,null,{"$f":"'Schedule XXIII'!P17","v":0}]
["Sch XXIII","Interest Rates",null,{"$f":"\"Int. Down - Before Shock - Derivatives - Not Qualifying Assets - \"&'Schedule XXIII'!$C$18","v":"Int. Down - Before Shock - Derivatives - Not Qualifying Assets - Other currency 1"},null,null,null,null,null,null,null,null,{"$f":"'Schedule XXIII'!P18","v":0}]
["Sch XXIII","Interest Rates",null,{"$f":"\"Int. Down - Before Shock - Derivatives - Not Qualifying Assets - \"&'Schedule XXIII'!$C$19","v":"Int. Down - Before Shock - Derivatives - Not Qualifying Assets - Other currency 2"},null,null,null,null,null,null,null,null,{"$f":"'Schedule XXIII'!P19","v":0}]
["Sch XXIII","Interest Rates",null,{"$f":"\"Int. Down - Before Shock - Derivatives - Not Qualifying Assets - \"&'Schedule XXIII'!$C$20","v":"Int. Down - Before Shock - Derivatives - Not Qualifying Assets - Other currency 3"},null,null,null,null,null,null,null,null,{"$f":"'Schedule XXIII'!P20","v":0}]
["Sch XXIII","Interest Rates",null,{"$f":"\"Int. Down - Before Shock - Derivatives - Not Qualifying Assets - \"&'Schedule XXIII'!$C$21","v":"Int. Down - Before Shock - Derivatives - Not Qualifying Assets - Other currency 4"},null,null,null,null,null,null,null,null,{"$f":"'Schedule XXIII'!P21","v":0}]
["Sch XXIII","Interest Rates",null,{"$f":"\"Int. Down - Before Shock - Derivatives - Not Qualifying Assets - \"&'Schedule XXIII'!$C$22","v":"Int. Down - Before Shock - Derivatives - Not Qualifying Assets - Other currency 5"},null,null,null,null,null,null,null,null,{"$f":"'Schedule XXIII'!P22","v":0}]
["Sch XXIII","Interest Rates",null,{"$f":"\"Int. Down - Before Shock - Derivatives - Not Qualifying Assets - \"&'Schedule XXIII'!$C$23","v":"Int. Down - Before Shock - Derivatives - Not Qualifying Assets - Other currency 6"},null,null,null,null,null,null,null,null,{"$f":"'Schedule XXIII'!P23","v":0}]
["Sch XXIII","Interest Rates",null,{"$f":"\"Int. Down - Before Shock - Derivatives - Not Qualifying Assets - \"&'Schedule XXIII'!$C$24","v":"Int. Down - Before Shock - Derivatives - Not Qualifying Assets - Other currency 7"},null,null,null,null,null,null,null,null,{"$f":"'Schedule XXIII'!P24","v":0}]
["Sch XXIII","Interest Rates",null,{"$f":"\"Int. Down - Before Shock - Derivatives - Not Qualifying Assets - \"&'Schedule XXIII'!$C$25","v":"Int. Down - Before Shock - Derivatives - Not Qualifying Assets - Other currency 8"},null,null,null,null,null,null,null,null,{"$f":"'Schedule XXIII'!P25","v":0}]
["Sch XXIII","Interest Rates",null,{"$f":"\"Int. Down - Before Shock - Derivatives - Not Qualifying Assets - \"&'Schedule XXIII'!$C$26","v":"Int. Down - Before Shock - Derivatives - Not Qualifying Assets - Other currency 9"},null,null,null,null,null,null,null,null,{"$f":"'Schedule XXIII'!P26","v":0}]
["Sch XXIII","Interest Rates",null,{"$f":"\"Int. Down - Before Shock - Derivatives - Not Qualifying Assets - \"&'Schedule XXIII'!$C$27","v":"Int. Down - Before Shock - Derivatives - Not Qualifying Assets - Other currency 10"},null,null,null,null,null,null,null,null,{"$f":"'Schedule XXIII'!P27","v":0}]
["Sch XXIII","Interest Rates",null,"Int. Down - Before Shock - Derivatives - Not Qualifying Assets - Total",null,null,null,null,null,null,null,null,{"$f":"'Schedule XXIII'!P28","v":0}]
["Sch XXIII","Interest Rates",null,"Int. Down - After Shock - Derivatives - Not Qualifying Assets - United States Dollars",null,null,null,null,null,null,null,null,{"$f":"'Schedule XXIII'!Q10","v":0}]
["Sch XXIII","Interest Rates",null,"Int. Down - After Shock - Derivatives - Not Qualifying Assets - Euro",null,null,null,null,null,null,null,null,{"$f":"'Schedule XXIII'!Q11","v":0}]
["Sch XXIII","Interest Rates",null,"Int. Down - After Shock - Derivatives - Not Qualifying Assets - United Kingdom Pounds",null,null,null,null,null,null,null,null,{"$f":"'Schedule XXIII'!Q12","v":0}]
["Sch XXIII","Interest Rates",null,"Int. Down - After Shock - Derivatives - Not Qualifying Assets - Japan Yen",null,null,null,null,null,null,null,null,{"$f":"'Schedule XXIII'!Q13","v":0}]
["Sch XXIII","Interest Rates",null,"Int. Down - After Shock - Derivatives - Not Qualifying Assets - Canada Dollars",null,null,null,null,null,null,null,null,{"$f":"'Schedule XXIII'!Q14","v":0}]
["Sch XXIII","Interest Rates",null,"Int. Down - After Shock - Derivatives - Not Qualifying Assets - Swiss Francs",null,null,null,null,null,null,null,null,{"$f":"'Schedule XXIII'!Q15","v":0}]
["Sch XXIII","Interest Rates",null,"Int. Down - After Shock - Derivatives - Not Qualifying Assets - Australia Dollar",null,null,null,null,null,null,null,null,{"$f":"'Schedule XXIII'!Q16","v":0}]
["Sch XXIII","Interest Rates",null,"Int. Down - After Shock - Derivatives - Not Qualifying Assets - New Zealand Dollar",null,null,null,null,null,null,null,null,{"$f":"'Schedule XXIII'!Q17","v":0}]
["Sch XXIII","Interest Rates",null,{"$f":"\"Int. Down - After Shock - Derivatives - Not Qualifying Assets - \"&'Schedule XXIII'!$C$18","v":"Int. Down - After Shock - Derivatives - Not Qualifying Assets - Other currency 1"},null,null,null,null,null,null,null,null,{"$f":"'Schedule XXIII'!Q18","v":0}]
["Sch XXIII","Interest Rates",null,{"$f":"\"Int. Down - After Shock - Derivatives - Not Qualifying Assets - \"&'Schedule XXIII'!$C$19","v":"Int. Down - After Shock - Derivatives - Not Qualifying Assets - Other currency 2"},null,null,null,null,null,null,null,null,{"$f":"'Schedule XXIII'!Q19","v":0}]
["Sch XXIII","Interest Rates",null,{"$f":"\"Int. Down - After Shock - Derivatives - Not Qualifying Assets - \"&'Schedule XXIII'!$C$20","v":"Int. Down - After Shock - Derivatives - Not Qualifying Assets - Other currency 3"},null,null,null,null,null,null,null,null,{"$f":"'Schedule XXIII'!Q20","v":0}]
["Sch XXIII","Interest Rates",null,{"$f":"\"Int. Down - After Shock - Derivatives - Not Qualifying Assets - \"&'Schedule XXIII'!$C$21","v":"Int. Down - After Shock - Derivatives - Not Qualifying Assets - Other currency 4"},null,null,null,null,null,null,null,null,{"$f":"'Schedule XXIII'!Q21","v":0}]
["Sch XXIII","Interest Rates",null,{"$f":"\"Int. Down - After Shock - Derivatives - Not Qualifying Assets - \"&'Schedule XXIII'!$C$22","v":"Int. Down - After Shock - Derivatives - Not Qualifying Assets - Other currency 5"},null,null,null,null,null,null,null,null,{"$f":"'Schedule XXIII'!Q22","v":0}]
["Sch XXIII","Interest Rates",null,{"$f":"\"Int. Down - After Shock - Derivatives - Not Qualifying Assets - \"&'Schedule XXIII'!$C$23","v":"Int. Down - After Shock - Derivatives - Not Qualifying Assets - Other currency 6"},null,null,null,null,null,null,null,null,{"$f":"'Schedule XXIII'!Q23","v":0}]
["Sch XXIII","Interest Rates",null,{"$f":"\"Int. Down - After Shock - Derivatives - Not Qualifying Assets - \"&'Schedule XXIII'!$C$24","v":"Int. Down - After Shock - Derivatives - Not Qualifying Assets - Other currency 7"},null,null,null,null,null,null,null,null,{"$f":"'Schedule XXIII'!Q24","v":0}]
["Sch XXIII","Interest Rates",null,{"$f":"\"Int. Down - After Shock - Derivatives - Not Qualifying Assets - \"&'Schedule XXIII'!$C$25","v":"Int. Down - After Shock - Derivatives - Not Qualifying Assets - Other currency 8"},null,null,null,null,null,null,null,null,{"$f":"'Schedule XXIII'!Q25","v":0}]
["Sch XXIII","Interest Rates",null,{"$f":"\"Int. Down - After Shock - Derivatives - Not Qualifying Assets - \"&'Schedule XXIII'!$C$26","v":"Int. Down - After Shock - Derivatives - Not Qualifying Assets - Other currency 9"},null,null,null,null,null,null,null,null,{"$f":"'Schedule XXIII'!Q26","v":0}]
["Sch XXIII","Interest Rates",null,{"$f":"\"Int. Down - After Shock - Derivatives - Not Qualifying Assets - \"&'Schedule XXIII'!$C$27","v":"Int. Down - After Shock - Derivatives - Not Qualifying Assets - Other currency 10"},null,null,null,null,null,null,null,null,{"$f":"'Schedule XXIII'!Q27","v":0}]
["Sch XXIII","Interest Rates",null,"Int. Down - After Shock - Derivatives - Not Qualifying Assets - Total",null,null,null,null,null,null,null,null,{"$f":"'Schedule XXIII'!Q28","v":0}]
["Sch XXIII","Interest Rates",null,"Int. Down - Before Shock - Derivatives - Liab. w/o Mgmt. Action - United States Dollars",null,null,null,null,null,null,null,null,{"$f":"'Schedule XXIII'!S10","v":0}]
["Sch XXIII","Interest Rates",null,"Int. Down - Before Shock - Derivatives - Liab. w/o Mgmt. Action - Euro",null,null,null,null,null,null,null,null,{"$f":"'Schedule XXIII'!S11","v":0}]
["Sch XXIII","Interest Rates",null,"Int. Down - Before Shock - Derivatives - Liab. w/o Mgmt. Action - United Kingdom Pounds",null,null,null,null,null,null,null,null,{"$f":"'Schedule XXIII'!S12","v":0}]
["Sch XXIII","Interest Rates",null,"Int. Down - Before Shock - Derivatives - Liab. w/o Mgmt. Action - Japan Yen",null,null,null,null,null,null,null,null,{"$f":"'Schedule XXIII'!S13","v":0}]
["Sch XXIII","Interest Rates",null,"Int. Down - Before Shock - Derivatives - Liab. w/o Mgmt. Action - Canada Dollars",null,null,null,null,null,null,null,null,{"$f":"'Schedule XXIII'!S14","v":0}]
["Sch XXIII","Interest Rates",null,"Int. Down - Before Shock - Derivatives - Liab. w/o Mgmt. Action - Swiss Francs",null,null,null,null,null,null,null,null,{"$f":"'Schedule XXIII'!S15","v":0}]
["Sch XXIII","Interest Rates",null,"Int. Down - Before Shock - Derivatives - Liab. w/o Mgmt. Action - Australia Dollar",null,null,null,null,null,null,null,null,{"$f":"'Schedule XXIII'!S16","v":0}]
["Sch XXIII","Interest Rates",null,"Int. Down - Before Shock - Derivatives - Liab. w/o Mgmt. Action - New Zealand Dollar",null,null,null,null,null,null,null,null,{"$f":"'Schedule XXIII'!S17","v":0}]
["Sch XXIII","Interest Rates",null,{"$f":"\"Int. Down - Before Shock - Derivatives - Liab. w/o Mgmt Action - \"&'Schedule XXIII'!$C$18","v":"Int. Down - Before Shock - Derivatives - Liab. w/o Mgmt Action - Other currency 1"},null,null,null,null,null,null,null,null,{"$f":"'Schedule XXIII'!S18","v":0}]
["Sch XXIII","Interest Rates",null,{"$f":"\"Int. Down - Before Shock - Derivatives - Liab. w/o Mgmt Action - \"&'Schedule XXIII'!$C$19","v":"Int. Down - Before Shock - Derivatives - Liab. w/o Mgmt Action - Other currency 2"},null,null,null,null,null,null,null,null,{"$f":"'Schedule XXIII'!S19","v":0}]
["Sch XXIII","Interest Rates",null,{"$f":"\"Int. Down - Before Shock - Derivatives - Liab. w/o Mgmt Action - \"&'Schedule XXIII'!$C$20","v":"Int. Down - Before Shock - Derivatives - Liab. w/o Mgmt Action - Other currency 3"},null,null,null,null,null,null,null,null,{"$f":"'Schedule XXIII'!S20","v":0}]
["Sch XXIII","Interest Rates",null,{"$f":"\"Int. Down - Before Shock - Derivatives - Liab. w/o Mgmt Action - \"&'Schedule XXIII'!$C$21","v":"Int. Down - Before Shock - Derivatives - Liab. w/o Mgmt Action - Other currency 4"},null,null,null,null,null,null,null,null,{"$f":"'Schedule XXIII'!S21","v":0}]
["Sch XXIII","Interest Rates",null,{"$f":"\"Int. Down - Before Shock - Derivatives - Liab. w/o Mgmt Action - \"&'Schedule XXIII'!$C$22","v":"Int. Down - Before Shock - Derivatives - Liab. w/o Mgmt Action - Other currency 5"},null,null,null,null,null,null,null,null,{"$f":"'Schedule XXIII'!S22","v":0}]
["Sch XXIII","Interest Rates",null,{"$f":"\"Int. Down - Before Shock - Derivatives - Liab. w/o Mgmt Action - \"&'Schedule XXIII'!$C$23","v":"Int. Down - Before Shock - Derivatives - Liab. w/o Mgmt Action - Other currency 6"},null,null,null,null,null,null,null,null,{"$f":"'Schedule XXIII'!S23","v":0}]
["Sch XXIII","Interest Rates",null,{"$f":"\"Int. Down - Before Shock - Derivatives - Liab. w/o Mgmt Action - \"&'Schedule XXIII'!$C$24","v":"Int. Down - Before Shock - Derivatives - Liab. w/o Mgmt Action - Other currency 7"},null,null,null,null,null,null,null,null,{"$f":"'Schedule XXIII'!S24","v":0}]
["Sch XXIII","Interest Rates",null,{"$f":"\"Int. Down - Before Shock - Derivatives - Liab. w/o Mgmt Action - \"&'Schedule XXIII'!$C$25","v":"Int. Down - Before Shock - Derivatives - Liab. w/o Mgmt Action - Other currency 8"},null,null,null,null,null,null,null,null,{"$f":"'Schedule XXIII'!S25","v":0}]
["Sch XXIII","Interest Rates",null,{"$f":"\"Int. Down - Before Shock - Derivatives - Liab. w/o Mgmt Action - \"&'Schedule XXIII'!$C$26","v":"Int. Down - Before Shock - Derivatives - Liab. w/o Mgmt Action - Other currency 9"},null,null,null,null,null,null,null,null,{"$f":"'Schedule XXIII'!S26","v":0}]
["Sch XXIII","Interest Rates",null,{"$f":"\"Int. Down - Before Shock - Derivatives - Liab. w/o Mgmt Action - \"&'Schedule XXIII'!$C$27","v":"Int. Down - Before Shock - Derivatives - Liab. w/o Mgmt Action - Other currency 10"},null,null,null,null,null,null,null,null,{"$f":"'Schedule XXIII'!S27","v":0}]
["Sch XXIII","Interest Rates",null,"Int. Down - Before Shock - Derivatives - Liab. w/o Mgmt. Action - Total",null,null,null,null,null,null,null,null,{"$f":"'Schedule XXIII'!S28","v":0}]
["Sch XXIII","Interest Rates",null,"Int. Down - After Shock - Derivatives - Liab. w/o Mgmt. Action - United States Dollars",null,null,null,null,null,null,null,null,{"$f":"'Schedule XXIII'!T10","v":0}]
["Sch XXIII","Interest Rates",null,"Int. Down - After Shock - Derivatives - Liab. w/o Mgmt. Action - Euro",null,null,null,null,null,null,null,null,{"$f":"'Schedule XXIII'!T11","v":0}]
["Sch XXIII","Interest Rates",null,"Int. Down - After Shock - Derivatives - Liab. w/o Mgmt. Action - United Kingdom Pounds",null,null,null,null,null,null,null,null,{"$f":"'Schedule XXIII'!T12","v":0}]
["Sch XXIII","Interest Rates",null,"Int. Down - After Shock - Derivatives - Liab. w/o Mgmt. Action - Japan Yen",null,null,null,null,null,null,null,null,{"$f":"'Schedule XXIII'!T13","v":0}]
["Sch XXIII","Interest Rates",null,"Int. Down - After Shock - Derivatives - Liab. w/o Mgmt. Action - Canada Dollars",null,null,null,null,null,null,null,null,{"$f":"'Schedule XXIII'!T14","v":0}]
["Sch XXIII","Interest Rates",null,"Int. Down - After Shock - Derivatives - Liab. w/o Mgmt. Action - Swiss Francs",null,null,null,null,null,null,null,null,{"$f":"'Schedule XXIII'!T15","v":0}]
["Sch XXIII","Interest Rates",null,"Int. Down - After Shock - Derivatives - Liab. w/o Mgmt. Action - Australia Dollar",null,null,null,null,null,null,null,null,{"$f":"'Schedule XXIII'!T16","v":0}]
["Sch XXIII","Interest Rates",null,"Int. Down - After Shock - Derivatives - Liab. w/o Mgmt. Action - New Zealand Dollar",null,null,null,null,null,null,null,null,{"$f":"'Schedule XXIII'!T17","v":0}]
["Sch XXIII","Interest Rates",null,{"$f":"\"Int. Down - After Shock - Derivatives - Liab. w/o Mgmt Action - \"&'Schedule XXIII'!$C$18","v":"Int. Down - After Shock - Derivatives - Liab. w/o Mgmt Action - Other currency 1"},null,null,null,null,null,null,null,null,{"$f":"'Schedule XXIII'!T18","v":0}]
["Sch XXIII","Interest Rates",null,{"$f":"\"Int. Down - After Shock - Derivatives - Liab. w/o Mgmt Action - \"&'Schedule XXIII'!$C$19","v":"Int. Down - After Shock - Derivatives - Liab. w/o Mgmt Action - Other currency 2"},null,null,null,null,null,null,null,null,{"$f":"'Schedule XXIII'!T19","v":0}]
["Sch XXIII","Interest Rates",null,{"$f":"\"Int. Down - After Shock - Derivatives - Liab. w/o Mgmt Action - \"&'Schedule XXIII'!$C$20","v":"Int. Down - After Shock - Derivatives - Liab. w/o Mgmt Action - Other currency 3"},null,null,null,null,null,null,null,null,{"$f":"'Schedule XXIII'!T20","v":0}]
["Sch XXIII","Interest Rates",null,{"$f":"\"Int. Down - After Shock - Derivatives - Liab. w/o Mgmt Action - \"&'Schedule XXIII'!$C$21","v":"Int. Down - After Shock - Derivatives - Liab. w/o Mgmt Action - Other currency 4"},null,null,null,null,null,null,null,null,{"$f":"'Schedule XXIII'!T21","v":0}]
["Sch XXIII","Interest Rates",null,{"$f":"\"Int. Down - After Shock - Derivatives - Liab. w/o Mgmt Action - \"&'Schedule XXIII'!$C$22","v":"Int. Down - After Shock - Derivatives - Liab. w/o Mgmt Action - Other currency 5"},null,null,null,null,null,null,null,null,{"$f":"'Schedule XXIII'!T22","v":0}]
["Sch XXIII","Interest Rates",null,{"$f":"\"Int. Down - After Shock - Derivatives - Liab. w/o Mgmt Action - \"&'Schedule XXIII'!$C$23","v":"Int. Down - After Shock - Derivatives - Liab. w/o Mgmt Action - Other currency 6"},null,null,null,null,null,null,null,null,{"$f":"'Schedule XXIII'!T23","v":0}]
["Sch XXIII","Interest Rates",null,{"$f":"\"Int. Down - After Shock - Derivatives - Liab. w/o Mgmt Action - \"&'Schedule XXIII'!$C$24","v":"Int. Down - After Shock - Derivatives - Liab. w/o Mgmt Action - Other currency 7"},null,null,null,null,null,null,null,null,{"$f":"'Schedule XXIII'!T24","v":0}]
["Sch XXIII","Interest Rates",null,{"$f":"\"Int. Down - After Shock - Derivatives - Liab. w/o Mgmt Action - \"&'Schedule XXIII'!$C$25","v":"Int. Down - After Shock - Derivatives - Liab. w/o Mgmt Action - Other currency 8"},null,null,null,null,null,null,null,null,{"$f":"'Schedule XXIII'!T25","v":0}]
["Sch XXIII","Interest Rates",null,{"$f":"\"Int. Down - After Shock - Derivatives - Liab. w/o Mgmt Action - \"&'Schedule XXIII'!$C$26","v":"Int. Down - After Shock - Derivatives - Liab. w/o Mgmt Action - Other currency 9"},null,null,null,null,null,null,null,null,{"$f":"'Schedule XXIII'!T26","v":0}]
["Sch XXIII","Interest Rates",null,{"$f":"\"Int. Down - After Shock - Derivatives - Liab. w/o Mgmt Action - \"&'Schedule XXIII'!$C$27","v":"Int. Down - After Shock - Derivatives - Liab. w/o Mgmt Action - Other currency 10"},null,null,null,null,null,null,null,null,{"$f":"'Schedule XXIII'!T27","v":0}]
["Sch XXIII","Interest Rates",null,"Int. Down - After Shock - Derivatives - Liab. w/o Mgmt. Action - Total",null,null,null,null,null,null,null,null,{"$f":"'Schedule XXIII'!T28","v":0}]
["Sch XXIII","Interest Rates",null,"Int. Down - After Shock - Derivatives - Liab. with Mgmt. Action - United States Dollars",null,null,null,null,null,null,null,null,{"$f":"'Schedule XXIII'!V10","v":0}]
["Sch XXIII","Interest Rates",null,"Int. Down - After Shock - Derivatives - Liab. with Mgmt. Action - Euro",null,null,null,null,null,null,null,null,{"$f":"'Schedule XXIII'!V11","v":0}]
["Sch XXIII","Interest Rates",null,"Int. Down - After Shock - Derivatives - Liab. with Mgmt. Action - United Kingdom Pounds",null,null,null,null,null,null,null,null,{"$f":"'Schedule XXIII'!V12","v":0}]
["Sch XXIII","Interest Rates",null,"Int. Down - After Shock - Derivatives - Liab. with Mgmt. Action - Japan Yen",null,null,null,null,null,null,null,null,{"$f":"'Schedule XXIII'!V13","v":0}]
["Sch XXIII","Interest Rates",null,"Int. Down - After Shock - Derivatives - Liab. with Mgmt. Action - Canada Dollars",null,null,null,null,null,null,null,null,{"$f":"'Schedule XXIII'!V14","v":0}]
["Sch XXIII","Interest Rates",null,"Int. Down - After Shock - Derivatives - Liab. with Mgmt. Action - Swiss Francs",null,null,null,null,null,null,null,null,{"$f":"'Schedule XXIII'!V15","v":0}]
["Sch XXIII","Interest Rates",null,"Int. Down - After Shock - Derivatives - Liab. with Mgmt. Action - Australia Dollar",null,null,null,null,null,null,null,null,{"$f":"'Schedule XXIII'!V16","v":0}]
["Sch XXIII","Interest Rates",null,"Int. Down - After Shock - Derivatives - Liab. with Mgmt. Action - New Zealand Dollar",null,null,null,null,null,null,null,null,{"$f":"'Schedule XXIII'!V17","v":0}]
["Sch XXIII","Interest Rates",null,{"$f":"\"Int. Down - After Shock - Derivatives - Liab. with Mgmt Action - \"&'Schedule XXIII'!$C$18","v":"Int. Down - After Shock - Derivatives - Liab. with Mgmt Action - Other currency 1"},null,null,null,null,null,null,null,null,{"$f":"'Schedule XXIII'!V18","v":0}]
["Sch XXIII","Interest Rates",null,{"$f":"\"Int. Down - After Shock - Derivatives - Liab. with Mgmt Action - \"&'Schedule XXIII'!$C$19","v":"Int. Down - After Shock - Derivatives - Liab. with Mgmt Action - Other currency 2"},null,null,null,null,null,null,null,null,{"$f":"'Schedule XXIII'!V19","v":0}]
["Sch XXIII","Interest Rates",null,{"$f":"\"Int. Down - After Shock - Derivatives - Liab. with Mgmt Action - \"&'Schedule XXIII'!$C$20","v":"Int. Down - After Shock - Derivatives - Liab. with Mgmt Action - Other currency 3"},null,null,null,null,null,null,null,null,{"$f":"'Schedule XXIII'!V20","v":0}]
["Sch XXIII","Interest Rates",null,{"$f":"\"Int. Down - After Shock - Derivatives - Liab. with Mgmt Action - \"&'Schedule XXIII'!$C$21","v":"Int. Down - After Shock - Derivatives - Liab. with Mgmt Action - Other currency 4"},null,null,null,null,null,null,null,null,{"$f":"'Schedule XXIII'!V21","v":0}]
["Sch XXIII","Interest Rates",null,{"$f":"\"Int. Down - After Shock - Derivatives - Liab. with Mgmt Action - \"&'Schedule XXIII'!$C$22","v":"Int. Down - After Shock - Derivatives - Liab. with Mgmt Action - Other currency 5"},null,null,null,null,null,null,null,null,{"$f":"'Schedule XXIII'!V22","v":0}]
["Sch XXIII","Interest Rates",null,{"$f":"\"Int. Down - After Shock - Derivatives - Liab. with Mgmt Action - \"&'Schedule XXIII'!$C$23","v":"Int. Down - After Shock - Derivatives - Liab. with Mgmt Action - Other currency 6"},null,null,null,null,null,null,null,null,{"$f":"'Schedule XXIII'!V23","v":0}]
["Sch XXIII","Interest Rates",null,{"$f":"\"Int. Down - After Shock - Derivatives - Liab. with Mgmt Action - \"&'Schedule XXIII'!$C$24","v":"Int. Down - After Shock - Derivatives - Liab. with Mgmt Action - Other currency 7"},null,null,null,null,null,null,null,null,{"$f":"'Schedule XXIII'!V24","v":0}]
["Sch XXIII","Interest Rates",null,{"$f":"\"Int. Down - After Shock - Derivatives - Liab. with Mgmt Action - \"&'Schedule XXIII'!$C$25","v":"Int. Down - After Shock - Derivatives - Liab. with Mgmt Action - Other currency 8"},null,null,null,null,null,null,null,null,{"$f":"'Schedule XXIII'!V25","v":0}]
["Sch XXIII","Interest Rates",null,{"$f":"\"Int. Down - After Shock - Derivatives - Liab. with Mgmt Action - \"&'Schedule XXIII'!$C$26","v":"Int. Down - After Shock - Derivatives - Liab. with Mgmt Action - Other currency 9"},null,null,null,null,null,null,null,null,{"$f":"'Schedule XXIII'!V26","v":0}]
["Sch XXIII","Interest Rates",null,{"$f":"\"Int. Down - After Shock - Derivatives - Liab. with Mgmt Action - \"&'Schedule XXIII'!$C$27","v":"Int. Down - After Shock - Derivatives - Liab. with Mgmt Action - Other currency 10"},null,null,null,null,null,null,null,null,{"$f":"'Schedule XXIII'!V27","v":0}]
["Sch XXIII","Interest Rates",null,"Int. Down - After Shock - Derivatives - Liab. with Mgmt. Action - Total",null,null,null,null,null,null,null,null,{"$f":"'Schedule XXIII'!V28","v":0}]
["Sch XXIII","Interest Rates",null,"Other currency 1",null,null,null,null,null,null,null,null,{"$f":"'Schedule XXIII'!C43","v":"Other currency 1"}]
["Sch XXIII","Interest Rates",null,"Other currency 2",null,null,null,null,null,null,null,null,{"$f":"'Schedule XXIII'!C44","v":"Other currency 2"}]
["Sch XXIII","Interest Rates",null,"Other currency 3",null,null,null,null,null,null,null,null,{"$f":"'Schedule XXIII'!C45","v":"Other currency 3"}]
["Sch XXIII","Interest Rates",null,"Other currency 4",null,null,null,null,null,null,null,null,{"$f":"'Schedule XXIII'!C46","v":"Other currency 4"}]
["Sch XXIII","Interest Rates",null,"Other currency 5",null,null,null,null,null,null,null,null,{"$f":"'Schedule XXIII'!C47","v":"Other currency 5"}]
["Sch XXIII","Interest Rates",null,"Other currency 6",null,null,null,null,null,null,null,null,{"$f":"'Schedule XXIII'!C48","v":"Other currency 6"}]
["Sch XXIII","Interest Rates",null,"Other currency 7",null,null,null,null,null,null,null,null,{"$f":"'Schedule XXIII'!C49","v":"Other currency 7"}]
["Sch XXIII","Interest Rates",null,"Other currency 8",null,null,null,null,null,null,null,null,{"$f":"'Schedule XXIII'!C50","v":"Other currency 8"}]
["Sch XXIII","Interest Rates",null,"Other currency 9",null,null,null,null,null,null,null,null,{"$f":"'Schedule XXIII'!C51","v":"Other currency 9"}]
["Sch XXIII","Interest Rates",null,"Other currency 10",null,null,null,null,null,null,null,null,{"$f":"'Schedule XXIII'!C52","v":"Other currency 10"}]
["Sch XXIII","Interest Rates",null,"Int. Up - Before Shock - Other - Qualifying Assets - United States Dollars",null,null,null,null,null,null,null,null,{"$f":"'Schedule XXIII'!E35","v":0}]
["Sch XXIII","Interest Rates",null,"Int. Up - Before Shock - Other - Qualifying Assets - Euro",null,null,null,null,null,null,null,null,{"$f":"'Schedule XXIII'!E36","v":0}]
["Sch XXIII","Interest Rates",null,"Int. Up - Before Shock - Other - Qualifying Assets - United Kingdom Pounds",null,null,null,null,null,null,null,null,{"$f":"'Schedule XXIII'!E37","v":0}]
["Sch XXIII","Interest Rates",null,"Int. Up - Before Shock - Other - Qualifying Assets - Japan Yen",null,null,null,null,null,null,null,null,{"$f":"'Schedule XXIII'!E38","v":0}]
["Sch XXIII","Interest Rates",null,"Int. Up - Before Shock - Other - Qualifying Assets - Canada Dollars",null,null,null,null,null,null,null,null,{"$f":"'Schedule XXIII'!E39","v":0}]
["Sch XXIII","Interest Rates",null,"Int. Up - Before Shock - Other - Qualifying Assets - Swiss Francs",null,null,null,null,null,null,null,null,{"$f":"'Schedule XXIII'!E40","v":0}]
["Sch XXIII","Interest Rates",null,"Int. Up - Before Shock - Other - Qualifying Assets - Australia Dollar",null,null,null,null,null,null,null,null,{"$f":"'Schedule XXIII'!E41","v":0}]
["Sch XXIII","Interest Rates",null,"Int. Up - Before Shock - Other - Qualifying Assets - New Zealand Dollar",null,null,null,null,null,null,null,null,{"$f":"'Schedule XXIII'!E42","v":0}]
["Sch XXIII","Interest Rates",null,{"$f":"\"Int. Up - Before Shock - Other - Qualifying Assets - \"&'Schedule XXIII'!$C$18","v":"Int. Up - Before Shock - Other - Qualifying Assets - Other currency 1"},null,null,null,null,null,null,null,null,{"$f":"'Schedule XXIII'!E43","v":0}]
["Sch XXIII","Interest Rates",null,{"$f":"\"Int. Up - Before Shock - Other - Qualifying Assets - \"&'Schedule XXIII'!$C$19","v":"Int. Up - Before Shock - Other - Qualifying Assets - Other currency 2"},null,null,null,null,null,null,null,null,{"$f":"'Schedule XXIII'!E44","v":0}]
["Sch XXIII","Interest Rates",null,{"$f":"\"Int. Up - Before Shock - Other - Qualifying Assets - \"&'Schedule XXIII'!$C$20","v":"Int. Up - Before Shock - Other - Qualifying Assets - Other currency 3"},null,null,null,null,null,null,null,null,{"$f":"'Schedule XXIII'!E45","v":0}]
["Sch XXIII","Interest Rates",null,{"$f":"\"Int. Up - Before Shock - Other - Qualifying Assets - \"&'Schedule XXIII'!$C$21","v":"Int. Up - Before Shock - Other - Qualifying Assets - Other currency 4"},null,null,null,null,null,null,null,null,{"$f":"'Schedule XXIII'!E46","v":0}]
["Sch XXIII","Interest Rates",null,{"$f":"\"Int. Up - Before Shock - Other - Qualifying Assets - \"&'Schedule XXIII'!$C$22","v":"Int. Up - Before Shock - Other - Qualifying Assets - Other currency 5"},null,null,null,null,null,null,null,null,{"$f":"'Schedule XXIII'!E47","v":0}]
["Sch XXIII","Interest Rates",null,{"$f":"\"Int. Up - Before Shock - Other - Qualifying Assets - \"&'Schedule XXIII'!$C$23","v":"Int. Up - Before Shock - Other - Qualifying Assets - Other currency 6"},null,null,null,null,null,null,null,null,{"$f":"'Schedule XXIII'!E48","v":0}]
["Sch XXIII","Interest Rates",null,{"$f":"\"Int. Up - Before Shock - Other - Qualifying Assets - \"&'Schedule XXIII'!$C$24","v":"Int. Up - Before Shock - Other - Qualifying Assets - Other currency 7"},null,null,null,null,null,null,null,null,{"$f":"'Schedule XXIII'!E49","v":0}]
["Sch XXIII","Interest Rates",null,{"$f":"\"Int. Up - Before Shock - Other - Qualifying Assets - \"&'Schedule XXIII'!$C$25","v":"Int. Up - Before Shock - Other - Qualifying Assets - Other currency 8"},null,null,null,null,null,null,null,null,{"$f":"'Schedule XXIII'!E50","v":0}]
["Sch XXIII","Interest Rates",null,{"$f":"\"Int. Up - Before Shock - Other - Qualifying Assets - \"&'Schedule XXIII'!$C$26","v":"Int. Up - Before Shock - Other - Qualifying Assets - Other currency 9"},null,null,null,null,null,null,null,null,{"$f":"'Schedule XXIII'!E51","v":0}]
["Sch XXIII","Interest Rates",null,{"$f":"\"Int. Up - Before Shock - Other - Qualifying Assets - \"&'Schedule XXIII'!$C$27","v":"Int. Up - Before Shock - Other - Qualifying Assets - Other currency 10"},null,null,null,null,null,null,null,null,{"$f":"'Schedule XXIII'!E52","v":0}]
["Sch XXIII","Interest Rates",null,"Int. Up - Before Shock - Other - Qualifying Assets - Total",null,null,null,null,null,null,null,null,{"$f":"'Schedule XXIII'!E53","v":0}]
["Sch XXIII","Interest Rates",null,"Int. Up - After Shock - Other - Qualifying Assets - United States Dollars",null,null,null,null,null,null,null,null,{"$f":"'Schedule XXIII'!F35","v":0}]
["Sch XXIII","Interest Rates",null,"Int. Up - After Shock - Other - Qualifying Assets - Euro",null,null,null,null,null,null,null,null,{"$f":"'Schedule XXIII'!F36","v":0}]
["Sch XXIII","Interest Rates",null,"Int. Up - After Shock - Other - Qualifying Assets - United Kingdom Pounds",null,null,null,null,null,null,null,null,{"$f":"'Schedule XXIII'!F37","v":0}]
["Sch XXIII","Interest Rates",null,"Int. Up - After Shock - Other - Qualifying Assets - Japan Yen",null,null,null,null,null,null,null,null,{"$f":"'Schedule XXIII'!F38","v":0}]
["Sch XXIII","Interest Rates",null,"Int. Up - After Shock - Other - Qualifying Assets - Canada Dollars",null,null,null,null,null,null,null,null,{"$f":"'Schedule XXIII'!F39","v":0}]
["Sch XXIII","Interest Rates",null,"Int. Up - After Shock - Other - Qualifying Assets - Swiss Francs",null,null,null,null,null,null,null,null,{"$f":"'Schedule XXIII'!F40","v":0}]
["Sch XXIII","Interest Rates",null,"Int. Up - After Shock - Other - Qualifying Assets - Australia Dollar",null,null,null,null,null,null,null,null,{"$f":"'Schedule XXIII'!F41","v":0}]
["Sch XXIII","Interest Rates",null,"Int. Up - After Shock - Other - Qualifying Assets - New Zealand Dollar",null,null,null,null,null,null,null,null,{"$f":"'Schedule XXIII'!F42","v":0}]
["Sch XXIII","Interest Rates",null,{"$f":"\"Int. Up - After Shock - Other - Qualifying Assets - \"&'Schedule XXIII'!$C$18","v":"Int. Up - After Shock - Other - Qualifying Assets - Other currency 1"},null,null,null,null,null,null,null,null,{"$f":"'Schedule XXIII'!F43","v":0}]
["Sch XXIII","Interest Rates",null,{"$f":"\"Int. Up - After Shock - Other - Qualifying Assets - \"&'Schedule XXIII'!$C$19","v":"Int. Up - After Shock - Other - Qualifying Assets - Other currency 2"},null,null,null,null,null,null,null,null,{"$f":"'Schedule XXIII'!F44","v":0}]
["Sch XXIII","Interest Rates",null,{"$f":"\"Int. Up - After Shock - Other - Qualifying Assets - \"&'Schedule XXIII'!$C$20","v":"Int. Up - After Shock - Other - Qualifying Assets - Other currency 3"},null,null,null,null,null,null,null,null,{"$f":"'Schedule XXIII'!F45","v":0}]
["Sch XXIII","Interest Rates",null,{"$f":"\"Int. Up - After Shock - Other - Qualifying Assets - \"&'Schedule XXIII'!$C$21","v":"Int. Up - After Shock - Other - Qualifying Assets - Other currency 4"},null,null,null,null,null,null,null,null,{"$f":"'Schedule XXIII'!F46","v":0}]
["Sch XXIII","Interest Rates",null,{"$f":"\"Int. Up - After Shock - Other - Qualifying Assets - \"&'Schedule XXIII'!$C$22","v":"Int. Up - After Shock - Other - Qualifying Assets - Other currency 5"},null,null,null,null,null,null,null,null,{"$f":"'Schedule XXIII'!F47","v":0}]
["Sch XXIII","Interest Rates",null,{"$f":"\"Int. Up - After Shock - Other - Qualifying Assets - \"&'Schedule XXIII'!$C$23","v":"Int. Up - After Shock - Other - Qualifying Assets - Other currency 6"},null,null,null,null,null,null,null,null,{"$f":"'Schedule XXIII'!F48","v":0}]
["Sch XXIII","Interest Rates",null,{"$f":"\"Int. Up - After Shock - Other - Qualifying Assets - \"&'Schedule XXIII'!$C$24","v":"Int. Up - After Shock - Other - Qualifying Assets - Other currency 7"},null,null,null,null,null,null,null,null,{"$f":"'Schedule XXIII'!F49","v":0}]
["Sch XXIII","Interest Rates",null,{"$f":"\"Int. Up - After Shock - Other - Qualifying Assets - \"&'Schedule XXIII'!$C$25","v":"Int. Up - After Shock - Other - Qualifying Assets - Other currency 8"},null,null,null,null,null,null,null,null,{"$f":"'Schedule XXIII'!F50","v":0}]
["Sch XXIII","Interest Rates",null,{"$f":"\"Int. Up - After Shock - Other - Qualifying Assets - \"&'Schedule XXIII'!$C$26","v":"Int. Up - After Shock - Other - Qualifying Assets - Other currency 9"},null,null,null,null,null,null,null,null,{"$f":"'Schedule XXIII'!F51","v":0}]
["Sch XXIII","Interest Rates",null,{"$f":"\"Int. Up - After Shock - Other - Qualifying Assets - \"&'Schedule XXIII'!$C$27","v":"Int. Up - After Shock - Other - Qualifying Assets - Other currency 10"},null,null,null,null,null,null,null,null,{"$f":"'Schedule XXIII'!F52","v":0}]
["Sch XXIII","Interest Rates",null,"Int. Up - After Shock - Other - Qualifying Assets - Total",null,null,null,null,null,null,null,null,{"$f":"'Schedule XXIII'!F53","v":0}]
["Sch XXIII","Interest Rates",null,"Int. Up - Before Shock - Other - Liab. w/o Mgmt. Action - United States Dollars",null,null,null,null,null,null,null,null,{"$f":"'Schedule XXIII'!H35","v":0}]
["Sch XXIII","Interest Rates",null,"Int. Up - Before Shock - Other - Liab. w/o Mgmt. Action - Euro",null,null,null,null,null,null,null,null,{"$f":"'Schedule XXIII'!H36","v":0}]
["Sch XXIII","Interest Rates",null,"Int. Up - Before Shock - Other - Liab. w/o Mgmt. Action - United Kingdom Pounds",null,null,null,null,null,null,null,null,{"$f":"'Schedule XXIII'!H37","v":0}]
["Sch XXIII","Interest Rates",null,"Int. Up - Before Shock - Other - Liab. w/o Mgmt. Action - Japan Yen",null,null,null,null,null,null,null,null,{"$f":"'Schedule XXIII'!H38","v":0}]
["Sch XXIII","Interest Rates",null,"Int. Up - Before Shock - Other - Liab. w/o Mgmt. Action - Canada Dollars",null,null,null,null,null,null,null,null,{"$f":"'Schedule XXIII'!H39","v":0}]
["Sch XXIII","Interest Rates",null,"Int. Up - Before Shock - Other - Liab. w/o Mgmt. Action - Swiss Francs",null,null,null,null,null,null,null,null,{"$f":"'Schedule XXIII'!H40","v":0}]
["Sch XXIII","Interest Rates",null,"Int. Up - Before Shock - Other - Liab. w/o Mgmt. Action - Australia Dollar",null,null,null,null,null,null,null,null,{"$f":"'Schedule XXIII'!H41","v":0}]
["Sch XXIII","Interest Rates",null,"Int. Up - Before Shock - Other - Liab. w/o Mgmt. Action - New Zealand Dollar",null,null,null,null,null,null,null,null,{"$f":"'Schedule XXIII'!H42","v":0}]
["Sch XXIII","Interest Rates",null,{"$f":"\"Int. Up - Before Shock - Other - Liab. w/o Mgmt Action - \"&'Schedule XXIII'!$C$18","v":"Int. Up - Before Shock - Other - Liab. w/o Mgmt Action - Other currency 1"},null,null,null,null,null,null,null,null,{"$f":"'Schedule XXIII'!H43","v":0}]
["Sch XXIII","Interest Rates",null,{"$f":"\"Int. Up - Before Shock - Other - Liab. w/o Mgmt Action - \"&'Schedule XXIII'!$C$19","v":"Int. Up - Before Shock - Other - Liab. w/o Mgmt Action - Other currency 2"},null,null,null,null,null,null,null,null,{"$f":"'Schedule XXIII'!H44","v":0}]
["Sch XXIII","Interest Rates",null,{"$f":"\"Int. Up - Before Shock - Other - Liab. w/o Mgmt Action - \"&'Schedule XXIII'!$C$20","v":"Int. Up - Before Shock - Other - Liab. w/o Mgmt Action - Other currency 3"},null,null,null,null,null,null,null,null,{"$f":"'Schedule XXIII'!H45","v":0}]
["Sch XXIII","Interest Rates",null,{"$f":"\"Int. Up - Before Shock - Other - Liab. w/o Mgmt Action - \"&'Schedule XXIII'!$C$21","v":"Int. Up - Before Shock - Other - Liab. w/o Mgmt Action - Other currency 4"},null,null,null,null,null,null,null,null,{"$f":"'Schedule XXIII'!H46","v":0}]
["Sch XXIII","Interest Rates",null,{"$f":"\"Int. Up - Before Shock - Other - Liab. w/o Mgmt Action - \"&'Schedule XXIII'!$C$22","v":"Int. Up - Before Shock - Other - Liab. w/o Mgmt Action - Other currency 5"},null,null,null,null,null,null,null,null,{"$f":"'Schedule XXIII'!H47","v":0}]
["Sch XXIII","Interest Rates",null,{"$f":"\"Int. Up - Before Shock - Other - Liab. w/o Mgmt Action - \"&'Schedule XXIII'!$C$23","v":"Int. Up - Before Shock - Other - Liab. w/o Mgmt Action - Other currency 6"},null,null,null,null,null,null,null,null,{"$f":"'Schedule XXIII'!H48","v":0}]
["Sch XXIII","Interest Rates",null,{"$f":"\"Int. Up - Before Shock - Other - Liab. w/o Mgmt Action - \"&'Schedule XXIII'!$C$24","v":"Int. Up - Before Shock - Other - Liab. w/o Mgmt Action - Other currency 7"},null,null,null,null,null,null,null,null,{"$f":"'Schedule XXIII'!H49","v":0}]
["Sch XXIII","Interest Rates",null,{"$f":"\"Int. Up - Before Shock - Other - Liab. w/o Mgmt Action - \"&'Schedule XXIII'!$C$25","v":"Int. Up - Before Shock - Other - Liab. w/o Mgmt Action - Other currency 8"},null,null,null,null,null,null,null,null,{"$f":"'Schedule XXIII'!H50","v":0}]
["Sch XXIII","Interest Rates",null,{"$f":"\"Int. Up - Before Shock - Other - Liab. w/o Mgmt Action - \"&'Schedule XXIII'!$C$26","v":"Int. Up - Before Shock - Other - Liab. w/o Mgmt Action - Other currency 9"},null,null,null,null,null,null,null,null,{"$f":"'Schedule XXIII'!H51","v":0}]
["Sch XXIII","Interest Rates",null,{"$f":"\"Int. Up - Before Shock - Other - Liab. w/o Mgmt Action - \"&'Schedule XXIII'!$C$27","v":"Int. Up - Before Shock - Other - Liab. w/o Mgmt Action - Other currency 10"},null,null,null,null,null,null,null,null,{"$f":"'Schedule XXIII'!H52","v":0}]
["Sch XXIII","Interest Rates",null,"Int. Up - Before Shock - Other - Liab. w/o Mgmt. Action - Total",null,null,null,null,null,null,null,null,{"$f":"'Schedule XXIII'!H53","v":0}]
["Sch XXIII","Interest Rates",null,"Int. Up - After Shock - Other - Liab. w/o Mgmt. Action - United States Dollars",null,null,null,null,null,null,null,null,{"$f":"'Schedule XXIII'!I35","v":0}]
["Sch XXIII","Interest Rates",null,"Int. Up - After Shock - Other - Liab. w/o Mgmt. Action - Euro",null,null,null,null,null,null,null,null,{"$f":"'Schedule XXIII'!I36","v":0}]
["Sch XXIII","Interest Rates",null,"Int. Up - After Shock - Other - Liab. w/o Mgmt. Action - United Kingdom Pounds",null,null,null,null,null,null,null,null,{"$f":"'Schedule XXIII'!I37","v":0}]
["Sch XXIII","Interest Rates",null,"Int. Up - After Shock - Other - Liab. w/o Mgmt. Action - Japan Yen",null,null,null,null,null,null,null,null,{"$f":"'Schedule XXIII'!I38","v":0}]
["Sch XXIII","Interest Rates",null,"Int. Up - After Shock - Other - Liab. w/o Mgmt. Action - Canada Dollars",null,null,null,null,null,null,null,null,{"$f":"'Schedule XXIII'!I39","v":0}]
["Sch XXIII","Interest Rates",null,"Int. Up - After Shock - Other - Liab. w/o Mgmt. Action - Swiss Francs",null,null,null,null,null,null,null,null,{"$f":"'Schedule XXIII'!I40","v":0}]
["Sch XXIII","Interest Rates",null,"Int. Up - After Shock - Other - Liab. w/o Mgmt. Action - Australia Dollar",null,null,null,null,null,null,null,null,{"$f":"'Schedule XXIII'!I41","v":0}]
["Sch XXIII","Interest Rates",null,"Int. Up - After Shock - Other - Liab. w/o Mgmt. Action - New Zealand Dollar",null,null,null,null,null,null,null,null,{"$f":"'Schedule XXIII'!I42","v":0}]
["Sch XXIII","Interest Rates",null,{"$f":"\"Int. Up - After Shock - Other - Liab. w/o Mgmt Action - \"&'Schedule XXIII'!$C$18","v":"Int. Up - After Shock - Other - Liab. w/o Mgmt Action - Other currency 1"},null,null,null,null,null,null,null,null,{"$f":"'Schedule XXIII'!I43","v":0}]
["Sch XXIII","Interest Rates",null,{"$f":"\"Int. Up - After Shock - Other - Liab. w/o Mgmt Action - \"&'Schedule XXIII'!$C$19","v":"Int. Up - After Shock - Other - Liab. w/o Mgmt Action - Other currency 2"},null,null,null,null,null,null,null,null,{"$f":"'Schedule XXIII'!I44","v":0}]
["Sch XXIII","Interest Rates",null,{"$f":"\"Int. Up - After Shock - Other - Liab. w/o Mgmt Action - \"&'Schedule XXIII'!$C$20","v":"Int. Up - After Shock - Other - Liab. w/o Mgmt Action - Other currency 3"},null,null,null,null,null,null,null,null,{"$f":"'Schedule XXIII'!I45","v":0}]
["Sch XXIII","Interest Rates",null,{"$f":"\"Int. Up - After Shock - Other - Liab. w/o Mgmt Action - \"&'Schedule XXIII'!$C$21","v":"Int. Up - After Shock - Other - Liab. w/o Mgmt Action - Other currency 4"},null,null,null,null,null,null,null,null,{"$f":"'Schedule XXIII'!I46","v":0}]
["Sch XXIII","Interest Rates",null,{"$f":"\"Int. Up - After Shock - Other - Liab. w/o Mgmt Action - \"&'Schedule XXIII'!$C$22","v":"Int. Up - After Shock - Other - Liab. w/o Mgmt Action - Other currency 5"},null,null,null,null,null,null,null,null,{"$f":"'Schedule XXIII'!I47","v":0}]
["Sch XXIII","Interest Rates",null,{"$f":"\"Int. Up - After Shock - Other - Liab. w/o Mgmt Action - \"&'Schedule XXIII'!$C$23","v":"Int. Up - After Shock - Other - Liab. w/o Mgmt Action - Other currency 6"},null,null,null,null,null,null,null,null,{"$f":"'Schedule XXIII'!I48","v":0}]
["Sch XXIII","Interest Rates",null,{"$f":"\"Int. Up - After Shock - Other - Liab. w/o Mgmt Action - \"&'Schedule XXIII'!$C$24","v":"Int. Up - After Shock - Other - Liab. w/o Mgmt Action - Other currency 7"},null,null,null,null,null,null,null,null,{"$f":"'Schedule XXIII'!I49","v":0}]
["Sch XXIII","Interest Rates",null,{"$f":"\"Int. Up - After Shock - Other - Liab. w/o Mgmt Action - \"&'Schedule XXIII'!$C$25","v":"Int. Up - After Shock - Other - Liab. w/o Mgmt Action - Other currency 8"},null,null,null,null,null,null,null,null,{"$f":"'Schedule XXIII'!I50","v":0}]
["Sch XXIII","Interest Rates",null,{"$f":"\"Int. Up - After Shock - Other - Liab. w/o Mgmt Action - \"&'Schedule XXIII'!$C$26","v":"Int. Up - After Shock - Other - Liab. w/o Mgmt Action - Other currency 9"},null,null,null,null,null,null,null,null,{"$f":"'Schedule XXIII'!I51","v":0}]
["Sch XXIII","Interest Rates",null,{"$f":"\"Int. Up - After Shock - Other - Liab. w/o Mgmt Action - \"&'Schedule XXIII'!$C$27","v":"Int. Up - After Shock - Other - Liab. w/o Mgmt Action - Other currency 10"},null,null,null,null,null,null,null,null,{"$f":"'Schedule XXIII'!I52","v":0}]
["Sch XXIII","Interest Rates",null,"Int. Up - After Shock - Other - Liab. w/o Mgmt. Action - Total",null,null,null,null,null,null,null,null,{"$f":"'Schedule XXIII'!I53","v":0}]
["Sch XXIII","Interest Rates",null,"Int. Up - After Shock - Other - Liab. with Mgmt. Action - United States Dollars",null,null,null,null,null,null,null,null,{"$f":"'Schedule XXIII'!K35","v":0}]
["Sch XXIII","Interest Rates",null,"Int. Up - After Shock - Other - Liab. with Mgmt. Action - Euro",null,null,null,null,null,null,null,null,{"$f":"'Schedule XXIII'!K36","v":0}]
["Sch XXIII","Interest Rates",null,"Int. Up - After Shock - Other - Liab. with Mgmt. Action - United Kingdom Pounds",null,null,null,null,null,null,null,null,{"$f":"'Schedule XXIII'!K37","v":0}]
["Sch XXIII","Interest Rates",null,"Int. Up - After Shock - Other - Liab. with Mgmt. Action - Japan Yen",null,null,null,null,null,null,null,null,{"$f":"'Schedule XXIII'!K38","v":0}]
["Sch XXIII","Interest Rates",null,"Int. Up - After Shock - Other - Liab. with Mgmt. Action - Canada Dollars",null,null,null,null,null,null,null,null,{"$f":"'Schedule XXIII'!K39","v":0}]
["Sch XXIII","Interest Rates",null,"Int. Up - After Shock - Other - Liab. with Mgmt. Action - Swiss Francs",null,null,null,null,null,null,null,null,{"$f":"'Schedule XXIII'!K40","v":0}]
["Sch XXIII","Interest Rates",null,"Int. Up - After Shock - Other - Liab. with Mgmt. Action - Australia Dollar",null,null,null,null,null,null,null,null,{"$f":"'Schedule XXIII'!K41","v":0}]
["Sch XXIII","Interest Rates",null,"Int. Up - After Shock - Other - Liab. with Mgmt. Action - New Zealand Dollar",null,null,null,null,null,null,null,null,{"$f":"'Schedule XXIII'!K42","v":0}]
["Sch XXIII","Interest Rates",null,{"$f":"\"Int. Up - After Shock - Other - Liab. with Mgmt Action - \"&'Schedule XXIII'!$C$18","v":"Int. Up - After Shock - Other - Liab. with Mgmt Action - Other currency 1"},null,null,null,null,null,null,null,null,{"$f":"'Schedule XXIII'!K43","v":0}]
["Sch XXIII","Interest Rates",null,{"$f":"\"Int. Up - After Shock - Other - Liab. with Mgmt Action - \"&'Schedule XXIII'!$C$19","v":"Int. Up - After Shock - Other - Liab. with Mgmt Action - Other currency 2"},null,null,null,null,null,null,null,null,{"$f":"'Schedule XXIII'!K44","v":0}]
["Sch XXIII","Interest Rates",null,{"$f":"\"Int. Up - After Shock - Other - Liab. with Mgmt Action - \"&'Schedule XXIII'!$C$20","v":"Int. Up - After Shock - Other - Liab. with Mgmt Action - Other currency 3"},null,null,null,null,null,null,null,null,{"$f":"'Schedule XXIII'!K45","v":0}]
["Sch XXIII","Interest Rates",null,{"$f":"\"Int. Up - After Shock - Other - Liab. with Mgmt Action - \"&'Schedule XXIII'!$C$21","v":"Int. Up - After Shock - Other - Liab. with Mgmt Action - Other currency 4"},null,null,null,null,null,null,null,null,{"$f":"'Schedule XXIII'!K46","v":0}]
["Sch XXIII","Interest Rates",null,{"$f":"\"Int. Up - After Shock - Other - Liab. with Mgmt Action - \"&'Schedule XXIII'!$C$22","v":"Int. Up - After Shock - Other - Liab. with Mgmt Action - Other currency 5"},null,null,null,null,null,null,null,null,{"$f":"'Schedule XXIII'!K47","v":0}]
["Sch XXIII","Interest Rates",null,{"$f":"\"Int. Up - After Shock - Other - Liab. with Mgmt Action - \"&'Schedule XXIII'!$C$23","v":"Int. Up - After Shock - Other - Liab. with Mgmt Action - Other currency 6"},null,null,null,null,null,null,null,null,{"$f":"'Schedule XXIII'!K48","v":0}]
["Sch XXIII","Interest Rates",null,{"$f":"\"Int. Up - After Shock - Other - Liab. with Mgmt Action - \"&'Schedule XXIII'!$C$24","v":"Int. Up - After Shock - Other - Liab. with Mgmt Action - Other currency 7"},null,null,null,null,null,null,null,null,{"$f":"'Schedule XXIII'!K49","v":0}]
["Sch XXIII","Interest Rates",null,{"$f":"\"Int. Up - After Shock - Other - Liab. with Mgmt Action - \"&'Schedule XXIII'!$C$25","v":"Int. Up - After Shock - Other - Liab. with Mgmt Action - Other currency 8"},null,null,null,null,null,null,null,null,{"$f":"'Schedule XXIII'!K50","v":0}]
["Sch XXIII","Interest Rates",null,{"$f":"\"Int. Up - After Shock - Other - Liab. with Mgmt Action - \"&'Schedule XXIII'!$C$26","v":"Int. Up - After Shock - Other - Liab. with Mgmt Action - Other currency 9"},null,null,null,null,null,null,null,null,{"$f":"'Schedule XXIII'!K51","v":0}]
["Sch XXIII","Interest Rates",null,{"$f":"\"Int. Up - After Shock - Other - Liab. with Mgmt Action - \"&'Schedule XXIII'!$C$27","v":"Int. Up - After Shock - Other - Liab. with Mgmt Action - Other currency 10"},null,null,null,null,null,null,null,null,{"$f":"'Schedule XXIII'!K52","v":0}]
["Sch XXIII","Interest Rates",null,"Int. Up - After Shock - Other - Liab. with Mgmt. Action - Total",null,null,null,null,null,null,null,null,{"$f":"'Schedule XXIII'!K53","v":0}]
["Sch XXIII","Interest Rates",null,"Int. Up - Before Shock - Derivatives - Qualifying Assets - United States Dollars",null,null,null,null,null,null,null,null,{"$f":"'Schedule XXIII'!M35","v":0}]
["Sch XXIII","Interest Rates",null,"Int. Up - Before Shock - Derivatives - Qualifying Assets - Euro",null,null,null,null,null,null,null,null,{"$f":"'Schedule XXIII'!M36","v":0}]
["Sch XXIII","Interest Rates",null,"Int. Up - Before Shock - Derivatives - Qualifying Assets - United Kingdom Pounds",null,null,null,null,null,null,null,null,{"$f":"'Schedule XXIII'!M37","v":0}]
["Sch XXIII","Interest Rates",null,"Int. Up - Before Shock - Derivatives - Qualifying Assets - Japan Yen",null,null,null,null,null,null,null,null,{"$f":"'Schedule XXIII'!M38","v":0}]
["Sch XXIII","Interest Rates",null,"Int. Up - Before Shock - Derivatives - Qualifying Assets - Canada Dollars",null,null,null,null,null,null,null,null,{"$f":"'Schedule XXIII'!M39","v":0}]
["Sch XXIII","Interest Rates",null,"Int. Up - Before Shock - Derivatives - Qualifying Assets - Swiss Francs",null,null,null,null,null,null,null,null,{"$f":"'Schedule XXIII'!M40","v":0}]
["Sch XXIII","Interest Rates",null,"Int. Up - Before Shock - Derivatives - Qualifying Assets - Australia Dollar",null,null,null,null,null,null,null,null,{"$f":"'Schedule XXIII'!M41","v":0}]
["Sch XXIII","Interest Rates",null,"Int. Up - Before Shock - Derivatives - Qualifying Assets - New Zealand Dollar",null,null,null,null,null,null,null,null,{"$f":"'Schedule XXIII'!M42","v":0}]
["Sch XXIII","Interest Rates",null,{"$f":"\"Int. Up - Before Shock - Derivatives - Qualifying Assets - \"&'Schedule XXIII'!$C$18","v":"Int. Up - Before Shock - Derivatives - Qualifying Assets - Other currency 1"},null,null,null,null,null,null,null,null,{"$f":"'Schedule XXIII'!M43","v":0}]
["Sch XXIII","Interest Rates",null,{"$f":"\"Int. Up - Before Shock - Derivatives - Qualifying Assets - \"&'Schedule XXIII'!$C$19","v":"Int. Up - Before Shock - Derivatives - Qualifying Assets - Other currency 2"},null,null,null,null,null,null,null,null,{"$f":"'Schedule XXIII'!M44","v":0}]
["Sch XXIII","Interest Rates",null,{"$f":"\"Int. Up - Before Shock - Derivatives - Qualifying Assets - \"&'Schedule XXIII'!$C$20","v":"Int. Up - Before Shock - Derivatives - Qualifying Assets - Other currency 3"},null,null,null,null,null,null,null,null,{"$f":"'Schedule XXIII'!M45","v":0}]
["Sch XXIII","Interest Rates",null,{"$f":"\"Int. Up - Before Shock - Derivatives - Qualifying Assets - \"&'Schedule XXIII'!$C$21","v":"Int. Up - Before Shock - Derivatives - Qualifying Assets - Other currency 4"},null,null,null,null,null,null,null,null,{"$f":"'Schedule XXIII'!M46","v":0}]
["Sch XXIII","Interest Rates",null,{"$f":"\"Int. Up - Before Shock - Derivatives - Qualifying Assets - \"&'Schedule XXIII'!$C$22","v":"Int. Up - Before Shock - Derivatives - Qualifying Assets - Other currency 5"},null,null,null,null,null,null,null,null,{"$f":"'Schedule XXIII'!M47","v":0}]
["Sch XXIII","Interest Rates",null,{"$f":"\"Int. Up - Before Shock - Derivatives - Qualifying Assets - \"&'Schedule XXIII'!$C$23","v":"Int. Up - Before Shock - Derivatives - Qualifying Assets - Other currency 6"},null,null,null,null,null,null,null,null,{"$f":"'Schedule XXIII'!M48","v":0}]
["Sch XXIII","Interest Rates",null,{"$f":"\"Int. Up - Before Shock - Derivatives - Qualifying Assets - \"&'Schedule XXIII'!$C$24","v":"Int. Up - Before Shock - Derivatives - Qualifying Assets - Other currency 7"},null,null,null,null,null,null,null,null,{"$f":"'Schedule XXIII'!M49","v":0}]
["Sch XXIII","Interest Rates",null,{"$f":"\"Int. Up - Before Shock - Derivatives - Qualifying Assets - \"&'Schedule XXIII'!$C$25","v":"Int. Up - Before Shock - Derivatives - Qualifying Assets - Other currency 8"},null,null,null,null,null,null,null,null,{"$f":"'Schedule XXIII'!M50","v":0}]
["Sch XXIII","Interest Rates",null,{"$f":"\"Int. Up - Before Shock - Derivatives - Qualifying Assets - \"&'Schedule XXIII'!$C$26","v":"Int. Up - Before Shock - Derivatives - Qualifying Assets - Other currency 9"},null,null,null,null,null,null,null,null,{"$f":"'Schedule XXIII'!M51","v":0}]
["Sch XXIII","Interest Rates",null,{"$f":"\"Int. Up - Before Shock - Derivatives - Qualifying Assets - \"&'Schedule XXIII'!$C$27","v":"Int. Up - Before Shock - Derivatives - Qualifying Assets - Other currency 10"},null,null,null,null,null,null,null,null,{"$f":"'Schedule XXIII'!M52","v":0}]
["Sch XXIII","Interest Rates",null,"Int. Up - Before Shock - Derivatives - Qualifying Assets - Total",null,null,null,null,null,null,null,null,{"$f":"'Schedule XXIII'!M53","v":0}]
["Sch XXIII","Interest Rates",null,"Int. Up - After Shock - Derivatives - Qualifying Assets - United States Dollars",null,null,null,null,null,null,null,null,{"$f":"'Schedule XXIII'!N35","v":0}]
["Sch XXIII","Interest Rates",null,"Int. Up - After Shock - Derivatives - Qualifying Assets - Euro",null,null,null,null,null,null,null,null,{"$f":"'Schedule XXIII'!N36","v":0}]
["Sch XXIII","Interest Rates",null,"Int. Up - After Shock - Derivatives - Qualifying Assets - United Kingdom Pounds",null,null,null,null,null,null,null,null,{"$f":"'Schedule XXIII'!N37","v":0}]
["Sch XXIII","Interest Rates",null,"Int. Up - After Shock - Derivatives - Qualifying Assets - Japan Yen",null,null,null,null,null,null,null,null,{"$f":"'Schedule XXIII'!N38","v":0}]
["Sch XXIII","Interest Rates",null,"Int. Up - After Shock - Derivatives - Qualifying Assets - Canada Dollars",null,null,null,null,null,null,null,null,{"$f":"'Schedule XXIII'!N39","v":0}]
["Sch XXIII","Interest Rates",null,"Int. Up - After Shock - Derivatives - Qualifying Assets - Swiss Francs",null,null,null,null,null,null,null,null,{"$f":"'Schedule XXIII'!N40","v":0}]
["Sch XXIII","Interest Rates",null,"Int. Up - After Shock - Derivatives - Qualifying Assets - Australia Dollar",null,null,null,null,null,null,null,null,{"$f":"'Schedule XXIII'!N41","v":0}]
["Sch XXIII","Interest Rates",null,"Int. Up - After Shock - Derivatives - Qualifying Assets - New Zealand Dollar",null,null,null,null,null,null,null,null,{"$f":"'Schedule XXIII'!N42","v":0}]
["Sch XXIII","Interest Rates",null,{"$f":"\"Int. Up - After Shock - Derivatives - Qualifying Assets - \"&'Schedule XXIII'!$C$18","v":"Int. Up - After Shock - Derivatives - Qualifying Assets - Other currency 1"},null,null,null,null,null,null,null,null,{"$f":"'Schedule XXIII'!N43","v":0}]
["Sch XXIII","Interest Rates",null,{"$f":"\"Int. Up - After Shock - Derivatives - Qualifying Assets - \"&'Schedule XXIII'!$C$19","v":"Int. Up - After Shock - Derivatives - Qualifying Assets - Other currency 2"},null,null,null,null,null,null,null,null,{"$f":"'Schedule XXIII'!N44","v":0}]
["Sch XXIII","Interest Rates",null,{"$f":"\"Int. Up - After Shock - Derivatives - Qualifying Assets - \"&'Schedule XXIII'!$C$20","v":"Int. Up - After Shock - Derivatives - Qualifying Assets - Other currency 3"},null,null,null,null,null,null,null,null,{"$f":"'Schedule XXIII'!N45","v":0}]
["Sch XXIII","Interest Rates",null,{"$f":"\"Int. Up - After Shock - Derivatives - Qualifying Assets - \"&'Schedule XXIII'!$C$21","v":"Int. Up - After Shock - Derivatives - Qualifying Assets - Other currency 4"},null,null,null,null,null,null,null,null,{"$f":"'Schedule XXIII'!N46","v":0}]
["Sch XXIII","Interest Rates",null,{"$f":"\"Int. Up - After Shock - Derivatives - Qualifying Assets - \"&'Schedule XXIII'!$C$22","v":"Int. Up - After Shock - Derivatives - Qualifying Assets - Other currency 5"},null,null,null,null,null,null,null,null,{"$f":"'Schedule XXIII'!N47","v":0}]
["Sch XXIII","Interest Rates",null,{"$f":"\"Int. Up - After Shock - Derivatives - Qualifying Assets - \"&'Schedule XXIII'!$C$23","v":"Int. Up - After Shock - Derivatives - Qualifying Assets - Other currency 6"},null,null,null,null,null,null,null,null,{"$f":"'Schedule XXIII'!N48","v":0}]
["Sch XXIII","Interest Rates",null,{"$f":"\"Int. Up - After Shock - Derivatives - Qualifying Assets - \"&'Schedule XXIII'!$C$24","v":"Int. Up - After Shock - Derivatives - Qualifying Assets - Other currency 7"},null,null,null,null,null,null,null,null,{"$f":"'Schedule XXIII'!N49","v":0}]
["Sch XXIII","Interest Rates",null,{"$f":"\"Int. Up - After Shock - Derivatives - Qualifying Assets - \"&'Schedule XXIII'!$C$25","v":"Int. Up - After Shock - Derivatives - Qualifying Assets - Other currency 8"},null,null,null,null,null,null,null,null,{"$f":"'Schedule XXIII'!N50","v":0}]
["Sch XXIII","Interest Rates",null,{"$f":"\"Int. Up - After Shock - Derivatives - Qualifying Assets - \"&'Schedule XXIII'!$C$26","v":"Int. Up - After Shock - Derivatives - Qualifying Assets - Other currency 9"},null,null,null,null,null,null,null,null,{"$f":"'Schedule XXIII'!N51","v":0}]
["Sch XXIII","Interest Rates",null,{"$f":"\"Int. Up - After Shock - Derivatives - Qualifying Assets - \"&'Schedule XXIII'!$C$27","v":"Int. Up - After Shock - Derivatives - Qualifying Assets - Other currency 10"},null,null,null,null,null,null,null,null,{"$f":"'Schedule XXIII'!N52","v":0}]
["Sch XXIII","Interest Rates",null,"Int. Up - After Shock - Derivatives - Qualifying Assets - Total",null,null,null,null,null,null,null,null,{"$f":"'Schedule XXIII'!N53","v":0}]
["Sch XXIII","Interest Rates",null,"Int. Up - Before Shock - Derivatives - Not Qualifying Assets - United States Dollars",null,null,null,null,null,null,null,null,{"$f":"'Schedule XXIII'!P35","v":0}]
["Sch XXIII","Interest Rates",null,"Int. Up - Before Shock - Derivatives - Not Qualifying Assets - Euro",null,null,null,null,null,null,null,null,{"$f":"'Schedule XXIII'!P36","v":0}]
["Sch XXIII","Interest Rates",null,"Int. Up - Before Shock - Derivatives - Not Qualifying Assets - United Kingdom Pounds",null,null,null,null,null,null,null,null,{"$f":"'Schedule XXIII'!P37","v":0}]
["Sch XXIII","Interest Rates",null,"Int. Up - Before Shock - Derivatives - Not Qualifying Assets - Japan Yen",null,null,null,null,null,null,null,null,{"$f":"'Schedule XXIII'!P38","v":0}]
["Sch XXIII","Interest Rates",null,"Int. Up - Before Shock - Derivatives - Not Qualifying Assets - Canada Dollars",null,null,null,null,null,null,null,null,{"$f":"'Schedule XXIII'!P39","v":0}]
["Sch XXIII","Interest Rates",null,"Int. Up - Before Shock - Derivatives - Not Qualifying Assets - Swiss Francs",null,null,null,null,null,null,null,null,{"$f":"'Schedule XXIII'!P40","v":0}]
["Sch XXIII","Interest Rates",null,"Int. Up - Before Shock - Derivatives - Not Qualifying Assets - Australia Dollar",null,null,null,null,null,null,null,null,{"$f":"'Schedule XXIII'!P41","v":0}]
["Sch XXIII","Interest Rates",null,"Int. Up - Before Shock - Derivatives - Not Qualifying Assets - New Zealand Dollar",null,null,null,null,null,null,null,null,{"$f":"'Schedule XXIII'!P42","v":0}]
["Sch XXIII","Interest Rates",null,{"$f":"\"Int. Up - Before Shock - Derivatives - Not Qualifying Assets - \"&'Schedule XXIII'!$C$18","v":"Int. Up - Before Shock - Derivatives - Not Qualifying Assets - Other currency 1"},null,null,null,null,null,null,null,null,{"$f":"'Schedule XXIII'!P43","v":0}]
["Sch XXIII","Interest Rates",null,{"$f":"\"Int. Up - Before Shock - Derivatives - Not Qualifying Assets - \"&'Schedule XXIII'!$C$19","v":"Int. Up - Before Shock - Derivatives - Not Qualifying Assets - Other currency 2"},null,null,null,null,null,null,null,null,{"$f":"'Schedule XXIII'!P44","v":0}]
["Sch XXIII","Interest Rates",null,{"$f":"\"Int. Up - Before Shock - Derivatives - Not Qualifying Assets - \"&'Schedule XXIII'!$C$20","v":"Int. Up - Before Shock - Derivatives - Not Qualifying Assets - Other currency 3"},null,null,null,null,null,null,null,null,{"$f":"'Schedule XXIII'!P45","v":0}]
["Sch XXIII","Interest Rates",null,{"$f":"\"Int. Up - Before Shock - Derivatives - Not Qualifying Assets - \"&'Schedule XXIII'!$C$21","v":"Int. Up - Before Shock - Derivatives - Not Qualifying Assets - Other currency 4"},null,null,null,null,null,null,null,null,{"$f":"'Schedule XXIII'!P46","v":0}]
["Sch XXIII","Interest Rates",null,{"$f":"\"Int. Up - Before Shock - Derivatives - Not Qualifying Assets - \"&'Schedule XXIII'!$C$22","v":"Int. Up - Before Shock - Derivatives - Not Qualifying Assets - Other currency 5"},null,null,null,null,null,null,null,null,{"$f":"'Schedule XXIII'!P47","v":0}]
["Sch XXIII","Interest Rates",null,{"$f":"\"Int. Up - Before Shock - Derivatives - Not Qualifying Assets - \"&'Schedule XXIII'!$C$23","v":"Int. Up - Before Shock - Derivatives - Not Qualifying Assets - Other currency 6"},null,null,null,null,null,null,null,null,{"$f":"'Schedule XXIII'!P48","v":0}]
["Sch XXIII","Interest Rates",null,{"$f":"\"Int. Up - Before Shock - Derivatives - Not Qualifying Assets - \"&'Schedule XXIII'!$C$24","v":"Int. Up - Before Shock - Derivatives - Not Qualifying Assets - Other currency 7"},null,null,null,null,null,null,null,null,{"$f":"'Schedule XXIII'!P49","v":0}]
["Sch XXIII","Interest Rates",null,{"$f":"\"Int. Up - Before Shock - Derivatives - Not Qualifying Assets - \"&'Schedule XXIII'!$C$25","v":"Int. Up - Before Shock - Derivatives - Not Qualifying Assets - Other currency 8"},null,null,null,null,null,null,null,null,{"$f":"'Schedule XXIII'!P50","v":0}]
["Sch XXIII","Interest Rates",null,{"$f":"\"Int. Up - Before Shock - Derivatives - Not Qualifying Assets - \"&'Schedule XXIII'!$C$26","v":"Int. Up - Before Shock - Derivatives - Not Qualifying Assets - Other currency 9"},null,null,null,null,null,null,null,null,{"$f":"'Schedule XXIII'!P51","v":0}]
["Sch XXIII","Interest Rates",null,{"$f":"\"Int. Up - Before Shock - Derivatives - Not Qualifying Assets - \"&'Schedule XXIII'!$C$27","v":"Int. Up - Before Shock - Derivatives - Not Qualifying Assets - Other currency 10"},null,null,null,null,null,null,null,null,{"$f":"'Schedule XXIII'!P52","v":0}]
["Sch XXIII","Interest Rates",null,"Int. Up - Before Shock - Derivatives - Not Qualifying Assets - Total",null,null,null,null,null,null,null,null,{"$f":"'Schedule XXIII'!P53","v":0}]
["Sch XXIII","Interest Rates",null,"Int. Up - After Shock - Derivatives - Not Qualifying Assets - United States Dollars",null,null,null,null,null,null,null,null,{"$f":"'Schedule XXIII'!Q35","v":0}]
["Sch XXIII","Interest Rates",null,"Int. Up - After Shock - Derivatives - Not Qualifying Assets - Euro",null,null,null,null,null,null,null,null,{"$f":"'Schedule XXIII'!Q36","v":0}]
["Sch XXIII","Interest Rates",null,"Int. Up - After Shock - Derivatives - Not Qualifying Assets - United Kingdom Pounds",null,null,null,null,null,null,null,null,{"$f":"'Schedule XXIII'!Q37","v":0}]
["Sch XXIII","Interest Rates",null,"Int. Up - After Shock - Derivatives - Not Qualifying Assets - Japan Yen",null,null,null,null,null,null,null,null,{"$f":"'Schedule XXIII'!Q38","v":0}]
["Sch XXIII","Interest Rates",null,"Int. Up - After Shock - Derivatives - Not Qualifying Assets - Canada Dollars",null,null,null,null,null,null,null,null,{"$f":"'Schedule XXIII'!Q39","v":0}]
["Sch XXIII","Interest Rates",null,"Int. Up - After Shock - Derivatives - Not Qualifying Assets - Swiss Francs",null,null,null,null,null,null,null,null,{"$f":"'Schedule XXIII'!Q40","v":0}]
["Sch XXIII","Interest Rates",null,"Int. Up - After Shock - Derivatives - Not Qualifying Assets - Australia Dollar",null,null,null,null,null,null,null,null,{"$f":"'Schedule XXIII'!Q41","v":0}]
["Sch XXIII","Interest Rates",null,"Int. Up - After Shock - Derivatives - Not Qualifying Assets - New Zealand Dollar",null,null,null,null,null,null,null,null,{"$f":"'Schedule XXIII'!Q42","v":0}]
["Sch XXIII","Interest Rates",null,{"$f":"\"Int. Up - After Shock - Derivatives - Not Qualifying Assets - \"&'Schedule XXIII'!$C$18","v":"Int. Up - After Shock - Derivatives - Not Qualifying Assets - Other currency 1"},null,null,null,null,null,null,null,null,{"$f":"'Schedule XXIII'!Q43","v":0}]
["Sch XXIII","Interest Rates",null,{"$f":"\"Int. Up - After Shock - Derivatives - Not Qualifying Assets - \"&'Schedule XXIII'!$C$19","v":"Int. Up - After Shock - Derivatives - Not Qualifying Assets - Other currency 2"},null,null,null,null,null,null,null,null,{"$f":"'Schedule XXIII'!Q44","v":0}]
["Sch XXIII","Interest Rates",null,{"$f":"\"Int. Up - After Shock - Derivatives - Not Qualifying Assets - \"&'Schedule XXIII'!$C$20","v":"Int. Up - After Shock - Derivatives - Not Qualifying Assets - Other currency 3"},null,null,null,null,null,null,null,null,{"$f":"'Schedule XXIII'!Q45","v":0}]
["Sch XXIII","Interest Rates",null,{"$f":"\"Int. Up - After Shock - Derivatives - Not Qualifying Assets - \"&'Schedule XXIII'!$C$21","v":"Int. Up - After Shock - Derivatives - Not Qualifying Assets - Other currency 4"},null,null,null,null,null,null,null,null,{"$f":"'Schedule XXIII'!Q46","v":0}]
["Sch XXIII","Interest Rates",null,{"$f":"\"Int. Up - After Shock - Derivatives - Not Qualifying Assets - \"&'Schedule XXIII'!$C$22","v":"Int. Up - After Shock - Derivatives - Not Qualifying Assets - Other currency 5"},null,null,null,null,null,null,null,null,{"$f":"'Schedule XXIII'!Q47","v":0}]
["Sch XXIII","Interest Rates",null,{"$f":"\"Int. Up - After Shock - Derivatives - Not Qualifying Assets - \"&'Schedule XXIII'!$C$23","v":"Int. Up - After Shock - Derivatives - Not Qualifying Assets - Other currency 6"},null,null,null,null,null,null,null,null,{"$f":"'Schedule XXIII'!Q48","v":0}]
["Sch XXIII","Interest Rates",null,{"$f":"\"Int. Up - After Shock - Derivatives - Not Qualifying Assets - \"&'Schedule XXIII'!$C$24","v":"Int. Up - After Shock - Derivatives - Not Qualifying Assets - Other currency 7"},null,null,null,null,null,null,null,null,{"$f":"'Schedule XXIII'!Q49","v":0}]
["Sch XXIII","Interest Rates",null,{"$f":"\"Int. Up - After Shock - Derivatives - Not Qualifying Assets - \"&'Schedule XXIII'!$C$25","v":"Int. Up - After Shock - Derivatives - Not Qualifying Assets - Other currency 8"},null,null,null,null,null,null,null,null,{"$f":"'Schedule XXIII'!Q50","v":0}]
["Sch XXIII","Interest Rates",null,{"$f":"\"Int. Up - After Shock - Derivatives - Not Qualifying Assets - \"&'Schedule XXIII'!$C$26","v":"Int. Up - After Shock - Derivatives - Not Qualifying Assets - Other currency 9"},null,null,null,null,null,null,null,null,{"$f":"'Schedule XXIII'!Q51","v":0}]
["Sch XXIII","Interest Rates",null,{"$f":"\"Int. Up - After Shock - Derivatives - Not Qualifying Assets - \"&'Schedule XXIII'!$C$27","v":"Int. Up - After Shock - Derivatives - Not Qualifying Assets - Other currency 10"},null,null,null,null,null,null,null,null,{"$f":"'Schedule XXIII'!Q52","v":0}]
["Sch XXIII","Interest Rates",null,"Int. Up - After Shock - Derivatives - Not Qualifying Assets - Total",null,null,null,null,null,null,null,null,{"$f":"'Schedule XXIII'!Q53","v":0}]
["Sch XXIII","Interest Rates",null,"Int. Up - Before Shock - Derivatives - Liab. w/o Mgmt. Action - United States Dollars",null,null,null,null,null,null,null,null,{"$f":"'Schedule XXIII'!S35","v":0}]
["Sch XXIII","Interest Rates",null,"Int. Up - Before Shock - Derivatives - Liab. w/o Mgmt. Action - Euro",null,null,null,null,null,null,null,null,{"$f":"'Schedule XXIII'!S36","v":0}]
["Sch XXIII","Interest Rates",null,"Int. Up - Before Shock - Derivatives - Liab. w/o Mgmt. Action - United Kingdom Pounds",null,null,null,null,null,null,null,null,{"$f":"'Schedule XXIII'!S37","v":0}]
["Sch XXIII","Interest Rates",null,"Int. Up - Before Shock - Derivatives - Liab. w/o Mgmt. Action - Japan Yen",null,null,null,null,null,null,null,null,{"$f":"'Schedule XXIII'!S38","v":0}]
["Sch XXIII","Interest Rates",null,"Int. Up - Before Shock - Derivatives - Liab. w/o Mgmt. Action - Canada Dollars",null,null,null,null,null,null,null,null,{"$f":"'Schedule XXIII'!S39","v":0}]
["Sch XXIII","Interest Rates",null,"Int. Up - Before Shock - Derivatives - Liab. w/o Mgmt. Action - Swiss Francs",null,null,null,null,null,null,null,null,{"$f":"'Schedule XXIII'!S40","v":0}]
["Sch XXIII","Interest Rates",null,"Int. Up - Before Shock - Derivatives - Liab. w/o Mgmt. Action - Australia Dollar",null,null,null,null,null,null,null,null,{"$f":"'Schedule XXIII'!S41","v":0}]
["Sch XXIII","Interest Rates",null,"Int. Up - Before Shock - Derivatives - Liab. w/o Mgmt. Action - New Zealand Dollar",null,null,null,null,null,null,null,null,{"$f":"'Schedule XXIII'!S42","v":0}]
["Sch XXIII","Interest Rates",null,{"$f":"\"Int. Up - Before Shock - Derivatives - Liab. w/o Mgmt Action - \"&'Schedule XXIII'!$C$18","v":"Int. Up - Before Shock - Derivatives - Liab. w/o Mgmt Action - Other currency 1"},null,null,null,null,null,null,null,null,{"$f":"'Schedule XXIII'!S43","v":0}]
["Sch XXIII","Interest Rates",null,{"$f":"\"Int. Up - Before Shock - Derivatives - Liab. w/o Mgmt Action - \"&'Schedule XXIII'!$C$19","v":"Int. Up - Before Shock - Derivatives - Liab. w/o Mgmt Action - Other currency 2"},null,null,null,null,null,null,null,null,{"$f":"'Schedule XXIII'!S44","v":0}]
["Sch XXIII","Interest Rates",null,{"$f":"\"Int. Up - Before Shock - Derivatives - Liab. w/o Mgmt Action - \"&'Schedule XXIII'!$C$20","v":"Int. Up - Before Shock - Derivatives - Liab. w/o Mgmt Action - Other currency 3"},null,null,null,null,null,null,null,null,{"$f":"'Schedule XXIII'!S45","v":0}]
["Sch XXIII","Interest Rates",null,{"$f":"\"Int. Up - Before Shock - Derivatives - Liab. w/o Mgmt Action - \"&'Schedule XXIII'!$C$21","v":"Int. Up - Before Shock - Derivatives - Liab. w/o Mgmt Action - Other currency 4"},null,null,null,null,null,null,null,null,{"$f":"'Schedule XXIII'!S46","v":0}]
["Sch XXIII","Interest Rates",null,{"$f":"\"Int. Up - Before Shock - Derivatives - Liab. w/o Mgmt Action - \"&'Schedule XXIII'!$C$22","v":"Int. Up - Before Shock - Derivatives - Liab. w/o Mgmt Action - Other currency 5"},null,null,null,null,null,null,null,null,{"$f":"'Schedule XXIII'!S47","v":0}]
["Sch XXIII","Interest Rates",null,{"$f":"\"Int. Up - Before Shock - Derivatives - Liab. w/o Mgmt Action - \"&'Schedule XXIII'!$C$23","v":"Int. Up - Before Shock - Derivatives - Liab. w/o Mgmt Action - Other currency 6"},null,null,null,null,null,null,null,null,{"$f":"'Schedule XXIII'!S48","v":0}]
["Sch XXIII","Interest Rates",null,{"$f":"\"Int. Up - Before Shock - Derivatives - Liab. w/o Mgmt Action - \"&'Schedule XXIII'!$C$24","v":"Int. Up - Before Shock - Derivatives - Liab. w/o Mgmt Action - Other currency 7"},null,null,null,null,null,null,null,null,{"$f":"'Schedule XXIII'!S49","v":0}]
["Sch XXIII","Interest Rates",null,{"$f":"\"Int. Up - Before Shock - Derivatives - Liab. w/o Mgmt Action - \"&'Schedule XXIII'!$C$25","v":"Int. Up - Before Shock - Derivatives - Liab. w/o Mgmt Action - Other currency 8"},null,null,null,null,null,null,null,null,{"$f":"'Schedule XXIII'!S50","v":0}]
["Sch XXIII","Interest Rates",null,{"$f":"\"Int. Up - Before Shock - Derivatives - Liab. w/o Mgmt Action - \"&'Schedule XXIII'!$C$26","v":"Int. Up - Before Shock - Derivatives - Liab. w/o Mgmt Action - Other currency 9"},null,null,null,null,null,null,null,null,{"$f":"'Schedule XXIII'!S51","v":0}]
["Sch XXIII","Interest Rates",null,{"$f":"\"Int. Up - Before Shock - Derivatives - Liab. w/o Mgmt Action - \"&'Schedule XXIII'!$C$27","v":"Int. Up - Before Shock - Derivatives - Liab. w/o Mgmt Action - Other currency 10"},null,null,null,null,null,null,null,null,{"$f":"'Schedule XXIII'!S52","v":0}]
["Sch XXIII","Interest Rates",null,"Int. Up - Before Shock - Derivatives - Liab. w/o Mgmt. Action - Total",null,null,null,null,null,null,null,null,{"$f":"'Schedule XXIII'!S53","v":0}]
["Sch XXIII","Interest Rates",null,"Int. Up - After Shock - Derivatives - Liab. w/o Mgmt. Action - United States Dollars",null,null,null,null,null,null,null,null,{"$f":"'Schedule XXIII'!T35","v":0}]
["Sch XXIII","Interest Rates",null,"Int. Up - After Shock - Derivatives - Liab. w/o Mgmt. Action - Euro",null,null,null,null,null,null,null,null,{"$f":"'Schedule XXIII'!T36","v":0}]
["Sch XXIII","Interest Rates",null,"Int. Up - After Shock - Derivatives - Liab. w/o Mgmt. Action - United Kingdom Pounds",null,null,null,null,null,null,null,null,{"$f":"'Schedule XXIII'!T37","v":0}]
["Sch XXIII","Interest Rates",null,"Int. Up - After Shock - Derivatives - Liab. w/o Mgmt. Action - Japan Yen",null,null,null,null,null,null,null,null,{"$f":"'Schedule XXIII'!T38","v":0}]
["Sch XXIII","Interest Rates",null,"Int. Up - After Shock - Derivatives - Liab. w/o Mgmt. Action - Canada Dollars",null,null,null,null,null,null,null,null,{"$f":"'Schedule XXIII'!T39","v":0}]
["Sch XXIII","Interest Rates",null,"Int. Up - After Shock - Derivatives - Liab. w/o Mgmt. Action - Swiss Francs",null,null,null,null,null,null,null,null,{"$f":"'Schedule XXIII'!T40","v":0}]
["Sch XXIII","Interest Rates",null,"Int. Up - After Shock - Derivatives - Liab. w/o Mgmt. Action - Australia Dollar",null,null,null,null,null,null,null,null,{"$f":"'Schedule XXIII'!T41","v":0}]
["Sch XXIII","Interest Rates",null,"Int. Up - After Shock - Derivatives - Liab. w/o Mgmt. Action - New Zealand Dollar",null,null,null,null,null,null,null,null,{"$f":"'Schedule XXIII'!T42","v":0}]
["Sch XXIII","Interest Rates",null,{"$f":"\"Int. Up - After Shock - Derivatives - Liab. w/o Mgmt Action - \"&'Schedule XXIII'!$C$18","v":"Int. Up - After Shock - Derivatives - Liab. w/o Mgmt Action - Other currency 1"},null,null,null,null,null,null,null,null,{"$f":"'Schedule XXIII'!T43","v":0}]
["Sch XXIII","Interest Rates",null,{"$f":"\"Int. Up - After Shock - Derivatives - Liab. w/o Mgmt Action - \"&'Schedule XXIII'!$C$19","v":"Int. Up - After Shock - Derivatives - Liab. w/o Mgmt Action - Other currency 2"},null,null,null,null,null,null,null,null,{"$f":"'Schedule XXIII'!T44","v":0}]
["Sch XXIII","Interest Rates",null,{"$f":"\"Int. Up - After Shock - Derivatives - Liab. w/o Mgmt Action - \"&'Schedule XXIII'!$C$20","v":"Int. Up - After Shock - Derivatives - Liab. w/o Mgmt Action - Other currency 3"},null,null,null,null,null,null,null,null,{"$f":"'Schedule XXIII'!T45","v":0}]
["Sch XXIII","Interest Rates",null,{"$f":"\"Int. Up - After Shock - Derivatives - Liab. w/o Mgmt Action - \"&'Schedule XXIII'!$C$21","v":"Int. Up - After Shock - Derivatives - Liab. w/o Mgmt Action - Other currency 4"},null,null,null,null,null,null,null,null,{"$f":"'Schedule XXIII'!T46","v":0}]
["Sch XXIII","Interest Rates",null,{"$f":"\"Int. Up - After Shock - Derivatives - Liab. w/o Mgmt Action - \"&'Schedule XXIII'!$C$22","v":"Int. Up - After Shock - Derivatives - Liab. w/o Mgmt Action - Other currency 5"},null,null,null,null,null,null,null,null,{"$f":"'Schedule XXIII'!T47","v":0}]
["Sch XXIII","Interest Rates",null,{"$f":"\"Int. Up - After Shock - Derivatives - Liab. w/o Mgmt Action - \"&'Schedule XXIII'!$C$23","v":"Int. Up - After Shock - Derivatives - Liab. w/o Mgmt Action - Other currency 6"},null,null,null,null,null,null,null,null,{"$f":"'Schedule XXIII'!T48","v":0}]
["Sch XXIII","Interest Rates",null,{"$f":"\"Int. Up - After Shock - Derivatives - Liab. w/o Mgmt Action - \"&'Schedule XXIII'!$C$24","v":"Int. Up - After Shock - Derivatives - Liab. w/o Mgmt Action - Other currency 7"},null,null,null,null,null,null,null,null,{"$f":"'Schedule XXIII'!T49","v":0}]
["Sch XXIII","Interest Rates",null,{"$f":"\"Int. Up - After Shock - Derivatives - Liab. w/o Mgmt Action - \"&'Schedule XXIII'!$C$25","v":"Int. Up - After Shock - Derivatives - Liab. w/o Mgmt Action - Other currency 8"},null,null,null,null,null,null,null,null,{"$f":"'Schedule XXIII'!T50","v":0}]
["Sch XXIII","Interest Rates",null,{"$f":"\"Int. Up - After Shock - Derivatives - Liab. w/o Mgmt Action - \"&'Schedule XXIII'!$C$26","v":"Int. Up - After Shock - Derivatives - Liab. w/o Mgmt Action - Other currency 9"},null,null,null,null,null,null,null,null,{"$f":"'Schedule XXIII'!T51","v":0}]
["Sch XXIII","Interest Rates",null,{"$f":"\"Int. Up - After Shock - Derivatives - Liab. w/o Mgmt Action - \"&'Schedule XXIII'!$C$27","v":"Int. Up - After Shock - Derivatives - Liab. w/o Mgmt Action - Other currency 10"},null,null,null,null,null,null,null,null,{"$f":"'Schedule XXIII'!T52","v":0}]
["Sch XXIII","Interest Rates",null,"Int. Up - After Shock - Derivatives - Liab. w/o Mgmt. Action - Total",null,null,null,null,null,null,null,null,{"$f":"'Schedule XXIII'!T53","v":0}]
["Sch XXIII","Interest Rates",null,"Int. Up - After Shock - Derivatives - Liab. with Mgmt. Action - United States Dollars",null,null,null,null,null,null,null,null,{"$f":"'Schedule XXIII'!V35","v":0}]
["Sch XXIII","Interest Rates",null,"Int. Up - After Shock - Derivatives - Liab. with Mgmt. Action - Euro",null,null,null,null,null,null,null,null,{"$f":"'Schedule XXIII'!V36","v":0}]
["Sch XXIII","Interest Rates",null,"Int. Up - After Shock - Derivatives - Liab. with Mgmt. Action - United Kingdom Pounds",null,null,null,null,null,null,null,null,{"$f":"'Schedule XXIII'!V37","v":0}]
["Sch XXIII","Interest Rates",null,"Int. Up - After Shock - Derivatives - Liab. with Mgmt. Action - Japan Yen",null,null,null,null,null,null,null,null,{"$f":"'Schedule XXIII'!V38","v":0}]
["Sch XXIII","Interest Rates",null,"Int. Up - After Shock - Derivatives - Liab. with Mgmt. Action - Canada Dollars",null,null,null,null,null,null,null,null,{"$f":"'Schedule XXIII'!V39","v":0}]
["Sch XXIII","Interest Rates",null,"Int. Up - After Shock - Derivatives - Liab. with Mgmt. Action - Swiss Francs",null,null,null,null,null,null,null,null,{"$f":"'Schedule XXIII'!V40","v":0}]
["Sch XXIII","Interest Rates",null,"Int. Up - After Shock - Derivatives - Liab. with Mgmt. Action - Australia Dollar",null,null,null,null,null,null,null,null,{"$f":"'Schedule XXIII'!V41","v":0}]
["Sch XXIII","Interest Rates",null,"Int. Up - After Shock - Derivatives - Liab. with Mgmt. Action - New Zealand Dollar",null,null,null,null,null,null,null,null,{"$f":"'Schedule XXIII'!V42","v":0}]
["Sch XXIII","Interest Rates",null,{"$f":"\"Int. Up - After Shock - Derivatives - Liab. with Mgmt Action - \"&'Schedule XXIII'!$C$18","v":"Int. Up - After Shock - Derivatives - Liab. with Mgmt Action - Other currency 1"},null,null,null,null,null,null,null,null,{"$f":"'Schedule XXIII'!V43","v":0}]
["Sch XXIII","Interest Rates",null,{"$f":"\"Int. Up - After Shock - Derivatives - Liab. with Mgmt Action - \"&'Schedule XXIII'!$C$19","v":"Int. Up - After Shock - Derivatives - Liab. with Mgmt Action - Other currency 2"},null,null,null,null,null,null,null,null,{"$f":"'Schedule XXIII'!V44","v":0}]
["Sch XXIII","Interest Rates",null,{"$f":"\"Int. Up - After Shock - Derivatives - Liab. with Mgmt Action - \"&'Schedule XXIII'!$C$20","v":"Int. Up - After Shock - Derivatives - Liab. with Mgmt Action - Other currency 3"},null,null,null,null,null,null,null,null,{"$f":"'Schedule XXIII'!V45","v":0}]
["Sch XXIII","Interest Rates",null,{"$f":"\"Int. Up - After Shock - Derivatives - Liab. with Mgmt Action - \"&'Schedule XXIII'!$C$21","v":"Int. Up - After Shock - Derivatives - Liab. with Mgmt Action - Other currency 4"},null,null,null,null,null,null,null,null,{"$f":"'Schedule XXIII'!V46","v":0}]
["Sch XXIII","Interest Rates",null,{"$f":"\"Int. Up - After Shock - Derivatives - Liab. with Mgmt Action - \"&'Schedule XXIII'!$C$22","v":"Int. Up - After Shock - Derivatives - Liab. with Mgmt Action - Other currency 5"},null,null,null,null,null,null,null,null,{"$f":"'Schedule XXIII'!V47","v":0}]
["Sch XXIII","Interest Rates",null,{"$f":"\"Int. Up - After Shock - Derivatives - Liab. with Mgmt Action - \"&'Schedule XXIII'!$C$23","v":"Int. Up - After Shock - Derivatives - Liab. with Mgmt Action - Other currency 6"},null,null,null,null,null,null,null,null,{"$f":"'Schedule XXIII'!V48","v":0}]
["Sch XXIII","Interest Rates",null,{"$f":"\"Int. Up - After Shock - Derivatives - Liab. with Mgmt Action - \"&'Schedule XXIII'!$C$24","v":"Int. Up - After Shock - Derivatives - Liab. with Mgmt Action - Other currency 7"},null,null,null,null,null,null,null,null,{"$f":"'Schedule XXIII'!V49","v":0}]
["Sch XXIII","Interest Rates",null,{"$f":"\"Int. Up - After Shock - Derivatives - Liab. with Mgmt Action - \"&'Schedule XXIII'!$C$25","v":"Int. Up - After Shock - Derivatives - Liab. with Mgmt Action - Other currency 8"},null,null,null,null,null,null,null,null,{"$f":"'Schedule XXIII'!V50","v":0}]
["Sch XXIII","Interest Rates",null,{"$f":"\"Int. Up - After Shock - Derivatives - Liab. with Mgmt Action - \"&'Schedule XXIII'!$C$26","v":"Int. Up - After Shock - Derivatives - Liab. with Mgmt Action - Other currency 9"},null,null,null,null,null,null,null,null,{"$f":"'Schedule XXIII'!V51","v":0}]
["Sch XXIII","Interest Rates",null,{"$f":"\"Int. Up - After Shock - Derivatives - Liab. with Mgmt Action - \"&'Schedule XXIII'!$C$27","v":"Int. Up - After Shock - Derivatives - Liab. with Mgmt Action - Other currency 10"},null,null,null,null,null,null,null,null,{"$f":"'Schedule XXIII'!V52","v":0}]
["Sch XXIII","Interest Rates",null,"Int. Up - After Shock - Derivatives - Liab. with Mgmt. Action - Total",null,null,null,null,null,null,null,null,{"$f":"'Schedule XXIII'!V53","v":0}]
[]
["Op Risk","Corp Gov",null,"Corporate Governance Q1",null,null,null,null,null,null,null,null,{"$f":"'Corp Gov'!D10","v":0}]
["Op Risk","Corp Gov",null,"Corporate Governance Q2 (Class 3A Only)",null,null,null,null,null,null,null,null,{"$f":"'Corp Gov'!D11","v":0}]
["Op Risk","Corp Gov",null,"Corporate Governance Q3",null,null,null,null,null,null,null,null,{"$f":"'Corp Gov'!D12","v":0}]
["Op Risk","Corp Gov",null,"Corporate Governance Q4",null,null,null,null,null,null,null,null,{"$f":"'Corp Gov'!D13","v":0}]
["Op Risk","Corp Gov",null,"Corporate Governance Q5",null,null,null,null,null,null,null,null,{"$f":"'Corp Gov'!D14","v":0}]
["Op Risk","Corp Gov",null,"Corporate Governance Q6",null,null,null,null,null,null,null,null,{"$f":"'Corp Gov'!D15","v":0}]
["Op Risk","Corp Gov",null,"Corporate Governance Q7",null,null,null,null,null,null,null,null,{"$f":"'Corp Gov'!D16","v":0}]
["Op Risk","Risk Mngt",null,"Risk Management Q1",null,null,null,null,null,null,null,null,{"$f":"'Risk Man'!D11","v":0}]
["Op Risk","Risk Mngt",null,"Risk Management Q2",null,null,null,null,null,null,null,null,{"$f":"'Risk Man'!D12","v":0}]
["Op Risk","Risk Mngt",null,"Risk Management Q3",null,null,null,null,null,null,null,null,{"$f":"'Risk Man'!D13","v":0}]
["Op Risk","Risk Mngt",null,"Risk Management Q4",null,null,null,null,null,null,null,null,{"$f":"'Risk Man'!D14","v":0}]
["Op Risk","Risk Mngt",null,"Risk Management Q5",null,null,null,null,null,null,null,null,{"$f":"'Risk Man'!D15","v":0}]
["Op Risk","Risk Mngt",null,"Risk Management Q6",null,null,null,null,null,null,null,null,{"$f":"'Risk Man'!D16","v":0}]
["Op Risk","Risk Mngt",null,"Risk Management Q7",null,null,null,null,null,null,null,null,{"$f":"'Risk Man'!D17","v":0}]
["Op Risk","Identification",null,"Identification - Fraud (Class 4/3B Only)",null,null,null,null,null,null,null,null,{"$f":"Identification!E19","v":0}]
["Op Risk","Identification",null,"Identification - HR (Class 4/3B Only)",null,null,null,null,null,null,null,null,{"$f":"Identification!F19","v":0}]
["Op Risk","Identification",null,"Identification - Outsourcing (Class 4/3B Only)",null,null,null,null,null,null,null,null,{"$f":"Identification!G19","v":0}]
["Op Risk","Identification",null,"Identification - Dis. Channels (Class 4/3B Only)",null,null,null,null,null,null,null,null,{"$f":"Identification!H19","v":0}]
["Op Risk","Identification",null,"Identification - Bus. Processes (Class 4/3B Only)",null,null,null,null,null,null,null,null,{"$f":"Identification!I19","v":0}]
["Op Risk","Identification",null,"Identification - Bus. Continuity (Class 4/3B Only)",null,null,null,null,null,null,null,null,{"$f":"Identification!J19","v":0}]
["Op Risk","Identification",null,"Identification - Info. Systems (Class 4/3B Only)",null,null,null,null,null,null,null,null,{"$f":"Identification!K19","v":0}]
["Op Risk","Identification",null,"Identification - Compliance (Class 4/3B Only)",null,null,null,null,null,null,null,null,{"$f":"Identification!L19","v":0}]
["Op Risk","Measurement",null,"Measurement - Fraud (Class 4/3B Only)",null,null,null,null,null,null,null,null,{"$f":"Measurement!E19","v":0}]
["Op Risk","Measurement",null,"Measurement - HR (Class 4/3B Only)",null,null,null,null,null,null,null,null,{"$f":"Measurement!F19","v":0}]
["Op Risk","Measurement",null,"Measurement - Outsourcing (Class 4/3B Only)",null,null,null,null,null,null,null,null,{"$f":"Measurement!G19","v":0}]
["Op Risk","Measurement",null,"Measurement - Dis. Channels (Class 4/3B Only)",null,null,null,null,null,null,null,null,{"$f":"Measurement!H19","v":0}]
["Op Risk","Measurement",null,"Measurement - Bus. Processes (Class 4/3B Only)",null,null,null,null,null,null,null,null,{"$f":"Measurement!I19","v":0}]
["Op Risk","Measurement",null,"Measurement - Bus. Continuity (Class 4/3B Only)",null,null,null,null,null,null,null,null,{"$f":"Measurement!J19","v":0}]
["Op Risk","Measurement",null,"Measurement - Info. Systems (Class 4/3B Only)",null,null,null,null,null,null,null,null,{"$f":"Measurement!K19","v":0}]
["Op Risk","Measurement",null,"Measurement - Compliance (Class 4/3B Only)",null,null,null,null,null,null,null,null,{"$f":"Measurement!L19","v":0}]
["Op Risk","Response",null,"Response - Fraud (Class 4/3B Only)",null,null,null,null,null,null,null,null,{"$f":"Response!E19","v":0}]
["Op Risk","Response",null,"Response - HR (Class 4/3B Only)",null,null,null,null,null,null,null,null,{"$f":"Response!F19","v":0}]
["Op Risk","Response",null,"Response - Outsourcing (Class 4/3B Only)",null,null,null,null,null,null,null,null,{"$f":"Response!G19","v":0}]
["Op Risk","Response",null,"Response - Dis. Channels (Class 4/3B Only)",null,null,null,null,null,null,null,null,{"$f":"Response!H19","v":0}]
["Op Risk","Response",null,"Response - Bus. Processes (Class 4/3B Only)",null,null,null,null,null,null,null,null,{"$f":"Response!I19","v":0}]
["Op Risk","Response",null,"Response - Bus. Continuity (Class 4/3B Only)",null,null,null,null,null,null,null,null,{"$f":"Response!J19","v":0}]
["Op Risk","Response",null,"Response - Info. Systems (Class 4/3B Only)",null,null,null,null,null,null,null,null,{"$f":"Response!K19","v":0}]
["Op Risk","Response",null,"Response - Compliance (Class 4/3B Only)",null,null,null,null,null,null,null,null,{"$f":"Response!L19","v":0}]
["Op Risk","Mont. & Reporting",null,"Mont. & Reporting - Fraud (Class 4/3B Only)",null,null,null,null,null,null,null,null,{"$f":"'Monitoring & Reporting'!E19","v":0}]
["Op Risk","Mont. & Reporting",null,"Mont. & Reporting - HR (Class 4/3B Only)",null,null,null,null,null,null,null,null,{"$f":"'Monitoring & Reporting'!F19","v":0}]
["Op Risk","Mont. & Reporting",null,"Mont. & Reporting - Outsourcing (Class 4/3B Only)",null,null,null,null,null,null,null,null,{"$f":"'Monitoring & Reporting'!G19","v":0}]
["Op Risk","Mont. & Reporting",null,"Mont. & Reporting - Dis. Channels (Class 4/3B Only)",null,null,null,null,null,null,null,null,{"$f":"'Monitoring & Reporting'!H19","v":0}]
["Op Risk","Mont. & Reporting",null,"Mont. & Reporting - Bus. Processes (Class 4/3B Only)",null,null,null,null,null,null,null,null,{"$f":"'Monitoring & Reporting'!I19","v":0}]
["Op Risk","Mont. & Reporting",null,"Mont. & Reporting - Bus. Continuity (Class 4/3B Only)",null,null,null,null,null,null,null,null,{"$f":"'Monitoring & Reporting'!J19","v":0}]
["Op Risk","Mont. & Reporting",null,"Mont. & Reporting - Info. Systems (Class 4/3B Only)",null,null,null,null,null,null,null,null,{"$f":"'Monitoring & Reporting'!K19","v":0}]
["Op Risk","Mont. & Reporting",null,"Mont. & Reporting - Compliance (Class 4/3B Only)",null,null,null,null,null,null,null,null,{"$f":"'Monitoring & Reporting'!L19","v":0}]
[]
["Entry Fields for 2019 Methodology"]
[]
["Summary",null,null,"Deferred Tax Asset - T",null,null,null,null,null,null,null,null,{"$f":"Summary!D155","v":0}]
["Summary",null,null,"Deferred Tax Asset - Loss Carryback Provision",null,null,null,null,null,null,null,null,{"$f":"Summary!K155","v":0}]
["Summary",null,null,"Management Action - Net Future Discretionary Benefits/Bonus Reserve",null,null,null,null,null,null,null,null,{"$f":"Summary!M144","v":0}]
[]
["Sar & Sanc.","SAR & Sanctions",null,"E.1 Registered GoAML",{"$f":"'SAR & Sanc. (All)'!I8","v":"Select Yes/No"}]
["Sar & Sanc.","SAR & Sanctions",null,"E.1.1 When",{"$f":"'SAR & Sanc. (All)'!I10","v":"(Select)"}]
["Sar & Sanc.","SAR & Sanctions",null,"E.1.1 Name",{"$f":"'SAR & Sanc. (All)'!C10","v":0}]
["Sar & Sanc.","SAR & Sanctions",null,"E.1.2 Another Registered",{"$f":"'SAR & Sanc. (All)'!I12","v":"Select Yes/No"}]
["Sar & Sanc.","SAR & Sanctions",null,"E.1.3 Name",{"$f":"'SAR & Sanc. (All)'!C14","v":0}]
["Sar & Sanc.","SAR & Sanctions",null,"E.1.4 Filed SAR",{"$f":"'SAR & Sanc. (All)'!C17","v":0}]
["Sar & Sanc.","SAR & Sanctions",null,"E.2 SAR Filed - Internal - Current Year",{"$f":"'SAR & Sanc. (All)'!G21","v":0}]
["Sar & Sanc.","SAR & Sanctions",null,"E.2 SAR Filed - Internal - Prior Year",{"$f":"'SAR & Sanc. (All)'!G22","v":0}]
["Sar & Sanc.","SAR & Sanctions",null,"E.2 SAR Filed - Internal - 2 Years Prior",{"$f":"'SAR & Sanc. (All)'!G23","v":0}]
["Sar & Sanc.","SAR & Sanctions",null,"E.2 SAR Filed - Internal - 3 Years Prior",{"$f":"'SAR & Sanc. (All)'!G24","v":0}]
["Sar & Sanc.","SAR & Sanctions",null,"E.2 SAR Filed - Internal - Total",{"$f":"'SAR & Sanc. (All)'!G25","v":0}]
["Sar & Sanc.","SAR & Sanctions",null,"E.2 SAR Filed - w FIA - Current Year",{"$f":"'SAR & Sanc. (All)'!I21","v":0}]
["Sar & Sanc.","SAR & Sanctions",null,"E.2 SAR Filed - w FIA - Prior Year",{"$f":"'SAR & Sanc. (All)'!I22","v":0}]
["Sar & Sanc.","SAR & Sanctions",null,"E.2 SAR Filed - w FIA - 2 Years Prior",{"$f":"'SAR & Sanc. (All)'!I23","v":0}]
["Sar & Sanc.","SAR & Sanctions",null,"E.2 SAR Filed - w FIA - 3 Years Prior",{"$f":"'SAR & Sanc. (All)'!I24","v":0}]
["Sar & Sanc.","SAR & Sanctions",null,"E.2 SAR Filed - w FIA - Total",{"$f":"'SAR & Sanc. (All)'!I25","v":0}]
["Sar & Sanc.","SAR & Sanctions",null,"E.2 Additional Comments",{"$f":"'SAR & Sanc. (All)'!C28","v":0}]
["Sar & Sanc.","SAR & Sanctions",null,"E. Sanction - 1. Screen insurers",{"$f":"'SAR & Sanc. (All)'!I35","v":"Select Yes/No"}]
["Sar & Sanc.","SAR & Sanctions",null,"E. Sanction - 2. Screen employees",{"$f":"'SAR & Sanc. (All)'!I37","v":"Select Yes/No"}]
["Sar & Sanc.","SAR & Sanctions",null,"E. Sanction - 3. Freeze Assets",{"$f":"'SAR & Sanc. (All)'!I39","v":"Select Yes/No"}]
["Sar & Sanc.","SAR & Sanctions",null,"E. Sanction - 3.1 # of Assets Frozen",{"$f":"'SAR & Sanc. (All)'!I41","v":0}]
["Sar & Sanc.","SAR & Sanctions",null,"E. Sanction - 3.2 Group ID 1",{"$f":"'SAR & Sanc. (All)'!E45","v":0}]
["Sar & Sanc.","SAR & Sanctions",null,"E. Sanction - 3.2 Group ID 2",{"$f":"'SAR & Sanc. (All)'!E46","v":0}]
["Sar & Sanc.","SAR & Sanctions",null,"E. Sanction - 3.2 Group ID 3",{"$f":"'SAR & Sanc. (All)'!E47","v":0}]
["Sar & Sanc.","SAR & Sanctions",null,"E. Sanction - 3.2 Group ID 4",{"$f":"'SAR & Sanc. (All)'!E48","v":0}]
["Sar & Sanc.","SAR & Sanctions",null,"E. Sanction - 3.2 Name Given 1",{"$f":"'SAR & Sanc. (All)'!F45","v":0}]
["Sar & Sanc.","SAR & Sanctions",null,"E. Sanction - 3.2 Name Given 2",{"$f":"'SAR & Sanc. (All)'!F46","v":0}]
["Sar & Sanc.","SAR & Sanctions",null,"E. Sanction - 3.2 Name Given 3",{"$f":"'SAR & Sanc. (All)'!F47","v":0}]
["Sar & Sanc.","SAR & Sanctions",null,"E. Sanction - 3.2 Name Given 4",{"$f":"'SAR & Sanc. (All)'!F48","v":0}]
["Sar & Sanc.","SAR & Sanctions",null,"E. Sanction - 3.2 Owned 1",{"$f":"'SAR & Sanc. (All)'!F45","v":0}]
["Sar & Sanc.","SAR & Sanctions",null,"E. Sanction - 3.2 Owned 2",{"$f":"'SAR & Sanc. (All)'!F46","v":0}]
["Sar & Sanc.","SAR & Sanctions",null,"E. Sanction - 3.2 Owned 3",{"$f":"'SAR & Sanc. (All)'!F47","v":0}]
["Sar & Sanc.","SAR & Sanctions",null,"E. Sanction - 3.2 Owned 4",{"$f":"'SAR & Sanc. (All)'!F48","v":0}]
["Sar & Sanc.","SAR & Sanctions",null,"E. Sanction - 3.2 Value of Assets 1",{"$f":"'SAR & Sanc. (All)'!J45","v":0}]
["Sar & Sanc.","SAR & Sanctions",null,"E. Sanction - 3.2 Value of Assets 2",{"$f":"'SAR & Sanc. (All)'!J46","v":0}]
["Sar & Sanc.","SAR & Sanctions",null,"E. Sanction - 3.2 Value of Assets 3",{"$f":"'SAR & Sanc. (All)'!J47","v":0}]
["Sar & Sanc.","SAR & Sanctions",null,"E. Sanction - 3.2 Value of Assets 4",{"$f":"'SAR & Sanc. (All)'!J48","v":0}]
["Sar & Sanc.","SAR & Sanctions",null,"E. Sanction - 3.2 Value of Total",{"$f":"SUM(E17851:E17854)","v":0}]
["Sar & Sanc.","SAR & Sanctions",null,"E. Sanction - 4 Frequency of Screen for Sanctions",{"$f":"'SAR & Sanc. (All)'!I50","v":"Select"}]
["Sar & Sanc.","SAR & Sanctions",null,"E. Sanction - Additional Comments ",{"$f":"'SAR & Sanc. (All)'!C53","v":0}]

{"sheet":"Import Differences","index":8,"n_rows":12,"n_cols":4,"rows_kept":12,"cut":false,"hidden":true,"merged":[]}
["General Business BSCR Model"]
["Import/Export Row Changes"]
["From the 2017 year-end model to 2018 year-end Model"]
[]
[null,"Section","Line","Row"]
[1,"Information Sheet","AML Questions","Rows 20:26"]
[{"$f":"A6+1","v":2},"Form 1SFS","Removed Total Restricted Assets and Unsecured Policyholder Obligations","Formerly rows 306:308"]
[{"$f":"A7+1","v":3},"Sch V(e) ","Financial Market Scenario ","Rows 2725:2746"]
[4,"Sch V(e) ","Underwriting Stress Scenarios","Rows 2801:2924"]
[5,"Sch V(e) ","Liability Loss Accumulation Stress Scenario","Rows 2934:3061"]
[6,"Sch V(e) ","Cyber Risk Stress Scenario","Rows 3157:3499"]
[7,"Sch V(L)","Segregated Account Reporting","Rows 3876:5460"]

{"sheet":"Attachments","index":9,"n_rows":204,"n_cols":11,"rows_kept":204,"cut":false,"hidden":false,"merged":[[203,2,203,4],[194,2,194,4],[195,2,195,4],[196,2,196,4],[197,2,197,4],[198,2,198,4],[199,2,199,4],[200,2,200,4],[201,2,201,4],[202,2,202,4],[191,2,191,4],[192,2,192,4],[193,2,193,4],[143,2,143,4],[14,2,14,4],[15,2,15,4],[16,2,16,4],[17,2,17,4],[18,2,18,4],[19,2,19,4],[126,2,126,4],[20,2,20,4],[21,2,21,4],[22,2,22,4],[137,2,137,4],[138,2,138,4],[125,2,125,4],[124,2,124,4],[122,2,122,4],[123,2,123,4],[49,2,49,4],[50,2,50,4],[51,2,51,4],[52,2,52,4],[53,2,53,4],[23,2,23,4],[44,2,44,4],[45,2,45,4],[46,2,46,4],[47,2,47,4],[48,2,48,4],[25,2,25,4],[30,2,30,4],[32,2,32,4],[33,2,33,4],[39,2,39,4],[40,2,40,4],[41,2,41,4],[42,2,42,4],[130,2,130,4],[155,2,155,4],[156,2,156,4],[134,2,134,4],[135,2,135,4],[136,2,136,4],[140,2,140,4],[141,2,141,4],[142,2,142,4],[139,2,139,4],[59,2,59,4],[68,2,68,4],[69,2,69,4],[70,2,70,4],[71,2,71,4],[105,2,105,4],[104,2,104,4],[103,2,103,4],[87,2,87,4],[88,2,88,4],[73,2,73,4],[77,2,77,4],[79,2,79,4],[82,2,82,4],[74,2,74,4],[75,2,75,4],[66,2,66,4],[63,2,63,4],[64,2,64,4],[65,2,65,4],[67,2,67,4],[60,2,60,4],[61,2,61,4],[62,2,62,4],[54,2,54,4],[55,2,55,4],[56,2,56,4],[57,2,57,4],[149,2,149,4],[150,2,150,4],[151,2,151,4],[152,2,152,4],[78,2,78,4],[72,2,72,4],[99,2,99,4],[100,2,100,4],[101,2,101,4],[85,2,85,4],[106,2,106,4],[113,2,113,4],[111,2,111,4],[112,2,112,4],[109,2,109,4],[119,2,119,4],[118,2,118,4],[117,2,117,4],[58,2,58,4],[84,2,84,4],[91,2,91,4],[92,2,92,4],[93,2,93,4],[89,2,89,4],[90,2,90,4],[102,2,102,4],[95,2,95,4],[164,2,164,4],[115,2,115,4],[120,2,120,4],[116,2,116,4],[110,2,110,4],[107,2,107,4],[108,2,108,4],[114,2,114,4],[121,2,121,4],[96,2,96,4],[98,2,98,4],[127,2,127,4],[128,2,128,4],[131,2,131,4],[132,2,132,4],[133,2,133,4],[129,2,129,4],[4,2,4,4],[31,2,31,4],[24,2,24,4],[9,2,9,4],[10,2,10,4],[11,2,11,4],[5,2,5,4],[6,2,6,4],[7,2,7,4],[12,2,12,4],[8,2,8,4],[13,2,13,4],[26,2,26,4],[27,2,27,4],[28,2,28,4],[81,2,81,4],[80,2,80,4],[83,2,83,4],[29,2,29,4],[173,2,173,4],[36,2,36,4],[37,2,37,4],[38,2,38,4],[171,2,171,4],[172,2,172,4],[43,2,43,4],[34,2,34,4],[35,2,35,4],[76,2,76,4],[144,2,144,4],[145,2,145,4],[146,2,146,4],[147,2,147,4],[148,2,148,4],[167,2,167,4],[166,2,166,4],[86,2,86,4],[97,2,97,4],[94,2,94,4],[180,2,180,4],[181,2,181,4],[153,2,153,4],[176,2,176,4],[177,2,177,4],[178,2,178,4],[175,2,175,4],[157,2,157,4],[158,2,158,4],[154,2,154,4],[170,2,170,4],[159,2,159,4],[160,2,160,4],[163,2,163,4],[161,2,161,4],[162,2,162,4],[179,2,179,4],[168,2,168,4],[169,2,169,4],[174,2,174,4],[165,2,165,4],[189,2,189,4],[190,2,190,4],[183,2,183,4],[184,2,184,4],[185,2,185,4],[186,2,186,4],[187,2,187,4],[188,2,188,4],[182,2,182,4]]}
[null,"File Attachments",null,null,null,null,null,null,null,{"$f":"HYPERLINK(\"#'Index'!A1\",\"Return to Index\")","v":"Return to Index"}]
[]
[]
[null,null,null,null,null,null,null,null,null,"Input comment for each attached file here."]
[null,"1.","CISSA attachments",null,null,"<Attach file>","Attach","View","Remove",null,"Governance structure"]
[null,null,null,null,null,"<Attach file>","Attach","View","Remove",null,"Governance structure"]
[null,null,null,null,null,"<Attach file>","Attach","View","Remove",null,"Governance structure"]
[null,null,null,null,null,"<Attach file>","Attach","View","Remove",null,"Governance structure"]
[null,null,null,null,null,"<Attach file>","Attach","View","Remove",null,"Governance structure"]
[null,null,null,null,null,"<Attach file>","Attach","View","Remove",null,"Governance structure"]
[null,null,null,null,null,"<Attach file>","Attach","View","Remove",null,"Governance structure"]
[null,null,null,null,null,"<Attach file>","Attach","View","Remove",null,"Governance structure"]
[null,null,null,null,null,"<Attach file>","Attach","View","Remove",null,"Governance structure"]
[null,null,null,null,null,"<Attach file>","Attach","View","Remove","","Governance structure"]
[null,"2.","Form 1SFS attachments - actuarial memorandum",null,null,"<Attach file>","Attach","View","Remove",null,"Governance structure"]
[null,null,null,null,null,"<Attach file>","Attach","View","Remove",null,"Governance structure"]
[null,null,null,null,null,"<Attach file>","Attach","View","Remove",null,"Governance structure"]
[null,null,null,null,null,"<Attach file>","Attach","View","Remove",null,"Governance structure"]
[null,null,null,null,null,"<Attach file>","Attach","View","Remove",null,"Governance structure"]
[null,null,null,null,null,"<Attach file>","Attach","View","Remove",null,"Governance structure"]
[null,null,null,null,null,"<Attach file>","Attach","View","Remove",null,"Governance structure"]
[null,null,null,null,null,"<Attach file>","Attach","View","Remove",null,"Governance structure"]
[null,null,null,null,null,"<Attach file>","Attach","View","Remove",null,"Governance structure"]
[null,null,null,null,null,"<Attach file>","Attach","View","Remove","","Governance structure"]
[null,"3.","Governance & group structure, and organisational chart",null,null,"<Attach file>","Attach","View","Remove",null,"Intra-group exposures"]
[null,null,null,null,null,"<Attach file>","Attach","View","Remove",null,"Intra-group exposures"]
[null,null,null,null,null,"<Attach file>","Attach","View","Remove",null,"Intra-group exposures"]
[null,null,null,null,null,"<Attach file>","Attach","View","Remove",null,"Intra-group exposures"]
[null,null,null,null,null,"<Attach file>","Attach","View","Remove",null,"Intra-group exposures"]
[null,null,null,null,null,"<Attach file>","Attach","View","Remove",null,"Intra-group exposures"]
[null,null,null,null,null,"<Attach file>","Attach","View","Remove",null,"Intra-group exposures"]
[null,null,null,null,null,"<Attach file>","Attach","View","Remove",null,"Intra-group exposures"]
[null,null,null,null,null,"<Attach file>","Attach","View","Remove",null,"Intra-group exposures"]
[null,null,null,null,null,"<Attach file>","Attach","View","Remove","","Intra-group exposures"]
[null,"4.","Intra-group transactions and risk concentrations",null,null,"<Attach file>","Attach","View","Remove",null,"Description of the effective duration of assets and liabilities calculations and key assumptions"]
[null,null,null,null,null,"<Attach file>","Attach","View","Remove",null,"Description of the effective duration of assets and liabilities calculations and key assumptions"]
[null,null,null,null,null,"<Attach file>","Attach","View","Remove",null,"Description of the effective duration of assets and liabilities calculations and key assumptions"]
[null,null,null,null,null,"<Attach file>","Attach","View","Remove",null,"Description of the effective duration of assets and liabilities calculations and key assumptions"]
[null,null,null,null,null,"<Attach file>","Attach","View","Remove",null,"Description of the effective duration of assets and liabilities calculations and key assumptions"]
[null,null,null,null,null,"<Attach file>","Attach","View","Remove",null,"Description of the effective duration of assets and liabilities calculations and key assumptions"]
[null,null,null,null,null,"<Attach file>","Attach","View","Remove",null,"Description of the effective duration of assets and liabilities calculations and key assumptions"]
[null,null,null,null,null,"<Attach file>","Attach","View","Remove",null,"Description of the effective duration of assets and liabilities calculations and key assumptions"]
[null,null,null,null,null,"<Attach file>","Attach","View","Remove",null,"Description of the effective duration of assets and liabilities calculations and key assumptions"]
[null,null,null,null,null,"<Attach file>","Attach","View","Remove",null,"Description of the effective duration of assets and liabilities calculations and key assumptions"]
[null,"5.","Description of the effective duration of assets and liabilities calculations and key assumptions",null,null,"<Attach file>","Attach","View","Remove",null,"Financial impact and description of stress & scenarios"]
[null,null,null,null,null,"<Attach file>","Attach","View","Remove",null,"Financial impact and description of stress & scenarios"]
[null,null,null,null,null,"<Attach file>","Attach","View","Remove",null,"Financial impact and description of stress & scenarios"]
[null,null,null,null,null,"<Attach file>","Attach","View","Remove",null,"Financial impact and description of stress & scenarios"]
[null,null,null,null,null,"<Attach file>","Attach","View","Remove",null,"Financial impact and description of stress & scenarios"]
[null,null,null,null,null,"<Attach file>","Attach","View","Remove",null,"Financial impact and description of stress & scenarios"]
[null,null,null,null,null,"<Attach file>","Attach","View","Remove",null,"Financial impact and description of stress & scenarios"]
[null,null,null,null,null,"<Attach file>","Attach","View","Remove",null,"Financial impact and description of stress & scenarios"]
[null,null,null,null,null,"<Attach file>","Attach","View","Remove",null,"Financial impact and description of stress & scenarios"]
[null,null,null,null,null,"<Attach file>","Attach","View","Remove",null,"Financial impact and description of stress & scenarios"]
[null,"6.","Investments, derivatives and strategies policy",null,null,"<Attach file>","Attach","View","Remove",null,"Financial impact and description of stress & scenarios"]
[null,null,null,null,null,"<Attach file>","Attach","View","Remove",null,"Financial impact and description of stress & scenarios"]
[null,null,null,null,null,"<Attach file>","Attach","View","Remove",null,"Financial impact and description of stress & scenarios"]
[null,null,null,null,null,"<Attach file>","Attach","View","Remove",null,"Financial impact and description of stress & scenarios"]
[null,null,null,null,null,"<Attach file>","Attach","View","Remove",null,"Financial impact and description of stress & scenarios"]
[null,null,null,null,null,"<Attach file>","Attach","View","Remove",null,"Financial impact and description of stress & scenarios"]
[null,null,null,null,null,"<Attach file>","Attach","View","Remove",null,"Financial impact and description of stress & scenarios"]
[null,null,null,null,null,"<Attach file>","Attach","View","Remove",null,"Financial impact and description of stress & scenarios"]
[null,null,null,null,null,"<Attach file>","Attach","View","Remove",null,"Financial impact and description of stress & scenarios"]
[null,null,null,null,null,"<Attach file>","Attach","View","Remove",null,"Financial impact and description of stress & scenarios"]
[null,"7.","Bonds and debentures that have been reclassed in accordance with the NAIC",null,null,"<Attach file>","Attach","View","Remove",null,"Financial impact and description of stress & scenarios"]
[null,null,null,null,null,"<Attach file>","Attach","View","Remove",null,"Financial impact and description of stress & scenarios"]
[null,null,null,null,null,"<Attach file>","Attach","View","Remove",null,"Financial impact and description of stress & scenarios"]
[null,null,null,null,null,"<Attach file>","Attach","View","Remove",null,"Financial impact and description of stress & scenarios"]
[null,null,null,null,null,"<Attach file>","Attach","View","Remove",null,"Financial impact and description of stress & scenarios"]
[null,null,null,null,null,"<Attach file>","Attach","View","Remove",null,"Financial impact and description of stress & scenarios"]
[null,null,null,null,null,"<Attach file>","Attach","View","Remove",null,"Financial impact and description of stress & scenarios"]
[null,null,null,null,null,"<Attach file>","Attach","View","Remove",null,"Financial impact and description of stress & scenarios"]
[null,null,null,null,null,"<Attach file>","Attach","View","Remove",null,"Financial impact and description of stress & scenarios"]
[null,null,null,null,null,"<Attach file>","Attach","View","Remove",null,"Financial impact and description of stress & scenarios"]
[null,"8.","Mutual fund disclosure",null,null,"<Attach file>","Attach","View","Remove",null,"Investment policy"]
[null,null,null,null,null,"<Attach file>","Attach","View","Remove",null,"Investment policy"]
[null,null,null,null,null,"<Attach file>","Attach","View","Remove",null,"Investment policy"]
[null,null,null,null,null,"<Attach file>","Attach","View","Remove",null,"Investment policy"]
[null,null,null,null,null,"<Attach file>","Attach","View","Remove",null,"Investment policy"]
[null,null,null,null,null,"<Attach file>","Attach","View","Remove",null,"Investment policy"]
[null,null,null,null,null,"<Attach file>","Attach","View","Remove",null,"Investment policy"]
[null,null,null,null,null,"<Attach file>","Attach","View","Remove",null,"Investment policy"]
[null,null,null,null,null,"<Attach file>","Attach","View","Remove",null,"Investment policy"]
[null,null,null,null,null,"<Attach file>","Attach","View","Remove",null,"Investment policy"]
[null,"9.","Description of underwriting strategy",null,null,"<Attach file>","Attach","View","Remove",null,"Description of underwriting strategy"]
[null,null,null,null,null,"<Attach file>","Attach","View","Remove",null,"Description of underwriting strategy"]
[null,null,null,null,null,"<Attach file>","Attach","View","Remove",null,"Description of underwriting strategy"]
[null,null,null,null,null,"<Attach file>","Attach","View","Remove",null,"Description of underwriting strategy"]
[null,null,null,null,null,"<Attach file>","Attach","View","Remove",null,"Description of underwriting strategy"]
[null,null,null,null,null,"<Attach file>","Attach","View","Remove",null,"Description of underwriting strategy"]
[null,null,null,null,null,"<Attach file>","Attach","View","Remove",null,"Description of underwriting strategy"]
[null,null,null,null,null,"<Attach file>","Attach","View","Remove",null,"Description of underwriting strategy"]
[null,null,null,null,null,"<Attach file>","Attach","View","Remove",null,"Description of underwriting strategy"]
[null,null,null,null,null,"<Attach file>","Attach","View","Remove",null,"Description of underwriting strategy"]
[null,"10.","Financial impact and description of stress & scenarios",null,null,"<Attach file>","Attach","View","Remove",null,"Financial impact and description of stress & scenarios"]
[null,null,null,null,null,"<Attach file>","Attach","View","Remove",null,"Financial impact and description of stress & scenarios"]
[null,null,null,null,null,"<Attach file>","Attach","View","Remove",null,"Financial impact and description of stress & scenarios"]
[null,null,null,null,null,"<Attach file>","Attach","View","Remove",null,"Financial impact and description of stress & scenarios"]
[null,null,null,null,null,"<Attach file>","Attach","View","Remove",null,"Financial impact and description of stress & scenarios"]
[null,null,null,null,null,"<Attach file>","Attach","View","Remove",null,"Financial impact and description of stress & scenarios"]
[null,null,null,null,null,"<Attach file>","Attach","View","Remove",null,"Financial impact and description of stress & scenarios"]
[null,null,null,null,null,"<Attach file>","Attach","View","Remove",null,"Financial impact and description of stress & scenarios"]
[null,null,null,null,null,"<Attach file>","Attach","View","Remove",null,"Financial impact and description of stress & scenarios"]
[null,null,null,null,null,"<Attach file>","Attach","View","Remove",null,"Financial impact and description of stress & scenarios"]
[null,"11.","Description of the insurer's risk management programme",null,null,"<Attach file>","Attach","View","Remove",null,"Description of the insurer's risk management program"]
[null,null,null,null,null,"<Attach file>","Attach","View","Remove",null,"Description of the insurer's risk management program"]
[null,null,null,null,null,"<Attach file>","Attach","View","Remove",null,"Description of the insurer's risk management program"]
[null,null,null,null,null,"<Attach file>","Attach","View","Remove",null,"Description of the insurer's risk management program"]
[null,null,null,null,null,"<Attach file>","Attach","View","Remove",null,"Description of the insurer's risk management program"]
[null,null,null,null,null,"<Attach file>","Attach","View","Remove",null,"Description of the insurer's risk management program"]
[null,null,null,null,null,"<Attach file>","Attach","View","Remove",null,"Description of the insurer's risk management program"]
[null,null,null,null,null,"<Attach file>","Attach","View","Remove",null,"Description of the insurer's risk management program"]
[null,null,null,null,null,"<Attach file>","Attach","View","Remove",null,"Description of the insurer's risk management program"]
[null,null,null,null,null,"<Attach file>","Attach","View","Remove",null,"Description of the insurer's risk management program"]
[null,"12.","Risk register",null,null,"<Attach file>","Attach","View","Remove",null,"Risk register"]
[null,null,null,null,null,"<Attach file>","Attach","View","Remove",null,"Risk register"]
[null,null,null,null,null,"<Attach file>","Attach","View","Remove",null,"Risk register"]
[null,null,null,null,null,"<Attach file>","Attach","View","Remove",null,"Risk register"]
[null,null,null,null,null,"<Attach file>","Attach","View","Remove",null,"Risk register"]
[null,null,null,null,null,"<Attach file>","Attach","View","Remove",null,"Risk register"]
[null,null,null,null,null,"<Attach file>","Attach","View","Remove",null,"Risk register"]
[null,null,null,null,null,"<Attach file>","Attach","View","Remove",null,"Risk register"]
[null,null,null,null,null,"<Attach file>","Attach","View","Remove",null,"Risk register"]
[null,null,null,null,null,"<Attach file>","Attach","View","Remove",null,"Risk register"]
[null,"13.","Reconciliation to company specific parameters",null,null,"<Attach file>","Attach","View","Remove",null,"CISSA Attachments"]
[null,null,null,null,null,"<Attach file>","Attach","View","Remove",null,"CISSA Attachments"]
[null,null,null,null,null,"<Attach file>","Attach","View","Remove",null,"CISSA Attachments"]
[null,null,null,null,null,"<Attach file>","Attach","View","Remove",null,"CISSA Attachments"]
[null,null,null,null,null,"<Attach file>","Attach","View","Remove",null,"CISSA Attachments"]
[null,null,null,null,null,"<Attach file>","Attach","View","Remove",null,"CISSA Attachments"]
[null,null,null,null,null,"<Attach file>","Attach","View","Remove",null,"CISSA Attachments"]
[null,null,null,null,null,"<Attach file>","Attach","View","Remove",null,"CISSA Attachments"]
[null,null,null,null,null,"<Attach file>","Attach","View","Remove",null,"CISSA Attachments"]
[null,null,null,null,null,"<Attach file>","Attach","View","Remove",null,"CISSA Attachments"]
[null,"14.","Alternative capital schedule",null,null,"<Attach file>","Attach","View","Remove",null,"CISSA Attachments"]
[null,null,null,null,null,"<Attach file>","Attach","View","Remove",null,"CISSA Attachments"]
[null,null,null,null,null,"<Attach file>","Attach","View","Remove",null,"CISSA Attachments"]
[null,null,null,null,null,"<Attach file>","Attach","View","Remove",null,"CISSA Attachments"]
[null,null,null,null,null,"<Attach file>","Attach","View","Remove",null,"CISSA Attachments"]
[null,null,null,null,null,"<Attach file>","Attach","View","Remove",null,"CISSA Attachments"]
[null,null,null,null,null,"<Attach file>","Attach","View","Remove",null,"CISSA Attachments"]
[null,null,null,null,null,"<Attach file>","Attach","View","Remove",null,"CISSA Attachments"]
[null,null,null,null,null,"<Attach file>","Attach","View","Remove",null,"CISSA Attachments"]
[null,null,null,null,null,"<Attach file>","Attach","View","Remove",null,"CISSA Attachments"]
[null,"15.","Cyber security policy",null,null,"<Attach file>","Attach","View","Remove",null,"CISSA Attachments"]
[null,null,null,null,null,"<Attach file>","Attach","View","Remove",null,"CISSA Attachments"]
[null,null,null,null,null,"<Attach file>","Attach","View","Remove",null,"CISSA Attachments"]
[null,null,null,null,null,"<Attach file>","Attach","View","Remove",null,"CISSA Attachments"]
[null,null,null,null,null,"<Attach file>","Attach","View","Remove",null,"CISSA Attachments"]
[null,null,null,null,null,"<Attach file>","Attach","View","Remove",null,"CISSA Attachments"]
[null,null,null,null,null,"<Attach file>","Attach","View","Remove",null,"CISSA Attachments"]
[null,null,null,null,null,"<Attach file>","Attach","View","Remove",null,"CISSA Attachments"]
[null,null,null,null,null,"<Attach file>","Attach","View","Remove",null,"CISSA Attachments"]
[null,null,null,null,null,"<Attach file>","Attach","View","Remove",null,"CISSA Attachments"]
[null,"16.","Digital asset custody policy, if applicable",null,null,"<Attach file>","Attach","View","Remove",null,"Other Attachments"]
[null,null,null,null,null,"<Attach file>","Attach","View","Remove",null,"Other Attachments"]
[null,null,null,null,null,"<Attach file>","Attach","View","Remove",null,"Other Attachments"]
[null,null,null,null,null,"<Attach file>","Attach","View","Remove",null,"Other Attachments"]
[null,null,null,null,null,"<Attach file>","Attach","View","Remove",null,"Other Attachments"]
[null,null,null,null,null,"<Attach file>","Attach","View","Remove",null,"Other Attachments"]
[null,null,null,null,null,"<Attach file>","Attach","View","Remove",null,"Other Attachments"]
[null,null,null,null,null,"<Attach file>","Attach","View","Remove",null,"Other Attachments"]
[null,null,null,null,null,"<Attach file>","Attach","View","Remove",null,"Other Attachments"]
[null,null,null,null,null,"<Attach file>","Attach","View","Remove",null,"Other Attachments"]
[null,"17.","Names of outsourcing partners, copies of service level agreements setting out the roles, duties and functions of outsourced partners; including third parties or affiliates of outsourced partners  performing customer asset storage, cyber security, compliance, asset custody and other key functions.",null,null,"<Attach file>","Attach","View","Remove",null,"Other Attachments"]
[null,null,null,null,null,"<Attach file>","Attach","View","Remove",null,"Other Attachments"]
[null,null,null,null,null,"<Attach file>","Attach","View","Remove",null,"Other Attachments"]
[null,null,null,null,null,"<Attach file>","Attach","View","Remove",null,"Other Attachments"]
[null,null,null,null,null,"<Attach file>","Attach","View","Remove",null,"Other Attachments"]
[null,null,null,null,null,"<Attach file>","Attach","View","Remove",null,"Other Attachments"]
[null,null,null,null,null,"<Attach file>","Attach","View","Remove",null,"Other Attachments"]
[null,null,null,null,null,"<Attach file>","Attach","View","Remove",null,"Other Attachments"]
[null,null,null,null,null,"<Attach file>","Attach","View","Remove",null,"Other Attachments"]
[null,null,null,null,null,"<Attach file>","Attach","View","Remove",null,"Other Attachments"]
[null,"18.","Signed declaration of compliance",null,null,"<Attach file>","Attach","View","Remove",null,"Other Attachments"]
[null,null,null,null,null,"<Attach file>","Attach","View","Remove",null,"Other Attachments"]
[null,null,null,null,null,"<Attach file>","Attach","View","Remove",null,"Other Attachments"]
[null,null,null,null,null,"<Attach file>","Attach","View","Remove",null,"Other Attachments"]
[null,null,null,null,null,"<Attach file>","Attach","View","Remove",null,"Other Attachments"]
[null,null,null,null,null,"<Attach file>","Attach","View","Remove",null,"Other Attachments"]
[null,null,null,null,null,"<Attach file>","Attach","View","Remove",null,"Other Attachments"]
[null,null,null,null,null,"<Attach file>","Attach","View","Remove",null,"Other Attachments"]
[null,null,null,null,null,"<Attach file>","Attach","View","Remove",null,"Other Attachments"]
[null,null,null,null,null,"<Attach file>","Attach","View","Remove",null,"Other Attachments"]
[null,"19.","Audited statutory financial returns and Capital and Solvency Return Declaration",null,null,"<Attach file>","Attach","View","Remove",null,"Other Attachments"]
[null,null,null,null,null,"<Attach file>","Attach","View","Remove",null,"Other Attachments"]
[null,null,null,null,null,"<Attach file>","Attach","View","Remove",null,"Other Attachments"]
[null,null,null,null,null,"<Attach file>","Attach","View","Remove",null,"Other Attachments"]
[null,null,null,null,null,"<Attach file>","Attach","View","Remove",null,"Other Attachments"]
[null,null,null,null,null,"<Attach file>","Attach","View","Remove",null,"Other Attachments"]
[null,null,null,null,null,"<Attach file>","Attach","View","Remove",null,"Other Attachments"]
[null,null,null,null,null,"<Attach file>","Attach","View","Remove",null,"Other Attachments"]
[null,null,null,null,null,"<Attach file>","Attach","View","Remove","","Other Attachments"]
[null,null,null,null,null,"<Attach file>","Attach","View","Remove","","Other Attachments"]
[null,"20.","Other attachments",null,null,"<Attach file>","Attach","View","Remove",null,"Other Attachments"]
[null,null,null,null,null,"<Attach file>","Attach","View","Remove",null,"Other Attachments"]
[null,null,null,null,null,"<Attach file>","Attach","View","Remove",null,"Other Attachments"]
[null,null,null,null,null,"<Attach file>","Attach","View","Remove",null,"Other Attachments"]
[null,null,null,null,null,"<Attach file>","Attach","View","Remove",null,"Other Attachments"]
[null,null,null,null,null,"<Attach file>","Attach","View","Remove",null,"Other Attachments"]
[null,null,null,null,null,"<Attach file>","Attach","View","Remove",null,"Other Attachments"]
[null,null,null,null,null,"<Attach file>","Attach","View","Remove",null,"Other Attachments"]
[null,null,null,null,null,"<Attach file>","Attach","View","Remove",null,"Other Attachments"]
[null,null,null,null,null,"<Attach file>","Attach","View","Remove",null,"Other Attachments"]

{"sheet":"FileStorage","index":10,"n_rows":0,"n_cols":0,"rows_kept":0,"cut":false,"hidden":true,"merged":[]}

{"sheet":"Declaration","index":11,"n_rows":89,"n_cols":16,"rows_kept":89,"cut":false,"hidden":false,"merged":[[0,0,0,2],[5,1,5,3]]}
["CAPITAL AND SOLVENCY RETURN DECLARATION",null,null,{"$f":"HYPERLINK(\"#'Index'!A1\",\"Return to Index\")","v":"Return to Index"},null,null,null,null,null,null,null,null,null,null,null,{"$f":"IF(C4=\"\",\"\",TEXT(DATE(YEAR(C4+1)-1,MONTH(C4+1),DAY(C4+1)),\"mm/dd/yyyy\"))","v":"01/01/2022"}]
[null,null,null,null,null,null,null,"",null,null,null,null,null,null,null,{"$f":"IF(C4=\"\",\"\",TEXT(C4,\"mm/dd/yyyy\"))","v":"12/31/2022"}]
[null,{"$f":"'Company Information'!C7","v":"Enter Company Name"}]
[null,"For the Year Ending ",{"$f":"'Company Information'!C3","v":"2022-12-31"},null,null,null,null,""]
[]
[null,"We declare that to the best of our knowledge and belief, the information in this Capital and Solvency Return fairly represents the financial condition of the Company in all material respects."]
[]
[]
[null,"Signatory:"]
[]
[null,"Print Name:",{"$f":"+Import!E5","v":0}]
[null,null,"Director"]
[]
[null,"Date:",{"$f":"+Import!E6","v":"00:00:00"}]
[]
[]
[null,"Signatory:"]
[]
[null,"Print Name:",{"$f":"+Import!E7","v":0}]
[null,null,"Director"]
[]
[null,"Date:",{"$f":"+Import!E8","v":"00:00:00"}]
[]
[null,"Signatory:"]
[]
[null,"Print Name:",{"$f":"+Import!E9","v":0}]
[null,null,{"$f":"IF('Company Information'!F11=\"IIGB\",\"Principal Representative\",\"Chief Risk Officer or Chief Financial Officer\")","v":"Principal Representative"}]
[]
[null,"Date:",{"$f":"+Import!E10","v":"00:00:00"}]
[]
[null,"Insurer Name:",{"$f":"B3","v":"Enter Company Name"}]
[]
[null,"Year-end:",{"$f":"C4","v":"2022-12-31"}]
[]
[]
[]
[]
[]
[]
[]
[]
[]
[]
[]
[]
[]
[]
[]
[]
[]
[]
[]
[]
[]
[]
[]
[]
[]
[]
[]
[]
[]
[]
[]
[]
[]
[]
[]
[]
[]
[]
[]
[]
[]
[]
[]
[]
[]
[]
[]
[]
[]
[]
[]
[]
[]
[]
[]
[null,null,null,null,null,null,null,""]

{"sheet":"Zones","index":12,"n_rows":143,"n_cols":12,"rows_kept":143,"cut":false,"hidden":false,"merged":[[134,3,134,9]]}
[null,"ZONE CATEGORISATION AND BSCR RATING SCHEDULE",null,null,null,null,null,null,null,null,{"$f":"HYPERLINK(\"#'Index'!A1\",\"Return to Index\")","v":"Return to Index"}]
[null,{"$f":"+'Company Information'!C7","v":"Enter Company Name"}]
[null,"ZONE CATEGORISATION "]
[null,null,"Zone 1 - Central & Western Asia"]
[null,null,null,"Armenia",null,"Azerbaijan",null,"Bahrain",null,"Georgia"]
[null,null,null,"Iraq",null,"Israel",null,"Jordan",null,"Kazakhstan"]
[null,null,null,"Kuwait",null,"Kyrgyzstan",null,"Lebanon",null,"Oman"]
[null,null,null,"Palestine",null,"Qatar",null,"Saudi Arabia",null,"Saudi Arab Republic"]
[null,null,null,"Tajikistan",null,"Turkey",null,"Turkmenistan",null,"United Arab Emirates"]
[null,null,null,"Uzbekistan",null,"Yemen"]
[]
[]
[null,null,"Zone 2 - Eastern Asia"]
[null,null,null,"China",null,"Hong Kong",null,"Japan",null,"Macao"]
[null,null,null,"Mongolia",null,"North Korea",null,"South Korea",null,"Taiwan"]
[]
[]
[null,null,"Zone 3 - South and South-Eastern Asia"]
[null,null,null,"Afghanistan",null,"Bangladesh",null,"Bhutan",null,"Brunei Darussalam"]
[null,null,null,"Cambodia",null,"India",null,"Indonesia",null,"Iran"]
[null,null,null,"Lao PDR",null,"Malaysia",null,"Maldives",null,"Myanmar"]
[null,null,null,"Nepal",null,"Pakistan",null,"Philippines",null,"Singapore"]
[null,null,null,"Sri Lanka",null,"Thailand",null,"Timor-Leste",null,"Vietnam"]
[]
[]
[null,null,"Zone 4 - Oceania"]
[null,null,null,"American Samoa",null,"Australia",null,"Cook Islands",null,"Fiji"]
[null,null,null,"French Polynesia",null,"Guam",null,"Kiribati",null,"Marshall Islands"]
[null,null,null,"Micronesia",null,"Nauru",null,"New Caledonia",null,"New Zealand"]
[null,null,null,"Niue",null,"Norfolk Island",null,"N. Mariana Islands",null,"Palau"]
[null,null,null,"Papua New Guinea",null,"Pitcairn",null,"Samoa",null,"Solomon Islands"]
[null,null,null,"Tokelau",null,"Tonga",null,"Tuvalu",null,"Vanuatu"]
[null,null,null,"Wallis & Futuna Islands"]
[]
[]
[null,null,"Zone 5 - Northern Africa"]
[null,null,null,"Algeria",null,"Benin",null,"Burkina Faso",null,"Cameroon"]
[null,null,null,"Cape Verde",null,"Central African Republic",null,"Chad",null,"Cote d' Ivoire"]
[null,null,null,"Egypt",null,"Gambia",null,"Ghana",null,"Guinea"]
[null,null,null,"Guinea-Bissau",null,"Liberia",null,"Libya",null,"Mali"]
[null,null,null,"Mauritania",null,"Morocco",null,"Niger",null,"Nigeria"]
[null,null,null,"Saint Helena",null,"Senegal",null,"Sierra Leone",null,"South Sudan"]
[null,null,null,"Togo",null,"Tunisia",null,"Western Sahara"]
[]
[]
[null,null,"Zone 6 - Southern Africa"]
[null,null,null,"Angola",null,"Botswana",null,"Burundi",null,"Democratic Republic of Congo"]
[null,null,null,"Comoros",null,"Djibouti",null,"Equatorial Guinea",null,"Eritrea"]
[null,null,null,"Ethiopia",null,"Gabon",null,"Kenya",null,"Lesotho"]
[null,null,null,"Madagascar",null,"Malawi",null,"Mauritius",null,"Mayotte"]
[null,null,null,"Mozambique",null,"Namibia",null,"Republic of Congo",null,"Reunion"]
[null,null,null,"Rwanda",null,"Sao Tome & Principe",null,"Seychelles",null,"Somalia"]
[null,null,null,"South Africa",null,"Eswatini",null,"Uganda",null,"United Republic of Tanzania"]
[null,null,null,"Zambia",null,"Zimbabwe"]
[]
[]
[null,null,"Zone 7 - Eastern Europe"]
[null,null,null,"Belarus",null,"Bulgaria",null,"Czech Republic",null,"Hungary"]
[null,null,null,"Moldova",null,"Poland",null,"Romania",null,"Russian Federation"]
[null,null,null,"Slovakia",null,"Ukraine"]
[]
[null,null,"Zone 8 - Northern Europe"]
[null,null,null,"Aland Islands",null,"Channel Islands",null,"Denmark",null,"Estonia"]
[null,null,null,"Faeroe Islands",null,"Finland",null,"Guernsey",null,"Iceland"]
[null,null,null,"Republic of Ireland",null,"Isle of Man",null,"Jersey",null,"Latvia"]
[null,null,null,"Lithuania",null,"Norway",null,"Svalbard, Jan Mayen",null,"Sweden"]
[null,null,null,"United Kingdom"]
[]
[]
[null,null,"Zone 9 - Southern Europe"]
[null,null,null,"Albania",null,"Andorra",null,"Bosnia",null,"Croatia"]
[null,null,null,"Cyprus",null,"Gibraltar",null,"Greece",null,"Italy"]
[null,null,null,"fYR of Macedonia",null,"Malta",null,"Montenegro",null,"Portugal"]
[null,null,null,"San Marino",null,"Serbia",null,"Slovenia",null,"Spain"]
[null,null,null,"Vatican City"]
[]
[]
[null,null,"Zone 10 - Western Europe"]
[null,null,null,"Austria",null,"Belgium",null,"France",null,"Germany"]
[null,null,null,"Liechtenstein",null,"Luxembourg",null,"Monaco",null,"Netherlands"]
[null,null,null,"Switzerland"]
[]
[]
[null,null,"Zone 11 - Northern America (Excluding USA)"]
[null,null,null,"Bermuda",null,"Canada",null,"Greenland",null,"St Pierre & Miquelon"]
[]
[]
[null,null,"Zone 12 - Caribbean & Central America"]
[]
[null,null,null,"Anguilla",null,"Antigua & Barbuda",null,"Aruba",null,"Bahamas"]
[null,null,null,"Barbados",null,"Belize",null,"British Virgin Islands",null,"Cayman Islands"]
[null,null,null,"Costa Rica",null,"Cuba",null,"Dominica",null,"Dominican Republic"]
[null,null,null,"El Salvador",null,"Grenada",null,"Guadeloupe",null,"Guatemala"]
[null,null,null,"Haiti",null,"Honduras",null,"Jamaica",null,"Martinique"]
[null,null,null,"Mexico",null,"Montserrat",null,"Netherlands Antilles",null,"Nicaragua"]
[null,null,null,"Panama",null,"Puerto Rico",null,"St-Barthelemy",null,"St Kitts & Nevis"]
[null,null,null,"St Lucia",null,"St Martin",null,"St Vincent",null,"Trinidad & Tobago",null,"Tobago"]
[null,null,null,"Turks & Caicos Islands",null,"US Virgin Islands"]
[]
[]
[null,null,"Zone 13 - Eastern South America"]
[null,null,null,"Brazil",null,"Falkland Islands",null,"French Guiana",null,"Guyana"]
[null,null,null,"Paraguay",null,"Suriname",null,"Uruguay"]
[]
[]
[null,null,"Zone 14 - Northern, Southern and Western South America"]
[null,null,null,"Argentina",null,"Bolivia",null,"Chile",null,"Colombia"]
[null,null,null,"Ecuador",null,"Peru",null,"Venezuela"]
[]
[null,null,"Zone 15 - North-East United States"]
[null,null,null,"Connecticut",null,"Delaware",null,"District of Columbia",null,"Maine"]
[null,null,null,"Maryland",null,"Massachusetts",null,"New Hampshire",null,"New Jersey"]
[null,null,null,"New York",null,"Pennsylvania",null,"Rhode Island",null,"Vermont"]
[]
[null,null,"Zone 16 - South-East United States"]
[null,null,null,"Alabama",null,"Arkansas",null,"Florida",null,"Georgia"]
[null,null,null,"Kentucky",null,"Louisiana",null,"Mississippi",null,"North Carolina"]
[null,null,null,"South Carolina",null,"Tennessee",null,"Virginia",null,"West Virigina"]
[]
[]
[null,null,"Zone 17 - Mid-West United States"]
[null,null,null,"Illinois",null,"Indiana",null,"Iowa",null,"Kansas"]
[null,null,null,"Michigan",null,"Minnesota",null,"Missouri",null,"Nebraska"]
[null,null,null,"North Dakota",null,"Ohio",null,"Oklahoma",null,"South Dakota"]
[null,null,null,"Wisconsin"]
[]
[null,null,"Zone 18 - Western United States"]
[null,null,null,"Alaska",null,"Arizona",null,"California",null,"Colorado"]
[null,null,null,"Hawaii",null,"Idaho",null,"Montana",null,"Nevada"]
[null,null,null,"New Mexico",null,"Oregon",null,"Texas",null,"Utah"]
[null,null,null,"Washington",null,"Wyoming"]
[]
[null,"BSCR RATING SCHEDULE"]
[null,null,null,"Standard & Poor’s",null,"Moody’s",null,"AM Best",null,"Fitch"]
[null,0,null,"Sovereign debt issued by a country in its own currency that is rated AA- or better"]
[null,1,null,"AAA",null,"Aaa",null,"A++",null,"AAA"]
[null,2,null,"AA+ to AA-",null,"Aa1 to Aa3",null,"A+",null,"AA+ to AA-"]
[null,3,null,"A+ to A-",null,"A1 to A3",null,"A",null,"A+ to A-"]
[null,4,null,"BBB+ to BBB-",null,"Baa1 to Baa3",null,"A-",null,"BBB+ to BBB-"]
[null,5,null,"BB+ to BB-",null,"Ba1 to Ba3",null,"B++ to B",null,"BB+ to BB-"]
[null,6,null,"B+ to B-",null,"B1 to B3",null,"B- to C+",null,"B+ to B-"]
[null,7,null,"CCC+ to CCC-",null,"Caa1 to Caa3",null,"C, C-",null,"CCC+ to CCC-"]
[null,8,null,"Below CCC-",null,"Below Caa3",null,"Below C-",null,"Below CCC-"]

{"sheet":"Information Sheet","index":13,"n_rows":131,"n_cols":12,"rows_kept":131,"cut":false,"hidden":false,"merged":[[8,2,9,6],[42,2,44,6],[86,2,87,6],[88,2,90,6],[28,2,28,6],[31,2,31,6],[40,2,40,6]]}
[null,"Insurer Information Sheet",null,null,null,null,null,{"$f":"HYPERLINK(\"#'Index'!A1\",\"Return to Index\")","v":"Return to Index"}]
[]
[null,"(a)","Name of Insurer:",null,null,null,null,{"$f":"+'Company Information'!C7","v":"Enter Company Name"}]
[]
[null,"(b)","Certificate of Registration Number",null,null,null,null,{"$f":"+'Company Information'!F9","v":0}]
[]
[null,"(c)","Class of Registration:",null,null,null,null,{"$f":"+'Company Information'!F11","v":"IIGB"}]
[]
[null,"(d)","Statements are available at the insurer's registered office in Bermuda pursuant to section 17(1) or, as the case may be, have been filed pursuant to section 17(3) of the Act",null,null,null,null,{"$f":"Import!E12","v":"Select Yes/No"}]
[]
[]
[null,"(e)","Filing Period:"]
[null,null,"Period Start Date:",null,null,null,null,{"$f":"Import!E13","v":"00:00:00"}]
[null,null,"Period End Date:",null,null,null,null,{"$f":"+'Company Information'!C3","v":"2022-12-31"}]
[]
[null,"(f)","Currency used in the statutory financial statements:",null,null,null,null,{"$f":"+'Form 1SFS (Consolidated)'!C5","v":"United States Dollars"}]
[]
[null,"(g)","To prepare this return, provide the multiplier exchange rate/translation rate that is applicable in converting the reporting currency to USD/BMD",null,null,null,null,{"$f":"Import!E14","v":1}]
[]
[null,"(h)","Ultimate Parent",null,null,null,null,{"$f":"Import!E15","v":0}]
[]
[null,"(i)","Insurer's Parent Company",null,null,null,null,{"$f":"Import!E16","v":0}]
[]
[null,"(j)","Industry Sector of the Insurer's Parent",null,null,null,null,{"$f":"Import!E17","v":"Select from Drop-Down"}]
[]
[null,"(k)","Insurer's Ownership Structure",null,null,null,null,{"$f":"Import!E18","v":"Select from Drop-Down"}]
[]
[null,"(l)","Insurer's Company Structure",null,null,null,null,{"$f":"Import!E19","v":"Select from Drop-Down"}]
[null,"(l).1","Confirm if the company has written or currently writes long-term insurance",null,null,null,null,{"$f":"Import!E20","v":"Select Yes/No"}]
[null,"(l).2","Did the company actively write long-term insurance business during the financial period",null,null,null,null,{"$f":"Import!E21","v":"Select Yes/No"}]
[null,"(l).3","If the company has subsidiaries, confirm if the subsidiaries wrote long-term insurance business during the financial period",null,null,null,null,{"$f":"Import!E22","v":"Select Yes/No"}]
[null,"(l).4","If the subsidiaries wrote long-term insurance business during the financial period, confirm if the subsidiaries are in another jurisdiction outside of Bermuda",null,null,null,null,{"$f":"Import!E23","v":"Select Yes/No"}]
[null,"(l).5","If other jurisdictions outside of Bermuda, list the jurisdictions",null,null,null,null,{"$f":"Import!E24","v":0}]
[null,null,null,null,null,null,null,{"$f":"Import!E25","v":0}]
[null,null,null,null,null,null,null,{"$f":"Import!E26","v":0}]
[]
[null,"(m)","General Questions"]
[null,null,"(i) Is the Insurer a member of a group?",null,null,null,null,{"$f":"Import!E27","v":"Select Yes/No"}]
[null,null,"(ii) Does the Insurer have segregated accounts?",null,null,null,null,{"$f":"Import!E28","v":"Select Yes/No"}]
[null,null,"(iii) Is the insurer in run-off?",null,null,null,null,{"$f":"Import!E29","v":"Select Yes/No"}]
[null,null,"(iii) Whether the general purpose financial statements of the insurer for the relevant year have been audited and/or an unqualified opinion issued",null,null,null,null,{"$f":"Import!E30","v":"Select Yes/No"}]
[null,null,"If a qualified opinion was issued, indicate the qualification:"]
[null,null,{"$f":"Import!E31","v":0}]
[]
[]
[null,null,"(iv) The minimum solvency margin was met:",null,null,null,null,{"$f":"Import!E32","v":"Select Yes/No"}]
[null,null,"(v) The applicable minimum liquidity ratio was met during the reporting period:",null,null,null,null,{"$f":"Import!E33","v":"Select Yes/No"}]
[]
[null,"(n)","Certificate of Registration Conditions"]
[]
[null,1,"Certificate of Registration for General Business - Effective Date",null,null,null,null,{"$f":"IF(+'Company Information'!C11=0,\"\",+'Company Information'!C11)","v":""}]
[]
[null,2,"Certificate of Registration for General Business - General Conditions (Enter Number of Conditions)",null,null,null,null,{"$f":"Import!E35","v":0}]
[]
[null,null,null,null,"Effective Start Date","Effective End Date","Condition Description"]
[null,null,null,1,{"$f":"Import!E36","v":"00:00:00"},{"$f":"Import!E46","v":"00:00:00"},{"$f":"Import!E56","v":0}]
[null,null,null,{"$f":"D56+1","v":2},{"$f":"Import!E37","v":"00:00:00"},{"$f":"Import!E47","v":"00:00:00"},{"$f":"Import!E57","v":0}]
[null,null,null,{"$f":"D57+1","v":3},{"$f":"Import!E38","v":"00:00:00"},{"$f":"Import!E48","v":"00:00:00"},{"$f":"Import!E58","v":0}]
[null,null,null,4,{"$f":"Import!E39","v":"00:00:00"},{"$f":"Import!E49","v":"00:00:00"},{"$f":"Import!E59","v":0}]
[null,null,null,5,{"$f":"Import!E40","v":"00:00:00"},{"$f":"Import!E50","v":"00:00:00"},{"$f":"Import!E60","v":0}]
[null,null,null,6,{"$f":"Import!E41","v":"00:00:00"},{"$f":"Import!E51","v":"00:00:00"},{"$f":"Import!E61","v":0}]
[null,null,null,7,{"$f":"Import!E42","v":"00:00:00"},{"$f":"Import!E52","v":"00:00:00"},{"$f":"Import!E62","v":0}]
[null,null,null,8,{"$f":"Import!E43","v":"00:00:00"},{"$f":"Import!E53","v":"00:00:00"},{"$f":"Import!E63","v":0}]
[null,null,null,9,{"$f":"Import!E44","v":"00:00:00"},{"$f":"Import!E54","v":"00:00:00"},{"$f":"Import!E64","v":0}]
[null,null,null,10,{"$f":"Import!E45","v":"00:00:00"},{"$f":"Import!E55","v":"00:00:00"},{"$f":"Import!E65","v":0}]
[]
[null,"(o)","The insurer has complied with conditions on Certificate of Registration",null,null,null,null,{"$f":"Import!E66","v":"Select Yes/No"}]
[]
[null,"(p)","Regulatory Approvals"]
[]
[null,1,"Regulatory - Approved Direction (Enter Number of Directions)",null,null,null,null,{"$f":"Import!E67","v":0}]
[]
[null,null,null,null,"Effective Start Date","Effective End Date","Direction Description"]
[null,null,null,1,{"$f":"Import!E68","v":"00:00:00"},{"$f":"Import!E78","v":"00:00:00"},{"$f":"Import!E88","v":0}]
[null,null,null,{"$f":"D74+1","v":2},{"$f":"Import!E69","v":"00:00:00"},{"$f":"Import!E79","v":"00:00:00"},{"$f":"Import!E89","v":0}]
[null,null,null,{"$f":"D75+1","v":3},{"$f":"Import!E70","v":"00:00:00"},{"$f":"Import!E80","v":"00:00:00"},{"$f":"Import!E90","v":0}]
[null,null,null,4,{"$f":"Import!E71","v":"00:00:00"},{"$f":"Import!E81","v":"00:00:00"},{"$f":"Import!E91","v":0}]
[null,null,null,5,{"$f":"Import!E72","v":"00:00:00"},{"$f":"Import!E82","v":"00:00:00"},{"$f":"Import!E92","v":0}]
[null,null,null,6,{"$f":"Import!E73","v":"00:00:00"},{"$f":"Import!E83","v":"00:00:00"},{"$f":"Import!E93","v":0}]
[null,null,null,7,{"$f":"Import!E74","v":"00:00:00"},{"$f":"Import!E84","v":"00:00:00"},{"$f":"Import!E94","v":0}]
[null,null,null,8,{"$f":"Import!E75","v":"00:00:00"},{"$f":"Import!E85","v":"00:00:00"},{"$f":"Import!E95","v":0}]
[null,null,null,9,{"$f":"Import!E76","v":"00:00:00"},{"$f":"Import!E86","v":"00:00:00"},{"$f":"Import!E96","v":0}]
[null,null,null,10,{"$f":"Import!E77","v":"00:00:00"},{"$f":"Import!E87","v":"00:00:00"},{"$f":"Import!E97","v":0}]
[]
[]
[]
[null,"(q)","If any question in points (m)(iv) or (m)(v) has been answered in the negative, state the reason for negative answer and describe whether or not the insurer has taken corrective action in any case and, where the insurer has taken such action, describe the action in a statement attached ",null,null,null,null,{"$f":"Import!E98","v":"Select Yes/No"}]
[]
[null,null,{"$f":"Import!E99","v":0}]
[]
[]
[]
[]
[null,null,null,null,null,null,null,null,null,null,null,""]
[null,"Industry Sector","Type of Company"]
[null,"Select from Drop-Down","Select from Drop-Down"]
[null,"Administrative and Support Services","Pure Captive"]
[null,"Agriculture, Mining, Forestry and Fishing","Rent-a-Captive"]
[null,"Automotive, Manufacturing and Retail","Agency Captive"]
[null,"Charities & Non-profit Organisations","Group Captive"]
[null,"Chemical and Pharmaceutical","Association Captive"]
[null,"Construction","Risk Retention Group"]
[null,"Education","Insurer/Reinsurer"]
[null,"Energy, Power and Utilities"]
[null,"Financial Institution"]
[null,"Government or Public Sector"]
[null,"Healthcare"]
[null,"Hospitality"]
[null,"Leisure"]
[null,"Media and Gaming"]
[null,"Professional Services"]
[null,"Science and Research"]
[null,"Shipping, Transport & Storage"]
[null,"Technology and Telecoms"]
[null,"Wholesale and Retail"]
[]
[null,"Ownership"]
[null,"Select from Drop-Down"]
[null,"Mutual"]
[null,"Shares"]
[null,"Partnership"]
[null,"Government or Government Agency"]
[null,"Limited Partnership"]
[null,"Permit/Branch"]
[null,"Trust"]
[]
[null,"General Questions"]
[null,"Select Yes/No"]
[null,"Yes"]
[null,"No"]
[null,"N/A"]

{"sheet":"Financial Condition","index":14,"n_rows":477,"n_cols":10,"rows_kept":477,"cut":false,"hidden":true,"merged":[[85,1,85,2],[86,1,86,2],[87,1,87,2],[80,1,80,2],[81,1,81,2],[82,1,82,2],[83,1,83,2],[84,1,84,2],[75,1,75,2],[76,1,76,2],[77,1,77,2],[78,1,78,2],[79,1,79,2],[70,1,70,2],[71,1,71,2],[72,1,72,2],[73,1,73,2],[74,1,74,2],[252,1,254,5],[115,1,117,5],[121,1,123,5],[163,1,165,5],[345,1,346,5],[158,1,160,5],[234,1,236,5],[168,1,170,5],[173,1,175,5],[185,1,187,5],[180,1,182,5],[192,1,194,5],[198,1,200,5],[196,1,197,5],[241,1,243,5],[246,1,248,5],[203,1,205,5],[208,1,210,5],[215,1,217,5],[220,1,222,5],[227,1,229,5],[285,1,287,5],[256,1,257,5],[289,1,289,5],[292,1,294,5],[298,1,300,5],[275,1,277,5],[280,1,282,5],[270,1,272,5],[260,1,262,5],[265,1,267,5],[397,1,399,5],[313,1,315,5],[296,1,297,5],[317,1,317,5],[347,1,349,5],[371,1,371,5],[362,1,364,5],[367,1,369,5],[308,1,310,5],[323,1,325,5],[303,1,305,5],[321,1,322,5],[334,1,336,5],[332,1,333,5],[352,1,354,5],[357,1,359,5],[385,1,387,5],[380,1,382,5],[449,1,451,5],[443,1,443,5],[444,1,446,5],[439,1,441,5],[438,1,438,5],[422,1,424,5],[431,1,431,5],[434,1,436,5],[427,1,428,5],[390,1,392,5],[402,1,404,5],[407,1,409,5],[412,1,414,5],[417,1,419,5]]}
[null,"SCHEDULE OF FINANCIAL CONDITION REPORT"]
["i)","Business and Performance - particulars regarding the organisational structure, insurance business activities and financial performance "]
[]
["(a)","Name of the insurer:"]
[null,null,null,null,null,{"$f":"+'Company Information'!C7","v":"Enter Company Name"}]
["(b)","Name and contact details of the insurance supervisor and group supervisor"]
[null,null,null,"Insurance Supervisor",null,"Group Supervisor"]
[null,"Name:"]
[null,"Jurisdiction:"]
[null,"Email Address:"]
[null,"Phone Number:"]
[]
["(c)","Name and contact details of the Approved Auditor"]
[]
[null,"Organisation:"]
[null,"Name:"]
[null,"Jurisdiction:"]
[null,"Email Address:"]
[null,"Phone Number:"]
[]
["(d)","Ownership details: ",null,null,null,"Enter Number of Owners"]
[]
[null,null,null,"Owner Name",null,"Ownership Percentage"]
[null,null,1]
[null,null,{"$f":"C24+1","v":2}]
[null,null,{"$f":"C25+1","v":3}]
[null,null,4]
[null,null,5]
[null,null,6]
[null,null,7]
[null,null,8]
[null,null,9]
[null,null,10]
[null,null,11]
[null,null,12]
[null,null,13]
[null,null,14]
[null,null,{"$f":"C37+1","v":15}]
[]
["(e)","Where the insurer is part of a group, a group structure chart showing where the insurer fits within the group structure"]
[]
["(f)","Insurance business written by business segment and by geographical region during the reporting period:"]
[null,"Line of Business",null,"Gross Premium Written",null,"Net Premium Written"]
[1,"Property Catastrophe",null,{"$f":"+'Schedule IVA'!M11","v":0},null,{"$f":"+'Schedule IVA'!Q11","v":0}]
[2,"Property",null,{"$f":"+'Schedule IVA'!M12","v":0},null,{"$f":"+'Schedule IVA'!Q12","v":0}]
[3,"Property Non – Proportional",null,{"$f":"+'Schedule IVA'!M13","v":0},null,{"$f":"+'Schedule IVA'!Q13","v":0}]
[4,"Personal Accident",null,{"$f":"+'Schedule IVA'!M14","v":0},null,{"$f":"+'Schedule IVA'!Q14","v":0}]
[5,"Personal Accident Non- Proportional",null,{"$f":"+'Schedule IVA'!M15","v":0},null,{"$f":"+'Schedule IVA'!Q15","v":0}]
[6,"Aviation",null,{"$f":"+'Schedule IVA'!M16","v":0},null,{"$f":"+'Schedule IVA'!Q16","v":0}]
[7,"Aviation Non – Proportional",null,{"$f":"+'Schedule IVA'!M17","v":0},null,{"$f":"+'Schedule IVA'!Q17","v":0}]
[8,"Credit / Surety ",null,{"$f":"+'Schedule IVA'!M18","v":0},null,{"$f":"+'Schedule IVA'!Q18","v":0}]
[9,"Credit / Surety Non – Proportional",null,{"$f":"+'Schedule IVA'!M19","v":0},null,{"$f":"+'Schedule IVA'!Q19","v":0}]
[10,"Energy Offshore / Marine",null,{"$f":"+'Schedule IVA'!M20","v":0},null,{"$f":"+'Schedule IVA'!Q20","v":0}]
[11,"Energy Offshore / Marine Non - Proportional ",null,{"$f":"+'Schedule IVA'!M21","v":0},null,{"$f":"+'Schedule IVA'!Q21","v":0}]
[12,"US Casualty",null,{"$f":"+'Schedule IVA'!M22","v":0},null,{"$f":"+'Schedule IVA'!Q22","v":0}]
[13,"US Casualty Non - Proportional ",null,{"$f":"+'Schedule IVA'!M23","v":0},null,{"$f":"+'Schedule IVA'!Q23","v":0}]
[14,"US Professional",null,{"$f":"+'Schedule IVA'!M24","v":0},null,{"$f":"+'Schedule IVA'!Q24","v":0}]
[15,"US Professional Non – Proportional",null,{"$f":"+'Schedule IVA'!M25","v":0},null,{"$f":"+'Schedule IVA'!Q25","v":0}]
[16,"US Specialty ",null,{"$f":"+'Schedule IVA'!M26","v":0},null,{"$f":"+'Schedule IVA'!Q26","v":0}]
[17,"US Specialty Non - Proportional",null,{"$f":"+'Schedule IVA'!M27","v":0},null,{"$f":"+'Schedule IVA'!Q27","v":0}]
[18,"International Motor ",null,{"$f":"+'Schedule IVA'!M28","v":0},null,{"$f":"+'Schedule IVA'!Q28","v":0}]
[19,"International Motor Non – Proportional",null,{"$f":"+'Schedule IVA'!M29","v":0},null,{"$f":"+'Schedule IVA'!Q29","v":0}]
[20,"International Casualty Non – Motor ",null,{"$f":"+'Schedule IVA'!M30","v":0},null,{"$f":"+'Schedule IVA'!Q30","v":0}]
[21,"International Casualty Non Motor Non – Proportional ",null,{"$f":"+'Schedule IVA'!M31","v":0},null,{"$f":"+'Schedule IVA'!Q31","v":0}]
[22,"Retro Property",null,{"$f":"+'Schedule IVA'!M32","v":0},null,{"$f":"+'Schedule IVA'!Q32","v":0}]
[23,"Structured / Finite Reinsurance",null,{"$f":"+'Schedule IVA'!M33","v":0},null,{"$f":"+'Schedule IVA'!Q33","v":0}]
[24,"Health",null,{"$f":"+'Schedule IVA'!M34","v":0},null,{"$f":"+'Schedule IVA'!Q34","v":0}]
[25,"Total ",null,{"$f":"SUM(D44:D67)","v":0},null,{"$f":"SUM(F44:F67)","v":0}]
[]
[null,"Geographical Location",null,"Gross Premium Written"]
[1,{"$f":"HYPERLINK(\"#'Zones'!c4\",\"Central & Western Asia\")","v":"Central & Western Asia"}]
[2,{"$f":"HYPERLINK(\"#'Zones'!c13\",\"Eastern Asia\")","v":"Eastern Asia"}]
[3,{"$f":"HYPERLINK(\"#'Zones'!c18\",\"South and South-Eastern Asia\")","v":"South and South-Eastern Asia"}]
[4,{"$f":"HYPERLINK(\"#'Zones'!c26\",\"Oceania\")","v":"Oceania"}]
[5,{"$f":"HYPERLINK(\"#'Zones'!c36\",\"Nothern Africa\")","v":"Nothern Africa"}]
[6,{"$f":"HYPERLINK(\"#'Zones'!c46\",\"Southern Africa\")","v":"Southern Africa"}]
[7,{"$f":"HYPERLINK(\"#'Zones'!c57\",\"Eastern Europe\")","v":"Eastern Europe"}]
[8,{"$f":"HYPERLINK(\"#'Zones'!c68\",\"Nothern Europe\")","v":"Nothern Europe"}]
[9,{"$f":"HYPERLINK(\"#'Zones'!c76\",\"Southern Europe\")","v":"Southern Europe"}]
[10,{"$f":"HYPERLINK(\"#'Zones'!c84\",\"Western Europe\")","v":"Western Europe"}]
[11,{"$f":"HYPERLINK(\"#'Zones'!c90\",\"Nothern America (Excluding USA)\")","v":"Nothern America (Excluding USA)"}]
[12,{"$f":"HYPERLINK(\"#'Zones'!c94\",\"Caribean & Centeral America\")","v":"Caribean & Centeral America"}]
[13,{"$f":"HYPERLINK(\"#'Zones'!c107\",\"Eastern South America\")","v":"Eastern South America"}]
[14,{"$f":"HYPERLINK(\"#'Zones'!c112\",\"Nothern, Southern, and Western South America\")","v":"Nothern, Southern, and Western South America"}]
[15,{"$f":"HYPERLINK(\"#'Zones'!c116\",\"North-East United States\")","v":"North-East United States"}]
[16,{"$f":"HYPERLINK(\"#'Zones'!c121\",\"South-East United States\")","v":"South-East United States"}]
[17,{"$f":"HYPERLINK(\"#'Zones'!c127\",\"Mid-West United States\")","v":"Mid-West United States"}]
[18,{"$f":"HYPERLINK(\"#'Zones'!c133\",\"Western United States\")","v":"Western United States"}]
[null,"TOTAL",null,{"$f":"SUM(D71:D88)","v":0}]
[]
["(g)","Performance  of  investments during the reporting period:"]
[null,null,null,"Market Value",null,"Performance"]
[1,{"$f":"+'Schedule VI (Unconsolidated)'!C8","v":"U.S. Government "}]
[null,{"$f":"+'Schedule VI (Unconsolidated)'!C9","v":"(a) U.S. Government Federal"},null,{"$f":"'Schedule VI Prior'!E9","v":0}]
[null,{"$f":"+'Schedule VI (Unconsolidated)'!C10","v":"(b) U.S. Government Agency - mortgage-backed securities"},null,{"$f":"'Schedule VI Prior'!E10","v":0}]
[null,{"$f":"+'Schedule VI (Unconsolidated)'!C11","v":"(c) U.S. Government Agency - other"},null,{"$f":"'Schedule VI Prior'!E11","v":0}]
[2,{"$f":"+'Schedule VI (Unconsolidated)'!C12","v":"Non-U.S. Government"},null,{"$f":"'Schedule VI Prior'!E12","v":0}]
[3,{"$f":"+'Schedule VI (Unconsolidated)'!C13","v":"States, Municipalities, and Political Subdivision"},null,{"$f":"'Schedule VI Prior'!E13","v":0}]
[4,{"$f":"+'Schedule VI (Unconsolidated)'!C14","v":"Corporate Securities"}]
[null,{"$f":"+'Schedule VI (Unconsolidated)'!C15","v":"(a) U.S. Government-backed Corporate"},null,{"$f":"'Schedule VI Prior'!E15","v":0}]
[null,{"$f":"+'Schedule VI (Unconsolidated)'!C16","v":"(b) Non-U.S. Government-backed Corporate"},null,{"$f":"'Schedule VI Prior'!E16","v":0}]
[null,{"$f":"+'Schedule VI (Unconsolidated)'!C17","v":"(c) FDIC Guaranteed Corporate"},null,{"$f":"'Schedule VI Prior'!E17","v":0}]
[null,{"$f":"+'Schedule VI (Unconsolidated)'!C18","v":"(d) Other Corporate"},null,{"$f":"'Schedule VI Prior'!E18","v":0}]
[5,{"$f":"+'Schedule VI (Unconsolidated)'!C19","v":"Asset-backed Securities"},null,{"$f":"'Schedule VI Prior'!E19","v":0}]
[6,{"$f":"+'Schedule VI (Unconsolidated)'!C20","v":"Mortgage-backed Securities"}]
[null,{"$f":"+'Schedule VI (Unconsolidated)'!C21","v":"(a) Residential Subprime"},null,{"$f":"'Schedule VI Prior'!E21","v":0}]
[null,{"$f":"+'Schedule VI (Unconsolidated)'!C22","v":"(b) Residential Non-subprime"},null,{"$f":"'Schedule VI Prior'!E22","v":0}]
[null,{"$f":"+'Schedule VI (Unconsolidated)'!C23","v":"(c) Commercial"},null,{"$f":"'Schedule VI Prior'!E23","v":0}]
[7,{"$f":"+'Schedule VI (Unconsolidated)'!C24","v":"Mutual Funds"},null,{"$f":"'Schedule VI Prior'!E24","v":0}]
[8,{"$f":"+'Schedule VI (Unconsolidated)'!C25","v":"Bank Loans"},null,{"$f":"'Schedule VI Prior'!E25","v":0}]
[9,{"$f":"+'Schedule VI (Unconsolidated)'!C26","v":"Catastrophe Bonds and Insurance-Linked Securities"},null,{"$f":"'Schedule VI Prior'!E26","v":0}]
[10,{"$f":"+'Schedule VI (Unconsolidated)'!C27","v":"Others (Briefly describe)"},null,{"$f":"'Schedule VI Prior'!E27","v":0}]
[null,{"$f":"+'Schedule VI (Unconsolidated)'!C28","v":"TOTAL PORTFOLIO"},null,{"$f":"SUM(D93:D112)","v":0}]
[]
[null,"Details  on  material income and expenses incurred"]
[]
[]
[]
[]
["(h)","Any other material information:"]
[]
[]
[]
[]
[]
["ii)","Governance Structure - particulars of corporate governance, risk management and solvency self-assessment frameworks"]
[]
["(a)","Board and Senior Executive:"]
[]
["i.","Directors",null,null,null,{"$f":"'Schedule V(a)'!D8","v":0}]
[]
[null,"Name","Board Position"]
[1,{"$f":"'Schedule V(a)'!C12","v":0},{"$f":"'Schedule V(a)'!D12","v":0}]
[{"$f":"A133+1","v":2},{"$f":"'Schedule V(a)'!C13","v":0},{"$f":"'Schedule V(a)'!D13","v":0}]
[{"$f":"A134+1","v":3},{"$f":"'Schedule V(a)'!C14","v":0},{"$f":"'Schedule V(a)'!D14","v":0}]
[4,{"$f":"'Schedule V(a)'!C15","v":0},{"$f":"'Schedule V(a)'!D15","v":0}]
[5,{"$f":"'Schedule V(a)'!C16","v":0},{"$f":"'Schedule V(a)'!D16","v":0}]
[6,{"$f":"'Schedule V(a)'!C17","v":0},{"$f":"'Schedule V(a)'!D17","v":0}]
[7,{"$f":"'Schedule V(a)'!C18","v":0},{"$f":"'Schedule V(a)'!D18","v":0}]
[8,{"$f":"'Schedule V(a)'!C19","v":0},{"$f":"'Schedule V(a)'!D19","v":0}]
[{"$f":"A140+1","v":9},{"$f":"'Schedule V(a)'!C20","v":0},{"$f":"'Schedule V(a)'!D20","v":0}]
[{"$f":"A141+1","v":10},{"$f":"'Schedule V(a)'!C21","v":0},{"$f":"'Schedule V(a)'!D21","v":0}]
[]
[null,"Officers",null,null,null,{"$f":"'Schedule V(a)'!D33","v":0}]
[]
[null,"Name","Board Position","Responsibilities"]
[1,{"$f":"'Schedule V(a)'!C37","v":0},{"$f":"'Schedule V(a)'!D37","v":0}]
[{"$f":"A147+1","v":2},{"$f":"'Schedule V(a)'!C38","v":0},{"$f":"'Schedule V(a)'!D38","v":0}]
[{"$f":"A148+1","v":3},{"$f":"'Schedule V(a)'!C39","v":0},{"$f":"'Schedule V(a)'!D39","v":0}]
[4,{"$f":"'Schedule V(a)'!C40","v":0},{"$f":"'Schedule V(a)'!D40","v":0}]
[5,{"$f":"'Schedule V(a)'!C41","v":0},{"$f":"'Schedule V(a)'!D41","v":0}]
[6,{"$f":"'Schedule V(a)'!C42","v":0},{"$f":"'Schedule V(a)'!D42","v":0}]
[7,{"$f":"'Schedule V(a)'!C43","v":0},{"$f":"'Schedule V(a)'!D43","v":0}]
[8,{"$f":"'Schedule V(a)'!C44","v":0},{"$f":"'Schedule V(a)'!D44","v":0}]
[9,{"$f":"'Schedule V(a)'!C45","v":0},{"$f":"'Schedule V(a)'!D45","v":0}]
[10,{"$f":"'Schedule V(a)'!C46","v":0},{"$f":"'Schedule V(a)'!D46","v":0}]
[]
[null,"Description of segregation of these responsibilities"]
[]
[]
[]
[]
["ii.","Description of remuneration policy and practices and performance- based criteria governing the board, senior executive and employees"]
[]
[]
[]
[]
["iii.","Description of the supplementary pension or early retirement schemes for members, the board and senior executive"]
[]
[]
[]
[]
["iv.","Any material transactions with shareholder controllers, persons who exercise significant influence, the board or senior executive"]
[]
[]
[]
[]
["(b)","Fitness and Propriety Requirements"]
[]
["i.","Description of the fit and proper process in assessing the board and senior executive"]
[]
[]
[]
[]
["ii.","Description of the professional qualifications, skills, and expertise of the board and senior executives to carry out their functions"]
[]
[]
[]
[]
["(c)","Risk Management and Solvency Self-Assessment"]
[]
["i.","Description of  the risk management process and procedures to effectively identify, measure, manage and report on risk exposures"]
[]
[]
[]
[]
["ii.","Description of how the risk management and solvency self- assessment systems are implemented and integrated into the insurer’s operations; including strategic planning and organisational and decision making process"]
[]
[]
[]
[]
[]
["iii.","Description of the relationship between the solvency self- assessment, solvency needs, and capital and risk management systems"]
[]
[]
[]
[]
["iv.","Description of the solvency self-assessment approval process including the level of oversight and independent verification by the board and senior executives"]
[]
[]
[]
[]
["(d)","Internal Controls"]
[]
["i.","Description of the internal control system"]
[]
[]
[]
[]
["ii.","Description of how the compliance function is executed"]
[]
[]
[]
[]
["(e)","Internal Audit"]
[]
[null,"Description of how the internal audit function is implemented and how it maintains its independence and objectivity when conducting its functions"]
[]
[]
[]
[]
["(f)","Actuarial Function"]
[]
[null,"Description of how the actuarial function is implemented"]
[]
[]
[]
[]
["(g)","Outsourcing"]
[]
["i.","Description of the outsourcing policy and information on any key or important functions that have been outsourced"]
[]
[]
[]
[]
["ii.","Description of material intra-group outsourcing"]
[]
[]
[]
[]
["(h)","Any other material information:"]
[]
[]
[]
[]
[]
["iii)","Risk Profile - particulars on exposures on underwriting risk, market risk including off balance sheet exposures, credit risk, liquidity risk, operational risk and other material risks"]
[]
[]
["(a)","Material risks that the insurer is exposed to, including how these risks are measured and any material changes that have occurred during the reporting period:"]
[]
[]
[]
[]
["(b)","How risks are mitigated including the methods used and the process to monitor the effectiveness of these methods"]
[]
[]
[]
[]
["(c)","Material risk concentrations"]
[]
[]
[]
[]
["(d)","How assets are invested in accordance with the prudent person principle as stated in Paragraph 5.1.2 of the Code"]
[]
[]
[]
[]
["(e)","The stress testing and sensitivity analysis to assess material risks, including the methods and assumptions used, and the outcomes"]
[]
[]
[]
[]
["(f)","Any other material information:"]
[]
[]
[]
[]
["iv)","Solvency Valuation - particulars of the valuation bases, methods and assumptions on the inputs used to determine solvency"]
[]
["(a)","The valuation bases, assumptions and methods used to derive the value of each asset class"]
[]
[]
[]
[]
["(b)","The valuation bases, assumptions and methods used to derive the value of technical provisions and the amount of the best estimate. The amount of the risk margin as well as the level of uncertainty to determine the value of the technical provisions should be included"]
[]
[]
[]
[]
[]
["(c)","Description of recoverables from reinsurance contracts, including special purpose insurers and other risk transfer mechanisms"]
[]
[]
[]
[]
["(d)","The valuation bases, assumptions and methods used to derive the value of other liabilities"]
[]
[]
[]
[]
["(e)","Any other material information:"]
[]
[]
[]
[]
["v)","Capital Management - particulars regarding an assessment of capital needs and regulatory capital requirements"]
[]
["(a)","Eligible Capital"]
[]
["i.","Description of the capital management policy and process to determine capital needs for business planning, how capital is managed and any material changes during the reporting period"]
[]
[]
[]
[]
[]
["ii.","Eligible Capital"]
[null,"Tier 1",null,null,null,{"$f":"+'Schedule XII(a)'!J56","v":0}]
[null,"Tier 2",null,null,null,{"$f":"+'Schedule XII(a)'!J69","v":0}]
[null,"Tier 3",null,null,null,{"$f":"+'Schedule XII(a)'!J77","v":0}]
[null,"Total",null,null,null,{"$f":"SUM(F329:F331)","v":0}]
[null,"Description of the eligible capital categorised by tiers in accordance with the Eligible Capital Rules"]
[]
[]
[]
[]
[]
["iii.","Eligible Capital by Regulatory Limitations"]
[null,null,"Limits:                 MSM                    ECR","Minimum Margin of Solvency",null,"Enhanced Capital Requirement"]
[null,"Tier 1",{"$f":"IF('Company Information'!$F$11=\"Class 3A\",\"min                             80%                          50%\",\"min                             80%                          60%\")","v":"min                             80%                          60%"},{"$f":"+'Schedule XII(a)'!G93","v":0},null,{"$f":"+'Schedule XII(a)'!I93","v":0}]
[null,"Tier 2",{"$f":"IF('Company Information'!$F$11=\"Class 3A\",\"max                             25%                          50%\",\"max                             25%                          66.67%\")","v":"max                             25%                          66.67%"},{"$f":"+'Schedule XII(a)'!G94","v":0},null,{"$f":"+'Schedule XII(a)'!I94","v":0}]
[null,"Tier 3","max                                                              17.65%",{"$f":"+'Schedule XII(a)'!G95","v":0},null,{"$f":"+'Schedule XII(a)'!I95","v":0}]
[null,"Total",null,{"$f":"SUM(D341:D343)","v":0},null,{"$f":"SUM(F341:F343)","v":0}]
[]
[null,"Description of the  eligible capital categorised by tiers, in accordance with the Eligible Capital Rules used to meet the Enhanced Capital Requirement (“ECR”) and the Minimum Margin of Solvency (“MSM”) defined in accordance with section (1) (1) of the Act"]
[]
[]
[]
[]
[]
["iv.","Confirmation that eligible capital is subject to transitional arrangements as required under the Eligible Capital Rules",null,null,null,"Select from Drop-Down"]
[]
[]
[]
[]
["v.","Identification of any factors affecting encumbrances affecting the availability and transferability of capital to meet the ECR"]
[]
[]
[]
[]
["vi."," Identification of ancillary capital instruments that have been approved by the Authority"]
[]
[]
[]
[]
["vii.","Identification of differences in shareholder’s equity as stated in the financial statements versus available statutory capital and surplus"]
[]
[]
[]
[]
["(b)","Regulatory Capital Requirements"]
[]
["i.","Amount of the ECR and MSM at the end of the reporting period:"]
[]
[null,null,null,null,null,"Amount"]
[null,"Minimum Margin of Solvency",null,null,null,{"$f":"+Summary!N104","v":1000}]
[null,"Enhanced Capital Requirement",null,null,null,{"$f":"+Summary!N110","v":1000}]
[]
["ii.","Identification of any non-compliance with the MSM and the ECR"]
[]
[]
[]
[]
["iii.","Description of the amount and circumstances surrounding the non-compliance, the remedial measures taken and their effectiveness"]
[]
[]
[]
[]
["iv.","Where the non-compliance has not been resolved, description of the amount of the non-compliance at the end of the reporting period"]
[]
[]
[]
[]
["(c)","Approved Internal Capital Model used to derive the ECR"]
[]
["i.","Description of the purpose and scope of the business and risk areas where the internal model is used"]
[]
[]
[]
[]
["ii.","where a partial internal model is used, description of how it is integrated with the BSCR Model"]
[]
[]
[]
[]
["iii.","Description of methods used in the internal model to calculate the ECR"]
[]
[]
[]
[]
["iv.","Description of aggregation methodologies and diversification effects"]
[]
[]
[]
[]
["v.","description of the main differences in the methods and assumptions used for the risk areas in the internal model versus the BSCR Model"]
[]
[]
[]
[]
["vi.","Description of the nature and suitability of the data used in the internal model"]
[]
[]
[]
[]
["vii.","Any other material information:"]
[]
[]
[]
[]
["vi)","Significant Event - particulars and explanations of a significant event including, but not limited to the following"]
[]
["(a)","Description of the significant event"]
[]
[]
[]
[]
["(b)","Approximate date(s) or proposed timing of the significant event"]
[]
[]
[]
[]
["(c)","Confirmation of how the significant event has impacted or will impact, any information provided in the most recent financial condition report filed with the Authority"]
[]
[]
[]
[]
["(d)","Any other material information:"]
[]
[]
[]
[]
[]
[null,null,null,null,null,null,null,null,null,""]
[]
[null,"General Questions"]
[null,"Select from Drop-Down"]
[null,"Yes"]
[null,"No"]
[]
[null,"Ra"]
[null,"Rating Agency"]
[null,"Select Rating Agency"]
[null,"Standard & Poor"]
[null,"Moody's"]
[null,"AM Best"]
[null,"Fitch"]
[null,"Standard & Poor","Moody's","AM Best","Fitch"]
[null,"AAA","Aaa","A++","AAA"]
[null,"AA+ to AA-","Aa1 to Aa3","A+","AA+ to AA-"]
[null,"A+ to A-","A1 to A3","A","A+ to A-"]
[null,"BBB+ to BBB-","Baa1 to Baa3","A-","BBB+ to BBB-"]
[null,"BB+ to BB-","Ba1 to Ba3","B++ to B","BB+ to BB-"]
[null,"B+ to B-","B1 to B3","B- to C+","B+ to B-"]
[null,"CCC+ to CCC-","Caa1 to Caa3","C, C-","CCC+ to CCC-"]
[null,"Below CCC-","Below Caa3","Below C-","Below CCC-"]

{"sheet":"SAR & Sanc. (All)","index":15,"n_rows":66,"n_cols":19,"rows_kept":66,"cut":false,"hidden":false,"merged":[[52,2,56,9],[0,1,0,4],[4,1,4,9],[9,2,9,4],[13,2,13,4],[16,2,16,4],[27,2,31,9],[43,5,43,7],[44,5,44,7],[45,5,45,7],[46,5,46,7],[47,5,47,7]]}
[null,"SCHEDULE OF SUSPICIOUS ACTIVITY REPORTING AND SANCTIONS",null,null,null,null,null,null,null,{"$f":"HYPERLINK(\"#'Index'!A1\",\"Return to Index\")","v":"Return to Index"},null,null,null,null,null,{"$f":"HYPERLINK(\"#'Index'!A1\",\"Return to Index\")","v":"Return to Index"},{"$f":"IF($B$3=\"\",\"\",TEXT(DATE(YEAR($B$3+1)-1,MONTH($B$3+1),DAY($B$3+1)),\"mm/dd/yyyy\"))","v":"01/01/2022"}]
[null,{"$f":"'Company Information'!C7","v":"Enter Company Name"},null,null,null,null,null,null,null,null,null,null,null,null,null,null,{"$f":"IF($B$3=\"\",\"\",TEXT($B$3,\"mm/dd/yyyy\"))","v":"12/31/2022"}]
[null,{"$f":" TEXT('Company Information'!C3,\"dd mmmm yyyy\")","v":"31 December 2022"},null,null,null,null,null,null,null,"SAR & Sanctions"]
[]
[null,"All insurers shall be required to complete the questions set out in the Suspicious Activity Reporting and Sanctions Schedule (on a unconsolidated basis). "]
[]
["Section E - Reporting"]
[null,1,"Is your company registered with GoAML at www.fia.bm",null,null,null,null,null,{"$f":"Import!E17819","v":"Select Yes/No"}]
[null,null,"1.1 If yes, under what name and when?"]
[null,null,{"$f":"Import!E17821","v":0},null,null,null,null,null,{"$f":"Import!E17820","v":"(Select)"}]
[]
[null,null,"1.2 If you answered no to 1., do you have access to GoAML through another registration?",null,null,null,null,null,{"$f":"Import!E17822","v":"Select Yes/No"}]
[null,null,"1.3 Under what name and how are you connected?"]
[null,null,{"$f":"Import!E17823","v":0}]
[]
[null,null,"1.4 if you answered no to 1. and 1.2 who would file a SAR on your behalf?"]
[null,null,{"$f":"Import!E17824","v":0}]
[]
[null,2,"How many Suspicious Activity Reports (SAR) have been filed?"]
[null,null,null,null,null,null,"Internal",null,"With FIA"]
[null,null,null,null,null,{"$f":"YEAR('Company Information'!$C$3)","v":2022},{"$f":"Import!E17825","v":0},{"$f":"YEAR('Company Information'!$C$3)","v":2022},{"$f":"Import!E17830","v":0}]
[null,null,null,null,null,{"$f":"F21-1","v":2021},{"$f":"Import!E17826","v":0},{"$f":"H21-1","v":2021},{"$f":"Import!E17831","v":0}]
[null,null,null,null,null,{"$f":"F22-1","v":2020},{"$f":"Import!E17827","v":0},2020,{"$f":"Import!E17832","v":0}]
[null,null,null,null,null,2019,{"$f":"Import!E17828","v":0},2019,{"$f":"Import!E17833","v":0}]
[null,null,null,null,null,"Total",{"$f":"SUM(G21:G24)","v":0},"Total",{"$f":"SUM(I21:I24)","v":0}]
[]
[null,null,"Include any additional information/comments which you think might be relevant to this exercise?"]
[null,null,{"$f":"Import!E17835","v":0}]
[]
[]
[]
[]
[]
["SANCTIONS QUESTIONNAIRE"]
[null,1,"Does the company screen insurers and beneficiaries (where relevant) to determine if they are subject to measures imposed under Bermuda sanctions regime?",null,null,null,null,null,{"$f":"Import!E17837","v":"Select Yes/No"}]
[]
[null,2,"Does the company screen employees to determine if they are subject to measures imposed under Bermuda sanctions regime?",null,null,null,null,null,{"$f":"Import!E17837","v":"Select Yes/No"}]
[]
[null,3,"Has the Company frozen any customer assets in the last 12 months under the Bermuda sanctions regime?",null,null,null,null,null,{"$f":"Import!E17838","v":"Select Yes/No"}]
[]
[null,null,"3.1 If yes, how many asset freezes have there been?",null,null,null,null,null,{"$f":"Import!E17839","v":0}]
[]
[null,null,"3.2 Provide the following details for those assets freezes from the consolidated list:"]
[null,null,null,null,"Group ID","Name of the designated person as given on the consolidated list",null,null,"Name of the person/entity if owned/controlled by a designated person.","Value of Assets"]
[null,null,null,1,{"$f":"Import!E17840","v":0},{"$f":"Import!E17844","v":0},null,null,{"$f":"Import!E17848","v":0},{"$f":"Import!E17852","v":0}]
[null,null,null,2,{"$f":"Import!E17841","v":0},{"$f":"Import!E17845","v":0},null,null,{"$f":"Import!E17849","v":0},{"$f":"Import!E17853","v":0}]
[null,null,null,3,{"$f":"Import!E17842","v":0},{"$f":"Import!E17846","v":0},null,null,{"$f":"Import!E17850","v":0},{"$f":"Import!E17854","v":0}]
[null,null,null,4,{"$f":"Import!E17843","v":0},{"$f":"Import!E17847","v":0},null,null,{"$f":"Import!E17851","v":0},{"$f":"Import!E17855","v":0}]
[]
[null,4,"How often does the licensee screen for sanctions?",null,null,null,null,null,{"$f":"Import!E17857","v":"Select"}]
[]
[null,null,"Include any additional information/comments which you think might be relevant to this exercise?"]
[null,null,{"$f":"Import!E17858","v":0}]
[]
[]
[]
[]
[null,null,null,null,null,null,null,null,null,null,null,null,null,null,null,null,null,null,""]
[]
[]
[null,null,null,null,null,null,null,2016,"Every year","Yes"]
[null,null,null,null,null,null,null,2015,"1 to 2 years","No"]
[null,null,null,null,null,null,null,2014,"2 to 5 years"]
[null,null,null,null,null,null,null,2013,"+5 years"]
[null,null,null,null,null,null,null,2012]
[null,null,null,null,null,null,null,"Prior 2012"]

{"sheet":"Form 1SFS (Unconsolidated)","index":16,"n_rows":287,"n_cols":17,"rows_kept":287,"cut":false,"hidden":false,"merged":[[181,8,181,10],[6,4,6,6],[6,8,6,10],[6,12,6,14],[7,4,7,6],[7,8,7,10],[7,12,7,14],[171,8,171,10],[172,8,172,10],[173,8,173,10],[174,8,174,10],[175,8,175,10],[195,2,196,8],[198,2,199,8],[269,4,269,8],[269,10,269,14],[182,8,182,10],[183,8,183,10],[184,8,184,10],[185,8,185,10],[192,2,193,8],[192,10,193,14]]}
[null,"STATUTORY BALANCE SHEET",null,null,null,null,null,null,null,null,null,null,null,null,{"$f":"HYPERLINK(\"#'Index'!A1\",\"Return to Index\")","v":"Return to Index"}]
[]
[null,{"$f":"'Company Information'!C7","v":"Enter Company Name"},null,null,null,null,null,null,null,null,null,null,null,null,"FORM 1SFS"]
[null,"As at",{"$f":"'Company Information'!C3","v":"2022-12-31"}]
[null,{"$f":"\"expressed in\"& IF(CONFIGURATION!$B$12>1,\" ['\"&MID(CONFIGURATION!$B$12,2,LEN(CONFIGURATION!$B$12))&\"s]\",\"\")","v":"expressed in ['000s]"},"United States Dollars",null,"(A)",null,"(B)",null,"(C)",null,"(D)",null,"(E)",null,"(F)"]
[]
[null,null,null,null,"Consolidated",null,null,null,"Consolidated",null,null,null,"Consolidated"]
[null,"STMT.",null,null,"In Fiat",null,null,null,"In Fiat",null,null,null,"Total (Converted to Reporting Currency)"]
[null,"LINE No.",null,null,{"$f":"C4","v":"2022-12-31"},null,{"$f":"DATE(YEAR(C4) -1, MONTH(C4), DAY(C4))","v":"2021-12-31"},null,{"$f":"C4","v":"2022-12-31"},null,{"$f":"DATE(YEAR(C4) -1, MONTH(C4), DAY(C4))","v":"2021-12-31"},null,{"$f":"C4","v":"2022-12-31"},null,{"$f":"DATE(YEAR(C4) -1, MONTH(C4), DAY(C4))","v":"2021-12-31"}]
[null,null,null,null,{"$f":"CONFIGURATION!$D$12","v":" ('000s)"},null,{"$f":"CONFIGURATION!$D$12","v":" ('000s)"},null,{"$f":"CONFIGURATION!$D$12","v":" ('000s)"},null,{"$f":"CONFIGURATION!$D$12","v":" ('000s)"},null,{"$f":"CONFIGURATION!$D$12","v":" ('000s)"},null,{"$f":"CONFIGURATION!$D$12","v":" ('000s)"}]
[]
[null,"1.","CASH AND CASH EQUIVALENTS",null,{"$f":"+Import!E102","v":0},null,{"$f":"+Import!G102","v":0},null,{"$f":"+Import!I102","v":0},null,{"$f":"+Import!K102","v":0},null,{"$f":"+Import!M102","v":0},null,{"$f":"+Import!O102","v":0}]
[]
[null,"2.","QUOTED INVESTMENTS:"]
[null,"(a)","Bonds and Debentures"]
[null,null,"  i.   Held to maturity",null,{"$f":"+Import!E103","v":0},null,{"$f":"+Import!G103","v":0},null,{"$f":"+Import!I103","v":0},null,{"$f":"+Import!K103","v":0},null,{"$f":"+Import!M103","v":0},null,{"$f":"+Import!O103","v":0}]
[null,null,"  ii.  Other",null,{"$f":"+Import!E104","v":0},null,{"$f":"+Import!G104","v":0},null,{"$f":"+Import!I104","v":0},null,{"$f":"+Import!K104","v":0},null,{"$f":"+Import!M104","v":0},null,{"$f":"+Import!O104","v":0}]
[null,"(b)","Total Bonds and Debentures",null,{"$f":"SUM(E16:E17)","v":0},null,{"$f":"SUM(G16:G17)","v":0},null,{"$f":"SUM(I16:I17)","v":0},null,{"$f":"SUM(K16:K17)","v":0},null,{"$f":"SUM(M16:M17)","v":0},null,{"$f":"SUM(O16:O17)","v":0}]
[null,"(c) ","Equities "]
[null,null,"  i.   Common stocks",null,{"$f":"Import!E106","v":0},null,{"$f":"Import!G106","v":0},null,{"$f":"+Import!I105","v":0},null,{"$f":"+Import!K105","v":0},null,{"$f":"+Import!M106","v":0},null,{"$f":"+Import!O106","v":0}]
[null,null,"  ii. Preferred stocks",null,{"$f":"Import!E107","v":0},null,{"$f":"Import!G107","v":0},null,{"$f":"+Import!I106","v":0},null,{"$f":"+Import!K106","v":0},null,{"$f":"+Import!M107","v":0},null,{"$f":"+Import!O107","v":0}]
[null,null,"  iii. Mutual Funds",null,{"$f":"Import!E108","v":0},null,{"$f":"Import!G108","v":0},null,{"$f":"+Import!I107","v":0},null,{"$f":"+Import!K107","v":0},null,{"$f":"+Import!M107","v":0},null,{"$f":"+Import!O108","v":0}]
[null,"(d) ","Total equity investments",null,{"$f":"SUM(E20:E22)","v":0},null,{"$f":"SUM(G20:G22)","v":0},null,{"$f":"SUM(I20:I22)","v":0},null,{"$f":"SUM(K20:K22)","v":0},null,{"$f":"SUM(M20:M22)","v":0},null,{"$f":"SUM(O20:O22)","v":0}]
[null,"(e)","Other quoted investments"]
[null,null,"i. Digital assets",null,{"$f":"Import!E109","v":0},null,{"$f":"Import!G109","v":0},null,{"$f":"Import!I109","v":0},null,{"$f":"Import!K109","v":0},null,{"$f":"Import!M109","v":0},null,{"$f":"Import!O109","v":0}]
[null,null,"ii. Preferred stocks",null,{"$f":"Import!E110","v":0},null,{"$f":"Import!G110","v":0},null,{"$f":"Import!I110","v":0},null,{"$f":"Import!K110","v":0},null,{"$f":"Import!M110","v":0},null,{"$f":"Import!O110","v":0}]
[null,null,"iii. Others",null,{"$f":"Import!E111","v":0},null,{"$f":"Import!G111","v":0},null,{"$f":"Import!I111","v":0},null,{"$f":"Import!K111","v":0},null,{"$f":"Import!M111","v":0},null,{"$f":"Import!O111","v":0}]
[null,null,"iv. Total other quoted investments",null,{"$f":"SUM(E25:E27)","v":0},null,{"$f":"SUM(G25:G27)","v":0},null,{"$f":"SUM(I25:I27)","v":0},null,{"$f":"SUM(K25:K27)","v":0},null,{"$f":"SUM(M25:M27)","v":0},null,{"$f":"SUM(O25:O27)","v":0}]
[null,"(f)","Total quoted investments",null,{"$f":"E18+E23+E28","v":0},null,{"$f":"G18+G23+G28","v":0},null,{"$f":"I18+I23+I28","v":0},null,{"$f":"K18+K23+K28","v":0},null,{"$f":"M18+M23+M28","v":0},null,{"$f":"O18+O23+O28","v":0}]
[]
[null,"3.","UNQUOTED INVESTMENTS:"]
[null,"(a)","Bonds and Debentures"]
[null,null,"  i.   Held to maturity",null,{"$f":"Import!E112","v":0},null,{"$f":"Import!G112","v":0},null,{"$f":"+Import!I112","v":0},null,{"$f":"+Import!K112","v":0},null,{"$f":"+Import!M112","v":0},null,{"$f":"+Import!O112","v":0}]
[null,null,"  ii.  Other",null,{"$f":"Import!E113","v":0},null,{"$f":"Import!G113","v":0},null,{"$f":"+Import!I113","v":0},null,{"$f":"+Import!K113","v":0},null,{"$f":"+Import!M113","v":0},null,{"$f":"+Import!O113","v":0}]
[null,"(b)","Total Bonds and Debentures",null,{"$f":"SUM(E33:E34)","v":0},null,{"$f":"SUM(G33:G34)","v":0},null,{"$f":"SUM(I33:I34)","v":0},null,{"$f":"SUM(K33:K34)","v":0},null,{"$f":"SUM(M33:M34)","v":0},null,{"$f":"SUM(O33:O34)","v":0}]
[null,"(c) ","Equities "]
[null,null,"  i.   Common stocks",null,{"$f":"Import!E115","v":0},null,{"$f":"Import!G115","v":0},null,{"$f":"+Import!I114","v":0},null,{"$f":"+Import!K114","v":0},null,{"$f":"+Import!M115","v":0},null,{"$f":"+Import!O115","v":0}]
[null,null,"  ii. Preferred stocks",null,{"$f":"Import!E116","v":0},null,{"$f":"Import!G116","v":0},null,{"$f":"+Import!I115","v":0},null,{"$f":"+Import!K115","v":0},null,{"$f":"+Import!M116","v":0},null,{"$f":"+Import!O116","v":0}]
[null,null,"  iii . Mutual Funds",null,{"$f":"Import!E117","v":0},null,{"$f":"Import!G117","v":0},null,{"$f":"+Import!I116","v":0},null,{"$f":"+Import!K116","v":0},null,{"$f":"+Import!M117","v":0},null,{"$f":"+Import!O117","v":0}]
[null,"(d) ","Total equity investments",null,{"$f":"SUM(E37:E39)","v":0},null,{"$f":"SUM(G37:G39)","v":0},null,{"$f":"SUM(I37:I39)","v":0},null,{"$f":"SUM(K37:K39)","v":0},null,{"$f":"SUM(M37:M39)","v":0},null,{"$f":"SUM(O37:O39)","v":0}]
[null,"(e)","Other quoted investments"]
[null,null,"i. Digital assets",null,{"$f":"Import!E118","v":0},null,{"$f":"Import!G118","v":0},null,{"$f":"Import!I118","v":0},null,{"$f":"Import!K118","v":0},null,{"$f":"Import!M118","v":0},null,{"$f":"Import!O118","v":0}]
[null,null,"ii. Preferred stocks",null,{"$f":"Import!E119","v":0},null,{"$f":"Import!G119","v":0},null,{"$f":"Import!I119","v":0},null,{"$f":"Import!K119","v":0},null,{"$f":"Import!M119","v":0},null,{"$f":"Import!O119","v":0}]
[null,null,"iii. Others",null,{"$f":"Import!E120","v":0},null,{"$f":"Import!G120","v":0},null,{"$f":"Import!I120","v":0},null,{"$f":"Import!K120","v":0},null,{"$f":"Import!M120","v":0},null,{"$f":"Import!O120","v":0}]
[null,null,"iv. Total other quoted investments",null,{"$f":"SUM(E42:E44)","v":0},null,{"$f":"SUM(G42:G44)","v":0},null,{"$f":"SUM(I42:I44)","v":0},null,{"$f":"SUM(K42:K44)","v":0},null,{"$f":"SUM(M42:M44)","v":0},null,{"$f":"SUM(O42:O44)","v":0}]
[null,"(f) ","Total unquoted investments",null,{"$f":"E35+E40+E45","v":0},null,{"$f":"G35+G40+G45","v":0},null,{"$f":"I35+I40+I45","v":0},null,{"$f":"K35+K40+K45","v":0},null,{"$f":"M35+M40+M45","v":0},null,{"$f":"O35+O40+O45","v":0}]
[]
[null,"4.","INVESTMENTS IN AND ADVANCES TO AFFILIATES (EQUITY METHOD):",null,{"$f":"Import!E121","v":0},null,{"$f":"Import!G121","v":0},null,{"$f":"Import!I121","v":0},null,{"$f":"Import!K121","v":0},null,{"$f":"Import!M121","v":0},null,{"$f":"Import!O121","v":0}]
[]
[null,"5.","INVESTMENTS IN MORTGAGE LOANS ON REAL ESTATE:"]
[null,"(a)","First liens",null,{"$f":"Import!E122","v":0},null,{"$f":"Import!G122","v":0},null,{"$f":"+Import!I122","v":0},null,{"$f":"+Import!K122","v":0},null,{"$f":"+Import!M122","v":0},null,{"$f":"+Import!O122","v":0}]
[null,"(b)","Other than first liens ",null,{"$f":"Import!E123","v":0},null,{"$f":"Import!G123","v":0},null,{"$f":"+Import!I123","v":0},null,{"$f":"+Import!K123","v":0},null,{"$f":"+Import!M123","v":0},null,{"$f":"+Import!O123","v":0}]
[null,"(c) ","Total investments in mortgage loans on real estate",null,{"$f":"SUM(E51:E52)","v":0},null,{"$f":"SUM(G51:G52)","v":0},null,{"$f":"SUM(I51:I52)","v":0},null,{"$f":"SUM(K51:K52)","v":0},null,{"$f":"SUM(M51:M52)","v":0},null,{"$f":"SUM(O51:O52)","v":0}]
[]
[null,"6.","EQUIPMENT, NET OF DEPRECIATION",null,{"$f":"+Import!E124","v":0},null,{"$f":"+Import!G124","v":0},null,{"$f":"+Import!I124","v":0},null,{"$f":"+Import!K124","v":0},null,{"$f":"+Import!M124","v":0},null,{"$f":"+Import!O124","v":0}]
[]
[null,"7.","REAL ESTATE:",null,{"$f":"Import!E125","v":0},null,{"$f":"Import!G125","v":0},null,{"$f":"Import!I125","v":0},null,{"$f":"Import!K125","v":0},null,{"$f":"Import!M125","v":0},null,{"$f":"Import!O125","v":0}]
[]
[null,"8.","LOANS RECEIVABLE"]
[null,"(a)","Due in one year or less",null,{"$f":"Import!E126","v":0},null,{"$f":"Import!G126","v":0},null,{"$f":"Import!I126","v":0},null,{"$f":"Import!K126","v":0},null,{"$f":"Import!M126","v":0},null,{"$f":"Import!O126","v":0}]
[null,"(b)","Due over a year",null,{"$f":"Import!E127","v":0},null,{"$f":"Import!G127","v":0},null,{"$f":"Import!I127","v":0},null,{"$f":"Import!K127","v":0},null,{"$f":"Import!M127","v":0},null,{"$f":"Import!O127","v":0}]
[null,"(c) ","Total loans receivable",null,{"$f":"SUM(E60:E61)","v":0},null,{"$f":"SUM(G60:G61)","v":0},null,{"$f":"SUM(I60:I61)","v":0},null,{"$f":"SUM(K60:K61)","v":0},null,{"$f":"SUM(M60:M61)","v":0},null,{"$f":"SUM(O60:O61)","v":0}]
[]
[null,"9.","INVESTMENT INCOME DUE AND ACCRUED",null,{"$f":"Import!E128","v":0},null,{"$f":"Import!G128","v":0},null,{"$f":"+Import!I128","v":0},null,{"$f":"+Import!K128","v":0},null,{"$f":"+Import!M128","v":0},null,{"$f":"+Import!O128","v":0}]
[]
[null,"10.","RECEIVABLES FROM CLEARING BROKERS",null,{"$f":"Import!E129","v":0},null,{"$f":"Import!G129","v":0},null,{"$f":"Import!I129","v":0},null,{"$f":"Import!K129","v":0},null,{"$f":"Import!M129","v":0},null,{"$f":"Import!O129","v":0}]
[]
[null,"11.","OTHER RECEIVABLES FROM DIGITAL ASSET BUSINESS"]
[null,"(a)","Due in one year or less",null,{"$f":"Import!E130","v":0},null,{"$f":"Import!G130","v":0},null,{"$f":"+Import!I130","v":0},null,{"$f":"+Import!K130","v":0},null,{"$f":"+Import!M130","v":0},null,{"$f":"+Import!O130","v":0}]
[null,"(b)","Due over a year",null,{"$f":"Import!E131","v":0},null,{"$f":"Import!G131","v":0},null,{"$f":"+Import!I131","v":0},null,{"$f":"+Import!K131","v":0},null,{"$f":"+Import!M131","v":0},null,{"$f":"+Import!O131","v":0}]
[null,"(c) ","Total other receivables from digital asset business",null,{"$f":"SUM(E69:E70)","v":0},null,{"$f":"SUM(G69:G70)","v":0},null,{"$f":"SUM(I69:I70)","v":0},null,{"$f":"SUM(K69:K70)","v":0},null,{"$f":"SUM(M69:M70)","v":0},null,{"$f":"SUM(O69:O70)","v":0}]
[]
[null,"12.","DIGITAL ASSETS HELD IN CUSTODY FOR CLIENTS",null,{"$f":"Import!E132","v":0},null,{"$f":"Import!G132","v":0},null,{"$f":"+Import!I132","v":0},null,{"$f":"+Import!K132","v":0},null,{"$f":"+Import!M132","v":0},null,{"$f":"+Import!O132","v":0}]
[]
[null,"13.","SUNDRY ASSETS:"]
[null,"(a)","Derivative instruments",null,{"$f":"Import!E133","v":0},null,{"$f":"Import!G133","v":0},null,{"$f":"+Import!I133","v":0},null,{"$f":"+Import!K133","v":0},null,{"$f":"+Import!M133","v":0},null,{"$f":"+Import!O133","v":0}]
[null,"(b)","Net receivables for investments sold",null,{"$f":"Import!E134","v":0},null,{"$f":"Import!G134","v":0},null,{"$f":"+Import!I135","v":0},null,{"$f":"+Import!K135","v":0},null,{"$f":"+Import!M134","v":0},null,{"$f":"+Import!O134","v":0}]
[null,"(c)","Prepaid expenses",null,{"$f":"Import!E135","v":0},null,{"$f":"Import!G135","v":0},null,{"$f":"+Import!I136","v":0},null,{"$f":"+Import!K136","v":0},null,{"$f":"+Import!M135","v":0},null,{"$f":"+Import!O135","v":0}]
[null,"(d)","Goodwill and other intangibles",null,{"$f":"Import!E136","v":0},null,{"$f":"Import!G136","v":0},null,{"$f":"+Import!I137","v":0},null,{"$f":"+Import!K137","v":0},null,{"$f":"+Import!M136","v":0},null,{"$f":"+Import!O136","v":0}]
[null,"(e)","Other sundry assets 1",null,{"$f":"Import!E137","v":0},null,{"$f":"Import!G137","v":0},null,{"$f":"+Import!I138","v":0},null,{"$f":"+Import!K138","v":0},null,{"$f":"+Import!M137","v":0},null,{"$f":"+Import!O137","v":0}]
[null,"(f)","Other sundry assets 2",null,{"$f":"Import!E138","v":0},null,{"$f":"Import!G138","v":0},null,{"$f":"+Import!I139","v":0},null,{"$f":"+Import!K139","v":0},null,{"$f":"+Import!M138","v":0},null,{"$f":"+Import!O138","v":0}]
[null,"(g)","Other sundry assets 3",null,{"$f":"Import!E139","v":0},null,{"$f":"Import!G139","v":0},null,{"$f":"+Import!I140","v":0},null,{"$f":"+Import!K140","v":0},null,{"$f":"+Import!M139","v":0},null,{"$f":"+Import!O139","v":0}]
[null,"(h)","Total sundry assets",null,{"$f":"SUM(E76:E82)","v":0},null,{"$f":"SUM(G76:G82)","v":0},null,{"$f":"SUM(I76:I82)","v":0},null,{"$f":"SUM(K76:K82)","v":0},null,{"$f":"SUM(M76:M82)","v":0},null,{"$f":"SUM(O76:O82)","v":0}]
[]
[null,"14.","LETTERS OF CREDIT, GUARANTEES AND OTHER INSTRUMENTS:"]
[null,"(a)","Letters of credit ",null,{"$f":"Import!E140","v":0},null,{"$f":"Import!G140","v":0},null,{"$f":"+Import!I141","v":0},null,{"$f":"+Import!K141","v":0},null,{"$f":"+Import!M140","v":0},null,{"$f":"+Import!O140","v":0}]
[null,"(b)","Guarantees",null,{"$f":"Import!E141","v":0},null,{"$f":"Import!G141","v":0},null,{"$f":"+Import!I142","v":0},null,{"$f":"+Import!K142","v":0},null,{"$f":"+Import!M141","v":0},null,{"$f":"+Import!O141","v":0}]
[null,"(c) ","Other instruments",null,{"$f":"Import!E142","v":0},null,{"$f":"Import!G142","v":0},null,{"$f":"+Import!I143","v":0},null,{"$f":"+Import!K143","v":0},null,{"$f":"+Import!M142","v":0},null,{"$f":"+Import!O142","v":0}]
[null,"(e) ","Total letters of credit, guarantees and other instruments",null,{"$f":"SUM(E86:E88)","v":0},null,{"$f":"SUM(G86:G88)","v":0},null,{"$f":"SUM(I86:I88)","v":0},null,{"$f":"SUM(K86:K88)","v":0},null,{"$f":"SUM(M86:M88)","v":0},null,{"$f":"SUM(O86:O88)","v":0}]
[]
[null,"15.","TOTAL ASSETS",null,{"$f":"E12+E29+E46+E48+E53+E55+E57+E62+E64+E66+E71+E73+E83+E89","v":0},null,{"$f":"G12+G29+G46+G48+G53+G55+G57+G62+G64+G66+G71+G73+G83+G89","v":0},null,{"$f":"I12+I29+I46+I48+I53+I55+I57+I62+I64+I66+I71+I73+I83+I89","v":0},null,{"$f":"K12+K29+K46+K48+K53+K55+K57+K62+K64+K66+K71+K73+K83+K89","v":0},null,{"$f":"M12+M29+M46+M48+M53+M55+M57+M62+M64+M66+M71+M73+M83+M89","v":0},null,{"$f":"O12+O29+O46+O48+O53+O55+O57+O62+O64+O66+O71+O73+O83+O89","v":0}]
[]
[null,null,"LIABILITIES AND STATUTORY CAPITAL AND SURPLUS"]
[]
[null,"16.","UNEARNED PREMIUM RESERVE",null,{"$f":"Import!E144","v":0},null,{"$f":"Import!G144","v":0},null,{"$f":"Import!I144","v":0},null,{"$f":"Import!K144","v":0},null,{"$f":"Import!M144","v":0},null,{"$f":"Import!O144","v":0}]
[]
[null,"17.","LOSS AND LOSS EXPENSE PROVISIONS:"]
[null,"(a)","Gross loss and loss expense provisions",null,{"$f":"+Import!E145","v":0},null,{"$f":"+Import!G145","v":0},null,{"$f":"+Import!I145","v":0},null,{"$f":"+Import!K145","v":0},null,{"$f":"+Import!M145","v":0},null,{"$f":"+Import!O145","v":0}]
[null,"(b)","Less : Reinsurance recoverable balance"]
[null,null,"  i.   Foreign affiliates",null,{"$f":"+Import!E146","v":0},null,{"$f":"+Import!G146","v":0},null,{"$f":"+Import!I146","v":0},null,{"$f":"+Import!K146","v":0},null,{"$f":"+Import!M146","v":0},null,{"$f":"+Import!O146","v":0}]
[null,null,"  ii.  Domestic affiliates",null,{"$f":"+Import!E147","v":0},null,{"$f":"+Import!G147","v":0},null,{"$f":"+Import!I147","v":0},null,{"$f":"+Import!K147","v":0},null,{"$f":"+Import!M147","v":0},null,{"$f":"+Import!O147","v":0}]
[null,null,"  iii. Pools and associations",null,{"$f":"+Import!E148","v":0},null,{"$f":"+Import!G148","v":0},null,{"$f":"+Import!I148","v":0},null,{"$f":"+Import!K148","v":0},null,{"$f":"+Import!M148","v":0},null,{"$f":"+Import!O148","v":0}]
[null,null,"  iv.  All other insurers",null,{"$f":"+Import!E149","v":0},null,{"$f":"+Import!G149","v":0},null,{"$f":"+Import!I149","v":0},null,{"$f":"+Import!K149","v":0},null,{"$f":"+Import!M149","v":0},null,{"$f":"+Import!O149","v":0}]
[null,"(c) ","Total reinsurance recoverable balance",null,{"$f":"SUM(E100:E103)","v":0},null,{"$f":"SUM(G100:G103)","v":0},null,{"$f":"SUM(I100:I103)","v":0},null,{"$f":"SUM(K100:K103)","v":0},null,{"$f":"SUM(M100:M103)","v":0},null,{"$f":"SUM(O100:O103)","v":0}]
[null,"(d) ","Net loss and loss expense provisions",null,{"$f":"E98-E104","v":0},null,{"$f":"G98-G104","v":0},null,{"$f":"I98-I104","v":0},null,{"$f":"K98-K104","v":0},null,{"$f":"M98-M104","v":0},null,{"$f":"O98-O104","v":0}]
[]
[null,"18.","OTHER INSURANCE RESERVES",null,{"$f":"Import!E150","v":0},null,{"$f":"Import!G150","v":0},null,{"$f":"Import!I150","v":0},null,{"$f":"Import!K150","v":0},null,{"$f":"Import!M150","v":0},null,{"$f":"Import!O150","v":0}]
[]
[null,"19.","TOTAL GENERAL BUSINESS - INSURANCE RESERVES",null,{"$f":"E95+E105+E107","v":0},null,{"$f":"G95+G105+G107","v":0},null,{"$f":"I95+I105+I107","v":0},null,{"$f":"K95+K105+K107","v":0},null,{"$f":"M95+M105+M107","v":0},null,{"$f":"O95+O105+O107","v":0}]
[]
[null,null,"OTHER LIABILITIES"]
[]
[null,"28.","CONTRACTUAL LIABILITIES ARISING FROM DIGITAL ASSET ISSUANCE",null,{"$f":"+Import!E151","v":0},null,{"$f":"+Import!G151","v":0},null,{"$f":"+Import!I151","v":0},null,{"$f":"+Import!K151","v":0},null,{"$f":"+Import!M151","v":0},null,{"$f":"+Import!O151","v":0}]
[]
[null,"29.","COMMISSIONS, EXPENSES, FEES AND TAXES PAYABLE",null,{"$f":"+Import!E152","v":0},null,{"$f":"+Import!G152","v":0},null,{"$f":"+Import!I152","v":0},null,{"$f":"+Import!K152","v":0},null,{"$f":"+Import!M152","v":0},null,{"$f":"+Import!O152","v":0}]
[]
[null,"30.","LOANS AND NOTES PAYABLE",null,{"$f":"+Import!E153","v":0},null,{"$f":"+Import!G153","v":0},null,{"$f":"+Import!I153","v":0},null,{"$f":"+Import!K153","v":0},null,{"$f":"+Import!M153","v":0},null,{"$f":"+Import!O153","v":0}]
[]
[null,"31.","INCOME TAXES PAYABLE",null,{"$f":"+Import!E154","v":0},null,{"$f":"+Import!G154","v":0},null,{"$f":"+Import!I154","v":0},null,{"$f":"+Import!K154","v":0},null,{"$f":"+Import!M154","v":0},null,{"$f":"+Import!O154","v":0}]
[]
[null,"32.","AMOUNTS DUE TO AFFILIATES",null,{"$f":"+Import!E155","v":0},null,{"$f":"+Import!G155","v":0},null,{"$f":"+Import!I155","v":0},null,{"$f":"+Import!K155","v":0},null,{"$f":"+Import!M155","v":0},null,{"$f":"+Import!O155","v":0}]
[]
[null,"33.","ACCOUNTS PAYABLE AND ACCRUED LIABILITIES",null,{"$f":"+Import!E156","v":0},null,{"$f":"+Import!G156","v":0},null,{"$f":"+Import!I156","v":0},null,{"$f":"+Import!K156","v":0},null,{"$f":"+Import!M156","v":0},null,{"$f":"+Import!O156","v":0}]
[]
[null,"34.","DIGITAL ASSETS HELD IN CUSTODY FOR CLIENTS",null,{"$f":"+Import!E157","v":0},null,{"$f":"+Import!G157","v":0},null,{"$f":"+Import!I157","v":0},null,{"$f":"+Import!K157","v":0},null,{"$f":"+Import!M157","v":0},null,{"$f":"+Import!O157","v":0}]
[]
[null,"35.","DIVIDENDS PAYABLE",null,{"$f":"+Import!E158","v":0},null,{"$f":"+Import!G158","v":0},null,{"$f":"+Import!I158","v":0},null,{"$f":"+Import!K158","v":0},null,{"$f":"+Import!M158","v":0},null,{"$f":"+Import!O158","v":0}]
[]
[null,"36.","SUNDRY LIABILITIES:"]
[null,"(a)","Derivative instruments ",null,{"$f":"+Import!E159","v":0},null,{"$f":"+Import!G159","v":0},null,{"$f":"+Import!I159","v":0},null,{"$f":"+Import!K159","v":0},null,{"$f":"+Import!M159","v":0},null,{"$f":"+Import!O159","v":0}]
[null,"(b)","Net payable for investments purchased",null,{"$f":"+Import!E160","v":0},null,{"$f":"+Import!G160","v":0},null,{"$f":"+Import!I160","v":0},null,{"$f":"+Import!K160","v":0},null,{"$f":"+Import!M160","v":0},null,{"$f":"+Import!O160","v":0}]
[null,"(c)","Other sundry liabilities 1",null,{"$f":"+Import!E161","v":0},null,{"$f":"+Import!G161","v":0},null,{"$f":"+Import!I161","v":0},null,{"$f":"+Import!K161","v":0},null,{"$f":"+Import!M161","v":0},null,{"$f":"+Import!O161","v":0}]
[null,"(d)","Other sundry liabilities 2",null,{"$f":"+Import!E162","v":0},null,{"$f":"+Import!G162","v":0},null,{"$f":"+Import!I162","v":0},null,{"$f":"+Import!K162","v":0},null,{"$f":"+Import!M162","v":0},null,{"$f":"+Import!O162","v":0}]
[null,"(e)","Other sundry liabilities 3",null,{"$f":"+Import!E163","v":0},null,{"$f":"+Import!G163","v":0},null,{"$f":"+Import!I163","v":0},null,{"$f":"+Import!K163","v":0},null,{"$f":"+Import!M163","v":0},null,{"$f":"+Import!O163","v":0}]
[null,"(f)","Total sundry liabilities",null,{"$f":"SUM(E130:E134)","v":0},null,{"$f":"SUM(G130:G134)","v":0},null,{"$f":"SUM(I130:I134)","v":0},null,{"$f":"SUM(K130:K134)","v":0},null,{"$f":"SUM(M130:M134)","v":0},null,{"$f":"SUM(O130:O134)","v":0}]
[]
[null,"37.","LETTERS OF CREDIT, GUARANTEES AND OTHER INSTRUMENTS:"]
[null,"(a)","Letters of credit ",null,{"$f":"+Import!E164","v":0},null,{"$f":"+Import!G164","v":0},null,{"$f":"+Import!I164","v":0},null,{"$f":"+Import!K164","v":0},null,{"$f":"+Import!M164","v":0},null,{"$f":"+Import!O164","v":0}]
[null,"(b)","Guarantees",null,{"$f":"+Import!E165","v":0},null,{"$f":"+Import!G165","v":0},null,{"$f":"+Import!I165","v":0},null,{"$f":"+Import!K165","v":0},null,{"$f":"+Import!M165","v":0},null,{"$f":"+Import!O165","v":0}]
[null,"(c) ","Other instruments",null,{"$f":"+Import!E166","v":0},null,{"$f":"+Import!G166","v":0},null,{"$f":"+Import!I166","v":0},null,{"$f":"+Import!K166","v":0},null,{"$f":"+Import!M166","v":0},null,{"$f":"+Import!O166","v":0}]
[null,"(d)","Total letters of credit, guarantees and other instruments",null,{"$f":"SUM(E138:E140)","v":0},null,{"$f":"SUM(G138:G140)","v":0},null,{"$f":"SUM(I138:I140)","v":0},null,{"$f":"SUM(K138:K140)","v":0},null,{"$f":"SUM(M138:M140)","v":0},null,{"$f":"SUM(O138:O140)","v":0}]
[]
[null,"38.","TOTAL OTHER LIABILITIES",null,{"$f":"E113+E115+E117+E119+E121+E123+E125+E127+E135+E141","v":0},null,{"$f":"G113+G115+G117+G119+G121+G123+G125+G127+G135+G141","v":0},null,{"$f":"I113+I115+I117+I119+I121+I123+I125+I127+I135+I141","v":0},null,{"$f":"K113+K115+K117+K119+K121+K123+K125+K127+K135+K141","v":0},null,{"$f":"M113+M115+M117+M119+M121+M123+M125+M127+M135+M141","v":0},null,{"$f":"O113+O115+O117+O119+O121+O123+O125+O127+O135+O141","v":0}]
[]
[null,"39.","TOTAL INSURANCE PROVISIONS AND OTHER LIABILITIES",null,{"$f":"E109+E143","v":0},null,{"$f":"G109+G143","v":0},null,{"$f":"I109+I143","v":0},null,{"$f":"K109+K143","v":0},null,{"$f":"M109+M143","v":0},null,{"$f":"O109+O143","v":0}]
[]
[null,null,"STATUTORY CAPITAL AND SURPLUS"]
[]
[null,"40.","TOTAL STATUTORY CAPITAL AND SURPLUS ",null,{"$f":"+'Form 8SFS (Unconsolidated)'!G60","v":0},null,{"$f":"+'Form 8SFS (Unconsolidated)'!I60","v":0},null,{"$f":"+'Form 8SFS (Unconsolidated)'!K60","v":0},null,{"$f":"+'Form 8SFS (Unconsolidated)'!M60","v":0},null,{"$f":"+'Form 8SFS (Unconsolidated)'!O60","v":0},null,{"$f":"+'Form 8SFS (Unconsolidated)'!Q60","v":0}]
[]
[null,"41.","TOTAL LIABILITIES AND STOCKHOLDERS’ EQUITY",null,{"$f":"E145+E149","v":0},null,{"$f":"G145+G149","v":0},null,{"$f":"I145+I149","v":0},null,{"$f":"K145+K149","v":0},null,{"$f":"M145+M149","v":0},null,{"$f":"O145+O149","v":0}]
[]
[null,null,null,null,{"$f":"IF(E154=\"TRUE\",HYPERLINK(\"#'Form 1SFS'!E100\",\"TRUE\"),HYPERLINK(\"#'Form 1SFS'!E100\",\"FALSE\"))","v":"TRUE"},null,{"$f":"IF(G154=\"TRUE\",HYPERLINK(\"#'Form 1SFS'!G100\",\"TRUE\"),HYPERLINK(\"#'Form 1SFS'!G100\",\"FALSE\"))","v":"TRUE"},null,{"$f":"IF(I154=\"TRUE\",HYPERLINK(\"#'Form 1SFS'!I100\",\"TRUE\"),HYPERLINK(\"#'Form 1SFS'!I100\",\"FALSE\"))","v":"TRUE"},null,{"$f":"IF(K154=\"TRUE\",HYPERLINK(\"#'Form 1SFS'!K100\",\"TRUE\"),HYPERLINK(\"#'Form 1SFS'!K100\",\"FALSE\"))","v":"TRUE"},null,{"$f":"IF(M154=\"TRUE\",HYPERLINK(\"#'Form 1SFS'!M100\",\"TRUE\"),HYPERLINK(\"#'Form 1SFS'!M100\",\"FALSE\"))","v":"TRUE"},null,{"$f":"IF(O154=\"TRUE\",HYPERLINK(\"#'Form 1SFS'!O100\",\"TRUE\"),HYPERLINK(\"#'Form 1SFS'!O100\",\"FALSE\"))","v":"TRUE"},null,"CHECK"]
[null,null,null,null,{"$f":"IF(ROUND((E91-E151),0)=0,\"TRUE\",\"FALSE\")","v":"TRUE"},null,{"$f":"IF(ROUND((G91-G151),0)=0,\"TRUE\",\"FALSE\")","v":"TRUE"},null,{"$f":"IF(ROUND((I91-I151),0)=0,\"TRUE\",\"FALSE\")","v":"TRUE"},null,{"$f":"IF(ROUND((K91-K151),0)=0,\"TRUE\",\"FALSE\")","v":"TRUE"},null,{"$f":"IF(ROUND((M91-M151),0)=0,\"TRUE\",\"FALSE\")","v":"TRUE"},null,{"$f":"IF(ROUND((O91-O151),0)=0,\"TRUE\",\"FALSE\")","v":"TRUE"}]
[null,null,"Difference",null,{"$f":"ROUND((E91-E151),0)","v":0},null,{"$f":"ROUND((G91-G151),0)","v":0},null,{"$f":"ROUND((I91-I151),0)","v":0},null,{"$f":"ROUND((K91-K151),0)","v":0},null,{"$f":"ROUND((M91-M151),0)","v":0},null,{"$f":"ROUND((O91-O151),0)","v":0}]
[]
[null,null,null,null,{"$f":"IF(E153=\"False\",\"Line 15 does not equal Line 41\",\"\")","v":""},null,{"$f":"IF(G153=\"False\",\"Line 15 does not equal Line 41\",\"\")","v":""},null,{"$f":"IF(I153=\"False\",\"Line 15 does not equal Line 41\",\"\")","v":""},null,{"$f":"IF(K153=\"False\",\"Line 15 does not equal Line 41\",\"\")","v":""},null,{"$f":"IF(M153=\"False\",\"Line 15 does not equal Line 41\",\"\")","v":""},null,{"$f":"IF(O153=\"False\",\"Line 15 does not equal Line 41\",\"\")","v":""}]
[]
[null,"Notes to Unconsolidated Form 1SFS"]
[]
[null,"Line 10 ","Collateralised balances",null,null,null,null,null,null,null,null,null,{"$f":"Import!E169","v":0},null,{"$f":"Import!G169","v":0}]
[]
[null,"Line 11(e) ","Collateralised balances",null,null,null,null,null,null,null,null,null,{"$f":"Import!E170","v":0}]
[]
[null,"Line 17(c) ","Collateral placed in favour of the insurer ",null,null,null,null,null,null,null,null,null,{"$f":"Import!E171","v":0}]
[]
[null,"Line 13 ","Sundry assets",null,null,null,null,null,null,null,null,null,{"$f":"Import!E172","v":0},null,{"$f":"Import!G172","v":0}]
[]
[null,"Line 15","Encumbered assets for policyholder obligations"]
[]
[null,null,"Asset",null,null,null,null,null,"Purpose of Encumbrance"]
[null,null,"                Cash and cash equivalents",null,null,null,null,null,null,null,null,null,{"$f":"Import!E173","v":0},null,{"$f":"Import!G173","v":0}]
[null,null,"                Total quoted investments",null,null,null,null,null,null,null,null,null,{"$f":"Import!E174","v":0},null,{"$f":"Import!G174","v":0}]
[null,null,"                Total unquoted investments",null,null,null,null,null,null,null,null,null,{"$f":"Import!E175","v":0},null,{"$f":"Import!G175","v":0}]
[null,null,"                Funds held by ceding reinsurers",null,null,null,null,null,null,null,null,null,{"$f":"IF(SUM(E91,I91)=0,M73,E73+I73)","v":0},null,{"$f":"IF(SUM(G91,K91)=0,O73,G73+K73)","v":0}]
[null,null,"                Other assets",null,null,null,null,null,null,null,null,null,{"$f":"Import!E177","v":0},null,{"$f":"Import!G177","v":0}]
[null,null,"                Total encumbered assets",null,null,null,null,null,null,null,null,null,{"$f":"SUM(M172:M176)","v":0},null,{"$f":"SUM(O172:O176)","v":0}]
[]
[null,"Line 15","Encumbered assets not securing policyholder obligations"]
[]
[null,null,"Asset",null,null,null,null,null,"Purpose of Encumbrance"]
[null,null,"                Cash and cash equivalents",null,null,null,null,null,null,null,null,null,{"$f":"Import!E179","v":0},null,{"$f":"Import!G179","v":0}]
[null,null,"                Total quoted investments",null,null,null,null,null,null,null,null,null,{"$f":"Import!E180","v":0},null,{"$f":"Import!G180","v":0}]
[null,null,"                Total unquoted investments",null,null,null,null,null,null,null,null,null,{"$f":"Import!E181","v":0},null,{"$f":"Import!G181","v":0}]
[null,null,"                Other assets",null,null,null,null,null,null,null,null,null,{"$f":"Import!E182","v":0},null,{"$f":"Import!G182","v":0}]
[null,null,"                Total encumbered assets",null,null,null,null,null,null,null,null,null,{"$f":"SUM(M182:M185)","v":0},null,{"$f":"SUM(O182:O185)","v":0}]
[]
[null,"Line 36","Sundry liabilities",null,null,null,null,null,null,null,null,null,{"$f":"Import!E184","v":0},null,{"$f":"Import!G184","v":0}]
[]
[null,"Line 37","Letters of Credit, Guarantees and other Instruments",null,null,null,null,null,null,null,null,null,{"$f":"Import!E185","v":0},null,{"$f":"Import!G185","v":0}]
[]
[null,null,"General Business"]
[null,"Line 17","Reasons for the change in the net losses incurred and net loss expenses incurred related to prior years and indicate whether additional premiums or return premiums have been accrued as a result of the prior year effects. ",null,null,null,null,null,null,null,{"$f":"Import!E186","v":0}]
[]
[]
[null,"Line 17","Loss and loss expense provisions total restricted assets - an amount equal to the value of all that are held for security or collateral against a liability or contingent liabilit"]
[]
[]
[null,"Line 17","Loss and loss expense provision unsecured policyholder obligations - an amount equal to all policyholder obligations that are not secured by assets or collateral"]
[]
[]
[null,"Line 17","Gross loss and loss expense provisions at beginning of year",null,null,null,null,null,null,null,null,null,{"$f":"Import!E187","v":0},null,{"$f":"Import!G187","v":0}]
[]
[null,null,"Less: Reinsurance recoverable at beginning of year",null,null,null,null,null,null,null,null,null,{"$f":"Import!E188","v":0},null,{"$f":"Import!G188","v":0}]
[]
[null,null,"Net loss and loss expense provisions at beginning of year",null,null,null,null,null,null,null,null,null,{"$f":"M202-M204","v":0},null,{"$f":"O202-O204","v":0}]
[]
[null,null,"Acquisition / sale of loss reserves (net):",null,null,null,null,null,null,null,null,null,{"$f":"Import!E190","v":0},null,{"$f":"Import!G190","v":0}]
[]
[null,null,"Net losses incurred and net loss expenses incurred related to:"]
[]
[null,null,"               Current year",null,null,null,null,null,null,null,null,null,{"$f":"Import!E191","v":0},null,{"$f":"Import!G191","v":0}]
[null,null,"               Prior years",null,null,null,null,null,null,null,null,null,{"$f":"Import!E192","v":0},null,{"$f":"Import!G192","v":0}]
[]
[null,null,"Total net incurred losses and loss expenses",null,null,null,null,null,null,null,null,null,{"$f":"SUM(M212:M213)","v":0},null,{"$f":"SUM(O212:O213)","v":0}]
[]
[null,null,"Net losses and loss expenses paid or payable related to:"]
[]
[null,null,"               Current year",null,null,null,null,null,null,null,null,null,{"$f":"Import!E194","v":0},null,{"$f":"Import!G194","v":0}]
[null,null,"               Prior years",null,null,null,null,null,null,null,null,null,{"$f":"Import!E195","v":0},null,{"$f":"Import!G195","v":0}]
[]
[null,null,"Total losses and loss expenses paid or payable",null,null,null,null,null,null,null,null,null,{"$f":"SUM(M219:M220)","v":0},null,{"$f":"SUM(O219:O220)","v":0}]
[]
[null,null,"Foreign exchange and other",null,null,null,null,null,null,null,null,null,{"$f":"Import!E197","v":0},null,{"$f":"Import!G197","v":0}]
[]
[null,null,"Net loss and loss expense provisions at end of year",null,null,null,null,null,null,null,null,null,{"$f":"M206+M208+M215+M222+M224","v":0},null,{"$f":"O206+O208+O215+O222+O224","v":0}]
[]
[null,null,"Add: Reinsurance recoverable at end of year",null,null,null,null,null,null,null,null,null,{"$f":"Import!E199","v":0},null,{"$f":"Import!G199","v":0}]
[]
[null,null,"Gross loss and loss expense provisions at end of year",null,null,null,null,null,null,null,null,null,{"$f":"M226+M228","v":0},null,{"$f":"O226+O228","v":0}]
[null,null,null,null,null,null,null,null,null,null,null,null,null,null,null,null,""]
[null,null,null,null,null,null,null,null,null,null,null,null,{"$f":"IF(M233=\"TRUE\",HYPERLINK(\"#'Form 1SFS'!E117:M117\",\"TRUE\"),HYPERLINK(\"#'Form 1SFS'!E117:M117\",\"FALSE\"))","v":"TRUE"},null,{"$f":"IF(O233=\"TRUE\",HYPERLINK(\"#'Form 1SFS'!G117:O117\",\"TRUE\"),HYPERLINK(\"#'Form 1SFS'!G117:O117\",\"FALSE\"))","v":"TRUE"}]
[null,null,null,null,null,null,null,null,null,null,null,null,{"$f":"IF('Company Information'!$B$2=\"Unconsolidated BSCR Model\",IF(ROUND((M230-M98),0)=0,\"TRUE\",\"FALSE\"),IF(ROUND((M230-E98),0)=0,\"TRUE\",\"FALSE\"))","v":"TRUE"},null,{"$f":"IF('Company Information'!$B$2=\"Unconsolidated BSCR Model\",IF(ROUND((O230-O98),0)=0,\"TRUE\",\"FALSE\"),IF(ROUND((O230-G98),0)=0,\"TRUE\",\"FALSE\"))","v":"TRUE"}]
[null,null,"Difference",null,null,null,null,null,null,null,null,null,{"$f":"IF('Company Information'!$B$2=\"Unconsolidated BSCR Model\",ROUND(M98-M230,0),ROUND(E98-M230,0))","v":0},null,{"$f":"IF('Company Information'!$B$2=\"Unconsolidated BSCR Model\",ROUND(O98-O230,0),ROUND(G98-O230,0))","v":0}]
[]
[null,null,null,null,null,null,null,null,null,null,null,null,{"$f":"IF(M232=\"False\",\"Does not equal Line 17(a)\",\"\")","v":""},null,{"$f":"IF(O232=\"False\",\"Does not equal Line 17(a)\",\"\")","v":""}]
[]
[null,null,"Long-Term Business"]
[]
[null,"Line 27","Total gross long-term business insurance reserves at beginning of year"]
[]
[null,null,"Less: Reinsurance recoverable on long-term business at beginning of year"]
[]
[null,null,"Total net long-term business insurance reserves at beginning of year",null,null,null,null,null,null,null,null,null,{"$f":"M240-M242","v":0},null,{"$f":"O240-O242","v":0}]
[]
[null,null,"Long-term business deductions related to:"]
[]
[null,null,"               Current year"]
[null,null,"               Prior years"]
[]
[null,null,"Total long-term business deductions",null,null,null,null,null,null,null,null,null,{"$f":"SUM(M248:M249)","v":0},null,{"$f":"SUM(O248:O249)","v":0}]
[]
[null,null,"Less: Long-term business deductions paid or payable related to:"]
[]
[null,null,"               Current year"]
[null,null,"               Prior years"]
[]
[null,null,"Total long-term business deductions paid or payable",null,null,null,null,null,null,null,null,null,{"$f":"SUM(M255:M256)","v":0},null,{"$f":"SUM(O255:O256)","v":0}]
[]
[null,null,"Total net long-term business insurance reserves at end of year",null,null,null,null,null,null,null,null,null,{"$f":"M244+M251+M258","v":0},null,{"$f":"O244+O251+O258","v":0}]
[]
[null,null,"Add: Reinsurance recoverable on long-term business at end of year"]
[]
[null,null,"Total gross long-term business insurance reserves at end of year",null,null,null,null,null,null,null,null,null,{"$f":"M260+M262","v":0},null,{"$f":"O260+O262","v":0}]
[null,null,null,null,null,null,null,null,null,null,null,null,null,null,null,null,""]
[null,null,null,null,null,null,null,null,null,null,null,null,{"$f":"IF((M264-#REF!)=0,TRUE,FALSE)","v":{"$error":"#REF!"}},null,{"$f":"IF((O264-#REF!)=0,TRUE,FALSE)","v":{"$error":"#REF!"}}]
[]
[null,null,"Difference",null,null,null,null,null,null,null,null,null,{"$f":"#REF!-M264","v":{"$error":"#REF!"}},null,{"$f":"#REF!-O264","v":{"$error":"#REF!"}}]
[]
[null,"Line 27",null,null,"Insurance Contracts",null,null,null,null,null,"Investment Contracts"]
[null,null,"CURRENT YEAR",null,"Gross",null,"Reinsurance",null,"Net",null,"Gross",null,"Reinsurance",null,"Net"]
[null,null,"Balance - Beginning of Year",null,{"$f":"Import!E201","v":0},null,{"$f":"Import!E208","v":0},null,{"$f":"E272-G272","v":0},null,{"$f":"Import!E222","v":0},null,{"$f":"Import!E229","v":0},null,{"$f":"K272-M272","v":0}]
[null,null,"Impact of Terminations",null,{"$f":"Import!E202","v":0},null,{"$f":"Import!E209","v":0},null,0,null,{"$f":"Import!E223","v":0},null,{"$f":"Import!E230","v":0},null,0]
[null,null,"Impact of New Business",null,{"$f":"Import!E203","v":0},null,{"$f":"Import!E210","v":0},null,0,null,{"$f":"Import!E224","v":0},null,{"$f":"Import!E231","v":0},null,0]
[null,null,"Normal Change in force",null,{"$f":"Import!E204","v":0},null,{"$f":"Import!E211","v":0},null,0,null,{"$f":"Import!E225","v":0},null,{"$f":"Import!E232","v":0},null,0]
[null,null,"Management Actions and Changes in Assumptions",null,{"$f":"Import!E205","v":0},null,{"$f":"Import!E212","v":0},null,0,null,{"$f":"Import!E226","v":0},null,{"$f":"Import!E233","v":0},null,0]
[null,null,"Impact of Foreign Exchange rate changes",null,{"$f":"Import!E206","v":0},null,{"$f":"Import!E213","v":0},null,0,null,{"$f":"Import!E227","v":0},null,{"$f":"Import!E234","v":0},null,0]
[null,null,"Balance - End of Year",null,{"$f":"SUM(E272:E277)","v":0},null,{"$f":"SUM(G272:G277)","v":0},null,{"$f":"SUM(I272:I277)","v":0},null,{"$f":"SUM(K272:K277)","v":0},null,{"$f":"SUM(M272:M277)","v":0},null,{"$f":"SUM(O272:O277)","v":0}]
[]
[null,null,"PRIOR YEAR"]
[null,null,"Balance - Beginning of Year",null,{"$f":"Import!G201","v":0},null,{"$f":"Import!G208","v":0},null,{"$f":"E281-G281","v":0},null,{"$f":"Import!G222","v":0},null,{"$f":"Import!G229","v":0},null,{"$f":"K281-M281","v":0}]
[null,null,"Impact of Terminations",null,{"$f":"Import!G202","v":0},null,{"$f":"Import!G209","v":0},null,0,null,{"$f":"Import!G223","v":0},null,{"$f":"Import!G230","v":0},null,0]
[null,null,"Impact of New Business",null,{"$f":"Import!G203","v":0},null,{"$f":"Import!G210","v":0},null,0,null,{"$f":"Import!G224","v":0},null,{"$f":"Import!G231","v":0},null,0]
[null,null,"Normal Change in force",null,{"$f":"Import!G204","v":0},null,{"$f":"Import!G211","v":0},null,0,null,{"$f":"Import!G225","v":0},null,{"$f":"Import!G232","v":0},null,0]
[null,null,"Management Actions and Changes in Assumptions",null,{"$f":"Import!G205","v":0},null,{"$f":"Import!G212","v":0},null,0,null,{"$f":"Import!G226","v":0},null,{"$f":"Import!G233","v":0},null,0]
[null,null,"Impact of Foreign Exchange rate changes",null,{"$f":"Import!G206","v":0},null,{"$f":"Import!G213","v":0},null,0,null,{"$f":"Import!G227","v":0},null,{"$f":"Import!G234","v":0},null,0]
[null,null,"Balance - End of Year",null,{"$f":"SUM(E281:E286)","v":0},null,{"$f":"SUM(G281:G286)","v":0},null,{"$f":"SUM(I281:I286)","v":0},null,{"$f":"SUM(K281:K286)","v":0},null,{"$f":"SUM(M281:M286)","v":0},null,{"$f":"SUM(O281:O286)","v":0}]

{"sheet":"Form 2SFS (Unconsolidated)","index":17,"n_rows":63,"n_cols":15,"rows_kept":63,"cut":false,"hidden":false,"merged":[[4,4,4,6],[4,8,4,10],[4,12,4,14],[5,4,5,6],[5,8,5,10],[5,12,5,14]]}
[null,"STATUTORY STATEMENT OF INCOME",null,null,null,null,null,null,null,null,null,null,null,null,{"$f":"HYPERLINK(\"#'Index'!A1\",\"Return to Index\")","v":"Return to Index"}]
[null,{"$f":"'Company Information'!C7","v":"Enter Company Name"}]
[null,"For the year ending",{"$f":"'Company Information'!C3","v":"2022-12-31"},null,null,null,null,null,null,null,null,null,null,null,"FORM 2SFS"]
[null,{"$f":"\"expressed in\"& IF(CONFIGURATION!$B$12>1,\" ['\"&MID(CONFIGURATION!$B$12,2,LEN(CONFIGURATION!$B$12))&\"s]\",\"\")","v":"expressed in ['000s]"},{"$f":"'Form 1SFS (Unconsolidated)'!$C$5","v":"United States Dollars"},null,"(A)",null,"(B)",null,"(C)",null,"(D)",null,"(E)",null,"(F)"]
[null,null,null,null,"Consolidated",null,null,null,"Consolidated",null,null,null,"Consolidated"]
[null,"STMT.",null,null,"In Fiat",null,null,null,"Digital Assets",null,null,null,"Total in (Reported Currency)"]
[null,"LINE No.",null,null,{"$f":"'Form 1SFS (Unconsolidated)'!$E$9","v":"2022-12-31"},null,{"$f":"'Form 1SFS (Unconsolidated)'!$G$9","v":"2021-12-31"},null,{"$f":"'Form 1SFS (Unconsolidated)'!$E$9","v":"2022-12-31"},null,{"$f":"'Form 1SFS (Unconsolidated)'!$G$9","v":"2021-12-31"},null,{"$f":"'Form 1SFS (Unconsolidated)'!$E$9","v":"2022-12-31"},null,{"$f":"'Form 1SFS (Unconsolidated)'!$G$9","v":"2021-12-31"}]
[null,null,null,null,{"$f":"CONFIGURATION!$D$12","v":" ('000s)"},null,{"$f":"CONFIGURATION!$D$12","v":" ('000s)"},null,{"$f":"CONFIGURATION!$D$12","v":" ('000s)"},null,{"$f":"CONFIGURATION!$D$12","v":" ('000s)"},null,{"$f":"CONFIGURATION!$D$12","v":" ('000s)"},null,{"$f":"CONFIGURATION!$D$12","v":" ('000s)"}]
[null,null,"GENERAL BUSINESS UNDERWRITING INCOME"]
[]
[null,"1.","GROSS PREMIUMS WRITTEN:"]
[null,null,"(a) Direct gross premiums written",null,{"$f":"+Import!E266","v":0},null,{"$f":"+Import!G266","v":0},null,{"$f":"+Import!I266","v":0},null,{"$f":"+Import!K266","v":0},null,{"$f":"+Import!M266","v":0},null,{"$f":"+Import!O266","v":0}]
[null,null,"(b) Assumed gross premiums written",null,{"$f":"+Import!E267","v":0},null,{"$f":"+Import!G267","v":0},null,{"$f":"+Import!I267","v":0},null,{"$f":"+Import!K267","v":0},null,{"$f":"+Import!M267","v":0},null,{"$f":"+Import!O267","v":0}]
[null,null,"(c) Total gross premiums written",null,{"$f":"SUM(E12:E13)","v":0},null,{"$f":"SUM(G12:G13)","v":0},null,{"$f":"SUM(I12:I13)","v":0},null,{"$f":"SUM(K12:K13)","v":0},null,{"$f":"SUM(M12:M13)","v":0},null,{"$f":"SUM(O12:O13)","v":0}]
[]
[null,"2.","REINSURANCE PREMIUMS CEDED",null,{"$f":"+Import!E268","v":0},null,{"$f":"+Import!G268","v":0},null,{"$f":"+Import!I268","v":0},null,{"$f":"+Import!K268","v":0},null,{"$f":"+Import!M268","v":0},null,{"$f":"+Import!O268","v":0}]
[]
[null,"3.","NET PREMIUMS WRITTEN",null,{"$f":"E14-E16","v":0},null,{"$f":"G14-G16","v":0},null,{"$f":"I14-I16","v":0},null,{"$f":"K14-K16","v":0},null,{"$f":"M14-M16","v":0},null,{"$f":"O14-O16","v":0}]
[]
[null,"4.","INCREASE (DECREASE) IN UNEARNED PREMIUMS",null,{"$f":"+Import!E269","v":0},null,{"$f":"+Import!G269","v":0},null,{"$f":"+Import!I269","v":0},null,{"$f":"+Import!K269","v":0},null,{"$f":"+Import!M269","v":0},null,{"$f":"+Import!O269","v":0}]
[]
[null,"5.","NET PREMIUMS EARNED",null,{"$f":"E18+E20","v":0},null,{"$f":"G18+G20","v":0},null,{"$f":"I18+I20","v":0},null,{"$f":"K18+K20","v":0},null,{"$f":"M18+M20","v":0},null,{"$f":"O18+O20","v":0}]
[]
[null,"6.","OTHER INSURANCE INCOME",null,{"$f":"+Import!E270","v":0},null,{"$f":"+Import!G270","v":0},null,{"$f":"+Import!I270","v":0},null,{"$f":"+Import!K270","v":0},null,{"$f":"+Import!M270","v":0},null,{"$f":"+Import!O270","v":0}]
[]
[null,"7.","TOTAL GENERAL BUSINESS UNDERWRITING INCOME",null,{"$f":"E22+E24","v":0},null,{"$f":"G22+G24","v":0},null,{"$f":"I22+I24","v":0},null,{"$f":"K22+K24","v":0},null,{"$f":"M22+M24","v":0},null,{"$f":"O22+O24","v":0}]
[]
[null,null,"GENERAL BUSINESS UNDERWRITING EXPENSES"]
[]
[null,"8.","NET LOSSES INCURRED AND NET LOSS EXPENSES INCURRED",null,{"$f":"+Import!E271","v":0},null,{"$f":"+Import!G271","v":0},null,{"$f":"+Import!I271","v":0},null,{"$f":"+Import!K271","v":0},null,{"$f":"+Import!M271","v":0},null,{"$f":"+Import!O271","v":0}]
[]
[null,"9.","COMMISSIONS AND BROKERAGE",null,{"$f":"+Import!E272","v":0},null,{"$f":"+Import!G272","v":0},null,{"$f":"+Import!I272","v":0},null,{"$f":"+Import!K272","v":0},null,{"$f":"+Import!M272","v":0},null,{"$f":"+Import!O272","v":0}]
[]
[null,"10.","TOTAL GENERAL BUSINESS UNDERWRITING EXPENSES",null,{"$f":"E30+E32","v":0},null,{"$f":"G30+G32","v":0},null,{"$f":"I30+I32","v":0},null,{"$f":"K30+K32","v":0},null,{"$f":"M30+M32","v":0},null,{"$f":"O30+O32","v":0}]
[]
[null,"11.","NET UNDERWRITING PROFIT (LOSS) - GENERAL BUSINESS",null,{"$f":"E26-E34","v":0},null,{"$f":"G26-G34","v":0},null,{"$f":"I26-I34","v":0},null,{"$f":"K26-K34","v":0},null,{"$f":"M26-M34","v":0},null,{"$f":"O26-O34","v":0}]
[]
[null,null,"UNDERNOTED ITEMS"]
[]
[null,"30.","COMBINED OPERATING EXPENSES:"]
[null,null,"(a) General and administrative ",null,{"$f":"Import!E273","v":0},null,{"$f":"Import!G273","v":0},null,{"$f":"Import!I273","v":0},null,{"$f":"Import!K273","v":0},null,{"$f":"+Import!M273","v":0},null,{"$f":"+Import!O273","v":0}]
[null,null,"(b) Personnel Costs  ",null,{"$f":"Import!E274","v":0},null,{"$f":"Import!G274","v":0},null,{"$f":"Import!I274","v":0},null,{"$f":"Import!K274","v":0},null,{"$f":"+Import!M274","v":0},null,{"$f":"+Import!O274","v":0}]
[null,null,"(c) Other  ",null,{"$f":"Import!E275","v":0},null,{"$f":"Import!G275","v":0},null,{"$f":"Import!I275","v":0},null,{"$f":"Import!K275","v":0},null,{"$f":"+Import!M275","v":0},null,{"$f":"+Import!O275","v":0}]
[null,null,"(d) Total combined operating expenses  ",null,{"$f":"SUM(E41:E43)","v":0},null,{"$f":"SUM(G41:G43)","v":0},null,{"$f":"SUM(I41:I43)","v":0},null,{"$f":"SUM(K41:K43)","v":0},null,{"$f":"SUM(M41:M43)","v":0},null,{"$f":"SUM(O41:O43)","v":0}]
[]
[null,"31.","COMBINED INVESTMENT INCOME - NET",null,{"$f":"Import!E276","v":0},null,{"$f":"Import!G276","v":0},null,{"$f":"Import!I276","v":0},null,{"$f":"Import!K276","v":0},null,{"$f":"+Import!M276","v":0},null,{"$f":"+Import!O276","v":0}]
[]
[null,"32.","COMBINED OTHER INCOME (DEDUCTIONS)",null,{"$f":"Import!E277","v":0},null,{"$f":"Import!G277","v":0},null,{"$f":"Import!I277","v":0},null,{"$f":"Import!K277","v":0},null,{"$f":"+Import!M277","v":0},null,{"$f":"+Import!O277","v":0}]
[]
[null,"33.","COMBINED INCOME BEFORE TAXES",null,{"$f":"E36+E44+E46+E48","v":0},null,{"$f":"G36+G44+G46+G48","v":0},null,{"$f":"I36+I44+I46+I48","v":0},null,{"$f":"K36+K44+K46+K48","v":0},null,{"$f":"M36+M44+M46+M48","v":0},null,{"$f":"O36+O44+O46+O48","v":0}]
[]
[null,"34.","COMBINED INCOME TAXES (IF APPLICABLE):"]
[null,null,"(a) Current",null,{"$f":"Import!E278","v":0},null,{"$f":"Import!G278","v":0},null,{"$f":"Import!I278","v":0},null,{"$f":"Import!K278","v":0},null,{"$f":"+Import!M278","v":0},null,{"$f":"+Import!O278","v":0}]
[null,null,"(b) Deferred",null,{"$f":"Import!E279","v":0},null,{"$f":"Import!G279","v":0},null,{"$f":"Import!I279","v":0},null,{"$f":"Import!K279","v":0},null,{"$f":"+Import!M279","v":0},null,{"$f":"+Import!O279","v":0}]
[null,null,"(c) Total ",null,{"$f":"E53+E54","v":0},null,{"$f":"G53+G54","v":0},null,{"$f":"I53+I54","v":0},null,{"$f":"K53+K54","v":0},null,{"$f":"M53+M54","v":0},null,{"$f":"O53+O54","v":0}]
[]
[null,"35.","COMBINED INCOME BEFORE REALISED GAINS (LOSSES)",null,{"$f":"E50-E55","v":0},null,{"$f":"G50-G55","v":0},null,{"$f":"I50-I55","v":0},null,{"$f":"K50-K55","v":0},null,{"$f":"M50-M55","v":0},null,{"$f":"O50-O55","v":0}]
[]
[null,"36.","COMBINED REALISED GAINS (LOSSES)",null,{"$f":"Import!E280","v":0},null,{"$f":"Import!G280","v":0},null,{"$f":"Import!I280","v":0},null,{"$f":"Import!K280","v":0},null,{"$f":"+Import!M280","v":0},null,{"$f":"+Import!O280","v":0}]
[]
[null,"37.","COMBINED INTEREST CHARGES",null,{"$f":"Import!E281","v":0},null,{"$f":"Import!G281","v":0},null,{"$f":"Import!I281","v":0},null,{"$f":"Import!K281","v":0},null,{"$f":"+Import!M281","v":0},null,{"$f":"+Import!O281","v":0}]
[]
[null,"38.","NET INCOME",null,{"$f":"E57+E59-E61","v":0},null,{"$f":"G57+G59-G61","v":0},null,{"$f":"I57+I59-I61","v":0},null,{"$f":"K57+K59-K61","v":0},null,{"$f":"M57+M59-M61","v":0},null,{"$f":"O57+O59-O61","v":0}]

{"sheet":"Form 8SFS (Unconsolidated)","index":18,"n_rows":65,"n_cols":17,"rows_kept":65,"cut":false,"hidden":false,"merged":[[5,6,5,8],[5,10,5,12],[5,14,5,16],[2,2,2,3],[3,2,3,3],[4,6,4,8],[4,10,4,12],[4,14,4,16],[47,2,47,4],[62,2,62,4],[62,10,62,12],[64,2,64,4],[64,10,64,12]]}
[null,"STATUTORY STATEMENT OF CAPITAL AND SURPLUS ",null,null,null,null,null,null,null,null,null,null,null,null,null,null,{"$f":"HYPERLINK(\"#'Index'!A1\",\"Return to Index\")","v":"Return to Index"}]
[null,{"$f":"'Company Information'!C7","v":"Enter Company Name"}]
[null,"For the year ending",{"$f":"'Company Information'!C3","v":"2022-12-31"},null,null,null,null,null,null,null,null,null,null,null,null,null,"FORM 8SFS"]
[null,{"$f":"\"expressed in\"& IF(CONFIGURATION!$B$12>1,\" ['\"&MID(CONFIGURATION!$B$12,2,LEN(CONFIGURATION!$B$12))&\"s]\",\"\")","v":"expressed in ['000s]"},{"$f":"'Form 1SFS (Unconsolidated)'!$C$5","v":"United States Dollars"},{"$f":"'Form 1SFS (Unconsolidated)'!$C$5","v":"United States Dollars"},null,null,"(A)",null,"(B)",null,"(C)",null,"(D)",null,"(E)",null,"(F)"]
[null,null,null,null,null,null,"Consolidated",null,null,null,"Consolidated",null,null,null,"Consolidated"]
[null,"STMT.",null,null,null,null,"In Fiat",null,null,null,"In Digital Assets",null,null,null,"Total (Converted to Reporting Currency)"]
[null,"LINE No.",null,null,null,null,{"$f":"'Form 1SFS (Unconsolidated)'!$E$9","v":"2022-12-31"},null,{"$f":"'Form 1SFS (Unconsolidated)'!$G$9","v":"2021-12-31"},null,{"$f":"'Form 1SFS (Unconsolidated)'!$E$9","v":"2022-12-31"},null,{"$f":"'Form 1SFS (Unconsolidated)'!$G$9","v":"2021-12-31"},null,{"$f":"'Form 1SFS (Unconsolidated)'!$E$9","v":"2022-12-31"},null,{"$f":"'Form 1SFS (Unconsolidated)'!$G$9","v":"2021-12-31"}]
[null,null,null,null,null,null,{"$f":"CONFIGURATION!$D$12","v":" ('000s)"},null,{"$f":"CONFIGURATION!$D$12","v":" ('000s)"},null,{"$f":"CONFIGURATION!$D$12","v":" ('000s)"},null,{"$f":"CONFIGURATION!$D$12","v":" ('000s)"},null,{"$f":"CONFIGURATION!$D$12","v":" ('000s)"},null,{"$f":"CONFIGURATION!$D$12","v":" ('000s)"}]
[null,"1.","STATUTORY CAPITAL"]
[]
[null,"(a)","Capital Stock",null,null,null,{"$f":"Import!E284","v":0},null,{"$f":"Import!G284","v":0},null,{"$f":"Import!I284","v":0},null,{"$f":"Import!K284","v":0}]
[null,null,"(i) Common Shares",null,null,null,null,null,null,null,null,null,null,null,{"$f":"Import!M285","v":0},null,{"$f":"Import!O285","v":0}]
[null,null,"authorised",null,"shares of par"]
[null,null,"value",null,"each issued and"]
[null,null,"fully paid",null,"shares"]
[]
[null,null,"(ii) Preferred Shares",null,null,null,null,null,null,null,null,null,null,null,{"$f":"Import!M286","v":0},null,{"$f":"Import!O286","v":0}]
[null,null,"authorised",null,"shares of par"]
[null,null,"value",null,"each issued and"]
[null,null,"fully paid",null,"shares"]
[null,null,"aggregate liquidation value for —"]
[null,null,{"$f":"O7","v":"2022-12-31"}]
[null,null,{"$f":"Q7","v":"2021-12-31"}]
[]
[null,null,"(iii) Treasury Shares",null,null,null,null,null,null,null,null,null,null,null,{"$f":"Import!M287","v":0},null,{"$f":"Import!O287","v":0}]
[null,null,"repurchased",null,"shares of par"]
[null,null,"value",null,"each issued"]
[]
[null,null,"(iv) Tokenised equity shares",null,null,null,null,null,null,null,null,null,null,null,{"$f":"Import!M288","v":0},null,{"$f":"Import!O288","v":0}]
[]
[null,"(b)","Contributed surplus",null,null,null,{"$f":"Import!E289","v":0},null,{"$f":"Import!G289","v":0},null,{"$f":"Import!I289","v":0},null,{"$f":"Import!K289","v":0},null,{"$f":"Import!M289","v":0},null,{"$f":"Import!O289","v":0}]
[]
[null,"(c)","Any other fixed capital"]
[null,null,"(i) Hybrid capital instruments",null,null,null,{"$f":"Import!E290","v":0},null,{"$f":"Import!G290","v":0},null,{"$f":"Import!I290","v":0},null,{"$f":"Import!K290","v":0},null,{"$f":"Import!M290","v":0},null,{"$f":"Import!O290","v":0}]
[null,null,"(ii) Guarantees and others",null,null,null,{"$f":"Import!E291","v":0},null,{"$f":"Import!G291","v":0},null,{"$f":"Import!I291","v":0},null,{"$f":"Import!K291","v":0},null,{"$f":"Import!M291","v":0},null,{"$f":"Import!O291","v":0}]
[null,null,"(iii) Total any other fixed capital",null,null,null,{"$f":"SUM(G34:G35)","v":0},null,{"$f":"SUM(I34:I35)","v":0},null,{"$f":"SUM(K34:K35)","v":0},null,{"$f":"SUM(M34:M35)","v":0},null,{"$f":"SUM(O34:O35)","v":0},null,{"$f":"SUM(Q34:Q35)","v":0}]
[]
[null,"(d)","Total Statutory Capital",null,null,null,{"$f":"G11+G31+G36","v":0},null,{"$f":"I11+I31+I36","v":0},null,{"$f":"K11+K31+K36","v":0},null,{"$f":"M11+M31+M36","v":0},null,{"$f":"O12+O17-O25+O29+O31+O36","v":0},null,{"$f":"Q12+Q17-Q25+Q29+Q31+Q36","v":0}]
[]
[null,"2.","STATUTORY SURPLUS:"]
[]
[null,"(a)","Statutory Surplus - Beginning of Year",null,null,null,{"$f":"Import!E292","v":0},null,{"$f":"Import!G292","v":0},null,{"$f":"Import!I292","v":0},null,{"$f":"Import!K292","v":0},null,{"$f":"Import!M292","v":0},null,{"$f":"Import!O292","v":0}]
[]
[null,"(b)","Add: Income for Year",null,null,null,{"$f":"'Form 2SFS (Unconsolidated)'!E63","v":0},null,{"$f":"'Form 2SFS (Unconsolidated)'!G63","v":0},null,{"$f":"'Form 2SFS (Unconsolidated)'!I63","v":0},null,{"$f":"'Form 2SFS (Unconsolidated)'!K63","v":0},null,{"$f":"'Form 2SFS (Unconsolidated)'!M63","v":0},null,{"$f":"'Form 2SFS (Unconsolidated)'!O63","v":0}]
[]
[null,"(c)","Less: Dividends paid and payable",null,null,null,{"$f":"Import!E293","v":0},null,{"$f":"Import!G293","v":0},null,{"$f":"Import!I293","v":0},null,{"$f":"Import!K293","v":0},null,{"$f":"Import!M293","v":0},null,{"$f":"Import!O293","v":0}]
[]
[null,"(d)","Add (Deduct): Change in unrealised appreciation (depreciation) of investments",null,null,null,{"$f":"Import!E294","v":0},null,{"$f":"Import!G294","v":0},null,{"$f":"Import!I294","v":0},null,{"$f":"Import!K294","v":0},null,{"$f":"Import!M294","v":0},null,{"$f":"Import!O294","v":0}]
[]
[null,"(e)","Add (Deduct): Change in non-admitted assets",null,null,null,{"$f":"Import!E295","v":0},null,{"$f":"Import!G295","v":0},null,{"$f":"Import!I295","v":0},null,{"$f":"Import!K295","v":0},null,{"$f":"Import!M295","v":0},null,{"$f":"Import!O295","v":0}]
[]
[null,"(f)","Add (Deduct): Change in appraisal of real estate",null,null,null,{"$f":"Import!E296","v":0},null,{"$f":"Import!G296","v":0},null,{"$f":"Import!I296","v":0},null,{"$f":"Import!K296","v":0},null,{"$f":"Import!M296","v":0},null,{"$f":"Import!O296","v":0}]
[]
[null,"(g)","Add (Deduct): Change in any other statutory capital",null,null,null,{"$f":"Import!E297","v":0},null,{"$f":"Import!G297","v":0},null,{"$f":"Import!I297","v":0},null,{"$f":"Import!K297","v":0},null,{"$f":"Import!M297","v":0},null,{"$f":"Import!O297","v":0}]
[]
[null,"(h)","Statutory Surplus - End of Year",null,null,null,{"$f":"G42+G44+G46+G48+G50+G52+G54","v":0},null,{"$f":"I42+I44+I46+I48+I50+I52+I54","v":0},null,{"$f":"K42+K44+K46+K48+K50+K52+K54","v":0},null,{"$f":"M42+M44+M46+M48+M50+M52+M54","v":0},null,{"$f":"O42+O44+O46+O48+O50+O52+O54","v":0},null,{"$f":"Q42+Q44+Q46+Q48+Q50+Q52+Q54","v":0}]
[]
[null,"3.","MINORITY INTEREST",null,null,null,{"$f":"Import!E298","v":0},null,{"$f":"Import!G298","v":0},null,{"$f":"Import!I298","v":0},null,{"$f":"Import!K298","v":0},null,{"$f":"Import!M298","v":0},null,{"$f":"Import!O298","v":0}]
[]
[null,"4.","TOTAL STATUTORY CAPITAL AND SURPLUS",null,null,null,{"$f":"G38+G56+G58","v":0},null,{"$f":"I38+I56+I58","v":0},null,{"$f":"K38+K56+K58","v":0},null,{"$f":"M38+M56+M58","v":0},null,{"$f":"O38+O56+O58","v":0},null,{"$f":"Q38+Q56+Q58","v":0}]
[]
[null,null,null,null,null,null,null,null,null,null,"Change in other statutory capital and surplus"]
[null,"Line 2g","Change in any other statutory capital"]
[]
[null,"Line 4","Total Statutory Capital & Surplus",null,null,null,null,null,null,null,{"$f":"HYPERLINK(\"#'Schedule V(g)'!A1\",\"Refer to Schedule V(g)\")","v":"Refer to Schedule V(g)"}]

{"sheet":"Form 1SFS (Consolidated)","index":19,"n_rows":287,"n_cols":17,"rows_kept":287,"cut":false,"hidden":false,"merged":[[7,12,7,14],[7,4,7,6],[6,4,6,6],[6,12,6,14],[6,8,6,10],[7,8,7,10],[269,4,269,8],[269,10,269,14],[171,8,171,10],[172,8,172,10],[173,8,173,10],[174,8,174,10],[175,8,175,10],[181,8,181,10],[182,8,182,10],[183,8,183,10],[184,8,184,10],[185,8,185,10],[192,2,193,8],[192,10,193,14],[195,2,196,8],[198,2,199,8]]}
[null,"STATUTORY BALANCE SHEET",null,null,null,null,null,null,null,null,null,null,null,null,{"$f":"HYPERLINK(\"#'Index'!A1\",\"Return to Index\")","v":"Return to Index"}]
[]
[null,{"$f":"'Company Information'!C7","v":"Enter Company Name"},null,null,null,null,null,null,null,null,null,null,null,null,"FORM 1SFS"]
[null,"As at",{"$f":"'Company Information'!C3","v":"2022-12-31"}]
[null,{"$f":"\"expressed in\"& IF(CONFIGURATION!$B$12>1,\" ['\"&MID(CONFIGURATION!$B$12,2,LEN(CONFIGURATION!$B$12))&\"s]\",\"\")","v":"expressed in ['000s]"},"United States Dollars",null,"(A)",null,"(B)",null,"(C)",null,"(D)",null,"(E)",null,"(F)"]
[]
[null,null,null,null,"Consolidated",null,null,null,"Consolidated",null,null,null,"Consolidated"]
[null,"STMT.",null,null,"In Fiat",null,null,null,"In Fiat",null,null,null,"Total (Converted to Reporting Currency)"]
[null,"LINE No.",null,null,{"$f":"C4","v":"2022-12-31"},null,{"$f":"DATE(YEAR(C4) -1, MONTH(C4), DAY(C4))","v":"2021-12-31"},null,{"$f":"C4","v":"2022-12-31"},null,{"$f":"DATE(YEAR(C4) -1, MONTH(C4), DAY(C4))","v":"2021-12-31"},null,{"$f":"C4","v":"2022-12-31"},null,{"$f":"DATE(YEAR(C4) -1, MONTH(C4), DAY(C4))","v":"2021-12-31"}]
[null,null,null,null,{"$f":"CONFIGURATION!$D$12","v":" ('000s)"},null,{"$f":"CONFIGURATION!$D$12","v":" ('000s)"},null,{"$f":"CONFIGURATION!$D$12","v":" ('000s)"},null,{"$f":"CONFIGURATION!$D$12","v":" ('000s)"},null,{"$f":"CONFIGURATION!$D$12","v":" ('000s)"},null,{"$f":"CONFIGURATION!$D$12","v":" ('000s)"}]
[]
[null,"1.","CASH AND CASH EQUIVALENTS",null,{"$f":"+Import!E301","v":0},null,{"$f":"+Import!G301","v":0},null,{"$f":"+Import!I301","v":0},null,{"$f":"+Import!K301","v":0},null,{"$f":"+Import!M301","v":0},null,{"$f":"+Import!O301","v":0}]
[]
[null,"2.","QUOTED INVESTMENTS:"]
[null,"(a)","Bonds and Debentures"]
[null,null,"  i.   Held to maturity",null,{"$f":"+Import!E302","v":0},null,{"$f":"+Import!G302","v":0},null,{"$f":"+Import!I302","v":0},null,{"$f":"+Import!K302","v":0},null,{"$f":"+Import!M302","v":0},null,{"$f":"+Import!O302","v":0}]
[null,null,"  ii.  Other",null,{"$f":"+Import!E303","v":0},null,{"$f":"+Import!G303","v":0},null,{"$f":"+Import!I303","v":0},null,{"$f":"+Import!K303","v":0},null,{"$f":"+Import!M303","v":0},null,{"$f":"+Import!O303","v":0}]
[null,"(b)","Total Bonds and Debentures",null,{"$f":"SUM(E16:E17)","v":0},null,{"$f":"SUM(G16:G17)","v":0},null,{"$f":"SUM(I16:I17)","v":0},null,{"$f":"SUM(K16:K17)","v":0},null,{"$f":"SUM(M16:M17)","v":0},null,{"$f":"SUM(O16:O17)","v":0}]
[null,"(c) ","Equities "]
[null,null,"  i.   Common stocks",null,{"$f":"Import!E305","v":0},null,{"$f":"Import!G305","v":0},null,{"$f":"+Import!I304","v":0},null,{"$f":"+Import!K304","v":0},null,{"$f":"+Import!M305","v":0},null,{"$f":"+Import!O305","v":0}]
[null,null,"  ii. Preferred stocks",null,{"$f":"Import!E306","v":0},null,{"$f":"Import!G306","v":0},null,{"$f":"+Import!I305","v":0},null,{"$f":"+Import!K305","v":0},null,{"$f":"+Import!M306","v":0},null,{"$f":"+Import!O306","v":0}]
[null,null,"  iii. Mutual Funds",null,{"$f":"Import!E307","v":0},null,{"$f":"Import!G307","v":0},null,{"$f":"+Import!I306","v":0},null,{"$f":"+Import!K306","v":0},null,{"$f":"+Import!M306","v":0},null,{"$f":"+Import!O307","v":0}]
[null,"(d) ","Total equity investments",null,{"$f":"SUM(E20:E22)","v":0},null,{"$f":"SUM(G20:G22)","v":0},null,{"$f":"SUM(I20:I22)","v":0},null,{"$f":"SUM(K20:K22)","v":0},null,{"$f":"SUM(M20:M22)","v":0},null,{"$f":"SUM(O20:O22)","v":0}]
[null,"(e)","Other quoted investments"]
[null,null,"i. Digital assets",null,{"$f":"Import!E308","v":0},null,{"$f":"Import!G308","v":0},null,{"$f":"Import!I308","v":0},null,{"$f":"Import!K308","v":0},null,{"$f":"Import!M308","v":0},null,{"$f":"Import!O308","v":0}]
[null,null,"ii. Preferred stocks",null,{"$f":"Import!E309","v":0},null,{"$f":"Import!G309","v":0},null,{"$f":"Import!I309","v":0},null,{"$f":"Import!K309","v":0},null,{"$f":"Import!M309","v":0},null,{"$f":"Import!O309","v":0}]
[null,null,"iii. Others",null,{"$f":"Import!E310","v":0},null,{"$f":"Import!G310","v":0},null,{"$f":"Import!I310","v":0},null,{"$f":"Import!K310","v":0},null,{"$f":"Import!M310","v":0},null,{"$f":"Import!O310","v":0}]
[null,null,"iv. Total other quoted investments",null,{"$f":"SUM(E25:E27)","v":0},null,{"$f":"SUM(G25:G27)","v":0},null,{"$f":"SUM(I25:I27)","v":0},null,{"$f":"SUM(K25:K27)","v":0},null,{"$f":"SUM(M25:M27)","v":0},null,{"$f":"SUM(O25:O27)","v":0}]
[null,"(f)","Total quoted investments",null,{"$f":"E18+E23+E28","v":0},null,{"$f":"G18+G23+G28","v":0},null,{"$f":"I18+I23+I28","v":0},null,{"$f":"K18+K23+K28","v":0},null,{"$f":"M18+M23+M28","v":0},null,{"$f":"O18+O23+O28","v":0}]
[]
[null,"3.","UNQUOTED INVESTMENTS:"]
[null,"(a)","Bonds and Debentures"]
[null,null,"  i.   Held to maturity",null,{"$f":"Import!E311","v":0},null,{"$f":"Import!G311","v":0},null,{"$f":"+Import!I311","v":0},null,{"$f":"+Import!K311","v":0},null,{"$f":"+Import!M311","v":0},null,{"$f":"+Import!O311","v":0}]
[null,null,"  ii.  Other",null,{"$f":"Import!E312","v":0},null,{"$f":"Import!G312","v":0},null,{"$f":"+Import!I312","v":0},null,{"$f":"+Import!K312","v":0},null,{"$f":"+Import!M312","v":0},null,{"$f":"+Import!O312","v":0}]
[null,"(b)","Total Bonds and Debentures",null,{"$f":"SUM(E33:E34)","v":0},null,{"$f":"SUM(G33:G34)","v":0},null,{"$f":"SUM(I33:I34)","v":0},null,{"$f":"SUM(K33:K34)","v":0},null,{"$f":"SUM(M33:M34)","v":0},null,{"$f":"SUM(O33:O34)","v":0}]
[null,"(c) ","Equities "]
[null,null,"  i.   Common stocks",null,{"$f":"Import!E314","v":0},null,{"$f":"Import!G314","v":0},null,{"$f":"+Import!I313","v":0},null,{"$f":"+Import!K313","v":0},null,{"$f":"+Import!M314","v":0},null,{"$f":"+Import!O314","v":0}]
[null,null,"  ii. Preferred stocks",null,{"$f":"Import!E315","v":0},null,{"$f":"Import!G315","v":0},null,{"$f":"+Import!I314","v":0},null,{"$f":"+Import!K314","v":0},null,{"$f":"+Import!M315","v":0},null,{"$f":"+Import!O315","v":0}]
[null,null,"  iii . Mutual Funds",null,{"$f":"Import!E316","v":0},null,{"$f":"Import!G316","v":0},null,{"$f":"+Import!I315","v":0},null,{"$f":"+Import!K315","v":0},null,{"$f":"+Import!M316","v":0},null,{"$f":"+Import!O316","v":0}]
[null,"(d) ","Total equity investments",null,{"$f":"SUM(E37:E39)","v":0},null,{"$f":"SUM(G37:G39)","v":0},null,{"$f":"SUM(I37:I39)","v":0},null,{"$f":"SUM(K37:K39)","v":0},null,{"$f":"SUM(M37:M39)","v":0},null,{"$f":"SUM(O37:O39)","v":0}]
[null,"(e)","Other quoted investments"]
[null,null,"i. Digital assets",null,{"$f":"Import!E317","v":0},null,{"$f":"Import!G317","v":0},null,{"$f":"Import!I317","v":0},null,{"$f":"Import!K317","v":0},null,{"$f":"Import!M317","v":0},null,{"$f":"Import!O317","v":0}]
[null,null,"ii. Preferred stocks",null,{"$f":"Import!E318","v":0},null,{"$f":"Import!G318","v":0},null,{"$f":"Import!I318","v":0},null,{"$f":"Import!K318","v":0},null,{"$f":"Import!M318","v":0},null,{"$f":"Import!O318","v":0}]
[null,null,"iii. Others",null,{"$f":"Import!E319","v":0},null,{"$f":"Import!G319","v":0},null,{"$f":"Import!I319","v":0},null,{"$f":"Import!K319","v":0},null,{"$f":"Import!M319","v":0},null,{"$f":"Import!O319","v":0}]
[null,null,"iv. Total other quoted investments",null,{"$f":"SUM(E42:E44)","v":0},null,{"$f":"SUM(G42:G44)","v":0},null,{"$f":"SUM(I42:I44)","v":0},null,{"$f":"SUM(K42:K44)","v":0},null,{"$f":"SUM(M42:M44)","v":0},null,{"$f":"SUM(O42:O44)","v":0}]
[null,"(f) ","Total unquoted investments",null,{"$f":"E35+E40+E45","v":0},null,{"$f":"G35+G40+G45","v":0},null,{"$f":"I35+I40+I45","v":0},null,{"$f":"K35+K40+K45","v":0},null,{"$f":"M35+M40+M45","v":0},null,{"$f":"O35+O40+O45","v":0}]
[]
[null,"4.","INVESTMENTS IN AND ADVANCES TO AFFILIATES (EQUITY METHOD):",null,{"$f":"Import!E320","v":0},null,{"$f":"Import!G320","v":0},null,{"$f":"Import!I320","v":0},null,{"$f":"Import!K320","v":0},null,{"$f":"Import!M320","v":0},null,{"$f":"Import!O320","v":0}]
[]
[null,"5.","INVESTMENTS IN MORTGAGE LOANS ON REAL ESTATE:"]
[null,"(a)","First liens",null,{"$f":"Import!E321","v":0},null,{"$f":"Import!G321","v":0},null,{"$f":"+Import!I321","v":0},null,{"$f":"+Import!K321","v":0},null,{"$f":"+Import!M321","v":0},null,{"$f":"+Import!O321","v":0}]
[null,"(b)","Other than first liens ",null,{"$f":"Import!E322","v":0},null,{"$f":"Import!G322","v":0},null,{"$f":"+Import!I322","v":0},null,{"$f":"+Import!K322","v":0},null,{"$f":"+Import!M322","v":0},null,{"$f":"+Import!O322","v":0}]
[null,"(c) ","Total investments in mortgage loans on real estate",null,{"$f":"SUM(E51:E52)","v":0},null,{"$f":"SUM(G51:G52)","v":0},null,{"$f":"SUM(I51:I52)","v":0},null,{"$f":"SUM(K51:K52)","v":0},null,{"$f":"SUM(M51:M52)","v":0},null,{"$f":"SUM(O51:O52)","v":0}]
[]
[null,"6.","EQUIPMENT, NET OF DEPRECIATION",null,{"$f":"+Import!E323","v":0},null,{"$f":"+Import!G323","v":0},null,{"$f":"+Import!I323","v":0},null,{"$f":"+Import!K323","v":0},null,{"$f":"+Import!M323","v":0},null,{"$f":"+Import!O323","v":0}]
[]
[null,"7.","REAL ESTATE:",null,{"$f":"Import!E324","v":0},null,{"$f":"Import!G324","v":0},null,{"$f":"Import!I324","v":0},null,{"$f":"Import!K324","v":0},null,{"$f":"Import!M324","v":0},null,{"$f":"Import!O324","v":0}]
[]
[null,"8.","LOANS RECEIVABLE"]
[null,"(a)","Due in one year or less",null,{"$f":"Import!E325","v":0},null,{"$f":"Import!G325","v":0},null,{"$f":"Import!I325","v":0},null,{"$f":"Import!K325","v":0},null,{"$f":"Import!M325","v":0},null,{"$f":"Import!O325","v":0}]
[null,"(b)","Due over a year",null,{"$f":"Import!E326","v":0},null,{"$f":"Import!G326","v":0},null,{"$f":"Import!I326","v":0},null,{"$f":"Import!K326","v":0},null,{"$f":"Import!M326","v":0},null,{"$f":"Import!O326","v":0}]
[null,"(c) ","Total loans receivable",null,{"$f":"SUM(E60:E61)","v":0},null,{"$f":"SUM(G60:G61)","v":0},null,{"$f":"SUM(I60:I61)","v":0},null,{"$f":"SUM(K60:K61)","v":0},null,{"$f":"SUM(M60:M61)","v":0},null,{"$f":"SUM(O60:O61)","v":0}]
[]
[null,"9.","INVESTMENT INCOME DUE AND ACCRUED",null,{"$f":"Import!E327","v":0},null,{"$f":"Import!G327","v":0},null,{"$f":"+Import!I327","v":0},null,{"$f":"+Import!K327","v":0},null,{"$f":"+Import!M327","v":0},null,{"$f":"+Import!O327","v":0}]
[]
[null,"10.","RECEIVABLES FROM CLEARING BROKERS",null,{"$f":"Import!E328","v":0},null,{"$f":"Import!G328","v":0},null,{"$f":"Import!I328","v":0},null,{"$f":"Import!K328","v":0},null,{"$f":"Import!M328","v":0},null,{"$f":"Import!O328","v":0}]
[]
[null,"11.","OTHER RECEIVABLES FROM DIGITAL ASSET BUSINESS"]
[null,"(a)","Due in one year or less",null,{"$f":"Import!E329","v":0},null,{"$f":"Import!G329","v":0},null,{"$f":"+Import!I329","v":0},null,{"$f":"+Import!K329","v":0},null,{"$f":"+Import!M329","v":0},null,{"$f":"+Import!O329","v":0}]
[null,"(b)","Due over a year",null,{"$f":"Import!E330","v":0},null,{"$f":"Import!G330","v":0},null,{"$f":"+Import!I330","v":0},null,{"$f":"+Import!K330","v":0},null,{"$f":"+Import!M330","v":0},null,{"$f":"+Import!O330","v":0}]
[null,"(c) ","Total other receivables from digital asset business",null,{"$f":"SUM(E69:E70)","v":0},null,{"$f":"SUM(G69:G70)","v":0},null,{"$f":"SUM(I69:I70)","v":0},null,{"$f":"SUM(K69:K70)","v":0},null,{"$f":"SUM(M69:M70)","v":0},null,{"$f":"SUM(O69:O70)","v":0}]
[]
[null,"12.","DIGITAL ASSETS HELD IN CUSTODY FOR CLIENTS",null,{"$f":"Import!E331","v":0},null,{"$f":"Import!G331","v":0},null,{"$f":"+Import!I331","v":0},null,{"$f":"+Import!K331","v":0},null,{"$f":"+Import!M331","v":0},null,{"$f":"+Import!O331","v":0}]
[]
[null,"13.","SUNDRY ASSETS:"]
[null,"(a)","Derivative instruments",null,{"$f":"Import!E332","v":0},null,{"$f":"Import!G332","v":0},null,{"$f":"+Import!I332","v":0},null,{"$f":"+Import!K332","v":0},null,{"$f":"+Import!M332","v":0},null,{"$f":"+Import!O332","v":0}]
[null,"(b)","Net receivables for investments sold",null,{"$f":"Import!E333","v":0},null,{"$f":"Import!G333","v":0},null,{"$f":"+Import!I334","v":0},null,{"$f":"+Import!K334","v":0},null,{"$f":"+Import!M333","v":0},null,{"$f":"+Import!O333","v":0}]
[null,"(c)","Prepaid expenses",null,{"$f":"Import!E334","v":0},null,{"$f":"Import!G334","v":0},null,{"$f":"+Import!I335","v":0},null,{"$f":"+Import!K335","v":0},null,{"$f":"+Import!M334","v":0},null,{"$f":"+Import!O334","v":0}]
[null,"(d)","Goodwill and other intangibles",null,{"$f":"Import!E335","v":0},null,{"$f":"Import!G335","v":0},null,{"$f":"+Import!I336","v":0},null,{"$f":"+Import!K336","v":0},null,{"$f":"+Import!M335","v":0},null,{"$f":"+Import!O335","v":0}]
[null,"(e)","Other sundry assets 1",null,{"$f":"Import!E336","v":0},null,{"$f":"Import!G336","v":0},null,{"$f":"+Import!I337","v":0},null,{"$f":"+Import!K337","v":0},null,{"$f":"+Import!M336","v":0},null,{"$f":"+Import!O336","v":0}]
[null,"(f)","Other sundry assets 2",null,{"$f":"Import!E337","v":0},null,{"$f":"Import!G337","v":0},null,{"$f":"+Import!I338","v":0},null,{"$f":"+Import!K338","v":0},null,{"$f":"+Import!M337","v":0},null,{"$f":"+Import!O337","v":0}]
[null,"(g)","Other sundry assets 3",null,{"$f":"Import!E338","v":0},null,{"$f":"Import!G338","v":0},null,{"$f":"+Import!I339","v":0},null,{"$f":"+Import!K339","v":0},null,{"$f":"+Import!M338","v":0},null,{"$f":"+Import!O338","v":0}]
[null,"(h)","Total sundry assets",null,{"$f":"SUM(E76:E82)","v":0},null,{"$f":"SUM(G76:G82)","v":0},null,{"$f":"SUM(I76:I82)","v":0},null,{"$f":"SUM(K76:K82)","v":0},null,{"$f":"SUM(M76:M82)","v":0},null,{"$f":"SUM(O76:O82)","v":0}]
[]
[null,"14.","LETTERS OF CREDIT, GUARANTEES AND OTHER INSTRUMENTS:"]
[null,"(a)","Letters of credit ",null,{"$f":"Import!E339","v":0},null,{"$f":"Import!G339","v":0},null,{"$f":"+Import!I340","v":0},null,{"$f":"+Import!K340","v":0},null,{"$f":"+Import!M339","v":0},null,{"$f":"+Import!O339","v":0}]
[null,"(b)","Guarantees",null,{"$f":"Import!E340","v":0},null,{"$f":"Import!G340","v":0},null,{"$f":"+Import!I341","v":0},null,{"$f":"+Import!K341","v":0},null,{"$f":"+Import!M340","v":0},null,{"$f":"+Import!O340","v":0}]
[null,"(c) ","Other instruments",null,{"$f":"Import!E341","v":0},null,{"$f":"Import!G341","v":0},null,{"$f":"+Import!I342","v":0},null,{"$f":"+Import!K342","v":0},null,{"$f":"+Import!M341","v":0},null,{"$f":"+Import!O341","v":0}]
[null,"(e) ","Total letters of credit, guarantees and other instruments",null,{"$f":"SUM(E86:E88)","v":0},null,{"$f":"SUM(G86:G88)","v":0},null,{"$f":"SUM(I86:I88)","v":0},null,{"$f":"SUM(K86:K88)","v":0},null,{"$f":"SUM(M86:M88)","v":0},null,{"$f":"SUM(O86:O88)","v":0}]
[]
[null,"15.","TOTAL ASSETS",null,{"$f":"E12+E29+E46+E48+E53+E55+E57+E62+E64+E66+E71+E73+E83+E89","v":0},null,{"$f":"G12+G29+G46+G48+G53+G55+G57+G62+G64+G66+G71+G73+G83+G89","v":0},null,{"$f":"I12+I29+I46+I48+I53+I55+I57+I62+I64+I66+I71+I73+I83+I89","v":0},null,{"$f":"K12+K29+K46+K48+K53+K55+K57+K62+K64+K66+K71+K73+K83+K89","v":0},null,{"$f":"M12+M29+M46+M48+M53+M55+M57+M62+M64+M66+M71+M73+M83+M89","v":0},null,{"$f":"O12+O29+O46+O48+O53+O55+O57+O62+O64+O66+O71+O73+O83+O89","v":0}]
[]
[null,null,"LIABILITIES AND STATUTORY CAPITAL AND SURPLUS"]
[]
[null,"16.","UNEARNED PREMIUM RESERVE",null,{"$f":"Import!E343","v":0},null,{"$f":"Import!G343","v":0},null,{"$f":"Import!I343","v":0},null,{"$f":"Import!K343","v":0},null,{"$f":"Import!M343","v":0},null,{"$f":"Import!O343","v":0}]
[]
[null,"17.","LOSS AND LOSS EXPENSE PROVISIONS:"]
[null,"(a)","Gross loss and loss expense provisions",null,{"$f":"+Import!E344","v":0},null,{"$f":"+Import!G344","v":0},null,{"$f":"+Import!I344","v":0},null,{"$f":"+Import!K344","v":0},null,{"$f":"+Import!M344","v":0},null,{"$f":"+Import!O344","v":0}]
[null,"(b)","Less : Reinsurance recoverable balance"]
[null,null,"  i.   Foreign affiliates",null,{"$f":"+Import!E345","v":0},null,{"$f":"+Import!G345","v":0},null,{"$f":"+Import!I345","v":0},null,{"$f":"+Import!K345","v":0},null,{"$f":"+Import!M345","v":0},null,{"$f":"+Import!O345","v":0}]
[null,null,"  ii.  Domestic affiliates",null,{"$f":"+Import!E346","v":0},null,{"$f":"+Import!G346","v":0},null,{"$f":"+Import!I346","v":0},null,{"$f":"+Import!K346","v":0},null,{"$f":"+Import!M346","v":0},null,{"$f":"+Import!O346","v":0}]
[null,null,"  iii. Pools and associations",null,{"$f":"+Import!E347","v":0},null,{"$f":"+Import!G347","v":0},null,{"$f":"+Import!I347","v":0},null,{"$f":"+Import!K347","v":0},null,{"$f":"+Import!M347","v":0},null,{"$f":"+Import!O347","v":0}]
[null,null,"  iv.  All other insurers",null,{"$f":"+Import!E348","v":0},null,{"$f":"+Import!G348","v":0},null,{"$f":"+Import!I348","v":0},null,{"$f":"+Import!K348","v":0},null,{"$f":"+Import!M348","v":0},null,{"$f":"+Import!O348","v":0}]
[null,"(c) ","Total reinsurance recoverable balance",null,{"$f":"SUM(E100:E103)","v":0},null,{"$f":"SUM(G100:G103)","v":0},null,{"$f":"SUM(I100:I103)","v":0},null,{"$f":"SUM(K100:K103)","v":0},null,{"$f":"SUM(M100:M103)","v":0},null,{"$f":"SUM(O100:O103)","v":0}]
[null,"(d) ","Net loss and loss expense provisions",null,{"$f":"E98-E104","v":0},null,{"$f":"G98-G104","v":0},null,{"$f":"I98-I104","v":0},null,{"$f":"K98-K104","v":0},null,{"$f":"M98-M104","v":0},null,{"$f":"O98-O104","v":0}]
[]
[null,"18.","OTHER INSURANCE RESERVES",null,{"$f":"Import!E349","v":0},null,{"$f":"Import!G349","v":0},null,{"$f":"Import!I349","v":0},null,{"$f":"Import!K349","v":0},null,{"$f":"Import!M349","v":0},null,{"$f":"Import!O349","v":0}]
[]
[null,"19.","TOTAL GENERAL BUSINESS - INSURANCE RESERVES",null,{"$f":"E95+E105+E107","v":0},null,{"$f":"G95+G105+G107","v":0},null,{"$f":"I95+I105+I107","v":0},null,{"$f":"K95+K105+K107","v":0},null,{"$f":"M95+M105+M107","v":0},null,{"$f":"O95+O105+O107","v":0}]
[]
[null,null,"OTHER LIABILITIES"]
[]
[null,"28.","CONTRACTUAL LIABILITIES ARISING FROM DIGITAL ASSET ISSUANCE",null,{"$f":"+Import!E350","v":0},null,{"$f":"+Import!G350","v":0},null,{"$f":"+Import!I350","v":0},null,{"$f":"+Import!K350","v":0},null,{"$f":"+Import!M350","v":0},null,{"$f":"+Import!O350","v":0}]
[]
[null,"29.","COMMISSIONS, EXPENSES, FEES AND TAXES PAYABLE",null,{"$f":"+Import!E351","v":0},null,{"$f":"+Import!G351","v":0},null,{"$f":"+Import!I351","v":0},null,{"$f":"+Import!K351","v":0},null,{"$f":"+Import!M351","v":0},null,{"$f":"+Import!O351","v":0}]
[]
[null,"30.","LOANS AND NOTES PAYABLE",null,{"$f":"+Import!E352","v":0},null,{"$f":"+Import!G352","v":0},null,{"$f":"+Import!I352","v":0},null,{"$f":"+Import!K352","v":0},null,{"$f":"+Import!M352","v":0},null,{"$f":"+Import!O352","v":0}]
[]
[null,"31.","INCOME TAXES PAYABLE",null,{"$f":"+Import!E353","v":0},null,{"$f":"+Import!G353","v":0},null,{"$f":"+Import!I353","v":0},null,{"$f":"+Import!K353","v":0},null,{"$f":"+Import!M353","v":0},null,{"$f":"+Import!O353","v":0}]
[]
[null,"32.","AMOUNTS DUE TO AFFILIATES",null,{"$f":"+Import!E354","v":0},null,{"$f":"+Import!G354","v":0},null,{"$f":"+Import!I354","v":0},null,{"$f":"+Import!K354","v":0},null,{"$f":"+Import!M354","v":0},null,{"$f":"+Import!O354","v":0}]
[]
[null,"33.","ACCOUNTS PAYABLE AND ACCRUED LIABILITIES",null,{"$f":"+Import!E355","v":0},null,{"$f":"+Import!G355","v":0},null,{"$f":"+Import!I355","v":0},null,{"$f":"+Import!K355","v":0},null,{"$f":"+Import!M355","v":0},null,{"$f":"+Import!O355","v":0}]
[]
[null,"34.","DIGITAL ASSETS HELD IN CUSTODY FOR CLIENTS",null,{"$f":"+Import!E356","v":0},null,{"$f":"+Import!G356","v":0},null,{"$f":"+Import!I356","v":0},null,{"$f":"+Import!K356","v":0},null,{"$f":"+Import!M356","v":0},null,{"$f":"+Import!O356","v":0}]
[]
[null,"35.","DIVIDENDS PAYABLE",null,{"$f":"+Import!E357","v":0},null,{"$f":"+Import!G357","v":0},null,{"$f":"+Import!I357","v":0},null,{"$f":"+Import!K357","v":0},null,{"$f":"+Import!M357","v":0},null,{"$f":"+Import!O357","v":0}]
[]
[null,"36.","SUNDRY LIABILITIES:"]
[null,"(a)","Derivative instruments ",null,{"$f":"+Import!E358","v":0},null,{"$f":"+Import!G358","v":0},null,{"$f":"+Import!I358","v":0},null,{"$f":"+Import!K358","v":0},null,{"$f":"+Import!M358","v":0},null,{"$f":"+Import!O358","v":0}]
[null,"(b)","Net payable for investments purchased",null,{"$f":"+Import!E359","v":0},null,{"$f":"+Import!G359","v":0},null,{"$f":"+Import!I359","v":0},null,{"$f":"+Import!K359","v":0},null,{"$f":"+Import!M359","v":0},null,{"$f":"+Import!O359","v":0}]
[null,"(c)","Other sundry liabilities 1",null,{"$f":"+Import!E360","v":0},null,{"$f":"+Import!G360","v":0},null,{"$f":"+Import!I360","v":0},null,{"$f":"+Import!K360","v":0},null,{"$f":"+Import!M360","v":0},null,{"$f":"+Import!O360","v":0}]
[null,"(d)","Other sundry liabilities 2",null,{"$f":"+Import!E361","v":0},null,{"$f":"+Import!G361","v":0},null,{"$f":"+Import!I361","v":0},null,{"$f":"+Import!K361","v":0},null,{"$f":"+Import!M361","v":0},null,{"$f":"+Import!O361","v":0}]
[null,"(e)","Other sundry liabilities 3",null,{"$f":"+Import!E362","v":0},null,{"$f":"+Import!G362","v":0},null,{"$f":"+Import!I362","v":0},null,{"$f":"+Import!K362","v":0},null,{"$f":"+Import!M362","v":0},null,{"$f":"+Import!O362","v":0}]
[null,"(f)","Total sundry liabilities",null,{"$f":"SUM(E130:E134)","v":0},null,{"$f":"SUM(G130:G134)","v":0},null,{"$f":"SUM(I130:I134)","v":0},null,{"$f":"SUM(K130:K134)","v":0},null,{"$f":"SUM(M130:M134)","v":0},null,{"$f":"SUM(O130:O134)","v":0}]
[]
[null,"37.","LETTERS OF CREDIT, GUARANTEES AND OTHER INSTRUMENTS:"]
[null,"(a)","Letters of credit ",null,{"$f":"+Import!E363","v":0},null,{"$f":"+Import!G363","v":0},null,{"$f":"+Import!I363","v":0},null,{"$f":"+Import!K363","v":0},null,{"$f":"+Import!M363","v":0},null,{"$f":"+Import!O363","v":0}]
[null,"(b)","Guarantees",null,{"$f":"+Import!E364","v":0},null,{"$f":"+Import!G364","v":0},null,{"$f":"+Import!I364","v":0},null,{"$f":"+Import!K364","v":0},null,{"$f":"+Import!M364","v":0},null,{"$f":"+Import!O364","v":0}]
[null,"(c) ","Other instruments",null,{"$f":"+Import!E365","v":0},null,{"$f":"+Import!G365","v":0},null,{"$f":"+Import!I365","v":0},null,{"$f":"+Import!K365","v":0},null,{"$f":"+Import!M365","v":0},null,{"$f":"+Import!O365","v":0}]
[null,"(d)","Total letters of credit, guarantees and other instruments",null,{"$f":"SUM(E138:E140)","v":0},null,{"$f":"SUM(G138:G140)","v":0},null,{"$f":"SUM(I138:I140)","v":0},null,{"$f":"SUM(K138:K140)","v":0},null,{"$f":"SUM(M138:M140)","v":0},null,{"$f":"SUM(O138:O140)","v":0}]
[]
[null,"38.","TOTAL OTHER LIABILITIES",null,{"$f":"E113+E115+E117+E119+E121+E123+E125+E127+E135+E141","v":0},null,{"$f":"G113+G115+G117+G119+G121+G123+G125+G127+G135+G141","v":0},null,{"$f":"I113+I115+I117+I119+I121+I123+I125+I127+I135+I141","v":0},null,{"$f":"K113+K115+K117+K119+K121+K123+K125+K127+K135+K141","v":0},null,{"$f":"M113+M115+M117+M119+M121+M123+M125+M127+M135+M141","v":0},null,{"$f":"O113+O115+O117+O119+O121+O123+O125+O127+O135+O141","v":0}]
[]
[null,"39.","TOTAL INSURANCE PROVISIONS AND OTHER LIABILITIES",null,{"$f":"E109+E143","v":0},null,{"$f":"G109+G143","v":0},null,{"$f":"I109+I143","v":0},null,{"$f":"K109+K143","v":0},null,{"$f":"M109+M143","v":0},null,{"$f":"O109+O143","v":0}]
[]
[null,null,"STATUTORY CAPITAL AND SURPLUS"]
[]
[null,"40.","TOTAL STATUTORY CAPITAL AND SURPLUS ",null,{"$f":"+'Form 8SFS (Consolidated)'!G60","v":0},null,{"$f":"+'Form 8SFS (Consolidated)'!I60","v":0},null,{"$f":"+'Form 8SFS (Consolidated)'!K60","v":0},null,{"$f":"+'Form 8SFS (Consolidated)'!M60","v":0},null,{"$f":"+'Form 8SFS (Consolidated)'!O60","v":0},null,{"$f":"+'Form 8SFS (Consolidated)'!Q60","v":0}]
[]
[null,"41.","TOTAL LIABILITIES AND STOCKHOLDERS’ EQUITY",null,{"$f":"E145+E149","v":0},null,{"$f":"G145+G149","v":0},null,{"$f":"I145+I149","v":0},null,{"$f":"K145+K149","v":0},null,{"$f":"M145+M149","v":0},null,{"$f":"O145+O149","v":0}]
[]
[null,null,null,null,{"$f":"IF(E154=\"TRUE\",HYPERLINK(\"#'Form 1SFS'!E100\",\"TRUE\"),HYPERLINK(\"#'Form 1SFS'!E100\",\"FALSE\"))","v":"TRUE"},null,{"$f":"IF(G154=\"TRUE\",HYPERLINK(\"#'Form 1SFS'!G100\",\"TRUE\"),HYPERLINK(\"#'Form 1SFS'!G100\",\"FALSE\"))","v":"TRUE"},null,{"$f":"IF(I154=\"TRUE\",HYPERLINK(\"#'Form 1SFS'!I100\",\"TRUE\"),HYPERLINK(\"#'Form 1SFS'!I100\",\"FALSE\"))","v":"TRUE"},null,{"$f":"IF(K154=\"TRUE\",HYPERLINK(\"#'Form 1SFS'!K100\",\"TRUE\"),HYPERLINK(\"#'Form 1SFS'!K100\",\"FALSE\"))","v":"TRUE"},null,{"$f":"IF(M154=\"TRUE\",HYPERLINK(\"#'Form 1SFS'!M100\",\"TRUE\"),HYPERLINK(\"#'Form 1SFS'!M100\",\"FALSE\"))","v":"TRUE"},null,{"$f":"IF(O154=\"TRUE\",HYPERLINK(\"#'Form 1SFS'!O100\",\"TRUE\"),HYPERLINK(\"#'Form 1SFS'!O100\",\"FALSE\"))","v":"TRUE"},null,"CHECK"]
[null,null,null,null,{"$f":"IF(ROUND((E91-E151),0)=0,\"TRUE\",\"FALSE\")","v":"TRUE"},null,{"$f":"IF(ROUND((G91-G151),0)=0,\"TRUE\",\"FALSE\")","v":"TRUE"},null,{"$f":"IF(ROUND((I91-I151),0)=0,\"TRUE\",\"FALSE\")","v":"TRUE"},null,{"$f":"IF(ROUND((K91-K151),0)=0,\"TRUE\",\"FALSE\")","v":"TRUE"},null,{"$f":"IF(ROUND((M91-M151),0)=0,\"TRUE\",\"FALSE\")","v":"TRUE"},null,{"$f":"IF(ROUND((O91-O151),0)=0,\"TRUE\",\"FALSE\")","v":"TRUE"}]
[null,null,"Difference",null,{"$f":"ROUND((E91-E151),0)","v":0},null,{"$f":"ROUND((G91-G151),0)","v":0},null,{"$f":"ROUND((I91-I151),0)","v":0},null,{"$f":"ROUND((K91-K151),0)","v":0},null,{"$f":"ROUND((M91-M151),0)","v":0},null,{"$f":"ROUND((O91-O151),0)","v":0}]
[]
[null,null,null,null,{"$f":"IF(E153=\"False\",\"Line 15 does not equal Line 41\",\"\")","v":""},null,{"$f":"IF(G153=\"False\",\"Line 15 does not equal Line 41\",\"\")","v":""},null,{"$f":"IF(I153=\"False\",\"Line 15 does not equal Line 41\",\"\")","v":""},null,{"$f":"IF(K153=\"False\",\"Line 15 does not equal Line 41\",\"\")","v":""},null,{"$f":"IF(M153=\"False\",\"Line 15 does not equal Line 41\",\"\")","v":""},null,{"$f":"IF(O153=\"False\",\"Line 15 does not equal Line 41\",\"\")","v":""}]
[]
[null,"Notes to Unconsolidated Form 1SFS"]
[]
[null,"Line 10 ","Collateralised balances",null,null,null,null,null,null,null,null,null,{"$f":"Import!E368","v":0},null,{"$f":"Import!G368","v":0}]
[]
[null,"Line 11(e) ","Collateralised balances",null,null,null,null,null,null,null,null,null,{"$f":"Import!E369","v":0}]
[]
[null,"Line 17(c) ","Collateral placed in favour of the insurer ",null,null,null,null,null,null,null,null,null,{"$f":"Import!E370","v":0}]
[]
[null,"Line 13 ","Sundry assets",null,null,null,null,null,null,null,null,null,{"$f":"Import!E371","v":0},null,{"$f":"Import!G371","v":0}]
[]
[null,"Line 15","Encumbered assets for policyholder obligations"]
[]
[null,null,"Asset",null,null,null,null,null,"Purpose of Encumbrance"]
[null,null,"                Cash and cash equivalents",null,null,null,null,null,null,null,null,null,{"$f":"Import!E372","v":0},null,{"$f":"Import!G372","v":0}]
[null,null,"                Total quoted investments",null,null,null,null,null,null,null,null,null,{"$f":"Import!E373","v":0},null,{"$f":"Import!G373","v":0}]
[null,null,"                Total unquoted investments",null,null,null,null,null,null,null,null,null,{"$f":"Import!E374","v":0},null,{"$f":"Import!G374","v":0}]
[null,null,"                Funds held by ceding reinsurers",null,null,null,null,null,null,null,null,null,{"$f":"IF(SUM(E91,I91)=0,M73,E73+I73)","v":0},null,{"$f":"IF(SUM(G91,K91)=0,O73,G73+K73)","v":0}]
[null,null,"                Other assets",null,null,null,null,null,null,null,null,null,{"$f":"Import!E376","v":0},null,{"$f":"Import!G376","v":0}]
[null,null,"                Total encumbered assets",null,null,null,null,null,null,null,null,null,{"$f":"SUM(M172:M176)","v":0},null,{"$f":"SUM(O172:O176)","v":0}]
[]
[null,"Line 15","Encumbered assets not securing policyholder obligations"]
[]
[null,null,"Asset",null,null,null,null,null,"Purpose of Encumbrance"]
[null,null,"                Cash and cash equivalents",null,null,null,null,null,null,null,null,null,{"$f":"Import!E378","v":0},null,{"$f":"Import!G378","v":0}]
[null,null,"                Total quoted investments",null,null,null,null,null,null,null,null,null,{"$f":"Import!E379","v":0},null,{"$f":"Import!G379","v":0}]
[null,null,"                Total unquoted investments",null,null,null,null,null,null,null,null,null,{"$f":"Import!E380","v":0},null,{"$f":"Import!G380","v":0}]
[null,null,"                Other assets",null,null,null,null,null,null,null,null,null,{"$f":"Import!E381","v":0},null,{"$f":"Import!G381","v":0}]
[null,null,"                Total encumbered assets",null,null,null,null,null,null,null,null,null,{"$f":"SUM(M182:M185)","v":0},null,{"$f":"SUM(O182:O185)","v":0}]
[]
[null,"Line 36","Sundry liabilities",null,null,null,null,null,null,null,null,null,{"$f":"Import!E383","v":0},null,{"$f":"Import!G383","v":0}]
[]
[null,"Line 37","Letters of Credit, Guarantees and other Instruments",null,null,null,null,null,null,null,null,null,{"$f":"Import!E384","v":0},null,{"$f":"Import!G384","v":0}]
[]
[null,null,"General Business"]
[null,"Line 17","Reasons for the change in the net losses incurred and net loss expenses incurred related to prior years and indicate whether additional premiums or return premiums have been accrued as a result of the prior year effects. ",null,null,null,null,null,null,null,{"$f":"Import!E385","v":0}]
[]
[]
[null,"Line 17","Loss and loss expense provisions total restricted assets - an amount equal to the value of all that are held for security or collateral against a liability or contingent liabilit"]
[]
[]
[null,"Line 17","Loss and loss expense provision unsecured policyholder obligations - an amount equal to all policyholder obligations that are not secured by assets or collateral"]
[]
[]
[null,"Line 17","Gross loss and loss expense provisions at beginning of year",null,null,null,null,null,null,null,null,null,{"$f":"Import!E386","v":0},null,{"$f":"Import!G386","v":0}]
[]
[null,null,"Less: Reinsurance recoverable at beginning of year",null,null,null,null,null,null,null,null,null,{"$f":"Import!E387","v":0},null,{"$f":"Import!G387","v":0}]
[]
[null,null,"Net loss and loss expense provisions at beginning of year",null,null,null,null,null,null,null,null,null,{"$f":"M202-M204","v":0},null,{"$f":"O202-O204","v":0}]
[]
[null,null,"Acquisition / sale of loss reserves (net):",null,null,null,null,null,null,null,null,null,{"$f":"Import!E389","v":0},null,{"$f":"Import!G389","v":0}]
[]
[null,null,"Net losses incurred and net loss expenses incurred related to:"]
[]
[null,null,"               Current year",null,null,null,null,null,null,null,null,null,{"$f":"Import!E390","v":0},null,{"$f":"Import!G390","v":0}]
[null,null,"               Prior years",null,null,null,null,null,null,null,null,null,{"$f":"Import!E391","v":0},null,{"$f":"Import!G391","v":0}]
[]
[null,null,"Total net incurred losses and loss expenses",null,null,null,null,null,null,null,null,null,{"$f":"SUM(M212:M213)","v":0},null,{"$f":"SUM(O212:O213)","v":0}]
[]
[null,null,"Net losses and loss expenses paid or payable related to:"]
[]
[null,null,"               Current year",null,null,null,null,null,null,null,null,null,{"$f":"Import!E393","v":0},null,{"$f":"Import!G393","v":0}]
[null,null,"               Prior years",null,null,null,null,null,null,null,null,null,{"$f":"Import!E394","v":0},null,{"$f":"Import!G394","v":0}]
[]
[null,null,"Total losses and loss expenses paid or payable",null,null,null,null,null,null,null,null,null,{"$f":"SUM(M219:M220)","v":0},null,{"$f":"SUM(O219:O220)","v":0}]
[]
[null,null,"Foreign exchange and other",null,null,null,null,null,null,null,null,null,{"$f":"Import!E396","v":0},null,{"$f":"Import!G396","v":0}]
[]
[null,null,"Net loss and loss expense provisions at end of year",null,null,null,null,null,null,null,null,null,{"$f":"M206+M208+M215+M222+M224","v":0},null,{"$f":"O206+O208+O215+O222+O224","v":0}]
[]
[null,null,"Add: Reinsurance recoverable at end of year",null,null,null,null,null,null,null,null,null,{"$f":"Import!E398","v":0},null,{"$f":"Import!G398","v":0}]
[]
[null,null,"Gross loss and loss expense provisions at end of year",null,null,null,null,null,null,null,null,null,{"$f":"M226+M228","v":0},null,{"$f":"O226+O228","v":0}]
[null,null,null,null,null,null,null,null,null,null,null,null,null,null,null,null,""]
[null,null,null,null,null,null,null,null,null,null,null,null,{"$f":"IF(M233=\"TRUE\",HYPERLINK(\"#'Form 1SFS'!E117:M117\",\"TRUE\"),HYPERLINK(\"#'Form 1SFS'!E117:M117\",\"FALSE\"))","v":"TRUE"},null,{"$f":"IF(O233=\"TRUE\",HYPERLINK(\"#'Form 1SFS'!G117:O117\",\"TRUE\"),HYPERLINK(\"#'Form 1SFS'!G117:O117\",\"FALSE\"))","v":"TRUE"}]
[null,null,null,null,null,null,null,null,null,null,null,null,{"$f":"IF('Company Information'!$B$2=\"Unconsolidated BSCR Model\",IF(ROUND((M230-M98),0)=0,\"TRUE\",\"FALSE\"),IF(ROUND((M230-E98),0)=0,\"TRUE\",\"FALSE\"))","v":"TRUE"},null,{"$f":"IF('Company Information'!$B$2=\"Unconsolidated BSCR Model\",IF(ROUND((O230-O98),0)=0,\"TRUE\",\"FALSE\"),IF(ROUND((O230-G98),0)=0,\"TRUE\",\"FALSE\"))","v":"TRUE"}]
[null,null,"Difference",null,null,null,null,null,null,null,null,null,{"$f":"IF('Company Information'!$B$2=\"Unconsolidated BSCR Model\",ROUND(M98-M230,0),ROUND(E98-M230,0))","v":0},null,{"$f":"IF('Company Information'!$B$2=\"Unconsolidated BSCR Model\",ROUND(O98-O230,0),ROUND(G98-O230,0))","v":0}]
[]
[null,null,null,null,null,null,null,null,null,null,null,null,{"$f":"IF(M232=\"False\",\"Does not equal Line 17(a)\",\"\")","v":""},null,{"$f":"IF(O232=\"False\",\"Does not equal Line 17(a)\",\"\")","v":""}]
[]
[null,null,"Long-Term Business"]
[]
[null,"Line 27","Total gross long-term business insurance reserves at beginning of year"]
[]
[null,null,"Less: Reinsurance recoverable on long-term business at beginning of year"]
[]
[null,null,"Total net long-term business insurance reserves at beginning of year",null,null,null,null,null,null,null,null,null,{"$f":"M240-M242","v":0},null,{"$f":"O240-O242","v":0}]
[]
[null,null,"Long-term business deductions related to:"]
[]
[null,null,"               Current year"]
[null,null,"               Prior years"]
[]
[null,null,"Total long-term business deductions",null,null,null,null,null,null,null,null,null,{"$f":"SUM(M248:M249)","v":0},null,{"$f":"SUM(O248:O249)","v":0}]
[]
[null,null,"Less: Long-term business deductions paid or payable related to:"]
[]
[null,null,"               Current year"]
[null,null,"               Prior years"]
[]
[null,null,"Total long-term business deductions paid or payable",null,null,null,null,null,null,null,null,null,{"$f":"SUM(M255:M256)","v":0},null,{"$f":"SUM(O255:O256)","v":0}]
[]
[null,null,"Total net long-term business insurance reserves at end of year",null,null,null,null,null,null,null,null,null,{"$f":"M244+M251+M258","v":0},null,{"$f":"O244+O251+O258","v":0}]
[]
[null,null,"Add: Reinsurance recoverable on long-term business at end of year"]
[]
[null,null,"Total gross long-term business insurance reserves at end of year",null,null,null,null,null,null,null,null,null,{"$f":"M260+M262","v":0},null,{"$f":"O260+O262","v":0}]
[null,null,null,null,null,null,null,null,null,null,null,null,null,null,null,null,""]
[null,null,null,null,null,null,null,null,null,null,null,null,{"$f":"IF((M264-#REF!)=0,TRUE,FALSE)","v":{"$error":"#REF!"}},null,{"$f":"IF((O264-#REF!)=0,TRUE,FALSE)","v":{"$error":"#REF!"}}]
[]
[null,null,"Difference",null,null,null,null,null,null,null,null,null,{"$f":"#REF!-M264","v":{"$error":"#REF!"}},null,{"$f":"#REF!-O264","v":{"$error":"#REF!"}}]
[]
[null,"Line 27",null,null,"Insurance Contracts",null,null,null,null,null,"Investment Contracts"]
[null,null,"CURRENT YEAR",null,"Gross",null,"Reinsurance",null,"Net",null,"Gross",null,"Reinsurance",null,"Net"]
[null,null,"Balance - Beginning of Year",null,{"$f":"Import!E400","v":0},null,{"$f":"Import!E407","v":0},null,{"$f":"E272-G272","v":0},null,{"$f":"Import!E421","v":0},null,{"$f":"Import!E428","v":0},null,{"$f":"K272-M272","v":0}]
[null,null,"Impact of Terminations",null,{"$f":"Import!E401","v":0},null,{"$f":"Import!E408","v":0},null,0,null,{"$f":"Import!E422","v":0},null,{"$f":"Import!E429","v":0},null,0]
[null,null,"Impact of New Business",null,{"$f":"Import!E402","v":0},null,{"$f":"Import!E409","v":0},null,0,null,{"$f":"Import!E423","v":0},null,{"$f":"Import!E430","v":0},null,0]
[null,null,"Normal Change in force",null,{"$f":"Import!E403","v":0},null,{"$f":"Import!E410","v":0},null,0,null,{"$f":"Import!E424","v":0},null,{"$f":"Import!E431","v":0},null,0]
[null,null,"Management Actions and Changes in Assumptions",null,{"$f":"Import!E404","v":0},null,{"$f":"Import!E411","v":0},null,0,null,{"$f":"Import!E425","v":0},null,{"$f":"Import!E432","v":0},null,0]
[null,null,"Impact of Foreign Exchange rate changes",null,{"$f":"Import!E405","v":0},null,{"$f":"Import!E412","v":0},null,0,null,{"$f":"Import!E426","v":0},null,{"$f":"Import!E433","v":0},null,0]
[null,null,"Balance - End of Year",null,{"$f":"SUM(E272:E277)","v":0},null,{"$f":"SUM(G272:G277)","v":0},null,{"$f":"SUM(I272:I277)","v":0},null,{"$f":"SUM(K272:K277)","v":0},null,{"$f":"SUM(M272:M277)","v":0},null,{"$f":"SUM(O272:O277)","v":0}]
[]
[null,null,"PRIOR YEAR"]
[null,null,"Balance - Beginning of Year",null,{"$f":"Import!G400","v":0},null,{"$f":"Import!G407","v":0},null,{"$f":"E281-G281","v":0},null,{"$f":"Import!G421","v":0},null,{"$f":"Import!G428","v":0},null,{"$f":"K281-M281","v":0}]
[null,null,"Impact of Terminations",null,{"$f":"Import!G401","v":0},null,{"$f":"Import!G408","v":0},null,0,null,{"$f":"Import!G422","v":0},null,{"$f":"Import!G429","v":0},null,0]
[null,null,"Impact of New Business",null,{"$f":"Import!G402","v":0},null,{"$f":"Import!G409","v":0},null,0,null,{"$f":"Import!G423","v":0},null,{"$f":"Import!G430","v":0},null,0]
[null,null,"Normal Change in force",null,{"$f":"Import!G403","v":0},null,{"$f":"Import!G410","v":0},null,0,null,{"$f":"Import!G424","v":0},null,{"$f":"Import!G431","v":0},null,0]
[null,null,"Management Actions and Changes in Assumptions",null,{"$f":"Import!G404","v":0},null,{"$f":"Import!G411","v":0},null,0,null,{"$f":"Import!G425","v":0},null,{"$f":"Import!G432","v":0},null,0]
[null,null,"Impact of Foreign Exchange rate changes",null,{"$f":"Import!G405","v":0},null,{"$f":"Import!G412","v":0},null,0,null,{"$f":"Import!G426","v":0},null,{"$f":"Import!G433","v":0},null,0]
[null,null,"Balance - End of Year",null,{"$f":"SUM(E281:E286)","v":0},null,{"$f":"SUM(G281:G286)","v":0},null,{"$f":"SUM(I281:I286)","v":0},null,{"$f":"SUM(K281:K286)","v":0},null,{"$f":"SUM(M281:M286)","v":0},null,{"$f":"SUM(O281:O286)","v":0}]

{"sheet":"Form 2SFS (Consolidated)","index":20,"n_rows":63,"n_cols":15,"rows_kept":63,"cut":false,"hidden":false,"merged":[[5,4,5,6],[5,12,5,14],[5,8,5,10],[4,4,4,6],[4,8,4,10],[4,12,4,14]]}
[null,"STATUTORY STATEMENT OF INCOME",null,null,null,null,null,null,null,null,null,null,null,null,{"$f":"HYPERLINK(\"#'Index'!A1\",\"Return to Index\")","v":"Return to Index"}]
[null,{"$f":"'Company Information'!C7","v":"Enter Company Name"}]
[null,"For the year ending",{"$f":"'Company Information'!C3","v":"2022-12-31"},null,null,null,null,null,null,null,null,null,null,null,"FORM 2SFS"]
[null,{"$f":"\"expressed in\"& IF(CONFIGURATION!$B$12>1,\" ['\"&MID(CONFIGURATION!$B$12,2,LEN(CONFIGURATION!$B$12))&\"s]\",\"\")","v":"expressed in ['000s]"},{"$f":"'Form 1SFS (Consolidated)'!$C$5","v":"United States Dollars"},null,"(A)",null,"(B)",null,"(C)",null,"(D)",null,"(E)",null,"(F)"]
[null,null,null,null,"Consolidated",null,null,null,"Consolidated",null,null,null,"Consolidated"]
[null,"STMT.",null,null,"In Fiat",null,null,null,"Digital Assets",null,null,null,"Total in (Reported Currency)"]
[null,"LINE No.",null,null,{"$f":"'Form 1SFS (Consolidated)'!$E$9","v":"2022-12-31"},null,{"$f":"'Form 1SFS (Consolidated)'!$G$9","v":"2021-12-31"},null,{"$f":"'Form 1SFS (Consolidated)'!$E$9","v":"2022-12-31"},null,{"$f":"'Form 1SFS (Consolidated)'!$G$9","v":"2021-12-31"},null,{"$f":"'Form 1SFS (Consolidated)'!$E$9","v":"2022-12-31"},null,{"$f":"'Form 1SFS (Consolidated)'!$G$9","v":"2021-12-31"}]
[null,null,null,null,{"$f":"CONFIGURATION!$D$12","v":" ('000s)"},null,{"$f":"CONFIGURATION!$D$12","v":" ('000s)"},null,{"$f":"CONFIGURATION!$D$12","v":" ('000s)"},null,{"$f":"CONFIGURATION!$D$12","v":" ('000s)"},null,{"$f":"CONFIGURATION!$D$12","v":" ('000s)"},null,{"$f":"CONFIGURATION!$D$12","v":" ('000s)"}]
[null,null,"GENERAL BUSINESS UNDERWRITING INCOME"]
[]
[null,"1.","GROSS PREMIUMS WRITTEN:"]
[null,null,"(a) Direct gross premiums written",null,{"$f":"+Import!E465","v":0},null,{"$f":"+Import!G465","v":0},null,{"$f":"+Import!I465","v":0},null,{"$f":"+Import!K465","v":0},null,{"$f":"+Import!M465","v":0},null,{"$f":"+Import!O465","v":0}]
[null,null,"(b) Assumed gross premiums written",null,{"$f":"+Import!E466","v":0},null,{"$f":"+Import!G466","v":0},null,{"$f":"+Import!I466","v":0},null,{"$f":"+Import!K466","v":0},null,{"$f":"+Import!M466","v":0},null,{"$f":"+Import!O466","v":0}]
[null,null,"(c) Total gross premiums written",null,{"$f":"SUM(E12:E13)","v":0},null,{"$f":"SUM(G12:G13)","v":0},null,{"$f":"SUM(I12:I13)","v":0},null,{"$f":"SUM(K12:K13)","v":0},null,{"$f":"SUM(M12:M13)","v":0},null,{"$f":"SUM(O12:O13)","v":0}]
[]
[null,"2.","REINSURANCE PREMIUMS CEDED",null,{"$f":"+Import!E467","v":0},null,{"$f":"+Import!G467","v":0},null,{"$f":"+Import!I467","v":0},null,{"$f":"+Import!K467","v":0},null,{"$f":"+Import!M467","v":0},null,{"$f":"+Import!O467","v":0}]
[]
[null,"3.","NET PREMIUMS WRITTEN",null,{"$f":"E14-E16","v":0},null,{"$f":"G14-G16","v":0},null,{"$f":"I14-I16","v":0},null,{"$f":"K14-K16","v":0},null,{"$f":"M14-M16","v":0},null,{"$f":"O14-O16","v":0}]
[]
[null,"4.","INCREASE (DECREASE) IN UNEARNED PREMIUMS",null,{"$f":"+Import!E468","v":0},null,{"$f":"+Import!G468","v":0},null,{"$f":"+Import!I468","v":0},null,{"$f":"+Import!K468","v":0},null,{"$f":"+Import!M468","v":0},null,{"$f":"+Import!O468","v":0}]
[]
[null,"5.","NET PREMIUMS EARNED",null,{"$f":"E18+E20","v":0},null,{"$f":"G18+G20","v":0},null,{"$f":"I18+I20","v":0},null,{"$f":"K18+K20","v":0},null,{"$f":"M18+M20","v":0},null,{"$f":"O18+O20","v":0}]
[]
[null,"6.","OTHER INSURANCE INCOME",null,{"$f":"+Import!E469","v":0},null,{"$f":"+Import!G469","v":0},null,{"$f":"+Import!I469","v":0},null,{"$f":"+Import!K469","v":0},null,{"$f":"+Import!M469","v":0},null,{"$f":"+Import!O469","v":0}]
[]
[null,"7.","TOTAL GENERAL BUSINESS UNDERWRITING INCOME",null,{"$f":"E22+E24","v":0},null,{"$f":"G22+G24","v":0},null,{"$f":"I22+I24","v":0},null,{"$f":"K22+K24","v":0},null,{"$f":"M22+M24","v":0},null,{"$f":"O22+O24","v":0}]
[]
[null,null,"GENERAL BUSINESS UNDERWRITING EXPENSES"]
[]
[null,"8.","NET LOSSES INCURRED AND NET LOSS EXPENSES INCURRED",null,{"$f":"+Import!E470","v":0},null,{"$f":"+Import!G470","v":0},null,{"$f":"+Import!I470","v":0},null,{"$f":"+Import!K470","v":0},null,{"$f":"+Import!M470","v":0},null,{"$f":"+Import!O470","v":0}]
[]
[null,"9.","COMMISSIONS AND BROKERAGE",null,{"$f":"+Import!E471","v":0},null,{"$f":"+Import!G471","v":0},null,{"$f":"+Import!I471","v":0},null,{"$f":"+Import!K471","v":0},null,{"$f":"+Import!M471","v":0},null,{"$f":"+Import!O471","v":0}]
[]
[null,"10.","TOTAL GENERAL BUSINESS UNDERWRITING EXPENSES",null,{"$f":"E30+E32","v":0},null,{"$f":"G30+G32","v":0},null,{"$f":"I30+I32","v":0},null,{"$f":"K30+K32","v":0},null,{"$f":"M30+M32","v":0},null,{"$f":"O30+O32","v":0}]
[]
[null,"11.","NET UNDERWRITING PROFIT (LOSS) - GENERAL BUSINESS",null,{"$f":"E26-E34","v":0},null,{"$f":"G26-G34","v":0},null,{"$f":"I26-I34","v":0},null,{"$f":"K26-K34","v":0},null,{"$f":"M26-M34","v":0},null,{"$f":"O26-O34","v":0}]
[]
[null,null,"UNDERNOTED ITEMS"]
[]
[null,"30.","COMBINED OPERATING EXPENSES:"]
[null,null,"(a) General and administrative ",null,{"$f":"Import!E472","v":0},null,{"$f":"Import!G472","v":0},null,{"$f":"Import!I472","v":0},null,{"$f":"Import!K472","v":0},null,{"$f":"+Import!M472","v":0},null,{"$f":"+Import!O472","v":0}]
[null,null,"(b) Personnel Costs  ",null,{"$f":"Import!E473","v":0},null,{"$f":"Import!G473","v":0},null,{"$f":"Import!I473","v":0},null,{"$f":"Import!K473","v":0},null,{"$f":"+Import!M473","v":0},null,{"$f":"+Import!O473","v":0}]
[null,null,"(c) Other  ",null,{"$f":"Import!E474","v":0},null,{"$f":"Import!G474","v":0},null,{"$f":"Import!I474","v":0},null,{"$f":"Import!K474","v":0},null,{"$f":"+Import!M474","v":0},null,{"$f":"+Import!O474","v":0}]
[null,null,"(d) Total combined operating expenses  ",null,{"$f":"SUM(E41:E43)","v":0},null,{"$f":"SUM(G41:G43)","v":0},null,{"$f":"SUM(I41:I43)","v":0},null,{"$f":"SUM(K41:K43)","v":0},null,{"$f":"SUM(M41:M43)","v":0},null,{"$f":"SUM(O41:O43)","v":0}]
[]
[null,"31.","COMBINED INVESTMENT INCOME - NET",null,{"$f":"Import!E475","v":0},null,{"$f":"Import!G475","v":0},null,{"$f":"Import!I475","v":0},null,{"$f":"Import!K475","v":0},null,{"$f":"+Import!M475","v":0},null,{"$f":"+Import!O475","v":0}]
[]
[null,"32.","COMBINED OTHER INCOME (DEDUCTIONS)",null,{"$f":"Import!E476","v":0},null,{"$f":"Import!G476","v":0},null,{"$f":"Import!I476","v":0},null,{"$f":"Import!K476","v":0},null,{"$f":"+Import!M476","v":0},null,{"$f":"+Import!O476","v":0}]
[]
[null,"33.","COMBINED INCOME BEFORE TAXES",null,{"$f":"E36+E44+E46+E48","v":0},null,{"$f":"G36+G44+G46+G48","v":0},null,{"$f":"I36+I44+I46+I48","v":0},null,{"$f":"K36+K44+K46+K48","v":0},null,{"$f":"M36+M44+M46+M48","v":0},null,{"$f":"O36+O44+O46+O48","v":0}]
[]
[null,"34.","COMBINED INCOME TAXES (IF APPLICABLE):"]
[null,null,"(a) Current",null,{"$f":"Import!E477","v":0},null,{"$f":"Import!G477","v":0},null,{"$f":"Import!I477","v":0},null,{"$f":"Import!K477","v":0},null,{"$f":"+Import!M477","v":0},null,{"$f":"+Import!O477","v":0}]
[null,null,"(b) Deferred",null,{"$f":"Import!E478","v":0},null,{"$f":"Import!G478","v":0},null,{"$f":"Import!I478","v":0},null,{"$f":"Import!K478","v":0},null,{"$f":"+Import!M478","v":0},null,{"$f":"+Import!O478","v":0}]
[null,null,"(c) Total ",null,{"$f":"E53+E54","v":0},null,{"$f":"G53+G54","v":0},null,{"$f":"I53+I54","v":0},null,{"$f":"K53+K54","v":0},null,{"$f":"M53+M54","v":0},null,{"$f":"O53+O54","v":0}]
[]
[null,"35.","COMBINED INCOME BEFORE REALISED GAINS (LOSSES)",null,{"$f":"E50-E55","v":0},null,{"$f":"G50-G55","v":0},null,{"$f":"I50-I55","v":0},null,{"$f":"K50-K55","v":0},null,{"$f":"M50-M55","v":0},null,{"$f":"O50-O55","v":0}]
[]
[null,"36.","COMBINED REALISED GAINS (LOSSES)",null,{"$f":"Import!E479","v":0},null,{"$f":"Import!G479","v":0},null,{"$f":"Import!I479","v":0},null,{"$f":"Import!K479","v":0},null,{"$f":"+Import!M479","v":0},null,{"$f":"+Import!O479","v":0}]
[]
[null,"37.","COMBINED INTEREST CHARGES",null,{"$f":"Import!E480","v":0},null,{"$f":"Import!G480","v":0},null,{"$f":"Import!I480","v":0},null,{"$f":"Import!K480","v":0},null,{"$f":"+Import!M480","v":0},null,{"$f":"+Import!O480","v":0}]
[]
[null,"38.","NET INCOME",null,{"$f":"E57+E59-E61","v":0},null,{"$f":"G57+G59-G61","v":0},null,{"$f":"I57+I59-I61","v":0},null,{"$f":"K57+K59-K61","v":0},null,{"$f":"M57+M59-M61","v":0},null,{"$f":"O57+O59-O61","v":0}]

{"sheet":"Form 8SFS (Consolidated)","index":21,"n_rows":65,"n_cols":17,"rows_kept":65,"cut":false,"hidden":false,"merged":[[5,14,5,16],[5,10,5,12],[4,10,4,12],[4,6,4,8],[5,6,5,8],[4,14,4,16],[64,2,64,4],[62,10,62,12],[62,2,62,4],[2,2,2,3],[3,2,3,3],[47,2,47,4],[64,10,64,12]]}
[null,"STATUTORY STATEMENT OF CAPITAL AND SURPLUS ",null,null,null,null,null,null,null,null,null,null,null,null,null,null,{"$f":"HYPERLINK(\"#'Index'!A1\",\"Return to Index\")","v":"Return to Index"}]
[null,{"$f":"'Company Information'!C7","v":"Enter Company Name"}]
[null,"For the year ending",{"$f":"'Company Information'!C3","v":"2022-12-31"},null,null,null,null,null,null,null,null,null,null,null,null,null,"FORM 8SFS"]
[null,{"$f":"\"expressed in\"& IF(CONFIGURATION!$B$12>1,\" ['\"&MID(CONFIGURATION!$B$12,2,LEN(CONFIGURATION!$B$12))&\"s]\",\"\")","v":"expressed in ['000s]"},{"$f":"'Form 1SFS (Consolidated)'!$C$5","v":"United States Dollars"},{"$f":"'Form 1SFS (Consolidated)'!$C$5","v":"United States Dollars"},null,null,"(A)",null,"(B)",null,"(C)",null,"(D)",null,"(E)",null,"(F)"]
[null,null,null,null,null,null,"Consolidated",null,null,null,"Consolidated",null,null,null,"Consolidated"]
[null,"STMT.",null,null,null,null,"In Fiat",null,null,null,"In Digital Assets",null,null,null,"Total (Converted to Reporting Currency)"]
[null,"LINE No.",null,null,null,null,{"$f":"'Form 1SFS (Consolidated)'!$E$9","v":"2022-12-31"},null,{"$f":"'Form 1SFS (Consolidated)'!$G$9","v":"2021-12-31"},null,{"$f":"'Form 1SFS (Consolidated)'!$E$9","v":"2022-12-31"},null,{"$f":"'Form 1SFS (Consolidated)'!$G$9","v":"2021-12-31"},null,{"$f":"'Form 1SFS (Consolidated)'!$E$9","v":"2022-12-31"},null,{"$f":"'Form 1SFS (Consolidated)'!$G$9","v":"2021-12-31"}]
[null,null,null,null,null,null,{"$f":"CONFIGURATION!$D$12","v":" ('000s)"},null,{"$f":"CONFIGURATION!$D$12","v":" ('000s)"},null,{"$f":"CONFIGURATION!$D$12","v":" ('000s)"},null,{"$f":"CONFIGURATION!$D$12","v":" ('000s)"},null,{"$f":"CONFIGURATION!$D$12","v":" ('000s)"},null,{"$f":"CONFIGURATION!$D$12","v":" ('000s)"}]
[null,"1.","STATUTORY CAPITAL"]
[]
[null,"(a)","Capital Stock",null,null,null,{"$f":"Import!E483","v":0},null,{"$f":"Import!G483","v":0},null,{"$f":"Import!I483","v":0},null,{"$f":"Import!K483","v":0}]
[null,null,"(i) Common Shares",null,null,null,null,null,null,null,null,null,null,null,{"$f":"Import!M484","v":0},null,{"$f":"Import!O484","v":0}]
[null,null,"authorised",null,"shares of par"]
[null,null,"value",null,"each issued and"]
[null,null,"fully paid",null,"shares"]
[]
[null,null,"(ii) Preferred Shares",null,null,null,null,null,null,null,null,null,null,null,{"$f":"Import!M485","v":0},null,{"$f":"Import!O485","v":0}]
[null,null,"authorised",null,"shares of par"]
[null,null,"value",null,"each issued and"]
[null,null,"fully paid",null,"shares"]
[null,null,"aggregate liquidation value for —"]
[null,null,{"$f":"O7","v":"2022-12-31"}]
[null,null,{"$f":"Q7","v":"2021-12-31"}]
[]
[null,null,"(iii) Treasury Shares",null,null,null,null,null,null,null,null,null,null,null,{"$f":"Import!M486","v":0},null,{"$f":"Import!O486","v":0}]
[null,null,"repurchased",null,"shares of par"]
[null,null,"value",null,"each issued"]
[]
[null,null,"(iv) Tokenised equity shares",null,null,null,null,null,null,null,null,null,null,null,{"$f":"Import!M487","v":0},null,{"$f":"Import!O487","v":0}]
[]
[null,"(b)","Contributed surplus",null,null,null,{"$f":"Import!E488","v":0},null,{"$f":"Import!G488","v":0},null,{"$f":"Import!I488","v":0},null,{"$f":"Import!K488","v":0},null,{"$f":"Import!M488","v":0},null,{"$f":"Import!O488","v":0}]
[]
[null,"(c)","Any other fixed capital"]
[null,null,"(i) Hybrid capital instruments",null,null,null,{"$f":"Import!E489","v":0},null,{"$f":"Import!G489","v":0},null,{"$f":"Import!I489","v":0},null,{"$f":"Import!K489","v":0},null,{"$f":"Import!M489","v":0},null,{"$f":"Import!O489","v":0}]
[null,null,"(ii) Guarantees and others",null,null,null,{"$f":"Import!E490","v":0},null,{"$f":"Import!G490","v":0},null,{"$f":"Import!I490","v":0},null,{"$f":"Import!K490","v":0},null,{"$f":"Import!M490","v":0},null,{"$f":"Import!O490","v":0}]
[null,null,"(iii) Total any other fixed capital",null,null,null,{"$f":"SUM(G34:G35)","v":0},null,{"$f":"SUM(I34:I35)","v":0},null,{"$f":"SUM(K34:K35)","v":0},null,{"$f":"SUM(M34:M35)","v":0},null,{"$f":"SUM(O34:O35)","v":0},null,{"$f":"SUM(Q34:Q35)","v":0}]
[]
[null,"(d)","Total Statutory Capital",null,null,null,{"$f":"G11+G31+G36","v":0},null,{"$f":"I11+I31+I36","v":0},null,{"$f":"K11+K31+K36","v":0},null,{"$f":"M11+M31+M36","v":0},null,{"$f":"O12+O17-O25+O29+O31+O36","v":0},null,{"$f":"Q12+Q17-Q25+Q29+Q31+Q36","v":0}]
[]
[null,"2.","STATUTORY SURPLUS:"]
[]
[null,"(a)","Statutory Surplus - Beginning of Year",null,null,null,{"$f":"Import!E491","v":0},null,{"$f":"Import!G491","v":0},null,{"$f":"Import!I491","v":0},null,{"$f":"Import!K491","v":0},null,{"$f":"Import!M491","v":0},null,{"$f":"Import!O491","v":0}]
[]
[null,"(b)","Add: Income for Year",null,null,null,{"$f":"'Form 2SFS (Consolidated)'!E63","v":0},null,{"$f":"'Form 2SFS (Consolidated)'!G63","v":0},null,{"$f":"'Form 2SFS (Consolidated)'!I63","v":0},null,{"$f":"'Form 2SFS (Consolidated)'!K63","v":0},null,{"$f":"'Form 2SFS (Consolidated)'!M63","v":0},null,{"$f":"'Form 2SFS (Consolidated)'!O63","v":0}]
[]
[null,"(c)","Less: Dividends paid and payable",null,null,null,{"$f":"Import!E492","v":0},null,{"$f":"Import!G492","v":0},null,{"$f":"Import!I492","v":0},null,{"$f":"Import!K492","v":0},null,{"$f":"Import!M492","v":0},null,{"$f":"Import!O492","v":0}]
[]
[null,"(d)","Add (Deduct): Change in unrealised appreciation (depreciation) of investments",null,null,null,{"$f":"Import!E493","v":0},null,{"$f":"Import!G493","v":0},null,{"$f":"Import!I493","v":0},null,{"$f":"Import!K493","v":0},null,{"$f":"Import!M493","v":0},null,{"$f":"Import!O493","v":0}]
[]
[null,"(e)","Add (Deduct): Change in non-admitted assets",null,null,null,{"$f":"Import!E494","v":0},null,{"$f":"Import!G494","v":0},null,{"$f":"Import!I494","v":0},null,{"$f":"Import!K494","v":0},null,{"$f":"Import!M494","v":0},null,{"$f":"Import!O494","v":0}]
[]
[null,"(f)","Add (Deduct): Change in appraisal of real estate",null,null,null,{"$f":"Import!E495","v":0},null,{"$f":"Import!G495","v":0},null,{"$f":"Import!I495","v":0},null,{"$f":"Import!K495","v":0},null,{"$f":"Import!M495","v":0},null,{"$f":"Import!O495","v":0}]
[]
[null,"(g)","Add (Deduct): Change in any other statutory capital",null,null,null,{"$f":"Import!E496","v":0},null,{"$f":"Import!G496","v":0},null,{"$f":"Import!I496","v":0},null,{"$f":"Import!K496","v":0},null,{"$f":"Import!M496","v":0},null,{"$f":"Import!O496","v":0}]
[]
[null,"(h)","Statutory Surplus - End of Year",null,null,null,{"$f":"G42+G44+G46+G48+G50+G52+G54","v":0},null,{"$f":"I42+I44+I46+I48+I50+I52+I54","v":0},null,{"$f":"K42+K44+K46+K48+K50+K52+K54","v":0},null,{"$f":"M42+M44+M46+M48+M50+M52+M54","v":0},null,{"$f":"O42+O44+O46+O48+O50+O52+O54","v":0},null,{"$f":"Q42+Q44+Q46+Q48+Q50+Q52+Q54","v":0}]
[]
[null,"3.","MINORITY INTEREST",null,null,null,{"$f":"Import!E497","v":0},null,{"$f":"Import!G497","v":0},null,{"$f":"Import!I497","v":0},null,{"$f":"Import!K497","v":0},null,{"$f":"Import!M497","v":0},null,{"$f":"Import!O497","v":0}]
[]
[null,"4.","TOTAL STATUTORY CAPITAL AND SURPLUS",null,null,null,{"$f":"G38+G56+G58","v":0},null,{"$f":"I38+I56+I58","v":0},null,{"$f":"K38+K56+K58","v":0},null,{"$f":"M38+M56+M58","v":0},null,{"$f":"O38+O56+O58","v":0},null,{"$f":"Q38+Q56+Q58","v":0}]
[]
[null,null,null,null,null,null,null,null,null,null,"Change in other statutory capital and surplus"]
[null,"Line 2g","Change in any other statutory capital"]
[]
[null,"Line 4","Total Statutory Capital & Surplus",null,null,null,null,null,null,null,{"$f":"HYPERLINK(\"#'Schedule V(g)'!A1\",\"Refer to Schedule V(g)\")","v":"Refer to Schedule V(g)"}]

{"sheet":"Form 1EBS","index":22,"n_rows":238,"n_cols":8,"rows_kept":238,"cut":false,"hidden":true,"merged":[[227,2,227,3],[222,2,222,3],[3,2,3,3]]}
[null,"ECONOMIC BALANCE SHEET",null,null,null,null,null,{"$f":"HYPERLINK(\"#'Index'!A1\",\"Return to Index\")","v":"Return to Index"}]
[null,{"$f":"'Company Information'!C7","v":"Enter Company Name"}]
[null,"As at",{"$f":"'Company Information'!C3","v":"2022-12-31"},null,null,null,null,"FORM 1EBS"]
[null,{"$f":"\"expressed in\"& IF(CONFIGURATION!$B$12>1,\" ['\"&MID(CONFIGURATION!$B$12,2,LEN(CONFIGURATION!$B$12))&\"s]\",\"\")","v":"expressed in ['000s]"},{"$f":"'Form 1SFS (Consolidated)'!C5","v":"United States Dollars"}]
[]
[null,"STMT."]
[null,"LINE No.",null,null,null,{"$f":"C3","v":"2022-12-31"},null,{"$f":"DATE(YEAR(C3) -1, MONTH(C3), DAY(C3))","v":"2021-12-31"}]
[null,null,null,null,null,{"$f":"CONFIGURATION!$D$12","v":" ('000s)"},null,{"$f":"CONFIGURATION!$D$12","v":" ('000s)"}]
[]
[null,"1.","CASH AND CASH EQUIVALENTS",null,null,{"$f":"Import!Q301","v":0},null,{"$f":"Import!S301","v":0}]
[]
[null,"2.","QUOTED INVESTMENTS:"]
[null,"(b)","Total Bonds and Debentures",null,null,{"$f":"Import!Q304","v":0},null,{"$f":"Import!S304","v":0}]
[null,"(c) ","Equities "]
[null,null,"  i.   Common stocks",null,null,{"$f":"Import!Q305","v":0},null,{"$f":"Import!S305","v":0}]
[null,null,"  ii. Preferred stocks",null,null,{"$f":"Import!Q306","v":0},null,{"$f":"Import!S306","v":0}]
[null,null,"  iii. Mutual Funds",null,null,{"$f":"Import!Q307","v":0},null,{"$f":"Import!S307","v":0}]
[null,"(d) ","Total equity investments",null,null,{"$f":"SUM(F15:F17)","v":0},null,{"$f":"SUM(H15:H17)","v":0}]
[null,"(e)","Other quoted investments",null,null,{"$f":"Import!Q308","v":0},null,{"$f":"Import!S308","v":0}]
[null,"(f)","Total quoted investments",null,null,{"$f":"F13+F18+F19","v":0},null,{"$f":"H13+H18+H19","v":0}]
[]
[null,"3.","UNQUOTED INVESTMENTS:"]
[null,"(b)","Total Bonds and Debentures",null,null,{"$f":"Import!Q313","v":0},null,{"$f":"Import!S313","v":0}]
[null,"(c) ","Equities "]
[null,null,"  i.   Common stocks",null,null,{"$f":"Import!Q314","v":0},null,{"$f":"Import!S314","v":0}]
[null,null,"  ii. Preferred stocks",null,null,{"$f":"Import!Q315","v":0},null,{"$f":"Import!S315","v":0}]
[null,null,"  iii . Mutual Funds",null,null,{"$f":"Import!Q316","v":0},null,{"$f":"Import!S316","v":0}]
[null,"(d) ","Total equity investments",null,null,{"$f":"SUM(F25:F27)","v":0},null,{"$f":"SUM(H25:H27)","v":0}]
[null,"(e) ","Other unquoted investments",null,null,{"$f":"Import!Q317","v":0},null,{"$f":"Import!S317","v":0}]
[null,"(f) ","Total unquoted investments",null,null,{"$f":"F23+F28+F29","v":0},null,{"$f":"H23+H28+H29","v":0}]
[]
[null,"4.","INVESTMENTS IN AND ADVANCES TO AFFILIATES (EQUITY METHOD):"]
[null,"(a)","Unregulated entities that conduct ancillary services",null,null,{"$f":"Import!Q320","v":0},null,{"$f":"Import!S320","v":0}]
[null,"(b)","Unregulated non-financial operating entities",null,null,{"$f":"Import!#REF!","v":{"$error":"#REF!"}},null,{"$f":"Import!#REF!","v":{"$error":"#REF!"}}]
[null,"(c)","Unregulated financial operating entities",null,null,{"$f":"Import!#REF!","v":{"$error":"#REF!"}},null,{"$f":"Import!#REF!","v":{"$error":"#REF!"}}]
[null,"(d)","Regulated non-insurance financial operating entities",null,null,{"$f":"Import!#REF!","v":{"$error":"#REF!"}},null,{"$f":"Import!#REF!","v":{"$error":"#REF!"}}]
[null,"(e)","Regulated insurance financial operating entities",null,null,{"$f":"Import!#REF!","v":{"$error":"#REF!"}},null,{"$f":"Import!#REF!","v":{"$error":"#REF!"}}]
[null,"(f)","Total investments in affiliates (equity method)",null,null,{"$f":"SUM(F33:F37)","v":{"$error":"#REF!"}},null,{"$f":"SUM(H33:H37)","v":{"$error":"#REF!"}}]
[null,"(g)","Advances to affiliates",null,null,{"$f":"Import!#REF!","v":{"$error":"#REF!"}},null,{"$f":"Import!#REF!","v":{"$error":"#REF!"}}]
[null,"(h)","Total investments in and advances to affiliates (equity method)",null,null,{"$f":"F38+F39","v":{"$error":"#REF!"}},null,{"$f":"H38+H39","v":{"$error":"#REF!"}}]
[]
[null,"5.","INVESTMENTS IN MORTGAGE LOANS ON REAL ESTATE:"]
[null,"(a)","First liens",null,null,{"$f":"Import!Q321","v":0},null,{"$f":"Import!S321","v":0}]
[null,"(b)","Other than first liens ",null,null,{"$f":"Import!Q322","v":0},null,{"$f":"Import!S322","v":0}]
[null,"(c) ","Total investments in mortgage loans on real estate",null,null,{"$f":"SUM(F43:F44)","v":0},null,{"$f":"SUM(H43:H44)","v":0}]
[]
[null,"7.","REAL ESTATE:"]
[null,"(a)","Occupied by the company (less encumbrances)",null,null,{"$f":"Import!Q324","v":0},null,{"$f":"Import!S324","v":0}]
[null,"(b)","Other properties (less encumbrances)",null,null,{"$f":"Import!#REF!","v":{"$error":"#REF!"}},null,{"$f":"Import!#REF!","v":{"$error":"#REF!"}}]
[null,"(c) ","Total real estate",null,null,{"$f":"SUM(F48:F49)","v":{"$error":"#REF!"}},null,{"$f":"SUM(H48:H49)","v":{"$error":"#REF!"}}]
[]
[null,"8.","COLLATERAL LOANS",null,null,{"$f":"Import!Q325","v":0},null,{"$f":"Import!S325","v":0}]
[]
[null,"9.","INVESTMENT INCOME DUE AND ACCRUED",null,null,{"$f":"Import!Q327","v":0},null,{"$f":"Import!S327","v":0}]
[]
[null,"10.","ACCOUNTS AND PREMIUMS RECEIVABLE:"]
[null,"(a)","In course of collection",null,null,{"$f":"Import!Q328","v":0},null,{"$f":"Import!S328","v":0}]
[null,"(c) ","Receivables from retrocessional contracts",null,null,{"$f":"Import!#REF!","v":{"$error":"#REF!"}},null,{"$f":"Import!#REF!","v":{"$error":"#REF!"}}]
[null,"(d) ","Total accounts and premiums receivable",null,null,{"$f":"SUM(F57:F58)","v":{"$error":"#REF!"}},null,{"$f":"SUM(H57:H58)","v":{"$error":"#REF!"}}]
[]
[null,"11.","REINSURANCE BALANCES RECEIVABLE:"]
[null,"(a)","Foreign affiliates",null,null,{"$f":"Import!Q329","v":0},null,{"$f":"Import!S329","v":0}]
[null,"(b)","Domestic affiliates",null,null,{"$f":"Import!Q330","v":0},null,{"$f":"Import!S330","v":0}]
[null,"(c) ","Pools & associations",null,null,{"$f":"Import!#REF!","v":{"$error":"#REF!"}},null,{"$f":"Import!#REF!","v":{"$error":"#REF!"}}]
[null,"(d) ","All other insurers",null,null,{"$f":"Import!#REF!","v":{"$error":"#REF!"}},null,{"$f":"Import!#REF!","v":{"$error":"#REF!"}}]
[null,"(e)","Total reinsurance balances receivable",null,null,{"$f":"SUM(F62:F65)","v":{"$error":"#REF!"}},null,{"$f":"SUM(H62:H65)","v":{"$error":"#REF!"}}]
[]
[null,"12.","FUNDS HELD BY CEDING REINSURERS:"]
[null,"(a)","Affiliated",null,null,{"$f":"Import!#REF!","v":{"$error":"#REF!"}},null,{"$f":"Import!#REF!","v":{"$error":"#REF!"}}]
[null,"(b)","Non-affiliated",null,null,{"$f":"Import!#REF!","v":{"$error":"#REF!"}},null,{"$f":"Import!#REF!","v":{"$error":"#REF!"}}]
[null,"(c)","Total funds held by ceding reinsurers",null,null,{"$f":"SUM(F69:F70)","v":{"$error":"#REF!"}},null,{"$f":"SUM(H69:H70)","v":{"$error":"#REF!"}}]
[]
[null,"13.","SUNDRY ASSETS:"]
[null,"(a)","Derivative instruments",null,null,{"$f":"Import!Q332","v":0},null,{"$f":"Import!S332","v":0}]
[null,"(d)","Segregated accounts companies",null,null,{"$f":"Import!#REF!","v":{"$error":"#REF!"}},null,{"$f":"Import!#REF!","v":{"$error":"#REF!"}}]
[null,"(e)","Deposit assets",null,null,{"$f":"Import!Q333","v":0},null,{"$f":"Import!S333","v":0}]
[null,"(f)","Balances receivable on sale of investments",null,null,{"$f":"Import!Q335","v":0},null,{"$f":"Import!S335","v":0}]
[null,"(g)","Intangible assets",null,null,{"$f":"Import!#REF!","v":{"$error":"#REF!"}},null,{"$f":"Import!#REF!","v":{"$error":"#REF!"}}]
[null,"(h)","Deferred tax Assets",null,null,{"$f":"Import!#REF!","v":{"$error":"#REF!"}},null,{"$f":"Import!#REF!","v":{"$error":"#REF!"}}]
[null,"(i)","Pension Benefit Surplus",null,null,{"$f":"Import!#REF!","v":{"$error":"#REF!"}},null,{"$f":"Import!#REF!","v":{"$error":"#REF!"}}]
[null,"(j)",null,null,null,{"$f":"Import!Q336","v":0},null,{"$f":"Import!S336","v":0}]
[null,"(k)","Total sundry assets",null,null,{"$f":"SUM(F74:F81)","v":{"$error":"#REF!"}},null,{"$f":"SUM(H74:H81)","v":{"$error":"#REF!"}}]
[]
[null,"14.","LETTERS OF CREDIT, GUARANTEES AND OTHER INSTRUMENTS:"]
[null,"(a)","Letters of credit ",null,null,{"$f":"Import!Q339","v":0},null,{"$f":"Import!S339","v":0}]
[null,"(b)","Guarantees",null,null,{"$f":"Import!Q340","v":0},null,{"$f":"Import!S340","v":0}]
[null,"(c) ","Other instruments",null,null,{"$f":"Import!Q341","v":0},null,{"$f":"Import!S341","v":0}]
[null,"(d)","Total letters of credit, guarantees and other instruments",null,null,{"$f":"SUM(F85:F87)","v":0},null,{"$f":"SUM(H85:H87)","v":0}]
[]
[null,"15.","TOTAL",null,null,{"$f":"F10+F20+F30+F40+F45+F50+F52+F54+F59+F66+F71+F82+F88","v":{"$error":"#REF!"}},null,{"$f":"H10+H20+H30+H40+H45+H50+H52+H54+H59+H66+H71+H82+H88","v":{"$error":"#REF!"}}]
[]
[null,null,"GENERAL BUSINESS INSURANCE TECHNICAL PROVISIONS, OTHER LIABILITIES "]
[null,null,"AND STATUTORY CAPITAL AND SURPLUS"]
[]
[null,null,"GENERAL BUSINESS INSURANCE TECHNICAL PROVISIONS"]
[]
[null,"16.","BEST ESTIMATE PREMIUM PROVISIONS"]
[null,"(a)","Gross premium provisions",null,null,{"$f":"Import!Q343","v":0},null,{"$f":"Import!S343","v":0}]
[null,"(b)","Less : Reinsurance recoverable balance"]
[null,null,"  i.   Foreign affiliates",null,null,{"$f":"Import!#REF!","v":{"$error":"#REF!"}},null,{"$f":"Import!#REF!","v":{"$error":"#REF!"}}]
[null,null,"  ii.  Domestic affiliates",null,null,{"$f":"Import!#REF!","v":{"$error":"#REF!"}},null,{"$f":"Import!#REF!","v":{"$error":"#REF!"}}]
[null,null,"  iii. Pools & associations",null,null,{"$f":"Import!#REF!","v":{"$error":"#REF!"}},null,{"$f":"Import!#REF!","v":{"$error":"#REF!"}}]
[null,null,"  iv.  All other insurers",null,null,{"$f":"Import!#REF!","v":{"$error":"#REF!"}},null,{"$f":"Import!#REF!","v":{"$error":"#REF!"}}]
[null,"(c) ","Total reinsurance recoverable balance",null,null,{"$f":"SUM(F100:F103)","v":{"$error":"#REF!"}},null,{"$f":"SUM(H100:H103)","v":{"$error":"#REF!"}}]
[null,"(d) ","Net premium provisions",null,null,{"$f":"F98-F104","v":{"$error":"#REF!"}},null,{"$f":"H98-H104","v":{"$error":"#REF!"}}]
[]
[null,"17.","BEST ESTIMATE LOSS AND LOSS EXPENSE PROVISIONS:"]
[null,"(a)","Gross loss and loss expense provisions",null,null,{"$f":"Import!Q344","v":0},null,{"$f":"Import!S344","v":0}]
[null,"(b)","Less : Reinsurance recoverable balance"]
[null,null,"  i.   Foreign affiliates",null,null,{"$f":"Import!Q345","v":0},null,{"$f":"Import!S345","v":0}]
[null,null,"  ii.  Domestic affiliates",null,null,{"$f":"Import!Q346","v":0},null,{"$f":"Import!S346","v":0}]
[null,null,"  iii. Pools & associations",null,null,{"$f":"Import!Q347","v":0},null,{"$f":"Import!S347","v":0}]
[null,null,"  iv.  All other insurers",null,null,{"$f":"Import!Q348","v":0},null,{"$f":"Import!S348","v":0}]
[null,"(c) ","Total reinsurance recoverable balance",null,null,{"$f":"SUM(F110:F113)","v":0},null,{"$f":"SUM(H110:H113)","v":0}]
[null,"(d) ","Net loss and loss expense provisions",null,null,{"$f":"F108-F114","v":0},null,{"$f":"H108-H114","v":0}]
[]
[null,"18.","RISK MARGIN – GENERAL INSURANCE BUSINESS",null,null,{"$f":"Import!#REF!","v":{"$error":"#REF!"}},null,{"$f":"Import!#REF!","v":{"$error":"#REF!"}}]
[]
[null,"19.","TOTAL GENERAL BUSINESS INSURANCE TECHNICAL PROVISIONS",null,null,{"$f":"F105+F115+F117","v":{"$error":"#REF!"}},null,{"$f":"H105+H115+H117","v":{"$error":"#REF!"}}]
[]
[null,null,"OTHER LIABILITIES"]
[]
[null,"28.","INSURANCE AND REINSURANCE BALANCES PAYABLE",null,null,{"$f":"Import!Q350","v":0},null,{"$f":"Import!S350","v":0}]
[]
[null,"29.","COMMISSIONS, EXPENSES, FEES AND TAXES PAYABLE",null,null,{"$f":"Import!Q351","v":0},null,{"$f":"Import!S351","v":0}]
[]
[null,"30.","LOANS AND NOTES PAYABLE",null,null,{"$f":"Import!Q352","v":0},null,{"$f":"Import!S352","v":0}]
[]
[null,"31.","TAX LIABILITIES"]
[null,"(a)","Income taxes payable",null,null,{"$f":"Import!Q353","v":0},null,{"$f":"Import!S353","v":0}]
[null,"(b)","Deferred income taxes",null,null,{"$f":"Import!#REF!","v":{"$error":"#REF!"}},null,{"$f":"Import!#REF!","v":{"$error":"#REF!"}}]
[]
[null,"32.","AMOUNTS DUE TO AFFILIATES",null,null,{"$f":"Import!Q354","v":0},null,{"$f":"Import!S354","v":0}]
[]
[null,"33.","ACCOUNTS PAYABLE AND ACCRUED LIABILITIES",null,null,{"$f":"Import!Q355","v":0},null,{"$f":"Import!S355","v":0}]
[]
[null,"34.","FUNDS HELD UNDER REINSURANCE CONTRACTS:"]
[null,"(a)","Affiliated",null,null,{"$f":"Import!#REF!","v":{"$error":"#REF!"}},null,{"$f":"Import!#REF!","v":{"$error":"#REF!"}}]
[null,"(b)","Non-affiliated",null,null,{"$f":"Import!#REF!","v":{"$error":"#REF!"}},null,{"$f":"Import!#REF!","v":{"$error":"#REF!"}}]
[null,"(c)","Total funds held under reinsurance contracts",null,null,{"$f":"SUM(F138:F139)","v":{"$error":"#REF!"}},null,{"$f":"SUM(H138:H139)","v":{"$error":"#REF!"}}]
[]
[null,"35.","DIVIDENDS PAYABLE",null,null,{"$f":"Import!Q357","v":0},null,{"$f":"Import!S357","v":0}]
[]
[null,"36.","SUNDRY LIABILITIES:"]
[null,"(a)","Derivative instruments – held for hedging purposes",null,null,{"$f":"Import!Q358","v":0},null,{"$f":"Import!S358","v":0}]
[null,"(b)","Derivative instruments – not held for hedging purposes",null,null,{"$f":"Import!#REF!","v":{"$error":"#REF!"}},null,{"$f":"Import!#REF!","v":{"$error":"#REF!"}}]
[null,"(e)","Segregated accounts companies",null,null,{"$f":"Import!#REF!","v":{"$error":"#REF!"}},null,{"$f":"Import!#REF!","v":{"$error":"#REF!"}}]
[null,"(f)","Deposit liabilities",null,null,{"$f":"Import!#REF!","v":{"$error":"#REF!"}},null,{"$f":"Import!#REF!","v":{"$error":"#REF!"}}]
[null,"(g)","Pension benefit obligations",null,null,{"$f":"Import!#REF!","v":{"$error":"#REF!"}},null,{"$f":"Import!#REF!","v":{"$error":"#REF!"}}]
[null,"(h)","Balances payable for purchase of investments",null,null,{"$f":"Import!Q359","v":0},null,{"$f":"Import!S359","v":0}]
[null,"(i)",null,null,null,{"$f":"Import!Q360","v":0},null,{"$f":"Import!S360","v":0}]
[null,"(j)","Total sundry liabilities",null,null,{"$f":"SUM(F145:F151)","v":{"$error":"#REF!"}},null,{"$f":"SUM(H145:H151)","v":{"$error":"#REF!"}}]
[]
[null,"37.","LETTERS OF CREDIT, GUARANTEES AND OTHER INSTRUMENTS:"]
[null,"(a)","Letters of credit ",null,null,{"$f":"Import!Q363","v":0},null,{"$f":"Import!S363","v":0}]
[null,"(b)","Guarantees",null,null,{"$f":"Import!Q364","v":0},null,{"$f":"Import!S364","v":0}]
[null,"(c) ","Other instruments",null,null,{"$f":"Import!Q365","v":0},null,{"$f":"Import!S365","v":0}]
[null,"(d)","Total letters of credit, guarantees and other instruments",null,null,{"$f":"SUM(F155:F157)","v":0},null,{"$f":"SUM(H155:H157)","v":0}]
[]
[]
[null,"38.","TOTAL OTHER LIABILITIES",null,null,{"$f":"F123+F125+F127+F130+F131+F133+F135+F140+F142+F152+F158","v":{"$error":"#REF!"}},null,{"$f":"H123+H125+H127+H130+H131+H133+H135+H140+H142+H152+H158","v":{"$error":"#REF!"}}]
[]
[null,"39.","TOTAL INSURANCE TECHNICAL PROVISIONS AND OTHER LIABILITIES",null,null,{"$f":"F119+F161","v":{"$error":"#REF!"}},null,{"$f":"H119+H161","v":{"$error":"#REF!"}}]
[]
[null,null,"STATUTORY ECONOMIC CAPITAL AND SURPLUS"]
[]
[null,"40.","TOTAL STATUTORY ECONOMIC CAPITAL AND SURPLUS ",null,null,{"$f":"Import!Q366","v":0},null,{"$f":"Import!S366","v":0}]
[]
[null,"41.","TOTAL",null,null,{"$f":"F163+F167","v":{"$error":"#REF!"}},null,{"$f":"H163+H167","v":{"$error":"#REF!"}}]
[]
[null,null,null,null,null,{"$f":"IF(F172=\"TRUE\",HYPERLINK(\"#'Form 1EBS'!F90\",\"TRUE\"),HYPERLINK(\"#'Form 1EBS'!F90\",\"FALSE\"))","v":{"$error":"#REF!"}},null,{"$f":"IF(H172=\"TRUE\",HYPERLINK(\"#'Form 1EBS'!H90\",\"TRUE\"),HYPERLINK(\"#'Form 1EBS'!H90\",\"FALSE\"))","v":{"$error":"#REF!"}}]
[null,null,null,null,null,{"$f":"IF(ROUND((F90-F169),0)=0,\"TRUE\",\"FALSE\")","v":{"$error":"#REF!"}},null,{"$f":"IF(ROUND((H90-H169),0)=0,\"TRUE\",\"FALSE\")","v":{"$error":"#REF!"}}]
[null,null,null,null,null,{"$f":"ROUND(F90-F169,0)","v":{"$error":"#REF!"}},null,{"$f":"ROUND(H90-H169,0)","v":{"$error":"#REF!"}}]
[]
[null,null,null,null,null,{"$f":"IF(F171=\"False\",\"Line 15 does not equal Line 41\",\"\")","v":{"$error":"#REF!"}},null,{"$f":"IF(H171=\"False\",\"Line 15 does not equal Line 41\",\"\")","v":{"$error":"#REF!"}}]
[]
[null,"Notes to Form 1EBS"]
[null,null,null,"Additional Details"]
[null,"Line 10 ","Collateralized balances",null,null,{"$f":"Import!Q368","v":0}]
[null,"Line 11(e)","Collateralized balances",null,null,{"$f":"Import!Q369","v":0}]
[null,"Line 17(c)-(ii)","Collateral placed in favor of the insurer ",{"$f":"HYPERLINK(\"#'Attachments'!G225\",\"Attach file\")","v":"Attach file"},null,{"$f":"Import!Q370","v":0}]
[null,"Line 13(j)","Any other assets",{"$f":"HYPERLINK(\"#'Attachments'!G225\",\"Attach file\")","v":"Attach file"},null,{"$f":"Import!Q371","v":0}]
[null,"Line 36(i)","Other sundry liabilities",{"$f":"HYPERLINK(\"#'Attachments'!G225\",\"Attach file\")","v":"Attach file"},null,{"$f":"Import!Q443","v":0}]
[]
[null,"Line 15","Encumbered assets for policyholder obligations"]
[]
[null,null,"Asset"]
[null,null,"                Cash and cash equivalents",null,null,{"$f":"Import!Q372","v":0},null,{"$f":"Import!S372","v":0}]
[null,null,"                Total quoted investments",null,null,{"$f":"Import!Q373","v":0},null,{"$f":"Import!S373","v":0}]
[null,null,"                Total unquoted investments",null,null,{"$f":"Import!Q374","v":0},null,{"$f":"Import!S374","v":0}]
[null,null,"                Funds held by ceding reinsurers",null,null,{"$f":"F71","v":{"$error":"#REF!"}},null,{"$f":"H71","v":{"$error":"#REF!"}}]
[null,null,"                Other assets",null,null,{"$f":"Import!Q376","v":0},null,{"$f":"Import!S376","v":0}]
[null,null,"                Total encumbered assets",null,null,{"$f":"SUM(F188:F192)","v":{"$error":"#REF!"}},null,{"$f":"SUM(H188:H192)","v":{"$error":"#REF!"}}]
[]
[null,"Line 15","Encumbered assets not securing policyholder obligations"]
[]
[null,null,"Asset","Purpose of Encumbrance"]
[null,null,"                Cash and cash equivalents",null,null,{"$f":"Import!Q378","v":0},null,{"$f":"Import!S378","v":0}]
[null,null,"                Total quoted investments",null,null,{"$f":"Import!Q379","v":0},null,{"$f":"Import!S379","v":0}]
[null,null,"                Total unquoted investments",null,null,{"$f":"Import!Q380","v":0},null,{"$f":"Import!S380","v":0}]
[null,null,"                Other assets",null,null,{"$f":"Import!Q381","v":0},null,{"$f":"Import!S381","v":0}]
[null,null,"                Total encumbered assets",null,null,{"$f":"SUM(F198:F201)","v":0},null,{"$f":"SUM(H198:H201)","v":0}]
[]
[null,"Line 13(e) ","Details of business treated under deposit accounting techniques as a asset",{"$f":"IF('Company Information'!$F$11=\"IIGB\",HYPERLINK(\"#'Attachments'!G115\",\"Attach file\"),HYPERLINK(\"#'Attachments'!G165\",\"Attach file\"))","v":"Attach file"},null,{"$f":"Import!Q444","v":0}]
[null,"Line 36(f)","Details of business treated under deposit accounting techniques as a liability",{"$f":"IF('Company Information'!$F$11=\"IIGB\",HYPERLINK(\"#'Attachments'!G115\",\"Attach file\"),HYPERLINK(\"#'Attachments'!G165\",\"Attach file\"))","v":"Attach file"},null,{"$f":"Import!Q383","v":0}]
[null,"Line 37","Details of the basis used to derive the amounts disclosed",{"$f":"IF('Company Information'!$F$11=\"IIGB\",HYPERLINK(\"#'Attachments'!G115\",\"Attach file\"),HYPERLINK(\"#'Attachments'!G165\",\"Attach file\"))","v":"Attach file"},null,{"$f":"Import!Q384","v":0}]
[null,"Line 40","Reconciliation between Line 40 of 1EBS and Line 40 of Form 1SFS",{"$f":"HYPERLINK(\"#'Schedule V(g)'!A1\",\"Refer to Schedule V(g)\")","v":"Refer to Schedule V(g)"},null,{"$f":"Import!Q445","v":0}]
[]
[null,null,"General Business Provisions Additional Disclosures","Additional Details"]
[null,"Line 16(c) ","Adjustment for counterparty default ",{"$f":"IF('Company Information'!$F$11=\"IIGB\",HYPERLINK(\"#'Attachments'!G125\",\"Attach file With Details of Line Of Business\"),HYPERLINK(\"#'Attachments'!G175\",\"Attach file With Details of Line Of Business\"))","v":"Attach file With Details of Line Of Business"},null,{"$f":"Import!Q446","v":0}]
[null,"Line 17(c)-(i)","Adjustment for counterparty default ",{"$f":"IF('Company Information'!$F$11=\"IIGB\",HYPERLINK(\"#'Attachments'!G125\",\"Attach file\"),HYPERLINK(\"#'Attachments'!G175\",\"Attach file\"))","v":"Attach file"},null,{"$f":"Import!Q447","v":0}]
[null,"Line 16(d)-(i)","Premium included as Bound But Not Incepted","See and complete Sch III (EBS)",null,{"$f":"Import!Q448","v":0},null,{"$f":"'Schedule III'!J34","v":0}]
[null,"Line 16(d)-(ii)","Best estimate Premium included as Bound But Not Incepted","See and complete Sch III (EBS)",null,{"$f":"Import!Q449","v":0},null,{"$f":"'Schedule III'!K34","v":0}]
[null,"Line 17(d)-(i)","Loss and loss expense provision discount","See and complete Sch III (EBS)",null,{"$f":"Import!Q450","v":0},null,{"$f":"'Schedule III'!L34","v":0}]
[null,"Line 17(d)-(ii)","Scenario based approach loss and loss expense provision ",{"$f":"IF('Company Information'!$F$11=\"IIGB\",HYPERLINK(\"#'Attachments'!G125\",\"Attach file With Details\"),HYPERLINK(\"#'Attachments'!G175\",\"Attach file With Details\"))","v":"Attach file With Details"},null,{"$f":"Import!Q451","v":0}]
[]
[null,null,"General Business Reserves:"]
[null,"Line 17","Net best estimate loss and loss expense provisions at start of year",null,null,{"$f":"Import!Q452","v":0},null,{"$f":"Import!S452","v":0}]
[]
[null,null,"Unwind of discount (start year discount curve)",null,null,{"$f":"Import!Q453","v":0},null,{"$f":"Import!S453","v":0}]
[null,null,"Net losses and loss expenses paid or payable related to prior years",null,null,{"$f":"Import!Q454","v":0},null,{"$f":"Import!S454","v":0}]
[null,null,"Net losses incurred and net loss expenses incurred related to prior years",null,null,{"$f":"Import!Q455","v":0},null,{"$f":"Import!S455","v":0}]
[null,null,"Undiscounted net best estimate loss and loss expense provisions at end of year related to prior years.",null,null,{"$f":"SUM(F218:F222)","v":0},null,{"$f":"SUM(H218:H222)","v":0}]
[]
[null,null,"Net losses incurred and net loss expenses incurred related to current year",null,null,{"$f":"Import!Q457","v":0},null,{"$f":"Import!S457","v":0}]
[null,null,"Net losses and loss expenses paid or payable related to current year",null,null,{"$f":"Import!Q458","v":0},null,{"$f":"Import!S458","v":0}]
[null,null,"Foreign exchange and other adjustments",null,null,{"$f":"Import!Q459","v":0},null,{"$f":"Import!S459","v":0}]
[null,null,"Undiscounted net best estimate loss and loss expense provisions at end of year related to current year.",null,null,{"$f":"SUM(F225:F227)","v":0},null,{"$f":"SUM(H225:H227)","v":0}]
[]
[null,null,"Impact of change in discount curve",null,null,{"$f":"Import!Q461","v":0},null,{"$f":"Import!S461","v":0}]
[]
[null,null,"Net best estimate loss and loss expense provisions at end of year",null,null,{"$f":"F223+F228+F230","v":0},null,{"$f":"H223+H228+H230","v":0}]
[]
[null,null,null,null,null,{"$f":"IF(F235=\"TRUE\",HYPERLINK(\"#'Form 1EBS'!F115\",\"TRUE\"),HYPERLINK(\"#'Form 1EBS'!F115\",\"FALSE\"))","v":"TRUE"},null,{"$f":"IF(H235=\"TRUE\",HYPERLINK(\"#'Form 1EBS'!H115\",\"TRUE\"),HYPERLINK(\"#'Form 1EBS'!H115\",\"FALSE\"))","v":"TRUE"}]
[null,null,null,null,null,{"$f":"IF(ROUND((F232-F115),0)=0,\"TRUE\",\"FALSE\")","v":"TRUE"},null,{"$f":"IF(ROUND((H232-H115),0)=0,\"TRUE\",\"FALSE\")","v":"TRUE"}]
[null,null,null,null,null,{"$f":"IF(F232=0,0,ROUND(F115-F232,0))","v":0},null,{"$f":"IF(H232=0,0,ROUND(H115-H232,0))","v":0}]
[]
[null,null,null,null,null,{"$f":"IF(F234=\"False\",\"Does not equal Line 17(d)\",\"\")","v":""},null,{"$f":"IF(H234=\"False\",\"Does not equal Line 17(d)\",\"\")","v":""}]

{"sheet":"Schedule II (Unconsolidated)","index":23,"n_rows":68,"n_cols":22,"rows_kept":68,"cut":false,"hidden":false,"merged":[[51,3,51,5],[51,8,51,18],[52,11,52,13],[52,15,52,17],[54,3,54,5],[1,2,1,4],[2,3,2,5],[3,3,3,5],[6,3,6,5],[6,7,6,9],[6,19,6,21],[28,3,28,5],[28,7,28,9],[28,11,28,13],[28,19,28,21],[6,15,6,17],[6,11,6,13]]}
[null,"SCHEDULE OF FIXED INCOME & EQUITY INVESTMENTS BY BSCR RATING",null,null,null,null,null,null,null,null,null,null,null,null,null,null,null,null,null,null,null,{"$f":"HYPERLINK(\"#'Index'!A1\",\"Return to Index\")","v":"Return to Index"}]
[null,null,{"$f":"'Company Information'!C7","v":"Enter Company Name"}]
[null,null,"As at",{"$f":"'Company Information'!C3","v":"2022-12-31"},null,null,null,null,null,null,null,null,null,null,null,null,null,null,null,null,null,"SCHEDULE II"]
[null,null,{"$f":"\"expressed in\"& IF(CONFIGURATION!$B$12>1,\" ['\"&MID(CONFIGURATION!$B$12,2,LEN(CONFIGURATION!$B$12))&\"s]\",\"\")","v":"expressed in ['000s]"},{"$f":"'Form 1SFS (Unconsolidated)'!$C$5","v":"United States Dollars"}]
[]
[null,null,null,"(1)",null,"(2)",null,"(3)",null,"(4)",null,"(5)",null,"(6)",null,"(7)",null,"(8)",null,"(9)",null,"(10)"]
[null,null,null,"CORPORATE & SOVEREIGN BONDS",null,null,null,"RESIDENTIAL MORTGAGE-BACKED SECURITIES",null,null,null,"COMMERCIAL MORTGAGE-BACKED SECURITIES / ASSET-BACKED SECURITIES",null,null,null,"BOND MUTUAL FUNDS",null,null,null,"TOTAL\n[ Form 1SFS Lines 2(b) & 3(b)]"]
[null,null,null,{"$f":"'Form 1SFS (Unconsolidated)'!$E$9","v":"2022-12-31"},null,{"$f":"'Form 1SFS (Unconsolidated)'!$G$9","v":"2021-12-31"},null,{"$f":"'Form 1SFS (Unconsolidated)'!$E$9","v":"2022-12-31"},null,{"$f":"'Form 1SFS (Unconsolidated)'!$G$9","v":"2021-12-31"},null,{"$f":"'Form 1SFS (Unconsolidated)'!$E$9","v":"2022-12-31"},null,{"$f":"'Form 1SFS (Unconsolidated)'!$G$9","v":"2021-12-31"},null,{"$f":"'Form 1SFS (Unconsolidated)'!$E$9","v":"2022-12-31"},null,{"$f":"'Form 1SFS (Unconsolidated)'!$G$9","v":"2021-12-31"},null,{"$f":"'Form 1SFS (Unconsolidated)'!$E$9","v":"2022-12-31"},null,{"$f":"'Form 1SFS (Unconsolidated)'!$G$9","v":"2021-12-31"}]
[null,null,null,{"$f":"'Form 1SFS (Unconsolidated)'!$E$10","v":" ('000s)"},null,{"$f":"'Form 1SFS (Unconsolidated)'!$G$10","v":" ('000s)"},null,{"$f":"'Form 1SFS (Unconsolidated)'!$E$10","v":" ('000s)"},null,{"$f":"'Form 1SFS (Unconsolidated)'!$G$10","v":" ('000s)"},null,{"$f":"'Form 1SFS (Unconsolidated)'!$E$10","v":" ('000s)"},null,{"$f":"'Form 1SFS (Unconsolidated)'!$G$10","v":" ('000s)"},null,{"$f":"'Form 1SFS (Unconsolidated)'!$E$10","v":" ('000s)"},null,{"$f":"'Form 1SFS (Unconsolidated)'!$G$10","v":" ('000s)"},null,{"$f":"'Form 1SFS (Unconsolidated)'!$E$10","v":" ('000s)"},null,{"$f":"'Form 1SFS (Unconsolidated)'!$G$10","v":" ('000s)"}]
[null,"Line no. "]
[null,"Quoted and Unquoted Bonds and Debentures"]
[null,1,"BSCR Rating 0",{"$f":"Import!E500","v":0},null,{"$f":"Import!G500","v":0},null,null,null,null,null,null,null,null,null,{"$f":"Import!E525","v":0},null,{"$f":"Import!G525","v":0},null,{"$f":"D12+H12+L12+P12","v":0},null,{"$f":"F12+J12+N12+R12","v":0}]
[null,2,"BSCR Rating 1",{"$f":"Import!E501","v":0},null,{"$f":"Import!G501","v":0},null,{"$f":"Import!E509","v":0},null,{"$f":"Import!G509","v":0},null,{"$f":"Import!E517","v":0},null,{"$f":"Import!G517","v":0},null,{"$f":"Import!E526","v":0},null,{"$f":"Import!G526","v":0},null,{"$f":"D13+H13+L13+P13","v":0},null,0]
[null,3,"BSCR Rating 2",{"$f":"Import!E502","v":0},null,{"$f":"Import!G502","v":0},null,{"$f":"Import!E510","v":0},null,{"$f":"Import!G510","v":0},null,{"$f":"Import!E518","v":0},null,{"$f":"Import!G518","v":0},null,{"$f":"Import!E527","v":0},null,{"$f":"Import!G527","v":0},null,0,null,0]
[null,4,"BSCR Rating 3",{"$f":"Import!E503","v":0},null,{"$f":"Import!G503","v":0},null,{"$f":"Import!E511","v":0},null,{"$f":"Import!G511","v":0},null,{"$f":"Import!E519","v":0},null,{"$f":"Import!G519","v":0},null,{"$f":"Import!E528","v":0},null,{"$f":"Import!G528","v":0},null,0,null,0]
[null,5,"BSCR Rating 4",{"$f":"Import!E504","v":0},null,{"$f":"Import!G504","v":0},null,{"$f":"Import!E512","v":0},null,{"$f":"Import!G512","v":0},null,{"$f":"Import!E520","v":0},null,{"$f":"Import!G520","v":0},null,{"$f":"Import!E529","v":0},null,{"$f":"Import!G529","v":0},null,0,null,0]
[null,6,"BSCR Rating 5",{"$f":"Import!E505","v":0},null,{"$f":"Import!G505","v":0},null,{"$f":"Import!E513","v":0},null,{"$f":"Import!G513","v":0},null,{"$f":"Import!E521","v":0},null,{"$f":"Import!G521","v":0},null,{"$f":"Import!E530","v":0},null,{"$f":"Import!G530","v":0},null,0,null,0]
[null,7,"BSCR Rating 6",{"$f":"Import!E506","v":0},null,{"$f":"Import!G506","v":0},null,{"$f":"Import!E514","v":0},null,{"$f":"Import!G514","v":0},null,{"$f":"Import!E522","v":0},null,{"$f":"Import!G522","v":0},null,{"$f":"Import!E531","v":0},null,{"$f":"Import!G531","v":0},null,0,null,0]
[null,8,"BSCR Rating 7",{"$f":"Import!E507","v":0},null,{"$f":"Import!G507","v":0},null,{"$f":"Import!E515","v":0},null,{"$f":"Import!G515","v":0},null,{"$f":"Import!E523","v":0},null,{"$f":"Import!G523","v":0},null,{"$f":"Import!E532","v":0},null,{"$f":"Import!G532","v":0},null,0,null,0]
[null,9,"BSCR Rating 8",{"$f":"Import!E508","v":0},null,{"$f":"Import!G508","v":0},null,{"$f":"Import!E516","v":0},null,{"$f":"Import!G516","v":0},null,{"$f":"Import!E524","v":0},null,{"$f":"Import!G524","v":0},null,{"$f":"Import!E533","v":0},null,{"$f":"Import!G533","v":0},null,0,null,0]
[]
[null,10,"Total",{"$f":"SUM(D12:D20)","v":0},null,{"$f":"SUM(F12:F20)","v":0},null,{"$f":"SUM(H12:H20)","v":0},null,{"$f":"SUM(J12:J20)","v":0},null,{"$f":"SUM(L12:L20)","v":0},null,{"$f":"SUM(N12:N20)","v":0},null,{"$f":"SUM(P11:P20)","v":0},null,{"$f":"SUM(R11:R20)","v":0},null,{"$f":"SUM(T12:T20)","v":0},null,{"$f":"SUM(V12:V20)","v":0}]
[]
[null,null,null,null,null,null,null,null,null,null,null,null,null,null,null,null,null,null,null,{"$f":"IF(T25=\"TRUE\",HYPERLINK(\"#'Form 1SFS'!E16:M31\",\"TRUE\"),HYPERLINK(\"#'Form 1SFS'!E16:M31\",\"FALSE\"))","v":"TRUE"},null,{"$f":"IF(V25=\"TRUE\",HYPERLINK(\"#'Form 1SFS'!G16:O31\",\"TRUE\"),HYPERLINK(\"#'Form 1SFS'!G16:O31\",\"FALSE\"))","v":"TRUE"}]
[null,null,null,null,null,null,null,null,null,null,null,null,null,null,null,null,null,null,null,{"$f":"IF(ROUND((T22-('Form 1SFS (Consolidated)'!E18+'Form 1SFS (Consolidated)'!I18+'Form 1SFS (Consolidated)'!E35+'Form 1SFS (Consolidated)'!I35)),0)=0,\"TRUE\",\"FALSE\")","v":"TRUE"},null,{"$f":"IF(ROUND((V22-('Form 1SFS (Consolidated)'!G18+'Form 1SFS (Consolidated)'!K18+'Form 1SFS (Consolidated)'!G35+'Form 1SFS (Consolidated)'!K35)),0)=0,\"TRUE\",\"FALSE\")","v":"TRUE"}]
[null,null,"Difference",null,null,null,null,null,null,null,null,null,null,null,null," ",null,null,null,{"$f":"ROUND(('Form 1SFS (Consolidated)'!E18+'Form 1SFS (Consolidated)'!I18+'Form 1SFS (Consolidated)'!E35+'Form 1SFS (Consolidated)'!I35)-T22,0)","v":0},null,{"$f":"ROUND(('Form 1SFS (Consolidated)'!G18+'Form 1SFS (Consolidated)'!K18+'Form 1SFS (Consolidated)'!G35+'Form 1SFS (Consolidated)'!K35)-V22,0)","v":0}]
[]
[null,null,null,null,null,null,null,null,null,null,null,null,null,null,null,null,null,null,null,{"$f":"IF(T24=\"False\",\"Does not equal Form 1SFS Lines 2(b) & 3(b)\",\"\")","v":""},null,{"$f":"IF(V24=\"False\",\"Does not equal Form 1SFS Lines 2(b) & 3(b)\",\"\")","v":""}]
[null,null,null,"COMMON STOCK\n[ Form 1SFS Lines 2(c)(i) & 3(c)(i) ]",null,null,null,"PREFERRED STOCK\n[ Form 1SFS Lines 2(c)(ii) & 3(c)(ii) ]",null,null,null,"EQUITY MUTUAL FUNDS\n[ Form 1SFS Lines 2(c)(iii) & 3(c)(iii) ]",null,null,null,null,null,null,null,"TOTAL\n[ Form 1SFS Lines 2(d) & 3(d)]"]
[null,null,null,{"$f":"'Form 1SFS (Unconsolidated)'!$E$9","v":"2022-12-31"},null,{"$f":"'Form 1SFS (Unconsolidated)'!$G$9","v":"2021-12-31"},null,{"$f":"'Form 1SFS (Unconsolidated)'!$E$9","v":"2022-12-31"},null,{"$f":"'Form 1SFS (Unconsolidated)'!$G$9","v":"2021-12-31"},null,{"$f":"'Form 1SFS (Unconsolidated)'!$E$9","v":"2022-12-31"},null,{"$f":"'Form 1SFS (Unconsolidated)'!$G$9","v":"2021-12-31"},null,null,null,null,null,{"$f":"'Form 1SFS (Unconsolidated)'!$E$9","v":"2022-12-31"},null,{"$f":"'Form 1SFS (Unconsolidated)'!$G$9","v":"2021-12-31"}]
[null,null,null,{"$f":"'Form 1SFS (Unconsolidated)'!$E$10","v":" ('000s)"},null,{"$f":"'Form 1SFS (Unconsolidated)'!$G$10","v":" ('000s)"},null,{"$f":"'Form 1SFS (Unconsolidated)'!$E$10","v":" ('000s)"},null,{"$f":"'Form 1SFS (Unconsolidated)'!$G$10","v":" ('000s)"},null,{"$f":"'Form 1SFS (Unconsolidated)'!$E$10","v":" ('000s)"},null,{"$f":"'Form 1SFS (Unconsolidated)'!$G$10","v":" ('000s)"},null,null,null,null,null,{"$f":"'Form 1SFS (Unconsolidated)'!$E$10","v":" ('000s)"},null,{"$f":"'Form 1SFS (Unconsolidated)'!$G$10","v":" ('000s)"}]
[null,"Quoted and Unquoted Equities"]
[null,11,"BSCR Rating 1",null,null,null,null,{"$f":"Import!E536","v":0},null,{"$f":"Import!G536","v":0},null,null,null,null,null,null,null,null,null,{"$f":"D33+H33+L33","v":0},null,0]
[null,12,"BSCR Rating 2",null,null,null,null,{"$f":"Import!E537","v":0},null,{"$f":"Import!G537","v":0},null,null,null,null,null,null,null,null,null,0,null,0]
[null,13,"BSCR Rating 3",null,null,null,null,{"$f":"Import!E538","v":0},null,{"$f":"Import!G538","v":0},null,null,null,null,null,null,null,null,null,0,null,0]
[null,14,"BSCR Rating 4",null,null,null,null,{"$f":"Import!E539","v":0},null,{"$f":"Import!G539","v":0},null,null,null,null,null,null,null,null,null,0,null,0]
[null,15,"BSCR Rating 5",null,null,null,null,{"$f":"Import!E540","v":0},null,{"$f":"Import!G540","v":0},null,null,null,null,null,null,null,null,null,0,null,0]
[null,16,"BSCR Rating 6",null,null,null,null,{"$f":"Import!E541","v":0},null,{"$f":"Import!G541","v":0},null,null,null,null,null,null,null,null,null,0,null,0]
[null,17,"BSCR Rating 7",null,null,null,null,{"$f":"Import!E542","v":0},null,{"$f":"Import!G542","v":0},null,null,null,null,null,null,null,null,null,0,null,0]
[null,18,"BSCR Rating 8",null,null,null,null,{"$f":"Import!E543","v":0},null,{"$f":"Import!G543","v":0},null,null,null,null,null,null,null,null,null,0,null,0]
[null,19,"Quoted Equity Funds",{"$f":"'Form 1SFS (Consolidated)'!E20+'Form 1SFS (Consolidated)'!I20","v":0},null,{"$f":"'Form 1SFS (Consolidated)'!G20+'Form 1SFS (Consolidated)'!K20","v":0},null,null,null,null,null,{"$f":"'Form 1SFS (Consolidated)'!E22+'Form 1SFS (Consolidated)'!I22","v":0},null,{"$f":"'Form 1SFS (Consolidated)'!G22+'Form 1SFS (Consolidated)'!K22","v":0},null,null,null,null,null,{"$f":"D41+H41+L41","v":0},null,{"$f":"F41+J41+N41","v":0}]
[null,20,"Unquoted Equity Funds",{"$f":"'Form 1SFS (Consolidated)'!E37+'Form 1SFS (Consolidated)'!I37","v":0},null,{"$f":"'Form 1SFS (Consolidated)'!G37+'Form 1SFS (Consolidated)'!K37","v":0},null,null,null,null,null,{"$f":"'Form 1SFS (Consolidated)'!E39+'Form 1SFS (Consolidated)'!I39","v":0},null,{"$f":"'Form 1SFS (Consolidated)'!G39+'Form 1SFS (Consolidated)'!K39","v":0},null,null,null,null,null,{"$f":"D42+H42+L42","v":0},null,0]
[]
[null,21,"Total",{"$f":"SUM(D33:D42)","v":0},null,{"$f":"SUM(F33:F42)","v":0},null,{"$f":"SUM(H33:H42)","v":0},null,{"$f":"SUM(J33:J42)","v":0},null,{"$f":"SUM(L32:L42)","v":0},null,{"$f":"SUM(N32:N42)","v":0},null,null,null,null,null,{"$f":"SUM(T33:T42)","v":0},null,{"$f":"SUM(V33:V42)","v":0}]
[]
[null,null,null,{"$f":"IF(D47=\"TRUE\",HYPERLINK(\"#'Form 1SFS'!E20:M33\",\"TRUE\"),HYPERLINK(\"#'Form 1SFS'!E20:M33\",\"FALSE\"))","v":"TRUE"},null,{"$f":"IF(F47=\"TRUE\",HYPERLINK(\"#'Form 1SFS'!G20:O33\",\"TRUE\"),HYPERLINK(\"#'Form 1SFS'!G20:O33\",\"FALSE\"))","v":"TRUE"},null,{"$f":"IF(H47=\"TRUE\",HYPERLINK(\"#'Form 1SFS'!E21:M34\",\"TRUE\"),HYPERLINK(\"#'Form 1SFS'!E21:M34\",\"FALSE\"))","v":"TRUE"},null,{"$f":"IF(J47=\"TRUE\",HYPERLINK(\"#'Form 1SFS'!G21:O34\",\"TRUE\"),HYPERLINK(\"#'Form 1SFS'!G21:O34\",\"FALSE\"))","v":"TRUE"},null,{"$f":"IF(L47=\"TRUE\",HYPERLINK(\"#'Form 1SFS'!E22:M35\",\"TRUE\"),HYPERLINK(\"#'Form 1SFS'!E22:M35\",\"FALSE\"))","v":"TRUE"},null,{"$f":"IF(N47=\"TRUE\",HYPERLINK(\"#'Form 1SFS'!G22:O35\",\"TRUE\"),HYPERLINK(\"#'Form 1SFS'!G22:O35\",\"FALSE\"))","v":"TRUE"},null,null,null,null,null,{"$f":"IF(T47=\"TRUE\",HYPERLINK(\"#'Form 1SFS'!E20:M36\",\"TRUE\"),HYPERLINK(\"#'Form 1SFS'!E20:M36\",\"FALSE\"))","v":"TRUE"},null,{"$f":"IF(V47=\"TRUE\",HYPERLINK(\"#'Form 1SFS'!G20:O36\",\"TRUE\"),HYPERLINK(\"#'Form 1SFS'!G20:O36\",\"FALSE\"))","v":"TRUE"}]
[null,null,null,{"$f":"IF(ROUND(D44-('Form 1SFS (Consolidated)'!E20+'Form 1SFS (Consolidated)'!E37+'Form 1SFS (Consolidated)'!I20+'Form 1SFS (Consolidated)'!I37),0)=0,\"TRUE\",\"FALSE\")","v":"TRUE"},null,{"$f":"IF(ROUND(F44-('Form 1SFS (Consolidated)'!G20+'Form 1SFS (Consolidated)'!G37+'Form 1SFS (Consolidated)'!K20+'Form 1SFS (Consolidated)'!K37),0)=0,\"TRUE\",\"FALSE\")","v":"TRUE"},null,{"$f":"IF(ROUND(H44-('Form 1SFS (Consolidated)'!E21+'Form 1SFS (Consolidated)'!I21+'Form 1SFS (Consolidated)'!E38+'Form 1SFS (Consolidated)'!I38),0)=0,\"TRUE\",\"FALSE\")","v":"TRUE"},null,{"$f":"IF(ROUND(J44-('Form 1SFS (Consolidated)'!G21+'Form 1SFS (Consolidated)'!K21+'Form 1SFS (Consolidated)'!G38+'Form 1SFS (Consolidated)'!K38),0)=0,\"TRUE\",\"FALSE\")","v":"TRUE"},null,{"$f":"IF(ROUND(L44-('Form 1SFS (Consolidated)'!E22+'Form 1SFS (Consolidated)'!E39+'Form 1SFS (Consolidated)'!I22+'Form 1SFS (Consolidated)'!I39),0)=0,\"TRUE\",\"FALSE\")","v":"TRUE"},null,{"$f":"IF(ROUND(N44-('Form 1SFS (Consolidated)'!G22+'Form 1SFS (Consolidated)'!G39+'Form 1SFS (Consolidated)'!K22+'Form 1SFS (Consolidated)'!K39),0)=0,\"TRUE\",\"FALSE\")","v":"TRUE"},null,null,null,null,null,{"$f":"IF(ROUND(T44-('Form 1SFS (Consolidated)'!E23+'Form 1SFS (Consolidated)'!I23+'Form 1SFS (Consolidated)'!E40+'Form 1SFS (Consolidated)'!I40),0)=0,\"TRUE\",\"FALSE\")","v":"TRUE"},null,{"$f":"IF(ROUND(V44-('Form 1SFS (Consolidated)'!G23+'Form 1SFS (Consolidated)'!K23+'Form 1SFS (Consolidated)'!G40+'Form 1SFS (Consolidated)'!K40),0)=0,\"TRUE\",\"FALSE\")","v":"TRUE"}]
[null,null,null,{"$f":"ROUND(('Form 1SFS (Consolidated)'!E20+'Form 1SFS (Consolidated)'!E37+'Form 1SFS (Consolidated)'!I20+'Form 1SFS (Consolidated)'!I37)-D44,0)","v":0},null,{"$f":"ROUND(('Form 1SFS (Consolidated)'!G20+'Form 1SFS (Consolidated)'!G37+'Form 1SFS (Consolidated)'!K20+'Form 1SFS (Consolidated)'!K37)-F44,0)","v":0},null,{"$f":"ROUND(('Form 1SFS (Consolidated)'!E21+'Form 1SFS (Consolidated)'!I21+'Form 1SFS (Consolidated)'!E38+'Form 1SFS (Consolidated)'!I38)-H44,0)","v":0},null,{"$f":"ROUND(('Form 1SFS (Consolidated)'!G21+'Form 1SFS (Consolidated)'!K21+'Form 1SFS (Consolidated)'!G38+'Form 1SFS (Consolidated)'!K38)-J44,0)","v":0},null,{"$f":"ROUND(('Form 1SFS (Consolidated)'!E22+'Form 1SFS (Consolidated)'!E39+'Form 1SFS (Consolidated)'!I22+'Form 1SFS (Consolidated)'!I39)-L44,0)","v":0},null,{"$f":"ROUND(('Form 1SFS (Consolidated)'!G22+'Form 1SFS (Consolidated)'!G39+'Form 1SFS (Consolidated)'!K22+'Form 1SFS (Consolidated)'!K39)-N44,0)","v":0},null,null,null,null,null,{"$f":"ROUND(('Form 1SFS (Consolidated)'!E23+'Form 1SFS (Consolidated)'!I23+'Form 1SFS (Consolidated)'!E40+'Form 1SFS (Consolidated)'!I40)-T44,0)","v":0},null,{"$f":"ROUND(('Form 1SFS (Consolidated)'!G23+'Form 1SFS (Consolidated)'!K23+'Form 1SFS (Consolidated)'!G40+'Form 1SFS (Consolidated)'!K40)-V44,0)","v":0}]
[]
[null,null,null,{"$f":"IF(D46=\"False\",\"Does not equal Form 1SFS Lines 2(c)(i) & 3(c)(i)\",\"\")","v":""},null,{"$f":"IF(F46=\"False\",\"Does not equal Form 1SFS Lines 2(c)(i) & 3(c)(i)\",\"\")","v":""},null,{"$f":"IF(H46=\"False\",\"Does not equal Form 1SFS Lines 2(c)(ii) & 3(c)(ii)\",\"\")","v":""},null,{"$f":"IF(J46=\"False\",\"Does not equal Form 1SFS Lines 2(c)(ii) & 3(c)(ii)\",\"\")","v":""},null,{"$f":"IF(L46=\"False\",\"Does not equal Form 1SFS Lines 2(c)(iii) & 3(c)(iii)\",\"\")","v":""},null,{"$f":"IF(N46=\"False\",\"Does not equal Form 1SFS Lines 2(c)(iii) & 3(c)(iii)\",\"\")","v":""},null,null,null,null,null,{"$f":"IF(T46=\"False\",\"Does not equal Form 1SFS Lines 2(d) & 3(d)\",\"\")","v":""},null,{"$f":"IF(V46=\"False\",\"Does not equal Form 1SFS Lines 2(d) & 3(d)\",\"\")","v":""}]
[]
[null,null,null,"MORTGAGE LOANS\n[ Form 1SFS Lines 5(c) ]",null,null,null,null,"This section is only applicable to companies that have mortgage-backed securities that have been reclassified in accordance with the NAIC and that elect to use NAIC reclassifications to map to the BSCR classes"]
[null,null,null,{"$f":"'Form 1SFS (Unconsolidated)'!$E$9","v":"2022-12-31"},null,{"$f":"'Form 1SFS (Unconsolidated)'!$G$9","v":"2021-12-31"},null,null,null,null,null,"Values of Residential Mortgage-Backed Securities",null,null,null,"Values of Commercial Mortgage-backed Securities/Asset-Backed Securities"]
[null,null,null,{"$f":"'Form 1SFS (Unconsolidated)'!$E$10","v":" ('000s)"},null,{"$f":"'Form 1SFS (Unconsolidated)'!$G$10","v":" ('000s)"},null,null,null,null,null,"Original Classification",null,"Revised Classification",null,"Original Classification",null,"Revised Classification"]
[null,null,null,null,null,null,null,null,null,"NAIC Class 1",null,{"$f":"Import!E550","v":0},null,{"$f":"Import!E557","v":0},null,{"$f":"Import!E564","v":0},null,{"$f":"Import!E571","v":0}]
[null,"Mortgage Loans",null,null,null,null,null,null,null,"NAIC Class 2",null,{"$f":"Import!E551","v":0},null,{"$f":"Import!E558","v":0},null,{"$f":"Import!E565","v":0},null,{"$f":"Import!E572","v":0}]
[null,22,"Insured/Guaranteed Mortgages",{"$f":"Import!E546","v":0},null,{"$f":"Import!G546","v":0},null,null,null,"NAIC Class 3",null,{"$f":"Import!E552","v":0},null,{"$f":"Import!E559","v":0},null,{"$f":"Import!E566","v":0},null,{"$f":"Import!E573","v":0}]
[null,23,"Other Commercial and Farm Mortgages",{"$f":"Import!E547","v":0},null,{"$f":"Import!G547","v":0},null,null,null,"NAIC Class 4",null,{"$f":"Import!E553","v":0},null,{"$f":"Import!E560","v":0},null,{"$f":"Import!E567","v":0},null,{"$f":"Import!E574","v":0}]
[null,24,"Other Residential Mortgages",{"$f":"Import!E548","v":0},null,{"$f":"Import!G548","v":0},null,null,null,"NAIC Class 5",null,{"$f":"Import!E554","v":0},null,{"$f":"Import!E561","v":0},null,{"$f":"Import!E568","v":0},null,{"$f":"Import!E575","v":0}]
[null,25,"Mortgages Not In Good Standing",{"$f":"Import!E549","v":0},null,{"$f":"Import!G549","v":0},null,null,null,"NAIC Class 6",null,{"$f":"Import!E555","v":0},null,{"$f":"Import!E562","v":0},null,{"$f":"Import!E569","v":0},null,{"$f":"Import!E576","v":0}]
[]
[null,26,"Total",{"$f":"SUM(D57:D60)","v":0},null,{"$f":"SUM(F57:F60)","v":0},null,null,null,null,null,{"$f":"SUM(L55:L60)","v":0},null,{"$f":"SUM(N55:N60)","v":0},null,{"$f":"SUM(P55:P60)","v":0},null,{"$f":"SUM(R55:R60)","v":0}]
[]
[null,null,null,{"$f":"IF(D65=\"TRUE\",HYPERLINK(\"#'Form 1SFS'!E53:M53\",\"TRUE\"),HYPERLINK(\"#'Form 1SFS'!E53:M53\",\"FALSE\"))","v":"TRUE"},null,{"$f":"IF(F65=\"TRUE\",HYPERLINK(\"#'Form 1SFS'!G53:O53\",\"TRUE\"),HYPERLINK(\"#'Form 1SFS'!G53:O53\",\"FALSE\"))","v":"TRUE"},null,null,null,{"$f":"IF('Company Information'!$F$11=\"Class 3A\",HYPERLINK(\"#'Attachments'!G45\",\"Attach file\"),HYPERLINK(\"#'Attachments'!G65\",\"Attach file\"))","v":"Attach file"}]
[null,null,null,{"$f":"IF(ROUND((D62-('Form 1SFS (Consolidated)'!E53+'Form 1SFS (Consolidated)'!I53)),0)=0,\"TRUE\",\"FALSE\")","v":"TRUE"},null,{"$f":"IF(ROUND((F62-('Form 1SFS (Consolidated)'!G53+'Form 1SFS (Consolidated)'!K53)),0)=0,\"TRUE\",\"FALSE\")","v":"TRUE"}]
[null,null,null,{"$f":"ROUND(('Form 1SFS (Consolidated)'!E53+'Form 1SFS (Consolidated)'!I53)-D62,0)","v":0},null,{"$f":"ROUND(('Form 1SFS (Consolidated)'!G53+'Form 1SFS (Consolidated)'!K53)-F62,0)","v":0}]
[]
[null,null,null,{"$f":"IF(D64=\"False\",\"Does not equal Form 1SFS Line 5(c)\",\"\")","v":""},null,{"$f":"IF(F64=\"False\",\"Does not equal Form 1SFS Line 5(c)\",\"\")","v":""}]

{"sheet":"Schedule II","index":24,"n_rows":68,"n_cols":22,"rows_kept":68,"cut":false,"hidden":true,"merged":[[6,19,6,21],[28,3,28,5],[28,7,28,9],[28,11,28,13],[28,19,28,21],[52,15,52,17],[54,3,54,5],[2,3,2,5],[3,3,3,5],[1,2,1,4],[6,3,6,5],[6,7,6,9],[6,11,6,13],[6,15,6,17],[51,3,51,5],[51,8,51,18],[52,11,52,13]]}
[null,"SCHEDULE OF FIXED INCOME & EQUITY INVESTMENTS BY BSCR RATING",null,null,null,null,null,null,null,null,null,null,null,null,null,null,null,null,null,null,null,{"$f":"HYPERLINK(\"#'Index'!A1\",\"Return to Index\")","v":"Return to Index"}]
[null,null,{"$f":"'Company Information'!C7","v":"Enter Company Name"}]
[null,null,"As at",{"$f":"'Company Information'!C3","v":"2022-12-31"},null,null,null,null,null,null,null,null,null,null,null,null,null,null,null,null,null,"SCHEDULE II (EBS)"]
[null,null,{"$f":"\"expressed in\"& IF(CONFIGURATION!$B$12>1,\" ['\"&MID(CONFIGURATION!$B$12,2,LEN(CONFIGURATION!$B$12))&\"s]\",\"\")","v":"expressed in ['000s]"},{"$f":"'Form 1EBS'!C4","v":"United States Dollars"}]
[]
[null,null,null,"(1)",null,"(2)",null,"(3)",null,"(4)",null,"(5)",null,"(6)",null,"(7)",null,"(8)",null,"(9)",null,"(10)"]
[null,null,null,"CORPORATE & SOVEREIGN BONDS",null,null,null,"RESIDENTIAL MORTGAGE-BACKED SECURITIES",null,null,null,"COMMERCIAL MORTGAGE-BACKED SECURITIES / ASSET-BACKED SECURITIES",null,null,null,"BOND MUTUAL FUNDS",null,null,null,"TOTAL\n[ Form 1SFS Lines 2(b) & 3(b)]"]
[null,null,null,{"$f":"+'Form 1EBS'!$F$7","v":"2022-12-31"},null,{"$f":"+'Form 1EBS'!$H$7","v":"2021-12-31"},null,{"$f":"+'Form 1EBS'!$F$7","v":"2022-12-31"},null,{"$f":"+'Form 1EBS'!$H$7","v":"2021-12-31"},null,{"$f":"+'Form 1EBS'!$F$7","v":"2022-12-31"},null,{"$f":"+'Form 1EBS'!$H$7","v":"2021-12-31"},null,{"$f":"+'Form 1EBS'!$F$7","v":"2022-12-31"},null,{"$f":"+'Form 1EBS'!$H$7","v":"2021-12-31"},null,{"$f":"+'Form 1EBS'!$F$7","v":"2022-12-31"},null,{"$f":"+'Form 1EBS'!$H$7","v":"2021-12-31"}]
[null,null,null,{"$f":"+'Form 1EBS'!$F$8","v":" ('000s)"},null,{"$f":"+'Form 1EBS'!$H$8","v":" ('000s)"},null,{"$f":"+'Form 1EBS'!$F$8","v":" ('000s)"},null,{"$f":"+'Form 1EBS'!$H$8","v":" ('000s)"},null,{"$f":"+'Form 1EBS'!$F$8","v":" ('000s)"},null,{"$f":"+'Form 1EBS'!$H$8","v":" ('000s)"},null,{"$f":"+'Form 1EBS'!$F$8","v":" ('000s)"},null,{"$f":"+'Form 1EBS'!$H$8","v":" ('000s)"},null,{"$f":"+'Form 1EBS'!$F$8","v":" ('000s)"},null,{"$f":"+'Form 1EBS'!$H$8","v":" ('000s)"}]
[null,"Line no. "]
[null,"Quoted and Unquoted Bonds and Debentures"]
[null,1,"BSCR Rating 0",{"$f":"Import!M500","v":0},null,{"$f":"Import!O500","v":0},null,null,null,null,null,null,null,null,null,{"$f":"Import!M525","v":0},null,{"$f":"Import!O525","v":0},null,{"$f":"D12+H12+L12+P12","v":0},null,{"$f":"F12+J12+N12+R12","v":0}]
[null,2,"BSCR Rating 1",{"$f":"Import!M501","v":0},null,{"$f":"Import!O501","v":0},null,{"$f":"Import!M509","v":0},null,{"$f":"Import!O509","v":0},null,{"$f":"Import!M517","v":0},null,{"$f":"Import!O517","v":0},null,{"$f":"Import!M526","v":0},null,{"$f":"Import!O526","v":0},null,{"$f":"D13+H13+L13+P13","v":0},null,0]
[null,3,"BSCR Rating 2",{"$f":"Import!M502","v":0},null,{"$f":"Import!O502","v":0},null,{"$f":"Import!M510","v":0},null,{"$f":"Import!O510","v":0},null,{"$f":"Import!M518","v":0},null,{"$f":"Import!O518","v":0},null,{"$f":"Import!M527","v":0},null,{"$f":"Import!O527","v":0},null,0,null,0]
[null,4,"BSCR Rating 3",{"$f":"Import!M503","v":0},null,{"$f":"Import!O503","v":0},null,{"$f":"Import!M511","v":0},null,{"$f":"Import!O511","v":0},null,{"$f":"Import!M519","v":0},null,{"$f":"Import!O519","v":0},null,{"$f":"Import!M528","v":0},null,{"$f":"Import!O528","v":0},null,0,null,0]
[null,5,"BSCR Rating 4",{"$f":"Import!M504","v":0},null,{"$f":"Import!O504","v":0},null,{"$f":"Import!M512","v":0},null,{"$f":"Import!O512","v":0},null,{"$f":"Import!M520","v":0},null,{"$f":"Import!O520","v":0},null,{"$f":"Import!M529","v":0},null,{"$f":"Import!O529","v":0},null,0,null,0]
[null,6,"BSCR Rating 5",{"$f":"Import!M505","v":0},null,{"$f":"Import!O505","v":0},null,{"$f":"Import!M513","v":0},null,{"$f":"Import!O513","v":0},null,{"$f":"Import!M521","v":0},null,{"$f":"Import!O521","v":0},null,{"$f":"Import!M530","v":0},null,{"$f":"Import!O530","v":0},null,0,null,0]
[null,7,"BSCR Rating 6",{"$f":"Import!M506","v":0},null,{"$f":"Import!O506","v":0},null,{"$f":"Import!M514","v":0},null,{"$f":"Import!O514","v":0},null,{"$f":"Import!M522","v":0},null,{"$f":"Import!O522","v":0},null,{"$f":"Import!M531","v":0},null,{"$f":"Import!O531","v":0},null,0,null,0]
[null,8,"BSCR Rating 7",{"$f":"Import!M507","v":0},null,{"$f":"Import!O507","v":0},null,{"$f":"Import!M515","v":0},null,{"$f":"Import!O515","v":0},null,{"$f":"Import!M523","v":0},null,{"$f":"Import!O523","v":0},null,{"$f":"Import!M532","v":0},null,{"$f":"Import!O532","v":0},null,0,null,0]
[null,9,"BSCR Rating 8",{"$f":"Import!M508","v":0},null,{"$f":"Import!O508","v":0},null,{"$f":"Import!M516","v":0},null,{"$f":"Import!O516","v":0},null,{"$f":"Import!M524","v":0},null,{"$f":"Import!O524","v":0},null,{"$f":"Import!M533","v":0},null,{"$f":"Import!O533","v":0},null,0,null,0]
[]
[null,10,"Total",{"$f":"SUM(D12:D20)","v":0},null,{"$f":"SUM(F12:F20)","v":0},null,{"$f":"SUM(H12:H20)","v":0},null,{"$f":"SUM(J12:J20)","v":0},null,{"$f":"SUM(L12:L20)","v":0},null,{"$f":"SUM(N12:N20)","v":0},null,{"$f":"SUM(P11:P20)","v":0},null,{"$f":"SUM(R11:R20)","v":0},null,{"$f":"SUM(T12:T20)","v":0},null,{"$f":"SUM(V12:V20)","v":0}]
[]
[null,null,null,null,null,null,null,null,null,null,null,null,null,null,null,null,null,null,null,{"$f":"IF(T25=\"TRUE\",HYPERLINK(\"#'Form 1SFS (Consolidated)'!M18:M35\",\"TRUE\"),HYPERLINK(\"#'Form 1SFS (Consolidated)'!M18:M35\",\"FALSE\"))","v":"TRUE"},null,{"$f":"IF(V25=\"TRUE\",HYPERLINK(\"#'Form 1SFS (Consolidated)'!O18:O35\",\"TRUE\"),HYPERLINK(\"#'Form 1SFS (Consolidated)'!O18:O35\",\"FALSE\"))","v":"TRUE"}]
[null,null,null,null,null,null,null,null,null,null,null,null,null,null,null,null,null,null,null,{"$f":"IF((ROUND((T22-('Form 1SFS (Consolidated)'!M18+'Form 1SFS (Consolidated)'!M35)),0))=0,\"TRUE\",\"FALSE\")","v":"TRUE"},null,{"$f":"IF((ROUND((V22-('Form 1SFS (Consolidated)'!O18+'Form 1SFS (Consolidated)'!O35)),0))=0,\"TRUE\",\"FALSE\")","v":"TRUE"}]
[null,null,"Difference",null,null,null,null,null,null,null,null,null,null,null,null," ",null,null,null,{"$f":"ROUND(('Form 1SFS (Consolidated)'!M18+'Form 1SFS (Consolidated)'!M35)-T22,0)","v":0},null,{"$f":"ROUND(('Form 1SFS (Consolidated)'!O18+'Form 1SFS (Consolidated)'!O35)-V22,0)","v":0}]
[]
[null,null,null,null,null,null,null,null,null,null,null,null,null,null,null,null,null,null,null,{"$f":"IF(T24=\"False\",\"Does not equal Form 1EBS Lines 2(b) & 3(b)\",\"\")","v":""},null,{"$f":"IF(V24=\"False\",\"Does not equal Form 1EBS Lines 2(b) & 3(b)\",\"\")","v":""}]
[null,null,null,"COMMON STOCK\n[ Form 1SFS Lines 2(c)(i) & 3(c)(i) ]",null,null,null,"PREFERRED STOCK\n[ Form 1SFS Lines 2(c)(ii) & 3(c)(ii) ]",null,null,null,"EQUITY MUTUAL FUNDS\n[ Form 1SFS Lines 2(c)(iii) & 3(c)(iii) ]",null,null,null,null,null,null,null,"TOTAL\n[ Form 1SFS Lines 2(d) & 3(d)]"]
[null,null,null,{"$f":"+'Form 1EBS'!$F$7","v":"2022-12-31"},null,{"$f":"+'Form 1EBS'!$H$7","v":"2021-12-31"},null,{"$f":"+'Form 1EBS'!$F$7","v":"2022-12-31"},null,{"$f":"+'Form 1EBS'!$H$7","v":"2021-12-31"},null,{"$f":"+'Form 1EBS'!$F$7","v":"2022-12-31"},null,{"$f":"+'Form 1EBS'!$H$7","v":"2021-12-31"},null,null,null,null,null,{"$f":"+'Form 1EBS'!$F$7","v":"2022-12-31"},null,{"$f":"+'Form 1EBS'!$H$7","v":"2021-12-31"}]
[null,null,null,{"$f":"+'Form 1EBS'!$F$8","v":" ('000s)"},null,{"$f":"+'Form 1EBS'!$H$8","v":" ('000s)"},null,{"$f":"+'Form 1EBS'!$F$8","v":" ('000s)"},null,{"$f":"+'Form 1EBS'!$H$8","v":" ('000s)"},null,{"$f":"+'Form 1EBS'!$F$8","v":" ('000s)"},null,{"$f":"+'Form 1EBS'!$H$8","v":" ('000s)"},null,null,null,null,null,{"$f":"+'Form 1EBS'!$F$8","v":" ('000s)"},null,{"$f":"+'Form 1EBS'!$H$8","v":" ('000s)"}]
[null,"Quoted and Unquoted Equities"]
[null,11,"BSCR Rating 1",null,null,null,null,{"$f":"Import!M536","v":0},null,{"$f":"Import!O536","v":0},null,null,null,null,null,null,null,null,null,{"$f":"D33+H33+L33","v":0},null,0]
[null,12,"BSCR Rating 2",null,null,null,null,{"$f":"Import!M537","v":0},null,{"$f":"Import!O537","v":0},null,null,null,null,null,null,null,null,null,0,null,0]
[null,13,"BSCR Rating 3",null,null,null,null,{"$f":"Import!M538","v":0},null,{"$f":"Import!O538","v":0},null,null,null,null,null,null,null,null,null,0,null,0]
[null,14,"BSCR Rating 4",null,null,null,null,{"$f":"Import!M539","v":0},null,{"$f":"Import!O539","v":0},null,null,null,null,null,null,null,null,null,0,null,0]
[null,15,"BSCR Rating 5",null,null,null,null,{"$f":"Import!M540","v":0},null,{"$f":"Import!O540","v":0},null,null,null,null,null,null,null,null,null,0,null,0]
[null,16,"BSCR Rating 6",null,null,null,null,{"$f":"Import!M541","v":0},null,{"$f":"Import!O541","v":0},null,null,null,null,null,null,null,null,null,0,null,0]
[null,17,"BSCR Rating 7",null,null,null,null,{"$f":"Import!M542","v":0},null,{"$f":"Import!O542","v":0},null,null,null,null,null,null,null,null,null,0,null,0]
[null,18,"BSCR Rating 8",null,null,null,null,{"$f":"Import!M543","v":0},null,{"$f":"Import!O543","v":0},null,null,null,null,null,null,null,null,null,0,null,0]
[null,19,"Quoted Equity Funds",{"$f":"'Form 1SFS (Consolidated)'!M20","v":0},null,{"$f":"'Form 1SFS (Consolidated)'!O20","v":0},null,null,null,null,null,{"$f":"'Form 1SFS (Consolidated)'!M22","v":0},null,{"$f":"'Form 1SFS (Consolidated)'!O22","v":0},null,null,null,null,null,{"$f":"D41+H41+L41","v":0},null,{"$f":"F41+J41+N41","v":0}]
[null,20,"Unquoted Equity Funds",{"$f":"'Form 1SFS (Consolidated)'!M37","v":0},null,{"$f":"'Form 1SFS (Consolidated)'!O37","v":0},null,null,null,null,null,{"$f":"'Form 1SFS (Consolidated)'!M39","v":0},null,{"$f":"'Form 1SFS (Consolidated)'!O39","v":0},null,null,null,null,null,{"$f":"D42+H42+L42","v":0},null,0]
[]
[null,21,"Total",{"$f":"SUM(D33:D42)","v":0},null,{"$f":"SUM(F33:F42)","v":0},null,{"$f":"SUM(H33:H42)","v":0},null,{"$f":"SUM(J33:J42)","v":0},null,{"$f":"SUM(L32:L42)","v":0},null,{"$f":"SUM(N32:N42)","v":0},null,null,null,null,null,{"$f":"SUM(T33:T42)","v":0},null,{"$f":"SUM(V33:V42)","v":0}]
[]
[null,null,null,{"$f":"IF(D47=\"TRUE\",HYPERLINK(\"#'Form 1SFS (Consolidated)'!M20:M37\",\"TRUE\"),HYPERLINK(\"#'Form 1SFS (Consolidated)'!M20:M37\",\"FALSE\"))","v":"TRUE"},null,{"$f":"IF(F47=\"TRUE\",HYPERLINK(\"#'Form 1SFS (Consolidated)'!O20:O37\",\"TRUE\"),HYPERLINK(\"#'Form 1SFS (Consolidated)'!O20:O37\",\"FALSE\"))","v":"TRUE"},null,{"$f":"IF(H47=\"TRUE\",HYPERLINK(\"#'Form 1SFS (Consolidated)'!M21:M38\",\"TRUE\"),HYPERLINK(\"#'Form 1SFS (Consolidated)'!M21:M38\",\"FALSE\"))","v":"TRUE"},null,{"$f":"IF(J47=\"TRUE\",HYPERLINK(\"#'Form 1SFS (Consolidated)'!O21:O38\",\"TRUE\"),HYPERLINK(\"#'Form 1SFS (Consolidated)'!O21:O38\",\"FALSE\"))","v":"TRUE"},null,{"$f":"IF(L47=\"TRUE\",HYPERLINK(\"#'Form 1SFS (Consolidated)'!M22:M39\",\"TRUE\"),HYPERLINK(\"#'Form 1SFS (Consolidated)'!M22:M39\",\"FALSE\"))","v":"TRUE"},null,{"$f":"IF(N47=\"TRUE\",HYPERLINK(\"#'Form 1SFS (Consolidated)'!O22:O39\",\"TRUE\"),HYPERLINK(\"#'Form 1SFS (Consolidated)'!O22:O39\",\"FALSE\"))","v":"TRUE"},null,null,null,null,null,{"$f":"IF(T47=\"TRUE\",HYPERLINK(\"#'Form 1SFS (Consolidated)'!M23:M40\",\"TRUE\"),HYPERLINK(\"#'Form 1SFS (Consolidated)'!M23:M40\",\"FALSE\"))","v":"TRUE"},null,{"$f":"IF(V47=\"TRUE\",HYPERLINK(\"#'Form 1SFS (Consolidated)'!O23:O40\",\"TRUE\"),HYPERLINK(\"#'Form 1SFS (Consolidated)'!O23:O40\",\"FALSE\"))","v":"TRUE"}]
[null,null,null,{"$f":"IF(ROUND(D44-('Form 1SFS (Consolidated)'!M20+'Form 1SFS (Consolidated)'!M37),0)=0,\"TRUE\",\"FALSE\")","v":"TRUE"},null,{"$f":"IF(ROUND(F44-('Form 1SFS (Consolidated)'!O20+'Form 1SFS (Consolidated)'!O37),0)=0,\"TRUE\",\"FALSE\")","v":"TRUE"},null,{"$f":"IF((ROUND((H44-('Form 1SFS (Consolidated)'!M21+'Form 1SFS (Consolidated)'!M38)),0))=0,\"TRUE\",\"FALSE\")","v":"TRUE"},null,{"$f":"IF((ROUND((J44-('Form 1SFS (Consolidated)'!O21+'Form 1SFS (Consolidated)'!O38)),0))=0,\"TRUE\",\"FALSE\")","v":"TRUE"},null,{"$f":"IF(ROUND(L44-('Form 1SFS (Consolidated)'!M22+'Form 1SFS (Consolidated)'!M39),0)=0,\"TRUE\",\"FALSE\")","v":"TRUE"},null,{"$f":"IF(ROUND(N44-('Form 1SFS (Consolidated)'!O22+'Form 1SFS (Consolidated)'!O39),0)=0,\"TRUE\",\"FALSE\")","v":"TRUE"},null,null,null,null,null,{"$f":"IF(ROUND(T44-('Form 1SFS (Consolidated)'!M23+'Form 1SFS (Consolidated)'!M40),0)=0,\"TRUE\",\"FALSE\")","v":"TRUE"},null,{"$f":"IF(ROUND(V44-('Form 1SFS (Consolidated)'!O23+'Form 1SFS (Consolidated)'!O40),0)=0,\"TRUE\",\"FALSE\")","v":"TRUE"}]
[null,null,null,{"$f":"ROUND(('Form 1SFS (Consolidated)'!M20+'Form 1SFS (Consolidated)'!M37)-D44,0)","v":0},null,{"$f":"ROUND(('Form 1SFS (Consolidated)'!O20+'Form 1SFS (Consolidated)'!O37)-F44,0)","v":0},null,{"$f":"ROUND(('Form 1SFS (Consolidated)'!M21+'Form 1SFS (Consolidated)'!M38)-H44,0)","v":0},null,{"$f":"ROUND(('Form 1SFS (Consolidated)'!O21+'Form 1SFS (Consolidated)'!O38)-J44,0)","v":0},null,{"$f":"ROUND(('Form 1SFS (Consolidated)'!M22+'Form 1SFS (Consolidated)'!M39)-L44,0)","v":0},null,{"$f":"ROUND(('Form 1SFS (Consolidated)'!O22+'Form 1SFS (Consolidated)'!O39)-N44,0)","v":0},null,null,null,null,null,{"$f":"ROUND(('Form 1SFS (Consolidated)'!M23+'Form 1SFS (Consolidated)'!M40)-T44,0)","v":0},null,{"$f":"ROUND(('Form 1SFS (Consolidated)'!O23+'Form 1SFS (Consolidated)'!O40)-V44,0)","v":0}]
[]
[null,null,null,{"$f":"IF(D46=\"False\",\"Does not equal Form 1EBS Lines 2(c)(i) & 3(c)(i)\",\"\")","v":""},null,{"$f":"IF(F46=\"False\",\"Does not equal Form 1EBS Lines 2(c)(i) & 3(c)(i)\",\"\")","v":""},null,{"$f":"IF(H46=\"False\",\"Does not equal Form 1EBS Lines 2(c)(ii) & 3(c)(ii)\",\"\")","v":""},null,{"$f":"IF(J46=\"False\",\"Does not equal Form 1EBS Lines 2(c)(ii) & 3(c)(ii)\",\"\")","v":""},null,{"$f":"IF(L46=\"False\",\"Does not equal Form 1EBS Lines 2(c)(iii) & 3(c)(iii)\",\"\")","v":""},null,{"$f":"IF(N46=\"False\",\"Does not equal Form 1EBS Lines 2(c)(iii) & 3(c)(iii)\",\"\")","v":""},null,null,null,null,null,{"$f":"IF(T46=\"False\",\"Does not equal Form 1EBS Lines 2(d) & 3(d)\",\"\")","v":""},null,{"$f":"IF(V46=\"False\",\"Does not equal Form 1EBS Lines 2(d) & 3(d)\",\"\")","v":""}]
[]
[null,null,null,"MORTGAGE LOANS\n[ Form 1SFS Lines 5(c) ]",null,null,null,null,"This Section is Only Applicable to Companies that have Mortgage Backed Securities that have been Reclassified in Accordance with the NAIC and that elect to use NAIC reclassifications to map to the BSCR classes"]
[null,null,null,{"$f":"+'Form 1EBS'!$F$7","v":"2022-12-31"},null,{"$f":"+'Form 1EBS'!$H$7","v":"2021-12-31"},null,null,null,null,null,"VALUES OF RESIDENTIAL MORTGAGE BACKED SECURITIES",null,null,null,"VALUES OF COMMERCIAL MORTGAGE BACKED SECURITIES / ASSET BACKED SECURITIES"]
[null,null,null,{"$f":"+'Form 1EBS'!$F$8","v":" ('000s)"},null,{"$f":"+'Form 1EBS'!$H$8","v":" ('000s)"},null,null,null,null,null,"Original Classification",null,"Revised Classification",null,"Original Classification",null,"Revised Classification"]
[null,null,null,null,null,null,null,null,null,"NAIC Class 1",null,{"$f":"Import!M550","v":0},null,{"$f":"Import!M557","v":0},null,{"$f":"Import!M564","v":0},null,{"$f":"Import!M571","v":0}]
[null,"Mortgage Loans",null,null,null,null,null,null,null,"NAIC Class 2",null,{"$f":"Import!M551","v":0},null,{"$f":"Import!M558","v":0},null,{"$f":"Import!M565","v":0},null,{"$f":"Import!M572","v":0}]
[null,22,"Insured/Guaranteed Mortgages",{"$f":"Import!M546","v":0},null,{"$f":"Import!O546","v":0},null,null,null,"NAIC Class 3",null,{"$f":"Import!M552","v":0},null,{"$f":"Import!M559","v":0},null,{"$f":"Import!M566","v":0},null,{"$f":"Import!M573","v":0}]
[null,23,"Other Commercial and Farm Mortgages",{"$f":"Import!M547","v":0},null,{"$f":"Import!O547","v":0},null,null,null,"NAIC Class 4",null,{"$f":"Import!M553","v":0},null,{"$f":"Import!M560","v":0},null,{"$f":"Import!M567","v":0},null,{"$f":"Import!M574","v":0}]
[null,24,"Other Residential Mortgages",{"$f":"Import!M548","v":0},null,{"$f":"Import!O548","v":0},null,null,null,"NAIC Class 5",null,{"$f":"Import!M554","v":0},null,{"$f":"Import!M561","v":0},null,{"$f":"Import!M568","v":0},null,{"$f":"Import!M575","v":0}]
[null,25,"Mortgages Not In Good Standing",{"$f":"Import!M549","v":0},null,{"$f":"Import!O549","v":0},null,null,null,"NAIC Class 6",null,{"$f":"Import!M555","v":0},null,{"$f":"Import!M562","v":0},null,{"$f":"Import!M569","v":0},null,{"$f":"Import!M576","v":0}]
[]
[null,26,"Total",{"$f":"SUM(D57:D60)","v":0},null,{"$f":"SUM(F57:F60)","v":0},null,null,null,null,null,{"$f":"SUM(L55:L60)","v":0},null,{"$f":"SUM(N55:N60)","v":0},null,{"$f":"SUM(P55:P60)","v":0},null,{"$f":"SUM(R55:R60)","v":0}]
[]
[null,null,null,{"$f":"IF(D65=\"TRUE\",HYPERLINK(\"#'Form 1SFS (Consolidated)'!M53\",\"TRUE\"),HYPERLINK(\"#'Form 1SFS (Consolidated)'!M53,\"\"FALSE\"))","v":"TRUE"},null,{"$f":"IF(F65=\"TRUE\",HYPERLINK(\"#'Form 1SFS (Consolidated)'!O53\",\"TRUE\"),HYPERLINK(\"#'Form 1SFS (Consolidated)'!O53,\"\"FALSE\"))","v":"TRUE"}]
[null,null,null,{"$f":"IF(ROUND((D62-'Form 1SFS (Consolidated)'!M53),0)=0,\"TRUE\",\"FALSE\")","v":"TRUE"},null,{"$f":"IF(ROUND((F62-'Form 1SFS (Consolidated)'!O53),0)=0,\"TRUE\",\"FALSE\")","v":"TRUE"}]
[null,null,null,{"$f":"ROUND(('Form 1SFS (Consolidated)'!M53)-D62,0)","v":0},null,{"$f":"ROUND(('Form 1SFS (Consolidated)'!O53)-F62,0)","v":0},null,null,null,{"$f":"IF('Company Information'!$F$11=\"IIGB\",HYPERLINK(\"#'Attachments'!G45\",\"Attach file\"),HYPERLINK(\"#'Attachments'!G65\",\"Attach file\"))","v":"Attach file"}]
[]
[null,null,null,{"$f":"IF(D64=\"False\",\"Does not equal Form 1EBS Line 5(c)\",\"\")","v":""},null,{"$f":"IF(F64=\"False\",\"Does not equal Form 1EBS Line 5(c)\",\"\")","v":""}]

{"sheet":"Schedule IIA (Unconsolidated)","index":25,"n_rows":74,"n_cols":22,"rows_kept":74,"cut":false,"hidden":false,"merged":[[71,2,73,2],[51,3,51,5],[50,8,51,20],[52,11,52,13],[52,15,52,17],[63,3,63,5],[6,11,6,13],[6,15,6,17],[6,19,6,21],[28,3,28,5],[28,7,28,9],[28,11,28,13],[28,19,28,21],[28,15,28,17],[1,2,1,4],[2,3,2,5],[3,3,3,5],[6,3,6,5],[6,7,6,9]]}
[null,"SCHEDULE OF FUNDS HELD BY CEDING REINSURERS IN SEGREGATED ACCOUNTS / TRUSTS BY BSCR RATING",null,null,null,null,null,null,null,null,null,null,null,null,null,null,null,null,null,null,null,{"$f":"HYPERLINK(\"#'Index'!A1\",\"Return to Index\")","v":"Return to Index"}]
[null,null,{"$f":"+'Company Information'!C7","v":"Enter Company Name"}]
[null,null,"As at",{"$f":"+'Company Information'!C3","v":"2022-12-31"},null,null,null,null,null,null,null,null,null,null,null,null,null,null,null,null,null,"SCHEDULE IIA"]
[null,null,{"$f":"'Form 1SFS (Unconsolidated)'!$B$5","v":"expressed in ['000s]"},{"$f":"'Form 1SFS (Unconsolidated)'!$C$5","v":"United States Dollars"}]
[]
[null,null,null,"(1)",null,"(2)",null,"(3)",null,"(4)",null,"(5)",null,"(6)",null,"(7)",null,"(8)",null,"(9)",null,"(10)"]
[null,null,null,"CORPORATE & SOVEREIGN BONDS",null,null,null,"RESIDENTIAL MORTGAGE-BACKED SECURITIES",null,null,null,"COMMERCIAL MORTGAGE-BACKED SECURITIES / ASSET-BACKED SECURITIES",null,null,null,"BOND MUTUAL FUNDS",null,null,null,"TOTAL"]
[null,null,null,{"$f":"'Form 1SFS (Unconsolidated)'!$E$9","v":"2022-12-31"},null,{"$f":"'Form 1SFS (Unconsolidated)'!$G$9","v":"2021-12-31"},null,{"$f":"'Form 1SFS (Unconsolidated)'!$E$9","v":"2022-12-31"},null,{"$f":"'Form 1SFS (Unconsolidated)'!$G$9","v":"2021-12-31"},null,{"$f":"'Form 1SFS (Unconsolidated)'!$E$9","v":"2022-12-31"},null,{"$f":"'Form 1SFS (Unconsolidated)'!$G$9","v":"2021-12-31"},null,{"$f":"'Form 1SFS (Unconsolidated)'!$E$9","v":"2022-12-31"},null,{"$f":"'Form 1SFS (Unconsolidated)'!$G$9","v":"2021-12-31"},null,{"$f":"'Form 1SFS (Unconsolidated)'!$E$9","v":"2022-12-31"},null,{"$f":"'Form 1SFS (Unconsolidated)'!$G$9","v":"2021-12-31"}]
[null,null,null,{"$f":"'Form 1SFS (Unconsolidated)'!$E$10","v":" ('000s)"},null,{"$f":"'Form 1SFS (Unconsolidated)'!$G$10","v":" ('000s)"},null,{"$f":"'Form 1SFS (Unconsolidated)'!$E$10","v":" ('000s)"},null,{"$f":"'Form 1SFS (Unconsolidated)'!$G$10","v":" ('000s)"},null,{"$f":"'Form 1SFS (Unconsolidated)'!$E$10","v":" ('000s)"},null,{"$f":"'Form 1SFS (Unconsolidated)'!$G$10","v":" ('000s)"},null,{"$f":"'Form 1SFS (Unconsolidated)'!$E$10","v":" ('000s)"},null,{"$f":"'Form 1SFS (Unconsolidated)'!$G$10","v":" ('000s)"},null,{"$f":"'Form 1SFS (Unconsolidated)'!$E$10","v":" ('000s)"},null,{"$f":"'Form 1SFS (Unconsolidated)'!$G$10","v":" ('000s)"}]
[null,"Line no. "]
[null,"Quoted and Unquoted Bonds and Debentures"]
[null,1,"BSCR Rating 0",{"$f":"Import!E579","v":0},null,{"$f":"Import!G579","v":0},null,null,null,null,null,null,null,null,null,{"$f":"Import!E604","v":0},null,{"$f":"Import!G604","v":0},null,{"$f":"D12+H12+L12+P12","v":0},null,{"$f":"F12+J12+N12+R12","v":0}]
[null,2,"BSCR Rating 1",{"$f":"Import!E580","v":0},null,{"$f":"Import!G580","v":0},null,{"$f":"Import!E588","v":0},null,{"$f":"Import!G588","v":0},null,{"$f":"Import!E596","v":0},null,{"$f":"Import!G596","v":0},null,{"$f":"Import!E605","v":0},null,{"$f":"Import!G605","v":0},null,{"$f":"D13+H13+L13+P13","v":0},null,0]
[null,3,"BSCR Rating 2",{"$f":"Import!E581","v":0},null,{"$f":"Import!G581","v":0},null,{"$f":"Import!E589","v":0},null,{"$f":"Import!G589","v":0},null,{"$f":"Import!E597","v":0},null,{"$f":"Import!G597","v":0},null,{"$f":"Import!E606","v":0},null,{"$f":"Import!G606","v":0},null,0,null,0]
[null,4,"BSCR Rating 3",{"$f":"Import!E582","v":0},null,{"$f":"Import!G582","v":0},null,{"$f":"Import!E590","v":0},null,{"$f":"Import!G590","v":0},null,{"$f":"Import!E598","v":0},null,{"$f":"Import!G598","v":0},null,{"$f":"Import!E607","v":0},null,{"$f":"Import!G607","v":0},null,0,null,0]
[null,5,"BSCR Rating 4",{"$f":"Import!E583","v":0},null,{"$f":"Import!G583","v":0},null,{"$f":"Import!E591","v":0},null,{"$f":"Import!G591","v":0},null,{"$f":"Import!E599","v":0},null,{"$f":"Import!G599","v":0},null,{"$f":"Import!E608","v":0},null,{"$f":"Import!G608","v":0},null,0,null,0]
[null,6,"BSCR Rating 5",{"$f":"Import!E584","v":0},null,{"$f":"Import!G584","v":0},null,{"$f":"Import!E592","v":0},null,{"$f":"Import!G592","v":0},null,{"$f":"Import!E600","v":0},null,{"$f":"Import!G600","v":0},null,{"$f":"Import!E609","v":0},null,{"$f":"Import!G609","v":0},null,0,null,0]
[null,7,"BSCR Rating 6",{"$f":"Import!E585","v":0},null,{"$f":"Import!G585","v":0},null,{"$f":"Import!E593","v":0},null,{"$f":"Import!G593","v":0},null,{"$f":"Import!E601","v":0},null,{"$f":"Import!G601","v":0},null,{"$f":"Import!E610","v":0},null,{"$f":"Import!G610","v":0},null,0,null,0]
[null,8,"BSCR Rating 7",{"$f":"Import!E586","v":0},null,{"$f":"Import!G586","v":0},null,{"$f":"Import!E594","v":0},null,{"$f":"Import!G594","v":0},null,{"$f":"Import!E602","v":0},null,{"$f":"Import!G602","v":0},null,{"$f":"Import!E611","v":0},null,{"$f":"Import!G611","v":0},null,0,null,0]
[null,9,"BSCR Rating 8",{"$f":"Import!E587","v":0},null,{"$f":"Import!G587","v":0},null,{"$f":"Import!E595","v":0},null,{"$f":"Import!G595","v":0},null,{"$f":"Import!E603","v":0},null,{"$f":"Import!G603","v":0},null,{"$f":"Import!E612","v":0},null,{"$f":"Import!G612","v":0},null,0,null,0]
[]
[null,10,"Total",{"$f":"SUM(D12:D20)","v":0},null,{"$f":"SUM(F12:F20)","v":0},null,{"$f":"SUM(H12:H20)","v":0},null,{"$f":"SUM(J12:J20)","v":0},null,{"$f":"SUM(L12:L20)","v":0},null,{"$f":"SUM(N12:N20)","v":0},null,{"$f":"SUM(P12:P20)","v":0},null,{"$f":"SUM(R12:R20)","v":0},null,{"$f":"SUM(T12:T20)","v":0},null,{"$f":"SUM(V12:V20)","v":0}]
[]
[]
[]
[]
[]
[]
[null,null,null,"COMMON STOCK",null,null,null,"PREFERRED STOCK",null,null,null,"EQUITY MUTUAL FUNDS",null,null,null,"OTHER INVESTMENTS",null,null,null,"TOTAL\n"]
[null,null,null,{"$f":"'Form 1SFS (Unconsolidated)'!$E$9","v":"2022-12-31"},null,{"$f":"'Form 1SFS (Unconsolidated)'!$G$9","v":"2021-12-31"},null,{"$f":"'Form 1SFS (Unconsolidated)'!$E$9","v":"2022-12-31"},null,{"$f":"'Form 1SFS (Unconsolidated)'!$G$9","v":"2021-12-31"},null,{"$f":"'Form 1SFS (Unconsolidated)'!$E$9","v":"2022-12-31"},null,{"$f":"'Form 1SFS (Unconsolidated)'!$G$9","v":"2021-12-31"},null,{"$f":"'Form 1SFS (Unconsolidated)'!$E$9","v":"2022-12-31"},null,{"$f":"'Form 1SFS (Unconsolidated)'!$G$9","v":"2021-12-31"},null,{"$f":"'Form 1SFS (Unconsolidated)'!$E$9","v":"2022-12-31"},null,{"$f":"'Form 1SFS (Unconsolidated)'!$G$9","v":"2021-12-31"}]
[null,null,null,{"$f":"'Form 1SFS (Unconsolidated)'!$E$10","v":" ('000s)"},null,{"$f":"'Form 1SFS (Unconsolidated)'!$G$10","v":" ('000s)"},null,{"$f":"'Form 1SFS (Unconsolidated)'!$E$10","v":" ('000s)"},null,{"$f":"'Form 1SFS (Unconsolidated)'!$G$10","v":" ('000s)"},null,{"$f":"'Form 1SFS (Unconsolidated)'!$E$10","v":" ('000s)"},null,{"$f":"'Form 1SFS (Unconsolidated)'!$G$10","v":" ('000s)"},null,{"$f":"'Form 1SFS (Unconsolidated)'!$E$10","v":" ('000s)"},null,{"$f":"'Form 1SFS (Unconsolidated)'!$G$10","v":" ('000s)"},null,{"$f":"'Form 1SFS (Unconsolidated)'!$E$10","v":" ('000s)"},null,{"$f":"'Form 1SFS (Unconsolidated)'!$G$10","v":" ('000s)"}]
[null,"Quoted and Unquoted Equities"]
[null,11,"BSCR Rating 1",null,null,null,null,{"$f":"Import!E615","v":0},null,{"$f":"Import!G615","v":0},null,null,null,null,null,null,null,null,null,{"$f":"D33+H33+L33","v":0},null,{"$f":"F33+J33+N33","v":0}]
[null,12,"BSCR Rating 2",null,null,null,null,{"$f":"Import!E616","v":0},null,{"$f":"Import!G616","v":0},null,null,null,null,null,null,null,null,null,0,null,0]
[null,13,"BSCR Rating 3",null,null,null,null,{"$f":"Import!E617","v":0},null,{"$f":"Import!G617","v":0},null,null,null,null,null,null,null,null,null,0,null,0]
[null,14,"BSCR Rating 4",null,null,null,null,{"$f":"Import!E618","v":0},null,{"$f":"Import!G618","v":0},null,null,null,null,null,null,null,null,null,0,null,0]
[null,15,"BSCR Rating 5",null,null,null,null,{"$f":"Import!E619","v":0},null,{"$f":"Import!G619","v":0},null,null,null,null,null,null,null,null,null,0,null,0]
[null,16,"BSCR Rating 6",null,null,null,null,{"$f":"Import!E620","v":0},null,{"$f":"Import!G620","v":0},null,null,null,null,null,null,null,null,null,0,null,0]
[null,17,"BSCR Rating 7",null,null,null,null,{"$f":"Import!E621","v":0},null,{"$f":"Import!G621","v":0},null,null,null,null,null,null,null,null,null,0,null,0]
[null,18,"BSCR Rating 8",null,null,null,null,{"$f":"Import!E622","v":0},null,{"$f":"Import!G622","v":0},null,null,null,null,null,null,null,null,null,0,null,0]
[null,19,"Quoted Equity Funds",{"$f":"Import!E613","v":0},null,{"$f":"Import!G613","v":0},null,null,null,null,null,{"$f":"Import!E623","v":0},null,{"$f":"Import!G623","v":0},null,{"$f":"Import!E625","v":0},null,{"$f":"Import!G625","v":0},null,{"$f":"D41+H41+L41+P41","v":0},null,{"$f":"F41+J41+N41+R41","v":0}]
[null,20,"Unquoted Equity Funds",{"$f":"Import!E614","v":0},null,{"$f":"Import!G614","v":0},null,null,null,null,null,{"$f":"Import!E624","v":0},null,{"$f":"Import!G624","v":0},null,{"$f":"Import!E626","v":0},null,{"$f":"Import!G626","v":0},null,{"$f":"D42+H42+L42+P42","v":0},null,{"$f":"F42+J42+N42+R42","v":0}]
[]
[null,21,"Total",{"$f":"SUM(D33:D42)","v":0},null,{"$f":"SUM(F33:F42)","v":0},null,{"$f":"SUM(H33:H42)","v":0},null,{"$f":"SUM(J33:J42)","v":0},null,{"$f":"SUM(L33:L42)","v":0},null,{"$f":"SUM(N33:N42)","v":0},null,{"$f":"SUM(P33:P42)","v":0},null,{"$f":"SUM(R33:R42)","v":0},null,{"$f":"SUM(T33:T42)","v":0},null,{"$f":"SUM(V33:V42)","v":0}]
[]
[]
[]
[]
[]
[]
[null,null,null,null,null,null,null,null,"This section is only applicable to companies that have mortgage-backed securities that have been reclassified in accordance with the NAIC and that elect to use NAIC reclassifications to map to the BSCR classes"]
[null,null,null,"MORTGAGE LOANS"]
[null,null,null,{"$f":"'Form 1SFS (Unconsolidated)'!$E$9","v":"2022-12-31"},null,{"$f":"'Form 1SFS (Unconsolidated)'!$G$9","v":"2021-12-31"},null,null,null,null,null,"Values of Residential Mortgage-Backed Securities",null,null,null,"Values of Commercial Mortgage-backed Securities/Asset-Backed Securities"]
[null,null,null,{"$f":"'Form 1SFS (Unconsolidated)'!$E$10","v":" ('000s)"},null,{"$f":"'Form 1SFS (Unconsolidated)'!$G$10","v":" ('000s)"},null,null,null,null,null,"Original Classification",null,"Revised Classification",null,"Original Classification",null,"Revised Classification"]
[null,null,null,null,null,null,null,null,null,"NAIC Class 1",null,{"$f":"Import!E632","v":0},null,{"$f":"Import!E639","v":0},null,{"$f":"Import!E646","v":0},null,{"$f":"Import!E653","v":0}]
[null,"Mortgage Loans",null,null,null,null,null,null,null,"NAIC Class 2",null,{"$f":"Import!E633","v":0},null,{"$f":"Import!E640","v":0},null,{"$f":"Import!E647","v":0},null,{"$f":"Import!E654","v":0}]
[null,22,"Insured/Guaranteed Mortgages",{"$f":"Import!E627","v":0},null,{"$f":"Import!G627","v":0},null,null,null,"NAIC Class 3",null,{"$f":"Import!E634","v":0},null,{"$f":"Import!E641","v":0},null,{"$f":"Import!E648","v":0},null,{"$f":"Import!E655","v":0}]
[null,23,"Other Commercial and Farm Mortgages",{"$f":"Import!E628","v":0},null,{"$f":"Import!G628","v":0},null,null,null,"NAIC Class 4",null,{"$f":"Import!E635","v":0},null,{"$f":"Import!E642","v":0},null,{"$f":"Import!E649","v":0},null,{"$f":"Import!E656","v":0}]
[null,24,"Other Residential Mortgages",{"$f":"Import!E629","v":0},null,{"$f":"Import!G629","v":0},null,null,null,"NAIC Class 5",null,{"$f":"Import!E636","v":0},null,{"$f":"Import!E643","v":0},null,{"$f":"Import!E650","v":0},null,{"$f":"Import!E657","v":0}]
[null,25,"Mortgages Not In Good Standing",{"$f":"Import!E630","v":0},null,{"$f":"Import!G630","v":0},null,null,null,"NAIC Class 6",null,{"$f":"Import!E637","v":0},null,{"$f":"Import!E644","v":0},null,{"$f":"Import!E651","v":0},null,{"$f":"Import!E658","v":0}]
[]
[null,26,"Total",{"$f":"SUM(D57:D60)","v":0},null,{"$f":"SUM(F57:F60)","v":0},null,null,null,null,null,{"$f":"SUM(L55:L60)","v":0},null,{"$f":"SUM(N55:N60)","v":0},null,{"$f":"SUM(P55:P60)","v":0},null,{"$f":"SUM(R55:R60)","v":0}]
[]
[null,null,null,"CASH AND CASH EQUIVALENTS"]
[null,null,null,{"$f":"'Form 1SFS (Unconsolidated)'!$E$9","v":"2022-12-31"},null,{"$f":"'Form 1SFS (Unconsolidated)'!$G$9","v":"2021-12-31"},null,null,null,{"$f":"IF('Company Information'!$F$11=\"Class 3A\",HYPERLINK(\"#'Attachments'!G45\",\"Attach file\"),HYPERLINK(\"#'Attachments'!G65\",\"Attach file\"))","v":"Attach file"}]
[null,null,null,{"$f":"'Form 1SFS (Unconsolidated)'!$E$10","v":" ('000s)"},null,{"$f":"'Form 1SFS (Unconsolidated)'!$G$10","v":" ('000s)"}]
[]
[null,27,"Cash and Cash Equivalents",{"$f":"Import!E631","v":0},null,{"$f":"Import!G631","v":0}]
[]
[null,null,null,{"$f":"'Form 1SFS (Unconsolidated)'!$E$9","v":"2022-12-31"},null,{"$f":"'Form 1SFS (Unconsolidated)'!$G$9","v":"2021-12-31"}]
[null,null,null,{"$f":"'Form 1SFS (Unconsolidated)'!$E$10","v":" ('000s)"},null,{"$f":"'Form 1SFS (Unconsolidated)'!$G$10","v":" ('000s)"}]
[null,null,"Total Funds Held by Ceding Reinsurers in Segregated Accounts / Trusts (Lines 10, 21, 26 and 27)"]
[]
[null,{"$f":"B68+1","v":28},null,{"$f":"T22+T44+D62+D68","v":0},null,{"$f":"V22+V44+F62+F68","v":0}]

{"sheet":"Schedule IIA","index":26,"n_rows":74,"n_cols":22,"rows_kept":74,"cut":false,"hidden":true,"merged":[[52,11,52,13],[52,15,52,17],[63,3,63,5],[2,3,2,5],[3,3,3,5],[71,2,73,2],[6,3,6,5],[6,7,6,9],[28,3,28,5],[28,7,28,9],[1,2,1,4],[51,3,51,5],[50,8,51,20],[6,19,6,21],[28,19,28,21],[6,11,6,13],[6,15,6,17],[28,11,28,13],[28,15,28,17]]}
[null,"SCHEDULE OF FUNDS HELD BY CEDING REINSURERS IN SEGREGATED ACCOUNTS / TRUSTS BY BSCR RATING",null,null,null,null,null,null,null,null,null,null,null,null,null,null,null,null,null,null,null,{"$f":"HYPERLINK(\"#'Index'!A1\",\"Return to Index\")","v":"Return to Index"}]
[null,null,{"$f":"+'Company Information'!C7","v":"Enter Company Name"}]
[null,null,"As at",{"$f":"+'Company Information'!C3","v":"2022-12-31"},null,null,null,null,null,null,null,null,null,null,null,null,null,null,null,null,null,"SCHEDULE IIA (EBS)"]
[null,null,{"$f":"+'Form 1EBS'!B4","v":"expressed in ['000s]"},{"$f":"+'Form 1EBS'!C4","v":"United States Dollars"}]
[]
[null,null,null,"(1)",null,"(2)",null,"(3)",null,"(4)",null,"(5)",null,"(6)",null,"(7)",null,"(8)",null,"(9)",null,"(10)"]
[null,null,null,"CORPORATE & SOVEREIGN BONDS",null,null,null,"RESIDENTIAL MORTGAGE-BACKED SECURITIES",null,null,null,"COMMERCIAL MORTGAGE-BACKED SECURITIES / ASSET-BACKED SECURITIES",null,null,null,"BOND MUTUAL FUNDS",null,null,null,"TOTAL"]
[null,null,null,{"$f":"+'Form 1EBS'!$F$7","v":"2022-12-31"},null,{"$f":"+'Form 1EBS'!$H$7","v":"2021-12-31"},null,{"$f":"+'Form 1EBS'!$F$7","v":"2022-12-31"},null,{"$f":"+'Form 1EBS'!$H$7","v":"2021-12-31"},null,{"$f":"+'Form 1EBS'!$F$7","v":"2022-12-31"},null,{"$f":"+'Form 1EBS'!$H$7","v":"2021-12-31"},null,{"$f":"+'Form 1EBS'!$F$7","v":"2022-12-31"},null,{"$f":"+'Form 1EBS'!$H$7","v":"2021-12-31"},null,{"$f":"+'Form 1EBS'!$F$7","v":"2022-12-31"},null,{"$f":"+'Form 1EBS'!$H$7","v":"2021-12-31"}]
[null,null,null,{"$f":"+'Form 1EBS'!$F$8","v":" ('000s)"},null,{"$f":"+'Form 1EBS'!$H$8","v":" ('000s)"},null,{"$f":"+'Form 1EBS'!$F$8","v":" ('000s)"},null,{"$f":"+'Form 1EBS'!$H$8","v":" ('000s)"},null,{"$f":"+'Form 1EBS'!$F$8","v":" ('000s)"},null,{"$f":"+'Form 1EBS'!$H$8","v":" ('000s)"},null,{"$f":"+'Form 1EBS'!$F$8","v":" ('000s)"},null,{"$f":"+'Form 1EBS'!$H$8","v":" ('000s)"},null,{"$f":"+'Form 1EBS'!$F$8","v":" ('000s)"},null,{"$f":"+'Form 1EBS'!$H$8","v":" ('000s)"}]
[null,"Line no. "]
[null,"Quoted and Unquoted Bonds and Debentures"]
[null,1,"BSCR Rating 0",{"$f":"Import!M579","v":0},null,{"$f":"Import!O579","v":0},null,null,null,null,null,null,null,null,null,{"$f":"Import!M604","v":0},null,{"$f":"Import!O604","v":0},null,{"$f":"D12+H12+L12+P12","v":0},null,{"$f":"F12+J12+N12+R12","v":0}]
[null,2,"BSCR Rating 1",{"$f":"Import!M580","v":0},null,{"$f":"Import!O580","v":0},null,{"$f":"Import!M588","v":0},null,{"$f":"Import!O588","v":0},null,{"$f":"Import!M596","v":0},null,{"$f":"Import!O596","v":0},null,{"$f":"Import!M605","v":0},null,{"$f":"Import!O605","v":0},null,{"$f":"D13+H13+L13+P13","v":0},null,0]
[null,3,"BSCR Rating 2",{"$f":"Import!M581","v":0},null,{"$f":"Import!O581","v":0},null,{"$f":"Import!M589","v":0},null,{"$f":"Import!O589","v":0},null,{"$f":"Import!M597","v":0},null,{"$f":"Import!O597","v":0},null,{"$f":"Import!M606","v":0},null,{"$f":"Import!O606","v":0},null,0,null,0]
[null,4,"BSCR Rating 3",{"$f":"Import!M582","v":0},null,{"$f":"Import!O582","v":0},null,{"$f":"Import!M590","v":0},null,{"$f":"Import!O590","v":0},null,{"$f":"Import!M598","v":0},null,{"$f":"Import!O598","v":0},null,{"$f":"Import!M607","v":0},null,{"$f":"Import!O607","v":0},null,0,null,0]
[null,5,"BSCR Rating 4",{"$f":"Import!M583","v":0},null,{"$f":"Import!O583","v":0},null,{"$f":"Import!M591","v":0},null,{"$f":"Import!O591","v":0},null,{"$f":"Import!M599","v":0},null,{"$f":"Import!O599","v":0},null,{"$f":"Import!M608","v":0},null,{"$f":"Import!O608","v":0},null,0,null,0]
[null,6,"BSCR Rating 5",{"$f":"Import!M584","v":0},null,{"$f":"Import!O584","v":0},null,{"$f":"Import!M592","v":0},null,{"$f":"Import!O592","v":0},null,{"$f":"Import!M600","v":0},null,{"$f":"Import!O600","v":0},null,{"$f":"Import!M609","v":0},null,{"$f":"Import!O609","v":0},null,0,null,0]
[null,7,"BSCR Rating 6",{"$f":"Import!M585","v":0},null,{"$f":"Import!O585","v":0},null,{"$f":"Import!M593","v":0},null,{"$f":"Import!O593","v":0},null,{"$f":"Import!M601","v":0},null,{"$f":"Import!O601","v":0},null,{"$f":"Import!M610","v":0},null,{"$f":"Import!O610","v":0},null,0,null,0]
[null,8,"BSCR Rating 7",{"$f":"Import!M586","v":0},null,{"$f":"Import!O586","v":0},null,{"$f":"Import!M594","v":0},null,{"$f":"Import!O594","v":0},null,{"$f":"Import!M602","v":0},null,{"$f":"Import!O602","v":0},null,{"$f":"Import!M611","v":0},null,{"$f":"Import!O611","v":0},null,0,null,0]
[null,9,"BSCR Rating 8",{"$f":"Import!M587","v":0},null,{"$f":"Import!O587","v":0},null,{"$f":"Import!M595","v":0},null,{"$f":"Import!O595","v":0},null,{"$f":"Import!M603","v":0},null,{"$f":"Import!O603","v":0},null,{"$f":"Import!M612","v":0},null,{"$f":"Import!O612","v":0},null,0,null,0]
[]
[null,10,"Total",{"$f":"SUM(D12:D20)","v":0},null,{"$f":"SUM(F12:F20)","v":0},null,{"$f":"SUM(H12:H20)","v":0},null,{"$f":"SUM(J12:J20)","v":0},null,{"$f":"SUM(L12:L20)","v":0},null,{"$f":"SUM(N12:N20)","v":0},null,{"$f":"SUM(P12:P20)","v":0},null,{"$f":"SUM(R12:R20)","v":0},null,{"$f":"SUM(T12:T20)","v":0},null,{"$f":"SUM(V12:V20)","v":0}]
[]
[]
[]
[]
[]
[]
[null,null,null,"COMMON STOCK",null,null,null,"PREFERRED STOCK",null,null,null,"EQUITY MUTUAL FUNDS",null,null,null,"OTHER INVESTMENTS",null,null,null,"TOTAL\n"]
[null,null,null,{"$f":"+'Form 1EBS'!$F$7","v":"2022-12-31"},null,{"$f":"+'Form 1EBS'!$H$7","v":"2021-12-31"},null,{"$f":"+'Form 1EBS'!$F$7","v":"2022-12-31"},null,{"$f":"+'Form 1EBS'!$H$7","v":"2021-12-31"},null,{"$f":"+'Form 1EBS'!$F$7","v":"2022-12-31"},null,{"$f":"+'Form 1EBS'!$H$7","v":"2021-12-31"},null,{"$f":"+'Form 1EBS'!$F$7","v":"2022-12-31"},null,{"$f":"+'Form 1EBS'!$H$7","v":"2021-12-31"},null,{"$f":"+'Form 1EBS'!$F$7","v":"2022-12-31"},null,{"$f":"+'Form 1EBS'!$H$7","v":"2021-12-31"}]
[null,null,null,{"$f":"+'Form 1EBS'!$F$8","v":" ('000s)"},null,{"$f":"+'Form 1EBS'!$H$8","v":" ('000s)"},null,{"$f":"+'Form 1EBS'!$F$8","v":" ('000s)"},null,{"$f":"+'Form 1EBS'!$H$8","v":" ('000s)"},null,{"$f":"+'Form 1EBS'!$F$8","v":" ('000s)"},null,{"$f":"+'Form 1EBS'!$H$8","v":" ('000s)"},null,{"$f":"+'Form 1EBS'!$F$8","v":" ('000s)"},null,{"$f":"+'Form 1EBS'!$H$8","v":" ('000s)"},null,{"$f":"+'Form 1EBS'!$F$8","v":" ('000s)"},null,{"$f":"+'Form 1EBS'!$H$8","v":" ('000s)"}]
[null,"Quoted and Unquoted Equities"]
[null,11,"BSCR Rating 1",null,null,null,null,{"$f":"Import!M615","v":0},null,{"$f":"Import!O615","v":0},null,null,null,null,null,null,null,null,null,{"$f":"D33+H33+L33","v":0},null,{"$f":"F33+J33+N33","v":0}]
[null,12,"BSCR Rating 2",null,null,null,null,{"$f":"Import!M616","v":0},null,{"$f":"Import!O616","v":0},null,null,null,null,null,null,null,null,null,0,null,0]
[null,13,"BSCR Rating 3",null,null,null,null,{"$f":"Import!M617","v":0},null,{"$f":"Import!O617","v":0},null,null,null,null,null,null,null,null,null,0,null,0]
[null,14,"BSCR Rating 4",null,null,null,null,{"$f":"Import!M618","v":0},null,{"$f":"Import!O618","v":0},null,null,null,null,null,null,null,null,null,0,null,0]
[null,15,"BSCR Rating 5",null,null,null,null,{"$f":"Import!M619","v":0},null,{"$f":"Import!O619","v":0},null,null,null,null,null,null,null,null,null,0,null,0]
[null,16,"BSCR Rating 6",null,null,null,null,{"$f":"Import!M620","v":0},null,{"$f":"Import!O620","v":0},null,null,null,null,null,null,null,null,null,0,null,0]
[null,17,"BSCR Rating 7",null,null,null,null,{"$f":"Import!M621","v":0},null,{"$f":"Import!O621","v":0},null,null,null,null,null,null,null,null,null,0,null,0]
[null,18,"BSCR Rating 8",null,null,null,null,{"$f":"Import!M622","v":0},null,{"$f":"Import!O622","v":0},null,null,null,null,null,null,null,null,null,0,null,0]
[null,19,"Quoted Equity Funds",{"$f":"Import!M613","v":0},null,{"$f":"Import!O613","v":0},null,null,null,null,null,{"$f":"Import!M623","v":0},null,{"$f":"Import!O623","v":0},null,{"$f":"Import!M625","v":0},null,{"$f":"Import!O625","v":0},null,{"$f":"D41+H41+L41+P41","v":0},null,{"$f":"F41+J41+N41+R41","v":0}]
[null,20,"Unquoted Equity Funds",{"$f":"Import!M614","v":0},null,{"$f":"Import!O614","v":0},null,null,null,null,null,{"$f":"Import!M624","v":0},null,{"$f":"Import!O624","v":0},null,{"$f":"Import!M626","v":0},null,{"$f":"Import!O626","v":0},null,{"$f":"D42+H42+L42+P42","v":0},null,{"$f":"F42+J42+N42+R42","v":0}]
[]
[null,21,"Total",{"$f":"SUM(D33:D42)","v":0},null,{"$f":"SUM(F33:F42)","v":0},null,{"$f":"SUM(H33:H42)","v":0},null,{"$f":"SUM(J33:J42)","v":0},null,{"$f":"SUM(L33:L42)","v":0},null,{"$f":"SUM(N33:N42)","v":0},null,{"$f":"SUM(P33:P42)","v":0},null,{"$f":"SUM(R33:R42)","v":0},null,{"$f":"SUM(T33:T42)","v":0},null,{"$f":"SUM(V33:V42)","v":0}]
[]
[]
[]
[]
[]
[]
[null,null,null,null,null,null,null,null,"This Section is Only Applicable to Companies that have Mortgage Backed Securities that have been Reclassified in Accordance with the NAIC and that elect to use NAIC reclassifications to map to the BSCR classes"]
[null,null,null,"MORTGAGE LOANS"]
[null,null,null,{"$f":"+'Form 1EBS'!$F$7","v":"2022-12-31"},null,{"$f":"+'Form 1EBS'!$H$7","v":"2021-12-31"},null,null,null,null,null,"VALUES OF RESIDENTIAL MORTGAGE BACKED SECURITIES",null,null,null,"VALUES OF COMMERCIAL MORTGAGE BACKED SECURITIES / ASSET BACKED SECURITIES"]
[null,null,null,{"$f":"+'Form 1EBS'!$F$8","v":" ('000s)"},null,{"$f":"+'Form 1EBS'!$H$8","v":" ('000s)"},null,null,null,null,null,"Original Classification",null,"Revised Classification",null,"Original Classification",null,"Revised Classification"]
[null,null,null,null,null,null,null,null,null,"NAIC Class 1",null,{"$f":"Import!M632","v":0},null,{"$f":"Import!M639","v":0},null,{"$f":"Import!M646","v":0},null,{"$f":"Import!M653","v":0}]
[null,"Mortgage Loans",null,null,null,null,null,null,null,"NAIC Class 2",null,{"$f":"Import!M633","v":0},null,{"$f":"Import!M640","v":0},null,{"$f":"Import!M647","v":0},null,{"$f":"Import!M654","v":0}]
[null,22,"Insured/Guaranteed Mortgages",{"$f":"Import!M627","v":0},null,{"$f":"Import!O627","v":0},null,null,null,"NAIC Class 3",null,{"$f":"Import!M634","v":0},null,{"$f":"Import!M641","v":0},null,{"$f":"Import!M648","v":0},null,{"$f":"Import!M655","v":0}]
[null,23,"Other Commercial and Farm Mortgages",{"$f":"Import!M628","v":0},null,{"$f":"Import!O628","v":0},null,null,null,"NAIC Class 4",null,{"$f":"Import!M635","v":0},null,{"$f":"Import!M642","v":0},null,{"$f":"Import!M649","v":0},null,{"$f":"Import!M656","v":0}]
[null,24,"Other Residential Mortgages",{"$f":"Import!M629","v":0},null,{"$f":"Import!O629","v":0},null,null,null,"NAIC Class 5",null,{"$f":"Import!M636","v":0},null,{"$f":"Import!M643","v":0},null,{"$f":"Import!M650","v":0},null,{"$f":"Import!M657","v":0}]
[null,25,"Mortgages Not In Good Standing",{"$f":"Import!M630","v":0},null,{"$f":"Import!O630","v":0},null,null,null,"NAIC Class 6",null,{"$f":"Import!M637","v":0},null,{"$f":"Import!M644","v":0},null,{"$f":"Import!M651","v":0},null,{"$f":"Import!M658","v":0}]
[]
[null,26,"Total",{"$f":"SUM(D57:D60)","v":0},null,{"$f":"SUM(F57:F60)","v":0},null,null,null,null,null,{"$f":"SUM(L55:L60)","v":0},null,{"$f":"SUM(N55:N60)","v":0},null,{"$f":"SUM(P55:P60)","v":0},null,{"$f":"SUM(R55:R60)","v":0}]
[]
[null,null,null,"CASH AND CASH EQUIVALENTS",null,null,null,null,null,{"$f":"IF('Company Information'!$F$11=\"IIGB\",HYPERLINK(\"#'Attachments'!G45\",\"Attach file\"),HYPERLINK(\"#'Attachments'!G65\",\"Attach file\"))","v":"Attach file"}]
[null,null,null,{"$f":"+'Form 1EBS'!$F$7","v":"2022-12-31"},null,{"$f":"+'Form 1EBS'!$H$7","v":"2021-12-31"}]
[null,null,null,{"$f":"+'Form 1EBS'!$F$8","v":" ('000s)"},null,{"$f":"+'Form 1EBS'!$H$8","v":" ('000s)"}]
[]
[null,27,"Cash and Cash Equivalents",{"$f":"Import!M631","v":0},null,{"$f":"Import!O631","v":0}]
[]
[null,null,null,{"$f":"+'Form 1EBS'!$F$7","v":"2022-12-31"},null,{"$f":"+'Form 1EBS'!$H$7","v":"2021-12-31"}]
[null,null,null,{"$f":"+'Form 1EBS'!$F$8","v":" ('000s)"},null,{"$f":"+'Form 1EBS'!$H$8","v":" ('000s)"}]
[null,null,"Total Funds Held by Ceding Reinsurers in Segregated Accounts / Trusts (Lines 10, 21, 26 and 27)"]
[]
[null,{"$f":"B68+1","v":28},null,{"$f":"T22+T44+D62+D68","v":0},null,{"$f":"V22+V44+F62+F68","v":0}]

{"sheet":"Investment Reconciliation","index":27,"n_rows":61,"n_cols":18,"rows_kept":61,"cut":false,"hidden":false,"merged":[[33,2,33,11],[0,2,0,8],[1,2,1,7],[2,2,2,8],[7,3,7,5],[7,6,7,17]]}
[null,null,"INVESTMENT RECONCILIATION ",null,null,null,null,null,null,null,null,null,null,null,null,null,null,{"$f":"HYPERLINK(\"#'Index'!A1\",\"Return to Index\")","v":"Return to Index"}]
[null,null,{"$f":"'Company Information'!C7","v":"Enter Company Name"}]
[null,null,{"$f":"\"For the year ending \"&TEXT('Company Information'!C3,\"dd MMMM YYYY\")","v":"For the year ending 31 December 2022"}]
[null,null,{"$f":"\"expressed in\"& IF(CONFIGURATION!$B$12>1,\" ['\"&MID(CONFIGURATION!$B$12,2,LEN(CONFIGURATION!$B$12))&\"s]\",\"\")&\" \"&'Form 1SFS (Consolidated)'!C5","v":"expressed in ['000s] United States Dollars"}]
[]
[null,null,"A reconciliation of investments reported on Form 1SFS to Schedules IIB, IIC, IID, IIE and IIF"]
[]
[null,null,null,"Amounts as Reported in Balance Sheet",null,null,"Amounts results from Look-Through"]
[null,null,"Adjustment Description","Form 1SFS Balance","Form 1SFS Balance - Amounts Reported under Bonds and Debentures","Form 1SFS Balance - Amounts reported under Equities","Schedule IIB - Interest rate-sensitive investments","Schedule IIB - Investments sensitive to equity prices","Schedule IIC - Interest rate-sensitive investments","Schedule IIC - Investments sensitive to equity prices","Schedule IID - Interest rate-sensitive investments","Schedule IID - Investments sensitive to equity prices","Schedule IIE - Interest rate-sensitive investments","Schedule IIE - Investments sensitive to equity prices","Schedule IIF - Interest rate-sensitive investments","Schedule IIF - Investments sensitive to equity prices","Total - Interest rate-sensitive investments","Total - Investments sensitive to equity prices"]
[null,1,"Form 1SFS Open Balance",null,null,null,{"$f":"'Form 1SFS (Consolidated)'!M18+'Form 1SFS (Consolidated)'!M35+'Form 1SFS (Consolidated)'!M76","v":0},{"$f":"'Form 1SFS (Consolidated)'!M23+'Form 1SFS (Consolidated)'!M28+'Form 1SFS (Consolidated)'!M40+'Form 1SFS (Consolidated)'!M45+'Form 1SFS (Consolidated)'!M48","v":0},{"$f":"'Schedule IIA'!T22+'Schedule IIA'!D62","v":0},{"$f":"'Schedule IIA'!T44","v":0},null,null,null,null,null,null,{"$f":"G10+I10+K10+M10+O10","v":0},{"$f":"H10+J10+L10+N10+P10","v":0}]
[null,{"$f":"B10+1","v":2},"Cash and Cash Equivalents",null,null,null,null,null,null,null,null,null,null,null,null,null,{"$f":"G11+I11+K11+M11+O11-E11","v":0},{"$f":"H11+J11+L11+N11+P11-F11","v":0}]
[null,{"$f":"B11+1","v":3},"Bonds and Debentures",null,null,null,null,null,null,null,null,null,null,null,null,null,{"$f":"G12+I12+K12+M12+O12-E12","v":0},0]
[null,4,"Equities ",null,null,null,null,null,null,null,null,null,null,null,null,null,0,0]
[null,5,"Real Estate",null,null,null,null,null,null,null,null,null,null,null,null,null,0,0]
[null,6,"Collective Investment Vehicles",null,null,null,null,null,null,null,null,null,null,null,null,null,0,0]
[null,7,"Derivatives",null,null,null,null,null,null,null,null,null,null,null,null,null,0,0]
[null,8,"Funds withheld",null,null,null,null,null,null,null,null,null,null,null,null,null,0,0]
[null,9,"Segregated Accounts Assets",null,null,null,null,null,null,null,null,null,null,null,null,null,0,0]
[null,10,"Deposit Assets",null,null,null,null,null,null,null,null,null,null,null,null,null,0,0]
[null,11,"Other Sundry Assets",null,null,null,null,null,null,null,null,null,null,null,null,null,0,0]
[null,12,"Other Adjustment ",null,null,null,null,null,null,null,null,null,null,null,null,null,0,0]
[null,13,"Other Adjustment ",null,null,null,null,null,null,null,null,null,null,null,null,null,{"$f":"G22+I22+K22+M22+O22-E22","v":0},{"$f":"H22+J22+L22+N22+P22-F22","v":0}]
[null,14,"Other Adjustment ",null,null,null,null,null,null,null,null,null,null,null,null,null,0,0]
[null,15,"Other Adjustment ",null,null,null,null,null,null,null,null,null,null,null,null,null,0,0]
[null,16,"Other Adjustment ",null,null,null,null,null,null,null,null,null,null,null,null,null,0,0]
[null,17,"Other Adjustment ",null,null,null,null,null,null,null,null,null,null,null,null,null,0,0]
[null,18,"Calculated Balances",null,null,null,{"$f":"G10+SUM(G11:G26)-SUM(E11:E26)","v":0},{"$f":"H10+SUM(H11:H26)-SUM(F11:F26)","v":0},{"$f":"SUM(I10:I26)","v":0},0,0,0,0,0,0,0,0,0]
[null,null,"Balance after Look-Through adjustments",null,null,null,{"$f":"'Schedule IIB'!X27","v":0},{"$f":"'Schedule IIB'!X62","v":0},{"$f":"'Schedule IIC'!X27","v":0},{"$f":"'Schedule IIC'!X62","v":0},{"$f":"'Schedule IID'!X27","v":0},{"$f":"'Schedule IID'!X62","v":0},{"$f":"'Schedule IIE'!X27","v":0},{"$f":"'Schedule IIE'!X62","v":0},{"$f":"'Schedule IIF'!X27","v":0},{"$f":"'Schedule IIF'!X62","v":0},{"$f":"G28+I28+K28+M28+O28-E28","v":0},{"$f":"H28+J28+L28+N28+P28-F28","v":0}]
[]
[null,null,null,null,null,null,{"$f":"IF(ROUND((G28-G27),0)=0,\"TRUE\",\"FALSE\")","v":"TRUE"},{"$f":"IF(ROUND((H28-H27),0)=0,\"TRUE\",\"FALSE\")","v":"TRUE"},"TRUE","TRUE","TRUE","TRUE","TRUE","TRUE","TRUE","TRUE","TRUE","TRUE"]
[]
[null,null,null,null,null,null,{"$f":"G27-G28","v":0},{"$f":"H27-H28","v":0},0,0,0,0,0,0,0,0,0,0]
[]
[null,null,"A reconciliation of investments reported on Schedules IIB, IIC, IID, IIE and IIF to exposures in Equity Risk and Interest Rate Risk calculations taking into account look-through"]
[]
[null,null,"Adjustment Description",null,null,null,"Interest rate-sensitive investments","Investments sensitive to equity prices","Interest rate-sensitive investments","Investments sensitive to equity prices","Interest rate-sensitive investments","Investments sensitive to equity prices","Interest rate-sensitive investments","Investments sensitive to equity prices","Interest rate-sensitive investments","Investments sensitive to equity prices","Total - Interest rate-sensitive investments","Total - Investments sensitive to equity prices"]
[null,null,"Schedule IIB, IIC, IID, IIE & IIF Balances",null,null,null,{"$f":"'Schedule IIB'!X27","v":0},{"$f":"'Schedule IIB'!X62","v":0},{"$f":"'Schedule IIC'!X27","v":0},{"$f":"'Schedule IIC'!X62","v":0},{"$f":"'Schedule IID'!X27","v":0},{"$f":"'Schedule IID'!X62","v":0},{"$f":"'Schedule IIE'!X27","v":0},{"$f":"'Schedule IIE'!X62","v":0},{"$f":"'Schedule IIF'!X27","v":0},{"$f":"'Schedule IIF'!X62","v":0},{"$f":"G37+I37+K37+M37+O37","v":0},{"$f":"H37+J37+L37+N37+P37","v":0}]
[null,{"$f":"B27+1","v":19},"Cash and Cash Equivalents",null,null,null,null,null,null,null,null,null,null,null,null,null,{"$f":"G38+I38+K38+M38+O38","v":0},0]
[null,{"$f":"B38+1","v":20},"Derivatives not included in Schedules IIB-IIF",null,null,null,null,null,null,null,null,null,null,null,null,null,0,0]
[null,{"$f":"B39+1","v":21},"Other Interest/Equity sensitive items not included in Schedules IIB-IIF",null,null,null,null,null,null,null,null,null,null,null,null,null,0,0]
[null,22,"Other Interest/Equity sensitive items not included in Schedules IIB-IIF",null,null,null,null,null,null,null,null,null,null,null,null,null,0,0]
[null,23,"Other Interest/Equity sensitive items not included in Schedules IIB-IIF",null,null,null,null,null,null,null,null,null,null,null,null,null,0,0]
[null,24,"Other Interest/Equity sensitive items not included in Schedules IIB-IIF",null,null,null,null,null,null,null,null,null,null,null,null,null,0,0]
[null,25,"Other Interest/Equity sensitive items not included in Schedules IIB-IIF",null,null,null,null,null,null,null,null,null,null,null,null,null,0,0]
[null,26,"Other Interest/Equity sensitive items not included in Schedules IIB-IIF",null,null,null,null,null,null,null,null,null,null,null,null,null,0,0]
[null,27,"Other Interest/Equity sensitive items not included in Schedules IIB-IIF",null,null,null,null,null,null,null,null,null,null,null,null,null,0,0]
[null,28,"Other Interest/Equity sensitive items not included in Schedules IIB-IIF",null,null,null,null,null,null,null,null,null,null,null,null,null,0,0]
[null,29,"Other Interest/Equity sensitive items not included in Schedules IIB-IIF",null,null,null,null,null,null,null,null,null,null,null,null,null,0,0]
[null,30,"Other Interest/Equity sensitive items not included in Schedules IIB-IIF",null,null,null,null,null,null,null,null,null,null,null,null,null,0,0]
[null,31,"Exposures after adjustments",null,null,null,{"$f":"SUM(G37:G49)","v":0},{"$f":"SUM(H37:H49)","v":0},0,0,0,0,0,0,0,0,{"$f":"SUM(Q37:Q49)","v":0},{"$f":"SUM(R37:R49)","v":0}]
[null,null,"Total Exposure in Risk calculations",null,null,null,null,null,null,null,null,null,null,null,null,null,{"$f":"'Interest Rate-Liquidity (Rev.)'!C51","v":0},{"$f":"'Equity Investments'!D48+'Equity Investments'!F48+'Equity Investments'!H48","v":0}]
[]
[null,null,null,null,null,null,null,null,null,null,null,null,null,null,null,null,{"$f":"IF(ROUND((Q51-Q50),0)=0,\"TRUE\",\"FALSE\")","v":"TRUE"},{"$f":"IF(ROUND((R51-R50),0)=0,\"TRUE\",\"FALSE\")","v":"TRUE"}]
[null,null,"Interest rate-sensitive investments",null,"Total","Difference"]
[null,null,"Amount after Look-through",null,{"$f":"Q50","v":0},null,null,null,null,null,null,null,null,null,null,null,{"$f":"Q50-Q51","v":0},{"$f":"R50-R51","v":0}]
[null,null,"Amount in Interest Rate & Liquidity Risk calculation",null,{"$f":"'Interest Rate-Liquidity (Rev.)'!C51","v":0},{"$f":"E56-E55","v":0},{"$f":"IF(ROUND(F56,0)=0,\"TRUE\",\"FALSE\")","v":"TRUE"}]
[]
[]
[null,null,"Investments sensitive to equity prices",null,"Total","Difference"]
[null,null,"Amount after Look-through",null,{"$f":"R50","v":0}]
[null,null,"Amount in Equity Risk calculations",null,{"$f":"'Equity Investments'!D48+'Equity Investments'!F48+'Equity Investments'!H48","v":0},{"$f":"E61-E60","v":0},{"$f":"IF(ROUND(F61,0)=0,\"TRUE\",\"FALSE\")","v":"TRUE"}]

{"sheet":"Schedule IIB","index":28,"n_rows":107,"n_cols":28,"rows_kept":107,"cut":false,"hidden":false,"merged":[[33,27,34,27],[81,11,81,20],[83,13,84,13],[83,15,84,15],[83,17,84,17],[83,19,84,19],[63,13,63,21],[63,3,63,11],[64,3,64,5],[64,7,64,9],[64,13,64,15],[64,17,64,19],[82,13,82,15],[82,17,82,19],[7,15,7,17],[7,23,7,25],[7,11,7,13],[7,19,7,21],[33,23,34,23],[33,7,33,13],[32,3,32,13],[33,3,34,5],[34,7,34,9],[34,11,34,13],[33,17,34,17],[33,19,34,19],[33,15,34,15],[32,15,32,19],[2,1,2,3],[3,3,3,5],[4,3,4,5],[7,3,7,5],[7,7,7,9]]}
[null,"SCHEDULE OF FIXED INCOME & EQUITY INVESTMENTS BY BSCR RATING",null,null,null,null,null,null,null,null,null,null,null,null,null,null,null,null,null,null,null,null,null,null,null,null,null,{"$f":"HYPERLINK(\"#'Index'!A1\",\"Return to Index\")","v":"Return to Index"}]
[]
[null,{"$f":"'Company Information'!C7","v":"Enter Company Name"}]
[null,"As at",null,{"$f":"'Company Information'!C3","v":"2022-12-31"},null,null,null,null,null,null,null,null,null,null,null,null,null,null,null,null,null,null,null,null,null,"SCHEDULE IIB"]
[null,{"$f":"\"expressed in\"& IF(CONFIGURATION!$B$12>1,\" ['\"&MID(CONFIGURATION!$B$12,2,LEN(CONFIGURATION!$B$12))&\"s]\",\"\")","v":"expressed in ['000s]"},null,{"$f":"'Form 1SFS (Consolidated)'!$C$5","v":"United States Dollars"}]
[]
[null,null,null,"(1)",null,"(2)",null,"(3)",null,"(4)",null,"(5)",null,"(6)",null,"(7)",null,"(8)",null,"(9)",null,"(10)",null,"(11)",null,"(12)"]
[null,null,null,"CORPORATE & SOVEREIGN BONDS",null,null,null,"RESIDENTIAL MORTGAGE-BACKED SECURITIES",null,null,null,"COMMERCIAL MORTGAGE-BACKED SECURITIES / ASSET-BACKED SECURITIES",null,null,null,"BOND MUTUAL FUNDS",null,null,null,"MORTGAGE LOANS",null,null,null,"TOTAL\n"]
[null,null,null,{"$f":"'Form 1SFS (Consolidated)'!$M$9","v":"2022-12-31"},null,{"$f":"'Form 1SFS (Consolidated)'!$O$9","v":"2021-12-31"},null,{"$f":"'Form 1SFS (Consolidated)'!$M$9","v":"2022-12-31"},null,{"$f":"'Form 1SFS (Consolidated)'!$O$9","v":"2021-12-31"},null,{"$f":"'Form 1SFS (Consolidated)'!$M$9","v":"2022-12-31"},null,{"$f":"'Form 1SFS (Consolidated)'!$O$9","v":"2021-12-31"},null,{"$f":"'Form 1SFS (Consolidated)'!$M$9","v":"2022-12-31"},null,{"$f":"'Form 1SFS (Consolidated)'!$O$9","v":"2021-12-31"},null,{"$f":"'Form 1SFS (Consolidated)'!$M$9","v":"2022-12-31"},null,{"$f":"'Form 1SFS (Consolidated)'!$O$9","v":"2021-12-31"},null,{"$f":"'Form 1SFS (Consolidated)'!$M$9","v":"2022-12-31"},null,{"$f":"'Form 1SFS (Consolidated)'!$O$9","v":"2021-12-31"}]
[null,null,null,{"$f":"'Form 1SFS (Consolidated)'!$M$10","v":" ('000s)"},null,{"$f":"'Form 1SFS (Consolidated)'!$O$10","v":" ('000s)"},null,{"$f":"'Form 1SFS (Consolidated)'!$M$10","v":" ('000s)"},null,{"$f":"'Form 1SFS (Consolidated)'!$O$10","v":" ('000s)"},null,{"$f":"'Form 1SFS (Consolidated)'!$M$10","v":" ('000s)"},null,{"$f":"'Form 1SFS (Consolidated)'!$O$10","v":" ('000s)"},null,{"$f":"'Form 1SFS (Consolidated)'!$M$10","v":" ('000s)"},null,{"$f":"'Form 1SFS (Consolidated)'!$O$10","v":" ('000s)"},null,{"$f":"'Form 1SFS (Consolidated)'!$M$10","v":" ('000s)"},null,{"$f":"'Form 1SFS (Consolidated)'!$O$10","v":" ('000s)"},null,{"$f":"'Form 1SFS (Consolidated)'!$M$10","v":" ('000s)"},null,{"$f":"'Form 1SFS (Consolidated)'!$O$10","v":" ('000s)"}]
[null,"Line no. "]
[null,"Quoted and Unquoted Bonds and Debentures"]
[null,1,"BSCR Rating 0",{"$f":"Import!M686","v":0},null,{"$f":"Import!O686","v":0},null,null,null,null,null,null,null,null,null,{"$f":"Import!M711","v":0},null,{"$f":"Import!O711","v":0},null,null,null,null,null,{"$f":"D13+H13+L13+P13","v":0},null,{"$f":"F13+J13+N13+R13","v":0}]
[null,2,"BSCR Rating 1",{"$f":"Import!M687","v":0},null,{"$f":"Import!O687","v":0},null,{"$f":"Import!M695","v":0},null,{"$f":"Import!O695","v":0},null,{"$f":"Import!M703","v":0},null,{"$f":"Import!O703","v":0},null,{"$f":"Import!M712","v":0},null,{"$f":"Import!O712","v":0},null,null,null,null,null,0,null,0]
[null,3,"BSCR Rating 2",{"$f":"Import!M688","v":0},null,{"$f":"Import!O688","v":0},null,{"$f":"Import!M696","v":0},null,{"$f":"Import!O696","v":0},null,{"$f":"Import!M704","v":0},null,{"$f":"Import!O704","v":0},null,{"$f":"Import!M713","v":0},null,{"$f":"Import!O713","v":0},null,null,null,null,null,0,null,0]
[null,4,"BSCR Rating 3",{"$f":"Import!M689","v":0},null,{"$f":"Import!O689","v":0},null,{"$f":"Import!M697","v":0},null,{"$f":"Import!O697","v":0},null,{"$f":"Import!M705","v":0},null,{"$f":"Import!O705","v":0},null,{"$f":"Import!M714","v":0},null,{"$f":"Import!O714","v":0},null,null,null,null,null,0,null,0]
[null,5,"BSCR Rating 4",{"$f":"Import!M690","v":0},null,{"$f":"Import!O690","v":0},null,{"$f":"Import!M698","v":0},null,{"$f":"Import!O698","v":0},null,{"$f":"Import!M706","v":0},null,{"$f":"Import!O706","v":0},null,{"$f":"Import!M715","v":0},null,{"$f":"Import!O715","v":0},null,null,null,null,null,0,null,0]
[null,6,"BSCR Rating 5",{"$f":"Import!M691","v":0},null,{"$f":"Import!O691","v":0},null,{"$f":"Import!M699","v":0},null,{"$f":"Import!O699","v":0},null,{"$f":"Import!M707","v":0},null,{"$f":"Import!O707","v":0},null,{"$f":"Import!M716","v":0},null,{"$f":"Import!O716","v":0},null,null,null,null,null,0,null,0]
[null,7,"BSCR Rating 6",{"$f":"Import!M692","v":0},null,{"$f":"Import!O692","v":0},null,{"$f":"Import!M700","v":0},null,{"$f":"Import!O700","v":0},null,{"$f":"Import!M708","v":0},null,{"$f":"Import!O708","v":0},null,{"$f":"Import!M717","v":0},null,{"$f":"Import!O717","v":0},null,null,null,null,null,0,null,0]
[null,8,"BSCR Rating 7",{"$f":"Import!M693","v":0},null,{"$f":"Import!O693","v":0},null,{"$f":"Import!M701","v":0},null,{"$f":"Import!O701","v":0},null,{"$f":"Import!M709","v":0},null,{"$f":"Import!O709","v":0},null,{"$f":"Import!M718","v":0},null,{"$f":"Import!O718","v":0},null,null,null,null,null,0,null,0]
[null,9,"BSCR Rating 8",{"$f":"Import!M694","v":0},null,{"$f":"Import!O694","v":0},null,{"$f":"Import!M702","v":0},null,{"$f":"Import!O702","v":0},null,{"$f":"Import!M710","v":0},null,{"$f":"Import!O710","v":0},null,{"$f":"Import!M719","v":0},null,{"$f":"Import!O719","v":0},null,null,null,null,null,{"$f":"D21+H21+L21+P21","v":0},null,{"$f":"F21+J21+N21+R21","v":0}]
[null,{"$f":"B21+1","v":10},"Insured/Guaranteed Mortgages",null,null,null,null,null,null,null,null,null,null,null,null,null,null,null,null,{"$f":"Import!M720","v":0},null,{"$f":"Import!O720","v":0},null,{"$f":"D22+H22+L22+P22+T22","v":0},null,{"$f":"F22+J22+N22+R22+V22","v":0}]
[null,{"$f":"B22+1","v":11},"Other Commercial and Farm Mortgages",null,null,null,null,null,null,null,null,null,null,null,null,null,null,null,null,{"$f":"Import!M721","v":0},null,{"$f":"Import!O721","v":0},null,{"$f":"D23+H23+L23+P23+T23","v":0},null,0]
[null,{"$f":"B23+1","v":12},"Other Residential Mortgages",null,null,null,null,null,null,null,null,null,null,null,null,null,null,null,null,{"$f":"Import!M722","v":0},null,{"$f":"Import!O722","v":0},null,0,null,0]
[null,{"$f":"B24+1","v":13},"Mortgages Not In Good Standing",null,null,null,null,null,null,null,null,null,null,null,null,null,null,null,null,{"$f":"Import!M723","v":0},null,{"$f":"Import!O723","v":0},null,0,null,0]
[]
[null,{"$f":"B25+1","v":14},"Total",{"$f":"SUM(D13:D21)","v":0},null,{"$f":"SUM(F13:F21)","v":0},null,{"$f":"SUM(H13:H21)","v":0},null,{"$f":"SUM(J13:J21)","v":0},null,{"$f":"SUM(L13:L21)","v":0},null,{"$f":"SUM(N13:N21)","v":0},null,{"$f":"SUM(P12:P21)","v":0},null,{"$f":"SUM(R12:R21)","v":0},null,{"$f":"SUM(T12:T25)","v":0},null,{"$f":"SUM(V12:V25)","v":0},null,{"$f":"SUM(X12:X25)","v":0},null,{"$f":"SUM(Z12:Z25)","v":0}]
[]
[]
[]
[null,null,"Difference",null,null,null,null,null,null,null,null,null,null,null,null," "]
[]
[null,null,null,"ASSETS",null,null,null,null,null,null,null,null,null,null,null,"Liabilities"]
[null,null,null,"Long Exposures",null,null,null,"Short Exposures",null,null,null,null,null,null,null,null,null,"Without Management Actions",null,"With Management Actions",null,null,null,"Total Assets Before Shock",null,null,null,"Shocks"]
[null,null,null,null,null,null,null,"Qualifying as Assets held for risk-mitigation purposes",null,null,null,"Not Qualifying as Assets held for risk-mitigation purposes",null,null,null,null,null,null,null,null,null,null,null,null,null,null,null,"Shocks"]
[null,null,null,"Before Shock",null,"After Shock",null,"Before Shock",null,"After Shock",null,"Before Shock",null,"After Shock",null,"Before Shock",null,"After Shock",null,"After Shock"]
[null,null,null,{"$f":"'Form 1SFS (Consolidated)'!$M$10","v":" ('000s)"},null,{"$f":"'Form 1SFS (Consolidated)'!$O$10","v":" ('000s)"},null,{"$f":"'Form 1SFS (Consolidated)'!$M$10","v":" ('000s)"},null,{"$f":"'Form 1SFS (Consolidated)'!$O$10","v":" ('000s)"},null,{"$f":"'Form 1SFS (Consolidated)'!$M$10","v":" ('000s)"},null,{"$f":"'Form 1SFS (Consolidated)'!$O$10","v":" ('000s)"},null,{"$f":"'Form 1SFS (Consolidated)'!$M$10","v":" ('000s)"},null,{"$f":"'Form 1SFS (Consolidated)'!$O$10","v":" ('000s)"},null,{"$f":"'Form 1SFS (Consolidated)'!$O$10","v":" ('000s)"},null,null,null,{"$f":"'Form 1SFS (Consolidated)'!$O$10","v":" ('000s)"}]
[null,"Equity Holdings "]
[null,{"$f":"B27+1","v":15},"Strategic Holdings - Listed",{"$f":"Import!M724","v":0},null,{"$f":"IF(OR(Import!M746=0,Import!M746=\"\"),(1-$AB39)*D39,Import!M746)","v":0},null,{"$f":"Import!M768","v":0},null,{"$f":"IF(OR(Import!M790=0,Import!M790=\"\"),(1-$AB39)*H39,Import!M790)","v":0},null,{"$f":"Import!M812","v":0},null,{"$f":"IF(OR(Import!M834=0,Import!M834=\"\"),(1-$AB39)*L39,Import!M834)","v":0},null,{"$f":"Import!M856","v":0},null,{"$f":"IF(OR(Import!M878=0,Import!M878=\"\"),P39,Import!M878)","v":0},null,{"$f":"IF(OR(Import!M900=0,Import!M900=\"\"),R39,Import!M900)","v":0},null,null,null,{"$f":"D39+H39+L39","v":0},null,null,null,0.2]
[null,{"$f":"B39+1","v":16},"Duration Based",{"$f":"Import!M725","v":0},null,{"$f":"IF(OR(Import!M747=0,Import!M747=\"\"),(1-$AB40)*D40,Import!M747)","v":0},null,{"$f":"Import!M769","v":0},null,{"$f":"IF(OR(Import!M791=0,Import!M791=\"\"),(1-$AB40)*H40,Import!M791)","v":0},null,{"$f":"Import!M813","v":0},null,{"$f":"IF(OR(Import!M835=0,Import!M835=\"\"),(1-$AB40)*L40,Import!M835)","v":0},null,{"$f":"Import!M857","v":0},null,{"$f":"IF(OR(Import!M879=0,Import!M879=\"\"),P40,Import!M879)","v":0},null,{"$f":"IF(OR(Import!M901=0,Import!M901=\"\"),R40,Import!M901)","v":0},null,null,null,{"$f":"D40+H40+L40","v":0},null,null,null,0.2]
[null,17,"Listed Equity Securities in Developed Markets",{"$f":"Import!M726","v":0},null,{"$f":"IF(OR(Import!M748=0,Import!M748=\"\"),(1-$AB41)*D41,Import!M748)","v":0},null,{"$f":"Import!M770","v":0},null,{"$f":"IF(OR(Import!M792=0,Import!M792=\"\"),(1-$AB41)*H41,Import!M792)","v":0},null,{"$f":"Import!M814","v":0},null,{"$f":"IF(OR(Import!M836=0,Import!M836=\"\"),(1-$AB41)*L41,Import!M836)","v":0},null,{"$f":"Import!M858","v":0},null,{"$f":"IF(OR(Import!M880=0,Import!M880=\"\"),P41,Import!M880)","v":0},null,{"$f":"IF(OR(Import!M902=0,Import!M902=\"\"),R41,Import!M902)","v":0},null,null,null,0,null,null,null,0.35]
[null,18,"Preferred Stocks, BSCR Rating 1",{"$f":"Import!M727","v":0},null,{"$f":"IF(OR(Import!M749=0,Import!M749=\"\"),(1-$AB42)*D42,Import!M749)","v":0},null,{"$f":"Import!M771","v":0},null,{"$f":"IF(OR(Import!M793=0,Import!M793=\"\"),(1-$AB42)*H42,Import!M793)","v":0},null,{"$f":"Import!M815","v":0},null,{"$f":"IF(OR(Import!M837=0,Import!M837=\"\"),(1-$AB42)*L42,Import!M837)","v":0},null,null,null,{"$f":"IF(OR(Import!M881=0,Import!M881=\"\"),P42,Import!M881)","v":0},null,{"$f":"IF(OR(Import!M903=0,Import!M903=\"\"),R42,Import!M903)","v":0},null,null,null,0,null,null,null,6.0000000000000001E-3]
[null,19,"Preferred Stocks, BSCR Rating 2",{"$f":"Import!M728","v":0},null,{"$f":"IF(OR(Import!M750=0,Import!M750=\"\"),(1-$AB43)*D43,Import!M750)","v":0},null,{"$f":"Import!M772","v":0},null,{"$f":"IF(OR(Import!M794=0,Import!M794=\"\"),(1-$AB43)*H43,Import!M794)","v":0},null,{"$f":"Import!M816","v":0},null,{"$f":"IF(OR(Import!M838=0,Import!M838=\"\"),(1-$AB43)*L43,Import!M838)","v":0},null,{"$f":"Import!M860","v":0},null,{"$f":"IF(OR(Import!M882=0,Import!M882=\"\"),P43,Import!M882)","v":0},null,{"$f":"IF(OR(Import!M904=0,Import!M904=\"\"),R43,Import!M904)","v":0},null,null,null,0,null,null,null,1.2E-2]
[null,20,"Preferred Stocks, BSCR Rating 3",{"$f":"Import!M729","v":0},null,{"$f":"IF(OR(Import!M751=0,Import!M751=\"\"),(1-$AB44)*D44,Import!M751)","v":0},null,{"$f":"Import!M773","v":0},null,{"$f":"IF(OR(Import!M795=0,Import!M795=\"\"),(1-$AB44)*H44,Import!M795)","v":0},null,{"$f":"Import!M817","v":0},null,{"$f":"IF(OR(Import!M839=0,Import!M839=\"\"),(1-$AB44)*L44,Import!M839)","v":0},null,{"$f":"Import!M861","v":0},null,{"$f":"IF(OR(Import!M883=0,Import!M883=\"\"),P44,Import!M883)","v":0},null,{"$f":"IF(OR(Import!M905=0,Import!M905=\"\"),R44,Import!M905)","v":0},null,null,null,0,null,null,null,0.02]
[null,21,"Preferred Stocks, BSCR Rating 4",{"$f":"Import!M730","v":0},null,{"$f":"IF(OR(Import!M752=0,Import!M752=\"\"),(1-$AB45)*D45,Import!M752)","v":0},null,{"$f":"Import!M774","v":0},null,{"$f":"IF(OR(Import!M796=0,Import!M796=\"\"),(1-$AB45)*H45,Import!M796)","v":0},null,{"$f":"Import!M818","v":0},null,{"$f":"IF(OR(Import!M840=0,Import!M840=\"\"),(1-$AB45)*L45,Import!M840)","v":0},null,{"$f":"Import!M862","v":0},null,{"$f":"IF(OR(Import!M884=0,Import!M884=\"\"),P45,Import!M884)","v":0},null,{"$f":"IF(OR(Import!M906=0,Import!M906=\"\"),R45,Import!M906)","v":0},null,null,null,0,null,null,null,0.04]
[null,22,"Preferred Stocks, BSCR Rating 5",{"$f":"Import!M731","v":0},null,{"$f":"IF(OR(Import!M753=0,Import!M753=\"\"),(1-$AB46)*D46,Import!M753)","v":0},null,{"$f":"Import!M775","v":0},null,{"$f":"IF(OR(Import!M797=0,Import!M797=\"\"),(1-$AB46)*H46,Import!M797)","v":0},null,{"$f":"Import!M819","v":0},null,{"$f":"IF(OR(Import!M841=0,Import!M841=\"\"),(1-$AB46)*L46,Import!M841)","v":0},null,{"$f":"Import!M863","v":0},null,{"$f":"IF(OR(Import!M885=0,Import!M885=\"\"),P46,Import!M885)","v":0},null,{"$f":"IF(OR(Import!M907=0,Import!M907=\"\"),R46,Import!M907)","v":0},null,null,null,0,null,null,null,0.11]
[null,23,"Preferred Stocks, BSCR Rating 6",{"$f":"Import!M732","v":0},null,{"$f":"IF(OR(Import!M754=0,Import!M754=\"\"),(1-$AB47)*D47,Import!M754)","v":0},null,{"$f":"Import!M776","v":0},null,{"$f":"IF(OR(Import!M798=0,Import!M798=\"\"),(1-$AB47)*H47,Import!M798)","v":0},null,{"$f":"Import!M820","v":0},null,{"$f":"IF(OR(Import!M842=0,Import!M842=\"\"),(1-$AB47)*L47,Import!M842)","v":0},null,{"$f":"Import!M864","v":0},null,{"$f":"IF(OR(Import!M886=0,Import!M886=\"\"),P47,Import!M886)","v":0},null,{"$f":"IF(OR(Import!M908=0,Import!M908=\"\"),R47,Import!M908)","v":0},null,null,null,0,null,null,null,0.25]
[null,24,"Preferred Stocks, BSCR Rating 7",{"$f":"Import!M733","v":0},null,{"$f":"IF(OR(Import!M755=0,Import!M755=\"\"),(1-$AB48)*D48,Import!M755)","v":0},null,{"$f":"Import!M777","v":0},null,{"$f":"IF(OR(Import!M799=0,Import!M799=\"\"),(1-$AB48)*H48,Import!M799)","v":0},null,{"$f":"Import!M821","v":0},null,{"$f":"IF(OR(Import!M843=0,Import!M843=\"\"),(1-$AB48)*L48,Import!M843)","v":0},null,{"$f":"Import!M865","v":0},null,{"$f":"IF(OR(Import!M887=0,Import!M887=\"\"),P48,Import!M887)","v":0},null,{"$f":"IF(OR(Import!M909=0,Import!M909=\"\"),R48,Import!M909)","v":0},null,null,null,0,null,null,null,0.35]
[null,25,"Preferred Stocks, BSCR Rating 8",{"$f":"Import!M734","v":0},null,{"$f":"IF(OR(Import!M756=0,Import!M756=\"\"),(1-$AB49)*D49,Import!M756)","v":0},null,{"$f":"Import!M778","v":0},null,{"$f":"IF(OR(Import!M800=0,Import!M800=\"\"),(1-$AB49)*H49,Import!M800)","v":0},null,{"$f":"Import!M822","v":0},null,{"$f":"IF(OR(Import!M844=0,Import!M844=\"\"),(1-$AB49)*L49,Import!M844)","v":0},null,{"$f":"Import!M866","v":0},null,{"$f":"IF(OR(Import!M888=0,Import!M888=\"\"),P49,Import!M888)","v":0},null,{"$f":"IF(OR(Import!M910=0,Import!M910=\"\"),R49,Import!M910)","v":0},null,null,null,0,null,null,null,0.35]
[null,26,"Equity Derivatives on Type 1 Equities",{"$f":"Import!M735","v":0},null,{"$f":"Import!M757","v":0},null,{"$f":"Import!M779","v":0},null,{"$f":"Import!M801","v":0},null,{"$f":"Import!M823","v":0},null,{"$f":"Import!M845","v":0},null,{"$f":"Import!M867","v":0},null,{"$f":"IF(OR(Import!M889=0,Import!M889=\"\"),P50,Import!M889)","v":0},null,{"$f":"IF(OR(Import!M911=0,Import!M911=\"\"),R50,Import!M911)","v":0},null,null,null,0,null,null,null,0.35]
[null,27,"Strategic Holdings - Unlisted",{"$f":"Import!M736","v":0},null,{"$f":"IF(OR(Import!M758=0,Import!M758=\"\"),(1-$AB51)*D51,Import!M758)","v":0},null,{"$f":"Import!M780","v":0},null,{"$f":"IF(OR(Import!M802=0,Import!M802=\"\"),(1-$AB51)*H51,Import!M802)","v":0},null,{"$f":"Import!M824","v":0},null,{"$f":"IF(OR(Import!M846=0,Import!M846=\"\"),(1-$AB51)*L51,Import!M846)","v":0},null,{"$f":"Import!M868","v":0},null,{"$f":"IF(OR(Import!M890=0,Import!M890=\"\"),P51,Import!M890)","v":0},null,{"$f":"IF(OR(Import!M912=0,Import!M912=\"\"),R51,Import!M912)","v":0},null,null,null,0,null,null,null,0.2]
[null,28,"Other Equities / Other Assets",{"$f":"Import!M737","v":0},null,{"$f":"IF(OR(Import!M759=0,Import!M759=\"\"),(1-$AB52)*D52,Import!M759)","v":0},null,{"$f":"Import!M781","v":0},null,{"$f":"IF(OR(Import!M803=0,Import!M803=\"\"),(1-$AB52)*H52,Import!M803)","v":0},null,{"$f":"Import!M825","v":0},null,{"$f":"IF(OR(Import!M847=0,Import!M847=\"\"),(1-$AB52)*L52,Import!M847)","v":0},null,{"$f":"Import!M869","v":0},null,{"$f":"IF(OR(Import!M891=0,Import!M891=\"\"),P52,Import!M891)","v":0},null,{"$f":"IF(OR(Import!M913=0,Import!M913=\"\"),R52,Import!M913)","v":0},null,null,null,0,null,null,null,0.45]
[null,29,"Letters of Credit",{"$f":"Import!M738","v":0},null,{"$f":"IF(OR(Import!M760=0,Import!M760=\"\"),(1-$AB53)*D53,Import!M760)","v":0},null,{"$f":"Import!M782","v":0},null,{"$f":"IF(OR(Import!M804=0,Import!M804=\"\"),(1-$AB53)*H53,Import!M804)","v":0},null,{"$f":"Import!M826","v":0},null,{"$f":"IF(OR(Import!M848=0,Import!M848=\"\"),(1-$AB53)*L53,Import!M848)","v":0},null,{"$f":"Import!M870","v":0},null,{"$f":"IF(OR(Import!M892=0,Import!M892=\"\"),P53,Import!M892)","v":0},null,{"$f":"IF(OR(Import!M914=0,Import!M914=\"\"),R53,Import!M914)","v":0},null,null,null,0,null,null,null,0.2]
[null,30,"Intangible assets",{"$f":"Import!M739","v":0},null,{"$f":"IF(OR(Import!M761=0,Import!M761=\"\"),(1-$AB54)*D54,Import!M761)","v":0},null,{"$f":"Import!M783","v":0},null,{"$f":"IF(OR(Import!M805=0,Import!M805=\"\"),(1-$AB54)*H54,Import!M805)","v":0},null,{"$f":"Import!M827","v":0},null,{"$f":"IF(OR(Import!M849=0,Import!M849=\"\"),(1-$AB54)*L54,Import!M849)","v":0},null,{"$f":"Import!M871","v":0},null,{"$f":"IF(OR(Import!M893=0,Import!M893=\"\"),P54,Import!M893)","v":0},null,{"$f":"IF(OR(Import!M915=0,Import!M915=\"\"),R54,Import!M915)","v":0},null,null,null,0,null,null,null,0.2]
[null,31,"Pension Benefit Surplus",{"$f":"Import!M740","v":0},null,{"$f":"IF(OR(Import!M762=0,Import!M762=\"\"),(1-$AB55)*D55,Import!M762)","v":0},null,{"$f":"Import!M784","v":0},null,{"$f":"IF(OR(Import!M806=0,Import!M806=\"\"),(1-$AB55)*H55,Import!M806)","v":0},null,{"$f":"Import!M828","v":0},null,{"$f":"IF(OR(Import!M850=0,Import!M850=\"\"),(1-$AB55)*L55,Import!M850)","v":0},null,{"$f":"Import!M872","v":0},null,{"$f":"IF(OR(Import!M894=0,Import!M894=\"\"),P55,Import!M894)","v":0},null,{"$f":"IF(OR(Import!M916=0,Import!M916=\"\"),R55,Import!M916)","v":0},null,null,null,0,null,null,null,0.2]
[null,32,"Equity Derivatives on Type 2 Equities",{"$f":"Import!M741","v":0},null,{"$f":"Import!M763","v":0},null,{"$f":"Import!M785","v":0},null,{"$f":"Import!M807","v":0},null,{"$f":"Import!M829","v":0},null,{"$f":"Import!M851","v":0},null,{"$f":"Import!M873","v":0},null,{"$f":"IF(OR(Import!M895=0,Import!M895=\"\"),P56,Import!M895)","v":0},null,{"$f":"IF(OR(Import!M917=0,Import!M917=\"\"),R56,Import!M917)","v":0},null,null,null,0,null,null,null,0.45]
[null,33,"Infrastructure",{"$f":"Import!M742","v":0},null,{"$f":"IF(OR(Import!M764=0,Import!M764=\"\"),(1-$AB57)*D57,Import!M764)","v":0},null,{"$f":"Import!M786","v":0},null,{"$f":"IF(OR(Import!M808=0,Import!M808=\"\"),(1-$AB57)*H57,Import!M808)","v":0},null,{"$f":"Import!M830","v":0},null,{"$f":"IF(OR(Import!M852=0,Import!M852=\"\"),(1-$AB57)*L57,Import!M852)","v":0},null,{"$f":"Import!M874","v":0},null,{"$f":"IF(OR(Import!M896=0,Import!M896=\"\"),P57,Import!M896)","v":0},null,{"$f":"IF(OR(Import!M918=0,Import!M918=\"\"),R57,Import!M918)","v":0},null,null,null,0,null,null,null,0.25]
[null,34,"Derivatives on Infrastructure",{"$f":"Import!M743","v":0},null,{"$f":"Import!M765","v":0},null,{"$f":"Import!M787","v":0},null,{"$f":"Import!M809","v":0},null,{"$f":"Import!M831","v":0},null,{"$f":"Import!M853","v":0},null,{"$f":"Import!M875","v":0},null,{"$f":"IF(OR(Import!M897=0,Import!M897=\"\"),P58,Import!M897)","v":0},null,{"$f":"IF(OR(Import!M919=0,Import!M919=\"\"),R58,Import!M919)","v":0},null,null,null,0,null,null,null,0.25]
[null,35,"Equity Real Estate 1",{"$f":"Import!M744","v":0},null,{"$f":"IF(OR(Import!M766=0,Import!M766=\"\"),(1-$AB59)*D59,Import!M766)","v":0},null,{"$f":"Import!M788","v":0},null,{"$f":"IF(OR(Import!M810=0,Import!M810=\"\"),(1-$AB59)*H59,Import!M810)","v":0},null,{"$f":"Import!M832","v":0},null,{"$f":"IF(OR(Import!M854=0,Import!M854=\"\"),(1-$AB59)*L59,Import!M854)","v":0},null,{"$f":"Import!M876","v":0},null,{"$f":"IF(OR(Import!M898=0,Import!M898=\"\"),P59,Import!M898)","v":0},null,{"$f":"IF(OR(Import!M920=0,Import!M920=\"\"),R59,Import!M920)","v":0},null,null,null,0,null,null,null,0.1]
[null,36,"Equity Real Estate 2",{"$f":"Import!M745","v":0},null,{"$f":"IF(OR(Import!M767=0,Import!M767=\"\"),(1-$AB60)*D60,Import!M767)","v":0},null,{"$f":"Import!M789","v":0},null,{"$f":"IF(OR(Import!M811=0,Import!M811=\"\"),(1-$AB60)*H60,Import!M811)","v":0},null,{"$f":"Import!M833","v":0},null,{"$f":"IF(OR(Import!M855=0,Import!M855=\"\"),(1-$AB60)*L60,Import!M855)","v":0},null,{"$f":"Import!M877","v":0},null,{"$f":"IF(OR(Import!M899=0,Import!M899=\"\"),P60,Import!M899)","v":0},null,{"$f":"IF(OR(Import!M921=0,Import!M921=\"\"),R60,Import!M921)","v":0},null,null,null,0,null,null,null,0.2]
[]
[null,{"$f":"B60+1","v":37},"Total Equity Holdings",{"$f":"SUM(D38:D61)","v":0},null,{"$f":"SUM(F38:F61)","v":0},null,{"$f":"SUM(H38:H61)","v":0},null,{"$f":"SUM(J38:J61)","v":0},null,{"$f":"SUM(L38:L61)","v":0},null,{"$f":"SUM(N38:N61)","v":0},null,{"$f":"SUM(P38:P61)","v":0},null,{"$f":"SUM(R38:R61)","v":0},null,{"$f":"SUM(T38:T61)","v":0},null,null,null,{"$f":"SUM(X38:X61)","v":0}]
[]
[null,null,null,"Spread Up",null,null,null,null,null,null,null,null,null,"Spread Down"]
[null,null,null,"Long Exposures",null,null,null,"Short Exposures",null,null,null,"Shock (bps)",null,"Long Exposures",null,null,null,"Short Exposures",null,null,{"$f":"SUM(K69:K77)","v":0},"Shock Rates"]
[null,null,null,"Before Shock",null,"After Shock",null,"Before Shock",null,"After Shock",null,null,null,"Before Shock",null,"After Shock",null,"Before Shock",null,"After Shock"]
[null,null,"Spread Risk for Credit Derivatives",null,null,null,null,null,null,null,null,null,null,null,null,null,{"$f":"SUM(G71:G79)","v":0},null,{"$f":"SUM(I71:I79)","v":0},null,{"$f":"SUM(K71:K79)","v":0}]
[null,{"$f":"B62+1","v":38},"BSCR Rating 0",{"$f":"Import!M922","v":0},null,{"$f":"Import!M931","v":0},null,{"$f":"Import!M940","v":0},null,{"$f":"Import!M949","v":0},null,0,null,{"$f":"Import!M958","v":0},null,{"$f":"Import!M967","v":0},{"$f":"SUM(G72:G80)","v":0},{"$f":"Import!M976","v":0},{"$f":"SUM(I72:I80)","v":0},{"$f":"Import!M985","v":0},{"$f":"SUM(K72:K80)","v":0},0]
[null,{"$f":"B68+1","v":39},"BSCR Rating 1",{"$f":"Import!M923","v":0},null,{"$f":"Import!M932","v":0},null,{"$f":"Import!M941","v":0},null,{"$f":"Import!M950","v":0},null,130,null,{"$f":"Import!M959","v":0},null,{"$f":"Import!M968","v":0},{"$f":"SUM(G73:G80)","v":0},{"$f":"Import!M977","v":0},{"$f":"SUM(I73:I80)","v":0},{"$f":"Import!M986","v":0},{"$f":"SUM(K73:K80)","v":0},-0.75]
[null,{"$f":"B69+1","v":40},"BSCR Rating 2",{"$f":"Import!M924","v":0},null,{"$f":"Import!M933","v":0},null,{"$f":"Import!M942","v":0},null,{"$f":"Import!M951","v":0},null,150,null,{"$f":"Import!M960","v":0},null,{"$f":"Import!M969","v":0},{"$f":"SUM(G74:G80)","v":0},{"$f":"Import!M978","v":0},{"$f":"SUM(I74:I80)","v":0},{"$f":"Import!M987","v":0},{"$f":"SUM(K74:K80)","v":0},-0.75]
[null,41,"BSCR Rating 3",{"$f":"Import!M925","v":0},null,{"$f":"Import!M934","v":0},null,{"$f":"Import!M943","v":0},null,{"$f":"Import!M952","v":0},null,260,null,{"$f":"Import!M961","v":0},null,{"$f":"Import!M970","v":0},{"$f":"SUM(G75:G80)","v":0},{"$f":"Import!M979","v":0},{"$f":"SUM(I75:I80)","v":0},{"$f":"Import!M988","v":0},{"$f":"SUM(K75:K80)","v":0},-0.75]
[null,42,"BSCR Rating 4",{"$f":"Import!M926","v":0},null,{"$f":"Import!M935","v":0},null,{"$f":"Import!M944","v":0},null,{"$f":"Import!M953","v":0},null,450,null,{"$f":"Import!M962","v":0},null,{"$f":"Import!M971","v":0},{"$f":"SUM(G76:G80)","v":0},{"$f":"Import!M980","v":0},{"$f":"SUM(I76:I80)","v":0},{"$f":"Import!M989","v":0},{"$f":"SUM(K76:K80)","v":0},-0.75]
[null,43,"BSCR Rating 5",{"$f":"Import!M927","v":0},null,{"$f":"Import!M936","v":0},null,{"$f":"Import!M945","v":0},null,{"$f":"Import!M954","v":0},null,840,null,{"$f":"Import!M963","v":0},null,{"$f":"Import!M972","v":0},{"$f":"SUM(G77:G80)","v":0},{"$f":"Import!M981","v":0},{"$f":"SUM(I77:I80)","v":0},{"$f":"Import!M990","v":0},{"$f":"SUM(K77:K80)","v":0},-0.75]
[null,44,"BSCR Rating 6",{"$f":"Import!M928","v":0},null,{"$f":"Import!M937","v":0},null,{"$f":"Import!M946","v":0},null,{"$f":"Import!M955","v":0},null,1620,null,{"$f":"Import!M964","v":0},null,{"$f":"Import!M973","v":0},{"$f":"SUM(G78:G80)","v":0},{"$f":"Import!M982","v":0},{"$f":"SUM(I78:I80)","v":0},{"$f":"Import!M991","v":0},{"$f":"SUM(K78:K80)","v":0},-0.75]
[null,45,"BSCR Rating 7",{"$f":"Import!M929","v":0},null,{"$f":"Import!M938","v":0},null,{"$f":"Import!M947","v":0},null,{"$f":"Import!M956","v":0},null,1620,null,{"$f":"Import!M965","v":0},null,{"$f":"Import!M974","v":0},{"$f":"SUM(Q64:Q74)","v":0},{"$f":"Import!M983","v":0},{"$f":"SUM(S64:S74)","v":0},{"$f":"Import!M992","v":0},{"$f":"SUM(U64:U74)","v":0},-0.75]
[null,46,"BSCR Rating 8",{"$f":"Import!M930","v":0},null,{"$f":"Import!M939","v":0},null,{"$f":"Import!M948","v":0},null,{"$f":"Import!M957","v":0},null,1620,null,{"$f":"Import!M966","v":0},null,{"$f":"Import!M975","v":0},{"$f":"SUM(Q66:Q75)","v":0},{"$f":"Import!M984","v":0},{"$f":"SUM(S66:S75)","v":0},{"$f":"Import!M993","v":0},{"$f":"SUM(U66:U75)","v":0},-0.75]
[null,47,"Total Spread",{"$f":"SUM(D67:D76)","v":0},null,{"$f":"SUM(F67:F76)","v":0},null,{"$f":"SUM(H67:H76)","v":0},null,{"$f":"SUM(J67:J76)","v":0},null,null,null,{"$f":"SUM(N67:N76)","v":0},null,{"$f":"SUM(P67:P76)","v":0},{"$f":"SUM(Q67:Q76)","v":0},{"$f":"SUM(R67:R76)","v":0},{"$f":"SUM(S67:S76)","v":0},{"$f":"SUM(T67:T76)","v":0},{"$f":"SUM(U67:U76)","v":0}]
[]
[null,null,"Spread Risk Check",null,null,null,null,null,null,null,null,null,null,{"$f":"IF(ROUND(D77-N77,0)=0,\"Yes\",\"No\")","v":"Yes"},null,null,null,{"$f":"IF(ROUND(H77-R77,0)=0,\"Yes\",\"No\")","v":"Yes"}]
[null,null,"Difference",null,null,null,null,null,null,null,null,null,null,{"$f":"ROUND(D77-N77,0)","v":0},null,null,null,{"$f":"ROUND(H77-R77,0)","v":0}]
[]
[null,null,null,"Market Value of Derivatives with Positive Market Value",null,"Market Value of Derivatives with Negative Market Value",null,"Market Value of Collateral, Excluding any over-collateralisation",null,null,null,"This section is only applicable to companies that have mortgage-backed securities that have been reclassified in accordance with the NAIC and that elect to use NAIC reclassifications to map to the BSCR classes"]
[null,null,"Counterparty Default Risk for OTC Derivatives",null,null,null,null,null,null,null,null,null,null,"Values of Residential Mortgage-Backed Securities",null,null,null,"Values of Commercial Mortgage-backed Securities/Asset-Backed Securities"]
[null,{"$f":"B77+1","v":48},"BSCR Rating 0",{"$f":"Import!M994","v":0},null,{"$f":"Import!M1003","v":0},null,{"$f":"Import!M1012","v":0},null,null,null,null,null,"Original Classification",null,"Revised Classification",null,"Original Classification",null,"Revised Classification"]
[null,{"$f":"B84+1","v":49},"BSCR Rating 1",{"$f":"Import!M995","v":0},null,{"$f":"Import!M1004","v":0},null,{"$f":"Import!M1013","v":0}]
[null,{"$f":"B85+1","v":50},"BSCR Rating 2",{"$f":"Import!M996","v":0},null,{"$f":"Import!M1005","v":0},null,{"$f":"Import!M1014","v":0},null,null,null,"NAIC Class 1",null,{"$f":"Import!M1022","v":0},null,{"$f":"Import!M1029","v":0},null,{"$f":"Import!M1036","v":0},null,{"$f":"Import!M1043","v":0}]
[null,51,"BSCR Rating 3",{"$f":"Import!M997","v":0},null,{"$f":"Import!M1006","v":0},null,{"$f":"Import!M1015","v":0},null,null,null,"NAIC Class 2",null,{"$f":"Import!M1023","v":0},null,{"$f":"Import!M1030","v":0},null,{"$f":"Import!M1037","v":0},null,{"$f":"Import!M1044","v":0}]
[null,52,"BSCR Rating 4",{"$f":"Import!M998","v":0},null,{"$f":"Import!M1007","v":0},null,{"$f":"Import!M1016","v":0},null,null,null,"NAIC Class 3",null,{"$f":"Import!M1024","v":0},null,{"$f":"Import!M1031","v":0},null,{"$f":"Import!M1038","v":0},null,{"$f":"Import!M1045","v":0}]
[null,53,"BSCR Rating 5",{"$f":"Import!M999","v":0},null,{"$f":"Import!M1008","v":0},null,{"$f":"Import!M1017","v":0},null,null,null,"NAIC Class 4",null,{"$f":"Import!M1025","v":0},null,{"$f":"Import!M1032","v":0},null,{"$f":"Import!M1039","v":0},null,{"$f":"Import!M1046","v":0}]
[null,54,"BSCR Rating 6",{"$f":"Import!M1000","v":0},null,{"$f":"Import!M1009","v":0},null,{"$f":"Import!M1018","v":0},null,null,null,"NAIC Class 5",null,{"$f":"Import!M1026","v":0},null,{"$f":"Import!M1033","v":0},null,{"$f":"Import!M1040","v":0},null,{"$f":"Import!M1047","v":0}]
[null,55,"BSCR Rating 7",{"$f":"Import!M1001","v":0},null,{"$f":"Import!M1010","v":0},null,{"$f":"Import!M1019","v":0},null,null,null,"NAIC Class 6",null,{"$f":"Import!M1027","v":0},null,{"$f":"Import!M1034","v":0},null,{"$f":"Import!M1041","v":0},null,{"$f":"Import!M1048","v":0}]
[null,56,"BSCR Rating 8",{"$f":"Import!M1002","v":0},null,{"$f":"Import!M1011","v":0},null,{"$f":"Import!M1020","v":0},null,null,null,{"$f":"IF('Company Information'!$F$11=\"IIGB\",HYPERLINK(\"#'Attachments'!G45\",\"Attach file\"),HYPERLINK(\"#'Attachments'!G65\",\"Attach file\"))","v":"Attach file"},null,{"$f":"SUM(N86:N91)","v":0},null,{"$f":"SUM(P86:P91)","v":0},null,{"$f":"SUM(R86:R91)","v":0},null,{"$f":"SUM(T86:T91)","v":0}]
[null,57,"Total Default Risk for OTC Derivatives ",{"$f":"SUM(D83:D92)","v":0},null,{"$f":"SUM(F83:F92)","v":0},null,{"$f":"SUM(H83:H92)","v":0},null,null,null,null,null,null,{"$f":"SUM(N86:N91)","v":0},null,{"$f":"SUM(P86:P91)","v":0},null,{"$f":"SUM(R86:R91)","v":0}]
[]
[null,{"$f":"B93+1","v":58},"Cash and Cash Equivalents",{"$f":"Import!M1021","v":0}]
[]
[null,{"$f":"B95+1","v":59},"Total Fixed Income & Equity Investments",{"$f":"X27+X62+D77+H77+D93+F93+H93+D95","v":0}]
[]
[null,null,"Please include in the table below any assets, included in this Schedule, for which NAIC ratings were used to map to the BSCR rating classes"]
[null,null,"Information on the use of NAIC ratings\n(for disclosure purposes only)","Corporate & Sovereign Bonds",null,"Residential Mortgage-Backed Securities",null,"Commercial Mortgage-Backed Securities/Asset-Backed Securities",null,"Bond Mutual Funds",null,"Mortgage Loans",null,"Preferred Stocks",null,"Other Assets"]
[null,null,"NAIC Class 1",{"$f":"Import!M1050","v":0},null,{"$f":"Import!M1057","v":0},null,{"$f":"Import!M1064","v":0},null,{"$f":"Import!M1071","v":0},null,{"$f":"Import!M1078","v":0},null,{"$f":"Import!M1085","v":0},null,{"$f":"Import!M1092","v":0}]
[null,null,"NAIC Class 2",{"$f":"Import!M1051","v":0},null,{"$f":"Import!M1058","v":0},null,{"$f":"Import!M1065","v":0},null,{"$f":"Import!M1072","v":0},null,{"$f":"Import!M1079","v":0},null,{"$f":"Import!M1086","v":0},null,{"$f":"Import!M1093","v":0}]
[null,null,"NAIC Class 3",{"$f":"Import!M1052","v":0},null,{"$f":"Import!M1059","v":0},null,{"$f":"Import!M1066","v":0},null,{"$f":"Import!M1073","v":0},null,{"$f":"Import!M1080","v":0},null,{"$f":"Import!M1087","v":0},null,{"$f":"Import!M1094","v":0}]
[null,null,"NAIC Class 4",{"$f":"Import!M1053","v":0},null,{"$f":"Import!M1060","v":0},null,{"$f":"Import!M1067","v":0},null,{"$f":"Import!M1074","v":0},null,{"$f":"Import!M1081","v":0},null,{"$f":"Import!M1088","v":0},null,{"$f":"Import!M1095","v":0}]
[null,null,"NAIC Class 5",{"$f":"Import!M1054","v":0},null,{"$f":"Import!M1061","v":0},null,{"$f":"Import!M1068","v":0},null,{"$f":"Import!M1075","v":0},null,{"$f":"Import!M1082","v":0},null,{"$f":"Import!M1089","v":0},null,{"$f":"Import!M1096","v":0}]
[null,null,"NAIC Class 6",{"$f":"Import!M1055","v":0},null,{"$f":"Import!M1062","v":0},null,{"$f":"Import!M1069","v":0},null,{"$f":"Import!M1076","v":0},null,{"$f":"Import!M1083","v":0},null,{"$f":"Import!M1090","v":0},null,{"$f":"Import!M1097","v":0}]
[null,null,null,{"$f":"SUM(D101:D106)","v":0},null,{"$f":"SUM(F101:F106)","v":0},null,{"$f":"SUM(H101:H106)","v":0},null,{"$f":"SUM(J101:J106)","v":0},null,{"$f":"SUM(L101:L106)","v":0},null,{"$f":"SUM(N101:N106)","v":0},null,{"$f":"SUM(P101:P106)","v":0}]

{"sheet":"Schedule IIC","index":29,"n_rows":107,"n_cols":28,"rows_kept":107,"cut":false,"hidden":false,"merged":[[33,27,34,27],[2,1,2,3],[3,3,3,5],[4,3,4,5],[7,3,7,5],[7,7,7,9],[33,23,34,23],[33,15,34,15],[33,17,34,17],[33,19,34,19],[7,23,7,25],[64,17,64,19],[63,3,63,11],[63,13,63,21],[7,19,7,21],[32,3,32,13],[7,15,7,17],[32,15,32,19],[34,7,34,9],[34,11,34,13],[33,3,34,5],[33,7,33,13],[7,11,7,13],[64,3,64,5],[64,7,64,9],[64,13,64,15]]}
[null,"SCHEDULE OF FUNDS HELD",null,null,null,null,null,null,null,null,null,null,null,null,null,null,null,null,null,null,null,null,null,null,null,null,null,{"$f":"HYPERLINK(\"#'Index'!A1\",\"Return to Index\")","v":"Return to Index"}]
[]
[null,{"$f":"+'Company Information'!C7","v":"Enter Company Name"}]
[null,"As at",null,{"$f":"+'Company Information'!C3","v":"2022-12-31"},null,null,null,null,null,null,null,null,null,null,null,null,null,null,null,null,null,null,null,null,null,"SCHEDULE IIC"]
[null,{"$f":"\"expressed in\"& IF(CONFIGURATION!$B$12>1,\" ['\"&MID(CONFIGURATION!$B$12,2,LEN(CONFIGURATION!$B$12))&\"s]\",\"\")","v":"expressed in ['000s]"},null,{"$f":"'Form 1SFS (Consolidated)'!$C$5","v":"United States Dollars"}]
[]
[null,null,null,"(1)",null,"(2)",null,"(3)",null,"(4)",null,"(5)",null,"(6)",null,"(7)",null,"(8)",null,"(9)",null,"(10)",null,"(11)",null,"(12)"]
[null,null,null,"Corporate & Sovereign Bonds",null,null,null,"Residential Mortgage Backed Securities",null,null,null,"Commercial Mortgage Backed Securities / Asset- Backed Securities",null,null,null,"Bond Mutual Funds",null,null,null,"Mortgage Loans",null,null,null,"TOTAL"]
[null,null,null,{"$f":"'Form 1SFS (Consolidated)'!$M$9","v":"2022-12-31"},null,{"$f":"'Form 1SFS (Consolidated)'!$O$9","v":"2021-12-31"},null,{"$f":"'Form 1SFS (Consolidated)'!$M$9","v":"2022-12-31"},null,{"$f":"'Form 1SFS (Consolidated)'!$O$9","v":"2021-12-31"},null,{"$f":"'Form 1SFS (Consolidated)'!$M$9","v":"2022-12-31"},null,{"$f":"'Form 1SFS (Consolidated)'!$O$9","v":"2021-12-31"},null,{"$f":"'Form 1SFS (Consolidated)'!$M$9","v":"2022-12-31"},null,{"$f":"'Form 1SFS (Consolidated)'!$O$9","v":"2021-12-31"},null,{"$f":"'Form 1SFS (Consolidated)'!$M$9","v":"2022-12-31"},null,{"$f":"'Form 1SFS (Consolidated)'!$O$9","v":"2021-12-31"},null,{"$f":"'Form 1SFS (Consolidated)'!$M$9","v":"2022-12-31"},null,{"$f":"'Form 1SFS (Consolidated)'!$O$9","v":"2021-12-31"}]
[null,null,null,{"$f":"'Form 1SFS (Consolidated)'!$M$10","v":" ('000s)"},null,{"$f":"'Form 1SFS (Consolidated)'!$O$10","v":" ('000s)"},null,{"$f":"'Form 1SFS (Consolidated)'!$M$10","v":" ('000s)"},null,{"$f":"'Form 1SFS (Consolidated)'!$O$10","v":" ('000s)"},null,{"$f":"'Form 1SFS (Consolidated)'!$M$10","v":" ('000s)"},null,{"$f":"'Form 1SFS (Consolidated)'!$O$10","v":" ('000s)"},null,{"$f":"'Form 1SFS (Consolidated)'!$M$10","v":" ('000s)"},null,{"$f":"'Form 1SFS (Consolidated)'!$O$10","v":" ('000s)"},null,{"$f":"'Form 1SFS (Consolidated)'!$M$10","v":" ('000s)"},null,{"$f":"'Form 1SFS (Consolidated)'!$O$10","v":" ('000s)"},null,{"$f":"'Form 1SFS (Consolidated)'!$M$10","v":" ('000s)"},null,{"$f":"'Form 1SFS (Consolidated)'!$O$10","v":" ('000s)"}]
[null,"Line no. "]
[null,"Quoted and Unquoted Bonds and Debentures"]
[null,1,"BSCR Rating 0",{"$f":"Import!M1100","v":0},null,{"$f":"Import!O1100","v":0},null,null,null,null,null,null,null,null,null,{"$f":"Import!M1125","v":0},null,{"$f":"Import!O1125","v":0},null,null,null,null,null,{"$f":"D13+H13+L13+P13","v":0},null,{"$f":"F13+J13+N13+R13","v":0}]
[null,2,"BSCR Rating 1",{"$f":"Import!M1101","v":0},null,{"$f":"Import!O1101","v":0},null,{"$f":"Import!M1109","v":0},null,{"$f":"Import!O1109","v":0},null,{"$f":"Import!M1117","v":0},null,{"$f":"Import!O1117","v":0},null,{"$f":"Import!M1126","v":0},null,{"$f":"Import!O1126","v":0},null,null,null,null,null,{"$f":"D14+H14+L14+P14","v":0},null,0]
[null,3,"BSCR Rating 2",{"$f":"Import!M1102","v":0},null,{"$f":"Import!O1102","v":0},null,{"$f":"Import!M1110","v":0},null,{"$f":"Import!O1110","v":0},null,{"$f":"Import!M1118","v":0},null,{"$f":"Import!O1118","v":0},null,{"$f":"Import!M1127","v":0},null,{"$f":"Import!O1127","v":0},null,null,null,null,null,0,null,0]
[null,4,"BSCR Rating 3",{"$f":"Import!M1103","v":0},null,{"$f":"Import!O1103","v":0},null,{"$f":"Import!M1111","v":0},null,{"$f":"Import!O1111","v":0},null,{"$f":"Import!M1119","v":0},null,{"$f":"Import!O1119","v":0},null,{"$f":"Import!M1128","v":0},null,{"$f":"Import!O1128","v":0},null,null,null,null,null,0,null,0]
[null,5,"BSCR Rating 4",{"$f":"Import!M1104","v":0},null,{"$f":"Import!O1104","v":0},null,{"$f":"Import!M1112","v":0},null,{"$f":"Import!O1112","v":0},null,{"$f":"Import!M1120","v":0},null,{"$f":"Import!O1120","v":0},null,{"$f":"Import!M1129","v":0},null,{"$f":"Import!O1129","v":0},null,null,null,null,null,0,null,0]
[null,6,"BSCR Rating 5",{"$f":"Import!M1105","v":0},null,{"$f":"Import!O1105","v":0},null,{"$f":"Import!M1113","v":0},null,{"$f":"Import!O1113","v":0},null,{"$f":"Import!M1121","v":0},null,{"$f":"Import!O1121","v":0},null,{"$f":"Import!M1130","v":0},null,{"$f":"Import!O1130","v":0},null,null,null,null,null,0,null,0]
[null,7,"BSCR Rating 6",{"$f":"Import!M1106","v":0},null,{"$f":"Import!O1106","v":0},null,{"$f":"Import!M1114","v":0},null,{"$f":"Import!O1114","v":0},null,{"$f":"Import!M1122","v":0},null,{"$f":"Import!O1122","v":0},null,{"$f":"Import!M1131","v":0},null,{"$f":"Import!O1131","v":0},null,null,null,null,null,0,null,0]
[null,8,"BSCR Rating 7",{"$f":"Import!M1107","v":0},null,{"$f":"Import!O1107","v":0},null,{"$f":"Import!M1115","v":0},null,{"$f":"Import!O1115","v":0},null,{"$f":"Import!M1123","v":0},null,{"$f":"Import!O1123","v":0},null,{"$f":"Import!M1132","v":0},null,{"$f":"Import!O1132","v":0},null,null,null,null,null,0,null,0]
[null,9,"BSCR Rating 8",{"$f":"Import!M1108","v":0},null,{"$f":"Import!O1108","v":0},null,{"$f":"Import!M1116","v":0},null,{"$f":"Import!O1116","v":0},null,{"$f":"Import!M1124","v":0},null,{"$f":"Import!O1124","v":0},null,{"$f":"Import!M1133","v":0},null,{"$f":"Import!O1133","v":0},null,null,null,null,null,{"$f":"D21+H21+L21+P21","v":0},null,{"$f":"F21+J21+N21+R21","v":0}]
[null,{"$f":"B21+1","v":10},"Insured/Guaranteed Mortgages",null,null,null,null,null,null,null,null,null,null,null,null,null,null,null,null,{"$f":"Import!M1134","v":0},null,{"$f":"Import!O1134","v":0},null,{"$f":"D22+H22+L22+P22+T22","v":0},null,{"$f":"F22+J22+N22+R22+V22","v":0}]
[null,{"$f":"B22+1","v":11},"Other Commercial and Farm Mortgages",null,null,null,null,null,null,null,null,null,null,null,null,null,null,null,null,{"$f":"Import!M1135","v":0},null,{"$f":"Import!O1135","v":0},null,{"$f":"D23+H23+L23+P23+T23","v":0},null,0]
[null,{"$f":"B23+1","v":12},"Other Residential Mortgages",null,null,null,null,null,null,null,null,null,null,null,null,null,null,null,null,{"$f":"Import!M1136","v":0},null,{"$f":"Import!O1136","v":0},null,{"$f":"D24+H24+L24+P24+T24","v":0},null,{"$f":"F24+J24+N24+R24+V24","v":0}]
[null,13,"Mortgages Not In Good Standing",null,null,null,null,null,null,null,null,null,null,null,null,null,null,null,null,{"$f":"Import!M1137","v":0},null,{"$f":"Import!O1137","v":0},null,0,null,0]
[]
[null,{"$f":"B25+1","v":14},"Total",{"$f":"SUM(D13:D21)","v":0},null,{"$f":"SUM(F13:F21)","v":0},null,{"$f":"SUM(H13:H21)","v":0},null,{"$f":"SUM(J13:J21)","v":0},null,{"$f":"SUM(L13:L21)","v":0},null,{"$f":"SUM(N13:N21)","v":0},null,{"$f":"SUM(P13:P21)","v":0},null,{"$f":"SUM(R13:R21)","v":0},null,{"$f":"SUM(T13:T26)","v":0},null,{"$f":"SUM(V13:V26)","v":0},null,{"$f":"SUM(X13:X26)","v":0},null,{"$f":"SUM(Z13:Z26)","v":0}]
[]
[]
[]
[]
[]
[null,null,null,"ASSETS",null,null,null,null,null,null,null,null,null,null,null,"Liabilities"]
[null,null,null,"Long Exposures",null,null,null,"Short Exposures",null,null,null,null,null,null,null,null,null,"Without Management Actions",null,"With Management Actions",null,null,null,"Total Assets Before Shock",null,null,null,"Shocks"]
[null,null,null,null,null,null,null,"Qualifying as Assets held for risk-mitigation purposes",null,null,null,"Not Qualifying as Assets held for risk-mitigation purposes",null,null,null,null,null,null,null,null,null,null,null,null,null,null,null,"Shocks"]
[null,null,null,"Before Shock",null,"After Shock",null,"Before Shock",null,"After Shock",null,"Before Shock",null,"After Shock",null,"Before Shock",null,"After Shock",null,"After Shock"]
[null,null,null,{"$f":"'Form 1SFS (Consolidated)'!$M$10","v":" ('000s)"},null,{"$f":"'Form 1SFS (Consolidated)'!$O$10","v":" ('000s)"},null,{"$f":"'Form 1SFS (Consolidated)'!$M$10","v":" ('000s)"},null,{"$f":"'Form 1SFS (Consolidated)'!$O$10","v":" ('000s)"},null,{"$f":"'Form 1SFS (Consolidated)'!$M$10","v":" ('000s)"},null,{"$f":"'Form 1SFS (Consolidated)'!$O$10","v":" ('000s)"},null,{"$f":"'Form 1SFS (Consolidated)'!$M$10","v":" ('000s)"},null,{"$f":"'Form 1SFS (Consolidated)'!$O$10","v":" ('000s)"},null,{"$f":"'Form 1SFS (Consolidated)'!$O$10","v":" ('000s)"},null,null,null,{"$f":"'Form 1SFS (Consolidated)'!$O$10","v":" ('000s)"}]
[null,"Equity Holdings "]
[null,{"$f":"B27+1","v":15},"Strategic Holdings - Listed",{"$f":"Import!M1138","v":0},null,{"$f":"IF(OR(Import!M1160=0,Import!M1160=\"\"),(1-$AB39)*D39,Import!M1160)","v":0},null,{"$f":"Import!M1182","v":0},null,{"$f":"IF(OR(Import!M1204=0,Import!M1204=\"\"),(1-$AB39)*H39,Import!M1204)","v":0},null,{"$f":"Import!M1226","v":0},null,{"$f":"IF(OR(Import!M1248=0,Import!M1248=\"\"),(1-$AB39)*L39,Import!M1248)","v":0},null,{"$f":"Import!M1270","v":0},null,{"$f":"IF(OR(Import!M1292=0,Import!M1292=\"\"),P39,Import!M1292)","v":0},null,{"$f":"IF(OR(Import!M1314=0,Import!M1314=\"\"),R39,Import!M1314)","v":0},null,null,null,{"$f":"D39+H39+L39","v":0},null,null,null,0.2]
[null,{"$f":"B39+1","v":16},"Duration Based",{"$f":"Import!M1139","v":0},null,{"$f":"IF(OR(Import!M1161=0,Import!M1161=\"\"),(1-$AB40)*D40,Import!M1161)","v":0},null,{"$f":"Import!M1183","v":0},null,{"$f":"IF(OR(Import!M1205=0,Import!M1205=\"\"),(1-$AB40)*H40,Import!M1205)","v":0},null,{"$f":"Import!M1227","v":0},null,{"$f":"IF(OR(Import!M1249=0,Import!M1249=\"\"),(1-$AB40)*L40,Import!M1249)","v":0},null,{"$f":"Import!M1271","v":0},null,{"$f":"IF(OR(Import!M1293=0,Import!M1293=\"\"),P40,Import!M1293)","v":0},null,{"$f":"IF(OR(Import!M1315=0,Import!M1315=\"\"),R40,Import!M1315)","v":0},null,null,null,{"$f":"D40+H40+L40","v":0},null,null,null,0.2]
[null,17,"Listed Equity Securities in Developed Markets",{"$f":"Import!M1140","v":0},null,{"$f":"IF(OR(Import!M1162=0,Import!M1162=\"\"),(1-$AB41)*D41,Import!M1162)","v":0},null,{"$f":"Import!M1184","v":0},null,{"$f":"IF(OR(Import!M1206=0,Import!M1206=\"\"),(1-$AB41)*H41,Import!M1206)","v":0},null,{"$f":"Import!M1228","v":0},null,{"$f":"IF(OR(Import!M1250=0,Import!M1250=\"\"),(1-$AB41)*L41,Import!M1250)","v":0},null,{"$f":"Import!M1272","v":0},null,{"$f":"IF(OR(Import!M1294=0,Import!M1294=\"\"),P41,Import!M1294)","v":0},null,{"$f":"IF(OR(Import!M1316=0,Import!M1316=\"\"),R41,Import!M1316)","v":0},null,null,null,0,null,null,null,0.35]
[null,18,"Preferred Stocks, BSCR Rating 1",{"$f":"Import!M1141","v":0},null,{"$f":"IF(OR(Import!M1163=0,Import!M1163=\"\"),(1-$AB42)*D42,Import!M1163)","v":0},null,{"$f":"Import!M1185","v":0},null,{"$f":"IF(OR(Import!M1207=0,Import!M1207=\"\"),(1-$AB42)*H42,Import!M1207)","v":0},null,{"$f":"Import!M1229","v":0},null,{"$f":"IF(OR(Import!M1251=0,Import!M1251=\"\"),(1-$AB42)*L42,Import!M1251)","v":0},null,{"$f":"Import!M1273","v":0},null,{"$f":"IF(OR(Import!M1295=0,Import!M1295=\"\"),P42,Import!M1295)","v":0},null,{"$f":"IF(OR(Import!M1317=0,Import!M1317=\"\"),R42,Import!M1317)","v":0},null,null,null,0,null,null,null,6.0000000000000001E-3]
[null,19,"Preferred Stocks, BSCR Rating 2",{"$f":"Import!M1142","v":0},null,{"$f":"IF(OR(Import!M1164=0,Import!M1164=\"\"),(1-$AB43)*D43,Import!M1164)","v":0},null,{"$f":"Import!M1186","v":0},null,{"$f":"IF(OR(Import!M1208=0,Import!M1208=\"\"),(1-$AB43)*H43,Import!M1208)","v":0},null,{"$f":"Import!M1230","v":0},null,{"$f":"IF(OR(Import!M1252=0,Import!M1252=\"\"),(1-$AB43)*L43,Import!M1252)","v":0},null,{"$f":"Import!M1274","v":0},null,{"$f":"IF(OR(Import!M1296=0,Import!M1296=\"\"),P43,Import!M1296)","v":0},null,{"$f":"IF(OR(Import!M1318=0,Import!M1318=\"\"),R43,Import!M1318)","v":0},null,null,null,0,null,null,null,1.2E-2]
[null,20,"Preferred Stocks, BSCR Rating 3",{"$f":"Import!M1143","v":0},null,{"$f":"IF(OR(Import!M1165=0,Import!M1165=\"\"),(1-$AB44)*D44,Import!M1165)","v":0},null,{"$f":"Import!M1187","v":0},null,{"$f":"IF(OR(Import!M1209=0,Import!M1209=\"\"),(1-$AB44)*H44,Import!M1209)","v":0},null,{"$f":"Import!M1231","v":0},null,{"$f":"IF(OR(Import!M1253=0,Import!M1253=\"\"),(1-$AB44)*L44,Import!M1253)","v":0},null,{"$f":"Import!M1275","v":0},null,{"$f":"IF(OR(Import!M1297=0,Import!M1297=\"\"),P44,Import!M1297)","v":0},null,{"$f":"IF(OR(Import!M1319=0,Import!M1319=\"\"),R44,Import!M1319)","v":0},null,null,null,0,null,null,null,0.02]
[null,21,"Preferred Stocks, BSCR Rating 4",{"$f":"Import!M1144","v":0},null,{"$f":"IF(OR(Import!M1166=0,Import!M1166=\"\"),(1-$AB45)*D45,Import!M1166)","v":0},null,{"$f":"Import!M1188","v":0},null,{"$f":"IF(OR(Import!M1210=0,Import!M1210=\"\"),(1-$AB45)*H45,Import!M1210)","v":0},null,{"$f":"Import!M1232","v":0},null,{"$f":"IF(OR(Import!M1254=0,Import!M1254=\"\"),(1-$AB45)*L45,Import!M1254)","v":0},null,{"$f":"Import!M1276","v":0},null,{"$f":"IF(OR(Import!M1298=0,Import!M1298=\"\"),P45,Import!M1298)","v":0},null,{"$f":"IF(OR(Import!M1320=0,Import!M1320=\"\"),R45,Import!M1320)","v":0},null,null,null,0,null,null,null,0.04]
[null,22,"Preferred Stocks, BSCR Rating 5",{"$f":"Import!M1145","v":0},null,{"$f":"IF(OR(Import!M1167=0,Import!M1167=\"\"),(1-$AB46)*D46,Import!M1167)","v":0},null,{"$f":"Import!M1189","v":0},null,{"$f":"IF(OR(Import!M1211=0,Import!M1211=\"\"),(1-$AB46)*H46,Import!M1211)","v":0},null,{"$f":"Import!M1233","v":0},null,{"$f":"IF(OR(Import!M1255=0,Import!M1255=\"\"),(1-$AB46)*L46,Import!M1255)","v":0},null,{"$f":"Import!M1277","v":0},null,{"$f":"IF(OR(Import!M1299=0,Import!M1299=\"\"),P46,Import!M1299)","v":0},null,{"$f":"IF(OR(Import!M1321=0,Import!M1321=\"\"),R46,Import!M1321)","v":0},null,null,null,0,null,null,null,0.11]
[null,23,"Preferred Stocks, BSCR Rating 6",{"$f":"Import!M1146","v":0},null,{"$f":"IF(OR(Import!M1168=0,Import!M1168=\"\"),(1-$AB47)*D47,Import!M1168)","v":0},null,{"$f":"Import!M1190","v":0},null,{"$f":"IF(OR(Import!M1212=0,Import!M1212=\"\"),(1-$AB47)*H47,Import!M1212)","v":0},null,{"$f":"Import!M1234","v":0},null,{"$f":"IF(OR(Import!M1256=0,Import!M1256=\"\"),(1-$AB47)*L47,Import!M1256)","v":0},null,{"$f":"Import!M1278","v":0},null,{"$f":"IF(OR(Import!M1300=0,Import!M1300=\"\"),P47,Import!M1300)","v":0},null,{"$f":"IF(OR(Import!M1322=0,Import!M1322=\"\"),R47,Import!M1322)","v":0},null,null,null,0,null,null,null,0.25]
[null,24,"Preferred Stocks, BSCR Rating 7",{"$f":"Import!M1147","v":0},null,{"$f":"IF(OR(Import!M1169=0,Import!M1169=\"\"),(1-$AB48)*D48,Import!M1169)","v":0},null,{"$f":"Import!M1191","v":0},null,{"$f":"IF(OR(Import!M1213=0,Import!M1213=\"\"),(1-$AB48)*H48,Import!M1213)","v":0},null,{"$f":"Import!M1235","v":0},null,{"$f":"IF(OR(Import!M1257=0,Import!M1257=\"\"),(1-$AB48)*L48,Import!M1257)","v":0},null,{"$f":"Import!M1279","v":0},null,{"$f":"IF(OR(Import!M1301=0,Import!M1301=\"\"),P48,Import!M1301)","v":0},null,{"$f":"IF(OR(Import!M1323=0,Import!M1323=\"\"),R48,Import!M1323)","v":0},null,null,null,0,null,null,null,0.35]
[null,25,"Preferred Stocks, BSCR Rating 8",{"$f":"Import!M1148","v":0},null,{"$f":"IF(OR(Import!M1170=0,Import!M1170=\"\"),(1-$AB49)*D49,Import!M1170)","v":0},null,{"$f":"Import!M1192","v":0},null,{"$f":"IF(OR(Import!M1214=0,Import!M1214=\"\"),(1-$AB49)*H49,Import!M1214)","v":0},null,{"$f":"Import!M1236","v":0},null,{"$f":"IF(OR(Import!M1258=0,Import!M1258=\"\"),(1-$AB49)*L49,Import!M1258)","v":0},null,{"$f":"Import!M1280","v":0},null,{"$f":"IF(OR(Import!M1302=0,Import!M1302=\"\"),P49,Import!M1302)","v":0},null,{"$f":"IF(OR(Import!M1324=0,Import!M1324=\"\"),R49,Import!M1324)","v":0},null,null,null,0,null,null,null,0.35]
[null,26,"Equity Derivatives on Type 1 Equities",{"$f":"Import!M1149","v":0},null,{"$f":"Import!M1171","v":0},null,{"$f":"Import!M1193","v":0},null,{"$f":"Import!M1215","v":0},null,{"$f":"Import!M1237","v":0},null,{"$f":"Import!M1259","v":0},null,{"$f":"Import!M1281","v":0},null,{"$f":"IF(OR(Import!M1303=0,Import!M1303=\"\"),P50,Import!M1303)","v":0},null,{"$f":"IF(OR(Import!M1325=0,Import!M1325=\"\"),R50,Import!M1325)","v":0},null,null,null,0,null,null,null,0.35]
[null,27,"Strategic Holdings - Unlisted",{"$f":"Import!M1150","v":0},null,{"$f":"IF(OR(Import!M1172=0,Import!M1172=\"\"),(1-$AB51)*D51,Import!M1172)","v":0},null,{"$f":"Import!M1194","v":0},null,{"$f":"IF(OR(Import!M1216=0,Import!M1216=\"\"),(1-$AB51)*H51,Import!M1216)","v":0},null,{"$f":"Import!M1238","v":0},null,{"$f":"IF(OR(Import!M1260=0,Import!M1260=\"\"),(1-$AB51)*L51,Import!M1260)","v":0},null,{"$f":"Import!M1282","v":0},null,{"$f":"IF(OR(Import!M1304=0,Import!M1304=\"\"),P51,Import!M1304)","v":0},null,{"$f":"IF(OR(Import!M1326=0,Import!M1326=\"\"),R51,Import!M1326)","v":0},null,null,null,0,null,null,null,0.2]
[null,28,"Other Equities / Other Assets",{"$f":"Import!M1151","v":0},null,{"$f":"IF(OR(Import!M1173=0,Import!M1173=\"\"),(1-$AB52)*D52,Import!M1173)","v":0},null,{"$f":"Import!M1195","v":0},null,{"$f":"IF(OR(Import!M1217=0,Import!M1217=\"\"),(1-$AB52)*H52,Import!M1217)","v":0},null,{"$f":"Import!M1239","v":0},null,{"$f":"IF(OR(Import!M1261=0,Import!M1261=\"\"),(1-$AB52)*L52,Import!M1261)","v":0},null,{"$f":"Import!M1283","v":0},null,{"$f":"IF(OR(Import!M1305=0,Import!M1305=\"\"),P52,Import!M1305)","v":0},null,{"$f":"IF(OR(Import!M1327=0,Import!M1327=\"\"),R52,Import!M1327)","v":0},null,null,null,0,null,null,null,0.45]
[null,29,"Letters of Credit",{"$f":"Import!M1152","v":0},null,{"$f":"IF(OR(Import!M1174=0,Import!M1174=\"\"),(1-$AB53)*D53,Import!M1174)","v":0},null,{"$f":"Import!M1196","v":0},null,{"$f":"IF(OR(Import!M1218=0,Import!M1218=\"\"),(1-$AB53)*H53,Import!M1218)","v":0},null,{"$f":"Import!M1240","v":0},null,{"$f":"IF(OR(Import!M1262=0,Import!M1262=\"\"),(1-$AB53)*L53,Import!M1262)","v":0},null,{"$f":"Import!M1284","v":0},null,{"$f":"IF(OR(Import!M1306=0,Import!M1306=\"\"),P53,Import!M1306)","v":0},null,{"$f":"IF(OR(Import!M1328=0,Import!M1328=\"\"),R53,Import!M1328)","v":0},null,null,null,0,null,null,null,0.2]
[null,30,"Intangible assets",{"$f":"Import!M1153","v":0},null,{"$f":"IF(OR(Import!M1175=0,Import!M1175=\"\"),(1-$AB54)*D54,Import!M1175)","v":0},null,{"$f":"Import!M1197","v":0},null,{"$f":"IF(OR(Import!M1219=0,Import!M1219=\"\"),(1-$AB54)*H54,Import!M1219)","v":0},null,{"$f":"Import!M1241","v":0},null,{"$f":"IF(OR(Import!M1263=0,Import!M1263=\"\"),(1-$AB54)*L54,Import!M1263)","v":0},null,{"$f":"Import!M1285","v":0},null,{"$f":"IF(OR(Import!M1307=0,Import!M1307=\"\"),P54,Import!M1307)","v":0},null,{"$f":"IF(OR(Import!M1329=0,Import!M1329=\"\"),R54,Import!M1329)","v":0},null,null,null,0,null,null,null,0.2]
[null,31,"Pension Benefit Surplus",{"$f":"Import!M1154","v":0},null,{"$f":"IF(OR(Import!M1176=0,Import!M1176=\"\"),(1-$AB55)*D55,Import!M1176)","v":0},null,{"$f":"Import!M1198","v":0},null,{"$f":"IF(OR(Import!M1220=0,Import!M1220=\"\"),(1-$AB55)*H55,Import!M1220)","v":0},null,{"$f":"Import!M1242","v":0},null,{"$f":"IF(OR(Import!M1264=0,Import!M1264=\"\"),(1-$AB55)*L55,Import!M1264)","v":0},null,{"$f":"Import!M1286","v":0},null,{"$f":"IF(OR(Import!M1308=0,Import!M1308=\"\"),P55,Import!M1308)","v":0},null,{"$f":"IF(OR(Import!M1330=0,Import!M1330=\"\"),R55,Import!M1330)","v":0},null,null,null,0,null,null,null,0.2]
[null,32,"Equity Derivatives on Type 2 Equities",{"$f":"Import!M1155","v":0},null,{"$f":"Import!M1177","v":0},null,{"$f":"Import!M1199","v":0},null,{"$f":"Import!M1221","v":0},null,{"$f":"Import!M1243","v":0},null,{"$f":"Import!M1265","v":0},null,{"$f":"Import!M1287","v":0},null,{"$f":"IF(OR(Import!M1309=0,Import!M1309=\"\"),P56,Import!M1309)","v":0},null,{"$f":"IF(OR(Import!M1331=0,Import!M1331=\"\"),R56,Import!M1331)","v":0},null,null,null,0,null,null,null,0.45]
[null,33,"Infrastructure",{"$f":"Import!M1156","v":0},null,{"$f":"IF(OR(Import!M1178=0,Import!M1178=\"\"),(1-$AB57)*D57,Import!M1178)","v":0},null,{"$f":"Import!M1200","v":0},null,{"$f":"IF(OR(Import!M1222=0,Import!M1222=\"\"),(1-$AB57)*H57,Import!M1222)","v":0},null,{"$f":"Import!M1244","v":0},null,{"$f":"IF(OR(Import!M1266=0,Import!M1266=\"\"),(1-$AB57)*L57,Import!M1266)","v":0},null,{"$f":"Import!M1288","v":0},null,{"$f":"IF(OR(Import!M1310=0,Import!M1310=\"\"),P57,Import!M1310)","v":0},null,{"$f":"IF(OR(Import!M1332=0,Import!M1332=\"\"),R57,Import!M1332)","v":0},null,null,null,0,null,null,null,0.25]
[null,34,"Derivatives on Infrastructure",{"$f":"Import!M1157","v":0},null,{"$f":"Import!M1179","v":0},null,{"$f":"Import!M1201","v":0},null,{"$f":"Import!M1223","v":0},null,{"$f":"Import!M1245","v":0},null,{"$f":"Import!M1267","v":0},null,{"$f":"Import!M1289","v":0},null,{"$f":"IF(OR(Import!M1311=0,Import!M1311=\"\"),P58,Import!M1311)","v":0},null,{"$f":"IF(OR(Import!M1333=0,Import!M1333=\"\"),R58,Import!M1333)","v":0},null,null,null,0,null,null,null,0.25]
[null,35,"Equity Real Estate 1",{"$f":"Import!M1158","v":0},null,{"$f":"IF(OR(Import!M1180=0,Import!M1180=\"\"),(1-$AB59)*D59,Import!M1180)","v":0},null,{"$f":"Import!M1202","v":0},null,{"$f":"IF(OR(Import!M1224=0,Import!M1224=\"\"),(1-$AB59)*H59,Import!M1224)","v":0},null,{"$f":"Import!M1246","v":0},null,{"$f":"IF(OR(Import!M1268=0,Import!M1268=\"\"),(1-$AB59)*L59,Import!M1268)","v":0},null,{"$f":"Import!M1290","v":0},null,{"$f":"IF(OR(Import!M1312=0,Import!M1312=\"\"),P59,Import!M1312)","v":0},null,{"$f":"IF(OR(Import!M1334=0,Import!M1334=\"\"),R59,Import!M1334)","v":0},null,null,null,0,null,null,null,0.1]
[null,36,"Equity Real Estate 2",{"$f":"Import!M1159","v":0},null,{"$f":"IF(OR(Import!M1181=0,Import!M1181=\"\"),(1-$AB60)*D60,Import!M1181)","v":0},null,{"$f":"Import!M1203","v":0},null,{"$f":"IF(OR(Import!M1225=0,Import!M1225=\"\"),(1-$AB60)*H60,Import!M1225)","v":0},null,{"$f":"Import!M1247","v":0},null,{"$f":"IF(OR(Import!M1269=0,Import!M1269=\"\"),(1-$AB60)*L60,Import!M1269)","v":0},null,{"$f":"Import!M1291","v":0},null,{"$f":"IF(OR(Import!M1313=0,Import!M1313=\"\"),P60,Import!M1313)","v":0},null,{"$f":"IF(OR(Import!M1335=0,Import!M1335=\"\"),R60,Import!M1335)","v":0},null,null,null,0,null,null,null,0.2]
[]
[null,{"$f":"B60+1","v":37},"Total Equity Holdings",{"$f":"SUM(D38:D61)","v":0},null,{"$f":"SUM(F38:F61)","v":0},null,{"$f":"SUM(H38:H61)","v":0},null,{"$f":"SUM(J38:J61)","v":0},null,{"$f":"SUM(L38:L61)","v":0},null,{"$f":"SUM(N38:N61)","v":0},null,{"$f":"SUM(P38:P61)","v":0},null,{"$f":"SUM(R38:R61)","v":0},null,{"$f":"SUM(T38:T61)","v":0},null,null,null,{"$f":"SUM(X38:X61)","v":0}]
[]
[null,null,null,"Spread Up",null,null,null,null,null,null,null,null,null,"Spread Down"]
[null,null,null,"Long Exposures",null,null,null,"Short Exposures",null,null,null,"Shock (bps)",null,"Long Exposures",null,null,null,"Short Exposures",null,null,null,"Shock Rates"]
[null,null,null,"Before Shock",null,"After Shock",null,"Before Shock",null,"After Shock",null,null,null,"Before Shock",null,"After Shock",null,"Before Shock",null,"After Shock"]
[null,null,"Spread Risk for Credit Derivatives",null,null,null,null,null,null,null,null,null,null,null,null,null,{"$f":"SUM(G71:G79)","v":0},null,{"$f":"SUM(I71:I79)","v":0},null,{"$f":"SUM(K71:K79)","v":0}]
[null,{"$f":"B62+1","v":38},"BSCR Rating 0",{"$f":"Import!M1336","v":0},null,{"$f":"Import!M1345","v":0},null,{"$f":"Import!M1354","v":0},null,{"$f":"Import!M1363","v":0},null,0,null,{"$f":"Import!M1372","v":0},null,{"$f":"Import!M1381","v":0},null,{"$f":"Import!M1390","v":0},null,{"$f":"Import!M1399","v":0},null,0]
[null,{"$f":"B68+1","v":39},"BSCR Rating 1",{"$f":"Import!M1337","v":0},null,{"$f":"Import!M1346","v":0},null,{"$f":"Import!M1355","v":0},null,{"$f":"Import!M1364","v":0},null,130,null,{"$f":"Import!M1373","v":0},null,{"$f":"Import!M1382","v":0},null,{"$f":"Import!M1391","v":0},null,{"$f":"Import!M1400","v":0},null,-0.75]
[null,{"$f":"B69+1","v":40},"BSCR Rating 2",{"$f":"Import!M1338","v":0},null,{"$f":"Import!M1347","v":0},null,{"$f":"Import!M1356","v":0},null,{"$f":"Import!M1365","v":0},null,150,null,{"$f":"Import!M1374","v":0},null,{"$f":"Import!M1383","v":0},null,{"$f":"Import!M1392","v":0},null,{"$f":"Import!M1401","v":0},null,-0.75]
[null,41,"BSCR Rating 3",{"$f":"Import!M1339","v":0},null,{"$f":"Import!M1348","v":0},null,{"$f":"Import!M1357","v":0},null,{"$f":"Import!M1366","v":0},null,260,null,{"$f":"Import!M1375","v":0},null,{"$f":"Import!M1384","v":0},null,{"$f":"Import!M1393","v":0},null,{"$f":"Import!M1402","v":0},null,-0.75]
[null,42,"BSCR Rating 4",{"$f":"Import!M1340","v":0},null,{"$f":"Import!M1349","v":0},null,{"$f":"Import!M1358","v":0},null,{"$f":"Import!M1367","v":0},null,450,null,{"$f":"Import!M1376","v":0},null,{"$f":"Import!M1385","v":0},null,{"$f":"Import!M1394","v":0},null,{"$f":"Import!M1403","v":0},null,-0.75]
[null,43,"BSCR Rating 5",{"$f":"Import!M1341","v":0},null,{"$f":"Import!M1350","v":0},null,{"$f":"Import!M1359","v":0},null,{"$f":"Import!M1368","v":0},null,840,null,{"$f":"Import!M1377","v":0},null,{"$f":"Import!M1386","v":0},null,{"$f":"Import!M1395","v":0},null,{"$f":"Import!M1404","v":0},null,-0.75]
[null,44,"BSCR Rating 6",{"$f":"Import!M1342","v":0},null,{"$f":"Import!M1351","v":0},null,{"$f":"Import!M1360","v":0},null,{"$f":"Import!M1369","v":0},null,1620,null,{"$f":"Import!M1378","v":0},null,{"$f":"Import!M1387","v":0},null,{"$f":"Import!M1396","v":0},null,{"$f":"Import!M1405","v":0},null,-0.75]
[null,45,"BSCR Rating 7",{"$f":"Import!M1343","v":0},null,{"$f":"Import!M1352","v":0},null,{"$f":"Import!M1361","v":0},null,{"$f":"Import!M1370","v":0},null,1620,null,{"$f":"Import!M1379","v":0},null,{"$f":"Import!M1388","v":0},null,{"$f":"Import!M1397","v":0},null,{"$f":"Import!M1406","v":0},null,-0.75]
[null,46,"BSCR Rating 8",{"$f":"Import!M1344","v":0},null,{"$f":"Import!M1353","v":0},null,{"$f":"Import!M1362","v":0},null,{"$f":"Import!M1371","v":0},null,1620,null,{"$f":"Import!M1380","v":0},null,{"$f":"Import!M1389","v":0},null,{"$f":"Import!M1398","v":0},null,{"$f":"Import!M1407","v":0},null,-0.75]
[null,47,"Total Spread",{"$f":"SUM(D67:D76)","v":0},null,{"$f":"SUM(F67:F76)","v":0},null,{"$f":"SUM(H67:H76)","v":0},null,{"$f":"SUM(J67:J76)","v":0},null,null,null,{"$f":"SUM(N67:N76)","v":0},null,{"$f":"SUM(P67:P76)","v":0},{"$f":"SUM(Q67:Q76)","v":0},{"$f":"SUM(R67:R76)","v":0},{"$f":"SUM(S67:S76)","v":0},{"$f":"SUM(T67:T76)","v":0},{"$f":"SUM(U67:U76)","v":0}]
[]
[null,null,"Spread Risk Check",null,null,null,null,null,null,null,null,null,null,{"$f":"IF(ROUND(D77-N77,0)=0,\"Yes\",\"No\")","v":"Yes"},null,null,null,{"$f":"IF(ROUND(H77-R77,0)=0,\"Yes\",\"No\")","v":"Yes"}]
[null,null,"Difference",null,null,null,null,null,null,null,null,null,null,{"$f":"ROUND(D77-N77,0)","v":0},null,null,null,{"$f":"ROUND(H77-R77,0)","v":0}]
[]
[null,null,null,"Market Value of Derivatives with Positive Market Value",null,"Market Value of Derivatives with Negative Market Value",null,"Market Value of Collateral, Excluding any over-collateralization"]
[null,null,"Counterparty Default Risk for OTC Derivatives"]
[null,{"$f":"B77+1","v":48},"BSCR Rating 0",{"$f":"Import!M1408","v":0},null,{"$f":"Import!M1417","v":0},null,{"$f":"Import!M1426","v":0}]
[null,{"$f":"B84+1","v":49},"BSCR Rating 1",{"$f":"Import!M1409","v":0},null,{"$f":"Import!M1418","v":0},null,{"$f":"Import!M1427","v":0}]
[null,{"$f":"B85+1","v":50},"BSCR Rating 2",{"$f":"Import!M1410","v":0},null,{"$f":"Import!M1419","v":0},null,{"$f":"Import!M1428","v":0}]
[null,51,"BSCR Rating 3",{"$f":"Import!M1411","v":0},null,{"$f":"Import!M1420","v":0},null,{"$f":"Import!M1429","v":0}]
[null,52,"BSCR Rating 4",{"$f":"Import!M1412","v":0},null,{"$f":"Import!M1421","v":0},null,{"$f":"Import!M1430","v":0}]
[null,53,"BSCR Rating 5",{"$f":"Import!M1413","v":0},null,{"$f":"Import!M1422","v":0},null,{"$f":"Import!M1431","v":0}]
[null,54,"BSCR Rating 6",{"$f":"Import!M1414","v":0},null,{"$f":"Import!M1423","v":0},null,{"$f":"Import!M1432","v":0}]
[null,55,"BSCR Rating 7",{"$f":"Import!M1415","v":0},null,{"$f":"Import!M1424","v":0},null,{"$f":"Import!M1433","v":0}]
[null,56,"BSCR Rating 8",{"$f":"Import!M1416","v":0},null,{"$f":"Import!M1425","v":0},null,{"$f":"Import!M1434","v":0}]
[null,57,"Total Default Risk for OTC Derivatives ",{"$f":"SUM(D83:D92)","v":0},null,{"$f":"SUM(F83:F92)","v":0},null,{"$f":"SUM(H83:H92)","v":0}]
[]
[null,{"$f":"B93+1","v":58},"Cash and Cash Equivalents",{"$f":"Import!M1435","v":0}]
[]
[null,{"$f":"B95+1","v":59},"Total Funds Held",{"$f":"X27+X62+D77+H77+D93+F93+H93+D95","v":0}]
[]
[null,null,"Please include in the table below any assets, included in this Schedule, for which NAIC ratings were used to map to the BSCR rating classes"]
[null,null,"Information on the use of NAIC ratings\n(for disclosure purposes only)","Corporate & Sovereign Bonds",null,"Residential Mortgage-Backed Securities",null,"Commercial Mortgage-Backed Securities/Asset-Backed Securities",null,"Bond Mutual Funds",null,"Mortgage Loans",null,"Preferred Stocks",null,"Other Assets"]
[null,null,"NAIC Class 1",{"$f":"Import!M1436","v":0},null,{"$f":"Import!M1443","v":0},null,{"$f":"Import!M1450","v":0},null,{"$f":"Import!M1457","v":0},null,{"$f":"Import!M1464","v":0},null,{"$f":"Import!M1471","v":0},null,{"$f":"Import!M1478","v":0}]
[null,null,"NAIC Class 2",{"$f":"Import!M1437","v":0},null,{"$f":"Import!M1444","v":0},null,{"$f":"Import!M1451","v":0},null,{"$f":"Import!M1458","v":0},null,{"$f":"Import!M1465","v":0},null,{"$f":"Import!M1472","v":0},null,{"$f":"Import!M1479","v":0}]
[null,null,"NAIC Class 3",{"$f":"Import!M1438","v":0},null,{"$f":"Import!M1445","v":0},null,{"$f":"Import!M1452","v":0},null,{"$f":"Import!M1459","v":0},null,{"$f":"Import!M1466","v":0},null,{"$f":"Import!M1473","v":0},null,{"$f":"Import!M1480","v":0}]
[null,null,"NAIC Class 4",{"$f":"Import!M1439","v":0},null,{"$f":"Import!M1446","v":0},null,{"$f":"Import!M1453","v":0},null,{"$f":"Import!M1460","v":0},null,{"$f":"Import!M1467","v":0},null,{"$f":"Import!M1474","v":0},null,{"$f":"Import!M1481","v":0}]
[null,null,"NAIC Class 5",{"$f":"Import!M1440","v":0},null,{"$f":"Import!M1447","v":0},null,{"$f":"Import!M1454","v":0},null,{"$f":"Import!M1461","v":0},null,{"$f":"Import!M1468","v":0},null,{"$f":"Import!M1475","v":0},null,{"$f":"Import!M1482","v":0}]
[null,null,"NAIC Class 6",{"$f":"Import!M1441","v":0},null,{"$f":"Import!M1448","v":0},null,{"$f":"Import!M1455","v":0},null,{"$f":"Import!M1462","v":0},null,{"$f":"Import!M1469","v":0},null,{"$f":"Import!M1476","v":0},null,{"$f":"Import!M1483","v":0}]
[null,null,null,{"$f":"SUM(D101:D106)","v":0},null,{"$f":"SUM(F101:F106)","v":0},null,{"$f":"SUM(H101:H106)","v":0},null,{"$f":"SUM(J101:J106)","v":0},null,{"$f":"SUM(L101:L106)","v":0},null,{"$f":"SUM(N101:N106)","v":0},null,{"$f":"SUM(P101:P106)","v":0}]

{"sheet":"Schedule IID","index":30,"n_rows":107,"n_cols":28,"rows_kept":107,"cut":false,"hidden":false,"merged":[[2,1,2,3],[3,3,3,5],[4,3,4,5],[7,3,7,5],[7,7,7,9],[7,19,7,21],[7,15,7,17],[63,3,63,11],[63,13,63,21],[33,27,34,27],[7,23,7,25],[32,3,32,13],[33,3,34,5],[33,7,33,13],[33,23,34,23],[7,11,7,13],[34,7,34,9],[34,11,34,13],[32,15,32,19],[33,15,34,15],[64,3,64,5],[64,7,64,9],[64,13,64,15],[64,17,64,19],[33,17,34,17],[33,19,34,19]]}
[null,"SEGREGATED ACCOUNTS\n",null,null,null,null,null,null,null,null,null,null,null,null,null,null,null,null,null,null,null,null,null,null,null,null,null,{"$f":"HYPERLINK(\"#'Index'!A1\",\"Return to Index\")","v":"Return to Index"}]
[]
[null,{"$f":"+'Company Information'!C7","v":"Enter Company Name"}]
[null,"As at",null,{"$f":"+'Company Information'!C3","v":"2022-12-31"},null,null,null,null,null,null,null,null,null,null,null,null,null,null,null,null,null,null,null,null,null,"SCHEDULE IID"]
[null,{"$f":"\"expressed in\"& IF(CONFIGURATION!$B$12>1,\" ['\"&MID(CONFIGURATION!$B$12,2,LEN(CONFIGURATION!$B$12))&\"s]\",\"\")","v":"expressed in ['000s]"},null,{"$f":"'Form 1SFS (Consolidated)'!$C$5","v":"United States Dollars"}]
[]
[null,null,null,"(1)",null,"(2)",null,"(3)",null,"(4)",null,"(5)",null,"(6)",null,"(7)",null,"(8)",null,"(9)",null,"(10)",null,"(11)",null,"(12)"]
[null,null,null,"Corporate & Sovereign Bonds",null,null,null,"Residential Mortgage Backed Securities",null,null,null,"Commercial Mortgage Backed Securities / Asset- Backed Securities",null,null,null,"Bond Mutual Funds",null,null,null,"Mortgage Loans",null,null,null,"TOTAL"]
[null,null,null,"Assets",null,"Liabilities",null,"Assets",null,"Liabilities",null,"Assets",null,"Liabilities",null,"Assets",null,"Liabilities",null,"Assets",null,"Liabilities",null,{"$f":"D9","v":"Assets"},null,{"$f":"F9","v":"Liabilities"}]
[null,null,null,{"$f":"'Form 1SFS (Consolidated)'!$M$10","v":" ('000s)"},null,{"$f":"'Form 1SFS (Consolidated)'!$O$10","v":" ('000s)"},null,{"$f":"'Form 1SFS (Consolidated)'!$M$10","v":" ('000s)"},null,{"$f":"'Form 1SFS (Consolidated)'!$O$10","v":" ('000s)"},null,{"$f":"'Form 1SFS (Consolidated)'!$M$10","v":" ('000s)"},null,{"$f":"'Form 1SFS (Consolidated)'!$O$10","v":" ('000s)"},null,{"$f":"'Form 1SFS (Consolidated)'!$M$10","v":" ('000s)"},null,{"$f":"'Form 1SFS (Consolidated)'!$O$10","v":" ('000s)"},null,{"$f":"'Form 1SFS (Consolidated)'!$M$10","v":" ('000s)"},null,{"$f":"'Form 1SFS (Consolidated)'!$O$10","v":" ('000s)"},null,{"$f":"'Form 1SFS (Consolidated)'!$M$10","v":" ('000s)"},null,{"$f":"'Form 1SFS (Consolidated)'!$O$10","v":" ('000s)"}]
[null,"Line no. "]
[null,"Quoted and Unquoted Bonds and Debentures"]
[null,1,"BSCR Rating 0",{"$f":"Import!M1486","v":0},null,{"$f":"Import!M1495","v":0},null,null,null,null,null,null,null,null,null,{"$f":"Import!M1536","v":0},null,{"$f":"Import!M1545","v":0},null,null,null,null,null,{"$f":"D13+H13+L13+P13","v":0},null,{"$f":"F13+J13+N13+R13","v":0}]
[null,2,"BSCR Rating 1",{"$f":"Import!M1487","v":0},null,{"$f":"Import!M1496","v":0},null,{"$f":"Import!M1504","v":0},null,{"$f":"Import!M1512","v":0},null,{"$f":"Import!M1520","v":0},null,{"$f":"Import!M1528","v":0},null,{"$f":"Import!M1537","v":0},null,{"$f":"Import!M1546","v":0},null,null,null,null,null,{"$f":"D14+H14+L14+P14","v":0},null,0]
[null,3,"BSCR Rating 2",{"$f":"Import!M1488","v":0},null,{"$f":"Import!M1497","v":0},null,{"$f":"Import!M1505","v":0},null,{"$f":"Import!M1513","v":0},null,{"$f":"Import!M1521","v":0},null,{"$f":"Import!M1529","v":0},null,{"$f":"Import!M1538","v":0},null,{"$f":"Import!M1547","v":0},null,null,null,null,null,0,null,0]
[null,4,"BSCR Rating 3",{"$f":"Import!M1489","v":0},null,{"$f":"Import!M1498","v":0},null,{"$f":"Import!M1506","v":0},null,{"$f":"Import!M1514","v":0},null,{"$f":"Import!M1522","v":0},null,{"$f":"Import!M1530","v":0},null,{"$f":"Import!M1539","v":0},null,{"$f":"Import!M1548","v":0},null,null,null,null,null,0,null,0]
[null,5,"BSCR Rating 4",{"$f":"Import!M1490","v":0},null,{"$f":"Import!M1499","v":0},null,{"$f":"Import!M1507","v":0},null,{"$f":"Import!M1515","v":0},null,{"$f":"Import!M1523","v":0},null,{"$f":"Import!M1531","v":0},null,{"$f":"Import!M1540","v":0},null,{"$f":"Import!M1549","v":0},null,null,null,null,null,0,null,0]
[null,6,"BSCR Rating 5",{"$f":"Import!M1491","v":0},null,{"$f":"Import!M1500","v":0},null,{"$f":"Import!M1508","v":0},null,{"$f":"Import!M1516","v":0},null,{"$f":"Import!M1524","v":0},null,{"$f":"Import!M1532","v":0},null,{"$f":"Import!M1541","v":0},null,{"$f":"Import!M1550","v":0},null,null,null,null,null,0,null,0]
[null,7,"BSCR Rating 6",{"$f":"Import!M1492","v":0},null,{"$f":"Import!M1501","v":0},null,{"$f":"Import!M1509","v":0},null,{"$f":"Import!M1517","v":0},null,{"$f":"Import!M1525","v":0},null,{"$f":"Import!M1533","v":0},null,{"$f":"Import!M1542","v":0},null,{"$f":"Import!M1551","v":0},null,null,null,null,null,0,null,0]
[null,8,"BSCR Rating 7",{"$f":"Import!M1493","v":0},null,{"$f":"Import!M1502","v":0},null,{"$f":"Import!M1510","v":0},null,{"$f":"Import!M1518","v":0},null,{"$f":"Import!M1526","v":0},null,{"$f":"Import!M1534","v":0},null,{"$f":"Import!M1543","v":0},null,{"$f":"Import!M1552","v":0},null,null,null,null,null,0,null,0]
[null,9,"BSCR Rating 8",{"$f":"Import!M1494","v":0},null,{"$f":"Import!M1503","v":0},null,{"$f":"Import!M1511","v":0},null,{"$f":"Import!M1519","v":0},null,{"$f":"Import!M1527","v":0},null,{"$f":"Import!M1535","v":0},null,{"$f":"Import!M1544","v":0},null,{"$f":"Import!M1553","v":0},null,null,null,null,null,0,null,0]
[null,{"$f":"B21+1","v":10},"Insured/Guaranteed Mortgages",null,null,null,null,null,null,null,null,null,null,null,null,null,null,null,null,{"$f":"Import!M1554","v":0},null,{"$f":"Import!M1558","v":0},null,{"$f":"D22+H22+L22+P22+T22","v":0},null,{"$f":"F22+J22+N22+R22+V22","v":0}]
[null,{"$f":"B22+1","v":11},"Other Commercial and Farm Mortgages",null,null,null,null,null,null,null,null,null,null,null,null,null,null,null,null,{"$f":"Import!M1555","v":0},null,{"$f":"Import!M1559","v":0},null,{"$f":"D23+H23+L23+P23+T23","v":0},null,0]
[null,{"$f":"B23+1","v":12},"Other Residential Mortgages",null,null,null,null,null,null,null,null,null,null,null,null,null,null,null,null,{"$f":"Import!M1556","v":0},null,{"$f":"Import!M1560","v":0},null,{"$f":"D24+H24+L24+P24+T24","v":0},null,{"$f":"F24+J24+N24+R24+V24","v":0}]
[null,13,"Mortgages Not In Good Standing",null,null,null,null,null,null,null,null,null,null,null,null,null,null,null,null,{"$f":"Import!M1557","v":0},null,{"$f":"Import!M1561","v":0},null,0,null,0]
[]
[null,{"$f":"B25+1","v":14},"Total",{"$f":"SUM(D13:D21)","v":0},null,{"$f":"SUM(F13:F21)","v":0},null,{"$f":"SUM(H13:H21)","v":0},null,{"$f":"SUM(J13:J21)","v":0},null,{"$f":"SUM(L13:L21)","v":0},null,{"$f":"SUM(N13:N21)","v":0},null,{"$f":"SUM(P13:P21)","v":0},null,{"$f":"SUM(R13:R21)","v":0},null,{"$f":"SUM(T13:T26)","v":0},null,{"$f":"SUM(V13:V26)","v":0},null,{"$f":"SUM(X13:X26)","v":0},null,{"$f":"SUM(Z13:Z26)","v":0}]
[]
[]
[]
[]
[]
[null,null,null,"ASSETS",null,null,null,null,null,null,null,null,null,null,null,"Liabilities"]
[null,null,null,"Long Exposures",null,null,null,"Short Exposures",null,null,null,null,null,null,null,null,null,"Without Management Actions",null,"With Management Actions",null,null,null,"Total Assets Before Shock",null,null,null,"Shocks"]
[null,null,null,null,null,null,null,"Qualifying as Assets held for risk-mitigation purposes",null,null,null,"Not Qualifying as Assets held for risk-mitigation purposes",null,null,null,null,null,null,null,null,null,null,null,null,null,null,null,"Shocks"]
[null,null,null,"Before Shock",null,"After Shock",null,"Before Shock",null,"After Shock",null,"Before Shock",null,"After Shock",null,"Before Shock",null,"After Shock",null,"After Shock"]
[null,null,null,{"$f":"'Form 1SFS (Consolidated)'!$M$10","v":" ('000s)"},null,{"$f":"'Form 1SFS (Consolidated)'!$O$10","v":" ('000s)"},null,{"$f":"'Form 1SFS (Consolidated)'!$M$10","v":" ('000s)"},null,{"$f":"'Form 1SFS (Consolidated)'!$O$10","v":" ('000s)"},null,{"$f":"'Form 1SFS (Consolidated)'!$M$10","v":" ('000s)"},null,{"$f":"'Form 1SFS (Consolidated)'!$O$10","v":" ('000s)"},null,{"$f":"'Form 1SFS (Consolidated)'!$M$10","v":" ('000s)"},null,{"$f":"'Form 1SFS (Consolidated)'!$O$10","v":" ('000s)"},null,{"$f":"'Form 1SFS (Consolidated)'!$M$10","v":" ('000s)"},null,null,null,{"$f":"'Form 1SFS (Consolidated)'!$M$10","v":" ('000s)"}]
[null,"Equity Holdings "]
[null,{"$f":"B27+1","v":15},"Strategic Holdings - Listed",{"$f":"Import!M1562","v":0},null,{"$f":"IF(OR(Import!M1584=0,Import!M1584=\"\"),(1-$AB39)*D39,Import!M1584)","v":0},null,{"$f":"Import!M1606","v":0},null,{"$f":"IF(OR(Import!M1628=0,Import!M1628=\"\"),(1-$AB39)*H39,Import!M1628)","v":0},null,{"$f":"Import!M1650","v":0},null,{"$f":"IF(OR(Import!M1672=0,Import!M1672=\"\"),(1-$AB39)*L39,Import!M1672)","v":0},null,{"$f":"Import!M1694","v":0},null,{"$f":"IF(OR(Import!M1716=0,Import!M1716=\"\"),P39,Import!M1716)","v":0},null,{"$f":"IF(OR(Import!M1738=0,Import!M1738=\"\"),R39,Import!M1738)","v":0},null,null,null,{"$f":"D39+H39+L39","v":0},null,null,null,0.2]
[null,{"$f":"B39+1","v":16},"Duration Based",{"$f":"Import!M1563","v":0},null,{"$f":"IF(OR(Import!M1585=0,Import!M1585=\"\"),(1-$AB40)*D40,Import!M1585)","v":0},null,{"$f":"Import!M1607","v":0},null,{"$f":"IF(OR(Import!M1629=0,Import!M1629=\"\"),(1-$AB40)*H40,Import!M1629)","v":0},null,{"$f":"Import!M1651","v":0},null,{"$f":"IF(OR(Import!M1673=0,Import!M1673=\"\"),(1-$AB40)*L40,Import!M1673)","v":0},null,{"$f":"Import!M1695","v":0},null,{"$f":"IF(OR(Import!M1717=0,Import!M1717=\"\"),P40,Import!M1717)","v":0},null,{"$f":"IF(OR(Import!M1739=0,Import!M1739=\"\"),R40,Import!M1739)","v":0},null,null,null,{"$f":"D40+H40+L40","v":0},null,null,null,0.2]
[null,17,"Listed Equity Securities in Developed Markets",{"$f":"Import!M1564","v":0},null,{"$f":"IF(OR(Import!M1586=0,Import!M1586=\"\"),(1-$AB41)*D41,Import!M1586)","v":0},null,{"$f":"Import!M1608","v":0},null,{"$f":"IF(OR(Import!M1630=0,Import!M1630=\"\"),(1-$AB41)*H41,Import!M1630)","v":0},null,{"$f":"Import!M1652","v":0},null,{"$f":"IF(OR(Import!M1674=0,Import!M1674=\"\"),(1-$AB41)*L41,Import!M1674)","v":0},null,{"$f":"Import!M1696","v":0},null,{"$f":"IF(OR(Import!M1718=0,Import!M1718=\"\"),P41,Import!M1718)","v":0},null,{"$f":"IF(OR(Import!M1740=0,Import!M1740=\"\"),R41,Import!M1740)","v":0},null,null,null,0,null,null,null,0.35]
[null,18,"Preferred Stocks, BSCR Rating 1",{"$f":"Import!M1565","v":0},null,{"$f":"IF(OR(Import!M1587=0,Import!M1587=\"\"),(1-$AB42)*D42,Import!M1587)","v":0},null,{"$f":"Import!M1609","v":0},null,{"$f":"IF(OR(Import!M1631=0,Import!M1631=\"\"),(1-$AB42)*H42,Import!M1631)","v":0},null,{"$f":"Import!M1653","v":0},null,{"$f":"IF(OR(Import!M1675=0,Import!M1675=\"\"),(1-$AB42)*L42,Import!M1675)","v":0},null,{"$f":"Import!M1697","v":0},null,{"$f":"IF(OR(Import!M1719=0,Import!M1719=\"\"),P42,Import!M1719)","v":0},null,{"$f":"IF(OR(Import!M1741=0,Import!M1741=\"\"),R42,Import!M1741)","v":0},null,null,null,0,null,null,null,6.0000000000000001E-3]
[null,19,"Preferred Stocks, BSCR Rating 2",{"$f":"Import!M1566","v":0},null,{"$f":"IF(OR(Import!M1588=0,Import!M1588=\"\"),(1-$AB43)*D43,Import!M1588)","v":0},null,{"$f":"Import!M1610","v":0},null,{"$f":"IF(OR(Import!M1632=0,Import!M1632=\"\"),(1-$AB43)*H43,Import!M1632)","v":0},null,{"$f":"Import!M1654","v":0},null,{"$f":"IF(OR(Import!M1676=0,Import!M1676=\"\"),(1-$AB43)*L43,Import!M1676)","v":0},null,{"$f":"Import!M1698","v":0},null,{"$f":"IF(OR(Import!M1720=0,Import!M1720=\"\"),P43,Import!M1720)","v":0},null,{"$f":"IF(OR(Import!M1742=0,Import!M1742=\"\"),R43,Import!M1742)","v":0},null,null,null,0,null,null,null,1.2E-2]
[null,20,"Preferred Stocks, BSCR Rating 3",{"$f":"Import!M1567","v":0},null,{"$f":"IF(OR(Import!M1589=0,Import!M1589=\"\"),(1-$AB44)*D44,Import!M1589)","v":0},null,{"$f":"Import!M1611","v":0},null,{"$f":"IF(OR(Import!M1633=0,Import!M1633=\"\"),(1-$AB44)*H44,Import!M1633)","v":0},null,{"$f":"Import!M1655","v":0},null,{"$f":"IF(OR(Import!M1677=0,Import!M1677=\"\"),(1-$AB44)*L44,Import!M1677)","v":0},null,{"$f":"Import!M1699","v":0},null,{"$f":"IF(OR(Import!M1721=0,Import!M1721=\"\"),P44,Import!M1721)","v":0},null,{"$f":"IF(OR(Import!M1743=0,Import!M1743=\"\"),R44,Import!M1743)","v":0},null,null,null,0,null,null,null,0.02]
[null,21,"Preferred Stocks, BSCR Rating 4",{"$f":"Import!M1568","v":0},null,{"$f":"IF(OR(Import!M1590=0,Import!M1590=\"\"),(1-$AB45)*D45,Import!M1590)","v":0},null,{"$f":"Import!M1612","v":0},null,{"$f":"IF(OR(Import!M1634=0,Import!M1634=\"\"),(1-$AB45)*H45,Import!M1634)","v":0},null,{"$f":"Import!M1656","v":0},null,{"$f":"IF(OR(Import!M1678=0,Import!M1678=\"\"),(1-$AB45)*L45,Import!M1678)","v":0},null,{"$f":"Import!M1700","v":0},null,{"$f":"IF(OR(Import!M1722=0,Import!M1722=\"\"),P45,Import!M1722)","v":0},null,{"$f":"IF(OR(Import!M1744=0,Import!M1744=\"\"),R45,Import!M1744)","v":0},null,null,null,0,null,null,null,0.04]
[null,22,"Preferred Stocks, BSCR Rating 5",{"$f":"Import!M1569","v":0},null,{"$f":"IF(OR(Import!M1591=0,Import!M1591=\"\"),(1-$AB46)*D46,Import!M1591)","v":0},null,{"$f":"Import!M1613","v":0},null,{"$f":"IF(OR(Import!M1635=0,Import!M1635=\"\"),(1-$AB46)*H46,Import!M1635)","v":0},null,{"$f":"Import!M1657","v":0},null,{"$f":"IF(OR(Import!M1679=0,Import!M1679=\"\"),(1-$AB46)*L46,Import!M1679)","v":0},null,{"$f":"Import!M1701","v":0},null,{"$f":"IF(OR(Import!M1723=0,Import!M1723=\"\"),P46,Import!M1723)","v":0},null,{"$f":"IF(OR(Import!M1745=0,Import!M1745=\"\"),R46,Import!M1745)","v":0},null,null,null,0,null,null,null,0.11]
[null,23,"Preferred Stocks, BSCR Rating 6",{"$f":"Import!M1570","v":0},null,{"$f":"IF(OR(Import!M1592=0,Import!M1592=\"\"),(1-$AB47)*D47,Import!M1592)","v":0},null,{"$f":"Import!M1614","v":0},null,{"$f":"IF(OR(Import!M1636=0,Import!M1636=\"\"),(1-$AB47)*H47,Import!M1636)","v":0},null,{"$f":"Import!M1658","v":0},null,{"$f":"IF(OR(Import!M1680=0,Import!M1680=\"\"),(1-$AB47)*L47,Import!M1680)","v":0},null,{"$f":"Import!M1702","v":0},null,{"$f":"IF(OR(Import!M1724=0,Import!M1724=\"\"),P47,Import!M1724)","v":0},null,{"$f":"IF(OR(Import!M1746=0,Import!M1746=\"\"),R47,Import!M1746)","v":0},null,null,null,0,null,null,null,0.25]
[null,24,"Preferred Stocks, BSCR Rating 7",{"$f":"Import!M1571","v":0},null,{"$f":"IF(OR(Import!M1593=0,Import!M1593=\"\"),(1-$AB48)*D48,Import!M1593)","v":0},null,{"$f":"Import!M1615","v":0},null,{"$f":"IF(OR(Import!M1637=0,Import!M1637=\"\"),(1-$AB48)*H48,Import!M1637)","v":0},null,{"$f":"Import!M1659","v":0},null,{"$f":"IF(OR(Import!M1681=0,Import!M1681=\"\"),(1-$AB48)*L48,Import!M1681)","v":0},null,{"$f":"Import!M1703","v":0},null,{"$f":"IF(OR(Import!M1725=0,Import!M1725=\"\"),P48,Import!M1725)","v":0},null,{"$f":"IF(OR(Import!M1747=0,Import!M1747=\"\"),R48,Import!M1747)","v":0},null,null,null,0,null,null,null,0.35]
[null,25,"Preferred Stocks, BSCR Rating 8",{"$f":"Import!M1572","v":0},null,{"$f":"IF(OR(Import!M1594=0,Import!M1594=\"\"),(1-$AB49)*D49,Import!M1594)","v":0},null,{"$f":"Import!M1616","v":0},null,{"$f":"IF(OR(Import!M1638=0,Import!M1638=\"\"),(1-$AB49)*H49,Import!M1638)","v":0},null,{"$f":"Import!M1660","v":0},null,{"$f":"IF(OR(Import!M1682=0,Import!M1682=\"\"),(1-$AB49)*L49,Import!M1682)","v":0},null,{"$f":"Import!M1704","v":0},null,{"$f":"IF(OR(Import!M1726=0,Import!M1726=\"\"),P49,Import!M1726)","v":0},null,{"$f":"IF(OR(Import!M1748=0,Import!M1748=\"\"),R49,Import!M1748)","v":0},null,null,null,0,null,null,null,0.35]
[null,26,"Equity Derivatives on Type 1 Equities",{"$f":"Import!M1573","v":0},null,{"$f":"Import!M1595","v":0},null,{"$f":"Import!M1617","v":0},null,{"$f":"Import!M1639","v":0},null,{"$f":"Import!M1661","v":0},null,{"$f":"Import!M1683","v":0},null,{"$f":"Import!M1705","v":0},null,{"$f":"IF(OR(Import!M1727=0,Import!M1727=\"\"),P50,Import!M1727)","v":0},null,{"$f":"IF(OR(Import!M1749=0,Import!M1749=\"\"),R50,Import!M1749)","v":0},null,null,null,0,null,null,null,0.35]
[null,27,"Strategic Holdings - Unlisted",{"$f":"Import!M1574","v":0},null,{"$f":"IF(OR(Import!M1596=0,Import!M1596=\"\"),(1-$AB51)*D51,Import!M1596)","v":0},null,{"$f":"Import!M1618","v":0},null,{"$f":"IF(OR(Import!M1640=0,Import!M1640=\"\"),(1-$AB51)*H51,Import!M1640)","v":0},null,{"$f":"Import!M1662","v":0},null,{"$f":"IF(OR(Import!M1684=0,Import!M1684=\"\"),(1-$AB51)*L51,Import!M1684)","v":0},null,{"$f":"Import!M1706","v":0},null,{"$f":"IF(OR(Import!M1728=0,Import!M1728=\"\"),P51,Import!M1728)","v":0},null,{"$f":"IF(OR(Import!M1750=0,Import!M1750=\"\"),R51,Import!M1750)","v":0},null,null,null,0,null,null,null,0.2]
[null,28,"Other Equities / Other Assets",{"$f":"Import!M1575","v":0},null,{"$f":"IF(OR(Import!M1597=0,Import!M1597=\"\"),(1-$AB52)*D52,Import!M1597)","v":0},null,{"$f":"Import!M1619","v":0},null,{"$f":"IF(OR(Import!M1641=0,Import!M1641=\"\"),(1-$AB52)*H52,Import!M1641)","v":0},null,{"$f":"Import!M1663","v":0},null,{"$f":"IF(OR(Import!M1685=0,Import!M1685=\"\"),(1-$AB52)*L52,Import!M1685)","v":0},null,{"$f":"Import!M1707","v":0},null,{"$f":"IF(OR(Import!M1729=0,Import!M1729=\"\"),P52,Import!M1729)","v":0},null,{"$f":"IF(OR(Import!M1751=0,Import!M1751=\"\"),R52,Import!M1751)","v":0},null,null,null,0,null,null,null,0.45]
[null,29,"Letters of Credit",{"$f":"Import!M1576","v":0},null,{"$f":"IF(OR(Import!M1598=0,Import!M1598=\"\"),(1-$AB53)*D53,Import!M1598)","v":0},null,{"$f":"Import!M1620","v":0},null,{"$f":"IF(OR(Import!M1642=0,Import!M1642=\"\"),(1-$AB53)*H53,Import!M1642)","v":0},null,{"$f":"Import!M1664","v":0},null,{"$f":"IF(OR(Import!M1686=0,Import!M1686=\"\"),(1-$AB53)*L53,Import!M1686)","v":0},null,{"$f":"Import!M1708","v":0},null,{"$f":"IF(OR(Import!M1730=0,Import!M1730=\"\"),P53,Import!M1730)","v":0},null,{"$f":"IF(OR(Import!M1752=0,Import!M1752=\"\"),R53,Import!M1752)","v":0},null,null,null,0,null,null,null,0.2]
[null,30,"Intangible assets",{"$f":"Import!M1577","v":0},null,{"$f":"IF(OR(Import!M1599=0,Import!M1599=\"\"),(1-$AB54)*D54,Import!M1599)","v":0},null,{"$f":"Import!M1621","v":0},null,{"$f":"IF(OR(Import!M1643=0,Import!M1643=\"\"),(1-$AB54)*H54,Import!M1643)","v":0},null,{"$f":"Import!M1665","v":0},null,{"$f":"IF(OR(Import!M1687=0,Import!M1687=\"\"),(1-$AB54)*L54,Import!M1687)","v":0},null,{"$f":"Import!M1709","v":0},null,{"$f":"IF(OR(Import!M1731=0,Import!M1731=\"\"),P54,Import!M1731)","v":0},null,{"$f":"IF(OR(Import!M1753=0,Import!M1753=\"\"),R54,Import!M1753)","v":0},null,null,null,0,null,null,null,0.2]
[null,31,"Pension Benefit Surplus",{"$f":"Import!M1578","v":0},null,{"$f":"IF(OR(Import!M1600=0,Import!M1600=\"\"),(1-$AB55)*D55,Import!M1600)","v":0},null,{"$f":"Import!M1622","v":0},null,{"$f":"IF(OR(Import!M1644=0,Import!M1644=\"\"),(1-$AB55)*H55,Import!M1644)","v":0},null,{"$f":"Import!M1666","v":0},null,{"$f":"IF(OR(Import!M1688=0,Import!M1688=\"\"),(1-$AB55)*L55,Import!M1688)","v":0},null,{"$f":"Import!M1710","v":0},null,{"$f":"IF(OR(Import!M1732=0,Import!M1732=\"\"),P55,Import!M1732)","v":0},null,{"$f":"IF(OR(Import!M1754=0,Import!M1754=\"\"),R55,Import!M1754)","v":0},null,null,null,0,null,null,null,0.2]
[null,32,"Equity Derivatives on Type 2 Equities",{"$f":"Import!M1579","v":0},null,{"$f":"Import!M1601","v":0},null,{"$f":"Import!M1623","v":0},null,{"$f":"Import!M1645","v":0},null,{"$f":"Import!M1667","v":0},null,{"$f":"Import!M1689","v":0},null,{"$f":"Import!M1711","v":0},null,{"$f":"IF(OR(Import!M1733=0,Import!M1733=\"\"),P56,Import!M1733)","v":0},null,{"$f":"IF(OR(Import!M1755=0,Import!M1755=\"\"),R56,Import!M1755)","v":0},null,null,null,0,null,null,null,0.45]
[null,33,"Infrastructure",{"$f":"Import!M1580","v":0},null,{"$f":"IF(OR(Import!M1602=0,Import!M1602=\"\"),(1-$AB57)*D57,Import!M1602)","v":0},null,{"$f":"Import!M1624","v":0},null,{"$f":"IF(OR(Import!M1646=0,Import!M1646=\"\"),(1-$AB57)*H57,Import!M1646)","v":0},null,{"$f":"Import!M1668","v":0},null,{"$f":"IF(OR(Import!M1690=0,Import!M1690=\"\"),(1-$AB57)*L57,Import!M1690)","v":0},null,{"$f":"Import!M1712","v":0},null,{"$f":"IF(OR(Import!M1734=0,Import!M1734=\"\"),P57,Import!M1734)","v":0},null,{"$f":"IF(OR(Import!M1756=0,Import!M1756=\"\"),R57,Import!M1756)","v":0},null,null,null,0,null,null,null,0.25]
[null,34,"Derivatives on Infrastructure",{"$f":"Import!M1581","v":0},null,{"$f":"Import!M1603","v":0},null,{"$f":"Import!M1625","v":0},null,{"$f":"Import!M1647","v":0},null,{"$f":"Import!M1669","v":0},null,{"$f":"Import!M1691","v":0},null,{"$f":"Import!M1713","v":0},null,{"$f":"IF(OR(Import!M1735=0,Import!M1735=\"\"),P58,Import!M1735)","v":0},null,{"$f":"IF(OR(Import!M1757=0,Import!M1757=\"\"),R58,Import!M1757)","v":0},null,null,null,0,null,null,null,0.25]
[null,35,"Equity Real Estate 1",{"$f":"Import!M1582","v":0},null,{"$f":"IF(OR(Import!M1604=0,Import!M1604=\"\"),(1-$AB59)*D59,Import!M1604)","v":0},null,{"$f":"Import!M1626","v":0},null,{"$f":"IF(OR(Import!M1648=0,Import!M1648=\"\"),(1-$AB59)*H59,Import!M1648)","v":0},null,{"$f":"Import!M1670","v":0},null,{"$f":"IF(OR(Import!M1692=0,Import!M1692=\"\"),(1-$AB59)*L59,Import!M1692)","v":0},null,{"$f":"Import!M1714","v":0},null,{"$f":"IF(OR(Import!M1736=0,Import!M1736=\"\"),P59,Import!M1736)","v":0},null,{"$f":"IF(OR(Import!M1758=0,Import!M1758=\"\"),R59,Import!M1758)","v":0},null,null,null,0,null,null,null,0.1]
[null,36,"Equity Real Estate 2",{"$f":"Import!M1583","v":0},null,{"$f":"IF(OR(Import!M1605=0,Import!M1605=\"\"),(1-$AB60)*D60,Import!M1605)","v":0},null,{"$f":"Import!M1627","v":0},null,{"$f":"IF(OR(Import!M1649=0,Import!M1649=\"\"),(1-$AB60)*H60,Import!M1649)","v":0},null,{"$f":"Import!M1671","v":0},null,{"$f":"IF(OR(Import!M1693=0,Import!M1693=\"\"),(1-$AB60)*L60,Import!M1693)","v":0},null,{"$f":"Import!M1715","v":0},null,{"$f":"IF(OR(Import!M1737=0,Import!M1737=\"\"),P60,Import!M1737)","v":0},null,{"$f":"IF(OR(Import!M1759=0,Import!M1759=\"\"),R60,Import!M1759)","v":0},null,null,null,0,null,null,null,0.2]
[]
[null,{"$f":"B60+1","v":37},"Total Equity Holdings",{"$f":"SUM(D38:D61)","v":0},null,{"$f":"SUM(F38:F61)","v":0},null,{"$f":"SUM(H38:H61)","v":0},null,{"$f":"SUM(J38:J61)","v":0},null,{"$f":"SUM(L38:L61)","v":0},null,{"$f":"SUM(N38:N61)","v":0},null,{"$f":"SUM(P38:P61)","v":0},null,{"$f":"SUM(R38:R61)","v":0},null,{"$f":"SUM(T38:T61)","v":0},null,null,null,{"$f":"SUM(X38:X61)","v":0}]
[]
[null,null,null,"Spread Up",null,null,null,null,null,null,null,null,null,"Spread Down"]
[null,null,null,"Long Exposures",null,null,null,"Short Exposures",null,null,null,"Shock (bps)",null,"Long Exposures",null,null,null,"Short Exposures",null,null,null,"Shock Rates"]
[null,null,null,"Before Shock",null,"After Shock",null,"Before Shock",null,"After Shock",null,null,null,"Before Shock",null,"After Shock",null,"Before Shock",null,"After Shock"]
[null,null,"Spread Risk for Credit Derivatives",null,null,null,null,null,null,null,null,null,null,null,null,null,{"$f":"SUM(G71:G80)","v":0},null,{"$f":"SUM(I71:I80)","v":0},null,{"$f":"SUM(K71:K80)","v":0}]
[null,{"$f":"B62+1","v":38},"BSCR Rating 0",{"$f":"Import!M1760","v":0},null,{"$f":"Import!M1769","v":0},null,{"$f":"Import!M1778","v":0},null,{"$f":"Import!M1787","v":0},null,0,null,{"$f":"Import!M1796","v":0},null,{"$f":"Import!M1805","v":0},null,{"$f":"Import!M1814","v":0},null,{"$f":"Import!M1823","v":0},null,0]
[null,{"$f":"B68+1","v":39},"BSCR Rating 1",{"$f":"Import!M1761","v":0},null,{"$f":"Import!M1770","v":0},null,{"$f":"Import!M1779","v":0},null,{"$f":"Import!M1788","v":0},null,130,null,{"$f":"Import!M1797","v":0},null,{"$f":"Import!M1806","v":0},null,{"$f":"Import!M1815","v":0},null,{"$f":"Import!M1824","v":0},null,-0.75]
[null,{"$f":"B69+1","v":40},"BSCR Rating 2",{"$f":"Import!M1762","v":0},null,{"$f":"Import!M1771","v":0},null,{"$f":"Import!M1780","v":0},null,{"$f":"Import!M1789","v":0},null,150,null,{"$f":"Import!M1798","v":0},null,{"$f":"Import!M1807","v":0},null,{"$f":"Import!M1816","v":0},null,{"$f":"Import!M1825","v":0},null,-0.75]
[null,41,"BSCR Rating 3",{"$f":"Import!M1763","v":0},null,{"$f":"Import!M1772","v":0},null,{"$f":"Import!M1781","v":0},null,{"$f":"Import!M1790","v":0},null,260,null,{"$f":"Import!M1799","v":0},null,{"$f":"Import!M1808","v":0},null,{"$f":"Import!M1817","v":0},null,{"$f":"Import!M1826","v":0},null,-0.75]
[null,42,"BSCR Rating 4",{"$f":"Import!M1764","v":0},null,{"$f":"Import!M1773","v":0},null,{"$f":"Import!M1782","v":0},null,{"$f":"Import!M1791","v":0},null,450,null,{"$f":"Import!M1800","v":0},null,{"$f":"Import!M1809","v":0},null,{"$f":"Import!M1818","v":0},null,{"$f":"Import!M1827","v":0},null,-0.75]
[null,43,"BSCR Rating 5",{"$f":"Import!M1765","v":0},null,{"$f":"Import!M1774","v":0},null,{"$f":"Import!M1783","v":0},null,{"$f":"Import!M1792","v":0},null,840,null,{"$f":"Import!M1801","v":0},null,{"$f":"Import!M1810","v":0},null,{"$f":"Import!M1819","v":0},null,{"$f":"Import!M1828","v":0},null,-0.75]
[null,44,"BSCR Rating 6",{"$f":"Import!M1766","v":0},null,{"$f":"Import!M1775","v":0},null,{"$f":"Import!M1784","v":0},null,{"$f":"Import!M1793","v":0},null,1620,null,{"$f":"Import!M1802","v":0},null,{"$f":"Import!M1811","v":0},null,{"$f":"Import!M1820","v":0},null,{"$f":"Import!M1829","v":0},null,-0.75]
[null,45,"BSCR Rating 7",{"$f":"Import!M1767","v":0},null,{"$f":"Import!M1776","v":0},null,{"$f":"Import!M1785","v":0},null,{"$f":"Import!M1794","v":0},null,1620,null,{"$f":"Import!M1803","v":0},null,{"$f":"Import!M1812","v":0},null,{"$f":"Import!M1821","v":0},null,{"$f":"Import!M1830","v":0},null,-0.75]
[null,46,"BSCR Rating 8",{"$f":"Import!M1768","v":0},null,{"$f":"Import!M1777","v":0},null,{"$f":"Import!M1786","v":0},null,{"$f":"Import!M1795","v":0},null,1620,null,{"$f":"Import!M1804","v":0},null,{"$f":"Import!M1813","v":0},null,{"$f":"Import!M1822","v":0},null,{"$f":"Import!M1831","v":0},null,-0.75]
[null,47,"Total Spread",{"$f":"SUM(D67:D76)","v":0},null,{"$f":"SUM(F67:F76)","v":0},null,{"$f":"SUM(H67:H76)","v":0},null,{"$f":"SUM(J67:J76)","v":0},null,null,null,{"$f":"SUM(N67:N76)","v":0},null,{"$f":"SUM(P67:P76)","v":0},0,0,0,0,0]
[]
[null,null,"Spread Risk Check",null,null,null,null,null,null,null,null,null,null,{"$f":"IF(ROUND(D77-N77,0)=0,\"Yes\",\"No\")","v":"Yes"},null,null,null,{"$f":"IF(ROUND(H77-R77,0)=0,\"Yes\",\"No\")","v":"Yes"}]
[null,null,"Difference",null,null,null,null,null,null,null,null,null,null,{"$f":"ROUND(D77-N77,0)","v":0},null,null,null,{"$f":"ROUND(H77-R77,0)","v":0}]
[]
[null,null,null,"Market Value of Derivatives with Positive Market Value",null,"Market Value of Derivatives with Negative Market Value",null,"Market Value of Collateral, Excluding any over-collateralization"]
[null,null,"Counterparty Default Risk for OTC Derivatives"]
[null,{"$f":"B77+1","v":48},"BSCR Rating 0",{"$f":"Import!M1832","v":0},null,{"$f":"Import!M1841","v":0},null,{"$f":"Import!M1850","v":0}]
[null,{"$f":"B84+1","v":49},"BSCR Rating 1",{"$f":"Import!M1833","v":0},null,{"$f":"Import!M1842","v":0},null,{"$f":"Import!M1851","v":0}]
[null,{"$f":"B85+1","v":50},"BSCR Rating 2",{"$f":"Import!M1834","v":0},null,{"$f":"Import!M1843","v":0},null,{"$f":"Import!M1852","v":0}]
[null,51,"BSCR Rating 3",{"$f":"Import!M1835","v":0},null,{"$f":"Import!M1844","v":0},null,{"$f":"Import!M1853","v":0}]
[null,52,"BSCR Rating 4",{"$f":"Import!M1836","v":0},null,{"$f":"Import!M1845","v":0},null,{"$f":"Import!M1854","v":0}]
[null,53,"BSCR Rating 5",{"$f":"Import!M1837","v":0},null,{"$f":"Import!M1846","v":0},null,{"$f":"Import!M1855","v":0}]
[null,54,"BSCR Rating 6",{"$f":"Import!M1838","v":0},null,{"$f":"Import!M1847","v":0},null,{"$f":"Import!M1856","v":0}]
[null,55,"BSCR Rating 7",{"$f":"Import!M1839","v":0},null,{"$f":"Import!M1848","v":0},null,{"$f":"Import!M1857","v":0}]
[null,56,"BSCR Rating 8",{"$f":"Import!M1840","v":0},null,{"$f":"Import!M1849","v":0},null,{"$f":"Import!M1858","v":0}]
[null,57,"Total Default Risk for OTC Derivatives ",{"$f":"SUM(D83:D92)","v":0},null,{"$f":"SUM(F83:F92)","v":0},null,{"$f":"SUM(H83:H92)","v":0}]
[]
[null,{"$f":"B93+1","v":58},"Cash and Cash Equivalents",{"$f":"Import!M1859","v":0}]
[]
[null,{"$f":"B95+1","v":59},"Total Segregated Account Assets",{"$f":"X27+X62+D77+H77+D93+F93+H93+D95","v":0}]
[]
[null,null,"Please include in the table below any assets, included in this Schedule, for which NAIC ratings were used to map to the BSCR rating classes"]
[null,null,"Information on the use of NAIC ratings\n(for disclosure purposes only)","Corporate & Sovereign Bonds",null,"Residential Mortgage-Backed Securities",null,"Commercial Mortgage-Backed Securities/Asset-Backed Securities",null,"Bond Mutual Funds",null,"Mortgage Loans",null,"Preferred Stocks",null,"Other Assets"]
[null,null,"NAIC Class 1",{"$f":"Import!M1860","v":0},null,{"$f":"Import!M1867","v":0},null,{"$f":"Import!M1874","v":0},null,{"$f":"Import!M1881","v":0},null,{"$f":"Import!M1888","v":0},null,{"$f":"Import!M1895","v":0},null,{"$f":"Import!M1902","v":0}]
[null,null,"NAIC Class 2",{"$f":"Import!M1861","v":0},null,{"$f":"Import!M1868","v":0},null,{"$f":"Import!M1875","v":0},null,{"$f":"Import!M1882","v":0},null,{"$f":"Import!M1889","v":0},null,{"$f":"Import!M1896","v":0},null,{"$f":"Import!M1903","v":0}]
[null,null,"NAIC Class 3",{"$f":"Import!M1862","v":0},null,{"$f":"Import!M1869","v":0},null,{"$f":"Import!M1876","v":0},null,{"$f":"Import!M1883","v":0},null,{"$f":"Import!M1890","v":0},null,{"$f":"Import!M1897","v":0},null,{"$f":"Import!M1904","v":0}]
[null,null,"NAIC Class 4",{"$f":"Import!M1863","v":0},null,{"$f":"Import!M1870","v":0},null,{"$f":"Import!M1877","v":0},null,{"$f":"Import!M1884","v":0},null,{"$f":"Import!M1891","v":0},null,{"$f":"Import!M1898","v":0},null,{"$f":"Import!M1905","v":0}]
[null,null,"NAIC Class 5",{"$f":"Import!M1864","v":0},null,{"$f":"Import!M1871","v":0},null,{"$f":"Import!M1878","v":0},null,{"$f":"Import!M1885","v":0},null,{"$f":"Import!M1892","v":0},null,{"$f":"Import!M1899","v":0},null,{"$f":"Import!M1906","v":0}]
[null,null,"NAIC Class 6",{"$f":"Import!M1865","v":0},null,{"$f":"Import!M1872","v":0},null,{"$f":"Import!M1879","v":0},null,{"$f":"Import!M1886","v":0},null,{"$f":"Import!M1893","v":0},null,{"$f":"Import!M1900","v":0},null,{"$f":"Import!M1907","v":0}]
[null,null,null,{"$f":"SUM(D101:D106)","v":0},null,{"$f":"SUM(F101:F106)","v":0},null,{"$f":"SUM(H101:H106)","v":0},null,{"$f":"SUM(J101:J106)","v":0},null,{"$f":"SUM(L101:L106)","v":0},null,{"$f":"SUM(N101:N106)","v":0},null,{"$f":"SUM(P101:P106)","v":0}]

{"sheet":"Schedule IIE","index":31,"n_rows":107,"n_cols":28,"rows_kept":107,"cut":false,"hidden":false,"merged":[[33,27,34,27],[2,1,2,3],[3,3,3,5],[4,3,4,5],[7,3,7,5],[7,7,7,9],[7,23,7,25],[32,3,32,13],[33,3,34,5],[33,7,33,13],[33,23,34,23],[7,11,7,13],[34,7,34,9],[34,11,34,13],[33,15,34,15],[33,17,34,17],[7,15,7,17],[32,15,32,19],[7,19,7,21],[63,3,63,11],[63,13,63,21],[64,3,64,5],[64,7,64,9],[64,13,64,15],[64,17,64,19],[33,19,34,19]]}
[null,"DEPOSIT ASSETS AND LIABILITIES",null,null,null,null,null,null,null,null,null,null,null,null,null,null,null,null,null,null,null,null,null,null,null,null,null,{"$f":"HYPERLINK(\"#'Index'!A1\",\"Return to Index\")","v":"Return to Index"}]
[]
[null,{"$f":"+'Company Information'!C7","v":"Enter Company Name"}]
[null,"As at",null,{"$f":"+'Company Information'!C3","v":"2022-12-31"},null,null,null,null,null,null,null,null,null,null,null,null,null,null,null,null,null,null,null,null,null,"SCHEDULE IIE"]
[null,{"$f":"\"expressed in\"& IF(CONFIGURATION!$B$12>1,\" ['\"&MID(CONFIGURATION!$B$12,2,LEN(CONFIGURATION!$B$12))&\"s]\",\"\")","v":"expressed in ['000s]"},null,{"$f":"'Form 1SFS (Consolidated)'!$C$5","v":"United States Dollars"}]
[]
[null,null,null,"(1)",null,"(2)",null,"(3)",null,"(4)",null,"(5)",null,"(6)",null,"(7)",null,"(8)",null,"(9)",null,"(10)",null,"(11)",null,"(12)"]
[null,null,null,"Corporate & Sovereign Bonds",null,null,null,"Residential Mortgage Backed Securities",null,null,null,"Commercial Mortgage Backed Securities / Asset- Backed Securities",null,null,null,"Bond Mutual Funds",null,null,null,"Mortgage Loans",null,null,null,"TOTAL"]
[null,null,null,{"$f":"'Form 1SFS (Consolidated)'!$M$9","v":"2022-12-31"},null,{"$f":"'Form 1SFS (Consolidated)'!$O$9","v":"2021-12-31"},null,{"$f":"'Form 1SFS (Consolidated)'!$M$9","v":"2022-12-31"},null,{"$f":"'Form 1SFS (Consolidated)'!$O$9","v":"2021-12-31"},null,{"$f":"'Form 1SFS (Consolidated)'!$M$9","v":"2022-12-31"},null,{"$f":"'Form 1SFS (Consolidated)'!$O$9","v":"2021-12-31"},null,{"$f":"'Form 1SFS (Consolidated)'!$M$9","v":"2022-12-31"},null,{"$f":"'Form 1SFS (Consolidated)'!$O$9","v":"2021-12-31"},null,{"$f":"'Form 1SFS (Consolidated)'!$M$9","v":"2022-12-31"},null,{"$f":"'Form 1SFS (Consolidated)'!$O$9","v":"2021-12-31"},null,{"$f":"'Form 1SFS (Consolidated)'!$M$9","v":"2022-12-31"},null,{"$f":"'Form 1SFS (Consolidated)'!$O$9","v":"2021-12-31"}]
[null,null,null,{"$f":"'Form 1SFS (Consolidated)'!$M$10","v":" ('000s)"},null,{"$f":"'Form 1SFS (Consolidated)'!$O$10","v":" ('000s)"},null,{"$f":"'Form 1SFS (Consolidated)'!$M$10","v":" ('000s)"},null,{"$f":"'Form 1SFS (Consolidated)'!$O$10","v":" ('000s)"},null,{"$f":"'Form 1SFS (Consolidated)'!$M$10","v":" ('000s)"},null,{"$f":"'Form 1SFS (Consolidated)'!$O$10","v":" ('000s)"},null,{"$f":"'Form 1SFS (Consolidated)'!$M$10","v":" ('000s)"},null,{"$f":"'Form 1SFS (Consolidated)'!$O$10","v":" ('000s)"},null,{"$f":"'Form 1SFS (Consolidated)'!$M$10","v":" ('000s)"},null,{"$f":"'Form 1SFS (Consolidated)'!$O$10","v":" ('000s)"},null,{"$f":"'Form 1SFS (Consolidated)'!$M$10","v":" ('000s)"},null,{"$f":"'Form 1SFS (Consolidated)'!$O$10","v":" ('000s)"}]
[null,"Line no. "]
[null,"Quoted and Unquoted Bonds and Debentures"]
[null,1,"BSCR Rating 0",{"$f":"Import!M1910","v":0},null,{"$f":"Import!O1910","v":0},null,null,null,null,null,null,null,null,null,{"$f":"Import!M1935","v":0},null,{"$f":"Import!O1935","v":0},null,null,null,null,null,{"$f":"D13+H13+L13+P13","v":0},null,{"$f":"F13+J13+N13+R13","v":0}]
[null,2,"BSCR Rating 1",{"$f":"Import!M1911","v":0},null,{"$f":"Import!O1911","v":0},null,{"$f":"Import!M1919","v":0},null,{"$f":"Import!O1919","v":0},null,{"$f":"Import!M1927","v":0},null,{"$f":"Import!O1927","v":0},null,{"$f":"Import!M1936","v":0},null,{"$f":"Import!O1936","v":0},null,null,null,null,null,{"$f":"D14+H14+L14+P14","v":0},null,0]
[null,3,"BSCR Rating 2",{"$f":"Import!M1912","v":0},null,{"$f":"Import!O1912","v":0},null,{"$f":"Import!M1920","v":0},null,{"$f":"Import!O1920","v":0},null,{"$f":"Import!M1928","v":0},null,{"$f":"Import!O1928","v":0},null,{"$f":"Import!M1937","v":0},null,{"$f":"Import!O1937","v":0},null,null,null,null,null,0,null,0]
[null,4,"BSCR Rating 3",{"$f":"Import!M1913","v":0},null,{"$f":"Import!O1913","v":0},null,{"$f":"Import!M1921","v":0},null,{"$f":"Import!O1921","v":0},null,{"$f":"Import!M1929","v":0},null,{"$f":"Import!O1929","v":0},null,{"$f":"Import!M1938","v":0},null,{"$f":"Import!O1938","v":0},null,null,null,null,null,0,null,0]
[null,5,"BSCR Rating 4",{"$f":"Import!M1914","v":0},null,{"$f":"Import!O1914","v":0},null,{"$f":"Import!M1922","v":0},null,{"$f":"Import!O1922","v":0},null,{"$f":"Import!M1930","v":0},null,{"$f":"Import!O1930","v":0},null,{"$f":"Import!M1939","v":0},null,{"$f":"Import!O1939","v":0},null,null,null,null,null,0,null,0]
[null,6,"BSCR Rating 5",{"$f":"Import!M1915","v":0},null,{"$f":"Import!O1915","v":0},null,{"$f":"Import!M1923","v":0},null,{"$f":"Import!O1923","v":0},null,{"$f":"Import!M1931","v":0},null,{"$f":"Import!O1931","v":0},null,{"$f":"Import!M1940","v":0},null,{"$f":"Import!O1940","v":0},null,null,null,null,null,0,null,0]
[null,7,"BSCR Rating 6",{"$f":"Import!M1916","v":0},null,{"$f":"Import!O1916","v":0},null,{"$f":"Import!M1924","v":0},null,{"$f":"Import!O1924","v":0},null,{"$f":"Import!M1932","v":0},null,{"$f":"Import!O1932","v":0},null,{"$f":"Import!M1941","v":0},null,{"$f":"Import!O1941","v":0},null,null,null,null,null,0,null,0]
[null,8,"BSCR Rating 7",{"$f":"Import!M1917","v":0},null,{"$f":"Import!O1917","v":0},null,{"$f":"Import!M1925","v":0},null,{"$f":"Import!O1925","v":0},null,{"$f":"Import!M1933","v":0},null,{"$f":"Import!O1933","v":0},null,{"$f":"Import!M1942","v":0},null,{"$f":"Import!O1942","v":0},null,null,null,null,null,0,null,0]
[null,9,"BSCR Rating 8",{"$f":"Import!M1918","v":0},null,{"$f":"Import!O1918","v":0},null,{"$f":"Import!M1926","v":0},null,{"$f":"Import!O1926","v":0},null,{"$f":"Import!M1934","v":0},null,{"$f":"Import!O1934","v":0},null,{"$f":"Import!M1943","v":0},null,{"$f":"Import!O1943","v":0},null,null,null,null,null,0,null,0]
[null,{"$f":"B21+1","v":10},"Insured/Guaranteed Mortgages",null,null,null,null,null,null,null,null,null,null,null,null,null,null,null,null,{"$f":"Import!M1944","v":0},null,{"$f":"Import!O1944","v":0},null,{"$f":"D22+H22+L22+P22+T22","v":0},null,{"$f":"F22+J22+N22+R22+V22","v":0}]
[null,{"$f":"B22+1","v":11},"Other Commercial and Farm Mortgages",null,null,null,null,null,null,null,null,null,null,null,null,null,null,null,null,{"$f":"Import!M1945","v":0},null,{"$f":"Import!O1945","v":0},null,{"$f":"D23+H23+L23+P23+T23","v":0},null,0]
[null,{"$f":"B23+1","v":12},"Other Residential Mortgages",null,null,null,null,null,null,null,null,null,null,null,null,null,null,null,null,{"$f":"Import!M1946","v":0},null,{"$f":"Import!O1946","v":0},null,{"$f":"D24+H24+L24+P24+T24","v":0},null,{"$f":"F24+J24+N24+R24+V24","v":0}]
[null,13,"Mortgages Not In Good Standing",null,null,null,null,null,null,null,null,null,null,null,null,null,null,null,null,{"$f":"Import!M1947","v":0},null,{"$f":"Import!O1947","v":0},null,0,null,0]
[]
[null,{"$f":"B25+1","v":14},"Total",{"$f":"SUM(D13:D21)","v":0},null,{"$f":"SUM(F13:F21)","v":0},null,{"$f":"SUM(H13:H21)","v":0},null,{"$f":"SUM(J13:J21)","v":0},null,{"$f":"SUM(L13:L21)","v":0},null,{"$f":"SUM(N13:N21)","v":0},null,{"$f":"SUM(P13:P21)","v":0},null,{"$f":"SUM(R13:R21)","v":0},null,{"$f":"SUM(T13:T26)","v":0},null,{"$f":"SUM(V13:V26)","v":0},null,{"$f":"SUM(X13:X26)","v":0},null,{"$f":"SUM(Z13:Z26)","v":0}]
[]
[]
[]
[]
[]
[null,null,null,"ASSETS",null,null,null,null,null,null,null,null,null,null,null,"Liabilities"]
[null,null,null,"Long Exposures",null,null,null,"Short Exposures",null,null,null,null,null,null,null,null,null,"Without Management Actions",null,"With Management Actions",null,null,null,"Total Assets Before Shock",null,null,null,"Shocks"]
[null,null,null,null,null,null,null,"Qualifying as Assets held for risk-mitigation purposes",null,null,null,"Not Qualifying as Assets held for risk-mitigation purposes",null,null,null,null,null,null,null,null,null,null,null,null,null,null,null,"Shocks"]
[null,null,null,"Before Shock",null,"After Shock",null,"Before Shock",null,"After Shock",null,"Before Shock",null,"After Shock",null,"Before Shock",null,"After Shock",null,"After Shock"]
[null,null,null,{"$f":"'Form 1SFS (Consolidated)'!$M$10","v":" ('000s)"},null,{"$f":"'Form 1SFS (Consolidated)'!$O$10","v":" ('000s)"},null,{"$f":"'Form 1SFS (Consolidated)'!$M$10","v":" ('000s)"},null,{"$f":"'Form 1SFS (Consolidated)'!$O$10","v":" ('000s)"},null,{"$f":"'Form 1SFS (Consolidated)'!$M$10","v":" ('000s)"},null,{"$f":"'Form 1SFS (Consolidated)'!$O$10","v":" ('000s)"},null,{"$f":"'Form 1SFS (Consolidated)'!$M$10","v":" ('000s)"},null,{"$f":"'Form 1SFS (Consolidated)'!$O$10","v":" ('000s)"},null,{"$f":"'Form 1SFS (Consolidated)'!$M$10","v":" ('000s)"},null,null,null,{"$f":"'Form 1SFS (Consolidated)'!$M$10","v":" ('000s)"}]
[null,"Equity Holdings "]
[null,{"$f":"B27+1","v":15},"Strategic Holdings - Listed",{"$f":"Import!M1948","v":0},null,{"$f":"IF(OR(Import!M1970=0,Import!M1970=\"\"),(1-$AB39)*D39,Import!M1970)","v":0},null,{"$f":"Import!M1992","v":0},null,{"$f":"IF(OR(Import!M2014=0,Import!M2014=\"\"),(1-$AB39)*H39,Import!M2014)","v":0},null,{"$f":"Import!M2036","v":0},null,{"$f":"IF(OR(Import!M2058=0,Import!M2058=\"\"),(1-$AB39)*L39,Import!M2058)","v":0},null,{"$f":"Import!M2080","v":0},null,{"$f":"IF(OR(Import!M2102=0,Import!M2102=\"\"),P39,Import!M2102)","v":0},null,{"$f":"IF(OR(Import!M2124=0,Import!M2124=\"\"),R39,Import!M2124)","v":0},null,null,null,{"$f":"D39+H39+L39","v":0},null,null,null,0.2]
[null,{"$f":"B39+1","v":16},"Duration Based",{"$f":"Import!M1949","v":0},null,{"$f":"IF(OR(Import!M1971=0,Import!M1971=\"\"),(1-$AB40)*D40,Import!M1971)","v":0},null,{"$f":"Import!M1993","v":0},null,{"$f":"IF(OR(Import!M2015=0,Import!M2015=\"\"),(1-$AB40)*H40,Import!M2015)","v":0},null,{"$f":"Import!M2037","v":0},null,{"$f":"IF(OR(Import!M2059=0,Import!M2059=\"\"),(1-$AB40)*L40,Import!M2059)","v":0},null,{"$f":"Import!M2081","v":0},null,{"$f":"IF(OR(Import!M2103=0,Import!M2103=\"\"),P40,Import!M2103)","v":0},null,{"$f":"IF(OR(Import!M2125=0,Import!M2125=\"\"),R40,Import!M2125)","v":0},null,null,null,{"$f":"D40+H40+L40","v":0},null,null,null,0.2]
[null,17,"Listed Equity Securities in Developed Markets",{"$f":"Import!M1950","v":0},null,{"$f":"IF(OR(Import!M1972=0,Import!M1972=\"\"),(1-$AB41)*D41,Import!M1972)","v":0},null,{"$f":"Import!M1994","v":0},null,{"$f":"IF(OR(Import!M2016=0,Import!M2016=\"\"),(1-$AB41)*H41,Import!M2016)","v":0},null,{"$f":"Import!M2038","v":0},null,{"$f":"IF(OR(Import!M2060=0,Import!M2060=\"\"),(1-$AB41)*L41,Import!M2060)","v":0},null,{"$f":"Import!M2082","v":0},null,{"$f":"IF(OR(Import!M2104=0,Import!M2104=\"\"),P41,Import!M2104)","v":0},null,{"$f":"IF(OR(Import!M2126=0,Import!M2126=\"\"),R41,Import!M2126)","v":0},null,null,null,0,null,null,null,0.35]
[null,18,"Preferred Stocks, BSCR Rating 1",{"$f":"Import!M1951","v":0},null,{"$f":"IF(OR(Import!M1973=0,Import!M1973=\"\"),(1-$AB42)*D42,Import!M1973)","v":0},null,{"$f":"Import!M1995","v":0},null,{"$f":"IF(OR(Import!M2017=0,Import!M2017=\"\"),(1-$AB42)*H42,Import!M2017)","v":0},null,{"$f":"Import!M2039","v":0},null,{"$f":"IF(OR(Import!M2061=0,Import!M2061=\"\"),(1-$AB42)*L42,Import!M2061)","v":0},null,{"$f":"Import!M2083","v":0},null,{"$f":"IF(OR(Import!M2105=0,Import!M2105=\"\"),P42,Import!M2105)","v":0},null,{"$f":"IF(OR(Import!M2127=0,Import!M2127=\"\"),R42,Import!M2127)","v":0},null,null,null,0,null,null,null,6.0000000000000001E-3]
[null,19,"Preferred Stocks, BSCR Rating 2",{"$f":"Import!M1952","v":0},null,{"$f":"IF(OR(Import!M1974=0,Import!M1974=\"\"),(1-$AB43)*D43,Import!M1974)","v":0},null,{"$f":"Import!M1996","v":0},null,{"$f":"IF(OR(Import!M2018=0,Import!M2018=\"\"),(1-$AB43)*H43,Import!M2018)","v":0},null,{"$f":"Import!M2040","v":0},null,{"$f":"IF(OR(Import!M2062=0,Import!M2062=\"\"),(1-$AB43)*L43,Import!M2062)","v":0},null,{"$f":"Import!M2084","v":0},null,{"$f":"IF(OR(Import!M2106=0,Import!M2106=\"\"),P43,Import!M2106)","v":0},null,{"$f":"IF(OR(Import!M2128=0,Import!M2128=\"\"),R43,Import!M2128)","v":0},null,null,null,0,null,null,null,1.2E-2]
[null,20,"Preferred Stocks, BSCR Rating 3",{"$f":"Import!M1953","v":0},null,{"$f":"IF(OR(Import!M1975=0,Import!M1975=\"\"),(1-$AB44)*D44,Import!M1975)","v":0},null,{"$f":"Import!M1997","v":0},null,{"$f":"IF(OR(Import!M2019=0,Import!M2019=\"\"),(1-$AB44)*H44,Import!M2019)","v":0},null,{"$f":"Import!M2041","v":0},null,{"$f":"IF(OR(Import!M2063=0,Import!M2063=\"\"),(1-$AB44)*L44,Import!M2063)","v":0},null,{"$f":"Import!M2085","v":0},null,{"$f":"IF(OR(Import!M2107=0,Import!M2107=\"\"),P44,Import!M2107)","v":0},null,{"$f":"IF(OR(Import!M2129=0,Import!M2129=\"\"),R44,Import!M2129)","v":0},null,null,null,0,null,null,null,0.02]
[null,21,"Preferred Stocks, BSCR Rating 4",{"$f":"Import!M1954","v":0},null,{"$f":"IF(OR(Import!M1976=0,Import!M1976=\"\"),(1-$AB45)*D45,Import!M1976)","v":0},null,{"$f":"Import!M1998","v":0},null,{"$f":"IF(OR(Import!M2020=0,Import!M2020=\"\"),(1-$AB45)*H45,Import!M2020)","v":0},null,{"$f":"Import!M2042","v":0},null,{"$f":"IF(OR(Import!M2064=0,Import!M2064=\"\"),(1-$AB45)*L45,Import!M2064)","v":0},null,{"$f":"Import!M2086","v":0},null,{"$f":"IF(OR(Import!M2108=0,Import!M2108=\"\"),P45,Import!M2108)","v":0},null,{"$f":"IF(OR(Import!M2130=0,Import!M2130=\"\"),R45,Import!M2130)","v":0},null,null,null,0,null,null,null,0.04]
[null,22,"Preferred Stocks, BSCR Rating 5",{"$f":"Import!M1955","v":0},null,{"$f":"IF(OR(Import!M1977=0,Import!M1977=\"\"),(1-$AB46)*D46,Import!M1977)","v":0},null,{"$f":"Import!M1999","v":0},null,{"$f":"IF(OR(Import!M2021=0,Import!M2021=\"\"),(1-$AB46)*H46,Import!M2021)","v":0},null,{"$f":"Import!M2043","v":0},null,{"$f":"IF(OR(Import!M2065=0,Import!M2065=\"\"),(1-$AB46)*L46,Import!M2065)","v":0},null,{"$f":"Import!M2087","v":0},null,{"$f":"IF(OR(Import!M2109=0,Import!M2109=\"\"),P46,Import!M2109)","v":0},null,{"$f":"IF(OR(Import!M2131=0,Import!M2131=\"\"),R46,Import!M2131)","v":0},null,null,null,0,null,null,null,0.11]
[null,23,"Preferred Stocks, BSCR Rating 6",{"$f":"Import!M1956","v":0},null,{"$f":"IF(OR(Import!M1978=0,Import!M1978=\"\"),(1-$AB47)*D47,Import!M1978)","v":0},null,{"$f":"Import!M2000","v":0},null,{"$f":"IF(OR(Import!M2022=0,Import!M2022=\"\"),(1-$AB47)*H47,Import!M2022)","v":0},null,{"$f":"Import!M2044","v":0},null,{"$f":"IF(OR(Import!M2066=0,Import!M2066=\"\"),(1-$AB47)*L47,Import!M2066)","v":0},null,{"$f":"Import!M2088","v":0},null,{"$f":"IF(OR(Import!M2110=0,Import!M2110=\"\"),P47,Import!M2110)","v":0},null,{"$f":"IF(OR(Import!M2132=0,Import!M2132=\"\"),R47,Import!M2132)","v":0},null,null,null,0,null,null,null,0.25]
[null,24,"Preferred Stocks, BSCR Rating 7",{"$f":"Import!M1957","v":0},null,{"$f":"IF(OR(Import!M1979=0,Import!M1979=\"\"),(1-$AB48)*D48,Import!M1979)","v":0},null,{"$f":"Import!M2001","v":0},null,{"$f":"IF(OR(Import!M2023=0,Import!M2023=\"\"),(1-$AB48)*H48,Import!M2023)","v":0},null,{"$f":"Import!M2045","v":0},null,{"$f":"IF(OR(Import!M2067=0,Import!M2067=\"\"),(1-$AB48)*L48,Import!M2067)","v":0},null,{"$f":"Import!M2089","v":0},null,{"$f":"IF(OR(Import!M2111=0,Import!M2111=\"\"),P48,Import!M2111)","v":0},null,{"$f":"IF(OR(Import!M2133=0,Import!M2133=\"\"),R48,Import!M2133)","v":0},null,null,null,0,null,null,null,0.35]
[null,25,"Preferred Stocks, BSCR Rating 8",{"$f":"Import!M1958","v":0},null,{"$f":"IF(OR(Import!M1980=0,Import!M1980=\"\"),(1-$AB49)*D49,Import!M1980)","v":0},null,{"$f":"Import!M2002","v":0},null,{"$f":"IF(OR(Import!M2024=0,Import!M2024=\"\"),(1-$AB49)*H49,Import!M2024)","v":0},null,{"$f":"Import!M2046","v":0},null,{"$f":"IF(OR(Import!M2068=0,Import!M2068=\"\"),(1-$AB49)*L49,Import!M2068)","v":0},null,{"$f":"Import!M2090","v":0},null,{"$f":"IF(OR(Import!M2112=0,Import!M2112=\"\"),P49,Import!M2112)","v":0},null,{"$f":"IF(OR(Import!M2134=0,Import!M2134=\"\"),R49,Import!M2134)","v":0},null,null,null,0,null,null,null,0.35]
[null,26,"Equity Derivatives on Type 1 Equities",{"$f":"Import!M1959","v":0},null,{"$f":"Import!M1981","v":0},null,{"$f":"Import!M2003","v":0},null,{"$f":"Import!M2025","v":0},null,{"$f":"Import!M2047","v":0},null,{"$f":"Import!M2069","v":0},null,{"$f":"Import!M2091","v":0},null,{"$f":"IF(OR(Import!M2113=0,Import!M2113=\"\"),P50,Import!M2113)","v":0},null,{"$f":"IF(OR(Import!M2135=0,Import!M2135=\"\"),R50,Import!M2135)","v":0},null,null,null,0,null,null,null,0.35]
[null,27,"Strategic Holdings - Unlisted",{"$f":"Import!M1960","v":0},null,{"$f":"IF(OR(Import!M1982=0,Import!M1982=\"\"),(1-$AB51)*D51,Import!M1982)","v":0},null,{"$f":"Import!M2004","v":0},null,{"$f":"IF(OR(Import!M2026=0,Import!M2026=\"\"),(1-$AB51)*H51,Import!M2026)","v":0},null,{"$f":"Import!M2048","v":0},null,{"$f":"IF(OR(Import!M2070=0,Import!M2070=\"\"),(1-$AB51)*L51,Import!M2070)","v":0},null,{"$f":"Import!M2092","v":0},null,{"$f":"IF(OR(Import!M2114=0,Import!M2114=\"\"),P51,Import!M2114)","v":0},null,{"$f":"IF(OR(Import!M2136=0,Import!M2136=\"\"),R51,Import!M2136)","v":0},null,null,null,0,null,null,null,0.2]
[null,28,"Other Equities / Other Assets",{"$f":"Import!M1961","v":0},null,{"$f":"IF(OR(Import!M1983=0,Import!M1983=\"\"),(1-$AB52)*D52,Import!M1983)","v":0},null,{"$f":"Import!M2005","v":0},null,{"$f":"IF(OR(Import!M2027=0,Import!M2027=\"\"),(1-$AB52)*H52,Import!M2027)","v":0},null,{"$f":"Import!M2049","v":0},null,{"$f":"IF(OR(Import!M2071=0,Import!M2071=\"\"),(1-$AB52)*L52,Import!M2071)","v":0},null,{"$f":"Import!M2093","v":0},null,{"$f":"IF(OR(Import!M2115=0,Import!M2115=\"\"),P52,Import!M2115)","v":0},null,{"$f":"IF(OR(Import!M2137=0,Import!M2137=\"\"),R52,Import!M2137)","v":0},null,null,null,0,null,null,null,0.45]
[null,29,"Letters of Credit",{"$f":"Import!M1962","v":0},null,{"$f":"IF(OR(Import!M1984=0,Import!M1984=\"\"),(1-$AB53)*D53,Import!M1984)","v":0},null,{"$f":"Import!M2006","v":0},null,{"$f":"IF(OR(Import!M2028=0,Import!M2028=\"\"),(1-$AB53)*H53,Import!M2028)","v":0},null,{"$f":"Import!M2050","v":0},null,{"$f":"IF(OR(Import!M2072=0,Import!M2072=\"\"),(1-$AB53)*L53,Import!M2072)","v":0},null,{"$f":"Import!M2094","v":0},null,{"$f":"IF(OR(Import!M2116=0,Import!M2116=\"\"),P53,Import!M2116)","v":0},null,{"$f":"IF(OR(Import!M2138=0,Import!M2138=\"\"),R53,Import!M2138)","v":0},null,null,null,0,null,null,null,0.2]
[null,30,"Intangible assets",{"$f":"Import!M1963","v":0},null,{"$f":"IF(OR(Import!M1985=0,Import!M1985=\"\"),(1-$AB54)*D54,Import!M1985)","v":0},null,{"$f":"Import!M2007","v":0},null,{"$f":"IF(OR(Import!M2029=0,Import!M2029=\"\"),(1-$AB54)*H54,Import!M2029)","v":0},null,{"$f":"Import!M2051","v":0},null,{"$f":"IF(OR(Import!M2073=0,Import!M2073=\"\"),(1-$AB54)*L54,Import!M2073)","v":0},null,{"$f":"Import!M2095","v":0},null,{"$f":"IF(OR(Import!M2117=0,Import!M2117=\"\"),P54,Import!M2117)","v":0},null,{"$f":"IF(OR(Import!M2139=0,Import!M2139=\"\"),R54,Import!M2139)","v":0},null,null,null,0,null,null,null,0.2]
[null,31,"Pension Benefit Surplus",{"$f":"Import!M1964","v":0},null,{"$f":"IF(OR(Import!M1986=0,Import!M1986=\"\"),(1-$AB55)*D55,Import!M1986)","v":0},null,{"$f":"Import!M2008","v":0},null,{"$f":"IF(OR(Import!M2030=0,Import!M2030=\"\"),(1-$AB55)*H55,Import!M2030)","v":0},null,{"$f":"Import!M2052","v":0},null,{"$f":"IF(OR(Import!M2074=0,Import!M2074=\"\"),(1-$AB55)*L55,Import!M2074)","v":0},null,{"$f":"Import!M2096","v":0},null,{"$f":"IF(OR(Import!M2118=0,Import!M2118=\"\"),P55,Import!M2118)","v":0},null,{"$f":"IF(OR(Import!M2140=0,Import!M2140=\"\"),R55,Import!M2140)","v":0},null,null,null,0,null,null,null,0.2]
[null,32,"Equity Derivatives on Type 2 Equities",{"$f":"Import!M1965","v":0},null,{"$f":"Import!M1987","v":0},null,{"$f":"Import!M2009","v":0},null,{"$f":"Import!M2031","v":0},null,{"$f":"Import!M2053","v":0},null,{"$f":"Import!M2075","v":0},null,{"$f":"Import!M2097","v":0},null,{"$f":"IF(OR(Import!M2119=0,Import!M2119=\"\"),P56,Import!M2119)","v":0},null,{"$f":"IF(OR(Import!M2141=0,Import!M2141=\"\"),R56,Import!M2141)","v":0},null,null,null,0,null,null,null,0.45]
[null,33,"Infrastructure",{"$f":"Import!M1966","v":0},null,{"$f":"IF(OR(Import!M1988=0,Import!M1988=\"\"),(1-$AB57)*D57,Import!M1988)","v":0},null,{"$f":"Import!M2010","v":0},null,{"$f":"IF(OR(Import!M2032=0,Import!M2032=\"\"),(1-$AB57)*H57,Import!M2032)","v":0},null,{"$f":"Import!M2054","v":0},null,{"$f":"IF(OR(Import!M2076=0,Import!M2076=\"\"),(1-$AB57)*L57,Import!M2076)","v":0},null,{"$f":"Import!M2098","v":0},null,{"$f":"IF(OR(Import!M2120=0,Import!M2120=\"\"),P57,Import!M2120)","v":0},null,{"$f":"IF(OR(Import!M2142=0,Import!M2142=\"\"),R57,Import!M2142)","v":0},null,null,null,0,null,null,null,0.25]
[null,34,"Derivatives on Infrastructure",{"$f":"Import!M1967","v":0},null,{"$f":"Import!M1989","v":0},null,{"$f":"Import!M2011","v":0},null,{"$f":"Import!M2033","v":0},null,{"$f":"Import!M2055","v":0},null,{"$f":"Import!M2077","v":0},null,{"$f":"Import!M2099","v":0},null,{"$f":"IF(OR(Import!M2121=0,Import!M2121=\"\"),P58,Import!M2121)","v":0},null,{"$f":"IF(OR(Import!M2143=0,Import!M2143=\"\"),R58,Import!M2143)","v":0},null,null,null,0,null,null,null,0.25]
[null,35,"Equity Real Estate 1",{"$f":"Import!M1968","v":0},null,{"$f":"IF(OR(Import!M1990=0,Import!M1990=\"\"),(1-$AB59)*D59,Import!M1990)","v":0},null,{"$f":"Import!M2012","v":0},null,{"$f":"IF(OR(Import!M2034=0,Import!M2034=\"\"),(1-$AB59)*H59,Import!M2034)","v":0},null,{"$f":"Import!M2056","v":0},null,{"$f":"IF(OR(Import!M2078=0,Import!M2078=\"\"),(1-$AB59)*L59,Import!M2078)","v":0},null,{"$f":"Import!M2100","v":0},null,{"$f":"IF(OR(Import!M2122=0,Import!M2122=\"\"),P59,Import!M2122)","v":0},null,{"$f":"IF(OR(Import!M2144=0,Import!M2144=\"\"),R59,Import!M2144)","v":0},null,null,null,0,null,null,null,0.1]
[null,36,"Equity Real Estate 2",{"$f":"Import!M1969","v":0},null,{"$f":"IF(OR(Import!M1991=0,Import!M1991=\"\"),(1-$AB60)*D60,Import!M1991)","v":0},null,{"$f":"Import!M2013","v":0},null,{"$f":"IF(OR(Import!M2035=0,Import!M2035=\"\"),(1-$AB60)*H60,Import!M2035)","v":0},null,{"$f":"Import!M2057","v":0},null,{"$f":"IF(OR(Import!M2079=0,Import!M2079=\"\"),(1-$AB60)*L60,Import!M2079)","v":0},null,{"$f":"Import!M2101","v":0},null,{"$f":"IF(OR(Import!M2123=0,Import!M2123=\"\"),P60,Import!M2123)","v":0},null,{"$f":"IF(OR(Import!M2145=0,Import!M2145=\"\"),R60,Import!M2145)","v":0},null,null,null,0,null,null,null,0.2]
[]
[null,{"$f":"B60+1","v":37},"Total Equity Holdings",{"$f":"SUM(D38:D61)","v":0},null,{"$f":"SUM(F38:F61)","v":0},null,{"$f":"SUM(H38:H61)","v":0},null,{"$f":"SUM(J38:J61)","v":0},null,{"$f":"SUM(L38:L61)","v":0},null,{"$f":"SUM(N38:N61)","v":0},null,{"$f":"SUM(P38:P61)","v":0},null,{"$f":"SUM(R38:R61)","v":0},null,{"$f":"SUM(T38:T61)","v":0},null,null,null,{"$f":"SUM(X38:X61)","v":0}]
[]
[null,null,null,"Spread Up",null,null,null,null,null,null,null,null,null,"Spread Down"]
[null,null,null,"Long Exposures",null,null,null,"Short Exposures",null,null,null,"Shock (bps)",null,"Long Exposures",null,null,null,"Short Exposures",null,null,null,"Shock Rates"]
[null,null,null,"Before Shock",null,"After Shock",null,"Before Shock",null,"After Shock",null,null,null,"Before Shock",null,"After Shock",null,"Before Shock",null,"After Shock"]
[null,null,"Spread Risk for Credit Derivatives",null,null,null,null,null,null,null,null,null,null,null,null,null,{"$f":"SUM(G71:G80)","v":0},null,{"$f":"SUM(I71:I80)","v":0},null,{"$f":"SUM(K71:K80)","v":0}]
[null,{"$f":"B62+1","v":38},"BSCR Rating 0",{"$f":"Import!M2146","v":0},null,{"$f":"Import!M2155","v":0},null,{"$f":"Import!M2164","v":0},null,{"$f":"Import!M2173","v":0},null,0,null,{"$f":"Import!M2182","v":0},null,{"$f":"Import!M2191","v":0},null,{"$f":"Import!M2200","v":0},null,{"$f":"Import!M2209","v":0},null,0]
[null,{"$f":"B68+1","v":39},"BSCR Rating 1",{"$f":"Import!M2147","v":0},null,{"$f":"Import!M2156","v":0},null,{"$f":"Import!M2165","v":0},null,{"$f":"Import!M2174","v":0},null,130,null,{"$f":"Import!M2183","v":0},null,{"$f":"Import!M2192","v":0},null,{"$f":"Import!M2201","v":0},null,{"$f":"Import!M2210","v":0},null,-0.75]
[null,{"$f":"B69+1","v":40},"BSCR Rating 2",{"$f":"Import!M2148","v":0},null,{"$f":"Import!M2157","v":0},null,{"$f":"Import!M2166","v":0},null,{"$f":"Import!M2175","v":0},null,150,null,{"$f":"Import!M2184","v":0},null,{"$f":"Import!M2193","v":0},null,{"$f":"Import!M2202","v":0},null,{"$f":"Import!M2211","v":0},null,-0.75]
[null,41,"BSCR Rating 3",{"$f":"Import!M2149","v":0},null,{"$f":"Import!M2158","v":0},null,{"$f":"Import!M2167","v":0},null,{"$f":"Import!M2176","v":0},null,260,null,{"$f":"Import!M2185","v":0},null,{"$f":"Import!M2194","v":0},null,{"$f":"Import!M2203","v":0},null,{"$f":"Import!M2212","v":0},null,-0.75]
[null,42,"BSCR Rating 4",{"$f":"Import!M2150","v":0},null,{"$f":"Import!M2159","v":0},null,{"$f":"Import!M2168","v":0},null,{"$f":"Import!M2177","v":0},null,450,null,{"$f":"Import!M2186","v":0},null,{"$f":"Import!M2195","v":0},null,{"$f":"Import!M2204","v":0},null,{"$f":"Import!M2213","v":0},null,-0.75]
[null,43,"BSCR Rating 5",{"$f":"Import!M2151","v":0},null,{"$f":"Import!M2160","v":0},null,{"$f":"Import!M2169","v":0},null,{"$f":"Import!M2178","v":0},null,840,null,{"$f":"Import!M2187","v":0},null,{"$f":"Import!M2196","v":0},null,{"$f":"Import!M2205","v":0},null,{"$f":"Import!M2214","v":0},null,-0.75]
[null,44,"BSCR Rating 6",{"$f":"Import!M2152","v":0},null,{"$f":"Import!M2161","v":0},null,{"$f":"Import!M2170","v":0},null,{"$f":"Import!M2179","v":0},null,1620,null,{"$f":"Import!M2188","v":0},null,{"$f":"Import!M2197","v":0},null,{"$f":"Import!M2206","v":0},null,{"$f":"Import!M2215","v":0},null,-0.75]
[null,45,"BSCR Rating 7",{"$f":"Import!M2153","v":0},null,{"$f":"Import!M2162","v":0},null,{"$f":"Import!M2171","v":0},null,{"$f":"Import!M2180","v":0},null,1620,null,{"$f":"Import!M2189","v":0},null,{"$f":"Import!M2198","v":0},null,{"$f":"Import!M2207","v":0},null,{"$f":"Import!M2216","v":0},null,-0.75]
[null,46,"BSCR Rating 8",{"$f":"Import!M2154","v":0},null,{"$f":"Import!M2163","v":0},null,{"$f":"Import!M2172","v":0},null,{"$f":"Import!M2181","v":0},null,1620,null,{"$f":"Import!M2190","v":0},null,{"$f":"Import!M2199","v":0},null,{"$f":"Import!M2208","v":0},null,{"$f":"Import!M2217","v":0},null,-0.75]
[null,47,"Total Spread",{"$f":"SUM(D67:D76)","v":0},null,{"$f":"SUM(F67:F76)","v":0},null,{"$f":"SUM(H67:H76)","v":0},null,{"$f":"SUM(J67:J76)","v":0},null,null,null,{"$f":"SUM(N67:N76)","v":0},null,{"$f":"SUM(P67:P76)","v":0},0,0,0,0,0]
[]
[null,null,"Spread Risk Check",null,null,null,null,null,null,null,null,null,null,{"$f":"IF(ROUND(D77-N77,0)=0,\"Yes\",\"No\")","v":"Yes"},null,null,null,{"$f":"IF(ROUND(H77-R77,0)=0,\"Yes\",\"No\")","v":"Yes"}]
[null,null,"Difference",null,null,null,null,null,null,null,null,null,null,{"$f":"ROUND(D77-N77,0)","v":0},null,null,null,{"$f":"ROUND(H77-R77,0)","v":0}]
[]
[null,null,null,"Market Value of Derivatives with Positive Market Value",null,"Market Value of Derivatives with Negative Market Value",null,"Market Value of Collateral, Excluding any over-collateralization"]
[null,null,"Counterparty Default Risk for OTC Derivatives"]
[null,{"$f":"B77+1","v":48},"BSCR Rating 0",{"$f":"Import!M2218","v":0},null,{"$f":"Import!M2227","v":0},null,{"$f":"Import!M2236","v":0}]
[null,{"$f":"B84+1","v":49},"BSCR Rating 1",{"$f":"Import!M2219","v":0},null,{"$f":"Import!M2228","v":0},null,{"$f":"Import!M2237","v":0}]
[null,{"$f":"B85+1","v":50},"BSCR Rating 2",{"$f":"Import!M2220","v":0},null,{"$f":"Import!M2229","v":0},null,{"$f":"Import!M2238","v":0}]
[null,51,"BSCR Rating 3",{"$f":"Import!M2221","v":0},null,{"$f":"Import!M2230","v":0},null,{"$f":"Import!M2239","v":0}]
[null,52,"BSCR Rating 4",{"$f":"Import!M2222","v":0},null,{"$f":"Import!M2231","v":0},null,{"$f":"Import!M2240","v":0}]
[null,53,"BSCR Rating 5",{"$f":"Import!M2223","v":0},null,{"$f":"Import!M2232","v":0},null,{"$f":"Import!M2241","v":0}]
[null,54,"BSCR Rating 6",{"$f":"Import!M2224","v":0},null,{"$f":"Import!M2233","v":0},null,{"$f":"Import!M2242","v":0}]
[null,55,"BSCR Rating 7",{"$f":"Import!M2225","v":0},null,{"$f":"Import!M2234","v":0},null,{"$f":"Import!M2243","v":0}]
[null,56,"BSCR Rating 8",{"$f":"Import!M2226","v":0},null,{"$f":"Import!M2235","v":0},null,{"$f":"Import!M2244","v":0}]
[null,57,"Total Default Risk for OTC Derivatives ",{"$f":"SUM(D83:D92)","v":0},null,{"$f":"SUM(F83:F92)","v":0},null,{"$f":"SUM(H83:H92)","v":0}]
[]
[null,{"$f":"B93+1","v":58},"Cash and Cash Equivalents",{"$f":"Import!M2245","v":0}]
[]
[null,{"$f":"B95+1","v":59},"Total Deposit Assets",{"$f":"X27+X62+D77+H77+D93+F93+H93+D95","v":0}]
[]
[null,null,"Please include in the table below any assets, included in this Schedule, for which NAIC ratings were used to map to the BSCR rating classes"]
[null,null,"Information on the use of NAIC ratings\n(for disclosure purposes only)","Corporate & Sovereign Bonds",null,"Residential Mortgage-Backed Securities",null,"Commercial Mortgage-Backed Securities/Asset-Backed Securities",null,"Bond Mutual Funds",null,"Mortgage Loans",null,"Preferred Stocks",null,"Other Assets"]
[null,null,"NAIC Class 1",{"$f":"Import!M2246","v":0},null,{"$f":"Import!M2253","v":0},null,{"$f":"Import!M2260","v":0},null,{"$f":"Import!M2267","v":0},null,{"$f":"Import!M2274","v":0},null,{"$f":"Import!M2281","v":0},null,{"$f":"Import!M2288","v":0}]
[null,null,"NAIC Class 2",{"$f":"Import!M2247","v":0},null,{"$f":"Import!M2254","v":0},null,{"$f":"Import!M2261","v":0},null,{"$f":"Import!M2268","v":0},null,{"$f":"Import!M2275","v":0},null,{"$f":"Import!M2282","v":0},null,{"$f":"Import!M2289","v":0}]
[null,null,"NAIC Class 3",{"$f":"Import!M2248","v":0},null,{"$f":"Import!M2255","v":0},null,{"$f":"Import!M2262","v":0},null,{"$f":"Import!M2269","v":0},null,{"$f":"Import!M2276","v":0},null,{"$f":"Import!M2283","v":0},null,{"$f":"Import!M2290","v":0}]
[null,null,"NAIC Class 4",{"$f":"Import!M2249","v":0},null,{"$f":"Import!M2256","v":0},null,{"$f":"Import!M2263","v":0},null,{"$f":"Import!M2270","v":0},null,{"$f":"Import!M2277","v":0},null,{"$f":"Import!M2284","v":0},null,{"$f":"Import!M2291","v":0}]
[null,null,"NAIC Class 5",{"$f":"Import!M2250","v":0},null,{"$f":"Import!M2257","v":0},null,{"$f":"Import!M2264","v":0},null,{"$f":"Import!M2271","v":0},null,{"$f":"Import!M2278","v":0},null,{"$f":"Import!M2285","v":0},null,{"$f":"Import!M2292","v":0}]
[null,null,"NAIC Class 6",{"$f":"Import!M2251","v":0},null,{"$f":"Import!M2258","v":0},null,{"$f":"Import!M2265","v":0},null,{"$f":"Import!M2272","v":0},null,{"$f":"Import!M2279","v":0},null,{"$f":"Import!M2286","v":0},null,{"$f":"Import!M2293","v":0}]
[null,null,null,{"$f":"SUM(D101:D106)","v":0},null,{"$f":"SUM(F101:F106)","v":0},null,{"$f":"SUM(H101:H106)","v":0},null,{"$f":"SUM(J101:J106)","v":0},null,{"$f":"SUM(L101:L106)","v":0},null,{"$f":"SUM(N101:N106)","v":0},null,{"$f":"SUM(P101:P106)","v":0}]

{"sheet":"Schedule IIF","index":32,"n_rows":107,"n_cols":28,"rows_kept":107,"cut":false,"hidden":false,"merged":[[33,27,34,27],[2,1,2,3],[3,3,3,5],[4,3,4,5],[7,3,7,5],[7,7,7,9],[7,23,7,25],[32,3,32,13],[33,3,34,5],[33,7,33,13],[33,23,34,23],[7,11,7,13],[34,7,34,9],[34,11,34,13],[32,15,32,19],[33,15,34,15],[33,17,34,17],[33,19,34,19],[7,19,7,21],[64,3,64,5],[64,7,64,9],[64,13,64,15],[64,17,64,19],[7,15,7,17],[63,3,63,11],[63,13,63,21]]}
[null,"OTHER SUNDRY ASSETS AND LIABILITIES",null,null,null,null,null,null,null,null,null,null,null,null,null,null,null,null,null,null,null,null,null,null,null,null,null,{"$f":"HYPERLINK(\"#'Index'!A1\",\"Return to Index\")","v":"Return to Index"}]
[]
[null,{"$f":"+'Company Information'!C7","v":"Enter Company Name"}]
[null,"As at",null,{"$f":"+'Company Information'!C3","v":"2022-12-31"},null,null,null,null,null,null,null,null,null,null,null,null,null,null,null,null,null,null,null,null,null,"SCHEDULE IIF"]
[null,{"$f":"\"expressed in\"& IF(CONFIGURATION!$B$12>1,\" ['\"&MID(CONFIGURATION!$B$12,2,LEN(CONFIGURATION!$B$12))&\"s]\",\"\")","v":"expressed in ['000s]"},null,{"$f":"'Form 1SFS (Consolidated)'!$C$5","v":"United States Dollars"}]
[]
[null,null,null,"(1)",null,"(2)",null,"(3)",null,"(4)",null,"(5)",null,"(6)",null,"(7)",null,"(8)",null,"(9)",null,"(10)",null,"(11)",null,"(12)"]
[null,null,null,"Corporate & Sovereign Bonds",null,null,null,"Residential Mortgage Backed Securities",null,null,null,"Commercial Mortgage Backed Securities / Asset- Backed Securities",null,null,null,"Bond Mutual Funds",null,null,null,"Mortgage Loans",null,null,null,"TOTAL"]
[null,null,null,{"$f":"'Form 1SFS (Consolidated)'!$M$9","v":"2022-12-31"},null,{"$f":"'Form 1SFS (Consolidated)'!$O$9","v":"2021-12-31"},null,{"$f":"'Form 1SFS (Consolidated)'!$M$9","v":"2022-12-31"},null,{"$f":"'Form 1SFS (Consolidated)'!$O$9","v":"2021-12-31"},null,{"$f":"'Form 1SFS (Consolidated)'!$M$9","v":"2022-12-31"},null,{"$f":"'Form 1SFS (Consolidated)'!$O$9","v":"2021-12-31"},null,{"$f":"'Form 1SFS (Consolidated)'!$M$9","v":"2022-12-31"},null,{"$f":"'Form 1SFS (Consolidated)'!$O$9","v":"2021-12-31"},null,{"$f":"'Form 1SFS (Consolidated)'!$M$9","v":"2022-12-31"},null,{"$f":"'Form 1SFS (Consolidated)'!$O$9","v":"2021-12-31"},null,{"$f":"'Form 1SFS (Consolidated)'!$M$9","v":"2022-12-31"},null,{"$f":"'Form 1SFS (Consolidated)'!$O$9","v":"2021-12-31"}]
[null,null,null,{"$f":"'Form 1SFS (Consolidated)'!$M$10","v":" ('000s)"},null,{"$f":"'Form 1SFS (Consolidated)'!$O$10","v":" ('000s)"},null,{"$f":"'Form 1SFS (Consolidated)'!$M$10","v":" ('000s)"},null,{"$f":"'Form 1SFS (Consolidated)'!$O$10","v":" ('000s)"},null,{"$f":"'Form 1SFS (Consolidated)'!$M$10","v":" ('000s)"},null,{"$f":"'Form 1SFS (Consolidated)'!$O$10","v":" ('000s)"},null,{"$f":"'Form 1SFS (Consolidated)'!$M$10","v":" ('000s)"},null,{"$f":"'Form 1SFS (Consolidated)'!$O$10","v":" ('000s)"},null,{"$f":"'Form 1SFS (Consolidated)'!$M$10","v":" ('000s)"},null,{"$f":"'Form 1SFS (Consolidated)'!$O$10","v":" ('000s)"},null,{"$f":"'Form 1SFS (Consolidated)'!$M$10","v":" ('000s)"},null,{"$f":"'Form 1SFS (Consolidated)'!$O$10","v":" ('000s)"}]
[null,"Line no. "]
[null,"Quoted and Unquoted Bonds and Debentures"]
[null,1,"BSCR Rating 0",{"$f":"Import!M2296","v":0},null,{"$f":"Import!O2296","v":0},null,null,null,null,null,null,null,null,null,{"$f":"Import!M2321","v":0},null,{"$f":"Import!O2321","v":0},null,null,null,null,null,{"$f":"D13+H13+L13+P13","v":0},null,{"$f":"F13+J13+N13+R13","v":0}]
[null,2,"BSCR Rating 1",{"$f":"Import!M2297","v":0},null,{"$f":"Import!O2297","v":0},null,{"$f":"Import!M2305","v":0},null,{"$f":"Import!O2305","v":0},null,{"$f":"Import!M2313","v":0},null,{"$f":"Import!O2313","v":0},null,{"$f":"Import!M2322","v":0},null,{"$f":"Import!O2322","v":0},null,null,null,null,null,{"$f":"D14+H14+L14+P14","v":0},null,0]
[null,3,"BSCR Rating 2",{"$f":"Import!M2298","v":0},null,{"$f":"Import!O2298","v":0},null,{"$f":"Import!M2306","v":0},null,{"$f":"Import!O2306","v":0},null,{"$f":"Import!M2314","v":0},null,{"$f":"Import!O2314","v":0},null,{"$f":"Import!M2323","v":0},null,{"$f":"Import!O2323","v":0},null,null,null,null,null,0,null,0]
[null,4,"BSCR Rating 3",{"$f":"Import!M2299","v":0},null,{"$f":"Import!O2299","v":0},null,{"$f":"Import!M2307","v":0},null,{"$f":"Import!O2307","v":0},null,{"$f":"Import!M2315","v":0},null,{"$f":"Import!O2315","v":0},null,{"$f":"Import!M2324","v":0},null,{"$f":"Import!O2324","v":0},null,null,null,null,null,0,null,0]
[null,5,"BSCR Rating 4",{"$f":"Import!M2300","v":0},null,{"$f":"Import!O2300","v":0},null,{"$f":"Import!M2308","v":0},null,{"$f":"Import!O2308","v":0},null,{"$f":"Import!M2316","v":0},null,{"$f":"Import!O2316","v":0},null,{"$f":"Import!M2325","v":0},null,{"$f":"Import!O2325","v":0},null,null,null,null,null,0,null,0]
[null,6,"BSCR Rating 5",{"$f":"Import!M2301","v":0},null,{"$f":"Import!O2301","v":0},null,{"$f":"Import!M2309","v":0},null,{"$f":"Import!O2309","v":0},null,{"$f":"Import!M2317","v":0},null,{"$f":"Import!O2317","v":0},null,{"$f":"Import!M2326","v":0},null,{"$f":"Import!O2326","v":0},null,null,null,null,null,0,null,0]
[null,7,"BSCR Rating 6",{"$f":"Import!M2302","v":0},null,{"$f":"Import!O2302","v":0},null,{"$f":"Import!M2310","v":0},null,{"$f":"Import!O2310","v":0},null,{"$f":"Import!M2318","v":0},null,{"$f":"Import!O2318","v":0},null,{"$f":"Import!M2327","v":0},null,{"$f":"Import!O2327","v":0},null,null,null,null,null,0,null,0]
[null,8,"BSCR Rating 7",{"$f":"Import!M2303","v":0},null,{"$f":"Import!O2303","v":0},null,{"$f":"Import!M2311","v":0},null,{"$f":"Import!O2311","v":0},null,{"$f":"Import!M2319","v":0},null,{"$f":"Import!O2319","v":0},null,{"$f":"Import!M2328","v":0},null,{"$f":"Import!O2328","v":0},null,null,null,null,null,0,null,0]
[null,9,"BSCR Rating 8",{"$f":"Import!M2304","v":0},null,{"$f":"Import!O2304","v":0},null,{"$f":"Import!M2312","v":0},null,{"$f":"Import!O2312","v":0},null,{"$f":"Import!M2320","v":0},null,{"$f":"Import!O2320","v":0},null,{"$f":"Import!M2329","v":0},null,{"$f":"Import!O2329","v":0},null,null,null,null,null,0,null,0]
[null,{"$f":"B21+1","v":10},"Insured/Guaranteed Mortgages",null,null,null,null,null,null,null,null,null,null,null,null,null,null,null,null,{"$f":"Import!M2330","v":0},null,{"$f":"Import!O2330","v":0},null,{"$f":"D22+H22+L22+P22+T22","v":0},null,{"$f":"F22+J22+N22+R22+V22","v":0}]
[null,{"$f":"B22+1","v":11},"Other Commercial and Farm Mortgages",null,null,null,null,null,null,null,null,null,null,null,null,null,null,null,null,{"$f":"Import!M2331","v":0},null,{"$f":"Import!O2331","v":0},null,{"$f":"D23+H23+L23+P23+T23","v":0},null,0]
[null,{"$f":"B23+1","v":12},"Other Residential Mortgages",null,null,null,null,null,null,null,null,null,null,null,null,null,null,null,null,{"$f":"Import!M2332","v":0},null,{"$f":"Import!O2332","v":0},null,{"$f":"D24+H24+L24+P24+T24","v":0},null,{"$f":"F24+J24+N24+R24+V24","v":0}]
[null,13,"Mortgages Not In Good Standing",null,null,null,null,null,null,null,null,null,null,null,null,null,null,null,null,{"$f":"Import!M2333","v":0},null,{"$f":"Import!O2333","v":0},null,0,null,0]
[]
[null,{"$f":"B25+1","v":14},"Total",{"$f":"SUM(D13:D21)","v":0},null,{"$f":"SUM(F13:F21)","v":0},null,{"$f":"SUM(H13:H21)","v":0},null,{"$f":"SUM(J13:J21)","v":0},null,{"$f":"SUM(L13:L21)","v":0},null,{"$f":"SUM(N13:N21)","v":0},null,{"$f":"SUM(P13:P21)","v":0},null,{"$f":"SUM(R13:R21)","v":0},null,{"$f":"SUM(T13:T26)","v":0},null,{"$f":"SUM(V13:V26)","v":0},null,{"$f":"SUM(X13:X26)","v":0},null,{"$f":"SUM(Z13:Z26)","v":0}]
[]
[]
[]
[]
[]
[null,null,null,"ASSETS",null,null,null,null,null,null,null,null,null,null,null,"Liabilities"]
[null,null,null,"Long Exposures",null,null,null,"Short Exposures",null,null,null,null,null,null,null,null,null,"Without Management Actions",null,"With Management Actions",null,null,null,"Total Assets Before Shock",null,null,null,"Shocks"]
[null,null,null,null,null,null,null,"Qualifying as Assets held for risk-mitigation purposes",null,null,null,"Not Qualifying as Assets held for risk-mitigation purposes",null,null,null,null,null,null,null,null,null,null,null,null,null,null,null,"Shocks"]
[null,null,null,"Before Shock",null,"After Shock",null,"Before Shock",null,"After Shock",null,"Before Shock",null,"After Shock",null,"Before Shock",null,"After Shock",null,"After Shock"]
[null,null,null,{"$f":"'Form 1SFS (Consolidated)'!$M$10","v":" ('000s)"},null,{"$f":"'Form 1SFS (Consolidated)'!$O$10","v":" ('000s)"},null,{"$f":"'Form 1SFS (Consolidated)'!$M$10","v":" ('000s)"},null,{"$f":"'Form 1SFS (Consolidated)'!$O$10","v":" ('000s)"},null,{"$f":"'Form 1SFS (Consolidated)'!$M$10","v":" ('000s)"},null,{"$f":"'Form 1SFS (Consolidated)'!$O$10","v":" ('000s)"},null,{"$f":"'Form 1SFS (Consolidated)'!$M$10","v":" ('000s)"},null,{"$f":"'Form 1SFS (Consolidated)'!$O$10","v":" ('000s)"},null,{"$f":"'Form 1SFS (Consolidated)'!$M$10","v":" ('000s)"},null,null,null,{"$f":"'Form 1SFS (Consolidated)'!$M$10","v":" ('000s)"}]
[null,"Equity Holdings "]
[null,{"$f":"B27+1","v":15},"Strategic Holdings - Listed",{"$f":"Import!M2334","v":0},null,{"$f":"IF(OR(Import!M2356=0,Import!M2356=\"\"),(1-$AB39)*D39,Import!M2356)","v":0},null,{"$f":"Import!M2378","v":0},null,{"$f":"IF(OR(Import!M2400=0,Import!M2400=\"\"),(1-$AB39)*H39,Import!M2400)","v":0},null,{"$f":"Import!M2422","v":0},null,{"$f":"IF(OR(Import!M2444=0,Import!M2444=\"\"),(1-$AB39)*L39,Import!M2444)","v":0},null,{"$f":"Import!M2466","v":0},null,{"$f":"IF(OR(Import!M2488=0,Import!M2488=\"\"),P39,Import!M2488)","v":0},null,{"$f":"IF(OR(Import!M2510=0,Import!M2510=\"\"),R39,Import!M2510)","v":0},null,null,null,{"$f":"D39+H39+L39","v":0},null,null,null,0.2]
[null,{"$f":"B39+1","v":16},"Duration Based",{"$f":"Import!M2335","v":0},null,{"$f":"IF(OR(Import!M2357=0,Import!M2357=\"\"),(1-$AB40)*D40,Import!M2357)","v":0},null,{"$f":"Import!M2379","v":0},null,{"$f":"IF(OR(Import!M2401=0,Import!M2401=\"\"),(1-$AB40)*H40,Import!M2401)","v":0},null,{"$f":"Import!M2423","v":0},null,{"$f":"IF(OR(Import!M2445=0,Import!M2445=\"\"),(1-$AB40)*L40,Import!M2445)","v":0},null,{"$f":"Import!M2467","v":0},null,{"$f":"IF(OR(Import!M2489=0,Import!M2489=\"\"),P40,Import!M2489)","v":0},null,{"$f":"IF(OR(Import!M2511=0,Import!M2511=\"\"),R40,Import!M2511)","v":0},null,null,null,{"$f":"D40+H40+L40","v":0},null,null,null,0.2]
[null,17,"Listed Equity Securities in Developed Markets",{"$f":"Import!M2336","v":0},null,{"$f":"IF(OR(Import!M2358=0,Import!M2358=\"\"),(1-$AB41)*D41,Import!M2358)","v":0},null,{"$f":"Import!M2380","v":0},null,{"$f":"IF(OR(Import!M2402=0,Import!M2402=\"\"),(1-$AB41)*H41,Import!M2402)","v":0},null,{"$f":"Import!M2424","v":0},null,{"$f":"IF(OR(Import!M2446=0,Import!M2446=\"\"),(1-$AB41)*L41,Import!M2446)","v":0},null,{"$f":"Import!M2468","v":0},null,{"$f":"IF(OR(Import!M2490=0,Import!M2490=\"\"),P41,Import!M2490)","v":0},null,{"$f":"IF(OR(Import!M2512=0,Import!M2512=\"\"),R41,Import!M2512)","v":0},null,null,null,0,null,null,null,0.35]
[null,18,"Preferred Stocks, BSCR Rating 1",{"$f":"Import!M2337","v":0},null,{"$f":"IF(OR(Import!M2359=0,Import!M2359=\"\"),(1-$AB42)*D42,Import!M2359)","v":0},null,{"$f":"Import!M2381","v":0},null,{"$f":"IF(OR(Import!M2403=0,Import!M2403=\"\"),(1-$AB42)*H42,Import!M2403)","v":0},null,{"$f":"Import!M2425","v":0},null,{"$f":"IF(OR(Import!M2447=0,Import!M2447=\"\"),(1-$AB42)*L42,Import!M2447)","v":0},null,{"$f":"Import!M2469","v":0},null,{"$f":"IF(OR(Import!M2491=0,Import!M2491=\"\"),P42,Import!M2491)","v":0},null,{"$f":"IF(OR(Import!M2513=0,Import!M2513=\"\"),R42,Import!M2513)","v":0},null,null,null,0,null,null,null,6.0000000000000001E-3]
[null,19,"Preferred Stocks, BSCR Rating 2",{"$f":"Import!M2338","v":0},null,{"$f":"IF(OR(Import!M2360=0,Import!M2360=\"\"),(1-$AB43)*D43,Import!M2360)","v":0},null,{"$f":"Import!M2382","v":0},null,{"$f":"IF(OR(Import!M2404=0,Import!M2404=\"\"),(1-$AB43)*H43,Import!M2404)","v":0},null,{"$f":"Import!M2426","v":0},null,{"$f":"IF(OR(Import!M2448=0,Import!M2448=\"\"),(1-$AB43)*L43,Import!M2448)","v":0},null,{"$f":"Import!M2470","v":0},null,{"$f":"IF(OR(Import!M2492=0,Import!M2492=\"\"),P43,Import!M2492)","v":0},null,{"$f":"IF(OR(Import!M2514=0,Import!M2514=\"\"),R43,Import!M2514)","v":0},null,null,null,0,null,null,null,1.2E-2]
[null,20,"Preferred Stocks, BSCR Rating 3",{"$f":"Import!M2339","v":0},null,{"$f":"IF(OR(Import!M2361=0,Import!M2361=\"\"),(1-$AB44)*D44,Import!M2361)","v":0},null,{"$f":"Import!M2383","v":0},null,{"$f":"IF(OR(Import!M2405=0,Import!M2405=\"\"),(1-$AB44)*H44,Import!M2405)","v":0},null,{"$f":"Import!M2427","v":0},null,{"$f":"IF(OR(Import!M2449=0,Import!M2449=\"\"),(1-$AB44)*L44,Import!M2449)","v":0},null,{"$f":"Import!M2471","v":0},null,{"$f":"IF(OR(Import!M2493=0,Import!M2493=\"\"),P44,Import!M2493)","v":0},null,{"$f":"IF(OR(Import!M2515=0,Import!M2515=\"\"),R44,Import!M2515)","v":0},null,null,null,0,null,null,null,0.02]
[null,21,"Preferred Stocks, BSCR Rating 4",{"$f":"Import!M2340","v":0},null,{"$f":"IF(OR(Import!M2362=0,Import!M2362=\"\"),(1-$AB45)*D45,Import!M2362)","v":0},null,{"$f":"Import!M2384","v":0},null,{"$f":"IF(OR(Import!M2406=0,Import!M2406=\"\"),(1-$AB45)*H45,Import!M2406)","v":0},null,{"$f":"Import!M2428","v":0},null,{"$f":"IF(OR(Import!M2450=0,Import!M2450=\"\"),(1-$AB45)*L45,Import!M2450)","v":0},null,{"$f":"Import!M2472","v":0},null,{"$f":"IF(OR(Import!M2494=0,Import!M2494=\"\"),P45,Import!M2494)","v":0},null,{"$f":"IF(OR(Import!M2516=0,Import!M2516=\"\"),R45,Import!M2516)","v":0},null,null,null,0,null,null,null,0.04]
[null,22,"Preferred Stocks, BSCR Rating 5",{"$f":"Import!M2341","v":0},null,{"$f":"IF(OR(Import!M2363=0,Import!M2363=\"\"),(1-$AB46)*D46,Import!M2363)","v":0},null,{"$f":"Import!M2385","v":0},null,{"$f":"IF(OR(Import!M2407=0,Import!M2407=\"\"),(1-$AB46)*H46,Import!M2407)","v":0},null,{"$f":"Import!M2429","v":0},null,{"$f":"IF(OR(Import!M2451=0,Import!M2451=\"\"),(1-$AB46)*L46,Import!M2451)","v":0},null,{"$f":"Import!M2473","v":0},null,{"$f":"IF(OR(Import!M2495=0,Import!M2495=\"\"),P46,Import!M2495)","v":0},null,{"$f":"IF(OR(Import!M2517=0,Import!M2517=\"\"),R46,Import!M2517)","v":0},null,null,null,0,null,null,null,0.11]
[null,23,"Preferred Stocks, BSCR Rating 6",{"$f":"Import!M2342","v":0},null,{"$f":"IF(OR(Import!M2364=0,Import!M2364=\"\"),(1-$AB47)*D47,Import!M2364)","v":0},null,{"$f":"Import!M2386","v":0},null,{"$f":"IF(OR(Import!M2408=0,Import!M2408=\"\"),(1-$AB47)*H47,Import!M2408)","v":0},null,{"$f":"Import!M2430","v":0},null,{"$f":"IF(OR(Import!M2452=0,Import!M2452=\"\"),(1-$AB47)*L47,Import!M2452)","v":0},null,{"$f":"Import!M2474","v":0},null,{"$f":"IF(OR(Import!M2496=0,Import!M2496=\"\"),P47,Import!M2496)","v":0},null,{"$f":"IF(OR(Import!M2518=0,Import!M2518=\"\"),R47,Import!M2518)","v":0},null,null,null,0,null,null,null,0.25]
[null,24,"Preferred Stocks, BSCR Rating 7",{"$f":"Import!M2343","v":0},null,{"$f":"IF(OR(Import!M2365=0,Import!M2365=\"\"),(1-$AB48)*D48,Import!M2365)","v":0},null,{"$f":"Import!M2387","v":0},null,{"$f":"IF(OR(Import!M2409=0,Import!M2409=\"\"),(1-$AB48)*H48,Import!M2409)","v":0},null,{"$f":"Import!M2431","v":0},null,{"$f":"IF(OR(Import!M2453=0,Import!M2453=\"\"),(1-$AB48)*L48,Import!M2453)","v":0},null,{"$f":"Import!M2475","v":0},null,{"$f":"IF(OR(Import!M2497=0,Import!M2497=\"\"),P48,Import!M2497)","v":0},null,{"$f":"IF(OR(Import!M2519=0,Import!M2519=\"\"),R48,Import!M2519)","v":0},null,null,null,0,null,null,null,0.35]
[null,25,"Preferred Stocks, BSCR Rating 8",{"$f":"Import!M2344","v":0},null,{"$f":"IF(OR(Import!M2366=0,Import!M2366=\"\"),(1-$AB49)*D49,Import!M2366)","v":0},null,{"$f":"Import!M2388","v":0},null,{"$f":"IF(OR(Import!M2410=0,Import!M2410=\"\"),(1-$AB49)*H49,Import!M2410)","v":0},null,{"$f":"Import!M2432","v":0},null,{"$f":"IF(OR(Import!M2454=0,Import!M2454=\"\"),(1-$AB49)*L49,Import!M2454)","v":0},null,{"$f":"Import!M2476","v":0},null,{"$f":"IF(OR(Import!M2498=0,Import!M2498=\"\"),P49,Import!M2498)","v":0},null,{"$f":"IF(OR(Import!M2520=0,Import!M2520=\"\"),R49,Import!M2520)","v":0},null,null,null,0,null,null,null,0.35]
[null,26,"Equity Derivatives on Type 1 Equities",{"$f":"Import!M2345","v":0},null,{"$f":"Import!M2367","v":0},null,{"$f":"Import!M2389","v":0},null,{"$f":"Import!M2411","v":0},null,{"$f":"Import!M2433","v":0},null,{"$f":"Import!M2455","v":0},null,{"$f":"Import!M2477","v":0},null,{"$f":"IF(OR(Import!M2499=0,Import!M2499=\"\"),P50,Import!M2499)","v":0},null,{"$f":"IF(OR(Import!M2521=0,Import!M2521=\"\"),R50,Import!M2521)","v":0},null,null,null,0,null,null,null,0.35]
[null,27,"Strategic Holdings - Unlisted",{"$f":"Import!M2346","v":0},null,{"$f":"IF(OR(Import!M2368=0,Import!M2368=\"\"),(1-$AB51)*D51,Import!M2368)","v":0},null,{"$f":"Import!M2390","v":0},null,{"$f":"IF(OR(Import!M2412=0,Import!M2412=\"\"),(1-$AB51)*H51,Import!M2412)","v":0},null,{"$f":"Import!M2434","v":0},null,{"$f":"IF(OR(Import!M2456=0,Import!M2456=\"\"),(1-$AB51)*L51,Import!M2456)","v":0},null,{"$f":"Import!M2478","v":0},null,{"$f":"IF(OR(Import!M2500=0,Import!M2500=\"\"),P51,Import!M2500)","v":0},null,{"$f":"IF(OR(Import!M2522=0,Import!M2522=\"\"),R51,Import!M2522)","v":0},null,null,null,0,null,null,null,0.2]
[null,28,"Other Equities / Other Assets",{"$f":"IF(OR(Import!M2347=0,Import!M2347=\"\"),('Form 1SFS (Consolidated)'!M80+'Form 1SFS (Consolidated)'!M81+'Form 1SFS (Consolidated)'!M82),Import!M2347)","v":0},null,{"$f":"IF(OR(Import!M2369=0,Import!M2369=\"\"),(1-$AB52)*D52,Import!M2369)","v":0},null,{"$f":"Import!M2391","v":0},null,{"$f":"IF(OR(Import!M2413=0,Import!M2413=\"\"),(1-$AB52)*H52,Import!M2413)","v":0},null,{"$f":"Import!M2435","v":0},null,{"$f":"IF(OR(Import!M2457=0,Import!M2457=\"\"),(1-$AB52)*L52,Import!M2457)","v":0},null,{"$f":"Import!M2479","v":0},null,{"$f":"IF(OR(Import!M2501=0,Import!M2501=\"\"),P52,Import!M2501)","v":0},null,{"$f":"IF(OR(Import!M2523=0,Import!M2523=\"\"),R52,Import!M2523)","v":0},null,null,null,0,null,null,null,0.45]
[null,29,"Letters of Credit",{"$f":"IF(OR(Import!M2348=0,Import!M2348=\"\"),'Form 1SFS (Consolidated)'!M89,Import!M2348)","v":0},null,{"$f":"IF(OR(Import!M2370=0,Import!M2370=\"\"),(1-$AB53)*D53,Import!M2370)","v":0},null,{"$f":"Import!M2392","v":0},null,{"$f":"IF(OR(Import!M2414=0,Import!M2414=\"\"),(1-$AB53)*H53,Import!M2414)","v":0},null,{"$f":"Import!M2436","v":0},null,{"$f":"IF(OR(Import!M2458=0,Import!M2458=\"\"),(1-$AB53)*L53,Import!M2458)","v":0},null,{"$f":"Import!M2480","v":0},null,{"$f":"IF(OR(Import!M2502=0,Import!M2502=\"\"),P53,Import!M2502)","v":0},null,{"$f":"IF(OR(Import!M2524=0,Import!M2524=\"\"),R53,Import!M2524)","v":0},null,null,null,0,null,null,null,0.2]
[null,30,"Intangible assets",{"$f":"IF(OR(Import!M2349=0,Import!M2349=\"\"),'Form 1SFS (Consolidated)'!M79,Import!M2349)","v":0},null,{"$f":"IF(OR(Import!M2371=0,Import!M2371=\"\"),(1-$AB54)*D54,Import!M2371)","v":0},null,{"$f":"Import!M2393","v":0},null,{"$f":"IF(OR(Import!M2415=0,Import!M2415=\"\"),(1-$AB54)*H54,Import!M2415)","v":0},null,{"$f":"Import!M2437","v":0},null,{"$f":"IF(OR(Import!M2459=0,Import!M2459=\"\"),(1-$AB54)*L54,Import!M2459)","v":0},null,{"$f":"Import!M2481","v":0},null,{"$f":"IF(OR(Import!M2503=0,Import!M2503=\"\"),P54,Import!M2503)","v":0},null,{"$f":"IF(OR(Import!M2525=0,Import!M2525=\"\"),R54,Import!M2525)","v":0},null,null,null,0,null,null,null,0.2]
[null,31,"Pension Benefit Surplus",{"$f":"Import!M2350","v":0},null,{"$f":"IF(OR(Import!M2372=0,Import!M2372=\"\"),(1-$AB55)*D55,Import!M2372)","v":0},null,{"$f":"Import!M2394","v":0},null,{"$f":"IF(OR(Import!M2416=0,Import!M2416=\"\"),(1-$AB55)*H55,Import!M2416)","v":0},null,{"$f":"Import!M2438","v":0},null,{"$f":"IF(OR(Import!M2460=0,Import!M2460=\"\"),(1-$AB55)*L55,Import!M2460)","v":0},null,{"$f":"Import!M2482","v":0},null,{"$f":"IF(OR(Import!M2504=0,Import!M2504=\"\"),P55,Import!M2504)","v":0},null,{"$f":"IF(OR(Import!M2526=0,Import!M2526=\"\"),R55,Import!M2526)","v":0},null,null,null,0,null,null,null,0.2]
[null,32,"Equity Derivatives on Type 2 Equities",{"$f":"Import!M2351","v":0},null,{"$f":"Import!M2373","v":0},null,{"$f":"Import!M2395","v":0},null,{"$f":"Import!M2417","v":0},null,{"$f":"Import!M2439","v":0},null,{"$f":"Import!M2461","v":0},null,{"$f":"Import!M2483","v":0},null,{"$f":"IF(OR(Import!M2505=0,Import!M2505=\"\"),P56,Import!M2505)","v":0},null,{"$f":"IF(OR(Import!M2527=0,Import!M2527=\"\"),R56,Import!M2527)","v":0},null,null,null,0,null,null,null,0.45]
[null,33,"Infrastructure",{"$f":"Import!M2352","v":0},null,{"$f":"IF(OR(Import!M2374=0,Import!M2374=\"\"),(1-$AB57)*D57,Import!M2374)","v":0},null,{"$f":"Import!M2396","v":0},null,{"$f":"IF(OR(Import!M2418=0,Import!M2418=\"\"),(1-$AB57)*H57,Import!M2418)","v":0},null,{"$f":"Import!M2440","v":0},null,{"$f":"IF(OR(Import!M2462=0,Import!M2462=\"\"),(1-$AB57)*L57,Import!M2462)","v":0},null,{"$f":"Import!M2484","v":0},null,{"$f":"IF(OR(Import!M2506=0,Import!M2506=\"\"),P57,Import!M2506)","v":0},null,{"$f":"IF(OR(Import!M2528=0,Import!M2528=\"\"),R57,Import!M2528)","v":0},null,null,null,0,null,null,null,0.25]
[null,34,"Derivatives on Infrastructure",{"$f":"Import!M2353","v":0},null,{"$f":"Import!M2375","v":0},null,{"$f":"Import!M2397","v":0},null,{"$f":"Import!M2419","v":0},null,{"$f":"Import!M2441","v":0},null,{"$f":"Import!M2463","v":0},null,{"$f":"Import!M2485","v":0},null,{"$f":"IF(OR(Import!M2507=0,Import!M2507=\"\"),P58,Import!M2507)","v":0},null,{"$f":"IF(OR(Import!M2529=0,Import!M2529=\"\"),R58,Import!M2529)","v":0},null,null,null,0,null,null,null,0.25]
[null,35,"Equity Real Estate 1",{"$f":"Import!M2354","v":0},null,{"$f":"IF(OR(Import!M2376=0,Import!M2376=\"\"),(1-$AB59)*D59,Import!M2376)","v":0},null,{"$f":"Import!M2398","v":0},null,{"$f":"IF(OR(Import!M2420=0,Import!M2420=\"\"),(1-$AB59)*H59,Import!M2420)","v":0},null,{"$f":"Import!M2442","v":0},null,{"$f":"IF(OR(Import!M2464=0,Import!M2464=\"\"),(1-$AB59)*L59,Import!M2464)","v":0},null,{"$f":"Import!M2486","v":0},null,{"$f":"IF(OR(Import!M2508=0,Import!M2508=\"\"),P59,Import!M2508)","v":0},null,{"$f":"IF(OR(Import!M2530=0,Import!M2530=\"\"),R59,Import!M2530)","v":0},null,null,null,0,null,null,null,0.1]
[null,36,"Equity Real Estate 2",{"$f":"Import!M2355","v":0},null,{"$f":"IF(OR(Import!M2377=0,Import!M2377=\"\"),(1-$AB60)*D60,Import!M2377)","v":0},null,{"$f":"Import!M2399","v":0},null,{"$f":"IF(OR(Import!M2421=0,Import!M2421=\"\"),(1-$AB60)*H60,Import!M2421)","v":0},null,{"$f":"Import!M2443","v":0},null,{"$f":"IF(OR(Import!M2465=0,Import!M2465=\"\"),(1-$AB60)*L60,Import!M2465)","v":0},null,{"$f":"Import!M2487","v":0},null,{"$f":"IF(OR(Import!M2509=0,Import!M2509=\"\"),P60,Import!M2509)","v":0},null,{"$f":"IF(OR(Import!M2531=0,Import!M2531=\"\"),R60,Import!M2531)","v":0},null,null,null,0,null,null,null,0.2]
[]
[null,{"$f":"B60+1","v":37},"Total Equity Holdings",{"$f":"SUM(D38:D61)","v":0},null,{"$f":"SUM(F38:F61)","v":0},null,{"$f":"SUM(H38:H61)","v":0},null,{"$f":"SUM(J38:J61)","v":0},null,{"$f":"SUM(L38:L61)","v":0},null,{"$f":"SUM(N38:N61)","v":0},null,{"$f":"SUM(P38:P61)","v":0},null,{"$f":"SUM(R38:R61)","v":0},null,{"$f":"SUM(T38:T61)","v":0},null,null,null,{"$f":"SUM(X38:X61)","v":0}]
[]
[null,null,null,"Spread Up",null,null,null,null,null,null,null,null,null,"Spread Down"]
[null,null,null,"Long Exposures",null,null,null,"Short Exposures",null,null,null,"Shock (bps)",null,"Long Exposures",null,null,null,"Short Exposures",null,null,null,"Shock Rates"]
[null,null,null,"Before Shock",null,"After Shock",null,"Before Shock",null,"After Shock",null,null,null,"Before Shock",null,"After Shock",null,"Before Shock",null,"After Shock"]
[null,null,"Spread Risk for Credit Derivatives",null,null,null,null,null,null,null,null,null,null,null,null,null,{"$f":"SUM(G71:G79)","v":0},null,{"$f":"SUM(I71:I79)","v":0},null,{"$f":"SUM(K71:K79)","v":0}]
[null,{"$f":"B62+1","v":38},"BSCR Rating 0",{"$f":"Import!M2532","v":0},null,{"$f":"Import!M2541","v":0},null,{"$f":"Import!M2550","v":0},null,{"$f":"Import!M2559","v":0},null,0,null,{"$f":"Import!M2568","v":0},null,{"$f":"Import!M2577","v":0},null,{"$f":"Import!M2586","v":0},null,{"$f":"Import!M2595","v":0},null,0]
[null,{"$f":"B68+1","v":39},"BSCR Rating 1",{"$f":"Import!M2533","v":0},null,{"$f":"Import!M2542","v":0},null,{"$f":"Import!M2551","v":0},null,{"$f":"Import!M2560","v":0},null,130,null,{"$f":"Import!M2569","v":0},null,{"$f":"Import!M2578","v":0},null,{"$f":"Import!M2587","v":0},null,{"$f":"Import!M2596","v":0},null,-0.75]
[null,{"$f":"B69+1","v":40},"BSCR Rating 2",{"$f":"Import!M2534","v":0},null,{"$f":"Import!M2543","v":0},null,{"$f":"Import!M2552","v":0},null,{"$f":"Import!M2561","v":0},null,150,null,{"$f":"Import!M2570","v":0},null,{"$f":"Import!M2579","v":0},null,{"$f":"Import!M2588","v":0},null,{"$f":"Import!M2597","v":0},null,-0.75]
[null,41,"BSCR Rating 3",{"$f":"Import!M2535","v":0},null,{"$f":"Import!M2544","v":0},null,{"$f":"Import!M2553","v":0},null,{"$f":"Import!M2562","v":0},null,260,null,{"$f":"Import!M2571","v":0},null,{"$f":"Import!M2580","v":0},null,{"$f":"Import!M2589","v":0},null,{"$f":"Import!M2598","v":0},null,-0.75]
[null,42,"BSCR Rating 4",{"$f":"Import!M2536","v":0},null,{"$f":"Import!M2545","v":0},null,{"$f":"Import!M2554","v":0},null,{"$f":"Import!M2563","v":0},null,450,null,{"$f":"Import!M2572","v":0},null,{"$f":"Import!M2581","v":0},null,{"$f":"Import!M2590","v":0},null,{"$f":"Import!M2599","v":0},null,-0.75]
[null,43,"BSCR Rating 5",{"$f":"Import!M2537","v":0},null,{"$f":"Import!M2546","v":0},null,{"$f":"Import!M2555","v":0},null,{"$f":"Import!M2564","v":0},null,840,null,{"$f":"Import!M2573","v":0},null,{"$f":"Import!M2582","v":0},null,{"$f":"Import!M2591","v":0},null,{"$f":"Import!M2600","v":0},null,-0.75]
[null,44,"BSCR Rating 6",{"$f":"Import!M2538","v":0},null,{"$f":"Import!M2547","v":0},null,{"$f":"Import!M2556","v":0},null,{"$f":"Import!M2565","v":0},null,1620,null,{"$f":"Import!M2574","v":0},null,{"$f":"Import!M2583","v":0},null,{"$f":"Import!M2592","v":0},null,{"$f":"Import!M2601","v":0},null,-0.75]
[null,45,"BSCR Rating 7",{"$f":"Import!M2539","v":0},null,{"$f":"Import!M2548","v":0},null,{"$f":"Import!M2557","v":0},null,{"$f":"Import!M2566","v":0},null,1620,null,{"$f":"Import!M2575","v":0},null,{"$f":"Import!M2584","v":0},null,{"$f":"Import!M2593","v":0},null,{"$f":"Import!M2602","v":0},null,-0.75]
[null,46,"BSCR Rating 8",{"$f":"Import!M2540","v":0},null,{"$f":"Import!M2549","v":0},null,{"$f":"Import!M2558","v":0},null,{"$f":"Import!M2567","v":0},null,1620,null,{"$f":"Import!M2576","v":0},null,{"$f":"Import!M2585","v":0},null,{"$f":"Import!M2594","v":0},null,{"$f":"Import!M2603","v":0},null,-0.75]
[null,47,"Total Spread",{"$f":"SUM(D67:D76)","v":0},null,{"$f":"SUM(F67:F76)","v":0},null,{"$f":"SUM(H67:H76)","v":0},null,{"$f":"SUM(J67:J76)","v":0},null,null,null,{"$f":"SUM(N67:N76)","v":0},null,{"$f":"SUM(P67:P76)","v":0},{"$f":"SUM(Q67:Q76)","v":0},{"$f":"SUM(R67:R76)","v":0},{"$f":"SUM(S67:S76)","v":0},{"$f":"SUM(T67:T76)","v":0},{"$f":"SUM(U67:U76)","v":0}]
[]
[null,null,"Spread Risk Check",null,null,null,null,null,null,null,null,null,null,{"$f":"IF(ROUND(D77-N77,0)=0,\"Yes\",\"No\")","v":"Yes"},null,null,null,{"$f":"IF(ROUND(H77-R77,0)=0,\"Yes\",\"No\")","v":"Yes"}]
[null,null,"Difference",null,null,null,null,null,null,null,null,null,null,{"$f":"ROUND(D77-N77,0)","v":0},null,null,null,{"$f":"ROUND(H77-R77,0)","v":0}]
[]
[null,null,null,"Market Value of Derivatives with Positive Market Value",null,"Market Value of Derivatives with Negative Market Value",null,"Market Value of Collateral, Excluding any over-collateralization"]
[null,null,"Counterparty Default Risk for OTC Derivatives"]
[null,{"$f":"B77+1","v":48},"BSCR Rating 0",{"$f":"Import!M2604","v":0},null,{"$f":"Import!M2613","v":0},null,{"$f":"Import!M2622","v":0}]
[null,{"$f":"B84+1","v":49},"BSCR Rating 1",{"$f":"Import!M2605","v":0},null,{"$f":"Import!M2614","v":0},null,{"$f":"Import!M2623","v":0}]
[null,{"$f":"B85+1","v":50},"BSCR Rating 2",{"$f":"Import!M2606","v":0},null,{"$f":"Import!M2615","v":0},null,{"$f":"Import!M2624","v":0}]
[null,51,"BSCR Rating 3",{"$f":"Import!M2607","v":0},null,{"$f":"Import!M2616","v":0},null,{"$f":"Import!M2625","v":0}]
[null,52,"BSCR Rating 4",{"$f":"Import!M2608","v":0},null,{"$f":"Import!M2617","v":0},null,{"$f":"Import!M2626","v":0}]
[null,53,"BSCR Rating 5",{"$f":"Import!M2609","v":0},null,{"$f":"Import!M2618","v":0},null,{"$f":"Import!M2627","v":0}]
[null,54,"BSCR Rating 6",{"$f":"Import!M2610","v":0},null,{"$f":"Import!M2619","v":0},null,{"$f":"Import!M2628","v":0}]
[null,55,"BSCR Rating 7",{"$f":"Import!M2611","v":0},null,{"$f":"Import!M2620","v":0},null,{"$f":"Import!M2629","v":0}]
[null,56,"BSCR Rating 8",{"$f":"Import!M2612","v":0},null,{"$f":"Import!M2621","v":0},null,{"$f":"Import!M2630","v":0}]
[null,57,"Total Default Risk for OTC Derivatives ",{"$f":"SUM(D83:D92)","v":0},null,{"$f":"SUM(F83:F92)","v":0},null,{"$f":"SUM(H83:H92)","v":0}]
[]
[null,{"$f":"B93+1","v":58},"Cash and Cash Equivalents",{"$f":"Import!M2631","v":0}]
[]
[null,{"$f":"B95+1","v":59},"Total Other Sundry Assets",{"$f":"X27+X62+D77+H77+D93+F93+H93+D95","v":0}]
[]
[null,null,"Please include in the table below any assets, included in this Schedule, for which NAIC ratings were used to map to the BSCR rating classes"]
[null,null,"Information on the use of NAIC ratings\n(for disclosure purposes only)","Corporate & Sovereign Bonds",null,"Residential Mortgage-Backed Securities",null,"Commercial Mortgage-Backed Securities/Asset-Backed Securities",null,"Bond Mutual Funds",null,"Mortgage Loans",null,"Preferred Stocks",null,"Other Assets"]
[null,null,"NAIC Class 1",{"$f":"Import!M2632","v":0},null,{"$f":"Import!M2639","v":0},null,{"$f":"Import!M2646","v":0},null,{"$f":"Import!M2653","v":0},null,{"$f":"Import!M2660","v":0},null,{"$f":"Import!M2667","v":0},null,{"$f":"Import!M2674","v":0}]
[null,null,"NAIC Class 2",{"$f":"Import!M2633","v":0},null,{"$f":"Import!M2640","v":0},null,{"$f":"Import!M2647","v":0},null,{"$f":"Import!M2654","v":0},null,{"$f":"Import!M2661","v":0},null,{"$f":"Import!M2668","v":0},null,{"$f":"Import!M2675","v":0}]
[null,null,"NAIC Class 3",{"$f":"Import!M2634","v":0},null,{"$f":"Import!M2641","v":0},null,{"$f":"Import!M2648","v":0},null,{"$f":"Import!M2655","v":0},null,{"$f":"Import!M2662","v":0},null,{"$f":"Import!M2669","v":0},null,{"$f":"Import!M2676","v":0}]
[null,null,"NAIC Class 4",{"$f":"Import!M2635","v":0},null,{"$f":"Import!M2642","v":0},null,{"$f":"Import!M2649","v":0},null,{"$f":"Import!M2656","v":0},null,{"$f":"Import!M2663","v":0},null,{"$f":"Import!M2670","v":0},null,{"$f":"Import!M2677","v":0}]
[null,null,"NAIC Class 5",{"$f":"Import!M2636","v":0},null,{"$f":"Import!M2643","v":0},null,{"$f":"Import!M2650","v":0},null,{"$f":"Import!M2657","v":0},null,{"$f":"Import!M2664","v":0},null,{"$f":"Import!M2671","v":0},null,{"$f":"Import!M2678","v":0}]
[null,null,"NAIC Class 6",{"$f":"Import!M2637","v":0},null,{"$f":"Import!M2644","v":0},null,{"$f":"Import!M2651","v":0},null,{"$f":"Import!M2658","v":0},null,{"$f":"Import!M2665","v":0},null,{"$f":"Import!M2672","v":0},null,{"$f":"Import!M2679","v":0}]
[null,null,null,{"$f":"SUM(D101:D106)","v":0},null,{"$f":"SUM(F101:F106)","v":0},null,{"$f":"SUM(H101:H106)","v":0},null,{"$f":"SUM(J101:J106)","v":0},null,{"$f":"SUM(L101:L106)","v":0},null,{"$f":"SUM(N101:N106)","v":0},null,{"$f":"SUM(P101:P106)","v":0}]

{"sheet":"Schedule III (Unconsolidated)","index":33,"n_rows":39,"n_cols":7,"rows_kept":39,"cut":false,"hidden":true,"merged":[[43,1,43,6],[8,2,8,3],[9,2,9,3],[10,2,10,3],[11,2,11,3],[12,2,12,3],[13,2,13,3],[14,2,14,3],[15,2,15,3],[16,2,16,3],[17,2,17,3],[18,2,18,3],[19,2,19,3],[20,2,20,3],[21,2,21,3],[22,2,22,3],[28,2,28,3],[29,2,29,3],[30,2,30,3],[31,2,31,3],[23,2,23,3],[24,2,24,3],[25,2,25,3],[26,2,26,3],[27,2,27,3]]}
[null,"SCHEDULE OF NET LOSS AND LOSS EXPENSE PROVISIONS BY LINE OF BUSINESS",null,null,null,null,{"$f":"HYPERLINK(\"#'Index'!A1\",\"Return to Index\")","v":"Return to Index"}]
[null,{"$f":"'Company Information'!C7","v":"Enter Company Name"}]
[null,"As at",null,{"$f":"'Company Information'!C3","v":"2022-12-31"},null,null,"SCHEDULE III"]
[null,{"$f":"\"expressed in\"& IF(CONFIGURATION!$B$12>1,\" ['\"&MID(CONFIGURATION!$B$12,2,LEN(CONFIGURATION!$B$12))&\"s]\",\"\")","v":"expressed in ['000s]"},null,{"$f":"'Form 1EBS'!C4","v":"United States Dollars"}]
[]
[null,"Schedule ",null,null,{"$f":"'Form 1EBS'!F7","v":"2022-12-31"},null,{"$f":"'Form 1EBS'!H7","v":"2021-12-31"}]
[null,"Line no. ",null,null,{"$f":"CONFIGURATION!$D$12","v":" ('000s)"},null,{"$f":"CONFIGURATION!$D$12","v":" ('000s)"}]
[]
[null,1,"Property Catastrophe",null,{"$f":"Import!E661","v":0},null,{"$f":"Import!G661","v":0}]
[null,2,"Property",null,{"$f":"Import!E662","v":0},null,{"$f":"Import!G662","v":0}]
[null,3,"Property Non – Proportional",null,{"$f":"Import!E663","v":0},null,{"$f":"Import!G663","v":0}]
[null,4,"Personal Accident",null,{"$f":"Import!E664","v":0},null,{"$f":"Import!G664","v":0}]
[null,5,"Personal Accident Non- Proportional",null,{"$f":"Import!E665","v":0},null,{"$f":"Import!G665","v":0}]
[null,6,"Aviation",null,{"$f":"Import!E666","v":0},null,{"$f":"Import!G666","v":0}]
[null,7,"Aviation Non – Proportional",null,{"$f":"Import!E667","v":0},null,{"$f":"Import!G667","v":0}]
[null,8,"Credit / Surety",null,{"$f":"Import!E668","v":0},null,{"$f":"Import!G668","v":0}]
[null,9,"Credit / Surety Non – Proportional",null,{"$f":"Import!E669","v":0},null,{"$f":"Import!G669","v":0}]
[null,10,"Energy Offshore / Marine",null,{"$f":"Import!E670","v":0},null,{"$f":"Import!G670","v":0}]
[null,11,"Energy Offshore / Marine Non - Proportional ",null,{"$f":"Import!E671","v":0},null,{"$f":"Import!G671","v":0}]
[null,12,"US Casualty",null,{"$f":"Import!E672","v":0},null,{"$f":"Import!G672","v":0}]
[null,13,"US Casualty Non - Proportional ",null,{"$f":"Import!E673","v":0},null,{"$f":"Import!G673","v":0}]
[null,14,"US Professional",null,{"$f":"Import!E674","v":0},null,{"$f":"Import!G674","v":0}]
[null,15,"US Professional Non – Proportional",null,{"$f":"Import!E675","v":0},null,{"$f":"Import!G675","v":0}]
[null,16,"US Specialty",null,{"$f":"Import!E676","v":0},null,{"$f":"Import!G676","v":0}]
[null,17,"US Specialty Non - Proportional",null,{"$f":"Import!E677","v":0},null,{"$f":"Import!G677","v":0}]
[null,18,"International Motor",null,{"$f":"Import!E678","v":0},null,{"$f":"Import!G678","v":0}]
[null,19,"International Motor Non – Proportional",null,{"$f":"Import!E679","v":0},null,{"$f":"Import!G679","v":0}]
[null,20,"International Casualty Non Motor",null,{"$f":"Import!E680","v":0},null,{"$f":"Import!G680","v":0}]
[null,21,"International Casualty Non Motor Non – Proportional ",null,{"$f":"Import!E681","v":0},null,{"$f":"Import!G681","v":0}]
[null,22,"Retro Property",null,{"$f":"Import!E682","v":0},null,{"$f":"Import!G682","v":0}]
[null,23,"Structured / Finite Reinsurance",null,{"$f":"Import!E683","v":0},null,{"$f":"Import!G683","v":0}]
[null,24,"Health",null,{"$f":"Import!E684","v":0},null,{"$f":"Import!G684","v":0}]
[null,25,"Total ",null,{"$f":"SUM(E9:E32)","v":0},null,{"$f":"SUM(G9:G32)","v":0}]
[]
[null,null,null,null,{"$f":"IF(E36=\"TRUE\",HYPERLINK(\"#'Form 1SFS'!E124\",\"TRUE\"),HYPERLINK(\"#'Form 1SFS'!E124\",\"FALSE\"))","v":"TRUE"},null,{"$f":"IF(G36=\"TRUE\",HYPERLINK(\"#'Form 1SFS'!G124\",\"TRUE\"),HYPERLINK(\"#'Form 1SFS'!G124\",\"FALSE\"))","v":"TRUE"}]
[null,null,null,null,{"$f":"IF(SUM('Form 1SFS (Consolidated)'!$E$91,'Form 1SFS (Consolidated)'!$I$91)=0,IF(ROUND(E33-'Form 1SFS (Consolidated)'!M105,0)=0,\"TRUE\",\"FALSE\"),IF(ROUND(E33-'Form 1SFS (Consolidated)'!E105,0)=0,\"TRUE\",\"FALSE\"))","v":"TRUE"},null,{"$f":"IF(SUM('Form 1SFS (Consolidated)'!$G$91,'Form 1SFS (Consolidated)'!$K$91)=0,IF(ROUND(G33-'Form 1SFS (Consolidated)'!O105,0)=0,\"TRUE\",\"FALSE\"),IF(ROUND(G33-'Form 1SFS (Consolidated)'!G105,0)=0,\"TRUE\",\"FALSE\"))","v":"TRUE"}]
[null,null,null,null,{"$f":"IF(SUM('Form 1SFS (Consolidated)'!$E$91,'Form 1SFS (Consolidated)'!$I$91)=0,ROUND('Form 1SFS (Consolidated)'!M105-E33,0),ROUND('Form 1SFS (Consolidated)'!E105-E33,0))","v":0},null,{"$f":"IF(SUM('Form 1SFS (Consolidated)'!$G$91,'Form 1SFS (Consolidated)'!$K$91)=0,ROUND('Form 1SFS (Consolidated)'!O105-G33,0),ROUND('Form 1SFS (Consolidated)'!G105-G33,0))","v":0}]
[]
[null,null,null,null,{"$f":"IF(E35=\"False\",\"Does not equal Form 1SFS Line 17(d)\",\"\")","v":""},null,{"$f":"IF(G35=\"False\",\"Does not equal Form 1SFS Line 17(d)\",\"\")","v":""}]

{"sheet":"Schedule III","index":34,"n_rows":42,"n_cols":12,"rows_kept":42,"cut":false,"hidden":false,"merged":[[46,1,46,11],[5,3,5,7],[5,9,5,11]]}
[null,"SCHEDULE OF NET LOSS AND LOSS EXPENSE PROVISIONS BY LINE OF BUSINESS",null,null,null,null,null,{"$f":"HYPERLINK(\"#'Index'!A1\",\"Return to Index\")","v":"Return to Index"}]
[null,{"$f":"'Company Information'!C7","v":"Enter Company Name"}]
[null,"As at",{"$f":"'Company Information'!C3","v":"2022-12-31"},null,null,null,null,"SCHEDULE III "]
[null,{"$f":"\"expressed in\"& IF(CONFIGURATION!$B$12>1,\" ['\"&MID(CONFIGURATION!$B$12,2,LEN(CONFIGURATION!$B$12))&\"s]\",\"\")","v":"expressed in ['000s]"},{"$f":"'Form 1SFS (Consolidated)'!$C$5","v":"United States Dollars"},"(A)",null,"(B)",null,"(C)",null,"(D)","(E)","(F)"]
[]
[null,null,null,{"$f":"'Form 1SFS (Consolidated)'!M9","v":"2022-12-31"},null,null,null,null,null,"Supplemental Notes to General Business Provisions"]
[null,"Schedule ",null,"Gross Loss Reserves",null,"Net Loss Reserves",null,"Geo Loss Reserves",null,"Bound But Not Incepted (BBNI) Premium","Best Estimate Premium Provision In Respect of BBNI","Discount included in Best Estimate Loss and Loss Expense Provisions"]
[null,"Line no. ",null,"[ Form 1SFS, Line 17(a) ]",null,"[ Form 1SFS, Line 17(d) ]",null,"[ Schedule III(a) ]"]
[]
[null,1,"Property Catastrophe",{"$f":"Import!M2682","v":0},null,{"$f":"Import!M2706","v":0},null,{"$f":"+'Schedule IIIA'!X10","v":0},null,{"$f":"Import!M2730","v":0},{"$f":"Import!M2754","v":0},{"$f":"Import!M2778","v":0}]
[null,2,"Property",{"$f":"Import!M2683","v":0},null,{"$f":"Import!M2707","v":0},null,{"$f":"+'Schedule IIIA'!X11","v":0},null,{"$f":"Import!M2731","v":0},{"$f":"Import!M2755","v":0},{"$f":"Import!M2779","v":0}]
[null,3,"Property Non – Proportional",{"$f":"Import!M2684","v":0},null,{"$f":"Import!M2708","v":0},null,{"$f":"+'Schedule IIIA'!X12","v":0},null,{"$f":"Import!M2732","v":0},{"$f":"Import!M2756","v":0},{"$f":"Import!M2780","v":0}]
[null,4,"Personal Accident",{"$f":"Import!M2685","v":0},null,{"$f":"Import!M2709","v":0},null,{"$f":"+'Schedule IIIA'!X13","v":0},null,{"$f":"Import!M2733","v":0},{"$f":"Import!M2757","v":0},{"$f":"Import!M2781","v":0}]
[null,5,"Personal Accident Non- Proportional",{"$f":"Import!M2686","v":0},null,{"$f":"Import!M2710","v":0},null,{"$f":"+'Schedule IIIA'!X14","v":0},null,{"$f":"Import!M2734","v":0},{"$f":"Import!M2758","v":0},{"$f":"Import!M2782","v":0}]
[null,6,"Aviation",{"$f":"Import!M2687","v":0},null,{"$f":"Import!M2711","v":0},null,{"$f":"+'Schedule IIIA'!X15","v":0},null,{"$f":"Import!M2735","v":0},{"$f":"Import!M2759","v":0},{"$f":"Import!M2783","v":0}]
[null,7,"Aviation Non – Proportional",{"$f":"Import!M2688","v":0},null,{"$f":"Import!M2712","v":0},null,{"$f":"+'Schedule IIIA'!X16","v":0},null,{"$f":"Import!M2736","v":0},{"$f":"Import!M2760","v":0},{"$f":"Import!M2784","v":0}]
[null,8,"Credit / Surety ",{"$f":"Import!M2689","v":0},null,{"$f":"Import!M2713","v":0},null,{"$f":"+'Schedule IIIA'!X17","v":0},null,{"$f":"Import!M2737","v":0},{"$f":"Import!M2761","v":0},{"$f":"Import!M2785","v":0}]
[null,9,"Credit / Surety Non – Proportional",{"$f":"Import!M2690","v":0},null,{"$f":"Import!M2714","v":0},null,{"$f":"+'Schedule IIIA'!X18","v":0},null,{"$f":"Import!M2738","v":0},{"$f":"Import!M2762","v":0},{"$f":"Import!M2786","v":0}]
[null,10,"Energy Offshore / Marine",{"$f":"Import!M2691","v":0},null,{"$f":"Import!M2715","v":0},null,{"$f":"+'Schedule IIIA'!X19","v":0},null,{"$f":"Import!M2739","v":0},{"$f":"Import!M2763","v":0},{"$f":"Import!M2787","v":0}]
[null,11,"Energy Offshore / Marine Non - Proportional ",{"$f":"Import!M2692","v":0},null,{"$f":"Import!M2716","v":0},null,{"$f":"+'Schedule IIIA'!X20","v":0},null,{"$f":"Import!M2740","v":0},{"$f":"Import!M2764","v":0},{"$f":"Import!M2788","v":0}]
[null,12,"US Casualty",{"$f":"Import!M2693","v":0},null,{"$f":"Import!M2717","v":0},null,{"$f":"+'Schedule IIIA'!X21","v":0},null,{"$f":"Import!M2741","v":0},{"$f":"Import!M2765","v":0},{"$f":"Import!M2789","v":0}]
[null,13,"US Casualty Non - Proportional ",{"$f":"Import!M2694","v":0},null,{"$f":"Import!M2718","v":0},null,{"$f":"+'Schedule IIIA'!X22","v":0},null,{"$f":"Import!M2742","v":0},{"$f":"Import!M2766","v":0},{"$f":"Import!M2790","v":0}]
[null,14,"US Professional",{"$f":"Import!M2695","v":0},null,{"$f":"Import!M2719","v":0},null,{"$f":"+'Schedule IIIA'!X23","v":0},null,{"$f":"Import!M2743","v":0},{"$f":"Import!M2767","v":0},{"$f":"Import!M2791","v":0}]
[null,15,"US Professional Non – Proportional",{"$f":"Import!M2696","v":0},null,{"$f":"Import!M2720","v":0},null,{"$f":"+'Schedule IIIA'!X24","v":0},null,{"$f":"Import!M2744","v":0},{"$f":"Import!M2768","v":0},{"$f":"Import!M2792","v":0}]
[null,16,"US Specialty ",{"$f":"Import!M2697","v":0},null,{"$f":"Import!M2721","v":0},null,{"$f":"+'Schedule IIIA'!X25","v":0},null,{"$f":"Import!M2745","v":0},{"$f":"Import!M2769","v":0},{"$f":"Import!M2793","v":0}]
[null,17,"US Specialty Non - Proportional",{"$f":"Import!M2698","v":0},null,{"$f":"Import!M2722","v":0},null,{"$f":"+'Schedule IIIA'!X26","v":0},null,{"$f":"Import!M2746","v":0},{"$f":"Import!M2770","v":0},{"$f":"Import!M2794","v":0}]
[null,18,"International Motor ",{"$f":"Import!M2699","v":0},null,{"$f":"Import!M2723","v":0},null,{"$f":"+'Schedule IIIA'!X27","v":0},null,{"$f":"Import!M2747","v":0},{"$f":"Import!M2771","v":0},{"$f":"Import!M2795","v":0}]
[null,19,"International Motor Non – Proportional",{"$f":"Import!M2700","v":0},null,{"$f":"Import!M2724","v":0},null,{"$f":"+'Schedule IIIA'!X28","v":0},null,{"$f":"Import!M2748","v":0},{"$f":"Import!M2772","v":0},{"$f":"Import!M2796","v":0}]
[null,20,"International Casualty Non – Motor ",{"$f":"Import!M2701","v":0},null,{"$f":"Import!M2725","v":0},null,{"$f":"+'Schedule IIIA'!X29","v":0},null,{"$f":"Import!M2749","v":0},{"$f":"Import!M2773","v":0},{"$f":"Import!M2797","v":0}]
[null,21,"International Casualty Non Motor Non – Proportional ",{"$f":"Import!M2702","v":0},null,{"$f":"Import!M2726","v":0},null,{"$f":"+'Schedule IIIA'!X30","v":0},null,{"$f":"Import!M2750","v":0},{"$f":"Import!M2774","v":0},{"$f":"Import!M2798","v":0}]
[null,22,"Retro Property",{"$f":"Import!M2703","v":0},null,{"$f":"Import!M2727","v":0},null,{"$f":"+'Schedule IIIA'!X31","v":0},null,{"$f":"Import!M2751","v":0},{"$f":"Import!M2775","v":0},{"$f":"Import!M2799","v":0}]
[null,23,"Structured / Finite Reinsurance",{"$f":"Import!M2704","v":0},null,{"$f":"Import!M2728","v":0},null,{"$f":"+'Schedule IIIA'!X32","v":0},null,{"$f":"Import!M2752","v":0},{"$f":"Import!M2776","v":0},{"$f":"Import!M2800","v":0}]
[null,24,"Health",{"$f":"Import!M2705","v":0},null,{"$f":"Import!M2729","v":0},null,{"$f":"+'Schedule IIIA'!X33","v":0},null,{"$f":"Import!M2753","v":0},{"$f":"Import!M2777","v":0},{"$f":"Import!M2801","v":0}]
[null,25,"Total ",{"$f":"SUM(D10:D33)","v":0},null,{"$f":"SUM(F10:F33)","v":0},null,{"$f":"SUM(H10:H33)","v":0},null,{"$f":"SUM(J10:J33)","v":0},{"$f":"SUM(K10:K33)","v":0},{"$f":"SUM(L10:L33)","v":0}]
[]
[null,null,"Form 1SFS Check",{"$f":"'Form 1SFS (Consolidated)'!M98","v":0},null,{"$f":"'Form 1SFS (Consolidated)'!M105","v":0}]
[]
[null,null,null,{"$f":"IF(D39=\"TRUE\",HYPERLINK(\"#'Form 1SFS'!M98\",\"TRUE\"),HYPERLINK(\"#'Form 1SFS'!F98\",\"FALSE\"))","v":"TRUE"},null,{"$f":"IF(F39=\"TRUE\",HYPERLINK(\"#'Form 1SFS (Consolidated)'!M105\",\"TRUE\"),HYPERLINK(\"#'Form 1SFS (Consolidated)'!M105\",\"FALSE\"))","v":"TRUE"}]
[null,null,null,{"$f":"IF(ROUND((D34-'Form 1SFS (Consolidated)'!M98),0)=0,\"TRUE\",\"FALSE\")","v":"TRUE"},null,{"$f":"IF(ROUND((F34-'Form 1SFS (Consolidated)'!M105),0)=0,\"TRUE\",\"FALSE\")","v":"TRUE"}]
[null,null,null,{"$f":"ROUND('Form 1SFS (Consolidated)'!M98,0)","v":0},null,{"$f":"ROUND('Form 1SFS (Consolidated)'!M105-F34,0)","v":0}]
[]
[null,null,null,{"$f":"IF(D38=\"False\",\"Does not equal Form 1SFS Line 17(a)\",\"\")","v":""},null,{"$f":"IF(F38=\"False\",\"Does not equal Form 1SFS Line 17(d)\",\"\")","v":""}]

{"sheet":"Schedule IIIA","index":35,"n_rows":34,"n_cols":28,"rows_kept":34,"cut":false,"hidden":false,"merged":[[42,1,42,25]]}
[null,"SCHEDULE OF GEOGRAPHIC DIVERSIFICATION OF NET LOSS AND LOSS EXPENSE PROVISIONS ",null,null,null,null,null,null,null,null,null,null,null,null,null,null,null,null,null,null,null,null,null,null,null,{"$f":"HYPERLINK(\"#'Index'!A1\",\"Return to Index\")","v":"Return to Index"}]
[null,{"$f":"'Company Information'!C7","v":"Enter Company Name"}]
[null,"As at",{"$f":"'Company Information'!C3","v":"2022-12-31"},null,null,null,null,null,null,null,null,null,null,null,null,null,null,null,null,null,null,null,null,null,null,"SCHEDULE III(a)"]
[null,{"$f":"\"expressed in\"& IF(CONFIGURATION!$B$12>1,\" ['\"&MID(CONFIGURATION!$B$12,2,LEN(CONFIGURATION!$B$12))&\"s]\",\"\")","v":"expressed in ['000s]"},{"$f":"'Form 1SFS (Consolidated)'!$C$5","v":"United States Dollars"},null,null,null,null,null,null,null,null,null,null,null,null,null,null,null,null,null,null,null,null,{"$f":"\"Confirmation that \"&B2& \" Is Taking Advantage of Geographic Diversification of Reserves\"","v":"Confirmation that Enter Company Name Is Taking Advantage of Geographic Diversification of Reserves"},null,"Yes"]
[]
[null,"Schedule ",null,null,{"$f":"HYPERLINK(\"#'Zones'!c4\",\"Zone 1\")","v":"Zone 1"},{"$f":"HYPERLINK(\"#'Zones'!c13\",\"Zone 2\")","v":"Zone 2"},{"$f":"HYPERLINK(\"#'Zones'!c18\",\"Zone 3\")","v":"Zone 3"},{"$f":"HYPERLINK(\"#'Zones'!c26\",\"Zone 4\")","v":"Zone 4"},{"$f":"HYPERLINK(\"#'Zones'!c36\",\"Zone 5\")","v":"Zone 5"},{"$f":"HYPERLINK(\"#'Zones'!c46\",\"Zone 6\")","v":"Zone 6"},{"$f":"HYPERLINK(\"#'Zones'!c57\",\"Zone 7\")","v":"Zone 7"},{"$f":"HYPERLINK(\"#'Zones'!c68\",\"Zone 8\")","v":"Zone 8"},{"$f":"HYPERLINK(\"#'Zones'!c76\",\"Zone 9\")","v":"Zone 9"},{"$f":"HYPERLINK(\"#'Zones'!c84\",\"Zone 10\")","v":"Zone 10"},{"$f":"HYPERLINK(\"#'Zones'!c90\",\"Zone 11\")","v":"Zone 11"},{"$f":"HYPERLINK(\"#'Zones'!c94\",\"Zone 12\")","v":"Zone 12"},{"$f":"HYPERLINK(\"#'Zones'!c107\",\"Zone 13\")","v":"Zone 13"},{"$f":"HYPERLINK(\"#'Zones'!c112\",\"Zone 14\")","v":"Zone 14"},{"$f":"HYPERLINK(\"#'Zones'!c116\",\"Zone 15\")","v":"Zone 15"},{"$f":"HYPERLINK(\"#'Zones'!c121\",\"Zone 16\")","v":"Zone 16"},{"$f":"HYPERLINK(\"#'Zones'!c127\",\"Zone 17\")","v":"Zone 17"},{"$f":"HYPERLINK(\"#'Zones'!c133\",\"Zone 18\")","v":"Zone 18"},null,"Geo Net Provision",null,"Net Loss Provision"]
[null,"Line no. ",null,null,{"$f":"CONFIGURATION!$D$12","v":" ('000s)"},{"$f":"CONFIGURATION!$D$12","v":" ('000s)"},{"$f":"CONFIGURATION!$D$12","v":" ('000s)"},{"$f":"CONFIGURATION!$D$12","v":" ('000s)"},{"$f":"CONFIGURATION!$D$12","v":" ('000s)"},{"$f":"CONFIGURATION!$D$12","v":" ('000s)"},{"$f":"CONFIGURATION!$D$12","v":" ('000s)"},{"$f":"CONFIGURATION!$D$12","v":" ('000s)"},{"$f":"CONFIGURATION!$D$12","v":" ('000s)"},{"$f":"CONFIGURATION!$D$12","v":" ('000s)"},{"$f":"CONFIGURATION!$D$12","v":" ('000s)"},{"$f":"CONFIGURATION!$D$12","v":" ('000s)"},{"$f":"CONFIGURATION!$D$12","v":" ('000s)"},{"$f":"CONFIGURATION!$D$12","v":" ('000s)"},{"$f":"CONFIGURATION!$D$12","v":" ('000s)"},{"$f":"CONFIGURATION!$D$12","v":" ('000s)"},{"$f":"CONFIGURATION!$D$12","v":" ('000s)"},{"$f":"CONFIGURATION!$D$12","v":" ('000s)"},null,{"$f":"CONFIGURATION!$D$12","v":" ('000s)"},null,{"$f":"CONFIGURATION!$D$12","v":" ('000s)"}]
[]
[]
[null,1,"Property Catastrophe",null,{"$f":"Import!M2803","v":0},{"$f":"Import!M2828","v":0},{"$f":"Import!M2853","v":0},{"$f":"Import!M2878","v":0},{"$f":"Import!M2903","v":0},{"$f":"Import!M2928","v":0},{"$f":"Import!M2953","v":0},{"$f":"Import!M2978","v":0},{"$f":"Import!M3003","v":0},{"$f":"Import!M3028","v":0},{"$f":"Import!M3053","v":0},{"$f":"Import!M3078","v":0},{"$f":"Import!M3103","v":0},{"$f":"Import!M3128","v":0},{"$f":"Import!M3153","v":0},{"$f":"Import!M3178","v":0},{"$f":"Import!M3203","v":0},{"$f":"Import!M3228","v":0},null,{"$f":"ROUND(SUM(E10:V10),0)","v":0},null,{"$f":"ROUND('Schedule III'!F10,0)","v":0},null,{"$f":"IF($Z$4=\"Yes\",IF(X10=0,\" - \",IF(ROUND(SUM(X10-Z10),0)=0,\"TRUE\",\"FALSE\")),\"N/A\")","v":" - "}]
[null,2,"Property",null,{"$f":"Import!M2804","v":0},{"$f":"Import!M2829","v":0},{"$f":"Import!M2854","v":0},{"$f":"Import!M2879","v":0},{"$f":"Import!M2904","v":0},{"$f":"Import!M2929","v":0},{"$f":"Import!M2954","v":0},{"$f":"Import!M2979","v":0},{"$f":"Import!M3004","v":0},{"$f":"Import!M3029","v":0},{"$f":"Import!M3054","v":0},{"$f":"Import!M3079","v":0},{"$f":"Import!M3104","v":0},{"$f":"Import!M3129","v":0},{"$f":"Import!M3154","v":0},{"$f":"Import!M3179","v":0},{"$f":"Import!M3204","v":0},{"$f":"Import!M3229","v":0},null,{"$f":"ROUND(SUM(E11:V11),0)","v":0},null,{"$f":"ROUND('Schedule III'!F11,0)","v":0},null,{"$f":"IF($Z$4=\"Yes\",IF(X11=0,\" - \",IF(ROUND(SUM(X11-Z11),0)=0,\"TRUE\",\"FALSE\")),\"N/A\")","v":" - "}]
[null,3,"Property Non – Proportional",null,{"$f":"Import!M2805","v":0},{"$f":"Import!M2830","v":0},{"$f":"Import!M2855","v":0},{"$f":"Import!M2880","v":0},{"$f":"Import!M2905","v":0},{"$f":"Import!M2930","v":0},{"$f":"Import!M2955","v":0},{"$f":"Import!M2980","v":0},{"$f":"Import!M3005","v":0},{"$f":"Import!M3030","v":0},{"$f":"Import!M3055","v":0},{"$f":"Import!M3080","v":0},{"$f":"Import!M3105","v":0},{"$f":"Import!M3130","v":0},{"$f":"Import!M3155","v":0},{"$f":"Import!M3180","v":0},{"$f":"Import!M3205","v":0},{"$f":"Import!M3230","v":0},null,0,null,{"$f":"ROUND('Schedule III'!F12,0)","v":0},null," - "]
[null,4,"Personal Accident",null,{"$f":"Import!M2806","v":0},{"$f":"Import!M2831","v":0},{"$f":"Import!M2856","v":0},{"$f":"Import!M2881","v":0},{"$f":"Import!M2906","v":0},{"$f":"Import!M2931","v":0},{"$f":"Import!M2956","v":0},{"$f":"Import!M2981","v":0},{"$f":"Import!M3006","v":0},{"$f":"Import!M3031","v":0},{"$f":"Import!M3056","v":0},{"$f":"Import!M3081","v":0},{"$f":"Import!M3106","v":0},{"$f":"Import!M3131","v":0},{"$f":"Import!M3156","v":0},{"$f":"Import!M3181","v":0},{"$f":"Import!M3206","v":0},{"$f":"Import!M3231","v":0},null,0,null,{"$f":"ROUND('Schedule III'!F13,0)","v":0},null," - "]
[null,5,"Personal Accident Non- Proportional",null,{"$f":"Import!M2807","v":0},{"$f":"Import!M2832","v":0},{"$f":"Import!M2857","v":0},{"$f":"Import!M2882","v":0},{"$f":"Import!M2907","v":0},{"$f":"Import!M2932","v":0},{"$f":"Import!M2957","v":0},{"$f":"Import!M2982","v":0},{"$f":"Import!M3007","v":0},{"$f":"Import!M3032","v":0},{"$f":"Import!M3057","v":0},{"$f":"Import!M3082","v":0},{"$f":"Import!M3107","v":0},{"$f":"Import!M3132","v":0},{"$f":"Import!M3157","v":0},{"$f":"Import!M3182","v":0},{"$f":"Import!M3207","v":0},{"$f":"Import!M3232","v":0},null,0,null,{"$f":"ROUND('Schedule III'!F14,0)","v":0},null," - "]
[null,6,"Aviation",null,{"$f":"Import!M2808","v":0},{"$f":"Import!M2833","v":0},{"$f":"Import!M2858","v":0},{"$f":"Import!M2883","v":0},{"$f":"Import!M2908","v":0},{"$f":"Import!M2933","v":0},{"$f":"Import!M2958","v":0},{"$f":"Import!M2983","v":0},{"$f":"Import!M3008","v":0},{"$f":"Import!M3033","v":0},{"$f":"Import!M3058","v":0},{"$f":"Import!M3083","v":0},{"$f":"Import!M3108","v":0},{"$f":"Import!M3133","v":0},{"$f":"Import!M3158","v":0},{"$f":"Import!M3183","v":0},{"$f":"Import!M3208","v":0},{"$f":"Import!M3233","v":0},null,0,null,{"$f":"ROUND('Schedule III'!F15,0)","v":0},null," - "]
[null,7,"Aviation Non – Proportional",null,{"$f":"Import!M2809","v":0},{"$f":"Import!M2834","v":0},{"$f":"Import!M2859","v":0},{"$f":"Import!M2884","v":0},{"$f":"Import!M2909","v":0},{"$f":"Import!M2934","v":0},{"$f":"Import!M2959","v":0},{"$f":"Import!M2984","v":0},{"$f":"Import!M3009","v":0},{"$f":"Import!M3034","v":0},{"$f":"Import!M3059","v":0},{"$f":"Import!M3084","v":0},{"$f":"Import!M3109","v":0},{"$f":"Import!M3134","v":0},{"$f":"Import!M3159","v":0},{"$f":"Import!M3184","v":0},{"$f":"Import!M3209","v":0},{"$f":"Import!M3234","v":0},null,0,null,{"$f":"ROUND('Schedule III'!F16,0)","v":0},null," - "]
[null,8,"Credit / Surety ",null,{"$f":"Import!M2810","v":0},{"$f":"Import!M2835","v":0},{"$f":"Import!M2860","v":0},{"$f":"Import!M2885","v":0},{"$f":"Import!M2910","v":0},{"$f":"Import!M2935","v":0},{"$f":"Import!M2960","v":0},{"$f":"Import!M2985","v":0},{"$f":"Import!M3010","v":0},{"$f":"Import!M3035","v":0},{"$f":"Import!M3060","v":0},{"$f":"Import!M3085","v":0},{"$f":"Import!M3110","v":0},{"$f":"Import!M3135","v":0},{"$f":"Import!M3160","v":0},{"$f":"Import!M3185","v":0},{"$f":"Import!M3210","v":0},{"$f":"Import!M3235","v":0},null,0,null,{"$f":"ROUND('Schedule III'!F17,0)","v":0},null," - "]
[null,9,"Credit / Surety Non – Proportional",null,{"$f":"Import!M2811","v":0},{"$f":"Import!M2836","v":0},{"$f":"Import!M2861","v":0},{"$f":"Import!M2886","v":0},{"$f":"Import!M2911","v":0},{"$f":"Import!M2936","v":0},{"$f":"Import!M2961","v":0},{"$f":"Import!M2986","v":0},{"$f":"Import!M3011","v":0},{"$f":"Import!M3036","v":0},{"$f":"Import!M3061","v":0},{"$f":"Import!M3086","v":0},{"$f":"Import!M3111","v":0},{"$f":"Import!M3136","v":0},{"$f":"Import!M3161","v":0},{"$f":"Import!M3186","v":0},{"$f":"Import!M3211","v":0},{"$f":"Import!M3236","v":0},null,0,null,{"$f":"ROUND('Schedule III'!F18,0)","v":0},null," - "]
[null,10,"Energy Offshore / Marine",null,{"$f":"Import!M2812","v":0},{"$f":"Import!M2837","v":0},{"$f":"Import!M2862","v":0},{"$f":"Import!M2887","v":0},{"$f":"Import!M2912","v":0},{"$f":"Import!M2937","v":0},{"$f":"Import!M2962","v":0},{"$f":"Import!M2987","v":0},{"$f":"Import!M3012","v":0},{"$f":"Import!M3037","v":0},{"$f":"Import!M3062","v":0},{"$f":"Import!M3087","v":0},{"$f":"Import!M3112","v":0},{"$f":"Import!M3137","v":0},{"$f":"Import!M3162","v":0},{"$f":"Import!M3187","v":0},{"$f":"Import!M3212","v":0},{"$f":"Import!M3237","v":0},null,0,null,{"$f":"ROUND('Schedule III'!F19,0)","v":0},null," - "]
[null,11,"Energy Offshore / Marine Non - Proportional ",null,{"$f":"Import!M2813","v":0},{"$f":"Import!M2838","v":0},{"$f":"Import!M2863","v":0},{"$f":"Import!M2888","v":0},{"$f":"Import!M2913","v":0},{"$f":"Import!M2938","v":0},{"$f":"Import!M2963","v":0},{"$f":"Import!M2988","v":0},{"$f":"Import!M3013","v":0},{"$f":"Import!M3038","v":0},{"$f":"Import!M3063","v":0},{"$f":"Import!M3088","v":0},{"$f":"Import!M3113","v":0},{"$f":"Import!M3138","v":0},{"$f":"Import!M3163","v":0},{"$f":"Import!M3188","v":0},{"$f":"Import!M3213","v":0},{"$f":"Import!M3238","v":0},null,0,null,{"$f":"ROUND('Schedule III'!F20,0)","v":0},null," - "]
[null,12,"US Casualty",null,{"$f":"Import!M2814","v":0},{"$f":"Import!M2839","v":0},{"$f":"Import!M2864","v":0},{"$f":"Import!M2889","v":0},{"$f":"Import!M2914","v":0},{"$f":"Import!M2939","v":0},{"$f":"Import!M2964","v":0},{"$f":"Import!M2989","v":0},{"$f":"Import!M3014","v":0},{"$f":"Import!M3039","v":0},{"$f":"Import!M3064","v":0},{"$f":"Import!M3089","v":0},{"$f":"Import!M3114","v":0},{"$f":"Import!M3139","v":0},{"$f":"Import!M3164","v":0},{"$f":"Import!M3189","v":0},{"$f":"Import!M3214","v":0},{"$f":"Import!M3239","v":0},null,0,null,{"$f":"ROUND('Schedule III'!F21,0)","v":0},null," - "]
[null,13,"US Casualty Non - Proportional ",null,{"$f":"Import!M2815","v":0},{"$f":"Import!M2840","v":0},{"$f":"Import!M2865","v":0},{"$f":"Import!M2890","v":0},{"$f":"Import!M2915","v":0},{"$f":"Import!M2940","v":0},{"$f":"Import!M2965","v":0},{"$f":"Import!M2990","v":0},{"$f":"Import!M3015","v":0},{"$f":"Import!M3040","v":0},{"$f":"Import!M3065","v":0},{"$f":"Import!M3090","v":0},{"$f":"Import!M3115","v":0},{"$f":"Import!M3140","v":0},{"$f":"Import!M3165","v":0},{"$f":"Import!M3190","v":0},{"$f":"Import!M3215","v":0},{"$f":"Import!M3240","v":0},null,0,null,{"$f":"ROUND('Schedule III'!F22,0)","v":0},null," - "]
[null,14,"US Professional",null,{"$f":"Import!M2816","v":0},{"$f":"Import!M2841","v":0},{"$f":"Import!M2866","v":0},{"$f":"Import!M2891","v":0},{"$f":"Import!M2916","v":0},{"$f":"Import!M2941","v":0},{"$f":"Import!M2966","v":0},{"$f":"Import!M2991","v":0},{"$f":"Import!M3016","v":0},{"$f":"Import!M3041","v":0},{"$f":"Import!M3066","v":0},{"$f":"Import!M3091","v":0},{"$f":"Import!M3116","v":0},{"$f":"Import!M3141","v":0},{"$f":"Import!M3166","v":0},{"$f":"Import!M3191","v":0},{"$f":"Import!M3216","v":0},{"$f":"Import!M3241","v":0},null,0,null,{"$f":"ROUND('Schedule III'!F23,0)","v":0},null," - "]
[null,15,"US Professional Non – Proportional",null,{"$f":"Import!M2817","v":0},{"$f":"Import!M2842","v":0},{"$f":"Import!M2867","v":0},{"$f":"Import!M2892","v":0},{"$f":"Import!M2917","v":0},{"$f":"Import!M2942","v":0},{"$f":"Import!M2967","v":0},{"$f":"Import!M2992","v":0},{"$f":"Import!M3017","v":0},{"$f":"Import!M3042","v":0},{"$f":"Import!M3067","v":0},{"$f":"Import!M3092","v":0},{"$f":"Import!M3117","v":0},{"$f":"Import!M3142","v":0},{"$f":"Import!M3167","v":0},{"$f":"Import!M3192","v":0},{"$f":"Import!M3217","v":0},{"$f":"Import!M3242","v":0},null,0,null,{"$f":"ROUND('Schedule III'!F24,0)","v":0},null," - "]
[null,16,"US Specialty ",null,{"$f":"Import!M2818","v":0},{"$f":"Import!M2843","v":0},{"$f":"Import!M2868","v":0},{"$f":"Import!M2893","v":0},{"$f":"Import!M2918","v":0},{"$f":"Import!M2943","v":0},{"$f":"Import!M2968","v":0},{"$f":"Import!M2993","v":0},{"$f":"Import!M3018","v":0},{"$f":"Import!M3043","v":0},{"$f":"Import!M3068","v":0},{"$f":"Import!M3093","v":0},{"$f":"Import!M3118","v":0},{"$f":"Import!M3143","v":0},{"$f":"Import!M3168","v":0},{"$f":"Import!M3193","v":0},{"$f":"Import!M3218","v":0},{"$f":"Import!M3243","v":0},null,0,null,{"$f":"ROUND('Schedule III'!F25,0)","v":0},null," - "]
[null,17,"US Specialty Non - Proportional",null,{"$f":"Import!M2819","v":0},{"$f":"Import!M2844","v":0},{"$f":"Import!M2869","v":0},{"$f":"Import!M2894","v":0},{"$f":"Import!M2919","v":0},{"$f":"Import!M2944","v":0},{"$f":"Import!M2969","v":0},{"$f":"Import!M2994","v":0},{"$f":"Import!M3019","v":0},{"$f":"Import!M3044","v":0},{"$f":"Import!M3069","v":0},{"$f":"Import!M3094","v":0},{"$f":"Import!M3119","v":0},{"$f":"Import!M3144","v":0},{"$f":"Import!M3169","v":0},{"$f":"Import!M3194","v":0},{"$f":"Import!M3219","v":0},{"$f":"Import!M3244","v":0},null,0,null,{"$f":"ROUND('Schedule III'!F26,0)","v":0},null," - "]
[null,18,"International Motor ",null,{"$f":"Import!M2820","v":0},{"$f":"Import!M2845","v":0},{"$f":"Import!M2870","v":0},{"$f":"Import!M2895","v":0},{"$f":"Import!M2920","v":0},{"$f":"Import!M2945","v":0},{"$f":"Import!M2970","v":0},{"$f":"Import!M2995","v":0},{"$f":"Import!M3020","v":0},{"$f":"Import!M3045","v":0},{"$f":"Import!M3070","v":0},{"$f":"Import!M3095","v":0},{"$f":"Import!M3120","v":0},{"$f":"Import!M3145","v":0},{"$f":"Import!M3170","v":0},{"$f":"Import!M3195","v":0},{"$f":"Import!M3220","v":0},{"$f":"Import!M3245","v":0},null,0,null,{"$f":"ROUND('Schedule III'!F27,0)","v":0},null," - "]
[null,19,"International Motor Non – Proportional",null,{"$f":"Import!M2821","v":0},{"$f":"Import!M2846","v":0},{"$f":"Import!M2871","v":0},{"$f":"Import!M2896","v":0},{"$f":"Import!M2921","v":0},{"$f":"Import!M2946","v":0},{"$f":"Import!M2971","v":0},{"$f":"Import!M2996","v":0},{"$f":"Import!M3021","v":0},{"$f":"Import!M3046","v":0},{"$f":"Import!M3071","v":0},{"$f":"Import!M3096","v":0},{"$f":"Import!M3121","v":0},{"$f":"Import!M3146","v":0},{"$f":"Import!M3171","v":0},{"$f":"Import!M3196","v":0},{"$f":"Import!M3221","v":0},{"$f":"Import!M3246","v":0},null,0,null,{"$f":"ROUND('Schedule III'!F28,0)","v":0},null," - "]
[null,20,"International Casualty Non – Motor ",null,{"$f":"Import!M2822","v":0},{"$f":"Import!M2847","v":0},{"$f":"Import!M2872","v":0},{"$f":"Import!M2897","v":0},{"$f":"Import!M2922","v":0},{"$f":"Import!M2947","v":0},{"$f":"Import!M2972","v":0},{"$f":"Import!M2997","v":0},{"$f":"Import!M3022","v":0},{"$f":"Import!M3047","v":0},{"$f":"Import!M3072","v":0},{"$f":"Import!M3097","v":0},{"$f":"Import!M3122","v":0},{"$f":"Import!M3147","v":0},{"$f":"Import!M3172","v":0},{"$f":"Import!M3197","v":0},{"$f":"Import!M3222","v":0},{"$f":"Import!M3247","v":0},null,0,null,{"$f":"ROUND('Schedule III'!F29,0)","v":0},null," - "]
[null,21,"International Casualty Non Motor Non – Proportional ",null,{"$f":"Import!M2823","v":0},{"$f":"Import!M2848","v":0},{"$f":"Import!M2873","v":0},{"$f":"Import!M2898","v":0},{"$f":"Import!M2923","v":0},{"$f":"Import!M2948","v":0},{"$f":"Import!M2973","v":0},{"$f":"Import!M2998","v":0},{"$f":"Import!M3023","v":0},{"$f":"Import!M3048","v":0},{"$f":"Import!M3073","v":0},{"$f":"Import!M3098","v":0},{"$f":"Import!M3123","v":0},{"$f":"Import!M3148","v":0},{"$f":"Import!M3173","v":0},{"$f":"Import!M3198","v":0},{"$f":"Import!M3223","v":0},{"$f":"Import!M3248","v":0},null,0,null,{"$f":"ROUND('Schedule III'!F30,0)","v":0},null," - "]
[null,22,"Retro Property",null,{"$f":"Import!M2824","v":0},{"$f":"Import!M2849","v":0},{"$f":"Import!M2874","v":0},{"$f":"Import!M2899","v":0},{"$f":"Import!M2924","v":0},{"$f":"Import!M2949","v":0},{"$f":"Import!M2974","v":0},{"$f":"Import!M2999","v":0},{"$f":"Import!M3024","v":0},{"$f":"Import!M3049","v":0},{"$f":"Import!M3074","v":0},{"$f":"Import!M3099","v":0},{"$f":"Import!M3124","v":0},{"$f":"Import!M3149","v":0},{"$f":"Import!M3174","v":0},{"$f":"Import!M3199","v":0},{"$f":"Import!M3224","v":0},{"$f":"Import!M3249","v":0},null,0,null,{"$f":"ROUND('Schedule III'!F31,0)","v":0},null," - "]
[null,23,"Structured / Finite Reinsurance",null,{"$f":"Import!M2825","v":0},{"$f":"Import!M2850","v":0},{"$f":"Import!M2875","v":0},{"$f":"Import!M2900","v":0},{"$f":"Import!M2925","v":0},{"$f":"Import!M2950","v":0},{"$f":"Import!M2975","v":0},{"$f":"Import!M3000","v":0},{"$f":"Import!M3025","v":0},{"$f":"Import!M3050","v":0},{"$f":"Import!M3075","v":0},{"$f":"Import!M3100","v":0},{"$f":"Import!M3125","v":0},{"$f":"Import!M3150","v":0},{"$f":"Import!M3175","v":0},{"$f":"Import!M3200","v":0},{"$f":"Import!M3225","v":0},{"$f":"Import!M3250","v":0},null,0,null,{"$f":"ROUND('Schedule III'!F32,0)","v":0},null," - "]
[null,24,"Health",null,{"$f":"Import!M2826","v":0},{"$f":"Import!M2851","v":0},{"$f":"Import!M2876","v":0},{"$f":"Import!M2901","v":0},{"$f":"Import!M2926","v":0},{"$f":"Import!M2951","v":0},{"$f":"Import!M2976","v":0},{"$f":"Import!M3001","v":0},{"$f":"Import!M3026","v":0},{"$f":"Import!M3051","v":0},{"$f":"Import!M3076","v":0},{"$f":"Import!M3101","v":0},{"$f":"Import!M3126","v":0},{"$f":"Import!M3151","v":0},{"$f":"Import!M3176","v":0},{"$f":"Import!M3201","v":0},{"$f":"Import!M3226","v":0},{"$f":"Import!M3251","v":0},null,0,null,{"$f":"ROUND('Schedule III'!F33,0)","v":0},null," - "]
[null,25,"Total ",null,{"$f":"SUM(E10:E33)","v":0},0,0,0,0,0,0,0,0,0,0,0,0,0,0,0,0,0,null,{"$f":"SUM(X10:X33)","v":0},null,{"$f":"SUM(Z10:Z33)","v":0}]

{"sheet":"Schedule IV (Unconsolidated)","index":36,"n_rows":39,"n_cols":19,"rows_kept":39,"cut":false,"hidden":true,"merged":[[6,12,6,14],[6,16,6,18],[1,1,1,2],[4,4,4,14],[4,16,4,18],[5,4,5,6],[5,8,5,10],[5,12,5,14]]}
[null,"SCHEDULE OF PREMIUMS WRITTEN BY LINE OF BUSINESS",null,null,null,null,null,null,null,null,null,null,null,null,null,null,null,null,{"$f":"HYPERLINK(\"#'Index'!A1\",\"Return to Index\")","v":"Return to Index"}]
[null,{"$f":"'Company Information'!C7","v":"Enter Company Name"}]
[null,{"$f":"\"For the year ending \"&TEXT('Company Information'!C3,\"MMMM DD, YYYY\")","v":"For the year ending December 31, 2022"},null,null,null,null,null,null,null,null,null,null,null,null,null,null,null,null,"SCHEDULE IV"]
[null,{"$f":"\"expressed in\"& IF(CONFIGURATION!$B$12>1,\" ['\"&MID(CONFIGURATION!$B$12,2,LEN(CONFIGURATION!$B$12))&\"s]\",\"\")&\" \"&'Form 1EBS'!C4","v":"expressed in ['000s] United States Dollars"}]
[null,null,null,null,"Gross Premiums Written",null,null,null,null,null,null,null,null,null,null,null,"Net Premiums Written"]
[null,null,null,null,"Unrelated",null,null,null,"Related",null,null,null,"Total"]
[null,"Schedule ",null,null,null,null,null,null,null,null,null,null,"Form 2SFS, Line 1(c) ",null,null,null,"Form 2SFS, Line 3"]
[null,"Line no. ",null,null,{"$f":"'Form 1EBS'!F7","v":"2022-12-31"},null,{"$f":"'Form 1EBS'!H7","v":"2021-12-31"},null,{"$f":"'Form 1EBS'!F7","v":"2022-12-31"},null,{"$f":"'Form 1EBS'!H7","v":"2021-12-31"},null,{"$f":"'Form 1EBS'!F7","v":"2022-12-31"},null,{"$f":"'Form 1EBS'!H7","v":"2021-12-31"},null,{"$f":"'Form 1EBS'!F7","v":"2022-12-31"},null,{"$f":"'Form 1EBS'!H7","v":"2021-12-31"}]
[null,null,null,null,{"$f":"CONFIGURATION!$D$12","v":" ('000s)"},null,{"$f":"CONFIGURATION!$D$12","v":" ('000s)"},null,{"$f":"CONFIGURATION!$D$12","v":" ('000s)"},null,{"$f":"CONFIGURATION!$D$12","v":" ('000s)"},null,{"$f":"CONFIGURATION!$D$12","v":" ('000s)"},null,{"$f":"CONFIGURATION!$D$12","v":" ('000s)"},null,{"$f":"CONFIGURATION!$D$12","v":" ('000s)"},null,{"$f":"CONFIGURATION!$D$12","v":" ('000s)"}]
[]
[null,1,"Property Catastrophe",null,{"$f":"Import!E3279","v":0},null,{"$f":"Import!G3279","v":0},null,{"$f":"Import!E3303","v":0},null,{"$f":"Import!G3303","v":0},null,{"$f":"E11+I11","v":0},null,{"$f":"G11+K11","v":0},null,{"$f":"Import!E3327","v":0},null,{"$f":"Import!G3327","v":0}]
[null,2,"Property",null,{"$f":"Import!E3280","v":0},null,{"$f":"Import!G3280","v":0},null,{"$f":"Import!E3304","v":0},null,{"$f":"Import!G3304","v":0},null,0,null,0,null,{"$f":"Import!E3328","v":0},null,{"$f":"Import!G3328","v":0}]
[null,3,"Property Non – Proportional",null,{"$f":"Import!E3281","v":0},null,{"$f":"Import!G3281","v":0},null,{"$f":"Import!E3305","v":0},null,{"$f":"Import!G3305","v":0},null,0,null,0,null,{"$f":"Import!E3329","v":0},null,{"$f":"Import!G3329","v":0}]
[null,4,"Personal Accident",null,{"$f":"Import!E3282","v":0},null,{"$f":"Import!G3282","v":0},null,{"$f":"Import!E3306","v":0},null,{"$f":"Import!G3306","v":0},null,0,null,0,null,{"$f":"Import!E3330","v":0},null,{"$f":"Import!G3330","v":0}]
[null,5,"Personal Accident Non- Proportional",null,{"$f":"Import!E3283","v":0},null,{"$f":"Import!G3283","v":0},null,{"$f":"Import!E3307","v":0},null,{"$f":"Import!G3307","v":0},null,0,null,0,null,{"$f":"Import!E3331","v":0},null,{"$f":"Import!G3331","v":0}]
[null,6,"Aviation",null,{"$f":"Import!E3284","v":0},null,{"$f":"Import!G3284","v":0},null,{"$f":"Import!E3308","v":0},null,{"$f":"Import!G3308","v":0},null,0,null,0,null,{"$f":"Import!E3332","v":0},null,{"$f":"Import!G3332","v":0}]
[null,7,"Aviation Non – Proportional",null,{"$f":"Import!E3285","v":0},null,{"$f":"Import!G3285","v":0},null,{"$f":"Import!E3309","v":0},null,{"$f":"Import!G3309","v":0},null,0,null,0,null,{"$f":"Import!E3333","v":0},null,{"$f":"Import!G3333","v":0}]
[null,8,"Credit / Surety ",null,{"$f":"Import!E3286","v":0},null,{"$f":"Import!G3286","v":0},null,{"$f":"Import!E3310","v":0},null,{"$f":"Import!G3310","v":0},null,0,null,0,null,{"$f":"Import!E3334","v":0},null,{"$f":"Import!G3334","v":0}]
[null,9,"Credit / Surety Non – Proportional",null,{"$f":"Import!E3287","v":0},null,{"$f":"Import!G3287","v":0},null,{"$f":"Import!E3311","v":0},null,{"$f":"Import!G3311","v":0},null,0,null,0,null,{"$f":"Import!E3335","v":0},null,{"$f":"Import!G3335","v":0}]
[null,10,"Energy Offshore / Marine",null,{"$f":"Import!E3288","v":0},null,{"$f":"Import!G3288","v":0},null,{"$f":"Import!E3312","v":0},null,{"$f":"Import!G3312","v":0},null,0,null,0,null,{"$f":"Import!E3336","v":0},null,{"$f":"Import!G3336","v":0}]
[null,11,"Energy Offshore / Marine Non - Proportional ","  ",{"$f":"Import!E3289","v":0},null,{"$f":"Import!G3289","v":0},null,{"$f":"Import!E3313","v":0},null,{"$f":"Import!G3313","v":0},null,0,null,0,null,{"$f":"Import!E3337","v":0},null,{"$f":"Import!G3337","v":0}]
[null,12,"US Casualty",null,{"$f":"Import!E3290","v":0},null,{"$f":"Import!G3290","v":0},null,{"$f":"Import!E3314","v":0},null,{"$f":"Import!G3314","v":0},null,0,null,0,null,{"$f":"Import!E3338","v":0},null,{"$f":"Import!G3338","v":0}]
[null,13,"US Casualty Non - Proportional ",null,{"$f":"Import!E3291","v":0},null,{"$f":"Import!G3291","v":0},null,{"$f":"Import!E3315","v":0},null,{"$f":"Import!G3315","v":0},null,0,null,0,null,{"$f":"Import!E3339","v":0},null,{"$f":"Import!G3339","v":0}]
[null,14,"US Professional",null,{"$f":"Import!E3292","v":0},null,{"$f":"Import!G3292","v":0},null,{"$f":"Import!E3316","v":0},null,{"$f":"Import!G3316","v":0},null,0,null,0,null,{"$f":"Import!E3340","v":0},null,{"$f":"Import!G3340","v":0}]
[null,15,"US Professional Non – Proportional",null,{"$f":"Import!E3293","v":0},null,{"$f":"Import!G3293","v":0},null,{"$f":"Import!E3317","v":0},null,{"$f":"Import!G3317","v":0},null,0,null,0,null,{"$f":"Import!E3341","v":0},null,{"$f":"Import!G3341","v":0}]
[null,16,"US Specialty ",null,{"$f":"Import!E3294","v":0},null,{"$f":"Import!G3294","v":0},null,{"$f":"Import!E3318","v":0},null,{"$f":"Import!G3318","v":0},null,0,null,0,null,{"$f":"Import!E3342","v":0},null,{"$f":"Import!G3342","v":0}]
[null,17,"US Specialty Non - Proportional",null,{"$f":"Import!E3295","v":0},null,{"$f":"Import!G3295","v":0},null,{"$f":"Import!E3319","v":0},null,{"$f":"Import!G3319","v":0},null,0,null,0,null,{"$f":"Import!E3343","v":0},null,{"$f":"Import!G3343","v":0}]
[null,18,"International Motor ",null,{"$f":"Import!E3296","v":0},null,{"$f":"Import!G3296","v":0},null,{"$f":"Import!E3320","v":0},null,{"$f":"Import!G3320","v":0},null,0,null,0,null,{"$f":"Import!E3344","v":0},null,{"$f":"Import!G3344","v":0}]
[null,19,"International Motor Non – Proportional",null,{"$f":"Import!E3297","v":0},null,{"$f":"Import!G3297","v":0},null,{"$f":"Import!E3321","v":0},null,{"$f":"Import!G3321","v":0},null,0,null,0,null,{"$f":"Import!E3345","v":0},null,{"$f":"Import!G3345","v":0}]
[null,20,"International Casualty Non – Motor ",null,{"$f":"Import!E3298","v":0},null,{"$f":"Import!G3298","v":0},null,{"$f":"Import!E3322","v":0},null,{"$f":"Import!G3322","v":0},null,0,null,0,null,{"$f":"Import!E3346","v":0},null,{"$f":"Import!G3346","v":0}]
[null,21,"International Casualty Non Motor Non – Proportional ",null,{"$f":"Import!E3299","v":0},null,{"$f":"Import!G3299","v":0},null,{"$f":"Import!E3323","v":0},null,{"$f":"Import!G3323","v":0},null,0,null,0,null,{"$f":"Import!E3347","v":0},null,{"$f":"Import!G3347","v":0}]
[null,22,"Retro Property",null,{"$f":"Import!E3300","v":0},null,{"$f":"Import!G3300","v":0},null,{"$f":"Import!E3324","v":0},null,{"$f":"Import!G3324","v":0},null,0,null,0,null,{"$f":"Import!E3348","v":0},null,{"$f":"Import!G3348","v":0}]
[null,23,"Structured / Finite Reinsurance",null,{"$f":"Import!E3301","v":0},null,{"$f":"Import!G3301","v":0},null,{"$f":"Import!E3325","v":0},null,{"$f":"Import!G3325","v":0},null,0,null,0,null,{"$f":"Import!E3349","v":0},null,{"$f":"Import!G3349","v":0}]
[null,24,"Health",null,{"$f":"Import!E3302","v":0},null,{"$f":"Import!G3302","v":0},null,{"$f":"Import!E3326","v":0},null,{"$f":"Import!G3326","v":0},null,0,null,0,null,{"$f":"Import!E3350","v":0},null,{"$f":"Import!G3350","v":0}]
[null,25,"Total ",null,{"$f":"SUM(E11:E34)","v":0},null,{"$f":"SUM(G11:G34)","v":0},null,{"$f":"SUM(I11:I34)","v":0},null,{"$f":"SUM(K11:K34)","v":0},null,{"$f":"SUM(M11:M34)","v":0},null,{"$f":"SUM(O11:O34)","v":0},null,{"$f":"SUM(Q11:Q34)","v":0},null,{"$f":"SUM(S11:S34)","v":0}]
[]
[null,null,null,null,null,null,null,null,null,null,null,null,{"$f":"IF(M38=\"TRUE\",HYPERLINK(\"#'Form 2SFS'!E14\",\"TRUE\"),HYPERLINK(\"#'Form 2SFS'!E14\",\"FALSE\"))","v":"TRUE"},null,{"$f":"IF(O38=\"TRUE\",HYPERLINK(\"#'Form 2SFS'!G14\",\"TRUE\"),HYPERLINK(\"#'Form 2SFS'!G14\",\"FALSE\"))","v":"TRUE"},null,{"$f":"IF(Q38=\"TRUE\",HYPERLINK(\"#'Form 2SFS'!E18\",\"TRUE\"),HYPERLINK(\"#'Form 2SFS'!E18\",\"FALSE\"))","v":"TRUE"},null,{"$f":"IF(S38=\"TRUE\",HYPERLINK(\"#'Form 2SFS'!G18\",\"TRUE\"),HYPERLINK(\"#'Form 2SFS'!G18\",\"FALSE\"))","v":"TRUE"}]
[null,null,null,null,null,null,null,null,null,null,null,null,{"$f":"IF(ROUND((M35-'Form 2SFS (Consolidated)'!E14),0)=0,\"TRUE\",\"FALSE\")","v":"TRUE"},null,{"$f":"IF(ROUND((O35-'Form 2SFS (Consolidated)'!G14),0)=0,\"TRUE\",\"FALSE\")","v":"TRUE"},null,{"$f":"IF(ROUND((Q35-'Form 2SFS (Consolidated)'!E18),0)=0,\"TRUE\",\"FALSE\")","v":"TRUE"},null,{"$f":"IF(ROUND((S35-'Form 2SFS (Consolidated)'!G18),0)=0,\"TRUE\",\"FALSE\")","v":"TRUE"}]
[null,null,null,null,null,null,null,null,null,null,null,null,{"$f":"'Form 2SFS (Consolidated)'!E14-M35","v":0},null,{"$f":"'Form 2SFS (Consolidated)'!G14-O35","v":0},null,{"$f":"'Form 2SFS (Consolidated)'!E18-Q35","v":0},null,{"$f":"'Form 2SFS (Consolidated)'!G18-S35","v":0}]

{"sheet":"Schedule IVA","index":37,"n_rows":39,"n_cols":21,"rows_kept":39,"cut":false,"hidden":false,"merged":[[6,12,6,14],[6,16,6,18],[1,1,1,2],[4,4,4,14],[5,4,5,6],[4,16,4,18],[5,8,5,10],[5,12,5,14]]}
[null,"SCHEDULE OF PREMIUMS WRITTEN BY LINE OF BUSINESS",null,null,null,null,null,null,null,null,null,null,null,null,null,null,null,null,null,null,{"$f":"HYPERLINK(\"#'Index'!A1\",\"Return to Index\")","v":"Return to Index"}]
[null,{"$f":"'Company Information'!C7","v":"Enter Company Name"}]
[null,{"$f":"\"For the year ending \"&TEXT('Company Information'!C3,\"dd MMMM YYYY\")","v":"For the year ending 31 December 2022"},null,null,null,null,null,null,null,null,null,null,null,null,null,null,null,null,null,null,"SCHEDULE IV(A)"]
[null,{"$f":"\"expressed in\"& IF(CONFIGURATION!$B$12>1,\" ['\"&MID(CONFIGURATION!$B$12,2,LEN(CONFIGURATION!$B$12))&\"s]\",\"\")&\" \"&'Form 1SFS (Consolidated)'!$C$5","v":"expressed in ['000s] United States Dollars"}]
[null,null,null,null,"Gross Premiums Written",null,null,null,null,null,null,null,null,null,null,null,"Net Premiums Written",null,null,null,"Geo NPW"]
[null,null,null,null,"Unrelated",null,null,null,"Related",null,null,null,"Total"]
[null,"Schedule ",null,null,null,null,null,null,null,null,null,null,"Form 2SFS, Line 1(c) ",null,null,null,"Form 2SFS, Line 3",null,null,null,"[ Schedule IV(C) ]"]
[null,"Line no. ",null,null,{"$f":"'Form 1SFS (Consolidated)'!$M$9","v":"2022-12-31"},null,{"$f":"'Form 1SFS (Consolidated)'!$O$9","v":"2021-12-31"},null,{"$f":"'Form 1SFS (Consolidated)'!$M$9","v":"2022-12-31"},null,{"$f":"'Form 1SFS (Consolidated)'!$O$9","v":"2021-12-31"},null,{"$f":"'Form 1SFS (Consolidated)'!$M$9","v":"2022-12-31"},null,{"$f":"'Form 1SFS (Consolidated)'!$O$9","v":"2021-12-31"},null,{"$f":"'Form 1SFS (Consolidated)'!$M$9","v":"2022-12-31"},null,{"$f":"'Form 1SFS (Consolidated)'!$O$9","v":"2021-12-31"},null,{"$f":"'Form 1SFS (Consolidated)'!$M$9","v":"2022-12-31"}]
[null,null,null,null,{"$f":"CONFIGURATION!$D$12","v":" ('000s)"},null,{"$f":"CONFIGURATION!$D$12","v":" ('000s)"},null,{"$f":"CONFIGURATION!$D$12","v":" ('000s)"},null,{"$f":"CONFIGURATION!$D$12","v":" ('000s)"},null,{"$f":"CONFIGURATION!$D$12","v":" ('000s)"},null,{"$f":"CONFIGURATION!$D$12","v":" ('000s)"},null,{"$f":"CONFIGURATION!$D$12","v":" ('000s)"},null,{"$f":"CONFIGURATION!$D$12","v":" ('000s)"},null,{"$f":"CONFIGURATION!$D$12","v":" ('000s)"}]
[]
[null,1,"Property Catastrophe",null,{"$f":"Import!M3279","v":0},null,{"$f":"Import!O3279","v":0},null,{"$f":"Import!M3303","v":0},null,{"$f":"Import!O3303","v":0},null,{"$f":"E11+I11","v":0},null,{"$f":"G11+K11","v":0},null,{"$f":"Import!M3327","v":0},null,{"$f":"Import!O3327","v":0},null,{"$f":"+'Schedule IVC'!X9","v":0}]
[null,2,"Property",null,{"$f":"Import!M3280","v":0},null,{"$f":"Import!O3280","v":0},null,{"$f":"Import!M3304","v":0},null,{"$f":"Import!O3304","v":0},null,0,null,0,null,{"$f":"Import!M3328","v":0},null,{"$f":"Import!O3328","v":0},null,{"$f":"+'Schedule IVC'!X10","v":0}]
[null,3,"Property Non – Proportional",null,{"$f":"Import!M3281","v":0},null,{"$f":"Import!O3281","v":0},null,{"$f":"Import!M3305","v":0},null,{"$f":"Import!O3305","v":0},null,0,null,0,null,{"$f":"Import!M3329","v":0},null,{"$f":"Import!O3329","v":0},null,{"$f":"+'Schedule IVC'!X11","v":0}]
[null,4,"Personal Accident",null,{"$f":"Import!M3282","v":0},null,{"$f":"Import!O3282","v":0},null,{"$f":"Import!M3306","v":0},null,{"$f":"Import!O3306","v":0},null,0,null,0,null,{"$f":"Import!M3330","v":0},null,{"$f":"Import!O3330","v":0},null,{"$f":"+'Schedule IVC'!X12","v":0}]
[null,5,"Personal Accident Non- Proportional",null,{"$f":"Import!M3283","v":0},null,{"$f":"Import!O3283","v":0},null,{"$f":"Import!M3307","v":0},null,{"$f":"Import!O3307","v":0},null,0,null,0,null,{"$f":"Import!M3331","v":0},null,{"$f":"Import!O3331","v":0},null,{"$f":"+'Schedule IVC'!X13","v":0}]
[null,6,"Aviation",null,{"$f":"Import!M3284","v":0},null,{"$f":"Import!O3284","v":0},null,{"$f":"Import!M3308","v":0},null,{"$f":"Import!O3308","v":0},null,0,null,0,null,{"$f":"Import!M3332","v":0},null,{"$f":"Import!O3332","v":0},null,{"$f":"+'Schedule IVC'!X14","v":0}]
[null,7,"Aviation Non – Proportional",null,{"$f":"Import!M3285","v":0},null,{"$f":"Import!O3285","v":0},null,{"$f":"Import!M3309","v":0},null,{"$f":"Import!O3309","v":0},null,0,null,0,null,{"$f":"Import!M3333","v":0},null,{"$f":"Import!O3333","v":0},null,{"$f":"+'Schedule IVC'!X15","v":0}]
[null,8,"Credit / Surety ",null,{"$f":"Import!M3286","v":0},null,{"$f":"Import!O3286","v":0},null,{"$f":"Import!M3310","v":0},null,{"$f":"Import!O3310","v":0},null,0,null,0,null,{"$f":"Import!M3334","v":0},null,{"$f":"Import!O3334","v":0},null,{"$f":"+'Schedule IVC'!X16","v":0}]
[null,9,"Credit / Surety Non – Proportional",null,{"$f":"Import!M3287","v":0},null,{"$f":"Import!O3287","v":0},null,{"$f":"Import!M3311","v":0},null,{"$f":"Import!O3311","v":0},null,0,null,0,null,{"$f":"Import!M3335","v":0},null,{"$f":"Import!O3335","v":0},null,{"$f":"+'Schedule IVC'!X17","v":0}]
[null,10,"Energy Offshore / Marine",null,{"$f":"Import!M3288","v":0},null,{"$f":"Import!O3288","v":0},null,{"$f":"Import!M3312","v":0},null,{"$f":"Import!O3312","v":0},null,0,null,0,null,{"$f":"Import!M3336","v":0},null,{"$f":"Import!O3336","v":0},null,{"$f":"+'Schedule IVC'!X18","v":0}]
[null,11,"Energy Offshore / Marine Non - Proportional ","  ",{"$f":"Import!M3289","v":0},null,{"$f":"Import!O3289","v":0},null,{"$f":"Import!M3313","v":0},null,{"$f":"Import!O3313","v":0},null,0,null,0,null,{"$f":"Import!M3337","v":0},null,{"$f":"Import!O3337","v":0},null,{"$f":"+'Schedule IVC'!X19","v":0}]
[null,12,"US Casualty",null,{"$f":"Import!M3290","v":0},null,{"$f":"Import!O3290","v":0},null,{"$f":"Import!M3314","v":0},null,{"$f":"Import!O3314","v":0},null,0,null,0,null,{"$f":"Import!M3338","v":0},null,{"$f":"Import!O3338","v":0},null,{"$f":"+'Schedule IVC'!X20","v":0}]
[null,13,"US Casualty Non - Proportional ",null,{"$f":"Import!M3291","v":0},null,{"$f":"Import!O3291","v":0},null,{"$f":"Import!M3315","v":0},null,{"$f":"Import!O3315","v":0},null,0,null,0,null,{"$f":"Import!M3339","v":0},null,{"$f":"Import!O3339","v":0},null,{"$f":"+'Schedule IVC'!X21","v":0}]
[null,14,"US Professional",null,{"$f":"Import!M3292","v":0},null,{"$f":"Import!O3292","v":0},null,{"$f":"Import!M3316","v":0},null,{"$f":"Import!O3316","v":0},null,0,null,0,null,{"$f":"Import!M3340","v":0},null,{"$f":"Import!O3340","v":0},null,{"$f":"+'Schedule IVC'!X22","v":0}]
[null,15,"US Professional Non – Proportional",null,{"$f":"Import!M3293","v":0},null,{"$f":"Import!O3293","v":0},null,{"$f":"Import!M3317","v":0},null,{"$f":"Import!O3317","v":0},null,0,null,0,null,{"$f":"Import!M3341","v":0},null,{"$f":"Import!O3341","v":0},null,{"$f":"+'Schedule IVC'!X23","v":0}]
[null,16,"US Specialty ",null,{"$f":"Import!M3294","v":0},null,{"$f":"Import!O3294","v":0},null,{"$f":"Import!M3318","v":0},null,{"$f":"Import!O3318","v":0},null,0,null,0,null,{"$f":"Import!M3342","v":0},null,{"$f":"Import!O3342","v":0},null,{"$f":"+'Schedule IVC'!X24","v":0}]
[null,17,"US Specialty Non - Proportional",null,{"$f":"Import!M3295","v":0},null,{"$f":"Import!O3295","v":0},null,{"$f":"Import!M3319","v":0},null,{"$f":"Import!O3319","v":0},null,0,null,0,null,{"$f":"Import!M3343","v":0},null,{"$f":"Import!O3343","v":0},null,{"$f":"+'Schedule IVC'!X25","v":0}]
[null,18,"International Motor ",null,{"$f":"Import!M3296","v":0},null,{"$f":"Import!O3296","v":0},null,{"$f":"Import!M3320","v":0},null,{"$f":"Import!O3320","v":0},null,0,null,0,null,{"$f":"Import!M3344","v":0},null,{"$f":"Import!O3344","v":0},null,{"$f":"+'Schedule IVC'!X26","v":0}]
[null,19,"International Motor Non – Proportional",null,{"$f":"Import!M3297","v":0},null,{"$f":"Import!O3297","v":0},null,{"$f":"Import!M3321","v":0},null,{"$f":"Import!O3321","v":0},null,0,null,0,null,{"$f":"Import!M3345","v":0},null,{"$f":"Import!O3345","v":0},null,{"$f":"+'Schedule IVC'!X27","v":0}]
[null,20,"International Casualty Non – Motor ",null,{"$f":"Import!M3298","v":0},null,{"$f":"Import!O3298","v":0},null,{"$f":"Import!M3322","v":0},null,{"$f":"Import!O3322","v":0},null,0,null,0,null,{"$f":"Import!M3346","v":0},null,{"$f":"Import!O3346","v":0},null,{"$f":"+'Schedule IVC'!X28","v":0}]
[null,21,"International Casualty Non Motor Non – Proportional ",null,{"$f":"Import!M3299","v":0},null,{"$f":"Import!O3299","v":0},null,{"$f":"Import!M3323","v":0},null,{"$f":"Import!O3323","v":0},null,0,null,0,null,{"$f":"Import!M3347","v":0},null,{"$f":"Import!O3347","v":0},null,{"$f":"+'Schedule IVC'!X29","v":0}]
[null,22,"Retro Property",null,{"$f":"Import!M3300","v":0},null,{"$f":"Import!O3300","v":0},null,{"$f":"Import!M3324","v":0},null,{"$f":"Import!O3324","v":0},null,0,null,0,null,{"$f":"Import!M3348","v":0},null,{"$f":"Import!O3348","v":0},null,{"$f":"+'Schedule IVC'!X30","v":0}]
[null,23,"Structured / Finite Reinsurance",null,{"$f":"Import!M3301","v":0},null,{"$f":"Import!O3301","v":0},null,{"$f":"Import!M3325","v":0},null,{"$f":"Import!O3325","v":0},null,0,null,0,null,{"$f":"Import!M3349","v":0},null,{"$f":"Import!O3349","v":0},null,{"$f":"+'Schedule IVC'!X31","v":0}]
[null,24,"Health",null,{"$f":"Import!M3302","v":0},null,{"$f":"Import!O3302","v":0},null,{"$f":"Import!M3326","v":0},null,{"$f":"Import!O3326","v":0},null,0,null,0,null,{"$f":"Import!M3350","v":0},null,{"$f":"Import!O3350","v":0},null,{"$f":"+'Schedule IVC'!X32","v":0}]
[null,25,"Total ",null,{"$f":"SUM(E11:E34)","v":0},null,{"$f":"SUM(G11:G34)","v":0},null,{"$f":"SUM(I11:I34)","v":0},null,{"$f":"SUM(K11:K34)","v":0},null,{"$f":"SUM(M11:M34)","v":0},null,{"$f":"SUM(O11:O34)","v":0},null,{"$f":"SUM(Q11:Q34)","v":0},null,{"$f":"SUM(S11:S34)","v":0},null,{"$f":"SUM(U11:U34)","v":0}]
[]
[null,null,null,null,null,null,null,null,null,null,null,null,{"$f":"IF(M38=\"TRUE\",HYPERLINK(\"#'Form 2SFS (Consolidated)'!E14:M14\",\"TRUE\"),HYPERLINK(\"#'Form 2SFS (Consolidated)'!E14:M14\",\"FALSE\"))","v":"TRUE"},null,{"$f":"IF(O38=\"TRUE\",HYPERLINK(\"#'Form 2SFS (Consolidated)'!G14:O14\",\"TRUE\"),HYPERLINK(\"#'Form 2SFS (Consolidated)'!G14:O14\",\"FALSE\"))","v":"TRUE"},null,{"$f":"IF(Q38=\"TRUE\",HYPERLINK(\"#'Form 2SFS (Consolidated)'!E18:M18\",\"TRUE\"),HYPERLINK(\"#'Form 2SFS (Consolidated)'!E18:M18\",\"FALSE\"))","v":"TRUE"},null,{"$f":"IF(S38=\"TRUE\",HYPERLINK(\"#'Form 2SFS (Consolidated)'!G18:O18\",\"TRUE\"),HYPERLINK(\"#'Form 2SFS (Consolidated)'!G18:O18\",\"FALSE\"))","v":"TRUE"}]
[null,null,null,null,null,null,null,null,null,null,null,null,{"$f":"IF(SUM('Form 1SFS (Consolidated)'!$E$91,'Form 1SFS (Consolidated)'!$I$91)=0,IF(ROUND((M35-'Form 2SFS (Consolidated)'!M14),0)=0,\"TRUE\",\"FALSE\"),IF('Form 2SFS (Consolidated)'!M14=0,IF(ROUND((M35-'Form 2SFS (Consolidated)'!E14),0)=0,\"TRUE\",\"FALSE\"),IF(ROUND((M35-'Form 2SFS (Consolidated)'!M14),0)=0,\"TRUE\",\"FALSE\")))","v":"TRUE"},null,{"$f":"IF(SUM('Form 1SFS (Consolidated)'!$E$91,'Form 1SFS (Consolidated)'!$I$91)=0,IF(ROUND((O35-'Form 2SFS (Consolidated)'!O14),0)=0,\"TRUE\",\"FALSE\"),IF('Form 2SFS (Consolidated)'!O14=0,IF(ROUND((O35-'Form 2SFS (Consolidated)'!G14),0)=0,\"TRUE\",\"FALSE\"),IF(ROUND((O35-'Form 2SFS (Consolidated)'!O14),0)=0,\"TRUE\",\"FALSE\")))","v":"TRUE"},null,{"$f":"IF(SUM('Form 1SFS (Consolidated)'!$E$91,'Form 1SFS (Consolidated)'!$I$91)=0,IF(ROUND((Q35-'Form 2SFS (Consolidated)'!M18),0)=0,\"TRUE\",\"FALSE\"),IF('Form 2SFS (Consolidated)'!M18=0,IF(ROUND((Q35-'Form 2SFS (Consolidated)'!E18),0)=0,\"TRUE\",\"FALSE\"),IF(ROUND((Q35-'Form 2SFS (Consolidated)'!M18),0)=0,\"TRUE\",\"FALSE\")))","v":"TRUE"},null,{"$f":"IF(SUM('Form 1SFS (Consolidated)'!$E$91,'Form 1SFS (Consolidated)'!$I$91)=0,IF(ROUND((S35-'Form 2SFS (Consolidated)'!O18),0)=0,\"TRUE\",\"FALSE\"),IF('Form 2SFS (Consolidated)'!O18=0,IF(ROUND((S35-'Form 2SFS (Consolidated)'!G18),0)=0,\"TRUE\",\"FALSE\"),IF(ROUND((S35-'Form 2SFS (Consolidated)'!O18),0)=0,\"TRUE\",\"FALSE\")))","v":"TRUE"}]
[null,null,null,null,null,null,null,null,null,null,null,null,{"$f":"IF(SUM('Form 1SFS (Consolidated)'!$E$91,'Form 1SFS (Consolidated)'!$I$91)=0,ROUND('Form 2SFS (Consolidated)'!M14-M35,0),IF('Form 2SFS (Consolidated)'!M14=0,ROUND('Form 2SFS (Consolidated)'!E14-M35,0),ROUND('Form 2SFS (Consolidated)'!M14-M35,0)))","v":0},null,{"$f":"IF(SUM('Form 1SFS (Consolidated)'!$E$91,'Form 1SFS (Consolidated)'!$I$91)=0,ROUND('Form 2SFS (Consolidated)'!O14-O35,0),IF('Form 2SFS (Consolidated)'!O14=0,ROUND('Form 2SFS (Consolidated)'!G14-O35,0),ROUND('Form 2SFS (Consolidated)'!O14-O35,0)))","v":0},null,{"$f":"IF(SUM('Form 1SFS (Consolidated)'!$E$91,'Form 1SFS (Consolidated)'!$I$91)=0,ROUND('Form 2SFS (Consolidated)'!M18-Q35,0),IF('Form 2SFS (Consolidated)'!M18=0,ROUND('Form 2SFS (Consolidated)'!E18-Q35,0),ROUND('Form 2SFS (Consolidated)'!M18-Q35,0)))","v":0},null,{"$f":"IF(SUM('Form 1SFS (Consolidated)'!$E$91,'Form 1SFS (Consolidated)'!$I$91)=0,ROUND('Form 2SFS (Consolidated)'!O18-S35,0),IF('Form 2SFS (Consolidated)'!O18=0,ROUND('Form 2SFS (Consolidated)'!G18-S35,0),ROUND('Form 2SFS (Consolidated)'!O18-S35,0)))","v":0}]

{"sheet":"Schedule IVC","index":38,"n_rows":33,"n_cols":28,"rows_kept":33,"cut":false,"hidden":false,"merged":[[1,1,1,2]]}
[null,"SCHEDULE OF GEOGRAPHIC DIVERSIFICATION OF PREMIUMS WRITTEN",null,null,null,null,null,null,null,null,null,null,null,null,null,null,null,null,null,null,null,null,null,null,null,{"$f":"HYPERLINK(\"#'Index'!A1\",\"Return to Index\")","v":"Return to Index"}]
[null,{"$f":"'Company Information'!C7","v":"Enter Company Name"}]
[null,{"$f":"\"For the year ending \"&TEXT('Company Information'!C3,\"dd MMMM YYYY\")","v":"For the year ending 31 December 2022"},null,null,null,null,null,null,null,null,null,null,null,null,null,null,null,null,null,null,null,null,null,null,null,"SCHEDULE IV(C) "]
[null,{"$f":"\"expressed in\"& IF(CONFIGURATION!$B$12>1,\" ['\"&MID(CONFIGURATION!$B$12,2,LEN(CONFIGURATION!$B$12))&\"s]\",\"\")&\" \"&'Form 1SFS (Consolidated)'!$C$5","v":"expressed in ['000s] United States Dollars"},null,null,null,null,null,null,null,null,null,null,null,null,null,null,null,null,null,null,null,null,null,{"$f":"\"Confirmation that \"&B2& \" Is Taking Advantage of Geographic Diversification of Premiums\"","v":"Confirmation that Enter Company Name Is Taking Advantage of Geographic Diversification of Premiums"},null,"Yes"]
[]
[null,"Schedule ",null,null,{"$f":"HYPERLINK(\"#'Zones'!c4\",\"Zone 1\")","v":"Zone 1"},{"$f":"HYPERLINK(\"#'Zones'!c13\",\"Zone 2\")","v":"Zone 2"},{"$f":"HYPERLINK(\"#'Zones'!c18\",\"Zone 3\")","v":"Zone 3"},{"$f":"HYPERLINK(\"#'Zones'!c26\",\"Zone 4\")","v":"Zone 4"},{"$f":"HYPERLINK(\"#'Zones'!c36\",\"Zone 5\")","v":"Zone 5"},{"$f":"HYPERLINK(\"#'Zones'!c46\",\"Zone 6\")","v":"Zone 6"},{"$f":"HYPERLINK(\"#'Zones'!c57\",\"Zone 7\")","v":"Zone 7"},{"$f":"HYPERLINK(\"#'Zones'!c68\",\"Zone 8\")","v":"Zone 8"},{"$f":"HYPERLINK(\"#'Zones'!c76\",\"Zone 9\")","v":"Zone 9"},{"$f":"HYPERLINK(\"#'Zones'!c84\",\"Zone 10\")","v":"Zone 10"},{"$f":"HYPERLINK(\"#'Zones'!c90\",\"Zone 11\")","v":"Zone 11"},{"$f":"HYPERLINK(\"#'Zones'!c94\",\"Zone 12\")","v":"Zone 12"},{"$f":"HYPERLINK(\"#'Zones'!c107\",\"Zone 13\")","v":"Zone 13"},{"$f":"HYPERLINK(\"#'Zones'!c112\",\"Zone 14\")","v":"Zone 14"},{"$f":"HYPERLINK(\"#'Zones'!c116\",\"Zone 15\")","v":"Zone 15"},{"$f":"HYPERLINK(\"#'Zones'!c121\",\"Zone 16\")","v":"Zone 16"},{"$f":"HYPERLINK(\"#'Zones'!c127\",\"Zone 17\")","v":"Zone 17"},{"$f":"HYPERLINK(\"#'Zones'!c133\",\"Zone 18\")","v":"Zone 18"},null,"Total Geo NPW",null,"Total NPW"]
[null,"Line no. ",null,null,{"$f":"CONFIGURATION!$D$12","v":" ('000s)"},{"$f":"CONFIGURATION!$D$12","v":" ('000s)"},{"$f":"CONFIGURATION!$D$12","v":" ('000s)"},{"$f":"CONFIGURATION!$D$12","v":" ('000s)"},{"$f":"CONFIGURATION!$D$12","v":" ('000s)"},{"$f":"CONFIGURATION!$D$12","v":" ('000s)"},{"$f":"CONFIGURATION!$D$12","v":" ('000s)"},{"$f":"CONFIGURATION!$D$12","v":" ('000s)"},{"$f":"CONFIGURATION!$D$12","v":" ('000s)"},{"$f":"CONFIGURATION!$D$12","v":" ('000s)"},{"$f":"CONFIGURATION!$D$12","v":" ('000s)"},{"$f":"CONFIGURATION!$D$12","v":" ('000s)"},{"$f":"CONFIGURATION!$D$12","v":" ('000s)"},{"$f":"CONFIGURATION!$D$12","v":" ('000s)"},{"$f":"CONFIGURATION!$D$12","v":" ('000s)"},{"$f":"CONFIGURATION!$D$12","v":" ('000s)"},{"$f":"CONFIGURATION!$D$12","v":" ('000s)"},{"$f":"CONFIGURATION!$D$12","v":" ('000s)"},null,{"$f":"CONFIGURATION!$D$12","v":" ('000s)"},null,{"$f":"CONFIGURATION!$D$12","v":" ('000s)"}]
[]
[null,1,"Property Catastrophe",null,{"$f":"Import!M3353","v":0},{"$f":"Import!M3378","v":0},{"$f":"Import!M3403","v":0},{"$f":"Import!M3428","v":0},{"$f":"Import!M3453","v":0},{"$f":"Import!M3478","v":0},{"$f":"Import!M3503","v":0},{"$f":"Import!M3528","v":0},{"$f":"Import!M3553","v":0},{"$f":"Import!M3578","v":0},{"$f":"Import!M3603","v":0},{"$f":"Import!M3628","v":0},{"$f":"Import!M3653","v":0},{"$f":"Import!M3678","v":0},{"$f":"Import!M3703","v":0},{"$f":"Import!M3728","v":0},{"$f":"Import!M3753","v":0},{"$f":"Import!M3778","v":0},null,{"$f":"SUM(E9:V9)","v":0},null,{"$f":"'Schedule IVA'!Q11","v":0},null,{"$f":"IF($Z$4=\"Yes\",IF(X9=0,\" - \",IF(ROUND(SUM(X9-Z9),0)=0,\"TRUE\",\"FALSE\")),\"N/A\")","v":" - "}]
[null,2,"Property",null,{"$f":"Import!M3354","v":0},{"$f":"Import!M3379","v":0},{"$f":"Import!M3404","v":0},{"$f":"Import!M3429","v":0},{"$f":"Import!M3454","v":0},{"$f":"Import!M3479","v":0},{"$f":"Import!M3504","v":0},{"$f":"Import!M3529","v":0},{"$f":"Import!M3554","v":0},{"$f":"Import!M3579","v":0},{"$f":"Import!M3604","v":0},{"$f":"Import!M3629","v":0},{"$f":"Import!M3654","v":0},{"$f":"Import!M3679","v":0},{"$f":"Import!M3704","v":0},{"$f":"Import!M3729","v":0},{"$f":"Import!M3754","v":0},{"$f":"Import!M3779","v":0},null,{"$f":"SUM(E10:V10)","v":0},null,{"$f":"'Schedule IVA'!Q12","v":0},null,{"$f":"IF($Z$4=\"Yes\",IF(X10=0,\" - \",IF(ROUND(SUM(X10-Z10),0)=0,\"TRUE\",\"FALSE\")),\"N/A\")","v":" - "}]
[null,3,"Property Non – Proportional",null,{"$f":"Import!M3355","v":0},{"$f":"Import!M3380","v":0},{"$f":"Import!M3405","v":0},{"$f":"Import!M3430","v":0},{"$f":"Import!M3455","v":0},{"$f":"Import!M3480","v":0},{"$f":"Import!M3505","v":0},{"$f":"Import!M3530","v":0},{"$f":"Import!M3555","v":0},{"$f":"Import!M3580","v":0},{"$f":"Import!M3605","v":0},{"$f":"Import!M3630","v":0},{"$f":"Import!M3655","v":0},{"$f":"Import!M3680","v":0},{"$f":"Import!M3705","v":0},{"$f":"Import!M3730","v":0},{"$f":"Import!M3755","v":0},{"$f":"Import!M3780","v":0},null,0,null,{"$f":"'Schedule IVA'!Q13","v":0},null," - "]
[null,4,"Personal Accident",null,{"$f":"Import!M3356","v":0},{"$f":"Import!M3381","v":0},{"$f":"Import!M3406","v":0},{"$f":"Import!M3431","v":0},{"$f":"Import!M3456","v":0},{"$f":"Import!M3481","v":0},{"$f":"Import!M3506","v":0},{"$f":"Import!M3531","v":0},{"$f":"Import!M3556","v":0},{"$f":"Import!M3581","v":0},{"$f":"Import!M3606","v":0},{"$f":"Import!M3631","v":0},{"$f":"Import!M3656","v":0},{"$f":"Import!M3681","v":0},{"$f":"Import!M3706","v":0},{"$f":"Import!M3731","v":0},{"$f":"Import!M3756","v":0},{"$f":"Import!M3781","v":0},null,0,null,{"$f":"'Schedule IVA'!Q14","v":0},null," - "]
[null,5,"Personal Accident Non- Proportional",null,{"$f":"Import!M3357","v":0},{"$f":"Import!M3382","v":0},{"$f":"Import!M3407","v":0},{"$f":"Import!M3432","v":0},{"$f":"Import!M3457","v":0},{"$f":"Import!M3482","v":0},{"$f":"Import!M3507","v":0},{"$f":"Import!M3532","v":0},{"$f":"Import!M3557","v":0},{"$f":"Import!M3582","v":0},{"$f":"Import!M3607","v":0},{"$f":"Import!M3632","v":0},{"$f":"Import!M3657","v":0},{"$f":"Import!M3682","v":0},{"$f":"Import!M3707","v":0},{"$f":"Import!M3732","v":0},{"$f":"Import!M3757","v":0},{"$f":"Import!M3782","v":0},null,0,null,{"$f":"'Schedule IVA'!Q15","v":0},null," - "]
[null,6,"Aviation",null,{"$f":"Import!M3358","v":0},{"$f":"Import!M3383","v":0},{"$f":"Import!M3408","v":0},{"$f":"Import!M3433","v":0},{"$f":"Import!M3458","v":0},{"$f":"Import!M3483","v":0},{"$f":"Import!M3508","v":0},{"$f":"Import!M3533","v":0},{"$f":"Import!M3558","v":0},{"$f":"Import!M3583","v":0},{"$f":"Import!M3608","v":0},{"$f":"Import!M3633","v":0},{"$f":"Import!M3658","v":0},{"$f":"Import!M3683","v":0},{"$f":"Import!M3708","v":0},{"$f":"Import!M3733","v":0},{"$f":"Import!M3758","v":0},{"$f":"Import!M3783","v":0},null,0,null,{"$f":"'Schedule IVA'!Q16","v":0},null," - "]
[null,7,"Aviation Non – Proportional",null,{"$f":"Import!M3359","v":0},{"$f":"Import!M3384","v":0},{"$f":"Import!M3409","v":0},{"$f":"Import!M3434","v":0},{"$f":"Import!M3459","v":0},{"$f":"Import!M3484","v":0},{"$f":"Import!M3509","v":0},{"$f":"Import!M3534","v":0},{"$f":"Import!M3559","v":0},{"$f":"Import!M3584","v":0},{"$f":"Import!M3609","v":0},{"$f":"Import!M3634","v":0},{"$f":"Import!M3659","v":0},{"$f":"Import!M3684","v":0},{"$f":"Import!M3709","v":0},{"$f":"Import!M3734","v":0},{"$f":"Import!M3759","v":0},{"$f":"Import!M3784","v":0},null,0,null,{"$f":"'Schedule IVA'!Q17","v":0},null," - "]
[null,8,"Credit / Surety ",null,{"$f":"Import!M3360","v":0},{"$f":"Import!M3385","v":0},{"$f":"Import!M3410","v":0},{"$f":"Import!M3435","v":0},{"$f":"Import!M3460","v":0},{"$f":"Import!M3485","v":0},{"$f":"Import!M3510","v":0},{"$f":"Import!M3535","v":0},{"$f":"Import!M3560","v":0},{"$f":"Import!M3585","v":0},{"$f":"Import!M3610","v":0},{"$f":"Import!M3635","v":0},{"$f":"Import!M3660","v":0},{"$f":"Import!M3685","v":0},{"$f":"Import!M3710","v":0},{"$f":"Import!M3735","v":0},{"$f":"Import!M3760","v":0},{"$f":"Import!M3785","v":0},null,0,null,{"$f":"'Schedule IVA'!Q18","v":0},null," - "]
[null,9,"Credit / Surety Non – Proportional",null,{"$f":"Import!M3361","v":0},{"$f":"Import!M3386","v":0},{"$f":"Import!M3411","v":0},{"$f":"Import!M3436","v":0},{"$f":"Import!M3461","v":0},{"$f":"Import!M3486","v":0},{"$f":"Import!M3511","v":0},{"$f":"Import!M3536","v":0},{"$f":"Import!M3561","v":0},{"$f":"Import!M3586","v":0},{"$f":"Import!M3611","v":0},{"$f":"Import!M3636","v":0},{"$f":"Import!M3661","v":0},{"$f":"Import!M3686","v":0},{"$f":"Import!M3711","v":0},{"$f":"Import!M3736","v":0},{"$f":"Import!M3761","v":0},{"$f":"Import!M3786","v":0},null,0,null,{"$f":"'Schedule IVA'!Q19","v":0},null," - "]
[null,10,"Energy Offshore / Marine",null,{"$f":"Import!M3362","v":0},{"$f":"Import!M3387","v":0},{"$f":"Import!M3412","v":0},{"$f":"Import!M3437","v":0},{"$f":"Import!M3462","v":0},{"$f":"Import!M3487","v":0},{"$f":"Import!M3512","v":0},{"$f":"Import!M3537","v":0},{"$f":"Import!M3562","v":0},{"$f":"Import!M3587","v":0},{"$f":"Import!M3612","v":0},{"$f":"Import!M3637","v":0},{"$f":"Import!M3662","v":0},{"$f":"Import!M3687","v":0},{"$f":"Import!M3712","v":0},{"$f":"Import!M3737","v":0},{"$f":"Import!M3762","v":0},{"$f":"Import!M3787","v":0},null,0,null,{"$f":"'Schedule IVA'!Q20","v":0},null," - "]
[null,11,"Energy Offshore / Marine Non - Proportional ","  ",{"$f":"Import!M3363","v":0},{"$f":"Import!M3388","v":0},{"$f":"Import!M3413","v":0},{"$f":"Import!M3438","v":0},{"$f":"Import!M3463","v":0},{"$f":"Import!M3488","v":0},{"$f":"Import!M3513","v":0},{"$f":"Import!M3538","v":0},{"$f":"Import!M3563","v":0},{"$f":"Import!M3588","v":0},{"$f":"Import!M3613","v":0},{"$f":"Import!M3638","v":0},{"$f":"Import!M3663","v":0},{"$f":"Import!M3688","v":0},{"$f":"Import!M3713","v":0},{"$f":"Import!M3738","v":0},{"$f":"Import!M3763","v":0},{"$f":"Import!M3788","v":0},null,0,null,{"$f":"'Schedule IVA'!Q21","v":0},null," - "]
[null,12,"US Casualty",null,{"$f":"Import!M3364","v":0},{"$f":"Import!M3389","v":0},{"$f":"Import!M3414","v":0},{"$f":"Import!M3439","v":0},{"$f":"Import!M3464","v":0},{"$f":"Import!M3489","v":0},{"$f":"Import!M3514","v":0},{"$f":"Import!M3539","v":0},{"$f":"Import!M3564","v":0},{"$f":"Import!M3589","v":0},{"$f":"Import!M3614","v":0},{"$f":"Import!M3639","v":0},{"$f":"Import!M3664","v":0},{"$f":"Import!M3689","v":0},{"$f":"Import!M3714","v":0},{"$f":"Import!M3739","v":0},{"$f":"Import!M3764","v":0},{"$f":"Import!M3789","v":0},null,0,null,{"$f":"'Schedule IVA'!Q22","v":0},null," - "]
[null,13,"US Casualty Non - Proportional ",null,{"$f":"Import!M3365","v":0},{"$f":"Import!M3390","v":0},{"$f":"Import!M3415","v":0},{"$f":"Import!M3440","v":0},{"$f":"Import!M3465","v":0},{"$f":"Import!M3490","v":0},{"$f":"Import!M3515","v":0},{"$f":"Import!M3540","v":0},{"$f":"Import!M3565","v":0},{"$f":"Import!M3590","v":0},{"$f":"Import!M3615","v":0},{"$f":"Import!M3640","v":0},{"$f":"Import!M3665","v":0},{"$f":"Import!M3690","v":0},{"$f":"Import!M3715","v":0},{"$f":"Import!M3740","v":0},{"$f":"Import!M3765","v":0},{"$f":"Import!M3790","v":0},null,0,null,{"$f":"'Schedule IVA'!Q23","v":0},null," - "]
[null,14,"US Professional",null,{"$f":"Import!M3366","v":0},{"$f":"Import!M3391","v":0},{"$f":"Import!M3416","v":0},{"$f":"Import!M3441","v":0},{"$f":"Import!M3466","v":0},{"$f":"Import!M3491","v":0},{"$f":"Import!M3516","v":0},{"$f":"Import!M3541","v":0},{"$f":"Import!M3566","v":0},{"$f":"Import!M3591","v":0},{"$f":"Import!M3616","v":0},{"$f":"Import!M3641","v":0},{"$f":"Import!M3666","v":0},{"$f":"Import!M3691","v":0},{"$f":"Import!M3716","v":0},{"$f":"Import!M3741","v":0},{"$f":"Import!M3766","v":0},{"$f":"Import!M3791","v":0},null,0,null,{"$f":"'Schedule IVA'!Q24","v":0},null," - "]
[null,15,"US Professional Non – Proportional",null,{"$f":"Import!M3367","v":0},{"$f":"Import!M3392","v":0},{"$f":"Import!M3417","v":0},{"$f":"Import!M3442","v":0},{"$f":"Import!M3467","v":0},{"$f":"Import!M3492","v":0},{"$f":"Import!M3517","v":0},{"$f":"Import!M3542","v":0},{"$f":"Import!M3567","v":0},{"$f":"Import!M3592","v":0},{"$f":"Import!M3617","v":0},{"$f":"Import!M3642","v":0},{"$f":"Import!M3667","v":0},{"$f":"Import!M3692","v":0},{"$f":"Import!M3717","v":0},{"$f":"Import!M3742","v":0},{"$f":"Import!M3767","v":0},{"$f":"Import!M3792","v":0},null,0,null,{"$f":"'Schedule IVA'!Q25","v":0},null," - "]
[null,16,"US Specialty ",null,{"$f":"Import!M3368","v":0},{"$f":"Import!M3393","v":0},{"$f":"Import!M3418","v":0},{"$f":"Import!M3443","v":0},{"$f":"Import!M3468","v":0},{"$f":"Import!M3493","v":0},{"$f":"Import!M3518","v":0},{"$f":"Import!M3543","v":0},{"$f":"Import!M3568","v":0},{"$f":"Import!M3593","v":0},{"$f":"Import!M3618","v":0},{"$f":"Import!M3643","v":0},{"$f":"Import!M3668","v":0},{"$f":"Import!M3693","v":0},{"$f":"Import!M3718","v":0},{"$f":"Import!M3743","v":0},{"$f":"Import!M3768","v":0},{"$f":"Import!M3793","v":0},null,0,null,{"$f":"'Schedule IVA'!Q26","v":0},null," - "]
[null,17,"US Specialty Non - Proportional",null,{"$f":"Import!M3369","v":0},{"$f":"Import!M3394","v":0},{"$f":"Import!M3419","v":0},{"$f":"Import!M3444","v":0},{"$f":"Import!M3469","v":0},{"$f":"Import!M3494","v":0},{"$f":"Import!M3519","v":0},{"$f":"Import!M3544","v":0},{"$f":"Import!M3569","v":0},{"$f":"Import!M3594","v":0},{"$f":"Import!M3619","v":0},{"$f":"Import!M3644","v":0},{"$f":"Import!M3669","v":0},{"$f":"Import!M3694","v":0},{"$f":"Import!M3719","v":0},{"$f":"Import!M3744","v":0},{"$f":"Import!M3769","v":0},{"$f":"Import!M3794","v":0},null,0,null,{"$f":"'Schedule IVA'!Q27","v":0},null," - "]
[null,18,"International Motor ",null,{"$f":"Import!M3370","v":0},{"$f":"Import!M3395","v":0},{"$f":"Import!M3420","v":0},{"$f":"Import!M3445","v":0},{"$f":"Import!M3470","v":0},{"$f":"Import!M3495","v":0},{"$f":"Import!M3520","v":0},{"$f":"Import!M3545","v":0},{"$f":"Import!M3570","v":0},{"$f":"Import!M3595","v":0},{"$f":"Import!M3620","v":0},{"$f":"Import!M3645","v":0},{"$f":"Import!M3670","v":0},{"$f":"Import!M3695","v":0},{"$f":"Import!M3720","v":0},{"$f":"Import!M3745","v":0},{"$f":"Import!M3770","v":0},{"$f":"Import!M3795","v":0},null,0,null,{"$f":"'Schedule IVA'!Q28","v":0},null," - "]
[null,19,"International Motor Non – Proportional",null,{"$f":"Import!M3371","v":0},{"$f":"Import!M3396","v":0},{"$f":"Import!M3421","v":0},{"$f":"Import!M3446","v":0},{"$f":"Import!M3471","v":0},{"$f":"Import!M3496","v":0},{"$f":"Import!M3521","v":0},{"$f":"Import!M3546","v":0},{"$f":"Import!M3571","v":0},{"$f":"Import!M3596","v":0},{"$f":"Import!M3621","v":0},{"$f":"Import!M3646","v":0},{"$f":"Import!M3671","v":0},{"$f":"Import!M3696","v":0},{"$f":"Import!M3721","v":0},{"$f":"Import!M3746","v":0},{"$f":"Import!M3771","v":0},{"$f":"Import!M3796","v":0},null,0,null,{"$f":"'Schedule IVA'!Q29","v":0},null," - "]
[null,20,"International Casualty Non – Motor ",null,{"$f":"Import!M3372","v":0},{"$f":"Import!M3397","v":0},{"$f":"Import!M3422","v":0},{"$f":"Import!M3447","v":0},{"$f":"Import!M3472","v":0},{"$f":"Import!M3497","v":0},{"$f":"Import!M3522","v":0},{"$f":"Import!M3547","v":0},{"$f":"Import!M3572","v":0},{"$f":"Import!M3597","v":0},{"$f":"Import!M3622","v":0},{"$f":"Import!M3647","v":0},{"$f":"Import!M3672","v":0},{"$f":"Import!M3697","v":0},{"$f":"Import!M3722","v":0},{"$f":"Import!M3747","v":0},{"$f":"Import!M3772","v":0},{"$f":"Import!M3797","v":0},null,0,null,{"$f":"'Schedule IVA'!Q30","v":0},null," - "]
[null,21,"International Casualty Non Motor Non – Proportional ",null,{"$f":"Import!M3373","v":0},{"$f":"Import!M3398","v":0},{"$f":"Import!M3423","v":0},{"$f":"Import!M3448","v":0},{"$f":"Import!M3473","v":0},{"$f":"Import!M3498","v":0},{"$f":"Import!M3523","v":0},{"$f":"Import!M3548","v":0},{"$f":"Import!M3573","v":0},{"$f":"Import!M3598","v":0},{"$f":"Import!M3623","v":0},{"$f":"Import!M3648","v":0},{"$f":"Import!M3673","v":0},{"$f":"Import!M3698","v":0},{"$f":"Import!M3723","v":0},{"$f":"Import!M3748","v":0},{"$f":"Import!M3773","v":0},{"$f":"Import!M3798","v":0},null,0,null,{"$f":"'Schedule IVA'!Q31","v":0},null," - "]
[null,22,"Retro Property",null,{"$f":"Import!M3374","v":0},{"$f":"Import!M3399","v":0},{"$f":"Import!M3424","v":0},{"$f":"Import!M3449","v":0},{"$f":"Import!M3474","v":0},{"$f":"Import!M3499","v":0},{"$f":"Import!M3524","v":0},{"$f":"Import!M3549","v":0},{"$f":"Import!M3574","v":0},{"$f":"Import!M3599","v":0},{"$f":"Import!M3624","v":0},{"$f":"Import!M3649","v":0},{"$f":"Import!M3674","v":0},{"$f":"Import!M3699","v":0},{"$f":"Import!M3724","v":0},{"$f":"Import!M3749","v":0},{"$f":"Import!M3774","v":0},{"$f":"Import!M3799","v":0},null,0,null,{"$f":"'Schedule IVA'!Q32","v":0},null," - "]
[null,23,"Structured / Finite Reinsurance",null,{"$f":"Import!M3375","v":0},{"$f":"Import!M3400","v":0},{"$f":"Import!M3425","v":0},{"$f":"Import!M3450","v":0},{"$f":"Import!M3475","v":0},{"$f":"Import!M3500","v":0},{"$f":"Import!M3525","v":0},{"$f":"Import!M3550","v":0},{"$f":"Import!M3575","v":0},{"$f":"Import!M3600","v":0},{"$f":"Import!M3625","v":0},{"$f":"Import!M3650","v":0},{"$f":"Import!M3675","v":0},{"$f":"Import!M3700","v":0},{"$f":"Import!M3725","v":0},{"$f":"Import!M3750","v":0},{"$f":"Import!M3775","v":0},{"$f":"Import!M3800","v":0},null,0,null,{"$f":"'Schedule IVA'!Q33","v":0},null," - "]
[null,24,"Health",null,{"$f":"Import!M3376","v":0},{"$f":"Import!M3401","v":0},{"$f":"Import!M3426","v":0},{"$f":"Import!M3451","v":0},{"$f":"Import!M3476","v":0},{"$f":"Import!M3501","v":0},{"$f":"Import!M3526","v":0},{"$f":"Import!M3551","v":0},{"$f":"Import!M3576","v":0},{"$f":"Import!M3601","v":0},{"$f":"Import!M3626","v":0},{"$f":"Import!M3651","v":0},{"$f":"Import!M3676","v":0},{"$f":"Import!M3701","v":0},{"$f":"Import!M3726","v":0},{"$f":"Import!M3751","v":0},{"$f":"Import!M3776","v":0},{"$f":"Import!M3801","v":0},null,{"$f":"SUM(E32:V32)","v":0},null,{"$f":"'Schedule IVA'!Q34","v":0},null," - "]
[null,25,"Total ",null,{"$f":"SUM(E9:E32)","v":0},{"$f":"SUM(F9:F32)","v":0},0,0,0,0,0,0,0,0,0,0,0,0,0,0,0,0,null,0,null,{"$f":"SUM(Z9:Z32)","v":0}]

{"sheet":"Schedule IVD","index":39,"n_rows":46,"n_cols":19,"rows_kept":46,"cut":false,"hidden":false,"merged":[[4,16,5,16],[4,14,5,14],[1,1,1,2],[4,10,5,10],[4,6,5,6],[4,12,5,12],[4,4,5,4],[4,8,5,8]]}
[null,"SCHEDULE OF EXPOSURE MEASURE BY LINE OF BUSINESS",null,null,null,null,null,null,null,null,null,null,null,null,null,null,null,null,{"$f":"HYPERLINK(\"#'Index'!A1\",\"Return to Index\")","v":"Return to Index"}]
[null,{"$f":"'Company Information'!C7","v":"Enter Company Name"}]
[null,{"$f":"\"For the year ending \"&TEXT('Company Information'!C3,\"dd MMMM YYYY\")","v":"For the year ending 31 December 2022"},null,null,null,null,null,null,null,null,null,null,null,null,null,null,null,null,"SCHEDULE IV(D)"]
[null,{"$f":"\"expressed in\"& IF(CONFIGURATION!$B$12>1,\" ['\"&MID(CONFIGURATION!$B$12,2,LEN(CONFIGURATION!$B$12))&\"s]\",\"\")&\" \"&'Form 1SFS (Consolidated)'!C5","v":"expressed in ['000s] United States Dollars"},null,null,"(A)",null,"(B)",null,"(C)",null,"(D)",null,"(E)",null,"(F)",null,"(G)",null,"(H)"]
[null,null,null,null,"Net Premiums Written",null,"Est. of Net Earned Premiums for Next 12 Months",null,"Net Base Exposure",null,"Net FP (Exisiting) ",null,"Net FP (Future) ",null,"Net Premium Exposure Measure",null,"Gross Premium Exposure Measure",null,"Geo NPE"]
[null,"Schedule ",null,null,null,null,null,null,null,null,null,null,null,null,null,null,null,null,"Geo Net Exp Mea"]
[null,"Line no. ",null,null,{"$f":"'Form 1SFS (Consolidated)'!$M$9","v":"2022-12-31"},null,{"$f":"'Form 1SFS (Consolidated)'!$M$9+1","v":"2023-01-01"},null,{"$f":"'Form 1SFS (Consolidated)'!$M$9+1","v":"2023-01-01"},null,{"$f":"'Form 1SFS (Consolidated)'!$M$9+1","v":"2023-01-01"},null,{"$f":"'Form 1SFS (Consolidated)'!$M$9+1","v":"2023-01-01"},null,{"$f":"'Form 1SFS (Consolidated)'!$M$9+1","v":"2023-01-01"},null,{"$f":"'Form 1SFS (Consolidated)'!$M$9+1","v":"2023-01-01"},null,{"$f":"'Form 1SFS (Consolidated)'!$M$9+1","v":"2023-01-01"}]
[null,null,null,null,{"$f":"CONFIGURATION!$D$12","v":" ('000s)"},null,{"$f":"CONFIGURATION!$D$12","v":" ('000s)"},null,{"$f":"CONFIGURATION!$D$12","v":" ('000s)"},null,{"$f":"CONFIGURATION!$D$12","v":" ('000s)"},null,{"$f":"CONFIGURATION!$D$12","v":" ('000s)"},null,{"$f":"CONFIGURATION!$D$12","v":" ('000s)"},null,{"$f":"CONFIGURATION!$D$12","v":" ('000s)"},null,{"$f":"CONFIGURATION!$D$12","v":" ('000s)"}]
[null,1,"Property Catastrophe",null,{"$f":"'Schedule IVA'!Q11","v":0},null,{"$f":"Import!M3804","v":0},null,{"$f":"IF($E$33>$G$33,E9,G9)","v":0},null,{"$f":"Import!M3829","v":0},null,{"$f":"Import!M3854","v":0},null,{"$f":"SUM(I9:M9)","v":0},null,{"$f":"Import!M3879","v":0},null,{"$f":"'Schedule IVE'!X9","v":0}]
[null,2,"Property",null,{"$f":"'Schedule IVA'!Q12","v":0},null,{"$f":"Import!M3805","v":0},null,{"$f":"IF($E$33>$G$33,E10,G10)","v":0},null,{"$f":"Import!M3830","v":0},null,{"$f":"Import!M3855","v":0},null,{"$f":"SUM(I10:M10)","v":0},null,{"$f":"Import!M3880","v":0},null,{"$f":"'Schedule IVE'!X10","v":0}]
[null,3,"Property Non – Proportional",null,{"$f":"'Schedule IVA'!Q13","v":0},null,{"$f":"Import!M3806","v":0},null,0,null,{"$f":"Import!M3831","v":0},null,{"$f":"Import!M3856","v":0},null,0,null,{"$f":"Import!M3881","v":0},null,{"$f":"'Schedule IVE'!X11","v":0}]
[null,4,"Personal Accident",null,{"$f":"'Schedule IVA'!Q14","v":0},null,{"$f":"Import!M3807","v":0},null,0,null,{"$f":"Import!M3832","v":0},null,{"$f":"Import!M3857","v":0},null,0,null,{"$f":"Import!M3882","v":0},null,{"$f":"'Schedule IVE'!X12","v":0}]
[null,5,"Personal Accident Non- Proportional",null,{"$f":"'Schedule IVA'!Q15","v":0},null,{"$f":"Import!M3808","v":0},null,0,null,{"$f":"Import!M3833","v":0},null,{"$f":"Import!M3858","v":0},null,0,null,{"$f":"Import!M3883","v":0},null,{"$f":"'Schedule IVE'!X13","v":0}]
[null,6,"Aviation",null,{"$f":"'Schedule IVA'!Q16","v":0},null,{"$f":"Import!M3809","v":0},null,0,null,{"$f":"Import!M3834","v":0},null,{"$f":"Import!M3859","v":0},null,0,null,{"$f":"Import!M3884","v":0},null,{"$f":"'Schedule IVE'!X14","v":0}]
[null,7,"Aviation Non – Proportional",null,{"$f":"'Schedule IVA'!Q17","v":0},null,{"$f":"Import!M3810","v":0},null,0,null,{"$f":"Import!M3835","v":0},null,{"$f":"Import!M3860","v":0},null,0,null,{"$f":"Import!M3885","v":0},null,{"$f":"'Schedule IVE'!X15","v":0}]
[null,8,"Credit / Surety ",null,{"$f":"'Schedule IVA'!Q18","v":0},null,{"$f":"Import!M3811","v":0},null,0,null,{"$f":"Import!M3836","v":0},null,{"$f":"Import!M3861","v":0},null,0,null,{"$f":"Import!M3886","v":0},null,{"$f":"'Schedule IVE'!X16","v":0}]
[null,9,"Credit / Surety Non – Proportional",null,{"$f":"'Schedule IVA'!Q19","v":0},null,{"$f":"Import!M3812","v":0},null,0,null,{"$f":"Import!M3837","v":0},null,{"$f":"Import!M3862","v":0},null,0,null,{"$f":"Import!M3887","v":0},null,{"$f":"'Schedule IVE'!X17","v":0}]
[null,10,"Energy Offshore / Marine",null,{"$f":"'Schedule IVA'!Q20","v":0},null,{"$f":"Import!M3813","v":0},null,0,null,{"$f":"Import!M3838","v":0},null,{"$f":"Import!M3863","v":0},null,0,null,{"$f":"Import!M3888","v":0},null,{"$f":"'Schedule IVE'!X18","v":0}]
[null,11,"Energy Offshore / Marine Non - Proportional ","  ",{"$f":"'Schedule IVA'!Q21","v":0},null,{"$f":"Import!M3814","v":0},null,0,null,{"$f":"Import!M3839","v":0},null,{"$f":"Import!M3864","v":0},null,0,null,{"$f":"Import!M3889","v":0},null,{"$f":"'Schedule IVE'!X19","v":0}]
[null,12,"US Casualty",null,{"$f":"'Schedule IVA'!Q22","v":0},null,{"$f":"Import!M3815","v":0},null,0,null,{"$f":"Import!M3840","v":0},null,{"$f":"Import!M3865","v":0},null,0,null,{"$f":"Import!M3890","v":0},null,{"$f":"'Schedule IVE'!X20","v":0}]
[null,13,"US Casualty Non - Proportional ",null,{"$f":"'Schedule IVA'!Q23","v":0},null,{"$f":"Import!M3816","v":0},null,0,null,{"$f":"Import!M3841","v":0},null,{"$f":"Import!M3866","v":0},null,0,null,{"$f":"Import!M3891","v":0},null,{"$f":"'Schedule IVE'!X21","v":0}]
[null,14,"US Professional",null,{"$f":"'Schedule IVA'!Q24","v":0},null,{"$f":"Import!M3817","v":0},null,0,null,{"$f":"Import!M3842","v":0},null,{"$f":"Import!M3867","v":0},null,0,null,{"$f":"Import!M3892","v":0},null,{"$f":"'Schedule IVE'!X22","v":0}]
[null,15,"US Professional Non – Proportional",null,{"$f":"'Schedule IVA'!Q25","v":0},null,{"$f":"Import!M3818","v":0},null,0,null,{"$f":"Import!M3843","v":0},null,{"$f":"Import!M3868","v":0},null,0,null,{"$f":"Import!M3893","v":0},null,{"$f":"'Schedule IVE'!X23","v":0}]
[null,16,"US Specialty ",null,{"$f":"'Schedule IVA'!Q26","v":0},null,{"$f":"Import!M3819","v":0},null,0,null,{"$f":"Import!M3844","v":0},null,{"$f":"Import!M3869","v":0},null,0,null,{"$f":"Import!M3894","v":0},null,{"$f":"'Schedule IVE'!X24","v":0}]
[null,17,"US Specialty Non - Proportional",null,{"$f":"'Schedule IVA'!Q27","v":0},null,{"$f":"Import!M3820","v":0},null,0,null,{"$f":"Import!M3845","v":0},null,{"$f":"Import!M3870","v":0},null,0,null,{"$f":"Import!M3895","v":0},null,{"$f":"'Schedule IVE'!X25","v":0}]
[null,18,"International Motor ",null,{"$f":"'Schedule IVA'!Q28","v":0},null,{"$f":"Import!M3821","v":0},null,0,null,{"$f":"Import!M3846","v":0},null,{"$f":"Import!M3871","v":0},null,0,null,{"$f":"Import!M3896","v":0},null,{"$f":"'Schedule IVE'!X26","v":0}]
[null,19,"International Motor Non – Proportional",null,{"$f":"'Schedule IVA'!Q29","v":0},null,{"$f":"Import!M3822","v":0},null,0,null,{"$f":"Import!M3847","v":0},null,{"$f":"Import!M3872","v":0},null,0,null,{"$f":"Import!M3897","v":0},null,{"$f":"'Schedule IVE'!X27","v":0}]
[null,20,"International Casualty Non – Motor ",null,{"$f":"'Schedule IVA'!Q30","v":0},null,{"$f":"Import!M3823","v":0},null,0,null,{"$f":"Import!M3848","v":0},null,{"$f":"Import!M3873","v":0},null,0,null,{"$f":"Import!M3898","v":0},null,{"$f":"'Schedule IVE'!X28","v":0}]
[null,21,"International Casualty Non Motor Non – Proportional ",null,{"$f":"'Schedule IVA'!Q31","v":0},null,{"$f":"Import!M3824","v":0},null,0,null,{"$f":"Import!M3849","v":0},null,{"$f":"Import!M3874","v":0},null,0,null,{"$f":"Import!M3899","v":0},null,{"$f":"'Schedule IVE'!X29","v":0}]
[null,22,"Retro Property",null,{"$f":"'Schedule IVA'!Q32","v":0},null,{"$f":"Import!M3825","v":0},null,0,null,{"$f":"Import!M3850","v":0},null,{"$f":"Import!M3875","v":0},null,0,null,{"$f":"Import!M3900","v":0},null,{"$f":"'Schedule IVE'!X30","v":0}]
[null,23,"Structured / Finite Reinsurance",null,{"$f":"'Schedule IVA'!Q33","v":0},null,{"$f":"Import!M3826","v":0},null,0,null,{"$f":"Import!M3851","v":0},null,{"$f":"Import!M3876","v":0},null,0,null,{"$f":"Import!M3901","v":0},null,{"$f":"'Schedule IVE'!X31","v":0}]
[null,24,"Health",null,{"$f":"'Schedule IVA'!Q34","v":0},null,{"$f":"Import!M3827","v":0},null,0,null,{"$f":"Import!M3852","v":0},null,{"$f":"Import!M3877","v":0},null,0,null,{"$f":"Import!M3902","v":0},null,{"$f":"'Schedule IVE'!X32","v":0}]
[null,25,"Total ",null,{"$f":"SUM(E9:E32)","v":0},null,{"$f":"SUM(G9:G32)","v":0},null,{"$f":"SUM(I9:I32)","v":0},null,{"$f":"SUM(K9:K32)","v":0},null,{"$f":"SUM(M9:M32)","v":0},null,{"$f":"SUM(O9:O32)","v":0},null,{"$f":"SUM(Q9:Q32)","v":0},null,{"$f":"SUM(S9:S32)","v":0}]
[]
[null,null,"Details of Premiums Ceded"]
[null,26,"Gross Exposure Measure",null,{"$f":"Q33","v":0}]
[null,27,"Net Exposure Measure",null,{"$f":"O33","v":0}]
[null,28,"Ceded Exposure Measure",null,{"$f":"E36-E37","v":0}]
[]
[null,"*Exposure Measure is to include:"]
[null,"1. Base Exposure shall be the greater of:"]
[null,"(a) Estimate of the net premiums to be earned by the insurer during the next 12 months accounting period;"]
[null,"(b) Net Premiums Written for the reporting period."]
[null,"2. Include Multi-year exposure for:"]
[null,"(a) FP (Exisiting) - shall include the expected present value of premiums to be earned by the insurer after the next 12 months accounting period for existing contracts"]
[null,"(b) FP (future) - The expected present value of net premiums to be earned by the insurer after the next 12 month accounting period for contracts where the initial recognition date falls in the following 12 months."]

{"sheet":"Schedule IVE","index":40,"n_rows":33,"n_cols":28,"rows_kept":33,"cut":false,"hidden":false,"merged":[[1,1,1,2]]}
[null,"SCHEDULE OF GEOGRAPHIC DIVERSIFICATION OF NET EXPOSURE MEASURE",null,null,null,null,null,null,null,null,null,null,null,null,null,null,null,null,null,null,null,null,null,null,null,{"$f":"HYPERLINK(\"#'Index'!A1\",\"Return to Index\")","v":"Return to Index"}]
[null,{"$f":"'Company Information'!C7","v":"Enter Company Name"}]
[null,{"$f":"\"For the year ending \"&TEXT('Company Information'!C3,\"dd MMMM YYYY\")","v":"For the year ending 31 December 2022"},null,null,null,null,null,null,null,null,null,null,null,null,null,null,null,null,null,null,null,null,null,null,null,"SCHEDULE IV(E) "]
[null,{"$f":"\"expressed in\"& IF(CONFIGURATION!$B$12>1,\" ['\"&MID(CONFIGURATION!$B$12,2,LEN(CONFIGURATION!$B$12))&\"s]\",\"\")&\" \"&'Form 1SFS (Consolidated)'!C5","v":"expressed in ['000s] United States Dollars"},null,null,null,null,null,null,null,null,null,null,null,null,null,null,null,null,null,null,null,null,null,{"$f":"\"Confirmation that \"&B2& \" Is Taking Advantage of Geographic Diversification of Premiums\"","v":"Confirmation that Enter Company Name Is Taking Advantage of Geographic Diversification of Premiums"},null,"Yes"]
[null,null,null,null,{"$f":"HYPERLINK(\"#'Zones'!c4\",\"Zone 1\")","v":"Zone 1"},{"$f":"HYPERLINK(\"#'Zones'!c13\",\"Zone 2\")","v":"Zone 2"},{"$f":"HYPERLINK(\"#'Zones'!c18\",\"Zone 3\")","v":"Zone 3"},{"$f":"HYPERLINK(\"#'Zones'!c26\",\"Zone 4\")","v":"Zone 4"},{"$f":"HYPERLINK(\"#'Zones'!c36\",\"Zone 5\")","v":"Zone 5"},{"$f":"HYPERLINK(\"#'Zones'!c46\",\"Zone 6\")","v":"Zone 6"},{"$f":"HYPERLINK(\"#'Zones'!c57\",\"Zone 7\")","v":"Zone 7"},{"$f":"HYPERLINK(\"#'Zones'!c68\",\"Zone 8\")","v":"Zone 8"},{"$f":"HYPERLINK(\"#'Zones'!c76\",\"Zone 9\")","v":"Zone 9"},{"$f":"HYPERLINK(\"#'Zones'!c84\",\"Zone 10\")","v":"Zone 10"},{"$f":"HYPERLINK(\"#'Zones'!c90\",\"Zone 11\")","v":"Zone 11"},{"$f":"HYPERLINK(\"#'Zones'!c94\",\"Zone 12\")","v":"Zone 12"},{"$f":"HYPERLINK(\"#'Zones'!c107\",\"Zone 13\")","v":"Zone 13"},{"$f":"HYPERLINK(\"#'Zones'!c112\",\"Zone 14\")","v":"Zone 14"},{"$f":"HYPERLINK(\"#'Zones'!c116\",\"Zone 15\")","v":"Zone 15"},{"$f":"HYPERLINK(\"#'Zones'!c121\",\"Zone 16\")","v":"Zone 16"},{"$f":"HYPERLINK(\"#'Zones'!c127\",\"Zone 17\")","v":"Zone 17"},{"$f":"HYPERLINK(\"#'Zones'!c133\",\"Zone 18\")","v":"Zone 18"},null,"Geo Net Exp Mea",null,"Total Net Exp"]
[null,"Schedule "]
[]
[null,"Line no. ",null,null,{"$f":"CONFIGURATION!$D$12","v":" ('000s)"},{"$f":"CONFIGURATION!$D$12","v":" ('000s)"},{"$f":"CONFIGURATION!$D$12","v":" ('000s)"},{"$f":"CONFIGURATION!$D$12","v":" ('000s)"},{"$f":"CONFIGURATION!$D$12","v":" ('000s)"},{"$f":"CONFIGURATION!$D$12","v":" ('000s)"},{"$f":"CONFIGURATION!$D$12","v":" ('000s)"},{"$f":"CONFIGURATION!$D$12","v":" ('000s)"},{"$f":"CONFIGURATION!$D$12","v":" ('000s)"},{"$f":"CONFIGURATION!$D$12","v":" ('000s)"},{"$f":"CONFIGURATION!$D$12","v":" ('000s)"},{"$f":"CONFIGURATION!$D$12","v":" ('000s)"},{"$f":"CONFIGURATION!$D$12","v":" ('000s)"},{"$f":"CONFIGURATION!$D$12","v":" ('000s)"},{"$f":"CONFIGURATION!$D$12","v":" ('000s)"},{"$f":"CONFIGURATION!$D$12","v":" ('000s)"},{"$f":"CONFIGURATION!$D$12","v":" ('000s)"},{"$f":"CONFIGURATION!$D$12","v":" ('000s)"},null,{"$f":"CONFIGURATION!$D$12","v":" ('000s)"},null,{"$f":"CONFIGURATION!$D$12","v":" ('000s)"}]
[null,1,"Property Catastrophe",null,{"$f":"Import!M3905","v":0},{"$f":"Import!M3930","v":0},{"$f":"Import!M3955","v":0},{"$f":"Import!M3980","v":0},{"$f":"Import!M4005","v":0},{"$f":"Import!M4030","v":0},{"$f":"Import!M4055","v":0},{"$f":"Import!M4080","v":0},{"$f":"Import!M4105","v":0},{"$f":"Import!M4130","v":0},{"$f":"Import!M4155","v":0},{"$f":"Import!M4180","v":0},{"$f":"Import!M4205","v":0},{"$f":"Import!M4230","v":0},{"$f":"Import!M4255","v":0},{"$f":"Import!M4280","v":0},{"$f":"Import!M4305","v":0},{"$f":"Import!M4330","v":0},null,{"$f":"SUM(E9:V9)","v":0},null,{"$f":"'Schedule IVD'!O9","v":0},null,{"$f":"IF($Z$4=\"Yes\",IF(X9=0,\" - \",IF(ROUND(SUM(X9-Z9),0)=0,\"TRUE\",\"FALSE\")),\"N/A\")","v":" - "}]
[null,2,"Property",null,{"$f":"Import!M3906","v":0},{"$f":"Import!M3931","v":0},{"$f":"Import!M3956","v":0},{"$f":"Import!M3981","v":0},{"$f":"Import!M4006","v":0},{"$f":"Import!M4031","v":0},{"$f":"Import!M4056","v":0},{"$f":"Import!M4081","v":0},{"$f":"Import!M4106","v":0},{"$f":"Import!M4131","v":0},{"$f":"Import!M4156","v":0},{"$f":"Import!M4181","v":0},{"$f":"Import!M4206","v":0},{"$f":"Import!M4231","v":0},{"$f":"Import!M4256","v":0},{"$f":"Import!M4281","v":0},{"$f":"Import!M4306","v":0},{"$f":"Import!M4331","v":0},null,{"$f":"SUM(E10:V10)","v":0},null,{"$f":"'Schedule IVD'!O10","v":0},null,{"$f":"IF($Z$4=\"Yes\",IF(X10=0,\" - \",IF(ROUND(SUM(X10-Z10),0)=0,\"TRUE\",\"FALSE\")),\"N/A\")","v":" - "}]
[null,3,"Property Non – Proportional",null,{"$f":"Import!M3907","v":0},{"$f":"Import!M3932","v":0},{"$f":"Import!M3957","v":0},{"$f":"Import!M3982","v":0},{"$f":"Import!M4007","v":0},{"$f":"Import!M4032","v":0},{"$f":"Import!M4057","v":0},{"$f":"Import!M4082","v":0},{"$f":"Import!M4107","v":0},{"$f":"Import!M4132","v":0},{"$f":"Import!M4157","v":0},{"$f":"Import!M4182","v":0},{"$f":"Import!M4207","v":0},{"$f":"Import!M4232","v":0},{"$f":"Import!M4257","v":0},{"$f":"Import!M4282","v":0},{"$f":"Import!M4307","v":0},{"$f":"Import!M4332","v":0},null,0,null,{"$f":"'Schedule IVD'!O11","v":0},null," - "]
[null,4,"Personal Accident",null,{"$f":"Import!M3908","v":0},{"$f":"Import!M3933","v":0},{"$f":"Import!M3958","v":0},{"$f":"Import!M3983","v":0},{"$f":"Import!M4008","v":0},{"$f":"Import!M4033","v":0},{"$f":"Import!M4058","v":0},{"$f":"Import!M4083","v":0},{"$f":"Import!M4108","v":0},{"$f":"Import!M4133","v":0},{"$f":"Import!M4158","v":0},{"$f":"Import!M4183","v":0},{"$f":"Import!M4208","v":0},{"$f":"Import!M4233","v":0},{"$f":"Import!M4258","v":0},{"$f":"Import!M4283","v":0},{"$f":"Import!M4308","v":0},{"$f":"Import!M4333","v":0},null,0,null,{"$f":"'Schedule IVD'!O12","v":0},null," - "]
[null,5,"Personal Accident Non- Proportional",null,{"$f":"Import!M3909","v":0},{"$f":"Import!M3934","v":0},{"$f":"Import!M3959","v":0},{"$f":"Import!M3984","v":0},{"$f":"Import!M4009","v":0},{"$f":"Import!M4034","v":0},{"$f":"Import!M4059","v":0},{"$f":"Import!M4084","v":0},{"$f":"Import!M4109","v":0},{"$f":"Import!M4134","v":0},{"$f":"Import!M4159","v":0},{"$f":"Import!M4184","v":0},{"$f":"Import!M4209","v":0},{"$f":"Import!M4234","v":0},{"$f":"Import!M4259","v":0},{"$f":"Import!M4284","v":0},{"$f":"Import!M4309","v":0},{"$f":"Import!M4334","v":0},null,0,null,{"$f":"'Schedule IVD'!O13","v":0},null," - "]
[null,6,"Aviation",null,{"$f":"Import!M3910","v":0},{"$f":"Import!M3935","v":0},{"$f":"Import!M3960","v":0},{"$f":"Import!M3985","v":0},{"$f":"Import!M4010","v":0},{"$f":"Import!M4035","v":0},{"$f":"Import!M4060","v":0},{"$f":"Import!M4085","v":0},{"$f":"Import!M4110","v":0},{"$f":"Import!M4135","v":0},{"$f":"Import!M4160","v":0},{"$f":"Import!M4185","v":0},{"$f":"Import!M4210","v":0},{"$f":"Import!M4235","v":0},{"$f":"Import!M4260","v":0},{"$f":"Import!M4285","v":0},{"$f":"Import!M4310","v":0},{"$f":"Import!M4335","v":0},null,0,null,{"$f":"'Schedule IVD'!O14","v":0},null," - "]
[null,7,"Aviation Non – Proportional",null,{"$f":"Import!M3911","v":0},{"$f":"Import!M3936","v":0},{"$f":"Import!M3961","v":0},{"$f":"Import!M3986","v":0},{"$f":"Import!M4011","v":0},{"$f":"Import!M4036","v":0},{"$f":"Import!M4061","v":0},{"$f":"Import!M4086","v":0},{"$f":"Import!M4111","v":0},{"$f":"Import!M4136","v":0},{"$f":"Import!M4161","v":0},{"$f":"Import!M4186","v":0},{"$f":"Import!M4211","v":0},{"$f":"Import!M4236","v":0},{"$f":"Import!M4261","v":0},{"$f":"Import!M4286","v":0},{"$f":"Import!M4311","v":0},{"$f":"Import!M4336","v":0},null,0,null,{"$f":"'Schedule IVD'!O15","v":0},null," - "]
[null,8,"Credit / Surety ",null,{"$f":"Import!M3912","v":0},{"$f":"Import!M3937","v":0},{"$f":"Import!M3962","v":0},{"$f":"Import!M3987","v":0},{"$f":"Import!M4012","v":0},{"$f":"Import!M4037","v":0},{"$f":"Import!M4062","v":0},{"$f":"Import!M4087","v":0},{"$f":"Import!M4112","v":0},{"$f":"Import!M4137","v":0},{"$f":"Import!M4162","v":0},{"$f":"Import!M4187","v":0},{"$f":"Import!M4212","v":0},{"$f":"Import!M4237","v":0},{"$f":"Import!M4262","v":0},{"$f":"Import!M4287","v":0},{"$f":"Import!M4312","v":0},{"$f":"Import!M4337","v":0},null,0,null,{"$f":"'Schedule IVD'!O16","v":0},null," - "]
[null,9,"Credit / Surety Non – Proportional",null,{"$f":"Import!M3913","v":0},{"$f":"Import!M3938","v":0},{"$f":"Import!M3963","v":0},{"$f":"Import!M3988","v":0},{"$f":"Import!M4013","v":0},{"$f":"Import!M4038","v":0},{"$f":"Import!M4063","v":0},{"$f":"Import!M4088","v":0},{"$f":"Import!M4113","v":0},{"$f":"Import!M4138","v":0},{"$f":"Import!M4163","v":0},{"$f":"Import!M4188","v":0},{"$f":"Import!M4213","v":0},{"$f":"Import!M4238","v":0},{"$f":"Import!M4263","v":0},{"$f":"Import!M4288","v":0},{"$f":"Import!M4313","v":0},{"$f":"Import!M4338","v":0},null,0,null,{"$f":"'Schedule IVD'!O17","v":0},null," - "]
[null,10,"Energy Offshore / Marine",null,{"$f":"Import!M3914","v":0},{"$f":"Import!M3939","v":0},{"$f":"Import!M3964","v":0},{"$f":"Import!M3989","v":0},{"$f":"Import!M4014","v":0},{"$f":"Import!M4039","v":0},{"$f":"Import!M4064","v":0},{"$f":"Import!M4089","v":0},{"$f":"Import!M4114","v":0},{"$f":"Import!M4139","v":0},{"$f":"Import!M4164","v":0},{"$f":"Import!M4189","v":0},{"$f":"Import!M4214","v":0},{"$f":"Import!M4239","v":0},{"$f":"Import!M4264","v":0},{"$f":"Import!M4289","v":0},{"$f":"Import!M4314","v":0},{"$f":"Import!M4339","v":0},null,0,null,{"$f":"'Schedule IVD'!O18","v":0},null," - "]
[null,11,"Energy Offshore / Marine Non - Proportional ","  ",{"$f":"Import!M3915","v":0},{"$f":"Import!M3940","v":0},{"$f":"Import!M3965","v":0},{"$f":"Import!M3990","v":0},{"$f":"Import!M4015","v":0},{"$f":"Import!M4040","v":0},{"$f":"Import!M4065","v":0},{"$f":"Import!M4090","v":0},{"$f":"Import!M4115","v":0},{"$f":"Import!M4140","v":0},{"$f":"Import!M4165","v":0},{"$f":"Import!M4190","v":0},{"$f":"Import!M4215","v":0},{"$f":"Import!M4240","v":0},{"$f":"Import!M4265","v":0},{"$f":"Import!M4290","v":0},{"$f":"Import!M4315","v":0},{"$f":"Import!M4340","v":0},null,0,null,{"$f":"'Schedule IVD'!O19","v":0},null," - "]
[null,12,"US Casualty",null,{"$f":"Import!M3916","v":0},{"$f":"Import!M3941","v":0},{"$f":"Import!M3966","v":0},{"$f":"Import!M3991","v":0},{"$f":"Import!M4016","v":0},{"$f":"Import!M4041","v":0},{"$f":"Import!M4066","v":0},{"$f":"Import!M4091","v":0},{"$f":"Import!M4116","v":0},{"$f":"Import!M4141","v":0},{"$f":"Import!M4166","v":0},{"$f":"Import!M4191","v":0},{"$f":"Import!M4216","v":0},{"$f":"Import!M4241","v":0},{"$f":"Import!M4266","v":0},{"$f":"Import!M4291","v":0},{"$f":"Import!M4316","v":0},{"$f":"Import!M4341","v":0},null,0,null,{"$f":"'Schedule IVD'!O20","v":0},null," - "]
[null,13,"US Casualty Non - Proportional ",null,{"$f":"Import!M3917","v":0},{"$f":"Import!M3942","v":0},{"$f":"Import!M3967","v":0},{"$f":"Import!M3992","v":0},{"$f":"Import!M4017","v":0},{"$f":"Import!M4042","v":0},{"$f":"Import!M4067","v":0},{"$f":"Import!M4092","v":0},{"$f":"Import!M4117","v":0},{"$f":"Import!M4142","v":0},{"$f":"Import!M4167","v":0},{"$f":"Import!M4192","v":0},{"$f":"Import!M4217","v":0},{"$f":"Import!M4242","v":0},{"$f":"Import!M4267","v":0},{"$f":"Import!M4292","v":0},{"$f":"Import!M4317","v":0},{"$f":"Import!M4342","v":0},null,0,null,{"$f":"'Schedule IVD'!O21","v":0},null," - "]
[null,14,"US Professional",null,{"$f":"Import!M3918","v":0},{"$f":"Import!M3943","v":0},{"$f":"Import!M3968","v":0},{"$f":"Import!M3993","v":0},{"$f":"Import!M4018","v":0},{"$f":"Import!M4043","v":0},{"$f":"Import!M4068","v":0},{"$f":"Import!M4093","v":0},{"$f":"Import!M4118","v":0},{"$f":"Import!M4143","v":0},{"$f":"Import!M4168","v":0},{"$f":"Import!M4193","v":0},{"$f":"Import!M4218","v":0},{"$f":"Import!M4243","v":0},{"$f":"Import!M4268","v":0},{"$f":"Import!M4293","v":0},{"$f":"Import!M4318","v":0},{"$f":"Import!M4343","v":0},null,0,null,{"$f":"'Schedule IVD'!O22","v":0},null," - "]
[null,15,"US Professional Non – Proportional",null,{"$f":"Import!M3919","v":0},{"$f":"Import!M3944","v":0},{"$f":"Import!M3969","v":0},{"$f":"Import!M3994","v":0},{"$f":"Import!M4019","v":0},{"$f":"Import!M4044","v":0},{"$f":"Import!M4069","v":0},{"$f":"Import!M4094","v":0},{"$f":"Import!M4119","v":0},{"$f":"Import!M4144","v":0},{"$f":"Import!M4169","v":0},{"$f":"Import!M4194","v":0},{"$f":"Import!M4219","v":0},{"$f":"Import!M4244","v":0},{"$f":"Import!M4269","v":0},{"$f":"Import!M4294","v":0},{"$f":"Import!M4319","v":0},{"$f":"Import!M4344","v":0},null,0,null,{"$f":"'Schedule IVD'!O23","v":0},null," - "]
[null,16,"US Specialty ",null,{"$f":"Import!M3920","v":0},{"$f":"Import!M3945","v":0},{"$f":"Import!M3970","v":0},{"$f":"Import!M3995","v":0},{"$f":"Import!M4020","v":0},{"$f":"Import!M4045","v":0},{"$f":"Import!M4070","v":0},{"$f":"Import!M4095","v":0},{"$f":"Import!M4120","v":0},{"$f":"Import!M4145","v":0},{"$f":"Import!M4170","v":0},{"$f":"Import!M4195","v":0},{"$f":"Import!M4220","v":0},{"$f":"Import!M4245","v":0},{"$f":"Import!M4270","v":0},{"$f":"Import!M4295","v":0},{"$f":"Import!M4320","v":0},{"$f":"Import!M4345","v":0},null,0,null,{"$f":"'Schedule IVD'!O24","v":0},null," - "]
[null,17,"US Specialty Non - Proportional",null,{"$f":"Import!M3921","v":0},{"$f":"Import!M3946","v":0},{"$f":"Import!M3971","v":0},{"$f":"Import!M3996","v":0},{"$f":"Import!M4021","v":0},{"$f":"Import!M4046","v":0},{"$f":"Import!M4071","v":0},{"$f":"Import!M4096","v":0},{"$f":"Import!M4121","v":0},{"$f":"Import!M4146","v":0},{"$f":"Import!M4171","v":0},{"$f":"Import!M4196","v":0},{"$f":"Import!M4221","v":0},{"$f":"Import!M4246","v":0},{"$f":"Import!M4271","v":0},{"$f":"Import!M4296","v":0},{"$f":"Import!M4321","v":0},{"$f":"Import!M4346","v":0},null,0,null,{"$f":"'Schedule IVD'!O25","v":0},null," - "]
[null,18,"International Motor ",null,{"$f":"Import!M3922","v":0},{"$f":"Import!M3947","v":0},{"$f":"Import!M3972","v":0},{"$f":"Import!M3997","v":0},{"$f":"Import!M4022","v":0},{"$f":"Import!M4047","v":0},{"$f":"Import!M4072","v":0},{"$f":"Import!M4097","v":0},{"$f":"Import!M4122","v":0},{"$f":"Import!M4147","v":0},{"$f":"Import!M4172","v":0},{"$f":"Import!M4197","v":0},{"$f":"Import!M4222","v":0},{"$f":"Import!M4247","v":0},{"$f":"Import!M4272","v":0},{"$f":"Import!M4297","v":0},{"$f":"Import!M4322","v":0},{"$f":"Import!M4347","v":0},null,0,null,{"$f":"'Schedule IVD'!O26","v":0},null," - "]
[null,19,"International Motor Non – Proportional",null,{"$f":"Import!M3923","v":0},{"$f":"Import!M3948","v":0},{"$f":"Import!M3973","v":0},{"$f":"Import!M3998","v":0},{"$f":"Import!M4023","v":0},{"$f":"Import!M4048","v":0},{"$f":"Import!M4073","v":0},{"$f":"Import!M4098","v":0},{"$f":"Import!M4123","v":0},{"$f":"Import!M4148","v":0},{"$f":"Import!M4173","v":0},{"$f":"Import!M4198","v":0},{"$f":"Import!M4223","v":0},{"$f":"Import!M4248","v":0},{"$f":"Import!M4273","v":0},{"$f":"Import!M4298","v":0},{"$f":"Import!M4323","v":0},{"$f":"Import!M4348","v":0},null,0,null,{"$f":"'Schedule IVD'!O27","v":0},null," - "]
[null,20,"International Casualty Non – Motor ",null,{"$f":"Import!M3924","v":0},{"$f":"Import!M3949","v":0},{"$f":"Import!M3974","v":0},{"$f":"Import!M3999","v":0},{"$f":"Import!M4024","v":0},{"$f":"Import!M4049","v":0},{"$f":"Import!M4074","v":0},{"$f":"Import!M4099","v":0},{"$f":"Import!M4124","v":0},{"$f":"Import!M4149","v":0},{"$f":"Import!M4174","v":0},{"$f":"Import!M4199","v":0},{"$f":"Import!M4224","v":0},{"$f":"Import!M4249","v":0},{"$f":"Import!M4274","v":0},{"$f":"Import!M4299","v":0},{"$f":"Import!M4324","v":0},{"$f":"Import!M4349","v":0},null,0,null,{"$f":"'Schedule IVD'!O28","v":0},null," - "]
[null,21,"International Casualty Non Motor Non – Proportional ",null,{"$f":"Import!M3925","v":0},{"$f":"Import!M3950","v":0},{"$f":"Import!M3975","v":0},{"$f":"Import!M4000","v":0},{"$f":"Import!M4025","v":0},{"$f":"Import!M4050","v":0},{"$f":"Import!M4075","v":0},{"$f":"Import!M4100","v":0},{"$f":"Import!M4125","v":0},{"$f":"Import!M4150","v":0},{"$f":"Import!M4175","v":0},{"$f":"Import!M4200","v":0},{"$f":"Import!M4225","v":0},{"$f":"Import!M4250","v":0},{"$f":"Import!M4275","v":0},{"$f":"Import!M4300","v":0},{"$f":"Import!M4325","v":0},{"$f":"Import!M4350","v":0},null,0,null,{"$f":"'Schedule IVD'!O29","v":0},null," - "]
[null,22,"Retro Property",null,{"$f":"Import!M3926","v":0},{"$f":"Import!M3951","v":0},{"$f":"Import!M3976","v":0},{"$f":"Import!M4001","v":0},{"$f":"Import!M4026","v":0},{"$f":"Import!M4051","v":0},{"$f":"Import!M4076","v":0},{"$f":"Import!M4101","v":0},{"$f":"Import!M4126","v":0},{"$f":"Import!M4151","v":0},{"$f":"Import!M4176","v":0},{"$f":"Import!M4201","v":0},{"$f":"Import!M4226","v":0},{"$f":"Import!M4251","v":0},{"$f":"Import!M4276","v":0},{"$f":"Import!M4301","v":0},{"$f":"Import!M4326","v":0},{"$f":"Import!M4351","v":0},null,0,null,{"$f":"'Schedule IVD'!O30","v":0},null," - "]
[null,23,"Structured / Finite Reinsurance",null,{"$f":"Import!M3927","v":0},{"$f":"Import!M3952","v":0},{"$f":"Import!M3977","v":0},{"$f":"Import!M4002","v":0},{"$f":"Import!M4027","v":0},{"$f":"Import!M4052","v":0},{"$f":"Import!M4077","v":0},{"$f":"Import!M4102","v":0},{"$f":"Import!M4127","v":0},{"$f":"Import!M4152","v":0},{"$f":"Import!M4177","v":0},{"$f":"Import!M4202","v":0},{"$f":"Import!M4227","v":0},{"$f":"Import!M4252","v":0},{"$f":"Import!M4277","v":0},{"$f":"Import!M4302","v":0},{"$f":"Import!M4327","v":0},{"$f":"Import!M4352","v":0},null,0,null,{"$f":"'Schedule IVD'!O31","v":0},null," - "]
[null,24,"Health",null,{"$f":"Import!M3928","v":0},{"$f":"Import!M3953","v":0},{"$f":"Import!M3978","v":0},{"$f":"Import!M4003","v":0},{"$f":"Import!M4028","v":0},{"$f":"Import!M4053","v":0},{"$f":"Import!M4078","v":0},{"$f":"Import!M4103","v":0},{"$f":"Import!M4128","v":0},{"$f":"Import!M4153","v":0},{"$f":"Import!M4178","v":0},{"$f":"Import!M4203","v":0},{"$f":"Import!M4228","v":0},{"$f":"Import!M4253","v":0},{"$f":"Import!M4278","v":0},{"$f":"Import!M4303","v":0},{"$f":"Import!M4328","v":0},{"$f":"Import!M4353","v":0},null,{"$f":"SUM(E32:V32)","v":0},null,{"$f":"'Schedule IVD'!O32","v":0},null," - "]
[null,25,"Total ",null,{"$f":"SUM(E9:E32)","v":0},{"$f":"SUM(F9:F32)","v":0},0,0,0,0,0,0,0,0,0,0,0,0,0,0,0,0,null,0,null,{"$f":"SUM(Z9:Z32)","v":0}]

{"sheet":"Schedule IVF","index":41,"n_rows":90,"n_cols":21,"rows_kept":90,"cut":false,"hidden":false,"merged":[[1,1,1,2],[5,4,5,5],[7,1,7,19],[9,4,9,11],[9,12,9,19]]}
["c","SCHEDULE OF EXPOSURE OF RISK",null,null,null,null,null,null,null,null,null,null,null,null,null,null,null,null,null,null,{"$f":"HYPERLINK(\"#'Index'!A1\",\"Return to Index\")","v":"Return to Index"}]
[null,{"$f":"'Company Information'!C7","v":"Enter Company Name"}]
[null,{"$f":"\"For the year ending \"&TEXT('Company Information'!C3,\"DD MMMM YYYY\")","v":"For the year ending 31 December 2022"}]
[null,{"$f":"\"expressed in\"& IF(CONFIGURATION!$B$12>1,\" ['\"&MID(CONFIGURATION!$B$12,2,LEN(CONFIGURATION!$B$12))&\"s]\",\"\")&\" \"&'Form 1SFS (Consolidated)'!$C$5","v":"expressed in ['000s] United States Dollars"},null,null,null,null,null,null,null,null,null,null,null,null,null,null,null,null,null,null,"Schedule IVF"]
[]
[null,"1. Jurisdiction of Ultimate Parent of insurer",null,null,{"$f":"Import!M4356","v":"Select"},{"$f":"Import!N4356","v":0}]
[]
[null,"2. Financial Activity for the reporting period. Note location is to be based on the location of the risk being underwritten. In the instance that the location of risk being underwriting is not available, insurers can provide the location based on the location of the cedant."]
[]
[null,null,null,"ALL","General Business",null,null,null,null,null,null,null,"Long-Term Business"]
[null,null,null,"Number of Subsidiaries","GPW - Property Catastrophe","GPW - Other Lines other than Property Cat","Reinsurance - Retroceded to Bermuda Cedants","Reinsurance - Retroceded to Other Cedants","Net Premium Written","Gross Incurred Losses - Property Catastrophe","Gross Incurred Losses - Other Lines Other than Property","Gross Reserves at Year-End","Gross Reserve - Mortality Risk","Gross Reserve - Longevity Risk","Gross Reserve - Deferred Accumulation Annuities Business Risk","Gross Reserve - Disability","Gross Reserve - Group","Gross Reserve - Variable Annuities","Gross Reserve - Other Products","Claims and Benefits Paid"]
[null,null,null,null,{"$f":"CONFIGURATION!$D$12","v":" ('000s)"},{"$f":"CONFIGURATION!$D$12","v":" ('000s)"},{"$f":"CONFIGURATION!$D$12","v":" ('000s)"},{"$f":"CONFIGURATION!$D$12","v":" ('000s)"},{"$f":"CONFIGURATION!$D$12","v":" ('000s)"},{"$f":"CONFIGURATION!$D$12","v":" ('000s)"},{"$f":"CONFIGURATION!$D$12","v":" ('000s)"},{"$f":"CONFIGURATION!$D$12","v":" ('000s)"},{"$f":"CONFIGURATION!$D$12","v":" ('000s)"},{"$f":"CONFIGURATION!$D$12","v":" ('000s)"},{"$f":"CONFIGURATION!$D$12","v":" ('000s)"},{"$f":"CONFIGURATION!$D$12","v":" ('000s)"},{"$f":"CONFIGURATION!$D$12","v":" ('000s)"},{"$f":"CONFIGURATION!$D$12","v":" ('000s)"},{"$f":"CONFIGURATION!$D$12","v":" ('000s)"},{"$f":"CONFIGURATION!$D$12","v":" ('000s)"}]
[null,1,"Austria",{"$f":"Import!M4357","v":0},{"$f":"Import!M4396","v":0},{"$f":"Import!M4435","v":0},{"$f":"Import!M4474","v":0},{"$f":"Import!M4513","v":0},{"$f":"E13+F13-G13-H13","v":0},{"$f":"Import!M4552","v":0},{"$f":"Import!M4591","v":0},{"$f":"Import!M4630","v":0}]
[null,2,"Belgium",{"$f":"Import!M4358","v":0},{"$f":"Import!M4397","v":0},{"$f":"Import!M4436","v":0},{"$f":"Import!M4475","v":0},{"$f":"Import!M4514","v":0},{"$f":"E14+F14-G14-H14","v":0},{"$f":"Import!M4553","v":0},{"$f":"Import!M4592","v":0},{"$f":"Import!M4631","v":0}]
[null,3,"Bulgaria",{"$f":"Import!M4359","v":0},{"$f":"Import!M4398","v":0},{"$f":"Import!M4437","v":0},{"$f":"Import!M4476","v":0},{"$f":"Import!M4515","v":0},0,{"$f":"Import!M4554","v":0},{"$f":"Import!M4593","v":0},{"$f":"Import!M4632","v":0}]
[null,4,"Croatia",{"$f":"Import!M4360","v":0},{"$f":"Import!M4399","v":0},{"$f":"Import!M4438","v":0},{"$f":"Import!M4477","v":0},{"$f":"Import!M4516","v":0},0,{"$f":"Import!M4555","v":0},{"$f":"Import!M4594","v":0},{"$f":"Import!M4633","v":0}]
[null,5,"Cyprus",{"$f":"Import!M4361","v":0},{"$f":"Import!M4400","v":0},{"$f":"Import!M4439","v":0},{"$f":"Import!M4478","v":0},{"$f":"Import!M4517","v":0},0,{"$f":"Import!M4556","v":0},{"$f":"Import!M4595","v":0},{"$f":"Import!M4634","v":0}]
[null,6,"Czechia",{"$f":"Import!M4362","v":0},{"$f":"Import!M4401","v":0},{"$f":"Import!M4440","v":0},{"$f":"Import!M4479","v":0},{"$f":"Import!M4518","v":0},0,{"$f":"Import!M4557","v":0},{"$f":"Import!M4596","v":0},{"$f":"Import!M4635","v":0}]
[null,7,"Denmark",{"$f":"Import!M4363","v":0},{"$f":"Import!M4402","v":0},{"$f":"Import!M4441","v":0},{"$f":"Import!M4480","v":0},{"$f":"Import!M4519","v":0},0,{"$f":"Import!M4558","v":0},{"$f":"Import!M4597","v":0},{"$f":"Import!M4636","v":0}]
[null,8,"Estonia",{"$f":"Import!M4364","v":0},{"$f":"Import!M4403","v":0},{"$f":"Import!M4442","v":0},{"$f":"Import!M4481","v":0},{"$f":"Import!M4520","v":0},0,{"$f":"Import!M4559","v":0},{"$f":"Import!M4598","v":0},{"$f":"Import!M4637","v":0}]
[null,9,"Finland",{"$f":"Import!M4365","v":0},{"$f":"Import!M4404","v":0},{"$f":"Import!M4443","v":0},{"$f":"Import!M4482","v":0},{"$f":"Import!M4521","v":0},0,{"$f":"Import!M4560","v":0},{"$f":"Import!M4599","v":0},{"$f":"Import!M4638","v":0}]
[null,10,"France",{"$f":"Import!M4366","v":0},{"$f":"Import!M4405","v":0},{"$f":"Import!M4444","v":0},{"$f":"Import!M4483","v":0},{"$f":"Import!M4522","v":0},0,{"$f":"Import!M4561","v":0},{"$f":"Import!M4600","v":0},{"$f":"Import!M4639","v":0}]
[null,11,"Germany",{"$f":"Import!M4367","v":0},{"$f":"Import!M4406","v":0},{"$f":"Import!M4445","v":0},{"$f":"Import!M4484","v":0},{"$f":"Import!M4523","v":0},0,{"$f":"Import!M4562","v":0},{"$f":"Import!M4601","v":0},{"$f":"Import!M4640","v":0}]
[null,12,"Greece",{"$f":"Import!M4368","v":0},{"$f":"Import!M4407","v":0},{"$f":"Import!M4446","v":0},{"$f":"Import!M4485","v":0},{"$f":"Import!M4524","v":0},0,{"$f":"Import!M4563","v":0},{"$f":"Import!M4602","v":0},{"$f":"Import!M4641","v":0}]
[null,13,"Hungary",{"$f":"Import!M4369","v":0},{"$f":"Import!M4408","v":0},{"$f":"Import!M4447","v":0},{"$f":"Import!M4486","v":0},{"$f":"Import!M4525","v":0},0,{"$f":"Import!M4564","v":0},{"$f":"Import!M4603","v":0},{"$f":"Import!M4642","v":0}]
[null,14,"Ireland",{"$f":"Import!M4370","v":0},{"$f":"Import!M4409","v":0},{"$f":"Import!M4448","v":0},{"$f":"Import!M4487","v":0},{"$f":"Import!M4526","v":0},0,{"$f":"Import!M4565","v":0},{"$f":"Import!M4604","v":0},{"$f":"Import!M4643","v":0}]
[null,15,"Italy",{"$f":"Import!M4371","v":0},{"$f":"Import!M4410","v":0},{"$f":"Import!M4449","v":0},{"$f":"Import!M4488","v":0},{"$f":"Import!M4527","v":0},0,{"$f":"Import!M4566","v":0},{"$f":"Import!M4605","v":0},{"$f":"Import!M4644","v":0}]
[null,16,"Latvia",{"$f":"Import!M4372","v":0},{"$f":"Import!M4411","v":0},{"$f":"Import!M4450","v":0},{"$f":"Import!M4489","v":0},{"$f":"Import!M4528","v":0},0,{"$f":"Import!M4567","v":0},{"$f":"Import!M4606","v":0},{"$f":"Import!M4645","v":0}]
[null,17,"Lithuania",{"$f":"Import!M4373","v":0},{"$f":"Import!M4412","v":0},{"$f":"Import!M4451","v":0},{"$f":"Import!M4490","v":0},{"$f":"Import!M4529","v":0},0,{"$f":"Import!M4568","v":0},{"$f":"Import!M4607","v":0},{"$f":"Import!M4646","v":0}]
[null,18,"Luxembourg",{"$f":"Import!M4374","v":0},{"$f":"Import!M4413","v":0},{"$f":"Import!M4452","v":0},{"$f":"Import!M4491","v":0},{"$f":"Import!M4530","v":0},0,{"$f":"Import!M4569","v":0},{"$f":"Import!M4608","v":0},{"$f":"Import!M4647","v":0}]
[null,19,"Malta",{"$f":"Import!M4375","v":0},{"$f":"Import!M4414","v":0},{"$f":"Import!M4453","v":0},{"$f":"Import!M4492","v":0},{"$f":"Import!M4531","v":0},0,{"$f":"Import!M4570","v":0},{"$f":"Import!M4609","v":0},{"$f":"Import!M4648","v":0}]
[null,20,"Netherlands",{"$f":"Import!M4376","v":0},{"$f":"Import!M4415","v":0},{"$f":"Import!M4454","v":0},{"$f":"Import!M4493","v":0},{"$f":"Import!M4532","v":0},0,{"$f":"Import!M4571","v":0},{"$f":"Import!M4610","v":0},{"$f":"Import!M4649","v":0}]
[null,21,"Poland",{"$f":"Import!M4377","v":0},{"$f":"Import!M4416","v":0},{"$f":"Import!M4455","v":0},{"$f":"Import!M4494","v":0},{"$f":"Import!M4533","v":0},0,{"$f":"Import!M4572","v":0},{"$f":"Import!M4611","v":0},{"$f":"Import!M4650","v":0}]
[null,22,"Portugal",{"$f":"Import!M4378","v":0},{"$f":"Import!M4417","v":0},{"$f":"Import!M4456","v":0},{"$f":"Import!M4495","v":0},{"$f":"Import!M4534","v":0},0,{"$f":"Import!M4573","v":0},{"$f":"Import!M4612","v":0},{"$f":"Import!M4651","v":0}]
[null,23,"Romania",{"$f":"Import!M4379","v":0},{"$f":"Import!M4418","v":0},{"$f":"Import!M4457","v":0},{"$f":"Import!M4496","v":0},{"$f":"Import!M4535","v":0},0,{"$f":"Import!M4574","v":0},{"$f":"Import!M4613","v":0},{"$f":"Import!M4652","v":0}]
[null,24,"Slovakia",{"$f":"Import!M4380","v":0},{"$f":"Import!M4419","v":0},{"$f":"Import!M4458","v":0},{"$f":"Import!M4497","v":0},{"$f":"Import!M4536","v":0},0,{"$f":"Import!M4575","v":0},{"$f":"Import!M4614","v":0},{"$f":"Import!M4653","v":0}]
[null,25,"Slovenia",{"$f":"Import!M4381","v":0},{"$f":"Import!M4420","v":0},{"$f":"Import!M4459","v":0},{"$f":"Import!M4498","v":0},{"$f":"Import!M4537","v":0},0,{"$f":"Import!M4576","v":0},{"$f":"Import!M4615","v":0},{"$f":"Import!M4654","v":0}]
[null,26,"Spain",{"$f":"Import!M4382","v":0},{"$f":"Import!M4421","v":0},{"$f":"Import!M4460","v":0},{"$f":"Import!M4499","v":0},{"$f":"Import!M4538","v":0},0,{"$f":"Import!M4577","v":0},{"$f":"Import!M4616","v":0},{"$f":"Import!M4655","v":0}]
[null,27,"Sweden",{"$f":"Import!M4383","v":0},{"$f":"Import!M4422","v":0},{"$f":"Import!M4461","v":0},{"$f":"Import!M4500","v":0},{"$f":"Import!M4539","v":0},0,{"$f":"Import!M4578","v":0},{"$f":"Import!M4617","v":0},{"$f":"Import!M4656","v":0}]
[null,28,"Sub Total European Union",{"$f":"SUM(D13:D39)","v":0},0,0,0,0,0,0,0,0,0,0,0,0,0,0,0,0]
[]
[null,{"$f":"B40+1","v":29},"Bermuda",{"$f":"Import!M4385","v":0},{"$f":"Import!M4424","v":0},{"$f":"Import!M4463","v":0},{"$f":"Import!M4502","v":0},{"$f":"Import!M4541","v":0},{"$f":"E42+F42-G42-H42","v":0},{"$f":"Import!M4580","v":0},{"$f":"Import!M4619","v":0},{"$f":"Import!M4658","v":0}]
[null,30,"United Kingdom",{"$f":"Import!M4386","v":0},{"$f":"Import!M4425","v":0},{"$f":"Import!M4464","v":0},{"$f":"Import!M4503","v":0},{"$f":"Import!M4542","v":0},0,{"$f":"Import!M4581","v":0},{"$f":"Import!M4620","v":0},{"$f":"Import!M4659","v":0}]
[null,31,"Switzerland",{"$f":"Import!M4387","v":0},{"$f":"Import!M4426","v":0},{"$f":"Import!M4465","v":0},{"$f":"Import!M4504","v":0},{"$f":"Import!M4543","v":0},0,{"$f":"Import!M4582","v":0},{"$f":"Import!M4621","v":0},{"$f":"Import!M4660","v":0}]
[null,32,"United States of America",{"$f":"Import!M4388","v":0},{"$f":"Import!M4427","v":0},{"$f":"Import!M4466","v":0},{"$f":"Import!M4505","v":0},{"$f":"Import!M4544","v":0},0,{"$f":"Import!M4583","v":0},{"$f":"Import!M4622","v":0},{"$f":"Import!M4661","v":0}]
[null,33,"Canada",{"$f":"Import!M4389","v":0},{"$f":"Import!M4428","v":0},{"$f":"Import!M4467","v":0},{"$f":"Import!M4506","v":0},{"$f":"Import!M4545","v":0},0,{"$f":"Import!M4584","v":0},{"$f":"Import!M4623","v":0},{"$f":"Import!M4662","v":0}]
[null,34,"China",{"$f":"Import!M4390","v":0},{"$f":"Import!M4429","v":0},{"$f":"Import!M4468","v":0},{"$f":"Import!M4507","v":0},{"$f":"Import!M4546","v":0},0,{"$f":"Import!M4585","v":0},{"$f":"Import!M4624","v":0},{"$f":"Import!M4663","v":0}]
[null,35,"Japan",{"$f":"Import!M4391","v":0},{"$f":"Import!M4430","v":0},{"$f":"Import!M4469","v":0},{"$f":"Import!M4508","v":0},{"$f":"Import!M4547","v":0},0,{"$f":"Import!M4586","v":0},{"$f":"Import!M4625","v":0},{"$f":"Import!M4664","v":0}]
[null,36,"Hong Kong",{"$f":"Import!M4392","v":0},{"$f":"Import!M4431","v":0},{"$f":"Import!M4470","v":0},{"$f":"Import!M4509","v":0},{"$f":"Import!M4548","v":0},0,{"$f":"Import!M4587","v":0},{"$f":"Import!M4626","v":0},{"$f":"Import!M4665","v":0}]
[null,37,"Australia",{"$f":"Import!M4393","v":0},{"$f":"Import!M4432","v":0},{"$f":"Import!M4471","v":0},{"$f":"Import!M4510","v":0},{"$f":"Import!M4549","v":0},0,{"$f":"Import!M4588","v":0},{"$f":"Import!M4627","v":0},{"$f":"Import!M4666","v":0}]
[null,38,"All Other Locations",{"$f":"Import!M4394","v":0},{"$f":"Import!M4433","v":0},{"$f":"Import!M4472","v":0},{"$f":"Import!M4511","v":0},{"$f":"Import!M4550","v":0},0,{"$f":"Import!M4589","v":0},{"$f":"Import!M4628","v":0},{"$f":"Import!M4667","v":0}]
[null,39,"Total",{"$f":"D40+SUM(D42:D51)","v":0},0,0,0,0,0,0,0,0,0,0,0,0,0,0,0,0]
[null,null,null,null,null,{"$f":"IF(F54=\"TRUE\",HYPERLINK(\"#'Form 2SFS (Consolidated)'!M14\",\"TRUE\"),HYPERLINK(\"#'Form 2SFS (Consolidated)'!M14\",\"FALSE\"))","v":"TRUE"},null,null,{"$f":"IF(I54=\"TRUE\",HYPERLINK(\"#'Form 2SFS (Consolidated)'!M18\",\"TRUE\"),HYPERLINK(\"#'Form 2SFS (Consolidated)'!M18\",\"FALSE\"))","v":"TRUE"},null,null,{"$f":"IF(L54=\"TRUE\",HYPERLINK(\"#'Form 1SFS (Consolidated)'!M98\",\"TRUE\"),HYPERLINK(\"#'Form 1SFS (Consolidated)'!M98\",\"FALSE\"))","v":"TRUE"}]
[null,null,null,null,null,{"$f":"IF(ROUND(((E52+F52)-'Form 2SFS (Consolidated)'!$M14),0)=0,\"TRUE\",\"FALSE\")","v":"TRUE"},null,null,{"$f":"IF(ROUND((I52-'Form 2SFS (Consolidated)'!$M18),0)=0,\"TRUE\",\"FALSE\")","v":"TRUE"},null,null,{"$f":"IF(ROUND((L52-'Form 1SFS (Consolidated)'!$M98),0)=0,\"TRUE\",\"FALSE\")","v":"TRUE"}]
[null,null,null,null,null,{"$f":"ROUND('Form 2SFS (Consolidated)'!$M14-(E52+F52),0)","v":0},null,null,{"$f":"ROUND('Form 2SFS (Consolidated)'!$M18-I52,0)","v":0},null,null,{"$f":"ROUND('Form 1SFS (Consolidated)'!$M98-L52,0)","v":0}]
[]
[]
[null,null,"Select"]
[null,null,"Bermuda"]
[null,null,"United Kingdom"]
[null,null,"Switzerland"]
[null,null,"United States of America"]
[null,null,"Austria"]
[null,null,"Belgium"]
[null,null,"Bulgaria"]
[null,null,"Croatia"]
[null,null,"Cyprus"]
[null,null,"Czechia"]
[null,null,"Denmark"]
[null,null,"Estonia"]
[null,null,"Finland"]
[null,null,"France"]
[null,null,"Germany"]
[null,null,"Greece"]
[null,null,"Hungary"]
[null,null,"Ireland"]
[null,null,"Italy"]
[null,null,"Latvia"]
[null,null,"Lithuania"]
[null,null,"Luxembourg"]
[null,null,"Malta"]
[null,null,"Netherlands"]
[null,null,"Poland"]
[null,null,"Portugal"]
[null,null,"Romania"]
[null,null,"Slovakia"]
[null,null,"Slovenia"]
[null,null,"Spain"]
[null,null,"Sweden"]
[null,null,"All Other Locations"]

{"sheet":"Schedule V","index":42,"n_rows":55,"n_cols":8,"rows_kept":55,"cut":false,"hidden":false,"merged":[[35,7,36,7],[2,3,3,6],[7,2,7,4],[9,2,9,4],[11,2,11,4],[15,2,15,4],[17,2,17,4],[19,2,19,4],[35,2,36,3],[52,2,52,4],[54,2,54,4],[21,2,21,4],[30,2,30,4],[42,2,42,4],[44,2,44,4],[46,2,46,4],[50,2,50,4],[37,2,38,3]]}
[null,"SCHEDULE OF RISK MANAGEMENT",null,null,null,null,null,{"$f":"HYPERLINK(\"#'Index'!A1\",\"Return to Index\")","v":"Return to Index"}]
[null,{"$f":"'Company Information'!C7","v":"Enter Company Name"}]
[null,"For the year ending",{"$f":"'Company Information'!C3","v":"2022-12-31"},"Note if an insurer does not have any entities to consolidate, enter Consolidated Valuation information only \n(This cell is editable for deletion)",null,null,null,"SCHEDULE V"]
[null,{"$f":"\"expressed in\"& IF(CONFIGURATION!$B$12>1,\" ['\"&MID(CONFIGURATION!$B$12,2,LEN(CONFIGURATION!$B$12))&\"s]\",\"\")","v":"expressed in ['000s]"},{"$f":"'Form 1SFS (Consolidated)'!$C$5","v":"United States Dollars"}]
[null,null,null,null,null,"Unconsolidated SFS",null,"Consolidated Valuation"]
[null,"(a)","Governance and group structure",null,null,null,null,{"$f":"HYPERLINK(\"#'Schedule V(a)'!c6\",\"Refer to Schedule V(a)\")","v":"Refer to Schedule V(a)"}]
[]
[null,"(b)","Intra-group transactions that the insurer is a party to and the insurer's risk concentrations",null,null,null,null,{"$f":"HYPERLINK(\"#'Schedule V(c)'!c6\",\"Refer to Schedule V(c)\")","v":"Refer to Schedule V(c)"}]
[]
[null,"(d)","Effective duration of assets",null,null,null,null,{"$f":"Import!M4670","v":0}]
[]
[null,"(e)","Effective duration of liabilities",null,null,null,null,{"$f":"Import!M4671","v":0}]
[null,null,null,null,null,null,null,"Document Name & Page Number"]
[null,{"$f":"IF('Company Information'!$F$11=\"IIGB\",\"(f)\",\"(f)\")","v":"(f)"},"Description of the effective duration of assets and liabilities calculations and key assumptions",null,null,{"$f":"HYPERLINK(\"#'Attachments'!G35\",\"Attach file\")","v":"Attach file"}]
[]
[null,{"$f":"IF('Company Information'!$F$11=\"IIGB\",\"(f)\",\"(g)\")","v":"(f)"},"Gross probable maximum loss",null,null,{"$f":"Import!E4672","v":0},null,{"$f":"Import!M4672","v":0}]
[]
[null,{"$f":"IF('Company Information'!$F$11=\"IIGB\",\"(g)\",\"(h)\")","v":"(g)"},"Net probable maximum loss",null,null,{"$f":"Import!E4673","v":0},null,{"$f":"Import!M4673","v":0}]
[]
[null,{"$f":"IF('Company Information'!$F$11=\"IIGB\",\"(h)\",\"(i)\")","v":"(h)"},"Average annual loss (excluding property catastrophe)",null,null,null,null,{"$f":"Import!M4674","v":0}]
[]
[null,{"$f":"IF('Company Information'!$F$11=\"IIGB\",\"(i)\",\"(j)\")","v":"(i)"},"Actual attritional losses and large claims losses - relevant year",null,null,null,null,{"$f":"Import!M4675","v":0}]
[]
[null,{"$f":"IF('Company Information'!$F$11=\"IIGB\",\"(j)\",\"(k)\")","v":"(j)"},"Arrangements with respect to property catastrophe recoverables"]
[null,null,"(i) Collateral",null,null,null,null,{"$f":"Import!M4676","v":0}]
[null,null,"(ii) Catastrophe bonds",null,null,null,null,{"$f":"Import!M4677","v":0}]
[null,null,"(iii) Special purpose insurer (indemnity basis)",null,null,null,null,{"$f":"Import!M4678","v":0}]
[null,null,"(iv) Special purpose insurer (other basis)",null,null,null,null,{"$f":"Import!M4679","v":0}]
[null,null,"(v) Total",null,null,null,null,{"$f":"SUM(H25:H28)","v":0}]
[null,null,null,null,null,null,null,"Document Name & Page Number"]
[null,{"$f":"IF('Company Information'!$F$11=\"IIGB\",\"(k)\",\"(l)\")","v":"(k)"},"Mutual fund disclosures",null,null,{"$f":"HYPERLINK(\"#'Attachments'!G125\",\"Attach file\")","v":"Attach file"}]
[]
[null,{"$f":"IF('Company Information'!$F$11=\"IIGB\",\"(l)\",\"(m)\")","v":"(l)"},"Summary of projected performance - "]
[null,null,"(i) The insurer's latest estimate of annual net premiums written",null,null,null,null,{"$f":"Import!M4681","v":0}]
[null,null,"(ii) The estimated underwriting profit or loss",null,null,null,null,{"$f":"Import!M4682","v":0}]
[null,null,"(iii) The estimated net income or loss for the insurer or on a group basis with disclosure of the estimated percentage of the insurer's contribution relative to the group",null,null,null,null,{"$f":"Import!M4683","v":0}]
[]
[null,null,"(iv) A qualitative description of the insurer's business and underwriting strategy to achieve the above estimates",null,null,null,null,"Document Name & Page Number"]
[null,null,null,null,null,{"$f":"HYPERLINK(\"#'Attachments'!G135\",\"Attach file\")","v":"Attach file"}]
[]
[null,{"$f":"IF('Company Information'!$F$11=\"IIGB\",\"(m)\",\"(n)\")","v":"(m)"},"Financial impact and description of stress and scenario tests",null,null,null,null,{"$f":"HYPERLINK(\"#'Schedule V(e)'!b1\",\"Refer to Schedule V(e)\")","v":"Refer to Schedule V(e)"}]
[null,null,null,null,null,null,null,"Document Name & Page Number"]
[null,"(o)","Investments and derivatives strategies and policy",null,null,{"$f":"HYPERLINK(\"#'Attachments'!G105\",\"Attach file\")","v":"Attach file"}]
[null,null,null,null,null,null,null,"Document Name & Page Number"]
[null,"(p)","Description of the insurer's risk management program",null,null,{"$f":"HYPERLINK(\"#'Attachments'!G155\",\"Attach file\")","v":"Attach file"}]
[null,null,null,null,null,null,null,"Document Name & Page Number"]
[null,"(q)","Risk register",null,null,{"$f":"HYPERLINK(\"#'Attachments'!G165\",\"Attach file\")","v":"Attach file"}]
[]
[null,{"$f":"IF('Company Information'!$F$11=\"IIGB\",\"(n)\",\"(r)\")","v":"(n)"},"List of statutory lines and statutory territories that have catastrophe exposures",null,null,null,null,{"$f":"HYPERLINK(\"#'Schedule X(d)'!a7\",\"Refer to Schedule X(d)\")","v":"Refer to Schedule X(d)"}]
[]
[null,{"$f":"IF('Company Information'!$F$11=\"IIGB\",\"(o)\",\"(s)\")","v":"(o)"},"Reconciliation from audited financial statements to 1SFS",null,null,null,null,{"$f":"HYPERLINK(\"#'Schedule V(g)'!a7\",\"Refer to Schedule V(g)\")","v":"Refer to Schedule V(g)"}]
[]
[null,{"$f":"IF('Company Information'!$F$11=\"IIGB\",\"(s)\",\"(w)\")","v":"(s)"},"Details of deposit assets and liabilities",null,null,null,null,{"$f":"HYPERLINK(\"#'Schedule V(k)'!a7\",\"Refer to Schedule V(k)\")","v":"Refer to Schedule V(k)"}]
[]
[null,{"$f":"IF('Company Information'!$F$11=\"IIGB\",\"(t)\",\"(x)\")","v":"(t)"},"Details of segregated accounts",null,null,null,null,{"$f":"HYPERLINK(\"#'Schedule V(l)'!a7\",\"Refer to Schedule V(l)\")","v":"Refer to Schedule V(l)"}]

{"sheet":"Schedule V(a)","index":43,"n_rows":386,"n_cols":10,"rows_kept":386,"cut":false,"hidden":false,"merged":[[95,3,95,7],[75,5,75,6],[74,5,74,6],[73,5,73,6],[72,5,72,6],[44,5,44,6],[49,5,49,6],[50,5,50,6],[51,5,51,6],[52,5,52,6],[45,5,45,6],[46,5,46,6],[47,5,47,6],[48,5,48,6],[39,5,39,6],[40,5,40,6],[41,5,41,6],[42,5,42,6],[43,5,43,6],[30,5,30,6],[35,5,35,6],[36,5,36,6],[37,5,37,6],[38,5,38,6],[25,5,25,6],[26,5,26,6],[27,5,27,6],[28,5,28,6],[29,5,29,6],[20,5,20,6],[21,5,21,6],[22,5,22,6],[23,5,23,6],[24,5,24,6],[141,2,142,9],[0,2,0,5],[10,5,10,6],[11,5,11,6],[12,5,12,6],[13,5,13,6],[109,2,109,5],[110,2,110,5],[111,2,111,5],[112,2,112,5],[14,5,14,6],[15,5,15,6],[16,5,16,6],[17,5,17,6],[18,5,18,6],[19,5,19,6],[113,2,113,5],[53,5,53,6],[54,5,54,6],[55,5,55,6],[62,4,62,6],[63,5,63,6],[64,5,64,6],[65,5,65,6],[67,5,67,6],[69,4,69,6],[70,5,70,6],[71,5,71,6],[62,2,63,3],[69,2,70,3],[66,2,66,3],[76,5,76,6],[69,7,69,9],[66,5,66,6],[35,8,35,9],[36,8,36,9],[37,8,37,9],[51,8,51,9],[52,8,52,9],[41,8,41,9],[42,8,42,9],[43,8,43,9],[44,8,44,9],[45,8,45,9],[38,8,38,9],[39,8,39,9],[40,8,40,9],[47,8,47,9],[55,8,55,9],[49,8,49,9],[48,8,48,9],[50,8,50,9],[46,8,46,9],[53,8,53,9],[54,8,54,9]]}
[null,null,"SCHEDULE OF RISK MANAGEMENT - GOVERNANCE AND GROUP STRUCTURE",null,null,null,null,null,null,{"$f":"HYPERLINK(\"#'Index'!A1\",\"Return to Index\")","v":"Return to Index"}]
[]
[null,null,{"$f":"'Company Information'!C7","v":"Enter Company Name"}]
[null,null,"For the year ending",{"$f":"'Company Information'!C3","v":"2022-12-31"},null,null,null,null,null,"SCHEDULE V(a)"]
[null,null,{"$f":"\"expressed in\"& IF(CONFIGURATION!$B$12>1,\" ['\"&MID(CONFIGURATION!$B$12,2,LEN(CONFIGURATION!$B$12))&\"s]\",\"\")","v":"expressed in ['000s]"},{"$f":"'Form 1SFS (Consolidated)'!$C$5","v":"United States Dollars"}]
[]
[null,1,"Structure of the board of directors, including names, role, country of residence and work experience - "]
[null,null," Enter number of Directors",{"$f":"Import!E4685","v":0}]
[]
[]
[null,null,"Name","Board Position","Country of Residence","Work Experience",null,"Status on the Board\n(Select from Drop Down)"]
[null,1,{"$f":"Import!E4686","v":0},{"$f":"Import!E4706","v":0},{"$f":"Import!E4726","v":0},{"$f":"Import!E4746","v":0},null,{"$f":"Import!E4766","v":"Select"}]
[null,2,{"$f":"Import!E4687","v":0},{"$f":"Import!E4707","v":0},{"$f":"Import!E4727","v":0},{"$f":"Import!E4747","v":0},null,{"$f":"Import!E4767","v":"Select"}]
[null,3,{"$f":"Import!E4688","v":0},{"$f":"Import!E4708","v":0},{"$f":"Import!E4728","v":0},{"$f":"Import!E4748","v":0},null,{"$f":"Import!E4768","v":"Select"}]
[null,4,{"$f":"Import!E4689","v":0},{"$f":"Import!E4709","v":0},{"$f":"Import!E4729","v":0},{"$f":"Import!E4749","v":0},null,{"$f":"Import!E4769","v":"Select"}]
[null,5,{"$f":"Import!E4690","v":0},{"$f":"Import!E4710","v":0},{"$f":"Import!E4730","v":0},{"$f":"Import!E4750","v":0},null,{"$f":"Import!E4770","v":"Select"}]
[null,6,{"$f":"Import!E4691","v":0},{"$f":"Import!E4711","v":0},{"$f":"Import!E4731","v":0},{"$f":"Import!E4751","v":0},null,{"$f":"Import!E4771","v":"Select"}]
[null,7,{"$f":"Import!E4692","v":0},{"$f":"Import!E4712","v":0},{"$f":"Import!E4732","v":0},{"$f":"Import!E4752","v":0},null,{"$f":"Import!E4772","v":"Select"}]
[null,8,{"$f":"Import!E4693","v":0},{"$f":"Import!E4713","v":0},{"$f":"Import!E4733","v":0},{"$f":"Import!E4753","v":0},null,{"$f":"Import!E4773","v":"Select"}]
[null,9,{"$f":"Import!E4694","v":0},{"$f":"Import!E4714","v":0},{"$f":"Import!E4734","v":0},{"$f":"Import!E4754","v":0},null,{"$f":"Import!E4774","v":"Select"}]
[null,10,{"$f":"Import!E4695","v":0},{"$f":"Import!E4715","v":0},{"$f":"Import!E4735","v":0},{"$f":"Import!E4755","v":0},null,{"$f":"Import!E4775","v":"Select"}]
[null,11,{"$f":"Import!E4696","v":0},{"$f":"Import!E4716","v":0},{"$f":"Import!E4736","v":0},{"$f":"Import!E4756","v":0},null,{"$f":"Import!E4776","v":"Select"}]
[null,12,{"$f":"Import!E4697","v":0},{"$f":"Import!E4717","v":0},{"$f":"Import!E4737","v":0},{"$f":"Import!E4757","v":0},null,{"$f":"Import!E4777","v":"Select"}]
[null,13,{"$f":"Import!E4698","v":0},{"$f":"Import!E4718","v":0},{"$f":"Import!E4738","v":0},{"$f":"Import!E4758","v":0},null,{"$f":"Import!E4778","v":"Select"}]
[null,14,{"$f":"Import!E4699","v":0},{"$f":"Import!E4719","v":0},{"$f":"Import!E4739","v":0},{"$f":"Import!E4759","v":0},null,{"$f":"Import!E4779","v":"Select"}]
[null,15,{"$f":"Import!E4700","v":0},{"$f":"Import!E4720","v":0},{"$f":"Import!E4740","v":0},{"$f":"Import!E4760","v":0},null,{"$f":"Import!E4780","v":"Select"}]
[null,16,{"$f":"Import!E4701","v":0},{"$f":"Import!E4721","v":0},{"$f":"Import!E4741","v":0},{"$f":"Import!E4761","v":0},null,{"$f":"Import!E4781","v":"Select"}]
[null,17,{"$f":"Import!E4702","v":0},{"$f":"Import!E4722","v":0},{"$f":"Import!E4742","v":0},{"$f":"Import!E4762","v":0},null,{"$f":"Import!E4782","v":"Select"}]
[null,18,{"$f":"Import!E4703","v":0},{"$f":"Import!E4723","v":0},{"$f":"Import!E4743","v":0},{"$f":"Import!E4763","v":0},null,{"$f":"Import!E4783","v":"Select"}]
[null,19,{"$f":"Import!E4704","v":0},{"$f":"Import!E4724","v":0},{"$f":"Import!E4744","v":0},{"$f":"Import!E4764","v":0},null,{"$f":"Import!E4784","v":"Select"}]
[null,20,{"$f":"Import!E4705","v":0},{"$f":"Import!E4725","v":0},{"$f":"Import!E4745","v":0},{"$f":"Import!E4765","v":0},null,{"$f":"Import!E4785","v":"Select"}]
[]
[null,2,"Enter number of Officers",{"$f":"Import!E4786","v":0}]
[null,null,"Structure of the chief and senior executive management, including names, roles, country of residence work experience, employee arrangement and description of responsibilities"]
[]
[null,null,"Name","Chief and Senior Executive Position","Country of Residence","Work Experience",null,"Employee Arrangement (Select from Drop Down)","Description of Responsibilities\n(Select from Drop Down)"]
[null,1,{"$f":"Import!E4787","v":0},{"$f":"Import!E4807","v":0},{"$f":"Import!E4827","v":0},{"$f":"Import!E4847","v":0},null,{"$f":"Import!E4867","v":"Select"},{"$f":"Import!E4887","v":"Select"}]
[null,2,{"$f":"Import!E4788","v":0},{"$f":"Import!E4808","v":0},{"$f":"Import!E4828","v":0},{"$f":"Import!E4848","v":0},null,{"$f":"Import!E4868","v":"Select"},{"$f":"Import!E4888","v":"Select"}]
[null,3,{"$f":"Import!E4789","v":0},{"$f":"Import!E4809","v":0},{"$f":"Import!E4829","v":0},{"$f":"Import!E4849","v":0},null,{"$f":"Import!E4869","v":"Select"},{"$f":"Import!E4889","v":"Select"}]
[null,4,{"$f":"Import!E4790","v":0},{"$f":"Import!E4810","v":0},{"$f":"Import!E4830","v":0},{"$f":"Import!E4850","v":0},null,{"$f":"Import!E4870","v":"Select"},{"$f":"Import!E4890","v":"Select"}]
[null,5,{"$f":"Import!E4791","v":0},{"$f":"Import!E4811","v":0},{"$f":"Import!E4831","v":0},{"$f":"Import!E4851","v":0},null,{"$f":"Import!E4871","v":"Select"},{"$f":"Import!E4891","v":"Select"}]
[null,6,{"$f":"Import!E4792","v":0},{"$f":"Import!E4812","v":0},{"$f":"Import!E4832","v":0},{"$f":"Import!E4852","v":0},null,{"$f":"Import!E4872","v":"Select"},{"$f":"Import!E4892","v":"Select"}]
[null,7,{"$f":"Import!E4793","v":0},{"$f":"Import!E4813","v":0},{"$f":"Import!E4833","v":0},{"$f":"Import!E4853","v":0},null,{"$f":"Import!E4873","v":"Select"},{"$f":"Import!E4893","v":"Select"}]
[null,8,{"$f":"Import!E4794","v":0},{"$f":"Import!E4814","v":0},{"$f":"Import!E4834","v":0},{"$f":"Import!E4854","v":0},null,{"$f":"Import!E4874","v":"Select"},{"$f":"Import!E4894","v":"Select"}]
[null,9,{"$f":"Import!E4795","v":0},{"$f":"Import!E4815","v":0},{"$f":"Import!E4835","v":0},{"$f":"Import!E4855","v":0},null,{"$f":"Import!E4875","v":"Select"},{"$f":"Import!E4895","v":"Select"}]
[null,10,{"$f":"Import!E4796","v":0},{"$f":"Import!E4816","v":0},{"$f":"Import!E4836","v":0},{"$f":"Import!E4856","v":0},null,{"$f":"Import!E4876","v":"Select"},{"$f":"Import!E4896","v":"Select"}]
[null,11,{"$f":"Import!E4797","v":0},{"$f":"Import!E4817","v":0},{"$f":"Import!E4837","v":0},{"$f":"Import!E4857","v":0},null,{"$f":"Import!E4877","v":"Select"},{"$f":"Import!E4897","v":"Select"}]
[null,12,{"$f":"Import!E4798","v":0},{"$f":"Import!E4818","v":0},{"$f":"Import!E4838","v":0},{"$f":"Import!E4858","v":0},null,{"$f":"Import!E4878","v":"Select"},{"$f":"Import!E4898","v":"Select"}]
[null,13,{"$f":"Import!E4799","v":0},{"$f":"Import!E4819","v":0},{"$f":"Import!E4839","v":0},{"$f":"Import!E4859","v":0},null,{"$f":"Import!E4879","v":"Select"},{"$f":"Import!E4899","v":"Select"}]
[null,14,{"$f":"Import!E4800","v":0},{"$f":"Import!E4820","v":0},{"$f":"Import!E4840","v":0},{"$f":"Import!E4860","v":0},null,{"$f":"Import!E4880","v":"Select"},{"$f":"Import!E4900","v":"Select"}]
[null,15,{"$f":"Import!E4801","v":0},{"$f":"Import!E4821","v":0},{"$f":"Import!E4841","v":0},{"$f":"Import!E4861","v":0},null,{"$f":"Import!E4881","v":"Select"},{"$f":"Import!E4901","v":"Select"}]
[null,16,{"$f":"Import!E4802","v":0},{"$f":"Import!E4822","v":0},{"$f":"Import!E4842","v":0},{"$f":"Import!E4862","v":0},null,{"$f":"Import!E4882","v":"Select"},{"$f":"Import!E4902","v":"Select"}]
[null,17,{"$f":"Import!E4803","v":0},{"$f":"Import!E4823","v":0},{"$f":"Import!E4843","v":0},{"$f":"Import!E4863","v":0},null,{"$f":"Import!E4883","v":"Select"},{"$f":"Import!E4903","v":"Select"}]
[null,18,{"$f":"Import!E4804","v":0},{"$f":"Import!E4824","v":0},{"$f":"Import!E4844","v":0},{"$f":"Import!E4864","v":0},null,{"$f":"Import!E4884","v":"Select"},{"$f":"Import!E4904","v":"Select"}]
[null,19,{"$f":"Import!E4805","v":0},{"$f":"Import!E4825","v":0},{"$f":"Import!E4845","v":0},{"$f":"Import!E4865","v":0},null,{"$f":"Import!E4885","v":"Select"},{"$f":"Import!E4905","v":"Select"}]
[null,20,{"$f":"Import!E4806","v":0},{"$f":"Import!E4826","v":0},{"$f":"Import!E4846","v":0},{"$f":"Import!E4935","v":"Select"},null,{"$f":"Import!E4886","v":"Select"},{"$f":"Import!E4906","v":"Select"}]
[null,null,null,null,null,null,null,"Doc Name","Page Number"]
[null,3,"Terms of reference of the board of directors and its sub-committees —",null,null,{"$f":"HYPERLINK(\"#'Attachments'!G65\",\"Attach file\")","v":"Attach file"}]
[]
[null,null,null,null,null,null,null,"Confirmation","Country of Tax Residency"]
[null,"3a","Does your company have tax residency outside of Bermuda, e.g., has made a 953d election",null,null,null,null,{"$f":"Import!E4907","v":"Select Yes/No"},{"$f":"Import!E4908","v":"Select"}]
[]
[null,4,"Jurisdiction(s) where the board of directors of the insurer meet on activities ",null,"Activities Performed in Bermuda?"]
[null,null,null,null,"Yes/No","If no, provide the name of the jurisdiction"]
[null,null,"(a) Setting strategic direction",null,{"$f":"Import!E4909","v":"Select Yes/No"},{"$f":"Import!E4913","v":0}]
[null,null,"(b) Determining the (re)insurer's risk appetite",null,{"$f":"Import!E4910","v":"Select Yes/No"},{"$f":"Import!E4914","v":0}]
[null,null,"(c) Makes strategic decisions about new and/or changes to products, lines of business or markets",null,{"$f":"Import!E4911","v":"Select Yes/No"},{"$f":"Import!E4915","v":0}]
[null,null,"(d) Assess or manage solvency requirements",null,{"$f":"Import!E4912","v":"Select Yes/No"},{"$f":"Import!E4916","v":0}]
[]
[null,5,"Details of an insurer's operations that include the jurisdiction(s), service type and name ",null,"Operations Performed in Bermuda?",null,null,"Are Services Outsourced?"]
[null,null,null,null,"Yes/No","If no, provide the name of the jurisdiction",null,"Yes/No","Type of Provider","Name of Provider"]
[null,null,"(a) Underwriting (re)insurance policies",null,{"$f":"Import!E4917","v":"Select Yes/No"},{"$f":"Import!E4923","v":0},null,{"$f":"Import!E4929","v":"Select Yes/No"},{"$f":"Import!E4935","v":"Select"},{"$f":"Import!E4941","v":0}]
[null,null,"(b) Risk management decisions/activities",null,{"$f":"Import!E4918","v":"Select Yes/No"},{"$f":"Import!E4924","v":0},null,{"$f":"Import!E4930","v":"Select Yes/No"},{"$f":"Import!E4936","v":"Select"},{"$f":"Import!E4942","v":0}]
[null,null,"(c) Investment strategy",null,{"$f":"Import!E4919","v":"Select Yes/No"},{"$f":"Import!E4925","v":0},null,{"$f":"Import!E4931","v":"Select Yes/No"},{"$f":"Import!E4937","v":"Select"},{"$f":"Import!E4943","v":0}]
[null,null,"(d) Actuarial ",null,{"$f":"Import!E4920","v":"Select Yes/No"},{"$f":"Import!E4926","v":0},null,{"$f":"Import!E4932","v":"Select Yes/No"},{"$f":"Import!E4938","v":"Select"},{"$f":"Import!E4944","v":0}]
[null,null,"(e) Compliance ",null,{"$f":"Import!E4921","v":"Select Yes/No"},{"$f":"Import!E4927","v":0},null,{"$f":"Import!E4933","v":"Select Yes/No"},{"$f":"Import!E4939","v":"Select"},{"$f":"Import!E4945","v":0}]
[null,null,"(f) Internal Audit",null,{"$f":"Import!E4922","v":"Select Yes/No"},{"$f":"Import!E4928","v":0},null,{"$f":"Import!E4934","v":"Select Yes/No"},{"$f":"Import!E4940","v":"Select"},{"$f":"Import!E4946","v":0}]
[]
[null,"5a","Details of the services outsourced and if yes, if the services are performed in Bermuda (confirm with the yes/no drop-down box)"]
[null,null,null,null,null,"Services Outsourced","Outsourced Services Performed in Bermuda"]
[null,"(i)","\tPrincipal Representative\r\n",null,null,{"$f":"Import!E4947","v":"Select Yes/No"},{"$f":"Import!E4963","v":"Select Yes/No"}]
[null,"(ii)","Directorships/Board Member",null,null,{"$f":"Import!E4948","v":"Select Yes/No"},{"$f":"Import!E4964","v":"Select Yes/No"}]
[null,"(iii)","Senior Officer",null,null,{"$f":"Import!E4949","v":"Select Yes/No"},{"$f":"Import!E4965","v":"Select Yes/No"}]
[null,"(iv)","Accounting",null,null,{"$f":"Import!E4950","v":"Select Yes/No"},{"$f":"Import!E4966","v":"Select Yes/No"}]
[null,"(v)","Preparation of Prudential / Statutory Financial Return",null,null,{"$f":"Import!E4951","v":"Select Yes/No"},{"$f":"Import!E4967","v":"Select Yes/No"}]
[null,"(vi)","Underwriting",null,null,{"$f":"Import!E4952","v":"Select Yes/No"},{"$f":"Import!E4968","v":"Select Yes/No"}]
[null,"(vii)","\tClaims Handling\r\n",null,null,{"$f":"Import!E4953","v":"Select Yes/No"},{"$f":"Import!E4969","v":"Select Yes/No"}]
[null,"(viii)","Risk Management",null,null,{"$f":"Import!E4954","v":"Select Yes/No"},{"$f":"Import!E4970","v":"Select Yes/No"}]
[null,"(ix)","Investment",null,null,{"$f":"Import!E4955","v":"Select Yes/No"},{"$f":"Import!E4971","v":"Select Yes/No"}]
[null,"(x)","Treasury",null,null,{"$f":"Import!E4956","v":"Select Yes/No"},{"$f":"Import!E4972","v":"Select Yes/No"}]
[null,"(xi)","Actuarial functions",null,null,{"$f":"Import!E4957","v":"Select Yes/No"},{"$f":"Import!E4973","v":"Select Yes/No"}]
[null,"(xii)","Internal Audit",null,null,{"$f":"Import!E4958","v":"Select Yes/No"},{"$f":"Import!E4974","v":"Select Yes/No"}]
[null,"(xiii)","\tCompliance\r\n",null,null,{"$f":"Import!E4959","v":"Select Yes/No"},{"$f":"Import!E4975","v":"Select Yes/No"}]
[null,"(xiv)","AML/AFT/Sanctions Compliance",null,null,{"$f":"Import!E4960","v":"Select Yes/No"},{"$f":"Import!E4976","v":"Select Yes/No"}]
[null,"(xv)","Money Laundering Reporting Officer",null,null,{"$f":"Import!E4961","v":"Select Yes/No"},{"$f":"Import!E4977","v":"Select Yes/No"}]
[null,"(xvi)","Other (if other, disclose)",{"$f":"Import!E4962","v":0}]
[]
[null,6,"Number of employees of the insurer that are resident in Bermuda (non-outsourced positions)",null,null,null,{"$f":"Import!E4978","v":0}]
[]
[null,"6a","Number of employees in Bermuda working as:"]
[null,"(i)","Senior Executive",null,null,null,{"$f":"Import!E4979","v":0}]
[null,"(ii)","Senior Manager",null,null,null,{"$f":"Import!E4980","v":0}]
[null,"(iii)","Technical Officer",null,null,null,{"$f":"Import!E4981","v":0}]
[null,"(iv)","Administrative",null,null,null,{"$f":"Import!E4982","v":0}]
[null,null,"Total",null,null,null,{"$f":"SUM(G101:G104)","v":0}]
[]
[null,null,"Check",null,null,null,{"$f":"IF(G98=G105,\"True\",\"False\")","v":"True"}]
[]
[null,7,"Name of the jurisdiction(s) where the group's board of directors primarily deliberates on the following matters —"]
[null,null,"(a) Setting strategic decision",null,null,null,{"$f":"Import!M4983","v":0}]
[null,null,"(b) Determining the group's risk appetite",null,null,null,{"$f":"Import!M4984","v":0}]
[null,null,"(c) Choosing corporate structure, including amalgamations, acquisitions and strategic alliances",null,null,null,{"$f":"Import!M4985","v":0}]
[null,null,"(d) Making strategic decisions about new and/or changes to products, lines of business or markets",null,null,null,{"$f":"Import!M4986","v":0}]
[null,null,"(e) Assessing or managing solvency requirements",null,null,null,{"$f":"Import!M4987","v":0}]
[]
[null,8,"Name of the jurisdiction(s) where the group's board of directors and chief and"]
[null,null,"senior executives primarily reside —",null,null,null,{"$f":"Import!M4988","v":0}]
[]
[null,9,"Name of the jurisdiction(s) where the group's control functions reside "]
[null,null,"(i.e., group finance, actuarial, and risk management) —",null,null,null,{"$f":"Import!M4989","v":0}]
[]
[null,10,"The group's financial position based on its most recent audited general purpose financial statements —"]
[null,null,"(a) Total assets",null,null,null,{"$f":"Import!M4990","v":0}]
[null,null,"(b) Total reserves",null,null,null,{"$f":"Import!M4991","v":0}]
[null,null,"(c) Capital and surplus",null,null,null,{"$f":"Import!M4992","v":0}]
[]
[null,11,"Name of insurers (and place of incorporation) within the group that have the three highest: (i) total asset value, (ii) total insurance "]
[null,null,"reserve value and (iii) capital and surplus, based on the group's most recent audited general purpose financial statements —"]
[null,null,"Name of Insurer","Jurisdiction","Asset Value","Insurance Reserve Value","Capital and Surplus"]
[null,1,{"$f":"Import!M4993","v":0},{"$f":"Import!M5002","v":0},{"$f":"Import!M5011","v":0},{"$f":"Import!M5020","v":0},{"$f":"Import!M5029","v":0}]
[null,2,{"$f":"Import!M4994","v":0},{"$f":"Import!M5003","v":0},{"$f":"Import!M5012","v":0},{"$f":"Import!M5021","v":0},{"$f":"Import!M5030","v":0}]
[null,3,{"$f":"Import!M4995","v":0},{"$f":"Import!M5004","v":0},{"$f":"Import!M5013","v":0},{"$f":"Import!M5022","v":0},{"$f":"Import!M5031","v":0}]
[null,4,{"$f":"Import!M4996","v":0},{"$f":"Import!M5005","v":0},{"$f":"Import!M5014","v":0},{"$f":"Import!M5023","v":0},{"$f":"Import!M5032","v":0}]
[null,5,{"$f":"Import!M4997","v":0},{"$f":"Import!M5006","v":0},{"$f":"Import!M5015","v":0},{"$f":"Import!M5024","v":0},{"$f":"Import!M5033","v":0}]
[null,6,{"$f":"Import!M4998","v":0},{"$f":"Import!M5007","v":0},{"$f":"Import!M5016","v":0},{"$f":"Import!M5025","v":0},{"$f":"Import!M5034","v":0}]
[null,7,{"$f":"Import!M4999","v":0},{"$f":"Import!M5008","v":0},{"$f":"Import!M5017","v":0},{"$f":"Import!M5026","v":0},{"$f":"Import!M5035","v":0}]
[null,8,{"$f":"Import!M5000","v":0},{"$f":"Import!M5009","v":0},{"$f":"Import!M5018","v":0},{"$f":"Import!M5027","v":0},{"$f":"Import!M5036","v":0}]
[null,9,{"$f":"Import!M5001","v":0},{"$f":"Import!M5010","v":0},{"$f":"Import!M5019","v":0},{"$f":"Import!M5028","v":0},{"$f":"Import!M5037","v":0}]
[]
[null,12,"Describe any subsequent events or decisions that would or have materially changed the information in items (4) to (11) above "]
[null,null,"(e.g., amalgamation, acquisition, restructuring, etc.) —"]
[null,null,{"$f":"Import!E5038","v":0}]
[]
[null,null,null,null,null,"Doc Name","Page Number"]
[null,13,"A copy of the latest group organisational chart —",null,{"$f":"HYPERLINK(\"#'Attachments'!G75\",\"Attach file\")","v":"Attach file"}]
[]
[]
[null,null,"Select","Select",null,"Select",null,"Select Yes/No"]
[null,null,"N/A","Insurance Manager","Insurance Manager","Insurer",null,"Yes",null,"Select"]
[null,null,"United Kingdom","Other Third Party","Other Third Party","Affiliate",null,"No",null,"Non-executive (Independent)"]
[null,null,"United States of America","Affiliate","Affiliate","External service provider ",null,null,null,"Non-executive (Affiliate)"]
[null,null,"Canada",null,null,null,null,null,null,"Non-executive (Service Provider)"]
[null,null,null,null,null,null,null,null,null,"Non-executive (Other)"]
[null,null,"Afghanistan",null,null,null,null,null,null,"Executive"]
[null,null,"Aland Islands",null,null,null,null,null,null,"Select"]
[null,null,"Albania",null,null,null,null,null,null,"A - Has authority to make key strategic, underwriting or investment decisions, etc."]
[null,null,"Algeria",null,null,null,null,null,null,"B - Has authority to make key strategic, underwriting or investments decision, etc., within the risk appetite explicitly set by the Board of Directors."]
[null,null,"American Samoa",null,null,null,null,null,null,"C - Must get key strategic, underwriting, or investment decisions signed-off by Board of Directors before executing."]
[null,null,"Andorra"]
[null,null,"Angola"]
[null,null,"Anguilla"]
[null,null,"Antigua & Barbuda"]
[null,null,"Argentina"]
[null,null,"Armenia"]
[null,null,"Aruba"]
[null,null,"Australia"]
[null,null,"Austria"]
[null,null,"Azerbaijan"]
[null,null,"Bahamas"]
[null,null,"Bahrain"]
[null,null,"Bangladesh"]
[null,null,"Barbados"]
[null,null,"Belarus"]
[null,null,"Belgium"]
[null,null,"Belize"]
[null,null,"Benin"]
[null,null,"Bhutan"]
[null,null,"Bolivia"]
[null,null,"Bosnia and Herzegovina"]
[null,null,"Botswana"]
[null,null,"Brazil"]
[null,null,"British Virgin Islands"]
[null,null,"Brunei Darussalam"]
[null,null,"Bulgaria"]
[null,null,"Burkina Faso"]
[null,null,"Burundi"]
[null,null,"Cambodia"]
[null,null,"Cameroon"]
[null,null,"Cape Verde"]
[null,null,"Cayman Islands"]
[null,null,"Central African Republic"]
[null,null,"Chad"]
[null,null,"Chile"]
[null,null,"China"]
[null,null,"Colombia"]
[null,null,"Comoros"]
[null,null,"Cook Islands"]
[null,null,"Costa Rica"]
[null,null,"Cote d' Ivoire"]
[null,null,"Croatia"]
[null,null,"Cuba"]
[null,null,"Cyprus"]
[null,null,"Czech Republic"]
[null,null,"Democratic Republic of Congo"]
[null,null,"Denmark"]
[null,null,"Djibouti"]
[null,null,"Dominica"]
[null,null,"Dominican Republic"]
[null,null,"Ecuador"]
[null,null,"Egypt"]
[null,null,"El Salvador"]
[null,null,"Equatorial Guinea"]
[null,null,"Eritrea"]
[null,null,"Estonia"]
[null,null,"Ethiopia"]
[null,null,"Faeroe Islands"]
[null,null,"Falkland Islands"]
[null,null,"Fiji"]
[null,null,"Finland"]
[null,null,"France"]
[null,null,"French Guiana"]
[null,null,"French Polynesia"]
[null,null,"fYR of Macedonia"]
[null,null,"Gabon"]
[null,null,"Gambia"]
[null,null,"Georgia"]
[null,null,"Germany"]
[null,null,"Ghana"]
[null,null,"Gibraltar"]
[null,null,"Greece"]
[null,null,"Greenland"]
[null,null,"Grenada"]
[null,null,"Guadeloupe"]
[null,null,"Guam"]
[null,null,"Guatemala"]
[null,null,"Guernsey"]
[null,null,"Guinea"]
[null,null,"Guinea-Bissau"]
[null,null,"Guyana"]
[null,null,"Haiti"]
[null,null,"Honduras"]
[null,null,"Hong Kong"]
[null,null,"Hungary"]
[null,null,"Iceland"]
[null,null,"India"]
[null,null,"Indonesia"]
[null,null,"Iran"]
[null,null,"Iraq"]
[null,null,"Isle of Man"]
[null,null,"Israel"]
[null,null,"Italy"]
[null,null,"Jamica"]
[null,null,"Japan"]
[null,null,"Jersey"]
[null,null,"Jordan"]
[null,null,"Kazakhstan"]
[null,null,"Kenya"]
[null,null,"Kiribati"]
[null,null,"Kuwait"]
[null,null,"Kyrgyzstan"]
[null,null,"Lao PDR"]
[null,null,"Latvia"]
[null,null,"Lebanon"]
[null,null,"Lesotho"]
[null,null,"Liberia"]
[null,null,"Libya"]
[null,null,"Liechtenstein"]
[null,null,"Lithuania"]
[null,null,"Luxembourg"]
[null,null,"Macao"]
[null,null,"Madagascar"]
[null,null,"Malawi"]
[null,null,"Malaysia"]
[null,null,"Maldives"]
[null,null,"Mali"]
[null,null,"Malta"]
[null,null,"Marshall Islands"]
[null,null,"Mauritania"]
[null,null,"Mauritius"]
[null,null,"Mayotte"]
[null,null,"Mexico"]
[null,null,"Micronesia"]
[null,null,"Moldova"]
[null,null,"Monaco"]
[null,null,"Mongolia"]
[null,null,"Montenegro"]
[null,null,"Montserrat"]
[null,null,"Morocco"]
[null,null,"Mozambique"]
[null,null,"Myanmar"]
[null,null,"N. Mariana Islands"]
[null,null,"Namibia"]
[null,null,"Nauru"]
[null,null,"Nepal"]
[null,null,"Netherlands"]
[null,null,"Netherlands Antilles (Curacao and Bonaire)"]
[null,null,"New Caledonia"]
[null,null,"New Zealand"]
[null,null,"Nicaragua"]
[null,null,"Niger"]
[null,null,"Nigeria"]
[null,null,"Niue"]
[null,null,"Norfolk Island"]
[null,null,"North Korea"]
[null,null,"Northern Africa"]
[null,null,"Norway"]
[null,null,"Oman"]
[null,null,"Pakistan"]
[null,null,"Palau"]
[null,null,"Palestinian"]
[null,null,"Panama"]
[null,null,"Papua New Guinea"]
[null,null,"Paraguay"]
[null,null,"Peru"]
[null,null,"Philippines"]
[null,null,"Pitcairn"]
[null,null,"Poland"]
[null,null,"Portugal"]
[null,null,"Puerto Rico"]
[null,null,"Qatar"]
[null,null,"Republic of Congo"]
[null,null,"Republic of Ireland"]
[null,null,"Reunion"]
[null,null,"Romania"]
[null,null,"Russian Federation"]
[null,null,"Rwanda"]
[null,null,"Saint Helena"]
[null,null,"Samoa"]
[null,null,"San Marino"]
[null,null,"Sao Tome & Principe"]
[null,null,"Saudi Arabia"]
[null,null,"Senegal"]
[null,null,"Serbia"]
[null,null,"Seychelles"]
[null,null,"Sierra Leone"]
[null,null,"Singapore"]
[null,null,"Slovakia"]
[null,null,"Slovenia"]
[null,null,"Solomon Islands"]
[null,null,"Somalia"]
[null,null,"South Africa"]
[null,null,"South Korea"]
[null,null,"Spain"]
[null,null,"Sri Lanka"]
[null,null,"St Kitts & Nevis"]
[null,null,"St Lucia"]
[null,null,"St Pierre & Miquelon"]
[null,null,"St. Maarten"]
[null,null,"St. Vincent & the Grenadines"]
[null,null,"St-Barthelemy"]
[null,null,"Sudan"]
[null,null,"Suriname"]
[null,null,"Svalbard, Jan Mayen"]
[null,null,"Swaziland"]
[null,null,"Sweden"]
[null,null,"Switzerland"]
[null,null,"Syria"]
[null,null,"Taiwan"]
[null,null,"Tajikistan"]
[null,null,"Thailand"]
[null,null,"Timor-Leste"]
[null,null,"Togo"]
[null,null,"Tokelau"]
[null,null,"Tonga"]
[null,null,"Trinidad & Tobago"]
[null,null,"Tunisia"]
[null,null,"Turkey"]
[null,null,"Turkmenistan"]
[null,null,"Turks & Caicos Islands"]
[null,null,"Tuvalu"]
[null,null,"Uganda"]
[null,null,"Ukraine"]
[null,null,"United Arab Emirates"]
[null,null,"United Republic of Tanzania"]
[null,null,"Uruguay"]
[null,null,"US Virgin Islands"]
[null,null,"Uzbekistan"]
[null,null,"Vanuatu"]
[null,null,"Vatican City"]
[null,null,"Venezuela"]
[null,null,"Vietnam"]
[null,null,"Wallis & Futuna Islands"]
[null,null,"Western Sahara"]
[null,null,"Yemen"]
[null,null,"Zambia"]
[null,null,"Zimbabwe"]

{"sheet":"Schedule V(c)","index":44,"n_rows":122,"n_cols":12,"rows_kept":122,"cut":false,"hidden":false,"merged":[[3,4,3,5],[4,4,4,5],[28,6,28,8],[29,6,29,8],[30,6,30,8],[31,6,31,8],[32,6,32,8],[2,2,2,4],[12,3,13,3],[12,5,13,5],[10,6,13,8],[14,6,14,8],[15,6,15,8],[16,6,16,8],[17,6,17,8],[18,6,18,8],[22,6,22,8],[23,6,23,8],[24,6,24,8],[25,6,25,8],[26,6,26,8],[27,6,27,8],[12,2,13,2],[12,4,13,4],[44,8,45,9],[19,6,19,8],[20,6,20,8],[21,6,21,8],[44,2,45,7],[44,10,45,11],[10,9,13,9],[33,6,33,8],[34,6,34,8],[35,6,35,8],[36,6,36,8],[37,6,37,8],[38,6,38,8],[10,2,11,5],[41,6,42,11],[82,9,82,10],[83,9,83,10],[84,9,84,10],[85,9,85,10],[86,9,86,10],[87,9,87,10],[80,2,81,5],[80,6,81,6],[82,2,82,5],[83,2,83,5],[84,2,84,5],[80,9,81,10],[80,7,80,8],[81,7,81,8],[85,2,85,5],[86,2,86,5],[87,2,87,5],[94,9,94,10],[95,9,95,10],[96,9,96,10],[97,9,97,10],[98,9,98,10],[99,9,99,10],[88,9,88,10],[89,9,89,10],[90,9,90,10],[91,9,91,10],[92,9,92,10],[93,9,93,10],[120,2,120,5],[100,9,100,10],[101,9,101,10],[102,9,102,10],[119,9,119,10],[120,9,120,10],[121,9,121,10],[112,9,112,10],[113,9,113,10],[114,9,114,10],[115,9,115,10],[116,9,116,10],[117,9,117,10],[103,9,103,10],[104,9,104,10],[105,9,105,10],[118,9,118,10],[106,9,106,10],[107,9,107,10],[108,9,108,10],[109,9,109,10],[110,9,110,10],[111,9,111,10],[121,2,121,5],[114,2,114,5],[115,2,115,5],[116,2,116,5],[117,2,117,5],[118,2,118,5],[119,2,119,5],[91,2,91,5],[92,2,92,5],[99,2,99,5],[100,2,100,5],[101,2,101,5],[102,2,102,5],[103,2,103,5],[104,2,104,5],[105,2,105,5],[108,2,108,5],[109,2,109,5],[110,2,110,5],[111,2,111,5],[106,2,106,5],[107,2,107,5],[112,2,112,5],[113,2,113,5],[88,2,88,5],[89,2,89,5],[90,2,90,5],[97,2,97,5],[98,2,98,5],[93,2,93,5],[94,2,94,5],[95,2,95,5],[96,2,96,5]]}
[null,null,"SCHEDULE OF RISK MANAGEMENT - INTRA-GROUP EXPOSURES AND RISK CONCENTRATIONS",null,null,null,null,null,null,null,null,{"$f":"HYPERLINK(\"#'Index'!A1\",\"Return to Index\")","v":"Return to Index"}]
[]
[null,null,{"$f":"'Company Information'!C7","v":"Enter Company Name"}]
[null,null,"For the year ending",null,{"$f":"'Company Information'!C3","v":"2022-12-31"},null,null,null,null,null,null,"SCHEDULE V(c)"]
[null,null,{"$f":"\"expressed in\"& IF(CONFIGURATION!$B$12>1,\" ['\"&MID(CONFIGURATION!$B$12,2,LEN(CONFIGURATION!$B$12))&\"s]\",\"\")","v":"expressed in ['000s]"},null,{"$f":"'Form 1SFS (Consolidated)'!$C$5","v":"United States Dollars"}]
[]
[null,1,"Details of material intra-group transactions —"]
[null,null,"Enter Number of Material Intra-Group Transactions"]
[null,null,"Enter information for each transaction",null,{"$f":"Import!E5039","v":0}]
[]
[null,null,"Counterparties Involved",null,null,null,"Transaction Details \n(Purpose, terms, transaction cost, duration and performance trigger)",null,null,"Exposure Value \n(face value or market value)"]
[]
[null,null,"Issuer/Borrower/Debtor","Jurisdiction","Investor/Lender/Creditor","Jurisdiction"]
[]
[null,1,{"$f":"Import!E5040","v":0},{"$f":"Import!E5065","v":0},{"$f":"Import!E5090","v":0},{"$f":"Import!E5115","v":0},{"$f":"Import!E5140","v":0},null,null,{"$f":"Import!E5165","v":0}]
[null,2,{"$f":"Import!E5041","v":0},{"$f":"Import!E5066","v":0},{"$f":"Import!E5091","v":0},{"$f":"Import!E5116","v":0},{"$f":"Import!E5141","v":0},null,null,{"$f":"Import!E5166","v":0}]
[null,3,{"$f":"Import!E5042","v":0},{"$f":"Import!E5067","v":0},{"$f":"Import!E5092","v":0},{"$f":"Import!E5117","v":0},{"$f":"Import!E5142","v":0},null,null,{"$f":"Import!E5167","v":0}]
[null,4,{"$f":"Import!E5043","v":0},{"$f":"Import!E5068","v":0},{"$f":"Import!E5093","v":0},{"$f":"Import!E5118","v":0},{"$f":"Import!E5143","v":0},null,null,{"$f":"Import!E5168","v":0}]
[null,5,{"$f":"Import!E5044","v":0},{"$f":"Import!E5069","v":0},{"$f":"Import!E5094","v":0},{"$f":"Import!E5119","v":0},{"$f":"Import!E5144","v":0},null,null,{"$f":"Import!E5169","v":0}]
[null,6,{"$f":"Import!E5045","v":0},{"$f":"Import!E5070","v":0},{"$f":"Import!E5095","v":0},{"$f":"Import!E5120","v":0},{"$f":"Import!E5145","v":0},null,null,{"$f":"Import!E5170","v":0}]
[null,7,{"$f":"Import!E5046","v":0},{"$f":"Import!E5071","v":0},{"$f":"Import!E5096","v":0},{"$f":"Import!E5121","v":0},{"$f":"Import!E5146","v":0},null,null,{"$f":"Import!E5171","v":0}]
[null,8,{"$f":"Import!E5047","v":0},{"$f":"Import!E5072","v":0},{"$f":"Import!E5097","v":0},{"$f":"Import!E5122","v":0},{"$f":"Import!E5147","v":0},null,null,{"$f":"Import!E5172","v":0}]
[null,9,{"$f":"Import!E5048","v":0},{"$f":"Import!E5073","v":0},{"$f":"Import!E5098","v":0},{"$f":"Import!E5123","v":0},{"$f":"Import!E5148","v":0},null,null,{"$f":"Import!E5173","v":0}]
[null,10,{"$f":"Import!E5049","v":0},{"$f":"Import!E5074","v":0},{"$f":"Import!E5099","v":0},{"$f":"Import!E5124","v":0},{"$f":"Import!E5149","v":0},null,null,{"$f":"Import!E5174","v":0}]
[null,11,{"$f":"Import!E5050","v":0},{"$f":"Import!E5075","v":0},{"$f":"Import!E5100","v":0},{"$f":"Import!E5125","v":0},{"$f":"Import!E5150","v":0},null,null,{"$f":"Import!E5175","v":0}]
[null,12,{"$f":"Import!E5051","v":0},{"$f":"Import!E5076","v":0},{"$f":"Import!E5101","v":0},{"$f":"Import!E5126","v":0},{"$f":"Import!E5151","v":0},null,null,{"$f":"Import!E5176","v":0}]
[null,13,{"$f":"Import!E5052","v":0},{"$f":"Import!E5077","v":0},{"$f":"Import!E5102","v":0},{"$f":"Import!E5127","v":0},{"$f":"Import!E5152","v":0},null,null,{"$f":"Import!E5177","v":0}]
[null,14,{"$f":"Import!E5053","v":0},{"$f":"Import!E5078","v":0},{"$f":"Import!E5103","v":0},{"$f":"Import!E5128","v":0},{"$f":"Import!E5153","v":0},null,null,{"$f":"Import!E5178","v":0}]
[null,15,{"$f":"Import!E5054","v":0},{"$f":"Import!E5079","v":0},{"$f":"Import!E5104","v":0},{"$f":"Import!E5129","v":0},{"$f":"Import!E5154","v":0},null,null,{"$f":"Import!E5179","v":0}]
[null,16,{"$f":"Import!E5055","v":0},{"$f":"Import!E5080","v":0},{"$f":"Import!E5105","v":0},{"$f":"Import!E5130","v":0},{"$f":"Import!E5155","v":0},null,null,{"$f":"Import!E5180","v":0}]
[null,17,{"$f":"Import!E5056","v":0},{"$f":"Import!E5081","v":0},{"$f":"Import!E5106","v":0},{"$f":"Import!E5131","v":0},{"$f":"Import!E5156","v":0},null,null,{"$f":"Import!E5181","v":0}]
[null,18,{"$f":"Import!E5057","v":0},{"$f":"Import!E5082","v":0},{"$f":"Import!E5107","v":0},{"$f":"Import!E5132","v":0},{"$f":"Import!E5157","v":0},null,null,{"$f":"Import!E5182","v":0}]
[null,19,{"$f":"Import!E5058","v":0},{"$f":"Import!E5083","v":0},{"$f":"Import!E5108","v":0},{"$f":"Import!E5133","v":0},{"$f":"Import!E5158","v":0},null,null,{"$f":"Import!E5183","v":0}]
[null,20,{"$f":"Import!E5059","v":0},{"$f":"Import!E5084","v":0},{"$f":"Import!E5109","v":0},{"$f":"Import!E5134","v":0},{"$f":"Import!E5159","v":0},null,null,{"$f":"Import!E5184","v":0}]
[null,21,{"$f":"Import!E5060","v":0},{"$f":"Import!E5085","v":0},{"$f":"Import!E5110","v":0},{"$f":"Import!E5135","v":0},{"$f":"Import!E5160","v":0},null,null,{"$f":"Import!E5185","v":0}]
[null,22,{"$f":"Import!E5061","v":0},{"$f":"Import!E5086","v":0},{"$f":"Import!E5111","v":0},{"$f":"Import!E5136","v":0},{"$f":"Import!E5161","v":0},null,null,{"$f":"Import!E5186","v":0}]
[null,23,{"$f":"Import!E5062","v":0},{"$f":"Import!E5087","v":0},{"$f":"Import!E5112","v":0},{"$f":"Import!E5137","v":0},{"$f":"Import!E5162","v":0},null,null,{"$f":"Import!E5187","v":0}]
[null,24,{"$f":"Import!E5063","v":0},{"$f":"Import!E5088","v":0},{"$f":"Import!E5113","v":0},{"$f":"Import!E5138","v":0},{"$f":"Import!E5163","v":0},null,null,{"$f":"Import!E5188","v":0}]
[null,25,{"$f":"Import!E5064","v":0},{"$f":"Import!E5089","v":0},{"$f":"Import!E5114","v":0},{"$f":"Import!E5139","v":0},{"$f":"Import!E5164","v":0},null,null,{"$f":"Import!E5189","v":0}]
[]
[null,2,"Details of all intra-group reinsurance and retrocession arrangements —"]
[null,null,"Enter Number of Intra-Group (Re)insurance Arrangements",null,null,null,{"$f":"IF(E43>25,\"Please group arrangements with the same cedent and assuming parties together. Only 25 arrangements can be populated below. Additional arrangements must be provided as an attachment.\",\"\")","v":""}]
[null,null,"Enter information for each arrangement",null,{"$f":"Import!E5190","v":0}]
[]
[null,null,"Counterparties Involved",null,null,null,null,null,"Aggregated values of the exposure limits",null,"Aggregated premium flows"]
[]
[null,null,"Assuming party ","Jurisdiction","Rating","Ceding party","Jurisdiction","Rating","Gross","Net","Gross","Net"]
[null,1,{"$f":"Import!E5191","v":0},{"$f":"Import!E5216","v":0},{"$f":"Import!E5241","v":0},{"$f":"Import!E5266","v":0},{"$f":"Import!E5291","v":0},{"$f":"Import!E5316","v":0},{"$f":"Import!E5341","v":0},{"$f":"Import!E5366","v":0},{"$f":"Import!E5391","v":0},{"$f":"Import!E5416","v":0}]
[null,2,{"$f":"Import!E5192","v":0},{"$f":"Import!E5217","v":0},{"$f":"Import!E5242","v":0},{"$f":"Import!E5267","v":0},{"$f":"Import!E5292","v":0},{"$f":"Import!E5317","v":0},{"$f":"Import!E5342","v":0},{"$f":"Import!E5367","v":0},{"$f":"Import!E5392","v":0},{"$f":"Import!E5417","v":0}]
[null,3,{"$f":"Import!E5193","v":0},{"$f":"Import!E5218","v":0},{"$f":"Import!E5243","v":0},{"$f":"Import!E5268","v":0},{"$f":"Import!E5293","v":0},{"$f":"Import!E5318","v":0},{"$f":"Import!E5343","v":0},{"$f":"Import!E5368","v":0},{"$f":"Import!E5393","v":0},{"$f":"Import!E5418","v":0}]
[null,4,{"$f":"Import!E5194","v":0},{"$f":"Import!E5219","v":0},{"$f":"Import!E5244","v":0},{"$f":"Import!E5269","v":0},{"$f":"Import!E5294","v":0},{"$f":"Import!E5319","v":0},{"$f":"Import!E5344","v":0},{"$f":"Import!E5369","v":0},{"$f":"Import!E5394","v":0},{"$f":"Import!E5419","v":0}]
[null,5,{"$f":"Import!E5195","v":0},{"$f":"Import!E5220","v":0},{"$f":"Import!E5245","v":0},{"$f":"Import!E5270","v":0},{"$f":"Import!E5295","v":0},{"$f":"Import!E5320","v":0},{"$f":"Import!E5345","v":0},{"$f":"Import!E5370","v":0},{"$f":"Import!E5395","v":0},{"$f":"Import!E5420","v":0}]
[null,6,{"$f":"Import!E5196","v":0},{"$f":"Import!E5221","v":0},{"$f":"Import!E5246","v":0},{"$f":"Import!E5271","v":0},{"$f":"Import!E5296","v":0},{"$f":"Import!E5321","v":0},{"$f":"Import!E5346","v":0},{"$f":"Import!E5371","v":0},{"$f":"Import!E5396","v":0},{"$f":"Import!E5421","v":0}]
[null,7,{"$f":"Import!E5197","v":0},{"$f":"Import!E5222","v":0},{"$f":"Import!E5247","v":0},{"$f":"Import!E5272","v":0},{"$f":"Import!E5297","v":0},{"$f":"Import!E5322","v":0},{"$f":"Import!E5347","v":0},{"$f":"Import!E5372","v":0},{"$f":"Import!E5397","v":0},{"$f":"Import!E5422","v":0}]
[null,8,{"$f":"Import!E5198","v":0},{"$f":"Import!E5223","v":0},{"$f":"Import!E5248","v":0},{"$f":"Import!E5273","v":0},{"$f":"Import!E5298","v":0},{"$f":"Import!E5323","v":0},{"$f":"Import!E5348","v":0},{"$f":"Import!E5373","v":0},{"$f":"Import!E5398","v":0},{"$f":"Import!E5423","v":0}]
[null,9,{"$f":"Import!E5199","v":0},{"$f":"Import!E5224","v":0},{"$f":"Import!E5249","v":0},{"$f":"Import!E5274","v":0},{"$f":"Import!E5299","v":0},{"$f":"Import!E5324","v":0},{"$f":"Import!E5349","v":0},{"$f":"Import!E5374","v":0},{"$f":"Import!E5399","v":0},{"$f":"Import!E5424","v":0}]
[null,10,{"$f":"Import!E5200","v":0},{"$f":"Import!E5225","v":0},{"$f":"Import!E5250","v":0},{"$f":"Import!E5275","v":0},{"$f":"Import!E5300","v":0},{"$f":"Import!E5325","v":0},{"$f":"Import!E5350","v":0},{"$f":"Import!E5375","v":0},{"$f":"Import!E5400","v":0},{"$f":"Import!E5425","v":0}]
[null,11,{"$f":"Import!E5201","v":0},{"$f":"Import!E5226","v":0},{"$f":"Import!E5251","v":0},{"$f":"Import!E5276","v":0},{"$f":"Import!E5301","v":0},{"$f":"Import!E5326","v":0},{"$f":"Import!E5351","v":0},{"$f":"Import!E5376","v":0},{"$f":"Import!E5401","v":0},{"$f":"Import!E5426","v":0}]
[null,12,{"$f":"Import!E5202","v":0},{"$f":"Import!E5227","v":0},{"$f":"Import!E5252","v":0},{"$f":"Import!E5277","v":0},{"$f":"Import!E5302","v":0},{"$f":"Import!E5327","v":0},{"$f":"Import!E5352","v":0},{"$f":"Import!E5377","v":0},{"$f":"Import!E5402","v":0},{"$f":"Import!E5427","v":0}]
[null,13,{"$f":"Import!E5203","v":0},{"$f":"Import!E5228","v":0},{"$f":"Import!E5253","v":0},{"$f":"Import!E5278","v":0},{"$f":"Import!E5303","v":0},{"$f":"Import!E5328","v":0},{"$f":"Import!E5353","v":0},{"$f":"Import!E5378","v":0},{"$f":"Import!E5403","v":0},{"$f":"Import!E5428","v":0}]
[null,14,{"$f":"Import!E5204","v":0},{"$f":"Import!E5229","v":0},{"$f":"Import!E5254","v":0},{"$f":"Import!E5279","v":0},{"$f":"Import!E5304","v":0},{"$f":"Import!E5329","v":0},{"$f":"Import!E5354","v":0},{"$f":"Import!E5379","v":0},{"$f":"Import!E5404","v":0},{"$f":"Import!E5429","v":0}]
[null,15,{"$f":"Import!E5205","v":0},{"$f":"Import!E5230","v":0},{"$f":"Import!E5255","v":0},{"$f":"Import!E5280","v":0},{"$f":"Import!E5305","v":0},{"$f":"Import!E5330","v":0},{"$f":"Import!E5355","v":0},{"$f":"Import!E5380","v":0},{"$f":"Import!E5405","v":0},{"$f":"Import!E5430","v":0}]
[null,16,{"$f":"Import!E5206","v":0},{"$f":"Import!E5231","v":0},{"$f":"Import!E5256","v":0},{"$f":"Import!E5281","v":0},{"$f":"Import!E5306","v":0},{"$f":"Import!E5331","v":0},{"$f":"Import!E5356","v":0},{"$f":"Import!E5381","v":0},{"$f":"Import!E5406","v":0},{"$f":"Import!E5431","v":0}]
[null,17,{"$f":"Import!E5207","v":0},{"$f":"Import!E5232","v":0},{"$f":"Import!E5257","v":0},{"$f":"Import!E5282","v":0},{"$f":"Import!E5307","v":0},{"$f":"Import!E5332","v":0},{"$f":"Import!E5357","v":0},{"$f":"Import!E5382","v":0},{"$f":"Import!E5407","v":0},{"$f":"Import!E5432","v":0}]
[null,18,{"$f":"Import!E5208","v":0},{"$f":"Import!E5233","v":0},{"$f":"Import!E5258","v":0},{"$f":"Import!E5283","v":0},{"$f":"Import!E5308","v":0},{"$f":"Import!E5333","v":0},{"$f":"Import!E5358","v":0},{"$f":"Import!E5383","v":0},{"$f":"Import!E5408","v":0},{"$f":"Import!E5433","v":0}]
[null,19,{"$f":"Import!E5209","v":0},{"$f":"Import!E5234","v":0},{"$f":"Import!E5259","v":0},{"$f":"Import!E5284","v":0},{"$f":"Import!E5309","v":0},{"$f":"Import!E5334","v":0},{"$f":"Import!E5359","v":0},{"$f":"Import!E5384","v":0},{"$f":"Import!E5409","v":0},{"$f":"Import!E5434","v":0}]
[null,20,{"$f":"Import!E5210","v":0},{"$f":"Import!E5235","v":0},{"$f":"Import!E5260","v":0},{"$f":"Import!E5285","v":0},{"$f":"Import!E5310","v":0},{"$f":"Import!E5335","v":0},{"$f":"Import!E5360","v":0},{"$f":"Import!E5385","v":0},{"$f":"Import!E5410","v":0},{"$f":"Import!E5435","v":0}]
[null,21,{"$f":"Import!E5211","v":0},{"$f":"Import!E5236","v":0},{"$f":"Import!E5261","v":0},{"$f":"Import!E5286","v":0},{"$f":"Import!E5311","v":0},{"$f":"Import!E5336","v":0},{"$f":"Import!E5361","v":0},{"$f":"Import!E5386","v":0},{"$f":"Import!E5411","v":0},{"$f":"Import!E5436","v":0}]
[null,22,{"$f":"Import!E5212","v":0},{"$f":"Import!E5237","v":0},{"$f":"Import!E5262","v":0},{"$f":"Import!E5287","v":0},{"$f":"Import!E5312","v":0},{"$f":"Import!E5337","v":0},{"$f":"Import!E5362","v":0},{"$f":"Import!E5387","v":0},{"$f":"Import!E5412","v":0},{"$f":"Import!E5437","v":0}]
[null,23,{"$f":"Import!E5213","v":0},{"$f":"Import!E5238","v":0},{"$f":"Import!E5263","v":0},{"$f":"Import!E5288","v":0},{"$f":"Import!E5313","v":0},{"$f":"Import!E5338","v":0},{"$f":"Import!E5363","v":0},{"$f":"Import!E5388","v":0},{"$f":"Import!E5413","v":0},{"$f":"Import!E5438","v":0}]
[null,24,{"$f":"Import!E5214","v":0},{"$f":"Import!E5239","v":0},{"$f":"Import!E5264","v":0},{"$f":"Import!E5289","v":0},{"$f":"Import!E5314","v":0},{"$f":"Import!E5339","v":0},{"$f":"Import!E5364","v":0},{"$f":"Import!E5389","v":0},{"$f":"Import!E5414","v":0},{"$f":"Import!E5439","v":0}]
[null,25,{"$f":"Import!E5215","v":0},{"$f":"Import!E5240","v":0},{"$f":"Import!E5265","v":0},{"$f":"Import!E5290","v":0},{"$f":"Import!E5315","v":0},{"$f":"Import!E5340","v":0},{"$f":"Import!E5365","v":0},{"$f":"Import!E5390","v":0},{"$f":"Import!E5415","v":0},{"$f":"Import!E5440","v":0}]
[]
[null,3,"The proportion of the insurer's insurance business covered by internal reinsurance, retrocession and other risk transfer arrangements-(in percentage)",null,null,null,null,null,null,null,null,{"$f":"Import!E5441","v":0}]
[]
[null,4,"Ten largest exposures to unaffiliated counterparties and any other unaffiliated counterparty exposures or series of linked unaffiliated"]
[null,null," counterparty  exposures exceeding 10% of the insurer's  statutory capital and surplus —"]
[null,null,"Enter Number of Material Counterparty Exposures"]
[null,null,"Enter information for each exposure",null,{"$f":"Import!E5442","v":0}]
[]
[null,null,"Name of Counterparty",null,null,null,"Jurisdiction","Exposure Values ",null,"Transaction Type"]
[null,null,null,null,null,null,null,"(Face Value or Market Value)"]
[null,1,{"$f":"Import!E5443","v":0},null,null,null,{"$f":"Import!E5483","v":0},{"$f":"Import!E5523","v":0},{"$f":"Import!E5563","v":0},{"$f":"Import!E5603","v":0}]
[null,2,{"$f":"Import!E5444","v":0},null,null,null,{"$f":"Import!E5484","v":0},{"$f":"Import!E5524","v":0},{"$f":"Import!E5564","v":0},{"$f":"Import!E5604","v":0}]
[null,3,{"$f":"Import!E5445","v":0},null,null,null,{"$f":"Import!E5485","v":0},{"$f":"Import!E5525","v":0},{"$f":"Import!E5565","v":0},{"$f":"Import!E5605","v":0}]
[null,4,{"$f":"Import!E5446","v":0},null,null,null,{"$f":"Import!E5486","v":0},{"$f":"Import!E5526","v":0},{"$f":"Import!E5566","v":0},{"$f":"Import!E5606","v":0}]
[null,5,{"$f":"Import!E5447","v":0},null,null,null,{"$f":"Import!E5487","v":0},{"$f":"Import!E5527","v":0},{"$f":"Import!E5567","v":0},{"$f":"Import!E5607","v":0}]
[null,6,{"$f":"Import!E5448","v":0},null,null,null,{"$f":"Import!E5488","v":0},{"$f":"Import!E5528","v":0},{"$f":"Import!E5568","v":0},{"$f":"Import!E5608","v":0}]
[null,7,{"$f":"Import!E5449","v":0},null,null,null,{"$f":"Import!E5489","v":0},{"$f":"Import!E5529","v":0},{"$f":"Import!E5569","v":0},{"$f":"Import!E5609","v":0}]
[null,8,{"$f":"Import!E5450","v":0},null,null,null,{"$f":"Import!E5490","v":0},{"$f":"Import!E5530","v":0},{"$f":"Import!E5570","v":0},{"$f":"Import!E5610","v":0}]
[null,9,{"$f":"Import!E5451","v":0},null,null,null,{"$f":"Import!E5491","v":0},{"$f":"Import!E5531","v":0},{"$f":"Import!E5571","v":0},{"$f":"Import!E5611","v":0}]
[null,10,{"$f":"Import!E5452","v":0},null,null,null,{"$f":"Import!E5492","v":0},{"$f":"Import!E5532","v":0},{"$f":"Import!E5572","v":0},{"$f":"Import!E5612","v":0}]
[null,11,{"$f":"Import!E5453","v":0},null,null,null,{"$f":"Import!E5493","v":0},{"$f":"Import!E5533","v":0},{"$f":"Import!E5573","v":0},{"$f":"Import!E5613","v":0}]
[null,12,{"$f":"Import!E5454","v":0},null,null,null,{"$f":"Import!E5494","v":0},{"$f":"Import!E5534","v":0},{"$f":"Import!E5574","v":0},{"$f":"Import!E5614","v":0}]
[null,13,{"$f":"Import!E5455","v":0},null,null,null,{"$f":"Import!E5495","v":0},{"$f":"Import!E5535","v":0},{"$f":"Import!E5575","v":0},{"$f":"Import!E5615","v":0}]
[null,14,{"$f":"Import!E5456","v":0},null,null,null,{"$f":"Import!E5496","v":0},{"$f":"Import!E5536","v":0},{"$f":"Import!E5576","v":0},{"$f":"Import!E5616","v":0}]
[null,15,{"$f":"Import!E5457","v":0},null,null,null,{"$f":"Import!E5497","v":0},{"$f":"Import!E5537","v":0},{"$f":"Import!E5577","v":0},{"$f":"Import!E5617","v":0}]
[null,16,{"$f":"Import!E5458","v":0},null,null,null,{"$f":"Import!E5498","v":0},{"$f":"Import!E5538","v":0},{"$f":"Import!E5578","v":0},{"$f":"Import!E5618","v":0}]
[null,17,{"$f":"Import!E5459","v":0},null,null,null,{"$f":"Import!E5499","v":0},{"$f":"Import!E5539","v":0},{"$f":"Import!E5579","v":0},{"$f":"Import!E5619","v":0}]
[null,18,{"$f":"Import!E5460","v":0},null,null,null,{"$f":"Import!E5500","v":0},{"$f":"Import!E5540","v":0},{"$f":"Import!E5580","v":0},{"$f":"Import!E5620","v":0}]
[null,19,{"$f":"Import!E5461","v":0},null,null,null,{"$f":"Import!E5501","v":0},{"$f":"Import!E5541","v":0},{"$f":"Import!E5581","v":0},{"$f":"Import!E5621","v":0}]
[null,20,{"$f":"Import!E5462","v":0},null,null,null,{"$f":"Import!E5502","v":0},{"$f":"Import!E5542","v":0},{"$f":"Import!E5582","v":0},{"$f":"Import!E5622","v":0}]
[null,21,{"$f":"Import!E5463","v":0},null,null,null,{"$f":"Import!E5503","v":0},{"$f":"Import!E5543","v":0},{"$f":"Import!E5583","v":0},{"$f":"Import!E5623","v":0}]
[null,22,{"$f":"Import!E5464","v":0},null,null,null,{"$f":"Import!E5504","v":0},{"$f":"Import!E5544","v":0},{"$f":"Import!E5584","v":0},{"$f":"Import!E5624","v":0}]
[null,23,{"$f":"Import!E5465","v":0},null,null,null,{"$f":"Import!E5505","v":0},{"$f":"Import!E5545","v":0},{"$f":"Import!E5585","v":0},{"$f":"Import!E5625","v":0}]
[null,24,{"$f":"Import!E5466","v":0},null,null,null,{"$f":"Import!E5506","v":0},{"$f":"Import!E5546","v":0},{"$f":"Import!E5586","v":0},{"$f":"Import!E5626","v":0}]
[null,25,{"$f":"Import!E5467","v":0},null,null,null,{"$f":"Import!E5507","v":0},{"$f":"Import!E5547","v":0},{"$f":"Import!E5587","v":0},{"$f":"Import!E5627","v":0}]
[null,26,{"$f":"Import!E5468","v":0},null,null,null,{"$f":"Import!E5508","v":0},{"$f":"Import!E5548","v":0},{"$f":"Import!E5588","v":0},{"$f":"Import!E5628","v":0}]
[null,27,{"$f":"Import!E5469","v":0},null,null,null,{"$f":"Import!E5509","v":0},{"$f":"Import!E5549","v":0},{"$f":"Import!E5589","v":0},{"$f":"Import!E5629","v":0}]
[null,28,{"$f":"Import!E5470","v":0},null,null,null,{"$f":"Import!E5510","v":0},{"$f":"Import!E5550","v":0},{"$f":"Import!E5590","v":0},{"$f":"Import!E5630","v":0}]
[null,29,{"$f":"Import!E5471","v":0},null,null,null,{"$f":"Import!E5511","v":0},{"$f":"Import!E5551","v":0},{"$f":"Import!E5591","v":0},{"$f":"Import!E5631","v":0}]
[null,30,{"$f":"Import!E5472","v":0},null,null,null,{"$f":"Import!E5512","v":0},{"$f":"Import!E5552","v":0},{"$f":"Import!E5592","v":0},{"$f":"Import!E5632","v":0}]
[null,31,{"$f":"Import!E5473","v":0},null,null,null,{"$f":"Import!E5513","v":0},{"$f":"Import!E5553","v":0},{"$f":"Import!E5593","v":0},{"$f":"Import!E5633","v":0}]
[null,32,{"$f":"Import!E5474","v":0},null,null,null,{"$f":"Import!E5514","v":0},{"$f":"Import!E5554","v":0},{"$f":"Import!E5594","v":0},{"$f":"Import!E5634","v":0}]
[null,33,{"$f":"Import!E5475","v":0},null,null,null,{"$f":"Import!E5515","v":0},{"$f":"Import!E5555","v":0},{"$f":"Import!E5595","v":0},{"$f":"Import!E5635","v":0}]
[null,34,{"$f":"Import!E5476","v":0},null,null,null,{"$f":"Import!E5516","v":0},{"$f":"Import!E5556","v":0},{"$f":"Import!E5596","v":0},{"$f":"Import!E5636","v":0}]
[null,35,{"$f":"Import!E5477","v":0},null,null,null,{"$f":"Import!E5517","v":0},{"$f":"Import!E5557","v":0},{"$f":"Import!E5597","v":0},{"$f":"Import!E5637","v":0}]
[null,36,{"$f":"Import!E5478","v":0},null,null,null,{"$f":"Import!E5518","v":0},{"$f":"Import!E5558","v":0},{"$f":"Import!E5598","v":0},{"$f":"Import!E5638","v":0}]
[null,37,{"$f":"Import!E5479","v":0},null,null,null,{"$f":"Import!E5519","v":0},{"$f":"Import!E5559","v":0},{"$f":"Import!E5599","v":0},{"$f":"Import!E5639","v":0}]
[null,38,{"$f":"Import!E5480","v":0},null,null,null,{"$f":"Import!E5520","v":0},{"$f":"Import!E5560","v":0},{"$f":"Import!E5600","v":0},{"$f":"Import!E5640","v":0}]
[null,39,{"$f":"Import!E5481","v":0},null,null,null,{"$f":"Import!E5521","v":0},{"$f":"Import!E5561","v":0},{"$f":"Import!E5601","v":0},{"$f":"Import!E5641","v":0}]
[null,40,{"$f":"Import!E5482","v":0},null,null,null,{"$f":"Import!E5522","v":0},{"$f":"Import!E5562","v":0},{"$f":"Import!E5602","v":0},{"$f":"Import!E5642","v":0}]

{"sheet":"Schedule V(e)","index":45,"n_rows":574,"n_cols":21,"rows_kept":574,"cut":false,"hidden":false,"merged":[[397,2,397,8],[155,1,157,1],[155,2,155,3],[156,2,156,3],[157,2,157,3],[158,1,160,1],[158,2,158,3],[159,2,159,3],[160,2,160,3],[300,1,300,2],[301,1,301,2],[302,1,302,2],[303,1,303,2],[304,1,304,2],[305,1,305,2],[306,1,306,2],[295,8,295,12],[281,8,281,12],[259,12,259,13],[266,5,267,5],[266,8,267,8],[266,11,267,11],[268,5,269,5],[268,8,269,8],[143,1,145,1],[147,4,147,6],[149,1,151,1],[149,2,149,3],[150,5,150,6],[151,5,151,6],[153,1,154,1],[153,5,153,6],[154,5,154,6],[89,3,89,4],[89,5,89,6],[133,1,137,1],[138,1,139,1],[138,5,138,6],[139,5,139,6],[140,1,142,1],[298,1,298,2],[299,1,299,2],[295,1,295,2],[295,3,295,7],[297,1,297,2],[284,1,284,2],[285,1,285,2],[286,1,286,2],[287,1,287,2],[288,1,288,2],[289,1,289,2],[290,1,290,2],[291,1,291,2],[292,1,292,2],[281,1,281,2],[281,3,281,7],[283,1,283,2],[295,13,295,17],[296,3,297,3],[296,4,296,5],[296,6,296,7],[296,8,297,8],[296,9,296,10],[296,11,296,12],[296,13,297,13],[296,14,296,15],[296,16,296,17],[281,13,281,17],[282,3,283,3],[282,4,282,5],[282,6,282,7],[282,8,283,8],[282,9,282,10],[282,11,282,12],[282,13,283,13],[282,14,282,15],[282,16,282,17],[259,15,259,16],[262,14,263,14],[266,14,267,14],[268,14,269,14],[275,12,275,13],[262,17,263,17],[266,17,267,17],[268,17,269,17],[275,15,275,16],[268,11,269,11],[269,1,269,2],[275,3,275,4],[275,6,275,7],[275,9,275,10],[259,3,259,4],[259,6,259,7],[259,9,259,10],[262,1,262,2],[262,5,263,5],[262,8,263,8],[262,11,263,11],[263,1,263,2],[261,1,261,2],[544,3,544,4],[520,3,520,4],[542,3,542,4],[545,3,545,4],[546,3,546,4],[513,3,513,4],[535,3,535,4],[537,3,537,4],[538,3,538,4],[527,3,527,4],[536,3,536,4],[539,3,539,4],[531,3,531,4],[528,3,528,4],[526,3,526,4],[519,3,519,4],[518,3,518,4],[522,3,522,4],[515,3,515,4],[516,3,516,4],[514,3,514,4],[517,3,517,4],[3,11,3,14],[191,1,191,2],[549,3,549,4],[541,3,541,4],[540,3,540,4],[534,3,534,4],[80,1,80,2],[198,1,198,2],[523,3,523,4],[532,3,532,4],[533,3,533,4],[175,1,175,2],[175,3,175,4],[524,3,524,4],[525,3,525,4],[512,3,512,4],[164,1,168,11],[174,3,174,4],[199,1,199,2],[201,1,201,2],[509,3,509,4],[521,3,521,4],[547,3,547,4],[543,3,543,4],[572,3,572,4],[566,3,566,4],[567,3,567,4],[568,3,568,4],[569,3,569,4],[548,3,548,4],[558,3,558,4],[551,3,551,4],[550,3,550,4],[570,3,570,4],[571,3,571,4],[564,3,564,4],[565,3,565,4],[553,3,553,4],[554,3,554,4],[557,3,557,4],[563,3,563,4],[562,3,562,4],[556,3,556,4],[561,3,561,4],[555,3,555,4],[560,3,560,4],[559,3,559,4],[511,3,511,4],[210,1,210,2],[210,3,210,4],[211,1,211,2],[211,3,211,4],[374,1,374,2],[311,8,316,9],[317,8,317,9],[508,2,508,4],[218,1,218,2],[224,3,224,4],[221,1,221,2],[222,1,222,2],[212,1,212,2],[217,1,217,2],[238,1,239,2],[238,3,238,4],[238,6,238,7],[238,9,238,10],[241,1,241,2],[241,5,242,5],[241,8,242,8],[254,3,254,4],[254,6,254,7],[510,3,510,4],[372,3,372,4],[369,1,369,2],[370,1,370,2],[369,3,369,4],[370,3,370,4],[380,1,381,16],[383,1,384,16],[311,5,316,5],[367,1,368,2],[367,3,368,8],[334,8,334,9],[335,8,335,9],[311,6,314,7],[429,13,429,15],[426,13,426,15],[436,13,436,15],[448,13,448,15],[447,13,447,15],[408,13,408,15],[425,13,425,15],[416,13,416,15],[405,13,405,15],[406,13,406,15],[36,9,37,9],[36,10,37,10],[173,30,173,31],[174,30,174,31],[175,30,175,31],[176,1,176,2],[185,1,185,2],[202,3,202,4],[200,1,200,2],[176,30,176,31],[177,1,177,2],[179,3,179,4],[178,30,178,31],[198,3,198,4],[189,1,189,2],[189,3,189,4],[178,3,178,4],[185,3,185,4],[186,3,186,4],[192,1,192,2],[179,30,179,31],[178,1,178,2],[188,3,188,4],[190,3,190,4],[1,1,1,3],[20,1,21,3],[46,1,46,3],[13,2,13,3],[2,1,2,4],[11,2,11,3],[12,2,12,3],[77,1,77,2],[18,2,18,3],[15,2,15,3],[16,2,16,3],[17,2,17,3],[14,2,14,3],[26,1,26,2],[25,1,25,2],[28,3,28,4],[227,1,227,4],[201,3,201,4],[220,1,220,2],[103,2,104,2],[105,9,105,10],[106,9,106,10],[107,9,107,10],[36,11,37,11],[28,9,28,10],[30,1,30,2],[31,1,31,2],[32,1,32,2],[33,1,33,2],[34,1,34,2],[36,3,37,3],[36,4,37,4],[36,5,36,6],[36,7,37,7],[103,9,104,10],[79,1,79,2],[78,1,78,2],[82,1,82,4],[28,5,28,6],[28,7,28,8],[86,1,86,2],[87,1,87,2],[91,1,91,2],[94,2,95,2],[108,9,108,10],[109,9,109,10],[187,1,187,2],[223,1,223,2],[225,1,225,2],[225,3,225,4],[224,1,224,2],[196,3,197,9],[196,1,197,2],[219,1,219,2],[191,3,191,4],[200,3,200,4],[199,3,199,4],[192,3,192,4],[204,1,204,4],[209,1,209,2],[209,3,209,4],[202,1,202,2],[206,1,207,2],[208,1,208,2],[234,1,234,2],[235,1,235,2],[36,12,37,12],[36,13,37,13],[40,1,40,7],[41,1,41,7],[42,1,42,7],[43,1,43,7],[36,8,37,8],[75,12,76,14],[190,1,190,2],[188,1,188,2],[177,3,177,4],[179,1,179,2],[176,3,176,4],[173,3,173,4],[174,1,174,2],[162,1,162,2],[170,1,170,4],[183,1,183,2],[187,3,187,4],[186,1,186,2],[85,1,85,2],[214,1,214,2],[194,0,194,3],[208,3,208,4],[206,3,207,9],[212,3,212,4],[374,3,374,4],[375,1,375,2],[375,3,375,4],[340,1,340,4],[373,1,373,2],[373,3,373,4],[327,8,327,9],[328,8,328,9],[329,8,329,9],[330,8,330,9],[331,8,331,9],[332,8,332,9],[333,8,333,9],[371,1,371,2],[371,3,371,4],[372,1,372,2],[336,8,336,9],[337,8,337,9],[338,8,338,9],[339,8,339,9],[110,9,110,10],[112,2,113,2],[121,2,122,2],[131,4,131,6],[131,7,131,9],[145,2,145,3],[133,2,133,3],[134,2,134,3],[135,2,135,3],[136,2,136,3],[137,2,137,3],[140,2,140,3],[141,2,141,3],[142,2,142,3],[144,2,144,3],[240,1,240,2],[407,13,407,15],[409,13,409,15],[410,13,410,15],[318,8,318,9],[319,8,319,9],[320,8,320,9],[321,8,321,9],[322,8,322,9],[323,8,323,9],[324,8,324,9],[325,8,325,9],[326,8,326,9],[241,11,242,11],[242,1,242,2],[245,5,246,5],[245,8,246,8],[245,11,246,11],[247,5,248,5],[247,8,248,8],[247,11,248,11],[248,1,248,2],[254,9,254,10],[259,1,260,2],[356,1,356,3],[357,1,357,3],[358,1,358,3],[359,1,359,3],[360,1,360,3],[361,1,361,3],[363,1,363,3],[343,1,343,13],[344,1,344,13],[345,1,348,13],[350,12,350,13],[351,12,351,13],[352,12,352,13],[353,12,353,13],[355,1,355,3],[355,4,355,5],[355,6,355,7],[355,8,355,9]]}
[null,"SCHEDULE OF RISK MANAGEMENT - STRESS/SCENARIO TESTS",null,null,null,null,null,null,null,null,null,null,null,null,null,null,{"$f":"HYPERLINK(\"#'Index'!A1\",\"Return to Index\")","v":"Return to Index"}]
[null,{"$f":"'Company Information'!C7","v":"Enter Company Name"}]
[null,{"$f":"\"For the year ending \"&TEXT('Company Information'!C3,\"DD MMMM YYYY\")","v":"For the year ending 31 December 2022"},null,null,null,null,null,null,null,null,null,null,null,null,null,null,"SCHEDULE V(e)"]
[null,{"$f":"\"expressed in\"& IF(CONFIGURATION!$B$12>1,\" ['\"&MID(CONFIGURATION!$B$12,2,LEN(CONFIGURATION!$B$12))&\"s]\",\"\")&\" \"&'Form 1SFS (Consolidated)'!$C$5","v":"expressed in ['000s] United States Dollars"}]
[null,null,null,null,null,"Form 1SFS Assets","Form 1SFS Liabilities","Form 1SFS Capital & Surplus"]
[null,null,null,null,"Pre-stress/scenario position",{"$f":"'Form 1SFS (Consolidated)'!M91","v":0},{"$f":"'Form 1SFS (Consolidated)'!M145","v":0},{"$f":"'Form 1SFS (Consolidated)'!M149","v":0}]
[]
[null,"Insurer Confirms that Loss Scenarios left blank/omitted, result in no loss exposure"]
[null,null,null,null,null,null,null,null,"Confirm with \"X\""]
[null,"A. FINANCIAL MARKET SCENARIOS"]
[null,null,null,null,"Loss","Statutory Assets","Statutory Liabilities","Statutory Capital & Surplus"]
[null,"R1.","40% decline in equity prices",null,{"$f":"IF(SUM(F12:G12)=0,0,($F$6-F12)+(G12-$G$6))","v":0},{"$f":"Import!M5644","v":0},{"$f":"+Import!M5652","v":0},{"$f":"H$6-E12","v":0}]
[null,"R2.","Alternative Investments and Real Estate",null,0,{"$f":"Import!M5645","v":0},{"$f":"+Import!M5653","v":0},0]
[null,"R3.","Extreme US Yield Curve Widening",null,0,{"$f":"Import!M5646","v":0},{"$f":"+Import!M5654","v":0},0]
[null,"R4.","Widening of credit spreads ",null,{"$f":"IF(SUM(F15:G15)=0,0,($F$6-F15)+(G15-$G$6))","v":0},{"$f":"Import!M5647","v":0},{"$f":"+Import!M5655","v":0},{"$f":"H$6-E15","v":0}]
[null,"R5.","Combined R1, R2, R3 and R4.",null,0,{"$f":"Import!M5648","v":0},{"$f":"+Import!M5656","v":0},0]
[null,"R6.","Foreign currency shocks",null,0,{"$f":"Import!M5649","v":0},{"$f":"+Import!M5657","v":0},0]
[null,"R7.","Escalation of sovereign risk ",null,0,{"$f":"Import!M5650","v":0},{"$f":"+Import!M5658","v":0},0]
[null,"R8.","Inflation and Monetary Policy risk",null,{"$f":"IF(SUM(F19:G19)=0,0,($F$6-F19)+(G19-$G$6))","v":0},{"$f":"Import!M5651","v":0},{"$f":"+Import!M5659","v":0},{"$f":"H$6-E19","v":0}]
[]
[null,"Valuation losses on debt securities and loans issued by debtors in each European state —",null,null,"Greece","Italy","Portugal","Ukraine","Argentina","Turkey"]
[null,null,null,null,{"$f":"Import!M5660","v":0},{"$f":"Import!M5661","v":0},{"$f":"Import!M5662","v":0},{"$f":"Import!M5663","v":0},{"$f":"Import!M5664","v":0},{"$f":"Import!M5665","v":0}]
[]
[null,"B. MORTGAGE INSURANCE"]
[]
[null,"Mortgage Loan Shock 1",null,{"$f":"Import!M5666","v":"Select"},{"$f":"IF(SUM(F26:G26)=0,0,($F$6-F26)+(G26-$G$6))","v":0},{"$f":"Import!M5668","v":0},{"$f":"Import!M5670","v":0},{"$f":"H$6-E26","v":0}]
[null,"Mortgage Loan Shock 2",null,{"$f":"Import!M5667","v":"Select"},{"$f":"IF(SUM(F27:G27)=0,0,($F$6-F27)+(G27-$G$6))","v":0},{"$f":"Import!M5669","v":0},{"$f":"Import!M5671","v":0},{"$f":"H$6-E27","v":0}]
[]
[null,null,null,"Gross Premium",null,"Net Premium",null,"Claims Paid",null,"Loss Reserves"]
[null,null,null,"Related","Unrelated","Related","Unrelated","Related","Unrelated","Gross ","Net "]
[null,"Mortgage Insurance - US",null,{"$f":"Import!M5672","v":0},{"$f":"Import!M5677","v":0},{"$f":"Import!M5682","v":0},{"$f":"Import!M5687","v":0},{"$f":"Import!M5692","v":0},{"$f":"Import!M5697","v":0},{"$f":"Import!M5702","v":0},{"$f":"Import!M5707","v":0}]
[null,"Mortgage Reinsurance - US",null,{"$f":"Import!M5673","v":0},{"$f":"Import!M5678","v":0},{"$f":"Import!M5683","v":0},{"$f":"Import!M5688","v":0},{"$f":"Import!M5693","v":0},{"$f":"Import!M5698","v":0},{"$f":"Import!M5703","v":0},{"$f":"Import!M5708","v":0}]
[null,"Mortgage Insurance - Non-US",null,{"$f":"Import!M5674","v":0},{"$f":"Import!M5679","v":0},{"$f":"Import!M5684","v":0},{"$f":"Import!M5689","v":0},{"$f":"Import!M5694","v":0},{"$f":"Import!M5699","v":0},{"$f":"Import!M5704","v":0},{"$f":"Import!M5709","v":0}]
[null,"Mortgage Reinsurance - Non-US",null,{"$f":"Import!M5675","v":0},{"$f":"Import!M5680","v":0},{"$f":"Import!M5685","v":0},{"$f":"Import!M5690","v":0},{"$f":"Import!M5695","v":0},{"$f":"Import!M5700","v":0},{"$f":"Import!M5705","v":0},{"$f":"Import!M5710","v":0}]
[null,"Total",null,{"$f":"SUM(D31:D34)","v":0},{"$f":"SUM(E31:E34)","v":0},0,0,0,0,0,0]
[]
[null,null,null,"Insurance in Force (IIF)","Risk in Force (RIF)","Capital Held",null,"Risk to MI Capital Ratio","Collateral Posted","# of Policies in Force","Loss Ratio (UW)","Combined Ratio (UW)","Weighted Ave. LTV","Weighted Ave. FICO Score"]
[null,null,null,null,null,"Internal ","Regulatory "]
[null,"Supplemental Disclosures",null,{"$f":"Import!M5712","v":0},{"$f":"Import!M5713","v":0},{"$f":"Import!M5714","v":0},{"$f":"((F35+G35)*0.454)+(K35*0.435)","v":0},{"$f":"IF(G39=0,0,E39/G39)","v":0},{"$f":"Import!M5716","v":0},{"$f":"Import!M5717","v":0},{"$f":"Import!M5718","v":0},{"$f":"Import!M5719","v":0},{"$f":"Import!M5720","v":0},{"$f":"Import!M5721","v":0}]
[]
[null,"1. How do you define your risk appetite for this type of business, in terms metrics, tolerance levels and limits?",null,null,null,null,null,null,{"$f":"HYPERLINK(\"#'Attachments'!G85\",\"Attach file\")","v":"Attach file"}]
[null,"2. What key drivers do you monitor in the risk management and business performance assessment of this LoB?",null,null,null,null,null,null,"Attach file"]
[null,"3. How do you allocate capital to this LoB in terms of methodology and metrics used?",null,null,null,null,null,null,"Attach file"]
[null,"4. How do you calculate the CISSA standalone capital requirement, what methodology and risk factors do you model?",null,null,null,null,null,null,"Attach file"]
[]
[null,"C. UNDERWRITING LOSS SCENARIOS",null,null,null,"Doc Name","Page Number"]
[null,"Internal model key assumptions and parameters",null,null,{"$f":"HYPERLINK(\"#'Attachments'!G145\",\"Attach file\")","v":"Attach file"}]
[]
[]
[null,null,null,"Gross Loss Impact","Post Stress - Capital & Surplus After Gross Loss","Net Loss After Reinsurance","Catastrophe Mitigation Techniques","Net Loss Impact","Post - Cap. & Sur. After Net Loss","Occurrence Return Period ","Relative Return Period 2","Proprietary/ Vendor Model & Version","Trans. ECR Requirement","Post Tran. ECR Ratio After Loss",null,null,null,null,"Gross Loss Check","Net Loss Check","Gross Loss and Net Loss Check"]
[null,"UW1. ","Northeast Hurricane",{"$f":"Import!M5722","v":0},{"$f":"$H$6-D51","v":0},{"$f":"Import!M5741","v":0},{"$f":"Import!M5760","v":0},{"$f":"F51-G51","v":0},{"$f":"$H$6-H51","v":0},{"$f":"Import!M5779","v":0},{"$f":"Import!M5797","v":0},{"$f":"Import!M5815","v":0},{"$f":"$I$6","v":0},{"$f":"IFERROR(I51/M51,0)","v":0},null,null,null,null,{"$f":"IF(E51<0,\"Gross Impact - C&S Negative\",\"Gross Impact - Check Ok\")","v":"Gross Impact - Check Ok"},{"$f":"IF(I51<0,\"Net Impact - C&S Negative\",\"Net Impact - Check Ok\")","v":"Net Impact - Check Ok"},{"$f":"IF(H51>D51,\"Net Impact Greater than Gross Impact\",\"Gross to Net Impact - Check Ok\")","v":"Gross to Net Impact - Check Ok"}]
[null,"UW2.","Carolinas Hurricane",{"$f":"Import!M5723","v":0},{"$f":"$H$6-D52","v":0},{"$f":"Import!M5742","v":0},{"$f":"Import!M5761","v":0},{"$f":"F52-G52","v":0},{"$f":"$H$6-H52","v":0},{"$f":"Import!M5780","v":0},{"$f":"Import!M5798","v":0},{"$f":"Import!M5816","v":0},{"$f":"$I$6","v":0},{"$f":"IFERROR(I52/M52,0)","v":0},null,null,null,null,{"$f":"IF(E52<0,\"Gross Impact - C&S Negative\",\"Gross Impact - Check Ok\")","v":"Gross Impact - Check Ok"},"Net Impact - Check Ok","Gross to Net Impact - Check Ok"]
[null,"UW3.","Miami-Dade Hurricane",{"$f":"Import!M5724","v":0},0,{"$f":"Import!M5743","v":0},{"$f":"Import!M5762","v":0},0,0,{"$f":"Import!M5781","v":0},{"$f":"Import!M5799","v":0},{"$f":"Import!M5817","v":0},0,0,null,null,null,null,"Gross Impact - Check Ok","Net Impact - Check Ok","Gross to Net Impact - Check Ok"]
[null,"UW4.","Pinellas Hurricane",{"$f":"Import!M5725","v":0},0,{"$f":"Import!M5744","v":0},{"$f":"Import!M5763","v":0},0,0,{"$f":"Import!M5782","v":0},{"$f":"Import!M5800","v":0},{"$f":"Import!M5818","v":0},0,0,null,null,null,null,"Gross Impact - Check Ok","Net Impact - Check Ok","Gross to Net Impact - Check Ok"]
[null,"UW5.","Gulf Windstorm (onshore)",{"$f":"Import!M5726","v":0},0,{"$f":"Import!M5745","v":0},{"$f":"Import!M5764","v":0},0,0,{"$f":"Import!M5783","v":0},{"$f":"Import!M5801","v":0},{"$f":"Import!M5819","v":0},0,0,null,null,null,null,"Gross Impact - Check Ok","Net Impact - Check Ok","Gross to Net Impact - Check Ok"]
[null,"UE1.","Los Angeles Earthquake",{"$f":"Import!M5727","v":0},0,{"$f":"Import!M5746","v":0},{"$f":"Import!M5765","v":0},0,0,{"$f":"Import!M5784","v":0},{"$f":"Import!M5802","v":0},{"$f":"Import!M5820","v":0},0,0,null,null,null,null,"Gross Impact - Check Ok","Net Impact - Check Ok","Gross to Net Impact - Check Ok"]
[null,"UE2.","San Francisco Earthquake",{"$f":"Import!M5728","v":0},0,{"$f":"Import!M5747","v":0},{"$f":"Import!M5766","v":0},0,0,{"$f":"Import!M5785","v":0},{"$f":"Import!M5803","v":0},{"$f":"Import!M5821","v":0},0,0,null,null,null,null,"Gross Impact - Check Ok","Net Impact - Check Ok","Gross to Net Impact - Check Ok"]
[null,"UE3.","New Madrid (NM) RDS",{"$f":"Import!M5729","v":0},0,{"$f":"Import!M5748","v":0},{"$f":"Import!M5767","v":0},0,0,{"$f":"Import!M5786","v":0},{"$f":"Import!M5804","v":0},{"$f":"Import!M5822","v":0},0,0,null,null,null,null,"Gross Impact - Check Ok","Net Impact - Check Ok","Gross to Net Impact - Check Ok"]
[null,"IW1. ","European Windstorm",{"$f":"Import!M5730","v":0},0,{"$f":"Import!M5749","v":0},{"$f":"Import!M5768","v":0},0,0,{"$f":"Import!M5787","v":0},{"$f":"Import!M5805","v":0},{"$f":"Import!M5823","v":0},0,0,null,null,null,null,"Gross Impact - Check Ok","Net Impact - Check Ok","Gross to Net Impact - Check Ok"]
[null,"IW2.","Japanese Typhoon",{"$f":"Import!M5731","v":0},0,{"$f":"Import!M5750","v":0},{"$f":"Import!M5769","v":0},0,0,{"$f":"Import!M5788","v":0},{"$f":"Import!M5806","v":0},{"$f":"Import!M5824","v":0},0,0,null,null,null,null,"Gross Impact - Check Ok","Net Impact - Check Ok","Gross to Net Impact - Check Ok"]
[null,"IE1.","Japanese Earthquake",{"$f":"Import!M5732","v":0},0,{"$f":"Import!M5751","v":0},{"$f":"Import!M5770","v":0},0,0,{"$f":"Import!M5789","v":0},{"$f":"Import!M5807","v":0},{"$f":"Import!M5825","v":0},0,0,null,null,null,null,"Gross Impact - Check Ok","Net Impact - Check Ok","Gross to Net Impact - Check Ok"]
[null,"A1.","Aviation Collision",{"$f":"Import!M5733","v":0},0,{"$f":"Import!M5752","v":0},{"$f":"Import!M5771","v":0},0,0,{"$f":"Import!M5790","v":0},{"$f":"Import!M5808","v":0},{"$f":"Import!M5826","v":0},0,0,null,null,null,null,"Gross Impact - Check Ok","Net Impact - Check Ok","Gross to Net Impact - Check Ok"]
[null,"M1.","Marine Collision in Prince William",{"$f":"Import!M5734","v":0},0,{"$f":"Import!M5753","v":0},{"$f":"Import!M5772","v":0},0,0,{"$f":"Import!M5791","v":0},{"$f":"Import!M5809","v":0},{"$f":"Import!M5827","v":0},0,0,null,null,null,null,"Gross Impact - Check Ok","Net Impact - Check Ok","Gross to Net Impact - Check Ok"]
[null,"M2.","Major Cruise Vessel Incident",{"$f":"Import!M5735","v":0},0,{"$f":"Import!M5754","v":0},{"$f":"Import!M5773","v":0},0,0,{"$f":"Import!M5792","v":0},{"$f":"Import!M5810","v":0},{"$f":"Import!M5828","v":0},0,0,null,null,null,null,"Gross Impact - Check Ok","Net Impact - Check Ok","Gross to Net Impact - Check Ok"]
[null,"N1.","US Oil Spill",{"$f":"Import!M5736","v":0},0,{"$f":"Import!M5755","v":0},{"$f":"Import!M5774","v":0},0,0,{"$f":"Import!M5793","v":0},{"$f":"Import!M5811","v":0},{"$f":"Import!M5829","v":0},0,0,null,null,null,null,"Gross Impact - Check Ok","Net Impact - Check Ok","Gross to Net Impact - Check Ok"]
[null,"N2.","US Tornadoes",{"$f":"Import!M5737","v":0},0,{"$f":"Import!M5756","v":0},{"$f":"Import!M5775","v":0},0,0,{"$f":"Import!M5794","v":0},{"$f":"Import!M5812","v":0},{"$f":"Import!M5830","v":0},0,0,null,null,null,null,"Gross Impact - Check Ok","Net Impact - Check Ok","Gross to Net Impact - Check Ok"]
[null,"N3.","Australian Flooding",{"$f":"Import!M5738","v":0},0,{"$f":"Import!M5757","v":0},{"$f":"Import!M5776","v":0},0,0,{"$f":"Import!M5795","v":0},{"$f":"Import!M5813","v":0},{"$f":"Import!M5831","v":0},0,0,null,null,null,null,"Gross Impact - Check Ok","Net Impact - Check Ok","Gross to Net Impact - Check Ok"]
[null,"N4.","Australian Wildfires",{"$f":"Import!M5739","v":0},0,{"$f":"Import!M5758","v":0},{"$f":"Import!M5777","v":0},0,0,{"$f":"Import!M5796","v":0},{"$f":"Import!M5814","v":0},{"$f":"Import!M5832","v":0},0,0,null,null,null,null,"Gross Impact - Check Ok","Net Impact - Check Ok","Gross to Net Impact - Check Ok"]
[null,"P1.","Contamination Food Exposure (Domestic Health Writers Only)",{"$f":"Import!M5740","v":0},0,{"$f":"Import!M5759","v":0},{"$f":"Import!M5778","v":0},0,0,null,null,{"$f":"Import!M5833","v":0},0,0,null,null,null,null,"Gross Impact - Check Ok","Net Impact - Check Ok","Gross to Net Impact - Check Ok"]
[null,null,null,null,null,null,null,null,null,null,null,null,null,null,null,null,null,null,{"$f":"IF(COUNTIF(S51:S69,\"Gross Impact - Check Ok\")=19,\"True\",\"False\")","v":"True"},{"$f":"IF(COUNTIF(T51:T69,\"Net Impact - Check Ok\")=19,\"True\",\"False\")","v":"True"},{"$f":"IF(COUNTIF(U51:U69,\"Gross to Net Impact - Check Ok\")=19,\"True\",\"False\")","v":"True"}]
[null,1,"Post-stress/scenario net loss is Post-stress/scenario gross loss, net of reinsurance and/or other loss mitigation instruments"]
[null,2,"The relative return period should be calculated using the underlying loss distribution for its Net Probable Maximum Loss, as submitted in the BSCR"]
[]
[null,{"$f":"IF('Company Information'!$F$11=\"IIGB\",\"C. UNDERWRITING LOSS SCENARIOS\",\"D. OTHER UNDERWRITING SCENARIOS\")","v":"C. UNDERWRITING LOSS SCENARIOS"}]
[null,{"$f":"IF('Company Information'!$F$11=\"IIGB\",\"The (re)insurer is to submit the description of three of its own underwriting scenarios and related key assumptions with the impact on the statutory balance sheet\",\"Where B above is either not applicable or only partially apply, the (re)insurer is to submit the description of three of its own underwriting scenarios and related key assumptions with the impact on the statutory balance sheet.\")","v":"The (re)insurer is to submit the description of three of its own underwriting scenarios and related key assumptions with the impact on the statutory balance sheet"}]
[null,null,null,null,null,null,null,null,null,null,null,null,{"$f":"IF('Company Information'!$F$11=\"IIGB\",\"Only IIGB Insurers that write Property Catastrophe Business are to provide return periods\",\"\")","v":"Only IIGB Insurers that write Property Catastrophe Business are to provide return periods"}]
[]
[null,"Description",null,"Assumptions","Doc Name","Page Number","Gross Loss Impact","Statutory Capital & Surplus","Net Loss After Reinsurance","Catastrophe Mitigation Techniques","Net Loss Impact","Statutory Capital & Surplus","Occurrence Return Period ","Relative Return Period","Proprietary/ Vendor Model & Version"]
[null,{"$f":"Import!M5834","v":0},null,{"$f":"HYPERLINK(\"#'Attachments'!G145\",\"Attach file\")","v":"Attach file"},null,null,{"$f":"Import!M5837","v":0},{"$f":"$H$6-G79","v":0},{"$f":"Import!M5840","v":0},{"$f":"Import!M5843","v":0},{"$f":"I79-J79","v":0},{"$f":"$H$6-K79","v":0},{"$f":"Import!M5846","v":0},{"$f":"Import!M5849","v":0},{"$f":"Import!M5852","v":0}]
[null,{"$f":"Import!M5835","v":0},null,"Attach file",null,null,{"$f":"Import!M5838","v":0},{"$f":"$H$6-G80","v":0},{"$f":"Import!M5841","v":0},{"$f":"Import!M5844","v":0},{"$f":"I80-J80","v":0},{"$f":"$H$6-K80","v":0},{"$f":"Import!M5847","v":0},{"$f":"Import!M5850","v":0},{"$f":"Import!M5853","v":0}]
[null,{"$f":"Import!M5836","v":0},null,"Attach file",null,null,{"$f":"Import!M5839","v":0},0,{"$f":"Import!M5842","v":0},{"$f":"Import!M5845","v":0},0,0,{"$f":"Import!M5848","v":0},{"$f":"Import!M5851","v":0},{"$f":"Import!M5854","v":0}]
[]
[null,{"$f":"IF('Company Information'!$F$11=\"IIGB\",\"D. LIABILITY LOSS ACCUMULATION SCENARIOS\",\"E. LIABILITY LOSS ACCUMULATION SCENARIOS\")","v":"D. LIABILITY LOSS ACCUMULATION SCENARIOS"}]
[]
[null,"0. Results"]
[]
[null,"Description",null,"Net Loss Impact","Statutory Capital & Surplus"]
[null,"1. New latent liability",null,{"$f":"SUM(D124:I129)","v":0},{"$f":"$H$6-D88","v":0}]
[]
[null,null,null,"One Year View",null,"Ultimate View"]
[null,null,null,"Net Loss Impact","Statutory Capital & Surplus","Net Loss Impact","Statutory Capital & Surplus"]
[null,"2. Deterioration in existing US A&E reserves",null,{"$f":"+E146-E134+H146-H134","v":0},{"$f":"$H$6-D92","v":0},{"$f":"+E144-E134+H144-H134+E159-E150","v":0},{"$f":"$H$6-F92","v":0}]
[]
[null,"a) Scenario 1 - New latent liability"]
[null,null,{"$f":"\"NWP for the most recent year\"&\" (\"&TEXT('Company Information'!C3,\"YYYY\")&\")\"","v":"NWP for the most recent year (2022)"},"product liability","product liability","gen comm liability","gen comm liability","empl liab/ workers comp","empl liab/ workers comp"]
[null,null,null,"P","NP","P","NP","P","NP"]
[null,null,"EEA and Switzerland",{"$f":"Import!M5855","v":0},{"$f":"Import!M5861","v":0},{"$f":"Import!M5867","v":0},{"$f":"Import!M5873","v":0},{"$f":"Import!M5879","v":0},{"$f":"Import!M5885","v":0}]
[null,null,"US/Canada",{"$f":"Import!M5856","v":0},{"$f":"Import!M5862","v":0},{"$f":"Import!M5868","v":0},{"$f":"Import!M5874","v":0},{"$f":"Import!M5880","v":0},{"$f":"Import!M5886","v":0}]
[null,null,"Japan",{"$f":"Import!M5857","v":0},{"$f":"Import!M5863","v":0},{"$f":"Import!M5869","v":0},{"$f":"Import!M5875","v":0},{"$f":"Import!M5881","v":0},{"$f":"Import!M5887","v":0}]
[null,null,"China",{"$f":"Import!M5858","v":0},{"$f":"Import!M5864","v":0},{"$f":"Import!M5870","v":0},{"$f":"Import!M5876","v":0},{"$f":"Import!M5882","v":0},{"$f":"Import!M5888","v":0}]
[null,null,"Other developed markets",{"$f":"Import!M5859","v":0},{"$f":"Import!M5865","v":0},{"$f":"Import!M5871","v":0},{"$f":"Import!M5877","v":0},{"$f":"Import!M5883","v":0},{"$f":"Import!M5889","v":0}]
[null,null,"Emerging markets",{"$f":"Import!M5860","v":0},{"$f":"Import!M5866","v":0},{"$f":"Import!M5872","v":0},{"$f":"Import!M5878","v":0},{"$f":"Import!M5884","v":0},{"$f":"Import!M5890","v":0}]
[]
[null,null,"Average Annual Premium Growth over the last 8 years (3 years for US Workers Comp)","product liability","product liability","gen comm liability","gen comm liability","empl liab/ workers comp","empl liab/ workers comp","Number of Years over which the annual growth is calculated (subject to the max of 8 or 3 years for US/CA WC) ",null,"product liability","product liability","gen comm liability","gen comm liability","empl liab/ workers comp","empl liab/ workers comp"]
[null,null,null,"P","NP","P","NP","P","NP",null,null,"P","NP","P","NP","P","NP"]
[null,null,"EEA and Switzerland",{"$f":"Import!M5891","v":0},{"$f":"Import!M5897","v":0},{"$f":"Import!M5903","v":0},{"$f":"Import!M5909","v":0},{"$f":"Import!M5915","v":0},{"$f":"Import!M5921","v":0},"EEA and Switzerland",null,{"$f":"Import!M5927","v":0},{"$f":"Import!M5933","v":0},{"$f":"Import!M5939","v":0},{"$f":"Import!M5945","v":0},{"$f":"Import!M5951","v":0},{"$f":"Import!M5957","v":0}]
[null,null,"US/Canada",{"$f":"Import!M5892","v":0},{"$f":"Import!M5898","v":0},{"$f":"Import!M5904","v":0},{"$f":"Import!M5910","v":0},{"$f":"Import!M5916","v":0},{"$f":"Import!M5922","v":0},"US/Canada",null,{"$f":"Import!M5928","v":0},{"$f":"Import!M5934","v":0},{"$f":"Import!M5940","v":0},{"$f":"Import!M5946","v":0},{"$f":"Import!M5952","v":0},{"$f":"Import!M5958","v":0}]
[null,null,"Japan",{"$f":"Import!M5893","v":0},{"$f":"Import!M5899","v":0},{"$f":"Import!M5905","v":0},{"$f":"Import!M5911","v":0},{"$f":"Import!M5917","v":0},{"$f":"Import!M5923","v":0},"Japan",null,{"$f":"Import!M5929","v":0},{"$f":"Import!M5935","v":0},{"$f":"Import!M5941","v":0},{"$f":"Import!M5947","v":0},{"$f":"Import!M5953","v":0},{"$f":"Import!M5959","v":0}]
[null,null,"China",{"$f":"Import!M5894","v":0},{"$f":"Import!M5900","v":0},{"$f":"Import!M5906","v":0},{"$f":"Import!M5912","v":0},{"$f":"Import!M5918","v":0},{"$f":"Import!M5924","v":0},"China",null,{"$f":"Import!M5930","v":0},{"$f":"Import!M5936","v":0},{"$f":"Import!M5942","v":0},{"$f":"Import!M5948","v":0},{"$f":"Import!M5954","v":0},{"$f":"Import!M5960","v":0}]
[null,null,"Other developed markets",{"$f":"Import!M5895","v":0},{"$f":"Import!M5901","v":0},{"$f":"Import!M5907","v":0},{"$f":"Import!M5913","v":0},{"$f":"Import!M5919","v":0},{"$f":"Import!M5925","v":0},"Other developed markets",null,{"$f":"Import!M5931","v":0},{"$f":"Import!M5937","v":0},{"$f":"Import!M5943","v":0},{"$f":"Import!M5949","v":0},{"$f":"Import!M5955","v":0},{"$f":"Import!M5961","v":0}]
[null,null,"Emerging markets",{"$f":"Import!M5896","v":0},{"$f":"Import!M5902","v":0},{"$f":"Import!M5908","v":0},{"$f":"Import!M5914","v":0},{"$f":"Import!M5920","v":0},{"$f":"Import!M5926","v":0},"Emerging markets",null,{"$f":"Import!M5932","v":0},{"$f":"Import!M5938","v":0},{"$f":"Import!M5944","v":0},{"$f":"Import!M5950","v":0},{"$f":"Import!M5956","v":0},{"$f":"Import!M5962","v":0}]
[]
[null,null,"Risk factors by segment","product liability","product liability","gen comm liability","gen comm liability","empl liab/ workers comp","empl liab/ workers comp"]
[null,null,null,"P","NP","P","NP","P","NP"]
[null,null,"EEA and Switzerland",0.45,0.9,0.25,0.5,0.25,0.5]
[null,null,"US/Canada",0.65,1.3,0.35,0.75,0.15,0.3]
[null,null,"Japan",0.35,0.65,0.2,0.35,0.2,0.35]
[null,null,"China",0.25,0.5,0.15,0.3,0.15,0.3]
[null,null,"Other developed markets",0.3,0.6,0.15,0.35,0.15,0.35]
[null,null,"Emerging markets",0.25,0.5,0.15,0.3,0.15,0.3]
[]
[null,null,"Estimated Reserve Deterioration","product liability","product liability","gen comm liability","gen comm liability","empl liab/ workers comp","empl liab/ workers comp"]
[null,null,null,"P","NP","P","NP","P","NP"]
[null,null,"EEA and Switzerland",{"$f":"MAX(MAX(IFERROR((((1-(1+D106)^(L106))/(1-(1+D106)))/L106)/((1+D106)^(L106-1)),1),0)*D115*D97*MIN(IF(L106>=1,L106/8,1),1),0)","v":0},{"$f":"MAX(MAX(IFERROR((((1-(1+E106)^(M106))/(1-(1+E106)))/M106)/((1+E106)^(M106-1)),1),0)*E115*E97*MIN(IF(M106>=1,M106/8,1),1),0)","v":0},{"$f":"MAX(MAX(IFERROR((((1-(1+F106)^(N106))/(1-(1+F106)))/N106)/((1+F106)^(N106-1)),1),0)*F115*F97*MIN(IF(N106>=1,N106/8,1),1),0)","v":0},0,0,0]
[null,null,"US/Canada",{"$f":"MAX(MAX(IFERROR((((1-(1+D107)^(L107))/(1-(1+D107)))/L107)/((1+D107)^(L107-1)),1),0)*D116*D98*MIN(IF(L107>=1,L107/8,1),1),0)","v":0},0,0,0,{"$f":"MAX(MAX(IFERROR((((1-(1+H107)^(P107))/(1-(1+H107)))/P107)/((1+H107)^(P107-1)),1),0)*H116*H98*MIN(IF(P107>=1,P107/3,1),1),0)","v":0},{"$f":"MAX(MAX(IFERROR((((1-(1+I107)^(Q107))/(1-(1+I107)))/Q107)/((1+I107)^(Q107-1)),1),0)*I116*I98*MIN(IF(Q107>=1,Q107/3,1),1),0)","v":0}]
[null,null,"Japan",0,0,0,0,0,0]
[null,null,"China",0,0,0,0,0,0]
[null,null,"Other developed markets",0,0,0,0,0,0]
[null,null,"Emerging markets",0,0,0,0,0,0]
[]
[null,"b) Scenario 2 - Deterioration in existing US A&E reserves"]
[null,null,null,null,"US Asbestos",null,null,"US Environmental"]
[null,null,null,null,{"$f":"+TEXT('Company Information'!$C$3,\"YYYY\")","v":"2022"},{"$f":"+E133-1","v":2021},{"$f":"+F133-1","v":2020},{"$f":"+TEXT('Company Information'!$C$3,\"YYYY\")","v":"2022"},{"$f":"+H133-1","v":2021},{"$f":"+I133-1","v":2020}]
[null,"1. Survival Ratio stress","Yearend Net GAAP Reserves ",null,{"$f":"Import!M5963","v":0},{"$f":"Import!M5970","v":0},{"$f":"Import!M5972","v":0},{"$f":"Import!M5974","v":0},{"$f":"Import!M5980","v":0},{"$f":"Import!M5982","v":0}]
[null,null,"Net Paid on Yearend GAAP Reserves",null,{"$f":"Import!M5964","v":0},{"$f":"Import!M5971","v":0},{"$f":"Import!M5973","v":0},{"$f":"Import!M5975","v":0},{"$f":"Import!M5981","v":0},{"$f":"Import!M5983","v":0}]
[null,null,"Survival Ratio of US Reserves",null,{"$f":"Import!M5965","v":0},"Est Surv Ratio",{"$f":"IFERROR(E134/AVERAGE(IF(E135:G135>0,E135:G135,\"\")),0)","v":0},{"$f":"Import!M5976","v":0},"Est Surv Ratio",{"$f":"IFERROR(H134/AVERAGE(IF(H135:J135>0,H135:J135,\"\")),0)","v":0}]
[null,null,"Target Survival Ratio",null,15,null,null,12]
[null,null,"GAAP Reserves at target Survival Ratio",null,{"$f":"IF(E136=0,0,MAX((E137/E136)*E134,E134))","v":0},null,null,{"$f":"IF(H136=0,0,MAX((H137/H136)*H134,H134))","v":0}]
[null,"2. Med Adv Stress","Insurer's loading for future medical advances",null,{"$f":"Import!M5966","v":0},"Uplift for medical developments"]
[null,null,"Stress loading for future medical developments",null,{"$f":"IFERROR(MIN(MAX((1+F140)/(1+E139)-1,0),F140),0)","v":0.1},0.1,null,"N/A"]
[null,"3. Claims Inflation Stress","Effective Duration of Liabilities",null,{"$f":"Import!M5967","v":0},null,null,{"$f":"Import!M5977","v":0}]
[null,null,"Increase in Claims Inflation",null,0.04,"Approximated",null,0.04,"Approximated"]
[null,null,"GAAP Reserves after 4% Inflation stress",null,{"$f":"Import!M5968","v":0},{"$f":"E134*(1+E142)^E141","v":0},null,{"$f":"Import!M5978","v":0},{"$f":"H134*(1+H142)^H141","v":0}]
[null,"Stress Results","GAAP Reserves Ultimate Stress",null,{"$f":"IF(E134=0,0,E138*MAX((E143/E134),1)*(1+E140))","v":0},"Uplift",{"$f":"IF(E134=0,0,E144/E134-1)","v":0},{"$f":"IF(H134=0,0,H138*MAX((H143/H134),1))","v":0},"Uplift",{"$f":"IF(H134=0,0,H144/H134-1)","v":0}]
[null,null,"1 year emergence factor",null,{"$f":"Import!M5969","v":0},null,null,{"$f":"Import!M5979","v":0}]
[null,null,"GAAP Reserves 1-year Stress",null,{"$f":"IF(E134=0,0,E138*(1+E140)*(1+MAX(E143/E134-1,0)*E145))","v":0},"Uplift",{"$f":"IF(E134=0,0,E146/E134-1)","v":0},{"$f":"IF(H134=0,0,H138*(1+MAX(H143/H134-1,0)*H145))","v":0},"Uplift",{"$f":"IF(H134=0,0,H146/H134-1)","v":0}]
[]
[null,null,null,null,"UK Asbestos"]
[null,null,null,null,{"$f":"+TEXT('Company Information'!$C$3,\"YYYY\")","v":"2022"}]
[null,"1. New claims beyond 2050 stress","Yearend Net GAAP Reserves ",null,{"$f":"Import!M5984","v":0}]
[null,null,"Insurer's reserve proportion for post 2050 claims",null,{"$f":"Import!M5985","v":0},"Uplift for new claims past 2050"]
[null,null,"Stress for new claims arising beyond 2050",null,{"$f":"IFERROR(MIN(MAX((1+F152)/(1+E151/(1-E151))-1,0),F152),0)","v":0.14999999999999991},0.15]
[null,"2. Claim count stress","Stress on projected claims count up to 2050",null,0.15]
[null,"3. Med Adv Stress","Insurer's loading for future medical advances",null,{"$f":"Import!M5986","v":0},"Uplift for medical developments"]
[null,null,"Stress for future medical developments",null,{"$f":"IFERROR(MIN(MAX((1+F155)/(1+E154)-1,0),F155),0)","v":0.1},0.1]
[null,"4. Claims Inflation Stress","Effective Duration of Liabilities",null,{"$f":"Import!M5987","v":0}]
[null,null,"Increase in Claims Inflation",null,0.03,"Approximated"]
[null,null,"GAAP Reserves after 3% Inflation stress",null,{"$f":"Import!M5988","v":0},{"$f":"E150*(1+E157)^E156","v":0}]
[null,"Stress Results","GAAP Reserves Ultimate Stress",null,{"$f":"IF(E150=0,0,E150*(1+E152)*(1+E155)*(1+E153)*E158/E150)","v":0},"Uplift",{"$f":"IF(E150=0,0,E159/E150-1)","v":0}]
[null,null,"1 year emergence factor",null,{"$f":"Import!M5989","v":0}]
[null,null,"GAAP Reserves 1-year Stress",null,{"$f":"IF(E150=0,0,E150*(1+E152)*(1+E155)*(1+E153*E160)*((E158/E150-1)*E160+1))","v":0},"Uplift",{"$f":"IF(E150=0,0,E161/E150-1)","v":0}]
[]
[null,{"$f":"IF('Company Information'!$F$11=\"IIGB\",\"E. RATING DOWNGRADE\",\"F. RATING DOWNGRADE\")","v":"E. RATING DOWNGRADE"}]
[null,"The (re)insurer is to submit a detailed disclosure on the impact of a ratings downgrade of its Bermuda legal entity or group by TWO NOTCHES OR BELOW A-, WHICHEVER IS LOWER."]
[null,{"$f":"Import!M5990","v":0}]
[]
[]
[]
[]
[]
[null,{"$f":"IF('Company Information'!$F$11=\"IIGB\",\"F. WORST-CASE ANNUAL AGGREGATE LOSS SCENARIO\",\"G. WORST-CASE ANNUAL AGGREGATE LOSS SCENARIO\")","v":"F. WORST-CASE ANNUAL AGGREGATE LOSS SCENARIO"}]
[null,"The (re)insurer is to submit the following: (1) and either (2a) or (2b) below"]
[null,"(1) R4 above and the three largest underwriting scenarios"]
[null,null,null,"Worst-case "]
[null,"R5",null,{"$f":"E16","v":0}]
[null,"Aggregate of 3 largest net underwriting loss",null,{"$f":"IF(SUM(K79:K81,H51:H69)=0,0,IF(COUNT(K79:K81,H51:H69)=1,LARGE((H51:H69,K79:K81),1),IF(COUNT(K79:K81,H51:H69)=2,LARGE((H51:H69,K79:K81),1)+LARGE((H51:H69,K79:K81),2),LARGE((H51:H69,K79:K81),1)+LARGE((H51:H69,K79:K81),2)+LARGE((H51:H69,K79:K81),3))))","v":0}]
[null,"Total loss",null,{"$f":"SUM(D175:E176)","v":0}]
[null,"Occurrence Return period",null,{"$f":"Import!M5991","v":0}]
[null,"Relative Return period",null,{"$f":"Import!M5992","v":0},null,"Doc Name","Page Number"]
[null,"Assumptions ",null,{"$f":"HYPERLINK(\"#'Attachments'!G145\",\"Attach file\")","v":"Attach file"}]
[]
[null,"(2) Either (2a) or (2b):"]
[]
[null,"(2a) Series of loss simulations "]
[null,{"$f":"\"The (re)insurer is to run a series of loss simulations or other analysis performed related to extreme tail events that include all in-force policies for \"&TEXT('Company Information'!C3+1,\"mmmm d yyyy\")","v":"The (re)insurer is to run a series of loss simulations or other analysis performed related to extreme tail events that include all in-force policies for January 1 2023"}]
[null,"Gross loss",null,{"$f":"Import!M5993","v":0}]
[null,"Net loss",null,{"$f":"Import!M5994","v":0},null,{"$f":"$I$6","v":0},{"$f":"IFERROR(($H$6-D187)/F187,0)","v":0}]
[null,"Risk measure",null,{"$f":"Import!M5995","v":0}]
[null,"Time horizon",null,{"$f":"Import!M5996","v":0}]
[null,"Occurrence Return period",null,{"$f":"Import!M5997","v":0}]
[null,"Relative Return period",null,{"$f":"Import!M5998","v":0}]
[null,"Proprietary / vendor model and version",null,{"$f":"Import!M5999","v":0},null,"Doc Name","Page Number"]
[null,"Assumptions",null,{"$f":"HYPERLINK(\"#'Attachments'!G145\",\"Attach file\")","v":"Attach file"}]
[]
[{"$f":"IF('Company Information'!$F$11=\"IIGB\",\"(2) (Re)insurer specific worst-case scenario\",\"(2b) (Re)insurer specific worst-case scenario\")","v":"(2) (Re)insurer specific worst-case scenario"}]
[null,"The (re)insurer is to submit a description of its own worst-case annual aggregate loss scenario and the underlying assumptions. "]
[null,"Worst-case annual aggregate loss \nscenario description",null,{"$f":"Import!M6000","v":0}]
[]
[null,"Gross loss",null,{"$f":"Import!M6001","v":0}]
[null,"Net loss",null,{"$f":"Import!M6002","v":0}]
[null,"Occurrence Return period",null,{"$f":"Import!M6003","v":0}]
[null,"Relative Return period",null,{"$f":"Import!M6004","v":0},null,"Doc Name","Page Number"]
[null,"Underlying assumptions",null,{"$f":"HYPERLINK(\"#'Attachments'!G145\",\"Attach file\")","v":"Attach file"}]
[]
[null,{"$f":"IF('Company Information'!$F$11=\"IIGB\",\"G. REVERSE STRESS TEST SCENARIO\",\"H. REVERSE STRESS TEST SCENARIO\")","v":"G. REVERSE STRESS TEST SCENARIO"}]
[null,"The (re)insurer is to submit key assumptions and scenarios that would cause business failure as determined by a reverse stress test scenario."]
[null,"Reverse stress test scenario description",null,{"$f":"Import!M6005","v":0}]
[]
[null,"Gross loss",null,{"$f":"Import!M6006","v":0}]
[null,"Net loss",null,{"$f":"Import!M6007","v":0}]
[null,"Occurrence Return period",null,{"$f":"Import!M6008","v":0}]
[null,"Relative Return period",null,{"$f":"Import!M6009","v":0},null,"Doc Name","Page Number"]
[null,"Underlying assumptions",null,{"$f":"HYPERLINK(\"#'Attachments'!G145\",\"Attach file\")","v":"Attach file"}]
[]
[null,"I. TERRORISM"]
[null,{"$f":"\"The (re)insurer is to submit the estimated top ten largest losses (in descending order) arising from explosion of a two-tonne bomb based upon policies in force at \"&TEXT('Company Information'!C3+1,\"mmmm d yyyy\")","v":"The (re)insurer is to submit the estimated top ten largest losses (in descending order) arising from explosion of a two-tonne bomb based upon policies in force at January 1 2023"}]
[null,null,null,"Loss 1","Loss 2","Loss 3","Loss 4","Loss 5","Loss 6","Loss 7","Loss 8","Loss 9","Loss 10"]
[null,"State / province",null,{"$f":"Import!M6011","v":0},{"$f":"Import!M6018","v":0},{"$f":"Import!M6025","v":0},{"$f":"Import!M6032","v":0},{"$f":"Import!M6039","v":0},{"$f":"Import!M6046","v":0},{"$f":"Import!M6053","v":0},{"$f":"Import!M6060","v":0},{"$f":"Import!M6067","v":0},{"$f":"Import!M6074","v":0}]
[null,"Country",null,{"$f":"Import!M6012","v":0},{"$f":"Import!M6019","v":0},{"$f":"Import!M6026","v":0},{"$f":"Import!M6033","v":0},{"$f":"Import!M6040","v":0},{"$f":"Import!M6047","v":0},{"$f":"Import!M6054","v":0},{"$f":"Import!M6061","v":0},{"$f":"Import!M6068","v":0},{"$f":"Import!M6075","v":0}]
[null,"Total gross loss estimate",null,{"$f":"Import!M6013","v":0},{"$f":"Import!M6020","v":0},{"$f":"Import!M6027","v":0},{"$f":"Import!M6034","v":0},{"$f":"Import!M6041","v":0},{"$f":"Import!M6048","v":0},{"$f":"Import!M6055","v":0},{"$f":"Import!M6062","v":0},{"$f":"Import!M6069","v":0},{"$f":"Import!M6076","v":0}]
[null,"TRIP or other recoverable, if any",null,{"$f":"Import!M6014","v":0},{"$f":"Import!M6021","v":0},{"$f":"Import!M6028","v":0},{"$f":"Import!M6035","v":0},{"$f":"Import!M6042","v":0},{"$f":"Import!M6049","v":0},{"$f":"Import!M6056","v":0},{"$f":"Import!M6063","v":0},{"$f":"Import!M6070","v":0},{"$f":"Import!M6077","v":0}]
[null,"Reinsurance recoveries, if any",null,{"$f":"Import!M6015","v":0},{"$f":"Import!M6022","v":0},{"$f":"Import!M6029","v":0},{"$f":"Import!M6036","v":0},{"$f":"Import!M6043","v":0},{"$f":"Import!M6050","v":0},{"$f":"Import!M6057","v":0},{"$f":"Import!M6064","v":0},{"$f":"Import!M6071","v":0},{"$f":"Import!M6078","v":0}]
[null,"Total net loss estimate",null,{"$f":"Import!M6016","v":0},{"$f":"Import!M6023","v":0},{"$f":"Import!M6030","v":0},{"$f":"Import!M6037","v":0},{"$f":"Import!M6044","v":0},{"$f":"Import!M6051","v":0},{"$f":"Import!M6058","v":0},{"$f":"Import!M6065","v":0},{"$f":"Import!M6072","v":0},{"$f":"Import!M6079","v":0}]
[null,"Target location",null,{"$f":"Import!M6017","v":0},{"$f":"Import!M6024","v":0},{"$f":"Import!M6031","v":0},{"$f":"Import!M6038","v":0},{"$f":"Import!M6045","v":0},{"$f":"Import!M6052","v":0},{"$f":"Import!M6059","v":0},{"$f":"Import!M6066","v":0},{"$f":"Import!M6073","v":0},{"$f":"Import!M6080","v":0}]
[null,"Proprietary / vendor model and version",null,{"$f":"Import!M6010","v":0},null,"Doc Name","Page Number"]
[null,"All assumptions and calculations",null,{"$f":"HYPERLINK(\"#'Attachments'!G145\",\"Attach file\")","v":"Attach file"}]
[]
[null,{"$f":"IF('Company Information'!$F$11=\"IIGB\",\"H. TECHNOLOGY RISK\",\"J. TECHNOLOGY RISK\")","v":"H. TECHNOLOGY RISK"}]
[null,"a) CYBER RISK - UNDERWRITING "]
[null,"If the Re(insurer) writes cyber risk business, provide details of that business as detailed below for the policies written in 2020:"]
[null,"a) (Re)Insurer writes cyber risk business, provide details for the policies written below. "]
[null,"b) (Re)Insurer does not write cyber risk business, provide details on item 2 (non-affirmative cyber) only for the policies written."]
[null,"c) For a (re)insurer, unconsolidated results relate to the Bermuda standalone operations (Excluding subsidiaries) and consolidated results relates to Bermuda entity level results (Including Subsidiaries). "]
[null,"d) For a (re)insurer, answering YES/NO below, please specify if you are consolidated by a another Bermuda (re)insurer:"]
[null,"Results consolidated by a Bermuda (re)insurer",null,{"$f":"Import!M6081","v":"Select"}]
[null,"Name of the Parent Bermuda (re)insurer",null,{"$f":"Import!M6082","v":0}]
[]
[null,"CONSOLIDATED RESULTS (Bermuda + Subsidiaries)"]
[null,"Policy Type",null,"Direct & Facultative",null,null,"Reinsurance",null,null,"Package "]
[null,null,null,{"$f":"YEAR('Company Information'!$C$3)","v":2022},{"$f":"D240-1","v":2021},null,{"$f":"YEAR('Company Information'!$C$3)","v":2022},{"$f":"G240-1","v":2021},null,{"$f":"YEAR('Company Information'!$C$3)","v":2022},{"$f":"J240-1","v":2021}]
["(i)","Total number of cyber policies in force (units) ",null,{"$f":"Import!M6083","v":0},{"$f":"Import!O6083","v":0},null,{"$f":"Import!M6099","v":0},{"$f":"Import!O6099","v":0},null,{"$f":"Import!M6115","v":0},{"$f":"Import!O6115","v":0}]
["(ii)","Gross Exposure for Policies in force ('$000)",null,{"$f":"Import!M6084","v":0},{"$f":"Import!O6084","v":0},{"$f":"IF(D242>=D243,\"TRUE\",\"FALSE\")","v":"TRUE"},{"$f":"Import!M6100","v":0},{"$f":"Import!O6100","v":0},{"$f":"IF(G242>=G243,\"TRUE\",\"FALSE\")","v":"TRUE"},{"$f":"Import!M6116","v":0},{"$f":"Import!O6116","v":0},{"$f":"IF(J242>=J243,\"TRUE\",\"FALSE\")","v":"TRUE"}]
["(iii)","Net Exposure for Policies in force ($'000)",null,{"$f":"Import!M6085","v":0},{"$f":"Import!O6085","v":0},null,{"$f":"Import!M6101","v":0},{"$f":"Import!O6101","v":0},null,{"$f":"Import!M6117","v":0},{"$f":"Import!O6117","v":0}]
["(iv).1","GPW - Proportional ('$000)",null,{"$f":"Import!M6086","v":0},{"$f":"Import!O6086","v":0},null,{"$f":"Import!M6102","v":0},{"$f":"Import!O6102","v":0},null,{"$f":"Import!M6118","v":0},{"$f":"Import!O6118","v":0}]
["(iv).2","GPW - Non-Proportional ('$000)",null,{"$f":"Import!M6087","v":0},{"$f":"Import!O6087","v":0},null,{"$f":"Import!M6103","v":0},{"$f":"Import!O6103","v":0},null,{"$f":"Import!M6119","v":0},{"$f":"Import!O6119","v":0}]
["(iv)","Gross Premium Written ('$000)",null,{"$f":"SUM(D244:D245)","v":0},{"$f":"SUM(E244:E245)","v":0},{"$f":"IF(D246>=D247,\"TRUE\",\"FALSE\")","v":"TRUE"},{"$f":"SUM(G244:G245)","v":0},{"$f":"SUM(H244:H245)","v":0},{"$f":"IF(G246>=G247,\"TRUE\",\"FALSE\")","v":"TRUE"},{"$f":"SUM(J244:J245)","v":0},{"$f":"SUM(K244:K245)","v":0},{"$f":"IF(J246>=J247,\"TRUE\",\"FALSE\")","v":"TRUE"}]
["(v)","Net Premium Written ($'000)",null,{"$f":"Import!M6088","v":0},{"$f":"Import!O6088","v":0},null,{"$f":"Import!M6104","v":0},{"$f":"Import!O6104","v":0},null,{"$f":"Import!M6120","v":0},{"$f":"Import!O6120","v":0}]
["(vi)","Gross Loss Reserves ('$000)",null,{"$f":"Import!M6089","v":0},{"$f":"Import!O6089","v":0},{"$f":"IF(D248>=D249,\"TRUE\",\"FALSE\")","v":"TRUE"},{"$f":"Import!M6105","v":0},{"$f":"Import!O6105","v":0},{"$f":"IF(G248>=G249,\"TRUE\",\"FALSE\")","v":"TRUE"},{"$f":"Import!M6121","v":0},{"$f":"Import!O6121","v":0},{"$f":"IF(J248>=J249,\"TRUE\",\"FALSE\")","v":"TRUE"}]
["(vii)","Net Loss Reserves ($'000)",null,{"$f":"Import!M6090","v":0},{"$f":"Import!O6090","v":0},null,{"$f":"Import!M6106","v":0},{"$f":"Import!O6106","v":0},null,{"$f":"Import!M6122","v":0},{"$f":"Import!O6122","v":0}]
["(viii)","Number of reported claims (units) ",null,{"$f":"Import!M6091","v":0},{"$f":"Import!O6091","v":0},null,{"$f":"Import!M6107","v":0},{"$f":"Import!O6107","v":0},null,{"$f":"Import!M6123","v":0},{"$f":"Import!O6123","v":0}]
["(ix)","Paid claims ($'000)",null,{"$f":"Import!M6092","v":0},{"$f":"Import!O6092","v":0},null,{"$f":"Import!M6108","v":0},{"$f":"Import!O6108","v":0},null,{"$f":"Import!M6124","v":0},{"$f":"Import!O6124","v":0}]
["(x)","Incurred losses ($'000)",null,{"$f":"Import!M6093","v":0},{"$f":"Import!O6093","v":0},null,{"$f":"Import!M6109","v":0},{"$f":"Import!O6109","v":0},null,{"$f":"Import!M6125","v":0},{"$f":"Import!O6125","v":0}]
["(xi)","Approximate average size of claims ($'000)",null,{"$f":"Import!M6094","v":0},{"$f":"Import!O6094","v":0},null,{"$f":"Import!M6110","v":0},{"$f":"Import!O6110","v":0},null,{"$f":"Import!M6126","v":0},{"$f":"Import!O6126","v":0}]
["(xii)","Largest Cyber Claim ($'000)",null,{"$f":"Import!M6095","v":0},{"$f":"Import!O6095","v":0},null,{"$f":"Import!M6111","v":0},{"$f":"Import!O6111","v":0},null,{"$f":"Import!M6127","v":0},{"$f":"Import!O6127","v":0}]
["(xiii)","Brief Description of largest claim (text)",null,{"$f":"Import!M6096","v":0},null,null,{"$f":"Import!M6112","v":0},null,null,{"$f":"Import!M6128","v":0}]
["xiv)","Policy Limits - Gross of Deductible",null,{"$f":"Import!M6097","v":0},{"$f":"Import!O6097","v":0},null,{"$f":"Import!M6113","v":0},{"$f":"Import!O6113","v":0},null,{"$f":"Import!M6129","v":0},{"$f":"Import!O6129","v":0}]
["xv)","Policy Limits -  Net of Deductible",null,{"$f":"Import!M6098","v":0},{"$f":"Import!O6098","v":0},null,{"$f":"Import!M6114","v":0},{"$f":"Import!O6114","v":0},null,{"$f":"Import!M6130","v":0},{"$f":"Import!O6130","v":0}]
[]
[null,"UNCONSOLIDATED RESULTS (Bermuda Only)"]
[null,"Policy Type",null,"Direct & Facultative",null,null,"Reinsurance",null,null,"Package ",null,null,"Related Party Business",null,null,"Unrelated Business (third party)"]
[null,null,null,{"$f":"YEAR('Company Information'!$C$3)","v":2022},{"$f":"D261-1","v":2021},null,{"$f":"YEAR('Company Information'!$C$3)","v":2022},{"$f":"G261-1","v":2021},null,{"$f":"YEAR('Company Information'!$C$3)","v":2022},{"$f":"J261-1","v":2021},null,{"$f":"YEAR('Company Information'!$C$3)","v":2022},{"$f":"M261-1","v":2021},null,{"$f":"YEAR('Company Information'!$C$3)","v":2022},{"$f":"P261-1","v":2021}]
["(i)","Total number of cyber policies in force (units) ",null,{"$f":"Import!E6083","v":0},{"$f":"Import!G6083","v":0},null,{"$f":"Import!E6099","v":0},{"$f":"Import!G6099","v":0},null,{"$f":"Import!E6115","v":0},{"$f":"Import!G6115","v":0},null,{"$f":"Import!E6131","v":0},{"$f":"Import!G6131","v":0},null,{"$f":"Import!E6147","v":0},{"$f":"Import!G6147","v":0}]
["(ii)","Gross Exposure for Policies in force ('$000)",null,{"$f":"Import!E6084","v":0},{"$f":"Import!G6084","v":0},{"$f":"IF(D263>=D264,\"TRUE\",\"FALSE\")","v":"TRUE"},{"$f":"Import!E6100","v":0},{"$f":"Import!G6100","v":0},{"$f":"IF(G263>=G264,\"TRUE\",\"FALSE\")","v":"TRUE"},{"$f":"Import!E6116","v":0},{"$f":"Import!G6116","v":0},{"$f":"IF(J263>=J264,\"TRUE\",\"FALSE\")","v":"TRUE"},{"$f":"Import!E6132","v":0},{"$f":"Import!G6132","v":0},{"$f":"IF(M263>=M264,\"TRUE\",\"FALSE\")","v":"TRUE"},{"$f":"Import!E6148","v":0},{"$f":"Import!G6148","v":0},{"$f":"IF(P263>=P264,\"TRUE\",\"FALSE\")","v":"TRUE"}]
["(iii)","Net Exposure for Policies in force ($'000)",null,{"$f":"Import!E6085","v":0},{"$f":"Import!G6085","v":0},null,{"$f":"Import!E6101","v":0},{"$f":"Import!G6101","v":0},null,{"$f":"Import!E6117","v":0},{"$f":"Import!G6117","v":0},null,{"$f":"Import!E6133","v":0},{"$f":"Import!G6133","v":0},null,{"$f":"Import!E6149","v":0},{"$f":"Import!G6149","v":0}]
["(iv).1","GPW - Proportional ('$000)",null,{"$f":"Import!E6086","v":0},{"$f":"Import!G6086","v":0},null,{"$f":"Import!E6102","v":0},{"$f":"Import!G6102","v":0},null,{"$f":"Import!E6118","v":0},{"$f":"Import!G6118","v":0},null,{"$f":"Import!E6134","v":0},{"$f":"Import!G6134","v":0},null,{"$f":"Import!E6150","v":0},{"$f":"Import!G6150","v":0}]
["(iv).2","GPW - Non-Proportional ('$000)",null,{"$f":"Import!E6087","v":0},{"$f":"Import!G6087","v":0},null,{"$f":"Import!E6103","v":0},{"$f":"Import!G6103","v":0},null,{"$f":"Import!E6119","v":0},{"$f":"Import!G6119","v":0},null,{"$f":"Import!E6135","v":0},{"$f":"Import!G6135","v":0},null,{"$f":"Import!E6151","v":0},{"$f":"Import!G6151","v":0}]
["(iv)","Gross Premium Written ('$000)",null,{"$f":"SUM(D265:D266)","v":0},{"$f":"SUM(E265:E266)","v":0},{"$f":"IF(D267>=D268,\"TRUE\",\"FALSE\")","v":"TRUE"},{"$f":"SUM(G265:G266)","v":0},{"$f":"SUM(H265:H266)","v":0},{"$f":"IF(G267>=G268,\"TRUE\",\"FALSE\")","v":"TRUE"},{"$f":"SUM(J265:J266)","v":0},{"$f":"SUM(K265:K266)","v":0},{"$f":"IF(J267>=J268,\"TRUE\",\"FALSE\")","v":"TRUE"},{"$f":"SUM(M265:M266)","v":0},{"$f":"SUM(N265:N266)","v":0},{"$f":"IF(M267>=M268,\"TRUE\",\"FALSE\")","v":"TRUE"},{"$f":"SUM(P265:P266)","v":0},{"$f":"SUM(Q265:Q266)","v":0},{"$f":"IF(P267>=P268,\"TRUE\",\"FALSE\")","v":"TRUE"}]
["(v)","Net Premium Written ($'000)",null,{"$f":"Import!E6088","v":0},{"$f":"Import!G6088","v":0},null,{"$f":"Import!E6104","v":0},{"$f":"Import!G6104","v":0},null,{"$f":"Import!E6120","v":0},{"$f":"Import!G6120","v":0},null,{"$f":"Import!E6136","v":0},{"$f":"Import!G6136","v":0},null,{"$f":"Import!E6152","v":0},{"$f":"Import!G6152","v":0}]
["(vi)","Gross Loss Reserves ('$000)",null,{"$f":"Import!E6089","v":0},{"$f":"Import!G6089","v":0},{"$f":"IF(D269>=D270,\"TRUE\",\"FALSE\")","v":"TRUE"},{"$f":"Import!E6105","v":0},{"$f":"Import!G6105","v":0},{"$f":"IF(G269>=G270,\"TRUE\",\"FALSE\")","v":"TRUE"},{"$f":"Import!E6121","v":0},{"$f":"Import!G6121","v":0},{"$f":"IF(J269>=J270,\"TRUE\",\"FALSE\")","v":"TRUE"},{"$f":"Import!E6137","v":0},{"$f":"Import!G6137","v":0},{"$f":"IF(M269>=M270,\"TRUE\",\"FALSE\")","v":"TRUE"},{"$f":"Import!E6153","v":0},{"$f":"Import!G6153","v":0},{"$f":"IF(P269>=P270,\"TRUE\",\"FALSE\")","v":"TRUE"}]
["(vii)","Net Loss Reserves ($'000)",null,{"$f":"Import!E6090","v":0},{"$f":"Import!G6090","v":0},null,{"$f":"Import!E6106","v":0},{"$f":"Import!G6106","v":0},null,{"$f":"Import!E6122","v":0},{"$f":"Import!G6122","v":0},null,{"$f":"Import!E6138","v":0},{"$f":"Import!G6138","v":0},null,{"$f":"Import!E6154","v":0},{"$f":"Import!G6154","v":0}]
["(viii)","Number of reported claims (units) ",null,{"$f":"Import!E6091","v":0},{"$f":"Import!G6091","v":0},null,{"$f":"Import!E6107","v":0},{"$f":"Import!G6107","v":0},null,{"$f":"Import!E6123","v":0},{"$f":"Import!G6123","v":0},null,{"$f":"Import!E6139","v":0},{"$f":"Import!G6139","v":0},null,{"$f":"Import!E6155","v":0},{"$f":"Import!G6155","v":0}]
["(ix)","Paid claims ($'000)",null,{"$f":"Import!E6092","v":0},{"$f":"Import!G6092","v":0},null,{"$f":"Import!E6108","v":0},{"$f":"Import!G6108","v":0},null,{"$f":"Import!E6124","v":0},{"$f":"Import!G6124","v":0},null,{"$f":"Import!E6140","v":0},{"$f":"Import!G6140","v":0},null,{"$f":"Import!E6156","v":0},{"$f":"Import!G6156","v":0}]
["(x)","Incurred losses ($'000)",null,{"$f":"Import!E6093","v":0},{"$f":"Import!G6093","v":0},null,{"$f":"Import!E6109","v":0},{"$f":"Import!G6109","v":0},null,{"$f":"Import!E6125","v":0},{"$f":"Import!G6125","v":0},null,{"$f":"Import!E6141","v":0},{"$f":"Import!G6141","v":0},null,{"$f":"Import!E6157","v":0},{"$f":"Import!G6157","v":0}]
["(xi)","Approximate average size of claims ($'000)",null,{"$f":"Import!E6094","v":0},{"$f":"Import!G6094","v":0},null,{"$f":"Import!E6110","v":0},{"$f":"Import!G6110","v":0},null,{"$f":"Import!E6126","v":0},{"$f":"Import!G6126","v":0},null,{"$f":"Import!E6142","v":0},{"$f":"Import!G6142","v":0},null,{"$f":"Import!E6158","v":0},{"$f":"Import!G6158","v":0}]
["(xii)","Largest Cyber Claim ($'000)",null,{"$f":"Import!E6095","v":0},{"$f":"Import!G6095","v":0},null,{"$f":"Import!E6111","v":0},{"$f":"Import!G6111","v":0},null,{"$f":"Import!E6127","v":0},{"$f":"Import!G6127","v":0},null,{"$f":"Import!E6143","v":0},{"$f":"Import!G6143","v":0},null,{"$f":"Import!E6159","v":0},{"$f":"Import!G6159","v":0}]
["(xiii)","Brief Description of largest claim (text)",null,{"$f":"Import!E6096","v":0},null,null,{"$f":"Import!E6112","v":0},null,null,{"$f":"Import!E6128","v":0},null,null,{"$f":"Import!E6144","v":0},null,null,{"$f":"Import!E6160","v":0}]
["xiv)","Policy Limits - Gross of Deductible",null,{"$f":"Import!E6097","v":0},{"$f":"Import!G6097","v":0},null,{"$f":"Import!E6113","v":0},{"$f":"Import!G6113","v":0},null,{"$f":"Import!E6129","v":0},{"$f":"Import!G6129","v":0},null,{"$f":"Import!E6145","v":0},{"$f":"Import!G6145","v":0},null,{"$f":"Import!E6161","v":0},{"$f":"Import!G6161","v":0}]
["xv)","Policy Limits -  Net of Deductible",null,{"$f":"Import!E6098","v":0},{"$f":"Import!G6098","v":0},null,{"$f":"Import!E6114","v":0},{"$f":"Import!G6114","v":0},null,{"$f":"Import!E6130","v":0},{"$f":"Import!G6130","v":0},null,{"$f":"Import!E6146","v":0},{"$f":"Import!G6146","v":0},null,{"$f":"Import!E6162","v":0},{"$f":"Import!G6162","v":0}]
[]
[null,"GEOGRAPHIC SPECIFIC INFORMATION"]
[null,"CONSOLIDATED RESULTS (Bermuda + Subsidiaries)"]
[null,"Policy Type",null,"Direct & Facultative ",null,null,null,null,"Reinsurance ",null,null,null,null,"Package "]
[null,null,null,"# of Policies",{"$f":"YEAR('Company Information'!$C$3)&\" Cyber Premiums Written\"","v":"2022 Cyber Premiums Written"},null,{"$f":"YEAR('Company Information'!$C$3)&\" Exposure\"","v":"2022 Exposure"},null,"# of Policies",{"$f":"YEAR('Company Information'!$C$3)&\" Cyber Premiums Written\"","v":"2022 Cyber Premiums Written"},null,{"$f":"YEAR('Company Information'!$C$3)&\" Exposure\"","v":"2022 Exposure"},null,"# of Policies",{"$f":"YEAR('Company Information'!$C$3)&\" Cyber Premiums Written\"","v":"2022 Cyber Premiums Written"},null,{"$f":"YEAR('Company Information'!$C$3)&\" Exposure\"","v":"2022 Exposure"}]
[null,"Location",null,null,"Gross ('$000)","Net ('$000)","Gross ('$000)","Net ('$000)",null,"Gross ('$000)","Net ('$000)","Gross ('$000)","Net ('$000)",null,"Gross ('$000)","Net ('$000)","Gross ('$000)","Net ('$000)"]
[null,"United States (all states)",null,{"$f":"Import!M6163","v":0},{"$f":"Import!M6170","v":0},{"$f":"Import!M6177","v":0},{"$f":"Import!M6184","v":0},{"$f":"Import!M6191","v":0},{"$f":"Import!M6198","v":0},{"$f":"Import!M6205","v":0},{"$f":"Import!M6212","v":0},{"$f":"Import!M6219","v":0},{"$f":"Import!M6226","v":0},{"$f":"Import!M6233","v":0},{"$f":"Import!M6240","v":0},{"$f":"Import!M6247","v":0},{"$f":"Import!M6254","v":0},{"$f":"Import!M6261","v":0}]
[null,"Canada",null,{"$f":"Import!M6164","v":0},{"$f":"Import!M6171","v":0},{"$f":"Import!M6178","v":0},{"$f":"Import!M6185","v":0},{"$f":"Import!M6192","v":0},{"$f":"Import!M6199","v":0},{"$f":"Import!M6206","v":0},{"$f":"Import!M6213","v":0},{"$f":"Import!M6220","v":0},{"$f":"Import!M6227","v":0},{"$f":"Import!M6234","v":0},{"$f":"Import!M6241","v":0},{"$f":"Import!M6248","v":0},{"$f":"Import!M6255","v":0},{"$f":"Import!M6262","v":0}]
[null,"UK, Continental Europe",null,{"$f":"Import!M6165","v":0},{"$f":"Import!M6172","v":0},{"$f":"Import!M6179","v":0},{"$f":"Import!M6186","v":0},{"$f":"Import!M6193","v":0},{"$f":"Import!M6200","v":0},{"$f":"Import!M6207","v":0},{"$f":"Import!M6214","v":0},{"$f":"Import!M6221","v":0},{"$f":"Import!M6228","v":0},{"$f":"Import!M6235","v":0},{"$f":"Import!M6242","v":0},{"$f":"Import!M6249","v":0},{"$f":"Import!M6256","v":0},{"$f":"Import!M6263","v":0}]
[null,"Australia, New Zealand",null,{"$f":"Import!M6166","v":0},{"$f":"Import!M6173","v":0},{"$f":"Import!M6180","v":0},{"$f":"Import!M6187","v":0},{"$f":"Import!M6194","v":0},{"$f":"Import!M6201","v":0},{"$f":"Import!M6208","v":0},{"$f":"Import!M6215","v":0},{"$f":"Import!M6222","v":0},{"$f":"Import!M6229","v":0},{"$f":"Import!M6236","v":0},{"$f":"Import!M6243","v":0},{"$f":"Import!M6250","v":0},{"$f":"Import!M6257","v":0},{"$f":"Import!M6264","v":0}]
[null,"Japan",null,{"$f":"Import!M6167","v":0},{"$f":"Import!M6174","v":0},{"$f":"Import!M6181","v":0},{"$f":"Import!M6188","v":0},{"$f":"Import!M6195","v":0},{"$f":"Import!M6202","v":0},{"$f":"Import!M6209","v":0},{"$f":"Import!M6216","v":0},{"$f":"Import!M6223","v":0},{"$f":"Import!M6230","v":0},{"$f":"Import!M6237","v":0},{"$f":"Import!M6244","v":0},{"$f":"Import!M6251","v":0},{"$f":"Import!M6258","v":0},{"$f":"Import!M6265","v":0}]
[null,"Worldwide covers",null,{"$f":"Import!M6168","v":0},{"$f":"Import!M6175","v":0},{"$f":"Import!M6182","v":0},{"$f":"Import!M6189","v":0},{"$f":"Import!M6196","v":0},{"$f":"Import!M6203","v":0},{"$f":"Import!M6210","v":0},{"$f":"Import!M6217","v":0},{"$f":"Import!M6224","v":0},{"$f":"Import!M6231","v":0},{"$f":"Import!M6238","v":0},{"$f":"Import!M6245","v":0},{"$f":"Import!M6252","v":0},{"$f":"Import!M6259","v":0},{"$f":"Import!M6266","v":0}]
[null,"Other",null,{"$f":"Import!M6169","v":0},{"$f":"Import!M6176","v":0},{"$f":"Import!M6183","v":0},{"$f":"Import!M6190","v":0},{"$f":"Import!M6197","v":0},{"$f":"Import!M6204","v":0},{"$f":"Import!M6211","v":0},{"$f":"Import!M6218","v":0},{"$f":"Import!M6225","v":0},{"$f":"Import!M6232","v":0},{"$f":"Import!M6239","v":0},{"$f":"Import!M6246","v":0},{"$f":"Import!M6253","v":0},{"$f":"Import!M6260","v":0},{"$f":"Import!M6267","v":0}]
[null,"TOTAL",null,{"$f":"SUM(D285:D291)=D241","v":true},{"$f":"SUM(E285:E291)=D246","v":true},{"$f":"SUM(F285:F291)=D247","v":true},{"$f":"SUM(G285:G291)=D242","v":true},{"$f":"SUM(H285:H291)=D243","v":true},{"$f":"SUM(I285:I291)=G241","v":true},{"$f":"SUM(J285:J291)=G246","v":true},{"$f":"SUM(K285:K291)=G247","v":true},{"$f":"SUM(L285:L291)=G242","v":true},{"$f":"SUM(M285:M291)=G243","v":true},{"$f":"SUM(N285:N291)=J241","v":true},{"$f":"SUM(O285:O291)=J246","v":true},{"$f":"SUM(P285:P291)=J247","v":true},{"$f":"SUM(Q285:Q291)=J242","v":true},{"$f":"SUM(R285:R291)=J243","v":true}]
[null,"Cyber Underwriting risk appetite and limits",null,{"$f":"HYPERLINK(\"#'Attachments'!G85\",\"Attach file\")","v":"Attach file"}]
[]
[null,"UNCONSOLIDATED RESULTS (Bermuda Only)"]
[null,"Policy Type",null,"Direct & Facultative ",null,null,null,null,"Reinsurance ",null,null,null,null,"Package "]
[null,null,null,"# of Policies",{"$f":"YEAR('Company Information'!$C$3)&\" Cyber Premiums Written\"","v":"2022 Cyber Premiums Written"},null,{"$f":"YEAR('Company Information'!$C$3)&\" Exposure\"","v":"2022 Exposure"},null,"# of Policies",{"$f":"YEAR('Company Information'!$C$3)&\" Cyber Premiums Written\"","v":"2022 Cyber Premiums Written"},null,{"$f":"YEAR('Company Information'!$C$3)&\" Exposure\"","v":"2022 Exposure"},null,"# of Policies",{"$f":"YEAR('Company Information'!$C$3)&\" Cyber Premiums Written\"","v":"2022 Cyber Premiums Written"},null,{"$f":"YEAR('Company Information'!$C$3)&\" Exposure\"","v":"2022 Exposure"}]
[null,"Location",null,null,"Gross ('$000)","Net ('$000)","Gross ('$000)","Net ('$000)",null,"Gross ('$000)","Net ('$000)","Gross ('$000)","Net ('$000)",null,"Gross ('$000)","Net ('$000)","Gross ('$000)","Net ('$000)"]
[null,"United States (all states)",null,{"$f":"Import!E6163","v":0},{"$f":"Import!E6170","v":0},{"$f":"Import!E6177","v":0},{"$f":"Import!E6184","v":0},{"$f":"Import!E6191","v":0},{"$f":"Import!E6198","v":0},{"$f":"Import!E6205","v":0},{"$f":"Import!E6212","v":0},{"$f":"Import!E6219","v":0},{"$f":"Import!E6226","v":0},{"$f":"Import!E6233","v":0},{"$f":"Import!E6240","v":0},{"$f":"Import!E6247","v":0},{"$f":"Import!E6254","v":0},{"$f":"Import!E6261","v":0}]
[null,"Canada",null,{"$f":"Import!E6164","v":0},{"$f":"Import!E6171","v":0},{"$f":"Import!E6178","v":0},{"$f":"Import!E6185","v":0},{"$f":"Import!E6192","v":0},{"$f":"Import!E6199","v":0},{"$f":"Import!E6206","v":0},{"$f":"Import!E6213","v":0},{"$f":"Import!E6220","v":0},{"$f":"Import!E6227","v":0},{"$f":"Import!E6234","v":0},{"$f":"Import!E6241","v":0},{"$f":"Import!E6248","v":0},{"$f":"Import!E6255","v":0},{"$f":"Import!E6262","v":0}]
[null,"UK, Continental Europe",null,{"$f":"Import!E6165","v":0},{"$f":"Import!E6172","v":0},{"$f":"Import!E6179","v":0},{"$f":"Import!E6186","v":0},{"$f":"Import!E6193","v":0},{"$f":"Import!E6200","v":0},{"$f":"Import!E6207","v":0},{"$f":"Import!E6214","v":0},{"$f":"Import!E6221","v":0},{"$f":"Import!E6228","v":0},{"$f":"Import!E6235","v":0},{"$f":"Import!E6242","v":0},{"$f":"Import!E6249","v":0},{"$f":"Import!E6256","v":0},{"$f":"Import!E6263","v":0}]
[null,"Australia, New Zealand",null,{"$f":"Import!E6166","v":0},{"$f":"Import!E6173","v":0},{"$f":"Import!E6180","v":0},{"$f":"Import!E6187","v":0},{"$f":"Import!E6194","v":0},{"$f":"Import!E6201","v":0},{"$f":"Import!E6208","v":0},{"$f":"Import!E6215","v":0},{"$f":"Import!E6222","v":0},{"$f":"Import!E6229","v":0},{"$f":"Import!E6236","v":0},{"$f":"Import!E6243","v":0},{"$f":"Import!E6250","v":0},{"$f":"Import!E6257","v":0},{"$f":"Import!E6264","v":0}]
[null,"Japan",null,{"$f":"Import!E6167","v":0},{"$f":"Import!E6174","v":0},{"$f":"Import!E6181","v":0},{"$f":"Import!E6188","v":0},{"$f":"Import!E6195","v":0},{"$f":"Import!E6202","v":0},{"$f":"Import!E6209","v":0},{"$f":"Import!E6216","v":0},{"$f":"Import!E6223","v":0},{"$f":"Import!E6230","v":0},{"$f":"Import!E6237","v":0},{"$f":"Import!E6244","v":0},{"$f":"Import!E6251","v":0},{"$f":"Import!E6258","v":0},{"$f":"Import!E6265","v":0}]
[null,"Worldwide covers",null,{"$f":"Import!E6168","v":0},{"$f":"Import!E6175","v":0},{"$f":"Import!E6182","v":0},{"$f":"Import!E6189","v":0},{"$f":"Import!E6196","v":0},{"$f":"Import!E6203","v":0},{"$f":"Import!E6210","v":0},{"$f":"Import!E6217","v":0},{"$f":"Import!E6224","v":0},{"$f":"Import!E6231","v":0},{"$f":"Import!E6238","v":0},{"$f":"Import!E6245","v":0},{"$f":"Import!E6252","v":0},{"$f":"Import!E6259","v":0},{"$f":"Import!E6266","v":0}]
[null,"Other",null,{"$f":"Import!E6169","v":0},{"$f":"Import!E6176","v":0},{"$f":"Import!E6183","v":0},{"$f":"Import!E6190","v":0},{"$f":"Import!E6197","v":0},{"$f":"Import!E6204","v":0},{"$f":"Import!E6211","v":0},{"$f":"Import!E6218","v":0},{"$f":"Import!E6225","v":0},{"$f":"Import!E6232","v":0},{"$f":"Import!E6239","v":0},{"$f":"Import!E6246","v":0},{"$f":"Import!E6253","v":0},{"$f":"Import!E6260","v":0},{"$f":"Import!E6267","v":0}]
[null,"TOTAL",null,{"$f":"SUM(D299:D305)=D262","v":true},{"$f":"SUM(E299:E305)=D267","v":true},{"$f":"SUM(F299:F305)=D268","v":true},{"$f":"SUM(G299:G305)=D263","v":true},{"$f":"SUM(H299:H305)=D264","v":true},{"$f":"SUM(I299:I305)=G262","v":true},{"$f":"SUM(J299:J305)=G267","v":true},{"$f":"SUM(K299:K305)=G268","v":true},{"$f":"SUM(L299:L305)=G263","v":true},{"$f":"SUM(M299:M305)=G264","v":true},{"$f":"SUM(N299:N305)=J262","v":true},{"$f":"SUM(O299:O305)=J267","v":true},{"$f":"SUM(P299:P305)=J268","v":true},{"$f":"SUM(Q299:Q305)=J263","v":true},{"$f":"SUM(R299:R305)=J264","v":true}]
[null,"Cyber Underwriting risk appetite and limits",null,{"$f":"HYPERLINK(\"#'Attachments'!G85\",\"Attach file\")","v":"Attach file"}]
[]
[2,"For all other non-cyber specific (re)insurance policies issued, provide the following on a consolidated basis:"]
[null,"Answering YES or NO, in which of the following lines of business has a cyber exclusion clause been included based on the policies enforced during the reporting period"]
[]
[null,null,null,null,null,"Does the company have exclusion clause in place for this LOB in its portfolio?","If NO, provide ESTIMATED Potential Gross Exposure for portfolio where no cyber exclusion clause has been included in the policy:",null,"Indicate if portfolio has predominantly claims-made (CM) or occurrence (OCC) claims trigger"]
[]
[]
[]
[null,null,null,null,null,null,{"$f":"YEAR('Company Information'!$C$3)","v":2022},{"$f":"G316-1","v":2021}]
[null,"Line of Business",null,null,null,null,"('$000)","('$000)"]
[null,"Property",null,null,null,{"$f":"Import!M6268","v":"Select"},{"$f":"Import!M6291","v":0},{"$f":"Import!M6314","v":0},{"$f":"Import!M6337","v":"Select from Drop-down"},{"$f":"Import!N6337","v":0}]
[null,"Property Non-Proportional",null,null,null,{"$f":"Import!M6269","v":"Select"},{"$f":"Import!M6292","v":0},{"$f":"Import!M6315","v":0},{"$f":"Import!M6338","v":"Select from Drop-down"},{"$f":"Import!N6338","v":0}]
[null,"Personal Accident",null,null,null,{"$f":"Import!M6270","v":"Select"},{"$f":"Import!M6293","v":0},{"$f":"Import!M6316","v":0},{"$f":"Import!M6339","v":"Select from Drop-down"},{"$f":"Import!N6339","v":0}]
[null,"Personal Accident Non-Proportional",null,null,null,{"$f":"Import!M6271","v":"Select"},{"$f":"Import!M6294","v":0},{"$f":"Import!M6317","v":0},{"$f":"Import!M6340","v":"Select from Drop-down"},{"$f":"Import!N6340","v":0}]
[null,"Aviation",null,null,null,{"$f":"Import!M6272","v":"Select"},{"$f":"Import!M6295","v":0},{"$f":"Import!M6318","v":0},{"$f":"Import!M6341","v":"Select from Drop-down"},{"$f":"Import!N6341","v":0}]
[null,"Aviation Non-Proportional",null,null,null,{"$f":"Import!M6273","v":"Select"},{"$f":"Import!M6296","v":0},{"$f":"Import!M6319","v":0},{"$f":"Import!M6342","v":"Select from Drop-down"},{"$f":"Import!N6342","v":0}]
[null,"Credit/Surety",null,null,null,{"$f":"Import!M6274","v":"Select"},{"$f":"Import!M6297","v":0},{"$f":"Import!M6320","v":0},{"$f":"Import!M6343","v":"Select from Drop-down"},{"$f":"Import!N6343","v":0}]
[null,"Credit/Surety - Non-Proportional",null,null,null,{"$f":"Import!M6275","v":"Select"},{"$f":"Import!M6298","v":0},{"$f":"Import!M6321","v":0},{"$f":"Import!M6344","v":"Select from Drop-down"},{"$f":"Import!N6344","v":0}]
[null,"Energy Offshore/Marine",null,null,null,{"$f":"Import!M6276","v":"Select"},{"$f":"Import!M6299","v":0},{"$f":"Import!M6322","v":0},{"$f":"Import!M6345","v":"Select from Drop-down"},{"$f":"Import!N6345","v":0}]
[null,"Energy offshore/Marine Non-Proportional",null,null,null,{"$f":"Import!M6277","v":"Select"},{"$f":"Import!M6300","v":0},{"$f":"Import!M6323","v":0},{"$f":"Import!M6346","v":"Select from Drop-down"},{"$f":"Import!N6346","v":0}]
[null,"US Casualty",null,null,null,{"$f":"Import!M6278","v":"Select"},{"$f":"Import!M6301","v":0},{"$f":"Import!M6324","v":0},{"$f":"Import!M6347","v":"Select from Drop-down"},{"$f":"Import!N6347","v":0}]
[null,"US Casualty Non-Proportional",null,null,null,{"$f":"Import!M6279","v":"Select"},{"$f":"Import!M6302","v":0},{"$f":"Import!M6325","v":0},{"$f":"Import!M6348","v":"Select from Drop-down"},{"$f":"Import!N6348","v":0}]
[null,"US Professional",null,null,null,{"$f":"Import!M6280","v":"Select"},{"$f":"Import!M6303","v":0},{"$f":"Import!M6326","v":0},{"$f":"Import!M6349","v":"Select from Drop-down"},{"$f":"Import!N6349","v":0}]
[null,"US Professional Non-Proportional",null,null,null,{"$f":"Import!M6281","v":"Select"},{"$f":"Import!M6304","v":0},{"$f":"Import!M6327","v":0},{"$f":"Import!M6350","v":"Select from Drop-down"},{"$f":"Import!N6350","v":0}]
[null,"US Specialty",null,null,null,{"$f":"Import!M6282","v":"Select"},{"$f":"Import!M6305","v":0},{"$f":"Import!M6328","v":0},{"$f":"Import!M6351","v":"Select from Drop-down"},{"$f":"Import!N6351","v":0}]
[null,"US Specialty Non-Proportional",null,null,null,{"$f":"Import!M6283","v":"Select"},{"$f":"Import!M6306","v":0},{"$f":"Import!M6329","v":0},{"$f":"Import!M6352","v":"Select from Drop-down"},{"$f":"Import!N6352","v":0}]
[null,"International Motor",null,null,null,{"$f":"Import!M6284","v":"Select"},{"$f":"Import!M6307","v":0},{"$f":"Import!M6330","v":0},{"$f":"Import!M6353","v":"Select from Drop-down"},{"$f":"Import!N6353","v":0}]
[null,"International Motor Non-Proportional",null,null,null,{"$f":"Import!M6285","v":"Select"},{"$f":"Import!M6308","v":0},{"$f":"Import!M6331","v":0},{"$f":"Import!M6354","v":"Select from Drop-down"},{"$f":"Import!N6354","v":0}]
[null,"International Casualty Non-Motor",null,null,null,{"$f":"Import!M6286","v":"Select"},{"$f":"Import!M6309","v":0},{"$f":"Import!M6332","v":0},{"$f":"Import!M6355","v":"Select from Drop-down"},{"$f":"Import!N6355","v":0}]
[null,"International Casualty Non-Motor Non-Proportional",null,null,null,{"$f":"Import!M6287","v":"Select"},{"$f":"Import!M6310","v":0},{"$f":"Import!M6333","v":0},{"$f":"Import!M6356","v":"Select from Drop-down"},{"$f":"Import!N6356","v":0}]
[null,"Retro Property",null,null,null,{"$f":"Import!M6288","v":"Select"},{"$f":"Import!M6311","v":0},{"$f":"Import!M6334","v":0},{"$f":"Import!M6357","v":"Select from Drop-down"},{"$f":"Import!N6357","v":0}]
[null,"Structured/Finite reinsurance",null,null,null,{"$f":"Import!M6289","v":"Select"},{"$f":"Import!M6312","v":0},{"$f":"Import!M6335","v":0},{"$f":"Import!M6358","v":"Select from Drop-down"},{"$f":"Import!N6358","v":0}]
[null,"Health",null,null,null,{"$f":"Import!M6290","v":"Select"},{"$f":"Import!M6313","v":0},{"$f":"Import!M6336","v":0},{"$f":"Import!M6359","v":"Select from Drop-down"},{"$f":"Import!N6359","v":0}]
[null,"TOTAL",null,null,null,null,{"$f":"SUM(G318:G340)","v":0},{"$f":"SUM(H318:H340)","v":0}]
[]
[3,"Cyber Underwriting Stress Scenarios"]
[null,"Assume cyber underwriting scenarios are generated by a perpetrator that is not a nation state and that these scenarios do not trigger any cyber war or other similar exclusions"]
[null,"For reinsurers, please calculate separately on the basis that these attacks are deemed both as one event and as 10 separate events, returning whichever causes the largest net loss."]
[null,"For the purpose of these scenarios, we define Materiality to be either one the following metrics:\n1. Affirmative Cyber GWP represents 15% or more of the total GWP for the current year\n2. Gross estimated affirmative cyber loss accounts for 10% of the current capital and surplus (C&S)\n3. Gross estimated non-affirmative cyber loss accounts for 5% of the current C&S. \n4. Cyber-related loss events (either arising from affirmative cyber policy or non-affirmative policy responding to a cyber loss event) constitute 15% of the total losses incurred for the most recent year end\n"]
[]
[]
[]
[]
[null,null,null,"Total Estimated Gross Loss (000's)","Total Estimated Net Loss (000's)","Gross loss - affirmative cyber cover (000's)"," Net loss - affirmative cyber cover (000's)","Cyber Gross Premium Written (000's)","Cyber Net Premium Written (000's)","Occurrence Return Period ","Proprietary/ Vendor Model Used & Version (if applicable)","Assumptions Used+ Other supporting documents","Potential Management Action/mitigation plans to be taken post-stress scenario"]
[null,1,"Cloud outage",{"$f":"F352+E364","v":0},{"$f":"G352+F364","v":0},{"$f":"Import!M6360","v":0},{"$f":"Import!M6363","v":0},{"$f":"Import!M6366","v":0},{"$f":"Import!M6369","v":0},{"$f":"Import!M6372","v":0},{"$f":"Import!M6375","v":0},{"$f":"HYPERLINK(\"#'Attachments'!G85\",\"Attach file\")","v":"Attach file"},"Attach file"]
[null,2,"Ransomware",{"$f":"F353+G364","v":0},{"$f":"G353+H364","v":0},{"$f":"Import!M6361","v":0},{"$f":"Import!M6364","v":0},{"$f":"Import!M6367","v":0},{"$f":"Import!M6370","v":0},{"$f":"Import!M6373","v":0},{"$f":"Import!M6376","v":0},"Attach file","Attach file"]
[null,3,"Data Breach",{"$f":"F354+I364","v":0},{"$f":"G354+J364","v":0},{"$f":"Import!M6362","v":0},{"$f":"Import!M6365","v":0},{"$f":"Import!M6368","v":0},{"$f":"Import!M6371","v":0},{"$f":"Import!M6374","v":0},{"$f":"Import!M6377","v":0},"Attach file","Attach file"]
[null,null,null,null,null,null,{"$f":"Import!M6366","v":0},{"$f":"Import!M6369","v":0},{"$f":"Import!M6372","v":0},{"$f":"Import!M6375","v":0},{"$f":"Import!M6378","v":0}]
[null,"Summary of Non-affirmative cyber exposure per stress scenario",null,null,"1. Cloud Outage",null,"2. Ransomware",null,"3. Data Breach"]
[null,"Line of Business",null,null,"Gross loss - non-affirmative (000's)","Net loss - non-affirmative (000's)","Gross loss - non-affirmative (000's)","Net loss - non-affirmative (000's)","Gross loss - non-affirmative (000's)","Net loss - non-affirmative (000's)"]
[null,"1. Crime ",null,null,{"$f":"Import!M6378","v":0},{"$f":"Import!M6384","v":0},{"$f":"Import!M6390","v":0},{"$f":"Import!M6396","v":0},{"$f":"Import!M6402","v":0},{"$f":"Import!M6408","v":0}]
[null,"2. E&O policies",null,null,{"$f":"Import!M6379","v":0},{"$f":"Import!M6385","v":0},{"$f":"Import!M6391","v":0},{"$f":"Import!M6397","v":0},{"$f":"Import!M6403","v":0},{"$f":"Import!M6409","v":0}]
[null,"3. Technology E&O ",null,null,{"$f":"Import!M6380","v":0},{"$f":"Import!M6386","v":0},{"$f":"Import!M6392","v":0},{"$f":"Import!M6398","v":0},{"$f":"Import!M6404","v":0},{"$f":"Import!M6410","v":0}]
[null,"4. D&O ",null,null,{"$f":"Import!M6381","v":0},{"$f":"Import!M6387","v":0},{"$f":"Import!M6393","v":0},{"$f":"Import!M6399","v":0},{"$f":"Import!M6405","v":0},{"$f":"Import!M6411","v":0}]
[null,"5. GL / failure to supply ",null,null,{"$f":"Import!M6382","v":0},{"$f":"Import!M6388","v":0},{"$f":"Import!M6394","v":0},{"$f":"Import!M6400","v":0},{"$f":"Import!M6406","v":0},{"$f":"Import!M6412","v":0}]
[null,"6. Other policies that may respond to the stress scenario",null,null,{"$f":"Import!M6383","v":0},{"$f":"Import!M6389","v":0},{"$f":"Import!M6395","v":0},{"$f":"Import!M6401","v":0},{"$f":"Import!M6407","v":0},{"$f":"Import!M6413","v":0}]
[null,"Total",null,null,{"$f":"SUM(E358:E363)","v":0},{"$f":"SUM(F358:F363)","v":0},0,0,0,0]
[]
[3,"(Re)insurer specific cyber stress scenario (affirmative cyber coverage) on a consolidated basis: "]
[null,"The (re)insurer is to submit a description of its own cyber risk worst-case annual aggregate loss scenario and the underlying assumptions. "]
[null,"Worst-case annual aggregate loss \nscenario description",null,{"$f":"Import!M6414","v":0}]
[]
[null,"Gross policy limits",null,{"$f":"Import!M6415","v":0}]
[null,"Net Policy limits",null,{"$f":"Import!M6416","v":0}]
[null,"Gross loss ('$000)",null,{"$f":"Import!M6417","v":0}]
[null,"Net loss ('$000)",null,{"$f":"Import!M6418","v":0}]
[null,"Occurrence Return period",null,{"$f":"Import!M6419","v":0}]
[null,"Relative Return period",null,{"$f":"Import!M6420","v":0}]
[null,"Underlying assumptions:",null,{"$f":"HYPERLINK(\"#'Attachments'!G145\",\"Attach file\")","v":"Attach file"}]
[]
[null,"b) TECHNOLOGY RISK - (RE)INSURER OWN CYBERSECURITY AND RESILIENCE CAPABILITIES  "]
[null,"Technology Risk Guidance"]
[]
[null,"Technology Risk is a key enterprise risk that entities in the financial sectors regulated by the Authority must manage. The questionnaire below is designed to assess Technology Risk, including Information Security, Data Protection and IT or Cyber Security. The Authority expects that the board of directors of all licenced entities will have evaluated the aforementioned risks. These risks should be managed as part of an overall Enterprise Risk Management Process. This assessment is designed to assess Technology Risk controls. The IT or Cyber Security controls are grounded in the \"National Institute of Standards and Technology Cybersecurity Framework\" (NIST). The assessment focuses on several areas, to include: governance, policies and procedures, ongoing training, critical/sensitive asset identification, protective measures, detection of anomalous activity, documented incident response plans, and effective business recovery processes. "]
[]
[]
[null,"The Authority recognises that there is no “one size fits all” approach to addressing these risks, as specific business circumstances may vary greatly from entity to entity. Each entity must assess their risks, create prudent policies and procedures to mitigate known risks, and ensure that the organisation is properly trained and equipped.\n"]
[]
[]
[null,"Select one response from the drop-down list. Where required/applicable, attach the relevant document indicating the document name and identifying the applicable page numbers"]
[]
[null,"SECTION A - BUSINESS SUMMARY QUESTIONS"]
[null,"Geographical details",null,null,null,null,null,null,null,null,null,"Responses",null,"Complete where prompted"]
[null,1,"Is the company headquartered in Bermuda",null,null,null,null,null,null,null,null,{"$f":"Import!E6421","v":"Select Yes/No"}]
[null,{"$f":"B391+1","v":2},"Number of users located in Bermuda",null,null,null,null,null,null,null,null,{"$f":"Import!E6422","v":"Select Amount"}]
[null,{"$f":"B392+1","v":3},"Number of users Globally ",null,null,null,null,null,null,null,null,{"$f":"Import!E6423","v":"Select Amount"}]
[null,4,"Do you have a data centre in Bermuda to host your servers",null,null,null,null,null,null,null,null,{"$f":"Import!E6424","v":"Select Yes/No"}]
[null,5,"Do you utilise a cloud hosting company to host your servers",null,null,null,null,null,null,null,null,{"$f":"Import!E6425","v":"Select Yes/No"}]
[null,6,"Does the organization have cybersecurity insurance coverage (i.e. to cover internal risk from security incidents)",null,null,null,null,null,null,null,null,{"$f":"Import!E6426","v":"Select Yes/No"}]
[null,"Is the following data type stored/processed"]
[null,{"$f":"B396+1","v":7},"Do you collect/store/process personally identifiable information (PII) of your customers? examples include but are not limited to: customer name, email address, social security number",null,null,null,null,null,null,null,null,{"$f":"Import!E6427","v":"Select Yes/No"}]
[null,{"$f":"B398+1","v":8},"Payment card data (i.e., credit/debit card)",null,null,null,null,null,null,null,null,{"$f":"Import!E6428","v":"Select Yes/No"}]
[null,{"$f":"B399+1","v":9},"Is customer PII collected/stored/processed by this entity on behalf of other entities ",null,null,null,null,null,null,null,null,{"$f":"Import!E6429","v":"Select Yes/No"}]
[null,"Are the following internet facing services in place "]
[null,{"$f":"B400+1","v":10},"Brochureware (static content only)",null,null,null,null,null,null,null,null,{"$f":"Import!E6430","v":"Select Yes/No"}]
[null,{"$f":"B402+1","v":11},"Web applications",null,null,null,null,null,null,null,null,{"$f":"Import!E6431","v":"Select Yes/No"}]
[null,12,"Web applications that process (query, reference, capture, store, transmit) personal data or payment card data ",null,null,null,null,null,null,null,null,{"$f":"Import!E6432","v":"Select Yes/No"}]
[null,"Roles & Responsibilities",null,null,null,null,null,null,null,null,null,null,null,{"$f":"Import!E6438","v":"Confirm role holder's name"}]
[null,{"$f":"B404+1","v":13},"Is there a designated IT Risk Manager, if not which job title holds this responsibility",null,null,null,null,null,null,null,null,{"$f":"Import!E6433","v":"Select Yes/No"},null,{"$f":"Import!E6434","v":"Confirm role holder's name"}]
[null,{"$f":"B406+1","v":14},"Is there a designated IT Security Manager, if not which job title holds this responsibility",null,null,null,null,null,null,null,null,{"$f":"Import!E6435","v":"Select Yes/No"},null,{"$f":"Import!E6436","v":"Confirm role holder's name"}]
[null,{"$f":"B407+1","v":15},"Is there a designated IT Disaster Recovery Manager, if not which job title holds this responsibility",null,null,null,null,null,null,null,null,{"$f":"Import!E6437","v":"Select Yes/No"},null,{"$f":"Import!E6438","v":"Confirm role holder's name"}]
[null,{"$f":"B408+1","v":16},"Is there a designated Business Continuity Manager (BCP) in place, if not which job title holds this responsibility",null,null,null,null,null,null,null,null,{"$f":"Import!E6439","v":"Select Yes/No"},null,{"$f":"Import!E6440","v":"Confirm role holder's name"}]
[null,{"$f":"B409+1","v":17},"Does the organization have a designated Data Privacy Officer",null,null,null,null,null,null,null,null,{"$f":"Import!E6441","v":"Select Yes/No"},null,{"$f":"Import!E6442","v":"Confirm role holder's name"}]
[null,{"$f":"B410+1","v":18},"Is there an annual IT audit plan in place i.e. detailing any IT audit activity for the year ",null,null,null,null,null,null,null,null,{"$f":"Import!E6443","v":"Select Yes/No"},null,{"$f":"Import!E6444","v":"Date of last internal/external IT audit"}]
[]
[null,"SECTION B - NIST CONTROL SUMMARY - Answer YES/NO"]
[null,"Identify",null,null,null,null,null,null,null,null,null,"Responses"]
[null,1,"Is there a Cyber Risk Management Programme in place (i.e., assessing all IT risk to include IT Security Risk)",null,null,null,null,null,null,null,null,{"$f":"Import!E6445","v":"Select Yes/No"}]
[null,{"$f":"B415+1","v":2},"Is the status of the Cyber Risk Management Programme communicated to the Senior Mgt. team and the Board of Directors on a regular basis",null,null,null,null,null,null,null,null,{"$f":"Import!E6446","v":"Select Yes/No"}]
[null,3,"Has a Cyber Risk Policy (or Cyber Security Policy) been approved by the Board and annually updated",null,null,null,null,null,null,null,null,{"$f":"Import!E6447","v":"Select Yes/No"},null,"Specify name of relevant document"]
[null,4,"Are the roles and responsibilities of each of the three lines of defence clearly defined",null,null,null,null,null,null,null,null,{"$f":"Import!E6448","v":"Select Yes/No"}]
[null,5,"Has the organisation performed an assessment of compliance against Data Protection regulatory requirements ",null,null,null,null,null,null,null,null,{"$f":"Import!E6449","v":"Select Yes/No"}]
[null,6,"Asset Management - are physical devices, information systems, and data within the organisation inventoried",null,null,null,null,null,null,null,null,{"$f":"Import!E6450","v":"Select Yes/No"}]
[null,7,"Has the organisation classified all data ",null,null,null,null,null,null,null,null,{"$f":"Import!E6451","v":"Select Yes/No"}]
[null,8,"Has a third-party security risk assessment been completed during the past year? (i.e., to assess IT risks arising from third  parties)",null,null,null,null,null,null,null,null,{"$f":"Import!E6452","v":"Select Yes/No"}]
[null,"Protect"]
[null,9,"Is data that is classified as critical, encrypted in transit and at rest  ",null,null,null,null,null,null,null,null,{"$f":"Import!E6453","v":"Select Yes/No"}]
[null,{"$f":"B424+1","v":10},"Is there a formal process to ensure maintenance of software and hardware (i.e., patching & managing end of life technologies)",null,null,null,null,null,null,null,null,{"$f":"Import!E6454","v":"Select Yes/No"}]
[null,11,"Is there a Logical Access Management Standard defining how systems access is verified, managed, revoked, and audited ",null,null,null,null,null,null,null,null,{"$f":"Import!E6455","v":"Select Yes/No"},null,"Specify name of relevant document"]
[null,12,"Do all staff complete cybersecurity training annually",null,null,null,null,null,null,null,null,{"$f":"Import!E6456","v":"Select Yes/No"},null,"Specify name of relevant document"]
[null,13,"Has a penetration test been completed in the last year",null,null,null,null,null,null,null,null,{"$f":"Import!E6457","v":"Select Yes/No"}]
[null,14,"Has the company segregated the enterprise network into multiple, separate trust zones",null,null,null,null,null,null,null,null,{"$f":"Import!E6458","v":"Select Yes/No"}]
[null,15,"Is there a process detailing IT service management controls i.e. change, release & configuration management",null,null,null,null,null,null,null,null,{"$f":"Import!E6459","v":"Select Yes/No"},null,"Specify name of relevant document"]
[null,16,"Does the company document and enforce security configuration standards of all network devices",null,null,null,null,null,null,null,null,{"$f":"Import!E6460","v":"Select Yes/No"}]
[null,"Detect"]
[null,{"$f":"B431+1","v":17},"Is there a process enabling the review of threat intelligence and vulnerability alerting data",null,null,null,null,null,null,null,null,{"$f":"Import!E6461","v":"Select Yes/No"}]
[null,{"$f":"B433+1","v":18},"Is there a process in place to monitor information systems and assets to identify cybersecurity events ",null,null,null,null,null,null,null,null,{"$f":"Import!E6462","v":"Select Yes/No"}]
[null,19,"Does the company centrally store and archive security event logs",null,null,null,null,null,null,null,null,{"$f":"Import!E6463","v":"Select Yes/No"}]
[null,"Respond"]
[null,{"$f":"B435+1","v":20},"Is there a documented security incident response plan in place, including internal and external communications, and crisis management ",null,null,null,null,null,null,null,null,{"$f":"Import!E6464","v":"Select Yes/No"},null,"Specify name of relevant document"]
[null,{"$f":"B437+1","v":21},"In the event of a major incident, is the company contracted to a \"4th line\" IT security expert service (i.e., a Managed Security Services Provider - MSSP)  ",null,null,null,null,null,null,null,null,{"$f":"Import!E6465","v":"Select Yes/No"}]
[null,"Recover"]
[null,{"$f":"B438+1","v":22},"Has a test of the Business Continuity and IT Disaster Recovery plans been performed during the past 12 months ",null,null,null,null,null,null,null,null,{"$f":"Import!E6466","v":"Select Yes/No"}]
[null,{"$f":"B440+1","v":23},"Has the organisation been subject to a significant cyber incident during the past 12 months",null,null,null,null,null,null,null,null,{"$f":"Import!E6467","v":"Select Yes/No"}]
[]
[null,"SECTION C - Technical Security Controls - Answer YES/NO"]
[null,"Technical controls summary"]
[null,1,"Is antivirus software installed on all Microsoft Operating System endpoints",null,null,null,null,null,null,null,null,{"$f":"Import!E6468","v":"Select Yes/No"}]
[null,{"$f":"B445+1","v":2},"Is there an endpoint Advanced Persistent Threat (APT) control in place ",null,null,null,null,null,null,null,null,{"$f":"Import!E6469","v":"Select Yes/No"}]
[null,3,"Are Data Loss Prevention (DLP) controls in place (i.e., to prevent unauthorised data leaving the enterprise)\n\n",null,null,null,null,null,null,null,null,{"$f":"Import!E6470","v":"Select Yes/No"}]
[null,4,"Is INTERNAL vulnerability scanning conducted (and what is the frequency)",null,null,null,null,null,null,null,null,{"$f":"Import!E6471","v":"Select Yes/No"},null,{"$f":"Import!E6472","v":"Select Frequency"}]
[null,{"$f":"B448+1","v":5},"Is EXTERNAL vulnerability scanning conducted (and what is the frequency)",null,null,null,null,null,null,null,null,{"$f":"Import!E6473","v":"Select Yes/No"},null,{"$f":"Import!E6474","v":"Select Frequency"}]
[null,{"$f":"B449+1","v":6},"Are there regular (six monthly minimum) firewall ruleset reviews",null,null,null,null,null,null,null,null,{"$f":"Import!E6475","v":"Select Yes/No"}]
[null,7,"Is there a network perimeter Intrusion Detection or Prevention (IDS/IPS) control",null,null,null,null,null,null,null,null,{"$f":"Import!E6476","v":"Select Yes/No"}]
[null,8,"Is there DDOS defence in place for internet gateways",null,null,null,null,null,null,null,null,{"$f":"Import!E6477","v":"Select Yes/No"}]
[]
[null,null,null,null,null,null,null,null,null,null,null,null,null,null,null,null,"Select all from drop down list"]
[null,null,null,null,null,null,null,null,null,null,null,null,null,null,null,null,"PCI - payment Card Industry Standard"]
[null,null,null,null,null,null,null,null,null,null,null,null,null,null,null,null,"GDPR - General Data Protection Regulation "]
[null,null,null,null,null,null,null,null,null,null,null,null,null,null,null,null,"EU U.S. - Privacy Shield Framework "]
[null,null,null,null,null,null,null,null,null,null,null,null,null,null,null,null,"PIPA - Personal Information Privacy Act"]
[null,null,null,null,null,null,null,null,null,null,null,null,null,null,null,null,"HIPAA - Health Insurance Portability and Accountability Act"]
[null,null,null,null,null,null,null,null,null,null,null,null,null,null,null,null,"PIPEDA - Federal Personal Information Protection and Electronic Documents Act"]
[null,null,null,null,null,null,null,null,null,null,null,null,null,null,null,null,"SOLVENCY II"]
[null,null,null,null,null,null,null,null,null,null,null,null,null,null,null,null,"SEC - U.S. Securities and Exchange Commission"]
[null,null,null,null,null,null,null,null,null,null,null,null,null,null,null,null,"SOX - Sarbanes Oxley Act"]
[null,null,null,null,null,null,null,null,null,null,null,null,null,null,null,null,"(FISMA) Federal Information Security Management Act of 2002 "]
[null,null,null,null,null,null,null,null,null,null,null,null,null,null,null,null,"(GLBA) Gramm Leach Bliley Act"]
[null,null,null,null,null,null,null,null,null,null,null,null,null,null,null,null,"other"]
[]
[null,null,null,null,null,null,null,null,null,null,null,null,null,null,null,null,"Select all from drop down list"]
[null,null,null,null,null,null,null,null,null,null,null,null,null,null,null,null,"COBIT - Control Objectives for Information and Related Technologies"]
[null,null,null,null,null,null,null,null,null,null,null,null,null,null,null,null,"NIST - National Institute of Standards and Technology"]
[null,null,null,null,null,null,null,null,null,null,null,null,null,null,null,null,"ISO27001 - Information Security Management System "]
[null,null,null,null,null,null,null,null,null,null,null,null,null,null,null,null,"ISO27002 - Information Security Standard  "]
[null,null,null,null,null,null,null,null,null,null,null,null,null,null,null,null,"ITIL - Information Technology Infrastructure Library"]
[]
[]
[]
[]
[]
[]
[]
[]
[]
[]
[]
[]
[]
[]
[]
[]
[]
[]
[]
[]
[]
[]
[]
[]
[]
[]
[]
[]
[]
[]
[]
[]
[]
[]
[]
[null,null,"Largest Loss"]
[null,null,"UW1. ","Northeast Hurricane"]
[null,null,"UW2.","Carolinas Hurricane"]
[null,null,"UW3.","Miami-Dade Hurricane"]
[null,null,"UW4.","Pinellas Hurricane"]
[null,null,"UW5.","Gulf Windstorm (onshore)"]
[null,null,"UW6.","Gulf Windstorm (offshore)"]
[null,null,"UE1.","Los Angeles Earthquake"]
[null,null,"UE2.","San Francisco Earthquake"]
[null,null,"UE3.","New Madrid (NM) RDS"]
[null,null,"UE4.","NM Extreme Stress Scenario"]
[null,null,"IW1. ","European Windstorm"]
[null,null,"IW2.","Japanese Typhoon"]
[null,null,"IE1.","Japanese Earthquake"]
[null,null,"A1.","Aerospace/ Aviation Event"]
[null,null,"M1.","Marine Collision in Prince William"]
[null,null,"M2.","Major Cruise Vessel Incident"]
[null,null,"N1.","US Oil Spill"]
[null,null,"N2.","US Tornadoes"]
[null,null,"N3.","Australian Flooding"]
[null,null,"N4.","Australian Wildfires"]
[null,null,null,"Largest Loss",null,null,null,null,{"$f":"MAX(F51:F68)","v":0}]
[]
[null,null,"UW1. ","Northeast Hurricane",null,null,null,null,{"$f":"IF($I$530=F51,0,F51)","v":0}]
[null,null,"UW2.","Carolinas Hurricane",null,null,null,null,{"$f":"IF($I$530=F52,0,F52)","v":0}]
[null,null,"UW3.","Miami-Dade Hurricane",null,null,null,null,{"$f":"IF($I$530=F53,0,F53)","v":0}]
[null,null,"UW4.","Pinellas Hurricane",null,null,null,null,{"$f":"IF($I$530=F54,0,F54)","v":0}]
[null,null,"UW5.","Gulf Windstorm (onshore)",null,null,null,null,{"$f":"IF($I$530=F55,0,F55)","v":0}]
[null,null,"UW6.","Gulf Windstorm (offshore)"]
[null,null,"UE1.","Los Angeles Earthquake",null,null,null,null,{"$f":"IF($I$530=F56,0,F56)","v":0}]
[null,null,"UE2.","San Francisco Earthquake",null,null,null,null,{"$f":"IF($I$530=F57,0,F57)","v":0}]
[null,null,"UE3.","New Madrid (NM) RDS",null,null,null,null,{"$f":"IF($I$530=F58,0,F58)","v":0}]
[null,null,"UE4.","NM Extreme Stress Scenario"]
[null,null,"IW1. ","European Windstorm",null,null,null,null,{"$f":"IF($I$530=F59,0,F59)","v":0}]
[null,null,"IW2.","Japanese Typhoon",null,null,null,null,0]
[null,null,"IE1.","Japanese Earthquake",null,null,null,null,0]
[null,null,"A1.","Aerospace/ Aviation Event",null,null,null,null,0]
[null,null,"M1.","Marine Collision in Prince William",null,null,null,null,0]
[null,null,"M2.","Major Cruise Vessel Incident",null,null,null,null,0]
[null,null,"N1.","US Oil Spill",null,null,null,null,0]
[null,null,"N2.","US Tornadoes",null,null,null,null,0]
[null,null,"N3.","Australian Flooding",null,null,null,null,0]
[null,null,"N4.","Australian Wildfires",null,null,null,null,0]
[null,null,null,"2nd Largest Loss",null,null,null,null,{"$f":"MAX(I532:I551)","v":0}]
[]
[null,null,"UW1. ","Northeast Hurricane",null,null,null,null,{"$f":"IF($I$552=I532,0,I532)","v":0}]
[null,null,"UW2.","Carolinas Hurricane",null,null,null,null,{"$f":"IF($I$552=I533,0,I533)","v":0}]
[null,null,"UW3.","Miami-Dade Hurricane",null,null,null,null,0]
[null,null,"UW4.","Pinellas Hurricane",null,null,null,null,0]
[null,null,"UW5.","Gulf Windstorm (onshore)",null,null,null,null,0]
[null,null,"UW6.","Gulf Windstorm (offshore)",null,null,null,null,0]
[null,null,"UE1.","Los Angeles Earthquake",null,null,null,null,0]
[null,null,"UE2.","San Francisco Earthquake",null,null,null,null,0]
[null,null,"UE3.","New Madrid (NM) RDS",null,null,null,null,0]
[null,null,"UE4.","NM Extreme Stress Scenario",null,null,null,null,0]
[null,null,"IW1. ","European Windstorm",null,null,null,null,0]
[null,null,"IW2.","Japanese Typhoon",null,null,null,null,0]
[null,null,"IE1.","Japanese Earthquake",null,null,null,null,0]
[null,null,"A1.","Aerospace/ Aviation Event",null,null,null,null,0]
[null,null,"M1.","Marine Collision in Prince William",null,null,null,null,0]
[null,null,"M2.","Major Cruise Vessel Incident",null,null,null,null,0]
[null,null,"N1.","US Oil Spill",null,null,null,null,0]
[null,null,"N2.","US Tornadoes",null,null,null,null,0]
[null,null,"N3.","Australian Flooding",null,null,null,null,0]
[null,null,"N4.","Australian Wildfires",null,null,null,null,0]
[null,null,null,"3rd Largest Loss",null,null,null,null,{"$f":"MAX(I554:I573)","v":0}]

{"sheet":"Schedule V(g)","index":46,"n_rows":57,"n_cols":7,"rows_kept":57,"cut":false,"hidden":true,"merged":[[0,2,0,5],[1,2,1,4],[2,2,2,5],[5,2,6,6]]}
[null,null,"SCHEDULE OF RISK MANAGEMENT - FINANCIAL STATEMENT RECONCILIATION",null,null,null,{"$f":"HYPERLINK(\"#'Index'!A1\",\"Return to Index\")","v":"Return to Index"}]
[null,null,{"$f":"'Company Information'!C7","v":"Enter Company Name"}]
[null,null,{"$f":"\"For the year ending \"&TEXT('Company Information'!C3,\"MMMM DD, YYYY\")","v":"For the year ending December 31, 2022"}]
[null,null,{"$f":"\"expressed in\"& IF(CONFIGURATION!$B$12>1,\" ['\"&MID(CONFIGURATION!$B$12,2,LEN(CONFIGURATION!$B$12))&\"s]\",\"\")&\" \"&'Form 1EBS'!C4","v":"expressed in ['000s] United States Dollars"},null,null,null,"SCHEDULE V(g)"]
[]
[null,null,"A reconciliation of amounts reported in total assets, total liabilities, net income, and capital and surplus comprising of any adjustments applied to the General Accepted Accounting Principles/International Financial Reporting Standards to Form 1SFS and from Form 1SFS to Form 1EBS"]
[]
[]
[null,null,"Adjustment Description","Assets","Liabilities","Net Income","Capital and Surplus"]
[null,null,"GAAP/IFRS Financial Statements ",{"$f":"Import!E6479","v":0},{"$f":"Import!E6490","v":0},{"$f":"Import!E6501","v":0},{"$f":"Import!E6512","v":0}]
[null,1,"Prepaid Expenses",{"$f":"Import!E6480","v":0},{"$f":"Import!E6491","v":0},{"$f":"Import!E6502","v":0},{"$f":"D11-E11","v":0}]
[null,{"$f":"B11+1","v":2},"Goodwill",{"$f":"Import!E6481","v":0},{"$f":"Import!E6492","v":0},{"$f":"Import!E6503","v":0},0]
[null,3,"Intangible Assets",{"$f":"Import!E6482","v":0},{"$f":"Import!E6493","v":0},{"$f":"Import!E6504","v":0},0]
[null,4,"(Enter other adjustments from Financials Statements to Form 1SFS)",{"$f":"Import!E6483","v":0},{"$f":"Import!E6494","v":0},{"$f":"Import!E6505","v":0},0]
[null,5,"(Enter other adjustments from Financials Statements to Form 1SFS)",{"$f":"Import!E6484","v":0},{"$f":"Import!E6495","v":0},{"$f":"Import!E6506","v":0},0]
[null,6,"(Enter other adjustments from Financials Statements to Form 1SFS)",{"$f":"Import!E6485","v":0},{"$f":"Import!E6496","v":0},{"$f":"Import!E6507","v":0},0]
[null,7,"(Enter other adjustments from Financials Statements to Form 1SFS)",{"$f":"Import!E6486","v":0},{"$f":"Import!E6497","v":0},{"$f":"Import!E6508","v":0},0]
[null,8,"(Enter other adjustments from Financials Statements to Form 1SFS)",{"$f":"Import!E6487","v":0},{"$f":"Import!E6498","v":0},{"$f":"Import!E6509","v":0},0]
[null,9,"(Enter other adjustments from Financials Statements to Form 1SFS)",{"$f":"Import!E6488","v":0},{"$f":"Import!E6499","v":0},{"$f":"Import!E6510","v":0},0]
[null,10,"(Enter other adjustments from Financials Statements to Form 1SFS)",{"$f":"Import!E6489","v":0},{"$f":"Import!E6500","v":0},{"$f":"Import!E6511","v":0},0]
[null,null,"Form 1SFS",{"$f":"SUM(D10:D20)","v":0},{"$f":"SUM(E10:E20)","v":0},{"$f":"SUM(F10:F20)","v":0},{"$f":"SUM(G10:G20)","v":0}]
[]
[null,null,null,{"$f":"IF(D24=\"TRUE\",HYPERLINK(\"#'Form 1SFS'!M100\",\"TRUE\"),HYPERLINK(\"#'Form 1SFS'!M100\",\"FALSE\"))","v":"TRUE"},{"$f":"IF(E24=\"TRUE\",HYPERLINK(\"#'Form 1SFS'!M194\",\"TRUE\"),HYPERLINK(\"#'Form 1SFS'!M194\",\"FALSE\"))","v":"TRUE"},null,{"$f":"IF(G24=\"TRUE\",HYPERLINK(\"#'Form 1SFS'!M198\",\"TRUE\"),HYPERLINK(\"#'Form 1SFS'!M198\",\"FALSE\"))","v":"TRUE"}]
[null,null,null,{"$f":"IF(ROUND((IF('Form 1SFS (Consolidated)'!M91=0,('Form 1SFS (Consolidated)'!E91+'Form 1SFS (Consolidated)'!I91),'Form 1SFS (Consolidated)'!M91)-D21),0)=0,\"TRUE\",\"FALSE\")","v":"TRUE"},{"$f":"IF(ROUND((IF('Form 1SFS (Consolidated)'!M145=0,('Form 1SFS (Consolidated)'!E145+'Form 1SFS (Consolidated)'!I145),'Form 1SFS (Consolidated)'!M145)-E21),0)=0,\"TRUE\",\"FALSE\")","v":"TRUE"},null,{"$f":"IF(ROUND((IF('Form 1SFS (Consolidated)'!M149=0,('Form 1SFS (Consolidated)'!E149+'Form 1SFS (Consolidated)'!I149),'Form 1SFS (Consolidated)'!M149)-G21),0)=0,\"TRUE\",\"FALSE\")","v":"TRUE"}]
[null,null,null,{"$f":"ROUND(IF('Form 1SFS (Consolidated)'!M91=0,('Form 1SFS (Consolidated)'!E91+'Form 1SFS (Consolidated)'!I91),'Form 1SFS (Consolidated)'!M91)-D21,0)","v":0},{"$f":"ROUND(IF('Form 1SFS (Consolidated)'!M145=0,('Form 1SFS (Consolidated)'!E145+'Form 1SFS (Consolidated)'!I145),'Form 1SFS (Consolidated)'!M145)-E21,0)","v":0},null,{"$f":"ROUND(IF('Form 1SFS (Consolidated)'!M149=0,('Form 1SFS (Consolidated)'!E149+'Form 1SFS (Consolidated)'!I149),'Form 1SFS (Consolidated)'!M149)-G21,0)","v":0}]
[]
[null,null,null,{"$f":"IF(D23=\"False\",\"Does not equal Form 1SFS Line 15\",\"\")","v":""},{"$f":"IF(E23=\"False\",\"Does not equal Form 1SFS Line 39\",\"\")","v":""},null,{"$f":"IF(G23=\"False\",\"Does not equal Form 1SFS Line 40\",\"\")","v":""}]
[]
[null,null,"Adjustment Description","Assets","Liabilities","Net Income","Capital and Surplus"]
[null,null,"Form 1SFS",{"$f":"IF('Form 1SFS (Consolidated)'!M91=0,('Form 1SFS (Consolidated)'!E91+'Form 1SFS (Consolidated)'!I91),'Form 1SFS (Consolidated)'!M91)","v":0},{"$f":"IF('Form 1SFS (Consolidated)'!M145=0,('Form 1SFS (Consolidated)'!E145+'Form 1SFS (Consolidated)'!I145),'Form 1SFS (Consolidated)'!M145)","v":0},{"$f":"IF('Form 2SFS (Consolidated)'!M63=0,('Form 2SFS (Consolidated)'!E63+'Form 2SFS (Consolidated)'!I63),'Form 2SFS (Consolidated)'!M63)","v":0},{"$f":"IF('Form 1SFS (Consolidated)'!M149=0,('Form 1SFS (Consolidated)'!E149+'Form 1SFS (Consolidated)'!I149),'Form 1SFS (Consolidated)'!M149)","v":0}]
[null,1,"Gross Loss and Loss Expense Provision",{"$f":"Import!E6514","v":0},{"$f":"Import!E6533","v":0},{"$f":"Import!E6552","v":0},{"$f":"D31-E31","v":0}]
[null,{"$f":"B31+1","v":2},"Gross Premium Provisions",{"$f":"Import!E6515","v":0},{"$f":"Import!E6534","v":0},{"$f":"Import!E6553","v":0},0]
[null,3,"Reinsurance Recoverable",{"$f":"Import!E6516","v":0},{"$f":"Import!E6535","v":0},{"$f":"Import!E6554","v":0},0]
[null,4,"Risk Margin",{"$f":"Import!E6517","v":0},{"$f":"Import!E6536","v":0},{"$f":"Import!E6555","v":0},0]
[null,5,"Contingent Liabilities",{"$f":"Import!E6518","v":0},{"$f":"Import!E6537","v":0},{"$f":"Import!E6556","v":0},0]
[null,6,"Goodwill",{"$f":"Import!E6519","v":0},{"$f":"Import!E6538","v":0},{"$f":"Import!E6557","v":0},0]
[null,7,"Deferred Taxes Valuation",{"$f":"Import!E6520","v":0},{"$f":"Import!E6539","v":0},{"$f":"Import!E6558","v":0},0]
[null,8,"Quoted Investments",{"$f":"Import!E6521","v":0},{"$f":"Import!E6540","v":0},{"$f":"Import!E6559","v":0},0]
[null,9,"Unquoted Investments",{"$f":"Import!E6522","v":0},{"$f":"Import!E6541","v":0},{"$f":"Import!E6560","v":0},0]
[null,10,"Investments in affiliates",{"$f":"Import!E6523","v":0},{"$f":"Import!E6542","v":0},{"$f":"Import!E6561","v":0},0]
[null,11,"Real Estate ",{"$f":"Import!E6524","v":0},{"$f":"Import!E6543","v":0},{"$f":"Import!E6562","v":0},0]
[null,12,"Off Balance Sheet Instruments approved as statutory capital",{"$f":"Import!E6525","v":0},{"$f":"Import!E6544","v":0},{"$f":"Import!E6563","v":0},0]
[null,13,"Debt Instruments approved as statutory Capital ",{"$f":"Import!E6526","v":0},{"$f":"Import!E6545","v":0},{"$f":"Import!E6564","v":0},0]
[null,14,"Other Intangible Assets (Specify)",{"$f":"Import!E6527","v":0},{"$f":"Import!E6546","v":0},{"$f":"Import!E6565","v":0},0]
[null,15,"(Enter other adjustments from Form 1SFS to Form 1EBS)",{"$f":"Import!E6528","v":0},{"$f":"Import!E6547","v":0},{"$f":"Import!E6566","v":0},0]
[null,16,"(Enter other adjustments from Form 1SFS to Form 1EBS)",{"$f":"Import!E6529","v":0},{"$f":"Import!E6548","v":0},{"$f":"Import!E6567","v":0},0]
[null,17,"(Enter other adjustments from Form 1SFS to Form 1EBS)",{"$f":"Import!E6530","v":0},{"$f":"Import!E6549","v":0},{"$f":"Import!E6568","v":0},0]
[null,18,"(Enter other adjustments from Form 1SFS to Form 1EBS)",null,null,null,0]
[null,19,"(Enter other adjustments from Form 1SFS to Form 1EBS)",null,null,null,0]
[null,20,"(Enter other adjustments from Form 1SFS to Form 1EBS)",null,null,null,0]
[null,null,"Form 1 EBS",{"$f":"SUM(D30:D50)","v":0},{"$f":"SUM(E30:E50)","v":0},{"$f":"SUM(F30:F50)","v":0},{"$f":"SUM(G30:G50)","v":0}]
[]
[null,null,null,{"$f":"IF(D54=\"TRUE\",HYPERLINK(\"#'Form 1EBS'!F90\",\"TRUE\"),HYPERLINK(\"#'Form 1EBS'!F90\",\"FALSE\"))","v":{"$error":"#REF!"}},{"$f":"IF(E54=\"TRUE\",HYPERLINK(\"#'Form 1EBS'!F163\",\"TRUE\"),HYPERLINK(\"#'Form 1EBS'!F163\",\"FALSE\"))","v":{"$error":"#REF!"}},null,{"$f":"IF(G54=\"TRUE\",HYPERLINK(\"#'Form 1EBS'!F167\",\"TRUE\"),HYPERLINK(\"#'Form 1EBS'!F167\",\"FALSE\"))","v":"TRUE"}]
[null,null,null,{"$f":"IF(ROUND(('Form 1EBS'!F90-D51),0)=0,\"TRUE\",\"FALSE\")","v":{"$error":"#REF!"}},{"$f":"IF(ROUND(('Form 1EBS'!F163-E51),0)=0,\"TRUE\",\"FALSE\")","v":{"$error":"#REF!"}},null,{"$f":"IF(ROUND(('Form 1EBS'!F167-G51),0)=0,\"TRUE\",\"FALSE\")","v":"TRUE"}]
[null,null,null,{"$f":"ROUND('Form 1EBS'!F90-D51,0)","v":{"$error":"#REF!"}},{"$f":"ROUND('Form 1EBS'!F163-E51,0)","v":{"$error":"#REF!"}},null,{"$f":"ROUND('Form 1EBS'!F167-G51,0)","v":0}]
[]
[null,null,null,{"$f":"IF(D53=\"False\",\"Does not equal Form 1EBS Line 15\",\"\")","v":{"$error":"#REF!"}},{"$f":"IF(E53=\"False\",\"Does not equal Form 1EBS Line 39\",\"\")","v":{"$error":"#REF!"}},null,{"$f":"IF(G53=\"False\",\"Does not equal Form 1EBS Line 40\",\"\")","v":""}]

{"sheet":"Schedule V(k)","index":47,"n_rows":58,"n_cols":12,"rows_kept":58,"cut":false,"hidden":false,"merged":[]}
[null,null,"Details of Deposit Asset and Liabilities",null,null,null,null,null,null,null,null,{"$f":"HYPERLINK(\"#'Index'!A1\",\"Return to Index\")","v":"Return to Index"}]
[null,null,{"$f":"'Company Information'!C7","v":"Enter Company Name"}]
[null,null,{"$f":"'Form 1SFS (Consolidated)'!$C$4","v":"2022-12-31"},null,{"$f":"Import!E6590","v":0},null,"Enter Number of Rows Required",null,null,null,null,"SCHEDULE V(k)"]
[null,null,{"$f":"IF(CONFIGURATION!$B$12>1,\" ['\"&MID(CONFIGURATION!$B$12,2,LEN(CONFIGURATION!$B$12))&\"s]\",\"\")&'Form 1SFS (Consolidated)'!$C$5","v":" ['000s]United States Dollars"}]
[null,null,null,null,"(A)","(A)","(B)","(C)","(D)","(E)","(F)","(G)"]
[null,null,"Name of Exposure",null,"Lines of Business Written","Assets in Trust","Other Collaterial","GPW for the Period","NPW for the Period","Limits/Maximum Exposure","Limits at \n99.0 TvaR","Unlimited Exposure Details"]
[]
[null,1,{"$f":"Import!E6591","v":0},null,{"$f":"Import!E6616","v":0},{"$f":"Import!E6641","v":0},{"$f":"Import!E6667","v":0},{"$f":"Import!E6693","v":0},{"$f":"Import!E6719","v":0},{"$f":"Import!E6745","v":0},{"$f":"Import!E6771","v":0},{"$f":"Import!E6797","v":0}]
[null,{"$f":"B8+1","v":2},{"$f":"Import!E6592","v":0},null,{"$f":"Import!E6617","v":0},{"$f":"Import!E6642","v":0},{"$f":"Import!E6668","v":0},{"$f":"Import!E6694","v":0},{"$f":"Import!E6720","v":0},{"$f":"Import!E6746","v":0},{"$f":"Import!E6772","v":0},{"$f":"Import!E6798","v":0}]
[null,{"$f":"B9+1","v":3},{"$f":"Import!E6593","v":0},null,{"$f":"Import!E6618","v":0},{"$f":"Import!E6643","v":0},{"$f":"Import!E6669","v":0},{"$f":"Import!E6695","v":0},{"$f":"Import!E6721","v":0},{"$f":"Import!E6747","v":0},{"$f":"Import!E6773","v":0},{"$f":"Import!E6799","v":0}]
[null,4,{"$f":"Import!E6594","v":0},null,{"$f":"Import!E6619","v":0},{"$f":"Import!E6644","v":0},{"$f":"Import!E6670","v":0},{"$f":"Import!E6696","v":0},{"$f":"Import!E6722","v":0},{"$f":"Import!E6748","v":0},{"$f":"Import!E6774","v":0},{"$f":"Import!E6800","v":0}]
[null,5,{"$f":"Import!E6595","v":0},null,{"$f":"Import!E6620","v":0},{"$f":"Import!E6645","v":0},{"$f":"Import!E6671","v":0},{"$f":"Import!E6697","v":0},{"$f":"Import!E6723","v":0},{"$f":"Import!E6749","v":0},{"$f":"Import!E6775","v":0},{"$f":"Import!E6801","v":0}]
[null,6,{"$f":"Import!E6596","v":0},null,{"$f":"Import!E6621","v":0},{"$f":"Import!E6646","v":0},{"$f":"Import!E6672","v":0},{"$f":"Import!E6698","v":0},{"$f":"Import!E6724","v":0},{"$f":"Import!E6750","v":0},{"$f":"Import!E6776","v":0},{"$f":"Import!E6802","v":0}]
[null,7,{"$f":"Import!E6597","v":0},null,{"$f":"Import!E6622","v":0},{"$f":"Import!E6647","v":0},{"$f":"Import!E6673","v":0},{"$f":"Import!E6699","v":0},{"$f":"Import!E6725","v":0},{"$f":"Import!E6751","v":0},{"$f":"Import!E6777","v":0},{"$f":"Import!E6803","v":0}]
[null,8,{"$f":"Import!E6598","v":0},null,{"$f":"Import!E6623","v":0},{"$f":"Import!E6648","v":0},{"$f":"Import!E6674","v":0},{"$f":"Import!E6700","v":0},{"$f":"Import!E6726","v":0},{"$f":"Import!E6752","v":0},{"$f":"Import!E6778","v":0},{"$f":"Import!E6804","v":0}]
[null,9,{"$f":"Import!E6599","v":0},null,{"$f":"Import!E6624","v":0},{"$f":"Import!E6649","v":0},{"$f":"Import!E6675","v":0},{"$f":"Import!E6701","v":0},{"$f":"Import!E6727","v":0},{"$f":"Import!E6753","v":0},{"$f":"Import!E6779","v":0},{"$f":"Import!E6805","v":0}]
[null,10,{"$f":"Import!E6600","v":0},null,{"$f":"Import!E6625","v":0},{"$f":"Import!E6650","v":0},{"$f":"Import!E6676","v":0},{"$f":"Import!E6702","v":0},{"$f":"Import!E6728","v":0},{"$f":"Import!E6754","v":0},{"$f":"Import!E6780","v":0},{"$f":"Import!E6806","v":0}]
[null,11,{"$f":"Import!E6601","v":0},null,{"$f":"Import!E6626","v":0},{"$f":"Import!E6651","v":0},{"$f":"Import!E6677","v":0},{"$f":"Import!E6703","v":0},{"$f":"Import!E6729","v":0},{"$f":"Import!E6755","v":0},{"$f":"Import!E6781","v":0},{"$f":"Import!E6807","v":0}]
[null,12,{"$f":"Import!E6602","v":0},null,{"$f":"Import!E6627","v":0},{"$f":"Import!E6652","v":0},{"$f":"Import!E6678","v":0},{"$f":"Import!E6704","v":0},{"$f":"Import!E6730","v":0},{"$f":"Import!E6756","v":0},{"$f":"Import!E6782","v":0},{"$f":"Import!E6808","v":0}]
[null,13,{"$f":"Import!E6603","v":0},null,{"$f":"Import!E6628","v":0},{"$f":"Import!E6653","v":0},{"$f":"Import!E6679","v":0},{"$f":"Import!E6705","v":0},{"$f":"Import!E6731","v":0},{"$f":"Import!E6757","v":0},{"$f":"Import!E6783","v":0},{"$f":"Import!E6809","v":0}]
[null,14,{"$f":"Import!E6604","v":0},null,{"$f":"Import!E6629","v":0},{"$f":"Import!E6654","v":0},{"$f":"Import!E6680","v":0},{"$f":"Import!E6706","v":0},{"$f":"Import!E6732","v":0},{"$f":"Import!E6758","v":0},{"$f":"Import!E6784","v":0},{"$f":"Import!E6810","v":0}]
[null,15,{"$f":"Import!E6605","v":0},null,{"$f":"Import!E6630","v":0},{"$f":"Import!E6655","v":0},{"$f":"Import!E6681","v":0},{"$f":"Import!E6707","v":0},{"$f":"Import!E6733","v":0},{"$f":"Import!E6759","v":0},{"$f":"Import!E6785","v":0},{"$f":"Import!E6811","v":0}]
[null,16,{"$f":"Import!E6606","v":0},null,{"$f":"Import!E6631","v":0},{"$f":"Import!E6656","v":0},{"$f":"Import!E6682","v":0},{"$f":"Import!E6708","v":0},{"$f":"Import!E6734","v":0},{"$f":"Import!E6760","v":0},{"$f":"Import!E6786","v":0},{"$f":"Import!E6812","v":0}]
[null,17,{"$f":"Import!E6607","v":0},null,{"$f":"Import!E6632","v":0},{"$f":"Import!E6657","v":0},{"$f":"Import!E6683","v":0},{"$f":"Import!E6709","v":0},{"$f":"Import!E6735","v":0},{"$f":"Import!E6761","v":0},{"$f":"Import!E6787","v":0},{"$f":"Import!E6813","v":0}]
[null,18,{"$f":"Import!E6608","v":0},null,{"$f":"Import!E6633","v":0},{"$f":"Import!E6658","v":0},{"$f":"Import!E6684","v":0},{"$f":"Import!E6710","v":0},{"$f":"Import!E6736","v":0},{"$f":"Import!E6762","v":0},{"$f":"Import!E6788","v":0},{"$f":"Import!E6814","v":0}]
[null,19,{"$f":"Import!E6609","v":0},null,{"$f":"Import!E6634","v":0},{"$f":"Import!E6659","v":0},{"$f":"Import!E6685","v":0},{"$f":"Import!E6711","v":0},{"$f":"Import!E6737","v":0},{"$f":"Import!E6763","v":0},{"$f":"Import!E6789","v":0},{"$f":"Import!E6815","v":0}]
[null,20,{"$f":"Import!E6610","v":0},null,{"$f":"Import!E6635","v":0},{"$f":"Import!E6660","v":0},{"$f":"Import!E6686","v":0},{"$f":"Import!E6712","v":0},{"$f":"Import!E6738","v":0},{"$f":"Import!E6764","v":0},{"$f":"Import!E6790","v":0},{"$f":"Import!E6816","v":0}]
[null,21,{"$f":"Import!E6611","v":0},null,{"$f":"Import!E6636","v":0},{"$f":"Import!E6661","v":0},{"$f":"Import!E6687","v":0},{"$f":"Import!E6713","v":0},{"$f":"Import!E6739","v":0},{"$f":"Import!E6765","v":0},{"$f":"Import!E6791","v":0},{"$f":"Import!E6817","v":0}]
[null,22,{"$f":"Import!E6612","v":0},null,{"$f":"Import!E6637","v":0},{"$f":"Import!E6662","v":0},{"$f":"Import!E6688","v":0},{"$f":"Import!E6714","v":0},{"$f":"Import!E6740","v":0},{"$f":"Import!E6766","v":0},{"$f":"Import!E6792","v":0},{"$f":"Import!E6818","v":0}]
[null,23,{"$f":"Import!E6613","v":0},null,{"$f":"Import!E6638","v":0},{"$f":"Import!E6663","v":0},{"$f":"Import!E6689","v":0},{"$f":"Import!E6715","v":0},{"$f":"Import!E6741","v":0},{"$f":"Import!E6767","v":0},{"$f":"Import!E6793","v":0},{"$f":"Import!E6819","v":0}]
[null,24,{"$f":"Import!E6614","v":0},null,{"$f":"Import!E6639","v":0},{"$f":"Import!E6664","v":0},{"$f":"Import!E6690","v":0},{"$f":"Import!E6716","v":0},{"$f":"Import!E6742","v":0},{"$f":"Import!E6768","v":0},{"$f":"Import!E6794","v":0},{"$f":"Import!E6820","v":0}]
[null,25,{"$f":"Import!E6615","v":0},null,{"$f":"Import!E6640","v":0},{"$f":"Import!E6665","v":0},{"$f":"Import!E6691","v":0},{"$f":"Import!E6717","v":0},{"$f":"Import!E6743","v":0},{"$f":"Import!E6769","v":0},{"$f":"Import!E6795","v":0},{"$f":"Import!E6821","v":0}]
[null,26]
[null,27]
[null,28]
[null,29]
[null,30]
[null,31]
[null,32]
[null,33]
[null,34]
[null,35]
[null,36]
[null,37]
[null,38]
[null,39]
[null,40]
[null,41]
[null,42]
[null,43]
[null,44]
[null,45]
[null,46]
[null,47]
[null,48]
[null,49]
[null,50]
[null,null,"TOTAL ",null,null,{"$f":"SUM(F8:F57)","v":0},0,0,0,0,0]

{"sheet":"Schedule V(l)","index":48,"n_rows":239,"n_cols":65,"rows_kept":239,"cut":false,"hidden":false,"merged":[[2,58,5,58],[1,3,1,56]]}
[null,null,"SCHEDULE OF SEGREGATED ACCOUNTS - CELL BY CELL DISCLOSURE ",null,null,null,null,null,null,null,null,null,null,null,null,null,null,null,null,null,null,null,null,null,null,null,null,null,null,null,null,null,null,null,null,null,null,null,null,null,null,null,null,null,null,null,null,null,null,null,null,null,null,null,null,null,null,null,null,null,null,null,null,null,{"$f":"HYPERLINK(\"#'Index'!A1\",\"Return to Index\")","v":"Return to Index"}]
[null,null,{"$f":"'Company Information'!C7","v":"Enter Company Name"},"Ensure that all figures are included  on a statutory basis.  Items that require a balance sheet check should be consistent with the respective Line on Form 1SFS.  Input the value from the financial statements and where  a discrepancy is noted, include a comment explaining the difference.",null,null,null,null,null,null,null,null,null,null,null,null,null,null,null,null,null,null,null,null,null,null,null,null,null,null,null,null,null,null,null,null,null,null,null,null,null,null,null,null,null,null,null,null,null,null,null,null,null,null,null,null,null,null,"SCHEDULE V(l) "]
[null,null,{"$f":"'Company Information'!C3","v":"2022-12-31"},null,{"$f":"Import!E6823","v":0},null,"Enter Number of Columns Required (Note only a maximum of 50 cells)",null,null,null,null,null,null,null,null,null,null,null,null,null,null,null,null,null,null,null,null,null,null,null,null,null,null,null,null,null,null,null,null,null,null,null,null,null,null,null,null,null,null,null,null,null,null,null,null,null,null,null,"Grand Total General Account and Total Cells"]
[null,null,{"$f":"IF(CONFIGURATION!$B$12>1,\" ['\"&MID(CONFIGURATION!$B$12,2,LEN(CONFIGURATION!$B$12))&\"s]\",\"\")&'Form 1SFS (Consolidated)'!$C$5","v":" ['000s]United States Dollars"},null,null,null,null,null,null,null,null,null,null,null,null,null,null,null,null,null,null,null,null,null,null,null,null,null,null,null,null,null,null,null,null,null,null,null,null,null,null,null,null,null,null,null,null,null,null,null,null,null,null,null,null,null,"General",null,null,null,"Balance Sheet"]
[null,null,null,"Cell 1","Cell 2","Cell 3","Cell 4","Cell 5","Cell 6","Cell 7","Cell 8","Cell 9","Cell 10","Cell 11","Cell 12","Cell 13","Cell 14","Cell 15","Cell 16","Cell 17","Cell 18","Cell 19","Cell 20","Cell 21","Cell 22","Cell 23","Cell 24","Cell 25","Cell 26","Cell 27","Cell 28","Cell 29","Cell 30","Cell 31","Cell 32","Cell 33","Cell 34","Cell 35","Cell 36","Cell 37","Cell 38","Cell 39","Cell 40","Cell 41","Cell 42","Cell 43","Cell 44","Cell 45","Cell 46","Cell 47","Cell 48","Cell 49","Cell 50",null,"Total of Cells",null,"Account",null,null,null,"Check",null,"Difference",null,"Comment for Discrepancies Noted"]
[null,"(A)","Cell reference number",{"$f":"Import!E6824","v":0},{"$f":"Import!E6893","v":0},{"$f":"Import!E6962","v":0},{"$f":"Import!E7031","v":0},{"$f":"Import!E7100","v":0},{"$f":"Import!E7169","v":0},{"$f":"Import!E7238","v":0},{"$f":"Import!E7307","v":0},{"$f":"Import!E7376","v":0},{"$f":"Import!E7445","v":0},{"$f":"Import!E7514","v":0},{"$f":"Import!E7583","v":0},{"$f":"Import!E7652","v":0},{"$f":"Import!E7721","v":0},{"$f":"Import!E7790","v":0},{"$f":"Import!E7859","v":0},{"$f":"Import!E7928","v":0},{"$f":"Import!E7997","v":0},{"$f":"Import!E8066","v":0},{"$f":"Import!E8135","v":0},{"$f":"Import!E8204","v":0},{"$f":"Import!E8273","v":0},{"$f":"Import!E8342","v":0},{"$f":"Import!E8411","v":0},{"$f":"Import!E8480","v":0}]
[null,"(B)","Cell name",{"$f":"Import!E6825","v":0},{"$f":"Import!E6894","v":0},{"$f":"Import!E6963","v":0},{"$f":"Import!E7032","v":0},{"$f":"Import!E7101","v":0},{"$f":"Import!E7170","v":0},{"$f":"Import!E7239","v":0},{"$f":"Import!E7308","v":0},{"$f":"Import!E7377","v":0},{"$f":"Import!E7446","v":0},{"$f":"Import!E7515","v":0},{"$f":"Import!E7584","v":0},{"$f":"Import!E7653","v":0},{"$f":"Import!E7722","v":0},{"$f":"Import!E7791","v":0},{"$f":"Import!E7860","v":0},{"$f":"Import!E7929","v":0},{"$f":"Import!E7998","v":0},{"$f":"Import!E8067","v":0},{"$f":"Import!E8136","v":0},{"$f":"Import!E8205","v":0},{"$f":"Import!E8274","v":0},{"$f":"Import!E8343","v":0},{"$f":"Import!E8412","v":0},{"$f":"Import!E8481","v":0}]
[null,"(C)","Direct Insurer, Reinsurer or Both",{"$f":"Import!E6826","v":"Select Premiums Written"},{"$f":"Import!E6895","v":"Select Premiums Written"},{"$f":"Import!E6964","v":"Select Premiums Written"},{"$f":"Import!E7033","v":"Select Premiums Written"},{"$f":"Import!E7102","v":"Select Premiums Written"},{"$f":"Import!E7171","v":"Select Premiums Written"},{"$f":"Import!E7240","v":"Select Premiums Written"},{"$f":"Import!E7309","v":"Select Premiums Written"},{"$f":"Import!E7378","v":"Select Premiums Written"},{"$f":"Import!E7447","v":"Select Premiums Written"},{"$f":"Import!E7516","v":"Select Premiums Written"},{"$f":"Import!E7585","v":"Select Premiums Written"},{"$f":"Import!E7654","v":"Select Premiums Written"},{"$f":"Import!E7723","v":"Select Premiums Written"},{"$f":"Import!E7792","v":"Select Premiums Written"},{"$f":"Import!E7861","v":"Select Premiums Written"},{"$f":"Import!E7930","v":"Select Premiums Written"},{"$f":"Import!E7999","v":"Select Premiums Written"},{"$f":"Import!E8068","v":"Select Premiums Written"},{"$f":"Import!E8137","v":"Select Premiums Written"},{"$f":"Import!E8206","v":"Select Premiums Written"},{"$f":"Import!E8275","v":"Select Premiums Written"},{"$f":"Import!E8344","v":"Select Premiums Written"},{"$f":"Import!E8413","v":"Select Premiums Written"},{"$f":"Import!E8482","v":"Select Premiums Written"},"Select Premiums Written","Select Premiums Written","Select Premiums Written","Select Premiums Written","Select Premiums Written","Select Premiums Written","Select Premiums Written","Select Premiums Written","Select Premiums Written","Select Premiums Written","Select Premiums Written","Select Premiums Written","Select Premiums Written","Select Premiums Written","Select Premiums Written","Select Premiums Written","Select Premiums Written","Select Premiums Written","Select Premiums Written","Select Premiums Written","Select Premiums Written","Select Premiums Written","Select Premiums Written","Select Premiums Written","Select Premiums Written"]
[]
[null,null,"ASSETS"]
[null,"(D)","Cash and Time Deposits",{"$f":"Import!E6827","v":0},{"$f":"Import!E6896","v":0},{"$f":"Import!E6965","v":0},{"$f":"Import!E7034","v":0},{"$f":"Import!E7103","v":0},{"$f":"Import!E7172","v":0},{"$f":"Import!E7241","v":0},{"$f":"Import!E7310","v":0},{"$f":"Import!E7379","v":0},{"$f":"Import!E7448","v":0},{"$f":"Import!E7517","v":0},{"$f":"Import!E7586","v":0},{"$f":"Import!E7655","v":0},{"$f":"Import!E7724","v":0},{"$f":"Import!E7793","v":0},{"$f":"Import!E7862","v":0},{"$f":"Import!E7931","v":0},{"$f":"Import!E8000","v":0},{"$f":"Import!E8069","v":0},{"$f":"Import!E8138","v":0},{"$f":"Import!E8207","v":0},{"$f":"Import!E8276","v":0},{"$f":"Import!E8345","v":0},{"$f":"Import!E8414","v":0},{"$f":"Import!E8483","v":0},null,null,null,null,null,null,null,null,null,null,null,null,null,null,null,null,null,null,null,null,null,null,null,null,null,null,{"$f":"SUM(AR11:BA11)","v":0},null,{"$f":"Import!E8549","v":0},null,{"$f":"BC11+BE11","v":0},null,{"$f":"'Form 1SFS (Consolidated)'!M12","v":0},null,{"$f":"IFERROR(ROUND(BG11-BI11,0),0)","v":0},null,{"$f":"Import!E8575","v":0}]
[null,"(E)","Quoted: Bonds and Debentures",{"$f":"Import!E6828","v":0},{"$f":"Import!E6897","v":0},{"$f":"Import!E6966","v":0},{"$f":"Import!E7035","v":0},{"$f":"Import!E7104","v":0},{"$f":"Import!E7173","v":0},{"$f":"Import!E7242","v":0},{"$f":"Import!E7311","v":0},{"$f":"Import!E7380","v":0},{"$f":"Import!E7449","v":0},{"$f":"Import!E7518","v":0},{"$f":"Import!E7587","v":0},{"$f":"Import!E7656","v":0},{"$f":"Import!E7725","v":0},{"$f":"Import!E7794","v":0},{"$f":"Import!E7863","v":0},{"$f":"Import!E7932","v":0},{"$f":"Import!E8001","v":0},{"$f":"Import!E8070","v":0},{"$f":"Import!E8139","v":0},{"$f":"Import!E8208","v":0},{"$f":"Import!E8277","v":0},{"$f":"Import!E8346","v":0},{"$f":"Import!E8415","v":0},{"$f":"Import!E8484","v":0},null,null,null,null,null,null,null,null,null,null,null,null,null,null,null,null,null,null,null,null,null,null,null,null,null,null,{"$f":"SUM(AR12:BA12)","v":0}]
[null,"(F)","Quoted: Equites and Other",{"$f":"Import!E6829","v":0},{"$f":"Import!E6898","v":0},{"$f":"Import!E6967","v":0},{"$f":"Import!E7036","v":0},{"$f":"Import!E7105","v":0},{"$f":"Import!E7174","v":0},{"$f":"Import!E7243","v":0},{"$f":"Import!E7312","v":0},{"$f":"Import!E7381","v":0},{"$f":"Import!E7450","v":0},{"$f":"Import!E7519","v":0},{"$f":"Import!E7588","v":0},{"$f":"Import!E7657","v":0},{"$f":"Import!E7726","v":0},{"$f":"Import!E7795","v":0},{"$f":"Import!E7864","v":0},{"$f":"Import!E7933","v":0},{"$f":"Import!E8002","v":0},{"$f":"Import!E8071","v":0},{"$f":"Import!E8140","v":0},{"$f":"Import!E8209","v":0},{"$f":"Import!E8278","v":0},{"$f":"Import!E8347","v":0},{"$f":"Import!E8416","v":0},{"$f":"Import!E8485","v":0},null,null,null,null,null,null,null,null,null,null,null,null,null,null,null,null,null,null,null,null,null,null,null,null,null,null,{"$f":"SUM(AR13:BA13)","v":0}]
[null,"(G)","Unquoted: Bonds, and Debentures",{"$f":"Import!E6830","v":0},{"$f":"Import!E6899","v":0},{"$f":"Import!E6968","v":0},{"$f":"Import!E7037","v":0},{"$f":"Import!E7106","v":0},{"$f":"Import!E7175","v":0},{"$f":"Import!E7244","v":0},{"$f":"Import!E7313","v":0},{"$f":"Import!E7382","v":0},{"$f":"Import!E7451","v":0},{"$f":"Import!E7520","v":0},{"$f":"Import!E7589","v":0},{"$f":"Import!E7658","v":0},{"$f":"Import!E7727","v":0},{"$f":"Import!E7796","v":0},{"$f":"Import!E7865","v":0},{"$f":"Import!E7934","v":0},{"$f":"Import!E8003","v":0},{"$f":"Import!E8072","v":0},{"$f":"Import!E8141","v":0},{"$f":"Import!E8210","v":0},{"$f":"Import!E8279","v":0},{"$f":"Import!E8348","v":0},{"$f":"Import!E8417","v":0},{"$f":"Import!E8486","v":0},null,null,null,null,null,null,null,null,null,null,null,null,null,null,null,null,null,null,null,null,null,null,null,null,null,null,{"$f":"SUM(AR14:BA14)","v":0}]
[null,"(H)","Investments in and Advances to Affiliates",{"$f":"Import!E6831","v":0},{"$f":"Import!E6900","v":0},{"$f":"Import!E6969","v":0},{"$f":"Import!E7038","v":0},{"$f":"Import!E7107","v":0},{"$f":"Import!E7176","v":0},{"$f":"Import!E7245","v":0},{"$f":"Import!E7314","v":0},{"$f":"Import!E7383","v":0},{"$f":"Import!E7452","v":0},{"$f":"Import!E7521","v":0},{"$f":"Import!E7590","v":0},{"$f":"Import!E7659","v":0},{"$f":"Import!E7728","v":0},{"$f":"Import!E7797","v":0},{"$f":"Import!E7866","v":0},{"$f":"Import!E7935","v":0},{"$f":"Import!E8004","v":0},{"$f":"Import!E8073","v":0},{"$f":"Import!E8142","v":0},{"$f":"Import!E8211","v":0},{"$f":"Import!E8280","v":0},{"$f":"Import!E8349","v":0},{"$f":"Import!E8418","v":0},{"$f":"Import!E8487","v":0},null,null,null,null,null,null,null,null,null,null,null,null,null,null,null,null,null,null,null,null,null,null,null,null,null,null,{"$f":"SUM(AR15:BA15)","v":0}]
[null,"(I)","Funds Held by Ceding Reinsurers",{"$f":"Import!E6832","v":0},{"$f":"Import!E6901","v":0},{"$f":"Import!E6970","v":0},{"$f":"Import!E7039","v":0},{"$f":"Import!E7108","v":0},{"$f":"Import!E7177","v":0},{"$f":"Import!E7246","v":0},{"$f":"Import!E7315","v":0},{"$f":"Import!E7384","v":0},{"$f":"Import!E7453","v":0},{"$f":"Import!E7522","v":0},{"$f":"Import!E7591","v":0},{"$f":"Import!E7660","v":0},{"$f":"Import!E7729","v":0},{"$f":"Import!E7798","v":0},{"$f":"Import!E7867","v":0},{"$f":"Import!E7936","v":0},{"$f":"Import!E8005","v":0},{"$f":"Import!E8074","v":0},{"$f":"Import!E8143","v":0},{"$f":"Import!E8212","v":0},{"$f":"Import!E8281","v":0},{"$f":"Import!E8350","v":0},{"$f":"Import!E8419","v":0},{"$f":"Import!E8488","v":0},null,null,null,null,null,null,null,null,null,null,null,null,null,null,null,null,null,null,null,null,null,null,null,null,null,null,{"$f":"SUM(AR16:BA16)","v":0}]
[null,"(J)","Other Assets",{"$f":"Import!E6833","v":0},{"$f":"Import!E6902","v":0},{"$f":"Import!E6971","v":0},{"$f":"Import!E7040","v":0},{"$f":"Import!E7109","v":0},{"$f":"Import!E7178","v":0},{"$f":"Import!E7247","v":0},{"$f":"Import!E7316","v":0},{"$f":"Import!E7385","v":0},{"$f":"Import!E7454","v":0},{"$f":"Import!E7523","v":0},{"$f":"Import!E7592","v":0},{"$f":"Import!E7661","v":0},{"$f":"Import!E7730","v":0},{"$f":"Import!E7799","v":0},{"$f":"Import!E7868","v":0},{"$f":"Import!E7937","v":0},{"$f":"Import!E8006","v":0},{"$f":"Import!E8075","v":0},{"$f":"Import!E8144","v":0},{"$f":"Import!E8213","v":0},{"$f":"Import!E8282","v":0},{"$f":"Import!E8351","v":0},{"$f":"Import!E8420","v":0},{"$f":"Import!E8489","v":0},null,null,null,null,null,null,null,null,null,null,null,null,null,null,null,null,null,null,null,null,null,null,null,null,null,null,0]
[null,null,"Total Assets",{"$f":"SUM(D11:D17)","v":0},{"$f":"SUM(E11:E17)","v":0},0,0,0,0,0,0,0,0,0,0,0,0,0,0,0,0,0,0,0,0,0,0,0,0,0,0,0,0,0,0,0,0,0,0,0,0,0,0,0,0,0,0,0,0,0,0,0,0,null,{"$f":"SUM(AR18:BA18)","v":0},null,{"$f":"Import!E8550","v":0},null,{"$f":"BC18+BE18","v":0},null,{"$f":"'Form 1SFS (Consolidated)'!M91","v":0},null,{"$f":"IFERROR(ROUND(BG18-BI18,0),0)","v":0},null,{"$f":"Import!E8576","v":0}]
[]
[null,null,"LIABILITIES AND SHAREHOLDERS' EQUITY"]
[null,"(K)","Unearned Premiums",{"$f":"Import!E6834","v":0},{"$f":"Import!E6903","v":0},{"$f":"Import!E6972","v":0},{"$f":"Import!E7041","v":0},{"$f":"Import!E7110","v":0},{"$f":"Import!E7179","v":0},{"$f":"Import!E7248","v":0},{"$f":"Import!E7317","v":0},{"$f":"Import!E7386","v":0},{"$f":"Import!E7455","v":0},{"$f":"Import!E7524","v":0},{"$f":"Import!E7593","v":0},{"$f":"Import!E7662","v":0},{"$f":"Import!E7731","v":0},{"$f":"Import!E7800","v":0},{"$f":"Import!E7869","v":0},{"$f":"Import!E7938","v":0},{"$f":"Import!E8007","v":0},{"$f":"Import!E8076","v":0},{"$f":"Import!E8145","v":0},{"$f":"Import!E8214","v":0},{"$f":"Import!E8283","v":0},{"$f":"Import!E8352","v":0},{"$f":"Import!E8421","v":0},{"$f":"Import!E8490","v":0},null,null,null,null,null,null,null,null,null,null,null,null,null,null,null,null,null,null,null,null,null,null,null,null,null,null,{"$f":"SUM(AR21:BA21)","v":0}]
[null,"(L)","Net Loss & Loss Expense Provisions",{"$f":"Import!E6835","v":0},{"$f":"Import!E6904","v":0},{"$f":"Import!E6973","v":0},{"$f":"Import!E7042","v":0},{"$f":"Import!E7111","v":0},{"$f":"Import!E7180","v":0},{"$f":"Import!E7249","v":0},{"$f":"Import!E7318","v":0},{"$f":"Import!E7387","v":0},{"$f":"Import!E7456","v":0},{"$f":"Import!E7525","v":0},{"$f":"Import!E7594","v":0},{"$f":"Import!E7663","v":0},{"$f":"Import!E7732","v":0},{"$f":"Import!E7801","v":0},{"$f":"Import!E7870","v":0},{"$f":"Import!E7939","v":0},{"$f":"Import!E8008","v":0},{"$f":"Import!E8077","v":0},{"$f":"Import!E8146","v":0},{"$f":"Import!E8215","v":0},{"$f":"Import!E8284","v":0},{"$f":"Import!E8353","v":0},{"$f":"Import!E8422","v":0},{"$f":"Import!E8491","v":0},null,null,null,null,null,null,null,null,null,null,null,null,null,null,null,null,null,null,null,null,null,null,null,null,null,null,{"$f":"SUM(AR22:BA22)","v":0},null,{"$f":"Import!E8551","v":0},null,{"$f":"BC22+BE22","v":0},null,{"$f":"'Form 1SFS (Consolidated)'!M105","v":0},null,{"$f":"IFERROR(ROUND(BG22-BI22,0),0)","v":0},null,{"$f":"Import!E8577","v":0}]
[null,"(M)","Other Liabilities",{"$f":"Import!E6836","v":0},{"$f":"Import!E6905","v":0},{"$f":"Import!E6974","v":0},{"$f":"Import!E7043","v":0},{"$f":"Import!E7112","v":0},{"$f":"Import!E7181","v":0},{"$f":"Import!E7250","v":0},{"$f":"Import!E7319","v":0},{"$f":"Import!E7388","v":0},{"$f":"Import!E7457","v":0},{"$f":"Import!E7526","v":0},{"$f":"Import!E7595","v":0},{"$f":"Import!E7664","v":0},{"$f":"Import!E7733","v":0},{"$f":"Import!E7802","v":0},{"$f":"Import!E7871","v":0},{"$f":"Import!E7940","v":0},{"$f":"Import!E8009","v":0},{"$f":"Import!E8078","v":0},{"$f":"Import!E8147","v":0},{"$f":"Import!E8216","v":0},{"$f":"Import!E8285","v":0},{"$f":"Import!E8354","v":0},{"$f":"Import!E8423","v":0},{"$f":"Import!E8492","v":0},null,null,null,null,null,null,null,null,null,null,null,null,null,null,null,null,null,null,null,null,null,null,null,null,null,null,{"$f":"SUM(AR23:BA23)","v":0}]
[null,"(N)","Statutory Capital",{"$f":"Import!E6837","v":0},{"$f":"Import!E6906","v":0},{"$f":"Import!E6975","v":0},{"$f":"Import!E7044","v":0},{"$f":"Import!E7113","v":0},{"$f":"Import!E7182","v":0},{"$f":"Import!E7251","v":0},{"$f":"Import!E7320","v":0},{"$f":"Import!E7389","v":0},{"$f":"Import!E7458","v":0},{"$f":"Import!E7527","v":0},{"$f":"Import!E7596","v":0},{"$f":"Import!E7665","v":0},{"$f":"Import!E7734","v":0},{"$f":"Import!E7803","v":0},{"$f":"Import!E7872","v":0},{"$f":"Import!E7941","v":0},{"$f":"Import!E8010","v":0},{"$f":"Import!E8079","v":0},{"$f":"Import!E8148","v":0},{"$f":"Import!E8217","v":0},{"$f":"Import!E8286","v":0},{"$f":"Import!E8355","v":0},{"$f":"Import!E8424","v":0},{"$f":"Import!E8493","v":0},null,null,null,null,null,null,null,null,null,null,null,null,null,null,null,null,null,null,null,null,null,null,null,null,null,null,{"$f":"SUM(AR24:BA24)","v":0}]
[null,"(O)","Statutory Surplus",{"$f":"Import!E6838","v":0},{"$f":"Import!E6907","v":0},{"$f":"Import!E6976","v":0},{"$f":"Import!E7045","v":0},{"$f":"Import!E7114","v":0},{"$f":"Import!E7183","v":0},{"$f":"Import!E7252","v":0},{"$f":"Import!E7321","v":0},{"$f":"Import!E7390","v":0},{"$f":"Import!E7459","v":0},{"$f":"Import!E7528","v":0},{"$f":"Import!E7597","v":0},{"$f":"Import!E7666","v":0},{"$f":"Import!E7735","v":0},{"$f":"Import!E7804","v":0},{"$f":"Import!E7873","v":0},{"$f":"Import!E7942","v":0},{"$f":"Import!E8011","v":0},{"$f":"Import!E8080","v":0},{"$f":"Import!E8149","v":0},{"$f":"Import!E8218","v":0},{"$f":"Import!E8287","v":0},{"$f":"Import!E8356","v":0},{"$f":"Import!E8425","v":0},{"$f":"Import!E8494","v":0},null,null,null,null,null,null,null,null,null,null,null,null,null,null,null,null,null,null,null,null,null,null,null,null,null,null,{"$f":"SUM(AR25:BA25)","v":0}]
[null,null,"Total Statutory Capital & Surplus",{"$f":"D24+D25","v":0},{"$f":"E24+E25","v":0},0,0,0,0,0,0,0,0,0,0,0,0,0,0,0,0,0,0,0,0,0,0,0,0,0,0,0,0,0,0,0,0,0,0,0,0,0,0,0,0,0,0,0,0,0,0,0,0,null,{"$f":"BC24+BC25","v":0}]
[null,null,"Total Liabilities and Shareholders Equity",{"$f":"SUM(D21:D25)","v":0},{"$f":"SUM(E21:E25)","v":0},0,0,0,0,0,0,0,0,0,0,0,0,0,0,0,0,0,0,0,0,0,0,0,0,0,0,0,0,0,0,0,0,0,0,0,0,0,0,0,0,0,0,0,0,0,0,0,0,null,{"$f":"SUM(BC21:BC25)","v":0},null,{"$f":"Import!E8552","v":0},null,{"$f":"BC27+BE27","v":0},null,{"$f":"'Form 1SFS (Consolidated)'!M151","v":0},null,{"$f":"IFERROR(ROUND(BG27-BI27,0),0)","v":0},null,{"$f":"Import!E8578","v":0}]
[null,null,null,{"$f":"IF((D18-D27)=ROUND(0,),0,FALSE)","v":0},{"$f":"IF((E18-E27)=ROUND(0,),0,FALSE)","v":0},0,0,0,0,0,0,0,0,0,0,0,0,0,0,0,0,0,0,0,0,0,0,0,0,0,0,0,0,0,0,0,0,0,0,0,0,0,0,0,0,0,0,0,0,0,0,0,0,null,{"$f":"IF((BC18-BC27)=ROUND(0,),0,FALSE)","v":0},null,{"$f":"IF((BE18-BE27)=ROUND(0,),0,FALSE)","v":0}]
[null,null,"INCOME STATEMENT"]
[null,"(P)","Gross Premiums Written",{"$f":"Import!E6839","v":0},{"$f":"Import!E6908","v":0},{"$f":"Import!E6977","v":0},{"$f":"Import!E7046","v":0},{"$f":"Import!E7115","v":0},{"$f":"Import!E7184","v":0},{"$f":"Import!E7253","v":0},{"$f":"Import!E7322","v":0},{"$f":"Import!E7391","v":0},{"$f":"Import!E7460","v":0},{"$f":"Import!E7529","v":0},{"$f":"Import!E7598","v":0},{"$f":"Import!E7667","v":0},{"$f":"Import!E7736","v":0},{"$f":"Import!E7805","v":0},{"$f":"Import!E7874","v":0},{"$f":"Import!E7943","v":0},{"$f":"Import!E8012","v":0},{"$f":"Import!E8081","v":0},{"$f":"Import!E8150","v":0},{"$f":"Import!E8219","v":0},{"$f":"Import!E8288","v":0},{"$f":"Import!E8357","v":0},{"$f":"Import!E8426","v":0},{"$f":"Import!E8495","v":0},null,null,null,null,null,null,null,null,null,null,null,null,null,null,null,null,null,null,null,null,null,null,null,null,null,null,{"$f":"SUM(AR30:BA30)","v":0}]
[null,"(Q)","Net Premiums Written",{"$f":"Import!E6840","v":0},{"$f":"Import!E6909","v":0},{"$f":"Import!E6978","v":0},{"$f":"Import!E7047","v":0},{"$f":"Import!E7116","v":0},{"$f":"Import!E7185","v":0},{"$f":"Import!E7254","v":0},{"$f":"Import!E7323","v":0},{"$f":"Import!E7392","v":0},{"$f":"Import!E7461","v":0},{"$f":"Import!E7530","v":0},{"$f":"Import!E7599","v":0},{"$f":"Import!E7668","v":0},{"$f":"Import!E7737","v":0},{"$f":"Import!E7806","v":0},{"$f":"Import!E7875","v":0},{"$f":"Import!E7944","v":0},{"$f":"Import!E8013","v":0},{"$f":"Import!E8082","v":0},{"$f":"Import!E8151","v":0},{"$f":"Import!E8220","v":0},{"$f":"Import!E8289","v":0},{"$f":"Import!E8358","v":0},{"$f":"Import!E8427","v":0},{"$f":"Import!E8496","v":0},null,null,null,null,null,null,null,null,null,null,null,null,null,null,null,null,null,null,null,null,null,null,null,null,null,null,0]
[null,"(R)","Total Income (Insurance and Other)",{"$f":"Import!E6841","v":0},{"$f":"Import!E6910","v":0},{"$f":"Import!E6979","v":0},{"$f":"Import!E7048","v":0},{"$f":"Import!E7117","v":0},{"$f":"Import!E7186","v":0},{"$f":"Import!E7255","v":0},{"$f":"Import!E7324","v":0},{"$f":"Import!E7393","v":0},{"$f":"Import!E7462","v":0},{"$f":"Import!E7531","v":0},{"$f":"Import!E7600","v":0},{"$f":"Import!E7669","v":0},{"$f":"Import!E7738","v":0},{"$f":"Import!E7807","v":0},{"$f":"Import!E7876","v":0},{"$f":"Import!E7945","v":0},{"$f":"Import!E8014","v":0},{"$f":"Import!E8083","v":0},{"$f":"Import!E8152","v":0},{"$f":"Import!E8221","v":0},{"$f":"Import!E8290","v":0},{"$f":"Import!E8359","v":0},{"$f":"Import!E8428","v":0},{"$f":"Import!E8497","v":0},null,null,null,null,null,null,null,null,null,null,null,null,null,null,null,null,null,null,null,null,null,null,null,null,null,null,0]
[null,"(S) ","Net loss and Loss Expenses Incurred",{"$f":"Import!E6842","v":0},{"$f":"Import!E6911","v":0},{"$f":"Import!E6980","v":0},{"$f":"Import!E7049","v":0},{"$f":"Import!E7118","v":0},{"$f":"Import!E7187","v":0},{"$f":"Import!E7256","v":0},{"$f":"Import!E7325","v":0},{"$f":"Import!E7394","v":0},{"$f":"Import!E7463","v":0},{"$f":"Import!E7532","v":0},{"$f":"Import!E7601","v":0},{"$f":"Import!E7670","v":0},{"$f":"Import!E7739","v":0},{"$f":"Import!E7808","v":0},{"$f":"Import!E7877","v":0},{"$f":"Import!E7946","v":0},{"$f":"Import!E8015","v":0},{"$f":"Import!E8084","v":0},{"$f":"Import!E8153","v":0},{"$f":"Import!E8222","v":0},{"$f":"Import!E8291","v":0},{"$f":"Import!E8360","v":0},{"$f":"Import!E8429","v":0},{"$f":"Import!E8498","v":0},null,null,null,null,null,null,null,null,null,null,null,null,null,null,null,null,null,null,null,null,null,null,null,null,null,null,0]
[null,"(T) ","Commissions and Brokerage",{"$f":"Import!E6843","v":0},{"$f":"Import!E6912","v":0},{"$f":"Import!E6981","v":0},{"$f":"Import!E7050","v":0},{"$f":"Import!E7119","v":0},{"$f":"Import!E7188","v":0},{"$f":"Import!E7257","v":0},{"$f":"Import!E7326","v":0},{"$f":"Import!E7395","v":0},{"$f":"Import!E7464","v":0},{"$f":"Import!E7533","v":0},{"$f":"Import!E7602","v":0},{"$f":"Import!E7671","v":0},{"$f":"Import!E7740","v":0},{"$f":"Import!E7809","v":0},{"$f":"Import!E7878","v":0},{"$f":"Import!E7947","v":0},{"$f":"Import!E8016","v":0},{"$f":"Import!E8085","v":0},{"$f":"Import!E8154","v":0},{"$f":"Import!E8223","v":0},{"$f":"Import!E8292","v":0},{"$f":"Import!E8361","v":0},{"$f":"Import!E8430","v":0},{"$f":"Import!E8499","v":0},null,null,null,null,null,null,null,null,null,null,null,null,null,null,null,null,null,null,null,null,null,null,null,null,null,null,0]
[null,"(U) ","Other Expenses",{"$f":"Import!E6844","v":0},{"$f":"Import!E6913","v":0},{"$f":"Import!E6982","v":0},{"$f":"Import!E7051","v":0},{"$f":"Import!E7120","v":0},{"$f":"Import!E7189","v":0},{"$f":"Import!E7258","v":0},{"$f":"Import!E7327","v":0},{"$f":"Import!E7396","v":0},{"$f":"Import!E7465","v":0},{"$f":"Import!E7534","v":0},{"$f":"Import!E7603","v":0},{"$f":"Import!E7672","v":0},{"$f":"Import!E7741","v":0},{"$f":"Import!E7810","v":0},{"$f":"Import!E7879","v":0},{"$f":"Import!E7948","v":0},{"$f":"Import!E8017","v":0},{"$f":"Import!E8086","v":0},{"$f":"Import!E8155","v":0},{"$f":"Import!E8224","v":0},{"$f":"Import!E8293","v":0},{"$f":"Import!E8362","v":0},{"$f":"Import!E8431","v":0},{"$f":"Import!E8500","v":0},null,null,null,null,null,null,null,null,null,null,null,null,null,null,null,null,null,null,null,null,null,null,null,null,null,null,0]
[null,null,"Net Income",{"$f":"D31+D32+D33+D34+D35","v":0},{"$f":"E31+E32+E33+E34+E35","v":0},0,0,0,0,0,0,0,0,0,0,0,0,0,0,0,0,0,0,0,0,0,0,0,0,0,0,0,0,0,0,0,0,0,0,0,0,0,0,0,0,0,0,0,0,0,0,0,0,null,0,null,{"$f":"Import!E8553","v":0},null,{"$f":"BC36+BE36","v":0},null,{"$f":"IF(('Form 1SFS (Consolidated)'!E91+'Form 1SFS (Consolidated)'!I91)=0,'Form 2SFS (Consolidated)'!M63,'Form 2SFS (Consolidated)'!E63+'Form 2SFS (Consolidated)'!I63)","v":0},null,{"$f":"IFERROR(ROUND(BG36-BI36,0),0)","v":0},null,{"$f":"Import!E8579","v":0}]
[null,"(V) ","Capital Returned & Dividends Paid/Payable",{"$f":"Import!E6845","v":0},{"$f":"Import!E6914","v":0},{"$f":"Import!E6983","v":0},{"$f":"Import!E7052","v":0},{"$f":"Import!E7121","v":0},{"$f":"Import!E7190","v":0},{"$f":"Import!E7259","v":0},{"$f":"Import!E7328","v":0},{"$f":"Import!E7397","v":0},{"$f":"Import!E7466","v":0},{"$f":"Import!E7535","v":0},{"$f":"Import!E7604","v":0},{"$f":"Import!E7673","v":0},{"$f":"Import!E7742","v":0},{"$f":"Import!E7811","v":0},{"$f":"Import!E7880","v":0},{"$f":"Import!E7949","v":0},{"$f":"Import!E8018","v":0},{"$f":"Import!E8087","v":0},{"$f":"Import!E8156","v":0},{"$f":"Import!E8225","v":0},{"$f":"Import!E8294","v":0},{"$f":"Import!E8363","v":0},{"$f":"Import!E8432","v":0},{"$f":"Import!E8501","v":0},null,null,null,null,null,null,null,null,null,null,null,null,null,null,null,null,null,null,null,null,null,null,null,null,null,null,0,null,null,null,{"$f":"BC37+BE37","v":0}]
[]
[null,null,"COLLATERAL"]
[null,"(W) ","Is Collateral required",{"$f":"Import!E6846","v":"Select Yes/No"},{"$f":"Import!E6915","v":"Select Yes/No"},{"$f":"Import!E6984","v":"Select Yes/No"},{"$f":"Import!E7053","v":"Select Yes/No"},{"$f":"Import!E7122","v":"Select Yes/No"},{"$f":"Import!E7191","v":"Select Yes/No"},{"$f":"Import!E7260","v":"Select Yes/No"},{"$f":"Import!E7329","v":"Select Yes/No"},{"$f":"Import!E7398","v":"Select Yes/No"},{"$f":"Import!E7467","v":"Select Yes/No"},{"$f":"Import!E7536","v":"Select Yes/No"},{"$f":"Import!E7605","v":"Select Yes/No"},{"$f":"Import!E7674","v":"Select Yes/No"},{"$f":"Import!E7743","v":"Select Yes/No"},{"$f":"Import!E7812","v":"Select Yes/No"},{"$f":"Import!E7881","v":"Select Yes/No"},{"$f":"Import!E7950","v":"Select Yes/No"},{"$f":"Import!E8019","v":"Select Yes/No"},{"$f":"Import!E8088","v":"Select Yes/No"},{"$f":"Import!E8157","v":"Select Yes/No"},{"$f":"Import!E8226","v":"Select Yes/No"},{"$f":"Import!E8295","v":"Select Yes/No"},{"$f":"Import!E8364","v":"Select Yes/No"},{"$f":"Import!E8433","v":"Select Yes/No"},{"$f":"Import!E8502","v":"Select Yes/No"},"Select Yes/No","Select Yes/No","Select Yes/No","Select Yes/No","Select Yes/No","Select Yes/No","Select Yes/No","Select Yes/No","Select Yes/No","Select Yes/No","Select Yes/No","Select Yes/No","Select Yes/No","Select Yes/No","Select Yes/No","Select Yes/No","Select Yes/No","Select Yes/No","Select Yes/No","Select Yes/No","Select Yes/No","Select Yes/No","Select Yes/No","Select Yes/No","Select Yes/No"]
[null,"(X) ","Collateral required to be posted by Cell/Insurer",{"$f":"Import!E6847","v":0},{"$f":"Import!E6916","v":0},{"$f":"Import!E6985","v":0},{"$f":"Import!E7054","v":0},{"$f":"Import!E7123","v":0},{"$f":"Import!E7192","v":0},{"$f":"Import!E7261","v":0},{"$f":"Import!E7330","v":0},{"$f":"Import!E7399","v":0},{"$f":"Import!E7468","v":0},{"$f":"Import!E7537","v":0},{"$f":"Import!E7606","v":0},{"$f":"Import!E7675","v":0},{"$f":"Import!E7744","v":0},{"$f":"Import!E7813","v":0},{"$f":"Import!E7882","v":0},{"$f":"Import!E7951","v":0},{"$f":"Import!E8020","v":0},{"$f":"Import!E8089","v":0},{"$f":"Import!E8158","v":0},{"$f":"Import!E8227","v":0},{"$f":"Import!E8296","v":0},{"$f":"Import!E8365","v":0},{"$f":"Import!E8434","v":0},{"$f":"Import!E8503","v":0},null,null,null,null,null,null,null,null,null,null,null,null,null,null,null,null,null,null,null,null,null,null,null,null,null,null,{"$f":"SUM(AR41:BA41)","v":0},null,null,null,{"$f":"BC41+BE41","v":0}]
[null,"(Y) ","Actual collateral posted by Cell/Insurer",{"$f":"Import!E6848","v":0},{"$f":"Import!E6917","v":0},{"$f":"Import!E6986","v":0},{"$f":"Import!E7055","v":0},{"$f":"Import!E7124","v":0},{"$f":"Import!E7193","v":0},{"$f":"Import!E7262","v":0},{"$f":"Import!E7331","v":0},{"$f":"Import!E7400","v":0},{"$f":"Import!E7469","v":0},{"$f":"Import!E7538","v":0},{"$f":"Import!E7607","v":0},{"$f":"Import!E7676","v":0},{"$f":"Import!E7745","v":0},{"$f":"Import!E7814","v":0},{"$f":"Import!E7883","v":0},{"$f":"Import!E7952","v":0},{"$f":"Import!E8021","v":0},{"$f":"Import!E8090","v":0},{"$f":"Import!E8159","v":0},{"$f":"Import!E8228","v":0},{"$f":"Import!E8297","v":0},{"$f":"Import!E8366","v":0},{"$f":"Import!E8435","v":0},{"$f":"Import!E8504","v":0},null,null,null,null,null,null,null,null,null,null,null,null,null,null,null,null,null,null,null,null,null,null,null,null,null,null,{"$f":"SUM(AR42:BA42)","v":0},null,null,null,0]
[null,null,"Excess/(Shortfall) in Collateral",{"$f":"D42-D41","v":0},{"$f":"E42-E41","v":0},0,0,0,0,0,0,0,0,0,0,0,0,0,0,0,0,0,0,0,0,0,0,0,0,0,0,0,0,0,0,0,0,0,0,0,0,0,0,0,0,0,0,0,0,0,0,0,0,null,{"$f":"SUM(AR43:BA43)","v":0},null,null,null,0]
[null,"(Z) ","Primary Cell Funding",{"$f":"Import!E6849","v":"Select Funding"},{"$f":"Import!E6918","v":"Select Funding"},{"$f":"Import!E6987","v":"Select Funding"},{"$f":"Import!E7056","v":"Select Funding"},{"$f":"Import!E7125","v":"Select Funding"},{"$f":"Import!E7194","v":"Select Funding"},{"$f":"Import!E7263","v":"Select Funding"},{"$f":"Import!E7332","v":"Select Funding"},{"$f":"Import!E7401","v":"Select Funding"},{"$f":"Import!E7470","v":"Select Funding"},{"$f":"Import!E7539","v":"Select Funding"},{"$f":"Import!E7608","v":"Select Funding"},{"$f":"Import!E7677","v":"Select Funding"},{"$f":"Import!E7746","v":"Select Funding"},{"$f":"Import!E7815","v":"Select Funding"},{"$f":"Import!E7884","v":"Select Funding"},{"$f":"Import!E7953","v":"Select Funding"},{"$f":"Import!E8022","v":"Select Funding"},{"$f":"Import!E8091","v":"Select Funding"},{"$f":"Import!E8160","v":"Select Funding"},{"$f":"Import!E8229","v":"Select Funding"},{"$f":"Import!E8298","v":"Select Funding"},{"$f":"Import!E8367","v":"Select Funding"},{"$f":"Import!E8436","v":"Select Funding"},{"$f":"Import!E8505","v":"Select Funding"},"Select Funding","Select Funding","Select Funding","Select Funding","Select Funding","Select Funding","Select Funding","Select Funding","Select Funding","Select Funding","Select Funding","Select Funding","Select Funding","Select Funding","Select Funding","Select Funding","Select Funding","Select Funding","Select Funding","Select Funding","Select Funding","Select Funding","Select Funding","Select Funding","Select Funding"]
[null,"(AA) ","Limit of Cell Funding/Collateral",{"$f":"Import!E6850","v":"Confirm Funding / Collateral"},{"$f":"Import!E6919","v":"Confirm Funding / Collateral"},{"$f":"Import!E6988","v":"Confirm Funding / Collateral"},{"$f":"Import!E7057","v":"Confirm Funding / Collateral"},{"$f":"Import!E7126","v":"Confirm Funding / Collateral"},{"$f":"Import!E7195","v":"Confirm Funding / Collateral"},{"$f":"Import!E7264","v":"Confirm Funding / Collateral"},{"$f":"Import!E7333","v":"Confirm Funding / Collateral"},{"$f":"Import!E7402","v":"Confirm Funding / Collateral"},{"$f":"Import!E7471","v":"Confirm Funding / Collateral"},{"$f":"Import!E7540","v":"Confirm Funding / Collateral"},{"$f":"Import!E7609","v":"Confirm Funding / Collateral"},{"$f":"Import!E7678","v":"Confirm Funding / Collateral"},{"$f":"Import!E7747","v":"Confirm Funding / Collateral"},{"$f":"Import!E7816","v":"Confirm Funding / Collateral"},{"$f":"Import!E7885","v":"Confirm Funding / Collateral"},{"$f":"Import!E7954","v":"Confirm Funding / Collateral"},{"$f":"Import!E8023","v":"Confirm Funding / Collateral"},{"$f":"Import!E8092","v":"Confirm Funding / Collateral"},{"$f":"Import!E8161","v":"Confirm Funding / Collateral"},{"$f":"Import!E8230","v":"Confirm Funding / Collateral"},{"$f":"Import!E8299","v":"Confirm Funding / Collateral"},{"$f":"Import!E8368","v":"Confirm Funding / Collateral"},{"$f":"Import!E8437","v":"Confirm Funding / Collateral"},{"$f":"Import!E8506","v":"Confirm Funding / Collateral"},"Confirm Funding / Collateral","Confirm Funding / Collateral","Confirm Funding / Collateral","Confirm Funding / Collateral","Confirm Funding / Collateral","Confirm Funding / Collateral","Confirm Funding / Collateral","Confirm Funding / Collateral","Confirm Funding / Collateral","Confirm Funding / Collateral","Confirm Funding / Collateral","Confirm Funding / Collateral","Confirm Funding / Collateral","Confirm Funding / Collateral","Confirm Funding / Collateral","Confirm Funding / Collateral","Confirm Funding / Collateral","Confirm Funding / Collateral","Confirm Funding / Collateral","Confirm Funding / Collateral","Confirm Funding / Collateral","Confirm Funding / Collateral","Confirm Funding / Collateral","Confirm Funding / Collateral","Confirm Funding / Collateral"]
[null,"(AA.1) ","Aggregate Limit Amount",{"$f":"Import!E6851","v":0},{"$f":"Import!E6920","v":0},{"$f":"Import!E6989","v":0},{"$f":"Import!E7058","v":0},{"$f":"Import!E7127","v":0},{"$f":"Import!E7196","v":0},{"$f":"Import!E7265","v":0},{"$f":"Import!E7334","v":0},{"$f":"Import!E7403","v":0},{"$f":"Import!E7472","v":0},{"$f":"Import!E7541","v":0},{"$f":"Import!E7610","v":0},{"$f":"Import!E7679","v":0},{"$f":"Import!E7748","v":0},{"$f":"Import!E7817","v":0},{"$f":"Import!E7886","v":0},{"$f":"Import!E7955","v":0},{"$f":"Import!E8024","v":0},{"$f":"Import!E8093","v":0},{"$f":"Import!E8162","v":0},{"$f":"Import!E8231","v":0},{"$f":"Import!E8300","v":0},{"$f":"Import!E8369","v":0},{"$f":"Import!E8438","v":0},{"$f":"Import!E8507","v":0},null,null,null,null,null,null,null,null,null,null,null,null,null,null,null,null,null,null,null,null,null,null,null,null,null,null,{"$f":"SUM(AR46:BA46)","v":0},null,{"$f":"Import!E8554","v":0},null,{"$f":"BC46+BE46","v":0}]
[null,"(AA.2) ","Limit of Cell Funding/Collateral Details",{"$f":"Import!E6852","v":0},{"$f":"Import!E6921","v":0},{"$f":"Import!E6990","v":0},{"$f":"Import!E7059","v":0},{"$f":"Import!E7128","v":0},{"$f":"Import!E7197","v":0},{"$f":"Import!E7266","v":0},{"$f":"Import!E7335","v":0},{"$f":"Import!E7404","v":0},{"$f":"Import!E7473","v":0},{"$f":"Import!E7542","v":0},{"$f":"Import!E7611","v":0},{"$f":"Import!E7680","v":0},{"$f":"Import!E7749","v":0},{"$f":"Import!E7818","v":0},{"$f":"Import!E7887","v":0},{"$f":"Import!E7956","v":0},{"$f":"Import!E8025","v":0},{"$f":"Import!E8094","v":0},{"$f":"Import!E8163","v":0},{"$f":"Import!E8232","v":0},{"$f":"Import!E8301","v":0},{"$f":"Import!E8370","v":0},{"$f":"Import!E8439","v":0},{"$f":"Import!E8508","v":0}]
[]
[null,null,"CELL ACTIVITY"]
[null,"(AB) ","Cell is in Run-Off",{"$f":"Import!E6853","v":"Select Yes/No"},{"$f":"Import!E6922","v":"Select Yes/No"},{"$f":"Import!E6991","v":"Select Yes/No"},{"$f":"Import!E7060","v":"Select Yes/No"},{"$f":"Import!E7129","v":"Select Yes/No"},{"$f":"Import!E7198","v":"Select Yes/No"},{"$f":"Import!E7267","v":"Select Yes/No"},{"$f":"Import!E7336","v":"Select Yes/No"},{"$f":"Import!E7405","v":"Select Yes/No"},{"$f":"Import!E7474","v":"Select Yes/No"},{"$f":"Import!E7543","v":"Select Yes/No"},{"$f":"Import!E7612","v":"Select Yes/No"},{"$f":"Import!E7681","v":"Select Yes/No"},{"$f":"Import!E7750","v":"Select Yes/No"},{"$f":"Import!E7819","v":"Select Yes/No"},{"$f":"Import!E7888","v":"Select Yes/No"},{"$f":"Import!E7957","v":"Select Yes/No"},{"$f":"Import!E8026","v":"Select Yes/No"},{"$f":"Import!E8095","v":"Select Yes/No"},{"$f":"Import!E8164","v":"Select Yes/No"},{"$f":"Import!E8233","v":"Select Yes/No"},{"$f":"Import!E8302","v":"Select Yes/No"},{"$f":"Import!E8371","v":"Select Yes/No"},{"$f":"Import!E8440","v":"Select Yes/No"},{"$f":"Import!E8509","v":"Select Yes/No"},"Select Yes/No","Select Yes/No","Select Yes/No","Select Yes/No","Select Yes/No","Select Yes/No","Select Yes/No","Select Yes/No","Select Yes/No","Select Yes/No","Select Yes/No","Select Yes/No","Select Yes/No","Select Yes/No","Select Yes/No","Select Yes/No","Select Yes/No","Select Yes/No","Select Yes/No","Select Yes/No","Select Yes/No","Select Yes/No","Select Yes/No","Select Yes/No","Select Yes/No"]
[null,"(AC) ","Currency Used",{"$f":"Import!E6854","v":"Select Currency"},{"$f":"Import!E6923","v":"Select Currency"},{"$f":"Import!E6992","v":"Select Currency"},{"$f":"Import!E7061","v":"Select Currency"},{"$f":"Import!E7130","v":"Select Currency"},{"$f":"Import!E7199","v":"Select Currency"},{"$f":"Import!E7268","v":"Select Currency"},{"$f":"Import!E7337","v":"Select Currency"},{"$f":"Import!E7406","v":"Select Currency"},{"$f":"Import!E7475","v":"Select Currency"},{"$f":"Import!E7544","v":"Select Currency"},{"$f":"Import!E7613","v":"Select Currency"},{"$f":"Import!E7682","v":"Select Currency"},{"$f":"Import!E7751","v":"Select Currency"},{"$f":"Import!E7820","v":"Select Currency"},{"$f":"Import!E7889","v":"Select Currency"},{"$f":"Import!E7958","v":"Select Currency"},{"$f":"Import!E8027","v":"Select Currency"},{"$f":"Import!E8096","v":"Select Currency"},{"$f":"Import!E8165","v":"Select Currency"},{"$f":"Import!E8234","v":"Select Currency"},{"$f":"Import!E8303","v":"Select Currency"},{"$f":"Import!E8372","v":"Select Currency"},{"$f":"Import!E8441","v":"Select Currency"},{"$f":"Import!E8510","v":"Select Currency"},"Select Currency","Select Currency","Select Currency","Select Currency","Select Currency","Select Currency","Select Currency","Select Currency","Select Currency","Select Currency","Select Currency","Select Currency","Select Currency","Select Currency","Select Currency","Select Currency","Select Currency","Select Currency","Select Currency","Select Currency","Select Currency","Select Currency","Select Currency","Select Currency","Select Currency"]
[null,"(AD) ","Cell to Cell Activity ",{"$f":"Import!E6855","v":"Confirm Activity"},{"$f":"Import!E6924","v":"Confirm Activity"},{"$f":"Import!E6993","v":"Confirm Activity"},{"$f":"Import!E7062","v":"Confirm Activity"},{"$f":"Import!E7131","v":"Confirm Activity"},{"$f":"Import!E7200","v":"Confirm Activity"},{"$f":"Import!E7269","v":"Confirm Activity"},{"$f":"Import!E7338","v":"Confirm Activity"},{"$f":"Import!E7407","v":"Confirm Activity"},{"$f":"Import!E7476","v":"Confirm Activity"},{"$f":"Import!E7545","v":"Confirm Activity"},{"$f":"Import!E7614","v":"Confirm Activity"},{"$f":"Import!E7683","v":"Confirm Activity"},{"$f":"Import!E7752","v":"Confirm Activity"},{"$f":"Import!E7821","v":"Confirm Activity"},{"$f":"Import!E7890","v":"Confirm Activity"},{"$f":"Import!E7959","v":"Confirm Activity"},{"$f":"Import!E8028","v":"Confirm Activity"},{"$f":"Import!E8097","v":"Confirm Activity"},{"$f":"Import!E8166","v":"Confirm Activity"},{"$f":"Import!E8235","v":"Confirm Activity"},{"$f":"Import!E8304","v":"Confirm Activity"},{"$f":"Import!E8373","v":"Confirm Activity"},{"$f":"Import!E8442","v":"Confirm Activity"},{"$f":"Import!E8511","v":"Confirm Activity"},"Confirm Activity","Confirm Activity","Confirm Activity","Confirm Activity","Confirm Activity","Confirm Activity","Confirm Activity","Confirm Activity","Confirm Activity","Confirm Activity","Confirm Activity","Confirm Activity","Confirm Activity","Confirm Activity","Confirm Activity","Confirm Activity","Confirm Activity","Confirm Activity","Confirm Activity","Confirm Activity","Confirm Activity","Confirm Activity","Confirm Activity","Confirm Activity","Confirm Activity"]
[null,"(AD.1) ","Cell to Cell Activity Details",{"$f":"Import!E6856","v":0},{"$f":"Import!E6925","v":0},{"$f":"Import!E6994","v":0},{"$f":"Import!E7063","v":0},{"$f":"Import!E7132","v":0},{"$f":"Import!E7201","v":0},{"$f":"Import!E7270","v":0},{"$f":"Import!E7339","v":0},{"$f":"Import!E7408","v":0},{"$f":"Import!E7477","v":0},{"$f":"Import!E7546","v":0},{"$f":"Import!E7615","v":0},{"$f":"Import!E7684","v":0},{"$f":"Import!E7753","v":0},{"$f":"Import!E7822","v":0},{"$f":"Import!E7891","v":0},{"$f":"Import!E7960","v":0},{"$f":"Import!E8029","v":0},{"$f":"Import!E8098","v":0},{"$f":"Import!E8167","v":0},{"$f":"Import!E8236","v":0},{"$f":"Import!E8305","v":0},{"$f":"Import!E8374","v":0},{"$f":"Import!E8443","v":0},{"$f":"Import!E8512","v":0}]
[null,"(AE) ","General Cell to Cell Activity",{"$f":"Import!E6857","v":"Confirm Activity"},{"$f":"Import!E6926","v":"Confirm Activity"},{"$f":"Import!E6995","v":"Confirm Activity"},{"$f":"Import!E7064","v":"Confirm Activity"},{"$f":"Import!E7133","v":"Confirm Activity"},{"$f":"Import!E7202","v":"Confirm Activity"},{"$f":"Import!E7271","v":"Confirm Activity"},{"$f":"Import!E7340","v":"Confirm Activity"},{"$f":"Import!E7409","v":"Confirm Activity"},{"$f":"Import!E7478","v":"Confirm Activity"},{"$f":"Import!E7547","v":"Confirm Activity"},{"$f":"Import!E7616","v":"Confirm Activity"},{"$f":"Import!E7685","v":"Confirm Activity"},{"$f":"Import!E7754","v":"Confirm Activity"},{"$f":"Import!E7823","v":"Confirm Activity"},{"$f":"Import!E7892","v":"Confirm Activity"},{"$f":"Import!E7961","v":"Confirm Activity"},{"$f":"Import!E8030","v":"Confirm Activity"},{"$f":"Import!E8099","v":"Confirm Activity"},{"$f":"Import!E8168","v":"Confirm Activity"},{"$f":"Import!E8237","v":"Confirm Activity"},{"$f":"Import!E8306","v":"Confirm Activity"},{"$f":"Import!E8375","v":"Confirm Activity"},{"$f":"Import!E8444","v":"Confirm Activity"},{"$f":"Import!E8513","v":"Confirm Activity"},"Confirm Activity","Confirm Activity","Confirm Activity","Confirm Activity","Confirm Activity","Confirm Activity","Confirm Activity","Confirm Activity","Confirm Activity","Confirm Activity","Confirm Activity","Confirm Activity","Confirm Activity","Confirm Activity","Confirm Activity","Confirm Activity","Confirm Activity","Confirm Activity","Confirm Activity","Confirm Activity","Confirm Activity","Confirm Activity","Confirm Activity","Confirm Activity","Confirm Activity"]
[null,"(AE.1) ","General Cell to Cell Activity Details",{"$f":"Import!E6858","v":0},{"$f":"Import!E6927","v":0},{"$f":"Import!E6996","v":0},{"$f":"Import!E7065","v":0},{"$f":"Import!E7134","v":0},{"$f":"Import!E7203","v":0},{"$f":"Import!E7272","v":0},{"$f":"Import!E7341","v":0},{"$f":"Import!E7410","v":0},{"$f":"Import!E7479","v":0},{"$f":"Import!E7548","v":0},{"$f":"Import!E7617","v":0},{"$f":"Import!E7686","v":0},{"$f":"Import!E7755","v":0},{"$f":"Import!E7824","v":0},{"$f":"Import!E7893","v":0},{"$f":"Import!E7962","v":0},{"$f":"Import!E8031","v":0},{"$f":"Import!E8100","v":0},{"$f":"Import!E8169","v":0},{"$f":"Import!E8238","v":0},{"$f":"Import!E8307","v":0},{"$f":"Import!E8376","v":0},{"$f":"Import!E8445","v":0},{"$f":"Import!E8514","v":0}]
[null,"(AF) ","Where a cell is in deficit, insolvent or subject to litigation, provide or attach details of remediation actions or update on proceedings",{"$f":"Import!E6859","v":0},{"$f":"Import!E6928","v":0},{"$f":"Import!E6997","v":0},{"$f":"Import!E7066","v":0},{"$f":"Import!E7135","v":0},{"$f":"Import!E7204","v":0},{"$f":"Import!E7273","v":0},{"$f":"Import!E7342","v":0},{"$f":"Import!E7411","v":0},{"$f":"Import!E7480","v":0},{"$f":"Import!E7549","v":0},{"$f":"Import!E7618","v":0},{"$f":"Import!E7687","v":0},{"$f":"Import!E7756","v":0},{"$f":"Import!E7825","v":0},{"$f":"Import!E7894","v":0},{"$f":"Import!E7963","v":0},{"$f":"Import!E8032","v":0},{"$f":"Import!E8101","v":0},{"$f":"Import!E8170","v":0},{"$f":"Import!E8239","v":0},{"$f":"Import!E8308","v":0},{"$f":"Import!E8377","v":0},{"$f":"Import!E8446","v":0},{"$f":"Import!E8515","v":0}]
[null,"(AG) ","Additional Capital Support",{"$f":"Import!E6860","v":"Confirm"},{"$f":"Import!E6929","v":"Confirm"},{"$f":"Import!E6998","v":"Confirm"},{"$f":"Import!E7067","v":"Confirm"},{"$f":"Import!E7136","v":"Confirm"},{"$f":"Import!E7205","v":"Confirm"},{"$f":"Import!E7274","v":"Confirm"},{"$f":"Import!E7343","v":"Confirm"},{"$f":"Import!E7412","v":"Confirm"},{"$f":"Import!E7481","v":"Confirm"},{"$f":"Import!E7550","v":"Confirm"},{"$f":"Import!E7619","v":"Confirm"},{"$f":"Import!E7688","v":"Confirm"},{"$f":"Import!E7757","v":"Confirm"},{"$f":"Import!E7826","v":"Confirm"},{"$f":"Import!E7895","v":"Confirm"},{"$f":"Import!E7964","v":"Confirm"},{"$f":"Import!E8033","v":"Confirm"},{"$f":"Import!E8102","v":"Confirm"},{"$f":"Import!E8171","v":"Confirm"},{"$f":"Import!E8240","v":"Confirm"},{"$f":"Import!E8309","v":"Confirm"},{"$f":"Import!E8378","v":"Confirm"},{"$f":"Import!E8447","v":"Confirm"},{"$f":"Import!E8516","v":"Confirm"},"Confirm","Confirm","Confirm","Confirm","Confirm","Confirm","Confirm","Confirm","Confirm","Confirm","Confirm","Confirm","Confirm","Confirm","Confirm","Confirm","Confirm","Confirm","Confirm","Confirm","Confirm","Confirm","Confirm","Confirm","Confirm"]
[null,"(AG.1) ","Additional Capital Support Details",{"$f":"Import!E6861","v":0},{"$f":"Import!E6930","v":0},{"$f":"Import!E6999","v":0},{"$f":"Import!E7068","v":0},{"$f":"Import!E7137","v":0},{"$f":"Import!E7206","v":0},{"$f":"Import!E7275","v":0},{"$f":"Import!E7344","v":0},{"$f":"Import!E7413","v":0},{"$f":"Import!E7482","v":0},{"$f":"Import!E7551","v":0},{"$f":"Import!E7620","v":0},{"$f":"Import!E7689","v":0},{"$f":"Import!E7758","v":0},{"$f":"Import!E7827","v":0},{"$f":"Import!E7896","v":0},{"$f":"Import!E7965","v":0},{"$f":"Import!E8034","v":0},{"$f":"Import!E8103","v":0},{"$f":"Import!E8172","v":0},{"$f":"Import!E8241","v":0},{"$f":"Import!E8310","v":0},{"$f":"Import!E8379","v":0},{"$f":"Import!E8448","v":0},{"$f":"Import!E8517","v":0}]
[]
[null,null,"BENEFICIAL OWNERSHIP"]
[null,"(AH) ","Details of Beneficial Owners and their relationship to the underlying risk",{"$f":"Import!E6862","v":"Confirm"},{"$f":"Import!E6931","v":"Confirm"},{"$f":"Import!E7000","v":"Confirm"},{"$f":"Import!E7069","v":"Confirm"},{"$f":"Import!E7138","v":"Confirm"},{"$f":"Import!E7207","v":"Confirm"},{"$f":"Import!E7276","v":"Confirm"},{"$f":"Import!E7345","v":"Confirm"},{"$f":"Import!E7414","v":"Confirm"},{"$f":"Import!E7483","v":"Confirm"},{"$f":"Import!E7552","v":"Confirm"},{"$f":"Import!E7621","v":"Confirm"},{"$f":"Import!E7690","v":"Confirm"},{"$f":"Import!E7759","v":"Confirm"},{"$f":"Import!E7828","v":"Confirm"},{"$f":"Import!E7897","v":"Confirm"},{"$f":"Import!E7966","v":"Confirm"},{"$f":"Import!E8035","v":"Confirm"},{"$f":"Import!E8104","v":"Confirm"},{"$f":"Import!E8173","v":"Confirm"},{"$f":"Import!E8242","v":"Confirm"},{"$f":"Import!E8311","v":"Confirm"},{"$f":"Import!E8380","v":"Confirm"},{"$f":"Import!E8449","v":"Confirm"},{"$f":"Import!E8518","v":"Confirm"},"Confirm","Confirm","Confirm","Confirm","Confirm","Confirm","Confirm","Confirm","Confirm","Confirm","Confirm","Confirm","Confirm","Confirm","Confirm","Confirm","Confirm","Confirm","Confirm","Confirm","Confirm","Confirm","Confirm","Confirm","Confirm"]
[null,"(AI) ","Beneficial Owner(s) Relationship to the Segregated Account Company Ownership",{"$f":"Import!E6863","v":"Confirm"},{"$f":"Import!E6932","v":"Confirm"},{"$f":"Import!E7001","v":"Confirm"},{"$f":"Import!E7070","v":"Confirm"},{"$f":"Import!E7139","v":"Confirm"},{"$f":"Import!E7208","v":"Confirm"},{"$f":"Import!E7277","v":"Confirm"},{"$f":"Import!E7346","v":"Confirm"},{"$f":"Import!E7415","v":"Confirm"},{"$f":"Import!E7484","v":"Confirm"},{"$f":"Import!E7553","v":"Confirm"},{"$f":"Import!E7622","v":"Confirm"},{"$f":"Import!E7691","v":"Confirm"},{"$f":"Import!E7760","v":"Confirm"},{"$f":"Import!E7829","v":"Confirm"},{"$f":"Import!E7898","v":"Confirm"},{"$f":"Import!E7967","v":"Confirm"},{"$f":"Import!E8036","v":"Confirm"},{"$f":"Import!E8105","v":"Confirm"},{"$f":"Import!E8174","v":"Confirm"},{"$f":"Import!E8243","v":"Confirm"},{"$f":"Import!E8312","v":"Confirm"},{"$f":"Import!E8381","v":"Confirm"},{"$f":"Import!E8450","v":"Confirm"},{"$f":"Import!E8519","v":"Confirm"},"Confirm","Confirm","Confirm","Confirm","Confirm","Confirm","Confirm","Confirm","Confirm","Confirm","Confirm","Confirm","Confirm","Confirm","Confirm","Confirm","Confirm","Confirm","Confirm","Confirm","Confirm","Confirm","Confirm","Confirm","Confirm"]
[null,"(AJ) ","Beneficial Owner(s)",{"$f":"Import!E6864","v":"Confirm"},{"$f":"Import!E6933","v":"Confirm"},{"$f":"Import!E7002","v":"Confirm"},{"$f":"Import!E7071","v":"Confirm"},{"$f":"Import!E7140","v":"Confirm"},{"$f":"Import!E7209","v":"Confirm"},{"$f":"Import!E7278","v":"Confirm"},{"$f":"Import!E7347","v":"Confirm"},{"$f":"Import!E7416","v":"Confirm"},{"$f":"Import!E7485","v":"Confirm"},{"$f":"Import!E7554","v":"Confirm"},{"$f":"Import!E7623","v":"Confirm"},{"$f":"Import!E7692","v":"Confirm"},{"$f":"Import!E7761","v":"Confirm"},{"$f":"Import!E7830","v":"Confirm"},{"$f":"Import!E7899","v":"Confirm"},{"$f":"Import!E7968","v":"Confirm"},{"$f":"Import!E8037","v":"Confirm"},{"$f":"Import!E8106","v":"Confirm"},{"$f":"Import!E8175","v":"Confirm"},{"$f":"Import!E8244","v":"Confirm"},{"$f":"Import!E8313","v":"Confirm"},{"$f":"Import!E8382","v":"Confirm"},{"$f":"Import!E8451","v":"Confirm"},{"$f":"Import!E8520","v":"Confirm"},"Confirm Beneficial Owner","Confirm Beneficial Owner","Confirm Beneficial Owner","Confirm Beneficial Owner","Confirm Beneficial Owner","Confirm Beneficial Owner","Confirm Beneficial Owner","Confirm Beneficial Owner","Confirm Beneficial Owner","Confirm Beneficial Owner","Confirm Beneficial Owner","Confirm Beneficial Owner","Confirm Beneficial Owner","Confirm Beneficial Owner","Confirm Beneficial Owner","Confirm Beneficial Owner","Confirm Beneficial Owner","Confirm Beneficial Owner","Confirm Beneficial Owner","Confirm Beneficial Owner","Confirm Beneficial Owner","Confirm Beneficial Owner","Confirm Beneficial Owner","Confirm Beneficial Owner","Confirm Beneficial Owner"]
[null,"(AK) ","Beneficial Ownership",{"$f":"Import!E6865","v":"Confirm"},{"$f":"Import!E6934","v":"Confirm"},{"$f":"Import!E7003","v":"Confirm"},{"$f":"Import!E7072","v":"Confirm"},{"$f":"Import!E7141","v":"Confirm"},{"$f":"Import!E7210","v":"Confirm"},{"$f":"Import!E7279","v":"Confirm"},{"$f":"Import!E7348","v":"Confirm"},{"$f":"Import!E7417","v":"Confirm"},{"$f":"Import!E7486","v":"Confirm"},{"$f":"Import!E7555","v":"Confirm"},{"$f":"Import!E7624","v":"Confirm"},{"$f":"Import!E7693","v":"Confirm"},{"$f":"Import!E7762","v":"Confirm"},{"$f":"Import!E7831","v":"Confirm"},{"$f":"Import!E7900","v":"Confirm"},{"$f":"Import!E7969","v":"Confirm"},{"$f":"Import!E8038","v":"Confirm"},{"$f":"Import!E8107","v":"Confirm"},{"$f":"Import!E8176","v":"Confirm"},{"$f":"Import!E8245","v":"Confirm"},{"$f":"Import!E8314","v":"Confirm"},{"$f":"Import!E8383","v":"Confirm"},{"$f":"Import!E8452","v":"Confirm"},{"$f":"Import!E8521","v":"Confirm"},"Confirm","Confirm","Confirm","Confirm","Confirm","Confirm","Confirm","Confirm","Confirm","Confirm","Confirm","Confirm","Confirm","Confirm","Confirm","Confirm","Confirm","Confirm","Confirm","Confirm","Confirm","Confirm","Confirm","Confirm","Confirm"]
[null,"(AK.1) ","Beneficial Ownership Details (if other is chosen)",{"$f":"Import!E6866","v":0},{"$f":"Import!E6935","v":0},{"$f":"Import!E7004","v":0},{"$f":"Import!E7073","v":0},{"$f":"Import!E7142","v":0},{"$f":"Import!E7211","v":0},{"$f":"Import!E7280","v":0},{"$f":"Import!E7349","v":0},{"$f":"Import!E7418","v":0},{"$f":"Import!E7487","v":0},{"$f":"Import!E7556","v":0},{"$f":"Import!E7625","v":0},{"$f":"Import!E7694","v":0},{"$f":"Import!E7763","v":0},{"$f":"Import!E7832","v":0},{"$f":"Import!E7901","v":0},{"$f":"Import!E7970","v":0},{"$f":"Import!E8039","v":0},{"$f":"Import!E8108","v":0},{"$f":"Import!E8177","v":0},{"$f":"Import!E8246","v":0},{"$f":"Import!E8315","v":0},{"$f":"Import!E8384","v":0},{"$f":"Import!E8453","v":0},{"$f":"Import!E8522","v":0}]
[null,"(AL) ","Details of the principal jurisdiction of the underlying risk",{"$f":"Import!E6867","v":"Confirm Jurisdiction"},{"$f":"Import!E6936","v":"Confirm Jurisdiction"},{"$f":"Import!E7005","v":"Confirm Jurisdiction"},{"$f":"Import!E7074","v":"Confirm Jurisdiction"},{"$f":"Import!E7143","v":"Confirm Jurisdiction"},{"$f":"Import!E7212","v":"Confirm Jurisdiction"},{"$f":"Import!E7281","v":"Confirm Jurisdiction"},{"$f":"Import!E7350","v":"Confirm Jurisdiction"},{"$f":"Import!E7419","v":"Confirm Jurisdiction"},{"$f":"Import!E7488","v":"Confirm Jurisdiction"},{"$f":"Import!E7557","v":"Confirm Jurisdiction"},{"$f":"Import!E7626","v":"Confirm Jurisdiction"},{"$f":"Import!E7695","v":"Confirm Jurisdiction"},{"$f":"Import!E7764","v":"Confirm Jurisdiction"},{"$f":"Import!E7833","v":"Confirm Jurisdiction"},{"$f":"Import!E7902","v":"Confirm Jurisdiction"},{"$f":"Import!E7971","v":"Confirm Jurisdiction"},{"$f":"Import!E8040","v":"Confirm Jurisdiction"},{"$f":"Import!E8109","v":"Confirm Jurisdiction"},{"$f":"Import!E8178","v":"Confirm Jurisdiction"},{"$f":"Import!E8247","v":"Confirm Jurisdiction"},{"$f":"Import!E8316","v":"Confirm Jurisdiction"},{"$f":"Import!E8385","v":"Confirm Jurisdiction"},{"$f":"Import!E8454","v":"Confirm Jurisdiction"},{"$f":"Import!E8523","v":"Confirm Jurisdiction"},"Confirm Jurisdiction","Confirm Jurisdiction","Confirm Jurisdiction","Confirm Jurisdiction","Confirm Jurisdiction","Confirm Jurisdiction","Confirm Jurisdiction","Confirm Jurisdiction","Confirm Jurisdiction","Confirm Jurisdiction","Confirm Jurisdiction","Confirm Jurisdiction","Confirm Jurisdiction","Confirm Jurisdiction","Confirm Jurisdiction","Confirm Jurisdiction","Confirm Jurisdiction","Confirm Jurisdiction","Confirm Jurisdiction","Confirm Jurisdiction","Confirm Jurisdiction","Confirm Jurisdiction","Confirm Jurisdiction","Confirm Jurisdiction","Confirm Jurisdiction"]
[null,"(AM) ","Beneficial Owner Governing Instrument",{"$f":"Import!E6868","v":"Confirm Instrument"},{"$f":"Import!E6937","v":"Confirm Instrument"},{"$f":"Import!E7006","v":"Confirm Instrument"},{"$f":"Import!E7075","v":"Confirm Instrument"},{"$f":"Import!E7144","v":"Confirm Instrument"},{"$f":"Import!E7213","v":"Confirm Instrument"},{"$f":"Import!E7282","v":"Confirm Instrument"},{"$f":"Import!E7351","v":"Confirm Instrument"},{"$f":"Import!E7420","v":"Confirm Instrument"},{"$f":"Import!E7489","v":"Confirm Instrument"},{"$f":"Import!E7558","v":"Confirm Instrument"},{"$f":"Import!E7627","v":"Confirm Instrument"},{"$f":"Import!E7696","v":"Confirm Instrument"},{"$f":"Import!E7765","v":"Confirm Instrument"},{"$f":"Import!E7834","v":"Confirm Instrument"},{"$f":"Import!E7903","v":"Confirm Instrument"},{"$f":"Import!E7972","v":"Confirm Instrument"},{"$f":"Import!E8041","v":"Confirm Instrument"},{"$f":"Import!E8110","v":"Confirm Instrument"},{"$f":"Import!E8179","v":"Confirm Instrument"},{"$f":"Import!E8248","v":"Confirm Instrument"},{"$f":"Import!E8317","v":"Confirm Instrument"},{"$f":"Import!E8386","v":"Confirm Instrument"},{"$f":"Import!E8455","v":"Confirm Instrument"},{"$f":"Import!E8524","v":"Confirm Instrument"},"Confirm Instrument","Confirm Instrument","Confirm Instrument","Confirm Instrument","Confirm Instrument","Confirm Instrument","Confirm Instrument","Confirm Instrument","Confirm Instrument","Confirm Instrument","Confirm Instrument","Confirm Instrument","Confirm Instrument","Confirm Instrument","Confirm Instrument","Confirm Instrument","Confirm Instrument","Confirm Instrument","Confirm Instrument","Confirm Instrument","Confirm Instrument","Confirm Instrument","Confirm Instrument","Confirm Instrument","Confirm Instrument"]
[null,"(AM.1) ","Beneficial Owner Governing Instrument (if other is chosen)",{"$f":"Import!E6869","v":0},{"$f":"Import!E6938","v":0},{"$f":"Import!E7007","v":0},{"$f":"Import!E7076","v":0},{"$f":"Import!E7145","v":0},{"$f":"Import!E7214","v":0},{"$f":"Import!E7283","v":0},{"$f":"Import!E7352","v":0},{"$f":"Import!E7421","v":0},{"$f":"Import!E7490","v":0},{"$f":"Import!E7559","v":0},{"$f":"Import!E7628","v":0},{"$f":"Import!E7697","v":0},{"$f":"Import!E7766","v":0},{"$f":"Import!E7835","v":0},{"$f":"Import!E7904","v":0},{"$f":"Import!E7973","v":0},{"$f":"Import!E8042","v":0},{"$f":"Import!E8111","v":0},{"$f":"Import!E8180","v":0},{"$f":"Import!E8249","v":0},{"$f":"Import!E8318","v":0},{"$f":"Import!E8387","v":0},{"$f":"Import!E8456","v":0},{"$f":"Import!E8525","v":0}]
[null,"(AN) ","Does Beneficial Owner Governing Instrument Contain Indemnity Provisions",{"$f":"Import!E6870","v":"Select Yes/No"},{"$f":"Import!E6939","v":"Select Yes/No"},{"$f":"Import!E7008","v":"Select Yes/No"},{"$f":"Import!E7077","v":"Select Yes/No"},{"$f":"Import!E7146","v":"Select Yes/No"},{"$f":"Import!E7215","v":"Select Yes/No"},{"$f":"Import!E7284","v":"Select Yes/No"},{"$f":"Import!E7353","v":"Select Yes/No"},{"$f":"Import!E7422","v":"Select Yes/No"},{"$f":"Import!E7491","v":"Select Yes/No"},{"$f":"Import!E7560","v":"Select Yes/No"},{"$f":"Import!E7629","v":"Select Yes/No"},{"$f":"Import!E7698","v":"Select Yes/No"},{"$f":"Import!E7767","v":"Select Yes/No"},{"$f":"Import!E7836","v":"Select Yes/No"},{"$f":"Import!E7905","v":"Select Yes/No"},{"$f":"Import!E7974","v":"Select Yes/No"},{"$f":"Import!E8043","v":"Select Yes/No"},{"$f":"Import!E8112","v":"Select Yes/No"},{"$f":"Import!E8181","v":"Select Yes/No"},{"$f":"Import!E8250","v":"Select Yes/No"},{"$f":"Import!E8319","v":"Select Yes/No"},{"$f":"Import!E8388","v":"Select Yes/No"},{"$f":"Import!E8457","v":"Select Yes/No"},{"$f":"Import!E8526","v":"Select Yes/No"},"Select Yes/No","Select Yes/No","Select Yes/No","Select Yes/No","Select Yes/No","Select Yes/No","Select Yes/No","Select Yes/No","Select Yes/No","Select Yes/No","Select Yes/No","Select Yes/No","Select Yes/No","Select Yes/No","Select Yes/No","Select Yes/No","Select Yes/No","Select Yes/No","Select Yes/No","Select Yes/No","Select Yes/No","Select Yes/No","Select Yes/No","Select Yes/No","Select Yes/No"]
[null,"(AO) ","Does Insurance/Reinsurance Agreement Contain Limited Recourse Language",{"$f":"Import!E6871","v":"Select Yes/No"},{"$f":"Import!E6940","v":"Select Yes/No"},{"$f":"Import!E7009","v":"Select Yes/No"},{"$f":"Import!E7078","v":"Select Yes/No"},{"$f":"Import!E7147","v":"Select Yes/No"},{"$f":"Import!E7216","v":"Select Yes/No"},{"$f":"Import!E7285","v":"Select Yes/No"},{"$f":"Import!E7354","v":"Select Yes/No"},{"$f":"Import!E7423","v":"Select Yes/No"},{"$f":"Import!E7492","v":"Select Yes/No"},{"$f":"Import!E7561","v":"Select Yes/No"},{"$f":"Import!E7630","v":"Select Yes/No"},{"$f":"Import!E7699","v":"Select Yes/No"},{"$f":"Import!E7768","v":"Select Yes/No"},{"$f":"Import!E7837","v":"Select Yes/No"},{"$f":"Import!E7906","v":"Select Yes/No"},{"$f":"Import!E7975","v":"Select Yes/No"},{"$f":"Import!E8044","v":"Select Yes/No"},{"$f":"Import!E8113","v":"Select Yes/No"},{"$f":"Import!E8182","v":"Select Yes/No"},{"$f":"Import!E8251","v":"Select Yes/No"},{"$f":"Import!E8320","v":"Select Yes/No"},{"$f":"Import!E8389","v":"Select Yes/No"},{"$f":"Import!E8458","v":"Select Yes/No"},{"$f":"Import!E8527","v":"Select Yes/No"},"Select Yes/No","Select Yes/No","Select Yes/No","Select Yes/No","Select Yes/No","Select Yes/No","Select Yes/No","Select Yes/No","Select Yes/No","Select Yes/No","Select Yes/No","Select Yes/No","Select Yes/No","Select Yes/No","Select Yes/No","Select Yes/No","Select Yes/No","Select Yes/No","Select Yes/No","Select Yes/No","Select Yes/No","Select Yes/No","Select Yes/No","Select Yes/No","Select Yes/No"]
[null,"(AP) ","What mitigates are in place with respect to Operational Risk",{"$f":"Import!E6872","v":"Confirm Mitigants & Attach Support"},{"$f":"Import!E6941","v":"Confirm Mitigants & Attach Support"},{"$f":"Import!E7010","v":"Confirm Mitigants & Attach Support"},{"$f":"Import!E7079","v":"Confirm Mitigants & Attach Support"},{"$f":"Import!E7148","v":"Confirm Mitigants & Attach Support"},{"$f":"Import!E7217","v":"Confirm Mitigants & Attach Support"},{"$f":"Import!E7286","v":"Confirm Mitigants & Attach Support"},{"$f":"Import!E7355","v":"Confirm Mitigants & Attach Support"},{"$f":"Import!E7424","v":"Confirm Mitigants & Attach Support"},{"$f":"Import!E7493","v":"Confirm Mitigants & Attach Support"},{"$f":"Import!E7562","v":"Confirm Mitigants & Attach Support"},{"$f":"Import!E7631","v":"Confirm Mitigants & Attach Support"},{"$f":"Import!E7700","v":"Confirm Mitigants & Attach Support"},{"$f":"Import!E7769","v":"Confirm Mitigants & Attach Support"},{"$f":"Import!E7838","v":"Confirm Mitigants & Attach Support"},{"$f":"Import!E7907","v":"Confirm Mitigants & Attach Support"},{"$f":"Import!E7976","v":"Confirm Mitigants & Attach Support"},{"$f":"Import!E8045","v":"Confirm Mitigants & Attach Support"},{"$f":"Import!E8114","v":"Confirm Mitigants & Attach Support"},{"$f":"Import!E8183","v":"Confirm Mitigants & Attach Support"},{"$f":"Import!E8252","v":"Confirm Mitigants & Attach Support"},{"$f":"Import!E8321","v":"Confirm Mitigants & Attach Support"},{"$f":"Import!E8390","v":"Confirm Mitigants & Attach Support"},{"$f":"Import!E8459","v":"Confirm Mitigants & Attach Support"},{"$f":"Import!E8528","v":"Confirm Mitigants & Attach Support"},"Confirm Mitigants & Attach Support","Confirm Mitigants & Attach Support","Confirm Mitigants & Attach Support","Confirm Mitigants & Attach Support","Confirm Mitigants & Attach Support","Confirm Mitigants & Attach Support","Confirm Mitigants & Attach Support","Confirm Mitigants & Attach Support","Confirm Mitigants & Attach Support","Confirm Mitigants & Attach Support","Confirm Mitigants & Attach Support","Confirm Mitigants & Attach Support","Confirm Mitigants & Attach Support","Confirm Mitigants & Attach Support","Confirm Mitigants & Attach Support","Confirm Mitigants & Attach Support","Confirm Mitigants & Attach Support","Confirm Mitigants & Attach Support","Confirm Mitigants & Attach Support","Confirm Mitigants & Attach Support","Confirm Mitigants & Attach Support","Confirm Mitigants & Attach Support","Confirm Mitigants & Attach Support","Confirm Mitigants & Attach Support","Confirm Mitigants & Attach Support"]
[]
[null,"(AQ) ","Lines of Business Written by Premium Written"]
[null,"(i)","Statutory Lines of Business Written ",{"$f":"Import!E6873","v":"Select Line of Business"},{"$f":"Import!E6942","v":"Select Line of Business"},{"$f":"Import!E7011","v":"Select Line of Business"},{"$f":"Import!E7080","v":"Select Line of Business"},{"$f":"Import!E7149","v":"Select Line of Business"},{"$f":"Import!E7218","v":"Select Line of Business"},{"$f":"Import!E7287","v":"Select Line of Business"},{"$f":"Import!E7356","v":"Select Line of Business"},{"$f":"Import!E7425","v":"Select Line of Business"},{"$f":"Import!E7494","v":"Select Line of Business"},{"$f":"Import!E7563","v":"Select Line of Business"},{"$f":"Import!E7632","v":"Select Line of Business"},{"$f":"Import!E7701","v":"Select Line of Business"},{"$f":"Import!E7770","v":"Select Line of Business"},{"$f":"Import!E7839","v":"Select Line of Business"},{"$f":"Import!E7908","v":"Select Line of Business"},{"$f":"Import!E7977","v":"Select Line of Business"},{"$f":"Import!E8046","v":"Select Line of Business"},{"$f":"Import!E8115","v":"Select Line of Business"},{"$f":"Import!E8184","v":"Select Line of Business"},{"$f":"Import!E8253","v":"Select Line of Business"},{"$f":"Import!E8322","v":"Select Line of Business"},{"$f":"Import!E8391","v":"Select Line of Business"},{"$f":"Import!E8460","v":"Select Line of Business"},{"$f":"Import!E8529","v":"Select Line of Business"},"Select Line of Business","Select Line of Business","Select Line of Business","Select Line of Business","Select Line of Business","Select Line of Business","Select Line of Business","Select Line of Business","Select Line of Business","Select Line of Business","Select Line of Business","Select Line of Business","Select Line of Business","Select Line of Business","Select Line of Business","Select Line of Business","Select Line of Business","Select Line of Business","Select Line of Business","Select Line of Business","Select Line of Business","Select Line of Business","Select Line of Business","Select Line of Business","Select Line of Business",null,null,null,{"$f":"Import!E8555","v":"Select Line of Business"}]
[null,null,"Gross Premiums Written",{"$f":"Import!E6874","v":0},{"$f":"Import!E6943","v":0},{"$f":"Import!E7012","v":0},{"$f":"Import!E7081","v":0},{"$f":"Import!E7150","v":0},{"$f":"Import!E7219","v":0},{"$f":"Import!E7288","v":0},{"$f":"Import!E7357","v":0},{"$f":"Import!E7426","v":0},{"$f":"Import!E7495","v":0},{"$f":"Import!E7564","v":0},{"$f":"Import!E7633","v":0},{"$f":"Import!E7702","v":0},{"$f":"Import!E7771","v":0},{"$f":"Import!E7840","v":0},{"$f":"Import!E7909","v":0},{"$f":"Import!E7978","v":0},{"$f":"Import!E8047","v":0},{"$f":"Import!E8116","v":0},{"$f":"Import!E8185","v":0},{"$f":"Import!E8254","v":0},{"$f":"Import!E8323","v":0},{"$f":"Import!E8392","v":0},{"$f":"Import!E8461","v":0},{"$f":"Import!E8530","v":0},null,null,null,null,null,null,null,null,null,null,null,null,null,null,null,null,null,null,null,null,null,null,null,null,null,null,null,null,{"$f":"Import!E8556","v":0}]
[null,null,"Reinsurance Ceded",{"$f":"Import!E6875","v":0},{"$f":"Import!E6944","v":0},{"$f":"Import!E7013","v":0},{"$f":"Import!E7082","v":0},{"$f":"Import!E7151","v":0},{"$f":"Import!E7220","v":0},{"$f":"Import!E7289","v":0},{"$f":"Import!E7358","v":0},{"$f":"Import!E7427","v":0},{"$f":"Import!E7496","v":0},{"$f":"Import!E7565","v":0},{"$f":"Import!E7634","v":0},{"$f":"Import!E7703","v":0},{"$f":"Import!E7772","v":0},{"$f":"Import!E7841","v":0},{"$f":"Import!E7910","v":0},{"$f":"Import!E7979","v":0},{"$f":"Import!E8048","v":0},{"$f":"Import!E8117","v":0},{"$f":"Import!E8186","v":0},{"$f":"Import!E8255","v":0},{"$f":"Import!E8324","v":0},{"$f":"Import!E8393","v":0},{"$f":"Import!E8462","v":0},{"$f":"Import!E8531","v":0},null,null,null,null,null,null,null,null,null,null,null,null,null,null,null,null,null,null,null,null,null,null,null,null,null,null,null,null,{"$f":"Import!E8557","v":0}]
[null,null,"Net Premiums Written",{"$f":"D75-D76","v":0},{"$f":"E75-E76","v":0},0,0,0,0,0,0,0,0,0,0,0,0,0,0,0,0,0,0,0,0,0,0,0,0,0,0,0,0,0,0,0,0,0,0,0,0,0,0,0,0,0,0,0,0,0,0,0,0,null,null,null,{"$f":"BE75-BE76","v":0}]
[null,"(ii)","Statutory Lines of Business Written ",{"$f":"Import!E6877","v":"Select Line of Business"},{"$f":"Import!E6946","v":"Select Line of Business"},{"$f":"Import!E7015","v":"Select Line of Business"},{"$f":"Import!E7084","v":"Select Line of Business"},{"$f":"Import!E7153","v":"Select Line of Business"},{"$f":"Import!E7222","v":"Select Line of Business"},{"$f":"Import!E7291","v":"Select Line of Business"},{"$f":"Import!E7360","v":"Select Line of Business"},{"$f":"Import!E7429","v":"Select Line of Business"},{"$f":"Import!E7498","v":"Select Line of Business"},{"$f":"Import!E7567","v":"Select Line of Business"},{"$f":"Import!E7636","v":"Select Line of Business"},{"$f":"Import!E7705","v":"Select Line of Business"},{"$f":"Import!E7774","v":"Select Line of Business"},{"$f":"Import!E7843","v":"Select Line of Business"},{"$f":"Import!E7912","v":"Select Line of Business"},{"$f":"Import!E7981","v":"Select Line of Business"},{"$f":"Import!E8050","v":"Select Line of Business"},{"$f":"Import!E8119","v":"Select Line of Business"},{"$f":"Import!E8188","v":"Select Line of Business"},{"$f":"Import!E8257","v":"Select Line of Business"},{"$f":"Import!E8326","v":"Select Line of Business"},{"$f":"Import!E8395","v":"Select Line of Business"},{"$f":"Import!E8464","v":"Select Line of Business"},{"$f":"Import!E8533","v":"Select Line of Business"},"Select Line of Business","Select Line of Business","Select Line of Business","Select Line of Business","Select Line of Business","Select Line of Business","Select Line of Business","Select Line of Business","Select Line of Business","Select Line of Business","Select Line of Business","Select Line of Business","Select Line of Business","Select Line of Business","Select Line of Business","Select Line of Business","Select Line of Business","Select Line of Business","Select Line of Business","Select Line of Business","Select Line of Business","Select Line of Business","Select Line of Business","Select Line of Business","Select Line of Business",null,null,null,{"$f":"Import!E8559","v":"Select Line of Business"}]
[null,null,"Gross Premiums Written",{"$f":"Import!E6878","v":0},{"$f":"Import!E6947","v":0},{"$f":"Import!E7016","v":0},{"$f":"Import!E7085","v":0},{"$f":"Import!E7154","v":0},{"$f":"Import!E7223","v":0},{"$f":"Import!E7292","v":0},{"$f":"Import!E7361","v":0},{"$f":"Import!E7430","v":0},{"$f":"Import!E7499","v":0},{"$f":"Import!E7568","v":0},{"$f":"Import!E7637","v":0},{"$f":"Import!E7706","v":0},{"$f":"Import!E7775","v":0},{"$f":"Import!E7844","v":0},{"$f":"Import!E7913","v":0},{"$f":"Import!E7982","v":0},{"$f":"Import!E8051","v":0},{"$f":"Import!E8120","v":0},{"$f":"Import!E8189","v":0},{"$f":"Import!E8258","v":0},{"$f":"Import!E8327","v":0},{"$f":"Import!E8396","v":0},{"$f":"Import!E8465","v":0},{"$f":"Import!E8534","v":0},null,null,null,null,null,null,null,null,null,null,null,null,null,null,null,null,null,null,null,null,null,null,null,null,null,null,null,null,{"$f":"Import!E8560","v":0}]
[null,null,"Reinsurance Ceded",{"$f":"Import!E6879","v":0},{"$f":"Import!E6948","v":0},{"$f":"Import!E7017","v":0},{"$f":"Import!E7086","v":0},{"$f":"Import!E7155","v":0},{"$f":"Import!E7224","v":0},{"$f":"Import!E7293","v":0},{"$f":"Import!E7362","v":0},{"$f":"Import!E7431","v":0},{"$f":"Import!E7500","v":0},{"$f":"Import!E7569","v":0},{"$f":"Import!E7638","v":0},{"$f":"Import!E7707","v":0},{"$f":"Import!E7776","v":0},{"$f":"Import!E7845","v":0},{"$f":"Import!E7914","v":0},{"$f":"Import!E7983","v":0},{"$f":"Import!E8052","v":0},{"$f":"Import!E8121","v":0},{"$f":"Import!E8190","v":0},{"$f":"Import!E8259","v":0},{"$f":"Import!E8328","v":0},{"$f":"Import!E8397","v":0},{"$f":"Import!E8466","v":0},{"$f":"Import!E8535","v":0},null,null,null,null,null,null,null,null,null,null,null,null,null,null,null,null,null,null,null,null,null,null,null,null,null,null,null,null,{"$f":"Import!E8561","v":0}]
[null,null,"Net Premiums Written",{"$f":"D79-D80","v":0},{"$f":"E79-E80","v":0},{"$f":"F79-F80","v":0},{"$f":"G79-G80","v":0},{"$f":"H79-H80","v":0},0,0,0,0,0,0,0,0,0,0,0,0,0,0,0,0,0,0,0,0,{"$f":"AC79-AC80","v":0},{"$f":"AD79-AD80","v":0},{"$f":"AE79-AE80","v":0},{"$f":"AF79-AF80","v":0},{"$f":"AG79-AG80","v":0},{"$f":"AH79-AH80","v":0},{"$f":"AI79-AI80","v":0},{"$f":"AJ79-AJ80","v":0},{"$f":"AK79-AK80","v":0},{"$f":"AL79-AL80","v":0},{"$f":"AM79-AM80","v":0},{"$f":"AN79-AN80","v":0},{"$f":"AO79-AO80","v":0},{"$f":"AP79-AP80","v":0},{"$f":"AQ79-AQ80","v":0},{"$f":"AR79-AR80","v":0},{"$f":"AS79-AS80","v":0},{"$f":"AT79-AT80","v":0},{"$f":"AU79-AU80","v":0},{"$f":"AV79-AV80","v":0},{"$f":"AW79-AW80","v":0},{"$f":"AX79-AX80","v":0},{"$f":"AY79-AY80","v":0},{"$f":"AZ79-AZ80","v":0},{"$f":"BA79-BA80","v":0},null,null,null,{"$f":"BE79-BE80","v":0}]
[null,"(iii)","Statutory Lines of Business Written ",{"$f":"Import!E6881","v":"Select Line of Business"},{"$f":"Import!E6950","v":"Select Line of Business"},{"$f":"Import!E7019","v":"Select Line of Business"},{"$f":"Import!E7088","v":"Select Line of Business"},{"$f":"Import!E7157","v":"Select Line of Business"},{"$f":"Import!E7226","v":"Select Line of Business"},{"$f":"Import!E7295","v":"Select Line of Business"},{"$f":"Import!E7364","v":"Select Line of Business"},{"$f":"Import!E7433","v":"Select Line of Business"},{"$f":"Import!E7502","v":"Select Line of Business"},{"$f":"Import!E7571","v":"Select Line of Business"},{"$f":"Import!E7640","v":"Select Line of Business"},{"$f":"Import!E7709","v":"Select Line of Business"},{"$f":"Import!E7778","v":"Select Line of Business"},{"$f":"Import!E7847","v":"Select Line of Business"},{"$f":"Import!E7916","v":"Select Line of Business"},{"$f":"Import!E7985","v":"Select Line of Business"},{"$f":"Import!E8054","v":"Select Line of Business"},{"$f":"Import!E8123","v":"Select Line of Business"},{"$f":"Import!E8192","v":"Select Line of Business"},{"$f":"Import!E8261","v":"Select Line of Business"},{"$f":"Import!E8330","v":"Select Line of Business"},{"$f":"Import!E8399","v":"Select Line of Business"},{"$f":"Import!E8468","v":"Select Line of Business"},{"$f":"Import!E8537","v":"Select Line of Business"},"Select Line of Business","Select Line of Business","Select Line of Business","Select Line of Business","Select Line of Business","Select Line of Business","Select Line of Business","Select Line of Business","Select Line of Business","Select Line of Business","Select Line of Business","Select Line of Business","Select Line of Business","Select Line of Business","Select Line of Business","Select Line of Business","Select Line of Business","Select Line of Business","Select Line of Business","Select Line of Business","Select Line of Business","Select Line of Business","Select Line of Business","Select Line of Business","Select Line of Business",null,null,null,{"$f":"Import!E8563","v":"Select Line of Business"}]
[null,null,"Gross Premiums Written",{"$f":"Import!E6882","v":0},{"$f":"Import!E6951","v":0},{"$f":"Import!E7020","v":0},{"$f":"Import!E7089","v":0},{"$f":"Import!E7158","v":0},{"$f":"Import!E7227","v":0},{"$f":"Import!E7296","v":0},{"$f":"Import!E7365","v":0},{"$f":"Import!E7434","v":0},{"$f":"Import!E7503","v":0},{"$f":"Import!E7572","v":0},{"$f":"Import!E7641","v":0},{"$f":"Import!E7710","v":0},{"$f":"Import!E7779","v":0},{"$f":"Import!E7848","v":0},{"$f":"Import!E7917","v":0},{"$f":"Import!E7986","v":0},{"$f":"Import!E8055","v":0},{"$f":"Import!E8124","v":0},{"$f":"Import!E8193","v":0},{"$f":"Import!E8262","v":0},{"$f":"Import!E8331","v":0},{"$f":"Import!E8400","v":0},{"$f":"Import!E8469","v":0},{"$f":"Import!E8538","v":0},null,null,null,null,null,null,null,null,null,null,null,null,null,null,null,null,null,null,null,null,null,null,null,null,null,null,null,null,{"$f":"Import!E8564","v":0}]
[null,null,"Reinsurance Ceded",{"$f":"Import!E6883","v":0},{"$f":"Import!E6952","v":0},{"$f":"Import!E7021","v":0},{"$f":"Import!E7090","v":0},{"$f":"Import!E7159","v":0},{"$f":"Import!E7228","v":0},{"$f":"Import!E7297","v":0},{"$f":"Import!E7366","v":0},{"$f":"Import!E7435","v":0},{"$f":"Import!E7504","v":0},{"$f":"Import!E7573","v":0},{"$f":"Import!E7642","v":0},{"$f":"Import!E7711","v":0},{"$f":"Import!E7780","v":0},{"$f":"Import!E7849","v":0},{"$f":"Import!E7918","v":0},{"$f":"Import!E7987","v":0},{"$f":"Import!E8056","v":0},{"$f":"Import!E8125","v":0},{"$f":"Import!E8194","v":0},{"$f":"Import!E8263","v":0},{"$f":"Import!E8332","v":0},{"$f":"Import!E8401","v":0},{"$f":"Import!E8470","v":0},{"$f":"Import!E8539","v":0},null,null,null,null,null,null,null,null,null,null,null,null,null,null,null,null,null,null,null,null,null,null,null,null,null,null,null,null,{"$f":"Import!E8565","v":0}]
[null,null,"Net Premiums Written",{"$f":"D83-D84","v":0},{"$f":"E83-E84","v":0},{"$f":"F83-F84","v":0},{"$f":"G83-G84","v":0},{"$f":"H83-H84","v":0},0,0,0,0,0,0,0,0,0,0,0,0,0,0,0,0,0,0,0,0,{"$f":"AC83-AC84","v":0},{"$f":"AD83-AD84","v":0},{"$f":"AE83-AE84","v":0},{"$f":"AF83-AF84","v":0},{"$f":"AG83-AG84","v":0},{"$f":"AH83-AH84","v":0},{"$f":"AI83-AI84","v":0},{"$f":"AJ83-AJ84","v":0},{"$f":"AK83-AK84","v":0},{"$f":"AL83-AL84","v":0},{"$f":"AM83-AM84","v":0},{"$f":"AN83-AN84","v":0},{"$f":"AO83-AO84","v":0},{"$f":"AP83-AP84","v":0},{"$f":"AQ83-AQ84","v":0},{"$f":"AR83-AR84","v":0},{"$f":"AS83-AS84","v":0},{"$f":"AT83-AT84","v":0},{"$f":"AU83-AU84","v":0},{"$f":"AV83-AV84","v":0},{"$f":"AW83-AW84","v":0},{"$f":"AX83-AX84","v":0},{"$f":"AY83-AY84","v":0},{"$f":"AZ83-AZ84","v":0},{"$f":"BA83-BA84","v":0},null,null,null,0]
[null,"(iv)","Statutory Lines of Business Written ",{"$f":"Import!E6885","v":"Select Line of Business"},{"$f":"Import!E6954","v":"Select Line of Business"},{"$f":"Import!E7023","v":"Select Line of Business"},{"$f":"Import!E7092","v":"Select Line of Business"},{"$f":"Import!E7161","v":"Select Line of Business"},{"$f":"Import!E7230","v":"Select Line of Business"},{"$f":"Import!E7299","v":"Select Line of Business"},{"$f":"Import!E7368","v":"Select Line of Business"},{"$f":"Import!E7437","v":"Select Line of Business"},{"$f":"Import!E7506","v":"Select Line of Business"},{"$f":"Import!E7575","v":"Select Line of Business"},{"$f":"Import!E7644","v":"Select Line of Business"},{"$f":"Import!E7713","v":"Select Line of Business"},{"$f":"Import!E7782","v":"Select Line of Business"},{"$f":"Import!E7851","v":"Select Line of Business"},{"$f":"Import!E7920","v":"Select Line of Business"},{"$f":"Import!E7989","v":"Select Line of Business"},{"$f":"Import!E8058","v":"Select Line of Business"},{"$f":"Import!E8127","v":"Select Line of Business"},{"$f":"Import!E8196","v":"Select Line of Business"},{"$f":"Import!E8265","v":"Select Line of Business"},{"$f":"Import!E8334","v":"Select Line of Business"},{"$f":"Import!E8403","v":"Select Line of Business"},{"$f":"Import!E8472","v":"Select Line of Business"},{"$f":"Import!E8541","v":"Select Line of Business"},"Select Line of Business","Select Line of Business","Select Line of Business","Select Line of Business","Select Line of Business","Select Line of Business","Select Line of Business","Select Line of Business","Select Line of Business","Select Line of Business","Select Line of Business","Select Line of Business","Select Line of Business","Select Line of Business","Select Line of Business","Select Line of Business","Select Line of Business","Select Line of Business","Select Line of Business","Select Line of Business","Select Line of Business","Select Line of Business","Select Line of Business","Select Line of Business","Select Line of Business",null,null,null,{"$f":"Import!E8567","v":"Select Line of Business"}]
[null,null,"Gross Premiums Written",{"$f":"Import!E6886","v":0},{"$f":"Import!E6955","v":0},{"$f":"Import!E7024","v":0},{"$f":"Import!E7093","v":0},{"$f":"Import!E7162","v":0},{"$f":"Import!E7231","v":0},{"$f":"Import!E7300","v":0},{"$f":"Import!E7369","v":0},{"$f":"Import!E7438","v":0},{"$f":"Import!E7507","v":0},{"$f":"Import!E7576","v":0},{"$f":"Import!E7645","v":0},{"$f":"Import!E7714","v":0},{"$f":"Import!E7783","v":0},{"$f":"Import!E7852","v":0},{"$f":"Import!E7921","v":0},{"$f":"Import!E7990","v":0},{"$f":"Import!E8059","v":0},{"$f":"Import!E8128","v":0},{"$f":"Import!E8197","v":0},{"$f":"Import!E8266","v":0},{"$f":"Import!E8335","v":0},{"$f":"Import!E8404","v":0},{"$f":"Import!E8473","v":0},{"$f":"Import!E8542","v":0},null,null,null,null,null,null,null,null,null,null,null,null,null,null,null,null,null,null,null,null,null,null,null,null,null,null,null,null,{"$f":"Import!E8568","v":0}]
[null,null,"Reinsurance Ceded",{"$f":"Import!E6887","v":0},{"$f":"Import!E6956","v":0},{"$f":"Import!E7025","v":0},{"$f":"Import!E7094","v":0},{"$f":"Import!E7163","v":0},{"$f":"Import!E7232","v":0},{"$f":"Import!E7301","v":0},{"$f":"Import!E7370","v":0},{"$f":"Import!E7439","v":0},{"$f":"Import!E7508","v":0},{"$f":"Import!E7577","v":0},{"$f":"Import!E7646","v":0},{"$f":"Import!E7715","v":0},{"$f":"Import!E7784","v":0},{"$f":"Import!E7853","v":0},{"$f":"Import!E7922","v":0},{"$f":"Import!E7991","v":0},{"$f":"Import!E8060","v":0},{"$f":"Import!E8129","v":0},{"$f":"Import!E8198","v":0},{"$f":"Import!E8267","v":0},{"$f":"Import!E8336","v":0},{"$f":"Import!E8405","v":0},{"$f":"Import!E8474","v":0},{"$f":"Import!E8543","v":0},null,null,null,null,null,null,null,null,null,null,null,null,null,null,null,null,null,null,null,null,null,null,null,null,null,null,null,null,{"$f":"Import!E8569","v":0}]
[null,null,"Net Premiums Written",{"$f":"D87-D88","v":0},{"$f":"E87-E88","v":0},{"$f":"F87-F88","v":0},{"$f":"G87-G88","v":0},{"$f":"H87-H88","v":0},0,0,0,0,0,0,0,0,0,0,0,0,0,0,0,0,0,0,0,0,{"$f":"AC87-AC88","v":0},{"$f":"AD87-AD88","v":0},{"$f":"AE87-AE88","v":0},{"$f":"AF87-AF88","v":0},{"$f":"AG87-AG88","v":0},{"$f":"AH87-AH88","v":0},{"$f":"AI87-AI88","v":0},{"$f":"AJ87-AJ88","v":0},{"$f":"AK87-AK88","v":0},{"$f":"AL87-AL88","v":0},{"$f":"AM87-AM88","v":0},{"$f":"AN87-AN88","v":0},{"$f":"AO87-AO88","v":0},{"$f":"AP87-AP88","v":0},{"$f":"AQ87-AQ88","v":0},{"$f":"AR87-AR88","v":0},{"$f":"AS87-AS88","v":0},{"$f":"AT87-AT88","v":0},{"$f":"AU87-AU88","v":0},{"$f":"AV87-AV88","v":0},{"$f":"AW87-AW88","v":0},{"$f":"AX87-AX88","v":0},{"$f":"AY87-AY88","v":0},{"$f":"AZ87-AZ88","v":0},{"$f":"BA87-BA88","v":0},null,null,null,0]
[null,"(v)","Statutory Lines of Business Written ",{"$f":"Import!E6889","v":"Select Line of Business"},{"$f":"Import!E6958","v":"Select Line of Business"},{"$f":"Import!E7027","v":"Select Line of Business"},{"$f":"Import!E7096","v":"Select Line of Business"},{"$f":"Import!E7165","v":"Select Line of Business"},{"$f":"Import!E7234","v":"Select Line of Business"},{"$f":"Import!E7303","v":"Select Line of Business"},{"$f":"Import!E7372","v":"Select Line of Business"},{"$f":"Import!E7441","v":"Select Line of Business"},{"$f":"Import!E7510","v":"Select Line of Business"},{"$f":"Import!E7579","v":"Select Line of Business"},{"$f":"Import!E7648","v":"Select Line of Business"},{"$f":"Import!E7717","v":"Select Line of Business"},{"$f":"Import!E7786","v":"Select Line of Business"},{"$f":"Import!E7855","v":"Select Line of Business"},{"$f":"Import!E7924","v":"Select Line of Business"},{"$f":"Import!E7993","v":"Select Line of Business"},{"$f":"Import!E8062","v":"Select Line of Business"},{"$f":"Import!E8131","v":"Select Line of Business"},{"$f":"Import!E8200","v":"Select Line of Business"},{"$f":"Import!E8269","v":"Select Line of Business"},{"$f":"Import!E8338","v":"Select Line of Business"},{"$f":"Import!E8407","v":"Select Line of Business"},{"$f":"Import!E8476","v":"Select Line of Business"},{"$f":"Import!E8545","v":"Select Line of Business"},"Select Line of Business","Select Line of Business","Select Line of Business","Select Line of Business","Select Line of Business","Select Line of Business","Select Line of Business","Select Line of Business","Select Line of Business","Select Line of Business","Select Line of Business","Select Line of Business","Select Line of Business","Select Line of Business","Select Line of Business","Select Line of Business","Select Line of Business","Select Line of Business","Select Line of Business","Select Line of Business","Select Line of Business","Select Line of Business","Select Line of Business","Select Line of Business","Select Line of Business",null,null,null,{"$f":"Import!E8571","v":"Select Line of Business"}]
[null,null,"Gross Premiums Written",{"$f":"Import!E6890","v":0},{"$f":"Import!E6959","v":0},{"$f":"Import!E7028","v":0},{"$f":"Import!E7097","v":0},{"$f":"Import!E7166","v":0},{"$f":"Import!E7235","v":0},{"$f":"Import!E7304","v":0},{"$f":"Import!E7373","v":0},{"$f":"Import!E7442","v":0},{"$f":"Import!E7511","v":0},{"$f":"Import!E7580","v":0},{"$f":"Import!E7649","v":0},{"$f":"Import!E7718","v":0},{"$f":"Import!E7787","v":0},{"$f":"Import!E7856","v":0},{"$f":"Import!E7925","v":0},{"$f":"Import!E7994","v":0},{"$f":"Import!E8063","v":0},{"$f":"Import!E8132","v":0},{"$f":"Import!E8201","v":0},{"$f":"Import!E8270","v":0},{"$f":"Import!E8339","v":0},{"$f":"Import!E8408","v":0},{"$f":"Import!E8477","v":0},{"$f":"Import!E8546","v":0},null,null,null,null,null,null,null,null,null,null,null,null,null,null,null,null,null,null,null,null,null,null,null,null,null,null,null,null,{"$f":"Import!E8572","v":0}]
[null,null,"Reinsurance Ceded",{"$f":"Import!E6891","v":0},{"$f":"Import!E6960","v":0},{"$f":"Import!E7029","v":0},{"$f":"Import!E7098","v":0},{"$f":"Import!E7167","v":0},{"$f":"Import!E7236","v":0},{"$f":"Import!E7305","v":0},{"$f":"Import!E7374","v":0},{"$f":"Import!E7443","v":0},{"$f":"Import!E7512","v":0},{"$f":"Import!E7581","v":0},{"$f":"Import!E7650","v":0},{"$f":"Import!E7719","v":0},{"$f":"Import!E7788","v":0},{"$f":"Import!E7857","v":0},{"$f":"Import!E7926","v":0},{"$f":"Import!E7995","v":0},{"$f":"Import!E8064","v":0},{"$f":"Import!E8133","v":0},{"$f":"Import!E8202","v":0},{"$f":"Import!E8271","v":0},{"$f":"Import!E8340","v":0},{"$f":"Import!E8409","v":0},{"$f":"Import!E8478","v":0},{"$f":"Import!E8547","v":0},null,null,null,null,null,null,null,null,null,null,null,null,null,null,null,null,null,null,null,null,null,null,null,null,null,null,null,null,{"$f":"Import!E8573","v":0}]
[null,null,"Net Premiums Written",{"$f":"D91-D92","v":0},{"$f":"E91-E92","v":0},{"$f":"F91-F92","v":0},{"$f":"G91-G92","v":0},{"$f":"H91-H92","v":0},0,0,0,0,0,0,0,0,0,0,0,0,0,0,0,0,0,0,0,0,{"$f":"AC91-AC92","v":0},{"$f":"AD91-AD92","v":0},{"$f":"AE91-AE92","v":0},{"$f":"AF91-AF92","v":0},{"$f":"AG91-AG92","v":0},{"$f":"AH91-AH92","v":0},{"$f":"AI91-AI92","v":0},{"$f":"AJ91-AJ92","v":0},{"$f":"AK91-AK92","v":0},{"$f":"AL91-AL92","v":0},{"$f":"AM91-AM92","v":0},{"$f":"AN91-AN92","v":0},{"$f":"AO91-AO92","v":0},{"$f":"AP91-AP92","v":0},{"$f":"AQ91-AQ92","v":0},{"$f":"AR91-AR92","v":0},{"$f":"AS91-AS92","v":0},{"$f":"AT91-AT92","v":0},{"$f":"AU91-AU92","v":0},{"$f":"AV91-AV92","v":0},{"$f":"AW91-AW92","v":0},{"$f":"AX91-AX92","v":0},{"$f":"AY91-AY92","v":0},{"$f":"AZ91-AZ92","v":0},{"$f":"BA91-BA92","v":0},null,null,null,0]
[null,null,"Total Gross Premiums Written",{"$f":"D75+D79+D83+D87+D91","v":0},{"$f":"E75+E79+E83+E87+E91","v":0},0,0,0,0,0,0,0,0,0,0,0,0,0,0,0,0,0,0,0,0,0,0,0,0,0,0,0,0,0,0,0,0,0,0,0,0,0,0,0,0,0,0,0,0,0,0,0,0,null,{"$f":"SUM(D94:BA94)","v":0},null,{"$f":"BE75+BE79+BE83+BE87+BE91","v":0}]
[null,null,"Total Net Premiums Written",{"$f":"D77+D81+D85+D89+D93","v":0},{"$f":"E77+E81+E85+E89+E93","v":0},0,0,0,0,0,0,0,0,0,0,0,0,0,0,0,0,0,0,0,0,0,0,0,0,0,0,0,0,0,0,0,0,0,0,0,0,0,0,0,0,0,0,0,0,0,0,0,0,null,{"$f":"SUM(D95:BA95)","v":0},null,{"$f":"BE76+BE80+BE84+BE88+BE92","v":0}]
[]
[null,null,"Check Gross Premiums Written",{"$f":"ROUND((D30-D94),0)","v":0},0,0,0,0,0,0,0,0,0,0,0,0,0,0,0,0,0,0,0,0,0,0,0,0,0,0,0,0,0,0,0,{"$f":"ROUND((AJ30-AJ94),0)","v":0},0,0,0,0,0,0,0,0,0,0,0,0,0,0,0,0,0,null,null,null,{"$f":"ROUND((BE30-BE94),0)","v":0}]
[null,null,"Check Gross Premiums Written",{"$f":"ROUND((D31-D95),0)","v":0},0,0,0,0,0,0,0,0,0,0,0,0,0,0,0,0,0,0,0,0,0,0,0,0,0,0,0,0,0,0,0,{"$f":"ROUND((AJ31-AJ95),0)","v":0},0,0,0,0,0,0,0,0,0,0,0,0,0,0,0,0,0,null,null,null,{"$f":"ROUND((BE31-BE95),0)","v":0}]
[]
[null,null,"Notional Minimum Margin of Solvency Test"]
[null,null,"Test A $120,000 (General Account Only)"]
[null,null,"Test B 20% for first $6 Million; 10% of Net Premiums Written in Excess",{"$f":"IF(D95>0,IF(D95>6000,1200+((D95-6000)*10%),D95*20%),\"\")","v":""},{"$f":"IF(E95>0,IF(E95>6000,1200+((E95-6000)*10%),E95*20%),\"\")","v":""},"","","","","","","","","","","","","","","","","","","","","","","","","","","","","","","","","","","","","","","","","","","","","","","","",null,null,null,{"$f":"IF(BE95>0,IF(BE95>6000,1200+((BE95-6000)*10%),BE95*20%),\"\")","v":""}]
[null,null,"Test C 10% of Net Loss Provisions",{"$f":"IF(D22>0,D22*10%,\"\")","v":""},"","","","","","","","","","","","","","","","","","","","","","","","","","","","","","","",{"$f":"IF(AJ22>0,AJ22*10%,\"\")","v":""},"","","","","","","","","","","","","","","","","",null,null,null,{"$f":"IF(BE22>0,BE22*10%,\"\")","v":""}]
[]
[null,null,"Notional Minimum Margin of Solvency ",{"$f":"MAX(D102,D103)","v":0},{"$f":"MAX(E102,E103)","v":0},0,0,0,0,0,0,0,0,0,0,0,0,0,0,0,0,0,0,0,0,0,0,0,0,0,0,0,0,0,0,0,0,0,0,0,0,0,0,0,0,0,0,0,0,0,0,0,0,null,null,null,0]
[]
[null,null,"Notional Enhanced Capital Requirement"]
[null,null,"Summary - ECR",{"$f":"IF(D21=\"\",\"\",Summary!$G$110)","v":0},{"$f":"IF(E21=\"\",\"\",Summary!$G$110)","v":0},{"$f":"IF(F21=\"\",\"\",Summary!$G$110)","v":0},{"$f":"IF(G21=\"\",\"\",Summary!$G$110)","v":0},{"$f":"IF(H21=\"\",\"\",Summary!$G$110)","v":0},{"$f":"IF(I21=\"\",\"\",Summary!$G$110)","v":0},{"$f":"IF(J21=\"\",\"\",Summary!$G$110)","v":0},{"$f":"IF(K21=\"\",\"\",Summary!$G$110)","v":0},{"$f":"IF(L21=\"\",\"\",Summary!$G$110)","v":0},{"$f":"IF(M21=\"\",\"\",Summary!$G$110)","v":0},{"$f":"IF(N21=\"\",\"\",Summary!$G$110)","v":0},{"$f":"IF(O21=\"\",\"\",Summary!$G$110)","v":0},{"$f":"IF(P21=\"\",\"\",Summary!$G$110)","v":0},{"$f":"IF(Q21=\"\",\"\",Summary!$G$110)","v":0},{"$f":"IF(R21=\"\",\"\",Summary!$G$110)","v":0},{"$f":"IF(S21=\"\",\"\",Summary!$G$110)","v":0},{"$f":"IF(T21=\"\",\"\",Summary!$G$110)","v":0},{"$f":"IF(U21=\"\",\"\",Summary!$G$110)","v":0},{"$f":"IF(V21=\"\",\"\",Summary!$G$110)","v":0},{"$f":"IF(W21=\"\",\"\",Summary!$G$110)","v":0},{"$f":"IF(X21=\"\",\"\",Summary!$G$110)","v":0},{"$f":"IF(Y21=\"\",\"\",Summary!$G$110)","v":0},{"$f":"IF(Z21=\"\",\"\",Summary!$G$110)","v":0},{"$f":"IF(AA21=\"\",\"\",Summary!$G$110)","v":0},{"$f":"IF(AB21=\"\",\"\",Summary!$G$110)","v":0},{"$f":"IF(AC21=\"\",\"\",Summary!$G$110)","v":""},{"$f":"IF(AD21=\"\",\"\",Summary!$G$110)","v":""},{"$f":"IF(AE21=\"\",\"\",Summary!$G$110)","v":""},{"$f":"IF(AF21=\"\",\"\",Summary!$G$110)","v":""},{"$f":"IF(AG21=\"\",\"\",Summary!$G$110)","v":""},{"$f":"IF(AH21=\"\",\"\",Summary!$G$110)","v":""},{"$f":"IF(AI21=\"\",\"\",Summary!$G$110)","v":""},{"$f":"IF(AJ21=\"\",\"\",Summary!$G$110)","v":""},{"$f":"IF(AK21=\"\",\"\",Summary!$G$110)","v":""},{"$f":"IF(AL21=\"\",\"\",Summary!$G$110)","v":""},{"$f":"IF(AM21=\"\",\"\",Summary!$G$110)","v":""},{"$f":"IF(AN21=\"\",\"\",Summary!$G$110)","v":""},{"$f":"IF(AO21=\"\",\"\",Summary!$G$110)","v":""},{"$f":"IF(AP21=\"\",\"\",Summary!$G$110)","v":""},{"$f":"IF(AQ21=\"\",\"\",Summary!$G$110)","v":""},{"$f":"IF(AR21=\"\",\"\",Summary!$G$110)","v":""},{"$f":"IF(AS21=\"\",\"\",Summary!$G$110)","v":""},{"$f":"IF(AT21=\"\",\"\",Summary!$G$110)","v":""},{"$f":"IF(AU21=\"\",\"\",Summary!$G$110)","v":""},{"$f":"IF(AV21=\"\",\"\",Summary!$G$110)","v":""},{"$f":"IF(AW21=\"\",\"\",Summary!$G$110)","v":""},{"$f":"IF(AX21=\"\",\"\",Summary!$G$110)","v":""},{"$f":"IF(AY21=\"\",\"\",Summary!$G$110)","v":""},{"$f":"IF(AZ21=\"\",\"\",Summary!$G$110)","v":""},{"$f":"IF(BA21=\"\",\"\",Summary!$G$110)","v":""},null,null,null,{"$f":"IF(BE21=\"\",\"\",Summary!$G$110)","v":""}]
[null,null,"Summary - Minimum Margin of Solvency",{"$f":"IF(D21=\"\",\"\",Summary!$G$104)","v":0},{"$f":"IF(E21=\"\",\"\",Summary!$G$104)","v":0},{"$f":"IF(F21=\"\",\"\",Summary!$G$104)","v":0},{"$f":"IF(G21=\"\",\"\",Summary!$G$104)","v":0},{"$f":"IF(H21=\"\",\"\",Summary!$G$104)","v":0},{"$f":"IF(I21=\"\",\"\",Summary!$G$104)","v":0},{"$f":"IF(J21=\"\",\"\",Summary!$G$104)","v":0},{"$f":"IF(K21=\"\",\"\",Summary!$G$104)","v":0},{"$f":"IF(L21=\"\",\"\",Summary!$G$104)","v":0},{"$f":"IF(M21=\"\",\"\",Summary!$G$104)","v":0},{"$f":"IF(N21=\"\",\"\",Summary!$G$104)","v":0},{"$f":"IF(O21=\"\",\"\",Summary!$G$104)","v":0},{"$f":"IF(P21=\"\",\"\",Summary!$G$104)","v":0},{"$f":"IF(Q21=\"\",\"\",Summary!$G$104)","v":0},{"$f":"IF(R21=\"\",\"\",Summary!$G$104)","v":0},{"$f":"IF(S21=\"\",\"\",Summary!$G$104)","v":0},{"$f":"IF(T21=\"\",\"\",Summary!$G$104)","v":0},{"$f":"IF(U21=\"\",\"\",Summary!$G$104)","v":0},{"$f":"IF(V21=\"\",\"\",Summary!$G$104)","v":0},{"$f":"IF(W21=\"\",\"\",Summary!$G$104)","v":0},{"$f":"IF(X21=\"\",\"\",Summary!$G$104)","v":0},{"$f":"IF(Y21=\"\",\"\",Summary!$G$104)","v":0},{"$f":"IF(Z21=\"\",\"\",Summary!$G$104)","v":0},{"$f":"IF(AA21=\"\",\"\",Summary!$G$104)","v":0},{"$f":"IF(AB21=\"\",\"\",Summary!$G$104)","v":0},{"$f":"IF(AC21=\"\",\"\",Summary!$G$104)","v":""},{"$f":"IF(AD21=\"\",\"\",Summary!$G$104)","v":""},{"$f":"IF(AE21=\"\",\"\",Summary!$G$104)","v":""},{"$f":"IF(AF21=\"\",\"\",Summary!$G$104)","v":""},{"$f":"IF(AG21=\"\",\"\",Summary!$G$104)","v":""},{"$f":"IF(AH21=\"\",\"\",Summary!$G$104)","v":""},{"$f":"IF(AI21=\"\",\"\",Summary!$G$104)","v":""},{"$f":"IF(AJ21=\"\",\"\",Summary!$G$104)","v":""},{"$f":"IF(AK21=\"\",\"\",Summary!$G$104)","v":""},{"$f":"IF(AL21=\"\",\"\",Summary!$G$104)","v":""},{"$f":"IF(AM21=\"\",\"\",Summary!$G$104)","v":""},{"$f":"IF(AN21=\"\",\"\",Summary!$G$104)","v":""},{"$f":"IF(AO21=\"\",\"\",Summary!$G$104)","v":""},{"$f":"IF(AP21=\"\",\"\",Summary!$G$104)","v":""},{"$f":"IF(AQ21=\"\",\"\",Summary!$G$104)","v":""},{"$f":"IF(AR21=\"\",\"\",Summary!$G$104)","v":""},{"$f":"IF(AS21=\"\",\"\",Summary!$G$104)","v":""},{"$f":"IF(AT21=\"\",\"\",Summary!$G$104)","v":""},{"$f":"IF(AU21=\"\",\"\",Summary!$G$104)","v":""},{"$f":"IF(AV21=\"\",\"\",Summary!$G$104)","v":""},{"$f":"IF(AW21=\"\",\"\",Summary!$G$104)","v":""},{"$f":"IF(AX21=\"\",\"\",Summary!$G$104)","v":""},{"$f":"IF(AY21=\"\",\"\",Summary!$G$104)","v":""},{"$f":"IF(AZ21=\"\",\"\",Summary!$G$104)","v":""},{"$f":"IF(BA21=\"\",\"\",Summary!$G$104)","v":""},null,null,null,{"$f":"IF(BE21=\"\",\"\",Summary!$G$104)","v":""}]
[null,null,"ECR to Minimum Margin of Solvency",{"$f":"IF(D21=\"\",\"\",IF(D109=0,0,D108/D109))","v":0},0,0,0,0,0,0,0,0,0,0,0,0,0,0,0,0,0,0,0,0,0,0,0,0,"","","","","","","",{"$f":"IF(AJ21=\"\",\"\",IF(AJ109=0,0,AJ108/AJ109))","v":""},"","","","","","","","","","","","","","","","","",null,null,null,{"$f":"IF(BE21=\"\",\"\",IF(BE109=0,0,BE108/BE109))","v":""}]
[]
[null,null,"Cell Notional ECR Requirement",{"$f":"IF(D21=0,\"\",D105*D110)","v":""},"","","","","","","","","","","","","","","","","","","","","","","","","","","","","","","",{"$f":"IF(AJ21=0,\"\",AJ105*AJ110)","v":""},"","","","","","","","","","","","","","","","","",null,null,null,{"$f":"IF(BE21=0,\"\",BE105*BE110)","v":""}]
[]
[null,null,"Cell Notional ECR Ratio",{"$f":"IF(D21=0,\"\",IF((D23+D24)=0,0,(D23+D24)/D112))","v":""},"","","","","","","","","","","","","","","","","","","","","","","","","","","","","","","",{"$f":"IF(AJ21=0,\"\",IF((AJ23+AJ24)=0,0,(AJ23+AJ24)/AJ112))","v":""},"","","","","","","","","","","","","","","","","",null,null,null,{"$f":"IF(BE21=0,\"\",IF((BE23+BE24)=0,0,(BE23+BE24)/BE112))","v":""}]
[]
[]
[null,null,null,null,null,null,null,null,null,"Select Line of Business",null,"Confirm Jurisdiction","Select Funding","Select Currency","Confirm Mitigants & Attach Support"]
[null,null,null,null,null,null,null,null,null,"General Business",null,"Zone 1 - Central & Western Asia","Cash","Bermudian Dollar","None",null,"Yes"]
[null,null,null,null,null,null,null,null,null,"Accident and Health, Travel, Personal Accident",null,"Zone 2 - Eastern Asia","Lines of Credit","US Dollar","Provide Support in Attachments tab",null,"No"]
[null,null,null,"Select Yes/No",null,null,null,null,null,"Agriculture",null,"Zone 3 - South and South-Eastern Asia","Guarantees","Canadian Dollar"]
[null,null,"Select Premiums Written","Yes","Confirm",null,"Confirm Activity","Confirm Funding / Collateral",null,"Asbestos",null,"Zone 4 - Oceania",null,"Euro"]
[null,null,"Direct Insurer","No","LOC ",null,"None","Up to Probable Maximum Loss",null,"Aviation - Hull, Liability and War",null,"Zone 5 - Northern Africa",null,"Japanese Yen"]
[null,null,"Reinsurer",null,"Guarantees",null,"Reinsurance","Up to Aggregate Limit",null,"Construction",null,"Zone 6 - Southern Africa",null,"Pound Sterling"]
[null,null,"Both",null,"Capital Calls",null,"Other (Define) ","Reserves",null,"Credit / Surety",null,"Zone 7 - Eastern Europe",null,"Swiss Franc"]
[null,null,null,null,"Other (Define) ",null,null,"Total Reserves and expenses",null,"Crime and Fidelity",null,"Zone 8 - Northern Europe"]
[null,null,null,null,null,null,null,"Other (define)",null,"Crime and Fraud",null,"Zone 9 - Southern Europe",null,"Afghanistan Afghani"]
[null,null,null,null,"Confirm",null,null,null,null,"Cyber Risk",null,"Zone 10 - Western Europe",null,"Albanian Lek"]
[null,null,null,null,"Related",null,null,null,null,"Energy - Onshore and offshore",null,"Zone 11 - Northern America (Excluding USA)",null,"Algerian Dinar"]
[null,null,null,null,"Unrelated",null,null,null,null,"Environmental Risk",null,"Zone 12 - Caribbean & Centeral America",null,"Angolan Kwanza"]
[null,null,null,null,null,null,null,null,null,"General liability - Public, Products, Umbrella, Product recall",null,"Zone 13 - Eastern South America",null,"Arab Emirates Dirham"]
[null,null,null,null,"Confirm Beneficial Owner",null,null,null,null,"Life and Accident and Health (General Business approval)",null,"Zone 14 - Northern, Southern and Western South America",null,"Argentine Peso"]
[null,null,null,null,"Single",null,null,null,null,"Marine - P&I, Cargo, Hull and Liability, War",null,"Zone 15 - North-East United States",null,"Armenian Dram"]
[null,null,null,null,"Multiple",null,null,null,null,"Medical Malpractice",null,"Zone 16 - South-East United States",null,"Aruban Guilder"]
[null,null,null,null,null,null,null,null,null,"Mortgage",null,"Zone 17 - Mid-West United States",null,"Australian Dollar"]
[null,null,null,null,"Confirm Ownership",null,null,null,null,"Motor - APD and Liability",null,"Zone 18 - Western United States",null,"Azerbaijan New Manat"]
[null,null,null,null,"Management General Agents & Brokers",null,null,null,null,"Political Risks",null,null,null,"Bahamian Dollar"]
[null,null,null,null,"Insurance Company",null,null,null,null,"Professional Liability - Professional Indemnity, D&O, Bankers Blanket, E&O",null,null,null,"Bahraini Dinar"]
[null,null,null,null,"Reinsurance Company",null,null,null,null,"Property Catastrophe",null,null,null,"Bangladeshi Taka"]
[null,null,null,null,"Non-Insurance Company",null,null,null,null,"Property Damage and Business Interruption",null,null,null,"Barbados Dollar"]
[null,null,null,null,"Non-Related Investors",null,null,null,null,"Property Retro",null,null,null,"Belarussian Ruble"]
[null,null,null,null,"Other",null,"A or better",null,null,"Structured/Finite Reinsurance",null,null,null,"Belize Dollar"]
[null,null,null,null,null,null,"BBB or equivalent",null,null,"Terrorism",null,null,null,"Bhutan Ngultrum"]
[null,null,null,null,"Confirm Instrument",null,"B or better",null,null,"Warranty, Residual Value",null,null,null,"Boliviano"]
[null,null,null,null,"Non-Voting Preferred Shareholder Agreement",null,"unrated/other",null,null,"Workers Compensation/Employers Liability",null,null,null,"Botswana Pula"]
[null,null,null,null,"Participation Agreement",null,null,null,null,null,null,null,null,"Brazilian Real"]
[null,null,null,null,"Noteholder Agreement",null,null,null,null,"Long Term Business",null,null,null,"Brunei Dollar"]
[null,null,null,null,"Contingent Commission Agreement",null,null,null,null,"Mortality",null,null,null,"Burundi Franc"]
[null,null,null,null,"Other Agreement",null,null,null,null,"Critical Illness",null,null,null,"Cape Verde Escudo"]
[null,null,null,null,null,null,null,null,null,"Longevity",null,null,null,"Cayman Islands Dollar"]
[null,null,null,null,null,null,null,null,null,"Deferred Annuities",null,null,null,"CFA Franc BCEAO"]
[null,null,null,null,null,null,null,null,null,"Disability Income: Active lives with premium guarantee of -",null,null,null,"CFA Franc BEAC"]
[null,null,null,null,null,null,null,null,null,"Less than or equal to 1 year",null,null,null,"CFP Franc"]
[null,null,null,null,null,null,null,null,null,"More than 1 year but less than 5 years",null,null,null,"Chilean Peso"]
[null,null,null,null,null,null,null,null,null,"Greater than 5 years",null,null,null,"Colombian Peso"]
[null,null,null,null,null,null,null,null,null,"Disability Income: Actives lives for other",null,null,null,"Comoros Franc"]
[null,null,null,null,null,null,null,null,null,"accident and sickness",null,null,null,"Costa Rican Colon"]
[null,null,null,null,null,null,null,null,null,"Disability Income: Claims in payment",null,null,null,"Croatian Kuna"]
[null,null,null,null,null,null,null,null,null,"Disability Income: Claims in payment for other",null,null,null,"Cuban Peso"]
[null,null,null,null,null,null,null,null,null,"accident and sickness",null,null,null,"Czech Koruna"]
[null,null,null,null,null,null,null,null,null,"Group Life",null,null,null,"Danish Krone"]
[null,null,null,null,null,null,null,null,null,"Group Disability",null,null,null,"Denar"]
[null,null,null,null,null,null,null,null,null,"Group Health",null,null,null,"Djibouti Franc"]
[null,null,null,null,null,null,null,null,null,"Stop Loss",null,null,null,"Dominican Peso"]
[null,null,null,null,null,null,null,null,null,"Rider",null,null,null,"East Caribbean Dollar"]
[null,null,null,null,null,null,null,null,null,"Variable Annuities",null,null,null,"Ecuador Sucre"]
[null,null,null,null,null,null,null,null,null,null,null,null,null,"Egyptian Pound"]
[null,null,null,null,null,null,null,null,null,null,null,null,null,"El Salvador Colon"]
[null,null,null,null,null,null,null,null,null,null,null,null,null,"Eritrean Nakfa"]
[null,null,null,null,null,null,null,null,null,null,null,null,null,"Falkland Islands Pound"]
[null,null,null,null,null,null,null,null,null,null,null,null,null,"Fiji Dollar"]
[null,null,null,null,null,null,null,null,null,null,null,null,null,"Francs"]
[null,null,null,null,null,null,null,null,null,null,null,null,null,"Gambian Dalasi"]
[null,null,null,null,null,null,null,null,null,null,null,null,null,"Georgian Lari"]
[null,null,null,null,null,null,null,null,null,null,null,null,null,"Ghanaian Cedi"]
[null,null,null,null,null,null,null,null,null,null,null,null,null,"Gibraltar Pound"]
[null,null,null,null,null,null,null,null,null,null,null,null,null,"Guatemalan Quetzal"]
[null,null,null,null,null,null,null,null,null,null,null,null,null,"Guinea Franc"]
[null,null,null,null,null,null,null,null,null,null,null,null,null,"Guinea-Bissau Peso"]
[null,null,null,null,null,null,null,null,null,null,null,null,null,"Guyana Dollar"]
[null,null,null,null,null,null,null,null,null,null,null,null,null,"Haitian Gourde"]
[null,null,null,null,null,null,null,null,null,null,null,null,null,"Honduran Lempira"]
[null,null,null,null,null,null,null,null,null,null,null,null,null,"Hong Kong Dollar"]
[null,null,null,null,null,null,null,null,null,null,null,null,null,"Hungarian Forint"]
[null,null,null,null,null,null,null,null,null,null,null,null,null,"Iceland Krona"]
[null,null,null,null,null,null,null,null,null,null,null,null,null,"Indian Rupee"]
[null,null,null,null,null,null,null,null,null,null,null,null,null,"Indonesian Rupiah"]
[null,null,null,null,null,null,null,null,null,null,null,null,null,"Iraqi Dinar"]
[null,null,null,null,null,null,null,null,null,null,null,null,null,"Israeli New Shekel"]
[null,null,null,null,null,null,null,null,null,null,null,null,null,"Jamaican Dollar"]
[null,null,null,null,null,null,null,null,null,null,null,null,null,"Jordanian Dinar"]
[null,null,null,null,null,null,null,null,null,null,null,null,null,"Kampuchean Riel"]
[null,null,null,null,null,null,null,null,null,null,null,null,null,"Kazakhstan Tenge"]
[null,null,null,null,null,null,null,null,null,null,null,null,null,"Kenyan Shilling"]
[null,null,null,null,null,null,null,null,null,null,null,null,null,"Korean Won"]
[null,null,null,null,null,null,null,null,null,null,null,null,null,"Kuwaiti Dinar"]
[null,null,null,null,null,null,null,null,null,null,null,null,null,"Lao Kip"]
[null,null,null,null,null,null,null,null,null,null,null,null,null,"Latvian Lats"]
[null,null,null,null,null,null,null,null,null,null,null,null,null,"Lebanese Pound"]
[null,null,null,null,null,null,null,null,null,null,null,null,null,"Lesotho Loti"]
[null,null,null,null,null,null,null,null,null,null,null,null,null,"Liberian Dollar"]
[null,null,null,null,null,null,null,null,null,null,null,null,null,"Libyan Dinar"]
[null,null,null,null,null,null,null,null,null,null,null,null,null,"Lithuanian Litas"]
[null,null,null,null,null,null,null,null,null,null,null,null,null,"Macau Pataca"]
[null,null,null,null,null,null,null,null,null,null,null,null,null,"Malagasy Franc"]
[null,null,null,null,null,null,null,null,null,null,null,null,null,"Malawi Kwacha"]
[null,null,null,null,null,null,null,null,null,null,null,null,null,"Malaysian Ringgit"]
[null,null,null,null,null,null,null,null,null,null,null,null,null,"Maldive Rufiyaa"]
[null,null,null,null,null,null,null,null,null,null,null,null,null,"Manat"]
[null,null,null,null,null,null,null,null,null,null,null,null,null,"Marka"]
[null,null,null,null,null,null,null,null,null,null,null,null,null,"Moroccan Dirham"]
[null,null,null,null,null,null,null,null,null,null,null,null,null,"New Zealand Dollar"]
[null,null,null,null,null,null,null,null,null,null,null,null,null,"North Korean Won"]
[null,null,null,null,null,null,null,null,null,null,null,null,null,"Norwegian Krone"]
[null,null,null,null,null,null,null,null,null,null,null,null,null,"Norwegian Krone"]
[null,null,null,null,null,null,null,null,null,null,null,null,null,"Som"]
[null,null,null,null,null,null,null,null,null,null,null,null,null,"Sri Lanka Rupee"]
[null,null,null,null,null,null,null,null,null,null,null,null,null,"Sudanese Pound"]
[null,null,null,null,null,null,null,null,null,null,null,null,null,"Surinam Dollar"]
[null,null,null,null,null,null,null,null,null,null,null,null,null,"Swaziland Lilangeni"]
[null,null,null,null,null,null,null,null,null,null,null,null,null,"Swedish Krona"]
[null,null,null,null,null,null,null,null,null,null,null,null,null,"Syrian Pound"]
[null,null,null,null,null,null,null,null,null,null,null,null,null,"Taiwan Dollar"]
[null,null,null,null,null,null,null,null,null,null,null,null,null,"Tajik Somoni"]
[null,null,null,null,null,null,null,null,null,null,null,null,null,"Tanzanian Shilling"]
[null,null,null,null,null,null,null,null,null,null,null,null,null,"Thai Baht"]
[null,null,null,null,null,null,null,null,null,null,null,null,null,"Tongan Pa'anga"]
[null,null,null,null,null,null,null,null,null,null,null,null,null,"Trinidad and Tobago Dollar"]
[null,null,null,null,null,null,null,null,null,null,null,null,null,"Tunisian Dollar"]
[null,null,null,null,null,null,null,null,null,null,null,null,null,"Turkish Lira"]
[null,null,null,null,null,null,null,null,null,null,null,null,null,"Uganda Shilling"]
[null,null,null,null,null,null,null,null,null,null,null,null,null,"Ukraine Hryvnia"]
[null,null,null,null,null,null,null,null,null,null,null,null,null,"Uruguayan Peso"]
[null,null,null,null,null,null,null,null,null,null,null,null,null,"Uzbekistan Sum"]
[null,null,null,null,null,null,null,null,null,null,null,null,"Vanuatu Vatu","Vanuatu Vatu"]
[null,null,null,null,null,null,null,null,null,null,null,null,"Venezuelan Bolivar","Venezuelan Bolivar"]
[null,null,null,null,null,null,null,null,null,null,null,null,"Yemeni Rial","Yemeni Rial"]
[null,null,null,null,null,null,null,null,null,null,null,null,"Yuan Renminbi","Yuan Renminbi"]
[null,null,null,null,null,null,null,null,null,null,null,null,"Zambian Kwacha","Zambian Kwacha"]
[null,null,null,null,null,null,null,null,null,null,null,null,"Zimbabwe Dollar","Zimbabwe Dollar"]

{"sheet":"Schedule V(m)","index":49,"n_rows":1566,"n_cols":23,"rows_kept":1566,"cut":false,"hidden":false,"merged":[[1,2,1,3],[2,2,2,3],[3,2,3,3],[8,1,8,4],[1514,1,1520,10]]}
[null,"Alternative Capital Analysis ",null,null,null,null,null,null,null,null,null,null,null,null,null,null,null,null,null,null,null,null,{"$f":"HYPERLINK(\"#'Index'!A1\",\"Return to Index\")","v":"Return to Index"}]
[null,"Name of Insurer:",{"$f":"'Company Information'!C7","v":"Enter Company Name"}]
[null,"Structure of the Insurer:"]
[null,"For the Year-Ending:",{"$f":"'Company Information'!C3","v":"2022-12-31"}]
[]
[null,"Enter Number of Rows required",{"$f":"Import!E8582","v":0}]
[null,"(Maximum of 1,500 Rows available)"]
[null,"A)  Transaction Details"]
[null,"All monetary figures must be reported in Units and in United States Dollars"]
[null,"Name of Cedant","Contract Reference (e.g., Cell Name/Account No.)","Type of coverage","Statutory Line of Business Written","Location of Exposure Covered","Aggregate Maximum Limit as at Inception Date","Net Aggregate Maximum Limit at the end of Financial Year","Inception Date of Cover Period (DD/MM/YYYY)","Effective Date of Contract\n(DD/MM/YYYY)","Expiry Date of Cover Period (DD/MM/YYYY)","Gross Premium Written for the Cover Period","Net Premium Written for the Cover Period","Attachment Point","Aggregate Losses Outstanding at the Beginning of the Financial Year","Aggregate Losses Incurred During the Financial Year","Aggregate Losses Outstanding at the End of the Financial Year","Reserved Buffer Collateral","Currency of Exposure","Nature of Collateral ","Average Collateral Rating ","Amount of Collateral","Additional Comments (Optional/If Necessary)"]
[1,{"$f":"Import!E8583","v":0},{"$f":"Import!E8608","v":0},{"$f":"Import!E8633","v":"Select from Drop Down"},{"$f":"Import!E8658","v":"Select from Drop Down"},{"$f":"Import!E8683","v":"Select from Drop Down"},{"$f":"Import!E8708","v":0},{"$f":"Import!E8734","v":0},{"$f":"IF(Import!E8760=0,\"\",Import!E8760)","v":""},{"$f":"IF(Import!E8785=0,\"\",Import!E8785)","v":""},{"$f":"IF(Import!E8810=0,\"\",Import!E8810)","v":""},{"$f":"Import!E8835","v":0},{"$f":"Import!E8861","v":0},{"$f":"Import!E8887","v":0},{"$f":"Import!E8913","v":0},{"$f":"Import!E8939","v":0},{"$f":"Import!E8965","v":0},{"$f":"Import!E8991","v":0},{"$f":"Import!E9017","v":"Select from Drop Down"},{"$f":"Import!E9042","v":"Select from Drop Down"},{"$f":"Import!E9067","v":"Select from Drop Down"},{"$f":"Import!E9092","v":0},{"$f":"Import!E9118","v":0}]
[{"$f":"A11+1","v":2},{"$f":"Import!E8584","v":0},{"$f":"Import!E8609","v":0},{"$f":"Import!E8634","v":"Select from Drop Down"},{"$f":"Import!E8659","v":"Select from Drop Down"},{"$f":"Import!E8684","v":"Select from Drop Down"},{"$f":"Import!E8709","v":0},{"$f":"Import!E8735","v":0},{"$f":"IF(Import!E8761=0,\"\",Import!E8761)","v":""},{"$f":"IF(Import!E8786=0,\"\",Import!E8786)","v":""},{"$f":"IF(Import!E8811=0,\"\",Import!E8811)","v":""},{"$f":"Import!E8836","v":0},{"$f":"Import!E8862","v":0},{"$f":"Import!E8888","v":0},{"$f":"Import!E8914","v":0},{"$f":"Import!E8940","v":0},{"$f":"Import!E8966","v":0},{"$f":"Import!E8992","v":0},{"$f":"Import!E9018","v":"Select from Drop Down"},{"$f":"Import!E9043","v":"Select from Drop Down"},{"$f":"Import!E9068","v":"Select from Drop Down"},{"$f":"Import!E9093","v":0},{"$f":"Import!E9119","v":0}]
[{"$f":"A12+1","v":3},{"$f":"Import!E8585","v":0},{"$f":"Import!E8610","v":0},{"$f":"Import!E8635","v":"Select from Drop Down"},{"$f":"Import!E8660","v":"Select from Drop Down"},{"$f":"Import!E8685","v":"Select from Drop Down"},{"$f":"Import!E8710","v":0},{"$f":"Import!E8736","v":0},{"$f":"IF(Import!E8762=0,\"\",Import!E8762)","v":""},{"$f":"IF(Import!E8787=0,\"\",Import!E8787)","v":""},{"$f":"IF(Import!E8812=0,\"\",Import!E8812)","v":""},{"$f":"Import!E8837","v":0},{"$f":"Import!E8863","v":0},{"$f":"Import!E8889","v":0},{"$f":"Import!E8915","v":0},{"$f":"Import!E8941","v":0},{"$f":"Import!E8967","v":0},{"$f":"Import!E8993","v":0},{"$f":"Import!E9019","v":"Select from Drop Down"},{"$f":"Import!E9044","v":"Select from Drop Down"},{"$f":"Import!E9069","v":"Select from Drop Down"},{"$f":"Import!E9094","v":0},{"$f":"Import!E9120","v":0}]
[4,{"$f":"Import!E8586","v":0},{"$f":"Import!E8611","v":0},{"$f":"Import!E8636","v":"Select from Drop Down"},{"$f":"Import!E8661","v":"Select from Drop Down"},{"$f":"Import!E8686","v":"Select from Drop Down"},{"$f":"Import!E8711","v":0},{"$f":"Import!E8737","v":0},{"$f":"IF(Import!E8763=0,\"\",Import!E8763)","v":""},{"$f":"IF(Import!E8788=0,\"\",Import!E8788)","v":""},{"$f":"IF(Import!E8813=0,\"\",Import!E8813)","v":""},{"$f":"Import!E8838","v":0},{"$f":"Import!E8864","v":0},{"$f":"Import!E8890","v":0},{"$f":"Import!E8916","v":0},{"$f":"Import!E8942","v":0},{"$f":"Import!E8968","v":0},{"$f":"Import!E8994","v":0},{"$f":"Import!E9020","v":"Select from Drop Down"},{"$f":"Import!E9045","v":"Select from Drop Down"},{"$f":"Import!E9070","v":"Select from Drop Down"},{"$f":"Import!E9095","v":0},{"$f":"Import!E9121","v":0}]
[5,{"$f":"Import!E8587","v":0},{"$f":"Import!E8612","v":0},{"$f":"Import!E8637","v":"Select from Drop Down"},{"$f":"Import!E8662","v":"Select from Drop Down"},{"$f":"Import!E8687","v":"Select from Drop Down"},{"$f":"Import!E8712","v":0},{"$f":"Import!E8738","v":0},{"$f":"IF(Import!E8764=0,\"\",Import!E8764)","v":""},{"$f":"IF(Import!E8789=0,\"\",Import!E8789)","v":""},{"$f":"IF(Import!E8814=0,\"\",Import!E8814)","v":""},{"$f":"Import!E8839","v":0},{"$f":"Import!E8865","v":0},{"$f":"Import!E8891","v":0},{"$f":"Import!E8917","v":0},{"$f":"Import!E8943","v":0},{"$f":"Import!E8969","v":0},{"$f":"Import!E8995","v":0},{"$f":"Import!E9021","v":"Select from Drop Down"},{"$f":"Import!E9046","v":"Select from Drop Down"},{"$f":"Import!E9071","v":"Select from Drop Down"},{"$f":"Import!E9096","v":0},{"$f":"Import!E9122","v":0}]
[6,{"$f":"Import!E8588","v":0},{"$f":"Import!E8613","v":0},{"$f":"Import!E8638","v":"Select from Drop Down"},{"$f":"Import!E8663","v":"Select from Drop Down"},{"$f":"Import!E8688","v":"Select from Drop Down"},{"$f":"Import!E8713","v":0},{"$f":"Import!E8739","v":0},{"$f":"IF(Import!E8765=0,\"\",Import!E8765)","v":""},{"$f":"IF(Import!E8790=0,\"\",Import!E8790)","v":""},{"$f":"IF(Import!E8815=0,\"\",Import!E8815)","v":""},{"$f":"Import!E8840","v":0},{"$f":"Import!E8866","v":0},{"$f":"Import!E8892","v":0},{"$f":"Import!E8918","v":0},{"$f":"Import!E8944","v":0},{"$f":"Import!E8970","v":0},{"$f":"Import!E8996","v":0},{"$f":"Import!E9022","v":"Select from Drop Down"},{"$f":"Import!E9047","v":"Select from Drop Down"},{"$f":"Import!E9072","v":"Select from Drop Down"},{"$f":"Import!E9097","v":0},{"$f":"Import!E9123","v":0}]
[7,{"$f":"Import!E8589","v":0},{"$f":"Import!E8614","v":0},{"$f":"Import!E8639","v":"Select from Drop Down"},{"$f":"Import!E8664","v":"Select from Drop Down"},{"$f":"Import!E8689","v":"Select from Drop Down"},{"$f":"Import!E8714","v":0},{"$f":"Import!E8740","v":0},{"$f":"IF(Import!E8766=0,\"\",Import!E8766)","v":""},{"$f":"IF(Import!E8791=0,\"\",Import!E8791)","v":""},{"$f":"IF(Import!E8816=0,\"\",Import!E8816)","v":""},{"$f":"Import!E8841","v":0},{"$f":"Import!E8867","v":0},{"$f":"Import!E8893","v":0},{"$f":"Import!E8919","v":0},{"$f":"Import!E8945","v":0},{"$f":"Import!E8971","v":0},{"$f":"Import!E8997","v":0},{"$f":"Import!E9023","v":"Select from Drop Down"},{"$f":"Import!E9048","v":"Select from Drop Down"},{"$f":"Import!E9073","v":"Select from Drop Down"},{"$f":"Import!E9098","v":0},{"$f":"Import!E9124","v":0}]
[8,{"$f":"Import!E8590","v":0},{"$f":"Import!E8615","v":0},{"$f":"Import!E8640","v":"Select from Drop Down"},{"$f":"Import!E8665","v":"Select from Drop Down"},{"$f":"Import!E8690","v":"Select from Drop Down"},{"$f":"Import!E8715","v":0},{"$f":"Import!E8741","v":0},{"$f":"IF(Import!E8767=0,\"\",Import!E8767)","v":""},{"$f":"IF(Import!E8792=0,\"\",Import!E8792)","v":""},{"$f":"IF(Import!E8817=0,\"\",Import!E8817)","v":""},{"$f":"Import!E8842","v":0},{"$f":"Import!E8868","v":0},{"$f":"Import!E8894","v":0},{"$f":"Import!E8920","v":0},{"$f":"Import!E8946","v":0},{"$f":"Import!E8972","v":0},{"$f":"Import!E8998","v":0},{"$f":"Import!E9024","v":"Select from Drop Down"},{"$f":"Import!E9049","v":"Select from Drop Down"},{"$f":"Import!E9074","v":"Select from Drop Down"},{"$f":"Import!E9099","v":0},{"$f":"Import!E9125","v":0}]
[9,{"$f":"Import!E8591","v":0},{"$f":"Import!E8616","v":0},{"$f":"Import!E8641","v":"Select from Drop Down"},{"$f":"Import!E8666","v":"Select from Drop Down"},{"$f":"Import!E8691","v":"Select from Drop Down"},{"$f":"Import!E8716","v":0},{"$f":"Import!E8742","v":0},{"$f":"IF(Import!E8768=0,\"\",Import!E8768)","v":""},{"$f":"IF(Import!E8793=0,\"\",Import!E8793)","v":""},{"$f":"IF(Import!E8818=0,\"\",Import!E8818)","v":""},{"$f":"Import!E8843","v":0},{"$f":"Import!E8869","v":0},{"$f":"Import!E8895","v":0},{"$f":"Import!E8921","v":0},{"$f":"Import!E8947","v":0},{"$f":"Import!E8973","v":0},{"$f":"Import!E8999","v":0},{"$f":"Import!E9025","v":"Select from Drop Down"},{"$f":"Import!E9050","v":"Select from Drop Down"},{"$f":"Import!E9075","v":"Select from Drop Down"},{"$f":"Import!E9100","v":0},{"$f":"Import!E9126","v":0}]
[10,{"$f":"Import!E8592","v":0},{"$f":"Import!E8617","v":0},{"$f":"Import!E8642","v":"Select from Drop Down"},{"$f":"Import!E8667","v":"Select from Drop Down"},{"$f":"Import!E8692","v":"Select from Drop Down"},{"$f":"Import!E8717","v":0},{"$f":"Import!E8743","v":0},{"$f":"IF(Import!E8769=0,\"\",Import!E8769)","v":""},{"$f":"IF(Import!E8794=0,\"\",Import!E8794)","v":""},{"$f":"IF(Import!E8819=0,\"\",Import!E8819)","v":""},{"$f":"Import!E8844","v":0},{"$f":"Import!E8870","v":0},{"$f":"Import!E8896","v":0},{"$f":"Import!E8922","v":0},{"$f":"Import!E8948","v":0},{"$f":"Import!E8974","v":0},{"$f":"Import!E9000","v":0},{"$f":"Import!E9026","v":"Select from Drop Down"},{"$f":"Import!E9051","v":"Select from Drop Down"},{"$f":"Import!E9076","v":"Select from Drop Down"},{"$f":"Import!E9101","v":0},{"$f":"Import!E9127","v":0}]
[11,{"$f":"Import!E8593","v":0},{"$f":"Import!E8618","v":0},{"$f":"Import!E8643","v":"Select from Drop Down"},{"$f":"Import!E8668","v":"Select from Drop Down"},{"$f":"Import!E8693","v":"Select from Drop Down"},{"$f":"Import!E8718","v":0},{"$f":"Import!E8744","v":0},{"$f":"IF(Import!E8770=0,\"\",Import!E8770)","v":""},{"$f":"IF(Import!E8795=0,\"\",Import!E8795)","v":""},{"$f":"IF(Import!E8820=0,\"\",Import!E8820)","v":""},{"$f":"Import!E8845","v":0},{"$f":"Import!E8871","v":0},{"$f":"Import!E8897","v":0},{"$f":"Import!E8923","v":0},{"$f":"Import!E8949","v":0},{"$f":"Import!E8975","v":0},{"$f":"Import!E9001","v":0},{"$f":"Import!E9027","v":"Select from Drop Down"},{"$f":"Import!E9052","v":"Select from Drop Down"},{"$f":"Import!E9077","v":"Select from Drop Down"},{"$f":"Import!E9102","v":0},{"$f":"Import!E9128","v":0}]
[12,{"$f":"Import!E8594","v":0},{"$f":"Import!E8619","v":0},{"$f":"Import!E8644","v":"Select from Drop Down"},{"$f":"Import!E8669","v":"Select from Drop Down"},{"$f":"Import!E8694","v":"Select from Drop Down"},{"$f":"Import!E8719","v":0},{"$f":"Import!E8745","v":0},{"$f":"IF(Import!E8771=0,\"\",Import!E8771)","v":""},{"$f":"IF(Import!E8796=0,\"\",Import!E8796)","v":""},{"$f":"IF(Import!E8821=0,\"\",Import!E8821)","v":""},{"$f":"Import!E8846","v":0},{"$f":"Import!E8872","v":0},{"$f":"Import!E8898","v":0},{"$f":"Import!E8924","v":0},{"$f":"Import!E8950","v":0},{"$f":"Import!E8976","v":0},{"$f":"Import!E9002","v":0},{"$f":"Import!E9028","v":"Select from Drop Down"},{"$f":"Import!E9053","v":"Select from Drop Down"},{"$f":"Import!E9078","v":"Select from Drop Down"},{"$f":"Import!E9103","v":0},{"$f":"Import!E9129","v":0}]
[13,{"$f":"Import!E8595","v":0},{"$f":"Import!E8620","v":0},{"$f":"Import!E8645","v":"Select from Drop Down"},{"$f":"Import!E8670","v":"Select from Drop Down"},{"$f":"Import!E8695","v":"Select from Drop Down"},{"$f":"Import!E8720","v":0},{"$f":"Import!E8746","v":0},{"$f":"IF(Import!E8772=0,\"\",Import!E8772)","v":""},{"$f":"IF(Import!E8797=0,\"\",Import!E8797)","v":""},{"$f":"IF(Import!E8822=0,\"\",Import!E8822)","v":""},{"$f":"Import!E8847","v":0},{"$f":"Import!E8873","v":0},{"$f":"Import!E8899","v":0},{"$f":"Import!E8925","v":0},{"$f":"Import!E8951","v":0},{"$f":"Import!E8977","v":0},{"$f":"Import!E9003","v":0},{"$f":"Import!E9029","v":"Select from Drop Down"},{"$f":"Import!E9054","v":"Select from Drop Down"},{"$f":"Import!E9079","v":"Select from Drop Down"},{"$f":"Import!E9104","v":0},{"$f":"Import!E9130","v":0}]
[14,{"$f":"Import!E8596","v":0},{"$f":"Import!E8621","v":0},{"$f":"Import!E8646","v":"Select from Drop Down"},{"$f":"Import!E8671","v":"Select from Drop Down"},{"$f":"Import!E8696","v":"Select from Drop Down"},{"$f":"Import!E8721","v":0},{"$f":"Import!E8747","v":0},{"$f":"IF(Import!E8773=0,\"\",Import!E8773)","v":""},{"$f":"IF(Import!E8798=0,\"\",Import!E8798)","v":""},{"$f":"IF(Import!E8823=0,\"\",Import!E8823)","v":""},{"$f":"Import!E8848","v":0},{"$f":"Import!E8874","v":0},{"$f":"Import!E8900","v":0},{"$f":"Import!E8926","v":0},{"$f":"Import!E8952","v":0},{"$f":"Import!E8978","v":0},{"$f":"Import!E9004","v":0},{"$f":"Import!E9030","v":"Select from Drop Down"},{"$f":"Import!E9055","v":"Select from Drop Down"},{"$f":"Import!E9080","v":"Select from Drop Down"},{"$f":"Import!E9105","v":0},{"$f":"Import!E9131","v":0}]
[15,{"$f":"Import!E8597","v":0},{"$f":"Import!E8622","v":0},{"$f":"Import!E8647","v":"Select from Drop Down"},{"$f":"Import!E8672","v":"Select from Drop Down"},{"$f":"Import!E8697","v":"Select from Drop Down"},{"$f":"Import!E8722","v":0},{"$f":"Import!E8748","v":0},{"$f":"IF(Import!E8774=0,\"\",Import!E8774)","v":""},{"$f":"IF(Import!E8799=0,\"\",Import!E8799)","v":""},{"$f":"IF(Import!E8824=0,\"\",Import!E8824)","v":""},{"$f":"Import!E8849","v":0},{"$f":"Import!E8875","v":0},{"$f":"Import!E8901","v":0},{"$f":"Import!E8927","v":0},{"$f":"Import!E8953","v":0},{"$f":"Import!E8979","v":0},{"$f":"Import!E9005","v":0},{"$f":"Import!E9031","v":"Select from Drop Down"},{"$f":"Import!E9056","v":"Select from Drop Down"},{"$f":"Import!E9081","v":"Select from Drop Down"},{"$f":"Import!E9106","v":0},{"$f":"Import!E9132","v":0}]
[16,{"$f":"Import!E8598","v":0},{"$f":"Import!E8623","v":0},{"$f":"Import!E8648","v":"Select from Drop Down"},{"$f":"Import!E8673","v":"Select from Drop Down"},{"$f":"Import!E8698","v":"Select from Drop Down"},{"$f":"Import!E8723","v":0},{"$f":"Import!E8749","v":0},{"$f":"IF(Import!E8775=0,\"\",Import!E8775)","v":""},{"$f":"IF(Import!E8800=0,\"\",Import!E8800)","v":""},{"$f":"IF(Import!E8825=0,\"\",Import!E8825)","v":""},{"$f":"Import!E8850","v":0},{"$f":"Import!E8876","v":0},{"$f":"Import!E8902","v":0},{"$f":"Import!E8928","v":0},{"$f":"Import!E8954","v":0},{"$f":"Import!E8980","v":0},{"$f":"Import!E9006","v":0},{"$f":"Import!E9032","v":"Select from Drop Down"},{"$f":"Import!E9057","v":"Select from Drop Down"},{"$f":"Import!E9082","v":"Select from Drop Down"},{"$f":"Import!E9107","v":0},{"$f":"Import!E9133","v":0}]
[17,{"$f":"Import!E8599","v":0},{"$f":"Import!E8624","v":0},{"$f":"Import!E8649","v":"Select from Drop Down"},{"$f":"Import!E8674","v":"Select from Drop Down"},{"$f":"Import!E8699","v":"Select from Drop Down"},{"$f":"Import!E8724","v":0},{"$f":"Import!E8750","v":0},{"$f":"IF(Import!E8776=0,\"\",Import!E8776)","v":""},{"$f":"IF(Import!E8801=0,\"\",Import!E8801)","v":""},{"$f":"IF(Import!E8826=0,\"\",Import!E8826)","v":""},{"$f":"Import!E8851","v":0},{"$f":"Import!E8877","v":0},{"$f":"Import!E8903","v":0},{"$f":"Import!E8929","v":0},{"$f":"Import!E8955","v":0},{"$f":"Import!E8981","v":0},{"$f":"Import!E9007","v":0},{"$f":"Import!E9033","v":"Select from Drop Down"},{"$f":"Import!E9058","v":"Select from Drop Down"},{"$f":"Import!E9083","v":"Select from Drop Down"},{"$f":"Import!E9108","v":0},{"$f":"Import!E9134","v":0}]
[18,{"$f":"Import!E8600","v":0},{"$f":"Import!E8625","v":0},{"$f":"Import!E8650","v":"Select from Drop Down"},{"$f":"Import!E8675","v":"Select from Drop Down"},{"$f":"Import!E8700","v":"Select from Drop Down"},{"$f":"Import!E8725","v":0},{"$f":"Import!E8751","v":0},{"$f":"IF(Import!E8777=0,\"\",Import!E8777)","v":""},{"$f":"IF(Import!E8802=0,\"\",Import!E8802)","v":""},{"$f":"IF(Import!E8827=0,\"\",Import!E8827)","v":""},{"$f":"Import!E8852","v":0},{"$f":"Import!E8878","v":0},{"$f":"Import!E8904","v":0},{"$f":"Import!E8930","v":0},{"$f":"Import!E8956","v":0},{"$f":"Import!E8982","v":0},{"$f":"Import!E9008","v":0},{"$f":"Import!E9034","v":"Select from Drop Down"},{"$f":"Import!E9059","v":"Select from Drop Down"},{"$f":"Import!E9084","v":"Select from Drop Down"},{"$f":"Import!E9109","v":0},{"$f":"Import!E9135","v":0}]
[19,{"$f":"Import!E8601","v":0},{"$f":"Import!E8626","v":0},{"$f":"Import!E8651","v":"Select from Drop Down"},{"$f":"Import!E8676","v":"Select from Drop Down"},{"$f":"Import!E8701","v":"Select from Drop Down"},{"$f":"Import!E8726","v":0},{"$f":"Import!E8752","v":0},{"$f":"IF(Import!E8778=0,\"\",Import!E8778)","v":""},{"$f":"IF(Import!E8803=0,\"\",Import!E8803)","v":""},{"$f":"IF(Import!E8828=0,\"\",Import!E8828)","v":""},{"$f":"Import!E8853","v":0},{"$f":"Import!E8879","v":0},{"$f":"Import!E8905","v":0},{"$f":"Import!E8931","v":0},{"$f":"Import!E8957","v":0},{"$f":"Import!E8983","v":0},{"$f":"Import!E9009","v":0},{"$f":"Import!E9035","v":"Select from Drop Down"},{"$f":"Import!E9060","v":"Select from Drop Down"},{"$f":"Import!E9085","v":"Select from Drop Down"},{"$f":"Import!E9110","v":0},{"$f":"Import!E9136","v":0}]
[20,{"$f":"Import!E8602","v":0},{"$f":"Import!E8627","v":0},{"$f":"Import!E8652","v":"Select from Drop Down"},{"$f":"Import!E8677","v":"Select from Drop Down"},{"$f":"Import!E8702","v":"Select from Drop Down"},{"$f":"Import!E8727","v":0},{"$f":"Import!E8753","v":0},{"$f":"IF(Import!E8779=0,\"\",Import!E8779)","v":""},{"$f":"IF(Import!E8804=0,\"\",Import!E8804)","v":""},{"$f":"IF(Import!E8829=0,\"\",Import!E8829)","v":""},{"$f":"Import!E8854","v":0},{"$f":"Import!E8880","v":0},{"$f":"Import!E8906","v":0},{"$f":"Import!E8932","v":0},{"$f":"Import!E8958","v":0},{"$f":"Import!E8984","v":0},{"$f":"Import!E9010","v":0},{"$f":"Import!E9036","v":"Select from Drop Down"},{"$f":"Import!E9061","v":"Select from Drop Down"},{"$f":"Import!E9086","v":"Select from Drop Down"},{"$f":"Import!E9111","v":0},{"$f":"Import!E9137","v":0}]
[21,{"$f":"Import!E8603","v":0},{"$f":"Import!E8628","v":0},{"$f":"Import!E8653","v":"Select from Drop Down"},{"$f":"Import!E8678","v":"Select from Drop Down"},{"$f":"Import!E8703","v":"Select from Drop Down"},{"$f":"Import!E8728","v":0},{"$f":"Import!E8754","v":0},{"$f":"IF(Import!E8780=0,\"\",Import!E8780)","v":""},{"$f":"IF(Import!E8805=0,\"\",Import!E8805)","v":""},{"$f":"IF(Import!E8830=0,\"\",Import!E8830)","v":""},{"$f":"Import!E8855","v":0},{"$f":"Import!E8881","v":0},{"$f":"Import!E8907","v":0},{"$f":"Import!E8933","v":0},{"$f":"Import!E8959","v":0},{"$f":"Import!E8985","v":0},{"$f":"Import!E9011","v":0},{"$f":"Import!E9037","v":"Select from Drop Down"},{"$f":"Import!E9062","v":"Select from Drop Down"},{"$f":"Import!E9087","v":"Select from Drop Down"},{"$f":"Import!E9112","v":0},{"$f":"Import!E9138","v":0}]
[22,{"$f":"Import!E8604","v":0},{"$f":"Import!E8629","v":0},{"$f":"Import!E8654","v":"Select from Drop Down"},{"$f":"Import!E8679","v":"Select from Drop Down"},{"$f":"Import!E8704","v":"Select from Drop Down"},{"$f":"Import!E8729","v":0},{"$f":"Import!E8755","v":0},{"$f":"IF(Import!E8781=0,\"\",Import!E8781)","v":""},{"$f":"IF(Import!E8806=0,\"\",Import!E8806)","v":""},{"$f":"IF(Import!E8831=0,\"\",Import!E8831)","v":""},{"$f":"Import!E8856","v":0},{"$f":"Import!E8882","v":0},{"$f":"Import!E8908","v":0},{"$f":"Import!E8934","v":0},{"$f":"Import!E8960","v":0},{"$f":"Import!E8986","v":0},{"$f":"Import!E9012","v":0},{"$f":"Import!E9038","v":"Select from Drop Down"},{"$f":"Import!E9063","v":"Select from Drop Down"},{"$f":"Import!E9088","v":"Select from Drop Down"},{"$f":"Import!E9113","v":0},{"$f":"Import!E9139","v":0}]
[23,{"$f":"Import!E8605","v":0},{"$f":"Import!E8630","v":0},{"$f":"Import!E8655","v":"Select from Drop Down"},{"$f":"Import!E8680","v":"Select from Drop Down"},{"$f":"Import!E8705","v":"Select from Drop Down"},{"$f":"Import!E8730","v":0},{"$f":"Import!E8756","v":0},{"$f":"IF(Import!E8782=0,\"\",Import!E8782)","v":""},{"$f":"IF(Import!E8807=0,\"\",Import!E8807)","v":""},{"$f":"IF(Import!E8832=0,\"\",Import!E8832)","v":""},{"$f":"Import!E8857","v":0},{"$f":"Import!E8883","v":0},{"$f":"Import!E8909","v":0},{"$f":"Import!E8935","v":0},{"$f":"Import!E8961","v":0},{"$f":"Import!E8987","v":0},{"$f":"Import!E9013","v":0},{"$f":"Import!E9039","v":"Select from Drop Down"},{"$f":"Import!E9064","v":"Select from Drop Down"},{"$f":"Import!E9089","v":"Select from Drop Down"},{"$f":"Import!E9114","v":0},{"$f":"Import!E9140","v":0}]
[24,{"$f":"Import!E8606","v":0},{"$f":"Import!E8631","v":0},{"$f":"Import!E8656","v":"Select from Drop Down"},{"$f":"Import!E8681","v":"Select from Drop Down"},{"$f":"Import!E8706","v":"Select from Drop Down"},{"$f":"Import!E8731","v":0},{"$f":"Import!E8757","v":0},{"$f":"IF(Import!E8783=0,\"\",Import!E8783)","v":""},{"$f":"IF(Import!E8808=0,\"\",Import!E8808)","v":""},{"$f":"IF(Import!E8833=0,\"\",Import!E8833)","v":""},{"$f":"Import!E8858","v":0},{"$f":"Import!E8884","v":0},{"$f":"Import!E8910","v":0},{"$f":"Import!E8936","v":0},{"$f":"Import!E8962","v":0},{"$f":"Import!E8988","v":0},{"$f":"Import!E9014","v":0},{"$f":"Import!E9040","v":"Select from Drop Down"},{"$f":"Import!E9065","v":"Select from Drop Down"},{"$f":"Import!E9090","v":"Select from Drop Down"},{"$f":"Import!E9115","v":0},{"$f":"Import!E9141","v":0}]
[25,{"$f":"Import!E8607","v":0},{"$f":"Import!E8632","v":0},{"$f":"Import!E8657","v":"Select from Drop Down"},{"$f":"Import!E8682","v":"Select from Drop Down"},{"$f":"Import!E8707","v":"Select from Drop Down"},{"$f":"Import!E8732","v":0},{"$f":"Import!E8758","v":0},{"$f":"IF(Import!E8784=0,\"\",Import!E8784)","v":""},{"$f":"IF(Import!E8809=0,\"\",Import!E8809)","v":""},{"$f":"IF(Import!E8834=0,\"\",Import!E8834)","v":""},{"$f":"Import!E8859","v":0},{"$f":"Import!E8885","v":0},{"$f":"Import!E8911","v":0},{"$f":"Import!E8937","v":0},{"$f":"Import!E8963","v":0},{"$f":"Import!E8989","v":0},{"$f":"Import!E9015","v":0},{"$f":"Import!E9041","v":"Select from Drop Down"},{"$f":"Import!E9066","v":"Select from Drop Down"},{"$f":"Import!E9091","v":"Select from Drop Down"},{"$f":"Import!E9116","v":0},{"$f":"Import!E9142","v":0}]
[26,null,null,"Select from Drop Down","Select from Drop Down","Select from Drop Down",null,null,null,null,null,null,null,null,null,null,null,null,"Select from Drop Down","Select from Drop Down","Select from Drop Down"]
[27,null,null,"Select from Drop Down","Select from Drop Down","Select from Drop Down",null,null,null,null,null,null,null,null,null,null,null,null,"Select from Drop Down","Select from Drop Down","Select from Drop Down"]
[28,null,null,"Select from Drop Down","Select from Drop Down","Select from Drop Down",null,null,null,null,null,null,null,null,null,null,null,null,"Select from Drop Down","Select from Drop Down","Select from Drop Down"]
[29,null,null,"Select from Drop Down","Select from Drop Down","Select from Drop Down",null,null,null,null,null,null,null,null,null,null,null,null,"Select from Drop Down","Select from Drop Down","Select from Drop Down"]
[30,null,null,"Select from Drop Down","Select from Drop Down","Select from Drop Down",null,null,null,null,null,null,null,null,null,null,null,null,"Select from Drop Down","Select from Drop Down","Select from Drop Down"]
[31,null,null,"Select from Drop Down","Select from Drop Down","Select from Drop Down",null,null,null,null,null,null,null,null,null,null,null,null,"Select from Drop Down","Select from Drop Down","Select from Drop Down"]
[32,null,null,"Select from Drop Down","Select from Drop Down","Select from Drop Down",null,null,null,null,null,null,null,null,null,null,null,null,"Select from Drop Down","Select from Drop Down","Select from Drop Down"]
[33,null,null,"Select from Drop Down","Select from Drop Down","Select from Drop Down",null,null,null,null,null,null,null,null,null,null,null,null,"Select from Drop Down","Select from Drop Down","Select from Drop Down"]
[34,null,null,"Select from Drop Down","Select from Drop Down","Select from Drop Down",null,null,null,null,null,null,null,null,null,null,null,null,"Select from Drop Down","Select from Drop Down","Select from Drop Down"]
[35,null,null,"Select from Drop Down","Select from Drop Down","Select from Drop Down",null,null,null,null,null,null,null,null,null,null,null,null,"Select from Drop Down","Select from Drop Down","Select from Drop Down"]
[36,null,null,"Select from Drop Down","Select from Drop Down","Select from Drop Down",null,null,null,null,null,null,null,null,null,null,null,null,"Select from Drop Down","Select from Drop Down","Select from Drop Down"]
[37,null,null,"Select from Drop Down","Select from Drop Down","Select from Drop Down",null,null,null,null,null,null,null,null,null,null,null,null,"Select from Drop Down","Select from Drop Down","Select from Drop Down"]
[38,null,null,"Select from Drop Down","Select from Drop Down","Select from Drop Down",null,null,null,null,null,null,null,null,null,null,null,null,"Select from Drop Down","Select from Drop Down","Select from Drop Down"]
[39,null,null,"Select from Drop Down","Select from Drop Down","Select from Drop Down",null,null,null,null,null,null,null,null,null,null,null,null,"Select from Drop Down","Select from Drop Down","Select from Drop Down"]
[40,null,null,"Select from Drop Down","Select from Drop Down","Select from Drop Down",null,null,null,null,null,null,null,null,null,null,null,null,"Select from Drop Down","Select from Drop Down","Select from Drop Down"]
[41,null,null,"Select from Drop Down","Select from Drop Down","Select from Drop Down",null,null,null,null,null,null,null,null,null,null,null,null,"Select from Drop Down","Select from Drop Down","Select from Drop Down"]
[42,null,null,"Select from Drop Down","Select from Drop Down","Select from Drop Down",null,null,null,null,null,null,null,null,null,null,null,null,"Select from Drop Down","Select from Drop Down","Select from Drop Down"]
[43,null,null,"Select from Drop Down","Select from Drop Down","Select from Drop Down",null,null,null,null,null,null,null,null,null,null,null,null,"Select from Drop Down","Select from Drop Down","Select from Drop Down"]
[44,null,null,"Select from Drop Down","Select from Drop Down","Select from Drop Down",null,null,null,null,null,null,null,null,null,null,null,null,"Select from Drop Down","Select from Drop Down","Select from Drop Down"]
[45,null,null,"Select from Drop Down","Select from Drop Down","Select from Drop Down",null,null,null,null,null,null,null,null,null,null,null,null,"Select from Drop Down","Select from Drop Down","Select from Drop Down"]
[46,null,null,"Select from Drop Down","Select from Drop Down","Select from Drop Down",null,null,null,null,null,null,null,null,null,null,null,null,"Select from Drop Down","Select from Drop Down","Select from Drop Down"]
[47,null,null,"Select from Drop Down","Select from Drop Down","Select from Drop Down",null,null,null,null,null,null,null,null,null,null,null,null,"Select from Drop Down","Select from Drop Down","Select from Drop Down"]
[48,null,null,"Select from Drop Down","Select from Drop Down","Select from Drop Down",null,null,null,null,null,null,null,null,null,null,null,null,"Select from Drop Down","Select from Drop Down","Select from Drop Down"]
[49,null,null,"Select from Drop Down","Select from Drop Down","Select from Drop Down",null,null,null,null,null,null,null,null,null,null,null,null,"Select from Drop Down","Select from Drop Down","Select from Drop Down"]
[50,null,null,"Select from Drop Down","Select from Drop Down","Select from Drop Down",null,null,null,null,null,null,null,null,null,null,null,null,"Select from Drop Down","Select from Drop Down","Select from Drop Down"]
[51,null,null,"Select from Drop Down","Select from Drop Down","Select from Drop Down",null,null,null,null,null,null,null,null,null,null,null,null,"Select from Drop Down","Select from Drop Down","Select from Drop Down"]
[52,null,null,"Select from Drop Down","Select from Drop Down","Select from Drop Down",null,null,null,null,null,null,null,null,null,null,null,null,"Select from Drop Down","Select from Drop Down","Select from Drop Down"]
[53,null,null,"Select from Drop Down","Select from Drop Down","Select from Drop Down",null,null,null,null,null,null,null,null,null,null,null,null,"Select from Drop Down","Select from Drop Down","Select from Drop Down"]
[54,null,null,"Select from Drop Down","Select from Drop Down","Select from Drop Down",null,null,null,null,null,null,null,null,null,null,null,null,"Select from Drop Down","Select from Drop Down","Select from Drop Down"]
[55,null,null,"Select from Drop Down","Select from Drop Down","Select from Drop Down",null,null,null,null,null,null,null,null,null,null,null,null,"Select from Drop Down","Select from Drop Down","Select from Drop Down"]
[56,null,null,"Select from Drop Down","Select from Drop Down","Select from Drop Down",null,null,null,null,null,null,null,null,null,null,null,null,"Select from Drop Down","Select from Drop Down","Select from Drop Down"]
[57,null,null,"Select from Drop Down","Select from Drop Down","Select from Drop Down",null,null,null,null,null,null,null,null,null,null,null,null,"Select from Drop Down","Select from Drop Down","Select from Drop Down"]
[58,null,null,"Select from Drop Down","Select from Drop Down","Select from Drop Down",null,null,null,null,null,null,null,null,null,null,null,null,"Select from Drop Down","Select from Drop Down","Select from Drop Down"]
[59,null,null,"Select from Drop Down","Select from Drop Down","Select from Drop Down",null,null,null,null,null,null,null,null,null,null,null,null,"Select from Drop Down","Select from Drop Down","Select from Drop Down"]
[60,null,null,"Select from Drop Down","Select from Drop Down","Select from Drop Down",null,null,null,null,null,null,null,null,null,null,null,null,"Select from Drop Down","Select from Drop Down","Select from Drop Down"]
[61,null,null,"Select from Drop Down","Select from Drop Down","Select from Drop Down",null,null,null,null,null,null,null,null,null,null,null,null,"Select from Drop Down","Select from Drop Down","Select from Drop Down"]
[62,null,null,"Select from Drop Down","Select from Drop Down","Select from Drop Down",null,null,null,null,null,null,null,null,null,null,null,null,"Select from Drop Down","Select from Drop Down","Select from Drop Down"]
[63,null,null,"Select from Drop Down","Select from Drop Down","Select from Drop Down",null,null,null,null,null,null,null,null,null,null,null,null,"Select from Drop Down","Select from Drop Down","Select from Drop Down"]
[64,null,null,"Select from Drop Down","Select from Drop Down","Select from Drop Down",null,null,null,null,null,null,null,null,null,null,null,null,"Select from Drop Down","Select from Drop Down","Select from Drop Down"]
[65,null,null,"Select from Drop Down","Select from Drop Down","Select from Drop Down",null,null,null,null,null,null,null,null,null,null,null,null,"Select from Drop Down","Select from Drop Down","Select from Drop Down"]
[66,null,null,"Select from Drop Down","Select from Drop Down","Select from Drop Down",null,null,null,null,null,null,null,null,null,null,null,null,"Select from Drop Down","Select from Drop Down","Select from Drop Down"]
[{"$f":"A76+1","v":67},null,null,"Select from Drop Down","Select from Drop Down","Select from Drop Down",null,null,null,null,null,null,null,null,null,null,null,null,"Select from Drop Down","Select from Drop Down","Select from Drop Down"]
[68,null,null,"Select from Drop Down","Select from Drop Down","Select from Drop Down",null,null,null,null,null,null,null,null,null,null,null,null,"Select from Drop Down","Select from Drop Down","Select from Drop Down"]
[69,null,null,"Select from Drop Down","Select from Drop Down","Select from Drop Down",null,null,null,null,null,null,null,null,null,null,null,null,"Select from Drop Down","Select from Drop Down","Select from Drop Down"]
[70,null,null,"Select from Drop Down","Select from Drop Down","Select from Drop Down",null,null,null,null,null,null,null,null,null,null,null,null,"Select from Drop Down","Select from Drop Down","Select from Drop Down"]
[71,null,null,"Select from Drop Down","Select from Drop Down","Select from Drop Down",null,null,null,null,null,null,null,null,null,null,null,null,"Select from Drop Down","Select from Drop Down","Select from Drop Down"]
[72,null,null,"Select from Drop Down","Select from Drop Down","Select from Drop Down",null,null,null,null,null,null,null,null,null,null,null,null,"Select from Drop Down","Select from Drop Down","Select from Drop Down"]
[73,null,null,"Select from Drop Down","Select from Drop Down","Select from Drop Down",null,null,null,null,null,null,null,null,null,null,null,null,"Select from Drop Down","Select from Drop Down","Select from Drop Down"]
[74,null,null,"Select from Drop Down","Select from Drop Down","Select from Drop Down",null,null,null,null,null,null,null,null,null,null,null,null,"Select from Drop Down","Select from Drop Down","Select from Drop Down"]
[75,null,null,"Select from Drop Down","Select from Drop Down","Select from Drop Down",null,null,null,null,null,null,null,null,null,null,null,null,"Select from Drop Down","Select from Drop Down","Select from Drop Down"]
[76,null,null,"Select from Drop Down","Select from Drop Down","Select from Drop Down",null,null,null,null,null,null,null,null,null,null,null,null,"Select from Drop Down","Select from Drop Down","Select from Drop Down"]
[77,null,null,"Select from Drop Down","Select from Drop Down","Select from Drop Down",null,null,null,null,null,null,null,null,null,null,null,null,"Select from Drop Down","Select from Drop Down","Select from Drop Down"]
[78,null,null,"Select from Drop Down","Select from Drop Down","Select from Drop Down",null,null,null,null,null,null,null,null,null,null,null,null,"Select from Drop Down","Select from Drop Down","Select from Drop Down"]
[79,null,null,"Select from Drop Down","Select from Drop Down","Select from Drop Down",null,null,null,null,null,null,null,null,null,null,null,null,"Select from Drop Down","Select from Drop Down","Select from Drop Down"]
[80,null,null,"Select from Drop Down","Select from Drop Down","Select from Drop Down",null,null,null,null,null,null,null,null,null,null,null,null,"Select from Drop Down","Select from Drop Down","Select from Drop Down"]
[81,null,null,"Select from Drop Down","Select from Drop Down","Select from Drop Down",null,null,null,null,null,null,null,null,null,null,null,null,"Select from Drop Down","Select from Drop Down","Select from Drop Down"]
[82,null,null,"Select from Drop Down","Select from Drop Down","Select from Drop Down",null,null,null,null,null,null,null,null,null,null,null,null,"Select from Drop Down","Select from Drop Down","Select from Drop Down"]
[83,null,null,"Select from Drop Down","Select from Drop Down","Select from Drop Down",null,null,null,null,null,null,null,null,null,null,null,null,"Select from Drop Down","Select from Drop Down","Select from Drop Down"]
[84,null,null,"Select from Drop Down","Select from Drop Down","Select from Drop Down",null,null,null,null,null,null,null,null,null,null,null,null,"Select from Drop Down","Select from Drop Down","Select from Drop Down"]
[85,null,null,"Select from Drop Down","Select from Drop Down","Select from Drop Down",null,null,null,null,null,null,null,null,null,null,null,null,"Select from Drop Down","Select from Drop Down","Select from Drop Down"]
[86,null,null,"Select from Drop Down","Select from Drop Down","Select from Drop Down",null,null,null,null,null,null,null,null,null,null,null,null,"Select from Drop Down","Select from Drop Down","Select from Drop Down"]
[87,null,null,"Select from Drop Down","Select from Drop Down","Select from Drop Down",null,null,null,null,null,null,null,null,null,null,null,null,"Select from Drop Down","Select from Drop Down","Select from Drop Down"]
[88,null,null,"Select from Drop Down","Select from Drop Down","Select from Drop Down",null,null,null,null,null,null,null,null,null,null,null,null,"Select from Drop Down","Select from Drop Down","Select from Drop Down"]
[89,null,null,"Select from Drop Down","Select from Drop Down","Select from Drop Down",null,null,null,null,null,null,null,null,null,null,null,null,"Select from Drop Down","Select from Drop Down","Select from Drop Down"]
[90,null,null,"Select from Drop Down","Select from Drop Down","Select from Drop Down",null,null,null,null,null,null,null,null,null,null,null,null,"Select from Drop Down","Select from Drop Down","Select from Drop Down"]
[91,null,null,"Select from Drop Down","Select from Drop Down","Select from Drop Down",null,null,null,null,null,null,null,null,null,null,null,null,"Select from Drop Down","Select from Drop Down","Select from Drop Down"]
[92,null,null,"Select from Drop Down","Select from Drop Down","Select from Drop Down",null,null,null,null,null,null,null,null,null,null,null,null,"Select from Drop Down","Select from Drop Down","Select from Drop Down"]
[93,null,null,"Select from Drop Down","Select from Drop Down","Select from Drop Down",null,null,null,null,null,null,null,null,null,null,null,null,"Select from Drop Down","Select from Drop Down","Select from Drop Down"]
[94,null,null,"Select from Drop Down","Select from Drop Down","Select from Drop Down",null,null,null,null,null,null,null,null,null,null,null,null,"Select from Drop Down","Select from Drop Down","Select from Drop Down"]
[95,null,null,"Select from Drop Down","Select from Drop Down","Select from Drop Down",null,null,null,null,null,null,null,null,null,null,null,null,"Select from Drop Down","Select from Drop Down","Select from Drop Down"]
[96,null,null,"Select from Drop Down","Select from Drop Down","Select from Drop Down",null,null,null,null,null,null,null,null,null,null,null,null,"Select from Drop Down","Select from Drop Down","Select from Drop Down"]
[97,null,null,"Select from Drop Down","Select from Drop Down","Select from Drop Down",null,null,null,null,null,null,null,null,null,null,null,null,"Select from Drop Down","Select from Drop Down","Select from Drop Down"]
[98,null,null,"Select from Drop Down","Select from Drop Down","Select from Drop Down",null,null,null,null,null,null,null,null,null,null,null,null,"Select from Drop Down","Select from Drop Down","Select from Drop Down"]
[99,null,null,"Select from Drop Down","Select from Drop Down","Select from Drop Down",null,null,null,null,null,null,null,null,null,null,null,null,"Select from Drop Down","Select from Drop Down","Select from Drop Down"]
[100,null,null,"Select from Drop Down","Select from Drop Down","Select from Drop Down",null,null,null,null,null,null,null,null,null,null,null,null,"Select from Drop Down","Select from Drop Down","Select from Drop Down"]
[101,null,null,"Select from Drop Down","Select from Drop Down","Select from Drop Down",null,null,null,null,null,null,null,null,null,null,null,null,"Select from Drop Down","Select from Drop Down","Select from Drop Down"]
[102,null,null,"Select from Drop Down","Select from Drop Down","Select from Drop Down",null,null,null,null,null,null,null,null,null,null,null,null,"Select from Drop Down","Select from Drop Down","Select from Drop Down"]
[103,null,null,"Select from Drop Down","Select from Drop Down","Select from Drop Down",null,null,null,null,null,null,null,null,null,null,null,null,"Select from Drop Down","Select from Drop Down","Select from Drop Down"]
[104,null,null,"Select from Drop Down","Select from Drop Down","Select from Drop Down",null,null,null,null,null,null,null,null,null,null,null,null,"Select from Drop Down","Select from Drop Down","Select from Drop Down"]
[105,null,null,"Select from Drop Down","Select from Drop Down","Select from Drop Down",null,null,null,null,null,null,null,null,null,null,null,null,"Select from Drop Down","Select from Drop Down","Select from Drop Down"]
[106,null,null,"Select from Drop Down","Select from Drop Down","Select from Drop Down",null,null,null,null,null,null,null,null,null,null,null,null,"Select from Drop Down","Select from Drop Down","Select from Drop Down"]
[107,null,null,"Select from Drop Down","Select from Drop Down","Select from Drop Down",null,null,null,null,null,null,null,null,null,null,null,null,"Select from Drop Down","Select from Drop Down","Select from Drop Down"]
[108,null,null,"Select from Drop Down","Select from Drop Down","Select from Drop Down",null,null,null,null,null,null,null,null,null,null,null,null,"Select from Drop Down","Select from Drop Down","Select from Drop Down"]
[109,null,null,"Select from Drop Down","Select from Drop Down","Select from Drop Down",null,null,null,null,null,null,null,null,null,null,null,null,"Select from Drop Down","Select from Drop Down","Select from Drop Down"]
[110,null,null,"Select from Drop Down","Select from Drop Down","Select from Drop Down",null,null,null,null,null,null,null,null,null,null,null,null,"Select from Drop Down","Select from Drop Down","Select from Drop Down"]
[111,null,null,"Select from Drop Down","Select from Drop Down","Select from Drop Down",null,null,null,null,null,null,null,null,null,null,null,null,"Select from Drop Down","Select from Drop Down","Select from Drop Down"]
[112,null,null,"Select from Drop Down","Select from Drop Down","Select from Drop Down",null,null,null,null,null,null,null,null,null,null,null,null,"Select from Drop Down","Select from Drop Down","Select from Drop Down"]
[113,null,null,"Select from Drop Down","Select from Drop Down","Select from Drop Down",null,null,null,null,null,null,null,null,null,null,null,null,"Select from Drop Down","Select from Drop Down","Select from Drop Down"]
[114,null,null,"Select from Drop Down","Select from Drop Down","Select from Drop Down",null,null,null,null,null,null,null,null,null,null,null,null,"Select from Drop Down","Select from Drop Down","Select from Drop Down"]
[115,null,null,"Select from Drop Down","Select from Drop Down","Select from Drop Down",null,null,null,null,null,null,null,null,null,null,null,null,"Select from Drop Down","Select from Drop Down","Select from Drop Down"]
[116,null,null,"Select from Drop Down","Select from Drop Down","Select from Drop Down",null,null,null,null,null,null,null,null,null,null,null,null,"Select from Drop Down","Select from Drop Down","Select from Drop Down"]
[117,null,null,"Select from Drop Down","Select from Drop Down","Select from Drop Down",null,null,null,null,null,null,null,null,null,null,null,null,"Select from Drop Down","Select from Drop Down","Select from Drop Down"]
[118,null,null,"Select from Drop Down","Select from Drop Down","Select from Drop Down",null,null,null,null,null,null,null,null,null,null,null,null,"Select from Drop Down","Select from Drop Down","Select from Drop Down"]
[119,null,null,"Select from Drop Down","Select from Drop Down","Select from Drop Down",null,null,null,null,null,null,null,null,null,null,null,null,"Select from Drop Down","Select from Drop Down","Select from Drop Down"]
[120,null,null,"Select from Drop Down","Select from Drop Down","Select from Drop Down",null,null,null,null,null,null,null,null,null,null,null,null,"Select from Drop Down","Select from Drop Down","Select from Drop Down"]
[121,null,null,"Select from Drop Down","Select from Drop Down","Select from Drop Down",null,null,null,null,null,null,null,null,null,null,null,null,"Select from Drop Down","Select from Drop Down","Select from Drop Down"]
[122,null,null,"Select from Drop Down","Select from Drop Down","Select from Drop Down",null,null,null,null,null,null,null,null,null,null,null,null,"Select from Drop Down","Select from Drop Down","Select from Drop Down"]
[123,null,null,"Select from Drop Down","Select from Drop Down","Select from Drop Down",null,null,null,null,null,null,null,null,null,null,null,null,"Select from Drop Down","Select from Drop Down","Select from Drop Down"]
[124,null,null,"Select from Drop Down","Select from Drop Down","Select from Drop Down",null,null,null,null,null,null,null,null,null,null,null,null,"Select from Drop Down","Select from Drop Down","Select from Drop Down"]
[125,null,null,"Select from Drop Down","Select from Drop Down","Select from Drop Down",null,null,null,null,null,null,null,null,null,null,null,null,"Select from Drop Down","Select from Drop Down","Select from Drop Down"]
[126,null,null,"Select from Drop Down","Select from Drop Down","Select from Drop Down",null,null,null,null,null,null,null,null,null,null,null,null,"Select from Drop Down","Select from Drop Down","Select from Drop Down"]
[127,null,null,"Select from Drop Down","Select from Drop Down","Select from Drop Down",null,null,null,null,null,null,null,null,null,null,null,null,"Select from Drop Down","Select from Drop Down","Select from Drop Down"]
[128,null,null,"Select from Drop Down","Select from Drop Down","Select from Drop Down",null,null,null,null,null,null,null,null,null,null,null,null,"Select from Drop Down","Select from Drop Down","Select from Drop Down"]
[129,null,null,"Select from Drop Down","Select from Drop Down","Select from Drop Down",null,null,null,null,null,null,null,null,null,null,null,null,"Select from Drop Down","Select from Drop Down","Select from Drop Down"]
[130,null,null,"Select from Drop Down","Select from Drop Down","Select from Drop Down",null,null,null,null,null,null,null,null,null,null,null,null,"Select from Drop Down","Select from Drop Down","Select from Drop Down"]
[{"$f":"A140+1","v":131},null,null,"Select from Drop Down","Select from Drop Down","Select from Drop Down",null,null,null,null,null,null,null,null,null,null,null,null,"Select from Drop Down","Select from Drop Down","Select from Drop Down"]
[132,null,null,"Select from Drop Down","Select from Drop Down","Select from Drop Down",null,null,null,null,null,null,null,null,null,null,null,null,"Select from Drop Down","Select from Drop Down","Select from Drop Down"]
[133,null,null,"Select from Drop Down","Select from Drop Down","Select from Drop Down",null,null,null,null,null,null,null,null,null,null,null,null,"Select from Drop Down","Select from Drop Down","Select from Drop Down"]
[134,null,null,"Select from Drop Down","Select from Drop Down","Select from Drop Down",null,null,null,null,null,null,null,null,null,null,null,null,"Select from Drop Down","Select from Drop Down","Select from Drop Down"]
[135,null,null,"Select from Drop Down","Select from Drop Down","Select from Drop Down",null,null,null,null,null,null,null,null,null,null,null,null,"Select from Drop Down","Select from Drop Down","Select from Drop Down"]
[136,null,null,"Select from Drop Down","Select from Drop Down","Select from Drop Down",null,null,null,null,null,null,null,null,null,null,null,null,"Select from Drop Down","Select from Drop Down","Select from Drop Down"]
[137,null,null,"Select from Drop Down","Select from Drop Down","Select from Drop Down",null,null,null,null,null,null,null,null,null,null,null,null,"Select from Drop Down","Select from Drop Down","Select from Drop Down"]
[138,null,null,"Select from Drop Down","Select from Drop Down","Select from Drop Down",null,null,null,null,null,null,null,null,null,null,null,null,"Select from Drop Down","Select from Drop Down","Select from Drop Down"]
[139,null,null,"Select from Drop Down","Select from Drop Down","Select from Drop Down",null,null,null,null,null,null,null,null,null,null,null,null,"Select from Drop Down","Select from Drop Down","Select from Drop Down"]
[140,null,null,"Select from Drop Down","Select from Drop Down","Select from Drop Down",null,null,null,null,null,null,null,null,null,null,null,null,"Select from Drop Down","Select from Drop Down","Select from Drop Down"]
[141,null,null,"Select from Drop Down","Select from Drop Down","Select from Drop Down",null,null,null,null,null,null,null,null,null,null,null,null,"Select from Drop Down","Select from Drop Down","Select from Drop Down"]
[142,null,null,"Select from Drop Down","Select from Drop Down","Select from Drop Down",null,null,null,null,null,null,null,null,null,null,null,null,"Select from Drop Down","Select from Drop Down","Select from Drop Down"]
[143,null,null,"Select from Drop Down","Select from Drop Down","Select from Drop Down",null,null,null,null,null,null,null,null,null,null,null,null,"Select from Drop Down","Select from Drop Down","Select from Drop Down"]
[144,null,null,"Select from Drop Down","Select from Drop Down","Select from Drop Down",null,null,null,null,null,null,null,null,null,null,null,null,"Select from Drop Down","Select from Drop Down","Select from Drop Down"]
[145,null,null,"Select from Drop Down","Select from Drop Down","Select from Drop Down",null,null,null,null,null,null,null,null,null,null,null,null,"Select from Drop Down","Select from Drop Down","Select from Drop Down"]
[146,null,null,"Select from Drop Down","Select from Drop Down","Select from Drop Down",null,null,null,null,null,null,null,null,null,null,null,null,"Select from Drop Down","Select from Drop Down","Select from Drop Down"]
[147,null,null,"Select from Drop Down","Select from Drop Down","Select from Drop Down",null,null,null,null,null,null,null,null,null,null,null,null,"Select from Drop Down","Select from Drop Down","Select from Drop Down"]
[148,null,null,"Select from Drop Down","Select from Drop Down","Select from Drop Down",null,null,null,null,null,null,null,null,null,null,null,null,"Select from Drop Down","Select from Drop Down","Select from Drop Down"]
[149,null,null,"Select from Drop Down","Select from Drop Down","Select from Drop Down",null,null,null,null,null,null,null,null,null,null,null,null,"Select from Drop Down","Select from Drop Down","Select from Drop Down"]
[150,null,null,"Select from Drop Down","Select from Drop Down","Select from Drop Down",null,null,null,null,null,null,null,null,null,null,null,null,"Select from Drop Down","Select from Drop Down","Select from Drop Down"]
[151,null,null,"Select from Drop Down","Select from Drop Down","Select from Drop Down",null,null,null,null,null,null,null,null,null,null,null,null,"Select from Drop Down","Select from Drop Down","Select from Drop Down"]
[152,null,null,"Select from Drop Down","Select from Drop Down","Select from Drop Down",null,null,null,null,null,null,null,null,null,null,null,null,"Select from Drop Down","Select from Drop Down","Select from Drop Down"]
[153,null,null,"Select from Drop Down","Select from Drop Down","Select from Drop Down",null,null,null,null,null,null,null,null,null,null,null,null,"Select from Drop Down","Select from Drop Down","Select from Drop Down"]
[154,null,null,"Select from Drop Down","Select from Drop Down","Select from Drop Down",null,null,null,null,null,null,null,null,null,null,null,null,"Select from Drop Down","Select from Drop Down","Select from Drop Down"]
[155,null,null,"Select from Drop Down","Select from Drop Down","Select from Drop Down",null,null,null,null,null,null,null,null,null,null,null,null,"Select from Drop Down","Select from Drop Down","Select from Drop Down"]
[156,null,null,"Select from Drop Down","Select from Drop Down","Select from Drop Down",null,null,null,null,null,null,null,null,null,null,null,null,"Select from Drop Down","Select from Drop Down","Select from Drop Down"]
[157,null,null,"Select from Drop Down","Select from Drop Down","Select from Drop Down",null,null,null,null,null,null,null,null,null,null,null,null,"Select from Drop Down","Select from Drop Down","Select from Drop Down"]
[158,null,null,"Select from Drop Down","Select from Drop Down","Select from Drop Down",null,null,null,null,null,null,null,null,null,null,null,null,"Select from Drop Down","Select from Drop Down","Select from Drop Down"]
[159,null,null,"Select from Drop Down","Select from Drop Down","Select from Drop Down",null,null,null,null,null,null,null,null,null,null,null,null,"Select from Drop Down","Select from Drop Down","Select from Drop Down"]
[160,null,null,"Select from Drop Down","Select from Drop Down","Select from Drop Down",null,null,null,null,null,null,null,null,null,null,null,null,"Select from Drop Down","Select from Drop Down","Select from Drop Down"]
[161,null,null,"Select from Drop Down","Select from Drop Down","Select from Drop Down",null,null,null,null,null,null,null,null,null,null,null,null,"Select from Drop Down","Select from Drop Down","Select from Drop Down"]
[162,null,null,"Select from Drop Down","Select from Drop Down","Select from Drop Down",null,null,null,null,null,null,null,null,null,null,null,null,"Select from Drop Down","Select from Drop Down","Select from Drop Down"]
[163,null,null,"Select from Drop Down","Select from Drop Down","Select from Drop Down",null,null,null,null,null,null,null,null,null,null,null,null,"Select from Drop Down","Select from Drop Down","Select from Drop Down"]
[164,null,null,"Select from Drop Down","Select from Drop Down","Select from Drop Down",null,null,null,null,null,null,null,null,null,null,null,null,"Select from Drop Down","Select from Drop Down","Select from Drop Down"]
[165,null,null,"Select from Drop Down","Select from Drop Down","Select from Drop Down",null,null,null,null,null,null,null,null,null,null,null,null,"Select from Drop Down","Select from Drop Down","Select from Drop Down"]
[166,null,null,"Select from Drop Down","Select from Drop Down","Select from Drop Down",null,null,null,null,null,null,null,null,null,null,null,null,"Select from Drop Down","Select from Drop Down","Select from Drop Down"]
[167,null,null,"Select from Drop Down","Select from Drop Down","Select from Drop Down",null,null,null,null,null,null,null,null,null,null,null,null,"Select from Drop Down","Select from Drop Down","Select from Drop Down"]
[168,null,null,"Select from Drop Down","Select from Drop Down","Select from Drop Down",null,null,null,null,null,null,null,null,null,null,null,null,"Select from Drop Down","Select from Drop Down","Select from Drop Down"]
[169,null,null,"Select from Drop Down","Select from Drop Down","Select from Drop Down",null,null,null,null,null,null,null,null,null,null,null,null,"Select from Drop Down","Select from Drop Down","Select from Drop Down"]
[170,null,null,"Select from Drop Down","Select from Drop Down","Select from Drop Down",null,null,null,null,null,null,null,null,null,null,null,null,"Select from Drop Down","Select from Drop Down","Select from Drop Down"]
[171,null,null,"Select from Drop Down","Select from Drop Down","Select from Drop Down",null,null,null,null,null,null,null,null,null,null,null,null,"Select from Drop Down","Select from Drop Down","Select from Drop Down"]
[172,null,null,"Select from Drop Down","Select from Drop Down","Select from Drop Down",null,null,null,null,null,null,null,null,null,null,null,null,"Select from Drop Down","Select from Drop Down","Select from Drop Down"]
[173,null,null,"Select from Drop Down","Select from Drop Down","Select from Drop Down",null,null,null,null,null,null,null,null,null,null,null,null,"Select from Drop Down","Select from Drop Down","Select from Drop Down"]
[174,null,null,"Select from Drop Down","Select from Drop Down","Select from Drop Down",null,null,null,null,null,null,null,null,null,null,null,null,"Select from Drop Down","Select from Drop Down","Select from Drop Down"]
[175,null,null,"Select from Drop Down","Select from Drop Down","Select from Drop Down",null,null,null,null,null,null,null,null,null,null,null,null,"Select from Drop Down","Select from Drop Down","Select from Drop Down"]
[176,null,null,"Select from Drop Down","Select from Drop Down","Select from Drop Down",null,null,null,null,null,null,null,null,null,null,null,null,"Select from Drop Down","Select from Drop Down","Select from Drop Down"]
[177,null,null,"Select from Drop Down","Select from Drop Down","Select from Drop Down",null,null,null,null,null,null,null,null,null,null,null,null,"Select from Drop Down","Select from Drop Down","Select from Drop Down"]
[178,null,null,"Select from Drop Down","Select from Drop Down","Select from Drop Down",null,null,null,null,null,null,null,null,null,null,null,null,"Select from Drop Down","Select from Drop Down","Select from Drop Down"]
[179,null,null,"Select from Drop Down","Select from Drop Down","Select from Drop Down",null,null,null,null,null,null,null,null,null,null,null,null,"Select from Drop Down","Select from Drop Down","Select from Drop Down"]
[180,null,null,"Select from Drop Down","Select from Drop Down","Select from Drop Down",null,null,null,null,null,null,null,null,null,null,null,null,"Select from Drop Down","Select from Drop Down","Select from Drop Down"]
[181,null,null,"Select from Drop Down","Select from Drop Down","Select from Drop Down",null,null,null,null,null,null,null,null,null,null,null,null,"Select from Drop Down","Select from Drop Down","Select from Drop Down"]
[182,null,null,"Select from Drop Down","Select from Drop Down","Select from Drop Down",null,null,null,null,null,null,null,null,null,null,null,null,"Select from Drop Down","Select from Drop Down","Select from Drop Down"]
[183,null,null,"Select from Drop Down","Select from Drop Down","Select from Drop Down",null,null,null,null,null,null,null,null,null,null,null,null,"Select from Drop Down","Select from Drop Down","Select from Drop Down"]
[184,null,null,"Select from Drop Down","Select from Drop Down","Select from Drop Down",null,null,null,null,null,null,null,null,null,null,null,null,"Select from Drop Down","Select from Drop Down","Select from Drop Down"]
[185,null,null,"Select from Drop Down","Select from Drop Down","Select from Drop Down",null,null,null,null,null,null,null,null,null,null,null,null,"Select from Drop Down","Select from Drop Down","Select from Drop Down"]
[186,null,null,"Select from Drop Down","Select from Drop Down","Select from Drop Down",null,null,null,null,null,null,null,null,null,null,null,null,"Select from Drop Down","Select from Drop Down","Select from Drop Down"]
[187,null,null,"Select from Drop Down","Select from Drop Down","Select from Drop Down",null,null,null,null,null,null,null,null,null,null,null,null,"Select from Drop Down","Select from Drop Down","Select from Drop Down"]
[188,null,null,"Select from Drop Down","Select from Drop Down","Select from Drop Down",null,null,null,null,null,null,null,null,null,null,null,null,"Select from Drop Down","Select from Drop Down","Select from Drop Down"]
[189,null,null,"Select from Drop Down","Select from Drop Down","Select from Drop Down",null,null,null,null,null,null,null,null,null,null,null,null,"Select from Drop Down","Select from Drop Down","Select from Drop Down"]
[190,null,null,"Select from Drop Down","Select from Drop Down","Select from Drop Down",null,null,null,null,null,null,null,null,null,null,null,null,"Select from Drop Down","Select from Drop Down","Select from Drop Down"]
[191,null,null,"Select from Drop Down","Select from Drop Down","Select from Drop Down",null,null,null,null,null,null,null,null,null,null,null,null,"Select from Drop Down","Select from Drop Down","Select from Drop Down"]
[192,null,null,"Select from Drop Down","Select from Drop Down","Select from Drop Down",null,null,null,null,null,null,null,null,null,null,null,null,"Select from Drop Down","Select from Drop Down","Select from Drop Down"]
[193,null,null,"Select from Drop Down","Select from Drop Down","Select from Drop Down",null,null,null,null,null,null,null,null,null,null,null,null,"Select from Drop Down","Select from Drop Down","Select from Drop Down"]
[194,null,null,"Select from Drop Down","Select from Drop Down","Select from Drop Down",null,null,null,null,null,null,null,null,null,null,null,null,"Select from Drop Down","Select from Drop Down","Select from Drop Down"]
[{"$f":"A204+1","v":195},null,null,"Select from Drop Down","Select from Drop Down","Select from Drop Down",null,null,null,null,null,null,null,null,null,null,null,null,"Select from Drop Down","Select from Drop Down","Select from Drop Down"]
[196,null,null,"Select from Drop Down","Select from Drop Down","Select from Drop Down",null,null,null,null,null,null,null,null,null,null,null,null,"Select from Drop Down","Select from Drop Down","Select from Drop Down"]
[197,null,null,"Select from Drop Down","Select from Drop Down","Select from Drop Down",null,null,null,null,null,null,null,null,null,null,null,null,"Select from Drop Down","Select from Drop Down","Select from Drop Down"]
[198,null,null,"Select from Drop Down","Select from Drop Down","Select from Drop Down",null,null,null,null,null,null,null,null,null,null,null,null,"Select from Drop Down","Select from Drop Down","Select from Drop Down"]
[199,null,null,"Select from Drop Down","Select from Drop Down","Select from Drop Down",null,null,null,null,null,null,null,null,null,null,null,null,"Select from Drop Down","Select from Drop Down","Select from Drop Down"]
[200,null,null,"Select from Drop Down","Select from Drop Down","Select from Drop Down",null,null,null,null,null,null,null,null,null,null,null,null,"Select from Drop Down","Select from Drop Down","Select from Drop Down"]
[201,null,null,"Select from Drop Down","Select from Drop Down","Select from Drop Down",null,null,null,null,null,null,null,null,null,null,null,null,"Select from Drop Down","Select from Drop Down","Select from Drop Down"]
[202,null,null,"Select from Drop Down","Select from Drop Down","Select from Drop Down",null,null,null,null,null,null,null,null,null,null,null,null,"Select from Drop Down","Select from Drop Down","Select from Drop Down"]
[203,null,null,"Select from Drop Down","Select from Drop Down","Select from Drop Down",null,null,null,null,null,null,null,null,null,null,null,null,"Select from Drop Down","Select from Drop Down","Select from Drop Down"]
[204,null,null,"Select from Drop Down","Select from Drop Down","Select from Drop Down",null,null,null,null,null,null,null,null,null,null,null,null,"Select from Drop Down","Select from Drop Down","Select from Drop Down"]
[205,null,null,"Select from Drop Down","Select from Drop Down","Select from Drop Down",null,null,null,null,null,null,null,null,null,null,null,null,"Select from Drop Down","Select from Drop Down","Select from Drop Down"]
[206,null,null,"Select from Drop Down","Select from Drop Down","Select from Drop Down",null,null,null,null,null,null,null,null,null,null,null,null,"Select from Drop Down","Select from Drop Down","Select from Drop Down"]
[207,null,null,"Select from Drop Down","Select from Drop Down","Select from Drop Down",null,null,null,null,null,null,null,null,null,null,null,null,"Select from Drop Down","Select from Drop Down","Select from Drop Down"]
[208,null,null,"Select from Drop Down","Select from Drop Down","Select from Drop Down",null,null,null,null,null,null,null,null,null,null,null,null,"Select from Drop Down","Select from Drop Down","Select from Drop Down"]
[209,null,null,"Select from Drop Down","Select from Drop Down","Select from Drop Down",null,null,null,null,null,null,null,null,null,null,null,null,"Select from Drop Down","Select from Drop Down","Select from Drop Down"]
[210,null,null,"Select from Drop Down","Select from Drop Down","Select from Drop Down",null,null,null,null,null,null,null,null,null,null,null,null,"Select from Drop Down","Select from Drop Down","Select from Drop Down"]
[211,null,null,"Select from Drop Down","Select from Drop Down","Select from Drop Down",null,null,null,null,null,null,null,null,null,null,null,null,"Select from Drop Down","Select from Drop Down","Select from Drop Down"]
[212,null,null,"Select from Drop Down","Select from Drop Down","Select from Drop Down",null,null,null,null,null,null,null,null,null,null,null,null,"Select from Drop Down","Select from Drop Down","Select from Drop Down"]
[213,null,null,"Select from Drop Down","Select from Drop Down","Select from Drop Down",null,null,null,null,null,null,null,null,null,null,null,null,"Select from Drop Down","Select from Drop Down","Select from Drop Down"]
[214,null,null,"Select from Drop Down","Select from Drop Down","Select from Drop Down",null,null,null,null,null,null,null,null,null,null,null,null,"Select from Drop Down","Select from Drop Down","Select from Drop Down"]
[215,null,null,"Select from Drop Down","Select from Drop Down","Select from Drop Down",null,null,null,null,null,null,null,null,null,null,null,null,"Select from Drop Down","Select from Drop Down","Select from Drop Down"]
[216,null,null,"Select from Drop Down","Select from Drop Down","Select from Drop Down",null,null,null,null,null,null,null,null,null,null,null,null,"Select from Drop Down","Select from Drop Down","Select from Drop Down"]
[217,null,null,"Select from Drop Down","Select from Drop Down","Select from Drop Down",null,null,null,null,null,null,null,null,null,null,null,null,"Select from Drop Down","Select from Drop Down","Select from Drop Down"]
[218,null,null,"Select from Drop Down","Select from Drop Down","Select from Drop Down",null,null,null,null,null,null,null,null,null,null,null,null,"Select from Drop Down","Select from Drop Down","Select from Drop Down"]
[219,null,null,"Select from Drop Down","Select from Drop Down","Select from Drop Down",null,null,null,null,null,null,null,null,null,null,null,null,"Select from Drop Down","Select from Drop Down","Select from Drop Down"]
[220,null,null,"Select from Drop Down","Select from Drop Down","Select from Drop Down",null,null,null,null,null,null,null,null,null,null,null,null,"Select from Drop Down","Select from Drop Down","Select from Drop Down"]
[221,null,null,"Select from Drop Down","Select from Drop Down","Select from Drop Down",null,null,null,null,null,null,null,null,null,null,null,null,"Select from Drop Down","Select from Drop Down","Select from Drop Down"]
[222,null,null,"Select from Drop Down","Select from Drop Down","Select from Drop Down",null,null,null,null,null,null,null,null,null,null,null,null,"Select from Drop Down","Select from Drop Down","Select from Drop Down"]
[223,null,null,"Select from Drop Down","Select from Drop Down","Select from Drop Down",null,null,null,null,null,null,null,null,null,null,null,null,"Select from Drop Down","Select from Drop Down","Select from Drop Down"]
[224,null,null,"Select from Drop Down","Select from Drop Down","Select from Drop Down",null,null,null,null,null,null,null,null,null,null,null,null,"Select from Drop Down","Select from Drop Down","Select from Drop Down"]
[225,null,null,"Select from Drop Down","Select from Drop Down","Select from Drop Down",null,null,null,null,null,null,null,null,null,null,null,null,"Select from Drop Down","Select from Drop Down","Select from Drop Down"]
[226,null,null,"Select from Drop Down","Select from Drop Down","Select from Drop Down",null,null,null,null,null,null,null,null,null,null,null,null,"Select from Drop Down","Select from Drop Down","Select from Drop Down"]
[227,null,null,"Select from Drop Down","Select from Drop Down","Select from Drop Down",null,null,null,null,null,null,null,null,null,null,null,null,"Select from Drop Down","Select from Drop Down","Select from Drop Down"]
[228,null,null,"Select from Drop Down","Select from Drop Down","Select from Drop Down",null,null,null,null,null,null,null,null,null,null,null,null,"Select from Drop Down","Select from Drop Down","Select from Drop Down"]
[229,null,null,"Select from Drop Down","Select from Drop Down","Select from Drop Down",null,null,null,null,null,null,null,null,null,null,null,null,"Select from Drop Down","Select from Drop Down","Select from Drop Down"]
[230,null,null,"Select from Drop Down","Select from Drop Down","Select from Drop Down",null,null,null,null,null,null,null,null,null,null,null,null,"Select from Drop Down","Select from Drop Down","Select from Drop Down"]
[231,null,null,"Select from Drop Down","Select from Drop Down","Select from Drop Down",null,null,null,null,null,null,null,null,null,null,null,null,"Select from Drop Down","Select from Drop Down","Select from Drop Down"]
[232,null,null,"Select from Drop Down","Select from Drop Down","Select from Drop Down",null,null,null,null,null,null,null,null,null,null,null,null,"Select from Drop Down","Select from Drop Down","Select from Drop Down"]
[233,null,null,"Select from Drop Down","Select from Drop Down","Select from Drop Down",null,null,null,null,null,null,null,null,null,null,null,null,"Select from Drop Down","Select from Drop Down","Select from Drop Down"]
[234,null,null,"Select from Drop Down","Select from Drop Down","Select from Drop Down",null,null,null,null,null,null,null,null,null,null,null,null,"Select from Drop Down","Select from Drop Down","Select from Drop Down"]
[235,null,null,"Select from Drop Down","Select from Drop Down","Select from Drop Down",null,null,null,null,null,null,null,null,null,null,null,null,"Select from Drop Down","Select from Drop Down","Select from Drop Down"]
[236,null,null,"Select from Drop Down","Select from Drop Down","Select from Drop Down",null,null,null,null,null,null,null,null,null,null,null,null,"Select from Drop Down","Select from Drop Down","Select from Drop Down"]
[237,null,null,"Select from Drop Down","Select from Drop Down","Select from Drop Down",null,null,null,null,null,null,null,null,null,null,null,null,"Select from Drop Down","Select from Drop Down","Select from Drop Down"]
[238,null,null,"Select from Drop Down","Select from Drop Down","Select from Drop Down",null,null,null,null,null,null,null,null,null,null,null,null,"Select from Drop Down","Select from Drop Down","Select from Drop Down"]
[239,null,null,"Select from Drop Down","Select from Drop Down","Select from Drop Down",null,null,null,null,null,null,null,null,null,null,null,null,"Select from Drop Down","Select from Drop Down","Select from Drop Down"]
[240,null,null,"Select from Drop Down","Select from Drop Down","Select from Drop Down",null,null,null,null,null,null,null,null,null,null,null,null,"Select from Drop Down","Select from Drop Down","Select from Drop Down"]
[241,null,null,"Select from Drop Down","Select from Drop Down","Select from Drop Down",null,null,null,null,null,null,null,null,null,null,null,null,"Select from Drop Down","Select from Drop Down","Select from Drop Down"]
[242,null,null,"Select from Drop Down","Select from Drop Down","Select from Drop Down",null,null,null,null,null,null,null,null,null,null,null,null,"Select from Drop Down","Select from Drop Down","Select from Drop Down"]
[243,null,null,"Select from Drop Down","Select from Drop Down","Select from Drop Down",null,null,null,null,null,null,null,null,null,null,null,null,"Select from Drop Down","Select from Drop Down","Select from Drop Down"]
[244,null,null,"Select from Drop Down","Select from Drop Down","Select from Drop Down",null,null,null,null,null,null,null,null,null,null,null,null,"Select from Drop Down","Select from Drop Down","Select from Drop Down"]
[245,null,null,"Select from Drop Down","Select from Drop Down","Select from Drop Down",null,null,null,null,null,null,null,null,null,null,null,null,"Select from Drop Down","Select from Drop Down","Select from Drop Down"]
[246,null,null,"Select from Drop Down","Select from Drop Down","Select from Drop Down",null,null,null,null,null,null,null,null,null,null,null,null,"Select from Drop Down","Select from Drop Down","Select from Drop Down"]
[247,null,null,"Select from Drop Down","Select from Drop Down","Select from Drop Down",null,null,null,null,null,null,null,null,null,null,null,null,"Select from Drop Down","Select from Drop Down","Select from Drop Down"]
[248,null,null,"Select from Drop Down","Select from Drop Down","Select from Drop Down",null,null,null,null,null,null,null,null,null,null,null,null,"Select from Drop Down","Select from Drop Down","Select from Drop Down"]
[249,null,null,"Select from Drop Down","Select from Drop Down","Select from Drop Down",null,null,null,null,null,null,null,null,null,null,null,null,"Select from Drop Down","Select from Drop Down","Select from Drop Down"]
[250,null,null,"Select from Drop Down","Select from Drop Down","Select from Drop Down",null,null,null,null,null,null,null,null,null,null,null,null,"Select from Drop Down","Select from Drop Down","Select from Drop Down"]
[251,null,null,"Select from Drop Down","Select from Drop Down","Select from Drop Down",null,null,null,null,null,null,null,null,null,null,null,null,"Select from Drop Down","Select from Drop Down","Select from Drop Down"]
[252,null,null,"Select from Drop Down","Select from Drop Down","Select from Drop Down",null,null,null,null,null,null,null,null,null,null,null,null,"Select from Drop Down","Select from Drop Down","Select from Drop Down"]
[253,null,null,"Select from Drop Down","Select from Drop Down","Select from Drop Down",null,null,null,null,null,null,null,null,null,null,null,null,"Select from Drop Down","Select from Drop Down","Select from Drop Down"]
[254,null,null,"Select from Drop Down","Select from Drop Down","Select from Drop Down",null,null,null,null,null,null,null,null,null,null,null,null,"Select from Drop Down","Select from Drop Down","Select from Drop Down"]
[255,null,null,"Select from Drop Down","Select from Drop Down","Select from Drop Down",null,null,null,null,null,null,null,null,null,null,null,null,"Select from Drop Down","Select from Drop Down","Select from Drop Down"]
[256,null,null,"Select from Drop Down","Select from Drop Down","Select from Drop Down",null,null,null,null,null,null,null,null,null,null,null,null,"Select from Drop Down","Select from Drop Down","Select from Drop Down"]
[257,null,null,"Select from Drop Down","Select from Drop Down","Select from Drop Down",null,null,null,null,null,null,null,null,null,null,null,null,"Select from Drop Down","Select from Drop Down","Select from Drop Down"]
[258,null,null,"Select from Drop Down","Select from Drop Down","Select from Drop Down",null,null,null,null,null,null,null,null,null,null,null,null,"Select from Drop Down","Select from Drop Down","Select from Drop Down"]
[{"$f":"A268+1","v":259},null,null,"Select from Drop Down","Select from Drop Down","Select from Drop Down",null,null,null,null,null,null,null,null,null,null,null,null,"Select from Drop Down","Select from Drop Down","Select from Drop Down"]
[260,null,null,"Select from Drop Down","Select from Drop Down","Select from Drop Down",null,null,null,null,null,null,null,null,null,null,null,null,"Select from Drop Down","Select from Drop Down","Select from Drop Down"]
[261,null,null,"Select from Drop Down","Select from Drop Down","Select from Drop Down",null,null,null,null,null,null,null,null,null,null,null,null,"Select from Drop Down","Select from Drop Down","Select from Drop Down"]
[262,null,null,"Select from Drop Down","Select from Drop Down","Select from Drop Down",null,null,null,null,null,null,null,null,null,null,null,null,"Select from Drop Down","Select from Drop Down","Select from Drop Down"]
[263,null,null,"Select from Drop Down","Select from Drop Down","Select from Drop Down",null,null,null,null,null,null,null,null,null,null,null,null,"Select from Drop Down","Select from Drop Down","Select from Drop Down"]
[264,null,null,"Select from Drop Down","Select from Drop Down","Select from Drop Down",null,null,null,null,null,null,null,null,null,null,null,null,"Select from Drop Down","Select from Drop Down","Select from Drop Down"]
[265,null,null,"Select from Drop Down","Select from Drop Down","Select from Drop Down",null,null,null,null,null,null,null,null,null,null,null,null,"Select from Drop Down","Select from Drop Down","Select from Drop Down"]
[266,null,null,"Select from Drop Down","Select from Drop Down","Select from Drop Down",null,null,null,null,null,null,null,null,null,null,null,null,"Select from Drop Down","Select from Drop Down","Select from Drop Down"]
[267,null,null,"Select from Drop Down","Select from Drop Down","Select from Drop Down",null,null,null,null,null,null,null,null,null,null,null,null,"Select from Drop Down","Select from Drop Down","Select from Drop Down"]
[268,null,null,"Select from Drop Down","Select from Drop Down","Select from Drop Down",null,null,null,null,null,null,null,null,null,null,null,null,"Select from Drop Down","Select from Drop Down","Select from Drop Down"]
[269,null,null,"Select from Drop Down","Select from Drop Down","Select from Drop Down",null,null,null,null,null,null,null,null,null,null,null,null,"Select from Drop Down","Select from Drop Down","Select from Drop Down"]
[270,null,null,"Select from Drop Down","Select from Drop Down","Select from Drop Down",null,null,null,null,null,null,null,null,null,null,null,null,"Select from Drop Down","Select from Drop Down","Select from Drop Down"]
[271,null,null,"Select from Drop Down","Select from Drop Down","Select from Drop Down",null,null,null,null,null,null,null,null,null,null,null,null,"Select from Drop Down","Select from Drop Down","Select from Drop Down"]
[272,null,null,"Select from Drop Down","Select from Drop Down","Select from Drop Down",null,null,null,null,null,null,null,null,null,null,null,null,"Select from Drop Down","Select from Drop Down","Select from Drop Down"]
[273,null,null,"Select from Drop Down","Select from Drop Down","Select from Drop Down",null,null,null,null,null,null,null,null,null,null,null,null,"Select from Drop Down","Select from Drop Down","Select from Drop Down"]
[274,null,null,"Select from Drop Down","Select from Drop Down","Select from Drop Down",null,null,null,null,null,null,null,null,null,null,null,null,"Select from Drop Down","Select from Drop Down","Select from Drop Down"]
[275,null,null,"Select from Drop Down","Select from Drop Down","Select from Drop Down",null,null,null,null,null,null,null,null,null,null,null,null,"Select from Drop Down","Select from Drop Down","Select from Drop Down"]
[276,null,null,"Select from Drop Down","Select from Drop Down","Select from Drop Down",null,null,null,null,null,null,null,null,null,null,null,null,"Select from Drop Down","Select from Drop Down","Select from Drop Down"]
[277,null,null,"Select from Drop Down","Select from Drop Down","Select from Drop Down",null,null,null,null,null,null,null,null,null,null,null,null,"Select from Drop Down","Select from Drop Down","Select from Drop Down"]
[278,null,null,"Select from Drop Down","Select from Drop Down","Select from Drop Down",null,null,null,null,null,null,null,null,null,null,null,null,"Select from Drop Down","Select from Drop Down","Select from Drop Down"]
[279,null,null,"Select from Drop Down","Select from Drop Down","Select from Drop Down",null,null,null,null,null,null,null,null,null,null,null,null,"Select from Drop Down","Select from Drop Down","Select from Drop Down"]
[280,null,null,"Select from Drop Down","Select from Drop Down","Select from Drop Down",null,null,null,null,null,null,null,null,null,null,null,null,"Select from Drop Down","Select from Drop Down","Select from Drop Down"]
[281,null,null,"Select from Drop Down","Select from Drop Down","Select from Drop Down",null,null,null,null,null,null,null,null,null,null,null,null,"Select from Drop Down","Select from Drop Down","Select from Drop Down"]
[282,null,null,"Select from Drop Down","Select from Drop Down","Select from Drop Down",null,null,null,null,null,null,null,null,null,null,null,null,"Select from Drop Down","Select from Drop Down","Select from Drop Down"]
[283,null,null,"Select from Drop Down","Select from Drop Down","Select from Drop Down",null,null,null,null,null,null,null,null,null,null,null,null,"Select from Drop Down","Select from Drop Down","Select from Drop Down"]
[284,null,null,"Select from Drop Down","Select from Drop Down","Select from Drop Down",null,null,null,null,null,null,null,null,null,null,null,null,"Select from Drop Down","Select from Drop Down","Select from Drop Down"]
[285,null,null,"Select from Drop Down","Select from Drop Down","Select from Drop Down",null,null,null,null,null,null,null,null,null,null,null,null,"Select from Drop Down","Select from Drop Down","Select from Drop Down"]
[286,null,null,"Select from Drop Down","Select from Drop Down","Select from Drop Down",null,null,null,null,null,null,null,null,null,null,null,null,"Select from Drop Down","Select from Drop Down","Select from Drop Down"]
[287,null,null,"Select from Drop Down","Select from Drop Down","Select from Drop Down",null,null,null,null,null,null,null,null,null,null,null,null,"Select from Drop Down","Select from Drop Down","Select from Drop Down"]
[288,null,null,"Select from Drop Down","Select from Drop Down","Select from Drop Down",null,null,null,null,null,null,null,null,null,null,null,null,"Select from Drop Down","Select from Drop Down","Select from Drop Down"]
[289,null,null,"Select from Drop Down","Select from Drop Down","Select from Drop Down",null,null,null,null,null,null,null,null,null,null,null,null,"Select from Drop Down","Select from Drop Down","Select from Drop Down"]
[290,null,null,"Select from Drop Down","Select from Drop Down","Select from Drop Down",null,null,null,null,null,null,null,null,null,null,null,null,"Select from Drop Down","Select from Drop Down","Select from Drop Down"]
[291,null,null,"Select from Drop Down","Select from Drop Down","Select from Drop Down",null,null,null,null,null,null,null,null,null,null,null,null,"Select from Drop Down","Select from Drop Down","Select from Drop Down"]
[292,null,null,"Select from Drop Down","Select from Drop Down","Select from Drop Down",null,null,null,null,null,null,null,null,null,null,null,null,"Select from Drop Down","Select from Drop Down","Select from Drop Down"]
[293,null,null,"Select from Drop Down","Select from Drop Down","Select from Drop Down",null,null,null,null,null,null,null,null,null,null,null,null,"Select from Drop Down","Select from Drop Down","Select from Drop Down"]
[294,null,null,"Select from Drop Down","Select from Drop Down","Select from Drop Down",null,null,null,null,null,null,null,null,null,null,null,null,"Select from Drop Down","Select from Drop Down","Select from Drop Down"]
[295,null,null,"Select from Drop Down","Select from Drop Down","Select from Drop Down",null,null,null,null,null,null,null,null,null,null,null,null,"Select from Drop Down","Select from Drop Down","Select from Drop Down"]
[296,null,null,"Select from Drop Down","Select from Drop Down","Select from Drop Down",null,null,null,null,null,null,null,null,null,null,null,null,"Select from Drop Down","Select from Drop Down","Select from Drop Down"]
[297,null,null,"Select from Drop Down","Select from Drop Down","Select from Drop Down",null,null,null,null,null,null,null,null,null,null,null,null,"Select from Drop Down","Select from Drop Down","Select from Drop Down"]
[298,null,null,"Select from Drop Down","Select from Drop Down","Select from Drop Down",null,null,null,null,null,null,null,null,null,null,null,null,"Select from Drop Down","Select from Drop Down","Select from Drop Down"]
[299,null,null,"Select from Drop Down","Select from Drop Down","Select from Drop Down",null,null,null,null,null,null,null,null,null,null,null,null,"Select from Drop Down","Select from Drop Down","Select from Drop Down"]
[300,null,null,"Select from Drop Down","Select from Drop Down","Select from Drop Down",null,null,null,null,null,null,null,null,null,null,null,null,"Select from Drop Down","Select from Drop Down","Select from Drop Down"]
[301,null,null,"Select from Drop Down","Select from Drop Down","Select from Drop Down",null,null,null,null,null,null,null,null,null,null,null,null,"Select from Drop Down","Select from Drop Down","Select from Drop Down"]
[302,null,null,"Select from Drop Down","Select from Drop Down","Select from Drop Down",null,null,null,null,null,null,null,null,null,null,null,null,"Select from Drop Down","Select from Drop Down","Select from Drop Down"]
[303,null,null,"Select from Drop Down","Select from Drop Down","Select from Drop Down",null,null,null,null,null,null,null,null,null,null,null,null,"Select from Drop Down","Select from Drop Down","Select from Drop Down"]
[304,null,null,"Select from Drop Down","Select from Drop Down","Select from Drop Down",null,null,null,null,null,null,null,null,null,null,null,null,"Select from Drop Down","Select from Drop Down","Select from Drop Down"]
[305,null,null,"Select from Drop Down","Select from Drop Down","Select from Drop Down",null,null,null,null,null,null,null,null,null,null,null,null,"Select from Drop Down","Select from Drop Down","Select from Drop Down"]
[306,null,null,"Select from Drop Down","Select from Drop Down","Select from Drop Down",null,null,null,null,null,null,null,null,null,null,null,null,"Select from Drop Down","Select from Drop Down","Select from Drop Down"]
[307,null,null,"Select from Drop Down","Select from Drop Down","Select from Drop Down",null,null,null,null,null,null,null,null,null,null,null,null,"Select from Drop Down","Select from Drop Down","Select from Drop Down"]
[308,null,null,"Select from Drop Down","Select from Drop Down","Select from Drop Down",null,null,null,null,null,null,null,null,null,null,null,null,"Select from Drop Down","Select from Drop Down","Select from Drop Down"]
[309,null,null,"Select from Drop Down","Select from Drop Down","Select from Drop Down",null,null,null,null,null,null,null,null,null,null,null,null,"Select from Drop Down","Select from Drop Down","Select from Drop Down"]
[310,null,null,"Select from Drop Down","Select from Drop Down","Select from Drop Down",null,null,null,null,null,null,null,null,null,null,null,null,"Select from Drop Down","Select from Drop Down","Select from Drop Down"]
[311,null,null,"Select from Drop Down","Select from Drop Down","Select from Drop Down",null,null,null,null,null,null,null,null,null,null,null,null,"Select from Drop Down","Select from Drop Down","Select from Drop Down"]
[312,null,null,"Select from Drop Down","Select from Drop Down","Select from Drop Down",null,null,null,null,null,null,null,null,null,null,null,null,"Select from Drop Down","Select from Drop Down","Select from Drop Down"]
[313,null,null,"Select from Drop Down","Select from Drop Down","Select from Drop Down",null,null,null,null,null,null,null,null,null,null,null,null,"Select from Drop Down","Select from Drop Down","Select from Drop Down"]
[314,null,null,"Select from Drop Down","Select from Drop Down","Select from Drop Down",null,null,null,null,null,null,null,null,null,null,null,null,"Select from Drop Down","Select from Drop Down","Select from Drop Down"]
[315,null,null,"Select from Drop Down","Select from Drop Down","Select from Drop Down",null,null,null,null,null,null,null,null,null,null,null,null,"Select from Drop Down","Select from Drop Down","Select from Drop Down"]
[316,null,null,"Select from Drop Down","Select from Drop Down","Select from Drop Down",null,null,null,null,null,null,null,null,null,null,null,null,"Select from Drop Down","Select from Drop Down","Select from Drop Down"]
[317,null,null,"Select from Drop Down","Select from Drop Down","Select from Drop Down",null,null,null,null,null,null,null,null,null,null,null,null,"Select from Drop Down","Select from Drop Down","Select from Drop Down"]
[318,null,null,"Select from Drop Down","Select from Drop Down","Select from Drop Down",null,null,null,null,null,null,null,null,null,null,null,null,"Select from Drop Down","Select from Drop Down","Select from Drop Down"]
[319,null,null,"Select from Drop Down","Select from Drop Down","Select from Drop Down",null,null,null,null,null,null,null,null,null,null,null,null,"Select from Drop Down","Select from Drop Down","Select from Drop Down"]
[320,null,null,"Select from Drop Down","Select from Drop Down","Select from Drop Down",null,null,null,null,null,null,null,null,null,null,null,null,"Select from Drop Down","Select from Drop Down","Select from Drop Down"]
[321,null,null,"Select from Drop Down","Select from Drop Down","Select from Drop Down",null,null,null,null,null,null,null,null,null,null,null,null,"Select from Drop Down","Select from Drop Down","Select from Drop Down"]
[322,null,null,"Select from Drop Down","Select from Drop Down","Select from Drop Down",null,null,null,null,null,null,null,null,null,null,null,null,"Select from Drop Down","Select from Drop Down","Select from Drop Down"]
[{"$f":"A332+1","v":323},null,null,"Select from Drop Down","Select from Drop Down","Select from Drop Down",null,null,null,null,null,null,null,null,null,null,null,null,"Select from Drop Down","Select from Drop Down","Select from Drop Down"]
[324,null,null,"Select from Drop Down","Select from Drop Down","Select from Drop Down",null,null,null,null,null,null,null,null,null,null,null,null,"Select from Drop Down","Select from Drop Down","Select from Drop Down"]
[325,null,null,"Select from Drop Down","Select from Drop Down","Select from Drop Down",null,null,null,null,null,null,null,null,null,null,null,null,"Select from Drop Down","Select from Drop Down","Select from Drop Down"]
[326,null,null,"Select from Drop Down","Select from Drop Down","Select from Drop Down",null,null,null,null,null,null,null,null,null,null,null,null,"Select from Drop Down","Select from Drop Down","Select from Drop Down"]
[327,null,null,"Select from Drop Down","Select from Drop Down","Select from Drop Down",null,null,null,null,null,null,null,null,null,null,null,null,"Select from Drop Down","Select from Drop Down","Select from Drop Down"]
[328,null,null,"Select from Drop Down","Select from Drop Down","Select from Drop Down",null,null,null,null,null,null,null,null,null,null,null,null,"Select from Drop Down","Select from Drop Down","Select from Drop Down"]
[329,null,null,"Select from Drop Down","Select from Drop Down","Select from Drop Down",null,null,null,null,null,null,null,null,null,null,null,null,"Select from Drop Down","Select from Drop Down","Select from Drop Down"]
[330,null,null,"Select from Drop Down","Select from Drop Down","Select from Drop Down",null,null,null,null,null,null,null,null,null,null,null,null,"Select from Drop Down","Select from Drop Down","Select from Drop Down"]
[331,null,null,"Select from Drop Down","Select from Drop Down","Select from Drop Down",null,null,null,null,null,null,null,null,null,null,null,null,"Select from Drop Down","Select from Drop Down","Select from Drop Down"]
[332,null,null,"Select from Drop Down","Select from Drop Down","Select from Drop Down",null,null,null,null,null,null,null,null,null,null,null,null,"Select from Drop Down","Select from Drop Down","Select from Drop Down"]
[333,null,null,"Select from Drop Down","Select from Drop Down","Select from Drop Down",null,null,null,null,null,null,null,null,null,null,null,null,"Select from Drop Down","Select from Drop Down","Select from Drop Down"]
[334,null,null,"Select from Drop Down","Select from Drop Down","Select from Drop Down",null,null,null,null,null,null,null,null,null,null,null,null,"Select from Drop Down","Select from Drop Down","Select from Drop Down"]
[335,null,null,"Select from Drop Down","Select from Drop Down","Select from Drop Down",null,null,null,null,null,null,null,null,null,null,null,null,"Select from Drop Down","Select from Drop Down","Select from Drop Down"]
[336,null,null,"Select from Drop Down","Select from Drop Down","Select from Drop Down",null,null,null,null,null,null,null,null,null,null,null,null,"Select from Drop Down","Select from Drop Down","Select from Drop Down"]
[337,null,null,"Select from Drop Down","Select from Drop Down","Select from Drop Down",null,null,null,null,null,null,null,null,null,null,null,null,"Select from Drop Down","Select from Drop Down","Select from Drop Down"]
[338,null,null,"Select from Drop Down","Select from Drop Down","Select from Drop Down",null,null,null,null,null,null,null,null,null,null,null,null,"Select from Drop Down","Select from Drop Down","Select from Drop Down"]
[339,null,null,"Select from Drop Down","Select from Drop Down","Select from Drop Down",null,null,null,null,null,null,null,null,null,null,null,null,"Select from Drop Down","Select from Drop Down","Select from Drop Down"]
[340,null,null,"Select from Drop Down","Select from Drop Down","Select from Drop Down",null,null,null,null,null,null,null,null,null,null,null,null,"Select from Drop Down","Select from Drop Down","Select from Drop Down"]
[341,null,null,"Select from Drop Down","Select from Drop Down","Select from Drop Down",null,null,null,null,null,null,null,null,null,null,null,null,"Select from Drop Down","Select from Drop Down","Select from Drop Down"]
[342,null,null,"Select from Drop Down","Select from Drop Down","Select from Drop Down",null,null,null,null,null,null,null,null,null,null,null,null,"Select from Drop Down","Select from Drop Down","Select from Drop Down"]
[343,null,null,"Select from Drop Down","Select from Drop Down","Select from Drop Down",null,null,null,null,null,null,null,null,null,null,null,null,"Select from Drop Down","Select from Drop Down","Select from Drop Down"]
[344,null,null,"Select from Drop Down","Select from Drop Down","Select from Drop Down",null,null,null,null,null,null,null,null,null,null,null,null,"Select from Drop Down","Select from Drop Down","Select from Drop Down"]
[345,null,null,"Select from Drop Down","Select from Drop Down","Select from Drop Down",null,null,null,null,null,null,null,null,null,null,null,null,"Select from Drop Down","Select from Drop Down","Select from Drop Down"]
[346,null,null,"Select from Drop Down","Select from Drop Down","Select from Drop Down",null,null,null,null,null,null,null,null,null,null,null,null,"Select from Drop Down","Select from Drop Down","Select from Drop Down"]
[347,null,null,"Select from Drop Down","Select from Drop Down","Select from Drop Down",null,null,null,null,null,null,null,null,null,null,null,null,"Select from Drop Down","Select from Drop Down","Select from Drop Down"]
[348,null,null,"Select from Drop Down","Select from Drop Down","Select from Drop Down",null,null,null,null,null,null,null,null,null,null,null,null,"Select from Drop Down","Select from Drop Down","Select from Drop Down"]
[349,null,null,"Select from Drop Down","Select from Drop Down","Select from Drop Down",null,null,null,null,null,null,null,null,null,null,null,null,"Select from Drop Down","Select from Drop Down","Select from Drop Down"]
[350,null,null,"Select from Drop Down","Select from Drop Down","Select from Drop Down",null,null,null,null,null,null,null,null,null,null,null,null,"Select from Drop Down","Select from Drop Down","Select from Drop Down"]
[351,null,null,"Select from Drop Down","Select from Drop Down","Select from Drop Down",null,null,null,null,null,null,null,null,null,null,null,null,"Select from Drop Down","Select from Drop Down","Select from Drop Down"]
[352,null,null,"Select from Drop Down","Select from Drop Down","Select from Drop Down",null,null,null,null,null,null,null,null,null,null,null,null,"Select from Drop Down","Select from Drop Down","Select from Drop Down"]
[353,null,null,"Select from Drop Down","Select from Drop Down","Select from Drop Down",null,null,null,null,null,null,null,null,null,null,null,null,"Select from Drop Down","Select from Drop Down","Select from Drop Down"]
[354,null,null,"Select from Drop Down","Select from Drop Down","Select from Drop Down",null,null,null,null,null,null,null,null,null,null,null,null,"Select from Drop Down","Select from Drop Down","Select from Drop Down"]
[355,null,null,"Select from Drop Down","Select from Drop Down","Select from Drop Down",null,null,null,null,null,null,null,null,null,null,null,null,"Select from Drop Down","Select from Drop Down","Select from Drop Down"]
[356,null,null,"Select from Drop Down","Select from Drop Down","Select from Drop Down",null,null,null,null,null,null,null,null,null,null,null,null,"Select from Drop Down","Select from Drop Down","Select from Drop Down"]
[357,null,null,"Select from Drop Down","Select from Drop Down","Select from Drop Down",null,null,null,null,null,null,null,null,null,null,null,null,"Select from Drop Down","Select from Drop Down","Select from Drop Down"]
[358,null,null,"Select from Drop Down","Select from Drop Down","Select from Drop Down",null,null,null,null,null,null,null,null,null,null,null,null,"Select from Drop Down","Select from Drop Down","Select from Drop Down"]
[359,null,null,"Select from Drop Down","Select from Drop Down","Select from Drop Down",null,null,null,null,null,null,null,null,null,null,null,null,"Select from Drop Down","Select from Drop Down","Select from Drop Down"]
[360,null,null,"Select from Drop Down","Select from Drop Down","Select from Drop Down",null,null,null,null,null,null,null,null,null,null,null,null,"Select from Drop Down","Select from Drop Down","Select from Drop Down"]
[361,null,null,"Select from Drop Down","Select from Drop Down","Select from Drop Down",null,null,null,null,null,null,null,null,null,null,null,null,"Select from Drop Down","Select from Drop Down","Select from Drop Down"]
[362,null,null,"Select from Drop Down","Select from Drop Down","Select from Drop Down",null,null,null,null,null,null,null,null,null,null,null,null,"Select from Drop Down","Select from Drop Down","Select from Drop Down"]
[363,null,null,"Select from Drop Down","Select from Drop Down","Select from Drop Down",null,null,null,null,null,null,null,null,null,null,null,null,"Select from Drop Down","Select from Drop Down","Select from Drop Down"]
[364,null,null,"Select from Drop Down","Select from Drop Down","Select from Drop Down",null,null,null,null,null,null,null,null,null,null,null,null,"Select from Drop Down","Select from Drop Down","Select from Drop Down"]
[365,null,null,"Select from Drop Down","Select from Drop Down","Select from Drop Down",null,null,null,null,null,null,null,null,null,null,null,null,"Select from Drop Down","Select from Drop Down","Select from Drop Down"]
[366,null,null,"Select from Drop Down","Select from Drop Down","Select from Drop Down",null,null,null,null,null,null,null,null,null,null,null,null,"Select from Drop Down","Select from Drop Down","Select from Drop Down"]
[367,null,null,"Select from Drop Down","Select from Drop Down","Select from Drop Down",null,null,null,null,null,null,null,null,null,null,null,null,"Select from Drop Down","Select from Drop Down","Select from Drop Down"]
[368,null,null,"Select from Drop Down","Select from Drop Down","Select from Drop Down",null,null,null,null,null,null,null,null,null,null,null,null,"Select from Drop Down","Select from Drop Down","Select from Drop Down"]
[369,null,null,"Select from Drop Down","Select from Drop Down","Select from Drop Down",null,null,null,null,null,null,null,null,null,null,null,null,"Select from Drop Down","Select from Drop Down","Select from Drop Down"]
[370,null,null,"Select from Drop Down","Select from Drop Down","Select from Drop Down",null,null,null,null,null,null,null,null,null,null,null,null,"Select from Drop Down","Select from Drop Down","Select from Drop Down"]
[371,null,null,"Select from Drop Down","Select from Drop Down","Select from Drop Down",null,null,null,null,null,null,null,null,null,null,null,null,"Select from Drop Down","Select from Drop Down","Select from Drop Down"]
[372,null,null,"Select from Drop Down","Select from Drop Down","Select from Drop Down",null,null,null,null,null,null,null,null,null,null,null,null,"Select from Drop Down","Select from Drop Down","Select from Drop Down"]
[373,null,null,"Select from Drop Down","Select from Drop Down","Select from Drop Down",null,null,null,null,null,null,null,null,null,null,null,null,"Select from Drop Down","Select from Drop Down","Select from Drop Down"]
[374,null,null,"Select from Drop Down","Select from Drop Down","Select from Drop Down",null,null,null,null,null,null,null,null,null,null,null,null,"Select from Drop Down","Select from Drop Down","Select from Drop Down"]
[375,null,null,"Select from Drop Down","Select from Drop Down","Select from Drop Down",null,null,null,null,null,null,null,null,null,null,null,null,"Select from Drop Down","Select from Drop Down","Select from Drop Down"]
[376,null,null,"Select from Drop Down","Select from Drop Down","Select from Drop Down",null,null,null,null,null,null,null,null,null,null,null,null,"Select from Drop Down","Select from Drop Down","Select from Drop Down"]
[377,null,null,"Select from Drop Down","Select from Drop Down","Select from Drop Down",null,null,null,null,null,null,null,null,null,null,null,null,"Select from Drop Down","Select from Drop Down","Select from Drop Down"]
[378,null,null,"Select from Drop Down","Select from Drop Down","Select from Drop Down",null,null,null,null,null,null,null,null,null,null,null,null,"Select from Drop Down","Select from Drop Down","Select from Drop Down"]
[379,null,null,"Select from Drop Down","Select from Drop Down","Select from Drop Down",null,null,null,null,null,null,null,null,null,null,null,null,"Select from Drop Down","Select from Drop Down","Select from Drop Down"]
[380,null,null,"Select from Drop Down","Select from Drop Down","Select from Drop Down",null,null,null,null,null,null,null,null,null,null,null,null,"Select from Drop Down","Select from Drop Down","Select from Drop Down"]
[381,null,null,"Select from Drop Down","Select from Drop Down","Select from Drop Down",null,null,null,null,null,null,null,null,null,null,null,null,"Select from Drop Down","Select from Drop Down","Select from Drop Down"]
[382,null,null,"Select from Drop Down","Select from Drop Down","Select from Drop Down",null,null,null,null,null,null,null,null,null,null,null,null,"Select from Drop Down","Select from Drop Down","Select from Drop Down"]
[383,null,null,"Select from Drop Down","Select from Drop Down","Select from Drop Down",null,null,null,null,null,null,null,null,null,null,null,null,"Select from Drop Down","Select from Drop Down","Select from Drop Down"]
[384,null,null,"Select from Drop Down","Select from Drop Down","Select from Drop Down",null,null,null,null,null,null,null,null,null,null,null,null,"Select from Drop Down","Select from Drop Down","Select from Drop Down"]
[385,null,null,"Select from Drop Down","Select from Drop Down","Select from Drop Down",null,null,null,null,null,null,null,null,null,null,null,null,"Select from Drop Down","Select from Drop Down","Select from Drop Down"]
[386,null,null,"Select from Drop Down","Select from Drop Down","Select from Drop Down",null,null,null,null,null,null,null,null,null,null,null,null,"Select from Drop Down","Select from Drop Down","Select from Drop Down"]
[{"$f":"A396+1","v":387},null,null,"Select from Drop Down","Select from Drop Down","Select from Drop Down",null,null,null,null,null,null,null,null,null,null,null,null,"Select from Drop Down","Select from Drop Down","Select from Drop Down"]
[388,null,null,"Select from Drop Down","Select from Drop Down","Select from Drop Down",null,null,null,null,null,null,null,null,null,null,null,null,"Select from Drop Down","Select from Drop Down","Select from Drop Down"]
[389,null,null,"Select from Drop Down","Select from Drop Down","Select from Drop Down",null,null,null,null,null,null,null,null,null,null,null,null,"Select from Drop Down","Select from Drop Down","Select from Drop Down"]
[390,null,null,"Select from Drop Down","Select from Drop Down","Select from Drop Down",null,null,null,null,null,null,null,null,null,null,null,null,"Select from Drop Down","Select from Drop Down","Select from Drop Down"]
[391,null,null,"Select from Drop Down","Select from Drop Down","Select from Drop Down",null,null,null,null,null,null,null,null,null,null,null,null,"Select from Drop Down","Select from Drop Down","Select from Drop Down"]
[392,null,null,"Select from Drop Down","Select from Drop Down","Select from Drop Down",null,null,null,null,null,null,null,null,null,null,null,null,"Select from Drop Down","Select from Drop Down","Select from Drop Down"]
[393,null,null,"Select from Drop Down","Select from Drop Down","Select from Drop Down",null,null,null,null,null,null,null,null,null,null,null,null,"Select from Drop Down","Select from Drop Down","Select from Drop Down"]
[394,null,null,"Select from Drop Down","Select from Drop Down","Select from Drop Down",null,null,null,null,null,null,null,null,null,null,null,null,"Select from Drop Down","Select from Drop Down","Select from Drop Down"]
[395,null,null,"Select from Drop Down","Select from Drop Down","Select from Drop Down",null,null,null,null,null,null,null,null,null,null,null,null,"Select from Drop Down","Select from Drop Down","Select from Drop Down"]
[396,null,null,"Select from Drop Down","Select from Drop Down","Select from Drop Down",null,null,null,null,null,null,null,null,null,null,null,null,"Select from Drop Down","Select from Drop Down","Select from Drop Down"]
[397,null,null,"Select from Drop Down","Select from Drop Down","Select from Drop Down",null,null,null,null,null,null,null,null,null,null,null,null,"Select from Drop Down","Select from Drop Down","Select from Drop Down"]
[398,null,null,"Select from Drop Down","Select from Drop Down","Select from Drop Down",null,null,null,null,null,null,null,null,null,null,null,null,"Select from Drop Down","Select from Drop Down","Select from Drop Down"]
[399,null,null,"Select from Drop Down","Select from Drop Down","Select from Drop Down",null,null,null,null,null,null,null,null,null,null,null,null,"Select from Drop Down","Select from Drop Down","Select from Drop Down"]
[400,null,null,"Select from Drop Down","Select from Drop Down","Select from Drop Down",null,null,null,null,null,null,null,null,null,null,null,null,"Select from Drop Down","Select from Drop Down","Select from Drop Down"]
[401,null,null,"Select from Drop Down","Select from Drop Down","Select from Drop Down",null,null,null,null,null,null,null,null,null,null,null,null,"Select from Drop Down","Select from Drop Down","Select from Drop Down"]
[402,null,null,"Select from Drop Down","Select from Drop Down","Select from Drop Down",null,null,null,null,null,null,null,null,null,null,null,null,"Select from Drop Down","Select from Drop Down","Select from Drop Down"]
[403,null,null,"Select from Drop Down","Select from Drop Down","Select from Drop Down",null,null,null,null,null,null,null,null,null,null,null,null,"Select from Drop Down","Select from Drop Down","Select from Drop Down"]
[404,null,null,"Select from Drop Down","Select from Drop Down","Select from Drop Down",null,null,null,null,null,null,null,null,null,null,null,null,"Select from Drop Down","Select from Drop Down","Select from Drop Down"]
[405,null,null,"Select from Drop Down","Select from Drop Down","Select from Drop Down",null,null,null,null,null,null,null,null,null,null,null,null,"Select from Drop Down","Select from Drop Down","Select from Drop Down"]
[406,null,null,"Select from Drop Down","Select from Drop Down","Select from Drop Down",null,null,null,null,null,null,null,null,null,null,null,null,"Select from Drop Down","Select from Drop Down","Select from Drop Down"]
[407,null,null,"Select from Drop Down","Select from Drop Down","Select from Drop Down",null,null,null,null,null,null,null,null,null,null,null,null,"Select from Drop Down","Select from Drop Down","Select from Drop Down"]
[408,null,null,"Select from Drop Down","Select from Drop Down","Select from Drop Down",null,null,null,null,null,null,null,null,null,null,null,null,"Select from Drop Down","Select from Drop Down","Select from Drop Down"]
[409,null,null,"Select from Drop Down","Select from Drop Down","Select from Drop Down",null,null,null,null,null,null,null,null,null,null,null,null,"Select from Drop Down","Select from Drop Down","Select from Drop Down"]
[410,null,null,"Select from Drop Down","Select from Drop Down","Select from Drop Down",null,null,null,null,null,null,null,null,null,null,null,null,"Select from Drop Down","Select from Drop Down","Select from Drop Down"]
[411,null,null,"Select from Drop Down","Select from Drop Down","Select from Drop Down",null,null,null,null,null,null,null,null,null,null,null,null,"Select from Drop Down","Select from Drop Down","Select from Drop Down"]
[412,null,null,"Select from Drop Down","Select from Drop Down","Select from Drop Down",null,null,null,null,null,null,null,null,null,null,null,null,"Select from Drop Down","Select from Drop Down","Select from Drop Down"]
[413,null,null,"Select from Drop Down","Select from Drop Down","Select from Drop Down",null,null,null,null,null,null,null,null,null,null,null,null,"Select from Drop Down","Select from Drop Down","Select from Drop Down"]
[414,null,null,"Select from Drop Down","Select from Drop Down","Select from Drop Down",null,null,null,null,null,null,null,null,null,null,null,null,"Select from Drop Down","Select from Drop Down","Select from Drop Down"]
[415,null,null,"Select from Drop Down","Select from Drop Down","Select from Drop Down",null,null,null,null,null,null,null,null,null,null,null,null,"Select from Drop Down","Select from Drop Down","Select from Drop Down"]
[416,null,null,"Select from Drop Down","Select from Drop Down","Select from Drop Down",null,null,null,null,null,null,null,null,null,null,null,null,"Select from Drop Down","Select from Drop Down","Select from Drop Down"]
[417,null,null,"Select from Drop Down","Select from Drop Down","Select from Drop Down",null,null,null,null,null,null,null,null,null,null,null,null,"Select from Drop Down","Select from Drop Down","Select from Drop Down"]
[418,null,null,"Select from Drop Down","Select from Drop Down","Select from Drop Down",null,null,null,null,null,null,null,null,null,null,null,null,"Select from Drop Down","Select from Drop Down","Select from Drop Down"]
[419,null,null,"Select from Drop Down","Select from Drop Down","Select from Drop Down",null,null,null,null,null,null,null,null,null,null,null,null,"Select from Drop Down","Select from Drop Down","Select from Drop Down"]
[420,null,null,"Select from Drop Down","Select from Drop Down","Select from Drop Down",null,null,null,null,null,null,null,null,null,null,null,null,"Select from Drop Down","Select from Drop Down","Select from Drop Down"]
[421,null,null,"Select from Drop Down","Select from Drop Down","Select from Drop Down",null,null,null,null,null,null,null,null,null,null,null,null,"Select from Drop Down","Select from Drop Down","Select from Drop Down"]
[422,null,null,"Select from Drop Down","Select from Drop Down","Select from Drop Down",null,null,null,null,null,null,null,null,null,null,null,null,"Select from Drop Down","Select from Drop Down","Select from Drop Down"]
[423,null,null,"Select from Drop Down","Select from Drop Down","Select from Drop Down",null,null,null,null,null,null,null,null,null,null,null,null,"Select from Drop Down","Select from Drop Down","Select from Drop Down"]
[424,null,null,"Select from Drop Down","Select from Drop Down","Select from Drop Down",null,null,null,null,null,null,null,null,null,null,null,null,"Select from Drop Down","Select from Drop Down","Select from Drop Down"]
[425,null,null,"Select from Drop Down","Select from Drop Down","Select from Drop Down",null,null,null,null,null,null,null,null,null,null,null,null,"Select from Drop Down","Select from Drop Down","Select from Drop Down"]
[426,null,null,"Select from Drop Down","Select from Drop Down","Select from Drop Down",null,null,null,null,null,null,null,null,null,null,null,null,"Select from Drop Down","Select from Drop Down","Select from Drop Down"]
[427,null,null,"Select from Drop Down","Select from Drop Down","Select from Drop Down",null,null,null,null,null,null,null,null,null,null,null,null,"Select from Drop Down","Select from Drop Down","Select from Drop Down"]
[428,null,null,"Select from Drop Down","Select from Drop Down","Select from Drop Down",null,null,null,null,null,null,null,null,null,null,null,null,"Select from Drop Down","Select from Drop Down","Select from Drop Down"]
[429,null,null,"Select from Drop Down","Select from Drop Down","Select from Drop Down",null,null,null,null,null,null,null,null,null,null,null,null,"Select from Drop Down","Select from Drop Down","Select from Drop Down"]
[430,null,null,"Select from Drop Down","Select from Drop Down","Select from Drop Down",null,null,null,null,null,null,null,null,null,null,null,null,"Select from Drop Down","Select from Drop Down","Select from Drop Down"]
[431,null,null,"Select from Drop Down","Select from Drop Down","Select from Drop Down",null,null,null,null,null,null,null,null,null,null,null,null,"Select from Drop Down","Select from Drop Down","Select from Drop Down"]
[432,null,null,"Select from Drop Down","Select from Drop Down","Select from Drop Down",null,null,null,null,null,null,null,null,null,null,null,null,"Select from Drop Down","Select from Drop Down","Select from Drop Down"]
[433,null,null,"Select from Drop Down","Select from Drop Down","Select from Drop Down",null,null,null,null,null,null,null,null,null,null,null,null,"Select from Drop Down","Select from Drop Down","Select from Drop Down"]
[434,null,null,"Select from Drop Down","Select from Drop Down","Select from Drop Down",null,null,null,null,null,null,null,null,null,null,null,null,"Select from Drop Down","Select from Drop Down","Select from Drop Down"]
[435,null,null,"Select from Drop Down","Select from Drop Down","Select from Drop Down",null,null,null,null,null,null,null,null,null,null,null,null,"Select from Drop Down","Select from Drop Down","Select from Drop Down"]
[436,null,null,"Select from Drop Down","Select from Drop Down","Select from Drop Down",null,null,null,null,null,null,null,null,null,null,null,null,"Select from Drop Down","Select from Drop Down","Select from Drop Down"]
[437,null,null,"Select from Drop Down","Select from Drop Down","Select from Drop Down",null,null,null,null,null,null,null,null,null,null,null,null,"Select from Drop Down","Select from Drop Down","Select from Drop Down"]
[438,null,null,"Select from Drop Down","Select from Drop Down","Select from Drop Down",null,null,null,null,null,null,null,null,null,null,null,null,"Select from Drop Down","Select from Drop Down","Select from Drop Down"]
[439,null,null,"Select from Drop Down","Select from Drop Down","Select from Drop Down",null,null,null,null,null,null,null,null,null,null,null,null,"Select from Drop Down","Select from Drop Down","Select from Drop Down"]
[440,null,null,"Select from Drop Down","Select from Drop Down","Select from Drop Down",null,null,null,null,null,null,null,null,null,null,null,null,"Select from Drop Down","Select from Drop Down","Select from Drop Down"]
[441,null,null,"Select from Drop Down","Select from Drop Down","Select from Drop Down",null,null,null,null,null,null,null,null,null,null,null,null,"Select from Drop Down","Select from Drop Down","Select from Drop Down"]
[442,null,null,"Select from Drop Down","Select from Drop Down","Select from Drop Down",null,null,null,null,null,null,null,null,null,null,null,null,"Select from Drop Down","Select from Drop Down","Select from Drop Down"]
[443,null,null,"Select from Drop Down","Select from Drop Down","Select from Drop Down",null,null,null,null,null,null,null,null,null,null,null,null,"Select from Drop Down","Select from Drop Down","Select from Drop Down"]
[444,null,null,"Select from Drop Down","Select from Drop Down","Select from Drop Down",null,null,null,null,null,null,null,null,null,null,null,null,"Select from Drop Down","Select from Drop Down","Select from Drop Down"]
[445,null,null,"Select from Drop Down","Select from Drop Down","Select from Drop Down",null,null,null,null,null,null,null,null,null,null,null,null,"Select from Drop Down","Select from Drop Down","Select from Drop Down"]
[446,null,null,"Select from Drop Down","Select from Drop Down","Select from Drop Down",null,null,null,null,null,null,null,null,null,null,null,null,"Select from Drop Down","Select from Drop Down","Select from Drop Down"]
[447,null,null,"Select from Drop Down","Select from Drop Down","Select from Drop Down",null,null,null,null,null,null,null,null,null,null,null,null,"Select from Drop Down","Select from Drop Down","Select from Drop Down"]
[448,null,null,"Select from Drop Down","Select from Drop Down","Select from Drop Down",null,null,null,null,null,null,null,null,null,null,null,null,"Select from Drop Down","Select from Drop Down","Select from Drop Down"]
[449,null,null,"Select from Drop Down","Select from Drop Down","Select from Drop Down",null,null,null,null,null,null,null,null,null,null,null,null,"Select from Drop Down","Select from Drop Down","Select from Drop Down"]
[450,null,null,"Select from Drop Down","Select from Drop Down","Select from Drop Down",null,null,null,null,null,null,null,null,null,null,null,null,"Select from Drop Down","Select from Drop Down","Select from Drop Down"]
[{"$f":"A460+1","v":451},null,null,"Select from Drop Down","Select from Drop Down","Select from Drop Down",null,null,null,null,null,null,null,null,null,null,null,null,"Select from Drop Down","Select from Drop Down","Select from Drop Down"]
[452,null,null,"Select from Drop Down","Select from Drop Down","Select from Drop Down",null,null,null,null,null,null,null,null,null,null,null,null,"Select from Drop Down","Select from Drop Down","Select from Drop Down"]
[453,null,null,"Select from Drop Down","Select from Drop Down","Select from Drop Down",null,null,null,null,null,null,null,null,null,null,null,null,"Select from Drop Down","Select from Drop Down","Select from Drop Down"]
[454,null,null,"Select from Drop Down","Select from Drop Down","Select from Drop Down",null,null,null,null,null,null,null,null,null,null,null,null,"Select from Drop Down","Select from Drop Down","Select from Drop Down"]
[455,null,null,"Select from Drop Down","Select from Drop Down","Select from Drop Down",null,null,null,null,null,null,null,null,null,null,null,null,"Select from Drop Down","Select from Drop Down","Select from Drop Down"]
[456,null,null,"Select from Drop Down","Select from Drop Down","Select from Drop Down",null,null,null,null,null,null,null,null,null,null,null,null,"Select from Drop Down","Select from Drop Down","Select from Drop Down"]
[457,null,null,"Select from Drop Down","Select from Drop Down","Select from Drop Down",null,null,null,null,null,null,null,null,null,null,null,null,"Select from Drop Down","Select from Drop Down","Select from Drop Down"]
[458,null,null,"Select from Drop Down","Select from Drop Down","Select from Drop Down",null,null,null,null,null,null,null,null,null,null,null,null,"Select from Drop Down","Select from Drop Down","Select from Drop Down"]
[459,null,null,"Select from Drop Down","Select from Drop Down","Select from Drop Down",null,null,null,null,null,null,null,null,null,null,null,null,"Select from Drop Down","Select from Drop Down","Select from Drop Down"]
[460,null,null,"Select from Drop Down","Select from Drop Down","Select from Drop Down",null,null,null,null,null,null,null,null,null,null,null,null,"Select from Drop Down","Select from Drop Down","Select from Drop Down"]
[461,null,null,"Select from Drop Down","Select from Drop Down","Select from Drop Down",null,null,null,null,null,null,null,null,null,null,null,null,"Select from Drop Down","Select from Drop Down","Select from Drop Down"]
[462,null,null,"Select from Drop Down","Select from Drop Down","Select from Drop Down",null,null,null,null,null,null,null,null,null,null,null,null,"Select from Drop Down","Select from Drop Down","Select from Drop Down"]
[463,null,null,"Select from Drop Down","Select from Drop Down","Select from Drop Down",null,null,null,null,null,null,null,null,null,null,null,null,"Select from Drop Down","Select from Drop Down","Select from Drop Down"]
[464,null,null,"Select from Drop Down","Select from Drop Down","Select from Drop Down",null,null,null,null,null,null,null,null,null,null,null,null,"Select from Drop Down","Select from Drop Down","Select from Drop Down"]
[465,null,null,"Select from Drop Down","Select from Drop Down","Select from Drop Down",null,null,null,null,null,null,null,null,null,null,null,null,"Select from Drop Down","Select from Drop Down","Select from Drop Down"]
[466,null,null,"Select from Drop Down","Select from Drop Down","Select from Drop Down",null,null,null,null,null,null,null,null,null,null,null,null,"Select from Drop Down","Select from Drop Down","Select from Drop Down"]
[467,null,null,"Select from Drop Down","Select from Drop Down","Select from Drop Down",null,null,null,null,null,null,null,null,null,null,null,null,"Select from Drop Down","Select from Drop Down","Select from Drop Down"]
[468,null,null,"Select from Drop Down","Select from Drop Down","Select from Drop Down",null,null,null,null,null,null,null,null,null,null,null,null,"Select from Drop Down","Select from Drop Down","Select from Drop Down"]
[469,null,null,"Select from Drop Down","Select from Drop Down","Select from Drop Down",null,null,null,null,null,null,null,null,null,null,null,null,"Select from Drop Down","Select from Drop Down","Select from Drop Down"]
[470,null,null,"Select from Drop Down","Select from Drop Down","Select from Drop Down",null,null,null,null,null,null,null,null,null,null,null,null,"Select from Drop Down","Select from Drop Down","Select from Drop Down"]
[471,null,null,"Select from Drop Down","Select from Drop Down","Select from Drop Down",null,null,null,null,null,null,null,null,null,null,null,null,"Select from Drop Down","Select from Drop Down","Select from Drop Down"]
[472,null,null,"Select from Drop Down","Select from Drop Down","Select from Drop Down",null,null,null,null,null,null,null,null,null,null,null,null,"Select from Drop Down","Select from Drop Down","Select from Drop Down"]
[473,null,null,"Select from Drop Down","Select from Drop Down","Select from Drop Down",null,null,null,null,null,null,null,null,null,null,null,null,"Select from Drop Down","Select from Drop Down","Select from Drop Down"]
[474,null,null,"Select from Drop Down","Select from Drop Down","Select from Drop Down",null,null,null,null,null,null,null,null,null,null,null,null,"Select from Drop Down","Select from Drop Down","Select from Drop Down"]
[475,null,null,"Select from Drop Down","Select from Drop Down","Select from Drop Down",null,null,null,null,null,null,null,null,null,null,null,null,"Select from Drop Down","Select from Drop Down","Select from Drop Down"]
[476,null,null,"Select from Drop Down","Select from Drop Down","Select from Drop Down",null,null,null,null,null,null,null,null,null,null,null,null,"Select from Drop Down","Select from Drop Down","Select from Drop Down"]
[477,null,null,"Select from Drop Down","Select from Drop Down","Select from Drop Down",null,null,null,null,null,null,null,null,null,null,null,null,"Select from Drop Down","Select from Drop Down","Select from Drop Down"]
[478,null,null,"Select from Drop Down","Select from Drop Down","Select from Drop Down",null,null,null,null,null,null,null,null,null,null,null,null,"Select from Drop Down","Select from Drop Down","Select from Drop Down"]
[479,null,null,"Select from Drop Down","Select from Drop Down","Select from Drop Down",null,null,null,null,null,null,null,null,null,null,null,null,"Select from Drop Down","Select from Drop Down","Select from Drop Down"]
[480,null,null,"Select from Drop Down","Select from Drop Down","Select from Drop Down",null,null,null,null,null,null,null,null,null,null,null,null,"Select from Drop Down","Select from Drop Down","Select from Drop Down"]
[481,null,null,"Select from Drop Down","Select from Drop Down","Select from Drop Down",null,null,null,null,null,null,null,null,null,null,null,null,"Select from Drop Down","Select from Drop Down","Select from Drop Down"]
[482,null,null,"Select from Drop Down","Select from Drop Down","Select from Drop Down",null,null,null,null,null,null,null,null,null,null,null,null,"Select from Drop Down","Select from Drop Down","Select from Drop Down"]
[483,null,null,"Select from Drop Down","Select from Drop Down","Select from Drop Down",null,null,null,null,null,null,null,null,null,null,null,null,"Select from Drop Down","Select from Drop Down","Select from Drop Down"]
[484,null,null,"Select from Drop Down","Select from Drop Down","Select from Drop Down",null,null,null,null,null,null,null,null,null,null,null,null,"Select from Drop Down","Select from Drop Down","Select from Drop Down"]
[485,null,null,"Select from Drop Down","Select from Drop Down","Select from Drop Down",null,null,null,null,null,null,null,null,null,null,null,null,"Select from Drop Down","Select from Drop Down","Select from Drop Down"]
[486,null,null,"Select from Drop Down","Select from Drop Down","Select from Drop Down",null,null,null,null,null,null,null,null,null,null,null,null,"Select from Drop Down","Select from Drop Down","Select from Drop Down"]
[487,null,null,"Select from Drop Down","Select from Drop Down","Select from Drop Down",null,null,null,null,null,null,null,null,null,null,null,null,"Select from Drop Down","Select from Drop Down","Select from Drop Down"]
[488,null,null,"Select from Drop Down","Select from Drop Down","Select from Drop Down",null,null,null,null,null,null,null,null,null,null,null,null,"Select from Drop Down","Select from Drop Down","Select from Drop Down"]
[489,null,null,"Select from Drop Down","Select from Drop Down","Select from Drop Down",null,null,null,null,null,null,null,null,null,null,null,null,"Select from Drop Down","Select from Drop Down","Select from Drop Down"]
[490,null,null,"Select from Drop Down","Select from Drop Down","Select from Drop Down",null,null,null,null,null,null,null,null,null,null,null,null,"Select from Drop Down","Select from Drop Down","Select from Drop Down"]
[491,null,null,"Select from Drop Down","Select from Drop Down","Select from Drop Down",null,null,null,null,null,null,null,null,null,null,null,null,"Select from Drop Down","Select from Drop Down","Select from Drop Down"]
[492,null,null,"Select from Drop Down","Select from Drop Down","Select from Drop Down",null,null,null,null,null,null,null,null,null,null,null,null,"Select from Drop Down","Select from Drop Down","Select from Drop Down"]
[493,null,null,"Select from Drop Down","Select from Drop Down","Select from Drop Down",null,null,null,null,null,null,null,null,null,null,null,null,"Select from Drop Down","Select from Drop Down","Select from Drop Down"]
[494,null,null,"Select from Drop Down","Select from Drop Down","Select from Drop Down",null,null,null,null,null,null,null,null,null,null,null,null,"Select from Drop Down","Select from Drop Down","Select from Drop Down"]
[495,null,null,"Select from Drop Down","Select from Drop Down","Select from Drop Down",null,null,null,null,null,null,null,null,null,null,null,null,"Select from Drop Down","Select from Drop Down","Select from Drop Down"]
[496,null,null,"Select from Drop Down","Select from Drop Down","Select from Drop Down",null,null,null,null,null,null,null,null,null,null,null,null,"Select from Drop Down","Select from Drop Down","Select from Drop Down"]
[497,null,null,"Select from Drop Down","Select from Drop Down","Select from Drop Down",null,null,null,null,null,null,null,null,null,null,null,null,"Select from Drop Down","Select from Drop Down","Select from Drop Down"]
[498,null,null,"Select from Drop Down","Select from Drop Down","Select from Drop Down",null,null,null,null,null,null,null,null,null,null,null,null,"Select from Drop Down","Select from Drop Down","Select from Drop Down"]
[499,null,null,"Select from Drop Down","Select from Drop Down","Select from Drop Down",null,null,null,null,null,null,null,null,null,null,null,null,"Select from Drop Down","Select from Drop Down","Select from Drop Down"]
[500,null,null,"Select from Drop Down","Select from Drop Down","Select from Drop Down",null,null,null,null,null,null,null,null,null,null,null,null,"Select from Drop Down","Select from Drop Down","Select from Drop Down"]
[501,null,null,"Select from Drop Down","Select from Drop Down","Select from Drop Down",null,null,null,null,null,null,null,null,null,null,null,null,"Select from Drop Down","Select from Drop Down","Select from Drop Down"]
[502,null,null,"Select from Drop Down","Select from Drop Down","Select from Drop Down",null,null,null,null,null,null,null,null,null,null,null,null,"Select from Drop Down","Select from Drop Down","Select from Drop Down"]
[503,null,null,"Select from Drop Down","Select from Drop Down","Select from Drop Down",null,null,null,null,null,null,null,null,null,null,null,null,"Select from Drop Down","Select from Drop Down","Select from Drop Down"]
[504,null,null,"Select from Drop Down","Select from Drop Down","Select from Drop Down",null,null,null,null,null,null,null,null,null,null,null,null,"Select from Drop Down","Select from Drop Down","Select from Drop Down"]
[505,null,null,"Select from Drop Down","Select from Drop Down","Select from Drop Down",null,null,null,null,null,null,null,null,null,null,null,null,"Select from Drop Down","Select from Drop Down","Select from Drop Down"]
[506,null,null,"Select from Drop Down","Select from Drop Down","Select from Drop Down",null,null,null,null,null,null,null,null,null,null,null,null,"Select from Drop Down","Select from Drop Down","Select from Drop Down"]
[507,null,null,"Select from Drop Down","Select from Drop Down","Select from Drop Down",null,null,null,null,null,null,null,null,null,null,null,null,"Select from Drop Down","Select from Drop Down","Select from Drop Down"]
[508,null,null,"Select from Drop Down","Select from Drop Down","Select from Drop Down",null,null,null,null,null,null,null,null,null,null,null,null,"Select from Drop Down","Select from Drop Down","Select from Drop Down"]
[509,null,null,"Select from Drop Down","Select from Drop Down","Select from Drop Down",null,null,null,null,null,null,null,null,null,null,null,null,"Select from Drop Down","Select from Drop Down","Select from Drop Down"]
[510,null,null,"Select from Drop Down","Select from Drop Down","Select from Drop Down",null,null,null,null,null,null,null,null,null,null,null,null,"Select from Drop Down","Select from Drop Down","Select from Drop Down"]
[511,null,null,"Select from Drop Down","Select from Drop Down","Select from Drop Down",null,null,null,null,null,null,null,null,null,null,null,null,"Select from Drop Down","Select from Drop Down","Select from Drop Down"]
[512,null,null,"Select from Drop Down","Select from Drop Down","Select from Drop Down",null,null,null,null,null,null,null,null,null,null,null,null,"Select from Drop Down","Select from Drop Down","Select from Drop Down"]
[513,null,null,"Select from Drop Down","Select from Drop Down","Select from Drop Down",null,null,null,null,null,null,null,null,null,null,null,null,"Select from Drop Down","Select from Drop Down","Select from Drop Down"]
[514,null,null,"Select from Drop Down","Select from Drop Down","Select from Drop Down",null,null,null,null,null,null,null,null,null,null,null,null,"Select from Drop Down","Select from Drop Down","Select from Drop Down"]
[{"$f":"A524+1","v":515},null,null,"Select from Drop Down","Select from Drop Down","Select from Drop Down",null,null,null,null,null,null,null,null,null,null,null,null,"Select from Drop Down","Select from Drop Down","Select from Drop Down"]
[516,null,null,"Select from Drop Down","Select from Drop Down","Select from Drop Down",null,null,null,null,null,null,null,null,null,null,null,null,"Select from Drop Down","Select from Drop Down","Select from Drop Down"]
[517,null,null,"Select from Drop Down","Select from Drop Down","Select from Drop Down",null,null,null,null,null,null,null,null,null,null,null,null,"Select from Drop Down","Select from Drop Down","Select from Drop Down"]
[518,null,null,"Select from Drop Down","Select from Drop Down","Select from Drop Down",null,null,null,null,null,null,null,null,null,null,null,null,"Select from Drop Down","Select from Drop Down","Select from Drop Down"]
[519,null,null,"Select from Drop Down","Select from Drop Down","Select from Drop Down",null,null,null,null,null,null,null,null,null,null,null,null,"Select from Drop Down","Select from Drop Down","Select from Drop Down"]
[520,null,null,"Select from Drop Down","Select from Drop Down","Select from Drop Down",null,null,null,null,null,null,null,null,null,null,null,null,"Select from Drop Down","Select from Drop Down","Select from Drop Down"]
[521,null,null,"Select from Drop Down","Select from Drop Down","Select from Drop Down",null,null,null,null,null,null,null,null,null,null,null,null,"Select from Drop Down","Select from Drop Down","Select from Drop Down"]
[522,null,null,"Select from Drop Down","Select from Drop Down","Select from Drop Down",null,null,null,null,null,null,null,null,null,null,null,null,"Select from Drop Down","Select from Drop Down","Select from Drop Down"]
[523,null,null,"Select from Drop Down","Select from Drop Down","Select from Drop Down",null,null,null,null,null,null,null,null,null,null,null,null,"Select from Drop Down","Select from Drop Down","Select from Drop Down"]
[524,null,null,"Select from Drop Down","Select from Drop Down","Select from Drop Down",null,null,null,null,null,null,null,null,null,null,null,null,"Select from Drop Down","Select from Drop Down","Select from Drop Down"]
[525,null,null,"Select from Drop Down","Select from Drop Down","Select from Drop Down",null,null,null,null,null,null,null,null,null,null,null,null,"Select from Drop Down","Select from Drop Down","Select from Drop Down"]
[526,null,null,"Select from Drop Down","Select from Drop Down","Select from Drop Down",null,null,null,null,null,null,null,null,null,null,null,null,"Select from Drop Down","Select from Drop Down","Select from Drop Down"]
[527,null,null,"Select from Drop Down","Select from Drop Down","Select from Drop Down",null,null,null,null,null,null,null,null,null,null,null,null,"Select from Drop Down","Select from Drop Down","Select from Drop Down"]
[528,null,null,"Select from Drop Down","Select from Drop Down","Select from Drop Down",null,null,null,null,null,null,null,null,null,null,null,null,"Select from Drop Down","Select from Drop Down","Select from Drop Down"]
[529,null,null,"Select from Drop Down","Select from Drop Down","Select from Drop Down",null,null,null,null,null,null,null,null,null,null,null,null,"Select from Drop Down","Select from Drop Down","Select from Drop Down"]
[530,null,null,"Select from Drop Down","Select from Drop Down","Select from Drop Down",null,null,null,null,null,null,null,null,null,null,null,null,"Select from Drop Down","Select from Drop Down","Select from Drop Down"]
[531,null,null,"Select from Drop Down","Select from Drop Down","Select from Drop Down",null,null,null,null,null,null,null,null,null,null,null,null,"Select from Drop Down","Select from Drop Down","Select from Drop Down"]
[532,null,null,"Select from Drop Down","Select from Drop Down","Select from Drop Down",null,null,null,null,null,null,null,null,null,null,null,null,"Select from Drop Down","Select from Drop Down","Select from Drop Down"]
[533,null,null,"Select from Drop Down","Select from Drop Down","Select from Drop Down",null,null,null,null,null,null,null,null,null,null,null,null,"Select from Drop Down","Select from Drop Down","Select from Drop Down"]
[534,null,null,"Select from Drop Down","Select from Drop Down","Select from Drop Down",null,null,null,null,null,null,null,null,null,null,null,null,"Select from Drop Down","Select from Drop Down","Select from Drop Down"]
[535,null,null,"Select from Drop Down","Select from Drop Down","Select from Drop Down",null,null,null,null,null,null,null,null,null,null,null,null,"Select from Drop Down","Select from Drop Down","Select from Drop Down"]
[536,null,null,"Select from Drop Down","Select from Drop Down","Select from Drop Down",null,null,null,null,null,null,null,null,null,null,null,null,"Select from Drop Down","Select from Drop Down","Select from Drop Down"]
[537,null,null,"Select from Drop Down","Select from Drop Down","Select from Drop Down",null,null,null,null,null,null,null,null,null,null,null,null,"Select from Drop Down","Select from Drop Down","Select from Drop Down"]
[538,null,null,"Select from Drop Down","Select from Drop Down","Select from Drop Down",null,null,null,null,null,null,null,null,null,null,null,null,"Select from Drop Down","Select from Drop Down","Select from Drop Down"]
[539,null,null,"Select from Drop Down","Select from Drop Down","Select from Drop Down",null,null,null,null,null,null,null,null,null,null,null,null,"Select from Drop Down","Select from Drop Down","Select from Drop Down"]
[540,null,null,"Select from Drop Down","Select from Drop Down","Select from Drop Down",null,null,null,null,null,null,null,null,null,null,null,null,"Select from Drop Down","Select from Drop Down","Select from Drop Down"]
[541,null,null,"Select from Drop Down","Select from Drop Down","Select from Drop Down",null,null,null,null,null,null,null,null,null,null,null,null,"Select from Drop Down","Select from Drop Down","Select from Drop Down"]
[542,null,null,"Select from Drop Down","Select from Drop Down","Select from Drop Down",null,null,null,null,null,null,null,null,null,null,null,null,"Select from Drop Down","Select from Drop Down","Select from Drop Down"]
[543,null,null,"Select from Drop Down","Select from Drop Down","Select from Drop Down",null,null,null,null,null,null,null,null,null,null,null,null,"Select from Drop Down","Select from Drop Down","Select from Drop Down"]
[544,null,null,"Select from Drop Down","Select from Drop Down","Select from Drop Down",null,null,null,null,null,null,null,null,null,null,null,null,"Select from Drop Down","Select from Drop Down","Select from Drop Down"]
[545,null,null,"Select from Drop Down","Select from Drop Down","Select from Drop Down",null,null,null,null,null,null,null,null,null,null,null,null,"Select from Drop Down","Select from Drop Down","Select from Drop Down"]
[546,null,null,"Select from Drop Down","Select from Drop Down","Select from Drop Down",null,null,null,null,null,null,null,null,null,null,null,null,"Select from Drop Down","Select from Drop Down","Select from Drop Down"]
[547,null,null,"Select from Drop Down","Select from Drop Down","Select from Drop Down",null,null,null,null,null,null,null,null,null,null,null,null,"Select from Drop Down","Select from Drop Down","Select from Drop Down"]
[548,null,null,"Select from Drop Down","Select from Drop Down","Select from Drop Down",null,null,null,null,null,null,null,null,null,null,null,null,"Select from Drop Down","Select from Drop Down","Select from Drop Down"]
[549,null,null,"Select from Drop Down","Select from Drop Down","Select from Drop Down",null,null,null,null,null,null,null,null,null,null,null,null,"Select from Drop Down","Select from Drop Down","Select from Drop Down"]
[550,null,null,"Select from Drop Down","Select from Drop Down","Select from Drop Down",null,null,null,null,null,null,null,null,null,null,null,null,"Select from Drop Down","Select from Drop Down","Select from Drop Down"]
[551,null,null,"Select from Drop Down","Select from Drop Down","Select from Drop Down",null,null,null,null,null,null,null,null,null,null,null,null,"Select from Drop Down","Select from Drop Down","Select from Drop Down"]
[552,null,null,"Select from Drop Down","Select from Drop Down","Select from Drop Down",null,null,null,null,null,null,null,null,null,null,null,null,"Select from Drop Down","Select from Drop Down","Select from Drop Down"]
[553,null,null,"Select from Drop Down","Select from Drop Down","Select from Drop Down",null,null,null,null,null,null,null,null,null,null,null,null,"Select from Drop Down","Select from Drop Down","Select from Drop Down"]
[554,null,null,"Select from Drop Down","Select from Drop Down","Select from Drop Down",null,null,null,null,null,null,null,null,null,null,null,null,"Select from Drop Down","Select from Drop Down","Select from Drop Down"]
[555,null,null,"Select from Drop Down","Select from Drop Down","Select from Drop Down",null,null,null,null,null,null,null,null,null,null,null,null,"Select from Drop Down","Select from Drop Down","Select from Drop Down"]
[556,null,null,"Select from Drop Down","Select from Drop Down","Select from Drop Down",null,null,null,null,null,null,null,null,null,null,null,null,"Select from Drop Down","Select from Drop Down","Select from Drop Down"]
[557,null,null,"Select from Drop Down","Select from Drop Down","Select from Drop Down",null,null,null,null,null,null,null,null,null,null,null,null,"Select from Drop Down","Select from Drop Down","Select from Drop Down"]
[558,null,null,"Select from Drop Down","Select from Drop Down","Select from Drop Down",null,null,null,null,null,null,null,null,null,null,null,null,"Select from Drop Down","Select from Drop Down","Select from Drop Down"]
[559,null,null,"Select from Drop Down","Select from Drop Down","Select from Drop Down",null,null,null,null,null,null,null,null,null,null,null,null,"Select from Drop Down","Select from Drop Down","Select from Drop Down"]
[560,null,null,"Select from Drop Down","Select from Drop Down","Select from Drop Down",null,null,null,null,null,null,null,null,null,null,null,null,"Select from Drop Down","Select from Drop Down","Select from Drop Down"]
[561,null,null,"Select from Drop Down","Select from Drop Down","Select from Drop Down",null,null,null,null,null,null,null,null,null,null,null,null,"Select from Drop Down","Select from Drop Down","Select from Drop Down"]
[562,null,null,"Select from Drop Down","Select from Drop Down","Select from Drop Down",null,null,null,null,null,null,null,null,null,null,null,null,"Select from Drop Down","Select from Drop Down","Select from Drop Down"]
[563,null,null,"Select from Drop Down","Select from Drop Down","Select from Drop Down",null,null,null,null,null,null,null,null,null,null,null,null,"Select from Drop Down","Select from Drop Down","Select from Drop Down"]
[564,null,null,"Select from Drop Down","Select from Drop Down","Select from Drop Down",null,null,null,null,null,null,null,null,null,null,null,null,"Select from Drop Down","Select from Drop Down","Select from Drop Down"]
[565,null,null,"Select from Drop Down","Select from Drop Down","Select from Drop Down",null,null,null,null,null,null,null,null,null,null,null,null,"Select from Drop Down","Select from Drop Down","Select from Drop Down"]
[566,null,null,"Select from Drop Down","Select from Drop Down","Select from Drop Down",null,null,null,null,null,null,null,null,null,null,null,null,"Select from Drop Down","Select from Drop Down","Select from Drop Down"]
[567,null,null,"Select from Drop Down","Select from Drop Down","Select from Drop Down",null,null,null,null,null,null,null,null,null,null,null,null,"Select from Drop Down","Select from Drop Down","Select from Drop Down"]
[568,null,null,"Select from Drop Down","Select from Drop Down","Select from Drop Down",null,null,null,null,null,null,null,null,null,null,null,null,"Select from Drop Down","Select from Drop Down","Select from Drop Down"]
[569,null,null,"Select from Drop Down","Select from Drop Down","Select from Drop Down",null,null,null,null,null,null,null,null,null,null,null,null,"Select from Drop Down","Select from Drop Down","Select from Drop Down"]
[570,null,null,"Select from Drop Down","Select from Drop Down","Select from Drop Down",null,null,null,null,null,null,null,null,null,null,null,null,"Select from Drop Down","Select from Drop Down","Select from Drop Down"]
[571,null,null,"Select from Drop Down","Select from Drop Down","Select from Drop Down",null,null,null,null,null,null,null,null,null,null,null,null,"Select from Drop Down","Select from Drop Down","Select from Drop Down"]
[572,null,null,"Select from Drop Down","Select from Drop Down","Select from Drop Down",null,null,null,null,null,null,null,null,null,null,null,null,"Select from Drop Down","Select from Drop Down","Select from Drop Down"]
[573,null,null,"Select from Drop Down","Select from Drop Down","Select from Drop Down",null,null,null,null,null,null,null,null,null,null,null,null,"Select from Drop Down","Select from Drop Down","Select from Drop Down"]
[574,null,null,"Select from Drop Down","Select from Drop Down","Select from Drop Down",null,null,null,null,null,null,null,null,null,null,null,null,"Select from Drop Down","Select from Drop Down","Select from Drop Down"]
[575,null,null,"Select from Drop Down","Select from Drop Down","Select from Drop Down",null,null,null,null,null,null,null,null,null,null,null,null,"Select from Drop Down","Select from Drop Down","Select from Drop Down"]
[576,null,null,"Select from Drop Down","Select from Drop Down","Select from Drop Down",null,null,null,null,null,null,null,null,null,null,null,null,"Select from Drop Down","Select from Drop Down","Select from Drop Down"]
[577,null,null,"Select from Drop Down","Select from Drop Down","Select from Drop Down",null,null,null,null,null,null,null,null,null,null,null,null,"Select from Drop Down","Select from Drop Down","Select from Drop Down"]
[578,null,null,"Select from Drop Down","Select from Drop Down","Select from Drop Down",null,null,null,null,null,null,null,null,null,null,null,null,"Select from Drop Down","Select from Drop Down","Select from Drop Down"]
[{"$f":"A588+1","v":579},null,null,"Select from Drop Down","Select from Drop Down","Select from Drop Down",null,null,null,null,null,null,null,null,null,null,null,null,"Select from Drop Down","Select from Drop Down","Select from Drop Down"]
[580,null,null,"Select from Drop Down","Select from Drop Down","Select from Drop Down",null,null,null,null,null,null,null,null,null,null,null,null,"Select from Drop Down","Select from Drop Down","Select from Drop Down"]
[581,null,null,"Select from Drop Down","Select from Drop Down","Select from Drop Down",null,null,null,null,null,null,null,null,null,null,null,null,"Select from Drop Down","Select from Drop Down","Select from Drop Down"]
[582,null,null,"Select from Drop Down","Select from Drop Down","Select from Drop Down",null,null,null,null,null,null,null,null,null,null,null,null,"Select from Drop Down","Select from Drop Down","Select from Drop Down"]
[583,null,null,"Select from Drop Down","Select from Drop Down","Select from Drop Down",null,null,null,null,null,null,null,null,null,null,null,null,"Select from Drop Down","Select from Drop Down","Select from Drop Down"]
[584,null,null,"Select from Drop Down","Select from Drop Down","Select from Drop Down",null,null,null,null,null,null,null,null,null,null,null,null,"Select from Drop Down","Select from Drop Down","Select from Drop Down"]
[585,null,null,"Select from Drop Down","Select from Drop Down","Select from Drop Down",null,null,null,null,null,null,null,null,null,null,null,null,"Select from Drop Down","Select from Drop Down","Select from Drop Down"]
[586,null,null,"Select from Drop Down","Select from Drop Down","Select from Drop Down",null,null,null,null,null,null,null,null,null,null,null,null,"Select from Drop Down","Select from Drop Down","Select from Drop Down"]
[587,null,null,"Select from Drop Down","Select from Drop Down","Select from Drop Down",null,null,null,null,null,null,null,null,null,null,null,null,"Select from Drop Down","Select from Drop Down","Select from Drop Down"]
[588,null,null,"Select from Drop Down","Select from Drop Down","Select from Drop Down",null,null,null,null,null,null,null,null,null,null,null,null,"Select from Drop Down","Select from Drop Down","Select from Drop Down"]
[589,null,null,"Select from Drop Down","Select from Drop Down","Select from Drop Down",null,null,null,null,null,null,null,null,null,null,null,null,"Select from Drop Down","Select from Drop Down","Select from Drop Down"]
[590,null,null,"Select from Drop Down","Select from Drop Down","Select from Drop Down",null,null,null,null,null,null,null,null,null,null,null,null,"Select from Drop Down","Select from Drop Down","Select from Drop Down"]
[591,null,null,"Select from Drop Down","Select from Drop Down","Select from Drop Down",null,null,null,null,null,null,null,null,null,null,null,null,"Select from Drop Down","Select from Drop Down","Select from Drop Down"]
[592,null,null,"Select from Drop Down","Select from Drop Down","Select from Drop Down",null,null,null,null,null,null,null,null,null,null,null,null,"Select from Drop Down","Select from Drop Down","Select from Drop Down"]
[593,null,null,"Select from Drop Down","Select from Drop Down","Select from Drop Down",null,null,null,null,null,null,null,null,null,null,null,null,"Select from Drop Down","Select from Drop Down","Select from Drop Down"]
[594,null,null,"Select from Drop Down","Select from Drop Down","Select from Drop Down",null,null,null,null,null,null,null,null,null,null,null,null,"Select from Drop Down","Select from Drop Down","Select from Drop Down"]
[595,null,null,"Select from Drop Down","Select from Drop Down","Select from Drop Down",null,null,null,null,null,null,null,null,null,null,null,null,"Select from Drop Down","Select from Drop Down","Select from Drop Down"]
[596,null,null,"Select from Drop Down","Select from Drop Down","Select from Drop Down",null,null,null,null,null,null,null,null,null,null,null,null,"Select from Drop Down","Select from Drop Down","Select from Drop Down"]
[597,null,null,"Select from Drop Down","Select from Drop Down","Select from Drop Down",null,null,null,null,null,null,null,null,null,null,null,null,"Select from Drop Down","Select from Drop Down","Select from Drop Down"]
[598,null,null,"Select from Drop Down","Select from Drop Down","Select from Drop Down",null,null,null,null,null,null,null,null,null,null,null,null,"Select from Drop Down","Select from Drop Down","Select from Drop Down"]
[599,null,null,"Select from Drop Down","Select from Drop Down","Select from Drop Down",null,null,null,null,null,null,null,null,null,null,null,null,"Select from Drop Down","Select from Drop Down","Select from Drop Down"]
[600,null,null,"Select from Drop Down","Select from Drop Down","Select from Drop Down",null,null,null,null,null,null,null,null,null,null,null,null,"Select from Drop Down","Select from Drop Down","Select from Drop Down"]
[601,null,null,"Select from Drop Down","Select from Drop Down","Select from Drop Down",null,null,null,null,null,null,null,null,null,null,null,null,"Select from Drop Down","Select from Drop Down","Select from Drop Down"]
[602,null,null,"Select from Drop Down","Select from Drop Down","Select from Drop Down",null,null,null,null,null,null,null,null,null,null,null,null,"Select from Drop Down","Select from Drop Down","Select from Drop Down"]
[603,null,null,"Select from Drop Down","Select from Drop Down","Select from Drop Down",null,null,null,null,null,null,null,null,null,null,null,null,"Select from Drop Down","Select from Drop Down","Select from Drop Down"]
[604,null,null,"Select from Drop Down","Select from Drop Down","Select from Drop Down",null,null,null,null,null,null,null,null,null,null,null,null,"Select from Drop Down","Select from Drop Down","Select from Drop Down"]
[605,null,null,"Select from Drop Down","Select from Drop Down","Select from Drop Down",null,null,null,null,null,null,null,null,null,null,null,null,"Select from Drop Down","Select from Drop Down","Select from Drop Down"]
[606,null,null,"Select from Drop Down","Select from Drop Down","Select from Drop Down",null,null,null,null,null,null,null,null,null,null,null,null,"Select from Drop Down","Select from Drop Down","Select from Drop Down"]
[607,null,null,"Select from Drop Down","Select from Drop Down","Select from Drop Down",null,null,null,null,null,null,null,null,null,null,null,null,"Select from Drop Down","Select from Drop Down","Select from Drop Down"]
[608,null,null,"Select from Drop Down","Select from Drop Down","Select from Drop Down",null,null,null,null,null,null,null,null,null,null,null,null,"Select from Drop Down","Select from Drop Down","Select from Drop Down"]
[609,null,null,"Select from Drop Down","Select from Drop Down","Select from Drop Down",null,null,null,null,null,null,null,null,null,null,null,null,"Select from Drop Down","Select from Drop Down","Select from Drop Down"]
[610,null,null,"Select from Drop Down","Select from Drop Down","Select from Drop Down",null,null,null,null,null,null,null,null,null,null,null,null,"Select from Drop Down","Select from Drop Down","Select from Drop Down"]
[611,null,null,"Select from Drop Down","Select from Drop Down","Select from Drop Down",null,null,null,null,null,null,null,null,null,null,null,null,"Select from Drop Down","Select from Drop Down","Select from Drop Down"]
[612,null,null,"Select from Drop Down","Select from Drop Down","Select from Drop Down",null,null,null,null,null,null,null,null,null,null,null,null,"Select from Drop Down","Select from Drop Down","Select from Drop Down"]
[613,null,null,"Select from Drop Down","Select from Drop Down","Select from Drop Down",null,null,null,null,null,null,null,null,null,null,null,null,"Select from Drop Down","Select from Drop Down","Select from Drop Down"]
[614,null,null,"Select from Drop Down","Select from Drop Down","Select from Drop Down",null,null,null,null,null,null,null,null,null,null,null,null,"Select from Drop Down","Select from Drop Down","Select from Drop Down"]
[615,null,null,"Select from Drop Down","Select from Drop Down","Select from Drop Down",null,null,null,null,null,null,null,null,null,null,null,null,"Select from Drop Down","Select from Drop Down","Select from Drop Down"]
[616,null,null,"Select from Drop Down","Select from Drop Down","Select from Drop Down",null,null,null,null,null,null,null,null,null,null,null,null,"Select from Drop Down","Select from Drop Down","Select from Drop Down"]
[617,null,null,"Select from Drop Down","Select from Drop Down","Select from Drop Down",null,null,null,null,null,null,null,null,null,null,null,null,"Select from Drop Down","Select from Drop Down","Select from Drop Down"]
[618,null,null,"Select from Drop Down","Select from Drop Down","Select from Drop Down",null,null,null,null,null,null,null,null,null,null,null,null,"Select from Drop Down","Select from Drop Down","Select from Drop Down"]
[619,null,null,"Select from Drop Down","Select from Drop Down","Select from Drop Down",null,null,null,null,null,null,null,null,null,null,null,null,"Select from Drop Down","Select from Drop Down","Select from Drop Down"]
[620,null,null,"Select from Drop Down","Select from Drop Down","Select from Drop Down",null,null,null,null,null,null,null,null,null,null,null,null,"Select from Drop Down","Select from Drop Down","Select from Drop Down"]
[621,null,null,"Select from Drop Down","Select from Drop Down","Select from Drop Down",null,null,null,null,null,null,null,null,null,null,null,null,"Select from Drop Down","Select from Drop Down","Select from Drop Down"]
[622,null,null,"Select from Drop Down","Select from Drop Down","Select from Drop Down",null,null,null,null,null,null,null,null,null,null,null,null,"Select from Drop Down","Select from Drop Down","Select from Drop Down"]
[623,null,null,"Select from Drop Down","Select from Drop Down","Select from Drop Down",null,null,null,null,null,null,null,null,null,null,null,null,"Select from Drop Down","Select from Drop Down","Select from Drop Down"]
[624,null,null,"Select from Drop Down","Select from Drop Down","Select from Drop Down",null,null,null,null,null,null,null,null,null,null,null,null,"Select from Drop Down","Select from Drop Down","Select from Drop Down"]
[625,null,null,"Select from Drop Down","Select from Drop Down","Select from Drop Down",null,null,null,null,null,null,null,null,null,null,null,null,"Select from Drop Down","Select from Drop Down","Select from Drop Down"]
[626,null,null,"Select from Drop Down","Select from Drop Down","Select from Drop Down",null,null,null,null,null,null,null,null,null,null,null,null,"Select from Drop Down","Select from Drop Down","Select from Drop Down"]
[627,null,null,"Select from Drop Down","Select from Drop Down","Select from Drop Down",null,null,null,null,null,null,null,null,null,null,null,null,"Select from Drop Down","Select from Drop Down","Select from Drop Down"]
[628,null,null,"Select from Drop Down","Select from Drop Down","Select from Drop Down",null,null,null,null,null,null,null,null,null,null,null,null,"Select from Drop Down","Select from Drop Down","Select from Drop Down"]
[629,null,null,"Select from Drop Down","Select from Drop Down","Select from Drop Down",null,null,null,null,null,null,null,null,null,null,null,null,"Select from Drop Down","Select from Drop Down","Select from Drop Down"]
[630,null,null,"Select from Drop Down","Select from Drop Down","Select from Drop Down",null,null,null,null,null,null,null,null,null,null,null,null,"Select from Drop Down","Select from Drop Down","Select from Drop Down"]
[631,null,null,"Select from Drop Down","Select from Drop Down","Select from Drop Down",null,null,null,null,null,null,null,null,null,null,null,null,"Select from Drop Down","Select from Drop Down","Select from Drop Down"]
[632,null,null,"Select from Drop Down","Select from Drop Down","Select from Drop Down",null,null,null,null,null,null,null,null,null,null,null,null,"Select from Drop Down","Select from Drop Down","Select from Drop Down"]
[633,null,null,"Select from Drop Down","Select from Drop Down","Select from Drop Down",null,null,null,null,null,null,null,null,null,null,null,null,"Select from Drop Down","Select from Drop Down","Select from Drop Down"]
[634,null,null,"Select from Drop Down","Select from Drop Down","Select from Drop Down",null,null,null,null,null,null,null,null,null,null,null,null,"Select from Drop Down","Select from Drop Down","Select from Drop Down"]
[635,null,null,"Select from Drop Down","Select from Drop Down","Select from Drop Down",null,null,null,null,null,null,null,null,null,null,null,null,"Select from Drop Down","Select from Drop Down","Select from Drop Down"]
[636,null,null,"Select from Drop Down","Select from Drop Down","Select from Drop Down",null,null,null,null,null,null,null,null,null,null,null,null,"Select from Drop Down","Select from Drop Down","Select from Drop Down"]
[637,null,null,"Select from Drop Down","Select from Drop Down","Select from Drop Down",null,null,null,null,null,null,null,null,null,null,null,null,"Select from Drop Down","Select from Drop Down","Select from Drop Down"]
[638,null,null,"Select from Drop Down","Select from Drop Down","Select from Drop Down",null,null,null,null,null,null,null,null,null,null,null,null,"Select from Drop Down","Select from Drop Down","Select from Drop Down"]
[639,null,null,"Select from Drop Down","Select from Drop Down","Select from Drop Down",null,null,null,null,null,null,null,null,null,null,null,null,"Select from Drop Down","Select from Drop Down","Select from Drop Down"]
[640,null,null,"Select from Drop Down","Select from Drop Down","Select from Drop Down",null,null,null,null,null,null,null,null,null,null,null,null,"Select from Drop Down","Select from Drop Down","Select from Drop Down"]
[641,null,null,"Select from Drop Down","Select from Drop Down","Select from Drop Down",null,null,null,null,null,null,null,null,null,null,null,null,"Select from Drop Down","Select from Drop Down","Select from Drop Down"]
[642,null,null,"Select from Drop Down","Select from Drop Down","Select from Drop Down",null,null,null,null,null,null,null,null,null,null,null,null,"Select from Drop Down","Select from Drop Down","Select from Drop Down"]
[{"$f":"A652+1","v":643},null,null,"Select from Drop Down","Select from Drop Down","Select from Drop Down",null,null,null,null,null,null,null,null,null,null,null,null,"Select from Drop Down","Select from Drop Down","Select from Drop Down"]
[644,null,null,"Select from Drop Down","Select from Drop Down","Select from Drop Down",null,null,null,null,null,null,null,null,null,null,null,null,"Select from Drop Down","Select from Drop Down","Select from Drop Down"]
[645,null,null,"Select from Drop Down","Select from Drop Down","Select from Drop Down",null,null,null,null,null,null,null,null,null,null,null,null,"Select from Drop Down","Select from Drop Down","Select from Drop Down"]
[646,null,null,"Select from Drop Down","Select from Drop Down","Select from Drop Down",null,null,null,null,null,null,null,null,null,null,null,null,"Select from Drop Down","Select from Drop Down","Select from Drop Down"]
[647,null,null,"Select from Drop Down","Select from Drop Down","Select from Drop Down",null,null,null,null,null,null,null,null,null,null,null,null,"Select from Drop Down","Select from Drop Down","Select from Drop Down"]
[648,null,null,"Select from Drop Down","Select from Drop Down","Select from Drop Down",null,null,null,null,null,null,null,null,null,null,null,null,"Select from Drop Down","Select from Drop Down","Select from Drop Down"]
[649,null,null,"Select from Drop Down","Select from Drop Down","Select from Drop Down",null,null,null,null,null,null,null,null,null,null,null,null,"Select from Drop Down","Select from Drop Down","Select from Drop Down"]
[650,null,null,"Select from Drop Down","Select from Drop Down","Select from Drop Down",null,null,null,null,null,null,null,null,null,null,null,null,"Select from Drop Down","Select from Drop Down","Select from Drop Down"]
[651,null,null,"Select from Drop Down","Select from Drop Down","Select from Drop Down",null,null,null,null,null,null,null,null,null,null,null,null,"Select from Drop Down","Select from Drop Down","Select from Drop Down"]
[652,null,null,"Select from Drop Down","Select from Drop Down","Select from Drop Down",null,null,null,null,null,null,null,null,null,null,null,null,"Select from Drop Down","Select from Drop Down","Select from Drop Down"]
[653,null,null,"Select from Drop Down","Select from Drop Down","Select from Drop Down",null,null,null,null,null,null,null,null,null,null,null,null,"Select from Drop Down","Select from Drop Down","Select from Drop Down"]
[654,null,null,"Select from Drop Down","Select from Drop Down","Select from Drop Down",null,null,null,null,null,null,null,null,null,null,null,null,"Select from Drop Down","Select from Drop Down","Select from Drop Down"]
[655,null,null,"Select from Drop Down","Select from Drop Down","Select from Drop Down",null,null,null,null,null,null,null,null,null,null,null,null,"Select from Drop Down","Select from Drop Down","Select from Drop Down"]
[656,null,null,"Select from Drop Down","Select from Drop Down","Select from Drop Down",null,null,null,null,null,null,null,null,null,null,null,null,"Select from Drop Down","Select from Drop Down","Select from Drop Down"]
[657,null,null,"Select from Drop Down","Select from Drop Down","Select from Drop Down",null,null,null,null,null,null,null,null,null,null,null,null,"Select from Drop Down","Select from Drop Down","Select from Drop Down"]
[658,null,null,"Select from Drop Down","Select from Drop Down","Select from Drop Down",null,null,null,null,null,null,null,null,null,null,null,null,"Select from Drop Down","Select from Drop Down","Select from Drop Down"]
[659,null,null,"Select from Drop Down","Select from Drop Down","Select from Drop Down",null,null,null,null,null,null,null,null,null,null,null,null,"Select from Drop Down","Select from Drop Down","Select from Drop Down"]
[660,null,null,"Select from Drop Down","Select from Drop Down","Select from Drop Down",null,null,null,null,null,null,null,null,null,null,null,null,"Select from Drop Down","Select from Drop Down","Select from Drop Down"]
[661,null,null,"Select from Drop Down","Select from Drop Down","Select from Drop Down",null,null,null,null,null,null,null,null,null,null,null,null,"Select from Drop Down","Select from Drop Down","Select from Drop Down"]
[662,null,null,"Select from Drop Down","Select from Drop Down","Select from Drop Down",null,null,null,null,null,null,null,null,null,null,null,null,"Select from Drop Down","Select from Drop Down","Select from Drop Down"]
[663,null,null,"Select from Drop Down","Select from Drop Down","Select from Drop Down",null,null,null,null,null,null,null,null,null,null,null,null,"Select from Drop Down","Select from Drop Down","Select from Drop Down"]
[664,null,null,"Select from Drop Down","Select from Drop Down","Select from Drop Down",null,null,null,null,null,null,null,null,null,null,null,null,"Select from Drop Down","Select from Drop Down","Select from Drop Down"]
[665,null,null,"Select from Drop Down","Select from Drop Down","Select from Drop Down",null,null,null,null,null,null,null,null,null,null,null,null,"Select from Drop Down","Select from Drop Down","Select from Drop Down"]
[666,null,null,"Select from Drop Down","Select from Drop Down","Select from Drop Down",null,null,null,null,null,null,null,null,null,null,null,null,"Select from Drop Down","Select from Drop Down","Select from Drop Down"]
[667,null,null,"Select from Drop Down","Select from Drop Down","Select from Drop Down",null,null,null,null,null,null,null,null,null,null,null,null,"Select from Drop Down","Select from Drop Down","Select from Drop Down"]
[668,null,null,"Select from Drop Down","Select from Drop Down","Select from Drop Down",null,null,null,null,null,null,null,null,null,null,null,null,"Select from Drop Down","Select from Drop Down","Select from Drop Down"]
[669,null,null,"Select from Drop Down","Select from Drop Down","Select from Drop Down",null,null,null,null,null,null,null,null,null,null,null,null,"Select from Drop Down","Select from Drop Down","Select from Drop Down"]
[670,null,null,"Select from Drop Down","Select from Drop Down","Select from Drop Down",null,null,null,null,null,null,null,null,null,null,null,null,"Select from Drop Down","Select from Drop Down","Select from Drop Down"]
[671,null,null,"Select from Drop Down","Select from Drop Down","Select from Drop Down",null,null,null,null,null,null,null,null,null,null,null,null,"Select from Drop Down","Select from Drop Down","Select from Drop Down"]
[672,null,null,"Select from Drop Down","Select from Drop Down","Select from Drop Down",null,null,null,null,null,null,null,null,null,null,null,null,"Select from Drop Down","Select from Drop Down","Select from Drop Down"]
[673,null,null,"Select from Drop Down","Select from Drop Down","Select from Drop Down",null,null,null,null,null,null,null,null,null,null,null,null,"Select from Drop Down","Select from Drop Down","Select from Drop Down"]
[674,null,null,"Select from Drop Down","Select from Drop Down","Select from Drop Down",null,null,null,null,null,null,null,null,null,null,null,null,"Select from Drop Down","Select from Drop Down","Select from Drop Down"]
[675,null,null,"Select from Drop Down","Select from Drop Down","Select from Drop Down",null,null,null,null,null,null,null,null,null,null,null,null,"Select from Drop Down","Select from Drop Down","Select from Drop Down"]
[676,null,null,"Select from Drop Down","Select from Drop Down","Select from Drop Down",null,null,null,null,null,null,null,null,null,null,null,null,"Select from Drop Down","Select from Drop Down","Select from Drop Down"]
[677,null,null,"Select from Drop Down","Select from Drop Down","Select from Drop Down",null,null,null,null,null,null,null,null,null,null,null,null,"Select from Drop Down","Select from Drop Down","Select from Drop Down"]
[678,null,null,"Select from Drop Down","Select from Drop Down","Select from Drop Down",null,null,null,null,null,null,null,null,null,null,null,null,"Select from Drop Down","Select from Drop Down","Select from Drop Down"]
[679,null,null,"Select from Drop Down","Select from Drop Down","Select from Drop Down",null,null,null,null,null,null,null,null,null,null,null,null,"Select from Drop Down","Select from Drop Down","Select from Drop Down"]
[680,null,null,"Select from Drop Down","Select from Drop Down","Select from Drop Down",null,null,null,null,null,null,null,null,null,null,null,null,"Select from Drop Down","Select from Drop Down","Select from Drop Down"]
[681,null,null,"Select from Drop Down","Select from Drop Down","Select from Drop Down",null,null,null,null,null,null,null,null,null,null,null,null,"Select from Drop Down","Select from Drop Down","Select from Drop Down"]
[682,null,null,"Select from Drop Down","Select from Drop Down","Select from Drop Down",null,null,null,null,null,null,null,null,null,null,null,null,"Select from Drop Down","Select from Drop Down","Select from Drop Down"]
[683,null,null,"Select from Drop Down","Select from Drop Down","Select from Drop Down",null,null,null,null,null,null,null,null,null,null,null,null,"Select from Drop Down","Select from Drop Down","Select from Drop Down"]
[684,null,null,"Select from Drop Down","Select from Drop Down","Select from Drop Down",null,null,null,null,null,null,null,null,null,null,null,null,"Select from Drop Down","Select from Drop Down","Select from Drop Down"]
[685,null,null,"Select from Drop Down","Select from Drop Down","Select from Drop Down",null,null,null,null,null,null,null,null,null,null,null,null,"Select from Drop Down","Select from Drop Down","Select from Drop Down"]
[686,null,null,"Select from Drop Down","Select from Drop Down","Select from Drop Down",null,null,null,null,null,null,null,null,null,null,null,null,"Select from Drop Down","Select from Drop Down","Select from Drop Down"]
[687,null,null,"Select from Drop Down","Select from Drop Down","Select from Drop Down",null,null,null,null,null,null,null,null,null,null,null,null,"Select from Drop Down","Select from Drop Down","Select from Drop Down"]
[688,null,null,"Select from Drop Down","Select from Drop Down","Select from Drop Down",null,null,null,null,null,null,null,null,null,null,null,null,"Select from Drop Down","Select from Drop Down","Select from Drop Down"]
[689,null,null,"Select from Drop Down","Select from Drop Down","Select from Drop Down",null,null,null,null,null,null,null,null,null,null,null,null,"Select from Drop Down","Select from Drop Down","Select from Drop Down"]
[690,null,null,"Select from Drop Down","Select from Drop Down","Select from Drop Down",null,null,null,null,null,null,null,null,null,null,null,null,"Select from Drop Down","Select from Drop Down","Select from Drop Down"]
[691,null,null,"Select from Drop Down","Select from Drop Down","Select from Drop Down",null,null,null,null,null,null,null,null,null,null,null,null,"Select from Drop Down","Select from Drop Down","Select from Drop Down"]
[692,null,null,"Select from Drop Down","Select from Drop Down","Select from Drop Down",null,null,null,null,null,null,null,null,null,null,null,null,"Select from Drop Down","Select from Drop Down","Select from Drop Down"]
[693,null,null,"Select from Drop Down","Select from Drop Down","Select from Drop Down",null,null,null,null,null,null,null,null,null,null,null,null,"Select from Drop Down","Select from Drop Down","Select from Drop Down"]
[694,null,null,"Select from Drop Down","Select from Drop Down","Select from Drop Down",null,null,null,null,null,null,null,null,null,null,null,null,"Select from Drop Down","Select from Drop Down","Select from Drop Down"]
[695,null,null,"Select from Drop Down","Select from Drop Down","Select from Drop Down",null,null,null,null,null,null,null,null,null,null,null,null,"Select from Drop Down","Select from Drop Down","Select from Drop Down"]
[696,null,null,"Select from Drop Down","Select from Drop Down","Select from Drop Down",null,null,null,null,null,null,null,null,null,null,null,null,"Select from Drop Down","Select from Drop Down","Select from Drop Down"]
[697,null,null,"Select from Drop Down","Select from Drop Down","Select from Drop Down",null,null,null,null,null,null,null,null,null,null,null,null,"Select from Drop Down","Select from Drop Down","Select from Drop Down"]
[698,null,null,"Select from Drop Down","Select from Drop Down","Select from Drop Down",null,null,null,null,null,null,null,null,null,null,null,null,"Select from Drop Down","Select from Drop Down","Select from Drop Down"]
[699,null,null,"Select from Drop Down","Select from Drop Down","Select from Drop Down",null,null,null,null,null,null,null,null,null,null,null,null,"Select from Drop Down","Select from Drop Down","Select from Drop Down"]
[700,null,null,"Select from Drop Down","Select from Drop Down","Select from Drop Down",null,null,null,null,null,null,null,null,null,null,null,null,"Select from Drop Down","Select from Drop Down","Select from Drop Down"]
[701,null,null,"Select from Drop Down","Select from Drop Down","Select from Drop Down",null,null,null,null,null,null,null,null,null,null,null,null,"Select from Drop Down","Select from Drop Down","Select from Drop Down"]
[702,null,null,"Select from Drop Down","Select from Drop Down","Select from Drop Down",null,null,null,null,null,null,null,null,null,null,null,null,"Select from Drop Down","Select from Drop Down","Select from Drop Down"]
[703,null,null,"Select from Drop Down","Select from Drop Down","Select from Drop Down",null,null,null,null,null,null,null,null,null,null,null,null,"Select from Drop Down","Select from Drop Down","Select from Drop Down"]
[704,null,null,"Select from Drop Down","Select from Drop Down","Select from Drop Down",null,null,null,null,null,null,null,null,null,null,null,null,"Select from Drop Down","Select from Drop Down","Select from Drop Down"]
[705,null,null,"Select from Drop Down","Select from Drop Down","Select from Drop Down",null,null,null,null,null,null,null,null,null,null,null,null,"Select from Drop Down","Select from Drop Down","Select from Drop Down"]
[706,null,null,"Select from Drop Down","Select from Drop Down","Select from Drop Down",null,null,null,null,null,null,null,null,null,null,null,null,"Select from Drop Down","Select from Drop Down","Select from Drop Down"]
[{"$f":"A716+1","v":707},null,null,"Select from Drop Down","Select from Drop Down","Select from Drop Down",null,null,null,null,null,null,null,null,null,null,null,null,"Select from Drop Down","Select from Drop Down","Select from Drop Down"]
[708,null,null,"Select from Drop Down","Select from Drop Down","Select from Drop Down",null,null,null,null,null,null,null,null,null,null,null,null,"Select from Drop Down","Select from Drop Down","Select from Drop Down"]
[709,null,null,"Select from Drop Down","Select from Drop Down","Select from Drop Down",null,null,null,null,null,null,null,null,null,null,null,null,"Select from Drop Down","Select from Drop Down","Select from Drop Down"]
[710,null,null,"Select from Drop Down","Select from Drop Down","Select from Drop Down",null,null,null,null,null,null,null,null,null,null,null,null,"Select from Drop Down","Select from Drop Down","Select from Drop Down"]
[711,null,null,"Select from Drop Down","Select from Drop Down","Select from Drop Down",null,null,null,null,null,null,null,null,null,null,null,null,"Select from Drop Down","Select from Drop Down","Select from Drop Down"]
[712,null,null,"Select from Drop Down","Select from Drop Down","Select from Drop Down",null,null,null,null,null,null,null,null,null,null,null,null,"Select from Drop Down","Select from Drop Down","Select from Drop Down"]
[713,null,null,"Select from Drop Down","Select from Drop Down","Select from Drop Down",null,null,null,null,null,null,null,null,null,null,null,null,"Select from Drop Down","Select from Drop Down","Select from Drop Down"]
[714,null,null,"Select from Drop Down","Select from Drop Down","Select from Drop Down",null,null,null,null,null,null,null,null,null,null,null,null,"Select from Drop Down","Select from Drop Down","Select from Drop Down"]
[715,null,null,"Select from Drop Down","Select from Drop Down","Select from Drop Down",null,null,null,null,null,null,null,null,null,null,null,null,"Select from Drop Down","Select from Drop Down","Select from Drop Down"]
[716,null,null,"Select from Drop Down","Select from Drop Down","Select from Drop Down",null,null,null,null,null,null,null,null,null,null,null,null,"Select from Drop Down","Select from Drop Down","Select from Drop Down"]
[717,null,null,"Select from Drop Down","Select from Drop Down","Select from Drop Down",null,null,null,null,null,null,null,null,null,null,null,null,"Select from Drop Down","Select from Drop Down","Select from Drop Down"]
[718,null,null,"Select from Drop Down","Select from Drop Down","Select from Drop Down",null,null,null,null,null,null,null,null,null,null,null,null,"Select from Drop Down","Select from Drop Down","Select from Drop Down"]
[719,null,null,"Select from Drop Down","Select from Drop Down","Select from Drop Down",null,null,null,null,null,null,null,null,null,null,null,null,"Select from Drop Down","Select from Drop Down","Select from Drop Down"]
[720,null,null,"Select from Drop Down","Select from Drop Down","Select from Drop Down",null,null,null,null,null,null,null,null,null,null,null,null,"Select from Drop Down","Select from Drop Down","Select from Drop Down"]
[721,null,null,"Select from Drop Down","Select from Drop Down","Select from Drop Down",null,null,null,null,null,null,null,null,null,null,null,null,"Select from Drop Down","Select from Drop Down","Select from Drop Down"]
[722,null,null,"Select from Drop Down","Select from Drop Down","Select from Drop Down",null,null,null,null,null,null,null,null,null,null,null,null,"Select from Drop Down","Select from Drop Down","Select from Drop Down"]
[723,null,null,"Select from Drop Down","Select from Drop Down","Select from Drop Down",null,null,null,null,null,null,null,null,null,null,null,null,"Select from Drop Down","Select from Drop Down","Select from Drop Down"]
[724,null,null,"Select from Drop Down","Select from Drop Down","Select from Drop Down",null,null,null,null,null,null,null,null,null,null,null,null,"Select from Drop Down","Select from Drop Down","Select from Drop Down"]
[725,null,null,"Select from Drop Down","Select from Drop Down","Select from Drop Down",null,null,null,null,null,null,null,null,null,null,null,null,"Select from Drop Down","Select from Drop Down","Select from Drop Down"]
[726,null,null,"Select from Drop Down","Select from Drop Down","Select from Drop Down",null,null,null,null,null,null,null,null,null,null,null,null,"Select from Drop Down","Select from Drop Down","Select from Drop Down"]
[727,null,null,"Select from Drop Down","Select from Drop Down","Select from Drop Down",null,null,null,null,null,null,null,null,null,null,null,null,"Select from Drop Down","Select from Drop Down","Select from Drop Down"]
[728,null,null,"Select from Drop Down","Select from Drop Down","Select from Drop Down",null,null,null,null,null,null,null,null,null,null,null,null,"Select from Drop Down","Select from Drop Down","Select from Drop Down"]
[729,null,null,"Select from Drop Down","Select from Drop Down","Select from Drop Down",null,null,null,null,null,null,null,null,null,null,null,null,"Select from Drop Down","Select from Drop Down","Select from Drop Down"]
[730,null,null,"Select from Drop Down","Select from Drop Down","Select from Drop Down",null,null,null,null,null,null,null,null,null,null,null,null,"Select from Drop Down","Select from Drop Down","Select from Drop Down"]
[731,null,null,"Select from Drop Down","Select from Drop Down","Select from Drop Down",null,null,null,null,null,null,null,null,null,null,null,null,"Select from Drop Down","Select from Drop Down","Select from Drop Down"]
[732,null,null,"Select from Drop Down","Select from Drop Down","Select from Drop Down",null,null,null,null,null,null,null,null,null,null,null,null,"Select from Drop Down","Select from Drop Down","Select from Drop Down"]
[733,null,null,"Select from Drop Down","Select from Drop Down","Select from Drop Down",null,null,null,null,null,null,null,null,null,null,null,null,"Select from Drop Down","Select from Drop Down","Select from Drop Down"]
[734,null,null,"Select from Drop Down","Select from Drop Down","Select from Drop Down",null,null,null,null,null,null,null,null,null,null,null,null,"Select from Drop Down","Select from Drop Down","Select from Drop Down"]
[735,null,null,"Select from Drop Down","Select from Drop Down","Select from Drop Down",null,null,null,null,null,null,null,null,null,null,null,null,"Select from Drop Down","Select from Drop Down","Select from Drop Down"]
[736,null,null,"Select from Drop Down","Select from Drop Down","Select from Drop Down",null,null,null,null,null,null,null,null,null,null,null,null,"Select from Drop Down","Select from Drop Down","Select from Drop Down"]
[737,null,null,"Select from Drop Down","Select from Drop Down","Select from Drop Down",null,null,null,null,null,null,null,null,null,null,null,null,"Select from Drop Down","Select from Drop Down","Select from Drop Down"]
[738,null,null,"Select from Drop Down","Select from Drop Down","Select from Drop Down",null,null,null,null,null,null,null,null,null,null,null,null,"Select from Drop Down","Select from Drop Down","Select from Drop Down"]
[739,null,null,"Select from Drop Down","Select from Drop Down","Select from Drop Down",null,null,null,null,null,null,null,null,null,null,null,null,"Select from Drop Down","Select from Drop Down","Select from Drop Down"]
[740,null,null,"Select from Drop Down","Select from Drop Down","Select from Drop Down",null,null,null,null,null,null,null,null,null,null,null,null,"Select from Drop Down","Select from Drop Down","Select from Drop Down"]
[741,null,null,"Select from Drop Down","Select from Drop Down","Select from Drop Down",null,null,null,null,null,null,null,null,null,null,null,null,"Select from Drop Down","Select from Drop Down","Select from Drop Down"]
[742,null,null,"Select from Drop Down","Select from Drop Down","Select from Drop Down",null,null,null,null,null,null,null,null,null,null,null,null,"Select from Drop Down","Select from Drop Down","Select from Drop Down"]
[743,null,null,"Select from Drop Down","Select from Drop Down","Select from Drop Down",null,null,null,null,null,null,null,null,null,null,null,null,"Select from Drop Down","Select from Drop Down","Select from Drop Down"]
[744,null,null,"Select from Drop Down","Select from Drop Down","Select from Drop Down",null,null,null,null,null,null,null,null,null,null,null,null,"Select from Drop Down","Select from Drop Down","Select from Drop Down"]
[745,null,null,"Select from Drop Down","Select from Drop Down","Select from Drop Down",null,null,null,null,null,null,null,null,null,null,null,null,"Select from Drop Down","Select from Drop Down","Select from Drop Down"]
[746,null,null,"Select from Drop Down","Select from Drop Down","Select from Drop Down",null,null,null,null,null,null,null,null,null,null,null,null,"Select from Drop Down","Select from Drop Down","Select from Drop Down"]
[747,null,null,"Select from Drop Down","Select from Drop Down","Select from Drop Down",null,null,null,null,null,null,null,null,null,null,null,null,"Select from Drop Down","Select from Drop Down","Select from Drop Down"]
[748,null,null,"Select from Drop Down","Select from Drop Down","Select from Drop Down",null,null,null,null,null,null,null,null,null,null,null,null,"Select from Drop Down","Select from Drop Down","Select from Drop Down"]
[749,null,null,"Select from Drop Down","Select from Drop Down","Select from Drop Down",null,null,null,null,null,null,null,null,null,null,null,null,"Select from Drop Down","Select from Drop Down","Select from Drop Down"]
[750,null,null,"Select from Drop Down","Select from Drop Down","Select from Drop Down",null,null,null,null,null,null,null,null,null,null,null,null,"Select from Drop Down","Select from Drop Down","Select from Drop Down"]
[751,null,null,"Select from Drop Down","Select from Drop Down","Select from Drop Down",null,null,null,null,null,null,null,null,null,null,null,null,"Select from Drop Down","Select from Drop Down","Select from Drop Down"]
[752,null,null,"Select from Drop Down","Select from Drop Down","Select from Drop Down",null,null,null,null,null,null,null,null,null,null,null,null,"Select from Drop Down","Select from Drop Down","Select from Drop Down"]
[753,null,null,"Select from Drop Down","Select from Drop Down","Select from Drop Down",null,null,null,null,null,null,null,null,null,null,null,null,"Select from Drop Down","Select from Drop Down","Select from Drop Down"]
[754,null,null,"Select from Drop Down","Select from Drop Down","Select from Drop Down",null,null,null,null,null,null,null,null,null,null,null,null,"Select from Drop Down","Select from Drop Down","Select from Drop Down"]
[755,null,null,"Select from Drop Down","Select from Drop Down","Select from Drop Down",null,null,null,null,null,null,null,null,null,null,null,null,"Select from Drop Down","Select from Drop Down","Select from Drop Down"]
[756,null,null,"Select from Drop Down","Select from Drop Down","Select from Drop Down",null,null,null,null,null,null,null,null,null,null,null,null,"Select from Drop Down","Select from Drop Down","Select from Drop Down"]
[757,null,null,"Select from Drop Down","Select from Drop Down","Select from Drop Down",null,null,null,null,null,null,null,null,null,null,null,null,"Select from Drop Down","Select from Drop Down","Select from Drop Down"]
[758,null,null,"Select from Drop Down","Select from Drop Down","Select from Drop Down",null,null,null,null,null,null,null,null,null,null,null,null,"Select from Drop Down","Select from Drop Down","Select from Drop Down"]
[759,null,null,"Select from Drop Down","Select from Drop Down","Select from Drop Down",null,null,null,null,null,null,null,null,null,null,null,null,"Select from Drop Down","Select from Drop Down","Select from Drop Down"]
[760,null,null,"Select from Drop Down","Select from Drop Down","Select from Drop Down",null,null,null,null,null,null,null,null,null,null,null,null,"Select from Drop Down","Select from Drop Down","Select from Drop Down"]
[761,null,null,"Select from Drop Down","Select from Drop Down","Select from Drop Down",null,null,null,null,null,null,null,null,null,null,null,null,"Select from Drop Down","Select from Drop Down","Select from Drop Down"]
[762,null,null,"Select from Drop Down","Select from Drop Down","Select from Drop Down",null,null,null,null,null,null,null,null,null,null,null,null,"Select from Drop Down","Select from Drop Down","Select from Drop Down"]
[763,null,null,"Select from Drop Down","Select from Drop Down","Select from Drop Down",null,null,null,null,null,null,null,null,null,null,null,null,"Select from Drop Down","Select from Drop Down","Select from Drop Down"]
[764,null,null,"Select from Drop Down","Select from Drop Down","Select from Drop Down",null,null,null,null,null,null,null,null,null,null,null,null,"Select from Drop Down","Select from Drop Down","Select from Drop Down"]
[765,null,null,"Select from Drop Down","Select from Drop Down","Select from Drop Down",null,null,null,null,null,null,null,null,null,null,null,null,"Select from Drop Down","Select from Drop Down","Select from Drop Down"]
[766,null,null,"Select from Drop Down","Select from Drop Down","Select from Drop Down",null,null,null,null,null,null,null,null,null,null,null,null,"Select from Drop Down","Select from Drop Down","Select from Drop Down"]
[767,null,null,"Select from Drop Down","Select from Drop Down","Select from Drop Down",null,null,null,null,null,null,null,null,null,null,null,null,"Select from Drop Down","Select from Drop Down","Select from Drop Down"]
[768,null,null,"Select from Drop Down","Select from Drop Down","Select from Drop Down",null,null,null,null,null,null,null,null,null,null,null,null,"Select from Drop Down","Select from Drop Down","Select from Drop Down"]
[769,null,null,"Select from Drop Down","Select from Drop Down","Select from Drop Down",null,null,null,null,null,null,null,null,null,null,null,null,"Select from Drop Down","Select from Drop Down","Select from Drop Down"]
[770,null,null,"Select from Drop Down","Select from Drop Down","Select from Drop Down",null,null,null,null,null,null,null,null,null,null,null,null,"Select from Drop Down","Select from Drop Down","Select from Drop Down"]
[{"$f":"A780+1","v":771},null,null,"Select from Drop Down","Select from Drop Down","Select from Drop Down",null,null,null,null,null,null,null,null,null,null,null,null,"Select from Drop Down","Select from Drop Down","Select from Drop Down"]
[772,null,null,"Select from Drop Down","Select from Drop Down","Select from Drop Down",null,null,null,null,null,null,null,null,null,null,null,null,"Select from Drop Down","Select from Drop Down","Select from Drop Down"]
[773,null,null,"Select from Drop Down","Select from Drop Down","Select from Drop Down",null,null,null,null,null,null,null,null,null,null,null,null,"Select from Drop Down","Select from Drop Down","Select from Drop Down"]
[774,null,null,"Select from Drop Down","Select from Drop Down","Select from Drop Down",null,null,null,null,null,null,null,null,null,null,null,null,"Select from Drop Down","Select from Drop Down","Select from Drop Down"]
[775,null,null,"Select from Drop Down","Select from Drop Down","Select from Drop Down",null,null,null,null,null,null,null,null,null,null,null,null,"Select from Drop Down","Select from Drop Down","Select from Drop Down"]
[776,null,null,"Select from Drop Down","Select from Drop Down","Select from Drop Down",null,null,null,null,null,null,null,null,null,null,null,null,"Select from Drop Down","Select from Drop Down","Select from Drop Down"]
[777,null,null,"Select from Drop Down","Select from Drop Down","Select from Drop Down",null,null,null,null,null,null,null,null,null,null,null,null,"Select from Drop Down","Select from Drop Down","Select from Drop Down"]
[778,null,null,"Select from Drop Down","Select from Drop Down","Select from Drop Down",null,null,null,null,null,null,null,null,null,null,null,null,"Select from Drop Down","Select from Drop Down","Select from Drop Down"]
[779,null,null,"Select from Drop Down","Select from Drop Down","Select from Drop Down",null,null,null,null,null,null,null,null,null,null,null,null,"Select from Drop Down","Select from Drop Down","Select from Drop Down"]
[780,null,null,"Select from Drop Down","Select from Drop Down","Select from Drop Down",null,null,null,null,null,null,null,null,null,null,null,null,"Select from Drop Down","Select from Drop Down","Select from Drop Down"]
[781,null,null,"Select from Drop Down","Select from Drop Down","Select from Drop Down",null,null,null,null,null,null,null,null,null,null,null,null,"Select from Drop Down","Select from Drop Down","Select from Drop Down"]
[782,null,null,"Select from Drop Down","Select from Drop Down","Select from Drop Down",null,null,null,null,null,null,null,null,null,null,null,null,"Select from Drop Down","Select from Drop Down","Select from Drop Down"]
[783,null,null,"Select from Drop Down","Select from Drop Down","Select from Drop Down",null,null,null,null,null,null,null,null,null,null,null,null,"Select from Drop Down","Select from Drop Down","Select from Drop Down"]
[784,null,null,"Select from Drop Down","Select from Drop Down","Select from Drop Down",null,null,null,null,null,null,null,null,null,null,null,null,"Select from Drop Down","Select from Drop Down","Select from Drop Down"]
[785,null,null,"Select from Drop Down","Select from Drop Down","Select from Drop Down",null,null,null,null,null,null,null,null,null,null,null,null,"Select from Drop Down","Select from Drop Down","Select from Drop Down"]
[786,null,null,"Select from Drop Down","Select from Drop Down","Select from Drop Down",null,null,null,null,null,null,null,null,null,null,null,null,"Select from Drop Down","Select from Drop Down","Select from Drop Down"]
[787,null,null,"Select from Drop Down","Select from Drop Down","Select from Drop Down",null,null,null,null,null,null,null,null,null,null,null,null,"Select from Drop Down","Select from Drop Down","Select from Drop Down"]
[788,null,null,"Select from Drop Down","Select from Drop Down","Select from Drop Down",null,null,null,null,null,null,null,null,null,null,null,null,"Select from Drop Down","Select from Drop Down","Select from Drop Down"]
[789,null,null,"Select from Drop Down","Select from Drop Down","Select from Drop Down",null,null,null,null,null,null,null,null,null,null,null,null,"Select from Drop Down","Select from Drop Down","Select from Drop Down"]
[790,null,null,"Select from Drop Down","Select from Drop Down","Select from Drop Down",null,null,null,null,null,null,null,null,null,null,null,null,"Select from Drop Down","Select from Drop Down","Select from Drop Down"]
[791,null,null,"Select from Drop Down","Select from Drop Down","Select from Drop Down",null,null,null,null,null,null,null,null,null,null,null,null,"Select from Drop Down","Select from Drop Down","Select from Drop Down"]
[792,null,null,"Select from Drop Down","Select from Drop Down","Select from Drop Down",null,null,null,null,null,null,null,null,null,null,null,null,"Select from Drop Down","Select from Drop Down","Select from Drop Down"]
[793,null,null,"Select from Drop Down","Select from Drop Down","Select from Drop Down",null,null,null,null,null,null,null,null,null,null,null,null,"Select from Drop Down","Select from Drop Down","Select from Drop Down"]
[794,null,null,"Select from Drop Down","Select from Drop Down","Select from Drop Down",null,null,null,null,null,null,null,null,null,null,null,null,"Select from Drop Down","Select from Drop Down","Select from Drop Down"]
[795,null,null,"Select from Drop Down","Select from Drop Down","Select from Drop Down",null,null,null,null,null,null,null,null,null,null,null,null,"Select from Drop Down","Select from Drop Down","Select from Drop Down"]
[796,null,null,"Select from Drop Down","Select from Drop Down","Select from Drop Down",null,null,null,null,null,null,null,null,null,null,null,null,"Select from Drop Down","Select from Drop Down","Select from Drop Down"]
[797,null,null,"Select from Drop Down","Select from Drop Down","Select from Drop Down",null,null,null,null,null,null,null,null,null,null,null,null,"Select from Drop Down","Select from Drop Down","Select from Drop Down"]
[798,null,null,"Select from Drop Down","Select from Drop Down","Select from Drop Down",null,null,null,null,null,null,null,null,null,null,null,null,"Select from Drop Down","Select from Drop Down","Select from Drop Down"]
[799,null,null,"Select from Drop Down","Select from Drop Down","Select from Drop Down",null,null,null,null,null,null,null,null,null,null,null,null,"Select from Drop Down","Select from Drop Down","Select from Drop Down"]
[800,null,null,"Select from Drop Down","Select from Drop Down","Select from Drop Down",null,null,null,null,null,null,null,null,null,null,null,null,"Select from Drop Down","Select from Drop Down","Select from Drop Down"]
[801,null,null,"Select from Drop Down","Select from Drop Down","Select from Drop Down",null,null,null,null,null,null,null,null,null,null,null,null,"Select from Drop Down","Select from Drop Down","Select from Drop Down"]
[802,null,null,"Select from Drop Down","Select from Drop Down","Select from Drop Down",null,null,null,null,null,null,null,null,null,null,null,null,"Select from Drop Down","Select from Drop Down","Select from Drop Down"]
[803,null,null,"Select from Drop Down","Select from Drop Down","Select from Drop Down",null,null,null,null,null,null,null,null,null,null,null,null,"Select from Drop Down","Select from Drop Down","Select from Drop Down"]
[804,null,null,"Select from Drop Down","Select from Drop Down","Select from Drop Down",null,null,null,null,null,null,null,null,null,null,null,null,"Select from Drop Down","Select from Drop Down","Select from Drop Down"]
[805,null,null,"Select from Drop Down","Select from Drop Down","Select from Drop Down",null,null,null,null,null,null,null,null,null,null,null,null,"Select from Drop Down","Select from Drop Down","Select from Drop Down"]
[806,null,null,"Select from Drop Down","Select from Drop Down","Select from Drop Down",null,null,null,null,null,null,null,null,null,null,null,null,"Select from Drop Down","Select from Drop Down","Select from Drop Down"]
[807,null,null,"Select from Drop Down","Select from Drop Down","Select from Drop Down",null,null,null,null,null,null,null,null,null,null,null,null,"Select from Drop Down","Select from Drop Down","Select from Drop Down"]
[808,null,null,"Select from Drop Down","Select from Drop Down","Select from Drop Down",null,null,null,null,null,null,null,null,null,null,null,null,"Select from Drop Down","Select from Drop Down","Select from Drop Down"]
[809,null,null,"Select from Drop Down","Select from Drop Down","Select from Drop Down",null,null,null,null,null,null,null,null,null,null,null,null,"Select from Drop Down","Select from Drop Down","Select from Drop Down"]
[810,null,null,"Select from Drop Down","Select from Drop Down","Select from Drop Down",null,null,null,null,null,null,null,null,null,null,null,null,"Select from Drop Down","Select from Drop Down","Select from Drop Down"]
[811,null,null,"Select from Drop Down","Select from Drop Down","Select from Drop Down",null,null,null,null,null,null,null,null,null,null,null,null,"Select from Drop Down","Select from Drop Down","Select from Drop Down"]
[812,null,null,"Select from Drop Down","Select from Drop Down","Select from Drop Down",null,null,null,null,null,null,null,null,null,null,null,null,"Select from Drop Down","Select from Drop Down","Select from Drop Down"]
[813,null,null,"Select from Drop Down","Select from Drop Down","Select from Drop Down",null,null,null,null,null,null,null,null,null,null,null,null,"Select from Drop Down","Select from Drop Down","Select from Drop Down"]
[814,null,null,"Select from Drop Down","Select from Drop Down","Select from Drop Down",null,null,null,null,null,null,null,null,null,null,null,null,"Select from Drop Down","Select from Drop Down","Select from Drop Down"]
[815,null,null,"Select from Drop Down","Select from Drop Down","Select from Drop Down",null,null,null,null,null,null,null,null,null,null,null,null,"Select from Drop Down","Select from Drop Down","Select from Drop Down"]
[816,null,null,"Select from Drop Down","Select from Drop Down","Select from Drop Down",null,null,null,null,null,null,null,null,null,null,null,null,"Select from Drop Down","Select from Drop Down","Select from Drop Down"]
[817,null,null,"Select from Drop Down","Select from Drop Down","Select from Drop Down",null,null,null,null,null,null,null,null,null,null,null,null,"Select from Drop Down","Select from Drop Down","Select from Drop Down"]
[818,null,null,"Select from Drop Down","Select from Drop Down","Select from Drop Down",null,null,null,null,null,null,null,null,null,null,null,null,"Select from Drop Down","Select from Drop Down","Select from Drop Down"]
[819,null,null,"Select from Drop Down","Select from Drop Down","Select from Drop Down",null,null,null,null,null,null,null,null,null,null,null,null,"Select from Drop Down","Select from Drop Down","Select from Drop Down"]
[820,null,null,"Select from Drop Down","Select from Drop Down","Select from Drop Down",null,null,null,null,null,null,null,null,null,null,null,null,"Select from Drop Down","Select from Drop Down","Select from Drop Down"]
[821,null,null,"Select from Drop Down","Select from Drop Down","Select from Drop Down",null,null,null,null,null,null,null,null,null,null,null,null,"Select from Drop Down","Select from Drop Down","Select from Drop Down"]
[822,null,null,"Select from Drop Down","Select from Drop Down","Select from Drop Down",null,null,null,null,null,null,null,null,null,null,null,null,"Select from Drop Down","Select from Drop Down","Select from Drop Down"]
[823,null,null,"Select from Drop Down","Select from Drop Down","Select from Drop Down",null,null,null,null,null,null,null,null,null,null,null,null,"Select from Drop Down","Select from Drop Down","Select from Drop Down"]
[824,null,null,"Select from Drop Down","Select from Drop Down","Select from Drop Down",null,null,null,null,null,null,null,null,null,null,null,null,"Select from Drop Down","Select from Drop Down","Select from Drop Down"]
[825,null,null,"Select from Drop Down","Select from Drop Down","Select from Drop Down",null,null,null,null,null,null,null,null,null,null,null,null,"Select from Drop Down","Select from Drop Down","Select from Drop Down"]
[826,null,null,"Select from Drop Down","Select from Drop Down","Select from Drop Down",null,null,null,null,null,null,null,null,null,null,null,null,"Select from Drop Down","Select from Drop Down","Select from Drop Down"]
[827,null,null,"Select from Drop Down","Select from Drop Down","Select from Drop Down",null,null,null,null,null,null,null,null,null,null,null,null,"Select from Drop Down","Select from Drop Down","Select from Drop Down"]
[828,null,null,"Select from Drop Down","Select from Drop Down","Select from Drop Down",null,null,null,null,null,null,null,null,null,null,null,null,"Select from Drop Down","Select from Drop Down","Select from Drop Down"]
[829,null,null,"Select from Drop Down","Select from Drop Down","Select from Drop Down",null,null,null,null,null,null,null,null,null,null,null,null,"Select from Drop Down","Select from Drop Down","Select from Drop Down"]
[830,null,null,"Select from Drop Down","Select from Drop Down","Select from Drop Down",null,null,null,null,null,null,null,null,null,null,null,null,"Select from Drop Down","Select from Drop Down","Select from Drop Down"]
[831,null,null,"Select from Drop Down","Select from Drop Down","Select from Drop Down",null,null,null,null,null,null,null,null,null,null,null,null,"Select from Drop Down","Select from Drop Down","Select from Drop Down"]
[832,null,null,"Select from Drop Down","Select from Drop Down","Select from Drop Down",null,null,null,null,null,null,null,null,null,null,null,null,"Select from Drop Down","Select from Drop Down","Select from Drop Down"]
[833,null,null,"Select from Drop Down","Select from Drop Down","Select from Drop Down",null,null,null,null,null,null,null,null,null,null,null,null,"Select from Drop Down","Select from Drop Down","Select from Drop Down"]
[834,null,null,"Select from Drop Down","Select from Drop Down","Select from Drop Down",null,null,null,null,null,null,null,null,null,null,null,null,"Select from Drop Down","Select from Drop Down","Select from Drop Down"]
[{"$f":"A844+1","v":835},null,null,"Select from Drop Down","Select from Drop Down","Select from Drop Down",null,null,null,null,null,null,null,null,null,null,null,null,"Select from Drop Down","Select from Drop Down","Select from Drop Down"]
[836,null,null,"Select from Drop Down","Select from Drop Down","Select from Drop Down",null,null,null,null,null,null,null,null,null,null,null,null,"Select from Drop Down","Select from Drop Down","Select from Drop Down"]
[837,null,null,"Select from Drop Down","Select from Drop Down","Select from Drop Down",null,null,null,null,null,null,null,null,null,null,null,null,"Select from Drop Down","Select from Drop Down","Select from Drop Down"]
[838,null,null,"Select from Drop Down","Select from Drop Down","Select from Drop Down",null,null,null,null,null,null,null,null,null,null,null,null,"Select from Drop Down","Select from Drop Down","Select from Drop Down"]
[839,null,null,"Select from Drop Down","Select from Drop Down","Select from Drop Down",null,null,null,null,null,null,null,null,null,null,null,null,"Select from Drop Down","Select from Drop Down","Select from Drop Down"]
[840,null,null,"Select from Drop Down","Select from Drop Down","Select from Drop Down",null,null,null,null,null,null,null,null,null,null,null,null,"Select from Drop Down","Select from Drop Down","Select from Drop Down"]
[841,null,null,"Select from Drop Down","Select from Drop Down","Select from Drop Down",null,null,null,null,null,null,null,null,null,null,null,null,"Select from Drop Down","Select from Drop Down","Select from Drop Down"]
[842,null,null,"Select from Drop Down","Select from Drop Down","Select from Drop Down",null,null,null,null,null,null,null,null,null,null,null,null,"Select from Drop Down","Select from Drop Down","Select from Drop Down"]
[843,null,null,"Select from Drop Down","Select from Drop Down","Select from Drop Down",null,null,null,null,null,null,null,null,null,null,null,null,"Select from Drop Down","Select from Drop Down","Select from Drop Down"]
[844,null,null,"Select from Drop Down","Select from Drop Down","Select from Drop Down",null,null,null,null,null,null,null,null,null,null,null,null,"Select from Drop Down","Select from Drop Down","Select from Drop Down"]
[845,null,null,"Select from Drop Down","Select from Drop Down","Select from Drop Down",null,null,null,null,null,null,null,null,null,null,null,null,"Select from Drop Down","Select from Drop Down","Select from Drop Down"]
[846,null,null,"Select from Drop Down","Select from Drop Down","Select from Drop Down",null,null,null,null,null,null,null,null,null,null,null,null,"Select from Drop Down","Select from Drop Down","Select from Drop Down"]
[847,null,null,"Select from Drop Down","Select from Drop Down","Select from Drop Down",null,null,null,null,null,null,null,null,null,null,null,null,"Select from Drop Down","Select from Drop Down","Select from Drop Down"]
[848,null,null,"Select from Drop Down","Select from Drop Down","Select from Drop Down",null,null,null,null,null,null,null,null,null,null,null,null,"Select from Drop Down","Select from Drop Down","Select from Drop Down"]
[849,null,null,"Select from Drop Down","Select from Drop Down","Select from Drop Down",null,null,null,null,null,null,null,null,null,null,null,null,"Select from Drop Down","Select from Drop Down","Select from Drop Down"]
[850,null,null,"Select from Drop Down","Select from Drop Down","Select from Drop Down",null,null,null,null,null,null,null,null,null,null,null,null,"Select from Drop Down","Select from Drop Down","Select from Drop Down"]
[851,null,null,"Select from Drop Down","Select from Drop Down","Select from Drop Down",null,null,null,null,null,null,null,null,null,null,null,null,"Select from Drop Down","Select from Drop Down","Select from Drop Down"]
[852,null,null,"Select from Drop Down","Select from Drop Down","Select from Drop Down",null,null,null,null,null,null,null,null,null,null,null,null,"Select from Drop Down","Select from Drop Down","Select from Drop Down"]
[853,null,null,"Select from Drop Down","Select from Drop Down","Select from Drop Down",null,null,null,null,null,null,null,null,null,null,null,null,"Select from Drop Down","Select from Drop Down","Select from Drop Down"]
[854,null,null,"Select from Drop Down","Select from Drop Down","Select from Drop Down",null,null,null,null,null,null,null,null,null,null,null,null,"Select from Drop Down","Select from Drop Down","Select from Drop Down"]
[855,null,null,"Select from Drop Down","Select from Drop Down","Select from Drop Down",null,null,null,null,null,null,null,null,null,null,null,null,"Select from Drop Down","Select from Drop Down","Select from Drop Down"]
[856,null,null,"Select from Drop Down","Select from Drop Down","Select from Drop Down",null,null,null,null,null,null,null,null,null,null,null,null,"Select from Drop Down","Select from Drop Down","Select from Drop Down"]
[857,null,null,"Select from Drop Down","Select from Drop Down","Select from Drop Down",null,null,null,null,null,null,null,null,null,null,null,null,"Select from Drop Down","Select from Drop Down","Select from Drop Down"]
[858,null,null,"Select from Drop Down","Select from Drop Down","Select from Drop Down",null,null,null,null,null,null,null,null,null,null,null,null,"Select from Drop Down","Select from Drop Down","Select from Drop Down"]
[859,null,null,"Select from Drop Down","Select from Drop Down","Select from Drop Down",null,null,null,null,null,null,null,null,null,null,null,null,"Select from Drop Down","Select from Drop Down","Select from Drop Down"]
[860,null,null,"Select from Drop Down","Select from Drop Down","Select from Drop Down",null,null,null,null,null,null,null,null,null,null,null,null,"Select from Drop Down","Select from Drop Down","Select from Drop Down"]
[861,null,null,"Select from Drop Down","Select from Drop Down","Select from Drop Down",null,null,null,null,null,null,null,null,null,null,null,null,"Select from Drop Down","Select from Drop Down","Select from Drop Down"]
[862,null,null,"Select from Drop Down","Select from Drop Down","Select from Drop Down",null,null,null,null,null,null,null,null,null,null,null,null,"Select from Drop Down","Select from Drop Down","Select from Drop Down"]
[863,null,null,"Select from Drop Down","Select from Drop Down","Select from Drop Down",null,null,null,null,null,null,null,null,null,null,null,null,"Select from Drop Down","Select from Drop Down","Select from Drop Down"]
[864,null,null,"Select from Drop Down","Select from Drop Down","Select from Drop Down",null,null,null,null,null,null,null,null,null,null,null,null,"Select from Drop Down","Select from Drop Down","Select from Drop Down"]
[865,null,null,"Select from Drop Down","Select from Drop Down","Select from Drop Down",null,null,null,null,null,null,null,null,null,null,null,null,"Select from Drop Down","Select from Drop Down","Select from Drop Down"]
[866,null,null,"Select from Drop Down","Select from Drop Down","Select from Drop Down",null,null,null,null,null,null,null,null,null,null,null,null,"Select from Drop Down","Select from Drop Down","Select from Drop Down"]
[867,null,null,"Select from Drop Down","Select from Drop Down","Select from Drop Down",null,null,null,null,null,null,null,null,null,null,null,null,"Select from Drop Down","Select from Drop Down","Select from Drop Down"]
[868,null,null,"Select from Drop Down","Select from Drop Down","Select from Drop Down",null,null,null,null,null,null,null,null,null,null,null,null,"Select from Drop Down","Select from Drop Down","Select from Drop Down"]
[869,null,null,"Select from Drop Down","Select from Drop Down","Select from Drop Down",null,null,null,null,null,null,null,null,null,null,null,null,"Select from Drop Down","Select from Drop Down","Select from Drop Down"]
[870,null,null,"Select from Drop Down","Select from Drop Down","Select from Drop Down",null,null,null,null,null,null,null,null,null,null,null,null,"Select from Drop Down","Select from Drop Down","Select from Drop Down"]
[871,null,null,"Select from Drop Down","Select from Drop Down","Select from Drop Down",null,null,null,null,null,null,null,null,null,null,null,null,"Select from Drop Down","Select from Drop Down","Select from Drop Down"]
[872,null,null,"Select from Drop Down","Select from Drop Down","Select from Drop Down",null,null,null,null,null,null,null,null,null,null,null,null,"Select from Drop Down","Select from Drop Down","Select from Drop Down"]
[873,null,null,"Select from Drop Down","Select from Drop Down","Select from Drop Down",null,null,null,null,null,null,null,null,null,null,null,null,"Select from Drop Down","Select from Drop Down","Select from Drop Down"]
[874,null,null,"Select from Drop Down","Select from Drop Down","Select from Drop Down",null,null,null,null,null,null,null,null,null,null,null,null,"Select from Drop Down","Select from Drop Down","Select from Drop Down"]
[875,null,null,"Select from Drop Down","Select from Drop Down","Select from Drop Down",null,null,null,null,null,null,null,null,null,null,null,null,"Select from Drop Down","Select from Drop Down","Select from Drop Down"]
[876,null,null,"Select from Drop Down","Select from Drop Down","Select from Drop Down",null,null,null,null,null,null,null,null,null,null,null,null,"Select from Drop Down","Select from Drop Down","Select from Drop Down"]
[877,null,null,"Select from Drop Down","Select from Drop Down","Select from Drop Down",null,null,null,null,null,null,null,null,null,null,null,null,"Select from Drop Down","Select from Drop Down","Select from Drop Down"]
[878,null,null,"Select from Drop Down","Select from Drop Down","Select from Drop Down",null,null,null,null,null,null,null,null,null,null,null,null,"Select from Drop Down","Select from Drop Down","Select from Drop Down"]
[879,null,null,"Select from Drop Down","Select from Drop Down","Select from Drop Down",null,null,null,null,null,null,null,null,null,null,null,null,"Select from Drop Down","Select from Drop Down","Select from Drop Down"]
[880,null,null,"Select from Drop Down","Select from Drop Down","Select from Drop Down",null,null,null,null,null,null,null,null,null,null,null,null,"Select from Drop Down","Select from Drop Down","Select from Drop Down"]
[881,null,null,"Select from Drop Down","Select from Drop Down","Select from Drop Down",null,null,null,null,null,null,null,null,null,null,null,null,"Select from Drop Down","Select from Drop Down","Select from Drop Down"]
[882,null,null,"Select from Drop Down","Select from Drop Down","Select from Drop Down",null,null,null,null,null,null,null,null,null,null,null,null,"Select from Drop Down","Select from Drop Down","Select from Drop Down"]
[883,null,null,"Select from Drop Down","Select from Drop Down","Select from Drop Down",null,null,null,null,null,null,null,null,null,null,null,null,"Select from Drop Down","Select from Drop Down","Select from Drop Down"]
[884,null,null,"Select from Drop Down","Select from Drop Down","Select from Drop Down",null,null,null,null,null,null,null,null,null,null,null,null,"Select from Drop Down","Select from Drop Down","Select from Drop Down"]
[885,null,null,"Select from Drop Down","Select from Drop Down","Select from Drop Down",null,null,null,null,null,null,null,null,null,null,null,null,"Select from Drop Down","Select from Drop Down","Select from Drop Down"]
[886,null,null,"Select from Drop Down","Select from Drop Down","Select from Drop Down",null,null,null,null,null,null,null,null,null,null,null,null,"Select from Drop Down","Select from Drop Down","Select from Drop Down"]
[887,null,null,"Select from Drop Down","Select from Drop Down","Select from Drop Down",null,null,null,null,null,null,null,null,null,null,null,null,"Select from Drop Down","Select from Drop Down","Select from Drop Down"]
[888,null,null,"Select from Drop Down","Select from Drop Down","Select from Drop Down",null,null,null,null,null,null,null,null,null,null,null,null,"Select from Drop Down","Select from Drop Down","Select from Drop Down"]
[889,null,null,"Select from Drop Down","Select from Drop Down","Select from Drop Down",null,null,null,null,null,null,null,null,null,null,null,null,"Select from Drop Down","Select from Drop Down","Select from Drop Down"]
[890,null,null,"Select from Drop Down","Select from Drop Down","Select from Drop Down",null,null,null,null,null,null,null,null,null,null,null,null,"Select from Drop Down","Select from Drop Down","Select from Drop Down"]
[891,null,null,"Select from Drop Down","Select from Drop Down","Select from Drop Down",null,null,null,null,null,null,null,null,null,null,null,null,"Select from Drop Down","Select from Drop Down","Select from Drop Down"]
[892,null,null,"Select from Drop Down","Select from Drop Down","Select from Drop Down",null,null,null,null,null,null,null,null,null,null,null,null,"Select from Drop Down","Select from Drop Down","Select from Drop Down"]
[893,null,null,"Select from Drop Down","Select from Drop Down","Select from Drop Down",null,null,null,null,null,null,null,null,null,null,null,null,"Select from Drop Down","Select from Drop Down","Select from Drop Down"]
[894,null,null,"Select from Drop Down","Select from Drop Down","Select from Drop Down",null,null,null,null,null,null,null,null,null,null,null,null,"Select from Drop Down","Select from Drop Down","Select from Drop Down"]
[895,null,null,"Select from Drop Down","Select from Drop Down","Select from Drop Down",null,null,null,null,null,null,null,null,null,null,null,null,"Select from Drop Down","Select from Drop Down","Select from Drop Down"]
[896,null,null,"Select from Drop Down","Select from Drop Down","Select from Drop Down",null,null,null,null,null,null,null,null,null,null,null,null,"Select from Drop Down","Select from Drop Down","Select from Drop Down"]
[897,null,null,"Select from Drop Down","Select from Drop Down","Select from Drop Down",null,null,null,null,null,null,null,null,null,null,null,null,"Select from Drop Down","Select from Drop Down","Select from Drop Down"]
[898,null,null,"Select from Drop Down","Select from Drop Down","Select from Drop Down",null,null,null,null,null,null,null,null,null,null,null,null,"Select from Drop Down","Select from Drop Down","Select from Drop Down"]
[{"$f":"A908+1","v":899},null,null,"Select from Drop Down","Select from Drop Down","Select from Drop Down",null,null,null,null,null,null,null,null,null,null,null,null,"Select from Drop Down","Select from Drop Down","Select from Drop Down"]
[900,null,null,"Select from Drop Down","Select from Drop Down","Select from Drop Down",null,null,null,null,null,null,null,null,null,null,null,null,"Select from Drop Down","Select from Drop Down","Select from Drop Down"]
[901,null,null,"Select from Drop Down","Select from Drop Down","Select from Drop Down",null,null,null,null,null,null,null,null,null,null,null,null,"Select from Drop Down","Select from Drop Down","Select from Drop Down"]
[902,null,null,"Select from Drop Down","Select from Drop Down","Select from Drop Down",null,null,null,null,null,null,null,null,null,null,null,null,"Select from Drop Down","Select from Drop Down","Select from Drop Down"]
[903,null,null,"Select from Drop Down","Select from Drop Down","Select from Drop Down",null,null,null,null,null,null,null,null,null,null,null,null,"Select from Drop Down","Select from Drop Down","Select from Drop Down"]
[904,null,null,"Select from Drop Down","Select from Drop Down","Select from Drop Down",null,null,null,null,null,null,null,null,null,null,null,null,"Select from Drop Down","Select from Drop Down","Select from Drop Down"]
[905,null,null,"Select from Drop Down","Select from Drop Down","Select from Drop Down",null,null,null,null,null,null,null,null,null,null,null,null,"Select from Drop Down","Select from Drop Down","Select from Drop Down"]
[906,null,null,"Select from Drop Down","Select from Drop Down","Select from Drop Down",null,null,null,null,null,null,null,null,null,null,null,null,"Select from Drop Down","Select from Drop Down","Select from Drop Down"]
[907,null,null,"Select from Drop Down","Select from Drop Down","Select from Drop Down",null,null,null,null,null,null,null,null,null,null,null,null,"Select from Drop Down","Select from Drop Down","Select from Drop Down"]
[908,null,null,"Select from Drop Down","Select from Drop Down","Select from Drop Down",null,null,null,null,null,null,null,null,null,null,null,null,"Select from Drop Down","Select from Drop Down","Select from Drop Down"]
[909,null,null,"Select from Drop Down","Select from Drop Down","Select from Drop Down",null,null,null,null,null,null,null,null,null,null,null,null,"Select from Drop Down","Select from Drop Down","Select from Drop Down"]
[910,null,null,"Select from Drop Down","Select from Drop Down","Select from Drop Down",null,null,null,null,null,null,null,null,null,null,null,null,"Select from Drop Down","Select from Drop Down","Select from Drop Down"]
[911,null,null,"Select from Drop Down","Select from Drop Down","Select from Drop Down",null,null,null,null,null,null,null,null,null,null,null,null,"Select from Drop Down","Select from Drop Down","Select from Drop Down"]
[912,null,null,"Select from Drop Down","Select from Drop Down","Select from Drop Down",null,null,null,null,null,null,null,null,null,null,null,null,"Select from Drop Down","Select from Drop Down","Select from Drop Down"]
[913,null,null,"Select from Drop Down","Select from Drop Down","Select from Drop Down",null,null,null,null,null,null,null,null,null,null,null,null,"Select from Drop Down","Select from Drop Down","Select from Drop Down"]
[914,null,null,"Select from Drop Down","Select from Drop Down","Select from Drop Down",null,null,null,null,null,null,null,null,null,null,null,null,"Select from Drop Down","Select from Drop Down","Select from Drop Down"]
[915,null,null,"Select from Drop Down","Select from Drop Down","Select from Drop Down",null,null,null,null,null,null,null,null,null,null,null,null,"Select from Drop Down","Select from Drop Down","Select from Drop Down"]
[916,null,null,"Select from Drop Down","Select from Drop Down","Select from Drop Down",null,null,null,null,null,null,null,null,null,null,null,null,"Select from Drop Down","Select from Drop Down","Select from Drop Down"]
[917,null,null,"Select from Drop Down","Select from Drop Down","Select from Drop Down",null,null,null,null,null,null,null,null,null,null,null,null,"Select from Drop Down","Select from Drop Down","Select from Drop Down"]
[918,null,null,"Select from Drop Down","Select from Drop Down","Select from Drop Down",null,null,null,null,null,null,null,null,null,null,null,null,"Select from Drop Down","Select from Drop Down","Select from Drop Down"]
[919,null,null,"Select from Drop Down","Select from Drop Down","Select from Drop Down",null,null,null,null,null,null,null,null,null,null,null,null,"Select from Drop Down","Select from Drop Down","Select from Drop Down"]
[920,null,null,"Select from Drop Down","Select from Drop Down","Select from Drop Down",null,null,null,null,null,null,null,null,null,null,null,null,"Select from Drop Down","Select from Drop Down","Select from Drop Down"]
[921,null,null,"Select from Drop Down","Select from Drop Down","Select from Drop Down",null,null,null,null,null,null,null,null,null,null,null,null,"Select from Drop Down","Select from Drop Down","Select from Drop Down"]
[922,null,null,"Select from Drop Down","Select from Drop Down","Select from Drop Down",null,null,null,null,null,null,null,null,null,null,null,null,"Select from Drop Down","Select from Drop Down","Select from Drop Down"]
[923,null,null,"Select from Drop Down","Select from Drop Down","Select from Drop Down",null,null,null,null,null,null,null,null,null,null,null,null,"Select from Drop Down","Select from Drop Down","Select from Drop Down"]
[924,null,null,"Select from Drop Down","Select from Drop Down","Select from Drop Down",null,null,null,null,null,null,null,null,null,null,null,null,"Select from Drop Down","Select from Drop Down","Select from Drop Down"]
[925,null,null,"Select from Drop Down","Select from Drop Down","Select from Drop Down",null,null,null,null,null,null,null,null,null,null,null,null,"Select from Drop Down","Select from Drop Down","Select from Drop Down"]
[926,null,null,"Select from Drop Down","Select from Drop Down","Select from Drop Down",null,null,null,null,null,null,null,null,null,null,null,null,"Select from Drop Down","Select from Drop Down","Select from Drop Down"]
[927,null,null,"Select from Drop Down","Select from Drop Down","Select from Drop Down",null,null,null,null,null,null,null,null,null,null,null,null,"Select from Drop Down","Select from Drop Down","Select from Drop Down"]
[928,null,null,"Select from Drop Down","Select from Drop Down","Select from Drop Down",null,null,null,null,null,null,null,null,null,null,null,null,"Select from Drop Down","Select from Drop Down","Select from Drop Down"]
[929,null,null,"Select from Drop Down","Select from Drop Down","Select from Drop Down",null,null,null,null,null,null,null,null,null,null,null,null,"Select from Drop Down","Select from Drop Down","Select from Drop Down"]
[930,null,null,"Select from Drop Down","Select from Drop Down","Select from Drop Down",null,null,null,null,null,null,null,null,null,null,null,null,"Select from Drop Down","Select from Drop Down","Select from Drop Down"]
[931,null,null,"Select from Drop Down","Select from Drop Down","Select from Drop Down",null,null,null,null,null,null,null,null,null,null,null,null,"Select from Drop Down","Select from Drop Down","Select from Drop Down"]
[932,null,null,"Select from Drop Down","Select from Drop Down","Select from Drop Down",null,null,null,null,null,null,null,null,null,null,null,null,"Select from Drop Down","Select from Drop Down","Select from Drop Down"]
[933,null,null,"Select from Drop Down","Select from Drop Down","Select from Drop Down",null,null,null,null,null,null,null,null,null,null,null,null,"Select from Drop Down","Select from Drop Down","Select from Drop Down"]
[934,null,null,"Select from Drop Down","Select from Drop Down","Select from Drop Down",null,null,null,null,null,null,null,null,null,null,null,null,"Select from Drop Down","Select from Drop Down","Select from Drop Down"]
[935,null,null,"Select from Drop Down","Select from Drop Down","Select from Drop Down",null,null,null,null,null,null,null,null,null,null,null,null,"Select from Drop Down","Select from Drop Down","Select from Drop Down"]
[936,null,null,"Select from Drop Down","Select from Drop Down","Select from Drop Down",null,null,null,null,null,null,null,null,null,null,null,null,"Select from Drop Down","Select from Drop Down","Select from Drop Down"]
[937,null,null,"Select from Drop Down","Select from Drop Down","Select from Drop Down",null,null,null,null,null,null,null,null,null,null,null,null,"Select from Drop Down","Select from Drop Down","Select from Drop Down"]
[938,null,null,"Select from Drop Down","Select from Drop Down","Select from Drop Down",null,null,null,null,null,null,null,null,null,null,null,null,"Select from Drop Down","Select from Drop Down","Select from Drop Down"]
[939,null,null,"Select from Drop Down","Select from Drop Down","Select from Drop Down",null,null,null,null,null,null,null,null,null,null,null,null,"Select from Drop Down","Select from Drop Down","Select from Drop Down"]
[940,null,null,"Select from Drop Down","Select from Drop Down","Select from Drop Down",null,null,null,null,null,null,null,null,null,null,null,null,"Select from Drop Down","Select from Drop Down","Select from Drop Down"]
[941,null,null,"Select from Drop Down","Select from Drop Down","Select from Drop Down",null,null,null,null,null,null,null,null,null,null,null,null,"Select from Drop Down","Select from Drop Down","Select from Drop Down"]
[942,null,null,"Select from Drop Down","Select from Drop Down","Select from Drop Down",null,null,null,null,null,null,null,null,null,null,null,null,"Select from Drop Down","Select from Drop Down","Select from Drop Down"]
[943,null,null,"Select from Drop Down","Select from Drop Down","Select from Drop Down",null,null,null,null,null,null,null,null,null,null,null,null,"Select from Drop Down","Select from Drop Down","Select from Drop Down"]
[944,null,null,"Select from Drop Down","Select from Drop Down","Select from Drop Down",null,null,null,null,null,null,null,null,null,null,null,null,"Select from Drop Down","Select from Drop Down","Select from Drop Down"]
[945,null,null,"Select from Drop Down","Select from Drop Down","Select from Drop Down",null,null,null,null,null,null,null,null,null,null,null,null,"Select from Drop Down","Select from Drop Down","Select from Drop Down"]
[946,null,null,"Select from Drop Down","Select from Drop Down","Select from Drop Down",null,null,null,null,null,null,null,null,null,null,null,null,"Select from Drop Down","Select from Drop Down","Select from Drop Down"]
[947,null,null,"Select from Drop Down","Select from Drop Down","Select from Drop Down",null,null,null,null,null,null,null,null,null,null,null,null,"Select from Drop Down","Select from Drop Down","Select from Drop Down"]
[948,null,null,"Select from Drop Down","Select from Drop Down","Select from Drop Down",null,null,null,null,null,null,null,null,null,null,null,null,"Select from Drop Down","Select from Drop Down","Select from Drop Down"]
[949,null,null,"Select from Drop Down","Select from Drop Down","Select from Drop Down",null,null,null,null,null,null,null,null,null,null,null,null,"Select from Drop Down","Select from Drop Down","Select from Drop Down"]
[950,null,null,"Select from Drop Down","Select from Drop Down","Select from Drop Down",null,null,null,null,null,null,null,null,null,null,null,null,"Select from Drop Down","Select from Drop Down","Select from Drop Down"]
[951,null,null,"Select from Drop Down","Select from Drop Down","Select from Drop Down",null,null,null,null,null,null,null,null,null,null,null,null,"Select from Drop Down","Select from Drop Down","Select from Drop Down"]
[952,null,null,"Select from Drop Down","Select from Drop Down","Select from Drop Down",null,null,null,null,null,null,null,null,null,null,null,null,"Select from Drop Down","Select from Drop Down","Select from Drop Down"]
[953,null,null,"Select from Drop Down","Select from Drop Down","Select from Drop Down",null,null,null,null,null,null,null,null,null,null,null,null,"Select from Drop Down","Select from Drop Down","Select from Drop Down"]
[954,null,null,"Select from Drop Down","Select from Drop Down","Select from Drop Down",null,null,null,null,null,null,null,null,null,null,null,null,"Select from Drop Down","Select from Drop Down","Select from Drop Down"]
[955,null,null,"Select from Drop Down","Select from Drop Down","Select from Drop Down",null,null,null,null,null,null,null,null,null,null,null,null,"Select from Drop Down","Select from Drop Down","Select from Drop Down"]
[956,null,null,"Select from Drop Down","Select from Drop Down","Select from Drop Down",null,null,null,null,null,null,null,null,null,null,null,null,"Select from Drop Down","Select from Drop Down","Select from Drop Down"]
[957,null,null,"Select from Drop Down","Select from Drop Down","Select from Drop Down",null,null,null,null,null,null,null,null,null,null,null,null,"Select from Drop Down","Select from Drop Down","Select from Drop Down"]
[958,null,null,"Select from Drop Down","Select from Drop Down","Select from Drop Down",null,null,null,null,null,null,null,null,null,null,null,null,"Select from Drop Down","Select from Drop Down","Select from Drop Down"]
[959,null,null,"Select from Drop Down","Select from Drop Down","Select from Drop Down",null,null,null,null,null,null,null,null,null,null,null,null,"Select from Drop Down","Select from Drop Down","Select from Drop Down"]
[960,null,null,"Select from Drop Down","Select from Drop Down","Select from Drop Down",null,null,null,null,null,null,null,null,null,null,null,null,"Select from Drop Down","Select from Drop Down","Select from Drop Down"]
[961,null,null,"Select from Drop Down","Select from Drop Down","Select from Drop Down",null,null,null,null,null,null,null,null,null,null,null,null,"Select from Drop Down","Select from Drop Down","Select from Drop Down"]
[962,null,null,"Select from Drop Down","Select from Drop Down","Select from Drop Down",null,null,null,null,null,null,null,null,null,null,null,null,"Select from Drop Down","Select from Drop Down","Select from Drop Down"]
[{"$f":"A972+1","v":963},null,null,"Select from Drop Down","Select from Drop Down","Select from Drop Down",null,null,null,null,null,null,null,null,null,null,null,null,"Select from Drop Down","Select from Drop Down","Select from Drop Down"]
[964,null,null,"Select from Drop Down","Select from Drop Down","Select from Drop Down",null,null,null,null,null,null,null,null,null,null,null,null,"Select from Drop Down","Select from Drop Down","Select from Drop Down"]
[965,null,null,"Select from Drop Down","Select from Drop Down","Select from Drop Down",null,null,null,null,null,null,null,null,null,null,null,null,"Select from Drop Down","Select from Drop Down","Select from Drop Down"]
[966,null,null,"Select from Drop Down","Select from Drop Down","Select from Drop Down",null,null,null,null,null,null,null,null,null,null,null,null,"Select from Drop Down","Select from Drop Down","Select from Drop Down"]
[967,null,null,"Select from Drop Down","Select from Drop Down","Select from Drop Down",null,null,null,null,null,null,null,null,null,null,null,null,"Select from Drop Down","Select from Drop Down","Select from Drop Down"]
[968,null,null,"Select from Drop Down","Select from Drop Down","Select from Drop Down",null,null,null,null,null,null,null,null,null,null,null,null,"Select from Drop Down","Select from Drop Down","Select from Drop Down"]
[969,null,null,"Select from Drop Down","Select from Drop Down","Select from Drop Down",null,null,null,null,null,null,null,null,null,null,null,null,"Select from Drop Down","Select from Drop Down","Select from Drop Down"]
[970,null,null,"Select from Drop Down","Select from Drop Down","Select from Drop Down",null,null,null,null,null,null,null,null,null,null,null,null,"Select from Drop Down","Select from Drop Down","Select from Drop Down"]
[971,null,null,"Select from Drop Down","Select from Drop Down","Select from Drop Down",null,null,null,null,null,null,null,null,null,null,null,null,"Select from Drop Down","Select from Drop Down","Select from Drop Down"]
[972,null,null,"Select from Drop Down","Select from Drop Down","Select from Drop Down",null,null,null,null,null,null,null,null,null,null,null,null,"Select from Drop Down","Select from Drop Down","Select from Drop Down"]
[973,null,null,"Select from Drop Down","Select from Drop Down","Select from Drop Down",null,null,null,null,null,null,null,null,null,null,null,null,"Select from Drop Down","Select from Drop Down","Select from Drop Down"]
[974,null,null,"Select from Drop Down","Select from Drop Down","Select from Drop Down",null,null,null,null,null,null,null,null,null,null,null,null,"Select from Drop Down","Select from Drop Down","Select from Drop Down"]
[975,null,null,"Select from Drop Down","Select from Drop Down","Select from Drop Down",null,null,null,null,null,null,null,null,null,null,null,null,"Select from Drop Down","Select from Drop Down","Select from Drop Down"]
[976,null,null,"Select from Drop Down","Select from Drop Down","Select from Drop Down",null,null,null,null,null,null,null,null,null,null,null,null,"Select from Drop Down","Select from Drop Down","Select from Drop Down"]
[977,null,null,"Select from Drop Down","Select from Drop Down","Select from Drop Down",null,null,null,null,null,null,null,null,null,null,null,null,"Select from Drop Down","Select from Drop Down","Select from Drop Down"]
[978,null,null,"Select from Drop Down","Select from Drop Down","Select from Drop Down",null,null,null,null,null,null,null,null,null,null,null,null,"Select from Drop Down","Select from Drop Down","Select from Drop Down"]
[979,null,null,"Select from Drop Down","Select from Drop Down","Select from Drop Down",null,null,null,null,null,null,null,null,null,null,null,null,"Select from Drop Down","Select from Drop Down","Select from Drop Down"]
[980,null,null,"Select from Drop Down","Select from Drop Down","Select from Drop Down",null,null,null,null,null,null,null,null,null,null,null,null,"Select from Drop Down","Select from Drop Down","Select from Drop Down"]
[981,null,null,"Select from Drop Down","Select from Drop Down","Select from Drop Down",null,null,null,null,null,null,null,null,null,null,null,null,"Select from Drop Down","Select from Drop Down","Select from Drop Down"]
[982,null,null,"Select from Drop Down","Select from Drop Down","Select from Drop Down",null,null,null,null,null,null,null,null,null,null,null,null,"Select from Drop Down","Select from Drop Down","Select from Drop Down"]
[983,null,null,"Select from Drop Down","Select from Drop Down","Select from Drop Down",null,null,null,null,null,null,null,null,null,null,null,null,"Select from Drop Down","Select from Drop Down","Select from Drop Down"]
[984,null,null,"Select from Drop Down","Select from Drop Down","Select from Drop Down",null,null,null,null,null,null,null,null,null,null,null,null,"Select from Drop Down","Select from Drop Down","Select from Drop Down"]
[985,null,null,"Select from Drop Down","Select from Drop Down","Select from Drop Down",null,null,null,null,null,null,null,null,null,null,null,null,"Select from Drop Down","Select from Drop Down","Select from Drop Down"]
[986,null,null,"Select from Drop Down","Select from Drop Down","Select from Drop Down",null,null,null,null,null,null,null,null,null,null,null,null,"Select from Drop Down","Select from Drop Down","Select from Drop Down"]
[987,null,null,"Select from Drop Down","Select from Drop Down","Select from Drop Down",null,null,null,null,null,null,null,null,null,null,null,null,"Select from Drop Down","Select from Drop Down","Select from Drop Down"]
[988,null,null,"Select from Drop Down","Select from Drop Down","Select from Drop Down",null,null,null,null,null,null,null,null,null,null,null,null,"Select from Drop Down","Select from Drop Down","Select from Drop Down"]
[989,null,null,"Select from Drop Down","Select from Drop Down","Select from Drop Down",null,null,null,null,null,null,null,null,null,null,null,null,"Select from Drop Down","Select from Drop Down","Select from Drop Down"]
[990,null,null,"Select from Drop Down","Select from Drop Down","Select from Drop Down",null,null,null,null,null,null,null,null,null,null,null,null,"Select from Drop Down","Select from Drop Down","Select from Drop Down"]
[991,null,null,"Select from Drop Down","Select from Drop Down","Select from Drop Down",null,null,null,null,null,null,null,null,null,null,null,null,"Select from Drop Down","Select from Drop Down","Select from Drop Down"]
[992,null,null,"Select from Drop Down","Select from Drop Down","Select from Drop Down",null,null,null,null,null,null,null,null,null,null,null,null,"Select from Drop Down","Select from Drop Down","Select from Drop Down"]
[993,null,null,"Select from Drop Down","Select from Drop Down","Select from Drop Down",null,null,null,null,null,null,null,null,null,null,null,null,"Select from Drop Down","Select from Drop Down","Select from Drop Down"]
[994,null,null,"Select from Drop Down","Select from Drop Down","Select from Drop Down",null,null,null,null,null,null,null,null,null,null,null,null,"Select from Drop Down","Select from Drop Down","Select from Drop Down"]
[995,null,null,"Select from Drop Down","Select from Drop Down","Select from Drop Down",null,null,null,null,null,null,null,null,null,null,null,null,"Select from Drop Down","Select from Drop Down","Select from Drop Down"]
[996,null,null,"Select from Drop Down","Select from Drop Down","Select from Drop Down",null,null,null,null,null,null,null,null,null,null,null,null,"Select from Drop Down","Select from Drop Down","Select from Drop Down"]
[997,null,null,"Select from Drop Down","Select from Drop Down","Select from Drop Down",null,null,null,null,null,null,null,null,null,null,null,null,"Select from Drop Down","Select from Drop Down","Select from Drop Down"]
[998,null,null,"Select from Drop Down","Select from Drop Down","Select from Drop Down",null,null,null,null,null,null,null,null,null,null,null,null,"Select from Drop Down","Select from Drop Down","Select from Drop Down"]
[999,null,null,"Select from Drop Down","Select from Drop Down","Select from Drop Down",null,null,null,null,null,null,null,null,null,null,null,null,"Select from Drop Down","Select from Drop Down","Select from Drop Down"]
[1000,null,null,"Select from Drop Down","Select from Drop Down","Select from Drop Down",null,null,null,null,null,null,null,null,null,null,null,null,"Select from Drop Down","Select from Drop Down","Select from Drop Down"]
[1001,null,null,"Select from Drop Down","Select from Drop Down","Select from Drop Down",null,null,null,null,null,null,null,null,null,null,null,null,"Select from Drop Down","Select from Drop Down","Select from Drop Down"]
[1002,null,null,"Select from Drop Down","Select from Drop Down","Select from Drop Down",null,null,null,null,null,null,null,null,null,null,null,null,"Select from Drop Down","Select from Drop Down","Select from Drop Down"]
[1003,null,null,"Select from Drop Down","Select from Drop Down","Select from Drop Down",null,null,null,null,null,null,null,null,null,null,null,null,"Select from Drop Down","Select from Drop Down","Select from Drop Down"]
[1004,null,null,"Select from Drop Down","Select from Drop Down","Select from Drop Down",null,null,null,null,null,null,null,null,null,null,null,null,"Select from Drop Down","Select from Drop Down","Select from Drop Down"]
[1005,null,null,"Select from Drop Down","Select from Drop Down","Select from Drop Down",null,null,null,null,null,null,null,null,null,null,null,null,"Select from Drop Down","Select from Drop Down","Select from Drop Down"]
[1006,null,null,"Select from Drop Down","Select from Drop Down","Select from Drop Down",null,null,null,null,null,null,null,null,null,null,null,null,"Select from Drop Down","Select from Drop Down","Select from Drop Down"]
[1007,null,null,"Select from Drop Down","Select from Drop Down","Select from Drop Down",null,null,null,null,null,null,null,null,null,null,null,null,"Select from Drop Down","Select from Drop Down","Select from Drop Down"]
[1008,null,null,"Select from Drop Down","Select from Drop Down","Select from Drop Down",null,null,null,null,null,null,null,null,null,null,null,null,"Select from Drop Down","Select from Drop Down","Select from Drop Down"]
[1009,null,null,"Select from Drop Down","Select from Drop Down","Select from Drop Down",null,null,null,null,null,null,null,null,null,null,null,null,"Select from Drop Down","Select from Drop Down","Select from Drop Down"]
[1010,null,null,"Select from Drop Down","Select from Drop Down","Select from Drop Down",null,null,null,null,null,null,null,null,null,null,null,null,"Select from Drop Down","Select from Drop Down","Select from Drop Down"]
[1011,null,null,"Select from Drop Down","Select from Drop Down","Select from Drop Down",null,null,null,null,null,null,null,null,null,null,null,null,"Select from Drop Down","Select from Drop Down","Select from Drop Down"]
[1012,null,null,"Select from Drop Down","Select from Drop Down","Select from Drop Down",null,null,null,null,null,null,null,null,null,null,null,null,"Select from Drop Down","Select from Drop Down","Select from Drop Down"]
[1013,null,null,"Select from Drop Down","Select from Drop Down","Select from Drop Down",null,null,null,null,null,null,null,null,null,null,null,null,"Select from Drop Down","Select from Drop Down","Select from Drop Down"]
[1014,null,null,"Select from Drop Down","Select from Drop Down","Select from Drop Down",null,null,null,null,null,null,null,null,null,null,null,null,"Select from Drop Down","Select from Drop Down","Select from Drop Down"]
[1015,null,null,"Select from Drop Down","Select from Drop Down","Select from Drop Down",null,null,null,null,null,null,null,null,null,null,null,null,"Select from Drop Down","Select from Drop Down","Select from Drop Down"]
[1016,null,null,"Select from Drop Down","Select from Drop Down","Select from Drop Down",null,null,null,null,null,null,null,null,null,null,null,null,"Select from Drop Down","Select from Drop Down","Select from Drop Down"]
[1017,null,null,"Select from Drop Down","Select from Drop Down","Select from Drop Down",null,null,null,null,null,null,null,null,null,null,null,null,"Select from Drop Down","Select from Drop Down","Select from Drop Down"]
[1018,null,null,"Select from Drop Down","Select from Drop Down","Select from Drop Down",null,null,null,null,null,null,null,null,null,null,null,null,"Select from Drop Down","Select from Drop Down","Select from Drop Down"]
[1019,null,null,"Select from Drop Down","Select from Drop Down","Select from Drop Down",null,null,null,null,null,null,null,null,null,null,null,null,"Select from Drop Down","Select from Drop Down","Select from Drop Down"]
[1020,null,null,"Select from Drop Down","Select from Drop Down","Select from Drop Down",null,null,null,null,null,null,null,null,null,null,null,null,"Select from Drop Down","Select from Drop Down","Select from Drop Down"]
[1021,null,null,"Select from Drop Down","Select from Drop Down","Select from Drop Down",null,null,null,null,null,null,null,null,null,null,null,null,"Select from Drop Down","Select from Drop Down","Select from Drop Down"]
[1022,null,null,"Select from Drop Down","Select from Drop Down","Select from Drop Down",null,null,null,null,null,null,null,null,null,null,null,null,"Select from Drop Down","Select from Drop Down","Select from Drop Down"]
[1023,null,null,"Select from Drop Down","Select from Drop Down","Select from Drop Down",null,null,null,null,null,null,null,null,null,null,null,null,"Select from Drop Down","Select from Drop Down","Select from Drop Down"]
[1024,null,null,"Select from Drop Down","Select from Drop Down","Select from Drop Down",null,null,null,null,null,null,null,null,null,null,null,null,"Select from Drop Down","Select from Drop Down","Select from Drop Down"]
[1025,null,null,"Select from Drop Down","Select from Drop Down","Select from Drop Down",null,null,null,null,null,null,null,null,null,null,null,null,"Select from Drop Down","Select from Drop Down","Select from Drop Down"]
[1026,null,null,"Select from Drop Down","Select from Drop Down","Select from Drop Down",null,null,null,null,null,null,null,null,null,null,null,null,"Select from Drop Down","Select from Drop Down","Select from Drop Down"]
[{"$f":"A1036+1","v":1027},null,null,"Select from Drop Down","Select from Drop Down","Select from Drop Down",null,null,null,null,null,null,null,null,null,null,null,null,"Select from Drop Down","Select from Drop Down","Select from Drop Down"]
[1028,null,null,"Select from Drop Down","Select from Drop Down","Select from Drop Down",null,null,null,null,null,null,null,null,null,null,null,null,"Select from Drop Down","Select from Drop Down","Select from Drop Down"]
[1029,null,null,"Select from Drop Down","Select from Drop Down","Select from Drop Down",null,null,null,null,null,null,null,null,null,null,null,null,"Select from Drop Down","Select from Drop Down","Select from Drop Down"]
[1030,null,null,"Select from Drop Down","Select from Drop Down","Select from Drop Down",null,null,null,null,null,null,null,null,null,null,null,null,"Select from Drop Down","Select from Drop Down","Select from Drop Down"]
[1031,null,null,"Select from Drop Down","Select from Drop Down","Select from Drop Down",null,null,null,null,null,null,null,null,null,null,null,null,"Select from Drop Down","Select from Drop Down","Select from Drop Down"]
[1032,null,null,"Select from Drop Down","Select from Drop Down","Select from Drop Down",null,null,null,null,null,null,null,null,null,null,null,null,"Select from Drop Down","Select from Drop Down","Select from Drop Down"]
[1033,null,null,"Select from Drop Down","Select from Drop Down","Select from Drop Down",null,null,null,null,null,null,null,null,null,null,null,null,"Select from Drop Down","Select from Drop Down","Select from Drop Down"]
[1034,null,null,"Select from Drop Down","Select from Drop Down","Select from Drop Down",null,null,null,null,null,null,null,null,null,null,null,null,"Select from Drop Down","Select from Drop Down","Select from Drop Down"]
[1035,null,null,"Select from Drop Down","Select from Drop Down","Select from Drop Down",null,null,null,null,null,null,null,null,null,null,null,null,"Select from Drop Down","Select from Drop Down","Select from Drop Down"]
[1036,null,null,"Select from Drop Down","Select from Drop Down","Select from Drop Down",null,null,null,null,null,null,null,null,null,null,null,null,"Select from Drop Down","Select from Drop Down","Select from Drop Down"]
[1037,null,null,"Select from Drop Down","Select from Drop Down","Select from Drop Down",null,null,null,null,null,null,null,null,null,null,null,null,"Select from Drop Down","Select from Drop Down","Select from Drop Down"]
[1038,null,null,"Select from Drop Down","Select from Drop Down","Select from Drop Down",null,null,null,null,null,null,null,null,null,null,null,null,"Select from Drop Down","Select from Drop Down","Select from Drop Down"]
[1039,null,null,"Select from Drop Down","Select from Drop Down","Select from Drop Down",null,null,null,null,null,null,null,null,null,null,null,null,"Select from Drop Down","Select from Drop Down","Select from Drop Down"]
[1040,null,null,"Select from Drop Down","Select from Drop Down","Select from Drop Down",null,null,null,null,null,null,null,null,null,null,null,null,"Select from Drop Down","Select from Drop Down","Select from Drop Down"]
[1041,null,null,"Select from Drop Down","Select from Drop Down","Select from Drop Down",null,null,null,null,null,null,null,null,null,null,null,null,"Select from Drop Down","Select from Drop Down","Select from Drop Down"]
[1042,null,null,"Select from Drop Down","Select from Drop Down","Select from Drop Down",null,null,null,null,null,null,null,null,null,null,null,null,"Select from Drop Down","Select from Drop Down","Select from Drop Down"]
[1043,null,null,"Select from Drop Down","Select from Drop Down","Select from Drop Down",null,null,null,null,null,null,null,null,null,null,null,null,"Select from Drop Down","Select from Drop Down","Select from Drop Down"]
[1044,null,null,"Select from Drop Down","Select from Drop Down","Select from Drop Down",null,null,null,null,null,null,null,null,null,null,null,null,"Select from Drop Down","Select from Drop Down","Select from Drop Down"]
[1045,null,null,"Select from Drop Down","Select from Drop Down","Select from Drop Down",null,null,null,null,null,null,null,null,null,null,null,null,"Select from Drop Down","Select from Drop Down","Select from Drop Down"]
[1046,null,null,"Select from Drop Down","Select from Drop Down","Select from Drop Down",null,null,null,null,null,null,null,null,null,null,null,null,"Select from Drop Down","Select from Drop Down","Select from Drop Down"]
[1047,null,null,"Select from Drop Down","Select from Drop Down","Select from Drop Down",null,null,null,null,null,null,null,null,null,null,null,null,"Select from Drop Down","Select from Drop Down","Select from Drop Down"]
[1048,null,null,"Select from Drop Down","Select from Drop Down","Select from Drop Down",null,null,null,null,null,null,null,null,null,null,null,null,"Select from Drop Down","Select from Drop Down","Select from Drop Down"]
[1049,null,null,"Select from Drop Down","Select from Drop Down","Select from Drop Down",null,null,null,null,null,null,null,null,null,null,null,null,"Select from Drop Down","Select from Drop Down","Select from Drop Down"]
[1050,null,null,"Select from Drop Down","Select from Drop Down","Select from Drop Down",null,null,null,null,null,null,null,null,null,null,null,null,"Select from Drop Down","Select from Drop Down","Select from Drop Down"]
[1051,null,null,"Select from Drop Down","Select from Drop Down","Select from Drop Down",null,null,null,null,null,null,null,null,null,null,null,null,"Select from Drop Down","Select from Drop Down","Select from Drop Down"]
[1052,null,null,"Select from Drop Down","Select from Drop Down","Select from Drop Down",null,null,null,null,null,null,null,null,null,null,null,null,"Select from Drop Down","Select from Drop Down","Select from Drop Down"]
[1053,null,null,"Select from Drop Down","Select from Drop Down","Select from Drop Down",null,null,null,null,null,null,null,null,null,null,null,null,"Select from Drop Down","Select from Drop Down","Select from Drop Down"]
[1054,null,null,"Select from Drop Down","Select from Drop Down","Select from Drop Down",null,null,null,null,null,null,null,null,null,null,null,null,"Select from Drop Down","Select from Drop Down","Select from Drop Down"]
[1055,null,null,"Select from Drop Down","Select from Drop Down","Select from Drop Down",null,null,null,null,null,null,null,null,null,null,null,null,"Select from Drop Down","Select from Drop Down","Select from Drop Down"]
[1056,null,null,"Select from Drop Down","Select from Drop Down","Select from Drop Down",null,null,null,null,null,null,null,null,null,null,null,null,"Select from Drop Down","Select from Drop Down","Select from Drop Down"]
[1057,null,null,"Select from Drop Down","Select from Drop Down","Select from Drop Down",null,null,null,null,null,null,null,null,null,null,null,null,"Select from Drop Down","Select from Drop Down","Select from Drop Down"]
[1058,null,null,"Select from Drop Down","Select from Drop Down","Select from Drop Down",null,null,null,null,null,null,null,null,null,null,null,null,"Select from Drop Down","Select from Drop Down","Select from Drop Down"]
[1059,null,null,"Select from Drop Down","Select from Drop Down","Select from Drop Down",null,null,null,null,null,null,null,null,null,null,null,null,"Select from Drop Down","Select from Drop Down","Select from Drop Down"]
[1060,null,null,"Select from Drop Down","Select from Drop Down","Select from Drop Down",null,null,null,null,null,null,null,null,null,null,null,null,"Select from Drop Down","Select from Drop Down","Select from Drop Down"]
[1061,null,null,"Select from Drop Down","Select from Drop Down","Select from Drop Down",null,null,null,null,null,null,null,null,null,null,null,null,"Select from Drop Down","Select from Drop Down","Select from Drop Down"]
[1062,null,null,"Select from Drop Down","Select from Drop Down","Select from Drop Down",null,null,null,null,null,null,null,null,null,null,null,null,"Select from Drop Down","Select from Drop Down","Select from Drop Down"]
[1063,null,null,"Select from Drop Down","Select from Drop Down","Select from Drop Down",null,null,null,null,null,null,null,null,null,null,null,null,"Select from Drop Down","Select from Drop Down","Select from Drop Down"]
[1064,null,null,"Select from Drop Down","Select from Drop Down","Select from Drop Down",null,null,null,null,null,null,null,null,null,null,null,null,"Select from Drop Down","Select from Drop Down","Select from Drop Down"]
[1065,null,null,"Select from Drop Down","Select from Drop Down","Select from Drop Down",null,null,null,null,null,null,null,null,null,null,null,null,"Select from Drop Down","Select from Drop Down","Select from Drop Down"]
[1066,null,null,"Select from Drop Down","Select from Drop Down","Select from Drop Down",null,null,null,null,null,null,null,null,null,null,null,null,"Select from Drop Down","Select from Drop Down","Select from Drop Down"]
[1067,null,null,"Select from Drop Down","Select from Drop Down","Select from Drop Down",null,null,null,null,null,null,null,null,null,null,null,null,"Select from Drop Down","Select from Drop Down","Select from Drop Down"]
[1068,null,null,"Select from Drop Down","Select from Drop Down","Select from Drop Down",null,null,null,null,null,null,null,null,null,null,null,null,"Select from Drop Down","Select from Drop Down","Select from Drop Down"]
[1069,null,null,"Select from Drop Down","Select from Drop Down","Select from Drop Down",null,null,null,null,null,null,null,null,null,null,null,null,"Select from Drop Down","Select from Drop Down","Select from Drop Down"]
[1070,null,null,"Select from Drop Down","Select from Drop Down","Select from Drop Down",null,null,null,null,null,null,null,null,null,null,null,null,"Select from Drop Down","Select from Drop Down","Select from Drop Down"]
[1071,null,null,"Select from Drop Down","Select from Drop Down","Select from Drop Down",null,null,null,null,null,null,null,null,null,null,null,null,"Select from Drop Down","Select from Drop Down","Select from Drop Down"]
[1072,null,null,"Select from Drop Down","Select from Drop Down","Select from Drop Down",null,null,null,null,null,null,null,null,null,null,null,null,"Select from Drop Down","Select from Drop Down","Select from Drop Down"]
[1073,null,null,"Select from Drop Down","Select from Drop Down","Select from Drop Down",null,null,null,null,null,null,null,null,null,null,null,null,"Select from Drop Down","Select from Drop Down","Select from Drop Down"]
[1074,null,null,"Select from Drop Down","Select from Drop Down","Select from Drop Down",null,null,null,null,null,null,null,null,null,null,null,null,"Select from Drop Down","Select from Drop Down","Select from Drop Down"]
[1075,null,null,"Select from Drop Down","Select from Drop Down","Select from Drop Down",null,null,null,null,null,null,null,null,null,null,null,null,"Select from Drop Down","Select from Drop Down","Select from Drop Down"]
[1076,null,null,"Select from Drop Down","Select from Drop Down","Select from Drop Down",null,null,null,null,null,null,null,null,null,null,null,null,"Select from Drop Down","Select from Drop Down","Select from Drop Down"]
[1077,null,null,"Select from Drop Down","Select from Drop Down","Select from Drop Down",null,null,null,null,null,null,null,null,null,null,null,null,"Select from Drop Down","Select from Drop Down","Select from Drop Down"]
[1078,null,null,"Select from Drop Down","Select from Drop Down","Select from Drop Down",null,null,null,null,null,null,null,null,null,null,null,null,"Select from Drop Down","Select from Drop Down","Select from Drop Down"]
[1079,null,null,"Select from Drop Down","Select from Drop Down","Select from Drop Down",null,null,null,null,null,null,null,null,null,null,null,null,"Select from Drop Down","Select from Drop Down","Select from Drop Down"]
[1080,null,null,"Select from Drop Down","Select from Drop Down","Select from Drop Down",null,null,null,null,null,null,null,null,null,null,null,null,"Select from Drop Down","Select from Drop Down","Select from Drop Down"]
[1081,null,null,"Select from Drop Down","Select from Drop Down","Select from Drop Down",null,null,null,null,null,null,null,null,null,null,null,null,"Select from Drop Down","Select from Drop Down","Select from Drop Down"]
[1082,null,null,"Select from Drop Down","Select from Drop Down","Select from Drop Down",null,null,null,null,null,null,null,null,null,null,null,null,"Select from Drop Down","Select from Drop Down","Select from Drop Down"]
[1083,null,null,"Select from Drop Down","Select from Drop Down","Select from Drop Down",null,null,null,null,null,null,null,null,null,null,null,null,"Select from Drop Down","Select from Drop Down","Select from Drop Down"]
[1084,null,null,"Select from Drop Down","Select from Drop Down","Select from Drop Down",null,null,null,null,null,null,null,null,null,null,null,null,"Select from Drop Down","Select from Drop Down","Select from Drop Down"]
[1085,null,null,"Select from Drop Down","Select from Drop Down","Select from Drop Down",null,null,null,null,null,null,null,null,null,null,null,null,"Select from Drop Down","Select from Drop Down","Select from Drop Down"]
[1086,null,null,"Select from Drop Down","Select from Drop Down","Select from Drop Down",null,null,null,null,null,null,null,null,null,null,null,null,"Select from Drop Down","Select from Drop Down","Select from Drop Down"]
[1087,null,null,"Select from Drop Down","Select from Drop Down","Select from Drop Down",null,null,null,null,null,null,null,null,null,null,null,null,"Select from Drop Down","Select from Drop Down","Select from Drop Down"]
[1088,null,null,"Select from Drop Down","Select from Drop Down","Select from Drop Down",null,null,null,null,null,null,null,null,null,null,null,null,"Select from Drop Down","Select from Drop Down","Select from Drop Down"]
[1089,null,null,"Select from Drop Down","Select from Drop Down","Select from Drop Down",null,null,null,null,null,null,null,null,null,null,null,null,"Select from Drop Down","Select from Drop Down","Select from Drop Down"]
[1090,null,null,"Select from Drop Down","Select from Drop Down","Select from Drop Down",null,null,null,null,null,null,null,null,null,null,null,null,"Select from Drop Down","Select from Drop Down","Select from Drop Down"]
[{"$f":"A1100+1","v":1091},null,null,"Select from Drop Down","Select from Drop Down","Select from Drop Down",null,null,null,null,null,null,null,null,null,null,null,null,"Select from Drop Down","Select from Drop Down","Select from Drop Down"]
[1092,null,null,"Select from Drop Down","Select from Drop Down","Select from Drop Down",null,null,null,null,null,null,null,null,null,null,null,null,"Select from Drop Down","Select from Drop Down","Select from Drop Down"]
[1093,null,null,"Select from Drop Down","Select from Drop Down","Select from Drop Down",null,null,null,null,null,null,null,null,null,null,null,null,"Select from Drop Down","Select from Drop Down","Select from Drop Down"]
[1094,null,null,"Select from Drop Down","Select from Drop Down","Select from Drop Down",null,null,null,null,null,null,null,null,null,null,null,null,"Select from Drop Down","Select from Drop Down","Select from Drop Down"]
[1095,null,null,"Select from Drop Down","Select from Drop Down","Select from Drop Down",null,null,null,null,null,null,null,null,null,null,null,null,"Select from Drop Down","Select from Drop Down","Select from Drop Down"]
[1096,null,null,"Select from Drop Down","Select from Drop Down","Select from Drop Down",null,null,null,null,null,null,null,null,null,null,null,null,"Select from Drop Down","Select from Drop Down","Select from Drop Down"]
[1097,null,null,"Select from Drop Down","Select from Drop Down","Select from Drop Down",null,null,null,null,null,null,null,null,null,null,null,null,"Select from Drop Down","Select from Drop Down","Select from Drop Down"]
[1098,null,null,"Select from Drop Down","Select from Drop Down","Select from Drop Down",null,null,null,null,null,null,null,null,null,null,null,null,"Select from Drop Down","Select from Drop Down","Select from Drop Down"]
[1099,null,null,"Select from Drop Down","Select from Drop Down","Select from Drop Down",null,null,null,null,null,null,null,null,null,null,null,null,"Select from Drop Down","Select from Drop Down","Select from Drop Down"]
[1100,null,null,"Select from Drop Down","Select from Drop Down","Select from Drop Down",null,null,null,null,null,null,null,null,null,null,null,null,"Select from Drop Down","Select from Drop Down","Select from Drop Down"]
[1101,null,null,"Select from Drop Down","Select from Drop Down","Select from Drop Down",null,null,null,null,null,null,null,null,null,null,null,null,"Select from Drop Down","Select from Drop Down","Select from Drop Down"]
[1102,null,null,"Select from Drop Down","Select from Drop Down","Select from Drop Down",null,null,null,null,null,null,null,null,null,null,null,null,"Select from Drop Down","Select from Drop Down","Select from Drop Down"]
[1103,null,null,"Select from Drop Down","Select from Drop Down","Select from Drop Down",null,null,null,null,null,null,null,null,null,null,null,null,"Select from Drop Down","Select from Drop Down","Select from Drop Down"]
[1104,null,null,"Select from Drop Down","Select from Drop Down","Select from Drop Down",null,null,null,null,null,null,null,null,null,null,null,null,"Select from Drop Down","Select from Drop Down","Select from Drop Down"]
[1105,null,null,"Select from Drop Down","Select from Drop Down","Select from Drop Down",null,null,null,null,null,null,null,null,null,null,null,null,"Select from Drop Down","Select from Drop Down","Select from Drop Down"]
[1106,null,null,"Select from Drop Down","Select from Drop Down","Select from Drop Down",null,null,null,null,null,null,null,null,null,null,null,null,"Select from Drop Down","Select from Drop Down","Select from Drop Down"]
[1107,null,null,"Select from Drop Down","Select from Drop Down","Select from Drop Down",null,null,null,null,null,null,null,null,null,null,null,null,"Select from Drop Down","Select from Drop Down","Select from Drop Down"]
[1108,null,null,"Select from Drop Down","Select from Drop Down","Select from Drop Down",null,null,null,null,null,null,null,null,null,null,null,null,"Select from Drop Down","Select from Drop Down","Select from Drop Down"]
[1109,null,null,"Select from Drop Down","Select from Drop Down","Select from Drop Down",null,null,null,null,null,null,null,null,null,null,null,null,"Select from Drop Down","Select from Drop Down","Select from Drop Down"]
[1110,null,null,"Select from Drop Down","Select from Drop Down","Select from Drop Down",null,null,null,null,null,null,null,null,null,null,null,null,"Select from Drop Down","Select from Drop Down","Select from Drop Down"]
[1111,null,null,"Select from Drop Down","Select from Drop Down","Select from Drop Down",null,null,null,null,null,null,null,null,null,null,null,null,"Select from Drop Down","Select from Drop Down","Select from Drop Down"]
[1112,null,null,"Select from Drop Down","Select from Drop Down","Select from Drop Down",null,null,null,null,null,null,null,null,null,null,null,null,"Select from Drop Down","Select from Drop Down","Select from Drop Down"]
[1113,null,null,"Select from Drop Down","Select from Drop Down","Select from Drop Down",null,null,null,null,null,null,null,null,null,null,null,null,"Select from Drop Down","Select from Drop Down","Select from Drop Down"]
[1114,null,null,"Select from Drop Down","Select from Drop Down","Select from Drop Down",null,null,null,null,null,null,null,null,null,null,null,null,"Select from Drop Down","Select from Drop Down","Select from Drop Down"]
[1115,null,null,"Select from Drop Down","Select from Drop Down","Select from Drop Down",null,null,null,null,null,null,null,null,null,null,null,null,"Select from Drop Down","Select from Drop Down","Select from Drop Down"]
[1116,null,null,"Select from Drop Down","Select from Drop Down","Select from Drop Down",null,null,null,null,null,null,null,null,null,null,null,null,"Select from Drop Down","Select from Drop Down","Select from Drop Down"]
[1117,null,null,"Select from Drop Down","Select from Drop Down","Select from Drop Down",null,null,null,null,null,null,null,null,null,null,null,null,"Select from Drop Down","Select from Drop Down","Select from Drop Down"]
[1118,null,null,"Select from Drop Down","Select from Drop Down","Select from Drop Down",null,null,null,null,null,null,null,null,null,null,null,null,"Select from Drop Down","Select from Drop Down","Select from Drop Down"]
[1119,null,null,"Select from Drop Down","Select from Drop Down","Select from Drop Down",null,null,null,null,null,null,null,null,null,null,null,null,"Select from Drop Down","Select from Drop Down","Select from Drop Down"]
[1120,null,null,"Select from Drop Down","Select from Drop Down","Select from Drop Down",null,null,null,null,null,null,null,null,null,null,null,null,"Select from Drop Down","Select from Drop Down","Select from Drop Down"]
[1121,null,null,"Select from Drop Down","Select from Drop Down","Select from Drop Down",null,null,null,null,null,null,null,null,null,null,null,null,"Select from Drop Down","Select from Drop Down","Select from Drop Down"]
[1122,null,null,"Select from Drop Down","Select from Drop Down","Select from Drop Down",null,null,null,null,null,null,null,null,null,null,null,null,"Select from Drop Down","Select from Drop Down","Select from Drop Down"]
[1123,null,null,"Select from Drop Down","Select from Drop Down","Select from Drop Down",null,null,null,null,null,null,null,null,null,null,null,null,"Select from Drop Down","Select from Drop Down","Select from Drop Down"]
[1124,null,null,"Select from Drop Down","Select from Drop Down","Select from Drop Down",null,null,null,null,null,null,null,null,null,null,null,null,"Select from Drop Down","Select from Drop Down","Select from Drop Down"]
[1125,null,null,"Select from Drop Down","Select from Drop Down","Select from Drop Down",null,null,null,null,null,null,null,null,null,null,null,null,"Select from Drop Down","Select from Drop Down","Select from Drop Down"]
[1126,null,null,"Select from Drop Down","Select from Drop Down","Select from Drop Down",null,null,null,null,null,null,null,null,null,null,null,null,"Select from Drop Down","Select from Drop Down","Select from Drop Down"]
[1127,null,null,"Select from Drop Down","Select from Drop Down","Select from Drop Down",null,null,null,null,null,null,null,null,null,null,null,null,"Select from Drop Down","Select from Drop Down","Select from Drop Down"]
[1128,null,null,"Select from Drop Down","Select from Drop Down","Select from Drop Down",null,null,null,null,null,null,null,null,null,null,null,null,"Select from Drop Down","Select from Drop Down","Select from Drop Down"]
[1129,null,null,"Select from Drop Down","Select from Drop Down","Select from Drop Down",null,null,null,null,null,null,null,null,null,null,null,null,"Select from Drop Down","Select from Drop Down","Select from Drop Down"]
[1130,null,null,"Select from Drop Down","Select from Drop Down","Select from Drop Down",null,null,null,null,null,null,null,null,null,null,null,null,"Select from Drop Down","Select from Drop Down","Select from Drop Down"]
[1131,null,null,"Select from Drop Down","Select from Drop Down","Select from Drop Down",null,null,null,null,null,null,null,null,null,null,null,null,"Select from Drop Down","Select from Drop Down","Select from Drop Down"]
[1132,null,null,"Select from Drop Down","Select from Drop Down","Select from Drop Down",null,null,null,null,null,null,null,null,null,null,null,null,"Select from Drop Down","Select from Drop Down","Select from Drop Down"]
[1133,null,null,"Select from Drop Down","Select from Drop Down","Select from Drop Down",null,null,null,null,null,null,null,null,null,null,null,null,"Select from Drop Down","Select from Drop Down","Select from Drop Down"]
[1134,null,null,"Select from Drop Down","Select from Drop Down","Select from Drop Down",null,null,null,null,null,null,null,null,null,null,null,null,"Select from Drop Down","Select from Drop Down","Select from Drop Down"]
[1135,null,null,"Select from Drop Down","Select from Drop Down","Select from Drop Down",null,null,null,null,null,null,null,null,null,null,null,null,"Select from Drop Down","Select from Drop Down","Select from Drop Down"]
[1136,null,null,"Select from Drop Down","Select from Drop Down","Select from Drop Down",null,null,null,null,null,null,null,null,null,null,null,null,"Select from Drop Down","Select from Drop Down","Select from Drop Down"]
[1137,null,null,"Select from Drop Down","Select from Drop Down","Select from Drop Down",null,null,null,null,null,null,null,null,null,null,null,null,"Select from Drop Down","Select from Drop Down","Select from Drop Down"]
[1138,null,null,"Select from Drop Down","Select from Drop Down","Select from Drop Down",null,null,null,null,null,null,null,null,null,null,null,null,"Select from Drop Down","Select from Drop Down","Select from Drop Down"]
[1139,null,null,"Select from Drop Down","Select from Drop Down","Select from Drop Down",null,null,null,null,null,null,null,null,null,null,null,null,"Select from Drop Down","Select from Drop Down","Select from Drop Down"]
[1140,null,null,"Select from Drop Down","Select from Drop Down","Select from Drop Down",null,null,null,null,null,null,null,null,null,null,null,null,"Select from Drop Down","Select from Drop Down","Select from Drop Down"]
[1141,null,null,"Select from Drop Down","Select from Drop Down","Select from Drop Down",null,null,null,null,null,null,null,null,null,null,null,null,"Select from Drop Down","Select from Drop Down","Select from Drop Down"]
[1142,null,null,"Select from Drop Down","Select from Drop Down","Select from Drop Down",null,null,null,null,null,null,null,null,null,null,null,null,"Select from Drop Down","Select from Drop Down","Select from Drop Down"]
[1143,null,null,"Select from Drop Down","Select from Drop Down","Select from Drop Down",null,null,null,null,null,null,null,null,null,null,null,null,"Select from Drop Down","Select from Drop Down","Select from Drop Down"]
[1144,null,null,"Select from Drop Down","Select from Drop Down","Select from Drop Down",null,null,null,null,null,null,null,null,null,null,null,null,"Select from Drop Down","Select from Drop Down","Select from Drop Down"]
[1145,null,null,"Select from Drop Down","Select from Drop Down","Select from Drop Down",null,null,null,null,null,null,null,null,null,null,null,null,"Select from Drop Down","Select from Drop Down","Select from Drop Down"]
[1146,null,null,"Select from Drop Down","Select from Drop Down","Select from Drop Down",null,null,null,null,null,null,null,null,null,null,null,null,"Select from Drop Down","Select from Drop Down","Select from Drop Down"]
[1147,null,null,"Select from Drop Down","Select from Drop Down","Select from Drop Down",null,null,null,null,null,null,null,null,null,null,null,null,"Select from Drop Down","Select from Drop Down","Select from Drop Down"]
[1148,null,null,"Select from Drop Down","Select from Drop Down","Select from Drop Down",null,null,null,null,null,null,null,null,null,null,null,null,"Select from Drop Down","Select from Drop Down","Select from Drop Down"]
[1149,null,null,"Select from Drop Down","Select from Drop Down","Select from Drop Down",null,null,null,null,null,null,null,null,null,null,null,null,"Select from Drop Down","Select from Drop Down","Select from Drop Down"]
[1150,null,null,"Select from Drop Down","Select from Drop Down","Select from Drop Down",null,null,null,null,null,null,null,null,null,null,null,null,"Select from Drop Down","Select from Drop Down","Select from Drop Down"]
[1151,null,null,"Select from Drop Down","Select from Drop Down","Select from Drop Down",null,null,null,null,null,null,null,null,null,null,null,null,"Select from Drop Down","Select from Drop Down","Select from Drop Down"]
[1152,null,null,"Select from Drop Down","Select from Drop Down","Select from Drop Down",null,null,null,null,null,null,null,null,null,null,null,null,"Select from Drop Down","Select from Drop Down","Select from Drop Down"]
[1153,null,null,"Select from Drop Down","Select from Drop Down","Select from Drop Down",null,null,null,null,null,null,null,null,null,null,null,null,"Select from Drop Down","Select from Drop Down","Select from Drop Down"]
[1154,null,null,"Select from Drop Down","Select from Drop Down","Select from Drop Down",null,null,null,null,null,null,null,null,null,null,null,null,"Select from Drop Down","Select from Drop Down","Select from Drop Down"]
[{"$f":"A1164+1","v":1155},null,null,"Select from Drop Down","Select from Drop Down","Select from Drop Down",null,null,null,null,null,null,null,null,null,null,null,null,"Select from Drop Down","Select from Drop Down","Select from Drop Down"]
[1156,null,null,"Select from Drop Down","Select from Drop Down","Select from Drop Down",null,null,null,null,null,null,null,null,null,null,null,null,"Select from Drop Down","Select from Drop Down","Select from Drop Down"]
[1157,null,null,"Select from Drop Down","Select from Drop Down","Select from Drop Down",null,null,null,null,null,null,null,null,null,null,null,null,"Select from Drop Down","Select from Drop Down","Select from Drop Down"]
[1158,null,null,"Select from Drop Down","Select from Drop Down","Select from Drop Down",null,null,null,null,null,null,null,null,null,null,null,null,"Select from Drop Down","Select from Drop Down","Select from Drop Down"]
[1159,null,null,"Select from Drop Down","Select from Drop Down","Select from Drop Down",null,null,null,null,null,null,null,null,null,null,null,null,"Select from Drop Down","Select from Drop Down","Select from Drop Down"]
[1160,null,null,"Select from Drop Down","Select from Drop Down","Select from Drop Down",null,null,null,null,null,null,null,null,null,null,null,null,"Select from Drop Down","Select from Drop Down","Select from Drop Down"]
[1161,null,null,"Select from Drop Down","Select from Drop Down","Select from Drop Down",null,null,null,null,null,null,null,null,null,null,null,null,"Select from Drop Down","Select from Drop Down","Select from Drop Down"]
[1162,null,null,"Select from Drop Down","Select from Drop Down","Select from Drop Down",null,null,null,null,null,null,null,null,null,null,null,null,"Select from Drop Down","Select from Drop Down","Select from Drop Down"]
[1163,null,null,"Select from Drop Down","Select from Drop Down","Select from Drop Down",null,null,null,null,null,null,null,null,null,null,null,null,"Select from Drop Down","Select from Drop Down","Select from Drop Down"]
[1164,null,null,"Select from Drop Down","Select from Drop Down","Select from Drop Down",null,null,null,null,null,null,null,null,null,null,null,null,"Select from Drop Down","Select from Drop Down","Select from Drop Down"]
[1165,null,null,"Select from Drop Down","Select from Drop Down","Select from Drop Down",null,null,null,null,null,null,null,null,null,null,null,null,"Select from Drop Down","Select from Drop Down","Select from Drop Down"]
[1166,null,null,"Select from Drop Down","Select from Drop Down","Select from Drop Down",null,null,null,null,null,null,null,null,null,null,null,null,"Select from Drop Down","Select from Drop Down","Select from Drop Down"]
[1167,null,null,"Select from Drop Down","Select from Drop Down","Select from Drop Down",null,null,null,null,null,null,null,null,null,null,null,null,"Select from Drop Down","Select from Drop Down","Select from Drop Down"]
[1168,null,null,"Select from Drop Down","Select from Drop Down","Select from Drop Down",null,null,null,null,null,null,null,null,null,null,null,null,"Select from Drop Down","Select from Drop Down","Select from Drop Down"]
[1169,null,null,"Select from Drop Down","Select from Drop Down","Select from Drop Down",null,null,null,null,null,null,null,null,null,null,null,null,"Select from Drop Down","Select from Drop Down","Select from Drop Down"]
[1170,null,null,"Select from Drop Down","Select from Drop Down","Select from Drop Down",null,null,null,null,null,null,null,null,null,null,null,null,"Select from Drop Down","Select from Drop Down","Select from Drop Down"]
[1171,null,null,"Select from Drop Down","Select from Drop Down","Select from Drop Down",null,null,null,null,null,null,null,null,null,null,null,null,"Select from Drop Down","Select from Drop Down","Select from Drop Down"]
[1172,null,null,"Select from Drop Down","Select from Drop Down","Select from Drop Down",null,null,null,null,null,null,null,null,null,null,null,null,"Select from Drop Down","Select from Drop Down","Select from Drop Down"]
[1173,null,null,"Select from Drop Down","Select from Drop Down","Select from Drop Down",null,null,null,null,null,null,null,null,null,null,null,null,"Select from Drop Down","Select from Drop Down","Select from Drop Down"]
[1174,null,null,"Select from Drop Down","Select from Drop Down","Select from Drop Down",null,null,null,null,null,null,null,null,null,null,null,null,"Select from Drop Down","Select from Drop Down","Select from Drop Down"]
[1175,null,null,"Select from Drop Down","Select from Drop Down","Select from Drop Down",null,null,null,null,null,null,null,null,null,null,null,null,"Select from Drop Down","Select from Drop Down","Select from Drop Down"]
[1176,null,null,"Select from Drop Down","Select from Drop Down","Select from Drop Down",null,null,null,null,null,null,null,null,null,null,null,null,"Select from Drop Down","Select from Drop Down","Select from Drop Down"]
[1177,null,null,"Select from Drop Down","Select from Drop Down","Select from Drop Down",null,null,null,null,null,null,null,null,null,null,null,null,"Select from Drop Down","Select from Drop Down","Select from Drop Down"]
[1178,null,null,"Select from Drop Down","Select from Drop Down","Select from Drop Down",null,null,null,null,null,null,null,null,null,null,null,null,"Select from Drop Down","Select from Drop Down","Select from Drop Down"]
[1179,null,null,"Select from Drop Down","Select from Drop Down","Select from Drop Down",null,null,null,null,null,null,null,null,null,null,null,null,"Select from Drop Down","Select from Drop Down","Select from Drop Down"]
[1180,null,null,"Select from Drop Down","Select from Drop Down","Select from Drop Down",null,null,null,null,null,null,null,null,null,null,null,null,"Select from Drop Down","Select from Drop Down","Select from Drop Down"]
[1181,null,null,"Select from Drop Down","Select from Drop Down","Select from Drop Down",null,null,null,null,null,null,null,null,null,null,null,null,"Select from Drop Down","Select from Drop Down","Select from Drop Down"]
[1182,null,null,"Select from Drop Down","Select from Drop Down","Select from Drop Down",null,null,null,null,null,null,null,null,null,null,null,null,"Select from Drop Down","Select from Drop Down","Select from Drop Down"]
[1183,null,null,"Select from Drop Down","Select from Drop Down","Select from Drop Down",null,null,null,null,null,null,null,null,null,null,null,null,"Select from Drop Down","Select from Drop Down","Select from Drop Down"]
[1184,null,null,"Select from Drop Down","Select from Drop Down","Select from Drop Down",null,null,null,null,null,null,null,null,null,null,null,null,"Select from Drop Down","Select from Drop Down","Select from Drop Down"]
[1185,null,null,"Select from Drop Down","Select from Drop Down","Select from Drop Down",null,null,null,null,null,null,null,null,null,null,null,null,"Select from Drop Down","Select from Drop Down","Select from Drop Down"]
[1186,null,null,"Select from Drop Down","Select from Drop Down","Select from Drop Down",null,null,null,null,null,null,null,null,null,null,null,null,"Select from Drop Down","Select from Drop Down","Select from Drop Down"]
[1187,null,null,"Select from Drop Down","Select from Drop Down","Select from Drop Down",null,null,null,null,null,null,null,null,null,null,null,null,"Select from Drop Down","Select from Drop Down","Select from Drop Down"]
[1188,null,null,"Select from Drop Down","Select from Drop Down","Select from Drop Down",null,null,null,null,null,null,null,null,null,null,null,null,"Select from Drop Down","Select from Drop Down","Select from Drop Down"]
[1189,null,null,"Select from Drop Down","Select from Drop Down","Select from Drop Down",null,null,null,null,null,null,null,null,null,null,null,null,"Select from Drop Down","Select from Drop Down","Select from Drop Down"]
[1190,null,null,"Select from Drop Down","Select from Drop Down","Select from Drop Down",null,null,null,null,null,null,null,null,null,null,null,null,"Select from Drop Down","Select from Drop Down","Select from Drop Down"]
[1191,null,null,"Select from Drop Down","Select from Drop Down","Select from Drop Down",null,null,null,null,null,null,null,null,null,null,null,null,"Select from Drop Down","Select from Drop Down","Select from Drop Down"]
[1192,null,null,"Select from Drop Down","Select from Drop Down","Select from Drop Down",null,null,null,null,null,null,null,null,null,null,null,null,"Select from Drop Down","Select from Drop Down","Select from Drop Down"]
[1193,null,null,"Select from Drop Down","Select from Drop Down","Select from Drop Down",null,null,null,null,null,null,null,null,null,null,null,null,"Select from Drop Down","Select from Drop Down","Select from Drop Down"]
[1194,null,null,"Select from Drop Down","Select from Drop Down","Select from Drop Down",null,null,null,null,null,null,null,null,null,null,null,null,"Select from Drop Down","Select from Drop Down","Select from Drop Down"]
[1195,null,null,"Select from Drop Down","Select from Drop Down","Select from Drop Down",null,null,null,null,null,null,null,null,null,null,null,null,"Select from Drop Down","Select from Drop Down","Select from Drop Down"]
[1196,null,null,"Select from Drop Down","Select from Drop Down","Select from Drop Down",null,null,null,null,null,null,null,null,null,null,null,null,"Select from Drop Down","Select from Drop Down","Select from Drop Down"]
[1197,null,null,"Select from Drop Down","Select from Drop Down","Select from Drop Down",null,null,null,null,null,null,null,null,null,null,null,null,"Select from Drop Down","Select from Drop Down","Select from Drop Down"]
[1198,null,null,"Select from Drop Down","Select from Drop Down","Select from Drop Down",null,null,null,null,null,null,null,null,null,null,null,null,"Select from Drop Down","Select from Drop Down","Select from Drop Down"]
[1199,null,null,"Select from Drop Down","Select from Drop Down","Select from Drop Down",null,null,null,null,null,null,null,null,null,null,null,null,"Select from Drop Down","Select from Drop Down","Select from Drop Down"]
[1200,null,null,"Select from Drop Down","Select from Drop Down","Select from Drop Down",null,null,null,null,null,null,null,null,null,null,null,null,"Select from Drop Down","Select from Drop Down","Select from Drop Down"]
[1201,null,null,"Select from Drop Down","Select from Drop Down","Select from Drop Down",null,null,null,null,null,null,null,null,null,null,null,null,"Select from Drop Down","Select from Drop Down","Select from Drop Down"]
[1202,null,null,"Select from Drop Down","Select from Drop Down","Select from Drop Down",null,null,null,null,null,null,null,null,null,null,null,null,"Select from Drop Down","Select from Drop Down","Select from Drop Down"]
[1203,null,null,"Select from Drop Down","Select from Drop Down","Select from Drop Down",null,null,null,null,null,null,null,null,null,null,null,null,"Select from Drop Down","Select from Drop Down","Select from Drop Down"]
[1204,null,null,"Select from Drop Down","Select from Drop Down","Select from Drop Down",null,null,null,null,null,null,null,null,null,null,null,null,"Select from Drop Down","Select from Drop Down","Select from Drop Down"]
[1205,null,null,"Select from Drop Down","Select from Drop Down","Select from Drop Down",null,null,null,null,null,null,null,null,null,null,null,null,"Select from Drop Down","Select from Drop Down","Select from Drop Down"]
[1206,null,null,"Select from Drop Down","Select from Drop Down","Select from Drop Down",null,null,null,null,null,null,null,null,null,null,null,null,"Select from Drop Down","Select from Drop Down","Select from Drop Down"]
[1207,null,null,"Select from Drop Down","Select from Drop Down","Select from Drop Down",null,null,null,null,null,null,null,null,null,null,null,null,"Select from Drop Down","Select from Drop Down","Select from Drop Down"]
[1208,null,null,"Select from Drop Down","Select from Drop Down","Select from Drop Down",null,null,null,null,null,null,null,null,null,null,null,null,"Select from Drop Down","Select from Drop Down","Select from Drop Down"]
[1209,null,null,"Select from Drop Down","Select from Drop Down","Select from Drop Down",null,null,null,null,null,null,null,null,null,null,null,null,"Select from Drop Down","Select from Drop Down","Select from Drop Down"]
[1210,null,null,"Select from Drop Down","Select from Drop Down","Select from Drop Down",null,null,null,null,null,null,null,null,null,null,null,null,"Select from Drop Down","Select from Drop Down","Select from Drop Down"]
[1211,null,null,"Select from Drop Down","Select from Drop Down","Select from Drop Down",null,null,null,null,null,null,null,null,null,null,null,null,"Select from Drop Down","Select from Drop Down","Select from Drop Down"]
[1212,null,null,"Select from Drop Down","Select from Drop Down","Select from Drop Down",null,null,null,null,null,null,null,null,null,null,null,null,"Select from Drop Down","Select from Drop Down","Select from Drop Down"]
[1213,null,null,"Select from Drop Down","Select from Drop Down","Select from Drop Down",null,null,null,null,null,null,null,null,null,null,null,null,"Select from Drop Down","Select from Drop Down","Select from Drop Down"]
[1214,null,null,"Select from Drop Down","Select from Drop Down","Select from Drop Down",null,null,null,null,null,null,null,null,null,null,null,null,"Select from Drop Down","Select from Drop Down","Select from Drop Down"]
[1215,null,null,"Select from Drop Down","Select from Drop Down","Select from Drop Down",null,null,null,null,null,null,null,null,null,null,null,null,"Select from Drop Down","Select from Drop Down","Select from Drop Down"]
[1216,null,null,"Select from Drop Down","Select from Drop Down","Select from Drop Down",null,null,null,null,null,null,null,null,null,null,null,null,"Select from Drop Down","Select from Drop Down","Select from Drop Down"]
[1217,null,null,"Select from Drop Down","Select from Drop Down","Select from Drop Down",null,null,null,null,null,null,null,null,null,null,null,null,"Select from Drop Down","Select from Drop Down","Select from Drop Down"]
[1218,null,null,"Select from Drop Down","Select from Drop Down","Select from Drop Down",null,null,null,null,null,null,null,null,null,null,null,null,"Select from Drop Down","Select from Drop Down","Select from Drop Down"]
[{"$f":"A1228+1","v":1219},null,null,"Select from Drop Down","Select from Drop Down","Select from Drop Down",null,null,null,null,null,null,null,null,null,null,null,null,"Select from Drop Down","Select from Drop Down","Select from Drop Down"]
[1220,null,null,"Select from Drop Down","Select from Drop Down","Select from Drop Down",null,null,null,null,null,null,null,null,null,null,null,null,"Select from Drop Down","Select from Drop Down","Select from Drop Down"]
[1221,null,null,"Select from Drop Down","Select from Drop Down","Select from Drop Down",null,null,null,null,null,null,null,null,null,null,null,null,"Select from Drop Down","Select from Drop Down","Select from Drop Down"]
[1222,null,null,"Select from Drop Down","Select from Drop Down","Select from Drop Down",null,null,null,null,null,null,null,null,null,null,null,null,"Select from Drop Down","Select from Drop Down","Select from Drop Down"]
[1223,null,null,"Select from Drop Down","Select from Drop Down","Select from Drop Down",null,null,null,null,null,null,null,null,null,null,null,null,"Select from Drop Down","Select from Drop Down","Select from Drop Down"]
[1224,null,null,"Select from Drop Down","Select from Drop Down","Select from Drop Down",null,null,null,null,null,null,null,null,null,null,null,null,"Select from Drop Down","Select from Drop Down","Select from Drop Down"]
[1225,null,null,"Select from Drop Down","Select from Drop Down","Select from Drop Down",null,null,null,null,null,null,null,null,null,null,null,null,"Select from Drop Down","Select from Drop Down","Select from Drop Down"]
[1226,null,null,"Select from Drop Down","Select from Drop Down","Select from Drop Down",null,null,null,null,null,null,null,null,null,null,null,null,"Select from Drop Down","Select from Drop Down","Select from Drop Down"]
[1227,null,null,"Select from Drop Down","Select from Drop Down","Select from Drop Down",null,null,null,null,null,null,null,null,null,null,null,null,"Select from Drop Down","Select from Drop Down","Select from Drop Down"]
[1228,null,null,"Select from Drop Down","Select from Drop Down","Select from Drop Down",null,null,null,null,null,null,null,null,null,null,null,null,"Select from Drop Down","Select from Drop Down","Select from Drop Down"]
[1229,null,null,"Select from Drop Down","Select from Drop Down","Select from Drop Down",null,null,null,null,null,null,null,null,null,null,null,null,"Select from Drop Down","Select from Drop Down","Select from Drop Down"]
[1230,null,null,"Select from Drop Down","Select from Drop Down","Select from Drop Down",null,null,null,null,null,null,null,null,null,null,null,null,"Select from Drop Down","Select from Drop Down","Select from Drop Down"]
[1231,null,null,"Select from Drop Down","Select from Drop Down","Select from Drop Down",null,null,null,null,null,null,null,null,null,null,null,null,"Select from Drop Down","Select from Drop Down","Select from Drop Down"]
[1232,null,null,"Select from Drop Down","Select from Drop Down","Select from Drop Down",null,null,null,null,null,null,null,null,null,null,null,null,"Select from Drop Down","Select from Drop Down","Select from Drop Down"]
[1233,null,null,"Select from Drop Down","Select from Drop Down","Select from Drop Down",null,null,null,null,null,null,null,null,null,null,null,null,"Select from Drop Down","Select from Drop Down","Select from Drop Down"]
[1234,null,null,"Select from Drop Down","Select from Drop Down","Select from Drop Down",null,null,null,null,null,null,null,null,null,null,null,null,"Select from Drop Down","Select from Drop Down","Select from Drop Down"]
[1235,null,null,"Select from Drop Down","Select from Drop Down","Select from Drop Down",null,null,null,null,null,null,null,null,null,null,null,null,"Select from Drop Down","Select from Drop Down","Select from Drop Down"]
[1236,null,null,"Select from Drop Down","Select from Drop Down","Select from Drop Down",null,null,null,null,null,null,null,null,null,null,null,null,"Select from Drop Down","Select from Drop Down","Select from Drop Down"]
[1237,null,null,"Select from Drop Down","Select from Drop Down","Select from Drop Down",null,null,null,null,null,null,null,null,null,null,null,null,"Select from Drop Down","Select from Drop Down","Select from Drop Down"]
[1238,null,null,"Select from Drop Down","Select from Drop Down","Select from Drop Down",null,null,null,null,null,null,null,null,null,null,null,null,"Select from Drop Down","Select from Drop Down","Select from Drop Down"]
[1239,null,null,"Select from Drop Down","Select from Drop Down","Select from Drop Down",null,null,null,null,null,null,null,null,null,null,null,null,"Select from Drop Down","Select from Drop Down","Select from Drop Down"]
[1240,null,null,"Select from Drop Down","Select from Drop Down","Select from Drop Down",null,null,null,null,null,null,null,null,null,null,null,null,"Select from Drop Down","Select from Drop Down","Select from Drop Down"]
[1241,null,null,"Select from Drop Down","Select from Drop Down","Select from Drop Down",null,null,null,null,null,null,null,null,null,null,null,null,"Select from Drop Down","Select from Drop Down","Select from Drop Down"]
[1242,null,null,"Select from Drop Down","Select from Drop Down","Select from Drop Down",null,null,null,null,null,null,null,null,null,null,null,null,"Select from Drop Down","Select from Drop Down","Select from Drop Down"]
[1243,null,null,"Select from Drop Down","Select from Drop Down","Select from Drop Down",null,null,null,null,null,null,null,null,null,null,null,null,"Select from Drop Down","Select from Drop Down","Select from Drop Down"]
[1244,null,null,"Select from Drop Down","Select from Drop Down","Select from Drop Down",null,null,null,null,null,null,null,null,null,null,null,null,"Select from Drop Down","Select from Drop Down","Select from Drop Down"]
[1245,null,null,"Select from Drop Down","Select from Drop Down","Select from Drop Down",null,null,null,null,null,null,null,null,null,null,null,null,"Select from Drop Down","Select from Drop Down","Select from Drop Down"]
[1246,null,null,"Select from Drop Down","Select from Drop Down","Select from Drop Down",null,null,null,null,null,null,null,null,null,null,null,null,"Select from Drop Down","Select from Drop Down","Select from Drop Down"]
[1247,null,null,"Select from Drop Down","Select from Drop Down","Select from Drop Down",null,null,null,null,null,null,null,null,null,null,null,null,"Select from Drop Down","Select from Drop Down","Select from Drop Down"]
[1248,null,null,"Select from Drop Down","Select from Drop Down","Select from Drop Down",null,null,null,null,null,null,null,null,null,null,null,null,"Select from Drop Down","Select from Drop Down","Select from Drop Down"]
[1249,null,null,"Select from Drop Down","Select from Drop Down","Select from Drop Down",null,null,null,null,null,null,null,null,null,null,null,null,"Select from Drop Down","Select from Drop Down","Select from Drop Down"]
[1250,null,null,"Select from Drop Down","Select from Drop Down","Select from Drop Down",null,null,null,null,null,null,null,null,null,null,null,null,"Select from Drop Down","Select from Drop Down","Select from Drop Down"]
[1251,null,null,"Select from Drop Down","Select from Drop Down","Select from Drop Down",null,null,null,null,null,null,null,null,null,null,null,null,"Select from Drop Down","Select from Drop Down","Select from Drop Down"]
[1252,null,null,"Select from Drop Down","Select from Drop Down","Select from Drop Down",null,null,null,null,null,null,null,null,null,null,null,null,"Select from Drop Down","Select from Drop Down","Select from Drop Down"]
[1253,null,null,"Select from Drop Down","Select from Drop Down","Select from Drop Down",null,null,null,null,null,null,null,null,null,null,null,null,"Select from Drop Down","Select from Drop Down","Select from Drop Down"]
[1254,null,null,"Select from Drop Down","Select from Drop Down","Select from Drop Down",null,null,null,null,null,null,null,null,null,null,null,null,"Select from Drop Down","Select from Drop Down","Select from Drop Down"]
[1255,null,null,"Select from Drop Down","Select from Drop Down","Select from Drop Down",null,null,null,null,null,null,null,null,null,null,null,null,"Select from Drop Down","Select from Drop Down","Select from Drop Down"]
[1256,null,null,"Select from Drop Down","Select from Drop Down","Select from Drop Down",null,null,null,null,null,null,null,null,null,null,null,null,"Select from Drop Down","Select from Drop Down","Select from Drop Down"]
[1257,null,null,"Select from Drop Down","Select from Drop Down","Select from Drop Down",null,null,null,null,null,null,null,null,null,null,null,null,"Select from Drop Down","Select from Drop Down","Select from Drop Down"]
[1258,null,null,"Select from Drop Down","Select from Drop Down","Select from Drop Down",null,null,null,null,null,null,null,null,null,null,null,null,"Select from Drop Down","Select from Drop Down","Select from Drop Down"]
[1259,null,null,"Select from Drop Down","Select from Drop Down","Select from Drop Down",null,null,null,null,null,null,null,null,null,null,null,null,"Select from Drop Down","Select from Drop Down","Select from Drop Down"]
[1260,null,null,"Select from Drop Down","Select from Drop Down","Select from Drop Down",null,null,null,null,null,null,null,null,null,null,null,null,"Select from Drop Down","Select from Drop Down","Select from Drop Down"]
[1261,null,null,"Select from Drop Down","Select from Drop Down","Select from Drop Down",null,null,null,null,null,null,null,null,null,null,null,null,"Select from Drop Down","Select from Drop Down","Select from Drop Down"]
[1262,null,null,"Select from Drop Down","Select from Drop Down","Select from Drop Down",null,null,null,null,null,null,null,null,null,null,null,null,"Select from Drop Down","Select from Drop Down","Select from Drop Down"]
[1263,null,null,"Select from Drop Down","Select from Drop Down","Select from Drop Down",null,null,null,null,null,null,null,null,null,null,null,null,"Select from Drop Down","Select from Drop Down","Select from Drop Down"]
[1264,null,null,"Select from Drop Down","Select from Drop Down","Select from Drop Down",null,null,null,null,null,null,null,null,null,null,null,null,"Select from Drop Down","Select from Drop Down","Select from Drop Down"]
[1265,null,null,"Select from Drop Down","Select from Drop Down","Select from Drop Down",null,null,null,null,null,null,null,null,null,null,null,null,"Select from Drop Down","Select from Drop Down","Select from Drop Down"]
[1266,null,null,"Select from Drop Down","Select from Drop Down","Select from Drop Down",null,null,null,null,null,null,null,null,null,null,null,null,"Select from Drop Down","Select from Drop Down","Select from Drop Down"]
[1267,null,null,"Select from Drop Down","Select from Drop Down","Select from Drop Down",null,null,null,null,null,null,null,null,null,null,null,null,"Select from Drop Down","Select from Drop Down","Select from Drop Down"]
[1268,null,null,"Select from Drop Down","Select from Drop Down","Select from Drop Down",null,null,null,null,null,null,null,null,null,null,null,null,"Select from Drop Down","Select from Drop Down","Select from Drop Down"]
[1269,null,null,"Select from Drop Down","Select from Drop Down","Select from Drop Down",null,null,null,null,null,null,null,null,null,null,null,null,"Select from Drop Down","Select from Drop Down","Select from Drop Down"]
[1270,null,null,"Select from Drop Down","Select from Drop Down","Select from Drop Down",null,null,null,null,null,null,null,null,null,null,null,null,"Select from Drop Down","Select from Drop Down","Select from Drop Down"]
[1271,null,null,"Select from Drop Down","Select from Drop Down","Select from Drop Down",null,null,null,null,null,null,null,null,null,null,null,null,"Select from Drop Down","Select from Drop Down","Select from Drop Down"]
[1272,null,null,"Select from Drop Down","Select from Drop Down","Select from Drop Down",null,null,null,null,null,null,null,null,null,null,null,null,"Select from Drop Down","Select from Drop Down","Select from Drop Down"]
[1273,null,null,"Select from Drop Down","Select from Drop Down","Select from Drop Down",null,null,null,null,null,null,null,null,null,null,null,null,"Select from Drop Down","Select from Drop Down","Select from Drop Down"]
[1274,null,null,"Select from Drop Down","Select from Drop Down","Select from Drop Down",null,null,null,null,null,null,null,null,null,null,null,null,"Select from Drop Down","Select from Drop Down","Select from Drop Down"]
[1275,null,null,"Select from Drop Down","Select from Drop Down","Select from Drop Down",null,null,null,null,null,null,null,null,null,null,null,null,"Select from Drop Down","Select from Drop Down","Select from Drop Down"]
[1276,null,null,"Select from Drop Down","Select from Drop Down","Select from Drop Down",null,null,null,null,null,null,null,null,null,null,null,null,"Select from Drop Down","Select from Drop Down","Select from Drop Down"]
[1277,null,null,"Select from Drop Down","Select from Drop Down","Select from Drop Down",null,null,null,null,null,null,null,null,null,null,null,null,"Select from Drop Down","Select from Drop Down","Select from Drop Down"]
[1278,null,null,"Select from Drop Down","Select from Drop Down","Select from Drop Down",null,null,null,null,null,null,null,null,null,null,null,null,"Select from Drop Down","Select from Drop Down","Select from Drop Down"]
[1279,null,null,"Select from Drop Down","Select from Drop Down","Select from Drop Down",null,null,null,null,null,null,null,null,null,null,null,null,"Select from Drop Down","Select from Drop Down","Select from Drop Down"]
[1280,null,null,"Select from Drop Down","Select from Drop Down","Select from Drop Down",null,null,null,null,null,null,null,null,null,null,null,null,"Select from Drop Down","Select from Drop Down","Select from Drop Down"]
[1281,null,null,"Select from Drop Down","Select from Drop Down","Select from Drop Down",null,null,null,null,null,null,null,null,null,null,null,null,"Select from Drop Down","Select from Drop Down","Select from Drop Down"]
[1282,null,null,"Select from Drop Down","Select from Drop Down","Select from Drop Down",null,null,null,null,null,null,null,null,null,null,null,null,"Select from Drop Down","Select from Drop Down","Select from Drop Down"]
[{"$f":"A1292+1","v":1283},null,null,"Select from Drop Down","Select from Drop Down","Select from Drop Down",null,null,null,null,null,null,null,null,null,null,null,null,"Select from Drop Down","Select from Drop Down","Select from Drop Down"]
[1284,null,null,"Select from Drop Down","Select from Drop Down","Select from Drop Down",null,null,null,null,null,null,null,null,null,null,null,null,"Select from Drop Down","Select from Drop Down","Select from Drop Down"]
[1285,null,null,"Select from Drop Down","Select from Drop Down","Select from Drop Down",null,null,null,null,null,null,null,null,null,null,null,null,"Select from Drop Down","Select from Drop Down","Select from Drop Down"]
[1286,null,null,"Select from Drop Down","Select from Drop Down","Select from Drop Down",null,null,null,null,null,null,null,null,null,null,null,null,"Select from Drop Down","Select from Drop Down","Select from Drop Down"]
[1287,null,null,"Select from Drop Down","Select from Drop Down","Select from Drop Down",null,null,null,null,null,null,null,null,null,null,null,null,"Select from Drop Down","Select from Drop Down","Select from Drop Down"]
[1288,null,null,"Select from Drop Down","Select from Drop Down","Select from Drop Down",null,null,null,null,null,null,null,null,null,null,null,null,"Select from Drop Down","Select from Drop Down","Select from Drop Down"]
[1289,null,null,"Select from Drop Down","Select from Drop Down","Select from Drop Down",null,null,null,null,null,null,null,null,null,null,null,null,"Select from Drop Down","Select from Drop Down","Select from Drop Down"]
[1290,null,null,"Select from Drop Down","Select from Drop Down","Select from Drop Down",null,null,null,null,null,null,null,null,null,null,null,null,"Select from Drop Down","Select from Drop Down","Select from Drop Down"]
[1291,null,null,"Select from Drop Down","Select from Drop Down","Select from Drop Down",null,null,null,null,null,null,null,null,null,null,null,null,"Select from Drop Down","Select from Drop Down","Select from Drop Down"]
[1292,null,null,"Select from Drop Down","Select from Drop Down","Select from Drop Down",null,null,null,null,null,null,null,null,null,null,null,null,"Select from Drop Down","Select from Drop Down","Select from Drop Down"]
[1293,null,null,"Select from Drop Down","Select from Drop Down","Select from Drop Down",null,null,null,null,null,null,null,null,null,null,null,null,"Select from Drop Down","Select from Drop Down","Select from Drop Down"]
[1294,null,null,"Select from Drop Down","Select from Drop Down","Select from Drop Down",null,null,null,null,null,null,null,null,null,null,null,null,"Select from Drop Down","Select from Drop Down","Select from Drop Down"]
[1295,null,null,"Select from Drop Down","Select from Drop Down","Select from Drop Down",null,null,null,null,null,null,null,null,null,null,null,null,"Select from Drop Down","Select from Drop Down","Select from Drop Down"]
[1296,null,null,"Select from Drop Down","Select from Drop Down","Select from Drop Down",null,null,null,null,null,null,null,null,null,null,null,null,"Select from Drop Down","Select from Drop Down","Select from Drop Down"]
[1297,null,null,"Select from Drop Down","Select from Drop Down","Select from Drop Down",null,null,null,null,null,null,null,null,null,null,null,null,"Select from Drop Down","Select from Drop Down","Select from Drop Down"]
[1298,null,null,"Select from Drop Down","Select from Drop Down","Select from Drop Down",null,null,null,null,null,null,null,null,null,null,null,null,"Select from Drop Down","Select from Drop Down","Select from Drop Down"]
[1299,null,null,"Select from Drop Down","Select from Drop Down","Select from Drop Down",null,null,null,null,null,null,null,null,null,null,null,null,"Select from Drop Down","Select from Drop Down","Select from Drop Down"]
[1300,null,null,"Select from Drop Down","Select from Drop Down","Select from Drop Down",null,null,null,null,null,null,null,null,null,null,null,null,"Select from Drop Down","Select from Drop Down","Select from Drop Down"]
[1301,null,null,"Select from Drop Down","Select from Drop Down","Select from Drop Down",null,null,null,null,null,null,null,null,null,null,null,null,"Select from Drop Down","Select from Drop Down","Select from Drop Down"]
[1302,null,null,"Select from Drop Down","Select from Drop Down","Select from Drop Down",null,null,null,null,null,null,null,null,null,null,null,null,"Select from Drop Down","Select from Drop Down","Select from Drop Down"]
[1303,null,null,"Select from Drop Down","Select from Drop Down","Select from Drop Down",null,null,null,null,null,null,null,null,null,null,null,null,"Select from Drop Down","Select from Drop Down","Select from Drop Down"]
[1304,null,null,"Select from Drop Down","Select from Drop Down","Select from Drop Down",null,null,null,null,null,null,null,null,null,null,null,null,"Select from Drop Down","Select from Drop Down","Select from Drop Down"]
[1305,null,null,"Select from Drop Down","Select from Drop Down","Select from Drop Down",null,null,null,null,null,null,null,null,null,null,null,null,"Select from Drop Down","Select from Drop Down","Select from Drop Down"]
[1306,null,null,"Select from Drop Down","Select from Drop Down","Select from Drop Down",null,null,null,null,null,null,null,null,null,null,null,null,"Select from Drop Down","Select from Drop Down","Select from Drop Down"]
[1307,null,null,"Select from Drop Down","Select from Drop Down","Select from Drop Down",null,null,null,null,null,null,null,null,null,null,null,null,"Select from Drop Down","Select from Drop Down","Select from Drop Down"]
[1308,null,null,"Select from Drop Down","Select from Drop Down","Select from Drop Down",null,null,null,null,null,null,null,null,null,null,null,null,"Select from Drop Down","Select from Drop Down","Select from Drop Down"]
[1309,null,null,"Select from Drop Down","Select from Drop Down","Select from Drop Down",null,null,null,null,null,null,null,null,null,null,null,null,"Select from Drop Down","Select from Drop Down","Select from Drop Down"]
[1310,null,null,"Select from Drop Down","Select from Drop Down","Select from Drop Down",null,null,null,null,null,null,null,null,null,null,null,null,"Select from Drop Down","Select from Drop Down","Select from Drop Down"]
[1311,null,null,"Select from Drop Down","Select from Drop Down","Select from Drop Down",null,null,null,null,null,null,null,null,null,null,null,null,"Select from Drop Down","Select from Drop Down","Select from Drop Down"]
[1312,null,null,"Select from Drop Down","Select from Drop Down","Select from Drop Down",null,null,null,null,null,null,null,null,null,null,null,null,"Select from Drop Down","Select from Drop Down","Select from Drop Down"]
[1313,null,null,"Select from Drop Down","Select from Drop Down","Select from Drop Down",null,null,null,null,null,null,null,null,null,null,null,null,"Select from Drop Down","Select from Drop Down","Select from Drop Down"]
[1314,null,null,"Select from Drop Down","Select from Drop Down","Select from Drop Down",null,null,null,null,null,null,null,null,null,null,null,null,"Select from Drop Down","Select from Drop Down","Select from Drop Down"]
[1315,null,null,"Select from Drop Down","Select from Drop Down","Select from Drop Down",null,null,null,null,null,null,null,null,null,null,null,null,"Select from Drop Down","Select from Drop Down","Select from Drop Down"]
[1316,null,null,"Select from Drop Down","Select from Drop Down","Select from Drop Down",null,null,null,null,null,null,null,null,null,null,null,null,"Select from Drop Down","Select from Drop Down","Select from Drop Down"]
[1317,null,null,"Select from Drop Down","Select from Drop Down","Select from Drop Down",null,null,null,null,null,null,null,null,null,null,null,null,"Select from Drop Down","Select from Drop Down","Select from Drop Down"]
[1318,null,null,"Select from Drop Down","Select from Drop Down","Select from Drop Down",null,null,null,null,null,null,null,null,null,null,null,null,"Select from Drop Down","Select from Drop Down","Select from Drop Down"]
[1319,null,null,"Select from Drop Down","Select from Drop Down","Select from Drop Down",null,null,null,null,null,null,null,null,null,null,null,null,"Select from Drop Down","Select from Drop Down","Select from Drop Down"]
[1320,null,null,"Select from Drop Down","Select from Drop Down","Select from Drop Down",null,null,null,null,null,null,null,null,null,null,null,null,"Select from Drop Down","Select from Drop Down","Select from Drop Down"]
[1321,null,null,"Select from Drop Down","Select from Drop Down","Select from Drop Down",null,null,null,null,null,null,null,null,null,null,null,null,"Select from Drop Down","Select from Drop Down","Select from Drop Down"]
[1322,null,null,"Select from Drop Down","Select from Drop Down","Select from Drop Down",null,null,null,null,null,null,null,null,null,null,null,null,"Select from Drop Down","Select from Drop Down","Select from Drop Down"]
[1323,null,null,"Select from Drop Down","Select from Drop Down","Select from Drop Down",null,null,null,null,null,null,null,null,null,null,null,null,"Select from Drop Down","Select from Drop Down","Select from Drop Down"]
[1324,null,null,"Select from Drop Down","Select from Drop Down","Select from Drop Down",null,null,null,null,null,null,null,null,null,null,null,null,"Select from Drop Down","Select from Drop Down","Select from Drop Down"]
[1325,null,null,"Select from Drop Down","Select from Drop Down","Select from Drop Down",null,null,null,null,null,null,null,null,null,null,null,null,"Select from Drop Down","Select from Drop Down","Select from Drop Down"]
[1326,null,null,"Select from Drop Down","Select from Drop Down","Select from Drop Down",null,null,null,null,null,null,null,null,null,null,null,null,"Select from Drop Down","Select from Drop Down","Select from Drop Down"]
[1327,null,null,"Select from Drop Down","Select from Drop Down","Select from Drop Down",null,null,null,null,null,null,null,null,null,null,null,null,"Select from Drop Down","Select from Drop Down","Select from Drop Down"]
[1328,null,null,"Select from Drop Down","Select from Drop Down","Select from Drop Down",null,null,null,null,null,null,null,null,null,null,null,null,"Select from Drop Down","Select from Drop Down","Select from Drop Down"]
[1329,null,null,"Select from Drop Down","Select from Drop Down","Select from Drop Down",null,null,null,null,null,null,null,null,null,null,null,null,"Select from Drop Down","Select from Drop Down","Select from Drop Down"]
[1330,null,null,"Select from Drop Down","Select from Drop Down","Select from Drop Down",null,null,null,null,null,null,null,null,null,null,null,null,"Select from Drop Down","Select from Drop Down","Select from Drop Down"]
[1331,null,null,"Select from Drop Down","Select from Drop Down","Select from Drop Down",null,null,null,null,null,null,null,null,null,null,null,null,"Select from Drop Down","Select from Drop Down","Select from Drop Down"]
[1332,null,null,"Select from Drop Down","Select from Drop Down","Select from Drop Down",null,null,null,null,null,null,null,null,null,null,null,null,"Select from Drop Down","Select from Drop Down","Select from Drop Down"]
[1333,null,null,"Select from Drop Down","Select from Drop Down","Select from Drop Down",null,null,null,null,null,null,null,null,null,null,null,null,"Select from Drop Down","Select from Drop Down","Select from Drop Down"]
[1334,null,null,"Select from Drop Down","Select from Drop Down","Select from Drop Down",null,null,null,null,null,null,null,null,null,null,null,null,"Select from Drop Down","Select from Drop Down","Select from Drop Down"]
[1335,null,null,"Select from Drop Down","Select from Drop Down","Select from Drop Down",null,null,null,null,null,null,null,null,null,null,null,null,"Select from Drop Down","Select from Drop Down","Select from Drop Down"]
[1336,null,null,"Select from Drop Down","Select from Drop Down","Select from Drop Down",null,null,null,null,null,null,null,null,null,null,null,null,"Select from Drop Down","Select from Drop Down","Select from Drop Down"]
[1337,null,null,"Select from Drop Down","Select from Drop Down","Select from Drop Down",null,null,null,null,null,null,null,null,null,null,null,null,"Select from Drop Down","Select from Drop Down","Select from Drop Down"]
[1338,null,null,"Select from Drop Down","Select from Drop Down","Select from Drop Down",null,null,null,null,null,null,null,null,null,null,null,null,"Select from Drop Down","Select from Drop Down","Select from Drop Down"]
[1339,null,null,"Select from Drop Down","Select from Drop Down","Select from Drop Down",null,null,null,null,null,null,null,null,null,null,null,null,"Select from Drop Down","Select from Drop Down","Select from Drop Down"]
[1340,null,null,"Select from Drop Down","Select from Drop Down","Select from Drop Down",null,null,null,null,null,null,null,null,null,null,null,null,"Select from Drop Down","Select from Drop Down","Select from Drop Down"]
[1341,null,null,"Select from Drop Down","Select from Drop Down","Select from Drop Down",null,null,null,null,null,null,null,null,null,null,null,null,"Select from Drop Down","Select from Drop Down","Select from Drop Down"]
[1342,null,null,"Select from Drop Down","Select from Drop Down","Select from Drop Down",null,null,null,null,null,null,null,null,null,null,null,null,"Select from Drop Down","Select from Drop Down","Select from Drop Down"]
[1343,null,null,"Select from Drop Down","Select from Drop Down","Select from Drop Down",null,null,null,null,null,null,null,null,null,null,null,null,"Select from Drop Down","Select from Drop Down","Select from Drop Down"]
[1344,null,null,"Select from Drop Down","Select from Drop Down","Select from Drop Down",null,null,null,null,null,null,null,null,null,null,null,null,"Select from Drop Down","Select from Drop Down","Select from Drop Down"]
[1345,null,null,"Select from Drop Down","Select from Drop Down","Select from Drop Down",null,null,null,null,null,null,null,null,null,null,null,null,"Select from Drop Down","Select from Drop Down","Select from Drop Down"]
[1346,null,null,"Select from Drop Down","Select from Drop Down","Select from Drop Down",null,null,null,null,null,null,null,null,null,null,null,null,"Select from Drop Down","Select from Drop Down","Select from Drop Down"]
[{"$f":"A1356+1","v":1347},null,null,"Select from Drop Down","Select from Drop Down","Select from Drop Down",null,null,null,null,null,null,null,null,null,null,null,null,"Select from Drop Down","Select from Drop Down","Select from Drop Down"]
[1348,null,null,"Select from Drop Down","Select from Drop Down","Select from Drop Down",null,null,null,null,null,null,null,null,null,null,null,null,"Select from Drop Down","Select from Drop Down","Select from Drop Down"]
[1349,null,null,"Select from Drop Down","Select from Drop Down","Select from Drop Down",null,null,null,null,null,null,null,null,null,null,null,null,"Select from Drop Down","Select from Drop Down","Select from Drop Down"]
[1350,null,null,"Select from Drop Down","Select from Drop Down","Select from Drop Down",null,null,null,null,null,null,null,null,null,null,null,null,"Select from Drop Down","Select from Drop Down","Select from Drop Down"]
[1351,null,null,"Select from Drop Down","Select from Drop Down","Select from Drop Down",null,null,null,null,null,null,null,null,null,null,null,null,"Select from Drop Down","Select from Drop Down","Select from Drop Down"]
[1352,null,null,"Select from Drop Down","Select from Drop Down","Select from Drop Down",null,null,null,null,null,null,null,null,null,null,null,null,"Select from Drop Down","Select from Drop Down","Select from Drop Down"]
[1353,null,null,"Select from Drop Down","Select from Drop Down","Select from Drop Down",null,null,null,null,null,null,null,null,null,null,null,null,"Select from Drop Down","Select from Drop Down","Select from Drop Down"]
[1354,null,null,"Select from Drop Down","Select from Drop Down","Select from Drop Down",null,null,null,null,null,null,null,null,null,null,null,null,"Select from Drop Down","Select from Drop Down","Select from Drop Down"]
[1355,null,null,"Select from Drop Down","Select from Drop Down","Select from Drop Down",null,null,null,null,null,null,null,null,null,null,null,null,"Select from Drop Down","Select from Drop Down","Select from Drop Down"]
[1356,null,null,"Select from Drop Down","Select from Drop Down","Select from Drop Down",null,null,null,null,null,null,null,null,null,null,null,null,"Select from Drop Down","Select from Drop Down","Select from Drop Down"]
[1357,null,null,"Select from Drop Down","Select from Drop Down","Select from Drop Down",null,null,null,null,null,null,null,null,null,null,null,null,"Select from Drop Down","Select from Drop Down","Select from Drop Down"]
[1358,null,null,"Select from Drop Down","Select from Drop Down","Select from Drop Down",null,null,null,null,null,null,null,null,null,null,null,null,"Select from Drop Down","Select from Drop Down","Select from Drop Down"]
[1359,null,null,"Select from Drop Down","Select from Drop Down","Select from Drop Down",null,null,null,null,null,null,null,null,null,null,null,null,"Select from Drop Down","Select from Drop Down","Select from Drop Down"]
[1360,null,null,"Select from Drop Down","Select from Drop Down","Select from Drop Down",null,null,null,null,null,null,null,null,null,null,null,null,"Select from Drop Down","Select from Drop Down","Select from Drop Down"]
[1361,null,null,"Select from Drop Down","Select from Drop Down","Select from Drop Down",null,null,null,null,null,null,null,null,null,null,null,null,"Select from Drop Down","Select from Drop Down","Select from Drop Down"]
[1362,null,null,"Select from Drop Down","Select from Drop Down","Select from Drop Down",null,null,null,null,null,null,null,null,null,null,null,null,"Select from Drop Down","Select from Drop Down","Select from Drop Down"]
[1363,null,null,"Select from Drop Down","Select from Drop Down","Select from Drop Down",null,null,null,null,null,null,null,null,null,null,null,null,"Select from Drop Down","Select from Drop Down","Select from Drop Down"]
[1364,null,null,"Select from Drop Down","Select from Drop Down","Select from Drop Down",null,null,null,null,null,null,null,null,null,null,null,null,"Select from Drop Down","Select from Drop Down","Select from Drop Down"]
[1365,null,null,"Select from Drop Down","Select from Drop Down","Select from Drop Down",null,null,null,null,null,null,null,null,null,null,null,null,"Select from Drop Down","Select from Drop Down","Select from Drop Down"]
[1366,null,null,"Select from Drop Down","Select from Drop Down","Select from Drop Down",null,null,null,null,null,null,null,null,null,null,null,null,"Select from Drop Down","Select from Drop Down","Select from Drop Down"]
[1367,null,null,"Select from Drop Down","Select from Drop Down","Select from Drop Down",null,null,null,null,null,null,null,null,null,null,null,null,"Select from Drop Down","Select from Drop Down","Select from Drop Down"]
[1368,null,null,"Select from Drop Down","Select from Drop Down","Select from Drop Down",null,null,null,null,null,null,null,null,null,null,null,null,"Select from Drop Down","Select from Drop Down","Select from Drop Down"]
[1369,null,null,"Select from Drop Down","Select from Drop Down","Select from Drop Down",null,null,null,null,null,null,null,null,null,null,null,null,"Select from Drop Down","Select from Drop Down","Select from Drop Down"]
[1370,null,null,"Select from Drop Down","Select from Drop Down","Select from Drop Down",null,null,null,null,null,null,null,null,null,null,null,null,"Select from Drop Down","Select from Drop Down","Select from Drop Down"]
[1371,null,null,"Select from Drop Down","Select from Drop Down","Select from Drop Down",null,null,null,null,null,null,null,null,null,null,null,null,"Select from Drop Down","Select from Drop Down","Select from Drop Down"]
[1372,null,null,"Select from Drop Down","Select from Drop Down","Select from Drop Down",null,null,null,null,null,null,null,null,null,null,null,null,"Select from Drop Down","Select from Drop Down","Select from Drop Down"]
[1373,null,null,"Select from Drop Down","Select from Drop Down","Select from Drop Down",null,null,null,null,null,null,null,null,null,null,null,null,"Select from Drop Down","Select from Drop Down","Select from Drop Down"]
[1374,null,null,"Select from Drop Down","Select from Drop Down","Select from Drop Down",null,null,null,null,null,null,null,null,null,null,null,null,"Select from Drop Down","Select from Drop Down","Select from Drop Down"]
[1375,null,null,"Select from Drop Down","Select from Drop Down","Select from Drop Down",null,null,null,null,null,null,null,null,null,null,null,null,"Select from Drop Down","Select from Drop Down","Select from Drop Down"]
[1376,null,null,"Select from Drop Down","Select from Drop Down","Select from Drop Down",null,null,null,null,null,null,null,null,null,null,null,null,"Select from Drop Down","Select from Drop Down","Select from Drop Down"]
[1377,null,null,"Select from Drop Down","Select from Drop Down","Select from Drop Down",null,null,null,null,null,null,null,null,null,null,null,null,"Select from Drop Down","Select from Drop Down","Select from Drop Down"]
[1378,null,null,"Select from Drop Down","Select from Drop Down","Select from Drop Down",null,null,null,null,null,null,null,null,null,null,null,null,"Select from Drop Down","Select from Drop Down","Select from Drop Down"]
[1379,null,null,"Select from Drop Down","Select from Drop Down","Select from Drop Down",null,null,null,null,null,null,null,null,null,null,null,null,"Select from Drop Down","Select from Drop Down","Select from Drop Down"]
[1380,null,null,"Select from Drop Down","Select from Drop Down","Select from Drop Down",null,null,null,null,null,null,null,null,null,null,null,null,"Select from Drop Down","Select from Drop Down","Select from Drop Down"]
[1381,null,null,"Select from Drop Down","Select from Drop Down","Select from Drop Down",null,null,null,null,null,null,null,null,null,null,null,null,"Select from Drop Down","Select from Drop Down","Select from Drop Down"]
[1382,null,null,"Select from Drop Down","Select from Drop Down","Select from Drop Down",null,null,null,null,null,null,null,null,null,null,null,null,"Select from Drop Down","Select from Drop Down","Select from Drop Down"]
[1383,null,null,"Select from Drop Down","Select from Drop Down","Select from Drop Down",null,null,null,null,null,null,null,null,null,null,null,null,"Select from Drop Down","Select from Drop Down","Select from Drop Down"]
[1384,null,null,"Select from Drop Down","Select from Drop Down","Select from Drop Down",null,null,null,null,null,null,null,null,null,null,null,null,"Select from Drop Down","Select from Drop Down","Select from Drop Down"]
[1385,null,null,"Select from Drop Down","Select from Drop Down","Select from Drop Down",null,null,null,null,null,null,null,null,null,null,null,null,"Select from Drop Down","Select from Drop Down","Select from Drop Down"]
[1386,null,null,"Select from Drop Down","Select from Drop Down","Select from Drop Down",null,null,null,null,null,null,null,null,null,null,null,null,"Select from Drop Down","Select from Drop Down","Select from Drop Down"]
[1387,null,null,"Select from Drop Down","Select from Drop Down","Select from Drop Down",null,null,null,null,null,null,null,null,null,null,null,null,"Select from Drop Down","Select from Drop Down","Select from Drop Down"]
[1388,null,null,"Select from Drop Down","Select from Drop Down","Select from Drop Down",null,null,null,null,null,null,null,null,null,null,null,null,"Select from Drop Down","Select from Drop Down","Select from Drop Down"]
[1389,null,null,"Select from Drop Down","Select from Drop Down","Select from Drop Down",null,null,null,null,null,null,null,null,null,null,null,null,"Select from Drop Down","Select from Drop Down","Select from Drop Down"]
[1390,null,null,"Select from Drop Down","Select from Drop Down","Select from Drop Down",null,null,null,null,null,null,null,null,null,null,null,null,"Select from Drop Down","Select from Drop Down","Select from Drop Down"]
[1391,null,null,"Select from Drop Down","Select from Drop Down","Select from Drop Down",null,null,null,null,null,null,null,null,null,null,null,null,"Select from Drop Down","Select from Drop Down","Select from Drop Down"]
[1392,null,null,"Select from Drop Down","Select from Drop Down","Select from Drop Down",null,null,null,null,null,null,null,null,null,null,null,null,"Select from Drop Down","Select from Drop Down","Select from Drop Down"]
[1393,null,null,"Select from Drop Down","Select from Drop Down","Select from Drop Down",null,null,null,null,null,null,null,null,null,null,null,null,"Select from Drop Down","Select from Drop Down","Select from Drop Down"]
[1394,null,null,"Select from Drop Down","Select from Drop Down","Select from Drop Down",null,null,null,null,null,null,null,null,null,null,null,null,"Select from Drop Down","Select from Drop Down","Select from Drop Down"]
[1395,null,null,"Select from Drop Down","Select from Drop Down","Select from Drop Down",null,null,null,null,null,null,null,null,null,null,null,null,"Select from Drop Down","Select from Drop Down","Select from Drop Down"]
[1396,null,null,"Select from Drop Down","Select from Drop Down","Select from Drop Down",null,null,null,null,null,null,null,null,null,null,null,null,"Select from Drop Down","Select from Drop Down","Select from Drop Down"]
[1397,null,null,"Select from Drop Down","Select from Drop Down","Select from Drop Down",null,null,null,null,null,null,null,null,null,null,null,null,"Select from Drop Down","Select from Drop Down","Select from Drop Down"]
[1398,null,null,"Select from Drop Down","Select from Drop Down","Select from Drop Down",null,null,null,null,null,null,null,null,null,null,null,null,"Select from Drop Down","Select from Drop Down","Select from Drop Down"]
[1399,null,null,"Select from Drop Down","Select from Drop Down","Select from Drop Down",null,null,null,null,null,null,null,null,null,null,null,null,"Select from Drop Down","Select from Drop Down","Select from Drop Down"]
[1400,null,null,"Select from Drop Down","Select from Drop Down","Select from Drop Down",null,null,null,null,null,null,null,null,null,null,null,null,"Select from Drop Down","Select from Drop Down","Select from Drop Down"]
[1401,null,null,"Select from Drop Down","Select from Drop Down","Select from Drop Down",null,null,null,null,null,null,null,null,null,null,null,null,"Select from Drop Down","Select from Drop Down","Select from Drop Down"]
[1402,null,null,"Select from Drop Down","Select from Drop Down","Select from Drop Down",null,null,null,null,null,null,null,null,null,null,null,null,"Select from Drop Down","Select from Drop Down","Select from Drop Down"]
[1403,null,null,"Select from Drop Down","Select from Drop Down","Select from Drop Down",null,null,null,null,null,null,null,null,null,null,null,null,"Select from Drop Down","Select from Drop Down","Select from Drop Down"]
[1404,null,null,"Select from Drop Down","Select from Drop Down","Select from Drop Down",null,null,null,null,null,null,null,null,null,null,null,null,"Select from Drop Down","Select from Drop Down","Select from Drop Down"]
[1405,null,null,"Select from Drop Down","Select from Drop Down","Select from Drop Down",null,null,null,null,null,null,null,null,null,null,null,null,"Select from Drop Down","Select from Drop Down","Select from Drop Down"]
[1406,null,null,"Select from Drop Down","Select from Drop Down","Select from Drop Down",null,null,null,null,null,null,null,null,null,null,null,null,"Select from Drop Down","Select from Drop Down","Select from Drop Down"]
[1407,null,null,"Select from Drop Down","Select from Drop Down","Select from Drop Down",null,null,null,null,null,null,null,null,null,null,null,null,"Select from Drop Down","Select from Drop Down","Select from Drop Down"]
[1408,null,null,"Select from Drop Down","Select from Drop Down","Select from Drop Down",null,null,null,null,null,null,null,null,null,null,null,null,"Select from Drop Down","Select from Drop Down","Select from Drop Down"]
[1409,null,null,"Select from Drop Down","Select from Drop Down","Select from Drop Down",null,null,null,null,null,null,null,null,null,null,null,null,"Select from Drop Down","Select from Drop Down","Select from Drop Down"]
[1410,null,null,"Select from Drop Down","Select from Drop Down","Select from Drop Down",null,null,null,null,null,null,null,null,null,null,null,null,"Select from Drop Down","Select from Drop Down","Select from Drop Down"]
[{"$f":"A1420+1","v":1411},null,null,"Select from Drop Down","Select from Drop Down","Select from Drop Down",null,null,null,null,null,null,null,null,null,null,null,null,"Select from Drop Down","Select from Drop Down","Select from Drop Down"]
[1412,null,null,"Select from Drop Down","Select from Drop Down","Select from Drop Down",null,null,null,null,null,null,null,null,null,null,null,null,"Select from Drop Down","Select from Drop Down","Select from Drop Down"]
[1413,null,null,"Select from Drop Down","Select from Drop Down","Select from Drop Down",null,null,null,null,null,null,null,null,null,null,null,null,"Select from Drop Down","Select from Drop Down","Select from Drop Down"]
[1414,null,null,"Select from Drop Down","Select from Drop Down","Select from Drop Down",null,null,null,null,null,null,null,null,null,null,null,null,"Select from Drop Down","Select from Drop Down","Select from Drop Down"]
[1415,null,null,"Select from Drop Down","Select from Drop Down","Select from Drop Down",null,null,null,null,null,null,null,null,null,null,null,null,"Select from Drop Down","Select from Drop Down","Select from Drop Down"]
[1416,null,null,"Select from Drop Down","Select from Drop Down","Select from Drop Down",null,null,null,null,null,null,null,null,null,null,null,null,"Select from Drop Down","Select from Drop Down","Select from Drop Down"]
[1417,null,null,"Select from Drop Down","Select from Drop Down","Select from Drop Down",null,null,null,null,null,null,null,null,null,null,null,null,"Select from Drop Down","Select from Drop Down","Select from Drop Down"]
[1418,null,null,"Select from Drop Down","Select from Drop Down","Select from Drop Down",null,null,null,null,null,null,null,null,null,null,null,null,"Select from Drop Down","Select from Drop Down","Select from Drop Down"]
[1419,null,null,"Select from Drop Down","Select from Drop Down","Select from Drop Down",null,null,null,null,null,null,null,null,null,null,null,null,"Select from Drop Down","Select from Drop Down","Select from Drop Down"]
[1420,null,null,"Select from Drop Down","Select from Drop Down","Select from Drop Down",null,null,null,null,null,null,null,null,null,null,null,null,"Select from Drop Down","Select from Drop Down","Select from Drop Down"]
[1421,null,null,"Select from Drop Down","Select from Drop Down","Select from Drop Down",null,null,null,null,null,null,null,null,null,null,null,null,"Select from Drop Down","Select from Drop Down","Select from Drop Down"]
[1422,null,null,"Select from Drop Down","Select from Drop Down","Select from Drop Down",null,null,null,null,null,null,null,null,null,null,null,null,"Select from Drop Down","Select from Drop Down","Select from Drop Down"]
[1423,null,null,"Select from Drop Down","Select from Drop Down","Select from Drop Down",null,null,null,null,null,null,null,null,null,null,null,null,"Select from Drop Down","Select from Drop Down","Select from Drop Down"]
[1424,null,null,"Select from Drop Down","Select from Drop Down","Select from Drop Down",null,null,null,null,null,null,null,null,null,null,null,null,"Select from Drop Down","Select from Drop Down","Select from Drop Down"]
[1425,null,null,"Select from Drop Down","Select from Drop Down","Select from Drop Down",null,null,null,null,null,null,null,null,null,null,null,null,"Select from Drop Down","Select from Drop Down","Select from Drop Down"]
[1426,null,null,"Select from Drop Down","Select from Drop Down","Select from Drop Down",null,null,null,null,null,null,null,null,null,null,null,null,"Select from Drop Down","Select from Drop Down","Select from Drop Down"]
[1427,null,null,"Select from Drop Down","Select from Drop Down","Select from Drop Down",null,null,null,null,null,null,null,null,null,null,null,null,"Select from Drop Down","Select from Drop Down","Select from Drop Down"]
[1428,null,null,"Select from Drop Down","Select from Drop Down","Select from Drop Down",null,null,null,null,null,null,null,null,null,null,null,null,"Select from Drop Down","Select from Drop Down","Select from Drop Down"]
[1429,null,null,"Select from Drop Down","Select from Drop Down","Select from Drop Down",null,null,null,null,null,null,null,null,null,null,null,null,"Select from Drop Down","Select from Drop Down","Select from Drop Down"]
[1430,null,null,"Select from Drop Down","Select from Drop Down","Select from Drop Down",null,null,null,null,null,null,null,null,null,null,null,null,"Select from Drop Down","Select from Drop Down","Select from Drop Down"]
[1431,null,null,"Select from Drop Down","Select from Drop Down","Select from Drop Down",null,null,null,null,null,null,null,null,null,null,null,null,"Select from Drop Down","Select from Drop Down","Select from Drop Down"]
[1432,null,null,"Select from Drop Down","Select from Drop Down","Select from Drop Down",null,null,null,null,null,null,null,null,null,null,null,null,"Select from Drop Down","Select from Drop Down","Select from Drop Down"]
[1433,null,null,"Select from Drop Down","Select from Drop Down","Select from Drop Down",null,null,null,null,null,null,null,null,null,null,null,null,"Select from Drop Down","Select from Drop Down","Select from Drop Down"]
[1434,null,null,"Select from Drop Down","Select from Drop Down","Select from Drop Down",null,null,null,null,null,null,null,null,null,null,null,null,"Select from Drop Down","Select from Drop Down","Select from Drop Down"]
[1435,null,null,"Select from Drop Down","Select from Drop Down","Select from Drop Down",null,null,null,null,null,null,null,null,null,null,null,null,"Select from Drop Down","Select from Drop Down","Select from Drop Down"]
[1436,null,null,"Select from Drop Down","Select from Drop Down","Select from Drop Down",null,null,null,null,null,null,null,null,null,null,null,null,"Select from Drop Down","Select from Drop Down","Select from Drop Down"]
[1437,null,null,"Select from Drop Down","Select from Drop Down","Select from Drop Down",null,null,null,null,null,null,null,null,null,null,null,null,"Select from Drop Down","Select from Drop Down","Select from Drop Down"]
[1438,null,null,"Select from Drop Down","Select from Drop Down","Select from Drop Down",null,null,null,null,null,null,null,null,null,null,null,null,"Select from Drop Down","Select from Drop Down","Select from Drop Down"]
[1439,null,null,"Select from Drop Down","Select from Drop Down","Select from Drop Down",null,null,null,null,null,null,null,null,null,null,null,null,"Select from Drop Down","Select from Drop Down","Select from Drop Down"]
[1440,null,null,"Select from Drop Down","Select from Drop Down","Select from Drop Down",null,null,null,null,null,null,null,null,null,null,null,null,"Select from Drop Down","Select from Drop Down","Select from Drop Down"]
[1441,null,null,"Select from Drop Down","Select from Drop Down","Select from Drop Down",null,null,null,null,null,null,null,null,null,null,null,null,"Select from Drop Down","Select from Drop Down","Select from Drop Down"]
[1442,null,null,"Select from Drop Down","Select from Drop Down","Select from Drop Down",null,null,null,null,null,null,null,null,null,null,null,null,"Select from Drop Down","Select from Drop Down","Select from Drop Down"]
[1443,null,null,"Select from Drop Down","Select from Drop Down","Select from Drop Down",null,null,null,null,null,null,null,null,null,null,null,null,"Select from Drop Down","Select from Drop Down","Select from Drop Down"]
[1444,null,null,"Select from Drop Down","Select from Drop Down","Select from Drop Down",null,null,null,null,null,null,null,null,null,null,null,null,"Select from Drop Down","Select from Drop Down","Select from Drop Down"]
[1445,null,null,"Select from Drop Down","Select from Drop Down","Select from Drop Down",null,null,null,null,null,null,null,null,null,null,null,null,"Select from Drop Down","Select from Drop Down","Select from Drop Down"]
[1446,null,null,"Select from Drop Down","Select from Drop Down","Select from Drop Down",null,null,null,null,null,null,null,null,null,null,null,null,"Select from Drop Down","Select from Drop Down","Select from Drop Down"]
[1447,null,null,"Select from Drop Down","Select from Drop Down","Select from Drop Down",null,null,null,null,null,null,null,null,null,null,null,null,"Select from Drop Down","Select from Drop Down","Select from Drop Down"]
[1448,null,null,"Select from Drop Down","Select from Drop Down","Select from Drop Down",null,null,null,null,null,null,null,null,null,null,null,null,"Select from Drop Down","Select from Drop Down","Select from Drop Down"]
[1449,null,null,"Select from Drop Down","Select from Drop Down","Select from Drop Down",null,null,null,null,null,null,null,null,null,null,null,null,"Select from Drop Down","Select from Drop Down","Select from Drop Down"]
[1450,null,null,"Select from Drop Down","Select from Drop Down","Select from Drop Down",null,null,null,null,null,null,null,null,null,null,null,null,"Select from Drop Down","Select from Drop Down","Select from Drop Down"]
[1451,null,null,"Select from Drop Down","Select from Drop Down","Select from Drop Down",null,null,null,null,null,null,null,null,null,null,null,null,"Select from Drop Down","Select from Drop Down","Select from Drop Down"]
[1452,null,null,"Select from Drop Down","Select from Drop Down","Select from Drop Down",null,null,null,null,null,null,null,null,null,null,null,null,"Select from Drop Down","Select from Drop Down","Select from Drop Down"]
[1453,null,null,"Select from Drop Down","Select from Drop Down","Select from Drop Down",null,null,null,null,null,null,null,null,null,null,null,null,"Select from Drop Down","Select from Drop Down","Select from Drop Down"]
[1454,null,null,"Select from Drop Down","Select from Drop Down","Select from Drop Down",null,null,null,null,null,null,null,null,null,null,null,null,"Select from Drop Down","Select from Drop Down","Select from Drop Down"]
[1455,null,null,"Select from Drop Down","Select from Drop Down","Select from Drop Down",null,null,null,null,null,null,null,null,null,null,null,null,"Select from Drop Down","Select from Drop Down","Select from Drop Down"]
[1456,null,null,"Select from Drop Down","Select from Drop Down","Select from Drop Down",null,null,null,null,null,null,null,null,null,null,null,null,"Select from Drop Down","Select from Drop Down","Select from Drop Down"]
[1457,null,null,"Select from Drop Down","Select from Drop Down","Select from Drop Down",null,null,null,null,null,null,null,null,null,null,null,null,"Select from Drop Down","Select from Drop Down","Select from Drop Down"]
[1458,null,null,"Select from Drop Down","Select from Drop Down","Select from Drop Down",null,null,null,null,null,null,null,null,null,null,null,null,"Select from Drop Down","Select from Drop Down","Select from Drop Down"]
[1459,null,null,"Select from Drop Down","Select from Drop Down","Select from Drop Down",null,null,null,null,null,null,null,null,null,null,null,null,"Select from Drop Down","Select from Drop Down","Select from Drop Down"]
[1460,null,null,"Select from Drop Down","Select from Drop Down","Select from Drop Down",null,null,null,null,null,null,null,null,null,null,null,null,"Select from Drop Down","Select from Drop Down","Select from Drop Down"]
[1461,null,null,"Select from Drop Down","Select from Drop Down","Select from Drop Down",null,null,null,null,null,null,null,null,null,null,null,null,"Select from Drop Down","Select from Drop Down","Select from Drop Down"]
[1462,null,null,"Select from Drop Down","Select from Drop Down","Select from Drop Down",null,null,null,null,null,null,null,null,null,null,null,null,"Select from Drop Down","Select from Drop Down","Select from Drop Down"]
[1463,null,null,"Select from Drop Down","Select from Drop Down","Select from Drop Down",null,null,null,null,null,null,null,null,null,null,null,null,"Select from Drop Down","Select from Drop Down","Select from Drop Down"]
[1464,null,null,"Select from Drop Down","Select from Drop Down","Select from Drop Down",null,null,null,null,null,null,null,null,null,null,null,null,"Select from Drop Down","Select from Drop Down","Select from Drop Down"]
[1465,null,null,"Select from Drop Down","Select from Drop Down","Select from Drop Down",null,null,null,null,null,null,null,null,null,null,null,null,"Select from Drop Down","Select from Drop Down","Select from Drop Down"]
[1466,null,null,"Select from Drop Down","Select from Drop Down","Select from Drop Down",null,null,null,null,null,null,null,null,null,null,null,null,"Select from Drop Down","Select from Drop Down","Select from Drop Down"]
[1467,null,null,"Select from Drop Down","Select from Drop Down","Select from Drop Down",null,null,null,null,null,null,null,null,null,null,null,null,"Select from Drop Down","Select from Drop Down","Select from Drop Down"]
[1468,null,null,"Select from Drop Down","Select from Drop Down","Select from Drop Down",null,null,null,null,null,null,null,null,null,null,null,null,"Select from Drop Down","Select from Drop Down","Select from Drop Down"]
[1469,null,null,"Select from Drop Down","Select from Drop Down","Select from Drop Down",null,null,null,null,null,null,null,null,null,null,null,null,"Select from Drop Down","Select from Drop Down","Select from Drop Down"]
[1470,null,null,"Select from Drop Down","Select from Drop Down","Select from Drop Down",null,null,null,null,null,null,null,null,null,null,null,null,"Select from Drop Down","Select from Drop Down","Select from Drop Down"]
[1471,null,null,"Select from Drop Down","Select from Drop Down","Select from Drop Down",null,null,null,null,null,null,null,null,null,null,null,null,"Select from Drop Down","Select from Drop Down","Select from Drop Down"]
[1472,null,null,"Select from Drop Down","Select from Drop Down","Select from Drop Down",null,null,null,null,null,null,null,null,null,null,null,null,"Select from Drop Down","Select from Drop Down","Select from Drop Down"]
[1473,null,null,"Select from Drop Down","Select from Drop Down","Select from Drop Down",null,null,null,null,null,null,null,null,null,null,null,null,"Select from Drop Down","Select from Drop Down","Select from Drop Down"]
[1474,null,null,"Select from Drop Down","Select from Drop Down","Select from Drop Down",null,null,null,null,null,null,null,null,null,null,null,null,"Select from Drop Down","Select from Drop Down","Select from Drop Down"]
[{"$f":"A1484+1","v":1475},null,null,"Select from Drop Down","Select from Drop Down","Select from Drop Down",null,null,null,null,null,null,null,null,null,null,null,null,"Select from Drop Down","Select from Drop Down","Select from Drop Down"]
[1476,null,null,"Select from Drop Down","Select from Drop Down","Select from Drop Down",null,null,null,null,null,null,null,null,null,null,null,null,"Select from Drop Down","Select from Drop Down","Select from Drop Down"]
[1477,null,null,"Select from Drop Down","Select from Drop Down","Select from Drop Down",null,null,null,null,null,null,null,null,null,null,null,null,"Select from Drop Down","Select from Drop Down","Select from Drop Down"]
[1478,null,null,"Select from Drop Down","Select from Drop Down","Select from Drop Down",null,null,null,null,null,null,null,null,null,null,null,null,"Select from Drop Down","Select from Drop Down","Select from Drop Down"]
[1479,null,null,"Select from Drop Down","Select from Drop Down","Select from Drop Down",null,null,null,null,null,null,null,null,null,null,null,null,"Select from Drop Down","Select from Drop Down","Select from Drop Down"]
[1480,null,null,"Select from Drop Down","Select from Drop Down","Select from Drop Down",null,null,null,null,null,null,null,null,null,null,null,null,"Select from Drop Down","Select from Drop Down","Select from Drop Down"]
[1481,null,null,"Select from Drop Down","Select from Drop Down","Select from Drop Down",null,null,null,null,null,null,null,null,null,null,null,null,"Select from Drop Down","Select from Drop Down","Select from Drop Down"]
[1482,null,null,"Select from Drop Down","Select from Drop Down","Select from Drop Down",null,null,null,null,null,null,null,null,null,null,null,null,"Select from Drop Down","Select from Drop Down","Select from Drop Down"]
[1483,null,null,"Select from Drop Down","Select from Drop Down","Select from Drop Down",null,null,null,null,null,null,null,null,null,null,null,null,"Select from Drop Down","Select from Drop Down","Select from Drop Down"]
[1484,null,null,"Select from Drop Down","Select from Drop Down","Select from Drop Down",null,null,null,null,null,null,null,null,null,null,null,null,"Select from Drop Down","Select from Drop Down","Select from Drop Down"]
[1485,null,null,"Select from Drop Down","Select from Drop Down","Select from Drop Down",null,null,null,null,null,null,null,null,null,null,null,null,"Select from Drop Down","Select from Drop Down","Select from Drop Down"]
[1486,null,null,"Select from Drop Down","Select from Drop Down","Select from Drop Down",null,null,null,null,null,null,null,null,null,null,null,null,"Select from Drop Down","Select from Drop Down","Select from Drop Down"]
[1487,null,null,"Select from Drop Down","Select from Drop Down","Select from Drop Down",null,null,null,null,null,null,null,null,null,null,null,null,"Select from Drop Down","Select from Drop Down","Select from Drop Down"]
[1488,null,null,"Select from Drop Down","Select from Drop Down","Select from Drop Down",null,null,null,null,null,null,null,null,null,null,null,null,"Select from Drop Down","Select from Drop Down","Select from Drop Down"]
[1489,null,null,"Select from Drop Down","Select from Drop Down","Select from Drop Down",null,null,null,null,null,null,null,null,null,null,null,null,"Select from Drop Down","Select from Drop Down","Select from Drop Down"]
[1490,null,null,"Select from Drop Down","Select from Drop Down","Select from Drop Down",null,null,null,null,null,null,null,null,null,null,null,null,"Select from Drop Down","Select from Drop Down","Select from Drop Down"]
[1491,null,null,"Select from Drop Down","Select from Drop Down","Select from Drop Down",null,null,null,null,null,null,null,null,null,null,null,null,"Select from Drop Down","Select from Drop Down","Select from Drop Down"]
[1492,null,null,"Select from Drop Down","Select from Drop Down","Select from Drop Down",null,null,null,null,null,null,null,null,null,null,null,null,"Select from Drop Down","Select from Drop Down","Select from Drop Down"]
[1493,null,null,"Select from Drop Down","Select from Drop Down","Select from Drop Down",null,null,null,null,null,null,null,null,null,null,null,null,"Select from Drop Down","Select from Drop Down","Select from Drop Down"]
[1494,null,null,"Select from Drop Down","Select from Drop Down","Select from Drop Down",null,null,null,null,null,null,null,null,null,null,null,null,"Select from Drop Down","Select from Drop Down","Select from Drop Down"]
[1495,null,null,"Select from Drop Down","Select from Drop Down","Select from Drop Down",null,null,null,null,null,null,null,null,null,null,null,null,"Select from Drop Down","Select from Drop Down","Select from Drop Down"]
[1496,null,null,"Select from Drop Down","Select from Drop Down","Select from Drop Down",null,null,null,null,null,null,null,null,null,null,null,null,"Select from Drop Down","Select from Drop Down","Select from Drop Down"]
[1497,null,null,"Select from Drop Down","Select from Drop Down","Select from Drop Down",null,null,null,null,null,null,null,null,null,null,null,null,"Select from Drop Down","Select from Drop Down","Select from Drop Down"]
[1498,null,null,"Select from Drop Down","Select from Drop Down","Select from Drop Down",null,null,null,null,null,null,null,null,null,null,null,null,"Select from Drop Down","Select from Drop Down","Select from Drop Down"]
[1499,null,null,"Select from Drop Down","Select from Drop Down","Select from Drop Down",null,null,null,null,null,null,null,null,null,null,null,null,"Select from Drop Down","Select from Drop Down","Select from Drop Down"]
[1500,null,null,"Select from Drop Down","Select from Drop Down","Select from Drop Down",null,null,null,null,null,null,null,null,null,null,null,null,"Select from Drop Down","Select from Drop Down","Select from Drop Down"]
[]
[null,"TOTAL",null,null,null,null,{"$f":"SUM(G11:G1510)","v":0},{"$f":"SUM(H11:H1510)","v":0},null,null,null,{"$f":"SUM(L11:L1510)","v":0},0,0,0,0,0,0,null,null,null,{"$f":"SUM(V11:V1510)","v":0}]
[]
[null,"General Comments"]
[null,{"$f":"Import!E9143","v":0}]
[]
[]
[]
[]
[]
[]
[]
[]
[]
[null,null,null,null,null,null,null,null,"Select Yes/No",null,null,null,"Lines of Business",null,null,"Zones",null,null,"Currency",null,"Select from Drop Down","Nature of Collateral"]
[null,null,null,null,null,null,null,null,"Yes",null,null,null,"Select from Drop Down",null,null,"Select from Drop Down",null,null,"Select from Drop Down",null,"AAA","Select from Drop Down"]
[null,null,null,null,null,null,"Select from Drop Down","Select from Drop Down","No",null,null,null,"Property Catastrophe",null,null,"US,",null,null,"USD",null,"AAA-","Money Market Fund"]
[null,null,null,null,null,null,"Indemnity ","Parametric/Industry Loss Warranty",null,"Select from Drop Down",null,null,"Property",null,null,"Europe",null,null,"BP",null,"AA","Letter of Credit "]
[null,null,null,null,null,null,"Excess-of-Loss","Excess-of-Loss",null,"Catastrophe Bond",null,null,"Property Non – Proportional",null,null,"UK",null,null,"Euro",null,"AA-","Funds Withheld"]
[null,null,null,null,null,null,"Industry Loss Warranty","Quota Share",null,"Sidecar",null,null,"Personal Accident",null,null,"Latin America",null,null,"AUD",null,"A","Cash"]
[null,null,null,null,null,null,"Quota Share","Stop Loss",null,"Collateralised Reinsurance",null,null,"Personal Accident Non- Proportional",null,null,"Asia",null,null,"CAD",null,"A-","Sovereign Bonds"]
[null,null,null,null,null,null,"Stop Loss","Index",null,"Mortgage Bond",null,null,"Aviation",null,null,"Africa",null,null,"Yen",null,"BBB","Corporate Bonds"]
[null,null,null,null,null,null,"Other","Ultimate Net Loss ",null,"Other",null,null,"Aviation Non – Proportional",null,null,"Australia",null,null,"Multi Currency",null,"BBB-","IBDR Notes"]
[null,null,null,null,null,null,null,"Other",null,null,null,null,"Credit / Surety ",null,null,"Worldwide",null,null,"Other",null,"BB","Multiple Holdings"]
[null,null,null,null,null,null,null,null,null,null,null,null,"Credit / Surety Non – Proportional",null,null,"Other",null,null,null,null,"BB-","Other"]
[null,null,null,null,null,null,null,null,null,null,null,null,"Energy Offshore / Marine",null,null,null,null,null,null,null,"B"]
[null,null,null,null,null,null,null,null,null,null,null,null,"Energy Offshore / Marine Non - Proportional ",null,null,null,null,null,null,null,"B-"]
[null,null,null,null,null,null,null,null,null,null,null,null,"US Casualty",null,null,null,null,null,null,null,"CCC"]
[null,null,null,null,null,null,null,null,null,null,null,null,"US Casualty Non - Proportional ",null,null,null,null,null,null,null,"CCC or Below"]
[null,null,null,null,null,null,null,null,null,null,null,null,"US Professional"]
[null,null,null,null,null,null,null,null,null,null,null,null,"US Professional Non – Proportional"]
[null,null,null,null,null,null,null,null,null,null,null,null,"US Specialty "]
[null,null,null,null,null,null,null,null,null,null,null,null,"US Specialty Non - Proportional"]
[null,null,null,null,null,null,null,null,null,null,null,null,"International Motor "]
[null,null,null,null,null,null,null,null,null,null,null,null,"International Motor Non – Proportional"]
[null,null,null,null,null,null,null,null,null,null,null,null,"International Casualty Non – Motor "]
[null,null,null,null,null,null,null,null,null,null,null,null,"International Casualty Non Motor Non – Proportional "]
[null,null,null,null,null,null,null,null,null,null,null,null,"Retro Property"]
[null,null,null,null,null,null,null,null,null,null,null,null,"Structured / Finite Reinsurance"]
[null,null,null,null,null,null,null,null,null,null,null,null,"Health"]
[null,null,null,null,null,null,null,null,null,null,null,null,"Weather"]
[]
[null,null,null,null,null,null,null,null,null,null,null,null,"Mortality "]
[null,null,null,null,null,null,null,null,null,null,null,null,"Critical Illness"]
[null,null,null,null,null,null,null,null,null,null,null,null,"Longevity"]
[null,null,null,null,null,null,null,null,null,null,null,null,"Deferred Annuities"]
[null,null,null,null,null,null,null,null,null,null,null,null,"Disability Income: Active lives with premium guarantee"]
[null,null,null,null,null,null,null,null,null,null,null,null,"Disability Income: Actives lives for other accident and sickenss"]
[null,null,null,null,null,null,null,null,null,null,null,null,"Disability Income: Claims in payment "]
[null,null,null,null,null,null,null,null,null,null,null,null,"Disability Income: Claims in payment for other accident and sickness"]
[null,null,null,null,null,null,null,null,null,null,null,null,"Group Life"]
[null,null,null,null,null,null,null,null,null,null,null,null,"Group Disability"]
[null,null,null,null,null,null,null,null,null,null,null,null,"Group Health"]
[null,null,null,null,null,null,null,null,null,null,null,null,"Stop Loss"]
[null,null,null,null,null,null,null,null,null,null,null,null,"Rider"]
[null,null,null,null,null,null,null,null,null,null,null,null,"Variable Annuities"]

{"sheet":"Schedule VI (Unconsolidated)","index":50,"n_rows":38,"n_cols":18,"rows_kept":38,"cut":false,"hidden":true,"merged":[]}
[null,null,"SCHEDULE OF FIXED INCOME SECURITIES",null,null,null,null,null,null,null,null,null,null,null,null,null,null,{"$f":"HYPERLINK(\"#'Index'!A1\",\"Return to Index\")","v":"Return to Index"}]
[null,null,{"$f":"'Company Information'!C7","v":"Enter Company Name"}]
[null,null,{"$f":"'Form 1EBS'!C3","v":"2022-12-31"},null,null,null,null,null,null,null,null,null,null,null,null,null,"SCHEDULE VI"]
[null,null,{"$f":"IF(CONFIGURATION!$B$12>1,\" ['\"&MID(CONFIGURATION!$B$12,2,LEN(CONFIGURATION!$B$12))&\"s]\",\"\")&'Form 1EBS'!C4","v":" ['000s]United States Dollars"}]
[]
[null,null,"Security Type",null,"Amount per Form 1SFS, Lines 2(b) and 3(b)",null,"Face Value",null,"Fair Value",null,"Average YTM",null,"Average Rating",null,"Effective Duration",null,"Effective convexity"]
[]
[null,1,"U.S. Government "]
[null,null,"(a) U.S. Government Federal",null,{"$f":"Import!#REF!","v":{"$error":"#REF!"}},null,{"$f":"Import!#REF!","v":{"$error":"#REF!"}},null,{"$f":"Import!#REF!","v":{"$error":"#REF!"}},null,{"$f":"Import!#REF!","v":{"$error":"#REF!"}},null,{"$f":"Import!#REF!","v":{"$error":"#REF!"}},null,{"$f":"Import!#REF!","v":{"$error":"#REF!"}},null,{"$f":"Import!#REF!","v":{"$error":"#REF!"}}]
[null,null,"(b) U.S. Government Agency - mortgage-backed securities",null,{"$f":"Import!#REF!","v":{"$error":"#REF!"}},null,{"$f":"Import!#REF!","v":{"$error":"#REF!"}},null,{"$f":"Import!#REF!","v":{"$error":"#REF!"}},null,{"$f":"Import!#REF!","v":{"$error":"#REF!"}},null,{"$f":"Import!#REF!","v":{"$error":"#REF!"}},null,{"$f":"Import!#REF!","v":{"$error":"#REF!"}},null,{"$f":"Import!#REF!","v":{"$error":"#REF!"}}]
[null,null,"(c) U.S. Government Agency - other",null,{"$f":"Import!#REF!","v":{"$error":"#REF!"}},null,{"$f":"Import!#REF!","v":{"$error":"#REF!"}},null,{"$f":"Import!#REF!","v":{"$error":"#REF!"}},null,{"$f":"Import!#REF!","v":{"$error":"#REF!"}},null,{"$f":"Import!#REF!","v":{"$error":"#REF!"}},null,{"$f":"Import!#REF!","v":{"$error":"#REF!"}},null,{"$f":"Import!#REF!","v":{"$error":"#REF!"}}]
[null,2,"Non-U.S. Government",null,{"$f":"Import!#REF!","v":{"$error":"#REF!"}},null,{"$f":"Import!#REF!","v":{"$error":"#REF!"}},null,{"$f":"Import!#REF!","v":{"$error":"#REF!"}},null,{"$f":"Import!#REF!","v":{"$error":"#REF!"}},null,{"$f":"Import!#REF!","v":{"$error":"#REF!"}},null,{"$f":"Import!#REF!","v":{"$error":"#REF!"}},null,{"$f":"Import!#REF!","v":{"$error":"#REF!"}}]
[null,3,"States, Municipalities, and Political Subdivision",null,{"$f":"Import!#REF!","v":{"$error":"#REF!"}},null,{"$f":"Import!#REF!","v":{"$error":"#REF!"}},null,{"$f":"Import!#REF!","v":{"$error":"#REF!"}},null,{"$f":"Import!#REF!","v":{"$error":"#REF!"}},null,{"$f":"Import!#REF!","v":{"$error":"#REF!"}},null,{"$f":"Import!#REF!","v":{"$error":"#REF!"}},null,{"$f":"Import!#REF!","v":{"$error":"#REF!"}}]
[null,4,"Corporate Securities"]
[null,null,"(a) U.S. Government-backed Corporate",null,{"$f":"Import!#REF!","v":{"$error":"#REF!"}},null,{"$f":"Import!#REF!","v":{"$error":"#REF!"}},null,{"$f":"Import!#REF!","v":{"$error":"#REF!"}},null,{"$f":"Import!#REF!","v":{"$error":"#REF!"}},null,{"$f":"Import!#REF!","v":{"$error":"#REF!"}},null,{"$f":"Import!#REF!","v":{"$error":"#REF!"}},null,{"$f":"Import!#REF!","v":{"$error":"#REF!"}}]
[null,null,"(b) Non-U.S. Government-backed Corporate",null,{"$f":"Import!#REF!","v":{"$error":"#REF!"}},null,{"$f":"Import!#REF!","v":{"$error":"#REF!"}},null,{"$f":"Import!#REF!","v":{"$error":"#REF!"}},null,{"$f":"Import!#REF!","v":{"$error":"#REF!"}},null,{"$f":"Import!#REF!","v":{"$error":"#REF!"}},null,{"$f":"Import!#REF!","v":{"$error":"#REF!"}},null,{"$f":"Import!#REF!","v":{"$error":"#REF!"}}]
[null,null,"(c) FDIC Guaranteed Corporate",null,{"$f":"Import!#REF!","v":{"$error":"#REF!"}},null,{"$f":"Import!#REF!","v":{"$error":"#REF!"}},null,{"$f":"Import!#REF!","v":{"$error":"#REF!"}},null,{"$f":"Import!#REF!","v":{"$error":"#REF!"}},null,{"$f":"Import!#REF!","v":{"$error":"#REF!"}},null,{"$f":"Import!#REF!","v":{"$error":"#REF!"}},null,{"$f":"Import!#REF!","v":{"$error":"#REF!"}}]
[null,null,"(d) Other Corporate",null,{"$f":"Import!#REF!","v":{"$error":"#REF!"}},null,{"$f":"Import!#REF!","v":{"$error":"#REF!"}},null,{"$f":"Import!#REF!","v":{"$error":"#REF!"}},null,{"$f":"Import!#REF!","v":{"$error":"#REF!"}},null,{"$f":"Import!#REF!","v":{"$error":"#REF!"}},null,{"$f":"Import!#REF!","v":{"$error":"#REF!"}},null,{"$f":"Import!#REF!","v":{"$error":"#REF!"}}]
[null,5,"Asset-backed Securities",null,{"$f":"Import!#REF!","v":{"$error":"#REF!"}},null,{"$f":"Import!#REF!","v":{"$error":"#REF!"}},null,{"$f":"Import!#REF!","v":{"$error":"#REF!"}},null,{"$f":"Import!#REF!","v":{"$error":"#REF!"}},null,{"$f":"Import!#REF!","v":{"$error":"#REF!"}},null,{"$f":"Import!#REF!","v":{"$error":"#REF!"}},null,{"$f":"Import!#REF!","v":{"$error":"#REF!"}}]
[null,6,"Mortgage-backed Securities"]
[null,null,"(a) Residential Subprime",null,{"$f":"Import!#REF!","v":{"$error":"#REF!"}},null,{"$f":"Import!#REF!","v":{"$error":"#REF!"}},null,{"$f":"Import!#REF!","v":{"$error":"#REF!"}},null,{"$f":"Import!#REF!","v":{"$error":"#REF!"}},null,{"$f":"Import!#REF!","v":{"$error":"#REF!"}},null,{"$f":"Import!#REF!","v":{"$error":"#REF!"}},null,{"$f":"Import!#REF!","v":{"$error":"#REF!"}}]
[null,null,"(b) Residential Non-subprime",null,{"$f":"Import!#REF!","v":{"$error":"#REF!"}},null,{"$f":"Import!#REF!","v":{"$error":"#REF!"}},null,{"$f":"Import!#REF!","v":{"$error":"#REF!"}},null,{"$f":"Import!#REF!","v":{"$error":"#REF!"}},null,{"$f":"Import!#REF!","v":{"$error":"#REF!"}},null,{"$f":"Import!#REF!","v":{"$error":"#REF!"}},null,{"$f":"Import!#REF!","v":{"$error":"#REF!"}}]
[null,null,"(c) Commercial",null,{"$f":"Import!#REF!","v":{"$error":"#REF!"}},null,{"$f":"Import!#REF!","v":{"$error":"#REF!"}},null,{"$f":"Import!#REF!","v":{"$error":"#REF!"}},null,{"$f":"Import!#REF!","v":{"$error":"#REF!"}},null,{"$f":"Import!#REF!","v":{"$error":"#REF!"}},null,{"$f":"Import!#REF!","v":{"$error":"#REF!"}},null,{"$f":"Import!#REF!","v":{"$error":"#REF!"}}]
[null,7,"Mutual Funds",null,{"$f":"Import!#REF!","v":{"$error":"#REF!"}},null,{"$f":"Import!#REF!","v":{"$error":"#REF!"}},null,{"$f":"Import!#REF!","v":{"$error":"#REF!"}},null,{"$f":"Import!#REF!","v":{"$error":"#REF!"}},null,{"$f":"Import!#REF!","v":{"$error":"#REF!"}},null,{"$f":"Import!#REF!","v":{"$error":"#REF!"}},null,{"$f":"Import!#REF!","v":{"$error":"#REF!"}}]
[null,8,"Bank Loans",null,{"$f":"Import!#REF!","v":{"$error":"#REF!"}},null,{"$f":"Import!#REF!","v":{"$error":"#REF!"}},null,{"$f":"Import!#REF!","v":{"$error":"#REF!"}},null,{"$f":"Import!#REF!","v":{"$error":"#REF!"}},null,{"$f":"Import!#REF!","v":{"$error":"#REF!"}},null,{"$f":"Import!#REF!","v":{"$error":"#REF!"}},null,{"$f":"Import!#REF!","v":{"$error":"#REF!"}}]
[null,9,"Catastrophe Bonds and Insurance-Linked Securities",null,{"$f":"Import!#REF!","v":{"$error":"#REF!"}},null,{"$f":"Import!#REF!","v":{"$error":"#REF!"}},null,{"$f":"Import!#REF!","v":{"$error":"#REF!"}},null,{"$f":"Import!#REF!","v":{"$error":"#REF!"}},null,{"$f":"Import!#REF!","v":{"$error":"#REF!"}},null,{"$f":"Import!#REF!","v":{"$error":"#REF!"}},null,{"$f":"Import!#REF!","v":{"$error":"#REF!"}}]
[null,10,"Others (Briefly describe)",null,{"$f":"Import!#REF!","v":{"$error":"#REF!"}},null,{"$f":"Import!#REF!","v":{"$error":"#REF!"}},null,{"$f":"Import!#REF!","v":{"$error":"#REF!"}},null,{"$f":"Import!#REF!","v":{"$error":"#REF!"}},null,{"$f":"Import!#REF!","v":{"$error":"#REF!"}},null,{"$f":"Import!#REF!","v":{"$error":"#REF!"}},null,{"$f":"Import!#REF!","v":{"$error":"#REF!"}}]
[null,null,"TOTAL PORTFOLIO",null,{"$f":"SUM(E8:E27)","v":{"$error":"#REF!"}},null,{"$f":"SUM(G8:G27)","v":{"$error":"#REF!"}},null,{"$f":"SUM(I8:I27)","v":{"$error":"#REF!"}}]
[]
[null,null,null,null,{"$f":"IF(E31=\"TRUE\",HYPERLINK(\"#'Form 1SFS'!E16:M30\",\"TRUE\"),HYPERLINK(\"#'Form 1SFS'!E16:M30\",\"FALSE\"))","v":{"$error":"#REF!"}}]
[null,null,null,null,{"$f":"IF((ROUND(E28-(IF(('Form 1SFS (Consolidated)'!$E$91+'Form 1SFS (Consolidated)'!$MI91)=0,'Form 1SFS (Consolidated)'!M18+'Form 1SFS (Consolidated)'!M35,'Form 1SFS (Consolidated)'!E18+'Form 1SFS (Consolidated)'!I18+'Form 1SFS (Consolidated)'!E35+'Form 1SFS (Consolidated)'!I35)),0))=0,\"TRUE\",\"FALSE\")","v":{"$error":"#REF!"}}]
[null,null,null,null,{"$f":"ROUND(E28-(IF(('Form 1SFS (Consolidated)'!$E$91+'Form 1SFS (Consolidated)'!$MI91)=0,'Form 1SFS (Consolidated)'!M18+'Form 1SFS (Consolidated)'!M35,'Form 1SFS (Consolidated)'!E18+'Form 1SFS (Consolidated)'!I18+'Form 1SFS (Consolidated)'!E35+'Form 1SFS (Consolidated)'!I35)),0)","v":{"$error":"#REF!"}}]
[]
[null,null,null,null,{"$f":"IF(E30=\"False\",\"Does not equal Form 1SFS Lines 2(b) & 3(b)\",\"\")","v":{"$error":"#REF!"}}]
[]
[null,null,"Effective duration of the portfolio",null,{"$f":"Import!#REF!","v":{"$error":"#REF!"}}]
[]
[null,null,"Effective convexity of the portfolio",null,{"$f":"Import!#REF!","v":{"$error":"#REF!"}}]

{"sheet":"Schedule VI Prior","index":51,"n_rows":38,"n_cols":18,"rows_kept":38,"cut":false,"hidden":true,"merged":[]}
[null,null,"CONSOLIDATED SCHEDULE OF FIXED INCOME SECURITIES",null,null,null,null,null,null,null,null,null,null,null,null,null,null,{"$f":"HYPERLINK(\"#'Index'!A1\",\"Return to Index\")","v":"Return to Index"}]
[null,null,{"$f":"'Company Information'!C7","v":"Enter Company Name"}]
[null,null,{"$f":"'Form 1SFS (Consolidated)'!$C$4","v":"2022-12-31"},null,null,null,null,null,null,null,null,null,null,null,null,null,"SCHEDULE VI"]
[null,null,{"$f":"IF(CONFIGURATION!$B$12>1,\" ['\"&MID(CONFIGURATION!$B$12,2,LEN(CONFIGURATION!$B$12))&\"s]\",\"\")&'Form 1SFS (Consolidated)'!$C$5","v":" ['000s]United States Dollars"}]
[]
[null,null,"Security Type",null,"Amount per Form 1SFSS (Consolidated), Lines 2(b) and 3(b)",null,"Face Value",null,"Fair Value",null,"Average YTM",null,"Average Rating",null,"Effective Duration",null,"Effective convexity"]
[]
[null,1,"U.S. Government "]
[null,null,"(a) U.S. Government Federal",null,null,null,null,null,null,null,null,null,null,null,{"$f":"Import!#REF!","v":{"$error":"#REF!"}},null,{"$f":"Import!#REF!","v":{"$error":"#REF!"}}]
[null,null,"(b) U.S. Government Agency - mortgage-backed securities",null,null,null,null,null,null,null,null,null,null,null,{"$f":"Import!#REF!","v":{"$error":"#REF!"}},null,{"$f":"Import!#REF!","v":{"$error":"#REF!"}}]
[null,null,"(c) U.S. Government Agency - other",null,null,null,null,null,null,null,null,null,null,null,{"$f":"Import!#REF!","v":{"$error":"#REF!"}},null,{"$f":"Import!#REF!","v":{"$error":"#REF!"}}]
[null,2,"Non-U.S. Government",null,null,null,null,null,null,null,null,null,null,null,{"$f":"Import!#REF!","v":{"$error":"#REF!"}},null,{"$f":"Import!#REF!","v":{"$error":"#REF!"}}]
[null,3,"States, Municipalities, and Political Subdivision",null,null,null,null,null,null,null,null,null,null,null,{"$f":"Import!#REF!","v":{"$error":"#REF!"}},null,{"$f":"Import!#REF!","v":{"$error":"#REF!"}}]
[null,4,"Corporate Securities"]
[null,null,"(a) U.S. Government-backed Corporate",null,null,null,null,null,null,null,null,null,null,null,{"$f":"Import!#REF!","v":{"$error":"#REF!"}},null,{"$f":"Import!#REF!","v":{"$error":"#REF!"}}]
[null,null,"(b) Non-U.S. Government-backed Corporate",null,null,null,null,null,null,null,null,null,null,null,{"$f":"Import!#REF!","v":{"$error":"#REF!"}},null,{"$f":"Import!#REF!","v":{"$error":"#REF!"}}]
[null,null,"(c) FDIC Guaranteed Corporate",null,null,null,null,null,null,null,null,null,null,null,{"$f":"Import!#REF!","v":{"$error":"#REF!"}},null,{"$f":"Import!#REF!","v":{"$error":"#REF!"}}]
[null,null,"(d) Other Corporate",null,null,null,null,null,null,null,null,null,null,null,{"$f":"Import!#REF!","v":{"$error":"#REF!"}},null,{"$f":"Import!#REF!","v":{"$error":"#REF!"}}]
[null,5,"Asset-backed Securities",null,null,null,null,null,null,null,null,null,null,null,{"$f":"Import!#REF!","v":{"$error":"#REF!"}},null,{"$f":"Import!#REF!","v":{"$error":"#REF!"}}]
[null,6,"Mortgage-backed Securities"]
[null,null,"(a) Residential Subprime",null,null,null,null,null,null,null,null,null,null,null,{"$f":"Import!#REF!","v":{"$error":"#REF!"}},null,{"$f":"Import!#REF!","v":{"$error":"#REF!"}}]
[null,null,"(b) Residential Non-subprime",null,null,null,null,null,null,null,null,null,null,null,{"$f":"Import!#REF!","v":{"$error":"#REF!"}},null,{"$f":"Import!#REF!","v":{"$error":"#REF!"}}]
[null,null,"(c) Commercial",null,null,null,null,null,null,null,null,null,null,null,{"$f":"Import!#REF!","v":{"$error":"#REF!"}},null,{"$f":"Import!#REF!","v":{"$error":"#REF!"}}]
[null,7,"Mutual Funds",null,null,null,null,null,null,null,null,null,null,null,{"$f":"Import!#REF!","v":{"$error":"#REF!"}},null,{"$f":"Import!#REF!","v":{"$error":"#REF!"}}]
[null,8,"Bank Loans",null,null,null,null,null,null,null,null,null,null,null,{"$f":"Import!#REF!","v":{"$error":"#REF!"}},null,{"$f":"Import!#REF!","v":{"$error":"#REF!"}}]
[null,9,"Catastrophe Bonds and Insurance-Linked Securities",null,null,null,null,null,null,null,null,null,null,null,{"$f":"Import!#REF!","v":{"$error":"#REF!"}},null,{"$f":"Import!#REF!","v":{"$error":"#REF!"}}]
[null,10,"Others (Briefly describe)",null,null,null,null,null,null,null,null,null,null,null,{"$f":"Import!#REF!","v":{"$error":"#REF!"}},null,{"$f":"Import!#REF!","v":{"$error":"#REF!"}}]
[null,null,"TOTAL PORTFOLIO",null,{"$f":"SUM(E8:E27)","v":0},null,{"$f":"SUM(G8:G27)","v":0},null,{"$f":"SUM(I8:I27)","v":0}]
[]
[null,null,null,null,{"$f":"IF(E31=\"TRUE\",HYPERLINK(\"#'Form 1SFS (Consolidated)'!M18:M35\",\"TRUE\"),HYPERLINK(\"#'Form 1SFS (Consolidated)'!M18:M35\",\"FALSE\"))","v":"TRUE"}]
[null,null,null,null,{"$f":"IF((ROUND(E28-('Form 1SFS (Consolidated)'!M18+'Form 1SFS (Consolidated)'!M35),0))=0,\"TRUE\",\"FALSE\")","v":"TRUE"}]
[null,null,null,null,{"$f":"ROUND(E28-('Form 1SFS (Consolidated)'!M18+'Form 1SFS (Consolidated)'!M35),0)","v":0}]
[]
[null,null,null,null,{"$f":"IF(E30=\"False\",\"Does not equal Form 1SFS Lines 2(b) & 3(b)\",\"\")","v":""}]
[]
[null,null,"Effective duration of the portfolio"]
[]
[null,null,"Effective convexity of the portfolio"]

{"sheet":"Schedule VI (New)","index":52,"n_rows":425,"n_cols":12,"rows_kept":425,"cut":false,"hidden":true,"merged":[[92,1,92,2],[5,1,5,2],[35,1,35,2],[36,1,36,2],[61,1,61,2],[91,1,91,2],[211,1,211,2],[121,1,121,2],[122,1,122,2],[151,1,151,2],[152,1,152,2],[210,1,210,2]]}
[null,"DRAFT UNCONSOLIDATED SCHEDULE OF ASSETS",null,null,null,null,null,null,{"$f":"HYPERLINK(\"#'Index'!A1\",\"Return to Index\")","v":"Return to Index"}]
[null,{"$f":"'Form 1SFS (Consolidated)'!B3","v":"Enter Company Name"}]
[null,"As at",{"$f":"'Form 1SFS (Consolidated)'!C4","v":"2022-12-31"}]
[null,"expressed in ['000s]",{"$f":"'Form 1SFS (Consolidated)'!C5","v":"United States Dollars"}]
[]
[null,"(A) CASH AND CASH EQUIVALENTS",null,"Enter # of Asset Types"]
[null,null,null,null,{"$f":"YEAR($C$3)","v":2022},{"$f":"YEAR($C$3)","v":2022}]
[null,"Asset Type","Jurisdiction","BSCR Rating ","Face Value","Fair Value"]
[1,"Select",null,"Select"]
[2,"Select",null,"Select"]
[3,"Select",null,"Select"]
[4,"Select",null,"Select"]
[5,"Select",null,"Select"]
[6,"Select",null,"Select"]
[7,"Select",null,"Select"]
[8,"Select",null,"Select"]
[9,"Select",null,"Select"]
[10,"Select",null,"Select"]
[11,"Select",null,"Select"]
[12,"Select",null,"Select"]
[13,"Select",null,"Select"]
[14,"Select",null,"Select"]
[15,"Select",null,"Select"]
[16,"Select",null,"Select"]
[17,"Select",null,"Select"]
[18,"Select",null,"Select"]
[19,"Select",null,"Select"]
[20,"Select",null,"Select"]
[]
[null,"Total Cash & Cash Equivalents",null,null,{"$f":"SUM(E9:E28)","v":0},{"$f":"SUM(F9:F28)","v":0}]
[]
[null,"Form 1SFS Line 1 Cash and Cash Equivalents",null,null,null,{"$f":"IF(('Form 1SFS (Consolidated)'!$E$91+'Form 1SFS (Consolidated)'!$I$91)= 0,'Form 1SFS (Consolidated)'!M12,'Form 1SFS (Consolidated)'!E12+'Form 1SFS (Consolidated)'!I12)","v":0}]
[]
[null,"Check Section A",null,null,null,{"$f":"ROUND((F30-F32),0)","v":0},{"$f":"IF(F34=0,\"TRUE\",\"FALSE\")","v":"TRUE"}]
[]
[null,"(B) BONDS AND DEBENTURES",null,"Enter # of Asset Types"]
[null,null,null,null,{"$f":"YEAR($C$3)","v":2022},{"$f":"YEAR($C$3)","v":2022}]
[null,"Asset Type","Jurisdiction","BSCR Rating ","Face Value","Fair Value","Average YTM","Effective Duration","Effective Convexity"]
[1,"Select",0,"Select",0,0,0,0,0]
[2,"Select",0,"Select",0,0,0,0,0]
[3,"Select",0,"Select",0,0,0,0,0]
[4,"Select",0,"Select",0,0,0,0,0]
[5,"Select",0,"Select",0,0,0,0,0]
[6,"Select",0,"Select",0,0,0,0,0]
[7,"Select",0,"Select",0,0,0,0,0]
[8,"Select",0,"Select",0,0,0,0,0]
[9,"Select",0,"Select",0,0,0,0,0]
[10,"Select",0,"Select",0,0,0,0,0]
[11,"Select",0,"Select",0,0,0,0,0]
[12,"Select",0,"Select",0,0,0,0,0]
[13,"Select",0,"Select",0,0,0,0,0]
[14,"Select",0,"Select",0,0,0,0,0]
[15,"Select",0,"Select",0,0,0,0,0]
[16,"Select",0,"Select",0,0,0,0,0]
[17,"Select",0,"Select",0,0,0,0,0]
[18,"Select",0,"Select",0,0,0,0,0]
[19,"Select",0,"Select",0,0,0,0,0]
[20,"Select",0,"Select",0,0,0,0,0]
[]
[null,"Total Bonds & Debentures",null,null,{"$f":"SUM(E39:E58)","v":0},{"$f":"SUM(F39:F58)","v":0},0,0,0]
[]
[null,"(C) SECURITIES/ASSET-BASED SECURITIES",null,"Enter # of Asset Types"]
[null,null,null,null,{"$f":"YEAR($C$3)","v":2022},{"$f":"YEAR($C$3)","v":2022}]
[null,"Asset Type","Jurisdiction","BSCR Rating ","Face Value","Fair Value","Average YTM","Effective Duration","Effective Convexity"]
[1,"Select",0,"Select",0,0,0,0,0]
[2,"Select",0,"Select",0,0,0,0,0]
[3,"Select",0,"Select",0,0,0,0,0]
[4,"Select",0,"Select",0,0,0,0,0]
[5,"Select",0,"Select",0,0,0,0,0]
[6,"Select",0,"Select",0,0,0,0,0]
[7,"Select",0,"Select",0,0,0,0,0]
[8,"Select",0,"Select",0,0,0,0,0]
[9,"Select",0,"Select",0,0,0,0,0]
[10,"Select",0,"Select",0,0,0,0,0]
[11,"Select",0,"Select",0,0,0,0,0]
[12,"Select",0,"Select",0,0,0,0,0]
[13,"Select",0,"Select",0,0,0,0,0]
[14,"Select",0,"Select",0,0,0,0,0]
[15,"Select",0,"Select",0,0,0,0,0]
[16,"Select",0,"Select",0,0,0,0,0]
[17,"Select",0,"Select",0,0,0,0,0]
[18,"Select",0,"Select",0,0,0,0,0]
[19,"Select",0,"Select",0,0,0,0,0]
[20,"Select",0,"Select",0,0,0,0,0]
[]
[null,"Total Securities/Asset-Backed Securities",null,null,{"$f":"SUM(E65:E84)","v":0},{"$f":"SUM(F65:F84)","v":0},0,0,0]
[]
[null,"Form 1SFS Lines 2(b) & 3(b) Bonds & Debentures",null,null,null,{"$f":"IF(('Form 1SFS (Consolidated)'!$E$91+'Form 1SFS (Consolidated)'!$I$91)= 0,'Form 1SFS (Consolidated)'!M18+'Form 1SFS (Consolidated)'!M35,'Form 1SFS (Consolidated)'!E18+'Form 1SFS (Consolidated)'!I18+'Form 1SFS (Consolidated)'!E35+'Form 1SFS (Consolidated)'!I35)","v":0}]
[]
[null,"Check Sections B & C",null,null,null,{"$f":"ROUND(((F86+F60)-F88),0)","v":0},{"$f":"IF(F90=0,\"TRUE\",\"FALSE\")","v":"TRUE"}]
[]
[null,"(D) LISTED EQUITIES AND PREFERENCE SHARES",null,"Enter # of Asset Types"]
[null,null,null,null,{"$f":"YEAR($C$3)","v":2022},{"$f":"YEAR($C$3)","v":2022}]
[null,"Asset Type","Stock Exchange","BSCR Rating ","Face Value","Fair Value"]
[1,"Select",0,"Select",0,0]
[2,"Select",0,"Select",0,0]
[3,"Select",0,"Select",0,0]
[4,"Select",0,"Select",0,0]
[5,"Select",0,"Select",0,0]
[6,"Select",0,"Select",0,0]
[7,"Select",0,"Select",0,0]
[8,"Select",0,"Select",0,0]
[9,"Select",0,"Select",0,0]
[10,"Select",0,"Select",0,0]
[11,"Select",0,"Select",0,0]
[12,"Select",0,"Select",0,0]
[13,"Select",0,"Select",0,0]
[14,"Select",0,"Select",0,0]
[15,"Select",0,"Select",0,0]
[16,"Select",0,"Select",0,0]
[17,"Select",0,"Select",0,0]
[18,"Select",0,"Select",0,0]
[19,"Select",0,"Select",0,0]
[20,"Select",0,"Select",0,0]
[]
[null,"Total Listed Equities & Preference Shares",null,null,{"$f":"SUM(E95:E114)","v":0},{"$f":"SUM(F95:F114)","v":0}]
[]
[null,"Form 1SFS Lines 2(d) & 3(d) Equities & Preference Shares",null,null,null,{"$f":"IF(('Form 1SFS (Consolidated)'!$E$91+'Form 1SFS (Consolidated)'!$I$91)= 0,'Form 1SFS (Consolidated)'!M23+'Form 1SFS (Consolidated)'!M40,'Form 1SFS (Consolidated)'!E23+'Form 1SFS (Consolidated)'!I23+'Form 1SFS (Consolidated)'!E40+'Form 1SFS (Consolidated)'!I40)","v":0}]
[]
[null,"Check Section D",null,null,null,{"$f":"ROUND((F116-F118),0)","v":0},{"$f":"IF(F120=0,\"TRUE\",\"FALSE\")","v":"TRUE"}]
[]
[null,"(E) ALTERNATIVE INVESTMENTS",null,"Enter # of Asset Types"]
[null,null,null,null,{"$f":"YEAR($C$3)","v":2022},{"$f":"YEAR($C$3)","v":2022}]
[null,"Asset Type","Jurisdiction","BSCR Rating ","Face Value","Fair Value","Average YTM","Effective Duration","Effective Convexity"]
[1,"Select",0,"Select",0,0,0,0,0]
[2,"Select",0,"Select",0,0,0,0,0]
[3,"Select",0,"Select",0,0,0,0,0]
[4,"Select",0,"Select",0,0,0,0,0]
[5,"Select",0,"Select",0,0,0,0,0]
[6,"Select",0,"Select",0,0,0,0,0]
[7,"Select",0,"Select",0,0,0,0,0]
[8,"Select",0,"Select",0,0,0,0,0]
[9,"Select",0,"Select",0,0,0,0,0]
[10,"Select",0,"Select",0,0,0,0,0]
[11,"Select",0,"Select",0,0,0,0,0]
[12,"Select",0,"Select",0,0,0,0,0]
[13,"Select",0,"Select",0,0,0,0,0]
[14,"Select",0,"Select",0,0,0,0,0]
[15,"Select",0,"Select",0,0,0,0,0]
[16,"Select",0,"Select",0,0,0,0,0]
[17,"Select",0,"Select",0,0,0,0,0]
[18,"Select",0,"Select",0,0,0,0,0]
[19,"Select",0,"Select",0,0,0,0,0]
[20,"Select",0,"Select",0,0,0,0,0]
[]
[null,"Total Alternative Investments",null,null,{"$f":"SUM(E125:E144)","v":0},{"$f":"SUM(F125:F144)","v":0},0,0,0]
[]
[null,"Form 1SFS Lines 2(e) & 3(e) Alternative Investments",null,null,null,{"$f":"IF(('Form 1SFS (Consolidated)'!$E$91+'Form 1SFS (Consolidated)'!$I$91)= 0,'Form 1SFS (Consolidated)'!M28+'Form 1SFS (Consolidated)'!M45,'Form 1SFS (Consolidated)'!E28+'Form 1SFS (Consolidated)'!I28+'Form 1SFS (Consolidated)'!E45+'Form 1SFS (Consolidated)'!I45)","v":0}]
[]
[null,"Check Section E",null,null,null,{"$f":"ROUND((F146-F148),0)","v":0},{"$f":"IF(F150=0,\"TRUE\",\"FALSE\")","v":"TRUE"}]
[]
[null,"(F) LOANS",null,"Enter # of Asset Types"]
[null,null,null,null,{"$f":"YEAR($C$3)","v":2022},{"$f":"YEAR($C$3)","v":2022}]
[null,"Asset Type","Jurisdiction","BSCR Rating ","Face Value","Fair Value","Average YTM","Effective Duration","Effective Convexity"]
[1,"Select",0,"Select",0,0,0,0,0]
[2,"Select",0,"Select",0,0,0,0,0]
[3,"Select",0,"Select",0,0,0,0,0]
[4,"Select",0,"Select",0,0,0,0,0]
[5,"Select",0,"Select",0,0,0,0,0]
[6,"Select",0,"Select",0,0,0,0,0]
[7,"Select",0,"Select",0,0,0,0,0]
[8,"Select",0,"Select",0,0,0,0,0]
[9,"Select",0,"Select",0,0,0,0,0]
[10,"Select",0,"Select",0,0,0,0,0]
[11,"Select",0,"Select",0,0,0,0,0]
[12,"Select",0,"Select",0,0,0,0,0]
[13,"Select",0,"Select",0,0,0,0,0]
[14,"Select",0,"Select",0,0,0,0,0]
[15,"Select",0,"Select",0,0,0,0,0]
[16,"Select",0,"Select",0,0,0,0,0]
[17,"Select",0,"Select",0,0,0,0,0]
[18,"Select",0,"Select",0,0,0,0,0]
[19,"Select",0,"Select",0,0,0,0,0]
[20,"Select",0,"Select",0,0,0,0,0]
[]
[null,"Total Loans",null,null,{"$f":"SUM(E155:E174)","v":0},{"$f":"SUM(F155:F174)","v":0},0,0,0]
[]
[null,"Form 1SFS Line 5(c) Mortgage Loans",null,null,null,{"$f":"IF(('Form 1SFS (Consolidated)'!$E$91+'Form 1SFS (Consolidated)'!$I$91)= 0,'Form 1SFS (Consolidated)'!M53,'Form 1SFS (Consolidated)'!E53+'Form 1SFS (Consolidated)'!I53)","v":0}]
[]
[null,"Check Section F",null,null,null,{"$f":"ROUND((F176-F178),0)","v":0},{"$f":"IF(F180=0,\"TRUE\",\"FALSE\")","v":"TRUE"}]
[]
[null,"(G) DERIVATIVES",null,"Enter # of Derivative Types"]
[null,"Derivative Type","Underlying","Purpose","Position",{"$f":"YEAR($C$3)&\" Market Value\"","v":"2022 Market Value"},"Centrally Cleared","Notional Value","Exposure (Dollar Delta, DV01, CS01"]
[1,"Select","Select","Select","Select",0,"Select",0,0]
[2,"Select","Select","Select","Select",0,"Select",0,0]
[3,"Select","Select","Select","Select",0,"Select",0,0]
[4,"Select","Select","Select","Select",0,"Select",0,0]
[5,"Select","Select","Select","Select",0,"Select",0,0]
[6,"Select","Select","Select","Select",0,"Select",0,0]
[7,"Select","Select","Select","Select",0,"Select",0,0]
[8,"Select","Select","Select","Select",0,"Select",0,0]
[9,"Select","Select","Select","Select",0,"Select",0,0]
[10,"Select","Select","Select","Select",0,"Select",0,0]
[11,"Select","Select","Select","Select",0,"Select",0,0]
[12,"Select","Select","Select","Select",0,"Select",0,0]
[13,"Select","Select","Select","Select",0,"Select",0,0]
[14,"Select","Select","Select","Select",0,"Select",0,0]
[15,"Select","Select","Select","Select",0,"Select",0,0]
[16,"Select","Select","Select","Select",0,"Select",0,0]
[17,"Select","Select","Select","Select",0,"Select",0,0]
[18,"Select","Select","Select","Select",0,"Select",0,0]
[19,"Select","Select","Select","Select",0,"Select",0,0]
[20,"Select","Select","Select","Select",0,"Select",0,0]
[]
[null,"Total Derivatives",null,null,null,{"$f":"SUM(F184:F203)","v":0},null,{"$f":"SUM(H184:H203)","v":0},{"$f":"SUM(I184:I203)","v":0}]
[]
[null,"Form 1SFS Line 13(a) Derivatives",null,null,null,{"$f":"IF(('Form 1SFS (Consolidated)'!$E$91+'Form 1SFS (Consolidated)'!$I$91)= 0,'Form 1SFS (Consolidated)'!M76,'Form 1SFS (Consolidated)'!E76+'Form 1SFS (Consolidated)'!I76)","v":0}]
[]
[null,"Check Section G",null,null,null,{"$f":"ROUND((F205-F207),0)","v":0},{"$f":"IF(F209=0,\"TRUE\",\"FALSE\")","v":"TRUE"}]
[]
[null,"(H) OTHER ASSETS",null,"Enter # of Asset Types"]
[null,null,null,null,{"$f":"YEAR($C$3)","v":2022},{"$f":"YEAR($C$3)","v":2022}]
[null,"Asset Type","Jurisdiction","BSCR Rating ","Face Value","Fair Value","Average YTM","Effective Duration","Effective Convexity"]
[1,"Select",0,"Select",0,0,0,0,0]
[2,"Select",0,"Select",0,0,0,0,0]
[3,"Select",0,"Select",0,0,0,0,0]
[4,"Select",0,"Select",0,0,0,0,0]
[5,"Select",0,"Select",0,0,0,0,0]
[6,"Select",0,"Select",0,0,0,0,0]
[7,"Select",0,"Select",0,0,0,0,0]
[8,"Select",0,"Select",0,0,0,0,0]
[9,"Select",0,"Select",0,0,0,0,0]
[10,"Select",0,"Select",0,0,0,0,0]
[11,"Select",0,"Select",0,0,0,0,0]
[12,"Select",0,"Select",0,0,0,0,0]
[13,"Select",0,"Select",0,0,0,0,0]
[14,"Select",0,"Select",0,0,0,0,0]
[15,"Select",0,"Select",0,0,0,0,0]
[16,"Select",0,"Select",0,0,0,0,0]
[17,"Select",0,"Select",0,0,0,0,0]
[18,"Select",0,"Select",0,0,0,0,0]
[19,"Select",0,"Select",0,0,0,0,0]
[20,"Select",0,"Select",0,0,0,0,0]
[]
[null,"Total Other Assets",null,null,null,{"$f":"SUM(F214:F233)","v":0},0,0,0]
[]
[null,"Form 1SFS Lines X(x) Other Assets",null,null,null,{"$f":"IF(('Form 1SFS (Consolidated)'!$E$91+'Form 1SFS (Consolidated)'!$I$91)= 0,0,0+0)","v":0}]
[]
[null,"Check Section G",null,null,null,{"$f":"ROUND((F235-F237),0)","v":0},{"$f":"IF(F239=0,\"TRUE\",\"FALSE\")","v":"TRUE"}]
[]
[null,"TOTAL ASSETS",null,null,null,{"$f":"F30+F60+F116+F86+F146+F235+F205+F176","v":0}]
[]
[null,"TOTAL ASSETS (Form 1SFS Line 15)",null,null,null,{"$f":"F34+F90+F120+F150+F180+F209+F239","v":0}]
[]
[null,"Check Form 1SFS",null,null,null,{"$f":"IF(F247=0,\"TRUE\",\"FALSE\")","v":"TRUE"}]
[null,null,null,null,null,{"$f":"IF(ROUND((F241-(0)),0)=0,\"TRUE\",\"FALSE\")","v":"TRUE"}]
[null,"Difference",null,null,null,{"$f":"ROUND((F243-F241),0)","v":0}]
[]
[null,"EFFECTIVE DURATION",null,null,0]
[]
[null,"EFFECTIVE CONVEXITY",null,null,0]
[]
[]
[]
["Select","Select","Select","Select","Select","Select","Select","Select","Select","Select","Select","Select"]
["Cash ","Sovereign Bonds","RMBS - Agency","Public Equities","Private Equity","Investment Income Due and Accrued","Energy","Holding Entity","Significant Influence",null,"Insured/Guaranteed Mortgages"]
["Certificates of Deposit","Municipals","RMBS - Non-agency","Public Preferred Stock","Investment Funds","Accounts and Premiums Receivable","Materials","Operating Entity","Control",null,"Other Commercial and Farm Mortgages"]
["Money Market Funds","Supranationals (multilateral development banks and international organizations)","CMBS","Exchange Traded Funds","Hedge Funds","Reinsurance Balance Receivable","Industrial","Branch",null,null,"Other Residential Mortgages"]
["Other ","Corporate bonds","CLOs","Other","Private Credit Funds","Funds Held by Ceding Reinsurers","Consumer Discretionary","Select",null,null,"Mortgages Not In Good Standing"]
[null,"Mutual Funds","CDOs",null,"Catastrophe Bonds","Sundry Assets","Consumer Staples",null,null,null,"Collateral Loans"]
[null,"Other - Secured Bonds","Auto Loan ABS",null,"Other Insurance-Linked Securities","Letter of Credit, Guarantees and Other Instruments","Healthcare",null,null,null,"Middle Market Loans"]
[null,"Other - Unsecured Bonds","Student Loan ABS",null,"Infrastructure Debt","Other","Financial",null,null,null,"Other Direct Private Lending"]
[null,"Other ","Credit Card Receivable ABS",null,"Equity Investments in Infrastructure",null,null,null,null,null,"Policy Loans"]
[null,null,"Other Asset Backed Securities",null,"Investment in Affiliates",null,null,null,null,null,"Other"]
[null,null,null,null,"Advances to Affiliates"]
[null,null,null,null,"Equity Release / Reverse Mortgages"]
[null,null,null,null,"Other "]
[]
[]
[]
["Select","Select","Select","Select","Select","Select",null,"Select"]
["Listed options","Equity","Hedging","Long / Receive Fixed / Sell Protection","Private Equity","Investment Income Due and Accrued",null,"BSCR Rating 0"]
["Futures","Debt","Speculative","Short / Receive Floating / Buy Protection","Investment Funds","Accounts and Premiums Receivable",null,"BSCR Rating 1",null,null,"Select"]
["Forwards","Interest Rate",null,null,"Hedge Funds","Reinsurance Balance Receivable",null,"BSCR Rating 2",null,null,"Insured/Guaranteed Mortgages"]
["Swaps","Inflation",null,null,"Private Credit Funds","Sundry Assets",null,"BSCR Rating 3",null,null,"Other Commercial and Farm Mortgages"]
["Swaptions","Credit","Select",null,"Catastrophe Bonds","Letter of Credit, Guarantees and Other Instruments",null,"BSCR Rating 4",null,null,"Other Residential Mortgages"]
["OTC options","Currencies","Yes",null,"Other Insurance-Linked Securities","Other",null,"BSCR Rating 5",null,null,"Mortgages Not In Good Standing"]
["Other","Commodities","No",null,"Advances to Affiliates",null,null,"BSCR Rating 6",null,null,"Collateral Loans"]
[null,"Other",null,null,"Infrastructure Debt",null,null,"BSCR Rating 7",null,null,"Middle Market Loans"]
[null,null,null,null,"Equity Investments in Infrastructure",null,null,"BSCR Rating 8",null,null,"Other Direct Private Lending"]
[null,null,null,null,"Equity Release / Reverse Mortgages",null,null,null,null,null,"Policy Loans"]
[null,null,null,null,"Other ",null,null,null,null,null,"Other"]
[]
[null,null,null,null,null,null,null,null,"Switzerland Francs"]
[null,null,null,null,null,null,null,null,"Chile Pesos"]
[null,null,null,null,null,null,null,null,"China Yuan Renminbi"]
[null,null,null,null,null,null,null,null,"Colombia Pesos"]
[null,null,null,null,null,null,null,null,"Costa Rica Colones"]
[null,null,null,null,null,null,null,null,"Cuba Convertible Pesos"]
[null,null,null,null,null,null,null,null,"Cuba Pesos"]
[null,null,null,null,null,null,null,null,"Cape Verde Escudos"]
[null,null,null,null,null,null,null,null,"Czech Republic Koruny"]
[null,null,null,null,null,null,null,null,"Djibouti Francs"]
[null,null,null,null,null,null,null,null,"Denmark Kroner"]
[null,null,null,null,null,null,null,null,"Dominican Republic Pesos"]
[null,null,null,null,null,null,null,null,"Algeria Dinars"]
[null,null,null,null,null,null,null,null,"Estonia Krooni"]
[null,null,null,null,null,null,null,null,"Egypt Pounds"]
[null,null,null,null,null,null,null,null,"Eritrea Nakfa"]
[null,null,null,null,null,null,null,null,"Ethiopia Birr"]
[null,null,null,null,null,null,null,null,"Fiji Dollars"]
[null,null,null,null,null,null,null,null,"Falkland Islands Pounds"]
[null,null,null,null,null,null,null,null,"United Kingdom Pounds"]
[null,null,null,null,null,null,null,null,"Georgia Lari"]
[null,null,null,null,null,null,null,null,"Guernsey Pounds"]
[null,null,null,null,null,null,null,null,"Ghana Cedis"]
[null,null,null,null,null,null,null,null,"Gibraltar Pounds"]
[null,null,null,null,null,null,null,null,"Gambia Dalasi"]
[null,null,null,null,null,null,null,null,"Guinea Francs"]
[null,null,null,null,null,null,null,null,"Guatemala Quetzales"]
[null,null,null,null,null,null,null,null,"Guyana Dollars"]
[null,null,null,null,null,null,null,null,"Hong Kong Dollars"]
[null,null,null,null,null,null,null,null,"Honduras Lempiras"]
[null,null,null,null,null,null,null,null,"Croatia Kuna"]
[null,null,null,null,null,null,null,null,"Haiti Gourdes"]
[null,null,null,null,null,null,null,null,"Hungary Forint"]
[null,null,null,null,null,null,null,null,"Indonesia Rupiahs"]
[null,null,null,null,null,null,null,null,"Israel New Shekels"]
[null,null,null,null,null,null,null,null,"Isle of Man Pounds"]
[null,null,null,null,null,null,null,null,"India Rupees"]
[null,null,null,null,null,null,null,null,"Iraq Dinars"]
[null,null,null,null,null,null,null,null,"Iran Rials"]
[null,null,null,null,null,null,null,null,"Iceland Kronur"]
[null,null,null,null,null,null,null,null,"Jersey Pounds"]
[null,null,null,null,null,null,null,null,"Jamaica Dollars"]
[null,null,null,null,null,null,null,null,"Jordan Dinars"]
[null,null,null,null,null,null,null,null,"Japan Yen"]
[null,null,null,null,null,null,null,null,"Kenya Shillings"]
[null,null,null,null,null,null,null,null,"Kyrgyzstan Soms"]
[null,null,null,null,null,null,null,null,"Cambodia Riels"]
[null,null,null,null,null,null,null,null,"Comoros Francs"]
[null,null,null,null,null,null,null,null,"North Korea Won"]
[null,null,null,null,null,null,null,null,"South Korea Won"]
[null,null,null,null,null,null,null,null,"Kuwait Dinars"]
[null,null,null,null,null,null,null,null,"Cayman Islands Dollars"]
[null,null,null,null,null,null,null,null,"Kazakhstan Tenge"]
[null,null,null,null,null,null,null,null,"Laos Kips"]
[null,null,null,null,null,null,null,null,"Lebanon Pounds"]
[null,null,null,null,null,null,null,null,"Sri Lanka Rupees"]
[null,null,null,null,null,null,null,null,"Liberia Dollars"]
[null,null,null,null,null,null,null,null,"Lesotho Maloti"]
[null,null,null,null,null,null,null,null,"Lithuania Litai"]
[null,null,null,null,null,null,null,null,"Latvia Lati"]
[null,null,null,null,null,null,null,null,"Libya Dinars"]
[null,null,null,null,null,null,null,null,"Morocco Dirhams"]
[null,null,null,null,null,null,null,null,"Moldova Lei"]
[null,null,null,null,null,null,null,null,"Madagascar Ariary"]
[null,null,null,null,null,null,null,null,"Macedonia Denars"]
[null,null,null,null,null,null,null,null,"Myanmar Kyats"]
[null,null,null,null,null,null,null,null,"Mongolia Tugriks"]
[null,null,null,null,null,null,null,null,"Macau Patacas"]
[null,null,null,null,null,null,null,null,"Mauritania Ouguiyas"]
[null,null,null,null,null,null,null,null,"Mauritius Rupees"]
[null,null,null,null,null,null,null,null,"Maldives Rufiyaa"]
[null,null,null,null,null,null,null,null,"Malawi Kwachas"]
[null,null,null,null,null,null,null,null,"Mexico Pesos"]
[null,null,null,null,null,null,null,null,"Malaysia Ringgits"]
[null,null,null,null,null,null,null,null,"Mozambique Meticais"]
[null,null,null,null,null,null,null,null,"Namibia Dollars"]
[null,null,null,null,null,null,null,null,"Nigeria Nairas"]
[null,null,null,null,null,null,null,null,"Nicaragua Cordobas"]
[null,null,null,null,null,null,null,null,"Norway Kroner"]
[null,null,null,null,null,null,null,null,"Nepal Rupees"]
[null,null,null,null,null,null,null,null,"New Zealand Dollars"]
[null,null,null,null,null,null,null,null,"Oman Rials"]
[null,null,null,null,null,null,null,null,"Panama Balboas"]
[null,null,null,null,null,null,null,null,"Peru Nuevos Soles"]
[null,null,null,null,null,null,null,null,"Papua New Guinea Kina"]
[null,null,null,null,null,null,null,null,"Philippines Pesos"]
[null,null,null,null,null,null,null,null,"Pakistan Rupees"]
[null,null,null,null,null,null,null,null,"Poland Zlotych"]
[null,null,null,null,null,null,null,null,"Paraguay Guarani"]
[null,null,null,null,null,null,null,null,"Qatar Riyals"]
[null,null,null,null,null,null,null,null,"Romania New Lei"]
[null,null,null,null,null,null,null,null,"Serbia Dinars"]
[null,null,null,null,null,null,null,null,"Russia Rubles"]
[null,null,null,null,null,null,null,null,"Rwanda Francs"]
[null,null,null,null,null,null,null,null,"Saudi Arabia Riyals"]
[null,null,null,null,null,null,null,null,"Solomon Islands Dollars"]
[null,null,null,null,null,null,null,null,"Seychelles Rupees"]
[null,null,null,null,null,null,null,null,"Sudan Pounds"]
[null,null,null,null,null,null,null,null,"Sweden Kronor"]
[null,null,null,null,null,null,null,null,"Singapore Dollars"]
[null,null,null,null,null,null,null,null,"Saint Helena Pounds"]
[null,null,null,null,null,null,null,null,"Slovakia Koruny"]
[null,null,null,null,null,null,null,null,"Sierra Leone Leones"]
[null,null,null,null,null,null,null,null,"Somalia Shillings"]
[null,null,null,null,null,null,null,null,"Seborga Luigini"]
[null,null,null,null,null,null,null,null,"Suriname Dollars"]
[null,null,null,null,null,null,null,null,"São Tome and Principe Dobras"]
[null,null,null,null,null,null,null,null,"El Salvador Colones"]
[null,null,null,null,null,null,null,null,"Syria Pounds"]
[null,null,null,null,null,null,null,null,"Swaziland Emalangeni"]
[null,null,null,null,null,null,null,null,"Thailand Baht"]
[null,null,null,null,null,null,null,null,"Tajikistan Somoni"]
[null,null,null,null,null,null,null,null,"Turkmenistan Manats"]
[null,null,null,null,null,null,null,null,"Tunisia Dinars"]
[null,null,null,null,null,null,null,null,"Tonga Pa'anga"]
[null,null,null,null,null,null,null,null,"Turkey New Lira"]
[null,null,null,null,null,null,null,null,"Trinidad and Tobago Dollars"]
[null,null,null,null,null,null,null,null,"Tuvalu Dollars"]
[null,null,null,null,null,null,null,null,"Taiwan New Dollars"]
[null,null,null,null,null,null,null,null,"Tanzania Shillings"]
[null,null,null,null,null,null,null,null,"Ukraine Hryvnia"]
[null,null,null,null,null,null,null,null,"Uganda Shillings"]
[null,null,null,null,null,null,null,null,"Uruguay Pesos"]
[null,null,null,null,null,null,null,null,"Uzbekistan Sums"]
[null,null,null,null,null,null,null,null,"Venezuela Bolivares"]
[null,null,null,null,null,null,null,null,"Venezuela Bolivares Fuertes"]
[null,null,null,null,null,null,null,null,"Vietnam Dong"]
[null,null,null,null,null,null,null,null,"Vanuatu Vatu"]
[null,null,null,null,null,null,null,null,"Samoa Tala"]
[null,null,null,null,null,null,null,null,"Communauté Financière Africaine Francs BEAC"]
[null,null,null,null,null,null,null,null,"Silver Ounces"]
[null,null,null,null,null,null,null,null,"Gold Ounces"]
[null,null,null,null,null,null,null,null,"East Caribbean Dollars"]
[null,null,null,null,null,null,null,null,"International Monetary Fund Special Drawing Rights"]
[null,null,null,null,null,null,null,null,"Communauté Financière Africaine Francs BCEAO"]
[null,null,null,null,null,null,null,null,"Palladium Ounces"]
[null,null,null,null,null,null,null,null,"Comptoirs Français du Pacifique Francs"]
[null,null,null,null,null,null,null,null,"Platinum Ounces"]
[null,null,null,null,null,null,null,null,"Yemen Rials"]
[null,null,null,null,null,null,null,null,"South Africa Rand"]
[null,null,null,null,null,null,null,null,"Zambia Kwacha"]
[null,null,null,null,null,null,null,null,"Zimbabwe Dollars"]

{"sheet":"Schedule VIA (New)","index":53,"n_rows":425,"n_cols":12,"rows_kept":425,"cut":false,"hidden":true,"merged":[[211,1,211,2],[5,1,5,2],[35,1,35,2],[36,1,36,2],[61,1,61,2],[91,1,91,2],[92,1,92,2],[121,1,121,2],[122,1,122,2],[151,1,151,2],[152,1,152,2],[210,1,210,2]]}
[null,"DRAFT UNCONSOLIDATED SCHEDULE OF FUNDS HELD BY CEDING REINSURERS",null,null,null,null,null,null,{"$f":"HYPERLINK(\"#'Index'!A1\",\"Return to Index\")","v":"Return to Index"}]
[null,{"$f":"'Form 1SFS (Consolidated)'!B3","v":"Enter Company Name"}]
[null,"As at",{"$f":"'Form 1SFS (Consolidated)'!C4","v":"2022-12-31"}]
[null,"expressed in ['000s]",{"$f":"'Form 1SFS (Consolidated)'!C5","v":"United States Dollars"}]
[]
[null,"(A) CASH AND CASH EQUIVALENTS",null,"Enter # of Asset Types"]
[null,null,null,null,{"$f":"YEAR($C$3)","v":2022},{"$f":"YEAR($C$3)","v":2022}]
[null,"Asset Type","Jurisdiction","BSCR Rating ","Face Value","Fair Value"]
[1,"Select",null,"Select"]
[2,"Select",null,"Select"]
[3,"Select",null,"Select"]
[4,"Select",null,"Select"]
[5,"Select",null,"Select"]
[6,"Select",null,"Select"]
[7,"Select",null,"Select"]
[8,"Select",null,"Select"]
[9,"Select",null,"Select"]
[10,"Select",null,"Select"]
[11,"Select",null,"Select"]
[12,"Select",null,"Select"]
[13,"Select",null,"Select"]
[14,"Select",null,"Select"]
[15,"Select",null,"Select"]
[16,"Select",null,"Select"]
[17,"Select",null,"Select"]
[18,"Select",null,"Select"]
[19,"Select",null,"Select"]
[20,"Select",null,"Select"]
[]
[null,"Total Cash & Cash Equivalents",null,null,{"$f":"SUM(E9:E28)","v":0},{"$f":"SUM(F9:F28)","v":0}]
[]
[null,"Form 1SFS Line 1 Cash and Cash Equivalents"]
[]
[null,"Check Section A",null,null,null,{"$f":"ROUND((F30-F32),0)","v":0},{"$f":"IF(F34=0,\"TRUE\",\"FALSE\")","v":"TRUE"}]
[]
[null,"(B) BONDS AND DEBENTURES",null,"Enter # of Asset Types"]
[null,null,null,null,{"$f":"YEAR($C$3)","v":2022},{"$f":"YEAR($C$3)","v":2022}]
[null,"Asset Type","Jurisdiction","BSCR Rating ","Face Value","Fair Value","Average YTM","Effective Duration","Effective Convexity"]
[1,"Select",0,"Select",0,0,0,0,0]
[2,"Select",0,"Select",0,0,0,0,0]
[3,"Select",0,"Select",0,0,0,0,0]
[4,"Select",0,"Select",0,0,0,0,0]
[5,"Select",0,"Select",0,0,0,0,0]
[6,"Select",0,"Select",0,0,0,0,0]
[7,"Select",0,"Select",0,0,0,0,0]
[8,"Select",0,"Select",0,0,0,0,0]
[9,"Select",0,"Select",0,0,0,0,0]
[10,"Select",0,"Select",0,0,0,0,0]
[11,"Select",0,"Select",0,0,0,0,0]
[12,"Select",0,"Select",0,0,0,0,0]
[13,"Select",0,"Select",0,0,0,0,0]
[14,"Select",0,"Select",0,0,0,0,0]
[15,"Select",0,"Select",0,0,0,0,0]
[16,"Select",0,"Select",0,0,0,0,0]
[17,"Select",0,"Select",0,0,0,0,0]
[18,"Select",0,"Select",0,0,0,0,0]
[19,"Select",0,"Select",0,0,0,0,0]
[20,"Select",0,"Select",0,0,0,0,0]
[]
[null,"Total Bonds & Debentures",null,null,{"$f":"SUM(E39:E58)","v":0},{"$f":"SUM(F39:F58)","v":0},0,0,0]
[]
[null,"(C) SECURITIES/ASSET-BASED SECURITIES",null,"Enter # of Asset Types"]
[null,null,null,null,{"$f":"YEAR($C$3)","v":2022},{"$f":"YEAR($C$3)","v":2022}]
[null,"Asset Type","Jurisdiction","BSCR Rating ","Face Value","Fair Value","Average YTM","Effective Duration","Effective Convexity"]
[1,"Select",0,"Select",0,0,0,0,0]
[2,"Select",0,"Select",0,0,0,0,0]
[3,"Select",0,"Select",0,0,0,0,0]
[4,"Select",0,"Select",0,0,0,0,0]
[5,"Select",0,"Select",0,0,0,0,0]
[6,"Select",0,"Select",0,0,0,0,0]
[7,"Select",0,"Select",0,0,0,0,0]
[8,"Select",0,"Select",0,0,0,0,0]
[9,"Select",0,"Select",0,0,0,0,0]
[10,"Select",0,"Select",0,0,0,0,0]
[11,"Select",0,"Select",0,0,0,0,0]
[12,"Select",0,"Select",0,0,0,0,0]
[13,"Select",0,"Select",0,0,0,0,0]
[14,"Select",0,"Select",0,0,0,0,0]
[15,"Select",0,"Select",0,0,0,0,0]
[16,"Select",0,"Select",0,0,0,0,0]
[17,"Select",0,"Select",0,0,0,0,0]
[18,"Select",0,"Select",0,0,0,0,0]
[19,"Select",0,"Select",0,0,0,0,0]
[20,"Select",0,"Select",0,0,0,0,0]
[]
[null,"Total Securities/Asset-Backed Securities",null,null,{"$f":"SUM(E65:E84)","v":0},{"$f":"SUM(F65:F84)","v":0},0,0,0]
[]
[null,"Form 1SFS Lines 2(b) & 3(b) Bonds & Debentures"]
[]
[null,"Check Sections B & C",null,null,null,{"$f":"ROUND(((F86+F60)-F88),0)","v":0},{"$f":"IF(F90=0,\"TRUE\",\"FALSE\")","v":"TRUE"}]
[]
[null,"(D) LISTED EQUITIES AND PREFERENCE SHARES",null,"Enter # of Asset Types"]
[null,null,null,null,{"$f":"YEAR($C$3)","v":2022},{"$f":"YEAR($C$3)","v":2022}]
[null,"Asset Type","Stock Exchange","BSCR Rating ","Face Value","Fair Value"]
[1,"Select",0,"Select",0,0]
[2,"Select",0,"Select",0,0]
[3,"Select",0,"Select",0,0]
[4,"Select",0,"Select",0,0]
[5,"Select",0,"Select",0,0]
[6,"Select",0,"Select",0,0]
[7,"Select",0,"Select",0,0]
[8,"Select",0,"Select",0,0]
[9,"Select",0,"Select",0,0]
[10,"Select",0,"Select",0,0]
[11,"Select",0,"Select",0,0]
[12,"Select",0,"Select",0,0]
[13,"Select",0,"Select",0,0]
[14,"Select",0,"Select",0,0]
[15,"Select",0,"Select",0,0]
[16,"Select",0,"Select",0,0]
[17,"Select",0,"Select",0,0]
[18,"Select",0,"Select",0,0]
[19,"Select",0,"Select",0,0]
[20,"Select",0,"Select",0,0]
[]
[null,"Total Listed Equities & Preference Shares",null,null,{"$f":"SUM(E95:E114)","v":0},{"$f":"SUM(F95:F114)","v":0}]
[]
[null,"Form 1SFS Lines 2(d) & 3(d) Bonds & Debentures"]
[]
[null,"Check Section D",null,null,null,{"$f":"ROUND((F116-F118),0)","v":0},{"$f":"IF(F120=0,\"TRUE\",\"FALSE\")","v":"TRUE"}]
[]
[null,"(E) ALTERNATIVE INVESTMENTS",null,"Enter # of Asset Types"]
[null,null,null,null,{"$f":"YEAR($C$3)","v":2022},{"$f":"YEAR($C$3)","v":2022}]
[null,"Asset Type","Jurisdiction","BSCR Rating ","Face Value","Fair Value","Average YTM","Effective Duration","Effective Convexity"]
[1,"Select",0,"Select",0,0,0,0,0]
[2,"Select",0,"Select",0,0,0,0,0]
[3,"Select",0,"Select",0,0,0,0,0]
[4,"Select",0,"Select",0,0,0,0,0]
[5,"Select",0,"Select",0,0,0,0,0]
[6,"Select",0,"Select",0,0,0,0,0]
[7,"Select",0,"Select",0,0,0,0,0]
[8,"Select",0,"Select",0,0,0,0,0]
[9,"Select",0,"Select",0,0,0,0,0]
[10,"Select",0,"Select",0,0,0,0,0]
[11,"Select",0,"Select",0,0,0,0,0]
[12,"Select",0,"Select",0,0,0,0,0]
[13,"Select",0,"Select",0,0,0,0,0]
[14,"Select",0,"Select",0,0,0,0,0]
[15,"Select",0,"Select",0,0,0,0,0]
[16,"Select",0,"Select",0,0,0,0,0]
[17,"Select",0,"Select",0,0,0,0,0]
[18,"Select",0,"Select",0,0,0,0,0]
[19,"Select",0,"Select",0,0,0,0,0]
[20,"Select",0,"Select",0,0,0,0,0]
[]
[null,"Total Alternative Investments",null,null,{"$f":"SUM(E125:E144)","v":0},{"$f":"SUM(F125:F144)","v":0},0,0,0]
[]
[null,"Form 1SFS Lines 2(e) & 3(e) Alternative Investments"]
[]
[null,"Check Section E",null,null,null,{"$f":"ROUND((F146-F148),0)","v":0},{"$f":"IF(F150=0,\"TRUE\",\"FALSE\")","v":"TRUE"}]
[]
[null,"(F) LOANS",null,"Enter # of Asset Types"]
[null,null,null,null,{"$f":"YEAR($C$3)","v":2022},{"$f":"YEAR($C$3)","v":2022}]
[null,"Asset Type","Jurisdiction","BSCR Rating ","Face Value","Fair Value","Average YTM","Effective Duration","Effective Convexity"]
[1,"Select",0,"Select",0,0,0,0,0]
[2,"Select",0,"Select",0,0,0,0,0]
[3,"Select",0,"Select",0,0,0,0,0]
[4,"Select",0,"Select",0,0,0,0,0]
[5,"Select",0,"Select",0,0,0,0,0]
[6,"Select",0,"Select",0,0,0,0,0]
[7,"Select",0,"Select",0,0,0,0,0]
[8,"Select",0,"Select",0,0,0,0,0]
[9,"Select",0,"Select",0,0,0,0,0]
[10,"Select",0,"Select",0,0,0,0,0]
[11,"Select",0,"Select",0,0,0,0,0]
[12,"Select",0,"Select",0,0,0,0,0]
[13,"Select",0,"Select",0,0,0,0,0]
[14,"Select",0,"Select",0,0,0,0,0]
[15,"Select",0,"Select",0,0,0,0,0]
[16,"Select",0,"Select",0,0,0,0,0]
[17,"Select",0,"Select",0,0,0,0,0]
[18,"Select",0,"Select",0,0,0,0,0]
[19,"Select",0,"Select",0,0,0,0,0]
[20,"Select",0,"Select",0,0,0,0,0]
[]
[null,"Total Loans",null,null,{"$f":"SUM(E155:E174)","v":0},{"$f":"SUM(F155:F174)","v":0},0,0,0]
[]
[null,"Form 1SFS Line 5(c) Mortgage Loans"]
[]
[null,"Check Section F",null,null,null,{"$f":"ROUND((F176-F178),0)","v":0},{"$f":"IF(F180=0,\"TRUE\",\"FALSE\")","v":"TRUE"}]
[]
[null,"(G) DERIVATIVES",null,"Enter # of Derivative Types"]
[null,"Derivative Type","Underlying","Purpose","Position",{"$f":"YEAR($C$3)&\" Market Value\"","v":"2022 Market Value"},"Centrally Cleared","Notional Value","Exposure (Dollar Delta, DV01, CS01"]
[1,"Select","Select","Select","Select",0,"Select",0,0]
[2,"Select","Select","Select","Select",0,"Select",0,0]
[3,"Select","Select","Select","Select",0,"Select",0,0]
[4,"Select","Select","Select","Select",0,"Select",0,0]
[5,"Select","Select","Select","Select",0,"Select",0,0]
[6,"Select","Select","Select","Select",0,"Select",0,0]
[7,"Select","Select","Select","Select",0,"Select",0,0]
[8,"Select","Select","Select","Select",0,"Select",0,0]
[9,"Select","Select","Select","Select",0,"Select",0,0]
[10,"Select","Select","Select","Select",0,"Select",0,0]
[11,"Select","Select","Select","Select",0,"Select",0,0]
[12,"Select","Select","Select","Select",0,"Select",0,0]
[13,"Select","Select","Select","Select",0,"Select",0,0]
[14,"Select","Select","Select","Select",0,"Select",0,0]
[15,"Select","Select","Select","Select",0,"Select",0,0]
[16,"Select","Select","Select","Select",0,"Select",0,0]
[17,"Select","Select","Select","Select",0,"Select",0,0]
[18,"Select","Select","Select","Select",0,"Select",0,0]
[19,"Select","Select","Select","Select",0,"Select",0,0]
[20,"Select","Select","Select","Select",0,"Select",0,0]
[]
[null,"Total Derivatives",null,null,null,{"$f":"SUM(F184:F203)","v":0},null,{"$f":"SUM(H184:H203)","v":0},{"$f":"SUM(I184:I203)","v":0}]
[]
[null,"Form 1SFS Line 13(a) Derivatives"]
[]
[null,"Check Section G",null,null,null,{"$f":"ROUND((F205-F207),0)","v":0},{"$f":"IF(F209=0,\"TRUE\",\"FALSE\")","v":"TRUE"}]
[]
[null,"(H) OTHER ASSETS",null,"Enter # of Asset Types"]
[null,null,null,null,{"$f":"YEAR($C$3)","v":2022},{"$f":"YEAR($C$3)","v":2022}]
[null,"Asset Type","Jurisdiction","BSCR Rating ","Face Value","Fair Value","Average YTM","Effective Duration","Effective Convexity"]
[1,"Select",0,"Select",0,0,0,0,0]
[2,"Select",0,"Select",0,0,0,0,0]
[3,"Select",0,"Select",0,0,0,0,0]
[4,"Select",0,"Select",0,0,0,0,0]
[5,"Select",0,"Select",0,0,0,0,0]
[6,"Select",0,"Select",0,0,0,0,0]
[7,"Select",0,"Select",0,0,0,0,0]
[8,"Select",0,"Select",0,0,0,0,0]
[9,"Select",0,"Select",0,0,0,0,0]
[10,"Select",0,"Select",0,0,0,0,0]
[11,"Select",0,"Select",0,0,0,0,0]
[12,"Select",0,"Select",0,0,0,0,0]
[13,"Select",0,"Select",0,0,0,0,0]
[14,"Select",0,"Select",0,0,0,0,0]
[15,"Select",0,"Select",0,0,0,0,0]
[16,"Select",0,"Select",0,0,0,0,0]
[17,"Select",0,"Select",0,0,0,0,0]
[18,"Select",0,"Select",0,0,0,0,0]
[19,"Select",0,"Select",0,0,0,0,0]
[20,"Select",0,"Select",0,0,0,0,0]
[]
[null,"Total Other Assets",null,null,null,{"$f":"SUM(F214:F233)","v":0},0,0,0]
[]
[null,"Form 1SFS Lines X(x) Other Assets"]
[]
[null,"Check Section G",null,null,null,{"$f":"ROUND((F235-F237),0)","v":0},{"$f":"IF(F239=0,\"TRUE\",\"FALSE\")","v":"TRUE"}]
[]
[null,"TOTAL ASSETS",null,null,null,{"$f":"F30+F60+F116+F86+F146+F235+F205+F176","v":0}]
[]
[null,"TOTAL ASSETS (Form 1SFS Line 15)",null,null,null,{"$f":"F34+F90+F120+F150+F180+F209+F239","v":0}]
[]
[null,"Check Form 1SFS",null,null,null,{"$f":"IF(F247=0,\"TRUE\",\"FALSE\")","v":"TRUE"}]
[null,null,null,null,null,{"$f":"IF(ROUND((F241-(0)),0)=0,\"TRUE\",\"FALSE\")","v":"TRUE"}]
[null,"Difference",null,null,null,{"$f":"ROUND((F243-F241),0)","v":0}]
[]
[null,"EFFECTIVE DURATION",null,null,0]
[]
[null,"EFFECTIVE CONVEXITY",null,null,0]
[]
[]
[]
["Select","Select","Select","Select","Select","Select","Select","Select","Select","Select","Select","Select"]
["Cash ","Sovereign Bonds","RMBS - Agency","Public Equities","Private Equity","Investment Income Due and Accrued","Energy","Holding Entity","Significant Influence",null,"Insured/Guaranteed Mortgages"]
["Certificates of Deposit","Municipals","RMBS - Non-agency","Public Preferred Stock","Investment Funds","Accounts and Premiums Receivable","Materials","Operating Entity","Control",null,"Other Commercial and Farm Mortgages"]
["Money Market Funds","Supranationals (multilateral development banks and international organizations)","CMBS","Exchange Traded Funds","Hedge Funds","Reinsurance Balance Receivable","Industrial","Branch",null,null,"Other Residential Mortgages"]
["Other ","Corporate bonds","CLOs","Other","Private Credit Funds","Funds Held by Ceding Reinsurers","Consumer Discretionary","Select",null,null,"Mortgages Not In Good Standing"]
[null,"Mutual Funds","CDOs",null,"Catastrophe Bonds","Sundry Assets","Consumer Staples",null,null,null,"Collateral Loans"]
[null,"Other - Secured Bonds","Auto Loan ABS",null,"Other Insurance-Linked Securities","Letter of Credit, Guarantees and Other Instruments","Healthcare",null,null,null,"Middle Market Loans"]
[null,"Other - Unsecured Bonds","Student Loan ABS",null,"Infrastructure Debt","Other","Financial",null,null,null,"Other Direct Private Lending"]
[null,"Other ","Credit Card Receivable ABS",null,"Equity Investments in Infrastructure",null,null,null,null,null,"Policy Loans"]
[null,null,"Other Asset Backed Securities",null,"Investment in Affiliates",null,null,null,null,null,"Other"]
[null,null,null,null,"Advances to Affiliates"]
[null,null,null,null,"Equity Release / Reverse Mortgages"]
[null,null,null,null,"Other "]
[]
[]
[]
["Select","Select","Select","Select","Select","Select",null,"Select"]
["Listed options","Equity","Hedging","Long / Receive Fixed / Sell Protection","Private Equity","Investment Income Due and Accrued",null,"BSCR Rating 0"]
["Futures","Debt","Speculative","Short / Receive Floating / Buy Protection","Investment Funds","Accounts and Premiums Receivable",null,"BSCR Rating 1",null,null,"Select"]
["Forwards","Interest Rate",null,null,"Hedge Funds","Reinsurance Balance Receivable",null,"BSCR Rating 2",null,null,"Insured/Guaranteed Mortgages"]
["Swaps","Inflation",null,null,"Private Credit Funds","Sundry Assets",null,"BSCR Rating 3",null,null,"Other Commercial and Farm Mortgages"]
["Swaptions","Credit","Select",null,"Catastrophe Bonds","Letter of Credit, Guarantees and Other Instruments",null,"BSCR Rating 4",null,null,"Other Residential Mortgages"]
["OTC options","Currencies","Yes",null,"Other Insurance-Linked Securities","Other",null,"BSCR Rating 5",null,null,"Mortgages Not In Good Standing"]
["Other","Commodities","No",null,"Advances to Affiliates",null,null,"BSCR Rating 6",null,null,"Collateral Loans"]
[null,"Other",null,null,"Infrastructure Debt",null,null,"BSCR Rating 7",null,null,"Middle Market Loans"]
[null,null,null,null,"Equity Investments in Infrastructure",null,null,"BSCR Rating 8",null,null,"Other Direct Private Lending"]
[null,null,null,null,"Equity Release / Reverse Mortgages",null,null,null,null,null,"Policy Loans"]
[null,null,null,null,"Other ",null,null,null,null,null,"Other"]
[]
[null,null,null,null,null,null,null,null,"Switzerland Francs"]
[null,null,null,null,null,null,null,null,"Chile Pesos"]
[null,null,null,null,null,null,null,null,"China Yuan Renminbi"]
[null,null,null,null,null,null,null,null,"Colombia Pesos"]
[null,null,null,null,null,null,null,null,"Costa Rica Colones"]
[null,null,null,null,null,null,null,null,"Cuba Convertible Pesos"]
[null,null,null,null,null,null,null,null,"Cuba Pesos"]
[null,null,null,null,null,null,null,null,"Cape Verde Escudos"]
[null,null,null,null,null,null,null,null,"Czech Republic Koruny"]
[null,null,null,null,null,null,null,null,"Djibouti Francs"]
[null,null,null,null,null,null,null,null,"Denmark Kroner"]
[null,null,null,null,null,null,null,null,"Dominican Republic Pesos"]
[null,null,null,null,null,null,null,null,"Algeria Dinars"]
[null,null,null,null,null,null,null,null,"Estonia Krooni"]
[null,null,null,null,null,null,null,null,"Egypt Pounds"]
[null,null,null,null,null,null,null,null,"Eritrea Nakfa"]
[null,null,null,null,null,null,null,null,"Ethiopia Birr"]
[null,null,null,null,null,null,null,null,"Fiji Dollars"]
[null,null,null,null,null,null,null,null,"Falkland Islands Pounds"]
[null,null,null,null,null,null,null,null,"United Kingdom Pounds"]
[null,null,null,null,null,null,null,null,"Georgia Lari"]
[null,null,null,null,null,null,null,null,"Guernsey Pounds"]
[null,null,null,null,null,null,null,null,"Ghana Cedis"]
[null,null,null,null,null,null,null,null,"Gibraltar Pounds"]
[null,null,null,null,null,null,null,null,"Gambia Dalasi"]
[null,null,null,null,null,null,null,null,"Guinea Francs"]
[null,null,null,null,null,null,null,null,"Guatemala Quetzales"]
[null,null,null,null,null,null,null,null,"Guyana Dollars"]
[null,null,null,null,null,null,null,null,"Hong Kong Dollars"]
[null,null,null,null,null,null,null,null,"Honduras Lempiras"]
[null,null,null,null,null,null,null,null,"Croatia Kuna"]
[null,null,null,null,null,null,null,null,"Haiti Gourdes"]
[null,null,null,null,null,null,null,null,"Hungary Forint"]
[null,null,null,null,null,null,null,null,"Indonesia Rupiahs"]
[null,null,null,null,null,null,null,null,"Israel New Shekels"]
[null,null,null,null,null,null,null,null,"Isle of Man Pounds"]
[null,null,null,null,null,null,null,null,"India Rupees"]
[null,null,null,null,null,null,null,null,"Iraq Dinars"]
[null,null,null,null,null,null,null,null,"Iran Rials"]
[null,null,null,null,null,null,null,null,"Iceland Kronur"]
[null,null,null,null,null,null,null,null,"Jersey Pounds"]
[null,null,null,null,null,null,null,null,"Jamaica Dollars"]
[null,null,null,null,null,null,null,null,"Jordan Dinars"]
[null,null,null,null,null,null,null,null,"Japan Yen"]
[null,null,null,null,null,null,null,null,"Kenya Shillings"]
[null,null,null,null,null,null,null,null,"Kyrgyzstan Soms"]
[null,null,null,null,null,null,null,null,"Cambodia Riels"]
[null,null,null,null,null,null,null,null,"Comoros Francs"]
[null,null,null,null,null,null,null,null,"North Korea Won"]
[null,null,null,null,null,null,null,null,"South Korea Won"]
[null,null,null,null,null,null,null,null,"Kuwait Dinars"]
[null,null,null,null,null,null,null,null,"Cayman Islands Dollars"]
[null,null,null,null,null,null,null,null,"Kazakhstan Tenge"]
[null,null,null,null,null,null,null,null,"Laos Kips"]
[null,null,null,null,null,null,null,null,"Lebanon Pounds"]
[null,null,null,null,null,null,null,null,"Sri Lanka Rupees"]
[null,null,null,null,null,null,null,null,"Liberia Dollars"]
[null,null,null,null,null,null,null,null,"Lesotho Maloti"]
[null,null,null,null,null,null,null,null,"Lithuania Litai"]
[null,null,null,null,null,null,null,null,"Latvia Lati"]
[null,null,null,null,null,null,null,null,"Libya Dinars"]
[null,null,null,null,null,null,null,null,"Morocco Dirhams"]
[null,null,null,null,null,null,null,null,"Moldova Lei"]
[null,null,null,null,null,null,null,null,"Madagascar Ariary"]
[null,null,null,null,null,null,null,null,"Macedonia Denars"]
[null,null,null,null,null,null,null,null,"Myanmar Kyats"]
[null,null,null,null,null,null,null,null,"Mongolia Tugriks"]
[null,null,null,null,null,null,null,null,"Macau Patacas"]
[null,null,null,null,null,null,null,null,"Mauritania Ouguiyas"]
[null,null,null,null,null,null,null,null,"Mauritius Rupees"]
[null,null,null,null,null,null,null,null,"Maldives Rufiyaa"]
[null,null,null,null,null,null,null,null,"Malawi Kwachas"]
[null,null,null,null,null,null,null,null,"Mexico Pesos"]
[null,null,null,null,null,null,null,null,"Malaysia Ringgits"]
[null,null,null,null,null,null,null,null,"Mozambique Meticais"]
[null,null,null,null,null,null,null,null,"Namibia Dollars"]
[null,null,null,null,null,null,null,null,"Nigeria Nairas"]
[null,null,null,null,null,null,null,null,"Nicaragua Cordobas"]
[null,null,null,null,null,null,null,null,"Norway Kroner"]
[null,null,null,null,null,null,null,null,"Nepal Rupees"]
[null,null,null,null,null,null,null,null,"New Zealand Dollars"]
[null,null,null,null,null,null,null,null,"Oman Rials"]
[null,null,null,null,null,null,null,null,"Panama Balboas"]
[null,null,null,null,null,null,null,null,"Peru Nuevos Soles"]
[null,null,null,null,null,null,null,null,"Papua New Guinea Kina"]
[null,null,null,null,null,null,null,null,"Philippines Pesos"]
[null,null,null,null,null,null,null,null,"Pakistan Rupees"]
[null,null,null,null,null,null,null,null,"Poland Zlotych"]
[null,null,null,null,null,null,null,null,"Paraguay Guarani"]
[null,null,null,null,null,null,null,null,"Qatar Riyals"]
[null,null,null,null,null,null,null,null,"Romania New Lei"]
[null,null,null,null,null,null,null,null,"Serbia Dinars"]
[null,null,null,null,null,null,null,null,"Russia Rubles"]
[null,null,null,null,null,null,null,null,"Rwanda Francs"]
[null,null,null,null,null,null,null,null,"Saudi Arabia Riyals"]
[null,null,null,null,null,null,null,null,"Solomon Islands Dollars"]
[null,null,null,null,null,null,null,null,"Seychelles Rupees"]
[null,null,null,null,null,null,null,null,"Sudan Pounds"]
[null,null,null,null,null,null,null,null,"Sweden Kronor"]
[null,null,null,null,null,null,null,null,"Singapore Dollars"]
[null,null,null,null,null,null,null,null,"Saint Helena Pounds"]
[null,null,null,null,null,null,null,null,"Slovakia Koruny"]
[null,null,null,null,null,null,null,null,"Sierra Leone Leones"]
[null,null,null,null,null,null,null,null,"Somalia Shillings"]
[null,null,null,null,null,null,null,null,"Seborga Luigini"]
[null,null,null,null,null,null,null,null,"Suriname Dollars"]
[null,null,null,null,null,null,null,null,"São Tome and Principe Dobras"]
[null,null,null,null,null,null,null,null,"El Salvador Colones"]
[null,null,null,null,null,null,null,null,"Syria Pounds"]
[null,null,null,null,null,null,null,null,"Swaziland Emalangeni"]
[null,null,null,null,null,null,null,null,"Thailand Baht"]
[null,null,null,null,null,null,null,null,"Tajikistan Somoni"]
[null,null,null,null,null,null,null,null,"Turkmenistan Manats"]
[null,null,null,null,null,null,null,null,"Tunisia Dinars"]
[null,null,null,null,null,null,null,null,"Tonga Pa'anga"]
[null,null,null,null,null,null,null,null,"Turkey New Lira"]
[null,null,null,null,null,null,null,null,"Trinidad and Tobago Dollars"]
[null,null,null,null,null,null,null,null,"Tuvalu Dollars"]
[null,null,null,null,null,null,null,null,"Taiwan New Dollars"]
[null,null,null,null,null,null,null,null,"Tanzania Shillings"]
[null,null,null,null,null,null,null,null,"Ukraine Hryvnia"]
[null,null,null,null,null,null,null,null,"Uganda Shillings"]
[null,null,null,null,null,null,null,null,"Uruguay Pesos"]
[null,null,null,null,null,null,null,null,"Uzbekistan Sums"]
[null,null,null,null,null,null,null,null,"Venezuela Bolivares"]
[null,null,null,null,null,null,null,null,"Venezuela Bolivares Fuertes"]
[null,null,null,null,null,null,null,null,"Vietnam Dong"]
[null,null,null,null,null,null,null,null,"Vanuatu Vatu"]
[null,null,null,null,null,null,null,null,"Samoa Tala"]
[null,null,null,null,null,null,null,null,"Communauté Financière Africaine Francs BEAC"]
[null,null,null,null,null,null,null,null,"Silver Ounces"]
[null,null,null,null,null,null,null,null,"Gold Ounces"]
[null,null,null,null,null,null,null,null,"East Caribbean Dollars"]
[null,null,null,null,null,null,null,null,"International Monetary Fund Special Drawing Rights"]
[null,null,null,null,null,null,null,null,"Communauté Financière Africaine Francs BCEAO"]
[null,null,null,null,null,null,null,null,"Palladium Ounces"]
[null,null,null,null,null,null,null,null,"Comptoirs Français du Pacifique Francs"]
[null,null,null,null,null,null,null,null,"Platinum Ounces"]
[null,null,null,null,null,null,null,null,"Yemen Rials"]
[null,null,null,null,null,null,null,null,"South Africa Rand"]
[null,null,null,null,null,null,null,null,"Zambia Kwacha"]
[null,null,null,null,null,null,null,null,"Zimbabwe Dollars"]

{"sheet":"Schedule VI (EBS) (New)","index":54,"n_rows":425,"n_cols":12,"rows_kept":425,"cut":false,"hidden":true,"merged":[[211,1,211,2],[5,1,5,2],[35,1,35,2],[36,1,36,2],[61,1,61,2],[91,1,91,2],[92,1,92,2],[121,1,121,2],[122,1,122,2],[151,1,151,2],[152,1,152,2],[210,1,210,2]]}
[null,"DRAFT EBS SCHEDULE OF ASSETS",null,null,null,null,null,null,{"$f":"HYPERLINK(\"#'Index'!A1\",\"Return to Index\")","v":"Return to Index"}]
[null,{"$f":"'Form 1SFS (Consolidated)'!B3","v":"Enter Company Name"}]
[null,"As at",{"$f":"'Form 1SFS (Consolidated)'!C4","v":"2022-12-31"}]
[null,"expressed in ['000s]",{"$f":"'Form 1SFS (Consolidated)'!C5","v":"United States Dollars"}]
[]
[null,"(A) CASH AND CASH EQUIVALENTS",null,"Enter # of Asset Types"]
[null,null,null,null,{"$f":"YEAR($C$3)","v":2022},{"$f":"YEAR($C$3)","v":2022}]
[null,"Asset Type","Jurisdiction","BSCR Rating ","Face Value","Fair Value"]
[1,"Select",null,"Select"]
[2,"Select",null,"Select"]
[3,"Select",null,"Select"]
[4,"Select",null,"Select"]
[5,"Select",null,"Select"]
[6,"Select",null,"Select"]
[7,"Select",null,"Select"]
[8,"Select",null,"Select"]
[9,"Select",null,"Select"]
[10,"Select",null,"Select"]
[11,"Select",null,"Select"]
[12,"Select",null,"Select"]
[13,"Select",null,"Select"]
[14,"Select",null,"Select"]
[15,"Select",null,"Select"]
[16,"Select",null,"Select"]
[17,"Select",null,"Select"]
[18,"Select",null,"Select"]
[19,"Select",null,"Select"]
[20,"Select",null,"Select"]
[]
[null,"Total Cash & Cash Equivalents",null,null,{"$f":"SUM(E9:E28)","v":0},{"$f":"SUM(F9:F28)","v":0}]
[]
[null,"Form 1EBS Line 1 Cash and Cash Equivalents",null,null,null,{"$f":"'Form 1EBS'!F10","v":0}]
[]
[null,"Check Section A",null,null,null,{"$f":"ROUND((F30-F32),0)","v":0},{"$f":"IF(F34=0,\"TRUE\",\"FALSE\")","v":"TRUE"}]
[]
[null,"(B) BONDS AND DEBENTURES",null,"Enter # of Asset Types"]
[null,null,null,null,{"$f":"YEAR($C$3)","v":2022},{"$f":"YEAR($C$3)","v":2022}]
[null,"Asset Type","Jurisdiction","BSCR Rating ","Face Value","Fair Value","Average YTM","Effective Duration","Effective Convexity"]
[1,"Select",0,"Select",0,0,0,0,0]
[2,"Select",0,"Select",0,0,0,0,0]
[3,"Select",0,"Select",0,0,0,0,0]
[4,"Select",0,"Select",0,0,0,0,0]
[5,"Select",0,"Select",0,0,0,0,0]
[6,"Select",0,"Select",0,0,0,0,0]
[7,"Select",0,"Select",0,0,0,0,0]
[8,"Select",0,"Select",0,0,0,0,0]
[9,"Select",0,"Select",0,0,0,0,0]
[10,"Select",0,"Select",0,0,0,0,0]
[11,"Select",0,"Select",0,0,0,0,0]
[12,"Select",0,"Select",0,0,0,0,0]
[13,"Select",0,"Select",0,0,0,0,0]
[14,"Select",0,"Select",0,0,0,0,0]
[15,"Select",0,"Select",0,0,0,0,0]
[16,"Select",0,"Select",0,0,0,0,0]
[17,"Select",0,"Select",0,0,0,0,0]
[18,"Select",0,"Select",0,0,0,0,0]
[19,"Select",0,"Select",0,0,0,0,0]
[20,"Select",0,"Select",0,0,0,0,0]
[]
[null,"Total Bonds & Debentures",null,null,{"$f":"SUM(E39:E58)","v":0},{"$f":"SUM(F39:F58)","v":0},0,0,0]
[]
[null,"(C) SECURITIES/ASSET-BASED SECURITIES",null,"Enter # of Asset Types"]
[null,null,null,null,{"$f":"YEAR($C$3)","v":2022},{"$f":"YEAR($C$3)","v":2022}]
[null,"Asset Type","Jurisdiction","BSCR Rating ","Face Value","Fair Value","Average YTM","Effective Duration","Effective Convexity"]
[1,"Select",0,"Select",0,0,0,0,0]
[2,"Select",0,"Select",0,0,0,0,0]
[3,"Select",0,"Select",0,0,0,0,0]
[4,"Select",0,"Select",0,0,0,0,0]
[5,"Select",0,"Select",0,0,0,0,0]
[6,"Select",0,"Select",0,0,0,0,0]
[7,"Select",0,"Select",0,0,0,0,0]
[8,"Select",0,"Select",0,0,0,0,0]
[9,"Select",0,"Select",0,0,0,0,0]
[10,"Select",0,"Select",0,0,0,0,0]
[11,"Select",0,"Select",0,0,0,0,0]
[12,"Select",0,"Select",0,0,0,0,0]
[13,"Select",0,"Select",0,0,0,0,0]
[14,"Select",0,"Select",0,0,0,0,0]
[15,"Select",0,"Select",0,0,0,0,0]
[16,"Select",0,"Select",0,0,0,0,0]
[17,"Select",0,"Select",0,0,0,0,0]
[18,"Select",0,"Select",0,0,0,0,0]
[19,"Select",0,"Select",0,0,0,0,0]
[20,"Select",0,"Select",0,0,0,0,0]
[]
[null,"Total Securities/Asset-Backed Securities",null,null,{"$f":"SUM(E65:E84)","v":0},{"$f":"SUM(F65:F84)","v":0},0,0,0]
[]
[null,"Form 1EBS Lines 2(b) & 3(b) Bonds & Debentures",null,null,null,{"$f":"'Form 1EBS'!F13+'Form 1EBS'!F23","v":0}]
[]
[null,"Check Sections B & C",null,null,null,{"$f":"ROUND(((F86+F60)-F88),0)","v":0},{"$f":"IF(F90=0,\"TRUE\",\"FALSE\")","v":"TRUE"}]
[]
[null,"(D) LISTED EQUITIES AND PREFERENCE SHARES",null,"Enter # of Asset Types"]
[null,null,null,null,{"$f":"YEAR($C$3)","v":2022},{"$f":"YEAR($C$3)","v":2022}]
[null,"Asset Type","Stock Exchange","BSCR Rating ","Face Value","Fair Value"]
[1,"Select",0,"Select",0,0]
[2,"Select",0,"Select",0,0]
[3,"Select",0,"Select",0,0]
[4,"Select",0,"Select",0,0]
[5,"Select",0,"Select",0,0]
[6,"Select",0,"Select",0,0]
[7,"Select",0,"Select",0,0]
[8,"Select",0,"Select",0,0]
[9,"Select",0,"Select",0,0]
[10,"Select",0,"Select",0,0]
[11,"Select",0,"Select",0,0]
[12,"Select",0,"Select",0,0]
[13,"Select",0,"Select",0,0]
[14,"Select",0,"Select",0,0]
[15,"Select",0,"Select",0,0]
[16,"Select",0,"Select",0,0]
[17,"Select",0,"Select",0,0]
[18,"Select",0,"Select",0,0]
[19,"Select",0,"Select",0,0]
[20,"Select",0,"Select",0,0]
[]
[null,"Total Listed Equities & Preference Shares",null,null,{"$f":"SUM(E95:E114)","v":0},{"$f":"SUM(F95:F114)","v":0}]
[]
[null,"Form 1EBS Lines 2(d) & 3(d) Equities & Preference Shares",null,null,null,{"$f":"'Form 1EBS'!F18+'Form 1EBS'!F28","v":0}]
[]
[null,"Check Section D",null,null,null,{"$f":"ROUND((F116-F118),0)","v":0},{"$f":"IF(F120=0,\"TRUE\",\"FALSE\")","v":"TRUE"}]
[]
[null,"(E) ALTERNATIVE INVESTMENTS",null,"Enter # of Asset Types"]
[null,null,null,null,{"$f":"YEAR($C$3)","v":2022},{"$f":"YEAR($C$3)","v":2022}]
[null,"Asset Type","Jurisdiction","BSCR Rating ","Face Value","Fair Value","Average YTM","Effective Duration","Effective Convexity"]
[1,"Select",0,"Select",0,0,0,0,0]
[2,"Select",0,"Select",0,0,0,0,0]
[3,"Select",0,"Select",0,0,0,0,0]
[4,"Select",0,"Select",0,0,0,0,0]
[5,"Select",0,"Select",0,0,0,0,0]
[6,"Select",0,"Select",0,0,0,0,0]
[7,"Select",0,"Select",0,0,0,0,0]
[8,"Select",0,"Select",0,0,0,0,0]
[9,"Select",0,"Select",0,0,0,0,0]
[10,"Select",0,"Select",0,0,0,0,0]
[11,"Select",0,"Select",0,0,0,0,0]
[12,"Select",0,"Select",0,0,0,0,0]
[13,"Select",0,"Select",0,0,0,0,0]
[14,"Select",0,"Select",0,0,0,0,0]
[15,"Select",0,"Select",0,0,0,0,0]
[16,"Select",0,"Select",0,0,0,0,0]
[17,"Select",0,"Select",0,0,0,0,0]
[18,"Select",0,"Select",0,0,0,0,0]
[19,"Select",0,"Select",0,0,0,0,0]
[20,"Select",0,"Select",0,0,0,0,0]
[]
[null,"Total Alternative Investments",null,null,{"$f":"SUM(E125:E144)","v":0},{"$f":"SUM(F125:F144)","v":0},0,0,0]
[]
[null,"Form 1EBS Lines 2(e) & 3(e) Alternative Investments",null,null,null,{"$f":"'Form 1EBS'!F19+'Form 1EBS'!F29","v":0}]
[]
[null,"Check Section E",null,null,null,{"$f":"ROUND((F146-F148),0)","v":0},{"$f":"IF(F150=0,\"TRUE\",\"FALSE\")","v":"TRUE"}]
[]
[null,"(F) LOANS",null,"Enter # of Asset Types"]
[null,null,null,null,{"$f":"YEAR($C$3)","v":2022},{"$f":"YEAR($C$3)","v":2022}]
[null,"Asset Type","Jurisdiction","BSCR Rating ","Face Value","Fair Value","Average YTM","Effective Duration","Effective Convexity"]
[1,"Select",0,"Select",0,0,0,0,0]
[2,"Select",0,"Select",0,0,0,0,0]
[3,"Select",0,"Select",0,0,0,0,0]
[4,"Select",0,"Select",0,0,0,0,0]
[5,"Select",0,"Select",0,0,0,0,0]
[6,"Select",0,"Select",0,0,0,0,0]
[7,"Select",0,"Select",0,0,0,0,0]
[8,"Select",0,"Select",0,0,0,0,0]
[9,"Select",0,"Select",0,0,0,0,0]
[10,"Select",0,"Select",0,0,0,0,0]
[11,"Select",0,"Select",0,0,0,0,0]
[12,"Select",0,"Select",0,0,0,0,0]
[13,"Select",0,"Select",0,0,0,0,0]
[14,"Select",0,"Select",0,0,0,0,0]
[15,"Select",0,"Select",0,0,0,0,0]
[16,"Select",0,"Select",0,0,0,0,0]
[17,"Select",0,"Select",0,0,0,0,0]
[18,"Select",0,"Select",0,0,0,0,0]
[19,"Select",0,"Select",0,0,0,0,0]
[20,"Select",0,"Select",0,0,0,0,0]
[]
[null,"Total Loans",null,null,{"$f":"SUM(E155:E174)","v":0},{"$f":"SUM(F155:F174)","v":0},0,0,0]
[]
[null,"Form 1EBS Line 5(c) Mortgage Loans",null,null,null,{"$f":"'Form 1EBS'!F45","v":0}]
[]
[null,"Check Section F",null,null,null,{"$f":"ROUND((F176-F178),0)","v":0},{"$f":"IF(F180=0,\"TRUE\",\"FALSE\")","v":"TRUE"}]
[]
[null,"(G) DERIVATIVES",null,"Enter # of Derivative Types"]
[null,"Derivative Type","Underlying","Purpose","Position",{"$f":"YEAR($C$3)&\" Market Value\"","v":"2022 Market Value"},"Centrally Cleared","Notional Value","Exposure (Dollar Delta, DV01, CS01"]
[1,"Select","Select","Select","Select",0,"Select",0,0]
[2,"Select","Select","Select","Select",0,"Select",0,0]
[3,"Select","Select","Select","Select",0,"Select",0,0]
[4,"Select","Select","Select","Select",0,"Select",0,0]
[5,"Select","Select","Select","Select",0,"Select",0,0]
[6,"Select","Select","Select","Select",0,"Select",0,0]
[7,"Select","Select","Select","Select",0,"Select",0,0]
[8,"Select","Select","Select","Select",0,"Select",0,0]
[9,"Select","Select","Select","Select",0,"Select",0,0]
[10,"Select","Select","Select","Select",0,"Select",0,0]
[11,"Select","Select","Select","Select",0,"Select",0,0]
[12,"Select","Select","Select","Select",0,"Select",0,0]
[13,"Select","Select","Select","Select",0,"Select",0,0]
[14,"Select","Select","Select","Select",0,"Select",0,0]
[15,"Select","Select","Select","Select",0,"Select",0,0]
[16,"Select","Select","Select","Select",0,"Select",0,0]
[17,"Select","Select","Select","Select",0,"Select",0,0]
[18,"Select","Select","Select","Select",0,"Select",0,0]
[19,"Select","Select","Select","Select",0,"Select",0,0]
[20,"Select","Select","Select","Select",0,"Select",0,0]
[]
[null,"Total Derivatives",null,null,null,{"$f":"SUM(F184:F203)","v":0},null,{"$f":"SUM(H184:H203)","v":0},{"$f":"SUM(I184:I203)","v":0}]
[]
[null,"Form 1EBS Line 13(a) Derivatives",null,null,null,{"$f":"'Form 1EBS'!F74","v":0}]
[]
[null,"Check Section G",null,null,null,{"$f":"ROUND((F205-F207),0)","v":0},{"$f":"IF(F209=0,\"TRUE\",\"FALSE\")","v":"TRUE"}]
[]
[null,"(H) OTHER ASSETS",null,"Enter # of Asset Types"]
[null,null,null,null,{"$f":"YEAR($C$3)","v":2022},{"$f":"YEAR($C$3)","v":2022}]
[null,"Asset Type","Jurisdiction","BSCR Rating ","Face Value","Fair Value","Average YTM","Effective Duration","Effective Convexity"]
[1,"Select",0,"Select",0,0,0,0,0]
[2,"Select",0,"Select",0,0,0,0,0]
[3,"Select",0,"Select",0,0,0,0,0]
[4,"Select",0,"Select",0,0,0,0,0]
[5,"Select",0,"Select",0,0,0,0,0]
[6,"Select",0,"Select",0,0,0,0,0]
[7,"Select",0,"Select",0,0,0,0,0]
[8,"Select",0,"Select",0,0,0,0,0]
[9,"Select",0,"Select",0,0,0,0,0]
[10,"Select",0,"Select",0,0,0,0,0]
[11,"Select",0,"Select",0,0,0,0,0]
[12,"Select",0,"Select",0,0,0,0,0]
[13,"Select",0,"Select",0,0,0,0,0]
[14,"Select",0,"Select",0,0,0,0,0]
[15,"Select",0,"Select",0,0,0,0,0]
[16,"Select",0,"Select",0,0,0,0,0]
[17,"Select",0,"Select",0,0,0,0,0]
[18,"Select",0,"Select",0,0,0,0,0]
[19,"Select",0,"Select",0,0,0,0,0]
[20,"Select",0,"Select",0,0,0,0,0]
[]
[null,"Total Other Assets",null,null,null,{"$f":"SUM(F214:F233)","v":0},0,0,0]
[]
[null,"Form 1EBS Lines X(x) Other Assets",null,null,null,0]
[]
[null,"Check Section G",null,null,null,{"$f":"ROUND((F235-F237),0)","v":0},{"$f":"IF(F239=0,\"TRUE\",\"FALSE\")","v":"TRUE"}]
[]
[null,"TOTAL ASSETS",null,null,null,{"$f":"F30+F60+F116+F86+F146+F235+F205+F176","v":0}]
[]
[null,"TOTAL ASSETS (Form 1EBS Line 15)",null,null,null,{"$f":"F34+F90+F120+F150+F180+F209+F239","v":0}]
[]
[null,"Check Form 1EBS",null,null,null,{"$f":"IF(F247=0,\"TRUE\",\"FALSE\")","v":"TRUE"}]
[null,null,null,null,null,{"$f":"IF(ROUND((F241-(0)),0)=0,\"TRUE\",\"FALSE\")","v":"TRUE"}]
[null,"Difference",null,null,null,{"$f":"ROUND((F243-F241),0)","v":0}]
[]
[null,"EFFECTIVE DURATION",null,null,0]
[]
[null,"EFFECTIVE CONVEXITY",null,null,0]
[]
[]
[]
["Select","Select","Select","Select","Select","Select","Select","Select","Select","Select","Select","Select"]
["Cash ","Sovereign Bonds","RMBS - Agency","Public Equities","Private Equity","Investment Income Due and Accrued","Energy","Holding Entity","Significant Influence",null,"Insured/Guaranteed Mortgages"]
["Certificates of Deposit","Municipals","RMBS - Non-agency","Public Preferred Stock","Investment Funds","Accounts and Premiums Receivable","Materials","Operating Entity","Control",null,"Other Commercial and Farm Mortgages"]
["Money Market Funds","Supranationals (multilateral development banks and international organizations)","CMBS","Exchange Traded Funds","Hedge Funds","Reinsurance Balance Receivable","Industrial","Branch",null,null,"Other Residential Mortgages"]
["Other ","Corporate bonds","CLOs","Other","Private Credit Funds","Funds Held by Ceding Reinsurers","Consumer Discretionary","Select",null,null,"Mortgages Not In Good Standing"]
[null,"Mutual Funds","CDOs",null,"Catastrophe Bonds","Sundry Assets","Consumer Staples",null,null,null,"Collateral Loans"]
[null,"Other - Secured Bonds","Auto Loan ABS",null,"Other Insurance-Linked Securities","Letter of Credit, Guarantees and Other Instruments","Healthcare",null,null,null,"Middle Market Loans"]
[null,"Other - Unsecured Bonds","Student Loan ABS",null,"Infrastructure Debt","Other","Financial",null,null,null,"Other Direct Private Lending"]
[null,"Other ","Credit Card Receivable ABS",null,"Equity Investments in Infrastructure",null,null,null,null,null,"Policy Loans"]
[null,null,"Other Asset Backed Securities",null,"Investment in Affiliates",null,null,null,null,null,"Other"]
[null,null,null,null,"Advances to Affiliates"]
[null,null,null,null,"Equity Release / Reverse Mortgages"]
[null,null,null,null,"Other "]
[]
[]
[]
["Select","Select","Select","Select","Select","Select",null,"Select"]
["Listed options","Equity","Hedging","Long / Receive Fixed / Sell Protection","Private Equity","Investment Income Due and Accrued",null,"BSCR Rating 0"]
["Futures","Debt","Speculative","Short / Receive Floating / Buy Protection","Investment Funds","Accounts and Premiums Receivable",null,"BSCR Rating 1",null,null,"Select"]
["Forwards","Interest Rate",null,null,"Hedge Funds","Reinsurance Balance Receivable",null,"BSCR Rating 2",null,null,"Insured/Guaranteed Mortgages"]
["Swaps","Inflation",null,null,"Private Credit Funds","Sundry Assets",null,"BSCR Rating 3",null,null,"Other Commercial and Farm Mortgages"]
["Swaptions","Credit","Select",null,"Catastrophe Bonds","Letter of Credit, Guarantees and Other Instruments",null,"BSCR Rating 4",null,null,"Other Residential Mortgages"]
["OTC options","Currencies","Yes",null,"Other Insurance-Linked Securities","Other",null,"BSCR Rating 5",null,null,"Mortgages Not In Good Standing"]
["Other","Commodities","No",null,"Advances to Affiliates",null,null,"BSCR Rating 6",null,null,"Collateral Loans"]
[null,"Other",null,null,"Infrastructure Debt",null,null,"BSCR Rating 7",null,null,"Middle Market Loans"]
[null,null,null,null,"Equity Investments in Infrastructure",null,null,"BSCR Rating 8",null,null,"Other Direct Private Lending"]
[null,null,null,null,"Equity Release / Reverse Mortgages",null,null,null,null,null,"Policy Loans"]
[null,null,null,null,"Other ",null,null,null,null,null,"Other"]
[]
[null,null,null,null,null,null,null,null,"Switzerland Francs"]
[null,null,null,null,null,null,null,null,"Chile Pesos"]
[null,null,null,null,null,null,null,null,"China Yuan Renminbi"]
[null,null,null,null,null,null,null,null,"Colombia Pesos"]
[null,null,null,null,null,null,null,null,"Costa Rica Colones"]
[null,null,null,null,null,null,null,null,"Cuba Convertible Pesos"]
[null,null,null,null,null,null,null,null,"Cuba Pesos"]
[null,null,null,null,null,null,null,null,"Cape Verde Escudos"]
[null,null,null,null,null,null,null,null,"Czech Republic Koruny"]
[null,null,null,null,null,null,null,null,"Djibouti Francs"]
[null,null,null,null,null,null,null,null,"Denmark Kroner"]
[null,null,null,null,null,null,null,null,"Dominican Republic Pesos"]
[null,null,null,null,null,null,null,null,"Algeria Dinars"]
[null,null,null,null,null,null,null,null,"Estonia Krooni"]
[null,null,null,null,null,null,null,null,"Egypt Pounds"]
[null,null,null,null,null,null,null,null,"Eritrea Nakfa"]
[null,null,null,null,null,null,null,null,"Ethiopia Birr"]
[null,null,null,null,null,null,null,null,"Fiji Dollars"]
[null,null,null,null,null,null,null,null,"Falkland Islands Pounds"]
[null,null,null,null,null,null,null,null,"United Kingdom Pounds"]
[null,null,null,null,null,null,null,null,"Georgia Lari"]
[null,null,null,null,null,null,null,null,"Guernsey Pounds"]
[null,null,null,null,null,null,null,null,"Ghana Cedis"]
[null,null,null,null,null,null,null,null,"Gibraltar Pounds"]
[null,null,null,null,null,null,null,null,"Gambia Dalasi"]
[null,null,null,null,null,null,null,null,"Guinea Francs"]
[null,null,null,null,null,null,null,null,"Guatemala Quetzales"]
[null,null,null,null,null,null,null,null,"Guyana Dollars"]
[null,null,null,null,null,null,null,null,"Hong Kong Dollars"]
[null,null,null,null,null,null,null,null,"Honduras Lempiras"]
[null,null,null,null,null,null,null,null,"Croatia Kuna"]
[null,null,null,null,null,null,null,null,"Haiti Gourdes"]
[null,null,null,null,null,null,null,null,"Hungary Forint"]
[null,null,null,null,null,null,null,null,"Indonesia Rupiahs"]
[null,null,null,null,null,null,null,null,"Israel New Shekels"]
[null,null,null,null,null,null,null,null,"Isle of Man Pounds"]
[null,null,null,null,null,null,null,null,"India Rupees"]
[null,null,null,null,null,null,null,null,"Iraq Dinars"]
[null,null,null,null,null,null,null,null,"Iran Rials"]
[null,null,null,null,null,null,null,null,"Iceland Kronur"]
[null,null,null,null,null,null,null,null,"Jersey Pounds"]
[null,null,null,null,null,null,null,null,"Jamaica Dollars"]
[null,null,null,null,null,null,null,null,"Jordan Dinars"]
[null,null,null,null,null,null,null,null,"Japan Yen"]
[null,null,null,null,null,null,null,null,"Kenya Shillings"]
[null,null,null,null,null,null,null,null,"Kyrgyzstan Soms"]
[null,null,null,null,null,null,null,null,"Cambodia Riels"]
[null,null,null,null,null,null,null,null,"Comoros Francs"]
[null,null,null,null,null,null,null,null,"North Korea Won"]
[null,null,null,null,null,null,null,null,"South Korea Won"]
[null,null,null,null,null,null,null,null,"Kuwait Dinars"]
[null,null,null,null,null,null,null,null,"Cayman Islands Dollars"]
[null,null,null,null,null,null,null,null,"Kazakhstan Tenge"]
[null,null,null,null,null,null,null,null,"Laos Kips"]
[null,null,null,null,null,null,null,null,"Lebanon Pounds"]
[null,null,null,null,null,null,null,null,"Sri Lanka Rupees"]
[null,null,null,null,null,null,null,null,"Liberia Dollars"]
[null,null,null,null,null,null,null,null,"Lesotho Maloti"]
[null,null,null,null,null,null,null,null,"Lithuania Litai"]
[null,null,null,null,null,null,null,null,"Latvia Lati"]
[null,null,null,null,null,null,null,null,"Libya Dinars"]
[null,null,null,null,null,null,null,null,"Morocco Dirhams"]
[null,null,null,null,null,null,null,null,"Moldova Lei"]
[null,null,null,null,null,null,null,null,"Madagascar Ariary"]
[null,null,null,null,null,null,null,null,"Macedonia Denars"]
[null,null,null,null,null,null,null,null,"Myanmar Kyats"]
[null,null,null,null,null,null,null,null,"Mongolia Tugriks"]
[null,null,null,null,null,null,null,null,"Macau Patacas"]
[null,null,null,null,null,null,null,null,"Mauritania Ouguiyas"]
[null,null,null,null,null,null,null,null,"Mauritius Rupees"]
[null,null,null,null,null,null,null,null,"Maldives Rufiyaa"]
[null,null,null,null,null,null,null,null,"Malawi Kwachas"]
[null,null,null,null,null,null,null,null,"Mexico Pesos"]
[null,null,null,null,null,null,null,null,"Malaysia Ringgits"]
[null,null,null,null,null,null,null,null,"Mozambique Meticais"]
[null,null,null,null,null,null,null,null,"Namibia Dollars"]
[null,null,null,null,null,null,null,null,"Nigeria Nairas"]
[null,null,null,null,null,null,null,null,"Nicaragua Cordobas"]
[null,null,null,null,null,null,null,null,"Norway Kroner"]
[null,null,null,null,null,null,null,null,"Nepal Rupees"]
[null,null,null,null,null,null,null,null,"New Zealand Dollars"]
[null,null,null,null,null,null,null,null,"Oman Rials"]
[null,null,null,null,null,null,null,null,"Panama Balboas"]
[null,null,null,null,null,null,null,null,"Peru Nuevos Soles"]
[null,null,null,null,null,null,null,null,"Papua New Guinea Kina"]
[null,null,null,null,null,null,null,null,"Philippines Pesos"]
[null,null,null,null,null,null,null,null,"Pakistan Rupees"]
[null,null,null,null,null,null,null,null,"Poland Zlotych"]
[null,null,null,null,null,null,null,null,"Paraguay Guarani"]
[null,null,null,null,null,null,null,null,"Qatar Riyals"]
[null,null,null,null,null,null,null,null,"Romania New Lei"]
[null,null,null,null,null,null,null,null,"Serbia Dinars"]
[null,null,null,null,null,null,null,null,"Russia Rubles"]
[null,null,null,null,null,null,null,null,"Rwanda Francs"]
[null,null,null,null,null,null,null,null,"Saudi Arabia Riyals"]
[null,null,null,null,null,null,null,null,"Solomon Islands Dollars"]
[null,null,null,null,null,null,null,null,"Seychelles Rupees"]
[null,null,null,null,null,null,null,null,"Sudan Pounds"]
[null,null,null,null,null,null,null,null,"Sweden Kronor"]
[null,null,null,null,null,null,null,null,"Singapore Dollars"]
[null,null,null,null,null,null,null,null,"Saint Helena Pounds"]
[null,null,null,null,null,null,null,null,"Slovakia Koruny"]
[null,null,null,null,null,null,null,null,"Sierra Leone Leones"]
[null,null,null,null,null,null,null,null,"Somalia Shillings"]
[null,null,null,null,null,null,null,null,"Seborga Luigini"]
[null,null,null,null,null,null,null,null,"Suriname Dollars"]
[null,null,null,null,null,null,null,null,"São Tome and Principe Dobras"]
[null,null,null,null,null,null,null,null,"El Salvador Colones"]
[null,null,null,null,null,null,null,null,"Syria Pounds"]
[null,null,null,null,null,null,null,null,"Swaziland Emalangeni"]
[null,null,null,null,null,null,null,null,"Thailand Baht"]
[null,null,null,null,null,null,null,null,"Tajikistan Somoni"]
[null,null,null,null,null,null,null,null,"Turkmenistan Manats"]
[null,null,null,null,null,null,null,null,"Tunisia Dinars"]
[null,null,null,null,null,null,null,null,"Tonga Pa'anga"]
[null,null,null,null,null,null,null,null,"Turkey New Lira"]
[null,null,null,null,null,null,null,null,"Trinidad and Tobago Dollars"]
[null,null,null,null,null,null,null,null,"Tuvalu Dollars"]
[null,null,null,null,null,null,null,null,"Taiwan New Dollars"]
[null,null,null,null,null,null,null,null,"Tanzania Shillings"]
[null,null,null,null,null,null,null,null,"Ukraine Hryvnia"]
[null,null,null,null,null,null,null,null,"Uganda Shillings"]
[null,null,null,null,null,null,null,null,"Uruguay Pesos"]
[null,null,null,null,null,null,null,null,"Uzbekistan Sums"]
[null,null,null,null,null,null,null,null,"Venezuela Bolivares"]
[null,null,null,null,null,null,null,null,"Venezuela Bolivares Fuertes"]
[null,null,null,null,null,null,null,null,"Vietnam Dong"]
[null,null,null,null,null,null,null,null,"Vanuatu Vatu"]
[null,null,null,null,null,null,null,null,"Samoa Tala"]
[null,null,null,null,null,null,null,null,"Communauté Financière Africaine Francs BEAC"]
[null,null,null,null,null,null,null,null,"Silver Ounces"]
[null,null,null,null,null,null,null,null,"Gold Ounces"]
[null,null,null,null,null,null,null,null,"East Caribbean Dollars"]
[null,null,null,null,null,null,null,null,"International Monetary Fund Special Drawing Rights"]
[null,null,null,null,null,null,null,null,"Communauté Financière Africaine Francs BCEAO"]
[null,null,null,null,null,null,null,null,"Palladium Ounces"]
[null,null,null,null,null,null,null,null,"Comptoirs Français du Pacifique Francs"]
[null,null,null,null,null,null,null,null,"Platinum Ounces"]
[null,null,null,null,null,null,null,null,"Yemen Rials"]
[null,null,null,null,null,null,null,null,"South Africa Rand"]
[null,null,null,null,null,null,null,null,"Zambia Kwacha"]
[null,null,null,null,null,null,null,null,"Zimbabwe Dollars"]

{"sheet":"Schedule VIA (EBS) (New)","index":55,"n_rows":425,"n_cols":12,"rows_kept":425,"cut":false,"hidden":true,"merged":[[211,1,211,2],[5,1,5,2],[35,1,35,2],[36,1,36,2],[61,1,61,2],[91,1,91,2],[92,1,92,2],[121,1,121,2],[122,1,122,2],[151,1,151,2],[152,1,152,2],[210,1,210,2]]}
[null,"DRAFT EBS SCHEDULE OF FUNDS HELD BY CEDING REINSURERS",null,null,null,null,null,null,{"$f":"HYPERLINK(\"#'Index'!A1\",\"Return to Index\")","v":"Return to Index"}]
[null,{"$f":"'Form 1SFS (Consolidated)'!B3","v":"Enter Company Name"}]
[null,"As at",{"$f":"'Form 1SFS (Consolidated)'!C4","v":"2022-12-31"}]
[null,"expressed in ['000s]",{"$f":"'Form 1SFS (Consolidated)'!C5","v":"United States Dollars"}]
[]
[null,"(A) CASH AND CASH EQUIVALENTS",null,"Enter # of Asset Types"]
[null,null,null,null,{"$f":"YEAR($C$3)","v":2022},{"$f":"YEAR($C$3)","v":2022}]
[null,"Asset Type","Jurisdiction","BSCR Rating ","Face Value","Fair Value"]
[1,"Select",null,"Select"]
[2,"Select",null,"Select"]
[3,"Select",null,"Select"]
[4,"Select",null,"Select"]
[5,"Select",null,"Select"]
[6,"Select",null,"Select"]
[7,"Select",null,"Select"]
[8,"Select",null,"Select"]
[9,"Select",null,"Select"]
[10,"Select",null,"Select"]
[11,"Select",null,"Select"]
[12,"Select",null,"Select"]
[13,"Select",null,"Select"]
[14,"Select",null,"Select"]
[15,"Select",null,"Select"]
[16,"Select",null,"Select"]
[17,"Select",null,"Select"]
[18,"Select",null,"Select"]
[19,"Select",null,"Select"]
[20,"Select",null,"Select"]
[]
[null,"Total Cash & Cash Equivalents",null,null,{"$f":"SUM(E9:E28)","v":0},{"$f":"SUM(F9:F28)","v":0}]
[]
[null,"Form 1EBS Line 1 Cash and Cash Equivalents"]
[]
[null,"Check Section A",null,null,null,{"$f":"ROUND((F30-F32),0)","v":0},{"$f":"IF(F34=0,\"TRUE\",\"FALSE\")","v":"TRUE"}]
[]
[null,"(B) BONDS AND DEBENTURES",null,"Enter # of Asset Types"]
[null,null,null,null,{"$f":"YEAR($C$3)","v":2022},{"$f":"YEAR($C$3)","v":2022}]
[null,"Asset Type","Jurisdiction","BSCR Rating ","Face Value","Fair Value","Average YTM","Effective Duration","Effective Convexity"]
[1,"Select",0,"Select",0,0,0,0,0]
[2,"Select",0,"Select",0,0,0,0,0]
[3,"Select",0,"Select",0,0,0,0,0]
[4,"Select",0,"Select",0,0,0,0,0]
[5,"Select",0,"Select",0,0,0,0,0]
[6,"Select",0,"Select",0,0,0,0,0]
[7,"Select",0,"Select",0,0,0,0,0]
[8,"Select",0,"Select",0,0,0,0,0]
[9,"Select",0,"Select",0,0,0,0,0]
[10,"Select",0,"Select",0,0,0,0,0]
[11,"Select",0,"Select",0,0,0,0,0]
[12,"Select",0,"Select",0,0,0,0,0]
[13,"Select",0,"Select",0,0,0,0,0]
[14,"Select",0,"Select",0,0,0,0,0]
[15,"Select",0,"Select",0,0,0,0,0]
[16,"Select",0,"Select",0,0,0,0,0]
[17,"Select",0,"Select",0,0,0,0,0]
[18,"Select",0,"Select",0,0,0,0,0]
[19,"Select",0,"Select",0,0,0,0,0]
[20,"Select",0,"Select",0,0,0,0,0]
[]
[null,"Total Bonds & Debentures",null,null,{"$f":"SUM(E39:E58)","v":0},{"$f":"SUM(F39:F58)","v":0},0,0,0]
[]
[null,"(C) SECURITIES/ASSET-BASED SECURITIES",null,"Enter # of Asset Types"]
[null,null,null,null,{"$f":"YEAR($C$3)","v":2022},{"$f":"YEAR($C$3)","v":2022}]
[null,"Asset Type","Jurisdiction","BSCR Rating ","Face Value","Fair Value","Average YTM","Effective Duration","Effective Convexity"]
[1,"Select",0,"Select",0,0,0,0,0]
[2,"Select",0,"Select",0,0,0,0,0]
[3,"Select",0,"Select",0,0,0,0,0]
[4,"Select",0,"Select",0,0,0,0,0]
[5,"Select",0,"Select",0,0,0,0,0]
[6,"Select",0,"Select",0,0,0,0,0]
[7,"Select",0,"Select",0,0,0,0,0]
[8,"Select",0,"Select",0,0,0,0,0]
[9,"Select",0,"Select",0,0,0,0,0]
[10,"Select",0,"Select",0,0,0,0,0]
[11,"Select",0,"Select",0,0,0,0,0]
[12,"Select",0,"Select",0,0,0,0,0]
[13,"Select",0,"Select",0,0,0,0,0]
[14,"Select",0,"Select",0,0,0,0,0]
[15,"Select",0,"Select",0,0,0,0,0]
[16,"Select",0,"Select",0,0,0,0,0]
[17,"Select",0,"Select",0,0,0,0,0]
[18,"Select",0,"Select",0,0,0,0,0]
[19,"Select",0,"Select",0,0,0,0,0]
[20,"Select",0,"Select",0,0,0,0,0]
[]
[null,"Total Securities/Asset-Backed Securities",null,null,{"$f":"SUM(E65:E84)","v":0},{"$f":"SUM(F65:F84)","v":0},0,0,0]
[]
[null,"Form 1EBS Lines 2(b) & 3(b) Bonds & Debentures"]
[]
[null,"Check Sections B & C",null,null,null,{"$f":"ROUND(((F86+F60)-F88),0)","v":0},{"$f":"IF(F90=0,\"TRUE\",\"FALSE\")","v":"TRUE"}]
[]
[null,"(D) LISTED EQUITIES AND PREFERENCE SHARES",null,"Enter # of Asset Types"]
[null,null,null,null,{"$f":"YEAR($C$3)","v":2022},{"$f":"YEAR($C$3)","v":2022}]
[null,"Asset Type","Stock Exchange","BSCR Rating ","Face Value","Fair Value"]
[1,"Select",0,"Select",0,0]
[2,"Select",0,"Select",0,0]
[3,"Select",0,"Select",0,0]
[4,"Select",0,"Select",0,0]
[5,"Select",0,"Select",0,0]
[6,"Select",0,"Select",0,0]
[7,"Select",0,"Select",0,0]
[8,"Select",0,"Select",0,0]
[9,"Select",0,"Select",0,0]
[10,"Select",0,"Select",0,0]
[11,"Select",0,"Select",0,0]
[12,"Select",0,"Select",0,0]
[13,"Select",0,"Select",0,0]
[14,"Select",0,"Select",0,0]
[15,"Select",0,"Select",0,0]
[16,"Select",0,"Select",0,0]
[17,"Select",0,"Select",0,0]
[18,"Select",0,"Select",0,0]
[19,"Select",0,"Select",0,0]
[20,"Select",0,"Select",0,0]
[]
[null,"Total Listed Equities & Preference Shares",null,null,{"$f":"SUM(E95:E114)","v":0},{"$f":"SUM(F95:F114)","v":0}]
[]
[null,"Form 1EBS Lines 2(d) & 3(d) Bonds & Debentures"]
[]
[null,"Check Section D",null,null,null,{"$f":"ROUND((F116-F118),0)","v":0},{"$f":"IF(F120=0,\"TRUE\",\"FALSE\")","v":"TRUE"}]
[]
[null,"(E) ALTERNATIVE INVESTMENTS",null,"Enter # of Asset Types"]
[null,null,null,null,{"$f":"YEAR($C$3)","v":2022},{"$f":"YEAR($C$3)","v":2022}]
[null,"Asset Type","Jurisdiction","BSCR Rating ","Face Value","Fair Value","Average YTM","Effective Duration","Effective Convexity"]
[1,"Select",0,"Select",0,0,0,0,0]
[2,"Select",0,"Select",0,0,0,0,0]
[3,"Select",0,"Select",0,0,0,0,0]
[4,"Select",0,"Select",0,0,0,0,0]
[5,"Select",0,"Select",0,0,0,0,0]
[6,"Select",0,"Select",0,0,0,0,0]
[7,"Select",0,"Select",0,0,0,0,0]
[8,"Select",0,"Select",0,0,0,0,0]
[9,"Select",0,"Select",0,0,0,0,0]
[10,"Select",0,"Select",0,0,0,0,0]
[11,"Select",0,"Select",0,0,0,0,0]
[12,"Select",0,"Select",0,0,0,0,0]
[13,"Select",0,"Select",0,0,0,0,0]
[14,"Select",0,"Select",0,0,0,0,0]
[15,"Select",0,"Select",0,0,0,0,0]
[16,"Select",0,"Select",0,0,0,0,0]
[17,"Select",0,"Select",0,0,0,0,0]
[18,"Select",0,"Select",0,0,0,0,0]
[19,"Select",0,"Select",0,0,0,0,0]
[20,"Select",0,"Select",0,0,0,0,0]
[]
[null,"Total Alternative Investments",null,null,{"$f":"SUM(E125:E144)","v":0},{"$f":"SUM(F125:F144)","v":0},0,0,0]
[]
[null,"Form 1EBS Lines 2(e) & 3(e) Alternative Investments"]
[]
[null,"Check Section E",null,null,null,{"$f":"ROUND((F146-F148),0)","v":0},{"$f":"IF(F150=0,\"TRUE\",\"FALSE\")","v":"TRUE"}]
[]
[null,"(F) LOANS",null,"Enter # of Asset Types"]
[null,null,null,null,{"$f":"YEAR($C$3)","v":2022},{"$f":"YEAR($C$3)","v":2022}]
[null,"Asset Type","Jurisdiction","BSCR Rating ","Face Value","Fair Value","Average YTM","Effective Duration","Effective Convexity"]
[1,"Select",0,"Select",0,0,0,0,0]
[2,"Select",0,"Select",0,0,0,0,0]
[3,"Select",0,"Select",0,0,0,0,0]
[4,"Select",0,"Select",0,0,0,0,0]
[5,"Select",0,"Select",0,0,0,0,0]
[6,"Select",0,"Select",0,0,0,0,0]
[7,"Select",0,"Select",0,0,0,0,0]
[8,"Select",0,"Select",0,0,0,0,0]
[9,"Select",0,"Select",0,0,0,0,0]
[10,"Select",0,"Select",0,0,0,0,0]
[11,"Select",0,"Select",0,0,0,0,0]
[12,"Select",0,"Select",0,0,0,0,0]
[13,"Select",0,"Select",0,0,0,0,0]
[14,"Select",0,"Select",0,0,0,0,0]
[15,"Select",0,"Select",0,0,0,0,0]
[16,"Select",0,"Select",0,0,0,0,0]
[17,"Select",0,"Select",0,0,0,0,0]
[18,"Select",0,"Select",0,0,0,0,0]
[19,"Select",0,"Select",0,0,0,0,0]
[20,"Select",0,"Select",0,0,0,0,0]
[]
[null,"Total Loans",null,null,{"$f":"SUM(E155:E174)","v":0},{"$f":"SUM(F155:F174)","v":0},0,0,0]
[]
[null,"Form 1EBS Line 5(c) Mortgage Loans"]
[]
[null,"Check Section F",null,null,null,{"$f":"ROUND((F176-F178),0)","v":0},{"$f":"IF(F180=0,\"TRUE\",\"FALSE\")","v":"TRUE"}]
[]
[null,"(G) DERIVATIVES",null,"Enter # of Derivative Types"]
[null,"Derivative Type","Underlying","Purpose","Position",{"$f":"YEAR($C$3)&\" Market Value\"","v":"2022 Market Value"},"Centrally Cleared","Notional Value","Exposure (Dollar Delta, DV01, CS01"]
[1,"Select","Select","Select","Select",0,"Select",0,0]
[2,"Select","Select","Select","Select",0,"Select",0,0]
[3,"Select","Select","Select","Select",0,"Select",0,0]
[4,"Select","Select","Select","Select",0,"Select",0,0]
[5,"Select","Select","Select","Select",0,"Select",0,0]
[6,"Select","Select","Select","Select",0,"Select",0,0]
[7,"Select","Select","Select","Select",0,"Select",0,0]
[8,"Select","Select","Select","Select",0,"Select",0,0]
[9,"Select","Select","Select","Select",0,"Select",0,0]
[10,"Select","Select","Select","Select",0,"Select",0,0]
[11,"Select","Select","Select","Select",0,"Select",0,0]
[12,"Select","Select","Select","Select",0,"Select",0,0]
[13,"Select","Select","Select","Select",0,"Select",0,0]
[14,"Select","Select","Select","Select",0,"Select",0,0]
[15,"Select","Select","Select","Select",0,"Select",0,0]
[16,"Select","Select","Select","Select",0,"Select",0,0]
[17,"Select","Select","Select","Select",0,"Select",0,0]
[18,"Select","Select","Select","Select",0,"Select",0,0]
[19,"Select","Select","Select","Select",0,"Select",0,0]
[20,"Select","Select","Select","Select",0,"Select",0,0]
[]
[null,"Total Derivatives",null,null,null,{"$f":"SUM(F184:F203)","v":0},null,{"$f":"SUM(H184:H203)","v":0},{"$f":"SUM(I184:I203)","v":0}]
[]
[null,"Form 1EBS Line 13(a) Derivatives"]
[]
[null,"Check Section G",null,null,null,{"$f":"ROUND((F205-F207),0)","v":0},{"$f":"IF(F209=0,\"TRUE\",\"FALSE\")","v":"TRUE"}]
[]
[null,"(H) OTHER ASSETS",null,"Enter # of Asset Types"]
[null,null,null,null,{"$f":"YEAR($C$3)","v":2022},{"$f":"YEAR($C$3)","v":2022}]
[null,"Asset Type","Jurisdiction","BSCR Rating ","Face Value","Fair Value","Average YTM","Effective Duration","Effective Convexity"]
[1,"Select",0,"Select",0,0,0,0,0]
[2,"Select",0,"Select",0,0,0,0,0]
[3,"Select",0,"Select",0,0,0,0,0]
[4,"Select",0,"Select",0,0,0,0,0]
[5,"Select",0,"Select",0,0,0,0,0]
[6,"Select",0,"Select",0,0,0,0,0]
[7,"Select",0,"Select",0,0,0,0,0]
[8,"Select",0,"Select",0,0,0,0,0]
[9,"Select",0,"Select",0,0,0,0,0]
[10,"Select",0,"Select",0,0,0,0,0]
[11,"Select",0,"Select",0,0,0,0,0]
[12,"Select",0,"Select",0,0,0,0,0]
[13,"Select",0,"Select",0,0,0,0,0]
[14,"Select",0,"Select",0,0,0,0,0]
[15,"Select",0,"Select",0,0,0,0,0]
[16,"Select",0,"Select",0,0,0,0,0]
[17,"Select",0,"Select",0,0,0,0,0]
[18,"Select",0,"Select",0,0,0,0,0]
[19,"Select",0,"Select",0,0,0,0,0]
[20,"Select",0,"Select",0,0,0,0,0]
[]
[null,"Total Other Assets",null,null,null,{"$f":"SUM(F214:F233)","v":0},0,0,0]
[]
[null,"Form 1EBS Lines X(x) Other Assets"]
[]
[null,"Check Section G",null,null,null,{"$f":"ROUND((F235-F237),0)","v":0},{"$f":"IF(F239=0,\"TRUE\",\"FALSE\")","v":"TRUE"}]
[]
[null,"TOTAL ASSETS",null,null,null,{"$f":"F30+F60+F116+F86+F146+F235+F205+F176","v":0}]
[]
[null,"TOTAL ASSETS (Form 1EBS Line 15)",null,null,null,{"$f":"F34+F90+F120+F150+F180+F209+F239","v":0}]
[]
[null,"Check Form 1EBS",null,null,null,{"$f":"IF(F247=0,\"TRUE\",\"FALSE\")","v":"TRUE"}]
[null,null,null,null,null,{"$f":"IF(ROUND((F241-(0)),0)=0,\"TRUE\",\"FALSE\")","v":"TRUE"}]
[null,"Difference",null,null,null,{"$f":"ROUND((F243-F241),0)","v":0}]
[]
[null,"EFFECTIVE DURATION",null,null,0]
[]
[null,"EFFECTIVE CONVEXITY",null,null,0]
[]
[]
[]
["Select","Select","Select","Select","Select","Select","Select","Select","Select","Select","Select","Select"]
["Cash ","Sovereign Bonds","RMBS - Agency","Public Equities","Private Equity","Investment Income Due and Accrued","Energy","Holding Entity","Significant Influence",null,"Insured/Guaranteed Mortgages"]
["Certificates of Deposit","Municipals","RMBS - Non-agency","Public Preferred Stock","Investment Funds","Accounts and Premiums Receivable","Materials","Operating Entity","Control",null,"Other Commercial and Farm Mortgages"]
["Money Market Funds","Supranationals (multilateral development banks and international organizations)","CMBS","Exchange Traded Funds","Hedge Funds","Reinsurance Balance Receivable","Industrial","Branch",null,null,"Other Residential Mortgages"]
["Other ","Corporate bonds","CLOs","Other","Private Credit Funds","Funds Held by Ceding Reinsurers","Consumer Discretionary","Select",null,null,"Mortgages Not In Good Standing"]
[null,"Mutual Funds","CDOs",null,"Catastrophe Bonds","Sundry Assets","Consumer Staples",null,null,null,"Collateral Loans"]
[null,"Other - Secured Bonds","Auto Loan ABS",null,"Other Insurance-Linked Securities","Letter of Credit, Guarantees and Other Instruments","Healthcare",null,null,null,"Middle Market Loans"]
[null,"Other - Unsecured Bonds","Student Loan ABS",null,"Infrastructure Debt","Other","Financial",null,null,null,"Other Direct Private Lending"]
[null,"Other ","Credit Card Receivable ABS",null,"Equity Investments in Infrastructure",null,null,null,null,null,"Policy Loans"]
[null,null,"Other Asset Backed Securities",null,"Investment in Affiliates",null,null,null,null,null,"Other"]
[null,null,null,null,"Advances to Affiliates"]
[null,null,null,null,"Equity Release / Reverse Mortgages"]
[null,null,null,null,"Other "]
[]
[]
[]
["Select","Select","Select","Select","Select","Select",null,"Select"]
["Listed options","Equity","Hedging","Long / Receive Fixed / Sell Protection","Private Equity","Investment Income Due and Accrued",null,"BSCR Rating 0"]
["Futures","Debt","Speculative","Short / Receive Floating / Buy Protection","Investment Funds","Accounts and Premiums Receivable",null,"BSCR Rating 1",null,null,"Select"]
["Forwards","Interest Rate",null,null,"Hedge Funds","Reinsurance Balance Receivable",null,"BSCR Rating 2",null,null,"Insured/Guaranteed Mortgages"]
["Swaps","Inflation",null,null,"Private Credit Funds","Sundry Assets",null,"BSCR Rating 3",null,null,"Other Commercial and Farm Mortgages"]
["Swaptions","Credit","Select",null,"Catastrophe Bonds","Letter of Credit, Guarantees and Other Instruments",null,"BSCR Rating 4",null,null,"Other Residential Mortgages"]
["OTC options","Currencies","Yes",null,"Other Insurance-Linked Securities","Other",null,"BSCR Rating 5",null,null,"Mortgages Not In Good Standing"]
["Other","Commodities","No",null,"Advances to Affiliates",null,null,"BSCR Rating 6",null,null,"Collateral Loans"]
[null,"Other",null,null,"Infrastructure Debt",null,null,"BSCR Rating 7",null,null,"Middle Market Loans"]
[null,null,null,null,"Equity Investments in Infrastructure",null,null,"BSCR Rating 8",null,null,"Other Direct Private Lending"]
[null,null,null,null,"Equity Release / Reverse Mortgages",null,null,null,null,null,"Policy Loans"]
[null,null,null,null,"Other ",null,null,null,null,null,"Other"]
[]
[null,null,null,null,null,null,null,null,"Switzerland Francs"]
[null,null,null,null,null,null,null,null,"Chile Pesos"]
[null,null,null,null,null,null,null,null,"China Yuan Renminbi"]
[null,null,null,null,null,null,null,null,"Colombia Pesos"]
[null,null,null,null,null,null,null,null,"Costa Rica Colones"]
[null,null,null,null,null,null,null,null,"Cuba Convertible Pesos"]
[null,null,null,null,null,null,null,null,"Cuba Pesos"]
[null,null,null,null,null,null,null,null,"Cape Verde Escudos"]
[null,null,null,null,null,null,null,null,"Czech Republic Koruny"]
[null,null,null,null,null,null,null,null,"Djibouti Francs"]
[null,null,null,null,null,null,null,null,"Denmark Kroner"]
[null,null,null,null,null,null,null,null,"Dominican Republic Pesos"]
[null,null,null,null,null,null,null,null,"Algeria Dinars"]
[null,null,null,null,null,null,null,null,"Estonia Krooni"]
[null,null,null,null,null,null,null,null,"Egypt Pounds"]
[null,null,null,null,null,null,null,null,"Eritrea Nakfa"]
[null,null,null,null,null,null,null,null,"Ethiopia Birr"]
[null,null,null,null,null,null,null,null,"Fiji Dollars"]
[null,null,null,null,null,null,null,null,"Falkland Islands Pounds"]
[null,null,null,null,null,null,null,null,"United Kingdom Pounds"]
[null,null,null,null,null,null,null,null,"Georgia Lari"]
[null,null,null,null,null,null,null,null,"Guernsey Pounds"]
[null,null,null,null,null,null,null,null,"Ghana Cedis"]
[null,null,null,null,null,null,null,null,"Gibraltar Pounds"]
[null,null,null,null,null,null,null,null,"Gambia Dalasi"]
[null,null,null,null,null,null,null,null,"Guinea Francs"]
[null,null,null,null,null,null,null,null,"Guatemala Quetzales"]
[null,null,null,null,null,null,null,null,"Guyana Dollars"]
[null,null,null,null,null,null,null,null,"Hong Kong Dollars"]
[null,null,null,null,null,null,null,null,"Honduras Lempiras"]
[null,null,null,null,null,null,null,null,"Croatia Kuna"]
[null,null,null,null,null,null,null,null,"Haiti Gourdes"]
[null,null,null,null,null,null,null,null,"Hungary Forint"]
[null,null,null,null,null,null,null,null,"Indonesia Rupiahs"]
[null,null,null,null,null,null,null,null,"Israel New Shekels"]
[null,null,null,null,null,null,null,null,"Isle of Man Pounds"]
[null,null,null,null,null,null,null,null,"India Rupees"]
[null,null,null,null,null,null,null,null,"Iraq Dinars"]
[null,null,null,null,null,null,null,null,"Iran Rials"]
[null,null,null,null,null,null,null,null,"Iceland Kronur"]
[null,null,null,null,null,null,null,null,"Jersey Pounds"]
[null,null,null,null,null,null,null,null,"Jamaica Dollars"]
[null,null,null,null,null,null,null,null,"Jordan Dinars"]
[null,null,null,null,null,null,null,null,"Japan Yen"]
[null,null,null,null,null,null,null,null,"Kenya Shillings"]
[null,null,null,null,null,null,null,null,"Kyrgyzstan Soms"]
[null,null,null,null,null,null,null,null,"Cambodia Riels"]
[null,null,null,null,null,null,null,null,"Comoros Francs"]
[null,null,null,null,null,null,null,null,"North Korea Won"]
[null,null,null,null,null,null,null,null,"South Korea Won"]
[null,null,null,null,null,null,null,null,"Kuwait Dinars"]
[null,null,null,null,null,null,null,null,"Cayman Islands Dollars"]
[null,null,null,null,null,null,null,null,"Kazakhstan Tenge"]
[null,null,null,null,null,null,null,null,"Laos Kips"]
[null,null,null,null,null,null,null,null,"Lebanon Pounds"]
[null,null,null,null,null,null,null,null,"Sri Lanka Rupees"]
[null,null,null,null,null,null,null,null,"Liberia Dollars"]
[null,null,null,null,null,null,null,null,"Lesotho Maloti"]
[null,null,null,null,null,null,null,null,"Lithuania Litai"]
[null,null,null,null,null,null,null,null,"Latvia Lati"]
[null,null,null,null,null,null,null,null,"Libya Dinars"]
[null,null,null,null,null,null,null,null,"Morocco Dirhams"]
[null,null,null,null,null,null,null,null,"Moldova Lei"]
[null,null,null,null,null,null,null,null,"Madagascar Ariary"]
[null,null,null,null,null,null,null,null,"Macedonia Denars"]
[null,null,null,null,null,null,null,null,"Myanmar Kyats"]
[null,null,null,null,null,null,null,null,"Mongolia Tugriks"]
[null,null,null,null,null,null,null,null,"Macau Patacas"]
[null,null,null,null,null,null,null,null,"Mauritania Ouguiyas"]
[null,null,null,null,null,null,null,null,"Mauritius Rupees"]
[null,null,null,null,null,null,null,null,"Maldives Rufiyaa"]
[null,null,null,null,null,null,null,null,"Malawi Kwachas"]
[null,null,null,null,null,null,null,null,"Mexico Pesos"]
[null,null,null,null,null,null,null,null,"Malaysia Ringgits"]
[null,null,null,null,null,null,null,null,"Mozambique Meticais"]
[null,null,null,null,null,null,null,null,"Namibia Dollars"]
[null,null,null,null,null,null,null,null,"Nigeria Nairas"]
[null,null,null,null,null,null,null,null,"Nicaragua Cordobas"]
[null,null,null,null,null,null,null,null,"Norway Kroner"]
[null,null,null,null,null,null,null,null,"Nepal Rupees"]
[null,null,null,null,null,null,null,null,"New Zealand Dollars"]
[null,null,null,null,null,null,null,null,"Oman Rials"]
[null,null,null,null,null,null,null,null,"Panama Balboas"]
[null,null,null,null,null,null,null,null,"Peru Nuevos Soles"]
[null,null,null,null,null,null,null,null,"Papua New Guinea Kina"]
[null,null,null,null,null,null,null,null,"Philippines Pesos"]
[null,null,null,null,null,null,null,null,"Pakistan Rupees"]
[null,null,null,null,null,null,null,null,"Poland Zlotych"]
[null,null,null,null,null,null,null,null,"Paraguay Guarani"]
[null,null,null,null,null,null,null,null,"Qatar Riyals"]
[null,null,null,null,null,null,null,null,"Romania New Lei"]
[null,null,null,null,null,null,null,null,"Serbia Dinars"]
[null,null,null,null,null,null,null,null,"Russia Rubles"]
[null,null,null,null,null,null,null,null,"Rwanda Francs"]
[null,null,null,null,null,null,null,null,"Saudi Arabia Riyals"]
[null,null,null,null,null,null,null,null,"Solomon Islands Dollars"]
[null,null,null,null,null,null,null,null,"Seychelles Rupees"]
[null,null,null,null,null,null,null,null,"Sudan Pounds"]
[null,null,null,null,null,null,null,null,"Sweden Kronor"]
[null,null,null,null,null,null,null,null,"Singapore Dollars"]
[null,null,null,null,null,null,null,null,"Saint Helena Pounds"]
[null,null,null,null,null,null,null,null,"Slovakia Koruny"]
[null,null,null,null,null,null,null,null,"Sierra Leone Leones"]
[null,null,null,null,null,null,null,null,"Somalia Shillings"]
[null,null,null,null,null,null,null,null,"Seborga Luigini"]
[null,null,null,null,null,null,null,null,"Suriname Dollars"]
[null,null,null,null,null,null,null,null,"São Tome and Principe Dobras"]
[null,null,null,null,null,null,null,null,"El Salvador Colones"]
[null,null,null,null,null,null,null,null,"Syria Pounds"]
[null,null,null,null,null,null,null,null,"Swaziland Emalangeni"]
[null,null,null,null,null,null,null,null,"Thailand Baht"]
[null,null,null,null,null,null,null,null,"Tajikistan Somoni"]
[null,null,null,null,null,null,null,null,"Turkmenistan Manats"]
[null,null,null,null,null,null,null,null,"Tunisia Dinars"]
[null,null,null,null,null,null,null,null,"Tonga Pa'anga"]
[null,null,null,null,null,null,null,null,"Turkey New Lira"]
[null,null,null,null,null,null,null,null,"Trinidad and Tobago Dollars"]
[null,null,null,null,null,null,null,null,"Tuvalu Dollars"]
[null,null,null,null,null,null,null,null,"Taiwan New Dollars"]
[null,null,null,null,null,null,null,null,"Tanzania Shillings"]
[null,null,null,null,null,null,null,null,"Ukraine Hryvnia"]
[null,null,null,null,null,null,null,null,"Uganda Shillings"]
[null,null,null,null,null,null,null,null,"Uruguay Pesos"]
[null,null,null,null,null,null,null,null,"Uzbekistan Sums"]
[null,null,null,null,null,null,null,null,"Venezuela Bolivares"]
[null,null,null,null,null,null,null,null,"Venezuela Bolivares Fuertes"]
[null,null,null,null,null,null,null,null,"Vietnam Dong"]
[null,null,null,null,null,null,null,null,"Vanuatu Vatu"]
[null,null,null,null,null,null,null,null,"Samoa Tala"]
[null,null,null,null,null,null,null,null,"Communauté Financière Africaine Francs BEAC"]
[null,null,null,null,null,null,null,null,"Silver Ounces"]
[null,null,null,null,null,null,null,null,"Gold Ounces"]
[null,null,null,null,null,null,null,null,"East Caribbean Dollars"]
[null,null,null,null,null,null,null,null,"International Monetary Fund Special Drawing Rights"]
[null,null,null,null,null,null,null,null,"Communauté Financière Africaine Francs BCEAO"]
[null,null,null,null,null,null,null,null,"Palladium Ounces"]
[null,null,null,null,null,null,null,null,"Comptoirs Français du Pacifique Francs"]
[null,null,null,null,null,null,null,null,"Platinum Ounces"]
[null,null,null,null,null,null,null,null,"Yemen Rials"]
[null,null,null,null,null,null,null,null,"South Africa Rand"]
[null,null,null,null,null,null,null,null,"Zambia Kwacha"]
[null,null,null,null,null,null,null,null,"Zimbabwe Dollars"]

{"sheet":"Schedule VI","index":56,"n_rows":555,"n_cols":13,"rows_kept":555,"cut":false,"hidden":false,"merged":[[235,1,235,2],[267,1,267,2],[271,1,271,2],[134,1,134,2],[138,1,138,2],[168,1,168,2],[172,1,172,2],[201,1,201,2],[205,1,205,2],[105,1,105,2],[6,1,6,2],[39,1,39,2],[43,1,43,2],[68,1,68,2],[101,1,101,2]]}
[null,"SCHEDULE OF ASSETS",null,null,null,null,null,null,{"$f":"HYPERLINK(\"#'Index'!A1\",\"Return to Index\")","v":"Return to Index"}]
[null,{"$f":"'Company Information'!$C$7","v":"Enter Company Name"}]
[null,"As at",{"$f":" TEXT('Company Information'!C3,\"d mmmm yyyy\")","v":"31 December 2022"}]
[null,"expressed in ['000s]",{"$f":"'Form 1SFS (Consolidated)'!C5","v":"United States Dollars"}]
[]
[]
[null,"(A) CASH AND CASH EQUIVALENTS"]
[]
[null,null,"Enter # of Asset Types",{"$f":"Import!M9145","v":0}]
[]
[null,null,null,null,{"$f":"YEAR($C$3)","v":2022},{"$f":"YEAR($C$3)","v":2022}]
[null,"Asset Type","Jurisdiction","BSCR Rating","Face Value","Fair Value"]
[1,{"$f":"Import!M9146","v":"Select"},{"$f":"Import!M9166","v":"Select"},{"$f":"Import!M9186","v":"Select"},{"$f":"Import!M9206","v":0},{"$f":"Import!M9226","v":0}]
[2,{"$f":"Import!M9147","v":"Select"},{"$f":"Import!M9167","v":"Select"},{"$f":"Import!M9187","v":"Select"},{"$f":"Import!M9207","v":0},{"$f":"Import!M9227","v":0}]
[3,{"$f":"Import!M9148","v":"Select"},{"$f":"Import!M9168","v":"Select"},{"$f":"Import!M9188","v":"Select"},{"$f":"Import!M9208","v":0},{"$f":"Import!M9228","v":0}]
[4,{"$f":"Import!M9149","v":"Select"},{"$f":"Import!M9169","v":"Select"},{"$f":"Import!M9189","v":"Select"},{"$f":"Import!M9209","v":0},{"$f":"Import!M9229","v":0}]
[5,{"$f":"Import!M9150","v":"Select"},{"$f":"Import!M9170","v":"Select"},{"$f":"Import!M9190","v":"Select"},{"$f":"Import!M9210","v":0},{"$f":"Import!M9230","v":0}]
[6,{"$f":"Import!M9151","v":"Select"},{"$f":"Import!M9171","v":"Select"},{"$f":"Import!M9191","v":"Select"},{"$f":"Import!M9211","v":0},{"$f":"Import!M9231","v":0}]
[7,{"$f":"Import!M9152","v":"Select"},{"$f":"Import!M9172","v":"Select"},{"$f":"Import!M9192","v":"Select"},{"$f":"Import!M9212","v":0},{"$f":"Import!M9232","v":0}]
[8,{"$f":"Import!M9153","v":"Select"},{"$f":"Import!M9173","v":"Select"},{"$f":"Import!M9193","v":"Select"},{"$f":"Import!M9213","v":0},{"$f":"Import!M9233","v":0}]
[9,{"$f":"Import!M9154","v":"Select"},{"$f":"Import!M9174","v":"Select"},{"$f":"Import!M9194","v":"Select"},{"$f":"Import!M9214","v":0},{"$f":"Import!M9234","v":0}]
[10,{"$f":"Import!M9155","v":"Select"},{"$f":"Import!M9175","v":"Select"},{"$f":"Import!M9195","v":"Select"},{"$f":"Import!M9215","v":0},{"$f":"Import!M9235","v":0}]
[11,{"$f":"Import!M9156","v":"Select"},{"$f":"Import!M9176","v":"Select"},{"$f":"Import!M9196","v":"Select"},{"$f":"Import!M9216","v":0},{"$f":"Import!M9236","v":0}]
[12,{"$f":"Import!M9157","v":"Select"},{"$f":"Import!M9177","v":"Select"},{"$f":"Import!M9197","v":"Select"},{"$f":"Import!M9217","v":0},{"$f":"Import!M9237","v":0}]
[13,{"$f":"Import!M9158","v":"Select"},{"$f":"Import!M9178","v":"Select"},{"$f":"Import!M9198","v":"Select"},{"$f":"Import!M9218","v":0},{"$f":"Import!M9238","v":0}]
[14,{"$f":"Import!M9159","v":"Select"},{"$f":"Import!M9179","v":"Select"},{"$f":"Import!M9199","v":"Select"},{"$f":"Import!M9219","v":0},{"$f":"Import!M9239","v":0}]
[15,{"$f":"Import!M9160","v":"Select"},{"$f":"Import!M9180","v":"Select"},{"$f":"Import!M9200","v":"Select"},{"$f":"Import!M9220","v":0},{"$f":"Import!M9240","v":0}]
[16,{"$f":"Import!M9161","v":"Select"},{"$f":"Import!M9181","v":"Select"},{"$f":"Import!M9201","v":"Select"},{"$f":"Import!M9221","v":0},{"$f":"Import!M9241","v":0}]
[17,{"$f":"Import!M9162","v":"Select"},{"$f":"Import!M9182","v":"Select"},{"$f":"Import!M9202","v":"Select"},{"$f":"Import!M9222","v":0},{"$f":"Import!M9242","v":0}]
[18,{"$f":"Import!M9163","v":"Select"},{"$f":"Import!M9183","v":"Select"},{"$f":"Import!M9203","v":"Select"},{"$f":"Import!M9223","v":0},{"$f":"Import!M9243","v":0}]
[19,{"$f":"Import!M9164","v":"Select"},{"$f":"Import!M9184","v":"Select"},{"$f":"Import!M9204","v":"Select"},{"$f":"Import!M9224","v":0},{"$f":"Import!M9244","v":0}]
[20,{"$f":"Import!M9165","v":"Select"},{"$f":"Import!M9185","v":"Select"},{"$f":"Import!M9205","v":"Select"},{"$f":"Import!M9225","v":0},{"$f":"Import!M9245","v":0}]
[]
[null,"Total Cash & Cash Equivalents",null,null,{"$f":"SUM(E13:E32)","v":0},{"$f":"SUM(F13:F32)","v":0}]
[]
[]
[]
[]
[]
[null,"(B) BONDS AND DEBENTURES"]
[]
[null,null,"Enter # of Asset Types",{"$f":"Import!M9246","v":0}]
[]
[null,null,null,null,{"$f":"YEAR($C$3)","v":2022},2022]
[null,"Asset Type","Jurisdiction","BSCR Rating","Face Value","Fair Value","Average YTM","Effective Duration","Effective Convexity"]
[1,{"$f":"Import!M9247","v":"Select"},{"$f":"Import!M9267","v":"Select"},{"$f":"Import!M9287","v":"Select"},{"$f":"Import!M9307","v":0},{"$f":"Import!M9327","v":0},{"$f":"Import!M9347","v":0},{"$f":"Import!M9367","v":0},{"$f":"Import!M9387","v":0}]
[2,{"$f":"Import!M9248","v":"Select"},{"$f":"Import!M9268","v":"Select"},{"$f":"Import!M9288","v":"Select"},{"$f":"Import!M9308","v":0},{"$f":"Import!M9328","v":0},{"$f":"Import!M9348","v":0},{"$f":"Import!M9368","v":0},{"$f":"Import!M9388","v":0}]
[3,{"$f":"Import!M9249","v":"Select"},{"$f":"Import!M9269","v":"Select"},{"$f":"Import!M9289","v":"Select"},{"$f":"Import!M9309","v":0},{"$f":"Import!M9329","v":0},{"$f":"Import!M9349","v":0},{"$f":"Import!M9369","v":0},{"$f":"Import!M9389","v":0}]
[4,{"$f":"Import!M9250","v":"Select"},{"$f":"Import!M9270","v":"Select"},{"$f":"Import!M9290","v":"Select"},{"$f":"Import!M9310","v":0},{"$f":"Import!M9330","v":0},{"$f":"Import!M9350","v":0},{"$f":"Import!M9370","v":0},{"$f":"Import!M9390","v":0}]
[5,{"$f":"Import!M9251","v":"Select"},{"$f":"Import!M9271","v":"Select"},{"$f":"Import!M9291","v":"Select"},{"$f":"Import!M9311","v":0},{"$f":"Import!M9331","v":0},{"$f":"Import!M9351","v":0},{"$f":"Import!M9371","v":0},{"$f":"Import!M9391","v":0}]
[6,{"$f":"Import!M9252","v":"Select"},{"$f":"Import!M9272","v":"Select"},{"$f":"Import!M9292","v":"Select"},{"$f":"Import!M9312","v":0},{"$f":"Import!M9332","v":0},{"$f":"Import!M9352","v":0},{"$f":"Import!M9372","v":0},{"$f":"Import!M9392","v":0}]
[7,{"$f":"Import!M9253","v":"Select"},{"$f":"Import!M9273","v":"Select"},{"$f":"Import!M9293","v":"Select"},{"$f":"Import!M9313","v":0},{"$f":"Import!M9333","v":0},{"$f":"Import!M9353","v":0},{"$f":"Import!M9373","v":0},{"$f":"Import!M9393","v":0}]
[8,{"$f":"Import!M9254","v":"Select"},{"$f":"Import!M9274","v":"Select"},{"$f":"Import!M9294","v":"Select"},{"$f":"Import!M9314","v":0},{"$f":"Import!M9334","v":0},{"$f":"Import!M9354","v":0},{"$f":"Import!M9374","v":0},{"$f":"Import!M9394","v":0}]
[9,{"$f":"Import!M9255","v":"Select"},{"$f":"Import!M9275","v":"Select"},{"$f":"Import!M9295","v":"Select"},{"$f":"Import!M9315","v":0},{"$f":"Import!M9335","v":0},{"$f":"Import!M9355","v":0},{"$f":"Import!M9375","v":0},{"$f":"Import!M9395","v":0}]
[10,{"$f":"Import!M9256","v":"Select"},{"$f":"Import!M9276","v":"Select"},{"$f":"Import!M9296","v":"Select"},{"$f":"Import!M9316","v":0},{"$f":"Import!M9336","v":0},{"$f":"Import!M9356","v":0},{"$f":"Import!M9376","v":0},{"$f":"Import!M9396","v":0}]
[11,{"$f":"Import!M9257","v":"Select"},{"$f":"Import!M9277","v":"Select"},{"$f":"Import!M9297","v":"Select"},{"$f":"Import!M9317","v":0},{"$f":"Import!M9337","v":0},{"$f":"Import!M9357","v":0},{"$f":"Import!M9377","v":0},{"$f":"Import!M9397","v":0}]
[12,{"$f":"Import!M9258","v":"Select"},{"$f":"Import!M9278","v":"Select"},{"$f":"Import!M9298","v":"Select"},{"$f":"Import!M9318","v":0},{"$f":"Import!M9338","v":0},{"$f":"Import!M9358","v":0},{"$f":"Import!M9378","v":0},{"$f":"Import!M9398","v":0}]
[13,{"$f":"Import!M9259","v":"Select"},{"$f":"Import!M9279","v":"Select"},{"$f":"Import!M9299","v":"Select"},{"$f":"Import!M9319","v":0},{"$f":"Import!M9339","v":0},{"$f":"Import!M9359","v":0},{"$f":"Import!M9379","v":0},{"$f":"Import!M9399","v":0}]
[14,{"$f":"Import!M9260","v":"Select"},{"$f":"Import!M9280","v":"Select"},{"$f":"Import!M9300","v":"Select"},{"$f":"Import!M9320","v":0},{"$f":"Import!M9340","v":0},{"$f":"Import!M9360","v":0},{"$f":"Import!M9380","v":0},{"$f":"Import!M9400","v":0}]
[15,{"$f":"Import!M9261","v":"Select"},{"$f":"Import!M9281","v":"Select"},{"$f":"Import!M9301","v":"Select"},{"$f":"Import!M9321","v":0},{"$f":"Import!M9341","v":0},{"$f":"Import!M9361","v":0},{"$f":"Import!M9381","v":0},{"$f":"Import!M9401","v":0}]
[16,{"$f":"Import!M9262","v":"Select"},{"$f":"Import!M9282","v":"Select"},{"$f":"Import!M9302","v":"Select"},{"$f":"Import!M9322","v":0},{"$f":"Import!M9342","v":0},{"$f":"Import!M9362","v":0},{"$f":"Import!M9382","v":0},{"$f":"Import!M9402","v":0}]
[17,{"$f":"Import!M9263","v":"Select"},{"$f":"Import!M9283","v":"Select"},{"$f":"Import!M9303","v":"Select"},{"$f":"Import!M9323","v":0},{"$f":"Import!M9343","v":0},{"$f":"Import!M9363","v":0},{"$f":"Import!M9383","v":0},{"$f":"Import!M9403","v":0}]
[18,{"$f":"Import!M9264","v":"Select"},{"$f":"Import!M9284","v":"Select"},{"$f":"Import!M9304","v":"Select"},{"$f":"Import!M9324","v":0},{"$f":"Import!M9344","v":0},{"$f":"Import!M9364","v":0},{"$f":"Import!M9384","v":0},{"$f":"Import!M9404","v":0}]
[19,{"$f":"Import!M9265","v":"Select"},{"$f":"Import!M9285","v":"Select"},{"$f":"Import!M9305","v":"Select"},{"$f":"Import!M9325","v":0},{"$f":"Import!M9345","v":0},{"$f":"Import!M9365","v":0},{"$f":"Import!M9385","v":0},{"$f":"Import!M9405","v":0}]
[20,{"$f":"Import!M9266","v":"Select"},{"$f":"Import!M9286","v":"Select"},{"$f":"Import!M9306","v":"Select"},{"$f":"Import!M9326","v":0},{"$f":"Import!M9346","v":0},{"$f":"Import!M9366","v":0},{"$f":"Import!M9386","v":0},{"$f":"Import!M9406","v":0}]
[]
[null,"Total Bonds & Debentures",null,null,{"$f":"SUM(E46:E65)","v":0},{"$f":"SUM(F46:F65)","v":0},0,0,0]
[]
[null,"(C) SECURITIES/ASSET-BASED SECURITIES"]
[]
[null,null,"Enter # of Asset Types",{"$f":"Import!M9407","v":0}]
[]
[null,null,null,null,{"$f":"YEAR($C$3)","v":2022},2022]
[null,"Asset Type","Jurisdiction","BSCR Rating","Face Value","Fair Value","Average YTM","Effective Duration","Effective Convexity"]
[1,{"$f":"Import!M9408","v":"Select"},{"$f":"Import!M9428","v":"Select"},{"$f":"Import!M9448","v":"Select"},{"$f":"Import!M9468","v":0},{"$f":"Import!M9488","v":0},{"$f":"Import!M9508","v":0},{"$f":"Import!M9528","v":0},{"$f":"Import!M9548","v":0}]
[2,{"$f":"Import!M9409","v":"Select"},{"$f":"Import!M9429","v":"Select"},{"$f":"Import!M9449","v":"Select"},{"$f":"Import!M9469","v":0},{"$f":"Import!M9489","v":0},{"$f":"Import!M9509","v":0},{"$f":"Import!M9529","v":0},{"$f":"Import!M9549","v":0}]
[3,{"$f":"Import!M9410","v":"Select"},{"$f":"Import!M9430","v":"Select"},{"$f":"Import!M9450","v":"Select"},{"$f":"Import!M9470","v":0},{"$f":"Import!M9490","v":0},{"$f":"Import!M9510","v":0},{"$f":"Import!M9530","v":0},{"$f":"Import!M9550","v":0}]
[4,{"$f":"Import!M9411","v":"Select"},{"$f":"Import!M9431","v":"Select"},{"$f":"Import!M9451","v":"Select"},{"$f":"Import!M9471","v":0},{"$f":"Import!M9491","v":0},{"$f":"Import!M9511","v":0},{"$f":"Import!M9531","v":0},{"$f":"Import!M9551","v":0}]
[5,{"$f":"Import!M9412","v":"Select"},{"$f":"Import!M9432","v":"Select"},{"$f":"Import!M9452","v":"Select"},{"$f":"Import!M9472","v":0},{"$f":"Import!M9492","v":0},{"$f":"Import!M9512","v":0},{"$f":"Import!M9532","v":0},{"$f":"Import!M9552","v":0}]
[6,{"$f":"Import!M9413","v":"Select"},{"$f":"Import!M9433","v":"Select"},{"$f":"Import!M9453","v":"Select"},{"$f":"Import!M9473","v":0},{"$f":"Import!M9493","v":0},{"$f":"Import!M9513","v":0},{"$f":"Import!M9533","v":0},{"$f":"Import!M9553","v":0}]
[7,{"$f":"Import!M9414","v":"Select"},{"$f":"Import!M9434","v":"Select"},{"$f":"Import!M9454","v":"Select"},{"$f":"Import!M9474","v":0},{"$f":"Import!M9494","v":0},{"$f":"Import!M9514","v":0},{"$f":"Import!M9534","v":0},{"$f":"Import!M9554","v":0}]
[8,{"$f":"Import!M9415","v":"Select"},{"$f":"Import!M9435","v":"Select"},{"$f":"Import!M9455","v":"Select"},{"$f":"Import!M9475","v":0},{"$f":"Import!M9495","v":0},{"$f":"Import!M9515","v":0},{"$f":"Import!M9535","v":0},{"$f":"Import!M9555","v":0}]
[9,{"$f":"Import!M9416","v":"Select"},{"$f":"Import!M9436","v":"Select"},{"$f":"Import!M9456","v":"Select"},{"$f":"Import!M9476","v":0},{"$f":"Import!M9496","v":0},{"$f":"Import!M9516","v":0},{"$f":"Import!M9536","v":0},{"$f":"Import!M9556","v":0}]
[10,{"$f":"Import!M9417","v":"Select"},{"$f":"Import!M9437","v":"Select"},{"$f":"Import!M9457","v":"Select"},{"$f":"Import!M9477","v":0},{"$f":"Import!M9497","v":0},{"$f":"Import!M9517","v":0},{"$f":"Import!M9537","v":0},{"$f":"Import!M9557","v":0}]
[11,{"$f":"Import!M9418","v":"Select"},{"$f":"Import!M9438","v":"Select"},{"$f":"Import!M9458","v":"Select"},{"$f":"Import!M9478","v":0},{"$f":"Import!M9498","v":0},{"$f":"Import!M9518","v":0},{"$f":"Import!M9538","v":0},{"$f":"Import!M9558","v":0}]
[12,{"$f":"Import!M9419","v":"Select"},{"$f":"Import!M9439","v":"Select"},{"$f":"Import!M9459","v":"Select"},{"$f":"Import!M9479","v":0},{"$f":"Import!M9499","v":0},{"$f":"Import!M9519","v":0},{"$f":"Import!M9539","v":0},{"$f":"Import!M9559","v":0}]
[13,{"$f":"Import!M9420","v":"Select"},{"$f":"Import!M9440","v":"Select"},{"$f":"Import!M9460","v":"Select"},{"$f":"Import!M9480","v":0},{"$f":"Import!M9500","v":0},{"$f":"Import!M9520","v":0},{"$f":"Import!M9540","v":0},{"$f":"Import!M9560","v":0}]
[14,{"$f":"Import!M9421","v":"Select"},{"$f":"Import!M9441","v":"Select"},{"$f":"Import!M9461","v":"Select"},{"$f":"Import!M9481","v":0},{"$f":"Import!M9501","v":0},{"$f":"Import!M9521","v":0},{"$f":"Import!M9541","v":0},{"$f":"Import!M9561","v":0}]
[15,{"$f":"Import!M9422","v":"Select"},{"$f":"Import!M9442","v":"Select"},{"$f":"Import!M9462","v":"Select"},{"$f":"Import!M9482","v":0},{"$f":"Import!M9502","v":0},{"$f":"Import!M9522","v":0},{"$f":"Import!M9542","v":0},{"$f":"Import!M9562","v":0}]
[16,{"$f":"Import!M9423","v":"Select"},{"$f":"Import!M9443","v":"Select"},{"$f":"Import!M9463","v":"Select"},{"$f":"Import!M9483","v":0},{"$f":"Import!M9503","v":0},{"$f":"Import!M9523","v":0},{"$f":"Import!M9543","v":0},{"$f":"Import!M9563","v":0}]
[17,{"$f":"Import!M9424","v":"Select"},{"$f":"Import!M9444","v":"Select"},{"$f":"Import!M9464","v":"Select"},{"$f":"Import!M9484","v":0},{"$f":"Import!M9504","v":0},{"$f":"Import!M9524","v":0},{"$f":"Import!M9544","v":0},{"$f":"Import!M9564","v":0}]
[18,{"$f":"Import!M9425","v":"Select"},{"$f":"Import!M9445","v":"Select"},{"$f":"Import!M9465","v":"Select"},{"$f":"Import!M9485","v":0},{"$f":"Import!M9505","v":0},{"$f":"Import!M9525","v":0},{"$f":"Import!M9545","v":0},{"$f":"Import!M9565","v":0}]
[19,{"$f":"Import!M9426","v":"Select"},{"$f":"Import!M9446","v":"Select"},{"$f":"Import!M9466","v":"Select"},{"$f":"Import!M9486","v":0},{"$f":"Import!M9506","v":0},{"$f":"Import!M9526","v":0},{"$f":"Import!M9546","v":0},{"$f":"Import!M9566","v":0}]
[20,{"$f":"Import!M9427","v":"Select"},{"$f":"Import!M9447","v":"Select"},{"$f":"Import!M9467","v":"Select"},{"$f":"Import!M9487","v":0},{"$f":"Import!M9507","v":0},{"$f":"Import!M9527","v":0},{"$f":"Import!M9547","v":0},{"$f":"Import!M9567","v":0}]
[]
[null,"Total Securities/Asset-Backed Securities",null,null,{"$f":"SUM(E75:E94)","v":0},{"$f":"SUM(F75:F94)","v":0},0,0,0]
[]
[]
[]
[]
[]
[null,"(D) LISTED EQUITIES AND PREFERENCE SHARES"]
[]
[null,null,"Enter # of Asset Types",{"$f":"Import!M9568","v":0}]
[]
[null,null,null,null,{"$f":"YEAR($C$3)","v":2022},2022]
[null,"Asset Type","Stock Exchange","BSCR Rating","Face Value","Fair Value"]
[1,{"$f":"Import!M9569","v":"Select"},{"$f":"Import!M9589","v":0},{"$f":"Import!M9609","v":"Select"},{"$f":"Import!M9629","v":0},{"$f":"Import!M9649","v":0}]
[2,{"$f":"Import!M9570","v":"Select"},{"$f":"Import!M9590","v":0},{"$f":"Import!M9610","v":"Select"},{"$f":"Import!M9630","v":0},{"$f":"Import!M9650","v":0}]
[3,{"$f":"Import!M9571","v":"Select"},{"$f":"Import!M9591","v":0},{"$f":"Import!M9611","v":"Select"},{"$f":"Import!M9631","v":0},{"$f":"Import!M9651","v":0}]
[4,{"$f":"Import!M9572","v":"Select"},{"$f":"Import!M9592","v":0},{"$f":"Import!M9612","v":"Select"},{"$f":"Import!M9632","v":0},{"$f":"Import!M9652","v":0}]
[5,{"$f":"Import!M9573","v":"Select"},{"$f":"Import!M9593","v":0},{"$f":"Import!M9613","v":"Select"},{"$f":"Import!M9633","v":0},{"$f":"Import!M9653","v":0}]
[6,{"$f":"Import!M9574","v":"Select"},{"$f":"Import!M9594","v":0},{"$f":"Import!M9614","v":"Select"},{"$f":"Import!M9634","v":0},{"$f":"Import!M9654","v":0}]
[7,{"$f":"Import!M9575","v":"Select"},{"$f":"Import!M9595","v":0},{"$f":"Import!M9615","v":"Select"},{"$f":"Import!M9635","v":0},{"$f":"Import!M9655","v":0}]
[8,{"$f":"Import!M9576","v":"Select"},{"$f":"Import!M9596","v":0},{"$f":"Import!M9616","v":"Select"},{"$f":"Import!M9636","v":0},{"$f":"Import!M9656","v":0}]
[9,{"$f":"Import!M9577","v":"Select"},{"$f":"Import!M9597","v":0},{"$f":"Import!M9617","v":"Select"},{"$f":"Import!M9637","v":0},{"$f":"Import!M9657","v":0}]
[10,{"$f":"Import!M9578","v":"Select"},{"$f":"Import!M9598","v":0},{"$f":"Import!M9618","v":"Select"},{"$f":"Import!M9638","v":0},{"$f":"Import!M9658","v":0}]
[11,{"$f":"Import!M9579","v":"Select"},{"$f":"Import!M9599","v":0},{"$f":"Import!M9619","v":"Select"},{"$f":"Import!M9639","v":0},{"$f":"Import!M9659","v":0}]
[12,{"$f":"Import!M9580","v":"Select"},{"$f":"Import!M9600","v":0},{"$f":"Import!M9620","v":"Select"},{"$f":"Import!M9640","v":0},{"$f":"Import!M9660","v":0}]
[13,{"$f":"Import!M9581","v":"Select"},{"$f":"Import!M9601","v":0},{"$f":"Import!M9621","v":"Select"},{"$f":"Import!M9641","v":0},{"$f":"Import!M9661","v":0}]
[14,{"$f":"Import!M9582","v":"Select"},{"$f":"Import!M9602","v":0},{"$f":"Import!M9622","v":"Select"},{"$f":"Import!M9642","v":0},{"$f":"Import!M9662","v":0}]
[15,{"$f":"Import!M9583","v":"Select"},{"$f":"Import!M9603","v":0},{"$f":"Import!M9623","v":"Select"},{"$f":"Import!M9643","v":0},{"$f":"Import!M9663","v":0}]
[16,{"$f":"Import!M9584","v":"Select"},{"$f":"Import!M9604","v":0},{"$f":"Import!M9624","v":"Select"},{"$f":"Import!M9644","v":0},{"$f":"Import!M9664","v":0}]
[17,{"$f":"Import!M9585","v":"Select"},{"$f":"Import!M9605","v":0},{"$f":"Import!M9625","v":"Select"},{"$f":"Import!M9645","v":0},{"$f":"Import!M9665","v":0}]
[18,{"$f":"Import!M9586","v":"Select"},{"$f":"Import!M9606","v":0},{"$f":"Import!M9626","v":"Select"},{"$f":"Import!M9646","v":0},{"$f":"Import!M9666","v":0}]
[19,{"$f":"Import!M9587","v":"Select"},{"$f":"Import!M9607","v":0},{"$f":"Import!M9627","v":"Select"},{"$f":"Import!M9647","v":0},{"$f":"Import!M9667","v":0}]
[20,{"$f":"Import!M9588","v":"Select"},{"$f":"Import!M9608","v":0},{"$f":"Import!M9628","v":"Select"},{"$f":"Import!M9648","v":0},{"$f":"Import!M9668","v":0}]
[]
[null,"Total Listed Equities & Preference Shares",null,null,{"$f":"SUM(E108:E127)","v":0},{"$f":"SUM(F108:F127)","v":0}]
[]
[]
[]
[]
[]
[null,"(E) ALTERNATIVE INVESTMENTS"]
[]
[null,null,"Enter # of Asset Types",{"$f":"Import!M9669","v":0}]
[]
[null,null,null,null,{"$f":"YEAR($C$3)","v":2022},2022]
[]
[null,"Asset Type","Jurisdiction","BSCR Rating","Face Value","Fair Value","Average YTM","Effective Duration","Effective Convexity"]
[1,{"$f":"Import!M9670","v":"Select"},{"$f":"Import!M9690","v":"Select"},{"$f":"Import!M9710","v":"Select"},{"$f":"Import!M9730","v":0},{"$f":"Import!M9750","v":0},{"$f":"Import!M9770","v":0},{"$f":"Import!M9790","v":0},{"$f":"Import!M9810","v":0}]
[2,{"$f":"Import!M9671","v":"Select"},{"$f":"Import!M9691","v":"Select"},{"$f":"Import!M9711","v":"Select"},{"$f":"Import!M9731","v":0},{"$f":"Import!M9751","v":0},{"$f":"Import!M9771","v":0},{"$f":"Import!M9791","v":0},{"$f":"Import!M9811","v":0}]
[3,{"$f":"Import!M9672","v":"Select"},{"$f":"Import!M9692","v":"Select"},{"$f":"Import!M9712","v":"Select"},{"$f":"Import!M9732","v":0},{"$f":"Import!M9752","v":0},{"$f":"Import!M9772","v":0},{"$f":"Import!M9792","v":0},{"$f":"Import!M9812","v":0}]
[4,{"$f":"Import!M9673","v":"Select"},{"$f":"Import!M9693","v":"Select"},{"$f":"Import!M9713","v":"Select"},{"$f":"Import!M9733","v":0},{"$f":"Import!M9753","v":0},{"$f":"Import!M9773","v":0},{"$f":"Import!M9793","v":0},{"$f":"Import!M9813","v":0}]
[5,{"$f":"Import!M9674","v":"Select"},{"$f":"Import!M9694","v":"Select"},{"$f":"Import!M9714","v":"Select"},{"$f":"Import!M9734","v":0},{"$f":"Import!M9754","v":0},{"$f":"Import!M9774","v":0},{"$f":"Import!M9794","v":0},{"$f":"Import!M9814","v":0}]
[6,{"$f":"Import!M9675","v":"Select"},{"$f":"Import!M9695","v":"Select"},{"$f":"Import!M9715","v":"Select"},{"$f":"Import!M9735","v":0},{"$f":"Import!M9755","v":0},{"$f":"Import!M9775","v":0},{"$f":"Import!M9795","v":0},{"$f":"Import!M9815","v":0}]
[7,{"$f":"Import!M9676","v":"Select"},{"$f":"Import!M9696","v":"Select"},{"$f":"Import!M9716","v":"Select"},{"$f":"Import!M9736","v":0},{"$f":"Import!M9756","v":0},{"$f":"Import!M9776","v":0},{"$f":"Import!M9796","v":0},{"$f":"Import!M9816","v":0}]
[8,{"$f":"Import!M9677","v":"Select"},{"$f":"Import!M9697","v":"Select"},{"$f":"Import!M9717","v":"Select"},{"$f":"Import!M9737","v":0},{"$f":"Import!M9757","v":0},{"$f":"Import!M9777","v":0},{"$f":"Import!M9797","v":0},{"$f":"Import!M9817","v":0}]
[9,{"$f":"Import!M9678","v":"Select"},{"$f":"Import!M9698","v":"Select"},{"$f":"Import!M9718","v":"Select"},{"$f":"Import!M9738","v":0},{"$f":"Import!M9758","v":0},{"$f":"Import!M9778","v":0},{"$f":"Import!M9798","v":0},{"$f":"Import!M9818","v":0}]
[10,{"$f":"Import!M9679","v":"Select"},{"$f":"Import!M9699","v":"Select"},{"$f":"Import!M9719","v":"Select"},{"$f":"Import!M9739","v":0},{"$f":"Import!M9759","v":0},{"$f":"Import!M9779","v":0},{"$f":"Import!M9799","v":0},{"$f":"Import!M9819","v":0}]
[11,{"$f":"Import!M9680","v":"Select"},{"$f":"Import!M9700","v":"Select"},{"$f":"Import!M9720","v":"Select"},{"$f":"Import!M9740","v":0},{"$f":"Import!M9760","v":0},{"$f":"Import!M9780","v":0},{"$f":"Import!M9800","v":0},{"$f":"Import!M9820","v":0}]
[12,{"$f":"Import!M9681","v":"Select"},{"$f":"Import!M9701","v":"Select"},{"$f":"Import!M9721","v":"Select"},{"$f":"Import!M9741","v":0},{"$f":"Import!M9761","v":0},{"$f":"Import!M9781","v":0},{"$f":"Import!M9801","v":0},{"$f":"Import!M9821","v":0}]
[13,{"$f":"Import!M9682","v":"Select"},{"$f":"Import!M9702","v":"Select"},{"$f":"Import!M9722","v":"Select"},{"$f":"Import!M9742","v":0},{"$f":"Import!M9762","v":0},{"$f":"Import!M9782","v":0},{"$f":"Import!M9802","v":0},{"$f":"Import!M9822","v":0}]
[14,{"$f":"Import!M9683","v":"Select"},{"$f":"Import!M9703","v":"Select"},{"$f":"Import!M9723","v":"Select"},{"$f":"Import!M9743","v":0},{"$f":"Import!M9763","v":0},{"$f":"Import!M9783","v":0},{"$f":"Import!M9803","v":0},{"$f":"Import!M9823","v":0}]
[15,{"$f":"Import!M9684","v":"Select"},{"$f":"Import!M9704","v":"Select"},{"$f":"Import!M9724","v":"Select"},{"$f":"Import!M9744","v":0},{"$f":"Import!M9764","v":0},{"$f":"Import!M9784","v":0},{"$f":"Import!M9804","v":0},{"$f":"Import!M9824","v":0}]
[16,{"$f":"Import!M9685","v":"Select"},{"$f":"Import!M9705","v":"Select"},{"$f":"Import!M9725","v":"Select"},{"$f":"Import!M9745","v":0},{"$f":"Import!M9765","v":0},{"$f":"Import!M9785","v":0},{"$f":"Import!M9805","v":0},{"$f":"Import!M9825","v":0}]
[17,{"$f":"Import!M9686","v":"Select"},{"$f":"Import!M9706","v":"Select"},{"$f":"Import!M9726","v":"Select"},{"$f":"Import!M9746","v":0},{"$f":"Import!M9766","v":0},{"$f":"Import!M9786","v":0},{"$f":"Import!M9806","v":0},{"$f":"Import!M9826","v":0}]
[18,{"$f":"Import!M9687","v":"Select"},{"$f":"Import!M9707","v":"Select"},{"$f":"Import!M9727","v":"Select"},{"$f":"Import!M9747","v":0},{"$f":"Import!M9767","v":0},{"$f":"Import!M9787","v":0},{"$f":"Import!M9807","v":0},{"$f":"Import!M9827","v":0}]
[19,{"$f":"Import!M9688","v":"Select"},{"$f":"Import!M9708","v":"Select"},{"$f":"Import!M9728","v":"Select"},{"$f":"Import!M9748","v":0},{"$f":"Import!M9768","v":0},{"$f":"Import!M9788","v":0},{"$f":"Import!M9808","v":0},{"$f":"Import!M9828","v":0}]
[20,{"$f":"Import!M9689","v":"Select"},{"$f":"Import!M9709","v":"Select"},{"$f":"Import!M9729","v":"Select"},{"$f":"Import!M9749","v":0},{"$f":"Import!M9769","v":0},{"$f":"Import!M9789","v":0},{"$f":"Import!M9809","v":0},{"$f":"Import!M9829","v":0}]
[]
[null,"Total Alternative Investments",null,null,{"$f":"SUM(E142:E161)","v":0},{"$f":"SUM(F142:F161)","v":0},0,0,0]
[]
[]
[]
[]
[]
[null,"(F) LOANS"]
[]
[null,null,"Enter # of Asset Types",{"$f":"Import!M9830","v":0}]
[]
[null,null,null,null,{"$f":"YEAR($C$3)","v":2022},2022]
[null,"Asset Type","Jurisdiction","BSCR Rating","Face Value","Fair Value","Average YTM","Effective Duration","Effective Convexity"]
[1,{"$f":"Import!M9831","v":"Select"},{"$f":"Import!M9851","v":"Select"},{"$f":"Import!M9871","v":"Select"},{"$f":"Import!M9891","v":0},{"$f":"Import!M9911","v":0},{"$f":"Import!M9931","v":0},{"$f":"Import!M9951","v":0},{"$f":"Import!M9971","v":0}]
[{"$f":"A175+1","v":2},{"$f":"Import!M9832","v":"Select"},{"$f":"Import!M9852","v":"Select"},{"$f":"Import!M9872","v":"Select"},{"$f":"Import!M9892","v":0},{"$f":"Import!M9912","v":0},{"$f":"Import!M9932","v":0},{"$f":"Import!M9952","v":0},{"$f":"Import!M9972","v":0}]
[{"$f":"A176+1","v":3},{"$f":"Import!M9833","v":"Select"},{"$f":"Import!M9853","v":"Select"},{"$f":"Import!M9873","v":"Select"},{"$f":"Import!M9893","v":0},{"$f":"Import!M9913","v":0},{"$f":"Import!M9933","v":0},{"$f":"Import!M9953","v":0},{"$f":"Import!M9973","v":0}]
[4,{"$f":"Import!M9834","v":"Select"},{"$f":"Import!M9854","v":"Select"},{"$f":"Import!M9874","v":"Select"},{"$f":"Import!M9894","v":0},{"$f":"Import!M9914","v":0},{"$f":"Import!M9934","v":0},{"$f":"Import!M9954","v":0},{"$f":"Import!M9974","v":0}]
[5,{"$f":"Import!M9835","v":"Select"},{"$f":"Import!M9855","v":"Select"},{"$f":"Import!M9875","v":"Select"},{"$f":"Import!M9895","v":0},{"$f":"Import!M9915","v":0},{"$f":"Import!M9935","v":0},{"$f":"Import!M9955","v":0},{"$f":"Import!M9975","v":0}]
[6,{"$f":"Import!M9836","v":"Select"},{"$f":"Import!M9856","v":"Select"},{"$f":"Import!M9876","v":"Select"},{"$f":"Import!M9896","v":0},{"$f":"Import!M9916","v":0},{"$f":"Import!M9936","v":0},{"$f":"Import!M9956","v":0},{"$f":"Import!M9976","v":0}]
[7,{"$f":"Import!M9837","v":"Select"},{"$f":"Import!M9857","v":"Select"},{"$f":"Import!M9877","v":"Select"},{"$f":"Import!M9897","v":0},{"$f":"Import!M9917","v":0},{"$f":"Import!M9937","v":0},{"$f":"Import!M9957","v":0},{"$f":"Import!M9977","v":0}]
[8,{"$f":"Import!M9838","v":"Select"},{"$f":"Import!M9858","v":"Select"},{"$f":"Import!M9878","v":"Select"},{"$f":"Import!M9898","v":0},{"$f":"Import!M9918","v":0},{"$f":"Import!M9938","v":0},{"$f":"Import!M9958","v":0},{"$f":"Import!M9978","v":0}]
[9,{"$f":"Import!M9839","v":"Select"},{"$f":"Import!M9859","v":"Select"},{"$f":"Import!M9879","v":"Select"},{"$f":"Import!M9899","v":0},{"$f":"Import!M9919","v":0},{"$f":"Import!M9939","v":0},{"$f":"Import!M9959","v":0},{"$f":"Import!M9979","v":0}]
[10,{"$f":"Import!M9840","v":"Select"},{"$f":"Import!M9860","v":"Select"},{"$f":"Import!M9880","v":"Select"},{"$f":"Import!M9900","v":0},{"$f":"Import!M9920","v":0},{"$f":"Import!M9940","v":0},{"$f":"Import!M9960","v":0},{"$f":"Import!M9980","v":0}]
[11,{"$f":"Import!M9841","v":"Select"},{"$f":"Import!M9861","v":"Select"},{"$f":"Import!M9881","v":"Select"},{"$f":"Import!M9901","v":0},{"$f":"Import!M9921","v":0},{"$f":"Import!M9941","v":0},{"$f":"Import!M9961","v":0},{"$f":"Import!M9981","v":0}]
[12,{"$f":"Import!M9842","v":"Select"},{"$f":"Import!M9862","v":"Select"},{"$f":"Import!M9882","v":"Select"},{"$f":"Import!M9902","v":0},{"$f":"Import!M9922","v":0},{"$f":"Import!M9942","v":0},{"$f":"Import!M9962","v":0},{"$f":"Import!M9982","v":0}]
[13,{"$f":"Import!M9843","v":"Select"},{"$f":"Import!M9863","v":"Select"},{"$f":"Import!M9883","v":"Select"},{"$f":"Import!M9903","v":0},{"$f":"Import!M9923","v":0},{"$f":"Import!M9943","v":0},{"$f":"Import!M9963","v":0},{"$f":"Import!M9983","v":0}]
[14,{"$f":"Import!M9844","v":"Select"},{"$f":"Import!M9864","v":"Select"},{"$f":"Import!M9884","v":"Select"},{"$f":"Import!M9904","v":0},{"$f":"Import!M9924","v":0},{"$f":"Import!M9944","v":0},{"$f":"Import!M9964","v":0},{"$f":"Import!M9984","v":0}]
[15,{"$f":"Import!M9845","v":"Select"},{"$f":"Import!M9865","v":"Select"},{"$f":"Import!M9885","v":"Select"},{"$f":"Import!M9905","v":0},{"$f":"Import!M9925","v":0},{"$f":"Import!M9945","v":0},{"$f":"Import!M9965","v":0},{"$f":"Import!M9985","v":0}]
[16,{"$f":"Import!M9846","v":"Select"},{"$f":"Import!M9866","v":"Select"},{"$f":"Import!M9886","v":"Select"},{"$f":"Import!M9906","v":0},{"$f":"Import!M9926","v":0},{"$f":"Import!M9946","v":0},{"$f":"Import!M9966","v":0},{"$f":"Import!M9986","v":0}]
[17,{"$f":"Import!M9847","v":"Select"},{"$f":"Import!M9867","v":"Select"},{"$f":"Import!M9887","v":"Select"},{"$f":"Import!M9907","v":0},{"$f":"Import!M9927","v":0},{"$f":"Import!M9947","v":0},{"$f":"Import!M9967","v":0},{"$f":"Import!M9987","v":0}]
[18,{"$f":"Import!M9848","v":"Select"},{"$f":"Import!M9868","v":"Select"},{"$f":"Import!M9888","v":"Select"},{"$f":"Import!M9908","v":0},{"$f":"Import!M9928","v":0},{"$f":"Import!M9948","v":0},{"$f":"Import!M9968","v":0},{"$f":"Import!M9988","v":0}]
[19,{"$f":"Import!M9849","v":"Select"},{"$f":"Import!M9869","v":"Select"},{"$f":"Import!M9889","v":"Select"},{"$f":"Import!M9909","v":0},{"$f":"Import!M9929","v":0},{"$f":"Import!M9949","v":0},{"$f":"Import!M9969","v":0},{"$f":"Import!M9989","v":0}]
[20,{"$f":"Import!M9850","v":"Select"},{"$f":"Import!M9870","v":"Select"},{"$f":"Import!M9890","v":"Select"},{"$f":"Import!M9910","v":0},{"$f":"Import!M9930","v":0},{"$f":"Import!M9950","v":0},{"$f":"Import!M9970","v":0},{"$f":"Import!M9990","v":0}]
[]
[null,"Total Loans",null,null,{"$f":"SUM(E175:E194)","v":0},{"$f":"SUM(F175:F194)","v":0},0,0,0]
[]
[]
[]
[]
[]
[null,"(G) REAL ESTATE"]
[]
[null,null,"Enter # of Asset Types",{"$f":"Import!M9991","v":0}]
[]
[null,null,null,null,{"$f":"YEAR($C$3)","v":2022},{"$f":"YEAR($C$3)","v":2022}]
[]
[null,"Asset Type","Jurisdiction","Purpose","Face Value","Fair Value"]
[1,{"$f":"Import!M9992","v":"Select"},{"$f":"Import!M10012","v":"Select"},{"$f":"Import!M10032","v":"Select"},{"$f":"Import!M10052","v":0},{"$f":"Import!M10072","v":0}]
[{"$f":"A209+1","v":2},{"$f":"Import!M9993","v":"Select"},{"$f":"Import!M10013","v":"Select"},{"$f":"Import!M10033","v":"Select"},{"$f":"Import!M10053","v":0},{"$f":"Import!M10073","v":0}]
[{"$f":"A210+1","v":3},{"$f":"Import!M9994","v":"Select"},{"$f":"Import!M10014","v":"Select"},{"$f":"Import!M10034","v":"Select"},{"$f":"Import!M10054","v":0},{"$f":"Import!M10074","v":0}]
[4,{"$f":"Import!M9995","v":"Select"},{"$f":"Import!M10015","v":"Select"},{"$f":"Import!M10035","v":"Select"},{"$f":"Import!M10055","v":0},{"$f":"Import!M10075","v":0}]
[5,{"$f":"Import!M9996","v":"Select"},{"$f":"Import!M10016","v":"Select"},{"$f":"Import!M10036","v":"Select"},{"$f":"Import!M10056","v":0},{"$f":"Import!M10076","v":0}]
[6,{"$f":"Import!M9997","v":"Select"},{"$f":"Import!M10017","v":"Select"},{"$f":"Import!M10037","v":"Select"},{"$f":"Import!M10057","v":0},{"$f":"Import!M10077","v":0}]
[7,{"$f":"Import!M9998","v":"Select"},{"$f":"Import!M10018","v":"Select"},{"$f":"Import!M10038","v":"Select"},{"$f":"Import!M10058","v":0},{"$f":"Import!M10078","v":0}]
[8,{"$f":"Import!M9999","v":"Select"},{"$f":"Import!M10019","v":"Select"},{"$f":"Import!M10039","v":"Select"},{"$f":"Import!M10059","v":0},{"$f":"Import!M10079","v":0}]
[9,{"$f":"Import!M10000","v":"Select"},{"$f":"Import!M10020","v":"Select"},{"$f":"Import!M10040","v":"Select"},{"$f":"Import!M10060","v":0},{"$f":"Import!M10080","v":0}]
[10,{"$f":"Import!M10001","v":"Select"},{"$f":"Import!M10021","v":"Select"},{"$f":"Import!M10041","v":"Select"},{"$f":"Import!M10061","v":0},{"$f":"Import!M10081","v":0}]
[11,{"$f":"Import!M10002","v":"Select"},{"$f":"Import!M10022","v":"Select"},{"$f":"Import!M10042","v":"Select"},{"$f":"Import!M10062","v":0},{"$f":"Import!M10082","v":0}]
[12,{"$f":"Import!M10003","v":"Select"},{"$f":"Import!M10023","v":"Select"},{"$f":"Import!M10043","v":"Select"},{"$f":"Import!M10063","v":0},{"$f":"Import!M10083","v":0}]
[13,{"$f":"Import!M10004","v":"Select"},{"$f":"Import!M10024","v":"Select"},{"$f":"Import!M10044","v":"Select"},{"$f":"Import!M10064","v":0},{"$f":"Import!M10084","v":0}]
[14,{"$f":"Import!M10005","v":"Select"},{"$f":"Import!M10025","v":"Select"},{"$f":"Import!M10045","v":"Select"},{"$f":"Import!M10065","v":0},{"$f":"Import!M10085","v":0}]
[15,{"$f":"Import!M10006","v":"Select"},{"$f":"Import!M10026","v":"Select"},{"$f":"Import!M10046","v":"Select"},{"$f":"Import!M10066","v":0},{"$f":"Import!M10086","v":0}]
[16,{"$f":"Import!M10007","v":"Select"},{"$f":"Import!M10027","v":"Select"},{"$f":"Import!M10047","v":"Select"},{"$f":"Import!M10067","v":0},{"$f":"Import!M10087","v":0}]
[17,{"$f":"Import!M10008","v":"Select"},{"$f":"Import!M10028","v":"Select"},{"$f":"Import!M10048","v":"Select"},{"$f":"Import!M10068","v":0},{"$f":"Import!M10088","v":0}]
[18,{"$f":"Import!M10009","v":"Select"},{"$f":"Import!M10029","v":"Select"},{"$f":"Import!M10049","v":"Select"},{"$f":"Import!M10069","v":0},{"$f":"Import!M10089","v":0}]
[19,{"$f":"Import!M10010","v":"Select"},{"$f":"Import!M10030","v":"Select"},{"$f":"Import!M10050","v":"Select"},{"$f":"Import!M10070","v":0},{"$f":"Import!M10090","v":0}]
[20,{"$f":"Import!M10011","v":"Select"},{"$f":"Import!M10031","v":"Select"},{"$f":"Import!M10051","v":"Select"},{"$f":"Import!M10071","v":0},{"$f":"Import!M10091","v":0}]
[]
[null,"Total Real Estate",null,null,{"$f":"SUM(E209:E228)","v":0},{"$f":"SUM(F209:F228)","v":0}]
[]
[]
[]
[]
[]
[null,"(H) DERIVATIVES"]
[]
[null,null,"Enter # of Derivative Types",{"$f":"Import!M10092","v":0}]
[]
[null,"Derivative Type","Underlying","Purpose","Position",{"$f":"YEAR($C$3)&\"       Market Value\"","v":"2022       Market Value"},"Centrally Cleared","Notional Value","Exposure (Dollar Delta, DV01, CS01"]
[1,{"$f":"Import!M10093","v":"Select"},{"$f":"Import!M10113","v":"Select"},{"$f":"Import!M10133","v":"Select"},{"$f":"Import!M10153","v":"Select"},{"$f":"Import!M10173","v":0},{"$f":"Import!M10193","v":"Select"},{"$f":"Import!M10213","v":0},{"$f":"Import!M10233","v":0}]
[{"$f":"A241+1","v":2},{"$f":"Import!M10094","v":"Select"},{"$f":"Import!M10114","v":"Select"},{"$f":"Import!M10134","v":"Select"},{"$f":"Import!M10154","v":"Select"},{"$f":"Import!M10174","v":0},{"$f":"Import!M10194","v":"Select"},{"$f":"Import!M10214","v":0},{"$f":"Import!M10234","v":0}]
[{"$f":"A242+1","v":3},{"$f":"Import!M10095","v":"Select"},{"$f":"Import!M10115","v":"Select"},{"$f":"Import!M10135","v":"Select"},{"$f":"Import!M10155","v":"Select"},{"$f":"Import!M10175","v":0},{"$f":"Import!M10195","v":"Select"},{"$f":"Import!M10215","v":0},{"$f":"Import!M10235","v":0}]
[4,{"$f":"Import!M10096","v":"Select"},{"$f":"Import!M10116","v":"Select"},{"$f":"Import!M10136","v":"Select"},{"$f":"Import!M10156","v":"Select"},{"$f":"Import!M10176","v":0},{"$f":"Import!M10196","v":"Select"},{"$f":"Import!M10216","v":0},{"$f":"Import!M10236","v":0}]
[5,{"$f":"Import!M10097","v":"Select"},{"$f":"Import!M10117","v":"Select"},{"$f":"Import!M10137","v":"Select"},{"$f":"Import!M10157","v":"Select"},{"$f":"Import!M10177","v":0},{"$f":"Import!M10197","v":"Select"},{"$f":"Import!M10217","v":0},{"$f":"Import!M10237","v":0}]
[6,{"$f":"Import!M10098","v":"Select"},{"$f":"Import!M10118","v":"Select"},{"$f":"Import!M10138","v":"Select"},{"$f":"Import!M10158","v":"Select"},{"$f":"Import!M10178","v":0},{"$f":"Import!M10198","v":"Select"},{"$f":"Import!M10218","v":0},{"$f":"Import!M10238","v":0}]
[7,{"$f":"Import!M10099","v":"Select"},{"$f":"Import!M10119","v":"Select"},{"$f":"Import!M10139","v":"Select"},{"$f":"Import!M10159","v":"Select"},{"$f":"Import!M10179","v":0},{"$f":"Import!M10199","v":"Select"},{"$f":"Import!M10219","v":0},{"$f":"Import!M10239","v":0}]
[8,{"$f":"Import!M10100","v":"Select"},{"$f":"Import!M10120","v":"Select"},{"$f":"Import!M10140","v":"Select"},{"$f":"Import!M10160","v":"Select"},{"$f":"Import!M10180","v":0},{"$f":"Import!M10200","v":"Select"},{"$f":"Import!M10220","v":0},{"$f":"Import!M10240","v":0}]
[9,{"$f":"Import!M10101","v":"Select"},{"$f":"Import!M10121","v":"Select"},{"$f":"Import!M10141","v":"Select"},{"$f":"Import!M10161","v":"Select"},{"$f":"Import!M10181","v":0},{"$f":"Import!M10201","v":"Select"},{"$f":"Import!M10221","v":0},{"$f":"Import!M10241","v":0}]
[10,{"$f":"Import!M10102","v":"Select"},{"$f":"Import!M10122","v":"Select"},{"$f":"Import!M10142","v":"Select"},{"$f":"Import!M10162","v":"Select"},{"$f":"Import!M10182","v":0},{"$f":"Import!M10202","v":"Select"},{"$f":"Import!M10222","v":0},{"$f":"Import!M10242","v":0}]
[11,{"$f":"Import!M10103","v":"Select"},{"$f":"Import!M10123","v":"Select"},{"$f":"Import!M10143","v":"Select"},{"$f":"Import!M10163","v":"Select"},{"$f":"Import!M10183","v":0},{"$f":"Import!M10203","v":"Select"},{"$f":"Import!M10223","v":0},{"$f":"Import!M10243","v":0}]
[12,{"$f":"Import!M10104","v":"Select"},{"$f":"Import!M10124","v":"Select"},{"$f":"Import!M10144","v":"Select"},{"$f":"Import!M10164","v":"Select"},{"$f":"Import!M10184","v":0},{"$f":"Import!M10204","v":"Select"},{"$f":"Import!M10224","v":0},{"$f":"Import!M10244","v":0}]
[13,{"$f":"Import!M10105","v":"Select"},{"$f":"Import!M10125","v":"Select"},{"$f":"Import!M10145","v":"Select"},{"$f":"Import!M10165","v":"Select"},{"$f":"Import!M10185","v":0},{"$f":"Import!M10205","v":"Select"},{"$f":"Import!M10225","v":0},{"$f":"Import!M10245","v":0}]
[14,{"$f":"Import!M10106","v":"Select"},{"$f":"Import!M10126","v":"Select"},{"$f":"Import!M10146","v":"Select"},{"$f":"Import!M10166","v":"Select"},{"$f":"Import!M10186","v":0},{"$f":"Import!M10206","v":"Select"},{"$f":"Import!M10226","v":0},{"$f":"Import!M10246","v":0}]
[15,{"$f":"Import!M10107","v":"Select"},{"$f":"Import!M10127","v":"Select"},{"$f":"Import!M10147","v":"Select"},{"$f":"Import!M10167","v":"Select"},{"$f":"Import!M10187","v":0},{"$f":"Import!M10207","v":"Select"},{"$f":"Import!M10227","v":0},{"$f":"Import!M10247","v":0}]
[16,{"$f":"Import!M10108","v":"Select"},{"$f":"Import!M10128","v":"Select"},{"$f":"Import!M10148","v":"Select"},{"$f":"Import!M10168","v":"Select"},{"$f":"Import!M10188","v":0},{"$f":"Import!M10208","v":"Select"},{"$f":"Import!M10228","v":0},{"$f":"Import!M10248","v":0}]
[17,{"$f":"Import!M10109","v":"Select"},{"$f":"Import!M10129","v":"Select"},{"$f":"Import!M10149","v":"Select"},{"$f":"Import!M10169","v":"Select"},{"$f":"Import!M10189","v":0},{"$f":"Import!M10209","v":"Select"},{"$f":"Import!M10229","v":0},{"$f":"Import!M10249","v":0}]
[18,{"$f":"Import!M10110","v":"Select"},{"$f":"Import!M10130","v":"Select"},{"$f":"Import!M10150","v":"Select"},{"$f":"Import!M10170","v":"Select"},{"$f":"Import!M10190","v":0},{"$f":"Import!M10210","v":"Select"},{"$f":"Import!M10230","v":0},{"$f":"Import!M10250","v":0}]
[19,{"$f":"Import!M10111","v":"Select"},{"$f":"Import!M10131","v":"Select"},{"$f":"Import!M10151","v":"Select"},{"$f":"Import!M10171","v":"Select"},{"$f":"Import!M10191","v":0},{"$f":"Import!M10211","v":"Select"},{"$f":"Import!M10231","v":0},{"$f":"Import!M10251","v":0}]
[20,{"$f":"Import!M10112","v":"Select"},{"$f":"Import!M10132","v":"Select"},{"$f":"Import!M10152","v":"Select"},{"$f":"Import!M10172","v":"Select"},{"$f":"Import!M10192","v":0},{"$f":"Import!M10212","v":"Select"},{"$f":"Import!M10232","v":0},{"$f":"Import!M10252","v":0}]
[]
[null,"Total Derivatives",null,null,null,{"$f":"SUM(F241:F260)","v":0},null,0,0]
[]
[]
[]
[]
[]
[null,"(I) OTHER ASSETS"]
[]
[null,null,"Enter # of Asset Types",{"$f":"Import!M10253","v":0}]
[]
[null,null,null,null,{"$f":"YEAR($C$3)","v":2022},2022]
[]
[null,"Asset Type","Jurisdiction","BSCR Rating","Face Value","Fair Value"]
[1,{"$f":"Import!M10254","v":"Select"},{"$f":"Import!M10274","v":"Select"},{"$f":"Import!M10294","v":"Select"},{"$f":"Import!M10314","v":0},{"$f":"Import!M10334","v":0}]
[2,{"$f":"Import!M10255","v":"Select"},{"$f":"Import!M10275","v":"Select"},{"$f":"Import!M10295","v":"Select"},{"$f":"Import!M10315","v":0},{"$f":"Import!M10335","v":0}]
[3,{"$f":"Import!M10256","v":"Select"},{"$f":"Import!M10276","v":"Select"},{"$f":"Import!M10296","v":"Select"},{"$f":"Import!M10316","v":0},{"$f":"Import!M10336","v":0}]
[4,{"$f":"Import!M10257","v":"Select"},{"$f":"Import!M10277","v":"Select"},{"$f":"Import!M10297","v":"Select"},{"$f":"Import!M10317","v":0},{"$f":"Import!M10337","v":0}]
[5,{"$f":"Import!M10258","v":"Select"},{"$f":"Import!M10278","v":"Select"},{"$f":"Import!M10298","v":"Select"},{"$f":"Import!M10318","v":0},{"$f":"Import!M10338","v":0}]
[6,{"$f":"Import!M10259","v":"Select"},{"$f":"Import!M10279","v":"Select"},{"$f":"Import!M10299","v":"Select"},{"$f":"Import!M10319","v":0},{"$f":"Import!M10339","v":0}]
[7,{"$f":"Import!M10260","v":"Select"},{"$f":"Import!M10280","v":"Select"},{"$f":"Import!M10300","v":"Select"},{"$f":"Import!M10320","v":0},{"$f":"Import!M10340","v":0}]
[8,{"$f":"Import!M10261","v":"Select"},{"$f":"Import!M10281","v":"Select"},{"$f":"Import!M10301","v":"Select"},{"$f":"Import!M10321","v":0},{"$f":"Import!M10341","v":0}]
[9,{"$f":"Import!M10262","v":"Select"},{"$f":"Import!M10282","v":"Select"},{"$f":"Import!M10302","v":"Select"},{"$f":"Import!M10322","v":0},{"$f":"Import!M10342","v":0}]
[10,{"$f":"Import!M10263","v":"Select"},{"$f":"Import!M10283","v":"Select"},{"$f":"Import!M10303","v":"Select"},{"$f":"Import!M10323","v":0},{"$f":"Import!M10343","v":0}]
[11,{"$f":"Import!M10264","v":"Select"},{"$f":"Import!M10284","v":"Select"},{"$f":"Import!M10304","v":"Select"},{"$f":"Import!M10324","v":0},{"$f":"Import!M10344","v":0}]
[12,{"$f":"Import!M10265","v":"Select"},{"$f":"Import!M10285","v":"Select"},{"$f":"Import!M10305","v":"Select"},{"$f":"Import!M10325","v":0},{"$f":"Import!M10345","v":0}]
[13,{"$f":"Import!M10266","v":"Select"},{"$f":"Import!M10286","v":"Select"},{"$f":"Import!M10306","v":"Select"},{"$f":"Import!M10326","v":0},{"$f":"Import!M10346","v":0}]
[14,{"$f":"Import!M10267","v":"Select"},{"$f":"Import!M10287","v":"Select"},{"$f":"Import!M10307","v":"Select"},{"$f":"Import!M10327","v":0},{"$f":"Import!M10347","v":0}]
[15,{"$f":"Import!M10268","v":"Select"},{"$f":"Import!M10288","v":"Select"},{"$f":"Import!M10308","v":"Select"},{"$f":"Import!M10328","v":0},{"$f":"Import!M10348","v":0}]
[16,{"$f":"Import!M10269","v":"Select"},{"$f":"Import!M10289","v":"Select"},{"$f":"Import!M10309","v":"Select"},{"$f":"Import!M10329","v":0},{"$f":"Import!M10349","v":0}]
[17,{"$f":"Import!M10270","v":"Select"},{"$f":"Import!M10290","v":"Select"},{"$f":"Import!M10310","v":"Select"},{"$f":"Import!M10330","v":0},{"$f":"Import!M10350","v":0}]
[18,{"$f":"Import!M10271","v":"Select"},{"$f":"Import!M10291","v":"Select"},{"$f":"Import!M10311","v":"Select"},{"$f":"Import!M10331","v":0},{"$f":"Import!M10351","v":0}]
[19,{"$f":"Import!M10272","v":"Select"},{"$f":"Import!M10292","v":"Select"},{"$f":"Import!M10312","v":"Select"},{"$f":"Import!M10332","v":0},{"$f":"Import!M10352","v":0}]
[20,{"$f":"Import!M10273","v":"Select"},{"$f":"Import!M10293","v":"Select"},{"$f":"Import!M10313","v":"Select"},{"$f":"Import!M10333","v":0},{"$f":"Import!M10353","v":0}]
[]
[null,"Total Other Assets",null,null,null,{"$f":"SUM(F275:F294)","v":0}]
[]
[]
[null,"TOTAL ASSETS (Schedules VI and VIA)",null,null,null,{"$f":"F34+F67+F96+F129+F163+F196+F230+F262+F296+'Schedule VIA'!F299","v":0}]
[]
[null,"TOTAL ASSETS (Form 1SFS Line 15)",null,null,null,{"$f":"'Form 1SFS (Consolidated)'!M91","v":0}]
[]
[null,"Check Form 1SFS",null,null,null,{"$f":"IF(F305=0,\"TRUE\",\"FALSE\")","v":"TRUE"}]
[null,null,null,null,null,{"$f":"IF(ROUND((F299-(0)),0)=0,\"TRUE\",\"FALSE\")","v":"TRUE"}]
[null,"Difference",null,null,null,{"$f":"ROUND(F301-F299,0)","v":0}]
[]
[]
[null,"EFFECTIVE DURATION",null,null,{"$f":"Import!M10354","v":0}]
[]
[null,"EFFECTIVE CONVEXITY",null,null,{"$f":"Import!M10355","v":0}]
[]
[]
[]
["Cash","Sovereign Bonds","RMBS - Agency","Public Equities","Private Equities","Investment Income Due and Accrued","Energy","Holding Entity","Significant Influence",null,"Insured/Guaranteed Mortgages",null,"Afghanistan"]
["Certificates of Deposit","Municipals","RMBS - Non-agency","Public Preferred Stock","Investment Funds","Accounts and Premiums Receivable","Materials","Operating Entity","Control",null,"Other Commercial and Farm Mortgages",null,"Aland Islands"]
["Money Market Funds","Supranationals (multilateral development banks and international organizations)","CMBS","Exchange Traded Funds","Hedge Funds","Reinsurance Balance Receivable","Industrial","Branch","Select",null,"Other Residential Mortgages",null,"Albania"]
["Other","Corporate bonds","CLOs","Other","Private Credit Funds","Funds Held by Ceding Reinsurers","Consumer Discretionary","Select",null,null,"Mortgages Not In Good Standing",null,"Algeria"]
["Select","Private Placements","CDOs","Select","Catastrophe Bonds","SAC - long-term business - variable annuities","Consumer Staples",null,null,null,"Collateral Loans",null,"American Samoa"]
[null,"Mutual Funds","Auto Loan ABS",null,"Other Insurance-Linked Securities","SAC - long-term business - others","Healthcare",null,null,null,"Middle Market Loans",null,"Andorra"]
[null,"Other - Secured Bonds","Student Loan ABS",null,"Infrastructure Debt","SAC - general business","Financial",null,null,null,"Other Direct Private Lending",null,"Angola"]
[null,"Other - Unsecured Bonds","Credit Card Receivable ABS",null,"Equity Investments in Infrastructure","Deposit assets","Select",null,null,null,"Policy Loans",null,"Anguilla"]
[null,"Other","Other ABS",null,"Investment in Affiliates","Other Sundry Assets",null,null,null,null,"Other",null,"Antigua and Barbuda"]
[null,"Select","Select",null,"Advances to Affiliates","Letter of Credit, Guarantees and Other Instruments",null,null,null,null,"Select",null,"Argentina"]
[null,null,null,null,"Equity Release / Reverse Mortgages","Other",null,null,null,null,null,null,"Armenia"]
[null,null,null,null,"Other","Select",null,null,null,null,null,null,"Aruba"]
[null,null,null,null,"Select",null,null,null,null,null,null,null,"Australia"]
[null,null,null,null,null,null,null,null,null,null,null,null,"Austria"]
[null,null,null,null,null,null,null,null,null,null,null,null,"Azerbaijan"]
[null,null,null,null,null,null,null,null,null,null,null,null,"Bahamas"]
["Listed options","Equity","Hedging","Long / Receive Fixed / Sell Protection","Private Equities","Investment Income Due and Accrued","Real Estate - Owner Occupied",null,null,null,null,null,"Bahrain"]
["Futures","Debt","Speculative","Short / Receive Floating / Buy Protection","Investment Funds","Accounts and Premiums Receivable","Real Estate - Investment",null,null,null,null,null,"Bangladesh"]
["Forwards","Interest Rate","Select","Select","Hedge Funds","Reinsurance Balance Receivable","Select",null,null,null,"Insured/Guaranteed Mortgages",null,"Barbados"]
["Swaps","Inflation",null,null,"Private Credit Funds","SAC - long-term business - variable annuities",null,null,null,null,"Other Commercial and Farm Mortgages",null,"Belarus"]
["Swaptions","Credit",null,null,"Catastrophe Bonds","SAC - long-term business - others",null,null,null,null,"Other Residential Mortgages",null,"Belgium"]
["OTC options","Currencies","Yes",null,"Other Insurance-Linked Securities","SAC - general business","Owner-occupied",null,null,null,"Mortgages Not In Good Standing",null,"Belize"]
["Other","Commodities","No",null,"Infrastructure Debt","Deposit assets","Investment",null,null,null,"Collateral Loans",null,"Benin"]
["Select","Other","Select",null,"Equity Investments in Infrastructure","Other Sundry Assets","Select",null,null,null,"Middle Market Loans",null,"Bermuda"]
[null,"Select",null,null,"Equity Release / Reverse Mortgages","Letter of Credit, Guarantees and Other Instruments",null,null,null,null,"Other Direct Private Lending",null,"Bhutan"]
[null,null,null,null,"Other","Other",null,null,null,null,"Policy Loans",null,"Bolivia (Plurinational State of)"]
[null,null,null,null,"Select","Select",null,null,null,null,"Other",null,"Bonaire, Sint Eustatius and Saba"]
[null,null,null,null,null,null,null,null,null,null,"Select",null,"Bosnia and Herzegovina"]
[null,null,null,null,null,null,null,null,null,null,null,null,"Botswana"]
["BSCR Rating",null,null,null,null,null,null,null,null,null,null,null,"Brazil"]
["Select",null,null,null,null,null,null,null,null,null,null,null,"British Virgin Islands"]
["BSCR Rating 0",null,null,null,null,null,null,null,null,null,null,null,"Brunei Darussalam"]
["BSCR Rating 1",null,null,null,null,null,null,null,null,null,null,null,"Bulgaria"]
["BSCR Rating 2",null,null,null,null,null,null,null,null,null,null,null,"Burkina Faso"]
["BSCR Rating 3",null,null,null,null,null,null,null,null,null,null,null,"Burundi"]
["BSCR Rating 4",null,null,null,null,null,null,null,null,null,null,null,"Cabo Verde (Cape Verde)"]
["BSCR Rating 5",null,null,null,null,null,null,null,null,null,null,null,"Cambodia"]
["BSCR Rating 6",null,null,null,null,null,null,null,null,null,null,null,"Cameroon"]
["BSCR Rating 7",null,null,null,null,null,null,null,null,null,null,null,"Canada"]
["BSCR Rating 8",null,null,null,null,null,null,null,null,null,null,null,"Cayman Islands"]
[null,null,null,null,null,null,null,null,null,null,null,null,"Central African Republic"]
[null,null,null,null,null,null,null,null,null,null,null,null,"Chad"]
[null,null,null,null,null,null,null,null,null,null,null,null,"Chile"]
[null,null,null,null,null,null,null,null,null,null,null,null,"China"]
[null,null,null,null,null,null,null,null,null,null,null,null,"China, Hong Kong SAR"]
[null,null,null,null,null,null,null,null,null,null,null,null,"China, Macao SAR "]
[null,null,null,null,null,null,null,null,null,null,null,null,"Colombia"]
[null,null,null,null,null,null,null,null,null,null,null,null,"Comoros"]
[null,null,null,null,null,null,null,null,null,null,null,null,"Congo"]
[null,null,null,null,null,null,null,null,null,null,null,null,"Cook Islands"]
[null,null,null,null,null,null,null,null,null,null,null,null,"Costa Rica"]
[null,null,null,null,null,null,null,null,null,null,null,null,"Cote d' Ivoire"]
[null,null,null,null,null,null,null,null,null,null,null,null,"Croatia"]
[null,null,null,null,null,null,null,null,null,null,null,null,"Cuba"]
[null,null,null,null,null,null,null,null,null,null,null,null,"Curacao"]
[null,null,null,null,null,null,null,null,null,null,null,null,"Cyprus"]
[null,null,null,null,null,null,null,null,null,null,null,null,"Czech Republic"]
[null,null,null,null,null,null,null,null,null,null,null,null,"Democratic People's Republic of Korea (North Korea)"]
[null,null,null,null,null,null,null,null,null,null,null,null,"Democratic Republic of the Congo"]
[null,null,null,null,null,null,null,null,null,null,null,null,"Denmark"]
[null,null,null,null,null,null,null,null,null,null,null,null,"Djibouti"]
[null,null,null,null,null,null,null,null,null,null,null,null,"Dominica"]
[null,null,null,null,null,null,null,null,null,null,null,null,"Dominican Republic"]
[null,null,null,null,null,null,null,null,null,null,null,null,"Ecuador"]
[null,null,null,null,null,null,null,null,null,null,null,null,"Egypt"]
[null,null,null,null,null,null,null,null,null,null,null,null,"El Salvador"]
[null,null,null,null,null,null,null,null,null,null,null,null,"Equatorial Guinea"]
[null,null,null,null,null,null,null,null,null,null,null,null,"Eritrea"]
[null,null,null,null,null,null,null,null,null,null,null,null,"Estonia"]
[null,null,null,null,null,null,null,null,null,null,null,null,"Eswatini (Kingdom of Swaziland)"]
[null,null,null,null,null,null,null,null,null,null,null,null,"Ethiopia"]
[null,null,null,null,null,null,null,null,null,null,null,null,"Falkland Islands"]
[null,null,null,null,null,null,null,null,null,null,null,null,"Faroe Islands"]
[null,null,null,null,null,null,null,null,null,null,null,null,"Fiji"]
[null,null,null,null,null,null,null,null,null,null,null,null,"Finland"]
[null,null,null,null,null,null,null,null,null,null,null,null,"France"]
[null,null,null,null,null,null,null,null,null,null,null,null,"French Guiana"]
[null,null,null,null,null,null,null,null,null,null,null,null,"French Polynesia"]
[null,null,null,null,null,null,null,null,null,null,null,null,"Gabon"]
[null,null,null,null,null,null,null,null,null,null,null,null,"Gambia (Republic of The)"]
[null,null,null,null,null,null,null,null,null,null,null,null,"Georgia"]
[null,null,null,null,null,null,null,null,null,null,null,null,"Germany"]
[null,null,null,null,null,null,null,null,null,null,null,null,"Ghana"]
[null,null,null,null,null,null,null,null,null,null,null,null,"Gibraltar"]
[null,null,null,null,null,null,null,null,null,null,null,null,"Greece"]
[null,null,null,null,null,null,null,null,null,null,null,null,"Greenland"]
[null,null,null,null,null,null,null,null,null,null,null,null,"Grenada"]
[null,null,null,null,null,null,null,null,null,null,null,null,"Guadeloupe"]
[null,null,null,null,null,null,null,null,null,null,null,null,"Guam"]
[null,null,null,null,null,null,null,null,null,null,null,null,"Guatemala"]
[null,null,null,null,null,null,null,null,null,null,null,null,"Guernsey"]
[null,null,null,null,null,null,null,null,null,null,null,null,"Guinea"]
[null,null,null,null,null,null,null,null,null,null,null,null,"Guinea-Bissau"]
[null,null,null,null,null,null,null,null,null,null,null,null,"Guyana"]
[null,null,null,null,null,null,null,null,null,null,null,null,"Haiti"]
[null,null,null,null,null,null,null,null,null,null,null,null,"Holy See"]
[null,null,null,null,null,null,null,null,null,null,null,null,"Honduras"]
[null,null,null,null,null,null,null,null,null,null,null,null,"Hungary"]
[null,null,null,null,null,null,null,null,null,null,null,null,"Iceland"]
[null,null,null,null,null,null,null,null,null,null,null,null,"India"]
[null,null,null,null,null,null,null,null,null,null,null,null,"Indonesia"]
[null,null,null,null,null,null,null,null,null,null,null,null,"Iran (Islamic Republic of)"]
[null,null,null,null,null,null,null,null,null,null,null,null,"Iraq"]
[null,null,null,null,null,null,null,null,null,null,null,null,"Ireland"]
[null,null,null,null,null,null,null,null,null,null,null,null,"Isle of Man"]
[null,null,null,null,null,null,null,null,null,null,null,null,"Israel"]
[null,null,null,null,null,null,null,null,null,null,null,null,"Italy"]
[null,null,null,null,null,null,null,null,null,null,null,null,"Jamaica"]
[null,null,null,null,null,null,null,null,null,null,null,null,"Japan"]
[null,null,null,null,null,null,null,null,null,null,null,null,"Jersey"]
[null,null,null,null,null,null,null,null,null,null,null,null,"Jordan"]
[null,null,null,null,null,null,null,null,null,null,null,null,"Kazakhstan"]
[null,null,null,null,null,null,null,null,null,null,null,null,"Kenya"]
[null,null,null,null,null,null,null,null,null,null,null,null,"Kiribati"]
[null,null,null,null,null,null,null,null,null,null,null,null,"Kuwait"]
[null,null,null,null,null,null,null,null,null,null,null,null,"Kyrgyzstan"]
[null,null,null,null,null,null,null,null,null,null,null,null,"Lao People's Democratic Republic"]
[null,null,null,null,null,null,null,null,null,null,null,null,"Latvia"]
[null,null,null,null,null,null,null,null,null,null,null,null,"Lebanon"]
[null,null,null,null,null,null,null,null,null,null,null,null,"Lesotho"]
[null,null,null,null,null,null,null,null,null,null,null,null,"Liberia"]
[null,null,null,null,null,null,null,null,null,null,null,null,"Libya"]
[null,null,null,null,null,null,null,null,null,null,null,null,"Liechtenstein"]
[null,null,null,null,null,null,null,null,null,null,null,null,"Lithuania"]
[null,null,null,null,null,null,null,null,null,null,null,null,"Luxembourg"]
[null,null,null,null,null,null,null,null,null,null,null,null,"Madagascar"]
[null,null,null,null,null,null,null,null,null,null,null,null,"Malawi"]
[null,null,null,null,null,null,null,null,null,null,null,null,"Malaysia"]
[null,null,null,null,null,null,null,null,null,null,null,null,"Maldives"]
[null,null,null,null,null,null,null,null,null,null,null,null,"Mali"]
[null,null,null,null,null,null,null,null,null,null,null,null,"Malta"]
[null,null,null,null,null,null,null,null,null,null,null,null,"Marshall Islands"]
[null,null,null,null,null,null,null,null,null,null,null,null,"Martinique"]
[null,null,null,null,null,null,null,null,null,null,null,null,"Mauritania"]
[null,null,null,null,null,null,null,null,null,null,null,null,"Mauritius"]
[null,null,null,null,null,null,null,null,null,null,null,null,"Mayotte"]
[null,null,null,null,null,null,null,null,null,null,null,null,"Mexico"]
[null,null,null,null,null,null,null,null,null,null,null,null,"Micronesia (Federated States of)"]
[null,null,null,null,null,null,null,null,null,null,null,null,"Monaco"]
[null,null,null,null,null,null,null,null,null,null,null,null,"Mongolia"]
[null,null,null,null,null,null,null,null,null,null,null,null,"Montenegro"]
[null,null,null,null,null,null,null,null,null,null,null,null,"Montserrat"]
[null,null,null,null,null,null,null,null,null,null,null,null,"Morocco"]
[null,null,null,null,null,null,null,null,null,null,null,null,"Mozambique"]
[null,null,null,null,null,null,null,null,null,null,null,null,"Myanmar"]
[null,null,null,null,null,null,null,null,null,null,null,null,"Namibia"]
[null,null,null,null,null,null,null,null,null,null,null,null,"Nauru"]
[null,null,null,null,null,null,null,null,null,null,null,null,"Nepal"]
[null,null,null,null,null,null,null,null,null,null,null,null,"Netherlands"]
[null,null,null,null,null,null,null,null,null,null,null,null,"New Caledonia"]
[null,null,null,null,null,null,null,null,null,null,null,null,"New Zealand"]
[null,null,null,null,null,null,null,null,null,null,null,null,"Nicaragua"]
[null,null,null,null,null,null,null,null,null,null,null,null,"Niger"]
[null,null,null,null,null,null,null,null,null,null,null,null,"Nigeria"]
[null,null,null,null,null,null,null,null,null,null,null,null,"Niue"]
[null,null,null,null,null,null,null,null,null,null,null,null,"Norfolk Island"]
[null,null,null,null,null,null,null,null,null,null,null,null,"North Macedonia"]
[null,null,null,null,null,null,null,null,null,null,null,null,"Northern Mariana Islands"]
[null,null,null,null,null,null,null,null,null,null,null,null,"Norway"]
[null,null,null,null,null,null,null,null,null,null,null,null,"Oman"]
[null,null,null,null,null,null,null,null,null,null,null,null,"Pakistan"]
[null,null,null,null,null,null,null,null,null,null,null,null,"Palau"]
[null,null,null,null,null,null,null,null,null,null,null,null,"Panama"]
[null,null,null,null,null,null,null,null,null,null,null,null,"Papua New Guinea"]
[null,null,null,null,null,null,null,null,null,null,null,null,"Paraguay"]
[null,null,null,null,null,null,null,null,null,null,null,null,"Peru"]
[null,null,null,null,null,null,null,null,null,null,null,null,"Philippines"]
[null,null,null,null,null,null,null,null,null,null,null,null,"Pitcairn"]
[null,null,null,null,null,null,null,null,null,null,null,null,"Poland"]
[null,null,null,null,null,null,null,null,null,null,null,null,"Portugal"]
[null,null,null,null,null,null,null,null,null,null,null,null,"Puerto Rico"]
[null,null,null,null,null,null,null,null,null,null,null,null,"Qatar"]
[null,null,null,null,null,null,null,null,null,null,null,null,"Republic of Korea (South Korea)"]
[null,null,null,null,null,null,null,null,null,null,null,null,"Republic of Moldova"]
[null,null,null,null,null,null,null,null,null,null,null,null,"Reunion"]
[null,null,null,null,null,null,null,null,null,null,null,null,"Romania"]
[null,null,null,null,null,null,null,null,null,null,null,null,"Russian Federation"]
[null,null,null,null,null,null,null,null,null,null,null,null,"Rwanda"]
[null,null,null,null,null,null,null,null,null,null,null,null,"Saint Barthelemy (St. Barts)"]
[null,null,null,null,null,null,null,null,null,null,null,null,"Saint Helena"]
[null,null,null,null,null,null,null,null,null,null,null,null,"Saint Kitts and Nevis"]
[null,null,null,null,null,null,null,null,null,null,null,null,"Saint Lucia"]
[null,null,null,null,null,null,null,null,null,null,null,null,"Saint Martin"]
[null,null,null,null,null,null,null,null,null,null,null,null,"Saint Pierre and Miquelon"]
[null,null,null,null,null,null,null,null,null,null,null,null,"Saint Vincent and The Grenadines"]
[null,null,null,null,null,null,null,null,null,null,null,null,"Samoa"]
[null,null,null,null,null,null,null,null,null,null,null,null,"San Marino"]
[null,null,null,null,null,null,null,null,null,null,null,null,"Sao Tome and Principe"]
[null,null,null,null,null,null,null,null,null,null,null,null,"Sark"]
[null,null,null,null,null,null,null,null,null,null,null,null,"Saudi Arabia"]
[null,null,null,null,null,null,null,null,null,null,null,null,"Senegal"]
[null,null,null,null,null,null,null,null,null,null,null,null,"Serbia"]
[null,null,null,null,null,null,null,null,null,null,null,null,"Seychelles"]
[null,null,null,null,null,null,null,null,null,null,null,null,"Sierra Leone"]
[null,null,null,null,null,null,null,null,null,null,null,null,"Singapore"]
[null,null,null,null,null,null,null,null,null,null,null,null,"Sint Maarten"]
[null,null,null,null,null,null,null,null,null,null,null,null,"Slovakia"]
[null,null,null,null,null,null,null,null,null,null,null,null,"Slovenia"]
[null,null,null,null,null,null,null,null,null,null,null,null,"Solomon Islands"]
[null,null,null,null,null,null,null,null,null,null,null,null,"Somalia"]
[null,null,null,null,null,null,null,null,null,null,null,null,"South Africa"]
[null,null,null,null,null,null,null,null,null,null,null,null,"South Sudan"]
[null,null,null,null,null,null,null,null,null,null,null,null,"Spain"]
[null,null,null,null,null,null,null,null,null,null,null,null,"Sri Lanka"]
[null,null,null,null,null,null,null,null,null,null,null,null,"State of Palestine"]
[null,null,null,null,null,null,null,null,null,null,null,null,"Sudan"]
[null,null,null,null,null,null,null,null,null,null,null,null,"Suriname"]
[null,null,null,null,null,null,null,null,null,null,null,null,"Svalbard, Jan Mayen"]
[null,null,null,null,null,null,null,null,null,null,null,null,"Sweden"]
[null,null,null,null,null,null,null,null,null,null,null,null,"Switzerland"]
[null,null,null,null,null,null,null,null,null,null,null,null,"Syrian Arab Republic"]
[null,null,null,null,null,null,null,null,null,null,null,null,"Taiwan"]
[null,null,null,null,null,null,null,null,null,null,null,null,"Tajikistan"]
[null,null,null,null,null,null,null,null,null,null,null,null,"Thailand"]
[null,null,null,null,null,null,null,null,null,null,null,null,"Timor-Leste"]
[null,null,null,null,null,null,null,null,null,null,null,null,"Togo"]
[null,null,null,null,null,null,null,null,null,null,null,null,"Tokelau"]
[null,null,null,null,null,null,null,null,null,null,null,null,"Tonga"]
[null,null,null,null,null,null,null,null,null,null,null,null,"Trinidad and Tobago"]
[null,null,null,null,null,null,null,null,null,null,null,null,"Tunisia"]
[null,null,null,null,null,null,null,null,null,null,null,null,"Turkey"]
[null,null,null,null,null,null,null,null,null,null,null,null,"Turkmenistan"]
[null,null,null,null,null,null,null,null,null,null,null,null,"Turks & Caicos Islands"]
[null,null,null,null,null,null,null,null,null,null,null,null,"Tuvalu"]
[null,null,null,null,null,null,null,null,null,null,null,null,"Uganda"]
[null,null,null,null,null,null,null,null,null,null,null,null,"Ukraine"]
[null,null,null,null,null,null,null,null,null,null,null,null,"United Arab Emirates"]
[null,null,null,null,null,null,null,null,null,null,null,null,"United Kingdom of Great Britain and Northern Ireland"]
[null,null,null,null,null,null,null,null,null,null,null,null,"United Republic of Tanzania"]
[null,null,null,null,null,null,null,null,null,null,null,null,"United States of America"]
[null,null,null,null,null,null,null,null,null,null,null,null,"Uruguay"]
[null,null,null,null,null,null,null,null,null,null,null,null,"US Virgin Islands"]
[null,null,null,null,null,null,null,null,null,null,null,null,"Uzbekistan"]
[null,null,null,null,null,null,null,null,null,null,null,null,"Vanuatu"]
[null,null,null,null,null,null,null,null,null,null,null,null,"Venezuela, Bolivarian Republic of "]
[null,null,null,null,null,null,null,null,null,null,null,null,"Vietnam"]
[null,null,null,null,null,null,null,null,null,null,null,null,"Wallis & Futuna Islands"]
[null,null,null,null,null,null,null,null,null,null,null,null,"Western Sahara"]
[null,null,null,null,null,null,null,null,null,null,null,null,"Yemen"]
[null,null,null,null,null,null,null,null,null,null,null,null,"Zambia"]
[null,null,null,null,null,null,null,null,null,null,null,null,"Zimbabwe"]
[null,null,null,null,null,null,null,null,null,null,null,null,"Select"]

{"sheet":"Schedule VIA","index":57,"n_rows":559,"n_cols":13,"rows_kept":559,"cut":false,"hidden":false,"merged":[[235,1,235,2],[267,1,267,2],[271,1,271,2],[134,1,134,2],[138,1,138,2],[168,1,168,2],[172,1,172,2],[201,1,201,2],[205,1,205,2],[105,1,105,2],[6,1,6,2],[39,1,39,2],[43,1,43,2],[68,1,68,2],[101,1,101,2]]}
[null,"SCHEDULE OF FUNDS HELD BY CEDING REINSURERS",null,null,null,null,null,null,{"$f":"HYPERLINK(\"#'Index'!A1\",\"Return to Index\")","v":"Return to Index"}]
[null,{"$f":"'Company Information'!$C$7","v":"Enter Company Name"}]
[null,"As at",{"$f":" TEXT('Company Information'!C3,\"d mmmm yyyy\")","v":"31 December 2022"}]
[null,"expressed in ['000s]",{"$f":"'Form 1SFS (Consolidated)'!C5","v":"United States Dollars"}]
[]
[]
[null,"(A) CASH AND CASH EQUIVALENTS"]
[]
[null,null,"Enter # of Asset Types",{"$f":"Import!M10358","v":0}]
[]
[null,null,null,null,{"$f":"YEAR($C$3)","v":2022},{"$f":"YEAR($C$3)","v":2022}]
[null,"Asset Type","Jurisdiction","BSCR Rating","Face Value","Fair Value"]
[1,{"$f":"Import!M10359","v":"Select"},{"$f":"Import!M10379","v":"Select"},{"$f":"Import!M10399","v":"Select"},{"$f":"Import!M10419","v":0},{"$f":"Import!M10439","v":0}]
[2,{"$f":"Import!M10360","v":"Select"},{"$f":"Import!M10380","v":"Select"},{"$f":"Import!M10400","v":"Select"},{"$f":"Import!M10420","v":0},{"$f":"Import!M10440","v":0}]
[3,{"$f":"Import!M10361","v":"Select"},{"$f":"Import!M10381","v":"Select"},{"$f":"Import!M10401","v":"Select"},{"$f":"Import!M10421","v":0},{"$f":"Import!M10441","v":0}]
[4,{"$f":"Import!M10362","v":"Select"},{"$f":"Import!M10382","v":"Select"},{"$f":"Import!M10402","v":"Select"},{"$f":"Import!M10422","v":0},{"$f":"Import!M10442","v":0}]
[5,{"$f":"Import!M10363","v":"Select"},{"$f":"Import!M10383","v":"Select"},{"$f":"Import!M10403","v":"Select"},{"$f":"Import!M10423","v":0},{"$f":"Import!M10443","v":0}]
[6,{"$f":"Import!M10364","v":"Select"},{"$f":"Import!M10384","v":"Select"},{"$f":"Import!M10404","v":"Select"},{"$f":"Import!M10424","v":0},{"$f":"Import!M10444","v":0}]
[7,{"$f":"Import!M10365","v":"Select"},{"$f":"Import!M10385","v":"Select"},{"$f":"Import!M10405","v":"Select"},{"$f":"Import!M10425","v":0},{"$f":"Import!M10445","v":0}]
[8,{"$f":"Import!M10366","v":"Select"},{"$f":"Import!M10386","v":"Select"},{"$f":"Import!M10406","v":"Select"},{"$f":"Import!M10426","v":0},{"$f":"Import!M10446","v":0}]
[9,{"$f":"Import!M10367","v":"Select"},{"$f":"Import!M10387","v":"Select"},{"$f":"Import!M10407","v":"Select"},{"$f":"Import!M10427","v":0},{"$f":"Import!M10447","v":0}]
[10,{"$f":"Import!M10368","v":"Select"},{"$f":"Import!M10388","v":"Select"},{"$f":"Import!M10408","v":"Select"},{"$f":"Import!M10428","v":0},{"$f":"Import!M10448","v":0}]
[11,{"$f":"Import!M10369","v":"Select"},{"$f":"Import!M10389","v":"Select"},{"$f":"Import!M10409","v":"Select"},{"$f":"Import!M10429","v":0},{"$f":"Import!M10449","v":0}]
[12,{"$f":"Import!M10370","v":"Select"},{"$f":"Import!M10390","v":"Select"},{"$f":"Import!M10410","v":"Select"},{"$f":"Import!M10430","v":0},{"$f":"Import!M10450","v":0}]
[13,{"$f":"Import!M10371","v":"Select"},{"$f":"Import!M10391","v":"Select"},{"$f":"Import!M10411","v":"Select"},{"$f":"Import!M10431","v":0},{"$f":"Import!M10451","v":0}]
[14,{"$f":"Import!M10372","v":"Select"},{"$f":"Import!M10392","v":"Select"},{"$f":"Import!M10412","v":"Select"},{"$f":"Import!M10432","v":0},{"$f":"Import!M10452","v":0}]
[15,{"$f":"Import!M10373","v":"Select"},{"$f":"Import!M10393","v":"Select"},{"$f":"Import!M10413","v":"Select"},{"$f":"Import!M10433","v":0},{"$f":"Import!M10453","v":0}]
[16,{"$f":"Import!M10374","v":"Select"},{"$f":"Import!M10394","v":"Select"},{"$f":"Import!M10414","v":"Select"},{"$f":"Import!M10434","v":0},{"$f":"Import!M10454","v":0}]
[17,{"$f":"Import!M10375","v":"Select"},{"$f":"Import!M10395","v":"Select"},{"$f":"Import!M10415","v":"Select"},{"$f":"Import!M10435","v":0},{"$f":"Import!M10455","v":0}]
[18,{"$f":"Import!M10376","v":"Select"},{"$f":"Import!M10396","v":"Select"},{"$f":"Import!M10416","v":"Select"},{"$f":"Import!M10436","v":0},{"$f":"Import!M10456","v":0}]
[19,{"$f":"Import!M10377","v":"Select"},{"$f":"Import!M10397","v":"Select"},{"$f":"Import!M10417","v":"Select"},{"$f":"Import!M10437","v":0},{"$f":"Import!M10457","v":0}]
[20,{"$f":"Import!M10378","v":"Select"},{"$f":"Import!M10398","v":"Select"},{"$f":"Import!M10418","v":"Select"},{"$f":"Import!M10438","v":0},{"$f":"Import!M10458","v":0}]
[]
[null,"Total Cash & Cash Equivalents",null,null,{"$f":"SUM(E13:E32)","v":0},{"$f":"SUM(F13:F32)","v":0}]
[]
[]
[]
[]
[]
[null,"(B) BONDS AND DEBENTURES"]
[]
[null,null,"Enter # of Asset Types",{"$f":"Import!M10459","v":0}]
[]
[null,null,null,null,{"$f":"YEAR($C$3)","v":2022},2022]
[null,"Asset Type","Jurisdiction","BSCR Rating","Face Value","Fair Value","Average YTM","Effective Duration","Effective Convexity"]
[1,{"$f":"Import!M10460","v":"Select"},{"$f":"Import!M10480","v":"Select"},{"$f":"Import!M10500","v":"Select"},{"$f":"Import!M10520","v":0},{"$f":"Import!M10540","v":0},{"$f":"Import!M10560","v":0},{"$f":"Import!M10580","v":0},{"$f":"Import!M10600","v":0}]
[2,{"$f":"Import!M10461","v":"Select"},{"$f":"Import!M10481","v":"Select"},{"$f":"Import!M10501","v":"Select"},{"$f":"Import!M10521","v":0},{"$f":"Import!M10541","v":0},{"$f":"Import!M10561","v":0},{"$f":"Import!M10581","v":0},{"$f":"Import!M10601","v":0}]
[3,{"$f":"Import!M10462","v":"Select"},{"$f":"Import!M10482","v":"Select"},{"$f":"Import!M10502","v":"Select"},{"$f":"Import!M10522","v":0},{"$f":"Import!M10542","v":0},{"$f":"Import!M10562","v":0},{"$f":"Import!M10582","v":0},{"$f":"Import!M10602","v":0}]
[4,{"$f":"Import!M10463","v":"Select"},{"$f":"Import!M10483","v":"Select"},{"$f":"Import!M10503","v":"Select"},{"$f":"Import!M10523","v":0},{"$f":"Import!M10543","v":0},{"$f":"Import!M10563","v":0},{"$f":"Import!M10583","v":0},{"$f":"Import!M10603","v":0}]
[5,{"$f":"Import!M10464","v":"Select"},{"$f":"Import!M10484","v":"Select"},{"$f":"Import!M10504","v":"Select"},{"$f":"Import!M10524","v":0},{"$f":"Import!M10544","v":0},{"$f":"Import!M10564","v":0},{"$f":"Import!M10584","v":0},{"$f":"Import!M10604","v":0}]
[6,{"$f":"Import!M10465","v":"Select"},{"$f":"Import!M10485","v":"Select"},{"$f":"Import!M10505","v":"Select"},{"$f":"Import!M10525","v":0},{"$f":"Import!M10545","v":0},{"$f":"Import!M10565","v":0},{"$f":"Import!M10585","v":0},{"$f":"Import!M10605","v":0}]
[7,{"$f":"Import!M10466","v":"Select"},{"$f":"Import!M10486","v":"Select"},{"$f":"Import!M10506","v":"Select"},{"$f":"Import!M10526","v":0},{"$f":"Import!M10546","v":0},{"$f":"Import!M10566","v":0},{"$f":"Import!M10586","v":0},{"$f":"Import!M10606","v":0}]
[8,{"$f":"Import!M10467","v":"Select"},{"$f":"Import!M10487","v":"Select"},{"$f":"Import!M10507","v":"Select"},{"$f":"Import!M10527","v":0},{"$f":"Import!M10547","v":0},{"$f":"Import!M10567","v":0},{"$f":"Import!M10587","v":0},{"$f":"Import!M10607","v":0}]
[9,{"$f":"Import!M10468","v":"Select"},{"$f":"Import!M10488","v":"Select"},{"$f":"Import!M10508","v":"Select"},{"$f":"Import!M10528","v":0},{"$f":"Import!M10548","v":0},{"$f":"Import!M10568","v":0},{"$f":"Import!M10588","v":0},{"$f":"Import!M10608","v":0}]
[10,{"$f":"Import!M10469","v":"Select"},{"$f":"Import!M10489","v":"Select"},{"$f":"Import!M10509","v":"Select"},{"$f":"Import!M10529","v":0},{"$f":"Import!M10549","v":0},{"$f":"Import!M10569","v":0},{"$f":"Import!M10589","v":0},{"$f":"Import!M10609","v":0}]
[11,{"$f":"Import!M10470","v":"Select"},{"$f":"Import!M10490","v":"Select"},{"$f":"Import!M10510","v":"Select"},{"$f":"Import!M10530","v":0},{"$f":"Import!M10550","v":0},{"$f":"Import!M10570","v":0},{"$f":"Import!M10590","v":0},{"$f":"Import!M10610","v":0}]
[12,{"$f":"Import!M10471","v":"Select"},{"$f":"Import!M10491","v":"Select"},{"$f":"Import!M10511","v":"Select"},{"$f":"Import!M10531","v":0},{"$f":"Import!M10551","v":0},{"$f":"Import!M10571","v":0},{"$f":"Import!M10591","v":0},{"$f":"Import!M10611","v":0}]
[13,{"$f":"Import!M10472","v":"Select"},{"$f":"Import!M10492","v":"Select"},{"$f":"Import!M10512","v":"Select"},{"$f":"Import!M10532","v":0},{"$f":"Import!M10552","v":0},{"$f":"Import!M10572","v":0},{"$f":"Import!M10592","v":0},{"$f":"Import!M10612","v":0}]
[14,{"$f":"Import!M10473","v":"Select"},{"$f":"Import!M10493","v":"Select"},{"$f":"Import!M10513","v":"Select"},{"$f":"Import!M10533","v":0},{"$f":"Import!M10553","v":0},{"$f":"Import!M10573","v":0},{"$f":"Import!M10593","v":0},{"$f":"Import!M10613","v":0}]
[15,{"$f":"Import!M10474","v":"Select"},{"$f":"Import!M10494","v":"Select"},{"$f":"Import!M10514","v":"Select"},{"$f":"Import!M10534","v":0},{"$f":"Import!M10554","v":0},{"$f":"Import!M10574","v":0},{"$f":"Import!M10594","v":0},{"$f":"Import!M10614","v":0}]
[16,{"$f":"Import!M10475","v":"Select"},{"$f":"Import!M10495","v":"Select"},{"$f":"Import!M10515","v":"Select"},{"$f":"Import!M10535","v":0},{"$f":"Import!M10555","v":0},{"$f":"Import!M10575","v":0},{"$f":"Import!M10595","v":0},{"$f":"Import!M10615","v":0}]
[17,{"$f":"Import!M10476","v":"Select"},{"$f":"Import!M10496","v":"Select"},{"$f":"Import!M10516","v":"Select"},{"$f":"Import!M10536","v":0},{"$f":"Import!M10556","v":0},{"$f":"Import!M10576","v":0},{"$f":"Import!M10596","v":0},{"$f":"Import!M10616","v":0}]
[18,{"$f":"Import!M10477","v":"Select"},{"$f":"Import!M10497","v":"Select"},{"$f":"Import!M10517","v":"Select"},{"$f":"Import!M10537","v":0},{"$f":"Import!M10557","v":0},{"$f":"Import!M10577","v":0},{"$f":"Import!M10597","v":0},{"$f":"Import!M10617","v":0}]
[19,{"$f":"Import!M10478","v":"Select"},{"$f":"Import!M10498","v":"Select"},{"$f":"Import!M10518","v":"Select"},{"$f":"Import!M10538","v":0},{"$f":"Import!M10558","v":0},{"$f":"Import!M10578","v":0},{"$f":"Import!M10598","v":0},{"$f":"Import!M10618","v":0}]
[20,{"$f":"Import!M10479","v":"Select"},{"$f":"Import!M10499","v":"Select"},{"$f":"Import!M10519","v":"Select"},{"$f":"Import!M10539","v":0},{"$f":"Import!M10559","v":0},{"$f":"Import!M10579","v":0},{"$f":"Import!M10599","v":0},{"$f":"Import!M10619","v":0}]
[]
[null,"Total Bonds & Debentures",null,null,{"$f":"SUM(E46:E65)","v":0},{"$f":"SUM(F46:F65)","v":0},0,0,0]
[]
[null,"(C) SECURITIES/ASSET-BASED SECURITIES"]
[]
[null,null,"Enter # of Asset Types",{"$f":"Import!M10620","v":0}]
[]
[null,null,null,null,{"$f":"YEAR($C$3)","v":2022},2022]
[null,"Asset Type","Jurisdiction","BSCR Rating","Face Value","Fair Value","Average YTM","Effective Duration","Effective Convexity"]
[1,{"$f":"Import!M10621","v":"Select"},{"$f":"Import!M10641","v":"Select"},{"$f":"Import!M10661","v":"Select"},{"$f":"Import!M10681","v":0},{"$f":"Import!M10701","v":0},{"$f":"Import!M10721","v":0},{"$f":"Import!M10741","v":0},{"$f":"Import!M10761","v":0}]
[2,{"$f":"Import!M10622","v":"Select"},{"$f":"Import!M10642","v":"Select"},{"$f":"Import!M10662","v":"Select"},{"$f":"Import!M10682","v":0},{"$f":"Import!M10702","v":0},{"$f":"Import!M10722","v":0},{"$f":"Import!M10742","v":0},{"$f":"Import!M10762","v":0}]
[3,{"$f":"Import!M10623","v":"Select"},{"$f":"Import!M10643","v":"Select"},{"$f":"Import!M10663","v":"Select"},{"$f":"Import!M10683","v":0},{"$f":"Import!M10703","v":0},{"$f":"Import!M10723","v":0},{"$f":"Import!M10743","v":0},{"$f":"Import!M10763","v":0}]
[4,{"$f":"Import!M10624","v":"Select"},{"$f":"Import!M10644","v":"Select"},{"$f":"Import!M10664","v":"Select"},{"$f":"Import!M10684","v":0},{"$f":"Import!M10704","v":0},{"$f":"Import!M10724","v":0},{"$f":"Import!M10744","v":0},{"$f":"Import!M10764","v":0}]
[5,{"$f":"Import!M10625","v":"Select"},{"$f":"Import!M10645","v":"Select"},{"$f":"Import!M10665","v":"Select"},{"$f":"Import!M10685","v":0},{"$f":"Import!M10705","v":0},{"$f":"Import!M10725","v":0},{"$f":"Import!M10745","v":0},{"$f":"Import!M10765","v":0}]
[6,{"$f":"Import!M10626","v":"Select"},{"$f":"Import!M10646","v":"Select"},{"$f":"Import!M10666","v":"Select"},{"$f":"Import!M10686","v":0},{"$f":"Import!M10706","v":0},{"$f":"Import!M10726","v":0},{"$f":"Import!M10746","v":0},{"$f":"Import!M10766","v":0}]
[7,{"$f":"Import!M10627","v":"Select"},{"$f":"Import!M10647","v":"Select"},{"$f":"Import!M10667","v":"Select"},{"$f":"Import!M10687","v":0},{"$f":"Import!M10707","v":0},{"$f":"Import!M10727","v":0},{"$f":"Import!M10747","v":0},{"$f":"Import!M10767","v":0}]
[8,{"$f":"Import!M10628","v":"Select"},{"$f":"Import!M10648","v":"Select"},{"$f":"Import!M10668","v":"Select"},{"$f":"Import!M10688","v":0},{"$f":"Import!M10708","v":0},{"$f":"Import!M10728","v":0},{"$f":"Import!M10748","v":0},{"$f":"Import!M10768","v":0}]
[9,{"$f":"Import!M10629","v":"Select"},{"$f":"Import!M10649","v":"Select"},{"$f":"Import!M10669","v":"Select"},{"$f":"Import!M10689","v":0},{"$f":"Import!M10709","v":0},{"$f":"Import!M10729","v":0},{"$f":"Import!M10749","v":0},{"$f":"Import!M10769","v":0}]
[10,{"$f":"Import!M10630","v":"Select"},{"$f":"Import!M10650","v":"Select"},{"$f":"Import!M10670","v":"Select"},{"$f":"Import!M10690","v":0},{"$f":"Import!M10710","v":0},{"$f":"Import!M10730","v":0},{"$f":"Import!M10750","v":0},{"$f":"Import!M10770","v":0}]
[11,{"$f":"Import!M10631","v":"Select"},{"$f":"Import!M10651","v":"Select"},{"$f":"Import!M10671","v":"Select"},{"$f":"Import!M10691","v":0},{"$f":"Import!M10711","v":0},{"$f":"Import!M10731","v":0},{"$f":"Import!M10751","v":0},{"$f":"Import!M10771","v":0}]
[12,{"$f":"Import!M10632","v":"Select"},{"$f":"Import!M10652","v":"Select"},{"$f":"Import!M10672","v":"Select"},{"$f":"Import!M10692","v":0},{"$f":"Import!M10712","v":0},{"$f":"Import!M10732","v":0},{"$f":"Import!M10752","v":0},{"$f":"Import!M10772","v":0}]
[13,{"$f":"Import!M10633","v":"Select"},{"$f":"Import!M10653","v":"Select"},{"$f":"Import!M10673","v":"Select"},{"$f":"Import!M10693","v":0},{"$f":"Import!M10713","v":0},{"$f":"Import!M10733","v":0},{"$f":"Import!M10753","v":0},{"$f":"Import!M10773","v":0}]
[14,{"$f":"Import!M10634","v":"Select"},{"$f":"Import!M10654","v":"Select"},{"$f":"Import!M10674","v":"Select"},{"$f":"Import!M10694","v":0},{"$f":"Import!M10714","v":0},{"$f":"Import!M10734","v":0},{"$f":"Import!M10754","v":0},{"$f":"Import!M10774","v":0}]
[15,{"$f":"Import!M10635","v":"Select"},{"$f":"Import!M10655","v":"Select"},{"$f":"Import!M10675","v":"Select"},{"$f":"Import!M10695","v":0},{"$f":"Import!M10715","v":0},{"$f":"Import!M10735","v":0},{"$f":"Import!M10755","v":0},{"$f":"Import!M10775","v":0}]
[16,{"$f":"Import!M10636","v":"Select"},{"$f":"Import!M10656","v":"Select"},{"$f":"Import!M10676","v":"Select"},{"$f":"Import!M10696","v":0},{"$f":"Import!M10716","v":0},{"$f":"Import!M10736","v":0},{"$f":"Import!M10756","v":0},{"$f":"Import!M10776","v":0}]
[17,{"$f":"Import!M10637","v":"Select"},{"$f":"Import!M10657","v":"Select"},{"$f":"Import!M10677","v":"Select"},{"$f":"Import!M10697","v":0},{"$f":"Import!M10717","v":0},{"$f":"Import!M10737","v":0},{"$f":"Import!M10757","v":0},{"$f":"Import!M10777","v":0}]
[18,{"$f":"Import!M10638","v":"Select"},{"$f":"Import!M10658","v":"Select"},{"$f":"Import!M10678","v":"Select"},{"$f":"Import!M10698","v":0},{"$f":"Import!M10718","v":0},{"$f":"Import!M10738","v":0},{"$f":"Import!M10758","v":0},{"$f":"Import!M10778","v":0}]
[19,{"$f":"Import!M10639","v":"Select"},{"$f":"Import!M10659","v":"Select"},{"$f":"Import!M10679","v":"Select"},{"$f":"Import!M10699","v":0},{"$f":"Import!M10719","v":0},{"$f":"Import!M10739","v":0},{"$f":"Import!M10759","v":0},{"$f":"Import!M10779","v":0}]
[20,{"$f":"Import!M10640","v":"Select"},{"$f":"Import!M10660","v":"Select"},{"$f":"Import!M10680","v":"Select"},{"$f":"Import!M10700","v":0},{"$f":"Import!M10720","v":0},{"$f":"Import!M10740","v":0},{"$f":"Import!M10760","v":0},{"$f":"Import!M10780","v":0}]
[]
[null,"Total Securities/Asset-Backed Securities",null,null,{"$f":"SUM(E75:E94)","v":0},{"$f":"SUM(F75:F94)","v":0},0,0,0]
[]
[]
[]
[]
[]
[null,"(D) LISTED EQUITIES AND PREFERENCE SHARES"]
[]
[null,null,"Enter # of Asset Types",{"$f":"Import!M10781","v":0}]
[]
[null,null,null,null,{"$f":"YEAR($C$3)","v":2022},2022]
[null,"Asset Type","Stock Exchange","BSCR Rating","Face Value","Fair Value"]
[1,{"$f":"Import!M10782","v":"Select"},{"$f":"Import!M10802","v":0},{"$f":"Import!M10822","v":"Select"},{"$f":"Import!M10842","v":0},{"$f":"Import!M10862","v":0}]
[2,{"$f":"Import!M10783","v":"Select"},{"$f":"Import!M10803","v":0},{"$f":"Import!M10823","v":"Select"},{"$f":"Import!M10843","v":0},{"$f":"Import!M10863","v":0}]
[3,{"$f":"Import!M10784","v":"Select"},{"$f":"Import!M10804","v":0},{"$f":"Import!M10824","v":"Select"},{"$f":"Import!M10844","v":0},{"$f":"Import!M10864","v":0}]
[4,{"$f":"Import!M10785","v":"Select"},{"$f":"Import!M10805","v":0},{"$f":"Import!M10825","v":"Select"},{"$f":"Import!M10845","v":0},{"$f":"Import!M10865","v":0}]
[5,{"$f":"Import!M10786","v":"Select"},{"$f":"Import!M10806","v":0},{"$f":"Import!M10826","v":"Select"},{"$f":"Import!M10846","v":0},{"$f":"Import!M10866","v":0}]
[6,{"$f":"Import!M10787","v":"Select"},{"$f":"Import!M10807","v":0},{"$f":"Import!M10827","v":"Select"},{"$f":"Import!M10847","v":0},{"$f":"Import!M10867","v":0}]
[7,{"$f":"Import!M10788","v":"Select"},{"$f":"Import!M10808","v":0},{"$f":"Import!M10828","v":"Select"},{"$f":"Import!M10848","v":0},{"$f":"Import!M10868","v":0}]
[8,{"$f":"Import!M10789","v":"Select"},{"$f":"Import!M10809","v":0},{"$f":"Import!M10829","v":"Select"},{"$f":"Import!M10849","v":0},{"$f":"Import!M10869","v":0}]
[9,{"$f":"Import!M10790","v":"Select"},{"$f":"Import!M10810","v":0},{"$f":"Import!M10830","v":"Select"},{"$f":"Import!M10850","v":0},{"$f":"Import!M10870","v":0}]
[10,{"$f":"Import!M10791","v":"Select"},{"$f":"Import!M10811","v":0},{"$f":"Import!M10831","v":"Select"},{"$f":"Import!M10851","v":0},{"$f":"Import!M10871","v":0}]
[11,{"$f":"Import!M10792","v":"Select"},{"$f":"Import!M10812","v":0},{"$f":"Import!M10832","v":"Select"},{"$f":"Import!M10852","v":0},{"$f":"Import!M10872","v":0}]
[12,{"$f":"Import!M10793","v":"Select"},{"$f":"Import!M10813","v":0},{"$f":"Import!M10833","v":"Select"},{"$f":"Import!M10853","v":0},{"$f":"Import!M10873","v":0}]
[13,{"$f":"Import!M10794","v":"Select"},{"$f":"Import!M10814","v":0},{"$f":"Import!M10834","v":"Select"},{"$f":"Import!M10854","v":0},{"$f":"Import!M10874","v":0}]
[14,{"$f":"Import!M10795","v":"Select"},{"$f":"Import!M10815","v":0},{"$f":"Import!M10835","v":"Select"},{"$f":"Import!M10855","v":0},{"$f":"Import!M10875","v":0}]
[15,{"$f":"Import!M10796","v":"Select"},{"$f":"Import!M10816","v":0},{"$f":"Import!M10836","v":"Select"},{"$f":"Import!M10856","v":0},{"$f":"Import!M10876","v":0}]
[16,{"$f":"Import!M10797","v":"Select"},{"$f":"Import!M10817","v":0},{"$f":"Import!M10837","v":"Select"},{"$f":"Import!M10857","v":0},{"$f":"Import!M10877","v":0}]
[17,{"$f":"Import!M10798","v":"Select"},{"$f":"Import!M10818","v":0},{"$f":"Import!M10838","v":"Select"},{"$f":"Import!M10858","v":0},{"$f":"Import!M10878","v":0}]
[18,{"$f":"Import!M10799","v":"Select"},{"$f":"Import!M10819","v":0},{"$f":"Import!M10839","v":"Select"},{"$f":"Import!M10859","v":0},{"$f":"Import!M10879","v":0}]
[19,{"$f":"Import!M10800","v":"Select"},{"$f":"Import!M10820","v":0},{"$f":"Import!M10840","v":"Select"},{"$f":"Import!M10860","v":0},{"$f":"Import!M10880","v":0}]
[20,{"$f":"Import!M10801","v":"Select"},{"$f":"Import!M10821","v":0},{"$f":"Import!M10841","v":"Select"},{"$f":"Import!M10861","v":0},{"$f":"Import!M10881","v":0}]
[]
[null,"Total Listed Equities & Preference Shares",null,null,{"$f":"SUM(E108:E127)","v":0},{"$f":"SUM(F108:F127)","v":0}]
[]
[]
[]
[]
[]
[null,"(E) ALTERNATIVE INVESTMENTS"]
[]
[null,null,"Enter # of Asset Types",{"$f":"Import!M10882","v":0}]
[]
[null,null,null,null,{"$f":"YEAR($C$3)","v":2022},2022]
[]
[null,"Asset Type","Jurisdiction","BSCR Rating","Face Value","Fair Value","Average YTM","Effective Duration","Effective Convexity"]
[1,{"$f":"Import!M10883","v":"Select"},{"$f":"Import!M10903","v":"Select"},{"$f":"Import!M10923","v":"Select"},{"$f":"Import!M10943","v":0},{"$f":"Import!M10963","v":0},{"$f":"Import!M10983","v":0},{"$f":"Import!M11003","v":0},{"$f":"Import!M11023","v":0}]
[2,{"$f":"Import!M10884","v":"Select"},{"$f":"Import!M10904","v":"Select"},{"$f":"Import!M10924","v":"Select"},{"$f":"Import!M10944","v":0},{"$f":"Import!M10964","v":0},{"$f":"Import!M10984","v":0},{"$f":"Import!M11004","v":0},{"$f":"Import!M11024","v":0}]
[3,{"$f":"Import!M10885","v":"Select"},{"$f":"Import!M10905","v":"Select"},{"$f":"Import!M10925","v":"Select"},{"$f":"Import!M10945","v":0},{"$f":"Import!M10965","v":0},{"$f":"Import!M10985","v":0},{"$f":"Import!M11005","v":0},{"$f":"Import!M11025","v":0}]
[4,{"$f":"Import!M10886","v":"Select"},{"$f":"Import!M10906","v":"Select"},{"$f":"Import!M10926","v":"Select"},{"$f":"Import!M10946","v":0},{"$f":"Import!M10966","v":0},{"$f":"Import!M10986","v":0},{"$f":"Import!M11006","v":0},{"$f":"Import!M11026","v":0}]
[5,{"$f":"Import!M10887","v":"Select"},{"$f":"Import!M10907","v":"Select"},{"$f":"Import!M10927","v":"Select"},{"$f":"Import!M10947","v":0},{"$f":"Import!M10967","v":0},{"$f":"Import!M10987","v":0},{"$f":"Import!M11007","v":0},{"$f":"Import!M11027","v":0}]
[6,{"$f":"Import!M10888","v":"Select"},{"$f":"Import!M10908","v":"Select"},{"$f":"Import!M10928","v":"Select"},{"$f":"Import!M10948","v":0},{"$f":"Import!M10968","v":0},{"$f":"Import!M10988","v":0},{"$f":"Import!M11008","v":0},{"$f":"Import!M11028","v":0}]
[7,{"$f":"Import!M10889","v":"Select"},{"$f":"Import!M10909","v":"Select"},{"$f":"Import!M10929","v":"Select"},{"$f":"Import!M10949","v":0},{"$f":"Import!M10969","v":0},{"$f":"Import!M10989","v":0},{"$f":"Import!M11009","v":0},{"$f":"Import!M11029","v":0}]
[8,{"$f":"Import!M10890","v":"Select"},{"$f":"Import!M10910","v":"Select"},{"$f":"Import!M10930","v":"Select"},{"$f":"Import!M10950","v":0},{"$f":"Import!M10970","v":0},{"$f":"Import!M10990","v":0},{"$f":"Import!M11010","v":0},{"$f":"Import!M11030","v":0}]
[9,{"$f":"Import!M10891","v":"Select"},{"$f":"Import!M10911","v":"Select"},{"$f":"Import!M10931","v":"Select"},{"$f":"Import!M10951","v":0},{"$f":"Import!M10971","v":0},{"$f":"Import!M10991","v":0},{"$f":"Import!M11011","v":0},{"$f":"Import!M11031","v":0}]
[10,{"$f":"Import!M10892","v":"Select"},{"$f":"Import!M10912","v":"Select"},{"$f":"Import!M10932","v":"Select"},{"$f":"Import!M10952","v":0},{"$f":"Import!M10972","v":0},{"$f":"Import!M10992","v":0},{"$f":"Import!M11012","v":0},{"$f":"Import!M11032","v":0}]
[11,{"$f":"Import!M10893","v":"Select"},{"$f":"Import!M10913","v":"Select"},{"$f":"Import!M10933","v":"Select"},{"$f":"Import!M10953","v":0},{"$f":"Import!M10973","v":0},{"$f":"Import!M10993","v":0},{"$f":"Import!M11013","v":0},{"$f":"Import!M11033","v":0}]
[12,{"$f":"Import!M10894","v":"Select"},{"$f":"Import!M10914","v":"Select"},{"$f":"Import!M10934","v":"Select"},{"$f":"Import!M10954","v":0},{"$f":"Import!M10974","v":0},{"$f":"Import!M10994","v":0},{"$f":"Import!M11014","v":0},{"$f":"Import!M11034","v":0}]
[13,{"$f":"Import!M10895","v":"Select"},{"$f":"Import!M10915","v":"Select"},{"$f":"Import!M10935","v":"Select"},{"$f":"Import!M10955","v":0},{"$f":"Import!M10975","v":0},{"$f":"Import!M10995","v":0},{"$f":"Import!M11015","v":0},{"$f":"Import!M11035","v":0}]
[14,{"$f":"Import!M10896","v":"Select"},{"$f":"Import!M10916","v":"Select"},{"$f":"Import!M10936","v":"Select"},{"$f":"Import!M10956","v":0},{"$f":"Import!M10976","v":0},{"$f":"Import!M10996","v":0},{"$f":"Import!M11016","v":0},{"$f":"Import!M11036","v":0}]
[15,{"$f":"Import!M10897","v":"Select"},{"$f":"Import!M10917","v":"Select"},{"$f":"Import!M10937","v":"Select"},{"$f":"Import!M10957","v":0},{"$f":"Import!M10977","v":0},{"$f":"Import!M10997","v":0},{"$f":"Import!M11017","v":0},{"$f":"Import!M11037","v":0}]
[16,{"$f":"Import!M10898","v":"Select"},{"$f":"Import!M10918","v":"Select"},{"$f":"Import!M10938","v":"Select"},{"$f":"Import!M10958","v":0},{"$f":"Import!M10978","v":0},{"$f":"Import!M10998","v":0},{"$f":"Import!M11018","v":0},{"$f":"Import!M11038","v":0}]
[17,{"$f":"Import!M10899","v":"Select"},{"$f":"Import!M10919","v":"Select"},{"$f":"Import!M10939","v":"Select"},{"$f":"Import!M10959","v":0},{"$f":"Import!M10979","v":0},{"$f":"Import!M10999","v":0},{"$f":"Import!M11019","v":0},{"$f":"Import!M11039","v":0}]
[18,{"$f":"Import!M10900","v":"Select"},{"$f":"Import!M10920","v":"Select"},{"$f":"Import!M10940","v":"Select"},{"$f":"Import!M10960","v":0},{"$f":"Import!M10980","v":0},{"$f":"Import!M11000","v":0},{"$f":"Import!M11020","v":0},{"$f":"Import!M11040","v":0}]
[19,{"$f":"Import!M10901","v":"Select"},{"$f":"Import!M10921","v":"Select"},{"$f":"Import!M10941","v":"Select"},{"$f":"Import!M10961","v":0},{"$f":"Import!M10981","v":0},{"$f":"Import!M11001","v":0},{"$f":"Import!M11021","v":0},{"$f":"Import!M11041","v":0}]
[20,{"$f":"Import!M10902","v":"Select"},{"$f":"Import!M10922","v":"Select"},{"$f":"Import!M10942","v":"Select"},{"$f":"Import!M10962","v":0},{"$f":"Import!M10982","v":0},{"$f":"Import!M11002","v":0},{"$f":"Import!M11022","v":0},{"$f":"Import!M11042","v":0}]
[]
[null,"Total Alternative Investments",null,null,{"$f":"SUM(E142:E161)","v":0},{"$f":"SUM(F142:F161)","v":0},0,0,0]
[]
[]
[]
[]
[]
[null,"(F) LOANS"]
[]
[null,null,"Enter # of Asset Types",{"$f":"Import!M11043","v":0}]
[]
[null,null,null,null,{"$f":"YEAR($C$3)","v":2022},2022]
[null,"Asset Type","Jurisdiction","BSCR Rating","Face Value","Fair Value","Average YTM","Effective Duration","Effective Convexity"]
[1,{"$f":"Import!M11044","v":"Select"},{"$f":"Import!M11064","v":"Select"},{"$f":"Import!M11084","v":"Select"},{"$f":"Import!M11104","v":0},{"$f":"Import!M11124","v":0},{"$f":"Import!M11144","v":0},{"$f":"Import!M11164","v":0},{"$f":"Import!M11184","v":0}]
[{"$f":"A175+1","v":2},{"$f":"Import!M11045","v":"Select"},{"$f":"Import!M11065","v":"Select"},{"$f":"Import!M11085","v":"Select"},{"$f":"Import!M11105","v":0},{"$f":"Import!M11125","v":0},{"$f":"Import!M11145","v":0},{"$f":"Import!M11165","v":0},{"$f":"Import!M11185","v":0}]
[{"$f":"A176+1","v":3},{"$f":"Import!M11046","v":"Select"},{"$f":"Import!M11066","v":"Select"},{"$f":"Import!M11086","v":"Select"},{"$f":"Import!M11106","v":0},{"$f":"Import!M11126","v":0},{"$f":"Import!M11146","v":0},{"$f":"Import!M11166","v":0},{"$f":"Import!M11186","v":0}]
[4,{"$f":"Import!M11047","v":"Select"},{"$f":"Import!M11067","v":"Select"},{"$f":"Import!M11087","v":"Select"},{"$f":"Import!M11107","v":0},{"$f":"Import!M11127","v":0},{"$f":"Import!M11147","v":0},{"$f":"Import!M11167","v":0},{"$f":"Import!M11187","v":0}]
[5,{"$f":"Import!M11048","v":"Select"},{"$f":"Import!M11068","v":"Select"},{"$f":"Import!M11088","v":"Select"},{"$f":"Import!M11108","v":0},{"$f":"Import!M11128","v":0},{"$f":"Import!M11148","v":0},{"$f":"Import!M11168","v":0},{"$f":"Import!M11188","v":0}]
[6,{"$f":"Import!M11049","v":"Select"},{"$f":"Import!M11069","v":"Select"},{"$f":"Import!M11089","v":"Select"},{"$f":"Import!M11109","v":0},{"$f":"Import!M11129","v":0},{"$f":"Import!M11149","v":0},{"$f":"Import!M11169","v":0},{"$f":"Import!M11189","v":0}]
[7,{"$f":"Import!M11050","v":"Select"},{"$f":"Import!M11070","v":"Select"},{"$f":"Import!M11090","v":"Select"},{"$f":"Import!M11110","v":0},{"$f":"Import!M11130","v":0},{"$f":"Import!M11150","v":0},{"$f":"Import!M11170","v":0},{"$f":"Import!M11190","v":0}]
[8,{"$f":"Import!M11051","v":"Select"},{"$f":"Import!M11071","v":"Select"},{"$f":"Import!M11091","v":"Select"},{"$f":"Import!M11111","v":0},{"$f":"Import!M11131","v":0},{"$f":"Import!M11151","v":0},{"$f":"Import!M11171","v":0},{"$f":"Import!M11191","v":0}]
[9,{"$f":"Import!M11052","v":"Select"},{"$f":"Import!M11072","v":"Select"},{"$f":"Import!M11092","v":"Select"},{"$f":"Import!M11112","v":0},{"$f":"Import!M11132","v":0},{"$f":"Import!M11152","v":0},{"$f":"Import!M11172","v":0},{"$f":"Import!M11192","v":0}]
[10,{"$f":"Import!M11053","v":"Select"},{"$f":"Import!M11073","v":"Select"},{"$f":"Import!M11093","v":"Select"},{"$f":"Import!M11113","v":0},{"$f":"Import!M11133","v":0},{"$f":"Import!M11153","v":0},{"$f":"Import!M11173","v":0},{"$f":"Import!M11193","v":0}]
[11,{"$f":"Import!M11054","v":"Select"},{"$f":"Import!M11074","v":"Select"},{"$f":"Import!M11094","v":"Select"},{"$f":"Import!M11114","v":0},{"$f":"Import!M11134","v":0},{"$f":"Import!M11154","v":0},{"$f":"Import!M11174","v":0},{"$f":"Import!M11194","v":0}]
[12,{"$f":"Import!M11055","v":"Select"},{"$f":"Import!M11075","v":"Select"},{"$f":"Import!M11095","v":"Select"},{"$f":"Import!M11115","v":0},{"$f":"Import!M11135","v":0},{"$f":"Import!M11155","v":0},{"$f":"Import!M11175","v":0},{"$f":"Import!M11195","v":0}]
[13,{"$f":"Import!M11056","v":"Select"},{"$f":"Import!M11076","v":"Select"},{"$f":"Import!M11096","v":"Select"},{"$f":"Import!M11116","v":0},{"$f":"Import!M11136","v":0},{"$f":"Import!M11156","v":0},{"$f":"Import!M11176","v":0},{"$f":"Import!M11196","v":0}]
[14,{"$f":"Import!M11057","v":"Select"},{"$f":"Import!M11077","v":"Select"},{"$f":"Import!M11097","v":"Select"},{"$f":"Import!M11117","v":0},{"$f":"Import!M11137","v":0},{"$f":"Import!M11157","v":0},{"$f":"Import!M11177","v":0},{"$f":"Import!M11197","v":0}]
[15,{"$f":"Import!M11058","v":"Select"},{"$f":"Import!M11078","v":"Select"},{"$f":"Import!M11098","v":"Select"},{"$f":"Import!M11118","v":0},{"$f":"Import!M11138","v":0},{"$f":"Import!M11158","v":0},{"$f":"Import!M11178","v":0},{"$f":"Import!M11198","v":0}]
[16,{"$f":"Import!M11059","v":"Select"},{"$f":"Import!M11079","v":"Select"},{"$f":"Import!M11099","v":"Select"},{"$f":"Import!M11119","v":0},{"$f":"Import!M11139","v":0},{"$f":"Import!M11159","v":0},{"$f":"Import!M11179","v":0},{"$f":"Import!M11199","v":0}]
[17,{"$f":"Import!M11060","v":"Select"},{"$f":"Import!M11080","v":"Select"},{"$f":"Import!M11100","v":"Select"},{"$f":"Import!M11120","v":0},{"$f":"Import!M11140","v":0},{"$f":"Import!M11160","v":0},{"$f":"Import!M11180","v":0},{"$f":"Import!M11200","v":0}]
[18,{"$f":"Import!M11061","v":"Select"},{"$f":"Import!M11081","v":"Select"},{"$f":"Import!M11101","v":"Select"},{"$f":"Import!M11121","v":0},{"$f":"Import!M11141","v":0},{"$f":"Import!M11161","v":0},{"$f":"Import!M11181","v":0},{"$f":"Import!M11201","v":0}]
[19,{"$f":"Import!M11062","v":"Select"},{"$f":"Import!M11082","v":"Select"},{"$f":"Import!M11102","v":"Select"},{"$f":"Import!M11122","v":0},{"$f":"Import!M11142","v":0},{"$f":"Import!M11162","v":0},{"$f":"Import!M11182","v":0},{"$f":"Import!M11202","v":0}]
[20,{"$f":"Import!M11063","v":"Select"},{"$f":"Import!M11083","v":"Select"},{"$f":"Import!M11103","v":"Select"},{"$f":"Import!M11123","v":0},{"$f":"Import!M11143","v":0},{"$f":"Import!M11163","v":0},{"$f":"Import!M11183","v":0},{"$f":"Import!M11203","v":0}]
[]
[null,"Total Loans",null,null,{"$f":"SUM(E175:E194)","v":0},{"$f":"SUM(F175:F194)","v":0},0,0,0]
[]
[]
[]
[]
[]
[null,"(G) REAL ESTATE"]
[]
[null,null,"Enter # of Asset Types",{"$f":"Import!M11204","v":0}]
[]
[null,null,null,null,{"$f":"YEAR($C$3)","v":2022},{"$f":"YEAR($C$3)","v":2022}]
[]
[null,"Asset Type","Jurisdiction","Purpose","Face Value","Fair Value"]
[1,{"$f":"Import!M11205","v":"Select"},{"$f":"Import!M11225","v":"Select"},{"$f":"Import!M11245","v":"Select"},{"$f":"Import!M11265","v":0},{"$f":"Import!M11285","v":0}]
[{"$f":"A209+1","v":2},{"$f":"Import!M11206","v":"Select"},{"$f":"Import!M11226","v":"Select"},{"$f":"Import!M11246","v":"Select"},{"$f":"Import!M11266","v":0},{"$f":"Import!M11286","v":0}]
[{"$f":"A210+1","v":3},{"$f":"Import!M11207","v":"Select"},{"$f":"Import!M11227","v":"Select"},{"$f":"Import!M11247","v":"Select"},{"$f":"Import!M11267","v":0},{"$f":"Import!M11287","v":0}]
[4,{"$f":"Import!M11208","v":"Select"},{"$f":"Import!M11228","v":"Select"},{"$f":"Import!M11248","v":"Select"},{"$f":"Import!M11268","v":0},{"$f":"Import!M11288","v":0}]
[5,{"$f":"Import!M11209","v":"Select"},{"$f":"Import!M11229","v":"Select"},{"$f":"Import!M11249","v":"Select"},{"$f":"Import!M11269","v":0},{"$f":"Import!M11289","v":0}]
[6,{"$f":"Import!M11210","v":"Select"},{"$f":"Import!M11230","v":"Select"},{"$f":"Import!M11250","v":"Select"},{"$f":"Import!M11270","v":0},{"$f":"Import!M11290","v":0}]
[7,{"$f":"Import!M11211","v":"Select"},{"$f":"Import!M11231","v":"Select"},{"$f":"Import!M11251","v":"Select"},{"$f":"Import!M11271","v":0},{"$f":"Import!M11291","v":0}]
[8,{"$f":"Import!M11212","v":"Select"},{"$f":"Import!M11232","v":"Select"},{"$f":"Import!M11252","v":"Select"},{"$f":"Import!M11272","v":0},{"$f":"Import!M11292","v":0}]
[9,{"$f":"Import!M11213","v":"Select"},{"$f":"Import!M11233","v":"Select"},{"$f":"Import!M11253","v":"Select"},{"$f":"Import!M11273","v":0},{"$f":"Import!M11293","v":0}]
[10,{"$f":"Import!M11214","v":"Select"},{"$f":"Import!M11234","v":"Select"},{"$f":"Import!M11254","v":"Select"},{"$f":"Import!M11274","v":0},{"$f":"Import!M11294","v":0}]
[11,{"$f":"Import!M11215","v":"Select"},{"$f":"Import!M11235","v":"Select"},{"$f":"Import!M11255","v":"Select"},{"$f":"Import!M11275","v":0},{"$f":"Import!M11295","v":0}]
[12,{"$f":"Import!M11216","v":"Select"},{"$f":"Import!M11236","v":"Select"},{"$f":"Import!M11256","v":"Select"},{"$f":"Import!M11276","v":0},{"$f":"Import!M11296","v":0}]
[13,{"$f":"Import!M11217","v":"Select"},{"$f":"Import!M11237","v":"Select"},{"$f":"Import!M11257","v":"Select"},{"$f":"Import!M11277","v":0},{"$f":"Import!M11297","v":0}]
[14,{"$f":"Import!M11218","v":"Select"},{"$f":"Import!M11238","v":"Select"},{"$f":"Import!M11258","v":"Select"},{"$f":"Import!M11278","v":0},{"$f":"Import!M11298","v":0}]
[15,{"$f":"Import!M11219","v":"Select"},{"$f":"Import!M11239","v":"Select"},{"$f":"Import!M11259","v":"Select"},{"$f":"Import!M11279","v":0},{"$f":"Import!M11299","v":0}]
[16,{"$f":"Import!M11220","v":"Select"},{"$f":"Import!M11240","v":"Select"},{"$f":"Import!M11260","v":"Select"},{"$f":"Import!M11280","v":0},{"$f":"Import!M11300","v":0}]
[17,{"$f":"Import!M11221","v":"Select"},{"$f":"Import!M11241","v":"Select"},{"$f":"Import!M11261","v":"Select"},{"$f":"Import!M11281","v":0},{"$f":"Import!M11301","v":0}]
[18,{"$f":"Import!M11222","v":"Select"},{"$f":"Import!M11242","v":"Select"},{"$f":"Import!M11262","v":"Select"},{"$f":"Import!M11282","v":0},{"$f":"Import!M11302","v":0}]
[19,{"$f":"Import!M11223","v":"Select"},{"$f":"Import!M11243","v":"Select"},{"$f":"Import!M11263","v":"Select"},{"$f":"Import!M11283","v":0},{"$f":"Import!M11303","v":0}]
[20,{"$f":"Import!M11224","v":"Select"},{"$f":"Import!M11244","v":"Select"},{"$f":"Import!M11264","v":"Select"},{"$f":"Import!M11284","v":0},{"$f":"Import!M11304","v":0}]
[]
[null,"Total Real Estate",null,null,{"$f":"SUM(E209:E228)","v":0},{"$f":"SUM(F209:F228)","v":0}]
[]
[]
[]
[]
[]
[null,"(H) DERIVATIVES"]
[]
[null,null,"Enter # of Derivative Types",{"$f":"Import!M11305","v":0}]
[]
[null,"Derivative Type","Underlying","Purpose","Position",{"$f":"YEAR($C$3)&\"       Market Value\"","v":"2022       Market Value"},"Centrally Cleared","Notional Value","Exposure (Dollar Delta, DV01, CS01"]
[1,{"$f":"Import!M11306","v":"Select"},{"$f":"Import!M11326","v":"Select"},{"$f":"Import!M11346","v":"Select"},{"$f":"Import!M11366","v":"Select"},{"$f":"Import!M11386","v":0},{"$f":"Import!M11406","v":"Select"},{"$f":"Import!M11426","v":0},{"$f":"Import!M11446","v":0}]
[{"$f":"A241+1","v":2},{"$f":"Import!M11307","v":"Select"},{"$f":"Import!M11327","v":"Select"},{"$f":"Import!M11347","v":"Select"},{"$f":"Import!M11367","v":"Select"},{"$f":"Import!M11387","v":0},{"$f":"Import!M11407","v":"Select"},{"$f":"Import!M11427","v":0},{"$f":"Import!M11447","v":0}]
[{"$f":"A242+1","v":3},{"$f":"Import!M11308","v":"Select"},{"$f":"Import!M11328","v":"Select"},{"$f":"Import!M11348","v":"Select"},{"$f":"Import!M11368","v":"Select"},{"$f":"Import!M11388","v":0},{"$f":"Import!M11408","v":"Select"},{"$f":"Import!M11428","v":0},{"$f":"Import!M11448","v":0}]
[4,{"$f":"Import!M11309","v":"Select"},{"$f":"Import!M11329","v":"Select"},{"$f":"Import!M11349","v":"Select"},{"$f":"Import!M11369","v":"Select"},{"$f":"Import!M11389","v":0},{"$f":"Import!M11409","v":"Select"},{"$f":"Import!M11429","v":0},{"$f":"Import!M11449","v":0}]
[5,{"$f":"Import!M11310","v":"Select"},{"$f":"Import!M11330","v":"Select"},{"$f":"Import!M11350","v":"Select"},{"$f":"Import!M11370","v":"Select"},{"$f":"Import!M11390","v":0},{"$f":"Import!M11410","v":"Select"},{"$f":"Import!M11430","v":0},{"$f":"Import!M11450","v":0}]
[6,{"$f":"Import!M11311","v":"Select"},{"$f":"Import!M11331","v":"Select"},{"$f":"Import!M11351","v":"Select"},{"$f":"Import!M11371","v":"Select"},{"$f":"Import!M11391","v":0},{"$f":"Import!M11411","v":"Select"},{"$f":"Import!M11431","v":0},{"$f":"Import!M11451","v":0}]
[7,{"$f":"Import!M11312","v":"Select"},{"$f":"Import!M11332","v":"Select"},{"$f":"Import!M11352","v":"Select"},{"$f":"Import!M11372","v":"Select"},{"$f":"Import!M11392","v":0},{"$f":"Import!M11412","v":"Select"},{"$f":"Import!M11432","v":0},{"$f":"Import!M11452","v":0}]
[8,{"$f":"Import!M11313","v":"Select"},{"$f":"Import!M11333","v":"Select"},{"$f":"Import!M11353","v":"Select"},{"$f":"Import!M11373","v":"Select"},{"$f":"Import!M11393","v":0},{"$f":"Import!M11413","v":"Select"},{"$f":"Import!M11433","v":0},{"$f":"Import!M11453","v":0}]
[9,{"$f":"Import!M11314","v":"Select"},{"$f":"Import!M11334","v":"Select"},{"$f":"Import!M11354","v":"Select"},{"$f":"Import!M11374","v":"Select"},{"$f":"Import!M11394","v":0},{"$f":"Import!M11414","v":"Select"},{"$f":"Import!M11434","v":0},{"$f":"Import!M11454","v":0}]
[10,{"$f":"Import!M11315","v":"Select"},{"$f":"Import!M11335","v":"Select"},{"$f":"Import!M11355","v":"Select"},{"$f":"Import!M11375","v":"Select"},{"$f":"Import!M11395","v":0},{"$f":"Import!M11415","v":"Select"},{"$f":"Import!M11435","v":0},{"$f":"Import!M11455","v":0}]
[11,{"$f":"Import!M11316","v":"Select"},{"$f":"Import!M11336","v":"Select"},{"$f":"Import!M11356","v":"Select"},{"$f":"Import!M11376","v":"Select"},{"$f":"Import!M11396","v":0},{"$f":"Import!M11416","v":"Select"},{"$f":"Import!M11436","v":0},{"$f":"Import!M11456","v":0}]
[12,{"$f":"Import!M11317","v":"Select"},{"$f":"Import!M11337","v":"Select"},{"$f":"Import!M11357","v":"Select"},{"$f":"Import!M11377","v":"Select"},{"$f":"Import!M11397","v":0},{"$f":"Import!M11417","v":"Select"},{"$f":"Import!M11437","v":0},{"$f":"Import!M11457","v":0}]
[13,{"$f":"Import!M11318","v":"Select"},{"$f":"Import!M11338","v":"Select"},{"$f":"Import!M11358","v":"Select"},{"$f":"Import!M11378","v":"Select"},{"$f":"Import!M11398","v":0},{"$f":"Import!M11418","v":"Select"},{"$f":"Import!M11438","v":0},{"$f":"Import!M11458","v":0}]
[14,{"$f":"Import!M11319","v":"Select"},{"$f":"Import!M11339","v":"Select"},{"$f":"Import!M11359","v":"Select"},{"$f":"Import!M11379","v":"Select"},{"$f":"Import!M11399","v":0},{"$f":"Import!M11419","v":"Select"},{"$f":"Import!M11439","v":0},{"$f":"Import!M11459","v":0}]
[15,{"$f":"Import!M11320","v":"Select"},{"$f":"Import!M11340","v":"Select"},{"$f":"Import!M11360","v":"Select"},{"$f":"Import!M11380","v":"Select"},{"$f":"Import!M11400","v":0},{"$f":"Import!M11420","v":"Select"},{"$f":"Import!M11440","v":0},{"$f":"Import!M11460","v":0}]
[16,{"$f":"Import!M11321","v":"Select"},{"$f":"Import!M11341","v":"Select"},{"$f":"Import!M11361","v":"Select"},{"$f":"Import!M11381","v":"Select"},{"$f":"Import!M11401","v":0},{"$f":"Import!M11421","v":"Select"},{"$f":"Import!M11441","v":0},{"$f":"Import!M11461","v":0}]
[17,{"$f":"Import!M11322","v":"Select"},{"$f":"Import!M11342","v":"Select"},{"$f":"Import!M11362","v":"Select"},{"$f":"Import!M11382","v":"Select"},{"$f":"Import!M11402","v":0},{"$f":"Import!M11422","v":"Select"},{"$f":"Import!M11442","v":0},{"$f":"Import!M11462","v":0}]
[18,{"$f":"Import!M11323","v":"Select"},{"$f":"Import!M11343","v":"Select"},{"$f":"Import!M11363","v":"Select"},{"$f":"Import!M11383","v":"Select"},{"$f":"Import!M11403","v":0},{"$f":"Import!M11423","v":"Select"},{"$f":"Import!M11443","v":0},{"$f":"Import!M11463","v":0}]
[19,{"$f":"Import!M11324","v":"Select"},{"$f":"Import!M11344","v":"Select"},{"$f":"Import!M11364","v":"Select"},{"$f":"Import!M11384","v":"Select"},{"$f":"Import!M11404","v":0},{"$f":"Import!M11424","v":"Select"},{"$f":"Import!M11444","v":0},{"$f":"Import!M11464","v":0}]
[20,{"$f":"Import!M11325","v":"Select"},{"$f":"Import!M11345","v":"Select"},{"$f":"Import!M11365","v":"Select"},{"$f":"Import!M11385","v":"Select"},{"$f":"Import!M11405","v":0},{"$f":"Import!M11425","v":"Select"},{"$f":"Import!M11445","v":0},{"$f":"Import!M11465","v":0}]
[]
[null,"Total Derivatives",null,null,null,{"$f":"SUM(F241:F260)","v":0},null,0,0]
[]
[]
[]
[]
[]
[null,"(I) OTHER ASSETS"]
[]
[null,null,"Enter # of Asset Types",{"$f":"Import!M11466","v":0}]
[]
[null,null,null,null,{"$f":"YEAR($C$3)","v":2022},2022]
[]
[null,"Asset Type","Jurisdiction","BSCR Rating","Face Value","Fair Value"]
[1,{"$f":"Import!M11467","v":"Select"},{"$f":"Import!M11487","v":"Select"},{"$f":"Import!M11507","v":"Select"},{"$f":"Import!M11527","v":0},{"$f":"Import!M11547","v":0}]
[2,{"$f":"Import!M11468","v":"Select"},{"$f":"Import!M11488","v":"Select"},{"$f":"Import!M11508","v":"Select"},{"$f":"Import!M11528","v":0},{"$f":"Import!M11548","v":0}]
[3,{"$f":"Import!M11469","v":"Select"},{"$f":"Import!M11489","v":"Select"},{"$f":"Import!M11509","v":"Select"},{"$f":"Import!M11529","v":0},{"$f":"Import!M11549","v":0}]
[4,{"$f":"Import!M11470","v":"Select"},{"$f":"Import!M11490","v":"Select"},{"$f":"Import!M11510","v":"Select"},{"$f":"Import!M11530","v":0},{"$f":"Import!M11550","v":0}]
[5,{"$f":"Import!M11471","v":"Select"},{"$f":"Import!M11491","v":"Select"},{"$f":"Import!M11511","v":"Select"},{"$f":"Import!M11531","v":0},{"$f":"Import!M11551","v":0}]
[6,{"$f":"Import!M11472","v":"Select"},{"$f":"Import!M11492","v":"Select"},{"$f":"Import!M11512","v":"Select"},{"$f":"Import!M11532","v":0},{"$f":"Import!M11552","v":0}]
[7,{"$f":"Import!M11473","v":"Select"},{"$f":"Import!M11493","v":"Select"},{"$f":"Import!M11513","v":"Select"},{"$f":"Import!M11533","v":0},{"$f":"Import!M11553","v":0}]
[8,{"$f":"Import!M11474","v":"Select"},{"$f":"Import!M11494","v":"Select"},{"$f":"Import!M11514","v":"Select"},{"$f":"Import!M11534","v":0},{"$f":"Import!M11554","v":0}]
[9,{"$f":"Import!M11475","v":"Select"},{"$f":"Import!M11495","v":"Select"},{"$f":"Import!M11515","v":"Select"},{"$f":"Import!M11535","v":0},{"$f":"Import!M11555","v":0}]
[10,{"$f":"Import!M11476","v":"Select"},{"$f":"Import!M11496","v":"Select"},{"$f":"Import!M11516","v":"Select"},{"$f":"Import!M11536","v":0},{"$f":"Import!M11556","v":0}]
[11,{"$f":"Import!M11477","v":"Select"},{"$f":"Import!M11497","v":"Select"},{"$f":"Import!M11517","v":"Select"},{"$f":"Import!M11537","v":0},{"$f":"Import!M11557","v":0}]
[12,{"$f":"Import!M11478","v":"Select"},{"$f":"Import!M11498","v":"Select"},{"$f":"Import!M11518","v":"Select"},{"$f":"Import!M11538","v":0},{"$f":"Import!M11558","v":0}]
[13,{"$f":"Import!M11479","v":"Select"},{"$f":"Import!M11499","v":"Select"},{"$f":"Import!M11519","v":"Select"},{"$f":"Import!M11539","v":0},{"$f":"Import!M11559","v":0}]
[14,{"$f":"Import!M11480","v":"Select"},{"$f":"Import!M11500","v":"Select"},{"$f":"Import!M11520","v":"Select"},{"$f":"Import!M11540","v":0},{"$f":"Import!M11560","v":0}]
[15,{"$f":"Import!M11481","v":"Select"},{"$f":"Import!M11501","v":"Select"},{"$f":"Import!M11521","v":"Select"},{"$f":"Import!M11541","v":0},{"$f":"Import!M11561","v":0}]
[16,{"$f":"Import!M11482","v":"Select"},{"$f":"Import!M11502","v":"Select"},{"$f":"Import!M11522","v":"Select"},{"$f":"Import!M11542","v":0},{"$f":"Import!M11562","v":0}]
[17,{"$f":"Import!M11483","v":"Select"},{"$f":"Import!M11503","v":"Select"},{"$f":"Import!M11523","v":"Select"},{"$f":"Import!M11543","v":0},{"$f":"Import!M11563","v":0}]
[18,{"$f":"Import!M11484","v":"Select"},{"$f":"Import!M11504","v":"Select"},{"$f":"Import!M11524","v":"Select"},{"$f":"Import!M11544","v":0},{"$f":"Import!M11564","v":0}]
[19,{"$f":"Import!M11485","v":"Select"},{"$f":"Import!M11505","v":"Select"},{"$f":"Import!M11525","v":"Select"},{"$f":"Import!M11545","v":0},{"$f":"Import!M11565","v":0}]
[20,{"$f":"Import!M11486","v":"Select"},{"$f":"Import!M11506","v":"Select"},{"$f":"Import!M11526","v":"Select"},{"$f":"Import!M11546","v":0},{"$f":"Import!M11566","v":0}]
[]
[null,"Total Other Assets",null,null,null,{"$f":"SUM(F275:F294)","v":0}]
[]
[]
[null,"TOTAL ASSETS",null,null,null,{"$f":"F34+F67+F96+F129+F163+F196+F230+F262+F296","v":0}]
[]
[null,"TOTAL FUNDS HELD BY CEDING REINSURERS (Form 1SFS Line 12)",null,null,null,{"$f":"'Form 1SFS (Consolidated)'!M73","v":0}]
[]
[null,"Check Form 1SFS (Line 12)",null,null,null,{"$f":"IF(F305=0,\"TRUE\",\"FALSE\")","v":"TRUE"}]
[null,null,null,null,null,{"$f":"IF(ROUND((F299-F301),0)=0,\"TRUE\",\"FALSE\")","v":"TRUE"}]
[null,"Difference",null,null,null,{"$f":"ROUND(F301-F299,0)","v":0}]
[]
[]
[null,"EFFECTIVE DURATION",null,null,{"$f":"Import!M11567","v":0}]
[]
[null,"EFFECTIVE CONVEXITY",null,null,{"$f":"Import!M11568","v":0}]
[]
[]
[]
[]
[]
[]
[]
["Cash","Sovereign Bonds","RMBS - Agency","Public Equities","Private Equities","Investment Income Due and Accrued","Energy","Holding Entity","Significant Influence",null,"Insured/Guaranteed Mortgages",null,"Afghanistan"]
["Certificates of Deposit","Municipals","RMBS - Non-agency","Public Preferred Stock","Investment Funds","Accounts and Premiums Receivable","Materials","Operating Entity","Control",null,"Other Commercial and Farm Mortgages",null,"Aland Islands"]
["Money Market Funds","Supranationals (multilateral development banks and international organizations)","CMBS","Exchange Traded Funds","Hedge Funds","Reinsurance Balance Receivable","Industrial","Branch","Select",null,"Other Residential Mortgages",null,"Albania"]
["Other","Corporate bonds","CLOs","Other","Private Credit Funds","Funds Held by Ceding Reinsurers","Consumer Discretionary","Select",null,null,"Mortgages Not In Good Standing",null,"Algeria"]
["Select","Private Placements","CDOs","Select","Catastrophe Bonds","SAC - long-term business - variable annuities","Consumer Staples",null,null,null,"Collateral Loans",null,"American Samoa"]
[null,"Mutual Funds","Auto Loan ABS",null,"Other Insurance-Linked Securities","SAC - long-term business - others","Healthcare",null,null,null,"Middle Market Loans",null,"Andorra"]
[null,"Other - Secured Bonds","Student Loan ABS",null,"Infrastructure Debt","SAC - general business","Financial",null,null,null,"Other Direct Private Lending",null,"Angola"]
[null,"Other - Unsecured Bonds","Credit Card Receivable ABS",null,"Equity Investments in Infrastructure","Deposit assets","Select",null,null,null,"Policy Loans",null,"Anguilla"]
[null,"Other","Other ABS",null,"Investment in Affiliates","Other Sundry Assets",null,null,null,null,"Other",null,"Antigua and Barbuda"]
[null,"Select","Select",null,"Advances to Affiliates","Letter of Credit, Guarantees and Other Instruments",null,null,null,null,"Select",null,"Argentina"]
[null,null,null,null,"Equity Release / Reverse Mortgages","Other",null,null,null,null,null,null,"Armenia"]
[null,null,null,null,"Other","Select",null,null,null,null,null,null,"Aruba"]
[null,null,null,null,"Select",null,null,null,null,null,null,null,"Australia"]
[null,null,null,null,null,null,null,null,null,null,null,null,"Austria"]
[null,null,null,null,null,null,null,null,null,null,null,null,"Azerbaijan"]
[null,null,null,null,null,null,null,null,null,null,null,null,"Bahamas"]
["Listed options","Equity","Hedging","Long / Receive Fixed / Sell Protection","Private Equities","Investment Income Due and Accrued","Real Estate - Owner Occupied",null,null,null,null,null,"Bahrain"]
["Futures","Debt","Speculative","Short / Receive Floating / Buy Protection","Investment Funds","Accounts and Premiums Receivable","Real Estate - Investment",null,null,null,null,null,"Bangladesh"]
["Forwards","Interest Rate","Select","Select","Hedge Funds","Reinsurance Balance Receivable","Select",null,null,null,"Insured/Guaranteed Mortgages",null,"Barbados"]
["Swaps","Inflation",null,null,"Private Credit Funds","SAC - long-term business - variable annuities",null,null,null,null,"Other Commercial and Farm Mortgages",null,"Belarus"]
["Swaptions","Credit",null,null,"Catastrophe Bonds","SAC - long-term business - others",null,null,null,null,"Other Residential Mortgages",null,"Belgium"]
["OTC options","Currencies","Yes",null,"Other Insurance-Linked Securities","SAC - general business","Owner-occupied",null,null,null,"Mortgages Not In Good Standing",null,"Belize"]
["Other","Commodities","No",null,"Infrastructure Debt","Deposit assets","Investment",null,null,null,"Collateral Loans",null,"Benin"]
["Select","Other","Select",null,"Equity Investments in Infrastructure","Other Sundry Assets","Select",null,null,null,"Middle Market Loans",null,"Bermuda"]
[null,"Select",null,null,"Equity Release / Reverse Mortgages","Letter of Credit, Guarantees and Other Instruments",null,null,null,null,"Other Direct Private Lending",null,"Bhutan"]
[null,null,null,null,"Other","Other",null,null,null,null,"Policy Loans",null,"Bolivia (Plurinational State of)"]
[null,null,null,null,"Select","Select",null,null,null,null,"Other",null,"Bonaire, Sint Eustatius and Saba"]
[null,null,null,null,null,null,null,null,null,null,"Select",null,"Bosnia and Herzegovina"]
[null,null,null,null,null,null,null,null,null,null,null,null,"Botswana"]
["BSCR Rating",null,null,null,null,null,null,null,null,null,null,null,"Brazil"]
["Select",null,null,null,null,null,null,null,null,null,null,null,"British Virgin Islands"]
["BSCR Rating 0",null,null,null,null,null,null,null,null,null,null,null,"Brunei Darussalam"]
["BSCR Rating 1",null,null,null,null,null,null,null,null,null,null,null,"Bulgaria"]
["BSCR Rating 2",null,null,null,null,null,null,null,null,null,null,null,"Burkina Faso"]
["BSCR Rating 3",null,null,null,null,null,null,null,null,null,null,null,"Burundi"]
["BSCR Rating 4",null,null,null,null,null,null,null,null,null,null,null,"Cabo Verde (Cape Verde)"]
["BSCR Rating 5",null,null,null,null,null,null,null,null,null,null,null,"Cambodia"]
["BSCR Rating 6",null,null,null,null,null,null,null,null,null,null,null,"Cameroon"]
["BSCR Rating 7",null,null,null,null,null,null,null,null,null,null,null,"Canada"]
["BSCR Rating 8",null,null,null,null,null,null,null,null,null,null,null,"Cayman Islands"]
[null,null,null,null,null,null,null,null,null,null,null,null,"Central African Republic"]
[null,null,null,null,null,null,null,null,null,null,null,null,"Chad"]
[null,null,null,null,null,null,null,null,null,null,null,null,"Chile"]
[null,null,null,null,null,null,null,null,null,null,null,null,"China"]
[null,null,null,null,null,null,null,null,null,null,null,null,"China, Hong Kong SAR"]
[null,null,null,null,null,null,null,null,null,null,null,null,"China, Macao SAR "]
[null,null,null,null,null,null,null,null,null,null,null,null,"Colombia"]
[null,null,null,null,null,null,null,null,null,null,null,null,"Comoros"]
[null,null,null,null,null,null,null,null,null,null,null,null,"Congo"]
[null,null,null,null,null,null,null,null,null,null,null,null,"Cook Islands"]
[null,null,null,null,null,null,null,null,null,null,null,null,"Costa Rica"]
[null,null,null,null,null,null,null,null,null,null,null,null,"Cote d' Ivoire"]
[null,null,null,null,null,null,null,null,null,null,null,null,"Croatia"]
[null,null,null,null,null,null,null,null,null,null,null,null,"Cuba"]
[null,null,null,null,null,null,null,null,null,null,null,null,"Curacao"]
[null,null,null,null,null,null,null,null,null,null,null,null,"Cyprus"]
[null,null,null,null,null,null,null,null,null,null,null,null,"Czech Republic"]
[null,null,null,null,null,null,null,null,null,null,null,null,"Democratic People's Republic of Korea (North Korea)"]
[null,null,null,null,null,null,null,null,null,null,null,null,"Democratic Republic of the Congo"]
[null,null,null,null,null,null,null,null,null,null,null,null,"Denmark"]
[null,null,null,null,null,null,null,null,null,null,null,null,"Djibouti"]
[null,null,null,null,null,null,null,null,null,null,null,null,"Dominica"]
[null,null,null,null,null,null,null,null,null,null,null,null,"Dominican Republic"]
[null,null,null,null,null,null,null,null,null,null,null,null,"Ecuador"]
[null,null,null,null,null,null,null,null,null,null,null,null,"Egypt"]
[null,null,null,null,null,null,null,null,null,null,null,null,"El Salvador"]
[null,null,null,null,null,null,null,null,null,null,null,null,"Equatorial Guinea"]
[null,null,null,null,null,null,null,null,null,null,null,null,"Eritrea"]
[null,null,null,null,null,null,null,null,null,null,null,null,"Estonia"]
[null,null,null,null,null,null,null,null,null,null,null,null,"Eswatini (Kingdom of Swaziland)"]
[null,null,null,null,null,null,null,null,null,null,null,null,"Ethiopia"]
[null,null,null,null,null,null,null,null,null,null,null,null,"Falkland Islands"]
[null,null,null,null,null,null,null,null,null,null,null,null,"Faroe Islands"]
[null,null,null,null,null,null,null,null,null,null,null,null,"Fiji"]
[null,null,null,null,null,null,null,null,null,null,null,null,"Finland"]
[null,null,null,null,null,null,null,null,null,null,null,null,"France"]
[null,null,null,null,null,null,null,null,null,null,null,null,"French Guiana"]
[null,null,null,null,null,null,null,null,null,null,null,null,"French Polynesia"]
[null,null,null,null,null,null,null,null,null,null,null,null,"Gabon"]
[null,null,null,null,null,null,null,null,null,null,null,null,"Gambia (Republic of The)"]
[null,null,null,null,null,null,null,null,null,null,null,null,"Georgia"]
[null,null,null,null,null,null,null,null,null,null,null,null,"Germany"]
[null,null,null,null,null,null,null,null,null,null,null,null,"Ghana"]
[null,null,null,null,null,null,null,null,null,null,null,null,"Gibraltar"]
[null,null,null,null,null,null,null,null,null,null,null,null,"Greece"]
[null,null,null,null,null,null,null,null,null,null,null,null,"Greenland"]
[null,null,null,null,null,null,null,null,null,null,null,null,"Grenada"]
[null,null,null,null,null,null,null,null,null,null,null,null,"Guadeloupe"]
[null,null,null,null,null,null,null,null,null,null,null,null,"Guam"]
[null,null,null,null,null,null,null,null,null,null,null,null,"Guatemala"]
[null,null,null,null,null,null,null,null,null,null,null,null,"Guernsey"]
[null,null,null,null,null,null,null,null,null,null,null,null,"Guinea"]
[null,null,null,null,null,null,null,null,null,null,null,null,"Guinea-Bissau"]
[null,null,null,null,null,null,null,null,null,null,null,null,"Guyana"]
[null,null,null,null,null,null,null,null,null,null,null,null,"Haiti"]
[null,null,null,null,null,null,null,null,null,null,null,null,"Holy See"]
[null,null,null,null,null,null,null,null,null,null,null,null,"Honduras"]
[null,null,null,null,null,null,null,null,null,null,null,null,"Hungary"]
[null,null,null,null,null,null,null,null,null,null,null,null,"Iceland"]
[null,null,null,null,null,null,null,null,null,null,null,null,"India"]
[null,null,null,null,null,null,null,null,null,null,null,null,"Indonesia"]
[null,null,null,null,null,null,null,null,null,null,null,null,"Iran (Islamic Republic of)"]
[null,null,null,null,null,null,null,null,null,null,null,null,"Iraq"]
[null,null,null,null,null,null,null,null,null,null,null,null,"Ireland"]
[null,null,null,null,null,null,null,null,null,null,null,null,"Isle of Man"]
[null,null,null,null,null,null,null,null,null,null,null,null,"Israel"]
[null,null,null,null,null,null,null,null,null,null,null,null,"Italy"]
[null,null,null,null,null,null,null,null,null,null,null,null,"Jamaica"]
[null,null,null,null,null,null,null,null,null,null,null,null,"Japan"]
[null,null,null,null,null,null,null,null,null,null,null,null,"Jersey"]
[null,null,null,null,null,null,null,null,null,null,null,null,"Jordan"]
[null,null,null,null,null,null,null,null,null,null,null,null,"Kazakhstan"]
[null,null,null,null,null,null,null,null,null,null,null,null,"Kenya"]
[null,null,null,null,null,null,null,null,null,null,null,null,"Kiribati"]
[null,null,null,null,null,null,null,null,null,null,null,null,"Kuwait"]
[null,null,null,null,null,null,null,null,null,null,null,null,"Kyrgyzstan"]
[null,null,null,null,null,null,null,null,null,null,null,null,"Lao People's Democratic Republic"]
[null,null,null,null,null,null,null,null,null,null,null,null,"Latvia"]
[null,null,null,null,null,null,null,null,null,null,null,null,"Lebanon"]
[null,null,null,null,null,null,null,null,null,null,null,null,"Lesotho"]
[null,null,null,null,null,null,null,null,null,null,null,null,"Liberia"]
[null,null,null,null,null,null,null,null,null,null,null,null,"Libya"]
[null,null,null,null,null,null,null,null,null,null,null,null,"Liechtenstein"]
[null,null,null,null,null,null,null,null,null,null,null,null,"Lithuania"]
[null,null,null,null,null,null,null,null,null,null,null,null,"Luxembourg"]
[null,null,null,null,null,null,null,null,null,null,null,null,"Madagascar"]
[null,null,null,null,null,null,null,null,null,null,null,null,"Malawi"]
[null,null,null,null,null,null,null,null,null,null,null,null,"Malaysia"]
[null,null,null,null,null,null,null,null,null,null,null,null,"Maldives"]
[null,null,null,null,null,null,null,null,null,null,null,null,"Mali"]
[null,null,null,null,null,null,null,null,null,null,null,null,"Malta"]
[null,null,null,null,null,null,null,null,null,null,null,null,"Marshall Islands"]
[null,null,null,null,null,null,null,null,null,null,null,null,"Martinique"]
[null,null,null,null,null,null,null,null,null,null,null,null,"Mauritania"]
[null,null,null,null,null,null,null,null,null,null,null,null,"Mauritius"]
[null,null,null,null,null,null,null,null,null,null,null,null,"Mayotte"]
[null,null,null,null,null,null,null,null,null,null,null,null,"Mexico"]
[null,null,null,null,null,null,null,null,null,null,null,null,"Micronesia (Federated States of)"]
[null,null,null,null,null,null,null,null,null,null,null,null,"Monaco"]
[null,null,null,null,null,null,null,null,null,null,null,null,"Mongolia"]
[null,null,null,null,null,null,null,null,null,null,null,null,"Montenegro"]
[null,null,null,null,null,null,null,null,null,null,null,null,"Montserrat"]
[null,null,null,null,null,null,null,null,null,null,null,null,"Morocco"]
[null,null,null,null,null,null,null,null,null,null,null,null,"Mozambique"]
[null,null,null,null,null,null,null,null,null,null,null,null,"Myanmar"]
[null,null,null,null,null,null,null,null,null,null,null,null,"Namibia"]
[null,null,null,null,null,null,null,null,null,null,null,null,"Nauru"]
[null,null,null,null,null,null,null,null,null,null,null,null,"Nepal"]
[null,null,null,null,null,null,null,null,null,null,null,null,"Netherlands"]
[null,null,null,null,null,null,null,null,null,null,null,null,"New Caledonia"]
[null,null,null,null,null,null,null,null,null,null,null,null,"New Zealand"]
[null,null,null,null,null,null,null,null,null,null,null,null,"Nicaragua"]
[null,null,null,null,null,null,null,null,null,null,null,null,"Niger"]
[null,null,null,null,null,null,null,null,null,null,null,null,"Nigeria"]
[null,null,null,null,null,null,null,null,null,null,null,null,"Niue"]
[null,null,null,null,null,null,null,null,null,null,null,null,"Norfolk Island"]
[null,null,null,null,null,null,null,null,null,null,null,null,"North Macedonia"]
[null,null,null,null,null,null,null,null,null,null,null,null,"Northern Mariana Islands"]
[null,null,null,null,null,null,null,null,null,null,null,null,"Norway"]
[null,null,null,null,null,null,null,null,null,null,null,null,"Oman"]
[null,null,null,null,null,null,null,null,null,null,null,null,"Pakistan"]
[null,null,null,null,null,null,null,null,null,null,null,null,"Palau"]
[null,null,null,null,null,null,null,null,null,null,null,null,"Panama"]
[null,null,null,null,null,null,null,null,null,null,null,null,"Papua New Guinea"]
[null,null,null,null,null,null,null,null,null,null,null,null,"Paraguay"]
[null,null,null,null,null,null,null,null,null,null,null,null,"Peru"]
[null,null,null,null,null,null,null,null,null,null,null,null,"Philippines"]
[null,null,null,null,null,null,null,null,null,null,null,null,"Pitcairn"]
[null,null,null,null,null,null,null,null,null,null,null,null,"Poland"]
[null,null,null,null,null,null,null,null,null,null,null,null,"Portugal"]
[null,null,null,null,null,null,null,null,null,null,null,null,"Puerto Rico"]
[null,null,null,null,null,null,null,null,null,null,null,null,"Qatar"]
[null,null,null,null,null,null,null,null,null,null,null,null,"Republic of Korea (South Korea)"]
[null,null,null,null,null,null,null,null,null,null,null,null,"Republic of Moldova"]
[null,null,null,null,null,null,null,null,null,null,null,null,"Reunion"]
[null,null,null,null,null,null,null,null,null,null,null,null,"Romania"]
[null,null,null,null,null,null,null,null,null,null,null,null,"Russian Federation"]
[null,null,null,null,null,null,null,null,null,null,null,null,"Rwanda"]
[null,null,null,null,null,null,null,null,null,null,null,null,"Saint Barthelemy (St. Barts)"]
[null,null,null,null,null,null,null,null,null,null,null,null,"Saint Helena"]
[null,null,null,null,null,null,null,null,null,null,null,null,"Saint Kitts and Nevis"]
[null,null,null,null,null,null,null,null,null,null,null,null,"Saint Lucia"]
[null,null,null,null,null,null,null,null,null,null,null,null,"Saint Martin"]
[null,null,null,null,null,null,null,null,null,null,null,null,"Saint Pierre and Miquelon"]
[null,null,null,null,null,null,null,null,null,null,null,null,"Saint Vincent and The Grenadines"]
[null,null,null,null,null,null,null,null,null,null,null,null,"Samoa"]
[null,null,null,null,null,null,null,null,null,null,null,null,"San Marino"]
[null,null,null,null,null,null,null,null,null,null,null,null,"Sao Tome and Principe"]
[null,null,null,null,null,null,null,null,null,null,null,null,"Sark"]
[null,null,null,null,null,null,null,null,null,null,null,null,"Saudi Arabia"]
[null,null,null,null,null,null,null,null,null,null,null,null,"Senegal"]
[null,null,null,null,null,null,null,null,null,null,null,null,"Serbia"]
[null,null,null,null,null,null,null,null,null,null,null,null,"Seychelles"]
[null,null,null,null,null,null,null,null,null,null,null,null,"Sierra Leone"]
[null,null,null,null,null,null,null,null,null,null,null,null,"Singapore"]
[null,null,null,null,null,null,null,null,null,null,null,null,"Sint Maarten"]
[null,null,null,null,null,null,null,null,null,null,null,null,"Slovakia"]
[null,null,null,null,null,null,null,null,null,null,null,null,"Slovenia"]
[null,null,null,null,null,null,null,null,null,null,null,null,"Solomon Islands"]
[null,null,null,null,null,null,null,null,null,null,null,null,"Somalia"]
[null,null,null,null,null,null,null,null,null,null,null,null,"South Africa"]
[null,null,null,null,null,null,null,null,null,null,null,null,"South Sudan"]
[null,null,null,null,null,null,null,null,null,null,null,null,"Spain"]
[null,null,null,null,null,null,null,null,null,null,null,null,"Sri Lanka"]
[null,null,null,null,null,null,null,null,null,null,null,null,"State of Palestine"]
[null,null,null,null,null,null,null,null,null,null,null,null,"Sudan"]
[null,null,null,null,null,null,null,null,null,null,null,null,"Suriname"]
[null,null,null,null,null,null,null,null,null,null,null,null,"Svalbard, Jan Mayen"]
[null,null,null,null,null,null,null,null,null,null,null,null,"Sweden"]
[null,null,null,null,null,null,null,null,null,null,null,null,"Switzerland"]
[null,null,null,null,null,null,null,null,null,null,null,null,"Syrian Arab Republic"]
[null,null,null,null,null,null,null,null,null,null,null,null,"Taiwan"]
[null,null,null,null,null,null,null,null,null,null,null,null,"Tajikistan"]
[null,null,null,null,null,null,null,null,null,null,null,null,"Thailand"]
[null,null,null,null,null,null,null,null,null,null,null,null,"Timor-Leste"]
[null,null,null,null,null,null,null,null,null,null,null,null,"Togo"]
[null,null,null,null,null,null,null,null,null,null,null,null,"Tokelau"]
[null,null,null,null,null,null,null,null,null,null,null,null,"Tonga"]
[null,null,null,null,null,null,null,null,null,null,null,null,"Trinidad and Tobago"]
[null,null,null,null,null,null,null,null,null,null,null,null,"Tunisia"]
[null,null,null,null,null,null,null,null,null,null,null,null,"Turkey"]
[null,null,null,null,null,null,null,null,null,null,null,null,"Turkmenistan"]
[null,null,null,null,null,null,null,null,null,null,null,null,"Turks & Caicos Islands"]
[null,null,null,null,null,null,null,null,null,null,null,null,"Tuvalu"]
[null,null,null,null,null,null,null,null,null,null,null,null,"Uganda"]
[null,null,null,null,null,null,null,null,null,null,null,null,"Ukraine"]
[null,null,null,null,null,null,null,null,null,null,null,null,"United Arab Emirates"]
[null,null,null,null,null,null,null,null,null,null,null,null,"United Kingdom of Great Britain and Northern Ireland"]
[null,null,null,null,null,null,null,null,null,null,null,null,"United Republic of Tanzania"]
[null,null,null,null,null,null,null,null,null,null,null,null,"United States of America"]
[null,null,null,null,null,null,null,null,null,null,null,null,"Uruguay"]
[null,null,null,null,null,null,null,null,null,null,null,null,"US Virgin Islands"]
[null,null,null,null,null,null,null,null,null,null,null,null,"Uzbekistan"]
[null,null,null,null,null,null,null,null,null,null,null,null,"Vanuatu"]
[null,null,null,null,null,null,null,null,null,null,null,null,"Venezuela, Bolivarian Republic of "]
[null,null,null,null,null,null,null,null,null,null,null,null,"Vietnam"]
[null,null,null,null,null,null,null,null,null,null,null,null,"Wallis & Futuna Islands"]
[null,null,null,null,null,null,null,null,null,null,null,null,"Western Sahara"]
[null,null,null,null,null,null,null,null,null,null,null,null,"Yemen"]
[null,null,null,null,null,null,null,null,null,null,null,null,"Zambia"]
[null,null,null,null,null,null,null,null,null,null,null,null,"Zimbabwe"]
[null,null,null,null,null,null,null,null,null,null,null,null,"Select"]

{"sheet":"Schedule IX(a)","index":58,"n_rows":121,"n_cols":7,"rows_kept":121,"cut":false,"hidden":false,"merged":[[104,1,104,3],[3,1,3,2],[29,1,29,6],[70,1,70,4],[31,1,31,6],[35,1,35,6],[16,1,16,2],[84,1,84,3],[0,1,0,5],[69,1,69,5],[80,1,80,6],[72,1,72,6],[76,1,76,6],[2,1,2,2]]}
[null,"SCHEDULE OF SOLVENCY SELF ASSESSMENT (SSA) CAPITAL SUMMARY (TABLE 8)",null,null,null,null,{"$f":"HYPERLINK(\"#'Index'!A1\",\"Return to Index\")","v":"Return to Index"}]
[null,{"$f":"'Company Information'!C7","v":"Enter Company Name"}]
[null,{"$f":"'Form 1SFS (Consolidated)'!$C$4","v":"2022-12-31"},null,null,null,null,"SCHEDULE IX(a)"]
[null,{"$f":"\"expressed in\"& IF(CONFIGURATION!$B$12>1,\" ['\"&MID(CONFIGURATION!$B$12,2,LEN(CONFIGURATION!$B$12))&\"s]\",\"\")","v":"expressed in ['000s]"},null,{"$f":"'Form 1SFS (Consolidated)'!$C$5","v":"United States Dollars"}]
[]
[null,"Note: Documents supporting the SSA filling should be retained for such period as specified in the [Rules]"]
[]
[null,"Risk Categories",null,null,"a) SSA capital",null,"b) Regulatory capital "]
[]
[null,{"$f":"IF('Company Information'!$F$11=\"IIGB\",\"Underwriting Risk\",\"Premium risk\")","v":"Underwriting Risk"},null,null,{"$f":"Import!M11570","v":0},null,{"$f":"IF('Company Information'!$F$11=\"IIGB\",SUM('Company Specific Parameters'!L687:L689),'Company Specific Parameters'!L687)","v":0}]
[null,"Reserve risk",null,null,{"$f":"Import!M11571","v":0},null,{"$f":"IF('Company Information'!$F$11=\"IIGB\",0,'Company Specific Parameters'!L688)","v":0}]
[null,"Catastrophe risk",null,null,{"$f":"Import!M11572","v":0},null,{"$f":"IF('Company Information'!$F$11=\"IIGB\",0,'Company Specific Parameters'!L689)","v":0}]
[null,"Market risk",null,null,{"$f":"Import!M11573","v":0},null,{"$f":"'Company Specific Parameters'!K680+'Company Specific Parameters'!K681+'Company Specific Parameters'!K683","v":0}]
[null,"Credit risk",null,null,{"$f":"Import!M11574","v":0},null,{"$f":"'Company Specific Parameters'!L686","v":0}]
[null,"Liquidity risk",null,null,{"$f":"Import!M11575","v":0},null,{"$f":"'Company Specific Parameters'!K682","v":0}]
[null,"Group, Concentration, Reputational and Strategic risk",null,null,{"$f":"Import!M11576","v":0},null,{"$f":"'Company Specific Parameters'!K685","v":0}]
[null,"Other (specify)",null,null,{"$f":"Import!M11577","v":0},null,0]
[]
[null,"Total capital pre-diversification between risk categories",null,null,{"$f":"SUM(E10:E17)","v":0},null,{"$f":"SUM(G10:G17)","v":0}]
[]
[null,"Diversification credit between risk categories",null,null,{"$f":"Import!M11579","v":0},null,{"$f":"G19-G23","v":0}]
[]
[null,"Total capital after diversification between risk catagories before operational risk",null,null,{"$f":"E19-E21","v":0},null,{"$f":"Summary!N86-Summary!N76","v":0}]
[]
[null,"Operational risk",null,null,{"$f":"Import!M11581","v":0},null,{"$f":"'Company Specific Parameters'!L697","v":0}]
[]
[null,"Total capital after diversification and operational risk",null,null,{"$f":"E23+E25","v":0},null,{"$f":"G23+G25","v":0}]
[]
[null,"Where:"]
["a)","SSA capital is the amount of capital the insurer has determined that it requires to achieve its strategic goals upon undertaking an assessment of all material (reasonably foreseeable) risks arising from its operations or operating environment; and"]
[]
["b)","Regulatory capital is determined by the BSCR or an approved internal capital model at 99.0% Tail Value-at-Risk (TVaR) over a one-year time horizon. "]
[]
[null,"ADDITIONAL INFORMATION"]
[]
[null,"The insurer should review the following statements and select from the drop-down list as applicable and/or provide a brief description or an attachment.  Where an attachment is provided, include references (e.g., page number, paragraph number) of where the information is located in the comments box in the attachments tab."]
[]
[1,"What is the primary reason(s) (select multiple responses where applicable) for aiming at the disclosed  SSA Capital amount? (select all that apply by choosing Yes/No )"]
[]
[null,{"$f":"Import!E11583","v":"Select Yes/No"}," Target agency rating (e.g., \"A-\", \"AA\", etc) "]
[null,{"$f":"Import!E11584","v":"Select Yes/No"}," Market share "]
[null,{"$f":"Import!E11585","v":"Select Yes/No"}," Business expansion "]
[null,{"$f":"Import!E11586","v":"Select Yes/No"}," Nature of product(s) (e.g., risk characteristics) "]
[null,{"$f":"Import!E11587","v":"Select Yes/No"}," Manage downgrade risk"]
[null,{"$f":"Import!E11588","v":"Select Yes/No"}," Regulatory capital requirements"]
[null,{"$f":"Import!E11589","v":"Select Yes/No"}," Others ",{"$f":"Import!E11590","v":0}]
[]
[2,"What methodology is used to aggregate the risk categories in deriving the SSA capital? (select all that apply by choosing Yes/No)"]
[]
[null,{"$f":"Import!E11591","v":"Select Yes/No"}," Correlation matrix"]
[null,{"$f":"Import!E11592","v":"Select Yes/No"}," Linear correlations"]
[null,{"$f":"Import!E11593","v":"Select Yes/No"}," T copulas"]
[null,{"$f":"Import!E11594","v":"Select Yes/No"}," Gumbel copulas"]
[null,{"$f":"Import!E11595","v":"Select Yes/No"}," Clayton copulas"]
[null,{"$f":"Import!E11596","v":"Select Yes/No"}," Causal drivers approach (e.g., inflation, cycles)"]
[null,{"$f":"Import!E11597","v":"Select Yes/No"}," Others",{"$f":"Import!E11598","v":0}]
[]
[3,"What contingency plans are in place for raising additional capital under stress situations? (select all that apply by choosing Yes/No)"]
[]
[null,{"$f":"Import!E11599","v":"Select Yes/No"}," Parental guarantees"]
[null,{"$f":"Import!E11600","v":"Select Yes/No"}," Revolving letters of credit"]
[null,{"$f":"Import!E11601","v":"Select Yes/No"}," Issue subordinated debt"]
[null,{"$f":"Import!E11602","v":"Select Yes/No"}," Issue preference shares"]
[null,{"$f":"Import!E11603","v":"Select Yes/No"}," Float additional shares"]
[null,{"$f":"Import!E11604","v":"Select Yes/No"}," Capital injections from parent"]
[null,{"$f":"Import!E11605","v":"Select Yes/No"}," Contingent surplus notes"]
[null,{"$f":"Import!E11606","v":"Select Yes/No"}," Catastrophe derivatives (e.g., bonds, swaps and options)"]
[null,{"$f":"Import!E11607","v":"Select Yes/No"}," Others ",{"$f":"Import!E11608","v":0}]
[]
[4,"Does the insurer have arrangements/ contractual commitments to provide support including forward purchase, arrangements or guarantees to affiliates/other ",null,null,null,null,{"$f":"Import!E11609","v":"Select Yes/No"}]
[null,"companies in stressed situations? (Yes or No)"]
[null,"If yes, briefly describe the arrangement(s) and the aggregate exposure."]
[null,{"$f":"Import!E11610","v":0}]
[]
[5,"Has the insurer down streamed debt to establish equity positions (participations), or engaged in double or multiple gearing? (Yes or No)",null,null,null,null,{"$f":"Import!E11611","v":"Select Yes/No"}]
[null,"If yes, provide details and amount of capital ."]
[null,{"$f":"Import!E11612","v":0}]
[]
[6,"Has debt been down streamed to establish equity positions in the insurer, or is the insurer using capital that is double or multiple geared? (Yes or No)",null,null,null,null,{"$f":"Import!E11613","v":"Select Yes/No"}]
[null,"If yes, provide details and amount of capital."]
[null,{"$f":"Import!E11614","v":0}]
[]
[7,"Are there any assets of a subsidiary of the insurer that are restricted for use that cannot be transferred to another subsidiary or the insurer, that were not included in ",null,null,null,null,{"$f":"Import!E11615","v":"Select Yes/No"}]
[null,"the encumbered assets (both for policyholder obligations and not for policyholder obligations) reported in the Schedule of Eligible Capital? (Yes or No)"]
[null,{"$f":"HYPERLINK(\"#'Attachments'!G115\",\"Provide details in the SSA Attachments section if there are any restrictions of movement of assets/payment of dividends:\")","v":"Provide details in the SSA Attachments section if there are any restrictions of movement of assets/payment of dividends:"}]
[null,null,null,null,null,"Total restricted assets",{"$f":"Import!E11616","v":0}]
[null,null,null,null,null,"Less: Regulatory capital requirements for members for which the assets pertain",{"$f":"Import!E11617","v":0}]
[null,null,null,null,null,"Restricted assets in excess of capital requirements to the extent that these amounts are not included in "]
[null,null,null,null,null,"the encumbered assets reported in the Eligible Capital Schedule",{"$f":"G86-G87","v":0}]
[]
[null,null,null,"Yes"]
[null,null,null,"No","Contingency plans for additional capital"]
[]
[null,null,null,null,"Parental guarantees"]
[null,null,null,null,"revolving letters of credit"]
[null,null,null,null,"Contingent capital arrangements"]
[null,null,null,null,"Issue subordinated debt"]
[null,null,null,null,"Issue preference shares"]
[null,null,null,null,"Float additional shares"]
[null,null,null,null,"Capital injections from parent"]
[]
[]
[null,null,null,null,"Correlation matrix "]
[null,null,null,null,"Linear correlations"]
[null,null,null,null,"T copulas"]
[null,null,null,null,"Gumbel copulas"]
[null,null,null,null,"Clayton copulas"]
[null,null,null,null,"Causal drivers approach e.g. inflation, cycles"]
[null,null,null,null,"Other"]
[]
[]
[null,null,null,null,"Not applicable"]
[]
[]
[]
[]
[]
[]
[]
[null,null,null,null,"Yes"]
[null,null,null,null,"No"]

{"sheet":"Schedule IX(b)","index":59,"n_rows":100,"n_cols":8,"rows_kept":100,"cut":false,"hidden":false,"merged":[[68,1,68,5],[10,1,10,4],[11,1,11,4],[12,1,12,4],[13,1,13,4],[25,1,25,4],[26,2,26,4],[19,1,19,4],[20,1,20,4],[21,1,21,4],[22,1,22,4],[23,1,23,4],[24,1,24,4],[31,1,31,3],[32,1,32,3],[33,2,33,3],[0,1,0,3],[2,1,2,2],[58,1,58,4],[6,1,6,3],[42,1,42,3],[43,1,43,3],[44,1,44,3],[53,1,53,3],[57,1,57,5],[54,1,54,3],[45,1,45,3],[46,1,46,3],[47,1,47,3],[48,1,48,3],[49,1,49,3],[60,1,60,4],[62,1,62,3],[64,1,64,4],[18,1,18,4],[4,1,4,5],[14,1,14,4],[15,1,15,4],[16,1,16,4],[17,1,17,4]]}
[null,"SCHEDULE OF SOLVENCY SELF ASSESSMENT (SSA) GENERAL QUESTIONS (TABLE 8A)",null,null,null,null,null,{"$f":"HYPERLINK(\"#'Index'!A1\",\"Return to Index\")","v":"Return to Index"}]
[null,{"$f":"'Company Information'!C7","v":"Enter Company Name"}]
[null,{"$f":"'Form 1SFS (Consolidated)'!$C$4","v":"2022-12-31"},null,null,null,null,null,"SCHEDULE IX(b)"]
[]
[null,"The insurer should review the following statements and select from the drop-down list as applicable and/or provide a brief description or an attachment. Where an attachment is provided, include references (e.g., page number, paragraph number) of where the information is located within the attachment."]
[]
[1,"Is the CISSA and its underlying information integrated (i.e., considered when making key strategic decisions) into  the insurer's strategic and risk management decision-making processes? (Yes or No)",null,null,null,{"$f":"Import!E11620","v":"Select Yes/No"}]
[]
[null,"If Yes, how is SSA and its underlying information used? (select all that apply by choosing Yes/No )"]
[]
[null,"Strategic planning",null,null,null,{"$f":"Import!E11621","v":"Select Yes/No"}]
[null,"Annual business planning",null,null,null,{"$f":"Import!E11622","v":"Select Yes/No"}]
[null,"Setting risk limits",null,null,null,{"$f":"Import!E11623","v":"Select Yes/No"}]
[null,"Defining risk appetite",null,null,null,{"$f":"Import!E11624","v":"Select Yes/No"}]
[null,"Evaluation of capital adequacy",null,null,null,{"$f":"Import!E11625","v":"Select Yes/No"}]
[null,"Allocation of capital to business segments and lines of business",null,null,null,{"$f":"Import!E11626","v":"Select Yes/No"}]
[null,"Capital management",null,null,null,{"$f":"Import!E11627","v":"Select Yes/No"}]
[null,"Determination of rates of return for pricing and underwriting guidelines",null,null,null,{"$f":"Import!E11628","v":"Select Yes/No"}]
[null,"Reinsurance purchase",null,null,null,{"$f":"Import!E11629","v":"Select Yes/No"}]
[null,"Determination of investment policies and strategies",null,null,null,{"$f":"Import!E11630","v":"Select Yes/No"}]
[null,"Meeting regulatory requirements",null,null,null,{"$f":"Import!E11631","v":"Select Yes/No"}]
[null,"Improving credit rating",null,null,null,{"$f":"Import!E11632","v":"Select Yes/No"}]
[null,"Improving investor relations",null,null,null,{"$f":"Import!E11633","v":"Select Yes/No"}]
[null,"Assessing risk adjusted product profitability",null,null,null,{"$f":"Import!E11634","v":"Select Yes/No"}]
[null,"Performance measurement and assessment",null,null,null,{"$f":"Import!E11635","v":"Select Yes/No"}]
[null,"Improving mergers and acquisition decisions",null,null,null,{"$f":"Import!E11636","v":"Select Yes/No"}]
[null,"Others",{"$f":"Import!E11638","v":0},null,null,{"$f":"Import!E11637","v":"Select Yes/No"}]
[]
[2,"SSA Mitigation Risk:"]
[null,"The section will automatically score and aggregate the results."]
[]
[null,"Questions",null,null,"Yes/No",null,null,"Score"]
[null,"Is there a potential for the insurer to have an accumulation of losses to material lines of business outside of the property catastrophe line that will threaten the solvency of the insurer? ",null,null,null,null,null,{"$f":"IF(E33=\"No\", (900/9),0)","v":0}]
[null,null,"If yes, what are the potential cause(s) of the accumulation of losses?"]
[null,null,null,"(a) A severe event"]
[null,null,null,"(b) Series of many small events or individual claims"]
[null,null,null,"(c) Over concentration of exposure to one product"]
[null,null,null,"(d) Over concentration to one source of business"]
[null,null,null,"(e) Over concentration to one line of business"]
[null,null,null,"(f) A common cause across many underwriting years (e.g., asbestos, pollution, silicon, etc.)"]
[null,null,null,"(g) Others (list)"]
[]
[null,"Does the insurer have absolute limitations set on individual policies or groups of policies to avoid threatening its solvency (such as limitations on a geographical basis, product basis, line of business basis, source of business basis, etc.)?",null,null,null,null,null,{"$f":"IF(E43=\"Yes\", (900/9), 0)","v":0}]
[null,"If yes to the above, are the limitations assessed for reasonableness and effectiveness in reducing the threat to solvency?",null,null,null,null,null,{"$f":"IF(E44=\"Yes\", (900/9), 0)","v":0}]
[null,"Does the insurer have procedures in place to assess the adequacy of the reinsurance purchased both from a severity and frequency perspective for solvency purposes, and ensure that there are no significant mismatches between the policies issued by the insurer and the reinsurance programme (e.g., that basis risk does not exist, etc.)?",null,null,null,null,null,0]
[null,"Does the insurer have access to additional capital and surplus to cover loss and loss adjustment expenses (e.g., letters of credit, parental guarantees, other contingent capital sources, etc.)?",null,null,null,null,null,0]
[null,"Are policies, processes and procedures in place that employ benchmarking and stress and scenario testing to assess, review, and approve underwriting strategies and tolerance limits? ",null,null,null,null,null,0]
[null,"Are policies, processes and procedures in place to ensure that underwriting strategies are effectively aligned with risk tolerance levels? ",null,null,null,null,null,0]
[null,"Are policies, processes and procedures in place to identify, evaluate, and monitor risks arising from insurance policies, and ensure compliance with risk tolerance levels?",null,null,null,null,null,0]
[null,"Are systems in place to capture, maintain, and analyse underwriting data; and ensure that relevant and accurate data is used to price underwriting contracts, establish adequate reserves, and appropriately settle claims? ",null,null,null,null,null,{"$f":"IF(E50=\"Yes\", (900/9), 0)","v":0}]
[null,null,null,null,null,null,null,{"$f":"SUM(H33:H50)","v":0}]
[3,"Related Business:"]
[]
[null,"Questions",null,null,"%",null,null,"Charge"]
[null,"What percentage of the gross premiums written cover an ultimate related policyholder?",null,null,null,null,null,{"$f":"E55","v":0}]
[]
[null,"Comments (optionally, the insurer may provide comments in the box below to support its responses above):"]
[]
[{"$f":"IF('Company Information'!$F$11=\"IIGB\",4,2)","v":4},"Has the insurer applied reverse stress testing to both identify the scenarios that could cause business failure and the required actions to manage such situations? (Yes or No)",null,null,null,{"$f":"Import!E11639","v":"Select Yes/No"}]
[]
[{"$f":"IF('Company Information'!$F$11=\"IIGB\",5,3)","v":5},"Is the SSA process clearly documented and regularly amended for changes in strategic direction, risk management framework, and market developments? (Yes or No)",null,null,null,{"$f":"Import!E11640","v":"Select Yes/No"}]
[]
[{"$f":"IF('Company Information'!$F$11=\"IIGB\",6,4)","v":6},"How often is the information underlying SSA discussed and reviewed by the board and chief and senior executives?",null,null,null,{"$f":"Import!E11641","v":"Select"}]
[]
[{"$f":"IF('Company Information'!$F$11=\"IIGB\",7,5)","v":7},"Have the board and chief and senior executives ensured that an appropriate oversight process is in place, including an appropriate level of independent verification, whereby material deficiencies are reported on a timely basis and suitable actions taken? (Yes or No)",null,null,null,{"$f":"Import!E11642","v":"Select Yes/No"}]
[]
[null,"Optionally, the insurer may provide brief comments."]
[]
[null,{"$f":"Import!E11643","v":0}]
[]
[]
[]
[]
[]
[]
[]
[]
[]
[]
[]
[null,null,null,"Select Yes/No"]
[null,null,null,"Yes"]
[null,null,null,"No"]
[null,null,null,"Select"]
[null,null,null,"Annually"]
[null,null,null,"Semi-annually"]
[null,null,null,"Quarterly"]
[null,null,null,"Monthly"]
[null,null,null,"Bi-monthly"]
[null,null,null,"Ad-hoc"]
[null,null,null,"Other"]
[null,null,null,"Select"]
[null,null,null,"Strong"]
[null,null,null,"Moderate"]
[null,null,null,"Weak"]
[]
[null,null,null,"Select"]
[null,null,null,"Fully documented"]
[null,null,null,"Partially documented"]
[null,null,null,"Other"]

{"sheet":"Schedule IX(c)","index":60,"n_rows":111,"n_cols":8,"rows_kept":111,"cut":false,"hidden":false,"merged":[[19,1,19,5],[21,1,21,5],[23,1,23,5],[25,1,25,5],[64,12,64,14],[65,1,65,3],[65,12,65,14],[59,2,59,5],[61,1,61,5],[63,1,63,5],[2,1,2,3],[11,1,11,5],[81,4,81,5],[81,1,81,3],[66,1,66,3],[68,1,68,3],[67,1,67,3],[72,1,72,3],[13,1,13,5],[4,1,5,5],[7,2,8,5],[9,2,9,5],[33,1,33,5],[57,2,57,5],[27,1,27,5],[29,1,29,5],[11,6,13,6],[11,7,13,7],[0,1,0,4],[80,1,80,3],[80,4,80,5],[78,1,78,3],[79,1,79,3],[76,1,76,3],[77,1,77,3],[74,1,74,3],[75,1,75,3],[73,1,73,3],[69,1,69,3],[70,1,70,3],[71,1,71,3],[1,1,1,3]]}
[null,"SCHEDULE OF SOLVENCY SELF ASSESSMENT (SSA) ASSESSMENT OF MATERIAL RISKS OF THE INSURER (TABLE 8B)",null,null,null,null,null,{"$f":"HYPERLINK(\"#'Index'!A1\",\"Return to Index\")","v":"Return to Index"}]
[null,{"$f":"'Company Information'!C7","v":"Enter Company Name"}]
[null,{"$f":"'Form 1SFS (Consolidated)'!$C$4","v":"2022-12-31"},null,null,null,null,null,"SCHEDULE IX(c)"]
[]
[null,"The board must review policies, processes, and procedures to assess its material risks and self-determine the capital requirement it would need to support its insurance undertaking, at least annually. Minimally, the assessment should:"]
[]
[null,"•","Be an integral part of the insurer's risk management framework;"]
[null,"•","Be clearly documented, reviewed, and evaluated regularly by the board and the chief and senior executives to ensure continual advancement in light of changes in the strategic direction, risk management framework, and market developments; and"]
[]
[null,"•","Ensure an appropriate oversight process whereby material deficiencies are reported on a timely basis and suitable actions taken."]
[]
[null,"The insurer shall undertake and file with the Authority the insurer's most recent report (\"insurer-specific report\") comprising of a solvency self-assessment of its material risks and the determination of both the quality (types of capital) and quantity of SSA capital required to cover these risks, while remaining solvent and achieving the insurer's business goals.",null,null,null,null,"Doc. No","Page. No"]
[]
[null,"The insurer-specific report should minimally include:"]
[]
[1,"Date the assessment was completed and the insurer-specific report last updated."]
[]
[2,"A description of the insurer's business and strategy."]
[]
[3,"The identification and assessment of all reasonably foreseeable material risks, including those specified in the Insurance Code of Conduct (i.e., insurance underwriting risk; investment, liquidity and concentration risk; market risk; credit risk; operational risk; group risk; strategic risk; reputational risk; and legal risk)."]
[]
[4,"The identification of the relationships of the material risks with one another, and the quantity and type of capital required to cover the risks."]
[]
[5,"A description of the insurer's risk appetite, including limits imposed and how they are enforced, and their key performance indicators."]
[]
[6,"Assumptions and methodology used to assess and aggregate risks."]
[]
[7,"A forward-looking analysis of the risks faced by the insurer over its planning horizon and an analysis demonstrating the ability to manage its business and capital needs in adverse circumstances and still meet regulatory capital requirements."]
[]
[8,"An evaluation of whether the insurer has sufficient capital and liquidity available, including an assessment of whether capital is fungible and assets are transferable, to achieve its strategic goals over its planning horizon and any potential adverse consequences if insufficient."]
[]
[9,"A description of business continuity and disaster plans."]
[]
[10,"A description of how the results of the self-assessment are integrated into the management and strategic decision making process."]
[]
[11,"Approval and signed declaration of the SSA assessment by two members of the Board of Directors."]
[]
[11,{"$f":"IF('Company Information'!$F$11=\"IIGB\",\"The risk measure, time horizon, and confidence level (if any) used to determine the SSA capital.\",\"For each material risk identified under 3 above, the submission should minimally include:\")","v":"The risk measure, time horizon, and confidence level (if any) used to determine the SSA capital."}]
[]
[null,"a)","Identification of the risk owner, qualifications and responsibilities."]
[]
[null,"b) ","The key performance indicators used to monitor compliance with the risk appetite."]
[]
[null,"c)","The risk drivers (e.g. for catastrophe risk the drivers could be US earthquake, European windstorm, terrorism etc)?"]
[]
[null,"d) ","The primary model(s)/tool(s) used to calculate the SSA capital for the risk, where applicable."]
[]
[null,"e)","The primary sources of data used as inputs to the model(s)/tool(s)."]
[]
[null,"f)","The key assumptions used in the assessment of the risk."]
[]
[null,"g)","A description and quantitative impact of stress and scenarios test on capital (if any) including key assumptions."]
[]
[null,"h)","A description of measures taken to transfer or otherwise mitigate the risk."]
[]
[null,"i)","Quantification of the risk if the insurer is holding capital against it both pre and post diversification."]
[]
[{"$f":"IF('Company Information'!$F$11=\"IIGB\",12,\"\")","v":12},{"$f":"IF('Company Information'!$F$11=\"IIGB\",\"\",\"j)\")","v":""},"An explanation of the primary reasons for any material deviations between the SSA capital as it pertains to the risk (if holding capital against the risk) and the regulatory capital charge for the risk, if the deviation is greater than 15%."]
[]
[null,"(*)","Where attachments are submitted, include references (e.g. page number, paragraph number) of where the information is located in the comments box in the attachments tab."]
[]
[null,"The insurer shall select the appropriate response. Where an optional attachment is provided to disclose additional information,  the insurer shall include references (e.g. page number, paragraph number) of where the information is located in the comments box in the attachments tab."]
[]
[12,"Model(s)/tool(s) used to calculate the SSA capital "]
[]
[null,"Governance",null,null,"Select","Comments"]
["a)","Does the board of directors, chief and senior executives approve the design, maintenance and use of the model(s)/tool(s)?",null,null,{"$f":"Import!E11645","v":"Select Yes/No"},{"$f":"Import!E11656","v":0}]
["b)","How often does the board or relevant board committees review outputs, changes and issues arising from the model(s)/tool(s) (review should be documented  e.g.  minutes, presentations etc)?",null,null,{"$f":"Import!E11646","v":"Select"},{"$f":"Import!E11657","v":0}]
["c)","Does the board and chief and senior executives have a  general understanding of the key assumptions/elements and the implications of the outputs (including limitations) of the model(s)/tool(s)?",null,null,{"$f":"Import!E11647","v":"Select Yes/No"},{"$f":"Import!E11658","v":0}]
[null,"Validation",null,null,"Select","Comments"]
["d)","Is the model(s)/tool(s) subject to a regular cycle of validation, which includes the monitoring of performance, review appropriateness of model specifications and testing of forecast results against actual results?",null,null,{"$f":"Import!E11648","v":"Select Yes/No"},{"$f":"Import!E11659","v":0}]
["e)","How often is the validation of the model(s)/tool(s) performed?",null,null,{"$f":"Import!E11649","v":"Select"},{"$f":"Import!E11660","v":0}]
["f)","Does the validation process demonstrate that the model(s)/tool(s) remains suitable during changing conditions (e.g. changes in inflation, interest rate, etc)? If no, provide comments.",null,null,{"$f":"Import!E11650","v":"Select Yes/No"},{"$f":"Import!E11661","v":0}]
[null,"Documentation",null,null,"Select","Comments"]
["g)","Does the insurer have formal documentation of the structure, design, operational details, input assumptions, parameters, governance process and controls of the model(s)/tool(s)?",null,null,{"$f":"Import!E11651","v":"Select Yes/No"},{"$f":"Import!E11662","v":0}]
["h)","If yes, to what extent is the model(s)/tool(s) documented such that it can be used by new personnel with limited user experience? (include comments for partial or no documentations)",null,null,{"$f":"Import!E11652","v":"Select"},{"$f":"Import!E11663","v":0}]
["i)","How often does the board of directors or chief and senior executives review and approve the model/input documentation?",null,null,{"$f":"Import!E11653","v":"Select"},{"$f":"Import!E11664","v":0}]
[null,"Internal controls",null,null,"Select","Comments"]
["j)","How does the insurer rate the effectiveness of the controls in place to monitor and evaluate the operation and maintenance of the model(s)/tool(s)?",null,null,{"$f":"Import!E11654","v":"Select"},{"$f":"Import!E11665","v":0}]
["k)","Are there strict protocols in place restricting access to the model(s)/tool(s) and ability to make adjustments thereto?",null,null,{"$f":"Import!E11655","v":"Select Yes/No"},{"$f":"Import!E11666","v":0}]
[null,"Others",null,null,"List"]
["l)","What is the risk measure (VaR,TVaR etc), confidence interval (95%, 99.95% etc)  and time horizon (1 year, 3 years etc) used to derive SSA capital?",null,null,{"$f":"Import!E11667","v":0}]
[]
[]
[]
[]
[]
[]
[]
[]
[]
[null,null,null,null,null,"Select Yes/No"]
[null,null,null,null,null,"Yes"]
[null,null,null,null,null,"No"]
[null,null,null,null,null,"Select"]
[null,null,null,null,null,"Annually"]
[null,null,null,null,null,"Semi-annually"]
[null,null,null,null,null,"Quarterly"]
[null,null,null,null,null,"Monthly"]
[null,null,null,null,null,"Bi-monthly"]
[null,null,null,null,null,"Ad-hoc"]
[null,null,null,null,null,"Other"]
[null,null,null,null,null,"Select"]
[null,null,null,null,null,"Strong"]
[null,null,null,null,null,"Moderate"]
[null,null,null,null,null,"Weak"]
[]
[null,null,null,null,null,"Select"]
[null,null,null,null,null,"Fully documented"]
[null,null,null,null,null,"Partially documented"]
[null,null,null,null,null,"Other"]

{"sheet":"Schedule X(a)","index":61,"n_rows":81,"n_cols":10,"rows_kept":81,"cut":false,"hidden":false,"merged":[[35,4,35,6],[35,8,35,10],[32,8,32,10],[38,4,38,6],[38,8,38,10],[33,8,33,10],[34,4,34,6],[34,8,34,10],[36,4,36,6],[36,8,36,10],[37,4,37,6],[37,8,37,10],[2,1,2,2],[5,4,5,5],[5,6,5,7],[30,8,30,10],[31,8,31,10],[39,4,39,6],[39,8,39,10],[40,4,40,6],[40,8,40,10],[42,4,42,6],[42,8,42,10],[41,4,41,6],[41,8,41,10],[52,4,52,6],[52,8,52,10],[43,4,43,6],[43,8,43,10],[44,4,44,6],[44,8,44,10],[45,4,45,6],[45,8,45,10],[50,4,50,6],[50,8,50,10],[51,4,51,6],[51,8,51,10],[48,4,48,6],[48,8,48,10],[49,4,49,6],[49,8,49,10],[55,4,55,6],[55,8,55,10],[56,4,56,6],[56,8,56,10],[63,8,63,10],[59,4,59,6],[59,8,59,10],[60,4,60,6],[60,8,60,10],[61,4,61,6],[61,8,61,10],[62,4,62,6],[62,8,62,10],[63,4,63,6],[64,8,64,10],[67,8,67,10],[70,8,70,10],[71,4,71,5],[71,8,71,10],[68,8,68,10],[69,8,69,10],[80,6,81,7],[72,4,72,5],[72,8,72,10],[73,8,73,10],[74,8,74,10]]}
[null,"CATASTROPHE RISK RETURN: EP CURVE TOTAL (TABLE 9)",null,null,null,null,null,null,null,{"$f":"HYPERLINK(\"#'Index'!A1\",\"Return to Index\")","v":"Return to Index"}]
[null,{"$f":"'Company Information'!C7","v":"Enter Company Name"}]
[null,{"$f":"'Company Information'!C3+1","v":"2023-01-01"},null,null,null,null,null,null,null,"SCHEDULE X(a)"]
[]
[null,"1. Exceedance probability information:"]
[null,null,null,null," Gross loss",null,"Net loss"]
[null,null,null,"Loss return period (years)","Gross per occurrence loss TVaR","Gross aggregate TVaR","Net per occurrence loss TVaR","Net aggregate TVaR "]
[null,null,null,null," (US$M)"," (US$M)"," (US$M)"," (US$M)"]
[null,null,null,50,{"$f":"Import!M11669","v":0},{"$f":"Import!M11674","v":0},{"$f":"Import!M11679","v":0},{"$f":"Import!M11684","v":0}]
[null,null,null,100,{"$f":"Import!M11670","v":0},{"$f":"Import!M11675","v":0},{"$f":"Import!M11680","v":0},{"$f":"Import!M11685","v":0}]
[null,null,null,250,{"$f":"Import!M11671","v":0},{"$f":"Import!M11676","v":0},{"$f":"Import!M11681","v":0},{"$f":"Import!M11686","v":0}]
[null,null,null,500,{"$f":"Import!M11672","v":0},{"$f":"Import!M11677","v":0},{"$f":"Import!M11682","v":0},{"$f":"Import!M11687","v":0}]
[null,null,null,1000,{"$f":"Import!M11673","v":0},{"$f":"Import!M11678","v":0},{"$f":"Import!M11683","v":0},{"$f":"Import!M11688","v":0}]
[]
[null,null,null,null," Gross Loss (US$M)",null,null,null,null," Net Loss (US$M)"]
[null,null,null,"Annual average aggregate gross loss",{"$f":"Import!M11689","v":0},null,null,null,"Annual average aggregate net loss (net of reinstatements terms)",{"$f":"Import!M11699","v":0}]
[null,null,null,null,null,null,null,null,"Reinstatement terms included in Annual average aggregated net loss",{"$f":"Import!M11700","v":0}]
[null,null,null,"Standard deviation of annual aggregate gross loss",{"$f":"Import!M11690","v":0},null,null,null,"Standard deviation of annual aggregate net loss (net of reinstatements terms)",{"$f":"Import!M11701","v":0}]
[]
[null,null,null,"Total gross statutory property catastrophe premium modelled",{"$f":"Import!M11691","v":0},null,null,null,"Total net statutory property catastrophe premium modelled",{"$f":"Import!M11702","v":0}]
[null,null,null,"Total gross all other catastrophe premium modelled",{"$f":"Import!M11692","v":0},null,null,null,"Total net all other catastrophe premium modelled",{"$f":"Import!M11703","v":0}]
[]
[null,null,null,"Total gross statutory property catastrophe limits exposed - modelled",{"$f":"Import!M11693","v":0},null,null,null,"Total net statutory property catastrophe limits exposed – modelled",{"$f":"Import!M11704","v":0}]
[null,null,null,"Total gross statutory property catastrophe limits exposed - not modelled",{"$f":"Import!M11694","v":0},null,null,null,"Total net statutory property catastrophe limits exposed– not modelled",{"$f":"Import!M11705","v":0}]
[null,null,null,"Total gross all other lines limits exposed - modelled",{"$f":"Import!M11695","v":0},null,null,null,"Total net all other lines limits exposed – modelled",{"$f":"Import!M11706","v":0}]
[null,null,null,"Total gross all other lines limits exposed  - not modelled",{"$f":"Import!M11696","v":0},null,null,null,"Total net all other lines limits exposed - not modelled",{"$f":"Import!M11707","v":0}]
[null,null,null,"Total gross premium without an occurrence or aggregate limit:",{"$f":"Import!M11697","v":0},null,null,null,"Total net premium without an occurrence or aggregate limit",{"$f":"Import!M11708","v":0}]
[null,null,null,"Total gross premium with non determinable Total Insured Value (TIV):",{"$f":"Import!M11698","v":0},null,null,null,"Total net premium with non-determinable TIV:",{"$f":"Import!M11709","v":0}]
[]
[null,"2. Significant sources of catastrophe risk and associated loss included in the EP Curves"]
[null,null,null,"Allocated loss adjustment expense",{"$f":"Import!M11710","v":"Select Yes/No"},null,null,{"$f":"IF(E31=\"No\",\"If no, why not:\",\"\")","v":""}]
[null,null,null,"Property - buildings",{"$f":"Import!M11711","v":"Select Yes/No"},null,null,""]
[null,null,null,"Property - contents",{"$f":"Import!M11712","v":"Select Yes/No"},null,null,""]
[null,null,null,"Additional living expenses",{"$f":"Import!M11713","v":"Select Yes/No"},null,null,""]
[null,null,null,"Business interruption",{"$f":"Import!M11714","v":"Select"},null,null,""]
[null,null,null,"Auto physical damage",{"$f":"Import!M11715","v":"Select"},null,null,""]
[null,null,null,"Worker's compensation",{"$f":"Import!M11716","v":"Select"},null,null,""]
[null,null,null,"Personal accident",{"$f":"Import!M11717","v":"Select"},null,null,""]
[null,null,null,"Life insurance",{"$f":"Import!M11718","v":"Select"},null,null,""]
[null,null,null,"Onshore energy",{"$f":"Import!M11719","v":"Select"},null,null,""]
[null,null,null,"Offshore energy",{"$f":"Import!M11720","v":"Select"},null,null,""]
[null,null,null,"Ocean marine",{"$f":"Import!M11721","v":"Select"},null,null,""]
[null,null,null,"Inland marine",{"$f":"Import!M11722","v":"Select"},null,null,""]
[null,null,null,"Flood",{"$f":"Import!M11723","v":"Select"},null,null,""]
[null,null,null,"Crop",{"$f":"Import!M11724","v":"Select"},null,null,""]
[null,null,null,"Other primary insurance",{"$f":"Import!M11725","v":"Select"},null,null,""]
[]
[null,"3. Assumed reinsurance information:"]
[null,null,null,"Proportional - quota share",{"$f":"Import!M11726","v":"Select"},null,null,{"$f":"IF(E49=\"No\",\"If no, why not:\",\"\")","v":""}]
[null,null,null,"Proportional - surplus share",{"$f":"Import!M11727","v":"Select"},null,null,{"$f":"IF(E50=\"No\",\"If no, why not:\",\"\")","v":""}]
[null,null,null,"Non-proportional - catastrophe",{"$f":"Import!M11728","v":"Select"},null,null,{"$f":"IF(E51=\"No\",\"If no, why not:\",\"\")","v":""}]
[null,null,null,"Non-proportional - per risk",{"$f":"Import!M11729","v":"Select"},null,null,{"$f":"IF(E52=\"No\",\"If no, why not:\",\"\")","v":""}]
[null,null,null,"Other reinsurance assumed",{"$f":"Import!M11730","v":"Select"},null,null,{"$f":"IF(E53=\"No\",\"If no, why not:\",\"\")","v":""}]
[]
[null,"4. Pools and assessments information:"]
[null,null,null,"Voluntary pools and/or assessments",{"$f":"Import!M11731","v":"Select"},null,null,{"$f":"IF(E56=\"No\",\"If no, why not:\",\"\")","v":""}]
[null,null,null,"Involuntary pools and/or assessments",{"$f":"Import!M11732","v":"Select"},null,null,{"$f":"IF(E57=\"No\",\"If no, why not:\",\"\")","v":""}]
[]
[null,"5. Supplemental perils and model options:"]
[null,null,null,"Fire following",{"$f":"Import!M11733","v":"Select"},null,null,{"$f":"IF(E60=\"No\",\"If no, why not:\",\"\")","v":""}]
[null,null,null,"Sprinkler leakage",{"$f":"Import!M11734","v":"Select"},null,null,{"$f":"IF(E61=\"No\",\"If no, why not:\",\"\")","v":""}]
[null,null,null,"Storm surge",{"$f":"Import!M11735","v":"Select"},null,null,{"$f":"IF(E62=\"No\",\"If no, why not:\",\"\")","v":""}]
[null,null,null,"Demand surge",{"$f":"Import!M11736","v":"Select"},null,null,{"$f":"IF(E63=\"No\",\"If no, why not:\",\"\")","v":""}]
[null,null,null,"Secondary uncertainty",{"$f":"Import!M11737","v":"Select"},null,null,{"$f":"IF(E64=\"No\",\"If no, why not:\",\"\")","v":""}]
[null,null,null,"Atlantic multi-decadal oscillation selection",{"$f":"Import!M11738","v":"Select"},null,null,{"$f":"IF(E65=\"Long-term frequency\",\"If long-term frequency, why:\",\"\")","v":""}]
[]
[null,"6. Other adjustments information:"]
[null,null,null,"Adjustments for exposure data quality",{"$f":"Import!M11739","v":"Select Yes/No"},null,null,{"$f":"IF(E68=\"No\",\"If no, why not:\",\"\")","v":""}]
[null,null,null,"Adjustments for insurance to value",{"$f":"Import!M11740","v":"Select Yes/No"},null,null,""]
[null,null,null,"Adjustments for exposure growth",{"$f":"Import!M11741","v":"Select Yes/No"},null,null,""]
[null,null,null,"Supplemental losses for non-modelled line of business",{"$f":"Import!M11742","v":"Select Yes/No"},null,null,""]
[null,null,null,"Adjustments for model deficiencies – severity",{"$f":"Import!M11743","v":"Select"},null,null,""]
[null,null,null,"Adjustments for model deficiencies - frequency",{"$f":"Import!M11744","v":"Select"},null,null,""]
[null,null,null,"Additional demand surge loadings",{"$f":"Import!M11745","v":"Select Yes/No"},null,null,""]
[null,null,null,"Other factors for prudence",{"$f":"Import!M11746","v":"Select Yes/No"},null,null,""]
[]
[null,null,null,null,null,"Average loading factor applied to ground up loss for all adjustments applied:",{"$f":"Import!M11747","v":0}]
[null,null,null,null,null,"Is this average loading factor determined analytically or estimated?",{"$f":"Import!M11748","v":"Select"}]
[]
[null,null,null,null,null,"Which vendor catastrophe models (cat model) do you include in this modeling?",{"$f":"Import!M11749","v":"Select Cat Model(s)"}]
[null,null,null,null,null,"Which version of the model or version of the region-peril models are used for each vendor catastrophe model as appropriate?",{"$f":"Import!M11750","v":0}]

{"sheet":"Schedule X(b)","index":62,"n_rows":191,"n_cols":10,"rows_kept":191,"cut":false,"hidden":false,"merged":[[62,8,62,10],[64,4,64,6],[64,8,64,10],[65,4,65,6],[65,8,65,10],[63,8,63,10],[73,4,73,5],[73,8,73,10],[71,8,71,10],[72,8,72,10],[70,8,70,10],[52,4,52,6],[52,8,52,10],[53,4,53,6],[53,8,53,10],[69,8,69,10],[54,4,54,6],[54,8,54,10],[57,4,57,6],[57,8,57,10],[63,4,63,6],[58,4,58,6],[58,8,58,10],[61,4,61,6],[61,8,61,10],[66,8,66,10],[62,4,62,6],[82,6,83,7],[74,4,74,5],[74,8,74,10],[75,8,75,10],[76,8,76,10],[50,4,50,6],[50,8,50,10],[51,4,51,6],[39,8,39,10],[40,4,40,6],[40,8,40,10],[47,4,47,6],[47,8,47,10],[42,4,42,6],[42,8,42,10],[45,4,45,6],[45,8,45,10],[46,4,46,6],[46,8,46,10],[51,8,51,10],[43,4,43,6],[44,4,44,6],[41,4,41,6],[41,8,41,10],[44,8,44,10],[43,8,43,10],[38,4,38,6],[38,8,38,10],[39,4,39,6],[35,8,35,10],[36,4,36,6],[36,8,36,10],[37,4,37,6],[37,8,37,10],[2,1,2,2],[33,8,33,10],[34,8,34,10],[7,4,7,5],[7,6,7,7],[32,8,32,10]]}
[null,"CATASTROPHE RISK RETURN: EP CURVE INSURANCE (TABLE 9A)",null,null,null,null,null,null,null,{"$f":"HYPERLINK(\"#'Index'!A1\",\"Return to Index\")","v":"Return to Index"}]
[null,{"$f":"'Company Information'!C7","v":"Enter Company Name"}]
[null,{"$f":"'Company Information'!C3+1","v":"2023-01-01"},null,null,null,null,null,null,null,"SCHEDULE X(b) "]
[]
[null,"Note:The EP curve for insurance will be required only when the percentage of net insurance premiums written is greater than 10% of total net premiums written."]
[]
[null,null,"1. Exceedance probability information:"]
[null,null,null,null," Gross loss",null,"Net loss"]
[null,null,null,"Loss Return period (years)","Gross per occurrence loss TVaR","Gross aggregate TVaR","Net per occurrence loss TVaR","Net aggregate TVaR "]
[null,null,null,null," (US$M)"," (US$M)"," (US$M)"," (US$M)"]
[null,null,null,50,{"$f":"Import!M11752","v":0},{"$f":"Import!M11757","v":0},{"$f":"Import!M11762","v":0},{"$f":"Import!M11767","v":0}]
[null,null,null,100,{"$f":"Import!M11753","v":0},{"$f":"Import!M11758","v":0},{"$f":"Import!M11763","v":0},{"$f":"Import!M11768","v":0}]
[null,null,null,250,{"$f":"Import!M11754","v":0},{"$f":"Import!M11759","v":0},{"$f":"Import!M11764","v":0},{"$f":"Import!M11769","v":0}]
[null,null,null,500,{"$f":"Import!M11755","v":0},{"$f":"Import!M11760","v":0},{"$f":"Import!M11765","v":0},{"$f":"Import!M11770","v":0}]
[null,null,null,1000,{"$f":"Import!M11756","v":0},{"$f":"Import!M11761","v":0},{"$f":"Import!M11766","v":0},{"$f":"Import!M11771","v":0}]
[]
[null,null,null,null," Gross Loss (US$M)",null,null,null,null," Net Loss (US$M)"]
[null,null,null,"Annual average aggregate gross loss ",{"$f":"Import!M11772","v":0},null,null,null,"Annual average aggregate net loss (net of reinstatements terms)",{"$f":"Import!M11782","v":0}]
[null,null,null,null,null,null,null,null,"Reinstatement terms included in Annual average aggregated net loss",{"$f":"Import!M11783","v":0}]
[null,null,null,"Standard deviation of annual aggregate gross loss ",{"$f":"Import!M11773","v":0},null,null,null,"Standard deviation of annual aggregate net loss (net of reinstatements terms)",{"$f":"Import!M11784","v":0}]
[]
[null,null,null,"Total gross statutory property catastrophe premium modelled",{"$f":"Import!M11774","v":0},null,null,null,"Total net statutory property catastrophe premium modelled",{"$f":"Import!M11785","v":0}]
[null,null,null,"Total gross all other catastrophe premium modelled",{"$f":"Import!M11775","v":0},null,null,null,"Total net all other catastrophe premium modelled",{"$f":"Import!M11786","v":0}]
[]
[null,null,null,"Total gross statutory property catastrophe limits exposed - modelled",{"$f":"Import!M11776","v":0},null,null,null,"Total net statutory property catastrophe limits exposed – modelled",{"$f":"Import!M11787","v":0}]
[null,null,null,"Total gross statutory property catastrophe limits exposed - not modelled",{"$f":"Import!M11777","v":0},null,null,null,"Total net statutory property catastrophe limits exposed– not modelled",{"$f":"Import!M11788","v":0}]
[null,null,null,"Total gross all other lines limits exposed - modelled",{"$f":"Import!M11778","v":0},null,null,null,"Total net all other lines limits exposed – modelled",{"$f":"Import!M11789","v":0}]
[null,null,null,"Total gross all other lines limits exposed  - not modelled",{"$f":"Import!M11779","v":0},null,null,null,"Total net all other lines limits exposed - not modelled",{"$f":"Import!M11790","v":0}]
[null,null,null,"Total gross premium without an occurrence or aggregate limit",{"$f":"Import!M11780","v":0},null,null,null,"Total net premium without an occurrence or aggregate limit",{"$f":"Import!M11791","v":0}]
[null,null,null,"Total gross premium with non determinable Total Insured Value (TIV):",{"$f":"Import!M11781","v":0},null,null,null,"Total net premium with non-determinable TIV:",{"$f":"Import!M11792","v":0}]
[]
[null,null,"2. Significant sources of catastrophe risk and associated loss included in the EP Curves:"]
[null,null,null,"Allocated loss adjustment expense",{"$f":"IF(+'Schedule X(a)'!E31=\"\",\"\",+'Schedule X(a)'!E31)","v":"Select Yes/No"},null,null,{"$f":"IF(E33=\"No\",\"If no, why not:\",\"\")","v":""},{"$f":"IF(+'Schedule X(a)'!I31=\"\",\"\",+'Schedule X(a)'!I31)","v":""}]
[null,null,null,"Property - buildings",{"$f":"IF(+'Schedule X(a)'!E32=\"\",\"\",+'Schedule X(a)'!E32)","v":"Select Yes/No"},null,null,"",{"$f":"IF(+'Schedule X(a)'!I32=\"\",\"\",+'Schedule X(a)'!I32)","v":""}]
[null,null,null,"Property - contents",{"$f":"IF(+'Schedule X(a)'!E33=\"\",\"\",+'Schedule X(a)'!E33)","v":"Select Yes/No"},null,null,"",{"$f":"IF(+'Schedule X(a)'!I33=\"\",\"\",+'Schedule X(a)'!I33)","v":""}]
[null,null,null,"Additional living expenses",{"$f":"IF(+'Schedule X(a)'!E34=\"\",\"\",+'Schedule X(a)'!E34)","v":"Select Yes/No"},null,null,"",{"$f":"IF(+'Schedule X(a)'!I34=\"\",\"\",+'Schedule X(a)'!I34)","v":""}]
[null,null,null,"Business interruption",null,null,null,"",{"$f":"IF(+'Schedule X(a)'!I35=\"\",\"\",+'Schedule X(a)'!I35)","v":""}]
[null,null,null,"Auto physical damage",{"$f":"IF(+'Schedule X(a)'!E36=\"\",\"\",+'Schedule X(a)'!E36)","v":"Select"},null,null,"",{"$f":"IF(+'Schedule X(a)'!I36=\"\",\"\",+'Schedule X(a)'!I36)","v":""}]
[null,null,null,"Worker's compensation",{"$f":"IF(+'Schedule X(a)'!E37=\"\",\"\",+'Schedule X(a)'!E37)","v":"Select"},null,null,"",{"$f":"IF(+'Schedule X(a)'!I37=\"\",\"\",+'Schedule X(a)'!I37)","v":""}]
[null,null,null,"Personal accident",{"$f":"IF(+'Schedule X(a)'!E38=\"\",\"\",+'Schedule X(a)'!E38)","v":"Select"},null,null,"",{"$f":"IF(+'Schedule X(a)'!I38=\"\",\"\",+'Schedule X(a)'!I38)","v":""}]
[null,null,null,"Life insurance",{"$f":"IF(+'Schedule X(a)'!E39=\"\",\"\",+'Schedule X(a)'!E39)","v":"Select"},null,null,"",{"$f":"IF(+'Schedule X(a)'!I39=\"\",\"\",+'Schedule X(a)'!I39)","v":""}]
[null,null,null,"Onshore Energy",{"$f":"IF(+'Schedule X(a)'!E40=\"\",\"\",+'Schedule X(a)'!E40)","v":"Select"},null,null,"",{"$f":"IF(+'Schedule X(a)'!I40=\"\",\"\",+'Schedule X(a)'!I40)","v":""}]
[null,null,null,"Offshore Energy",{"$f":"IF(+'Schedule X(a)'!E41=\"\",\"\",+'Schedule X(a)'!E41)","v":"Select"},null,null,"",{"$f":"IF(+'Schedule X(a)'!I41=\"\",\"\",+'Schedule X(a)'!I41)","v":""}]
[null,null,null,"Ocean marine",{"$f":"IF(+'Schedule X(a)'!E42=\"\",\"\",+'Schedule X(a)'!E42)","v":"Select"},null,null,"",{"$f":"IF(+'Schedule X(a)'!I42=\"\",\"\",+'Schedule X(a)'!I42)","v":""}]
[null,null,null,"Inland marine",{"$f":"IF(+'Schedule X(a)'!E43=\"\",\"\",+'Schedule X(a)'!E43)","v":"Select"},null,null,"",{"$f":"IF(+'Schedule X(a)'!I43=\"\",\"\",+'Schedule X(a)'!I43)","v":""}]
[null,null,null,"Flood",{"$f":"IF(+'Schedule X(a)'!E44=\"\",\"\",+'Schedule X(a)'!E44)","v":"Select"},null,null,"",{"$f":"IF(+'Schedule X(a)'!I44=\"\",\"\",+'Schedule X(a)'!I44)","v":""}]
[null,null,null,"Crop",{"$f":"IF(+'Schedule X(a)'!E45=\"\",\"\",+'Schedule X(a)'!E45)","v":"Select"},null,null,"",{"$f":"IF(+'Schedule X(a)'!I45=\"\",\"\",+'Schedule X(a)'!I45)","v":""}]
[null,null,null,"Other primary insurance",{"$f":"IF(+'Schedule X(a)'!E46=\"\",\"\",+'Schedule X(a)'!E46)","v":"Select"},null,null,"",{"$f":"IF(+'Schedule X(a)'!I46=\"\",\"\",+'Schedule X(a)'!I46)","v":""}]
[]
[null,null,"3. Assumed reinsurance information:"]
[null,null,null,"Proportional - quota share",{"$f":"IF(+'Schedule X(a)'!E49=\"\",\"\",+'Schedule X(a)'!E49)","v":"Select"},null,null,{"$f":"IF(E51=\"No\",\"If no, why not:\",\"\")","v":""},{"$f":"IF(+'Schedule X(a)'!I49=\"\",\"\",+'Schedule X(a)'!I49)","v":""}]
[null,null,null,"Proportional - surplus share",{"$f":"IF(+'Schedule X(a)'!E50=\"\",\"\",+'Schedule X(a)'!E50)","v":"Select"},null,null,{"$f":"IF(E52=\"No\",\"If no, why not:\",\"\")","v":""},{"$f":"IF(+'Schedule X(a)'!I50=\"\",\"\",+'Schedule X(a)'!I50)","v":""}]
[null,null,null,"Non-proportional - catastrophe",{"$f":"IF(+'Schedule X(a)'!E51=\"\",\"\",+'Schedule X(a)'!E51)","v":"Select"},null,null,{"$f":"IF(E53=\"No\",\"If no, why not:\",\"\")","v":""},{"$f":"IF(+'Schedule X(a)'!I51=\"\",\"\",+'Schedule X(a)'!I51)","v":""}]
[null,null,null,"Non-proportional - per risk",null,null,null,{"$f":"IF(E54=\"No\",\"If no, why not:\",\"\")","v":""},{"$f":"IF(+'Schedule X(a)'!I52=\"\",\"\",+'Schedule X(a)'!I52)","v":""}]
[null,null,null,"Other reinsurance assumed",{"$f":"IF(+'Schedule X(a)'!E53=\"\",\"\",+'Schedule X(a)'!E53)","v":"Select"},null,null,{"$f":"IF(E55=\"No\",\"If no, why not:\",\"\")","v":""},{"$f":"IF(+'Schedule X(a)'!I53=\"\",\"\",+'Schedule X(a)'!I53)","v":""}]
[]
[null,null,"4. Pools and assessments information:"]
[null,null,null,"Voluntary pools and/or assessments",{"$f":"IF(+'Schedule X(a)'!E56=\"\",\"\",+'Schedule X(a)'!E56)","v":"Select"},null,null,{"$f":"IF(E58=\"No\",\"If no, why not:\",\"\")","v":""},{"$f":"IF(+'Schedule X(a)'!I56=\"\",\"\",+'Schedule X(a)'!I56)","v":""}]
[null,null,null,"Involuntary pools and/or assessments",{"$f":"IF(+'Schedule X(a)'!E57=\"\",\"\",+'Schedule X(a)'!E57)","v":"Select"},null,null,{"$f":"IF(E59=\"No\",\"If no, why not:\",\"\")","v":""},{"$f":"IF(+'Schedule X(a)'!I57=\"\",\"\",+'Schedule X(a)'!I57)","v":""}]
[]
[null,null,"5. Supplemental perils and model options:"]
[null,null,null,"Fire following",{"$f":"IF(+'Schedule X(a)'!E60=\"\",\"\",+'Schedule X(a)'!E60)","v":"Select"},null,null,{"$f":"IF(E62=\"No\",\"If no, why not:\",\"\")","v":""},{"$f":"IF(+'Schedule X(a)'!I60=\"\",\"\",+'Schedule X(a)'!I60)","v":""}]
[null,null,null,"Sprinkler leakage",{"$f":"IF(+'Schedule X(a)'!E61=\"\",\"\",+'Schedule X(a)'!E61)","v":"Select"},null,null,{"$f":"IF(E63=\"No\",\"If no, why not:\",\"\")","v":""},{"$f":"IF(+'Schedule X(a)'!I61=\"\",\"\",+'Schedule X(a)'!I61)","v":""}]
[null,null,null,"Storm surge",{"$f":"IF(+'Schedule X(a)'!E62=\"\",\"\",+'Schedule X(a)'!E62)","v":"Select"},null,null,{"$f":"IF(E64=\"No\",\"If no, why not:\",\"\")","v":""},{"$f":"IF(+'Schedule X(a)'!I62=\"\",\"\",+'Schedule X(a)'!I62)","v":""}]
[null,null,null,"Demand surge",{"$f":"IF(+'Schedule X(a)'!E63=\"\",\"\",+'Schedule X(a)'!E63)","v":"Select"},null,null,{"$f":"IF(E65=\"No\",\"If no, why not:\",\"\")","v":""},{"$f":"IF(+'Schedule X(a)'!I63=\"\",\"\",+'Schedule X(a)'!I63)","v":""}]
[null,null,null,"Secondary uncertainty",{"$f":"IF(+'Schedule X(a)'!E64=\"\",\"\",+'Schedule X(a)'!E64)","v":"Select"},null,null,{"$f":"IF(E66=\"No\",\"If no, why not:\",\"\")","v":""},{"$f":"IF(+'Schedule X(a)'!I64=\"\",\"\",+'Schedule X(a)'!I64)","v":""}]
[null,null,null,"Atlantic multi-decadal oscillation selection",{"$f":"IF(+'Schedule X(a)'!E65=\"\",\"\",+'Schedule X(a)'!E65)","v":"Select"},{"$f":"IF(+'Schedule X(a)'!F65=\"\",\"\",+'Schedule X(a)'!F65)","v":""},{"$f":"IF(+'Schedule X(a)'!G65=\"\",\"\",+'Schedule X(a)'!G65)","v":""},{"$f":"IF(E67=\"Long-term frequency\",\"If long-term frequency, why:\",\"\")","v":""},{"$f":"IF(+'Schedule X(a)'!I65=\"\",\"\",+'Schedule X(a)'!I65)","v":""}]
[]
[null,null,"6. Other adjustments information:"]
[null,null,null,"Adjustments for exposure data quality",{"$f":"IF(+'Schedule X(a)'!E68=\"\",\"\",+'Schedule X(a)'!E68)","v":"Select Yes/No"},null,null,{"$f":"IF(E70=\"No\",\"If no, why not:\",\"\")","v":""},{"$f":"IF(+'Schedule X(a)'!I68=\"\",\"\",+'Schedule X(a)'!I68)","v":""}]
[null,null,null,"Adjustments for insurance to value",{"$f":"IF(+'Schedule X(a)'!E69=\"\",\"\",+'Schedule X(a)'!E69)","v":"Select Yes/No"},null,null,"",{"$f":"IF(+'Schedule X(a)'!I69=\"\",\"\",+'Schedule X(a)'!I69)","v":""}]
[null,null,null,"Adjustments for exposure growth",{"$f":"IF(+'Schedule X(a)'!E70=\"\",\"\",+'Schedule X(a)'!E70)","v":"Select Yes/No"},null,null,"",{"$f":"IF(+'Schedule X(a)'!I70=\"\",\"\",+'Schedule X(a)'!I70)","v":""}]
[null,null,null,"Supplemental losses for non-modelled line of business",{"$f":"IF(+'Schedule X(a)'!E71=\"\",\"\",+'Schedule X(a)'!E71)","v":"Select Yes/No"},null,null,"",{"$f":"IF(+'Schedule X(a)'!I71=\"\",\"\",+'Schedule X(a)'!I71)","v":""}]
[null,null,null,"Adjustments for model deficiencies – severity",{"$f":"IF(+'Schedule X(a)'!E72=\"\",\"\",+'Schedule X(a)'!E72)","v":"Select"},null,null,"",{"$f":"IF(+'Schedule X(a)'!I72=\"\",\"\",+'Schedule X(a)'!I72)","v":""}]
[null,null,null,"Adjustments for model deficiencies - frequency",{"$f":"IF(+'Schedule X(a)'!E73=\"\",\"\",+'Schedule X(a)'!E73)","v":"Select"},null,null,"",{"$f":"IF(+'Schedule X(a)'!I73=\"\",\"\",+'Schedule X(a)'!I73)","v":""}]
[null,null,null,"Additional demand surge loadings",{"$f":"IF(+'Schedule X(a)'!E74=\"\",\"\",+'Schedule X(a)'!E74)","v":"Select Yes/No"},{"$f":"IF(+'Schedule X(a)'!F74=\"\",\"\",+'Schedule X(a)'!F74)","v":""},null,"",{"$f":"IF(+'Schedule X(a)'!I74=\"\",\"\",+'Schedule X(a)'!I74)","v":""}]
[null,null,null,"Other factors for prudence",{"$f":"IF(+'Schedule X(a)'!E75=\"\",\"\",+'Schedule X(a)'!E75)","v":"Select Yes/No"},null,null,"",{"$f":"IF(+'Schedule X(a)'!I75=\"\",\"\",+'Schedule X(a)'!I75)","v":""}]
[]
[null,null,null,null,null,"Average loading factor applied to ground up loss for all adjustments applied",{"$f":"IF(+'Schedule X(a)'!G77=\"\",\"\",+'Schedule X(a)'!G77)","v":0}]
[null,null,null,null,null,"Is this average loading factor determined analytically or estimated?",{"$f":"IF(+'Schedule X(a)'!G78=\"\",\"\",+'Schedule X(a)'!G78)","v":"Select"}]
[]
[null,null,null,null,null,"Which vendor catastrophe models (cat model) do you include in this modeling?",{"$f":"IF(+'Schedule X(a)'!G80=\"\",\"\",+'Schedule X(a)'!G80)","v":"Select Cat Model(s)"}]
[null,null,null,null,null,"Which version of the model or version of the region-peril models are used for each cat model as appropriate?",{"$f":"IF(+'Schedule X(a)'!G81=\"\",\"\",+'Schedule X(a)'!G81)","v":0}]
[]
[]
[]
[]
[]
[]
[]
[]
[]
[]
[]
[]
[]
[]
[]
[]
[]
[]
[]
[]
[]
[]
[]
[]
[]
[]
[]
[]
[]
[]
[]
[]
[]
[]
[]
[]
[]
[]
[]
[]
[]
[]
[]
[]
[]
[]
[]
[]
[]
[]
[]
[]
[]
[]
[]
[]
[]
[]
[]
[]
[]
[]
[]
[]
[]
[]
[]
[]
[]
[]
[]
[]
[]
[]
[]
[]
[]
[]
[]
[]
[]
[]
[]
[]
[]
[]
[]
[]
[]
[]
[]
[]
[]
[]
[]
[]
[]
[]
[]
[]
[null,null,null,null,"Which vendor catastrophe models do you include in this modeling:"]
[null,null,null,null,"AIR only"]
[null,null,null,null,"EQECAT only"]
[null,null,null,null,"RMS only"]
[null,null,null,null,"AIR and RMS"]
[null,null,null,null,"AIR and EQECAT"]
[null,null,null,null,"EQECAT and RMS"]
[null,null,null,null,"AIR, EQECAT and RMS"]

{"sheet":"Schedule X(c)","index":63,"n_rows":167,"n_cols":7,"rows_kept":167,"cut":false,"hidden":false,"merged":[[110,2,110,3],[111,2,111,3],[112,2,112,3],[113,2,113,3],[114,2,114,3],[109,2,109,3],[46,2,46,3],[47,2,47,3],[48,2,48,3],[65,2,65,3],[66,2,66,3],[67,2,67,3],[100,3,100,4],[88,2,88,3],[89,2,89,3],[90,2,90,3],[91,2,91,3],[43,2,43,3],[44,2,44,3],[45,2,45,3],[34,3,34,4],[92,2,92,3],[100,5,100,6],[56,3,56,4],[56,5,56,6],[78,3,78,4],[78,5,78,6],[68,2,68,3],[69,2,69,3],[70,2,70,3],[87,2,87,3],[34,5,34,6],[0,1,0,5],[12,3,12,4],[12,5,12,6],[4,2,4,6],[21,2,21,3],[22,2,22,3],[23,2,23,3],[24,2,24,3],[25,2,25,3],[26,2,26,3],[2,1,2,2]]}
[null,"CATASTROPHE RISK RETURN: EXCEEDANCE PROBABILITY  (EP) CURVE  FOR REGIONS-PERILS (TABLE 9B)",null,null,null,null,{"$f":"HYPERLINK(\"#'Index'!A1\",\"Return to Index\")","v":"Return to Index"}]
[null,{"$f":"'Company Information'!C7","v":"Enter Company Name"}]
[null,{"$f":"'Company Information'!C3+1","v":"2023-01-01"},null,null,null,null,"SCHEDULE X(c)"]
[]
[null,null,"Provide Exceedance Probability information on the following perils in the templates provided below."]
[]
[null,"a)","EP CURVE ATLANTIC BASIN HURRICANE"]
[]
[null,null,"Which model(s) is used for  EP Curve Atlantic basin hurricane",null,null,{"$f":"Import!M11794","v":"Select Cat Model(s)"}]
[null,null,"Indicate the model version",null,null,{"$f":"Import!M11795","v":0}]
[]
[null,null,"Exceedance probability information:"]
[null,null,null," Gross loss",null," Net loss"]
[null,null,"Loss Return period (years)","Gross per occurrence loss TVaR","Gross aggregate \nTVaR ","Net per occurrence loss TVaR","Net aggregate\nTVaR"]
[null,null,null," (US$M)"," (US$M)"," (US$M)"," (US$M)"]
[null,null,50,{"$f":"Import!M11796","v":0},{"$f":"Import!M11801","v":0},{"$f":"Import!M11806","v":0},{"$f":"Import!M11811","v":0}]
[null,null,100,{"$f":"Import!M11797","v":0},{"$f":"Import!M11802","v":0},{"$f":"Import!M11807","v":0},{"$f":"Import!M11812","v":0}]
[null,null,250,{"$f":"Import!M11798","v":0},{"$f":"Import!M11803","v":0},{"$f":"Import!M11808","v":0},{"$f":"Import!M11813","v":0}]
[null,null,500,{"$f":"Import!M11799","v":0},{"$f":"Import!M11804","v":0},{"$f":"Import!M11809","v":0},{"$f":"Import!M11814","v":0}]
[null,null,1000,{"$f":"Import!M11800","v":0},{"$f":"Import!M11805","v":0},{"$f":"Import!M11810","v":0},{"$f":"Import!M11815","v":0}]
[]
[null,null,"Exposure to Atlantic Basin Hurricane",null,"Gross","Net"]
[null,null,null,null," (US$M)"," (US$M)"]
[null,null,"Total statutory property catastrophe premium",null,{"$f":"Import!M11816","v":0},{"$f":"Import!M11820","v":0}]
[null,null,"Total all other statutory premium",null,{"$f":"Import!M11817","v":0},{"$f":"Import!M11821","v":0}]
[null,null,"Total statutory property catastrophe limits",null,{"$f":"Import!M11818","v":0},{"$f":"Import!M11822","v":0}]
[null,null,"Total all other statutory limits",null,{"$f":"Import!M11819","v":0},{"$f":"Import!M11823","v":0}]
[]
[null,"b)","EP CURVE NORTH AMERICAN EARTHQUAKE"]
[]
[null,null,"Which model(s) is used for  EP Curve North American earthquake",null,null,{"$f":"Import!M11824","v":"Select Cat Model(s)"}]
[null,null,"Indicate the model version",null,null,{"$f":"Import!M11825","v":0}]
[]
[null,null,"Exceedance probability information:"]
[null,null,null," Gross loss",null," Net loss"]
[null,null,"Loss Return period (years)","Gross per occurrence loss TVaR","Gross aggregate \nTVaR ","Net per occurrence loss TVaR","Net aggregate\nTVaR"]
[null,null,null," (US$M)"," (US$M)"," (US$M)"," (US$M)"]
[null,null,50,{"$f":"Import!M11826","v":0},{"$f":"Import!M11831","v":0},{"$f":"Import!M11836","v":0},{"$f":"Import!M11841","v":0}]
[null,null,100,{"$f":"Import!M11827","v":0},{"$f":"Import!M11832","v":0},{"$f":"Import!M11837","v":0},{"$f":"Import!M11842","v":0}]
[null,null,250,{"$f":"Import!M11828","v":0},{"$f":"Import!M11833","v":0},{"$f":"Import!M11838","v":0},{"$f":"Import!M11843","v":0}]
[null,null,500,{"$f":"Import!M11829","v":0},{"$f":"Import!M11834","v":0},{"$f":"Import!M11839","v":0},{"$f":"Import!M11844","v":0}]
[null,null,1000,{"$f":"Import!M11830","v":0},{"$f":"Import!M11835","v":0},{"$f":"Import!M11840","v":0},{"$f":"Import!M11845","v":0}]
[]
[null,null,"Exposure to North American Earthquake",null,"Gross","Net"]
[null,null,null,null," (US$M)"," (US$M)"]
[null,null,"Total statutory property catastrophe premium",null,{"$f":"Import!M11846","v":0},{"$f":"Import!M11850","v":0}]
[null,null,"Total all other statutory premium",null,{"$f":"Import!M11847","v":0},{"$f":"Import!M11851","v":0}]
[null,null,"Total statutory property catastrophe limits",null,{"$f":"Import!M11848","v":0},{"$f":"Import!M11852","v":0}]
[null,null,"Total all other statutory limits",null,{"$f":"Import!M11849","v":0},{"$f":"Import!M11853","v":0}]
[]
[null,"c)","EP CURVE EUROPEAN WINDSTORM"]
[]
[null,null,"Which model(s) is used for  EP Curve European windstorm",null,null,{"$f":"Import!M11854","v":"Select Cat Model(s)"}]
[null,null,"Indicate the model version",null,null,{"$f":"Import!M11855","v":0}]
[]
[null,null,"Exceedance probability information:"]
[null,null,null," Gross loss",null," Net loss"]
[null,null,"Loss Return period (years)","Gross per occurrence loss TVaR","Gross aggregate \nTVaR ","Net per occurrence loss TVaR","Net aggregate\nTVaR"]
[null,null,null," (US$M)"," (US$M)"," (US$M)"," (US$M)"]
[null,null,50,{"$f":"Import!M11856","v":0},{"$f":"Import!M11861","v":0},{"$f":"Import!M11866","v":0},{"$f":"Import!M11871","v":0}]
[null,null,100,{"$f":"Import!M11857","v":0},{"$f":"Import!M11862","v":0},{"$f":"Import!M11867","v":0},{"$f":"Import!M11872","v":0}]
[null,null,250,{"$f":"Import!M11858","v":0},{"$f":"Import!M11863","v":0},{"$f":"Import!M11868","v":0},{"$f":"Import!M11873","v":0}]
[null,null,500,{"$f":"Import!M11859","v":0},{"$f":"Import!M11864","v":0},{"$f":"Import!M11869","v":0},{"$f":"Import!M11874","v":0}]
[null,null,1000,{"$f":"Import!M11860","v":0},{"$f":"Import!M11865","v":0},{"$f":"Import!M11870","v":0},{"$f":"Import!M11875","v":0}]
[]
[null,null,"Exposure to European Windstorm",null,"Gross","Net"]
[null,null,null,null," (US$M)"," (US$M)"]
[null,null,"Total statutory property catastrophe premium",null,{"$f":"Import!M11876","v":0},{"$f":"Import!M11880","v":0}]
[null,null,"Total all other statutory premium",null,{"$f":"Import!M11877","v":0},{"$f":"Import!M11881","v":0}]
[null,null,"Total statutory property catastrophe limits",null,{"$f":"Import!M11878","v":0},{"$f":"Import!M11882","v":0}]
[null,null,"Total all other statutory limits",null,{"$f":"Import!M11879","v":0},{"$f":"Import!M11883","v":0}]
[]
[null,"d)","EP CURVE JAPANESE EARTH QUAKE"]
[]
[null,null,"Which model(s) is used for  EP Curve Japanese earthquake",null,null,{"$f":"Import!M11884","v":"Select Cat Model(s)"}]
[null,null,"Indicate the model version",null,null,{"$f":"Import!M11885","v":0}]
[]
[null,null,"Exceedance probability information:"]
[null,null,null," Gross loss",null," Net loss"]
[null,null,"Loss Return period (years)","Gross per occurrence loss TVaR","Gross aggregate \nTVaR ","Net per occurrence loss TVaR","Net aggregate\nTVaR"]
[null,null,null," (US$M)"," (US$M)"," (US$M)"," (US$M)"]
[null,null,50,{"$f":"Import!M11886","v":0},{"$f":"Import!M11891","v":0},{"$f":"Import!M11896","v":0},{"$f":"Import!M11901","v":0}]
[null,null,100,{"$f":"Import!M11887","v":0},{"$f":"Import!M11892","v":0},{"$f":"Import!M11897","v":0},{"$f":"Import!M11902","v":0}]
[null,null,250,{"$f":"Import!M11888","v":0},{"$f":"Import!M11893","v":0},{"$f":"Import!M11898","v":0},{"$f":"Import!M11903","v":0}]
[null,null,500,{"$f":"Import!M11889","v":0},{"$f":"Import!M11894","v":0},{"$f":"Import!M11899","v":0},{"$f":"Import!M11904","v":0}]
[null,null,1000,{"$f":"Import!M11890","v":0},{"$f":"Import!M11895","v":0},{"$f":"Import!M11900","v":0},{"$f":"Import!M11905","v":0}]
[]
[null,null,"Exposure to Japanese Earthquake",null,"Gross","Net"]
[null,null,null,null," (US$M)"," (US$M)"]
[null,null,"Total statutory property catastrophe premium",null,{"$f":"Import!M11906","v":0},{"$f":"Import!M11910","v":0}]
[null,null,"Total all other statutory premium",null,{"$f":"Import!M11907","v":0},{"$f":"Import!M11911","v":0}]
[null,null,"Total statutory property catastrophe limits",null,{"$f":"Import!M11908","v":0},{"$f":"Import!M11912","v":0}]
[null,null,"Total all other statutory limits",null,{"$f":"Import!M11909","v":0},{"$f":"Import!M11913","v":0}]
[]
[null,"e)","EP CURVE JAPANESE TYPHOON"]
[]
[null,null,"Which model(s) is used for  EP Curve Japanese typhoon ",null,null,{"$f":"Import!M11914","v":"Select Cat Model(s)"}]
[null,null,"Indicate the model version",null,null,{"$f":"Import!M11915","v":0}]
[]
[null,null,"Exceedance probability information:"]
[null,null,null," Gross loss",null," Net loss"]
[null,null,"Loss Return period (years)","Gross per occurrence loss TVaR","Gross aggregate \nTVaR ","Net per occurrence loss TVaR","Net aggregate\nTVaR"]
[null,null,null," (US$M)"," (US$M)"," (US$M)"," (US$M)"]
[null,null,50,{"$f":"Import!M11916","v":0},{"$f":"Import!M11921","v":0},{"$f":"Import!M11926","v":0},{"$f":"Import!M11931","v":0}]
[null,null,100,{"$f":"Import!M11917","v":0},{"$f":"Import!M11922","v":0},{"$f":"Import!M11927","v":0},{"$f":"Import!M11932","v":0}]
[null,null,250,{"$f":"Import!M11918","v":0},{"$f":"Import!M11923","v":0},{"$f":"Import!M11928","v":0},{"$f":"Import!M11933","v":0}]
[null,null,500,{"$f":"Import!M11919","v":0},{"$f":"Import!M11924","v":0},{"$f":"Import!M11929","v":0},{"$f":"Import!M11934","v":0}]
[null,null,1000,{"$f":"Import!M11920","v":0},{"$f":"Import!M11925","v":0},{"$f":"Import!M11930","v":0},{"$f":"Import!M11935","v":0}]
[]
[null,null,"Exposure to Japanese Typhoon",null,"Gross","Net"]
[null,null,null,null," (US$M)"," (US$M)"]
[null,null,"Total statutory property catastrophe premium",null,{"$f":"Import!M11936","v":0},{"$f":"Import!M11940","v":0}]
[null,null,"Total all other statutory premium",null,{"$f":"Import!M11937","v":0},{"$f":"Import!M11941","v":0}]
[null,null,"Total statutory property catastrophe limits",null,{"$f":"Import!M11938","v":0},{"$f":"Import!M11942","v":0}]
[null,null,"Total all other statutory limits",null,{"$f":"Import!M11939","v":0},{"$f":"Import!M11943","v":0}]
[]
[]
[]
[]
[]
[]
[null,null,null,"Select Cat Model(s)"]
[null,null,null,"AIR only"]
[null,null,null,"EQECAT only"]
[null,null,null,"RMS only"]
[null,null,null,"AIR and RMS"]
[null,null,null,"AIR and EQECAT"]
[null,null,null,"EQECAT and RMS"]
[null,null,null,"AIR, EQECAT and RMS"]
[null,null,null,"Other"]
[]
[]
[]
[]
[]
[]
[]
[]
[]
[]
[]
[]
[]
[]
[]
[]
[]
[]
[]
[]
[]
[]
[]
[]
[]
[]
[]
[]
[]
[null,null,null,"Which vendor catastrophe models do you include in this modeling:"]
[null,null,null,"AIR only"]
[null,null,null,"EQECAT only"]
[null,null,null,"RMS only"]
[null,null,null,"AIR and RMS"]
[null,null,null,"AIR and EQECAT"]
[null,null,null,"EQECAT and RMS"]
[null,null,null,"AIR, EQECAT and RMS"]

{"sheet":"Schedule X(d)","index":64,"n_rows":48,"n_cols":8,"rows_kept":48,"cut":false,"hidden":false,"merged":[[0,0,0,6],[4,1,4,7],[2,0,2,1]]}
["CATASTROPHE RISK RETURN: REGION-PERIL EXPOSURE TO ZONES AND STATUTORY LINES OF BUSINESS (TABLE 9C)",null,null,null,null,null,null,{"$f":"HYPERLINK(\"#'Index'!A1\",\"Return to Index\")","v":"Return to Index"}]
[{"$f":"'Company Information'!C7","v":"Enter Company Name"}]
[{"$f":"'Company Information'!C3+1","v":"2023-01-01"},null,null,null,null,null,null,"SCHEDULE X(d)"]
[]
[null,{"$f":"IF('Company Information'!F11=\"IIGB\",\"Which statutory zones (paragraph V(n) of the Prudential Standard Rules) and statutory lines of business (Schedule IV) is the insurer exposed to with regards to the region-perils? \n(select all that apply)\",\"Which statutory zones (paragraph V(r) of the Prudential Standard Rules) and statutory lines of business (Schedule IV) is the insurer exposed to with regards to the region-perils? \n(select all that apply)\")","v":"Which statutory zones (paragraph V(n) of the Prudential Standard Rules) and statutory lines of business (Schedule IV) is the insurer exposed to with regards to the region-perils? \n(select all that apply)"}]
[]
[{"$f":"IF('Company Information'!F11=\"IIGB\",\"a)  Exposure to statutory zones (requirement of paragraph V(n) of the Prudential Standard Rules)\",\"a)  Exposure to statutory zones (requirement of paragraph V(r) of the Prudential Standards Rules)\")","v":"a)  Exposure to statutory zones (requirement of paragraph V(n) of the Prudential Standard Rules)"}]
[null,null,"EP Curve Atlantic Basin Hurricane","EP Curve North American Earthquake","EP Curve European Windstorm","EP Curve Japanese Earthquake","EP Curve Japanese Typhoon","EP Curve All Other Perils"]
[null,"Zone 1",{"$f":"Import!M11945","v":"Select Yes/No"},{"$f":"Import!M11958","v":"Select Yes/No"},{"$f":"Import!M11971","v":"Select Yes/No"},{"$f":"Import!M11984","v":"Select Yes/No"},{"$f":"Import!M11997","v":"Select Yes/No"},{"$f":"Import!M12010","v":"Select Yes/No"}]
[null,"Zone 2",{"$f":"Import!M11946","v":"Select Yes/No"},{"$f":"Import!M11959","v":"Select Yes/No"},{"$f":"Import!M11972","v":"Select Yes/No"},{"$f":"Import!M11985","v":"Select Yes/No"},{"$f":"Import!M11998","v":"Select Yes/No"},{"$f":"Import!M12011","v":"Select Yes/No"}]
[null,"Zone 3",{"$f":"Import!M11947","v":"Select Yes/No"},{"$f":"Import!M11960","v":"Select Yes/No"},{"$f":"Import!M11973","v":"Select Yes/No"},{"$f":"Import!M11986","v":"Select Yes/No"},{"$f":"Import!M11999","v":"Select Yes/No"},{"$f":"Import!M12012","v":"Select Yes/No"}]
[null,"Zone 4",{"$f":"Import!M11948","v":"Select Yes/No"},{"$f":"Import!M11961","v":"Select Yes/No"},{"$f":"Import!M11974","v":"Select Yes/No"},{"$f":"Import!M11987","v":"Select Yes/No"},{"$f":"Import!M12000","v":"Select Yes/No"},{"$f":"Import!M12013","v":"Select Yes/No"}]
[null,"Zone 5",{"$f":"Import!M11949","v":"Select Yes/No"},{"$f":"Import!M11962","v":"Select Yes/No"},{"$f":"Import!M11975","v":"Select Yes/No"},{"$f":"Import!M11988","v":"Select Yes/No"},{"$f":"Import!M12001","v":"Select Yes/No"},{"$f":"Import!M12014","v":"Select Yes/No"}]
[null,"Zone 6",{"$f":"Import!M11950","v":"Select Yes/No"},{"$f":"Import!M11963","v":"Select Yes/No"},{"$f":"Import!M11976","v":"Select Yes/No"},{"$f":"Import!M11989","v":"Select Yes/No"},{"$f":"Import!M12002","v":"Select Yes/No"},{"$f":"Import!M12015","v":"Select Yes/No"}]
[null,"Zone 7",{"$f":"Import!M11951","v":"Select Yes/No"},{"$f":"Import!M11964","v":"Select Yes/No"},{"$f":"Import!M11977","v":"Select Yes/No"},{"$f":"Import!M11990","v":"Select Yes/No"},{"$f":"Import!M12003","v":"Select Yes/No"},{"$f":"Import!M12016","v":"Select Yes/No"}]
[null,"Zone 8",{"$f":"Import!M11952","v":"Select Yes/No"},{"$f":"Import!M11965","v":"Select Yes/No"},{"$f":"Import!M11978","v":"Select Yes/No"},{"$f":"Import!M11991","v":"Select Yes/No"},{"$f":"Import!M12004","v":"Select Yes/No"},{"$f":"Import!M12017","v":"Select Yes/No"}]
[null,"Zone 9",{"$f":"Import!M11953","v":"Select Yes/No"},{"$f":"Import!M11966","v":"Select Yes/No"},{"$f":"Import!M11979","v":"Select Yes/No"},{"$f":"Import!M11992","v":"Select Yes/No"},{"$f":"Import!M12005","v":"Select Yes/No"},{"$f":"Import!M12018","v":"Select Yes/No"}]
[null,"Zone 10",{"$f":"Import!M11954","v":"Select Yes/No"},{"$f":"Import!M11967","v":"Select Yes/No"},{"$f":"Import!M11980","v":"Select Yes/No"},{"$f":"Import!M11993","v":"Select Yes/No"},{"$f":"Import!M12006","v":"Select Yes/No"},{"$f":"Import!M12019","v":"Select Yes/No"}]
[null,"Zone 11",{"$f":"Import!M11955","v":"Select Yes/No"},{"$f":"Import!M11968","v":"Select Yes/No"},{"$f":"Import!M11981","v":"Select Yes/No"},{"$f":"Import!M11994","v":"Select Yes/No"},{"$f":"Import!M12007","v":"Select Yes/No"},{"$f":"Import!M12020","v":"Select Yes/No"}]
[null,"Zone 12",{"$f":"Import!M11956","v":"Select Yes/No"},{"$f":"Import!M11969","v":"Select Yes/No"},{"$f":"Import!M11982","v":"Select Yes/No"},{"$f":"Import!M11995","v":"Select Yes/No"},{"$f":"Import!M12008","v":"Select Yes/No"},{"$f":"Import!M12021","v":"Select Yes/No"}]
[null,"Zone 13",{"$f":"Import!M11957","v":"Select Yes/No"},{"$f":"Import!M11970","v":"Select Yes/No"},{"$f":"Import!M11983","v":"Select Yes/No"},{"$f":"Import!M11996","v":"Select Yes/No"},{"$f":"Import!M12009","v":"Select Yes/No"},{"$f":"Import!M12022","v":"Select Yes/No"}]
[]
["b) Exposure to statutory lines of business (Schedule IV)"]
[null,null,"EP Curve Atlantic Basin Hurricane","EP Curve North American Earthquake","EP Curve European Windstorm","EP Curve Japanese Earthquake","EP Curve Japanese Typhoon","EP Curve - All Other Perils"]
[null,"Line 1",{"$f":"Import!M12023","v":"Select Yes/No"},{"$f":"Import!M12047","v":"Select Yes/No"},{"$f":"Import!M12071","v":"Select Yes/No"},{"$f":"Import!M12095","v":"Select Yes/No"},{"$f":"Import!M12119","v":"Select Yes/No"},{"$f":"Import!M12143","v":"Select Yes/No"}]
[null,"Line 2",{"$f":"Import!M12024","v":"Select Yes/No"},{"$f":"Import!M12048","v":"Select Yes/No"},{"$f":"Import!M12072","v":"Select Yes/No"},{"$f":"Import!M12096","v":"Select Yes/No"},{"$f":"Import!M12120","v":"Select Yes/No"},{"$f":"Import!M12144","v":"Select Yes/No"}]
[null,"Line 3",{"$f":"Import!M12025","v":"Select Yes/No"},{"$f":"Import!M12049","v":"Select Yes/No"},{"$f":"Import!M12073","v":"Select Yes/No"},{"$f":"Import!M12097","v":"Select Yes/No"},{"$f":"Import!M12121","v":"Select Yes/No"},{"$f":"Import!M12145","v":"Select Yes/No"}]
[null,"Line 4",{"$f":"Import!M12026","v":"Select Yes/No"},{"$f":"Import!M12050","v":"Select Yes/No"},{"$f":"Import!M12074","v":"Select Yes/No"},{"$f":"Import!M12098","v":"Select Yes/No"},{"$f":"Import!M12122","v":"Select Yes/No"},{"$f":"Import!M12146","v":"Select Yes/No"}]
[null,"Line 5",{"$f":"Import!M12027","v":"Select Yes/No"},{"$f":"Import!M12051","v":"Select Yes/No"},{"$f":"Import!M12075","v":"Select Yes/No"},{"$f":"Import!M12099","v":"Select Yes/No"},{"$f":"Import!M12123","v":"Select Yes/No"},{"$f":"Import!M12147","v":"Select Yes/No"}]
[null,"Line 6",{"$f":"Import!M12028","v":"Select Yes/No"},{"$f":"Import!M12052","v":"Select Yes/No"},{"$f":"Import!M12076","v":"Select Yes/No"},{"$f":"Import!M12100","v":"Select Yes/No"},{"$f":"Import!M12124","v":"Select Yes/No"},{"$f":"Import!M12148","v":"Select Yes/No"}]
[null,"Line 7",{"$f":"Import!M12029","v":"Select Yes/No"},{"$f":"Import!M12053","v":"Select Yes/No"},{"$f":"Import!M12077","v":"Select Yes/No"},{"$f":"Import!M12101","v":"Select Yes/No"},{"$f":"Import!M12125","v":"Select Yes/No"},{"$f":"Import!M12149","v":"Select Yes/No"}]
[null,"Line 8",{"$f":"Import!M12030","v":"Select Yes/No"},{"$f":"Import!M12054","v":"Select Yes/No"},{"$f":"Import!M12078","v":"Select Yes/No"},{"$f":"Import!M12102","v":"Select Yes/No"},{"$f":"Import!M12126","v":"Select Yes/No"},{"$f":"Import!M12150","v":"Select Yes/No"}]
[null,"Line 9",{"$f":"Import!M12031","v":"Select Yes/No"},{"$f":"Import!M12055","v":"Select Yes/No"},{"$f":"Import!M12079","v":"Select Yes/No"},{"$f":"Import!M12103","v":"Select Yes/No"},{"$f":"Import!M12127","v":"Select Yes/No"},{"$f":"Import!M12151","v":"Select Yes/No"}]
[null,"Line 10",{"$f":"Import!M12032","v":"Select Yes/No"},{"$f":"Import!M12056","v":"Select Yes/No"},{"$f":"Import!M12080","v":"Select Yes/No"},{"$f":"Import!M12104","v":"Select Yes/No"},{"$f":"Import!M12128","v":"Select Yes/No"},{"$f":"Import!M12152","v":"Select Yes/No"}]
[null,"Line 11",{"$f":"Import!M12033","v":"Select Yes/No"},{"$f":"Import!M12057","v":"Select Yes/No"},{"$f":"Import!M12081","v":"Select Yes/No"},{"$f":"Import!M12105","v":"Select Yes/No"},{"$f":"Import!M12129","v":"Select Yes/No"},{"$f":"Import!M12153","v":"Select Yes/No"}]
[null,"Line 12",{"$f":"Import!M12034","v":"Select Yes/No"},{"$f":"Import!M12058","v":"Select Yes/No"},{"$f":"Import!M12082","v":"Select Yes/No"},{"$f":"Import!M12106","v":"Select Yes/No"},{"$f":"Import!M12130","v":"Select Yes/No"},{"$f":"Import!M12154","v":"Select Yes/No"}]
[null,"Line 13",{"$f":"Import!M12035","v":"Select Yes/No"},{"$f":"Import!M12059","v":"Select Yes/No"},{"$f":"Import!M12083","v":"Select Yes/No"},{"$f":"Import!M12107","v":"Select Yes/No"},{"$f":"Import!M12131","v":"Select Yes/No"},{"$f":"Import!M12155","v":"Select Yes/No"}]
[null,"Line 14",{"$f":"Import!M12036","v":"Select Yes/No"},{"$f":"Import!M12060","v":"Select Yes/No"},{"$f":"Import!M12084","v":"Select Yes/No"},{"$f":"Import!M12108","v":"Select Yes/No"},{"$f":"Import!M12132","v":"Select Yes/No"},{"$f":"Import!M12156","v":"Select Yes/No"}]
[null,"Line 15",{"$f":"Import!M12037","v":"Select Yes/No"},{"$f":"Import!M12061","v":"Select Yes/No"},{"$f":"Import!M12085","v":"Select Yes/No"},{"$f":"Import!M12109","v":"Select Yes/No"},{"$f":"Import!M12133","v":"Select Yes/No"},{"$f":"Import!M12157","v":"Select Yes/No"}]
[null,"Line 16",{"$f":"Import!M12038","v":"Select Yes/No"},{"$f":"Import!M12062","v":"Select Yes/No"},{"$f":"Import!M12086","v":"Select Yes/No"},{"$f":"Import!M12110","v":"Select Yes/No"},{"$f":"Import!M12134","v":"Select Yes/No"},{"$f":"Import!M12158","v":"Select Yes/No"}]
[null,"Line 17",{"$f":"Import!M12039","v":"Select Yes/No"},{"$f":"Import!M12063","v":"Select Yes/No"},{"$f":"Import!M12087","v":"Select Yes/No"},{"$f":"Import!M12111","v":"Select Yes/No"},{"$f":"Import!M12135","v":"Select Yes/No"},{"$f":"Import!M12159","v":"Select Yes/No"}]
[null,"Line 18",{"$f":"Import!M12040","v":"Select Yes/No"},{"$f":"Import!M12064","v":"Select Yes/No"},{"$f":"Import!M12088","v":"Select Yes/No"},{"$f":"Import!M12112","v":"Select Yes/No"},{"$f":"Import!M12136","v":"Select Yes/No"},{"$f":"Import!M12160","v":"Select Yes/No"}]
[null,"Line 19",{"$f":"Import!M12041","v":"Select Yes/No"},{"$f":"Import!M12065","v":"Select Yes/No"},{"$f":"Import!M12089","v":"Select Yes/No"},{"$f":"Import!M12113","v":"Select Yes/No"},{"$f":"Import!M12137","v":"Select Yes/No"},{"$f":"Import!M12161","v":"Select Yes/No"}]
[null,"Line 20",{"$f":"Import!M12042","v":"Select Yes/No"},{"$f":"Import!M12066","v":"Select Yes/No"},{"$f":"Import!M12090","v":"Select Yes/No"},{"$f":"Import!M12114","v":"Select Yes/No"},{"$f":"Import!M12138","v":"Select Yes/No"},{"$f":"Import!M12162","v":"Select Yes/No"}]
[null,"Line 21",{"$f":"Import!M12043","v":"Select Yes/No"},{"$f":"Import!M12067","v":"Select Yes/No"},{"$f":"Import!M12091","v":"Select Yes/No"},{"$f":"Import!M12115","v":"Select Yes/No"},{"$f":"Import!M12139","v":"Select Yes/No"},{"$f":"Import!M12163","v":"Select Yes/No"}]
[null,"Line 22",{"$f":"Import!M12044","v":"Select Yes/No"},{"$f":"Import!M12068","v":"Select Yes/No"},{"$f":"Import!M12092","v":"Select Yes/No"},{"$f":"Import!M12116","v":"Select Yes/No"},{"$f":"Import!M12140","v":"Select Yes/No"},{"$f":"Import!M12164","v":"Select Yes/No"}]
[null,"Line 23",{"$f":"Import!M12045","v":"Select Yes/No"},{"$f":"Import!M12069","v":"Select Yes/No"},{"$f":"Import!M12093","v":"Select Yes/No"},{"$f":"Import!M12117","v":"Select Yes/No"},{"$f":"Import!M12141","v":"Select Yes/No"},{"$f":"Import!M12165","v":"Select Yes/No"}]
[null,"Line 24",{"$f":"Import!M12046","v":"Select Yes/No"},{"$f":"Import!M12070","v":"Select Yes/No"},{"$f":"Import!M12094","v":"Select Yes/No"},{"$f":"Import!M12118","v":"Select Yes/No"},{"$f":"Import!M12142","v":"Select Yes/No"},{"$f":"Import!M12166","v":"Select Yes/No"}]

{"sheet":"Schedule X(e)","index":65,"n_rows":160,"n_cols":18,"rows_kept":160,"cut":false,"hidden":false,"merged":[[0,17,0,18],[38,2,39,18],[2,2,2,3],[42,2,42,18],[21,2,21,18],[24,2,25,18],[28,2,28,10],[31,2,31,6],[18,2,18,7],[34,2,34,6],[5,2,5,4],[8,2,9,18],[12,2,12,4],[2,17,2,18]]}
[null,null,"CATASTROPHE RISK RETURN: ACCUMULATIONS OVERVIEW (TABLE 9D)",null,null,null,null,null,null,null,null,null,null,null,null,null,null,{"$f":"HYPERLINK(\"#'Index'!A1\",\"Return to Index\")","v":"Return to Index"}]
[null,null,{"$f":"'Company Information'!C7","v":"Enter Company Name"}]
[null,null,{"$f":"'Company Information'!C3+1","v":"2023-01-01"},null,null,null,null,null,null,null,null,null,null,null,null,null,null,"SCHEDULE X(e) "]
[]
[null,1,{"$f":"+G87","v":"What frequency best describes the update process of accumulations?"}]
[null,null,{"$f":"Import!M12168","v":"Select"}]
[]
[null,2,"Are there any differences in the frequency of accumulations for various business units? ",null,null,null,null,null,null,null,null,{"$f":"Import!M12169","v":"Select Yes/No"}," If yes, briefly describe."]
[null,null,{"$f":"Import!M12170","v":0}]
[]
[]
[null,3,"Which vendor catastrophe models does the insurer licence?"]
[null,null,{"$f":"Import!M12171","v":"Select"}]
[]
[null,4,"Does the insurer incorporate internally developed stochastic catastrophe models within the accumulations that capture correlation across contracts or lines of business?"]
[null,null,{"$f":"Import!M12172","v":"Select Yes/No"}]
[]
[null,5,"Which methodology best describes the insurer's accumulation methodology?"]
[null,null,{"$f":"Import!M12173","v":"Select"}]
[]
[null,6,{"$f":"+G118","v":"Where more than one catastrophe model is used in the accumulations, which methodology best describes how multiple models are considered?"}]
[null,null,{"$f":"Import!M12174","v":"Select"}]
[]
[null,null,"If other selected, provide details:"]
[null,null,{"$f":"Import!M12175","v":0}]
[]
[]
[null,7,"Is the insurer's pricing and accumulations fully consistent?"]
[null,null,{"$f":"Import!M12176","v":"Select"}]
[]
[null,8,{"$f":"+G137","v":"What percentage of the total premium (other than insurance business) is written without occurrence limits?"}]
[null,null,{"$f":"Import!M12177","v":"Select"}]
[]
[null,9,"Does the insurer provide reinsurance to both affiliated companies and unaffiliated companies?"]
[null,null,{"$f":"Import!M12178","v":"Select"}]
[]
[null,10,"If there is more than 2.5% of premiums written without occurrence limits (other than insurance business) briefly describe this business, including information on "]
[null,null,"territorial exposure, potential for correlation of losses across contracts/policies and the assessment of maximum loss potential for these exposures."]
[null,null,{"$f":"Import!M12179","v":0}]
[]
[]
[null,11,{"$f":"+G148","v":"How are outwards reinsurance protections considered in accumulation calculations?"}]
[null,null,{"$f":"Import!M12180","v":"Select"}]
[]
[]
[]
[]
[]
[]
[]
[]
[]
[]
[]
[]
[]
[]
[]
[]
[]
[]
[]
[]
[]
[]
[]
[]
[]
[]
[]
[]
[]
[]
[]
[]
[]
[]
[]
[]
[]
[]
[]
[]
[]
[]
[]
[null,null,null,null,null,null,"What frequency best describes the update process of accumulations?",null,null,null,null,null,null,null,"Notes"]
[null,null,null,null,null,null,"Select",null,null,null,null,null,null,null,"Guidance if there is a different frequency of updates for insurance and reinsurance or other"]
[null,null,null,null,null,null,"Ad-hoc"]
[null,null,null,null,null,null,"Annual"]
[null,null,null,null,null,null,"Semi-annual"]
[null,null,null,null,null,null,"Quarterly"]
[null,null,null,null,null,null,"Monthly"]
[null,null,null,null,null,null,"Weekly"]
[null,null,null,null,null,null,"Daily"]
[null,null,null,null,null,null,"Real time"]
[]
[null,null,null,null,null,null,"Which vendor catastrophe models do the members of the insurance group licence?"]
[null,null,null,null,null,null,"Select"]
[null,null,null,null,null,null,"AIR only"]
[null,null,null,null,null,null,"EQECAT only"]
[null,null,null,null,null,null,"RMS only"]
[null,null,null,null,null,null,"AIR and RMS"]
[null,null,null,null,null,null,"AIR and EQECAT"]
[null,null,null,null,null,null,"EQECAT and RMS"]
[null,null,null,null,null,null,"AIR, EQECAT and RMS"]
[]
[null,null,null,null,null,null,"Does the insurance group incorporate internally developed stochastic catastrophe models within the accumulations that capture correlation across contracts or lines of business?"]
[]
[]
[null,null,null,null,null,null,"Which methodology best describes the insurance group's accumulation methodology?",null,null,null,null,null,null,null,"Notes"]
[null,null,null,null,null,null,"Select",null,null,null,null,null,null,null,"Define catastrophe model as AIR, RMS, EQEcatastrophe and other, not the region-peril models"]
[null,null,null,null,null,null,"One catastrophe model is used in the accumulations"]
[null,null,null,null,null,null,"Two catastrophe models are used in the accumulations"]
[null,null,null,null,null,null,"Three catastrophe models are used in the accumulations"]
[null,null,null,null,null,null,"More than three catastrophe models are used in the accumulations"]
[]
[null,null,null,null,null,null,"Where more than one catastrophe model is used in the accumulations, which methodology best describes how multiple models are considered?"]
[null,null,null,null,null,null,"Select"]
[null,null,null,null,null,null,"A full portfolio is kept in all models"]
[null,null,null,null,null,null,"A full portfolio is kept in all models and a blended portfolio is kept where underwriters determine on a deal by deal basis the proportions of each model included in the blend."]
[null,null,null,null,null,null,"A full portfolio is kept in all models and a blended portfolio is kept where management determine the proportion of each model included in the blend."]
[null,null,null,null,null,null,"A full portfolio is kept in all models and a blended portfolio is kept where management determine the proportion of each model included in the blend specific by region-peril."]
[null,null,null,null,null,null,"Only a blended portfolio is kept where underwriters determine the proportion of each model included in the blend on a deal by deal basis."]
[null,null,null,null,null,null,"Only a blended portfolio is kept where management determine the proportion of each model included in the blend."]
[null,null,null,null,null,null,"Only a blended portfolio is kept where management determine the proportion of each model included in the blend specific by region-peril."]
[null,null,null,null,null,null,"Other"]
[null,null,null,null,null,null,"Not applicable"]
[]
[null,null,null,null,null,null,"Are the insurance group's pricing and accumulations fully consistent?"]
[null,null,null,null,null,null,"Select"]
[null,null,null,null,null,null,"Yes - for all forms of exposure where there is the potential for catastrophe loss"]
[null,null,null,null,null,null,"Yes - though only where data and/or vendor catastrophe models are available to run a catastrophe model"]
[null,null,null,null,null,null,"No - not all catastrophe exposure that is modeled for pricing purposes are included in accumulations"]
[null,null,null,null,null,null,"No - there is a difference in the pricing and accumulation methodology"]
[]
[null,null,null,null,null,null,"What percentage of the total premium (other than insurance business) is written without occurrence limits?"]
[null,null,null,null,null,null,"Select"]
[null,null,null,null,null,null,"None"]
[null,null,null,null,null,null,"Not applicable (only write insurance business)"]
[null,null,null,null,null,null,"0% to 2.49%"]
[null,null,null,null,null,null,"2.5% to 4.9%"]
[null,null,null,null,null,null,"5.0% to 9.9%"]
[null,null,null,null,null,null,"10.0% to 14.9%"]
[null,null,null,null,null,null,"15.0% to 19.9%"]
[null,null,null,null,null,null,"Greater than or equal to 20.0%"]
[]
[null,null,null,null,null,null,"How are outwards reinsurance protections considered in accumulation calculations?"]
[null,null,null,null,null,null,"Select"]
[null,null,null,null,null,null,"The company has minimal catastrophe exposure protection and as such gross is effectively net."]
[null,null,null,null,null,null,"They are not, the accumulations are calculated on a gross basis with reinsurance protections calculated approximately outside the system."]
[null,null,null,null,null,null,"They are not, the accumulations are calculated on a gross basis with reinsurance protections calculated explicitly outside the system."]
[null,null,null,null,null,null,"The accumulations are calculated on a gross basis with the effect of reinsurance protections calculated explicitly for some types of protection within the system."]
[null,null,null,null,null,null,"The accumulations are calculated on a gross basis with the effect of reinsurance protections calculated explicitly for each type of protection within the system."]
[]
[null,null,null,null,null,null,"Does the company provide reinsurance to both affiliated companies and unaffiliated companies?"]
[null,null,null,null,null,null,"Select"]
[null,null,null,null,null,null,"Affiliated companies only"]
[null,null,null,null,null,null,"Unaffiliated companies only"]
[null,null,null,null,null,null,"Both affiliated and unaffiliated companies"]

{"sheet":"Schedule X(f)","index":66,"n_rows":78,"n_cols":13,"rows_kept":78,"cut":false,"hidden":false,"merged":[[39,7,39,9],[35,2,35,12],[29,2,29,3],[6,10,6,12],[15,10,15,12],[6,4,6,6],[6,7,6,9],[15,4,15,6],[15,7,15,9],[39,10,39,12],[27,2,27,3],[2,1,2,3],[28,2,28,3],[73,2,73,12],[24,10,24,12],[77,2,77,12],[48,2,48,12],[52,2,52,12],[56,10,56,12],[66,2,67,12],[75,2,75,12],[56,4,56,6],[56,7,56,9],[24,4,24,6],[24,7,24,9],[39,4,39,6],[30,2,30,3]]}
[null,"CATASTROPHE RISK RETURN: DATA  ANALYSIS (TABLE 9E)",null,null,null,null,null,null,null,null,null,null,{"$f":"HYPERLINK(\"#'Index'!A1\",\"Return to Index\")","v":"Return to Index"}]
[null,{"$f":"'Company Information'!C7","v":"Enter Company Name"}]
[null,{"$f":"'Company Information'!C3+1","v":"2023-01-01"},null,null,null,null,null,null,null,null,null,null,"SCHEDULE X(f)"]
[]
[null,1,"For all contracts written by the insurer, provide splits of those that are:"]
[]
[null,null,null,null,"U.S. specific contracts - all exposures",null,null,"All other contracts - all exposures",null,null,"Total"]
[null,null,null,null,"Contract count","Gross limit provided ","Net limit provided ","Contract count","Gross limit provided ","Net limit provided ","Contract count","Gross limit provided ","Net limit provided "]
[null,null,null,null,null,"US$M","US$M",null,"US$M","US$M",null,"US$M","US$M"]
[null,null,null,"Modelable",{"$f":"Import!M12182","v":0},{"$f":"Import!M12185","v":0},{"$f":"Import!M12188","v":0},{"$f":"Import!M12191","v":0},{"$f":"Import!M12194","v":0},{"$f":"Import!M12197","v":0},{"$f":"H10+E10","v":0},0,0]
[null,null,null,"Not modelable",{"$f":"Import!M12183","v":0},{"$f":"Import!M12186","v":0},{"$f":"Import!M12189","v":0},{"$f":"Import!M12192","v":0},{"$f":"Import!M12195","v":0},{"$f":"Import!M12198","v":0},0,0,0]
[null,null,null,"Total",{"$f":"SUM(E10:E11)","v":0},0,0,0,0,0,0,{"$f":"I12+F12","v":0},0]
[]
[null,2,"For those contracts that are written by the insurer that may be modelled, provide splits of those that are:"]
[]
[null,null,null,null,{"$f":"+E7","v":"U.S. specific contracts - all exposures"},null,null,{"$f":"+H7","v":"All other contracts - all exposures"},null,null,"Total"]
[null,null,null,null,"Contract count","Gross limit provided ","Net limit provided ","Contract count","Gross limit provided ","Net limit provided ","Contract count","Gross limit provided ","Net limit provided "]
[null,null,null,null,null,"US$M","US$M",null,"US$M","US$M",null,"US$M","US$M"]
[null,null,null,"Modelled",{"$f":"Import!M12200","v":0},{"$f":"Import!M12203","v":0},{"$f":"Import!M12206","v":0},{"$f":"Import!M12209","v":0},{"$f":"Import!M12212","v":0},{"$f":"Import!M12215","v":0},{"$f":"H19+E19","v":0},0,{"$f":"J19+G19","v":0}]
[null,null,null,"Not modelled",{"$f":"Import!M12201","v":0},{"$f":"Import!M12204","v":0},{"$f":"Import!M12207","v":0},{"$f":"Import!M12210","v":0},{"$f":"Import!M12213","v":0},{"$f":"Import!M12216","v":0},0,0,{"$f":"J20+G20","v":0}]
[null,null,null,"Total",{"$f":"SUM(E19:E20)","v":0},0,0,0,0,0,0,0,0]
[]
[null,3,"For those contracts that are written by the insurer that are modelled, provide splits of those that are:"]
[]
[null,null,null,null,{"$f":"+E7","v":"U.S. specific contracts - all exposures"},null,null,{"$f":"+H7","v":"All other contracts - all exposures"},null,null,"Total"]
[null,null,null,null,"Contract count","Gross limit provided ","Net limit provided ","Contract count","Gross limit provided ","Net limit provided ","Contract count","Gross limit provided ","Net limit provided "]
[null,null,null,null,null,"US$M","US$M",null,"US$M","US$M",null,"US$M","US$M"]
[null,null,"Detailed exposure data",null,{"$f":"Import!M12218","v":0},{"$f":"Import!M12224","v":0},{"$f":"Import!M12230","v":0},{"$f":"Import!M12236","v":0},{"$f":"Import!M12242","v":0},{"$f":"Import!M12248","v":0},{"$f":"H28+E28","v":0},0,{"$f":"J28+G28","v":0}]
[null,null,"Aggregate exposure data",null,{"$f":"Import!M12219","v":0},{"$f":"Import!M12225","v":0},{"$f":"Import!M12231","v":0},{"$f":"Import!M12237","v":0},{"$f":"Import!M12243","v":0},{"$f":"Import!M12249","v":0},0,0,{"$f":"J29+G29","v":0}]
[null,null,"A proxy peer insurer is selected and losses are derived from this insurer",null,{"$f":"Import!M12220","v":0},{"$f":"Import!M12226","v":0},{"$f":"Import!M12232","v":0},{"$f":"Import!M12238","v":0},{"$f":"Import!M12244","v":0},{"$f":"Import!M12250","v":0},0,0,{"$f":"J30+G30","v":0}]
[null,null,"Derived from an industry loss curve utilising market share",null,{"$f":"Import!M12221","v":0},{"$f":"Import!M12227","v":0},{"$f":"Import!M12233","v":0},{"$f":"Import!M12239","v":0},{"$f":"Import!M12245","v":0},{"$f":"Import!M12251","v":0},0,0,{"$f":"J31+G31","v":0}]
[null,null,null,"Other",{"$f":"Import!M12222","v":0},{"$f":"Import!M12228","v":0},{"$f":"Import!M12234","v":0},{"$f":"Import!M12240","v":0},{"$f":"Import!M12246","v":0},{"$f":"Import!M12252","v":0},0,0,{"$f":"J32+G32","v":0}]
[null,null,null,"Total",{"$f":"SUM(E28:E32)","v":0},0,0,0,0,0,0,{"$f":"I33+F33","v":0},0]
[]
[null,null,"If other is selected, describe the methodology as appropriate:"]
[null,null,{"$f":"Import!M12254","v":0}]
[]
[null,4,"For those contracts that are written by the insurer that may be modelled (but are not modelled), provide splits of those that are: "]
[]
[null,null,null,null,{"$f":"+E7","v":"U.S. specific contracts - all exposures"},null,null,{"$f":"+H7","v":"All other contracts - all exposures"},null,null,"Total"]
[null,null,null,null,"Contract count","Gross limit provided ","Net limit provided ","Contract count","Gross limit provided ","Net limit provided ","Contract count","Gross limit provided ","Net limit provided "]
[null,null,null,null,null,"US$M","US$M",null,"US$M","US$M",null,"US$M","US$M"]
[null,null,null,"Data deficient",{"$f":"Import!M12255","v":0},{"$f":"Import!M12259","v":0},{"$f":"Import!M12263","v":0},{"$f":"Import!M12267","v":0},{"$f":"Import!M12271","v":0},{"$f":"Import!M12275","v":0},{"$f":"H43+E43","v":0},0,{"$f":"J43+G43","v":0}]
[null,null,null,"Model deficient",{"$f":"Import!M12256","v":0},{"$f":"Import!M12260","v":0},{"$f":"Import!M12264","v":0},{"$f":"Import!M12268","v":0},{"$f":"Import!M12272","v":0},{"$f":"Import!M12276","v":0},0,0,{"$f":"J44+G44","v":0}]
[null,null,null,"Other",{"$f":"Import!M12257","v":0},{"$f":"Import!M12261","v":0},{"$f":"Import!M12265","v":0},{"$f":"Import!M12269","v":0},{"$f":"Import!M12273","v":0},{"$f":"Import!M12277","v":0},0,0,{"$f":"J45+G45","v":0}]
[null,null,null,"Total",{"$f":"SUM(E43:E45)","v":0},0,0,0,0,0,0,{"$f":"I46+F46","v":0},0]
[]
[null,null,"If other is selected, describe the reasons for not modeling the contract(s):"]
[null,null,{"$f":"Import!M12279","v":0}]
[]
[null,5,"For contracts that are written by the insurer that may be modelled but are not modelled, describe what the insurer does from an accumulation perspective."]
[]
[null,null,{"$f":"Import!M12280","v":0}]
[]
[null,6,"For contracts that are written by the insurer that are unable to be modelled, provide splits of those that are:"]
[]
[null,null,null,null,{"$f":"+E7","v":"U.S. specific contracts - all exposures"},null,null,{"$f":"+H7","v":"All other contracts - all exposures"},null,null,"Total"]
[null,null,null,null,"Contract count","Gross limit provided ","Net limit provided ","Contract count","Gross limit provided ","Net limit provided ","Contract count","Gross limit provided ","Net limit provided "]
[null,null,null,null,null,"US$M","US$M",null,"US$M","US$M",null,"US$M","US$M"]
[null,null,null,"Data deficient",{"$f":"Import!M12281","v":0},{"$f":"Import!M12286","v":0},{"$f":"Import!M12291","v":0},{"$f":"Import!M12296","v":0},{"$f":"Import!M12301","v":0},{"$f":"Import!M12306","v":0},{"$f":"H60+E60","v":0},0,{"$f":"J60+G60","v":0}]
[null,null,null,"No catastrophe model exists",{"$f":"Import!M12282","v":0},{"$f":"Import!M12287","v":0},{"$f":"Import!M12292","v":0},{"$f":"Import!M12297","v":0},{"$f":"Import!M12302","v":0},{"$f":"Import!M12307","v":0},0,0,{"$f":"J61+G61","v":0}]
[null,null,null,"Model deficient",{"$f":"Import!M12283","v":0},{"$f":"Import!M12288","v":0},{"$f":"Import!M12293","v":0},{"$f":"Import!M12298","v":0},{"$f":"Import!M12303","v":0},{"$f":"Import!M12308","v":0},0,0,{"$f":"+J62+G62","v":0}]
[null,null,null,"Other",{"$f":"Import!M12284","v":0},{"$f":"Import!M12289","v":0},{"$f":"Import!M12294","v":0},{"$f":"Import!M12299","v":0},{"$f":"Import!M12304","v":0},{"$f":"Import!M12309","v":0},0,0,{"$f":"+J63+G63","v":0}]
[null,null,null,"Total",{"$f":"SUM(E60:E63)","v":0},0,0,0,0,0,0,{"$f":"I64+F64","v":0},0]
[]
[null,null,"If other is selected, describe the reasons for not modelling the contract(s):"]
[null,null,{"$f":"Import!M12311","v":0}]
[]
[]
[null,7,"What percentage of total net premiums written represents contracts with no limits?",null,null,null,null,null,{"$f":"Import!M12312","v":0}]
[]
[null,8,"For contracts that are written by the insurer that are not modellable, describe what the insurer does from an accumulation perspective."]
[]
[null,null,{"$f":"Import!M12313","v":0}]
[]
[null,9,"If there are contracts that are written by the insurer that have no occurrence limits or where TIV has not been included in the exposure in the above exhibits, describe how this exposure is included in the above data."]
[]
[null,null,{"$f":"Import!M12314","v":0}]

{"sheet":"Schedule X(g)","index":67,"n_rows":25,"n_cols":9,"rows_kept":25,"cut":false,"hidden":false,"merged":[[0,1,0,4],[0,7,0,8],[20,1,22,8],[24,2,24,8],[2,1,2,2],[6,3,6,4],[6,5,6,6],[6,7,6,8]]}
[null,"CATASTROPHE RISK RETURN: REINSURANCE DISCLOSURES (TABLE 9F)",null,null,null,null,null,{"$f":"HYPERLINK(\"#'Index'!A1\",\"Return to Index\")","v":"Return to Index"}]
[null,{"$f":"'Company Information'!C7","v":"Enter Company Name"}]
[null,{"$f":"'Company Information'!C3+1","v":"2023-01-01"},null,null,null,null,null,null,"SCHEDULE X(g)"]
[]
[null,null,"Reinsurance or Retro information:"]
[]
[null,null,null,"U.S. specific contracts",null,"Worldwide contracts",null,"All other contracts"]
[null,null,null,"Premium ","Occurrence limit provided ","Premium ","Occurrence limit provided ","Premium ","Occurrence limit provided "]
[null,null,null,"US$M","US$M","US$M","US$M","US$M","US$M"]
[null,null,"Insurance-linked securities protection",{"$f":"Import!M12316","v":0},{"$f":"Import!M12326","v":0},{"$f":"Import!M12336","v":0},{"$f":"Import!M12346","v":0},{"$f":"Import!M12356","v":0},{"$f":"Import!M12366","v":0}]
[null,null,"Industry loss warranty contracts",{"$f":"Import!M12317","v":0},{"$f":"Import!M12327","v":0},{"$f":"Import!M12337","v":0},{"$f":"Import!M12347","v":0},{"$f":"Import!M12357","v":0},{"$f":"Import!M12367","v":0}]
[null,null,"Other contracts and non-traditional methods of risk mitigation/assumption",{"$f":"Import!M12318","v":0},{"$f":"Import!M12328","v":0},{"$f":"Import!M12338","v":0},{"$f":"Import!M12348","v":0},{"$f":"Import!M12358","v":0},{"$f":"Import!M12368","v":0}]
[null,null,"Property catastrophe contracts",{"$f":"Import!M12319","v":0},{"$f":"Import!M12329","v":0},{"$f":"Import!M12339","v":0},{"$f":"Import!M12349","v":0},{"$f":"Import!M12359","v":0},{"$f":"Import!M12369","v":0}]
[null,null,"Catastrophe swaps",{"$f":"Import!M12320","v":0},{"$f":"Import!M12330","v":0},{"$f":"Import!M12340","v":0},{"$f":"Import!M12350","v":0},{"$f":"Import!M12360","v":0},{"$f":"Import!M12370","v":0}]
[null,null,"Property per risk contracts",{"$f":"Import!M12321","v":0},{"$f":"Import!M12331","v":0},{"$f":"Import!M12341","v":0},{"$f":"Import!M12351","v":0},{"$f":"Import!M12361","v":0},{"$f":"Import!M12371","v":0}]
[null,null,"Property retro contracts",{"$f":"Import!M12322","v":0},{"$f":"Import!M12332","v":0},{"$f":"Import!M12342","v":0},{"$f":"Import!M12352","v":0},{"$f":"Import!M12362","v":0},{"$f":"Import!M12372","v":0}]
[null,null,"Quota share contracts",{"$f":"Import!M12323","v":0},{"$f":"Import!M12333","v":0},{"$f":"Import!M12343","v":0},{"$f":"Import!M12353","v":0},{"$f":"Import!M12363","v":0},{"$f":"Import!M12373","v":0}]
[null,null,"Surplus share contracts",{"$f":"Import!M12324","v":0},{"$f":"Import!M12334","v":0},{"$f":"Import!M12344","v":0},{"$f":"Import!M12354","v":0},{"$f":"Import!M12364","v":0},{"$f":"Import!M12374","v":0}]
[null,null,"Total",{"$f":"SUM(D10:D18)","v":0},0,0,0,0,0]
[]
[null,"If there are reinsurance or retro contracts that are purchased by the insurer that have no occurrence or aggregate limits, provide details below for the total premiums ceded, description of the underlying lines of business covered, territorial coverage limitations and details of the natural, man-made and pandemic perils covered on aggregate basis."]
[]
[]
[]
[null,null,{"$f":"Import!M12376","v":0}]

{"sheet":"Schedule X(h)","index":68,"n_rows":33,"n_cols":11,"rows_kept":33,"cut":false,"hidden":false,"merged":[[8,1,17,1],[2,1,2,2],[23,1,32,1],[2,9,2,10]]}
[null,"CATASTROPHE RISK RETURN: INSURANCE TERROR EXPOSURE (TABLE 9G)",null,null,null,null,null,null,null,null,{"$f":"HYPERLINK(\"#'Index'!A1\",\"Return to Index\")","v":"Return to Index"}]
[null,{"$f":"'Company Information'!C7","v":"Enter Company Name"}]
[null,{"$f":"'Company Information'!C3+1","v":"2023-01-01"},null,null,null,null,null,null,null,"SCHEDULE X(h) "]
[]
[null,"CONVENTIONAL INSURANCE TERRORISM EXPOSURE - 150M DEFINED GEOGRAPHICAL RADIUS "]
[]
[null,null,null,"U.S. State / Province                  (if applicable)","Country","Direct terrorism property exposure","Total gross exposure ","TRIP or other terror pool recoverables if any ","Reinsurance recoveries if any","Total net exposure ","Target location (if known)"]
[null,null,null,null,null,"US$M","US$M","US$M","US$M","US$M"]
[null,"Conventional terrorism exposure",1,{"$f":"Import!M12378","v":0},{"$f":"Import!M12388","v":0},{"$f":"Import!M12398","v":0},{"$f":"Import!M12408","v":0},{"$f":"Import!M12418","v":0},{"$f":"Import!M12428","v":0},{"$f":"G9-H9-I9","v":0},{"$f":"Import!M12448","v":0}]
[null,null,{"$f":"C9+1","v":2},{"$f":"Import!M12379","v":0},{"$f":"Import!M12389","v":0},{"$f":"Import!M12399","v":0},{"$f":"Import!M12409","v":0},{"$f":"Import!M12419","v":0},{"$f":"Import!M12429","v":0},0,{"$f":"Import!M12449","v":0}]
[null,null,3,{"$f":"Import!M12380","v":0},{"$f":"Import!M12390","v":0},{"$f":"Import!M12400","v":0},{"$f":"Import!M12410","v":0},{"$f":"Import!M12420","v":0},{"$f":"Import!M12430","v":0},0,{"$f":"Import!M12450","v":0}]
[null,null,4,{"$f":"Import!M12381","v":0},{"$f":"Import!M12391","v":0},{"$f":"Import!M12401","v":0},{"$f":"Import!M12411","v":0},{"$f":"Import!M12421","v":0},{"$f":"Import!M12431","v":0},0,{"$f":"Import!M12451","v":0}]
[null,null,5,{"$f":"Import!M12382","v":0},{"$f":"Import!M12392","v":0},{"$f":"Import!M12402","v":0},{"$f":"Import!M12412","v":0},{"$f":"Import!M12422","v":0},{"$f":"Import!M12432","v":0},0,{"$f":"Import!M12452","v":0}]
[null,null,6,{"$f":"Import!M12383","v":0},{"$f":"Import!M12393","v":0},{"$f":"Import!M12403","v":0},{"$f":"Import!M12413","v":0},{"$f":"Import!M12423","v":0},{"$f":"Import!M12433","v":0},0,{"$f":"Import!M12453","v":0}]
[null,null,7,{"$f":"Import!M12384","v":0},{"$f":"Import!M12394","v":0},{"$f":"Import!M12404","v":0},{"$f":"Import!M12414","v":0},{"$f":"Import!M12424","v":0},{"$f":"Import!M12434","v":0},0,{"$f":"Import!M12454","v":0}]
[null,null,8,{"$f":"Import!M12385","v":0},{"$f":"Import!M12395","v":0},{"$f":"Import!M12405","v":0},{"$f":"Import!M12415","v":0},{"$f":"Import!M12425","v":0},{"$f":"Import!M12435","v":0},0,{"$f":"Import!M12455","v":0}]
[null,null,9,{"$f":"Import!M12386","v":0},{"$f":"Import!M12396","v":0},{"$f":"Import!M12406","v":0},{"$f":"Import!M12416","v":0},{"$f":"Import!M12426","v":0},{"$f":"Import!M12436","v":0},0,{"$f":"Import!M12456","v":0}]
[null,null,10,{"$f":"Import!M12387","v":0},{"$f":"Import!M12397","v":0},{"$f":"Import!M12407","v":0},{"$f":"Import!M12417","v":0},{"$f":"Import!M12427","v":0},{"$f":"Import!M12437","v":0},0,{"$f":"Import!M12457","v":0}]
[]
[null,"NBCR INSURANCE TERRORISM EXPOSURE - STATE/COUNTRY"]
[]
[null,null,null,"U.S. State / Province                  (if applicable)","Country","Direct terrorism property exposure","Total gross exposure ","TRIP or other sovereign terror pool recoverables if any","Reinsurance recoverable limits if any","Total net exposure "]
[null,null,null,null,null,"US$M","US$M","US$M","US$M","US$M"]
[null,"NBCR terrorism exposure",1,{"$f":"Import!M12458","v":0},{"$f":"Import!M12468","v":0},{"$f":"Import!M12478","v":0},{"$f":"Import!M12488","v":0},{"$f":"Import!M12498","v":0},{"$f":"Import!M12508","v":0},{"$f":"G24-H24-I24","v":0}]
[null,null,{"$f":"C24+1","v":2},{"$f":"Import!M12459","v":0},{"$f":"Import!M12469","v":0},{"$f":"Import!M12479","v":0},{"$f":"Import!M12489","v":0},{"$f":"Import!M12499","v":0},{"$f":"Import!M12509","v":0},{"$f":"G25-H25-I25","v":0}]
[null,null,3,{"$f":"Import!M12460","v":0},{"$f":"Import!M12470","v":0},{"$f":"Import!M12480","v":0},{"$f":"Import!M12490","v":0},{"$f":"Import!M12500","v":0},{"$f":"Import!M12510","v":0},0]
[null,null,4,{"$f":"Import!M12461","v":0},{"$f":"Import!M12471","v":0},{"$f":"Import!M12481","v":0},{"$f":"Import!M12491","v":0},{"$f":"Import!M12501","v":0},{"$f":"Import!M12511","v":0},0]
[null,null,5,{"$f":"Import!M12462","v":0},{"$f":"Import!M12472","v":0},{"$f":"Import!M12482","v":0},{"$f":"Import!M12492","v":0},{"$f":"Import!M12502","v":0},{"$f":"Import!M12512","v":0},0]
[null,null,6,{"$f":"Import!M12463","v":0},{"$f":"Import!M12473","v":0},{"$f":"Import!M12483","v":0},{"$f":"Import!M12493","v":0},{"$f":"Import!M12503","v":0},{"$f":"Import!M12513","v":0},0]
[null,null,7,{"$f":"Import!M12464","v":0},{"$f":"Import!M12474","v":0},{"$f":"Import!M12484","v":0},{"$f":"Import!M12494","v":0},{"$f":"Import!M12504","v":0},{"$f":"Import!M12514","v":0},0]
[null,null,8,{"$f":"Import!M12465","v":0},{"$f":"Import!M12475","v":0},{"$f":"Import!M12485","v":0},{"$f":"Import!M12495","v":0},{"$f":"Import!M12505","v":0},{"$f":"Import!M12515","v":0},0]
[null,null,9,{"$f":"Import!M12466","v":0},{"$f":"Import!M12476","v":0},{"$f":"Import!M12486","v":0},{"$f":"Import!M12496","v":0},{"$f":"Import!M12506","v":0},{"$f":"Import!M12516","v":0},0]
[null,null,10,{"$f":"Import!M12467","v":0},{"$f":"Import!M12477","v":0},{"$f":"Import!M12487","v":0},{"$f":"Import!M12497","v":0},{"$f":"Import!M12507","v":0},{"$f":"Import!M12517","v":0},0]

{"sheet":"Schedule X(i)","index":69,"n_rows":33,"n_cols":11,"rows_kept":33,"cut":false,"hidden":false,"merged":[[8,2,17,2],[23,2,32,2],[2,1,2,4]]}
[null,"CATASTROPHE RISK RETURN: REINSURANCE TERRORISM LIMITS (TABLE 9H) ",null,null,null,null,null,null,null,null,{"$f":"HYPERLINK(\"#'Index'!A1\",\"Return to Index\")","v":"Return to Index"}]
[null,{"$f":"'Company Information'!C7","v":"Enter Company Name"}]
[null,{"$f":"'Company Information'!C3+1","v":"2023-01-01"},null,null,null,null,null,null,null,null,"SCHEDULE X(i) "]
[]
[null,"CONVENTIONAL REINSURANCE TERRORISM EXPOSURE - 150M DEFINED GEOGRAPHICAL RADIUS "]
[]
[null,null,null,null,"U.S. State / Province                  (if applicable)","Country","Direct reinsurance limits exposed to terrorism","Total gross reinsurance limits exposed to terrorism ","TRIP or other terror pool recoverables if any ","Reinsurance or retro recoveries if any","Total net reinsurance limits exposed to terrorism "]
[null,null,null,null,null,null,"US$M","US$M","US$M","US$M","US$M"]
[null,null,"Conventional terrorism exposure",1,{"$f":"Import!M12529","v":0},{"$f":"Import!M12539","v":0},{"$f":"Import!M12549","v":0},{"$f":"Import!M12559","v":0},{"$f":"Import!M12569","v":0},{"$f":"Import!M12579","v":0},{"$f":"H9-I9-J9","v":0}]
[null,null,null,{"$f":"D9+1","v":2},{"$f":"Import!M12530","v":0},{"$f":"Import!M12540","v":0},{"$f":"Import!M12550","v":0},{"$f":"Import!M12560","v":0},{"$f":"Import!M12570","v":0},{"$f":"Import!M12580","v":0},0]
[null,null,null,3,{"$f":"Import!M12531","v":0},{"$f":"Import!M12541","v":0},{"$f":"Import!M12551","v":0},{"$f":"Import!M12561","v":0},{"$f":"Import!M12571","v":0},{"$f":"Import!M12581","v":0},0]
[null,null,null,4,{"$f":"Import!M12532","v":0},{"$f":"Import!M12542","v":0},{"$f":"Import!M12552","v":0},{"$f":"Import!M12562","v":0},{"$f":"Import!M12572","v":0},{"$f":"Import!M12582","v":0},0]
[null,null,null,5,{"$f":"Import!M12533","v":0},{"$f":"Import!M12543","v":0},{"$f":"Import!M12553","v":0},{"$f":"Import!M12563","v":0},{"$f":"Import!M12573","v":0},{"$f":"Import!M12583","v":0},0]
[null,null,null,6,{"$f":"Import!M12534","v":0},{"$f":"Import!M12544","v":0},{"$f":"Import!M12554","v":0},{"$f":"Import!M12564","v":0},{"$f":"Import!M12574","v":0},{"$f":"Import!M12584","v":0},0]
[null,null,null,7,{"$f":"Import!M12535","v":0},{"$f":"Import!M12545","v":0},{"$f":"Import!M12555","v":0},{"$f":"Import!M12565","v":0},{"$f":"Import!M12575","v":0},{"$f":"Import!M12585","v":0},0]
[null,null,null,8,{"$f":"Import!M12536","v":0},{"$f":"Import!M12546","v":0},{"$f":"Import!M12556","v":0},{"$f":"Import!M12566","v":0},{"$f":"Import!M12576","v":0},{"$f":"Import!M12586","v":0},0]
[null,null,null,9,{"$f":"Import!M12537","v":0},{"$f":"Import!M12547","v":0},{"$f":"Import!M12557","v":0},{"$f":"Import!M12567","v":0},{"$f":"Import!M12577","v":0},{"$f":"Import!M12587","v":0},0]
[null,null,null,10,{"$f":"Import!M12538","v":0},{"$f":"Import!M12548","v":0},{"$f":"Import!M12558","v":0},{"$f":"Import!M12568","v":0},{"$f":"Import!M12578","v":0},{"$f":"Import!M12588","v":0},0]
[]
[null,"NBCR REINSURANCE TERRORISM EXPOSURE - STATE/COUNTRY"]
[]
[null,null,null,null,"U.S. State / Province                  (if applicable)","Country","Direct reinsurance limits exposed to terrorism","Total gross reinsurance limits exposed to terrorism","TRIP or other terror pool recoverables if any ","Reinsurance or retro recoveries if any ","Total net reinsurance limits exposed to terrorism "]
[null,null,null,null,null,null,"US$M","US$M","US$M","US$M","US$M"]
[null,null,"NBCR terrorism exposure",1,{"$f":"Import!M12599","v":0},{"$f":"Import!M12609","v":0},{"$f":"Import!M12619","v":0},{"$f":"Import!M12629","v":0},{"$f":"Import!M12639","v":0},{"$f":"Import!M12649","v":0},{"$f":"H24-I24-J24","v":0}]
[null,null,null,{"$f":"D24+1","v":2},{"$f":"Import!M12600","v":0},{"$f":"Import!M12610","v":0},{"$f":"Import!M12620","v":0},{"$f":"Import!M12630","v":0},{"$f":"Import!M12640","v":0},{"$f":"Import!M12650","v":0},0]
[null,null,null,3,{"$f":"Import!M12601","v":0},{"$f":"Import!M12611","v":0},{"$f":"Import!M12621","v":0},{"$f":"Import!M12631","v":0},{"$f":"Import!M12641","v":0},{"$f":"Import!M12651","v":0},0]
[null,null,null,4,{"$f":"Import!M12602","v":0},{"$f":"Import!M12612","v":0},{"$f":"Import!M12622","v":0},{"$f":"Import!M12632","v":0},{"$f":"Import!M12642","v":0},{"$f":"Import!M12652","v":0},0]
[null,null,null,5,{"$f":"Import!M12603","v":0},{"$f":"Import!M12613","v":0},{"$f":"Import!M12623","v":0},{"$f":"Import!M12633","v":0},{"$f":"Import!M12643","v":0},{"$f":"Import!M12653","v":0},0]
[null,null,null,6,{"$f":"Import!M12604","v":0},{"$f":"Import!M12614","v":0},{"$f":"Import!M12624","v":0},{"$f":"Import!M12634","v":0},{"$f":"Import!M12644","v":0},{"$f":"Import!M12654","v":0},0]
[null,null,null,7,{"$f":"Import!M12605","v":0},{"$f":"Import!M12615","v":0},{"$f":"Import!M12625","v":0},{"$f":"Import!M12635","v":0},{"$f":"Import!M12645","v":0},{"$f":"Import!M12655","v":0},0]
[null,null,null,8,{"$f":"Import!M12606","v":0},{"$f":"Import!M12616","v":0},{"$f":"Import!M12626","v":0},{"$f":"Import!M12636","v":0},{"$f":"Import!M12646","v":0},{"$f":"Import!M12656","v":0},0]
[null,null,null,9,{"$f":"Import!M12607","v":0},{"$f":"Import!M12617","v":0},{"$f":"Import!M12627","v":0},{"$f":"Import!M12637","v":0},{"$f":"Import!M12647","v":0},{"$f":"Import!M12657","v":0},0]
[null,null,null,10,{"$f":"Import!M12608","v":0},{"$f":"Import!M12618","v":0},{"$f":"Import!M12628","v":0},{"$f":"Import!M12638","v":0},{"$f":"Import!M12648","v":0},{"$f":"Import!M12658","v":0},0]

{"sheet":"Schedule X(j)","index":70,"n_rows":19,"n_cols":5,"rows_kept":19,"cut":false,"hidden":false,"merged":[[0,1,0,3],[4,1,4,4]]}
[null,"CATASTROPHE RISK RETURN: ASSUMED EXCHANGE RATES  (TABLE 9I) ",null,null,{"$f":"HYPERLINK(\"#'Index'!A1\",\"Return to Index\")","v":"Return to Index"}]
[null,{"$f":"'Company Information'!C7","v":"Enter Company Name"}]
[null,{"$f":"'Company Information'!C3+1","v":"2023-01-01"},null,null,"SCHEDULE X(j) "]
[]
[null,"Insurer shall input the exchange rate(s) used to translate the \"EP Curves Total\" (all region-perils combined) to US$."]
[]
[null,null,"Currency","EP Curve - Total all region-perils combined"]
[null,null,"USD",1]
[null,null,"USD:EUR",{"$f":"Import!M12682","v":0}]
[null,null,"USD:GBP",{"$f":"Import!M12683","v":0}]
[null,null,"USD:Yen",{"$f":"Import!M12684","v":0}]
[null,null,"USD:CHF",{"$f":"Import!M12685","v":0}]
[null,null,{"$f":"Import!M12675","v":"USD:"},{"$f":"Import!M12686","v":0}]
[null,null,{"$f":"Import!M12676","v":"USD:"},{"$f":"Import!M12687","v":0}]
[null,null,{"$f":"Import!M12677","v":"USD:"},{"$f":"Import!M12688","v":0}]
[null,null,{"$f":"Import!M12678","v":"USD:"},{"$f":"Import!M12689","v":0}]
[null,null,{"$f":"Import!M12679","v":"USD:"},{"$f":"Import!M12690","v":0}]
[null,null,{"$f":"Import!M12680","v":"USD:"},{"$f":"Import!M12691","v":0}]
[null,null,"USD:"]

{"sheet":"Schedule XI","index":71,"n_rows":30,"n_cols":6,"rows_kept":30,"cut":false,"hidden":true,"merged":[[1,1,1,5]]}
[null,"SCHEDULE OF LOSS TRIANGLES OR RECONCILIATION OF NET LOSS RESERVES ",null,null,null,{"$f":"HYPERLINK(\"#'Index'!A1\",\"Return to Index\")","v":"Return to Index"}]
[null,"The insurer shall provide either loss triangles - Schedule XI(a) - or a reconciliation of its beginning and ending net loss reserve balances - Schedule XI(b) -  for the following 8 statutory lines of business:"]
[]
[null,"Lines of business mapped into statutory lines of business"]
[]
[null,"Number","Loss triangle lines of business","Number","Statutory line of business"]
[null,1,"Property Catastrophe",1,"Property Catastrophe"]
[null,2,"Property  ",2,"Property  "]
[null,null,null,6,"Aviation"]
[null,null,null,10,"Energy Offshore / Marine"]
[null,null,null,18,"International Motor"]
[null,null,null,22,"Retro Property"]
[null,3,"Property Non-Proportional",3,"Property Non-Proportional"]
[null,null,null,7,"Aviation Non-Proportional"]
[null,null,null,11,"Energy Offshore / Marine Non-Proportional"]
[null,null,null,19,"International Motor Non-Proportional"]
[null,4,"Casualty",4,"Personal Accident"]
[null,null,null,12,"US Casualty   "]
[null,null,null,14,"US Professional"]
[null,null,null,20,"International Casualty Non-Motor"]
[null,null,null,24,"Health"]
[null,5,"Casualty Non-Proportional",5,"Personal Accident Non-Proportional"]
[null,null,null,13,"US Casualty Non-Proportional"]
[null,null,null,15,"US Professional Non-Proportional"]
[null,null,null,21,"International Casualty Non-Motor Non-Proportional"]
[null,6,"Financial Lines",8,"Credit / Surety"]
[null,null,null,9,"Credit / Surety Non-Proporational"]
[null,7,"Other Specialty Lines",16,"US Specialty"]
[null,null,null,17,"US Specialty Non-Proportional"]
[null,8,"Structured/Finite Lines",23,"Structured / Finite Reinsurance"]

{"sheet":"Schedule XI(a)","index":72,"n_rows":78,"n_cols":15,"rows_kept":78,"cut":false,"hidden":true,"merged":[[6,12,8,12],[0,13,0,14],[1,13,1,14],[2,13,2,14],[2,1,2,2],[60,6,60,7],[23,2,23,11],[5,2,5,11],[41,2,41,11],[60,9,65,9],[60,10,65,10],[61,11,65,11],[59,6,59,7]]}
[null,"SCHEDULE OF LOSS TRIANGLES (COMBINED FOR ALL LINES)",null,null,null,null,null,null,null,null,null,null,null,{"$f":"HYPERLINK(\"#'Index'!A1\",\"Return to Index\")","v":"Return to Index"}]
[null,{"$f":"'Company Information'!C7","v":"Enter Company Name"}]
[null,{"$f":"'Company Information'!C3","v":"2022-12-31"},null,null,null,null,null,null,null,null,null,null,null,"SCHEDULE XI(a)"]
[null,{"$f":"\"expressed in\"& IF(1000>1,\" ['\"&MID(1000,2,LEN(1000))&\"s]\",\"\")&\" \"&'Form 1EBS'!$C$4","v":"expressed in ['000s] United States Dollars"}]
[]
[null,null,"INCURRED (ESTIMATED ULTIMATE) NET LOSSES AND ALLOCATED LOSS ADJUSTMENT EXPENSES REPORTED AT YEAR END ($000)",null,null,null,null,null,null,null,null,null,11,12,13]
[null,null,null,null,null,null,null,null,null,null,null,null,"Estimated Ultimate Catastrophe Losses","Development","Development"]
[null,"Years in Which",1,2,3,4,5,6,7,8,9,10]
[null,"Losses Were",null,null,null,null,null,null,null,null,null,null,null,"One Year","Two Year"]
[null,"Incurred",{"$f":"D10-1","v":2013},2014,2015,2016,2017,2018,2019,2020,{"$f":"L10-1","v":2021},{"$f":"YEAR('Company Information'!C3)","v":2022},{"$f":"L10","v":2022},"Development","Development"]
["L1","Prior",{"$f":"'Sch XI(a)(i)'!C11+'Sch XI(a)(ii)'!C11+'Sch XI(a)(iii)'!C11+'Sch XI(a)(iv)'!C11+'Sch XI(a)(v)'!C11+'Sch XI(a)(vi)'!C11+'Sch XI(a)(vii)'!C11+'Sch XI(a)(viii)'!C11","v":0},{"$f":"'Sch XI(a)(i)'!D11+'Sch XI(a)(ii)'!D11+'Sch XI(a)(iii)'!D11+'Sch XI(a)(iv)'!D11+'Sch XI(a)(v)'!D11+'Sch XI(a)(vi)'!D11+'Sch XI(a)(vii)'!D11+'Sch XI(a)(viii)'!D11","v":0},{"$f":"'Sch XI(a)(i)'!E11+'Sch XI(a)(ii)'!E11+'Sch XI(a)(iii)'!E11+'Sch XI(a)(iv)'!E11+'Sch XI(a)(v)'!E11+'Sch XI(a)(vi)'!E11+'Sch XI(a)(vii)'!E11+'Sch XI(a)(viii)'!E11","v":0},{"$f":"'Sch XI(a)(i)'!F11+'Sch XI(a)(ii)'!F11+'Sch XI(a)(iii)'!F11+'Sch XI(a)(iv)'!F11+'Sch XI(a)(v)'!F11+'Sch XI(a)(vi)'!F11+'Sch XI(a)(vii)'!F11+'Sch XI(a)(viii)'!F11","v":0},{"$f":"'Sch XI(a)(i)'!G11+'Sch XI(a)(ii)'!G11+'Sch XI(a)(iii)'!G11+'Sch XI(a)(iv)'!G11+'Sch XI(a)(v)'!G11+'Sch XI(a)(vi)'!G11+'Sch XI(a)(vii)'!G11+'Sch XI(a)(viii)'!G11","v":0},{"$f":"'Sch XI(a)(i)'!H11+'Sch XI(a)(ii)'!H11+'Sch XI(a)(iii)'!H11+'Sch XI(a)(iv)'!H11+'Sch XI(a)(v)'!H11+'Sch XI(a)(vi)'!H11+'Sch XI(a)(vii)'!H11+'Sch XI(a)(viii)'!H11","v":0},{"$f":"'Sch XI(a)(i)'!I11+'Sch XI(a)(ii)'!I11+'Sch XI(a)(iii)'!I11+'Sch XI(a)(iv)'!I11+'Sch XI(a)(v)'!I11+'Sch XI(a)(vi)'!I11+'Sch XI(a)(vii)'!I11+'Sch XI(a)(viii)'!I11","v":0},{"$f":"'Sch XI(a)(i)'!J11+'Sch XI(a)(ii)'!J11+'Sch XI(a)(iii)'!J11+'Sch XI(a)(iv)'!J11+'Sch XI(a)(v)'!J11+'Sch XI(a)(vi)'!J11+'Sch XI(a)(vii)'!J11+'Sch XI(a)(viii)'!J11","v":0},{"$f":"'Sch XI(a)(i)'!K11+'Sch XI(a)(ii)'!K11+'Sch XI(a)(iii)'!K11+'Sch XI(a)(iv)'!K11+'Sch XI(a)(v)'!K11+'Sch XI(a)(vi)'!K11+'Sch XI(a)(vii)'!K11+'Sch XI(a)(viii)'!K11","v":0},{"$f":"'Sch XI(a)(i)'!L11+'Sch XI(a)(ii)'!L11+'Sch XI(a)(iii)'!L11+'Sch XI(a)(iv)'!L11+'Sch XI(a)(v)'!L11+'Sch XI(a)(vi)'!L11+'Sch XI(a)(vii)'!L11+'Sch XI(a)(viii)'!L11","v":0},{"$f":"'Sch XI(a)(i)'!M11+'Sch XI(a)(ii)'!M11+'Sch XI(a)(iii)'!M11+'Sch XI(a)(iv)'!M11+'Sch XI(a)(v)'!M11+'Sch XI(a)(vi)'!M11+'Sch XI(a)(vii)'!M11+'Sch XI(a)(viii)'!M11","v":0},{"$f":"K11-L11","v":0},{"$f":"J11-L11","v":0}]
["L2",{"$f":"B13-1","v":2013},{"$f":"'Sch XI(a)(i)'!C12+'Sch XI(a)(ii)'!C12+'Sch XI(a)(iii)'!C12+'Sch XI(a)(iv)'!C12+'Sch XI(a)(v)'!C12+'Sch XI(a)(vi)'!C12+'Sch XI(a)(vii)'!C12+'Sch XI(a)(viii)'!C12","v":0},{"$f":"'Sch XI(a)(i)'!D12+'Sch XI(a)(ii)'!D12+'Sch XI(a)(iii)'!D12+'Sch XI(a)(iv)'!D12+'Sch XI(a)(v)'!D12+'Sch XI(a)(vi)'!D12+'Sch XI(a)(vii)'!D12+'Sch XI(a)(viii)'!D12","v":0},{"$f":"'Sch XI(a)(i)'!E12+'Sch XI(a)(ii)'!E12+'Sch XI(a)(iii)'!E12+'Sch XI(a)(iv)'!E12+'Sch XI(a)(v)'!E12+'Sch XI(a)(vi)'!E12+'Sch XI(a)(vii)'!E12+'Sch XI(a)(viii)'!E12","v":0},{"$f":"'Sch XI(a)(i)'!F12+'Sch XI(a)(ii)'!F12+'Sch XI(a)(iii)'!F12+'Sch XI(a)(iv)'!F12+'Sch XI(a)(v)'!F12+'Sch XI(a)(vi)'!F12+'Sch XI(a)(vii)'!F12+'Sch XI(a)(viii)'!F12","v":0},{"$f":"'Sch XI(a)(i)'!G12+'Sch XI(a)(ii)'!G12+'Sch XI(a)(iii)'!G12+'Sch XI(a)(iv)'!G12+'Sch XI(a)(v)'!G12+'Sch XI(a)(vi)'!G12+'Sch XI(a)(vii)'!G12+'Sch XI(a)(viii)'!G12","v":0},{"$f":"'Sch XI(a)(i)'!H12+'Sch XI(a)(ii)'!H12+'Sch XI(a)(iii)'!H12+'Sch XI(a)(iv)'!H12+'Sch XI(a)(v)'!H12+'Sch XI(a)(vi)'!H12+'Sch XI(a)(vii)'!H12+'Sch XI(a)(viii)'!H12","v":0},{"$f":"'Sch XI(a)(i)'!I12+'Sch XI(a)(ii)'!I12+'Sch XI(a)(iii)'!I12+'Sch XI(a)(iv)'!I12+'Sch XI(a)(v)'!I12+'Sch XI(a)(vi)'!I12+'Sch XI(a)(vii)'!I12+'Sch XI(a)(viii)'!I12","v":0},{"$f":"'Sch XI(a)(i)'!J12+'Sch XI(a)(ii)'!J12+'Sch XI(a)(iii)'!J12+'Sch XI(a)(iv)'!J12+'Sch XI(a)(v)'!J12+'Sch XI(a)(vi)'!J12+'Sch XI(a)(vii)'!J12+'Sch XI(a)(viii)'!J12","v":0},{"$f":"'Sch XI(a)(i)'!K12+'Sch XI(a)(ii)'!K12+'Sch XI(a)(iii)'!K12+'Sch XI(a)(iv)'!K12+'Sch XI(a)(v)'!K12+'Sch XI(a)(vi)'!K12+'Sch XI(a)(vii)'!K12+'Sch XI(a)(viii)'!K12","v":0},{"$f":"'Sch XI(a)(i)'!L12+'Sch XI(a)(ii)'!L12+'Sch XI(a)(iii)'!L12+'Sch XI(a)(iv)'!L12+'Sch XI(a)(v)'!L12+'Sch XI(a)(vi)'!L12+'Sch XI(a)(vii)'!L12+'Sch XI(a)(viii)'!L12","v":0},{"$f":"'Sch XI(a)(i)'!M12+'Sch XI(a)(ii)'!M12+'Sch XI(a)(iii)'!M12+'Sch XI(a)(iv)'!M12+'Sch XI(a)(v)'!M12+'Sch XI(a)(vi)'!M12+'Sch XI(a)(vii)'!M12+'Sch XI(a)(viii)'!M12","v":0},0,0]
["L3",2014,"XXX",{"$f":"'Sch XI(a)(i)'!D13+'Sch XI(a)(ii)'!D13+'Sch XI(a)(iii)'!D13+'Sch XI(a)(iv)'!D13+'Sch XI(a)(v)'!D13+'Sch XI(a)(vi)'!D13+'Sch XI(a)(vii)'!D13+'Sch XI(a)(viii)'!D13","v":0},{"$f":"'Sch XI(a)(i)'!E13+'Sch XI(a)(ii)'!E13+'Sch XI(a)(iii)'!E13+'Sch XI(a)(iv)'!E13+'Sch XI(a)(v)'!E13+'Sch XI(a)(vi)'!E13+'Sch XI(a)(vii)'!E13+'Sch XI(a)(viii)'!E13","v":0},{"$f":"'Sch XI(a)(i)'!F13+'Sch XI(a)(ii)'!F13+'Sch XI(a)(iii)'!F13+'Sch XI(a)(iv)'!F13+'Sch XI(a)(v)'!F13+'Sch XI(a)(vi)'!F13+'Sch XI(a)(vii)'!F13+'Sch XI(a)(viii)'!F13","v":0},{"$f":"'Sch XI(a)(i)'!G13+'Sch XI(a)(ii)'!G13+'Sch XI(a)(iii)'!G13+'Sch XI(a)(iv)'!G13+'Sch XI(a)(v)'!G13+'Sch XI(a)(vi)'!G13+'Sch XI(a)(vii)'!G13+'Sch XI(a)(viii)'!G13","v":0},{"$f":"'Sch XI(a)(i)'!H13+'Sch XI(a)(ii)'!H13+'Sch XI(a)(iii)'!H13+'Sch XI(a)(iv)'!H13+'Sch XI(a)(v)'!H13+'Sch XI(a)(vi)'!H13+'Sch XI(a)(vii)'!H13+'Sch XI(a)(viii)'!H13","v":0},{"$f":"'Sch XI(a)(i)'!I13+'Sch XI(a)(ii)'!I13+'Sch XI(a)(iii)'!I13+'Sch XI(a)(iv)'!I13+'Sch XI(a)(v)'!I13+'Sch XI(a)(vi)'!I13+'Sch XI(a)(vii)'!I13+'Sch XI(a)(viii)'!I13","v":0},{"$f":"'Sch XI(a)(i)'!J13+'Sch XI(a)(ii)'!J13+'Sch XI(a)(iii)'!J13+'Sch XI(a)(iv)'!J13+'Sch XI(a)(v)'!J13+'Sch XI(a)(vi)'!J13+'Sch XI(a)(vii)'!J13+'Sch XI(a)(viii)'!J13","v":0},{"$f":"'Sch XI(a)(i)'!K13+'Sch XI(a)(ii)'!K13+'Sch XI(a)(iii)'!K13+'Sch XI(a)(iv)'!K13+'Sch XI(a)(v)'!K13+'Sch XI(a)(vi)'!K13+'Sch XI(a)(vii)'!K13+'Sch XI(a)(viii)'!K13","v":0},{"$f":"'Sch XI(a)(i)'!L13+'Sch XI(a)(ii)'!L13+'Sch XI(a)(iii)'!L13+'Sch XI(a)(iv)'!L13+'Sch XI(a)(v)'!L13+'Sch XI(a)(vi)'!L13+'Sch XI(a)(vii)'!L13+'Sch XI(a)(viii)'!L13","v":0},{"$f":"'Sch XI(a)(i)'!M13+'Sch XI(a)(ii)'!M13+'Sch XI(a)(iii)'!M13+'Sch XI(a)(iv)'!M13+'Sch XI(a)(v)'!M13+'Sch XI(a)(vi)'!M13+'Sch XI(a)(vii)'!M13+'Sch XI(a)(viii)'!M13","v":0},0,0]
["L4",2015,"XXX","XXX",{"$f":"'Sch XI(a)(i)'!E14+'Sch XI(a)(ii)'!E14+'Sch XI(a)(iii)'!E14+'Sch XI(a)(iv)'!E14+'Sch XI(a)(v)'!E14+'Sch XI(a)(vi)'!E14+'Sch XI(a)(vii)'!E14+'Sch XI(a)(viii)'!E14","v":0},{"$f":"'Sch XI(a)(i)'!F14+'Sch XI(a)(ii)'!F14+'Sch XI(a)(iii)'!F14+'Sch XI(a)(iv)'!F14+'Sch XI(a)(v)'!F14+'Sch XI(a)(vi)'!F14+'Sch XI(a)(vii)'!F14+'Sch XI(a)(viii)'!F14","v":0},{"$f":"'Sch XI(a)(i)'!G14+'Sch XI(a)(ii)'!G14+'Sch XI(a)(iii)'!G14+'Sch XI(a)(iv)'!G14+'Sch XI(a)(v)'!G14+'Sch XI(a)(vi)'!G14+'Sch XI(a)(vii)'!G14+'Sch XI(a)(viii)'!G14","v":0},{"$f":"'Sch XI(a)(i)'!H14+'Sch XI(a)(ii)'!H14+'Sch XI(a)(iii)'!H14+'Sch XI(a)(iv)'!H14+'Sch XI(a)(v)'!H14+'Sch XI(a)(vi)'!H14+'Sch XI(a)(vii)'!H14+'Sch XI(a)(viii)'!H14","v":0},{"$f":"'Sch XI(a)(i)'!I14+'Sch XI(a)(ii)'!I14+'Sch XI(a)(iii)'!I14+'Sch XI(a)(iv)'!I14+'Sch XI(a)(v)'!I14+'Sch XI(a)(vi)'!I14+'Sch XI(a)(vii)'!I14+'Sch XI(a)(viii)'!I14","v":0},{"$f":"'Sch XI(a)(i)'!J14+'Sch XI(a)(ii)'!J14+'Sch XI(a)(iii)'!J14+'Sch XI(a)(iv)'!J14+'Sch XI(a)(v)'!J14+'Sch XI(a)(vi)'!J14+'Sch XI(a)(vii)'!J14+'Sch XI(a)(viii)'!J14","v":0},{"$f":"'Sch XI(a)(i)'!K14+'Sch XI(a)(ii)'!K14+'Sch XI(a)(iii)'!K14+'Sch XI(a)(iv)'!K14+'Sch XI(a)(v)'!K14+'Sch XI(a)(vi)'!K14+'Sch XI(a)(vii)'!K14+'Sch XI(a)(viii)'!K14","v":0},{"$f":"'Sch XI(a)(i)'!L14+'Sch XI(a)(ii)'!L14+'Sch XI(a)(iii)'!L14+'Sch XI(a)(iv)'!L14+'Sch XI(a)(v)'!L14+'Sch XI(a)(vi)'!L14+'Sch XI(a)(vii)'!L14+'Sch XI(a)(viii)'!L14","v":0},{"$f":"'Sch XI(a)(i)'!M14+'Sch XI(a)(ii)'!M14+'Sch XI(a)(iii)'!M14+'Sch XI(a)(iv)'!M14+'Sch XI(a)(v)'!M14+'Sch XI(a)(vi)'!M14+'Sch XI(a)(vii)'!M14+'Sch XI(a)(viii)'!M14","v":0},0,0]
["L5",2016,"XXX","XXX","XXX",{"$f":"'Sch XI(a)(i)'!F15+'Sch XI(a)(ii)'!F15+'Sch XI(a)(iii)'!F15+'Sch XI(a)(iv)'!F15+'Sch XI(a)(v)'!F15+'Sch XI(a)(vi)'!F15+'Sch XI(a)(vii)'!F15+'Sch XI(a)(viii)'!F15","v":0},{"$f":"'Sch XI(a)(i)'!G15+'Sch XI(a)(ii)'!G15+'Sch XI(a)(iii)'!G15+'Sch XI(a)(iv)'!G15+'Sch XI(a)(v)'!G15+'Sch XI(a)(vi)'!G15+'Sch XI(a)(vii)'!G15+'Sch XI(a)(viii)'!G15","v":0},{"$f":"'Sch XI(a)(i)'!H15+'Sch XI(a)(ii)'!H15+'Sch XI(a)(iii)'!H15+'Sch XI(a)(iv)'!H15+'Sch XI(a)(v)'!H15+'Sch XI(a)(vi)'!H15+'Sch XI(a)(vii)'!H15+'Sch XI(a)(viii)'!H15","v":0},{"$f":"'Sch XI(a)(i)'!I15+'Sch XI(a)(ii)'!I15+'Sch XI(a)(iii)'!I15+'Sch XI(a)(iv)'!I15+'Sch XI(a)(v)'!I15+'Sch XI(a)(vi)'!I15+'Sch XI(a)(vii)'!I15+'Sch XI(a)(viii)'!I15","v":0},{"$f":"'Sch XI(a)(i)'!J15+'Sch XI(a)(ii)'!J15+'Sch XI(a)(iii)'!J15+'Sch XI(a)(iv)'!J15+'Sch XI(a)(v)'!J15+'Sch XI(a)(vi)'!J15+'Sch XI(a)(vii)'!J15+'Sch XI(a)(viii)'!J15","v":0},{"$f":"'Sch XI(a)(i)'!K15+'Sch XI(a)(ii)'!K15+'Sch XI(a)(iii)'!K15+'Sch XI(a)(iv)'!K15+'Sch XI(a)(v)'!K15+'Sch XI(a)(vi)'!K15+'Sch XI(a)(vii)'!K15+'Sch XI(a)(viii)'!K15","v":0},{"$f":"'Sch XI(a)(i)'!L15+'Sch XI(a)(ii)'!L15+'Sch XI(a)(iii)'!L15+'Sch XI(a)(iv)'!L15+'Sch XI(a)(v)'!L15+'Sch XI(a)(vi)'!L15+'Sch XI(a)(vii)'!L15+'Sch XI(a)(viii)'!L15","v":0},{"$f":"'Sch XI(a)(i)'!M15+'Sch XI(a)(ii)'!M15+'Sch XI(a)(iii)'!M15+'Sch XI(a)(iv)'!M15+'Sch XI(a)(v)'!M15+'Sch XI(a)(vi)'!M15+'Sch XI(a)(vii)'!M15+'Sch XI(a)(viii)'!M15","v":0},0,0]
["L6",2017,"XXX","XXX","XXX","XXX",{"$f":"'Sch XI(a)(i)'!G16+'Sch XI(a)(ii)'!G16+'Sch XI(a)(iii)'!G16+'Sch XI(a)(iv)'!G16+'Sch XI(a)(v)'!G16+'Sch XI(a)(vi)'!G16+'Sch XI(a)(vii)'!G16+'Sch XI(a)(viii)'!G16","v":0},{"$f":"'Sch XI(a)(i)'!H16+'Sch XI(a)(ii)'!H16+'Sch XI(a)(iii)'!H16+'Sch XI(a)(iv)'!H16+'Sch XI(a)(v)'!H16+'Sch XI(a)(vi)'!H16+'Sch XI(a)(vii)'!H16+'Sch XI(a)(viii)'!H16","v":0},{"$f":"'Sch XI(a)(i)'!I16+'Sch XI(a)(ii)'!I16+'Sch XI(a)(iii)'!I16+'Sch XI(a)(iv)'!I16+'Sch XI(a)(v)'!I16+'Sch XI(a)(vi)'!I16+'Sch XI(a)(vii)'!I16+'Sch XI(a)(viii)'!I16","v":0},{"$f":"'Sch XI(a)(i)'!J16+'Sch XI(a)(ii)'!J16+'Sch XI(a)(iii)'!J16+'Sch XI(a)(iv)'!J16+'Sch XI(a)(v)'!J16+'Sch XI(a)(vi)'!J16+'Sch XI(a)(vii)'!J16+'Sch XI(a)(viii)'!J16","v":0},{"$f":"'Sch XI(a)(i)'!K16+'Sch XI(a)(ii)'!K16+'Sch XI(a)(iii)'!K16+'Sch XI(a)(iv)'!K16+'Sch XI(a)(v)'!K16+'Sch XI(a)(vi)'!K16+'Sch XI(a)(vii)'!K16+'Sch XI(a)(viii)'!K16","v":0},{"$f":"'Sch XI(a)(i)'!L16+'Sch XI(a)(ii)'!L16+'Sch XI(a)(iii)'!L16+'Sch XI(a)(iv)'!L16+'Sch XI(a)(v)'!L16+'Sch XI(a)(vi)'!L16+'Sch XI(a)(vii)'!L16+'Sch XI(a)(viii)'!L16","v":0},{"$f":"'Sch XI(a)(i)'!M16+'Sch XI(a)(ii)'!M16+'Sch XI(a)(iii)'!M16+'Sch XI(a)(iv)'!M16+'Sch XI(a)(v)'!M16+'Sch XI(a)(vi)'!M16+'Sch XI(a)(vii)'!M16+'Sch XI(a)(viii)'!M16","v":0},0,0]
["L7",2018,"XXX","XXX","XXX","XXX","XXX",{"$f":"'Sch XI(a)(i)'!H17+'Sch XI(a)(ii)'!H17+'Sch XI(a)(iii)'!H17+'Sch XI(a)(iv)'!H17+'Sch XI(a)(v)'!H17+'Sch XI(a)(vi)'!H17+'Sch XI(a)(vii)'!H17+'Sch XI(a)(viii)'!H17","v":0},{"$f":"'Sch XI(a)(i)'!I17+'Sch XI(a)(ii)'!I17+'Sch XI(a)(iii)'!I17+'Sch XI(a)(iv)'!I17+'Sch XI(a)(v)'!I17+'Sch XI(a)(vi)'!I17+'Sch XI(a)(vii)'!I17+'Sch XI(a)(viii)'!I17","v":0},{"$f":"'Sch XI(a)(i)'!J17+'Sch XI(a)(ii)'!J17+'Sch XI(a)(iii)'!J17+'Sch XI(a)(iv)'!J17+'Sch XI(a)(v)'!J17+'Sch XI(a)(vi)'!J17+'Sch XI(a)(vii)'!J17+'Sch XI(a)(viii)'!J17","v":0},{"$f":"'Sch XI(a)(i)'!K17+'Sch XI(a)(ii)'!K17+'Sch XI(a)(iii)'!K17+'Sch XI(a)(iv)'!K17+'Sch XI(a)(v)'!K17+'Sch XI(a)(vi)'!K17+'Sch XI(a)(vii)'!K17+'Sch XI(a)(viii)'!K17","v":0},{"$f":"'Sch XI(a)(i)'!L17+'Sch XI(a)(ii)'!L17+'Sch XI(a)(iii)'!L17+'Sch XI(a)(iv)'!L17+'Sch XI(a)(v)'!L17+'Sch XI(a)(vi)'!L17+'Sch XI(a)(vii)'!L17+'Sch XI(a)(viii)'!L17","v":0},{"$f":"'Sch XI(a)(i)'!M17+'Sch XI(a)(ii)'!M17+'Sch XI(a)(iii)'!M17+'Sch XI(a)(iv)'!M17+'Sch XI(a)(v)'!M17+'Sch XI(a)(vi)'!M17+'Sch XI(a)(vii)'!M17+'Sch XI(a)(viii)'!M17","v":0},0,0]
["L8",2019,"XXX","XXX","XXX","XXX","XXX","XXX",{"$f":"'Sch XI(a)(i)'!I18+'Sch XI(a)(ii)'!I18+'Sch XI(a)(iii)'!I18+'Sch XI(a)(iv)'!I18+'Sch XI(a)(v)'!I18+'Sch XI(a)(vi)'!I18+'Sch XI(a)(vii)'!I18+'Sch XI(a)(viii)'!I18","v":0},{"$f":"'Sch XI(a)(i)'!J18+'Sch XI(a)(ii)'!J18+'Sch XI(a)(iii)'!J18+'Sch XI(a)(iv)'!J18+'Sch XI(a)(v)'!J18+'Sch XI(a)(vi)'!J18+'Sch XI(a)(vii)'!J18+'Sch XI(a)(viii)'!J18","v":0},{"$f":"'Sch XI(a)(i)'!K18+'Sch XI(a)(ii)'!K18+'Sch XI(a)(iii)'!K18+'Sch XI(a)(iv)'!K18+'Sch XI(a)(v)'!K18+'Sch XI(a)(vi)'!K18+'Sch XI(a)(vii)'!K18+'Sch XI(a)(viii)'!K18","v":0},{"$f":"'Sch XI(a)(i)'!L18+'Sch XI(a)(ii)'!L18+'Sch XI(a)(iii)'!L18+'Sch XI(a)(iv)'!L18+'Sch XI(a)(v)'!L18+'Sch XI(a)(vi)'!L18+'Sch XI(a)(vii)'!L18+'Sch XI(a)(viii)'!L18","v":0},{"$f":"'Sch XI(a)(i)'!M18+'Sch XI(a)(ii)'!M18+'Sch XI(a)(iii)'!M18+'Sch XI(a)(iv)'!M18+'Sch XI(a)(v)'!M18+'Sch XI(a)(vi)'!M18+'Sch XI(a)(vii)'!M18+'Sch XI(a)(viii)'!M18","v":0},0,0]
["L9",2020,"XXX","XXX","XXX","XXX","XXX","XXX","XXX",{"$f":"'Sch XI(a)(i)'!J19+'Sch XI(a)(ii)'!J19+'Sch XI(a)(iii)'!J19+'Sch XI(a)(iv)'!J19+'Sch XI(a)(v)'!J19+'Sch XI(a)(vi)'!J19+'Sch XI(a)(vii)'!J19+'Sch XI(a)(viii)'!J19","v":0},{"$f":"'Sch XI(a)(i)'!K19+'Sch XI(a)(ii)'!K19+'Sch XI(a)(iii)'!K19+'Sch XI(a)(iv)'!K19+'Sch XI(a)(v)'!K19+'Sch XI(a)(vi)'!K19+'Sch XI(a)(vii)'!K19+'Sch XI(a)(viii)'!K19","v":0},{"$f":"'Sch XI(a)(i)'!L19+'Sch XI(a)(ii)'!L19+'Sch XI(a)(iii)'!L19+'Sch XI(a)(iv)'!L19+'Sch XI(a)(v)'!L19+'Sch XI(a)(vi)'!L19+'Sch XI(a)(vii)'!L19+'Sch XI(a)(viii)'!L19","v":0},{"$f":"'Sch XI(a)(i)'!M19+'Sch XI(a)(ii)'!M19+'Sch XI(a)(iii)'!M19+'Sch XI(a)(iv)'!M19+'Sch XI(a)(v)'!M19+'Sch XI(a)(vi)'!M19+'Sch XI(a)(vii)'!M19+'Sch XI(a)(viii)'!M19","v":0},0,0]
["L10",2021,"XXX","XXX","XXX","XXX","XXX","XXX","XXX","XXX",{"$f":"'Sch XI(a)(i)'!K20+'Sch XI(a)(ii)'!K20+'Sch XI(a)(iii)'!K20+'Sch XI(a)(iv)'!K20+'Sch XI(a)(v)'!K20+'Sch XI(a)(vi)'!K20+'Sch XI(a)(vii)'!K20+'Sch XI(a)(viii)'!K20","v":0},{"$f":"'Sch XI(a)(i)'!L20+'Sch XI(a)(ii)'!L20+'Sch XI(a)(iii)'!L20+'Sch XI(a)(iv)'!L20+'Sch XI(a)(v)'!L20+'Sch XI(a)(vi)'!L20+'Sch XI(a)(vii)'!L20+'Sch XI(a)(viii)'!L20","v":0},{"$f":"'Sch XI(a)(i)'!M20+'Sch XI(a)(ii)'!M20+'Sch XI(a)(iii)'!M20+'Sch XI(a)(iv)'!M20+'Sch XI(a)(v)'!M20+'Sch XI(a)(vi)'!M20+'Sch XI(a)(vii)'!M20+'Sch XI(a)(viii)'!M20","v":0},0,"XXX"]
["L11",{"$f":"L10","v":2022},"XXX","XXX","XXX","XXX","XXX","XXX","XXX","XXX","XXX",{"$f":"'Sch XI(a)(i)'!L21+'Sch XI(a)(ii)'!L21+'Sch XI(a)(iii)'!L21+'Sch XI(a)(iv)'!L21+'Sch XI(a)(v)'!L21+'Sch XI(a)(vi)'!L21+'Sch XI(a)(vii)'!L21+'Sch XI(a)(viii)'!L21","v":0},{"$f":"'Sch XI(a)(i)'!M21+'Sch XI(a)(ii)'!M21+'Sch XI(a)(iii)'!M21+'Sch XI(a)(iv)'!M21+'Sch XI(a)(v)'!M21+'Sch XI(a)(vi)'!M21+'Sch XI(a)(vii)'!M21+'Sch XI(a)(viii)'!M21","v":0},"XXX","XXX"]
["L12","Totals",null,null,null,null,null,null,null,null,null,null,{"$f":"SUM(M11:M21)","v":0},{"$f":"SUM(N11:N21)","v":0},{"$f":"SUM(O11:O21)","v":0}]
[]
[null,null,"CUMULATIVE PAID NET LOSSES AND ALLOCATED LOSS ADJUSTMENT EXPENSES REPORTED AT YEAR END ($000)",null,null,null,null,null,null,null,null,null,24]
[null,null,null,null,null,null,null,null,null,null,null,null,"Paid"]
[null,"Years in Which",14,15,16,17,18,19,20,21,22,23,"Catastrophe"]
[null,"Policies Were",null,null,null,null,null,null,null,null,null,null,"Losses"]
[null,"Written",{"$f":"D28-1","v":2013},2014,2015,2016,2017,2018,2019,2020,2021,{"$f":"L10","v":2022},{"$f":"L28","v":2022}]
["L13","Prior",{"$f":"'Sch XI(a)(i)'!C29+'Sch XI(a)(ii)'!C29+'Sch XI(a)(iii)'!C29+'Sch XI(a)(iv)'!C29+'Sch XI(a)(v)'!C29+'Sch XI(a)(vi)'!C29+'Sch XI(a)(vii)'!C29+'Sch XI(a)(viii)'!C29","v":0},{"$f":"'Sch XI(a)(i)'!D29+'Sch XI(a)(ii)'!D29+'Sch XI(a)(iii)'!D29+'Sch XI(a)(iv)'!D29+'Sch XI(a)(v)'!D29+'Sch XI(a)(vi)'!D29+'Sch XI(a)(vii)'!D29+'Sch XI(a)(viii)'!D29","v":0},{"$f":"'Sch XI(a)(i)'!E29+'Sch XI(a)(ii)'!E29+'Sch XI(a)(iii)'!E29+'Sch XI(a)(iv)'!E29+'Sch XI(a)(v)'!E29+'Sch XI(a)(vi)'!E29+'Sch XI(a)(vii)'!E29+'Sch XI(a)(viii)'!E29","v":0},{"$f":"'Sch XI(a)(i)'!F29+'Sch XI(a)(ii)'!F29+'Sch XI(a)(iii)'!F29+'Sch XI(a)(iv)'!F29+'Sch XI(a)(v)'!F29+'Sch XI(a)(vi)'!F29+'Sch XI(a)(vii)'!F29+'Sch XI(a)(viii)'!F29","v":0},{"$f":"'Sch XI(a)(i)'!G29+'Sch XI(a)(ii)'!G29+'Sch XI(a)(iii)'!G29+'Sch XI(a)(iv)'!G29+'Sch XI(a)(v)'!G29+'Sch XI(a)(vi)'!G29+'Sch XI(a)(vii)'!G29+'Sch XI(a)(viii)'!G29","v":0},{"$f":"'Sch XI(a)(i)'!H29+'Sch XI(a)(ii)'!H29+'Sch XI(a)(iii)'!H29+'Sch XI(a)(iv)'!H29+'Sch XI(a)(v)'!H29+'Sch XI(a)(vi)'!H29+'Sch XI(a)(vii)'!H29+'Sch XI(a)(viii)'!H29","v":0},{"$f":"'Sch XI(a)(i)'!I29+'Sch XI(a)(ii)'!I29+'Sch XI(a)(iii)'!I29+'Sch XI(a)(iv)'!I29+'Sch XI(a)(v)'!I29+'Sch XI(a)(vi)'!I29+'Sch XI(a)(vii)'!I29+'Sch XI(a)(viii)'!I29","v":0},{"$f":"'Sch XI(a)(i)'!J29+'Sch XI(a)(ii)'!J29+'Sch XI(a)(iii)'!J29+'Sch XI(a)(iv)'!J29+'Sch XI(a)(v)'!J29+'Sch XI(a)(vi)'!J29+'Sch XI(a)(vii)'!J29+'Sch XI(a)(viii)'!J29","v":0},{"$f":"'Sch XI(a)(i)'!K29+'Sch XI(a)(ii)'!K29+'Sch XI(a)(iii)'!K29+'Sch XI(a)(iv)'!K29+'Sch XI(a)(v)'!K29+'Sch XI(a)(vi)'!K29+'Sch XI(a)(vii)'!K29+'Sch XI(a)(viii)'!K29","v":0},{"$f":"'Sch XI(a)(i)'!L29+'Sch XI(a)(ii)'!L29+'Sch XI(a)(iii)'!L29+'Sch XI(a)(iv)'!L29+'Sch XI(a)(v)'!L29+'Sch XI(a)(vi)'!L29+'Sch XI(a)(vii)'!L29+'Sch XI(a)(viii)'!L29","v":0},{"$f":"'Sch XI(a)(i)'!M29+'Sch XI(a)(ii)'!M29+'Sch XI(a)(iii)'!M29+'Sch XI(a)(iv)'!M29+'Sch XI(a)(v)'!M29+'Sch XI(a)(vi)'!M29+'Sch XI(a)(vii)'!M29+'Sch XI(a)(viii)'!M29","v":0}]
["L14",{"$f":"B31-1","v":2013},{"$f":"'Sch XI(a)(i)'!C30+'Sch XI(a)(ii)'!C30+'Sch XI(a)(iii)'!C30+'Sch XI(a)(iv)'!C30+'Sch XI(a)(v)'!C30+'Sch XI(a)(vi)'!C30+'Sch XI(a)(vii)'!C30+'Sch XI(a)(viii)'!C30","v":0},{"$f":"'Sch XI(a)(i)'!D30+'Sch XI(a)(ii)'!D30+'Sch XI(a)(iii)'!D30+'Sch XI(a)(iv)'!D30+'Sch XI(a)(v)'!D30+'Sch XI(a)(vi)'!D30+'Sch XI(a)(vii)'!D30+'Sch XI(a)(viii)'!D30","v":0},{"$f":"'Sch XI(a)(i)'!E30+'Sch XI(a)(ii)'!E30+'Sch XI(a)(iii)'!E30+'Sch XI(a)(iv)'!E30+'Sch XI(a)(v)'!E30+'Sch XI(a)(vi)'!E30+'Sch XI(a)(vii)'!E30+'Sch XI(a)(viii)'!E30","v":0},{"$f":"'Sch XI(a)(i)'!F30+'Sch XI(a)(ii)'!F30+'Sch XI(a)(iii)'!F30+'Sch XI(a)(iv)'!F30+'Sch XI(a)(v)'!F30+'Sch XI(a)(vi)'!F30+'Sch XI(a)(vii)'!F30+'Sch XI(a)(viii)'!F30","v":0},{"$f":"'Sch XI(a)(i)'!G30+'Sch XI(a)(ii)'!G30+'Sch XI(a)(iii)'!G30+'Sch XI(a)(iv)'!G30+'Sch XI(a)(v)'!G30+'Sch XI(a)(vi)'!G30+'Sch XI(a)(vii)'!G30+'Sch XI(a)(viii)'!G30","v":0},{"$f":"'Sch XI(a)(i)'!H30+'Sch XI(a)(ii)'!H30+'Sch XI(a)(iii)'!H30+'Sch XI(a)(iv)'!H30+'Sch XI(a)(v)'!H30+'Sch XI(a)(vi)'!H30+'Sch XI(a)(vii)'!H30+'Sch XI(a)(viii)'!H30","v":0},{"$f":"'Sch XI(a)(i)'!I30+'Sch XI(a)(ii)'!I30+'Sch XI(a)(iii)'!I30+'Sch XI(a)(iv)'!I30+'Sch XI(a)(v)'!I30+'Sch XI(a)(vi)'!I30+'Sch XI(a)(vii)'!I30+'Sch XI(a)(viii)'!I30","v":0},{"$f":"'Sch XI(a)(i)'!J30+'Sch XI(a)(ii)'!J30+'Sch XI(a)(iii)'!J30+'Sch XI(a)(iv)'!J30+'Sch XI(a)(v)'!J30+'Sch XI(a)(vi)'!J30+'Sch XI(a)(vii)'!J30+'Sch XI(a)(viii)'!J30","v":0},{"$f":"'Sch XI(a)(i)'!K30+'Sch XI(a)(ii)'!K30+'Sch XI(a)(iii)'!K30+'Sch XI(a)(iv)'!K30+'Sch XI(a)(v)'!K30+'Sch XI(a)(vi)'!K30+'Sch XI(a)(vii)'!K30+'Sch XI(a)(viii)'!K30","v":0},{"$f":"'Sch XI(a)(i)'!L30+'Sch XI(a)(ii)'!L30+'Sch XI(a)(iii)'!L30+'Sch XI(a)(iv)'!L30+'Sch XI(a)(v)'!L30+'Sch XI(a)(vi)'!L30+'Sch XI(a)(vii)'!L30+'Sch XI(a)(viii)'!L30","v":0},{"$f":"'Sch XI(a)(i)'!M30+'Sch XI(a)(ii)'!M30+'Sch XI(a)(iii)'!M30+'Sch XI(a)(iv)'!M30+'Sch XI(a)(v)'!M30+'Sch XI(a)(vi)'!M30+'Sch XI(a)(vii)'!M30+'Sch XI(a)(viii)'!M30","v":0}]
["L15",2014,"XXX",{"$f":"'Sch XI(a)(i)'!D31+'Sch XI(a)(ii)'!D31+'Sch XI(a)(iii)'!D31+'Sch XI(a)(iv)'!D31+'Sch XI(a)(v)'!D31+'Sch XI(a)(vi)'!D31+'Sch XI(a)(vii)'!D31+'Sch XI(a)(viii)'!D31","v":0},{"$f":"'Sch XI(a)(i)'!E31+'Sch XI(a)(ii)'!E31+'Sch XI(a)(iii)'!E31+'Sch XI(a)(iv)'!E31+'Sch XI(a)(v)'!E31+'Sch XI(a)(vi)'!E31+'Sch XI(a)(vii)'!E31+'Sch XI(a)(viii)'!E31","v":0},{"$f":"'Sch XI(a)(i)'!F31+'Sch XI(a)(ii)'!F31+'Sch XI(a)(iii)'!F31+'Sch XI(a)(iv)'!F31+'Sch XI(a)(v)'!F31+'Sch XI(a)(vi)'!F31+'Sch XI(a)(vii)'!F31+'Sch XI(a)(viii)'!F31","v":0},{"$f":"'Sch XI(a)(i)'!G31+'Sch XI(a)(ii)'!G31+'Sch XI(a)(iii)'!G31+'Sch XI(a)(iv)'!G31+'Sch XI(a)(v)'!G31+'Sch XI(a)(vi)'!G31+'Sch XI(a)(vii)'!G31+'Sch XI(a)(viii)'!G31","v":0},{"$f":"'Sch XI(a)(i)'!H31+'Sch XI(a)(ii)'!H31+'Sch XI(a)(iii)'!H31+'Sch XI(a)(iv)'!H31+'Sch XI(a)(v)'!H31+'Sch XI(a)(vi)'!H31+'Sch XI(a)(vii)'!H31+'Sch XI(a)(viii)'!H31","v":0},{"$f":"'Sch XI(a)(i)'!I31+'Sch XI(a)(ii)'!I31+'Sch XI(a)(iii)'!I31+'Sch XI(a)(iv)'!I31+'Sch XI(a)(v)'!I31+'Sch XI(a)(vi)'!I31+'Sch XI(a)(vii)'!I31+'Sch XI(a)(viii)'!I31","v":0},{"$f":"'Sch XI(a)(i)'!J31+'Sch XI(a)(ii)'!J31+'Sch XI(a)(iii)'!J31+'Sch XI(a)(iv)'!J31+'Sch XI(a)(v)'!J31+'Sch XI(a)(vi)'!J31+'Sch XI(a)(vii)'!J31+'Sch XI(a)(viii)'!J31","v":0},{"$f":"'Sch XI(a)(i)'!K31+'Sch XI(a)(ii)'!K31+'Sch XI(a)(iii)'!K31+'Sch XI(a)(iv)'!K31+'Sch XI(a)(v)'!K31+'Sch XI(a)(vi)'!K31+'Sch XI(a)(vii)'!K31+'Sch XI(a)(viii)'!K31","v":0},{"$f":"'Sch XI(a)(i)'!L31+'Sch XI(a)(ii)'!L31+'Sch XI(a)(iii)'!L31+'Sch XI(a)(iv)'!L31+'Sch XI(a)(v)'!L31+'Sch XI(a)(vi)'!L31+'Sch XI(a)(vii)'!L31+'Sch XI(a)(viii)'!L31","v":0},{"$f":"'Sch XI(a)(i)'!M31+'Sch XI(a)(ii)'!M31+'Sch XI(a)(iii)'!M31+'Sch XI(a)(iv)'!M31+'Sch XI(a)(v)'!M31+'Sch XI(a)(vi)'!M31+'Sch XI(a)(vii)'!M31+'Sch XI(a)(viii)'!M31","v":0}]
["L16",2015,"XXX","XXX",{"$f":"'Sch XI(a)(i)'!E32+'Sch XI(a)(ii)'!E32+'Sch XI(a)(iii)'!E32+'Sch XI(a)(iv)'!E32+'Sch XI(a)(v)'!E32+'Sch XI(a)(vi)'!E32+'Sch XI(a)(vii)'!E32+'Sch XI(a)(viii)'!E32","v":0},{"$f":"'Sch XI(a)(i)'!F32+'Sch XI(a)(ii)'!F32+'Sch XI(a)(iii)'!F32+'Sch XI(a)(iv)'!F32+'Sch XI(a)(v)'!F32+'Sch XI(a)(vi)'!F32+'Sch XI(a)(vii)'!F32+'Sch XI(a)(viii)'!F32","v":0},{"$f":"'Sch XI(a)(i)'!G32+'Sch XI(a)(ii)'!G32+'Sch XI(a)(iii)'!G32+'Sch XI(a)(iv)'!G32+'Sch XI(a)(v)'!G32+'Sch XI(a)(vi)'!G32+'Sch XI(a)(vii)'!G32+'Sch XI(a)(viii)'!G32","v":0},{"$f":"'Sch XI(a)(i)'!H32+'Sch XI(a)(ii)'!H32+'Sch XI(a)(iii)'!H32+'Sch XI(a)(iv)'!H32+'Sch XI(a)(v)'!H32+'Sch XI(a)(vi)'!H32+'Sch XI(a)(vii)'!H32+'Sch XI(a)(viii)'!H32","v":0},{"$f":"'Sch XI(a)(i)'!I32+'Sch XI(a)(ii)'!I32+'Sch XI(a)(iii)'!I32+'Sch XI(a)(iv)'!I32+'Sch XI(a)(v)'!I32+'Sch XI(a)(vi)'!I32+'Sch XI(a)(vii)'!I32+'Sch XI(a)(viii)'!I32","v":0},{"$f":"'Sch XI(a)(i)'!J32+'Sch XI(a)(ii)'!J32+'Sch XI(a)(iii)'!J32+'Sch XI(a)(iv)'!J32+'Sch XI(a)(v)'!J32+'Sch XI(a)(vi)'!J32+'Sch XI(a)(vii)'!J32+'Sch XI(a)(viii)'!J32","v":0},{"$f":"'Sch XI(a)(i)'!K32+'Sch XI(a)(ii)'!K32+'Sch XI(a)(iii)'!K32+'Sch XI(a)(iv)'!K32+'Sch XI(a)(v)'!K32+'Sch XI(a)(vi)'!K32+'Sch XI(a)(vii)'!K32+'Sch XI(a)(viii)'!K32","v":0},{"$f":"'Sch XI(a)(i)'!L32+'Sch XI(a)(ii)'!L32+'Sch XI(a)(iii)'!L32+'Sch XI(a)(iv)'!L32+'Sch XI(a)(v)'!L32+'Sch XI(a)(vi)'!L32+'Sch XI(a)(vii)'!L32+'Sch XI(a)(viii)'!L32","v":0},{"$f":"'Sch XI(a)(i)'!M32+'Sch XI(a)(ii)'!M32+'Sch XI(a)(iii)'!M32+'Sch XI(a)(iv)'!M32+'Sch XI(a)(v)'!M32+'Sch XI(a)(vi)'!M32+'Sch XI(a)(vii)'!M32+'Sch XI(a)(viii)'!M32","v":0}]
["L17",2016,"XXX","XXX","XXX",{"$f":"'Sch XI(a)(i)'!F33+'Sch XI(a)(ii)'!F33+'Sch XI(a)(iii)'!F33+'Sch XI(a)(iv)'!F33+'Sch XI(a)(v)'!F33+'Sch XI(a)(vi)'!F33+'Sch XI(a)(vii)'!F33+'Sch XI(a)(viii)'!F33","v":0},{"$f":"'Sch XI(a)(i)'!G33+'Sch XI(a)(ii)'!G33+'Sch XI(a)(iii)'!G33+'Sch XI(a)(iv)'!G33+'Sch XI(a)(v)'!G33+'Sch XI(a)(vi)'!G33+'Sch XI(a)(vii)'!G33+'Sch XI(a)(viii)'!G33","v":0},{"$f":"'Sch XI(a)(i)'!H33+'Sch XI(a)(ii)'!H33+'Sch XI(a)(iii)'!H33+'Sch XI(a)(iv)'!H33+'Sch XI(a)(v)'!H33+'Sch XI(a)(vi)'!H33+'Sch XI(a)(vii)'!H33+'Sch XI(a)(viii)'!H33","v":0},{"$f":"'Sch XI(a)(i)'!I33+'Sch XI(a)(ii)'!I33+'Sch XI(a)(iii)'!I33+'Sch XI(a)(iv)'!I33+'Sch XI(a)(v)'!I33+'Sch XI(a)(vi)'!I33+'Sch XI(a)(vii)'!I33+'Sch XI(a)(viii)'!I33","v":0},{"$f":"'Sch XI(a)(i)'!J33+'Sch XI(a)(ii)'!J33+'Sch XI(a)(iii)'!J33+'Sch XI(a)(iv)'!J33+'Sch XI(a)(v)'!J33+'Sch XI(a)(vi)'!J33+'Sch XI(a)(vii)'!J33+'Sch XI(a)(viii)'!J33","v":0},{"$f":"'Sch XI(a)(i)'!K33+'Sch XI(a)(ii)'!K33+'Sch XI(a)(iii)'!K33+'Sch XI(a)(iv)'!K33+'Sch XI(a)(v)'!K33+'Sch XI(a)(vi)'!K33+'Sch XI(a)(vii)'!K33+'Sch XI(a)(viii)'!K33","v":0},{"$f":"'Sch XI(a)(i)'!L33+'Sch XI(a)(ii)'!L33+'Sch XI(a)(iii)'!L33+'Sch XI(a)(iv)'!L33+'Sch XI(a)(v)'!L33+'Sch XI(a)(vi)'!L33+'Sch XI(a)(vii)'!L33+'Sch XI(a)(viii)'!L33","v":0},{"$f":"'Sch XI(a)(i)'!M33+'Sch XI(a)(ii)'!M33+'Sch XI(a)(iii)'!M33+'Sch XI(a)(iv)'!M33+'Sch XI(a)(v)'!M33+'Sch XI(a)(vi)'!M33+'Sch XI(a)(vii)'!M33+'Sch XI(a)(viii)'!M33","v":0}]
["L18",2017,"XXX","XXX","XXX","XXX",{"$f":"'Sch XI(a)(i)'!G34+'Sch XI(a)(ii)'!G34+'Sch XI(a)(iii)'!G34+'Sch XI(a)(iv)'!G34+'Sch XI(a)(v)'!G34+'Sch XI(a)(vi)'!G34+'Sch XI(a)(vii)'!G34+'Sch XI(a)(viii)'!G34","v":0},{"$f":"'Sch XI(a)(i)'!H34+'Sch XI(a)(ii)'!H34+'Sch XI(a)(iii)'!H34+'Sch XI(a)(iv)'!H34+'Sch XI(a)(v)'!H34+'Sch XI(a)(vi)'!H34+'Sch XI(a)(vii)'!H34+'Sch XI(a)(viii)'!H34","v":0},{"$f":"'Sch XI(a)(i)'!I34+'Sch XI(a)(ii)'!I34+'Sch XI(a)(iii)'!I34+'Sch XI(a)(iv)'!I34+'Sch XI(a)(v)'!I34+'Sch XI(a)(vi)'!I34+'Sch XI(a)(vii)'!I34+'Sch XI(a)(viii)'!I34","v":0},{"$f":"'Sch XI(a)(i)'!J34+'Sch XI(a)(ii)'!J34+'Sch XI(a)(iii)'!J34+'Sch XI(a)(iv)'!J34+'Sch XI(a)(v)'!J34+'Sch XI(a)(vi)'!J34+'Sch XI(a)(vii)'!J34+'Sch XI(a)(viii)'!J34","v":0},{"$f":"'Sch XI(a)(i)'!K34+'Sch XI(a)(ii)'!K34+'Sch XI(a)(iii)'!K34+'Sch XI(a)(iv)'!K34+'Sch XI(a)(v)'!K34+'Sch XI(a)(vi)'!K34+'Sch XI(a)(vii)'!K34+'Sch XI(a)(viii)'!K34","v":0},{"$f":"'Sch XI(a)(i)'!L34+'Sch XI(a)(ii)'!L34+'Sch XI(a)(iii)'!L34+'Sch XI(a)(iv)'!L34+'Sch XI(a)(v)'!L34+'Sch XI(a)(vi)'!L34+'Sch XI(a)(vii)'!L34+'Sch XI(a)(viii)'!L34","v":0},{"$f":"'Sch XI(a)(i)'!M34+'Sch XI(a)(ii)'!M34+'Sch XI(a)(iii)'!M34+'Sch XI(a)(iv)'!M34+'Sch XI(a)(v)'!M34+'Sch XI(a)(vi)'!M34+'Sch XI(a)(vii)'!M34+'Sch XI(a)(viii)'!M34","v":0}]
["L19",2018,"XXX","XXX","XXX","XXX","XXX",{"$f":"'Sch XI(a)(i)'!H35+'Sch XI(a)(ii)'!H35+'Sch XI(a)(iii)'!H35+'Sch XI(a)(iv)'!H35+'Sch XI(a)(v)'!H35+'Sch XI(a)(vi)'!H35+'Sch XI(a)(vii)'!H35+'Sch XI(a)(viii)'!H35","v":0},{"$f":"'Sch XI(a)(i)'!I35+'Sch XI(a)(ii)'!I35+'Sch XI(a)(iii)'!I35+'Sch XI(a)(iv)'!I35+'Sch XI(a)(v)'!I35+'Sch XI(a)(vi)'!I35+'Sch XI(a)(vii)'!I35+'Sch XI(a)(viii)'!I35","v":0},{"$f":"'Sch XI(a)(i)'!J35+'Sch XI(a)(ii)'!J35+'Sch XI(a)(iii)'!J35+'Sch XI(a)(iv)'!J35+'Sch XI(a)(v)'!J35+'Sch XI(a)(vi)'!J35+'Sch XI(a)(vii)'!J35+'Sch XI(a)(viii)'!J35","v":0},{"$f":"'Sch XI(a)(i)'!K35+'Sch XI(a)(ii)'!K35+'Sch XI(a)(iii)'!K35+'Sch XI(a)(iv)'!K35+'Sch XI(a)(v)'!K35+'Sch XI(a)(vi)'!K35+'Sch XI(a)(vii)'!K35+'Sch XI(a)(viii)'!K35","v":0},{"$f":"'Sch XI(a)(i)'!L35+'Sch XI(a)(ii)'!L35+'Sch XI(a)(iii)'!L35+'Sch XI(a)(iv)'!L35+'Sch XI(a)(v)'!L35+'Sch XI(a)(vi)'!L35+'Sch XI(a)(vii)'!L35+'Sch XI(a)(viii)'!L35","v":0},{"$f":"'Sch XI(a)(i)'!M35+'Sch XI(a)(ii)'!M35+'Sch XI(a)(iii)'!M35+'Sch XI(a)(iv)'!M35+'Sch XI(a)(v)'!M35+'Sch XI(a)(vi)'!M35+'Sch XI(a)(vii)'!M35+'Sch XI(a)(viii)'!M35","v":0}]
["L20",2019,"XXX","XXX","XXX","XXX","XXX","XXX",{"$f":"'Sch XI(a)(i)'!I36+'Sch XI(a)(ii)'!I36+'Sch XI(a)(iii)'!I36+'Sch XI(a)(iv)'!I36+'Sch XI(a)(v)'!I36+'Sch XI(a)(vi)'!I36+'Sch XI(a)(vii)'!I36+'Sch XI(a)(viii)'!I36","v":0},{"$f":"'Sch XI(a)(i)'!J36+'Sch XI(a)(ii)'!J36+'Sch XI(a)(iii)'!J36+'Sch XI(a)(iv)'!J36+'Sch XI(a)(v)'!J36+'Sch XI(a)(vi)'!J36+'Sch XI(a)(vii)'!J36+'Sch XI(a)(viii)'!J36","v":0},{"$f":"'Sch XI(a)(i)'!K36+'Sch XI(a)(ii)'!K36+'Sch XI(a)(iii)'!K36+'Sch XI(a)(iv)'!K36+'Sch XI(a)(v)'!K36+'Sch XI(a)(vi)'!K36+'Sch XI(a)(vii)'!K36+'Sch XI(a)(viii)'!K36","v":0},{"$f":"'Sch XI(a)(i)'!L36+'Sch XI(a)(ii)'!L36+'Sch XI(a)(iii)'!L36+'Sch XI(a)(iv)'!L36+'Sch XI(a)(v)'!L36+'Sch XI(a)(vi)'!L36+'Sch XI(a)(vii)'!L36+'Sch XI(a)(viii)'!L36","v":0},{"$f":"'Sch XI(a)(i)'!M36+'Sch XI(a)(ii)'!M36+'Sch XI(a)(iii)'!M36+'Sch XI(a)(iv)'!M36+'Sch XI(a)(v)'!M36+'Sch XI(a)(vi)'!M36+'Sch XI(a)(vii)'!M36+'Sch XI(a)(viii)'!M36","v":0}]
["L21",2020,"XXX","XXX","XXX","XXX","XXX","XXX","XXX",{"$f":"'Sch XI(a)(i)'!J37+'Sch XI(a)(ii)'!J37+'Sch XI(a)(iii)'!J37+'Sch XI(a)(iv)'!J37+'Sch XI(a)(v)'!J37+'Sch XI(a)(vi)'!J37+'Sch XI(a)(vii)'!J37+'Sch XI(a)(viii)'!J37","v":0},{"$f":"'Sch XI(a)(i)'!K37+'Sch XI(a)(ii)'!K37+'Sch XI(a)(iii)'!K37+'Sch XI(a)(iv)'!K37+'Sch XI(a)(v)'!K37+'Sch XI(a)(vi)'!K37+'Sch XI(a)(vii)'!K37+'Sch XI(a)(viii)'!K37","v":0},{"$f":"'Sch XI(a)(i)'!L37+'Sch XI(a)(ii)'!L37+'Sch XI(a)(iii)'!L37+'Sch XI(a)(iv)'!L37+'Sch XI(a)(v)'!L37+'Sch XI(a)(vi)'!L37+'Sch XI(a)(vii)'!L37+'Sch XI(a)(viii)'!L37","v":0},{"$f":"'Sch XI(a)(i)'!M37+'Sch XI(a)(ii)'!M37+'Sch XI(a)(iii)'!M37+'Sch XI(a)(iv)'!M37+'Sch XI(a)(v)'!M37+'Sch XI(a)(vi)'!M37+'Sch XI(a)(vii)'!M37+'Sch XI(a)(viii)'!M37","v":0}]
["L22",{"$f":"B39-1","v":2021},"XXX","XXX","XXX","XXX","XXX","XXX","XXX","XXX",{"$f":"'Sch XI(a)(i)'!K38+'Sch XI(a)(ii)'!K38+'Sch XI(a)(iii)'!K38+'Sch XI(a)(iv)'!K38+'Sch XI(a)(v)'!K38+'Sch XI(a)(vi)'!K38+'Sch XI(a)(vii)'!K38+'Sch XI(a)(viii)'!K38","v":0},{"$f":"'Sch XI(a)(i)'!L38+'Sch XI(a)(ii)'!L38+'Sch XI(a)(iii)'!L38+'Sch XI(a)(iv)'!L38+'Sch XI(a)(v)'!L38+'Sch XI(a)(vi)'!L38+'Sch XI(a)(vii)'!L38+'Sch XI(a)(viii)'!L38","v":0},{"$f":"'Sch XI(a)(i)'!M38+'Sch XI(a)(ii)'!M38+'Sch XI(a)(iii)'!M38+'Sch XI(a)(iv)'!M38+'Sch XI(a)(v)'!M38+'Sch XI(a)(vi)'!M38+'Sch XI(a)(vii)'!M38+'Sch XI(a)(viii)'!M38","v":0}]
["L23",{"$f":"L28","v":2022},"XXX","XXX","XXX","XXX","XXX","XXX","XXX","XXX","XXX",{"$f":"'Sch XI(a)(i)'!L39+'Sch XI(a)(ii)'!L39+'Sch XI(a)(iii)'!L39+'Sch XI(a)(iv)'!L39+'Sch XI(a)(v)'!L39+'Sch XI(a)(vi)'!L39+'Sch XI(a)(vii)'!L39+'Sch XI(a)(viii)'!L39","v":0},{"$f":"'Sch XI(a)(i)'!M39+'Sch XI(a)(ii)'!M39+'Sch XI(a)(iii)'!M39+'Sch XI(a)(iv)'!M39+'Sch XI(a)(v)'!M39+'Sch XI(a)(vi)'!M39+'Sch XI(a)(vii)'!M39+'Sch XI(a)(viii)'!M39","v":0}]
["L24","Totals",null,null,null,null,null,null,null,null,null,null,{"$f":"SUM(M29:M39)","v":0}]
[]
[null,null,"BULK & IBNR RESERVES ON NET LOSSES AND ALLOCATED LOSS ADJUSTMENT EXPENSES REPORTED AT YEAR END ($000)",null,null,null,null,null,null,null,null,null,35]
[null,null,null,null,null,null,null,null,null,null,null,null,"Losses"]
[null,"Years in Which",25,26,27,28,29,30,31,32,33,34,"Bulk & IBNR"]
[null,"Policies Were",null,null,null,null,null,null,null,null,null,null,"Reserves"]
[null,"Written",{"$f":"D46-1","v":2013},2014,2015,2016,2017,2018,2019,2020,2021,{"$f":"L28","v":2022},{"$f":"L28","v":2022}]
["L25","Prior",{"$f":"'Sch XI(a)(i)'!C47+'Sch XI(a)(ii)'!C47+'Sch XI(a)(iii)'!C47+'Sch XI(a)(iv)'!C47+'Sch XI(a)(v)'!C47+'Sch XI(a)(vi)'!C47+'Sch XI(a)(vii)'!C47+'Sch XI(a)(viii)'!C47","v":0},{"$f":"'Sch XI(a)(i)'!D47+'Sch XI(a)(ii)'!D47+'Sch XI(a)(iii)'!D47+'Sch XI(a)(iv)'!D47+'Sch XI(a)(v)'!D47+'Sch XI(a)(vi)'!D47+'Sch XI(a)(vii)'!D47+'Sch XI(a)(viii)'!D47","v":0},{"$f":"'Sch XI(a)(i)'!E47+'Sch XI(a)(ii)'!E47+'Sch XI(a)(iii)'!E47+'Sch XI(a)(iv)'!E47+'Sch XI(a)(v)'!E47+'Sch XI(a)(vi)'!E47+'Sch XI(a)(vii)'!E47+'Sch XI(a)(viii)'!E47","v":0},{"$f":"'Sch XI(a)(i)'!F47+'Sch XI(a)(ii)'!F47+'Sch XI(a)(iii)'!F47+'Sch XI(a)(iv)'!F47+'Sch XI(a)(v)'!F47+'Sch XI(a)(vi)'!F47+'Sch XI(a)(vii)'!F47+'Sch XI(a)(viii)'!F47","v":0},{"$f":"'Sch XI(a)(i)'!G47+'Sch XI(a)(ii)'!G47+'Sch XI(a)(iii)'!G47+'Sch XI(a)(iv)'!G47+'Sch XI(a)(v)'!G47+'Sch XI(a)(vi)'!G47+'Sch XI(a)(vii)'!G47+'Sch XI(a)(viii)'!G47","v":0},{"$f":"'Sch XI(a)(i)'!H47+'Sch XI(a)(ii)'!H47+'Sch XI(a)(iii)'!H47+'Sch XI(a)(iv)'!H47+'Sch XI(a)(v)'!H47+'Sch XI(a)(vi)'!H47+'Sch XI(a)(vii)'!H47+'Sch XI(a)(viii)'!H47","v":0},{"$f":"'Sch XI(a)(i)'!I47+'Sch XI(a)(ii)'!I47+'Sch XI(a)(iii)'!I47+'Sch XI(a)(iv)'!I47+'Sch XI(a)(v)'!I47+'Sch XI(a)(vi)'!I47+'Sch XI(a)(vii)'!I47+'Sch XI(a)(viii)'!I47","v":0},{"$f":"'Sch XI(a)(i)'!J47+'Sch XI(a)(ii)'!J47+'Sch XI(a)(iii)'!J47+'Sch XI(a)(iv)'!J47+'Sch XI(a)(v)'!J47+'Sch XI(a)(vi)'!J47+'Sch XI(a)(vii)'!J47+'Sch XI(a)(viii)'!J47","v":0},{"$f":"'Sch XI(a)(i)'!K47+'Sch XI(a)(ii)'!K47+'Sch XI(a)(iii)'!K47+'Sch XI(a)(iv)'!K47+'Sch XI(a)(v)'!K47+'Sch XI(a)(vi)'!K47+'Sch XI(a)(vii)'!K47+'Sch XI(a)(viii)'!K47","v":0},{"$f":"'Sch XI(a)(i)'!L47+'Sch XI(a)(ii)'!L47+'Sch XI(a)(iii)'!L47+'Sch XI(a)(iv)'!L47+'Sch XI(a)(v)'!L47+'Sch XI(a)(vi)'!L47+'Sch XI(a)(vii)'!L47+'Sch XI(a)(viii)'!L47","v":0},{"$f":"'Sch XI(a)(i)'!M47+'Sch XI(a)(ii)'!M47+'Sch XI(a)(iii)'!M47+'Sch XI(a)(iv)'!M47+'Sch XI(a)(v)'!M47+'Sch XI(a)(vi)'!M47+'Sch XI(a)(vii)'!M47+'Sch XI(a)(viii)'!M47","v":0}]
["L26",{"$f":"B49-1","v":2013},{"$f":"'Sch XI(a)(i)'!C48+'Sch XI(a)(ii)'!C48+'Sch XI(a)(iii)'!C48+'Sch XI(a)(iv)'!C48+'Sch XI(a)(v)'!C48+'Sch XI(a)(vi)'!C48+'Sch XI(a)(vii)'!C48+'Sch XI(a)(viii)'!C48","v":0},{"$f":"'Sch XI(a)(i)'!D48+'Sch XI(a)(ii)'!D48+'Sch XI(a)(iii)'!D48+'Sch XI(a)(iv)'!D48+'Sch XI(a)(v)'!D48+'Sch XI(a)(vi)'!D48+'Sch XI(a)(vii)'!D48+'Sch XI(a)(viii)'!D48","v":0},{"$f":"'Sch XI(a)(i)'!E48+'Sch XI(a)(ii)'!E48+'Sch XI(a)(iii)'!E48+'Sch XI(a)(iv)'!E48+'Sch XI(a)(v)'!E48+'Sch XI(a)(vi)'!E48+'Sch XI(a)(vii)'!E48+'Sch XI(a)(viii)'!E48","v":0},{"$f":"'Sch XI(a)(i)'!F48+'Sch XI(a)(ii)'!F48+'Sch XI(a)(iii)'!F48+'Sch XI(a)(iv)'!F48+'Sch XI(a)(v)'!F48+'Sch XI(a)(vi)'!F48+'Sch XI(a)(vii)'!F48+'Sch XI(a)(viii)'!F48","v":0},{"$f":"'Sch XI(a)(i)'!G48+'Sch XI(a)(ii)'!G48+'Sch XI(a)(iii)'!G48+'Sch XI(a)(iv)'!G48+'Sch XI(a)(v)'!G48+'Sch XI(a)(vi)'!G48+'Sch XI(a)(vii)'!G48+'Sch XI(a)(viii)'!G48","v":0},{"$f":"'Sch XI(a)(i)'!H48+'Sch XI(a)(ii)'!H48+'Sch XI(a)(iii)'!H48+'Sch XI(a)(iv)'!H48+'Sch XI(a)(v)'!H48+'Sch XI(a)(vi)'!H48+'Sch XI(a)(vii)'!H48+'Sch XI(a)(viii)'!H48","v":0},{"$f":"'Sch XI(a)(i)'!I48+'Sch XI(a)(ii)'!I48+'Sch XI(a)(iii)'!I48+'Sch XI(a)(iv)'!I48+'Sch XI(a)(v)'!I48+'Sch XI(a)(vi)'!I48+'Sch XI(a)(vii)'!I48+'Sch XI(a)(viii)'!I48","v":0},{"$f":"'Sch XI(a)(i)'!J48+'Sch XI(a)(ii)'!J48+'Sch XI(a)(iii)'!J48+'Sch XI(a)(iv)'!J48+'Sch XI(a)(v)'!J48+'Sch XI(a)(vi)'!J48+'Sch XI(a)(vii)'!J48+'Sch XI(a)(viii)'!J48","v":0},{"$f":"'Sch XI(a)(i)'!K48+'Sch XI(a)(ii)'!K48+'Sch XI(a)(iii)'!K48+'Sch XI(a)(iv)'!K48+'Sch XI(a)(v)'!K48+'Sch XI(a)(vi)'!K48+'Sch XI(a)(vii)'!K48+'Sch XI(a)(viii)'!K48","v":0},{"$f":"'Sch XI(a)(i)'!L48+'Sch XI(a)(ii)'!L48+'Sch XI(a)(iii)'!L48+'Sch XI(a)(iv)'!L48+'Sch XI(a)(v)'!L48+'Sch XI(a)(vi)'!L48+'Sch XI(a)(vii)'!L48+'Sch XI(a)(viii)'!L48","v":0},{"$f":"'Sch XI(a)(i)'!M48+'Sch XI(a)(ii)'!M48+'Sch XI(a)(iii)'!M48+'Sch XI(a)(iv)'!M48+'Sch XI(a)(v)'!M48+'Sch XI(a)(vi)'!M48+'Sch XI(a)(vii)'!M48+'Sch XI(a)(viii)'!M48","v":0}]
["L27",2014,"XXX",{"$f":"'Sch XI(a)(i)'!D49+'Sch XI(a)(ii)'!D49+'Sch XI(a)(iii)'!D49+'Sch XI(a)(iv)'!D49+'Sch XI(a)(v)'!D49+'Sch XI(a)(vi)'!D49+'Sch XI(a)(vii)'!D49+'Sch XI(a)(viii)'!D49","v":0},{"$f":"'Sch XI(a)(i)'!E49+'Sch XI(a)(ii)'!E49+'Sch XI(a)(iii)'!E49+'Sch XI(a)(iv)'!E49+'Sch XI(a)(v)'!E49+'Sch XI(a)(vi)'!E49+'Sch XI(a)(vii)'!E49+'Sch XI(a)(viii)'!E49","v":0},{"$f":"'Sch XI(a)(i)'!F49+'Sch XI(a)(ii)'!F49+'Sch XI(a)(iii)'!F49+'Sch XI(a)(iv)'!F49+'Sch XI(a)(v)'!F49+'Sch XI(a)(vi)'!F49+'Sch XI(a)(vii)'!F49+'Sch XI(a)(viii)'!F49","v":0},{"$f":"'Sch XI(a)(i)'!G49+'Sch XI(a)(ii)'!G49+'Sch XI(a)(iii)'!G49+'Sch XI(a)(iv)'!G49+'Sch XI(a)(v)'!G49+'Sch XI(a)(vi)'!G49+'Sch XI(a)(vii)'!G49+'Sch XI(a)(viii)'!G49","v":0},{"$f":"'Sch XI(a)(i)'!H49+'Sch XI(a)(ii)'!H49+'Sch XI(a)(iii)'!H49+'Sch XI(a)(iv)'!H49+'Sch XI(a)(v)'!H49+'Sch XI(a)(vi)'!H49+'Sch XI(a)(vii)'!H49+'Sch XI(a)(viii)'!H49","v":0},{"$f":"'Sch XI(a)(i)'!I49+'Sch XI(a)(ii)'!I49+'Sch XI(a)(iii)'!I49+'Sch XI(a)(iv)'!I49+'Sch XI(a)(v)'!I49+'Sch XI(a)(vi)'!I49+'Sch XI(a)(vii)'!I49+'Sch XI(a)(viii)'!I49","v":0},{"$f":"'Sch XI(a)(i)'!J49+'Sch XI(a)(ii)'!J49+'Sch XI(a)(iii)'!J49+'Sch XI(a)(iv)'!J49+'Sch XI(a)(v)'!J49+'Sch XI(a)(vi)'!J49+'Sch XI(a)(vii)'!J49+'Sch XI(a)(viii)'!J49","v":0},{"$f":"'Sch XI(a)(i)'!K49+'Sch XI(a)(ii)'!K49+'Sch XI(a)(iii)'!K49+'Sch XI(a)(iv)'!K49+'Sch XI(a)(v)'!K49+'Sch XI(a)(vi)'!K49+'Sch XI(a)(vii)'!K49+'Sch XI(a)(viii)'!K49","v":0},{"$f":"'Sch XI(a)(i)'!L49+'Sch XI(a)(ii)'!L49+'Sch XI(a)(iii)'!L49+'Sch XI(a)(iv)'!L49+'Sch XI(a)(v)'!L49+'Sch XI(a)(vi)'!L49+'Sch XI(a)(vii)'!L49+'Sch XI(a)(viii)'!L49","v":0},{"$f":"'Sch XI(a)(i)'!M49+'Sch XI(a)(ii)'!M49+'Sch XI(a)(iii)'!M49+'Sch XI(a)(iv)'!M49+'Sch XI(a)(v)'!M49+'Sch XI(a)(vi)'!M49+'Sch XI(a)(vii)'!M49+'Sch XI(a)(viii)'!M49","v":0}]
["L28",2015,"XXX","XXX",{"$f":"'Sch XI(a)(i)'!E50+'Sch XI(a)(ii)'!E50+'Sch XI(a)(iii)'!E50+'Sch XI(a)(iv)'!E50+'Sch XI(a)(v)'!E50+'Sch XI(a)(vi)'!E50+'Sch XI(a)(vii)'!E50+'Sch XI(a)(viii)'!E50","v":0},{"$f":"'Sch XI(a)(i)'!F50+'Sch XI(a)(ii)'!F50+'Sch XI(a)(iii)'!F50+'Sch XI(a)(iv)'!F50+'Sch XI(a)(v)'!F50+'Sch XI(a)(vi)'!F50+'Sch XI(a)(vii)'!F50+'Sch XI(a)(viii)'!F50","v":0},{"$f":"'Sch XI(a)(i)'!G50+'Sch XI(a)(ii)'!G50+'Sch XI(a)(iii)'!G50+'Sch XI(a)(iv)'!G50+'Sch XI(a)(v)'!G50+'Sch XI(a)(vi)'!G50+'Sch XI(a)(vii)'!G50+'Sch XI(a)(viii)'!G50","v":0},{"$f":"'Sch XI(a)(i)'!H50+'Sch XI(a)(ii)'!H50+'Sch XI(a)(iii)'!H50+'Sch XI(a)(iv)'!H50+'Sch XI(a)(v)'!H50+'Sch XI(a)(vi)'!H50+'Sch XI(a)(vii)'!H50+'Sch XI(a)(viii)'!H50","v":0},{"$f":"'Sch XI(a)(i)'!I50+'Sch XI(a)(ii)'!I50+'Sch XI(a)(iii)'!I50+'Sch XI(a)(iv)'!I50+'Sch XI(a)(v)'!I50+'Sch XI(a)(vi)'!I50+'Sch XI(a)(vii)'!I50+'Sch XI(a)(viii)'!I50","v":0},{"$f":"'Sch XI(a)(i)'!J50+'Sch XI(a)(ii)'!J50+'Sch XI(a)(iii)'!J50+'Sch XI(a)(iv)'!J50+'Sch XI(a)(v)'!J50+'Sch XI(a)(vi)'!J50+'Sch XI(a)(vii)'!J50+'Sch XI(a)(viii)'!J50","v":0},{"$f":"'Sch XI(a)(i)'!K50+'Sch XI(a)(ii)'!K50+'Sch XI(a)(iii)'!K50+'Sch XI(a)(iv)'!K50+'Sch XI(a)(v)'!K50+'Sch XI(a)(vi)'!K50+'Sch XI(a)(vii)'!K50+'Sch XI(a)(viii)'!K50","v":0},{"$f":"'Sch XI(a)(i)'!L50+'Sch XI(a)(ii)'!L50+'Sch XI(a)(iii)'!L50+'Sch XI(a)(iv)'!L50+'Sch XI(a)(v)'!L50+'Sch XI(a)(vi)'!L50+'Sch XI(a)(vii)'!L50+'Sch XI(a)(viii)'!L50","v":0},{"$f":"'Sch XI(a)(i)'!M50+'Sch XI(a)(ii)'!M50+'Sch XI(a)(iii)'!M50+'Sch XI(a)(iv)'!M50+'Sch XI(a)(v)'!M50+'Sch XI(a)(vi)'!M50+'Sch XI(a)(vii)'!M50+'Sch XI(a)(viii)'!M50","v":0}]
["L29",2016,"XXX","XXX","XXX",{"$f":"'Sch XI(a)(i)'!F51+'Sch XI(a)(ii)'!F51+'Sch XI(a)(iii)'!F51+'Sch XI(a)(iv)'!F51+'Sch XI(a)(v)'!F51+'Sch XI(a)(vi)'!F51+'Sch XI(a)(vii)'!F51+'Sch XI(a)(viii)'!F51","v":0},{"$f":"'Sch XI(a)(i)'!G51+'Sch XI(a)(ii)'!G51+'Sch XI(a)(iii)'!G51+'Sch XI(a)(iv)'!G51+'Sch XI(a)(v)'!G51+'Sch XI(a)(vi)'!G51+'Sch XI(a)(vii)'!G51+'Sch XI(a)(viii)'!G51","v":0},{"$f":"'Sch XI(a)(i)'!H51+'Sch XI(a)(ii)'!H51+'Sch XI(a)(iii)'!H51+'Sch XI(a)(iv)'!H51+'Sch XI(a)(v)'!H51+'Sch XI(a)(vi)'!H51+'Sch XI(a)(vii)'!H51+'Sch XI(a)(viii)'!H51","v":0},{"$f":"'Sch XI(a)(i)'!I51+'Sch XI(a)(ii)'!I51+'Sch XI(a)(iii)'!I51+'Sch XI(a)(iv)'!I51+'Sch XI(a)(v)'!I51+'Sch XI(a)(vi)'!I51+'Sch XI(a)(vii)'!I51+'Sch XI(a)(viii)'!I51","v":0},{"$f":"'Sch XI(a)(i)'!J51+'Sch XI(a)(ii)'!J51+'Sch XI(a)(iii)'!J51+'Sch XI(a)(iv)'!J51+'Sch XI(a)(v)'!J51+'Sch XI(a)(vi)'!J51+'Sch XI(a)(vii)'!J51+'Sch XI(a)(viii)'!J51","v":0},{"$f":"'Sch XI(a)(i)'!K51+'Sch XI(a)(ii)'!K51+'Sch XI(a)(iii)'!K51+'Sch XI(a)(iv)'!K51+'Sch XI(a)(v)'!K51+'Sch XI(a)(vi)'!K51+'Sch XI(a)(vii)'!K51+'Sch XI(a)(viii)'!K51","v":0},{"$f":"'Sch XI(a)(i)'!L51+'Sch XI(a)(ii)'!L51+'Sch XI(a)(iii)'!L51+'Sch XI(a)(iv)'!L51+'Sch XI(a)(v)'!L51+'Sch XI(a)(vi)'!L51+'Sch XI(a)(vii)'!L51+'Sch XI(a)(viii)'!L51","v":0},{"$f":"'Sch XI(a)(i)'!M51+'Sch XI(a)(ii)'!M51+'Sch XI(a)(iii)'!M51+'Sch XI(a)(iv)'!M51+'Sch XI(a)(v)'!M51+'Sch XI(a)(vi)'!M51+'Sch XI(a)(vii)'!M51+'Sch XI(a)(viii)'!M51","v":0}]
["L30",2017,"XXX","XXX","XXX","XXX",{"$f":"'Sch XI(a)(i)'!G52+'Sch XI(a)(ii)'!G52+'Sch XI(a)(iii)'!G52+'Sch XI(a)(iv)'!G52+'Sch XI(a)(v)'!G52+'Sch XI(a)(vi)'!G52+'Sch XI(a)(vii)'!G52+'Sch XI(a)(viii)'!G52","v":0},{"$f":"'Sch XI(a)(i)'!H52+'Sch XI(a)(ii)'!H52+'Sch XI(a)(iii)'!H52+'Sch XI(a)(iv)'!H52+'Sch XI(a)(v)'!H52+'Sch XI(a)(vi)'!H52+'Sch XI(a)(vii)'!H52+'Sch XI(a)(viii)'!H52","v":0},{"$f":"'Sch XI(a)(i)'!I52+'Sch XI(a)(ii)'!I52+'Sch XI(a)(iii)'!I52+'Sch XI(a)(iv)'!I52+'Sch XI(a)(v)'!I52+'Sch XI(a)(vi)'!I52+'Sch XI(a)(vii)'!I52+'Sch XI(a)(viii)'!I52","v":0},{"$f":"'Sch XI(a)(i)'!J52+'Sch XI(a)(ii)'!J52+'Sch XI(a)(iii)'!J52+'Sch XI(a)(iv)'!J52+'Sch XI(a)(v)'!J52+'Sch XI(a)(vi)'!J52+'Sch XI(a)(vii)'!J52+'Sch XI(a)(viii)'!J52","v":0},{"$f":"'Sch XI(a)(i)'!K52+'Sch XI(a)(ii)'!K52+'Sch XI(a)(iii)'!K52+'Sch XI(a)(iv)'!K52+'Sch XI(a)(v)'!K52+'Sch XI(a)(vi)'!K52+'Sch XI(a)(vii)'!K52+'Sch XI(a)(viii)'!K52","v":0},{"$f":"'Sch XI(a)(i)'!L52+'Sch XI(a)(ii)'!L52+'Sch XI(a)(iii)'!L52+'Sch XI(a)(iv)'!L52+'Sch XI(a)(v)'!L52+'Sch XI(a)(vi)'!L52+'Sch XI(a)(vii)'!L52+'Sch XI(a)(viii)'!L52","v":0},{"$f":"'Sch XI(a)(i)'!M52+'Sch XI(a)(ii)'!M52+'Sch XI(a)(iii)'!M52+'Sch XI(a)(iv)'!M52+'Sch XI(a)(v)'!M52+'Sch XI(a)(vi)'!M52+'Sch XI(a)(vii)'!M52+'Sch XI(a)(viii)'!M52","v":0}]
["L31",2018,"XXX","XXX","XXX","XXX","XXX",{"$f":"'Sch XI(a)(i)'!H53+'Sch XI(a)(ii)'!H53+'Sch XI(a)(iii)'!H53+'Sch XI(a)(iv)'!H53+'Sch XI(a)(v)'!H53+'Sch XI(a)(vi)'!H53+'Sch XI(a)(vii)'!H53+'Sch XI(a)(viii)'!H53","v":0},{"$f":"'Sch XI(a)(i)'!I53+'Sch XI(a)(ii)'!I53+'Sch XI(a)(iii)'!I53+'Sch XI(a)(iv)'!I53+'Sch XI(a)(v)'!I53+'Sch XI(a)(vi)'!I53+'Sch XI(a)(vii)'!I53+'Sch XI(a)(viii)'!I53","v":0},{"$f":"'Sch XI(a)(i)'!J53+'Sch XI(a)(ii)'!J53+'Sch XI(a)(iii)'!J53+'Sch XI(a)(iv)'!J53+'Sch XI(a)(v)'!J53+'Sch XI(a)(vi)'!J53+'Sch XI(a)(vii)'!J53+'Sch XI(a)(viii)'!J53","v":0},{"$f":"'Sch XI(a)(i)'!K53+'Sch XI(a)(ii)'!K53+'Sch XI(a)(iii)'!K53+'Sch XI(a)(iv)'!K53+'Sch XI(a)(v)'!K53+'Sch XI(a)(vi)'!K53+'Sch XI(a)(vii)'!K53+'Sch XI(a)(viii)'!K53","v":0},{"$f":"'Sch XI(a)(i)'!L53+'Sch XI(a)(ii)'!L53+'Sch XI(a)(iii)'!L53+'Sch XI(a)(iv)'!L53+'Sch XI(a)(v)'!L53+'Sch XI(a)(vi)'!L53+'Sch XI(a)(vii)'!L53+'Sch XI(a)(viii)'!L53","v":0},{"$f":"'Sch XI(a)(i)'!M53+'Sch XI(a)(ii)'!M53+'Sch XI(a)(iii)'!M53+'Sch XI(a)(iv)'!M53+'Sch XI(a)(v)'!M53+'Sch XI(a)(vi)'!M53+'Sch XI(a)(vii)'!M53+'Sch XI(a)(viii)'!M53","v":0}]
["L32",2019,"XXX","XXX","XXX","XXX","XXX","XXX",{"$f":"'Sch XI(a)(i)'!I54+'Sch XI(a)(ii)'!I54+'Sch XI(a)(iii)'!I54+'Sch XI(a)(iv)'!I54+'Sch XI(a)(v)'!I54+'Sch XI(a)(vi)'!I54+'Sch XI(a)(vii)'!I54+'Sch XI(a)(viii)'!I54","v":0},{"$f":"'Sch XI(a)(i)'!J54+'Sch XI(a)(ii)'!J54+'Sch XI(a)(iii)'!J54+'Sch XI(a)(iv)'!J54+'Sch XI(a)(v)'!J54+'Sch XI(a)(vi)'!J54+'Sch XI(a)(vii)'!J54+'Sch XI(a)(viii)'!J54","v":0},{"$f":"'Sch XI(a)(i)'!K54+'Sch XI(a)(ii)'!K54+'Sch XI(a)(iii)'!K54+'Sch XI(a)(iv)'!K54+'Sch XI(a)(v)'!K54+'Sch XI(a)(vi)'!K54+'Sch XI(a)(vii)'!K54+'Sch XI(a)(viii)'!K54","v":0},{"$f":"'Sch XI(a)(i)'!L54+'Sch XI(a)(ii)'!L54+'Sch XI(a)(iii)'!L54+'Sch XI(a)(iv)'!L54+'Sch XI(a)(v)'!L54+'Sch XI(a)(vi)'!L54+'Sch XI(a)(vii)'!L54+'Sch XI(a)(viii)'!L54","v":0},{"$f":"'Sch XI(a)(i)'!M54+'Sch XI(a)(ii)'!M54+'Sch XI(a)(iii)'!M54+'Sch XI(a)(iv)'!M54+'Sch XI(a)(v)'!M54+'Sch XI(a)(vi)'!M54+'Sch XI(a)(vii)'!M54+'Sch XI(a)(viii)'!M54","v":0}]
["L33",2020,"XXX","XXX","XXX","XXX","XXX","XXX","XXX",{"$f":"'Sch XI(a)(i)'!J55+'Sch XI(a)(ii)'!J55+'Sch XI(a)(iii)'!J55+'Sch XI(a)(iv)'!J55+'Sch XI(a)(v)'!J55+'Sch XI(a)(vi)'!J55+'Sch XI(a)(vii)'!J55+'Sch XI(a)(viii)'!J55","v":0},{"$f":"'Sch XI(a)(i)'!K55+'Sch XI(a)(ii)'!K55+'Sch XI(a)(iii)'!K55+'Sch XI(a)(iv)'!K55+'Sch XI(a)(v)'!K55+'Sch XI(a)(vi)'!K55+'Sch XI(a)(vii)'!K55+'Sch XI(a)(viii)'!K55","v":0},{"$f":"'Sch XI(a)(i)'!L55+'Sch XI(a)(ii)'!L55+'Sch XI(a)(iii)'!L55+'Sch XI(a)(iv)'!L55+'Sch XI(a)(v)'!L55+'Sch XI(a)(vi)'!L55+'Sch XI(a)(vii)'!L55+'Sch XI(a)(viii)'!L55","v":0},{"$f":"'Sch XI(a)(i)'!M55+'Sch XI(a)(ii)'!M55+'Sch XI(a)(iii)'!M55+'Sch XI(a)(iv)'!M55+'Sch XI(a)(v)'!M55+'Sch XI(a)(vi)'!M55+'Sch XI(a)(vii)'!M55+'Sch XI(a)(viii)'!M55","v":0}]
["L34",2021,"XXX","XXX","XXX","XXX","XXX","XXX","XXX","XXX",{"$f":"'Sch XI(a)(i)'!K56+'Sch XI(a)(ii)'!K56+'Sch XI(a)(iii)'!K56+'Sch XI(a)(iv)'!K56+'Sch XI(a)(v)'!K56+'Sch XI(a)(vi)'!K56+'Sch XI(a)(vii)'!K56+'Sch XI(a)(viii)'!K56","v":0},{"$f":"'Sch XI(a)(i)'!L56+'Sch XI(a)(ii)'!L56+'Sch XI(a)(iii)'!L56+'Sch XI(a)(iv)'!L56+'Sch XI(a)(v)'!L56+'Sch XI(a)(vi)'!L56+'Sch XI(a)(vii)'!L56+'Sch XI(a)(viii)'!L56","v":0},{"$f":"'Sch XI(a)(i)'!M56+'Sch XI(a)(ii)'!M56+'Sch XI(a)(iii)'!M56+'Sch XI(a)(iv)'!M56+'Sch XI(a)(v)'!M56+'Sch XI(a)(vi)'!M56+'Sch XI(a)(vii)'!M56+'Sch XI(a)(viii)'!M56","v":0}]
["L35",{"$f":"L46","v":2022},"XXX","XXX","XXX","XXX","XXX","XXX","XXX","XXX","XXX",{"$f":"'Sch XI(a)(i)'!L57+'Sch XI(a)(ii)'!L57+'Sch XI(a)(iii)'!L57+'Sch XI(a)(iv)'!L57+'Sch XI(a)(v)'!L57+'Sch XI(a)(vi)'!L57+'Sch XI(a)(vii)'!L57+'Sch XI(a)(viii)'!L57","v":0},{"$f":"'Sch XI(a)(i)'!M57+'Sch XI(a)(ii)'!M57+'Sch XI(a)(iii)'!M57+'Sch XI(a)(iv)'!M57+'Sch XI(a)(v)'!M57+'Sch XI(a)(vi)'!M57+'Sch XI(a)(vii)'!M57+'Sch XI(a)(viii)'!M57","v":0}]
["L36","Totals",null,null,null,null,null,null,null,null,null,null,{"$f":"SUM(M47:M57)","v":0}]
[]
[null,null,36,37,38,39,"Unallocated Loss",null,null,42,43,44,45]
[null,"Years in Which",null,null,null,null,"Adjustment Expenses",null,null,"Commission and Brokerage Expense (Form 2A, Line 9)","General and Administrative Expense (Form 2A, Line 10)"]
[null,"Premiums",null,null,null,null,40,41,null,null,null,"Personnel Costs (Form 2A, Line 11)"]
[null,"Were"]
[null,"Earned and","Gross","Gross","Net","Net",null,null,null,null,null,null,"Other"]
[null,"Losses Were","Premiums","Premiums","Premiums","Premiums",null,null,"Calendar",null,null,null,"Expense"]
[null,"Incurred","Written","Earned","Written","Earned","Paid","Incurred","Year",null,null,null,"(Form 2A, Line 12)"]
["L37","Prior","XXX",{"$f":"C67","v":"XXX"},"XXX",{"$f":"E67","v":"XXX"},{"$f":"'Sch XI(a)(i)'!G67+'Sch XI(a)(ii)'!G67+'Sch XI(a)(iii)'!G67+'Sch XI(a)(iv)'!G67+'Sch XI(a)(v)'!G67+'Sch XI(a)(vi)'!G67+'Sch XI(a)(vii)'!G67+'Sch XI(a)(viii)'!G67","v":0},{"$f":"'Sch XI(a)(i)'!H67+'Sch XI(a)(ii)'!H67+'Sch XI(a)(iii)'!H67+'Sch XI(a)(iv)'!H67+'Sch XI(a)(v)'!H67+'Sch XI(a)(vi)'!H67+'Sch XI(a)(vii)'!H67+'Sch XI(a)(viii)'!H67","v":0},"Prior",{"$f":"'Sch XI(a)(i)'!J67+'Sch XI(a)(ii)'!J67+'Sch XI(a)(iii)'!J67+'Sch XI(a)(iv)'!J67+'Sch XI(a)(v)'!J67+'Sch XI(a)(vi)'!J67+'Sch XI(a)(vii)'!J67+'Sch XI(a)(viii)'!J67","v":0},{"$f":"'Sch XI(a)(i)'!K67+'Sch XI(a)(ii)'!K67+'Sch XI(a)(iii)'!K67+'Sch XI(a)(iv)'!K67+'Sch XI(a)(v)'!K67+'Sch XI(a)(vi)'!K67+'Sch XI(a)(vii)'!K67+'Sch XI(a)(viii)'!K67","v":0},{"$f":"'Sch XI(a)(i)'!L67+'Sch XI(a)(ii)'!L67+'Sch XI(a)(iii)'!L67+'Sch XI(a)(iv)'!L67+'Sch XI(a)(v)'!L67+'Sch XI(a)(vi)'!L67+'Sch XI(a)(vii)'!L67+'Sch XI(a)(viii)'!L67","v":0},{"$f":"'Sch XI(a)(i)'!M67+'Sch XI(a)(ii)'!M67+'Sch XI(a)(iii)'!M67+'Sch XI(a)(iv)'!M67+'Sch XI(a)(v)'!M67+'Sch XI(a)(vi)'!M67+'Sch XI(a)(vii)'!M67+'Sch XI(a)(viii)'!M67","v":0}]
["L38",{"$f":"B69-1","v":2013},{"$f":"'Sch XI(a)(i)'!C68+'Sch XI(a)(ii)'!C68+'Sch XI(a)(iii)'!C68+'Sch XI(a)(iv)'!C68+'Sch XI(a)(v)'!C68+'Sch XI(a)(vi)'!C68+'Sch XI(a)(vii)'!C68+'Sch XI(a)(viii)'!C68","v":0},{"$f":"'Sch XI(a)(i)'!D68+'Sch XI(a)(ii)'!D68+'Sch XI(a)(iii)'!D68+'Sch XI(a)(iv)'!D68+'Sch XI(a)(v)'!D68+'Sch XI(a)(vi)'!D68+'Sch XI(a)(vii)'!D68+'Sch XI(a)(viii)'!D68","v":0},{"$f":"'Sch XI(a)(i)'!E68+'Sch XI(a)(ii)'!E68+'Sch XI(a)(iii)'!E68+'Sch XI(a)(iv)'!E68+'Sch XI(a)(v)'!E68+'Sch XI(a)(vi)'!E68+'Sch XI(a)(vii)'!E68+'Sch XI(a)(viii)'!E68","v":0},{"$f":"'Sch XI(a)(i)'!F68+'Sch XI(a)(ii)'!F68+'Sch XI(a)(iii)'!F68+'Sch XI(a)(iv)'!F68+'Sch XI(a)(v)'!F68+'Sch XI(a)(vi)'!F68+'Sch XI(a)(vii)'!F68+'Sch XI(a)(viii)'!F68","v":0},{"$f":"'Sch XI(a)(i)'!G68+'Sch XI(a)(ii)'!G68+'Sch XI(a)(iii)'!G68+'Sch XI(a)(iv)'!G68+'Sch XI(a)(v)'!G68+'Sch XI(a)(vi)'!G68+'Sch XI(a)(vii)'!G68+'Sch XI(a)(viii)'!G68","v":0},{"$f":"'Sch XI(a)(i)'!H68+'Sch XI(a)(ii)'!H68+'Sch XI(a)(iii)'!H68+'Sch XI(a)(iv)'!H68+'Sch XI(a)(v)'!H68+'Sch XI(a)(vi)'!H68+'Sch XI(a)(vii)'!H68+'Sch XI(a)(viii)'!H68","v":0},{"$f":"B68","v":2013},{"$f":"'Sch XI(a)(i)'!J68+'Sch XI(a)(ii)'!J68+'Sch XI(a)(iii)'!J68+'Sch XI(a)(iv)'!J68+'Sch XI(a)(v)'!J68+'Sch XI(a)(vi)'!J68+'Sch XI(a)(vii)'!J68+'Sch XI(a)(viii)'!J68","v":0},{"$f":"'Sch XI(a)(i)'!K68+'Sch XI(a)(ii)'!K68+'Sch XI(a)(iii)'!K68+'Sch XI(a)(iv)'!K68+'Sch XI(a)(v)'!K68+'Sch XI(a)(vi)'!K68+'Sch XI(a)(vii)'!K68+'Sch XI(a)(viii)'!K68","v":0},{"$f":"'Sch XI(a)(i)'!L68+'Sch XI(a)(ii)'!L68+'Sch XI(a)(iii)'!L68+'Sch XI(a)(iv)'!L68+'Sch XI(a)(v)'!L68+'Sch XI(a)(vi)'!L68+'Sch XI(a)(vii)'!L68+'Sch XI(a)(viii)'!L68","v":0},{"$f":"'Sch XI(a)(i)'!M68+'Sch XI(a)(ii)'!M68+'Sch XI(a)(iii)'!M68+'Sch XI(a)(iv)'!M68+'Sch XI(a)(v)'!M68+'Sch XI(a)(vi)'!M68+'Sch XI(a)(vii)'!M68+'Sch XI(a)(viii)'!M68","v":0}]
["L39",2014,{"$f":"'Sch XI(a)(i)'!C69+'Sch XI(a)(ii)'!C69+'Sch XI(a)(iii)'!C69+'Sch XI(a)(iv)'!C69+'Sch XI(a)(v)'!C69+'Sch XI(a)(vi)'!C69+'Sch XI(a)(vii)'!C69+'Sch XI(a)(viii)'!C69","v":0},{"$f":"'Sch XI(a)(i)'!D69+'Sch XI(a)(ii)'!D69+'Sch XI(a)(iii)'!D69+'Sch XI(a)(iv)'!D69+'Sch XI(a)(v)'!D69+'Sch XI(a)(vi)'!D69+'Sch XI(a)(vii)'!D69+'Sch XI(a)(viii)'!D69","v":0},{"$f":"'Sch XI(a)(i)'!E69+'Sch XI(a)(ii)'!E69+'Sch XI(a)(iii)'!E69+'Sch XI(a)(iv)'!E69+'Sch XI(a)(v)'!E69+'Sch XI(a)(vi)'!E69+'Sch XI(a)(vii)'!E69+'Sch XI(a)(viii)'!E69","v":0},{"$f":"'Sch XI(a)(i)'!F69+'Sch XI(a)(ii)'!F69+'Sch XI(a)(iii)'!F69+'Sch XI(a)(iv)'!F69+'Sch XI(a)(v)'!F69+'Sch XI(a)(vi)'!F69+'Sch XI(a)(vii)'!F69+'Sch XI(a)(viii)'!F69","v":0},{"$f":"'Sch XI(a)(i)'!G69+'Sch XI(a)(ii)'!G69+'Sch XI(a)(iii)'!G69+'Sch XI(a)(iv)'!G69+'Sch XI(a)(v)'!G69+'Sch XI(a)(vi)'!G69+'Sch XI(a)(vii)'!G69+'Sch XI(a)(viii)'!G69","v":0},{"$f":"'Sch XI(a)(i)'!H69+'Sch XI(a)(ii)'!H69+'Sch XI(a)(iii)'!H69+'Sch XI(a)(iv)'!H69+'Sch XI(a)(v)'!H69+'Sch XI(a)(vi)'!H69+'Sch XI(a)(vii)'!H69+'Sch XI(a)(viii)'!H69","v":0},2014,{"$f":"'Sch XI(a)(i)'!J69+'Sch XI(a)(ii)'!J69+'Sch XI(a)(iii)'!J69+'Sch XI(a)(iv)'!J69+'Sch XI(a)(v)'!J69+'Sch XI(a)(vi)'!J69+'Sch XI(a)(vii)'!J69+'Sch XI(a)(viii)'!J69","v":0},{"$f":"'Sch XI(a)(i)'!K69+'Sch XI(a)(ii)'!K69+'Sch XI(a)(iii)'!K69+'Sch XI(a)(iv)'!K69+'Sch XI(a)(v)'!K69+'Sch XI(a)(vi)'!K69+'Sch XI(a)(vii)'!K69+'Sch XI(a)(viii)'!K69","v":0},{"$f":"'Sch XI(a)(i)'!L69+'Sch XI(a)(ii)'!L69+'Sch XI(a)(iii)'!L69+'Sch XI(a)(iv)'!L69+'Sch XI(a)(v)'!L69+'Sch XI(a)(vi)'!L69+'Sch XI(a)(vii)'!L69+'Sch XI(a)(viii)'!L69","v":0},{"$f":"'Sch XI(a)(i)'!M69+'Sch XI(a)(ii)'!M69+'Sch XI(a)(iii)'!M69+'Sch XI(a)(iv)'!M69+'Sch XI(a)(v)'!M69+'Sch XI(a)(vi)'!M69+'Sch XI(a)(vii)'!M69+'Sch XI(a)(viii)'!M69","v":0}]
["L40",2015,{"$f":"'Sch XI(a)(i)'!C70+'Sch XI(a)(ii)'!C70+'Sch XI(a)(iii)'!C70+'Sch XI(a)(iv)'!C70+'Sch XI(a)(v)'!C70+'Sch XI(a)(vi)'!C70+'Sch XI(a)(vii)'!C70+'Sch XI(a)(viii)'!C70","v":0},{"$f":"'Sch XI(a)(i)'!D70+'Sch XI(a)(ii)'!D70+'Sch XI(a)(iii)'!D70+'Sch XI(a)(iv)'!D70+'Sch XI(a)(v)'!D70+'Sch XI(a)(vi)'!D70+'Sch XI(a)(vii)'!D70+'Sch XI(a)(viii)'!D70","v":0},{"$f":"'Sch XI(a)(i)'!E70+'Sch XI(a)(ii)'!E70+'Sch XI(a)(iii)'!E70+'Sch XI(a)(iv)'!E70+'Sch XI(a)(v)'!E70+'Sch XI(a)(vi)'!E70+'Sch XI(a)(vii)'!E70+'Sch XI(a)(viii)'!E70","v":0},{"$f":"'Sch XI(a)(i)'!F70+'Sch XI(a)(ii)'!F70+'Sch XI(a)(iii)'!F70+'Sch XI(a)(iv)'!F70+'Sch XI(a)(v)'!F70+'Sch XI(a)(vi)'!F70+'Sch XI(a)(vii)'!F70+'Sch XI(a)(viii)'!F70","v":0},{"$f":"'Sch XI(a)(i)'!G70+'Sch XI(a)(ii)'!G70+'Sch XI(a)(iii)'!G70+'Sch XI(a)(iv)'!G70+'Sch XI(a)(v)'!G70+'Sch XI(a)(vi)'!G70+'Sch XI(a)(vii)'!G70+'Sch XI(a)(viii)'!G70","v":0},{"$f":"'Sch XI(a)(i)'!H70+'Sch XI(a)(ii)'!H70+'Sch XI(a)(iii)'!H70+'Sch XI(a)(iv)'!H70+'Sch XI(a)(v)'!H70+'Sch XI(a)(vi)'!H70+'Sch XI(a)(vii)'!H70+'Sch XI(a)(viii)'!H70","v":0},2015,{"$f":"'Sch XI(a)(i)'!J70+'Sch XI(a)(ii)'!J70+'Sch XI(a)(iii)'!J70+'Sch XI(a)(iv)'!J70+'Sch XI(a)(v)'!J70+'Sch XI(a)(vi)'!J70+'Sch XI(a)(vii)'!J70+'Sch XI(a)(viii)'!J70","v":0},{"$f":"'Sch XI(a)(i)'!K70+'Sch XI(a)(ii)'!K70+'Sch XI(a)(iii)'!K70+'Sch XI(a)(iv)'!K70+'Sch XI(a)(v)'!K70+'Sch XI(a)(vi)'!K70+'Sch XI(a)(vii)'!K70+'Sch XI(a)(viii)'!K70","v":0},{"$f":"'Sch XI(a)(i)'!L70+'Sch XI(a)(ii)'!L70+'Sch XI(a)(iii)'!L70+'Sch XI(a)(iv)'!L70+'Sch XI(a)(v)'!L70+'Sch XI(a)(vi)'!L70+'Sch XI(a)(vii)'!L70+'Sch XI(a)(viii)'!L70","v":0},{"$f":"'Sch XI(a)(i)'!M70+'Sch XI(a)(ii)'!M70+'Sch XI(a)(iii)'!M70+'Sch XI(a)(iv)'!M70+'Sch XI(a)(v)'!M70+'Sch XI(a)(vi)'!M70+'Sch XI(a)(vii)'!M70+'Sch XI(a)(viii)'!M70","v":0}]
["L41",2016,{"$f":"'Sch XI(a)(i)'!C71+'Sch XI(a)(ii)'!C71+'Sch XI(a)(iii)'!C71+'Sch XI(a)(iv)'!C71+'Sch XI(a)(v)'!C71+'Sch XI(a)(vi)'!C71+'Sch XI(a)(vii)'!C71+'Sch XI(a)(viii)'!C71","v":0},{"$f":"'Sch XI(a)(i)'!D71+'Sch XI(a)(ii)'!D71+'Sch XI(a)(iii)'!D71+'Sch XI(a)(iv)'!D71+'Sch XI(a)(v)'!D71+'Sch XI(a)(vi)'!D71+'Sch XI(a)(vii)'!D71+'Sch XI(a)(viii)'!D71","v":0},{"$f":"'Sch XI(a)(i)'!E71+'Sch XI(a)(ii)'!E71+'Sch XI(a)(iii)'!E71+'Sch XI(a)(iv)'!E71+'Sch XI(a)(v)'!E71+'Sch XI(a)(vi)'!E71+'Sch XI(a)(vii)'!E71+'Sch XI(a)(viii)'!E71","v":0},{"$f":"'Sch XI(a)(i)'!F71+'Sch XI(a)(ii)'!F71+'Sch XI(a)(iii)'!F71+'Sch XI(a)(iv)'!F71+'Sch XI(a)(v)'!F71+'Sch XI(a)(vi)'!F71+'Sch XI(a)(vii)'!F71+'Sch XI(a)(viii)'!F71","v":0},{"$f":"'Sch XI(a)(i)'!G71+'Sch XI(a)(ii)'!G71+'Sch XI(a)(iii)'!G71+'Sch XI(a)(iv)'!G71+'Sch XI(a)(v)'!G71+'Sch XI(a)(vi)'!G71+'Sch XI(a)(vii)'!G71+'Sch XI(a)(viii)'!G71","v":0},{"$f":"'Sch XI(a)(i)'!H71+'Sch XI(a)(ii)'!H71+'Sch XI(a)(iii)'!H71+'Sch XI(a)(iv)'!H71+'Sch XI(a)(v)'!H71+'Sch XI(a)(vi)'!H71+'Sch XI(a)(vii)'!H71+'Sch XI(a)(viii)'!H71","v":0},2016,{"$f":"'Sch XI(a)(i)'!J71+'Sch XI(a)(ii)'!J71+'Sch XI(a)(iii)'!J71+'Sch XI(a)(iv)'!J71+'Sch XI(a)(v)'!J71+'Sch XI(a)(vi)'!J71+'Sch XI(a)(vii)'!J71+'Sch XI(a)(viii)'!J71","v":0},{"$f":"'Sch XI(a)(i)'!K71+'Sch XI(a)(ii)'!K71+'Sch XI(a)(iii)'!K71+'Sch XI(a)(iv)'!K71+'Sch XI(a)(v)'!K71+'Sch XI(a)(vi)'!K71+'Sch XI(a)(vii)'!K71+'Sch XI(a)(viii)'!K71","v":0},{"$f":"'Sch XI(a)(i)'!L71+'Sch XI(a)(ii)'!L71+'Sch XI(a)(iii)'!L71+'Sch XI(a)(iv)'!L71+'Sch XI(a)(v)'!L71+'Sch XI(a)(vi)'!L71+'Sch XI(a)(vii)'!L71+'Sch XI(a)(viii)'!L71","v":0},{"$f":"'Sch XI(a)(i)'!M71+'Sch XI(a)(ii)'!M71+'Sch XI(a)(iii)'!M71+'Sch XI(a)(iv)'!M71+'Sch XI(a)(v)'!M71+'Sch XI(a)(vi)'!M71+'Sch XI(a)(vii)'!M71+'Sch XI(a)(viii)'!M71","v":0}]
["L42",2017,{"$f":"'Sch XI(a)(i)'!C72+'Sch XI(a)(ii)'!C72+'Sch XI(a)(iii)'!C72+'Sch XI(a)(iv)'!C72+'Sch XI(a)(v)'!C72+'Sch XI(a)(vi)'!C72+'Sch XI(a)(vii)'!C72+'Sch XI(a)(viii)'!C72","v":0},{"$f":"'Sch XI(a)(i)'!D72+'Sch XI(a)(ii)'!D72+'Sch XI(a)(iii)'!D72+'Sch XI(a)(iv)'!D72+'Sch XI(a)(v)'!D72+'Sch XI(a)(vi)'!D72+'Sch XI(a)(vii)'!D72+'Sch XI(a)(viii)'!D72","v":0},{"$f":"'Sch XI(a)(i)'!E72+'Sch XI(a)(ii)'!E72+'Sch XI(a)(iii)'!E72+'Sch XI(a)(iv)'!E72+'Sch XI(a)(v)'!E72+'Sch XI(a)(vi)'!E72+'Sch XI(a)(vii)'!E72+'Sch XI(a)(viii)'!E72","v":0},{"$f":"'Sch XI(a)(i)'!F72+'Sch XI(a)(ii)'!F72+'Sch XI(a)(iii)'!F72+'Sch XI(a)(iv)'!F72+'Sch XI(a)(v)'!F72+'Sch XI(a)(vi)'!F72+'Sch XI(a)(vii)'!F72+'Sch XI(a)(viii)'!F72","v":0},{"$f":"'Sch XI(a)(i)'!G72+'Sch XI(a)(ii)'!G72+'Sch XI(a)(iii)'!G72+'Sch XI(a)(iv)'!G72+'Sch XI(a)(v)'!G72+'Sch XI(a)(vi)'!G72+'Sch XI(a)(vii)'!G72+'Sch XI(a)(viii)'!G72","v":0},{"$f":"'Sch XI(a)(i)'!H72+'Sch XI(a)(ii)'!H72+'Sch XI(a)(iii)'!H72+'Sch XI(a)(iv)'!H72+'Sch XI(a)(v)'!H72+'Sch XI(a)(vi)'!H72+'Sch XI(a)(vii)'!H72+'Sch XI(a)(viii)'!H72","v":0},2017,{"$f":"'Sch XI(a)(i)'!J72+'Sch XI(a)(ii)'!J72+'Sch XI(a)(iii)'!J72+'Sch XI(a)(iv)'!J72+'Sch XI(a)(v)'!J72+'Sch XI(a)(vi)'!J72+'Sch XI(a)(vii)'!J72+'Sch XI(a)(viii)'!J72","v":0},{"$f":"'Sch XI(a)(i)'!K72+'Sch XI(a)(ii)'!K72+'Sch XI(a)(iii)'!K72+'Sch XI(a)(iv)'!K72+'Sch XI(a)(v)'!K72+'Sch XI(a)(vi)'!K72+'Sch XI(a)(vii)'!K72+'Sch XI(a)(viii)'!K72","v":0},{"$f":"'Sch XI(a)(i)'!L72+'Sch XI(a)(ii)'!L72+'Sch XI(a)(iii)'!L72+'Sch XI(a)(iv)'!L72+'Sch XI(a)(v)'!L72+'Sch XI(a)(vi)'!L72+'Sch XI(a)(vii)'!L72+'Sch XI(a)(viii)'!L72","v":0},{"$f":"'Sch XI(a)(i)'!M72+'Sch XI(a)(ii)'!M72+'Sch XI(a)(iii)'!M72+'Sch XI(a)(iv)'!M72+'Sch XI(a)(v)'!M72+'Sch XI(a)(vi)'!M72+'Sch XI(a)(vii)'!M72+'Sch XI(a)(viii)'!M72","v":0}]
["L43",2018,{"$f":"'Sch XI(a)(i)'!C73+'Sch XI(a)(ii)'!C73+'Sch XI(a)(iii)'!C73+'Sch XI(a)(iv)'!C73+'Sch XI(a)(v)'!C73+'Sch XI(a)(vi)'!C73+'Sch XI(a)(vii)'!C73+'Sch XI(a)(viii)'!C73","v":0},{"$f":"'Sch XI(a)(i)'!D73+'Sch XI(a)(ii)'!D73+'Sch XI(a)(iii)'!D73+'Sch XI(a)(iv)'!D73+'Sch XI(a)(v)'!D73+'Sch XI(a)(vi)'!D73+'Sch XI(a)(vii)'!D73+'Sch XI(a)(viii)'!D73","v":0},{"$f":"'Sch XI(a)(i)'!E73+'Sch XI(a)(ii)'!E73+'Sch XI(a)(iii)'!E73+'Sch XI(a)(iv)'!E73+'Sch XI(a)(v)'!E73+'Sch XI(a)(vi)'!E73+'Sch XI(a)(vii)'!E73+'Sch XI(a)(viii)'!E73","v":0},{"$f":"'Sch XI(a)(i)'!F73+'Sch XI(a)(ii)'!F73+'Sch XI(a)(iii)'!F73+'Sch XI(a)(iv)'!F73+'Sch XI(a)(v)'!F73+'Sch XI(a)(vi)'!F73+'Sch XI(a)(vii)'!F73+'Sch XI(a)(viii)'!F73","v":0},{"$f":"'Sch XI(a)(i)'!G73+'Sch XI(a)(ii)'!G73+'Sch XI(a)(iii)'!G73+'Sch XI(a)(iv)'!G73+'Sch XI(a)(v)'!G73+'Sch XI(a)(vi)'!G73+'Sch XI(a)(vii)'!G73+'Sch XI(a)(viii)'!G73","v":0},{"$f":"'Sch XI(a)(i)'!H73+'Sch XI(a)(ii)'!H73+'Sch XI(a)(iii)'!H73+'Sch XI(a)(iv)'!H73+'Sch XI(a)(v)'!H73+'Sch XI(a)(vi)'!H73+'Sch XI(a)(vii)'!H73+'Sch XI(a)(viii)'!H73","v":0},2018,{"$f":"'Sch XI(a)(i)'!J73+'Sch XI(a)(ii)'!J73+'Sch XI(a)(iii)'!J73+'Sch XI(a)(iv)'!J73+'Sch XI(a)(v)'!J73+'Sch XI(a)(vi)'!J73+'Sch XI(a)(vii)'!J73+'Sch XI(a)(viii)'!J73","v":0},{"$f":"'Sch XI(a)(i)'!K73+'Sch XI(a)(ii)'!K73+'Sch XI(a)(iii)'!K73+'Sch XI(a)(iv)'!K73+'Sch XI(a)(v)'!K73+'Sch XI(a)(vi)'!K73+'Sch XI(a)(vii)'!K73+'Sch XI(a)(viii)'!K73","v":0},{"$f":"'Sch XI(a)(i)'!L73+'Sch XI(a)(ii)'!L73+'Sch XI(a)(iii)'!L73+'Sch XI(a)(iv)'!L73+'Sch XI(a)(v)'!L73+'Sch XI(a)(vi)'!L73+'Sch XI(a)(vii)'!L73+'Sch XI(a)(viii)'!L73","v":0},{"$f":"'Sch XI(a)(i)'!M73+'Sch XI(a)(ii)'!M73+'Sch XI(a)(iii)'!M73+'Sch XI(a)(iv)'!M73+'Sch XI(a)(v)'!M73+'Sch XI(a)(vi)'!M73+'Sch XI(a)(vii)'!M73+'Sch XI(a)(viii)'!M73","v":0}]
["L44",2019,{"$f":"'Sch XI(a)(i)'!C74+'Sch XI(a)(ii)'!C74+'Sch XI(a)(iii)'!C74+'Sch XI(a)(iv)'!C74+'Sch XI(a)(v)'!C74+'Sch XI(a)(vi)'!C74+'Sch XI(a)(vii)'!C74+'Sch XI(a)(viii)'!C74","v":0},{"$f":"'Sch XI(a)(i)'!D74+'Sch XI(a)(ii)'!D74+'Sch XI(a)(iii)'!D74+'Sch XI(a)(iv)'!D74+'Sch XI(a)(v)'!D74+'Sch XI(a)(vi)'!D74+'Sch XI(a)(vii)'!D74+'Sch XI(a)(viii)'!D74","v":0},{"$f":"'Sch XI(a)(i)'!E74+'Sch XI(a)(ii)'!E74+'Sch XI(a)(iii)'!E74+'Sch XI(a)(iv)'!E74+'Sch XI(a)(v)'!E74+'Sch XI(a)(vi)'!E74+'Sch XI(a)(vii)'!E74+'Sch XI(a)(viii)'!E74","v":0},{"$f":"'Sch XI(a)(i)'!F74+'Sch XI(a)(ii)'!F74+'Sch XI(a)(iii)'!F74+'Sch XI(a)(iv)'!F74+'Sch XI(a)(v)'!F74+'Sch XI(a)(vi)'!F74+'Sch XI(a)(vii)'!F74+'Sch XI(a)(viii)'!F74","v":0},{"$f":"'Sch XI(a)(i)'!G74+'Sch XI(a)(ii)'!G74+'Sch XI(a)(iii)'!G74+'Sch XI(a)(iv)'!G74+'Sch XI(a)(v)'!G74+'Sch XI(a)(vi)'!G74+'Sch XI(a)(vii)'!G74+'Sch XI(a)(viii)'!G74","v":0},{"$f":"'Sch XI(a)(i)'!H74+'Sch XI(a)(ii)'!H74+'Sch XI(a)(iii)'!H74+'Sch XI(a)(iv)'!H74+'Sch XI(a)(v)'!H74+'Sch XI(a)(vi)'!H74+'Sch XI(a)(vii)'!H74+'Sch XI(a)(viii)'!H74","v":0},2019,{"$f":"'Sch XI(a)(i)'!J74+'Sch XI(a)(ii)'!J74+'Sch XI(a)(iii)'!J74+'Sch XI(a)(iv)'!J74+'Sch XI(a)(v)'!J74+'Sch XI(a)(vi)'!J74+'Sch XI(a)(vii)'!J74+'Sch XI(a)(viii)'!J74","v":0},{"$f":"'Sch XI(a)(i)'!K74+'Sch XI(a)(ii)'!K74+'Sch XI(a)(iii)'!K74+'Sch XI(a)(iv)'!K74+'Sch XI(a)(v)'!K74+'Sch XI(a)(vi)'!K74+'Sch XI(a)(vii)'!K74+'Sch XI(a)(viii)'!K74","v":0},{"$f":"'Sch XI(a)(i)'!L74+'Sch XI(a)(ii)'!L74+'Sch XI(a)(iii)'!L74+'Sch XI(a)(iv)'!L74+'Sch XI(a)(v)'!L74+'Sch XI(a)(vi)'!L74+'Sch XI(a)(vii)'!L74+'Sch XI(a)(viii)'!L74","v":0},{"$f":"'Sch XI(a)(i)'!M74+'Sch XI(a)(ii)'!M74+'Sch XI(a)(iii)'!M74+'Sch XI(a)(iv)'!M74+'Sch XI(a)(v)'!M74+'Sch XI(a)(vi)'!M74+'Sch XI(a)(vii)'!M74+'Sch XI(a)(viii)'!M74","v":0}]
["L45",2020,{"$f":"'Sch XI(a)(i)'!C75+'Sch XI(a)(ii)'!C75+'Sch XI(a)(iii)'!C75+'Sch XI(a)(iv)'!C75+'Sch XI(a)(v)'!C75+'Sch XI(a)(vi)'!C75+'Sch XI(a)(vii)'!C75+'Sch XI(a)(viii)'!C75","v":0},{"$f":"'Sch XI(a)(i)'!D75+'Sch XI(a)(ii)'!D75+'Sch XI(a)(iii)'!D75+'Sch XI(a)(iv)'!D75+'Sch XI(a)(v)'!D75+'Sch XI(a)(vi)'!D75+'Sch XI(a)(vii)'!D75+'Sch XI(a)(viii)'!D75","v":0},{"$f":"'Sch XI(a)(i)'!E75+'Sch XI(a)(ii)'!E75+'Sch XI(a)(iii)'!E75+'Sch XI(a)(iv)'!E75+'Sch XI(a)(v)'!E75+'Sch XI(a)(vi)'!E75+'Sch XI(a)(vii)'!E75+'Sch XI(a)(viii)'!E75","v":0},{"$f":"'Sch XI(a)(i)'!F75+'Sch XI(a)(ii)'!F75+'Sch XI(a)(iii)'!F75+'Sch XI(a)(iv)'!F75+'Sch XI(a)(v)'!F75+'Sch XI(a)(vi)'!F75+'Sch XI(a)(vii)'!F75+'Sch XI(a)(viii)'!F75","v":0},{"$f":"'Sch XI(a)(i)'!G75+'Sch XI(a)(ii)'!G75+'Sch XI(a)(iii)'!G75+'Sch XI(a)(iv)'!G75+'Sch XI(a)(v)'!G75+'Sch XI(a)(vi)'!G75+'Sch XI(a)(vii)'!G75+'Sch XI(a)(viii)'!G75","v":0},{"$f":"'Sch XI(a)(i)'!H75+'Sch XI(a)(ii)'!H75+'Sch XI(a)(iii)'!H75+'Sch XI(a)(iv)'!H75+'Sch XI(a)(v)'!H75+'Sch XI(a)(vi)'!H75+'Sch XI(a)(vii)'!H75+'Sch XI(a)(viii)'!H75","v":0},2020,{"$f":"'Sch XI(a)(i)'!J75+'Sch XI(a)(ii)'!J75+'Sch XI(a)(iii)'!J75+'Sch XI(a)(iv)'!J75+'Sch XI(a)(v)'!J75+'Sch XI(a)(vi)'!J75+'Sch XI(a)(vii)'!J75+'Sch XI(a)(viii)'!J75","v":0},{"$f":"'Sch XI(a)(i)'!K75+'Sch XI(a)(ii)'!K75+'Sch XI(a)(iii)'!K75+'Sch XI(a)(iv)'!K75+'Sch XI(a)(v)'!K75+'Sch XI(a)(vi)'!K75+'Sch XI(a)(vii)'!K75+'Sch XI(a)(viii)'!K75","v":0},{"$f":"'Sch XI(a)(i)'!L75+'Sch XI(a)(ii)'!L75+'Sch XI(a)(iii)'!L75+'Sch XI(a)(iv)'!L75+'Sch XI(a)(v)'!L75+'Sch XI(a)(vi)'!L75+'Sch XI(a)(vii)'!L75+'Sch XI(a)(viii)'!L75","v":0},{"$f":"'Sch XI(a)(i)'!M75+'Sch XI(a)(ii)'!M75+'Sch XI(a)(iii)'!M75+'Sch XI(a)(iv)'!M75+'Sch XI(a)(v)'!M75+'Sch XI(a)(vi)'!M75+'Sch XI(a)(vii)'!M75+'Sch XI(a)(viii)'!M75","v":0}]
["L46",2021,{"$f":"'Sch XI(a)(i)'!C76+'Sch XI(a)(ii)'!C76+'Sch XI(a)(iii)'!C76+'Sch XI(a)(iv)'!C76+'Sch XI(a)(v)'!C76+'Sch XI(a)(vi)'!C76+'Sch XI(a)(vii)'!C76+'Sch XI(a)(viii)'!C76","v":0},{"$f":"'Sch XI(a)(i)'!D76+'Sch XI(a)(ii)'!D76+'Sch XI(a)(iii)'!D76+'Sch XI(a)(iv)'!D76+'Sch XI(a)(v)'!D76+'Sch XI(a)(vi)'!D76+'Sch XI(a)(vii)'!D76+'Sch XI(a)(viii)'!D76","v":0},{"$f":"'Sch XI(a)(i)'!E76+'Sch XI(a)(ii)'!E76+'Sch XI(a)(iii)'!E76+'Sch XI(a)(iv)'!E76+'Sch XI(a)(v)'!E76+'Sch XI(a)(vi)'!E76+'Sch XI(a)(vii)'!E76+'Sch XI(a)(viii)'!E76","v":0},{"$f":"'Sch XI(a)(i)'!F76+'Sch XI(a)(ii)'!F76+'Sch XI(a)(iii)'!F76+'Sch XI(a)(iv)'!F76+'Sch XI(a)(v)'!F76+'Sch XI(a)(vi)'!F76+'Sch XI(a)(vii)'!F76+'Sch XI(a)(viii)'!F76","v":0},{"$f":"'Sch XI(a)(i)'!G76+'Sch XI(a)(ii)'!G76+'Sch XI(a)(iii)'!G76+'Sch XI(a)(iv)'!G76+'Sch XI(a)(v)'!G76+'Sch XI(a)(vi)'!G76+'Sch XI(a)(vii)'!G76+'Sch XI(a)(viii)'!G76","v":0},{"$f":"'Sch XI(a)(i)'!H76+'Sch XI(a)(ii)'!H76+'Sch XI(a)(iii)'!H76+'Sch XI(a)(iv)'!H76+'Sch XI(a)(v)'!H76+'Sch XI(a)(vi)'!H76+'Sch XI(a)(vii)'!H76+'Sch XI(a)(viii)'!H76","v":0},2021,{"$f":"'Sch XI(a)(i)'!J76+'Sch XI(a)(ii)'!J76+'Sch XI(a)(iii)'!J76+'Sch XI(a)(iv)'!J76+'Sch XI(a)(v)'!J76+'Sch XI(a)(vi)'!J76+'Sch XI(a)(vii)'!J76+'Sch XI(a)(viii)'!J76","v":0},{"$f":"'Sch XI(a)(i)'!K76+'Sch XI(a)(ii)'!K76+'Sch XI(a)(iii)'!K76+'Sch XI(a)(iv)'!K76+'Sch XI(a)(v)'!K76+'Sch XI(a)(vi)'!K76+'Sch XI(a)(vii)'!K76+'Sch XI(a)(viii)'!K76","v":0},{"$f":"'Sch XI(a)(i)'!L76+'Sch XI(a)(ii)'!L76+'Sch XI(a)(iii)'!L76+'Sch XI(a)(iv)'!L76+'Sch XI(a)(v)'!L76+'Sch XI(a)(vi)'!L76+'Sch XI(a)(vii)'!L76+'Sch XI(a)(viii)'!L76","v":0},{"$f":"'Sch XI(a)(i)'!M76+'Sch XI(a)(ii)'!M76+'Sch XI(a)(iii)'!M76+'Sch XI(a)(iv)'!M76+'Sch XI(a)(v)'!M76+'Sch XI(a)(vi)'!M76+'Sch XI(a)(vii)'!M76+'Sch XI(a)(viii)'!M76","v":0}]
["L47",{"$f":"B39","v":2022},{"$f":"'Sch XI(a)(i)'!C77+'Sch XI(a)(ii)'!C77+'Sch XI(a)(iii)'!C77+'Sch XI(a)(iv)'!C77+'Sch XI(a)(v)'!C77+'Sch XI(a)(vi)'!C77+'Sch XI(a)(vii)'!C77+'Sch XI(a)(viii)'!C77","v":0},{"$f":"'Sch XI(a)(i)'!D77+'Sch XI(a)(ii)'!D77+'Sch XI(a)(iii)'!D77+'Sch XI(a)(iv)'!D77+'Sch XI(a)(v)'!D77+'Sch XI(a)(vi)'!D77+'Sch XI(a)(vii)'!D77+'Sch XI(a)(viii)'!D77","v":0},{"$f":"'Sch XI(a)(i)'!E77+'Sch XI(a)(ii)'!E77+'Sch XI(a)(iii)'!E77+'Sch XI(a)(iv)'!E77+'Sch XI(a)(v)'!E77+'Sch XI(a)(vi)'!E77+'Sch XI(a)(vii)'!E77+'Sch XI(a)(viii)'!E77","v":0},{"$f":"'Sch XI(a)(i)'!F77+'Sch XI(a)(ii)'!F77+'Sch XI(a)(iii)'!F77+'Sch XI(a)(iv)'!F77+'Sch XI(a)(v)'!F77+'Sch XI(a)(vi)'!F77+'Sch XI(a)(vii)'!F77+'Sch XI(a)(viii)'!F77","v":0},{"$f":"'Sch XI(a)(i)'!G77+'Sch XI(a)(ii)'!G77+'Sch XI(a)(iii)'!G77+'Sch XI(a)(iv)'!G77+'Sch XI(a)(v)'!G77+'Sch XI(a)(vi)'!G77+'Sch XI(a)(vii)'!G77+'Sch XI(a)(viii)'!G77","v":0},{"$f":"'Sch XI(a)(i)'!H77+'Sch XI(a)(ii)'!H77+'Sch XI(a)(iii)'!H77+'Sch XI(a)(iv)'!H77+'Sch XI(a)(v)'!H77+'Sch XI(a)(vi)'!H77+'Sch XI(a)(vii)'!H77+'Sch XI(a)(viii)'!H77","v":0},2022,{"$f":"'Sch XI(a)(i)'!J77+'Sch XI(a)(ii)'!J77+'Sch XI(a)(iii)'!J77+'Sch XI(a)(iv)'!J77+'Sch XI(a)(v)'!J77+'Sch XI(a)(vi)'!J77+'Sch XI(a)(vii)'!J77+'Sch XI(a)(viii)'!J77","v":0},{"$f":"'Sch XI(a)(i)'!K77+'Sch XI(a)(ii)'!K77+'Sch XI(a)(iii)'!K77+'Sch XI(a)(iv)'!K77+'Sch XI(a)(v)'!K77+'Sch XI(a)(vi)'!K77+'Sch XI(a)(vii)'!K77+'Sch XI(a)(viii)'!K77","v":0},{"$f":"'Sch XI(a)(i)'!L77+'Sch XI(a)(ii)'!L77+'Sch XI(a)(iii)'!L77+'Sch XI(a)(iv)'!L77+'Sch XI(a)(v)'!L77+'Sch XI(a)(vi)'!L77+'Sch XI(a)(vii)'!L77+'Sch XI(a)(viii)'!L77","v":0},{"$f":"'Sch XI(a)(i)'!M77+'Sch XI(a)(ii)'!M77+'Sch XI(a)(iii)'!M77+'Sch XI(a)(iv)'!M77+'Sch XI(a)(v)'!M77+'Sch XI(a)(vi)'!M77+'Sch XI(a)(vii)'!M77+'Sch XI(a)(viii)'!M77","v":0}]
["L48","Totals","XXX",{"$f":"C78","v":"XXX"},"XXX",{"$f":"E78","v":"XXX"},{"$f":"SUM(G67:G77)","v":0},{"$f":"SUM(H67:H77)","v":0},"Totals",{"$f":"SUM(J67:J77)","v":0},{"$f":"SUM(K67:K77)","v":0},{"$f":"SUM(L67:L77)","v":0},{"$f":"SUM(M67:M77)","v":0}]

{"sheet":"Sch XI(a)(i)","index":73,"n_rows":300,"n_cols":20,"rows_kept":300,"cut":false,"hidden":true,"merged":[[80,1,82,12],[5,2,5,11],[23,2,23,11],[41,2,41,11],[0,13,0,14],[2,13,2,14],[2,1,2,2],[59,6,59,7],[60,6,60,7]]}
[null,"SCHEDULE OF LOSS TRIANGLES (LINE 1 - PROPERTY CATASTROPHE)",null,null,null,null,null,null,null,null,null,null,null,{"$f":"HYPERLINK(\"#'Index'!A1\",\"Return to Index\")","v":"Return to Index"}]
[null,{"$f":"'Company Information'!C7","v":"Enter Company Name"}]
[null,{"$f":"'Company Information'!C3","v":"2022-12-31"},null,null,null,null,null,null,null,null,null,null,null,"SCHEDULE XI(a)(i)"]
[null,{"$f":"\"expressed in\"& IF(1000>1,\" ['\"&MID(1000,2,LEN(1000))&\"s]\",\"\")&\" \"&'Form 1EBS'!$C$4","v":"expressed in ['000s] United States Dollars"}]
[]
[null,"Accounting Basis: ","INCURRED (ESTIMATED ULTIMATE) NET LOSSES AND ALLOCATED LOSS ADJUSTMENT EXPENSES REPORTED AT YEAR END ($000)",null,null,null,null,null,null,null,null,null,11,12,13,null,"AcctBasis",{"$f":"B7","v":"Accident Year"}]
[null,"Accident Year",null,null,null,null,null,null,null,null,null,null,"Ultimate","Development","Development",null,{"$f":"\"UltCY\"&C$10&\"AY\"&B11","v":"UltCY2013AYPrior"},{"$f":"C11","v":0},{"$f":"\"CATUltCY\"&L$10&\"AY\"&B11","v":"CATUltCY2022AYPrior"},{"$f":"M11","v":0}]
[null,"Years in Which",1,2,3,4,5,6,7,8,9,10,"Catastrophe",null,null,null,{"$f":"\"UltCY\"&C$10&\"AY\"&B12","v":"UltCY2013AY2013"},{"$f":"C12","v":0},"CATUltCY2022AY2013",0]
[null,"Losses Were",null,null,null,null,null,null,null,null,null,null,"Losses","One Year","Two Year",null,{"$f":"\"UltCY\"&D$10&\"AY\"&B11","v":"UltCY2014AYPrior"},{"$f":"D11","v":0},"CATUltCY2022AY2014",0]
[null,"Incurred",{"$f":"D10-1","v":2013},2014,2015,2016,2017,2018,2019,2020,2021,{"$f":"YEAR('Company Information'!C3)","v":2022},{"$f":"L10","v":2022},"Development","Development",null,{"$f":"\"UltCY\"&D$10&\"AY\"&B12","v":"UltCY2014AY2013"},{"$f":"D12","v":0},"CATUltCY2022AY2015",0]
["L1","Prior",{"$f":"Import!M12693","v":0},{"$f":"Import!M12695","v":0},{"$f":"Import!M12698","v":0},{"$f":"Import!M12702","v":0},{"$f":"Import!M12707","v":0},{"$f":"Import!M12713","v":0},{"$f":"Import!M12720","v":0},{"$f":"Import!M12728","v":0},{"$f":"Import!M12737","v":0},{"$f":"Import!M12747","v":0},{"$f":"Import!M12758","v":0},{"$f":"K11-L11","v":0},{"$f":"J11-L11","v":0},null,{"$f":"\"UltCY\"&D$10&\"AY\"&B13","v":"UltCY2014AY2014"},{"$f":"D13","v":0},"CATUltCY2022AY2016",0]
["L2",{"$f":"B13-1","v":2013},{"$f":"Import!M12694","v":0},{"$f":"Import!M12696","v":0},{"$f":"Import!M12699","v":0},{"$f":"Import!M12703","v":0},{"$f":"Import!M12708","v":0},{"$f":"Import!M12714","v":0},{"$f":"Import!M12721","v":0},{"$f":"Import!M12729","v":0},{"$f":"Import!M12738","v":0},{"$f":"Import!M12748","v":0},{"$f":"Import!M12759","v":0},0,0,null,{"$f":"\"UltCY\"&E$10&\"AY\"&B11","v":"UltCY2015AYPrior"},{"$f":"E11","v":0},"CATUltCY2022AY2017",0]
["L3",2014,"XXX",{"$f":"Import!M12697","v":0},{"$f":"Import!M12700","v":0},{"$f":"Import!M12704","v":0},{"$f":"Import!M12709","v":0},{"$f":"Import!M12715","v":0},{"$f":"Import!M12722","v":0},{"$f":"Import!M12730","v":0},{"$f":"Import!M12739","v":0},{"$f":"Import!M12749","v":0},{"$f":"Import!M12760","v":0},0,0,null,{"$f":"\"UltCY\"&E$10&\"AY\"&B12","v":"UltCY2015AY2013"},{"$f":"E12","v":0},"CATUltCY2022AY2018",0]
["L4",2015,"XXX","XXX",{"$f":"Import!M12701","v":0},{"$f":"Import!M12705","v":0},{"$f":"Import!M12710","v":0},{"$f":"Import!M12716","v":0},{"$f":"Import!M12723","v":0},{"$f":"Import!M12731","v":0},{"$f":"Import!M12740","v":0},{"$f":"Import!M12750","v":0},{"$f":"Import!M12761","v":0},0,0,null,{"$f":"\"UltCY\"&E$10&\"AY\"&B13","v":"UltCY2015AY2014"},{"$f":"E13","v":0},"CATUltCY2022AY2019",0]
["L5",2016,"XXX","XXX","XXX",{"$f":"Import!M12706","v":0},{"$f":"Import!M12711","v":0},{"$f":"Import!M12717","v":0},{"$f":"Import!M12724","v":0},{"$f":"Import!M12732","v":0},{"$f":"Import!M12741","v":0},{"$f":"Import!M12751","v":0},{"$f":"Import!M12762","v":0},0,0,null,{"$f":"\"UltCY\"&E$10&\"AY\"&B14","v":"UltCY2015AY2015"},{"$f":"E14","v":0},"CATUltCY2022AY2020",0]
["L6",2017,"XXX","XXX","XXX","XXX",{"$f":"Import!M12712","v":0},{"$f":"Import!M12718","v":0},{"$f":"Import!M12725","v":0},{"$f":"Import!M12733","v":0},{"$f":"Import!M12742","v":0},{"$f":"Import!M12752","v":0},{"$f":"Import!M12763","v":0},0,0,null,{"$f":"\"UltCY\"&F$10&\"AY\"&B11","v":"UltCY2016AYPrior"},{"$f":"F11","v":0},"CATUltCY2022AY2021",0]
["L7",2018,"XXX","XXX","XXX","XXX","XXX",{"$f":"Import!M12719","v":0},{"$f":"Import!M12726","v":0},{"$f":"Import!M12734","v":0},{"$f":"Import!M12743","v":0},{"$f":"Import!M12753","v":0},{"$f":"Import!M12764","v":0},0,0,null,{"$f":"\"UltCY\"&F$10&\"AY\"&B12","v":"UltCY2016AY2013"},{"$f":"F12","v":0},{"$f":"\"CATUltCY\"&L$10&\"AY\"&B21","v":"CATUltCY2022AY2022"},{"$f":"M21","v":0}]
["L8",2019,"XXX","XXX","XXX","XXX","XXX","XXX",{"$f":"Import!M12727","v":0},{"$f":"Import!M12735","v":0},{"$f":"Import!M12744","v":0},{"$f":"Import!M12754","v":0},{"$f":"Import!M12765","v":0},0,0,null,{"$f":"\"UltCY\"&F$10&\"AY\"&B13","v":"UltCY2016AY2014"},{"$f":"F13","v":0},{"$f":"\"CATPaidCY\"&L$10&\"AY\"&B29","v":"CATPaidCY2022AYPrior"},{"$f":"M29","v":0}]
["L9",2020,"XXX","XXX","XXX","XXX","XXX","XXX","XXX",{"$f":"Import!M12736","v":0},{"$f":"Import!M12745","v":0},{"$f":"Import!M12755","v":0},{"$f":"Import!M12766","v":0},0,0,null,{"$f":"\"UltCY\"&F$10&\"AY\"&B14","v":"UltCY2016AY2015"},{"$f":"F14","v":0},"CATPaidCY2022AY2013",0]
["L10",{"$f":"B21-1","v":2021},"XXX","XXX","XXX","XXX","XXX","XXX","XXX","XXX",{"$f":"Import!M12746","v":0},{"$f":"Import!M12756","v":0},{"$f":"Import!M12767","v":0},0,"XXX",null,{"$f":"\"UltCY\"&F$10&\"AY\"&B15","v":"UltCY2016AY2016"},{"$f":"F15","v":0},"CATPaidCY2022AY2014",0]
["L11",{"$f":"L10","v":2022},"XXX","XXX","XXX","XXX","XXX","XXX","XXX","XXX","XXX",{"$f":"Import!M12757","v":0},{"$f":"Import!M12768","v":0},"XXX","XXX",null,{"$f":"\"UltCY\"&G$10&\"AY\"&B11","v":"UltCY2017AYPrior"},{"$f":"G11","v":0},"CATPaidCY2022AY2015",0]
["L12","Totals",null,null,null,null,null,null,null,null,null,null,{"$f":"SUM(M11:M21)","v":0},{"$f":"SUM(N11:N21)","v":0},{"$f":"SUM(O11:O21)","v":0},null,{"$f":"\"UltCY\"&G$10&\"AY\"&B12","v":"UltCY2017AY2013"},{"$f":"G12","v":0},"CATPaidCY2022AY2016",0]
[null,null,null,null,null,null,null,null,null,null,null,null,null,null,null,null,{"$f":"\"UltCY\"&G$10&\"AY\"&B13","v":"UltCY2017AY2014"},{"$f":"G13","v":0},"CATPaidCY2022AY2017",0]
[null,null,"CUMULATIVE PAID NET LOSSES AND ALLOCATED LOSS ADJUSTMENT EXPENSES REPORTED AT YEAR END ($000)",null,null,null,null,null,null,null,null,null,24,null,null,null,{"$f":"\"UltCY\"&G$10&\"AY\"&B15","v":"UltCY2017AY2016"},{"$f":"G15","v":0},{"$f":"\"CATPaidCY\"&L$10&\"AY\"&B36","v":"CATPaidCY2022AY2019"},{"$f":"M36","v":0}]
[null,null,null,null,null,null,null,null,null,null,null,null,"Paid",null,null,null,{"$f":"\"UltCY\"&G$10&\"AY\"&B16","v":"UltCY2017AY2017"},{"$f":"G16","v":0},{"$f":"\"CATPaidCY\"&L$10&\"AY\"&B37","v":"CATPaidCY2022AY2020"},{"$f":"M37","v":0}]
[null,"Years in Which",14,15,16,17,18,19,20,21,22,23,"Catastrophe",null,null,null,{"$f":"\"UltCY\"&H$10&\"AY\"&B11","v":"UltCY2018AYPrior"},{"$f":"H11","v":0},{"$f":"\"CATPaidCY\"&L$10&\"AY\"&B38","v":"CATPaidCY2022AY2021"},{"$f":"M38","v":0}]
[null,"Policies Were",null,null,null,null,null,null,null,null,null,null,"Losses",null,null,null,"UltCY2018AY2013",0,{"$f":"\"CATPaidCY\"&L$10&\"AY\"&B39","v":"CATPaidCY2022AY2022"},{"$f":"M39","v":0}]
[null,"Written",{"$f":"D28-1","v":2013},2014,2015,2016,2017,2018,2019,2020,2021,{"$f":"L10","v":2022},{"$f":"L28","v":2022},null,null,null,"UltCY2018AY2014",0,{"$f":"\"CATIBNRCY\"&L$10&\"AY\"&B47","v":"CATIBNRCY2022AYPrior"},{"$f":"M47","v":0}]
["L13","Prior",{"$f":"Import!M12769","v":0},{"$f":"Import!M12771","v":0},{"$f":"Import!M12774","v":0},{"$f":"Import!M12778","v":0},{"$f":"Import!M12783","v":0},{"$f":"Import!M12789","v":0},{"$f":"Import!M12796","v":0},{"$f":"Import!M12804","v":0},{"$f":"Import!M12813","v":0},{"$f":"Import!M12823","v":0},{"$f":"Import!M12834","v":0},null,null,null,"UltCY2018AY2015",0,"CATIBNRCY2022AY2013",0]
["L14",{"$f":"B31-1","v":2013},{"$f":"Import!M12770","v":0},{"$f":"Import!M12772","v":0},{"$f":"Import!M12775","v":0},{"$f":"Import!M12779","v":0},{"$f":"Import!M12784","v":0},{"$f":"Import!M12790","v":0},{"$f":"Import!M12797","v":0},{"$f":"Import!M12805","v":0},{"$f":"Import!M12814","v":0},{"$f":"Import!M12824","v":0},{"$f":"Import!M12835","v":0},null,null,null,"UltCY2018AY2016",0,"CATIBNRCY2022AY2014",0]
["L15",2014,"XXX",{"$f":"Import!M12773","v":0},{"$f":"Import!M12776","v":0},{"$f":"Import!M12780","v":0},{"$f":"Import!M12785","v":0},{"$f":"Import!M12791","v":0},{"$f":"Import!M12798","v":0},{"$f":"Import!M12806","v":0},{"$f":"Import!M12815","v":0},{"$f":"Import!M12825","v":0},{"$f":"Import!M12836","v":0},null,null,null,"UltCY2018AY2017",0,"CATIBNRCY2022AY2015",0]
["L16",2015,"XXX","XXX",{"$f":"Import!M12777","v":0},{"$f":"Import!M12781","v":0},{"$f":"Import!M12786","v":0},{"$f":"Import!M12792","v":0},{"$f":"Import!M12799","v":0},{"$f":"Import!M12807","v":0},{"$f":"Import!M12816","v":0},{"$f":"Import!M12826","v":0},{"$f":"Import!M12837","v":0},null,null,null,"UltCY2018AY2018",0,"CATIBNRCY2022AY2016",0]
["L17",2016,"XXX","XXX","XXX",{"$f":"Import!M12782","v":0},{"$f":"Import!M12787","v":0},{"$f":"Import!M12793","v":0},{"$f":"Import!M12800","v":0},{"$f":"Import!M12808","v":0},{"$f":"Import!M12817","v":0},{"$f":"Import!M12827","v":0},{"$f":"Import!M12838","v":0},null,null,null,{"$f":"\"UltCY\"&I$10&\"AY\"&B11","v":"UltCY2019AYPrior"},{"$f":"I11","v":0},"CATIBNRCY2022AY2017",0]
["L18",2017,"XXX","XXX","XXX","XXX",{"$f":"Import!M12788","v":0},{"$f":"Import!M12794","v":0},{"$f":"Import!M12801","v":0},{"$f":"Import!M12809","v":0},{"$f":"Import!M12818","v":0},{"$f":"Import!M12828","v":0},{"$f":"Import!M12839","v":0},null,null,null,"UltCY2019AY2013",0,"CATIBNRCY2022AY2018",0]
["L19",2018,"XXX","XXX","XXX","XXX","XXX",{"$f":"Import!M12795","v":0},{"$f":"Import!M12802","v":0},{"$f":"Import!M12810","v":0},{"$f":"Import!M12819","v":0},{"$f":"Import!M12829","v":0},{"$f":"Import!M12840","v":0},null,null,null,"UltCY2019AY2014",0,"CATIBNRCY2022AY2019",0]
["L20",2019,"XXX","XXX","XXX","XXX","XXX","XXX",{"$f":"Import!M12803","v":0},{"$f":"Import!M12811","v":0},{"$f":"Import!M12820","v":0},{"$f":"Import!M12830","v":0},{"$f":"Import!M12841","v":0},null,null,null,"UltCY2019AY2015",0,"CATIBNRCY2022AY2020",0]
["L21",2020,"XXX","XXX","XXX","XXX","XXX","XXX","XXX",{"$f":"Import!M12812","v":0},{"$f":"Import!M12821","v":0},{"$f":"Import!M12831","v":0},{"$f":"Import!M12842","v":0},null,null,null,"UltCY2019AY2016",0,"CATIBNRCY2022AY2021",0]
["L22",2021,"XXX","XXX","XXX","XXX","XXX","XXX","XXX","XXX",{"$f":"Import!M12822","v":0},{"$f":"Import!M12832","v":0},{"$f":"Import!M12843","v":0},null,null,null,"UltCY2019AY2017",0,"CATIBNRCY2022AY2022",0]
["L23",{"$f":"L28","v":2022},"XXX","XXX","XXX","XXX","XXX","XXX","XXX","XXX","XXX",{"$f":"Import!M12833","v":0},{"$f":"Import!M12844","v":0},null,null,null,"UltCY2019AY2018",0]
["L24","Totals",null,null,null,null,null,null,null,null,null,null,{"$f":"SUM(M29:M39)","v":0},null,null,null,"UltCY2019AY2019",0]
[null,null,null,null,null,null,null,null,null,null,null,null,null,null,null,null,{"$f":"\"UltCY\"&J$10&\"AY\"&B11","v":"UltCY2020AYPrior"},{"$f":"J11","v":0}]
[null,null,"BULK & IBNR RESERVES ON NET LOSSES AND ALLOCATED LOSS ADJUSTMENT EXPENSES REPORTED AT YEAR END ($000)",null,null,null,null,null,null,null,null,null,35,null,null,null,{"$f":"\"UltCY\"&J$10&\"AY\"&B13","v":"UltCY2020AY2014"},{"$f":"J13","v":0}]
[null,null,null,null,null,null,null,null,null,null,null,null,"Losses",null,null,null,"UltCY2020AY2015",0]
[null,"Years in Which",25,26,27,28,29,30,31,32,33,34,"Bulk & IBNR",null,null,null,"UltCY2020AY2016",0]
[null,"Policies Were",null,null,null,null,null,null,null,null,null,null,"Reserves",null,null,null,"UltCY2020AY2017",0]
[null,"Written",{"$f":"D46-1","v":2013},2014,2015,2016,2017,2018,2019,2020,2021,{"$f":"L28","v":2022},{"$f":"L46","v":2022},null,null,null,"UltCY2020AY2018",0]
["L25","Prior",{"$f":"Import!M12845","v":0},{"$f":"Import!M12847","v":0},{"$f":"Import!M12850","v":0},{"$f":"Import!M12854","v":0},{"$f":"Import!M12859","v":0},{"$f":"Import!M12865","v":0},{"$f":"Import!M12872","v":0},{"$f":"Import!M12880","v":0},{"$f":"Import!M12889","v":0},{"$f":"Import!M12899","v":0},{"$f":"Import!M12910","v":0},null,null,null,"UltCY2020AY2019",0]
["L26",{"$f":"B49-1","v":2013},{"$f":"Import!M12846","v":0},{"$f":"Import!M12848","v":0},{"$f":"Import!M12851","v":0},{"$f":"Import!M12855","v":0},{"$f":"Import!M12860","v":0},{"$f":"Import!M12866","v":0},{"$f":"Import!M12873","v":0},{"$f":"Import!M12881","v":0},{"$f":"Import!M12890","v":0},{"$f":"Import!M12900","v":0},{"$f":"Import!M12911","v":0},null,null,null,"UltCY2020AY2020",0]
["L27",2014,"XXX",{"$f":"Import!M12849","v":0},{"$f":"Import!M12852","v":0},{"$f":"Import!M12856","v":0},{"$f":"Import!M12861","v":0},{"$f":"Import!M12867","v":0},{"$f":"Import!M12874","v":0},{"$f":"Import!M12882","v":0},{"$f":"Import!M12891","v":0},{"$f":"Import!M12901","v":0},{"$f":"Import!M12912","v":0},null,null,null,{"$f":"\"UltCY\"&K$10&\"AY\"&B11","v":"UltCY2021AYPrior"},{"$f":"K11","v":0}]
["L28",2015,"XXX","XXX",{"$f":"Import!M12853","v":0},{"$f":"Import!M12857","v":0},{"$f":"Import!M12862","v":0},{"$f":"Import!M12868","v":0},{"$f":"Import!M12875","v":0},{"$f":"Import!M12883","v":0},{"$f":"Import!M12892","v":0},{"$f":"Import!M12902","v":0},{"$f":"Import!M12913","v":0},null,null,null,"UltCY2021AY2013",0]
["L29",2016,"XXX","XXX","XXX",{"$f":"Import!M12858","v":0},{"$f":"Import!M12863","v":0},{"$f":"Import!M12869","v":0},{"$f":"Import!M12876","v":0},{"$f":"Import!M12884","v":0},{"$f":"Import!M12893","v":0},{"$f":"Import!M12903","v":0},{"$f":"Import!M12914","v":0},null,null,null,"UltCY2021AY2014",0]
["L30",2017,"XXX","XXX","XXX","XXX",{"$f":"Import!M12864","v":0},{"$f":"Import!M12870","v":0},{"$f":"Import!M12877","v":0},{"$f":"Import!M12885","v":0},{"$f":"Import!M12894","v":0},{"$f":"Import!M12904","v":0},{"$f":"Import!M12915","v":0},null,null,null,"UltCY2021AY2015",0]
["L31",2018,"XXX","XXX","XXX","XXX","XXX",{"$f":"Import!M12871","v":0},{"$f":"Import!M12878","v":0},{"$f":"Import!M12886","v":0},{"$f":"Import!M12895","v":0},{"$f":"Import!M12905","v":0},{"$f":"Import!M12916","v":0},null,null,null,"UltCY2021AY2016",0]
["L32",2019,"XXX","XXX","XXX","XXX","XXX","XXX",{"$f":"Import!M12879","v":0},{"$f":"Import!M12887","v":0},{"$f":"Import!M12896","v":0},{"$f":"Import!M12906","v":0},{"$f":"Import!M12917","v":0},null,null,null,"UltCY2021AY2017",0]
["L33",2020,"XXX","XXX","XXX","XXX","XXX","XXX","XXX",{"$f":"Import!M12888","v":0},{"$f":"Import!M12897","v":0},{"$f":"Import!M12907","v":0},{"$f":"Import!M12918","v":0},null,null,null,"UltCY2021AY2018",0]
["L34",2021,"XXX","XXX","XXX","XXX","XXX","XXX","XXX","XXX",{"$f":"Import!M12898","v":0},{"$f":"Import!M12908","v":0},{"$f":"Import!M12919","v":0},null,null,null,"UltCY2021AY2019",0]
["L35",{"$f":"L46","v":2022},"XXX","XXX","XXX","XXX","XXX","XXX","XXX","XXX","XXX",{"$f":"Import!M12909","v":0},{"$f":"Import!M12920","v":0},null,null,null,"UltCY2021AY2020",0]
["L36","Totals",null,null,null,null,null,null,null,null,null,null,{"$f":"SUM(M47:M57)","v":0},null,null,null,"UltCY2021AY2021",0]
[null,null,null,null,null,null,null,null,null,null,null,null,null,null,null,null,{"$f":"\"UltCY\"&L$10&\"AY\"&B11","v":"UltCY2022AYPrior"},{"$f":"L11","v":0}]
[null,null,36,37,38,39,"Unallocated Loss",null,null,42,43,44,45,null,null,null,{"$f":"\"UltCY\"&L$10&\"AY\"&B13","v":"UltCY2022AY2014"},{"$f":"L13","v":0}]
[null,"Years in Which",null,null,null,null,"Adjustment Expenses",null,null,null,null,null,null,null,null,null,"UltCY2022AY2015",0]
[null,"Premiums",null,null,null,null,40,41,null,null,null,null,null,null,null,null,"UltCY2022AY2016",0]
[null,"Were",null,null,null,null,null,null,null,"Commission and","General and",null,null,null,null,null,"UltCY2022AY2017",0]
[null,"Earned and","Gross","Gross","Net","Net",null,null,null,"Brokerage","Administrative","Personnel","Other",null,null,null,"UltCY2022AY2018",0]
[null,"Losses Were","Premiums","Premiums","Premiums","Premiums",null,null,"Calendar","Expense","Expense","Costs","Expense",null,null,null,"UltCY2022AY2019",0]
[null,"Incurred","Written","Earned","Written","Earned","Paid","Incurred","Year","(Form 2A, Line 9)","(Form 2A, Line 10)","(Form 2A, Line 11)","(Form 2A, Line 12)",null,null,null,"UltCY2022AY2020",0]
["L37","Prior","XXX",{"$f":"C67","v":"XXX"},"XXX",{"$f":"E67","v":"XXX"},{"$f":"Import!M12965","v":0},{"$f":"Import!M12976","v":0},"Prior",{"$f":"Import!M12987","v":0},{"$f":"Import!M12998","v":0},{"$f":"Import!M13009","v":0},{"$f":"Import!M13020","v":0},null,null,null,"UltCY2022AY2021",0]
["L38",{"$f":"B69-1","v":2013},{"$f":"Import!M12922","v":0},{"$f":"Import!M12933","v":0},{"$f":"Import!M12944","v":0},{"$f":"Import!M12955","v":0},{"$f":"Import!M12966","v":0},{"$f":"Import!M12977","v":0},{"$f":"B68","v":2013},{"$f":"Import!M12988","v":0},{"$f":"Import!M12999","v":0},{"$f":"Import!M13010","v":0},{"$f":"Import!M13021","v":0},null,null,null,"UltCY2022AY2022",0]
["L39",2014,{"$f":"Import!M12923","v":0},{"$f":"Import!M12934","v":0},{"$f":"Import!M12945","v":0},{"$f":"Import!M12956","v":0},{"$f":"Import!M12967","v":0},{"$f":"Import!M12978","v":0},2014,{"$f":"Import!M12989","v":0},{"$f":"Import!M13000","v":0},{"$f":"Import!M13011","v":0},{"$f":"Import!M13022","v":0},null,null,null,{"$f":"\"PaidCY\"&C$10&\"AY\"&B29","v":"PaidCY2013AYPrior"},{"$f":"C29","v":0}]
["L40",2015,{"$f":"Import!M12924","v":0},{"$f":"Import!M12935","v":0},{"$f":"Import!M12946","v":0},{"$f":"Import!M12957","v":0},{"$f":"Import!M12968","v":0},{"$f":"Import!M12979","v":0},2015,{"$f":"Import!M12990","v":0},{"$f":"Import!M13001","v":0},{"$f":"Import!M13012","v":0},{"$f":"Import!M13023","v":0},null,null,null,{"$f":"\"PaidCY\"&C$10&\"AY\"&B30","v":"PaidCY2013AY2013"},{"$f":"C30","v":0}]
["L41",2016,{"$f":"Import!M12925","v":0},{"$f":"Import!M12936","v":0},{"$f":"Import!M12947","v":0},{"$f":"Import!M12958","v":0},{"$f":"Import!M12969","v":0},{"$f":"Import!M12980","v":0},2016,{"$f":"Import!M12991","v":0},{"$f":"Import!M13002","v":0},{"$f":"Import!M13013","v":0},{"$f":"Import!M13024","v":0},null,null,null,{"$f":"\"PaidCY\"&D$10&\"AY\"&B29","v":"PaidCY2014AYPrior"},{"$f":"D29","v":0}]
["L42",2017,{"$f":"Import!M12926","v":0},{"$f":"Import!M12937","v":0},{"$f":"Import!M12948","v":0},{"$f":"Import!M12959","v":0},{"$f":"Import!M12970","v":0},{"$f":"Import!M12981","v":0},2017,{"$f":"Import!M12992","v":0},{"$f":"Import!M13003","v":0},{"$f":"Import!M13014","v":0},{"$f":"Import!M13025","v":0},null,null,null,{"$f":"\"PaidCY\"&D$10&\"AY\"&B30","v":"PaidCY2014AY2013"},{"$f":"D30","v":0}]
["L43",2018,{"$f":"Import!M12927","v":0},{"$f":"Import!M12938","v":0},{"$f":"Import!M12949","v":0},{"$f":"Import!M12960","v":0},{"$f":"Import!M12971","v":0},{"$f":"Import!M12982","v":0},2018,{"$f":"Import!M12993","v":0},{"$f":"Import!M13004","v":0},{"$f":"Import!M13015","v":0},{"$f":"Import!M13026","v":0},null,null,null,{"$f":"\"PaidCY\"&D$10&\"AY\"&B31","v":"PaidCY2014AY2014"},{"$f":"D31","v":0}]
["L44",2019,{"$f":"Import!M12928","v":0},{"$f":"Import!M12939","v":0},{"$f":"Import!M12950","v":0},{"$f":"Import!M12961","v":0},{"$f":"Import!M12972","v":0},{"$f":"Import!M12983","v":0},2019,{"$f":"Import!M12994","v":0},{"$f":"Import!M13005","v":0},{"$f":"Import!M13016","v":0},{"$f":"Import!M13027","v":0},null,null,null,{"$f":"\"PaidCY\"&E$10&\"AY\"&B29","v":"PaidCY2015AYPrior"},{"$f":"E29","v":0}]
["L45",2020,{"$f":"Import!M12929","v":0},{"$f":"Import!M12940","v":0},{"$f":"Import!M12951","v":0},{"$f":"Import!M12962","v":0},{"$f":"Import!M12973","v":0},{"$f":"Import!M12984","v":0},2020,{"$f":"Import!M12995","v":0},{"$f":"Import!M13006","v":0},{"$f":"Import!M13017","v":0},{"$f":"Import!M13028","v":0},null,null,null,{"$f":"\"PaidCY\"&E$10&\"AY\"&B30","v":"PaidCY2015AY2013"},{"$f":"E30","v":0}]
["L46",2021,{"$f":"Import!M12930","v":0},{"$f":"Import!M12941","v":0},{"$f":"Import!M12952","v":0},{"$f":"Import!M12963","v":0},{"$f":"Import!M12974","v":0},{"$f":"Import!M12985","v":0},2021,{"$f":"Import!M12996","v":0},{"$f":"Import!M13007","v":0},{"$f":"Import!M13018","v":0},{"$f":"Import!M13029","v":0},null,null,null,{"$f":"\"PaidCY\"&E$10&\"AY\"&B31","v":"PaidCY2015AY2014"},{"$f":"E31","v":0}]
["L47",{"$f":"B39","v":2022},{"$f":"Import!M12931","v":0},{"$f":"Import!M12942","v":0},{"$f":"Import!M12953","v":0},{"$f":"Import!M12964","v":0},{"$f":"Import!M12975","v":0},{"$f":"Import!M12986","v":0},2022,{"$f":"Import!M12997","v":0},{"$f":"Import!M13008","v":0},{"$f":"Import!M13019","v":0},{"$f":"Import!M13030","v":0},null,null,null,{"$f":"\"PaidCY\"&E$10&\"AY\"&B32","v":"PaidCY2015AY2015"},{"$f":"E32","v":0}]
["L48","Totals","XXX",{"$f":"C78","v":"XXX"},"XXX",{"$f":"E78","v":"XXX"},{"$f":"SUM(G67:G77)","v":0},{"$f":"SUM(H67:H77)","v":0},"Totals",{"$f":"SUM(J67:J77)","v":0},{"$f":"SUM(K67:K77)","v":0},{"$f":"SUM(L67:L77)","v":0},{"$f":"SUM(M67:M77)","v":0},null,null,null,{"$f":"\"PaidCY\"&F$10&\"AY\"&B29","v":"PaidCY2016AYPrior"},{"$f":"F29","v":0}]
[null,null,null,null,null,null,null,null,null,null,null,null,null,null,null,null,{"$f":"\"PaidCY\"&F$10&\"AY\"&B30","v":"PaidCY2016AY2013"},{"$f":"F30","v":0}]
[null,"COMMENTS",null,null,null,null,null,null,null,null,null,null,null,null,null,null,{"$f":"\"PaidCY\"&F$10&\"AY\"&B31","v":"PaidCY2016AY2014"},{"$f":"F31","v":0}]
[null,{"$f":"Import!M13031","v":0},null,null,null,null,null,null,null,null,null,null,null,null,null,null,{"$f":"\"PaidCY\"&G$10&\"AY\"&B30","v":"PaidCY2017AY2013"},{"$f":"G30","v":0}]
[null,null,null,null,null,null,null,null,null,null,null,null,null,null,null,null,{"$f":"\"PaidCY\"&G$10&\"AY\"&B31","v":"PaidCY2017AY2014"},{"$f":"G31","v":0}]
[null,null,null,null,null,null,null,null,null,null,null,null,null,null,null,null,{"$f":"\"PaidCY\"&G$10&\"AY\"&B32","v":"PaidCY2017AY2015"},{"$f":"G32","v":0}]
[null,null,null,null,null,null,null,null,null,null,null,null,null,null,null,null,{"$f":"\"PaidCY\"&G$10&\"AY\"&B34","v":"PaidCY2017AY2017"},{"$f":"G34","v":0}]
[]
[]
[]
[]
[]
[null,null,null,"Accident Year",null,null,null,null,null,null,null,null,null,null,null,null,{"$f":"\"PaidCY\"&H$10&\"AY\"&B34","v":"PaidCY2018AY2017"},{"$f":"H34","v":0}]
[null,null,null,"Underwriting Year",null,null,null,null,null,null,null,null,null,null,null,null,"PaidCY2018AY2018",0]
[]
[]
[]
[]
[]
[]
[]
[]
[]
[]
[]
[]
[]
[]
[]
[]
[]
[]
[]
[]
[]
[]
[]
[]
[]
[]
[]
[]
[]
[]
[]
[]
[]
[]
[]
[]
[]
[]
[]
[]
[]
[]
[]
[]
[]
[]
[]
[]
[]
[]
[]
[]
[]
[]
[]
[]
[]
[]
[]
[]
[]
[]
[]
[]
[]
[]
[]
[]
[]
[]
[]
[]
[]
[]
[]
[]
[]
[]
[]
[]
[]
[]
[]
[]
[]
[]
[]
[]
[]
[]
[]
[]
[]
[]
[]
[]
[]
[]
[]
[]
[]
[]
[]
[]
[]
[]
[]
[]
[]
[]
[]
[]
[]
[]
[]
[]
[]
[]
[]
[]
[]
[]
[]
[]
[]
[]
[]
[]
[]
[]
[]
[]
[]
[]
[]
[]
[]
[]
[]
[]
[]
[]
[]
[]
[]
[]
[]
[]
[]
[]
[]
[null,null,null,null,null,null,null,null,null,null,null,null,null,null,null,null,{"$f":"\"NetAOEPaid\"&$B75","v":"NetAOEPaid2020"},{"$f":"G75","v":0}]
[null,null,null,null,null,null,null,null,null,null,null,null,null,null,null,null,"NetAOEPaid2021",0]
[null,null,null,null,null,null,null,null,null,null,null,null,null,null,null,null,"NetAOEPaid2022",0]
[null,null,null,null,null,null,null,null,null,null,null,null,null,null,null,null,{"$f":"\"NetAOEIncurred\"&$B67","v":"NetAOEIncurredPrior"},{"$f":"H67","v":0}]
[null,null,null,null,null,null,null,null,null,null,null,null,null,null,null,null,"NetAOEIncurred2013",0]
[null,null,null,null,null,null,null,null,null,null,null,null,null,null,null,null,"NetAOEIncurred2014",0]
[null,null,null,null,null,null,null,null,null,null,null,null,null,null,null,null,"NetAOEIncurred2015",0]
[null,null,null,null,null,null,null,null,null,null,null,null,null,null,null,null,"NetAOEIncurred2016",0]
[null,null,null,null,null,null,null,null,null,null,null,null,null,null,null,null,"NetAOEIncurred2017",0]
[null,null,null,null,null,null,null,null,null,null,null,null,null,null,null,null,"NetAOEIncurred2018",0]
[null,null,null,null,null,null,null,null,null,null,null,null,null,null,null,null,"NetAOEIncurred2019",0]
[null,null,null,null,null,null,null,null,null,null,null,null,null,null,null,null,"NetAOEIncurred2020",0]
[null,null,null,null,null,null,null,null,null,null,null,null,null,null,null,null,"NetAOEIncurred2021",0]
[null,null,null,null,null,null,null,null,null,null,null,null,null,null,null,null,"NetAOEIncurred2022",0]
[null,null,null,null,null,null,null,null,null,null,null,null,null,null,null,null,{"$f":"\"Commission\"&$B67","v":"CommissionPrior"},{"$f":"J67","v":0}]
[null,null,null,null,null,null,null,null,null,null,null,null,null,null,null,null,"Commission2013",0]
[null,null,null,null,null,null,null,null,null,null,null,null,null,null,null,null,"Commission2014",0]
[null,null,null,null,null,null,null,null,null,null,null,null,null,null,null,null,"Commission2015",0]
[null,null,null,null,null,null,null,null,null,null,null,null,null,null,null,null,"Commission2016",0]
[null,null,null,null,null,null,null,null,null,null,null,null,null,null,null,null,"Commission2017",0]
[null,null,null,null,null,null,null,null,null,null,null,null,null,null,null,null,"Commission2018",0]
[null,null,null,null,null,null,null,null,null,null,null,null,null,null,null,null,"Commission2019",0]
[null,null,null,null,null,null,null,null,null,null,null,null,null,null,null,null,"Commission2020",0]
[null,null,null,null,null,null,null,null,null,null,null,null,null,null,null,null,"Commission2021",0]
[null,null,null,null,null,null,null,null,null,null,null,null,null,null,null,null,"Commission2022",0]
[null,null,null,null,null,null,null,null,null,null,null,null,null,null,null,null,{"$f":"\"AcqExp\"&$B67","v":"AcqExpPrior"},{"$f":"K67","v":0}]
[null,null,null,null,null,null,null,null,null,null,null,null,null,null,null,null,"AcqExp2013",0]
[null,null,null,null,null,null,null,null,null,null,null,null,null,null,null,null,"AcqExp2014",0]
[null,null,null,null,null,null,null,null,null,null,null,null,null,null,null,null,"AcqExp2015",0]
[null,null,null,null,null,null,null,null,null,null,null,null,null,null,null,null,"AcqExp2016",0]
[null,null,null,null,null,null,null,null,null,null,null,null,null,null,null,null,"AcqExp2017",0]
[null,null,null,null,null,null,null,null,null,null,null,null,null,null,null,null,"AcqExp2018",0]
[null,null,null,null,null,null,null,null,null,null,null,null,null,null,null,null,"AcqExp2019",0]
[null,null,null,null,null,null,null,null,null,null,null,null,null,null,null,null,"AcqExp2020",0]
[null,null,null,null,null,null,null,null,null,null,null,null,null,null,null,null,"AcqExp2021",0]
[null,null,null,null,null,null,null,null,null,null,null,null,null,null,null,null,"AcqExp2022",0]
[null,null,null,null,null,null,null,null,null,null,null,null,null,null,null,null,{"$f":"\"Taxes\"&$B67","v":"TaxesPrior"},{"$f":"L67","v":0}]
[null,null,null,null,null,null,null,null,null,null,null,null,null,null,null,null,"Taxes2013",0]
[null,null,null,null,null,null,null,null,null,null,null,null,null,null,null,null,"Taxes2014",0]
[null,null,null,null,null,null,null,null,null,null,null,null,null,null,null,null,"Taxes2015",0]
[null,null,null,null,null,null,null,null,null,null,null,null,null,null,null,null,"Taxes2016",0]
[null,null,null,null,null,null,null,null,null,null,null,null,null,null,null,null,"Taxes2017",0]
[null,null,null,null,null,null,null,null,null,null,null,null,null,null,null,null,"Taxes2018",0]
[null,null,null,null,null,null,null,null,null,null,null,null,null,null,null,null,"Taxes2019",0]
[null,null,null,null,null,null,null,null,null,null,null,null,null,null,null,null,"Taxes2020",0]
[null,null,null,null,null,null,null,null,null,null,null,null,null,null,null,null,"Taxes2021",0]
[null,null,null,null,null,null,null,null,null,null,null,null,null,null,null,null,"Taxes2022",0]
[null,null,null,null,null,null,null,null,null,null,null,null,null,null,null,null,{"$f":"\"GeneralOver\"&$B67","v":"GeneralOverPrior"},{"$f":"M67","v":0}]
[null,null,null,null,null,null,null,null,null,null,null,null,null,null,null,null,"GeneralOver2013",0]
[null,null,null,null,null,null,null,null,null,null,null,null,null,null,null,null,"GeneralOver2014",0]
[null,null,null,null,null,null,null,null,null,null,null,null,null,null,null,null,"GeneralOver2015",0]
[null,null,null,null,null,null,null,null,null,null,null,null,null,null,null,null,"GeneralOver2016",0]
[null,null,null,null,null,null,null,null,null,null,null,null,null,null,null,null,"GeneralOver2017",0]
[null,null,null,null,null,null,null,null,null,null,null,null,null,null,null,null,"GeneralOver2018",0]
[null,null,null,null,null,null,null,null,null,null,null,null,null,null,null,null,"GeneralOver2019",0]
[null,null,null,null,null,null,null,null,null,null,null,null,null,null,null,null,"GeneralOver2020",0]
[null,null,null,null,null,null,null,null,null,null,null,null,null,null,null,null,"GeneralOver2021",0]
[null,null,null,null,null,null,null,null,null,null,null,null,null,null,null,null,"GeneralOver2022",0]

{"sheet":"Sch XI(a)(ii)","index":74,"n_rows":94,"n_cols":20,"rows_kept":94,"cut":false,"hidden":true,"merged":[[80,1,82,12],[5,2,5,11],[59,6,59,7],[41,2,41,11],[0,13,0,14],[2,13,2,14],[2,1,2,2],[60,6,60,7],[23,2,23,11]]}
[null,"SCHEDULE OF LOSS TRIANGLES (LINE 2 - PROPERTY)",null,null,null,null,null,null,null,null,null,null,null,{"$f":"HYPERLINK(\"#'Index'!A1\",\"Return to Index\")","v":"Return to Index"}]
[null,{"$f":"'Company Information'!C7","v":"Enter Company Name"}]
[null,{"$f":"'Company Information'!C3","v":"2022-12-31"},null,null,null,null,null,null,null,null,null,null,null,"SCHEDULE XI(a)(ii)"]
[null,{"$f":"\"expressed in\"& IF(1000>1,\" ['\"&MID(1000,2,LEN(1000))&\"s]\",\"\")&\" \"&'Form 1EBS'!$C$4","v":"expressed in ['000s] United States Dollars"}]
[]
[null,"Accounting Basis: ","INCURRED (ESTIMATED ULTIMATE) NET LOSSES AND ALLOCATED LOSS ADJUSTMENT EXPENSES REPORTED AT YEAR END ($000)",null,null,null,null,null,null,null,null,null,11,12,13,null,"AcctBasis",{"$f":"B7","v":"Accident Year"}]
[null,"Accident Year",null,null,null,null,null,null,null,null,null,null,"Ultimate","Development","Development",null,{"$f":"\"UltCY\"&C$10&\"AY\"&B11","v":"UltCY2013AYPrior"},{"$f":"C11","v":0},{"$f":"\"CATUltCY\"&L$10&\"AY\"&B11","v":"CATUltCY2022AYPrior"},{"$f":"M11","v":0}]
[null,"Years in Which",1,2,3,4,5,6,7,8,9,10,"Catastrophe",null,null,null,{"$f":"\"UltCY\"&C$10&\"AY\"&B12","v":"UltCY2013AY2013"},{"$f":"C12","v":0},"CATUltCY2022AY2013",0]
[null,"Losses Were",null,null,null,null,null,null,null,null,null,null,"Losses","One Year","Two Year",null,{"$f":"\"UltCY\"&D$10&\"AY\"&B11","v":"UltCY2014AYPrior"},{"$f":"D11","v":0},"CATUltCY2022AY2014",0]
[null,"Incurred",{"$f":"D10-1","v":2013},2014,2015,2016,2017,2018,2019,2020,2021,{"$f":"YEAR('Company Information'!C3)","v":2022},{"$f":"L10","v":2022},"Development","Development",null,{"$f":"\"UltCY\"&D$10&\"AY\"&B12","v":"UltCY2014AY2013"},{"$f":"D12","v":0},"CATUltCY2022AY2015",0]
["L1","Prior",{"$f":"Import!M13032","v":0},{"$f":"Import!M13034","v":0},{"$f":"Import!M13037","v":0},{"$f":"Import!M13041","v":0},{"$f":"Import!M13046","v":0},{"$f":"Import!M13052","v":0},{"$f":"Import!M13059","v":0},{"$f":"Import!M13067","v":0},{"$f":"Import!M13076","v":0},{"$f":"Import!M13086","v":0},{"$f":"Import!M13097","v":0},{"$f":"K11-L11","v":0},{"$f":"J11-L11","v":0},null,{"$f":"\"UltCY\"&D$10&\"AY\"&B13","v":"UltCY2014AY2014"},{"$f":"D13","v":0},"CATUltCY2022AY2016",0]
["L2",{"$f":"B13-1","v":2013},{"$f":"Import!M13033","v":0},{"$f":"Import!M13035","v":0},{"$f":"Import!M13038","v":0},{"$f":"Import!M13042","v":0},{"$f":"Import!M13047","v":0},{"$f":"Import!M13053","v":0},{"$f":"Import!M13060","v":0},{"$f":"Import!M13068","v":0},{"$f":"Import!M13077","v":0},{"$f":"Import!M13087","v":0},{"$f":"Import!M13098","v":0},0,0,null,{"$f":"\"UltCY\"&E$10&\"AY\"&B11","v":"UltCY2015AYPrior"},{"$f":"E11","v":0},"CATUltCY2022AY2017",0]
["L3",2014,"XXX",{"$f":"Import!M13036","v":0},{"$f":"Import!M13039","v":0},{"$f":"Import!M13043","v":0},{"$f":"Import!M13048","v":0},{"$f":"Import!M13054","v":0},{"$f":"Import!M13061","v":0},{"$f":"Import!M13069","v":0},{"$f":"Import!M13078","v":0},{"$f":"Import!M13088","v":0},{"$f":"Import!M13099","v":0},0,0,null,{"$f":"\"UltCY\"&E$10&\"AY\"&B12","v":"UltCY2015AY2013"},{"$f":"E12","v":0},"CATUltCY2022AY2018",0]
["L4",2015,"XXX","XXX",{"$f":"Import!M13040","v":0},{"$f":"Import!M13044","v":0},{"$f":"Import!M13049","v":0},{"$f":"Import!M13055","v":0},{"$f":"Import!M13062","v":0},{"$f":"Import!M13070","v":0},{"$f":"Import!M13079","v":0},{"$f":"Import!M13089","v":0},{"$f":"Import!M13100","v":0},0,0,null,{"$f":"\"UltCY\"&E$10&\"AY\"&B13","v":"UltCY2015AY2014"},{"$f":"E13","v":0},"CATUltCY2022AY2019",0]
["L5",2016,"XXX","XXX","XXX",{"$f":"Import!M13045","v":0},{"$f":"Import!M13050","v":0},{"$f":"Import!M13056","v":0},{"$f":"Import!M13063","v":0},{"$f":"Import!M13071","v":0},{"$f":"Import!M13080","v":0},{"$f":"Import!M13090","v":0},{"$f":"Import!M13101","v":0},0,0,null,{"$f":"\"UltCY\"&E$10&\"AY\"&B14","v":"UltCY2015AY2015"},{"$f":"E14","v":0},"CATUltCY2022AY2020",0]
["L6",2017,"XXX","XXX","XXX","XXX",{"$f":"Import!M13051","v":0},{"$f":"Import!M13057","v":0},{"$f":"Import!M13064","v":0},{"$f":"Import!M13072","v":0},{"$f":"Import!M13081","v":0},{"$f":"Import!M13091","v":0},{"$f":"Import!M13102","v":0},0,0,null,{"$f":"\"UltCY\"&F$10&\"AY\"&B11","v":"UltCY2016AYPrior"},{"$f":"F11","v":0},"CATUltCY2022AY2021",0]
["L7",2018,"XXX","XXX","XXX","XXX","XXX",{"$f":"Import!M13058","v":0},{"$f":"Import!M13065","v":0},{"$f":"Import!M13073","v":0},{"$f":"Import!M13082","v":0},{"$f":"Import!M13092","v":0},{"$f":"Import!M13103","v":0},0,0,null,{"$f":"\"UltCY\"&F$10&\"AY\"&B12","v":"UltCY2016AY2013"},{"$f":"F12","v":0},"CATUltCY2022AY2022",0]
["L8",2019,"XXX","XXX","XXX","XXX","XXX","XXX",{"$f":"Import!M13066","v":0},{"$f":"Import!M13074","v":0},{"$f":"Import!M13083","v":0},{"$f":"Import!M13093","v":0},{"$f":"Import!M13104","v":0},0,0,null,{"$f":"\"UltCY\"&F$10&\"AY\"&B13","v":"UltCY2016AY2014"},{"$f":"F13","v":0},{"$f":"\"CATPaidCY\"&L$10&\"AY\"&B29","v":"CATPaidCY2022AYPrior"},{"$f":"M29","v":0}]
["L9",2020,"XXX","XXX","XXX","XXX","XXX","XXX","XXX",{"$f":"Import!M13075","v":0},{"$f":"Import!M13084","v":0},{"$f":"Import!M13094","v":0},{"$f":"Import!M13105","v":0},0,0,null,{"$f":"\"UltCY\"&F$10&\"AY\"&B14","v":"UltCY2016AY2015"},{"$f":"F14","v":0},"CATPaidCY2022AY2013",0]
["L10",{"$f":"B21-1","v":2021},"XXX","XXX","XXX","XXX","XXX","XXX","XXX","XXX",{"$f":"Import!M13085","v":0},{"$f":"Import!M13095","v":0},{"$f":"Import!M13106","v":0},0,"XXX",null,{"$f":"\"UltCY\"&F$10&\"AY\"&B15","v":"UltCY2016AY2016"},{"$f":"F15","v":0},"CATPaidCY2022AY2014",0]
["L11",{"$f":"L10","v":2022},"XXX","XXX","XXX","XXX","XXX","XXX","XXX","XXX","XXX",{"$f":"Import!M13096","v":0},{"$f":"Import!M13107","v":0},"XXX","XXX",null,{"$f":"\"UltCY\"&G$10&\"AY\"&B11","v":"UltCY2017AYPrior"},{"$f":"G11","v":0},"CATPaidCY2022AY2015",0]
["L13","Totals",null,null,null,null,null,null,null,null,null,null,{"$f":"SUM(M11:M21)","v":0},{"$f":"SUM(N11:N21)","v":0},{"$f":"SUM(O11:O21)","v":0},null,{"$f":"\"UltCY\"&G$10&\"AY\"&B12","v":"UltCY2017AY2013"},{"$f":"G12","v":0},"CATPaidCY2022AY2016",0]
[null,null,null,null,null,null,null,null,null,null,null,null,null,null,null,null,{"$f":"\"UltCY\"&G$10&\"AY\"&B13","v":"UltCY2017AY2014"},{"$f":"G13","v":0},"CATPaidCY2022AY2017",0]
[null,null,"CUMULATIVE PAID NET LOSSES AND ALLOCATED LOSS ADJUSTMENT EXPENSES REPORTED AT YEAR END ($000)",null,null,null,null,null,null,null,null,null,24,null,null,null,{"$f":"\"UltCY\"&G$10&\"AY\"&B15","v":"UltCY2017AY2016"},{"$f":"G15","v":0},{"$f":"\"CATPaidCY\"&L$10&\"AY\"&B36","v":"CATPaidCY2022AY2019"},{"$f":"M36","v":0}]
[null,null,null,null,null,null,null,null,null,null,null,null,"Paid",null,null,null,{"$f":"\"UltCY\"&G$10&\"AY\"&B16","v":"UltCY2017AY2017"},{"$f":"G16","v":0},{"$f":"\"CATPaidCY\"&L$10&\"AY\"&B37","v":"CATPaidCY2022AY2020"},{"$f":"M37","v":0}]
[null,"Years in Which",14,15,16,17,18,19,20,21,22,23,"Catastrophe",null,null,null,{"$f":"\"UltCY\"&H$10&\"AY\"&B11","v":"UltCY2018AYPrior"},{"$f":"H11","v":0},{"$f":"\"CATPaidCY\"&L$10&\"AY\"&B38","v":"CATPaidCY2022AY2021"},{"$f":"M38","v":0}]
[null,"Policies Were",null,null,null,null,null,null,null,null,null,null,"Losses",null,null,null,"UltCY2018AY2013",0,{"$f":"\"CATPaidCY\"&L$10&\"AY\"&B39","v":"CATPaidCY2022AY2022"},{"$f":"M39","v":0}]
[null,"Written",{"$f":"D28-1","v":2013},2014,2015,2016,2017,2018,2019,2020,2021,{"$f":"L10","v":2022},{"$f":"L28","v":2022},null,null,null,"UltCY2018AY2014",0,{"$f":"\"CATIBNRCY\"&L$10&\"AY\"&B47","v":"CATIBNRCY2022AYPrior"},{"$f":"M47","v":0}]
["L14","Prior",{"$f":"Import!M13108","v":0},{"$f":"Import!M13110","v":0},{"$f":"Import!M13113","v":0},{"$f":"Import!M13117","v":0},{"$f":"Import!M13122","v":0},{"$f":"Import!M13128","v":0},{"$f":"Import!M13135","v":0},{"$f":"Import!M13143","v":0},{"$f":"Import!M13152","v":0},{"$f":"Import!M13162","v":0},{"$f":"Import!M13173","v":0},null,null,null,"UltCY2018AY2015",0,"CATIBNRCY2022AY2013",0]
["L15",{"$f":"B31-1","v":2013},{"$f":"Import!M13109","v":0},{"$f":"Import!M13111","v":0},{"$f":"Import!M13114","v":0},{"$f":"Import!M13118","v":0},{"$f":"Import!M13123","v":0},{"$f":"Import!M13129","v":0},{"$f":"Import!M13136","v":0},{"$f":"Import!M13144","v":0},{"$f":"Import!M13153","v":0},{"$f":"Import!M13163","v":0},{"$f":"Import!M13174","v":0},null,null,null,"UltCY2018AY2016",0,"CATIBNRCY2022AY2014",0]
["L16",2014,"XXX",{"$f":"Import!M13112","v":0},{"$f":"Import!M13115","v":0},{"$f":"Import!M13119","v":0},{"$f":"Import!M13124","v":0},{"$f":"Import!M13130","v":0},{"$f":"Import!M13137","v":0},{"$f":"Import!M13145","v":0},{"$f":"Import!M13154","v":0},{"$f":"Import!M13164","v":0},{"$f":"Import!M13175","v":0},null,null,null,"UltCY2018AY2017",0,"CATIBNRCY2022AY2015",0]
["L17",2015,"XXX","XXX",{"$f":"Import!M13116","v":0},{"$f":"Import!M13120","v":0},{"$f":"Import!M13125","v":0},{"$f":"Import!M13131","v":0},{"$f":"Import!M13138","v":0},{"$f":"Import!M13146","v":0},{"$f":"Import!M13155","v":0},{"$f":"Import!M13165","v":0},{"$f":"Import!M13176","v":0},null,null,null,"UltCY2018AY2018",0,"CATIBNRCY2022AY2016",0]
["L18",2016,"XXX","XXX","XXX",{"$f":"Import!M13121","v":0},{"$f":"Import!M13126","v":0},{"$f":"Import!M13132","v":0},{"$f":"Import!M13139","v":0},{"$f":"Import!M13147","v":0},{"$f":"Import!M13156","v":0},{"$f":"Import!M13166","v":0},{"$f":"Import!M13177","v":0},null,null,null,{"$f":"\"UltCY\"&I$10&\"AY\"&B11","v":"UltCY2019AYPrior"},{"$f":"I11","v":0},"CATIBNRCY2022AY2017",0]
["L19",2017,"XXX","XXX","XXX","XXX",{"$f":"Import!M13127","v":0},{"$f":"Import!M13133","v":0},{"$f":"Import!M13140","v":0},{"$f":"Import!M13148","v":0},{"$f":"Import!M13157","v":0},{"$f":"Import!M13167","v":0},{"$f":"Import!M13178","v":0},null,null,null,"UltCY2019AY2013",0,"CATIBNRCY2022AY2018",0]
["L20",2018,"XXX","XXX","XXX","XXX","XXX",{"$f":"Import!M13134","v":0},{"$f":"Import!M13141","v":0},{"$f":"Import!M13149","v":0},{"$f":"Import!M13158","v":0},{"$f":"Import!M13168","v":0},{"$f":"Import!M13179","v":0},null,null,null,"UltCY2019AY2014",0,"CATIBNRCY2022AY2019",0]
["L21",2019,"XXX","XXX","XXX","XXX","XXX","XXX",{"$f":"Import!M13142","v":0},{"$f":"Import!M13150","v":0},{"$f":"Import!M13159","v":0},{"$f":"Import!M13169","v":0},{"$f":"Import!M13180","v":0},null,null,null,"UltCY2019AY2015",0,"CATIBNRCY2022AY2020",0]
["L22",2020,"XXX","XXX","XXX","XXX","XXX","XXX","XXX",{"$f":"Import!M13151","v":0},{"$f":"Import!M13160","v":0},{"$f":"Import!M13170","v":0},{"$f":"Import!M13181","v":0},null,null,null,"UltCY2019AY2016",0,"CATIBNRCY2022AY2021",0]
["L23",2021,"XXX","XXX","XXX","XXX","XXX","XXX","XXX","XXX",{"$f":"Import!M13161","v":0},{"$f":"Import!M13171","v":0},{"$f":"Import!M13182","v":0},null,null,null,"UltCY2019AY2017",0,"CATIBNRCY2022AY2022",0]
["L24",{"$f":"L28","v":2022},"XXX","XXX","XXX","XXX","XXX","XXX","XXX","XXX","XXX",{"$f":"Import!M13172","v":0},{"$f":"Import!M13183","v":0},null,null,null,"UltCY2019AY2018",0]
["L25","Totals",null,null,null,null,null,null,null,null,null,null,{"$f":"SUM(M29:M39)","v":0},null,null,null,"UltCY2019AY2019",0]
[null,null,null,null,null,null,null,null,null,null,null,null,null,null,null,null,{"$f":"\"UltCY\"&J$10&\"AY\"&B11","v":"UltCY2020AYPrior"},{"$f":"J11","v":0}]
[null,null,"BULK & IBNR RESERVES ON NET LOSSES AND ALLOCATED LOSS ADJUSTMENT EXPENSES REPORTED AT YEAR END ($000)",null,null,null,null,null,null,null,null,null,35,null,null,null,{"$f":"\"UltCY\"&J$10&\"AY\"&B13","v":"UltCY2020AY2014"},{"$f":"J13","v":0}]
[null,null,null,null,null,null,null,null,null,null,null,null,"Losses",null,null,null,"UltCY2020AY2015",0]
[null,"Years in Which",25,26,27,28,29,30,31,32,33,34,"Bulk & IBNR",null,null,null,"UltCY2020AY2016",0]
[null,"Policies Were",null,null,null,null,null,null,null,null,null,null,"Reserves",null,null,null,"UltCY2020AY2017",0]
[null,"Written",{"$f":"D46-1","v":2013},2014,2015,2016,2017,2018,2019,2020,2021,{"$f":"L28","v":2022},{"$f":"L46","v":2022},null,null,null,"UltCY2020AY2018",0]
["L26","Prior",{"$f":"Import!M13184","v":0},{"$f":"Import!M13186","v":0},{"$f":"Import!M13189","v":0},{"$f":"Import!M13193","v":0},{"$f":"Import!M13198","v":0},{"$f":"Import!M13204","v":0},{"$f":"Import!M13211","v":0},{"$f":"Import!M13219","v":0},{"$f":"Import!M13228","v":0},{"$f":"Import!M13238","v":0},{"$f":"Import!M13249","v":0},null,null,null,"UltCY2020AY2019",0]
["L27",{"$f":"B49-1","v":2013},{"$f":"Import!M13185","v":0},{"$f":"Import!M13187","v":0},{"$f":"Import!M13190","v":0},{"$f":"Import!M13194","v":0},{"$f":"Import!M13199","v":0},{"$f":"Import!M13205","v":0},{"$f":"Import!M13212","v":0},{"$f":"Import!M13220","v":0},{"$f":"Import!M13229","v":0},{"$f":"Import!M13239","v":0},{"$f":"Import!M13250","v":0},null,null,null,"UltCY2020AY2020",0]
["L28",2014,"XXX",{"$f":"Import!M13188","v":0},{"$f":"Import!M13191","v":0},{"$f":"Import!M13195","v":0},{"$f":"Import!M13200","v":0},{"$f":"Import!M13206","v":0},{"$f":"Import!M13213","v":0},{"$f":"Import!M13221","v":0},{"$f":"Import!M13230","v":0},{"$f":"Import!M13240","v":0},{"$f":"Import!M13251","v":0},null,null,null,{"$f":"\"UltCY\"&K$10&\"AY\"&B11","v":"UltCY2021AYPrior"},{"$f":"K11","v":0}]
["L29",2015,"XXX","XXX",{"$f":"Import!M13192","v":0},{"$f":"Import!M13196","v":0},{"$f":"Import!M13201","v":0},{"$f":"Import!M13207","v":0},{"$f":"Import!M13214","v":0},{"$f":"Import!M13222","v":0},{"$f":"Import!M13231","v":0},{"$f":"Import!M13241","v":0},{"$f":"Import!M13252","v":0},null,null,null,"UltCY2021AY2013",0]
["L30",2016,"XXX","XXX","XXX",{"$f":"Import!M13197","v":0},{"$f":"Import!M13202","v":0},{"$f":"Import!M13208","v":0},{"$f":"Import!M13215","v":0},{"$f":"Import!M13223","v":0},{"$f":"Import!M13232","v":0},{"$f":"Import!M13242","v":0},{"$f":"Import!M13253","v":0},null,null,null,"UltCY2021AY2014",0]
["L31",2017,"XXX","XXX","XXX","XXX",{"$f":"Import!M13203","v":0},{"$f":"Import!M13209","v":0},{"$f":"Import!M13216","v":0},{"$f":"Import!M13224","v":0},{"$f":"Import!M13233","v":0},{"$f":"Import!M13243","v":0},{"$f":"Import!M13254","v":0},null,null,null,"UltCY2021AY2015",0]
["L32",2018,"XXX","XXX","XXX","XXX","XXX",{"$f":"Import!M13210","v":0},{"$f":"Import!M13217","v":0},{"$f":"Import!M13225","v":0},{"$f":"Import!M13234","v":0},{"$f":"Import!M13244","v":0},{"$f":"Import!M13255","v":0},null,null,null,"UltCY2021AY2016",0]
["L33",2019,"XXX","XXX","XXX","XXX","XXX","XXX",{"$f":"Import!M13218","v":0},{"$f":"Import!M13226","v":0},{"$f":"Import!M13235","v":0},{"$f":"Import!M13245","v":0},{"$f":"Import!M13256","v":0},null,null,null,"UltCY2021AY2017",0]
["L34",2020,"XXX","XXX","XXX","XXX","XXX","XXX","XXX",{"$f":"Import!M13227","v":0},{"$f":"Import!M13236","v":0},{"$f":"Import!M13246","v":0},{"$f":"Import!M13257","v":0},null,null,null,"UltCY2021AY2018",0]
["L35",2021,"XXX","XXX","XXX","XXX","XXX","XXX","XXX","XXX",{"$f":"Import!M13237","v":0},{"$f":"Import!M13247","v":0},{"$f":"Import!M13258","v":0},null,null,null,"UltCY2021AY2019",0]
["L36",{"$f":"L46","v":2022},"XXX","XXX","XXX","XXX","XXX","XXX","XXX","XXX","XXX",{"$f":"Import!M13248","v":0},{"$f":"Import!M13259","v":0},null,null,null,"UltCY2021AY2020",0]
["L38","Totals",null,null,null,null,null,null,null,null,null,null,{"$f":"SUM(M47:M57)","v":0},null,null,null,"UltCY2021AY2021",0]
[null,null,null,null,null,null,null,null,null,null,null,null,null,null,null,null,{"$f":"\"UltCY\"&L$10&\"AY\"&B11","v":"UltCY2022AYPrior"},{"$f":"L11","v":0}]
[null,null,36,37,38,39,"Unallocated Loss",null,null,42,43,44,45,null,null,null,{"$f":"\"UltCY\"&L$10&\"AY\"&B13","v":"UltCY2022AY2014"},{"$f":"L13","v":0}]
[null,"Years in Which",null,null,null,null,"Adjustment Expenses",null,null,null,null,null,null,null,null,null,"UltCY2022AY2015",0]
[null,"Premiums",null,null,null,null,40,41,null,null,null,null,null,null,null,null,"UltCY2022AY2016",0]
[null,"Were",null,null,null,null,null,null,null,"Commission and","General and",null,null,null,null,null,"UltCY2022AY2017",0]
[null,"Earned and","Gross","Gross","Net","Net",null,null,null,"Brokerage","Administrative","Personnel","Other",null,null,null,"UltCY2022AY2018",0]
[null,"Losses Were","Premiums","Premiums","Premiums","Premiums",null,null,"Calendar","Expense","Expense","Costs","Expense",null,null,null,"UltCY2022AY2019",0]
[null,"Incurred","Written","Earned","Written","Earned","Paid","Incurred","Year","(Form 2A, Line 9)","(Form 2A, Line 10)","(Form 2A, Line 11)","(Form 2A, Line 12)",null,null,null,"UltCY2022AY2020",0]
["L39","Prior","XXX",{"$f":"C67","v":"XXX"},"XXX",{"$f":"E67","v":"XXX"},{"$f":"Import!M13304","v":0},{"$f":"Import!M13315","v":0},"Prior",{"$f":"Import!M13326","v":0},{"$f":"Import!M13337","v":0},{"$f":"Import!M13348","v":0},{"$f":"Import!M13359","v":0},null,null,null,"UltCY2022AY2021",0]
["L40",{"$f":"B69-1","v":2013},{"$f":"Import!M13261","v":0},{"$f":"Import!M13272","v":0},{"$f":"Import!M13283","v":0},{"$f":"Import!M13294","v":0},{"$f":"Import!M13305","v":0},{"$f":"Import!M13316","v":0},{"$f":"B68","v":2013},{"$f":"Import!M13327","v":0},{"$f":"Import!M13338","v":0},{"$f":"Import!M13349","v":0},{"$f":"Import!M13360","v":0},null,null,null,"UltCY2022AY2022",0]
["L41",2014,{"$f":"Import!M13262","v":0},{"$f":"Import!M13273","v":0},{"$f":"Import!M13284","v":0},{"$f":"Import!M13295","v":0},{"$f":"Import!M13306","v":0},{"$f":"Import!M13317","v":0},2014,{"$f":"Import!M13328","v":0},{"$f":"Import!M13339","v":0},{"$f":"Import!M13350","v":0},{"$f":"Import!M13361","v":0},null,null,null,{"$f":"\"PaidCY\"&C$10&\"AY\"&B29","v":"PaidCY2013AYPrior"},{"$f":"C29","v":0}]
["L42",2015,{"$f":"Import!M13263","v":0},{"$f":"Import!M13274","v":0},{"$f":"Import!M13285","v":0},{"$f":"Import!M13296","v":0},{"$f":"Import!M13307","v":0},{"$f":"Import!M13318","v":0},2015,{"$f":"Import!M13329","v":0},{"$f":"Import!M13340","v":0},{"$f":"Import!M13351","v":0},{"$f":"Import!M13362","v":0},null,null,null,{"$f":"\"PaidCY\"&C$10&\"AY\"&B30","v":"PaidCY2013AY2013"},{"$f":"C30","v":0}]
["L43",2016,{"$f":"Import!M13264","v":0},{"$f":"Import!M13275","v":0},{"$f":"Import!M13286","v":0},{"$f":"Import!M13297","v":0},{"$f":"Import!M13308","v":0},{"$f":"Import!M13319","v":0},2016,{"$f":"Import!M13330","v":0},{"$f":"Import!M13341","v":0},{"$f":"Import!M13352","v":0},{"$f":"Import!M13363","v":0},null,null,null,{"$f":"\"PaidCY\"&D$10&\"AY\"&B29","v":"PaidCY2014AYPrior"},{"$f":"D29","v":0}]
["L44",2017,{"$f":"Import!M13265","v":0},{"$f":"Import!M13276","v":0},{"$f":"Import!M13287","v":0},{"$f":"Import!M13298","v":0},{"$f":"Import!M13309","v":0},{"$f":"Import!M13320","v":0},2017,{"$f":"Import!M13331","v":0},{"$f":"Import!M13342","v":0},{"$f":"Import!M13353","v":0},{"$f":"Import!M13364","v":0},null,null,null,{"$f":"\"PaidCY\"&D$10&\"AY\"&B30","v":"PaidCY2014AY2013"},{"$f":"D30","v":0}]
["L45",2018,{"$f":"Import!M13266","v":0},{"$f":"Import!M13277","v":0},{"$f":"Import!M13288","v":0},{"$f":"Import!M13299","v":0},{"$f":"Import!M13310","v":0},{"$f":"Import!M13321","v":0},2018,{"$f":"Import!M13332","v":0},{"$f":"Import!M13343","v":0},{"$f":"Import!M13354","v":0},{"$f":"Import!M13365","v":0},null,null,null,{"$f":"\"PaidCY\"&D$10&\"AY\"&B31","v":"PaidCY2014AY2014"},{"$f":"D31","v":0}]
["L46",2019,{"$f":"Import!M13267","v":0},{"$f":"Import!M13278","v":0},{"$f":"Import!M13289","v":0},{"$f":"Import!M13300","v":0},{"$f":"Import!M13311","v":0},{"$f":"Import!M13322","v":0},2019,{"$f":"Import!M13333","v":0},{"$f":"Import!M13344","v":0},{"$f":"Import!M13355","v":0},{"$f":"Import!M13366","v":0},null,null,null,{"$f":"\"PaidCY\"&E$10&\"AY\"&B29","v":"PaidCY2015AYPrior"},{"$f":"E29","v":0}]
["L47",2020,{"$f":"Import!M13268","v":0},{"$f":"Import!M13279","v":0},{"$f":"Import!M13290","v":0},{"$f":"Import!M13301","v":0},{"$f":"Import!M13312","v":0},{"$f":"Import!M13323","v":0},2020,{"$f":"Import!M13334","v":0},{"$f":"Import!M13345","v":0},{"$f":"Import!M13356","v":0},{"$f":"Import!M13367","v":0},null,null,null,{"$f":"\"PaidCY\"&E$10&\"AY\"&B30","v":"PaidCY2015AY2013"},{"$f":"E30","v":0}]
["L48",2021,{"$f":"Import!M13269","v":0},{"$f":"Import!M13280","v":0},{"$f":"Import!M13291","v":0},{"$f":"Import!M13302","v":0},{"$f":"Import!M13313","v":0},{"$f":"Import!M13324","v":0},2021,{"$f":"Import!M13335","v":0},{"$f":"Import!M13346","v":0},{"$f":"Import!M13357","v":0},{"$f":"Import!M13368","v":0},null,null,null,{"$f":"\"PaidCY\"&E$10&\"AY\"&B31","v":"PaidCY2015AY2014"},{"$f":"E31","v":0}]
["L49",{"$f":"B39","v":2022},{"$f":"Import!M13270","v":0},{"$f":"Import!M13281","v":0},{"$f":"Import!M13292","v":0},{"$f":"Import!M13303","v":0},{"$f":"Import!M13314","v":0},{"$f":"Import!M13325","v":0},2022,{"$f":"Import!M13336","v":0},{"$f":"Import!M13347","v":0},{"$f":"Import!M13358","v":0},{"$f":"Import!M13369","v":0},null,null,null,{"$f":"\"PaidCY\"&E$10&\"AY\"&B32","v":"PaidCY2015AY2015"},{"$f":"E32","v":0}]
["L51","Totals","XXX",{"$f":"C78","v":"XXX"},"XXX",{"$f":"E78","v":"XXX"},{"$f":"SUM(G67:G77)","v":0},{"$f":"SUM(H67:H77)","v":0},"Totals",{"$f":"SUM(J67:J77)","v":0},{"$f":"SUM(K67:K77)","v":0},{"$f":"SUM(L67:L77)","v":0},{"$f":"SUM(M67:M77)","v":0},null,null,null,{"$f":"\"PaidCY\"&F$10&\"AY\"&B29","v":"PaidCY2016AYPrior"},{"$f":"F29","v":0}]
[null,null,null,null,null,null,null,null,null,null,null,null,null,null,null,null,{"$f":"\"PaidCY\"&F$10&\"AY\"&B30","v":"PaidCY2016AY2013"},{"$f":"F30","v":0}]
[null,"COMMENTS",null,null,null,null,null,null,null,null,null,null,null,null,null,null,{"$f":"\"PaidCY\"&F$10&\"AY\"&B31","v":"PaidCY2016AY2014"},{"$f":"F31","v":0}]
[null,{"$f":"Import!M13370","v":0},null,null,null,null,null,null,null,null,null,null,null,null,null,null,{"$f":"\"PaidCY\"&G$10&\"AY\"&B30","v":"PaidCY2017AY2013"},{"$f":"G30","v":0}]
[null,null,null,null,null,null,null,null,null,null,null,null,null,null,null,null,{"$f":"\"PaidCY\"&G$10&\"AY\"&B31","v":"PaidCY2017AY2014"},{"$f":"G31","v":0}]
[null,null,null,null,null,null,null,null,null,null,null,null,null,null,null,null,{"$f":"\"PaidCY\"&G$10&\"AY\"&B32","v":"PaidCY2017AY2015"},{"$f":"G32","v":0}]
[null,null,null,null,null,null,null,null,null,null,null,null,null,null,null,null,{"$f":"\"PaidCY\"&G$10&\"AY\"&B34","v":"PaidCY2017AY2017"},{"$f":"G34","v":0}]
[]
[]
[]
[]
[]
[null,null,null,"Accident Year",null,null,null,null,null,null,null,null,null,null,null,null,{"$f":"\"PaidCY\"&H$10&\"AY\"&B34","v":"PaidCY2018AY2017"},{"$f":"H34","v":0}]
[null,null,null,"Underwriting Year",null,null,null,null,null,null,null,null,null,null,null,null,"PaidCY2018AY2018",0]
[null,null,null,null,null,null,null,null,null,null,null,null,null,null,null,null,{"$f":"\"PaidCY\"&I$10&\"AY\"&B29","v":"PaidCY2019AYPrior"},{"$f":"I29","v":0}]
[null,null,null,null,null,null,null,null,null,null,null,null,null,null,null,null,"PaidCY2019AY2013",0]
[null,null,null,null,null,null,null,null,null,null,null,null,null,null,null,null,"PaidCY2019AY2014",0]

{"sheet":"Sch XI(a)(iii)","index":75,"n_rows":91,"n_cols":20,"rows_kept":91,"cut":false,"hidden":true,"merged":[[80,1,82,12],[5,2,5,11],[59,6,59,7],[41,2,41,11],[0,13,0,14],[2,13,2,14],[2,1,2,2],[60,6,60,7],[23,2,23,11]]}
[null,"SCHEDULE OF LOSS TRIANGLES (LINE 3 - PROPERTY NON-PROPORTIONAL)",null,null,null,null,null,null,null,null,null,null,null,{"$f":"HYPERLINK(\"#'Index'!A1\",\"Return to Index\")","v":"Return to Index"}]
[null,{"$f":"'Company Information'!C7","v":"Enter Company Name"}]
[null,{"$f":"'Company Information'!C3","v":"2022-12-31"},null,null,null,null,null,null,null,null,null,null,null,"SCHEDULE XI(a)(iii)"]
[null,{"$f":"\"expressed in\"& IF(1000>1,\" ['\"&MID(1000,2,LEN(1000))&\"s]\",\"\")&\" \"&'Form 1EBS'!$C$4","v":"expressed in ['000s] United States Dollars"}]
[]
[null,"Accounting Basis: *","INCURRED (ESTIMATED ULTIMATE) NET LOSSES AND ALLOCATED LOSS ADJUSTMENT EXPENSES REPORTED AT YEAR END ($000)",null,null,null,null,null,null,null,null,null,11,12,13,null,"AcctBasis",{"$f":"B7","v":"Accident Year"}]
[null,"Accident Year",null,null,null,null,null,null,null,null,null,null,"Ultimate","Development","Development",null,{"$f":"\"UltCY\"&C$10&\"AY\"&B11","v":"UltCY2013AYPrior"},{"$f":"C11","v":0},{"$f":"\"CATUltCY\"&L$10&\"AY\"&B11","v":"CATUltCY2022AYPrior"},{"$f":"M11","v":0}]
[null,"Years in Which",1,2,3,4,5,6,7,8,9,10,"Catastrophe",null,null,null,{"$f":"\"UltCY\"&C$10&\"AY\"&B12","v":"UltCY2013AY2013"},{"$f":"C12","v":0},"CATUltCY2022AY2013",0]
[null,"Losses Were",null,null,null,null,null,null,null,null,null,null,"Losses","One Year","Two Year",null,{"$f":"\"UltCY\"&D$10&\"AY\"&B11","v":"UltCY2014AYPrior"},{"$f":"D11","v":0},"CATUltCY2022AY2014",0]
[null,"Incurred",{"$f":"D10-1","v":2013},2014,2015,2016,2017,2018,2019,2020,2021,{"$f":"YEAR('Company Information'!C3)","v":2022},{"$f":"L10","v":2022},"Development","Development",null,{"$f":"\"UltCY\"&D$10&\"AY\"&B12","v":"UltCY2014AY2013"},{"$f":"D12","v":0},"CATUltCY2022AY2015",0]
["L1","Prior",{"$f":"Import!M13371","v":0},{"$f":"Import!M13373","v":0},{"$f":"Import!M13376","v":0},{"$f":"Import!M13380","v":0},{"$f":"Import!M13385","v":0},{"$f":"Import!M13391","v":0},{"$f":"Import!M13398","v":0},{"$f":"Import!M13406","v":0},{"$f":"Import!M13415","v":0},{"$f":"Import!M13425","v":0},{"$f":"Import!M13436","v":0},{"$f":"K11-L11","v":0},{"$f":"J11-L11","v":0},null,{"$f":"\"UltCY\"&D$10&\"AY\"&B13","v":"UltCY2014AY2014"},{"$f":"D13","v":0},"CATUltCY2022AY2016",0]
["L2",{"$f":"B13-1","v":2013},{"$f":"Import!M13372","v":0},{"$f":"Import!M13374","v":0},{"$f":"Import!M13377","v":0},{"$f":"Import!M13381","v":0},{"$f":"Import!M13386","v":0},{"$f":"Import!M13392","v":0},{"$f":"Import!M13399","v":0},{"$f":"Import!M13407","v":0},{"$f":"Import!M13416","v":0},{"$f":"Import!M13426","v":0},{"$f":"Import!M13437","v":0},0,0,null,{"$f":"\"UltCY\"&E$10&\"AY\"&B11","v":"UltCY2015AYPrior"},{"$f":"E11","v":0},"CATUltCY2022AY2017",0]
["L3",2014,"XXX",{"$f":"Import!M13375","v":0},{"$f":"Import!M13378","v":0},{"$f":"Import!M13382","v":0},{"$f":"Import!M13387","v":0},{"$f":"Import!M13393","v":0},{"$f":"Import!M13400","v":0},{"$f":"Import!M13408","v":0},{"$f":"Import!M13417","v":0},{"$f":"Import!M13427","v":0},{"$f":"Import!M13438","v":0},0,0,null,{"$f":"\"UltCY\"&E$10&\"AY\"&B12","v":"UltCY2015AY2013"},{"$f":"E12","v":0},"CATUltCY2022AY2018",0]
["L4",2015,"XXX","XXX",{"$f":"Import!M13379","v":0},{"$f":"Import!M13383","v":0},{"$f":"Import!M13388","v":0},{"$f":"Import!M13394","v":0},{"$f":"Import!M13401","v":0},{"$f":"Import!M13409","v":0},{"$f":"Import!M13418","v":0},{"$f":"Import!M13428","v":0},{"$f":"Import!M13439","v":0},0,0,null,{"$f":"\"UltCY\"&E$10&\"AY\"&B13","v":"UltCY2015AY2014"},{"$f":"E13","v":0},"CATUltCY2022AY2019",0]
["L5",2016,"XXX","XXX","XXX",{"$f":"Import!M13384","v":0},{"$f":"Import!M13389","v":0},{"$f":"Import!M13395","v":0},{"$f":"Import!M13402","v":0},{"$f":"Import!M13410","v":0},{"$f":"Import!M13419","v":0},{"$f":"Import!M13429","v":0},{"$f":"Import!M13440","v":0},0,0,null,{"$f":"\"UltCY\"&E$10&\"AY\"&B14","v":"UltCY2015AY2015"},{"$f":"E14","v":0},"CATUltCY2022AY2020",0]
["L6",2017,"XXX","XXX","XXX","XXX",{"$f":"Import!M13390","v":0},{"$f":"Import!M13396","v":0},{"$f":"Import!M13403","v":0},{"$f":"Import!M13411","v":0},{"$f":"Import!M13420","v":0},{"$f":"Import!M13430","v":0},{"$f":"Import!M13441","v":0},0,0,null,{"$f":"\"UltCY\"&F$10&\"AY\"&B11","v":"UltCY2016AYPrior"},{"$f":"F11","v":0},"CATUltCY2022AY2021",0]
["L7",2018,"XXX","XXX","XXX","XXX","XXX",{"$f":"Import!M13397","v":0},{"$f":"Import!M13404","v":0},{"$f":"Import!M13412","v":0},{"$f":"Import!M13421","v":0},{"$f":"Import!M13431","v":0},{"$f":"Import!M13442","v":0},0,0,null,{"$f":"\"UltCY\"&F$10&\"AY\"&B12","v":"UltCY2016AY2013"},{"$f":"F12","v":0},"CATUltCY2022AY2022",0]
["L8",2019,"XXX","XXX","XXX","XXX","XXX","XXX",{"$f":"Import!M13405","v":0},{"$f":"Import!M13413","v":0},{"$f":"Import!M13422","v":0},{"$f":"Import!M13432","v":0},{"$f":"Import!M13443","v":0},0,0,null,{"$f":"\"UltCY\"&F$10&\"AY\"&B13","v":"UltCY2016AY2014"},{"$f":"F13","v":0},{"$f":"\"CATPaidCY\"&L$10&\"AY\"&B29","v":"CATPaidCY2022AYPrior"},{"$f":"M29","v":0}]
["L9",2020,"XXX","XXX","XXX","XXX","XXX","XXX","XXX",{"$f":"Import!M13414","v":0},{"$f":"Import!M13423","v":0},{"$f":"Import!M13433","v":0},{"$f":"Import!M13444","v":0},0,0,null,{"$f":"\"UltCY\"&F$10&\"AY\"&B14","v":"UltCY2016AY2015"},{"$f":"F14","v":0},"CATPaidCY2022AY2013",0]
["L10",2021,"XXX","XXX","XXX","XXX","XXX","XXX","XXX","XXX",{"$f":"Import!M13424","v":0},{"$f":"Import!M13434","v":0},{"$f":"Import!M13445","v":0},0,"XXX",null,{"$f":"\"UltCY\"&F$10&\"AY\"&B15","v":"UltCY2016AY2016"},{"$f":"F15","v":0},"CATPaidCY2022AY2014",0]
["L11",{"$f":"L10","v":2022},"XXX","XXX","XXX","XXX","XXX","XXX","XXX","XXX","XXX",{"$f":"Import!M13435","v":0},{"$f":"Import!M13446","v":0},"XXX","XXX",null,{"$f":"\"UltCY\"&G$10&\"AY\"&B11","v":"UltCY2017AYPrior"},{"$f":"G11","v":0},"CATPaidCY2022AY2015",0]
["L12","Totals",null,null,null,null,null,null,null,null,null,null,{"$f":"SUM(M11:M21)","v":0},{"$f":"SUM(N11:N21)","v":0},{"$f":"SUM(O11:O21)","v":0},null,{"$f":"\"UltCY\"&G$10&\"AY\"&B12","v":"UltCY2017AY2013"},{"$f":"G12","v":0},"CATPaidCY2022AY2016",0]
[null,null,null,null,null,null,null,null,null,null,null,null,null,null,null,null,{"$f":"\"UltCY\"&G$10&\"AY\"&B13","v":"UltCY2017AY2014"},{"$f":"G13","v":0},"CATPaidCY2022AY2017",0]
[null,null,"CUMULATIVE PAID NET LOSSES AND ALLOCATED LOSS ADJUSTMENT EXPENSES REPORTED AT YEAR END ($000)",null,null,null,null,null,null,null,null,null,24,null,null,null,{"$f":"\"UltCY\"&G$10&\"AY\"&B15","v":"UltCY2017AY2016"},{"$f":"G15","v":0},{"$f":"\"CATPaidCY\"&L$10&\"AY\"&B36","v":"CATPaidCY2022AY2019"},{"$f":"M36","v":0}]
[null,null,null,null,null,null,null,null,null,null,null,null,"Paid",null,null,null,{"$f":"\"UltCY\"&G$10&\"AY\"&B16","v":"UltCY2017AY2017"},{"$f":"G16","v":0},{"$f":"\"CATPaidCY\"&L$10&\"AY\"&B37","v":"CATPaidCY2022AY2020"},{"$f":"M37","v":0}]
[null,"Years in Which",14,15,16,17,18,19,20,21,22,23,"Catastrophe",null,null,null,{"$f":"\"UltCY\"&H$10&\"AY\"&B11","v":"UltCY2018AYPrior"},{"$f":"H11","v":0},{"$f":"\"CATPaidCY\"&L$10&\"AY\"&B38","v":"CATPaidCY2022AY2021"},{"$f":"M38","v":0}]
[null,"Policies Were",null,null,null,null,null,null,null,null,null,null,"Losses",null,null,null,"UltCY2018AY2013",0,{"$f":"\"CATPaidCY\"&L$10&\"AY\"&B39","v":"CATPaidCY2022AY2022"},{"$f":"M39","v":0}]
[null,"Written",{"$f":"D28-1","v":2013},2014,2015,2016,2017,2018,2019,2020,2021,{"$f":"L10","v":2022},{"$f":"L28","v":2022},null,null,null,"UltCY2018AY2014",0,{"$f":"\"CATIBNRCY\"&L$10&\"AY\"&B47","v":"CATIBNRCY2022AYPrior"},{"$f":"M47","v":0}]
["L13","Prior",{"$f":"Import!M13447","v":0},{"$f":"Import!M13449","v":0},{"$f":"Import!M13452","v":0},{"$f":"Import!M13456","v":0},{"$f":"Import!M13461","v":0},{"$f":"Import!M13467","v":0},{"$f":"Import!M13474","v":0},{"$f":"Import!M13482","v":0},{"$f":"Import!M13491","v":0},{"$f":"Import!M13501","v":0},{"$f":"Import!M13512","v":0},null,null,null,"UltCY2018AY2015",0,"CATIBNRCY2022AY2013",0]
["L14",{"$f":"B31-1","v":2013},{"$f":"Import!M13448","v":0},{"$f":"Import!M13450","v":0},{"$f":"Import!M13453","v":0},{"$f":"Import!M13457","v":0},{"$f":"Import!M13462","v":0},{"$f":"Import!M13468","v":0},{"$f":"Import!M13475","v":0},{"$f":"Import!M13483","v":0},{"$f":"Import!M13492","v":0},{"$f":"Import!M13502","v":0},{"$f":"Import!M13513","v":0},null,null,null,"UltCY2018AY2016",0,"CATIBNRCY2022AY2014",0]
["L15",2014,"XXX",{"$f":"Import!M13451","v":0},{"$f":"Import!M13454","v":0},{"$f":"Import!M13458","v":0},{"$f":"Import!M13463","v":0},{"$f":"Import!M13469","v":0},{"$f":"Import!M13476","v":0},{"$f":"Import!M13484","v":0},{"$f":"Import!M13493","v":0},{"$f":"Import!M13503","v":0},{"$f":"Import!M13514","v":0},null,null,null,"UltCY2018AY2017",0,"CATIBNRCY2022AY2015",0]
["L16",2015,"XXX","XXX",{"$f":"Import!M13455","v":0},{"$f":"Import!M13459","v":0},{"$f":"Import!M13464","v":0},{"$f":"Import!M13470","v":0},{"$f":"Import!M13477","v":0},{"$f":"Import!M13485","v":0},{"$f":"Import!M13494","v":0},{"$f":"Import!M13504","v":0},{"$f":"Import!M13515","v":0},null,null,null,"UltCY2018AY2018",0,"CATIBNRCY2022AY2016",0]
["L17",2016,"XXX","XXX","XXX",{"$f":"Import!M13460","v":0},{"$f":"Import!M13465","v":0},{"$f":"Import!M13471","v":0},{"$f":"Import!M13478","v":0},{"$f":"Import!M13486","v":0},{"$f":"Import!M13495","v":0},{"$f":"Import!M13505","v":0},{"$f":"Import!M13516","v":0},null,null,null,{"$f":"\"UltCY\"&I$10&\"AY\"&B11","v":"UltCY2019AYPrior"},{"$f":"I11","v":0},"CATIBNRCY2022AY2017",0]
["L18",2017,"XXX","XXX","XXX","XXX",{"$f":"Import!M13466","v":0},{"$f":"Import!M13472","v":0},{"$f":"Import!M13479","v":0},{"$f":"Import!M13487","v":0},{"$f":"Import!M13496","v":0},{"$f":"Import!M13506","v":0},{"$f":"Import!M13517","v":0},null,null,null,"UltCY2019AY2013",0,"CATIBNRCY2022AY2018",0]
["L19",2018,"XXX","XXX","XXX","XXX","XXX",{"$f":"Import!M13473","v":0},{"$f":"Import!M13480","v":0},{"$f":"Import!M13488","v":0},{"$f":"Import!M13497","v":0},{"$f":"Import!M13507","v":0},{"$f":"Import!M13518","v":0},null,null,null,"UltCY2019AY2014",0,"CATIBNRCY2022AY2019",0]
["L20",2019,"XXX","XXX","XXX","XXX","XXX","XXX",{"$f":"Import!M13481","v":0},{"$f":"Import!M13489","v":0},{"$f":"Import!M13498","v":0},{"$f":"Import!M13508","v":0},{"$f":"Import!M13519","v":0},null,null,null,"UltCY2019AY2015",0,"CATIBNRCY2022AY2020",0]
["L21",2020,"XXX","XXX","XXX","XXX","XXX","XXX","XXX",{"$f":"Import!M13490","v":0},{"$f":"Import!M13499","v":0},{"$f":"Import!M13509","v":0},{"$f":"Import!M13520","v":0},null,null,null,"UltCY2019AY2016",0,"CATIBNRCY2022AY2021",0]
["L22",2021,"XXX","XXX","XXX","XXX","XXX","XXX","XXX","XXX",{"$f":"Import!M13500","v":0},{"$f":"Import!M13510","v":0},{"$f":"Import!M13521","v":0},null,null,null,"UltCY2019AY2017",0,"CATIBNRCY2022AY2022",0]
["L23",{"$f":"L28","v":2022},"XXX","XXX","XXX","XXX","XXX","XXX","XXX","XXX","XXX",{"$f":"Import!M13511","v":0},{"$f":"Import!M13522","v":0},null,null,null,"UltCY2019AY2018",0]
["L24","Totals",null,null,null,null,null,null,null,null,null,null,{"$f":"SUM(M29:M39)","v":0},null,null,null,"UltCY2019AY2019",0]
[null,null,null,null,null,null,null,null,null,null,null,null,null,null,null,null,{"$f":"\"UltCY\"&J$10&\"AY\"&B11","v":"UltCY2020AYPrior"},{"$f":"J11","v":0}]
[null,null,"BULK & IBNR RESERVES ON NET LOSSES AND ALLOCATED LOSS ADJUSTMENT EXPENSES REPORTED AT YEAR END ($000)",null,null,null,null,null,null,null,null,null,35,null,null,null,{"$f":"\"UltCY\"&J$10&\"AY\"&B13","v":"UltCY2020AY2014"},{"$f":"J13","v":0}]
[null,null,null,null,null,null,null,null,null,null,null,null,"Losses",null,null,null,"UltCY2020AY2015",0]
[null,"Years in Which",25,26,27,28,29,30,31,32,33,34,"Bulk & IBNR",null,null,null,"UltCY2020AY2016",0]
[null,"Policies Were",null,null,null,null,null,null,null,null,null,null,"Reserves",null,null,null,"UltCY2020AY2017",0]
[null,"Written",{"$f":"D46-1","v":2013},2014,2015,2016,2017,2018,2019,2020,2021,{"$f":"L28","v":2022},{"$f":"L46","v":2022},null,null,null,"UltCY2020AY2018",0]
["L25","Prior",{"$f":"Import!M13523","v":0},{"$f":"Import!M13525","v":0},{"$f":"Import!M13528","v":0},{"$f":"Import!M13532","v":0},{"$f":"Import!M13537","v":0},{"$f":"Import!M13543","v":0},{"$f":"Import!M13550","v":0},{"$f":"Import!M13558","v":0},{"$f":"Import!M13567","v":0},{"$f":"Import!M13577","v":0},{"$f":"Import!M13588","v":0},null,null,null,"UltCY2020AY2019",0]
["L26",{"$f":"B49-1","v":2013},{"$f":"Import!M13524","v":0},{"$f":"Import!M13526","v":0},{"$f":"Import!M13529","v":0},{"$f":"Import!M13533","v":0},{"$f":"Import!M13538","v":0},{"$f":"Import!M13544","v":0},{"$f":"Import!M13551","v":0},{"$f":"Import!M13559","v":0},{"$f":"Import!M13568","v":0},{"$f":"Import!M13578","v":0},{"$f":"Import!M13589","v":0},null,null,null,"UltCY2020AY2020",0]
["L27",2014,"XXX",{"$f":"Import!M13527","v":0},{"$f":"Import!M13530","v":0},{"$f":"Import!M13534","v":0},{"$f":"Import!M13539","v":0},{"$f":"Import!M13545","v":0},{"$f":"Import!M13552","v":0},{"$f":"Import!M13560","v":0},{"$f":"Import!M13569","v":0},{"$f":"Import!M13579","v":0},{"$f":"Import!M13590","v":0},null,null,null,{"$f":"\"UltCY\"&K$10&\"AY\"&B11","v":"UltCY2021AYPrior"},{"$f":"K11","v":0}]
["L28",2015,"XXX","XXX",{"$f":"Import!M13531","v":0},{"$f":"Import!M13535","v":0},{"$f":"Import!M13540","v":0},{"$f":"Import!M13546","v":0},{"$f":"Import!M13553","v":0},{"$f":"Import!M13561","v":0},{"$f":"Import!M13570","v":0},{"$f":"Import!M13580","v":0},{"$f":"Import!M13591","v":0},null,null,null,"UltCY2021AY2013",0]
["L29",2016,"XXX","XXX","XXX",{"$f":"Import!M13536","v":0},{"$f":"Import!M13541","v":0},{"$f":"Import!M13547","v":0},{"$f":"Import!M13554","v":0},{"$f":"Import!M13562","v":0},{"$f":"Import!M13571","v":0},{"$f":"Import!M13581","v":0},{"$f":"Import!M13592","v":0},null,null,null,"UltCY2021AY2014",0]
["L30",2017,"XXX","XXX","XXX","XXX",{"$f":"Import!M13542","v":0},{"$f":"Import!M13548","v":0},{"$f":"Import!M13555","v":0},{"$f":"Import!M13563","v":0},{"$f":"Import!M13572","v":0},{"$f":"Import!M13582","v":0},{"$f":"Import!M13593","v":0},null,null,null,"UltCY2021AY2015",0]
["L31",2018,"XXX","XXX","XXX","XXX","XXX",{"$f":"Import!M13549","v":0},{"$f":"Import!M13556","v":0},{"$f":"Import!M13564","v":0},{"$f":"Import!M13573","v":0},{"$f":"Import!M13583","v":0},{"$f":"Import!M13594","v":0},null,null,null,"UltCY2021AY2016",0]
["L32",2019,"XXX","XXX","XXX","XXX","XXX","XXX",{"$f":"Import!M13557","v":0},{"$f":"Import!M13565","v":0},{"$f":"Import!M13574","v":0},{"$f":"Import!M13584","v":0},{"$f":"Import!M13595","v":0},null,null,null,"UltCY2021AY2017",0]
["L33",2020,"XXX","XXX","XXX","XXX","XXX","XXX","XXX",{"$f":"Import!M13566","v":0},{"$f":"Import!M13575","v":0},{"$f":"Import!M13585","v":0},{"$f":"Import!M13596","v":0},null,null,null,"UltCY2021AY2018",0]
["L34",2021,"XXX","XXX","XXX","XXX","XXX","XXX","XXX","XXX",{"$f":"Import!M13576","v":0},{"$f":"Import!M13586","v":0},{"$f":"Import!M13597","v":0},null,null,null,"UltCY2021AY2019",0]
["L35",{"$f":"L46","v":2022},"XXX","XXX","XXX","XXX","XXX","XXX","XXX","XXX","XXX",{"$f":"Import!M13587","v":0},{"$f":"Import!M13598","v":0},null,null,null,"UltCY2021AY2020",0]
["L36","Totals",null,null,null,null,null,null,null,null,null,null,{"$f":"SUM(M47:M57)","v":0},null,null,null,"UltCY2021AY2021",0]
[null,null,null,null,null,null,null,null,null,null,null,null,null,null,null,null,{"$f":"\"UltCY\"&L$10&\"AY\"&B11","v":"UltCY2022AYPrior"},{"$f":"L11","v":0}]
[null,null,36,37,38,39,"Unallocated Loss",null,null,42,43,44,45,null,null,null,{"$f":"\"UltCY\"&L$10&\"AY\"&B13","v":"UltCY2022AY2014"},{"$f":"L13","v":0}]
[null,"Years in Which",null,null,null,null,"Adjustment Expenses",null,null,null,null,null,null,null,null,null,"UltCY2022AY2015",0]
[null,"Premiums",null,null,null,null,40,41,null,null,null,null,null,null,null,null,"UltCY2022AY2016",0]
[null,"Were",null,null,null,null,null,null,null,"Commission and","General and",null,null,null,null,null,"UltCY2022AY2017",0]
[null,"Earned and","Gross","Gross","Net","Net",null,null,null,"Brokerage","Administrative","Personnel","Other",null,null,null,"UltCY2022AY2018",0]
[null,"Losses Were","Premiums","Premiums","Premiums","Premiums",null,null,"Calendar","Expense","Expense","Costs","Expense",null,null,null,"UltCY2022AY2019",0]
[null,"Incurred","Written","Earned","Written","Earned","Paid","Incurred","Year","(Form 2A, Line 9)","(Form 2A, Line 10)","(Form 2A, Line 11)","(Form 2A, Line 12)",null,null,null,"UltCY2022AY2020",0]
["L37","Prior","XXX",{"$f":"C67","v":"XXX"},"XXX",{"$f":"E67","v":"XXX"},{"$f":"Import!M13643","v":0},{"$f":"Import!M13654","v":0},"Prior",{"$f":"Import!M13665","v":0},{"$f":"Import!M13676","v":0},{"$f":"Import!M13687","v":0},{"$f":"Import!M13698","v":0},null,null,null,"UltCY2022AY2021",0]
["L38",{"$f":"B69-1","v":2013},{"$f":"Import!M13600","v":0},{"$f":"Import!M13611","v":0},{"$f":"Import!M13622","v":0},{"$f":"Import!M13633","v":0},{"$f":"Import!M13644","v":0},{"$f":"Import!M13655","v":0},{"$f":"B68","v":2013},{"$f":"Import!M13666","v":0},{"$f":"Import!M13677","v":0},{"$f":"Import!M13688","v":0},{"$f":"Import!M13699","v":0},null,null,null,"UltCY2022AY2022",0]
["L39",2014,{"$f":"Import!M13601","v":0},{"$f":"Import!M13612","v":0},{"$f":"Import!M13623","v":0},{"$f":"Import!M13634","v":0},{"$f":"Import!M13645","v":0},{"$f":"Import!M13656","v":0},2014,{"$f":"Import!M13667","v":0},{"$f":"Import!M13678","v":0},{"$f":"Import!M13689","v":0},{"$f":"Import!M13700","v":0},null,null,null,{"$f":"\"PaidCY\"&C$10&\"AY\"&B29","v":"PaidCY2013AYPrior"},{"$f":"C29","v":0}]
["L40",2015,{"$f":"Import!M13602","v":0},{"$f":"Import!M13613","v":0},{"$f":"Import!M13624","v":0},{"$f":"Import!M13635","v":0},{"$f":"Import!M13646","v":0},{"$f":"Import!M13657","v":0},2015,{"$f":"Import!M13668","v":0},{"$f":"Import!M13679","v":0},{"$f":"Import!M13690","v":0},{"$f":"Import!M13701","v":0},null,null,null,{"$f":"\"PaidCY\"&C$10&\"AY\"&B30","v":"PaidCY2013AY2013"},{"$f":"C30","v":0}]
["L41",2016,{"$f":"Import!M13603","v":0},{"$f":"Import!M13614","v":0},{"$f":"Import!M13625","v":0},{"$f":"Import!M13636","v":0},{"$f":"Import!M13647","v":0},{"$f":"Import!M13658","v":0},2016,{"$f":"Import!M13669","v":0},{"$f":"Import!M13680","v":0},{"$f":"Import!M13691","v":0},{"$f":"Import!M13702","v":0},null,null,null,{"$f":"\"PaidCY\"&D$10&\"AY\"&B29","v":"PaidCY2014AYPrior"},{"$f":"D29","v":0}]
["L42",2017,{"$f":"Import!M13604","v":0},{"$f":"Import!M13615","v":0},{"$f":"Import!M13626","v":0},{"$f":"Import!M13637","v":0},{"$f":"Import!M13648","v":0},{"$f":"Import!M13659","v":0},2017,{"$f":"Import!M13670","v":0},{"$f":"Import!M13681","v":0},{"$f":"Import!M13692","v":0},{"$f":"Import!M13703","v":0},null,null,null,{"$f":"\"PaidCY\"&D$10&\"AY\"&B30","v":"PaidCY2014AY2013"},{"$f":"D30","v":0}]
["L43",2018,{"$f":"Import!M13605","v":0},{"$f":"Import!M13616","v":0},{"$f":"Import!M13627","v":0},{"$f":"Import!M13638","v":0},{"$f":"Import!M13649","v":0},{"$f":"Import!M13660","v":0},2018,{"$f":"Import!M13671","v":0},{"$f":"Import!M13682","v":0},{"$f":"Import!M13693","v":0},{"$f":"Import!M13704","v":0},null,null,null,{"$f":"\"PaidCY\"&D$10&\"AY\"&B31","v":"PaidCY2014AY2014"},{"$f":"D31","v":0}]
["L44",2019,{"$f":"Import!M13606","v":0},{"$f":"Import!M13617","v":0},{"$f":"Import!M13628","v":0},{"$f":"Import!M13639","v":0},{"$f":"Import!M13650","v":0},{"$f":"Import!M13661","v":0},2019,{"$f":"Import!M13672","v":0},{"$f":"Import!M13683","v":0},{"$f":"Import!M13694","v":0},{"$f":"Import!M13705","v":0},null,null,null,{"$f":"\"PaidCY\"&E$10&\"AY\"&B29","v":"PaidCY2015AYPrior"},{"$f":"E29","v":0}]
["L45",2020,{"$f":"Import!M13607","v":0},{"$f":"Import!M13618","v":0},{"$f":"Import!M13629","v":0},{"$f":"Import!M13640","v":0},{"$f":"Import!M13651","v":0},{"$f":"Import!M13662","v":0},2020,{"$f":"Import!M13673","v":0},{"$f":"Import!M13684","v":0},{"$f":"Import!M13695","v":0},{"$f":"Import!M13706","v":0},null,null,null,{"$f":"\"PaidCY\"&E$10&\"AY\"&B30","v":"PaidCY2015AY2013"},{"$f":"E30","v":0}]
["L46",2021,{"$f":"Import!M13608","v":0},{"$f":"Import!M13619","v":0},{"$f":"Import!M13630","v":0},{"$f":"Import!M13641","v":0},{"$f":"Import!M13652","v":0},{"$f":"Import!M13663","v":0},2021,{"$f":"Import!M13674","v":0},{"$f":"Import!M13685","v":0},{"$f":"Import!M13696","v":0},{"$f":"Import!M13707","v":0},null,null,null,{"$f":"\"PaidCY\"&E$10&\"AY\"&B31","v":"PaidCY2015AY2014"},{"$f":"E31","v":0}]
["L47",{"$f":"B39","v":2022},{"$f":"Import!M13609","v":0},{"$f":"Import!M13620","v":0},{"$f":"Import!M13631","v":0},{"$f":"Import!M13642","v":0},{"$f":"Import!M13653","v":0},{"$f":"Import!M13664","v":0},2022,{"$f":"Import!M13675","v":0},{"$f":"Import!M13686","v":0},{"$f":"Import!M13697","v":0},{"$f":"Import!M13708","v":0},null,null,null,{"$f":"\"PaidCY\"&E$10&\"AY\"&B32","v":"PaidCY2015AY2015"},{"$f":"E32","v":0}]
["L48","Totals","XXX",{"$f":"C78","v":"XXX"},"XXX",{"$f":"E78","v":"XXX"},{"$f":"SUM(G67:G77)","v":0},{"$f":"SUM(H67:H77)","v":0},"Totals",{"$f":"SUM(J67:J77)","v":0},{"$f":"SUM(K67:K77)","v":0},{"$f":"SUM(L67:L77)","v":0},{"$f":"SUM(M67:M77)","v":0},null,null,null,{"$f":"\"PaidCY\"&F$10&\"AY\"&B29","v":"PaidCY2016AYPrior"},{"$f":"F29","v":0}]
[null,null,null,null,null,null,null,null,null,null,null,null,null,null,null,null,{"$f":"\"PaidCY\"&F$10&\"AY\"&B30","v":"PaidCY2016AY2013"},{"$f":"F30","v":0}]
[null,"COMMENTS",null,null,null,null,null,null,null,null,null,null,null,null,null,null,{"$f":"\"PaidCY\"&F$10&\"AY\"&B31","v":"PaidCY2016AY2014"},{"$f":"F31","v":0}]
[null,{"$f":"Import!M13709","v":0},null,null,null,null,null,null,null,null,null,null,null,null,null,null,{"$f":"\"PaidCY\"&G$10&\"AY\"&B30","v":"PaidCY2017AY2013"},{"$f":"G30","v":0}]
[null,null,null,null,null,null,null,null,null,null,null,null,null,null,null,null,{"$f":"\"PaidCY\"&G$10&\"AY\"&B31","v":"PaidCY2017AY2014"},{"$f":"G31","v":0}]
[null,null,null,null,null,null,null,null,null,null,null,null,null,null,null,null,{"$f":"\"PaidCY\"&G$10&\"AY\"&B32","v":"PaidCY2017AY2015"},{"$f":"G32","v":0}]
[null,null,null,null,null,null,null,null,null,null,null,null,null,null,null,null,{"$f":"\"PaidCY\"&G$10&\"AY\"&B34","v":"PaidCY2017AY2017"},{"$f":"G34","v":0}]
[]
[]
[]
[]
[]
[null,null,null,null,"Accident Year",null,null,null,null,null,null,null,null,null,null,null,{"$f":"\"PaidCY\"&H$10&\"AY\"&B34","v":"PaidCY2018AY2017"},{"$f":"H34","v":0}]
[null,null,null,null,"Underwriting Year",null,null,null,null,null,null,null,null,null,null,null,"PaidCY2018AY2018",0]

{"sheet":"Sch XI(a)(iv)","index":76,"n_rows":95,"n_cols":20,"rows_kept":95,"cut":false,"hidden":true,"merged":[[80,1,82,12],[5,2,5,11],[59,6,59,7],[41,2,41,11],[0,13,0,14],[2,13,2,14],[2,1,2,2],[60,6,60,7],[23,2,23,11]]}
[null,"SCHEDULE OF LOSS TRIANGLES (LINE 4 - CASUALTY)",null,null,null,null,null,null,null,null,null,null,null,{"$f":"HYPERLINK(\"#'Index'!A1\",\"Return to Index\")","v":"Return to Index"}]
[null,{"$f":"'Company Information'!C7","v":"Enter Company Name"}]
[null,{"$f":"'Company Information'!C3","v":"2022-12-31"},null,null,null,null,null,null,null,null,null,null,null,"SCHEDULE XI(a)(iv)"]
[null,{"$f":"\"expressed in\"& IF(1000>1,\" ['\"&MID(1000,2,LEN(1000))&\"s]\",\"\")&\" \"&'Form 1EBS'!$C$4","v":"expressed in ['000s] United States Dollars"}]
[]
[null,"Accounting Basis: *","INCURRED (ESTIMATED ULTIMATE) NET LOSSES AND ALLOCATED LOSS ADJUSTMENT EXPENSES REPORTED AT YEAR END ($000)",null,null,null,null,null,null,null,null,null,11,12,13,null,"AcctBasis",{"$f":"B7","v":"Accident Year"}]
[null,"Accident Year",null,null,null,null,null,null,null,null,null,null,"Ultimate","Development","Development",null,{"$f":"\"UltCY\"&C$10&\"AY\"&B11","v":"UltCY2013AYPrior"},{"$f":"C11","v":0},{"$f":"\"CATUltCY\"&L$10&\"AY\"&B11","v":"CATUltCY2022AYPrior"},{"$f":"M11","v":0}]
[null,"Years in Which",1,2,3,4,5,6,7,8,9,10,"Catastrophe",null,null,null,{"$f":"\"UltCY\"&C$10&\"AY\"&B12","v":"UltCY2013AY2013"},{"$f":"C12","v":0},"CATUltCY2022AY2013",0]
[null,"Losses Were",null,null,null,null,null,null,null,null,null,null,"Losses","One Year","Two Year",null,{"$f":"\"UltCY\"&D$10&\"AY\"&B11","v":"UltCY2014AYPrior"},{"$f":"D11","v":0},"CATUltCY2022AY2014",0]
[null,"Incurred",{"$f":"D10-1","v":2013},2014,2015,2016,2017,2018,2019,2020,2021,{"$f":"YEAR('Company Information'!C3)","v":2022},{"$f":"L10","v":2022},"Development","Development",null,{"$f":"\"UltCY\"&D$10&\"AY\"&B12","v":"UltCY2014AY2013"},{"$f":"D12","v":0},"CATUltCY2022AY2015",0]
["L1","Prior",{"$f":"Import!M13710","v":0},{"$f":"Import!M13712","v":0},{"$f":"Import!M13715","v":0},{"$f":"Import!M13719","v":0},{"$f":"Import!M13724","v":0},{"$f":"Import!M13730","v":0},{"$f":"Import!M13737","v":0},{"$f":"Import!M13745","v":0},{"$f":"Import!M13754","v":0},{"$f":"Import!M13764","v":0},{"$f":"Import!M13775","v":0},{"$f":"K11-L11","v":0},{"$f":"J11-L11","v":0},null,{"$f":"\"UltCY\"&D$10&\"AY\"&B13","v":"UltCY2014AY2014"},{"$f":"D13","v":0},"CATUltCY2022AY2016",0]
["L2",{"$f":"B13-1","v":2013},{"$f":"Import!M13711","v":0},{"$f":"Import!M13713","v":0},{"$f":"Import!M13716","v":0},{"$f":"Import!M13720","v":0},{"$f":"Import!M13725","v":0},{"$f":"Import!M13731","v":0},{"$f":"Import!M13738","v":0},{"$f":"Import!M13746","v":0},{"$f":"Import!M13755","v":0},{"$f":"Import!M13765","v":0},{"$f":"Import!M13776","v":0},0,0,null,{"$f":"\"UltCY\"&E$10&\"AY\"&B11","v":"UltCY2015AYPrior"},{"$f":"E11","v":0},"CATUltCY2022AY2017",0]
["L3",2014,"XXX",{"$f":"Import!M13714","v":0},{"$f":"Import!M13717","v":0},{"$f":"Import!M13721","v":0},{"$f":"Import!M13726","v":0},{"$f":"Import!M13732","v":0},{"$f":"Import!M13739","v":0},{"$f":"Import!M13747","v":0},{"$f":"Import!M13756","v":0},{"$f":"Import!M13766","v":0},{"$f":"Import!M13777","v":0},0,0,null,{"$f":"\"UltCY\"&E$10&\"AY\"&B12","v":"UltCY2015AY2013"},{"$f":"E12","v":0},"CATUltCY2022AY2018",0]
["L4",2015,"XXX","XXX",{"$f":"Import!M13718","v":0},{"$f":"Import!M13722","v":0},{"$f":"Import!M13727","v":0},{"$f":"Import!M13733","v":0},{"$f":"Import!M13740","v":0},{"$f":"Import!M13748","v":0},{"$f":"Import!M13757","v":0},{"$f":"Import!M13767","v":0},{"$f":"Import!M13778","v":0},0,0,null,{"$f":"\"UltCY\"&E$10&\"AY\"&B13","v":"UltCY2015AY2014"},{"$f":"E13","v":0},"CATUltCY2022AY2019",0]
["L5",2016,"XXX","XXX","XXX",{"$f":"Import!M13723","v":0},{"$f":"Import!M13728","v":0},{"$f":"Import!M13734","v":0},{"$f":"Import!M13741","v":0},{"$f":"Import!M13749","v":0},{"$f":"Import!M13758","v":0},{"$f":"Import!M13768","v":0},{"$f":"Import!M13779","v":0},0,0,null,{"$f":"\"UltCY\"&E$10&\"AY\"&B14","v":"UltCY2015AY2015"},{"$f":"E14","v":0},"CATUltCY2022AY2020",0]
["L6",2017,"XXX","XXX","XXX","XXX",{"$f":"Import!M13729","v":0},{"$f":"Import!M13735","v":0},{"$f":"Import!M13742","v":0},{"$f":"Import!M13750","v":0},{"$f":"Import!M13759","v":0},{"$f":"Import!M13769","v":0},{"$f":"Import!M13780","v":0},0,0,null,{"$f":"\"UltCY\"&F$10&\"AY\"&B11","v":"UltCY2016AYPrior"},{"$f":"F11","v":0},"CATUltCY2022AY2021",0]
["L7",2018,"XXX","XXX","XXX","XXX","XXX",{"$f":"Import!M13736","v":0},{"$f":"Import!M13743","v":0},{"$f":"Import!M13751","v":0},{"$f":"Import!M13760","v":0},{"$f":"Import!M13770","v":0},{"$f":"Import!M13781","v":0},0,0,null,{"$f":"\"UltCY\"&F$10&\"AY\"&B12","v":"UltCY2016AY2013"},{"$f":"F12","v":0},"CATUltCY2022AY2022",0]
["L8",2019,"XXX","XXX","XXX","XXX","XXX","XXX",{"$f":"Import!M13744","v":0},{"$f":"Import!M13752","v":0},{"$f":"Import!M13761","v":0},{"$f":"Import!M13771","v":0},{"$f":"Import!M13782","v":0},0,0,null,{"$f":"\"UltCY\"&F$10&\"AY\"&B13","v":"UltCY2016AY2014"},{"$f":"F13","v":0},{"$f":"\"CATPaidCY\"&L$10&\"AY\"&B29","v":"CATPaidCY2022AYPrior"},{"$f":"M29","v":0}]
["L9",2020,"XXX","XXX","XXX","XXX","XXX","XXX","XXX",{"$f":"Import!M13753","v":0},{"$f":"Import!M13762","v":0},{"$f":"Import!M13772","v":0},{"$f":"Import!M13783","v":0},0,0,null,{"$f":"\"UltCY\"&F$10&\"AY\"&B14","v":"UltCY2016AY2015"},{"$f":"F14","v":0},"CATPaidCY2022AY2013",0]
["L10",2021,"XXX","XXX","XXX","XXX","XXX","XXX","XXX","XXX",{"$f":"Import!M13763","v":0},{"$f":"Import!M13773","v":0},{"$f":"Import!M13784","v":0},0,"XXX",null,{"$f":"\"UltCY\"&F$10&\"AY\"&B15","v":"UltCY2016AY2016"},{"$f":"F15","v":0},"CATPaidCY2022AY2014",0]
["L11",{"$f":"L10","v":2022},"XXX","XXX","XXX","XXX","XXX","XXX","XXX","XXX","XXX",{"$f":"Import!M13774","v":0},{"$f":"Import!M13785","v":0},"XXX","XXX",null,{"$f":"\"UltCY\"&G$10&\"AY\"&B11","v":"UltCY2017AYPrior"},{"$f":"G11","v":0},"CATPaidCY2022AY2015",0]
["L12","Totals",null,null,null,null,null,null,null,null,null,null,{"$f":"SUM(M11:M21)","v":0},{"$f":"SUM(N11:N21)","v":0},{"$f":"SUM(O11:O21)","v":0},null,{"$f":"\"UltCY\"&G$10&\"AY\"&B12","v":"UltCY2017AY2013"},{"$f":"G12","v":0},"CATPaidCY2022AY2016",0]
[null,null,null,null,null,null,null,null,null,null,null,null,null,null,null,null,{"$f":"\"UltCY\"&G$10&\"AY\"&B13","v":"UltCY2017AY2014"},{"$f":"G13","v":0},"CATPaidCY2022AY2017",0]
[null,null,"CUMULATIVE PAID NET LOSSES AND ALLOCATED LOSS ADJUSTMENT EXPENSES REPORTED AT YEAR END ($000)",null,null,null,null,null,null,null,null,null,24,null,null,null,{"$f":"\"UltCY\"&G$10&\"AY\"&B15","v":"UltCY2017AY2016"},{"$f":"G15","v":0},{"$f":"\"CATPaidCY\"&L$10&\"AY\"&B36","v":"CATPaidCY2022AY2019"},{"$f":"M36","v":0}]
[null,null,null,null,null,null,null,null,null,null,null,null,"Paid",null,null,null,{"$f":"\"UltCY\"&G$10&\"AY\"&B16","v":"UltCY2017AY2017"},{"$f":"G16","v":0},{"$f":"\"CATPaidCY\"&L$10&\"AY\"&B37","v":"CATPaidCY2022AY2020"},{"$f":"M37","v":0}]
[null,"Years in Which",14,15,16,17,18,19,20,21,22,23,"Catastrophe",null,null,null,{"$f":"\"UltCY\"&H$10&\"AY\"&B11","v":"UltCY2018AYPrior"},{"$f":"H11","v":0},{"$f":"\"CATPaidCY\"&L$10&\"AY\"&B38","v":"CATPaidCY2022AY2021"},{"$f":"M38","v":0}]
[null,"Policies Were",null,null,null,null,null,null,null,null,null,null,"Losses",null,null,null,"UltCY2018AY2013",0,{"$f":"\"CATPaidCY\"&L$10&\"AY\"&B39","v":"CATPaidCY2022AY2022"},{"$f":"M39","v":0}]
[null,"Written",{"$f":"D28-1","v":2013},2014,2015,2016,2017,2018,2019,2020,2021,{"$f":"L10","v":2022},{"$f":"L28","v":2022},null,null,null,"UltCY2018AY2014",0,{"$f":"\"CATIBNRCY\"&L$10&\"AY\"&B47","v":"CATIBNRCY2022AYPrior"},{"$f":"M47","v":0}]
["L13","Prior",{"$f":"Import!M13786","v":0},{"$f":"Import!M13788","v":0},{"$f":"Import!M13791","v":0},{"$f":"Import!M13795","v":0},{"$f":"Import!M13800","v":0},{"$f":"Import!M13806","v":0},{"$f":"Import!M13813","v":0},{"$f":"Import!M13821","v":0},{"$f":"Import!M13830","v":0},{"$f":"Import!M13840","v":0},{"$f":"Import!M13851","v":0},null,null,null,"UltCY2018AY2015",0,"CATIBNRCY2022AY2013",0]
["L14",{"$f":"B31-1","v":2013},{"$f":"Import!M13787","v":0},{"$f":"Import!M13789","v":0},{"$f":"Import!M13792","v":0},{"$f":"Import!M13796","v":0},{"$f":"Import!M13801","v":0},{"$f":"Import!M13807","v":0},{"$f":"Import!M13814","v":0},{"$f":"Import!M13822","v":0},{"$f":"Import!M13831","v":0},{"$f":"Import!M13841","v":0},{"$f":"Import!M13852","v":0},null,null,null,"UltCY2018AY2016",0,"CATIBNRCY2022AY2014",0]
["L15",2014,"XXX",{"$f":"Import!M13790","v":0},{"$f":"Import!M13793","v":0},{"$f":"Import!M13797","v":0},{"$f":"Import!M13802","v":0},{"$f":"Import!M13808","v":0},{"$f":"Import!M13815","v":0},{"$f":"Import!M13823","v":0},{"$f":"Import!M13832","v":0},{"$f":"Import!M13842","v":0},{"$f":"Import!M13853","v":0},null,null,null,"UltCY2018AY2017",0,"CATIBNRCY2022AY2015",0]
["L16",2015,"XXX","XXX",{"$f":"Import!M13794","v":0},{"$f":"Import!M13798","v":0},{"$f":"Import!M13803","v":0},{"$f":"Import!M13809","v":0},{"$f":"Import!M13816","v":0},{"$f":"Import!M13824","v":0},{"$f":"Import!M13833","v":0},{"$f":"Import!M13843","v":0},{"$f":"Import!M13854","v":0},null,null,null,"UltCY2018AY2018",0,"CATIBNRCY2022AY2016",0]
["L17",2016,"XXX","XXX","XXX",{"$f":"Import!M13799","v":0},{"$f":"Import!M13804","v":0},{"$f":"Import!M13810","v":0},{"$f":"Import!M13817","v":0},{"$f":"Import!M13825","v":0},{"$f":"Import!M13834","v":0},{"$f":"Import!M13844","v":0},{"$f":"Import!M13855","v":0},null,null,null,{"$f":"\"UltCY\"&I$10&\"AY\"&B11","v":"UltCY2019AYPrior"},{"$f":"I11","v":0},"CATIBNRCY2022AY2017",0]
["L18",2017,"XXX","XXX","XXX","XXX",{"$f":"Import!M13805","v":0},{"$f":"Import!M13811","v":0},{"$f":"Import!M13818","v":0},{"$f":"Import!M13826","v":0},{"$f":"Import!M13835","v":0},{"$f":"Import!M13845","v":0},{"$f":"Import!M13856","v":0},null,null,null,"UltCY2019AY2013",0,"CATIBNRCY2022AY2018",0]
["L19",2018,"XXX","XXX","XXX","XXX","XXX",{"$f":"Import!M13812","v":0},{"$f":"Import!M13819","v":0},{"$f":"Import!M13827","v":0},{"$f":"Import!M13836","v":0},{"$f":"Import!M13846","v":0},{"$f":"Import!M13857","v":0},null,null,null,"UltCY2019AY2014",0,"CATIBNRCY2022AY2019",0]
["L20",2019,"XXX","XXX","XXX","XXX","XXX","XXX",{"$f":"Import!M13820","v":0},{"$f":"Import!M13828","v":0},{"$f":"Import!M13837","v":0},{"$f":"Import!M13847","v":0},{"$f":"Import!M13858","v":0},null,null,null,"UltCY2019AY2015",0,"CATIBNRCY2022AY2020",0]
["L21",2020,"XXX","XXX","XXX","XXX","XXX","XXX","XXX",{"$f":"Import!M13829","v":0},{"$f":"Import!M13838","v":0},{"$f":"Import!M13848","v":0},{"$f":"Import!M13859","v":0},null,null,null,"UltCY2019AY2016",0,"CATIBNRCY2022AY2021",0]
["L22",2021,"XXX","XXX","XXX","XXX","XXX","XXX","XXX","XXX",{"$f":"Import!M13839","v":0},{"$f":"Import!M13849","v":0},{"$f":"Import!M13860","v":0},null,null,null,"UltCY2019AY2017",0,"CATIBNRCY2022AY2022",0]
["L23",{"$f":"L28","v":2022},"XXX","XXX","XXX","XXX","XXX","XXX","XXX","XXX","XXX",{"$f":"Import!M13850","v":0},{"$f":"Import!M13861","v":0},null,null,null,"UltCY2019AY2018",0]
["L24","Totals",null,null,null,null,null,null,null,null,null,null,{"$f":"SUM(M29:M39)","v":0},null,null,null,"UltCY2019AY2019",0]
[null,null,null,null,null,null,null,null,null,null,null,null,null,null,null,null,{"$f":"\"UltCY\"&J$10&\"AY\"&B11","v":"UltCY2020AYPrior"},{"$f":"J11","v":0}]
[null,null,"BULK & IBNR RESERVES ON NET LOSSES AND ALLOCATED LOSS ADJUSTMENT EXPENSES REPORTED AT YEAR END ($000)",null,null,null,null,null,null,null,null,null,35,null,null,null,{"$f":"\"UltCY\"&J$10&\"AY\"&B13","v":"UltCY2020AY2014"},{"$f":"J13","v":0}]
[null,null,null,null,null,null,null,null,null,null,null,null,"Losses",null,null,null,"UltCY2020AY2015",0]
[null,"Years in Which",25,26,27,28,29,30,31,32,33,34,"Bulk & IBNR",null,null,null,"UltCY2020AY2016",0]
[null,"Policies Were",null,null,null,null,null,null,null,null,null,null,"Reserves",null,null,null,"UltCY2020AY2017",0]
[null,"Written",{"$f":"D46-1","v":2013},2014,2015,2016,2017,2018,2019,2020,2021,{"$f":"L28","v":2022},{"$f":"L46","v":2022},null,null,null,"UltCY2020AY2018",0]
["L25","Prior",{"$f":"Import!M13862","v":0},{"$f":"Import!M13864","v":0},{"$f":"Import!M13867","v":0},{"$f":"Import!M13871","v":0},{"$f":"Import!M13876","v":0},{"$f":"Import!M13882","v":0},{"$f":"Import!M13889","v":0},{"$f":"Import!M13897","v":0},{"$f":"Import!M13906","v":0},{"$f":"Import!M13916","v":0},{"$f":"Import!M13927","v":0},null,null,null,"UltCY2020AY2019",0]
["L26",{"$f":"B49-1","v":2013},{"$f":"Import!M13863","v":0},{"$f":"Import!M13865","v":0},{"$f":"Import!M13868","v":0},{"$f":"Import!M13872","v":0},{"$f":"Import!M13877","v":0},{"$f":"Import!M13883","v":0},{"$f":"Import!M13890","v":0},{"$f":"Import!M13898","v":0},{"$f":"Import!M13907","v":0},{"$f":"Import!M13917","v":0},{"$f":"Import!M13928","v":0},null,null,null,"UltCY2020AY2020",0]
["L27",2014,"XXX",{"$f":"Import!M13866","v":0},{"$f":"Import!M13869","v":0},{"$f":"Import!M13873","v":0},{"$f":"Import!M13878","v":0},{"$f":"Import!M13884","v":0},{"$f":"Import!M13891","v":0},{"$f":"Import!M13899","v":0},{"$f":"Import!M13908","v":0},{"$f":"Import!M13918","v":0},{"$f":"Import!M13929","v":0},null,null,null,{"$f":"\"UltCY\"&K$10&\"AY\"&B11","v":"UltCY2021AYPrior"},{"$f":"K11","v":0}]
["L28",2015,"XXX","XXX",{"$f":"Import!M13870","v":0},{"$f":"Import!M13874","v":0},{"$f":"Import!M13879","v":0},{"$f":"Import!M13885","v":0},{"$f":"Import!M13892","v":0},{"$f":"Import!M13900","v":0},{"$f":"Import!M13909","v":0},{"$f":"Import!M13919","v":0},{"$f":"Import!M13930","v":0},null,null,null,"UltCY2021AY2013",0]
["L29",2016,"XXX","XXX","XXX",{"$f":"Import!M13875","v":0},{"$f":"Import!M13880","v":0},{"$f":"Import!M13886","v":0},{"$f":"Import!M13893","v":0},{"$f":"Import!M13901","v":0},{"$f":"Import!M13910","v":0},{"$f":"Import!M13920","v":0},{"$f":"Import!M13931","v":0},null,null,null,"UltCY2021AY2014",0]
["L30",2017,"XXX","XXX","XXX","XXX",{"$f":"Import!M13881","v":0},{"$f":"Import!M13887","v":0},{"$f":"Import!M13894","v":0},{"$f":"Import!M13902","v":0},{"$f":"Import!M13911","v":0},{"$f":"Import!M13921","v":0},{"$f":"Import!M13932","v":0},null,null,null,"UltCY2021AY2015",0]
["L31",2018,"XXX","XXX","XXX","XXX","XXX",{"$f":"Import!M13888","v":0},{"$f":"Import!M13895","v":0},{"$f":"Import!M13903","v":0},{"$f":"Import!M13912","v":0},{"$f":"Import!M13922","v":0},{"$f":"Import!M13933","v":0},null,null,null,"UltCY2021AY2016",0]
["L32",2019,"XXX","XXX","XXX","XXX","XXX","XXX",{"$f":"Import!M13896","v":0},{"$f":"Import!M13904","v":0},{"$f":"Import!M13913","v":0},{"$f":"Import!M13923","v":0},{"$f":"Import!M13934","v":0},null,null,null,"UltCY2021AY2017",0]
["L33",2020,"XXX","XXX","XXX","XXX","XXX","XXX","XXX",{"$f":"Import!M13905","v":0},{"$f":"Import!M13914","v":0},{"$f":"Import!M13924","v":0},{"$f":"Import!M13935","v":0},null,null,null,"UltCY2021AY2018",0]
["L34",2021,"XXX","XXX","XXX","XXX","XXX","XXX","XXX","XXX",{"$f":"Import!M13915","v":0},{"$f":"Import!M13925","v":0},{"$f":"Import!M13936","v":0},null,null,null,"UltCY2021AY2019",0]
["L35",{"$f":"L46","v":2022},"XXX","XXX","XXX","XXX","XXX","XXX","XXX","XXX","XXX",{"$f":"Import!M13926","v":0},{"$f":"Import!M13937","v":0},null,null,null,"UltCY2021AY2020",0]
["L36","Totals",null,null,null,null,null,null,null,null,null,null,{"$f":"SUM(M47:M57)","v":0},null,null,null,"UltCY2021AY2021",0]
[null,null,null,null,null,null,null,null,null,null,null,null,null,null,null,null,{"$f":"\"UltCY\"&L$10&\"AY\"&B11","v":"UltCY2022AYPrior"},{"$f":"L11","v":0}]
[null,null,36,37,38,39,"Unallocated Loss",null,null,42,43,44,45,null,null,null,{"$f":"\"UltCY\"&L$10&\"AY\"&B13","v":"UltCY2022AY2014"},{"$f":"L13","v":0}]
[null,"Years in Which",null,null,null,null,"Adjustment Expenses",null,null,null,null,null,null,null,null,null,"UltCY2022AY2015",0]
[null,"Premiums",null,null,null,null,40,41,null,null,null,null,null,null,null,null,"UltCY2022AY2016",0]
[null,"Were",null,null,null,null,null,null,null,"Commission and","General and",null,null,null,null,null,"UltCY2022AY2017",0]
[null,"Earned and","Gross","Gross","Net","Net",null,null,null,"Brokerage","Administrative","Personnel","Other",null,null,null,"UltCY2022AY2018",0]
[null,"Losses Were","Premiums","Premiums","Premiums","Premiums",null,null,"Calendar","Expense","Expense","Costs","Expense",null,null,null,"UltCY2022AY2019",0]
[null,"Incurred","Written","Earned","Written","Earned","Paid","Incurred","Year","(Form 2A, Line 9)","(Form 2A, Line 10)","(Form 2A, Line 11)","(Form 2A, Line 12)",null,null,null,"UltCY2022AY2020",0]
["L37","Prior","XXX",{"$f":"C67","v":"XXX"},"XXX",{"$f":"E67","v":"XXX"},{"$f":"Import!M13982","v":0},{"$f":"Import!M13993","v":0},"Prior",{"$f":"Import!M14004","v":0},{"$f":"Import!M14015","v":0},{"$f":"Import!M14026","v":0},{"$f":"Import!M14037","v":0},null,null,null,"UltCY2022AY2021",0]
["L38",{"$f":"B69-1","v":2013},{"$f":"Import!M13939","v":0},{"$f":"Import!M13950","v":0},{"$f":"Import!M13961","v":0},{"$f":"Import!M13972","v":0},{"$f":"Import!M13983","v":0},{"$f":"Import!M13994","v":0},{"$f":"B68","v":2013},{"$f":"Import!M14005","v":0},{"$f":"Import!M14016","v":0},{"$f":"Import!M14027","v":0},{"$f":"Import!M14038","v":0},null,null,null,"UltCY2022AY2022",0]
["L39",2014,{"$f":"Import!M13940","v":0},{"$f":"Import!M13951","v":0},{"$f":"Import!M13962","v":0},{"$f":"Import!M13973","v":0},{"$f":"Import!M13984","v":0},{"$f":"Import!M13995","v":0},2014,{"$f":"Import!M14006","v":0},{"$f":"Import!M14017","v":0},{"$f":"Import!M14028","v":0},{"$f":"Import!M14039","v":0},null,null,null,{"$f":"\"PaidCY\"&C$10&\"AY\"&B29","v":"PaidCY2013AYPrior"},{"$f":"C29","v":0}]
["L40",2015,{"$f":"Import!M13941","v":0},{"$f":"Import!M13952","v":0},{"$f":"Import!M13963","v":0},{"$f":"Import!M13974","v":0},{"$f":"Import!M13985","v":0},{"$f":"Import!M13996","v":0},2015,{"$f":"Import!M14007","v":0},{"$f":"Import!M14018","v":0},{"$f":"Import!M14029","v":0},{"$f":"Import!M14040","v":0},null,null,null,{"$f":"\"PaidCY\"&C$10&\"AY\"&B30","v":"PaidCY2013AY2013"},{"$f":"C30","v":0}]
["L41",2016,{"$f":"Import!M13942","v":0},{"$f":"Import!M13953","v":0},{"$f":"Import!M13964","v":0},{"$f":"Import!M13975","v":0},{"$f":"Import!M13986","v":0},{"$f":"Import!M13997","v":0},2016,{"$f":"Import!M14008","v":0},{"$f":"Import!M14019","v":0},{"$f":"Import!M14030","v":0},{"$f":"Import!M14041","v":0},null,null,null,{"$f":"\"PaidCY\"&D$10&\"AY\"&B29","v":"PaidCY2014AYPrior"},{"$f":"D29","v":0}]
["L42",2017,{"$f":"Import!M13943","v":0},{"$f":"Import!M13954","v":0},{"$f":"Import!M13965","v":0},{"$f":"Import!M13976","v":0},{"$f":"Import!M13987","v":0},{"$f":"Import!M13998","v":0},2017,{"$f":"Import!M14009","v":0},{"$f":"Import!M14020","v":0},{"$f":"Import!M14031","v":0},{"$f":"Import!M14042","v":0},null,null,null,{"$f":"\"PaidCY\"&D$10&\"AY\"&B30","v":"PaidCY2014AY2013"},{"$f":"D30","v":0}]
["L43",2018,{"$f":"Import!M13944","v":0},{"$f":"Import!M13955","v":0},{"$f":"Import!M13966","v":0},{"$f":"Import!M13977","v":0},{"$f":"Import!M13988","v":0},{"$f":"Import!M13999","v":0},2018,{"$f":"Import!M14010","v":0},{"$f":"Import!M14021","v":0},{"$f":"Import!M14032","v":0},{"$f":"Import!M14043","v":0},null,null,null,{"$f":"\"PaidCY\"&D$10&\"AY\"&B31","v":"PaidCY2014AY2014"},{"$f":"D31","v":0}]
["L44",2019,{"$f":"Import!M13945","v":0},{"$f":"Import!M13956","v":0},{"$f":"Import!M13967","v":0},{"$f":"Import!M13978","v":0},{"$f":"Import!M13989","v":0},{"$f":"Import!M14000","v":0},2019,{"$f":"Import!M14011","v":0},{"$f":"Import!M14022","v":0},{"$f":"Import!M14033","v":0},{"$f":"Import!M14044","v":0},null,null,null,{"$f":"\"PaidCY\"&E$10&\"AY\"&B29","v":"PaidCY2015AYPrior"},{"$f":"E29","v":0}]
["L45",2020,{"$f":"Import!M13946","v":0},{"$f":"Import!M13957","v":0},{"$f":"Import!M13968","v":0},{"$f":"Import!M13979","v":0},{"$f":"Import!M13990","v":0},{"$f":"Import!M14001","v":0},2020,{"$f":"Import!M14012","v":0},{"$f":"Import!M14023","v":0},{"$f":"Import!M14034","v":0},{"$f":"Import!M14045","v":0},null,null,null,{"$f":"\"PaidCY\"&E$10&\"AY\"&B30","v":"PaidCY2015AY2013"},{"$f":"E30","v":0}]
["L46",2021,{"$f":"Import!M13947","v":0},{"$f":"Import!M13958","v":0},{"$f":"Import!M13969","v":0},{"$f":"Import!M13980","v":0},{"$f":"Import!M13991","v":0},{"$f":"Import!M14002","v":0},2021,{"$f":"Import!M14013","v":0},{"$f":"Import!M14024","v":0},{"$f":"Import!M14035","v":0},{"$f":"Import!M14046","v":0},null,null,null,{"$f":"\"PaidCY\"&E$10&\"AY\"&B31","v":"PaidCY2015AY2014"},{"$f":"E31","v":0}]
["L47",{"$f":"B39","v":2022},{"$f":"Import!M13948","v":0},{"$f":"Import!M13959","v":0},{"$f":"Import!M13970","v":0},{"$f":"Import!M13981","v":0},{"$f":"Import!M13992","v":0},{"$f":"Import!M14003","v":0},2022,{"$f":"Import!M14014","v":0},{"$f":"Import!M14025","v":0},{"$f":"Import!M14036","v":0},{"$f":"Import!M14047","v":0},null,null,null,{"$f":"\"PaidCY\"&E$10&\"AY\"&B32","v":"PaidCY2015AY2015"},{"$f":"E32","v":0}]
["L48","Totals","XXX",{"$f":"C78","v":"XXX"},"XXX",{"$f":"E78","v":"XXX"},{"$f":"SUM(G67:G77)","v":0},{"$f":"SUM(H67:H77)","v":0},"Totals",{"$f":"SUM(J67:J77)","v":0},{"$f":"SUM(K67:K77)","v":0},{"$f":"SUM(L67:L77)","v":0},{"$f":"SUM(M67:M77)","v":0},null,null,null,{"$f":"\"PaidCY\"&F$10&\"AY\"&B29","v":"PaidCY2016AYPrior"},{"$f":"F29","v":0}]
[null,null,null,null,null,null,null,null,null,null,null,null,null,null,null,null,{"$f":"\"PaidCY\"&F$10&\"AY\"&B30","v":"PaidCY2016AY2013"},{"$f":"F30","v":0}]
[null,"COMMENTS",null,null,null,null,null,null,null,null,null,null,null,null,null,null,{"$f":"\"PaidCY\"&F$10&\"AY\"&B31","v":"PaidCY2016AY2014"},{"$f":"F31","v":0}]
[null,{"$f":"Import!M14048","v":0},null,null,null,null,null,null,null,null,null,null,null,null,null,null,{"$f":"\"PaidCY\"&G$10&\"AY\"&B30","v":"PaidCY2017AY2013"},{"$f":"G30","v":0}]
[null,null,null,null,null,null,null,null,null,null,null,null,null,null,null,null,{"$f":"\"PaidCY\"&G$10&\"AY\"&B31","v":"PaidCY2017AY2014"},{"$f":"G31","v":0}]
[null,null,null,null,null,null,null,null,null,null,null,null,null,null,null,null,{"$f":"\"PaidCY\"&G$10&\"AY\"&B32","v":"PaidCY2017AY2015"},{"$f":"G32","v":0}]
[null,null,null,null,null,null,null,null,null,null,null,null,null,null,null,null,{"$f":"\"PaidCY\"&G$10&\"AY\"&B33","v":"PaidCY2017AY2016"},{"$f":"G33","v":0}]
[]
[]
[]
[]
[]
[null,null,null,"Accident Year",null,null,null,null,null,null,null,null,null,null,null,null,{"$f":"\"PaidCY\"&H$10&\"AY\"&B33","v":"PaidCY2018AY2016"},{"$f":"H33","v":0}]
[null,null,null,"Underwriting Year",null,null,null,null,null,null,null,null,null,null,null,null,"PaidCY2018AY2017",0]
[null,null,null,null,null,null,null,null,null,null,null,null,null,null,null,null,"PaidCY2018AY2018",0]
[null,null,null,null,null,null,null,null,null,null,null,null,null,null,null,null,{"$f":"\"PaidCY\"&I$10&\"AY\"&B29","v":"PaidCY2019AYPrior"},{"$f":"I29","v":0}]
[null,null,null,null,null,null,null,null,null,null,null,null,null,null,null,null,"PaidCY2019AY2013",0]
[null,null,null,null,null,null,null,null,null,null,null,null,null,null,null,null,"PaidCY2019AY2014",0]

{"sheet":"Sch XI(a)(v)","index":77,"n_rows":87,"n_cols":20,"rows_kept":87,"cut":false,"hidden":true,"merged":[[80,1,82,12],[5,2,5,11],[23,2,23,11],[41,2,41,11],[0,13,0,14],[2,13,2,14],[2,1,2,2],[59,6,59,7],[60,6,60,7]]}
[null,"SCHEDULE OF LOSS TRIANGLES (LINE 5 - CASUALTY NON-PROPORTIONAL)",null,null,null,null,null,null,null,null,null,null,null,{"$f":"HYPERLINK(\"#'Index'!A1\",\"Return to Index\")","v":"Return to Index"}]
[null,{"$f":"'Company Information'!C7","v":"Enter Company Name"}]
[null,{"$f":"'Company Information'!C3","v":"2022-12-31"},null,null,null,null,null,null,null,null,null,null,null,"SCHEDULE XI(a)(v)"]
[null,{"$f":"\"expressed in\"& IF(1000>1,\" ['\"&MID(1000,2,LEN(1000))&\"s]\",\"\")&\" \"&'Form 1EBS'!$C$4","v":"expressed in ['000s] United States Dollars"}]
[]
[null,"Accounting Basis: ","INCURRED (ESTIMATED ULTIMATE) NET LOSSES AND ALLOCATED LOSS ADJUSTMENT EXPENSES REPORTED AT YEAR END ($000)",null,null,null,null,null,null,null,null,null,11,12,13,null,"AcctBasis",{"$f":"B7","v":"Accident Year"}]
[null,"Accident Year",null,null,null,null,null,null,null,null,null,null,"Ultimate","Development","Development",null,{"$f":"\"UltCY\"&C$10&\"AY\"&B11","v":"UltCY2013AYPrior"},{"$f":"C11","v":0},{"$f":"\"CATUltCY\"&L$10&\"AY\"&B11","v":"CATUltCY2022AYPrior"},{"$f":"M11","v":0}]
[null,"Years in Which",1,2,3,4,5,6,7,8,9,10,"Catastrophe",null,null,null,{"$f":"\"UltCY\"&C$10&\"AY\"&B12","v":"UltCY2013AY2013"},{"$f":"C12","v":0},"CATUltCY2022AY2013",0]
[null,"Losses Were",null,null,null,null,null,null,null,null,null,null,"Losses","One Year","Two Year",null,{"$f":"\"UltCY\"&D$10&\"AY\"&B11","v":"UltCY2014AYPrior"},{"$f":"D11","v":0},"CATUltCY2022AY2014",0]
[null,"Incurred",{"$f":"D10-1","v":2013},2014,2015,2016,2017,2018,2019,2020,2021,{"$f":"YEAR('Company Information'!C3)","v":2022},{"$f":"L10","v":2022},"Development","Development",null,{"$f":"\"UltCY\"&D$10&\"AY\"&B12","v":"UltCY2014AY2013"},{"$f":"D12","v":0},"CATUltCY2022AY2015",0]
["L1","Prior",{"$f":"Import!M14049","v":0},{"$f":"Import!M14051","v":0},{"$f":"Import!M14054","v":0},{"$f":"Import!M14058","v":0},{"$f":"Import!M14063","v":0},{"$f":"Import!M14069","v":0},{"$f":"Import!M14076","v":0},{"$f":"Import!M14084","v":0},{"$f":"Import!M14093","v":0},{"$f":"Import!M14103","v":0},{"$f":"Import!M14114","v":0},{"$f":"K11-L11","v":0},{"$f":"J11-L11","v":0},null,{"$f":"\"UltCY\"&D$10&\"AY\"&B13","v":"UltCY2014AY2014"},{"$f":"D13","v":0},"CATUltCY2022AY2016",0]
["L2",{"$f":"B13-1","v":2013},{"$f":"Import!M14050","v":0},{"$f":"Import!M14052","v":0},{"$f":"Import!M14055","v":0},{"$f":"Import!M14059","v":0},{"$f":"Import!M14064","v":0},{"$f":"Import!M14070","v":0},{"$f":"Import!M14077","v":0},{"$f":"Import!M14085","v":0},{"$f":"Import!M14094","v":0},{"$f":"Import!M14104","v":0},{"$f":"Import!M14115","v":0},0,0,null,{"$f":"\"UltCY\"&E$10&\"AY\"&B11","v":"UltCY2015AYPrior"},{"$f":"E11","v":0},"CATUltCY2022AY2017",0]
["L3",2014,"XXX",{"$f":"Import!M14053","v":0},{"$f":"Import!M14056","v":0},{"$f":"Import!M14060","v":0},{"$f":"Import!M14065","v":0},{"$f":"Import!M14071","v":0},{"$f":"Import!M14078","v":0},{"$f":"Import!M14086","v":0},{"$f":"Import!M14095","v":0},{"$f":"Import!M14105","v":0},{"$f":"Import!M14116","v":0},0,0,null,{"$f":"\"UltCY\"&E$10&\"AY\"&B12","v":"UltCY2015AY2013"},{"$f":"E12","v":0},"CATUltCY2022AY2018",0]
["L4",2015,"XXX","XXX",{"$f":"Import!M14057","v":0},{"$f":"Import!M14061","v":0},{"$f":"Import!M14066","v":0},{"$f":"Import!M14072","v":0},{"$f":"Import!M14079","v":0},{"$f":"Import!M14087","v":0},{"$f":"Import!M14096","v":0},{"$f":"Import!M14106","v":0},{"$f":"Import!M14117","v":0},0,0,null,{"$f":"\"UltCY\"&E$10&\"AY\"&B13","v":"UltCY2015AY2014"},{"$f":"E13","v":0},"CATUltCY2022AY2019",0]
["L5",2016,"XXX","XXX","XXX",{"$f":"Import!M14062","v":0},{"$f":"Import!M14067","v":0},{"$f":"Import!M14073","v":0},{"$f":"Import!M14080","v":0},{"$f":"Import!M14088","v":0},{"$f":"Import!M14097","v":0},{"$f":"Import!M14107","v":0},{"$f":"Import!M14118","v":0},0,0,null,{"$f":"\"UltCY\"&E$10&\"AY\"&B14","v":"UltCY2015AY2015"},{"$f":"E14","v":0},"CATUltCY2022AY2020",0]
["L6",2017,"XXX","XXX","XXX","XXX",{"$f":"Import!M14068","v":0},{"$f":"Import!M14074","v":0},{"$f":"Import!M14081","v":0},{"$f":"Import!M14089","v":0},{"$f":"Import!M14098","v":0},{"$f":"Import!M14108","v":0},{"$f":"Import!M14119","v":0},0,0,null,{"$f":"\"UltCY\"&F$10&\"AY\"&B11","v":"UltCY2016AYPrior"},{"$f":"F11","v":0},"CATUltCY2022AY2021",0]
["L7",2018,"XXX","XXX","XXX","XXX","XXX",{"$f":"Import!M14075","v":0},{"$f":"Import!M14082","v":0},{"$f":"Import!M14090","v":0},{"$f":"Import!M14099","v":0},{"$f":"Import!M14109","v":0},{"$f":"Import!M14120","v":0},0,0,null,{"$f":"\"UltCY\"&F$10&\"AY\"&B12","v":"UltCY2016AY2013"},{"$f":"F12","v":0},"CATUltCY2022AY2022",0]
["L8",2019,"XXX","XXX","XXX","XXX","XXX","XXX",{"$f":"Import!M14083","v":0},{"$f":"Import!M14091","v":0},{"$f":"Import!M14100","v":0},{"$f":"Import!M14110","v":0},{"$f":"Import!M14121","v":0},0,0,null,{"$f":"\"UltCY\"&F$10&\"AY\"&B13","v":"UltCY2016AY2014"},{"$f":"F13","v":0},{"$f":"\"CATPaidCY\"&L$10&\"AY\"&B29","v":"CATPaidCY2022AYPrior"},{"$f":"M29","v":0}]
["L9",2020,"XXX","XXX","XXX","XXX","XXX","XXX","XXX",{"$f":"Import!M14092","v":0},{"$f":"Import!M14101","v":0},{"$f":"Import!M14111","v":0},{"$f":"Import!M14122","v":0},0,0,null,{"$f":"\"UltCY\"&F$10&\"AY\"&B14","v":"UltCY2016AY2015"},{"$f":"F14","v":0},"CATPaidCY2022AY2013",0]
["L10",2021,"XXX","XXX","XXX","XXX","XXX","XXX","XXX","XXX",{"$f":"Import!M14102","v":0},{"$f":"Import!M14112","v":0},{"$f":"Import!M14123","v":0},0,"XXX",null,{"$f":"\"UltCY\"&F$10&\"AY\"&B15","v":"UltCY2016AY2016"},{"$f":"F15","v":0},"CATPaidCY2022AY2014",0]
["L11",{"$f":"L10","v":2022},"XXX","XXX","XXX","XXX","XXX","XXX","XXX","XXX","XXX",{"$f":"Import!M14113","v":0},{"$f":"Import!M14124","v":0},"XXX","XXX",null,{"$f":"\"UltCY\"&G$10&\"AY\"&B11","v":"UltCY2017AYPrior"},{"$f":"G11","v":0},"CATPaidCY2022AY2015",0]
["L12","Totals",null,null,null,null,null,null,null,null,null,null,{"$f":"SUM(M11:M21)","v":0},{"$f":"SUM(N11:N21)","v":0},{"$f":"SUM(O11:O21)","v":0},null,{"$f":"\"UltCY\"&G$10&\"AY\"&B12","v":"UltCY2017AY2013"},{"$f":"G12","v":0},"CATPaidCY2022AY2016",0]
[null,null,null,null,null,null,null,null,null,null,null,null,null,null,null,null,{"$f":"\"UltCY\"&G$10&\"AY\"&B13","v":"UltCY2017AY2014"},{"$f":"G13","v":0},"CATPaidCY2022AY2017",0]
[null,null,"CUMULATIVE PAID NET LOSSES AND ALLOCATED LOSS ADJUSTMENT EXPENSES REPORTED AT YEAR END ($000)",null,null,null,null,null,null,null,null,null,24,null,null,null,{"$f":"\"UltCY\"&G$10&\"AY\"&B15","v":"UltCY2017AY2016"},{"$f":"G15","v":0},{"$f":"\"CATPaidCY\"&L$10&\"AY\"&B36","v":"CATPaidCY2022AY2019"},{"$f":"M36","v":0}]
[null,null,null,null,null,null,null,null,null,null,null,null,"Paid",null,null,null,{"$f":"\"UltCY\"&G$10&\"AY\"&B16","v":"UltCY2017AY2017"},{"$f":"G16","v":0},{"$f":"\"CATPaidCY\"&L$10&\"AY\"&B37","v":"CATPaidCY2022AY2020"},{"$f":"M37","v":0}]
[null,"Years in Which",14,15,16,17,18,19,20,21,22,23,"Catastrophe",null,null,null,{"$f":"\"UltCY\"&H$10&\"AY\"&B11","v":"UltCY2018AYPrior"},{"$f":"H11","v":0},{"$f":"\"CATPaidCY\"&L$10&\"AY\"&B38","v":"CATPaidCY2022AY2021"},{"$f":"M38","v":0}]
[null,"Policies Were",null,null,null,null,null,null,null,null,null,null,"Losses",null,null,null,"UltCY2018AY2013",0,{"$f":"\"CATPaidCY\"&L$10&\"AY\"&B39","v":"CATPaidCY2022AY2022"},{"$f":"M39","v":0}]
[null,"Written",{"$f":"D28-1","v":2013},2014,2015,2016,2017,2018,2019,2020,2021,{"$f":"L10","v":2022},{"$f":"L28","v":2022},null,null,null,"UltCY2018AY2014",0,{"$f":"\"CATIBNRCY\"&L$10&\"AY\"&B47","v":"CATIBNRCY2022AYPrior"},{"$f":"M47","v":0}]
["L13","Prior",{"$f":"Import!M14125","v":0},{"$f":"Import!M14127","v":0},{"$f":"Import!M14130","v":0},{"$f":"Import!M14134","v":0},{"$f":"Import!M14139","v":0},{"$f":"Import!M14145","v":0},{"$f":"Import!M14152","v":0},{"$f":"Import!M14160","v":0},{"$f":"Import!M14169","v":0},{"$f":"Import!M14179","v":0},{"$f":"Import!M14190","v":0},null,null,null,"UltCY2018AY2015",0,"CATIBNRCY2022AY2013",0]
["L14",{"$f":"B31-1","v":2013},{"$f":"Import!M14126","v":0},{"$f":"Import!M14128","v":0},{"$f":"Import!M14131","v":0},{"$f":"Import!M14135","v":0},{"$f":"Import!M14140","v":0},{"$f":"Import!M14146","v":0},{"$f":"Import!M14153","v":0},{"$f":"Import!M14161","v":0},{"$f":"Import!M14170","v":0},{"$f":"Import!M14180","v":0},{"$f":"Import!M14191","v":0},null,null,null,"UltCY2018AY2016",0,"CATIBNRCY2022AY2014",0]
["L15",2014,"XXX",{"$f":"Import!M14129","v":0},{"$f":"Import!M14132","v":0},{"$f":"Import!M14136","v":0},{"$f":"Import!M14141","v":0},{"$f":"Import!M14147","v":0},{"$f":"Import!M14154","v":0},{"$f":"Import!M14162","v":0},{"$f":"Import!M14171","v":0},{"$f":"Import!M14181","v":0},{"$f":"Import!M14192","v":0},null,null,null,"UltCY2018AY2017",0,"CATIBNRCY2022AY2015",0]
["L16",2015,"XXX","XXX",{"$f":"Import!M14133","v":0},{"$f":"Import!M14137","v":0},{"$f":"Import!M14142","v":0},{"$f":"Import!M14148","v":0},{"$f":"Import!M14155","v":0},{"$f":"Import!M14163","v":0},{"$f":"Import!M14172","v":0},{"$f":"Import!M14182","v":0},{"$f":"Import!M14193","v":0},null,null,null,"UltCY2018AY2018",0,"CATIBNRCY2022AY2016",0]
["L17",2016,"XXX","XXX","XXX",{"$f":"Import!M14138","v":0},{"$f":"Import!M14143","v":0},{"$f":"Import!M14149","v":0},{"$f":"Import!M14156","v":0},{"$f":"Import!M14164","v":0},{"$f":"Import!M14173","v":0},{"$f":"Import!M14183","v":0},{"$f":"Import!M14194","v":0},null,null,null,{"$f":"\"UltCY\"&I$10&\"AY\"&B11","v":"UltCY2019AYPrior"},{"$f":"I11","v":0},"CATIBNRCY2022AY2017",0]
["L18",2017,"XXX","XXX","XXX","XXX",{"$f":"Import!M14144","v":0},{"$f":"Import!M14150","v":0},{"$f":"Import!M14157","v":0},{"$f":"Import!M14165","v":0},{"$f":"Import!M14174","v":0},{"$f":"Import!M14184","v":0},{"$f":"Import!M14195","v":0},null,null,null,"UltCY2019AY2013",0,"CATIBNRCY2022AY2018",0]
["L19",2018,"XXX","XXX","XXX","XXX","XXX",{"$f":"Import!M14151","v":0},{"$f":"Import!M14158","v":0},{"$f":"Import!M14166","v":0},{"$f":"Import!M14175","v":0},{"$f":"Import!M14185","v":0},{"$f":"Import!M14196","v":0},null,null,null,"UltCY2019AY2014",0,"CATIBNRCY2022AY2019",0]
["L20",2019,"XXX","XXX","XXX","XXX","XXX","XXX",{"$f":"Import!M14159","v":0},{"$f":"Import!M14167","v":0},{"$f":"Import!M14176","v":0},{"$f":"Import!M14186","v":0},{"$f":"Import!M14197","v":0},null,null,null,"UltCY2019AY2015",0,"CATIBNRCY2022AY2020",0]
["L21",2020,"XXX","XXX","XXX","XXX","XXX","XXX","XXX",{"$f":"Import!M14168","v":0},{"$f":"Import!M14177","v":0},{"$f":"Import!M14187","v":0},{"$f":"Import!M14198","v":0},null,null,null,"UltCY2019AY2016",0,"CATIBNRCY2022AY2021",0]
["L22",2021,"XXX","XXX","XXX","XXX","XXX","XXX","XXX","XXX",{"$f":"Import!M14178","v":0},{"$f":"Import!M14188","v":0},{"$f":"Import!M14199","v":0},null,null,null,"UltCY2019AY2017",0,"CATIBNRCY2022AY2022",0]
["L23",{"$f":"L28","v":2022},"XXX","XXX","XXX","XXX","XXX","XXX","XXX","XXX","XXX",{"$f":"Import!M14189","v":0},{"$f":"Import!M14200","v":0},null,null,null,"UltCY2019AY2018",0]
["L24","Totals",null,null,null,null,null,null,null,null,null,null,{"$f":"SUM(M29:M39)","v":0},null,null,null,"UltCY2019AY2019",0]
[null,null,null,null,null,null,null,null,null,null,null,null,null,null,null,null,{"$f":"\"UltCY\"&J$10&\"AY\"&B11","v":"UltCY2020AYPrior"},{"$f":"J11","v":0}]
[null,null,"BULK & IBNR RESERVES ON NET LOSSES AND ALLOCATED LOSS ADJUSTMENT EXPENSES REPORTED AT YEAR END ($000)",null,null,null,null,null,null,null,null,null,35,null,null,null,{"$f":"\"UltCY\"&J$10&\"AY\"&B13","v":"UltCY2020AY2014"},{"$f":"J13","v":0}]
[null,null,null,null,null,null,null,null,null,null,null,null,"Losses",null,null,null,"UltCY2020AY2015",0]
[null,"Years in Which",25,26,27,28,29,30,31,32,33,34,"Bulk & IBNR",null,null,null,"UltCY2020AY2016",0]
[null,"Policies Were",null,null,null,null,null,null,null,null,null,null,"Reserves",null,null,null,"UltCY2020AY2017",0]
[null,"Written",{"$f":"D46-1","v":2013},2014,2015,2016,2017,2018,2019,2020,2021,{"$f":"L28","v":2022},{"$f":"L46","v":2022},null,null,null,"UltCY2020AY2018",0]
["L25","Prior",{"$f":"Import!M14201","v":0},{"$f":"Import!M14203","v":0},{"$f":"Import!M14206","v":0},{"$f":"Import!M14210","v":0},{"$f":"Import!M14215","v":0},{"$f":"Import!M14221","v":0},{"$f":"Import!M14228","v":0},{"$f":"Import!M14236","v":0},{"$f":"Import!M14245","v":0},{"$f":"Import!M14255","v":0},{"$f":"Import!M14266","v":0},null,null,null,"UltCY2020AY2019",0]
["L26",{"$f":"B49-1","v":2013},{"$f":"Import!M14202","v":0},{"$f":"Import!M14204","v":0},{"$f":"Import!M14207","v":0},{"$f":"Import!M14211","v":0},{"$f":"Import!M14216","v":0},{"$f":"Import!M14222","v":0},{"$f":"Import!M14229","v":0},{"$f":"Import!M14237","v":0},{"$f":"Import!M14246","v":0},{"$f":"Import!M14256","v":0},{"$f":"Import!M14267","v":0},null,null,null,"UltCY2020AY2020",0]
["L27",2014,"XXX",{"$f":"Import!M14205","v":0},{"$f":"Import!M14208","v":0},{"$f":"Import!M14212","v":0},{"$f":"Import!M14217","v":0},{"$f":"Import!M14223","v":0},{"$f":"Import!M14230","v":0},{"$f":"Import!M14238","v":0},{"$f":"Import!M14247","v":0},{"$f":"Import!M14257","v":0},{"$f":"Import!M14268","v":0},null,null,null,{"$f":"\"UltCY\"&K$10&\"AY\"&B11","v":"UltCY2021AYPrior"},{"$f":"K11","v":0}]
["L28",2015,"XXX","XXX",{"$f":"Import!M14209","v":0},{"$f":"Import!M14213","v":0},{"$f":"Import!M14218","v":0},{"$f":"Import!M14224","v":0},{"$f":"Import!M14231","v":0},{"$f":"Import!M14239","v":0},{"$f":"Import!M14248","v":0},{"$f":"Import!M14258","v":0},{"$f":"Import!M14269","v":0},null,null,null,"UltCY2021AY2013",0]
["L29",2016,"XXX","XXX","XXX",{"$f":"Import!M14214","v":0},{"$f":"Import!M14219","v":0},{"$f":"Import!M14225","v":0},{"$f":"Import!M14232","v":0},{"$f":"Import!M14240","v":0},{"$f":"Import!M14249","v":0},{"$f":"Import!M14259","v":0},{"$f":"Import!M14270","v":0},null,null,null,"UltCY2021AY2014",0]
["L30",2017,"XXX","XXX","XXX","XXX",{"$f":"Import!M14220","v":0},{"$f":"Import!M14226","v":0},{"$f":"Import!M14233","v":0},{"$f":"Import!M14241","v":0},{"$f":"Import!M14250","v":0},{"$f":"Import!M14260","v":0},{"$f":"Import!M14271","v":0},null,null,null,"UltCY2021AY2015",0]
["L31",2018,"XXX","XXX","XXX","XXX","XXX",{"$f":"Import!M14227","v":0},{"$f":"Import!M14234","v":0},{"$f":"Import!M14242","v":0},{"$f":"Import!M14251","v":0},{"$f":"Import!M14261","v":0},{"$f":"Import!M14272","v":0},null,null,null,"UltCY2021AY2016",0]
["L32",2019,"XXX","XXX","XXX","XXX","XXX","XXX",{"$f":"Import!M14235","v":0},{"$f":"Import!M14243","v":0},{"$f":"Import!M14252","v":0},{"$f":"Import!M14262","v":0},{"$f":"Import!M14273","v":0},null,null,null,"UltCY2021AY2017",0]
["L33",2020,"XXX","XXX","XXX","XXX","XXX","XXX","XXX",{"$f":"Import!M14244","v":0},{"$f":"Import!M14253","v":0},{"$f":"Import!M14263","v":0},{"$f":"Import!M14274","v":0},null,null,null,"UltCY2021AY2018",0]
["L34",2021,"XXX","XXX","XXX","XXX","XXX","XXX","XXX","XXX",{"$f":"Import!M14254","v":0},{"$f":"Import!M14264","v":0},{"$f":"Import!M14275","v":0},null,null,null,"UltCY2021AY2019",0]
["L35",{"$f":"L46","v":2022},"XXX","XXX","XXX","XXX","XXX","XXX","XXX","XXX","XXX",{"$f":"Import!M14265","v":0},{"$f":"Import!M14276","v":0},null,null,null,"UltCY2021AY2020",0]
["L36","Totals",null,null,null,null,null,null,null,null,null,null,{"$f":"SUM(M47:M57)","v":0},null,null,null,"UltCY2021AY2021",0]
[null,null,null,null,null,null,null,null,null,null,null,null,null,null,null,null,{"$f":"\"UltCY\"&L$10&\"AY\"&B11","v":"UltCY2022AYPrior"},{"$f":"L11","v":0}]
[null,null,36,37,38,39,"Unallocated Loss",null,null,42,43,44,45,null,null,null,{"$f":"\"UltCY\"&L$10&\"AY\"&B13","v":"UltCY2022AY2014"},{"$f":"L13","v":0}]
[null,"Years in Which",null,null,null,null,"Adjustment Expenses",null,null,null,null,null,null,null,null,null,"UltCY2022AY2015",0]
[null,"Premiums",null,null,null,null,40,41,null,null,null,null,null,null,null,null,"UltCY2022AY2016",0]
[null,"Were",null,null,null,null,null,null,null,"Commission and","General and",null,null,null,null,null,"UltCY2022AY2017",0]
[null,"Earned and","Gross","Gross","Net","Net",null,null,null,"Brokerage","Administrative","Personnel","Other",null,null,null,"UltCY2022AY2018",0]
[null,"Losses Were","Premiums","Premiums","Premiums","Premiums",null,null,"Calendar","Expense","Expense","Costs","Expense",null,null,null,"UltCY2022AY2019",0]
[null,"Incurred","Written","Earned","Written","Earned","Paid","Incurred","Year","(Form 2A, Line 9)","(Form 2A, Line 10)","(Form 2A, Line 11)","(Form 2A, Line 12)",null,null,null,"UltCY2022AY2020",0]
["L37","Prior","XXX",{"$f":"C67","v":"XXX"},"XXX",{"$f":"E67","v":"XXX"},{"$f":"Import!M14321","v":0},{"$f":"Import!M14332","v":0},"Prior",{"$f":"Import!M14343","v":0},{"$f":"Import!M14354","v":0},{"$f":"Import!M14365","v":0},{"$f":"Import!M14376","v":0},null,null,null,"UltCY2022AY2021",0]
["L38",{"$f":"B69-1","v":2013},{"$f":"Import!M14278","v":0},{"$f":"Import!M14289","v":0},{"$f":"Import!M14300","v":0},{"$f":"Import!M14311","v":0},{"$f":"Import!M14322","v":0},{"$f":"Import!M14333","v":0},{"$f":"B68","v":2013},{"$f":"Import!M14344","v":0},{"$f":"Import!M14355","v":0},{"$f":"Import!M14366","v":0},{"$f":"Import!M14377","v":0},null,null,null,"UltCY2022AY2022",0]
["L39",2014,{"$f":"Import!M14279","v":0},{"$f":"Import!M14290","v":0},{"$f":"Import!M14301","v":0},{"$f":"Import!M14312","v":0},{"$f":"Import!M14323","v":0},{"$f":"Import!M14334","v":0},2014,{"$f":"Import!M14345","v":0},{"$f":"Import!M14356","v":0},{"$f":"Import!M14367","v":0},{"$f":"Import!M14378","v":0},null,null,null,{"$f":"\"PaidCY\"&C$10&\"AY\"&B29","v":"PaidCY2013AYPrior"},{"$f":"C29","v":0}]
["L40",2015,{"$f":"Import!M14280","v":0},{"$f":"Import!M14291","v":0},{"$f":"Import!M14302","v":0},{"$f":"Import!M14313","v":0},{"$f":"Import!M14324","v":0},{"$f":"Import!M14335","v":0},2015,{"$f":"Import!M14346","v":0},{"$f":"Import!M14357","v":0},{"$f":"Import!M14368","v":0},{"$f":"Import!M14379","v":0},null,null,null,{"$f":"\"PaidCY\"&C$10&\"AY\"&B30","v":"PaidCY2013AY2013"},{"$f":"C30","v":0}]
["L41",2016,{"$f":"Import!M14281","v":0},{"$f":"Import!M14292","v":0},{"$f":"Import!M14303","v":0},{"$f":"Import!M14314","v":0},{"$f":"Import!M14325","v":0},{"$f":"Import!M14336","v":0},2016,{"$f":"Import!M14347","v":0},{"$f":"Import!M14358","v":0},{"$f":"Import!M14369","v":0},{"$f":"Import!M14380","v":0},null,null,null,{"$f":"\"PaidCY\"&D$10&\"AY\"&B29","v":"PaidCY2014AYPrior"},{"$f":"D29","v":0}]
["L42",2017,{"$f":"Import!M14282","v":0},{"$f":"Import!M14293","v":0},{"$f":"Import!M14304","v":0},{"$f":"Import!M14315","v":0},{"$f":"Import!M14326","v":0},{"$f":"Import!M14337","v":0},2017,{"$f":"Import!M14348","v":0},{"$f":"Import!M14359","v":0},{"$f":"Import!M14370","v":0},{"$f":"Import!M14381","v":0},null,null,null,{"$f":"\"PaidCY\"&D$10&\"AY\"&B30","v":"PaidCY2014AY2013"},{"$f":"D30","v":0}]
["L43",2018,{"$f":"Import!M14283","v":0},{"$f":"Import!M14294","v":0},{"$f":"Import!M14305","v":0},{"$f":"Import!M14316","v":0},{"$f":"Import!M14327","v":0},{"$f":"Import!M14338","v":0},2018,{"$f":"Import!M14349","v":0},{"$f":"Import!M14360","v":0},{"$f":"Import!M14371","v":0},{"$f":"Import!M14382","v":0},null,null,null,{"$f":"\"PaidCY\"&D$10&\"AY\"&B31","v":"PaidCY2014AY2014"},{"$f":"D31","v":0}]
["L44",2019,{"$f":"Import!M14284","v":0},{"$f":"Import!M14295","v":0},{"$f":"Import!M14306","v":0},{"$f":"Import!M14317","v":0},{"$f":"Import!M14328","v":0},{"$f":"Import!M14339","v":0},2019,{"$f":"Import!M14350","v":0},{"$f":"Import!M14361","v":0},{"$f":"Import!M14372","v":0},{"$f":"Import!M14383","v":0},null,null,null,{"$f":"\"PaidCY\"&E$10&\"AY\"&B29","v":"PaidCY2015AYPrior"},{"$f":"E29","v":0}]
["L45",2020,{"$f":"Import!M14285","v":0},{"$f":"Import!M14296","v":0},{"$f":"Import!M14307","v":0},{"$f":"Import!M14318","v":0},{"$f":"Import!M14329","v":0},{"$f":"Import!M14340","v":0},2020,{"$f":"Import!M14351","v":0},{"$f":"Import!M14362","v":0},{"$f":"Import!M14373","v":0},{"$f":"Import!M14384","v":0},null,null,null,{"$f":"\"PaidCY\"&E$10&\"AY\"&B30","v":"PaidCY2015AY2013"},{"$f":"E30","v":0}]
["L46",2021,{"$f":"Import!M14286","v":0},{"$f":"Import!M14297","v":0},{"$f":"Import!M14308","v":0},{"$f":"Import!M14319","v":0},{"$f":"Import!M14330","v":0},{"$f":"Import!M14341","v":0},2021,{"$f":"Import!M14352","v":0},{"$f":"Import!M14363","v":0},{"$f":"Import!M14374","v":0},{"$f":"Import!M14385","v":0},null,null,null,{"$f":"\"PaidCY\"&E$10&\"AY\"&B31","v":"PaidCY2015AY2014"},{"$f":"E31","v":0}]
["L47",{"$f":"B39","v":2022},{"$f":"Import!M14287","v":0},{"$f":"Import!M14298","v":0},{"$f":"Import!M14309","v":0},{"$f":"Import!M14320","v":0},{"$f":"Import!M14331","v":0},{"$f":"Import!M14342","v":0},2022,{"$f":"Import!M14353","v":0},{"$f":"Import!M14364","v":0},{"$f":"Import!M14375","v":0},{"$f":"Import!M14386","v":0},null,null,null,{"$f":"\"PaidCY\"&E$10&\"AY\"&B32","v":"PaidCY2015AY2015"},{"$f":"E32","v":0}]
["L48","Totals","XXX",{"$f":"C78","v":"XXX"},"XXX",{"$f":"E78","v":"XXX"},{"$f":"SUM(G67:G77)","v":0},{"$f":"SUM(H67:H77)","v":0},"Totals",{"$f":"SUM(J67:J77)","v":0},{"$f":"SUM(K67:K77)","v":0},{"$f":"SUM(L67:L77)","v":0},{"$f":"SUM(M67:M77)","v":0},null,null,null,{"$f":"\"PaidCY\"&F$10&\"AY\"&B29","v":"PaidCY2016AYPrior"},{"$f":"F29","v":0}]
[null,null,null,null,null,null,null,null,null,null,null,null,null,null,null,null,{"$f":"\"PaidCY\"&F$10&\"AY\"&B30","v":"PaidCY2016AY2013"},{"$f":"F30","v":0}]
[null,"COMMENTS",null,null,null,null,null,null,null,null,null,null,null,null,null,null,{"$f":"\"PaidCY\"&F$10&\"AY\"&B31","v":"PaidCY2016AY2014"},{"$f":"F31","v":0}]
[null,{"$f":"Import!M14387","v":0},null,null,null,null,null,null,null,null,null,null,null,null,null,null,{"$f":"\"PaidCY\"&G$10&\"AY\"&B30","v":"PaidCY2017AY2013"},{"$f":"G30","v":0}]
[null,null,null,null,null,null,null,null,null,null,null,null,null,null,null,null,{"$f":"\"PaidCY\"&G$10&\"AY\"&B31","v":"PaidCY2017AY2014"},{"$f":"G31","v":0}]
[null,null,null,null,null,null,null,null,null,null,null,null,null,null,null,null,{"$f":"\"PaidCY\"&G$10&\"AY\"&B32","v":"PaidCY2017AY2015"},{"$f":"G32","v":0}]
[null,null,null,null,null,null,null,null,null,null,null,null,null,null,null,null,{"$f":"\"PaidCY\"&G$10&\"AY\"&B34","v":"PaidCY2017AY2017"},{"$f":"G34","v":0}]
[null,null,null,null,null,null,null,null,null,null,null,null,null,null,null,null,{"$f":"\"PaidCY\"&H$10&\"AY\"&B29","v":"PaidCY2018AYPrior"},{"$f":"H29","v":0}]
[null,null,"Accident Year",null,null,null,null,null,null,null,null,null,null,null,null,null,{"$f":"\"PaidCY\"&H$10&\"AY\"&B30","v":"PaidCY2018AY2013"},{"$f":"H30","v":0}]
[null,null,"Underwriting Year",null,null,null,null,null,null,null,null,null,null,null,null,null,{"$f":"\"PaidCY\"&H$10&\"AY\"&B31","v":"PaidCY2018AY2014"},{"$f":"H31","v":0}]

{"sheet":"Sch XI(a)(vi)","index":78,"n_rows":94,"n_cols":20,"rows_kept":94,"cut":false,"hidden":true,"merged":[[80,1,82,12],[5,2,5,11],[59,6,59,7],[41,2,41,11],[0,13,0,14],[2,13,2,14],[2,1,2,2],[60,6,60,7],[23,2,23,11]]}
[null,"SCHEDULE OF LOSS TRIANGLES (LINE 6 - FINANCIAL LINES)",null,null,null,null,null,null,null,null,null,null,null,{"$f":"HYPERLINK(\"#'Index'!A1\",\"Return to Index\")","v":"Return to Index"}]
[null,{"$f":"'Company Information'!C7","v":"Enter Company Name"}]
[null,{"$f":"'Company Information'!C3","v":"2022-12-31"},null,null,null,null,null,null,null,null,null,null,null,"SCHEDULE XI(a)(vi)"]
[null,{"$f":"\"expressed in\"& IF(1000>1,\" ['\"&MID(1000,2,LEN(1000))&\"s]\",\"\")&\" \"&'Form 1EBS'!$C$4","v":"expressed in ['000s] United States Dollars"}]
[]
[null,"Accounting Basis: *","INCURRED (ESTIMATED ULTIMATE) NET LOSSES AND ALLOCATED LOSS ADJUSTMENT EXPENSES REPORTED AT YEAR END ($000)",null,null,null,null,null,null,null,null,null,11,12,13,null,"AcctBasis",{"$f":"B7","v":"Accident Year"}]
[null,"Accident Year",null,null,null,null,null,null,null,null,null,null,"Ultimate","Development","Development",null,{"$f":"\"UltCY\"&C$10&\"AY\"&B11","v":"UltCY2013AYPrior"},{"$f":"C11","v":0},{"$f":"\"CATUltCY\"&L$10&\"AY\"&B11","v":"CATUltCY2022AYPrior"},{"$f":"M11","v":0}]
[null,"Years in Which",1,2,3,4,5,6,7,8,9,10,"Catastrophe",null,null,null,{"$f":"\"UltCY\"&C$10&\"AY\"&B12","v":"UltCY2013AY2013"},{"$f":"C12","v":0},"CATUltCY2022AY2013",0]
[null,"Losses Were",null,null,null,null,null,null,null,null,null,null,"Losses","One Year","Two Year",null,{"$f":"\"UltCY\"&D$10&\"AY\"&B11","v":"UltCY2014AYPrior"},{"$f":"D11","v":0},"CATUltCY2022AY2014",0]
[null,"Incurred",{"$f":"D10-1","v":2013},2014,2015,2016,2017,2018,2019,2020,2021,{"$f":"YEAR('Company Information'!C3)","v":2022},{"$f":"L10","v":2022},"Development","Development",null,{"$f":"\"UltCY\"&D$10&\"AY\"&B12","v":"UltCY2014AY2013"},{"$f":"D12","v":0},"CATUltCY2022AY2015",0]
["L1","Prior",{"$f":"Import!M14388","v":0},{"$f":"Import!M14390","v":0},{"$f":"Import!M14393","v":0},{"$f":"Import!M14397","v":0},{"$f":"Import!M14402","v":0},{"$f":"Import!M14408","v":0},{"$f":"Import!M14415","v":0},{"$f":"Import!M14423","v":0},{"$f":"Import!M14432","v":0},{"$f":"Import!M14442","v":0},{"$f":"Import!M14453","v":0},{"$f":"K11-L11","v":0},{"$f":"J11-L11","v":0},null,{"$f":"\"UltCY\"&D$10&\"AY\"&B13","v":"UltCY2014AY2014"},{"$f":"D13","v":0},"CATUltCY2022AY2016",0]
["L2",{"$f":"B13-1","v":2013},{"$f":"Import!M14389","v":0},{"$f":"Import!M14391","v":0},{"$f":"Import!M14394","v":0},{"$f":"Import!M14398","v":0},{"$f":"Import!M14403","v":0},{"$f":"Import!M14409","v":0},{"$f":"Import!M14416","v":0},{"$f":"Import!M14424","v":0},{"$f":"Import!M14433","v":0},{"$f":"Import!M14443","v":0},{"$f":"Import!M14454","v":0},0,0,null,{"$f":"\"UltCY\"&E$10&\"AY\"&B11","v":"UltCY2015AYPrior"},{"$f":"E11","v":0},"CATUltCY2022AY2017",0]
["L3",2014,"XXX",{"$f":"Import!M14392","v":0},{"$f":"Import!M14395","v":0},{"$f":"Import!M14399","v":0},{"$f":"Import!M14404","v":0},{"$f":"Import!M14410","v":0},{"$f":"Import!M14417","v":0},{"$f":"Import!M14425","v":0},{"$f":"Import!M14434","v":0},{"$f":"Import!M14444","v":0},{"$f":"Import!M14455","v":0},0,0,null,{"$f":"\"UltCY\"&E$10&\"AY\"&B12","v":"UltCY2015AY2013"},{"$f":"E12","v":0},"CATUltCY2022AY2018",0]
["L4",2015,"XXX","XXX",{"$f":"Import!M14396","v":0},{"$f":"Import!M14400","v":0},{"$f":"Import!M14405","v":0},{"$f":"Import!M14411","v":0},{"$f":"Import!M14418","v":0},{"$f":"Import!M14426","v":0},{"$f":"Import!M14435","v":0},{"$f":"Import!M14445","v":0},{"$f":"Import!M14456","v":0},0,0,null,{"$f":"\"UltCY\"&E$10&\"AY\"&B13","v":"UltCY2015AY2014"},{"$f":"E13","v":0},"CATUltCY2022AY2019",0]
["L5",2016,"XXX","XXX","XXX",{"$f":"Import!M14401","v":0},{"$f":"Import!M14406","v":0},{"$f":"Import!M14412","v":0},{"$f":"Import!M14419","v":0},{"$f":"Import!M14427","v":0},{"$f":"Import!M14436","v":0},{"$f":"Import!M14446","v":0},{"$f":"Import!M14457","v":0},0,0,null,{"$f":"\"UltCY\"&E$10&\"AY\"&B14","v":"UltCY2015AY2015"},{"$f":"E14","v":0},"CATUltCY2022AY2020",0]
["L6",2017,"XXX","XXX","XXX","XXX",{"$f":"Import!M14407","v":0},{"$f":"Import!M14413","v":0},{"$f":"Import!M14420","v":0},{"$f":"Import!M14428","v":0},{"$f":"Import!M14437","v":0},{"$f":"Import!M14447","v":0},{"$f":"Import!M14458","v":0},0,0,null,{"$f":"\"UltCY\"&F$10&\"AY\"&B11","v":"UltCY2016AYPrior"},{"$f":"F11","v":0},"CATUltCY2022AY2021",0]
["L7",2018,"XXX","XXX","XXX","XXX","XXX",{"$f":"Import!M14414","v":0},{"$f":"Import!M14421","v":0},{"$f":"Import!M14429","v":0},{"$f":"Import!M14438","v":0},{"$f":"Import!M14448","v":0},{"$f":"Import!M14459","v":0},0,0,null,{"$f":"\"UltCY\"&F$10&\"AY\"&B12","v":"UltCY2016AY2013"},{"$f":"F12","v":0},"CATUltCY2022AY2022",0]
["L8",2019,"XXX","XXX","XXX","XXX","XXX","XXX",{"$f":"Import!M14422","v":0},{"$f":"Import!M14430","v":0},{"$f":"Import!M14439","v":0},{"$f":"Import!M14449","v":0},{"$f":"Import!M14460","v":0},0,0,null,{"$f":"\"UltCY\"&F$10&\"AY\"&B13","v":"UltCY2016AY2014"},{"$f":"F13","v":0},{"$f":"\"CATPaidCY\"&L$10&\"AY\"&B29","v":"CATPaidCY2022AYPrior"},{"$f":"M29","v":0}]
["L9",2020,"XXX","XXX","XXX","XXX","XXX","XXX","XXX",{"$f":"Import!M14431","v":0},{"$f":"Import!M14440","v":0},{"$f":"Import!M14450","v":0},{"$f":"Import!M14461","v":0},0,0,null,{"$f":"\"UltCY\"&F$10&\"AY\"&B14","v":"UltCY2016AY2015"},{"$f":"F14","v":0},"CATPaidCY2022AY2013",0]
["L10",2021,"XXX","XXX","XXX","XXX","XXX","XXX","XXX","XXX",{"$f":"Import!M14441","v":0},{"$f":"Import!M14451","v":0},{"$f":"Import!M14462","v":0},0,"XXX",null,{"$f":"\"UltCY\"&F$10&\"AY\"&B15","v":"UltCY2016AY2016"},{"$f":"F15","v":0},"CATPaidCY2022AY2014",0]
["L11",{"$f":"L10","v":2022},"XXX","XXX","XXX","XXX","XXX","XXX","XXX","XXX","XXX",{"$f":"Import!M14452","v":0},{"$f":"Import!M14463","v":0},"XXX","XXX",null,{"$f":"\"UltCY\"&G$10&\"AY\"&B11","v":"UltCY2017AYPrior"},{"$f":"G11","v":0},"CATPaidCY2022AY2015",0]
["L12","Totals",null,null,null,null,null,null,null,null,null,null,{"$f":"SUM(M11:M21)","v":0},{"$f":"SUM(N11:N21)","v":0},{"$f":"SUM(O11:O21)","v":0},null,{"$f":"\"UltCY\"&G$10&\"AY\"&B12","v":"UltCY2017AY2013"},{"$f":"G12","v":0},"CATPaidCY2022AY2016",0]
[null,null,null,null,null,null,null,null,null,null,null,null,null,null,null,null,{"$f":"\"UltCY\"&G$10&\"AY\"&B13","v":"UltCY2017AY2014"},{"$f":"G13","v":0},"CATPaidCY2022AY2017",0]
[null,null,"CUMULATIVE PAID NET LOSSES AND ALLOCATED LOSS ADJUSTMENT EXPENSES REPORTED AT YEAR END ($000)",null,null,null,null,null,null,null,null,null,24,null,null,null,{"$f":"\"UltCY\"&G$10&\"AY\"&B15","v":"UltCY2017AY2016"},{"$f":"G15","v":0},{"$f":"\"CATPaidCY\"&L$10&\"AY\"&B36","v":"CATPaidCY2022AY2019"},{"$f":"M36","v":0}]
[null,null,null,null,null,null,null,null,null,null,null,null,"Paid",null,null,null,{"$f":"\"UltCY\"&G$10&\"AY\"&B16","v":"UltCY2017AY2017"},{"$f":"G16","v":0},{"$f":"\"CATPaidCY\"&L$10&\"AY\"&B37","v":"CATPaidCY2022AY2020"},{"$f":"M37","v":0}]
[null,"Years in Which",14,15,16,17,18,19,20,21,22,23,"Catastrophe",null,null,null,{"$f":"\"UltCY\"&H$10&\"AY\"&B11","v":"UltCY2018AYPrior"},{"$f":"H11","v":0},{"$f":"\"CATPaidCY\"&L$10&\"AY\"&B38","v":"CATPaidCY2022AY2021"},{"$f":"M38","v":0}]
[null,"Policies Were",null,null,null,null,null,null,null,null,null,null,"Losses",null,null,null,"UltCY2018AY2013",0,{"$f":"\"CATPaidCY\"&L$10&\"AY\"&B39","v":"CATPaidCY2022AY2022"},{"$f":"M39","v":0}]
[null,"Written",{"$f":"D28-1","v":2013},2014,2015,2016,2017,2018,2019,2020,2021,{"$f":"L10","v":2022},{"$f":"L28","v":2022},null,null,null,"UltCY2018AY2014",0,{"$f":"\"CATIBNRCY\"&L$10&\"AY\"&B47","v":"CATIBNRCY2022AYPrior"},{"$f":"M47","v":0}]
["L13","Prior",{"$f":"Import!M14464","v":0},{"$f":"Import!M14466","v":0},{"$f":"Import!M14469","v":0},{"$f":"Import!M14473","v":0},{"$f":"Import!M14478","v":0},{"$f":"Import!M14484","v":0},{"$f":"Import!M14491","v":0},{"$f":"Import!M14499","v":0},{"$f":"Import!M14508","v":0},{"$f":"Import!M14518","v":0},{"$f":"Import!M14529","v":0},null,null,null,"UltCY2018AY2015",0,"CATIBNRCY2022AY2013",0]
["L14",{"$f":"B31-1","v":2013},{"$f":"Import!M14465","v":0},{"$f":"Import!M14467","v":0},{"$f":"Import!M14470","v":0},{"$f":"Import!M14474","v":0},{"$f":"Import!M14479","v":0},{"$f":"Import!M14485","v":0},{"$f":"Import!M14492","v":0},{"$f":"Import!M14500","v":0},{"$f":"Import!M14509","v":0},{"$f":"Import!M14519","v":0},{"$f":"Import!M14530","v":0},null,null,null,"UltCY2018AY2016",0,"CATIBNRCY2022AY2014",0]
["L15",2014,"XXX",{"$f":"Import!M14468","v":0},{"$f":"Import!M14471","v":0},{"$f":"Import!M14475","v":0},{"$f":"Import!M14480","v":0},{"$f":"Import!M14486","v":0},{"$f":"Import!M14493","v":0},{"$f":"Import!M14501","v":0},{"$f":"Import!M14510","v":0},{"$f":"Import!M14520","v":0},{"$f":"Import!M14531","v":0},null,null,null,"UltCY2018AY2017",0,"CATIBNRCY2022AY2015",0]
["L16",2015,"XXX","XXX",{"$f":"Import!M14472","v":0},{"$f":"Import!M14476","v":0},{"$f":"Import!M14481","v":0},{"$f":"Import!M14487","v":0},{"$f":"Import!M14494","v":0},{"$f":"Import!M14502","v":0},{"$f":"Import!M14511","v":0},{"$f":"Import!M14521","v":0},{"$f":"Import!M14532","v":0},null,null,null,"UltCY2018AY2018",0,"CATIBNRCY2022AY2016",0]
["L17",2016,"XXX","XXX","XXX",{"$f":"Import!M14477","v":0},{"$f":"Import!M14482","v":0},{"$f":"Import!M14488","v":0},{"$f":"Import!M14495","v":0},{"$f":"Import!M14503","v":0},{"$f":"Import!M14512","v":0},{"$f":"Import!M14522","v":0},{"$f":"Import!M14533","v":0},null,null,null,{"$f":"\"UltCY\"&I$10&\"AY\"&B11","v":"UltCY2019AYPrior"},{"$f":"I11","v":0},"CATIBNRCY2022AY2017",0]
["L18",2017,"XXX","XXX","XXX","XXX",{"$f":"Import!M14483","v":0},{"$f":"Import!M14489","v":0},{"$f":"Import!M14496","v":0},{"$f":"Import!M14504","v":0},{"$f":"Import!M14513","v":0},{"$f":"Import!M14523","v":0},{"$f":"Import!M14534","v":0},null,null,null,"UltCY2019AY2013",0,"CATIBNRCY2022AY2018",0]
["L19",2018,"XXX","XXX","XXX","XXX","XXX",{"$f":"Import!M14490","v":0},{"$f":"Import!M14497","v":0},{"$f":"Import!M14505","v":0},{"$f":"Import!M14514","v":0},{"$f":"Import!M14524","v":0},{"$f":"Import!M14535","v":0},null,null,null,"UltCY2019AY2014",0,"CATIBNRCY2022AY2019",0]
["L20",2019,"XXX","XXX","XXX","XXX","XXX","XXX",{"$f":"Import!M14498","v":0},{"$f":"Import!M14506","v":0},{"$f":"Import!M14515","v":0},{"$f":"Import!M14525","v":0},{"$f":"Import!M14536","v":0},null,null,null,"UltCY2019AY2015",0,"CATIBNRCY2022AY2020",0]
["L21",2020,"XXX","XXX","XXX","XXX","XXX","XXX","XXX",{"$f":"Import!M14507","v":0},{"$f":"Import!M14516","v":0},{"$f":"Import!M14526","v":0},{"$f":"Import!M14537","v":0},null,null,null,"UltCY2019AY2016",0,"CATIBNRCY2022AY2021",0]
["L22",2021,"XXX","XXX","XXX","XXX","XXX","XXX","XXX","XXX",{"$f":"Import!M14517","v":0},{"$f":"Import!M14527","v":0},{"$f":"Import!M14538","v":0},null,null,null,"UltCY2019AY2017",0,"CATIBNRCY2022AY2022",0]
["L23",{"$f":"L28","v":2022},"XXX","XXX","XXX","XXX","XXX","XXX","XXX","XXX","XXX",{"$f":"Import!M14528","v":0},{"$f":"Import!M14539","v":0},null,null,null,"UltCY2019AY2018",0]
["L24","Totals",null,null,null,null,null,null,null,null,null,null,{"$f":"SUM(M29:M39)","v":0},null,null,null,"UltCY2019AY2019",0]
[null,null,null,null,null,null,null,null,null,null,null,null,null,null,null,null,{"$f":"\"UltCY\"&J$10&\"AY\"&B11","v":"UltCY2020AYPrior"},{"$f":"J11","v":0}]
[null,null,"BULK & IBNR RESERVES ON NET LOSSES AND ALLOCATED LOSS ADJUSTMENT EXPENSES REPORTED AT YEAR END ($000)",null,null,null,null,null,null,null,null,null,35,null,null,null,{"$f":"\"UltCY\"&J$10&\"AY\"&B13","v":"UltCY2020AY2014"},{"$f":"J13","v":0}]
[null,null,null,null,null,null,null,null,null,null,null,null,"Losses",null,null,null,"UltCY2020AY2015",0]
[null,"Years in Which",25,26,27,28,29,30,31,32,33,34,"Bulk & IBNR",null,null,null,"UltCY2020AY2016",0]
[null,"Policies Were",null,null,null,null,null,null,null,null,null,null,"Reserves",null,null,null,"UltCY2020AY2017",0]
[null,"Written",{"$f":"D46-1","v":2013},2014,2015,2016,2017,2018,2019,2020,2021,{"$f":"L28","v":2022},{"$f":"L46","v":2022},null,null,null,"UltCY2020AY2018",0]
["L25","Prior",{"$f":"Import!M14540","v":0},{"$f":"Import!M14542","v":0},{"$f":"Import!M14545","v":0},{"$f":"Import!M14549","v":0},{"$f":"Import!M14554","v":0},{"$f":"Import!M14560","v":0},{"$f":"Import!M14567","v":0},{"$f":"Import!M14575","v":0},{"$f":"Import!M14584","v":0},{"$f":"Import!M14594","v":0},{"$f":"Import!M14605","v":0},null,null,null,"UltCY2020AY2019",0]
["L26",{"$f":"B49-1","v":2013},{"$f":"Import!M14541","v":0},{"$f":"Import!M14543","v":0},{"$f":"Import!M14546","v":0},{"$f":"Import!M14550","v":0},{"$f":"Import!M14555","v":0},{"$f":"Import!M14561","v":0},{"$f":"Import!M14568","v":0},{"$f":"Import!M14576","v":0},{"$f":"Import!M14585","v":0},{"$f":"Import!M14595","v":0},{"$f":"Import!M14606","v":0},null,null,null,"UltCY2020AY2020",0]
["L27",2014,"XXX",{"$f":"Import!M14544","v":0},{"$f":"Import!M14547","v":0},{"$f":"Import!M14551","v":0},{"$f":"Import!M14556","v":0},{"$f":"Import!M14562","v":0},{"$f":"Import!M14569","v":0},{"$f":"Import!M14577","v":0},{"$f":"Import!M14586","v":0},{"$f":"Import!M14596","v":0},{"$f":"Import!M14607","v":0},null,null,null,{"$f":"\"UltCY\"&K$10&\"AY\"&B11","v":"UltCY2021AYPrior"},{"$f":"K11","v":0}]
["L28",2015,"XXX","XXX",{"$f":"Import!M14548","v":0},{"$f":"Import!M14552","v":0},{"$f":"Import!M14557","v":0},{"$f":"Import!M14563","v":0},{"$f":"Import!M14570","v":0},{"$f":"Import!M14578","v":0},{"$f":"Import!M14587","v":0},{"$f":"Import!M14597","v":0},{"$f":"Import!M14608","v":0},null,null,null,"UltCY2021AY2013",0]
["L29",2016,"XXX","XXX","XXX",{"$f":"Import!M14553","v":0},{"$f":"Import!M14558","v":0},{"$f":"Import!M14564","v":0},{"$f":"Import!M14571","v":0},{"$f":"Import!M14579","v":0},{"$f":"Import!M14588","v":0},{"$f":"Import!M14598","v":0},{"$f":"Import!M14609","v":0},null,null,null,"UltCY2021AY2014",0]
["L30",2017,"XXX","XXX","XXX","XXX",{"$f":"Import!M14559","v":0},{"$f":"Import!M14565","v":0},{"$f":"Import!M14572","v":0},{"$f":"Import!M14580","v":0},{"$f":"Import!M14589","v":0},{"$f":"Import!M14599","v":0},{"$f":"Import!M14610","v":0},null,null,null,"UltCY2021AY2015",0]
["L31",2018,"XXX","XXX","XXX","XXX","XXX",{"$f":"Import!M14566","v":0},{"$f":"Import!M14573","v":0},{"$f":"Import!M14581","v":0},{"$f":"Import!M14590","v":0},{"$f":"Import!M14600","v":0},{"$f":"Import!M14611","v":0},null,null,null,"UltCY2021AY2016",0]
["L32",2019,"XXX","XXX","XXX","XXX","XXX","XXX",{"$f":"Import!M14574","v":0},{"$f":"Import!M14582","v":0},{"$f":"Import!M14591","v":0},{"$f":"Import!M14601","v":0},{"$f":"Import!M14612","v":0},null,null,null,"UltCY2021AY2017",0]
["L33",2020,"XXX","XXX","XXX","XXX","XXX","XXX","XXX",{"$f":"Import!M14583","v":0},{"$f":"Import!M14592","v":0},{"$f":"Import!M14602","v":0},{"$f":"Import!M14613","v":0},null,null,null,"UltCY2021AY2018",0]
["L34",2021,"XXX","XXX","XXX","XXX","XXX","XXX","XXX","XXX",{"$f":"Import!M14593","v":0},{"$f":"Import!M14603","v":0},{"$f":"Import!M14614","v":0},null,null,null,"UltCY2021AY2019",0]
["L35",{"$f":"L46","v":2022},"XXX","XXX","XXX","XXX","XXX","XXX","XXX","XXX","XXX",{"$f":"Import!M14604","v":0},{"$f":"Import!M14615","v":0},null,null,null,"UltCY2021AY2020",0]
["L36","Totals",null,null,null,null,null,null,null,null,null,null,{"$f":"SUM(M47:M57)","v":0},null,null,null,"UltCY2021AY2021",0]
[null,null,null,null,null,null,null,null,null,null,null,null,null,null,null,null,{"$f":"\"UltCY\"&L$10&\"AY\"&B11","v":"UltCY2022AYPrior"},{"$f":"L11","v":0}]
[null,null,36,37,38,39,"Unallocated Loss",null,null,42,43,44,45,null,null,null,{"$f":"\"UltCY\"&L$10&\"AY\"&B13","v":"UltCY2022AY2014"},{"$f":"L13","v":0}]
[null,"Years in Which",null,null,null,null,"Adjustment Expenses",null,null,null,null,null,null,null,null,null,"UltCY2022AY2015",0]
[null,"Premiums",null,null,null,null,40,41,null,null,null,null,null,null,null,null,"UltCY2022AY2016",0]
[null,"Were",null,null,null,null,null,null,null,"Commission and","General and",null,null,null,null,null,"UltCY2022AY2017",0]
[null,"Earned and","Gross","Gross","Net","Net",null,null,null,"Brokerage","Administrative","Personnel","Other",null,null,null,"UltCY2022AY2018",0]
[null,"Losses Were","Premiums","Premiums","Premiums","Premiums",null,null,"Calendar","Expense","Expense","Costs","Expense",null,null,null,"UltCY2022AY2019",0]
[null,"Incurred","Written","Earned","Written","Earned","Paid","Incurred","Year","(Form 2A, Line 9)","(Form 2A, Line 10)","(Form 2A, Line 11)","(Form 2A, Line 12)",null,null,null,"UltCY2022AY2020",0]
["L37","Prior","XXX",{"$f":"C67","v":"XXX"},"XXX",{"$f":"E67","v":"XXX"},{"$f":"Import!M14660","v":0},{"$f":"Import!M14671","v":0},"Prior",{"$f":"Import!M14682","v":0},{"$f":"Import!M14693","v":0},{"$f":"Import!M14704","v":0},{"$f":"Import!M14715","v":0},null,null,null,"UltCY2022AY2021",0]
["L38",{"$f":"B69-1","v":2013},{"$f":"Import!M14617","v":0},{"$f":"Import!M14628","v":0},{"$f":"Import!M14639","v":0},{"$f":"Import!M14650","v":0},{"$f":"Import!M14661","v":0},{"$f":"Import!M14672","v":0},{"$f":"B68","v":2013},{"$f":"Import!M14683","v":0},{"$f":"Import!M14694","v":0},{"$f":"Import!M14705","v":0},{"$f":"Import!M14716","v":0},null,null,null,"UltCY2022AY2022",0]
["L39",2014,{"$f":"Import!M14618","v":0},{"$f":"Import!M14629","v":0},{"$f":"Import!M14640","v":0},{"$f":"Import!M14651","v":0},{"$f":"Import!M14662","v":0},{"$f":"Import!M14673","v":0},2014,{"$f":"Import!M14684","v":0},{"$f":"Import!M14695","v":0},{"$f":"Import!M14706","v":0},{"$f":"Import!M14717","v":0},null,null,null,{"$f":"\"PaidCY\"&C$10&\"AY\"&B29","v":"PaidCY2013AYPrior"},{"$f":"C29","v":0}]
["L40",2015,{"$f":"Import!M14619","v":0},{"$f":"Import!M14630","v":0},{"$f":"Import!M14641","v":0},{"$f":"Import!M14652","v":0},{"$f":"Import!M14663","v":0},{"$f":"Import!M14674","v":0},2015,{"$f":"Import!M14685","v":0},{"$f":"Import!M14696","v":0},{"$f":"Import!M14707","v":0},{"$f":"Import!M14718","v":0},null,null,null,{"$f":"\"PaidCY\"&C$10&\"AY\"&B30","v":"PaidCY2013AY2013"},{"$f":"C30","v":0}]
["L41",2016,{"$f":"Import!M14620","v":0},{"$f":"Import!M14631","v":0},{"$f":"Import!M14642","v":0},{"$f":"Import!M14653","v":0},{"$f":"Import!M14664","v":0},{"$f":"Import!M14675","v":0},2016,{"$f":"Import!M14686","v":0},{"$f":"Import!M14697","v":0},{"$f":"Import!M14708","v":0},{"$f":"Import!M14719","v":0},null,null,null,{"$f":"\"PaidCY\"&D$10&\"AY\"&B29","v":"PaidCY2014AYPrior"},{"$f":"D29","v":0}]
["L42",2017,{"$f":"Import!M14621","v":0},{"$f":"Import!M14632","v":0},{"$f":"Import!M14643","v":0},{"$f":"Import!M14654","v":0},{"$f":"Import!M14665","v":0},{"$f":"Import!M14676","v":0},2017,{"$f":"Import!M14687","v":0},{"$f":"Import!M14698","v":0},{"$f":"Import!M14709","v":0},{"$f":"Import!M14720","v":0},null,null,null,{"$f":"\"PaidCY\"&D$10&\"AY\"&B30","v":"PaidCY2014AY2013"},{"$f":"D30","v":0}]
["L43",2018,{"$f":"Import!M14622","v":0},{"$f":"Import!M14633","v":0},{"$f":"Import!M14644","v":0},{"$f":"Import!M14655","v":0},{"$f":"Import!M14666","v":0},{"$f":"Import!M14677","v":0},2018,{"$f":"Import!M14688","v":0},{"$f":"Import!M14699","v":0},{"$f":"Import!M14710","v":0},{"$f":"Import!M14721","v":0},null,null,null,{"$f":"\"PaidCY\"&D$10&\"AY\"&B31","v":"PaidCY2014AY2014"},{"$f":"D31","v":0}]
["L44",2019,{"$f":"Import!M14623","v":0},{"$f":"Import!M14634","v":0},{"$f":"Import!M14645","v":0},{"$f":"Import!M14656","v":0},{"$f":"Import!M14667","v":0},{"$f":"Import!M14678","v":0},2019,{"$f":"Import!M14689","v":0},{"$f":"Import!M14700","v":0},{"$f":"Import!M14711","v":0},{"$f":"Import!M14722","v":0},null,null,null,{"$f":"\"PaidCY\"&E$10&\"AY\"&B29","v":"PaidCY2015AYPrior"},{"$f":"E29","v":0}]
["L45",2020,{"$f":"Import!M14624","v":0},{"$f":"Import!M14635","v":0},{"$f":"Import!M14646","v":0},{"$f":"Import!M14657","v":0},{"$f":"Import!M14668","v":0},{"$f":"Import!M14679","v":0},2020,{"$f":"Import!M14690","v":0},{"$f":"Import!M14701","v":0},{"$f":"Import!M14712","v":0},{"$f":"Import!M14723","v":0},null,null,null,{"$f":"\"PaidCY\"&E$10&\"AY\"&B30","v":"PaidCY2015AY2013"},{"$f":"E30","v":0}]
["L46",2021,{"$f":"Import!M14625","v":0},{"$f":"Import!M14636","v":0},{"$f":"Import!M14647","v":0},{"$f":"Import!M14658","v":0},{"$f":"Import!M14669","v":0},{"$f":"Import!M14680","v":0},2021,{"$f":"Import!M14691","v":0},{"$f":"Import!M14702","v":0},{"$f":"Import!M14713","v":0},{"$f":"Import!M14724","v":0},null,null,null,{"$f":"\"PaidCY\"&E$10&\"AY\"&B31","v":"PaidCY2015AY2014"},{"$f":"E31","v":0}]
["L47",{"$f":"B39","v":2022},{"$f":"Import!M14626","v":0},{"$f":"Import!M14637","v":0},{"$f":"Import!M14648","v":0},{"$f":"Import!M14659","v":0},{"$f":"Import!M14670","v":0},{"$f":"Import!M14681","v":0},2022,{"$f":"Import!M14692","v":0},{"$f":"Import!M14703","v":0},{"$f":"Import!M14714","v":0},{"$f":"Import!M14725","v":0},null,null,null,{"$f":"\"PaidCY\"&E$10&\"AY\"&B32","v":"PaidCY2015AY2015"},{"$f":"E32","v":0}]
["L48","Totals","XXX",{"$f":"C78","v":"XXX"},"XXX",{"$f":"E78","v":"XXX"},{"$f":"SUM(G67:G77)","v":0},{"$f":"SUM(H67:H77)","v":0},"Totals",{"$f":"SUM(J67:J77)","v":0},{"$f":"SUM(K67:K77)","v":0},{"$f":"SUM(L67:L77)","v":0},{"$f":"SUM(M67:M77)","v":0},null,null,null,{"$f":"\"PaidCY\"&F$10&\"AY\"&B29","v":"PaidCY2016AYPrior"},{"$f":"F29","v":0}]
[null,null,null,null,null,null,null,null,null,null,null,null,null,null,null,null,{"$f":"\"PaidCY\"&F$10&\"AY\"&B30","v":"PaidCY2016AY2013"},{"$f":"F30","v":0}]
[null,"COMMENTS",null,null,null,null,null,null,null,null,null,null,null,null,null,null,{"$f":"\"PaidCY\"&F$10&\"AY\"&B31","v":"PaidCY2016AY2014"},{"$f":"F31","v":0}]
[null,{"$f":"Import!M14726","v":0},null,null,null,null,null,null,null,null,null,null,null,null,null,null,{"$f":"\"PaidCY\"&G$10&\"AY\"&B30","v":"PaidCY2017AY2013"},{"$f":"G30","v":0}]
[null,null,null,null,null,null,null,null,null,null,null,null,null,null,null,null,{"$f":"\"PaidCY\"&G$10&\"AY\"&B31","v":"PaidCY2017AY2014"},{"$f":"G31","v":0}]
[null,null,null,null,null,null,null,null,null,null,null,null,null,null,null,null,{"$f":"\"PaidCY\"&G$10&\"AY\"&B32","v":"PaidCY2017AY2015"},{"$f":"G32","v":0}]
[null,null,null,null,null,null,null,null,null,null,null,null,null,null,null,null,{"$f":"\"PaidCY\"&G$10&\"AY\"&B34","v":"PaidCY2017AY2017"},{"$f":"G34","v":0}]
[]
[]
[]
[]
[]
[null,null,null,null,null,null,null,null,null,null,null,null,null,null,null,null,{"$f":"\"PaidCY\"&H$10&\"AY\"&B34","v":"PaidCY2018AY2017"},{"$f":"H34","v":0}]
[null,null,"Accident Year",null,null,null,null,null,null,null,null,null,null,null,null,null,"PaidCY2018AY2018",0]
[null,null,"Underwriting Year",null,null,null,null,null,null,null,null,null,null,null,null,null,{"$f":"\"PaidCY\"&I$10&\"AY\"&B29","v":"PaidCY2019AYPrior"},{"$f":"I29","v":0}]
[null,null,null,null,null,null,null,null,null,null,null,null,null,null,null,null,"PaidCY2019AY2013",0]
[null,null,null,null,null,null,null,null,null,null,null,null,null,null,null,null,"PaidCY2019AY2014",0]

{"sheet":"Sch XI(a)(vii)","index":79,"n_rows":91,"n_cols":20,"rows_kept":91,"cut":false,"hidden":true,"merged":[[80,1,82,12],[5,2,5,11],[59,6,59,7],[41,2,41,11],[0,13,0,14],[2,13,2,14],[2,1,2,2],[60,6,60,7],[23,2,23,11]]}
[null,"SCHEDULE OF LOSS TRIANGLES (LINE 7 - OTHER SPECIALTY LINES)",null,null,null,null,null,null,null,null,null,null,null,{"$f":"HYPERLINK(\"#'Index'!A1\",\"Return to Index\")","v":"Return to Index"}]
[null,{"$f":"'Company Information'!C7","v":"Enter Company Name"}]
[null,{"$f":"'Company Information'!C3","v":"2022-12-31"},null,null,null,null,null,null,null,null,null,null,null,"SCHEDULE XI(a)(vii)"]
[null,{"$f":"\"expressed in\"& IF(1000>1,\" ['\"&MID(1000,2,LEN(1000))&\"s]\",\"\")&\" \"&'Form 1EBS'!$C$4","v":"expressed in ['000s] United States Dollars"}]
[]
[null,"Accounting Basis: *","INCURRED (ESTIMATED ULTIMATE) NET LOSSES AND ALLOCATED LOSS ADJUSTMENT EXPENSES REPORTED AT YEAR END ($000)",null,null,null,null,null,null,null,null,null,11,12,13,null,"AcctBasis",{"$f":"B7","v":"Accident Year"}]
[null,"Accident Year",null,null,null,null,null,null,null,null,null,null,"Ultimate","Development","Development",null,{"$f":"\"UltCY\"&C$10&\"AY\"&B11","v":"UltCY2013AYPrior"},{"$f":"C11","v":0},{"$f":"\"CATUltCY\"&L$10&\"AY\"&B11","v":"CATUltCY2022AYPrior"},{"$f":"M11","v":0}]
[null,"Years in Which",1,2,3,4,5,6,7,8,9,10,"Catastrophe",null,null,null,{"$f":"\"UltCY\"&C$10&\"AY\"&B12","v":"UltCY2013AY2013"},{"$f":"C12","v":0},"CATUltCY2022AY2013",0]
[null,"Losses Were",null,null,null,null,null,null,null,null,null,null,"Losses","One Year","Two Year",null,{"$f":"\"UltCY\"&D$10&\"AY\"&B11","v":"UltCY2014AYPrior"},{"$f":"D11","v":0},"CATUltCY2022AY2014",0]
[null,"Incurred",{"$f":"D10-1","v":2013},2014,2015,2016,2017,2018,2019,2020,2021,{"$f":"YEAR('Company Information'!C3)","v":2022},{"$f":"L10","v":2022},"Development","Development",null,{"$f":"\"UltCY\"&D$10&\"AY\"&B12","v":"UltCY2014AY2013"},{"$f":"D12","v":0},"CATUltCY2022AY2015",0]
["L1","Prior",{"$f":"Import!M14727","v":0},{"$f":"Import!M14729","v":0},{"$f":"Import!M14732","v":0},{"$f":"Import!M14736","v":0},{"$f":"Import!M14741","v":0},{"$f":"Import!M14747","v":0},{"$f":"Import!M14754","v":0},{"$f":"Import!M14762","v":0},{"$f":"Import!M14771","v":0},{"$f":"Import!M14781","v":0},{"$f":"Import!M14792","v":0},{"$f":"K11-L11","v":0},{"$f":"J11-L11","v":0},null,{"$f":"\"UltCY\"&D$10&\"AY\"&B13","v":"UltCY2014AY2014"},{"$f":"D13","v":0},"CATUltCY2022AY2016",0]
["L2",{"$f":"B13-1","v":2013},{"$f":"Import!M14728","v":0},{"$f":"Import!M14730","v":0},{"$f":"Import!M14733","v":0},{"$f":"Import!M14737","v":0},{"$f":"Import!M14742","v":0},{"$f":"Import!M14748","v":0},{"$f":"Import!M14755","v":0},{"$f":"Import!M14763","v":0},{"$f":"Import!M14772","v":0},{"$f":"Import!M14782","v":0},{"$f":"Import!M14793","v":0},0,0,null,{"$f":"\"UltCY\"&E$10&\"AY\"&B11","v":"UltCY2015AYPrior"},{"$f":"E11","v":0},"CATUltCY2022AY2017",0]
["L3",2014,"XXX",{"$f":"Import!M14731","v":0},{"$f":"Import!M14734","v":0},{"$f":"Import!M14738","v":0},{"$f":"Import!M14743","v":0},{"$f":"Import!M14749","v":0},{"$f":"Import!M14756","v":0},{"$f":"Import!M14764","v":0},{"$f":"Import!M14773","v":0},{"$f":"Import!M14783","v":0},{"$f":"Import!M14794","v":0},0,0,null,{"$f":"\"UltCY\"&E$10&\"AY\"&B12","v":"UltCY2015AY2013"},{"$f":"E12","v":0},"CATUltCY2022AY2018",0]
["L4",2015,"XXX","XXX",{"$f":"Import!M14735","v":0},{"$f":"Import!M14739","v":0},{"$f":"Import!M14744","v":0},{"$f":"Import!M14750","v":0},{"$f":"Import!M14757","v":0},{"$f":"Import!M14765","v":0},{"$f":"Import!M14774","v":0},{"$f":"Import!M14784","v":0},{"$f":"Import!M14795","v":0},0,0,null,{"$f":"\"UltCY\"&E$10&\"AY\"&B13","v":"UltCY2015AY2014"},{"$f":"E13","v":0},"CATUltCY2022AY2019",0]
["L5",2016,"XXX","XXX","XXX",{"$f":"Import!M14740","v":0},{"$f":"Import!M14745","v":0},{"$f":"Import!M14751","v":0},{"$f":"Import!M14758","v":0},{"$f":"Import!M14766","v":0},{"$f":"Import!M14775","v":0},{"$f":"Import!M14785","v":0},{"$f":"Import!M14796","v":0},0,0,null,{"$f":"\"UltCY\"&E$10&\"AY\"&B14","v":"UltCY2015AY2015"},{"$f":"E14","v":0},"CATUltCY2022AY2020",0]
["L6",2017,"XXX","XXX","XXX","XXX",{"$f":"Import!M14746","v":0},{"$f":"Import!M14752","v":0},{"$f":"Import!M14759","v":0},{"$f":"Import!M14767","v":0},{"$f":"Import!M14776","v":0},{"$f":"Import!M14786","v":0},{"$f":"Import!M14797","v":0},0,0,null,{"$f":"\"UltCY\"&F$10&\"AY\"&B11","v":"UltCY2016AYPrior"},{"$f":"F11","v":0},"CATUltCY2022AY2021",0]
["L7",2018,"XXX","XXX","XXX","XXX","XXX",{"$f":"Import!M14753","v":0},{"$f":"Import!M14760","v":0},{"$f":"Import!M14768","v":0},{"$f":"Import!M14777","v":0},{"$f":"Import!M14787","v":0},{"$f":"Import!M14798","v":0},0,0,null,{"$f":"\"UltCY\"&F$10&\"AY\"&B12","v":"UltCY2016AY2013"},{"$f":"F12","v":0},"CATUltCY2022AY2022",0]
["L8",2019,"XXX","XXX","XXX","XXX","XXX","XXX",{"$f":"Import!M14761","v":0},{"$f":"Import!M14769","v":0},{"$f":"Import!M14778","v":0},{"$f":"Import!M14788","v":0},{"$f":"Import!M14799","v":0},0,0,null,{"$f":"\"UltCY\"&F$10&\"AY\"&B13","v":"UltCY2016AY2014"},{"$f":"F13","v":0},{"$f":"\"CATPaidCY\"&L$10&\"AY\"&B29","v":"CATPaidCY2022AYPrior"},{"$f":"M29","v":0}]
["L9",2020,"XXX","XXX","XXX","XXX","XXX","XXX","XXX",{"$f":"Import!M14770","v":0},{"$f":"Import!M14779","v":0},{"$f":"Import!M14789","v":0},{"$f":"Import!M14800","v":0},0,0,null,{"$f":"\"UltCY\"&F$10&\"AY\"&B14","v":"UltCY2016AY2015"},{"$f":"F14","v":0},"CATPaidCY2022AY2013",0]
["L10",2021,"XXX","XXX","XXX","XXX","XXX","XXX","XXX","XXX",{"$f":"Import!M14780","v":0},{"$f":"Import!M14790","v":0},{"$f":"Import!M14801","v":0},0,"XXX",null,{"$f":"\"UltCY\"&F$10&\"AY\"&B15","v":"UltCY2016AY2016"},{"$f":"F15","v":0},"CATPaidCY2022AY2014",0]
["L11",{"$f":"L10","v":2022},"XXX","XXX","XXX","XXX","XXX","XXX","XXX","XXX","XXX",{"$f":"Import!M14791","v":0},{"$f":"Import!M14802","v":0},"XXX","XXX",null,{"$f":"\"UltCY\"&G$10&\"AY\"&B11","v":"UltCY2017AYPrior"},{"$f":"G11","v":0},"CATPaidCY2022AY2015",0]
["L12","Totals",null,null,null,null,null,null,null,null,null,null,{"$f":"SUM(M11:M21)","v":0},{"$f":"SUM(N11:N21)","v":0},{"$f":"SUM(O11:O21)","v":0},null,{"$f":"\"UltCY\"&G$10&\"AY\"&B12","v":"UltCY2017AY2013"},{"$f":"G12","v":0},"CATPaidCY2022AY2016",0]
[null,null,null,null,null,null,null,null,null,null,null,null,null,null,null,null,{"$f":"\"UltCY\"&G$10&\"AY\"&B13","v":"UltCY2017AY2014"},{"$f":"G13","v":0},"CATPaidCY2022AY2017",0]
[null,null,"CUMULATIVE PAID NET LOSSES AND ALLOCATED LOSS ADJUSTMENT EXPENSES REPORTED AT YEAR END ($000)",null,null,null,null,null,null,null,null,null,24,null,null,null,{"$f":"\"UltCY\"&G$10&\"AY\"&B15","v":"UltCY2017AY2016"},{"$f":"G15","v":0},{"$f":"\"CATPaidCY\"&L$10&\"AY\"&B36","v":"CATPaidCY2022AY2019"},{"$f":"M36","v":0}]
[null,null,null,null,null,null,null,null,null,null,null,null,"Paid",null,null,null,{"$f":"\"UltCY\"&G$10&\"AY\"&B16","v":"UltCY2017AY2017"},{"$f":"G16","v":0},{"$f":"\"CATPaidCY\"&L$10&\"AY\"&B37","v":"CATPaidCY2022AY2020"},{"$f":"M37","v":0}]
[null,"Years in Which",14,15,16,17,18,19,20,21,22,23,"Catastrophe",null,null,null,{"$f":"\"UltCY\"&H$10&\"AY\"&B11","v":"UltCY2018AYPrior"},{"$f":"H11","v":0},{"$f":"\"CATPaidCY\"&L$10&\"AY\"&B38","v":"CATPaidCY2022AY2021"},{"$f":"M38","v":0}]
[null,"Policies Were",null,null,null,null,null,null,null,null,null,null,"Losses",null,null,null,"UltCY2018AY2013",0,{"$f":"\"CATPaidCY\"&L$10&\"AY\"&B39","v":"CATPaidCY2022AY2022"},{"$f":"M39","v":0}]
[null,"Written",{"$f":"D28-1","v":2013},2014,2015,2016,2017,2018,2019,2020,2021,{"$f":"L10","v":2022},{"$f":"L28","v":2022},null,null,null,"UltCY2018AY2014",0,{"$f":"\"CATIBNRCY\"&L$10&\"AY\"&B47","v":"CATIBNRCY2022AYPrior"},{"$f":"M47","v":0}]
["L13","Prior",{"$f":"Import!M14803","v":0},{"$f":"Import!M14805","v":0},{"$f":"Import!M14808","v":0},{"$f":"Import!M14812","v":0},{"$f":"Import!M14817","v":0},{"$f":"Import!M14823","v":0},{"$f":"Import!M14830","v":0},{"$f":"Import!M14838","v":0},{"$f":"Import!M14847","v":0},{"$f":"Import!M14857","v":0},{"$f":"Import!M14868","v":0},null,null,null,"UltCY2018AY2015",0,"CATIBNRCY2022AY2013",0]
["L14",{"$f":"B31-1","v":2013},{"$f":"Import!M14804","v":0},{"$f":"Import!M14806","v":0},{"$f":"Import!M14809","v":0},{"$f":"Import!M14813","v":0},{"$f":"Import!M14818","v":0},{"$f":"Import!M14824","v":0},{"$f":"Import!M14831","v":0},{"$f":"Import!M14839","v":0},{"$f":"Import!M14848","v":0},{"$f":"Import!M14858","v":0},{"$f":"Import!M14869","v":0},null,null,null,"UltCY2018AY2016",0,"CATIBNRCY2022AY2014",0]
["L15",2014,"XXX",{"$f":"Import!M14807","v":0},{"$f":"Import!M14810","v":0},{"$f":"Import!M14814","v":0},{"$f":"Import!M14819","v":0},{"$f":"Import!M14825","v":0},{"$f":"Import!M14832","v":0},{"$f":"Import!M14840","v":0},{"$f":"Import!M14849","v":0},{"$f":"Import!M14859","v":0},{"$f":"Import!M14870","v":0},null,null,null,"UltCY2018AY2017",0,"CATIBNRCY2022AY2015",0]
["L16",2015,"XXX","XXX",{"$f":"Import!M14811","v":0},{"$f":"Import!M14815","v":0},{"$f":"Import!M14820","v":0},{"$f":"Import!M14826","v":0},{"$f":"Import!M14833","v":0},{"$f":"Import!M14841","v":0},{"$f":"Import!M14850","v":0},{"$f":"Import!M14860","v":0},{"$f":"Import!M14871","v":0},null,null,null,"UltCY2018AY2018",0,"CATIBNRCY2022AY2016",0]
["L17",2016,"XXX","XXX","XXX",{"$f":"Import!M14816","v":0},{"$f":"Import!M14821","v":0},{"$f":"Import!M14827","v":0},{"$f":"Import!M14834","v":0},{"$f":"Import!M14842","v":0},{"$f":"Import!M14851","v":0},{"$f":"Import!M14861","v":0},{"$f":"Import!M14872","v":0},null,null,null,{"$f":"\"UltCY\"&I$10&\"AY\"&B11","v":"UltCY2019AYPrior"},{"$f":"I11","v":0},"CATIBNRCY2022AY2017",0]
["L18",2017,"XXX","XXX","XXX","XXX",{"$f":"Import!M14822","v":0},{"$f":"Import!M14828","v":0},{"$f":"Import!M14835","v":0},{"$f":"Import!M14843","v":0},{"$f":"Import!M14852","v":0},{"$f":"Import!M14862","v":0},{"$f":"Import!M14873","v":0},null,null,null,"UltCY2019AY2013",0,"CATIBNRCY2022AY2018",0]
["L19",2018,"XXX","XXX","XXX","XXX","XXX",{"$f":"Import!M14829","v":0},{"$f":"Import!M14836","v":0},{"$f":"Import!M14844","v":0},{"$f":"Import!M14853","v":0},{"$f":"Import!M14863","v":0},{"$f":"Import!M14874","v":0},null,null,null,"UltCY2019AY2014",0,"CATIBNRCY2022AY2019",0]
["L20",2019,"XXX","XXX","XXX","XXX","XXX","XXX",{"$f":"Import!M14837","v":0},{"$f":"Import!M14845","v":0},{"$f":"Import!M14854","v":0},{"$f":"Import!M14864","v":0},{"$f":"Import!M14875","v":0},null,null,null,"UltCY2019AY2015",0,"CATIBNRCY2022AY2020",0]
["L21",2020,"XXX","XXX","XXX","XXX","XXX","XXX","XXX",{"$f":"Import!M14846","v":0},{"$f":"Import!M14855","v":0},{"$f":"Import!M14865","v":0},{"$f":"Import!M14876","v":0},null,null,null,"UltCY2019AY2016",0,"CATIBNRCY2022AY2021",0]
["L22",2021,"XXX","XXX","XXX","XXX","XXX","XXX","XXX","XXX",{"$f":"Import!M14856","v":0},{"$f":"Import!M14866","v":0},{"$f":"Import!M14877","v":0},null,null,null,"UltCY2019AY2017",0,"CATIBNRCY2022AY2022",0]
["L23",{"$f":"L28","v":2022},"XXX","XXX","XXX","XXX","XXX","XXX","XXX","XXX","XXX",{"$f":"Import!M14867","v":0},{"$f":"Import!M14878","v":0},null,null,null,"UltCY2019AY2018",0]
["L24","Totals",null,null,null,null,null,null,null,null,null,null,{"$f":"SUM(M29:M39)","v":0},null,null,null,"UltCY2019AY2019",0]
[null,null,null,null,null,null,null,null,null,null,null,null,null,null,null,null,{"$f":"\"UltCY\"&J$10&\"AY\"&B11","v":"UltCY2020AYPrior"},{"$f":"J11","v":0}]
[null,null,"BULK & IBNR RESERVES ON NET LOSSES AND ALLOCATED LOSS ADJUSTMENT EXPENSES REPORTED AT YEAR END ($000)",null,null,null,null,null,null,null,null,null,35,null,null,null,{"$f":"\"UltCY\"&J$10&\"AY\"&B13","v":"UltCY2020AY2014"},{"$f":"J13","v":0}]
[null,null,null,null,null,null,null,null,null,null,null,null,"Losses",null,null,null,"UltCY2020AY2015",0]
[null,"Years in Which",25,26,27,28,29,30,31,32,33,34,"Bulk & IBNR",null,null,null,"UltCY2020AY2016",0]
[null,"Policies Were",null,null,null,null,null,null,null,null,null,null,"Reserves",null,null,null,"UltCY2020AY2017",0]
[null,"Written",{"$f":"D46-1","v":2013},2014,2015,2016,2017,2018,2019,2020,2021,{"$f":"L28","v":2022},{"$f":"L46","v":2022},null,null,null,"UltCY2020AY2018",0]
["L25","Prior",{"$f":"Import!M14879","v":0},{"$f":"Import!M14881","v":0},{"$f":"Import!M14884","v":0},{"$f":"Import!M14888","v":0},{"$f":"Import!M14893","v":0},{"$f":"Import!M14899","v":0},{"$f":"Import!M14906","v":0},{"$f":"Import!M14914","v":0},{"$f":"Import!M14923","v":0},{"$f":"Import!M14933","v":0},{"$f":"Import!M14944","v":0},null,null,null,"UltCY2020AY2019",0]
["L26",{"$f":"B49-1","v":2013},{"$f":"Import!M14880","v":0},{"$f":"Import!M14882","v":0},{"$f":"Import!M14885","v":0},{"$f":"Import!M14889","v":0},{"$f":"Import!M14894","v":0},{"$f":"Import!M14900","v":0},{"$f":"Import!M14907","v":0},{"$f":"Import!M14915","v":0},{"$f":"Import!M14924","v":0},{"$f":"Import!M14934","v":0},{"$f":"Import!M14945","v":0},null,null,null,"UltCY2020AY2020",0]
["L27",2014,"XXX",{"$f":"Import!M14883","v":0},{"$f":"Import!M14886","v":0},{"$f":"Import!M14890","v":0},{"$f":"Import!M14895","v":0},{"$f":"Import!M14901","v":0},{"$f":"Import!M14908","v":0},{"$f":"Import!M14916","v":0},{"$f":"Import!M14925","v":0},{"$f":"Import!M14935","v":0},{"$f":"Import!M14946","v":0},null,null,null,{"$f":"\"UltCY\"&K$10&\"AY\"&B11","v":"UltCY2021AYPrior"},{"$f":"K11","v":0}]
["L28",2015,"XXX","XXX",{"$f":"Import!M14887","v":0},{"$f":"Import!M14891","v":0},{"$f":"Import!M14896","v":0},{"$f":"Import!M14902","v":0},{"$f":"Import!M14909","v":0},{"$f":"Import!M14917","v":0},{"$f":"Import!M14926","v":0},{"$f":"Import!M14936","v":0},{"$f":"Import!M14947","v":0},null,null,null,"UltCY2021AY2013",0]
["L29",2016,"XXX","XXX","XXX",{"$f":"Import!M14892","v":0},{"$f":"Import!M14897","v":0},{"$f":"Import!M14903","v":0},{"$f":"Import!M14910","v":0},{"$f":"Import!M14918","v":0},{"$f":"Import!M14927","v":0},{"$f":"Import!M14937","v":0},{"$f":"Import!M14948","v":0},null,null,null,"UltCY2021AY2014",0]
["L30",2017,"XXX","XXX","XXX","XXX",{"$f":"Import!M14898","v":0},{"$f":"Import!M14904","v":0},{"$f":"Import!M14911","v":0},{"$f":"Import!M14919","v":0},{"$f":"Import!M14928","v":0},{"$f":"Import!M14938","v":0},{"$f":"Import!M14949","v":0},null,null,null,"UltCY2021AY2015",0]
["L31",2018,"XXX","XXX","XXX","XXX","XXX",{"$f":"Import!M14905","v":0},{"$f":"Import!M14912","v":0},{"$f":"Import!M14920","v":0},{"$f":"Import!M14929","v":0},{"$f":"Import!M14939","v":0},{"$f":"Import!M14950","v":0},null,null,null,"UltCY2021AY2016",0]
["L32",2019,"XXX","XXX","XXX","XXX","XXX","XXX",{"$f":"Import!M14913","v":0},{"$f":"Import!M14921","v":0},{"$f":"Import!M14930","v":0},{"$f":"Import!M14940","v":0},{"$f":"Import!M14951","v":0},null,null,null,"UltCY2021AY2017",0]
["L33",2020,"XXX","XXX","XXX","XXX","XXX","XXX","XXX",{"$f":"Import!M14922","v":0},{"$f":"Import!M14931","v":0},{"$f":"Import!M14941","v":0},{"$f":"Import!M14952","v":0},null,null,null,"UltCY2021AY2018",0]
["L34",2021,"XXX","XXX","XXX","XXX","XXX","XXX","XXX","XXX",{"$f":"Import!M14932","v":0},{"$f":"Import!M14942","v":0},{"$f":"Import!M14953","v":0},null,null,null,"UltCY2021AY2019",0]
["L35",{"$f":"L46","v":2022},"XXX","XXX","XXX","XXX","XXX","XXX","XXX","XXX","XXX",{"$f":"Import!M14943","v":0},{"$f":"Import!M14954","v":0},null,null,null,"UltCY2021AY2020",0]
["L36","Totals",null,null,null,null,null,null,null,null,null,null,{"$f":"SUM(M47:M57)","v":0},null,null,null,"UltCY2021AY2021",0]
[null,null,null,null,null,null,null,null,null,null,null,null,null,null,null,null,{"$f":"\"UltCY\"&L$10&\"AY\"&B11","v":"UltCY2022AYPrior"},{"$f":"L11","v":0}]
[null,null,36,37,38,39,"Unallocated Loss",null,null,42,43,44,45,null,null,null,{"$f":"\"UltCY\"&L$10&\"AY\"&B13","v":"UltCY2022AY2014"},{"$f":"L13","v":0}]
[null,"Years in Which",null,null,null,null,"Adjustment Expenses",null,null,null,null,null,null,null,null,null,"UltCY2022AY2015",0]
[null,"Premiums",null,null,null,null,40,41,null,null,null,null,null,null,null,null,"UltCY2022AY2016",0]
[null,"Were",null,null,null,null,null,null,null,"Commission and","General and",null,null,null,null,null,"UltCY2022AY2017",0]
[null,"Earned and","Gross","Gross","Net","Net",null,null,null,"Brokerage","Administrative","Personnel","Other",null,null,null,"UltCY2022AY2018",0]
[null,"Losses Were","Premiums","Premiums","Premiums","Premiums",null,null,"Calendar","Expense","Expense","Costs","Expense",null,null,null,"UltCY2022AY2019",0]
[null,"Incurred","Written","Earned","Written","Earned","Paid","Incurred","Year","(Form 2A, Line 9)","(Form 2A, Line 10)","(Form 2A, Line 11)","(Form 2A, Line 12)",null,null,null,"UltCY2022AY2020",0]
["L37","Prior","XXX",{"$f":"C67","v":"XXX"},"XXX",{"$f":"E67","v":"XXX"},{"$f":"Import!M14999","v":0},{"$f":"Import!M15010","v":0},"Prior",{"$f":"Import!M15021","v":0},{"$f":"Import!M15032","v":0},{"$f":"Import!M15043","v":0},{"$f":"Import!M15054","v":0},null,null,null,"UltCY2022AY2021",0]
["L38",{"$f":"B69-1","v":2013},{"$f":"Import!M14956","v":0},{"$f":"Import!M14967","v":0},{"$f":"Import!M14978","v":0},{"$f":"Import!M14989","v":0},{"$f":"Import!M15000","v":0},{"$f":"Import!M15011","v":0},{"$f":"B68","v":2013},{"$f":"Import!M15022","v":0},{"$f":"Import!M15033","v":0},{"$f":"Import!M15044","v":0},{"$f":"Import!M15055","v":0},null,null,null,"UltCY2022AY2022",0]
["L39",2014,{"$f":"Import!M14957","v":0},{"$f":"Import!M14968","v":0},{"$f":"Import!M14979","v":0},{"$f":"Import!M14990","v":0},{"$f":"Import!M15001","v":0},{"$f":"Import!M15012","v":0},2014,{"$f":"Import!M15023","v":0},{"$f":"Import!M15034","v":0},{"$f":"Import!M15045","v":0},{"$f":"Import!M15056","v":0},null,null,null,{"$f":"\"PaidCY\"&C$10&\"AY\"&B29","v":"PaidCY2013AYPrior"},{"$f":"C29","v":0}]
["L40",2015,{"$f":"Import!M14958","v":0},{"$f":"Import!M14969","v":0},{"$f":"Import!M14980","v":0},{"$f":"Import!M14991","v":0},{"$f":"Import!M15002","v":0},{"$f":"Import!M15013","v":0},2015,{"$f":"Import!M15024","v":0},{"$f":"Import!M15035","v":0},{"$f":"Import!M15046","v":0},{"$f":"Import!M15057","v":0},null,null,null,{"$f":"\"PaidCY\"&C$10&\"AY\"&B30","v":"PaidCY2013AY2013"},{"$f":"C30","v":0}]
["L41",2016,{"$f":"Import!M14959","v":0},{"$f":"Import!M14970","v":0},{"$f":"Import!M14981","v":0},{"$f":"Import!M14992","v":0},{"$f":"Import!M15003","v":0},{"$f":"Import!M15014","v":0},2016,{"$f":"Import!M15025","v":0},{"$f":"Import!M15036","v":0},{"$f":"Import!M15047","v":0},{"$f":"Import!M15058","v":0},null,null,null,{"$f":"\"PaidCY\"&D$10&\"AY\"&B29","v":"PaidCY2014AYPrior"},{"$f":"D29","v":0}]
["L42",2017,{"$f":"Import!M14960","v":0},{"$f":"Import!M14971","v":0},{"$f":"Import!M14982","v":0},{"$f":"Import!M14993","v":0},{"$f":"Import!M15004","v":0},{"$f":"Import!M15015","v":0},2017,{"$f":"Import!M15026","v":0},{"$f":"Import!M15037","v":0},{"$f":"Import!M15048","v":0},{"$f":"Import!M15059","v":0},null,null,null,{"$f":"\"PaidCY\"&D$10&\"AY\"&B30","v":"PaidCY2014AY2013"},{"$f":"D30","v":0}]
["L43",2018,{"$f":"Import!M14961","v":0},{"$f":"Import!M14972","v":0},{"$f":"Import!M14983","v":0},{"$f":"Import!M14994","v":0},{"$f":"Import!M15005","v":0},{"$f":"Import!M15016","v":0},2018,{"$f":"Import!M15027","v":0},{"$f":"Import!M15038","v":0},{"$f":"Import!M15049","v":0},{"$f":"Import!M15060","v":0},null,null,null,{"$f":"\"PaidCY\"&D$10&\"AY\"&B31","v":"PaidCY2014AY2014"},{"$f":"D31","v":0}]
["L44",2019,{"$f":"Import!M14962","v":0},{"$f":"Import!M14973","v":0},{"$f":"Import!M14984","v":0},{"$f":"Import!M14995","v":0},{"$f":"Import!M15006","v":0},{"$f":"Import!M15017","v":0},2019,{"$f":"Import!M15028","v":0},{"$f":"Import!M15039","v":0},{"$f":"Import!M15050","v":0},{"$f":"Import!M15061","v":0},null,null,null,{"$f":"\"PaidCY\"&E$10&\"AY\"&B29","v":"PaidCY2015AYPrior"},{"$f":"E29","v":0}]
["L45",2020,{"$f":"Import!M14963","v":0},{"$f":"Import!M14974","v":0},{"$f":"Import!M14985","v":0},{"$f":"Import!M14996","v":0},{"$f":"Import!M15007","v":0},{"$f":"Import!M15018","v":0},2020,{"$f":"Import!M15029","v":0},{"$f":"Import!M15040","v":0},{"$f":"Import!M15051","v":0},{"$f":"Import!M15062","v":0},null,null,null,{"$f":"\"PaidCY\"&E$10&\"AY\"&B30","v":"PaidCY2015AY2013"},{"$f":"E30","v":0}]
["L46",2021,{"$f":"Import!M14964","v":0},{"$f":"Import!M14975","v":0},{"$f":"Import!M14986","v":0},{"$f":"Import!M14997","v":0},{"$f":"Import!M15008","v":0},{"$f":"Import!M15019","v":0},2021,{"$f":"Import!M15030","v":0},{"$f":"Import!M15041","v":0},{"$f":"Import!M15052","v":0},{"$f":"Import!M15063","v":0},null,null,null,{"$f":"\"PaidCY\"&E$10&\"AY\"&B31","v":"PaidCY2015AY2014"},{"$f":"E31","v":0}]
["L47",{"$f":"B39","v":2022},{"$f":"Import!M14965","v":0},{"$f":"Import!M14976","v":0},{"$f":"Import!M14987","v":0},{"$f":"Import!M14998","v":0},{"$f":"Import!M15009","v":0},{"$f":"Import!M15020","v":0},2022,{"$f":"Import!M15031","v":0},{"$f":"Import!M15042","v":0},{"$f":"Import!M15053","v":0},{"$f":"Import!M15064","v":0},null,null,null,{"$f":"\"PaidCY\"&E$10&\"AY\"&B32","v":"PaidCY2015AY2015"},{"$f":"E32","v":0}]
["L48","Totals","XXX",{"$f":"C78","v":"XXX"},"XXX",{"$f":"E78","v":"XXX"},{"$f":"SUM(G67:G77)","v":0},{"$f":"SUM(H67:H77)","v":0},"Totals",{"$f":"SUM(J67:J77)","v":0},{"$f":"SUM(K67:K77)","v":0},{"$f":"SUM(L67:L77)","v":0},{"$f":"SUM(M67:M77)","v":0},null,null,null,{"$f":"\"PaidCY\"&F$10&\"AY\"&B29","v":"PaidCY2016AYPrior"},{"$f":"F29","v":0}]
[null,null,null,null,null,null,null,null,null,null,null,null,null,null,null,null,{"$f":"\"PaidCY\"&F$10&\"AY\"&B30","v":"PaidCY2016AY2013"},{"$f":"F30","v":0}]
[null,"COMMENTS",null,null,null,null,null,null,null,null,null,null,null,null,null,null,{"$f":"\"PaidCY\"&F$10&\"AY\"&B31","v":"PaidCY2016AY2014"},{"$f":"F31","v":0}]
[null,{"$f":"Import!M15065","v":0},null,null,null,null,null,null,null,null,null,null,null,null,null,null,{"$f":"\"PaidCY\"&G$10&\"AY\"&B30","v":"PaidCY2017AY2013"},{"$f":"G30","v":0}]
[null,null,null,null,null,null,null,null,null,null,null,null,null,null,null,null,{"$f":"\"PaidCY\"&G$10&\"AY\"&B31","v":"PaidCY2017AY2014"},{"$f":"G31","v":0}]
[null,null,null,null,null,null,null,null,null,null,null,null,null,null,null,null,{"$f":"\"PaidCY\"&G$10&\"AY\"&B32","v":"PaidCY2017AY2015"},{"$f":"G32","v":0}]
[null,null,null,null,null,null,null,null,null,null,null,null,null,null,null,null,{"$f":"\"PaidCY\"&G$10&\"AY\"&B34","v":"PaidCY2017AY2017"},{"$f":"G34","v":0}]
[]
[]
[]
[]
[]
[null,null,"Accident Year",null,null,null,null,null,null,null,null,null,null,null,null,null,{"$f":"\"PaidCY\"&H$10&\"AY\"&B34","v":"PaidCY2018AY2017"},{"$f":"H34","v":0}]
[null,null,"Underwriting Year",null,null,null,null,null,null,null,null,null,null,null,null,null,"PaidCY2018AY2018",0]

{"sheet":"Sch XI(a)(viii)","index":80,"n_rows":94,"n_cols":20,"rows_kept":94,"cut":false,"hidden":true,"merged":[[0,13,0,14],[2,1,2,2],[60,6,60,7],[23,2,23,11],[80,1,82,12],[5,2,5,11],[59,6,59,7],[41,2,41,11]]}
[null,"SCHEDULE OF LOSS TRIANGLES (LINE 8 - STRUCTURED/FINITE LINES)",null,null,null,null,null,null,null,null,null,null,null,{"$f":"HYPERLINK(\"#'Index'!A1\",\"Return to Index\")","v":"Return to Index"}]
[null,{"$f":"'Company Information'!C7","v":"Enter Company Name"}]
[null,{"$f":"'Company Information'!C3","v":"2022-12-31"},null,null,null,null,null,null,null,null,null,null,null,null,"SCHEDULE XI(a)(viii)"]
[null,{"$f":"\"expressed in\"& IF(1000>1,\" ['\"&MID(1000,2,LEN(1000))&\"s]\",\"\")&\" \"&'Form 1EBS'!$C$4","v":"expressed in ['000s] United States Dollars"}]
[]
[null,"Accounting Basis: *","INCURRED (ESTIMATED ULTIMATE) NET LOSSES AND ALLOCATED LOSS ADJUSTMENT EXPENSES REPORTED AT YEAR END ($000)",null,null,null,null,null,null,null,null,null,11,12,13,null,"AcctBasis",{"$f":"B7","v":"Accident Year"}]
[null,"Accident Year",null,null,null,null,null,null,null,null,null,null,"Ultimate","Development","Development",null,{"$f":"\"UltCY\"&C$10&\"AY\"&B11","v":"UltCY2013AYPrior"},{"$f":"C11","v":0},{"$f":"\"CATUltCY\"&L$10&\"AY\"&B11","v":"CATUltCY2022AYPrior"},{"$f":"M11","v":0}]
[null,"Years in Which",1,2,3,4,5,6,7,8,9,10,"Catastrophe",null,null,null,{"$f":"\"UltCY\"&C$10&\"AY\"&B12","v":"UltCY2013AY2013"},{"$f":"C12","v":0},"CATUltCY2022AY2013",0]
[null,"Losses Were",null,null,null,null,null,null,null,null,null,null,"Losses","One Year","Two Year",null,{"$f":"\"UltCY\"&D$10&\"AY\"&B11","v":"UltCY2014AYPrior"},{"$f":"D11","v":0},"CATUltCY2022AY2014",0]
[null,"Incurred",{"$f":"D10-1","v":2013},2014,2015,2016,2017,2018,2019,2020,2021,{"$f":"YEAR('Company Information'!C3)","v":2022},{"$f":"L10","v":2022},"Development","Development",null,{"$f":"\"UltCY\"&D$10&\"AY\"&B12","v":"UltCY2014AY2013"},{"$f":"D12","v":0},"CATUltCY2022AY2015",0]
["L1","Prior",{"$f":"Import!M15066","v":0},{"$f":"Import!M15068","v":0},{"$f":"Import!M15071","v":0},{"$f":"Import!M15075","v":0},{"$f":"Import!M15080","v":0},{"$f":"Import!M15086","v":0},{"$f":"Import!M15093","v":0},{"$f":"Import!M15101","v":0},{"$f":"Import!M15110","v":0},{"$f":"Import!M15120","v":0},{"$f":"Import!M15131","v":0},{"$f":"K11-L11","v":0},{"$f":"J11-L11","v":0},null,{"$f":"\"UltCY\"&D$10&\"AY\"&B13","v":"UltCY2014AY2014"},{"$f":"D13","v":0},"CATUltCY2022AY2016",0]
["L2",{"$f":"B13-1","v":2013},{"$f":"Import!M15067","v":0},{"$f":"Import!M15069","v":0},{"$f":"Import!M15072","v":0},{"$f":"Import!M15076","v":0},{"$f":"Import!M15081","v":0},{"$f":"Import!M15087","v":0},{"$f":"Import!M15094","v":0},{"$f":"Import!M15102","v":0},{"$f":"Import!M15111","v":0},{"$f":"Import!M15121","v":0},{"$f":"Import!M15132","v":0},0,0,null,{"$f":"\"UltCY\"&E$10&\"AY\"&B11","v":"UltCY2015AYPrior"},{"$f":"E11","v":0},"CATUltCY2022AY2017",0]
["L3",2014,"XXX",{"$f":"Import!M15070","v":0},{"$f":"Import!M15073","v":0},{"$f":"Import!M15077","v":0},{"$f":"Import!M15082","v":0},{"$f":"Import!M15088","v":0},{"$f":"Import!M15095","v":0},{"$f":"Import!M15103","v":0},{"$f":"Import!M15112","v":0},{"$f":"Import!M15122","v":0},{"$f":"Import!M15133","v":0},0,0,null,{"$f":"\"UltCY\"&E$10&\"AY\"&B12","v":"UltCY2015AY2013"},{"$f":"E12","v":0},"CATUltCY2022AY2018",0]
["L4",2015,"XXX","XXX",{"$f":"Import!M15074","v":0},{"$f":"Import!M15078","v":0},{"$f":"Import!M15083","v":0},{"$f":"Import!M15089","v":0},{"$f":"Import!M15096","v":0},{"$f":"Import!M15104","v":0},{"$f":"Import!M15113","v":0},{"$f":"Import!M15123","v":0},{"$f":"Import!M15134","v":0},0,0,null,{"$f":"\"UltCY\"&E$10&\"AY\"&B13","v":"UltCY2015AY2014"},{"$f":"E13","v":0},"CATUltCY2022AY2019",0]
["L5",2016,"XXX","XXX","XXX",{"$f":"Import!M15079","v":0},{"$f":"Import!M15084","v":0},{"$f":"Import!M15090","v":0},{"$f":"Import!M15097","v":0},{"$f":"Import!M15105","v":0},{"$f":"Import!M15114","v":0},{"$f":"Import!M15124","v":0},{"$f":"Import!M15135","v":0},0,0,null,{"$f":"\"UltCY\"&E$10&\"AY\"&B14","v":"UltCY2015AY2015"},{"$f":"E14","v":0},"CATUltCY2022AY2020",0]
["L6",2017,"XXX","XXX","XXX","XXX",{"$f":"Import!M15085","v":0},{"$f":"Import!M15091","v":0},{"$f":"Import!M15098","v":0},{"$f":"Import!M15106","v":0},{"$f":"Import!M15115","v":0},{"$f":"Import!M15125","v":0},{"$f":"Import!M15136","v":0},0,0,null,{"$f":"\"UltCY\"&F$10&\"AY\"&B11","v":"UltCY2016AYPrior"},{"$f":"F11","v":0},"CATUltCY2022AY2021",0]
["L7",2018,"XXX","XXX","XXX","XXX","XXX",{"$f":"Import!M15092","v":0},{"$f":"Import!M15099","v":0},{"$f":"Import!M15107","v":0},{"$f":"Import!M15116","v":0},{"$f":"Import!M15126","v":0},{"$f":"Import!M15137","v":0},0,0,null,{"$f":"\"UltCY\"&F$10&\"AY\"&B12","v":"UltCY2016AY2013"},{"$f":"F12","v":0},"CATUltCY2022AY2022",0]
["L8",2019,"XXX","XXX","XXX","XXX","XXX","XXX",{"$f":"Import!M15100","v":0},{"$f":"Import!M15108","v":0},{"$f":"Import!M15117","v":0},{"$f":"Import!M15127","v":0},{"$f":"Import!M15138","v":0},0,0,null,{"$f":"\"UltCY\"&F$10&\"AY\"&B13","v":"UltCY2016AY2014"},{"$f":"F13","v":0},{"$f":"\"CATPaidCY\"&L$10&\"AY\"&B29","v":"CATPaidCY2022AYPrior"},{"$f":"M29","v":0}]
["L9",2020,"XXX","XXX","XXX","XXX","XXX","XXX","XXX",{"$f":"Import!M15109","v":0},{"$f":"Import!M15118","v":0},{"$f":"Import!M15128","v":0},{"$f":"Import!M15139","v":0},0,0,null,{"$f":"\"UltCY\"&F$10&\"AY\"&B14","v":"UltCY2016AY2015"},{"$f":"F14","v":0},"CATPaidCY2022AY2013",0]
["L10",2021,"XXX","XXX","XXX","XXX","XXX","XXX","XXX","XXX",{"$f":"Import!M15119","v":0},{"$f":"Import!M15129","v":0},{"$f":"Import!M15140","v":0},0,"XXX",null,{"$f":"\"UltCY\"&F$10&\"AY\"&B15","v":"UltCY2016AY2016"},{"$f":"F15","v":0},"CATPaidCY2022AY2014",0]
["L11",{"$f":"L10","v":2022},"XXX","XXX","XXX","XXX","XXX","XXX","XXX","XXX","XXX",{"$f":"Import!M15130","v":0},{"$f":"Import!M15141","v":0},"XXX","XXX",null,{"$f":"\"UltCY\"&G$10&\"AY\"&B11","v":"UltCY2017AYPrior"},{"$f":"G11","v":0},"CATPaidCY2022AY2015",0]
["L12","Totals",null,null,null,null,null,null,null,null,null,null,{"$f":"SUM(M11:M21)","v":0},{"$f":"SUM(N11:N21)","v":0},{"$f":"SUM(O11:O21)","v":0},null,{"$f":"\"UltCY\"&G$10&\"AY\"&B12","v":"UltCY2017AY2013"},{"$f":"G12","v":0},"CATPaidCY2022AY2016",0]
[null,null,null,null,null,null,null,null,null,null,null,null,null,null,null,null,{"$f":"\"UltCY\"&G$10&\"AY\"&B13","v":"UltCY2017AY2014"},{"$f":"G13","v":0},"CATPaidCY2022AY2017",0]
[null,null,"CUMULATIVE PAID NET LOSSES AND ALLOCATED LOSS ADJUSTMENT EXPENSES REPORTED AT YEAR END ($000)",null,null,null,null,null,null,null,null,null,24,null,null,null,{"$f":"\"UltCY\"&G$10&\"AY\"&B15","v":"UltCY2017AY2016"},{"$f":"G15","v":0},{"$f":"\"CATPaidCY\"&L$10&\"AY\"&B36","v":"CATPaidCY2022AY2019"},{"$f":"M36","v":0}]
[null,null,null,null,null,null,null,null,null,null,null,null,"Paid",null,null,null,{"$f":"\"UltCY\"&G$10&\"AY\"&B16","v":"UltCY2017AY2017"},{"$f":"G16","v":0},{"$f":"\"CATPaidCY\"&L$10&\"AY\"&B37","v":"CATPaidCY2022AY2020"},{"$f":"M37","v":0}]
[null,"Years in Which",14,15,16,17,18,19,20,21,22,23,"Catastrophe",null,null,null,{"$f":"\"UltCY\"&H$10&\"AY\"&B11","v":"UltCY2018AYPrior"},{"$f":"H11","v":0},{"$f":"\"CATPaidCY\"&L$10&\"AY\"&B38","v":"CATPaidCY2022AY2021"},{"$f":"M38","v":0}]
[null,"Policies Were",null,null,null,null,null,null,null,null,null,null,"Losses",null,null,null,"UltCY2018AY2013",0,{"$f":"\"CATPaidCY\"&L$10&\"AY\"&B39","v":"CATPaidCY2022AY2022"},{"$f":"M39","v":0}]
[null,"Written",{"$f":"D28-1","v":2013},2014,2015,2016,2017,2018,2019,2020,2021,{"$f":"L10","v":2022},{"$f":"L28","v":2022},null,null,null,"UltCY2018AY2014",0,{"$f":"\"CATIBNRCY\"&L$10&\"AY\"&B47","v":"CATIBNRCY2022AYPrior"},{"$f":"M47","v":0}]
["L13","Prior",{"$f":"Import!M15142","v":0},{"$f":"Import!M15144","v":0},{"$f":"Import!M15147","v":0},{"$f":"Import!M15151","v":0},{"$f":"Import!M15156","v":0},{"$f":"Import!M15162","v":0},{"$f":"Import!M15169","v":0},{"$f":"Import!M15177","v":0},{"$f":"Import!M15186","v":0},{"$f":"Import!M15196","v":0},{"$f":"Import!M15207","v":0},null,null,null,"UltCY2018AY2015",0,"CATIBNRCY2022AY2013",0]
["L14",{"$f":"B31-1","v":2013},{"$f":"Import!M15143","v":0},{"$f":"Import!M15145","v":0},{"$f":"Import!M15148","v":0},{"$f":"Import!M15152","v":0},{"$f":"Import!M15157","v":0},{"$f":"Import!M15163","v":0},{"$f":"Import!M15170","v":0},{"$f":"Import!M15178","v":0},{"$f":"Import!M15187","v":0},{"$f":"Import!M15197","v":0},{"$f":"Import!M15208","v":0},null,null,null,"UltCY2018AY2016",0,"CATIBNRCY2022AY2014",0]
["L15",2014,"XXX",{"$f":"Import!M15146","v":0},{"$f":"Import!M15149","v":0},{"$f":"Import!M15153","v":0},{"$f":"Import!M15158","v":0},{"$f":"Import!M15164","v":0},{"$f":"Import!M15171","v":0},{"$f":"Import!M15179","v":0},{"$f":"Import!M15188","v":0},{"$f":"Import!M15198","v":0},{"$f":"Import!M15209","v":0},null,null,null,"UltCY2018AY2017",0,"CATIBNRCY2022AY2015",0]
["L16",2015,"XXX","XXX",{"$f":"Import!M15150","v":0},{"$f":"Import!M15154","v":0},{"$f":"Import!M15159","v":0},{"$f":"Import!M15165","v":0},{"$f":"Import!M15172","v":0},{"$f":"Import!M15180","v":0},{"$f":"Import!M15189","v":0},{"$f":"Import!M15199","v":0},{"$f":"Import!M15210","v":0},null,null,null,"UltCY2018AY2018",0,"CATIBNRCY2022AY2016",0]
["L17",2016,"XXX","XXX","XXX",{"$f":"Import!M15155","v":0},{"$f":"Import!M15160","v":0},{"$f":"Import!M15166","v":0},{"$f":"Import!M15173","v":0},{"$f":"Import!M15181","v":0},{"$f":"Import!M15190","v":0},{"$f":"Import!M15200","v":0},{"$f":"Import!M15211","v":0},null,null,null,{"$f":"\"UltCY\"&I$10&\"AY\"&B11","v":"UltCY2019AYPrior"},{"$f":"I11","v":0},"CATIBNRCY2022AY2017",0]
["L18",2017,"XXX","XXX","XXX","XXX",{"$f":"Import!M15161","v":0},{"$f":"Import!M15167","v":0},{"$f":"Import!M15174","v":0},{"$f":"Import!M15182","v":0},{"$f":"Import!M15191","v":0},{"$f":"Import!M15201","v":0},{"$f":"Import!M15212","v":0},null,null,null,"UltCY2019AY2013",0,"CATIBNRCY2022AY2018",0]
["L19",2018,"XXX","XXX","XXX","XXX","XXX",{"$f":"Import!M15168","v":0},{"$f":"Import!M15175","v":0},{"$f":"Import!M15183","v":0},{"$f":"Import!M15192","v":0},{"$f":"Import!M15202","v":0},{"$f":"Import!M15213","v":0},null,null,null,"UltCY2019AY2014",0,"CATIBNRCY2022AY2019",0]
["L20",2019,"XXX","XXX","XXX","XXX","XXX","XXX",{"$f":"Import!M15176","v":0},{"$f":"Import!M15184","v":0},{"$f":"Import!M15193","v":0},{"$f":"Import!M15203","v":0},{"$f":"Import!M15214","v":0},null,null,null,"UltCY2019AY2015",0,"CATIBNRCY2022AY2020",0]
["L21",2020,"XXX","XXX","XXX","XXX","XXX","XXX","XXX",{"$f":"Import!M15185","v":0},{"$f":"Import!M15194","v":0},{"$f":"Import!M15204","v":0},{"$f":"Import!M15215","v":0},null,null,null,"UltCY2019AY2016",0,"CATIBNRCY2022AY2021",0]
["L22",2021,"XXX","XXX","XXX","XXX","XXX","XXX","XXX","XXX",{"$f":"Import!M15195","v":0},{"$f":"Import!M15205","v":0},{"$f":"Import!M15216","v":0},null,null,null,"UltCY2019AY2017",0,"CATIBNRCY2022AY2022",0]
["L23",{"$f":"L28","v":2022},"XXX","XXX","XXX","XXX","XXX","XXX","XXX","XXX","XXX",{"$f":"Import!M15206","v":0},{"$f":"Import!M15217","v":0},null,null,null,"UltCY2019AY2018",0]
["L24","Totals",null,null,null,null,null,null,null,null,null,null,{"$f":"SUM(M29:M39)","v":0},null,null,null,"UltCY2019AY2019",0]
[null,null,null,null,null,null,null,null,null,null,null,null,null,null,null,null,{"$f":"\"UltCY\"&J$10&\"AY\"&B11","v":"UltCY2020AYPrior"},{"$f":"J11","v":0}]
[null,null,"BULK & IBNR RESERVES ON NET LOSSES AND ALLOCATED LOSS ADJUSTMENT EXPENSES REPORTED AT YEAR END ($000)",null,null,null,null,null,null,null,null,null,35,null,null,null,{"$f":"\"UltCY\"&J$10&\"AY\"&B13","v":"UltCY2020AY2014"},{"$f":"J13","v":0}]
[null,null,null,null,null,null,null,null,null,null,null,null,"Losses",null,null,null,"UltCY2020AY2015",0]
[null,"Years in Which",25,26,27,28,29,30,31,32,33,34,"Bulk & IBNR",null,null,null,"UltCY2020AY2016",0]
[null,"Policies Were",null,null,null,null,null,null,null,null,null,null,"Reserves",null,null,null,"UltCY2020AY2017",0]
[null,"Written",{"$f":"D46-1","v":2013},2014,2015,2016,2017,2018,2019,2020,2021,{"$f":"L28","v":2022},{"$f":"L46","v":2022},null,null,null,"UltCY2020AY2018",0]
["L25","Prior",{"$f":"Import!M15218","v":0},{"$f":"Import!M15220","v":0},{"$f":"Import!M15223","v":0},{"$f":"Import!M15227","v":0},{"$f":"Import!M15232","v":0},{"$f":"Import!M15238","v":0},{"$f":"Import!M15245","v":0},{"$f":"Import!M15253","v":0},{"$f":"Import!M15262","v":0},{"$f":"Import!M15272","v":0},{"$f":"Import!M15283","v":0},null,null,null,"UltCY2020AY2019",0]
["L26",{"$f":"B49-1","v":2013},{"$f":"Import!M15219","v":0},{"$f":"Import!M15221","v":0},{"$f":"Import!M15224","v":0},{"$f":"Import!M15228","v":0},{"$f":"Import!M15233","v":0},{"$f":"Import!M15239","v":0},{"$f":"Import!M15246","v":0},{"$f":"Import!M15254","v":0},{"$f":"Import!M15263","v":0},{"$f":"Import!M15273","v":0},{"$f":"Import!M15284","v":0},null,null,null,"UltCY2020AY2020",0]
["L27",2014,"XXX",{"$f":"Import!M15222","v":0},{"$f":"Import!M15225","v":0},{"$f":"Import!M15229","v":0},{"$f":"Import!M15234","v":0},{"$f":"Import!M15240","v":0},{"$f":"Import!M15247","v":0},{"$f":"Import!M15255","v":0},{"$f":"Import!M15264","v":0},{"$f":"Import!M15274","v":0},{"$f":"Import!M15285","v":0},null,null,null,{"$f":"\"UltCY\"&K$10&\"AY\"&B11","v":"UltCY2021AYPrior"},{"$f":"K11","v":0}]
["L28",2015,"XXX","XXX",{"$f":"Import!M15226","v":0},{"$f":"Import!M15230","v":0},{"$f":"Import!M15235","v":0},{"$f":"Import!M15241","v":0},{"$f":"Import!M15248","v":0},{"$f":"Import!M15256","v":0},{"$f":"Import!M15265","v":0},{"$f":"Import!M15275","v":0},{"$f":"Import!M15286","v":0},null,null,null,"UltCY2021AY2013",0]
["L29",2016,"XXX","XXX","XXX",{"$f":"Import!M15231","v":0},{"$f":"Import!M15236","v":0},{"$f":"Import!M15242","v":0},{"$f":"Import!M15249","v":0},{"$f":"Import!M15257","v":0},{"$f":"Import!M15266","v":0},{"$f":"Import!M15276","v":0},{"$f":"Import!M15287","v":0},null,null,null,"UltCY2021AY2014",0]
["L30",2017,"XXX","XXX","XXX","XXX",{"$f":"Import!M15237","v":0},{"$f":"Import!M15243","v":0},{"$f":"Import!M15250","v":0},{"$f":"Import!M15258","v":0},{"$f":"Import!M15267","v":0},{"$f":"Import!M15277","v":0},{"$f":"Import!M15288","v":0},null,null,null,"UltCY2021AY2015",0]
["L31",2018,"XXX","XXX","XXX","XXX","XXX",{"$f":"Import!M15244","v":0},{"$f":"Import!M15251","v":0},{"$f":"Import!M15259","v":0},{"$f":"Import!M15268","v":0},{"$f":"Import!M15278","v":0},{"$f":"Import!M15289","v":0},null,null,null,"UltCY2021AY2016",0]
["L32",2019,"XXX","XXX","XXX","XXX","XXX","XXX",{"$f":"Import!M15252","v":0},{"$f":"Import!M15260","v":0},{"$f":"Import!M15269","v":0},{"$f":"Import!M15279","v":0},{"$f":"Import!M15290","v":0},null,null,null,"UltCY2021AY2017",0]
["L33",2020,"XXX","XXX","XXX","XXX","XXX","XXX","XXX",{"$f":"Import!M15261","v":0},{"$f":"Import!M15270","v":0},{"$f":"Import!M15280","v":0},{"$f":"Import!M15291","v":0},null,null,null,"UltCY2021AY2018",0]
["L34",2021,"XXX","XXX","XXX","XXX","XXX","XXX","XXX","XXX",{"$f":"Import!M15271","v":0},{"$f":"Import!M15281","v":0},{"$f":"Import!M15292","v":0},null,null,null,"UltCY2021AY2019",0]
["L35",{"$f":"L46","v":2022},"XXX","XXX","XXX","XXX","XXX","XXX","XXX","XXX","XXX",{"$f":"Import!M15282","v":0},{"$f":"Import!M15293","v":0},null,null,null,"UltCY2021AY2020",0]
["L36","Totals",null,null,null,null,null,null,null,null,null,null,{"$f":"SUM(M47:M57)","v":0},null,null,null,"UltCY2021AY2021",0]
[null,null,null,null,null,null,null,null,null,null,null,null,null,null,null,null,{"$f":"\"UltCY\"&L$10&\"AY\"&B11","v":"UltCY2022AYPrior"},{"$f":"L11","v":0}]
[null,null,36,37,38,39,"Unallocated Loss",null,null,42,43,44,45,null,null,null,{"$f":"\"UltCY\"&L$10&\"AY\"&B13","v":"UltCY2022AY2014"},{"$f":"L13","v":0}]
[null,"Years in Which",null,null,null,null,"Adjustment Expenses",null,null,null,null,null,null,null,null,null,"UltCY2022AY2015",0]
[null,"Premiums",null,null,null,null,40,41,null,null,null,null,null,null,null,null,"UltCY2022AY2016",0]
[null,"Were",null,null,null,null,null,null,null,"Commission and","General and",null,null,null,null,null,"UltCY2022AY2017",0]
[null,"Earned and","Gross","Gross","Net","Net",null,null,null,"Brokerage","Administrative","Personnel","Other",null,null,null,"UltCY2022AY2018",0]
[null,"Losses Were","Premiums","Premiums","Premiums","Premiums",null,null,"Calendar","Expense","Expense","Costs","Expense",null,null,null,"UltCY2022AY2019",0]
[null,"Incurred","Written","Earned","Written","Earned","Paid","Incurred","Year","(Form 2A, Line 9)","(Form 2A, Line 10)","(Form 2A, Line 11)","(Form 2A, Line 12)",null,null,null,"UltCY2022AY2020",0]
["L37","Prior","XXX",{"$f":"C67","v":"XXX"},"XXX",{"$f":"E67","v":"XXX"},{"$f":"Import!M15338","v":0},{"$f":"Import!M15349","v":0},"Prior",{"$f":"Import!M15360","v":0},{"$f":"Import!M15371","v":0},{"$f":"Import!M15382","v":0},{"$f":"Import!M15393","v":0},null,null,null,"UltCY2022AY2021",0]
["L38",{"$f":"B69-1","v":2013},{"$f":"Import!M15295","v":0},{"$f":"Import!M15306","v":0},{"$f":"Import!M15317","v":0},{"$f":"Import!M15328","v":0},{"$f":"Import!M15339","v":0},{"$f":"Import!M15350","v":0},{"$f":"B68","v":2013},{"$f":"Import!M15361","v":0},{"$f":"Import!M15372","v":0},{"$f":"Import!M15383","v":0},{"$f":"Import!M15394","v":0},null,null,null,"UltCY2022AY2022",0]
["L39",2014,{"$f":"Import!M15296","v":0},{"$f":"Import!M15307","v":0},{"$f":"Import!M15318","v":0},{"$f":"Import!M15329","v":0},{"$f":"Import!M15340","v":0},{"$f":"Import!M15351","v":0},2014,{"$f":"Import!M15362","v":0},{"$f":"Import!M15373","v":0},{"$f":"Import!M15384","v":0},{"$f":"Import!M15395","v":0},null,null,null,{"$f":"\"PaidCY\"&C$10&\"AY\"&B29","v":"PaidCY2013AYPrior"},{"$f":"C29","v":0}]
["L40",2015,{"$f":"Import!M15297","v":0},{"$f":"Import!M15308","v":0},{"$f":"Import!M15319","v":0},{"$f":"Import!M15330","v":0},{"$f":"Import!M15341","v":0},{"$f":"Import!M15352","v":0},2015,{"$f":"Import!M15363","v":0},{"$f":"Import!M15374","v":0},{"$f":"Import!M15385","v":0},{"$f":"Import!M15396","v":0},null,null,null,{"$f":"\"PaidCY\"&C$10&\"AY\"&B30","v":"PaidCY2013AY2013"},{"$f":"C30","v":0}]
["L41",2016,{"$f":"Import!M15298","v":0},{"$f":"Import!M15309","v":0},{"$f":"Import!M15320","v":0},{"$f":"Import!M15331","v":0},{"$f":"Import!M15342","v":0},{"$f":"Import!M15353","v":0},2016,{"$f":"Import!M15364","v":0},{"$f":"Import!M15375","v":0},{"$f":"Import!M15386","v":0},{"$f":"Import!M15397","v":0},null,null,null,{"$f":"\"PaidCY\"&D$10&\"AY\"&B29","v":"PaidCY2014AYPrior"},{"$f":"D29","v":0}]
["L42",2017,{"$f":"Import!M15299","v":0},{"$f":"Import!M15310","v":0},{"$f":"Import!M15321","v":0},{"$f":"Import!M15332","v":0},{"$f":"Import!M15343","v":0},{"$f":"Import!M15354","v":0},2017,{"$f":"Import!M15365","v":0},{"$f":"Import!M15376","v":0},{"$f":"Import!M15387","v":0},{"$f":"Import!M15398","v":0},null,null,null,{"$f":"\"PaidCY\"&D$10&\"AY\"&B30","v":"PaidCY2014AY2013"},{"$f":"D30","v":0}]
["L43",2018,{"$f":"Import!M15300","v":0},{"$f":"Import!M15311","v":0},{"$f":"Import!M15322","v":0},{"$f":"Import!M15333","v":0},{"$f":"Import!M15344","v":0},{"$f":"Import!M15355","v":0},2018,{"$f":"Import!M15366","v":0},{"$f":"Import!M15377","v":0},{"$f":"Import!M15388","v":0},{"$f":"Import!M15399","v":0},null,null,null,{"$f":"\"PaidCY\"&D$10&\"AY\"&B31","v":"PaidCY2014AY2014"},{"$f":"D31","v":0}]
["L44",2019,{"$f":"Import!M15301","v":0},{"$f":"Import!M15312","v":0},{"$f":"Import!M15323","v":0},{"$f":"Import!M15334","v":0},{"$f":"Import!M15345","v":0},{"$f":"Import!M15356","v":0},2019,{"$f":"Import!M15367","v":0},{"$f":"Import!M15378","v":0},{"$f":"Import!M15389","v":0},{"$f":"Import!M15400","v":0},null,null,null,{"$f":"\"PaidCY\"&E$10&\"AY\"&B29","v":"PaidCY2015AYPrior"},{"$f":"E29","v":0}]
["L45",2020,{"$f":"Import!M15302","v":0},{"$f":"Import!M15313","v":0},{"$f":"Import!M15324","v":0},{"$f":"Import!M15335","v":0},{"$f":"Import!M15346","v":0},{"$f":"Import!M15357","v":0},2020,{"$f":"Import!M15368","v":0},{"$f":"Import!M15379","v":0},{"$f":"Import!M15390","v":0},{"$f":"Import!M15401","v":0},null,null,null,{"$f":"\"PaidCY\"&E$10&\"AY\"&B30","v":"PaidCY2015AY2013"},{"$f":"E30","v":0}]
["L46",2021,{"$f":"Import!M15303","v":0},{"$f":"Import!M15314","v":0},{"$f":"Import!M15325","v":0},{"$f":"Import!M15336","v":0},{"$f":"Import!M15347","v":0},{"$f":"Import!M15358","v":0},2021,{"$f":"Import!M15369","v":0},{"$f":"Import!M15380","v":0},{"$f":"Import!M15391","v":0},{"$f":"Import!M15402","v":0},null,null,null,{"$f":"\"PaidCY\"&E$10&\"AY\"&B31","v":"PaidCY2015AY2014"},{"$f":"E31","v":0}]
["L47",{"$f":"B39","v":2022},{"$f":"Import!M15304","v":0},{"$f":"Import!M15315","v":0},{"$f":"Import!M15326","v":0},{"$f":"Import!M15337","v":0},{"$f":"Import!M15348","v":0},{"$f":"Import!M15359","v":0},2022,{"$f":"Import!M15370","v":0},{"$f":"Import!M15381","v":0},{"$f":"Import!M15392","v":0},{"$f":"Import!M15403","v":0},null,null,null,{"$f":"\"PaidCY\"&E$10&\"AY\"&B32","v":"PaidCY2015AY2015"},{"$f":"E32","v":0}]
["L48","Totals","XXX",{"$f":"C78","v":"XXX"},"XXX",{"$f":"E78","v":"XXX"},{"$f":"SUM(G67:G77)","v":0},{"$f":"SUM(H67:H77)","v":0},"Totals",{"$f":"SUM(J67:J77)","v":0},{"$f":"SUM(K67:K77)","v":0},{"$f":"SUM(L67:L77)","v":0},{"$f":"SUM(M67:M77)","v":0},null,null,null,{"$f":"\"PaidCY\"&F$10&\"AY\"&B29","v":"PaidCY2016AYPrior"},{"$f":"F29","v":0}]
[null,null,null,null,null,null,null,null,null,null,null,null,null,null,null,null,{"$f":"\"PaidCY\"&F$10&\"AY\"&B30","v":"PaidCY2016AY2013"},{"$f":"F30","v":0}]
[null,"COMMENTS",null,null,null,null,null,null,null,null,null,null,null,null,null,null,{"$f":"\"PaidCY\"&F$10&\"AY\"&B31","v":"PaidCY2016AY2014"},{"$f":"F31","v":0}]
[null,{"$f":"Import!M15404","v":0},null,null,null,null,null,null,null,null,null,null,null,null,null,null,{"$f":"\"PaidCY\"&G$10&\"AY\"&B30","v":"PaidCY2017AY2013"},{"$f":"G30","v":0}]
[null,null,null,null,null,null,null,null,null,null,null,null,null,null,null,null,{"$f":"\"PaidCY\"&G$10&\"AY\"&B31","v":"PaidCY2017AY2014"},{"$f":"G31","v":0}]
[null,null,null,null,null,null,null,null,null,null,null,null,null,null,null,null,{"$f":"\"PaidCY\"&G$10&\"AY\"&B32","v":"PaidCY2017AY2015"},{"$f":"G32","v":0}]
[null,null,null,null,null,null,null,null,null,null,null,null,null,null,null,null,{"$f":"\"PaidCY\"&G$10&\"AY\"&B34","v":"PaidCY2017AY2017"},{"$f":"G34","v":0}]
[]
[]
[]
[]
[]
[]
[]
[null,null,"Accident Year",null,null,null,null,null,null,null,null,null,null,null,null,null,{"$f":"\"PaidCY\"&I$10&\"AY\"&B29","v":"PaidCY2019AYPrior"},{"$f":"I29","v":0}]
[null,null,"Underwriting Year",null,null,null,null,null,null,null,null,null,null,null,null,null,"PaidCY2019AY2013",0]
[null,null,null,null,null,null,null,null,null,null,null,null,null,null,null,null,"PaidCY2019AY2014",0]

{"sheet":"Schedule XI(b)","index":81,"n_rows":30,"n_cols":6,"rows_kept":30,"cut":false,"hidden":true,"merged":[[5,1,5,5],[0,1,0,4],[2,1,2,2]]}
[null,"SCHEDULE OF RECONCILIATION OF NET LOSS RESERVES BY LINES OF BUSINESS (COMBINED FOR ALL LINES)",null,null,null,{"$f":"HYPERLINK(\"#'Index'!A1\",\"Return to Index\")","v":"Return to Index"}]
[null,{"$f":"'Company Information'!C7","v":"Enter Company Name"}]
[null,{"$f":"'Company Information'!C3","v":"2022-12-31"},null,null,null,"SCHEDULE XI(b) (EBS)"]
[null,{"$f":"\"expressed in\"& IF(1000>1,\" ['\"&MID(1000,2,LEN(1000))&\"s]\",\"\")","v":"expressed in ['000s]"},{"$f":"'Form 1EBS'!$C$4","v":"United States Dollars"}]
[]
[null,"Note:  The insurer shall provide a reconciliation of its beginning and ending net loss reserve balances for the 8 statutory lines of business, as an alternative to the loss triangles - Schedule XI(a)."]
[]
[null,null,null,{"$f":"'Form 1EBS'!F7","v":"2022-12-31"},null,{"$f":"'Form 1EBS'!H7","v":"2021-12-31"}]
[]
[null,"Net best estimate loss and loss expense provisions at start of year",null,{"$f":"'Sch XI(b)(i)'!D10+'Sch XI(b)(ii)'!D10+'Sch XI(b)(iii)'!D10+'Sch XI(b)(iv)'!D10+'Sch XI(b)(v)'!D10+'Sch XI(b)(vi)'!D10+'Sch XI(b)(vii)'!D10+'Sch XI(b)(viii)'!D10","v":0},null,{"$f":"'Sch XI(b)(i)'!F10+'Sch XI(b)(ii)'!F10+'Sch XI(b)(iii)'!F10+'Sch XI(b)(iv)'!F10+'Sch XI(b)(v)'!F10+'Sch XI(b)(vi)'!F10+'Sch XI(b)(vii)'!F10+'Sch XI(b)(viii)'!F10","v":0}]
[]
[null,"Unwind of discount (start year discount curve)",null,{"$f":"'Sch XI(b)(i)'!D12+'Sch XI(b)(ii)'!D12+'Sch XI(b)(iii)'!D12+'Sch XI(b)(iv)'!D12+'Sch XI(b)(v)'!D12+'Sch XI(b)(vi)'!D12+'Sch XI(b)(vii)'!D12+'Sch XI(b)(viii)'!D12","v":0},null,{"$f":"'Sch XI(b)(i)'!F12+'Sch XI(b)(ii)'!F12+'Sch XI(b)(iii)'!F12+'Sch XI(b)(iv)'!F12+'Sch XI(b)(v)'!F12+'Sch XI(b)(vi)'!F12+'Sch XI(b)(vii)'!F12+'Sch XI(b)(viii)'!F12","v":0}]
[null,"Net losses and loss expenses paid or payable related to prior years",null,{"$f":"'Sch XI(b)(i)'!D13+'Sch XI(b)(ii)'!D13+'Sch XI(b)(iii)'!D13+'Sch XI(b)(iv)'!D13+'Sch XI(b)(v)'!D13+'Sch XI(b)(vi)'!D13+'Sch XI(b)(vii)'!D13+'Sch XI(b)(viii)'!D13","v":0},null,{"$f":"'Sch XI(b)(i)'!F13+'Sch XI(b)(ii)'!F13+'Sch XI(b)(iii)'!F13+'Sch XI(b)(iv)'!F13+'Sch XI(b)(v)'!F13+'Sch XI(b)(vi)'!F13+'Sch XI(b)(vii)'!F13+'Sch XI(b)(viii)'!F13","v":0}]
[null,"Net losses incurred and net loss expenses incurred related to prior years",null,{"$f":"'Sch XI(b)(i)'!D14+'Sch XI(b)(ii)'!D14+'Sch XI(b)(iii)'!D14+'Sch XI(b)(iv)'!D14+'Sch XI(b)(v)'!D14+'Sch XI(b)(vi)'!D14+'Sch XI(b)(vii)'!D14+'Sch XI(b)(viii)'!D14","v":0},null,{"$f":"'Sch XI(b)(i)'!F14+'Sch XI(b)(ii)'!F14+'Sch XI(b)(iii)'!F14+'Sch XI(b)(iv)'!F14+'Sch XI(b)(v)'!F14+'Sch XI(b)(vi)'!F14+'Sch XI(b)(vii)'!F14+'Sch XI(b)(viii)'!F14","v":0}]
[null,"Undiscounted net best estimate loss and loss expense provisions at end of year related to prior years.",null,{"$f":"'Sch XI(b)(i)'!D15+'Sch XI(b)(ii)'!D15+'Sch XI(b)(iii)'!D15+'Sch XI(b)(iv)'!D15+'Sch XI(b)(v)'!D15+'Sch XI(b)(vi)'!D15+'Sch XI(b)(vii)'!D15+'Sch XI(b)(viii)'!D15","v":0},null,{"$f":"'Sch XI(b)(i)'!F15+'Sch XI(b)(ii)'!F15+'Sch XI(b)(iii)'!F15+'Sch XI(b)(iv)'!F15+'Sch XI(b)(v)'!F15+'Sch XI(b)(vi)'!F15+'Sch XI(b)(vii)'!F15+'Sch XI(b)(viii)'!F15","v":0}]
[]
[null,"Net losses incurred and net loss expenses incurred related to current year",null,{"$f":"'Sch XI(b)(i)'!D17+'Sch XI(b)(ii)'!D17+'Sch XI(b)(iii)'!D17+'Sch XI(b)(iv)'!D17+'Sch XI(b)(v)'!D17+'Sch XI(b)(vi)'!D17+'Sch XI(b)(vii)'!D17+'Sch XI(b)(viii)'!D17","v":0},null,{"$f":"'Sch XI(b)(i)'!F17+'Sch XI(b)(ii)'!F17+'Sch XI(b)(iii)'!F17+'Sch XI(b)(iv)'!F17+'Sch XI(b)(v)'!F17+'Sch XI(b)(vi)'!F17+'Sch XI(b)(vii)'!F17+'Sch XI(b)(viii)'!F17","v":0}]
[null,"Net losses and loss expenses paid or payable related to current year",null,{"$f":"'Sch XI(b)(i)'!D18+'Sch XI(b)(ii)'!D18+'Sch XI(b)(iii)'!D18+'Sch XI(b)(iv)'!D18+'Sch XI(b)(v)'!D18+'Sch XI(b)(vi)'!D18+'Sch XI(b)(vii)'!D18+'Sch XI(b)(viii)'!D18","v":0},null,{"$f":"'Sch XI(b)(i)'!F18+'Sch XI(b)(ii)'!F18+'Sch XI(b)(iii)'!F18+'Sch XI(b)(iv)'!F18+'Sch XI(b)(v)'!F18+'Sch XI(b)(vi)'!F18+'Sch XI(b)(vii)'!F18+'Sch XI(b)(viii)'!F18","v":0}]
[null,"Foreign exchange and other adjustments",null,{"$f":"'Sch XI(b)(i)'!D19+'Sch XI(b)(ii)'!D19+'Sch XI(b)(iii)'!D19+'Sch XI(b)(iv)'!D19+'Sch XI(b)(v)'!D19+'Sch XI(b)(vi)'!D19+'Sch XI(b)(vii)'!D19+'Sch XI(b)(viii)'!D19","v":0},null,{"$f":"'Sch XI(b)(i)'!F19+'Sch XI(b)(ii)'!F19+'Sch XI(b)(iii)'!F19+'Sch XI(b)(iv)'!F19+'Sch XI(b)(v)'!F19+'Sch XI(b)(vi)'!F19+'Sch XI(b)(vii)'!F19+'Sch XI(b)(viii)'!F19","v":0}]
[null,"Undiscounted net best estimate loss and loss expense provisions at end of year related to current year.",null,{"$f":"'Sch XI(b)(i)'!D20+'Sch XI(b)(ii)'!D20+'Sch XI(b)(iii)'!D20+'Sch XI(b)(iv)'!D20+'Sch XI(b)(v)'!D20+'Sch XI(b)(vi)'!D20+'Sch XI(b)(vii)'!D20+'Sch XI(b)(viii)'!D20","v":0},null,{"$f":"'Sch XI(b)(i)'!F20+'Sch XI(b)(ii)'!F20+'Sch XI(b)(iii)'!F20+'Sch XI(b)(iv)'!F20+'Sch XI(b)(v)'!F20+'Sch XI(b)(vi)'!F20+'Sch XI(b)(vii)'!F20+'Sch XI(b)(viii)'!F20","v":0}]
[]
[null,"Impact of change in discount curve",null,{"$f":"'Sch XI(b)(i)'!D22+'Sch XI(b)(ii)'!D22+'Sch XI(b)(iii)'!D22+'Sch XI(b)(iv)'!D22+'Sch XI(b)(v)'!D22+'Sch XI(b)(vi)'!D22+'Sch XI(b)(vii)'!D22+'Sch XI(b)(viii)'!D22","v":0},null,{"$f":"'Sch XI(b)(i)'!F22+'Sch XI(b)(ii)'!F22+'Sch XI(b)(iii)'!F22+'Sch XI(b)(iv)'!F22+'Sch XI(b)(v)'!F22+'Sch XI(b)(vi)'!F22+'Sch XI(b)(vii)'!F22+'Sch XI(b)(viii)'!F22","v":0}]
[]
[null,"Net best estimate loss and loss expense provisions at end of year",null,{"$f":"D15+D20+D22","v":0},null,{"$f":"F15+F20+F22","v":0}]
[]
[null,null,null,{"$f":"IF(D27=\"TRUE\",HYPERLINK(\"#'Form 1EBS'!F115\",\"TRUE\"),HYPERLINK(\"#'Form 1EBS'!F115\",\"FALSE\"))","v":"TRUE"},null,{"$f":"IF(F27=\"TRUE\",HYPERLINK(\"#'Form 1EBS'!H115\",\"TRUE\"),HYPERLINK(\"#'Form 1EBS'!H115\",\"FALSE\"))","v":"TRUE"}]
[null,null,null,{"$f":"IF(ROUND((D24-'Form 1EBS'!F115),0)=0,\"TRUE\",\"FALSE\")","v":"TRUE"},null,{"$f":"IF(ROUND((F24-'Form 1EBS'!H115),0)=0,\"TRUE\",\"FALSE\")","v":"TRUE"}]
[null,null,null,{"$f":"ROUND('Form 1EBS'!F115-D24,0)","v":0},null,{"$f":"ROUND('Form 1EBS'!H115-F24,0)","v":0}]
[]
[null,null,null,{"$f":"IF(D26=\"False\",\"Does not equal Form 1EBS Line 17(d)\",\"\")","v":""},null,{"$f":"IF(F26=\"False\",\"Does not equal Form 1EBS Line 17(d)\",\"\")","v":""}]

{"sheet":"Sch XI(b)(i)","index":82,"n_rows":24,"n_cols":6,"rows_kept":24,"cut":false,"hidden":true,"merged":[[0,1,0,4],[2,1,2,2]]}
[null,"SCHEDULE OF RECONCILIATION OF NET LOSS RESERVES BY LINES OF BUSINESS \n(LINE 1 - PROPERTY CATASTROPHE)",null,null,null,{"$f":"HYPERLINK(\"#'Index'!A1\",\"Return to Index\")","v":"Return to Index"}]
[null,{"$f":"'Company Information'!C7","v":"Enter Company Name"}]
[null,{"$f":"'Company Information'!C3","v":"2022-12-31"},null,null,null,"SCHEDULE XI(b)(i) (EBS)"]
[null,{"$f":"\"expressed in\"& IF(1000>1,\" ['\"&MID(1000,2,LEN(1000))&\"s]\",\"\")","v":"expressed in ['000s]"},{"$f":"'Form 1EBS'!$C$4","v":"United States Dollars"}]
[]
[]
[]
[null,null,null,{"$f":"'Schedule XI(b)'!D8","v":"2022-12-31"},null,{"$f":"'Schedule XI(b)'!F8","v":"2021-12-31"}]
[]
[null,"Net best estimate loss and loss expense provisions at start of year",null,{"$f":"Import!M15406","v":0},null,{"$f":"Import!O15406","v":0}]
[]
[null,"Unwind of discount (start year discount curve)",null,{"$f":"Import!M15407","v":0},null,{"$f":"Import!O15407","v":0}]
[null,"Net losses and loss expenses paid or payable related to prior years",null,{"$f":"Import!M15408","v":0},null,{"$f":"Import!O15408","v":0}]
[null,"Net losses incurred and net loss expenses incurred related to prior years",null,{"$f":"Import!M15409","v":0},null,{"$f":"Import!O15409","v":0}]
[null,"Undiscounted net best estimate loss and loss expense provisions at end of year related to prior years.",null,{"$f":"SUM(D10:D14)","v":0},null,{"$f":"SUM(F10:F14)","v":0}]
[]
[null,"Net losses incurred and net loss expenses incurred related to current year",null,{"$f":"Import!M15411","v":0},null,{"$f":"Import!O15411","v":0}]
[null,"Net losses and loss expenses paid or payable related to current year",null,{"$f":"Import!M15412","v":0},null,{"$f":"Import!O15412","v":0}]
[null,"Foreign exchange and other adjustments",null,{"$f":"Import!M15413","v":0},null,{"$f":"Import!O15413","v":0}]
[null,"Undiscounted net best estimate loss and loss expense provisions at end of year related to current year.",null,{"$f":"SUM(D17:D19)","v":0},null,{"$f":"SUM(F17:F19)","v":0}]
[]
[null,"Impact of change in discount curve",null,{"$f":"Import!M15415","v":0},null,{"$f":"Import!O15415","v":0}]
[]
[null,"Net best estimate loss and loss expense provisions at end of year",null,{"$f":"D15+D20+D22","v":0},null,{"$f":"F15+F20+F22","v":0}]

{"sheet":"Sch XI(b)(ii)","index":83,"n_rows":24,"n_cols":6,"rows_kept":24,"cut":false,"hidden":true,"merged":[[0,1,0,4]]}
[null,"SCHEDULE OF RECONCILIATION OF NET LOSS RESERVES BY LINES OF BUSINESS\n(LINE 2 - PROPERTY)",null,null,null,{"$f":"HYPERLINK(\"#'Index'!A1\",\"Return to Index\")","v":"Return to Index"}]
[null,{"$f":"'Company Information'!C7","v":"Enter Company Name"}]
[null,{"$f":"'Company Information'!C3","v":"2022-12-31"},null,null,null,"SCHEDULE XI(b)(ii) (EBS)"]
[null,{"$f":"\"expressed in\"& IF(1000>1,\" ['\"&MID(1000,2,LEN(1000))&\"s]\",\"\")","v":"expressed in ['000s]"},{"$f":"'Form 1EBS'!$C$4","v":"United States Dollars"}]
[]
[]
[]
[null,null,null,{"$f":"'Sch XI(b)(i)'!D8","v":"2022-12-31"},null,{"$f":"'Sch XI(b)(i)'!F8","v":"2021-12-31"}]
[]
[null,"Net best estimate loss and loss expense provisions at start of year",null,{"$f":"Import!M15417","v":0},null,{"$f":"Import!O15417","v":0}]
[]
[null,"Unwind of discount (start year discount curve)",null,{"$f":"Import!M15418","v":0},null,{"$f":"Import!O15418","v":0}]
[null,"Net losses and loss expenses paid or payable related to prior years",null,{"$f":"Import!M15419","v":0},null,{"$f":"Import!O15419","v":0}]
[null,"Net losses incurred and net loss expenses incurred related to prior years",null,{"$f":"Import!M15420","v":0},null,{"$f":"Import!O15420","v":0}]
[null,"Undiscounted net best estimate loss and loss expense provisions at end of year related to prior years.",null,{"$f":"SUM(D10:D14)","v":0},null,{"$f":"SUM(F10:F14)","v":0}]
[]
[null,"Net losses incurred and net loss expenses incurred related to current year",null,{"$f":"Import!M15422","v":0},null,{"$f":"Import!O15422","v":0}]
[null,"Net losses and loss expenses paid or payable related to current year",null,{"$f":"Import!M15423","v":0},null,{"$f":"Import!O15423","v":0}]
[null,"Foreign exchange and other adjustments",null,{"$f":"Import!M15424","v":0},null,{"$f":"Import!O15424","v":0}]
[null,"Undiscounted net best estimate loss and loss expense provisions at end of year related to current year.",null,{"$f":"SUM(D17:D19)","v":0},null,{"$f":"SUM(F17:F19)","v":0}]
[]
[null,"Impact of change in discount curve",null,{"$f":"Import!M15426","v":0},null,{"$f":"Import!O15426","v":0}]
[]
[null,"Net best estimate loss and loss expense provisions at end of year",null,{"$f":"D15+D20+D22","v":0},null,{"$f":"F15+F20+F22","v":0}]

{"sheet":"Sch XI(b)(iii)","index":84,"n_rows":24,"n_cols":6,"rows_kept":24,"cut":false,"hidden":true,"merged":[[0,1,0,4]]}
[null,"SCHEDULE OF RECONCILIATION OF NET LOSS RESERVES BY LINES OF BUSINESS\n(LINE 3 - PROPERTY NON-PROPORTIONAL)",null,null,null,{"$f":"HYPERLINK(\"#'Index'!A1\",\"Return to Index\")","v":"Return to Index"}]
[null,{"$f":"'Company Information'!C7","v":"Enter Company Name"}]
[null,{"$f":"'Company Information'!C3","v":"2022-12-31"},null,null,null,"SCHEDULE XI(b)(iii) (EBS)"]
[null,{"$f":"\"expressed in\"& IF(1000>1,\" ['\"&MID(1000,2,LEN(1000))&\"s]\",\"\")","v":"expressed in ['000s]"},{"$f":"'Form 1EBS'!$C$4","v":"United States Dollars"}]
[]
[]
[]
[null,null,null,{"$f":"'Sch XI(b)(i)'!D8","v":"2022-12-31"},null,{"$f":"'Sch XI(b)(i)'!F8","v":"2021-12-31"}]
[]
[null,"Net best estimate loss and loss expense provisions at start of year",null,{"$f":"Import!M15428","v":0},null,{"$f":"Import!O15428","v":0}]
[]
[null,"Unwind of discount (start year discount curve)",null,{"$f":"Import!M15429","v":0},null,{"$f":"Import!O15429","v":0}]
[null,"Net losses and loss expenses paid or payable related to prior years",null,{"$f":"Import!M15430","v":0},null,{"$f":"Import!O15430","v":0}]
[null,"Net losses incurred and net loss expenses incurred related to prior years",null,{"$f":"Import!M15431","v":0},null,{"$f":"Import!O15431","v":0}]
[null,"Undiscounted net best estimate loss and loss expense provisions at end of year related to prior years.",null,{"$f":"SUM(D10:D14)","v":0},null,{"$f":"SUM(F10:F14)","v":0}]
[]
[null,"Net losses incurred and net loss expenses incurred related to current year",null,{"$f":"Import!M15433","v":0},null,{"$f":"Import!O15433","v":0}]
[null,"Net losses and loss expenses paid or payable related to current year",null,{"$f":"Import!M15434","v":0},null,{"$f":"Import!O15434","v":0}]
[null,"Foreign exchange and other adjustments",null,{"$f":"Import!M15435","v":0},null,{"$f":"Import!O15435","v":0}]
[null,"Undiscounted net best estimate loss and loss expense provisions at end of year related to current year.",null,{"$f":"SUM(D17:D19)","v":0},null,{"$f":"SUM(F17:F19)","v":0}]
[]
[null,"Impact of change in discount curve",null,{"$f":"Import!M15437","v":0},null,{"$f":"Import!O15437","v":0}]
[]
[null,"Net best estimate loss and loss expense provisions at end of year",null,{"$f":"D15+D20+D22","v":0},null,{"$f":"F15+F20+F22","v":0}]

{"sheet":"Sch XI(b)(iv)","index":85,"n_rows":24,"n_cols":6,"rows_kept":24,"cut":false,"hidden":true,"merged":[[0,1,0,4]]}
[null,"SCHEDULE OF RECONCILIATION OF NET LOSS RESERVES BY LINES OF BUSINESS \n(LINE 4 - CASUALTY)",null,null,null,{"$f":"HYPERLINK(\"#'Index'!A1\",\"Return to Index\")","v":"Return to Index"}]
[null,{"$f":"'Company Information'!C7","v":"Enter Company Name"}]
[null,{"$f":"'Company Information'!C3","v":"2022-12-31"},null,null,null,"SCHEDULE XI(b)(iv) (EBS)"]
[null,{"$f":"\"expressed in\"& IF(1000>1,\" ['\"&MID(1000,2,LEN(1000))&\"s]\",\"\")","v":"expressed in ['000s]"},{"$f":"'Form 1EBS'!$C$4","v":"United States Dollars"}]
[]
[]
[]
[null,null,null,{"$f":"'Sch XI(b)(i)'!D8","v":"2022-12-31"},null,{"$f":"'Sch XI(b)(i)'!F8","v":"2021-12-31"}]
[]
[null,"Net best estimate loss and loss expense provisions at start of year",null,{"$f":"Import!M15439","v":0},null,{"$f":"Import!O15439","v":0}]
[]
[null,"Unwind of discount (start year discount curve)",null,{"$f":"Import!M15440","v":0},null,{"$f":"Import!O15440","v":0}]
[null,"Net losses and loss expenses paid or payable related to prior years",null,{"$f":"Import!M15441","v":0},null,{"$f":"Import!O15441","v":0}]
[null,"Net losses incurred and net loss expenses incurred related to prior years",null,{"$f":"Import!M15442","v":0},null,{"$f":"Import!O15442","v":0}]
[null,"Undiscounted net best estimate loss and loss expense provisions at end of year related to prior years.",null,{"$f":"SUM(D10:D14)","v":0},null,{"$f":"SUM(F10:F14)","v":0}]
[]
[null,"Net losses incurred and net loss expenses incurred related to current year",null,{"$f":"Import!M15444","v":0},null,{"$f":"Import!O15444","v":0}]
[null,"Net losses and loss expenses paid or payable related to current year",null,{"$f":"Import!M15445","v":0},null,{"$f":"Import!O15445","v":0}]
[null,"Foreign exchange and other adjustments",null,{"$f":"Import!M15446","v":0},null,{"$f":"Import!O15446","v":0}]
[null,"Undiscounted net best estimate loss and loss expense provisions at end of year related to current year.",null,{"$f":"SUM(D17:D19)","v":0},null,{"$f":"SUM(F17:F19)","v":0}]
[]
[null,"Impact of change in discount curve",null,{"$f":"Import!M15448","v":0},null,{"$f":"Import!O15448","v":0}]
[]
[null,"Net best estimate loss and loss expense provisions at end of year",null,{"$f":"D15+D20+D22","v":0},null,{"$f":"F15+F20+F22","v":0}]

{"sheet":"Sch XI(b)(v)","index":86,"n_rows":24,"n_cols":6,"rows_kept":24,"cut":false,"hidden":true,"merged":[[0,1,0,4]]}
[null,"SCHEDULE OF RECONCILIATION OF NET LOSS RESERVES BY LINES OF BUSINESS \n(LINE 5 - CASUALTY NON-PROPORTIONAL)",null,null,null,{"$f":"HYPERLINK(\"#'Index'!A1\",\"Return to Index\")","v":"Return to Index"}]
[null,{"$f":"'Company Information'!C7","v":"Enter Company Name"}]
[null,{"$f":"'Company Information'!C3","v":"2022-12-31"},null,null,null,"SCHEDULE XI(b)(v) (EBS)"]
[null,{"$f":"\"expressed in\"& IF(1000>1,\" ['\"&MID(1000,2,LEN(1000))&\"s]\",\"\")","v":"expressed in ['000s]"},{"$f":"'Form 1EBS'!$C$4","v":"United States Dollars"}]
[]
[]
[]
[null,null,null,{"$f":"'Sch XI(b)(i)'!D8","v":"2022-12-31"},null,{"$f":"'Sch XI(b)(i)'!F8","v":"2021-12-31"}]
[]
[null,"Net best estimate loss and loss expense provisions at start of year",null,{"$f":"Import!M15450","v":0},null,{"$f":"Import!O15450","v":0}]
[]
[null,"Unwind of discount (start year discount curve)",null,{"$f":"Import!M15451","v":0},null,{"$f":"Import!O15451","v":0}]
[null,"Net losses and loss expenses paid or payable related to prior years",null,{"$f":"Import!M15452","v":0},null,{"$f":"Import!O15452","v":0}]
[null,"Net losses incurred and net loss expenses incurred related to prior years",null,{"$f":"Import!M15453","v":0},null,{"$f":"Import!O15453","v":0}]
[null,"Undiscounted net best estimate loss and loss expense provisions at end of year related to prior years.",null,{"$f":"SUM(D10:D14)","v":0},null,{"$f":"SUM(F10:F14)","v":0}]
[]
[null,"Net losses incurred and net loss expenses incurred related to current year",null,{"$f":"Import!M15455","v":0},null,{"$f":"Import!O15455","v":0}]
[null,"Net losses and loss expenses paid or payable related to current year",null,{"$f":"Import!M15456","v":0},null,{"$f":"Import!O15456","v":0}]
[null,"Foreign exchange and other adjustments",null,{"$f":"Import!M15457","v":0},null,{"$f":"Import!O15457","v":0}]
[null,"Undiscounted net best estimate loss and loss expense provisions at end of year related to current year.",null,{"$f":"SUM(D17:D19)","v":0},null,{"$f":"SUM(F17:F19)","v":0}]
[]
[null,"Impact of change in discount curve",null,{"$f":"Import!M15459","v":0},null,{"$f":"Import!O15459","v":0}]
[]
[null,"Net best estimate loss and loss expense provisions at end of year",null,{"$f":"D15+D20+D22","v":0},null,{"$f":"F15+F20+F22","v":0}]

{"sheet":"Sch XI(b)(vi)","index":87,"n_rows":24,"n_cols":6,"rows_kept":24,"cut":false,"hidden":true,"merged":[[0,1,0,4]]}
[null,"SCHEDULE OF RECONCILIATION OF NET LOSS RESERVES BY LINES OF BUSINESS \n(LINE 6 - FINANCIAL LINES)",null,null,null,{"$f":"HYPERLINK(\"#'Index'!A1\",\"Return to Index\")","v":"Return to Index"}]
[null,{"$f":"'Company Information'!C7","v":"Enter Company Name"}]
[null,{"$f":"'Company Information'!C3","v":"2022-12-31"},null,null,null,"SCHEDULE XI(b)(vi) (EBS)"]
[null,{"$f":"\"expressed in\"& IF(1000>1,\" ['\"&MID(1000,2,LEN(1000))&\"s]\",\"\")","v":"expressed in ['000s]"},{"$f":"'Form 1EBS'!$C$4","v":"United States Dollars"}]
[]
[]
[]
[null,null,null,{"$f":"'Sch XI(b)(i)'!D8","v":"2022-12-31"},null,{"$f":"'Sch XI(b)(i)'!F8","v":"2021-12-31"}]
[]
[null,"Net best estimate loss and loss expense provisions at start of year",null,{"$f":"Import!M15461","v":0},null,{"$f":"Import!O15461","v":0}]
[]
[null,"Unwind of discount (start year discount curve)",null,{"$f":"Import!M15462","v":0},null,{"$f":"Import!O15462","v":0}]
[null,"Net losses and loss expenses paid or payable related to prior years",null,{"$f":"Import!M15463","v":0},null,{"$f":"Import!O15463","v":0}]
[null,"Net losses incurred and net loss expenses incurred related to prior years",null,{"$f":"Import!M15464","v":0},null,{"$f":"Import!O15464","v":0}]
[null,"Undiscounted net best estimate loss and loss expense provisions at end of year related to prior years.",null,{"$f":"SUM(D10:D14)","v":0},null,{"$f":"SUM(F10:F14)","v":0}]
[]
[null,"Net losses incurred and net loss expenses incurred related to current year",null,{"$f":"Import!M15466","v":0},null,{"$f":"Import!O15466","v":0}]
[null,"Net losses and loss expenses paid or payable related to current year",null,{"$f":"Import!M15467","v":0},null,{"$f":"Import!O15467","v":0}]
[null,"Foreign exchange and other adjustments",null,{"$f":"Import!M15468","v":0},null,{"$f":"Import!O15468","v":0}]
[null,"Undiscounted net best estimate loss and loss expense provisions at end of year related to current year.",null,{"$f":"SUM(D17:D19)","v":0},null,{"$f":"SUM(F17:F19)","v":0}]
[]
[null,"Impact of change in discount curve",null,{"$f":"Import!M15470","v":0},null,{"$f":"Import!O15470","v":0}]
[]
[null,"Net best estimate loss and loss expense provisions at end of year",null,{"$f":"D15+D20+D22","v":0},null,{"$f":"F15+F20+F22","v":0}]

{"sheet":"Sch XI(b)(vii)","index":88,"n_rows":24,"n_cols":6,"rows_kept":24,"cut":false,"hidden":true,"merged":[[0,1,0,4]]}
[null,"SCHEDULE OF RECONCILIATION OF NET LOSS RESERVES BY LINES OF BUSINESS \n(LINE 7 - OTHER SPECIALTY LINES)",null,null,null,{"$f":"HYPERLINK(\"#'Index'!A1\",\"Return to Index\")","v":"Return to Index"}]
[null,{"$f":"'Company Information'!C7","v":"Enter Company Name"}]
[null,{"$f":"'Company Information'!C3","v":"2022-12-31"},null,null,null,"SCHEDULE XI(b)(vii) (EBS)"]
[null,{"$f":"\"expressed in\"& IF(1000>1,\" ['\"&MID(1000,2,LEN(1000))&\"s]\",\"\")","v":"expressed in ['000s]"},{"$f":"'Form 1EBS'!$C$4","v":"United States Dollars"}]
[]
[]
[]
[null,null,null,{"$f":"'Sch XI(b)(i)'!D8","v":"2022-12-31"},null,{"$f":"'Sch XI(b)(i)'!F8","v":"2021-12-31"}]
[]
[null,"Net best estimate loss and loss expense provisions at start of year",null,{"$f":"Import!M15472","v":0},null,{"$f":"Import!O15472","v":0}]
[]
[null,"Unwind of discount (start year discount curve)",null,{"$f":"Import!M15473","v":0},null,{"$f":"Import!O15473","v":0}]
[null,"Net losses and loss expenses paid or payable related to prior years",null,{"$f":"Import!M15474","v":0},null,{"$f":"Import!O15474","v":0}]
[null,"Net losses incurred and net loss expenses incurred related to prior years",null,{"$f":"Import!M15475","v":0},null,{"$f":"Import!O15475","v":0}]
[null,"Undiscounted net best estimate loss and loss expense provisions at end of year related to prior years.",null,{"$f":"SUM(D10:D14)","v":0},null,{"$f":"SUM(F10:F14)","v":0}]
[]
[null,"Net losses incurred and net loss expenses incurred related to current year",null,{"$f":"Import!M15477","v":0},null,{"$f":"Import!O15477","v":0}]
[null,"Net losses and loss expenses paid or payable related to current year",null,{"$f":"Import!M15478","v":0},null,{"$f":"Import!O15478","v":0}]
[null,"Foreign exchange and other adjustments",null,{"$f":"Import!M15479","v":0},null,{"$f":"Import!O15479","v":0}]
[null,"Undiscounted net best estimate loss and loss expense provisions at end of year related to current year.",null,{"$f":"SUM(D17:D19)","v":0},null,{"$f":"SUM(F17:F19)","v":0}]
[]
[null,"Impact of change in discount curve",null,{"$f":"Import!M15481","v":0},null,{"$f":"Import!O15481","v":0}]
[]
[null,"Net best estimate loss and loss expense provisions at end of year",null,{"$f":"D15+D20+D22","v":0},null,{"$f":"F15+F20+F22","v":0}]

{"sheet":"Sch XI(b)(viii)","index":89,"n_rows":24,"n_cols":6,"rows_kept":24,"cut":false,"hidden":true,"merged":[[0,1,0,4]]}
["  ","SCHEDULE OF RECONCILIATION OF NET LOSS RESERVES BY LINES OF BUSINESS \n(LINE 8 - STRUCTURED/FINITE LINES)",null,null,null,{"$f":"HYPERLINK(\"#'Index'!A1\",\"Return to Index\")","v":"Return to Index"}]
[null,{"$f":"'Company Information'!C7","v":"Enter Company Name"}]
[null,{"$f":"'Company Information'!C3","v":"2022-12-31"},null,null,null,"SCHEDULE XI(b)(viii) (EBS)"]
[null,{"$f":"\"expressed in\"& IF(1000>1,\" ['\"&MID(1000,2,LEN(1000))&\"s]\",\"\")","v":"expressed in ['000s]"},{"$f":"'Form 1EBS'!$C$4","v":"United States Dollars"}]
[]
[]
[]
[null,null,null,{"$f":"'Sch XI(b)(i)'!D8","v":"2022-12-31"},null,{"$f":"'Sch XI(b)(i)'!F8","v":"2021-12-31"}]
[]
[null,"Net best estimate loss and loss expense provisions at start of year",null,{"$f":"Import!M15483","v":0},null,{"$f":"Import!O15483","v":0}]
[]
[null,"Unwind of discount (start year discount curve)",null,{"$f":"Import!M15484","v":0},null,{"$f":"Import!O15484","v":0}]
[null,"Net losses and loss expenses paid or payable related to prior years",null,{"$f":"Import!M15485","v":0},null,{"$f":"Import!O15485","v":0}]
[null,"Net losses incurred and net loss expenses incurred related to prior years",null,{"$f":"Import!M15486","v":0},null,{"$f":"Import!O15486","v":0}]
[null,"Undiscounted net best estimate loss and loss expense provisions at end of year related to prior years.",null,{"$f":"SUM(D10:D14)","v":0},null,{"$f":"SUM(F10:F14)","v":0}]
[]
[null,"Net losses incurred and net loss expenses incurred related to current year",null,{"$f":"Import!M15488","v":0},null,{"$f":"Import!O15488","v":0}]
[null,"Net losses and loss expenses paid or payable related to current year",null,{"$f":"Import!M15490","v":0},null,{"$f":"Import!O15490","v":0}]
[null,"Foreign exchange and other adjustments",null,{"$f":"Import!M15489","v":0},null,{"$f":"Import!O15489","v":0}]
[null,"Undiscounted net best estimate loss and loss expense provisions at end of year related to current year.",null,{"$f":"SUM(D17:D19)","v":0},null,{"$f":"SUM(F17:F19)","v":0}]
[]
[null,"Impact of change in discount curve",null,{"$f":"Import!M15492","v":0},null,{"$f":"Import!O15492","v":0}]
[]
[null,"Net best estimate loss and loss expense provisions at end of year",null,{"$f":"D15+D20+D22","v":0},null,{"$f":"F15+F20+F22","v":0}]

{"sheet":"Schedule XII(a)","index":90,"n_rows":127,"n_cols":12,"rows_kept":127,"cut":false,"hidden":true,"merged":[[84,8,84,9],[59,4,59,6],[0,8,0,9],[2,1,2,3],[16,4,16,6],[38,3,38,7],[39,3,39,7],[51,2,52,7]]}
[null,"SCHEDULE OF ELIGIBLE CAPITAL",null,null,null,null,null,null,{"$f":"HYPERLINK(\"#'Index'!A1\",\"Return to Index\")","v":"Return to Index"}]
[null,{"$f":"'Company Information'!C7","v":"Enter Company Name"}]
[null,{"$f":"'Company Information'!C3","v":"2022-12-31"},null,null,null,null,null,null,null,"SCHEDULE XII(a) (EBS)"]
[null,{"$f":"\"expressed in\"& IF(CONFIGURATION!$B$12>1,\" ['\"&MID(CONFIGURATION!$B$12,2,LEN(CONFIGURATION!$B$12))&\"s]\",\"\")","v":"expressed in ['000s]"},null,null,{"$f":"'Form 1EBS'!$C$4","v":"United States Dollars"}]
[null,null,null,null,null,null,null,null,null," "]
[null,"Total statutory economic capital and surplus (Form 1EBS, line 40 plus applicable adjustments)",null,null,null,null,null,null,null,{"$f":"+Summary!N98","v":0}]
[null," ","Less: Encumbered assets (not securing policyholders' obligations) (Notes to Form 1EBS, STMT LINE 15) - Note 1",null,null,null,null,null,{"$f":"+'Form 1EBS'!F202","v":0}]
[null,null,"            Less: relative liability or contingent liability (Form 1EBS) for which the encumbered assets are held ",null,null,null,null,null,{"$f":"Import!M15495","v":0},{"$f":"MAX(0,I7-I8)","v":0}]
[null,null,"Subtotal:",null,null,null,null,null,null,{"$f":"J6-J8","v":0}]
[]
[null,"TIER 1 BASIC CAPITAL"]
[null," ","(a) Fully paid common shares (Form 8, STMT LINE 1(a) (i))",null,null,null,null,null,null,{"$f":"IF('Form 8SFS (Consolidated)'!O12=0,('Form 8SFS (Consolidated)'!G11+'Form 8SFS (Consolidated)'!K11),'Form 8SFS (Consolidated)'!O12)","v":0}]
[null," ","(b) Contributed surplus or share premium (Form 8, STMT LINE 1(b))",null,null,null,null,null,null,{"$f":"IF('Form 8SFS (Consolidated)'!O31=0,('Form 8SFS (Consolidated)'!G31+'Form 8SFS (Consolidated)'!K31),'Form 8SFS (Consolidated)'!O31)","v":0}]
[null," ","(c) Statutory economic surplus – End of Year (Form 1EBS, line 40 less Form 8, line 1(d)",null,null,null,null,null,null,{"$f":"IF(SUM('Form 1SFS (Consolidated)'!$E$91,'Form 1SFS (Consolidated)'!$I$91)=0,'Form 1EBS'!F167-'Form 8SFS (Consolidated)'!O38-'Form 8SFS (Consolidated)'!O58,'Form 1EBS'!F167-'Form 8SFS (Consolidated)'!G38-'Form 8SFS (Consolidated)'!G58)","v":0}]
[null,null,"(d) Capital adjustments",null,null,null,null,null,null,{"$f":"Import!M15497","v":0}]
[null,null,"(e) Hybrid capital instruments: Perpetual or fixed term preference shares (Form 8, STMT LINE 1a (ii))",null,null,null,null,null,null,{"$f":"Import!M15498","v":0}]
[null,null,"(f) Other:",null,null,null,null,null,null,{"$f":"Import!M15499","v":0}]
[null,null,"(g) Less: Treasury shares (Form 8, STMT LINE 1(a) (iii))",null,null,null,null,null,null,{"$f":"+'Form 8SFS (Consolidated)'!O25","v":0}]
[null,null,"(h) Less: Difference between encumbered assets for policyholder obligations and policyholder obligations calculated as follows:"]
[]
[null,null,null,null,null,null,"(A)","(B)"]
[null,null,null,null,null,null,"Policyholder","Encumbered"]
[null,null,null,null,null,null,"obligations","(pledged) assets"]
[null,null,"(i)","Contracts where pledged assets exceed the policyholder obligations",null,null,{"$f":"Import!M15500","v":0},{"$f":"Import!M15505","v":0}]
[null,null,"(ii)","Contracts where pledged assets are equal to the policyholder obligations",null,null,{"$f":"Import!M15501","v":0},{"$f":"Import!M15506","v":0}]
[null,null,"(iii)","Contracts where pledged assets are less than the policyholder obligations",null,null,{"$f":"Import!M15502","v":0},{"$f":"Import!M15507","v":0}]
[null,null,"(iv)","Contracts where policyholder obligations are not collateralized",null,null,{"$f":"Import!M15503","v":0}]
[null,null,"(v)","Total",null,null,{"$f":"SUM(G24:G27)","v":0},{"$f":"SUM(H24:H27)","v":0}]
[]
[null,null,null,"Form 1EBS Lines 16(a), and 17(a) for policyholder obligations",null,null,null,{"$f":"'Form 1EBS'!F98+'Form 1EBS'!F108","v":0}]
[]
[null,null,null,"Difference",null,null,null,{"$f":"H30-G28","v":0}]
[]
[null,null,null,"Notes to Form 1EBS Line 15 encumbered assets for policyholder obligations",null,null,null,{"$f":"'Form 1EBS'!F193","v":{"$error":"#REF!"}}]
[]
[null,null,null,"Difference",null,null,null,{"$f":"H34-H28","v":{"$error":"#REF!"}}]
[]
[null,null,"(vi)","Excess encumbered assets i.e. Contracts where pledged assets exceed the policyholder obligations ((B)(i)-(A)(i))",null,null,null,null,{"$f":"H24-G24","v":0},null,null,{"$f":"H24-G24","v":0}]
[null,null,"(vii)","Capital requirement applicable to the encumbered assets under (i) above (equal to the contribution of the pledged assets to the ECR)",null,null,null,null,{"$f":"Import!M15509","v":0},null,null,{"$f":"I39*J88/J90","v":0}]
[null,null,"(viii)","Capital requirement applicable to the policyholder obligations under (i) above (equal to the contribution of the policyholder obligations to the ECR)",null,null,null,null,{"$f":"Import!M15510","v":0},null,null,{"$f":"I40*J88/J90","v":0}]
[null,null,"(ix)"," Excess encumbered assets transferrable to Tier 2 ((vi) - (vii) - (viii))",null,null,null,null,{"$f":"MAX(0,(I38-I39-I40))","v":0},null,null,{"$f":"MAX(0,(L38-L39-L40))","v":0}]
[]
[null,null,"(x)","Policyholder obligations that are fully collateralized ((A)(i) + (A)(ii) + (B)(iii))",null,null,null,null,{"$f":"G24+G25+H26","v":0},null,null,{"$f":"G24+G25+H26","v":0}]
[null,null,"(xi)","Total Policyholder obligations ((A)(v))",null,null,null,null,{"$f":"G28","v":0},null,null,{"$f":"G28","v":0}]
[]
[null,null,"(xii)","Proportion of policyholder obligations that are NOT collateralized (1-(x)/(xi))",null,null,null,null,{"$f":"IF(I44=0,0,1-I43/I44)","v":0},null,null,{"$f":"IF(L44=0,0,1-L43/L44)","v":0}]
[]
[null,null,"(xiii)","Excess encumbered assets transferred to Tier 2 ((ix) x (xii))",null,null,null,null,null,{"$f":"(I41*I46)+'Schedule IX(a)'!G89","v":0},null,{"$f":"L46*L41","v":0}]
[]
[null,null,"(i) Encumbered assets not securing policyholder obligations (Notes to Form 1EBS, STMT LINE 15)"]
[null,null,"    Less: relative liability or contingent liability (Form 1EBS) for which the encumbered assets are held ",null,null,null,null,null,null,{"$f":"J8","v":0}]
[null,null,"(j) Less: Restricted assets in excess of capital requirements, reported in CISSA, to the extent that these amounts are not included in the encumbered assets both for policyholder obligations and not for securing policyholder obligations"]
[null,null,null,null,null,null,null,null,null,{"$f":"Import!M15511","v":0}]
[null,"TIER 1 ANCILLARY CAPITAL"]
[null,null,"Perpetual or fixed term subordinated debt (Form 8, STMT LINE 1(c) (i))",null,null,null,null,null,null,{"$f":"Import!M15512","v":0}]
[null,"TOTAL TIER 1 AVAILABLE CAPITAL",null,null,null,null,null,null,null,{"$f":"J12+J13+J14+J15+J16+J17-J18-J48-J51-J53+J55","v":0}," ",{"$f":"J12+J13+J14+J15+J16+J17-J18-L48-J51-J53+J55","v":0}]
[]
[null,"TIER 2 BASIC CAPITAL"]
[null,null,"(a) Hybrid capital instruments: Perpetual or fixed term preference shares (Form 8, STMT LINE 1(a) (ii))",null,null,null,null,null,null,{"$f":"Import!M15514","v":0}]
[null,null,"(b) Other:  ",null,{"$f":"Import!M15515","v":0},null,null,null,null,{"$f":"Import!M15516","v":0}]
[null,null,"(c) Add: Difference between encumbered assets for policyholder obligations and policyholder obligations deducted from Tier 1",null,null,null,null,null,null,{"$f":"+J48","v":0},null,{"$f":"+L48","v":0}]
[null,"TIER 2 ANCILLARY CAPITAL"]
[null,null,"(a) Unpaid and callable common shares (Form 8, STMT LINE 1(c) (i))",null,null,null,null,null,null,{"$f":"Import!M15517","v":0}]
[null,null,"(b) Qualifying unpaid and callable hybrid capital (Form 8, STMT LINE 1(c) (i))",null,null,null,null,null,null,{"$f":"Import!M15518","v":0}]
[null,null,"(c) Qualifying unpaid and callable perpetual or fixed term preference shares (Form 8, STMT LINE 1(c) (i))",null,null,null,null,null,null,{"$f":"Import!M15519","v":0}]
[null,null,"(d) Perpetual or fixed term subordinated debt (Form 8, STMT LINE 1(c) (i))",null,null,null,null,null,null,{"$f":"Import!M15520","v":0}]
[null,null,"(e) Approved letters of credit (Form 8, STMT LINE 1(c) (ii))",null,null,null,null,null,null,{"$f":"Import!M15521","v":0}]
[null,null,"(f) Approved guarantees (Form 8, STMT LINE 1(c) (ii))",null,null,null,null,null,null,{"$f":"Import!M15522","v":0}]
[null,"TOTAL TIER 2 AVAILABLE CAPITAL",null,null,null,null,null,null,null,{"$f":"J59+J63+J60+J61+J64+J65+J66+J67+J68","v":0}," ",{"$f":"J59+J63+J60+L61+J64+J65+J66+J67+J68","v":0}]
[]
[null,"TIER 3 BASIC CAPITAL"]
[null,null,"Short-term hybrid capital instruments: Perpetual or fixed term preference shares (Form 8, STMT LINE 1a (ii))",null,null,null,null,null,null,{"$f":"Import!M15524","v":0}]
[null,"TIER 3 ANCILLARY CAPITAL"]
[null,null,"(a) Short-term subordinated debt (Form 8, STMT LINE 1(c) (i))",null,null,null,null,null,null,{"$f":"Import!M15525","v":0}]
[null,null,"(b) Approved letters of credit (Form 8, STMT LINE 1(c) (ii))",null,null,null,null,null,null,{"$f":"Import!M15526","v":0}]
[null,null,"(c) Approved guarantees (Form 8, STMT LINE 1(c) (ii))",null,null,null,null,null,null,{"$f":"Import!M15527","v":0}]
[null,"TOTAL TIER 3 AVAILABLE CAPITAL",null,null,null,null,null,null,null,{"$f":"J72+J74+J75+J76","v":0}," "]
[]
[null,"TOTAL ELIGIBLE CAPITAL ",null,null,null,null,null,null,null,{"$f":"J56+J69+J77","v":0}," "]
[]
[null,null,null,null,null,null,null,null,null,{"$f":"IF(J82=\"TRUE\",HYPERLINK(\"#'Schedule XII(a)'!J9\",\"TRUE\"),HYPERLINK(\"#'Schedule XII(a)'!J9\",\"FALSE\"))","v":"TRUE"}]
[null,null,null,null,null,null,null,null,null,{"$f":"IF(ROUND((J9-J79),0)=0,\"TRUE\",\"FALSE\")","v":"TRUE"}]
[null,null,null,null,null,null,null,null,null,{"$f":"ROUND(J9-J79,0)","v":0}]
[]
[null,null,null,null,null,null,null,null,{"$f":"IF(J81=\"False\",\"Reconciliation does not equal Total Eligible Capital\",\"\")","v":""}]
[]
[null,"REGULATORY CAPITAL LEVELS"]
[null,null,"Minimum Margin of Solvency",null,null,null,null,null,null,{"$f":"+Summary!N104","v":1000}]
[null,null,"Enhanced Capital Requirement",null,null,null,null,null,null,{"$f":"Summary!N110","v":1000}]
[null,null,"Enhanced Capital Requirement - Transition",null,null,null,null,null,null,{"$f":"Summary!N108","v":1000}]
[]
[null,null,null,"Limits","MSM","ECR","Applied to MSM","Met - Y/N","Applied to ECR","Met - Y/N"]
[null,null,"Tier 1","min",0.8,{"$f":"IF('Company Information'!F11=\"Class 3A\",50%,60%)","v":0.6},{"$f":"MAX(0,(IF(I40<G24,J56,L56)))","v":0},{"$f":"IF(J56>=E93*J88,\"Yes\",\"No\")","v":"No"},{"$f":"MAX(0,J56)","v":0},{"$f":"IF(J56>=F93*J90,\"Yes\",\"No\")","v":"No"}]
[null,null,"Tier 2 ","max",0.25,{"$f":"IF('Company Information'!F11=\"Class 3A\",50%,66.67%)","v":0.66670000000000007},{"$f":"MAX(0,(IF(I40<G24,MIN(J69,G93*0.25),MIN(L69,G93*0.25))))","v":0},null,{"$f":"IF('Company Information'!F11=\"Class 3A\",MIN(J69,I93),MIN(J69,I93*0.667))","v":0}]
[null,null,"Tier 3 ",null,null,0.17649999999999999,null,null,{"$f":"MAX(0,MIN(J77,((I93+I94)*0.1765),((0.667*I93-I94))))","v":0}]
[null,null,"Eligible Capital",null,null,null,{"$f":"SUM(G93:G95)","v":0},{"$f":"IF(G96>=J88,\"Yes\",\"No\")","v":"No"},{"$f":"SUM(I93:I95)","v":0},{"$f":"IF(I96>=J90,\"Yes\",\"No\")","v":"No"}]
[]
[null,null,"Note 1 - No deduction from Tier 1 would be required where an insurer can demonstrate that the assets are encumbered for its own risk management purposes."]
[]
[]
[]
[]
[]
[]
[]
[]
[]
[]
[]
[]
[]
[]
[]
[]
[]
[]
[]
[]
[]
[]
[]
[]
[]
[]
[]
[]
[null,"*¹"]

{"sheet":"Schedule XII(b)","index":91,"n_rows":219,"n_cols":7,"rows_kept":219,"cut":false,"hidden":false,"merged":[]}
["SCHEDULE OF ELIGIBLE CAPITAL - ADDITIONAL DETAILS (TABLE 12)",null,null,null,null,null,{"$f":"HYPERLINK(\"#'Index'!A1\",\"Return to Index\")","v":"Return to Index"}]
[]
[null,{"$f":"'Company Information'!C7","v":"Enter Company Name"}]
[null,"For the year ending",{"$f":"'Company Information'!C3","v":"2022-12-31"},null,null,null,"SCHEDULE XII(b)"]
[null,{"$f":"\"expressed in\"& IF(CONFIGURATION!$B$12>1,\" ['\"&MID(CONFIGURATION!$B$12,2,LEN(CONFIGURATION!$B$12))&\"s]\",\"\")","v":"expressed in ['000s]"},{"$f":"'Form 1SFS (Consolidated)'!$C$5","v":"United States Dollars"}]
[]
[null,"1) Enter number of capital instruments ",{"$f":"Import!E15531","v":0}]
[null,"2) Enter description of each capital instrument"]
[]
[null,"Description of capital instrument","Date of issue","Maturity date (as applicable)","Date approved by the Authority","Eligible Capital value of instrument","Eligible capital tier"]
[1,{"$f":"Import!E15532","v":0},{"$f":"Import!E15552","v":"00:00:00"},{"$f":"Import!E15572","v":"00:00:00"},{"$f":"Import!E15592","v":"00:00:00"},{"$f":"Import!E15612","v":0},{"$f":"Import!E15632","v":0}]
[2,{"$f":"Import!E15533","v":0},{"$f":"Import!E15553","v":"00:00:00"},{"$f":"Import!E15573","v":"00:00:00"},{"$f":"Import!E15593","v":"00:00:00"},{"$f":"Import!E15613","v":0},{"$f":"Import!E15633","v":0}]
[3,{"$f":"Import!E15534","v":0},{"$f":"Import!E15554","v":"00:00:00"},{"$f":"Import!E15574","v":"00:00:00"},{"$f":"Import!E15594","v":"00:00:00"},{"$f":"Import!E15614","v":0},{"$f":"Import!E15634","v":0}]
[4,{"$f":"Import!E15535","v":0},{"$f":"Import!E15555","v":"00:00:00"},{"$f":"Import!E15575","v":"00:00:00"},{"$f":"Import!E15595","v":"00:00:00"},{"$f":"Import!E15615","v":0},{"$f":"Import!E15635","v":0}]
[5,{"$f":"Import!E15536","v":0},{"$f":"Import!E15556","v":"00:00:00"},{"$f":"Import!E15576","v":"00:00:00"},{"$f":"Import!E15596","v":"00:00:00"},{"$f":"Import!E15616","v":0},{"$f":"Import!E15636","v":0}]
[6,{"$f":"Import!E15537","v":0},{"$f":"Import!E15557","v":"00:00:00"},{"$f":"Import!E15577","v":"00:00:00"},{"$f":"Import!E15597","v":"00:00:00"},{"$f":"Import!E15617","v":0},{"$f":"Import!E15637","v":0}]
[7,{"$f":"Import!E15538","v":0},{"$f":"Import!E15558","v":"00:00:00"},{"$f":"Import!E15578","v":"00:00:00"},{"$f":"Import!E15598","v":"00:00:00"},{"$f":"Import!E15618","v":0},{"$f":"Import!E15638","v":0}]
[8,{"$f":"Import!E15539","v":0},{"$f":"Import!E15559","v":"00:00:00"},{"$f":"Import!E15579","v":"00:00:00"},{"$f":"Import!E15599","v":"00:00:00"},{"$f":"Import!E15619","v":0},{"$f":"Import!E15639","v":0}]
[9,{"$f":"Import!E15540","v":0},{"$f":"Import!E15560","v":"00:00:00"},{"$f":"Import!E15580","v":"00:00:00"},{"$f":"Import!E15600","v":"00:00:00"},{"$f":"Import!E15620","v":0},{"$f":"Import!E15640","v":0}]
[10,{"$f":"Import!E15541","v":0},{"$f":"Import!E15561","v":"00:00:00"},{"$f":"Import!E15581","v":"00:00:00"},{"$f":"Import!E15601","v":"00:00:00"},{"$f":"Import!E15621","v":0},{"$f":"Import!E15641","v":0}]
[11,{"$f":"Import!E15542","v":0},{"$f":"Import!E15562","v":"00:00:00"},{"$f":"Import!E15582","v":"00:00:00"},{"$f":"Import!E15602","v":"00:00:00"},{"$f":"Import!E15622","v":0},{"$f":"Import!E15642","v":0}]
[12,{"$f":"Import!E15543","v":0},{"$f":"Import!E15563","v":"00:00:00"},{"$f":"Import!E15583","v":"00:00:00"},{"$f":"Import!E15603","v":"00:00:00"},{"$f":"Import!E15623","v":0},{"$f":"Import!E15643","v":0}]
[13,{"$f":"Import!E15544","v":0},{"$f":"Import!E15564","v":"00:00:00"},{"$f":"Import!E15584","v":"00:00:00"},{"$f":"Import!E15604","v":"00:00:00"},{"$f":"Import!E15624","v":0},{"$f":"Import!E15644","v":0}]
[14,{"$f":"Import!E15545","v":0},{"$f":"Import!E15565","v":"00:00:00"},{"$f":"Import!E15585","v":"00:00:00"},{"$f":"Import!E15605","v":"00:00:00"},{"$f":"Import!E15625","v":0},{"$f":"Import!E15645","v":0}]
[15,{"$f":"Import!E15546","v":0},{"$f":"Import!E15566","v":"00:00:00"},{"$f":"Import!E15586","v":"00:00:00"},{"$f":"Import!E15606","v":"00:00:00"},{"$f":"Import!E15626","v":0},{"$f":"Import!E15646","v":0}]
[16,{"$f":"Import!E15547","v":0},{"$f":"Import!E15567","v":"00:00:00"},{"$f":"Import!E15587","v":"00:00:00"},{"$f":"Import!E15607","v":"00:00:00"},{"$f":"Import!E15627","v":0},{"$f":"Import!E15647","v":0}]
[17,{"$f":"Import!E15548","v":0},{"$f":"Import!E15568","v":"00:00:00"},{"$f":"Import!E15588","v":"00:00:00"},{"$f":"Import!E15608","v":"00:00:00"},{"$f":"Import!E15628","v":0},{"$f":"Import!E15648","v":0}]
[18,{"$f":"Import!E15549","v":0},{"$f":"Import!E15569","v":"00:00:00"},{"$f":"Import!E15589","v":"00:00:00"},{"$f":"Import!E15609","v":"00:00:00"},{"$f":"Import!E15629","v":0},{"$f":"Import!E15649","v":0}]
[19,{"$f":"Import!E15550","v":0},{"$f":"Import!E15570","v":"00:00:00"},{"$f":"Import!E15590","v":"00:00:00"},{"$f":"Import!E15610","v":"00:00:00"},{"$f":"Import!E15630","v":0},{"$f":"Import!E15650","v":0}]
[20,{"$f":"Import!E15551","v":0},{"$f":"Import!E15571","v":"00:00:00"},{"$f":"Import!E15591","v":"00:00:00"},{"$f":"Import!E15611","v":"00:00:00"},{"$f":"Import!E15631","v":0},{"$f":"Import!E15651","v":0}]
[21]
[22]
[23]
[24]
[25]
[26]
[27]
[28]
[29]
[30]
[31]
[32]
[33]
[34]
[35]
[36]
[37]
[38]
[39]
[40]
[41]
[42]
[43]
[44]
[45]
[46]
[47]
[48]
[49]
[50]
[51]
[52]
[53]
[54]
[55]
[56]
[57]
[58]
[59]
[60]
[61]
[62]
[63]
[64]
[65]
[66]
[67]
[68]
[69]
[70]
[71]
[72]
[73]
[74]
[75]
[76]
[77]
[78]
[79]
[80]
[81]
[82]
[83]
[84]
[85]
[86]
[87]
[88]
[89]
[90]
[91]
[92]
[93]
[94]
[95]
[96]
[97]
[98]
[99]
[100]
[101]
[102]
[103]
[104]
[105]
[106]
[107]
[108]
[109]
[110]
[111]
[112]
[113]
[114]
[115]
[116]
[117]
[118]
[119]
[120]
[121]
[122]
[123]
[124]
[125]
[126]
[127]
[128]
[129]
[130]
[131]
[132]
[133]
[134]
[135]
[136]
[137]
[138]
[139]
[140]
[141]
[142]
[143]
[144]
[145]
[146]
[147]
[148]
[149]
[150]
[151]
[152]
[153]
[154]
[155]
[156]
[157]
[158]
[159]
[160]
[161]
[162]
[163]
[164]
[165]
[166]
[167]
[168]
[169]
[170]
[171]
[172]
[173]
[174]
[175]
[176]
[177]
[178]
[179]
[180]
[181]
[182]
[183]
[184]
[185]
[186]
[187]
[188]
[189]
[190]
[191]
[192]
[193]
[194]
[195]
[196]
[197]
[198]
[199]
[200]
[null,"Total Preferred Shares, Treasury Shares and Other Fixed Capital",null,null,null,{"$f":"SUM(F11:F210)","v":0}]
[]
[null,null,null,null,null,{"$f":"'Form 8SFS (Consolidated)'!O17-'Form 8SFS (Consolidated)'!O25+'Form 8SFS (Consolidated)'!O36","v":0}]
[]
[null,null,null,null,null,{"$f":"IF(F216=\"TRUE\",HYPERLINK(\"#'Form 8SFS'!O17:O34\",\"TRUE\"),HYPERLINK(\"#'Form 8SFS'!O17:O34\",\"FALSE\"))","v":"TRUE"}]
[null,null,null,null,null,{"$f":"IF(ROUND((F211-F213),0)=0,\"TRUE\",\"FALSE\")","v":"TRUE"}]
[null,null,null,null,null,{"$f":"ROUND((F213-F211),0)","v":0}]
[]
[null,null,null,null,null,{"$f":"IF(F215=\"False\",\"Does not equal Form 8SFS Lines 1(a)(ii), 1(a)(iii) & 1(c)(iii)\",\"\")","v":""}]

{"sheet":"Schedule XVI","index":92,"n_rows":211,"n_cols":17,"rows_kept":211,"cut":false,"hidden":true,"merged":[[3,2,3,3]]}
["SCHEDULE OF REGULATED NON-INSURANCE FINANCIAL OPERATING ENTITIES",null,null,null,null,null,null,null,null,null,null,null,{"$f":"HYPERLINK(\"#'Index'!A1\",\"Return to Index\")","v":"Return to Index"}]
[]
[null,{"$f":"'Company Information'!C7","v":"Enter Company Name"}]
[null,"For the year ending",{"$f":"'Company Information'!C3","v":"2022-12-31"},null,null,null,null,null,null,null,null,null,"SCHEDULE XVI"]
[null,{"$f":"\"expressed in\"& IF(CONFIGURATION!$B$12>1,\" ['\"&MID(CONFIGURATION!$B$12,2,LEN(CONFIGURATION!$B$12))&\"s]\",\"\")","v":"expressed in ['000s]"},{"$f":"'Form 1EBS'!C4","v":"United States Dollars"},null,null,null,null,null,null,null,null,null,null,null,"Select","Select","Select"]
[null,null,null,null,null,null,null,null,null,null,null,null,null,null,"Energy","Holding Entity","Significant Influence"]
[null," Enter Number of Regulated Non-Insurance Entities",{"$f":"Import!M15653","v":0},null,null,null,null,null,null,null,null,null,null,null,"Materials","Operating Entity","Control"]
[null," Enter information for each entity",null,null,null,null,null,null,null,null,null,null,null,null,"Industrial","Branch"]
[null,null,null,null,null,null,null,null,null,null,null,null,null,null,"Consumer Discretionary"]
[null,"Entity name","Jurisdiction","Sector Classification (Select from drop-down list)","Strategic Purpose","Entity Type (Select from drop-down list)","Products & Services Offered","Participation (Select from drop-down list)","Percent of Participating Interest","Assets","Investment Amount (equity method)","Regulatory Capital Requirement for Regulated Entities (RCR) (100%)","Applicable Share of the RCR",null,"Consumer Staples"]
[1,{"$f":"Import!M15654","v":0},{"$f":"+Import!M15669","v":0},{"$f":"Import!M15684","v":"Select"},{"$f":"Import!M15699","v":0},{"$f":"Import!M15714","v":"Select"},{"$f":"Import!M15729","v":0},{"$f":"Import!M15744","v":"Select"},{"$f":"Import!M15759","v":0},{"$f":"Import!M15774","v":0},{"$f":"Import!M15790","v":0},{"$f":"Import!M15806","v":0},{"$f":"MAX(0,L11*I11)","v":0},null,"Healthcare"]
[2,{"$f":"Import!M15655","v":0},{"$f":"+Import!M15670","v":0},{"$f":"Import!M15685","v":"Select"},{"$f":"Import!M15700","v":0},{"$f":"Import!M15715","v":"Select"},{"$f":"Import!M15730","v":0},{"$f":"Import!M15745","v":"Select"},{"$f":"Import!M15760","v":0},{"$f":"Import!M15775","v":0},{"$f":"Import!M15791","v":0},{"$f":"Import!M15807","v":0},{"$f":"MAX(0,L12*I12)","v":0},null,"Financial"]
[3,{"$f":"Import!M15656","v":0},{"$f":"+Import!M15671","v":0},{"$f":"Import!M15686","v":"Select"},{"$f":"Import!M15701","v":0},{"$f":"Import!M15716","v":"Select"},{"$f":"Import!M15731","v":0},{"$f":"Import!M15746","v":"Select"},{"$f":"Import!M15761","v":0},{"$f":"Import!M15776","v":0},{"$f":"Import!M15792","v":0},{"$f":"Import!M15808","v":0},0]
[4,{"$f":"Import!M15657","v":0},{"$f":"+Import!M15672","v":0},{"$f":"Import!M15687","v":"Select"},{"$f":"Import!M15702","v":0},{"$f":"Import!M15717","v":"Select"},{"$f":"Import!M15732","v":0},{"$f":"Import!M15747","v":"Select"},{"$f":"Import!M15762","v":0},{"$f":"Import!M15777","v":0},{"$f":"Import!M15793","v":0},{"$f":"Import!M15809","v":0},0]
[5,{"$f":"Import!M15658","v":0},{"$f":"+Import!M15673","v":0},{"$f":"Import!M15688","v":"Select"},{"$f":"Import!M15703","v":0},{"$f":"Import!M15718","v":"Select"},{"$f":"Import!M15733","v":0},{"$f":"Import!M15748","v":"Select"},{"$f":"Import!M15763","v":0},{"$f":"Import!M15778","v":0},{"$f":"Import!M15794","v":0},{"$f":"Import!M15810","v":0},0]
[6,{"$f":"Import!M15659","v":0},{"$f":"+Import!M15674","v":0},{"$f":"Import!M15689","v":"Select"},{"$f":"Import!M15704","v":0},{"$f":"Import!M15719","v":"Select"},{"$f":"Import!M15734","v":0},{"$f":"Import!M15749","v":"Select"},{"$f":"Import!M15764","v":0},{"$f":"Import!M15779","v":0},{"$f":"Import!M15795","v":0},{"$f":"Import!M15811","v":0},0]
[7,{"$f":"Import!M15660","v":0},{"$f":"+Import!M15675","v":0},{"$f":"Import!M15690","v":"Select"},{"$f":"Import!M15705","v":0},{"$f":"Import!M15720","v":"Select"},{"$f":"Import!M15735","v":0},{"$f":"Import!M15750","v":"Select"},{"$f":"Import!M15765","v":0},{"$f":"Import!M15780","v":0},{"$f":"Import!M15796","v":0},{"$f":"Import!M15812","v":0},0]
[8,{"$f":"Import!M15661","v":0},{"$f":"+Import!M15676","v":0},{"$f":"Import!M15691","v":"Select"},{"$f":"Import!M15706","v":0},{"$f":"Import!M15721","v":"Select"},{"$f":"Import!M15736","v":0},{"$f":"Import!M15751","v":"Select"},{"$f":"Import!M15766","v":0},{"$f":"Import!M15781","v":0},{"$f":"Import!M15797","v":0},{"$f":"Import!M15813","v":0},0]
[9,{"$f":"Import!M15662","v":0},{"$f":"+Import!M15677","v":0},{"$f":"Import!M15692","v":"Select"},{"$f":"Import!M15707","v":0},{"$f":"Import!M15722","v":"Select"},{"$f":"Import!M15737","v":0},{"$f":"Import!M15752","v":"Select"},{"$f":"Import!M15767","v":0},{"$f":"Import!M15782","v":0},{"$f":"Import!M15798","v":0},{"$f":"Import!M15814","v":0},0]
[10,{"$f":"Import!M15663","v":0},{"$f":"+Import!M15678","v":0},{"$f":"Import!M15693","v":"Select"},{"$f":"Import!M15708","v":0},{"$f":"Import!M15723","v":"Select"},{"$f":"Import!M15738","v":0},{"$f":"Import!M15753","v":"Select"},{"$f":"Import!M15768","v":0},{"$f":"Import!M15783","v":0},{"$f":"Import!M15799","v":0},{"$f":"Import!M15815","v":0},0]
[11,{"$f":"Import!M15664","v":0},{"$f":"+Import!M15679","v":0},{"$f":"Import!M15694","v":"Select"},{"$f":"Import!M15709","v":0},{"$f":"Import!M15724","v":"Select"},{"$f":"Import!M15739","v":0},{"$f":"Import!M15754","v":"Select"},{"$f":"Import!M15769","v":0},{"$f":"Import!M15784","v":0},{"$f":"Import!M15800","v":0},{"$f":"Import!M15816","v":0},0]
[12,{"$f":"Import!M15665","v":0},{"$f":"+Import!M15680","v":0},{"$f":"Import!M15695","v":"Select"},{"$f":"Import!M15710","v":0},{"$f":"Import!M15725","v":"Select"},{"$f":"Import!M15740","v":0},{"$f":"Import!M15755","v":"Select"},{"$f":"Import!M15770","v":0},{"$f":"Import!M15785","v":0},{"$f":"Import!M15801","v":0},{"$f":"Import!M15817","v":0},0]
[13,{"$f":"Import!M15666","v":0},{"$f":"+Import!M15681","v":0},{"$f":"Import!M15696","v":"Select"},{"$f":"Import!M15711","v":0},{"$f":"Import!M15726","v":"Select"},{"$f":"Import!M15741","v":0},{"$f":"Import!M15756","v":"Select"},{"$f":"Import!M15771","v":0},{"$f":"Import!M15786","v":0},{"$f":"Import!M15802","v":0},{"$f":"Import!M15818","v":0},0]
[14,{"$f":"Import!M15667","v":0},{"$f":"+Import!M15682","v":0},{"$f":"Import!M15697","v":"Select"},{"$f":"Import!M15712","v":0},{"$f":"Import!M15727","v":"Select"},{"$f":"Import!M15742","v":0},{"$f":"Import!M15757","v":"Select"},{"$f":"Import!M15772","v":0},{"$f":"Import!M15787","v":0},{"$f":"Import!M15803","v":0},{"$f":"Import!M15819","v":0},0]
[15,{"$f":"Import!M15668","v":0},{"$f":"+Import!M15683","v":0},{"$f":"Import!M15698","v":"Select"},{"$f":"Import!M15713","v":0},{"$f":"Import!M15728","v":"Select"},{"$f":"Import!M15743","v":0},{"$f":"Import!M15758","v":"Select"},{"$f":"Import!M15773","v":0},{"$f":"Import!M15788","v":0},{"$f":"Import!M15804","v":0},{"$f":"Import!M15820","v":0},0]
[16,null,null,null,null,null,null,null,null,null,null,null,0]
[17,null,null,null,null,null,null,null,null,null,null,null,0]
[18,null,null,null,null,null,null,null,null,null,null,null,0]
[19,null,null,null,null,null,null,null,null,null,null,null,0]
[20,null,null,null,null,null,null,null,null,null,null,null,0]
[21,null,null,null,null,null,null,null,null,null,null,null,0]
[22,null,null,null,null,null,null,null,null,null,null,null,0]
[23,null,null,null,null,null,null,null,null,null,null,null,0]
[24,null,null,null,null,null,null,null,null,null,null,null,0]
[25,null,null,null,null,null,null,null,null,null,null,null,0]
[26,null,null,null,null,null,null,null,null,null,null,null,0]
[27,null,null,null,null,null,null,null,null,null,null,null,0]
[28,null,null,null,null,null,null,null,null,null,null,null,0]
[29,null,null,null,null,null,null,null,null,null,null,null,0]
[30,null,null,null,null,null,null,null,null,null,null,null,0]
[31,null,null,null,null,null,null,null,null,null,null,null,0]
[32,null,null,null,null,null,null,null,null,null,null,null,0]
[33,null,null,null,null,null,null,null,null,null,null,null,0]
[34,null,null,null,null,null,null,null,null,null,null,null,0]
[35,null,null,null,null,null,null,null,null,null,null,null,0]
[36,null,null,null,null,null,null,null,null,null,null,null,0]
[37,null,null,null,null,null,null,null,null,null,null,null,0]
[38,null,null,null,null,null,null,null,null,null,null,null,0]
[39,null,null,null,null,null,null,null,null,null,null,null,0]
[40,null,null,null,null,null,null,null,null,null,null,null,0]
[41,null,null,null,null,null,null,null,null,null,null,null,0]
[42,null,null,null,null,null,null,null,null,null,null,null,0]
[43,null,null,null,null,null,null,null,null,null,null,null,0]
[44,null,null,null,null,null,null,null,null,null,null,null,0]
[45,null,null,null,null,null,null,null,null,null,null,null,0]
[46,null,null,null,null,null,null,null,null,null,null,null,0]
[47,null,null,null,null,null,null,null,null,null,null,null,0]
[48,null,null,null,null,null,null,null,null,null,null,null,0]
[49,null,null,null,null,null,null,null,null,null,null,null,0]
[50,null,null,null,null,null,null,null,null,null,null,null,0]
[51,null,null,null,null,null,null,null,null,null,null,null,0]
[52,null,null,null,null,null,null,null,null,null,null,null,0]
[53,null,null,null,null,null,null,null,null,null,null,null,0]
[54,null,null,null,null,null,null,null,null,null,null,null,0]
[55,null,null,null,null,null,null,null,null,null,null,null,0]
[56,null,null,null,null,null,null,null,null,null,null,null,0]
[57,null,null,null,null,null,null,null,null,null,null,null,0]
[58,null,null,null,null,null,null,null,null,null,null,null,0]
[59,null,null,null,null,null,null,null,null,null,null,null,0]
[60,null,null,null,null,null,null,null,null,null,null,null,0]
[61,null,null,null,null,null,null,null,null,null,null,null,0]
[62,null,null,null,null,null,null,null,null,null,null,null,0]
[63,null,null,null,null,null,null,null,null,null,null,null,0]
[64,null,null,null,null,null,null,null,null,null,null,null,0]
[65,null,null,null,null,null,null,null,null,null,null,null,0]
[66,null,null,null,null,null,null,null,null,null,null,null,{"$f":"MAX(0,L76*I76)","v":0}]
[67,null,null,null,null,null,null,null,null,null,null,null,0]
[68,null,null,null,null,null,null,null,null,null,null,null,0]
[69,null,null,null,null,null,null,null,null,null,null,null,0]
[70,null,null,null,null,null,null,null,null,null,null,null,0]
[71,null,null,null,null,null,null,null,null,null,null,null,0]
[72,null,null,null,null,null,null,null,null,null,null,null,0]
[73,null,null,null,null,null,null,null,null,null,null,null,0]
[74,null,null,null,null,null,null,null,null,null,null,null,0]
[75,null,null,null,null,null,null,null,null,null,null,null,0]
[76,null,null,null,null,null,null,null,null,null,null,null,0]
[77,null,null,null,null,null,null,null,null,null,null,null,0]
[78,null,null,null,null,null,null,null,null,null,null,null,0]
[79,null,null,null,null,null,null,null,null,null,null,null,0]
[80,null,null,null,null,null,null,null,null,null,null,null,0]
[81,null,null,null,null,null,null,null,null,null,null,null,0]
[82,null,null,null,null,null,null,null,null,null,null,null,0]
[83,null,null,null,null,null,null,null,null,null,null,null,0]
[84,null,null,null,null,null,null,null,null,null,null,null,0]
[85,null,null,null,null,null,null,null,null,null,null,null,0]
[86,null,null,null,null,null,null,null,null,null,null,null,0]
[87,null,null,null,null,null,null,null,null,null,null,null,0]
[88,null,null,null,null,null,null,null,null,null,null,null,0]
[89,null,null,null,null,null,null,null,null,null,null,null,0]
[90,null,null,null,null,null,null,null,null,null,null,null,0]
[91,null,null,null,null,null,null,null,null,null,null,null,0]
[92,null,null,null,null,null,null,null,null,null,null,null,0]
[93,null,null,null,null,null,null,null,null,null,null,null,0]
[94,null,null,null,null,null,null,null,null,null,null,null,0]
[95,null,null,null,null,null,null,null,null,null,null,null,0]
[96,null,null,null,null,null,null,null,null,null,null,null,0]
[97,null,null,null,null,null,null,null,null,null,null,null,0]
[98,null,null,null,null,null,null,null,null,null,null,null,0]
[99,null,null,null,null,null,null,null,null,null,null,null,0]
[100,null,null,null,null,null,null,null,null,null,null,null,0]
[101,null,null,null,null,null,null,null,null,null,null,null,0]
[102,null,null,null,null,null,null,null,null,null,null,null,0]
[103,null,null,null,null,null,null,null,null,null,null,null,0]
[104,null,null,null,null,null,null,null,null,null,null,null,0]
[105,null,null,null,null,null,null,null,null,null,null,null,0]
[106,null,null,null,null,null,null,null,null,null,null,null,0]
[107,null,null,null,null,null,null,null,null,null,null,null,0]
[108,null,null,null,null,null,null,null,null,null,null,null,0]
[109,null,null,null,null,null,null,null,null,null,null,null,0]
[110,null,null,null,null,null,null,null,null,null,null,null,0]
[111,null,null,null,null,null,null,null,null,null,null,null,0]
[112,null,null,null,null,null,null,null,null,null,null,null,0]
[113,null,null,null,null,null,null,null,null,null,null,null,0]
[114,null,null,null,null,null,null,null,null,null,null,null,0]
[115,null,null,null,null,null,null,null,null,null,null,null,0]
[116,null,null,null,null,null,null,null,null,null,null,null,0]
[117,null,null,null,null,null,null,null,null,null,null,null,0]
[118,null,null,null,null,null,null,null,null,null,null,null,0]
[119,null,null,null,null,null,null,null,null,null,null,null,0]
[120,null,null,null,null,null,null,null,null,null,null,null,0]
[121,null,null,null,null,null,null,null,null,null,null,null,0]
[122,null,null,null,null,null,null,null,null,null,null,null,0]
[123,null,null,null,null,null,null,null,null,null,null,null,0]
[124,null,null,null,null,null,null,null,null,null,null,null,0]
[125,null,null,null,null,null,null,null,null,null,null,null,0]
[126,null,null,null,null,null,null,null,null,null,null,null,0]
[127,null,null,null,null,null,null,null,null,null,null,null,0]
[128,null,null,null,null,null,null,null,null,null,null,null,0]
[129,null,null,null,null,null,null,null,null,null,null,null,0]
[130,null,null,null,null,null,null,null,null,null,null,null,{"$f":"MAX(0,L140*I140)","v":0}]
[131,null,null,null,null,null,null,null,null,null,null,null,0]
[132,null,null,null,null,null,null,null,null,null,null,null,0]
[133,null,null,null,null,null,null,null,null,null,null,null,0]
[134,null,null,null,null,null,null,null,null,null,null,null,0]
[135,null,null,null,null,null,null,null,null,null,null,null,0]
[136,null,null,null,null,null,null,null,null,null,null,null,0]
[137,null,null,null,null,null,null,null,null,null,null,null,0]
[138,null,null,null,null,null,null,null,null,null,null,null,0]
[139,null,null,null,null,null,null,null,null,null,null,null,0]
[140,null,null,null,null,null,null,null,null,null,null,null,0]
[141,null,null,null,null,null,null,null,null,null,null,null,0]
[142,null,null,null,null,null,null,null,null,null,null,null,0]
[143,null,null,null,null,null,null,null,null,null,null,null,0]
[144,null,null,null,null,null,null,null,null,null,null,null,0]
[145,null,null,null,null,null,null,null,null,null,null,null,0]
[146,null,null,null,null,null,null,null,null,null,null,null,0]
[147,null,null,null,null,null,null,null,null,null,null,null,0]
[148,null,null,null,null,null,null,null,null,null,null,null,0]
[149,null,null,null,null,null,null,null,null,null,null,null,0]
[150,null,null,null,null,null,null,null,null,null,null,null,0]
[151,null,null,null,null,null,null,null,null,null,null,null,0]
[152,null,null,null,null,null,null,null,null,null,null,null,0]
[153,null,null,null,null,null,null,null,null,null,null,null,0]
[154,null,null,null,null,null,null,null,null,null,null,null,0]
[155,null,null,null,null,null,null,null,null,null,null,null,0]
[156,null,null,null,null,null,null,null,null,null,null,null,0]
[157,null,null,null,null,null,null,null,null,null,null,null,0]
[158,null,null,null,null,null,null,null,null,null,null,null,0]
[159,null,null,null,null,null,null,null,null,null,null,null,0]
[160,null,null,null,null,null,null,null,null,null,null,null,0]
[161,null,null,null,null,null,null,null,null,null,null,null,0]
[162,null,null,null,null,null,null,null,null,null,null,null,0]
[163,null,null,null,null,null,null,null,null,null,null,null,0]
[164,null,null,null,null,null,null,null,null,null,null,null,0]
[165,null,null,null,null,null,null,null,null,null,null,null,0]
[166,null,null,null,null,null,null,null,null,null,null,null,0]
[167,null,null,null,null,null,null,null,null,null,null,null,0]
[168,null,null,null,null,null,null,null,null,null,null,null,0]
[169,null,null,null,null,null,null,null,null,null,null,null,0]
[170,null,null,null,null,null,null,null,null,null,null,null,0]
[171,null,null,null,null,null,null,null,null,null,null,null,0]
[172,null,null,null,null,null,null,null,null,null,null,null,0]
[173,null,null,null,null,null,null,null,null,null,null,null,0]
[174,null,null,null,null,null,null,null,null,null,null,null,0]
[175,null,null,null,null,null,null,null,null,null,null,null,0]
[176,null,null,null,null,null,null,null,null,null,null,null,0]
[177,null,null,null,null,null,null,null,null,null,null,null,0]
[178,null,null,null,null,null,null,null,null,null,null,null,0]
[179,null,null,null,null,null,null,null,null,null,null,null,0]
[180,null,null,null,null,null,null,null,null,null,null,null,0]
[181,null,null,null,null,null,null,null,null,null,null,null,0]
[182,null,null,null,null,null,null,null,null,null,null,null,0]
[183,null,null,null,null,null,null,null,null,null,null,null,0]
[184,null,null,null,null,null,null,null,null,null,null,null,0]
[185,null,null,null,null,null,null,null,null,null,null,null,0]
[186,null,null,null,null,null,null,null,null,null,null,null,0]
[187,null,null,null,null,null,null,null,null,null,null,null,0]
[188,null,null,null,null,null,null,null,null,null,null,null,0]
[189,null,null,null,null,null,null,null,null,null,null,null,0]
[190,null,null,null,null,null,null,null,null,null,null,null,0]
[191,null,null,null,null,null,null,null,null,null,null,null,0]
[192,null,null,null,null,null,null,null,null,null,null,null,0]
[193,null,null,null,null,null,null,null,null,null,null,null,0]
[194,null,null,null,null,null,null,null,null,null,null,null,{"$f":"MAX(0,L204*I204)","v":0}]
[195,null,null,null,null,null,null,null,null,null,null,null,0]
[196,null,null,null,null,null,null,null,null,null,null,null,0]
[197,null,null,null,null,null,null,null,null,null,null,null,0]
[198,null,null,null,null,null,null,null,null,null,null,null,0]
[199,null,null,null,null,null,null,null,null,null,null,null,0]
[200,null,null,null,null,null,null,null,null,null,null,null,0]
[null,null,null,null,null,null,null,null,null,{"$f":"SUM(J11:J210)","v":0},{"$f":"SUM(K11:K210)","v":0},null,{"$f":"SUM(M11:M210)","v":0}]

{"sheet":"Schedule XVII","index":93,"n_rows":219,"n_cols":14,"rows_kept":219,"cut":false,"hidden":true,"merged":[[3,2,3,3]]}
[null,"SCHEDULE OF SOLVENCY",null,null,null,null,null,null,null,{"$f":"HYPERLINK(\"#'Index'!A1\",\"Return to Index\")","v":"Return to Index"}]
[]
[null,{"$f":"'Company Information'!C7","v":"Enter Company Name"}]
[null,"For the year ending",{"$f":"'Company Information'!C3","v":"2022-12-31"},null,null,null,null,null,null,"SCHEDULE XVII"]
[null,{"$f":"\"expressed in\"& IF(CONFIGURATION!$B$12>1,\" ['\"&MID(CONFIGURATION!$B$12,2,LEN(CONFIGURATION!$B$12))&\"s]\",\"\")","v":"expressed in ['000s]"},{"$f":"'Form 1EBS'!C4","v":"United States Dollars"},null,null,null,null,null,null,null,null,null,"Select"]
[null,null,null,null,null,null,null,null,null,null,null,"Energy","Holding Entity","Significant Influence"]
[null,"Enter Number of Entities ",{"$f":"Import!M15838","v":0},null,null,null,null,null,null,null,null,"Materials","Operating Entity","Control"]
[null," Enter information for each entity",null,null,null,null,null,null,null,null,null,"Industrial","Branch"]
[null,"(1)","(2)","(3)","(4)","(5)","(6)","(7)","(8)","(9)",null,"Consumer Discretionary"]
[null,"Affiliate name","Jurisdiction","Entity Type","Percent of Participating Interest","Gross Premiums Written","Net Premiums Written","Total Assets ","Net Assets","Regulatory Capital Requirement (ECR Equivalent)",null,"Consumer Staples"]
[1,{"$f":"Import!M15839","v":0},{"$f":"+Import!M15869","v":0},{"$f":"Import!M15899","v":"Select"},{"$f":"Import!M15929","v":0},{"$f":"Import!M15959","v":0},{"$f":"Import!M15990","v":0},{"$f":"Import!M16021","v":0},{"$f":"Import!M16052","v":0},{"$f":"Import!M16083","v":0},null,"Healthcare"]
[2,{"$f":"Import!M15840","v":0},{"$f":"+Import!M15870","v":0},{"$f":"Import!M15900","v":"Select"},{"$f":"Import!M15930","v":0},{"$f":"Import!M15960","v":0},{"$f":"Import!M15991","v":0},{"$f":"Import!M16022","v":0},{"$f":"Import!M16053","v":0},{"$f":"Import!M16084","v":0},null,"Financial"]
[3,{"$f":"Import!M15841","v":0},{"$f":"+Import!M15871","v":0},{"$f":"Import!M15901","v":"Select"},{"$f":"Import!M15931","v":0},{"$f":"Import!M15961","v":0},{"$f":"Import!M15992","v":0},{"$f":"Import!M16023","v":0},{"$f":"Import!M16054","v":0},{"$f":"Import!M16085","v":0}]
[4,{"$f":"Import!M15842","v":0},{"$f":"+Import!M15872","v":0},{"$f":"Import!M15902","v":"Select"},{"$f":"Import!M15932","v":0},{"$f":"Import!M15962","v":0},{"$f":"Import!M15993","v":0},{"$f":"Import!M16024","v":0},{"$f":"Import!M16055","v":0},{"$f":"Import!M16086","v":0}]
[5,{"$f":"Import!M15843","v":0},{"$f":"+Import!M15873","v":0},{"$f":"Import!M15903","v":"Select"},{"$f":"Import!M15933","v":0},{"$f":"Import!M15963","v":0},{"$f":"Import!M15994","v":0},{"$f":"Import!M16025","v":0},{"$f":"Import!M16056","v":0},{"$f":"Import!M16087","v":0}]
[6,{"$f":"Import!M15844","v":0},{"$f":"+Import!M15874","v":0},{"$f":"Import!M15904","v":"Select"},{"$f":"Import!M15934","v":0},{"$f":"Import!M15964","v":0},{"$f":"Import!M15995","v":0},{"$f":"Import!M16026","v":0},{"$f":"Import!M16057","v":0},{"$f":"Import!M16088","v":0}]
[7,{"$f":"Import!M15845","v":0},{"$f":"+Import!M15875","v":0},{"$f":"Import!M15905","v":"Select"},{"$f":"Import!M15935","v":0},{"$f":"Import!M15965","v":0},{"$f":"Import!M15996","v":0},{"$f":"Import!M16027","v":0},{"$f":"Import!M16058","v":0},{"$f":"Import!M16089","v":0}]
[8,{"$f":"Import!M15846","v":0},{"$f":"+Import!M15876","v":0},{"$f":"Import!M15906","v":"Select"},{"$f":"Import!M15936","v":0},{"$f":"Import!M15966","v":0},{"$f":"Import!M15997","v":0},{"$f":"Import!M16028","v":0},{"$f":"Import!M16059","v":0},{"$f":"Import!M16090","v":0}]
[9,{"$f":"Import!M15847","v":0},{"$f":"+Import!M15877","v":0},{"$f":"Import!M15907","v":"Select"},{"$f":"Import!M15937","v":0},{"$f":"Import!M15967","v":0},{"$f":"Import!M15998","v":0},{"$f":"Import!M16029","v":0},{"$f":"Import!M16060","v":0},{"$f":"Import!M16091","v":0}]
[10,{"$f":"Import!M15848","v":0},{"$f":"+Import!M15878","v":0},{"$f":"Import!M15908","v":"Select"},{"$f":"Import!M15938","v":0},{"$f":"Import!M15968","v":0},{"$f":"Import!M15999","v":0},{"$f":"Import!M16030","v":0},{"$f":"Import!M16061","v":0},{"$f":"Import!M16092","v":0}]
[11,{"$f":"Import!M15849","v":0},{"$f":"+Import!M15879","v":0},{"$f":"Import!M15909","v":"Select"},{"$f":"Import!M15939","v":0},{"$f":"Import!M15969","v":0},{"$f":"Import!M16000","v":0},{"$f":"Import!M16031","v":0},{"$f":"Import!M16062","v":0},{"$f":"Import!M16093","v":0}]
[12,{"$f":"Import!M15850","v":0},{"$f":"+Import!M15880","v":0},{"$f":"Import!M15910","v":"Select"},{"$f":"Import!M15940","v":0},{"$f":"Import!M15970","v":0},{"$f":"Import!M16001","v":0},{"$f":"Import!M16032","v":0},{"$f":"Import!M16063","v":0},{"$f":"Import!M16094","v":0}]
[13,{"$f":"Import!M15851","v":0},{"$f":"+Import!M15881","v":0},{"$f":"Import!M15911","v":"Select"},{"$f":"Import!M15941","v":0},{"$f":"Import!M15971","v":0},{"$f":"Import!M16002","v":0},{"$f":"Import!M16033","v":0},{"$f":"Import!M16064","v":0},{"$f":"Import!M16095","v":0}]
[14,{"$f":"Import!M15852","v":0},{"$f":"+Import!M15882","v":0},{"$f":"Import!M15912","v":"Select"},{"$f":"Import!M15942","v":0},{"$f":"Import!M15972","v":0},{"$f":"Import!M16003","v":0},{"$f":"Import!M16034","v":0},{"$f":"Import!M16065","v":0},{"$f":"Import!M16096","v":0}]
[15,{"$f":"Import!M15853","v":0},{"$f":"+Import!M15883","v":0},{"$f":"Import!M15913","v":"Select"},{"$f":"Import!M15943","v":0},{"$f":"Import!M15973","v":0},{"$f":"Import!M16004","v":0},{"$f":"Import!M16035","v":0},{"$f":"Import!M16066","v":0},{"$f":"Import!M16097","v":0}]
[16,{"$f":"Import!M15854","v":0},{"$f":"+Import!M15884","v":0},{"$f":"Import!M15914","v":"Select"},{"$f":"Import!M15944","v":0},{"$f":"Import!M15974","v":0},{"$f":"Import!M16005","v":0},{"$f":"Import!M16036","v":0},{"$f":"Import!M16067","v":0},{"$f":"Import!M16098","v":0}]
[17,{"$f":"Import!M15855","v":0},{"$f":"+Import!M15885","v":0},{"$f":"Import!M15915","v":"Select"},{"$f":"Import!M15945","v":0},{"$f":"Import!M15975","v":0},{"$f":"Import!M16006","v":0},{"$f":"Import!M16037","v":0},{"$f":"Import!M16068","v":0},{"$f":"Import!M16099","v":0}]
[18,{"$f":"Import!M15856","v":0},{"$f":"+Import!M15886","v":0},{"$f":"Import!M15916","v":"Select"},{"$f":"Import!M15946","v":0},{"$f":"Import!M15976","v":0},{"$f":"Import!M16007","v":0},{"$f":"Import!M16038","v":0},{"$f":"Import!M16069","v":0},{"$f":"Import!M16100","v":0}]
[19,{"$f":"Import!M15857","v":0},{"$f":"+Import!M15887","v":0},{"$f":"Import!M15917","v":"Select"},{"$f":"Import!M15947","v":0},{"$f":"Import!M15977","v":0},{"$f":"Import!M16008","v":0},{"$f":"Import!M16039","v":0},{"$f":"Import!M16070","v":0},{"$f":"Import!M16101","v":0}]
[20,{"$f":"Import!M15858","v":0},{"$f":"+Import!M15888","v":0},{"$f":"Import!M15918","v":"Select"},{"$f":"Import!M15948","v":0},{"$f":"Import!M15978","v":0},{"$f":"Import!M16009","v":0},{"$f":"Import!M16040","v":0},{"$f":"Import!M16071","v":0},{"$f":"Import!M16102","v":0}]
[21,{"$f":"Import!M15859","v":0},{"$f":"+Import!M15889","v":0},{"$f":"Import!M15919","v":"Select"},{"$f":"Import!M15949","v":0},{"$f":"Import!M15979","v":0},{"$f":"Import!M16010","v":0},{"$f":"Import!M16041","v":0},{"$f":"Import!M16072","v":0},{"$f":"Import!M16103","v":0}]
[22,{"$f":"Import!M15860","v":0},{"$f":"+Import!M15890","v":0},{"$f":"Import!M15920","v":"Select"},{"$f":"Import!M15950","v":0},{"$f":"Import!M15980","v":0},{"$f":"Import!M16011","v":0},{"$f":"Import!M16042","v":0},{"$f":"Import!M16073","v":0},{"$f":"Import!M16104","v":0}]
[23,{"$f":"Import!M15861","v":0},{"$f":"+Import!M15891","v":0},{"$f":"Import!M15921","v":"Select"},{"$f":"Import!M15951","v":0},{"$f":"Import!M15981","v":0},{"$f":"Import!M16012","v":0},{"$f":"Import!M16043","v":0},{"$f":"Import!M16074","v":0},{"$f":"Import!M16105","v":0}]
[24,{"$f":"Import!M15862","v":0},{"$f":"+Import!M15892","v":0},{"$f":"Import!M15922","v":"Select"},{"$f":"Import!M15952","v":0},{"$f":"Import!M15982","v":0},{"$f":"Import!M16013","v":0},{"$f":"Import!M16044","v":0},{"$f":"Import!M16075","v":0},{"$f":"Import!M16106","v":0}]
[25,{"$f":"Import!M15863","v":0},{"$f":"+Import!M15893","v":0},{"$f":"Import!M15923","v":"Select"},{"$f":"Import!M15953","v":0},{"$f":"Import!M15983","v":0},{"$f":"Import!M16014","v":0},{"$f":"Import!M16045","v":0},{"$f":"Import!M16076","v":0},{"$f":"Import!M16107","v":0}]
[26,{"$f":"Import!M15864","v":0},{"$f":"+Import!M15894","v":0},{"$f":"Import!M15924","v":"Select"},{"$f":"Import!M15954","v":0},{"$f":"Import!M15984","v":0},{"$f":"Import!M16015","v":0},{"$f":"Import!M16046","v":0},{"$f":"Import!M16077","v":0},{"$f":"Import!M16108","v":0}]
[27,{"$f":"Import!M15865","v":0},{"$f":"+Import!M15895","v":0},{"$f":"Import!M15925","v":"Select"},{"$f":"Import!M15955","v":0},{"$f":"Import!M15985","v":0},{"$f":"Import!M16016","v":0},{"$f":"Import!M16047","v":0},{"$f":"Import!M16078","v":0},{"$f":"Import!M16109","v":0}]
[28,{"$f":"Import!M15866","v":0},{"$f":"+Import!M15896","v":0},{"$f":"Import!M15926","v":"Select"},{"$f":"Import!M15956","v":0},{"$f":"Import!M15986","v":0},{"$f":"Import!M16017","v":0},{"$f":"Import!M16048","v":0},{"$f":"Import!M16079","v":0},{"$f":"Import!M16110","v":0}]
[29,{"$f":"Import!M15867","v":0},{"$f":"+Import!M15897","v":0},{"$f":"Import!M15927","v":"Select"},{"$f":"Import!M15957","v":0},{"$f":"Import!M15987","v":0},{"$f":"Import!M16018","v":0},{"$f":"Import!M16049","v":0},{"$f":"Import!M16080","v":0},{"$f":"Import!M16111","v":0}]
[30,{"$f":"Import!M15868","v":0},{"$f":"+Import!M15898","v":0},{"$f":"Import!M15928","v":"Select"},{"$f":"Import!M15958","v":0},{"$f":"Import!M15988","v":0},{"$f":"Import!M16019","v":0},{"$f":"Import!M16050","v":0},{"$f":"Import!M16081","v":0},{"$f":"Import!M16112","v":0}]
[31]
[32]
[33]
[34]
[35]
[36]
[37]
[38]
[39]
[40]
[41]
[42]
[43]
[44]
[45]
[46]
[47]
[48]
[49]
[50]
[51]
[52]
[53]
[54]
[55]
[56]
[57]
[58]
[59]
[60]
[61]
[62]
[63]
[64]
[65]
[66]
[67]
[68]
[69]
[70]
[71]
[72]
[73]
[74]
[75]
[76]
[77]
[78]
[79]
[80]
[81]
[82]
[83]
[84]
[85]
[86]
[87]
[88]
[89]
[90]
[91]
[92]
[93]
[94]
[95]
[96]
[97]
[98]
[99]
[100]
[101]
[102]
[103]
[104]
[105]
[106]
[107]
[108]
[109]
[110]
[111]
[112]
[113]
[114]
[115]
[116]
[117]
[118]
[119]
[120]
[121]
[122]
[123]
[124]
[125]
[126]
[127]
[128]
[129]
[130]
[131]
[132]
[133]
[134]
[135]
[136]
[137]
[138]
[139]
[140]
[141]
[142]
[143]
[144]
[145]
[146]
[147]
[148]
[149]
[150]
[151]
[152]
[153]
[154]
[155]
[156]
[157]
[158]
[159]
[160]
[161]
[162]
[163]
[164]
[165]
[166]
[167]
[168]
[169]
[170]
[171]
[172]
[173]
[174]
[175]
[176]
[177]
[178]
[179]
[180]
[181]
[182]
[183]
[184]
[185]
[186]
[187]
[188]
[189]
[190]
[191]
[192]
[193]
[194]
[195]
[196]
[197]
[198]
[199]
[200]
[null,null,null,null,null,{"$f":"SUM(F11:F210)","v":0},{"$f":"SUM(G11:G210)","v":0},{"$f":"SUM(H11:H210)","v":0},{"$f":"SUM(I11:I210)","v":0},{"$f":"SUM(J11:J210)","v":0}]
[]
[]
[]
[null,null,null,"Select"]
[null,null,null,"Holding Entity"]
[null,null,null,"Operating Entity"]
[null,null,null,"Branch"]
[null,null,null,"Other"]

{"sheet":"Schedule XVIII (Unconsolidated)","index":94,"n_rows":104,"n_cols":15,"rows_kept":104,"cut":false,"hidden":true,"merged":[[22,2,22,3],[0,2,0,10],[8,2,8,14],[13,2,13,3],[14,2,14,3],[15,2,15,3],[16,2,16,3],[17,2,17,3],[18,2,18,3],[19,2,19,3],[20,2,20,3],[21,2,21,3],[34,2,34,3],[23,2,23,3],[24,2,24,3],[25,2,25,3],[26,2,26,3],[27,2,27,3],[28,2,28,3],[29,2,29,3],[30,2,30,3],[31,2,31,3],[32,2,32,3],[33,2,33,3],[46,2,46,3],[35,2,35,3],[36,2,36,3],[37,2,37,3],[38,2,38,3],[39,2,39,3],[40,2,40,3],[41,2,41,3],[42,2,42,3],[43,2,43,3],[44,2,44,3],[45,2,45,3],[60,3,60,4],[47,2,47,3],[48,2,48,3],[49,2,49,3],[50,2,50,3],[51,2,51,3],[52,2,52,3],[53,2,53,3],[56,3,56,4],[57,3,57,4],[58,3,58,4],[59,3,59,4],[90,3,90,4],[61,3,61,4],[62,3,62,4],[63,3,63,4],[64,3,64,4],[65,3,65,4],[70,3,71,4],[83,3,84,14],[86,3,86,4],[87,3,87,4],[88,3,88,4],[89,3,89,4],[91,3,91,4],[92,3,92,4],[93,3,93,4],[94,3,94,4],[98,3,99,14]]}
[null,null,"SCHEDULE OF PARTICULARS OF CEDED REINSURANCE",null,null,null,null,null,null,null,null,null,null,null,{"$f":"HYPERLINK(\"#'Index'!A1\",\"Return to Index\")","v":"Return to Index"}]
[]
[null,null,{"$f":"+'Company Information'!C7","v":"Enter Company Name"}]
[null,null,{"$f":"+'Company Information'!C3","v":"2022-12-31"}]
[null,null,{"$f":"+'Form 1EBS'!B4","v":"expressed in ['000s]"},null,null,null,null,null,null,null,null,null,null,null,"SCHEDULE XVIII"]
[]
[null,null,"Particulars of reinsurance balances "]
[]
[null,null,"Enter at Least the 10 Largest Reinsurance Exposures with the Remaining Reinsurance Exposures Grouped According to BSCR Ratings and/or a Single Consolidated Reinsurance Exposure"]
[]
[null,null,"Enter Number of Entities",null,{"$f":"Import!E16115","v":0}]
[]
[null,null,"Exposure by Reinsurer",null,null,null,"(A)",null,"(B)",null,"(C)",null,"(D)",null,"(E)"]
[null,null,"Name of Reinsurer",null,"BSCR Rating",null,"Reinsurance Assets\nForm 1SFS Lines 11(e), 12(c) and 17(c) \n(Include Form 1A, Line 12(c) Only to the Extent That They Are Not Already Included Under Schedule IIA)",null,"Reinsurance Payable\nForm 1SFS Lines 28, 29, 33 and 34(c) ",null,"Collateral\nNotes to Form 1SFS Line 11(e) and Line 17(c) ",null,"Qualifying Collateral\nMax(0,Min(C,(A-B)/.98))",null,"Net Qualifying Exposure\nMax (0, (A - B - D x 98%))"]
[null,1,{"$f":"Import!E16116","v":0},null,{"$f":"Import!E16146","v":"Select"},null,{"$f":"Import!E16176","v":0},null,{"$f":"Import!E16207","v":0},null,{"$f":"Import!E16238","v":0},null,{"$f":"IF(K15=0,0,MAX(0,MIN(K15,(G15-I15)/0.98)))","v":0},null,{"$f":"MAX(0,(G15-I15-M15*98%))","v":0}]
[null,2,{"$f":"Import!E16117","v":0},null,{"$f":"Import!E16147","v":"Select"},null,{"$f":"Import!E16177","v":0},null,{"$f":"Import!E16208","v":0},null,{"$f":"Import!E16239","v":0},null,{"$f":"IF(K16=0,0,MAX(0,MIN(K16,(G16-I16)/0.98)))","v":0},null,{"$f":"MAX(0,(G16-I16-M16*98%))","v":0}]
[null,3,{"$f":"Import!E16118","v":0},null,{"$f":"Import!E16148","v":"Select"},null,{"$f":"Import!E16178","v":0},null,{"$f":"Import!E16209","v":0},null,{"$f":"Import!E16240","v":0},null,0,null,{"$f":"MAX(0,(G17-I17-M17*98%))","v":0}]
[null,4,{"$f":"Import!E16119","v":0},null,{"$f":"Import!E16149","v":"Select"},null,{"$f":"Import!E16179","v":0},null,{"$f":"Import!E16210","v":0},null,{"$f":"Import!E16241","v":0},null,0,null,0]
[null,5,{"$f":"Import!E16120","v":0},null,{"$f":"Import!E16150","v":"Select"},null,{"$f":"Import!E16180","v":0},null,{"$f":"Import!E16211","v":0},null,{"$f":"Import!E16242","v":0},null,0,null,0]
[null,6,{"$f":"Import!E16121","v":0},null,{"$f":"Import!E16151","v":"Select"},null,{"$f":"Import!E16181","v":0},null,{"$f":"Import!E16212","v":0},null,{"$f":"Import!E16243","v":0},null,0,null,0]
[null,7,{"$f":"Import!E16122","v":0},null,{"$f":"Import!E16152","v":"Select"},null,{"$f":"Import!E16182","v":0},null,{"$f":"Import!E16213","v":0},null,{"$f":"Import!E16244","v":0},null,0,null,0]
[null,8,{"$f":"Import!E16123","v":0},null,{"$f":"Import!E16153","v":"Select"},null,{"$f":"Import!E16183","v":0},null,{"$f":"Import!E16214","v":0},null,{"$f":"Import!E16245","v":0},null,0,null,0]
[null,9,{"$f":"Import!E16124","v":0},null,{"$f":"Import!E16154","v":"Select"},null,{"$f":"Import!E16184","v":0},null,{"$f":"Import!E16215","v":0},null,{"$f":"Import!E16246","v":0},null,0,null,0]
[null,10,{"$f":"Import!E16125","v":0},null,{"$f":"Import!E16155","v":"Select"},null,{"$f":"Import!E16185","v":0},null,{"$f":"Import!E16216","v":0},null,{"$f":"Import!E16247","v":0},null,0,null,0]
[null,11,{"$f":"Import!E16126","v":0},null,{"$f":"Import!E16156","v":"Select"},null,{"$f":"Import!E16186","v":0},null,{"$f":"Import!E16217","v":0},null,{"$f":"Import!E16248","v":0},null,0,null,0]
[null,12,{"$f":"Import!E16127","v":0},null,{"$f":"Import!E16157","v":"Select"},null,{"$f":"Import!E16187","v":0},null,{"$f":"Import!E16218","v":0},null,{"$f":"Import!E16249","v":0},null,0,null,0]
[null,13,{"$f":"Import!E16128","v":0},null,{"$f":"Import!E16158","v":"Select"},null,{"$f":"Import!E16188","v":0},null,{"$f":"Import!E16219","v":0},null,{"$f":"Import!E16250","v":0},null,0,null,0]
[null,14,{"$f":"Import!E16129","v":0},null,{"$f":"Import!E16159","v":"Select"},null,{"$f":"Import!E16189","v":0},null,{"$f":"Import!E16220","v":0},null,{"$f":"Import!E16251","v":0},null,0,null,0]
[null,15,{"$f":"Import!E16130","v":0},null,{"$f":"Import!E16160","v":"Select"},null,{"$f":"Import!E16190","v":0},null,{"$f":"Import!E16221","v":0},null,{"$f":"Import!E16252","v":0},null,0,null,0]
[null,16,{"$f":"Import!E16131","v":0},null,{"$f":"Import!E16161","v":"Select"},null,{"$f":"Import!E16191","v":0},null,{"$f":"Import!E16222","v":0},null,{"$f":"Import!E16253","v":0},null,0,null,0]
[null,17,{"$f":"Import!E16132","v":0},null,{"$f":"Import!E16162","v":"Select"},null,{"$f":"Import!E16192","v":0},null,{"$f":"Import!E16223","v":0},null,{"$f":"Import!E16254","v":0},null,0,null,0]
[null,18,{"$f":"Import!E16133","v":0},null,{"$f":"Import!E16163","v":"Select"},null,{"$f":"Import!E16193","v":0},null,{"$f":"Import!E16224","v":0},null,{"$f":"Import!E16255","v":0},null,0,null,0]
[null,19,{"$f":"Import!E16134","v":0},null,{"$f":"Import!E16164","v":"Select"},null,{"$f":"Import!E16194","v":0},null,{"$f":"Import!E16225","v":0},null,{"$f":"Import!E16256","v":0},null,0,null,0]
[null,20,{"$f":"Import!E16135","v":0},null,{"$f":"Import!E16165","v":"Select"},null,{"$f":"Import!E16195","v":0},null,{"$f":"Import!E16226","v":0},null,{"$f":"Import!E16257","v":0},null,0,null,0]
[null,21,{"$f":"Import!E16136","v":0},null,{"$f":"Import!E16166","v":"Select"},null,{"$f":"Import!E16196","v":0},null,{"$f":"Import!E16227","v":0},null,{"$f":"Import!E16258","v":0},null,0,null,0]
[null,22,{"$f":"Import!E16137","v":0},null,{"$f":"Import!E16167","v":"Select"},null,{"$f":"Import!E16197","v":0},null,{"$f":"Import!E16228","v":0},null,{"$f":"Import!E16259","v":0},null,0,null,0]
[null,23,{"$f":"Import!E16138","v":0},null,{"$f":"Import!E16168","v":"Select"},null,{"$f":"Import!E16198","v":0},null,{"$f":"Import!E16229","v":0},null,{"$f":"Import!E16260","v":0},null,0,null,0]
[null,24,{"$f":"Import!E16139","v":0},null,{"$f":"Import!E16169","v":"Select"},null,{"$f":"Import!E16199","v":0},null,{"$f":"Import!E16230","v":0},null,{"$f":"Import!E16261","v":0},null,0,null,0]
[null,25,{"$f":"Import!E16140","v":0},null,{"$f":"Import!E16170","v":"Select"},null,{"$f":"Import!E16200","v":0},null,{"$f":"Import!E16231","v":0},null,{"$f":"Import!E16262","v":0},null,0,null,0]
[null,26,{"$f":"Import!E16141","v":0},null,{"$f":"Import!E16171","v":"Select"},null,{"$f":"Import!E16201","v":0},null,{"$f":"Import!E16232","v":0},null,{"$f":"Import!E16263","v":0},null,0,null,0]
[null,27,{"$f":"Import!E16142","v":0},null,{"$f":"Import!E16172","v":"Select"},null,{"$f":"Import!E16202","v":0},null,{"$f":"Import!E16233","v":0},null,{"$f":"Import!E16264","v":0},null,0,null,0]
[null,28,{"$f":"Import!E16143","v":0},null,{"$f":"Import!E16173","v":"Select"},null,{"$f":"Import!E16203","v":0},null,{"$f":"Import!E16234","v":0},null,{"$f":"Import!E16265","v":0},null,0,null,0]
[null,29,{"$f":"Import!E16144","v":0},null,{"$f":"Import!E16174","v":"Select"},null,{"$f":"Import!E16204","v":0},null,{"$f":"Import!E16235","v":0},null,{"$f":"Import!E16266","v":0},null,0,null,0]
[null,30,{"$f":"Import!E16145","v":0},null,{"$f":"Import!E16175","v":"Select"},null,{"$f":"Import!E16205","v":0},null,{"$f":"Import!E16236","v":0},null,{"$f":"Import!E16267","v":0},null,0,null,0]
[null,31,null,null,null,null,null,null,null,null,null,null,0,null,0]
[null,32,null,null,null,null,null,null,null,null,null,null,0,null,0]
[null,33,null,null,null,null,null,null,null,null,null,null,0,null,0]
[null,34,null,null,null,null,null,null,null,null,null,null,0,null,0]
[null,35,null,null,null,null,null,null,null,null,null,null,0,null,0]
[null,36,null,null,null,null,null,null,null,null,null,null,0,null,0]
[null,37,null,null,null,null,null,null,null,null,null,null,0,null,0]
[null,38,null,null,null,null,null,null,null,null,null,null,0,null,0]
[null,39,null,null,null,null,null,null,null,null,null,null,0,null,0]
[null,40,null,null,null,null,null,null,null,null,null,null,0,null,0]
[null,null,"Total Exposure By Reinsurer",null,null,null,{"$f":"SUM(G15:G54)","v":0},null,{"$f":"SUM(I15:I54)","v":0},null,{"$f":"SUM(K15:K54)","v":0},null,{"$f":"SUM(M15:M54)","v":0},null,{"$f":"SUM(O15:O54)","v":0}]
[]
[null,null,null,"Exposure by BSCR Rating"]
[null,null,null,"BSCR Rating 0 (Domestic Affiliates)",null,null,{"$f":"Import!E16269","v":0},null,{"$f":"Import!E16280","v":0},null,{"$f":"Import!E16291","v":0},null,{"$f":"IF(K58=0,0,MAX(0,MIN(K58,(G58-I58)/0.98)))","v":0},null,{"$f":"MAX(0,(G58-I58-M58*98%))","v":0}]
[null,null,null,"BSCR Rating 1",null,null,{"$f":"Import!E16270","v":0},null,{"$f":"Import!E16281","v":0},null,{"$f":"Import!E16292","v":0},null,0,null,0]
[null,null,null,"BSCR Rating 2",null,null,{"$f":"Import!E16271","v":0},null,{"$f":"Import!E16282","v":0},null,{"$f":"Import!E16293","v":0},null,0,null,{"$f":"MAX(0,(G60-I60-M60*98%))","v":0}]
[null,null,null,"BSCR Rating 3",null,null,{"$f":"Import!E16272","v":0},null,{"$f":"Import!E16283","v":0},null,{"$f":"Import!E16294","v":0},null,0,null,{"$f":"MAX(0,(G61-I61-M61*98%))","v":0}]
[null,null,null,"BSCR Rating 4",null,null,{"$f":"Import!E16273","v":0},null,{"$f":"Import!E16284","v":0},null,{"$f":"Import!E16295","v":0},null,0,null,0]
[null,null,null,"BSCR Rating 5",null,null,{"$f":"Import!E16274","v":0},null,{"$f":"Import!E16285","v":0},null,{"$f":"Import!E16296","v":0},null,0,null,0]
[null,null,null,"BSCR Rating 6",null,null,{"$f":"Import!E16275","v":0},null,{"$f":"Import!E16286","v":0},null,{"$f":"Import!E16297","v":0},null,0,null,0]
[null,null,null,"BSCR Rating 7",null,null,{"$f":"Import!E16276","v":0},null,{"$f":"Import!E16287","v":0},null,{"$f":"Import!E16298","v":0},null,0,null,0]
[null,null,null,"BSCR Rating 8",null,null,{"$f":"Import!E16277","v":0},null,{"$f":"Import!E16288","v":0},null,{"$f":"Import!E16299","v":0},null,0,null,{"$f":"MAX(0,(G66-I66-M66*98%))","v":0}]
[null,null,null,"Total Exposure By BSCR Rating",null,null,{"$f":"SUM(G58:G66)","v":0},null,{"$f":"SUM(I58:I66)","v":0},null,{"$f":"SUM(K58:K66)","v":0},null,{"$f":"SUM(M58:M66)","v":0},null,{"$f":"SUM(O58:O66)","v":0}]
[]
[null,null,null,"Single Consolidated Exposure",null,null,{"$f":"'Form 1SFS (Consolidated)'!E71+'Form 1SFS (Consolidated)'!I71+'Form 1SFS (Consolidated)'!E73+'Form 1SFS (Consolidated)'!I73+'Form 1SFS (Consolidated)'!E104+'Form 1SFS (Consolidated)'!#REF!-'Schedule IIA (Unconsolidated)'!D74-G55-G67","v":{"$error":"#REF!"}},null,null,null,null,null,{"$f":"IF(K69=0,0,MAX(0,MIN(K69,(G69-I69)/0.98)))","v":0},null,{"$f":"MAX(0,(G69-I69-M69*98%))","v":{"$error":"#REF!"}}]
[]
[null,null,null,"Total Balance Sheet Adjusted for Schedule IIA, Line 28, Column (1)"]
[null,null,null,null,null,null,{"$f":"'Form 1SFS (Consolidated)'!E71+'Form 1SFS (Consolidated)'!I71+'Form 1SFS (Consolidated)'!E73+'Form 1SFS (Consolidated)'!I73+'Form 1SFS (Consolidated)'!E104+'Form 1SFS (Consolidated)'!#REF!-'Schedule IIA (Unconsolidated)'!D74","v":{"$error":"#REF!"}}]
[]
[null,null,null,"Total Collateral",null,null,null,null,null,null,{"$f":"'Form 1SFS (Consolidated)'!M163+'Form 1SFS (Consolidated)'!M165","v":0}]
[]
[null,null,null,null,null,null,{"$f":"IF((G55+G67+G69-G72)=0,\"TRUE\",\"FALSE\")","v":{"$error":"#REF!"}},null,null,null,{"$f":"IF((K55+K67+K69-K74)=0,\"TRUE\",\"FALSE\")","v":"TRUE"}]
[]
[null,null,null,"Difference",null,null,{"$f":"ROUND(G72-G55-G67-G69,0)","v":{"$error":"#REF!"}},null,null,null,{"$f":"ROUND(K74-K55-K67-K69,0)","v":0}]
[]
[null,null,null,"Total Qualifying Collateral",null,null,null,null,null,null,null,null,{"$f":"IF(K74=0,0,MAX(0,MIN(K74,(G72)/0.98)))","v":0}]
[]
[null,null,null,"Total Net Qualifying Exposure",null,null,null,null,null,null,null,null,null,null,{"$f":"O55+O67+O69","v":{"$error":"#REF!"}}]
[]
[null,null,null,"Particulars of Reinsurance Balances by BSCR Rating"]
[]
[null,null,null,"Select",null,null,"Reinsurance Assets",null,"Reinsurance Payable",null,"Collateral",null,"Qualifying Collateral",null,"Net Qualifying Exposure"]
[null,null,null,"BSCR Rating 0 (Domestic Affiliates)",null,null,{"$f":"SUMPRODUCT(G$15:G$54,($E$15:$E$54=D87)*1)+G58","v":0},null,{"$f":"SUMPRODUCT(I$15:I$54,($E$15:$E$54=D87)*1)+I58","v":0},null,{"$f":"SUMPRODUCT(K$15:K$54,($E$15:$E$54=D87)*1)+K58","v":0},null,{"$f":"SUMPRODUCT(M$15:M$54,($E$15:$E$54=D87)*1)+M58","v":0},null,{"$f":"SUMPRODUCT(O$15:O$54,($E$15:$E$54=D87)*1)+O58","v":0}]
[null,null,null,"BSCR Rating 1",null,null,0,null,0,null,0,null,0,null,0]
[null,null,null,"BSCR Rating 2",null,null,0,null,0,null,0,null,0,null,0]
[null,null,null,"BSCR Rating 3",null,null,0,null,0,null,0,null,0,null,0]
[null,null,null,"BSCR Rating 4",null,null,0,null,0,null,0,null,0,null,0]
[null,null,null,"BSCR Rating 5",null,null,0,null,0,null,0,null,0,null,0]
[null,null,null,"BSCR Rating 6",null,null,0,null,0,null,0,null,0,null,0]
[null,null,null,"BSCR Rating 7",null,null,0,null,0,null,0,null,0,null,0]
[null,null,null,"BSCR Rating 8",null,null,{"$f":"SUMPRODUCT(G$15:G$54,($E$15:$E$54=D95)*1)+G66+G69","v":{"$error":"#REF!"}},null,{"$f":"SUMPRODUCT(I$15:I$54,($E$15:$E$54=D95)*1)+I66+I69","v":0},null,{"$f":"SUMPRODUCT(K$15:K$54,($E$15:$E$54=D95)*1)+K66+K69","v":0},null,{"$f":"SUMPRODUCT(M$15:M$54,($E$15:$E$54=D95)*1)+M66+M69","v":0},null,{"$f":"SUMPRODUCT(O$15:O$54,($E$15:$E$54=D95)*1)+O66+O69","v":{"$error":"#REF!"}}]
[null,null,null,"Total",null,null,{"$f":"SUM(G87:G95)","v":{"$error":"#REF!"}},null,{"$f":"SUM(I87:I95)","v":0},null,{"$f":"SUM(K87:K95)","v":0},null,{"$f":"SUM(M87:M95)","v":0},null,{"$f":"SUM(O87:O95)","v":{"$error":"#REF!"}}]
[]
[]
[null,null,null,"Diversification Adjustment Calculation On a Net Qualifying Exposure Basis"]
[]
[null,null,null,"Maximum Net Qualifying Exposure Balance On a Single Reinsurer Basis",null,null,null,null,null,null,null,null,null,null,{"$f":"MAX(O15:O54)","v":0}]
[null,null,null,"Total Net Qualifying Exposure",null,null,null,null,null,null,null,null,null,null,{"$f":"O82","v":{"$error":"#REF!"}}]
[null,null,null,"Percentage",null,null,null,null,null,null,null,null,null,null,{"$f":"IF(O102=0,0,O101/O102)","v":{"$error":"#REF!"}}]
[null,null,null,"Diversification Adjustment up to 40%",null,null,null,null,null,null,null,null,null,null,{"$f":"IF(O101=0,0,(1-O103)*40%)","v":0}]

{"sheet":"Schedule XVIII","index":95,"n_rows":104,"n_cols":15,"rows_kept":104,"cut":false,"hidden":false,"merged":[[91,3,91,4],[92,3,92,4],[93,3,93,4],[94,3,94,4],[98,3,99,14],[58,3,58,4],[59,3,59,4],[60,3,60,4],[90,3,90,4],[61,3,61,4],[62,3,62,4],[63,3,63,4],[64,3,64,4],[65,3,65,4],[70,3,71,4],[83,3,84,14],[86,3,86,4],[87,3,87,4],[88,3,88,4],[89,3,89,4],[51,2,51,3],[52,2,52,3],[53,2,53,3],[56,3,56,4],[57,3,57,4],[46,2,46,3],[47,2,47,3],[48,2,48,3],[49,2,49,3],[50,2,50,3],[41,2,41,3],[42,2,42,3],[43,2,43,3],[44,2,44,3],[45,2,45,3],[36,2,36,3],[37,2,37,3],[38,2,38,3],[39,2,39,3],[40,2,40,3],[31,2,31,3],[32,2,32,3],[33,2,33,3],[34,2,34,3],[35,2,35,3],[26,2,26,3],[27,2,27,3],[28,2,28,3],[29,2,29,3],[30,2,30,3],[21,2,21,3],[22,2,22,3],[23,2,23,3],[24,2,24,3],[25,2,25,3],[16,2,16,3],[17,2,17,3],[18,2,18,3],[19,2,19,3],[20,2,20,3],[0,2,0,10],[8,2,8,14],[13,2,13,3],[14,2,14,3],[15,2,15,3]]}
[null,null,"SCHEDULE OF PARTICULARS OF CEDED REINSURANCE",null,null,null,null,null,null,null,null,null,null,null,{"$f":"HYPERLINK(\"#'Index'!A1\",\"Return to Index\")","v":"Return to Index"}]
[]
[null,null,{"$f":"+'Company Information'!C7","v":"Enter Company Name"}]
[null,null,{"$f":"+'Company Information'!C3","v":"2022-12-31"}]
[null,null,{"$f":"'Form 1SFS (Consolidated)'!$C$5","v":"United States Dollars"},null,null,null,null,null,null,null,null,null,null,null,"SCHEDULE XVIII"]
[]
[null,null,"Particulars of reinsurance balances "]
[]
[null,null,"Enter at least the 10 largest reinsurance exposures with the remaining reinsurance exposures grouped according to BSCR ratings and/or a single consolidated reinsurance exposure"]
[]
[null,null,"Enter Number of Entities",null,{"$f":"Import!M16115","v":0}]
[]
[null,null,"Exposure by Reinsurer",null,null,null,"(A)",null,"(B)",null,"(C)",null,"(D)",null,"(E)"]
[null,null,"Name of Reinsurer",null,"BSCR Rating",null,"Reinsurance assets\nForm 1SFS lines 11(c), 12 and 17(c) \n(Include Form 1SFS, Line 12 only to the extent that they are not already included under Schedule IIA)",null,"Reinsurance payable\nForm 1SFS lines 28, 29, 33 and 34",null,"Collateral\nNotes to Form 1SFS lines 11(c) and 17(c) ",null,"Qualifying collateral\nmax(0,min(C,(A-B)/.98))",null,"Net qualifying exposure\nmax (0, (A - B - D x 98%))"]
[null,1,{"$f":"Import!M16116","v":0},null,{"$f":"Import!M16146","v":"Select"},null,{"$f":"Import!M16176","v":0},null,{"$f":"Import!M16207","v":0},null,{"$f":"Import!M16238","v":0},null,{"$f":"IF(K15=0,0,MAX(0,MIN(K15,(G15-I15)/0.98)))","v":0},null,{"$f":"MAX(0,(G15-I15-M15*98%))","v":0}]
[null,2,{"$f":"Import!M16117","v":0},null,{"$f":"Import!M16147","v":"Select"},null,{"$f":"Import!M16177","v":0},null,{"$f":"Import!M16208","v":0},null,{"$f":"Import!M16239","v":0},null,{"$f":"IF(K16=0,0,MAX(0,MIN(K16,(G16-I16)/0.98)))","v":0},null,{"$f":"MAX(0,(G16-I16-M16*98%))","v":0}]
[null,3,{"$f":"Import!M16118","v":0},null,{"$f":"Import!M16148","v":"Select"},null,{"$f":"Import!M16178","v":0},null,{"$f":"Import!M16209","v":0},null,{"$f":"Import!M16240","v":0},null,0,null,{"$f":"MAX(0,(G17-I17-M17*98%))","v":0}]
[null,4,{"$f":"Import!M16119","v":0},null,{"$f":"Import!M16149","v":"Select"},null,{"$f":"Import!M16179","v":0},null,{"$f":"Import!M16210","v":0},null,{"$f":"Import!M16241","v":0},null,0,null,0]
[null,5,{"$f":"Import!M16120","v":0},null,{"$f":"Import!M16150","v":"Select"},null,{"$f":"Import!M16180","v":0},null,{"$f":"Import!M16211","v":0},null,{"$f":"Import!M16242","v":0},null,0,null,0]
[null,6,{"$f":"Import!M16121","v":0},null,{"$f":"Import!M16151","v":"Select"},null,{"$f":"Import!M16181","v":0},null,{"$f":"Import!M16212","v":0},null,{"$f":"Import!M16243","v":0},null,0,null,0]
[null,7,{"$f":"Import!M16122","v":0},null,{"$f":"Import!M16152","v":"Select"},null,{"$f":"Import!M16182","v":0},null,{"$f":"Import!M16213","v":0},null,{"$f":"Import!M16244","v":0},null,0,null,0]
[null,8,{"$f":"Import!M16123","v":0},null,{"$f":"Import!M16153","v":"Select"},null,{"$f":"Import!M16183","v":0},null,{"$f":"Import!M16214","v":0},null,{"$f":"Import!M16245","v":0},null,0,null,0]
[null,9,{"$f":"Import!M16124","v":0},null,{"$f":"Import!M16154","v":"Select"},null,{"$f":"Import!M16184","v":0},null,{"$f":"Import!M16215","v":0},null,{"$f":"Import!M16246","v":0},null,0,null,0]
[null,10,{"$f":"Import!M16125","v":0},null,{"$f":"Import!M16155","v":"Select"},null,{"$f":"Import!M16185","v":0},null,{"$f":"Import!M16216","v":0},null,{"$f":"Import!M16247","v":0},null,0,null,0]
[null,11,{"$f":"Import!M16126","v":0},null,{"$f":"Import!M16156","v":"Select"},null,{"$f":"Import!M16186","v":0},null,{"$f":"Import!M16217","v":0},null,{"$f":"Import!M16248","v":0},null,0,null,0]
[null,12,{"$f":"Import!M16127","v":0},null,{"$f":"Import!M16157","v":"Select"},null,{"$f":"Import!M16187","v":0},null,{"$f":"Import!M16218","v":0},null,{"$f":"Import!M16249","v":0},null,0,null,0]
[null,13,{"$f":"Import!M16128","v":0},null,{"$f":"Import!M16158","v":"Select"},null,{"$f":"Import!M16188","v":0},null,{"$f":"Import!M16219","v":0},null,{"$f":"Import!M16250","v":0},null,0,null,0]
[null,14,{"$f":"Import!M16129","v":0},null,{"$f":"Import!M16159","v":"Select"},null,{"$f":"Import!M16189","v":0},null,{"$f":"Import!M16220","v":0},null,{"$f":"Import!M16251","v":0},null,0,null,0]
[null,15,{"$f":"Import!M16130","v":0},null,{"$f":"Import!M16160","v":"Select"},null,{"$f":"Import!M16190","v":0},null,{"$f":"Import!M16221","v":0},null,{"$f":"Import!M16252","v":0},null,0,null,0]
[null,16,{"$f":"Import!M16131","v":0},null,{"$f":"Import!M16161","v":"Select"},null,{"$f":"Import!M16191","v":0},null,{"$f":"Import!M16222","v":0},null,{"$f":"Import!M16253","v":0},null,0,null,0]
[null,17,{"$f":"Import!M16132","v":0},null,{"$f":"Import!M16162","v":"Select"},null,{"$f":"Import!M16192","v":0},null,{"$f":"Import!M16223","v":0},null,{"$f":"Import!M16254","v":0},null,0,null,0]
[null,18,{"$f":"Import!M16133","v":0},null,{"$f":"Import!M16163","v":"Select"},null,{"$f":"Import!M16193","v":0},null,{"$f":"Import!M16224","v":0},null,{"$f":"Import!M16255","v":0},null,0,null,0]
[null,19,{"$f":"Import!M16134","v":0},null,{"$f":"Import!M16164","v":"Select"},null,{"$f":"Import!M16194","v":0},null,{"$f":"Import!M16225","v":0},null,{"$f":"Import!M16256","v":0},null,0,null,0]
[null,20,{"$f":"Import!M16135","v":0},null,{"$f":"Import!M16165","v":"Select"},null,{"$f":"Import!M16195","v":0},null,{"$f":"Import!M16226","v":0},null,{"$f":"Import!M16257","v":0},null,0,null,0]
[null,21,{"$f":"Import!M16136","v":0},null,{"$f":"Import!M16166","v":"Select"},null,{"$f":"Import!M16196","v":0},null,{"$f":"Import!M16227","v":0},null,{"$f":"Import!M16258","v":0},null,0,null,0]
[null,22,{"$f":"Import!M16137","v":0},null,{"$f":"Import!M16167","v":"Select"},null,{"$f":"Import!M16197","v":0},null,{"$f":"Import!M16228","v":0},null,{"$f":"Import!M16259","v":0},null,0,null,0]
[null,23,{"$f":"Import!M16138","v":0},null,{"$f":"Import!M16168","v":"Select"},null,{"$f":"Import!M16198","v":0},null,{"$f":"Import!M16229","v":0},null,{"$f":"Import!M16260","v":0},null,0,null,0]
[null,24,{"$f":"Import!M16139","v":0},null,{"$f":"Import!M16169","v":"Select"},null,{"$f":"Import!M16199","v":0},null,{"$f":"Import!M16230","v":0},null,{"$f":"Import!M16261","v":0},null,0,null,0]
[null,25,{"$f":"Import!M16140","v":0},null,{"$f":"Import!M16170","v":"Select"},null,{"$f":"Import!M16200","v":0},null,{"$f":"Import!M16231","v":0},null,{"$f":"Import!M16262","v":0},null,0,null,0]
[null,26,{"$f":"Import!M16141","v":0},null,{"$f":"Import!M16171","v":"Select"},null,{"$f":"Import!M16201","v":0},null,{"$f":"Import!M16232","v":0},null,{"$f":"Import!M16263","v":0},null,0,null,0]
[null,27,{"$f":"Import!M16142","v":0},null,{"$f":"Import!M16172","v":"Select"},null,{"$f":"Import!M16202","v":0},null,{"$f":"Import!M16233","v":0},null,{"$f":"Import!M16264","v":0},null,0,null,0]
[null,28,{"$f":"Import!M16143","v":0},null,{"$f":"Import!M16173","v":"Select"},null,{"$f":"Import!M16203","v":0},null,{"$f":"Import!M16234","v":0},null,{"$f":"Import!M16265","v":0},null,0,null,0]
[null,29,{"$f":"Import!M16144","v":0},null,{"$f":"Import!M16174","v":"Select"},null,{"$f":"Import!M16204","v":0},null,{"$f":"Import!M16235","v":0},null,{"$f":"Import!M16266","v":0},null,0,null,0]
[null,30,{"$f":"Import!M16145","v":0},null,{"$f":"Import!M16175","v":"Select"},null,{"$f":"Import!M16205","v":0},null,{"$f":"Import!M16236","v":0},null,{"$f":"Import!M16267","v":0},null,0,null,0]
[null,31,null,null,null,null,null,null,null,null,null,null,0,null,0]
[null,32,null,null,null,null,null,null,null,null,null,null,0,null,0]
[null,33,null,null,null,null,null,null,null,null,null,null,0,null,0]
[null,34,null,null,null,null,null,null,null,null,null,null,0,null,0]
[null,35,null,null,null,null,null,null,null,null,null,null,0,null,0]
[null,36,null,null,null,null,null,null,null,null,null,null,0,null,0]
[null,37,null,null,null,null,null,null,null,null,null,null,0,null,0]
[null,38,null,null,null,null,null,null,null,null,null,null,0,null,0]
[null,39,null,null,null,null,null,null,null,null,null,null,0,null,0]
[null,40,null,null,null,null,null,null,null,null,null,null,0,null,0]
[null,null,"Total Exposure By Reinsurer",null,null,null,{"$f":"SUM(G15:G54)","v":0},null,{"$f":"SUM(I15:I54)","v":0},null,{"$f":"SUM(K15:K54)","v":0},null,{"$f":"SUM(M15:M54)","v":0},null,{"$f":"SUM(O15:O54)","v":0}]
[]
[null,null,null,"Exposure by BSCR Rating"]
[null,null,null,"BSCR Rating 0 (Domestic Affiliates)",null,null,{"$f":"Import!M16269","v":0},null,{"$f":"Import!M16280","v":0},null,{"$f":"Import!M16291","v":0},null,{"$f":"IF(K58=0,0,MAX(0,MIN(K58,(G58-I58)/0.98)))","v":0},null,{"$f":"MAX(0,(G58-I58-M58*98%))","v":0}]
[null,null,null,"BSCR Rating 1",null,null,{"$f":"Import!M16270","v":0},null,{"$f":"Import!M16281","v":0},null,{"$f":"Import!M16292","v":0},null,0,null,0]
[null,null,null,"BSCR Rating 2",null,null,{"$f":"Import!M16271","v":0},null,{"$f":"Import!M16282","v":0},null,{"$f":"Import!M16293","v":0},null,0,null,{"$f":"MAX(0,(G60-I60-M60*98%))","v":0}]
[null,null,null,"BSCR Rating 3",null,null,{"$f":"Import!M16272","v":0},null,{"$f":"Import!M16283","v":0},null,{"$f":"Import!M16294","v":0},null,0,null,{"$f":"MAX(0,(G61-I61-M61*98%))","v":0}]
[null,null,null,"BSCR Rating 4",null,null,{"$f":"Import!M16273","v":0},null,{"$f":"Import!M16284","v":0},null,{"$f":"Import!M16295","v":0},null,0,null,0]
[null,null,null,"BSCR Rating 5",null,null,{"$f":"Import!M16274","v":0},null,{"$f":"Import!M16285","v":0},null,{"$f":"Import!M16296","v":0},null,0,null,0]
[null,null,null,"BSCR Rating 6",null,null,{"$f":"Import!M16275","v":0},null,{"$f":"Import!M16286","v":0},null,{"$f":"Import!M16297","v":0},null,0,null,0]
[null,null,null,"BSCR Rating 7",null,null,{"$f":"Import!M16276","v":0},null,{"$f":"Import!M16287","v":0},null,{"$f":"Import!M16298","v":0},null,0,null,0]
[null,null,null,"BSCR Rating 8",null,null,{"$f":"Import!M16277","v":0},null,{"$f":"Import!M16288","v":0},null,{"$f":"Import!M16299","v":0},null,0,null,{"$f":"MAX(0,(G66-I66-M66*98%))","v":0}]
[null,null,null,"Total Exposure By BSCR Rating",null,null,{"$f":"SUM(G58:G66)","v":0},null,{"$f":"SUM(I58:I66)","v":0},null,{"$f":"SUM(K58:K66)","v":0},null,{"$f":"SUM(M58:M66)","v":0},null,{"$f":"SUM(O58:O66)","v":0}]
[]
[null,null,null,"Single Consolidated Exposure",null,null,{"$f":"'Form 1SFS (Consolidated)'!M71+'Form 1SFS (Consolidated)'!M73+'Form 1SFS (Consolidated)'!M104-'Schedule IIA'!D74-G55-G67","v":0},null,null,null,null,null,{"$f":"IF(K69=0,0,MAX(0,MIN(K69,(G69-I69)/0.98)))","v":0},null,{"$f":"MAX(0,(G69-I69-M69*98%))","v":0}]
[]
[null,null,null,"Total Balance Sheet Adjusted for Schedule IIA, Line 28, Column (1)"]
[null,null,null,null,null,null,{"$f":"'Form 1SFS (Consolidated)'!M71+'Form 1SFS (Consolidated)'!M73+'Form 1SFS (Consolidated)'!M104-'Schedule IIA'!D74","v":0}]
[]
[null,null,null,"Total Collateral"]
[]
[null,null,null,null,null,null,{"$f":"IF(ROUND((G55+G67+G69-G72),0)=0,\"TRUE\",\"FALSE\")","v":"TRUE"},null,null,null,{"$f":"IF(ROUND((K55+K67+K69-K74),0)=0,\"TRUE\",\"FALSE\")","v":"TRUE"}]
[]
[null,null,null,"Difference",null,null,{"$f":"ROUND(G72-G55-G67-G69,0)","v":0},null,null,null,{"$f":"ROUND(K74-K55-K67-K69,0)","v":0}]
[]
[null,null,null,"Total Qualifying Collateral",null,null,null,null,null,null,null,null,{"$f":"IF(K74=0,0,MAX(0,MIN(K74,(G72)/0.98)))","v":0}]
[]
[null,null,null,"Total Net Qualifying Exposure",null,null,null,null,null,null,null,null,null,null,{"$f":"O55+O67+O69","v":0}]
[]
[null,null,null,"Particulars of Reinsurance Balances by BSCR Rating"]
[]
[null,null,null,"Select",null,null,"Reinsurance Assets",null,"Reinsurance Payable",null,"Collateral",null,"Qualifying Collateral",null,"Net Qualifying Exposure"]
[null,null,null,"BSCR Rating 0 (Domestic Affiliates)",null,null,{"$f":"SUMPRODUCT(G$15:G$54,($E$15:$E$54=D87)*1)+G58","v":0},null,{"$f":"SUMPRODUCT(I$15:I$54,($E$15:$E$54=D87)*1)+I58","v":0},null,{"$f":"SUMPRODUCT(K$15:K$54,($E$15:$E$54=D87)*1)+K58","v":0},null,{"$f":"SUMPRODUCT(M$15:M$54,($E$15:$E$54=D87)*1)+M58","v":0},null,{"$f":"SUMPRODUCT(O$15:O$54,($E$15:$E$54=D87)*1)+O58","v":0}]
[null,null,null,"BSCR Rating 1",null,null,0,null,0,null,0,null,0,null,0]
[null,null,null,"BSCR Rating 2",null,null,0,null,0,null,0,null,0,null,0]
[null,null,null,"BSCR Rating 3",null,null,0,null,0,null,0,null,0,null,0]
[null,null,null,"BSCR Rating 4",null,null,0,null,0,null,0,null,0,null,0]
[null,null,null,"BSCR Rating 5",null,null,0,null,0,null,0,null,0,null,0]
[null,null,null,"BSCR Rating 6",null,null,0,null,0,null,0,null,0,null,0]
[null,null,null,"BSCR Rating 7",null,null,0,null,0,null,0,null,0,null,0]
[null,null,null,"BSCR Rating 8",null,null,{"$f":"SUMPRODUCT(G$15:G$54,($E$15:$E$54=D95)*1)+G66+G69","v":0},null,{"$f":"SUMPRODUCT(I$15:I$54,($E$15:$E$54=D95)*1)+I66+I69","v":0},null,{"$f":"SUMPRODUCT(K$15:K$54,($E$15:$E$54=D95)*1)+K66+K69","v":0},null,{"$f":"SUMPRODUCT(M$15:M$54,($E$15:$E$54=D95)*1)+M66+M69","v":0},null,{"$f":"SUMPRODUCT(O$15:O$54,($E$15:$E$54=D95)*1)+O66+O69","v":0}]
[null,null,null,"Total",null,null,{"$f":"SUM(G87:G95)","v":0},null,{"$f":"SUM(I87:I95)","v":0},null,{"$f":"SUM(K87:K95)","v":0},null,{"$f":"SUM(M87:M95)","v":0},null,{"$f":"SUM(O87:O95)","v":0}]
[]
[]
[null,null,null,"Diversification Adjustment Calculation On a Net Qualifying Exposure Basis"]
[]
[null,null,null,"Maximum Net Qualifying Exposure Balance On a Single Reinsurer Basis",null,null,null,null,null,null,null,null,null,null,{"$f":"MAX(O15:O54)","v":0}]
[null,null,null,"Total Net Qualifying Exposure",null,null,null,null,null,null,null,null,null,null,{"$f":"O82","v":0}]
[null,null,null,"Percentage",null,null,null,null,null,null,null,null,null,null,{"$f":"IF(O102=0,0,O101/O102)","v":0}]
[null,null,null,"Diversification Adjustment up to 40%",null,null,null,null,null,null,null,null,null,null,{"$f":"IF(O101=0,0,(1-O103)*40%)","v":0}]

{"sheet":"Schedule XIX","index":96,"n_rows":98,"n_cols":8,"rows_kept":98,"cut":false,"hidden":true,"merged":[[85,2,85,3],[86,2,86,3],[87,2,87,3],[88,2,88,3],[80,2,80,3],[81,2,81,3],[82,2,82,3],[83,2,83,3],[84,2,84,3],[77,2,78,7],[0,2,0,3],[7,2,7,7],[56,2,56,3],[57,2,57,3],[58,2,58,3],[59,2,59,3],[60,2,60,3],[61,2,61,3],[62,2,62,3],[63,2,63,3],[64,2,64,3],[1,5,6,6]]}
[null,null,"SCHEDULE OF RISK MANAGEMENT -  CASH AND CASH EQUIVALENTS COUNTERPARTY ANALYSIS",null,null,null,null,{"$f":"HYPERLINK(\"#'Index'!A1\",\"Return to Index\")","v":"Return to Index"}]
[null,null,{"$f":"+'Company Information'!C7","v":"Enter Company Name"}]
[null,null,{"$f":"+'Company Information'!C3","v":"2022-12-31"}]
[null,null,{"$f":"+'Form 1EBS'!B4","v":"expressed in ['000s]"},null,null,null,null,"SCHEDULE XIX"]
[]
[null,null,"Cash and cash equivalent countparty balances"]
[]
[null,null,"Enter at Least the 10 Largest Balances for Cash and Cash Equivalents with the Remaining Balances Grouped According to BSCR Ratings and/or a Single Consolidated Cash Balance"]
[]
[null,null,"Enter Number of Balances",{"$f":"Import!E16302","v":0},null,"Unconsolidated SFS",null,"Consolidated SFS"]
[]
[null,null,"Cash and Cash Equivalent Counterparty Balance",null,null,"(A)",null,"(B)"]
[null,null,"Name of Cash and Cash Equivalent Counterparty Balance","BSCR Rating",null,"Cash and Cash Equivalent Balance\n(Form 1SFS, Line 1 & Schedule IIA Line 27)",null,"Cash and Cash Equivalent Balance\n(Form 1SFS, Line 1 & Schedule IIA Line 27)"]
[null,1,{"$f":"Import!E16303","v":0},{"$f":"Import!E16323","v":"Select"},null,{"$f":"Import!E16343","v":0},null,{"$f":"Import!M16343","v":0}]
[null,2,{"$f":"Import!E16304","v":0},{"$f":"Import!E16324","v":"Select"},null,{"$f":"Import!E16344","v":0},null,{"$f":"Import!M16344","v":0}]
[null,3,{"$f":"Import!E16305","v":0},{"$f":"Import!E16325","v":"Select"},null,{"$f":"Import!E16345","v":0},null,{"$f":"Import!M16345","v":0}]
[null,4,{"$f":"Import!E16306","v":0},{"$f":"Import!E16326","v":"Select"},null,{"$f":"Import!E16346","v":0},null,{"$f":"Import!M16346","v":0}]
[null,5,{"$f":"Import!E16307","v":0},{"$f":"Import!E16327","v":"Select"},null,{"$f":"Import!E16347","v":0},null,{"$f":"Import!M16347","v":0}]
[null,6,{"$f":"Import!E16308","v":0},{"$f":"Import!E16328","v":"Select"},null,{"$f":"Import!E16348","v":0},null,{"$f":"Import!M16348","v":0}]
[null,7,{"$f":"Import!E16309","v":0},{"$f":"Import!E16329","v":"Select"},null,{"$f":"Import!E16349","v":0},null,{"$f":"Import!M16349","v":0}]
[null,8,{"$f":"Import!E16310","v":0},{"$f":"Import!E16330","v":"Select"},null,{"$f":"Import!E16350","v":0},null,{"$f":"Import!M16350","v":0}]
[null,9,{"$f":"Import!E16311","v":0},{"$f":"Import!E16331","v":"Select"},null,{"$f":"Import!E16351","v":0},null,{"$f":"Import!M16351","v":0}]
[null,10,{"$f":"Import!E16312","v":0},{"$f":"Import!E16332","v":"Select"},null,{"$f":"Import!E16352","v":0},null,{"$f":"Import!M16352","v":0}]
[null,11,{"$f":"Import!E16313","v":0},{"$f":"Import!E16333","v":"Select"},null,{"$f":"Import!E16353","v":0},null,{"$f":"Import!M16353","v":0}]
[null,12,{"$f":"Import!E16314","v":0},{"$f":"Import!E16334","v":"Select"},null,{"$f":"Import!E16354","v":0},null,{"$f":"Import!M16354","v":0}]
[null,13,{"$f":"Import!E16315","v":0},{"$f":"Import!E16335","v":"Select"},null,{"$f":"Import!E16355","v":0},null,{"$f":"Import!M16355","v":0}]
[null,14,{"$f":"Import!E16316","v":0},{"$f":"Import!E16336","v":"Select"},null,{"$f":"Import!E16356","v":0},null,{"$f":"Import!M16356","v":0}]
[null,15,{"$f":"Import!E16317","v":0},{"$f":"Import!E16337","v":"Select"},null,{"$f":"Import!E16357","v":0},null,{"$f":"Import!M16357","v":0}]
[null,16,{"$f":"Import!E16318","v":0},{"$f":"Import!E16338","v":"Select"},null,{"$f":"Import!E16358","v":0},null,{"$f":"Import!M16358","v":0}]
[null,17,{"$f":"Import!E16319","v":0},{"$f":"Import!E16339","v":"Select"},null,{"$f":"Import!E16359","v":0},null,{"$f":"Import!M16359","v":0}]
[null,18,{"$f":"Import!E16320","v":0},{"$f":"Import!E16340","v":"Select"},null,{"$f":"Import!E16360","v":0},null,{"$f":"Import!M16360","v":0}]
[null,19,{"$f":"Import!E16321","v":0},{"$f":"Import!E16341","v":"Select"},null,{"$f":"Import!E16361","v":0},null,{"$f":"Import!M16361","v":0}]
[null,20,{"$f":"Import!E16322","v":0},{"$f":"Import!E16342","v":"Select"},null,{"$f":"Import!E16362","v":0},null,{"$f":"Import!M16362","v":0}]
[null,21]
[null,22]
[null,23]
[null,24]
[null,25]
[null,26]
[null,27]
[null,28]
[null,29]
[null,30]
[null,31]
[null,32]
[null,33]
[null,34]
[null,35]
[null,36]
[null,37]
[null,38]
[null,39]
[null,40]
[null,null,"Total Cash and Cash Equivalent Counterparty Balance",null,null,{"$f":"SUM(F14:F53)","v":0},null,{"$f":"SUM(H14:H53)","v":0}]
[]
[null,null,"Exposure by BSCR Rating"]
[null,null,"BSCR Rating 0 (Domestic Affiliates)",null,null,{"$f":"Import!E16364","v":0},null,{"$f":"Import!M16364","v":0}]
[null,null,"BSCR Rating 1",null,null,{"$f":"Import!E16365","v":0},null,{"$f":"Import!M16365","v":0}]
[null,null,"BSCR Rating 2",null,null,{"$f":"Import!E16366","v":0},null,{"$f":"Import!M16366","v":0}]
[null,null,"BSCR Rating 3",null,null,{"$f":"Import!E16367","v":0},null,{"$f":"Import!M16367","v":0}]
[null,null,"BSCR Rating 4",null,null,{"$f":"Import!E16368","v":0},null,{"$f":"Import!M16368","v":0}]
[null,null,"BSCR Rating 5",null,null,{"$f":"Import!E16369","v":0},null,{"$f":"Import!M16369","v":0}]
[null,null,"BSCR Rating 6",null,null,{"$f":"Import!E16370","v":0},null,{"$f":"Import!M16370","v":0}]
[null,null,"BSCR Rating 7",null,null,{"$f":"Import!E16371","v":0},null,{"$f":"Import!M16371","v":0}]
[null,null,"BSCR Rating 8",null,null,{"$f":"Import!E16372","v":0},null,{"$f":"Import!M16372","v":0}]
[null,null,"Total Exposure By BSCR Rating",null,null,{"$f":"SUM(F57:F65)","v":0},null,{"$f":"SUM(H57:H65)","v":0}]
[]
[null,null,"Single Consolidated Exposure",null,null,{"$f":"'Form 1SFS (Consolidated)'!E12+'Form 1SFS (Consolidated)'!I12+'Schedule IIA (Unconsolidated)'!D68-F54-F66","v":0},null,{"$f":"'Form 1SFS (Consolidated)'!M12+'Schedule IIA'!D68-H54-H66","v":0}]
[]
[null,null,"Total Cash and Cash Equivalent Balance",null,null,{"$f":"F54+F66+F68","v":0},null,{"$f":"H54+H66+H68","v":0}]
[]
[null,null,"Cash and Cash Equivalent Check",null,null,{"$f":"'Form 1SFS (Consolidated)'!E12+'Form 1SFS (Consolidated)'!I12+'Schedule IIA (Unconsolidated)'!D68","v":0},null,{"$f":"'Form 1SFS (Consolidated)'!M12+'Schedule IIA'!D68","v":0}]
[]
[null,null,null,null,null,{"$f":"IF(F75=\"TRUE\",HYPERLINK(\"#'Form 1SFS'!E12:M12\",\"TRUE\"),HYPERLINK(\"#'Form 1SFS'!E12:M12\",\"FALSE\"))","v":"TRUE"},null,{"$f":"IF(H75=\"TRUE\",HYPERLINK(\"#'Form 1SFS (Consolidated)'!M12\",\"TRUE\"),HYPERLINK(\"#'Form 1SFS (Consolidated)'!M12\",\"FALSE\"))","v":"TRUE"}]
[null,null,null,null,null,{"$f":"IF(ROUND((F70-F72),0)=0,\"True\",\"False\")","v":"True"},null,{"$f":"IF(ROUND((H70-H72),0)=0,\"True\",\"False\")","v":"True"}]
[null,null,"Difference",null,null,{"$f":"ROUND(F70-F72,0)","v":0},null,{"$f":"ROUND(H70-H72,0)","v":0}]
[]
[null,null,"Cash and Cash Equivalents Counterparty Balance by BSCR Rating"]
[]
[null,null,"Select",null,null,null,null,"Cash and Cash Equivalent Exposure"]
[null,null,"BSCR Rating 0 (Domestic Affiliates)",null,null,null,null,{"$f":"SUMPRODUCT(H$14:H$53,($D$14:$D$53=C81)*1)+H57","v":0}]
[null,null,"BSCR Rating 1",null,null,null,null,0]
[null,null,"BSCR Rating 2",null,null,null,null,0]
[null,null,"BSCR Rating 3",null,null,null,null,0]
[null,null,"BSCR Rating 4",null,null,null,null,0]
[null,null,"BSCR Rating 5",null,null,null,null,0]
[null,null,"BSCR Rating 6",null,null,null,null,0]
[null,null,"BSCR Rating 7",null,null,null,null,0]
[null,null,"BSCR Rating 8",null,null,null,null,{"$f":"SUMPRODUCT(H$14:H$53,($D$14:$D$53=C89)*1)+H65+H68","v":0}]
[null,null,"Total",null,null,null,null,{"$f":"SUM(H81:H89)","v":0}]
[]
[]
[null,null,"Diversification Adjustment Calculation On an Exposure Basis"]
[]
[null,null,"Maximum Cash and Cash Equivalent Counterparty Balance On a Single Exposure Basis",null,null,null,null,{"$f":"MAX(H14:H53)","v":0}]
[null,null,"Total Cash and Cash Equivalent Counterparty Balance",null,null,null,null,{"$f":"+H72","v":0}]
[null,null,"Percentage",null,null,null,null,{"$f":"IF(H96=0,0,H95/H96)","v":0}]
[null,null,"Diversification Adjustment up to 40%",null,null,null,null,{"$f":"IF(H95=0,0,(1-H97)*40%)","v":0}]

{"sheet":"Schedule XIXA","index":97,"n_rows":98,"n_cols":6,"rows_kept":98,"cut":false,"hidden":false,"merged":[[85,2,85,3],[86,2,86,3],[87,2,87,3],[88,2,88,3],[77,2,78,5],[80,2,80,3],[81,2,81,3],[82,2,82,3],[83,2,83,3],[84,2,84,3],[64,2,64,3],[0,2,0,3],[7,2,7,5],[56,2,56,3],[57,2,57,3],[58,2,58,3],[59,2,59,3],[60,2,60,3],[61,2,61,3],[62,2,62,3],[63,2,63,3]]}
[null,null,"SCHEDULE OF RISK MANAGEMENT -  CASH AND CASH EQUIVALENTS COUNTERPARTY ANALYSIS",null,null,{"$f":"HYPERLINK(\"#'Index'!A1\",\"Return to Index\")","v":"Return to Index"}]
[null,null,{"$f":"+'Company Information'!C7","v":"Enter Company Name"}]
[null,null,{"$f":"+'Company Information'!C3","v":"2022-12-31"}]
[null,null,{"$f":"'Form 1SFS (Consolidated)'!$C$5","v":"United States Dollars"},null,null,"SCHEDULE XIXA"]
[]
[null,null,"Cash and cash equivalent count party balances"]
[]
[null,null,"Enter at least the 10 largest balances for cash and cash equivalents with the remaining balances grouped according to BSCR ratings and/or a single consolidated cash balance"]
[]
[null,null,"Enter Number of Balances",{"$f":"Import!M16374","v":0},null,"Consolidated Valuation"]
[]
[null,null,"Cash and Cash Equivalent Counterparty Balance",null,null,"(A)"]
[null,null,"Name of Cash and Cash Equivalent Counterparty Balance","BSCR Rating",null,"Cash and Cash Equivalent Balance\n(Form 1SFS Line 1 & Schedule IIB-IIF Line 58)"]
[null,1,{"$f":"Import!M16375","v":0},{"$f":"Import!M16395","v":"Select"},null,{"$f":"Import!M16415","v":0}]
[null,2,{"$f":"Import!M16376","v":0},{"$f":"Import!M16396","v":"Select"},null,{"$f":"Import!M16416","v":0}]
[null,3,{"$f":"Import!M16377","v":0},{"$f":"Import!M16397","v":"Select"},null,{"$f":"Import!M16417","v":0}]
[null,4,{"$f":"Import!M16378","v":0},{"$f":"Import!M16398","v":"Select"},null,{"$f":"Import!M16418","v":0}]
[null,5,{"$f":"Import!M16379","v":0},{"$f":"Import!M16399","v":"Select"},null,{"$f":"Import!M16419","v":0}]
[null,6,{"$f":"Import!M16380","v":0},{"$f":"Import!M16400","v":"Select"},null,{"$f":"Import!M16420","v":0}]
[null,7,{"$f":"Import!M16381","v":0},{"$f":"Import!M16401","v":"Select"},null,{"$f":"Import!M16421","v":0}]
[null,8,{"$f":"Import!M16382","v":0},{"$f":"Import!M16402","v":"Select"},null,{"$f":"Import!M16422","v":0}]
[null,9,{"$f":"Import!M16383","v":0},{"$f":"Import!M16403","v":"Select"},null,{"$f":"Import!M16423","v":0}]
[null,10,{"$f":"Import!M16384","v":0},{"$f":"Import!M16404","v":"Select"},null,{"$f":"Import!M16424","v":0}]
[null,11,{"$f":"Import!M16385","v":0},{"$f":"Import!M16405","v":"Select"},null,{"$f":"Import!M16425","v":0}]
[null,12,{"$f":"Import!M16386","v":0},{"$f":"Import!M16406","v":"Select"},null,{"$f":"Import!M16426","v":0}]
[null,13,{"$f":"Import!M16387","v":0},{"$f":"Import!M16407","v":"Select"},null,{"$f":"Import!M16427","v":0}]
[null,14,{"$f":"Import!M16388","v":0},{"$f":"Import!M16408","v":"Select"},null,{"$f":"Import!M16428","v":0}]
[null,15,{"$f":"Import!M16389","v":0},{"$f":"Import!M16409","v":"Select"},null,{"$f":"Import!M16429","v":0}]
[null,16,{"$f":"Import!M16390","v":0},{"$f":"Import!M16410","v":"Select"},null,{"$f":"Import!M16430","v":0}]
[null,17,{"$f":"Import!M16391","v":0},{"$f":"Import!M16411","v":"Select"},null,{"$f":"Import!M16431","v":0}]
[null,18,{"$f":"Import!M16392","v":0},{"$f":"Import!M16412","v":"Select"},null,{"$f":"Import!M16432","v":0}]
[null,19,{"$f":"Import!M16393","v":0},{"$f":"Import!M16413","v":"Select"},null,{"$f":"Import!M16433","v":0}]
[null,20,{"$f":"Import!M16394","v":0},{"$f":"Import!M16414","v":"Select"},null,{"$f":"Import!M16434","v":0}]
[null,21]
[null,22]
[null,23]
[null,24]
[null,25]
[null,26]
[null,27]
[null,28]
[null,29]
[null,30]
[null,31]
[null,32]
[null,33]
[null,34]
[null,35]
[null,36]
[null,37]
[null,38]
[null,39]
[null,40]
[null,null,"Total Cash and Cash Equivalent Counterparty Balance",null,null,{"$f":"SUM(F14:F53)","v":0}]
[]
[null,null,"Exposure by BSCR Rating"]
[null,null,"BSCR Rating 0 (Domestic Affiliates)",null,null,{"$f":"Import!M16436","v":0}]
[null,null,"BSCR Rating 1",null,null,{"$f":"Import!M16437","v":0}]
[null,null,"BSCR Rating 2",null,null,{"$f":"Import!M16438","v":0}]
[null,null,"BSCR Rating 3",null,null,{"$f":"Import!M16439","v":0}]
[null,null,"BSCR Rating 4",null,null,{"$f":"Import!M16440","v":0}]
[null,null,"BSCR Rating 5",null,null,{"$f":"Import!M16441","v":0}]
[null,null,"BSCR Rating 6",null,null,{"$f":"Import!M16442","v":0}]
[null,null,"BSCR Rating 7",null,null,{"$f":"Import!M16443","v":0}]
[null,null,"BSCR Rating 8",null,null,{"$f":"Import!M16444","v":0}]
[null,null,"Total Exposure By BSCR Rating",null,null,{"$f":"SUM(F57:F65)","v":0}]
[]
[null,null,"Single Consolidated Exposure",null,null,{"$f":"'Form 1SFS (Consolidated)'!M12+'Schedule IIB'!D95+'Schedule IIC'!D95+'Schedule IID'!D95+'Schedule IIE'!D95+'Schedule IIF'!D95-F54-F66","v":0}]
[]
[null,null,"Total Cash and Cash Equivalent Balance",null,null,{"$f":"F54+F66+F68","v":0}]
[]
[null,null,"Cash and Cash Equivalent Check",null,null,{"$f":"'Form 1SFS (Consolidated)'!M12+'Schedule IIB'!D95+'Schedule IIC'!D95+'Schedule IID'!D95+'Schedule IIE'!D95+'Schedule IIF'!D95","v":0}]
[]
[null,null,null,null,null,{"$f":"IF(ROUND((F70-F72),0)=0,\"True\",\"False\")","v":"True"}]
[]
[null,null,"Difference",null,null,{"$f":"F70-F72","v":0}]
[]
[null,null,"Cash and Cash Equivalents Counterparty Balance by BSCR Rating"]
[]
[null,null,"Select",null,null,"Cash and Cash Equivalent Exposure"]
[null,null,"BSCR Rating 0 (Domestic Affiliates)",null,null,{"$f":"SUMPRODUCT(F$14:F$53,($D$14:$D$53=C81)*1)+F57","v":0}]
[null,null,"BSCR Rating 1",null,null,0]
[null,null,"BSCR Rating 2",null,null,0]
[null,null,"BSCR Rating 3",null,null,0]
[null,null,"BSCR Rating 4",null,null,0]
[null,null,"BSCR Rating 5",null,null,0]
[null,null,"BSCR Rating 6",null,null,0]
[null,null,"BSCR Rating 7",null,null,0]
[null,null,"BSCR Rating 8",null,null,{"$f":"SUMPRODUCT(F$14:F$53,($D$14:$D$53=C89)*1)+F65+F68","v":0}]
[null,null,"Total",null,null,{"$f":"SUM(F81:F89)","v":0}]
[]
[]
[null,null,"Diversification Adjustment Calculation On an Exposure Basis"]
[]
[null,null,"Maximum Cash and Cash Equivalent Counterparty Balance On a Single Exposure Basis",null,null,{"$f":"MAX(F14:F53)","v":0}]
[null,null,"Total Cash and Cash Equivalent Counterparty Balance",null,null,{"$f":"+F72","v":0}]
[null,null,"Percentage",null,null,{"$f":"IF(F96=0,0,F95/F96)","v":0}]
[null,null,"Diversification Adjustment up to 40%",null,null,{"$f":"IF(F95=0,0,(1-F97)*40%)","v":0}]

{"sheet":"Schedule XX","index":98,"n_rows":38,"n_cols":20,"rows_kept":38,"cut":false,"hidden":true,"merged":[[4,3,4,9],[4,11,4,17],[2,3,3,9]]}
[null,"SCHEDULE OF CURRENCY RISK",null,null,null,null,null,null,null,null,null,null,null,null,null,null,null,null,null,{"$f":"HYPERLINK(\"#'Index'!A1\",\"Return to Index\")","v":"Return to Index"}]
[null,{"$f":"'Company Information'!C7","v":"Enter Company Name"}]
[null,{"$f":"'Form 1EBS'!C3","v":"2022-12-31"},null,null,null,null,null,null,null,null,null,null,null,null,null,null,null,null,null,"SCHEDULE XX"]
[null,{"$f":"IF(CONFIGURATION!$B$12>1,\" ['\"&MID(CONFIGURATION!$B$12,2,LEN(CONFIGURATION!$B$12))&\"s]\",\"\")&'Form 1EBS'!C4","v":" ['000s]United States Dollars"}]
[null,null,null,"Unconsolidated SFS",null,null,null,null,null,null,null,"Consolidated Valuation"]
[]
[null,"Currency",null,"Assets",null,"Assets with Hedging Arrangements",null,"Liabilities",null,"Liabilities with Hedging Arrangements",null,"Assets",null,"Assets with Hedging Arrangements",null,"Liabilities",null,"Liabilities with Hedging Arrangements",null,"Net Asset Value"]
[]
[null,{"$f":"'Form 1EBS'!C4","v":"United States Dollars"},null,{"$f":"Import!E16446","v":0},null,{"$f":"Import!E16462","v":0},null,{"$f":"Import!E16478","v":0},null,{"$f":"Import!E16494","v":0},null,{"$f":"Import!M16446","v":0},null,{"$f":"Import!M16462","v":0},null,{"$f":"Import!M16478","v":0},null,{"$f":"Import!M16494","v":0},null,{"$f":"L9-P9","v":0}]
[null,{"$f":"IF($B$9=\"Euro\",\"United States Dollar\",\"Euro\")","v":"Euro"},null,{"$f":"Import!E16447","v":0},null,{"$f":"Import!E16463","v":0},null,{"$f":"Import!E16479","v":0},null,{"$f":"Import!E16495","v":0},null,{"$f":"Import!M16447","v":0},null,{"$f":"Import!M16463","v":0},null,{"$f":"Import!M16479","v":0},null,{"$f":"Import!M16495","v":0},null,0]
[null,{"$f":"IF($B$9=\"United Kingdom Pounds\",\"United States Dollar\",\"United Kingdom Pounds\")","v":"United Kingdom Pounds"},null,{"$f":"Import!E16448","v":0},null,{"$f":"Import!E16464","v":0},null,{"$f":"Import!E16480","v":0},null,{"$f":"Import!E16496","v":0},null,{"$f":"Import!M16448","v":0},null,{"$f":"Import!M16464","v":0},null,{"$f":"Import!M16480","v":0},null,{"$f":"Import!M16496","v":0},null,0]
[null,{"$f":"IF($B$9=\"Canada Dollars\",\"United States Dollar\",\"Canada Dollars\")","v":"Canada Dollars"},null,{"$f":"Import!E16449","v":0},null,{"$f":"Import!E16465","v":0},null,{"$f":"Import!E16481","v":0},null,{"$f":"Import!E16497","v":0},null,{"$f":"Import!M16449","v":0},null,{"$f":"Import!M16465","v":0},null,{"$f":"Import!M16481","v":0},null,{"$f":"Import!M16497","v":0},null,0]
[null,{"$f":"IF($B$9=\"Japan Yen\",\"United States Dollar\",\"Japan Yen\")","v":"Japan Yen"},null,{"$f":"Import!E16450","v":0},null,{"$f":"Import!E16466","v":0},null,{"$f":"Import!E16482","v":0},null,{"$f":"Import!E16498","v":0},null,{"$f":"Import!M16450","v":0},null,{"$f":"Import!M16466","v":0},null,{"$f":"Import!M16482","v":0},null,{"$f":"Import!M16498","v":0},null,0]
[null,"Other currency 1",null,{"$f":"Import!E16451","v":0},null,{"$f":"Import!E16467","v":0},null,{"$f":"Import!E16483","v":0},null,{"$f":"Import!E16499","v":0},null,{"$f":"Import!M16451","v":0},null,{"$f":"Import!M16467","v":0},null,{"$f":"Import!M16483","v":0},null,{"$f":"Import!M16499","v":0},null,0]
[null,"Other currency 2",null,{"$f":"Import!E16452","v":0},null,{"$f":"Import!E16468","v":0},null,{"$f":"Import!E16484","v":0},null,{"$f":"Import!E16500","v":0},null,{"$f":"Import!M16452","v":0},null,{"$f":"Import!M16468","v":0},null,{"$f":"Import!M16484","v":0},null,{"$f":"Import!M16500","v":0},null,0]
[null,"Other currency 3",null,{"$f":"Import!E16453","v":0},null,{"$f":"Import!E16469","v":0},null,{"$f":"Import!E16485","v":0},null,{"$f":"Import!E16501","v":0},null,{"$f":"Import!M16453","v":0},null,{"$f":"Import!M16469","v":0},null,{"$f":"Import!M16485","v":0},null,{"$f":"Import!M16501","v":0},null,0]
[null,"Other currency 4",null,{"$f":"Import!E16454","v":0},null,{"$f":"Import!E16470","v":0},null,{"$f":"Import!E16486","v":0},null,{"$f":"Import!E16502","v":0},null,{"$f":"Import!M16454","v":0},null,{"$f":"Import!M16470","v":0},null,{"$f":"Import!M16486","v":0},null,{"$f":"Import!M16502","v":0},null,0]
[null,"Other currency 5",null,{"$f":"Import!E16455","v":0},null,{"$f":"Import!E16471","v":0},null,{"$f":"Import!E16487","v":0},null,{"$f":"Import!E16503","v":0},null,{"$f":"Import!M16455","v":0},null,{"$f":"Import!M16471","v":0},null,{"$f":"Import!M16487","v":0},null,{"$f":"Import!M16503","v":0},null,0]
[null,"Other currency 6",null,{"$f":"Import!E16456","v":0},null,{"$f":"Import!E16472","v":0},null,{"$f":"Import!E16488","v":0},null,{"$f":"Import!E16504","v":0},null,{"$f":"Import!M16456","v":0},null,{"$f":"Import!M16472","v":0},null,{"$f":"Import!M16488","v":0},null,{"$f":"Import!M16504","v":0},null,0]
[null,"Other currency 7",null,{"$f":"Import!E16457","v":0},null,{"$f":"Import!E16473","v":0},null,{"$f":"Import!E16489","v":0},null,{"$f":"Import!E16505","v":0},null,{"$f":"Import!M16457","v":0},null,{"$f":"Import!M16473","v":0},null,{"$f":"Import!M16489","v":0},null,{"$f":"Import!M16505","v":0},null,0]
[null,"Other currency 8",null,{"$f":"Import!E16458","v":0},null,{"$f":"Import!E16474","v":0},null,{"$f":"Import!E16490","v":0},null,{"$f":"Import!E16506","v":0},null,{"$f":"Import!M16458","v":0},null,{"$f":"Import!M16474","v":0},null,{"$f":"Import!M16490","v":0},null,{"$f":"Import!M16506","v":0},null,0]
[null,"Other currency 9",null,{"$f":"Import!E16459","v":0},null,{"$f":"Import!E16475","v":0},null,{"$f":"Import!E16491","v":0},null,{"$f":"Import!E16507","v":0},null,{"$f":"Import!M16459","v":0},null,{"$f":"Import!M16475","v":0},null,{"$f":"Import!M16491","v":0},null,{"$f":"Import!M16507","v":0},null,0]
[null,"Other currency 10",null,{"$f":"Import!E16460","v":0},null,{"$f":"Import!E16476","v":0},null,{"$f":"Import!E16492","v":0},null,{"$f":"Import!E16508","v":0},null,{"$f":"Import!M16460","v":0},null,{"$f":"Import!M16476","v":0},null,{"$f":"Import!M16492","v":0},null,{"$f":"Import!M16508","v":0},null,{"$f":"L23-P23","v":0}]
[null,"Currency Total",null,{"$f":"SUM(D9:D23)","v":0},null,{"$f":"SUM(F9:F23)","v":0},null,{"$f":"SUM(H9:H23)","v":0},null,{"$f":"SUM(J9:J23)","v":0},null,{"$f":"SUM(L9:L23)","v":0},null,{"$f":"SUM(N9:N23)","v":0},null,{"$f":"SUM(P9:P23)","v":0},null,{"$f":"SUM(R9:R23)","v":0},null,{"$f":"SUM(T9:T23)","v":0}]
[]
[null,null,null,null,null,null,null,null,null,null,null,"Form 1SFS Line 15",null,null,null,"Form 1SFS Line 39"]
[null,"Balance Sheet Total",null,null,null,null,null,null,null,null,null,{"$f":"'Form 1SFS (Consolidated)'!M91","v":0},null,null,null,{"$f":"'Form 1SFS (Consolidated)'!M145","v":0}]
[null,"% of Balance Sheet Total",null,null,null,null,null,null,null,null,null,{"$f":"IF(L27=0,0,L24/L27)","v":0},null,null,null,{"$f":"IF(P27=0,0,P24/P27)","v":0}]
[]
[null,"95% Minimum Test Met",null,null,null,null,null,null,null,null,null,{"$f":"IF(L27=0,\"Form 1SFS is Blank\",IF(L28<=95%,\"False\",IF(L28>100%,\"False\",\"True\")))","v":"Form 1SFS is Blank"},null,null,null,{"$f":"IF(P27=0,\"Form 1SFS is Blank\",IF(P28<=95%,\"False\",IF(P28>100%,\"False\",\"True\")))","v":"Form 1SFS is Blank"}]
[]
[null,null,null,null,null,null,null,null,null,null,null,"Liabilities",null,null,null,"ECR Charge",null,"Ratio",null,"Assessment*"]
[null,null,null,null,null,null,null,null,null,null,null,"Form 1SFS, Line 39",null,null,null,"Summary tab"]
[null,{"$f":"'Form 1EBS'!H7","v":"2021-12-31"},null,null,null,null,null,null,null,null,null,{"$f":"Import!M16510","v":0},null,null,null,{"$f":"Import!M16513","v":0},null,{"$f":"IF(P34=0,\"\",P34/L34)","v":""}]
[null,{"$f":"DATE(YEAR(B34)-1,MONTH(B34),DAY(B34))","v":"2020-12-31"},null,null,null,null,null,null,null,null,null,{"$f":"Import!M16511","v":0},null,null,null,{"$f":"Import!M16514","v":0},null,{"$f":"IF(P35=0,\"\",P35/L35)","v":""}]
[null,{"$f":"DATE(YEAR(B35)-1,MONTH(B35),DAY(B35))","v":"2019-12-31"},null,null,null,null,null,null,null,null,null,{"$f":"Import!M16512","v":0},null,null,null,{"$f":"Import!M16515","v":0},null,{"$f":"IF(P36=0,\"\",P36/L36)","v":""},null,{"$f":"IF(SUM(R34:R36)=0,IF(P34=0,0%,R34),MAX(R34,AVERAGE(R34:R36)))","v":0}]
[]
[null,"*If there are no amounts for previous years, enter the results from the current year without taking currency risk into account into the prior year"]

{"sheet":"Schedule XXA","index":99,"n_rows":47,"n_cols":34,"rows_kept":47,"cut":false,"hidden":false,"merged":[[6,5,6,7],[6,9,6,11],[6,23,6,25],[6,27,6,29],[2,3,3,3],[4,3,4,33],[5,21,5,33],[5,3,5,14]]}
[null,"SCHEDULE OF CURRENCY RISK",null,null,null,null,null,null,null,null,null,null,null,null,null,null,null,null,null,null,null,null,null,null,null,null,null,null,null,null,null,null,null,{"$f":"HYPERLINK(\"#'Index'!A1\",\"Return to Index\")","v":"Return to Index"}]
[null,{"$f":"'Company Information'!C7","v":"Enter Company Name"}]
[null,{"$f":"'Form 1SFS (Consolidated)'!$C$4","v":"2022-12-31"},null,null,null,null,null,null,null,null,null,null,null,null,null,null,null,null,null,null,null,null,null,null,null,null,null,null,null,null,null,null,null,"SCHEDULE XXA"]
[null,{"$f":"IF(CONFIGURATION!$B$12>1,\" ['\"&MID(CONFIGURATION!$B$12,2,LEN(CONFIGURATION!$B$12))&\"s]\",\"\")&'Form 1SFS (Consolidated)'!$C$5","v":" ['000s]United States Dollars"}]
[null,null,null,"Consolidated Valuation"]
[null,null,null,"MARKET VALUE BEFORE SHOCK",null,null,null,null,null,null,null,null,null,null,null,null,null,null,null,null,null,"MARKET VALUE AFTER SHOCK"]
[null,null,null,null,null,"Long Exposures",null,null,null,"Short Exposures",null,null,null,null,null,null,null,null,null,null,null,null,null,"Long Exposures",null,null,null,"Short Exposures"]
[null,"Currency",null,"Assets - Excluding currency- derivatives",null,"Currency Derivatives Qualifying as held for risk-mitigation purposes",null,"Currency Derivatives Not Qualifying as held for risk-mitigation purposes",null,"Currency Derivatives Qualifying as held for risk-mitigation purposes",null,"Currency Derivatives Not Qualifying as held for risk-mitigation purposes",null,"Best Estimate Liabilities without Management Actions",null,"Proxy BSCR",null,"Surplus Assets",null,"Shock",null,"Assets - Excluding currency- derivatives",null,"Currency Derivatives Qualifying as held for risk-mitigation purposes",null,"Currency Derivatives Not Qualifying as held for risk-mitigation purposes",null,"Currency Derivatives Qualifying as held for risk-mitigation purposes",null,"Currency Derivatives Not Qualifying as held for risk-mitigation purposes",null,"Best Estimate Liabilities without Management Actions",null,"Best Estimate Liabilities with Management Actions"]
[null,null,null,"(A)",null,"(B)",null,"(C)",null,"(D)",null,"(E)",null,"(F)",null,null,null,null,null,null,null,"(G)",null,"(H)",null,"(I)",null,"(J)",null,"(K)",null,"(L)",null,"(M)"]
[null,{"$f":"'Form 1SFS (Consolidated)'!$C$5","v":"United States Dollars"},null,{"$f":"Import!M16527","v":0},null,{"$f":"Import!M16550","v":0},null,{"$f":"Import!M16573","v":0},null,{"$f":"Import!M16596","v":0},null,{"$f":"Import!M16619","v":0},null,{"$f":"Import!M16642","v":0},null,{"$f":"$P$45*N10","v":0},null,{"$f":"D10+F10+H10+J10+L10-N10-P10","v":0},null,0,null,{"$f":"IF(OR(Import!M16665=0,Import!M16665=\"\"),(1+T10)*D10,Import!M16665)","v":0},null,{"$f":"Import!M16688","v":0},null,{"$f":"Import!M16711","v":0},null,{"$f":"Import!M16734","v":0},null,{"$f":"Import!M16757","v":0},null,{"$f":"IF(OR(Import!M16780=0,Import!M16780=\"\"),(1+T10)*N10,Import!M16780)","v":0},null,{"$f":"IF(OR(Import!M16803=0,Import!M16803=\"\"),AF10,Import!M16803)","v":0}]
[null,{"$f":"IF($B$10=\"Bermuda Dollars\",\"United States Dollar\",\"Bermuda Dollars\")","v":"Bermuda Dollars"},null,{"$f":"Import!M16528","v":0},null,{"$f":"Import!M16551","v":0},null,{"$f":"Import!M16574","v":0},null,{"$f":"Import!M16597","v":0},null,{"$f":"Import!M16620","v":0},null,{"$f":"Import!M16643","v":0},null,{"$f":"$P$45*N11","v":0},null,{"$f":"D11+F11+H11+J11+L11-N11-P11","v":0},null,{"$f":"IF($B$10=\"Bermuda Dollars\",0%,IF($B$10=\"United States Dollars\",0%,IF((D11+F11+H11+J11+L11)>(N11+P11),0%,25%)))","v":0},null,{"$f":"IF(OR(Import!M16666=0,Import!M16666=\"\"),(1+T11)*D11,Import!M16666)","v":0},null,{"$f":"Import!M16689","v":0},null,{"$f":"Import!M16712","v":0},null,{"$f":"Import!M16735","v":0},null,{"$f":"Import!M16758","v":0},null,{"$f":"IF(OR(Import!M16781=0,Import!M16781=\"\"),(1+T11)*N11,Import!M16781)","v":0},null,{"$f":"IF(OR(Import!M16804=0,Import!M16804=\"\"),AF11,Import!M16804)","v":0}]
[null,{"$f":"IF($B$10=\"Qatar Riyals\",\"United States Dollar\",\"Qatar Riyals\")","v":"Qatar Riyals"},null,{"$f":"Import!M16529","v":0},null,{"$f":"Import!M16552","v":0},null,{"$f":"Import!M16575","v":0},null,{"$f":"Import!M16598","v":0},null,{"$f":"Import!M16621","v":0},null,{"$f":"Import!M16644","v":0},null,0,null,0,null,{"$f":"IF($B$10=\"Qatar Riyals\",IF((D12+F12+H12+J12+L12)>(N12+P12),0%,5%),IF($B$10=\"United States Dollars\",IF((D12+F12+H12+J12+L12)>(N12+P12),0%,5%),IF((D12+F12+H12+J12+L12)>(N12+P12),0%,25%)))","v":0.05},null,{"$f":"IF(OR(Import!M16667=0,Import!M16667=\"\"),(1+T12)*D12,Import!M16667)","v":0},null,{"$f":"Import!M16690","v":0},null,{"$f":"Import!M16713","v":0},null,{"$f":"Import!M16736","v":0},null,{"$f":"Import!M16759","v":0},null,{"$f":"IF(OR(Import!M16782=0,Import!M16782=\"\"),(1+T12)*N12,Import!M16782)","v":0},null,{"$f":"IF(OR(Import!M16805=0,Import!M16805=\"\"),AF12,Import!M16805)","v":0}]
[null,{"$f":"IF($B$10=\"Hong Kong Dollars\",\"United States Dollar\",\"Hong Kong Dollars\")","v":"Hong Kong Dollars"},null,{"$f":"Import!M16530","v":0},null,{"$f":"Import!M16553","v":0},null,{"$f":"Import!M16576","v":0},null,{"$f":"Import!M16599","v":0},null,{"$f":"Import!M16622","v":0},null,{"$f":"Import!M16645","v":0},null,0,null,0,null,{"$f":"IF($B$10=\"Hong Kong Dollars\",IF((D13+F13+H13+J13+L13)>(N13+P13),0%,1%),IF($B$10=\"United States Dollars\",IF((D13+F13+H13+J13+L13)>(N13+P13),0%,1%),IF((D13+F13+H13+J13+L13)>(N13+P13),0%,25%)))","v":0.01},null,{"$f":"IF(OR(Import!M16668=0,Import!M16668=\"\"),(1+T13)*D13,Import!M16668)","v":0},null,{"$f":"Import!M16691","v":0},null,{"$f":"Import!M16714","v":0},null,{"$f":"Import!M16737","v":0},null,{"$f":"Import!M16760","v":0},null,{"$f":"IF(OR(Import!M16783=0,Import!M16783=\"\"),(1+T13)*N13,Import!M16783)","v":0},null,{"$f":"IF(OR(Import!M16806=0,Import!M16806=\"\"),AF13,Import!M16806)","v":0}]
[null,{"$f":"IF($B$10=\"Euro\",\"United States Dollar\",\"Euro\")","v":"Euro"},null,{"$f":"Import!M16531","v":0},null,{"$f":"Import!M16554","v":0},null,{"$f":"Import!M16577","v":0},null,{"$f":"Import!M16600","v":0},null,{"$f":"Import!M16623","v":0},null,{"$f":"Import!M16646","v":0},null,0,null,0,null,{"$f":"IF($B$10=\"Denmark Kroner\",IF((D14+F14+H14+J14+L14)>(N14+P14),0%,0.39%),IF($B$10=\"Bulgaria Leva\",IF((D14+F14+H14+J14+L14)>(N14+P14),0%,1.81%),IF($B$10=\"West African CFA Francs\",IF((D14+F14+H14+J14+L14)>(N14+P14),0%,2.18%),IF($B$10=\"Central African CFA Francs\",IF((D14+F14+H14+J14+L14)>(N14+P14),0%,1.96%),IF($B$10=\"Comorian Francs\",IF((D14+F14+H14+J14+L14)>(N14+P14),0%,2%),IF((D14+F14+H14+J14+L14)>(N14+P14),0%,25%))))))","v":0.25},null,{"$f":"IF(OR(Import!M16669=0,Import!M16669=\"\"),(1+T14)*D14,Import!M16669)","v":0},null,{"$f":"Import!M16692","v":0},null,{"$f":"Import!M16715","v":0},null,{"$f":"Import!M16738","v":0},null,{"$f":"Import!M16761","v":0},null,{"$f":"IF(OR(Import!M16784=0,Import!M16784=\"\"),(1+T14)*N14,Import!M16784)","v":0},null,{"$f":"IF(OR(Import!M16807=0,Import!M16807=\"\"),AF14,Import!M16807)","v":0}]
[null,{"$f":"IF($B$10=\"Denmark Kroner\",\"United States Dollar\",\"Denmark Kroner\")","v":"Denmark Kroner"},null,{"$f":"Import!M16532","v":0},null,{"$f":"Import!M16555","v":0},null,{"$f":"Import!M16578","v":0},null,{"$f":"Import!M16601","v":0},null,{"$f":"Import!M16624","v":0},null,{"$f":"Import!M16647","v":0},null,0,null,0,null,{"$f":"IF($B$10=\"Euro\",IF((D15+F15+H15+J15+L15)>(N15+P15),0%,0.39%),IF((D15+F15+H15+J15+L15)>(N15+P15),0%,25%))","v":0.25},null,{"$f":"IF(OR(Import!M16670=0,Import!M16670=\"\"),(1+T15)*D15,Import!M16670)","v":0},null,{"$f":"Import!M16693","v":0},null,{"$f":"Import!M16716","v":0},null,{"$f":"Import!M16739","v":0},null,{"$f":"Import!M16762","v":0},null,{"$f":"IF(OR(Import!M16785=0,Import!M16785=\"\"),(1+T15)*N15,Import!M16785)","v":0},null,{"$f":"IF(OR(Import!M16808=0,Import!M16808=\"\"),AF15,Import!M16808)","v":0}]
[null,{"$f":"IF($B$10=\"Bulgaria Leva\",\"United States Dollar\",\"Bulgaria Leva\")","v":"Bulgaria Leva"},null,{"$f":"Import!M16533","v":0},null,{"$f":"Import!M16556","v":0},null,{"$f":"Import!M16579","v":0},null,{"$f":"Import!M16602","v":0},null,{"$f":"Import!M16625","v":0},null,{"$f":"Import!M16648","v":0},null,0,null,0,null,{"$f":"IF($B$10=\"Euro\",IF((D16+F16+H16+J16+L16)>(N16+P16),0%,1.81%),IF((D16+F16+H16+J16+L16)>(N16+P16),0%,25%))","v":0.25},null,{"$f":"IF(OR(Import!M16671=0,Import!M16671=\"\"),(1+T16)*D16,Import!M16671)","v":0},null,{"$f":"Import!M16694","v":0},null,{"$f":"Import!M16717","v":0},null,{"$f":"Import!M16740","v":0},null,{"$f":"Import!M16763","v":0},null,{"$f":"IF(OR(Import!M16786=0,Import!M16786=\"\"),(1+T16)*N16,Import!M16786)","v":0},null,{"$f":"IF(OR(Import!M16809=0,Import!M16809=\"\"),AF16,Import!M16809)","v":0}]
[null,{"$f":"IF($B$10=\"West African CFA Francs\",\"United States Dollar\",\"West African CFA Francs\")","v":"West African CFA Francs"},null,{"$f":"Import!M16534","v":0},null,{"$f":"Import!M16557","v":0},null,{"$f":"Import!M16580","v":0},null,{"$f":"Import!M16603","v":0},null,{"$f":"Import!M16626","v":0},null,{"$f":"Import!M16649","v":0},null,0,null,0,null,{"$f":"IF($B$10=\"Euro\",IF((D17+F17+H17+J17+L17)>(N17+P17),0%,2.18%),IF((D17+F17+H17+J17+L17)>(N17+P17),0%,25%))","v":0.25},null,{"$f":"IF(OR(Import!M16672=0,Import!M16672=\"\"),(1+T17)*D17,Import!M16672)","v":0},null,{"$f":"Import!M16695","v":0},null,{"$f":"Import!M16718","v":0},null,{"$f":"Import!M16741","v":0},null,{"$f":"Import!M16764","v":0},null,{"$f":"IF(OR(Import!M16787=0,Import!M16787=\"\"),(1+T17)*N17,Import!M16787)","v":0},null,{"$f":"IF(OR(Import!M16810=0,Import!M16810=\"\"),AF17,Import!M16810)","v":0}]
[null,{"$f":"IF($B$10=\"Central African CFA Francs\",\"United States Dollar\",\"Central African CFA Francs\")","v":"Central African CFA Francs"},null,{"$f":"Import!M16535","v":0},null,{"$f":"Import!M16558","v":0},null,{"$f":"Import!M16581","v":0},null,{"$f":"Import!M16604","v":0},null,{"$f":"Import!M16627","v":0},null,{"$f":"Import!M16650","v":0},null,0,null,0,null,{"$f":"IF($B$10=\"Euro\",IF((D18+F18+H18+J18+L18)>(N18+P18),0%,1.96%),IF((D18+F18+H18+J18+L18)>(N18+P18),0%,25%))","v":0.25},null,{"$f":"IF(OR(Import!M16673=0,Import!M16673=\"\"),(1+T18)*D18,Import!M16673)","v":0},null,{"$f":"Import!M16696","v":0},null,{"$f":"Import!M16719","v":0},null,{"$f":"Import!M16742","v":0},null,{"$f":"Import!M16765","v":0},null,{"$f":"IF(OR(Import!M16788=0,Import!M16788=\"\"),(1+T18)*N18,Import!M16788)","v":0},null,{"$f":"IF(OR(Import!M16811=0,Import!M16811=\"\"),AF18,Import!M16811)","v":0}]
[null,{"$f":"IF($B$10=\"Comorian Francs\",\"United States Dollar\",\"Comorian Francs\")","v":"Comorian Francs"},null,{"$f":"Import!M16536","v":0},null,{"$f":"Import!M16559","v":0},null,{"$f":"Import!M16582","v":0},null,{"$f":"Import!M16605","v":0},null,{"$f":"Import!M16628","v":0},null,{"$f":"Import!M16651","v":0},null,0,null,0,null,{"$f":"IF($B$10=\"Euro\",IF((D19+F19+H19+J19+L19)>(N19+P19),0%,2%),IF((D19+F19+H19+J19+L19)>(N19+P19),0%,25%))","v":0.25},null,{"$f":"IF(OR(Import!M16674=0,Import!M16674=\"\"),(1+T19)*D19,Import!M16674)","v":0},null,{"$f":"Import!M16697","v":0},null,{"$f":"Import!M16720","v":0},null,{"$f":"Import!M16743","v":0},null,{"$f":"Import!M16766","v":0},null,{"$f":"IF(OR(Import!M16789=0,Import!M16789=\"\"),(1+T19)*N19,Import!M16789)","v":0},null,{"$f":"IF(OR(Import!M16812=0,Import!M16812=\"\"),AF19,Import!M16812)","v":0}]
[null,{"$f":"IF($B$10=\"United Kingdom Pounds\",\"United States Dollar\",\"United Kingdom Pounds\")","v":"United Kingdom Pounds"},null,{"$f":"Import!M16537","v":0},null,{"$f":"Import!M16560","v":0},null,{"$f":"Import!M16583","v":0},null,{"$f":"Import!M16606","v":0},null,{"$f":"Import!M16629","v":0},null,{"$f":"Import!M16652","v":0},null,0,null,0,null,{"$f":"IF((D20+F20+H20+J20+L20)>(N20+P20),0%,25%)","v":0.25},null,{"$f":"IF(OR(Import!M16675=0,Import!M16675=\"\"),(1+T20)*D20,Import!M16675)","v":0},null,{"$f":"Import!M16698","v":0},null,{"$f":"Import!M16721","v":0},null,{"$f":"Import!M16744","v":0},null,{"$f":"Import!M16767","v":0},null,{"$f":"IF(OR(Import!M16790=0,Import!M16790=\"\"),(1+T20)*N20,Import!M16790)","v":0},null,{"$f":"IF(OR(Import!M16813=0,Import!M16813=\"\"),AF20,Import!M16813)","v":0}]
[null,{"$f":"IF($B$10=\"Canada Dollars\",\"United States Dollar\",\"Canada Dollars\")","v":"Canada Dollars"},null,{"$f":"Import!M16538","v":0},null,{"$f":"Import!M16561","v":0},null,{"$f":"Import!M16584","v":0},null,{"$f":"Import!M16607","v":0},null,{"$f":"Import!M16630","v":0},null,{"$f":"Import!M16653","v":0},null,0,null,0,null,{"$f":"IF((D21+F21+H21+J21+L21)>(N21+P21),0%,25%)","v":0.25},null,{"$f":"IF(OR(Import!M16676=0,Import!M16676=\"\"),(1+T21)*D21,Import!M16676)","v":0},null,{"$f":"Import!M16699","v":0},null,{"$f":"Import!M16722","v":0},null,{"$f":"Import!M16745","v":0},null,{"$f":"Import!M16768","v":0},null,{"$f":"IF(OR(Import!M16791=0,Import!M16791=\"\"),(1+T21)*N21,Import!M16791)","v":0},null,{"$f":"IF(OR(Import!M16814=0,Import!M16814=\"\"),AF21,Import!M16814)","v":0}]
[null,{"$f":"IF($B$10=\"Japan Yen\",\"United States Dollar\",\"Japan Yen\")","v":"Japan Yen"},null,{"$f":"Import!M16539","v":0},null,{"$f":"Import!M16562","v":0},null,{"$f":"Import!M16585","v":0},null,{"$f":"Import!M16608","v":0},null,{"$f":"Import!M16631","v":0},null,{"$f":"Import!M16654","v":0},null,0,null,0,null,0.25,null,{"$f":"IF(OR(Import!M16677=0,Import!M16677=\"\"),(1+T22)*D22,Import!M16677)","v":0},null,{"$f":"Import!M16700","v":0},null,{"$f":"Import!M16723","v":0},null,{"$f":"Import!M16746","v":0},null,{"$f":"Import!M16769","v":0},null,{"$f":"IF(OR(Import!M16792=0,Import!M16792=\"\"),(1+T22)*N22,Import!M16792)","v":0},null,{"$f":"IF(OR(Import!M16815=0,Import!M16815=\"\"),AF22,Import!M16815)","v":0}]
[null,{"$f":"Import!M16517","v":"Other currency 1"},null,{"$f":"Import!M16540","v":0},null,{"$f":"Import!M16563","v":0},null,{"$f":"Import!M16586","v":0},null,{"$f":"Import!M16609","v":0},null,{"$f":"Import!M16632","v":0},null,{"$f":"Import!M16655","v":0},null,0,null,0,null,0.25,null,{"$f":"IF(OR(Import!M16678=0,Import!M16678=\"\"),(1+T23)*D23,Import!M16678)","v":0},null,{"$f":"Import!M16701","v":0},null,{"$f":"Import!M16724","v":0},null,{"$f":"Import!M16747","v":0},null,{"$f":"Import!M16770","v":0},null,{"$f":"IF(OR(Import!M16793=0,Import!M16793=\"\"),(1+T23)*N23,Import!M16793)","v":0},null,{"$f":"IF(OR(Import!M16816=0,Import!M16816=\"\"),AF23,Import!M16816)","v":0}]
[null,{"$f":"Import!M16518","v":"Other currency 2"},null,{"$f":"Import!M16541","v":0},null,{"$f":"Import!M16564","v":0},null,{"$f":"Import!M16587","v":0},null,{"$f":"Import!M16610","v":0},null,{"$f":"Import!M16633","v":0},null,{"$f":"Import!M16656","v":0},null,0,null,0,null,0.25,null,{"$f":"IF(OR(Import!M16679=0,Import!M16679=\"\"),(1+T24)*D24,Import!M16679)","v":0},null,{"$f":"Import!M16702","v":0},null,{"$f":"Import!M16725","v":0},null,{"$f":"Import!M16748","v":0},null,{"$f":"Import!M16771","v":0},null,{"$f":"IF(OR(Import!M16794=0,Import!M16794=\"\"),(1+T24)*N24,Import!M16794)","v":0},null,{"$f":"IF(OR(Import!M16817=0,Import!M16817=\"\"),AF24,Import!M16817)","v":0}]
[null,{"$f":"Import!M16519","v":"Other currency 3"},null,{"$f":"Import!M16542","v":0},null,{"$f":"Import!M16565","v":0},null,{"$f":"Import!M16588","v":0},null,{"$f":"Import!M16611","v":0},null,{"$f":"Import!M16634","v":0},null,{"$f":"Import!M16657","v":0},null,0,null,0,null,0.25,null,{"$f":"IF(OR(Import!M16680=0,Import!M16680=\"\"),(1+T25)*D25,Import!M16680)","v":0},null,{"$f":"Import!M16703","v":0},null,{"$f":"Import!M16726","v":0},null,{"$f":"Import!M16749","v":0},null,{"$f":"Import!M16772","v":0},null,{"$f":"IF(OR(Import!M16795=0,Import!M16795=\"\"),(1+T25)*N25,Import!M16795)","v":0},null,{"$f":"IF(OR(Import!M16818=0,Import!M16818=\"\"),AF25,Import!M16818)","v":0}]
[null,{"$f":"Import!M16520","v":"Other currency 4"},null,{"$f":"Import!M16543","v":0},null,{"$f":"Import!M16566","v":0},null,{"$f":"Import!M16589","v":0},null,{"$f":"Import!M16612","v":0},null,{"$f":"Import!M16635","v":0},null,{"$f":"Import!M16658","v":0},null,0,null,0,null,0.25,null,{"$f":"IF(OR(Import!M16681=0,Import!M16681=\"\"),(1+T26)*D26,Import!M16681)","v":0},null,{"$f":"Import!M16704","v":0},null,{"$f":"Import!M16727","v":0},null,{"$f":"Import!M16750","v":0},null,{"$f":"Import!M16773","v":0},null,{"$f":"IF(OR(Import!M16796=0,Import!M16796=\"\"),(1+T26)*N26,Import!M16796)","v":0},null,{"$f":"IF(OR(Import!M16819=0,Import!M16819=\"\"),AF26,Import!M16819)","v":0}]
[null,{"$f":"Import!M16521","v":"Other currency 5"},null,{"$f":"Import!M16544","v":0},null,{"$f":"Import!M16567","v":0},null,{"$f":"Import!M16590","v":0},null,{"$f":"Import!M16613","v":0},null,{"$f":"Import!M16636","v":0},null,{"$f":"Import!M16659","v":0},null,0,null,0,null,0.25,null,{"$f":"IF(OR(Import!M16682=0,Import!M16682=\"\"),(1+T27)*D27,Import!M16682)","v":0},null,{"$f":"Import!M16705","v":0},null,{"$f":"Import!M16728","v":0},null,{"$f":"Import!M16751","v":0},null,{"$f":"Import!M16774","v":0},null,{"$f":"IF(OR(Import!M16797=0,Import!M16797=\"\"),(1+T27)*N27,Import!M16797)","v":0},null,{"$f":"IF(OR(Import!M16820=0,Import!M16820=\"\"),AF27,Import!M16820)","v":0}]
[null,{"$f":"Import!M16522","v":"Other currency 6"},null,{"$f":"Import!M16545","v":0},null,{"$f":"Import!M16568","v":0},null,{"$f":"Import!M16591","v":0},null,{"$f":"Import!M16614","v":0},null,{"$f":"Import!M16637","v":0},null,{"$f":"Import!M16660","v":0},null,0,null,0,null,0.25,null,{"$f":"IF(OR(Import!M16683=0,Import!M16683=\"\"),(1+T28)*D28,Import!M16683)","v":0},null,{"$f":"Import!M16706","v":0},null,{"$f":"Import!M16729","v":0},null,{"$f":"Import!M16752","v":0},null,{"$f":"Import!M16775","v":0},null,{"$f":"IF(OR(Import!M16798=0,Import!M16798=\"\"),(1+T28)*N28,Import!M16798)","v":0},null,{"$f":"IF(OR(Import!M16821=0,Import!M16821=\"\"),AF28,Import!M16821)","v":0}]
[null,{"$f":"Import!M16523","v":"Other currency 7"},null,{"$f":"Import!M16546","v":0},null,{"$f":"Import!M16569","v":0},null,{"$f":"Import!M16592","v":0},null,{"$f":"Import!M16615","v":0},null,{"$f":"Import!M16638","v":0},null,{"$f":"Import!M16661","v":0},null,0,null,0,null,0.25,null,{"$f":"IF(OR(Import!M16684=0,Import!M16684=\"\"),(1+T29)*D29,Import!M16684)","v":0},null,{"$f":"Import!M16707","v":0},null,{"$f":"Import!M16730","v":0},null,{"$f":"Import!M16753","v":0},null,{"$f":"Import!M16776","v":0},null,{"$f":"IF(OR(Import!M16799=0,Import!M16799=\"\"),(1+T29)*N29,Import!M16799)","v":0},null,{"$f":"IF(OR(Import!M16822=0,Import!M16822=\"\"),AF29,Import!M16822)","v":0}]
[null,{"$f":"Import!M16524","v":"Other currency 8"},null,{"$f":"Import!M16547","v":0},null,{"$f":"Import!M16570","v":0},null,{"$f":"Import!M16593","v":0},null,{"$f":"Import!M16616","v":0},null,{"$f":"Import!M16639","v":0},null,{"$f":"Import!M16662","v":0},null,0,null,0,null,0.25,null,{"$f":"IF(OR(Import!M16685=0,Import!M16685=\"\"),(1+T30)*D30,Import!M16685)","v":0},null,{"$f":"Import!M16708","v":0},null,{"$f":"Import!M16731","v":0},null,{"$f":"Import!M16754","v":0},null,{"$f":"Import!M16777","v":0},null,{"$f":"IF(OR(Import!M16800=0,Import!M16800=\"\"),(1+T30)*N30,Import!M16800)","v":0},null,{"$f":"IF(OR(Import!M16823=0,Import!M16823=\"\"),AF30,Import!M16823)","v":0}]
[null,{"$f":"Import!M16525","v":"Other currency 9"},null,{"$f":"Import!M16548","v":0},null,{"$f":"Import!M16571","v":0},null,{"$f":"Import!M16594","v":0},null,{"$f":"Import!M16617","v":0},null,{"$f":"Import!M16640","v":0},null,{"$f":"Import!M16663","v":0},null,0,null,0,null,0.25,null,{"$f":"IF(OR(Import!M16686=0,Import!M16686=\"\"),(1+T31)*D31,Import!M16686)","v":0},null,{"$f":"Import!M16709","v":0},null,{"$f":"Import!M16732","v":0},null,{"$f":"Import!M16755","v":0},null,{"$f":"Import!M16778","v":0},null,{"$f":"IF(OR(Import!M16801=0,Import!M16801=\"\"),(1+T31)*N31,Import!M16801)","v":0},null,{"$f":"IF(OR(Import!M16824=0,Import!M16824=\"\"),AF31,Import!M16824)","v":0}]
[null,{"$f":"Import!M16526","v":"Other currency 10"},null,{"$f":"Import!M16549","v":0},null,{"$f":"Import!M16572","v":0},null,{"$f":"Import!M16595","v":0},null,{"$f":"Import!M16618","v":0},null,{"$f":"Import!M16641","v":0},null,{"$f":"Import!M16664","v":0},null,0,null,0,null,0.25,null,{"$f":"IF(OR(Import!M16687=0,Import!M16687=\"\"),(1+T32)*D32,Import!M16687)","v":0},null,{"$f":"Import!M16710","v":0},null,{"$f":"Import!M16733","v":0},null,{"$f":"Import!M16756","v":0},null,{"$f":"Import!M16779","v":0},null,{"$f":"IF(OR(Import!M16802=0,Import!M16802=\"\"),(1+T32)*N32,Import!M16802)","v":0},null,{"$f":"IF(OR(Import!M16825=0,Import!M16825=\"\"),AF32,Import!M16825)","v":0}]
[null,"Currency Total",null,{"$f":"SUM(D10:D32)","v":0},null,{"$f":"SUM(F10:F32)","v":0},null,{"$f":"SUM(H10:H32)","v":0},null,{"$f":"SUM(J10:J32)","v":0},null,{"$f":"SUM(L10:L32)","v":0},null,{"$f":"SUM(N10:N32)","v":0},null,null,null,null,null,null,null,{"$f":"SUM(V10:V32)","v":0},null,{"$f":"SUM(X10:X32)","v":0},null,{"$f":"SUM(Z10:Z32)","v":0},null,{"$f":"SUM(AB10:AB32)","v":0},null,{"$f":"SUM(AD10:AD32)","v":0},null,{"$f":"SUM(AF10:AF32)","v":0},null,{"$f":"SUM(AH10:AH32)","v":0}]
[]
[null,null,null,"Form 1SFS Line 15",null,null,null,null,null,null,null,null,null,"Form 1SFS Line 39"]
[null,"Balance Sheet Total",null,{"$f":"'Form 1SFS (Consolidated)'!M91","v":0},null,null,null,null,null,null,null,null,null,{"$f":"'Form 1SFS (Consolidated)'!M145","v":0}]
[null,"% of Balance Sheet Total",null,{"$f":"IF(D36=0,0,(SUM(D33:L33))/D36)","v":0},null,null,null,null,null,null,null,null,null,{"$f":"IF(N36=0,0,N33/N36)","v":0}]
[]
[null,"95% Minimum Test Met",null,{"$f":"IF(D36=0,\"Form 1SFS is Blank\",IF(D37<=95%,\"False\",IF(D37>100%,\"False\",\"True\")))","v":"Form 1SFS is Blank"},null,null,null,null,null,null,null,null,null,{"$f":"IF(N36=0,\"Form 1SFS is Blank\",IF(N37<=95%,\"False\",IF(N37>100%,\"False\",\"True\")))","v":"Form 1SFS is Blank"}]
[]
[null,null,null,"Liabilities",null,null,null,"ECR Charge",null,null,null,null,null,"Ratio",null,"Assessment*"]
[null,null,null,"Form 1SFS, Line 39",null,null,null,"Summary tab"]
[null,{"$f":"'Form 1SFS (Consolidated)'!$O$9","v":"2021-12-31"},null,{"$f":"Import!M16826","v":0},null,null,null,{"$f":"Import!M16829","v":0},null,null,null,null,null,{"$f":"IF(H43=0,\"\",H43/D43)","v":""}]
[null,{"$f":"DATE(YEAR(B43)-1,MONTH(B43),DAY(B43))","v":"2020-12-31"},null,{"$f":"Import!M16827","v":0},null,null,null,{"$f":"Import!M16830","v":0},null,null,null,null,null,{"$f":"IF(H44=0,\"\",H44/D44)","v":""}]
[null,{"$f":"DATE(YEAR(B44)-1,MONTH(B44),DAY(B44))","v":"2019-12-31"},null,{"$f":"Import!M16828","v":0},null,null,null,{"$f":"Import!M16831","v":0},null,null,null,null,null,{"$f":"IF(H45=0,\"\",H45/D45)","v":""},null,{"$f":"IF(SUM(N43:N45)=0,IF(H43=0,0%,N43),MAX(,N43,AVERAGE(N43:N45)))","v":0}]
[]
[null,"*If there are no amounts for previous years, enter the results from the current year without taking currency risk into account into the prior year"]

{"sheet":"Schedule XXI","index":100,"n_rows":77,"n_cols":13,"rows_kept":77,"cut":false,"hidden":true,"merged":[[4,4,4,7],[4,9,4,12],[61,9,62,12]]}
[null,null,"SCHEDULE OF CONCENTRATION RISK",null,null,null,null,null,null,null,null,null,{"$f":"HYPERLINK(\"#'Index'!A1\",\"Return to Index\")","v":"Return to Index"}]
[null,null,{"$f":"'Company Information'!C7","v":"Enter Company Name"}]
[null,null,{"$f":"'Form 1EBS'!C3","v":"2022-12-31"},null,null,null,null,null,null,{"$f":"Import!E16833","v":0},null,"Enter # of Rows","SCHEDULE XXI"]
[null,null,{"$f":"IF(CONFIGURATION!$B$12>1,\" ['\"&MID(CONFIGURATION!$B$12,2,LEN(CONFIGURATION!$B$12))&\"s]\",\"\")&'Form 1EBS'!C4","v":" ['000s]United States Dollars"}]
[null,null,null,null,"Unconsolidated SFS",null,null,null,null,"Consolidated Valuation"]
[null,null,null,null,"(A)","(B)","(C)","(D)",null,"(E)","(F)","(G)","(H)"]
[null,null,"Name of Exposure",null,"Asset Type","Bond / Mortgage Loan Type","BSCR Rating","Asset Value",null,"Asset Type","Bond / Mortgage Loan Type","BSCR Rating","Asset Value"]
[null,1,{"$f":"Import!E16834","v":0},null,{"$f":"Import!E16874","v":"Select"},{"$f":"Import!E16914","v":"Select"},{"$f":"Import!E16954","v":"Select"},{"$f":"Import!E16994","v":0},null,{"$f":"Import!M16874","v":"Select"},{"$f":"Import!M16914","v":"Select"},{"$f":"Import!M16954","v":"Select"},{"$f":"Import!M16994","v":0}]
[null,{"$f":"B8+1","v":2},{"$f":"Import!E16835","v":0},null,{"$f":"Import!E16875","v":"Select"},{"$f":"Import!E16915","v":"Select"},{"$f":"Import!E16955","v":"Select"},{"$f":"Import!E16995","v":0},null,{"$f":"Import!M16875","v":"Select"},{"$f":"Import!M16915","v":"Select"},{"$f":"Import!M16955","v":"Select"},{"$f":"Import!M16995","v":0}]
[null,{"$f":"B9+1","v":3},{"$f":"Import!E16836","v":0},null,{"$f":"Import!E16876","v":"Select"},{"$f":"Import!E16916","v":"Select"},{"$f":"Import!E16956","v":"Select"},{"$f":"Import!E16996","v":0},null,{"$f":"Import!M16876","v":"Select"},{"$f":"Import!M16916","v":"Select"},{"$f":"Import!M16956","v":"Select"},{"$f":"Import!M16996","v":0}]
[null,4,{"$f":"Import!E16837","v":0},null,{"$f":"Import!E16877","v":"Select"},{"$f":"Import!E16917","v":"Select"},{"$f":"Import!E16957","v":"Select"},{"$f":"Import!E16997","v":0},null,{"$f":"Import!M16877","v":"Select"},{"$f":"Import!M16917","v":"Select"},{"$f":"Import!M16957","v":"Select"},{"$f":"Import!M16997","v":0}]
[null,5,{"$f":"Import!E16838","v":0},null,{"$f":"Import!E16878","v":"Select"},{"$f":"Import!E16918","v":"Select"},{"$f":"Import!E16958","v":"Select"},{"$f":"Import!E16998","v":0},null,{"$f":"Import!M16878","v":"Select"},{"$f":"Import!M16918","v":"Select"},{"$f":"Import!M16958","v":"Select"},{"$f":"Import!M16998","v":0}]
[null,6,{"$f":"Import!E16839","v":0},null,{"$f":"Import!E16879","v":"Select"},{"$f":"Import!E16919","v":"Select"},{"$f":"Import!E16959","v":"Select"},{"$f":"Import!E16999","v":0},null,{"$f":"Import!M16879","v":"Select"},{"$f":"Import!M16919","v":"Select"},{"$f":"Import!M16959","v":"Select"},{"$f":"Import!M16999","v":0}]
[null,7,{"$f":"Import!E16840","v":0},null,{"$f":"Import!E16880","v":"Select"},{"$f":"Import!E16920","v":"Select"},{"$f":"Import!E16960","v":"Select"},{"$f":"Import!E17000","v":0},null,{"$f":"Import!M16880","v":"Select"},{"$f":"Import!M16920","v":"Select"},{"$f":"Import!M16960","v":"Select"},{"$f":"Import!M17000","v":0}]
[null,8,{"$f":"Import!E16841","v":0},null,{"$f":"Import!E16881","v":"Select"},{"$f":"Import!E16921","v":"Select"},{"$f":"Import!E16961","v":"Select"},{"$f":"Import!E17001","v":0},null,{"$f":"Import!M16881","v":"Select"},{"$f":"Import!M16921","v":"Select"},{"$f":"Import!M16961","v":"Select"},{"$f":"Import!M17001","v":0}]
[null,9,{"$f":"Import!E16842","v":0},null,{"$f":"Import!E16882","v":"Select"},{"$f":"Import!E16922","v":"Select"},{"$f":"Import!E16962","v":"Select"},{"$f":"Import!E17002","v":0},null,{"$f":"Import!M16882","v":"Select"},{"$f":"Import!M16922","v":"Select"},{"$f":"Import!M16962","v":"Select"},{"$f":"Import!M17002","v":0}]
[null,10,{"$f":"Import!E16843","v":0},null,{"$f":"Import!E16883","v":"Select"},{"$f":"Import!E16923","v":"Select"},{"$f":"Import!E16963","v":"Select"},{"$f":"Import!E17003","v":0},null,{"$f":"Import!M16883","v":"Select"},{"$f":"Import!M16923","v":"Select"},{"$f":"Import!M16963","v":"Select"},{"$f":"Import!M17003","v":0}]
[null,11,{"$f":"Import!E16844","v":0},null,{"$f":"Import!E16884","v":"Select"},{"$f":"Import!E16924","v":"Select"},{"$f":"Import!E16964","v":"Select"},{"$f":"Import!E17004","v":0},null,{"$f":"Import!M16884","v":"Select"},{"$f":"Import!M16924","v":"Select"},{"$f":"Import!M16964","v":"Select"},{"$f":"Import!M17004","v":0}]
[null,12,{"$f":"Import!E16845","v":0},null,{"$f":"Import!E16885","v":"Select"},{"$f":"Import!E16925","v":"Select"},{"$f":"Import!E16965","v":"Select"},{"$f":"Import!E17005","v":0},null,{"$f":"Import!M16885","v":"Select"},{"$f":"Import!M16925","v":"Select"},{"$f":"Import!M16965","v":"Select"},{"$f":"Import!M17005","v":0}]
[null,13,{"$f":"Import!E16846","v":0},null,{"$f":"Import!E16886","v":"Select"},{"$f":"Import!E16926","v":"Select"},{"$f":"Import!E16966","v":"Select"},{"$f":"Import!E17006","v":0},null,{"$f":"Import!M16886","v":"Select"},{"$f":"Import!M16926","v":"Select"},{"$f":"Import!M16966","v":"Select"},{"$f":"Import!M17006","v":0}]
[null,14,{"$f":"Import!E16847","v":0},null,{"$f":"Import!E16887","v":"Select"},{"$f":"Import!E16927","v":"Select"},{"$f":"Import!E16967","v":"Select"},{"$f":"Import!E17007","v":0},null,{"$f":"Import!M16887","v":"Select"},{"$f":"Import!M16927","v":"Select"},{"$f":"Import!M16967","v":"Select"},{"$f":"Import!M17007","v":0}]
[null,15,{"$f":"Import!E16848","v":0},null,{"$f":"Import!E16888","v":"Select"},{"$f":"Import!E16928","v":"Select"},{"$f":"Import!E16968","v":"Select"},{"$f":"Import!E17008","v":0},null,{"$f":"Import!M16888","v":"Select"},{"$f":"Import!M16928","v":"Select"},{"$f":"Import!M16968","v":"Select"},{"$f":"Import!M17008","v":0}]
[null,16,{"$f":"Import!E16849","v":0},null,{"$f":"Import!E16889","v":"Select"},{"$f":"Import!E16929","v":"Select"},{"$f":"Import!E16969","v":"Select"},{"$f":"Import!E17009","v":0},null,{"$f":"Import!M16889","v":"Select"},{"$f":"Import!M16929","v":"Select"},{"$f":"Import!M16969","v":"Select"},{"$f":"Import!M17009","v":0}]
[null,17,{"$f":"Import!E16850","v":0},null,{"$f":"Import!E16890","v":"Select"},{"$f":"Import!E16930","v":"Select"},{"$f":"Import!E16970","v":"Select"},{"$f":"Import!E17010","v":0},null,{"$f":"Import!M16890","v":"Select"},{"$f":"Import!M16930","v":"Select"},{"$f":"Import!M16970","v":"Select"},{"$f":"Import!M17010","v":0}]
[null,18,{"$f":"Import!E16851","v":0},null,{"$f":"Import!E16891","v":"Select"},{"$f":"Import!E16931","v":"Select"},{"$f":"Import!E16971","v":"Select"},{"$f":"Import!E17011","v":0},null,{"$f":"Import!M16891","v":"Select"},{"$f":"Import!M16931","v":"Select"},{"$f":"Import!M16971","v":"Select"},{"$f":"Import!M17011","v":0}]
[null,19,{"$f":"Import!E16852","v":0},null,{"$f":"Import!E16892","v":"Select"},{"$f":"Import!E16932","v":"Select"},{"$f":"Import!E16972","v":"Select"},{"$f":"Import!E17012","v":0},null,{"$f":"Import!M16892","v":"Select"},{"$f":"Import!M16932","v":"Select"},{"$f":"Import!M16972","v":"Select"},{"$f":"Import!M17012","v":0}]
[null,20,{"$f":"Import!E16853","v":0},null,{"$f":"Import!E16893","v":"Select"},{"$f":"Import!E16933","v":"Select"},{"$f":"Import!E16973","v":"Select"},{"$f":"Import!E17013","v":0},null,{"$f":"Import!M16893","v":"Select"},{"$f":"Import!M16933","v":"Select"},{"$f":"Import!M16973","v":"Select"},{"$f":"Import!M17013","v":0}]
[null,21,{"$f":"Import!E16854","v":0},null,{"$f":"Import!E16894","v":"Select"},{"$f":"Import!E16934","v":"Select"},{"$f":"Import!E16974","v":"Select"},{"$f":"Import!E17014","v":0},null,{"$f":"Import!M16894","v":"Select"},{"$f":"Import!M16934","v":"Select"},{"$f":"Import!M16974","v":"Select"},{"$f":"Import!M17014","v":0}]
[null,22,{"$f":"Import!E16855","v":0},null,{"$f":"Import!E16895","v":"Select"},{"$f":"Import!E16935","v":"Select"},{"$f":"Import!E16975","v":"Select"},{"$f":"Import!E17015","v":0},null,{"$f":"Import!M16895","v":"Select"},{"$f":"Import!M16935","v":"Select"},{"$f":"Import!M16975","v":"Select"},{"$f":"Import!M17015","v":0}]
[null,23,{"$f":"Import!E16856","v":0},null,{"$f":"Import!E16896","v":"Select"},{"$f":"Import!E16936","v":"Select"},{"$f":"Import!E16976","v":"Select"},{"$f":"Import!E17016","v":0},null,{"$f":"Import!M16896","v":"Select"},{"$f":"Import!M16936","v":"Select"},{"$f":"Import!M16976","v":"Select"},{"$f":"Import!M17016","v":0}]
[null,24,{"$f":"Import!E16857","v":0},null,{"$f":"Import!E16897","v":"Select"},{"$f":"Import!E16937","v":"Select"},{"$f":"Import!E16977","v":"Select"},{"$f":"Import!E17017","v":0},null,{"$f":"Import!M16897","v":"Select"},{"$f":"Import!M16937","v":"Select"},{"$f":"Import!M16977","v":"Select"},{"$f":"Import!M17017","v":0}]
[null,25,{"$f":"Import!E16858","v":0},null,{"$f":"Import!E16898","v":"Select"},{"$f":"Import!E16938","v":"Select"},{"$f":"Import!E16978","v":"Select"},{"$f":"Import!E17018","v":0},null,{"$f":"Import!M16898","v":"Select"},{"$f":"Import!M16938","v":"Select"},{"$f":"Import!M16978","v":"Select"},{"$f":"Import!M17018","v":0}]
[null,26,{"$f":"Import!E16859","v":0},null,{"$f":"Import!E16899","v":"Select"},{"$f":"Import!E16939","v":"Select"},{"$f":"Import!E16979","v":"Select"},{"$f":"Import!E17019","v":0},null,{"$f":"Import!M16899","v":"Select"},{"$f":"Import!M16939","v":"Select"},{"$f":"Import!M16979","v":"Select"},{"$f":"Import!M17019","v":0}]
[null,27,{"$f":"Import!E16860","v":0},null,{"$f":"Import!E16900","v":"Select"},{"$f":"Import!E16940","v":"Select"},{"$f":"Import!E16980","v":"Select"},{"$f":"Import!E17020","v":0},null,{"$f":"Import!M16900","v":"Select"},{"$f":"Import!M16940","v":"Select"},{"$f":"Import!M16980","v":"Select"},{"$f":"Import!M17020","v":0}]
[null,28,{"$f":"Import!E16861","v":0},null,{"$f":"Import!E16901","v":"Select"},{"$f":"Import!E16941","v":"Select"},{"$f":"Import!E16981","v":"Select"},{"$f":"Import!E17021","v":0},null,{"$f":"Import!M16901","v":"Select"},{"$f":"Import!M16941","v":"Select"},{"$f":"Import!M16981","v":"Select"},{"$f":"Import!M17021","v":0}]
[null,29,{"$f":"Import!E16862","v":0},null,{"$f":"Import!E16902","v":"Select"},{"$f":"Import!E16942","v":"Select"},{"$f":"Import!E16982","v":"Select"},{"$f":"Import!E17022","v":0},null,{"$f":"Import!M16902","v":"Select"},{"$f":"Import!M16942","v":"Select"},{"$f":"Import!M16982","v":"Select"},{"$f":"Import!M17022","v":0}]
[null,30,{"$f":"Import!E16863","v":0},null,{"$f":"Import!E16903","v":"Select"},{"$f":"Import!E16943","v":"Select"},{"$f":"Import!E16983","v":"Select"},{"$f":"Import!E17023","v":0},null,{"$f":"Import!M16903","v":"Select"},{"$f":"Import!M16943","v":"Select"},{"$f":"Import!M16983","v":"Select"},{"$f":"Import!M17023","v":0}]
[null,31,{"$f":"Import!E16864","v":0},null,{"$f":"Import!E16904","v":"Select"},{"$f":"Import!E16944","v":"Select"},{"$f":"Import!E16984","v":"Select"},{"$f":"Import!E17024","v":0},null,{"$f":"Import!M16904","v":"Select"},{"$f":"Import!M16944","v":"Select"},{"$f":"Import!M16984","v":"Select"},{"$f":"Import!M17024","v":0}]
[null,32,{"$f":"Import!E16865","v":0},null,{"$f":"Import!E16905","v":"Select"},{"$f":"Import!E16945","v":"Select"},{"$f":"Import!E16985","v":"Select"},{"$f":"Import!E17025","v":0},null,{"$f":"Import!M16905","v":"Select"},{"$f":"Import!M16945","v":"Select"},{"$f":"Import!M16985","v":"Select"},{"$f":"Import!M17025","v":0}]
[null,33,{"$f":"Import!E16866","v":0},null,{"$f":"Import!E16906","v":"Select"},{"$f":"Import!E16946","v":"Select"},{"$f":"Import!E16986","v":"Select"},{"$f":"Import!E17026","v":0},null,{"$f":"Import!M16906","v":"Select"},{"$f":"Import!M16946","v":"Select"},{"$f":"Import!M16986","v":"Select"},{"$f":"Import!M17026","v":0}]
[null,34,{"$f":"Import!E16867","v":0},null,{"$f":"Import!E16907","v":"Select"},{"$f":"Import!E16947","v":"Select"},{"$f":"Import!E16987","v":"Select"},{"$f":"Import!E17027","v":0},null,{"$f":"Import!M16907","v":"Select"},{"$f":"Import!M16947","v":"Select"},{"$f":"Import!M16987","v":"Select"},{"$f":"Import!M17027","v":0}]
[null,35,{"$f":"Import!E16868","v":0},null,{"$f":"Import!E16908","v":"Select"},{"$f":"Import!E16948","v":"Select"},{"$f":"Import!E16988","v":"Select"},{"$f":"Import!E17028","v":0},null,{"$f":"Import!M16908","v":"Select"},{"$f":"Import!M16948","v":"Select"},{"$f":"Import!M16988","v":"Select"},{"$f":"Import!M17028","v":0}]
[null,36,{"$f":"Import!E16869","v":0},null,{"$f":"Import!E16909","v":"Select"},{"$f":"Import!E16949","v":"Select"},{"$f":"Import!E16989","v":"Select"},{"$f":"Import!E17029","v":0},null,{"$f":"Import!M16909","v":"Select"},{"$f":"Import!M16949","v":"Select"},{"$f":"Import!M16989","v":"Select"},{"$f":"Import!M17029","v":0}]
[null,37,{"$f":"Import!E16870","v":0},null,{"$f":"Import!E16910","v":"Select"},{"$f":"Import!E16950","v":"Select"},{"$f":"Import!E16990","v":"Select"},{"$f":"Import!E17030","v":0},null,{"$f":"Import!M16910","v":"Select"},{"$f":"Import!M16950","v":"Select"},{"$f":"Import!M16990","v":"Select"},{"$f":"Import!M17030","v":0}]
[null,38,{"$f":"Import!E16871","v":0},null,{"$f":"Import!E16911","v":"Select"},{"$f":"Import!E16951","v":"Select"},{"$f":"Import!E16991","v":"Select"},{"$f":"Import!E17031","v":0},null,{"$f":"Import!M16911","v":"Select"},{"$f":"Import!M16951","v":"Select"},{"$f":"Import!M16991","v":"Select"},{"$f":"Import!M17031","v":0}]
[null,39,{"$f":"Import!E16872","v":0},null,{"$f":"Import!E16912","v":"Select"},{"$f":"Import!E16952","v":"Select"},{"$f":"Import!E16992","v":"Select"},{"$f":"Import!E17032","v":0},null,{"$f":"Import!M16912","v":"Select"},{"$f":"Import!M16952","v":"Select"},{"$f":"Import!M16992","v":"Select"},{"$f":"Import!M17032","v":0}]
[null,40,{"$f":"Import!E16873","v":0},null,{"$f":"Import!E16913","v":"Select"},{"$f":"Import!E16953","v":"Select"},{"$f":"Import!E16993","v":"Select"},{"$f":"Import!E17033","v":0},null,{"$f":"Import!M16913","v":"Select"},{"$f":"Import!M16953","v":"Select"},{"$f":"Import!M16993","v":"Select"},{"$f":"Import!M17033","v":0}]
[null,41]
[null,42]
[null,43]
[null,44]
[null,45]
[null,46]
[null,47]
[null,48]
[null,49]
[null,50]
[null,null,"TOTAL CONCENTRATION RISK",null,null,null,null,{"$f":"SUM(H8:H57)","v":0},null,null,null,null,{"$f":"SUM(M8:M57)","v":0}]
[]
[null,null,"Asset Type",null,null,"Bond Types",null,"BSCR Rating Reference"]
[null,null,"Select",null,null,"Select",null,"Select"]
[null,null,"Cash and Cash Equivalent",null,null,"Corporate & Sovereign Bonds",null,"BSCR Rating 0",null,"Note if an insurer does not have any entities to consolidate, enter consolidated information only (This cell is editable for deletion)"]
[null,null,"BondTypes",null,null,"Residential Mortgage-Backed Securities",null,"BSCR Rating 1"]
[null,null,"Preferred Shares",null,null,"Commercial Mortgage-Backed Securities",null,"BSCR Rating 2"]
[null,null,"MortgageLoanTypes",null,null,"Bond Mutual Funds",null,"BSCR Rating 3"]
[null,null,"Common Stock and Mutual Funds",null,null,null,null,"BSCR Rating 4"]
[null,null,"Other Investments",null,null,"Mortgage Loan Categories",null,"BSCR Rating 5"]
[null,null,"Investment in Affiliates – Unregulated entities that conduct ancillary services",null,null,"Select",null,"BSCR Rating 6"]
[null,null,"Investment in Affiliates - Unregulated non-financial operating entities",null,null,"Insured/Guaranteed Mortgages",null,"BSCR Rating 7"]
[null,null,"Investment in Affiliates - Unregulated financial operating entities",null,null,"Other Commercial and Farm Mortgages",null,"BSCR Rating 8"]
[null,null,"Investment in Affiliates - Regulated non-insurance financial operating entities",null,null,"Other Residential Mortgages"]
[null,null,"Investment in Affiliates - Regulated insurance financial operating entities",null,null,"Mortgages Not In Good Standing"]
[null,null,"Advances to Affiliates - "]
[null,null,"Policy Loans"]
[null,null,"Real Estate: Occupied by company"]
[null,null,"Real Estate: Other properties"]
[null,null,"Collateral Loans"]

{"sheet":"Schedule XXIA","index":101,"n_rows":76,"n_cols":13,"rows_kept":76,"cut":false,"hidden":false,"merged":[[4,4,4,7],[4,9,4,12],[61,9,62,12]]}
[null,null,"SCHEDULE OF CONCENTRATION RISK",null,null,null,null,null,null,null,null,null,{"$f":"HYPERLINK(\"#'Index'!A1\",\"Return to Index\")","v":"Return to Index"}]
[null,null,{"$f":"'Company Information'!C7","v":"Enter Company Name"}]
[null,null,{"$f":"'Form 1SFS (Consolidated)'!$C$4","v":"2022-12-31"},null,null,null,null,null,null,{"$f":"Import!E17036","v":0},"Enter Number of Rows Required",null,"SCHEDULE XXIA"]
[null,null,{"$f":"IF(CONFIGURATION!$B$12>1,\" ['\"&MID(CONFIGURATION!$B$12,2,LEN(CONFIGURATION!$B$12))&\"s]\",\"\")&'Form 1SFS (Consolidated)'!$C$5","v":" ['000s]United States Dollars"}]
[null,null,null,null,"Unconsolidated SFS",null,null,null,null,"Consolidated Valuation"]
[null,null,null,null,"(A)","(B)","(C)","(D)",null,"(E)","(F)","(G)","(H)"]
[null,null,"Name of Exposure",null,"Asset Type","Bond / Mortgage Loan Type","BSCR Rating","Asset Value",null,"Asset Type","Bond / Mortgage Loan Type","BSCR Rating","Asset Value"]
[null,1,{"$f":"Import!E17037","v":0},null,{"$f":"Import!E17087","v":"Select"},{"$f":"Import!E17137","v":"Select"},{"$f":"Import!E17187","v":"Select"},{"$f":"Import!E17237","v":0},null,{"$f":"Import!M17087","v":"Select"},{"$f":"Import!M17137","v":"Select"},{"$f":"Import!M17187","v":"Select"},{"$f":"Import!M17237","v":0}]
[null,{"$f":"B8+1","v":2},{"$f":"Import!E17038","v":0},null,{"$f":"Import!E17088","v":"Select"},{"$f":"Import!E17138","v":"Select"},{"$f":"Import!E17188","v":"Select"},{"$f":"Import!E17238","v":0},null,{"$f":"Import!M17088","v":"Select"},{"$f":"Import!M17138","v":"Select"},{"$f":"Import!M17188","v":"Select"},{"$f":"Import!M17238","v":0}]
[null,{"$f":"B9+1","v":3},{"$f":"Import!E17039","v":0},null,{"$f":"Import!E17089","v":"Select"},{"$f":"Import!E17139","v":"Select"},{"$f":"Import!E17189","v":"Select"},{"$f":"Import!E17239","v":0},null,{"$f":"Import!M17089","v":"Select"},{"$f":"Import!M17139","v":"Select"},{"$f":"Import!M17189","v":"Select"},{"$f":"Import!M17239","v":0}]
[null,4,{"$f":"Import!E17040","v":0},null,{"$f":"Import!E17090","v":"Select"},{"$f":"Import!E17140","v":"Select"},{"$f":"Import!E17190","v":"Select"},{"$f":"Import!E17240","v":0},null,{"$f":"Import!M17090","v":"Select"},{"$f":"Import!M17140","v":"Select"},{"$f":"Import!M17190","v":"Select"},{"$f":"Import!M17240","v":0}]
[null,5,{"$f":"Import!E17041","v":0},null,{"$f":"Import!E17091","v":"Select"},{"$f":"Import!E17141","v":"Select"},{"$f":"Import!E17191","v":"Select"},{"$f":"Import!E17241","v":0},null,{"$f":"Import!M17091","v":"Select"},{"$f":"Import!M17141","v":"Select"},{"$f":"Import!M17191","v":"Select"},{"$f":"Import!M17241","v":0}]
[null,6,{"$f":"Import!E17042","v":0},null,{"$f":"Import!E17092","v":"Select"},{"$f":"Import!E17142","v":"Select"},{"$f":"Import!E17192","v":"Select"},{"$f":"Import!E17242","v":0},null,{"$f":"Import!M17092","v":"Select"},{"$f":"Import!M17142","v":"Select"},{"$f":"Import!M17192","v":"Select"},{"$f":"Import!M17242","v":0}]
[null,7,{"$f":"Import!E17043","v":0},null,{"$f":"Import!E17093","v":"Select"},{"$f":"Import!E17143","v":"Select"},{"$f":"Import!E17193","v":"Select"},{"$f":"Import!E17243","v":0},null,{"$f":"Import!M17093","v":"Select"},{"$f":"Import!M17143","v":"Select"},{"$f":"Import!M17193","v":"Select"},{"$f":"Import!M17243","v":0}]
[null,8,{"$f":"Import!E17044","v":0},null,{"$f":"Import!E17094","v":"Select"},{"$f":"Import!E17144","v":"Select"},{"$f":"Import!E17194","v":"Select"},{"$f":"Import!E17244","v":0},null,{"$f":"Import!M17094","v":"Select"},{"$f":"Import!M17144","v":"Select"},{"$f":"Import!M17194","v":"Select"},{"$f":"Import!M17244","v":0}]
[null,9,{"$f":"Import!E17045","v":0},null,{"$f":"Import!E17095","v":"Select"},{"$f":"Import!E17145","v":"Select"},{"$f":"Import!E17195","v":"Select"},{"$f":"Import!E17245","v":0},null,{"$f":"Import!M17095","v":"Select"},{"$f":"Import!M17145","v":"Select"},{"$f":"Import!M17195","v":"Select"},{"$f":"Import!M17245","v":0}]
[null,10,{"$f":"Import!E17046","v":0},null,{"$f":"Import!E17096","v":"Select"},{"$f":"Import!E17146","v":"Select"},{"$f":"Import!E17196","v":"Select"},{"$f":"Import!E17246","v":0},null,{"$f":"Import!M17096","v":"Select"},{"$f":"Import!M17146","v":"Select"},{"$f":"Import!M17196","v":"Select"},{"$f":"Import!M17246","v":0}]
[null,11,{"$f":"Import!E17047","v":0},null,{"$f":"Import!E17097","v":"Select"},{"$f":"Import!E17147","v":"Select"},{"$f":"Import!E17197","v":"Select"},{"$f":"Import!E17247","v":0},null,{"$f":"Import!M17097","v":"Select"},{"$f":"Import!M17147","v":"Select"},{"$f":"Import!M17197","v":"Select"},{"$f":"Import!M17247","v":0}]
[null,12,{"$f":"Import!E17048","v":0},null,{"$f":"Import!E17098","v":"Select"},{"$f":"Import!E17148","v":"Select"},{"$f":"Import!E17198","v":"Select"},{"$f":"Import!E17248","v":0},null,{"$f":"Import!M17098","v":"Select"},{"$f":"Import!M17148","v":"Select"},{"$f":"Import!M17198","v":"Select"},{"$f":"Import!M17248","v":0}]
[null,13,{"$f":"Import!E17049","v":0},null,{"$f":"Import!E17099","v":"Select"},{"$f":"Import!E17149","v":"Select"},{"$f":"Import!E17199","v":"Select"},{"$f":"Import!E17249","v":0},null,{"$f":"Import!M17099","v":"Select"},{"$f":"Import!M17149","v":"Select"},{"$f":"Import!M17199","v":"Select"},{"$f":"Import!M17249","v":0}]
[null,14,{"$f":"Import!E17050","v":0},null,{"$f":"Import!E17100","v":"Select"},{"$f":"Import!E17150","v":"Select"},{"$f":"Import!E17200","v":"Select"},{"$f":"Import!E17250","v":0},null,{"$f":"Import!M17100","v":"Select"},{"$f":"Import!M17150","v":"Select"},{"$f":"Import!M17200","v":"Select"},{"$f":"Import!M17250","v":0}]
[null,15,{"$f":"Import!E17051","v":0},null,{"$f":"Import!E17101","v":"Select"},{"$f":"Import!E17151","v":"Select"},{"$f":"Import!E17201","v":"Select"},{"$f":"Import!E17251","v":0},null,{"$f":"Import!M17101","v":"Select"},{"$f":"Import!M17151","v":"Select"},{"$f":"Import!M17201","v":"Select"},{"$f":"Import!M17251","v":0}]
[null,16,{"$f":"Import!E17052","v":0},null,{"$f":"Import!E17102","v":"Select"},{"$f":"Import!E17152","v":"Select"},{"$f":"Import!E17202","v":"Select"},{"$f":"Import!E17252","v":0},null,{"$f":"Import!M17102","v":"Select"},{"$f":"Import!M17152","v":"Select"},{"$f":"Import!M17202","v":"Select"},{"$f":"Import!M17252","v":0}]
[null,17,{"$f":"Import!E17053","v":0},null,{"$f":"Import!E17103","v":"Select"},{"$f":"Import!E17153","v":"Select"},{"$f":"Import!E17203","v":"Select"},{"$f":"Import!E17253","v":0},null,{"$f":"Import!M17103","v":"Select"},{"$f":"Import!M17153","v":"Select"},{"$f":"Import!M17203","v":"Select"},{"$f":"Import!M17253","v":0}]
[null,18,{"$f":"Import!E17054","v":0},null,{"$f":"Import!E17104","v":"Select"},{"$f":"Import!E17154","v":"Select"},{"$f":"Import!E17204","v":"Select"},{"$f":"Import!E17254","v":0},null,{"$f":"Import!M17104","v":"Select"},{"$f":"Import!M17154","v":"Select"},{"$f":"Import!M17204","v":"Select"},{"$f":"Import!M17254","v":0}]
[null,19,{"$f":"Import!E17055","v":0},null,{"$f":"Import!E17105","v":"Select"},{"$f":"Import!E17155","v":"Select"},{"$f":"Import!E17205","v":"Select"},{"$f":"Import!E17255","v":0},null,{"$f":"Import!M17105","v":"Select"},{"$f":"Import!M17155","v":"Select"},{"$f":"Import!M17205","v":"Select"},{"$f":"Import!M17255","v":0}]
[null,20,{"$f":"Import!E17056","v":0},null,{"$f":"Import!E17106","v":"Select"},{"$f":"Import!E17156","v":"Select"},{"$f":"Import!E17206","v":"Select"},{"$f":"Import!E17256","v":0},null,{"$f":"Import!M17106","v":"Select"},{"$f":"Import!M17156","v":"Select"},{"$f":"Import!M17206","v":"Select"},{"$f":"Import!M17256","v":0}]
[null,21,{"$f":"Import!E17057","v":0},null,{"$f":"Import!E17107","v":"Select"},{"$f":"Import!E17157","v":"Select"},{"$f":"Import!E17207","v":"Select"},{"$f":"Import!E17257","v":0},null,{"$f":"Import!M17107","v":"Select"},{"$f":"Import!M17157","v":"Select"},{"$f":"Import!M17207","v":"Select"},{"$f":"Import!M17257","v":0}]
[null,22,{"$f":"Import!E17058","v":0},null,{"$f":"Import!E17108","v":"Select"},{"$f":"Import!E17158","v":"Select"},{"$f":"Import!E17208","v":"Select"},{"$f":"Import!E17258","v":0},null,{"$f":"Import!M17108","v":"Select"},{"$f":"Import!M17158","v":"Select"},{"$f":"Import!M17208","v":"Select"},{"$f":"Import!M17258","v":0}]
[null,23,{"$f":"Import!E17059","v":0},null,{"$f":"Import!E17109","v":"Select"},{"$f":"Import!E17159","v":"Select"},{"$f":"Import!E17209","v":"Select"},{"$f":"Import!E17259","v":0},null,{"$f":"Import!M17109","v":"Select"},{"$f":"Import!M17159","v":"Select"},{"$f":"Import!M17209","v":"Select"},{"$f":"Import!M17259","v":0}]
[null,24,{"$f":"Import!E17060","v":0},null,{"$f":"Import!E17110","v":"Select"},{"$f":"Import!E17160","v":"Select"},{"$f":"Import!E17210","v":"Select"},{"$f":"Import!E17260","v":0},null,{"$f":"Import!M17110","v":"Select"},{"$f":"Import!M17160","v":"Select"},{"$f":"Import!M17210","v":"Select"},{"$f":"Import!M17260","v":0}]
[null,25,{"$f":"Import!E17061","v":0},null,{"$f":"Import!E17111","v":"Select"},{"$f":"Import!E17161","v":"Select"},{"$f":"Import!E17211","v":"Select"},{"$f":"Import!E17261","v":0},null,{"$f":"Import!M17111","v":"Select"},{"$f":"Import!M17161","v":"Select"},{"$f":"Import!M17211","v":"Select"},{"$f":"Import!M17261","v":0}]
[null,26,{"$f":"Import!E17062","v":0},null,{"$f":"Import!E17112","v":"Select"},{"$f":"Import!E17162","v":"Select"},{"$f":"Import!E17212","v":"Select"},{"$f":"Import!E17262","v":0},null,{"$f":"Import!M17112","v":"Select"},{"$f":"Import!M17162","v":"Select"},{"$f":"Import!M17212","v":"Select"},{"$f":"Import!M17262","v":0}]
[null,27,{"$f":"Import!E17063","v":0},null,{"$f":"Import!E17113","v":"Select"},{"$f":"Import!E17163","v":"Select"},{"$f":"Import!E17213","v":"Select"},{"$f":"Import!E17263","v":0},null,{"$f":"Import!M17113","v":"Select"},{"$f":"Import!M17163","v":"Select"},{"$f":"Import!M17213","v":"Select"},{"$f":"Import!M17263","v":0}]
[null,28,{"$f":"Import!E17064","v":0},null,{"$f":"Import!E17114","v":"Select"},{"$f":"Import!E17164","v":"Select"},{"$f":"Import!E17214","v":"Select"},{"$f":"Import!E17264","v":0},null,{"$f":"Import!M17114","v":"Select"},{"$f":"Import!M17164","v":"Select"},{"$f":"Import!M17214","v":"Select"},{"$f":"Import!M17264","v":0}]
[null,29,{"$f":"Import!E17065","v":0},null,{"$f":"Import!E17115","v":"Select"},{"$f":"Import!E17165","v":"Select"},{"$f":"Import!E17215","v":"Select"},{"$f":"Import!E17265","v":0},null,{"$f":"Import!M17115","v":"Select"},{"$f":"Import!M17165","v":"Select"},{"$f":"Import!M17215","v":"Select"},{"$f":"Import!M17265","v":0}]
[null,30,{"$f":"Import!E17066","v":0},null,{"$f":"Import!E17116","v":"Select"},{"$f":"Import!E17166","v":"Select"},{"$f":"Import!E17216","v":"Select"},{"$f":"Import!E17266","v":0},null,{"$f":"Import!M17116","v":"Select"},{"$f":"Import!M17166","v":"Select"},{"$f":"Import!M17216","v":"Select"},{"$f":"Import!M17266","v":0}]
[null,31,{"$f":"Import!E17067","v":0},null,{"$f":"Import!E17117","v":"Select"},{"$f":"Import!E17167","v":"Select"},{"$f":"Import!E17217","v":"Select"},{"$f":"Import!E17267","v":0},null,{"$f":"Import!M17117","v":"Select"},{"$f":"Import!M17167","v":"Select"},{"$f":"Import!M17217","v":"Select"},{"$f":"Import!M17267","v":0}]
[null,32,{"$f":"Import!E17068","v":0},null,{"$f":"Import!E17118","v":"Select"},{"$f":"Import!E17168","v":"Select"},{"$f":"Import!E17218","v":"Select"},{"$f":"Import!E17268","v":0},null,{"$f":"Import!M17118","v":"Select"},{"$f":"Import!M17168","v":"Select"},{"$f":"Import!M17218","v":"Select"},{"$f":"Import!M17268","v":0}]
[null,33,{"$f":"Import!E17069","v":0},null,{"$f":"Import!E17119","v":"Select"},{"$f":"Import!E17169","v":"Select"},{"$f":"Import!E17219","v":"Select"},{"$f":"Import!E17269","v":0},null,{"$f":"Import!M17119","v":"Select"},{"$f":"Import!M17169","v":"Select"},{"$f":"Import!M17219","v":"Select"},{"$f":"Import!M17269","v":0}]
[null,34,{"$f":"Import!E17070","v":0},null,{"$f":"Import!E17120","v":"Select"},{"$f":"Import!E17170","v":"Select"},{"$f":"Import!E17220","v":"Select"},{"$f":"Import!E17270","v":0},null,{"$f":"Import!M17120","v":"Select"},{"$f":"Import!M17170","v":"Select"},{"$f":"Import!M17220","v":"Select"},{"$f":"Import!M17270","v":0}]
[null,35,{"$f":"Import!E17071","v":0},null,{"$f":"Import!E17121","v":"Select"},{"$f":"Import!E17171","v":"Select"},{"$f":"Import!E17221","v":"Select"},{"$f":"Import!E17271","v":0},null,{"$f":"Import!M17121","v":"Select"},{"$f":"Import!M17171","v":"Select"},{"$f":"Import!M17221","v":"Select"},{"$f":"Import!M17271","v":0}]
[null,36,{"$f":"Import!E17072","v":0},null,{"$f":"Import!E17122","v":"Select"},{"$f":"Import!E17172","v":"Select"},{"$f":"Import!E17222","v":"Select"},{"$f":"Import!E17272","v":0},null,{"$f":"Import!M17122","v":"Select"},{"$f":"Import!M17172","v":"Select"},{"$f":"Import!M17222","v":"Select"},{"$f":"Import!M17272","v":0}]
[null,37,{"$f":"Import!E17073","v":0},null,{"$f":"Import!E17123","v":"Select"},{"$f":"Import!E17173","v":"Select"},{"$f":"Import!E17223","v":"Select"},{"$f":"Import!E17273","v":0},null,{"$f":"Import!M17123","v":"Select"},{"$f":"Import!M17173","v":"Select"},{"$f":"Import!M17223","v":"Select"},{"$f":"Import!M17273","v":0}]
[null,38,{"$f":"Import!E17074","v":0},null,{"$f":"Import!E17124","v":"Select"},{"$f":"Import!E17174","v":"Select"},{"$f":"Import!E17224","v":"Select"},{"$f":"Import!E17274","v":0},null,{"$f":"Import!M17124","v":"Select"},{"$f":"Import!M17174","v":"Select"},{"$f":"Import!M17224","v":"Select"},{"$f":"Import!M17274","v":0}]
[null,39,{"$f":"Import!E17075","v":0},null,{"$f":"Import!E17125","v":"Select"},{"$f":"Import!E17175","v":"Select"},{"$f":"Import!E17225","v":"Select"},{"$f":"Import!E17275","v":0},null,{"$f":"Import!M17125","v":"Select"},{"$f":"Import!M17175","v":"Select"},{"$f":"Import!M17225","v":"Select"},{"$f":"Import!M17275","v":0}]
[null,40,{"$f":"Import!E17076","v":0},null,{"$f":"Import!E17126","v":"Select"},{"$f":"Import!E17176","v":"Select"},{"$f":"Import!E17226","v":"Select"},{"$f":"Import!E17276","v":0},null,{"$f":"Import!M17126","v":"Select"},{"$f":"Import!M17176","v":"Select"},{"$f":"Import!M17226","v":"Select"},{"$f":"Import!M17276","v":0}]
[null,41,{"$f":"Import!E17077","v":0},null,{"$f":"Import!E17127","v":"Select"},{"$f":"Import!E17177","v":"Select"},{"$f":"Import!E17227","v":"Select"},{"$f":"Import!E17277","v":0},null,{"$f":"Import!M17127","v":"Select"},{"$f":"Import!M17177","v":"Select"},{"$f":"Import!M17227","v":"Select"},{"$f":"Import!M17277","v":0}]
[null,42,{"$f":"Import!E17078","v":0},null,{"$f":"Import!E17128","v":"Select"},{"$f":"Import!E17178","v":"Select"},{"$f":"Import!E17228","v":"Select"},{"$f":"Import!E17278","v":0},null,{"$f":"Import!M17128","v":"Select"},{"$f":"Import!M17178","v":"Select"},{"$f":"Import!M17228","v":"Select"},{"$f":"Import!M17278","v":0}]
[null,43,{"$f":"Import!E17079","v":0},null,{"$f":"Import!E17129","v":"Select"},{"$f":"Import!E17179","v":"Select"},{"$f":"Import!E17229","v":"Select"},{"$f":"Import!E17279","v":0},null,{"$f":"Import!M17129","v":"Select"},{"$f":"Import!M17179","v":"Select"},{"$f":"Import!M17229","v":"Select"},{"$f":"Import!M17279","v":0}]
[null,44,{"$f":"Import!E17080","v":0},null,{"$f":"Import!E17130","v":"Select"},{"$f":"Import!E17180","v":"Select"},{"$f":"Import!E17230","v":"Select"},{"$f":"Import!E17280","v":0},null,{"$f":"Import!M17130","v":"Select"},{"$f":"Import!M17180","v":"Select"},{"$f":"Import!M17230","v":"Select"},{"$f":"Import!M17280","v":0}]
[null,45,{"$f":"Import!E17081","v":0},null,{"$f":"Import!E17131","v":"Select"},{"$f":"Import!E17181","v":"Select"},{"$f":"Import!E17231","v":"Select"},{"$f":"Import!E17281","v":0},null,{"$f":"Import!M17131","v":"Select"},{"$f":"Import!M17181","v":"Select"},{"$f":"Import!M17231","v":"Select"},{"$f":"Import!M17281","v":0}]
[null,46,{"$f":"Import!E17082","v":0},null,{"$f":"Import!E17132","v":"Select"},{"$f":"Import!E17182","v":"Select"},{"$f":"Import!E17232","v":"Select"},{"$f":"Import!E17282","v":0},null,{"$f":"Import!M17132","v":"Select"},{"$f":"Import!M17182","v":"Select"},{"$f":"Import!M17232","v":"Select"},{"$f":"Import!M17282","v":0}]
[null,47,{"$f":"Import!E17083","v":0},null,{"$f":"Import!E17133","v":"Select"},{"$f":"Import!E17183","v":"Select"},{"$f":"Import!E17233","v":"Select"},{"$f":"Import!E17283","v":0},null,{"$f":"Import!M17133","v":"Select"},{"$f":"Import!M17183","v":"Select"},{"$f":"Import!M17233","v":"Select"},{"$f":"Import!M17283","v":0}]
[null,48,{"$f":"Import!E17084","v":0},null,{"$f":"Import!E17134","v":"Select"},{"$f":"Import!E17184","v":"Select"},{"$f":"Import!E17234","v":"Select"},{"$f":"Import!E17284","v":0},null,{"$f":"Import!M17134","v":"Select"},{"$f":"Import!M17184","v":"Select"},{"$f":"Import!M17234","v":"Select"},{"$f":"Import!M17284","v":0}]
[null,49,{"$f":"Import!E17085","v":0},null,{"$f":"Import!E17135","v":"Select"},{"$f":"Import!E17185","v":"Select"},{"$f":"Import!E17235","v":"Select"},{"$f":"Import!E17285","v":0},null,{"$f":"Import!M17135","v":"Select"},{"$f":"Import!M17185","v":"Select"},{"$f":"Import!M17235","v":"Select"},{"$f":"Import!M17285","v":0}]
[null,50,{"$f":"Import!E17086","v":0},null,{"$f":"Import!E17136","v":"Select"},{"$f":"Import!E17186","v":"Select"},{"$f":"Import!E17236","v":"Select"},{"$f":"Import!E17286","v":0},null,{"$f":"Import!M17136","v":"Select"},{"$f":"Import!M17186","v":"Select"},{"$f":"Import!M17236","v":"Select"},{"$f":"Import!M17286","v":0}]
[null,null,"TOTAL CONCENTRATION RISK",null,null,null,null,{"$f":"SUM(H8:H57)","v":0},null,null,null,null,{"$f":"SUM(M8:M57)","v":0}]
[]
[null,null,"Asset Type",null,null,"Bond Types",null,"BSCR Rating Reference"]
[null,null,"Select",null,null,"Select",null,"Select"]
[null,null,"Cash and Cash Equivalent",null,null,"Corporate & Sovereign Bonds",null,"BSCR Rating 0",null,"Note if an insurer does not have any entities to consolidate, enter consolidated information only (This cell is editable for deletion)"]
[null,null,"BondTypes",null,null,"Residential Mortgage-Backed Securities",null,"BSCR Rating 1"]
[null,null,"Preferred Shares",null,null,"Commercial Mortgage-Backed Securities",null,"BSCR Rating 2"]
[null,null,"MortgageLoanTypes",null,null,"Bond Mutual Funds",null,"BSCR Rating 3"]
[null,null,"Infrastructure (Non-affiliate holdings, non-duration based)",null,null,null,null,"BSCR Rating 4"]
[null,null,"Listed Equity Securities in Developed Markets",null,null,"Mortgage Loan Categories",null,"BSCR Rating 5"]
[null,null,"Other Equities",null,null,"Select",null,"BSCR Rating 6"]
[null,null,"Strategic Holdings",null,null,"Insured/Guaranteed Mortgages",null,"BSCR Rating 7"]
[null,null,"Duration Based",null,null,"Other Commercial and Farm Mortgages",null,"BSCR Rating 8"]
[null,null,"Letters of Credit",null,null,"Other Residential Mortgages"]
[null,null,"Advances to Affiliates - ",null,null,"Mortgages Not In Good Standing"]
[null,null,"Policy Loans"]
[null,null,"Equity Real Estate 1"]
[null,null,"Equity Real Estate 2"]
[null,null,"Collateral Loans"]

{"sheet":"Schedule XXIII","index":102,"n_rows":56,"n_cols":22,"rows_kept":56,"cut":false,"hidden":false,"merged":[[2,4,3,4],[4,4,4,21],[5,12,5,21],[6,4,6,5],[5,4,5,10],[6,12,6,13],[6,15,6,16],[31,4,31,5],[31,12,31,13],[31,15,31,16],[29,4,29,21],[30,12,30,21],[30,4,30,10]]}
[null,null,"SCHEDULE OF INTEREST RATE SENSITIVE ASSETS AND LIABILITIES",null,null,null,null,null,null,null,null,null,null,null,null,null,null,null,null,null,null,{"$f":"HYPERLINK(\"#'Index'!A1\",\"Return to Index\")","v":"Return to Index"}]
[null,null,{"$f":"'Company Information'!C7","v":"Enter Company Name"}]
[null,null,{"$f":"'Form 1SFS (Consolidated)'!$C$4","v":"2022-12-31"},null,null,null,null,null,null,null,null,null,null,null,null,null,null,null,null,null,null,"SCHEDULE XXIII"]
[null,null,{"$f":"IF(CONFIGURATION!$B$12>1,\" ['\"&MID(CONFIGURATION!$B$12,2,LEN(CONFIGURATION!$B$12))&\"s]\",\"\")&'Form 1SFS (Consolidated)'!$C$5","v":" ['000s]United States Dollars"}]
[null,null,null,null,"INTEREST RATE DOWN SHOCK"]
[null,null,null,null,"Exposures other than derivatives",null,null,null,null,null,null,null,"Derivative exposures"]
[null,null,"Currency",null,"Assets",null,null,"Liabilities","Liabilities without Management Actions",null,"Liabilities with Management Actions",null,"Assets - Qualifying as held for risk-mitigation purposes",null,null,"Assets - Not Qualifying as held for risk-mitigation purposes",null,null,"Liabilities","Liabilities without Management Actions",null,"Liabilities with Management Actions"]
[null,null,null,null,"Before Shock","After Shock",null,"Before Shock","After Shock",null,"After Shock",null,"Before Shock","After Shock",null,"Before Shock","After Shock",null,"Before Shock","After Shock",null,"After Shock"]
[null,null,null,null,"(A)","(B)",null,"(C)","(D)",null,"(E)",null,"(F)","(G)",null,"(H)","(I)",null,"(J)","(K)",null,"(L)"]
[null,1,"United States Dollars",null,{"$f":"Import!M17299","v":0},{"$f":"Import!M17318","v":0},null,{"$f":"Import!M17337","v":0},{"$f":"Import!M17356","v":0},null,{"$f":"Import!M17375","v":0},null,{"$f":"Import!M17394","v":0},{"$f":"Import!M17413","v":0},null,{"$f":"Import!M17432","v":0},{"$f":"Import!M17451","v":0},null,{"$f":"Import!M17470","v":0},{"$f":"Import!M17489","v":0},null,{"$f":"Import!M17508","v":0}]
[null,{"$f":"B10+1","v":2},"Euro",null,{"$f":"Import!M17300","v":0},{"$f":"Import!M17319","v":0},null,{"$f":"Import!M17338","v":0},{"$f":"Import!M17357","v":0},null,{"$f":"Import!M17376","v":0},null,{"$f":"Import!M17395","v":0},{"$f":"Import!M17414","v":0},null,{"$f":"Import!M17433","v":0},{"$f":"Import!M17452","v":0},null,{"$f":"Import!M17471","v":0},{"$f":"Import!M17490","v":0},null,{"$f":"Import!M17509","v":0}]
[null,{"$f":"B11+1","v":3},"United Kingdom Pounds",null,{"$f":"Import!M17301","v":0},{"$f":"Import!M17320","v":0},null,{"$f":"Import!M17339","v":0},{"$f":"Import!M17358","v":0},null,{"$f":"Import!M17377","v":0},null,{"$f":"Import!M17396","v":0},{"$f":"Import!M17415","v":0},null,{"$f":"Import!M17434","v":0},{"$f":"Import!M17453","v":0},null,{"$f":"Import!M17472","v":0},{"$f":"Import!M17491","v":0},null,{"$f":"Import!M17510","v":0}]
[null,4,"Japan Yen",null,{"$f":"Import!M17302","v":0},{"$f":"Import!M17321","v":0},null,{"$f":"Import!M17340","v":0},{"$f":"Import!M17359","v":0},null,{"$f":"Import!M17378","v":0},null,{"$f":"Import!M17397","v":0},{"$f":"Import!M17416","v":0},null,{"$f":"Import!M17435","v":0},{"$f":"Import!M17454","v":0},null,{"$f":"Import!M17473","v":0},{"$f":"Import!M17492","v":0},null,{"$f":"Import!M17511","v":0}]
[null,5,"Canada Dollars",null,{"$f":"Import!M17303","v":0},{"$f":"Import!M17322","v":0},null,{"$f":"Import!M17341","v":0},{"$f":"Import!M17360","v":0},null,{"$f":"Import!M17379","v":0},null,{"$f":"Import!M17398","v":0},{"$f":"Import!M17417","v":0},null,{"$f":"Import!M17436","v":0},{"$f":"Import!M17455","v":0},null,{"$f":"Import!M17474","v":0},{"$f":"Import!M17493","v":0},null,{"$f":"Import!M17512","v":0}]
[null,6,"Swiss Francs",null,{"$f":"Import!M17304","v":0},{"$f":"Import!M17323","v":0},null,{"$f":"Import!M17342","v":0},{"$f":"Import!M17361","v":0},null,{"$f":"Import!M17380","v":0},null,{"$f":"Import!M17399","v":0},{"$f":"Import!M17418","v":0},null,{"$f":"Import!M17437","v":0},{"$f":"Import!M17456","v":0},null,{"$f":"Import!M17475","v":0},{"$f":"Import!M17494","v":0},null,{"$f":"Import!M17513","v":0}]
[null,7,"Australia Dollar",null,{"$f":"Import!M17305","v":0},{"$f":"Import!M17324","v":0},null,{"$f":"Import!M17343","v":0},{"$f":"Import!M17362","v":0},null,{"$f":"Import!M17381","v":0},null,{"$f":"Import!M17400","v":0},{"$f":"Import!M17419","v":0},null,{"$f":"Import!M17438","v":0},{"$f":"Import!M17457","v":0},null,{"$f":"Import!M17476","v":0},{"$f":"Import!M17495","v":0},null,{"$f":"Import!M17514","v":0}]
[null,8,"New Zealand Dollar",null,{"$f":"Import!M17306","v":0},{"$f":"Import!M17325","v":0},null,{"$f":"Import!M17344","v":0},{"$f":"Import!M17363","v":0},null,{"$f":"Import!M17382","v":0},null,{"$f":"Import!M17401","v":0},{"$f":"Import!M17420","v":0},null,{"$f":"Import!M17439","v":0},{"$f":"Import!M17458","v":0},null,{"$f":"Import!M17477","v":0},{"$f":"Import!M17496","v":0},null,{"$f":"Import!M17515","v":0}]
[null,9,{"$f":"Import!M17289","v":"Other currency 1"},null,{"$f":"Import!M17307","v":0},{"$f":"Import!M17326","v":0},null,{"$f":"Import!M17345","v":0},{"$f":"Import!M17364","v":0},null,{"$f":"Import!M17383","v":0},null,{"$f":"Import!M17402","v":0},{"$f":"Import!M17421","v":0},null,{"$f":"Import!M17440","v":0},{"$f":"Import!M17459","v":0},null,{"$f":"Import!M17478","v":0},{"$f":"Import!M17497","v":0},null,{"$f":"Import!M17516","v":0}]
[null,10,{"$f":"Import!M17290","v":"Other currency 2"},null,{"$f":"Import!M17308","v":0},{"$f":"Import!M17327","v":0},null,{"$f":"Import!M17346","v":0},{"$f":"Import!M17365","v":0},null,{"$f":"Import!M17384","v":0},null,{"$f":"Import!M17403","v":0},{"$f":"Import!M17422","v":0},null,{"$f":"Import!M17441","v":0},{"$f":"Import!M17460","v":0},null,{"$f":"Import!M17479","v":0},{"$f":"Import!M17498","v":0},null,{"$f":"Import!M17517","v":0}]
[null,11,{"$f":"Import!M17291","v":"Other currency 3"},null,{"$f":"Import!M17309","v":0},{"$f":"Import!M17328","v":0},null,{"$f":"Import!M17347","v":0},{"$f":"Import!M17366","v":0},null,{"$f":"Import!M17385","v":0},null,{"$f":"Import!M17404","v":0},{"$f":"Import!M17423","v":0},null,{"$f":"Import!M17442","v":0},{"$f":"Import!M17461","v":0},null,{"$f":"Import!M17480","v":0},{"$f":"Import!M17499","v":0},null,{"$f":"Import!M17518","v":0}]
[null,12,{"$f":"Import!M17292","v":"Other currency 4"},null,{"$f":"Import!M17310","v":0},{"$f":"Import!M17329","v":0},null,{"$f":"Import!M17348","v":0},{"$f":"Import!M17367","v":0},null,{"$f":"Import!M17386","v":0},null,{"$f":"Import!M17405","v":0},{"$f":"Import!M17424","v":0},null,{"$f":"Import!M17443","v":0},{"$f":"Import!M17462","v":0},null,{"$f":"Import!M17481","v":0},{"$f":"Import!M17500","v":0},null,{"$f":"Import!M17519","v":0}]
[null,13,{"$f":"Import!M17293","v":"Other currency 5"},null,{"$f":"Import!M17311","v":0},{"$f":"Import!M17330","v":0},null,{"$f":"Import!M17349","v":0},{"$f":"Import!M17368","v":0},null,{"$f":"Import!M17387","v":0},null,{"$f":"Import!M17406","v":0},{"$f":"Import!M17425","v":0},null,{"$f":"Import!M17444","v":0},{"$f":"Import!M17463","v":0},null,{"$f":"Import!M17482","v":0},{"$f":"Import!M17501","v":0},null,{"$f":"Import!M17520","v":0}]
[null,14,{"$f":"Import!M17294","v":"Other currency 6"},null,{"$f":"Import!M17312","v":0},{"$f":"Import!M17331","v":0},null,{"$f":"Import!M17350","v":0},{"$f":"Import!M17369","v":0},null,{"$f":"Import!M17388","v":0},null,{"$f":"Import!M17407","v":0},{"$f":"Import!M17426","v":0},null,{"$f":"Import!M17445","v":0},{"$f":"Import!M17464","v":0},null,{"$f":"Import!M17483","v":0},{"$f":"Import!M17502","v":0},null,{"$f":"Import!M17521","v":0}]
[null,15,{"$f":"Import!M17295","v":"Other currency 7"},null,{"$f":"Import!M17313","v":0},{"$f":"Import!M17332","v":0},null,{"$f":"Import!M17351","v":0},{"$f":"Import!M17370","v":0},null,{"$f":"Import!M17389","v":0},null,{"$f":"Import!M17408","v":0},{"$f":"Import!M17427","v":0},null,{"$f":"Import!M17446","v":0},{"$f":"Import!M17465","v":0},null,{"$f":"Import!M17484","v":0},{"$f":"Import!M17503","v":0},null,{"$f":"Import!M17522","v":0}]
[null,16,{"$f":"Import!M17296","v":"Other currency 8"},null,{"$f":"Import!M17314","v":0},{"$f":"Import!M17333","v":0},null,{"$f":"Import!M17352","v":0},{"$f":"Import!M17371","v":0},null,{"$f":"Import!M17390","v":0},null,{"$f":"Import!M17409","v":0},{"$f":"Import!M17428","v":0},null,{"$f":"Import!M17447","v":0},{"$f":"Import!M17466","v":0},null,{"$f":"Import!M17485","v":0},{"$f":"Import!M17504","v":0},null,{"$f":"Import!M17523","v":0}]
[null,17,{"$f":"Import!M17297","v":"Other currency 9"},null,{"$f":"Import!M17315","v":0},{"$f":"Import!M17334","v":0},null,{"$f":"Import!M17353","v":0},{"$f":"Import!M17372","v":0},null,{"$f":"Import!M17391","v":0},null,{"$f":"Import!M17410","v":0},{"$f":"Import!M17429","v":0},null,{"$f":"Import!M17448","v":0},{"$f":"Import!M17467","v":0},null,{"$f":"Import!M17486","v":0},{"$f":"Import!M17505","v":0},null,{"$f":"Import!M17524","v":0}]
[null,18,{"$f":"Import!M17298","v":"Other currency 10"},null,{"$f":"Import!M17316","v":0},{"$f":"Import!M17335","v":0},null,{"$f":"Import!M17354","v":0},{"$f":"Import!M17373","v":0},null,{"$f":"Import!M17392","v":0},null,{"$f":"Import!M17411","v":0},{"$f":"Import!M17430","v":0},null,{"$f":"Import!M17449","v":0},{"$f":"Import!M17468","v":0},null,{"$f":"Import!M17487","v":0},{"$f":"Import!M17506","v":0},null,{"$f":"Import!M17525","v":0}]
[null,19,"IR Down Shock Total",null,{"$f":"SUM(E10:E27)","v":0},{"$f":"SUM(F10:F27)","v":0},null,{"$f":"SUM(H10:H27)","v":0},{"$f":"SUM(I10:I27)","v":0},null,{"$f":"SUM(K10:K27)","v":0},null,{"$f":"SUM(M10:M27)","v":0},{"$f":"SUM(N10:N27)","v":0},null,{"$f":"SUM(P10:P27)","v":0},{"$f":"SUM(Q10:Q27)","v":0},null,{"$f":"SUM(S10:S27)","v":0},{"$f":"SUM(T10:T27)","v":0},null,{"$f":"SUM(V10:V27)","v":0}]
[]
[null,null,null,null,"INTEREST RATE UP SHOCK"]
[null,null,null,null,"Exposures other than derivatives",null,null,null,null,null,null,null,"Derivative exposures"]
[null,null,"Currency",null,"Assets",null,null,"Liabilities","Liabilities without Management Actions",null,"Liabilities with Management Actions",null,"Assets - Qualifying as held for risk-mitigation purposes",null,null,"Assets - Not Qualifying as held for risk-mitigation purposes",null,null,"Liabilities","Liabilities without Management Actions",null,"Liabilities with Management Actions"]
[null,null,null,null,"Before Shock","After Shock",null,"Before Shock","After Shock",null,"After Shock",null,"Before Shock","After Shock",null,"Before Shock","After Shock",null,"Before Shock","After Shock",null,"After Shock"]
[null,null,null,null,"(A)","(B)",null,"(C)","(D)",null,"(E)",null,"(F)","(G)",null,"(H)","(I)",null,"(J)","(K)",null,"(L)"]
[null,{"$f":"B28+1","v":20},"United States Dollars",null,{"$f":"Import!M17537","v":0},{"$f":"Import!M17556","v":0},null,{"$f":"Import!M17575","v":0},{"$f":"Import!M17594","v":0},null,{"$f":"Import!M17613","v":0},null,{"$f":"Import!M17632","v":0},{"$f":"Import!M17651","v":0},null,{"$f":"Import!M17670","v":0},{"$f":"Import!M17689","v":0},null,{"$f":"Import!M17708","v":0},{"$f":"Import!M17727","v":0},null,{"$f":"Import!M17746","v":0}]
[null,{"$f":"B35+1","v":21},"Euro",null,{"$f":"Import!M17538","v":0},{"$f":"Import!M17557","v":0},null,{"$f":"Import!M17576","v":0},{"$f":"Import!M17595","v":0},null,{"$f":"Import!M17614","v":0},null,{"$f":"Import!M17633","v":0},{"$f":"Import!M17652","v":0},null,{"$f":"Import!M17671","v":0},{"$f":"Import!M17690","v":0},null,{"$f":"Import!M17709","v":0},{"$f":"Import!M17728","v":0},null,{"$f":"Import!M17747","v":0}]
[null,{"$f":"B36+1","v":22},"United Kingdom Pounds",null,{"$f":"Import!M17539","v":0},{"$f":"Import!M17558","v":0},null,{"$f":"Import!M17577","v":0},{"$f":"Import!M17596","v":0},null,{"$f":"Import!M17615","v":0},null,{"$f":"Import!M17634","v":0},{"$f":"Import!M17653","v":0},null,{"$f":"Import!M17672","v":0},{"$f":"Import!M17691","v":0},null,{"$f":"Import!M17710","v":0},{"$f":"Import!M17729","v":0},null,{"$f":"Import!M17748","v":0}]
[null,23,"Japan Yen",null,{"$f":"Import!M17540","v":0},{"$f":"Import!M17559","v":0},null,{"$f":"Import!M17578","v":0},{"$f":"Import!M17597","v":0},null,{"$f":"Import!M17616","v":0},null,{"$f":"Import!M17635","v":0},{"$f":"Import!M17654","v":0},null,{"$f":"Import!M17673","v":0},{"$f":"Import!M17692","v":0},null,{"$f":"Import!M17711","v":0},{"$f":"Import!M17730","v":0},null,{"$f":"Import!M17749","v":0}]
[null,24,"Canada Dollars",null,{"$f":"Import!M17541","v":0},{"$f":"Import!M17560","v":0},null,{"$f":"Import!M17579","v":0},{"$f":"Import!M17598","v":0},null,{"$f":"Import!M17617","v":0},null,{"$f":"Import!M17636","v":0},{"$f":"Import!M17655","v":0},null,{"$f":"Import!M17674","v":0},{"$f":"Import!M17693","v":0},null,{"$f":"Import!M17712","v":0},{"$f":"Import!M17731","v":0},null,{"$f":"Import!M17750","v":0}]
[null,25,"Swiss Francs",null,{"$f":"Import!M17542","v":0},{"$f":"Import!M17561","v":0},null,{"$f":"Import!M17580","v":0},{"$f":"Import!M17599","v":0},null,{"$f":"Import!M17618","v":0},null,{"$f":"Import!M17637","v":0},{"$f":"Import!M17656","v":0},null,{"$f":"Import!M17675","v":0},{"$f":"Import!M17694","v":0},null,{"$f":"Import!M17713","v":0},{"$f":"Import!M17732","v":0},null,{"$f":"Import!M17751","v":0}]
[null,26,"Australia Dollar",null,{"$f":"Import!M17543","v":0},{"$f":"Import!M17562","v":0},null,{"$f":"Import!M17581","v":0},{"$f":"Import!M17600","v":0},null,{"$f":"Import!M17619","v":0},null,{"$f":"Import!M17638","v":0},{"$f":"Import!M17657","v":0},null,{"$f":"Import!M17676","v":0},{"$f":"Import!M17695","v":0},null,{"$f":"Import!M17714","v":0},{"$f":"Import!M17733","v":0},null,{"$f":"Import!M17752","v":0}]
[null,27,"New Zealand Dollar",null,{"$f":"Import!M17544","v":0},{"$f":"Import!M17563","v":0},null,{"$f":"Import!M17582","v":0},{"$f":"Import!M17601","v":0},null,{"$f":"Import!M17620","v":0},null,{"$f":"Import!M17639","v":0},{"$f":"Import!M17658","v":0},null,{"$f":"Import!M17677","v":0},{"$f":"Import!M17696","v":0},null,{"$f":"Import!M17715","v":0},{"$f":"Import!M17734","v":0},null,{"$f":"Import!M17753","v":0}]
[null,28,{"$f":"Import!M17527","v":"Other currency 1"},null,{"$f":"Import!M17545","v":0},{"$f":"Import!M17564","v":0},null,{"$f":"Import!M17583","v":0},{"$f":"Import!M17602","v":0},null,{"$f":"Import!M17621","v":0},null,{"$f":"Import!M17640","v":0},{"$f":"Import!M17659","v":0},null,{"$f":"Import!M17678","v":0},{"$f":"Import!M17697","v":0},null,{"$f":"Import!M17716","v":0},{"$f":"Import!M17735","v":0},null,{"$f":"Import!M17754","v":0}]
[null,29,{"$f":"Import!M17528","v":"Other currency 2"},null,{"$f":"Import!M17546","v":0},{"$f":"Import!M17565","v":0},null,{"$f":"Import!M17584","v":0},{"$f":"Import!M17603","v":0},null,{"$f":"Import!M17622","v":0},null,{"$f":"Import!M17641","v":0},{"$f":"Import!M17660","v":0},null,{"$f":"Import!M17679","v":0},{"$f":"Import!M17698","v":0},null,{"$f":"Import!M17717","v":0},{"$f":"Import!M17736","v":0},null,{"$f":"Import!M17755","v":0}]
[null,30,{"$f":"Import!M17529","v":"Other currency 3"},null,{"$f":"Import!M17547","v":0},{"$f":"Import!M17566","v":0},null,{"$f":"Import!M17585","v":0},{"$f":"Import!M17604","v":0},null,{"$f":"Import!M17623","v":0},null,{"$f":"Import!M17642","v":0},{"$f":"Import!M17661","v":0},null,{"$f":"Import!M17680","v":0},{"$f":"Import!M17699","v":0},null,{"$f":"Import!M17718","v":0},{"$f":"Import!M17737","v":0},null,{"$f":"Import!M17756","v":0}]
[null,31,{"$f":"Import!M17530","v":"Other currency 4"},null,{"$f":"Import!M17548","v":0},{"$f":"Import!M17567","v":0},null,{"$f":"Import!M17586","v":0},{"$f":"Import!M17605","v":0},null,{"$f":"Import!M17624","v":0},null,{"$f":"Import!M17643","v":0},{"$f":"Import!M17662","v":0},null,{"$f":"Import!M17681","v":0},{"$f":"Import!M17700","v":0},null,{"$f":"Import!M17719","v":0},{"$f":"Import!M17738","v":0},null,{"$f":"Import!M17757","v":0}]
[null,32,{"$f":"Import!M17531","v":"Other currency 5"},null,{"$f":"Import!M17549","v":0},{"$f":"Import!M17568","v":0},null,{"$f":"Import!M17587","v":0},{"$f":"Import!M17606","v":0},null,{"$f":"Import!M17625","v":0},null,{"$f":"Import!M17644","v":0},{"$f":"Import!M17663","v":0},null,{"$f":"Import!M17682","v":0},{"$f":"Import!M17701","v":0},null,{"$f":"Import!M17720","v":0},{"$f":"Import!M17739","v":0},null,{"$f":"Import!M17758","v":0}]
[null,33,{"$f":"Import!M17532","v":"Other currency 6"},null,{"$f":"Import!M17550","v":0},{"$f":"Import!M17569","v":0},null,{"$f":"Import!M17588","v":0},{"$f":"Import!M17607","v":0},null,{"$f":"Import!M17626","v":0},null,{"$f":"Import!M17645","v":0},{"$f":"Import!M17664","v":0},null,{"$f":"Import!M17683","v":0},{"$f":"Import!M17702","v":0},null,{"$f":"Import!M17721","v":0},{"$f":"Import!M17740","v":0},null,{"$f":"Import!M17759","v":0}]
[null,34,{"$f":"Import!M17533","v":"Other currency 7"},null,{"$f":"Import!M17551","v":0},{"$f":"Import!M17570","v":0},null,{"$f":"Import!M17589","v":0},{"$f":"Import!M17608","v":0},null,{"$f":"Import!M17627","v":0},null,{"$f":"Import!M17646","v":0},{"$f":"Import!M17665","v":0},null,{"$f":"Import!M17684","v":0},{"$f":"Import!M17703","v":0},null,{"$f":"Import!M17722","v":0},{"$f":"Import!M17741","v":0},null,{"$f":"Import!M17760","v":0}]
[null,35,{"$f":"Import!M17534","v":"Other currency 8"},null,{"$f":"Import!M17552","v":0},{"$f":"Import!M17571","v":0},null,{"$f":"Import!M17590","v":0},{"$f":"Import!M17609","v":0},null,{"$f":"Import!M17628","v":0},null,{"$f":"Import!M17647","v":0},{"$f":"Import!M17666","v":0},null,{"$f":"Import!M17685","v":0},{"$f":"Import!M17704","v":0},null,{"$f":"Import!M17723","v":0},{"$f":"Import!M17742","v":0},null,{"$f":"Import!M17761","v":0}]
[null,36,{"$f":"Import!M17535","v":"Other currency 9"},null,{"$f":"Import!M17553","v":0},{"$f":"Import!M17572","v":0},null,{"$f":"Import!M17591","v":0},{"$f":"Import!M17610","v":0},null,{"$f":"Import!M17629","v":0},null,{"$f":"Import!M17648","v":0},{"$f":"Import!M17667","v":0},null,{"$f":"Import!M17686","v":0},{"$f":"Import!M17705","v":0},null,{"$f":"Import!M17724","v":0},{"$f":"Import!M17743","v":0},null,{"$f":"Import!M17762","v":0}]
[null,37,{"$f":"Import!M17536","v":"Other currency 10"},null,{"$f":"Import!M17554","v":0},{"$f":"Import!M17573","v":0},null,{"$f":"Import!M17592","v":0},{"$f":"Import!M17611","v":0},null,{"$f":"Import!M17630","v":0},null,{"$f":"Import!M17649","v":0},{"$f":"Import!M17668","v":0},null,{"$f":"Import!M17687","v":0},{"$f":"Import!M17706","v":0},null,{"$f":"Import!M17725","v":0},{"$f":"Import!M17744","v":0},null,{"$f":"Import!M17763","v":0}]
[null,38,"IR UP Shock Total",null,{"$f":"SUM(E35:E52)","v":0},{"$f":"SUM(F35:F52)","v":0},null,{"$f":"SUM(H35:H52)","v":0},{"$f":"SUM(I35:I52)","v":0},null,{"$f":"SUM(K35:K52)","v":0},null,{"$f":"SUM(M35:M52)","v":0},{"$f":"SUM(N35:N52)","v":0},null,{"$f":"SUM(P35:P52)","v":0},{"$f":"SUM(Q35:Q52)","v":0},null,{"$f":"SUM(S35:S52)","v":0},{"$f":"SUM(T35:T52)","v":0},null,{"$f":"SUM(V35:V52)","v":0}]
[]
[null,null,"Interest Rate Check",null,{"$f":"IF(ROUND(E28-E53,0)=0,\"Yes\",\"No\")","v":"Yes"},null,null,{"$f":"IF(ROUND(H28-H53,0)=0,\"Yes\",\"No\")","v":"Yes"},null,null,null,null,{"$f":"IF(ROUND(M28-M53,0)=0,\"Yes\",\"No\")","v":"Yes"},null,null,{"$f":"IF(ROUND(P28-P53,0)=0,\"Yes\",\"No\")","v":"Yes"},null,null,{"$f":"IF(ROUND(S28-S53,0)=0,\"Yes\",\"No\")","v":"Yes"}]
[null,null,"Difference",null,{"$f":"ROUND(E28-E53,0)","v":0},null,null,{"$f":"ROUND(H28-H53,0)","v":0},null,null,null,null,{"$f":"ROUND(M28-M53,0)","v":0},null,null,{"$f":"ROUND(P28-P53,0)","v":0},null,null,{"$f":"ROUND(S28-S53,0)","v":0}]

{"sheet":"Schedule XXV","index":103,"n_rows":26,"n_cols":6,"rows_kept":26,"cut":false,"hidden":false,"merged":[]}
[null,"SCHEDULE XXV - SCHEDULE OF DIGITAL ASSETS",null,null,null,{"$f":"HYPERLINK(\"#'Index'!A1\",\"Return to Index\")","v":"Return to Index"}]
[]
[]
[null,"Digital Asset type","Total Digital","Total Digital","Exchange rate used","Source"]
[null," ","Assets","Liabilities"]
[null,"Stablecoins"]
[1]
[2]
[3]
[4]
[5]
[6]
[7]
[8]
[null,"Total stablecoins",{"$f":"SUM(C7:C14)","v":0},{"$f":"SUM(D7:D14)","v":0}]
[]
[null,"All other digital assets"]
[null,"Top 1 by market cap"]
[null,"Top 2-3 by market cap"]
[null,"Top 4-10 by market cap"]
[null,"Top 10-20 by market cap"]
[null,"Top 21 and below by market cap"]
[null,"Unlisted digital assets"]
[null,null,{"$f":"SUM(C18:C23)","v":0},{"$f":"SUM(D18:D23)","v":0}]
[]
[null,"Total",{"$f":"C15+C24","v":0},{"$f":"D15+D24","v":0}]

{"sheet":"Corp Gov","index":104,"n_rows":19,"n_cols":4,"rows_kept":19,"cut":false,"hidden":false,"merged":[[4,1,4,3],[19,1,19,3],[18,1,18,4]]}
[null,"CORPORATE GOVERNANCE",null,{"$f":"HYPERLINK(\"#'Index'!A1\",\"Return to Index\")","v":"Return to Index"}]
[null,{"$f":"'Company Information'!C7","v":"Enter Company Name"}]
[null,{"$f":"'Form 1SFS (Consolidated)'!$C$4","v":"2022-12-31"}]
[]
[null,"The insurer is to review the following statements below.  The insurer is to place an “X” in the column “Implemented” where the Corporate Governance function meets the criteria (200 points for each fulfilled criteria).  The worksheet will automatically aggregate all scores."]
[]
[null,"The Board of Directors:"]
[]
[null,"Description","Implemented","Score"]
[null,{"$f":"IF('Company Information'!$F$11=\"IIGB\",\"Sets risk policies, practices and tolerance limits for all material foreseeable operational risks at least annually \",\"Sets risk policies, practices and tolerance limits for all material foreseeable operational risks at least annually and ensures they are communicated to relevant business units\")","v":"Sets risk policies, practices and tolerance limits for all material foreseeable operational risks at least annually "},null,{"$f":"IF(C10=\"\",Import!M17766,IF(C10=\"X\", 200, 0))","v":0}]
[null,"Ensures they are communicated to relevant business units",null,{"$f":"IF(C11=\"\",Import!M17767,IF(C11=\"X\", 200, 0))","v":0}]
[null,"Monitors adherence to operational risk tolerance limits more regularly than annually",null,{"$f":"IF(C12=\"\",Import!M17768,IF(C12=\"X\", 200, 0))","v":0}]
[null,"Receives, at least annually, reports on the effectiveness of material operational risk internal controls as well as management’s plans to address related weaknesses",null,{"$f":"IF(C13=\"\",Import!M17769,IF(C13=\"X\", 200, 0))","v":0}]
[null,"Ensures that systems and/or procedures are in place to identify, report and promptly address internal control deficiencies related to operational risks",null,{"$f":"IF(C14=\"\",Import!M17770,IF(C14=\"X\", 200, 0))","v":0}]
[null,"Promotes full, open and timely disclosure from senior management on all significant issues related to operational risk",null,{"$f":"IF(C15=\"\",Import!M17771,IF(C15=\"X\", 200, 0))","v":0}]
[null,"Ensures that periodic independent reviews of the risk management function are performed and receives the findings of the review",null,{"$f":"IF(C16=\"\",Import!M17772,IF(C16=\"X\", 200, 0))","v":0}]
[null,null,null,{"$f":"SUM(D10:D16)","v":0}]
[]
[null,"Comments (optionally, the insurer may provide comments in the box below to support its responses above):"]

{"sheet":"Risk Man","index":105,"n_rows":20,"n_cols":4,"rows_kept":20,"cut":false,"hidden":false,"merged":[[5,1,5,3],[20,1,20,3]]}
[null,"RISK MANAGEMENT FUNCTION",null,{"$f":"HYPERLINK(\"#'Index'!A1\",\"Return to Index\")","v":"Return to Index"}]
[]
[null,{"$f":"'Company Information'!C7","v":"Enter Company Name"}]
[null,{"$f":"'Form 1SFS (Consolidated)'!$C$4","v":"2022-12-31"},null,{"$f":"IF('Company Information'!$F$11=\"IIGB\",200,150)","v":200}]
[]
[null,{"$f":"\"The insurer is to review the following statements below.  The insurer is to place an X in the column Implemented where the Risk Management function meets the criteria (\"&D4 &\" points for each fulfilled criteria).  The worksheet will automatically aggregate all scores.\"","v":"The insurer is to review the following statements below.  The insurer is to place an X in the column Implemented where the Risk Management function meets the criteria (200 points for each fulfilled criteria).  The worksheet will automatically aggregate all scores."}]
[]
[null,"The Risk Management Function:"]
[]
[null,"Description","Implemented","Score"]
[null,"Is independent of other operational units and has direct access to the Board of Directors",null,{"$f":"IF(C11=\"\",Import!M17773,IF('Company Information'!$F$11=\"IIGB\",IF(C11=\"X\", 200, 0),IF(C11=\"X\", 150, 0)))","v":0}]
[null,"Is entrenched in strategic planning, decision making and budgeting process",null,{"$f":"IF(C12=\"\",Import!M17774,IF('Company Information'!$F$11=\"IIGB\",IF(C12=\"X\", 200, 0),IF(C12=\"X\", 150, 0)))","v":0}]
[null,"Ensures that the risk management procedures and policies are well documented and approved by the Board of Directors",null,{"$f":"IF(C13=\"\",Import!M17775,IF('Company Information'!$F$11=\"IIGB\",IF(C13=\"X\", 200, 0),IF(C13=\"X\", 150, 0)))","v":0}]
[null,"Ensures the risk management policies and procedures are communicated throughout the organisation.",null,{"$f":"IF(C14=\"\",Import!M17776,IF('Company Information'!$F$11=\"IIGB\",IF(C14=\"X\", 200, 0),IF(C14=\"X\", 150, 0)))","v":0}]
[null,"Reviews operational risk management processes and procedures at least annually",null,{"$f":"IF(C15=\"\",Import!M17777,IF('Company Information'!$F$11=\"IIGB\",IF(C15=\"X\", 200, 0),IF(C15=\"X\", 150, 0)))","v":0}]
[null,"Ensures that loss events arising from operational risks are documented and loss event data is integrated into enterprise risk management ",null,{"$f":"IF(C16=\"\",Import!M17778,IF('Company Information'!$F$11=\"IIGB\",IF(C16=\"X\", 200, 0),IF(C16=\"X\", 150, 0)))","v":0}]
[null,"Documents its risk management recommendations for operational units, ensures that deficiencies have remedial plans and progress on the execution of such plans are reported to the Board of Directors at least annually",null,{"$f":"IF(C17=\"\",Import!M17779,IF('Company Information'!$F$11=\"IIGB\",IF(C17=\"X\", 200, 0),IF(C17=\"X\", 150, 0)))","v":0}]
[null,null,null,{"$f":"SUM(D11:D17)","v":0}]
[]
[null,"Comments (optionally, the insurer may provide comments in the box below to support its responses above):"]

{"sheet":"Identification","index":106,"n_rows":40,"n_cols":14,"rows_kept":40,"cut":false,"hidden":true,"merged":[[2,1,2,3],[1,1,1,3],[21,1,21,12],[12,1,12,2],[12,3,13,3],[12,4,12,12],[20,1,20,7],[4,1,4,12],[6,1,6,10],[6,11,6,12]]}
[null,"RISK IDENTIFICATION",null,null,null,null,null,null,null,null,null,null,{"$f":"HYPERLINK(\"#'Index'!A1\",\"Return to Index\")","v":"Return to Index"}]
[null,{"$f":"'Company Information'!C7","v":"Enter Company Name"}]
[null,{"$f":"'Form 1EBS'!C3","v":"2022-12-31"}]
[]
[null,"The insurer is to answer the following question.  If the answer to the question is \"No\" then the insurer does not have to complete the matrix/grid.  If the answer to the question is \"Yes\" then the insurer is to identify the stage of progression of each Operational Risk Area based upon the Dimension descriptor.  The insurer is then to input an “X” in the grid corresponding to the stage in the matrix table under the relevant Operational Risk Area."]
[]
[null,"Has your company taken steps to identify material risks arising from the Operational Risk Areas identified below? (Y/N) "]
[]
[null,"If \"Y\", identify the stage of each Operational Risk Area and input an \"X\" in the appropriate grid under each area."]
[]
[null,"Risk Identification Processes are:"]
[]
[null,"Progression",null,"Dimension","Operational Risk Areas"]
[null,"Stage","Scoring",null,"Fraud","Human Resources","Outsourcing","Distribution Channels","Business Processes","Business Continuity","Information Systems","Compliance","Total (Si)"]
[null,1,50,"“ad hoc”"]
[null,2,100,"Implemented but not standardized across the organization"]
[null,3,150,"Implemented, well documented policies and procedures that are understood by relevant staff, and standardized across the entire organization"]
[null,4,200,"In addition to Stage 3, processes are reviewed at least annually with the view to assessing effectiveness and introducing improvements"]
[null,null,null,null,{"$f":"IF(COUNTA(E15:E18)=0,Import!$M17780,IF(E15=\"X\", 50, IF(E16=\"X\", 100, IF(E17=\"X\", 150, IF(E18=\"X\", 200, 0)))))","v":0},{"$f":"IF(COUNTA(F15:F18)=0,Import!$M17781,IF(F15=\"X\", 50, IF(F16=\"X\", 100, IF(F17=\"X\", 150, IF(F18=\"X\", 200, 0)))))","v":0},{"$f":"IF(COUNTA(G15:G18)=0,Import!$M17782,IF(G15=\"X\", 50, IF(G16=\"X\", 100, IF(G17=\"X\", 150, IF(G18=\"X\", 200, 0)))))","v":0},{"$f":"IF(COUNTA(H15:H18)=0,Import!$M17783,IF(H15=\"X\", 50, IF(H16=\"X\", 100, IF(H17=\"X\", 150, IF(H18=\"X\", 200, 0)))))","v":0},{"$f":"IF(COUNTA(I15:I18)=0,Import!$M17784,IF(I15=\"X\", 50, IF(I16=\"X\", 100, IF(I17=\"X\", 150, IF(I18=\"X\", 200, 0)))))","v":0},{"$f":"IF(COUNTA(J15:J18)=0,Import!$M17785,IF(J15=\"X\", 50, IF(J16=\"X\", 100, IF(J17=\"X\", 150, IF(J18=\"X\", 200, 0)))))","v":0},{"$f":"IF(COUNTA(K15:K18)=0,Import!$M17786,IF(K15=\"X\", 50, IF(K16=\"X\", 100, IF(K17=\"X\", 150, IF(K18=\"X\", 200, 0)))))","v":0},{"$f":"IF(COUNTA(L15:L18)=0,Import!$M17787,IF(L15=\"X\", 50, IF(L16=\"X\", 100, IF(L17=\"X\", 150, IF(L18=\"X\", 200, 0)))))","v":0},{"$f":"SUM(E19:L19)","v":0},{"$f":"IF(M19>1600, \"ERR\", \"OK\")","v":"OK"}]
[]
[null,"Comments (optionally, the insurer may provide comments in the box below to support its responses above):"]
[]
[]
[]
[]
[]
[]
[]
[]
[]
[]
[]
[]
[]
[]
[]
[]
[]
[null,null,null,null,"Yes"]
[null,null,null,null,"No"]

{"sheet":"Measurement","index":107,"n_rows":40,"n_cols":14,"rows_kept":40,"cut":false,"hidden":true,"merged":[[1,1,1,3],[20,1,20,7],[21,1,23,12],[4,1,4,12],[6,10,6,11],[12,1,12,2],[12,3,13,3],[12,4,12,12],[2,1,2,3]]}
[null,"RISK MEASUREMENT",null,null,null,null,null,null,null,null,null,null,{"$f":"HYPERLINK(\"#'Index'!A1\",\"Return to Index\")","v":"Return to Index"}]
[null,{"$f":"'Company Information'!C7","v":"Enter Company Name"}]
[null,{"$f":"'Form 1EBS'!C3","v":"2022-12-31"}]
[]
[null,"The insurer is to answer the following question.  If the answer to the question is \"No\" then the insurer does not have to complete the matrix/grid.  If the answer to the question is \"Yes\" then the insurer is to identify the stage of progression of each Operational Risk Area based upon the Dimension descriptor.  The insurer is then to input an “X” in the grid corresponding to the stage in the matrix table under the relevant Operational Risk Area."]
[]
[null,"Has your company taken steps to measure material risks arising from the Operational Risk Areas identified below? (Y/N) "]
[]
[null,"If \"Y\", identify the stage of each Operational Risk Area and input an \"X\" in the appropriate grid under each area."]
[]
[null,"Risk Measurement processes are:"]
[]
[null,"Progression",null,"Dimension","Operational Risk Areas"]
[null,"Stage","Scoring",null,"Fraud","Human Resources","Outsourcing","Distribution Channels","Business Processes","Business Continuity","Information Systems","Compliance","Total (Si)"]
[null,1,50,"“ad hoc”"]
[null,2,100,"Implemented but not standardized across the organization"]
[null,3,150,"Implemented, well documented policies and procedures that are understood by relevant staff, and standardized across the entire organization"]
[null,4,200,"In addition to Stage 3, processes are reviewed at least annually with the view to assessing effectiveness and introducing improvements"]
[null,null,null,null,{"$f":"IF(COUNTA(E15:E18)=0,Import!$M17788,IF(E15=\"X\", 50, IF(E16=\"X\", 100, IF(E17=\"X\", 150, IF(E18=\"X\", 200, 0)))))","v":0},{"$f":"IF(COUNTA(F15:F18)=0,Import!$M17789,IF(E15=\"X\", 50, IF(F16=\"X\", 100, IF(F17=\"X\", 150, IF(F18=\"X\", 200, 0)))))","v":0},{"$f":"IF(COUNTA(G15:G18)=0,Import!$M17790,IF(G15=\"X\", 50, IF(G16=\"X\", 100, IF(G17=\"X\", 150, IF(G18=\"X\", 200, 0)))))","v":0},{"$f":"IF(COUNTA(H15:H18)=0,Import!$M17791,IF(H15=\"X\", 50, IF(H16=\"X\", 100, IF(H17=\"X\", 150, IF(H18=\"X\", 200, 0)))))","v":0},{"$f":"IF(COUNTA(I15:I18)=0,Import!$M17792,IF(I15=\"X\", 50, IF(I16=\"X\", 100, IF(I17=\"X\", 150, IF(I18=\"X\", 200, 0)))))","v":0},{"$f":"IF(COUNTA(J15:J18)=0,Import!$M17793,IF(J15=\"X\", 50, IF(J16=\"X\", 100, IF(J17=\"X\", 150, IF(J18=\"X\", 200, 0)))))","v":0},{"$f":"IF(COUNTA(K15:K18)=0,Import!$M17794,IF(K15=\"X\", 50, IF(K16=\"X\", 100, IF(K17=\"X\", 150, IF(K18=\"X\", 200, 0)))))","v":0},{"$f":"IF(COUNTA(L15:L18)=0,Import!$M17795,IF(L15=\"X\", 50, IF(L16=\"X\", 100, IF(L17=\"X\", 150, IF(L18=\"X\", 200, 0)))))","v":0},{"$f":"SUM(E19:L19)","v":0},{"$f":"IF(M19>1600, \"ERR\", \"OK\")","v":"OK"}]
[]
[null,"Comments (optionally, the insurer may provide comments in the box below to support its responses above):"]
[]
[]
[]
[]
[]
[]
[]
[]
[]
[]
[]
[]
[]
[]
[]
[]
[]
[null,null,null,null,"Yes"]
[null,null,null,null,"No"]

{"sheet":"Response","index":108,"n_rows":40,"n_cols":14,"rows_kept":40,"cut":false,"hidden":true,"merged":[[0,1,0,3],[20,1,20,7],[21,1,21,12],[4,1,4,12],[6,11,6,12],[12,1,12,2],[12,3,13,3],[12,4,12,12],[2,1,2,3]]}
[null,"RISK RESPONSE",null,null,null,null,null,null,null,null,null,null,{"$f":"HYPERLINK(\"#'Index'!A1\",\"Return to Index\")","v":"Return to Index"}]
[null,{"$f":"'Company Information'!C7","v":"Enter Company Name"}]
[null,{"$f":"'Form 1EBS'!C3","v":"2022-12-31"}]
[]
[null,"The insurer is to answer the following question.  If the answer to the question is \"No\" then the insurer does not have to complete the matrix/grid.  If the answer to the question is \"Yes\" then the insurer is to identify the stage of progression of each Operational Risk Area based upon the Dimension descriptor.  The insurer is then to input an “X” in the grid corresponding to the stage in the matrix table under the relevant Operational Risk Area."]
[]
[null,"Has your company taken steps to control and/or mitigate material risks arising from the Operational Risk Areas identified below? (Y/N)"]
[]
[null,"If \"Y\", identify the stage of each Operational Risk Area and input an \"X\" in the appropriate grid under each area."]
[]
[null,"Risk Response processes are:"]
[]
[null,"Progression",null,"Dimension","Operational Risk Areas"]
[null,"Stage","Scoring",null,"Fraud","Human Resources","Outsourcing","Distribution Channels","Business Processes","Business Continuity","Information Systems","Compliance","Total (Si)"]
[null,1,50,"“ad hoc”"]
[null,2,100,"Implemented but not standardized across the organization"]
[null,3,150,"Implemented, well documented policies and procedures that are understood by relevant staff, and standardized across the entire organization"]
[null,4,200,"In addition to Stage 3, processes are reviewed at least annually with the view to assessing effectiveness and introducing improvements"]
[null,null,null,null,{"$f":"IF(COUNTA(E15:E18)=0,Import!$M17796,IF(E15=\"X\", 50, IF(E16=\"X\", 100, IF(E17=\"X\", 150, IF(E18=\"X\", 200, 0)))))","v":0},{"$f":"IF(COUNTA(F15:F18)=0,Import!$M17797,IF(F15=\"X\", 50, IF(F16=\"X\", 100, IF(F17=\"X\", 150, IF(F18=\"X\", 200, 0)))))","v":0},{"$f":"IF(COUNTA(G15:G18)=0,Import!$M17798,IF(G15=\"X\", 50, IF(G16=\"X\", 100, IF(G17=\"X\", 150, IF(G18=\"X\", 200, 0)))))","v":0},{"$f":"IF(COUNTA(H15:H18)=0,Import!$M17799,IF(H15=\"X\", 50, IF(H16=\"X\", 100, IF(H17=\"X\", 150, IF(H18=\"X\", 200, 0)))))","v":0},{"$f":"IF(COUNTA(I15:I18)=0,Import!$M17800,IF(I15=\"X\", 50, IF(I16=\"X\", 100, IF(I17=\"X\", 150, IF(I18=\"X\", 200, 0)))))","v":0},{"$f":"IF(COUNTA(J15:J18)=0,Import!$M17801,IF(J15=\"X\", 50, IF(J16=\"X\", 100, IF(J17=\"X\", 150, IF(J18=\"X\", 200, 0)))))","v":0},{"$f":"IF(COUNTA(K15:K18)=0,Import!$M17802,IF(K15=\"X\", 50, IF(K16=\"X\", 100, IF(K17=\"X\", 150, IF(K18=\"X\", 200, 0)))))","v":0},{"$f":"IF(COUNTA(L15:L18)=0,Import!$M17803,IF(L15=\"X\", 50, IF(L16=\"X\", 100, IF(L17=\"X\", 150, IF(L18=\"X\", 200, 0)))))","v":0},{"$f":"SUM(E19:L19)","v":0},{"$f":"IF(M19>1600, \"ERR\", \"OK\")","v":"OK"}]
[]
[null,"Comments (optionally, the insurer may provide comments in the box below to support its responses above):"]
[]
[]
[]
[]
[]
[]
[]
[]
[]
[]
[]
[]
[]
[]
[]
[]
[]
[null,null,null,null,"Yes"]
[null,null,null,null,"No"]

{"sheet":"Monitoring & Reporting","index":109,"n_rows":38,"n_cols":14,"rows_kept":38,"cut":false,"hidden":true,"merged":[[1,1,1,3],[0,1,0,3],[20,1,20,7],[21,1,21,12],[4,1,4,12],[6,10,6,11],[12,1,12,2],[12,3,13,3],[12,4,12,12],[2,1,2,3]]}
[null,"RISK MONITORING & REPORTING",null,null,null,null,null,null,null,null,null,null,{"$f":"HYPERLINK(\"#'Index'!A1\",\"Return to Index\")","v":"Return to Index"}]
[null,{"$f":"'Company Information'!C7","v":"Enter Company Name"}]
[null,{"$f":"'Form 1EBS'!C3","v":"2022-12-31"}]
[]
[null,"The insurer is to answer the following question.  If the answer to the question is \"No\" then the insurer does not have to complete the matrix/grid.  If the answer to the question is \"Yes\" then the insurer is to identify the stage of progression of each Operational Risk Area based upon the Dimension descriptor.  The insurer is then to input an “X” in the grid corresponding to the stage in the matrix table under the relevant Operational Risk Area."]
[]
[null,"Has your company taken steps to monitor and report material risks arising from the Operational Risk Areas identified below? (Y/N)"]
[]
[null,"If \"Y\", identify the stage of each Operational Risk Area and input an \"X\" in the appropriate grid under each area."]
[]
[null,"Risk Monitoring & Reporting processes are:"]
[]
[null,"Progression",null,"Dimension","Operational Risk Areas"]
[null,"Stage","Scoring",null,"Fraud","Human Resources","Outsourcing","Distribution Channels","Business Processes","Business Continuity","Information Systems","Compliance","Total (Si)"]
[null,1,50,"“ad hoc”"]
[null,2,100,"Implemented but not standardized across the organization"]
[null,3,150,"Implemented, well documented policies and procedures that are understood by relevant staff, and standardized across the entire organization"]
[null,4,200,"In addition to Stage 3, processes are reviewed at least annually with the view to assessing effectiveness and introducing improvements"]
[null,null,null,null,{"$f":"IF(COUNTA(E15:E18)=0,Import!$M17804,IF(E15=\"X\", 50, IF(E16=\"X\", 100, IF(E17=\"X\", 150, IF(E18=\"X\", 200, 0)))))","v":0},{"$f":"IF(COUNTA(F15:F18)=0,Import!$M17805,IF(F15=\"X\", 50, IF(F16=\"X\", 100, IF(F17=\"X\", 150, IF(F18=\"X\", 200, 0)))))","v":0},{"$f":"IF(COUNTA(G15:G18)=0,Import!$M17806,IF(G15=\"X\", 50, IF(G16=\"X\", 100, IF(G17=\"X\", 150, IF(G18=\"X\", 200, 0)))))","v":0},{"$f":"IF(COUNTA(H15:H18)=0,Import!$M17807,IF(H15=\"X\", 50, IF(H16=\"X\", 100, IF(H17=\"X\", 150, IF(H18=\"X\", 200, 0)))))","v":0},{"$f":"IF(COUNTA(I15:I18)=0,Import!$M17808,IF(I15=\"X\", 50, IF(I16=\"X\", 100, IF(I17=\"X\", 150, IF(I18=\"X\", 200, 0)))))","v":0},{"$f":"IF(COUNTA(J15:J18)=0,Import!$M17809,IF(J15=\"X\", 50, IF(J16=\"X\", 100, IF(J17=\"X\", 150, IF(J18=\"X\", 200, 0)))))","v":0},{"$f":"IF(COUNTA(K15:K18)=0,Import!$M17810,IF(K15=\"X\", 50, IF(K16=\"X\", 100, IF(K17=\"X\", 150, IF(K18=\"X\", 200, 0)))))","v":0},{"$f":"IF(COUNTA(L15:L18)=0,Import!$M17811,IF(L15=\"X\", 50, IF(L16=\"X\", 100, IF(L17=\"X\", 150, IF(L18=\"X\", 200, 0)))))","v":0},{"$f":"SUM(E19:L19)","v":0},{"$f":"IF(M19>1600, \"ERR\", \"OK\")","v":"OK"}]
[]
[null,"Comments (optionally, the insurer may provide comments in the box below to support its responses above):"]
[]
[]
[]
[]
[]
[]
[]
[]
[]
[]
[]
[]
[]
[]
[]
[null,null,null,null,"Yes"]
[null,null,null,null,"No"]

{"sheet":"Op Risk (old)","index":110,"n_rows":46,"n_cols":9,"rows_kept":46,"cut":false,"hidden":true,"merged":[[1,1,1,7],[0,1,0,5],[45,3,45,7],[32,3,32,7],[34,3,34,7],[27,3,27,7],[29,3,29,7],[36,3,36,7],[39,3,39,7]]}
[null,"OPERATIONAL RISK CHARGE CALCULATION INSTRUCTIONS",null,null,null,null,null,{"$f":"HYPERLINK(\"#'Index'!A1\",\"Return to Index\")","v":"Return to Index"}]
[null,"Subject to the Authority applying a re-assessment upon onsite inspection, the “Total Operational Risk Capital Charge” below will be applied to the insurer’s BSCR (After Covariance Adjustment) sub-total in the BSCR model for purposes of arriving at its Enhanced Capital Requirement for the year-end filing."]
[]
[null,null,"Overall CIRA Score",{"$f":"'Corp Gov'!D17+'Risk Man'!D18+Identification!M19+Measurement!M19+'Monitoring & Reporting'!M19+Response!M19","v":0}]
[]
[null,null,"CIRA Scoring Grid"]
[]
[null,null,"OVERALL SCORE","APPLICABLE OPERATIONAL RISK CHARGE % OF \"BSCR AFTER COVARIANCE ADJUSTMENT\""]
[]
[null,null,{"$f":"IF('Company Information'!F11=\"IIGB\",\"<=800\",\"<=5,200\")","v":"<=800"},0.1]
[null,null,{"$f":"IF('Company Information'!F11=\"IIGB\",\"> 800 <= 1,200\",\"> 5,200 <= 6,000\")","v":"> 800 <= 1,200"},0.09]
[null,null,{"$f":"IF('Company Information'!F11=\"IIGB\",\"> 1,200 <= 1,400\",\"> 6,000 <= 6,650\")","v":"> 1,200 <= 1,400"},0.08]
[null,null,{"$f":"IF('Company Information'!F11=\"IIGB\",\"> 1,400 <= 1,600\",\"> 6,650 <= 7,250\")","v":"> 1,400 <= 1,600"},7.0000000000000007E-2]
[null,null,{"$f":"IF('Company Information'!F11=\"IIGB\",\"> 1,600 <= 1,800\",\"> 7,250 <= 7,650\")","v":"> 1,600 <= 1,800"},0.06]
[null,null,{"$f":"IF('Company Information'!F11=\"IIGB\",\"> 1,800 <= 2,000\",\"> 7,650 <= 7,850\")","v":"> 1,800 <= 2,000"},0.05]
[null,null,{"$f":"IF('Company Information'!F11=\"IIGB\",\"> 2,000 <= 2,200\",\"> 7,850 <= 8,050\")","v":"> 2,000 <= 2,200"},0.04]
[null,null,{"$f":"IF('Company Information'!F11=\"IIGB\",\"> 2,200 <= 2,400\",\"> 8,050 <= 8,250\")","v":"> 2,200 <= 2,400"},0.03]
[null,null,{"$f":"IF('Company Information'!F11=\"IIGB\",\"> 2,400 <= 2,600\",\"> 8,250 <= 8,450\")","v":"> 2,400 <= 2,600"},0.02]
[null,null,{"$f":"IF('Company Information'!F11=\"IIGB\",\">2,600\",\"> 8,450\")","v":">2,600"},0.01]
[]
[null,null,"BSCR After Covariance Adjustment:",{"$f":"Summary!G72","v":0}]
[]
[null,null,"Operational Risk Charge %:",{"$f":"IF('Company Information'!F11=\"IIGB\", F23, F24)","v":0.1},null,{"$f":"IF(D4<=800,0.1, IF(D4<=1200, 0.09, IF(D4<=1400, 0.08, IF(D4<=1600, 0.07, IF(D4<=1800, 0.06, IF(D4<=2000, 0.05, IF(D4<=2200, 0.04, IF(D4<=2400, 0.03, IF(D4<=2400, 0.03,IF(D4<=2600,0.02,IF(D4>2600,0.01,\"N/A\")))))))))))","v":0.1}]
[null,null,null,null,null,{"$f":"IF(D4<=5200,0.1, IF(D4<=6000, 0.09, IF(D4<=6650, 0.08, IF(D4<=7250, 0.07, IF(D4<=7650, 0.06, IF(D4<=7850, 0.05, IF(D4<=8050, 0.04, IF(D4<=8250, 0.03, IF(D4<=8250, 0.03,IF(D4<=8450,0.02,IF(D4>8450,0.01,\"N/A\")))))))))))","v":0.1}]
[null,null,"Total Operational Risk Capital Charge:",{"$f":"D21*D23","v":0}]
[]
[]
[null,null,"Signatory:"]
[]
[null,null,"Print Name:"]
[null,null,null,"Resident Director"]
[]
[null,null,"Date:",null,null,null,null,null,{"$f":"IF(D33=\"\",\"\",TEXT(D33,\"yyyy-mm-dd\"))","v":""}]
[]
[null,null,"Signatory:"]
[]
[null,null,"Print Name:"]
[null,null,null,"Director"]
[]
[null,null,"Date:",null,null,null,null,null,{"$f":"IF(D40=\"\",\"\",TEXT(D40,\"yyyy-mm-dd\"))","v":""}]
[]
[null,null,"Insurer Name:",{"$f":"'Company Information'!C7","v":"Enter Company Name"}]
[]
[null,null,"Year-end:",{"$f":"'Form 1EBS'!C3","v":"2022-12-31"}]
[]
[null,null,"Insurer Registration No.",{"$f":"CONFIGURATION!B1","v":0}]

{"sheet":"Op Risk","index":111,"n_rows":46,"n_cols":9,"rows_kept":46,"cut":false,"hidden":false,"merged":[[36,3,36,7],[39,3,39,7],[45,3,45,7],[0,1,0,5],[1,1,1,7],[27,3,27,7],[29,3,29,7],[32,3,32,7],[34,3,34,7]]}
[null,"OPERATIONAL RISK CHARGE CALCULATION INSTRUCTIONS",null,null,null,null,null,{"$f":"HYPERLINK(\"#'Index'!A1\",\"Return to Index\")","v":"Return to Index"}]
[null,"Subject to the Authority applying a re-assessment upon onsite inspection, the “Total Operational Risk Capital Charge” below will be applied to the insurer’s BSCR (After Covariance Adjustment) sub-total in the BSCR model for purposes of arriving at its Enhanced Capital Requirement for the year-end filing."]
[]
[null,null,"Overall CIRA Score",{"$f":"'Corp Gov'!D17+'Risk Man'!D18+Identification!M19+Measurement!M19+'Monitoring & Reporting'!M19+Response!M19","v":0}]
[]
[null,null,"CIRA Scoring Grid"]
[]
[null,null,"OVERALL SCORE","APPLICABLE OPERATIONAL RISK CHARGE % OF \"BSCR AFTER COVARIANCE ADJUSTMENT\""]
[]
[null,null,{"$f":"IF('Company Information'!F11=\"IIGB\",\"<=800\",\"<=4,000\")","v":"<=800"},0.2]
[null,null,{"$f":"IF('Company Information'!F11=\"IIGB\",\"> 800 <= 1,200\",\"> 4,000 <= 5,200\")","v":"> 800 <= 1,200"},0.18]
[null,null,{"$f":"IF('Company Information'!F11=\"IIGB\",\"> 1,200 <= 1,400\",\"> 5,200 <= 6,000\")","v":"> 1,200 <= 1,400"},0.15]
[null,null,{"$f":"IF('Company Information'!F11=\"IIGB\",\"> 1,400 <= 1,600\",\"> 6,000 <= 6,650\")","v":"> 1,400 <= 1,600"},0.12]
[null,null,{"$f":"IF('Company Information'!F11=\"IIGB\",\"> 1,600 <= 1,800\",\"> 6,650 <= 7,250\")","v":"> 1,600 <= 1,800"},0.09]
[null,null,{"$f":"IF('Company Information'!F11=\"IIGB\",\"> 1,800 <= 2,000\",\"> 7,250 <= 7,650\")","v":"> 1,800 <= 2,000"},7.0000000000000007E-2]
[null,null,{"$f":"IF('Company Information'!F11=\"IIGB\",\"> 2,000 <= 2,200\",\"> 7,650 <= 7,850\")","v":"> 2,000 <= 2,200"},0.05]
[null,null,{"$f":"IF('Company Information'!F11=\"IIGB\",\"> 2,200 <= 2,400\",\"> 7,850 <= 8,050\")","v":"> 2,200 <= 2,400"},0.03]
[null,null,{"$f":"IF('Company Information'!F11=\"IIGB\",\"> 2,400 <= 2,600\",\"> 8,050 <= 8,250\")","v":"> 2,400 <= 2,600"},0.02]
[null,null,{"$f":"IF('Company Information'!F11=\"IIGB\",\">2,600\",\"> 8,250\")","v":">2,600"},0.01]
[]
[null,null,"BSCR After Covariance Adjustment:",{"$f":"Summary!N72","v":0}]
[]
[null,null,"Operational Risk Charge %:",{"$f":"IF('Company Information'!F11=\"IIGB\",F23,F24)","v":0.2},null,{"$f":"IF(D4<=800,0.2, IF(D4<=1200, 0.18, IF(D4<=1400, 0.15, IF(D4<=1600, 0.12, IF(D4<=1800, 0.09, IF(D4<=2000, 0.07, IF(D4<=2200, 0.05, IF(D4<=2400, 0.03, IF(D4<=2600,0.02,IF(D4>2600,0.01,\"N/A\"))))))))))","v":0.2}]
[null,null,null,null,null,{"$f":"IF(D4<=4000,0.2,IF(D4<=5200,0.18,IF(D4<=6000,0.15,IF(D4<=6650,0.12,IF(D4<=7250,0.09,IF(D4<=7650,0.07,IF(D4<=7850,0.05,IF(D4<=8050,0.03,IF(D4<=8250,0.02,IF(D4>8250,0.01,\"N/A\"))))))))))","v":0.2}]
[null,null,"Total Operational Risk Capital Charge:",{"$f":"D21*D23","v":0}]
[]
[]
[null,null,"Signatory:"]
[]
[null,null,"Print Name:"]
[null,null,null,"Resident Director"]
[]
[null,null,"Date:",null,null,null,null,null,{"$f":"IF(D33=\"\",\"\",TEXT(D33,\"yyyy-mm-dd\"))","v":""}]
[]
[null,null,"Signatory:"]
[]
[null,null,"Print Name:"]
[null,null,null,"Director"]
[]
[null,null,"Date:",null,null,null,null,null,{"$f":"IF(D40=\"\",\"\",TEXT(D40,\"yyyy-mm-dd\"))","v":""}]
[]
[null,null,"Insurer Name:",{"$f":"'Company Information'!C7","v":"Enter Company Name"}]
[]
[null,null,"Year-end:",{"$f":"'Form 1SFS (Consolidated)'!$C$4","v":"2022-12-31"}]
[]
[null,null,"Insurer Registration No.",{"$f":"CONFIGURATION!B1","v":0}]

{"sheet":"Summary","index":112,"n_rows":164,"n_cols":43,"rows_kept":164,"cut":false,"hidden":false,"merged":[[69,40,71,41],[1,0,1,4],[77,2,77,4],[69,38,69,39],[69,36,69,37],[69,34,69,35],[6,1,6,17],[52,10,52,11],[52,12,52,13],[48,1,48,18]]}
["SUMMARY"]
[{"$f":"'Company Information'!C7","v":"Enter Company Name"},null,null,null,null,null,null,null,null,null,null,null,null,null,null,null,null,null,null,null,null,null,null,null,null,null,null,null,null,null,null,null,null,null,"Utilize Automatic Label Adjustment:",null,null,null,"No"]
["Bermuda Solvency Capital Requirement (BSCR)"]
[{"$f":"\"For the Year Ending \"","v":"For the Year Ending "},null,null,{"$f":"TEXT('Company Information'!C3,\"DD mmmm yyyy\")","v":"31 December 2022"}]
[{"$f":"\"(\"&IF(CONFIGURATION!$B$12>1,MID(CONFIGURATION!$B$12,2,LEN(CONFIGURATION!$B$12)),\"\")&\")\"","v":"(000)"}]
[]
[null,"UNCONSOLIDATED BASIS"]
[]
[null,"General Business Minimum Solvency Margin",null,null,null,null,null,null,null,null,null,null,null,"Liquidity Ratio"]
[]
[null,"Unconsolidated Capital & Surplus (Form 8SFS, Line 4)",null,null,null,null,null,null,null,null,null,{"$f":"'Form 1SFS (Consolidated)'!$M$149","v":0},"a)","Cash (Form 1SFS, Line 1)",null,null,{"$f":"'Form 1SFS (Consolidated)'!$M$12","v":0}]
[null,null,null,null,{"$f":"'Information Sheet'!$H$16","v":"United States Dollars"},null,null,null,null,null,"USD/BDA",{"$f":"'Information Sheet'!$H$16","v":"United States Dollars"},"b)","Quoted Investments (Form 1SFS, Line 2(f))",null,null,{"$f":"'Form 1SFS (Consolidated)'!$M$29","v":0}]
[null,"Minimum Margin of Solvency Test - must be greater of:",null,null,null,null,null,null,null,null,null,null,"c)","Unquoted Bonds & Debentures (Form 1SFS, Line 3(b))",null,null,{"$f":"'Form 1SFS (Consolidated)'!$M$35","v":0}]
[null,"a)","Base MSM:",null,null,null,null,null,null,null,{"$f":"IF(CONFIGURATION!$B$12=1000,(IF('Company Information'!$F$11=\"Class 4\",100000,1000)),IF('Company Information'!$F$11=\"Class 4\",100000000,1000000))","v":1000},{"$f":"K14*IFERROR((1/'Information Sheet'!$H$18),1)","v":1000},"d)","Real Estate 1st liens (Form 1, Line 5(a))",null,null,{"$f":"'Form 1SFS (Consolidated)'!$M$51","v":0}]
[null,null,null,null,null,null,null,null,null,null,null,null,"e)","Investment Income Due & Accrued (Form 1SFS, Line 9)",null,null,{"$f":"'Form 1SFS (Consolidated)'!$M$64","v":0}]
[null,"b)","NPW (Form 2SFS Column A, Line 3)",null,{"$f":"'Form 2SFS (Consolidated)'!M18","v":0},null,null,null,null,null,{"$f":"E16*IFERROR(('Information Sheet'!$H$18),1)","v":0},null,"f)","Receivables from Clearing Brokers (Form 1, Line 10)",null,null,{"$f":"'Form 1SFS (Consolidated)'!$M$66","v":0}]
[null,null,"Premiums Ceded",null,{"$f":"'Form 2SFS (Consolidated)'!M16","v":0},null,null,null,null,null,{"$f":"E17*IFERROR(('Information Sheet'!$H$18),1)","v":0},null,"g)","Other Receivables for Digital Asset Business (Form 1, Line 11(c))",null,null,{"$f":"'Form 1SFS (Consolidated)'!$M$71","v":0}]
[null,null,{"$f":"IF('Company Information'!F11=\"Class 4\",\"\",\"20% of 1st $6M NPW\")","v":"20% of 1st $6M NPW"},null,null,null,null,null,null,null,{"$f":"IF(CONFIGURATION!$B$12=1000,IF('Company Information'!$F$11=\"Class 4\",\"\",MIN(K16*20%,1200)),IF('Company Information'!$F$11=\"Class 4\",\"\",MIN(K16*20%,1200000)))","v":0},null,"h)","Digital Assets Held in Custody for Clients (Form 1, Line 12)",null,null,{"$f":"'Form 1SFS (Consolidated)'!$M$73","v":0}]
[null,{"$f":"IF('Company Information'!$F$11=\"Class 4\",50,15)","v":15},{"$f":"IF('Company Information'!F11=\"Class 4\",\"% of NPW\",\"% of any above NPW above $6M\")","v":"% of any above NPW above $6M"},null,null,null,null,null,null,null,{"$f":"IF(CONFIGURATION!$B$12=1000,(IF('Company Information'!$F$11=\"Class 4\",MAX(((K16+K17)*75%*50%),K16*B19/100),IF(+(K16-6000)*B19/100>0,+(K16-6000)*B19/100,0))),IF(B19=\"\",0,IF('Company Information'!$F$11=\"Class 4\",MAX(((K16+K17)*75%*50%),K16*B19/100),IF(+(K16-6000000)*B19/100>0,+(K16-6000000)*B19/100,0))))","v":0},null,null,"Approved Assets (If applicable)"]
[null,null,"Net Premium Written Requirement",null,null,null,null,null,null,null,{"$f":"SUM(K18:K19)","v":0},{"$f":"K20*IFERROR((1/'Information Sheet'!$H$18),1)","v":0},null,"Total Relevant Assets",null,null,null,{"$f":"SUM(Q11:Q19)","v":0}]
[]
[null,"c)","Net Loss Provision (1SFS Line 17(d))",null,{"$f":"'Form 1SFS (Consolidated)'!M105","v":0},null,null,null,null,null,null,null,"Total Liabilities (Form 1SFS, Line 39)",null,null,null,{"$f":"'Form 1SFS (Consolidated)'!$M$145","v":0}]
[null,null,"Other Ins. Reserves (1SFS Line 18)",null,{"$f":"'Form 1SFS (Consolidated)'!M107","v":0},null,null,null,null,null,null,null,"less:"]
[null,null,"Total Provisions",null,{"$f":"SUM(E22:E23)","v":0},null,null,null,null,null,null,null,"a)","Income Tax Payable (Form 1SFS, Line 31)",null,null,{"$f":"-'Form 1SFS (Consolidated)'!M119","v":0}]
[null,0.15,"Net Loss Reserve Requirement",null,null,null,null,null,null,null,null,{"$f":"E24*B25","v":0},"b)","LOC, guarantees (Form 1SFS, Line 37(d))",null,null,{"$f":"-'Form 1SFS (Consolidated)'!$M$141","v":0}]
[null,null,null,null,null,null,null,null,null,null,null,null,null,"Relevant Liabilities",null,null,null,{"$f":"SUM(Q22:Q25)","v":0}]
[null,"d)","MSM Floor = 25% of ECR ",null,null,null,null,null,null,null,null,{"$f":"N86*25%","v":0}]
[null,null,null,null,null,null,null,null,null,null,null,null,null,"75% of Relevant liabilities",null,null,null,{"$f":"R26*75%","v":0}]
[null,"e)","Minimum Margin of Solvency Adjustment (if Applicable)"]
[]
[null,"Minimum Margin of Solvency Requirement",null,null,null,null,null,null,null,null,null,{"$f":"IF(L29=\"\",MAX(L14,L20,L25,L27),L29)","v":1000}]
[]
[null,"Minimum Margin of Solvency Met",null,null,null,null,null,null,null,null,null,{"$f":"IF(L11>=L31,\"YES\",\"NO\")","v":"NO"},null,"Liquidity Test Met",null,null,null,{"$f":"IF(R20>=R28,\"YES\",\"NO\")","v":"YES"}]
[]
[]
[null,"Statutory Capital & Surplus Reduction",null,null,null,null,null,null,null,null,null,null,"Statutory Capital Reduction"]
[]
[null,"31B Statutory Capital & Surplus Reduction (Dividend Payment Maximum 25%)",null,null,null,null,null,null,null,null,null,null,null,"31C Statutory Capital Reduction (Maximum Reduction of 15%)"]
[]
[null,{"$f":"\"Unconsolidated Statutory Capital & Surplus for \"&YEAR('Form 1SFS (Consolidated)'!$G$9)","v":"Unconsolidated Statutory Capital & Surplus for 2021"},null,null,null,null,null,null,null,null,null,{"$f":"'Form 8SFS (Consolidated)'!$Q$60","v":0},null,{"$f":"\"Unconsolidated Statutory Capital for \"&YEAR('Form 1SFS (Consolidated)'!$E9)","v":"Unconsolidated Statutory Capital for 2022"},null,null,null,{"$f":"'Form 8SFS (Consolidated)'!$O$38","v":0}]
[null,null,null,null,null,null,null,null,null,null,null,null,null,{"$f":"\"Unconsolidated Statutory Capital for \"&YEAR('Form 1SFS (Consolidated)'!$G$9)","v":"Unconsolidated Statutory Capital for 2021"},null,null,null,{"$f":"'Form 8SFS (Consolidated)'!$Q$38","v":0}]
[null,"Maximum Dividend",null,null,null,null,null,null,null,null,{"$f":"25%*L40","v":0}]
[null,{"$f":"\"Dividend Payment in \"&YEAR('Form 1SFS (Consolidated)'!$E$9)","v":"Dividend Payment in 2022"},null,null,null,null,null,null,null,null,{"$f":"-'Form 8SFS (Consolidated)'!$O$46","v":0},null,null,{"$f":"\"Statutory Capital Change from \"&YEAR('Form 1SFS (Consolidated)'!$G9)&\" to \"&YEAR('Form 1SFS (Consolidated)'!$E9)","v":"Statutory Capital Change from 2021 to 2022"},null,null,{"$f":"R40-R41","v":0}]
[null,null,null,null,null,null,null,null,null,null,null,null,null,"Maximum Reduction",null,null,{"$f":"R41*-15%","v":0}]
[]
[null,"Insurer met Dividend Payment Requirement",null,null,null,null,null,null,null,null,null,{"$f":"IF(K42>=K43,\"YES\",\"NO\")","v":"YES"},null,"Insurer met Capital Reduction Requirement",null,null,null,{"$f":"IF(Q44<Q43,\"YES\",\"NO\")","v":"NO"}]
[]
[]
[null,"CONSOLIDATED BASIS"]
[]
[null,"REQUIRED CAPITAL AND SURPLUS",null,null,null,null,null,null,null,null,null,null,null,null,null,null,null,null,null,null,null,null,"Data for Pie Chart",null,null,null,null,null,"Cum. %","Mid.","Risk","Left","Top",null,"4 Right",null,"3 Right - 1 Down",null,"3 Right",null,"Custom",null,"Risk"]
[]
[null,null,null,null,null,null,null,null,null,null,"Net Capital Charge",null,"Gross Capital Charge"]
[null,"Market Risk",null,null,null,null,null,null,null,null,null,{"$f":"SQRT(MMULT(TRANSPOSE(K55:K60),MMULT('Correlation Matrix'!B7:G12,K55:K60)))","v":0},null,{"$f":"SQRT(MMULT(TRANSPOSE(M55:M60),MMULT('Correlation Matrix'!B7:G12,M55:M60)))","v":0}]
[null,"Cfi","Fixed Income Investment Risk",null,null,null,{"$f":"ROUND('Fixed Income Investments (old)'!F99,$Q$164)","v":0},null,null,null,{"$f":"ROUND('Fixed Income Investments'!I136,$Q$164)","v":0},null,{"$f":"ROUND('Fixed Income Investments'!I136,$Q$164)","v":0},null,null,null,null,null,null,{"$f":"C55","v":"Fixed Income Investment Risk"},null,null,null,{"$f":"G55","v":0},{"$f":"IF($L$72=0,1/9,X55/$X$66)","v":0.1111111111111111},{"$f":"M55","v":0},{"$f":"IF($N$72=0,1/9,Z55/$Z$66)","v":0.1111111111111111},null,{"$f":"(SUM(AA$55:AA55)/AA$66)","v":9.9999999999999964E-2},null,"FI",{"$f":"IF(AO55=\"\",IF(Test_Statistic<$AJ$72,AI55,IF(Test_Statistic<$AL$72,AK55,AM55)),AO55)","v":280},{"$f":"IF(AP55=\"\",IF(Test_Statistic<$AJ$72,AJ55,IF(Test_Statistic<$AL$72,AL55,AN55)),AP55)","v":60},null,{"$f":"IF(AC61>1,300,IF(AC61>0.6,260,240))","v":260},{"$f":"IF(AC63>1,50,IF(AC61>1,20,IF(AC61>0.6,25,15)))","v":25},{"$f":"IF(Test_Statistic_2<1,300,300)","v":300},60,280,60,null,null,"FI"]
[null,"Ceq","Equity Investment Risk",null,null,null,{"$f":"ROUND('Equity Investments (old)'!F43,$Q$164)","v":0},null,null,null,{"$f":"ROUND('Equity Investments'!R56,$Q$164)","v":0},null,{"$f":"ROUND('Equity Investments'!P56,$Q$164)","v":0},null,null,null,null,null,null,{"$f":"C56","v":"Equity Investment Risk"},null,null,null,0,0.1111111111111111,0,0.1111111111111111,null,{"$f":"(SUM(AA$55:AA56)/AA$66)","v":0.19999999999999993},null,"EI",{"$f":"IF(AO56=\"\",IF(Test_Statistic<$AJ$72,AI56,IF(Test_Statistic<$AL$72,AK56,AM56)),AO56)","v":280},{"$f":"IF(AP56=\"\",IF(Test_Statistic<$AJ$72,AJ56,IF(Test_Statistic<$AL$72,AL56,AN56)),AP56)","v":140},null,{"$f":"IF(AC61>0.6,300,300)","v":300},{"$f":"IF(AC63>1,90,IF(AC61>1,60,IF(AC61>0.6,90,60)))","v":90},300,120,280,140,null,null,"EI"]
[null,"Cint","Interest Rate / Liquidity Risk",null,"Duration-Based Approach",null,{"$f":"ROUND('Interest Rate-Liquidity Risk'!G14,$Q$164)","v":0},null,null,null,{"$f":"ROUND(IF(E57=\"Duration-Based Approach\",'Interest Rate-Liquidity Risk'!G14,'Interest Rate-Liquidity (Rev.)'!E117),$Q$164)","v":0},null,{"$f":"ROUND(IF(E57=\"Duration-Based Approach\",'Interest Rate-Liquidity Risk'!G14,'Interest Rate-Liquidity (Rev.)'!D117),$Q$164)","v":0},null,null,null,null,null,null,{"$f":"C57","v":"Interest Rate / Liquidity Risk"},null,null,null,0,0.1111111111111111,0,0.1111111111111111,null,{"$f":"(SUM(AA$55:AA57)/AA$66)","v":0.29999999999999993},null,"IR",{"$f":"IF(AO57=\"\",IF(Test_Statistic<$AJ$72,AI57,IF(Test_Statistic<$AL$72,AK57,AM57)),AO57)","v":180},250,null,{"$f":"IF(AC61>0.6,300,300)","v":300},{"$f":"IF(AC63>1,140,IF(AC61>1,120,IF(AC61>0.6,150,100)))","v":150},{"$f":"IF(Test_Statistic_2<0.95,280,260)","v":280},{"$f":"IF(Test_Statistic_2<0.95,170,200)","v":170},180,250,null,null,"IR"]
[null,"CCur","Currency Risk",null,null,null,{"$f":"+'Currency Risk (old)'!I28","v":0},null,null,null,{"$f":"'Currency Risk'!Y39","v":0},null,{"$f":"'Currency Risk'!X39","v":0},null,null,null,null,null,null,"Currency Risk",null,null,null,0,0.1111111111111111,0,0.1111111111111111,null,{"$f":"(SUM(AA$55:AA58)/AA$66)","v":0.39999999999999986}]
[null,"Cda","Digital Asset Risk",null,null,null,{"$f":"ROUND('Digital Assets'!I13,$P$150)","v":0},null,null,null,{"$f":"ROUND('Digital Assets'!I13,$P$150)","v":0},null,{"$f":"ROUND('Digital Assets'!I13,$P$150)","v":0},null,null,null,null,null,null,"Digital Asset Business",null,null,null,0,0.1111111111111111,0,0.1111111111111111,null,{"$f":"(SUM(AA$55:AA59)/AA$66)","v":0.49999999999999989}]
[null,"Cconc","Concentration Risk",null,null,null,{"$f":"+'Concentration Risk (old)'!F111","v":0},null,null,null,{"$f":"'Concentration Risk'!F110","v":0},null,{"$f":"'Concentration Risk'!F110","v":0},null,null,null,null,null,null,"Concentration Risk",null,null,null,0,0.1111111111111111,0,0.1111111111111111,null,{"$f":"(SUM(AA$55:AA60)/AA$66)","v":0.59999999999999987}]
[null,null,null,null,null,null,null,null,null,null,null,null,null,null,null,null,null,null,null,{"$f":"C63","v":"Credit Risk"},null,null,null,{"$f":"G63","v":0},0.1111111111111111,{"$f":"M63","v":0},0.1111111111111111,null,{"$f":"(SUM(AA$55:AA63)/AA$66)","v":0.9},{"$f":"IF(ISERROR(AVERAGE(AC63:AC63)),0,AVERAGE(AC63:AC63))","v":0.9},"C",{"$f":"IF(AO63=\"\",IF(Test_Statistic<$AJ$72,AI61,IF(Test_Statistic<$AL$72,AK61,AM61)),AO63)","v":50},{"$f":"IF(AP63=\"\",IF(Test_Statistic<$AJ$72,AJ61,IF(Test_Statistic<$AL$72,AL61,AN61)),AP63)","v":50},null,{"$f":"IF(AC63>1,200,IF(AC61>1,50,IF(AC61>0.6,50,180)))","v":50},{"$f":"IF(AC63>1,5,IF(AC61>0.6,IF(AD63>0.5,60,120),IF(AC61>0.6,100,200)))","v":60},{"$f":"IF(Test_Statistic_2<0.95,50,160)","v":50},{"$f":"IF(Test_Statistic_2<0.95,70,5)","v":70},{"$f":"IF(Test_Statistic_2<1,50,180)","v":50},{"$f":"IF(Test_Statistic_2<1,50,5)","v":50}]
[null,"Credit Risk",null,null,null,null,null,null,null,null,null,{"$f":"K63","v":0},null,{"$f":"M63","v":0},null,null,null,null,null,{"$f":"C66","v":"Premium Risk"},null,null,null,{"$f":"G66","v":0},0.1111111111111111,{"$f":"M66","v":0},0.1111111111111111,null,{"$f":"(SUM(AA$55:AA62)/AA$66)","v":0.79999999999999993},{"$f":"IF(ISERROR(AVERAGE(AC57:AC62)),0,AVERAGE(AC57:AC62))","v":0.58333333333333326},"P",{"$f":"IF(AO66=\"\",IF(Test_Statistic<$AJ$72,AI62,IF(Test_Statistic<$AL$72,AK62,AM62)),AO66)","v":100},250,null,{"$f":"IF(AC63>1,250,IF(AC61>1,300,IF(AC61>0.6,260,300)))","v":260},{"$f":"IF(AC61>0.6,185,140)","v":185},{"$f":"IF(Test_Statistic_2<0.95,180,120)","v":180},200,100,250]
[null,"Ccred","Credit Risk",null,null,null,{"$f":"ROUND('Credit Risk (old)'!F39,$Q$164)","v":0},null,null,null,{"$f":"ROUND('Credit Risk'!H80,$Q$164)","v":0},null,{"$f":"ROUND('Credit Risk'!H80,$Q$164)","v":0},null,null,null,null,null,null,{"$f":"C67","v":"Reserve Risk"},null,null,null,{"$f":"G67","v":0},0.1111111111111111,{"$f":"M67","v":0},0.1111111111111111,null,{"$f":"(SUM(AA$55:AA63)/AA$66)","v":0.9},{"$f":"IF(ISERROR(AVERAGE(AC62:AC63)),0,AVERAGE(AC62:AC63))","v":0.85},"R",{"$f":"IF(AO67=\"\",IF(Test_Statistic<$AJ$72,AI63,IF(Test_Statistic<$AL$72,AK63,AM63)),AO67)","v":50},160,null,{"$f":"IF(AC63>1,50,IF(AC61>0.6,120,260))","v":120},{"$f":"IF(AC63>1,90,IF(AC61>0.6,200,185))","v":200},50,{"$f":"IF(Test_Statistic_2<0.95,160,80)","v":160},{"$f":"IF(Test_Statistic_2<1,50,50)","v":50},150,null,null,"C"]
[null,null,null,null,null,null,null,null,null,null,null,null,null,null,null,null,null,null,null,{"$f":"C68","v":"Catastrophe Risk"},null,null,null,{"$f":"G68","v":0},0.1111111111111111,{"$f":"M68","v":0},0.1111111111111111,null,{"$f":"(SUM(AA$55:AA65)/AA$66)","v":1},null,"CAT",{"$f":"IF(AO68=\"\",IF(Test_Statistic<$AJ$72,AI64,IF(Test_Statistic<$AL$72,AK64,AM64)),AO68)","v":180},{"$f":"IF(AP68=\"\",IF(Test_Statistic<$AJ$72,AJ64,IF(Test_Statistic<$AL$72,AL64,AN64)),AP68)","v":5},null,{"$f":"IF(AC63>1,260,IF(AC61>1,200,IF(AC61>0.6,180,40)))","v":180},{"$f":"IF(AC63>1,15,IF(AC61>0.6,5,100))","v":5},{"$f":"IF(Test_Statistic_2<0.95,180,240)","v":180},{"$f":"IF(Test_Statistic_2<0.95,5,20)","v":5},{"$f":"IF(Test_Statistic_2<1,180,240)","v":180},{"$f":"IF(Test_Statistic_2<1,5,20)","v":5}]
[null,"P&C Insurance Risk",null,null,null,null,null,null,null,null,null,{"$f":"SQRT(MMULT(TRANSPOSE(K66:K68),MMULT('Correlation Matrix'!J7:L9,K66:K68)))","v":0},null,{"$f":"SQRT(MMULT(TRANSPOSE(M66:M68),MMULT('Correlation Matrix'!J7:L9,M66:M68)))","v":0}]
[null,"Cprem","Premium Risk",null,null,null,{"$f":"ROUND('Premium Risk (old)'!I78,$Q$164)","v":0},null,null,null,{"$f":"ROUND('Premium Risk'!N59,$Q$164)","v":0},null,{"$f":"ROUND('Premium Risk'!N59,$Q$164)","v":0},null,null,null,null,null,null,"Total",null,null,null,{"$f":"SUM(X55:X65)","v":0},{"$f":"SUM(Y55:Y65)","v":1.1111111111111114},{"$f":"SUM(Z55:Z65)","v":0},{"$f":"SUM(AA55:AA65)","v":1.1111111111111114},null,null,null,null,null,null,null,null,null,null,null,null,null,null,null,"P"]
[null,"Crsvs","Reserve Risk",null,null,null,{"$f":"ROUND('Reserve Risk (old)'!H68,$Q$164)","v":0},null,null,null,{"$f":"ROUND('Reserve Risk'!H53,$Q$164)","v":0},null,{"$f":"ROUND('Reserve Risk'!H53,$Q$164)","v":0},null,null,null,null,null,null,null,null,null,null,null,null,null,null,null,null,null,null,null,null,null,null,null,null,null,null,null,null,null,"R"]
[null,"Ccat","Catastrophe Risk",null,null,null,{"$f":"ROUND('Catastrophe Risk (old)'!E25,$Q$164)","v":0},null,null,null,{"$f":"ROUND('Catastrophe Risk'!E25,$Q$164)","v":0},null,{"$f":"ROUND('Catastrophe Risk'!E25,$Q$164)","v":0},null,null,null,null,null,null,null,null,null,null,null,null,null,null,null,null,null,null,null,null,null,null,null,null,null,null,null,null,null,"CAT"]
[]
[null,"BSCR (Prior to Covariance Adjustment/Correlation Adjustment)",null,null,null,null,{"$f":"SUM(G55:G68)","v":0},null,null,null,null,{"$f":"SUM(K55:K68)","v":0},null,{"$f":"SUM(M55:M68)","v":0},null,null,null,null,null,null,null,null,null,null,null,null,null,null,null,null,null,null,null,null,{"$f":"AI72&\" - \"&AJ72","v":"0 - 0.425"},null,{"$f":"AJ72&\" - \"&AL72","v":"0.425 - 0.575"},null,{"$f":"AL72&\" - \"&AN72","v":"0.575 - 1"},null,"Use the above to manually change label positions."]
[]
[null,"BSCR (After Covariance Adjustment/Correlation Adjustment)",null,null,null,null,{"$f":"(G55^2+G56^2+G57^2+G58^2+G60^2+G66^2+G68^2+(1/2*G63+G67)^2+(1/2*G63)^2)^0.5","v":0},null,null,null,null,{"$f":"SQRT(MMULT(TRANSPOSE('Correlation Matrix'!Z6:Z8),MMULT('Correlation Matrix'!O7:Q9,'Correlation Matrix'!Z6:Z8)))","v":0},null,{"$f":"SQRT(MMULT(TRANSPOSE('Correlation Matrix'!W6:W8),MMULT('Correlation Matrix'!O7:Q9,'Correlation Matrix'!W6:W8)))","v":0},null,null,null,null,null,null,null,null,null,null,null,null,null,null,null,null,null,null,null,null,0,{"$f":"0.5-AI90","v":0.42499999999999999},{"$f":"AJ72","v":0.42499999999999999},{"$f":"0.5+AI90","v":0.57499999999999996},{"$f":"AL72","v":0.57499999999999996},1]
[]
[null,"Operational risk charge (%)",null,null,null,null,{"$f":"'Op Risk (old)'!D23","v":0.1},null,null,null,null,null,null,{"$f":"'Op Risk'!D23","v":0.2}]
[]
[null,"Operational risk capital charge ($)",null,null,null,null,{"$f":"$G$72*$G$74","v":0},null,null,null,null,null,null,{"$f":"($N$72+M145)*$N$74","v":0},null,null,null,null,null,null,null,null,null,"Minimum Solvency Margin",null,{"$f":"MAX(Z84,Z86,Z90)","v":1000},"ECR",null,{"$f":"MAX($Z$76,$N$88)","v":1000}]
[]
[null,"Cadj","Capital Adjustment for (Regulatory) Capital Requirement for Regulated Non-Insurance Financial Operating Entities:",null,null,null,{"$f":"+'Schedule XVI'!M211","v":0},null,null,null,null,null,null,{"$f":"+'Schedule XVI'!M211","v":0}]
[]
[null,"CMgmtAction",null,null,null,null,null,null,null,null,null,null,null,{"$f":"M145","v":0}]
[]
[null,"Other Capital Adjustment",null,null,null,null,0,null,null,null,null,null,null,{"$f":"M150","v":0}]
[]
[null,"Capital add-on / reduction (BMA assessment)",null,null,null,null,{"$f":"'CSP (old)'!I532-'CSP (old)'!F532","v":0},null,null,null,null,null,null,{"$f":"'Company Specific Parameters'!L707-'Company Specific Parameters'!I707","v":0},null,null,null,null,null,null,null,null,null,"LRSO",null,{"$f":"'Form 1SFS (Consolidated)'!M105*15%","v":0}]
[]
[null,"Transition BSCR ",null,null,null,null,0,null,null,null,"Rate",{"$f":"IF('Information Sheet'!$H$13>='Correlation Matrix'!$S$8,'Correlation Matrix'!$T$8,IF('Information Sheet'!$H$13>='Correlation Matrix'!$S$7,'Correlation Matrix'!$T$7,'Correlation Matrix'!$T$6))","v":0.33},null,{"$f":"G88+((N88-G88)*L86)","v":0},null,null,null,null,null,null,null,null,"2020-12-31","Minimum Capital & Surplus",null,{"$f":"IF('Company Information'!F11=\"Class 4\",IF(CONFIGURATION!B12=1000,100000,100000000),IF(CONFIGURATION!B12=1000,1000,1000000))*IFERROR((1/'Information Sheet'!$H$18),1)","v":1000}]
[null,null,null,null,null,null,null,null,null,null,null,null,null,null,null,null,null,null,null,null,null,null,"2021-12-31"]
[null,"Full BSCR ",null,null,null,null,{"$f":"G72+G76+G84+G78","v":0},null,null,null,null,null,null,{"$f":"N72+N76+N84+N78+N82+N80","v":0}]
[]
[null,"AVAILABLE STATUTORY CAPITAL AND SURPLUS",null,null,null,null,null,null,null,null,null,null,null,null,null,null,null,null,null,null,null,null,null,"Premiums",null,{"$f":"L20","v":0},null,null,null,null,null,null,null,null,7.4999999999999997E-2,"Swing"]
[]
[null,"Total statutory capital and surplus",null,null,"Form 1SFS, Line (40)",null,null,null,null,null,null,null,null,{"$f":"'Form 8SFS (Consolidated)'!O60","v":0},null,null,null,null,null,null,null,null,"Data for Column Chart"]
[null,"Capital Contribution"]
[null,"Pre-adjustment available statutory capital and surplus",null,null,null,null,null,null,null,null,null,null,null,{"$f":"N92+N93","v":0}]
[]
[null,null,"Capital add-on / reduction (BMA Assessment)"]
[]
[null,"Available Statutory Capital and Surplus",null,null,null,null,null,null,null,null,null,null,null,{"$f":"N94-SUM(N96:N96)","v":0}]
[]
[null,"MINIMUM MARGIN OF SOLVENCY"]
[]
[null,"Minimum Margin of Solvency (Calculation)",null,null,null,null,null,null,null,null,null,null,null,{"$f":"MAX(Z76,(N86*25%))","v":1000}]
[null,"Approved Minimum Margin of Solvency (if applicable)"]
[null,"Minimum Margin of Solvency",null,null,null,null,null,null,null,null,null,null,null,{"$f":"SUM(N102:N103)","v":1000},null,null,null,null,null,null,null,null,null,null,null,null,"Bottom",null,"Top","Level"]
[]
[null,"ENHANCED CAPITAL REQUIREMENT AND TARGET CAPITAL LEVEL",null,null,null,null,null,null,null,null,null,null,null,null,null,null,null,null,null,null,null,null,null,"Adjusted Surplus","Available Statutory Capital and Surplus",null,{"$f":"IF($N$98=0,15000000,$N$98)","v":15000000},null,{"$f":"AC$120-AA106","v":10000000},{"$f":"IF($N$98=0,25000000,$N$98)","v":25000000}]
[]
[null,"Transition Enhanced Capital Requirement",null,null,null,null,null,null,null,null,null,null,null,{"$f":"MAX(N86,N104)","v":1000}]
[]
[null,"Enhanced Capital Requirement",null,null,null,null,null,null,null,null,null,null,null,{"$f":"MAX(N104,N88)","v":1000},null,null,null,null,null,null,null,null,null,"Mandatory Control Level (100% of ACL)","Regulatory Action Level 1",1,{"$f":"IF($AC$76=100000,15000000,$AC$76)","v":1000},null,{"$f":"AC$120-AA110","v":24999000},{"$f":"Z110*AA$111","v":1000}]
[null,null,null,null,null,null,null,null,null,null,null,null,null,null,null,null,null,null,null,null,null,null,null,"authorised Control Level (120% of ACL)","Regulatory Action Level 2",1.2,{"$f":"IF($AC$76=100000,15000000,$AC$76)","v":1000},null,{"$f":"AC$120-AA111","v":24999000},{"$f":"Z111*AA$111","v":1200}]
[null,"Transition Target Capital Level",null,null,null,null,null,null,null,null,null,null,null,{"$f":"N108*1.2","v":1200}]
[]
[null,"Target Capital Level",null,null,null,null,null,null,null,null,null,null,null,{"$f":"$N$110*1.2","v":1200},null,null,null,null,null,null,null,null,null,null,"AL3",null,{"$f":"IF(N72=0,15000000,N72)","v":15000000},null,{"$f":"AC$120-AA114","v":10000000},{"$f":"Z114*AA$111","v":0}]
[null,null,null,null,null,null,null,null,null,null,null,null,null,null,null,null,null,null,null,null,null,null,null,null,"AL4",null,{"$f":"IF(N72=0,15000000,N72)","v":15000000},null,{"$f":"AC$120-AA115","v":10000000},{"$f":"Z115*AA$111","v":0}]
[null,"RATIOS"]
[]
[null,"Transition Bermuda Solvency Capital Requirement Ratio",null,null,null,null,null,null,null,null,null,null,null,{"$f":"IF(N86=0,\"n/a\",N98/N86)","v":"n/a"}]
[]
[null,"Bermuda Solvency Capital Requirement Ratio",null,null,null,null,null,null,null,null,null,null,null,{"$f":"IF($N$88=0,\"n/a\",$N$98/$N$88)","v":"n/a"},null,null,null,null,null,null,null,null,null,null,null,null,"Max Column",null,{"$f":"MAX(AD106:AD115)","v":25000000}]
[]
[null,"Transition Enhanced Capital Requirement Ratio",null,null,null,null,null,null,null,null,null,null,null,{"$f":"IF(N108=0,\"n/a\",N98/N108)","v":0}]
[]
[null,"Enhanced Capital Requirement Ratio",null,null,null,null,null,null,null,null,null,null,null,{"$f":"IF($N$88=0,\"n/a\",$N$98/$N$110)","v":"n/a"}]
[]
[null,"Enhancement Capital Requirement Met",null,null,null,null,null,null,null,null,null,null,null,{"$f":"IF(N124=\"n/a\",\"n/a\",IF(N124>100%,\"YES\",\"NO\"))","v":"n/a"}]
[]
[]
[null,"Eligible Capital",null,null,null,null,null,null,null,null,null,{"$f":"'Form 1SFS (Consolidated)'!$M$9","v":"2022-12-31"}]
[]
[null,null,null,null,"Applied to MSM",null,null,null,null,null,null,"Applied to ECR"]
[]
[null,"Tier 1 Capital ",null,null,{"$f":"'Schedule XII(a)'!G93","v":0},null,null,null,null,null,null,{"$f":"'Schedule XII(a)'!I93","v":0}]
[null,"Tier 2 Capital ",null,null,{"$f":"'Schedule XII(a)'!G94","v":0},null,null,null,null,null,null,{"$f":"'Schedule XII(a)'!I94","v":0}]
[null,"Tier 3 Capital ",null,null,null,null,null,null,null,null,null,{"$f":"'Schedule XII(a)'!I95","v":0}]
[null,"Total Capital",null,null,{"$f":"+'Schedule XII(a)'!G96","v":0},null,null,null,null,null,null,{"$f":"+'Schedule XII(a)'!I96","v":0}]
[]
[null,"Insurer met Eligible Capital Requirement",null,null,{"$f":"IF(E136>=N108,\"YES\",\"NO\")","v":"NO"},null,null,null,null,null,null,{"$f":"IF(L136>=N112,\"YES\",\"NO\")","v":"NO"}]
[]
[]
[null,"Capital Adjustment - Management Action "]
[]
[null,"Implied Loss-absorbing capacity of Technical Provisions without cap",null,null,null,null,null,null,null,null,null,null,{"$f":"N72-L72","v":0}]
[null,"Initial FDB / Bonus reserve on Consolidated basis",null,null,null,null,null,null,null,null,null,null,{"$f":"Import!M17817","v":0}]
[null,"Adj. for the Loss-absorbing capacity of Tech. Provisions",null,null,null,null,null,null,null,null,null,null,{"$f":"-MAX(MIN(M143,M144),0)","v":0}]
[]
[]
[null,"Other Capital Adjustment"]
[]
[null,"Adjustment = min (BSCR x t, Limit, 20% x BSCR)",null,null,null,null,null,null,null,null,null,null,{"$f":"-MIN(D156,K159,M155)","v":0}]
[]
[null,"Test 1",null,null,"Test 2",null,null,null,null,null,null,"Test 3"]
[]
[null,"BSCR",null,{"$f":"N72+N76+N78+N80+N84","v":0},"Limit = Past LAC + Current LAC + Future LAC",null,null,null,null,null,null,"BSCR",{"$f":"N72+N76+N78+N84+N80","v":0}]
[null,"T",null,{"$f":"Import!M17815","v":0},"Loss Carryback Provision",null,null,null,null,null,{"$f":"MAX(0,Import!M17816)","v":0},0.2,{"$f":"M154*L155","v":0}]
[null,"Test Result",null,{"$f":"MAX(0,D154*D155)","v":0},"PAST LAC",null,null,null,null,null,{"$f":"K155*D155","v":0}]
[null,null,null,null,"Current LAC"]
[null,null,null,null,"Future LAC"]
[null,null,null,null,"Total Limit",null,null,null,null,null,{"$f":"MAX(0,SUM(K156:K158))","v":0}]
[]
[]
[]
[]
[null,"Rounding (decimal places)",null,null,null,null,null,null,null,null,null,null,null,null,null,null,10]

{"sheet":"Fixed Income Investments (old)","index":113,"n_rows":99,"n_cols":6,"rows_kept":99,"cut":false,"hidden":true,"merged":[[102,0,102,1],[0,5,0,6]]}
["FIXED INCOME INVESTMENTS",null,null,null,null,{"$f":"HYPERLINK(\"#'Index'!A1\",\"Return to Index\")","v":"Return to Index"}]
[{"$f":"'Company Information'!C7","v":"Enter Company Name"}]
["Fixed Income Investment Risk",null,{"$f":"'Company Information'!C3","v":"2022-12-31"},-1,-2,-3]
[]
[]
[null,"TYPE OF ",null,"ASSET","CAPITAL","REQUIRED"]
[null,"FIXED INCOME INVESTMENTS","STATEMENT SOURCE","VALUE","FACTOR","CAPITAL"]
[]
[null,"(a)  Corporate & Sovereign Bonds",null,null,null,"(1) x (2)"]
[]
[null,"BSCR Rating"]
[null,0,"Sch II EBS, Line (1), Column 1 and Sch IIA EBS, Line (1), Column 1",{"$f":"'Schedule II'!D12+'Schedule IIA'!D12","v":0},0,{"$f":"IF(D12<0,0,D12*E12)","v":0}]
[null,1,"Sch II EBS, Line (2), Column 1 and Sch IIA EBS, Line (2), Column 1",{"$f":"'Schedule II'!D13+'Schedule IIA'!D13","v":0},4.0000000000000001E-3,0]
[null,2,"Sch II EBS, Line (3), Column 1 and Sch IIA EBS, Line (3), Column 1",{"$f":"'Schedule II'!D14+'Schedule IIA'!D14","v":0},8.0000000000000002E-3,0]
[null,3,"Sch II EBS, Line (4), Column 1 and Sch IIA EBS, Line (4), Column 1",{"$f":"'Schedule II'!D15+'Schedule IIA'!D15","v":0},1.4999999999999999E-2,0]
[null,4,"Sch II EBS, Line (5), Column 1 and Sch IIA EBS, Line (5), Column 1",{"$f":"'Schedule II'!D16+'Schedule IIA'!D16","v":0},0.03,0]
[null,5,"Sch II EBS, Line (6), Column 1 and Sch IIA EBS, Line (6), Column 1",{"$f":"'Schedule II'!D17+'Schedule IIA'!D17","v":0},0.08,0]
[null,6,"Sch II EBS, Line (7), Column 1 and Sch IIA EBS, Line (7), Column 1",{"$f":"'Schedule II'!D18+'Schedule IIA'!D18","v":0},0.15,{"$f":"IF(D18<0,0,D18*E18)","v":0}]
[null,7,"Sch II EBS, Line (8), Column 1 and Sch IIA EBS, Line (8), Column 1",{"$f":"'Schedule II'!D19+'Schedule IIA'!D19","v":0},0.26300000000000001,{"$f":"IF(D19<0,0,D19*E19)","v":0}]
[null,8,"Sch II EBS, Line (9), Column 1 and Sch IIA EBS, Line (9), Column 1",{"$f":"'Schedule II'!D20+'Schedule IIA'!D20","v":0},0.35,{"$f":"IF(D20<0,0,D20*E20)","v":0}]
[]
[null,"(a)  SUBTOTAL -  CORPORATE BONDS",null,{"$f":"SUM(D11:D20)","v":0},null,{"$f":"IF(SUM(F11:F20)>=0,SUM(F11:F20),0)","v":0}]
[]
[null,"(b) Residential Mortgage-Backed Securities"]
[]
[null,"BSCR Rating"]
[null,1,"Sch II EBS, Line (2), Column 3 and Sch IIA EBS, Line (2), Column 3",{"$f":"'Schedule II'!H13+'Schedule IIA'!H13","v":0},6.0000000000000001E-3,{"$f":"IF(D27<0,0,D27*E27)","v":0}]
[null,2,"Sch II EBS, Line (3), Column 3 and Sch IIA EBS, Line (3), Column 3",{"$f":"'Schedule II'!H14+'Schedule IIA'!H14","v":0},1.2E-2,0]
[null,3,"Sch II EBS, Line (4), Column 3 and Sch IIA EBS, Line (4), Column 3",{"$f":"'Schedule II'!H15+'Schedule IIA'!H15","v":0},0.02,0]
[null,4,"Sch II EBS, Line (5), Column 3 and Sch IIA EBS, Line (5), Column 3",{"$f":"'Schedule II'!H16+'Schedule IIA'!H16","v":0},0.04,0]
[null,5,"Sch II EBS, Line (6), Column 3 and Sch IIA EBS, Line (6), Column 3",{"$f":"'Schedule II'!H17+'Schedule IIA'!H17","v":0},0.11,0]
[null,6,"Sch II EBS, Line (7), Column 3 and Sch IIA EBS, Line (7), Column 3",{"$f":"'Schedule II'!H18+'Schedule IIA'!H18","v":0},0.25,0]
[null,7,"Sch II EBS, Line (8), Column 3 and Sch IIA EBS, Line (8), Column 3",{"$f":"'Schedule II'!H19+'Schedule IIA'!H19","v":0},0.35,0]
[null,8,"Sch II EBS, Line (9), Column 3 and Sch IIA EBS, Line (9), Column 3",{"$f":"'Schedule II'!H20+'Schedule IIA'!H20","v":0},0.35,0]
[]
[null,"(b)  SUBTOTAL - RESIDENTIAL MORTGAGE-BACKED SECURITIES",null,{"$f":"SUM(D27:D34)","v":0},null,{"$f":"IF(SUM(F27:F34)>=0,SUM(F27:F34),0)","v":0}]
[]
[null,"(c) Commercial Mortgage-Backed Securities / Asset-Backed Securities"]
[]
[null,"BSCR Rating"]
[null,1,"Sch II EBS, Line (2), Column 5 and Sch IIA EBS, Line (2), Column 5",{"$f":"'Schedule II'!L13+'Schedule IIA'!L13","v":0},5.0000000000000001E-3,{"$f":"IF(D41<0,0,D41*E41)","v":0}]
[null,2,"Sch II EBS, Line (3), Column 5 and Sch IIA EBS, Line (3), Column 5",{"$f":"'Schedule II'!L14+'Schedule IIA'!L14","v":0},0.01,0]
[null,3,"Sch II EBS, Line (4), Column 5 and Sch IIA EBS, Line (4), Column 5",{"$f":"'Schedule II'!L15+'Schedule IIA'!L15","v":0},1.7999999999999999E-2,0]
[null,4,"Sch II EBS, Line (5), Column 5 and Sch IIA EBS, Line (5), Column 5",{"$f":"'Schedule II'!L16+'Schedule IIA'!L16","v":0},3.5000000000000003E-2,0]
[null,5,"Sch II EBS, Line (6), Column 5 and Sch IIA EBS, Line (6), Column 5",{"$f":"'Schedule II'!L17+'Schedule IIA'!L17","v":0},0.1,0]
[null,6,"Sch II EBS, Line (7), Column 5 and Sch IIA EBS, Line (7), Column 5",{"$f":"'Schedule II'!L18+'Schedule IIA'!L18","v":0},0.2,0]
[null,7,"Sch II EBS, Line (8), Column 5 and Sch IIA EBS, Line (8), Column 5",{"$f":"'Schedule II'!L19+'Schedule IIA'!L19","v":0},0.3,0]
[null,8,"Sch II EBS, Line (9), Column 5 and Sch IIA EBS, Line (9), Column 5",{"$f":"'Schedule II'!L20+'Schedule IIA'!L20","v":0},0.35,0]
[]
[]
[null,"(c)  SUBTOTAL - COMMERCIAL MORTGAGE-BACKED SECURITIES / ASSET-BACKED SECURITIES",null,{"$f":"SUM(D41:D48)","v":0},null,{"$f":"IF(SUM(F41:F48)>=0,SUM(F41:F48),0)","v":0}]
[]
[null,"(d) Bond Mutual Funds"]
[]
[null,"BSCR Rating"]
[null,0,"Sch II EBS, Line (1), Column 7 and Sch IIA EBS, Line (1), Column 7",{"$f":"'Schedule II'!P12+'Schedule IIA'!P12","v":0},0,{"$f":"IF(D56<0,0,D56*E56)","v":0}]
[null,1,"Sch II EBS, Line (2), Column 7 and Sch IIA EBS, Line (2), Column 7",{"$f":"'Schedule II'!P13+'Schedule IIA'!P13","v":0},4.0000000000000001E-3,0]
[null,2,"Sch II EBS, Line (3), Column 7 and Sch IIA EBS, Line (3), Column 7",{"$f":"'Schedule II'!P14+'Schedule IIA'!P14","v":0},8.0000000000000002E-3,0]
[null,3,"Sch II EBS, Line (4), Column 7 and Sch IIA EBS, Line (4), Column 7",{"$f":"'Schedule II'!P15+'Schedule IIA'!P15","v":0},1.4999999999999999E-2,0]
[null,4,"Sch II EBS, Line (5), Column 7 and Sch IIA EBS, Line (5), Column 7",{"$f":"'Schedule II'!P16+'Schedule IIA'!P16","v":0},0.03,0]
[null,5,"Sch II EBS, Line (6), Column 7 and Sch IIA EBS, Line (6), Column 7",{"$f":"'Schedule II'!P17+'Schedule IIA'!P17","v":0},0.08,0]
[null,6,"Sch II EBS, Line (7), Column 7 and Sch IIA EBS, Line (7), Column 7",{"$f":"'Schedule II'!P18+'Schedule IIA'!P18","v":0},0.15,0]
[null,7,"Sch II EBS, Line (8), Column 7 and Sch IIA EBS, Line (8), Column 7",{"$f":"'Schedule II'!P19+'Schedule IIA'!P19","v":0},0.26300000000000001,0]
[null,8,"Sch II EBS, Line (9), Column 7 and Sch IIA EBS, Line (9), Column 7",{"$f":"'Schedule II'!P20+'Schedule IIA'!P20","v":0},0.35,0]
[]
[null,"(d)  SUBTOTAL - BOND MUTUAL FUNDS",null,{"$f":"SUM(D56:D64)","v":0},null,{"$f":"IF(SUM(F56:F64)>=0,SUM(F56:F64),0)","v":0}]
[]
[null,"(e) Mortgage Loans"]
[]
[null,"Insured/Guaranteed Mortgages","Sch II EBS, Line (22), Column 1 and Sch IIA EBS, Line (22), Column 1",{"$f":"'Schedule II'!D57+'Schedule IIA'!D57","v":0},3.0000000000000001E-3,{"$f":"IF(D70<0,0,D70*E70)","v":0}]
[null,"Other Commercial and Farm Mortgages","Sch II EBS, Line (23), Column 1 and Sch IIA EBS, Line (23), Column 1 ",{"$f":"'Schedule II'!D58+'Schedule IIA'!D58","v":0},0.05,{"$f":"IF(D71<0,0,D71*E71)","v":0}]
[null,"Other Residential Mortgages","Sch II EBS, Line (24), Column 1 and Sch IIA EBS, Line (24), Column 1",{"$f":"'Schedule II'!D59+'Schedule IIA'!D59","v":0},1.4999999999999999E-2,{"$f":"IF(D72<0,0,D72*E72)","v":0}]
[null,"Mortgages Not In Good Standing","Sch II EBS, Line (25), Column 1 and Sch IIA EBS, Line (25), Column 1",{"$f":"'Schedule II'!D60+'Schedule IIA'!D60","v":0},0.25,{"$f":"IF(D73<0,0,D73*E73)","v":0}]
[]
[null,"(e)  SUBTOTAL - MORTGAGE LOANS",null,{"$f":"SUM(D70:D73)","v":0},null,{"$f":"IF(SUM(F70:F73)>=0,SUM(F70:F73),0)","v":0}]
[]
[null,"(f) Other Fixed Income Investments"]
[]
[null,"Other Loans","Form 1SFS, Line (8)",{"$f":"'Form 1SFS (Consolidated)'!M62","v":0},0.05,{"$f":"IF($D$79<0,0,$D$79*$E$79)","v":0}]
[]
[null,"Cash and Cash Equivalent Counterparty Balances By BSCR Rating"]
[]
[null,"BSCR Rating 0 ","Schedule XIX, Column B",{"$f":"+'Schedule XIX'!H81","v":0},0,{"$f":"IF($D$83<0,0,$D$83*$E$83)","v":0}]
[null,"BSCR Rating 1","Schedule XIX, Column B",{"$f":"+'Schedule XIX'!H82","v":0},1E-3,{"$f":"IF($D$84<0,0,$D$84*$E$84)","v":0}]
[null,"BSCR Rating 2","Schedule XIX, Column B",{"$f":"+'Schedule XIX'!H83","v":0},2E-3,{"$f":"IF($D$85<0,0,$D$85*$E$85)","v":0}]
[null,"BSCR Rating 3","Schedule XIX, Column B",{"$f":"+'Schedule XIX'!H84","v":0},3.0000000000000001E-3,{"$f":"IF($D$86<0,0,$D$86*$E$86)","v":0}]
[null,"BSCR Rating 4","Schedule XIX, Column B",{"$f":"+'Schedule XIX'!H85","v":0},5.0000000000000001E-3,{"$f":"IF($D$87<0,0,$D$87*$E$87)","v":0}]
[null,"BSCR Rating 5","Schedule XIX, Column B",{"$f":"+'Schedule XIX'!H86","v":0},1.4999999999999999E-2,{"$f":"IF($D$88<0,0,$D$88*$E$88)","v":0}]
[null,"BSCR Rating 6","Schedule XIX, Column B",{"$f":"+'Schedule XIX'!H87","v":0},0.04,{"$f":"IF($D$89<0,0,$D$89*$E$89)","v":0}]
[null,"BSCR Rating 7","Schedule XIX, Column B",{"$f":"+'Schedule XIX'!H88","v":0},0.06,{"$f":"IF($D$90<0,0,$D$90*$E$90)","v":0}]
[null,"BSCR Rating 8","Schedule XIX, Column B",{"$f":"+'Schedule XIX'!H89","v":0},0.09,{"$f":"IF($D$91<0,0,$D$91*$E$91)","v":0}]
[]
[null,"Total",null,{"$f":"SUM(D83:D92)","v":0},null,{"$f":"SUM(F83:F92)","v":0}]
[]
[null,"Diversification Adjustment up to 40%",null,null,{"$f":"+'Schedule XIX'!H98","v":0},{"$f":"SUM(F83:F91)*-('Schedule XIX'!H98)","v":0}]
[]
[null,"(f)  SUBTOTAL - OTHER FIXED INCOME SECURITIES",null,{"$f":"D79+D93","v":0},null,{"$f":"IF(SUM(F79,F83:F91,F95)>=0,SUM(F79,F83:F91,F95),0)","v":0}]
[]
[null,"(g)  TOTAL FIXED INCOME INVESTMENTS [ (a)+(b)+(c)+(d)+(e)+(f) ]",null,{"$f":"D22+D36+D51+D66+D75+D97","v":0},null,{"$f":"F22+F36+F51+F66+F75+F97","v":0}]

{"sheet":"Fixed Income Investments","index":114,"n_rows":136,"n_cols":9,"rows_kept":136,"cut":false,"hidden":false,"merged":[[0,8,0,9],[139,0,139,1],[31,2,31,5],[32,2,32,5],[33,2,33,5],[40,2,40,5],[41,2,41,5],[42,2,42,5],[43,2,43,5],[44,2,44,5],[45,2,45,5],[46,2,46,5],[47,2,47,5],[55,2,55,5],[56,2,56,5],[57,2,57,5],[100,2,100,5],[101,2,101,3],[101,4,101,5],[115,2,115,5],[116,2,116,3],[116,4,116,5],[2,2,2,3],[11,2,11,5],[12,2,12,5],[13,2,13,5],[14,2,14,5],[15,2,15,5],[16,2,16,5],[17,2,17,5],[18,2,18,5],[19,2,19,5],[69,2,69,5],[70,2,70,5],[71,2,71,5],[72,2,72,5],[26,2,26,5],[27,2,27,5],[28,2,28,5],[29,2,29,5],[30,2,30,5],[58,2,58,5],[59,2,59,5],[60,2,60,5],[61,2,61,5],[62,2,62,5],[63,2,63,5]]}
["FIXED INCOME INVESTMENTS ",null,null,null,null,null,null,null,{"$f":"HYPERLINK(\"#'Index'!A1\",\"Return to Index\")","v":"Return to Index"}]
[{"$f":"'Company Information'!C7","v":"Enter Company Name"}]
[{"$f":"\"Fixed Income Investment Risk\"&\"($\"&IF(CONFIGURATION!$B$12>1,MID(CONFIGURATION!$B$12,2,LEN(CONFIGURATION!$B$12)),\"\")&\")\"","v":"Fixed Income Investment Risk($000)"},null,{"$f":"'Company Information'!C3","v":"2022-12-31"},null,null,null,-1,-2,-3]
[]
[]
[null,"TYPE OF ",null,null,null,null,"ASSET","CAPITAL","REQUIRED"]
[null,"FIXED INCOME INVESTMENTS",null,null,null,null,"VALUE","FACTOR","CAPITAL"]
[]
[null,"(a)  Corporate & Sovereign Bonds",null,null,null,null,null,null,"(1) x (2)"]
[]
[null,"BSCR Rating"]
[null,0,"Sch IIB, Column (1), Line 1, Sch IIC, Column (1), Line 1, (Sch IID, Column (1), Line 1 - Column (2), Line 1), Sch IIE, Column (1), Line 1, Sch IIF, Column (1), Line 1",null,null,null,{"$f":"'Schedule IIB'!D13+'Schedule IIC'!D13+(MAX(0,'Schedule IID'!D13-'Schedule IID'!F13))+'Schedule IIE'!D13+'Schedule IIF'!D13","v":0},0,{"$f":"IF(G12<0,0,G12*H12)","v":0}]
[null,1,"Sch IIB, Column (1), Line 2, Sch IIC, Column (1), Line 2, (Sch IID, Column (1), Line 2 - Column (2), Line 2), Sch IIE, Column (1), Line 2, Sch IIF, Column (1), Line 2",null,null,null,{"$f":"'Schedule IIB'!D14+'Schedule IIC'!D14+(MAX(0,'Schedule IID'!D14-'Schedule IID'!F14))+'Schedule IIE'!D14+'Schedule IIF'!D14","v":0},4.0000000000000001E-3,0]
[null,2,"Sch IIB, Column (1), Line 3, Sch IIC, Column (1), Line 3, (Sch IID, Column (1), Line 3 - Column (2), Line 3), Sch IIE, Column (1), Line 3, Sch IIF, Column (1), Line 3",null,null,null,{"$f":"'Schedule IIB'!D15+'Schedule IIC'!D15+(MAX(0,'Schedule IID'!D15-'Schedule IID'!F15))+'Schedule IIE'!D15+'Schedule IIF'!D15","v":0},8.0000000000000002E-3,0]
[null,3,"Sch IIB, Column (1), Line 4, Sch IIC, Column (1), Line 4, (Sch IID, Column (1), Line 4 - Column (2), Line 4), Sch IIE, Column (1), Line 4, Sch IIF, Column (1), Line 4",null,null,null,{"$f":"'Schedule IIB'!D16+'Schedule IIC'!D16+(MAX(0,'Schedule IID'!D16-'Schedule IID'!F16))+'Schedule IIE'!D16+'Schedule IIF'!D16","v":0},1.4999999999999999E-2,0]
[null,4,"Sch IIB, Column (1), Line 5, Sch IIC, Column (1), Line 5, (Sch IID, Column (1), Line 5 - Column (2), Line 5), Sch IIE, Column (1), Line 5, Sch IIF, Column (1), Line 5",null,null,null,{"$f":"'Schedule IIB'!D17+'Schedule IIC'!D17+(MAX(0,'Schedule IID'!D17-'Schedule IID'!F17))+'Schedule IIE'!D17+'Schedule IIF'!D17","v":0},0.03,0]
[null,5,"Sch IIB, Column (1), Line 6, Sch IIC, Column (1), Line 6, (Sch IID, Column (1), Line 6 - Column (2), Line 6), Sch IIE, Column (1), Line 6, Sch IIF, Column (1), Line 6",null,null,null,{"$f":"'Schedule IIB'!D18+'Schedule IIC'!D18+(MAX(0,'Schedule IID'!D18-'Schedule IID'!F18))+'Schedule IIE'!D18+'Schedule IIF'!D18","v":0},0.08,0]
[null,6,"Sch IIB, Column (1), Line 7, Sch IIC, Column (1), Line 7, (Sch IID, Column (1), Line 7 - Column (2), Line 7), Sch IIE, Column (1), Line 7, Sch IIF, Column (1), Line 7",null,null,null,{"$f":"'Schedule IIB'!D19+'Schedule IIC'!D19+(MAX(0,'Schedule IID'!D19-'Schedule IID'!F19))+'Schedule IIE'!D19+'Schedule IIF'!D19","v":0},0.15,{"$f":"IF(G18<0,0,G18*H18)","v":0}]
[null,7,"Sch IIB, Column (1), Line 8, Sch IIC, Column (1), Line 8, (Sch IID, Column (1), Line 8 - Column (2), Line 8), Sch IIE, Column (1), Line 8, Sch IIF, Column (1), Line 8",null,null,null,{"$f":"'Schedule IIB'!D20+'Schedule IIC'!D20+(MAX(0,'Schedule IID'!D20-'Schedule IID'!F20))+'Schedule IIE'!D20+'Schedule IIF'!D20","v":0},0.26300000000000001,{"$f":"IF(G19<0,0,G19*H19)","v":0}]
[null,8,"Sch IIB, Column (1), Line 9, Sch IIC, Column (1), Line 9, (Sch IID, Column (1), Line 9 - Column (2), Line 9), Sch IIE, Column (1), Line 9, Sch IIF, Column (1), Line 9",null,null,null,{"$f":"'Schedule IIB'!D21+'Schedule IIC'!D21+(MAX(0,'Schedule IID'!D21-'Schedule IID'!F21))+'Schedule IIE'!D21+'Schedule IIF'!D21","v":0},0.35,{"$f":"IF(G20<0,0,G20*H20)","v":0}]
[]
[null,"(a)  SUBTOTAL -  CORPORATE BONDS",null,null,null,null,{"$f":"SUM(G11:G20)","v":0},null,{"$f":"IF(SUM(I11:I20)>=0,SUM(I11:I20),0)","v":0}]
[]
[null,"(b) Residential Mortgage-Backed Securities"]
[]
[null,"BSCR Rating"]
[null,1,"Sch IIB, Column (3), Line 2, Sch IIC, Column (3), Line 2, (Sch IID, Column (3), Line 2 - Column (4), Line 2), Sch IIE, Column (3), Line 2, Sch IIF, Column (3), Line 2",null,null,null,{"$f":"'Schedule IIB'!H14+'Schedule IIC'!H14+(MAX(0,'Schedule IID'!H14-'Schedule IID'!J14))+'Schedule IIE'!H14+'Schedule IIF'!H14","v":0},6.0000000000000001E-3,{"$f":"IF(G27<0,0,G27*H27)","v":0}]
[null,2,"Sch IIB, Column (3), Line 3, Sch IIC, Column (3), Line 3, (Sch IID, Column (3), Line 3 - Column (4), Line 3), Sch IIE, Column (3), Line 3, Sch IIF, Column (3), Line 3",null,null,null,{"$f":"'Schedule IIB'!H15+'Schedule IIC'!H15+(MAX(0,'Schedule IID'!H15-'Schedule IID'!J15))+'Schedule IIE'!H15+'Schedule IIF'!H15","v":0},1.2E-2,0]
[null,3,"Sch IIB, Column (3), Line 4, Sch IIC, Column (3), Line 4, (Sch IID, Column (3), Line 4 - Column (4), Line 4), Sch IIE, Column (3), Line 4, Sch IIF, Column (3), Line 4",null,null,null,{"$f":"'Schedule IIB'!H16+'Schedule IIC'!H16+(MAX(0,'Schedule IID'!H16-'Schedule IID'!J16))+'Schedule IIE'!H16+'Schedule IIF'!H16","v":0},0.02,0]
[null,4,"Sch IIB, Column (3), Line 5, Sch IIC, Column (3), Line 5, (Sch IID, Column (3), Line 5 - Column (4), Line 5), Sch IIE, Column (3), Line 5, Sch IIF, Column (3), Line 5",null,null,null,{"$f":"'Schedule IIB'!H17+'Schedule IIC'!H17+(MAX(0,'Schedule IID'!H17-'Schedule IID'!J17))+'Schedule IIE'!H17+'Schedule IIF'!H17","v":0},0.04,0]
[null,5,"Sch IIB, Column (3), Line 6, Sch IIC, Column (3), Line 6, (Sch IID, Column (3), Line 6 - Column (4), Line 6), Sch IIE, Column (3), Line 6, Sch IIF, Column (3), Line 6",null,null,null,{"$f":"'Schedule IIB'!H18+'Schedule IIC'!H18+(MAX(0,'Schedule IID'!H18-'Schedule IID'!J18))+'Schedule IIE'!H18+'Schedule IIF'!H18","v":0},0.11,0]
[null,6,"Sch IIB, Column (3), Line 7, Sch IIC, Column (3), Line 7, (Sch IID, Column (3), Line 7 - Column (4), Line 7), Sch IIE, Column (3), Line 7, Sch IIF, Column (3), Line 7",null,null,null,{"$f":"'Schedule IIB'!H19+'Schedule IIC'!H19+(MAX(0,'Schedule IID'!H19-'Schedule IID'!J19))+'Schedule IIE'!H19+'Schedule IIF'!H19","v":0},0.25,0]
[null,7,"Sch IIB, Column (3), Line 8, Sch IIC, Column (3), Line 8, (Sch IID, Column (3), Line 8 - Column (4), Line 8), Sch IIE, Column (3), Line 8, Sch IIF, Column (3), Line 8",null,null,null,{"$f":"'Schedule IIB'!H20+'Schedule IIC'!H20+(MAX(0,'Schedule IID'!H20-'Schedule IID'!J20))+'Schedule IIE'!H20+'Schedule IIF'!H20","v":0},0.35,0]
[null,8,"Sch IIB, Column (3), Line 9, Sch IIC, Column (3), Line 9, (Sch IID, Column (3), Line 9 - Column (4), Line 9), Sch IIE, Column (3), Line 9, Sch IIF, Column (3), Line 9",null,null,null,{"$f":"'Schedule IIB'!H21+'Schedule IIC'!H21+(MAX(0,'Schedule IID'!H21-'Schedule IID'!J21))+'Schedule IIE'!H21+'Schedule IIF'!H21","v":0},0.35,0]
[]
[null,"(b)  SUBTOTAL - RESIDENTIAL MORTGAGE-BACKED SECURITIES",null,null,null,null,{"$f":"SUM(G27:G34)","v":0},null,{"$f":"IF(SUM(I27:I34)>=0,SUM(I27:I34),0)","v":0}]
[]
[null,"(c) Commercial Mortgage-Backed Securities / Asset-Backed Securities"]
[]
[null,"BSCR Rating"]
[null,1,"Sch IIB, Column (5), Line 2, Sch IIC, Column (5), Line 2, (Sch IID, Column (5), Line 2 - Column (4), Line 2), Sch IIE, Column (5), Line 2, Sch IIF, Column (5), Line 2",null,null,null,{"$f":"'Schedule IIB'!L14+'Schedule IIC'!L14+(MAX(0,'Schedule IID'!L14-'Schedule IID'!N14))+'Schedule IIE'!L14+'Schedule IIF'!L14","v":0},5.0000000000000001E-3,{"$f":"IF(G41<0,0,G41*H41)","v":0}]
[null,2,"Sch IIB, Column (5), Line 3, Sch IIC, Column (5), Line 3, (Sch IID, Column (5), Line 3 - Column (4), Line 3), Sch IIE, Column (5), Line 3, Sch IIF, Column (5), Line 3",null,null,null,{"$f":"'Schedule IIB'!L15+'Schedule IIC'!L15+(MAX(0,'Schedule IID'!L15-'Schedule IID'!N15))+'Schedule IIE'!L15+'Schedule IIF'!L15","v":0},0.01,0]
[null,3,"Sch IIB, Column (5), Line 4, Sch IIC, Column (5), Line 4, (Sch IID, Column (5), Line 4 - Column (4), Line 4), Sch IIE, Column (5), Line 4, Sch IIF, Column (5), Line 4",null,null,null,{"$f":"'Schedule IIB'!L16+'Schedule IIC'!L16+(MAX(0,'Schedule IID'!L16-'Schedule IID'!N16))+'Schedule IIE'!L16+'Schedule IIF'!L16","v":0},1.7999999999999999E-2,0]
[null,4,"Sch IIB, Column (5), Line 5, Sch IIC, Column (5), Line 5, (Sch IID, Column (5), Line 5 - Column (4), Line 5), Sch IIE, Column (5), Line 5, Sch IIF, Column (5), Line 5",null,null,null,{"$f":"'Schedule IIB'!L17+'Schedule IIC'!L17+(MAX(0,'Schedule IID'!L17-'Schedule IID'!N17))+'Schedule IIE'!L17+'Schedule IIF'!L17","v":0},3.5000000000000003E-2,0]
[null,5,"Sch IIB, Column (5), Line 6, Sch IIC, Column (5), Line 6, (Sch IID, Column (5), Line 6 - Column (4), Line 6), Sch IIE, Column (5), Line 6, Sch IIF, Column (5), Line 6",null,null,null,{"$f":"'Schedule IIB'!L18+'Schedule IIC'!L18+(MAX(0,'Schedule IID'!L18-'Schedule IID'!N18))+'Schedule IIE'!L18+'Schedule IIF'!L18","v":0},0.1,0]
[null,6,"Sch IIB, Column (5), Line 7, Sch IIC, Column (5), Line 7, (Sch IID, Column (5), Line 7 - Column (4), Line 7), Sch IIE, Column (5), Line 7, Sch IIF, Column (5), Line 7",null,null,null,{"$f":"'Schedule IIB'!L19+'Schedule IIC'!L19+(MAX(0,'Schedule IID'!L19-'Schedule IID'!N19))+'Schedule IIE'!L19+'Schedule IIF'!L19","v":0},0.2,0]
[null,7,"Sch IIB, Column (5), Line 8, Sch IIC, Column (5), Line 8, (Sch IID, Column (5), Line 8 - Column (4), Line 8), Sch IIE, Column (5), Line 8, Sch IIF, Column (5), Line 8",null,null,null,{"$f":"'Schedule IIB'!L20+'Schedule IIC'!L20+(MAX(0,'Schedule IID'!L20-'Schedule IID'!N20))+'Schedule IIE'!L20+'Schedule IIF'!L20","v":0},0.3,0]
[null,8,"Sch IIB, Column (5), Line 9, Sch IIC, Column (5), Line 9, (Sch IID, Column (5), Line 9 - Column (4), Line 9), Sch IIE, Column (5), Line 9, Sch IIF, Column (5), Line 9",null,null,null,{"$f":"'Schedule IIB'!L21+'Schedule IIC'!L21+(MAX(0,'Schedule IID'!L21-'Schedule IID'!N21))+'Schedule IIE'!L21+'Schedule IIF'!L21","v":0},0.35,0]
[]
[]
[null,"(c)  SUBTOTAL - COMMERCIAL MORTGAGE-BACKED SECURITIES / ASSET-BACKED SECURITIES",null,null,null,null,{"$f":"SUM(G41:G48)","v":0},null,{"$f":"IF(SUM(I41:I48)>=0,SUM(I41:I48),0)","v":0}]
[]
[null,"(d) Bond Mutual Funds"]
[]
[null,"BSCR Rating"]
[null,0,"Sch IIB, Column (7), Line 1, Sch IIC, Column (7), Line 1, (Sch IID, Column (7), Line 1 - Column (8), Line 1), Sch IIE, Column (7), Line 1, Sch IIF, Column (7), Line 1",null,null,null,{"$f":"'Schedule IIB'!P13+'Schedule IIC'!P13+(MAX(0,'Schedule IID'!P13-'Schedule IID'!R13))+'Schedule IIE'!P13+'Schedule IIF'!P13","v":0},0,{"$f":"IF(G56<0,0,G56*H56)","v":0}]
[null,1,"Sch IIB, Column (7), Line 2, Sch IIC, Column (7), Line 2, (Sch IID, Column (7), Line 2 - Column (8), Line 2), Sch IIE, Column (7), Line 2, Sch IIF, Column (7), Line 2",null,null,null,{"$f":"'Schedule IIB'!P14+'Schedule IIC'!P14+(MAX(0,'Schedule IID'!P14-'Schedule IID'!R14))+'Schedule IIE'!P14+'Schedule IIF'!P14","v":0},4.0000000000000001E-3,0]
[null,2,"Sch IIB, Column (7), Line 3, Sch IIC, Column (7), Line 3, (Sch IID, Column (7), Line 3 - Column (8), Line 3), Sch IIE, Column (7), Line 3, Sch IIF, Column (7), Line 3",null,null,null,{"$f":"'Schedule IIB'!P15+'Schedule IIC'!P15+(MAX(0,'Schedule IID'!P15-'Schedule IID'!R15))+'Schedule IIE'!P15+'Schedule IIF'!P15","v":0},8.0000000000000002E-3,0]
[null,3,"Sch IIB, Column (7), Line 4, Sch IIC, Column (7), Line 4, (Sch IID, Column (7), Line 4 - Column (8), Line 4), Sch IIE, Column (7), Line 4, Sch IIF, Column (7), Line 4",null,null,null,{"$f":"'Schedule IIB'!P16+'Schedule IIC'!P16+(MAX(0,'Schedule IID'!P16-'Schedule IID'!R16))+'Schedule IIE'!P16+'Schedule IIF'!P16","v":0},1.4999999999999999E-2,0]
[null,4,"Sch IIB, Column (7), Line 5, Sch IIC, Column (7), Line 5, (Sch IID, Column (7), Line 5 - Column (8), Line 5), Sch IIE, Column (7), Line 5, Sch IIF, Column (7), Line 5",null,null,null,{"$f":"'Schedule IIB'!P17+'Schedule IIC'!P17+(MAX(0,'Schedule IID'!P17-'Schedule IID'!R17))+'Schedule IIE'!P17+'Schedule IIF'!P17","v":0},0.03,0]
[null,5,"Sch IIB, Column (7), Line 6, Sch IIC, Column (7), Line 6, (Sch IID, Column (7), Line 6 - Column (8), Line 6), Sch IIE, Column (7), Line 6, Sch IIF, Column (7), Line 6",null,null,null,{"$f":"'Schedule IIB'!P18+'Schedule IIC'!P18+(MAX(0,'Schedule IID'!P18-'Schedule IID'!R18))+'Schedule IIE'!P18+'Schedule IIF'!P18","v":0},0.08,0]
[null,6,"Sch IIB, Column (7), Line 7, Sch IIC, Column (7), Line 7, (Sch IID, Column (7), Line 7 - Column (8), Line 7), Sch IIE, Column (7), Line 7, Sch IIF, Column (7), Line 7",null,null,null,{"$f":"'Schedule IIB'!P19+'Schedule IIC'!P19+(MAX(0,'Schedule IID'!P19-'Schedule IID'!R19))+'Schedule IIE'!P19+'Schedule IIF'!P19","v":0},0.15,0]
[null,7,"Sch IIB, Column (7), Line 8, Sch IIC, Column (7), Line 8, (Sch IID, Column (7), Line 8 - Column (8), Line 8), Sch IIE, Column (7), Line 8, Sch IIF, Column (7), Line 8",null,null,null,{"$f":"'Schedule IIB'!P20+'Schedule IIC'!P20+(MAX(0,'Schedule IID'!P20-'Schedule IID'!R20))+'Schedule IIE'!P20+'Schedule IIF'!P20","v":0},0.26300000000000001,0]
[null,8,"Sch IIB, Column (7), Line 9, Sch IIC, Column (7), Line 9, (Sch IID, Column (7), Line 9 - Column (8), Line 9), Sch IIE, Column (7), Line 9, Sch IIF, Column (7), Line 9",null,null,null,{"$f":"'Schedule IIB'!P21+'Schedule IIC'!P21+(MAX(0,'Schedule IID'!P21-'Schedule IID'!R21))+'Schedule IIE'!P21+'Schedule IIF'!P21","v":0},0.35,0]
[]
[null,"(d)  SUBTOTAL - BOND MUTUAL FUNDS",null,null,null,null,{"$f":"SUM(G56:G64)","v":0},null,{"$f":"IF(SUM(I56:I64)>=0,SUM(I56:I64),0)","v":0}]
[]
[null,"(e) Mortgage Loans"]
[]
[null,"Insured/Guaranteed Mortgages","Sch IIB, Column (9), Line 10, Sch IIC, Column (9), Line 10, (Sch IID, Column (9), Line 10 - Column (10), Line 10), Sch IIE, Column (9), Line 10, Sch IIF, Column (9), Line 10",null,null,null,{"$f":"'Schedule IIB'!T22+'Schedule IIC'!T22+(MAX(0,'Schedule IID'!T22-'Schedule IID'!V22))+'Schedule IIE'!T22+'Schedule IIF'!T22","v":0},3.0000000000000001E-3,{"$f":"IF(G70<0,0,G70*H70)","v":0}]
[null,"Other Commercial and Farm Mortgages","Sch IIB, Column (9), Line 11, Sch IIC, Column (9), Line 11, (Sch IID, Column (9), Line 11 - Column (10), Line 11), Sch IIE, Column (9), Line 11, Sch IIF, Column (9), Line 11",null,null,null,{"$f":"'Schedule IIB'!T23+'Schedule IIC'!T23+(MAX(0,'Schedule IID'!T23-'Schedule IID'!V23))+'Schedule IIE'!T23+'Schedule IIF'!T23","v":0},0.05,{"$f":"IF(G71<0,0,G71*H71)","v":0}]
[null,"Other Residential Mortgages","Sch IIB, Column (9), Line 12, Sch IIC, Column (9), Line 12, (Sch IID, Column (9), Line 12 - Column (10), Line 12), Sch IIE, Column (9), Line 12, Sch IIF, Column (9), Line 12",null,null,null,{"$f":"'Schedule IIB'!T24+'Schedule IIC'!T24+(MAX(0,'Schedule IID'!T24-'Schedule IID'!V24))+'Schedule IIE'!T24+'Schedule IIF'!T24","v":0},1.4999999999999999E-2,{"$f":"IF(G72<0,0,G72*H72)","v":0}]
[null,"Mortgages Not In Good Standing","Sch IIB, Column (9), Line 13, Sch IIC, Column (9), Line 13, (Sch IID, Column (9), Line 13 - Column (10), Line 13), Sch IIE, Column (9), Line 13, Sch IIF, Column (9), Line 13",null,null,null,{"$f":"'Schedule IIB'!T25+'Schedule IIC'!T25+(MAX(0,'Schedule IID'!T25-'Schedule IID'!V25))+'Schedule IIE'!T25+'Schedule IIF'!T25","v":0},0.25,{"$f":"IF(G73<0,0,G73*H73)","v":0}]
[]
[null,"(e)  SUBTOTAL - MORTGAGE LOANS",null,null,null,null,{"$f":"SUM(G70:G73)","v":0},null,{"$f":"IF(SUM(I70:I73)>=0,SUM(I70:I73),0)","v":0}]
[]
[null,"(f) Other Fixed Income Investments"]
[]
[null,"Other Loans","Form 1SFS, Line (8)",null,null,null,{"$f":"'Form 1SFS (Consolidated)'!M62","v":0},0.05,{"$f":"IF($G$79<0,0,$G$79*$H$79)","v":0}]
[]
[null,"Cash and Cash Equivalent Counterparty Balances By BSCR Rating"]
[]
[null,"BSCR Rating 0 ","Schedule XIXA, Column B",null,null,null,{"$f":"'Schedule XIXA'!F81","v":0},0,{"$f":"IF($G$83<0,0,$G$83*$H$83)","v":0}]
[null,"BSCR Rating 1","Schedule XIXA, Column B",null,null,null,{"$f":"'Schedule XIXA'!F82","v":0},1E-3,{"$f":"IF($G$84<0,0,$G$84*$H$84)","v":0}]
[null,"BSCR Rating 2","Schedule XIXA, Column B",null,null,null,{"$f":"'Schedule XIXA'!F83","v":0},2E-3,{"$f":"IF($G$85<0,0,$G$85*$H$85)","v":0}]
[null,"BSCR Rating 3","Schedule XIXA, Column B",null,null,null,{"$f":"'Schedule XIXA'!F84","v":0},3.0000000000000001E-3,{"$f":"IF($G$86<0,0,$G$86*$H$86)","v":0}]
[null,"BSCR Rating 4","Schedule XIXA, Column B",null,null,null,{"$f":"'Schedule XIXA'!F85","v":0},5.0000000000000001E-3,{"$f":"IF($G$87<0,0,$G$87*$H$87)","v":0}]
[null,"BSCR Rating 5","Schedule XIXA, Column B",null,null,null,{"$f":"'Schedule XIXA'!F86","v":0},1.4999999999999999E-2,{"$f":"IF($G$88<0,0,$G$88*$H$88)","v":0}]
[null,"BSCR Rating 6","Schedule XIXA, Column B",null,null,null,{"$f":"'Schedule XIXA'!F87","v":0},0.04,{"$f":"IF($G$89<0,0,$G$89*$H$89)","v":0}]
[null,"BSCR Rating 7","Schedule XIXA, Column B",null,null,null,{"$f":"'Schedule XIXA'!F88","v":0},0.06,{"$f":"IF($G$90<0,0,$G$90*$H$90)","v":0}]
[null,"BSCR Rating 8","Schedule XIXA, Column B",null,null,null,{"$f":"'Schedule XIXA'!F89","v":0},0.09,{"$f":"IF($G$91<0,0,$G$91*$H$91)","v":0}]
[]
[null,"Total",null,null,null,null,{"$f":"SUM(G83:G92)","v":0},null,{"$f":"SUM(I83:I92)","v":0}]
[]
[null,"Diversification Adjustment up to 40%",null,null,null,null,null,{"$f":"'Schedule XIXA'!F98","v":0},{"$f":"SUM(I83:I91)*-('Schedule XIXA'!F98)","v":0}]
[]
[null,"(f)  SUBTOTAL - OTHER FIXED INCOME SECURITIES",null,null,null,null,{"$f":"G79+G93","v":0},null,{"$f":"IF(SUM(I79,I83:I91,I95)>=0,SUM(I79,I83:I91,I95),0)","v":0}]
[]
[null,"(g) Spread Risk for Credit Derivatives"]
[]
[null,null,"SPREAD UP"]
[null,null,"Long Exposures",null,"Short Exposures"]
[null,null,"Before Shock","After Shock","Before Shock","After Shock"]
[null,"Spread Up",null,null,null,null,null,"Shock (bps)"]
[null,"BSCR Rating 0 ",{"$f":"'Schedule IIB'!D68+'Schedule IIC'!D68+'Schedule IID'!D68+'Schedule IIE'!D68+'Schedule IIF'!D68","v":0},{"$f":"'Schedule IIB'!F68+'Schedule IIC'!F68+'Schedule IID'!F68+'Schedule IIE'!F68+'Schedule IIF'!F68","v":0},{"$f":"'Schedule IIB'!H68+'Schedule IIC'!H68+'Schedule IID'!H68+'Schedule IIE'!H68+'Schedule IIF'!H68","v":0},{"$f":"'Schedule IIB'!J68+'Schedule IIC'!J68+'Schedule IID'!J68+'Schedule IIE'!J68+'Schedule IIF'!J68","v":0},null,0,{"$f":"(C105-D105)+MAX(0,E105-F105)","v":0}]
[null,"BSCR Rating 1",{"$f":"'Schedule IIB'!D69+'Schedule IIC'!D69+'Schedule IID'!D69+'Schedule IIE'!D69+'Schedule IIF'!D69","v":0},{"$f":"'Schedule IIB'!F69+'Schedule IIC'!F69+'Schedule IID'!F69+'Schedule IIE'!F69+'Schedule IIF'!F69","v":0},{"$f":"'Schedule IIB'!H69+'Schedule IIC'!H69+'Schedule IID'!H69+'Schedule IIE'!H69+'Schedule IIF'!H69","v":0},{"$f":"'Schedule IIB'!J69+'Schedule IIC'!J69+'Schedule IID'!J69+'Schedule IIE'!J69+'Schedule IIF'!J69","v":0},null,130,0]
[null,"BSCR Rating 2",{"$f":"'Schedule IIB'!D70+'Schedule IIC'!D70+'Schedule IID'!D70+'Schedule IIE'!D70+'Schedule IIF'!D70","v":0},{"$f":"'Schedule IIB'!F70+'Schedule IIC'!F70+'Schedule IID'!F70+'Schedule IIE'!F70+'Schedule IIF'!F70","v":0},{"$f":"'Schedule IIB'!H70+'Schedule IIC'!H70+'Schedule IID'!H70+'Schedule IIE'!H70+'Schedule IIF'!H70","v":0},{"$f":"'Schedule IIB'!J70+'Schedule IIC'!J70+'Schedule IID'!J70+'Schedule IIE'!J70+'Schedule IIF'!J70","v":0},null,150,0]
[null,"BSCR Rating 3",{"$f":"'Schedule IIB'!D71+'Schedule IIC'!D71+'Schedule IID'!D71+'Schedule IIE'!D71+'Schedule IIF'!D71","v":0},{"$f":"'Schedule IIB'!F71+'Schedule IIC'!F71+'Schedule IID'!F71+'Schedule IIE'!F71+'Schedule IIF'!F71","v":0},{"$f":"'Schedule IIB'!H71+'Schedule IIC'!H71+'Schedule IID'!H71+'Schedule IIE'!H71+'Schedule IIF'!H71","v":0},{"$f":"'Schedule IIB'!J71+'Schedule IIC'!J71+'Schedule IID'!J71+'Schedule IIE'!J71+'Schedule IIF'!J71","v":0},null,260,0]
[null,"BSCR Rating 4",{"$f":"'Schedule IIB'!D72+'Schedule IIC'!D72+'Schedule IID'!D72+'Schedule IIE'!D72+'Schedule IIF'!D72","v":0},{"$f":"'Schedule IIB'!F72+'Schedule IIC'!F72+'Schedule IID'!F72+'Schedule IIE'!F72+'Schedule IIF'!F72","v":0},{"$f":"'Schedule IIB'!H72+'Schedule IIC'!H72+'Schedule IID'!H72+'Schedule IIE'!H72+'Schedule IIF'!H72","v":0},{"$f":"'Schedule IIB'!J72+'Schedule IIC'!J72+'Schedule IID'!J72+'Schedule IIE'!J72+'Schedule IIF'!J72","v":0},null,450,0]
[null,"BSCR Rating 5",{"$f":"'Schedule IIB'!D73+'Schedule IIC'!D73+'Schedule IID'!D73+'Schedule IIE'!D73+'Schedule IIF'!D73","v":0},{"$f":"'Schedule IIB'!F73+'Schedule IIC'!F73+'Schedule IID'!F73+'Schedule IIE'!F73+'Schedule IIF'!F73","v":0},{"$f":"'Schedule IIB'!H73+'Schedule IIC'!H73+'Schedule IID'!H73+'Schedule IIE'!H73+'Schedule IIF'!H73","v":0},{"$f":"'Schedule IIB'!J73+'Schedule IIC'!J73+'Schedule IID'!J73+'Schedule IIE'!J73+'Schedule IIF'!J73","v":0},null,840,0]
[null,"BSCR Rating 6",{"$f":"'Schedule IIB'!D74+'Schedule IIC'!D74+'Schedule IID'!D74+'Schedule IIE'!D74+'Schedule IIF'!D74","v":0},{"$f":"'Schedule IIB'!F74+'Schedule IIC'!F74+'Schedule IID'!F74+'Schedule IIE'!F74+'Schedule IIF'!F74","v":0},{"$f":"'Schedule IIB'!H74+'Schedule IIC'!H74+'Schedule IID'!H74+'Schedule IIE'!H74+'Schedule IIF'!H74","v":0},{"$f":"'Schedule IIB'!J74+'Schedule IIC'!J74+'Schedule IID'!J74+'Schedule IIE'!J74+'Schedule IIF'!J74","v":0},null,1620,0]
[null,"BSCR Rating 7",{"$f":"'Schedule IIB'!D75+'Schedule IIC'!D75+'Schedule IID'!D75+'Schedule IIE'!D75+'Schedule IIF'!D75","v":0},{"$f":"'Schedule IIB'!F75+'Schedule IIC'!F75+'Schedule IID'!F75+'Schedule IIE'!F75+'Schedule IIF'!F75","v":0},{"$f":"'Schedule IIB'!H75+'Schedule IIC'!H75+'Schedule IID'!H75+'Schedule IIE'!H75+'Schedule IIF'!H75","v":0},{"$f":"'Schedule IIB'!J75+'Schedule IIC'!J75+'Schedule IID'!J75+'Schedule IIE'!J75+'Schedule IIF'!J75","v":0},null,1620,0]
[null,"BSCR Rating 8",{"$f":"'Schedule IIB'!D76+'Schedule IIC'!D76+'Schedule IID'!D76+'Schedule IIE'!D76+'Schedule IIF'!D76","v":0},{"$f":"'Schedule IIB'!F76+'Schedule IIC'!F76+'Schedule IID'!F76+'Schedule IIE'!F76+'Schedule IIF'!F76","v":0},{"$f":"'Schedule IIB'!H76+'Schedule IIC'!H76+'Schedule IID'!H76+'Schedule IIE'!H76+'Schedule IIF'!H76","v":0},{"$f":"'Schedule IIB'!J76+'Schedule IIC'!J76+'Schedule IID'!J76+'Schedule IIE'!J76+'Schedule IIF'!J76","v":0},null,1620,0]
[null,"Total Spread Up",{"$f":"SUM(C105:C113)","v":0},{"$f":"SUM(D105:D113)","v":0},{"$f":"SUM(E105:E113)","v":0},{"$f":"SUM(F105:F113)","v":0},null,null,{"$f":"MAX(SUM(I105:I113),0)","v":0}]
[]
[null,null,"SPREAD DOWN"]
[null,null,"Long Exposures",null,"Short Exposures"]
[null,null,"Before Shock","After Shock","Before Shock","After Shock"]
[null,"Spread Down",null,null,null,null,null,"Shock (%)"]
[null,"BSCR Rating 0 ",{"$f":"'Schedule IIB'!N68+'Schedule IIC'!N68+'Schedule IID'!N68+'Schedule IIE'!N68+'Schedule IIF'!N68","v":0},{"$f":"'Schedule IIB'!P68+'Schedule IIC'!P68+'Schedule IID'!P68+'Schedule IIE'!P68+'Schedule IIF'!P68","v":0},{"$f":"'Schedule IIB'!R68+'Schedule IIC'!R68+'Schedule IID'!R68+'Schedule IIE'!R68+'Schedule IIF'!R68","v":0},{"$f":"'Schedule IIB'!T68+'Schedule IIC'!T68+'Schedule IID'!T68+'Schedule IIE'!T68+'Schedule IIF'!T68","v":0},null,0,{"$f":"(C120-D120)+MAX(0,E120-F120)","v":0}]
[null,"BSCR Rating 1",{"$f":"'Schedule IIB'!N69+'Schedule IIC'!N69+'Schedule IID'!N69+'Schedule IIE'!N69+'Schedule IIF'!N69","v":0},{"$f":"'Schedule IIB'!P69+'Schedule IIC'!P69+'Schedule IID'!P69+'Schedule IIE'!P69+'Schedule IIF'!P69","v":0},{"$f":"'Schedule IIB'!R69+'Schedule IIC'!R69+'Schedule IID'!R69+'Schedule IIE'!R69+'Schedule IIF'!R69","v":0},{"$f":"'Schedule IIB'!T69+'Schedule IIC'!T69+'Schedule IID'!T69+'Schedule IIE'!T69+'Schedule IIF'!T69","v":0},null,-0.75,0]
[null,"BSCR Rating 2",{"$f":"'Schedule IIB'!N70+'Schedule IIC'!N70+'Schedule IID'!N70+'Schedule IIE'!N70+'Schedule IIF'!N70","v":0},{"$f":"'Schedule IIB'!P70+'Schedule IIC'!P70+'Schedule IID'!P70+'Schedule IIE'!P70+'Schedule IIF'!P70","v":0},{"$f":"'Schedule IIB'!R70+'Schedule IIC'!R70+'Schedule IID'!R70+'Schedule IIE'!R70+'Schedule IIF'!R70","v":0},{"$f":"'Schedule IIB'!T70+'Schedule IIC'!T70+'Schedule IID'!T70+'Schedule IIE'!T70+'Schedule IIF'!T70","v":0},null,-0.75,0]
[null,"BSCR Rating 3",{"$f":"'Schedule IIB'!N71+'Schedule IIC'!N71+'Schedule IID'!N71+'Schedule IIE'!N71+'Schedule IIF'!N71","v":0},{"$f":"'Schedule IIB'!P71+'Schedule IIC'!P71+'Schedule IID'!P71+'Schedule IIE'!P71+'Schedule IIF'!P71","v":0},{"$f":"'Schedule IIB'!R71+'Schedule IIC'!R71+'Schedule IID'!R71+'Schedule IIE'!R71+'Schedule IIF'!R71","v":0},{"$f":"'Schedule IIB'!T71+'Schedule IIC'!T71+'Schedule IID'!T71+'Schedule IIE'!T71+'Schedule IIF'!T71","v":0},null,-0.75,0]
[null,"BSCR Rating 4",{"$f":"'Schedule IIB'!N72+'Schedule IIC'!N72+'Schedule IID'!N72+'Schedule IIE'!N72+'Schedule IIF'!N72","v":0},{"$f":"'Schedule IIB'!P72+'Schedule IIC'!P72+'Schedule IID'!P72+'Schedule IIE'!P72+'Schedule IIF'!P72","v":0},{"$f":"'Schedule IIB'!R72+'Schedule IIC'!R72+'Schedule IID'!R72+'Schedule IIE'!R72+'Schedule IIF'!R72","v":0},{"$f":"'Schedule IIB'!T72+'Schedule IIC'!T72+'Schedule IID'!T72+'Schedule IIE'!T72+'Schedule IIF'!T72","v":0},null,-0.75,0]
[null,"BSCR Rating 5",{"$f":"'Schedule IIB'!N73+'Schedule IIC'!N73+'Schedule IID'!N73+'Schedule IIE'!N73+'Schedule IIF'!N73","v":0},{"$f":"'Schedule IIB'!P73+'Schedule IIC'!P73+'Schedule IID'!P73+'Schedule IIE'!P73+'Schedule IIF'!P73","v":0},{"$f":"'Schedule IIB'!R73+'Schedule IIC'!R73+'Schedule IID'!R73+'Schedule IIE'!R73+'Schedule IIF'!R73","v":0},{"$f":"'Schedule IIB'!T73+'Schedule IIC'!T73+'Schedule IID'!T73+'Schedule IIE'!T73+'Schedule IIF'!T73","v":0},null,-0.75,0]
[null,"BSCR Rating 6",{"$f":"'Schedule IIB'!N74+'Schedule IIC'!N74+'Schedule IID'!N74+'Schedule IIE'!N74+'Schedule IIF'!N74","v":0},{"$f":"'Schedule IIB'!P74+'Schedule IIC'!P74+'Schedule IID'!P74+'Schedule IIE'!P74+'Schedule IIF'!P74","v":0},{"$f":"'Schedule IIB'!R74+'Schedule IIC'!R74+'Schedule IID'!R74+'Schedule IIE'!R74+'Schedule IIF'!R74","v":0},{"$f":"'Schedule IIB'!T74+'Schedule IIC'!T74+'Schedule IID'!T74+'Schedule IIE'!T74+'Schedule IIF'!T74","v":0},null,-0.75,0]
[null,"BSCR Rating 7",{"$f":"'Schedule IIB'!N75+'Schedule IIC'!N75+'Schedule IID'!N75+'Schedule IIE'!N75+'Schedule IIF'!N75","v":0},{"$f":"'Schedule IIB'!P75+'Schedule IIC'!P75+'Schedule IID'!P75+'Schedule IIE'!P75+'Schedule IIF'!P75","v":0},{"$f":"'Schedule IIB'!R75+'Schedule IIC'!R75+'Schedule IID'!R75+'Schedule IIE'!R75+'Schedule IIF'!R75","v":0},{"$f":"'Schedule IIB'!T75+'Schedule IIC'!T75+'Schedule IID'!T75+'Schedule IIE'!T75+'Schedule IIF'!T75","v":0},null,-0.75,0]
[null,"BSCR Rating 8",{"$f":"'Schedule IIB'!N76+'Schedule IIC'!N76+'Schedule IID'!N76+'Schedule IIE'!N76+'Schedule IIF'!N76","v":0},{"$f":"'Schedule IIB'!P76+'Schedule IIC'!P76+'Schedule IID'!P76+'Schedule IIE'!P76+'Schedule IIF'!P76","v":0},{"$f":"'Schedule IIB'!R76+'Schedule IIC'!R76+'Schedule IID'!R76+'Schedule IIE'!R76+'Schedule IIF'!R76","v":0},{"$f":"'Schedule IIB'!T76+'Schedule IIC'!T76+'Schedule IID'!T76+'Schedule IIE'!T76+'Schedule IIF'!T76","v":0},null,-0.75,0]
[null,"Total Spread Down",{"$f":"SUM(C120:C128)","v":0},{"$f":"SUM(D120:D128)","v":0},{"$f":"SUM(E120:E128)","v":0},{"$f":"SUM(F120:F128)","v":0},null,null,{"$f":"MAX(SUM(I120:I128),0)","v":0}]
[]
[null,"Spread Up",null,null,null,null,null,null,{"$f":"I114","v":0}]
[null,"Spread Down",null,null,null,null,null,null,{"$f":"I129","v":0}]
[]
[null,"(g) Total Spread Risk",null,null,null,null,null,null,{"$f":"MAX(I131,I132)","v":0}]
[]
[null,"(h)  TOTAL FIXED INCOME INVESTMENTS [ (a)+(b)+(c)+(d)+(e)+(f)+(g) ]",null,null,null,null,{"$f":"G22+G36+G51+G66+G75+G97","v":0},null,{"$f":"I22+I36+I51+I66+I75+I97+I134","v":0}]

{"sheet":"Equity Investments (old)","index":115,"n_rows":43,"n_cols":6,"rows_kept":43,"cut":false,"hidden":true,"merged":[[79,0,79,1],[0,5,0,6]]}
["EQUITY INVESTMENTS",null,null,null,null,{"$f":"HYPERLINK(\"#'Index'!A1\",\"Return to Index\")","v":"Return to Index"}]
[{"$f":"'Company Information'!C7","v":"Enter Company Name"}]
[{"$f":"\"Equity Investment Risk\" & \"($\"&IF(CONFIGURATION!$B$12>1,MID(CONFIGURATION!$B$12,2,LEN(CONFIGURATION!$B$12)),\"\")&\")\"","v":"Equity Investment Risk($000)"},null,{"$f":"'Company Information'!C3","v":"2022-12-31"},-1,-2,-3]
[]
[]
[null,"TYPE OF ",null,"ASSET","CAPITAL","REQUIRED"]
[null,"EQUITY INVESTMENTS","STATEMENT SOURCE","VALUE","FACTOR","CAPITAL"]
[]
[null,"(a)  Common Stocks",null,null,null,"(1) x (2)"]
[]
[null,"Non-Affiliated (Quoted)","Sch II EBS, Line (19), Column (1) and Sch IIA EBS, Line (19), Column (1)",{"$f":"'Schedule II'!D41+'Schedule IIA'!D41","v":0},0.14399999999999999,{"$f":"IF($D$11<0,0,$D$11*$E$11)","v":0}]
[null,"Non-Affiliated (Unquoted)","Sch II EBS, Line (20), Column (1) and Sch IIA EBS, Line (20), Column (1)",{"$f":"'Schedule II'!D42+'Schedule IIA'!D42","v":0},0.14399999999999999,{"$f":"IF($D$12<0,0,$D$12*$E$12)","v":0}]
[null,"Equity Mutual Funds","Sch II EBS, Line (21), Column (5) and Sch IIA EBS, Line (21), Column (5)",{"$f":"+'Schedule II'!L44+'Schedule IIA'!L44","v":0},0.14399999999999999,{"$f":"IF($D$13<0,0,$D$13*$E$13)","v":0}]
[]
[null,"(a)  SUBTOTAL - COMMON STOCKS",null,{"$f":"SUM(D11:D13)","v":0},null,{"$f":"IF(SUM(F11:F13)>=0,SUM(F11:F13),0)","v":0}]
[]
[null,"(b)  Preferred Stocks"]
[]
[null,"BSCR Rating"]
[null,1,"Sch II EBS, Line (11), Column (3) and Sch IIA EBS, Line (11), Column (3)",{"$f":"'Schedule II'!H33+'Schedule IIA'!H33","v":0},6.0000000000000001E-3,{"$f":"IF(D20<0,0,D20*E20)","v":0}]
[null,2,"Sch II EBS, Line (12), Column (3) and Sch IIA EBS, Line (12), Column (3)",{"$f":"'Schedule II'!H34+'Schedule IIA'!H34","v":0},1.2E-2,0]
[null,3,"Sch II EBS, Line (13), Column (3) and Sch IIA EBS, Line (13), Column (3)",{"$f":"'Schedule II'!H35+'Schedule IIA'!H35","v":0},0.02,0]
[null,4,"Sch II EBS, Line (14), Column (3) and Sch IIA EBS, Line (14), Column (3)",{"$f":"'Schedule II'!H36+'Schedule IIA'!H36","v":0},0.04,0]
[null,5,"Sch II EBS, Line (15), Column (3) and Sch IIA EBS, Line (15), Column (3)",{"$f":"'Schedule II'!H37+'Schedule IIA'!H37","v":0},0.11,0]
[null,6,"Sch II EBS, Line (16), Column (3) and Sch IIA EBS, Line (16), Column (3)",{"$f":"'Schedule II'!H38+'Schedule IIA'!H38","v":0},0.25,0]
[null,7,"Sch II EBS, Line (17), Column (3) and Sch IIA EBS, Line (17), Column (3)",{"$f":"'Schedule II'!H39+'Schedule IIA'!H39","v":0},0.35,0]
[null,8,"Sch II EBS, Line (18), Column (3) and Sch IIA EBS, Line (18), Column (3)",{"$f":"'Schedule II'!H40+'Schedule IIA'!H40","v":0},0.35,0]
[]
[null,"(b)  SUBTOTAL - PREFERRED STOCKS",null,{"$f":"SUM(D20:D27)","v":0},null,{"$f":"IF(SUM(F20:F27)>=0,SUM(F20:F27),0)","v":0}]
[]
[null,"(c)  Other Equity Investments"]
[]
[null,"Real Estate","Form 1SFS, Lines (7)",{"$f":"'Form 1SFS (Consolidated)'!M57","v":0},0.1,{"$f":"IF($D$33<0,0,$D$33*$E$33)","v":0}]
[null,"Other Equity Investments","Form 1SFS, Lines (2e), (3e) & Schedule IIA EBS, Line 21, Column (7)",{"$f":"'Form 1SFS (Consolidated)'!M28+'Form 1SFS (Consolidated)'!M45+'Schedule IIA'!P44","v":0},0.2,{"$f":"IF($D$34<0,0,$D$34*$E$34)","v":0}]
[null,"Other Tangible Assets ","Form 1SFS, Lines (13h) and (14d)",{"$f":"'Form 1SFS (Consolidated)'!M83+'Form 1SFS (Consolidated)'!M89","v":0},0.2,{"$f":"IF($D$35<0,0,$D$35*$E$35)","v":0}]
[]
[null,"(c)  SUBTOTAL - OTHER EQUITY INVESTMENTS",null,{"$f":"SUM(D33:D35)","v":0},null,{"$f":"IF(SUM(F33:F35)>=0,SUM(F33:F35),0)","v":0}]
[]
[null,"(d)  Investments in Affiliates",null,{"$f":"'Form 1SFS (Consolidated)'!M48","v":0},0.05,{"$f":"IF(D39<0,0,D39*E39)","v":0}]
[]
[null,"(d)  SUBTOTAL - INVESTMENTS IN AFFILIATES",null,{"$f":"SUM(D39:D39)","v":0},null,{"$f":"IF(SUM(F39:F39)>=0,SUM(F39:F39),0)","v":0}]
[]
[null,"(e)  TOTAL EQUITY INVESTMENTS [ (a) + (b) + (c) + (d) ]",null,{"$f":"D15+D29+D37+D41","v":0},null,{"$f":"F15+F29+F37+F41","v":0}]

{"sheet":"Equity Investments","index":116,"n_rows":56,"n_cols":18,"rows_kept":56,"cut":false,"hidden":false,"merged":[[5,17,6,17],[4,15,6,15],[58,0,58,1],[4,3,4,8],[6,5,6,6],[6,7,6,8],[5,5,5,8],[5,3,6,4],[4,9,4,11],[5,9,6,9],[5,10,6,10],[5,11,6,11]]}
["EQUITY INVESTMENTS ",null,null,null,null,null,null,null,null,null,null,null,null,null,null,null,null,{"$f":"HYPERLINK(\"#'Index'!A1\",\"Return to Index\")","v":"Return to Index"}]
[{"$f":"'Company Information'!C7","v":"Enter Company Name"}]
[{"$f":"\"Equity Investment Risk\" & \"($\"&IF(CONFIGURATION!$B$12>1,MID(CONFIGURATION!$B$12,2,LEN(CONFIGURATION!$B$12)),\"\")&\")\"","v":"Equity Investment Risk($000)"},null,{"$f":"'Company Information'!C3","v":"2022-12-31"},-1,{"$f":"D3-1","v":-2},{"$f":"E3-1","v":-3},-4,-5,-6,-7,-8,-9,null,{"$f":"L3-1","v":-10},null,{"$f":"N3-1","v":-11},null,{"$f":"P3-1","v":-12}]
[]
[null,null,null,"ASSETS",null,null,null,null,null,"LIABILITIES",null,null,null,null,null,"WITHOUT MANAGEMENT ACTIONS"]
[null,null,null,"Long Exposure",null,"Short Exposure",null,null,null,null,"Without Mgmt Actions","With Mgmt Actions",null,null,null,null,null,"WITH MANAGEMENT ACTIONS"]
[null,"TYPE OF ",null,null,null,"Qualifying as Assets held for risk-mitigation purposes",null,"Not Qualifying as Assets held for risk-mitigation purposes",null,null,null,null,null,"CAPITAL"]
[null,"EQUITY INVESTMENTS","STATEMENT SOURCE","Before Shock","After Shock","Before Shock","After Shock","Before Shock","After Shock","Before Shock","After Shock","After Shock",null,"FACTOR",null,"REQUIRED CAPITAL",null,"CAPITAL"]
[]
[null,"Type 1 Equity Holdings"]
[null,"Strategic Holdings - Listed","Sch IIB, IIC, IID, IIE and IIF Line (15)",{"$f":"'Schedule IIB'!D39+'Schedule IIC'!D39+'Schedule IID'!D39+'Schedule IIE'!D39+'Schedule IIF'!D39","v":0},{"$f":"'Schedule IIB'!F39+'Schedule IIC'!F39+'Schedule IID'!F39+'Schedule IIE'!F39+'Schedule IIF'!F39","v":0},{"$f":"'Schedule IIB'!H39+'Schedule IIC'!H39+'Schedule IID'!H39+'Schedule IIE'!H39+'Schedule IIF'!H39","v":0},{"$f":"'Schedule IIB'!J39+'Schedule IIC'!J39+'Schedule IID'!J39+'Schedule IIE'!J39+'Schedule IIF'!J39","v":0},{"$f":"'Schedule IIB'!L39+'Schedule IIC'!L39+'Schedule IID'!L39+'Schedule IIE'!L39+'Schedule IIF'!L39","v":0},{"$f":"'Schedule IIB'!N39+'Schedule IIC'!N39+'Schedule IID'!N39+'Schedule IIE'!N39+'Schedule IIF'!N39","v":0},{"$f":"'Schedule IIB'!P39+'Schedule IIC'!P39+'Schedule IID'!P39+'Schedule IIE'!P39+'Schedule IIF'!P39","v":0},{"$f":"'Schedule IIB'!R39+'Schedule IIC'!R39+'Schedule IID'!R39+'Schedule IIE'!R39+'Schedule IIF'!R39","v":0},{"$f":"'Schedule IIB'!T39+'Schedule IIC'!T39+'Schedule IID'!T39+'Schedule IIE'!T39+'Schedule IIF'!T39","v":0},null,0.2,null,{"$f":"MAX(D11-E11,0)+(F11-G11)+MAX(H11-I11,0)+(K11-J11)","v":0},null,{"$f":"MAX(D11-E11,0)+(F11-G11)+MAX(H11-I11,0)+(L11-J11)","v":0}]
[null,"Duration Based","Sch IIB, IIC, IID, IIE and IIF Line (16)",{"$f":"'Schedule IIB'!D40+'Schedule IIC'!D40+'Schedule IID'!D40+'Schedule IIE'!D40+'Schedule IIF'!D40","v":0},{"$f":"'Schedule IIB'!F40+'Schedule IIC'!F40+'Schedule IID'!F40+'Schedule IIE'!F40+'Schedule IIF'!F40","v":0},{"$f":"'Schedule IIB'!H40+'Schedule IIC'!H40+'Schedule IID'!H40+'Schedule IIE'!H40+'Schedule IIF'!H40","v":0},{"$f":"'Schedule IIB'!J40+'Schedule IIC'!J40+'Schedule IID'!J40+'Schedule IIE'!J40+'Schedule IIF'!J40","v":0},{"$f":"'Schedule IIB'!L40+'Schedule IIC'!L40+'Schedule IID'!L40+'Schedule IIE'!L40+'Schedule IIF'!L40","v":0},{"$f":"'Schedule IIB'!N40+'Schedule IIC'!N40+'Schedule IID'!N40+'Schedule IIE'!N40+'Schedule IIF'!N40","v":0},{"$f":"'Schedule IIB'!P40+'Schedule IIC'!P40+'Schedule IID'!P40+'Schedule IIE'!P40+'Schedule IIF'!P40","v":0},{"$f":"'Schedule IIB'!R40+'Schedule IIC'!R40+'Schedule IID'!R40+'Schedule IIE'!R40+'Schedule IIF'!R40","v":0},{"$f":"'Schedule IIB'!T40+'Schedule IIC'!T40+'Schedule IID'!T40+'Schedule IIE'!T40+'Schedule IIF'!T40","v":0},null,0.2,null,0,null,{"$f":"MAX(D12-E12,0)+(F12-G12)+MAX(H12-I12,0)+(L12-J12)","v":0}]
[null,"Listed Equity Securities in Developed Markets","Sch IIB, IIC, IID, IIE and IIF Line (17)",{"$f":"'Schedule IIB'!D41+'Schedule IIC'!D41+'Schedule IID'!D41+'Schedule IIE'!D41+'Schedule IIF'!D41","v":0},{"$f":"'Schedule IIB'!F41+'Schedule IIC'!F41+'Schedule IID'!F41+'Schedule IIE'!F41+'Schedule IIF'!F41","v":0},{"$f":"'Schedule IIB'!H41+'Schedule IIC'!H41+'Schedule IID'!H41+'Schedule IIE'!H41+'Schedule IIF'!H41","v":0},{"$f":"'Schedule IIB'!J41+'Schedule IIC'!J41+'Schedule IID'!J41+'Schedule IIE'!J41+'Schedule IIF'!J41","v":0},{"$f":"'Schedule IIB'!L41+'Schedule IIC'!L41+'Schedule IID'!L41+'Schedule IIE'!L41+'Schedule IIF'!L41","v":0},{"$f":"'Schedule IIB'!N41+'Schedule IIC'!N41+'Schedule IID'!N41+'Schedule IIE'!N41+'Schedule IIF'!N41","v":0},{"$f":"'Schedule IIB'!P41+'Schedule IIC'!P41+'Schedule IID'!P41+'Schedule IIE'!P41+'Schedule IIF'!P41","v":0},{"$f":"'Schedule IIB'!R41+'Schedule IIC'!R41+'Schedule IID'!R41+'Schedule IIE'!R41+'Schedule IIF'!R41","v":0},{"$f":"'Schedule IIB'!T41+'Schedule IIC'!T41+'Schedule IID'!T41+'Schedule IIE'!T41+'Schedule IIF'!T41","v":0},null,0.35,null,0,null,0]
[null,"Preferred Stocks, BSCR Rating 1","Sch IIB, IIC, IID, IIE and IIF Line (18)",{"$f":"'Schedule IIB'!D42+'Schedule IIC'!D42+'Schedule IID'!D42+'Schedule IIE'!D42+'Schedule IIF'!D42","v":0},{"$f":"'Schedule IIB'!F42+'Schedule IIC'!F42+'Schedule IID'!F42+'Schedule IIE'!F42+'Schedule IIF'!F42","v":0},{"$f":"'Schedule IIB'!H42+'Schedule IIC'!H42+'Schedule IID'!H42+'Schedule IIE'!H42+'Schedule IIF'!H42","v":0},{"$f":"'Schedule IIB'!J42+'Schedule IIC'!J42+'Schedule IID'!J42+'Schedule IIE'!J42+'Schedule IIF'!J42","v":0},{"$f":"'Schedule IIB'!L42+'Schedule IIC'!L42+'Schedule IID'!L42+'Schedule IIE'!L42+'Schedule IIF'!L42","v":0},{"$f":"'Schedule IIB'!N42+'Schedule IIC'!N42+'Schedule IID'!N42+'Schedule IIE'!N42+'Schedule IIF'!N42","v":0},{"$f":"'Schedule IIB'!P42+'Schedule IIC'!P42+'Schedule IID'!P42+'Schedule IIE'!P42+'Schedule IIF'!P42","v":0},{"$f":"'Schedule IIB'!R42+'Schedule IIC'!R42+'Schedule IID'!R42+'Schedule IIE'!R42+'Schedule IIF'!R42","v":0},{"$f":"'Schedule IIB'!T42+'Schedule IIC'!T42+'Schedule IID'!T42+'Schedule IIE'!T42+'Schedule IIF'!T42","v":0},null,6.0000000000000001E-3,null,0,null,0]
[null,"Preferred Stocks, BSCR Rating 2","Sch IIB, IIC, IID, IIE and IIF Line (19)",{"$f":"'Schedule IIB'!D43+'Schedule IIC'!D43+'Schedule IID'!D43+'Schedule IIE'!D43+'Schedule IIF'!D43","v":0},{"$f":"'Schedule IIB'!F43+'Schedule IIC'!F43+'Schedule IID'!F43+'Schedule IIE'!F43+'Schedule IIF'!F43","v":0},{"$f":"'Schedule IIB'!H43+'Schedule IIC'!H43+'Schedule IID'!H43+'Schedule IIE'!H43+'Schedule IIF'!H43","v":0},{"$f":"'Schedule IIB'!J43+'Schedule IIC'!J43+'Schedule IID'!J43+'Schedule IIE'!J43+'Schedule IIF'!J43","v":0},{"$f":"'Schedule IIB'!L43+'Schedule IIC'!L43+'Schedule IID'!L43+'Schedule IIE'!L43+'Schedule IIF'!L43","v":0},{"$f":"'Schedule IIB'!N43+'Schedule IIC'!N43+'Schedule IID'!N43+'Schedule IIE'!N43+'Schedule IIF'!N43","v":0},{"$f":"'Schedule IIB'!P43+'Schedule IIC'!P43+'Schedule IID'!P43+'Schedule IIE'!P43+'Schedule IIF'!P43","v":0},{"$f":"'Schedule IIB'!R43+'Schedule IIC'!R43+'Schedule IID'!R43+'Schedule IIE'!R43+'Schedule IIF'!R43","v":0},{"$f":"'Schedule IIB'!T43+'Schedule IIC'!T43+'Schedule IID'!T43+'Schedule IIE'!T43+'Schedule IIF'!T43","v":0},null,1.2E-2,null,0,null,0]
[null,"Preferred Stocks, BSCR Rating 3","Sch IIB, IIC, IID, IIE and IIF Line (20)",{"$f":"'Schedule IIB'!D44+'Schedule IIC'!D44+'Schedule IID'!D44+'Schedule IIE'!D44+'Schedule IIF'!D44","v":0},{"$f":"'Schedule IIB'!F44+'Schedule IIC'!F44+'Schedule IID'!F44+'Schedule IIE'!F44+'Schedule IIF'!F44","v":0},{"$f":"'Schedule IIB'!H44+'Schedule IIC'!H44+'Schedule IID'!H44+'Schedule IIE'!H44+'Schedule IIF'!H44","v":0},{"$f":"'Schedule IIB'!J44+'Schedule IIC'!J44+'Schedule IID'!J44+'Schedule IIE'!J44+'Schedule IIF'!J44","v":0},{"$f":"'Schedule IIB'!L44+'Schedule IIC'!L44+'Schedule IID'!L44+'Schedule IIE'!L44+'Schedule IIF'!L44","v":0},{"$f":"'Schedule IIB'!N44+'Schedule IIC'!N44+'Schedule IID'!N44+'Schedule IIE'!N44+'Schedule IIF'!N44","v":0},{"$f":"'Schedule IIB'!P44+'Schedule IIC'!P44+'Schedule IID'!P44+'Schedule IIE'!P44+'Schedule IIF'!P44","v":0},{"$f":"'Schedule IIB'!R44+'Schedule IIC'!R44+'Schedule IID'!R44+'Schedule IIE'!R44+'Schedule IIF'!R44","v":0},{"$f":"'Schedule IIB'!T44+'Schedule IIC'!T44+'Schedule IID'!T44+'Schedule IIE'!T44+'Schedule IIF'!T44","v":0},null,0.02,null,0,null,0]
[null,"Preferred Stocks, BSCR Rating 4","Sch IIB, IIC, IID, IIE and IIF Line (21)",{"$f":"'Schedule IIB'!D45+'Schedule IIC'!D45+'Schedule IID'!D45+'Schedule IIE'!D45+'Schedule IIF'!D45","v":0},{"$f":"'Schedule IIB'!F45+'Schedule IIC'!F45+'Schedule IID'!F45+'Schedule IIE'!F45+'Schedule IIF'!F45","v":0},{"$f":"'Schedule IIB'!H45+'Schedule IIC'!H45+'Schedule IID'!H45+'Schedule IIE'!H45+'Schedule IIF'!H45","v":0},{"$f":"'Schedule IIB'!J45+'Schedule IIC'!J45+'Schedule IID'!J45+'Schedule IIE'!J45+'Schedule IIF'!J45","v":0},{"$f":"'Schedule IIB'!L45+'Schedule IIC'!L45+'Schedule IID'!L45+'Schedule IIE'!L45+'Schedule IIF'!L45","v":0},{"$f":"'Schedule IIB'!N45+'Schedule IIC'!N45+'Schedule IID'!N45+'Schedule IIE'!N45+'Schedule IIF'!N45","v":0},{"$f":"'Schedule IIB'!P45+'Schedule IIC'!P45+'Schedule IID'!P45+'Schedule IIE'!P45+'Schedule IIF'!P45","v":0},{"$f":"'Schedule IIB'!R45+'Schedule IIC'!R45+'Schedule IID'!R45+'Schedule IIE'!R45+'Schedule IIF'!R45","v":0},{"$f":"'Schedule IIB'!T45+'Schedule IIC'!T45+'Schedule IID'!T45+'Schedule IIE'!T45+'Schedule IIF'!T45","v":0},null,0.04,null,0,null,0]
[null,"Preferred Stocks, BSCR Rating 5","Sch IIB, IIC, IID, IIE and IIF Line (22)",{"$f":"'Schedule IIB'!D46+'Schedule IIC'!D46+'Schedule IID'!D46+'Schedule IIE'!D46+'Schedule IIF'!D46","v":0},{"$f":"'Schedule IIB'!F46+'Schedule IIC'!F46+'Schedule IID'!F46+'Schedule IIE'!F46+'Schedule IIF'!F46","v":0},{"$f":"'Schedule IIB'!H46+'Schedule IIC'!H46+'Schedule IID'!H46+'Schedule IIE'!H46+'Schedule IIF'!H46","v":0},{"$f":"'Schedule IIB'!J46+'Schedule IIC'!J46+'Schedule IID'!J46+'Schedule IIE'!J46+'Schedule IIF'!J46","v":0},{"$f":"'Schedule IIB'!L46+'Schedule IIC'!L46+'Schedule IID'!L46+'Schedule IIE'!L46+'Schedule IIF'!L46","v":0},{"$f":"'Schedule IIB'!N46+'Schedule IIC'!N46+'Schedule IID'!N46+'Schedule IIE'!N46+'Schedule IIF'!N46","v":0},{"$f":"'Schedule IIB'!P46+'Schedule IIC'!P46+'Schedule IID'!P46+'Schedule IIE'!P46+'Schedule IIF'!P46","v":0},{"$f":"'Schedule IIB'!R46+'Schedule IIC'!R46+'Schedule IID'!R46+'Schedule IIE'!R46+'Schedule IIF'!R46","v":0},{"$f":"'Schedule IIB'!T46+'Schedule IIC'!T46+'Schedule IID'!T46+'Schedule IIE'!T46+'Schedule IIF'!T46","v":0},null,0.11,null,0,null,0]
[null,"Preferred Stocks, BSCR Rating 6","Sch IIB, IIC, IID, IIE and IIF Line (23)",{"$f":"'Schedule IIB'!D47+'Schedule IIC'!D47+'Schedule IID'!D47+'Schedule IIE'!D47+'Schedule IIF'!D47","v":0},{"$f":"'Schedule IIB'!F47+'Schedule IIC'!F47+'Schedule IID'!F47+'Schedule IIE'!F47+'Schedule IIF'!F47","v":0},{"$f":"'Schedule IIB'!H47+'Schedule IIC'!H47+'Schedule IID'!H47+'Schedule IIE'!H47+'Schedule IIF'!H47","v":0},{"$f":"'Schedule IIB'!J47+'Schedule IIC'!J47+'Schedule IID'!J47+'Schedule IIE'!J47+'Schedule IIF'!J47","v":0},{"$f":"'Schedule IIB'!L47+'Schedule IIC'!L47+'Schedule IID'!L47+'Schedule IIE'!L47+'Schedule IIF'!L47","v":0},{"$f":"'Schedule IIB'!N47+'Schedule IIC'!N47+'Schedule IID'!N47+'Schedule IIE'!N47+'Schedule IIF'!N47","v":0},{"$f":"'Schedule IIB'!P47+'Schedule IIC'!P47+'Schedule IID'!P47+'Schedule IIE'!P47+'Schedule IIF'!P47","v":0},{"$f":"'Schedule IIB'!R47+'Schedule IIC'!R47+'Schedule IID'!R47+'Schedule IIE'!R47+'Schedule IIF'!R47","v":0},{"$f":"'Schedule IIB'!T47+'Schedule IIC'!T47+'Schedule IID'!T47+'Schedule IIE'!T47+'Schedule IIF'!T47","v":0},null,0.25,null,0,null,0]
[null,"Preferred Stocks, BSCR Rating 7","Sch IIB, IIC, IID, IIE and IIF Line (24)",{"$f":"'Schedule IIB'!D48+'Schedule IIC'!D48+'Schedule IID'!D48+'Schedule IIE'!D48+'Schedule IIF'!D48","v":0},{"$f":"'Schedule IIB'!F48+'Schedule IIC'!F48+'Schedule IID'!F48+'Schedule IIE'!F48+'Schedule IIF'!F48","v":0},{"$f":"'Schedule IIB'!H48+'Schedule IIC'!H48+'Schedule IID'!H48+'Schedule IIE'!H48+'Schedule IIF'!H48","v":0},{"$f":"'Schedule IIB'!J48+'Schedule IIC'!J48+'Schedule IID'!J48+'Schedule IIE'!J48+'Schedule IIF'!J48","v":0},{"$f":"'Schedule IIB'!L48+'Schedule IIC'!L48+'Schedule IID'!L48+'Schedule IIE'!L48+'Schedule IIF'!L48","v":0},{"$f":"'Schedule IIB'!N48+'Schedule IIC'!N48+'Schedule IID'!N48+'Schedule IIE'!N48+'Schedule IIF'!N48","v":0},{"$f":"'Schedule IIB'!P48+'Schedule IIC'!P48+'Schedule IID'!P48+'Schedule IIE'!P48+'Schedule IIF'!P48","v":0},{"$f":"'Schedule IIB'!R48+'Schedule IIC'!R48+'Schedule IID'!R48+'Schedule IIE'!R48+'Schedule IIF'!R48","v":0},{"$f":"'Schedule IIB'!T48+'Schedule IIC'!T48+'Schedule IID'!T48+'Schedule IIE'!T48+'Schedule IIF'!T48","v":0},null,0.35,null,0,null,0]
[null,"Preferred Stocks, BSCR Rating 8","Sch IIB, IIC, IID, IIE and IIF Line (25)",{"$f":"'Schedule IIB'!D49+'Schedule IIC'!D49+'Schedule IID'!D49+'Schedule IIE'!D49+'Schedule IIF'!D49","v":0},{"$f":"'Schedule IIB'!F49+'Schedule IIC'!F49+'Schedule IID'!F49+'Schedule IIE'!F49+'Schedule IIF'!F49","v":0},{"$f":"'Schedule IIB'!H49+'Schedule IIC'!H49+'Schedule IID'!H49+'Schedule IIE'!H49+'Schedule IIF'!H49","v":0},{"$f":"'Schedule IIB'!J49+'Schedule IIC'!J49+'Schedule IID'!J49+'Schedule IIE'!J49+'Schedule IIF'!J49","v":0},{"$f":"'Schedule IIB'!L49+'Schedule IIC'!L49+'Schedule IID'!L49+'Schedule IIE'!L49+'Schedule IIF'!L49","v":0},{"$f":"'Schedule IIB'!N49+'Schedule IIC'!N49+'Schedule IID'!N49+'Schedule IIE'!N49+'Schedule IIF'!N49","v":0},{"$f":"'Schedule IIB'!P49+'Schedule IIC'!P49+'Schedule IID'!P49+'Schedule IIE'!P49+'Schedule IIF'!P49","v":0},{"$f":"'Schedule IIB'!R49+'Schedule IIC'!R49+'Schedule IID'!R49+'Schedule IIE'!R49+'Schedule IIF'!R49","v":0},{"$f":"'Schedule IIB'!T49+'Schedule IIC'!T49+'Schedule IID'!T49+'Schedule IIE'!T49+'Schedule IIF'!T49","v":0},null,0.35,null,0,null,0]
[null,"Equity Derivatives on Type 1 Equities","Sch IIB, IIC, IID, IIE and IIF Line (26)",{"$f":"'Schedule IIB'!D50+'Schedule IIC'!D50+'Schedule IID'!D50+'Schedule IIE'!D50+'Schedule IIF'!D50","v":0},{"$f":"'Schedule IIB'!F50+'Schedule IIC'!F50+'Schedule IID'!F50+'Schedule IIE'!F50+'Schedule IIF'!F50","v":0},{"$f":"'Schedule IIB'!H50+'Schedule IIC'!H50+'Schedule IID'!H50+'Schedule IIE'!H50+'Schedule IIF'!H50","v":0},{"$f":"'Schedule IIB'!J50+'Schedule IIC'!J50+'Schedule IID'!J50+'Schedule IIE'!J50+'Schedule IIF'!J50","v":0},{"$f":"'Schedule IIB'!L50+'Schedule IIC'!L50+'Schedule IID'!L50+'Schedule IIE'!L50+'Schedule IIF'!L50","v":0},{"$f":"'Schedule IIB'!N50+'Schedule IIC'!N50+'Schedule IID'!N50+'Schedule IIE'!N50+'Schedule IIF'!N50","v":0},{"$f":"'Schedule IIB'!P50+'Schedule IIC'!P50+'Schedule IID'!P50+'Schedule IIE'!P50+'Schedule IIF'!P50","v":0},{"$f":"'Schedule IIB'!R50+'Schedule IIC'!R50+'Schedule IID'!R50+'Schedule IIE'!R50+'Schedule IIF'!R50","v":0},{"$f":"'Schedule IIB'!T50+'Schedule IIC'!T50+'Schedule IID'!T50+'Schedule IIE'!T50+'Schedule IIF'!T50","v":0},null,0.35,null,0,null,0]
[]
[null,"Subtotal - Type 1 Equity Holdings",null,{"$f":"SUM(D11:D23)","v":0},0,0,0,0,0,0,0,0,null,null,null,{"$f":"MAX(SUM(P11:P22),0)","v":0},null,{"$f":"MAX(SUM(R11:R22),0)","v":0}]
[]
[null,"Type 2 Equity Holdings"]
[null,"Strategic Holdings - Unlisted","Sch IIB, IIC, IID, IIE and IIF Line (27)",{"$f":"'Schedule IIB'!D51+'Schedule IIC'!D51+'Schedule IID'!D51+'Schedule IIE'!D51+'Schedule IIF'!D51","v":0},{"$f":"'Schedule IIB'!F51+'Schedule IIC'!F51+'Schedule IID'!F51+'Schedule IIE'!F51+'Schedule IIF'!F51","v":0},{"$f":"'Schedule IIB'!H51+'Schedule IIC'!H51+'Schedule IID'!H51+'Schedule IIE'!H51+'Schedule IIF'!H51","v":0},{"$f":"'Schedule IIB'!J51+'Schedule IIC'!J51+'Schedule IID'!J51+'Schedule IIE'!J51+'Schedule IIF'!J51","v":0},{"$f":"'Schedule IIB'!L51+'Schedule IIC'!L51+'Schedule IID'!L51+'Schedule IIE'!L51+'Schedule IIF'!L51","v":0},{"$f":"'Schedule IIB'!N51+'Schedule IIC'!N51+'Schedule IID'!N51+'Schedule IIE'!N51+'Schedule IIF'!N51","v":0},{"$f":"'Schedule IIB'!P51+'Schedule IIC'!P51+'Schedule IID'!P51+'Schedule IIE'!P51+'Schedule IIF'!P51","v":0},{"$f":"'Schedule IIB'!R51+'Schedule IIC'!R51+'Schedule IID'!R51+'Schedule IIE'!R51+'Schedule IIF'!R51","v":0},{"$f":"'Schedule IIB'!T51+'Schedule IIC'!T51+'Schedule IID'!T51+'Schedule IIE'!T51+'Schedule IIF'!T51","v":0},null,0.2,null,{"$f":"MAX(D27-E27,0)+(F27-G27)+MAX(H27-I27,0)+(K27-J27)","v":0},null,{"$f":"MAX(D27-E27,0)+(F27-G27)+MAX(H27-I27,0)+(L27-J27)","v":0}]
[null,"Other Equities","Sch IIB, IIC, IID, IIE and IIF Line (28)",{"$f":"'Schedule IIB'!D52+'Schedule IIC'!D52+'Schedule IID'!D52+'Schedule IIE'!D52+'Schedule IIF'!D52","v":0},{"$f":"'Schedule IIB'!F52+'Schedule IIC'!F52+'Schedule IID'!F52+'Schedule IIE'!F52+'Schedule IIF'!F52","v":0},{"$f":"'Schedule IIB'!H52+'Schedule IIC'!H52+'Schedule IID'!H52+'Schedule IIE'!H52+'Schedule IIF'!H52","v":0},{"$f":"'Schedule IIB'!J52+'Schedule IIC'!J52+'Schedule IID'!J52+'Schedule IIE'!J52+'Schedule IIF'!J52","v":0},{"$f":"'Schedule IIB'!L52+'Schedule IIC'!L52+'Schedule IID'!L52+'Schedule IIE'!L52+'Schedule IIF'!L52","v":0},{"$f":"'Schedule IIB'!N52+'Schedule IIC'!N52+'Schedule IID'!N52+'Schedule IIE'!N52+'Schedule IIF'!N52","v":0},{"$f":"'Schedule IIB'!P52+'Schedule IIC'!P52+'Schedule IID'!P52+'Schedule IIE'!P52+'Schedule IIF'!P52","v":0},{"$f":"'Schedule IIB'!R52+'Schedule IIC'!R52+'Schedule IID'!R52+'Schedule IIE'!R52+'Schedule IIF'!R52","v":0},{"$f":"'Schedule IIB'!T52+'Schedule IIC'!T52+'Schedule IID'!T52+'Schedule IIE'!T52+'Schedule IIF'!T52","v":0},null,0.45,null,0,null,0]
[null,"Letters of Credit","Sch IIB, IIC, IID, IIE and IIF Line (29)",{"$f":"'Schedule IIB'!D53+'Schedule IIC'!D53+'Schedule IID'!D53+'Schedule IIE'!D53+'Schedule IIF'!D53","v":0},{"$f":"'Schedule IIB'!F53+'Schedule IIC'!F53+'Schedule IID'!F53+'Schedule IIE'!F53+'Schedule IIF'!F53","v":0},{"$f":"'Schedule IIB'!H53+'Schedule IIC'!H53+'Schedule IID'!H53+'Schedule IIE'!H53+'Schedule IIF'!H53","v":0},{"$f":"'Schedule IIB'!J53+'Schedule IIC'!J53+'Schedule IID'!J53+'Schedule IIE'!J53+'Schedule IIF'!J53","v":0},{"$f":"'Schedule IIB'!L53+'Schedule IIC'!L53+'Schedule IID'!L53+'Schedule IIE'!L53+'Schedule IIF'!L53","v":0},{"$f":"'Schedule IIB'!N53+'Schedule IIC'!N53+'Schedule IID'!N53+'Schedule IIE'!N53+'Schedule IIF'!N53","v":0},{"$f":"'Schedule IIB'!P53+'Schedule IIC'!P53+'Schedule IID'!P53+'Schedule IIE'!P53+'Schedule IIF'!P53","v":0},{"$f":"'Schedule IIB'!R53+'Schedule IIC'!R53+'Schedule IID'!R53+'Schedule IIE'!R53+'Schedule IIF'!R53","v":0},{"$f":"'Schedule IIB'!T53+'Schedule IIC'!T53+'Schedule IID'!T53+'Schedule IIE'!T53+'Schedule IIF'!T53","v":0},null,0.2,null,0,null,0]
[null,"Intangible assets","Sch IIB, IIC, IID, IIE and IIF Line (30)",{"$f":"'Schedule IIB'!D54+'Schedule IIC'!D54+'Schedule IID'!D54+'Schedule IIE'!D54+'Schedule IIF'!D54","v":0},{"$f":"'Schedule IIB'!F54+'Schedule IIC'!F54+'Schedule IID'!F54+'Schedule IIE'!F54+'Schedule IIF'!F54","v":0},{"$f":"'Schedule IIB'!H54+'Schedule IIC'!H54+'Schedule IID'!H54+'Schedule IIE'!H54+'Schedule IIF'!H54","v":0},{"$f":"'Schedule IIB'!J54+'Schedule IIC'!J54+'Schedule IID'!J54+'Schedule IIE'!J54+'Schedule IIF'!J54","v":0},{"$f":"'Schedule IIB'!L54+'Schedule IIC'!L54+'Schedule IID'!L54+'Schedule IIE'!L54+'Schedule IIF'!L54","v":0},{"$f":"'Schedule IIB'!N54+'Schedule IIC'!N54+'Schedule IID'!N54+'Schedule IIE'!N54+'Schedule IIF'!N54","v":0},{"$f":"'Schedule IIB'!P54+'Schedule IIC'!P54+'Schedule IID'!P54+'Schedule IIE'!P54+'Schedule IIF'!P54","v":0},{"$f":"'Schedule IIB'!R54+'Schedule IIC'!R54+'Schedule IID'!R54+'Schedule IIE'!R54+'Schedule IIF'!R54","v":0},{"$f":"'Schedule IIB'!T54+'Schedule IIC'!T54+'Schedule IID'!T54+'Schedule IIE'!T54+'Schedule IIF'!T54","v":0},null,0.2,null,0,null,0]
[null,"Pension Benefit Surplus","Sch IIB, IIC, IID, IIE and IIF Line (31)",{"$f":"'Schedule IIB'!D55+'Schedule IIC'!D55+'Schedule IID'!D55+'Schedule IIE'!D55+'Schedule IIF'!D55","v":0},{"$f":"'Schedule IIB'!F55+'Schedule IIC'!F55+'Schedule IID'!F55+'Schedule IIE'!F55+'Schedule IIF'!F55","v":0},{"$f":"'Schedule IIB'!H55+'Schedule IIC'!H55+'Schedule IID'!H55+'Schedule IIE'!H55+'Schedule IIF'!H55","v":0},{"$f":"'Schedule IIB'!J55+'Schedule IIC'!J55+'Schedule IID'!J55+'Schedule IIE'!J55+'Schedule IIF'!J55","v":0},{"$f":"'Schedule IIB'!L55+'Schedule IIC'!L55+'Schedule IID'!L55+'Schedule IIE'!L55+'Schedule IIF'!L55","v":0},{"$f":"'Schedule IIB'!N55+'Schedule IIC'!N55+'Schedule IID'!N55+'Schedule IIE'!N55+'Schedule IIF'!N55","v":0},{"$f":"'Schedule IIB'!P55+'Schedule IIC'!P55+'Schedule IID'!P55+'Schedule IIE'!P55+'Schedule IIF'!P55","v":0},{"$f":"'Schedule IIB'!R55+'Schedule IIC'!R55+'Schedule IID'!R55+'Schedule IIE'!R55+'Schedule IIF'!R55","v":0},{"$f":"'Schedule IIB'!T55+'Schedule IIC'!T55+'Schedule IID'!T55+'Schedule IIE'!T55+'Schedule IIF'!T55","v":0},null,0.2,null,0,null,0]
[null,"Equity Derivatives on Type 2 Equities","Sch IIB, IIC, IID, IIE and IIF Line (32)",{"$f":"'Schedule IIB'!D56+'Schedule IIC'!D56+'Schedule IID'!D56+'Schedule IIE'!D56+'Schedule IIF'!D56","v":0},{"$f":"'Schedule IIB'!F56+'Schedule IIC'!F56+'Schedule IID'!F56+'Schedule IIE'!F56+'Schedule IIF'!F56","v":0},{"$f":"'Schedule IIB'!H56+'Schedule IIC'!H56+'Schedule IID'!H56+'Schedule IIE'!H56+'Schedule IIF'!H56","v":0},{"$f":"'Schedule IIB'!J56+'Schedule IIC'!J56+'Schedule IID'!J56+'Schedule IIE'!J56+'Schedule IIF'!J56","v":0},{"$f":"'Schedule IIB'!L56+'Schedule IIC'!L56+'Schedule IID'!L56+'Schedule IIE'!L56+'Schedule IIF'!L56","v":0},{"$f":"'Schedule IIB'!N56+'Schedule IIC'!N56+'Schedule IID'!N56+'Schedule IIE'!N56+'Schedule IIF'!N56","v":0},{"$f":"'Schedule IIB'!P56+'Schedule IIC'!P56+'Schedule IID'!P56+'Schedule IIE'!P56+'Schedule IIF'!P56","v":0},{"$f":"'Schedule IIB'!R56+'Schedule IIC'!R56+'Schedule IID'!R56+'Schedule IIE'!R56+'Schedule IIF'!R56","v":0},{"$f":"'Schedule IIB'!T56+'Schedule IIC'!T56+'Schedule IID'!T56+'Schedule IIE'!T56+'Schedule IIF'!T56","v":0},null,0.45,null,0,null,0]
[]
[null,"Subtotal - Type 2 Equity Holdings",null,{"$f":"SUM(D27:D33)","v":0},{"$f":"SUM(E27:E33)","v":0},{"$f":"SUM(F27:F33)","v":0},0,0,0,0,0,{"$f":"SUM(L27:L33)","v":0},null,null,null,{"$f":"MAX(SUM(P27:P33),0)","v":0},null,{"$f":"MAX(SUM(R27:R33),0)","v":0}]
[]
[null,"Type 3 Equity Holdings"]
[null,"Infrastructure","Sch IIB, IIC, IID, IIE and IIF Line (33)",{"$f":"'Schedule IIB'!D57+'Schedule IIC'!D57+'Schedule IID'!D57+'Schedule IIE'!D57+'Schedule IIF'!D57","v":0},{"$f":"'Schedule IIB'!F57+'Schedule IIC'!F57+'Schedule IID'!F57+'Schedule IIE'!F57+'Schedule IIF'!F57","v":0},{"$f":"'Schedule IIB'!H57+'Schedule IIC'!H57+'Schedule IID'!H57+'Schedule IIE'!H57+'Schedule IIF'!H57","v":0},{"$f":"'Schedule IIB'!J57+'Schedule IIC'!J57+'Schedule IID'!J57+'Schedule IIE'!J57+'Schedule IIF'!J57","v":0},{"$f":"'Schedule IIB'!L57+'Schedule IIC'!L57+'Schedule IID'!L57+'Schedule IIE'!L57+'Schedule IIF'!L57","v":0},{"$f":"'Schedule IIB'!N57+'Schedule IIC'!N57+'Schedule IID'!N57+'Schedule IIE'!N57+'Schedule IIF'!N57","v":0},{"$f":"'Schedule IIB'!P57+'Schedule IIC'!P57+'Schedule IID'!P57+'Schedule IIE'!P57+'Schedule IIF'!P57","v":0},{"$f":"'Schedule IIB'!R57+'Schedule IIC'!R57+'Schedule IID'!R57+'Schedule IIE'!R57+'Schedule IIF'!R57","v":0},{"$f":"'Schedule IIB'!T57+'Schedule IIC'!T57+'Schedule IID'!T57+'Schedule IIE'!T57+'Schedule IIF'!T57","v":0},null,0.25,null,{"$f":"MAX(D37-E37,0)+(F37-G37)+MAX(H37-I37,0)+(K37-J37)","v":0},null,{"$f":"MAX(D37-E37,0)+(F37-G37)+MAX(H37-I37,0)+(L37-J37)","v":0}]
[null,"Derivatives on Infrastructure","Sch IIB, IIC, IID, IIE and IIF Line (34)",{"$f":"'Schedule IIB'!D58+'Schedule IIC'!D58+'Schedule IID'!D58+'Schedule IIE'!D58+'Schedule IIF'!D58","v":0},{"$f":"'Schedule IIB'!F58+'Schedule IIC'!F58+'Schedule IID'!F58+'Schedule IIE'!F58+'Schedule IIF'!F58","v":0},{"$f":"'Schedule IIB'!H58+'Schedule IIC'!H58+'Schedule IID'!H58+'Schedule IIE'!H58+'Schedule IIF'!H58","v":0},{"$f":"'Schedule IIB'!J58+'Schedule IIC'!J58+'Schedule IID'!J58+'Schedule IIE'!J58+'Schedule IIF'!J58","v":0},{"$f":"'Schedule IIB'!L58+'Schedule IIC'!L58+'Schedule IID'!L58+'Schedule IIE'!L58+'Schedule IIF'!L58","v":0},{"$f":"'Schedule IIB'!N58+'Schedule IIC'!N58+'Schedule IID'!N58+'Schedule IIE'!N58+'Schedule IIF'!N58","v":0},{"$f":"'Schedule IIB'!P58+'Schedule IIC'!P58+'Schedule IID'!P58+'Schedule IIE'!P58+'Schedule IIF'!P58","v":0},{"$f":"'Schedule IIB'!R58+'Schedule IIC'!R58+'Schedule IID'!R58+'Schedule IIE'!R58+'Schedule IIF'!R58","v":0},{"$f":"'Schedule IIB'!T58+'Schedule IIC'!T58+'Schedule IID'!T58+'Schedule IIE'!T58+'Schedule IIF'!T58","v":0},null,0.25,null,{"$f":"MAX(D38-E38,0)+(F38-G38)+MAX(H38-I38,0)+(K38-J38)","v":0},null,0]
[]
[null,"Subtotal - Type 3 Equity Holdings",null,{"$f":"SUM(D37:D39)","v":0},{"$f":"SUM(E37:E39)","v":0},{"$f":"SUM(F37:F39)","v":0},0,0,0,0,0,{"$f":"SUM(L37:L39)","v":0},null,null,null,{"$f":"MAX(SUM(P37:P39),0)","v":0},null,{"$f":"MAX(SUM(R37:R39),0)","v":0}]
[]
[null,"Type 4 Equity Holdings"]
[null,"Equity Real Estate 1","Sch IIB, IIC, IID, IIE and IIF Line (35)",{"$f":"'Schedule IIB'!D59+'Schedule IIC'!D59+'Schedule IID'!D59+'Schedule IIE'!D59+'Schedule IIF'!D59","v":0},{"$f":"'Schedule IIB'!F59+'Schedule IIC'!F59+'Schedule IID'!F59+'Schedule IIE'!F59+'Schedule IIF'!F59","v":0},{"$f":"'Schedule IIB'!H59+'Schedule IIC'!H59+'Schedule IID'!H59+'Schedule IIE'!H59+'Schedule IIF'!H59","v":0},{"$f":"'Schedule IIB'!J59+'Schedule IIC'!J59+'Schedule IID'!J59+'Schedule IIE'!J59+'Schedule IIF'!J59","v":0},{"$f":"'Schedule IIB'!L59+'Schedule IIC'!L59+'Schedule IID'!L59+'Schedule IIE'!L59+'Schedule IIF'!L59","v":0},{"$f":"'Schedule IIB'!N59+'Schedule IIC'!N59+'Schedule IID'!N59+'Schedule IIE'!N59+'Schedule IIF'!N59","v":0},{"$f":"'Schedule IIB'!P59+'Schedule IIC'!P59+'Schedule IID'!P59+'Schedule IIE'!P59+'Schedule IIF'!P59","v":0},{"$f":"'Schedule IIB'!R59+'Schedule IIC'!R59+'Schedule IID'!R59+'Schedule IIE'!R59+'Schedule IIF'!R59","v":0},{"$f":"'Schedule IIB'!T59+'Schedule IIC'!T59+'Schedule IID'!T59+'Schedule IIE'!T59+'Schedule IIF'!T59","v":0},null,0.1,null,{"$f":"MAX(D43-E43,0)+(F43-G43)+MAX(H43-I43,0)+(K43-J43)","v":0},null,{"$f":"MAX(D43-E43,0)+(F43-G43)+MAX(H43-I43,0)+(L43-J43)","v":0}]
[null,"Equity Real Estate 2","Sch IIB, IIC, IID, IIE and IIF Line (36)",{"$f":"'Schedule IIB'!D60+'Schedule IIC'!D60+'Schedule IID'!D60+'Schedule IIE'!D60+'Schedule IIF'!D60","v":0},{"$f":"'Schedule IIB'!F60+'Schedule IIC'!F60+'Schedule IID'!F60+'Schedule IIE'!F60+'Schedule IIF'!F60","v":0},{"$f":"'Schedule IIB'!H60+'Schedule IIC'!H60+'Schedule IID'!H60+'Schedule IIE'!H60+'Schedule IIF'!H60","v":0},{"$f":"'Schedule IIB'!J60+'Schedule IIC'!J60+'Schedule IID'!J60+'Schedule IIE'!J60+'Schedule IIF'!J60","v":0},{"$f":"'Schedule IIB'!L60+'Schedule IIC'!L60+'Schedule IID'!L60+'Schedule IIE'!L60+'Schedule IIF'!L60","v":0},{"$f":"'Schedule IIB'!N60+'Schedule IIC'!N60+'Schedule IID'!N60+'Schedule IIE'!N60+'Schedule IIF'!N60","v":0},{"$f":"'Schedule IIB'!P60+'Schedule IIC'!P60+'Schedule IID'!P60+'Schedule IIE'!P60+'Schedule IIF'!P60","v":0},{"$f":"'Schedule IIB'!R60+'Schedule IIC'!R60+'Schedule IID'!R60+'Schedule IIE'!R60+'Schedule IIF'!R60","v":0},{"$f":"'Schedule IIB'!T60+'Schedule IIC'!T60+'Schedule IID'!T60+'Schedule IIE'!T60+'Schedule IIF'!T60","v":0},null,0.2,null,{"$f":"MAX(D44-E44,0)+(F44-G44)+MAX(H44-I44,0)+(K44-J44)","v":0},null,0]
[]
[null,"Subtotal - Type 4 Equity Holdings",null,{"$f":"SUM(D43:D45)","v":0},{"$f":"SUM(E43:E45)","v":0},0,0,0,0,0,{"$f":"SUM(K43:K45)","v":0},{"$f":"SUM(L43:L45)","v":0},null,null,null,{"$f":"MAX(SUM(P43:P45),0)","v":0},null,{"$f":"MAX(SUM(R43:R45),0)","v":0}]
[]
[null,"Total Equity Risk before Diversification",null,{"$f":"D40+D34+D24+D46","v":0},{"$f":"E40+E34+E24+E46","v":0},0,0,0,0,0,{"$f":"K40+K34+K24+K46","v":0},{"$f":"L40+L34+L24+L46","v":0},null,null,null,{"$f":"P40+P34+P24+P46","v":0},null,{"$f":"R40+R34+R24+R46","v":0}]
[]
[null,"Aggregation of Risks","Correlation Matrix","Type 1","Type 2","Type 3","Type 4"]
[null,null,"Type 1",1,0.75,0.75,0.5,null,null,null,null,null,null,"Total Type 1 Risk ",null,{"$f":"P24","v":0},null,{"$f":"R24","v":0}]
[null,null,"Type 2",0.75,1,0.75,0.5,null,null,null,null,null,null,"Total Type 2 Risk ",null,{"$f":"P34","v":0},null,{"$f":"R34","v":0}]
[null,null,"Type 3",0.75,0.75,1,0.5,null,null,null,null,null,null,"Total Type 3 Risk",null,{"$f":"P40","v":0},null,{"$f":"R40","v":0}]
[null,null,"Type 4",0.5,0.5,0.5,1,null,null,null,null,null,null,"Total Type 4 Risk",null,{"$f":"P46","v":0},null,{"$f":"R46","v":0}]
[]
[null,"Total Equity Risk (Post Diversification) ",null,null,null,null,null,null,null,null,null,null,null,null,null,{"$f":"SQRT(MMULT(TRANSPOSE($P$51:$P$54),MMULT($D$51:$G$54,$P$51:$P$54)))","v":0},null,{"$f":"SQRT(MMULT(TRANSPOSE($R$51:$R$54),MMULT($D$51:$G$54,$R$51:$R$54)))","v":0}]

{"sheet":"Interest Rate-Liquidity Risk","index":117,"n_rows":14,"n_cols":7,"rows_kept":14,"cut":false,"hidden":false,"merged":[[0,6,0,7]]}
["INTEREST RATE - LIQUIDITY RISK",null,null,null,null,null,{"$f":"HYPERLINK(\"#'Index'!A1\",\"Return to Index\")","v":"Return to Index"}]
[{"$f":"'Company Information'!C7","v":"Enter Company Name"}]
[{"$f":"\"Interest Rate / Liquidity Risk\" & \"($\"&IF(CONFIGURATION!$B$12>1,MID(CONFIGURATION!$B$12,2,LEN(CONFIGURATION!$B$12)),\"\")&\")\"","v":"Interest Rate / Liquidity Risk($000)"},null,{"$f":"'Company Information'!C3","v":"2022-12-31"},-1,-2,-3,-4]
[null,null,null,null,"ESTIMATED","200 BASIS POINT"]
[null,"TYPE OF ",null,"MARKET","EFFECTIVE","INTEREST RATE","REQUIRED"]
[null,"SECURITY","STATEMENT SOURCE","VALUES","DURATION","INCREASE","CAPITAL"]
[]
[null,null,null,null,null,null,"(1) x (2) x (3)"]
[]
[null,"Bonds and Debentures - Other","Sch IIB & IIC Column (9), Line 10",{"$f":"SUM('Schedule IIB'!X13:X21)+SUM('Schedule IIC'!X13:X21)","v":0},{"$f":"IF('Company Information'!F11=\"IIGB\",IF(('Schedule V'!$H$12-'Schedule V'!$H$10)>3.5,3.5,MAX(1,'Schedule V'!$H$10-'Schedule V'!$H$12,'Schedule V'!$H$12-'Schedule V'!$H$10)),IF('Schedule V'!$H$10-'Schedule V'!$H$12>=1,'Schedule V'!$H$10-'Schedule V'!$H$12,IF('Schedule V'!$H$12-'Schedule V'!$H$10>=1,'Schedule V'!$H$12-'Schedule V'!$H$10,1)))","v":1},0.02,{"$f":"IF($E$10<0,0,$D$10*$E$10*$F$10)","v":0}]
[null,"Preferred Stocks ","Sch IIB & IIC Column (3), Line 21",{"$f":"SUM('Schedule IIB'!X42:X49)+SUM('Schedule IIC'!X22:X25)","v":0},{"$f":"IF('Company Information'!F11=\"IIGB\",IF(('Schedule V'!$H$12-'Schedule V'!$H$10)>3.5,3.5,MAX(1,'Schedule V'!$H$10-'Schedule V'!$H$12,'Schedule V'!$H$12-'Schedule V'!$H$10)),IF('Schedule V'!$H$10-'Schedule V'!$H$12>=1,'Schedule V'!$H$10-'Schedule V'!$H$12,IF('Schedule V'!$H$12-'Schedule V'!$H$10>=1,'Schedule V'!$H$12-'Schedule V'!$H$10,1)))","v":1},0.02,{"$f":"IF($E$11<0,0, $D$11*$E$11*$F$11)","v":0}]
[null,"Mortgage Loans","Sch IIB & IIC Column (1), Line 26",{"$f":"SUM('Schedule IIB'!X22:X25)+SUM('Schedule IIC'!X22:X25)","v":0},{"$f":"IF('Company Information'!F11=\"IIGB\",IF(('Schedule V'!$H$12-'Schedule V'!$H$10)>3.5,3.5,MAX(1,'Schedule V'!$H$10-'Schedule V'!$H$12,'Schedule V'!$H$12-'Schedule V'!$H$10)),IF('Schedule V'!$H$10-'Schedule V'!$H$12>=1,'Schedule V'!$H$10-'Schedule V'!$H$12,IF('Schedule V'!$H$12-'Schedule V'!$H$10>=1,'Schedule V'!$H$12-'Schedule V'!$H$10,1)))","v":1},0.02,{"$f":"IF($E$12<0,0, $D$12*$E$12*$F$12)","v":0}]
[]
[null,"TOTAL INTEREST RATE / LIQUIDITY RISK",null,{"$f":"SUM(D10:D12)","v":0},null,null,{"$f":"IF(SUM(G10:G12)>=0,SUM(G10:G12),0)","v":0}]

{"sheet":"Interest Rate-Liquidity (Rev.)","index":118,"n_rows":117,"n_cols":20,"rows_kept":117,"cut":false,"hidden":false,"merged":[[97,10,97,11],[97,14,97,15],[98,10,98,11],[98,14,98,15],[2,7,2,10],[5,2,5,8],[5,10,5,12],[6,2,6,3],[6,4,6,5],[6,7,6,8],[6,10,6,11],[2,3,2,4]]}
["CURRENCY RISK","INTEREST RATE - LIQUIDITY RISK (REVISED)",null,null,null,null,null,null,null,null,null,null,null,null,null,null,null,null,null,{"$f":"HYPERLINK(\"#'Index'!A1\",\"Return to Index\")","v":"Return to Index"}]
[{"$f":"'Company Information'!C7","v":"Enter Company Name"}]
["Interest Rate / Liquidity Risk",null,null,{"$f":"'Company Information'!C3","v":"2022-12-31"}]
[]
[null,null,-1,{"$f":"C5-1","v":-2},{"$f":"D5-1","v":-3},{"$f":"E5-1","v":-4},null,{"$f":"F5-1","v":-5},{"$f":"H5-1","v":-6},null,{"$f":"I5-1","v":-7},{"$f":"K5-1","v":-8},{"$f":"L5-1","v":-9},null,{"$f":"M5-1","v":-10},{"$f":"O5-1","v":-11},{"$f":"P5-1","v":-12},null,{"$f":"Q5-1","v":-13},{"$f":"S5-1","v":-14}]
[null,null,"ASSETS",null,null,null,null,null,null,null,"LIABILITIES"]
[null,null,"Assets including derivatives qualifying as held for risk-mitigation purposes",null,"Derivatives not qualifying as held for risk-mitigation purposes",null,null,"Gross Position",null,null,"Without Management Actions",null,"With Management Actions"]
[null,"Currency","Market Value Before Shock","Market Value After Shock","Market Value Before Shock","Market Value After Shock",null,"Market Value Before Shock","Market Value After Shock",null,"Best Estimate Before Shock","Best Estimate After Shock","Best Estimate After Shock",null,"IR - Assets","IR Risk - TP without MA","IR Risk - TP with MA",null,"IR Risk - without MA","IR Risk - with MA"]
[]
[null,"IR Down- Exposures without Derivatives",null,"x"]
[null,{"$f":"'Schedule XXIII'!C10","v":"United States Dollars"},{"$f":"'Schedule XXIII'!E10","v":0},{"$f":"'Schedule XXIII'!F10","v":0},null,null,null,{"$f":"C11+E11","v":0},{"$f":"D11+F11","v":0},null,{"$f":"'Schedule XXIII'!H10","v":0},{"$f":"'Schedule XXIII'!I10","v":0},{"$f":"'Schedule XXIII'!K10","v":0},null,{"$f":"C11-D11","v":0},{"$f":"L11-K11","v":0},{"$f":"M11-K11","v":0},null,{"$f":"$O11+P11","v":0},{"$f":"$O11+Q11","v":0}]
[null,{"$f":"'Schedule XXIII'!C11","v":"Euro"},{"$f":"'Schedule XXIII'!E11","v":0},{"$f":"'Schedule XXIII'!F11","v":0},null,null,null,{"$f":"C12+E12","v":0},{"$f":"D12+F12","v":0},null,{"$f":"'Schedule XXIII'!H11","v":0},{"$f":"'Schedule XXIII'!I11","v":0},{"$f":"'Schedule XXIII'!K11","v":0},null,0,0,{"$f":"M12-K12","v":0},null,{"$f":"$O12+P12","v":0},{"$f":"$O12+Q12","v":0}]
[null,{"$f":"'Schedule XXIII'!C12","v":"United Kingdom Pounds"},{"$f":"'Schedule XXIII'!E12","v":0},{"$f":"'Schedule XXIII'!F12","v":0},null,null,null,0,0,null,{"$f":"'Schedule XXIII'!H12","v":0},{"$f":"'Schedule XXIII'!I12","v":0},{"$f":"'Schedule XXIII'!K12","v":0},null,0,0,0,null,0,0]
[null,{"$f":"'Schedule XXIII'!C13","v":"Japan Yen"},{"$f":"'Schedule XXIII'!E13","v":0},{"$f":"'Schedule XXIII'!F13","v":0},null,null,null,{"$f":"C14+E14","v":0},{"$f":"D14+F14","v":0},null,{"$f":"'Schedule XXIII'!H13","v":0},{"$f":"'Schedule XXIII'!I13","v":0},{"$f":"'Schedule XXIII'!K13","v":0},null,0,0,0,null,0,0]
[null,{"$f":"'Schedule XXIII'!C14","v":"Canada Dollars"},{"$f":"'Schedule XXIII'!E14","v":0},{"$f":"'Schedule XXIII'!F14","v":0},null,null,null,0,0,null,{"$f":"'Schedule XXIII'!H14","v":0},{"$f":"'Schedule XXIII'!I14","v":0},{"$f":"'Schedule XXIII'!K14","v":0},null,0,0,0,null,0,0]
[null,{"$f":"'Schedule XXIII'!C15","v":"Swiss Francs"},{"$f":"'Schedule XXIII'!E15","v":0},{"$f":"'Schedule XXIII'!F15","v":0},null,null,null,0,0,null,{"$f":"'Schedule XXIII'!H15","v":0},{"$f":"'Schedule XXIII'!I15","v":0},{"$f":"'Schedule XXIII'!K15","v":0},null,0,0,0,null,0,0]
[null,{"$f":"'Schedule XXIII'!C16","v":"Australia Dollar"},{"$f":"'Schedule XXIII'!E16","v":0},{"$f":"'Schedule XXIII'!F16","v":0},null,null,null,0,0,null,{"$f":"'Schedule XXIII'!H16","v":0},{"$f":"'Schedule XXIII'!I16","v":0},{"$f":"'Schedule XXIII'!K16","v":0},null,0,0,0,null,0,0]
[null,{"$f":"'Schedule XXIII'!C17","v":"New Zealand Dollar"},{"$f":"'Schedule XXIII'!E17","v":0},{"$f":"'Schedule XXIII'!F17","v":0},null,null,null,0,0,null,{"$f":"'Schedule XXIII'!H17","v":0},{"$f":"'Schedule XXIII'!I17","v":0},{"$f":"'Schedule XXIII'!K17","v":0},null,0,0,0,null,0,0]
[null,{"$f":"'Schedule XXIII'!C18","v":"Other currency 1"},{"$f":"'Schedule XXIII'!E18","v":0},{"$f":"'Schedule XXIII'!F18","v":0},null,null,null,0,0,null,{"$f":"'Schedule XXIII'!H18","v":0},{"$f":"'Schedule XXIII'!I18","v":0},{"$f":"'Schedule XXIII'!K18","v":0},null,0,0,0,null,0,0]
[null,{"$f":"'Schedule XXIII'!C19","v":"Other currency 2"},{"$f":"'Schedule XXIII'!E19","v":0},{"$f":"'Schedule XXIII'!F19","v":0},null,null,null,0,0,null,{"$f":"'Schedule XXIII'!H19","v":0},{"$f":"'Schedule XXIII'!I19","v":0},{"$f":"'Schedule XXIII'!K19","v":0},null,0,0,0,null,0,0]
[null,{"$f":"'Schedule XXIII'!C20","v":"Other currency 3"},{"$f":"'Schedule XXIII'!E20","v":0},{"$f":"'Schedule XXIII'!F20","v":0},null,null,null,0,0,null,{"$f":"'Schedule XXIII'!H20","v":0},{"$f":"'Schedule XXIII'!I20","v":0},{"$f":"'Schedule XXIII'!K20","v":0},null,0,0,0,null,0,0]
[null,{"$f":"'Schedule XXIII'!C21","v":"Other currency 4"},{"$f":"'Schedule XXIII'!E21","v":0},{"$f":"'Schedule XXIII'!F21","v":0},null,null,null,0,0,null,{"$f":"'Schedule XXIII'!H21","v":0},{"$f":"'Schedule XXIII'!I21","v":0},{"$f":"'Schedule XXIII'!K21","v":0},null,0,0,0,null,0,0]
[null,{"$f":"'Schedule XXIII'!C22","v":"Other currency 5"},{"$f":"'Schedule XXIII'!E22","v":0},{"$f":"'Schedule XXIII'!F22","v":0},null,null,null,0,0,null,{"$f":"'Schedule XXIII'!H22","v":0},{"$f":"'Schedule XXIII'!I22","v":0},{"$f":"'Schedule XXIII'!K22","v":0},null,0,0,0,null,0,0]
[null,{"$f":"'Schedule XXIII'!C23","v":"Other currency 6"},{"$f":"'Schedule XXIII'!E23","v":0},{"$f":"'Schedule XXIII'!F23","v":0},null,null,null,0,0,null,{"$f":"'Schedule XXIII'!H23","v":0},{"$f":"'Schedule XXIII'!I23","v":0},{"$f":"'Schedule XXIII'!K23","v":0},null,0,0,0,null,0,0]
[null,{"$f":"'Schedule XXIII'!C24","v":"Other currency 7"},{"$f":"'Schedule XXIII'!E24","v":0},{"$f":"'Schedule XXIII'!F24","v":0},null,null,null,0,0,null,{"$f":"'Schedule XXIII'!H24","v":0},{"$f":"'Schedule XXIII'!I24","v":0},{"$f":"'Schedule XXIII'!K24","v":0},null,0,0,0,null,0,0]
[null,{"$f":"'Schedule XXIII'!C25","v":"Other currency 8"},{"$f":"'Schedule XXIII'!E25","v":0},{"$f":"'Schedule XXIII'!F25","v":0},null,null,null,0,0,null,{"$f":"'Schedule XXIII'!H25","v":0},{"$f":"'Schedule XXIII'!I25","v":0},{"$f":"'Schedule XXIII'!K25","v":0},null,0,0,0,null,0,0]
[null,{"$f":"'Schedule XXIII'!C26","v":"Other currency 9"},{"$f":"'Schedule XXIII'!E26","v":0},{"$f":"'Schedule XXIII'!F26","v":0},null,null,null,0,0,null,{"$f":"'Schedule XXIII'!H26","v":0},{"$f":"'Schedule XXIII'!I26","v":0},{"$f":"'Schedule XXIII'!K26","v":0},null,0,0,0,null,0,0]
[null,{"$f":"'Schedule XXIII'!C27","v":"Other currency 10"},{"$f":"'Schedule XXIII'!E27","v":0},{"$f":"'Schedule XXIII'!F27","v":0},null,null,null,0,0,null,{"$f":"'Schedule XXIII'!H27","v":0},{"$f":"'Schedule XXIII'!I27","v":0},{"$f":"'Schedule XXIII'!K27","v":0},null,0,0,0,null,0,0]
[null,"Total IR - Other",{"$f":"SUM(C11:C28)","v":0},{"$f":"SUM(D11:D28)","v":0},{"$f":"SUM(E11:E28)","v":0},{"$f":"SUM(F11:F28)","v":0},null,{"$f":"SUM(H11:H28)","v":0},{"$f":"SUM(I11:I28)","v":0},null,{"$f":"SUM(K11:K28)","v":0},{"$f":"SUM(L11:L28)","v":0},{"$f":"SUM(M11:M28)","v":0},null,{"$f":"SUM(O11:O28)","v":0},{"$f":"SUM(P11:P28)","v":0},{"$f":"SUM(Q11:Q28)","v":0},null,{"$f":"SUM(S11:S28)","v":0},{"$f":"SUM(T11:T28)","v":0}]
[]
[null,"IR Down- Derivatives"]
[null,{"$f":"'Schedule XXIII'!C10","v":"United States Dollars"},{"$f":"'Schedule XXIII'!M10","v":0},{"$f":"'Schedule XXIII'!N10","v":0},{"$f":"'Schedule XXIII'!P10","v":0},{"$f":"'Schedule XXIII'!Q10","v":0},null,{"$f":"C32+E32","v":0},{"$f":"D32+F32","v":0},null,{"$f":"'Schedule XXIII'!S10","v":0},{"$f":"'Schedule XXIII'!T10","v":0},{"$f":"'Schedule XXIII'!V10","v":0},null,{"$f":"C32-D32 + MAX(0,E32-F32)","v":0},{"$f":"L32-K32","v":0},{"$f":"M32-K32","v":0},null,{"$f":"$O32+P32","v":0},{"$f":"$O32+Q32","v":0}]
[null,{"$f":"'Schedule XXIII'!C11","v":"Euro"},{"$f":"'Schedule XXIII'!M11","v":0},{"$f":"'Schedule XXIII'!N11","v":0},{"$f":"'Schedule XXIII'!P11","v":0},{"$f":"'Schedule XXIII'!Q11","v":0},null,{"$f":"C33+E33","v":0},0,null,{"$f":"'Schedule XXIII'!S11","v":0},{"$f":"'Schedule XXIII'!T11","v":0},{"$f":"'Schedule XXIII'!V11","v":0},null,0,0,0,null,{"$f":"$O33+P33","v":0},{"$f":"$O33+Q33","v":0}]
[null,{"$f":"'Schedule XXIII'!C12","v":"United Kingdom Pounds"},{"$f":"'Schedule XXIII'!M12","v":0},{"$f":"'Schedule XXIII'!N12","v":0},{"$f":"'Schedule XXIII'!P12","v":0},{"$f":"'Schedule XXIII'!Q12","v":0},null,0,0,null,{"$f":"'Schedule XXIII'!S12","v":0},{"$f":"'Schedule XXIII'!T12","v":0},{"$f":"'Schedule XXIII'!V12","v":0},null,0,0,0,null,0,0]
[null,{"$f":"'Schedule XXIII'!C13","v":"Japan Yen"},{"$f":"'Schedule XXIII'!M13","v":0},{"$f":"'Schedule XXIII'!N13","v":0},{"$f":"'Schedule XXIII'!P13","v":0},{"$f":"'Schedule XXIII'!Q13","v":0},null,0,0,null,{"$f":"'Schedule XXIII'!S13","v":0},{"$f":"'Schedule XXIII'!T13","v":0},{"$f":"'Schedule XXIII'!V13","v":0},null,0,0,0,null,0,0]
[null,{"$f":"'Schedule XXIII'!C14","v":"Canada Dollars"},{"$f":"'Schedule XXIII'!M14","v":0},{"$f":"'Schedule XXIII'!N14","v":0},{"$f":"'Schedule XXIII'!P14","v":0},{"$f":"'Schedule XXIII'!Q14","v":0},null,0,0,null,{"$f":"'Schedule XXIII'!S14","v":0},{"$f":"'Schedule XXIII'!T14","v":0},{"$f":"'Schedule XXIII'!V14","v":0},null,0,0,0,null,0,0]
[null,{"$f":"'Schedule XXIII'!C15","v":"Swiss Francs"},{"$f":"'Schedule XXIII'!M15","v":0},{"$f":"'Schedule XXIII'!N15","v":0},{"$f":"'Schedule XXIII'!P15","v":0},{"$f":"'Schedule XXIII'!Q15","v":0},null,0,0,null,{"$f":"'Schedule XXIII'!S15","v":0},{"$f":"'Schedule XXIII'!T15","v":0},{"$f":"'Schedule XXIII'!V15","v":0},null,0,0,0,null,0,0]
[null,{"$f":"'Schedule XXIII'!C16","v":"Australia Dollar"},{"$f":"'Schedule XXIII'!M16","v":0},{"$f":"'Schedule XXIII'!N16","v":0},{"$f":"'Schedule XXIII'!P16","v":0},{"$f":"'Schedule XXIII'!Q16","v":0},null,0,0,null,{"$f":"'Schedule XXIII'!S16","v":0},{"$f":"'Schedule XXIII'!T16","v":0},{"$f":"'Schedule XXIII'!V16","v":0},null,0,0,0,null,0,0]
[null,{"$f":"'Schedule XXIII'!C17","v":"New Zealand Dollar"},{"$f":"'Schedule XXIII'!M17","v":0},{"$f":"'Schedule XXIII'!N17","v":0},{"$f":"'Schedule XXIII'!P17","v":0},{"$f":"'Schedule XXIII'!Q17","v":0},null,0,0,null,{"$f":"'Schedule XXIII'!S17","v":0},{"$f":"'Schedule XXIII'!T17","v":0},{"$f":"'Schedule XXIII'!V17","v":0},null,0,0,0,null,0,0]
[null,{"$f":"'Schedule XXIII'!C18","v":"Other currency 1"},{"$f":"'Schedule XXIII'!M18","v":0},{"$f":"'Schedule XXIII'!N18","v":0},{"$f":"'Schedule XXIII'!P18","v":0},{"$f":"'Schedule XXIII'!Q18","v":0},null,0,0,null,{"$f":"'Schedule XXIII'!S18","v":0},{"$f":"'Schedule XXIII'!T18","v":0},{"$f":"'Schedule XXIII'!V18","v":0},null,0,0,0,null,0,0]
[null,{"$f":"'Schedule XXIII'!C19","v":"Other currency 2"},{"$f":"'Schedule XXIII'!M19","v":0},{"$f":"'Schedule XXIII'!N19","v":0},{"$f":"'Schedule XXIII'!P19","v":0},{"$f":"'Schedule XXIII'!Q19","v":0},null,0,0,null,{"$f":"'Schedule XXIII'!S19","v":0},{"$f":"'Schedule XXIII'!T19","v":0},{"$f":"'Schedule XXIII'!V19","v":0},null,0,0,0,null,0,0]
[null,{"$f":"'Schedule XXIII'!C20","v":"Other currency 3"},{"$f":"'Schedule XXIII'!M20","v":0},{"$f":"'Schedule XXIII'!N20","v":0},{"$f":"'Schedule XXIII'!P20","v":0},{"$f":"'Schedule XXIII'!Q20","v":0},null,0,0,null,{"$f":"'Schedule XXIII'!S20","v":0},{"$f":"'Schedule XXIII'!T20","v":0},{"$f":"'Schedule XXIII'!V20","v":0},null,0,0,0,null,0,0]
[null,{"$f":"'Schedule XXIII'!C21","v":"Other currency 4"},{"$f":"'Schedule XXIII'!M21","v":0},{"$f":"'Schedule XXIII'!N21","v":0},{"$f":"'Schedule XXIII'!P21","v":0},{"$f":"'Schedule XXIII'!Q21","v":0},null,0,0,null,{"$f":"'Schedule XXIII'!S21","v":0},{"$f":"'Schedule XXIII'!T21","v":0},{"$f":"'Schedule XXIII'!V21","v":0},null,0,0,0,null,0,0]
[null,{"$f":"'Schedule XXIII'!C22","v":"Other currency 5"},{"$f":"'Schedule XXIII'!M22","v":0},{"$f":"'Schedule XXIII'!N22","v":0},{"$f":"'Schedule XXIII'!P22","v":0},{"$f":"'Schedule XXIII'!Q22","v":0},null,0,0,null,{"$f":"'Schedule XXIII'!S22","v":0},{"$f":"'Schedule XXIII'!T22","v":0},{"$f":"'Schedule XXIII'!V22","v":0},null,0,0,0,null,0,0]
[null,{"$f":"'Schedule XXIII'!C23","v":"Other currency 6"},{"$f":"'Schedule XXIII'!M23","v":0},{"$f":"'Schedule XXIII'!N23","v":0},{"$f":"'Schedule XXIII'!P23","v":0},{"$f":"'Schedule XXIII'!Q23","v":0},null,0,0,null,{"$f":"'Schedule XXIII'!S23","v":0},{"$f":"'Schedule XXIII'!T23","v":0},{"$f":"'Schedule XXIII'!V23","v":0},null,0,0,0,null,0,0]
[null,{"$f":"'Schedule XXIII'!C24","v":"Other currency 7"},{"$f":"'Schedule XXIII'!M24","v":0},{"$f":"'Schedule XXIII'!N24","v":0},{"$f":"'Schedule XXIII'!P24","v":0},{"$f":"'Schedule XXIII'!Q24","v":0},null,0,0,null,{"$f":"'Schedule XXIII'!S24","v":0},{"$f":"'Schedule XXIII'!T24","v":0},{"$f":"'Schedule XXIII'!V24","v":0},null,0,0,0,null,0,0]
[null,{"$f":"'Schedule XXIII'!C25","v":"Other currency 8"},{"$f":"'Schedule XXIII'!M25","v":0},{"$f":"'Schedule XXIII'!N25","v":0},{"$f":"'Schedule XXIII'!P25","v":0},{"$f":"'Schedule XXIII'!Q25","v":0},null,0,0,null,{"$f":"'Schedule XXIII'!S25","v":0},{"$f":"'Schedule XXIII'!T25","v":0},{"$f":"'Schedule XXIII'!V25","v":0},null,0,0,0,null,0,0]
[null,{"$f":"'Schedule XXIII'!C26","v":"Other currency 9"},{"$f":"'Schedule XXIII'!M26","v":0},{"$f":"'Schedule XXIII'!N26","v":0},{"$f":"'Schedule XXIII'!P26","v":0},{"$f":"'Schedule XXIII'!Q26","v":0},null,0,0,null,{"$f":"'Schedule XXIII'!S26","v":0},{"$f":"'Schedule XXIII'!T26","v":0},{"$f":"'Schedule XXIII'!V26","v":0},null,0,0,0,null,0,0]
[null,{"$f":"'Schedule XXIII'!C27","v":"Other currency 10"},{"$f":"'Schedule XXIII'!M27","v":0},{"$f":"'Schedule XXIII'!N27","v":0},{"$f":"'Schedule XXIII'!P27","v":0},{"$f":"'Schedule XXIII'!Q27","v":0},null,0,0,null,{"$f":"'Schedule XXIII'!S27","v":0},{"$f":"'Schedule XXIII'!T27","v":0},{"$f":"'Schedule XXIII'!V27","v":0},null,0,0,0,null,0,0]
[null,"Total IR - Derivatives",{"$f":"SUM(C32:C49)","v":0},{"$f":"SUM(D32:D49)","v":0},{"$f":"SUM(E32:E49)","v":0},{"$f":"SUM(F32:F49)","v":0},null,{"$f":"SUM(H32:H49)","v":0},{"$f":"SUM(I32:I49)","v":0},null,{"$f":"SUM(K32:K49)","v":0},{"$f":"SUM(L32:L49)","v":0},{"$f":"SUM(M32:M49)","v":0},null,{"$f":"SUM(O32:O49)","v":0},{"$f":"SUM(P32:P49)","v":0},{"$f":"SUM(Q32:Q49)","v":0},null,{"$f":"SUM(S32:S49)","v":0},{"$f":"SUM(T32:T49)","v":0}]
[null,"Total IR - DOWN",{"$f":"C29+C50","v":0},{"$f":"D29+D50","v":0},{"$f":"E29+E50","v":0},{"$f":"F29+F50","v":0},null,{"$f":"H29+H50","v":0},{"$f":"I29+I50","v":0},null,{"$f":"K29+K50","v":0},{"$f":"L29+L50","v":0},{"$f":"M29+M50","v":0},null,{"$f":"O29+O50","v":0},{"$f":"P29+P50","v":0},{"$f":"Q29+Q50","v":0},null,{"$f":"MAX(0,S29+S50)","v":0},{"$f":"MAX(0,T29+T50)","v":0}]
[]
[null,"IR UP - Exposures without Derivatives"]
[null,{"$f":"'Schedule XXIII'!C35","v":"United States Dollars"},{"$f":"'Schedule XXIII'!E35","v":0},{"$f":"'Schedule XXIII'!F35","v":0},null,null,null,{"$f":"C54+E54","v":0},{"$f":"D54+F54","v":0},null,{"$f":"'Schedule XXIII'!H35","v":0},{"$f":"'Schedule XXIII'!I35","v":0},{"$f":"'Schedule XXIII'!K35","v":0},null,{"$f":"C54-D54","v":0},{"$f":"L54-K54","v":0},{"$f":"M54-K54","v":0},null,{"$f":"$O54+P54","v":0},{"$f":"$O54+Q54","v":0}]
[null,{"$f":"'Schedule XXIII'!C36","v":"Euro"},{"$f":"'Schedule XXIII'!E36","v":0},{"$f":"'Schedule XXIII'!F36","v":0},null,null,null,{"$f":"C55+E55","v":0},0,null,{"$f":"'Schedule XXIII'!H36","v":0},{"$f":"'Schedule XXIII'!I36","v":0},{"$f":"'Schedule XXIII'!K36","v":0},null,0,0,0,null,{"$f":"$O55+P55","v":0},{"$f":"$O55+Q55","v":0}]
[null,{"$f":"'Schedule XXIII'!C37","v":"United Kingdom Pounds"},{"$f":"'Schedule XXIII'!E37","v":0},{"$f":"'Schedule XXIII'!F37","v":0},null,null,null,0,0,null,{"$f":"'Schedule XXIII'!H37","v":0},{"$f":"'Schedule XXIII'!I37","v":0},{"$f":"'Schedule XXIII'!K37","v":0},null,0,0,0,null,0,0]
[null,{"$f":"'Schedule XXIII'!C38","v":"Japan Yen"},{"$f":"'Schedule XXIII'!E38","v":0},{"$f":"'Schedule XXIII'!F38","v":0},null,null,null,0,0,null,{"$f":"'Schedule XXIII'!H38","v":0},{"$f":"'Schedule XXIII'!I38","v":0},{"$f":"'Schedule XXIII'!K38","v":0},null,0,0,0,null,0,0]
[null,{"$f":"'Schedule XXIII'!C39","v":"Canada Dollars"},{"$f":"'Schedule XXIII'!E39","v":0},{"$f":"'Schedule XXIII'!F39","v":0},null,null,null,0,0,null,{"$f":"'Schedule XXIII'!H39","v":0},{"$f":"'Schedule XXIII'!I39","v":0},{"$f":"'Schedule XXIII'!K39","v":0},null,0,0,0,null,0,0]
[null,{"$f":"'Schedule XXIII'!C40","v":"Swiss Francs"},{"$f":"'Schedule XXIII'!E40","v":0},{"$f":"'Schedule XXIII'!F40","v":0},null,null,null,0,0,null,{"$f":"'Schedule XXIII'!H40","v":0},{"$f":"'Schedule XXIII'!I40","v":0},{"$f":"'Schedule XXIII'!K40","v":0},null,0,0,0,null,0,0]
[null,{"$f":"'Schedule XXIII'!C41","v":"Australia Dollar"},{"$f":"'Schedule XXIII'!E41","v":0},{"$f":"'Schedule XXIII'!F41","v":0},null,null,null,0,0,null,{"$f":"'Schedule XXIII'!H41","v":0},{"$f":"'Schedule XXIII'!I41","v":0},{"$f":"'Schedule XXIII'!K41","v":0},null,0,0,0,null,0,0]
[null,{"$f":"'Schedule XXIII'!C42","v":"New Zealand Dollar"},{"$f":"'Schedule XXIII'!E42","v":0},{"$f":"'Schedule XXIII'!F42","v":0},null,null,null,0,0,null,{"$f":"'Schedule XXIII'!H42","v":0},{"$f":"'Schedule XXIII'!I42","v":0},{"$f":"'Schedule XXIII'!K42","v":0},null,0,0,0,null,0,0]
[null,{"$f":"'Schedule XXIII'!C43","v":"Other currency 1"},{"$f":"'Schedule XXIII'!E43","v":0},{"$f":"'Schedule XXIII'!F43","v":0},null,null,null,0,0,null,{"$f":"'Schedule XXIII'!H43","v":0},{"$f":"'Schedule XXIII'!I43","v":0},{"$f":"'Schedule XXIII'!K43","v":0},null,0,0,0,null,0,0]
[null,{"$f":"'Schedule XXIII'!C44","v":"Other currency 2"},{"$f":"'Schedule XXIII'!E44","v":0},{"$f":"'Schedule XXIII'!F44","v":0},null,null,null,0,0,null,{"$f":"'Schedule XXIII'!H44","v":0},{"$f":"'Schedule XXIII'!I44","v":0},{"$f":"'Schedule XXIII'!K44","v":0},null,0,0,0,null,0,0]
[null,{"$f":"'Schedule XXIII'!C45","v":"Other currency 3"},{"$f":"'Schedule XXIII'!E45","v":0},{"$f":"'Schedule XXIII'!F45","v":0},null,null,null,0,0,null,{"$f":"'Schedule XXIII'!H45","v":0},{"$f":"'Schedule XXIII'!I45","v":0},{"$f":"'Schedule XXIII'!K45","v":0},null,0,0,0,null,0,0]
[null,{"$f":"'Schedule XXIII'!C46","v":"Other currency 4"},{"$f":"'Schedule XXIII'!E46","v":0},{"$f":"'Schedule XXIII'!F46","v":0},null,null,null,0,0,null,{"$f":"'Schedule XXIII'!H46","v":0},{"$f":"'Schedule XXIII'!I46","v":0},{"$f":"'Schedule XXIII'!K46","v":0},null,0,0,0,null,0,0]
[null,{"$f":"'Schedule XXIII'!C47","v":"Other currency 5"},{"$f":"'Schedule XXIII'!E47","v":0},{"$f":"'Schedule XXIII'!F47","v":0},null,null,null,0,0,null,{"$f":"'Schedule XXIII'!H47","v":0},{"$f":"'Schedule XXIII'!I47","v":0},{"$f":"'Schedule XXIII'!K47","v":0},null,0,0,0,null,0,0]
[null,{"$f":"'Schedule XXIII'!C48","v":"Other currency 6"},{"$f":"'Schedule XXIII'!E48","v":0},{"$f":"'Schedule XXIII'!F48","v":0},null,null,null,0,0,null,{"$f":"'Schedule XXIII'!H48","v":0},{"$f":"'Schedule XXIII'!I48","v":0},{"$f":"'Schedule XXIII'!K48","v":0},null,0,0,0,null,0,0]
[null,{"$f":"'Schedule XXIII'!C49","v":"Other currency 7"},{"$f":"'Schedule XXIII'!E49","v":0},{"$f":"'Schedule XXIII'!F49","v":0},null,null,null,0,0,null,{"$f":"'Schedule XXIII'!H49","v":0},{"$f":"'Schedule XXIII'!I49","v":0},{"$f":"'Schedule XXIII'!K49","v":0},null,0,0,0,null,0,0]
[null,{"$f":"'Schedule XXIII'!C50","v":"Other currency 8"},{"$f":"'Schedule XXIII'!E50","v":0},{"$f":"'Schedule XXIII'!F50","v":0},null,null,null,0,0,null,{"$f":"'Schedule XXIII'!H50","v":0},{"$f":"'Schedule XXIII'!I50","v":0},{"$f":"'Schedule XXIII'!K50","v":0},null,0,0,0,null,0,0]
[null,{"$f":"'Schedule XXIII'!C51","v":"Other currency 9"},{"$f":"'Schedule XXIII'!E51","v":0},{"$f":"'Schedule XXIII'!F51","v":0},null,null,null,0,0,null,{"$f":"'Schedule XXIII'!H51","v":0},{"$f":"'Schedule XXIII'!I51","v":0},{"$f":"'Schedule XXIII'!K51","v":0},null,0,0,0,null,0,0]
[null,{"$f":"'Schedule XXIII'!C52","v":"Other currency 10"},{"$f":"'Schedule XXIII'!E52","v":0},{"$f":"'Schedule XXIII'!F52","v":0},null,null,null,0,0,null,{"$f":"'Schedule XXIII'!H52","v":0},{"$f":"'Schedule XXIII'!I52","v":0},{"$f":"'Schedule XXIII'!K52","v":0},null,0,0,0,null,0,0]
[null,"Total IR - Other",{"$f":"SUM(C54:C71)","v":0},{"$f":"SUM(D54:D71)","v":0},{"$f":"SUM(E54:E71)","v":0},{"$f":"SUM(F54:F71)","v":0},null,{"$f":"SUM(H54:H71)","v":0},{"$f":"SUM(I54:I71)","v":0},null,{"$f":"SUM(K54:K71)","v":0},{"$f":"SUM(L54:L71)","v":0},{"$f":"SUM(M54:M71)","v":0},null,{"$f":"SUM(O54:O71)","v":0},{"$f":"SUM(P54:P71)","v":0},{"$f":"SUM(Q54:Q71)","v":0},null,{"$f":"SUM(S54:S71)","v":0},{"$f":"SUM(T54:T71)","v":0}]
[]
[null,"IR Up - Derivatives"]
[null,{"$f":"'Schedule XXIII'!C35","v":"United States Dollars"},{"$f":"'Schedule XXIII'!M35","v":0},{"$f":"'Schedule XXIII'!N35","v":0},{"$f":"'Schedule XXIII'!P35","v":0},{"$f":"'Schedule XXIII'!Q35","v":0},null,{"$f":"C75+E75","v":0},{"$f":"D75+F75","v":0},null,{"$f":"'Schedule XXIII'!S35","v":0},{"$f":"'Schedule XXIII'!T35","v":0},{"$f":"'Schedule XXIII'!V35","v":0},null,{"$f":"C75-D75 + MAX(0,E75-F75)","v":0},{"$f":"L75-K75","v":0},{"$f":"M75-K75","v":0},null,{"$f":"$O75+P75","v":0},{"$f":"$O75+Q75","v":0}]
[null,{"$f":"'Schedule XXIII'!C36","v":"Euro"},{"$f":"'Schedule XXIII'!M36","v":0},{"$f":"'Schedule XXIII'!N36","v":0},{"$f":"'Schedule XXIII'!P36","v":0},{"$f":"'Schedule XXIII'!Q36","v":0},null,{"$f":"C76+E76","v":0},0,null,{"$f":"'Schedule XXIII'!S36","v":0},{"$f":"'Schedule XXIII'!T36","v":0},{"$f":"'Schedule XXIII'!V36","v":0},null,{"$f":"C76-D76 + MAX(0,E76-F76)","v":0},0,0,null,{"$f":"$O76+P76","v":0},{"$f":"$O76+Q76","v":0}]
[null,{"$f":"'Schedule XXIII'!C37","v":"United Kingdom Pounds"},{"$f":"'Schedule XXIII'!M37","v":0},{"$f":"'Schedule XXIII'!N37","v":0},{"$f":"'Schedule XXIII'!P37","v":0},{"$f":"'Schedule XXIII'!Q37","v":0},null,0,0,null,{"$f":"'Schedule XXIII'!S37","v":0},{"$f":"'Schedule XXIII'!T37","v":0},{"$f":"'Schedule XXIII'!V37","v":0},null,{"$f":"C77-D77 + MAX(0,E77-F77)","v":0},0,0,null,0,0]
[null,{"$f":"'Schedule XXIII'!C38","v":"Japan Yen"},{"$f":"'Schedule XXIII'!M38","v":0},{"$f":"'Schedule XXIII'!N38","v":0},{"$f":"'Schedule XXIII'!P38","v":0},{"$f":"'Schedule XXIII'!Q38","v":0},null,0,0,null,{"$f":"'Schedule XXIII'!S38","v":0},{"$f":"'Schedule XXIII'!T38","v":0},{"$f":"'Schedule XXIII'!V38","v":0},null,{"$f":"C78-D78 + MAX(0,E78-F78)","v":0},0,0,null,0,0]
[null,{"$f":"'Schedule XXIII'!C39","v":"Canada Dollars"},{"$f":"'Schedule XXIII'!M39","v":0},{"$f":"'Schedule XXIII'!N39","v":0},{"$f":"'Schedule XXIII'!P39","v":0},{"$f":"'Schedule XXIII'!Q39","v":0},null,0,0,null,{"$f":"'Schedule XXIII'!S39","v":0},{"$f":"'Schedule XXIII'!T39","v":0},{"$f":"'Schedule XXIII'!V39","v":0},null,{"$f":"C79-D79 + MAX(0,E79-F79)","v":0},0,0,null,0,0]
[null,{"$f":"'Schedule XXIII'!C40","v":"Swiss Francs"},{"$f":"'Schedule XXIII'!M40","v":0},{"$f":"'Schedule XXIII'!N40","v":0},{"$f":"'Schedule XXIII'!P40","v":0},{"$f":"'Schedule XXIII'!Q40","v":0},null,0,0,null,{"$f":"'Schedule XXIII'!S40","v":0},{"$f":"'Schedule XXIII'!T40","v":0},{"$f":"'Schedule XXIII'!V40","v":0},null,{"$f":"C80-D80 + MAX(0,E80-F80)","v":0},0,0,null,0,0]
[null,{"$f":"'Schedule XXIII'!C41","v":"Australia Dollar"},{"$f":"'Schedule XXIII'!M41","v":0},{"$f":"'Schedule XXIII'!N41","v":0},{"$f":"'Schedule XXIII'!P41","v":0},{"$f":"'Schedule XXIII'!Q41","v":0},null,0,0,null,{"$f":"'Schedule XXIII'!S41","v":0},{"$f":"'Schedule XXIII'!T41","v":0},{"$f":"'Schedule XXIII'!V41","v":0},null,0,0,0,null,0,0]
[null,{"$f":"'Schedule XXIII'!C42","v":"New Zealand Dollar"},{"$f":"'Schedule XXIII'!M42","v":0},{"$f":"'Schedule XXIII'!N42","v":0},{"$f":"'Schedule XXIII'!P42","v":0},{"$f":"'Schedule XXIII'!Q42","v":0},null,0,0,null,{"$f":"'Schedule XXIII'!S42","v":0},{"$f":"'Schedule XXIII'!T42","v":0},{"$f":"'Schedule XXIII'!V42","v":0},null,0,0,0,null,0,0]
[null,{"$f":"'Schedule XXIII'!C43","v":"Other currency 1"},{"$f":"'Schedule XXIII'!M43","v":0},{"$f":"'Schedule XXIII'!N43","v":0},{"$f":"'Schedule XXIII'!P43","v":0},{"$f":"'Schedule XXIII'!Q43","v":0},null,0,0,null,{"$f":"'Schedule XXIII'!S43","v":0},{"$f":"'Schedule XXIII'!T43","v":0},{"$f":"'Schedule XXIII'!V43","v":0},null,0,0,0,null,0,0]
[null,{"$f":"'Schedule XXIII'!C44","v":"Other currency 2"},{"$f":"'Schedule XXIII'!M44","v":0},{"$f":"'Schedule XXIII'!N44","v":0},{"$f":"'Schedule XXIII'!P44","v":0},{"$f":"'Schedule XXIII'!Q44","v":0},null,0,0,null,{"$f":"'Schedule XXIII'!S44","v":0},{"$f":"'Schedule XXIII'!T44","v":0},{"$f":"'Schedule XXIII'!V44","v":0},null,0,0,0,null,0,0]
[null,{"$f":"'Schedule XXIII'!C45","v":"Other currency 3"},{"$f":"'Schedule XXIII'!M45","v":0},{"$f":"'Schedule XXIII'!N45","v":0},{"$f":"'Schedule XXIII'!P45","v":0},{"$f":"'Schedule XXIII'!Q45","v":0},null,0,0,null,{"$f":"'Schedule XXIII'!S45","v":0},{"$f":"'Schedule XXIII'!T45","v":0},{"$f":"'Schedule XXIII'!V45","v":0},null,0,0,0,null,0,0]
[null,{"$f":"'Schedule XXIII'!C46","v":"Other currency 4"},{"$f":"'Schedule XXIII'!M46","v":0},{"$f":"'Schedule XXIII'!N46","v":0},{"$f":"'Schedule XXIII'!P46","v":0},{"$f":"'Schedule XXIII'!Q46","v":0},null,0,0,null,{"$f":"'Schedule XXIII'!S46","v":0},{"$f":"'Schedule XXIII'!T46","v":0},{"$f":"'Schedule XXIII'!V46","v":0},null,0,0,0,null,0,0]
[null,{"$f":"'Schedule XXIII'!C47","v":"Other currency 5"},{"$f":"'Schedule XXIII'!M47","v":0},{"$f":"'Schedule XXIII'!N47","v":0},{"$f":"'Schedule XXIII'!P47","v":0},{"$f":"'Schedule XXIII'!Q47","v":0},null,0,0,null,{"$f":"'Schedule XXIII'!S47","v":0},{"$f":"'Schedule XXIII'!T47","v":0},{"$f":"'Schedule XXIII'!V47","v":0},null,0,0,0,null,0,0]
[null,{"$f":"'Schedule XXIII'!C48","v":"Other currency 6"},{"$f":"'Schedule XXIII'!M48","v":0},{"$f":"'Schedule XXIII'!N48","v":0},{"$f":"'Schedule XXIII'!P48","v":0},{"$f":"'Schedule XXIII'!Q48","v":0},null,0,0,null,{"$f":"'Schedule XXIII'!S48","v":0},{"$f":"'Schedule XXIII'!T48","v":0},{"$f":"'Schedule XXIII'!V48","v":0},null,0,0,0,null,0,0]
[null,{"$f":"'Schedule XXIII'!C49","v":"Other currency 7"},{"$f":"'Schedule XXIII'!M49","v":0},{"$f":"'Schedule XXIII'!N49","v":0},{"$f":"'Schedule XXIII'!P49","v":0},{"$f":"'Schedule XXIII'!Q49","v":0},null,0,0,null,{"$f":"'Schedule XXIII'!S49","v":0},{"$f":"'Schedule XXIII'!T49","v":0},{"$f":"'Schedule XXIII'!V49","v":0},null,0,0,0,null,0,0]
[null,{"$f":"'Schedule XXIII'!C50","v":"Other currency 8"},{"$f":"'Schedule XXIII'!M50","v":0},{"$f":"'Schedule XXIII'!N50","v":0},{"$f":"'Schedule XXIII'!P50","v":0},{"$f":"'Schedule XXIII'!Q50","v":0},null,0,0,null,{"$f":"'Schedule XXIII'!S50","v":0},{"$f":"'Schedule XXIII'!T50","v":0},{"$f":"'Schedule XXIII'!V50","v":0},null,0,0,0,null,0,0]
[null,{"$f":"'Schedule XXIII'!C51","v":"Other currency 9"},{"$f":"'Schedule XXIII'!M51","v":0},{"$f":"'Schedule XXIII'!N51","v":0},{"$f":"'Schedule XXIII'!P51","v":0},{"$f":"'Schedule XXIII'!Q51","v":0},null,0,0,null,{"$f":"'Schedule XXIII'!S51","v":0},{"$f":"'Schedule XXIII'!T51","v":0},{"$f":"'Schedule XXIII'!V51","v":0},null,0,0,0,null,0,0]
[null,{"$f":"'Schedule XXIII'!C52","v":"Other currency 10"},{"$f":"'Schedule XXIII'!M52","v":0},{"$f":"'Schedule XXIII'!N52","v":0},{"$f":"'Schedule XXIII'!P52","v":0},{"$f":"'Schedule XXIII'!Q52","v":0},null,0,0,null,{"$f":"'Schedule XXIII'!S52","v":0},{"$f":"'Schedule XXIII'!T52","v":0},{"$f":"'Schedule XXIII'!V52","v":0},null,0,0,0,null,0,0]
[null,"Total IR - Derivatives",{"$f":"SUM(C75:C92)","v":0},{"$f":"SUM(D75:D92)","v":0},{"$f":"SUM(E75:E92)","v":0},{"$f":"SUM(F75:F92)","v":0},null,{"$f":"SUM(H75:H92)","v":0},{"$f":"SUM(I75:I92)","v":0},null,{"$f":"SUM(K75:K92)","v":0},{"$f":"SUM(L75:L92)","v":0},{"$f":"SUM(M75:M92)","v":0},null,{"$f":"SUM(O75:O92)","v":0},{"$f":"SUM(P75:P92)","v":0},{"$f":"SUM(Q75:Q92)","v":0},null,{"$f":"SUM(S75:S92)","v":0},{"$f":"SUM(T75:T92)","v":0}]
[null,"Total IR - UP",{"$f":"C72+C93","v":0},{"$f":"D72+D93","v":0},{"$f":"E72+E93","v":0},{"$f":"F72+F93","v":0},null,{"$f":"H72+H93","v":0},{"$f":"I72+I93","v":0},null,{"$f":"K72+K93","v":0},{"$f":"L72+L93","v":0},{"$f":"M72+M93","v":0},null,{"$f":"O72+O93","v":0},{"$f":"P72+P93","v":0},{"$f":"Q72+Q93","v":0},null,{"$f":"MAX(0,S72+S93)","v":0},{"$f":"MAX(0,T72+T93)","v":0}]
[]
[]
[null,"Overall Interest Rate Risk",null,null,null,null,null,"Scenario-Based Approach"]
[null,null,null,null,null,null,null,null,null,null,"Without Management Actions",null,null,null,"With Management Actions"]
[null,"Interest Rates Down Shock - without Management Actions",null,null,{"$f":"S51","v":0},null,null,null,"Consolidated Base",null,"Consolidated Shock",null,null,null,"Consolidated Shock"]
[null,"Interest Rates Up Shock - without Management Actions",null,null,{"$f":"S94","v":0}]
[null,"Max(IR Down, IR Up) - without MA",null,null,{"$f":"MAX(0,E99,E100)","v":0},null,null,"Shock used",null,null,"Down","Up",null,null,"Down","Up"]
[]
[null,"Interest Rate Risk without Management Actions",null,null,{"$f":"MAX(0,IF(E109=\"UP\",E100,E99))","v":0},null,null,"MV Assets",{"$f":"C51","v":0},null,{"$f":"D51-(O50-(C50-D50))","v":0},{"$f":"D94-(O93-(C93-D93))","v":0},null,null,{"$f":"K103","v":0},{"$f":"L103","v":0}]
[null,null,null,null,null,null,null,"BEL",{"$f":"K51","v":0},null,{"$f":"L51","v":0},{"$f":"L94","v":0},null,null,{"$f":"M51","v":0},{"$f":"M94","v":0}]
[]
[null,"Interest Rates Down Shock - with Management Actions",null,null,{"$f":"T51","v":0},null,null,"BEL-Worst",null,null,{"$f":"$I106","v":0},{"$f":"$I106","v":0},null,null,{"$f":"$I106","v":0},{"$f":"$I106","v":0}]
[null,"Interest Rates Up Shock - with Management Actions",null,null,{"$f":"T94","v":0},null,null,"BEL-Base",null,null,{"$f":"$I107","v":0},{"$f":"$I107","v":0},null,null,{"$f":"$I107","v":0},{"$f":"$I107","v":0}]
[null,"Max(IR Down, IR Up) - with Management Actions",null,null,{"$f":"MAX(E106,E107)","v":0}]
[null,"Biting scenario",null,null,{"$f":"IF(E108=E106,\"DOWN\",\"UP\")","v":"DOWN"},null,null,"\"NAV\"",{"$f":"I$103-I$104","v":0},null,{"$f":"K$103-K$104","v":0},{"$f":"L$103-L$104","v":0},null,null,{"$f":"O$103-O$104","v":0},{"$f":"P$103-P$104","v":0}]
[]
[null,"Interest Rate Risk with Management Actions",null,null,{"$f":"MAX(0,E108)","v":0},null,null,"CR IR",null,null,{"$f":"MAX(0,$I109-K109)","v":0},{"$f":"MAX(0,$I109-L109)","v":0},null,null,{"$f":"MAX(0,$I109-O109)","v":0},{"$f":"MAX(0,$I109-P109)","v":0}]
[null,null,null,null,null,null,null,"Floor (25 % of CR IR)",null,null,{"$f":"25%*K111","v":0},{"$f":"25%*L111","v":0},null,null,{"$f":"25%*O111","v":0},{"$f":"25%*P111","v":0}]
[null,null,null,null,null,null,null,"BEL Deduction",null,null,{"$f":"K$106-K$107","v":0},{"$f":"L$106-L$107","v":0},null,null,{"$f":"O$106-O$107","v":0},{"$f":"P$106-P$107","v":0}]
[null,"Adjustment to IR Risk capital requirement",null,"Without MA","With MA",null,null,"Factor-adjusted BEL Deduct",null,null,{"$f":"50%*K113","v":0},{"$f":"50%*L113","v":0},null,null,{"$f":"50%*O113","v":0},{"$f":"50%*P113","v":0}]
[null,"For companies using Scenario-Based Approach",null,{"$f":"IF(OR(VALUE(I107)=0,VALUE(I106)=0),0,IF($E$109=\"DOWN\",K116-K111,L116-L111))","v":0},{"$f":"IF(OR(VALUE(I107)=0,VALUE(I106)=0),0,IF($E$109=\"DOWN\",O116-O111,P116-P111))","v":0}]
[null,null,null,null,null,null,null,"Capital Charge with 50 % factor",null,null,{"$f":"MAX(K112,K111-K114)","v":0},{"$f":"MAX(L112,L111-L114)","v":0},null,null,{"$f":"MAX(O112,O111-O114)","v":0},{"$f":"MAX(P112,P111-P114)","v":0}]
[null,"Interest Rate Risk capital requirement",null,{"$f":"MAX(E103+D115,0)","v":0},{"$f":"MAX(E111+E115,0)","v":0},null,null,"Max(Down,Up)",null,null,{"$f":"IF(K111>L111,K116,L116)","v":0},null,null,null,{"$f":"IF(O111>P111,O116,P116)","v":0}]

{"sheet":"Currency Risk (old)","index":119,"n_rows":28,"n_cols":9,"rows_kept":28,"cut":false,"hidden":true,"merged":[[0,8,0,9],[4,7,5,7],[2,2,2,4]]}
["CURRENCY RISK",null,null,null,null,null,null,null,{"$f":"HYPERLINK(\"#'Index'!A1\",\"Return to Index\")","v":"Return to Index"}]
[{"$f":"'Company Information'!C7","v":"Enter Company Name"}]
["Currency Risk",null,{"$f":"'Company Information'!C3","v":"2022-12-31"}]
[]
[null,null,"(A)","(B)","(C)","(D)",{"$f":"\"(E) = (\"&ROUND(G6,2)*100&\"% of C)\"","v":"(E) = (0% of C)"},"(F) = (If(A>(C+E), 0%, 25%))","(G) = F x ABS(A-C-E)"]
[null,null,"ASSETS","TOTAL ASSETS WITH","LIABILITIES","TOTAL LIABILITIES WITH",{"$f":"+'Schedule XX'!T36","v":0},null,"REQUIRED"]
[null,"CURRENCY","Form 1EBS, Line 15","HEDGING ARRAGEMENTS","Form 1EBS, Line 39","HEDGING ARRAGEMENTS","PROXY BSCR","CHARGE","CAPITAL"]
[]
[null,{"$f":"'Schedule XX'!B9","v":"United States Dollars"},{"$f":"'Schedule XX'!L9","v":0},{"$f":"'Schedule XX'!N9","v":0},{"$f":"'Schedule XX'!P9","v":0},{"$f":"'Schedule XX'!R9","v":0},{"$f":"IF(F9=0,E9*$G$6,F9*$G$6)","v":0},0,{"$f":"IF(SUM(C10:E23)=0,0,IF(D9=0,H9*ABS(C9-E9-G9),H9*ABS(D9-F9-G9)))","v":0}]
[null,{"$f":"'Schedule XX'!B10","v":"Euro"},{"$f":"'Schedule XX'!L10","v":0},{"$f":"'Schedule XX'!N10","v":0},{"$f":"'Schedule XX'!P10","v":0},{"$f":"'Schedule XX'!R10","v":0},{"$f":"IF(F10=0,E10*$G$6,F10*$G$6)","v":0},{"$f":"IF(D10=0,IF(C10>(E10+G10),0%,25%),IF(D10>(F10+G10),0%,25%))","v":0.25},{"$f":"IF(D10=0,H10*ABS(C10-E10-G10),H10*ABS(D10-F10-G10))","v":0}]
[null,{"$f":"'Schedule XX'!B11","v":"United Kingdom Pounds"},{"$f":"'Schedule XX'!L11","v":0},{"$f":"'Schedule XX'!N11","v":0},{"$f":"'Schedule XX'!P11","v":0},{"$f":"'Schedule XX'!R11","v":0},0,0.25,0]
[null,{"$f":"'Schedule XX'!B12","v":"Canada Dollars"},{"$f":"'Schedule XX'!L12","v":0},{"$f":"'Schedule XX'!N12","v":0},{"$f":"'Schedule XX'!P12","v":0},{"$f":"'Schedule XX'!R12","v":0},0,0.25,0]
[null,{"$f":"'Schedule XX'!B13","v":"Japan Yen"},{"$f":"'Schedule XX'!L13","v":0},{"$f":"'Schedule XX'!N13","v":0},{"$f":"'Schedule XX'!P13","v":0},{"$f":"'Schedule XX'!R13","v":0},0,0.25,0]
[null,{"$f":"'Schedule XX'!B14","v":"Other currency 1"},{"$f":"'Schedule XX'!L14","v":0},{"$f":"'Schedule XX'!N14","v":0},{"$f":"'Schedule XX'!P14","v":0},{"$f":"'Schedule XX'!R14","v":0},0,0.25,0]
[null,{"$f":"'Schedule XX'!B15","v":"Other currency 2"},{"$f":"'Schedule XX'!L15","v":0},{"$f":"'Schedule XX'!N15","v":0},{"$f":"'Schedule XX'!P15","v":0},{"$f":"'Schedule XX'!R15","v":0},0,0.25,0]
[null,{"$f":"'Schedule XX'!B16","v":"Other currency 3"},{"$f":"'Schedule XX'!L16","v":0},{"$f":"'Schedule XX'!N16","v":0},{"$f":"'Schedule XX'!P16","v":0},{"$f":"'Schedule XX'!R16","v":0},0,0.25,0]
[null,{"$f":"'Schedule XX'!B17","v":"Other currency 4"},{"$f":"'Schedule XX'!L17","v":0},{"$f":"'Schedule XX'!N17","v":0},{"$f":"'Schedule XX'!P17","v":0},{"$f":"'Schedule XX'!R17","v":0},0,0.25,0]
[null,{"$f":"'Schedule XX'!B18","v":"Other currency 5"},{"$f":"'Schedule XX'!L18","v":0},{"$f":"'Schedule XX'!N18","v":0},{"$f":"'Schedule XX'!P18","v":0},{"$f":"'Schedule XX'!R18","v":0},0,0.25,{"$f":"IF(D18=0,H18*ABS(C18-E18-G18),H18*ABS(D18-F18-G18))","v":0}]
[null,{"$f":"'Schedule XX'!B19","v":"Other currency 6"},{"$f":"'Schedule XX'!L19","v":0},{"$f":"'Schedule XX'!N19","v":0},{"$f":"'Schedule XX'!P19","v":0},{"$f":"'Schedule XX'!R19","v":0},0,0.25,{"$f":"IF(D19=0,H19*ABS(C19-E19-G19),H19*ABS(D19-F19-G19))","v":0}]
[null,{"$f":"'Schedule XX'!B20","v":"Other currency 7"},{"$f":"'Schedule XX'!L20","v":0},{"$f":"'Schedule XX'!N20","v":0},{"$f":"'Schedule XX'!P20","v":0},{"$f":"'Schedule XX'!R20","v":0},0,0.25,{"$f":"IF(D20=0,H20*ABS(C20-E20-G20),H20*ABS(D20-F20-G20))","v":0}]
[null,{"$f":"'Schedule XX'!B21","v":"Other currency 8"},{"$f":"'Schedule XX'!L21","v":0},{"$f":"'Schedule XX'!N21","v":0},{"$f":"'Schedule XX'!P21","v":0},{"$f":"'Schedule XX'!R21","v":0},0,0.25,{"$f":"IF(D21=0,H21*ABS(C21-E21-G21),H21*ABS(D21-F21-G21))","v":0}]
[null,{"$f":"'Schedule XX'!B22","v":"Other currency 9"},{"$f":"'Schedule XX'!L22","v":0},{"$f":"'Schedule XX'!N22","v":0},{"$f":"'Schedule XX'!P22","v":0},{"$f":"'Schedule XX'!R22","v":0},0,0.25,{"$f":"IF(D22=0,H22*ABS(C22-E22-G22),H22*ABS(D22-F22-G22))","v":0}]
[null,{"$f":"'Schedule XX'!B23","v":"Other currency 10"},{"$f":"'Schedule XX'!L23","v":0},{"$f":"'Schedule XX'!N23","v":0},{"$f":"'Schedule XX'!P23","v":0},{"$f":"'Schedule XX'!R23","v":0},0,0.25,0]
[null,"Total Identified",{"$f":"SUM(C9:C23)","v":0},{"$f":"SUM(D9:D23)","v":0},{"$f":"SUM(E9:E23)","v":0},{"$f":"SUM(F9:F23)","v":0}]
[null,"Total",{"$f":"'Form 1SFS (Consolidated)'!M91","v":0},null,{"$f":"'Form 1SFS (Consolidated)'!M145","v":0}]
[null,"% Identified",{"$f":"IF(C24=0,0,C24/C25)","v":0},null,{"$f":"IF(E24=0,0,E24/E25)","v":0}]
[]
[null,"TOTAL CURRENCY RISK",{"$f":"SUM(C9:C23)","v":0},null,{"$f":"SUM(E9:E23)","v":0},null,null,null,{"$f":"IF(SUM(I9:I26)>=0,SUM(I9:I26),0)","v":0}]

{"sheet":"Currency Risk","index":120,"n_rows":39,"n_cols":25,"rows_kept":39,"cut":false,"hidden":false,"merged":[[5,23,5,24],[2,11,2,16],[5,2,5,9],[5,11,5,17],[8,3,8,4],[8,5,8,6],[8,12,8,13],[8,14,8,15],[5,19,5,21]]}
[" ","CURRENCY RISK",null,null,null,null,null,null,null,null,null,null,null,null,null,null,null,null,null,null,null,null,null,null,{"$f":"HYPERLINK(\"#'Index'!A1\",\"Return to Index\")","v":"Return to Index"}]
[{"$f":"'Company Information'!C7","v":"Enter Company Name"}]
[{"$f":"\"Currency Risk\" & \"($\"&IF(CONFIGURATION!$B$12>1,MID(CONFIGURATION!$B$12,2,LEN(CONFIGURATION!$B$12)),\"\")&\")\"","v":"Currency Risk($000)"},null,null,null,{"$f":"'Company Information'!C3","v":"2022-12-31"}]
[]
[null,null,-1,{"$f":"C5-1","v":-2},-3,-4,-5,-6,-7,-8,null,{"$f":"J5-1","v":-9},{"$f":"L5-1","v":-10},-11,-12,-13,-14,-15,null,{"$f":"R5-1","v":-16},{"$f":"T5-1","v":-17},{"$f":"U5-1","v":-18},null,{"$f":"V5-1","v":-19},{"$f":"X5-1","v":-20}]
[null,null,"MARKET VALUE BEFORE SHOCK",null,null,null,null,null,null,null,null,"MARKET VALUE AFTER SHOCK",null,null,null,null,null,null,null,"CURRENCY RISK"]
[null,null,null,null,null,null,null,null,"(6) x BSCR PROXY","if(((1) + (2) + (3) + (4) + (5)) > ((6) + (7)), 0, X1)"]
[null,null,null,null,null,null,null,null,"PROXY BSCR",null,null,"(1) + (8) x (1)",null,null,null,null,"(6) + (8) x (6)",null,null,"((1) - (9)) + ((2) - (10)) + ((3) - (11)) + MAX((4) - (12),0) + MAX((5) - (13),0)","(14) - (6)","(15) - (6)",null,"(16) + (17)","(16) + (18)"]
[null,null,null,"Long Exposures",null,"Short Exposures",null,null,null,null,null,null,"Long Exposures",null,"Short Exposures"]
[null,"CURRENCY","Assets - Excluding currency-sensitive derivatives","Currency Derivatives Qualifying as held for risk-mitigation purposes","Currency Derivatives Not Qualifying as held for risk-mitigation purposes","Currency Derivatives Qualifying as held for risk-mitigation purposes","Currency Derivatives Not Qualifying as held for risk-mitigation purposes","Best Estimate Liabilities",{"$f":"'Schedule XXA'!P45","v":0},"SHOCK",null,"Assets - Excluding currency-sensitive derivatives","Currency Derivatives Qualifying as held for risk-mitigation purposes","Currency Derivatives Not Qualifying as held for risk-mitigation purposes","Currency Derivatives Qualifying as held for risk-mitigation purposes","Currency Derivatives Not Qualifying as held for risk-mitigation purposes","Best Estimate Liabilities without Management Actions","Best Estimate Liabilities with Management Actions",null,"ASSETS","TECHNICAL PROVISIONS WITHOUT MANAGEMENT ACTIONS","TECHNICAL PROVISIONS WITH MANAGEMENT ACTIONS",null,"CAPITAL CHARGE WITHOUT MANAGEMENT ACTIONS","CAPITAL CHARGE WITH MANAGEMENT ACTIONS"]
[]
[null,{"$f":"'Schedule XXA'!B10","v":"United States Dollars"},{"$f":"'Schedule XXA'!D10","v":0},{"$f":"'Schedule XXA'!F10","v":0},{"$f":"'Schedule XXA'!H10","v":0},{"$f":"'Schedule XXA'!J10","v":0},{"$f":"'Schedule XXA'!L10","v":0},{"$f":"'Schedule XXA'!N10","v":0},{"$f":"$I$10*H12","v":0},0,null,{"$f":"'Schedule XXA'!V10","v":0},{"$f":"'Schedule XXA'!X10","v":0},{"$f":"'Schedule XXA'!Z10","v":0},{"$f":"'Schedule XXA'!AB10","v":0},{"$f":"'Schedule XXA'!AD10","v":0},{"$f":"'Schedule XXA'!AF10","v":0},{"$f":"IF('Schedule XXA'!AH10=0,Q12,'Schedule XXA'!AH10)","v":0},null,{"$f":"(C12-L12)+(D12-M12)+(F12-O12)+MAX(E12-N12,0)+MAX(G12-P12,0)","v":0},{"$f":"Q12-$H12","v":0},{"$f":"R12-$H12","v":0},null,{"$f":"MAX(0,$T12+U12+(J12*I12))","v":0},{"$f":"MAX(0,$T12+V12+(J12*I12))","v":0}]
[null,{"$f":"'Schedule XXA'!B11","v":"Bermuda Dollars"},{"$f":"'Schedule XXA'!D11","v":0},{"$f":"'Schedule XXA'!F11","v":0},{"$f":"'Schedule XXA'!H11","v":0},{"$f":"'Schedule XXA'!J11","v":0},{"$f":"'Schedule XXA'!L11","v":0},{"$f":"'Schedule XXA'!N11","v":0},{"$f":"$I$10*H13","v":0},{"$f":"IF($B$12=\"Bermuda Dollars\",0%,IF($B$12=\"United States Dollars\",0%,IF((SUM(C13:G13))>(H13+I13),0%,25%)))","v":0},null,{"$f":"'Schedule XXA'!V11","v":0},{"$f":"'Schedule XXA'!X11","v":0},{"$f":"'Schedule XXA'!Z11","v":0},{"$f":"'Schedule XXA'!AB11","v":0},{"$f":"'Schedule XXA'!AD11","v":0},{"$f":"'Schedule XXA'!AF11","v":0},{"$f":"IF('Schedule XXA'!AH11=0,Q13,'Schedule XXA'!AH11)","v":0},null,{"$f":"(C13-L13)+(D13-M13)+(F13-O13)+MAX(E13-N13,0)+MAX(G13-P13,0)","v":0},{"$f":"Q13-$H13","v":0},{"$f":"R13-$H13","v":0},null,{"$f":"MAX(0,$T13+U13+(J13*I13))","v":0},{"$f":"MAX(0,$T13+V13+(J13*I13))","v":0}]
[null,{"$f":"'Schedule XXA'!B12","v":"Qatar Riyals"},{"$f":"'Schedule XXA'!D12","v":0},{"$f":"'Schedule XXA'!F12","v":0},{"$f":"'Schedule XXA'!H12","v":0},{"$f":"'Schedule XXA'!J12","v":0},{"$f":"'Schedule XXA'!L12","v":0},{"$f":"'Schedule XXA'!N12","v":0},0,{"$f":"IF($B$12=\"Qatar Riyals\",IF((SUM(C14:G14))>(H14+I14),0%,5%),IF($B$12=\"United States Dollars\",IF((C14+E14)>(H14+I14),0%,5%),IF((SUM(C14:G14))>(H14+I14),0%,25%)))","v":0.05},null,{"$f":"'Schedule XXA'!V12","v":0},{"$f":"'Schedule XXA'!X12","v":0},{"$f":"'Schedule XXA'!Z12","v":0},{"$f":"'Schedule XXA'!AB12","v":0},{"$f":"'Schedule XXA'!AD12","v":0},{"$f":"'Schedule XXA'!AF12","v":0},{"$f":"IF('Schedule XXA'!AH12=0,Q14,'Schedule XXA'!AH12)","v":0},null,0,0,0,null,0,0]
[null,{"$f":"'Schedule XXA'!B13","v":"Hong Kong Dollars"},{"$f":"'Schedule XXA'!D13","v":0},{"$f":"'Schedule XXA'!F13","v":0},{"$f":"'Schedule XXA'!H13","v":0},{"$f":"'Schedule XXA'!J13","v":0},{"$f":"'Schedule XXA'!L13","v":0},{"$f":"'Schedule XXA'!N13","v":0},0,{"$f":"IF($B$12=\"Hong Kong Dollars\",IF((SUM(C15:G15))>(H15+I15),0%,1%),IF($B$12=\"United States Dollars\",IF((C15+E15)>(H15+I15),0%,1%),IF((SUM(C15:G15))>(H15+I15),0%,25%)))","v":0.01},null,{"$f":"'Schedule XXA'!V13","v":0},{"$f":"'Schedule XXA'!X13","v":0},{"$f":"'Schedule XXA'!Z13","v":0},{"$f":"'Schedule XXA'!AB13","v":0},{"$f":"'Schedule XXA'!AD13","v":0},{"$f":"'Schedule XXA'!AF13","v":0},{"$f":"IF('Schedule XXA'!AH13=0,Q15,'Schedule XXA'!AH13)","v":0},null,0,0,0,null,0,0]
[null,{"$f":"'Schedule XXA'!B14","v":"Euro"},{"$f":"'Schedule XXA'!D14","v":0},{"$f":"'Schedule XXA'!F14","v":0},{"$f":"'Schedule XXA'!H14","v":0},{"$f":"'Schedule XXA'!J14","v":0},{"$f":"'Schedule XXA'!L14","v":0},{"$f":"'Schedule XXA'!N14","v":0},0,{"$f":"IF($B$12=\"Denmark Kroner\",IF((C16+D16+E16+F16+G16)>(H16+I16),0%,0.39%),IF($B$12=\"Bulgaria Leva\",IF((C16+D16+E16+F16+G16)>(H16+I16),0%,1.81%),IF($B$12=\"West African CFA Francs\",IF((C16+D16+E16+F16+G16)>(H16+I16),0%,2.18%),IF($B$12=\"Central African CFA Francs\",IF((C16+D16+E16+F16+G16)>(H16+I16),0%,1.96%),IF($B$12=\"Comorian Francs\",IF((C16+D16+E16+F16+G16)>(H16+I16),0%,2%),IF((C16+D16+E16+F16+G16)>(H16+I16),0%,25%))))))","v":0.25},null,{"$f":"'Schedule XXA'!V14","v":0},{"$f":"'Schedule XXA'!X14","v":0},{"$f":"'Schedule XXA'!Z14","v":0},{"$f":"'Schedule XXA'!AB14","v":0},{"$f":"'Schedule XXA'!AD14","v":0},{"$f":"'Schedule XXA'!AF14","v":0},{"$f":"IF('Schedule XXA'!AH14=0,Q16,'Schedule XXA'!AH14)","v":0},null,0,0,0,null,0,0]
[null,{"$f":"'Schedule XXA'!B15","v":"Denmark Kroner"},{"$f":"'Schedule XXA'!D15","v":0},{"$f":"'Schedule XXA'!F15","v":0},{"$f":"'Schedule XXA'!H15","v":0},{"$f":"'Schedule XXA'!J15","v":0},{"$f":"'Schedule XXA'!L15","v":0},{"$f":"'Schedule XXA'!N15","v":0},0,{"$f":"IF($B$12=\"Euro\",IF((SUM(C17:G17))>(H17+I17),0%,0.39%),IF((SUM(C17:G17))>(H17+I17),0%,25%))","v":0.25},null,{"$f":"'Schedule XXA'!V15","v":0},{"$f":"'Schedule XXA'!X15","v":0},{"$f":"'Schedule XXA'!Z15","v":0},{"$f":"'Schedule XXA'!AB15","v":0},{"$f":"'Schedule XXA'!AD15","v":0},{"$f":"'Schedule XXA'!AF15","v":0},{"$f":"IF('Schedule XXA'!AH15=0,Q17,'Schedule XXA'!AH15)","v":0},null,0,0,0,null,0,0]
[null,{"$f":"'Schedule XXA'!B16","v":"Bulgaria Leva"},{"$f":"'Schedule XXA'!D16","v":0},{"$f":"'Schedule XXA'!F16","v":0},{"$f":"'Schedule XXA'!H16","v":0},{"$f":"'Schedule XXA'!J16","v":0},{"$f":"'Schedule XXA'!L16","v":0},{"$f":"'Schedule XXA'!N16","v":0},0,{"$f":"IF($B$12=\"Euro\",IF((SUM(C18:G18))>(H18+I18),0%,1.81%),IF((SUM(C18:G18))>(H18+I18),0%,25%))","v":0.25},null,{"$f":"'Schedule XXA'!V16","v":0},{"$f":"'Schedule XXA'!X16","v":0},{"$f":"'Schedule XXA'!Z16","v":0},{"$f":"'Schedule XXA'!AB16","v":0},{"$f":"'Schedule XXA'!AD16","v":0},{"$f":"'Schedule XXA'!AF16","v":0},{"$f":"IF('Schedule XXA'!AH16=0,Q18,'Schedule XXA'!AH16)","v":0},null,0,0,0,null,0,0]
[null,{"$f":"'Schedule XXA'!B17","v":"West African CFA Francs"},{"$f":"'Schedule XXA'!D17","v":0},{"$f":"'Schedule XXA'!F17","v":0},{"$f":"'Schedule XXA'!H17","v":0},{"$f":"'Schedule XXA'!J17","v":0},{"$f":"'Schedule XXA'!L17","v":0},{"$f":"'Schedule XXA'!N17","v":0},0,{"$f":"IF($B$12=\"Euro\",IF((SUM(C19:G19))>(H19+I19),0%,2.18%),IF((SUM(C19:G19))>(H19+I19),0%,25%))","v":0.25},null,{"$f":"'Schedule XXA'!V17","v":0},{"$f":"'Schedule XXA'!X17","v":0},{"$f":"'Schedule XXA'!Z17","v":0},{"$f":"'Schedule XXA'!AB17","v":0},{"$f":"'Schedule XXA'!AD17","v":0},{"$f":"'Schedule XXA'!AF17","v":0},{"$f":"IF('Schedule XXA'!AH17=0,Q19,'Schedule XXA'!AH17)","v":0},null,0,0,0,null,0,0]
[null,{"$f":"'Schedule XXA'!B18","v":"Central African CFA Francs"},{"$f":"'Schedule XXA'!D18","v":0},{"$f":"'Schedule XXA'!F18","v":0},{"$f":"'Schedule XXA'!H18","v":0},{"$f":"'Schedule XXA'!J18","v":0},{"$f":"'Schedule XXA'!L18","v":0},{"$f":"'Schedule XXA'!N18","v":0},0,{"$f":"IF($B$12=\"Euro\",IF((SUM(C20:G20))>(H20+I20),0%,1.96%),IF((SUM(C20:G20))>(H20+I20),0%,25%))","v":0.25},null,{"$f":"'Schedule XXA'!V18","v":0},{"$f":"'Schedule XXA'!X18","v":0},{"$f":"'Schedule XXA'!Z18","v":0},{"$f":"'Schedule XXA'!AB18","v":0},{"$f":"'Schedule XXA'!AD18","v":0},{"$f":"'Schedule XXA'!AF18","v":0},{"$f":"IF('Schedule XXA'!AH18=0,Q20,'Schedule XXA'!AH18)","v":0},null,0,0,0,null,0,0]
[null,{"$f":"'Schedule XXA'!B19","v":"Comorian Francs"},{"$f":"'Schedule XXA'!D19","v":0},{"$f":"'Schedule XXA'!F19","v":0},{"$f":"'Schedule XXA'!H19","v":0},{"$f":"'Schedule XXA'!J19","v":0},{"$f":"'Schedule XXA'!L19","v":0},{"$f":"'Schedule XXA'!N19","v":0},0,{"$f":"IF($B$12=\"Euro\",IF((SUM(C21:G21))>(H21+I21),0%,2%),IF((SUM(C21:G21))>(H21+I21),0%,25%))","v":0.25},null,{"$f":"'Schedule XXA'!V19","v":0},{"$f":"'Schedule XXA'!X19","v":0},{"$f":"'Schedule XXA'!Z19","v":0},{"$f":"'Schedule XXA'!AB19","v":0},{"$f":"'Schedule XXA'!AD19","v":0},{"$f":"'Schedule XXA'!AF19","v":0},{"$f":"IF('Schedule XXA'!AH19=0,Q21,'Schedule XXA'!AH19)","v":0},null,0,0,0,null,0,0]
[null,{"$f":"'Schedule XXA'!B20","v":"United Kingdom Pounds"},{"$f":"'Schedule XXA'!D20","v":0},{"$f":"'Schedule XXA'!F20","v":0},{"$f":"'Schedule XXA'!H20","v":0},{"$f":"'Schedule XXA'!J20","v":0},{"$f":"'Schedule XXA'!L20","v":0},{"$f":"'Schedule XXA'!N20","v":0},0,{"$f":"IF((SUM(C22:G22))>(H22+I22),0%,25%)","v":0.25},null,{"$f":"'Schedule XXA'!V20","v":0},{"$f":"'Schedule XXA'!X20","v":0},{"$f":"'Schedule XXA'!Z20","v":0},{"$f":"'Schedule XXA'!AB20","v":0},{"$f":"'Schedule XXA'!AD20","v":0},{"$f":"'Schedule XXA'!AF20","v":0},{"$f":"IF('Schedule XXA'!AH20=0,Q22,'Schedule XXA'!AH20)","v":0},null,0,0,0,null,0,0]
[null,{"$f":"'Schedule XXA'!B21","v":"Canada Dollars"},{"$f":"'Schedule XXA'!D21","v":0},{"$f":"'Schedule XXA'!F21","v":0},{"$f":"'Schedule XXA'!H21","v":0},{"$f":"'Schedule XXA'!J21","v":0},{"$f":"'Schedule XXA'!L21","v":0},{"$f":"'Schedule XXA'!N21","v":0},0,{"$f":"IF((SUM(C23:G23))>(H23+I23),0%,25%)","v":0.25},null,{"$f":"'Schedule XXA'!V21","v":0},{"$f":"'Schedule XXA'!X21","v":0},{"$f":"'Schedule XXA'!Z21","v":0},{"$f":"'Schedule XXA'!AB21","v":0},{"$f":"'Schedule XXA'!AD21","v":0},{"$f":"'Schedule XXA'!AF21","v":0},{"$f":"IF('Schedule XXA'!AH21=0,Q23,'Schedule XXA'!AH21)","v":0},null,0,0,0,null,0,0]
[null,{"$f":"'Schedule XXA'!B22","v":"Japan Yen"},{"$f":"'Schedule XXA'!D22","v":0},{"$f":"'Schedule XXA'!F22","v":0},{"$f":"'Schedule XXA'!H22","v":0},{"$f":"'Schedule XXA'!J22","v":0},{"$f":"'Schedule XXA'!L22","v":0},{"$f":"'Schedule XXA'!N22","v":0},0,{"$f":"IF((SUM(C24:G24))>(H24+I24),0%,25%)","v":0.25},null,{"$f":"'Schedule XXA'!V22","v":0},{"$f":"'Schedule XXA'!X22","v":0},{"$f":"'Schedule XXA'!Z22","v":0},{"$f":"'Schedule XXA'!AB22","v":0},{"$f":"'Schedule XXA'!AD22","v":0},{"$f":"'Schedule XXA'!AF22","v":0},{"$f":"IF('Schedule XXA'!AH22=0,Q24,'Schedule XXA'!AH22)","v":0},null,0,0,0,null,0,0]
[null,{"$f":"'Schedule XXA'!B23","v":"Other currency 1"},{"$f":"'Schedule XXA'!D23","v":0},{"$f":"'Schedule XXA'!F23","v":0},{"$f":"'Schedule XXA'!H23","v":0},{"$f":"'Schedule XXA'!J23","v":0},{"$f":"'Schedule XXA'!L23","v":0},{"$f":"'Schedule XXA'!N23","v":0},0,{"$f":"IF((SUM(C25:G25))>(H25+I25),0%,25%)","v":0.25},null,{"$f":"'Schedule XXA'!V23","v":0},{"$f":"'Schedule XXA'!X23","v":0},{"$f":"'Schedule XXA'!Z23","v":0},{"$f":"'Schedule XXA'!AB23","v":0},{"$f":"'Schedule XXA'!AD23","v":0},{"$f":"'Schedule XXA'!AF23","v":0},{"$f":"IF('Schedule XXA'!AH23=0,Q25,'Schedule XXA'!AH23)","v":0},null,0,0,0,null,0,0]
[null,{"$f":"'Schedule XXA'!B24","v":"Other currency 2"},{"$f":"'Schedule XXA'!D24","v":0},{"$f":"'Schedule XXA'!F24","v":0},{"$f":"'Schedule XXA'!H24","v":0},{"$f":"'Schedule XXA'!J24","v":0},{"$f":"'Schedule XXA'!L24","v":0},{"$f":"'Schedule XXA'!N24","v":0},0,0.25,null,{"$f":"'Schedule XXA'!V24","v":0},{"$f":"'Schedule XXA'!X24","v":0},{"$f":"'Schedule XXA'!Z24","v":0},{"$f":"'Schedule XXA'!AB24","v":0},{"$f":"'Schedule XXA'!AD24","v":0},{"$f":"'Schedule XXA'!AF24","v":0},{"$f":"IF('Schedule XXA'!AH24=0,Q26,'Schedule XXA'!AH24)","v":0},null,0,0,0,null,0,0]
[null,{"$f":"'Schedule XXA'!B25","v":"Other currency 3"},{"$f":"'Schedule XXA'!D25","v":0},{"$f":"'Schedule XXA'!F25","v":0},{"$f":"'Schedule XXA'!H25","v":0},{"$f":"'Schedule XXA'!J25","v":0},{"$f":"'Schedule XXA'!L25","v":0},{"$f":"'Schedule XXA'!N25","v":0},0,0.25,null,{"$f":"'Schedule XXA'!V25","v":0},{"$f":"'Schedule XXA'!X25","v":0},{"$f":"'Schedule XXA'!Z25","v":0},{"$f":"'Schedule XXA'!AB25","v":0},{"$f":"'Schedule XXA'!AD25","v":0},{"$f":"'Schedule XXA'!AF25","v":0},{"$f":"IF('Schedule XXA'!AH25=0,Q27,'Schedule XXA'!AH25)","v":0},null,0,0,0,null,0,0]
[null,{"$f":"'Schedule XXA'!B26","v":"Other currency 4"},{"$f":"'Schedule XXA'!D26","v":0},{"$f":"'Schedule XXA'!F26","v":0},{"$f":"'Schedule XXA'!H26","v":0},{"$f":"'Schedule XXA'!J26","v":0},{"$f":"'Schedule XXA'!L26","v":0},{"$f":"'Schedule XXA'!N26","v":0},0,0.25,null,{"$f":"'Schedule XXA'!V26","v":0},{"$f":"'Schedule XXA'!X26","v":0},{"$f":"'Schedule XXA'!Z26","v":0},{"$f":"'Schedule XXA'!AB26","v":0},{"$f":"'Schedule XXA'!AD26","v":0},{"$f":"'Schedule XXA'!AF26","v":0},{"$f":"IF('Schedule XXA'!AH26=0,Q28,'Schedule XXA'!AH26)","v":0},null,0,0,0,null,0,0]
[null,{"$f":"'Schedule XXA'!B27","v":"Other currency 5"},{"$f":"'Schedule XXA'!D27","v":0},{"$f":"'Schedule XXA'!F27","v":0},{"$f":"'Schedule XXA'!H27","v":0},{"$f":"'Schedule XXA'!J27","v":0},{"$f":"'Schedule XXA'!L27","v":0},{"$f":"'Schedule XXA'!N27","v":0},0,0.25,null,{"$f":"'Schedule XXA'!V27","v":0},{"$f":"'Schedule XXA'!X27","v":0},{"$f":"'Schedule XXA'!Z27","v":0},{"$f":"'Schedule XXA'!AB27","v":0},{"$f":"'Schedule XXA'!AD27","v":0},{"$f":"'Schedule XXA'!AF27","v":0},{"$f":"IF('Schedule XXA'!AH27=0,Q29,'Schedule XXA'!AH27)","v":0},null,0,0,0,null,0,0]
[null,{"$f":"'Schedule XXA'!B28","v":"Other currency 6"},{"$f":"'Schedule XXA'!D28","v":0},{"$f":"'Schedule XXA'!F28","v":0},{"$f":"'Schedule XXA'!H28","v":0},{"$f":"'Schedule XXA'!J28","v":0},{"$f":"'Schedule XXA'!L28","v":0},{"$f":"'Schedule XXA'!N28","v":0},0,0.25,null,{"$f":"'Schedule XXA'!V28","v":0},{"$f":"'Schedule XXA'!X28","v":0},{"$f":"'Schedule XXA'!Z28","v":0},{"$f":"'Schedule XXA'!AB28","v":0},{"$f":"'Schedule XXA'!AD28","v":0},{"$f":"'Schedule XXA'!AF28","v":0},{"$f":"IF('Schedule XXA'!AH28=0,Q30,'Schedule XXA'!AH28)","v":0},null,0,0,0,null,0,0]
[null,{"$f":"'Schedule XXA'!B29","v":"Other currency 7"},{"$f":"'Schedule XXA'!D29","v":0},{"$f":"'Schedule XXA'!F29","v":0},{"$f":"'Schedule XXA'!H29","v":0},{"$f":"'Schedule XXA'!J29","v":0},{"$f":"'Schedule XXA'!L29","v":0},{"$f":"'Schedule XXA'!N29","v":0},0,0.25,null,{"$f":"'Schedule XXA'!V29","v":0},{"$f":"'Schedule XXA'!X29","v":0},{"$f":"'Schedule XXA'!Z29","v":0},{"$f":"'Schedule XXA'!AB29","v":0},{"$f":"'Schedule XXA'!AD29","v":0},{"$f":"'Schedule XXA'!AF29","v":0},{"$f":"IF('Schedule XXA'!AH29=0,Q31,'Schedule XXA'!AH29)","v":0},null,0,0,0,null,0,0]
[null,{"$f":"'Schedule XXA'!B30","v":"Other currency 8"},{"$f":"'Schedule XXA'!D30","v":0},{"$f":"'Schedule XXA'!F30","v":0},{"$f":"'Schedule XXA'!H30","v":0},{"$f":"'Schedule XXA'!J30","v":0},{"$f":"'Schedule XXA'!L30","v":0},{"$f":"'Schedule XXA'!N30","v":0},0,0.25,null,{"$f":"'Schedule XXA'!V30","v":0},{"$f":"'Schedule XXA'!X30","v":0},{"$f":"'Schedule XXA'!Z30","v":0},{"$f":"'Schedule XXA'!AB30","v":0},{"$f":"'Schedule XXA'!AD30","v":0},{"$f":"'Schedule XXA'!AF30","v":0},{"$f":"IF('Schedule XXA'!AH30=0,Q32,'Schedule XXA'!AH30)","v":0},null,0,0,0,null,0,0]
[null,{"$f":"'Schedule XXA'!B31","v":"Other currency 9"},{"$f":"'Schedule XXA'!D31","v":0},{"$f":"'Schedule XXA'!F31","v":0},{"$f":"'Schedule XXA'!H31","v":0},{"$f":"'Schedule XXA'!J31","v":0},{"$f":"'Schedule XXA'!L31","v":0},{"$f":"'Schedule XXA'!N31","v":0},0,0.25,null,{"$f":"'Schedule XXA'!V31","v":0},{"$f":"'Schedule XXA'!X31","v":0},{"$f":"'Schedule XXA'!Z31","v":0},{"$f":"'Schedule XXA'!AB31","v":0},{"$f":"'Schedule XXA'!AD31","v":0},{"$f":"'Schedule XXA'!AF31","v":0},{"$f":"IF('Schedule XXA'!AH31=0,Q33,'Schedule XXA'!AH31)","v":0},null,0,0,0,null,0,0]
[null,{"$f":"'Schedule XXA'!B32","v":"Other currency 10"},{"$f":"'Schedule XXA'!D32","v":0},{"$f":"'Schedule XXA'!F32","v":0},{"$f":"'Schedule XXA'!H32","v":0},{"$f":"'Schedule XXA'!J32","v":0},{"$f":"'Schedule XXA'!L32","v":0},{"$f":"'Schedule XXA'!N32","v":0},0,0.25,null,{"$f":"'Schedule XXA'!V32","v":0},{"$f":"'Schedule XXA'!X32","v":0},{"$f":"'Schedule XXA'!Z32","v":0},{"$f":"'Schedule XXA'!AB32","v":0},{"$f":"'Schedule XXA'!AD32","v":0},{"$f":"'Schedule XXA'!AF32","v":0},{"$f":"IF('Schedule XXA'!AH32=0,Q34,'Schedule XXA'!AH32)","v":0},null,0,0,0,null,0,0]
[null,"Total Identified",{"$f":"SUM(C12:C34)","v":0},0,0,0,0,0,null,null,null,{"$f":"SUM(L12:L34)","v":0},0,0,0,0,0,0,null,{"$f":"SUM(T12:T34)","v":0},0,0,null,{"$f":"SUM(X12:X34)","v":0},{"$f":"SUM(Y12:Y34)","v":0}]
[null,"Total",{"$f":"'Schedule XXA'!D36","v":0},null,null,null,null,{"$f":"'Schedule XXA'!N36","v":0}]
[null,"% Identified",{"$f":"IF(C35=0,0,(C35+E35)/C36)","v":0},null,null,null,null,{"$f":"IF(H35=0,0,H35/H36)","v":0}]
[]
[null,"TOTAL CURRENCY RISK",null,null,null,null,null,null,null,null,null,null,null,null,null,null,null,null,null,null,null,null,null,{"$f":"IF(SUM(X12:X34)>=0,SUM(X12:X34),0)","v":0},{"$f":"IF(SUM(Y12:Y34)>=0,SUM(Y12:Y34),0)","v":0}]

{"sheet":"Digital Assets","index":121,"n_rows":13,"n_cols":9,"rows_kept":13,"cut":false,"hidden":false,"merged":[]}
[null,"DIGITAL ASSET RISKS",null,null,null,null,null,null,{"$f":"HYPERLINK(\"#'Index'!A1\",\"Return to Index\")","v":"Return to Index"}]
[]
[null,"Digital Asset type","Value of Assets","Value of Liabilities","Reduction Factor","Offset","Net Exposure","Capital Factor","Capital Charge"]
[]
[null,"Audited Fiat backed stablecoin",{"$f":"'Schedule XXV'!C15","v":0},{"$f":"'Schedule XXV'!D15","v":0},0,{"$f":"MAX(E5*(MIN(D5,C5)),0)","v":0},{"$f":"MAX(C5,D5,C5-D5)-F5","v":0},0.03,{"$f":"H5*G5","v":0}]
[null,"Top 1 by market cap",{"$f":"'Schedule XXV'!C18","v":0},{"$f":"'Schedule XXV'!D18","v":0},0.99,{"$f":"MAX(E6*(MIN(D6,C6)),0)","v":0},{"$f":"MAX(C6,D6,C6-D6)-F6","v":0},0.55000000000000004,0]
[null,"Top 2-3 by market cap",{"$f":"'Schedule XXV'!C19","v":0},{"$f":"'Schedule XXV'!D19","v":0},0.95,{"$f":"MAX(E7*(MIN(D7,C7)),0)","v":0},0,0.65,0]
[null,"Top 4-10 by market cap",{"$f":"'Schedule XXV'!C20","v":0},{"$f":"'Schedule XXV'!D20","v":0},0.94,0,0,0.8,0]
[null,"Top 10-20 by market cap",{"$f":"'Schedule XXV'!C21","v":0},{"$f":"'Schedule XXV'!D21","v":0},0.92,0,0,0.9,0]
[null,"Top 21 and below by market cap",{"$f":"'Schedule XXV'!C22","v":0},{"$f":"'Schedule XXV'!D22","v":0},0.2,0,0,0.95,0]
[null,"Unlisted digital asset",{"$f":"'Schedule XXV'!C23","v":0},{"$f":"'Schedule XXV'!D23","v":0},0,0,0,1,0]
[]
[null,"Total",{"$f":"SUM(C5:C11)","v":0},{"$f":"SUM(D5:D11)","v":0},null,{"$f":"SUM(F5:F11)","v":0},0,null,{"$f":"SUM(I5:I11)","v":0}]

{"sheet":"Concentration Risk (old)","index":122,"n_rows":111,"n_cols":6,"rows_kept":111,"cut":false,"hidden":true,"merged":[[0,5,0,6]]}
["CONCENTRATION RISK",null,null,null,null,{"$f":"HYPERLINK(\"#'Index'!A1\",\"Return to Index\")","v":"Return to Index"}]
[{"$f":"'Company Information'!C7","v":"Enter Company Name"}]
[{"$f":"\"Concentration Risk\" & \"($\"&IF(CONFIGURATION!$B$12>1,MID(CONFIGURATION!$B$12,2,LEN(CONFIGURATION!$B$12)),\"\")&\")\"","v":"Concentration Risk($000)"},null,{"$f":"'Company Information'!C3","v":"2022-12-31"}]
[null,null,null,-1,-2,-3]
[]
[null,"ASSET ",null,null,"CAPITAL","REQUIRED"]
[null,"TYPE","STATEMENT SOURCE","EXPOSURE","FACTOR","CAPITAL"]
[]
[null,"(a) Cash and Cash Equivalents",null,"Cash and Cash Equivalent"]
[null,"BSCR Rating 0","Schedule XXI, Column H",{"$f":"SUMIFS('Schedule XXI'!$M$8:$M$57,'Schedule XXI'!$J$8:$J$57,$D$9,'Schedule XXI'!$L$8:$L$57,$B10)","v":0},{"$f":"+'Fixed Income Investments (old)'!E83","v":0},{"$f":"MAX(0,(D10*E10))","v":0}]
[null,"BSCR Rating 1","Schedule XXI, Column H",{"$f":"SUMIFS('Schedule XXI'!$M$8:$M$57,'Schedule XXI'!$J$8:$J$57,$D$9,'Schedule XXI'!$L$8:$L$57,$B11)","v":0},{"$f":"+'Fixed Income Investments (old)'!E84","v":1E-3},{"$f":"MAX(0,(D11*E11))","v":0}]
[null,"BSCR Rating 2","Schedule XXI, Column H",{"$f":"SUMIFS('Schedule XXI'!$M$8:$M$57,'Schedule XXI'!$J$8:$J$57,$D$9,'Schedule XXI'!$L$8:$L$57,$B12)","v":0},{"$f":"+'Fixed Income Investments (old)'!E85","v":2E-3},0]
[null,"BSCR Rating 3","Schedule XXI, Column H",{"$f":"SUMIFS('Schedule XXI'!$M$8:$M$57,'Schedule XXI'!$J$8:$J$57,$D$9,'Schedule XXI'!$L$8:$L$57,$B13)","v":0},{"$f":"+'Fixed Income Investments (old)'!E86","v":3.0000000000000001E-3},0]
[null,"BSCR Rating 4","Schedule XXI, Column H",{"$f":"SUMIFS('Schedule XXI'!$M$8:$M$57,'Schedule XXI'!$J$8:$J$57,$D$9,'Schedule XXI'!$L$8:$L$57,$B14)","v":0},{"$f":"+'Fixed Income Investments (old)'!E87","v":5.0000000000000001E-3},0]
[null,"BSCR Rating 5","Schedule XXI, Column H",{"$f":"SUMIFS('Schedule XXI'!$M$8:$M$57,'Schedule XXI'!$J$8:$J$57,$D$9,'Schedule XXI'!$L$8:$L$57,$B15)","v":0},{"$f":"+'Fixed Income Investments (old)'!E88","v":1.4999999999999999E-2},0]
[null,"BSCR Rating 6","Schedule XXI, Column H",{"$f":"SUMIFS('Schedule XXI'!$M$8:$M$57,'Schedule XXI'!$J$8:$J$57,$D$9,'Schedule XXI'!$L$8:$L$57,$B16)","v":0},{"$f":"+'Fixed Income Investments (old)'!E89","v":0.04},0]
[null,"BSCR Rating 7","Schedule XXI, Column H",{"$f":"SUMIFS('Schedule XXI'!$M$8:$M$57,'Schedule XXI'!$J$8:$J$57,$D$9,'Schedule XXI'!$L$8:$L$57,$B17)","v":0},{"$f":"+'Fixed Income Investments (old)'!E90","v":0.06},0]
[null,"BSCR Rating 8","Schedule XXI, Column H",{"$f":"SUMIFS('Schedule XXI'!$M$8:$M$57,'Schedule XXI'!$J$8:$J$57,$D$9,'Schedule XXI'!$L$8:$L$57,$B18)","v":0},{"$f":"+'Fixed Income Investments (old)'!E91","v":0.09},0]
[]
[null,"(a)  SUBTOTAL - CASH AND CASH EQUIVALENTS",null,{"$f":"SUM(D9:D18)","v":0},null,{"$f":"SUM(F9:F18)","v":0}]
[]
[null,"(b) Corporate & Sovereign Bonds",null,"Corporate & Sovereign Bonds"]
[null,"BSCR Rating 0","Schedule XXI, Column H",{"$f":"SUMIFS('Schedule XXI'!$M$8:$M$57,'Schedule XXI'!$K$8:$K$57,$D$22,'Schedule XXI'!$L$8:$L$57,$B23)","v":0},{"$f":"+'Fixed Income Investments (old)'!E12","v":0},{"$f":"MAX(0,(D23*E23))","v":0}]
[null,"BSCR Rating 1","Schedule XXI, Column H",{"$f":"SUMIFS('Schedule XXI'!$M$8:$M$57,'Schedule XXI'!$K$8:$K$57,$D$22,'Schedule XXI'!$L$8:$L$57,$B24)","v":0},{"$f":"+'Fixed Income Investments (old)'!E13","v":4.0000000000000001E-3},{"$f":"MAX(0,(D24*E24))","v":0}]
[null,"BSCR Rating 2","Schedule XXI, Column H",{"$f":"SUMIFS('Schedule XXI'!$M$8:$M$57,'Schedule XXI'!$K$8:$K$57,$D$22,'Schedule XXI'!$L$8:$L$57,$B25)","v":0},{"$f":"+'Fixed Income Investments (old)'!E14","v":8.0000000000000002E-3},0]
[null,"BSCR Rating 3","Schedule XXI, Column H",{"$f":"SUMIFS('Schedule XXI'!$M$8:$M$57,'Schedule XXI'!$K$8:$K$57,$D$22,'Schedule XXI'!$L$8:$L$57,$B26)","v":0},{"$f":"+'Fixed Income Investments (old)'!E15","v":1.4999999999999999E-2},0]
[null,"BSCR Rating 4","Schedule XXI, Column H",{"$f":"SUMIFS('Schedule XXI'!$M$8:$M$57,'Schedule XXI'!$K$8:$K$57,$D$22,'Schedule XXI'!$L$8:$L$57,$B27)","v":0},{"$f":"+'Fixed Income Investments (old)'!E16","v":0.03},0]
[null,"BSCR Rating 5","Schedule XXI, Column H",{"$f":"SUMIFS('Schedule XXI'!$M$8:$M$57,'Schedule XXI'!$K$8:$K$57,$D$22,'Schedule XXI'!$L$8:$L$57,$B28)","v":0},{"$f":"+'Fixed Income Investments (old)'!E17","v":0.08},0]
[null,"BSCR Rating 6","Schedule XXI, Column H",{"$f":"SUMIFS('Schedule XXI'!$M$8:$M$57,'Schedule XXI'!$K$8:$K$57,$D$22,'Schedule XXI'!$L$8:$L$57,$B29)","v":0},{"$f":"+'Fixed Income Investments (old)'!E18","v":0.15},0]
[null,"BSCR Rating 7","Schedule XXI, Column H",{"$f":"SUMIFS('Schedule XXI'!$M$8:$M$57,'Schedule XXI'!$K$8:$K$57,$D$22,'Schedule XXI'!$L$8:$L$57,$B30)","v":0},{"$f":"+'Fixed Income Investments (old)'!E19","v":0.26300000000000001},0]
[null,"BSCR Rating 8","Schedule XXI, Column H",{"$f":"SUMIFS('Schedule XXI'!$M$8:$M$57,'Schedule XXI'!$K$8:$K$57,$D$22,'Schedule XXI'!$L$8:$L$57,$B31)","v":0},{"$f":"+'Fixed Income Investments (old)'!E20","v":0.35},0]
[]
[null,"(b)  SUBTOTAL - CORPORATE & SOVEREIGN BONDS",null,{"$f":"SUM(D22:D31)","v":0},null,{"$f":"SUM(F22:F31)","v":0}]
[]
[null,"(c) Residential Mortage-Backed Securities",null,"Residential Mortgage-Backed Securities"]
[null,"BSCR Rating 0","Schedule XXI, Column H",{"$f":"SUMIFS('Schedule XXI'!$M$8:$M$57,'Schedule XXI'!$K$8:$K$57,$D$35,'Schedule XXI'!$L$8:$L$57,$B36)","v":0},0,{"$f":"MAX(0,(D36*E36))","v":0}]
[null,"BSCR Rating 1","Schedule XXI, Column H",{"$f":"SUMIFS('Schedule XXI'!$M$8:$M$57,'Schedule XXI'!$K$8:$K$57,$D$35,'Schedule XXI'!$L$8:$L$57,$B37)","v":0},{"$f":"+'Fixed Income Investments (old)'!E27","v":6.0000000000000001E-3},{"$f":"MAX(0,(D37*E37))","v":0}]
[null,"BSCR Rating 2","Schedule XXI, Column H",{"$f":"SUMIFS('Schedule XXI'!$M$8:$M$57,'Schedule XXI'!$K$8:$K$57,$D$35,'Schedule XXI'!$L$8:$L$57,$B38)","v":0},{"$f":"+'Fixed Income Investments (old)'!E28","v":1.2E-2},0]
[null,"BSCR Rating 3","Schedule XXI, Column H",{"$f":"SUMIFS('Schedule XXI'!$M$8:$M$57,'Schedule XXI'!$K$8:$K$57,$D$35,'Schedule XXI'!$L$8:$L$57,$B39)","v":0},{"$f":"+'Fixed Income Investments (old)'!E29","v":0.02},0]
[null,"BSCR Rating 4","Schedule XXI, Column H",{"$f":"SUMIFS('Schedule XXI'!$M$8:$M$57,'Schedule XXI'!$K$8:$K$57,$D$35,'Schedule XXI'!$L$8:$L$57,$B40)","v":0},{"$f":"+'Fixed Income Investments (old)'!E30","v":0.04},0]
[null,"BSCR Rating 5","Schedule XXI, Column H",{"$f":"SUMIFS('Schedule XXI'!$M$8:$M$57,'Schedule XXI'!$K$8:$K$57,$D$35,'Schedule XXI'!$L$8:$L$57,$B41)","v":0},{"$f":"+'Fixed Income Investments (old)'!E31","v":0.11},0]
[null,"BSCR Rating 6","Schedule XXI, Column H",{"$f":"SUMIFS('Schedule XXI'!$M$8:$M$57,'Schedule XXI'!$K$8:$K$57,$D$35,'Schedule XXI'!$L$8:$L$57,$B42)","v":0},{"$f":"+'Fixed Income Investments (old)'!E32","v":0.25},0]
[null,"BSCR Rating 7","Schedule XXI, Column H",{"$f":"SUMIFS('Schedule XXI'!$M$8:$M$57,'Schedule XXI'!$K$8:$K$57,$D$35,'Schedule XXI'!$L$8:$L$57,$B43)","v":0},{"$f":"+'Fixed Income Investments (old)'!E33","v":0.35},0]
[null,"BSCR Rating 8","Schedule XXI, Column H",{"$f":"SUMIFS('Schedule XXI'!$M$8:$M$57,'Schedule XXI'!$K$8:$K$57,$D$35,'Schedule XXI'!$L$8:$L$57,$B44)","v":0},{"$f":"+'Fixed Income Investments (old)'!E34","v":0.35},0]
[]
[null,"(c)  SUBTOTAL - RESIDENTIAL MORTGAGE-BACKED SECURITIES",null,{"$f":"SUM(D35:D44)","v":0},null,{"$f":"SUM(F35:F44)","v":0}]
[]
[null,"(d) Commercial Mortgage-Backed Securities / Asset Backed Securities",null,"Commercial Mortgage-Backed Securities"]
[null,"BSCR Rating 0","Schedule XXI, Column H",{"$f":"SUMIFS('Schedule XXI'!$M$8:$M$57,'Schedule XXI'!$K$8:$K$57,$D$48,'Schedule XXI'!$L$8:$L$57,$B49)","v":0},0,{"$f":"MAX(0,(D49*E49))","v":0}]
[null,"BSCR Rating 1","Schedule XXI, Column H",{"$f":"SUMIFS('Schedule XXI'!$M$8:$M$57,'Schedule XXI'!$K$8:$K$57,$D$48,'Schedule XXI'!$L$8:$L$57,$B50)","v":0},{"$f":"+'Fixed Income Investments (old)'!E41","v":5.0000000000000001E-3},{"$f":"MAX(0,(D50*E50))","v":0}]
[null,"BSCR Rating 2","Schedule XXI, Column H",{"$f":"SUMIFS('Schedule XXI'!$M$8:$M$57,'Schedule XXI'!$K$8:$K$57,$D$48,'Schedule XXI'!$L$8:$L$57,$B51)","v":0},{"$f":"+'Fixed Income Investments (old)'!E42","v":0.01},0]
[null,"BSCR Rating 3","Schedule XXI, Column H",{"$f":"SUMIFS('Schedule XXI'!$M$8:$M$57,'Schedule XXI'!$K$8:$K$57,$D$48,'Schedule XXI'!$L$8:$L$57,$B52)","v":0},{"$f":"+'Fixed Income Investments (old)'!E43","v":1.7999999999999999E-2},0]
[null,"BSCR Rating 4","Schedule XXI, Column H",{"$f":"SUMIFS('Schedule XXI'!$M$8:$M$57,'Schedule XXI'!$K$8:$K$57,$D$48,'Schedule XXI'!$L$8:$L$57,$B53)","v":0},{"$f":"+'Fixed Income Investments (old)'!E44","v":3.5000000000000003E-2},0]
[null,"BSCR Rating 5","Schedule XXI, Column H",{"$f":"SUMIFS('Schedule XXI'!$M$8:$M$57,'Schedule XXI'!$K$8:$K$57,$D$48,'Schedule XXI'!$L$8:$L$57,$B54)","v":0},{"$f":"+'Fixed Income Investments (old)'!E45","v":0.1},0]
[null,"BSCR Rating 6","Schedule XXI, Column H",{"$f":"SUMIFS('Schedule XXI'!$M$8:$M$57,'Schedule XXI'!$K$8:$K$57,$D$48,'Schedule XXI'!$L$8:$L$57,$B55)","v":0},{"$f":"+'Fixed Income Investments (old)'!E46","v":0.2},0]
[null,"BSCR Rating 7","Schedule XXI, Column H",{"$f":"SUMIFS('Schedule XXI'!$M$8:$M$57,'Schedule XXI'!$K$8:$K$57,$D$48,'Schedule XXI'!$L$8:$L$57,$B56)","v":0},{"$f":"+'Fixed Income Investments (old)'!E47","v":0.3},0]
[null,"BSCR Rating 8","Schedule XXI, Column H",{"$f":"SUMIFS('Schedule XXI'!$M$8:$M$57,'Schedule XXI'!$K$8:$K$57,$D$48,'Schedule XXI'!$L$8:$L$57,$B57)","v":0},{"$f":"+'Fixed Income Investments (old)'!E48","v":0.35},0]
[]
[null,"(d)  SUBTOTAL - COMMERCIAL MORTGAGE-BACKED SECURITIES / ASSET-BACKED SECURITIES",null,{"$f":"SUM(D48:D57)","v":0},null,{"$f":"SUM(F48:F57)","v":0}]
[]
[null,"(e) Bond Mutual Funds",null,"Bond Mutual Funds"]
[null,"BSCR Rating 0","Schedule XXI, Column H",{"$f":"SUMIFS('Schedule XXI'!$M$8:$M$57,'Schedule XXI'!$K$8:$K$57,$D$61,'Schedule XXI'!$L$8:$L$57,$B62)","v":0},{"$f":"+'Fixed Income Investments (old)'!E56","v":0},{"$f":"MAX(0,(D62*E62))","v":0}]
[null,"BSCR Rating 1","Schedule XXI, Column H",{"$f":"SUMIFS('Schedule XXI'!$M$8:$M$57,'Schedule XXI'!$K$8:$K$57,$D$61,'Schedule XXI'!$L$8:$L$57,$B63)","v":0},{"$f":"+'Fixed Income Investments (old)'!E57","v":4.0000000000000001E-3},{"$f":"MAX(0,(D63*E63))","v":0}]
[null,"BSCR Rating 2","Schedule XXI, Column H",{"$f":"SUMIFS('Schedule XXI'!$M$8:$M$57,'Schedule XXI'!$K$8:$K$57,$D$61,'Schedule XXI'!$L$8:$L$57,$B64)","v":0},{"$f":"+'Fixed Income Investments (old)'!E58","v":8.0000000000000002E-3},0]
[null,"BSCR Rating 3","Schedule XXI, Column H",{"$f":"SUMIFS('Schedule XXI'!$M$8:$M$57,'Schedule XXI'!$K$8:$K$57,$D$61,'Schedule XXI'!$L$8:$L$57,$B65)","v":0},{"$f":"+'Fixed Income Investments (old)'!E59","v":1.4999999999999999E-2},0]
[null,"BSCR Rating 4","Schedule XXI, Column H",{"$f":"SUMIFS('Schedule XXI'!$M$8:$M$57,'Schedule XXI'!$K$8:$K$57,$D$61,'Schedule XXI'!$L$8:$L$57,$B66)","v":0},{"$f":"+'Fixed Income Investments (old)'!E60","v":0.03},0]
[null,"BSCR Rating 5","Schedule XXI, Column H",{"$f":"SUMIFS('Schedule XXI'!$M$8:$M$57,'Schedule XXI'!$K$8:$K$57,$D$61,'Schedule XXI'!$L$8:$L$57,$B67)","v":0},{"$f":"+'Fixed Income Investments (old)'!E61","v":0.08},0]
[null,"BSCR Rating 6","Schedule XXI, Column H",{"$f":"SUMIFS('Schedule XXI'!$M$8:$M$57,'Schedule XXI'!$K$8:$K$57,$D$61,'Schedule XXI'!$L$8:$L$57,$B68)","v":0},{"$f":"+'Fixed Income Investments (old)'!E62","v":0.15},0]
[null,"BSCR Rating 7","Schedule XXI, Column H",{"$f":"SUMIFS('Schedule XXI'!$M$8:$M$57,'Schedule XXI'!$K$8:$K$57,$D$61,'Schedule XXI'!$L$8:$L$57,$B69)","v":0},{"$f":"+'Fixed Income Investments (old)'!E63","v":0.26300000000000001},0]
[null,"BSCR Rating 8","Schedule XXI, Column H",{"$f":"SUMIFS('Schedule XXI'!$M$8:$M$57,'Schedule XXI'!$K$8:$K$57,$D$61,'Schedule XXI'!$L$8:$L$57,$B70)","v":0},{"$f":"+'Fixed Income Investments (old)'!E64","v":0.35},0]
[]
[null,"(e)  SUBTOTAL - BOND MUTUAL FUNDS",null,{"$f":"SUM(D61:D70)","v":0},null,{"$f":"SUM(F61:F70)","v":0}]
[]
[null,"(f) Preferred Shares",null,"Preferred Shares"]
[null,"BSCR Rating 0","Schedule XXI, Column H",{"$f":"SUMIFS('Schedule XXI'!$M$8:$M$57,'Schedule XXI'!$J$8:$J$57,$D$74,'Schedule XXI'!$L$8:$L$57,$B75)","v":0},0,{"$f":"MAX(0,(D75*E75))","v":0}]
[null,"BSCR Rating 1","Schedule XXI, Column H",{"$f":"SUMIFS('Schedule XXI'!$M$8:$M$57,'Schedule XXI'!$J$8:$J$57,$D$74,'Schedule XXI'!$L$8:$L$57,$B76)","v":0},6.0000000000000001E-3,{"$f":"MAX(0,(D76*E76))","v":0}]
[null,"BSCR Rating 2","Schedule XXI, Column H",{"$f":"SUMIFS('Schedule XXI'!$M$8:$M$57,'Schedule XXI'!$J$8:$J$57,$D$74,'Schedule XXI'!$L$8:$L$57,$B77)","v":0},1.2E-2,0]
[null,"BSCR Rating 3","Schedule XXI, Column H",{"$f":"SUMIFS('Schedule XXI'!$M$8:$M$57,'Schedule XXI'!$J$8:$J$57,$D$74,'Schedule XXI'!$L$8:$L$57,$B78)","v":0},0.02,0]
[null,"BSCR Rating 4","Schedule XXI, Column H",{"$f":"SUMIFS('Schedule XXI'!$M$8:$M$57,'Schedule XXI'!$J$8:$J$57,$D$74,'Schedule XXI'!$L$8:$L$57,$B79)","v":0},0.04,0]
[null,"BSCR Rating 5","Schedule XXI, Column H",{"$f":"SUMIFS('Schedule XXI'!$M$8:$M$57,'Schedule XXI'!$J$8:$J$57,$D$74,'Schedule XXI'!$L$8:$L$57,$B80)","v":0},0.11,0]
[null,"BSCR Rating 6","Schedule XXI, Column H",{"$f":"SUMIFS('Schedule XXI'!$M$8:$M$57,'Schedule XXI'!$J$8:$J$57,$D$74,'Schedule XXI'!$L$8:$L$57,$B81)","v":0},0.25,0]
[null,"BSCR Rating 7","Schedule XXI, Column H",{"$f":"SUMIFS('Schedule XXI'!$M$8:$M$57,'Schedule XXI'!$J$8:$J$57,$D$74,'Schedule XXI'!$L$8:$L$57,$B82)","v":0},0.35,0]
[null,"BSCR Rating 8","Schedule XXI, Column H",{"$f":"SUMIFS('Schedule XXI'!$M$8:$M$57,'Schedule XXI'!$J$8:$J$57,$D$74,'Schedule XXI'!$L$8:$L$57,$B83)","v":0},0.35,0]
[]
[null,"(f)  SUBTOTAL - PREFERRED SHARES",null,{"$f":"SUM(D74:D83)","v":0},null,{"$f":"SUM(F74:F83)","v":0}]
[]
[null,"(g) Mortgage Loans",null,{"$f":"+'Schedule XXI'!C65","v":"MortgageLoanTypes"}]
[null,"Insured/Guaranteed Mortgages","Schedule XXI, Column H",{"$f":"SUMIFS('Schedule XXI'!$M$8:$M$57,'Schedule XXI'!$J$8:$J$57,$D$87,'Schedule XXI'!$K$8:$K$57,$B88)","v":0},{"$f":"'Fixed Income Investments (old)'!E70","v":3.0000000000000001E-3},{"$f":"MAX(0,(D88*E88))","v":0}]
[null,"Other Commercial and Farm Mortgages","Schedule XXI, Column H",{"$f":"SUMIFS('Schedule XXI'!$M$8:$M$57,'Schedule XXI'!$J$8:$J$57,$D$87,'Schedule XXI'!$K$8:$K$57,$B89)","v":0},{"$f":"'Fixed Income Investments (old)'!E71","v":0.05},{"$f":"MAX(0,(D89*E89))","v":0}]
[null,"Other Residential Mortgages","Schedule XXI, Column H",{"$f":"SUMIFS('Schedule XXI'!$M$8:$M$57,'Schedule XXI'!$J$8:$J$57,$D$87,'Schedule XXI'!$K$8:$K$57,$B90)","v":0},{"$f":"'Fixed Income Investments (old)'!E72","v":1.4999999999999999E-2},{"$f":"MAX(0,(D90*E90))","v":0}]
[null,"Mortgages Not In Good Standing","Schedule XXI, Column H",{"$f":"SUMIFS('Schedule XXI'!$M$8:$M$57,'Schedule XXI'!$J$8:$J$57,$D$87,'Schedule XXI'!$K$8:$K$57,$B91)","v":0},{"$f":"'Fixed Income Investments (old)'!E73","v":0.25},{"$f":"MAX(0,(D91*E91))","v":0}]
[]
[null,"(g)  SUBTOTAL - Mortgage Loans",null,{"$f":"SUM(D88:D91)","v":0},null,{"$f":"SUM(F88:F91)","v":0}]
[]
[null,"(h) Other Asset Classes"]
[null,"Common Stock and Mutual Funds","Schedule XXI, Column H",{"$f":"SUMIFS('Schedule XXI'!$M$8:$M$57,'Schedule XXI'!$J$8:$J$57,$B96)","v":0},0.14399999999999999,{"$f":"MAX(0,(D96*E96))","v":0}]
[null,"Other Investments","Schedule XXI, Column H",{"$f":"SUMIFS('Schedule XXI'!$M$8:$M$57,'Schedule XXI'!$J$8:$J$57,$B97)","v":0},0.2,{"$f":"MAX(0,(D97*E97))","v":0}]
[null,"Investment in Affiliates – Unregulated entities that conduct ancillary services",null,{"$f":"SUMIFS('Schedule XXI'!$M$8:$M$57,'Schedule XXI'!$J$8:$J$57,$B98)","v":0},0.05,0]
[null,"Investment in Affiliates - Unregulated non-financial operating entities",null,{"$f":"SUMIFS('Schedule XXI'!$M$8:$M$57,'Schedule XXI'!$J$8:$J$57,$B99)","v":0},0.2,0]
[null,"Investment in Affiliates - Unregulated financial operating entities",null,{"$f":"SUMIFS('Schedule XXI'!$M$8:$M$57,'Schedule XXI'!$J$8:$J$57,$B100)","v":0},0.55000000000000004,0]
[null,"Investment in Affiliates - Regulated non-insurance financial operating entities",null,{"$f":"SUMIFS('Schedule XXI'!$M$8:$M$57,'Schedule XXI'!$J$8:$J$57,$B101)","v":0},0.55000000000000004,0]
[null,"Investment in Affiliates - Regulated insurance financial operating entities",null,{"$f":"SUMIFS('Schedule XXI'!$M$8:$M$57,'Schedule XXI'!$J$8:$J$57,$B102)","v":0},0.2,0]
[null,"Advances to Affiliates - ","Schedule XXI, Column H",{"$f":"SUMIFS('Schedule XXI'!$M$8:$M$57,'Schedule XXI'!$J$8:$J$57,$B103)","v":0},0.05,0]
[null,"Policy Loans","Schedule XXI, Column H",{"$f":"SUMIFS('Schedule XXI'!$M$8:$M$57,'Schedule XXI'!$J$8:$J$57,$B104)","v":0},0,0]
[null,"Real Estate: Occupied by company","Schedule XXI, Column H",{"$f":"SUMIFS('Schedule XXI'!$M$8:$M$57,'Schedule XXI'!$J$8:$J$57,$B105)","v":0},0.1,0]
[null,"Real Estate: Other properties","Schedule XXI, Column H",{"$f":"SUMIFS('Schedule XXI'!$M$8:$M$57,'Schedule XXI'!$J$8:$J$57,$B106)","v":0},0.2,0]
[null,"Collateral Loans","Schedule XXI, Column H",{"$f":"SUMIFS('Schedule XXI'!$M$8:$M$57,'Schedule XXI'!$J$8:$J$57,$B107)","v":0},0.05,0]
[]
[null,"(h)  SUBTOTAL - OTHER ASSET CLASSES",null,{"$f":"SUM(D96:D108)","v":0},null,{"$f":"SUM(F96:F108)","v":0}]
[]
[null,"TOTAL CONCENTRATION RISK",null,{"$f":"D109+D93+D85+D72+D59+D46+D33+D20","v":0},null,{"$f":"F109+F93+F85+F72+F59+F46+F33+F20","v":0}]

{"sheet":"Concentration Risk","index":123,"n_rows":110,"n_cols":6,"rows_kept":110,"cut":false,"hidden":false,"merged":[[0,5,0,6]]}
["CONCENTRATION RISK ",null,null,null,null,{"$f":"HYPERLINK(\"#'Index'!A1\",\"Return to Index\")","v":"Return to Index"}]
[{"$f":"'Company Information'!C7","v":"Enter Company Name"}]
[{"$f":"\"Concentration Risk\" & \"($\"&IF(CONFIGURATION!$B$12>1,MID(CONFIGURATION!$B$12,2,LEN(CONFIGURATION!$B$12)),\"\")&\")\"","v":"Concentration Risk($000)"},null,{"$f":"'Company Information'!C3","v":"2022-12-31"}]
[null,null,null,-1,-2,-3]
[]
[null,"ASSET ",null,null,"CAPITAL","REQUIRED"]
[null,"TYPE","STATEMENT SOURCE","EXPOSURE","FACTOR","CAPITAL"]
[]
[null,"(a) Cash and Cash Equivalents",null,"Cash and Cash Equivalent"]
[null,"BSCR Rating 0","Schedule XXIA, Column H",{"$f":"SUMIFS('Schedule XXIA'!$M$8:$M$57,'Schedule XXIA'!$J$8:$J$57,$D$9,'Schedule XXIA'!$L$8:$L$57,$B10)","v":0},{"$f":"+'Fixed Income Investments (old)'!E83","v":0},{"$f":"MAX(0,(D10*E10))","v":0}]
[null,"BSCR Rating 1","Schedule XXIA, Column H",{"$f":"SUMIFS('Schedule XXIA'!$M$8:$M$57,'Schedule XXIA'!$J$8:$J$57,$D$9,'Schedule XXIA'!$L$8:$L$57,$B11)","v":0},{"$f":"+'Fixed Income Investments (old)'!E84","v":1E-3},{"$f":"MAX(0,(D11*E11))","v":0}]
[null,"BSCR Rating 2","Schedule XXIA, Column H",{"$f":"SUMIFS('Schedule XXIA'!$M$8:$M$57,'Schedule XXIA'!$J$8:$J$57,$D$9,'Schedule XXIA'!$L$8:$L$57,$B12)","v":0},{"$f":"+'Fixed Income Investments (old)'!E85","v":2E-3},0]
[null,"BSCR Rating 3","Schedule XXIA, Column H",{"$f":"SUMIFS('Schedule XXIA'!$M$8:$M$57,'Schedule XXIA'!$J$8:$J$57,$D$9,'Schedule XXIA'!$L$8:$L$57,$B13)","v":0},{"$f":"+'Fixed Income Investments (old)'!E86","v":3.0000000000000001E-3},0]
[null,"BSCR Rating 4","Schedule XXIA, Column H",{"$f":"SUMIFS('Schedule XXIA'!$M$8:$M$57,'Schedule XXIA'!$J$8:$J$57,$D$9,'Schedule XXIA'!$L$8:$L$57,$B14)","v":0},{"$f":"+'Fixed Income Investments (old)'!E87","v":5.0000000000000001E-3},0]
[null,"BSCR Rating 5","Schedule XXIA, Column H",{"$f":"SUMIFS('Schedule XXIA'!$M$8:$M$57,'Schedule XXIA'!$J$8:$J$57,$D$9,'Schedule XXIA'!$L$8:$L$57,$B15)","v":0},{"$f":"+'Fixed Income Investments (old)'!E88","v":1.4999999999999999E-2},0]
[null,"BSCR Rating 6","Schedule XXIA, Column H",{"$f":"SUMIFS('Schedule XXIA'!$M$8:$M$57,'Schedule XXIA'!$J$8:$J$57,$D$9,'Schedule XXIA'!$L$8:$L$57,$B16)","v":0},{"$f":"+'Fixed Income Investments (old)'!E89","v":0.04},0]
[null,"BSCR Rating 7","Schedule XXIA, Column H",{"$f":"SUMIFS('Schedule XXIA'!$M$8:$M$57,'Schedule XXIA'!$J$8:$J$57,$D$9,'Schedule XXIA'!$L$8:$L$57,$B17)","v":0},{"$f":"+'Fixed Income Investments (old)'!E90","v":0.06},0]
[null,"BSCR Rating 8","Schedule XXIA, Column H",{"$f":"SUMIFS('Schedule XXIA'!$M$8:$M$57,'Schedule XXIA'!$J$8:$J$57,$D$9,'Schedule XXIA'!$L$8:$L$57,$B18)","v":0},{"$f":"+'Fixed Income Investments (old)'!E91","v":0.09},0]
[]
[null,"(a)  SUBTOTAL - CASH AND CASH EQUIVALENTS",null,{"$f":"SUM(D9:D18)","v":0},null,{"$f":"SUM(F9:F18)","v":0}]
[]
[null,"(b) Corporate & Sovereign Bonds",null,"Corporate & Sovereign Bonds"]
[null,"BSCR Rating 0","Schedule XXIA, Column H",{"$f":"SUMIFS('Schedule XXIA'!$M$8:$M$57,'Schedule XXIA'!$K$8:$K$57,$D$22,'Schedule XXIA'!$L$8:$L$57,$B23)","v":0},{"$f":"+'Fixed Income Investments (old)'!E12","v":0},{"$f":"MAX(0,(D23*E23))","v":0}]
[null,"BSCR Rating 1","Schedule XXIA, Column H",{"$f":"SUMIFS('Schedule XXIA'!$M$8:$M$57,'Schedule XXIA'!$K$8:$K$57,$D$22,'Schedule XXIA'!$L$8:$L$57,$B24)","v":0},{"$f":"+'Fixed Income Investments (old)'!E13","v":4.0000000000000001E-3},{"$f":"MAX(0,(D24*E24))","v":0}]
[null,"BSCR Rating 2","Schedule XXIA, Column H",{"$f":"SUMIFS('Schedule XXIA'!$M$8:$M$57,'Schedule XXIA'!$K$8:$K$57,$D$22,'Schedule XXIA'!$L$8:$L$57,$B25)","v":0},{"$f":"+'Fixed Income Investments (old)'!E14","v":8.0000000000000002E-3},0]
[null,"BSCR Rating 3","Schedule XXIA, Column H",{"$f":"SUMIFS('Schedule XXIA'!$M$8:$M$57,'Schedule XXIA'!$K$8:$K$57,$D$22,'Schedule XXIA'!$L$8:$L$57,$B26)","v":0},{"$f":"+'Fixed Income Investments (old)'!E15","v":1.4999999999999999E-2},0]
[null,"BSCR Rating 4","Schedule XXIA, Column H",{"$f":"SUMIFS('Schedule XXIA'!$M$8:$M$57,'Schedule XXIA'!$K$8:$K$57,$D$22,'Schedule XXIA'!$L$8:$L$57,$B27)","v":0},{"$f":"+'Fixed Income Investments (old)'!E16","v":0.03},0]
[null,"BSCR Rating 5","Schedule XXIA, Column H",{"$f":"SUMIFS('Schedule XXIA'!$M$8:$M$57,'Schedule XXIA'!$K$8:$K$57,$D$22,'Schedule XXIA'!$L$8:$L$57,$B28)","v":0},{"$f":"+'Fixed Income Investments (old)'!E17","v":0.08},0]
[null,"BSCR Rating 6","Schedule XXIA, Column H",{"$f":"SUMIFS('Schedule XXIA'!$M$8:$M$57,'Schedule XXIA'!$K$8:$K$57,$D$22,'Schedule XXIA'!$L$8:$L$57,$B29)","v":0},{"$f":"+'Fixed Income Investments (old)'!E18","v":0.15},0]
[null,"BSCR Rating 7","Schedule XXIA, Column H",{"$f":"SUMIFS('Schedule XXIA'!$M$8:$M$57,'Schedule XXIA'!$K$8:$K$57,$D$22,'Schedule XXIA'!$L$8:$L$57,$B30)","v":0},{"$f":"+'Fixed Income Investments (old)'!E19","v":0.26300000000000001},0]
[null,"BSCR Rating 8","Schedule XXIA, Column H",{"$f":"SUMIFS('Schedule XXIA'!$M$8:$M$57,'Schedule XXIA'!$K$8:$K$57,$D$22,'Schedule XXIA'!$L$8:$L$57,$B31)","v":0},{"$f":"+'Fixed Income Investments (old)'!E20","v":0.35},0]
[]
[null,"(b)  SUBTOTAL - CORPORATE & SOVEREIGN BONDS",null,{"$f":"SUM(D22:D31)","v":0},null,{"$f":"SUM(F22:F31)","v":0}]
[]
[null,"(c) Residential Mortage-Backed Securities",null,"Residential Mortgage-Backed Securities"]
[null,"BSCR Rating 0","Schedule XXIA, Column H",{"$f":"SUMIFS('Schedule XXIA'!$M$8:$M$57,'Schedule XXIA'!$K$8:$K$57,$D$35,'Schedule XXIA'!$L$8:$L$57,$B36)","v":0},0,{"$f":"MAX(0,(D36*E36))","v":0}]
[null,"BSCR Rating 1","Schedule XXIA, Column H",{"$f":"SUMIFS('Schedule XXIA'!$M$8:$M$57,'Schedule XXIA'!$K$8:$K$57,$D$35,'Schedule XXIA'!$L$8:$L$57,$B37)","v":0},{"$f":"+'Fixed Income Investments (old)'!E27","v":6.0000000000000001E-3},{"$f":"MAX(0,(D37*E37))","v":0}]
[null,"BSCR Rating 2","Schedule XXIA, Column H",{"$f":"SUMIFS('Schedule XXIA'!$M$8:$M$57,'Schedule XXIA'!$K$8:$K$57,$D$35,'Schedule XXIA'!$L$8:$L$57,$B38)","v":0},{"$f":"+'Fixed Income Investments (old)'!E28","v":1.2E-2},0]
[null,"BSCR Rating 3","Schedule XXIA, Column H",{"$f":"SUMIFS('Schedule XXIA'!$M$8:$M$57,'Schedule XXIA'!$K$8:$K$57,$D$35,'Schedule XXIA'!$L$8:$L$57,$B39)","v":0},{"$f":"+'Fixed Income Investments (old)'!E29","v":0.02},0]
[null,"BSCR Rating 4","Schedule XXIA, Column H",{"$f":"SUMIFS('Schedule XXIA'!$M$8:$M$57,'Schedule XXIA'!$K$8:$K$57,$D$35,'Schedule XXIA'!$L$8:$L$57,$B40)","v":0},{"$f":"+'Fixed Income Investments (old)'!E30","v":0.04},0]
[null,"BSCR Rating 5","Schedule XXIA, Column H",{"$f":"SUMIFS('Schedule XXIA'!$M$8:$M$57,'Schedule XXIA'!$K$8:$K$57,$D$35,'Schedule XXIA'!$L$8:$L$57,$B41)","v":0},{"$f":"+'Fixed Income Investments (old)'!E31","v":0.11},0]
[null,"BSCR Rating 6","Schedule XXIA, Column H",{"$f":"SUMIFS('Schedule XXIA'!$M$8:$M$57,'Schedule XXIA'!$K$8:$K$57,$D$35,'Schedule XXIA'!$L$8:$L$57,$B42)","v":0},{"$f":"+'Fixed Income Investments (old)'!E32","v":0.25},0]
[null,"BSCR Rating 7","Schedule XXIA, Column H",{"$f":"SUMIFS('Schedule XXIA'!$M$8:$M$57,'Schedule XXIA'!$K$8:$K$57,$D$35,'Schedule XXIA'!$L$8:$L$57,$B43)","v":0},{"$f":"+'Fixed Income Investments (old)'!E33","v":0.35},0]
[null,"BSCR Rating 8","Schedule XXIA, Column H",{"$f":"SUMIFS('Schedule XXIA'!$M$8:$M$57,'Schedule XXIA'!$K$8:$K$57,$D$35,'Schedule XXIA'!$L$8:$L$57,$B44)","v":0},{"$f":"+'Fixed Income Investments (old)'!E34","v":0.35},0]
[]
[null,"(c)  SUBTOTAL - RESIDENTIAL MORTGAGE-BACKED SECURITIES",null,{"$f":"SUM(D35:D44)","v":0},null,{"$f":"SUM(F35:F44)","v":0}]
[]
[null,"(d) Commercial Mortgage-Backed Securities / Asset Backed Securities",null,"Commercial Mortgage-Backed Securities"]
[null,"BSCR Rating 0","Schedule XXIA, Column H",{"$f":"SUMIFS('Schedule XXIA'!$M$8:$M$57,'Schedule XXIA'!$K$8:$K$57,$D$48,'Schedule XXIA'!$L$8:$L$57,$B49)","v":0},0,{"$f":"MAX(0,(D49*E49))","v":0}]
[null,"BSCR Rating 1","Schedule XXIA, Column H",{"$f":"SUMIFS('Schedule XXIA'!$M$8:$M$57,'Schedule XXIA'!$K$8:$K$57,$D$48,'Schedule XXIA'!$L$8:$L$57,$B50)","v":0},{"$f":"+'Fixed Income Investments (old)'!E41","v":5.0000000000000001E-3},{"$f":"MAX(0,(D50*E50))","v":0}]
[null,"BSCR Rating 2","Schedule XXIA, Column H",{"$f":"SUMIFS('Schedule XXIA'!$M$8:$M$57,'Schedule XXIA'!$K$8:$K$57,$D$48,'Schedule XXIA'!$L$8:$L$57,$B51)","v":0},{"$f":"+'Fixed Income Investments (old)'!E42","v":0.01},0]
[null,"BSCR Rating 3","Schedule XXIA, Column H",{"$f":"SUMIFS('Schedule XXIA'!$M$8:$M$57,'Schedule XXIA'!$K$8:$K$57,$D$48,'Schedule XXIA'!$L$8:$L$57,$B52)","v":0},{"$f":"+'Fixed Income Investments (old)'!E43","v":1.7999999999999999E-2},0]
[null,"BSCR Rating 4","Schedule XXIA, Column H",{"$f":"SUMIFS('Schedule XXIA'!$M$8:$M$57,'Schedule XXIA'!$K$8:$K$57,$D$48,'Schedule XXIA'!$L$8:$L$57,$B53)","v":0},{"$f":"+'Fixed Income Investments (old)'!E44","v":3.5000000000000003E-2},0]
[null,"BSCR Rating 5","Schedule XXIA, Column H",{"$f":"SUMIFS('Schedule XXIA'!$M$8:$M$57,'Schedule XXIA'!$K$8:$K$57,$D$48,'Schedule XXIA'!$L$8:$L$57,$B54)","v":0},{"$f":"+'Fixed Income Investments (old)'!E45","v":0.1},0]
[null,"BSCR Rating 6","Schedule XXIA, Column H",{"$f":"SUMIFS('Schedule XXIA'!$M$8:$M$57,'Schedule XXIA'!$K$8:$K$57,$D$48,'Schedule XXIA'!$L$8:$L$57,$B55)","v":0},{"$f":"+'Fixed Income Investments (old)'!E46","v":0.2},0]
[null,"BSCR Rating 7","Schedule XXIA, Column H",{"$f":"SUMIFS('Schedule XXIA'!$M$8:$M$57,'Schedule XXIA'!$K$8:$K$57,$D$48,'Schedule XXIA'!$L$8:$L$57,$B56)","v":0},{"$f":"+'Fixed Income Investments (old)'!E47","v":0.3},0]
[null,"BSCR Rating 8","Schedule XXIA, Column H",{"$f":"SUMIFS('Schedule XXIA'!$M$8:$M$57,'Schedule XXIA'!$K$8:$K$57,$D$48,'Schedule XXIA'!$L$8:$L$57,$B57)","v":0},{"$f":"+'Fixed Income Investments (old)'!E48","v":0.35},0]
[]
[null,"(d)  SUBTOTAL - COMMERCIAL MORTGAGE-BACKED SECURITIES / ASSET-BACKED SECURITIES",null,{"$f":"SUM(D48:D57)","v":0},null,{"$f":"SUM(F48:F57)","v":0}]
[]
[null,"(e) Bond Mutual Funds",null,"Bond Mutual Funds"]
[null,"BSCR Rating 0","Schedule XXIA, Column H",{"$f":"SUMIFS('Schedule XXIA'!$M$8:$M$57,'Schedule XXIA'!$K$8:$K$57,$D$61,'Schedule XXIA'!$L$8:$L$57,$B62)","v":0},{"$f":"+'Fixed Income Investments (old)'!E56","v":0},{"$f":"MAX(0,(D62*E62))","v":0}]
[null,"BSCR Rating 1","Schedule XXIA, Column H",{"$f":"SUMIFS('Schedule XXIA'!$M$8:$M$57,'Schedule XXIA'!$K$8:$K$57,$D$61,'Schedule XXIA'!$L$8:$L$57,$B63)","v":0},{"$f":"+'Fixed Income Investments (old)'!E57","v":4.0000000000000001E-3},{"$f":"MAX(0,(D63*E63))","v":0}]
[null,"BSCR Rating 2","Schedule XXIA, Column H",{"$f":"SUMIFS('Schedule XXIA'!$M$8:$M$57,'Schedule XXIA'!$K$8:$K$57,$D$61,'Schedule XXIA'!$L$8:$L$57,$B64)","v":0},{"$f":"+'Fixed Income Investments (old)'!E58","v":8.0000000000000002E-3},0]
[null,"BSCR Rating 3","Schedule XXIA, Column H",{"$f":"SUMIFS('Schedule XXIA'!$M$8:$M$57,'Schedule XXIA'!$K$8:$K$57,$D$61,'Schedule XXIA'!$L$8:$L$57,$B65)","v":0},{"$f":"+'Fixed Income Investments (old)'!E59","v":1.4999999999999999E-2},0]
[null,"BSCR Rating 4","Schedule XXIA, Column H",{"$f":"SUMIFS('Schedule XXIA'!$M$8:$M$57,'Schedule XXIA'!$K$8:$K$57,$D$61,'Schedule XXIA'!$L$8:$L$57,$B66)","v":0},{"$f":"+'Fixed Income Investments (old)'!E60","v":0.03},0]
[null,"BSCR Rating 5","Schedule XXIA, Column H",{"$f":"SUMIFS('Schedule XXIA'!$M$8:$M$57,'Schedule XXIA'!$K$8:$K$57,$D$61,'Schedule XXIA'!$L$8:$L$57,$B67)","v":0},{"$f":"+'Fixed Income Investments (old)'!E61","v":0.08},0]
[null,"BSCR Rating 6","Schedule XXIA, Column H",{"$f":"SUMIFS('Schedule XXIA'!$M$8:$M$57,'Schedule XXIA'!$K$8:$K$57,$D$61,'Schedule XXIA'!$L$8:$L$57,$B68)","v":0},{"$f":"+'Fixed Income Investments (old)'!E62","v":0.15},0]
[null,"BSCR Rating 7","Schedule XXIA, Column H",{"$f":"SUMIFS('Schedule XXIA'!$M$8:$M$57,'Schedule XXIA'!$K$8:$K$57,$D$61,'Schedule XXIA'!$L$8:$L$57,$B69)","v":0},{"$f":"+'Fixed Income Investments (old)'!E63","v":0.26300000000000001},0]
[null,"BSCR Rating 8","Schedule XXIA, Column H",{"$f":"SUMIFS('Schedule XXIA'!$M$8:$M$57,'Schedule XXIA'!$K$8:$K$57,$D$61,'Schedule XXIA'!$L$8:$L$57,$B70)","v":0},{"$f":"+'Fixed Income Investments (old)'!E64","v":0.35},0]
[]
[null,"(e)  SUBTOTAL - BOND MUTUAL FUNDS",null,{"$f":"SUM(D61:D70)","v":0},null,{"$f":"SUM(F61:F70)","v":0}]
[]
[null,"(f) Preferred Shares",null,"Preferred Shares"]
[null,"BSCR Rating 0","Schedule XXIA, Column H",{"$f":"SUMIFS('Schedule XXIA'!$M$8:$M$57,'Schedule XXIA'!$J$8:$J$57,$D$74,'Schedule XXIA'!$L$8:$L$57,$B75)","v":0},0,{"$f":"MAX(0,(D75*E75))","v":0}]
[null,"BSCR Rating 1","Schedule XXIA, Column H",{"$f":"SUMIFS('Schedule XXIA'!$M$8:$M$57,'Schedule XXIA'!$J$8:$J$57,$D$74,'Schedule XXIA'!$L$8:$L$57,$B76)","v":0},6.0000000000000001E-3,{"$f":"MAX(0,(D76*E76))","v":0}]
[null,"BSCR Rating 2","Schedule XXIA, Column H",{"$f":"SUMIFS('Schedule XXIA'!$M$8:$M$57,'Schedule XXIA'!$J$8:$J$57,$D$74,'Schedule XXIA'!$L$8:$L$57,$B77)","v":0},1.2E-2,0]
[null,"BSCR Rating 3","Schedule XXIA, Column H",{"$f":"SUMIFS('Schedule XXIA'!$M$8:$M$57,'Schedule XXIA'!$J$8:$J$57,$D$74,'Schedule XXIA'!$L$8:$L$57,$B78)","v":0},0.02,0]
[null,"BSCR Rating 4","Schedule XXIA, Column H",{"$f":"SUMIFS('Schedule XXIA'!$M$8:$M$57,'Schedule XXIA'!$J$8:$J$57,$D$74,'Schedule XXIA'!$L$8:$L$57,$B79)","v":0},0.04,0]
[null,"BSCR Rating 5","Schedule XXIA, Column H",{"$f":"SUMIFS('Schedule XXIA'!$M$8:$M$57,'Schedule XXIA'!$J$8:$J$57,$D$74,'Schedule XXIA'!$L$8:$L$57,$B80)","v":0},0.11,0]
[null,"BSCR Rating 6","Schedule XXIA, Column H",{"$f":"SUMIFS('Schedule XXIA'!$M$8:$M$57,'Schedule XXIA'!$J$8:$J$57,$D$74,'Schedule XXIA'!$L$8:$L$57,$B81)","v":0},0.25,0]
[null,"BSCR Rating 7","Schedule XXIA, Column H",{"$f":"SUMIFS('Schedule XXIA'!$M$8:$M$57,'Schedule XXIA'!$J$8:$J$57,$D$74,'Schedule XXIA'!$L$8:$L$57,$B82)","v":0},0.35,0]
[null,"BSCR Rating 8","Schedule XXIA, Column H",{"$f":"SUMIFS('Schedule XXIA'!$M$8:$M$57,'Schedule XXIA'!$J$8:$J$57,$D$74,'Schedule XXIA'!$L$8:$L$57,$B83)","v":0},0.35,0]
[]
[null,"(f)  SUBTOTAL - PREFERRED SHARES",null,{"$f":"SUM(D74:D83)","v":0},null,{"$f":"SUM(F74:F83)","v":0}]
[]
[null,"(g) Mortgage Loans",null,{"$f":"+'Schedule XXIA'!C65","v":"MortgageLoanTypes"}]
[null,"Insured/Guaranteed Mortgages","Schedule XXIA, Column H",{"$f":"SUMIFS('Schedule XXIA'!$M$8:$M$57,'Schedule XXIA'!$J$8:$J$57,$D$87,'Schedule XXIA'!$K$8:$K$57,$B88)","v":0},{"$f":"'Fixed Income Investments'!H70","v":3.0000000000000001E-3},{"$f":"MAX(0,(D88*E88))","v":0}]
[null,"Other Commercial and Farm Mortgages","Schedule XXIA, Column H",{"$f":"SUMIFS('Schedule XXIA'!$M$8:$M$57,'Schedule XXIA'!$J$8:$J$57,$D$87,'Schedule XXIA'!$K$8:$K$57,$B89)","v":0},{"$f":"'Fixed Income Investments'!H71","v":0.05},{"$f":"MAX(0,(D89*E89))","v":0}]
[null,"Other Residential Mortgages","Schedule XXIA, Column H",{"$f":"SUMIFS('Schedule XXIA'!$M$8:$M$57,'Schedule XXIA'!$J$8:$J$57,$D$87,'Schedule XXIA'!$K$8:$K$57,$B90)","v":0},{"$f":"'Fixed Income Investments'!H72","v":1.4999999999999999E-2},{"$f":"MAX(0,(D90*E90))","v":0}]
[null,"Mortgages Not In Good Standing","Schedule XXIA, Column H",{"$f":"SUMIFS('Schedule XXIA'!$M$8:$M$57,'Schedule XXIA'!$J$8:$J$57,$D$87,'Schedule XXIA'!$K$8:$K$57,$B91)","v":0},{"$f":"'Fixed Income Investments'!H73","v":0.25},{"$f":"MAX(0,(D91*E91))","v":0}]
[]
[null,"(g)  SUBTOTAL - Mortgage Loans",null,{"$f":"SUM(D88:D91)","v":0},null,{"$f":"SUM(F88:F91)","v":0}]
[]
[null,"(h) Other Asset Classes"]
[null,"Infrastructure (Non-affiliate holdings, non-duration based)","Schedule XXIA, Column H",{"$f":"SUMIFS('Schedule XXIA'!$M$8:$M$57,'Schedule XXIA'!$J$8:$J$57,$B96)","v":0},0.25,{"$f":"MAX(0,(D96*E96))","v":0}]
[null,"Listed Equity Securities in Developed Markets","Schedule XXIA, Column H",{"$f":"SUMIFS('Schedule XXIA'!$M$8:$M$57,'Schedule XXIA'!$J$8:$J$57,$B97)","v":0},0.35,{"$f":"MAX(0,(D97*E97))","v":0}]
[null,"Other Equities","Schedule XXIA, Column H",{"$f":"SUMIFS('Schedule XXIA'!$M$8:$M$57,'Schedule XXIA'!$J$8:$J$57,$B98)","v":0},0.45,{"$f":"MAX(0,(D98*E98))","v":0}]
[null,"Strategic Holdings","Schedule XXIA, Column H",{"$f":"SUMIFS('Schedule XXIA'!$M$8:$M$57,'Schedule XXIA'!$J$8:$J$57,$B99)","v":0},0.2,{"$f":"MAX(0,(D99*E99))","v":0}]
[null,"Duration Based","Schedule XXIA, Column H",{"$f":"SUMIFS('Schedule XXIA'!$M$8:$M$57,'Schedule XXIA'!$J$8:$J$57,$B100)","v":0},{"$f":"'Equity Investments'!$N$12","v":0.2},{"$f":"MAX(0,(D100*E100))","v":0}]
[null,"Letters of Credit","Schedule XXIA, Column H",{"$f":"SUMIFS('Schedule XXIA'!$M$8:$M$57,'Schedule XXIA'!$J$8:$J$57,$B101)","v":0},{"$f":"'Equity Investments'!N29","v":0.2},{"$f":"MAX(0,(D101*E101))","v":0}]
[null,"Advances to Affiliates - ","Schedule XXIA, Column H",{"$f":"SUMIFS('Schedule XXIA'!$M$8:$M$57,'Schedule XXIA'!$J$8:$J$57,$B102)","v":0},0.05,0]
[null,"Policy Loans","Schedule XXIA, Column H",{"$f":"SUMIFS('Schedule XXIA'!$M$8:$M$57,'Schedule XXIA'!$J$8:$J$57,$B103)","v":0},0,0]
[null,"Equity Real Estate 1","Schedule XXIA, Column H",{"$f":"SUMIFS('Schedule XXIA'!$M$8:$M$57,'Schedule XXIA'!$J$8:$J$57,$B104)","v":0},0.1,0]
[null,"Equity Real Estate 2","Schedule XXIA, Column H",{"$f":"SUMIFS('Schedule XXIA'!$M$8:$M$57,'Schedule XXIA'!$J$8:$J$57,$B105)","v":0},0.2,0]
[null,"Collateral Loans","Schedule XXIA, Column H",{"$f":"SUMIFS('Schedule XXIA'!$M$8:$M$57,'Schedule XXIA'!$J$8:$J$57,$B106)","v":0},0.05,0]
[]
[null,"(h)  SUBTOTAL - OTHER ASSET CLASSES",null,{"$f":"SUM(D96:D107)","v":0},null,{"$f":"SUM(F96:F107)","v":0}]
[]
[null,"TOTAL CONCENTRATION RISK",null,{"$f":"D108+D93+D85+D72+D59+D46+D33+D20","v":0},null,{"$f":"F108+F93+F85+F72+F59+F46+F33+F20","v":0}]

{"sheet":"Geographic Diversification (old","index":124,"n_rows":65,"n_cols":26,"rows_kept":65,"cut":false,"hidden":true,"merged":[[2,2,2,3]]}
["GEOGRAPHIC DIVERSIFICATION",null,null,null,null,null,null,null,null,null,null,null,null,null,null,null,null,null,null,null,null,null,null,null,null,{"$f":"HYPERLINK(\"#'Index'!A1\",\"Return to Index\")","v":"Return to Index"}]
[{"$f":"'Company Information'!C7","v":"Enter Company Name"}]
[{"$f":"\"Geographic Diversification\" & \"($\"&IF(CONFIGURATION!$B$12>1,MID(CONFIGURATION!$B$12,2,LEN(CONFIGURATION!$B$12)),\"\")&\")\"","v":"Geographic Diversification($000)"},null,{"$f":"'Company Information'!C3","v":"2022-12-31"}]
[]
[null,null,null,"TOTAL",null,null,null,"CHARGE"]
[null,"NET PREMIUMS WRITTEN BY ",null,"NET","SUM","DIVERSIFICATION","PREMIUM","DIVERSIFIED"]
[null,"LINE OF BUSINESS","STATEMENT SOURCE","PREMIUM","SQUARED","FACTOR","USED","PREMIUM",{"$f":"HYPERLINK(\"#'Zones'!c4\",\"Zone 1\")","v":"Zone 1"},{"$f":"HYPERLINK(\"#'Zones'!c13\",\"Zone 2\")","v":"Zone 2"},{"$f":"HYPERLINK(\"#'Zones'!c18\",\"Zone 3\")","v":"Zone 3"},{"$f":"HYPERLINK(\"#'Zones'!c26\",\"Zone 4\")","v":"Zone 4"},{"$f":"HYPERLINK(\"#'Zones'!c36\",\"Zone 5\")","v":"Zone 5"},{"$f":"HYPERLINK(\"#'Zones'!c46\",\"Zone 6\")","v":"Zone 6"},{"$f":"HYPERLINK(\"#'Zones'!c57\",\"Zone 7\")","v":"Zone 7"},{"$f":"HYPERLINK(\"#'Zones'!c68\",\"Zone 8\")","v":"Zone 8"},{"$f":"HYPERLINK(\"#'Zones'!c76\",\"Zone 9\")","v":"Zone 9"},{"$f":"HYPERLINK(\"#'Zones'!c84\",\"Zone 10\")","v":"Zone 10"},{"$f":"HYPERLINK(\"#'Zones'!c90\",\"Zone 11\")","v":"Zone 11"},{"$f":"HYPERLINK(\"#'Zones'!c94\",\"Zone 12\")","v":"Zone 12"},{"$f":"HYPERLINK(\"#'Zones'!c107\",\"Zone 13\")","v":"Zone 13"},{"$f":"HYPERLINK(\"#'Zones'!c112\",\"Zone 14\")","v":"Zone 14"},{"$f":"HYPERLINK(\"#'Zones'!c116\",\"Zone 15\")","v":"Zone 15"},{"$f":"HYPERLINK(\"#'Zones'!c121\",\"Zone 16\")","v":"Zone 16"},{"$f":"HYPERLINK(\"#'Zones'!c127\",\"Zone 17\")","v":"Zone 17"},{"$f":"HYPERLINK(\"#'Zones'!c133\",\"Zone 18\")","v":"Zone 18"}]
[]
[null,"Property Catastrophe","Schedule IV(a), Line (1)",{"$f":"SUM(I9:Z9)","v":0},{"$f":"SUMSQ(I9:Z9)","v":0},{"$f":"(IF(D9>0,E9/D9^2,1))","v":1},{"$f":"D9*(0.75+0.25*F9)","v":0},{"$f":"IF('Schedule IVC'!AB9=\"True\",G9,'Schedule IVA'!Q11)","v":0},{"$f":"+'Schedule IVC'!E9","v":0},{"$f":"+'Schedule IVC'!F9","v":0},{"$f":"+'Schedule IVC'!G9","v":0},{"$f":"+'Schedule IVC'!H9","v":0},{"$f":"+'Schedule IVC'!I9","v":0},{"$f":"+'Schedule IVC'!J9","v":0},{"$f":"+'Schedule IVC'!K9","v":0},{"$f":"+'Schedule IVC'!L9","v":0},{"$f":"+'Schedule IVC'!M9","v":0},{"$f":"+'Schedule IVC'!N9","v":0},{"$f":"+'Schedule IVC'!O9","v":0},{"$f":"+'Schedule IVC'!P9","v":0},{"$f":"+'Schedule IVC'!Q9","v":0},{"$f":"+'Schedule IVC'!R9","v":0},{"$f":"+'Schedule IVC'!S9","v":0},{"$f":"+'Schedule IVC'!T9","v":0},{"$f":"+'Schedule IVC'!U9","v":0},{"$f":"+'Schedule IVC'!V9","v":0}]
[null,"Property","Schedule IV(a), Line (2)",{"$f":"SUM(I10:Z10)","v":0},{"$f":"SUMSQ(I10:Z10)","v":0},{"$f":"(IF(D10>0,E10/D10^2,1))","v":1},{"$f":"D10*(0.75+0.25*F10)","v":0},{"$f":"IF('Schedule IVC'!AB10=\"True\",G10,'Schedule IVA'!Q12)","v":0},{"$f":"+'Schedule IVC'!E10","v":0},{"$f":"+'Schedule IVC'!F10","v":0},{"$f":"+'Schedule IVC'!G10","v":0},{"$f":"+'Schedule IVC'!H10","v":0},{"$f":"+'Schedule IVC'!I10","v":0},{"$f":"+'Schedule IVC'!J10","v":0},{"$f":"+'Schedule IVC'!K10","v":0},{"$f":"+'Schedule IVC'!L10","v":0},{"$f":"+'Schedule IVC'!M10","v":0},{"$f":"+'Schedule IVC'!N10","v":0},{"$f":"+'Schedule IVC'!O10","v":0},{"$f":"+'Schedule IVC'!P10","v":0},{"$f":"+'Schedule IVC'!Q10","v":0},{"$f":"+'Schedule IVC'!R10","v":0},{"$f":"+'Schedule IVC'!S10","v":0},{"$f":"+'Schedule IVC'!T10","v":0},{"$f":"+'Schedule IVC'!U10","v":0},{"$f":"+'Schedule IVC'!V10","v":0}]
[null,"Property Non-Proportional","Schedule IV(a), Line (3)",0,0,1,0,{"$f":"IF('Schedule IVC'!AB11=\"True\",G11,'Schedule IVA'!Q13)","v":0},{"$f":"+'Schedule IVC'!E11","v":0},{"$f":"+'Schedule IVC'!F11","v":0},{"$f":"+'Schedule IVC'!G11","v":0},{"$f":"+'Schedule IVC'!H11","v":0},{"$f":"+'Schedule IVC'!I11","v":0},{"$f":"+'Schedule IVC'!J11","v":0},{"$f":"+'Schedule IVC'!K11","v":0},{"$f":"+'Schedule IVC'!L11","v":0},{"$f":"+'Schedule IVC'!M11","v":0},{"$f":"+'Schedule IVC'!N11","v":0},{"$f":"+'Schedule IVC'!O11","v":0},{"$f":"+'Schedule IVC'!P11","v":0},{"$f":"+'Schedule IVC'!Q11","v":0},{"$f":"+'Schedule IVC'!R11","v":0},{"$f":"+'Schedule IVC'!S11","v":0},{"$f":"+'Schedule IVC'!T11","v":0},{"$f":"+'Schedule IVC'!U11","v":0},{"$f":"+'Schedule IVC'!V11","v":0}]
[null,"Personal Accident","Schedule IV(a), Line (4)",0,0,1,0,{"$f":"IF('Schedule IVC'!AB12=\"True\",G12,'Schedule IVA'!Q14)","v":0},{"$f":"+'Schedule IVC'!E12","v":0},{"$f":"+'Schedule IVC'!F12","v":0},{"$f":"+'Schedule IVC'!G12","v":0},{"$f":"+'Schedule IVC'!H12","v":0},{"$f":"+'Schedule IVC'!I12","v":0},{"$f":"+'Schedule IVC'!J12","v":0},{"$f":"+'Schedule IVC'!K12","v":0},{"$f":"+'Schedule IVC'!L12","v":0},{"$f":"+'Schedule IVC'!M12","v":0},{"$f":"+'Schedule IVC'!N12","v":0},{"$f":"+'Schedule IVC'!O12","v":0},{"$f":"+'Schedule IVC'!P12","v":0},{"$f":"+'Schedule IVC'!Q12","v":0},{"$f":"+'Schedule IVC'!R12","v":0},{"$f":"+'Schedule IVC'!S12","v":0},{"$f":"+'Schedule IVC'!T12","v":0},{"$f":"+'Schedule IVC'!U12","v":0},{"$f":"+'Schedule IVC'!V12","v":0}]
[null,"Personal Accident Non-Proportional","Schedule IV(a), Line (5)",0,0,1,0,{"$f":"IF('Schedule IVC'!AB13=\"True\",G13,'Schedule IVA'!Q15)","v":0},{"$f":"+'Schedule IVC'!E13","v":0},{"$f":"+'Schedule IVC'!F13","v":0},{"$f":"+'Schedule IVC'!G13","v":0},{"$f":"+'Schedule IVC'!H13","v":0},{"$f":"+'Schedule IVC'!I13","v":0},{"$f":"+'Schedule IVC'!J13","v":0},{"$f":"+'Schedule IVC'!K13","v":0},{"$f":"+'Schedule IVC'!L13","v":0},{"$f":"+'Schedule IVC'!M13","v":0},{"$f":"+'Schedule IVC'!N13","v":0},{"$f":"+'Schedule IVC'!O13","v":0},{"$f":"+'Schedule IVC'!P13","v":0},{"$f":"+'Schedule IVC'!Q13","v":0},{"$f":"+'Schedule IVC'!R13","v":0},{"$f":"+'Schedule IVC'!S13","v":0},{"$f":"+'Schedule IVC'!T13","v":0},{"$f":"+'Schedule IVC'!U13","v":0},{"$f":"+'Schedule IVC'!V13","v":0}]
[null,"Aviation","Schedule IV(a), Line (6)",0,0,1,0,{"$f":"IF('Schedule IVC'!AB14=\"True\",G14,'Schedule IVA'!Q16)","v":0},{"$f":"+'Schedule IVC'!E14","v":0},{"$f":"+'Schedule IVC'!F14","v":0},{"$f":"+'Schedule IVC'!G14","v":0},{"$f":"+'Schedule IVC'!H14","v":0},{"$f":"+'Schedule IVC'!I14","v":0},{"$f":"+'Schedule IVC'!J14","v":0},{"$f":"+'Schedule IVC'!K14","v":0},{"$f":"+'Schedule IVC'!L14","v":0},{"$f":"+'Schedule IVC'!M14","v":0},{"$f":"+'Schedule IVC'!N14","v":0},{"$f":"+'Schedule IVC'!O14","v":0},{"$f":"+'Schedule IVC'!P14","v":0},{"$f":"+'Schedule IVC'!Q14","v":0},{"$f":"+'Schedule IVC'!R14","v":0},{"$f":"+'Schedule IVC'!S14","v":0},{"$f":"+'Schedule IVC'!T14","v":0},{"$f":"+'Schedule IVC'!U14","v":0},{"$f":"+'Schedule IVC'!V14","v":0}]
[null,"Aviation Non-Proportional","Schedule IV(a), Line (7)",0,0,1,0,{"$f":"IF('Schedule IVC'!AB15=\"True\",G15,'Schedule IVA'!Q17)","v":0},{"$f":"+'Schedule IVC'!E15","v":0},{"$f":"+'Schedule IVC'!F15","v":0},{"$f":"+'Schedule IVC'!G15","v":0},{"$f":"+'Schedule IVC'!H15","v":0},{"$f":"+'Schedule IVC'!I15","v":0},{"$f":"+'Schedule IVC'!J15","v":0},{"$f":"+'Schedule IVC'!K15","v":0},{"$f":"+'Schedule IVC'!L15","v":0},{"$f":"+'Schedule IVC'!M15","v":0},{"$f":"+'Schedule IVC'!N15","v":0},{"$f":"+'Schedule IVC'!O15","v":0},{"$f":"+'Schedule IVC'!P15","v":0},{"$f":"+'Schedule IVC'!Q15","v":0},{"$f":"+'Schedule IVC'!R15","v":0},{"$f":"+'Schedule IVC'!S15","v":0},{"$f":"+'Schedule IVC'!T15","v":0},{"$f":"+'Schedule IVC'!U15","v":0},{"$f":"+'Schedule IVC'!V15","v":0}]
[null,"Credit / Surety","Schedule IV(a), Line (8)",0,0,1,0,{"$f":"IF('Schedule IVC'!AB16=\"True\",G16,'Schedule IVA'!Q18)","v":0},{"$f":"+'Schedule IVC'!E16","v":0},{"$f":"+'Schedule IVC'!F16","v":0},{"$f":"+'Schedule IVC'!G16","v":0},{"$f":"+'Schedule IVC'!H16","v":0},{"$f":"+'Schedule IVC'!I16","v":0},{"$f":"+'Schedule IVC'!J16","v":0},{"$f":"+'Schedule IVC'!K16","v":0},{"$f":"+'Schedule IVC'!L16","v":0},{"$f":"+'Schedule IVC'!M16","v":0},{"$f":"+'Schedule IVC'!N16","v":0},{"$f":"+'Schedule IVC'!O16","v":0},{"$f":"+'Schedule IVC'!P16","v":0},{"$f":"+'Schedule IVC'!Q16","v":0},{"$f":"+'Schedule IVC'!R16","v":0},{"$f":"+'Schedule IVC'!S16","v":0},{"$f":"+'Schedule IVC'!T16","v":0},{"$f":"+'Schedule IVC'!U16","v":0},{"$f":"+'Schedule IVC'!V16","v":0}]
[null,"Credit / Surety Non-Proportional","Schedule IV(a), Line (9)",0,0,1,0,{"$f":"IF('Schedule IVC'!AB17=\"True\",G17,'Schedule IVA'!Q19)","v":0},{"$f":"+'Schedule IVC'!E17","v":0},{"$f":"+'Schedule IVC'!F17","v":0},{"$f":"+'Schedule IVC'!G17","v":0},{"$f":"+'Schedule IVC'!H17","v":0},{"$f":"+'Schedule IVC'!I17","v":0},{"$f":"+'Schedule IVC'!J17","v":0},{"$f":"+'Schedule IVC'!K17","v":0},{"$f":"+'Schedule IVC'!L17","v":0},{"$f":"+'Schedule IVC'!M17","v":0},{"$f":"+'Schedule IVC'!N17","v":0},{"$f":"+'Schedule IVC'!O17","v":0},{"$f":"+'Schedule IVC'!P17","v":0},{"$f":"+'Schedule IVC'!Q17","v":0},{"$f":"+'Schedule IVC'!R17","v":0},{"$f":"+'Schedule IVC'!S17","v":0},{"$f":"+'Schedule IVC'!T17","v":0},{"$f":"+'Schedule IVC'!U17","v":0},{"$f":"+'Schedule IVC'!V17","v":0}]
[null,"Energy Offshore / Marine","Schedule IV(a), Line (10)",0,0,1,0,{"$f":"IF('Schedule IVC'!AB18=\"True\",G18,'Schedule IVA'!Q20)","v":0},{"$f":"+'Schedule IVC'!E18","v":0},{"$f":"+'Schedule IVC'!F18","v":0},{"$f":"+'Schedule IVC'!G18","v":0},{"$f":"+'Schedule IVC'!H18","v":0},{"$f":"+'Schedule IVC'!I18","v":0},{"$f":"+'Schedule IVC'!J18","v":0},{"$f":"+'Schedule IVC'!K18","v":0},{"$f":"+'Schedule IVC'!L18","v":0},{"$f":"+'Schedule IVC'!M18","v":0},{"$f":"+'Schedule IVC'!N18","v":0},{"$f":"+'Schedule IVC'!O18","v":0},{"$f":"+'Schedule IVC'!P18","v":0},{"$f":"+'Schedule IVC'!Q18","v":0},{"$f":"+'Schedule IVC'!R18","v":0},{"$f":"+'Schedule IVC'!S18","v":0},{"$f":"+'Schedule IVC'!T18","v":0},{"$f":"+'Schedule IVC'!U18","v":0},{"$f":"+'Schedule IVC'!V18","v":0}]
[null,"Energy Offshore / Marine Non-Proportional","Schedule IV(a), Line (11)",0,0,1,0,{"$f":"IF('Schedule IVC'!AB19=\"True\",G19,'Schedule IVA'!Q21)","v":0},{"$f":"+'Schedule IVC'!E19","v":0},{"$f":"+'Schedule IVC'!F19","v":0},{"$f":"+'Schedule IVC'!G19","v":0},{"$f":"+'Schedule IVC'!H19","v":0},{"$f":"+'Schedule IVC'!I19","v":0},{"$f":"+'Schedule IVC'!J19","v":0},{"$f":"+'Schedule IVC'!K19","v":0},{"$f":"+'Schedule IVC'!L19","v":0},{"$f":"+'Schedule IVC'!M19","v":0},{"$f":"+'Schedule IVC'!N19","v":0},{"$f":"+'Schedule IVC'!O19","v":0},{"$f":"+'Schedule IVC'!P19","v":0},{"$f":"+'Schedule IVC'!Q19","v":0},{"$f":"+'Schedule IVC'!R19","v":0},{"$f":"+'Schedule IVC'!S19","v":0},{"$f":"+'Schedule IVC'!T19","v":0},{"$f":"+'Schedule IVC'!U19","v":0},{"$f":"+'Schedule IVC'!V19","v":0}]
[null,"US Casualty","Schedule IV(a), Line (12)",0,0,1,0,{"$f":"IF('Schedule IVC'!AB20=\"True\",G20,'Schedule IVA'!Q22)","v":0},{"$f":"+'Schedule IVC'!E20","v":0},{"$f":"+'Schedule IVC'!F20","v":0},{"$f":"+'Schedule IVC'!G20","v":0},{"$f":"+'Schedule IVC'!H20","v":0},{"$f":"+'Schedule IVC'!I20","v":0},{"$f":"+'Schedule IVC'!J20","v":0},{"$f":"+'Schedule IVC'!K20","v":0},{"$f":"+'Schedule IVC'!L20","v":0},{"$f":"+'Schedule IVC'!M20","v":0},{"$f":"+'Schedule IVC'!N20","v":0},{"$f":"+'Schedule IVC'!O20","v":0},{"$f":"+'Schedule IVC'!P20","v":0},{"$f":"+'Schedule IVC'!Q20","v":0},{"$f":"+'Schedule IVC'!R20","v":0},{"$f":"+'Schedule IVC'!S20","v":0},{"$f":"+'Schedule IVC'!T20","v":0},{"$f":"+'Schedule IVC'!U20","v":0},{"$f":"+'Schedule IVC'!V20","v":0}]
[null,"US Casualty Non-Proportional","Schedule IV(a), Line (13)",0,0,1,0,{"$f":"IF('Schedule IVC'!AB21=\"True\",G21,'Schedule IVA'!Q23)","v":0},{"$f":"+'Schedule IVC'!E21","v":0},{"$f":"+'Schedule IVC'!F21","v":0},{"$f":"+'Schedule IVC'!G21","v":0},{"$f":"+'Schedule IVC'!H21","v":0},{"$f":"+'Schedule IVC'!I21","v":0},{"$f":"+'Schedule IVC'!J21","v":0},{"$f":"+'Schedule IVC'!K21","v":0},{"$f":"+'Schedule IVC'!L21","v":0},{"$f":"+'Schedule IVC'!M21","v":0},{"$f":"+'Schedule IVC'!N21","v":0},{"$f":"+'Schedule IVC'!O21","v":0},{"$f":"+'Schedule IVC'!P21","v":0},{"$f":"+'Schedule IVC'!Q21","v":0},{"$f":"+'Schedule IVC'!R21","v":0},{"$f":"+'Schedule IVC'!S21","v":0},{"$f":"+'Schedule IVC'!T21","v":0},{"$f":"+'Schedule IVC'!U21","v":0},{"$f":"+'Schedule IVC'!V21","v":0}]
[null,"US Professional","Schedule IV(a), Line (14)",0,0,1,0,{"$f":"IF('Schedule IVC'!AB22=\"True\",G22,'Schedule IVA'!Q24)","v":0},{"$f":"+'Schedule IVC'!E22","v":0},{"$f":"+'Schedule IVC'!F22","v":0},{"$f":"+'Schedule IVC'!G22","v":0},{"$f":"+'Schedule IVC'!H22","v":0},{"$f":"+'Schedule IVC'!I22","v":0},{"$f":"+'Schedule IVC'!J22","v":0},{"$f":"+'Schedule IVC'!K22","v":0},{"$f":"+'Schedule IVC'!L22","v":0},{"$f":"+'Schedule IVC'!M22","v":0},{"$f":"+'Schedule IVC'!N22","v":0},{"$f":"+'Schedule IVC'!O22","v":0},{"$f":"+'Schedule IVC'!P22","v":0},{"$f":"+'Schedule IVC'!Q22","v":0},{"$f":"+'Schedule IVC'!R22","v":0},{"$f":"+'Schedule IVC'!S22","v":0},{"$f":"+'Schedule IVC'!T22","v":0},{"$f":"+'Schedule IVC'!U22","v":0},{"$f":"+'Schedule IVC'!V22","v":0}]
[null,"US Professional Non-Proportional","Schedule IV(a), Line (15)",0,0,1,0,{"$f":"IF('Schedule IVC'!AB23=\"True\",G23,'Schedule IVA'!Q25)","v":0},{"$f":"+'Schedule IVC'!E23","v":0},{"$f":"+'Schedule IVC'!F23","v":0},{"$f":"+'Schedule IVC'!G23","v":0},{"$f":"+'Schedule IVC'!H23","v":0},{"$f":"+'Schedule IVC'!I23","v":0},{"$f":"+'Schedule IVC'!J23","v":0},{"$f":"+'Schedule IVC'!K23","v":0},{"$f":"+'Schedule IVC'!L23","v":0},{"$f":"+'Schedule IVC'!M23","v":0},{"$f":"+'Schedule IVC'!N23","v":0},{"$f":"+'Schedule IVC'!O23","v":0},{"$f":"+'Schedule IVC'!P23","v":0},{"$f":"+'Schedule IVC'!Q23","v":0},{"$f":"+'Schedule IVC'!R23","v":0},{"$f":"+'Schedule IVC'!S23","v":0},{"$f":"+'Schedule IVC'!T23","v":0},{"$f":"+'Schedule IVC'!U23","v":0},{"$f":"+'Schedule IVC'!V23","v":0}]
[null,"US Specialty","Schedule IV(a), Line (16)",0,0,1,0,{"$f":"IF('Schedule IVC'!AB24=\"True\",G24,'Schedule IVA'!Q26)","v":0},{"$f":"+'Schedule IVC'!E24","v":0},{"$f":"+'Schedule IVC'!F24","v":0},{"$f":"+'Schedule IVC'!G24","v":0},{"$f":"+'Schedule IVC'!H24","v":0},{"$f":"+'Schedule IVC'!I24","v":0},{"$f":"+'Schedule IVC'!J24","v":0},{"$f":"+'Schedule IVC'!K24","v":0},{"$f":"+'Schedule IVC'!L24","v":0},{"$f":"+'Schedule IVC'!M24","v":0},{"$f":"+'Schedule IVC'!N24","v":0},{"$f":"+'Schedule IVC'!O24","v":0},{"$f":"+'Schedule IVC'!P24","v":0},{"$f":"+'Schedule IVC'!Q24","v":0},{"$f":"+'Schedule IVC'!R24","v":0},{"$f":"+'Schedule IVC'!S24","v":0},{"$f":"+'Schedule IVC'!T24","v":0},{"$f":"+'Schedule IVC'!U24","v":0},{"$f":"+'Schedule IVC'!V24","v":0}]
[null,"US Specialty Non-Proportional","Schedule IV(a), Line (17)",0,0,1,0,{"$f":"IF('Schedule IVC'!AB25=\"True\",G25,'Schedule IVA'!Q27)","v":0},{"$f":"+'Schedule IVC'!E25","v":0},{"$f":"+'Schedule IVC'!F25","v":0},{"$f":"+'Schedule IVC'!G25","v":0},{"$f":"+'Schedule IVC'!H25","v":0},{"$f":"+'Schedule IVC'!I25","v":0},{"$f":"+'Schedule IVC'!J25","v":0},{"$f":"+'Schedule IVC'!K25","v":0},{"$f":"+'Schedule IVC'!L25","v":0},{"$f":"+'Schedule IVC'!M25","v":0},{"$f":"+'Schedule IVC'!N25","v":0},{"$f":"+'Schedule IVC'!O25","v":0},{"$f":"+'Schedule IVC'!P25","v":0},{"$f":"+'Schedule IVC'!Q25","v":0},{"$f":"+'Schedule IVC'!R25","v":0},{"$f":"+'Schedule IVC'!S25","v":0},{"$f":"+'Schedule IVC'!T25","v":0},{"$f":"+'Schedule IVC'!U25","v":0},{"$f":"+'Schedule IVC'!V25","v":0}]
[null,"International Motor","Schedule IV(a), Line (18)",0,0,1,0,{"$f":"IF('Schedule IVC'!AB26=\"True\",G26,'Schedule IVA'!Q28)","v":0},{"$f":"+'Schedule IVC'!E26","v":0},{"$f":"+'Schedule IVC'!F26","v":0},{"$f":"+'Schedule IVC'!G26","v":0},{"$f":"+'Schedule IVC'!H26","v":0},{"$f":"+'Schedule IVC'!I26","v":0},{"$f":"+'Schedule IVC'!J26","v":0},{"$f":"+'Schedule IVC'!K26","v":0},{"$f":"+'Schedule IVC'!L26","v":0},{"$f":"+'Schedule IVC'!M26","v":0},{"$f":"+'Schedule IVC'!N26","v":0},{"$f":"+'Schedule IVC'!O26","v":0},{"$f":"+'Schedule IVC'!P26","v":0},{"$f":"+'Schedule IVC'!Q26","v":0},{"$f":"+'Schedule IVC'!R26","v":0},{"$f":"+'Schedule IVC'!S26","v":0},{"$f":"+'Schedule IVC'!T26","v":0},{"$f":"+'Schedule IVC'!U26","v":0},{"$f":"+'Schedule IVC'!V26","v":0}]
[null,"International Motor Non-Proportional","Schedule IV(a), Line (19)",0,0,1,0,{"$f":"IF('Schedule IVC'!AB27=\"True\",G27,'Schedule IVA'!Q29)","v":0},{"$f":"+'Schedule IVC'!E27","v":0},{"$f":"+'Schedule IVC'!F27","v":0},{"$f":"+'Schedule IVC'!G27","v":0},{"$f":"+'Schedule IVC'!H27","v":0},{"$f":"+'Schedule IVC'!I27","v":0},{"$f":"+'Schedule IVC'!J27","v":0},{"$f":"+'Schedule IVC'!K27","v":0},{"$f":"+'Schedule IVC'!L27","v":0},{"$f":"+'Schedule IVC'!M27","v":0},{"$f":"+'Schedule IVC'!N27","v":0},{"$f":"+'Schedule IVC'!O27","v":0},{"$f":"+'Schedule IVC'!P27","v":0},{"$f":"+'Schedule IVC'!Q27","v":0},{"$f":"+'Schedule IVC'!R27","v":0},{"$f":"+'Schedule IVC'!S27","v":0},{"$f":"+'Schedule IVC'!T27","v":0},{"$f":"+'Schedule IVC'!U27","v":0},{"$f":"+'Schedule IVC'!V27","v":0}]
[null,"International Casualty Non-Motor","Schedule IV(a), Line (20)",0,0,1,0,{"$f":"IF('Schedule IVC'!AB28=\"True\",G28,'Schedule IVA'!Q30)","v":0},{"$f":"+'Schedule IVC'!E28","v":0},{"$f":"+'Schedule IVC'!F28","v":0},{"$f":"+'Schedule IVC'!G28","v":0},{"$f":"+'Schedule IVC'!H28","v":0},{"$f":"+'Schedule IVC'!I28","v":0},{"$f":"+'Schedule IVC'!J28","v":0},{"$f":"+'Schedule IVC'!K28","v":0},{"$f":"+'Schedule IVC'!L28","v":0},{"$f":"+'Schedule IVC'!M28","v":0},{"$f":"+'Schedule IVC'!N28","v":0},{"$f":"+'Schedule IVC'!O28","v":0},{"$f":"+'Schedule IVC'!P28","v":0},{"$f":"+'Schedule IVC'!Q28","v":0},{"$f":"+'Schedule IVC'!R28","v":0},{"$f":"+'Schedule IVC'!S28","v":0},{"$f":"+'Schedule IVC'!T28","v":0},{"$f":"+'Schedule IVC'!U28","v":0},{"$f":"+'Schedule IVC'!V28","v":0}]
[null,"International Casualty Non-Motor Non-Proportional","Schedule IV(a), Line (21)",0,0,1,0,{"$f":"IF('Schedule IVC'!AB29=\"True\",G29,'Schedule IVA'!Q31)","v":0},{"$f":"+'Schedule IVC'!E29","v":0},{"$f":"+'Schedule IVC'!F29","v":0},{"$f":"+'Schedule IVC'!G29","v":0},{"$f":"+'Schedule IVC'!H29","v":0},{"$f":"+'Schedule IVC'!I29","v":0},{"$f":"+'Schedule IVC'!J29","v":0},{"$f":"+'Schedule IVC'!K29","v":0},{"$f":"+'Schedule IVC'!L29","v":0},{"$f":"+'Schedule IVC'!M29","v":0},{"$f":"+'Schedule IVC'!N29","v":0},{"$f":"+'Schedule IVC'!O29","v":0},{"$f":"+'Schedule IVC'!P29","v":0},{"$f":"+'Schedule IVC'!Q29","v":0},{"$f":"+'Schedule IVC'!R29","v":0},{"$f":"+'Schedule IVC'!S29","v":0},{"$f":"+'Schedule IVC'!T29","v":0},{"$f":"+'Schedule IVC'!U29","v":0},{"$f":"+'Schedule IVC'!V29","v":0}]
[null,"Retro Property","Schedule IV(a), Line (22)",0,0,1,0,{"$f":"IF('Schedule IVC'!AB30=\"True\",G30,'Schedule IVA'!Q32)","v":0},{"$f":"+'Schedule IVC'!E30","v":0},{"$f":"+'Schedule IVC'!F30","v":0},{"$f":"+'Schedule IVC'!G30","v":0},{"$f":"+'Schedule IVC'!H30","v":0},{"$f":"+'Schedule IVC'!I30","v":0},{"$f":"+'Schedule IVC'!J30","v":0},{"$f":"+'Schedule IVC'!K30","v":0},{"$f":"+'Schedule IVC'!L30","v":0},{"$f":"+'Schedule IVC'!M30","v":0},{"$f":"+'Schedule IVC'!N30","v":0},{"$f":"+'Schedule IVC'!O30","v":0},{"$f":"+'Schedule IVC'!P30","v":0},{"$f":"+'Schedule IVC'!Q30","v":0},{"$f":"+'Schedule IVC'!R30","v":0},{"$f":"+'Schedule IVC'!S30","v":0},{"$f":"+'Schedule IVC'!T30","v":0},{"$f":"+'Schedule IVC'!U30","v":0},{"$f":"+'Schedule IVC'!V30","v":0}]
[null,"Structured / Finite Reinsurance","Schedule IV(a), Line (23)",0,0,1,0,{"$f":"IF('Schedule IVC'!AB31=\"True\",G31,'Schedule IVA'!Q33)","v":0},{"$f":"+'Schedule IVC'!E31","v":0},{"$f":"+'Schedule IVC'!F31","v":0},{"$f":"+'Schedule IVC'!G31","v":0},{"$f":"+'Schedule IVC'!H31","v":0},{"$f":"+'Schedule IVC'!I31","v":0},{"$f":"+'Schedule IVC'!J31","v":0},{"$f":"+'Schedule IVC'!K31","v":0},{"$f":"+'Schedule IVC'!L31","v":0},{"$f":"+'Schedule IVC'!M31","v":0},{"$f":"+'Schedule IVC'!N31","v":0},{"$f":"+'Schedule IVC'!O31","v":0},{"$f":"+'Schedule IVC'!P31","v":0},{"$f":"+'Schedule IVC'!Q31","v":0},{"$f":"+'Schedule IVC'!R31","v":0},{"$f":"+'Schedule IVC'!S31","v":0},{"$f":"+'Schedule IVC'!T31","v":0},{"$f":"+'Schedule IVC'!U31","v":0},{"$f":"+'Schedule IVC'!V31","v":0}]
[null,"Health","Schedule IV(a), Line (24)",0,0,1,0,{"$f":"IF('Schedule IVC'!AB32=\"True\",G32,'Schedule IVA'!Q34)","v":0},{"$f":"+'Schedule IVC'!E32","v":0},{"$f":"+'Schedule IVC'!F32","v":0},{"$f":"+'Schedule IVC'!G32","v":0},{"$f":"+'Schedule IVC'!H32","v":0},{"$f":"+'Schedule IVC'!I32","v":0},{"$f":"+'Schedule IVC'!J32","v":0},{"$f":"+'Schedule IVC'!K32","v":0},{"$f":"+'Schedule IVC'!L32","v":0},{"$f":"+'Schedule IVC'!M32","v":0},{"$f":"+'Schedule IVC'!N32","v":0},{"$f":"+'Schedule IVC'!O32","v":0},{"$f":"+'Schedule IVC'!P32","v":0},{"$f":"+'Schedule IVC'!Q32","v":0},{"$f":"+'Schedule IVC'!R32","v":0},{"$f":"+'Schedule IVC'!S32","v":0},{"$f":"+'Schedule IVC'!T32","v":0},{"$f":"+'Schedule IVC'!U32","v":0},{"$f":"+'Schedule IVC'!V32","v":0}]
[]
[null,"(a) TOTAL",null,{"$f":"SUM(D9:D32)","v":0},{"$f":"SUM(E9:E32)","v":0},null,{"$f":"SUM(G9:G32)","v":0},0,0,0,0,0,0,0,0,0,0,0,0,0,0,0,0,0,0,0]
[]
[null,null,null,"TOTAL",null,null,null,"CHARGE"]
[null,"NET LOSS PROVISION BY ",null,"NET","SUM","DIVERSIFICATION","RESERVE","DIVERSIFIED"]
[null,"LINE OF BUSINESS","STATEMENT SOURCE","RESERVE","SQUARED","FACTOR","USED","RESERVE",{"$f":"HYPERLINK(\"#'Zones'!c4\",\"Zone 1\")","v":"Zone 1"},{"$f":"HYPERLINK(\"#'Zones'!c13\",\"Zone 2\")","v":"Zone 2"},{"$f":"HYPERLINK(\"#'Zones'!c18\",\"Zone 3\")","v":"Zone 3"},{"$f":"HYPERLINK(\"#'Zones'!c26\",\"Zone 4\")","v":"Zone 4"},{"$f":"HYPERLINK(\"#'Zones'!c36\",\"Zone 5\")","v":"Zone 5"},{"$f":"HYPERLINK(\"#'Zones'!c46\",\"Zone 6\")","v":"Zone 6"},{"$f":"HYPERLINK(\"#'Zones'!c57\",\"Zone 7\")","v":"Zone 7"},{"$f":"HYPERLINK(\"#'Zones'!c68\",\"Zone 8\")","v":"Zone 8"},{"$f":"HYPERLINK(\"#'Zones'!c76\",\"Zone 9\")","v":"Zone 9"},{"$f":"HYPERLINK(\"#'Zones'!c84\",\"Zone 10\")","v":"Zone 10"},{"$f":"HYPERLINK(\"#'Zones'!c90\",\"Zone 11\")","v":"Zone 11"},{"$f":"HYPERLINK(\"#'Zones'!c94\",\"Zone 12\")","v":"Zone 12"},{"$f":"HYPERLINK(\"#'Zones'!c107\",\"Zone 13\")","v":"Zone 13"},{"$f":"HYPERLINK(\"#'Zones'!c112\",\"Zone 14\")","v":"Zone 14"},{"$f":"HYPERLINK(\"#'Zones'!c116\",\"Zone 15\")","v":"Zone 15"},{"$f":"HYPERLINK(\"#'Zones'!c121\",\"Zone 16\")","v":"Zone 16"},{"$f":"HYPERLINK(\"#'Zones'!c127\",\"Zone 17\")","v":"Zone 17"},{"$f":"HYPERLINK(\"#'Zones'!c133\",\"Zone 18\")","v":"Zone 18"}]
[]
[null,"Property Catastrophe","Schedule III(a), Line (1)",{"$f":"SUM(I40:Z40)","v":0},{"$f":"SUMSQ(I40:Z40)","v":0},{"$f":"(IF(D40>0,E40/D40^2,1))","v":1},{"$f":"D40*(0.75+0.25*F40)","v":0},{"$f":"IF('Schedule IIIA'!AB10=\"TRUE\",G40,'Schedule III'!F10)","v":0},{"$f":"'Schedule IIIA'!E10","v":0},{"$f":"'Schedule IIIA'!F10","v":0},{"$f":"'Schedule IIIA'!G10","v":0},{"$f":"'Schedule IIIA'!H10","v":0},{"$f":"'Schedule IIIA'!I10","v":0},{"$f":"'Schedule IIIA'!J10","v":0},{"$f":"'Schedule IIIA'!K10","v":0},{"$f":"'Schedule IIIA'!L10","v":0},{"$f":"'Schedule IIIA'!M10","v":0},{"$f":"'Schedule IIIA'!N10","v":0},{"$f":"'Schedule IIIA'!O10","v":0},{"$f":"'Schedule IIIA'!P10","v":0},{"$f":"'Schedule IIIA'!Q10","v":0},{"$f":"'Schedule IIIA'!R10","v":0},{"$f":"'Schedule IIIA'!S10","v":0},{"$f":"'Schedule IIIA'!T10","v":0},{"$f":"'Schedule IIIA'!U10","v":0},{"$f":"'Schedule IIIA'!V10","v":0}]
[null,"Property","Schedule III(a), Line (2)",{"$f":"SUM(I41:Z41)","v":0},{"$f":"SUMSQ(I41:Z41)","v":0},{"$f":"(IF(D41>0,E41/D41^2,1))","v":1},{"$f":"D41*(0.75+0.25*F41)","v":0},{"$f":"IF('Schedule IIIA'!AB11=\"TRUE\",G41,'Schedule III'!F11)","v":0},{"$f":"'Schedule IIIA'!E11","v":0},{"$f":"'Schedule IIIA'!F11","v":0},{"$f":"'Schedule IIIA'!G11","v":0},{"$f":"'Schedule IIIA'!H11","v":0},{"$f":"'Schedule IIIA'!I11","v":0},{"$f":"'Schedule IIIA'!J11","v":0},{"$f":"'Schedule IIIA'!K11","v":0},{"$f":"'Schedule IIIA'!L11","v":0},{"$f":"'Schedule IIIA'!M11","v":0},{"$f":"'Schedule IIIA'!N11","v":0},{"$f":"'Schedule IIIA'!O11","v":0},{"$f":"'Schedule IIIA'!P11","v":0},{"$f":"'Schedule IIIA'!Q11","v":0},{"$f":"'Schedule IIIA'!R11","v":0},{"$f":"'Schedule IIIA'!S11","v":0},{"$f":"'Schedule IIIA'!T11","v":0},{"$f":"'Schedule IIIA'!U11","v":0},{"$f":"'Schedule IIIA'!V11","v":0}]
[null,"Property Non-Proportional","Schedule III(a), Line (3)",0,0,1,0,{"$f":"IF('Schedule IIIA'!AB12=\"TRUE\",G42,'Schedule III'!F12)","v":0},{"$f":"'Schedule IIIA'!E12","v":0},{"$f":"'Schedule IIIA'!F12","v":0},{"$f":"'Schedule IIIA'!G12","v":0},{"$f":"'Schedule IIIA'!H12","v":0},{"$f":"'Schedule IIIA'!I12","v":0},{"$f":"'Schedule IIIA'!J12","v":0},{"$f":"'Schedule IIIA'!K12","v":0},{"$f":"'Schedule IIIA'!L12","v":0},{"$f":"'Schedule IIIA'!M12","v":0},{"$f":"'Schedule IIIA'!N12","v":0},{"$f":"'Schedule IIIA'!O12","v":0},{"$f":"'Schedule IIIA'!P12","v":0},{"$f":"'Schedule IIIA'!Q12","v":0},{"$f":"'Schedule IIIA'!R12","v":0},{"$f":"'Schedule IIIA'!S12","v":0},{"$f":"'Schedule IIIA'!T12","v":0},{"$f":"'Schedule IIIA'!U12","v":0},{"$f":"'Schedule IIIA'!V12","v":0}]
[null,"Personal Accident","Schedule III(a), Line (4)",0,0,1,0,{"$f":"IF('Schedule IIIA'!AB13=\"TRUE\",G43,'Schedule III'!F13)","v":0},{"$f":"'Schedule IIIA'!E13","v":0},{"$f":"'Schedule IIIA'!F13","v":0},{"$f":"'Schedule IIIA'!G13","v":0},{"$f":"'Schedule IIIA'!H13","v":0},{"$f":"'Schedule IIIA'!I13","v":0},{"$f":"'Schedule IIIA'!J13","v":0},{"$f":"'Schedule IIIA'!K13","v":0},{"$f":"'Schedule IIIA'!L13","v":0},{"$f":"'Schedule IIIA'!M13","v":0},{"$f":"'Schedule IIIA'!N13","v":0},{"$f":"'Schedule IIIA'!O13","v":0},{"$f":"'Schedule IIIA'!P13","v":0},{"$f":"'Schedule IIIA'!Q13","v":0},{"$f":"'Schedule IIIA'!R13","v":0},{"$f":"'Schedule IIIA'!S13","v":0},{"$f":"'Schedule IIIA'!T13","v":0},{"$f":"'Schedule IIIA'!U13","v":0},{"$f":"'Schedule IIIA'!V13","v":0}]
[null,"Personal Accident Non-Proportional","Schedule III(a), Line (5)",0,0,1,0,{"$f":"IF('Schedule IIIA'!AB14=\"TRUE\",G44,'Schedule III'!F14)","v":0},{"$f":"'Schedule IIIA'!E14","v":0},{"$f":"'Schedule IIIA'!F14","v":0},{"$f":"'Schedule IIIA'!G14","v":0},{"$f":"'Schedule IIIA'!H14","v":0},{"$f":"'Schedule IIIA'!I14","v":0},{"$f":"'Schedule IIIA'!J14","v":0},{"$f":"'Schedule IIIA'!K14","v":0},{"$f":"'Schedule IIIA'!L14","v":0},{"$f":"'Schedule IIIA'!M14","v":0},{"$f":"'Schedule IIIA'!N14","v":0},{"$f":"'Schedule IIIA'!O14","v":0},{"$f":"'Schedule IIIA'!P14","v":0},{"$f":"'Schedule IIIA'!Q14","v":0},{"$f":"'Schedule IIIA'!R14","v":0},{"$f":"'Schedule IIIA'!S14","v":0},{"$f":"'Schedule IIIA'!T14","v":0},{"$f":"'Schedule IIIA'!U14","v":0},{"$f":"'Schedule IIIA'!V14","v":0}]
[null,"Aviation","Schedule III(a), Line (6)",0,0,1,0,{"$f":"IF('Schedule IIIA'!AB15=\"TRUE\",G45,'Schedule III'!F15)","v":0},{"$f":"'Schedule IIIA'!E15","v":0},{"$f":"'Schedule IIIA'!F15","v":0},{"$f":"'Schedule IIIA'!G15","v":0},{"$f":"'Schedule IIIA'!H15","v":0},{"$f":"'Schedule IIIA'!I15","v":0},{"$f":"'Schedule IIIA'!J15","v":0},{"$f":"'Schedule IIIA'!K15","v":0},{"$f":"'Schedule IIIA'!L15","v":0},{"$f":"'Schedule IIIA'!M15","v":0},{"$f":"'Schedule IIIA'!N15","v":0},{"$f":"'Schedule IIIA'!O15","v":0},{"$f":"'Schedule IIIA'!P15","v":0},{"$f":"'Schedule IIIA'!Q15","v":0},{"$f":"'Schedule IIIA'!R15","v":0},{"$f":"'Schedule IIIA'!S15","v":0},{"$f":"'Schedule IIIA'!T15","v":0},{"$f":"'Schedule IIIA'!U15","v":0},{"$f":"'Schedule IIIA'!V15","v":0}]
[null,"Aviation Non-Proportional","Schedule III(a), Line (7)",0,0,1,0,{"$f":"IF('Schedule IIIA'!AB16=\"TRUE\",G46,'Schedule III'!F16)","v":0},{"$f":"'Schedule IIIA'!E16","v":0},{"$f":"'Schedule IIIA'!F16","v":0},{"$f":"'Schedule IIIA'!G16","v":0},{"$f":"'Schedule IIIA'!H16","v":0},{"$f":"'Schedule IIIA'!I16","v":0},{"$f":"'Schedule IIIA'!J16","v":0},{"$f":"'Schedule IIIA'!K16","v":0},{"$f":"'Schedule IIIA'!L16","v":0},{"$f":"'Schedule IIIA'!M16","v":0},{"$f":"'Schedule IIIA'!N16","v":0},{"$f":"'Schedule IIIA'!O16","v":0},{"$f":"'Schedule IIIA'!P16","v":0},{"$f":"'Schedule IIIA'!Q16","v":0},{"$f":"'Schedule IIIA'!R16","v":0},{"$f":"'Schedule IIIA'!S16","v":0},{"$f":"'Schedule IIIA'!T16","v":0},{"$f":"'Schedule IIIA'!U16","v":0},{"$f":"'Schedule IIIA'!V16","v":0}]
[null,"Credit / Surety","Schedule III(a), Line (8)",0,0,1,0,{"$f":"IF('Schedule IIIA'!AB17=\"TRUE\",G47,'Schedule III'!F17)","v":0},{"$f":"'Schedule IIIA'!E17","v":0},{"$f":"'Schedule IIIA'!F17","v":0},{"$f":"'Schedule IIIA'!G17","v":0},{"$f":"'Schedule IIIA'!H17","v":0},{"$f":"'Schedule IIIA'!I17","v":0},{"$f":"'Schedule IIIA'!J17","v":0},{"$f":"'Schedule IIIA'!K17","v":0},{"$f":"'Schedule IIIA'!L17","v":0},{"$f":"'Schedule IIIA'!M17","v":0},{"$f":"'Schedule IIIA'!N17","v":0},{"$f":"'Schedule IIIA'!O17","v":0},{"$f":"'Schedule IIIA'!P17","v":0},{"$f":"'Schedule IIIA'!Q17","v":0},{"$f":"'Schedule IIIA'!R17","v":0},{"$f":"'Schedule IIIA'!S17","v":0},{"$f":"'Schedule IIIA'!T17","v":0},{"$f":"'Schedule IIIA'!U17","v":0},{"$f":"'Schedule IIIA'!V17","v":0}]
[null,"Credit / Surety Non-Proportional","Schedule III(a), Line (9)",0,0,1,0,{"$f":"IF('Schedule IIIA'!AB18=\"TRUE\",G48,'Schedule III'!F18)","v":0},{"$f":"'Schedule IIIA'!E18","v":0},{"$f":"'Schedule IIIA'!F18","v":0},{"$f":"'Schedule IIIA'!G18","v":0},{"$f":"'Schedule IIIA'!H18","v":0},{"$f":"'Schedule IIIA'!I18","v":0},{"$f":"'Schedule IIIA'!J18","v":0},{"$f":"'Schedule IIIA'!K18","v":0},{"$f":"'Schedule IIIA'!L18","v":0},{"$f":"'Schedule IIIA'!M18","v":0},{"$f":"'Schedule IIIA'!N18","v":0},{"$f":"'Schedule IIIA'!O18","v":0},{"$f":"'Schedule IIIA'!P18","v":0},{"$f":"'Schedule IIIA'!Q18","v":0},{"$f":"'Schedule IIIA'!R18","v":0},{"$f":"'Schedule IIIA'!S18","v":0},{"$f":"'Schedule IIIA'!T18","v":0},{"$f":"'Schedule IIIA'!U18","v":0},{"$f":"'Schedule IIIA'!V18","v":0}]
[null,"Energy Offshore / Marine","Schedule III(a), Line (10)",0,0,1,0,{"$f":"IF('Schedule IIIA'!AB19=\"TRUE\",G49,'Schedule III'!F19)","v":0},{"$f":"'Schedule IIIA'!E19","v":0},{"$f":"'Schedule IIIA'!F19","v":0},{"$f":"'Schedule IIIA'!G19","v":0},{"$f":"'Schedule IIIA'!H19","v":0},{"$f":"'Schedule IIIA'!I19","v":0},{"$f":"'Schedule IIIA'!J19","v":0},{"$f":"'Schedule IIIA'!K19","v":0},{"$f":"'Schedule IIIA'!L19","v":0},{"$f":"'Schedule IIIA'!M19","v":0},{"$f":"'Schedule IIIA'!N19","v":0},{"$f":"'Schedule IIIA'!O19","v":0},{"$f":"'Schedule IIIA'!P19","v":0},{"$f":"'Schedule IIIA'!Q19","v":0},{"$f":"'Schedule IIIA'!R19","v":0},{"$f":"'Schedule IIIA'!S19","v":0},{"$f":"'Schedule IIIA'!T19","v":0},{"$f":"'Schedule IIIA'!U19","v":0},{"$f":"'Schedule IIIA'!V19","v":0}]
[null,"Energy Offshore / Marine Non-Proportional","Schedule III(a), Line (11)",0,0,1,0,{"$f":"IF('Schedule IIIA'!AB20=\"TRUE\",G50,'Schedule III'!F20)","v":0},{"$f":"'Schedule IIIA'!E20","v":0},{"$f":"'Schedule IIIA'!F20","v":0},{"$f":"'Schedule IIIA'!G20","v":0},{"$f":"'Schedule IIIA'!H20","v":0},{"$f":"'Schedule IIIA'!I20","v":0},{"$f":"'Schedule IIIA'!J20","v":0},{"$f":"'Schedule IIIA'!K20","v":0},{"$f":"'Schedule IIIA'!L20","v":0},{"$f":"'Schedule IIIA'!M20","v":0},{"$f":"'Schedule IIIA'!N20","v":0},{"$f":"'Schedule IIIA'!O20","v":0},{"$f":"'Schedule IIIA'!P20","v":0},{"$f":"'Schedule IIIA'!Q20","v":0},{"$f":"'Schedule IIIA'!R20","v":0},{"$f":"'Schedule IIIA'!S20","v":0},{"$f":"'Schedule IIIA'!T20","v":0},{"$f":"'Schedule IIIA'!U20","v":0},{"$f":"'Schedule IIIA'!V20","v":0}]
[null,"US Casualty","Schedule III(a), Line (12)",0,0,1,0,{"$f":"IF('Schedule IIIA'!AB21=\"TRUE\",G51,'Schedule III'!F21)","v":0},{"$f":"'Schedule IIIA'!E21","v":0},{"$f":"'Schedule IIIA'!F21","v":0},{"$f":"'Schedule IIIA'!G21","v":0},{"$f":"'Schedule IIIA'!H21","v":0},{"$f":"'Schedule IIIA'!I21","v":0},{"$f":"'Schedule IIIA'!J21","v":0},{"$f":"'Schedule IIIA'!K21","v":0},{"$f":"'Schedule IIIA'!L21","v":0},{"$f":"'Schedule IIIA'!M21","v":0},{"$f":"'Schedule IIIA'!N21","v":0},{"$f":"'Schedule IIIA'!O21","v":0},{"$f":"'Schedule IIIA'!P21","v":0},{"$f":"'Schedule IIIA'!Q21","v":0},{"$f":"'Schedule IIIA'!R21","v":0},{"$f":"'Schedule IIIA'!S21","v":0},{"$f":"'Schedule IIIA'!T21","v":0},{"$f":"'Schedule IIIA'!U21","v":0},{"$f":"'Schedule IIIA'!V21","v":0}]
[null,"US Casualty Non-Proportional","Schedule III(a), Line (13)",0,0,1,0,{"$f":"IF('Schedule IIIA'!AB22=\"TRUE\",G52,'Schedule III'!F22)","v":0},{"$f":"'Schedule IIIA'!E22","v":0},{"$f":"'Schedule IIIA'!F22","v":0},{"$f":"'Schedule IIIA'!G22","v":0},{"$f":"'Schedule IIIA'!H22","v":0},{"$f":"'Schedule IIIA'!I22","v":0},{"$f":"'Schedule IIIA'!J22","v":0},{"$f":"'Schedule IIIA'!K22","v":0},{"$f":"'Schedule IIIA'!L22","v":0},{"$f":"'Schedule IIIA'!M22","v":0},{"$f":"'Schedule IIIA'!N22","v":0},{"$f":"'Schedule IIIA'!O22","v":0},{"$f":"'Schedule IIIA'!P22","v":0},{"$f":"'Schedule IIIA'!Q22","v":0},{"$f":"'Schedule IIIA'!R22","v":0},{"$f":"'Schedule IIIA'!S22","v":0},{"$f":"'Schedule IIIA'!T22","v":0},{"$f":"'Schedule IIIA'!U22","v":0},{"$f":"'Schedule IIIA'!V22","v":0}]
[null,"US Professional","Schedule III(a), Line (14)",0,0,1,0,{"$f":"IF('Schedule IIIA'!AB23=\"TRUE\",G53,'Schedule III'!F23)","v":0},{"$f":"'Schedule IIIA'!E23","v":0},{"$f":"'Schedule IIIA'!F23","v":0},{"$f":"'Schedule IIIA'!G23","v":0},{"$f":"'Schedule IIIA'!H23","v":0},{"$f":"'Schedule IIIA'!I23","v":0},{"$f":"'Schedule IIIA'!J23","v":0},{"$f":"'Schedule IIIA'!K23","v":0},{"$f":"'Schedule IIIA'!L23","v":0},{"$f":"'Schedule IIIA'!M23","v":0},{"$f":"'Schedule IIIA'!N23","v":0},{"$f":"'Schedule IIIA'!O23","v":0},{"$f":"'Schedule IIIA'!P23","v":0},{"$f":"'Schedule IIIA'!Q23","v":0},{"$f":"'Schedule IIIA'!R23","v":0},{"$f":"'Schedule IIIA'!S23","v":0},{"$f":"'Schedule IIIA'!T23","v":0},{"$f":"'Schedule IIIA'!U23","v":0},{"$f":"'Schedule IIIA'!V23","v":0}]
[null,"US Professional Non-Proportional","Schedule III(a), Line (15)",0,0,1,0,{"$f":"IF('Schedule IIIA'!AB24=\"TRUE\",G54,'Schedule III'!F24)","v":0},{"$f":"'Schedule IIIA'!E24","v":0},{"$f":"'Schedule IIIA'!F24","v":0},{"$f":"'Schedule IIIA'!G24","v":0},{"$f":"'Schedule IIIA'!H24","v":0},{"$f":"'Schedule IIIA'!I24","v":0},{"$f":"'Schedule IIIA'!J24","v":0},{"$f":"'Schedule IIIA'!K24","v":0},{"$f":"'Schedule IIIA'!L24","v":0},{"$f":"'Schedule IIIA'!M24","v":0},{"$f":"'Schedule IIIA'!N24","v":0},{"$f":"'Schedule IIIA'!O24","v":0},{"$f":"'Schedule IIIA'!P24","v":0},{"$f":"'Schedule IIIA'!Q24","v":0},{"$f":"'Schedule IIIA'!R24","v":0},{"$f":"'Schedule IIIA'!S24","v":0},{"$f":"'Schedule IIIA'!T24","v":0},{"$f":"'Schedule IIIA'!U24","v":0},{"$f":"'Schedule IIIA'!V24","v":0}]
[null,"US Specialty","Schedule III(a), Line (16)",0,0,1,0,{"$f":"IF('Schedule IIIA'!AB25=\"TRUE\",G55,'Schedule III'!F25)","v":0},{"$f":"'Schedule IIIA'!E25","v":0},{"$f":"'Schedule IIIA'!F25","v":0},{"$f":"'Schedule IIIA'!G25","v":0},{"$f":"'Schedule IIIA'!H25","v":0},{"$f":"'Schedule IIIA'!I25","v":0},{"$f":"'Schedule IIIA'!J25","v":0},{"$f":"'Schedule IIIA'!K25","v":0},{"$f":"'Schedule IIIA'!L25","v":0},{"$f":"'Schedule IIIA'!M25","v":0},{"$f":"'Schedule IIIA'!N25","v":0},{"$f":"'Schedule IIIA'!O25","v":0},{"$f":"'Schedule IIIA'!P25","v":0},{"$f":"'Schedule IIIA'!Q25","v":0},{"$f":"'Schedule IIIA'!R25","v":0},{"$f":"'Schedule IIIA'!S25","v":0},{"$f":"'Schedule IIIA'!T25","v":0},{"$f":"'Schedule IIIA'!U25","v":0},{"$f":"'Schedule IIIA'!V25","v":0}]
[null,"US Specialty Non-Proportional","Schedule III(a), Line (17)",0,0,1,0,{"$f":"IF('Schedule IIIA'!AB26=\"TRUE\",G56,'Schedule III'!F26)","v":0},{"$f":"'Schedule IIIA'!E26","v":0},{"$f":"'Schedule IIIA'!F26","v":0},{"$f":"'Schedule IIIA'!G26","v":0},{"$f":"'Schedule IIIA'!H26","v":0},{"$f":"'Schedule IIIA'!I26","v":0},{"$f":"'Schedule IIIA'!J26","v":0},{"$f":"'Schedule IIIA'!K26","v":0},{"$f":"'Schedule IIIA'!L26","v":0},{"$f":"'Schedule IIIA'!M26","v":0},{"$f":"'Schedule IIIA'!N26","v":0},{"$f":"'Schedule IIIA'!O26","v":0},{"$f":"'Schedule IIIA'!P26","v":0},{"$f":"'Schedule IIIA'!Q26","v":0},{"$f":"'Schedule IIIA'!R26","v":0},{"$f":"'Schedule IIIA'!S26","v":0},{"$f":"'Schedule IIIA'!T26","v":0},{"$f":"'Schedule IIIA'!U26","v":0},{"$f":"'Schedule IIIA'!V26","v":0}]
[null,"International Motor","Schedule III(a), Line (18)",0,0,1,0,{"$f":"IF('Schedule IIIA'!AB27=\"TRUE\",G57,'Schedule III'!F27)","v":0},{"$f":"'Schedule IIIA'!E27","v":0},{"$f":"'Schedule IIIA'!F27","v":0},{"$f":"'Schedule IIIA'!G27","v":0},{"$f":"'Schedule IIIA'!H27","v":0},{"$f":"'Schedule IIIA'!I27","v":0},{"$f":"'Schedule IIIA'!J27","v":0},{"$f":"'Schedule IIIA'!K27","v":0},{"$f":"'Schedule IIIA'!L27","v":0},{"$f":"'Schedule IIIA'!M27","v":0},{"$f":"'Schedule IIIA'!N27","v":0},{"$f":"'Schedule IIIA'!O27","v":0},{"$f":"'Schedule IIIA'!P27","v":0},{"$f":"'Schedule IIIA'!Q27","v":0},{"$f":"'Schedule IIIA'!R27","v":0},{"$f":"'Schedule IIIA'!S27","v":0},{"$f":"'Schedule IIIA'!T27","v":0},{"$f":"'Schedule IIIA'!U27","v":0},{"$f":"'Schedule IIIA'!V27","v":0}]
[null,"International Motor Non-Proportional","Schedule III(a), Line (19)",0,0,1,0,{"$f":"IF('Schedule IIIA'!AB28=\"TRUE\",G58,'Schedule III'!F28)","v":0},{"$f":"'Schedule IIIA'!E28","v":0},{"$f":"'Schedule IIIA'!F28","v":0},{"$f":"'Schedule IIIA'!G28","v":0},{"$f":"'Schedule IIIA'!H28","v":0},{"$f":"'Schedule IIIA'!I28","v":0},{"$f":"'Schedule IIIA'!J28","v":0},{"$f":"'Schedule IIIA'!K28","v":0},{"$f":"'Schedule IIIA'!L28","v":0},{"$f":"'Schedule IIIA'!M28","v":0},{"$f":"'Schedule IIIA'!N28","v":0},{"$f":"'Schedule IIIA'!O28","v":0},{"$f":"'Schedule IIIA'!P28","v":0},{"$f":"'Schedule IIIA'!Q28","v":0},{"$f":"'Schedule IIIA'!R28","v":0},{"$f":"'Schedule IIIA'!S28","v":0},{"$f":"'Schedule IIIA'!T28","v":0},{"$f":"'Schedule IIIA'!U28","v":0},{"$f":"'Schedule IIIA'!V28","v":0}]
[null,"International Casualty Non-Motor","Schedule III(a), Line (20)",0,0,1,0,{"$f":"IF('Schedule IIIA'!AB29=\"TRUE\",G59,'Schedule III'!F29)","v":0},{"$f":"'Schedule IIIA'!E29","v":0},{"$f":"'Schedule IIIA'!F29","v":0},{"$f":"'Schedule IIIA'!G29","v":0},{"$f":"'Schedule IIIA'!H29","v":0},{"$f":"'Schedule IIIA'!I29","v":0},{"$f":"'Schedule IIIA'!J29","v":0},{"$f":"'Schedule IIIA'!K29","v":0},{"$f":"'Schedule IIIA'!L29","v":0},{"$f":"'Schedule IIIA'!M29","v":0},{"$f":"'Schedule IIIA'!N29","v":0},{"$f":"'Schedule IIIA'!O29","v":0},{"$f":"'Schedule IIIA'!P29","v":0},{"$f":"'Schedule IIIA'!Q29","v":0},{"$f":"'Schedule IIIA'!R29","v":0},{"$f":"'Schedule IIIA'!S29","v":0},{"$f":"'Schedule IIIA'!T29","v":0},{"$f":"'Schedule IIIA'!U29","v":0},{"$f":"'Schedule IIIA'!V29","v":0}]
[null,"International Casualty Non-Motor Non-Proportional","Schedule III(a), Line (21)",0,0,1,0,{"$f":"IF('Schedule IIIA'!AB30=\"TRUE\",G60,'Schedule III'!F30)","v":0},{"$f":"'Schedule IIIA'!E30","v":0},{"$f":"'Schedule IIIA'!F30","v":0},{"$f":"'Schedule IIIA'!G30","v":0},{"$f":"'Schedule IIIA'!H30","v":0},{"$f":"'Schedule IIIA'!I30","v":0},{"$f":"'Schedule IIIA'!J30","v":0},{"$f":"'Schedule IIIA'!K30","v":0},{"$f":"'Schedule IIIA'!L30","v":0},{"$f":"'Schedule IIIA'!M30","v":0},{"$f":"'Schedule IIIA'!N30","v":0},{"$f":"'Schedule IIIA'!O30","v":0},{"$f":"'Schedule IIIA'!P30","v":0},{"$f":"'Schedule IIIA'!Q30","v":0},{"$f":"'Schedule IIIA'!R30","v":0},{"$f":"'Schedule IIIA'!S30","v":0},{"$f":"'Schedule IIIA'!T30","v":0},{"$f":"'Schedule IIIA'!U30","v":0},{"$f":"'Schedule IIIA'!V30","v":0}]
[null,"Retro Property","Schedule III(a), Line (22)",0,0,1,0,{"$f":"IF('Schedule IIIA'!AB31=\"TRUE\",G61,'Schedule III'!F31)","v":0},{"$f":"'Schedule IIIA'!E31","v":0},{"$f":"'Schedule IIIA'!F31","v":0},{"$f":"'Schedule IIIA'!G31","v":0},{"$f":"'Schedule IIIA'!H31","v":0},{"$f":"'Schedule IIIA'!I31","v":0},{"$f":"'Schedule IIIA'!J31","v":0},{"$f":"'Schedule IIIA'!K31","v":0},{"$f":"'Schedule IIIA'!L31","v":0},{"$f":"'Schedule IIIA'!M31","v":0},{"$f":"'Schedule IIIA'!N31","v":0},{"$f":"'Schedule IIIA'!O31","v":0},{"$f":"'Schedule IIIA'!P31","v":0},{"$f":"'Schedule IIIA'!Q31","v":0},{"$f":"'Schedule IIIA'!R31","v":0},{"$f":"'Schedule IIIA'!S31","v":0},{"$f":"'Schedule IIIA'!T31","v":0},{"$f":"'Schedule IIIA'!U31","v":0},{"$f":"'Schedule IIIA'!V31","v":0}]
[null,"Structured / Finite Reinsurance","Schedule III(a), Line (23)",0,0,1,0,{"$f":"IF('Schedule IIIA'!AB32=\"TRUE\",G62,'Schedule III'!F32)","v":0},{"$f":"'Schedule IIIA'!E32","v":0},{"$f":"'Schedule IIIA'!F32","v":0},{"$f":"'Schedule IIIA'!G32","v":0},{"$f":"'Schedule IIIA'!H32","v":0},{"$f":"'Schedule IIIA'!I32","v":0},{"$f":"'Schedule IIIA'!J32","v":0},{"$f":"'Schedule IIIA'!K32","v":0},{"$f":"'Schedule IIIA'!L32","v":0},{"$f":"'Schedule IIIA'!M32","v":0},{"$f":"'Schedule IIIA'!N32","v":0},{"$f":"'Schedule IIIA'!O32","v":0},{"$f":"'Schedule IIIA'!P32","v":0},{"$f":"'Schedule IIIA'!Q32","v":0},{"$f":"'Schedule IIIA'!R32","v":0},{"$f":"'Schedule IIIA'!S32","v":0},{"$f":"'Schedule IIIA'!T32","v":0},{"$f":"'Schedule IIIA'!U32","v":0},{"$f":"'Schedule IIIA'!V32","v":0}]
[null,"Health","Schedule III(a), Line (24)",0,0,1,0,{"$f":"IF('Schedule IIIA'!AB33=\"TRUE\",G63,'Schedule III'!F33)","v":0},{"$f":"'Schedule IIIA'!E33","v":0},{"$f":"'Schedule IIIA'!F33","v":0},{"$f":"'Schedule IIIA'!G33","v":0},{"$f":"'Schedule IIIA'!H33","v":0},{"$f":"'Schedule IIIA'!I33","v":0},{"$f":"'Schedule IIIA'!J33","v":0},{"$f":"'Schedule IIIA'!K33","v":0},{"$f":"'Schedule IIIA'!L33","v":0},{"$f":"'Schedule IIIA'!M33","v":0},{"$f":"'Schedule IIIA'!N33","v":0},{"$f":"'Schedule IIIA'!O33","v":0},{"$f":"'Schedule IIIA'!P33","v":0},{"$f":"'Schedule IIIA'!Q33","v":0},{"$f":"'Schedule IIIA'!R33","v":0},{"$f":"'Schedule IIIA'!S33","v":0},{"$f":"'Schedule IIIA'!T33","v":0},{"$f":"'Schedule IIIA'!U33","v":0},{"$f":"'Schedule IIIA'!V33","v":0}]
[]
[null,"(a) TOTAL",null,{"$f":"SUM(D40:D63)","v":0},{"$f":"SUM(E40:E63)","v":0},null,{"$f":"SUM(G40:G63)","v":0},0,0,0,0,0,0,0,0,0,0,0,0,0,0,0,0,0,0,0]

{"sheet":"Geographic Diversification","index":125,"n_rows":65,"n_cols":26,"rows_kept":65,"cut":false,"hidden":false,"merged":[]}
["GEOGRAPHIC DIVERSIFICATION",null,null,null,null,null,null,null,null,null,null,null,null,null,null,null,null,null,null,null,null,null,null,null,null,{"$f":"HYPERLINK(\"#'Index'!A1\",\"Return to Index\")","v":"Return to Index"}]
[{"$f":"'Company Information'!C7","v":"Enter Company Name"}]
[{"$f":"\"Geographic Diversification\" & \"($\"&IF(CONFIGURATION!$B$12>1,MID(CONFIGURATION!$B$12,2,LEN(CONFIGURATION!$B$12)),\"\")&\")\"","v":"Geographic Diversification($000)"},null,{"$f":"'Company Information'!C3","v":"2022-12-31"}]
[]
[null,null,null,"TOTAL",null,null,null,"CHARGE"]
[null,"NET PREMIUMS EARNED BY ",null,"NET","SUM","DIVERSIFICATION","PREMIUM","DIVERSIFIED"]
[null,"LINE OF BUSINESS","STATEMENT SOURCE","PREMIUM","SQUARED","FACTOR","USED","PREMIUM",{"$f":"HYPERLINK(\"#'Zones'!c4\",\"Zone 1\")","v":"Zone 1"},{"$f":"HYPERLINK(\"#'Zones'!c13\",\"Zone 2\")","v":"Zone 2"},{"$f":"HYPERLINK(\"#'Zones'!c18\",\"Zone 3\")","v":"Zone 3"},{"$f":"HYPERLINK(\"#'Zones'!c26\",\"Zone 4\")","v":"Zone 4"},{"$f":"HYPERLINK(\"#'Zones'!c36\",\"Zone 5\")","v":"Zone 5"},{"$f":"HYPERLINK(\"#'Zones'!c46\",\"Zone 6\")","v":"Zone 6"},{"$f":"HYPERLINK(\"#'Zones'!c57\",\"Zone 7\")","v":"Zone 7"},{"$f":"HYPERLINK(\"#'Zones'!c68\",\"Zone 8\")","v":"Zone 8"},{"$f":"HYPERLINK(\"#'Zones'!c76\",\"Zone 9\")","v":"Zone 9"},{"$f":"HYPERLINK(\"#'Zones'!c84\",\"Zone 10\")","v":"Zone 10"},{"$f":"HYPERLINK(\"#'Zones'!c90\",\"Zone 11\")","v":"Zone 11"},{"$f":"HYPERLINK(\"#'Zones'!c94\",\"Zone 12\")","v":"Zone 12"},{"$f":"HYPERLINK(\"#'Zones'!c107\",\"Zone 13\")","v":"Zone 13"},{"$f":"HYPERLINK(\"#'Zones'!c112\",\"Zone 14\")","v":"Zone 14"},{"$f":"HYPERLINK(\"#'Zones'!c116\",\"Zone 15\")","v":"Zone 15"},{"$f":"HYPERLINK(\"#'Zones'!c121\",\"Zone 16\")","v":"Zone 16"},{"$f":"HYPERLINK(\"#'Zones'!c127\",\"Zone 17\")","v":"Zone 17"},{"$f":"HYPERLINK(\"#'Zones'!c133\",\"Zone 18\")","v":"Zone 18"}]
[]
[null,"Property Catastrophe","Schedule IV(a), Line (1)",{"$f":"SUM(I9:Z9)","v":0},{"$f":"SUMSQ(I9:Z9)","v":0},{"$f":"(IF(D9>0,E9/D9^2,1))","v":1},{"$f":"D9*(0.75+0.25*F9)","v":0},{"$f":"IF('Schedule IVE'!AB9=\"True\",G9,'Schedule IVD'!O9)","v":0},{"$f":"+'Schedule IVE'!E9","v":0},{"$f":"+'Schedule IVE'!F9","v":0},{"$f":"+'Schedule IVE'!G9","v":0},{"$f":"+'Schedule IVE'!H9","v":0},{"$f":"+'Schedule IVE'!I9","v":0},{"$f":"+'Schedule IVE'!J9","v":0},{"$f":"+'Schedule IVE'!K9","v":0},{"$f":"+'Schedule IVE'!L9","v":0},{"$f":"+'Schedule IVE'!M9","v":0},{"$f":"+'Schedule IVE'!N9","v":0},{"$f":"+'Schedule IVE'!O9","v":0},{"$f":"+'Schedule IVE'!P9","v":0},{"$f":"+'Schedule IVE'!Q9","v":0},{"$f":"+'Schedule IVE'!R9","v":0},{"$f":"+'Schedule IVE'!S9","v":0},{"$f":"+'Schedule IVE'!T9","v":0},{"$f":"+'Schedule IVE'!U9","v":0},{"$f":"+'Schedule IVE'!V9","v":0}]
[null,"Property","Schedule IV(a), Line (2)",{"$f":"SUM(I10:Z10)","v":0},{"$f":"SUMSQ(I10:Z10)","v":0},{"$f":"(IF(D10>0,E10/D10^2,1))","v":1},{"$f":"D10*(0.75+0.25*F10)","v":0},{"$f":"IF('Schedule IVE'!AB10=\"True\",G10,'Schedule IVD'!O10)","v":0},{"$f":"+'Schedule IVE'!E10","v":0},{"$f":"+'Schedule IVE'!F10","v":0},{"$f":"+'Schedule IVE'!G10","v":0},{"$f":"+'Schedule IVE'!H10","v":0},{"$f":"+'Schedule IVE'!I10","v":0},{"$f":"+'Schedule IVE'!J10","v":0},{"$f":"+'Schedule IVE'!K10","v":0},{"$f":"+'Schedule IVE'!L10","v":0},{"$f":"+'Schedule IVE'!M10","v":0},{"$f":"+'Schedule IVE'!N10","v":0},{"$f":"+'Schedule IVE'!O10","v":0},{"$f":"+'Schedule IVE'!P10","v":0},{"$f":"+'Schedule IVE'!Q10","v":0},{"$f":"+'Schedule IVE'!R10","v":0},{"$f":"+'Schedule IVE'!S10","v":0},{"$f":"+'Schedule IVE'!T10","v":0},{"$f":"+'Schedule IVE'!U10","v":0},{"$f":"+'Schedule IVE'!V10","v":0}]
[null,"Property Non-Proportional","Schedule IV(a), Line (3)",0,0,1,0,{"$f":"IF('Schedule IVE'!AB11=\"True\",G11,'Schedule IVD'!O11)","v":0},{"$f":"+'Schedule IVE'!E11","v":0},{"$f":"+'Schedule IVE'!F11","v":0},{"$f":"+'Schedule IVE'!G11","v":0},{"$f":"+'Schedule IVE'!H11","v":0},{"$f":"+'Schedule IVE'!I11","v":0},{"$f":"+'Schedule IVE'!J11","v":0},{"$f":"+'Schedule IVE'!K11","v":0},{"$f":"+'Schedule IVE'!L11","v":0},{"$f":"+'Schedule IVE'!M11","v":0},{"$f":"+'Schedule IVE'!N11","v":0},{"$f":"+'Schedule IVE'!O11","v":0},{"$f":"+'Schedule IVE'!P11","v":0},{"$f":"+'Schedule IVE'!Q11","v":0},{"$f":"+'Schedule IVE'!R11","v":0},{"$f":"+'Schedule IVE'!S11","v":0},{"$f":"+'Schedule IVE'!T11","v":0},{"$f":"+'Schedule IVE'!U11","v":0},{"$f":"+'Schedule IVE'!V11","v":0}]
[null,"Personal Accident","Schedule IV(a), Line (4)",0,0,1,0,{"$f":"IF('Schedule IVE'!AB12=\"True\",G12,'Schedule IVD'!O12)","v":0},{"$f":"+'Schedule IVE'!E12","v":0},{"$f":"+'Schedule IVE'!F12","v":0},{"$f":"+'Schedule IVE'!G12","v":0},{"$f":"+'Schedule IVE'!H12","v":0},{"$f":"+'Schedule IVE'!I12","v":0},{"$f":"+'Schedule IVE'!J12","v":0},{"$f":"+'Schedule IVE'!K12","v":0},{"$f":"+'Schedule IVE'!L12","v":0},{"$f":"+'Schedule IVE'!M12","v":0},{"$f":"+'Schedule IVE'!N12","v":0},{"$f":"+'Schedule IVE'!O12","v":0},{"$f":"+'Schedule IVE'!P12","v":0},{"$f":"+'Schedule IVE'!Q12","v":0},{"$f":"+'Schedule IVE'!R12","v":0},{"$f":"+'Schedule IVE'!S12","v":0},{"$f":"+'Schedule IVE'!T12","v":0},{"$f":"+'Schedule IVE'!U12","v":0},{"$f":"+'Schedule IVE'!V12","v":0}]
[null,"Personal Accident Non-Proportional","Schedule IV(a), Line (5)",0,0,1,0,{"$f":"IF('Schedule IVE'!AB13=\"True\",G13,'Schedule IVD'!O13)","v":0},{"$f":"+'Schedule IVE'!E13","v":0},{"$f":"+'Schedule IVE'!F13","v":0},{"$f":"+'Schedule IVE'!G13","v":0},{"$f":"+'Schedule IVE'!H13","v":0},{"$f":"+'Schedule IVE'!I13","v":0},{"$f":"+'Schedule IVE'!J13","v":0},{"$f":"+'Schedule IVE'!K13","v":0},{"$f":"+'Schedule IVE'!L13","v":0},{"$f":"+'Schedule IVE'!M13","v":0},{"$f":"+'Schedule IVE'!N13","v":0},{"$f":"+'Schedule IVE'!O13","v":0},{"$f":"+'Schedule IVE'!P13","v":0},{"$f":"+'Schedule IVE'!Q13","v":0},{"$f":"+'Schedule IVE'!R13","v":0},{"$f":"+'Schedule IVE'!S13","v":0},{"$f":"+'Schedule IVE'!T13","v":0},{"$f":"+'Schedule IVE'!U13","v":0},{"$f":"+'Schedule IVE'!V13","v":0}]
[null,"Aviation","Schedule IV(a), Line (6)",0,0,1,0,{"$f":"IF('Schedule IVE'!AB14=\"True\",G14,'Schedule IVD'!O14)","v":0},{"$f":"+'Schedule IVE'!E14","v":0},{"$f":"+'Schedule IVE'!F14","v":0},{"$f":"+'Schedule IVE'!G14","v":0},{"$f":"+'Schedule IVE'!H14","v":0},{"$f":"+'Schedule IVE'!I14","v":0},{"$f":"+'Schedule IVE'!J14","v":0},{"$f":"+'Schedule IVE'!K14","v":0},{"$f":"+'Schedule IVE'!L14","v":0},{"$f":"+'Schedule IVE'!M14","v":0},{"$f":"+'Schedule IVE'!N14","v":0},{"$f":"+'Schedule IVE'!O14","v":0},{"$f":"+'Schedule IVE'!P14","v":0},{"$f":"+'Schedule IVE'!Q14","v":0},{"$f":"+'Schedule IVE'!R14","v":0},{"$f":"+'Schedule IVE'!S14","v":0},{"$f":"+'Schedule IVE'!T14","v":0},{"$f":"+'Schedule IVE'!U14","v":0},{"$f":"+'Schedule IVE'!V14","v":0}]
[null,"Aviation Non-Proportional","Schedule IV(a), Line (7)",0,0,1,0,{"$f":"IF('Schedule IVE'!AB15=\"True\",G15,'Schedule IVD'!O15)","v":0},{"$f":"+'Schedule IVE'!E15","v":0},{"$f":"+'Schedule IVE'!F15","v":0},{"$f":"+'Schedule IVE'!G15","v":0},{"$f":"+'Schedule IVE'!H15","v":0},{"$f":"+'Schedule IVE'!I15","v":0},{"$f":"+'Schedule IVE'!J15","v":0},{"$f":"+'Schedule IVE'!K15","v":0},{"$f":"+'Schedule IVE'!L15","v":0},{"$f":"+'Schedule IVE'!M15","v":0},{"$f":"+'Schedule IVE'!N15","v":0},{"$f":"+'Schedule IVE'!O15","v":0},{"$f":"+'Schedule IVE'!P15","v":0},{"$f":"+'Schedule IVE'!Q15","v":0},{"$f":"+'Schedule IVE'!R15","v":0},{"$f":"+'Schedule IVE'!S15","v":0},{"$f":"+'Schedule IVE'!T15","v":0},{"$f":"+'Schedule IVE'!U15","v":0},{"$f":"+'Schedule IVE'!V15","v":0}]
[null,"Credit / Surety","Schedule IV(a), Line (8)",0,0,1,0,{"$f":"IF('Schedule IVE'!AB16=\"True\",G16,'Schedule IVD'!O16)","v":0},{"$f":"+'Schedule IVE'!E16","v":0},{"$f":"+'Schedule IVE'!F16","v":0},{"$f":"+'Schedule IVE'!G16","v":0},{"$f":"+'Schedule IVE'!H16","v":0},{"$f":"+'Schedule IVE'!I16","v":0},{"$f":"+'Schedule IVE'!J16","v":0},{"$f":"+'Schedule IVE'!K16","v":0},{"$f":"+'Schedule IVE'!L16","v":0},{"$f":"+'Schedule IVE'!M16","v":0},{"$f":"+'Schedule IVE'!N16","v":0},{"$f":"+'Schedule IVE'!O16","v":0},{"$f":"+'Schedule IVE'!P16","v":0},{"$f":"+'Schedule IVE'!Q16","v":0},{"$f":"+'Schedule IVE'!R16","v":0},{"$f":"+'Schedule IVE'!S16","v":0},{"$f":"+'Schedule IVE'!T16","v":0},{"$f":"+'Schedule IVE'!U16","v":0},{"$f":"+'Schedule IVE'!V16","v":0}]
[null,"Credit / Surety Non-Proportional","Schedule IV(a), Line (9)",0,0,1,0,{"$f":"IF('Schedule IVE'!AB17=\"True\",G17,'Schedule IVD'!O17)","v":0},{"$f":"+'Schedule IVE'!E17","v":0},{"$f":"+'Schedule IVE'!F17","v":0},{"$f":"+'Schedule IVE'!G17","v":0},{"$f":"+'Schedule IVE'!H17","v":0},{"$f":"+'Schedule IVE'!I17","v":0},{"$f":"+'Schedule IVE'!J17","v":0},{"$f":"+'Schedule IVE'!K17","v":0},{"$f":"+'Schedule IVE'!L17","v":0},{"$f":"+'Schedule IVE'!M17","v":0},{"$f":"+'Schedule IVE'!N17","v":0},{"$f":"+'Schedule IVE'!O17","v":0},{"$f":"+'Schedule IVE'!P17","v":0},{"$f":"+'Schedule IVE'!Q17","v":0},{"$f":"+'Schedule IVE'!R17","v":0},{"$f":"+'Schedule IVE'!S17","v":0},{"$f":"+'Schedule IVE'!T17","v":0},{"$f":"+'Schedule IVE'!U17","v":0},{"$f":"+'Schedule IVE'!V17","v":0}]
[null,"Energy Offshore / Marine","Schedule IV(a), Line (10)",0,0,1,0,{"$f":"IF('Schedule IVE'!AB18=\"True\",G18,'Schedule IVD'!O18)","v":0},{"$f":"+'Schedule IVE'!E18","v":0},{"$f":"+'Schedule IVE'!F18","v":0},{"$f":"+'Schedule IVE'!G18","v":0},{"$f":"+'Schedule IVE'!H18","v":0},{"$f":"+'Schedule IVE'!I18","v":0},{"$f":"+'Schedule IVE'!J18","v":0},{"$f":"+'Schedule IVE'!K18","v":0},{"$f":"+'Schedule IVE'!L18","v":0},{"$f":"+'Schedule IVE'!M18","v":0},{"$f":"+'Schedule IVE'!N18","v":0},{"$f":"+'Schedule IVE'!O18","v":0},{"$f":"+'Schedule IVE'!P18","v":0},{"$f":"+'Schedule IVE'!Q18","v":0},{"$f":"+'Schedule IVE'!R18","v":0},{"$f":"+'Schedule IVE'!S18","v":0},{"$f":"+'Schedule IVE'!T18","v":0},{"$f":"+'Schedule IVE'!U18","v":0},{"$f":"+'Schedule IVE'!V18","v":0}]
[null,"Energy Offshore / Marine Non-Proportional","Schedule IV(a), Line (11)",0,0,1,0,{"$f":"IF('Schedule IVE'!AB19=\"True\",G19,'Schedule IVD'!O19)","v":0},{"$f":"+'Schedule IVE'!E19","v":0},{"$f":"+'Schedule IVE'!F19","v":0},{"$f":"+'Schedule IVE'!G19","v":0},{"$f":"+'Schedule IVE'!H19","v":0},{"$f":"+'Schedule IVE'!I19","v":0},{"$f":"+'Schedule IVE'!J19","v":0},{"$f":"+'Schedule IVE'!K19","v":0},{"$f":"+'Schedule IVE'!L19","v":0},{"$f":"+'Schedule IVE'!M19","v":0},{"$f":"+'Schedule IVE'!N19","v":0},{"$f":"+'Schedule IVE'!O19","v":0},{"$f":"+'Schedule IVE'!P19","v":0},{"$f":"+'Schedule IVE'!Q19","v":0},{"$f":"+'Schedule IVE'!R19","v":0},{"$f":"+'Schedule IVE'!S19","v":0},{"$f":"+'Schedule IVE'!T19","v":0},{"$f":"+'Schedule IVE'!U19","v":0},{"$f":"+'Schedule IVE'!V19","v":0}]
[null,"US Casualty","Schedule IV(a), Line (12)",0,0,1,0,{"$f":"IF('Schedule IVE'!AB20=\"True\",G20,'Schedule IVD'!O20)","v":0},{"$f":"+'Schedule IVE'!E20","v":0},{"$f":"+'Schedule IVE'!F20","v":0},{"$f":"+'Schedule IVE'!G20","v":0},{"$f":"+'Schedule IVE'!H20","v":0},{"$f":"+'Schedule IVE'!I20","v":0},{"$f":"+'Schedule IVE'!J20","v":0},{"$f":"+'Schedule IVE'!K20","v":0},{"$f":"+'Schedule IVE'!L20","v":0},{"$f":"+'Schedule IVE'!M20","v":0},{"$f":"+'Schedule IVE'!N20","v":0},{"$f":"+'Schedule IVE'!O20","v":0},{"$f":"+'Schedule IVE'!P20","v":0},{"$f":"+'Schedule IVE'!Q20","v":0},{"$f":"+'Schedule IVE'!R20","v":0},{"$f":"+'Schedule IVE'!S20","v":0},{"$f":"+'Schedule IVE'!T20","v":0},{"$f":"+'Schedule IVE'!U20","v":0},{"$f":"+'Schedule IVE'!V20","v":0}]
[null,"US Casualty Non-Proportional","Schedule IV(a), Line (13)",0,0,1,0,{"$f":"IF('Schedule IVE'!AB21=\"True\",G21,'Schedule IVD'!O21)","v":0},{"$f":"+'Schedule IVE'!E21","v":0},{"$f":"+'Schedule IVE'!F21","v":0},{"$f":"+'Schedule IVE'!G21","v":0},{"$f":"+'Schedule IVE'!H21","v":0},{"$f":"+'Schedule IVE'!I21","v":0},{"$f":"+'Schedule IVE'!J21","v":0},{"$f":"+'Schedule IVE'!K21","v":0},{"$f":"+'Schedule IVE'!L21","v":0},{"$f":"+'Schedule IVE'!M21","v":0},{"$f":"+'Schedule IVE'!N21","v":0},{"$f":"+'Schedule IVE'!O21","v":0},{"$f":"+'Schedule IVE'!P21","v":0},{"$f":"+'Schedule IVE'!Q21","v":0},{"$f":"+'Schedule IVE'!R21","v":0},{"$f":"+'Schedule IVE'!S21","v":0},{"$f":"+'Schedule IVE'!T21","v":0},{"$f":"+'Schedule IVE'!U21","v":0},{"$f":"+'Schedule IVE'!V21","v":0}]
[null,"US Professional","Schedule IV(a), Line (14)",0,0,1,0,{"$f":"IF('Schedule IVE'!AB22=\"True\",G22,'Schedule IVD'!O22)","v":0},{"$f":"+'Schedule IVE'!E22","v":0},{"$f":"+'Schedule IVE'!F22","v":0},{"$f":"+'Schedule IVE'!G22","v":0},{"$f":"+'Schedule IVE'!H22","v":0},{"$f":"+'Schedule IVE'!I22","v":0},{"$f":"+'Schedule IVE'!J22","v":0},{"$f":"+'Schedule IVE'!K22","v":0},{"$f":"+'Schedule IVE'!L22","v":0},{"$f":"+'Schedule IVE'!M22","v":0},{"$f":"+'Schedule IVE'!N22","v":0},{"$f":"+'Schedule IVE'!O22","v":0},{"$f":"+'Schedule IVE'!P22","v":0},{"$f":"+'Schedule IVE'!Q22","v":0},{"$f":"+'Schedule IVE'!R22","v":0},{"$f":"+'Schedule IVE'!S22","v":0},{"$f":"+'Schedule IVE'!T22","v":0},{"$f":"+'Schedule IVE'!U22","v":0},{"$f":"+'Schedule IVE'!V22","v":0}]
[null,"US Professional Non-Proportional","Schedule IV(a), Line (15)",0,0,1,0,{"$f":"IF('Schedule IVE'!AB23=\"True\",G23,'Schedule IVD'!O23)","v":0},{"$f":"+'Schedule IVE'!E23","v":0},{"$f":"+'Schedule IVE'!F23","v":0},{"$f":"+'Schedule IVE'!G23","v":0},{"$f":"+'Schedule IVE'!H23","v":0},{"$f":"+'Schedule IVE'!I23","v":0},{"$f":"+'Schedule IVE'!J23","v":0},{"$f":"+'Schedule IVE'!K23","v":0},{"$f":"+'Schedule IVE'!L23","v":0},{"$f":"+'Schedule IVE'!M23","v":0},{"$f":"+'Schedule IVE'!N23","v":0},{"$f":"+'Schedule IVE'!O23","v":0},{"$f":"+'Schedule IVE'!P23","v":0},{"$f":"+'Schedule IVE'!Q23","v":0},{"$f":"+'Schedule IVE'!R23","v":0},{"$f":"+'Schedule IVE'!S23","v":0},{"$f":"+'Schedule IVE'!T23","v":0},{"$f":"+'Schedule IVE'!U23","v":0},{"$f":"+'Schedule IVE'!V23","v":0}]
[null,"US Specialty","Schedule IV(a), Line (16)",0,0,1,0,{"$f":"IF('Schedule IVE'!AB24=\"True\",G24,'Schedule IVD'!O24)","v":0},{"$f":"+'Schedule IVE'!E24","v":0},{"$f":"+'Schedule IVE'!F24","v":0},{"$f":"+'Schedule IVE'!G24","v":0},{"$f":"+'Schedule IVE'!H24","v":0},{"$f":"+'Schedule IVE'!I24","v":0},{"$f":"+'Schedule IVE'!J24","v":0},{"$f":"+'Schedule IVE'!K24","v":0},{"$f":"+'Schedule IVE'!L24","v":0},{"$f":"+'Schedule IVE'!M24","v":0},{"$f":"+'Schedule IVE'!N24","v":0},{"$f":"+'Schedule IVE'!O24","v":0},{"$f":"+'Schedule IVE'!P24","v":0},{"$f":"+'Schedule IVE'!Q24","v":0},{"$f":"+'Schedule IVE'!R24","v":0},{"$f":"+'Schedule IVE'!S24","v":0},{"$f":"+'Schedule IVE'!T24","v":0},{"$f":"+'Schedule IVE'!U24","v":0},{"$f":"+'Schedule IVE'!V24","v":0}]
[null,"US Specialty Non-Proportional","Schedule IV(a), Line (17)",0,0,1,0,{"$f":"IF('Schedule IVE'!AB25=\"True\",G25,'Schedule IVD'!O25)","v":0},{"$f":"+'Schedule IVE'!E25","v":0},{"$f":"+'Schedule IVE'!F25","v":0},{"$f":"+'Schedule IVE'!G25","v":0},{"$f":"+'Schedule IVE'!H25","v":0},{"$f":"+'Schedule IVE'!I25","v":0},{"$f":"+'Schedule IVE'!J25","v":0},{"$f":"+'Schedule IVE'!K25","v":0},{"$f":"+'Schedule IVE'!L25","v":0},{"$f":"+'Schedule IVE'!M25","v":0},{"$f":"+'Schedule IVE'!N25","v":0},{"$f":"+'Schedule IVE'!O25","v":0},{"$f":"+'Schedule IVE'!P25","v":0},{"$f":"+'Schedule IVE'!Q25","v":0},{"$f":"+'Schedule IVE'!R25","v":0},{"$f":"+'Schedule IVE'!S25","v":0},{"$f":"+'Schedule IVE'!T25","v":0},{"$f":"+'Schedule IVE'!U25","v":0},{"$f":"+'Schedule IVE'!V25","v":0}]
[null,"International Motor","Schedule IV(a), Line (18)",0,0,1,0,{"$f":"IF('Schedule IVE'!AB26=\"True\",G26,'Schedule IVD'!O26)","v":0},{"$f":"+'Schedule IVE'!E26","v":0},{"$f":"+'Schedule IVE'!F26","v":0},{"$f":"+'Schedule IVE'!G26","v":0},{"$f":"+'Schedule IVE'!H26","v":0},{"$f":"+'Schedule IVE'!I26","v":0},{"$f":"+'Schedule IVE'!J26","v":0},{"$f":"+'Schedule IVE'!K26","v":0},{"$f":"+'Schedule IVE'!L26","v":0},{"$f":"+'Schedule IVE'!M26","v":0},{"$f":"+'Schedule IVE'!N26","v":0},{"$f":"+'Schedule IVE'!O26","v":0},{"$f":"+'Schedule IVE'!P26","v":0},{"$f":"+'Schedule IVE'!Q26","v":0},{"$f":"+'Schedule IVE'!R26","v":0},{"$f":"+'Schedule IVE'!S26","v":0},{"$f":"+'Schedule IVE'!T26","v":0},{"$f":"+'Schedule IVE'!U26","v":0},{"$f":"+'Schedule IVE'!V26","v":0}]
[null,"International Motor Non-Proportional","Schedule IV(a), Line (19)",0,0,1,0,{"$f":"IF('Schedule IVE'!AB27=\"True\",G27,'Schedule IVD'!O27)","v":0},{"$f":"+'Schedule IVE'!E27","v":0},{"$f":"+'Schedule IVE'!F27","v":0},{"$f":"+'Schedule IVE'!G27","v":0},{"$f":"+'Schedule IVE'!H27","v":0},{"$f":"+'Schedule IVE'!I27","v":0},{"$f":"+'Schedule IVE'!J27","v":0},{"$f":"+'Schedule IVE'!K27","v":0},{"$f":"+'Schedule IVE'!L27","v":0},{"$f":"+'Schedule IVE'!M27","v":0},{"$f":"+'Schedule IVE'!N27","v":0},{"$f":"+'Schedule IVE'!O27","v":0},{"$f":"+'Schedule IVE'!P27","v":0},{"$f":"+'Schedule IVE'!Q27","v":0},{"$f":"+'Schedule IVE'!R27","v":0},{"$f":"+'Schedule IVE'!S27","v":0},{"$f":"+'Schedule IVE'!T27","v":0},{"$f":"+'Schedule IVE'!U27","v":0},{"$f":"+'Schedule IVE'!V27","v":0}]
[null,"International Casualty Non-Motor","Schedule IV(a), Line (20)",0,0,1,0,{"$f":"IF('Schedule IVE'!AB28=\"True\",G28,'Schedule IVD'!O28)","v":0},{"$f":"+'Schedule IVE'!E28","v":0},{"$f":"+'Schedule IVE'!F28","v":0},{"$f":"+'Schedule IVE'!G28","v":0},{"$f":"+'Schedule IVE'!H28","v":0},{"$f":"+'Schedule IVE'!I28","v":0},{"$f":"+'Schedule IVE'!J28","v":0},{"$f":"+'Schedule IVE'!K28","v":0},{"$f":"+'Schedule IVE'!L28","v":0},{"$f":"+'Schedule IVE'!M28","v":0},{"$f":"+'Schedule IVE'!N28","v":0},{"$f":"+'Schedule IVE'!O28","v":0},{"$f":"+'Schedule IVE'!P28","v":0},{"$f":"+'Schedule IVE'!Q28","v":0},{"$f":"+'Schedule IVE'!R28","v":0},{"$f":"+'Schedule IVE'!S28","v":0},{"$f":"+'Schedule IVE'!T28","v":0},{"$f":"+'Schedule IVE'!U28","v":0},{"$f":"+'Schedule IVE'!V28","v":0}]
[null,"International Casualty Non-Motor Non-Proportional","Schedule IV(a), Line (21)",0,0,1,0,{"$f":"IF('Schedule IVE'!AB29=\"True\",G29,'Schedule IVD'!O29)","v":0},{"$f":"+'Schedule IVE'!E29","v":0},{"$f":"+'Schedule IVE'!F29","v":0},{"$f":"+'Schedule IVE'!G29","v":0},{"$f":"+'Schedule IVE'!H29","v":0},{"$f":"+'Schedule IVE'!I29","v":0},{"$f":"+'Schedule IVE'!J29","v":0},{"$f":"+'Schedule IVE'!K29","v":0},{"$f":"+'Schedule IVE'!L29","v":0},{"$f":"+'Schedule IVE'!M29","v":0},{"$f":"+'Schedule IVE'!N29","v":0},{"$f":"+'Schedule IVE'!O29","v":0},{"$f":"+'Schedule IVE'!P29","v":0},{"$f":"+'Schedule IVE'!Q29","v":0},{"$f":"+'Schedule IVE'!R29","v":0},{"$f":"+'Schedule IVE'!S29","v":0},{"$f":"+'Schedule IVE'!T29","v":0},{"$f":"+'Schedule IVE'!U29","v":0},{"$f":"+'Schedule IVE'!V29","v":0}]
[null,"Retro Property","Schedule IV(a), Line (22)",0,0,1,0,{"$f":"IF('Schedule IVE'!AB30=\"True\",G30,'Schedule IVD'!O30)","v":0},{"$f":"+'Schedule IVE'!E30","v":0},{"$f":"+'Schedule IVE'!F30","v":0},{"$f":"+'Schedule IVE'!G30","v":0},{"$f":"+'Schedule IVE'!H30","v":0},{"$f":"+'Schedule IVE'!I30","v":0},{"$f":"+'Schedule IVE'!J30","v":0},{"$f":"+'Schedule IVE'!K30","v":0},{"$f":"+'Schedule IVE'!L30","v":0},{"$f":"+'Schedule IVE'!M30","v":0},{"$f":"+'Schedule IVE'!N30","v":0},{"$f":"+'Schedule IVE'!O30","v":0},{"$f":"+'Schedule IVE'!P30","v":0},{"$f":"+'Schedule IVE'!Q30","v":0},{"$f":"+'Schedule IVE'!R30","v":0},{"$f":"+'Schedule IVE'!S30","v":0},{"$f":"+'Schedule IVE'!T30","v":0},{"$f":"+'Schedule IVE'!U30","v":0},{"$f":"+'Schedule IVE'!V30","v":0}]
[null,"Structured / Finite Reinsurance","Schedule IV(a), Line (23)",0,0,1,0,{"$f":"IF('Schedule IVE'!AB31=\"True\",G31,'Schedule IVD'!O31)","v":0},{"$f":"+'Schedule IVE'!E31","v":0},{"$f":"+'Schedule IVE'!F31","v":0},{"$f":"+'Schedule IVE'!G31","v":0},{"$f":"+'Schedule IVE'!H31","v":0},{"$f":"+'Schedule IVE'!I31","v":0},{"$f":"+'Schedule IVE'!J31","v":0},{"$f":"+'Schedule IVE'!K31","v":0},{"$f":"+'Schedule IVE'!L31","v":0},{"$f":"+'Schedule IVE'!M31","v":0},{"$f":"+'Schedule IVE'!N31","v":0},{"$f":"+'Schedule IVE'!O31","v":0},{"$f":"+'Schedule IVE'!P31","v":0},{"$f":"+'Schedule IVE'!Q31","v":0},{"$f":"+'Schedule IVE'!R31","v":0},{"$f":"+'Schedule IVE'!S31","v":0},{"$f":"+'Schedule IVE'!T31","v":0},{"$f":"+'Schedule IVE'!U31","v":0},{"$f":"+'Schedule IVE'!V31","v":0}]
[null,"Health","Schedule IV(a), Line (24)",0,0,1,0,{"$f":"IF('Schedule IVE'!AB32=\"True\",G32,'Schedule IVD'!O32)","v":0},{"$f":"+'Schedule IVE'!E32","v":0},{"$f":"+'Schedule IVE'!F32","v":0},{"$f":"+'Schedule IVE'!G32","v":0},{"$f":"+'Schedule IVE'!H32","v":0},{"$f":"+'Schedule IVE'!I32","v":0},{"$f":"+'Schedule IVE'!J32","v":0},{"$f":"+'Schedule IVE'!K32","v":0},{"$f":"+'Schedule IVE'!L32","v":0},{"$f":"+'Schedule IVE'!M32","v":0},{"$f":"+'Schedule IVE'!N32","v":0},{"$f":"+'Schedule IVE'!O32","v":0},{"$f":"+'Schedule IVE'!P32","v":0},{"$f":"+'Schedule IVE'!Q32","v":0},{"$f":"+'Schedule IVE'!R32","v":0},{"$f":"+'Schedule IVE'!S32","v":0},{"$f":"+'Schedule IVE'!T32","v":0},{"$f":"+'Schedule IVE'!U32","v":0},{"$f":"+'Schedule IVE'!V32","v":0}]
[]
[null,"(a) TOTAL",null,{"$f":"SUM(D9:D32)","v":0},{"$f":"SUM(E9:E32)","v":0},null,{"$f":"SUM(G9:G32)","v":0},0,0,0,0,0,0,0,0,0,0,0,0,0,0,0,0,0,0,0]
[]
[null,null,null,"TOTAL",null,null,null,"CHARGE"]
[null,"NET LOSS PROVISION BY ",null,"NET","SUM","DIVERSIFICATION","RESERVE","DIVERSIFIED"]
[null,"LINE OF BUSINESS","STATEMENT SOURCE","RESERVE","SQUARED","FACTOR","USED","RESERVE",{"$f":"HYPERLINK(\"#'Zones'!c4\",\"Zone 1\")","v":"Zone 1"},{"$f":"HYPERLINK(\"#'Zones'!c13\",\"Zone 2\")","v":"Zone 2"},{"$f":"HYPERLINK(\"#'Zones'!c18\",\"Zone 3\")","v":"Zone 3"},{"$f":"HYPERLINK(\"#'Zones'!c26\",\"Zone 4\")","v":"Zone 4"},{"$f":"HYPERLINK(\"#'Zones'!c36\",\"Zone 5\")","v":"Zone 5"},{"$f":"HYPERLINK(\"#'Zones'!c46\",\"Zone 6\")","v":"Zone 6"},{"$f":"HYPERLINK(\"#'Zones'!c57\",\"Zone 7\")","v":"Zone 7"},{"$f":"HYPERLINK(\"#'Zones'!c68\",\"Zone 8\")","v":"Zone 8"},{"$f":"HYPERLINK(\"#'Zones'!c76\",\"Zone 9\")","v":"Zone 9"},{"$f":"HYPERLINK(\"#'Zones'!c84\",\"Zone 10\")","v":"Zone 10"},{"$f":"HYPERLINK(\"#'Zones'!c90\",\"Zone 11\")","v":"Zone 11"},{"$f":"HYPERLINK(\"#'Zones'!c94\",\"Zone 12\")","v":"Zone 12"},{"$f":"HYPERLINK(\"#'Zones'!c107\",\"Zone 13\")","v":"Zone 13"},{"$f":"HYPERLINK(\"#'Zones'!c112\",\"Zone 14\")","v":"Zone 14"},{"$f":"HYPERLINK(\"#'Zones'!c116\",\"Zone 15\")","v":"Zone 15"},{"$f":"HYPERLINK(\"#'Zones'!c121\",\"Zone 16\")","v":"Zone 16"},{"$f":"HYPERLINK(\"#'Zones'!c127\",\"Zone 17\")","v":"Zone 17"},{"$f":"HYPERLINK(\"#'Zones'!c133\",\"Zone 18\")","v":"Zone 18"}]
[]
[null,"Property Catastrophe","Schedule III(a), Line (1)",{"$f":"SUM(I40:Z40)","v":0},{"$f":"SUMSQ(I40:Z40)","v":0},{"$f":"(IF(D40>0,E40/D40^2,1))","v":1},{"$f":"D40*(0.75+0.25*F40)","v":0},{"$f":"IF('Schedule IIIA'!AB10=\"TRUE\",G40,'Schedule III'!F10)","v":0},{"$f":"'Schedule IIIA'!E10","v":0},{"$f":"'Schedule IIIA'!F10","v":0},{"$f":"'Schedule IIIA'!G10","v":0},{"$f":"'Schedule IIIA'!H10","v":0},{"$f":"'Schedule IIIA'!I10","v":0},{"$f":"'Schedule IIIA'!J10","v":0},{"$f":"'Schedule IIIA'!K10","v":0},{"$f":"'Schedule IIIA'!L10","v":0},{"$f":"'Schedule IIIA'!M10","v":0},{"$f":"'Schedule IIIA'!N10","v":0},{"$f":"'Schedule IIIA'!O10","v":0},{"$f":"'Schedule IIIA'!P10","v":0},{"$f":"'Schedule IIIA'!Q10","v":0},{"$f":"'Schedule IIIA'!R10","v":0},{"$f":"'Schedule IIIA'!S10","v":0},{"$f":"'Schedule IIIA'!T10","v":0},{"$f":"'Schedule IIIA'!U10","v":0},{"$f":"'Schedule IIIA'!V10","v":0}]
[null,"Property","Schedule III(a), Line (2)",{"$f":"SUM(I41:Z41)","v":0},{"$f":"SUMSQ(I41:Z41)","v":0},{"$f":"(IF(D41>0,E41/D41^2,1))","v":1},{"$f":"D41*(0.75+0.25*F41)","v":0},{"$f":"IF('Schedule IIIA'!AB11=\"TRUE\",G41,'Schedule III'!F11)","v":0},{"$f":"'Schedule IIIA'!E11","v":0},{"$f":"'Schedule IIIA'!F11","v":0},{"$f":"'Schedule IIIA'!G11","v":0},{"$f":"'Schedule IIIA'!H11","v":0},{"$f":"'Schedule IIIA'!I11","v":0},{"$f":"'Schedule IIIA'!J11","v":0},{"$f":"'Schedule IIIA'!K11","v":0},{"$f":"'Schedule IIIA'!L11","v":0},{"$f":"'Schedule IIIA'!M11","v":0},{"$f":"'Schedule IIIA'!N11","v":0},{"$f":"'Schedule IIIA'!O11","v":0},{"$f":"'Schedule IIIA'!P11","v":0},{"$f":"'Schedule IIIA'!Q11","v":0},{"$f":"'Schedule IIIA'!R11","v":0},{"$f":"'Schedule IIIA'!S11","v":0},{"$f":"'Schedule IIIA'!T11","v":0},{"$f":"'Schedule IIIA'!U11","v":0},{"$f":"'Schedule IIIA'!V11","v":0}]
[null,"Property Non-Proportional","Schedule III(a), Line (3)",0,0,1,0,{"$f":"IF('Schedule IIIA'!AB12=\"TRUE\",G42,'Schedule III'!F12)","v":0},{"$f":"'Schedule IIIA'!E12","v":0},{"$f":"'Schedule IIIA'!F12","v":0},{"$f":"'Schedule IIIA'!G12","v":0},{"$f":"'Schedule IIIA'!H12","v":0},{"$f":"'Schedule IIIA'!I12","v":0},{"$f":"'Schedule IIIA'!J12","v":0},{"$f":"'Schedule IIIA'!K12","v":0},{"$f":"'Schedule IIIA'!L12","v":0},{"$f":"'Schedule IIIA'!M12","v":0},{"$f":"'Schedule IIIA'!N12","v":0},{"$f":"'Schedule IIIA'!O12","v":0},{"$f":"'Schedule IIIA'!P12","v":0},{"$f":"'Schedule IIIA'!Q12","v":0},{"$f":"'Schedule IIIA'!R12","v":0},{"$f":"'Schedule IIIA'!S12","v":0},{"$f":"'Schedule IIIA'!T12","v":0},{"$f":"'Schedule IIIA'!U12","v":0},{"$f":"'Schedule IIIA'!V12","v":0}]
[null,"Personal Accident","Schedule III(a), Line (4)",0,0,1,0,{"$f":"IF('Schedule IIIA'!AB13=\"TRUE\",G43,'Schedule III'!F13)","v":0},{"$f":"'Schedule IIIA'!E13","v":0},{"$f":"'Schedule IIIA'!F13","v":0},{"$f":"'Schedule IIIA'!G13","v":0},{"$f":"'Schedule IIIA'!H13","v":0},{"$f":"'Schedule IIIA'!I13","v":0},{"$f":"'Schedule IIIA'!J13","v":0},{"$f":"'Schedule IIIA'!K13","v":0},{"$f":"'Schedule IIIA'!L13","v":0},{"$f":"'Schedule IIIA'!M13","v":0},{"$f":"'Schedule IIIA'!N13","v":0},{"$f":"'Schedule IIIA'!O13","v":0},{"$f":"'Schedule IIIA'!P13","v":0},{"$f":"'Schedule IIIA'!Q13","v":0},{"$f":"'Schedule IIIA'!R13","v":0},{"$f":"'Schedule IIIA'!S13","v":0},{"$f":"'Schedule IIIA'!T13","v":0},{"$f":"'Schedule IIIA'!U13","v":0},{"$f":"'Schedule IIIA'!V13","v":0}]
[null,"Personal Accident Non-Proportional","Schedule III(a), Line (5)",0,0,1,0,{"$f":"IF('Schedule IIIA'!AB14=\"TRUE\",G44,'Schedule III'!F14)","v":0},{"$f":"'Schedule IIIA'!E14","v":0},{"$f":"'Schedule IIIA'!F14","v":0},{"$f":"'Schedule IIIA'!G14","v":0},{"$f":"'Schedule IIIA'!H14","v":0},{"$f":"'Schedule IIIA'!I14","v":0},{"$f":"'Schedule IIIA'!J14","v":0},{"$f":"'Schedule IIIA'!K14","v":0},{"$f":"'Schedule IIIA'!L14","v":0},{"$f":"'Schedule IIIA'!M14","v":0},{"$f":"'Schedule IIIA'!N14","v":0},{"$f":"'Schedule IIIA'!O14","v":0},{"$f":"'Schedule IIIA'!P14","v":0},{"$f":"'Schedule IIIA'!Q14","v":0},{"$f":"'Schedule IIIA'!R14","v":0},{"$f":"'Schedule IIIA'!S14","v":0},{"$f":"'Schedule IIIA'!T14","v":0},{"$f":"'Schedule IIIA'!U14","v":0},{"$f":"'Schedule IIIA'!V14","v":0}]
[null,"Aviation","Schedule III(a), Line (6)",0,0,1,0,{"$f":"IF('Schedule IIIA'!AB15=\"TRUE\",G45,'Schedule III'!F15)","v":0},{"$f":"'Schedule IIIA'!E15","v":0},{"$f":"'Schedule IIIA'!F15","v":0},{"$f":"'Schedule IIIA'!G15","v":0},{"$f":"'Schedule IIIA'!H15","v":0},{"$f":"'Schedule IIIA'!I15","v":0},{"$f":"'Schedule IIIA'!J15","v":0},{"$f":"'Schedule IIIA'!K15","v":0},{"$f":"'Schedule IIIA'!L15","v":0},{"$f":"'Schedule IIIA'!M15","v":0},{"$f":"'Schedule IIIA'!N15","v":0},{"$f":"'Schedule IIIA'!O15","v":0},{"$f":"'Schedule IIIA'!P15","v":0},{"$f":"'Schedule IIIA'!Q15","v":0},{"$f":"'Schedule IIIA'!R15","v":0},{"$f":"'Schedule IIIA'!S15","v":0},{"$f":"'Schedule IIIA'!T15","v":0},{"$f":"'Schedule IIIA'!U15","v":0},{"$f":"'Schedule IIIA'!V15","v":0}]
[null,"Aviation Non-Proportional","Schedule III(a), Line (7)",0,0,1,0,{"$f":"IF('Schedule IIIA'!AB16=\"TRUE\",G46,'Schedule III'!F16)","v":0},{"$f":"'Schedule IIIA'!E16","v":0},{"$f":"'Schedule IIIA'!F16","v":0},{"$f":"'Schedule IIIA'!G16","v":0},{"$f":"'Schedule IIIA'!H16","v":0},{"$f":"'Schedule IIIA'!I16","v":0},{"$f":"'Schedule IIIA'!J16","v":0},{"$f":"'Schedule IIIA'!K16","v":0},{"$f":"'Schedule IIIA'!L16","v":0},{"$f":"'Schedule IIIA'!M16","v":0},{"$f":"'Schedule IIIA'!N16","v":0},{"$f":"'Schedule IIIA'!O16","v":0},{"$f":"'Schedule IIIA'!P16","v":0},{"$f":"'Schedule IIIA'!Q16","v":0},{"$f":"'Schedule IIIA'!R16","v":0},{"$f":"'Schedule IIIA'!S16","v":0},{"$f":"'Schedule IIIA'!T16","v":0},{"$f":"'Schedule IIIA'!U16","v":0},{"$f":"'Schedule IIIA'!V16","v":0}]
[null,"Credit / Surety","Schedule III(a), Line (8)",0,0,1,0,{"$f":"IF('Schedule IIIA'!AB17=\"TRUE\",G47,'Schedule III'!F17)","v":0},{"$f":"'Schedule IIIA'!E17","v":0},{"$f":"'Schedule IIIA'!F17","v":0},{"$f":"'Schedule IIIA'!G17","v":0},{"$f":"'Schedule IIIA'!H17","v":0},{"$f":"'Schedule IIIA'!I17","v":0},{"$f":"'Schedule IIIA'!J17","v":0},{"$f":"'Schedule IIIA'!K17","v":0},{"$f":"'Schedule IIIA'!L17","v":0},{"$f":"'Schedule IIIA'!M17","v":0},{"$f":"'Schedule IIIA'!N17","v":0},{"$f":"'Schedule IIIA'!O17","v":0},{"$f":"'Schedule IIIA'!P17","v":0},{"$f":"'Schedule IIIA'!Q17","v":0},{"$f":"'Schedule IIIA'!R17","v":0},{"$f":"'Schedule IIIA'!S17","v":0},{"$f":"'Schedule IIIA'!T17","v":0},{"$f":"'Schedule IIIA'!U17","v":0},{"$f":"'Schedule IIIA'!V17","v":0}]
[null,"Credit / Surety Non-Proportional","Schedule III(a), Line (9)",0,0,1,0,{"$f":"IF('Schedule IIIA'!AB18=\"TRUE\",G48,'Schedule III'!F18)","v":0},{"$f":"'Schedule IIIA'!E18","v":0},{"$f":"'Schedule IIIA'!F18","v":0},{"$f":"'Schedule IIIA'!G18","v":0},{"$f":"'Schedule IIIA'!H18","v":0},{"$f":"'Schedule IIIA'!I18","v":0},{"$f":"'Schedule IIIA'!J18","v":0},{"$f":"'Schedule IIIA'!K18","v":0},{"$f":"'Schedule IIIA'!L18","v":0},{"$f":"'Schedule IIIA'!M18","v":0},{"$f":"'Schedule IIIA'!N18","v":0},{"$f":"'Schedule IIIA'!O18","v":0},{"$f":"'Schedule IIIA'!P18","v":0},{"$f":"'Schedule IIIA'!Q18","v":0},{"$f":"'Schedule IIIA'!R18","v":0},{"$f":"'Schedule IIIA'!S18","v":0},{"$f":"'Schedule IIIA'!T18","v":0},{"$f":"'Schedule IIIA'!U18","v":0},{"$f":"'Schedule IIIA'!V18","v":0}]
[null,"Energy Offshore / Marine","Schedule III(a), Line (10)",0,0,1,0,{"$f":"IF('Schedule IIIA'!AB19=\"TRUE\",G49,'Schedule III'!F19)","v":0},{"$f":"'Schedule IIIA'!E19","v":0},{"$f":"'Schedule IIIA'!F19","v":0},{"$f":"'Schedule IIIA'!G19","v":0},{"$f":"'Schedule IIIA'!H19","v":0},{"$f":"'Schedule IIIA'!I19","v":0},{"$f":"'Schedule IIIA'!J19","v":0},{"$f":"'Schedule IIIA'!K19","v":0},{"$f":"'Schedule IIIA'!L19","v":0},{"$f":"'Schedule IIIA'!M19","v":0},{"$f":"'Schedule IIIA'!N19","v":0},{"$f":"'Schedule IIIA'!O19","v":0},{"$f":"'Schedule IIIA'!P19","v":0},{"$f":"'Schedule IIIA'!Q19","v":0},{"$f":"'Schedule IIIA'!R19","v":0},{"$f":"'Schedule IIIA'!S19","v":0},{"$f":"'Schedule IIIA'!T19","v":0},{"$f":"'Schedule IIIA'!U19","v":0},{"$f":"'Schedule IIIA'!V19","v":0}]
[null,"Energy Offshore / Marine Non-Proportional","Schedule III(a), Line (11)",0,0,1,0,{"$f":"IF('Schedule IIIA'!AB20=\"TRUE\",G50,'Schedule III'!F20)","v":0},{"$f":"'Schedule IIIA'!E20","v":0},{"$f":"'Schedule IIIA'!F20","v":0},{"$f":"'Schedule IIIA'!G20","v":0},{"$f":"'Schedule IIIA'!H20","v":0},{"$f":"'Schedule IIIA'!I20","v":0},{"$f":"'Schedule IIIA'!J20","v":0},{"$f":"'Schedule IIIA'!K20","v":0},{"$f":"'Schedule IIIA'!L20","v":0},{"$f":"'Schedule IIIA'!M20","v":0},{"$f":"'Schedule IIIA'!N20","v":0},{"$f":"'Schedule IIIA'!O20","v":0},{"$f":"'Schedule IIIA'!P20","v":0},{"$f":"'Schedule IIIA'!Q20","v":0},{"$f":"'Schedule IIIA'!R20","v":0},{"$f":"'Schedule IIIA'!S20","v":0},{"$f":"'Schedule IIIA'!T20","v":0},{"$f":"'Schedule IIIA'!U20","v":0},{"$f":"'Schedule IIIA'!V20","v":0}]
[null,"US Casualty","Schedule III(a), Line (12)",0,0,1,0,{"$f":"IF('Schedule IIIA'!AB21=\"TRUE\",G51,'Schedule III'!F21)","v":0},{"$f":"'Schedule IIIA'!E21","v":0},{"$f":"'Schedule IIIA'!F21","v":0},{"$f":"'Schedule IIIA'!G21","v":0},{"$f":"'Schedule IIIA'!H21","v":0},{"$f":"'Schedule IIIA'!I21","v":0},{"$f":"'Schedule IIIA'!J21","v":0},{"$f":"'Schedule IIIA'!K21","v":0},{"$f":"'Schedule IIIA'!L21","v":0},{"$f":"'Schedule IIIA'!M21","v":0},{"$f":"'Schedule IIIA'!N21","v":0},{"$f":"'Schedule IIIA'!O21","v":0},{"$f":"'Schedule IIIA'!P21","v":0},{"$f":"'Schedule IIIA'!Q21","v":0},{"$f":"'Schedule IIIA'!R21","v":0},{"$f":"'Schedule IIIA'!S21","v":0},{"$f":"'Schedule IIIA'!T21","v":0},{"$f":"'Schedule IIIA'!U21","v":0},{"$f":"'Schedule IIIA'!V21","v":0}]
[null,"US Casualty Non-Proportional","Schedule III(a), Line (13)",0,0,1,0,{"$f":"IF('Schedule IIIA'!AB22=\"TRUE\",G52,'Schedule III'!F22)","v":0},{"$f":"'Schedule IIIA'!E22","v":0},{"$f":"'Schedule IIIA'!F22","v":0},{"$f":"'Schedule IIIA'!G22","v":0},{"$f":"'Schedule IIIA'!H22","v":0},{"$f":"'Schedule IIIA'!I22","v":0},{"$f":"'Schedule IIIA'!J22","v":0},{"$f":"'Schedule IIIA'!K22","v":0},{"$f":"'Schedule IIIA'!L22","v":0},{"$f":"'Schedule IIIA'!M22","v":0},{"$f":"'Schedule IIIA'!N22","v":0},{"$f":"'Schedule IIIA'!O22","v":0},{"$f":"'Schedule IIIA'!P22","v":0},{"$f":"'Schedule IIIA'!Q22","v":0},{"$f":"'Schedule IIIA'!R22","v":0},{"$f":"'Schedule IIIA'!S22","v":0},{"$f":"'Schedule IIIA'!T22","v":0},{"$f":"'Schedule IIIA'!U22","v":0},{"$f":"'Schedule IIIA'!V22","v":0}]
[null,"US Professional","Schedule III(a), Line (14)",0,0,1,0,{"$f":"IF('Schedule IIIA'!AB23=\"TRUE\",G53,'Schedule III'!F23)","v":0},{"$f":"'Schedule IIIA'!E23","v":0},{"$f":"'Schedule IIIA'!F23","v":0},{"$f":"'Schedule IIIA'!G23","v":0},{"$f":"'Schedule IIIA'!H23","v":0},{"$f":"'Schedule IIIA'!I23","v":0},{"$f":"'Schedule IIIA'!J23","v":0},{"$f":"'Schedule IIIA'!K23","v":0},{"$f":"'Schedule IIIA'!L23","v":0},{"$f":"'Schedule IIIA'!M23","v":0},{"$f":"'Schedule IIIA'!N23","v":0},{"$f":"'Schedule IIIA'!O23","v":0},{"$f":"'Schedule IIIA'!P23","v":0},{"$f":"'Schedule IIIA'!Q23","v":0},{"$f":"'Schedule IIIA'!R23","v":0},{"$f":"'Schedule IIIA'!S23","v":0},{"$f":"'Schedule IIIA'!T23","v":0},{"$f":"'Schedule IIIA'!U23","v":0},{"$f":"'Schedule IIIA'!V23","v":0}]
[null,"US Professional Non-Proportional","Schedule III(a), Line (15)",0,0,1,0,{"$f":"IF('Schedule IIIA'!AB24=\"TRUE\",G54,'Schedule III'!F24)","v":0},{"$f":"'Schedule IIIA'!E24","v":0},{"$f":"'Schedule IIIA'!F24","v":0},{"$f":"'Schedule IIIA'!G24","v":0},{"$f":"'Schedule IIIA'!H24","v":0},{"$f":"'Schedule IIIA'!I24","v":0},{"$f":"'Schedule IIIA'!J24","v":0},{"$f":"'Schedule IIIA'!K24","v":0},{"$f":"'Schedule IIIA'!L24","v":0},{"$f":"'Schedule IIIA'!M24","v":0},{"$f":"'Schedule IIIA'!N24","v":0},{"$f":"'Schedule IIIA'!O24","v":0},{"$f":"'Schedule IIIA'!P24","v":0},{"$f":"'Schedule IIIA'!Q24","v":0},{"$f":"'Schedule IIIA'!R24","v":0},{"$f":"'Schedule IIIA'!S24","v":0},{"$f":"'Schedule IIIA'!T24","v":0},{"$f":"'Schedule IIIA'!U24","v":0},{"$f":"'Schedule IIIA'!V24","v":0}]
[null,"US Specialty","Schedule III(a), Line (16)",0,0,1,0,{"$f":"IF('Schedule IIIA'!AB25=\"TRUE\",G55,'Schedule III'!F25)","v":0},{"$f":"'Schedule IIIA'!E25","v":0},{"$f":"'Schedule IIIA'!F25","v":0},{"$f":"'Schedule IIIA'!G25","v":0},{"$f":"'Schedule IIIA'!H25","v":0},{"$f":"'Schedule IIIA'!I25","v":0},{"$f":"'Schedule IIIA'!J25","v":0},{"$f":"'Schedule IIIA'!K25","v":0},{"$f":"'Schedule IIIA'!L25","v":0},{"$f":"'Schedule IIIA'!M25","v":0},{"$f":"'Schedule IIIA'!N25","v":0},{"$f":"'Schedule IIIA'!O25","v":0},{"$f":"'Schedule IIIA'!P25","v":0},{"$f":"'Schedule IIIA'!Q25","v":0},{"$f":"'Schedule IIIA'!R25","v":0},{"$f":"'Schedule IIIA'!S25","v":0},{"$f":"'Schedule IIIA'!T25","v":0},{"$f":"'Schedule IIIA'!U25","v":0},{"$f":"'Schedule IIIA'!V25","v":0}]
[null,"US Specialty Non-Proportional","Schedule III(a), Line (17)",0,0,1,0,{"$f":"IF('Schedule IIIA'!AB26=\"TRUE\",G56,'Schedule III'!F26)","v":0},{"$f":"'Schedule IIIA'!E26","v":0},{"$f":"'Schedule IIIA'!F26","v":0},{"$f":"'Schedule IIIA'!G26","v":0},{"$f":"'Schedule IIIA'!H26","v":0},{"$f":"'Schedule IIIA'!I26","v":0},{"$f":"'Schedule IIIA'!J26","v":0},{"$f":"'Schedule IIIA'!K26","v":0},{"$f":"'Schedule IIIA'!L26","v":0},{"$f":"'Schedule IIIA'!M26","v":0},{"$f":"'Schedule IIIA'!N26","v":0},{"$f":"'Schedule IIIA'!O26","v":0},{"$f":"'Schedule IIIA'!P26","v":0},{"$f":"'Schedule IIIA'!Q26","v":0},{"$f":"'Schedule IIIA'!R26","v":0},{"$f":"'Schedule IIIA'!S26","v":0},{"$f":"'Schedule IIIA'!T26","v":0},{"$f":"'Schedule IIIA'!U26","v":0},{"$f":"'Schedule IIIA'!V26","v":0}]
[null,"International Motor","Schedule III(a), Line (18)",0,0,1,0,{"$f":"IF('Schedule IIIA'!AB27=\"TRUE\",G57,'Schedule III'!F27)","v":0},{"$f":"'Schedule IIIA'!E27","v":0},{"$f":"'Schedule IIIA'!F27","v":0},{"$f":"'Schedule IIIA'!G27","v":0},{"$f":"'Schedule IIIA'!H27","v":0},{"$f":"'Schedule IIIA'!I27","v":0},{"$f":"'Schedule IIIA'!J27","v":0},{"$f":"'Schedule IIIA'!K27","v":0},{"$f":"'Schedule IIIA'!L27","v":0},{"$f":"'Schedule IIIA'!M27","v":0},{"$f":"'Schedule IIIA'!N27","v":0},{"$f":"'Schedule IIIA'!O27","v":0},{"$f":"'Schedule IIIA'!P27","v":0},{"$f":"'Schedule IIIA'!Q27","v":0},{"$f":"'Schedule IIIA'!R27","v":0},{"$f":"'Schedule IIIA'!S27","v":0},{"$f":"'Schedule IIIA'!T27","v":0},{"$f":"'Schedule IIIA'!U27","v":0},{"$f":"'Schedule IIIA'!V27","v":0}]
[null,"International Motor Non-Proportional","Schedule III(a), Line (19)",0,0,1,0,{"$f":"IF('Schedule IIIA'!AB28=\"TRUE\",G58,'Schedule III'!F28)","v":0},{"$f":"'Schedule IIIA'!E28","v":0},{"$f":"'Schedule IIIA'!F28","v":0},{"$f":"'Schedule IIIA'!G28","v":0},{"$f":"'Schedule IIIA'!H28","v":0},{"$f":"'Schedule IIIA'!I28","v":0},{"$f":"'Schedule IIIA'!J28","v":0},{"$f":"'Schedule IIIA'!K28","v":0},{"$f":"'Schedule IIIA'!L28","v":0},{"$f":"'Schedule IIIA'!M28","v":0},{"$f":"'Schedule IIIA'!N28","v":0},{"$f":"'Schedule IIIA'!O28","v":0},{"$f":"'Schedule IIIA'!P28","v":0},{"$f":"'Schedule IIIA'!Q28","v":0},{"$f":"'Schedule IIIA'!R28","v":0},{"$f":"'Schedule IIIA'!S28","v":0},{"$f":"'Schedule IIIA'!T28","v":0},{"$f":"'Schedule IIIA'!U28","v":0},{"$f":"'Schedule IIIA'!V28","v":0}]
[null,"International Casualty Non-Motor","Schedule III(a), Line (20)",0,0,1,0,{"$f":"IF('Schedule IIIA'!AB29=\"TRUE\",G59,'Schedule III'!F29)","v":0},{"$f":"'Schedule IIIA'!E29","v":0},{"$f":"'Schedule IIIA'!F29","v":0},{"$f":"'Schedule IIIA'!G29","v":0},{"$f":"'Schedule IIIA'!H29","v":0},{"$f":"'Schedule IIIA'!I29","v":0},{"$f":"'Schedule IIIA'!J29","v":0},{"$f":"'Schedule IIIA'!K29","v":0},{"$f":"'Schedule IIIA'!L29","v":0},{"$f":"'Schedule IIIA'!M29","v":0},{"$f":"'Schedule IIIA'!N29","v":0},{"$f":"'Schedule IIIA'!O29","v":0},{"$f":"'Schedule IIIA'!P29","v":0},{"$f":"'Schedule IIIA'!Q29","v":0},{"$f":"'Schedule IIIA'!R29","v":0},{"$f":"'Schedule IIIA'!S29","v":0},{"$f":"'Schedule IIIA'!T29","v":0},{"$f":"'Schedule IIIA'!U29","v":0},{"$f":"'Schedule IIIA'!V29","v":0}]
[null,"International Casualty Non-Motor Non-Proportional","Schedule III(a), Line (21)",0,0,1,0,{"$f":"IF('Schedule IIIA'!AB30=\"TRUE\",G60,'Schedule III'!F30)","v":0},{"$f":"'Schedule IIIA'!E30","v":0},{"$f":"'Schedule IIIA'!F30","v":0},{"$f":"'Schedule IIIA'!G30","v":0},{"$f":"'Schedule IIIA'!H30","v":0},{"$f":"'Schedule IIIA'!I30","v":0},{"$f":"'Schedule IIIA'!J30","v":0},{"$f":"'Schedule IIIA'!K30","v":0},{"$f":"'Schedule IIIA'!L30","v":0},{"$f":"'Schedule IIIA'!M30","v":0},{"$f":"'Schedule IIIA'!N30","v":0},{"$f":"'Schedule IIIA'!O30","v":0},{"$f":"'Schedule IIIA'!P30","v":0},{"$f":"'Schedule IIIA'!Q30","v":0},{"$f":"'Schedule IIIA'!R30","v":0},{"$f":"'Schedule IIIA'!S30","v":0},{"$f":"'Schedule IIIA'!T30","v":0},{"$f":"'Schedule IIIA'!U30","v":0},{"$f":"'Schedule IIIA'!V30","v":0}]
[null,"Retro Property","Schedule III(a), Line (22)",0,0,1,0,{"$f":"IF('Schedule IIIA'!AB31=\"TRUE\",G61,'Schedule III'!F31)","v":0},{"$f":"'Schedule IIIA'!E31","v":0},{"$f":"'Schedule IIIA'!F31","v":0},{"$f":"'Schedule IIIA'!G31","v":0},{"$f":"'Schedule IIIA'!H31","v":0},{"$f":"'Schedule IIIA'!I31","v":0},{"$f":"'Schedule IIIA'!J31","v":0},{"$f":"'Schedule IIIA'!K31","v":0},{"$f":"'Schedule IIIA'!L31","v":0},{"$f":"'Schedule IIIA'!M31","v":0},{"$f":"'Schedule IIIA'!N31","v":0},{"$f":"'Schedule IIIA'!O31","v":0},{"$f":"'Schedule IIIA'!P31","v":0},{"$f":"'Schedule IIIA'!Q31","v":0},{"$f":"'Schedule IIIA'!R31","v":0},{"$f":"'Schedule IIIA'!S31","v":0},{"$f":"'Schedule IIIA'!T31","v":0},{"$f":"'Schedule IIIA'!U31","v":0},{"$f":"'Schedule IIIA'!V31","v":0}]
[null,"Structured / Finite Reinsurance","Schedule III(a), Line (23)",0,0,1,0,{"$f":"IF('Schedule IIIA'!AB32=\"TRUE\",G62,'Schedule III'!F32)","v":0},{"$f":"'Schedule IIIA'!E32","v":0},{"$f":"'Schedule IIIA'!F32","v":0},{"$f":"'Schedule IIIA'!G32","v":0},{"$f":"'Schedule IIIA'!H32","v":0},{"$f":"'Schedule IIIA'!I32","v":0},{"$f":"'Schedule IIIA'!J32","v":0},{"$f":"'Schedule IIIA'!K32","v":0},{"$f":"'Schedule IIIA'!L32","v":0},{"$f":"'Schedule IIIA'!M32","v":0},{"$f":"'Schedule IIIA'!N32","v":0},{"$f":"'Schedule IIIA'!O32","v":0},{"$f":"'Schedule IIIA'!P32","v":0},{"$f":"'Schedule IIIA'!Q32","v":0},{"$f":"'Schedule IIIA'!R32","v":0},{"$f":"'Schedule IIIA'!S32","v":0},{"$f":"'Schedule IIIA'!T32","v":0},{"$f":"'Schedule IIIA'!U32","v":0},{"$f":"'Schedule IIIA'!V32","v":0}]
[null,"Health","Schedule III(a), Line (24)",0,0,1,0,{"$f":"IF('Schedule IIIA'!AB33=\"TRUE\",G63,'Schedule III'!F33)","v":0},{"$f":"'Schedule IIIA'!E33","v":0},{"$f":"'Schedule IIIA'!F33","v":0},{"$f":"'Schedule IIIA'!G33","v":0},{"$f":"'Schedule IIIA'!H33","v":0},{"$f":"'Schedule IIIA'!I33","v":0},{"$f":"'Schedule IIIA'!J33","v":0},{"$f":"'Schedule IIIA'!K33","v":0},{"$f":"'Schedule IIIA'!L33","v":0},{"$f":"'Schedule IIIA'!M33","v":0},{"$f":"'Schedule IIIA'!N33","v":0},{"$f":"'Schedule IIIA'!O33","v":0},{"$f":"'Schedule IIIA'!P33","v":0},{"$f":"'Schedule IIIA'!Q33","v":0},{"$f":"'Schedule IIIA'!R33","v":0},{"$f":"'Schedule IIIA'!S33","v":0},{"$f":"'Schedule IIIA'!T33","v":0},{"$f":"'Schedule IIIA'!U33","v":0},{"$f":"'Schedule IIIA'!V33","v":0}]
[]
[null,"(a) TOTAL",null,{"$f":"SUM(D40:D63)","v":0},{"$f":"SUM(E40:E63)","v":0},null,{"$f":"SUM(G40:G63)","v":0},0,0,0,0,0,0,0,0,0,0,0,0,0,0,0,0,0,0,0]

{"sheet":"Premium Risk (old)","index":126,"n_rows":78,"n_cols":9,"rows_kept":78,"cut":false,"hidden":true,"merged":[[0,8,0,9],[5,3,6,3]]}
["PREMIUM RISK",null,null,null,null,null,null,null,{"$f":"HYPERLINK(\"#'Index'!A1\",\"Return to Index\")","v":"Return to Index"}]
[{"$f":"'Company Information'!C7","v":"Enter Company Name"}]
[{"$f":"\"Premium Risk\" & \"($\"&IF(CONFIGURATION!$B$12>1,MID(CONFIGURATION!$B$12,2,LEN(CONFIGURATION!$B$12)),\"\")&\")\"","v":"Premium Risk($000)"},null,null,{"$f":"'Company Information'!C3","v":"2022-12-31"},-1,-2,-3,-4,-5]
[]
[null,null,null,null,"GROSS","NET","GEO"]
[null,null,null,"STATEMENT SOURCE","PREMIUMS","PREMIUMS","DIVERSIFIED","CAPITAL","REQUIRED"]
[null,"LINE OF BUSINESS",null,null,"WRITTEN","WRITTEN","PREMIUMS","FACTOR","CAPITAL"]
[]
[null,null,null,null,null,null,null,null,"(3) x (4)"]
[]
[null,"Property Catastrophe",null,"Schedule IVA, Line (1)",{"$f":"+'Schedule IVA'!M11","v":0},{"$f":"'Schedule IVA'!Q11","v":0},{"$f":"+'Geographic Diversification (old'!H9","v":0},0,{"$f":"IF($G$11<0,0,$G$11*$H$11)","v":0}]
[null,"Property",null,"Schedule IVA, Line (2)",{"$f":"+'Schedule IVA'!M12","v":0},{"$f":"'Schedule IVA'!Q12","v":0},{"$f":"+'Geographic Diversification (old'!H10","v":0},0.497450025355053,{"$f":"IF($G$12<0,0,$G$12*$H$12)","v":0}]
[null,"Property Non-Proportional",null,"Schedule IVA, Line (3)",{"$f":"+'Schedule IVA'!M13","v":0},{"$f":"'Schedule IVA'!Q13","v":0},{"$f":"+'Geographic Diversification (old'!H11","v":0},0.51625715924082105,{"$f":"IF($G$13<0,0,$G$13*$H$13)","v":0}]
[null,"Personal Accident",null,"Schedule IVA, Line (4)",{"$f":"+'Schedule IVA'!M14","v":0},{"$f":"'Schedule IVA'!Q14","v":0},{"$f":"+'Geographic Diversification (old'!H12","v":0},0.34115345724240698,{"$f":"IF($G$14<0,0,$G$14*$H$14)","v":0}]
[null,"Personal Accident Non-Proportional",null,"Schedule IVA, Line (5)",{"$f":"+'Schedule IVA'!M15","v":0},{"$f":"'Schedule IVA'!Q15","v":0},{"$f":"+'Geographic Diversification (old'!H13","v":0},0.41221262895987398,{"$f":"IF($G$15<0,0,$G$15*$H$15)","v":0}]
[null,"Aviation",null,"Schedule IVA, Line (6)",{"$f":"+'Schedule IVA'!M16","v":0},{"$f":"'Schedule IVA'!Q16","v":0},{"$f":"+'Geographic Diversification (old'!H14","v":0},0.48178449435856302,{"$f":"IF($G$16<0,0,$G$16*$H$16)","v":0}]
[null,"Aviation Non-Proportional",null,"Schedule IVA, Line (7)",{"$f":"+'Schedule IVA'!M17","v":0},{"$f":"'Schedule IVA'!Q17","v":0},{"$f":"+'Geographic Diversification (old'!H15","v":0},0.48201231799963601,{"$f":"IF($G$17<0,0,$G$17*$H$17)","v":0}]
[null,"Credit / Surety",null,"Schedule IVA, Line (8)",{"$f":"+'Schedule IVA'!M18","v":0},{"$f":"'Schedule IVA'!Q18","v":0},{"$f":"+'Geographic Diversification (old'!H16","v":0},0.39820522005250802,{"$f":"IF($G$18<0,0,$G$18*$H$18)","v":0}]
[null,"Credit / Surety Non-Proportional",null,"Schedule IVA, Line (9)",{"$f":"+'Schedule IVA'!M19","v":0},{"$f":"'Schedule IVA'!Q19","v":0},{"$f":"+'Geographic Diversification (old'!H17","v":0},0.45356665999464701,{"$f":"IF($G$19<0,0,$G$19*$H$19)","v":0}]
[null,"Energy Offshore / Marine",null,"Schedule IVA, Line (10)",{"$f":"+'Schedule IVA'!M20","v":0},{"$f":"'Schedule IVA'!Q20","v":0},{"$f":"+'Geographic Diversification (old'!H18","v":0},0.42102344656076801,{"$f":"IF($G$20<0,0,$G$20*$H$20)","v":0}]
[null,"Energy Offshore / Marine Non-Proportional",null,"Schedule IVA, Line (11)",{"$f":"+'Schedule IVA'!M21","v":0},{"$f":"'Schedule IVA'!Q21","v":0},{"$f":"+'Geographic Diversification (old'!H19","v":0},0.47016820069929899,{"$f":"IF($G$21<0,0,$G$21*$H$21)","v":0}]
[null,"US Casualty",null,"Schedule IVA, Line (12)",{"$f":"+'Schedule IVA'!M22","v":0},{"$f":"'Schedule IVA'!Q22","v":0},{"$f":"+'Geographic Diversification (old'!H20","v":0},0.50272577892886305,{"$f":"IF($G$22<0,0,$G$22*$H$22)","v":0}]
[null,"US Casualty Non-Proportional",null,"Schedule IVA, Line (13)",{"$f":"+'Schedule IVA'!M23","v":0},{"$f":"'Schedule IVA'!Q23","v":0},{"$f":"+'Geographic Diversification (old'!H21","v":0},0.555814073452775,{"$f":"IF($G$23<0,0,$G$23*$H$23)","v":0}]
[null,"US Professional",null,"Schedule IVA, Line (14)",{"$f":"+'Schedule IVA'!M24","v":0},{"$f":"'Schedule IVA'!Q24","v":0},{"$f":"+'Geographic Diversification (old'!H22","v":0},0.51225206482709496,{"$f":"IF($G$24<0,0,$G$24*$H$24)","v":0}]
[null,"US Professional Non-Proportional",null,"Schedule IVA, Line (15)",{"$f":"+'Schedule IVA'!M25","v":0},{"$f":"'Schedule IVA'!Q25","v":0},{"$f":"+'Geographic Diversification (old'!H23","v":0},0.53805556666757803,{"$f":"IF($G$25<0,0,$G$25*$H$25)","v":0}]
[null,"US Specialty",null,"Schedule IVA, Line (16)",{"$f":"+'Schedule IVA'!M26","v":0},{"$f":"'Schedule IVA'!Q26","v":0},{"$f":"+'Geographic Diversification (old'!H24","v":0},0.51436147942106603,{"$f":"IF($G$26<0,0,$G$26*$H$26)","v":0}]
[null,"US Specialty Non-Proportional",null,"Schedule IVA, Line (17)",{"$f":"+'Schedule IVA'!M27","v":0},{"$f":"'Schedule IVA'!Q27","v":0},{"$f":"+'Geographic Diversification (old'!H25","v":0},0.52697789035313303,{"$f":"IF($G$27<0,0,$G$27*$H$27)","v":0}]
[null,"International Motor",null,"Schedule IVA, Line (18)",{"$f":"+'Schedule IVA'!M28","v":0},{"$f":"'Schedule IVA'!Q28","v":0},{"$f":"+'Geographic Diversification (old'!H26","v":0},0.42191756117933499,{"$f":"IF($G$28<0,0,$G$28*$H$28)","v":0}]
[null,"International Motor Non-Proportional",null,"Schedule IVA, Line (19)",{"$f":"+'Schedule IVA'!M29","v":0},{"$f":"'Schedule IVA'!Q29","v":0},{"$f":"+'Geographic Diversification (old'!H27","v":0},0.482210885429324,{"$f":"IF($G$29<0,0,$G$29*$H$29)","v":0}]
[null,"International Casualty Non-Motor",null,"Schedule IVA, Line (20)",{"$f":"+'Schedule IVA'!M30","v":0},{"$f":"'Schedule IVA'!Q30","v":0},{"$f":"+'Geographic Diversification (old'!H28","v":0},0.50012106835589698,{"$f":"IF($G$30<0,0,$G$30*$H$30)","v":0}]
[null,"International Casualty Non-Motor Non-Proportional",null,"Schedule IVA, Line (21)",{"$f":"+'Schedule IVA'!M31","v":0},{"$f":"'Schedule IVA'!Q31","v":0},{"$f":"+'Geographic Diversification (old'!H29","v":0},0.53551360019381999,{"$f":"IF($G$31<0,0,$G$31*$H$31)","v":0}]
[null,"Retro Property",null,"Schedule IVA, Line (22)",{"$f":"+'Schedule IVA'!M32","v":0},{"$f":"'Schedule IVA'!Q32","v":0},{"$f":"+'Geographic Diversification (old'!H30","v":0},0.508030898436173,{"$f":"IF($G$32<0,0,$G$32*$H$32)","v":0}]
[null,"Structured / Finite Reinsurance",null,"Schedule IVA, Line (23)",{"$f":"+'Schedule IVA'!M33","v":0},{"$f":"'Schedule IVA'!Q33","v":0},{"$f":"+'Geographic Diversification (old'!H31","v":0},0.27200000000000002,{"$f":"IF($G$33<0,0,$G$33*$H$33)","v":0}]
[null,"Health",null,"Schedule IVA, Line (24)",{"$f":"+'Schedule IVA'!M34","v":0},{"$f":"'Schedule IVA'!Q34","v":0},{"$f":"+'Geographic Diversification (old'!H32","v":0},0.15,{"$f":"IF($G$34<0,0,$G$34*$H$34)","v":0}]
[]
[null,"(a)  TOTAL",null,null,{"$f":"SUM(E11:E34)","v":0},{"$f":"SUM(F11:F34)","v":0},{"$f":"SUM(G11:G34)","v":0},null,{"$f":"SUM(I11:I35)","v":0}]
[]
[null,"(b)  CONCENTRATION ADJUSTMENT CALCULATION"]
[]
[null,"(i)","(i)","Maximum Premium [ Maximum (1a) excl Prop CAT ]",null,null,null,null,{"$f":"MAX(G12:G34)","v":0}]
[null,"(ii)","(ii)","Total Premium [ Total (1a) excl Prop CAT ]",null,null,null,null,{"$f":"G36-G11","v":0}]
[null,"(iii)","(iii)","Maximum Premium / Total Premium [ (i) / (ii) ]",null,null,null,null,{"$f":"IF(I41=0,0,I40/I41)","v":0}]
[null,"(iv)","(iv)","Maximum Adjustment",null,null,null,null,{"$f":"'Reserve Risk (old)'!H43","v":0.4}]
[null,"(v)","(v)","[ (iii) x (iv) ]",null,null,null,null,{"$f":"I42*I43","v":0}]
[null,"(vi)","(vi)","Minimum Adjustment Factor",null,null,null,null,{"$f":"1-I43","v":0.6}]
[]
[null,"(b)  CONCENTRATION ADJUSTMENT FACTOR [ (v) + (vi) ]",null,null,null,null,null,null,{"$f":"I44+I45","v":0.6}]
[]
[null,"(c)  REQUIRED CAPITAL CHARGE  [ TOTAL (a) x (b) ]",null,null,null,null,null,null,{"$f":"IF(I36=0,0,I36*I47)","v":0}]
[]
[null,"(c)  CATASTROPHE PREMIUM ADJUSTMENT CALCULATION"]
[]
[null,"(i)","(i)","Average Annual Loss (AAL) Excluding Property Catastrophe",null,null,null,null,{"$f":"'Catastrophe Risk (old)'!E11","v":0}]
[null,"(ii)","(ii)","Industry Catastrophe Loss Ratio",null,null,null,null,{"$f":"'Catastrophe Risk (old)'!E13","v":0.4}]
[null,"(iii)","(iii)","Avg Capital Factor  [ Total (3c) / (Total (1a) excl Prop CAT) ]",null,null,null,null,{"$f":"IF(I41=0,0,I49/I41)","v":0}]
[]
[null,"(c)  CATASTROPHE PREMIUM ADJUSTMENT  [ (i) / (ii) x (iii) ]",null,null,null,null,null,null,{"$f":"I53/I54*I55","v":0}]
[]
[null,"(b)  CONCENTRATION ADJUSTMENT CALCULATIONS"]
[]
[null,null,"(i)","Total Premium [ Total (1a) excl Prop CAT ]",null,null,null,null,{"$f":"G36-G11","v":0}]
[null,null,"(ii)","Concentration Adjustment (HHI Calculation)",null,null,null,null,{"$f":"IF(I61=0,0,(G12/I61)^2+(G13/I61)^2+(G14/I61)^2+(G15/I61)^2+(G16/I61)^2+(G17/I61)^2+(G18/I61)^2+(G19/I61)^2+(G20/I61)^2+(G21/I61)^2+(G22/I61)^2+(G23/I61)^2+(G24/I61)^2+(G25/I61)^2+(G26/I61)^2+(G27/I61)^2+(G28/I61)^2+(G29/I61)^2+(G30/I61)^2+(G31/I61)^2+(G32/I61)^2+(G33/I61)^2+(G34/I61)^2)","v":0}]
[null,null,"(iii)","Maximum Adjustment",null,null,null,null,0.4]
[null,null,"(iv)"," [ (ii) x (iii) ]",null,null,null,null,{"$f":"I62*I63","v":0}]
[null,null,"(v)","Minimum Adjustment Factor",null,null,null,null,{"$f":"1-I63","v":0.6}]
[]
[null,"(b)(i) CONCENTRATION ADJUSTMENT FACTOR (formula 1) [(iv) + (v)]",null,null,null,null,null,null,{"$f":"I64+I65","v":0.6}]
[]
[null,null,"(i)","Concentration Adjustment (up to 95%)",null,null,null,null,{"$f":"'Schedule IX(b)'!H51/900*95%","v":0}]
[null,null,"(ii)","Related Business % (up to 5%)",null,null,null,null,{"$f":"'Schedule IX(b)'!H55*5%","v":0}]
[null,null,"(iii)"," [ (i) + (ii) ]",null,null,null,null,{"$f":"I69+I70","v":0}]
[null,null,"(iv)","Maximum Adjustment",null,null,null,null,0.4]
[]
[null,"(b)(ii) CONCENTRATION ADJUSTMENT FACTOR (formula 2) [(iii) x (iv)]",null,null,null,null,null,null,{"$f":"I71*I72","v":0}]
[]
[null,"(c) CONCENTRATION ADJUSTMENT FACTOR [(b)(i)-(b)(ii)]",null,null,null,null,null,null,{"$f":"I67-I74","v":0.6}]
[]
[null,{"$f":"IF('Company Information'!F11=\"IIGB\",\"(d) TOTAL PREMIUM RISK [(a) x (c)]\",\"(e)  TOTAL PREMIUM RISK (AFTER CATASTROPHE PREMIUM ADJUSTMENT)   [ (c) - (d) ]\")","v":"(d) TOTAL PREMIUM RISK [(a) x (c)]"},null,null,null,null,null,null,{"$f":"IF('Company Information'!F11=\"IIGB\",IF((I76*I36)>=0,I76*I36,0),IF(I49-I57>=0,I49-I57,0))","v":0}]

{"sheet":"Premium Risk","index":127,"n_rows":59,"n_cols":20,"rows_kept":59,"cut":false,"hidden":false,"merged":[[5,2,6,2]]}
["PREMIUM RISK",null,null,null,null,null,null,null,null,null,null,null,null,{"$f":"HYPERLINK(\"#'Index'!A1\",\"Return to Index\")","v":"Return to Index"}]
[{"$f":"'Company Information'!C7","v":"Enter Company Name"}]
[{"$f":"\"Premium Risk\" & \"($\"&IF(CONFIGURATION!$B$12>1,MID(CONFIGURATION!$B$12,2,LEN(CONFIGURATION!$B$12)),\"\")&\")\"","v":"Premium Risk($000)"},null,{"$f":"'Company Information'!C3","v":"2022-12-31"}]
[]
[null,null,null,"GROSS","NET","GEO","GEO","GEO","GEO","GEO","CAPITAL","CAPITAL","CAPITAL",null,null,null,"Capital Charges for Credit Risk"]
[null,null,"STATEMENT SOURCE","EXPOSURE","EXPOSURE","DIVERSIFIED","DIVERSIFIED","DIVERSIFIED","DIVERSIFIED","DIVERSIFIED","FACTOR 1","FACTOR 2","FACTOR 3","REQUIRED",null,null,"Gross Required"]
[null,"LINE OF BUSINESS",null,"MEASURE","MEASURE","PREMIUMS","SCALAR","NET BASE EXPOSURE","NET FP (EXISTING)","NET FP (FUTURE)","NET BASE EXPOSURE","NET FP (EXISTING)","NET FP (FUTURE)","CAPITAL",null,null,"Capital "]
[]
[null,null,null,"(1)","(2)","(3)","(4)","(5)","(6)","(7)","(8)","(9)","(10)","(11)",null,null,null,null,"Scalars 2","Scalars 3"]
[]
[null,"Property Catastrophe","Schedule IVD, Line (1)",{"$f":"'Schedule IVD'!Q9","v":0},{"$f":"'Schedule IVD'!O9","v":0},{"$f":"'Geographic Diversification'!H9","v":0},{"$f":"IF(IFERROR(F11/E11,1)<0,1,IFERROR(F11/E11,1))","v":1},{"$f":"'Schedule IVD'!I9*$G11","v":0},{"$f":"'Schedule IVD'!K9*$G11","v":0},{"$f":"'Schedule IVD'!M9*$G11","v":0},0,0.115,{"$f":"+L11*T11","v":5.7500000000000002E-2},{"$f":"IF($H11<0,0,$H11*$K11)+IF($I11<0,0,$I11*$L11)+IF($J11<0,0,$J11*$M11)","v":0},null,null,{"$f":"IF(H11=E11,MAX(D11*K11,0),IF(E11=F11,IF(D11<0,0,D11*(H11/F11)*K11),IF(D11<0,0,D11*(H11/E11)*K11)))\n+IF(I11=E11,MAX(D11*L11,0),IF(E11=F11,IF(D11<0,0,D11*(I11/F11)*L11),IF(D11<0,0,D11*(I11/E11)*L11)))\n+IF(J11=E11,MAX(D11*M11,0),IF(E11=F11,IF(D11<0,0,D11*(J11/F11)*M11),IF(D11<0,0,D11*(J11/E11)*M11)))","v":0},null,0,0.5]
[null,"Property","Schedule IVD, Line (2)",{"$f":"'Schedule IVD'!Q10","v":0},{"$f":"'Schedule IVD'!O10","v":0},{"$f":"'Geographic Diversification'!H10","v":0},{"$f":"IF(IFERROR(F12/E12,1)<0,1,IFERROR(F12/E12,1))","v":1},{"$f":"'Schedule IVD'!I10*$G12","v":0},{"$f":"'Schedule IVD'!K10*$G12","v":0},{"$f":"'Schedule IVD'!M10*$G12","v":0},0.497450025355053,{"$f":"+K12*S12","v":0.12436250633876325},6.2181253169381626E-2,{"$f":"IF($H12<0,0,$H12*$K12)+IF($I12<0,0,$I12*$L12)+IF($J12<0,0,$J12*$M12)","v":0},null,null,{"$f":"IF(H12=E12,MAX(D12*K12,0),IF(E12=F12,IF(D12<0,0,D12*(H12/F12)*K12),IF(D12<0,0,D12*(H12/E12)*K12)))\n+IF(I12=E12,MAX(D12*L12,0),IF(E12=F12,IF(D12<0,0,D12*(I12/F12)*L12),IF(D12<0,0,D12*(I12/E12)*L12)))\n+IF(J12=E12,MAX(D12*M12,0),IF(E12=F12,IF(D12<0,0,D12*(J12/F12)*M12),IF(D12<0,0,D12*(J12/E12)*M12)))","v":0},null,0.25,0.5]
[null,"Property Non-Proportional","Schedule IVD, Line (3)",{"$f":"'Schedule IVD'!Q11","v":0},{"$f":"'Schedule IVD'!O11","v":0},{"$f":"'Geographic Diversification'!H11","v":0},1,{"$f":"'Schedule IVD'!I11*$G13","v":0},{"$f":"'Schedule IVD'!K11*$G13","v":0},{"$f":"'Schedule IVD'!M11*$G13","v":0},0.51625715924082105,0.12906428981020526,6.4532144905102631E-2,{"$f":"IF($H13<0,0,$H13*$K13)+IF($I13<0,0,$I13*$L13)+IF($J13<0,0,$J13*$M13)","v":0},null,null,0,null,0.25,0.5]
[null,"Personal Accident","Schedule IVD, Line (4)",{"$f":"'Schedule IVD'!Q12","v":0},{"$f":"'Schedule IVD'!O12","v":0},{"$f":"'Geographic Diversification'!H12","v":0},1,{"$f":"'Schedule IVD'!I12*$G14","v":0},{"$f":"'Schedule IVD'!K12*$G14","v":0},{"$f":"'Schedule IVD'!M12*$G14","v":0},0.34115345724240698,8.5288364310601744E-2,4.2644182155300872E-2,{"$f":"IF($H14<0,0,$H14*$K14)+IF($I14<0,0,$I14*$L14)+IF($J14<0,0,$J14*$M14)","v":0},null,null,0,null,0.25,0.5]
[null,"Personal Accident Non-Proportional","Schedule IVD, Line (5)",{"$f":"'Schedule IVD'!Q13","v":0},{"$f":"'Schedule IVD'!O13","v":0},{"$f":"'Geographic Diversification'!H13","v":0},1,{"$f":"'Schedule IVD'!I13*$G15","v":0},{"$f":"'Schedule IVD'!K13*$G15","v":0},{"$f":"'Schedule IVD'!M13*$G15","v":0},0.41221262895987398,0.12366378868796218,6.1831894343981092E-2,0,null,null,0,null,0.3,0.5]
[null,"Aviation","Schedule IVD, Line (6)",{"$f":"'Schedule IVD'!Q14","v":0},{"$f":"'Schedule IVD'!O14","v":0},{"$f":"'Geographic Diversification'!H14","v":0},1,{"$f":"'Schedule IVD'!I14*$G16","v":0},{"$f":"'Schedule IVD'!K14*$G16","v":0},{"$f":"'Schedule IVD'!M14*$G16","v":0},0.48178449435856302,0.14453534830756889,7.2267674153784447E-2,{"$f":"IF($H16<0,0,$H16*$K16)+IF($I16<0,0,$I16*$L16)+IF($J16<0,0,$J16*$M16)","v":0},null,null,0,null,0.3,0.5]
[null,"Aviation Non-Proportional","Schedule IVD, Line (7)",{"$f":"'Schedule IVD'!Q15","v":0},{"$f":"'Schedule IVD'!O15","v":0},{"$f":"'Geographic Diversification'!H15","v":0},1,{"$f":"'Schedule IVD'!I15*$G17","v":0},{"$f":"'Schedule IVD'!K15*$G17","v":0},{"$f":"'Schedule IVD'!M15*$G17","v":0},0.48201231799963601,0.14460369539989079,7.2301847699945396E-2,0,null,null,0,null,0.3,0.5]
[null,"Credit / Surety","Schedule IVD, Line (8)",{"$f":"'Schedule IVD'!Q16","v":0},{"$f":"'Schedule IVD'!O16","v":0},{"$f":"'Geographic Diversification'!H16","v":0},1,{"$f":"'Schedule IVD'!I16*$G18","v":0},{"$f":"'Schedule IVD'!K16*$G18","v":0},{"$f":"'Schedule IVD'!M16*$G18","v":0},0.39820522005250802,0.1194615660157524,5.9730783007876202E-2,0,null,null,0,null,0.3,0.5]
[null,"Credit / Surety Non-Proportional","Schedule IVD, Line (9)",{"$f":"'Schedule IVD'!Q17","v":0},{"$f":"'Schedule IVD'!O17","v":0},{"$f":"'Geographic Diversification'!H17","v":0},1,{"$f":"'Schedule IVD'!I17*$G19","v":0},{"$f":"'Schedule IVD'!K17*$G19","v":0},{"$f":"'Schedule IVD'!M17*$G19","v":0},0.45356665999464701,0.13606999799839409,6.8034998999197044E-2,0,null,null,0,null,0.3,0.5]
[null,"Energy Offshore / Marine","Schedule IVD, Line (10)",{"$f":"'Schedule IVD'!Q18","v":0},{"$f":"'Schedule IVD'!O18","v":0},{"$f":"'Geographic Diversification'!H18","v":0},1,{"$f":"'Schedule IVD'!I18*$G20","v":0},{"$f":"'Schedule IVD'!K18*$G20","v":0},{"$f":"'Schedule IVD'!M18*$G20","v":0},0.42102344656076801,0.1263070339682304,6.3153516984115199E-2,0,null,null,0,null,0.3,0.5]
[null,"Energy Offshore / Marine Non-Proportional","Schedule IVD, Line (11)",{"$f":"'Schedule IVD'!Q19","v":0},{"$f":"'Schedule IVD'!O19","v":0},{"$f":"'Geographic Diversification'!H19","v":0},1,{"$f":"'Schedule IVD'!I19*$G21","v":0},{"$f":"'Schedule IVD'!K19*$G21","v":0},{"$f":"'Schedule IVD'!M19*$G21","v":0},0.47016820069929899,0.1410504602097897,7.0525230104894851E-2,0,null,null,0,null,0.3,0.5]
[null,"US Casualty","Schedule IVD, Line (12)",{"$f":"'Schedule IVD'!Q20","v":0},{"$f":"'Schedule IVD'!O20","v":0},{"$f":"'Geographic Diversification'!H20","v":0},1,{"$f":"'Schedule IVD'!I20*$G22","v":0},{"$f":"'Schedule IVD'!K20*$G22","v":0},{"$f":"'Schedule IVD'!M20*$G22","v":0},0.50272577892886305,0.25136288946443153,0.12568144473221576,0,null,null,0,null,0.5,0.5]
[null,"US Casualty Non-Proportional","Schedule IVD, Line (13)",{"$f":"'Schedule IVD'!Q21","v":0},{"$f":"'Schedule IVD'!O21","v":0},{"$f":"'Geographic Diversification'!H21","v":0},1,{"$f":"'Schedule IVD'!I21*$G23","v":0},{"$f":"'Schedule IVD'!K21*$G23","v":0},{"$f":"'Schedule IVD'!M21*$G23","v":0},0.555814073452775,0.2779070367263875,0.13895351836319375,0,null,null,0,null,0.5,0.5]
[null,"US Professional","Schedule IVD, Line (14)",{"$f":"'Schedule IVD'!Q22","v":0},{"$f":"'Schedule IVD'!O22","v":0},{"$f":"'Geographic Diversification'!H22","v":0},1,{"$f":"'Schedule IVD'!I22*$G24","v":0},{"$f":"'Schedule IVD'!K22*$G24","v":0},{"$f":"'Schedule IVD'!M22*$G24","v":0},0.51225206482709496,0.25612603241354748,0.12806301620677374,0,null,null,0,null,0.5,0.5]
[null,"US Professional Non-Proportional","Schedule IVD, Line (15)",{"$f":"'Schedule IVD'!Q23","v":0},{"$f":"'Schedule IVD'!O23","v":0},{"$f":"'Geographic Diversification'!H23","v":0},1,{"$f":"'Schedule IVD'!I23*$G25","v":0},{"$f":"'Schedule IVD'!K23*$G25","v":0},{"$f":"'Schedule IVD'!M23*$G25","v":0},0.53805556666757803,0.26902778333378902,0.13451389166689451,0,null,null,0,null,0.5,0.5]
[null,"US Specialty","Schedule IVD, Line (16)",{"$f":"'Schedule IVD'!Q24","v":0},{"$f":"'Schedule IVD'!O24","v":0},{"$f":"'Geographic Diversification'!H24","v":0},1,{"$f":"'Schedule IVD'!I24*$G26","v":0},{"$f":"'Schedule IVD'!K24*$G26","v":0},{"$f":"'Schedule IVD'!M24*$G26","v":0},0.51436147942106603,0.25718073971053301,0.12859036985526651,0,null,null,0,null,0.5,0.5]
[null,"US Specialty Non-Proportional","Schedule IVD, Line (17)",{"$f":"'Schedule IVD'!Q25","v":0},{"$f":"'Schedule IVD'!O25","v":0},{"$f":"'Geographic Diversification'!H25","v":0},1,{"$f":"'Schedule IVD'!I25*$G27","v":0},{"$f":"'Schedule IVD'!K25*$G27","v":0},{"$f":"'Schedule IVD'!M25*$G27","v":0},0.52697789035313303,0.26348894517656651,0.13174447258828326,0,null,null,0,null,0.5,0.5]
[null,"International Motor","Schedule IVD, Line (18)",{"$f":"'Schedule IVD'!Q26","v":0},{"$f":"'Schedule IVD'!O26","v":0},{"$f":"'Geographic Diversification'!H26","v":0},1,{"$f":"'Schedule IVD'!I26*$G28","v":0},{"$f":"'Schedule IVD'!K26*$G28","v":0},{"$f":"'Schedule IVD'!M26*$G28","v":0},0.42191756117933499,0.12657526835380048,6.328763417690024E-2,0,null,null,0,null,0.3,0.5]
[null,"International Motor Non-Proportional","Schedule IVD, Line (19)",{"$f":"'Schedule IVD'!Q27","v":0},{"$f":"'Schedule IVD'!O27","v":0},{"$f":"'Geographic Diversification'!H27","v":0},1,{"$f":"'Schedule IVD'!I27*$G29","v":0},{"$f":"'Schedule IVD'!K27*$G29","v":0},{"$f":"'Schedule IVD'!M27*$G29","v":0},0.482210885429324,0.241105442714662,0.120552721357331,0,null,null,0,null,0.5,0.5]
[null,"International Casualty Non-Motor","Schedule IVD, Line (20)",{"$f":"'Schedule IVD'!Q28","v":0},{"$f":"'Schedule IVD'!O28","v":0},{"$f":"'Geographic Diversification'!H28","v":0},1,{"$f":"'Schedule IVD'!I28*$G30","v":0},{"$f":"'Schedule IVD'!K28*$G30","v":0},{"$f":"'Schedule IVD'!M28*$G30","v":0},0.50012106835589698,0.25006053417794849,0.12503026708897425,0,null,null,0,null,0.5,0.5]
[null,"International Casualty Non-Motor Non-Proportional","Schedule IVD, Line (21)",{"$f":"'Schedule IVD'!Q29","v":0},{"$f":"'Schedule IVD'!O29","v":0},{"$f":"'Geographic Diversification'!H29","v":0},1,{"$f":"'Schedule IVD'!I29*$G31","v":0},{"$f":"'Schedule IVD'!K29*$G31","v":0},{"$f":"'Schedule IVD'!M29*$G31","v":0},0.53551360019381999,0.26775680009691,0.133878400048455,0,null,null,0,null,0.5,0.5]
[null,"Retro Property","Schedule IVD, Line (22)",{"$f":"'Schedule IVD'!Q30","v":0},{"$f":"'Schedule IVD'!O30","v":0},{"$f":"'Geographic Diversification'!H30","v":0},1,{"$f":"'Schedule IVD'!I30*$G32","v":0},{"$f":"'Schedule IVD'!K30*$G32","v":0},{"$f":"'Schedule IVD'!M30*$G32","v":0},0.508030898436173,0.12700772460904325,6.3503862304521624E-2,0,null,null,0,null,0.25,0.5]
[null,"Structured / Finite Reinsurance","Schedule IVD, Line (23)",{"$f":"'Schedule IVD'!Q31","v":0},{"$f":"'Schedule IVD'!O31","v":0},{"$f":"'Geographic Diversification'!H31","v":0},1,{"$f":"'Schedule IVD'!I31*$G33","v":0},{"$f":"'Schedule IVD'!K31*$G33","v":0},{"$f":"'Schedule IVD'!M31*$G33","v":0},0.27200000000000002,6.8000000000000005E-2,3.4000000000000002E-2,0,null,null,0,null,0.25,0.5]
[null,"Health","Schedule IVD, Line (24)",{"$f":"'Schedule IVD'!Q32","v":0},{"$f":"'Schedule IVD'!O32","v":0},{"$f":"'Geographic Diversification'!H32","v":0},1,{"$f":"'Schedule IVD'!I32*$G34","v":0},{"$f":"'Schedule IVD'!K32*$G34","v":0},{"$f":"'Schedule IVD'!M32*$G34","v":0},0.15,3.7499999999999999E-2,1.8749999999999999E-2,0,null,null,0,null,0.25,0.5]
[]
[null,"(a)  TOTAL",null,{"$f":"SUM(D11:D34)","v":0},{"$f":"SUM(E11:E34)","v":0},{"$f":"SUM(F11:F34)","v":0},null,{"$f":"SUM(H11:H34)","v":0},{"$f":"SUM(I11:I34)","v":0},{"$f":"SUM(J11:J34)","v":0},null,null,null,{"$f":"SUM(N11:N35)","v":0},null,null,{"$f":"SUM(Q11:Q35)","v":0}]
[]
[null,"(b)  CORRELATION ADJUSTMENT"]
[]
[null,"(i)","Reduction in Capital Charge from Correlation Matrix",null,null,null,null,null,null,null,null,null,null,{"$f":"N36-N42","v":0},null,null,{"$f":"Q36-Q42","v":0}]
[]
[null,"(b)  CAPITAL CHARGE AFTER CORRELATION",null,null,null,null,null,null,null,null,{"$f":"SQRT(MMULT(TRANSPOSE(IF($H11:$H34<0,0,$H11:$H34*$K11:$K34)),MMULT('Correlation Matrix'!C16:Z39,IF($H11:$H34<0,0,$H11:$H34*$K11:$K34))))","v":0},null,null,{"$f":"SQRT(MMULT(TRANSPOSE(N11:N34),MMULT('Correlation Matrix'!C16:Z39,N11:N34)))","v":0},null,null,{"$f":"SQRT(MMULT(TRANSPOSE(Q11:Q34),MMULT('Correlation Matrix'!C16:Z39,Q11:Q34)))","v":0}]
[]
[null,"(c)  CATASTROPHE PREMIUM ADJUSTMENT CALCULATION"]
[]
[null,"(i)","Average Annual Loss (AAL) Excluding Property Catastrophe",null,null,null,null,null,null,null,null,null,null,{"$f":"'Catastrophe Risk'!E11","v":0},null,null,{"$f":"'Catastrophe Risk'!E11","v":0}]
[null,"(ii)","Industry Catastrophe Loss Ratio",null,null,null,null,null,null,null,null,null,null,{"$f":"'Catastrophe Risk'!E13","v":0.4},null,null,{"$f":"'Catastrophe Risk'!E13","v":0.4}]
[null,"(iii)","Avg Capital Factor  [ Total (3c) / (Total (1a) excl Prop CAT) ]",null,null,null,null,null,null,null,null,null,null,{"$f":"IF((H36-H11)=0,0,K42/(H36-H11))","v":0},null,null,{"$f":"IF((D36-D11)=0,0,Q42/(D36-D11))","v":0}]
[]
[null,"(c)  CATASTROPHE PREMIUM ADJUSTMENT  [ (i) / (ii) x (iii) ]",null,null,null,null,null,null,null,null,null,null,null,{"$f":"N46/N47*N48","v":0},null,null,{"$f":"Q46/Q47*Q48","v":0}]
[]
[null,"(i)","Concentration Adjustment (up to 95%)",null,null,null,null,null,null,null,null,null,null,{"$f":"'Schedule IX(b)'!H51/900*95%","v":0},null,null,{"$f":"'Schedule IX(b)'!H51/900*95%","v":0}]
[null,"(ii)","Related Business % (up to 5%)",null,null,null,null,null,null,null,null,null,null,{"$f":"'Schedule IX(b)'!H55*5%","v":0},null,null,{"$f":"'Schedule IX(b)'!H55*5%","v":0}]
[null,"(iii)"," [ (i) + (ii) ]",null,null,null,null,null,null,null,null,null,null,{"$f":"N52+N53","v":0},null,null,{"$f":"Q52+Q53","v":0}]
[null,"(iv)","Maximum Adjustment",null,null,null,null,null,null,null,null,null,null,0.4,null,null,0.4]
[]
[null,"(c) CONCENTRATION ADJUSTMENT FACTOR (formula 2) [(iii) x (iv)]",null,null,null,null,null,null,null,null,null,null,null,{"$f":"N54*N55","v":0},null,null,{"$f":"Q54*Q55","v":0}]
[]
[null,"(d)  TOTAL PREMIUM RISK (AFTER CATASTROPHE PREMIUM ADJUSTMENT)   [ (b) - (c) ]",null,null,null,null,null,null,null,null,null,null,null,{"$f":"IF('Company Information'!$F$11=\"IIGB\",N42-N36*N57,IF(N42-N50>=0,N42-N50,0))","v":0},null,null,{"$f":"IF('Company Information'!$F$11=\"IIGB\",Q42-Q36*Q57,IF(Q42-Q50>=0,Q42-Q50,0))","v":0}]

{"sheet":"Reserve Risk (old)","index":128,"n_rows":68,"n_cols":8,"rows_kept":68,"cut":false,"hidden":true,"merged":[[69,0,69,1],[0,7,0,8],[5,2,6,2]]}
["RESERVE RISK",null,null,null,null,null,null,{"$f":"HYPERLINK(\"#'Index'!A1\",\"Return to Index\")","v":"Return to Index"}]
[{"$f":"'Company Information'!C7","v":"Enter Company Name"}]
[{"$f":"\"Reserve Risk\"& \"($\"&IF(CONFIGURATION!$B$12>1,MID(CONFIGURATION!$B$12,2,LEN(CONFIGURATION!$B$12)),\"\")&\")\"","v":"Reserve Risk($000)"},null,{"$f":"'Company Information'!$C$3","v":"2022-12-31"},-1,-2,-3,-4,-5]
[]
[null,null,null,"GROSS LOSS &","NET LOSS &","GEO"]
[null,null,"STATEMENT SOURCE","LOSS EXPENSE","LOSS EXPENSE","DIVERSIFIED","CAPITAL","REQUIRED"]
[null,"LINE OF BUSINESS",null,"PROVISIONS","PROVISIONS","PROVISIONS","FACTOR","CAPITAL"]
[]
[null,null,null,null,null,null,null,"(3) x (4)"]
[]
[null,"Property Catastrophe","Sch III EBS, Line (1)",{"$f":"+'Schedule III'!D10","v":0},{"$f":"+'Schedule III'!F10","v":0},{"$f":"+'Geographic Diversification (old'!H40","v":0},0.46158858246802098,{"$f":"IF($F$11<0,0,$F$11*$G$11)","v":0}]
[null,"Property","Sch III EBS, Line (2)",{"$f":"+'Schedule III'!D11","v":0},{"$f":"+'Schedule III'!F11","v":0},{"$f":"+'Geographic Diversification (old'!H41","v":0},0.43844984238218698,{"$f":"IF($F$12<0,0,$F$12*$G$12)","v":0}]
[null,"Property Non-Proportional","Sch III EBS, Line (3)",{"$f":"+'Schedule III'!D12","v":0},{"$f":"+'Schedule III'!F12","v":0},{"$f":"+'Geographic Diversification (old'!H42","v":0},0.49735573879029998,{"$f":"IF($F$13<0,0,$F$13*$G$13)","v":0}]
[null,"Personal Accident","Sch III EBS, Line (4)",{"$f":"+'Schedule III'!D13","v":0},{"$f":"+'Schedule III'!F13","v":0},{"$f":"+'Geographic Diversification (old'!H43","v":0},0.29666070682155399,{"$f":"IF($F$14<0,0,$F$14*$G$14)","v":0}]
[null,"Personal Accident Non-Proportional","Sch III EBS, Line (5)",{"$f":"+'Schedule III'!D14","v":0},{"$f":"+'Schedule III'!F14","v":0},{"$f":"+'Geographic Diversification (old'!H44","v":0},0.34876523067975901,{"$f":"IF($F$15<0,0,$F$15*$G$15)","v":0}]
[null,"Aviation","Sch III EBS, Line (6)",{"$f":"+'Schedule III'!D15","v":0},{"$f":"+'Schedule III'!F15","v":0},{"$f":"+'Geographic Diversification (old'!H45","v":0},0.45952604952349801,{"$f":"IF($F$16<0,0,$F$16*$G$16)","v":0}]
[null,"Aviation Non-Proportional","Sch III EBS, Line (7)",{"$f":"+'Schedule III'!D16","v":0},{"$f":"+'Schedule III'!F16","v":0},{"$f":"+'Geographic Diversification (old'!H46","v":0},0.48255646377949901,{"$f":"IF($F$17<0,0,$F$17*$G$17)","v":0}]
[null,"Credit / Surety","Sch III EBS, Line (8)",{"$f":"+'Schedule III'!D17","v":0},{"$f":"+'Schedule III'!F17","v":0},{"$f":"+'Geographic Diversification (old'!H47","v":0},0.383682680649994,{"$f":"IF($F$18<0,0,$F$18*$G$18)","v":0}]
[null,"Credit / Surety Non-Proportional","Sch III EBS, Line (9)",{"$f":"+'Schedule III'!D18","v":0},{"$f":"+'Schedule III'!F18","v":0},{"$f":"+'Geographic Diversification (old'!H48","v":0},0.43464696624596899,{"$f":"IF($F$19<0,0,$F$19*$G$19)","v":0}]
[null,"Energy Offshore / Marine","Sch III EBS, Line (10)",{"$f":"+'Schedule III'!D19","v":0},{"$f":"+'Schedule III'!F19","v":0},{"$f":"+'Geographic Diversification (old'!H49","v":0},0.39543823911176501,{"$f":"IF($F$20<0,0,$F$20*$G$20)","v":0}]
[null,"Energy Offshore / Marine Non-Proportional","Sch III EBS, Line (11)",{"$f":"+'Schedule III'!D20","v":0},{"$f":"+'Schedule III'!F20","v":0},{"$f":"+'Geographic Diversification (old'!H50","v":0},0.43945783577556502,{"$f":"IF($F$21<0,0,$F$21*$G$21)","v":0}]
[null,"US Casualty","Sch III EBS, Line (12)",{"$f":"+'Schedule III'!D21","v":0},{"$f":"+'Schedule III'!F21","v":0},{"$f":"+'Geographic Diversification (old'!H51","v":0},0.43018098459069698,{"$f":"IF($F$22<0,0,$F$22*$G$22)","v":0}]
[null,"US Casualty Non-Proportional","Sch III EBS, Line (13)",{"$f":"+'Schedule III'!D22","v":0},{"$f":"+'Schedule III'!F22","v":0},{"$f":"+'Geographic Diversification (old'!H52","v":0},0.48842309052279498,{"$f":"IF($F$23<0,0,$F$23*$G$23)","v":0}]
[null,"US Professional","Sch III EBS, Line (14)",{"$f":"+'Schedule III'!D23","v":0},{"$f":"+'Schedule III'!F23","v":0},{"$f":"+'Geographic Diversification (old'!H53","v":0},0.462752832710698,{"$f":"IF($F$24<0,0,$F$24*$G$24)","v":0}]
[null,"US Professional Non-Proportional","Sch III EBS, Line (15)",{"$f":"+'Schedule III'!D24","v":0},{"$f":"+'Schedule III'!F24","v":0},{"$f":"+'Geographic Diversification (old'!H54","v":0},0.51484129765284703,{"$f":"IF($F$25<0,0,$F$25*$G$25)","v":0}]
[null,"US Specialty","Sch III EBS, Line (16)",{"$f":"+'Schedule III'!D25","v":0},{"$f":"+'Schedule III'!F25","v":0},{"$f":"+'Geographic Diversification (old'!H55","v":0},0.46506790223690597,{"$f":"IF($F$26<0,0,$F$26*$G$26)","v":0}]
[null,"US Specialty Non-Proportional","Sch III EBS, Line (17)",{"$f":"+'Schedule III'!D26","v":0},{"$f":"+'Schedule III'!F26","v":0},{"$f":"+'Geographic Diversification (old'!H56","v":0},0.482760284027479,{"$f":"IF($F$27<0,0,$F$27*$G$27)","v":0}]
[null,"International Motor","Sch III EBS, Line (18)",{"$f":"+'Schedule III'!D27","v":0},{"$f":"+'Schedule III'!F27","v":0},{"$f":"+'Geographic Diversification (old'!H57","v":0},0.37080464615634001,{"$f":"IF($F$28<0,0,$F$28*$G$28)","v":0}]
[null,"International Motor Non-Proportional","Sch III EBS, Line (19)",{"$f":"+'Schedule III'!D28","v":0},{"$f":"+'Schedule III'!F28","v":0},{"$f":"+'Geographic Diversification (old'!H58","v":0},0.43541657269369,{"$f":"IF($F$29<0,0,$F$29*$G$29)","v":0}]
[null,"International Casualty Non-Motor","Sch III EBS, Line (20)",{"$f":"+'Schedule III'!D29","v":0},{"$f":"+'Schedule III'!F29","v":0},{"$f":"+'Geographic Diversification (old'!H59","v":0},0.43652386132510701,{"$f":"IF($F$30<0,0,$F$30*$G$30)","v":0}]
[null,"International Casualty Non-Motor Non-Proportional","Sch III EBS, Line (21)",{"$f":"+'Schedule III'!D30","v":0},{"$f":"+'Schedule III'!F30","v":0},{"$f":"+'Geographic Diversification (old'!H60","v":0},0.49410327959272199,{"$f":"IF($F$31<0,0,$F$31*$G$31)","v":0}]
[null,"Retro Property","Sch III EBS, Line (22)",{"$f":"+'Schedule III'!D31","v":0},{"$f":"+'Schedule III'!F31","v":0},{"$f":"+'Geographic Diversification (old'!H61","v":0},0.478452065307162,{"$f":"IF($F$32<0,0,$F$32*$G$32)","v":0}]
[null,"Structured / Finite Reinsurance","Sch III EBS, Line (23)",{"$f":"+'Schedule III'!D32","v":0},{"$f":"+'Schedule III'!F32","v":0},{"$f":"+'Geographic Diversification (old'!H62","v":0},0.24099999999999999,{"$f":"IF($F$33<0,0,$F$33*$G$33)","v":0}]
[null,"Health","Sch III EBS, Line (24)",{"$f":"+'Schedule III'!D33","v":0},{"$f":"+'Schedule III'!F33","v":0},{"$f":"+'Geographic Diversification (old'!H63","v":0},0.125,{"$f":"IF($F$34<0,0,$F$34*$G$34)","v":0}]
[]
[null,"(a)  TOTAL",null,{"$f":"SUM(D11:D34)","v":0},{"$f":"SUM(E11:E34)","v":0},{"$f":"SUM(F11:F34)","v":0},null,{"$f":"SUM(H11:H35)","v":0}]
[]
[null,"(b)  CONCENTRATION ADJUSTMENT CALCULATION"]
[]
[null,"(i)","Maximum Reserve [ Maximum (1a) ]",null,null,null,null,{"$f":"MAX(F11:F34)","v":0}]
[null,"(ii)","Total Reserve [ Total (1a) ]",null,null,null,null,{"$f":"F36","v":0}]
[null,"(iii)","Maximum Reserve / Total Reserve [ (i) / (ii) ]",null,null,null,null,{"$f":"IF(H41=0,0,H40/H41)","v":0}]
[null,"(iv)","Maximum Adjustment",null,null,null,null,0.4]
[null,"(v)"," [ (iii) x (iv) ]",null,null,null,null,{"$f":"H42*H43","v":0}]
[null,"(vi)","Minimum Adjustment Factor",null,null,null,null,{"$f":"1-H43","v":0.6}]
[]
[null,"(b)  CONCENTRATION ADJUSTMENT FACTOR [ (v) + (vi) ]",null,null,null,null,null,{"$f":"H45+H44","v":0.6}]
[]
[null,"(b) CONCENTRATION ADJUSTMENT CALCULATIONS:"]
[]
[null,"(i)","Total Reserve [ Total (1a) ]",null,null,null,null,{"$f":"F36","v":0}]
[null,"(ii)","Concentration Adjustment (HHI Calculation)",null,null,null,null,{"$f":"IF(H51=0,0,(F11/H51)^2+(F12/H51)^2+(F13/H51)^2+(F14/H51)^2+(F15/H51)^2+(F16/H51)^2+(F17/H51)^2+(F18/H51)^2+(F19/H51)^2+(F20/H51)^2+(F21/H51)^2+(F22/H51)^2+(F23/H51)^2+(F24/H51)^2+(F25/H51)^2+(F26/H51)^2+(F27/H51)^2+(F28/H51)^2+(F29/H51)^2+(F30/H51)^2+(F31/H51)^2+(F32/H51)^2+(F33/H51)^2+(F34/H51)^2)","v":0}]
[null,"(iii)","Maximum Adjustment",null,null,null,null,0.4]
[null,"(iv)"," [ (ii) x (iii) ]",null,null,null,null,{"$f":"H52*H53","v":0}]
[null,"(v)","Minimum Adjustment Factor",null,null,null,null,{"$f":"1-H53","v":0.6}]
[]
[null,"(b)(i) CONCENTRATION ADJUSTMENT FACTOR (formula 1) [(iv) + (v)]",null,null,null,null,null,{"$f":"H55+H54","v":0.6}]
[]
[null,"(i)","Concentration Adjustment (up to 95%)",null,null,null,null,{"$f":"+'Premium Risk (old)'!I69","v":0}]
[null,"(ii)","Related Business % (up to 5%)",null,null,null,null,{"$f":"+'Premium Risk (old)'!I70","v":0}]
[null,"(iii)"," [ (i) + (ii) ]",null,null,null,null,{"$f":"H59+H60","v":0}]
[null,"(iv)","Maximum Adjustment",null,null,null,null,0.4]
[]
[null,"(b)(ii) CONCENTRATION ADJUSTMENT FACTOR (formula 2) [(iii) x (iv)]",null,null,null,null,null,{"$f":"H61*H62","v":0}]
[]
[null,"(c) CONCENTRATION ADJUSTMENT FACTOR [(b)(i)-(b)(ii)]",null,null,null,null,null,{"$f":"H57-H64","v":0.6}]
[]
[null,{"$f":"IF('Company Information'!F11=\"IIGB\",\"(d) TOTAL RESERVE RISK [(a) x (c)]\",\"(c)  TOTAL RESERVE RISK  [ Total (a) x (b) ]\")","v":"(d) TOTAL RESERVE RISK [(a) x (c)]"},null,null,null,null,null,{"$f":"IF('Company Information'!F11=\"IIGB\",IF(H36=0,0,H36*H66),IF(H36*H47>=0,H36*H47,0))","v":0}]

{"sheet":"Reserve Risk","index":129,"n_rows":53,"n_cols":8,"rows_kept":53,"cut":false,"hidden":false,"merged":[[0,7,0,8],[5,2,6,2],[54,0,54,1]]}
["RESERVE RISK",null,null,null,null,null,null,{"$f":"HYPERLINK(\"#'Index'!A1\",\"Return to Index\")","v":"Return to Index"}]
[{"$f":"'Company Information'!C7","v":"Enter Company Name"}]
[{"$f":"\"Reserve Risk\"& \"($\"&IF(CONFIGURATION!$B$12>1,MID(CONFIGURATION!$B$12,2,LEN(CONFIGURATION!$B$12)),\"\")&\")\"","v":"Reserve Risk($000)"},null,{"$f":"'Company Information'!$C$3","v":"2022-12-31"},-1,-2,-3,-4,-5]
[]
[null,null,null,"GROSS LOSS &","NET LOSS &","GEO"]
[null,null,"STATEMENT SOURCE","LOSS EXPENSE","LOSS EXPENSE","DIVERSIFIED","CAPITAL","REQUIRED"]
[null,"LINE OF BUSINESS",null,"PROVISIONS","PROVISIONS","PROVISIONS","FACTOR","CAPITAL"]
[]
[null,null,null,null,null,null,null,"(3) x (4)"]
[]
[null,"Property Catastrophe","Sch III, Line (1)",{"$f":"+'Schedule III'!D10","v":0},{"$f":"+'Schedule III'!F10","v":0},{"$f":"'Geographic Diversification'!H40","v":0},0.46158858246802098,{"$f":"IF($F$11<0,0,$F$11*$G$11)","v":0}]
[null,"Property","Sch III Line (2)",{"$f":"+'Schedule III'!D11","v":0},{"$f":"+'Schedule III'!F11","v":0},{"$f":"'Geographic Diversification'!H41","v":0},0.43844984238218698,{"$f":"IF($F$12<0,0,$F$12*$G$12)","v":0}]
[null,"Property Non-Proportional","Sch III, Line (3)",{"$f":"+'Schedule III'!D12","v":0},{"$f":"+'Schedule III'!F12","v":0},{"$f":"'Geographic Diversification'!H42","v":0},0.49735573879029998,{"$f":"IF($F$13<0,0,$F$13*$G$13)","v":0}]
[null,"Personal Accident","Sch III, Line (4)",{"$f":"+'Schedule III'!D13","v":0},{"$f":"+'Schedule III'!F13","v":0},{"$f":"'Geographic Diversification'!H43","v":0},0.29666070682155399,{"$f":"IF($F$14<0,0,$F$14*$G$14)","v":0}]
[null,"Personal Accident Non-Proportional","Sch III, Line (5)",{"$f":"+'Schedule III'!D14","v":0},{"$f":"+'Schedule III'!F14","v":0},{"$f":"'Geographic Diversification'!H44","v":0},0.34876523067975901,{"$f":"IF($F$15<0,0,$F$15*$G$15)","v":0}]
[null,"Aviation","Sch III, Line (6)",{"$f":"+'Schedule III'!D15","v":0},{"$f":"+'Schedule III'!F15","v":0},{"$f":"'Geographic Diversification'!H45","v":0},0.45952604952349801,{"$f":"IF($F$16<0,0,$F$16*$G$16)","v":0}]
[null,"Aviation Non-Proportional","Sch III, Line (7)",{"$f":"+'Schedule III'!D16","v":0},{"$f":"+'Schedule III'!F16","v":0},{"$f":"'Geographic Diversification'!H46","v":0},0.48255646377949901,{"$f":"IF($F$17<0,0,$F$17*$G$17)","v":0}]
[null,"Credit / Surety","Sch III, Line (8)",{"$f":"+'Schedule III'!D17","v":0},{"$f":"+'Schedule III'!F17","v":0},{"$f":"'Geographic Diversification'!H47","v":0},0.383682680649994,{"$f":"IF($F$18<0,0,$F$18*$G$18)","v":0}]
[null,"Credit / Surety Non-Proportional","Sch III, Line (9)",{"$f":"+'Schedule III'!D18","v":0},{"$f":"+'Schedule III'!F18","v":0},{"$f":"'Geographic Diversification'!H48","v":0},0.43464696624596899,{"$f":"IF($F$19<0,0,$F$19*$G$19)","v":0}]
[null,"Energy Offshore / Marine","Sch III, Line (10)",{"$f":"+'Schedule III'!D19","v":0},{"$f":"+'Schedule III'!F19","v":0},{"$f":"'Geographic Diversification'!H49","v":0},0.39543823911176501,{"$f":"IF($F$20<0,0,$F$20*$G$20)","v":0}]
[null,"Energy Offshore / Marine Non-Proportional","Sch III, Line (11)",{"$f":"+'Schedule III'!D20","v":0},{"$f":"+'Schedule III'!F20","v":0},{"$f":"'Geographic Diversification'!H50","v":0},0.43945783577556502,{"$f":"IF($F$21<0,0,$F$21*$G$21)","v":0}]
[null,"US Casualty","Sch III, Line (12)",{"$f":"+'Schedule III'!D21","v":0},{"$f":"+'Schedule III'!F21","v":0},{"$f":"'Geographic Diversification'!H51","v":0},0.43018098459069698,{"$f":"IF($F$22<0,0,$F$22*$G$22)","v":0}]
[null,"US Casualty Non-Proportional","Sch III, Line (13)",{"$f":"+'Schedule III'!D22","v":0},{"$f":"+'Schedule III'!F22","v":0},{"$f":"'Geographic Diversification'!H52","v":0},0.48842309052279498,{"$f":"IF($F$23<0,0,$F$23*$G$23)","v":0}]
[null,"US Professional","Sch III, Line (14)",{"$f":"+'Schedule III'!D23","v":0},{"$f":"+'Schedule III'!F23","v":0},{"$f":"'Geographic Diversification'!H53","v":0},0.462752832710698,{"$f":"IF($F$24<0,0,$F$24*$G$24)","v":0}]
[null,"US Professional Non-Proportional","Sch III, Line (15)",{"$f":"+'Schedule III'!D24","v":0},{"$f":"+'Schedule III'!F24","v":0},{"$f":"'Geographic Diversification'!H54","v":0},0.51484129765284703,{"$f":"IF($F$25<0,0,$F$25*$G$25)","v":0}]
[null,"US Specialty","Sch III, Line (16)",{"$f":"+'Schedule III'!D25","v":0},{"$f":"+'Schedule III'!F25","v":0},{"$f":"'Geographic Diversification'!H55","v":0},0.46506790223690597,{"$f":"IF($F$26<0,0,$F$26*$G$26)","v":0}]
[null,"US Specialty Non-Proportional","Sch III, Line (17)",{"$f":"+'Schedule III'!D26","v":0},{"$f":"+'Schedule III'!F26","v":0},{"$f":"'Geographic Diversification'!H56","v":0},0.482760284027479,{"$f":"IF($F$27<0,0,$F$27*$G$27)","v":0}]
[null,"International Motor","Sch III, Line (18)",{"$f":"+'Schedule III'!D27","v":0},{"$f":"+'Schedule III'!F27","v":0},{"$f":"'Geographic Diversification'!H57","v":0},0.37080464615634001,{"$f":"IF($F$28<0,0,$F$28*$G$28)","v":0}]
[null,"International Motor Non-Proportional","Sch III, Line (19)",{"$f":"+'Schedule III'!D28","v":0},{"$f":"+'Schedule III'!F28","v":0},{"$f":"'Geographic Diversification'!H58","v":0},0.43541657269369,{"$f":"IF($F$29<0,0,$F$29*$G$29)","v":0}]
[null,"International Casualty Non-Motor","Sch III, Line (20)",{"$f":"+'Schedule III'!D29","v":0},{"$f":"+'Schedule III'!F29","v":0},{"$f":"'Geographic Diversification'!H59","v":0},0.43652386132510701,{"$f":"IF($F$30<0,0,$F$30*$G$30)","v":0}]
[null,"International Casualty Non-Motor Non-Proportional","Sch III, Line (21)",{"$f":"+'Schedule III'!D30","v":0},{"$f":"+'Schedule III'!F30","v":0},{"$f":"'Geographic Diversification'!H60","v":0},0.49410327959272199,{"$f":"IF($F$31<0,0,$F$31*$G$31)","v":0}]
[null,"Retro Property","Sch III, Line (22)",{"$f":"+'Schedule III'!D31","v":0},{"$f":"+'Schedule III'!F31","v":0},{"$f":"'Geographic Diversification'!H61","v":0},0.478452065307162,{"$f":"IF($F$32<0,0,$F$32*$G$32)","v":0}]
[null,"Structured / Finite Reinsurance","Sch III, Line (23)",{"$f":"+'Schedule III'!D32","v":0},{"$f":"+'Schedule III'!F32","v":0},{"$f":"'Geographic Diversification'!H62","v":0},0.24099999999999999,{"$f":"IF($F$33<0,0,$F$33*$G$33)","v":0}]
[null,"Health","Sch III, Line (24)",{"$f":"+'Schedule III'!D33","v":0},{"$f":"+'Schedule III'!F33","v":0},{"$f":"'Geographic Diversification'!H63","v":0},0.125,{"$f":"IF($F$34<0,0,$F$34*$G$34)","v":0}]
[]
[null,"(a)  TOTAL",null,{"$f":"SUM(D11:D34)","v":0},{"$f":"SUM(E11:E34)","v":0},{"$f":"SUM(F11:F34)","v":0},null,{"$f":"SUM(H11:H35)","v":0}]
[]
[null,"(b)  CORRELATION ADJUSTMENT"]
[]
[null,"(i)","Reduction in Capital Charge from Correlation Matrix",null,null,null,null,{"$f":"H36-H42","v":0}]
[]
[null,"(b)  RESERVE RISK AFTER CORRELATION ADJUSTMENT",null,null,null,null,null,{"$f":"SQRT(MMULT(TRANSPOSE(H11:H34),MMULT('Correlation Matrix'!C44:Z67,H11:H34)))","v":0}]
[]
[null,"(b) CONCENTRATION ADJUSTMENT CALCULATIONS:"]
[]
[null,"(i)","Concentration Adjustment (up to 95%)",null,null,null,null,{"$f":"'Premium Risk'!N52","v":0}]
[null,"(ii)","Related Business % (up to 5%)",null,null,null,null,{"$f":"'Premium Risk'!N53","v":0}]
[null,"(iii)"," [ (i) + (ii) ]",null,null,null,null,{"$f":"H46+H47","v":0}]
[null,"(iv)","Maximum Adjustment",null,null,null,null,0.4]
[]
[null,"(b)(ii) CONCENTRATION ADJUSTMENT FACTOR (formula 2) [(iii) x (iv)]",null,null,null,null,null,{"$f":"H48*H49","v":0}]
[]
[null,{"$f":"IF('Company Information'!F4=\"IIGB\",\"(d) TOTAL RESERVE RISK [(a) x (c)]\",\"(c)  TOTAL RESERVE RISK  [ Total (a) x (b) ]\")","v":"(c)  TOTAL RESERVE RISK  [ Total (a) x (b) ]"},null,null,null,null,null,{"$f":"IF('Company Information'!$F$11=\"IIGB\",IF(H42=0,0,H42-H36*H51),IF(H42>=0,H42,0))","v":0}]

{"sheet":"Credit Risk (old)","index":130,"n_rows":39,"n_cols":6,"rows_kept":39,"cut":false,"hidden":true,"merged":[[41,0,41,1],[0,5,0,6]]}
["CREDIT RISK",null,null,null,null,{"$f":"HYPERLINK(\"#'Index'!A1\",\"Return to Index\")","v":"Return to Index"}]
[{"$f":"'Company Information'!C7","v":"Enter Company Name"}]
[{"$f":"\"Credit Risk\" & \"($\"&IF(CONFIGURATION!$B$12>1,MID(CONFIGURATION!$B$12,2,LEN(CONFIGURATION!$B$12)),\"\")&\")\"","v":"Credit Risk($000)"},null,{"$f":"'Company Information'!C3","v":"2022-12-31"},-1,-2,-3]
[]
[]
[null,"TYPE OF ",null,"RECEIVABLES/","CAPITAL","REQUIRED"]
[null,"DEBTOR","STATEMENT SOURCE","RECOVERABLES","FACTOR","CAPITAL"]
[]
[null,"(a)  Receivables from Clearing Brokers",null,null,null,"(1) x (2)"]
[]
[null,"In Course of Collection","Form 1SFS, Line (10)",{"$f":"'Form 1SFS (Consolidated)'!M66","v":0},0.05,{"$f":"IF($D$11<0,0,$D$11*$E$11)","v":0}]
[]
[null,"(a)  SUBTOTAL - ACCOUNTS AND PREMIUMS RECEIVABLE",null,{"$f":"SUM(D11:D11)","v":0},null,{"$f":"IF(SUM(F11:F11)>=0,SUM(F11:F11),0)","v":0}]
[]
[null,"(b)  All Other Receivables"]
[]
[null,"Accrued Investment Income","Form 1SFS, Line (9)",{"$f":"'Form 1SFS (Consolidated)'!M64","v":0},2.5000000000000001E-2,{"$f":"IF($D$17<0,0,$D$17*$E$17)","v":0}]
[]
[null,"(b)  SUBTOTAL - ALL OTHER RECEIVABLES",null,{"$f":"SUM(D17:D17)","v":0},null,{"$f":"IF(SUM(F17:F17)>=0,SUM(F17:F17),0)","v":0}]
[]
[null,"(c) Particulars of Reinsurance Balances By BSCR Rating",null,null,null,"Max(0, (Column (1) x Column (2) ))"]
[null,0]
[null,"BSCR Rating 0","Schedule XVIII EBS, Column E",{"$f":"'Schedule XVIII'!O87","v":0},0,{"$f":"IF(D23<0,0,D23*E23)","v":0}]
[null,"BSCR Rating 1","Schedule XVIII EBS, Column E",{"$f":"'Schedule XVIII'!O88","v":0},7.0000000000000001E-3,0]
[null,"BSCR Rating 2","Schedule XVIII EBS, Column E",{"$f":"'Schedule XVIII'!O89","v":0},1.4999999999999999E-2,0]
[null,"BSCR Rating 3","Schedule XVIII EBS, Column E",{"$f":"'Schedule XVIII'!O90","v":0},3.5000000000000003E-2,0]
[null,"BSCR Rating 4","Schedule XVIII EBS, Column E",{"$f":"'Schedule XVIII'!O91","v":0},7.0000000000000007E-2,0]
[null,"BSCR Rating 5","Schedule XVIII EBS, Column E",{"$f":"'Schedule XVIII'!O92","v":0},0.12,0]
[null,"BSCR Rating 6","Schedule XVIII EBS, Column E",{"$f":"'Schedule XVIII'!O93","v":0},0.2,0]
[null,"BSCR Rating 7","Schedule XVIII EBS, Column E",{"$f":"'Schedule XVIII'!O94","v":0},0.27,0]
[null,"BSCR Rating 8","Schedule XVIII EBS, Column E",{"$f":"'Schedule XVIII'!O95","v":0},0.35,0]
[]
[null,"Total",null,{"$f":"SUM(D23:D31)","v":0},null,{"$f":"SUM(F23:F31)","v":0}]
[]
[null,"Diversification Adjustment up to 40%","Schedule XVIII EBS, Column E",null,{"$f":"'Schedule XVIII'!O104","v":0},{"$f":"SUM(F23:F31)*-('Schedule XVIII'!O104)","v":0}]
[]
[null,"(c)  SUBTOTAL - PARTICULARS OF REINSURANCE BALANCES BY BSCR RATING",null,{"$f":"+D33","v":0},null,{"$f":"SUM(F23:F31)+F35","v":0}]
[]
[null,"(d)  TOTAL CREDIT RISK  [ (a) + (b) + (c) ]",null,{"$f":"D13+D19+D37","v":0},null,{"$f":"F13+F19+F37","v":0}]

{"sheet":"Credit Risk","index":131,"n_rows":80,"n_cols":8,"rows_kept":80,"cut":false,"hidden":false,"merged":[[0,7,0,8],[82,0,82,1]]}
["CREDIT RISK",null,null,null,null,null,null,{"$f":"HYPERLINK(\"#'Index'!A1\",\"Return to Index\")","v":"Return to Index"}]
[{"$f":"'Company Information'!C7","v":"Enter Company Name"}]
[{"$f":"\"Credit Risk\" & \"($\"&IF(CONFIGURATION!$B$12>1,MID(CONFIGURATION!$B$12,2,LEN(CONFIGURATION!$B$12)),\"\")&\")\"","v":"Credit Risk($000)"},null,null,{"$f":"'Company Information'!C3","v":"2022-12-31"},null,-1,-2,-3]
[]
[]
[null,"TYPE OF ",null,null,null,"RECEIVABLES/","CAPITAL","REQUIRED"]
[null,"DEBTOR",null,"STATEMENT SOURCE",null,"RECOVERABLES","FACTOR","CAPITAL"]
[]
[null,"(a)  Receivables from Clearing Brokers",null,null,null,null,null,"(1) x (2)"]
[]
[null,"In Course of Collection",null,"Form 1SFS, Line (10)",null,{"$f":"'Form 1SFS (Consolidated)'!M66","v":0},0.05,{"$f":"IF($F$11<0,0,$F$11*$G$11)","v":0}]
[]
[null,"(a)  SUBTOTAL - ACCOUNTS AND PREMIUMS RECEIVABLE",null,null,null,{"$f":"SUM(F11:F11)","v":0},null,{"$f":"IF(SUM(H11:H11)>=0,SUM(H11:H11),0)","v":0}]
[]
[null,"(b)  All Other Receivables"]
[]
[null,"Accrued Investment Income",null,"Form 1SFS, Line (9)",null,{"$f":"'Form 1SFS (Consolidated)'!M64","v":0},2.5000000000000001E-2,{"$f":"IF($F$17<0,0,$F$17*$G$17)","v":0}]
[null,"Balances receivable on sale of investments",null,"Form 1SFS, Line (13b)",null,{"$f":"'Form 1SFS (Consolidated)'!M77","v":0},2.5000000000000001E-2,{"$f":"IF($F$18<0,0,$F$18*$G$18)","v":0}]
[]
[null,"(b)  SUBTOTAL - ALL OTHER RECEIVABLES",null,null,null,{"$f":"SUM(F17:F18)","v":0},null,{"$f":"IF(SUM(H17:H18)>=0,SUM(H17:H18),0)","v":0}]
[]
[null,"(c)(i) Particulars of Reinsurance Balances For Current Year By BSCR Rating",null,null,null,null,null,"Max(0, (Column (1) x Column (2) ))"]
[null,0]
[null,"BSCR Rating 0",null,"Schedule XVIII, Column E",null,{"$f":"'Schedule XVIII'!O87","v":0},0,{"$f":"IF(F24<0,0,F24*G24)","v":0}]
[null,"BSCR Rating 1",null,"Schedule XVIII, Column E",null,{"$f":"'Schedule XVIII'!O88","v":0},7.0000000000000001E-3,0]
[null,"BSCR Rating 2",null,"Schedule XVIII, Column E",null,{"$f":"'Schedule XVIII'!O89","v":0},1.4999999999999999E-2,0]
[null,"BSCR Rating 3",null,"Schedule XVIII, Column E",null,{"$f":"'Schedule XVIII'!O90","v":0},3.5000000000000003E-2,0]
[null,"BSCR Rating 4",null,"Schedule XVIII, Column E",null,{"$f":"'Schedule XVIII'!O91","v":0},7.0000000000000007E-2,0]
[null,"BSCR Rating 5",null,"Schedule XVIII, Column E",null,{"$f":"'Schedule XVIII'!O92","v":0},0.12,0]
[null,"BSCR Rating 6",null,"Schedule XVIII, Column E",null,{"$f":"'Schedule XVIII'!O93","v":0},0.2,0]
[null,"BSCR Rating 7",null,"Schedule XVIII, Column E",null,{"$f":"'Schedule XVIII'!O94","v":0},0.27,0]
[null,"BSCR Rating 8",null,"Schedule XVIII, Column E",null,{"$f":"'Schedule XVIII'!O95","v":0},0.35,0]
[]
[null,"Total",null,null,null,{"$f":"SUM(F24:F32)","v":0},null,{"$f":"SUM(H24:H32)","v":0}]
[]
[null,"Diversification Adjustment up to 40%",null,"Schedule XVIII, Column E",null,null,{"$f":"'Schedule XVIII'!O104","v":0},{"$f":"SUM(H24:H32)*-('Schedule XVIII'!O104)","v":0}]
[null,0]
[null,"(c)(i)  SUBTOTAL - PARTICULARS OF REINSURANCE BALANCES BY BSCR RATING",null,null,null,{"$f":"+F34","v":0},null,{"$f":"SUM(H24:H32)+H36","v":0}]
[]
[null,"(c)(ii) Particulars of Reinsurance Balances For Future Premium By BSCR Rating"]
[null,null,null,"(A)",null,"(B)","(C) ","(A) x (B) x (C) "]
[]
[null,"Premium Risk Capital Charge (Gross)",null,{"$f":"'Premium Risk'!Q59","v":0}]
[null,"Premium Risk Capital Charge (Net)",null,{"$f":"'Premium Risk'!N59","v":0}]
[null,"Reinsurance Asset - Premium Risk",null,{"$f":"D43-D44","v":0}]
[]
[null,"BSCR Rating 0",null,{"$f":"IF($F$34<>0, $D$45*F24/$F$34, 0)","v":0},null,{"$f":"IF($D$57=0,0,D47/$D$57)","v":0},0,{"$f":"IF($D$45<0,0,$D$45*F47*G47)","v":0}]
[null,"BSCR Rating 1",null,{"$f":"IF($F$34<>0, $D$45*F25/$F$34, 0)","v":0},null,{"$f":"IF($D$57=0,0,D48/$D$57)","v":0},7.0000000000000001E-3,{"$f":"IF($D$45<0,0,$D$45*F48*G48)","v":0}]
[null,"BSCR Rating 2",null,{"$f":"IF($F$34<>0, $D$45*F26/$F$34, 0)","v":0},null,0,1.4999999999999999E-2,0]
[null,"BSCR Rating 3",null,{"$f":"IF($F$34<>0, $D$45*F27/$F$34, 0)","v":0},null,0,3.5000000000000003E-2,0]
[null,"BSCR Rating 4",null,{"$f":"IF($F$34<>0, $D$45*F28/$F$34, D45)","v":0},null,0,7.0000000000000007E-2,0]
[null,"BSCR Rating 5",null,{"$f":"IF($F$34<>0, $D$45*F29/$F$34, 0)","v":0},null,0,0.12,0]
[null,"BSCR Rating 6",null,{"$f":"IF($F$34<>0, $D$45*F30/$F$34, 0)","v":0},null,0,0.2,0]
[null,"BSCR Rating 7",null,{"$f":"IF($F$34<>0, $D$45*F31/$F$34, 0)","v":0},null,0,0.27,0]
[null,"BSCR Rating 8",null,{"$f":"IF($F$34<>0, $D$45*F32/$F$34, 0)","v":0},null,0,0.35,0]
[]
[null,"Total",null,{"$f":"SUM(D47:D55)","v":0},null,{"$f":"SUM(F47:F55)","v":0},null,{"$f":"SUM(H47:H55)","v":0}]
[]
[null,"Diversification Adjustment up to 40%",null,"Schedule XVIII, Column E",null,null,{"$f":"'Schedule XVIII'!O104","v":0},{"$f":"SUM(H47:H55)*-('Schedule XVIII'!O104)","v":0}]
[]
[null,"(c)(ii)  SUBTOTAL - PARTICULARS OF REINSURANCE BALANCES BY BSCR RATING ",null,null,null,null,null,{"$f":"SUM(H57:H59)","v":0}]
[]
[null,"(c)  SUBTOTAL - PARTICULARS OF REINSURANCE BALANCES BY BSCR RATING (MAX OF (C)(I) AND (C)(II)",null,null,null,{"$f":"MAX(F38,F61)","v":0},null,{"$f":"MAX(H38,H61)","v":0}]
[]
[null,"(d) Counterparty Default Risk for OTC Derivatives"]
[]
[null,null,"Market Value of Derivatives with Positive Market Value","Market Value of Derivatives with Negative Market Value","Market Value of Collateral, Excluding any overcollateralisation","Capital Factor","Haircut on Collateral"]
[null,"BSCR Rating 0 ",{"$f":"'Schedule IIB'!D84+'Schedule IIC'!D84+'Schedule IID'!D84+'Schedule IIE'!D84+'Schedule IIF'!D84","v":0},{"$f":"'Schedule IIB'!F84+'Schedule IIC'!F84+'Schedule IID'!F84+'Schedule IIE'!F84+'Schedule IIF'!F84","v":0},{"$f":"'Schedule IIB'!H84+'Schedule IIC'!H84+'Schedule IID'!H84+'Schedule IIE'!H84+'Schedule IIF'!H84","v":0},0,0.03,{"$f":"MAX(0,C68-(1-G68)*MIN(C68,E68))*F68","v":0}]
[null,"BSCR Rating 1",{"$f":"'Schedule IIB'!D85+'Schedule IIC'!D85+'Schedule IID'!D85+'Schedule IIE'!D85+'Schedule IIF'!D85","v":0},{"$f":"'Schedule IIB'!F85+'Schedule IIC'!F85+'Schedule IID'!F85+'Schedule IIE'!F85+'Schedule IIF'!F85","v":0},{"$f":"'Schedule IIB'!H85+'Schedule IIC'!H85+'Schedule IID'!H85+'Schedule IIE'!H85+'Schedule IIF'!H85","v":0},4.0000000000000001E-3,0.03,{"$f":"MAX(0,C69-(1-G69)*MIN(C69,E69))*F69","v":0}]
[null,"BSCR Rating 2",{"$f":"'Schedule IIB'!D86+'Schedule IIC'!D86+'Schedule IID'!D86+'Schedule IIE'!D86+'Schedule IIF'!D86","v":0},{"$f":"'Schedule IIB'!F86+'Schedule IIC'!F86+'Schedule IID'!F86+'Schedule IIE'!F86+'Schedule IIF'!F86","v":0},{"$f":"'Schedule IIB'!H86+'Schedule IIC'!H86+'Schedule IID'!H86+'Schedule IIE'!H86+'Schedule IIF'!H86","v":0},8.0000000000000002E-3,0.03,0]
[null,"BSCR Rating 3",{"$f":"'Schedule IIB'!D87+'Schedule IIC'!D87+'Schedule IID'!D87+'Schedule IIE'!D87+'Schedule IIF'!D87","v":0},{"$f":"'Schedule IIB'!F87+'Schedule IIC'!F87+'Schedule IID'!F87+'Schedule IIE'!F87+'Schedule IIF'!F87","v":0},{"$f":"'Schedule IIB'!H87+'Schedule IIC'!H87+'Schedule IID'!H87+'Schedule IIE'!H87+'Schedule IIF'!H87","v":0},1.4999999999999999E-2,0.03,0]
[null,"BSCR Rating 4",{"$f":"'Schedule IIB'!D88+'Schedule IIC'!D88+'Schedule IID'!D88+'Schedule IIE'!D88+'Schedule IIF'!D88","v":0},{"$f":"'Schedule IIB'!F88+'Schedule IIC'!F88+'Schedule IID'!F88+'Schedule IIE'!F88+'Schedule IIF'!F88","v":0},{"$f":"'Schedule IIB'!H88+'Schedule IIC'!H88+'Schedule IID'!H88+'Schedule IIE'!H88+'Schedule IIF'!H88","v":0},0.03,0.03,0]
[null,"BSCR Rating 5",{"$f":"'Schedule IIB'!D89+'Schedule IIC'!D89+'Schedule IID'!D89+'Schedule IIE'!D89+'Schedule IIF'!D89","v":0},{"$f":"'Schedule IIB'!F89+'Schedule IIC'!F89+'Schedule IID'!F89+'Schedule IIE'!F89+'Schedule IIF'!F89","v":0},{"$f":"'Schedule IIB'!H89+'Schedule IIC'!H89+'Schedule IID'!H89+'Schedule IIE'!H89+'Schedule IIF'!H89","v":0},0.08,0.03,0]
[null,"BSCR Rating 6",{"$f":"'Schedule IIB'!D90+'Schedule IIC'!D90+'Schedule IID'!D90+'Schedule IIE'!D90+'Schedule IIF'!D90","v":0},{"$f":"'Schedule IIB'!F90+'Schedule IIC'!F90+'Schedule IID'!F90+'Schedule IIE'!F90+'Schedule IIF'!F90","v":0},{"$f":"'Schedule IIB'!H90+'Schedule IIC'!H90+'Schedule IID'!H90+'Schedule IIE'!H90+'Schedule IIF'!H90","v":0},0.15,0.03,0]
[null,"BSCR Rating 7",{"$f":"'Schedule IIB'!D91+'Schedule IIC'!D91+'Schedule IID'!D91+'Schedule IIE'!D91+'Schedule IIF'!D91","v":0},{"$f":"'Schedule IIB'!F91+'Schedule IIC'!F91+'Schedule IID'!F91+'Schedule IIE'!F91+'Schedule IIF'!F91","v":0},{"$f":"'Schedule IIB'!H91+'Schedule IIC'!H91+'Schedule IID'!H91+'Schedule IIE'!H91+'Schedule IIF'!H91","v":0},0.26300000000000001,0.03,0]
[null,"BSCR Rating 8",{"$f":"'Schedule IIB'!D92+'Schedule IIC'!D92+'Schedule IID'!D92+'Schedule IIE'!D92+'Schedule IIF'!D92","v":0},{"$f":"'Schedule IIB'!F92+'Schedule IIC'!F92+'Schedule IID'!F92+'Schedule IIE'!F92+'Schedule IIF'!F92","v":0},{"$f":"'Schedule IIB'!H92+'Schedule IIC'!H92+'Schedule IID'!H92+'Schedule IIE'!H92+'Schedule IIF'!H92","v":0},0.35,0.03,0]
[]
[null,"(d)  SUBTOTAL - COUNTERPARTY DEFAULT RISK FOR OTC DERIVATIVES",null,null,null,null,null,{"$f":"SUM(H68:H76)","v":0}]
[]
[null,"(e)  TOTAL CREDIT RISK  [ (a) + (b) + (c) + (d) ]",null,null,null,{"$f":"F13+F20+F63","v":0},null,{"$f":"H13+H20+H63+H78","v":0}]

{"sheet":"Catastrophe Risk (old)","index":132,"n_rows":25,"n_cols":5,"rows_kept":25,"cut":false,"hidden":true,"merged":[[27,0,27,1],[0,4,0,5]]}
["CATASTROPHE RISK",null,null,null,{"$f":"HYPERLINK(\"#'Index'!A1\",\"Return to Index\")","v":"Return to Index"}]
[{"$f":"'Company Information'!C7","v":"Enter Company Name"}]
[{"$f":"\"Catastrophe Risk\" & \"($\"&IF(CONFIGURATION!$B$12>1,MID(CONFIGURATION!$B$12,2,LEN(CONFIGURATION!$B$12)),\"\")&\")\"","v":"Catastrophe Risk($000)"},null,{"$f":"'Company Information'!C3","v":"2022-12-31"}]
[]
[null,"DESCRIPTION","STATEMENT SOURCE",null,"VALUE"]
[]
[null,{"$f":"IF('Company Information'!F11=\"IIGB\",\"(a)  Gross Probable Maximum Loss (if property catastrophe writer)\",\"(a)  Gross Probable Maximum Loss\")","v":"(a)  Gross Probable Maximum Loss (if property catastrophe writer)"},{"$f":"IF('Company Information'!F11=\"IIGB\",\"Schedule V, Line (f)\",\"Schedule V, Line (g)\")","v":"Schedule V, Line (f)"},null,{"$f":"'Schedule V'!H16","v":0}]
[]
[null,{"$f":"IF('Company Information'!F11=\"IIGB\",\"(b)  Net Probable Maximum Loss (if property catastrophe writer)\",\"(b)  Net Probable Maximum Loss\")","v":"(b)  Net Probable Maximum Loss (if property catastrophe writer)"},{"$f":"IF('Company Information'!F11=\"IIGB\",\"Schedule V, Line (g)\",\"Schedule V, Line (h)\")","v":"Schedule V, Line (g)"},null,{"$f":"'Schedule V'!H18","v":0}]
[]
[null,"(c)  Average Annual Loss (AAL) Excluding Property Catastrophe",{"$f":"IF('Company Information'!F11=\"IIGB\",\"Schedule V, Line (h)\",\"Schedule V, Line (i)\")","v":"Schedule V, Line (h)"},null,{"$f":"'Schedule V'!H20","v":0}]
[]
[null,"(d)  Industry Catastrophe Loss Ratio",null,null,0.4]
[]
[null,{"$f":"IF('Company Information'!F11=\"IIGB\",\"(c)  Property Catastrophe Premium\",\"(e)  Property Catastrophe Premium\")","v":"(c)  Property Catastrophe Premium"},"Schedule IV, Line (1)",null,{"$f":"'Premium Risk (old)'!F11","v":0}]
[]
[null,"(f)  Total Catastrophe Premium  [ (c) / (d) + (e) ]",null,null,{"$f":"$E$11/$E$13+IF($E$15>0,$E$15,0)","v":0}]
[]
[null,{"$f":"IF('Company Information'!F11=\"IIGB\",\"(d)  Credit Risk Capital Factor\",\"(g)  Credit Risk Capital Factor\")","v":"(d)  Credit Risk Capital Factor"},null,null,0.1]
[]
[null,{"$f":"IF('Company Information'!F11=\"IIGB\",\"(e) Arrangements with Respect to Property Catastrophe Recoverables\",\"(h) Arrangements with Respect to Property Catastrophe Recoverables\")","v":"(e) Arrangements with Respect to Property Catastrophe Recoverables"},{"$f":"IF('Company Information'!F11=\"IIGB\",\"Schedule V, Line (j)(v)\",\"Schedule V, Line (k)(v)\")","v":"Schedule V, Line (j)(v)"},null,{"$f":"'Schedule V'!H29","v":0}]
[]
[null,{"$f":"IF('Company Information'!F11=\"IIGB\",\"(f)  Credit Risk Charge [ ((a - b) - (e * 0.98)) * d ]\",\"(i)  Credit Risk Charge [ ((a - b) - (h * 0.98)) * g ]\")","v":"(f)  Credit Risk Charge [ ((a - b) - (e * 0.98)) * d ]"},null,null,{"$f":"MAX(0,((E7-E9)-(E21*98%))*E19)","v":0}]
[]
[null,{"$f":"IF('Company Information'!F11=\"IIGB\",\"(g)  REQUIRED CAPITAL FOR CATASTROPHE RISK  [ (b) - (c) + (f) ]\",\"(j)  REQUIRED CAPITAL FOR CATASTROPHE RISK  [ (b) - (f) + (i) ]\")","v":"(g)  REQUIRED CAPITAL FOR CATASTROPHE RISK  [ (b) - (c) + (f) ]"},null,null,{"$f":"IF('Company Information'!F11=\"IIGB\",(IF((E9-E15)>=0,E9-E15+E23,E23)),(IF((E9-E17)>=0,E9-E17+E23,E23)))","v":0}]

{"sheet":"Catastrophe Risk","index":133,"n_rows":25,"n_cols":5,"rows_kept":25,"cut":false,"hidden":false,"merged":[[0,4,0,5],[27,0,27,1]]}
["CATASTROPHE RISK",null,null,null,{"$f":"HYPERLINK(\"#'Index'!A1\",\"Return to Index\")","v":"Return to Index"}]
[{"$f":"'Company Information'!C7","v":"Enter Company Name"}]
[{"$f":"\"Catastrophe Risk\" & \"($\"&IF(CONFIGURATION!$B$12>1,MID(CONFIGURATION!$B$12,2,LEN(CONFIGURATION!$B$12)),\"\")&\")\"","v":"Catastrophe Risk($000)"},null,{"$f":"'Company Information'!C3","v":"2022-12-31"}]
[]
[null,"DESCRIPTION","STATEMENT SOURCE",null,"VALUE"]
[]
[null,{"$f":"IF('Company Information'!F11=\"IIGB\",\"(a)  Gross Probable Maximum Loss (if property catastrophe writer)\",\"(a)  Gross Probable Maximum Loss\")","v":"(a)  Gross Probable Maximum Loss (if property catastrophe writer)"},{"$f":"IF('Company Information'!F11=\"IIGB\",\"Schedule V, Line (f)\",\"Schedule V, Line (g)\")","v":"Schedule V, Line (f)"},null,{"$f":"'Schedule V'!H16","v":0}]
[]
[null,{"$f":"IF('Company Information'!F11=\"IIGB\",\"(b)  Net Probable Maximum Loss (if property catastrophe writer)\",\"(b)  Net Probable Maximum Loss\")","v":"(b)  Net Probable Maximum Loss (if property catastrophe writer)"},{"$f":"IF('Company Information'!F11=\"IIGB\",\"Schedule V, Line (g)\",\"Schedule V, Line (h)\")","v":"Schedule V, Line (g)"},null,{"$f":"'Schedule V'!H18","v":0}]
[]
[null,"(c)  Average Annual Loss (AAL) Excluding Property Catastrophe",{"$f":"IF('Company Information'!F11=\"IIGB\",\"Schedule V, Line (h)\",\"Schedule V, Line (i)\")","v":"Schedule V, Line (h)"},null,{"$f":"'Schedule V'!H20","v":0}]
[]
[null,"(d)  Industry Catastrophe Loss Ratio",null,null,0.4]
[]
[null,{"$f":"IF('Company Information'!F11=\"IIGB\",\"(c)  Property Catastrophe Premium\",\"(e)  Property Catastrophe Premium\")","v":"(c)  Property Catastrophe Premium"},"Schedule IVD, Column C, Line (1)",null,{"$f":"IF('Schedule IVD'!G9=0,'Schedule IVD'!E9,'Schedule IVD'!G9)","v":0}]
[]
[null,"(f)  Total Catastrophe Premium  [ (c) / (d) + (e) ]",null,null,{"$f":"$E$11/$E$13+IF($E$15>0,$E$15,0)","v":0}]
[]
[null,{"$f":"IF('Company Information'!F11=\"IIGB\",\"(d)  Credit Risk Capital Factor\",\"(g)  Credit Risk Capital Factor\")","v":"(d)  Credit Risk Capital Factor"},null,null,0.1]
[]
[null,{"$f":"IF('Company Information'!F11=\"IIGB\",\"(e) Arrangements with Respect to Property Catastrophe Recoverables\",\"(h) Arrangements with Respect to Property Catastrophe Recoverables\")","v":"(e) Arrangements with Respect to Property Catastrophe Recoverables"},{"$f":"IF('Company Information'!F11=\"IIGB\",\"Schedule V, Line (j)(v)\",\"Schedule V, Line (k)(v)\")","v":"Schedule V, Line (j)(v)"},null,{"$f":"'Schedule V'!H29","v":0}]
[]
[null,{"$f":"IF('Company Information'!F11=\"IIGB\",\"(f)  Credit Risk Charge [ ((a - b) - (e * 0.98)) * d ]\",\"(i)  Credit Risk Charge [ ((a - b) - (h * 0.98)) * g ]\")","v":"(f)  Credit Risk Charge [ ((a - b) - (e * 0.98)) * d ]"},null,null,{"$f":"MAX(0,((E7-E9)-(E21*98%))*E19)","v":0}]
[]
[null,{"$f":"IF('Company Information'!F11=\"IIGB\",\"(g)  REQUIRED CAPITAL FOR CATASTROPHE RISK  [ (b) - (c) + (f) ]\",\"(j)  REQUIRED CAPITAL FOR CATASTROPHE RISK  [ (b) - (f) + (i) ]\")","v":"(g)  REQUIRED CAPITAL FOR CATASTROPHE RISK  [ (b) - (c) + (f) ]"},null,null,{"$f":"IF('Company Information'!F11=\"IIGB\",(IF((E9-E15)>=0,E9-E15+E23,E23)),(IF((E9-E17)>=0,E9-E17+E23,E23)))","v":0}]

{"sheet":"CSP (old)","index":134,"n_rows":532,"n_cols":9,"rows_kept":532,"cut":false,"hidden":true,"merged":[[2,5,3,8],[2,0,2,2],[5,1,5,8],[0,0,0,6]]}
["COMPANY SPECIFIC PARAMETERS",null,null,null,null,null,null,null,{"$f":"HYPERLINK(\"#'Index'!A1\",\"Return to Index\")","v":"Return to Index"}]
[]
[{"$f":"'Company Information'!C7","v":"Enter Company Name"},null,null,null,null,{"$f":"HYPERLINK(\"#'Attachments'!A205\",\"Details of User Capital Factor to be included in the attachments section 11.\")","v":"Details of User Capital Factor to be included in the attachments section 11."}]
["For the Year Ending ",null,{"$f":"'Company Information'!C3","v":"2022-12-31"}]
[]
[null,"To be completed only with prior approval from the Bermuda Monetary Authority"]
[]
[null,null,null,null,"STANDARD","STANDARD",null,"USER","USER"]
[null,"TYPE OF ",null,"ASSET","CAPITAL","REQUIRED",null,"CAPITAL","REQUIRED"]
[null,"FIXED INCOME INVESTMENTS","STATEMENT SOURCE","VALUE","FACTOR","CAPITAL",null,"FACTOR","CAPITAL"]
[]
[null,"(a) Corporate & Sovereign Bonds",null,"(1) ","(2)","(1) x (2)",null,"(3)","(1) x (3)"]
[]
[null,"BSCR Rating"]
[null,0,"Sch II EBS, Line (1), Column 1 and Sch IIA EBS, Line (1), Column 1",{"$f":"'Schedule II'!D12+'Schedule IIA'!D12","v":0},{"$f":"+'Fixed Income Investments (old)'!E12","v":0},{"$f":"IF(D15<0,0,D15*E15)","v":0},null,null,{"$f":"MAX(0,IF(H15=\"\",E15*D15,D15*H15))","v":0}]
[null,1,"Sch II EBS, Line (2), Column 1 and Sch IIA EBS, Line (2), Column 1",{"$f":"'Schedule II'!D13+'Schedule IIA'!D13","v":0},{"$f":"+'Fixed Income Investments (old)'!E13","v":4.0000000000000001E-3},0,null,null,{"$f":"MAX(0,IF(H16=\"\",E16*D16,D16*H16))","v":0}]
[null,2,"Sch II EBS, Line (3), Column 1 and Sch IIA EBS, Line (3), Column 1",{"$f":"'Schedule II'!D14+'Schedule IIA'!D14","v":0},{"$f":"+'Fixed Income Investments (old)'!E14","v":8.0000000000000002E-3},0,null,null,0]
[null,3,"Sch II EBS, Line (4), Column 1 and Sch IIA EBS, Line (4), Column 1",{"$f":"'Schedule II'!D15+'Schedule IIA'!D15","v":0},{"$f":"+'Fixed Income Investments (old)'!E15","v":1.4999999999999999E-2},0,null,null,0]
[null,4,"Sch II EBS, Line (5), Column 1 and Sch IIA EBS, Line (5), Column 1",{"$f":"'Schedule II'!D16+'Schedule IIA'!D16","v":0},{"$f":"+'Fixed Income Investments (old)'!E16","v":0.03},0,null,null,0]
[null,5,"Sch II EBS, Line (6), Column 1 and Sch IIA EBS, Line (6), Column 1",{"$f":"'Schedule II'!D17+'Schedule IIA'!D17","v":0},{"$f":"+'Fixed Income Investments (old)'!E17","v":0.08},0,null,null,0]
[null,6,"Sch II EBS, Line (7), Column 1 and Sch IIA EBS, Line (7), Column 1",{"$f":"'Schedule II'!D18+'Schedule IIA'!D18","v":0},{"$f":"+'Fixed Income Investments (old)'!E18","v":0.15},0,null,null,0]
[null,7,"Sch II EBS, Line (8), Column 1 and Sch IIA EBS, Line (8), Column 1",{"$f":"'Schedule II'!D19+'Schedule IIA'!D19","v":0},{"$f":"+'Fixed Income Investments (old)'!E19","v":0.26300000000000001},0,null,null,0]
[null,8,"Sch II EBS, Line (9), Column 1 and Sch IIA EBS, Line (9), Column 1",{"$f":"'Schedule II'!D20+'Schedule IIA'!D20","v":0},{"$f":"+'Fixed Income Investments (old)'!E20","v":0.35},0,null,null,0]
[]
[null,"(a)  SUBTOTAL -  CORPORATE BONDS",null,{"$f":"SUM(D15:D24)","v":0},null,{"$f":"IF(SUM(F15:F23)>=0,SUM(F15:F23),0)","v":0},null,null,{"$f":"IF(SUM(I15:I23)>=0,SUM(I15:I23),0)","v":0}]
[]
[null,"(b) Residential Mortgage-Backed Securities"]
[]
[null,"BSCR Rating"]
[null,1,"Sch II EBS, Line (2), Column 3 and Sch IIA EBS, Line (2), Column 3",{"$f":"'Schedule II'!H13+'Schedule IIA'!H13","v":0},{"$f":"+'Fixed Income Investments (old)'!E27","v":6.0000000000000001E-3},{"$f":"IF(D30<0,0,D30*E30)","v":0},null,null,{"$f":"MAX(0,IF(H30=\"\",E30*D30,D30*H30))","v":0}]
[null,2,"Sch II EBS, Line (3), Column 3 and Sch IIA EBS, Line (3), Column 3",{"$f":"'Schedule II'!H14+'Schedule IIA'!H14","v":0},{"$f":"+'Fixed Income Investments (old)'!E28","v":1.2E-2},0,null,null,0]
[null,3,"Sch II EBS, Line (4), Column 3 and Sch IIA EBS, Line (4), Column 3",{"$f":"'Schedule II'!H15+'Schedule IIA'!H15","v":0},{"$f":"+'Fixed Income Investments (old)'!E29","v":0.02},0,null,null,0]
[null,4,"Sch II EBS, Line (5), Column 3 and Sch IIA EBS, Line (5), Column 3",{"$f":"'Schedule II'!H16+'Schedule IIA'!H16","v":0},{"$f":"+'Fixed Income Investments (old)'!E30","v":0.04},0,null,null,0]
[null,5,"Sch II EBS, Line (6), Column 3 and Sch IIA EBS, Line (6), Column 3",{"$f":"'Schedule II'!H17+'Schedule IIA'!H17","v":0},{"$f":"+'Fixed Income Investments (old)'!E31","v":0.11},0,null,null,0]
[null,6,"Sch II EBS, Line (7), Column 3 and Sch IIA EBS, Line (7), Column 3",{"$f":"'Schedule II'!H18+'Schedule IIA'!H18","v":0},{"$f":"+'Fixed Income Investments (old)'!E32","v":0.25},0,null,null,0]
[null,7,"Sch II EBS, Line (8), Column 3 and Sch IIA EBS, Line (8), Column 3",{"$f":"'Schedule II'!H19+'Schedule IIA'!H19","v":0},{"$f":"+'Fixed Income Investments (old)'!E33","v":0.35},0,null,null,0]
[null,8,"Sch II EBS, Line (9), Column 3 and Sch IIA EBS, Line (9), Column 3",{"$f":"'Schedule II'!H20+'Schedule IIA'!H20","v":0},{"$f":"+'Fixed Income Investments (old)'!E34","v":0.35},0,null,null,0]
[]
[null,"(b)  SUBTOTAL - RESIDENTIAL MORTGAGE-BACKED SECURITIES",null,{"$f":"SUM(D29:D38)","v":0},null,{"$f":"IF(SUM(F29:F37)>=0,SUM(F29:F37),0)","v":0},null,null,{"$f":"IF(SUM(I29:I37)>=0,SUM(I29:I37),0)","v":0}]
[]
[null,"(c) Commercial Mortgage-Backed Securities / Asset-Backed Securities"]
[]
[null,"BSCR Rating"]
[null,1,"Sch II EBS, Line (2), Column 5 and Sch IIA EBS, Line (2), Column 5",{"$f":"'Schedule II'!L13+'Schedule IIA'!L13","v":0},{"$f":"+'Fixed Income Investments (old)'!E41","v":5.0000000000000001E-3},{"$f":"IF(D44<0,0,D44*E44)","v":0},null,null,{"$f":"MAX(0,IF(H44=\"\",E44*D44,D44*H44))","v":0}]
[null,2,"Sch II EBS, Line (3), Column 5 and Sch IIA EBS, Line (3), Column 5",{"$f":"'Schedule II'!L14+'Schedule IIA'!L14","v":0},{"$f":"+'Fixed Income Investments (old)'!E42","v":0.01},0,null,null,0]
[null,3,"Sch II EBS, Line (4), Column 5 and Sch IIA EBS, Line (4), Column 5",{"$f":"'Schedule II'!L15+'Schedule IIA'!L15","v":0},{"$f":"+'Fixed Income Investments (old)'!E43","v":1.7999999999999999E-2},0,null,null,0]
[null,4,"Sch II EBS, Line (5), Column 5 and Sch IIA EBS, Line (5), Column 5",{"$f":"'Schedule II'!L16+'Schedule IIA'!L16","v":0},{"$f":"+'Fixed Income Investments (old)'!E44","v":3.5000000000000003E-2},0,null,null,0]
[null,5,"Sch II EBS, Line (6), Column 5 and Sch IIA EBS, Line (6), Column 5",{"$f":"'Schedule II'!L17+'Schedule IIA'!L17","v":0},{"$f":"+'Fixed Income Investments (old)'!E45","v":0.1},0,null,null,0]
[null,6,"Sch II EBS, Line (7), Column 5 and Sch IIA EBS, Line (7), Column 5",{"$f":"'Schedule II'!L18+'Schedule IIA'!L18","v":0},{"$f":"+'Fixed Income Investments (old)'!E46","v":0.2},0,null,null,0]
[null,7,"Sch II EBS, Line (8), Column 5 and Sch IIA EBS, Line (8), Column 5",{"$f":"'Schedule II'!L19+'Schedule IIA'!L19","v":0},{"$f":"+'Fixed Income Investments (old)'!E47","v":0.3},0,null,null,0]
[null,8,"Sch II EBS, Line (9), Column 5 and Sch IIA EBS, Line (9), Column 5",{"$f":"'Schedule II'!L20+'Schedule IIA'!L20","v":0},{"$f":"+'Fixed Income Investments (old)'!E48","v":0.35},0,null,null,0]
[]
[null,"(c)  SUBTOTAL - COMMERCIAL MORTGAGE-BACKED SECURITIES / ASSET-BACKED SECURITIES",null,{"$f":"SUM(D43:D52)","v":0},null,{"$f":"IF(SUM(F43:F51)>=0,SUM(F43:F51),0)","v":0},null,null,{"$f":"IF(SUM(I43:I51)>=0,SUM(I43:I51),0)","v":0}]
[]
[null,"(d) Bond Mutual Funds"]
[]
[null,"BSCR Rating"]
[null,0,"Sch II EBS, Line (1), Column 7 and Sch IIA EBS, Line (1), Column 7",{"$f":"'Schedule II'!P12+'Schedule IIA'!P12","v":0},{"$f":"+'Fixed Income Investments (old)'!E56","v":0},{"$f":"IF(D58<0,0,D58*E58)","v":0},null,null,{"$f":"MAX(0,IF(H58=\"\",E58*D58,D58*H58))","v":0}]
[null,1,"Sch II EBS, Line (2), Column 7 and Sch IIA EBS, Line (2), Column 7",{"$f":"'Schedule II'!P13+'Schedule IIA'!P13","v":0},{"$f":"+'Fixed Income Investments (old)'!E57","v":4.0000000000000001E-3},0,null,null,0]
[null,2,"Sch II EBS, Line (3), Column 7 and Sch IIA EBS, Line (3), Column 7",{"$f":"'Schedule II'!P14+'Schedule IIA'!P14","v":0},{"$f":"+'Fixed Income Investments (old)'!E58","v":8.0000000000000002E-3},0,null,null,0]
[null,3,"Sch II EBS, Line (4), Column 7 and Sch IIA EBS, Line (4), Column 7",{"$f":"'Schedule II'!P15+'Schedule IIA'!P15","v":0},{"$f":"+'Fixed Income Investments (old)'!E59","v":1.4999999999999999E-2},0,null,null,0]
[null,4,"Sch II EBS, Line (5), Column 7 and Sch IIA EBS, Line (5), Column 7",{"$f":"'Schedule II'!P16+'Schedule IIA'!P16","v":0},{"$f":"+'Fixed Income Investments (old)'!E60","v":0.03},0,null,null,0]
[null,5,"Sch II EBS, Line (6), Column 7 and Sch IIA EBS, Line (6), Column 7",{"$f":"'Schedule II'!P17+'Schedule IIA'!P17","v":0},{"$f":"+'Fixed Income Investments (old)'!E61","v":0.08},0,null,null,0]
[null,6,"Sch II EBS, Line (7), Column 7 and Sch IIA EBS, Line (7), Column 7",{"$f":"'Schedule II'!P18+'Schedule IIA'!P18","v":0},{"$f":"+'Fixed Income Investments (old)'!E62","v":0.15},0,null,null,0]
[null,7,"Sch II EBS, Line (8), Column 7 and Sch IIA EBS, Line (8), Column 7",{"$f":"'Schedule II'!P19+'Schedule IIA'!P19","v":0},{"$f":"+'Fixed Income Investments (old)'!E63","v":0.26300000000000001},0,null,null,0]
[null,8,"Sch II EBS, Line (9), Column 7 and Sch IIA EBS, Line (9), Column 7",{"$f":"'Schedule II'!P20+'Schedule IIA'!P20","v":0},{"$f":"+'Fixed Income Investments (old)'!E64","v":0.35},0,null,null,0]
[]
[null,"(d)  SUBTOTAL - BOND MUTUAL FUNDS",null,{"$f":"SUM(D58:D67)","v":0},null,{"$f":"IF(SUM(F58:F66)>=0,SUM(F58:F66),0)","v":0},null,null,{"$f":"IF(SUM(I58:I66)>=0,SUM(I58:I66),0)","v":0}]
[]
[null,"(e) Mortgage Loans"]
[]
[null,"Insured/Guaranteed Mortgages","Sch II EBS, Line (22), Column 1 and Sch IIA EBS, Line (22), Column 1",{"$f":"'Schedule II'!D57+'Schedule IIA'!D57","v":0},{"$f":"+'Fixed Income Investments (old)'!E70","v":3.0000000000000001E-3},{"$f":"IF(D72<0,0,D72*E72)","v":0},null,null,{"$f":"MAX(0,IF(H72=\"\",E72*D72,D72*H72))","v":0}]
[null,"Other Commercial and Farm Mortgages","Sch II EBS, Line (23), Column 1 and Sch IIA EBS, Line (23), Column 1 ",{"$f":"'Schedule II'!D58+'Schedule IIA'!D58","v":0},{"$f":"+'Fixed Income Investments (old)'!E71","v":0.05},{"$f":"IF(D73<0,0,D73*E73)","v":0},null,null,{"$f":"MAX(0,IF(H73=\"\",E73*D73,D73*H73))","v":0}]
[null,"Other Residential Mortgages","Sch II EBS, Line (24), Column 1 and Sch IIA EBS, Line (24), Column 1",{"$f":"'Schedule II'!D59+'Schedule IIA'!D59","v":0},{"$f":"+'Fixed Income Investments (old)'!E72","v":1.4999999999999999E-2},{"$f":"IF(D74<0,0,D74*E74)","v":0},null,null,{"$f":"MAX(0,IF(H74=\"\",E74*D74,D74*H74))","v":0}]
[null,"Mortgages Not In Good Standing","Sch II EBS, Line (25), Column 1 and Sch IIA EBS, Line (25), Column 1",{"$f":"'Schedule II'!D60+'Schedule IIA'!D60","v":0},{"$f":"+'Fixed Income Investments (old)'!E73","v":0.25},{"$f":"IF(D75<0,0,D75*E75)","v":0},null,null,{"$f":"MAX(0,IF(H75=\"\",E75*D75,D75*H75))","v":0}]
[]
[null,"(e)  SUBTOTAL - MORTGAGE LOANS",null,{"$f":"SUM(D72:D76)","v":0},null,{"$f":"IF(SUM(F72:F75)>=0,SUM(F72:F75),0)","v":0},null,null,{"$f":"IF(SUM(I72:I75)>=0,SUM(I72:I75),0)","v":0}]
[]
[null,"(f) Other Fixed Income Investments"]
[]
[null,"Other Loans","Form 1SFS, Line (8)",{"$f":"'Form 1SFS (Consolidated)'!M62","v":0},{"$f":"+'Fixed Income Investments (old)'!E79","v":0.05},{"$f":"IF(D81<0,0,D81*E81)","v":0},null,null,{"$f":"MAX(0,IF(H81=\"\",E81*D81,D81*H81))","v":0}]
[]
[null,"Cash and Cash Equivalent Counterparty Balances By BSCR Rating"]
[]
[null,"BSCR Rating 0 ","Schedule XIX, Column B",{"$f":"+'Schedule XIX'!H81","v":0},{"$f":"+'Fixed Income Investments (old)'!E83","v":0},{"$f":"IF(D85<0,0,D85*E85)","v":0},null,null,{"$f":"MAX(0,IF(H85=\"\",E85*D85,D85*H85))","v":0}]
[null,"BSCR Rating 1","Schedule XIX, Column B",{"$f":"+'Schedule XIX'!H82","v":0},{"$f":"+'Fixed Income Investments (old)'!E84","v":1E-3},{"$f":"IF(D86<0,0,D86*E86)","v":0},null,null,{"$f":"MAX(0,IF(H86=\"\",E86*D86,D86*H86))","v":0}]
[null,"BSCR Rating 2","Schedule XIX, Column B",{"$f":"+'Schedule XIX'!H83","v":0},{"$f":"+'Fixed Income Investments (old)'!E85","v":2E-3},0,null,null,0]
[null,"BSCR Rating 3","Schedule XIX, Column B",{"$f":"+'Schedule XIX'!H84","v":0},{"$f":"+'Fixed Income Investments (old)'!E86","v":3.0000000000000001E-3},0,null,null,0]
[null,"BSCR Rating 4","Schedule XIX, Column B",{"$f":"+'Schedule XIX'!H85","v":0},{"$f":"+'Fixed Income Investments (old)'!E87","v":5.0000000000000001E-3},0,null,null,0]
[null,"BSCR Rating 5","Schedule XIX, Column B",{"$f":"+'Schedule XIX'!H86","v":0},{"$f":"+'Fixed Income Investments (old)'!E88","v":1.4999999999999999E-2},0,null,null,0]
[null,"BSCR Rating 6","Schedule XIX, Column B",{"$f":"+'Schedule XIX'!H87","v":0},{"$f":"+'Fixed Income Investments (old)'!E89","v":0.04},0,null,null,0]
[null,"BSCR Rating 7","Schedule XIX, Column B",{"$f":"+'Schedule XIX'!H88","v":0},{"$f":"+'Fixed Income Investments (old)'!E90","v":0.06},0,null,null,0]
[null,"BSCR Rating 8","Schedule XIX, Column B",{"$f":"+'Schedule XIX'!H89","v":0},{"$f":"+'Fixed Income Investments (old)'!E91","v":0.09},0,null,null,0]
[]
[null,"Total",null,{"$f":"SUM(D85:D94)","v":0},null,{"$f":"SUM(F85:F94)","v":0},null,null,{"$f":"SUM(I85:I94)","v":0}]
[]
[null,"Diversification Adj at 40%","Schedule XIX, Column B",null,null,{"$f":"SUM(F85:F93)*-(+'Schedule XIX'!H98)","v":0},null,null,{"$f":"SUM(I85:I93)*-(+'Schedule XIX'!H98)","v":0}]
[]
[null,"(f)  SUBTOTAL - OTHER FIXED INCOME SECURITIES",null,{"$f":"D81+D95","v":0},null,{"$f":"IF(SUM(F81,F95,F97)>=0,SUM(F81,F95,F97),0)","v":0},null,null,{"$f":"IF(SUM(I81,I95,I97)>=0,SUM(I81,I95,I97),0)","v":0}]
[]
[null,"(g)  TOTAL FIXED INCOME INVESTMENTS [ (a)+(b)+(c)+(d)+(e)+(f) ]",null,{"$f":"D25+D39+D53+D68+D77+D99","v":0},null,{"$f":"IF(SUM(F25+F39+F53+F68+F77+F99)>=0,SUM(F25+F39+F53+F68+F77+F99),0)","v":0},null,null,{"$f":"IF(SUM(I25+I39+I53+I68+I77+I99)>=0,SUM(I25+I39+I53+I68+I77+I99),0)","v":0}]
[]
[null,null,null,null,"STANDARD","STANDARD",null,"USER","USER"]
[null,"TYPE OF ",null,"ASSET","CAPITAL","REQUIRED",null,"CAPITAL","REQUIRED"]
[null,"EQUITY INVESTMENTS","STATEMENT SOURCE","VALUE","FACTOR","CAPITAL",null,"FACTOR","CAPITAL"]
[]
[null,"(a)  Common Stocks",null,"(1) ","(2)","(1) x (2)",null,"(3)","(1) x (3)"]
[]
[null,"Non-Affiliated (Quoted)","Sch II EBS, Line (19), Column (1) and Sch IIA EBS, Line (19), Column (1)",{"$f":"'Schedule II'!D41+'Schedule IIA'!D41","v":0},{"$f":"+'Equity Investments (old)'!E11","v":0.14399999999999999},{"$f":"IF(D109<0,0,D109*E109)","v":0},null,null,{"$f":"MAX(0,IF(H109=\"\",E109*D109,D109*H109))","v":0}]
[null,"Non-Affiliated (Unquoted)","Sch II EBS, Line (20), Column (1) and Sch IIA EBS, Line (20), Column (1)",{"$f":"'Schedule II'!D42+'Schedule IIA'!D42","v":0},{"$f":"+'Equity Investments (old)'!E12","v":0.14399999999999999},{"$f":"IF(D110<0,0,D110*E110)","v":0},null,null,{"$f":"MAX(0,IF(H110=\"\",E110*D110,D110*H110))","v":0}]
[null,"Equity Mutual Funds","Sch II EBS, Line (21), Column (5) and Sch IIA EBS, Line (21), Column (5)",{"$f":"+'Schedule II'!L44+'Schedule IIA'!L44","v":0},{"$f":"+'Equity Investments (old)'!E13","v":0.14399999999999999},{"$f":"IF(D111<0,0,D111*E111)","v":0},null,null,{"$f":"MAX(0,IF(H111=\"\",E111*D111,D111*H111))","v":0}]
[]
[null,"(a)  SUBTOTAL - COMMON STOCKS",null,{"$f":"SUM(D109:D111)","v":0},null,{"$f":"IF(SUM(F109:F111)>=0,SUM(F109:F111),0)","v":0},null,null,{"$f":"IF(SUM(I109:I111)>=0,SUM(I109:I111),0)","v":0}]
[]
[null,"(b)  Preferred Stocks"]
[]
[null,"BSCR Rating"]
[null,1,"Sch II EBS, Line (11), Column (3) and Sch IIA EBS, Line (11), Column (3)",{"$f":"'Schedule II'!H33+'Schedule IIA'!H33","v":0},{"$f":"+'Equity Investments (old)'!E20","v":6.0000000000000001E-3},{"$f":"IF(D118<0,0,D118*E118)","v":0},null,null,{"$f":"MAX(0,IF(H118=\"\",E118*D118,D118*H118))","v":0}]
[null,2,"Sch II EBS, Line (12), Column (3) and Sch IIA EBS, Line (12), Column (3)",{"$f":"'Schedule II'!H34+'Schedule IIA'!H34","v":0},{"$f":"+'Equity Investments (old)'!E21","v":1.2E-2},0,null,null,0]
[null,3,"Sch II EBS, Line (13), Column (3) and Sch IIA EBS, Line (13), Column (3)",{"$f":"'Schedule II'!H35+'Schedule IIA'!H35","v":0},{"$f":"+'Equity Investments (old)'!E22","v":0.02},0,null,null,0]
[null,4,"Sch II EBS, Line (14), Column (3) and Sch IIA EBS, Line (14), Column (3)",{"$f":"'Schedule II'!H36+'Schedule IIA'!H36","v":0},{"$f":"+'Equity Investments (old)'!E23","v":0.04},0,null,null,0]
[null,5,"Sch II EBS, Line (15), Column (3) and Sch IIA EBS, Line (15), Column (3)",{"$f":"'Schedule II'!H37+'Schedule IIA'!H37","v":0},{"$f":"+'Equity Investments (old)'!E24","v":0.11},0,null,null,0]
[null,6,"Sch II EBS, Line (16), Column (3) and Sch IIA EBS, Line (16), Column (3)",{"$f":"'Schedule II'!H38+'Schedule IIA'!H38","v":0},{"$f":"+'Equity Investments (old)'!E25","v":0.25},0,null,null,0]
[null,7,"Sch II EBS, Line (17), Column (3) and Sch IIA EBS, Line (17), Column (3)",{"$f":"'Schedule II'!H39+'Schedule IIA'!H39","v":0},{"$f":"+'Equity Investments (old)'!E26","v":0.35},0,null,null,0]
[null,8,"Sch II EBS, Line (18), Column (3) and Sch IIA EBS, Line (18), Column (3)",{"$f":"'Schedule II'!H40+'Schedule IIA'!H40","v":0},{"$f":"+'Equity Investments (old)'!E27","v":0.35},0,null,null,0]
[]
[null,"(b)  SUBTOTAL - PREFERRED STOCKS",null,{"$f":"SUM(D117:D125)","v":0},null,{"$f":"IF(SUM(F117:F125)>=0,SUM(F117:F125),0)","v":0},null,null,{"$f":"IF(SUM(I117:I125)>=0,SUM(I117:I125),0)","v":0}]
[]
[null,"(c)  Other Equity Investments"]
[]
[null,"Real Estate","Form 1SFS, Lines (7)",{"$f":"'Form 1SFS (Consolidated)'!M57","v":0},{"$f":"+'Equity Investments (old)'!E33","v":0.1},{"$f":"IF(D131<0,0,D131*E131)","v":0},null,null,{"$f":"MAX(0,IF(H131=\"\",E131*D131,D131*H131))","v":0}]
[null,"Other Equity Investments","Form 1SFS, Lines (2e), (3e) & Sch IIA EBS, Line 21, Column (7)",{"$f":"'Form 1SFS (Consolidated)'!M28+'Form 1SFS (Consolidated)'!M45+'Schedule IIA'!P44","v":0},{"$f":"+'Equity Investments (old)'!E34","v":0.2},{"$f":"IF(D132<0,0,D132*E132)","v":0},null,null,{"$f":"MAX(0,IF(H132=\"\",E132*D132,D132*H132))","v":0}]
[null,"Other Tangible Assets ","Form 1SFS, Lines (13h) and (14d)",{"$f":"'Form 1SFS (Consolidated)'!M83+'Form 1SFS (Consolidated)'!M89","v":0},{"$f":"+'Equity Investments (old)'!E35","v":0.2},{"$f":"IF(D133<0,0,D133*E133)","v":0},null,null,{"$f":"MAX(0,IF(H133=\"\",E133*D133,D133*H133))","v":0}]
[]
[null,"(c)  SUBTOTAL - OTHER EQUITY INVESTMENTS",null,{"$f":"SUM(D131:D133)","v":0},null,{"$f":"IF(SUM(F131:F133)>=0,SUM(F131:F133),0)","v":0},null,null,{"$f":"IF(SUM(I131:I133)>=0,SUM(I131:I133),0)","v":0}]
[]
[null,"(d)  Investments in Affiliates",null,{"$f":"'Form 1SFS (Consolidated)'!M48","v":0},{"$f":"+'Equity Investments (old)'!E39","v":0.05},{"$f":"IF(D137<0,0,D137*E137)","v":0},null,null,{"$f":"MAX(0,IF(H137=\"\",E137*D137,D137*H137))","v":0}]
[]
[null,"(d)  SUBTOTAL - INVESTMENTS IN AFFILIATES",null,{"$f":"SUM(D137:D137)","v":0},null,{"$f":"IF(SUM(F137:F137)>=0,SUM(F137:F137),0)","v":0},null,null,{"$f":"IF(SUM(I137:I137)>=0,SUM(I137:I137),0)","v":0}]
[]
[null,"(e)  TOTAL EQUITY INVESTMENTS [ (a) + (b) + (c) + (d) ]",null,{"$f":"D113+D127+D135+D139","v":0},null,{"$f":"IF(SUM(F113,F127,F135,F139)>=0,SUM(F113,F127,F135,F139),0)","v":0},null,null,{"$f":"IF(SUM(I113,I127,I135,I139)>=0,SUM(I113,I127,I135,I139),0)","v":0}]
[]
[null,null,null,null,"STANDARD","STANDARD",null,"USER","USER"]
[null,null,null,null,"CAPITAL","REQUIRED",null,"CAPITAL","REQUIRED"]
[null,"CURRENCY RISK","ASSETS","LIABILITIES","FACTOR","CAPITAL",null,"FACTOR","CAPITAL"]
[]
[null,"US Dollar",{"$f":"IF('Currency Risk (old)'!D9=0,'Currency Risk (old)'!C9,'Currency Risk (old)'!D9)","v":0},{"$f":"IF('Currency Risk (old)'!D9=0,'Currency Risk (old)'!E9,'Currency Risk (old)'!F9)","v":0},{"$f":"'Currency Risk (old)'!H9","v":0},{"$f":"'Currency Risk (old)'!I9","v":0},null,null,{"$f":"IF(H147=\"\",F147,H147*ABS(D147-C147))","v":0}]
[null,"Euro",{"$f":"IF('Currency Risk (old)'!D10=0,'Currency Risk (old)'!C10,'Currency Risk (old)'!D10)","v":0},{"$f":"IF('Currency Risk (old)'!D10=0,'Currency Risk (old)'!E10,'Currency Risk (old)'!F10)","v":0},{"$f":"'Currency Risk (old)'!H10","v":0.25},{"$f":"'Currency Risk (old)'!I10","v":0},null,null,{"$f":"IF(H148=\"\",F148,H148*ABS(D148-C148))","v":0}]
[null,"GBP",{"$f":"IF('Currency Risk (old)'!D11=0,'Currency Risk (old)'!C11,'Currency Risk (old)'!D11)","v":0},{"$f":"IF('Currency Risk (old)'!D11=0,'Currency Risk (old)'!E11,'Currency Risk (old)'!F11)","v":0},{"$f":"'Currency Risk (old)'!H11","v":0.25},{"$f":"'Currency Risk (old)'!I11","v":0},null,null,0]
[null,"CAD$",{"$f":"IF('Currency Risk (old)'!D12=0,'Currency Risk (old)'!C12,'Currency Risk (old)'!D12)","v":0},{"$f":"IF('Currency Risk (old)'!D12=0,'Currency Risk (old)'!E12,'Currency Risk (old)'!F12)","v":0},{"$f":"'Currency Risk (old)'!H12","v":0.25},{"$f":"'Currency Risk (old)'!I12","v":0},null,null,0]
[null,"YEN",{"$f":"IF('Currency Risk (old)'!D13=0,'Currency Risk (old)'!C13,'Currency Risk (old)'!D13)","v":0},{"$f":"IF('Currency Risk (old)'!D13=0,'Currency Risk (old)'!E13,'Currency Risk (old)'!F13)","v":0},{"$f":"'Currency Risk (old)'!H13","v":0.25},{"$f":"'Currency Risk (old)'!I13","v":0},null,null,0]
[null,"Other currency 1",{"$f":"IF('Currency Risk (old)'!D14=0,'Currency Risk (old)'!C14,'Currency Risk (old)'!D14)","v":0},{"$f":"IF('Currency Risk (old)'!D14=0,'Currency Risk (old)'!E14,'Currency Risk (old)'!F14)","v":0},{"$f":"'Currency Risk (old)'!H14","v":0.25},{"$f":"'Currency Risk (old)'!I14","v":0},null,null,0]
[null,"Other currency 2",{"$f":"IF('Currency Risk (old)'!D15=0,'Currency Risk (old)'!C15,'Currency Risk (old)'!D15)","v":0},{"$f":"IF('Currency Risk (old)'!D15=0,'Currency Risk (old)'!E15,'Currency Risk (old)'!F15)","v":0},{"$f":"'Currency Risk (old)'!H15","v":0.25},{"$f":"'Currency Risk (old)'!I15","v":0},null,null,0]
[null,"Other currency 3",{"$f":"IF('Currency Risk (old)'!D16=0,'Currency Risk (old)'!C16,'Currency Risk (old)'!D16)","v":0},{"$f":"IF('Currency Risk (old)'!D16=0,'Currency Risk (old)'!E16,'Currency Risk (old)'!F16)","v":0},{"$f":"'Currency Risk (old)'!H16","v":0.25},{"$f":"'Currency Risk (old)'!I16","v":0},null,null,0]
[null,"Other currency 4",{"$f":"IF('Currency Risk (old)'!D17=0,'Currency Risk (old)'!C17,'Currency Risk (old)'!D17)","v":0},{"$f":"IF('Currency Risk (old)'!D17=0,'Currency Risk (old)'!E17,'Currency Risk (old)'!F17)","v":0},{"$f":"'Currency Risk (old)'!H17","v":0.25},{"$f":"'Currency Risk (old)'!I17","v":0},null,null,0]
[null,"Other currency 5",{"$f":"IF('Currency Risk (old)'!D18=0,'Currency Risk (old)'!C18,'Currency Risk (old)'!D18)","v":0},{"$f":"IF('Currency Risk (old)'!D18=0,'Currency Risk (old)'!E18,'Currency Risk (old)'!F18)","v":0},{"$f":"'Currency Risk (old)'!H18","v":0.25},{"$f":"'Currency Risk (old)'!I18","v":0},null,null,0]
[null,"Other currency 6",{"$f":"IF('Currency Risk (old)'!D19=0,'Currency Risk (old)'!C19,'Currency Risk (old)'!D19)","v":0},{"$f":"IF('Currency Risk (old)'!D19=0,'Currency Risk (old)'!E19,'Currency Risk (old)'!F19)","v":0},{"$f":"'Currency Risk (old)'!H19","v":0.25},{"$f":"'Currency Risk (old)'!I19","v":0},null,null,0]
[null,"Other currency 7",{"$f":"IF('Currency Risk (old)'!D20=0,'Currency Risk (old)'!C20,'Currency Risk (old)'!D20)","v":0},{"$f":"IF('Currency Risk (old)'!D20=0,'Currency Risk (old)'!E20,'Currency Risk (old)'!F20)","v":0},{"$f":"'Currency Risk (old)'!H20","v":0.25},{"$f":"'Currency Risk (old)'!I20","v":0},null,null,0]
[null,"Other currency 8",{"$f":"IF('Currency Risk (old)'!D21=0,'Currency Risk (old)'!C21,'Currency Risk (old)'!D21)","v":0},{"$f":"IF('Currency Risk (old)'!D21=0,'Currency Risk (old)'!E21,'Currency Risk (old)'!F21)","v":0},{"$f":"'Currency Risk (old)'!H21","v":0.25},{"$f":"'Currency Risk (old)'!I21","v":0},null,null,0]
[null,"Other currency 9",{"$f":"IF('Currency Risk (old)'!D22=0,'Currency Risk (old)'!C22,'Currency Risk (old)'!D22)","v":0},{"$f":"IF('Currency Risk (old)'!D22=0,'Currency Risk (old)'!E22,'Currency Risk (old)'!F22)","v":0},{"$f":"'Currency Risk (old)'!H22","v":0.25},{"$f":"'Currency Risk (old)'!I22","v":0},null,null,0]
[null,"Other currency 10",{"$f":"IF('Currency Risk (old)'!D23=0,'Currency Risk (old)'!C23,'Currency Risk (old)'!D23)","v":0},{"$f":"IF('Currency Risk (old)'!D23=0,'Currency Risk (old)'!E23,'Currency Risk (old)'!F23)","v":0},{"$f":"'Currency Risk (old)'!H23","v":0.25},{"$f":"'Currency Risk (old)'!I23","v":0},null,null,0]
[null,"Total Identified",{"$f":"SUM(C147:C161)","v":0},{"$f":"SUM(D147:D161)","v":0}]
[null,"Total",{"$f":"'Form 1SFS (Consolidated)'!M91","v":0},{"$f":"'Form 1SFS (Consolidated)'!M145","v":0}]
[null,"% Identified",{"$f":"IF(C162=0,0,C162/C163)","v":0},{"$f":"IF(D162=0,0,D162/D163)","v":0}]
[]
[null,"TOTAL CURRENCY RISK",{"$f":"SUM(C147:C161)","v":0},{"$f":"SUM(D147:D161)","v":0},null,{"$f":"IF(SUM(F147:F164)>=0,SUM(F147:F164),0)","v":0},null,null,{"$f":"IF(SUM(I147:I164)>=0,SUM(I147:I164),0)","v":0}]
[]
[null,"CONCENTRATION RISK",null,null,"STANDARD","STANDARD",null,"USER","USER"]
[null,null,null,"EXPOSURE","CAPITAL","REQUIRED",null,"CAPITAL","REQUIRED"]
[null,"ASSET TYPE","STATEMENT SOURCE","VALUE","FACTOR","CAPITAL",null,"FACTOR","CAPITAL"]
[]
[null,"(a) Cash and Cash Equivalents"]
[null,"BSCR Rating 0","Schedule XXI, Column H",{"$f":"+'Concentration Risk (old)'!D10","v":0},{"$f":"+'Fixed Income Investments (old)'!E83","v":0},{"$f":"IF(D173<0,0,D173*E173)","v":0},null,null,{"$f":"MAX(0,IF(H173=\"\",E173*D173,D173*H173))","v":0}]
[null,"BSCR Rating 1","Schedule XXI, Column H",{"$f":"+'Concentration Risk (old)'!D11","v":0},{"$f":"+'Fixed Income Investments (old)'!E84","v":1E-3},{"$f":"IF(D174<0,0,D174*E174)","v":0},null,null,{"$f":"MAX(0,IF(H174=\"\",E174*D174,D174*H174))","v":0}]
[null,"BSCR Rating 2","Schedule XXI, Column H",{"$f":"+'Concentration Risk (old)'!D12","v":0},{"$f":"+'Fixed Income Investments (old)'!E85","v":2E-3},{"$f":"IF(D175<0,0,D175*E175)","v":0},null,null,{"$f":"MAX(0,IF(H175=\"\",E175*D175,D175*H175))","v":0}]
[null,"BSCR Rating 3","Schedule XXI, Column H",{"$f":"+'Concentration Risk (old)'!D13","v":0},{"$f":"+'Fixed Income Investments (old)'!E86","v":3.0000000000000001E-3},0,null,null,0]
[null,"BSCR Rating 4","Schedule XXI, Column H",{"$f":"+'Concentration Risk (old)'!D14","v":0},{"$f":"+'Fixed Income Investments (old)'!E87","v":5.0000000000000001E-3},0,null,null,0]
[null,"BSCR Rating 5","Schedule XXI, Column H",{"$f":"+'Concentration Risk (old)'!D15","v":0},{"$f":"+'Fixed Income Investments (old)'!E88","v":1.4999999999999999E-2},0,null,null,0]
[null,"BSCR Rating 6","Schedule XXI, Column H",{"$f":"+'Concentration Risk (old)'!D16","v":0},{"$f":"+'Fixed Income Investments (old)'!E89","v":0.04},0,null,null,0]
[null,"BSCR Rating 7","Schedule XXI, Column H",{"$f":"+'Concentration Risk (old)'!D17","v":0},{"$f":"+'Fixed Income Investments (old)'!E90","v":0.06},0,null,null,0]
[null,"BSCR Rating 8","Schedule XXI, Column H",{"$f":"+'Concentration Risk (old)'!D18","v":0},{"$f":"+'Fixed Income Investments (old)'!E91","v":0.09},0,null,null,0]
[]
[null,"(a)  SUBTOTAL - CASH AND CASH EQUIVALENTS",null,{"$f":"SUM(D173:D181)","v":0},null,{"$f":"SUM(F173:F181)","v":0},null,null,{"$f":"SUM(I173:I181)","v":0}]
[]
[null,"(b) Corporate & Sovereign Bonds"]
[null,"BSCR Rating 0","Schedule XXI, Column H",{"$f":"+'Concentration Risk (old)'!D23","v":0},{"$f":"+E15","v":0},{"$f":"IF(D186<0,0,D186*E186)","v":0},null,null,{"$f":"MAX(0,IF(H186=\"\",E186*D186,D186*H186))","v":0}]
[null,"BSCR Rating 1","Schedule XXI, Column H",{"$f":"+'Concentration Risk (old)'!D24","v":0},4.0000000000000001E-3,0,null,null,{"$f":"MAX(0,IF(H187=\"\",E187*D187,D187*H187))","v":0}]
[null,"BSCR Rating 2","Schedule XXI, Column H",{"$f":"+'Concentration Risk (old)'!D25","v":0},8.0000000000000002E-3,0,null,null,{"$f":"MAX(0,IF(H188=\"\",E188*D188,D188*H188))","v":0}]
[null,"BSCR Rating 3","Schedule XXI, Column H",{"$f":"+'Concentration Risk (old)'!D26","v":0},1.4999999999999999E-2,0,null,null,0]
[null,"BSCR Rating 4","Schedule XXI, Column H",{"$f":"+'Concentration Risk (old)'!D27","v":0},0.03,0,null,null,0]
[null,"BSCR Rating 5","Schedule XXI, Column H",{"$f":"+'Concentration Risk (old)'!D28","v":0},0.08,0,null,null,0]
[null,"BSCR Rating 6","Schedule XXI, Column H",{"$f":"+'Concentration Risk (old)'!D29","v":0},0.15,0,null,null,0]
[null,"BSCR Rating 7","Schedule XXI, Column H",{"$f":"+'Concentration Risk (old)'!D30","v":0},0.26300000000000001,0,null,null,0]
[null,"BSCR Rating 8","Schedule XXI, Column H",{"$f":"+'Concentration Risk (old)'!D31","v":0},0.35,0,null,null,0]
[]
[null,"(b)  SUBTOTAL - CORPORATE & SOVEREIGN BONDS",null,{"$f":"SUM(D186:D194)","v":0},null,{"$f":"SUM(F186:F194)","v":0},null,null,{"$f":"SUM(I186:I194)","v":0}]
[]
[null,"(c) Residential Mortage-Backed Securities"]
[null,"BSCR Rating 0","Schedule XXI, Column H",{"$f":"+'Concentration Risk (old)'!D36","v":0},0,{"$f":"IF(D199<0,0,D199*E199)","v":0},null,null,{"$f":"MAX(0,IF(H199=\"\",E199*D199,D199*H199))","v":0}]
[null,"BSCR Rating 1","Schedule XXI, Column H",{"$f":"+'Concentration Risk (old)'!D37","v":0},{"$f":"+E30","v":6.0000000000000001E-3},0,null,null,{"$f":"MAX(0,IF(H200=\"\",E200*D200,D200*H200))","v":0}]
[null,"BSCR Rating 2","Schedule XXI, Column H",{"$f":"+'Concentration Risk (old)'!D38","v":0},1.2E-2,0,null,null,{"$f":"MAX(0,IF(H201=\"\",E201*D201,D201*H201))","v":0}]
[null,"BSCR Rating 3","Schedule XXI, Column H",{"$f":"+'Concentration Risk (old)'!D39","v":0},0.02,0,null,null,0]
[null,"BSCR Rating 4","Schedule XXI, Column H",{"$f":"+'Concentration Risk (old)'!D40","v":0},0.04,0,null,null,0]
[null,"BSCR Rating 5","Schedule XXI, Column H",{"$f":"+'Concentration Risk (old)'!D41","v":0},0.11,0,null,null,0]
[null,"BSCR Rating 6","Schedule XXI, Column H",{"$f":"+'Concentration Risk (old)'!D42","v":0},0.25,0,null,null,0]
[null,"BSCR Rating 7","Schedule XXI, Column H",{"$f":"+'Concentration Risk (old)'!D43","v":0},0.35,0,null,null,0]
[null,"BSCR Rating 8","Schedule XXI, Column H",{"$f":"+'Concentration Risk (old)'!D44","v":0},0.35,0,null,null,0]
[]
[null,"(c)  SUBTOTAL - RESIDENTIAL MORTGAGE-BACKED SECURITIES",null,{"$f":"SUM(D199:D207)","v":0},null,{"$f":"SUM(F199:F207)","v":0},null,null,{"$f":"SUM(I199:I207)","v":0}]
[]
[null,"(d) Commercial Mortgage-Backed Securities / Asset Backed Securities"]
[null,"BSCR Rating 0","Schedule XXI, Column H",{"$f":"+'Concentration Risk (old)'!D49","v":0},0,{"$f":"IF(D212<0,0,D212*E212)","v":0},null,null,{"$f":"MAX(0,IF(H212=\"\",E212*D212,D212*H212))","v":0}]
[null,"BSCR Rating 1","Schedule XXI, Column H",{"$f":"+'Concentration Risk (old)'!D50","v":0},{"$f":"+E44","v":5.0000000000000001E-3},0,null,null,{"$f":"MAX(0,IF(H213=\"\",E213*D213,D213*H213))","v":0}]
[null,"BSCR Rating 2","Schedule XXI, Column H",{"$f":"+'Concentration Risk (old)'!D51","v":0},0.01,0,null,null,{"$f":"MAX(0,IF(H214=\"\",E214*D214,D214*H214))","v":0}]
[null,"BSCR Rating 3","Schedule XXI, Column H",{"$f":"+'Concentration Risk (old)'!D52","v":0},1.7999999999999999E-2,0,null,null,0]
[null,"BSCR Rating 4","Schedule XXI, Column H",{"$f":"+'Concentration Risk (old)'!D53","v":0},3.5000000000000003E-2,0,null,null,0]
[null,"BSCR Rating 5","Schedule XXI, Column H",{"$f":"+'Concentration Risk (old)'!D54","v":0},0.1,0,null,null,0]
[null,"BSCR Rating 6","Schedule XXI, Column H",{"$f":"+'Concentration Risk (old)'!D55","v":0},0.2,0,null,null,0]
[null,"BSCR Rating 7","Schedule XXI, Column H",{"$f":"+'Concentration Risk (old)'!D56","v":0},0.3,0,null,null,0]
[null,"BSCR Rating 8","Schedule XXI, Column H",{"$f":"+'Concentration Risk (old)'!D57","v":0},0.35,0,null,null,0]
[]
[null,"(d)  SUBTOTAL - COMMERCIAL MORTGAGE-BACKED SECURITIES / ASSET-BACKED SECURITIES",null,{"$f":"SUM(D212:D220)","v":0},null,{"$f":"SUM(F212:F220)","v":0},null,null,{"$f":"SUM(I212:I220)","v":0}]
[]
[null,"(e) Bond Mutual Funds"]
[null,"BSCR Rating 0","Schedule XXI, Column H",{"$f":"+'Concentration Risk (old)'!D62","v":0},{"$f":"+E58","v":0},{"$f":"IF(D225<0,0,D225*E225)","v":0},null,null,{"$f":"MAX(0,IF(H225=\"\",E225*D225,D225*H225))","v":0}]
[null,"BSCR Rating 1","Schedule XXI, Column H",{"$f":"+'Concentration Risk (old)'!D63","v":0},4.0000000000000001E-3,0,null,null,{"$f":"MAX(0,IF(H226=\"\",E226*D226,D226*H226))","v":0}]
[null,"BSCR Rating 2","Schedule XXI, Column H",{"$f":"+'Concentration Risk (old)'!D64","v":0},8.0000000000000002E-3,0,null,null,{"$f":"MAX(0,IF(H227=\"\",E227*D227,D227*H227))","v":0}]
[null,"BSCR Rating 3","Schedule XXI, Column H",{"$f":"+'Concentration Risk (old)'!D65","v":0},1.4999999999999999E-2,0,null,null,0]
[null,"BSCR Rating 4","Schedule XXI, Column H",{"$f":"+'Concentration Risk (old)'!D66","v":0},0.03,0,null,null,0]
[null,"BSCR Rating 5","Schedule XXI, Column H",{"$f":"+'Concentration Risk (old)'!D67","v":0},0.08,0,null,null,0]
[null,"BSCR Rating 6","Schedule XXI, Column H",{"$f":"+'Concentration Risk (old)'!D68","v":0},0.15,0,null,null,0]
[null,"BSCR Rating 7","Schedule XXI, Column H",{"$f":"+'Concentration Risk (old)'!D69","v":0},0.26300000000000001,0,null,null,0]
[null,"BSCR Rating 8","Schedule XXI, Column H",{"$f":"+'Concentration Risk (old)'!D70","v":0},0.35,0,null,null,0]
[]
[null,"(e)  SUBTOTAL - BOND MUTUAL FUNDS",null,{"$f":"SUM(D225:D233)","v":0},null,{"$f":"SUM(F225:F233)","v":0},null,null,{"$f":"SUM(I225:I233)","v":0}]
[]
[null,"(f) Preferred Shares"]
[null,"BSCR Rating 0","Schedule XXI, Column H",{"$f":"+'Concentration Risk (old)'!D75","v":0},{"$f":"+'Concentration Risk (old)'!E75","v":0},{"$f":"IF(D238<0,0,D238*E238)","v":0},null,null,{"$f":"MAX(0,IF(H238=\"\",E238*D238,D238*H238))","v":0}]
[null,"BSCR Rating 1","Schedule XXI, Column H",{"$f":"+'Concentration Risk (old)'!D76","v":0},{"$f":"+'Concentration Risk (old)'!E76","v":6.0000000000000001E-3},{"$f":"IF(D239<0,0,D239*E239)","v":0},null,null,{"$f":"MAX(0,IF(H239=\"\",E239*D239,D239*H239))","v":0}]
[null,"BSCR Rating 2","Schedule XXI, Column H",{"$f":"+'Concentration Risk (old)'!D77","v":0},{"$f":"+'Concentration Risk (old)'!E77","v":1.2E-2},0,null,null,0]
[null,"BSCR Rating 3","Schedule XXI, Column H",{"$f":"+'Concentration Risk (old)'!D78","v":0},{"$f":"+'Concentration Risk (old)'!E78","v":0.02},0,null,null,0]
[null,"BSCR Rating 4","Schedule XXI, Column H",{"$f":"+'Concentration Risk (old)'!D79","v":0},{"$f":"+'Concentration Risk (old)'!E79","v":0.04},0,null,null,0]
[null,"BSCR Rating 5","Schedule XXI, Column H",{"$f":"+'Concentration Risk (old)'!D80","v":0},{"$f":"+'Concentration Risk (old)'!E80","v":0.11},0,null,null,0]
[null,"BSCR Rating 6","Schedule XXI, Column H",{"$f":"+'Concentration Risk (old)'!D81","v":0},{"$f":"+'Concentration Risk (old)'!E81","v":0.25},0,null,null,0]
[null,"BSCR Rating 7","Schedule XXI, Column H",{"$f":"+'Concentration Risk (old)'!D82","v":0},{"$f":"+'Concentration Risk (old)'!E82","v":0.35},0,null,null,0]
[null,"BSCR Rating 8","Schedule XXI, Column H",{"$f":"+'Concentration Risk (old)'!D83","v":0},{"$f":"+'Concentration Risk (old)'!E83","v":0.35},0,null,null,0]
[]
[null,"(f)  SUBTOTAL - PREFERRED SHARES",null,{"$f":"SUM(D238:D246)","v":0},null,{"$f":"SUM(F238:F246)","v":0},null,null,{"$f":"SUM(I238:I246)","v":0}]
[]
[null,"(g) Mortgage Loans"]
[null,"Insured/Guaranteed Mortgages","Schedule XXI, Column H",{"$f":"+'Concentration Risk (old)'!D88","v":0},{"$f":"+'Concentration Risk (old)'!E88","v":3.0000000000000001E-3},{"$f":"IF(D251<0,0,D251*E251)","v":0},null,null,{"$f":"MAX(0,IF(H251=\"\",E251*D251,D251*H251))","v":0}]
[null,"Other Commercial and Farm Mortgages","Schedule XXI, Column H",{"$f":"+'Concentration Risk (old)'!D89","v":0},{"$f":"+'Concentration Risk (old)'!E89","v":0.05},{"$f":"IF(D252<0,0,D252*E252)","v":0},null,null,{"$f":"MAX(0,IF(H252=\"\",E252*D252,D252*H252))","v":0}]
[null,"Other Residential Mortgages","Schedule XXI, Column H",{"$f":"+'Concentration Risk (old)'!D90","v":0},{"$f":"+'Concentration Risk (old)'!E90","v":1.4999999999999999E-2},{"$f":"IF(D253<0,0,D253*E253)","v":0},null,null,{"$f":"MAX(0,IF(H253=\"\",E253*D253,D253*H253))","v":0}]
[null,"Mortgages Not In Good Standing","Schedule XXI, Column H",{"$f":"+'Concentration Risk (old)'!D91","v":0},{"$f":"+'Concentration Risk (old)'!E91","v":0.25},{"$f":"IF(D254<0,0,D254*E254)","v":0},null,null,{"$f":"MAX(0,IF(H254=\"\",E254*D254,D254*H254))","v":0}]
[]
[null,"(g)  SUBTOTAL - Mortgage Loans",null,{"$f":"SUM(D250:D254)","v":0},null,{"$f":"SUM(F250:F254)","v":0},null,null,{"$f":"SUM(I250:I254)","v":0}]
[]
[null,"(h) Other Asset Classes"]
[null,"Common Stock and Mutual Funds","Schedule XXI, Column H",{"$f":"+'Concentration Risk (old)'!D96","v":0},{"$f":"+'Concentration Risk (old)'!E96","v":0.14399999999999999},{"$f":"IF(D259<0,0,D259*E259)","v":0},null,null,{"$f":"MAX(0,IF(H259=\"\",E259*D259,D259*H259))","v":0}]
[null,"Other Investments","Schedule XXI, Column H",{"$f":"+'Concentration Risk (old)'!D97","v":0},{"$f":"+'Concentration Risk (old)'!E97","v":0.2},0,null,null,0]
[null,"Investment in Affiliates – Unregulated entities that conduct ancillary services",null,{"$f":"+'Concentration Risk (old)'!D98","v":0},{"$f":"+'Concentration Risk (old)'!E98","v":0.05},0,null,null,0]
[null,"Investment in Affiliates - Unregulated non-financial operating entities",null,{"$f":"+'Concentration Risk (old)'!D99","v":0},{"$f":"+'Concentration Risk (old)'!E99","v":0.2},0,null,null,0]
[null,"Investment in Affiliates - Unregulated financial operating entities",null,{"$f":"+'Concentration Risk (old)'!D100","v":0},{"$f":"+'Concentration Risk (old)'!E100","v":0.55000000000000004},0,null,null,0]
[null,"Investment in Affiliates - Regulated non-insurance financial operating entities",null,{"$f":"+'Concentration Risk (old)'!D101","v":0},{"$f":"+'Concentration Risk (old)'!E101","v":0.55000000000000004},0,null,null,0]
[null,"Investment in Affiliates - Regulated insurance financial operating entities",null,{"$f":"+'Concentration Risk (old)'!D102","v":0},{"$f":"+'Concentration Risk (old)'!E102","v":0.2},0,null,null,0]
[null,"Advances to Affiliates - ","Schedule XXI, Column H",{"$f":"+'Concentration Risk (old)'!D103","v":0},{"$f":"+'Concentration Risk (old)'!E103","v":0.05},0,null,null,0]
[null,"Policy Loans","Schedule XXI, Column H",{"$f":"+'Concentration Risk (old)'!D104","v":0},{"$f":"+'Concentration Risk (old)'!E104","v":0},0,null,null,0]
[null,"Real Estate: Occupied by company","Schedule XXI, Column H",{"$f":"+'Concentration Risk (old)'!D105","v":0},{"$f":"+'Concentration Risk (old)'!E105","v":0.1},0,null,null,0]
[null,"Real Estate: Other properties","Schedule XXI, Column H",{"$f":"+'Concentration Risk (old)'!D106","v":0},{"$f":"+'Concentration Risk (old)'!E106","v":0.2},0,null,null,0]
[null,"Collateral Loans","Schedule XXI, Column H",{"$f":"+'Concentration Risk (old)'!D107","v":0},{"$f":"+'Concentration Risk (old)'!E107","v":0.05},0,null,null,0]
[]
[null,"(h)  SUBTOTAL - OTHER ASSET CLASSES",null,{"$f":"SUM(D259:D271)","v":0},null,{"$f":"SUM(F259:F271)","v":0},null,null,{"$f":"SUM(I259:I271)","v":0}]
[]
[null,"TOTAL CONCENTRATION RISK",null,{"$f":"D183+D196+D209+D222+D235+D248+D256+D272","v":0},null,{"$f":"F183+F196+F209+F222+F235+F248+F256+F272","v":0},null,null,{"$f":"I183+I196+I209+I222+I235+I248+I256+I272","v":0}]
[]
[null,null,null,null,"STANDARD","STANDARD",null,"USER","USER"]
[null,"TYPE OF ",null,"ASSET","CAPITAL","REQUIRED",null,"CAPITAL","REQUIRED"]
[null,"INTEREST RATE/LIQUIDITY RISK","STATEMENT SOURCE","VALUE","FACTOR","CAPITAL",null,"FACTOR","CAPITAL"]
[]
[null,"Bonds and Debentures ","Sch II EBS & IIA EBS Column (9), Line 10",{"$f":"+'Schedule II'!T22+'Schedule IIA'!T22","v":0},{"$f":"IF('Company Information'!F11=\"IIGB\",IF(('Schedule V'!H12-'Schedule V'!H10)>3.5,3.5,MAX(1,'Schedule V'!H10-'Schedule V'!H12,'Schedule V'!H12-'Schedule V'!H10)),IF('Schedule V'!$H$10-'Schedule V'!$H$12>=1,'Schedule V'!$H$10-'Schedule V'!$H$12,IF('Schedule V'!$H$12-'Schedule V'!$H$10>=1,'Schedule V'!$H$12-'Schedule V'!$H$10,1)))*2%","v":0.02},{"$f":"IF(D280<0,0,D280*E280)","v":0},null,null,{"$f":"MAX(0,IF(H280=\"\",E280*D280,D280*H280))","v":0}]
[null,"Preferred Stocks ","Sch II EBS & IIA EBS Column (3), Line 21",{"$f":"+'Schedule II'!H44+'Schedule IIA'!H44","v":0},{"$f":"IF('Company Information'!F11=\"IIGB\",IF(('Schedule V'!H12-'Schedule V'!H10)>3.5,3.5,MAX(1,'Schedule V'!H10-'Schedule V'!H12,'Schedule V'!H12-'Schedule V'!H10)),IF('Schedule V'!$H$10-'Schedule V'!$H$12>=1,'Schedule V'!$H$10-'Schedule V'!$H$12,IF('Schedule V'!$H$12-'Schedule V'!$H$10>=1,'Schedule V'!$H$12-'Schedule V'!$H$10,1)))*2%","v":0.02},{"$f":"IF(D281<0,0,D281*E281)","v":0},null,null,{"$f":"MAX(0,IF(H281=\"\",E281*D281,D281*H281))","v":0}]
[null,"Mortgage Loans","Sch II EBS & IIA EBS Column (1), Line 26",{"$f":"+'Schedule II'!D62+'Schedule IIA'!D62","v":0},{"$f":"IF('Company Information'!F11=\"IIGB\",IF(('Schedule V'!H12-'Schedule V'!H10)>3.5,3.5,MAX(1,'Schedule V'!H10-'Schedule V'!H12,'Schedule V'!H12-'Schedule V'!H10)),IF('Schedule V'!$H$10-'Schedule V'!$H$12>=1,'Schedule V'!$H$10-'Schedule V'!$H$12,IF('Schedule V'!$H$12-'Schedule V'!$H$10>=1,'Schedule V'!$H$12-'Schedule V'!$H$10,1)))*2%","v":0.02},{"$f":"IF(D282<0,0,D282*E282)","v":0},null,null,{"$f":"MAX(0,IF(H282=\"\",E282*D282,D282*H282))","v":0}]
[]
[null,"TOTAL INTEREST RATE / LIQUIDITY RISK",null,{"$f":"SUM(D280:D282)","v":0},null,{"$f":"IF(SUM(F280:F282)>=0,SUM(F280:F282),0)","v":0},null,null,{"$f":"IF(SUM(I280:I282)>=0,SUM(I280:I282),0)","v":0}]
[]
[null,null,null,null,"STANDARD","STANDARD",null,"USER","USER"]
[null,null,"ASSET","Fully Hedged","CAPITAL","REQUIRED",null,"CAPITAL","REQUIRED"]
[null,"DIGITAL ASSET RISK","VALUE","Arrangements","FACTOR","CAPITAL",null,"FACTOR","CAPITAL"]
[]
[null,"Stablecoins"]
[null,"Audited Fiat backed stablecoin",{"$f":"'Schedule XXV'!C7","v":0},null,{"$f":"'Digital Assets'!H5","v":0.03},{"$f":"(MAX(C291,D291,C291-D291)-MAX('Digital Assets'!E5*(MIN(D291,C291)),0))*E291","v":0},null,null,{"$f":"MAX(0,IF(H291=\"\",F291,C291*H291))","v":0}]
[]
[null,"All other digital assets - following the below tiers"]
[null,"BSCR Rating 1 - Top 1 by market cap",{"$f":"'Schedule XXV'!C18","v":0},{"$f":"'Schedule XXV'!D18","v":0},{"$f":"'Digital Assets'!H6","v":0.55000000000000004},{"$f":"(MAX(C294,D294,C294-D294)-MAX('Digital Assets'!E6*(MIN(D294,C294)),0))*E294","v":0},null,null,{"$f":"MAX(0,IF(H294=\"\",F294,C294*H294))","v":0}]
[null,"BSCR Rating 2 Top 2-3 by market cap",{"$f":"'Schedule XXV'!C19","v":0},{"$f":"'Schedule XXV'!D19","v":0},{"$f":"'Digital Assets'!H7","v":0.65},{"$f":"(MAX(C295,D295,C295-D295)-MAX('Digital Assets'!E7*(MIN(D295,C295)),0))*E295","v":0},null,null,0]
[null,"BSCR Rating 3 Top 4-10 by market cap",{"$f":"'Schedule XXV'!C20","v":0},{"$f":"'Schedule XXV'!D20","v":0},{"$f":"'Digital Assets'!H8","v":0.8},{"$f":"(MAX(C296,D296,C296-D296)-MAX('Digital Assets'!E8*(MIN(D296,C296)),0))*E296","v":0},null,null,0]
[null,"BSCR Rating 4 Top 10 -20 ",{"$f":"'Schedule XXV'!C21","v":0},{"$f":"'Schedule XXV'!D21","v":0},{"$f":"'Digital Assets'!H9","v":0.9},{"$f":"(MAX(C297,D297,C297-D297)-MAX('Digital Assets'!E9*(MIN(D297,C297)),0))*E297","v":0},null,null,0]
[null,"BSCR Rating 5 Top 21 and below",{"$f":"'Schedule XXV'!C22","v":0},{"$f":"'Schedule XXV'!D22","v":0},{"$f":"'Digital Assets'!H10","v":0.95},{"$f":"(MAX(C298,D298,C298-D298)-MAX('Digital Assets'!E10*(MIN(D298,C298)),0))*E298","v":0},null,null,0]
[null,"BSCR Rating 6 Unlisted digital assets",{"$f":"'Schedule XXV'!C23","v":0},{"$f":"'Schedule XXV'!D23","v":0},{"$f":"'Digital Assets'!H11","v":1},{"$f":"(MAX(C299,D299,C299-D299)-MAX('Digital Assets'!E11*(MIN(D299,C299)),0))*E299","v":0},null,null,0]
[]
[null,"Total Digital Asset Risk",{"$f":"SUM(C291:C300)","v":0},{"$f":"SUM(D291:D300)","v":0},null,{"$f":"SUM(F291:F300)","v":0},null,null,{"$f":"SUM(I291:I300)","v":0}]
[]
[null,null,null,"GEO","STANDARD","STANDARD",null,"USER","USER"]
[null,"TYPE OF ",null,"DIVERSIFIED","CAPITAL","REQUIRED",null,"CAPITAL","REQUIRED"]
[null,"PREMIUM RISK","STATEMENT SOURCE","PREMIUMS","FACTOR","CAPITAL",null,"FACTOR","CAPITAL"]
[]
[null,"Property Catastrophe","Schedule IVA, Line (1)",{"$f":"+'Geographic Diversification (old'!H9","v":0},{"$f":"+'Premium Risk (old)'!H11","v":0},{"$f":"IF(D307<0,0,D307*E307)","v":0},null,null,{"$f":"MAX(0,IF(H307=\"\",E307*D307,D307*H307))","v":0}]
[null,"Property","Schedule IVA, Line (2)",{"$f":"+'Geographic Diversification (old'!H10","v":0},{"$f":"+'Premium Risk (old)'!H12","v":0.497450025355053},{"$f":"IF(D308<0,0,D308*E308)","v":0},null,null,0]
[null,"Property Non-Proportional","Schedule IVA, Line (3)",{"$f":"+'Geographic Diversification (old'!H11","v":0},{"$f":"+'Premium Risk (old)'!H13","v":0.51625715924082105},0,null,null,0]
[null,"Personal Accident","Schedule IVA, Line (4)",{"$f":"+'Geographic Diversification (old'!H12","v":0},{"$f":"+'Premium Risk (old)'!H14","v":0.34115345724240698},0,null,null,0]
[null,"Personal Accident Non-Proportional","Schedule IVA, Line (5)",{"$f":"+'Geographic Diversification (old'!H13","v":0},{"$f":"+'Premium Risk (old)'!H15","v":0.41221262895987398},0,null,null,0]
[null,"Aviation","Schedule IVA, Line (6)",{"$f":"+'Geographic Diversification (old'!H14","v":0},{"$f":"+'Premium Risk (old)'!H16","v":0.48178449435856302},0,null,null,0]
[null,"Aviation Non-Proportional","Schedule IVA, Line (7)",{"$f":"+'Geographic Diversification (old'!H15","v":0},{"$f":"+'Premium Risk (old)'!H17","v":0.48201231799963601},0,null,null,0]
[null,"Credit / Surety","Schedule IVA, Line (8)",{"$f":"+'Geographic Diversification (old'!H16","v":0},{"$f":"+'Premium Risk (old)'!H18","v":0.39820522005250802},0,null,null,0]
[null,"Credit / Surety Non-Proportional","Schedule IVA, Line (9)",{"$f":"+'Geographic Diversification (old'!H17","v":0},{"$f":"+'Premium Risk (old)'!H19","v":0.45356665999464701},0,null,null,0]
[null,"Energy Offshore / Marine","Schedule IVA, Line (10)",{"$f":"+'Geographic Diversification (old'!H18","v":0},{"$f":"+'Premium Risk (old)'!H20","v":0.42102344656076801},0,null,null,0]
[null,"Energy Offshore / Marine Non-Proportional","Schedule IVA, Line (11)",{"$f":"+'Geographic Diversification (old'!H19","v":0},{"$f":"+'Premium Risk (old)'!H21","v":0.47016820069929899},0,null,null,0]
[null,"US Casualty","Schedule IVA, Line (12)",{"$f":"+'Geographic Diversification (old'!H20","v":0},{"$f":"+'Premium Risk (old)'!H22","v":0.50272577892886305},0,null,null,0]
[null,"US Casualty Non-Proportional","Schedule IVA, Line (13)",{"$f":"+'Geographic Diversification (old'!H21","v":0},{"$f":"+'Premium Risk (old)'!H23","v":0.555814073452775},0,null,null,0]
[null,"US Professional","Schedule IVA, Line (14)",{"$f":"+'Geographic Diversification (old'!H22","v":0},{"$f":"+'Premium Risk (old)'!H24","v":0.51225206482709496},0,null,null,0]
[null,"US Professional Non-Proportional","Schedule IVA, Line (15)",{"$f":"+'Geographic Diversification (old'!H23","v":0},{"$f":"+'Premium Risk (old)'!H25","v":0.53805556666757803},0,null,null,0]
[null,"US Specialty","Schedule IVA, Line (16)",{"$f":"+'Geographic Diversification (old'!H24","v":0},{"$f":"+'Premium Risk (old)'!H26","v":0.51436147942106603},0,null,null,0]
[null,"US Specialty Non-Proportional","Schedule IVA, Line (17)",{"$f":"+'Geographic Diversification (old'!H25","v":0},{"$f":"+'Premium Risk (old)'!H27","v":0.52697789035313303},0,null,null,0]
[null,"International Motor","Schedule IVA, Line (18)",{"$f":"+'Geographic Diversification (old'!H26","v":0},{"$f":"+'Premium Risk (old)'!H28","v":0.42191756117933499},0,null,null,0]
[null,"International Motor Non-Proportional","Schedule IVA, Line (19)",{"$f":"+'Geographic Diversification (old'!H27","v":0},{"$f":"+'Premium Risk (old)'!H29","v":0.482210885429324},0,null,null,0]
[null,"International Casualty Non-Motor","Schedule IVA, Line (20)",{"$f":"+'Geographic Diversification (old'!H28","v":0},{"$f":"+'Premium Risk (old)'!H30","v":0.50012106835589698},0,null,null,0]
[null,"International Casualty Non-Motor Non-Proportional","Schedule IVA, Line (21)",{"$f":"+'Geographic Diversification (old'!H29","v":0},{"$f":"+'Premium Risk (old)'!H31","v":0.53551360019381999},0,null,null,0]
[null,"Retro Property","Schedule IVA, Line (22)",{"$f":"+'Geographic Diversification (old'!H30","v":0},{"$f":"+'Premium Risk (old)'!H32","v":0.508030898436173},0,null,null,0]
[null,"Structured / Finite Reinsurance","Schedule IVA, Line (23)",{"$f":"+'Geographic Diversification (old'!H31","v":0},{"$f":"+'Premium Risk (old)'!H33","v":0.27200000000000002},0,null,null,0]
[null,"Health","Schedule IVA, Line (24)",{"$f":"+'Geographic Diversification (old'!H32","v":0},{"$f":"+'Premium Risk (old)'!H34","v":0.15},0,null,null,0]
[]
[null,"(a)  TOTAL",null,{"$f":"SUM(D307:D330)","v":0},null,{"$f":"SUM(F307:F331)","v":0},null,null,{"$f":"SUM(I307:I330)","v":0}]
[]
[null,"(b)  CONCENTRATION ADJUSTMENT CALCULATION"]
[]
[null,"(i)","Maximum Premium [ Maximum (1a) excl Prop CAT ]",null,null,{"$f":"MAX(D308:D330)","v":0},null,null,{"$f":"MAX(D308:D330)","v":0}]
[null,"(ii)","Total Premium [ Total (1a) excl Prop CAT ]",null,null,{"$f":"D332-D307","v":0},null,null,{"$f":"D332-D307","v":0}]
[null,"(iii)","Maximum Premium / Total Premium [ (i) / (ii) ]",null,null,{"$f":"IF(F337=0,0,F336/F337)","v":0},null,null,{"$f":"IF(I337=0,0,I336/I337)","v":0}]
[null,"(iv)","Maximum Adjustment",null,null,{"$f":"+F418","v":0.4},null,null,{"$f":"+I418","v":0.4}]
[null,"(v)","[ (iii) x (iv) ]",null,null,{"$f":"F338*F339","v":0},null,null,{"$f":"I338*I339","v":0}]
[null,"(vi)","Minimum Adjustment Factor",null,null,{"$f":"1-F339","v":0.6},null,null,{"$f":"1-I339","v":0.6}]
[]
[null,"(b)  CONCENTRATION ADJUSTMENT FACTOR [ (v) + (vi) ]",null,null,null,{"$f":"F340+F341","v":0.6},null,null,{"$f":"I340+I341","v":0.6}]
[]
[null,"(c)  REQUIRED CAPITAL CHARGE  [ TOTAL (a) x (b) ]",null,null,null,{"$f":"IF(F332=0,0,F332*F343)","v":0},null,null,{"$f":"IF(I332=0,0,I332*I343)","v":0}]
[]
[null,"(c)  CATASTROPHE PREMIUM ADJUSTMENT CALCULATION"]
[]
[null,"(i)","Average Annual Loss (AAL) Excluding Property Catastrophe",null,null,{"$f":"+F492","v":0},null,null,{"$f":"+I492","v":0}]
[null,"(ii)","Industry Catastrophe Loss Ratio",null,null,{"$f":"+F494","v":0.4},null,null,{"$f":"+F350","v":0.4}]
[null,"(iii)","Avg Capital Factor  [ Total (3c) / (Total (1a) excl Prop CAT) ]",null,null,{"$f":"IF(F337=0,0,F345/F337)","v":0},null,null,{"$f":"IF(I337=0,0,I345/I337)","v":0}]
[]
[null,"(c)  CATASTROPHE PREMIUM ADJUSTMENT  [ (i) / (ii) x (iii) ]",null,null,null,{"$f":"F349/F350*F351","v":0},null,null,{"$f":"IF(I350=0,0,I349/I350*I351)","v":0}]
[]
[null,"(d)  TOTAL PREMIUM RISK (AFTER CAT PREMIUM ADJUSTMENT)   [ (b) - (c) ]",null,null,null,{"$f":"IF(F345-F353>=0,F345-F353,0)","v":0},null,null,{"$f":"IF(I345-I353>=0,I345-I353,0)","v":0}]
[]
[null,"(b)  CONCENTRATION ADJUSTMENT CALCULATION"]
[]
[null,"(i)","Total Premium [ Total (1a) excl Prop CAT ]",null,null,{"$f":"'CSP (old)'!D332-'CSP (old)'!D307","v":0},null,null,{"$f":"'CSP (old)'!D332-'CSP (old)'!D307","v":0}]
[null,"(ii)","Concentration Adjustment (HHI Calculation)",null,null,{"$f":"IF(F359=0,0,('CSP (old)'!D308/F359)^2+('CSP (old)'!D309/F359)^2+('CSP (old)'!D310/F359)^2+('CSP (old)'!D311/F359)^2+('CSP (old)'!D312/F359)^2+('CSP (old)'!D313/F359)^2+('CSP (old)'!D314/F359)^2+('CSP (old)'!D315/F359)^2+('CSP (old)'!D316/F359)^2+('CSP (old)'!D317/F359)^2+('CSP (old)'!D318/F359)^2+('CSP (old)'!D319/F359)^2+('CSP (old)'!D320/F359)^2+('CSP (old)'!D321/F359)^2+('CSP (old)'!D322/F359)^2+('CSP (old)'!D323/F359)^2+('CSP (old)'!D324/F359)^2+('CSP (old)'!D325/F359)^2+('CSP (old)'!D326/F359)^2+('CSP (old)'!D327/F359)^2+('CSP (old)'!D328/F359)^2+('CSP (old)'!D329/F359)^2+('CSP (old)'!D330/F359)^2)","v":0},null,null,{"$f":"IF(I359=0,0,('CSP (old)'!D308/I359)^2+('CSP (old)'!D309/I359)^2+('CSP (old)'!D310/I359)^2+('CSP (old)'!D311/I359)^2+('CSP (old)'!D312/I359)^2+('CSP (old)'!D313/I359)^2+('CSP (old)'!D314/I359)^2+('CSP (old)'!D315/I359)^2+('CSP (old)'!D316/I359)^2+('CSP (old)'!D317/I359)^2+('CSP (old)'!D318/I359)^2+('CSP (old)'!D319/I359)^2+('CSP (old)'!D320/I359)^2+('CSP (old)'!D321/I359)^2+('CSP (old)'!D322/I359)^2+('CSP (old)'!D323/I359)^2+('CSP (old)'!D324/I359)^2+('CSP (old)'!D325/I359)^2+('CSP (old)'!D326/I359)^2+('CSP (old)'!D327/I359)^2+('CSP (old)'!D328/I359)^2+('CSP (old)'!D329/I359)^2+('CSP (old)'!D330/I359)^2)","v":0}]
[null,"(iii)","Maximum Adjustment",null,null,0.4,null,null,{"$f":"+F361","v":0.4}]
[null,"(iv)"," [ (ii) x (iii) ]",null,null,{"$f":"F360*F361","v":0},null,null,{"$f":"I360*I361","v":0}]
[null,"(v)","Minimum Adjustment Factor",null,null,{"$f":"1-F361","v":0.6},null,null,{"$f":"1-I361","v":0.6}]
[]
[null,"(b)(i) CONCENTRATION ADJUSTMENT FACTOR (formula 1) [(iv) + (v)]",null,null,null,{"$f":"F362+F363","v":0.6},null,null,{"$f":"I362+I363","v":0.6}]
[]
[null,"(i)","Concentration Adjustment (up to 95%)",null,null,{"$f":"'Schedule IX(b)'!H51/900*95%","v":0},null,null,{"$f":"'Schedule IX(b)'!H51/900*95%","v":0}]
[null,"(ii)","Related Business % (up to 5%)",null,null,{"$f":"'Schedule IX(b)'!H55*5%","v":0},null,null,{"$f":"'Schedule IX(b)'!H55*5%","v":0}]
[null,"(iii)"," [ (i) + (ii) ]",null,null,{"$f":"SUM(F367:F368)","v":0},null,null,{"$f":"SUM(I367:I368)","v":0}]
[null,"(iv)","Maximum Adjustment",null,null,0.4,null,null,0.4]
[]
[null,"(b)(ii) CONCENTRATION ADJUSTMENT FACTOR (formula 2) [(iii) x (iv)]",null,null,null,{"$f":"F369*F370","v":0},null,null,{"$f":"I369*I370","v":0}]
[]
[null,"(c) CONCENTRATION ADJUSTMENT FACTOR [(b)(i)-(b)(ii)]",null,null,null,{"$f":"F365-F372","v":0.6},null,null,{"$f":"I365-I372","v":0.6}]
[]
[null,"(d) TOTAL PREMIUM RISK [(a) x (c)]",null,null,null,{"$f":"IF(F374*'CSP (old)'!F332>=0,F374*'CSP (old)'!F332,0)","v":0},null,null,{"$f":"IF(I374*'CSP (old)'!I332>=0,I374*'CSP (old)'!I332,0)","v":0}]
[]
[null,"(d)  TOTAL PREMIUM RISK (AFTER CAT PREMIUM ADJUSTMENT)   [ (b) - (c) ]",null,null,null,{"$f":"IF('Company Information'!$F$11=\"IIGB\",F376,F355)","v":0},null,null,{"$f":"IF('Company Information'!$F$11=\"IIGB\",I376,I355)","v":0}]
[]
[null,null,null,null,"STANDARD","STANDARD",null,"USER","USER"]
[null,"TYPE OF ",null,"LIABILITY","CAPITAL","REQUIRED",null,"CAPITAL","REQUIRED"]
[null,"RESERVE RISK","STATEMENT SOURCE","VALUE","FACTOR","CAPITAL",null,"FACTOR","CAPITAL"]
[]
[null,null,null,"(1) ","(2)","(1) x (2)",null,"(3)","(1) x (3)"]
[]
[null,"Property Catastrophe","Sch III EBS, Line (1)",{"$f":"+'Geographic Diversification (old'!H40","v":0},{"$f":"+'Reserve Risk (old)'!G11","v":0.46158858246802098},{"$f":"IF(D386<0,0,D386*E386)","v":0},null,null,{"$f":"MAX(0,IF(H386=\"\",E386*D386,D386*H386))","v":0}]
[null,"Property","Sch III EBS, Line (2)",{"$f":"+'Geographic Diversification (old'!H41","v":0},{"$f":"+'Reserve Risk (old)'!G12","v":0.43844984238218698},{"$f":"IF(D387<0,0,D387*E387)","v":0},null,null,0]
[null,"Property Non-Proportional","Sch III EBS, Line (3)",{"$f":"+'Geographic Diversification (old'!H42","v":0},{"$f":"+'Reserve Risk (old)'!G13","v":0.49735573879029998},0,null,null,0]
[null,"Personal Accident","Sch III EBS, Line (4)",{"$f":"+'Geographic Diversification (old'!H43","v":0},{"$f":"+'Reserve Risk (old)'!G14","v":0.29666070682155399},0,null,null,0]
[null,"Personal Accident Non-Proportional","Sch III EBS, Line (5)",{"$f":"+'Geographic Diversification (old'!H44","v":0},{"$f":"+'Reserve Risk (old)'!G15","v":0.34876523067975901},0,null,null,0]
[null,"Aviation","Sch III EBS, Line (6)",{"$f":"+'Geographic Diversification (old'!H45","v":0},{"$f":"+'Reserve Risk (old)'!G16","v":0.45952604952349801},0,null,null,0]
[null,"Aviation Non-Proportional","Sch III EBS, Line (7)",{"$f":"+'Geographic Diversification (old'!H46","v":0},{"$f":"+'Reserve Risk (old)'!G17","v":0.48255646377949901},0,null,null,0]
[null,"Credit / Surety","Sch III EBS, Line (8)",{"$f":"+'Geographic Diversification (old'!H47","v":0},{"$f":"+'Reserve Risk (old)'!G18","v":0.383682680649994},0,null,null,0]
[null,"Credit / Surety Non-Proportional","Sch III EBS, Line (9)",{"$f":"+'Geographic Diversification (old'!H48","v":0},{"$f":"+'Reserve Risk (old)'!G19","v":0.43464696624596899},0,null,null,0]
[null,"Energy Offshore / Marine","Sch III EBS, Line (10)",{"$f":"+'Geographic Diversification (old'!H49","v":0},{"$f":"+'Reserve Risk (old)'!G20","v":0.39543823911176501},0,null,null,0]
[null,"Energy Offshore / Marine Non-Proportional","Sch III EBS, Line (11)",{"$f":"+'Geographic Diversification (old'!H50","v":0},{"$f":"+'Reserve Risk (old)'!G21","v":0.43945783577556502},0,null,null,0]
[null,"US Casualty","Sch III EBS, Line (12)",{"$f":"+'Geographic Diversification (old'!H51","v":0},{"$f":"+'Reserve Risk (old)'!G22","v":0.43018098459069698},0,null,null,0]
[null,"US Casualty Non-Proportional","Sch III EBS, Line (13)",{"$f":"+'Geographic Diversification (old'!H52","v":0},{"$f":"+'Reserve Risk (old)'!G23","v":0.48842309052279498},0,null,null,0]
[null,"US Professional","Sch III EBS, Line (14)",{"$f":"+'Geographic Diversification (old'!H53","v":0},{"$f":"+'Reserve Risk (old)'!G24","v":0.462752832710698},0,null,null,0]
[null,"US Professional Non-Proportional","Sch III EBS, Line (15)",{"$f":"+'Geographic Diversification (old'!H54","v":0},{"$f":"+'Reserve Risk (old)'!G25","v":0.51484129765284703},0,null,null,0]
[null,"US Specialty","Sch III EBS, Line (16)",{"$f":"+'Geographic Diversification (old'!H55","v":0},{"$f":"+'Reserve Risk (old)'!G26","v":0.46506790223690597},0,null,null,0]
[null,"US Specialty Non-Proportional","Sch III EBS, Line (17)",{"$f":"+'Geographic Diversification (old'!H56","v":0},{"$f":"+'Reserve Risk (old)'!G27","v":0.482760284027479},0,null,null,0]
[null,"International Motor","Sch III EBS, Line (18)",{"$f":"+'Geographic Diversification (old'!H57","v":0},{"$f":"+'Reserve Risk (old)'!G28","v":0.37080464615634001},0,null,null,0]
[null,"International Motor Non-Proportional","Sch III EBS, Line (19)",{"$f":"+'Geographic Diversification (old'!H58","v":0},{"$f":"+'Reserve Risk (old)'!G29","v":0.43541657269369},0,null,null,0]
[null,"International Casualty Non-Motor","Sch III EBS, Line (20)",{"$f":"+'Geographic Diversification (old'!H59","v":0},{"$f":"+'Reserve Risk (old)'!G30","v":0.43652386132510701},0,null,null,0]
[null,"International Casualty Non-Motor Non-Proportional","Sch III EBS, Line (21)",{"$f":"+'Geographic Diversification (old'!H60","v":0},{"$f":"+'Reserve Risk (old)'!G31","v":0.49410327959272199},0,null,null,0]
[null,"Retro Property","Sch III EBS, Line (22)",{"$f":"+'Geographic Diversification (old'!H61","v":0},{"$f":"+'Reserve Risk (old)'!G32","v":0.478452065307162},0,null,null,0]
[null,"Structured / Finite Reinsurance","Sch III EBS, Line (23)",{"$f":"+'Geographic Diversification (old'!H62","v":0},{"$f":"+'Reserve Risk (old)'!G33","v":0.24099999999999999},0,null,null,0]
[null,"Health","Sch III EBS, Line (24)",{"$f":"+'Geographic Diversification (old'!H63","v":0},{"$f":"+'Reserve Risk (old)'!G34","v":0.125},0,null,null,0]
[]
[null,"(a)  TOTAL",null,{"$f":"SUM(D386:D409)","v":0},null,{"$f":"SUM(F386:F410)","v":0},null,null,{"$f":"SUM(I386:I410)","v":0}]
[]
[null,"(b)  CONCENTRATION ADJUSTMENT CALCULATION"]
[]
[null,"(i)","Maximum Reserve [ Maximum (1a) ]",null,null,{"$f":"MAX(D386:D409)","v":0},null,null,{"$f":"MAX(D386:D409)","v":0}]
[null,"(ii)","Total Reserve [ Total (1a) ]",null,null,{"$f":"D411","v":0},null,null,{"$f":"D411","v":0}]
[null,"(iii)","Maximum Reserve / Total Reserve [ (i) / (ii) ]",null,null,{"$f":"IF(F416=0,0,F415/F416)","v":0},null,null,{"$f":"IF(I416=0,0,I415/I416)","v":0}]
[null,"(iv)","Maximum Adjustment",null,null,0.4,null,null,0.4]
[null,"(v)"," [ (iii) x (iv) ]",null,null,{"$f":"F417*F418","v":0},null,null,{"$f":"I417*I418","v":0}]
[null,"(vi)","Minimum Adjustment Factor",null,null,{"$f":"1-F418","v":0.6},null,null,{"$f":"1-I418","v":0.6}]
[]
[null,"(b)  CONCENTRATION ADJUSTMENT FACTOR [ (v) + (vi) ]",null,null,null,{"$f":"F420+F419","v":0.6},null,null,{"$f":"I420+I419","v":0.6}]
[]
[null,"(c)  TOTAL RESERVE RISK  [ Total (a) x (b) ]",null,null,null,{"$f":"IF(F411>=0,F411*F422,0)","v":0},null,null,{"$f":"IF(I411>=0,I411*I422,0)","v":0}]
[]
[null,"(b)  CONCENTRATION ADJUSTMENT CALCULATION"]
[]
[null,"(i)","Total Reserve [ Total (1a) ]",null,null,{"$f":"'CSP (old)'!D411","v":0},null,null,{"$f":"'CSP (old)'!D411","v":0}]
[null,"(ii)","Concentration Adjustment (HHI Calculation)",null,null,{"$f":"IF(F428=0,0,('CSP (old)'!D386/F428)^2+('CSP (old)'!D387/F428)^2+('CSP (old)'!D388/F428)^2+('CSP (old)'!D389/F428)^2+('CSP (old)'!D390/F428)^2+('CSP (old)'!D391/F428)^2+('CSP (old)'!D392/F428)^2+('CSP (old)'!D393/F428)^2+('CSP (old)'!D394/F428)^2+('CSP (old)'!D395/F428)^2+('CSP (old)'!D396/F428)^2+('CSP (old)'!D397/F428)^2+('CSP (old)'!D398/F428)^2+('CSP (old)'!D399/F428)^2+('CSP (old)'!D400/F428)^2+('CSP (old)'!D401/F428)^2+('CSP (old)'!D402/F428)^2+('CSP (old)'!D403/F428)^2+('CSP (old)'!D404/F428)^2+('CSP (old)'!D405/F428)^2+('CSP (old)'!D406/F428)^2+('CSP (old)'!D407/F428)^2+('CSP (old)'!D408/F428)^2+('CSP (old)'!D409/F428)^2)","v":0},null,null,{"$f":"IF(I428=0,0,('CSP (old)'!D386/I428)^2+('CSP (old)'!D387/I428)^2+('CSP (old)'!D388/I428)^2+('CSP (old)'!D389/I428)^2+('CSP (old)'!D390/I428)^2+('CSP (old)'!D391/I428)^2+('CSP (old)'!D392/I428)^2+('CSP (old)'!D393/I428)^2+('CSP (old)'!D394/I428)^2+('CSP (old)'!D395/I428)^2+('CSP (old)'!D396/I428)^2+('CSP (old)'!D397/I428)^2+('CSP (old)'!D398/I428)^2+('CSP (old)'!D399/I428)^2+('CSP (old)'!D400/I428)^2+('CSP (old)'!D401/I428)^2+('CSP (old)'!D402/I428)^2+('CSP (old)'!D403/I428)^2+('CSP (old)'!D404/I428)^2+('CSP (old)'!D405/I428)^2+('CSP (old)'!D406/I428)^2+('CSP (old)'!D407/I428)^2+('CSP (old)'!D408/I428)^2+('CSP (old)'!D409/I428)^2)","v":0}]
[null,"(iii)","Maximum Adjustment",null,null,0.4,null,null,0.4]
[null,"(iv)"," [ (iii) x (iv) ]",null,null,{"$f":"F429*F430","v":0},null,null,{"$f":"I429*I430","v":0}]
[null,"(v)","Minimum Adjustment Factor",null,null,{"$f":"1-F430","v":0.6},null,null,{"$f":"1-I430","v":0.6}]
[]
[null,"(b)(i) CONCENTRATION ADJUSTMENT FACTOR (formula 1) [(iv) + (v)]",null,null,null,{"$f":"F432+F431","v":0.6},null,null,{"$f":"I432+I431","v":0.6}]
[]
[null,"(i)","Concentration Adjustment (up to 95%)",null,null,{"$f":"'Schedule IX(b)'!H51/900*95%","v":0},null,null,{"$f":"'Schedule IX(b)'!H51/900*95%","v":0}]
[null,"(ii)","Related Business % (up to 5%)",null,null,{"$f":"'Schedule IX(b)'!H55*5%","v":0},null,null,{"$f":"'Schedule IX(b)'!H55*5%","v":0}]
[null,"(iii)"," [ (i) + (ii) ]",null,null,{"$f":"SUM(F436:F437)","v":0},null,null,{"$f":"SUM(I436:I437)","v":0}]
[null,"(iv)","Maximum Adjustment",null,null,0.4,null,null,0.4]
[]
[null,"(b)(ii) CONCENTRATION ADJUSTMENT FACTOR (formula 2) [(iii) x (iv)]",null,null,null,{"$f":"F438*F439","v":0},null,null,{"$f":"I438*I439","v":0}]
[]
[null,"(c) CONCENTRATION ADJUSTMENT FACTOR [(b)(i)-(b)(ii)]",null,null,null,{"$f":"F434-F441","v":0.6},null,null,{"$f":"I434-I441","v":0.6}]
[]
[null,"(d) TOTAL RESERVE RISK [(a) x (c)]",null,null,null,{"$f":"IF('CSP (old)'!F411=0,0,'CSP (old)'!F411*F443)","v":0},null,null,{"$f":"IF('CSP (old)'!I411=0,0,'CSP (old)'!I411*I443)","v":0}]
[]
[null,"(d) TOTAL RESERVE RISK [(a) x (c)]",null,null,null,{"$f":"IF('Company Information'!$F$11=\"IIGB\",F445,F424)","v":0},null,null,{"$f":"IF('Company Information'!$F$11=\"IIGB\",I445,I424)","v":0}]
[]
[null,null,null,null,"STANDARD","STANDARD",null,"USER","USER"]
[null,"TYPE OF ",null,"ASSET","CAPITAL","REQUIRED",null,"CAPITAL","REQUIRED"]
[null,"CREDIT RISK","STATEMENT SOURCE","VALUE","FACTOR","CAPITAL",null,"FACTOR","CAPITAL"]
[]
[null,"(a)  Receivables from Clearing Brokers",null,"(1) ","(2)","(1) x (2)",null,"(3)","(1) x (3)"]
[]
[null,"In Course of Collection","Form 1SFS, Line (10)",{"$f":"'Form 1SFS (Consolidated)'!M66","v":0},{"$f":"+'Credit Risk (old)'!E11","v":0.05},{"$f":"IF(D455<0,0,D455*E455)","v":0},null,null,{"$f":"MAX(0,IF(H455=\"\",E455*D455,D455*H455))","v":0}]
[]
[null,"(a)  SUBTOTAL - ACCOUNTS AND PREMIUMS RECEIVABLE",null,{"$f":"SUM(D455:D455)","v":0},null,{"$f":"IF(SUM(F455:F455)>=0,SUM(F455:F455),0)","v":0},null,null,{"$f":"IF(SUM(I455:I455)>=0,SUM(I455:I455),0)","v":0}]
[]
[null,"(b)  All Other Receivables"]
[]
[null,"Accrued Investment Income","Form 1SFS, Line (9)",{"$f":"'Form 1SFS (Consolidated)'!M64","v":0},{"$f":"+'Credit Risk (old)'!E17","v":2.5000000000000001E-2},{"$f":"IF(D461<0,0,D461*E461)","v":0},null,null,{"$f":"MAX(0,IF(H461=\"\",E461*D461,D461*H461))","v":0}]
[]
[null,"(b)  SUBTOTAL - ALL OTHER RECEIVABLES",null,{"$f":"SUM(D461:D461)","v":0},null,{"$f":"IF(SUM(F461:F461)>=0,SUM(F461:F461),0)","v":0},null,null,{"$f":"IF(SUM(I461:I461)>=0,SUM(I461:I461),0)","v":0}]
[]
[null,"(c) Particulars of Reinsurance Balances By BSCR Rating"]
[]
[null,"BSCR Rating 0 (Domestic Affiliates)","Schedule XVIII, Column E",{"$f":"'Schedule XVIII'!O87","v":0},{"$f":"+'Credit Risk (old)'!E23","v":0},{"$f":"IF(D467<0,0,D467*E467)","v":0},null,null,{"$f":"MAX(0,IF(H467=\"\",E467*D467,D467*H467))","v":0}]
[null,"BSCR Rating 1","Schedule XVIII, Column E",{"$f":"'Schedule XVIII'!O88","v":0},{"$f":"+'Credit Risk (old)'!E24","v":7.0000000000000001E-3},{"$f":"IF(D468<0,0,D468*E468)","v":0},null,null,0]
[null,"BSCR Rating 2","Schedule XVIII, Column E",{"$f":"'Schedule XVIII'!O89","v":0},{"$f":"+'Credit Risk (old)'!E25","v":1.4999999999999999E-2},0,null,null,0]
[null,"BSCR Rating 3","Schedule XVIII, Column E",{"$f":"'Schedule XVIII'!O90","v":0},{"$f":"+'Credit Risk (old)'!E26","v":3.5000000000000003E-2},0,null,null,0]
[null,"BSCR Rating 4","Schedule XVIII, Column E",{"$f":"'Schedule XVIII'!O91","v":0},{"$f":"+'Credit Risk (old)'!E27","v":7.0000000000000007E-2},0,null,null,0]
[null,"BSCR Rating 5","Schedule XVIII, Column E",{"$f":"'Schedule XVIII'!O92","v":0},{"$f":"+'Credit Risk (old)'!E28","v":0.12},0,null,null,0]
[null,"BSCR Rating 6","Schedule XVIII, Column E",{"$f":"'Schedule XVIII'!O93","v":0},{"$f":"+'Credit Risk (old)'!E29","v":0.2},0,null,null,0]
[null,"BSCR Rating 7","Schedule XVIII, Column E",{"$f":"'Schedule XVIII'!O94","v":0},{"$f":"+'Credit Risk (old)'!E30","v":0.27},0,null,null,0]
[null,"BSCR Rating 8","Schedule XVIII, Column E",{"$f":"'Schedule XVIII'!O95","v":0},{"$f":"+'Credit Risk (old)'!E31","v":0.35},0,null,null,0]
[]
[null,"Total",null,{"$f":"SUM(D467:D476)","v":0},null,{"$f":"SUM(F467:F476)","v":0},null,null,{"$f":"SUM(I467:I476)","v":0}]
[]
[null,"Diversification Adjustment at 40%",null,null,null,{"$f":"SUM(F467:F475)*-('Schedule XVIII'!O104)","v":0},null,null,{"$f":"SUM(I467:I475)*-('Schedule XVIII'!O104)","v":0}]
[]
[null,"(c)  SUBTOTAL - PARTICULARS OF REINSURANCE BALANCES",null,{"$f":"+D477","v":0},null,{"$f":"IF(SUM(F467:F475,F479)>=0,SUM(F467:F475,F479),0)","v":0},null,null,{"$f":"IF(SUM(I467:I475,I479)>=0,SUM(I467:I475,I479),0)","v":0}]
[]
[null,"(d)  TOTAL CREDIT RISK  [ (a) + (b) + (c) ]",null,{"$f":"D481+D463+D457","v":0},null,{"$f":"F481+F463+F457","v":0},null,null,{"$f":"I481+I463+I457","v":0}]
[]
[null,"TYPE OF "]
[null,"CATASTROPHE RISK","STATEMENT SOURCE"]
[]
[null,"(a)  Gross Probable Maximum Loss","Schedule V, Line (g)",null,null,{"$f":"'Schedule V'!H16","v":0},null,null,{"$f":"+F488","v":0}]
[]
[null,"(b)  Net Probable Maximum Loss","Schedule V, Line (h)",null,null,{"$f":"'Schedule V'!H18","v":0},null,null,{"$f":"+F490","v":0}]
[]
[null,"(c)  Average Annual Loss (AAL) Excluding Property Catastrophe","Schedule V, Line (i)",null,null,{"$f":"'Schedule V'!H20","v":0},null,null,{"$f":"+F492","v":0}]
[]
[null,"(d)  Industry Catastrophe Loss Ratio",null,null,null,{"$f":"+'Catastrophe Risk (old)'!E13","v":0.4},null,null,0.4]
[]
[null,"(e)  Property Catastrophe Premium","Schedule IV, Line (1)",null,null,{"$f":"'Schedule IVA'!Q11","v":0},null,null,{"$f":"+F496","v":0}]
[]
[null,"(f)  Total Catastrophe Premium  [ (c) / (d) + (e) ]",null,null,null,{"$f":"F492/F494+IF(F496>0,F496,0)","v":0},null,null,{"$f":"IF(I494=\"\",IF(F494=0,0,I492/F494+IF(I496>0,I496,0)),IF(I494=0,0,I492/I494+IF(I496>0,I496,0)))","v":0}]
[]
[null,"(g)  Credit Risk Capital Factor",null,null,null,{"$f":"+'Catastrophe Risk (old)'!E19","v":0.1},null,null,0.1]
[]
[null,"(h) Arrangements with Respect to Property Catastrophe Recoverables",null,null,null,{"$f":"'Schedule V'!H29","v":0},null,null,{"$f":"F502","v":0}]
[]
[null,"(i)  Credit Risk Charge  [ ((a) - (b) - (h) x .98 (g) ]",null,null,null,{"$f":"MAX(0,((F488-F490)-(F502*98%))*F500)","v":0},null,null,{"$f":"MAX(0,((I488-I490)-(I502*98%))*I500)","v":0}]
[]
[null,"(j)  REQUIRED CAPITAL FOR CATASTROPHE RISK  [ (b) - (f) + (i) ]",null,null,null,{"$f":"IF('Company Information'!$F$11=\"IIGB\",(IF((F490-F496)>=0,F490-F496+F504,F504)),(IF((F490-F498)>=0,F490-F498+F504,F504)))","v":0},null,null,{"$f":"IF('Company Information'!$F$11=\"IIGB\",(IF((I490-I496)>=0,I490-I496+I504,I504)),(IF((I490-I498)>=0,I490-I498+I504,I504)))","v":0}]
[]
[null,"REQUIRED CAPITAL AND SURPLUS"]
[]
[null,"Fixed Income Investment Risk",null,null,null,{"$f":"+F101","v":0},null,null,{"$f":"+I101","v":0}]
[null,"Equity Investment Risk",null,null,null,{"$f":"+F141","v":0},null,null,{"$f":"+I141","v":0}]
[null,"Interest Rate / Liquidity Risk",null,null,null,{"$f":"+F284","v":0},null,null,{"$f":"+I284","v":0}]
[null,"Currency Risk",null,null,null,{"$f":"+F166","v":0},null,null,{"$f":"+I166","v":0}]
[null,"Digital Asset Business",null,null,null,{"$f":"F301","v":0},null,null,{"$f":"I301","v":0}]
[null,"Concentration Risk",null,null,null,{"$f":"+F274","v":0},null,null,{"$f":"+I274","v":0}]
[null,"Premium Risk",null,null,null,{"$f":"F378","v":0},null,null,{"$f":"I378","v":0}]
[null,"Reserve Risk",null,null,null,{"$f":"+F447","v":0},null,null,{"$f":"+I447","v":0}]
[null,"Credit Risk",null,null,null,{"$f":"+F483","v":0},null,null,{"$f":"+I483","v":0}]
[null,"Catastrophe Risk",null,null,null,{"$f":"+F506","v":0},null,null,{"$f":"+I506","v":0}]
[]
[null,"BSCR (Prior to Covariance Adjustment)",null,null,null,{"$f":"SUM(F510:F519)","v":0},null,null,{"$f":"SUM(I510:I519)","v":0}]
[]
[null,"BSCR (After Covariance Adjustment)",null,null,null,{"$f":"(F510^2+F511^2+F512^2+F513^2+F515^2+F514^2+F516^2+F519^2+(1/2*F518+F517)^2+(1/2*F518)^2)^0.5","v":0},null,null,{"$f":"(I510^2+I511^2+I512^2+I513^2+I515^2+I514^2+I516^2+I519^2+(1/2*I518+I517)^2+(1/2*I518)^2)^0.5","v":0}]
[]
[null,"Operational risk charge (%)",null,null,null,{"$f":"+Summary!G74","v":0.1}]
[]
[null,"Operational risk capital charge ($)",null,null,null,{"$f":"F523*F525","v":0},null,null,{"$f":"IF(I525=\"\",I523*F525,I523*I525)","v":0}]
[]
[null,"Capital add-on / reduction (BMA assessment)"]
[]
[null,{"$f":"+Summary!C78","v":"Capital Adjustment for (Regulatory) Capital Requirement for Regulated Non-Insurance Financial Operating Entities:"},null,null,null,{"$f":"+Summary!N78","v":0},null,null,{"$f":"+Summary!N78","v":0}]
[null,"BSCR ",null,null,null,{"$f":"F523+F527+F529+F531","v":0},null,null,{"$f":"I523+I527+I529+I531","v":0}]

{"sheet":"Correlation Matrix","index":135,"n_rows":67,"n_cols":26,"rows_kept":67,"cut":false,"hidden":false,"merged":[[2,3,2,5],[0,24,0,25]]}
["Correlation Factors",null,null,null,null,null,null,null,null,null,null,null,null,null,null,null,null,null,null,null,null,null,null,null,{"$f":"HYPERLINK(\"#'Index'!A1\",\"Return to Index\")","v":"Return to Index"}]
[{"$f":"'Company Information'!C7","v":"Enter Company Name"}]
[{"$f":"\"Premium Risk\" & \"($\"&IF(CONFIGURATION!$B$12>1,MID(CONFIGURATION!$B$12,2,LEN(CONFIGURATION!$B$12)),\"\")&\")\"","v":"Premium Risk($000)"}]
[]
["Market Risk",null,null,null,null,null,null,null,"P&C Insurance Risk",null,null,null,null,"Overall BSCR",null,null,null,null,"Year-End","Transition Rate",null,"Capital Charges - Gross",null,null,"Capital Charges - Net"]
[null,"Cfi","Ceq","Cint","CCur","CDa","Cconc",null,null,"Cprem","Crsvs","Ccat",null,null,"Market","Credit","P&C",null,"2019-01-01",0.33,null,"Market",{"$f":"Summary!N54","v":0},null,"Market",{"$f":"Summary!L54","v":0}]
["Cfi",1,0.5,{"$f":"IF(Summary!E57=\"Duration-Based Approach\",0.25,IF('Interest Rate-Liquidity (Rev.)'!$E$109=\"Down\",0.25,0))","v":0.25},0.25,0.25,0,null,"Cprem",1,0.25,0.125,null,"Market",1,0.25,0.125,null,"2020-01-01",0.66,null,"Credit",{"$f":"Summary!N62","v":0},null,"Credit",{"$f":"Summary!L62","v":0}]
["Ceq",0.5,1,{"$f":"IF(Summary!E57=\"Duration-Based Approach\",0.25,IF('Interest Rate-Liquidity (Rev.)'!$E$109=\"Down\",0.25,0))","v":0.25},0.25,0.25,0,null,"Crsvs",0.25,1,0,null,"Credit",0.25,1,0.5,null,"2021-01-01",1,null,"P&C",{"$f":"Summary!N65","v":0},null,"P&C",{"$f":"Summary!L65","v":0}]
["Cint",{"$f":"IF(Summary!E57=\"Duration-Based Approach\",0.25,IF('Interest Rate-Liquidity (Rev.)'!$E$109=\"Down\",0.25,0))","v":0.25},{"$f":"IF(Summary!E57=\"Duration-Based Approach\",0.25,IF('Interest Rate-Liquidity (Rev.)'!$E$109=\"Down\",0.25,0))","v":0.25},1,0.25,0.25,0,null,"Ccat",0.125,0,1,null,"P&C",0.125,0.5,1,null,null,null,null,null,{"$f":"SUM(W6:W8)","v":0},null,null,{"$f":"SUM(Z6:Z8)","v":0}]
["CCur",0.25,0.25,0.25,1,0.25,0]
["CDa",0.25,0.25,0.25,0.25,1,0]
["Cconc",0,0,0,0,0,1]
[]
[null,"Premium Risk"]
[null,null,"Prop Cat","Prop","Prop NP","PA","PA NP","Aviatn","AviatnNP","C/S","C/S NP","Ergy O/M","Ergy O/MNP","US Cas","US CasNP","US Prof","US ProfNP","US Spec","US SpecNP","IntMotor","IntMotorNP","IntCas","IntCasNP","Retro Prop","Str/Fin Re","Health"]
[null,"Prop Cat",1,0.25,0.25,0.25,0.25,0.25,0.25,0.25,0.25,0.25,0.25,0.25,0.25,0.25,0.25,0.25,0.25,0.25,0.25,0.25,0.25,0.25,0.25,0.25]
[null,"Prop",0.25,1,0.5,0.25,0.25,0.25,0.25,0.25,0.25,0.25,0.25,0.25,0.25,0.25,0.25,0.25,0.25,0.25,0.25,0.25,0.25,0.25,0.25,0.25]
[null,"Prop NP",0.25,0.5,1,0.25,0.25,0.25,0.25,0.25,0.25,0.25,0.25,0.25,0.25,0.25,0.25,0.25,0.25,0.25,0.25,0.25,0.25,0.25,0.25,0.25]
[null,"PA",0.25,0.25,0.25,1,0.5,0.25,0.25,0.25,0.25,0.25,0.25,0.25,0.25,0.25,0.25,0.25,0.25,0.25,0.25,0.25,0.25,0.25,0.25,0.25]
[null,"PA NP",0.25,0.25,0.25,0.5,1,0.25,0.25,0.25,0.25,0.25,0.25,0.25,0.25,0.25,0.25,0.25,0.25,0.25,0.25,0.25,0.25,0.25,0.25,0.25]
[null,"Aviatn",0.25,0.25,0.25,0.25,0.25,1,0.5,0.25,0.25,0.25,0.25,0.25,0.25,0.25,0.25,0.25,0.25,0.25,0.25,0.25,0.25,0.25,0.25,0.25]
[null,"AviatnNP",0.25,0.25,0.25,0.25,0.25,0.5,1,0.25,0.25,0.25,0.25,0.25,0.25,0.25,0.25,0.25,0.25,0.25,0.25,0.25,0.25,0.25,0.25,0.25]
[null,"C/S",0.25,0.25,0.25,0.25,0.25,0.25,0.25,1,0.5,0.25,0.25,0.25,0.25,0.25,0.25,0.25,0.25,0.25,0.25,0.25,0.25,0.25,0.25,0.25]
[null,"C/S NP",0.25,0.25,0.25,0.25,0.25,0.25,0.25,0.5,1,0.25,0.25,0.25,0.25,0.25,0.25,0.25,0.25,0.25,0.25,0.25,0.25,0.25,0.25,0.25]
[null,"Ergy O/M",0.25,0.25,0.25,0.25,0.25,0.25,0.25,0.25,0.25,1,0.5,0.25,0.25,0.25,0.25,0.25,0.25,0.25,0.25,0.25,0.25,0.25,0.25,0.25]
[null,"Ergy O/MNP",0.25,0.25,0.25,0.25,0.25,0.25,0.25,0.25,0.25,0.5,1,0.25,0.25,0.25,0.25,0.25,0.25,0.25,0.25,0.25,0.25,0.25,0.25,0.25]
[null,"US Cas",0.25,0.25,0.25,0.25,0.25,0.25,0.25,0.25,0.25,0.25,0.25,1,0.5,0.5,0.5,0.25,0.25,0.25,0.25,0.5,0.5,0.25,0.25,0.25]
[null,"US CasNP",0.25,0.25,0.25,0.25,0.25,0.25,0.25,0.25,0.25,0.25,0.25,0.5,1,0.5,0.5,0.25,0.25,0.25,0.25,0.5,0.5,0.25,0.25,0.25]
[null,"US Prof",0.25,0.25,0.25,0.25,0.25,0.25,0.25,0.25,0.25,0.25,0.25,0.5,0.5,1,0.5,0.25,0.25,0.25,0.25,0.5,0.5,0.25,0.25,0.25]
[null,"US ProfNP",0.25,0.25,0.25,0.25,0.25,0.25,0.25,0.25,0.25,0.25,0.25,0.5,0.5,0.5,1,0.25,0.25,0.25,0.25,0.5,0.5,0.25,0.25,0.25]
[null,"US Spec",0.25,0.25,0.25,0.25,0.25,0.25,0.25,0.25,0.25,0.25,0.25,0.25,0.25,0.25,0.25,1,0.5,0.25,0.25,0.25,0.25,0.25,0.25,0.25]
[null,"US SpecNP",0.25,0.25,0.25,0.25,0.25,0.25,0.25,0.25,0.25,0.25,0.25,0.25,0.25,0.25,0.25,0.5,1,0.25,0.25,0.25,0.25,0.25,0.25,0.25]
[null,"IntMotor",0.25,0.25,0.25,0.25,0.25,0.25,0.25,0.25,0.25,0.25,0.25,0.25,0.25,0.25,0.25,0.25,0.25,1,0.5,0.25,0.25,0.25,0.25,0.25]
[null,"IntMotorNP",0.25,0.25,0.25,0.25,0.25,0.25,0.25,0.25,0.25,0.25,0.25,0.25,0.25,0.25,0.25,0.25,0.25,0.5,1,0.25,0.25,0.25,0.25,0.25]
[null,"IntCas",0.25,0.25,0.25,0.25,0.25,0.25,0.25,0.25,0.25,0.25,0.25,0.5,0.5,0.5,0.5,0.25,0.25,0.25,0.25,1,0.5,0.25,0.25,0.25]
[null,"IntCasNP",0.25,0.25,0.25,0.25,0.25,0.25,0.25,0.25,0.25,0.25,0.25,0.5,0.5,0.5,0.5,0.25,0.25,0.25,0.25,0.5,1,0.25,0.25,0.25]
[null,"Retro Prop",0.25,0.25,0.25,0.25,0.25,0.25,0.25,0.25,0.25,0.25,0.25,0.25,0.25,0.25,0.25,0.25,0.25,0.25,0.25,0.25,0.25,1,0.25,0.25]
[null,"Str/Fin Re",0.25,0.25,0.25,0.25,0.25,0.25,0.25,0.25,0.25,0.25,0.25,0.25,0.25,0.25,0.25,0.25,0.25,0.25,0.25,0.25,0.25,0.25,1,0.25]
[null,"Health",0.25,0.25,0.25,0.25,0.25,0.25,0.25,0.25,0.25,0.25,0.25,0.25,0.25,0.25,0.25,0.25,0.25,0.25,0.25,0.25,0.25,0.25,0.25,1]
[]
[]
[null,"Reserve Risk"]
[null,null,"Prop Cat","Prop","Prop NP","PA","PA NP","Aviatn","AviatnNP","C/S","C/S NP","Ergy O/M","Ergy O/MNP","US Cas","US CasNP","US Prof","US ProfNP","US Spec","US SpecNP","IntMotor","IntMotorNP","IntCas","IntCasNP","Retro Prop","Str/Fin Re","Health"]
[null,"Prop Cat",1,0.25,0.25,0.25,0.25,0.25,0.25,0.25,0.25,0.25,0.25,0.25,0.25,0.25,0.25,0.25,0.25,0.25,0.25,0.25,0.25,0.25,0.25,0.25]
[null,"Prop",0.25,1,0.5,0.25,0.25,0.25,0.25,0.25,0.25,0.25,0.25,0.25,0.25,0.25,0.25,0.25,0.25,0.25,0.25,0.25,0.25,0.25,0.25,0.25]
[null,"Prop NP",0.25,0.5,1,0.25,0.25,0.25,0.25,0.25,0.25,0.25,0.25,0.25,0.25,0.25,0.25,0.25,0.25,0.25,0.25,0.25,0.25,0.25,0.25,0.25]
[null,"PA",0.25,0.25,0.25,1,0.5,0.25,0.25,0.25,0.25,0.25,0.25,0.25,0.25,0.25,0.25,0.25,0.25,0.25,0.25,0.25,0.25,0.25,0.25,0.25]
[null,"PA NP",0.25,0.25,0.25,0.5,1,0.25,0.25,0.25,0.25,0.25,0.25,0.25,0.25,0.25,0.25,0.25,0.25,0.25,0.25,0.25,0.25,0.25,0.25,0.25]
[null,"Aviatn",0.25,0.25,0.25,0.25,0.25,1,0.5,0.25,0.25,0.25,0.25,0.25,0.25,0.25,0.25,0.25,0.25,0.25,0.25,0.25,0.25,0.25,0.25,0.25]
[null,"AviatnNP",0.25,0.25,0.25,0.25,0.25,0.5,1,0.25,0.25,0.25,0.25,0.25,0.25,0.25,0.25,0.25,0.25,0.25,0.25,0.25,0.25,0.25,0.25,0.25]
[null,"C/S",0.25,0.25,0.25,0.25,0.25,0.25,0.25,1,0.5,0.25,0.25,0.25,0.25,0.25,0.25,0.25,0.25,0.25,0.25,0.25,0.25,0.25,0.25,0.25]
[null,"C/S NP",0.25,0.25,0.25,0.25,0.25,0.25,0.25,0.5,1,0.25,0.25,0.25,0.25,0.25,0.25,0.25,0.25,0.25,0.25,0.25,0.25,0.25,0.25,0.25]
[null,"Ergy O/M",0.25,0.25,0.25,0.25,0.25,0.25,0.25,0.25,0.25,1,0.5,0.25,0.25,0.25,0.25,0.25,0.25,0.25,0.25,0.25,0.25,0.25,0.25,0.25]
[null,"Ergy O/MNP",0.25,0.25,0.25,0.25,0.25,0.25,0.25,0.25,0.25,0.5,1,0.25,0.25,0.25,0.25,0.25,0.25,0.25,0.25,0.25,0.25,0.25,0.25,0.25]
[null,"US Cas",0.25,0.25,0.25,0.25,0.25,0.25,0.25,0.25,0.25,0.25,0.25,1,0.5,0.5,0.5,0.25,0.25,0.25,0.25,0.5,0.5,0.25,0.25,0.25]
[null,"US CasNP",0.25,0.25,0.25,0.25,0.25,0.25,0.25,0.25,0.25,0.25,0.25,0.5,1,0.5,0.5,0.25,0.25,0.25,0.25,0.5,0.5,0.25,0.25,0.25]
[null,"US Prof",0.25,0.25,0.25,0.25,0.25,0.25,0.25,0.25,0.25,0.25,0.25,0.5,0.5,1,0.5,0.25,0.25,0.25,0.25,0.5,0.5,0.25,0.25,0.25]
[null,"US ProfNP",0.25,0.25,0.25,0.25,0.25,0.25,0.25,0.25,0.25,0.25,0.25,0.5,0.5,0.5,1,0.25,0.25,0.25,0.25,0.5,0.5,0.25,0.25,0.25]
[null,"US Spec",0.25,0.25,0.25,0.25,0.25,0.25,0.25,0.25,0.25,0.25,0.25,0.25,0.25,0.25,0.25,1,0.5,0.25,0.25,0.25,0.25,0.25,0.25,0.25]
[null,"US SpecNP",0.25,0.25,0.25,0.25,0.25,0.25,0.25,0.25,0.25,0.25,0.25,0.25,0.25,0.25,0.25,0.5,1,0.25,0.25,0.25,0.25,0.25,0.25,0.25]
[null,"IntMotor",0.25,0.25,0.25,0.25,0.25,0.25,0.25,0.25,0.25,0.25,0.25,0.25,0.25,0.25,0.25,0.25,0.25,1,0.5,0.25,0.25,0.25,0.25,0.25]
[null,"IntMotorNP",0.25,0.25,0.25,0.25,0.25,0.25,0.25,0.25,0.25,0.25,0.25,0.25,0.25,0.25,0.25,0.25,0.25,0.5,1,0.25,0.25,0.25,0.25,0.25]
[null,"IntCas",0.25,0.25,0.25,0.25,0.25,0.25,0.25,0.25,0.25,0.25,0.25,0.5,0.5,0.5,0.5,0.25,0.25,0.25,0.25,1,0.5,0.25,0.25,0.25]
[null,"IntCasNP",0.25,0.25,0.25,0.25,0.25,0.25,0.25,0.25,0.25,0.25,0.25,0.5,0.5,0.5,0.5,0.25,0.25,0.25,0.25,0.5,1,0.25,0.25,0.25]
[null,"Retro Prop",0.25,0.25,0.25,0.25,0.25,0.25,0.25,0.25,0.25,0.25,0.25,0.25,0.25,0.25,0.25,0.25,0.25,0.25,0.25,0.25,0.25,1,0.25,0.25]
[null,"Str/Fin Re",0.25,0.25,0.25,0.25,0.25,0.25,0.25,0.25,0.25,0.25,0.25,0.25,0.25,0.25,0.25,0.25,0.25,0.25,0.25,0.25,0.25,0.25,1,0.25]
[null,"Health",0.25,0.25,0.25,0.25,0.25,0.25,0.25,0.25,0.25,0.25,0.25,0.25,0.25,0.25,0.25,0.25,0.25,0.25,0.25,0.25,0.25,0.25,0.25,1]

{"sheet":"Company Specific Parameters","index":136,"n_rows":719,"n_cols":24,"rows_kept":719,"cut":false,"hidden":false,"merged":[[311,5,311,6],[310,2,310,6],[2,8,3,11],[5,1,5,11],[103,3,103,4],[103,5,103,6],[102,3,102,6],[3,2,3,3],[531,7,533,7],[138,3,138,5],[139,4,139,5],[139,6,140,6],[0,0,0,6],[2,0,2,3],[116,3,116,6],[117,3,117,4],[117,5,117,6],[510,2,512,2],[510,3,512,3],[510,4,512,4],[510,5,512,5],[202,3,203,4],[202,5,204,5],[311,3,311,4]]}
["COMPANY SPECIFIC PARAMETERS (REVISED)",null,null,null,null,null,null,null,null,null,null,{"$f":"HYPERLINK(\"#'Index'!A1\",\"Return to Index\")","v":"Return to Index"},null,null,null,null,null,null,null,null,null,null,null,{"$f":"IF(C4=\"\",\"\",TEXT(DATE(YEAR(C4+1)-1,MONTH(C4+1),DAY(C4+1)),\"mm/dd/yyyy\"))","v":"01/01/2022"}]
[null,null,null,null,null,null,null,null,null,null,null,null,null,null,null,null,null,null,null,null,null,null,null,{"$f":"IF(C4=\"\",\"\",TEXT(C4,\"mm/dd/yyyy\"))","v":"12/31/2022"}]
[{"$f":"'Company Information'!C7","v":"Enter Company Name"},null,null,null,null,null,null,null,{"$f":"HYPERLINK(\"#'Attachments'!A205\",\"Details of User Capital Factor to be included in the attachments section 11.\")","v":"Details of User Capital Factor to be included in the attachments section 11."}]
["For the Year Ending ",null,{"$f":"'Company Information'!C3","v":"2022-12-31"}]
[null,null,null,null,null,null,null,null,null,null,null,null,null,null,null,null,null,null,null,null,null,null,null,{"$f":"IF(D7=\"\",\"\",TEXT(D7,\"mm/dd/yyyy\"))","v":""}]
[null,"To be completed only with prior approval from the Bermuda Monetary Authority"]
[null,null,null,null,null,null,null,null,null,null,null,null,null,null,null,null,null,null,null,null,null,null,null,{"$f":"IF(D9=\"\",\"\",TEXT(D9,\"mm/dd/yyyy\"))","v":""}]
[null,null,null,null,null,null,null,"STANDARD","STANDARD",null,"USER","USER"]
[null,"TYPE OF ",null,null,null,null,"ASSET","CAPITAL","REQUIRED",null,"CAPITAL","REQUIRED"]
[null,"FIXED INCOME INVESTMENTS",null,null,null,null,"VALUE","FACTOR","CAPITAL",null,"FACTOR","CAPITAL"]
[]
[null,"(a) Corporate & Sovereign Bonds",null,null,null,null,"(1) ","(2)","(1) x (2)",null,"(3)","(1) x (3)"]
[]
[null,"BSCR Rating"]
[null,0,null,null,null,null,{"$f":"'Schedule IIB'!D13+'Schedule IIC'!D13+(MAX(0,'Schedule IID'!D13-'Schedule IID'!F13))+'Schedule IIE'!D13+'Schedule IIF'!D13","v":0},{"$f":"'Fixed Income Investments'!H12","v":0},{"$f":"IF(G15<0,0,G15*H15)","v":0},null,null,{"$f":"MAX(0,IF(K15=\"\",H15*G15,G15*K15))","v":0}]
[null,1,null,null,null,null,{"$f":"'Schedule IIB'!D14+'Schedule IIC'!D14+(MAX(0,'Schedule IID'!D14-'Schedule IID'!F14))+'Schedule IIE'!D14+'Schedule IIF'!D14","v":0},{"$f":"'Fixed Income Investments'!H13","v":4.0000000000000001E-3},0,null,null,{"$f":"MAX(0,IF(K16=\"\",H16*G16,G16*K16))","v":0}]
[null,2,null,null,null,null,{"$f":"'Schedule IIB'!D15+'Schedule IIC'!D15+(MAX(0,'Schedule IID'!D15-'Schedule IID'!F15))+'Schedule IIE'!D15+'Schedule IIF'!D15","v":0},{"$f":"'Fixed Income Investments'!H14","v":8.0000000000000002E-3},0,null,null,0]
[null,3,null,null,null,null,{"$f":"'Schedule IIB'!D16+'Schedule IIC'!D16+(MAX(0,'Schedule IID'!D16-'Schedule IID'!F16))+'Schedule IIE'!D16+'Schedule IIF'!D16","v":0},{"$f":"'Fixed Income Investments'!H15","v":1.4999999999999999E-2},0,null,null,0]
[null,4,null,null,null,null,{"$f":"'Schedule IIB'!D17+'Schedule IIC'!D17+(MAX(0,'Schedule IID'!D17-'Schedule IID'!F17))+'Schedule IIE'!D17+'Schedule IIF'!D17","v":0},{"$f":"'Fixed Income Investments'!H16","v":0.03},0,null,null,0]
[null,5,null,null,null,null,{"$f":"'Schedule IIB'!D18+'Schedule IIC'!D18+(MAX(0,'Schedule IID'!D18-'Schedule IID'!F18))+'Schedule IIE'!D18+'Schedule IIF'!D18","v":0},{"$f":"'Fixed Income Investments'!H17","v":0.08},0,null,null,0]
[null,6,null,null,null,null,{"$f":"'Schedule IIB'!D19+'Schedule IIC'!D19+(MAX(0,'Schedule IID'!D19-'Schedule IID'!F19))+'Schedule IIE'!D19+'Schedule IIF'!D19","v":0},{"$f":"'Fixed Income Investments'!H18","v":0.15},0,null,null,0]
[null,7,null,null,null,null,{"$f":"'Schedule IIB'!D20+'Schedule IIC'!D20+(MAX(0,'Schedule IID'!D20-'Schedule IID'!F20))+'Schedule IIE'!D20+'Schedule IIF'!D20","v":0},{"$f":"'Fixed Income Investments'!H19","v":0.26300000000000001},0,null,null,0]
[null,8,null,null,null,null,{"$f":"'Schedule IIB'!D21+'Schedule IIC'!D21+(MAX(0,'Schedule IID'!D21-'Schedule IID'!F21))+'Schedule IIE'!D21+'Schedule IIF'!D21","v":0},{"$f":"'Fixed Income Investments'!H20","v":0.35},0,null,null,0]
[]
[null,"(a)  SUBTOTAL -  CORPORATE BONDS",null,null,null,null,{"$f":"SUM(G15:G24)","v":0},null,{"$f":"IF(SUM(I15:I23)>=0,SUM(I15:I23),0)","v":0},null,null,{"$f":"IF(SUM(L15:L23)>=0,SUM(L15:L23),0)","v":0}]
[]
[null,"(b) Residential Mortgage-Backed Securities"]
[]
[null,"BSCR Rating"]
[null,1,null,null,null,null,{"$f":"'Schedule IIB'!H14+'Schedule IIC'!H14+(MAX(0,'Schedule IID'!H14-'Schedule IID'!J14))+'Schedule IIE'!H14+'Schedule IIF'!H14","v":0},{"$f":"'Fixed Income Investments'!H27","v":6.0000000000000001E-3},{"$f":"IF(G30<0,0,G30*H30)","v":0},null,null,{"$f":"MAX(0,IF(K30=\"\",H30*G30,G30*K30))","v":0}]
[null,2,null,null,null,null,{"$f":"'Schedule IIB'!H15+'Schedule IIC'!H15+(MAX(0,'Schedule IID'!H15-'Schedule IID'!J15))+'Schedule IIE'!H15+'Schedule IIF'!H15","v":0},{"$f":"'Fixed Income Investments'!H28","v":1.2E-2},0,null,null,0]
[null,3,null,null,null,null,{"$f":"'Schedule IIB'!H16+'Schedule IIC'!H16+(MAX(0,'Schedule IID'!H16-'Schedule IID'!J16))+'Schedule IIE'!H16+'Schedule IIF'!H16","v":0},{"$f":"'Fixed Income Investments'!H29","v":0.02},0,null,null,0]
[null,4,null,null,null,null,{"$f":"'Schedule IIB'!H17+'Schedule IIC'!H17+(MAX(0,'Schedule IID'!H17-'Schedule IID'!J17))+'Schedule IIE'!H17+'Schedule IIF'!H17","v":0},{"$f":"'Fixed Income Investments'!H30","v":0.04},0,null,null,0]
[null,5,null,null,null,null,{"$f":"'Schedule IIB'!H18+'Schedule IIC'!H18+(MAX(0,'Schedule IID'!H18-'Schedule IID'!J18))+'Schedule IIE'!H18+'Schedule IIF'!H18","v":0},{"$f":"'Fixed Income Investments'!H31","v":0.11},0,null,null,0]
[null,6,null,null,null,null,{"$f":"'Schedule IIB'!H19+'Schedule IIC'!H19+(MAX(0,'Schedule IID'!H19-'Schedule IID'!J19))+'Schedule IIE'!H19+'Schedule IIF'!H19","v":0},{"$f":"'Fixed Income Investments'!H32","v":0.25},0,null,null,0]
[null,7,null,null,null,null,{"$f":"'Schedule IIB'!H20+'Schedule IIC'!H20+(MAX(0,'Schedule IID'!H20-'Schedule IID'!J20))+'Schedule IIE'!H20+'Schedule IIF'!H20","v":0},{"$f":"'Fixed Income Investments'!H33","v":0.35},0,null,null,0]
[null,8,null,null,null,null,{"$f":"'Schedule IIB'!H21+'Schedule IIC'!H21+(MAX(0,'Schedule IID'!H21-'Schedule IID'!J21))+'Schedule IIE'!H21+'Schedule IIF'!H21","v":0},{"$f":"'Fixed Income Investments'!H34","v":0.35},0,null,null,0]
[]
[null,"(b)  SUBTOTAL - RESIDENTIAL MORTGAGE-BACKED SECURITIES",null,null,null,null,{"$f":"SUM(G29:G38)","v":0},null,{"$f":"IF(SUM(I29:I37)>=0,SUM(I29:I37),0)","v":0},null,null,{"$f":"IF(SUM(L29:L37)>=0,SUM(L29:L37),0)","v":0}]
[]
[null,"(c) Commercial Mortgage-Backed Securities / Asset-Backed Securities"]
[]
[null,"BSCR Rating"]
[null,1,null,null,null,null,{"$f":"'Schedule IIB'!L14+'Schedule IIC'!L14+(MAX(0,'Schedule IID'!L14-'Schedule IID'!N14))+'Schedule IIE'!L14+'Schedule IIF'!L14","v":0},{"$f":"'Fixed Income Investments'!H41","v":5.0000000000000001E-3},{"$f":"IF(G44<0,0,G44*H44)","v":0},null,null,{"$f":"MAX(0,IF(K44=\"\",H44*G44,G44*K44))","v":0}]
[null,2,null,null,null,null,{"$f":"'Schedule IIB'!L15+'Schedule IIC'!L15+(MAX(0,'Schedule IID'!L15-'Schedule IID'!N15))+'Schedule IIE'!L15+'Schedule IIF'!L15","v":0},{"$f":"'Fixed Income Investments'!H42","v":0.01},0,null,null,0]
[null,3,null,null,null,null,{"$f":"'Schedule IIB'!L16+'Schedule IIC'!L16+(MAX(0,'Schedule IID'!L16-'Schedule IID'!N16))+'Schedule IIE'!L16+'Schedule IIF'!L16","v":0},{"$f":"'Fixed Income Investments'!H43","v":1.7999999999999999E-2},0,null,null,0]
[null,4,null,null,null,null,{"$f":"'Schedule IIB'!L17+'Schedule IIC'!L17+(MAX(0,'Schedule IID'!L17-'Schedule IID'!N17))+'Schedule IIE'!L17+'Schedule IIF'!L17","v":0},{"$f":"'Fixed Income Investments'!H44","v":3.5000000000000003E-2},0,null,null,0]
[null,5,null,null,null,null,{"$f":"'Schedule IIB'!L18+'Schedule IIC'!L18+(MAX(0,'Schedule IID'!L18-'Schedule IID'!N18))+'Schedule IIE'!L18+'Schedule IIF'!L18","v":0},{"$f":"'Fixed Income Investments'!H45","v":0.1},0,null,null,0]
[null,6,null,null,null,null,{"$f":"'Schedule IIB'!L19+'Schedule IIC'!L19+(MAX(0,'Schedule IID'!L19-'Schedule IID'!N19))+'Schedule IIE'!L19+'Schedule IIF'!L19","v":0},{"$f":"'Fixed Income Investments'!H46","v":0.2},0,null,null,0]
[null,7,null,null,null,null,{"$f":"'Schedule IIB'!L20+'Schedule IIC'!L20+(MAX(0,'Schedule IID'!L20-'Schedule IID'!N20))+'Schedule IIE'!L20+'Schedule IIF'!L20","v":0},{"$f":"'Fixed Income Investments'!H47","v":0.3},0,null,null,0]
[null,8,null,null,null,null,{"$f":"'Schedule IIB'!L21+'Schedule IIC'!L21+(MAX(0,'Schedule IID'!L21-'Schedule IID'!N21))+'Schedule IIE'!L21+'Schedule IIF'!L21","v":0},{"$f":"'Fixed Income Investments'!H48","v":0.35},0,null,null,0]
[]
[null,"(c)  SUBTOTAL - COMMERCIAL MORTGAGE-BACKED SECURITIES / ASSET-BACKED SECURITIES",null,null,null,null,{"$f":"SUM(G43:G52)","v":0},null,{"$f":"IF(SUM(I43:I51)>=0,SUM(I43:I51),0)","v":0},null,null,{"$f":"IF(SUM(L43:L51)>=0,SUM(L43:L51),0)","v":0}]
[]
[null,"(d) Bond Mutual Funds"]
[]
[null,"BSCR Rating"]
[null,0,null,null,null,null,{"$f":"'Schedule IIB'!P13+'Schedule IIC'!P13+(MAX(0,'Schedule IID'!P13-'Schedule IID'!R13))+'Schedule IIE'!P13+'Schedule IIF'!P13","v":0},{"$f":"'Fixed Income Investments'!H56","v":0},{"$f":"IF(G58<0,0,G58*H58)","v":0},null,null,{"$f":"MAX(0,IF(K58=\"\",H58*G58,G58*K58))","v":0}]
[null,1,null,null,null,null,{"$f":"'Schedule IIB'!P14+'Schedule IIC'!P14+(MAX(0,'Schedule IID'!P14-'Schedule IID'!R14))+'Schedule IIE'!P14+'Schedule IIF'!P14","v":0},{"$f":"'Fixed Income Investments'!H57","v":4.0000000000000001E-3},0,null,null,0]
[null,2,null,null,null,null,{"$f":"'Schedule IIB'!P15+'Schedule IIC'!P15+(MAX(0,'Schedule IID'!P15-'Schedule IID'!R15))+'Schedule IIE'!P15+'Schedule IIF'!P15","v":0},{"$f":"'Fixed Income Investments'!H58","v":8.0000000000000002E-3},0,null,null,0]
[null,3,null,null,null,null,{"$f":"'Schedule IIB'!P16+'Schedule IIC'!P16+(MAX(0,'Schedule IID'!P16-'Schedule IID'!R16))+'Schedule IIE'!P16+'Schedule IIF'!P16","v":0},{"$f":"'Fixed Income Investments'!H59","v":1.4999999999999999E-2},0,null,null,0]
[null,4,null,null,null,null,{"$f":"'Schedule IIB'!P17+'Schedule IIC'!P17+(MAX(0,'Schedule IID'!P17-'Schedule IID'!R17))+'Schedule IIE'!P17+'Schedule IIF'!P17","v":0},{"$f":"'Fixed Income Investments'!H60","v":0.03},0,null,null,0]
[null,5,null,null,null,null,{"$f":"'Schedule IIB'!P18+'Schedule IIC'!P18+(MAX(0,'Schedule IID'!P18-'Schedule IID'!R18))+'Schedule IIE'!P18+'Schedule IIF'!P18","v":0},{"$f":"'Fixed Income Investments'!H61","v":0.08},0,null,null,0]
[null,6,null,null,null,null,{"$f":"'Schedule IIB'!P19+'Schedule IIC'!P19+(MAX(0,'Schedule IID'!P19-'Schedule IID'!R19))+'Schedule IIE'!P19+'Schedule IIF'!P19","v":0},{"$f":"'Fixed Income Investments'!H62","v":0.15},0,null,null,0]
[null,7,null,null,null,null,{"$f":"'Schedule IIB'!P20+'Schedule IIC'!P20+(MAX(0,'Schedule IID'!P20-'Schedule IID'!R20))+'Schedule IIE'!P20+'Schedule IIF'!P20","v":0},{"$f":"'Fixed Income Investments'!H63","v":0.26300000000000001},0,null,null,0]
[null,8,null,null,null,null,{"$f":"'Schedule IIB'!P21+'Schedule IIC'!P21+(MAX(0,'Schedule IID'!P21-'Schedule IID'!R21))+'Schedule IIE'!P21+'Schedule IIF'!P21","v":0},{"$f":"'Fixed Income Investments'!H64","v":0.35},0,null,null,0]
[]
[null,"(d)  SUBTOTAL - BOND MUTUAL FUNDS",null,null,null,null,{"$f":"SUM(G58:G67)","v":0},null,{"$f":"IF(SUM(I58:I66)>=0,SUM(I58:I66),0)","v":0},null,null,{"$f":"IF(SUM(L58:L66)>=0,SUM(L58:L66),0)","v":0}]
[]
[null,"(e) Mortgage Loans"]
[]
[null,"Insured/Guaranteed Mortgages",null,null,null,null,{"$f":"'Schedule IIB'!T22+'Schedule IIC'!T22+(MAX(0,'Schedule IID'!T22-'Schedule IID'!V22))+'Schedule IIE'!T22+'Schedule IIF'!T22","v":0},{"$f":"'Fixed Income Investments'!H70","v":3.0000000000000001E-3},{"$f":"IF(G72<0,0,G72*H72)","v":0},null,null,{"$f":"MAX(0,IF(K72=\"\",H72*G72,G72*K72))","v":0}]
[null,"Other Commercial and Farm Mortgages",null,null,null,null,{"$f":"'Schedule IIB'!T23+'Schedule IIC'!T23+(MAX(0,'Schedule IID'!T23-'Schedule IID'!V23))+'Schedule IIE'!T23+'Schedule IIF'!T23","v":0},{"$f":"'Fixed Income Investments'!H71","v":0.05},{"$f":"IF(G73<0,0,G73*H73)","v":0},null,null,{"$f":"MAX(0,IF(K73=\"\",H73*G73,G73*K73))","v":0}]
[null,"Other Residential Mortgages",null,null,null,null,{"$f":"'Schedule IIB'!T24+'Schedule IIC'!T24+(MAX(0,'Schedule IID'!T24-'Schedule IID'!V24))+'Schedule IIE'!T24+'Schedule IIF'!T24","v":0},{"$f":"'Fixed Income Investments'!H72","v":1.4999999999999999E-2},{"$f":"IF(G74<0,0,G74*H74)","v":0},null,null,{"$f":"MAX(0,IF(K74=\"\",H74*G74,G74*K74))","v":0}]
[null,"Mortgages Not In Good Standing",null,null,null,null,{"$f":"'Schedule IIB'!T25+'Schedule IIC'!T25+(MAX(0,'Schedule IID'!T25-'Schedule IID'!V25))+'Schedule IIE'!T25+'Schedule IIF'!T25","v":0},{"$f":"'Fixed Income Investments'!H73","v":0.25},{"$f":"IF(G75<0,0,G75*H75)","v":0},null,null,{"$f":"MAX(0,IF(K75=\"\",H75*G75,G75*K75))","v":0}]
[]
[null,"(e)  SUBTOTAL - MORTGAGE LOANS",null,null,null,null,{"$f":"SUM(G72:G76)","v":0},null,{"$f":"IF(SUM(I72:I75)>=0,SUM(I72:I75),0)","v":0},null,null,{"$f":"IF(SUM(L72:L75)>=0,SUM(L72:L75),0)","v":0}]
[]
[null,"(f) Other Fixed Income Investments"]
[]
[null,"Other Loans",null,null,null,null,{"$f":"'Form 1SFS (Consolidated)'!M62","v":0},{"$f":"'Fixed Income Investments'!H79","v":0.05},{"$f":"IF(G81<0,0,G81*H81)","v":0},null,null,{"$f":"MAX(0,IF(K81=\"\",H81*G81,G81*K81))","v":0}]
[]
[null,"Cash and Cash Equivalent Counterparty Balances By BSCR Rating"]
[]
[null,"BSCR Rating 0 ",null,null,null,null,{"$f":"'Schedule XIXA'!F81","v":0},{"$f":"'Fixed Income Investments'!H83","v":0},{"$f":"IF(G85<0,0,G85*H85)","v":0},null,null,{"$f":"MAX(0,IF(K85=\"\",H85*G85,G85*K85))","v":0}]
[null,"BSCR Rating 1",null,null,null,null,{"$f":"'Schedule XIXA'!F82","v":0},{"$f":"'Fixed Income Investments'!H84","v":1E-3},{"$f":"IF(G86<0,0,G86*H86)","v":0},null,null,{"$f":"MAX(0,IF(K86=\"\",H86*G86,G86*K86))","v":0}]
[null,"BSCR Rating 2",null,null,null,null,{"$f":"'Schedule XIXA'!F83","v":0},{"$f":"'Fixed Income Investments'!H85","v":2E-3},0,null,null,0]
[null,"BSCR Rating 3",null,null,null,null,{"$f":"'Schedule XIXA'!F84","v":0},{"$f":"'Fixed Income Investments'!H86","v":3.0000000000000001E-3},0,null,null,0]
[null,"BSCR Rating 4",null,null,null,null,{"$f":"'Schedule XIXA'!F85","v":0},{"$f":"'Fixed Income Investments'!H87","v":5.0000000000000001E-3},0,null,null,0]
[null,"BSCR Rating 5",null,null,null,null,{"$f":"'Schedule XIXA'!F86","v":0},{"$f":"'Fixed Income Investments'!H88","v":1.4999999999999999E-2},0,null,null,0]
[null,"BSCR Rating 6",null,null,null,null,{"$f":"'Schedule XIXA'!F87","v":0},{"$f":"'Fixed Income Investments'!H89","v":0.04},0,null,null,0]
[null,"BSCR Rating 7",null,null,null,null,{"$f":"'Schedule XIXA'!F88","v":0},{"$f":"'Fixed Income Investments'!H90","v":0.06},0,null,null,0]
[null,"BSCR Rating 8",null,null,null,null,{"$f":"'Schedule XIXA'!F89","v":0},{"$f":"'Fixed Income Investments'!H91","v":0.09},0,null,null,0]
[]
[null,"Total",null,null,null,null,{"$f":"SUM(G85:G94)","v":0},null,{"$f":"SUM(I85:I94)","v":0},null,null,{"$f":"SUM(L85:L94)","v":0}]
[]
[null,"Diversification Adj at 40%",null,null,null,null,null,null,{"$f":"SUM(I85:I93)*-('Schedule XIXA'!F98)","v":0},null,null,{"$f":"SUM(L85:L93)*-('Schedule XIXA'!F98)","v":0}]
[]
[null,"(f)  SUBTOTAL - OTHER FIXED INCOME SECURITIES",null,null,null,null,{"$f":"G81+G95","v":0},null,{"$f":"IF(SUM(I81,I95,I97)>=0,SUM(I81,I95,I97),0)","v":0},null,null,{"$f":"IF(SUM(L81,L95,L97)>=0,SUM(L81,L95,L97),0)","v":0}]
[]
[null,"(g) Spread Risk for Credit Derivatives"]
[]
[null,null,null,"Spread Up"]
[null,null,null,"Long Exposures",null,"Short Exposures"]
[null,"Spread Up",null,"Before Shock","After Shock","Before Shock","After Shock"]
[null,"BSCR Rating 0 ",null,{"$f":"'Schedule IIB'!D68+'Schedule IIC'!D68+'Schedule IID'!D68+'Schedule IIE'!D68+'Schedule IIF'!D68","v":0},{"$f":"'Schedule IIB'!F68+'Schedule IIC'!F68+'Schedule IID'!F68+'Schedule IIE'!F68+'Schedule IIF'!F68","v":0},{"$f":"'Schedule IIB'!H68+'Schedule IIC'!H68+'Schedule IID'!H68+'Schedule IIE'!H68+'Schedule IIF'!H68","v":0},{"$f":"'Schedule IIB'!J68+'Schedule IIC'!J68+'Schedule IID'!J68+'Schedule IIE'!J68+'Schedule IIF'!J68","v":0},0,{"$f":"'Fixed Income Investments'!I105","v":0},null,null,{"$f":"IF(K106=\"\",I106,K106)","v":0}]
[null,"BSCR Rating 1",null,{"$f":"'Schedule IIB'!D69+'Schedule IIC'!D69+'Schedule IID'!D69+'Schedule IIE'!D69+'Schedule IIF'!D69","v":0},{"$f":"'Schedule IIB'!F69+'Schedule IIC'!F69+'Schedule IID'!F69+'Schedule IIE'!F69+'Schedule IIF'!F69","v":0},{"$f":"'Schedule IIB'!H69+'Schedule IIC'!H69+'Schedule IID'!H69+'Schedule IIE'!H69+'Schedule IIF'!H69","v":0},{"$f":"'Schedule IIB'!J69+'Schedule IIC'!J69+'Schedule IID'!J69+'Schedule IIE'!J69+'Schedule IIF'!J69","v":0},130,{"$f":"'Fixed Income Investments'!I106","v":0},null,null,{"$f":"IF(K107=\"\",I107,K107)","v":0}]
[null,"BSCR Rating 2",null,{"$f":"'Schedule IIB'!D70+'Schedule IIC'!D70+'Schedule IID'!D70+'Schedule IIE'!D70+'Schedule IIF'!D70","v":0},{"$f":"'Schedule IIB'!F70+'Schedule IIC'!F70+'Schedule IID'!F70+'Schedule IIE'!F70+'Schedule IIF'!F70","v":0},{"$f":"'Schedule IIB'!H70+'Schedule IIC'!H70+'Schedule IID'!H70+'Schedule IIE'!H70+'Schedule IIF'!H70","v":0},{"$f":"'Schedule IIB'!J70+'Schedule IIC'!J70+'Schedule IID'!J70+'Schedule IIE'!J70+'Schedule IIF'!J70","v":0},150,{"$f":"'Fixed Income Investments'!I107","v":0},null,null,0]
[null,"BSCR Rating 3",null,{"$f":"'Schedule IIB'!D71+'Schedule IIC'!D71+'Schedule IID'!D71+'Schedule IIE'!D71+'Schedule IIF'!D71","v":0},{"$f":"'Schedule IIB'!F71+'Schedule IIC'!F71+'Schedule IID'!F71+'Schedule IIE'!F71+'Schedule IIF'!F71","v":0},{"$f":"'Schedule IIB'!H71+'Schedule IIC'!H71+'Schedule IID'!H71+'Schedule IIE'!H71+'Schedule IIF'!H71","v":0},{"$f":"'Schedule IIB'!J71+'Schedule IIC'!J71+'Schedule IID'!J71+'Schedule IIE'!J71+'Schedule IIF'!J71","v":0},260,{"$f":"'Fixed Income Investments'!I108","v":0},null,null,0]
[null,"BSCR Rating 4",null,{"$f":"'Schedule IIB'!D72+'Schedule IIC'!D72+'Schedule IID'!D72+'Schedule IIE'!D72+'Schedule IIF'!D72","v":0},{"$f":"'Schedule IIB'!F72+'Schedule IIC'!F72+'Schedule IID'!F72+'Schedule IIE'!F72+'Schedule IIF'!F72","v":0},{"$f":"'Schedule IIB'!H72+'Schedule IIC'!H72+'Schedule IID'!H72+'Schedule IIE'!H72+'Schedule IIF'!H72","v":0},{"$f":"'Schedule IIB'!J72+'Schedule IIC'!J72+'Schedule IID'!J72+'Schedule IIE'!J72+'Schedule IIF'!J72","v":0},450,{"$f":"'Fixed Income Investments'!I109","v":0},null,null,0]
[null,"BSCR Rating 5",null,{"$f":"'Schedule IIB'!D73+'Schedule IIC'!D73+'Schedule IID'!D73+'Schedule IIE'!D73+'Schedule IIF'!D73","v":0},{"$f":"'Schedule IIB'!F73+'Schedule IIC'!F73+'Schedule IID'!F73+'Schedule IIE'!F73+'Schedule IIF'!F73","v":0},{"$f":"'Schedule IIB'!H73+'Schedule IIC'!H73+'Schedule IID'!H73+'Schedule IIE'!H73+'Schedule IIF'!H73","v":0},{"$f":"'Schedule IIB'!J73+'Schedule IIC'!J73+'Schedule IID'!J73+'Schedule IIE'!J73+'Schedule IIF'!J73","v":0},840,{"$f":"'Fixed Income Investments'!I110","v":0},null,null,0]
[null,"BSCR Rating 6",null,{"$f":"'Schedule IIB'!D74+'Schedule IIC'!D74+'Schedule IID'!D74+'Schedule IIE'!D74+'Schedule IIF'!D74","v":0},{"$f":"'Schedule IIB'!F74+'Schedule IIC'!F74+'Schedule IID'!F74+'Schedule IIE'!F74+'Schedule IIF'!F74","v":0},{"$f":"'Schedule IIB'!H74+'Schedule IIC'!H74+'Schedule IID'!H74+'Schedule IIE'!H74+'Schedule IIF'!H74","v":0},{"$f":"'Schedule IIB'!J74+'Schedule IIC'!J74+'Schedule IID'!J74+'Schedule IIE'!J74+'Schedule IIF'!J74","v":0},1620,{"$f":"'Fixed Income Investments'!I111","v":0},null,null,0]
[null,"BSCR Rating 7",null,{"$f":"'Schedule IIB'!D75+'Schedule IIC'!D75+'Schedule IID'!D75+'Schedule IIE'!D75+'Schedule IIF'!D75","v":0},{"$f":"'Schedule IIB'!F75+'Schedule IIC'!F75+'Schedule IID'!F75+'Schedule IIE'!F75+'Schedule IIF'!F75","v":0},{"$f":"'Schedule IIB'!H75+'Schedule IIC'!H75+'Schedule IID'!H75+'Schedule IIE'!H75+'Schedule IIF'!H75","v":0},{"$f":"'Schedule IIB'!J75+'Schedule IIC'!J75+'Schedule IID'!J75+'Schedule IIE'!J75+'Schedule IIF'!J75","v":0},1620,{"$f":"'Fixed Income Investments'!I112","v":0},null,null,0]
[null,"BSCR Rating 8",null,{"$f":"'Schedule IIB'!D76+'Schedule IIC'!D76+'Schedule IID'!D76+'Schedule IIE'!D76+'Schedule IIF'!D76","v":0},{"$f":"'Schedule IIB'!F76+'Schedule IIC'!F76+'Schedule IID'!F76+'Schedule IIE'!F76+'Schedule IIF'!F76","v":0},{"$f":"'Schedule IIB'!H76+'Schedule IIC'!H76+'Schedule IID'!H76+'Schedule IIE'!H76+'Schedule IIF'!H76","v":0},{"$f":"'Schedule IIB'!J76+'Schedule IIC'!J76+'Schedule IID'!J76+'Schedule IIE'!J76+'Schedule IIF'!J76","v":0},1620,{"$f":"'Fixed Income Investments'!I113","v":0},null,null,0]
[null,"Total Spread Up",null,{"$f":"SUM(D106:D114)","v":0},{"$f":"SUM(E106:E114)","v":0},{"$f":"SUM(F106:F114)","v":0},{"$f":"SUM(G106:G114)","v":0},null,{"$f":"SUM(I106:I114)","v":0},null,{"$f":"SUM(K106:K114)","v":0},{"$f":"SUM(L106:L114)","v":0}]
[]
[null,null,null,"Spread Down"]
[null,null,null,"Long Exposures",null,"Short Exposures"]
[null,null,null,"Before Shock","After Shock","Before Shock","After Shock"]
[null,"Spread Up",null,{"$f":"'Schedule IIB'!N68+'Schedule IIC'!N68+'Schedule IID'!N68+'Schedule IIE'!N68+'Schedule IIF'!N68","v":0},{"$f":"'Schedule IIB'!P68+'Schedule IIC'!P68+'Schedule IID'!P68+'Schedule IIE'!P68+'Schedule IIF'!P68","v":0},{"$f":"'Schedule IIB'!R68+'Schedule IIC'!R68+'Schedule IID'!R68+'Schedule IIE'!R68+'Schedule IIF'!R68","v":0},{"$f":"'Schedule IIB'!T68+'Schedule IIC'!T68+'Schedule IID'!T68+'Schedule IIE'!T68+'Schedule IIF'!T68","v":0}]
[null,"BSCR Rating 0 ",null,{"$f":"'Schedule IIB'!N69+'Schedule IIC'!N69+'Schedule IID'!N69+'Schedule IIE'!N69+'Schedule IIF'!N69","v":0},{"$f":"'Schedule IIB'!P69+'Schedule IIC'!P69+'Schedule IID'!P69+'Schedule IIE'!P69+'Schedule IIF'!P69","v":0},{"$f":"'Schedule IIB'!R69+'Schedule IIC'!R69+'Schedule IID'!R69+'Schedule IIE'!R69+'Schedule IIF'!R69","v":0},{"$f":"'Schedule IIB'!T69+'Schedule IIC'!T69+'Schedule IID'!T69+'Schedule IIE'!T69+'Schedule IIF'!T69","v":0},0,{"$f":"'Fixed Income Investments'!I120","v":0},null,null,{"$f":"IF(K121=\"\",I121,K121)","v":0}]
[null,"BSCR Rating 1",null,{"$f":"'Schedule IIB'!N70+'Schedule IIC'!N70+'Schedule IID'!N70+'Schedule IIE'!N70+'Schedule IIF'!N70","v":0},{"$f":"'Schedule IIB'!P70+'Schedule IIC'!P70+'Schedule IID'!P70+'Schedule IIE'!P70+'Schedule IIF'!P70","v":0},{"$f":"'Schedule IIB'!R70+'Schedule IIC'!R70+'Schedule IID'!R70+'Schedule IIE'!R70+'Schedule IIF'!R70","v":0},{"$f":"'Schedule IIB'!T70+'Schedule IIC'!T70+'Schedule IID'!T70+'Schedule IIE'!T70+'Schedule IIF'!T70","v":0},-0.75,{"$f":"'Fixed Income Investments'!I121","v":0},null,null,0]
[null,"BSCR Rating 2",null,{"$f":"'Schedule IIB'!N71+'Schedule IIC'!N71+'Schedule IID'!N71+'Schedule IIE'!N71+'Schedule IIF'!N71","v":0},{"$f":"'Schedule IIB'!P71+'Schedule IIC'!P71+'Schedule IID'!P71+'Schedule IIE'!P71+'Schedule IIF'!P71","v":0},{"$f":"'Schedule IIB'!R71+'Schedule IIC'!R71+'Schedule IID'!R71+'Schedule IIE'!R71+'Schedule IIF'!R71","v":0},{"$f":"'Schedule IIB'!T71+'Schedule IIC'!T71+'Schedule IID'!T71+'Schedule IIE'!T71+'Schedule IIF'!T71","v":0},-0.75,{"$f":"'Fixed Income Investments'!I122","v":0},null,null,0]
[null,"BSCR Rating 3",null,{"$f":"'Schedule IIB'!N72+'Schedule IIC'!N72+'Schedule IID'!N72+'Schedule IIE'!N72+'Schedule IIF'!N72","v":0},{"$f":"'Schedule IIB'!P72+'Schedule IIC'!P72+'Schedule IID'!P72+'Schedule IIE'!P72+'Schedule IIF'!P72","v":0},{"$f":"'Schedule IIB'!R72+'Schedule IIC'!R72+'Schedule IID'!R72+'Schedule IIE'!R72+'Schedule IIF'!R72","v":0},{"$f":"'Schedule IIB'!T72+'Schedule IIC'!T72+'Schedule IID'!T72+'Schedule IIE'!T72+'Schedule IIF'!T72","v":0},-0.75,{"$f":"'Fixed Income Investments'!I123","v":0},null,null,0]
[null,"BSCR Rating 4",null,{"$f":"'Schedule IIB'!N73+'Schedule IIC'!N73+'Schedule IID'!N73+'Schedule IIE'!N73+'Schedule IIF'!N73","v":0},{"$f":"'Schedule IIB'!P73+'Schedule IIC'!P73+'Schedule IID'!P73+'Schedule IIE'!P73+'Schedule IIF'!P73","v":0},{"$f":"'Schedule IIB'!R73+'Schedule IIC'!R73+'Schedule IID'!R73+'Schedule IIE'!R73+'Schedule IIF'!R73","v":0},{"$f":"'Schedule IIB'!T73+'Schedule IIC'!T73+'Schedule IID'!T73+'Schedule IIE'!T73+'Schedule IIF'!T73","v":0},-0.75,{"$f":"'Fixed Income Investments'!I124","v":0},null,null,0]
[null,"BSCR Rating 5",null,{"$f":"'Schedule IIB'!N74+'Schedule IIC'!N74+'Schedule IID'!N74+'Schedule IIE'!N74+'Schedule IIF'!N74","v":0},{"$f":"'Schedule IIB'!P74+'Schedule IIC'!P74+'Schedule IID'!P74+'Schedule IIE'!P74+'Schedule IIF'!P74","v":0},{"$f":"'Schedule IIB'!R74+'Schedule IIC'!R74+'Schedule IID'!R74+'Schedule IIE'!R74+'Schedule IIF'!R74","v":0},{"$f":"'Schedule IIB'!T74+'Schedule IIC'!T74+'Schedule IID'!T74+'Schedule IIE'!T74+'Schedule IIF'!T74","v":0},-0.75,{"$f":"'Fixed Income Investments'!I125","v":0},null,null,0]
[null,"BSCR Rating 6",null,{"$f":"'Schedule IIB'!N75+'Schedule IIC'!N75+'Schedule IID'!N75+'Schedule IIE'!N75+'Schedule IIF'!N75","v":0},{"$f":"'Schedule IIB'!P75+'Schedule IIC'!P75+'Schedule IID'!P75+'Schedule IIE'!P75+'Schedule IIF'!P75","v":0},{"$f":"'Schedule IIB'!R75+'Schedule IIC'!R75+'Schedule IID'!R75+'Schedule IIE'!R75+'Schedule IIF'!R75","v":0},{"$f":"'Schedule IIB'!T75+'Schedule IIC'!T75+'Schedule IID'!T75+'Schedule IIE'!T75+'Schedule IIF'!T75","v":0},-0.75,{"$f":"'Fixed Income Investments'!I126","v":0},null,null,0]
[null,"BSCR Rating 7",null,{"$f":"'Schedule IIB'!N76+'Schedule IIC'!N76+'Schedule IID'!N76+'Schedule IIE'!N76+'Schedule IIF'!N76","v":0},{"$f":"'Schedule IIB'!P76+'Schedule IIC'!P76+'Schedule IID'!P76+'Schedule IIE'!P76+'Schedule IIF'!P76","v":0},{"$f":"'Schedule IIB'!R76+'Schedule IIC'!R76+'Schedule IID'!R76+'Schedule IIE'!R76+'Schedule IIF'!R76","v":0},{"$f":"'Schedule IIB'!T76+'Schedule IIC'!T76+'Schedule IID'!T76+'Schedule IIE'!T76+'Schedule IIF'!T76","v":0},-0.75,{"$f":"'Fixed Income Investments'!I127","v":0},null,null,0]
[null,"BSCR Rating 8",null,{"$f":"SUM(D120:D128)","v":0},{"$f":"SUM(E120:E128)","v":0},{"$f":"SUM(F120:F128)","v":0},{"$f":"SUM(G120:G128)","v":0},-0.75,{"$f":"'Fixed Income Investments'!I128","v":0},null,null,0]
[null,"Total Spread Down",null,null,null,null,null,null,{"$f":"SUM(I121:I129)","v":0},null,{"$f":"SUM(K121:K129)","v":0},{"$f":"SUM(L121:L129)","v":0}]
[]
[null,"Spread Up",null,null,null,null,null,null,{"$f":"I115","v":0},null,null,{"$f":"L115","v":0}]
[null,"Spread Down",null,null,null,null,null,null,{"$f":"I130","v":0},null,null,{"$f":"L130","v":0}]
[]
[null,"(g) Total Spread Risk",null,null,null,null,null,null,{"$f":"MAX(0,I132,I133)","v":0},null,null,{"$f":"MAX(0,L132,L133)","v":0}]
[]
[null,"(h)  TOTAL FIXED INCOME INVESTMENTS [ (a)+(b)+(c)+(d)+(e)+(f)+(g) ]",null,null,null,null,{"$f":"G25+G39+G53+G68+G77+G99","v":0},null,{"$f":"IF(SUM(I25+I39+I53+I68+I77+I99+I135)>=0,SUM(I25+I39+I53+I68+I77+I99+I135),0)","v":0},null,null,{"$f":"IF(SUM(L25+L39+L53+L68+L77+L99+L135)>=0,SUM(L25+L39+L53+L68+L77+L99+L135),0)","v":0}]
[]
[null,null,null,"ASSETS",null,null,"LIABILITIES","STANDARD","STANDARD",null,"USER","USER"]
[null,"TYPE OF ",null,"Long Exposures","Short Exposures",null,null,"CAPITAL","REQUIRED",null,"CAPITAL","REQUIRED"]
[null,"EQUITY INVESTMENTS",null,"Qualified Assets","Qualified Assets","Not Qual. Assets",null,"FACTOR","CAPITAL",null,"FACTOR","CAPITAL"]
[]
[null,"Type 1 Equity Holdings"]
[null,"Strategic Holdings - Listed",null,{"$f":"'Schedule IIB'!D39+'Schedule IIC'!D39+'Schedule IID'!D39+'Schedule IIE'!D39+'Schedule IIF'!D39","v":0},{"$f":"'Schedule IIB'!H39+'Schedule IIC'!H39+'Schedule IID'!H39+'Schedule IIE'!H39+'Schedule IIF'!H39","v":0},{"$f":"'Schedule IIB'!L39+'Schedule IIC'!L39+'Schedule IID'!L39+'Schedule IIE'!L39+'Schedule IIF'!L39","v":0},{"$f":"'Schedule IIB'!P39+'Schedule IIC'!P39+'Schedule IID'!P39+'Schedule IIE'!P39+'Schedule IIF'!P39","v":0},{"$f":"'Equity Investments'!N11","v":0.2},{"$f":"'Equity Investments'!P11","v":0},null,null,{"$f":"IF(K144=\"\",I144,K144*(SUM(D144:F144)))","v":0}]
[null,"Duration Based",null,{"$f":"'Schedule IIB'!D40+'Schedule IIC'!D40+'Schedule IID'!D40+'Schedule IIE'!D40+'Schedule IIF'!D40","v":0},{"$f":"'Schedule IIB'!H40+'Schedule IIC'!H40+'Schedule IID'!H40+'Schedule IIE'!H40+'Schedule IIF'!H40","v":0},{"$f":"'Schedule IIB'!L40+'Schedule IIC'!L40+'Schedule IID'!L40+'Schedule IIE'!L40+'Schedule IIF'!L40","v":0},{"$f":"'Schedule IIB'!P40+'Schedule IIC'!P40+'Schedule IID'!P40+'Schedule IIE'!P40+'Schedule IIF'!P40","v":0},{"$f":"'Equity Investments'!N12","v":0.2},{"$f":"'Equity Investments'!P12","v":0},null,null,{"$f":"IF(K145=\"\",I145,K145*(SUM(D145:F145)))","v":0}]
[null,"Listed Equity Securities in Developed Markets",null,{"$f":"'Schedule IIB'!D41+'Schedule IIC'!D41+'Schedule IID'!D41+'Schedule IIE'!D41+'Schedule IIF'!D41","v":0},{"$f":"'Schedule IIB'!H41+'Schedule IIC'!H41+'Schedule IID'!H41+'Schedule IIE'!H41+'Schedule IIF'!H41","v":0},{"$f":"'Schedule IIB'!L41+'Schedule IIC'!L41+'Schedule IID'!L41+'Schedule IIE'!L41+'Schedule IIF'!L41","v":0},{"$f":"'Schedule IIB'!P41+'Schedule IIC'!P41+'Schedule IID'!P41+'Schedule IIE'!P41+'Schedule IIF'!P41","v":0},{"$f":"'Equity Investments'!N13","v":0.35},{"$f":"'Equity Investments'!P13","v":0},null,null,0]
[null,"Preferred Stocks, BSCR Rating 1",null,{"$f":"'Schedule IIB'!D42+'Schedule IIC'!D42+'Schedule IID'!D42+'Schedule IIE'!D42+'Schedule IIF'!D42","v":0},{"$f":"'Schedule IIB'!H42+'Schedule IIC'!H42+'Schedule IID'!H42+'Schedule IIE'!H42+'Schedule IIF'!H42","v":0},{"$f":"'Schedule IIB'!L42+'Schedule IIC'!L42+'Schedule IID'!L42+'Schedule IIE'!L42+'Schedule IIF'!L42","v":0},{"$f":"'Schedule IIB'!P42+'Schedule IIC'!P42+'Schedule IID'!P42+'Schedule IIE'!P42+'Schedule IIF'!P42","v":0},{"$f":"'Equity Investments'!N14","v":6.0000000000000001E-3},{"$f":"'Equity Investments'!P14","v":0},null,null,0]
[null,"Preferred Stocks, BSCR Rating 2",null,{"$f":"'Schedule IIB'!D43+'Schedule IIC'!D43+'Schedule IID'!D43+'Schedule IIE'!D43+'Schedule IIF'!D43","v":0},{"$f":"'Schedule IIB'!H43+'Schedule IIC'!H43+'Schedule IID'!H43+'Schedule IIE'!H43+'Schedule IIF'!H43","v":0},{"$f":"'Schedule IIB'!L43+'Schedule IIC'!L43+'Schedule IID'!L43+'Schedule IIE'!L43+'Schedule IIF'!L43","v":0},{"$f":"'Schedule IIB'!P43+'Schedule IIC'!P43+'Schedule IID'!P43+'Schedule IIE'!P43+'Schedule IIF'!P43","v":0},{"$f":"'Equity Investments'!N15","v":1.2E-2},{"$f":"'Equity Investments'!P15","v":0},null,null,0]
[null,"Preferred Stocks, BSCR Rating 3",null,{"$f":"'Schedule IIB'!D44+'Schedule IIC'!D44+'Schedule IID'!D44+'Schedule IIE'!D44+'Schedule IIF'!D44","v":0},{"$f":"'Schedule IIB'!H44+'Schedule IIC'!H44+'Schedule IID'!H44+'Schedule IIE'!H44+'Schedule IIF'!H44","v":0},{"$f":"'Schedule IIB'!L44+'Schedule IIC'!L44+'Schedule IID'!L44+'Schedule IIE'!L44+'Schedule IIF'!L44","v":0},{"$f":"'Schedule IIB'!P44+'Schedule IIC'!P44+'Schedule IID'!P44+'Schedule IIE'!P44+'Schedule IIF'!P44","v":0},{"$f":"'Equity Investments'!N16","v":0.02},{"$f":"'Equity Investments'!P16","v":0},null,null,0]
[null,"Preferred Stocks, BSCR Rating 4",null,{"$f":"'Schedule IIB'!D45+'Schedule IIC'!D45+'Schedule IID'!D45+'Schedule IIE'!D45+'Schedule IIF'!D45","v":0},{"$f":"'Schedule IIB'!H45+'Schedule IIC'!H45+'Schedule IID'!H45+'Schedule IIE'!H45+'Schedule IIF'!H45","v":0},{"$f":"'Schedule IIB'!L45+'Schedule IIC'!L45+'Schedule IID'!L45+'Schedule IIE'!L45+'Schedule IIF'!L45","v":0},{"$f":"'Schedule IIB'!P45+'Schedule IIC'!P45+'Schedule IID'!P45+'Schedule IIE'!P45+'Schedule IIF'!P45","v":0},{"$f":"'Equity Investments'!N17","v":0.04},{"$f":"'Equity Investments'!P17","v":0},null,null,0]
[null,"Preferred Stocks, BSCR Rating 5",null,{"$f":"'Schedule IIB'!D46+'Schedule IIC'!D46+'Schedule IID'!D46+'Schedule IIE'!D46+'Schedule IIF'!D46","v":0},{"$f":"'Schedule IIB'!H46+'Schedule IIC'!H46+'Schedule IID'!H46+'Schedule IIE'!H46+'Schedule IIF'!H46","v":0},{"$f":"'Schedule IIB'!L46+'Schedule IIC'!L46+'Schedule IID'!L46+'Schedule IIE'!L46+'Schedule IIF'!L46","v":0},{"$f":"'Schedule IIB'!P46+'Schedule IIC'!P46+'Schedule IID'!P46+'Schedule IIE'!P46+'Schedule IIF'!P46","v":0},{"$f":"'Equity Investments'!N18","v":0.11},{"$f":"'Equity Investments'!P18","v":0},null,null,0]
[null,"Preferred Stocks, BSCR Rating 6",null,{"$f":"'Schedule IIB'!D47+'Schedule IIC'!D47+'Schedule IID'!D47+'Schedule IIE'!D47+'Schedule IIF'!D47","v":0},{"$f":"'Schedule IIB'!H47+'Schedule IIC'!H47+'Schedule IID'!H47+'Schedule IIE'!H47+'Schedule IIF'!H47","v":0},{"$f":"'Schedule IIB'!L47+'Schedule IIC'!L47+'Schedule IID'!L47+'Schedule IIE'!L47+'Schedule IIF'!L47","v":0},{"$f":"'Schedule IIB'!P47+'Schedule IIC'!P47+'Schedule IID'!P47+'Schedule IIE'!P47+'Schedule IIF'!P47","v":0},{"$f":"'Equity Investments'!N19","v":0.25},{"$f":"'Equity Investments'!P19","v":0},null,null,0]
[null,"Preferred Stocks, BSCR Rating 7",null,{"$f":"'Schedule IIB'!D48+'Schedule IIC'!D48+'Schedule IID'!D48+'Schedule IIE'!D48+'Schedule IIF'!D48","v":0},{"$f":"'Schedule IIB'!H48+'Schedule IIC'!H48+'Schedule IID'!H48+'Schedule IIE'!H48+'Schedule IIF'!H48","v":0},{"$f":"'Schedule IIB'!L48+'Schedule IIC'!L48+'Schedule IID'!L48+'Schedule IIE'!L48+'Schedule IIF'!L48","v":0},{"$f":"'Schedule IIB'!P48+'Schedule IIC'!P48+'Schedule IID'!P48+'Schedule IIE'!P48+'Schedule IIF'!P48","v":0},{"$f":"'Equity Investments'!N20","v":0.35},{"$f":"'Equity Investments'!P20","v":0},null,null,0]
[null,"Preferred Stocks, BSCR Rating 8",null,{"$f":"'Schedule IIB'!D49+'Schedule IIC'!D49+'Schedule IID'!D49+'Schedule IIE'!D49+'Schedule IIF'!D49","v":0},{"$f":"'Schedule IIB'!H49+'Schedule IIC'!H49+'Schedule IID'!H49+'Schedule IIE'!H49+'Schedule IIF'!H49","v":0},{"$f":"'Schedule IIB'!L49+'Schedule IIC'!L49+'Schedule IID'!L49+'Schedule IIE'!L49+'Schedule IIF'!L49","v":0},{"$f":"'Schedule IIB'!P49+'Schedule IIC'!P49+'Schedule IID'!P49+'Schedule IIE'!P49+'Schedule IIF'!P49","v":0},{"$f":"'Equity Investments'!N21","v":0.35},{"$f":"'Equity Investments'!P21","v":0},null,null,0]
[null,"Equity Derivatives on Type 1 Equities",null,{"$f":"'Schedule IIB'!D50+'Schedule IIC'!D50+'Schedule IID'!D50+'Schedule IIE'!D50+'Schedule IIF'!D50","v":0},{"$f":"'Schedule IIB'!H50+'Schedule IIC'!H50+'Schedule IID'!H50+'Schedule IIE'!H50+'Schedule IIF'!H50","v":0},{"$f":"'Schedule IIB'!L50+'Schedule IIC'!L50+'Schedule IID'!L50+'Schedule IIE'!L50+'Schedule IIF'!L50","v":0},{"$f":"'Schedule IIB'!P50+'Schedule IIC'!P50+'Schedule IID'!P50+'Schedule IIE'!P50+'Schedule IIF'!P50","v":0},{"$f":"'Equity Investments'!N22","v":0.35},{"$f":"'Equity Investments'!P22","v":0},null,null,0]
[]
[null,"Subtotal - Type 1 Equity Holdings",null,{"$f":"SUM(D144:D156)","v":0},{"$f":"SUM(E144:E156)","v":0},{"$f":"SUM(F144:F156)","v":0},{"$f":"SUM(G144:G156)","v":0},null,{"$f":"MAX(SUM(I144:I155),0)","v":0},null,null,{"$f":"MAX(SUM(L144:L155),0)","v":0}]
[]
[null,"Type 2 Equity Holdings"]
[null,"Strategic Holdings - Unlisted",null,{"$f":"'Schedule IIB'!D51+'Schedule IIC'!D51+'Schedule IID'!D51+'Schedule IIE'!D51+'Schedule IIF'!D51","v":0},{"$f":"'Schedule IIB'!H51+'Schedule IIC'!H51+'Schedule IID'!H51+'Schedule IIE'!H51+'Schedule IIF'!H51","v":0},{"$f":"'Schedule IIB'!L51+'Schedule IIC'!L51+'Schedule IID'!L51+'Schedule IIE'!L51+'Schedule IIF'!L51","v":0},{"$f":"'Schedule IIB'!P51+'Schedule IIC'!P51+'Schedule IID'!P51+'Schedule IIE'!P51+'Schedule IIF'!P51","v":0},{"$f":"'Equity Investments'!N27","v":0.2},{"$f":"'Equity Investments'!P27","v":0},null,null,{"$f":"IF(K160=\"\",I160,K160*(SUM(D160:F160)))","v":0}]
[null,"Other Equities",null,{"$f":"'Schedule IIB'!D52+'Schedule IIC'!D52+'Schedule IID'!D52+'Schedule IIE'!D52+'Schedule IIF'!D52","v":0},{"$f":"'Schedule IIB'!H52+'Schedule IIC'!H52+'Schedule IID'!H52+'Schedule IIE'!H52+'Schedule IIF'!H52","v":0},{"$f":"'Schedule IIB'!L52+'Schedule IIC'!L52+'Schedule IID'!L52+'Schedule IIE'!L52+'Schedule IIF'!L52","v":0},{"$f":"'Schedule IIB'!P52+'Schedule IIC'!P52+'Schedule IID'!P52+'Schedule IIE'!P52+'Schedule IIF'!P52","v":0},{"$f":"'Equity Investments'!N28","v":0.45},{"$f":"'Equity Investments'!P28","v":0},null,null,0]
[null,"Letters of Credit",null,{"$f":"'Schedule IIB'!D53+'Schedule IIC'!D53+'Schedule IID'!D53+'Schedule IIE'!D53+'Schedule IIF'!D53","v":0},{"$f":"'Schedule IIB'!H53+'Schedule IIC'!H53+'Schedule IID'!H53+'Schedule IIE'!H53+'Schedule IIF'!H53","v":0},{"$f":"'Schedule IIB'!L53+'Schedule IIC'!L53+'Schedule IID'!L53+'Schedule IIE'!L53+'Schedule IIF'!L53","v":0},{"$f":"'Schedule IIB'!P53+'Schedule IIC'!P53+'Schedule IID'!P53+'Schedule IIE'!P53+'Schedule IIF'!P53","v":0},{"$f":"'Equity Investments'!N29","v":0.2},{"$f":"'Equity Investments'!P29","v":0},null,null,0]
[null,"Intangible assets",null,{"$f":"'Schedule IIB'!D54+'Schedule IIC'!D54+'Schedule IID'!D54+'Schedule IIE'!D54+'Schedule IIF'!D54","v":0},{"$f":"'Schedule IIB'!H54+'Schedule IIC'!H54+'Schedule IID'!H54+'Schedule IIE'!H54+'Schedule IIF'!H54","v":0},{"$f":"'Schedule IIB'!L54+'Schedule IIC'!L54+'Schedule IID'!L54+'Schedule IIE'!L54+'Schedule IIF'!L54","v":0},{"$f":"'Schedule IIB'!P54+'Schedule IIC'!P54+'Schedule IID'!P54+'Schedule IIE'!P54+'Schedule IIF'!P54","v":0},{"$f":"'Equity Investments'!N30","v":0.2},{"$f":"'Equity Investments'!P30","v":0},null,null,0]
[null,"Pension Benefit Surplus",null,{"$f":"'Schedule IIB'!D55+'Schedule IIC'!D55+'Schedule IID'!D55+'Schedule IIE'!D55+'Schedule IIF'!D55","v":0},{"$f":"'Schedule IIB'!H55+'Schedule IIC'!H55+'Schedule IID'!H55+'Schedule IIE'!H55+'Schedule IIF'!H55","v":0},{"$f":"'Schedule IIB'!L55+'Schedule IIC'!L55+'Schedule IID'!L55+'Schedule IIE'!L55+'Schedule IIF'!L55","v":0},{"$f":"'Schedule IIB'!P55+'Schedule IIC'!P55+'Schedule IID'!P55+'Schedule IIE'!P55+'Schedule IIF'!P55","v":0},{"$f":"'Equity Investments'!N31","v":0.2},{"$f":"'Equity Investments'!P31","v":0},null,null,0]
[null,"Equity Derivatives on Type 2 Equities",null,{"$f":"'Schedule IIB'!D56+'Schedule IIC'!D56+'Schedule IID'!D56+'Schedule IIE'!D56+'Schedule IIF'!D56","v":0},{"$f":"'Schedule IIB'!H56+'Schedule IIC'!H56+'Schedule IID'!H56+'Schedule IIE'!H56+'Schedule IIF'!H56","v":0},{"$f":"'Schedule IIB'!L56+'Schedule IIC'!L56+'Schedule IID'!L56+'Schedule IIE'!L56+'Schedule IIF'!L56","v":0},{"$f":"'Schedule IIB'!P56+'Schedule IIC'!P56+'Schedule IID'!P56+'Schedule IIE'!P56+'Schedule IIF'!P56","v":0},{"$f":"'Equity Investments'!N32","v":0.45},{"$f":"'Equity Investments'!P32","v":0},null,null,0]
[]
[null,"Subtotal - Type 2 Equity Holdings",null,{"$f":"SUM(D160:D166)","v":0},{"$f":"SUM(E160:E166)","v":0},{"$f":"SUM(F160:F166)","v":0},{"$f":"SUM(G160:G166)","v":0},null,{"$f":"MAX(SUM(I160:I165),0)","v":0},null,null,{"$f":"MAX(SUM(L160:L165),0)","v":0}]
[]
[null,"Type 3 Equity Holdings"]
[null,"Infrastructure",null,{"$f":"'Schedule IIB'!D57+'Schedule IIC'!D57+'Schedule IID'!D57+'Schedule IIE'!D57+'Schedule IIF'!D57","v":0},{"$f":"'Schedule IIB'!H57+'Schedule IIC'!H57+'Schedule IID'!H57+'Schedule IIE'!H57+'Schedule IIF'!H57","v":0},{"$f":"'Schedule IIB'!L57+'Schedule IIC'!L57+'Schedule IID'!L57+'Schedule IIE'!L57+'Schedule IIF'!L57","v":0},{"$f":"'Schedule IIB'!P57+'Schedule IIC'!P57+'Schedule IID'!P57+'Schedule IIE'!P57+'Schedule IIF'!P57","v":0},{"$f":"'Equity Investments'!N37","v":0.25},{"$f":"'Equity Investments'!P37","v":0},null,null,{"$f":"IF(K170=\"\",I170,K170*(SUM(D170:F170)))","v":0}]
[null,"Derivatives on Infrastructure",null,{"$f":"'Schedule IIB'!D58+'Schedule IIC'!D58+'Schedule IID'!D58+'Schedule IIE'!D58+'Schedule IIF'!D58","v":0},{"$f":"'Schedule IIB'!H58+'Schedule IIC'!H58+'Schedule IID'!H58+'Schedule IIE'!H58+'Schedule IIF'!H58","v":0},{"$f":"'Schedule IIB'!L58+'Schedule IIC'!L58+'Schedule IID'!L58+'Schedule IIE'!L58+'Schedule IIF'!L58","v":0},{"$f":"'Schedule IIB'!P58+'Schedule IIC'!P58+'Schedule IID'!P58+'Schedule IIE'!P58+'Schedule IIF'!P58","v":0},{"$f":"'Equity Investments'!N38","v":0.25},{"$f":"'Equity Investments'!P38","v":0},null,null,0]
[]
[null,"Subtotal - Type 3 Equity Holdings",null,{"$f":"SUM(D170:D172)","v":0},{"$f":"SUM(E170:E172)","v":0},{"$f":"SUM(F170:F172)","v":0},{"$f":"SUM(G170:G172)","v":0},null,{"$f":"MAX(SUM(I170:I172),0)","v":0},null,null,{"$f":"MAX(SUM(L170:L172),0)","v":0}]
[]
[null,"Type 4 Equity Holdings"]
[null,"Equity Real Estate 1",null,{"$f":"'Schedule IIB'!D59+'Schedule IIC'!D59+'Schedule IID'!D59+'Schedule IIE'!D59+'Schedule IIF'!D59","v":0},{"$f":"'Schedule IIB'!H59+'Schedule IIC'!H59+'Schedule IID'!H59+'Schedule IIE'!H59+'Schedule IIF'!H59","v":0},{"$f":"'Schedule IIB'!L59+'Schedule IIC'!L59+'Schedule IID'!L59+'Schedule IIE'!L59+'Schedule IIF'!L59","v":0},{"$f":"'Schedule IIB'!P59+'Schedule IIC'!P59+'Schedule IID'!P59+'Schedule IIE'!P59+'Schedule IIF'!P59","v":0},{"$f":"'Equity Investments'!N43","v":0.1},{"$f":"'Equity Investments'!P43","v":0},null,null,{"$f":"IF(K176=\"\",I176,K176*(SUM(D176:F176)))","v":0}]
[null,"Equity Real Estate 2",null,{"$f":"'Schedule IIB'!D60+'Schedule IIC'!D60+'Schedule IID'!D60+'Schedule IIE'!D60+'Schedule IIF'!D60","v":0},{"$f":"'Schedule IIB'!H60+'Schedule IIC'!H60+'Schedule IID'!H60+'Schedule IIE'!H60+'Schedule IIF'!H60","v":0},{"$f":"'Schedule IIB'!L60+'Schedule IIC'!L60+'Schedule IID'!L60+'Schedule IIE'!L60+'Schedule IIF'!L60","v":0},{"$f":"'Schedule IIB'!P60+'Schedule IIC'!P60+'Schedule IID'!P60+'Schedule IIE'!P60+'Schedule IIF'!P60","v":0},{"$f":"'Equity Investments'!N44","v":0.2},{"$f":"'Equity Investments'!P44","v":0},null,null,0]
[]
[null,"Subtotal - Type 4 Equity Holdings",null,{"$f":"SUM(D176:D178)","v":0},{"$f":"SUM(E176:E178)","v":0},{"$f":"SUM(F176:F178)","v":0},{"$f":"SUM(G176:G178)","v":0},null,{"$f":"MAX(SUM(I176:I178),0)","v":0},null,null,{"$f":"MAX(SUM(L176:L178),0)","v":0}]
[]
[null,"Total Equity Risk before Diversification"]
[]
[null,"Correlation Matrix","Type 1","Type 2","Type 3","Type 4","W/O Mgmt. Action","Mgmt. Action",null,null,"W/O Mgmt. Action","Mgmt. Action"]
[null,"Type 1",1,0.75,0.75,0.5,{"$f":"I157","v":0},{"$f":"'Equity Investments'!R51","v":0},null,null,{"$f":"L157","v":0},{"$f":"K184","v":0}]
[null,"Type 2",0.75,1,0.75,0.5,{"$f":"I167","v":0},{"$f":"'Equity Investments'!R52","v":0},null,null,{"$f":"L167","v":0},{"$f":"K185","v":0}]
[null,"Type 3",0.75,0.75,1,0.5,{"$f":"I173","v":0},{"$f":"'Equity Investments'!R53","v":0},null,null,{"$f":"L173","v":0},0]
[null,"Type 4",0.5,0.5,0.5,1,{"$f":"I179","v":0},{"$f":"'Equity Investments'!R54","v":0},null,null,{"$f":"L179","v":0},0]
[]
[]
[]
[null,"(f)  TOTAL EQUITY INVESTMENTS (AFTER CORRELATION ADJUSTMENT)",null,null,null,null,{"$f":"SQRT(MMULT(TRANSPOSE(G184:G187),MMULT($C$184:$F$187,G184:G187)))","v":0},{"$f":"SQRT(MMULT(TRANSPOSE(H184:H187),MMULT($C$184:$F$187,H184:H187)))","v":0},null,null,{"$f":"SQRT(MMULT(TRANSPOSE(K184:K187),MMULT($C$184:$F$187,K184:K187)))","v":0},{"$f":"SQRT(MMULT(TRANSPOSE(L184:L187),MMULT($C$184:$F$187,L184:L187)))","v":0}]
[]
[null,null,null,null,null,null,null,"STANDARD","STANDARD",null,"USER","USER"]
[null,"TYPE OF ",null,null,null,null,"ASSET","CAPITAL","REQUIRED",null,"CAPITAL","REQUIRED"]
[null,"INTEREST RATE/LIQUIDITY RISK",null,null,null,null,"VALUE","FACTOR","CAPITAL",null,"FACTOR","CAPITAL"]
[]
[null,"Bonds and Debentures ",null,null,null,null,{"$f":"SUM('Schedule IIB'!X13:X21)+SUM('Schedule IIC'!X13:X21)","v":0},{"$f":"IF('Company Information'!F11=\"IIGB\",IF(('Schedule V'!H12-'Schedule V'!H10)>3.5,3.5,MAX(1,'Schedule V'!H10-'Schedule V'!H12,'Schedule V'!H12-'Schedule V'!H10)),IF('Schedule V'!$H$10-'Schedule V'!$H$12>=1,'Schedule V'!$H$10-'Schedule V'!$H$12,IF('Schedule V'!$H$12-'Schedule V'!$H$10>=1,'Schedule V'!$H$12-'Schedule V'!$H$10,1)))*2%","v":0.02},{"$f":"IF(G197<0,0,G197*H197)","v":0},null,null,{"$f":"MAX(0,IF(K197=\"\",H197*G197,G197*K197))","v":0}]
[null,"Preferred Stocks ",null,null,null,null,{"$f":"SUM('Schedule IIB'!X42:X49)+SUM('Schedule IIC'!X22:X25)","v":0},{"$f":"IF('Company Information'!F11=\"IIGB\",IF(('Schedule V'!H12-'Schedule V'!H10)>3.5,3.5,MAX(1,'Schedule V'!H10-'Schedule V'!H12,'Schedule V'!H12-'Schedule V'!H10)),IF('Schedule V'!$H$10-'Schedule V'!$H$12>=1,'Schedule V'!$H$10-'Schedule V'!$H$12,IF('Schedule V'!$H$12-'Schedule V'!$H$10>=1,'Schedule V'!$H$12-'Schedule V'!$H$10,1)))*2%","v":0.02},{"$f":"IF(G198<0,0,G198*H198)","v":0},null,null,{"$f":"MAX(0,IF(K198=\"\",H198*G198,G198*K198))","v":0}]
[null,"Mortgage Loans",null,null,null,null,{"$f":"SUM('Schedule IIB'!X22:X25)+SUM('Schedule IIC'!X22:X25)","v":0},{"$f":"IF('Company Information'!F11=\"IIGB\",IF(('Schedule V'!H12-'Schedule V'!H10)>3.5,3.5,MAX(1,'Schedule V'!H10-'Schedule V'!H12,'Schedule V'!H12-'Schedule V'!H10)),IF('Schedule V'!$H$10-'Schedule V'!$H$12>=1,'Schedule V'!$H$10-'Schedule V'!$H$12,IF('Schedule V'!$H$12-'Schedule V'!$H$10>=1,'Schedule V'!$H$12-'Schedule V'!$H$10,1)))*2%","v":0.02},{"$f":"IF(G199<0,0,G199*H199)","v":0},null,null,{"$f":"MAX(0,IF(K199=\"\",H199*G199,G199*K199))","v":0}]
[]
[null,"TOTAL INTEREST RATE / LIQUIDITY RISK",null,null,null,null,{"$f":"SUM(G197:G199)","v":0},null,{"$f":"IF(SUM(I197:I199)>=0,SUM(I197:I199),0)","v":0},null,null,{"$f":"IF(SUM(L197:L199)>=0,SUM(L197:L199),0)","v":0}]
[]
[null,null,null,"ASSETS",null,"LIABILITIES",null,null,"CAPITAL",null,"USER","USER"]
[null,"INTEREST RATE -",null,null,null,null,null,null,"CHARGE",null,"CAPITAL","CAPITAL"]
[null,"LIQUIDITY RISK",null,"Qualified Assets","Not Qual. Assets",null,null,null,"W MGMT",null,"W/O MGMT","W MGMT ACTION"]
[]
[null,"IR Down- Exposures without Derivatives"]
[null,{"$f":"'Interest Rate-Liquidity (Rev.)'!B11","v":"United States Dollars"},null,{"$f":"'Schedule XXIII'!E10","v":0},null,{"$f":"'Schedule XXIII'!H10","v":0},null,{"$f":"'Interest Rate-Liquidity (Rev.)'!S11","v":0},{"$f":"'Interest Rate-Liquidity (Rev.)'!T11","v":0},null,null,{"$f":"MAX(0,IF(K208=\"\",H208,K208))","v":0}]
[null,{"$f":"'Interest Rate-Liquidity (Rev.)'!B12","v":"Euro"},null,{"$f":"'Schedule XXIII'!E11","v":0},null,{"$f":"'Schedule XXIII'!H11","v":0},null,{"$f":"'Interest Rate-Liquidity (Rev.)'!S12","v":0},{"$f":"'Interest Rate-Liquidity (Rev.)'!T12","v":0},null,null,{"$f":"MAX(0,IF(K209=\"\",H209,K209))","v":0}]
[null,{"$f":"'Interest Rate-Liquidity (Rev.)'!B13","v":"United Kingdom Pounds"},null,{"$f":"'Schedule XXIII'!E12","v":0},null,{"$f":"'Schedule XXIII'!H12","v":0},null,{"$f":"'Interest Rate-Liquidity (Rev.)'!S13","v":0},{"$f":"'Interest Rate-Liquidity (Rev.)'!T13","v":0},null,null,{"$f":"MAX(0,IF(K210=\"\",H210,K210))","v":0}]
[null,{"$f":"'Interest Rate-Liquidity (Rev.)'!B14","v":"Japan Yen"},null,{"$f":"'Schedule XXIII'!E13","v":0},null,{"$f":"'Schedule XXIII'!H13","v":0},null,{"$f":"'Interest Rate-Liquidity (Rev.)'!S14","v":0},{"$f":"'Interest Rate-Liquidity (Rev.)'!T14","v":0},null,null,0]
[null,{"$f":"'Interest Rate-Liquidity (Rev.)'!B15","v":"Canada Dollars"},null,{"$f":"'Schedule XXIII'!E14","v":0},null,{"$f":"'Schedule XXIII'!H14","v":0},null,{"$f":"'Interest Rate-Liquidity (Rev.)'!S15","v":0},{"$f":"'Interest Rate-Liquidity (Rev.)'!T15","v":0},null,null,0]
[null,{"$f":"'Interest Rate-Liquidity (Rev.)'!B16","v":"Swiss Francs"},null,{"$f":"'Schedule XXIII'!E15","v":0},null,{"$f":"'Schedule XXIII'!H15","v":0},null,{"$f":"'Interest Rate-Liquidity (Rev.)'!S16","v":0},{"$f":"'Interest Rate-Liquidity (Rev.)'!T16","v":0},null,null,0]
[null,{"$f":"'Interest Rate-Liquidity (Rev.)'!B17","v":"Australia Dollar"},null,{"$f":"'Schedule XXIII'!E16","v":0},null,{"$f":"'Schedule XXIII'!H16","v":0},null,{"$f":"'Interest Rate-Liquidity (Rev.)'!S17","v":0},{"$f":"'Interest Rate-Liquidity (Rev.)'!T17","v":0},null,null,0]
[null,{"$f":"'Interest Rate-Liquidity (Rev.)'!B18","v":"New Zealand Dollar"},null,{"$f":"'Schedule XXIII'!E17","v":0},null,{"$f":"'Schedule XXIII'!H17","v":0},null,{"$f":"'Interest Rate-Liquidity (Rev.)'!S18","v":0},{"$f":"'Interest Rate-Liquidity (Rev.)'!T18","v":0},null,null,0]
[null,{"$f":"'Interest Rate-Liquidity (Rev.)'!B19","v":"Other currency 1"},null,{"$f":"'Schedule XXIII'!E18","v":0},null,{"$f":"'Schedule XXIII'!H18","v":0},null,{"$f":"'Interest Rate-Liquidity (Rev.)'!S19","v":0},{"$f":"'Interest Rate-Liquidity (Rev.)'!T19","v":0},null,null,0]
[null,{"$f":"'Interest Rate-Liquidity (Rev.)'!B20","v":"Other currency 2"},null,{"$f":"'Schedule XXIII'!E19","v":0},null,{"$f":"'Schedule XXIII'!H19","v":0},null,{"$f":"'Interest Rate-Liquidity (Rev.)'!S20","v":0},{"$f":"'Interest Rate-Liquidity (Rev.)'!T20","v":0},null,null,0]
[null,{"$f":"'Interest Rate-Liquidity (Rev.)'!B21","v":"Other currency 3"},null,{"$f":"'Schedule XXIII'!E20","v":0},null,{"$f":"'Schedule XXIII'!H20","v":0},null,{"$f":"'Interest Rate-Liquidity (Rev.)'!S21","v":0},{"$f":"'Interest Rate-Liquidity (Rev.)'!T21","v":0},null,null,0]
[null,{"$f":"'Interest Rate-Liquidity (Rev.)'!B22","v":"Other currency 4"},null,{"$f":"'Schedule XXIII'!E21","v":0},null,{"$f":"'Schedule XXIII'!H21","v":0},null,{"$f":"'Interest Rate-Liquidity (Rev.)'!S22","v":0},{"$f":"'Interest Rate-Liquidity (Rev.)'!T22","v":0},null,null,0]
[null,{"$f":"'Interest Rate-Liquidity (Rev.)'!B23","v":"Other currency 5"},null,{"$f":"'Schedule XXIII'!E22","v":0},null,{"$f":"'Schedule XXIII'!H22","v":0},null,{"$f":"'Interest Rate-Liquidity (Rev.)'!S23","v":0},{"$f":"'Interest Rate-Liquidity (Rev.)'!T23","v":0},null,null,0]
[null,{"$f":"'Interest Rate-Liquidity (Rev.)'!B24","v":"Other currency 6"},null,{"$f":"'Schedule XXIII'!E23","v":0},null,{"$f":"'Schedule XXIII'!H23","v":0},null,{"$f":"'Interest Rate-Liquidity (Rev.)'!S24","v":0},{"$f":"'Interest Rate-Liquidity (Rev.)'!T24","v":0},null,null,0]
[null,{"$f":"'Interest Rate-Liquidity (Rev.)'!B25","v":"Other currency 7"},null,{"$f":"'Schedule XXIII'!E24","v":0},null,{"$f":"'Schedule XXIII'!H24","v":0},null,{"$f":"'Interest Rate-Liquidity (Rev.)'!S25","v":0},{"$f":"'Interest Rate-Liquidity (Rev.)'!T25","v":0},null,null,0]
[null,{"$f":"'Interest Rate-Liquidity (Rev.)'!B26","v":"Other currency 8"},null,{"$f":"'Schedule XXIII'!E25","v":0},null,{"$f":"'Schedule XXIII'!H25","v":0},null,{"$f":"'Interest Rate-Liquidity (Rev.)'!S26","v":0},{"$f":"'Interest Rate-Liquidity (Rev.)'!T26","v":0},null,null,0]
[null,{"$f":"'Interest Rate-Liquidity (Rev.)'!B27","v":"Other currency 9"},null,{"$f":"'Schedule XXIII'!E26","v":0},null,{"$f":"'Schedule XXIII'!H26","v":0},null,{"$f":"'Interest Rate-Liquidity (Rev.)'!S27","v":0},{"$f":"'Interest Rate-Liquidity (Rev.)'!T27","v":0},null,null,0]
[null,{"$f":"'Interest Rate-Liquidity (Rev.)'!B28","v":"Other currency 10"},null,{"$f":"'Schedule XXIII'!E27","v":0},null,{"$f":"'Schedule XXIII'!H27","v":0},null,{"$f":"'Interest Rate-Liquidity (Rev.)'!S28","v":0},{"$f":"'Interest Rate-Liquidity (Rev.)'!T28","v":0},null,null,0]
[null,{"$f":"'Interest Rate-Liquidity (Rev.)'!B29","v":"Total IR - Other"},null,{"$f":"SUM(D208:D225)","v":0},null,{"$f":"SUM(F208:F225)","v":0},null,{"$f":"SUM(H208:H225)","v":0},{"$f":"SUM(I208:I225)","v":0},null,{"$f":"SUM(K208:K225)","v":0},{"$f":"SUM(L208:L225)","v":0}]
[]
[null,{"$f":"'Interest Rate-Liquidity (Rev.)'!B31","v":"IR Down- Derivatives"}]
[null,{"$f":"'Interest Rate-Liquidity (Rev.)'!B32","v":"United States Dollars"},null,{"$f":"'Schedule XXIII'!M10","v":0},{"$f":"'Schedule XXIII'!P10","v":0},{"$f":"'Schedule XXIII'!S10","v":0},null,{"$f":"'Interest Rate-Liquidity (Rev.)'!S32","v":0},{"$f":"'Interest Rate-Liquidity (Rev.)'!T32","v":0},null,null,{"$f":"MAX(0,IF(K229=\"\",H229,K229))","v":0}]
[null,{"$f":"'Interest Rate-Liquidity (Rev.)'!B33","v":"Euro"},null,{"$f":"'Schedule XXIII'!M11","v":0},{"$f":"'Schedule XXIII'!P11","v":0},{"$f":"'Schedule XXIII'!S11","v":0},null,{"$f":"'Interest Rate-Liquidity (Rev.)'!S33","v":0},{"$f":"'Interest Rate-Liquidity (Rev.)'!T33","v":0},null,null,{"$f":"MAX(0,IF(K230=\"\",H230,K230))","v":0}]
[null,{"$f":"'Interest Rate-Liquidity (Rev.)'!B34","v":"United Kingdom Pounds"},null,{"$f":"'Schedule XXIII'!M12","v":0},{"$f":"'Schedule XXIII'!P12","v":0},{"$f":"'Schedule XXIII'!S12","v":0},null,{"$f":"'Interest Rate-Liquidity (Rev.)'!S34","v":0},{"$f":"'Interest Rate-Liquidity (Rev.)'!T34","v":0},null,null,0]
[null,{"$f":"'Interest Rate-Liquidity (Rev.)'!B35","v":"Japan Yen"},null,{"$f":"'Schedule XXIII'!M13","v":0},{"$f":"'Schedule XXIII'!P13","v":0},{"$f":"'Schedule XXIII'!S13","v":0},null,{"$f":"'Interest Rate-Liquidity (Rev.)'!S35","v":0},{"$f":"'Interest Rate-Liquidity (Rev.)'!T35","v":0},null,null,0]
[null,{"$f":"'Interest Rate-Liquidity (Rev.)'!B36","v":"Canada Dollars"},null,{"$f":"'Schedule XXIII'!M14","v":0},{"$f":"'Schedule XXIII'!P14","v":0},{"$f":"'Schedule XXIII'!S14","v":0},null,{"$f":"'Interest Rate-Liquidity (Rev.)'!S36","v":0},{"$f":"'Interest Rate-Liquidity (Rev.)'!T36","v":0},null,null,0]
[null,{"$f":"'Interest Rate-Liquidity (Rev.)'!B37","v":"Swiss Francs"},null,{"$f":"'Schedule XXIII'!M15","v":0},{"$f":"'Schedule XXIII'!P15","v":0},{"$f":"'Schedule XXIII'!S15","v":0},null,{"$f":"'Interest Rate-Liquidity (Rev.)'!S37","v":0},{"$f":"'Interest Rate-Liquidity (Rev.)'!T37","v":0},null,null,0]
[null,{"$f":"'Interest Rate-Liquidity (Rev.)'!B38","v":"Australia Dollar"},null,{"$f":"'Schedule XXIII'!M16","v":0},{"$f":"'Schedule XXIII'!P16","v":0},{"$f":"'Schedule XXIII'!S16","v":0},null,{"$f":"'Interest Rate-Liquidity (Rev.)'!S38","v":0},{"$f":"'Interest Rate-Liquidity (Rev.)'!T38","v":0},null,null,0]
[null,{"$f":"'Interest Rate-Liquidity (Rev.)'!B39","v":"New Zealand Dollar"},null,{"$f":"'Schedule XXIII'!M17","v":0},{"$f":"'Schedule XXIII'!P17","v":0},{"$f":"'Schedule XXIII'!S17","v":0},null,{"$f":"'Interest Rate-Liquidity (Rev.)'!S39","v":0},{"$f":"'Interest Rate-Liquidity (Rev.)'!T39","v":0},null,null,0]
[null,{"$f":"'Interest Rate-Liquidity (Rev.)'!B40","v":"Other currency 1"},null,{"$f":"'Schedule XXIII'!M18","v":0},{"$f":"'Schedule XXIII'!P18","v":0},{"$f":"'Schedule XXIII'!S18","v":0},null,{"$f":"'Interest Rate-Liquidity (Rev.)'!S40","v":0},{"$f":"'Interest Rate-Liquidity (Rev.)'!T40","v":0},null,null,0]
[null,{"$f":"'Interest Rate-Liquidity (Rev.)'!B41","v":"Other currency 2"},null,{"$f":"'Schedule XXIII'!M19","v":0},{"$f":"'Schedule XXIII'!P19","v":0},{"$f":"'Schedule XXIII'!S19","v":0},null,{"$f":"'Interest Rate-Liquidity (Rev.)'!S41","v":0},{"$f":"'Interest Rate-Liquidity (Rev.)'!T41","v":0},null,null,0]
[null,{"$f":"'Interest Rate-Liquidity (Rev.)'!B42","v":"Other currency 3"},null,{"$f":"'Schedule XXIII'!M20","v":0},{"$f":"'Schedule XXIII'!P20","v":0},{"$f":"'Schedule XXIII'!S20","v":0},null,{"$f":"'Interest Rate-Liquidity (Rev.)'!S42","v":0},{"$f":"'Interest Rate-Liquidity (Rev.)'!T42","v":0},null,null,0]
[null,{"$f":"'Interest Rate-Liquidity (Rev.)'!B43","v":"Other currency 4"},null,{"$f":"'Schedule XXIII'!M21","v":0},{"$f":"'Schedule XXIII'!P21","v":0},{"$f":"'Schedule XXIII'!S21","v":0},null,{"$f":"'Interest Rate-Liquidity (Rev.)'!S43","v":0},{"$f":"'Interest Rate-Liquidity (Rev.)'!T43","v":0},null,null,0]
[null,{"$f":"'Interest Rate-Liquidity (Rev.)'!B44","v":"Other currency 5"},null,{"$f":"'Schedule XXIII'!M22","v":0},{"$f":"'Schedule XXIII'!P22","v":0},{"$f":"'Schedule XXIII'!S22","v":0},null,{"$f":"'Interest Rate-Liquidity (Rev.)'!S44","v":0},{"$f":"'Interest Rate-Liquidity (Rev.)'!T44","v":0},null,null,0]
[null,{"$f":"'Interest Rate-Liquidity (Rev.)'!B45","v":"Other currency 6"},null,{"$f":"'Schedule XXIII'!M23","v":0},{"$f":"'Schedule XXIII'!P23","v":0},{"$f":"'Schedule XXIII'!S23","v":0},null,{"$f":"'Interest Rate-Liquidity (Rev.)'!S45","v":0},{"$f":"'Interest Rate-Liquidity (Rev.)'!T45","v":0},null,null,0]
[null,{"$f":"'Interest Rate-Liquidity (Rev.)'!B46","v":"Other currency 7"},null,{"$f":"'Schedule XXIII'!M24","v":0},{"$f":"'Schedule XXIII'!P24","v":0},{"$f":"'Schedule XXIII'!S24","v":0},null,{"$f":"'Interest Rate-Liquidity (Rev.)'!S46","v":0},{"$f":"'Interest Rate-Liquidity (Rev.)'!T46","v":0},null,null,0]
[null,{"$f":"'Interest Rate-Liquidity (Rev.)'!B47","v":"Other currency 8"},null,{"$f":"'Schedule XXIII'!M25","v":0},{"$f":"'Schedule XXIII'!P25","v":0},{"$f":"'Schedule XXIII'!S25","v":0},null,{"$f":"'Interest Rate-Liquidity (Rev.)'!S47","v":0},{"$f":"'Interest Rate-Liquidity (Rev.)'!T47","v":0},null,null,0]
[null,{"$f":"'Interest Rate-Liquidity (Rev.)'!B48","v":"Other currency 9"},null,{"$f":"'Schedule XXIII'!M26","v":0},{"$f":"'Schedule XXIII'!P26","v":0},{"$f":"'Schedule XXIII'!S26","v":0},null,{"$f":"'Interest Rate-Liquidity (Rev.)'!S48","v":0},{"$f":"'Interest Rate-Liquidity (Rev.)'!T48","v":0},null,null,0]
[null,{"$f":"'Interest Rate-Liquidity (Rev.)'!B49","v":"Other currency 10"},null,{"$f":"'Schedule XXIII'!M27","v":0},{"$f":"'Schedule XXIII'!P27","v":0},{"$f":"'Schedule XXIII'!S27","v":0},null,{"$f":"'Interest Rate-Liquidity (Rev.)'!S49","v":0},{"$f":"'Interest Rate-Liquidity (Rev.)'!T49","v":0},null,null,0]
[null,{"$f":"'Interest Rate-Liquidity (Rev.)'!B50","v":"Total IR - Derivatives"},null,{"$f":"SUM(D229:D246)","v":0},0,0,null,0,0,null,{"$f":"SUM(K229:K246)","v":0},{"$f":"SUM(L229:L246)","v":0}]
[null,{"$f":"'Interest Rate-Liquidity (Rev.)'!B51","v":"Total IR - DOWN"},null,{"$f":"D226+D247","v":0},{"$f":"E226+E247","v":0},0,null,{"$f":"MAX(0,H226+H247)","v":0},{"$f":"MAX(0,I226+I247)","v":0},null,{"$f":"MAX(0,K226+K247)","v":0},0]
[]
[null,{"$f":"'Interest Rate-Liquidity (Rev.)'!B53","v":"IR UP - Exposures without Derivatives"}]
[null,{"$f":"'Interest Rate-Liquidity (Rev.)'!B54","v":"United States Dollars"},null,{"$f":"'Schedule XXIII'!E35","v":0},null,{"$f":"'Schedule XXIII'!H35","v":0},null,{"$f":"'Interest Rate-Liquidity (Rev.)'!S54","v":0},{"$f":"'Interest Rate-Liquidity (Rev.)'!T54","v":0},null,null,{"$f":"MAX(0,IF(K251=\"\",H251,K251))","v":0}]
[null,{"$f":"'Interest Rate-Liquidity (Rev.)'!B55","v":"Euro"},null,{"$f":"'Schedule XXIII'!E36","v":0},null,{"$f":"'Schedule XXIII'!H36","v":0},null,{"$f":"'Interest Rate-Liquidity (Rev.)'!S55","v":0},{"$f":"'Interest Rate-Liquidity (Rev.)'!T55","v":0},null,null,{"$f":"MAX(0,IF(K252=\"\",H252,K252))","v":0}]
[null,{"$f":"'Interest Rate-Liquidity (Rev.)'!B56","v":"United Kingdom Pounds"},null,{"$f":"'Schedule XXIII'!E37","v":0},null,{"$f":"'Schedule XXIII'!H37","v":0},null,{"$f":"'Interest Rate-Liquidity (Rev.)'!S56","v":0},{"$f":"'Interest Rate-Liquidity (Rev.)'!T56","v":0},null,null,0]
[null,{"$f":"'Interest Rate-Liquidity (Rev.)'!B57","v":"Japan Yen"},null,{"$f":"'Schedule XXIII'!E38","v":0},null,{"$f":"'Schedule XXIII'!H38","v":0},null,{"$f":"'Interest Rate-Liquidity (Rev.)'!S57","v":0},{"$f":"'Interest Rate-Liquidity (Rev.)'!T57","v":0},null,null,0]
[null,{"$f":"'Interest Rate-Liquidity (Rev.)'!B58","v":"Canada Dollars"},null,{"$f":"'Schedule XXIII'!E39","v":0},null,{"$f":"'Schedule XXIII'!H39","v":0},null,{"$f":"'Interest Rate-Liquidity (Rev.)'!S58","v":0},{"$f":"'Interest Rate-Liquidity (Rev.)'!T58","v":0},null,null,0]
[null,{"$f":"'Interest Rate-Liquidity (Rev.)'!B59","v":"Swiss Francs"},null,{"$f":"'Schedule XXIII'!E40","v":0},null,{"$f":"'Schedule XXIII'!H40","v":0},null,{"$f":"'Interest Rate-Liquidity (Rev.)'!S59","v":0},{"$f":"'Interest Rate-Liquidity (Rev.)'!T59","v":0},null,null,0]
[null,{"$f":"'Interest Rate-Liquidity (Rev.)'!B60","v":"Australia Dollar"},null,{"$f":"'Schedule XXIII'!E41","v":0},null,{"$f":"'Schedule XXIII'!H41","v":0},null,{"$f":"'Interest Rate-Liquidity (Rev.)'!S60","v":0},{"$f":"'Interest Rate-Liquidity (Rev.)'!T60","v":0},null,null,0]
[null,{"$f":"'Interest Rate-Liquidity (Rev.)'!B61","v":"New Zealand Dollar"},null,{"$f":"'Schedule XXIII'!E42","v":0},null,{"$f":"'Schedule XXIII'!H42","v":0},null,{"$f":"'Interest Rate-Liquidity (Rev.)'!S61","v":0},{"$f":"'Interest Rate-Liquidity (Rev.)'!T61","v":0},null,null,0]
[null,{"$f":"'Interest Rate-Liquidity (Rev.)'!B62","v":"Other currency 1"},null,{"$f":"'Schedule XXIII'!E43","v":0},null,{"$f":"'Schedule XXIII'!H43","v":0},null,{"$f":"'Interest Rate-Liquidity (Rev.)'!S62","v":0},{"$f":"'Interest Rate-Liquidity (Rev.)'!T62","v":0},null,null,0]
[null,{"$f":"'Interest Rate-Liquidity (Rev.)'!B63","v":"Other currency 2"},null,{"$f":"'Schedule XXIII'!E44","v":0},null,{"$f":"'Schedule XXIII'!H44","v":0},null,{"$f":"'Interest Rate-Liquidity (Rev.)'!S63","v":0},{"$f":"'Interest Rate-Liquidity (Rev.)'!T63","v":0},null,null,0]
[null,{"$f":"'Interest Rate-Liquidity (Rev.)'!B64","v":"Other currency 3"},null,{"$f":"'Schedule XXIII'!E45","v":0},null,{"$f":"'Schedule XXIII'!H45","v":0},null,{"$f":"'Interest Rate-Liquidity (Rev.)'!S64","v":0},{"$f":"'Interest Rate-Liquidity (Rev.)'!T64","v":0},null,null,0]
[null,{"$f":"'Interest Rate-Liquidity (Rev.)'!B65","v":"Other currency 4"},null,{"$f":"'Schedule XXIII'!E46","v":0},null,{"$f":"'Schedule XXIII'!H46","v":0},null,{"$f":"'Interest Rate-Liquidity (Rev.)'!S65","v":0},{"$f":"'Interest Rate-Liquidity (Rev.)'!T65","v":0},null,null,0]
[null,{"$f":"'Interest Rate-Liquidity (Rev.)'!B66","v":"Other currency 5"},null,{"$f":"'Schedule XXIII'!E47","v":0},null,{"$f":"'Schedule XXIII'!H47","v":0},null,{"$f":"'Interest Rate-Liquidity (Rev.)'!S66","v":0},{"$f":"'Interest Rate-Liquidity (Rev.)'!T66","v":0},null,null,0]
[null,{"$f":"'Interest Rate-Liquidity (Rev.)'!B67","v":"Other currency 6"},null,{"$f":"'Schedule XXIII'!E48","v":0},null,{"$f":"'Schedule XXIII'!H48","v":0},null,{"$f":"'Interest Rate-Liquidity (Rev.)'!S67","v":0},{"$f":"'Interest Rate-Liquidity (Rev.)'!T67","v":0},null,null,0]
[null,{"$f":"'Interest Rate-Liquidity (Rev.)'!B68","v":"Other currency 7"},null,{"$f":"'Schedule XXIII'!E49","v":0},null,{"$f":"'Schedule XXIII'!H49","v":0},null,{"$f":"'Interest Rate-Liquidity (Rev.)'!S68","v":0},{"$f":"'Interest Rate-Liquidity (Rev.)'!T68","v":0},null,null,0]
[null,{"$f":"'Interest Rate-Liquidity (Rev.)'!B69","v":"Other currency 8"},null,{"$f":"'Schedule XXIII'!E50","v":0},null,{"$f":"'Schedule XXIII'!H50","v":0},null,{"$f":"'Interest Rate-Liquidity (Rev.)'!S69","v":0},{"$f":"'Interest Rate-Liquidity (Rev.)'!T69","v":0},null,null,0]
[null,{"$f":"'Interest Rate-Liquidity (Rev.)'!B70","v":"Other currency 9"},null,{"$f":"'Schedule XXIII'!E51","v":0},null,{"$f":"'Schedule XXIII'!H51","v":0},null,{"$f":"'Interest Rate-Liquidity (Rev.)'!S70","v":0},{"$f":"'Interest Rate-Liquidity (Rev.)'!T70","v":0},null,null,0]
[null,{"$f":"'Interest Rate-Liquidity (Rev.)'!B71","v":"Other currency 10"},null,{"$f":"'Schedule XXIII'!E52","v":0},null,{"$f":"'Schedule XXIII'!H52","v":0},null,{"$f":"'Interest Rate-Liquidity (Rev.)'!S71","v":0},{"$f":"'Interest Rate-Liquidity (Rev.)'!T71","v":0},null,null,0]
[null,{"$f":"'Interest Rate-Liquidity (Rev.)'!B72","v":"Total IR - Other"},null,{"$f":"SUM(D251:D268)","v":0},null,{"$f":"SUM(F251:F268)","v":0},null,{"$f":"SUM(H251:H268)","v":0},{"$f":"SUM(I251:I268)","v":0},null,{"$f":"SUM(K251:K268)","v":0},{"$f":"SUM(L251:L268)","v":0}]
[]
[null,{"$f":"'Interest Rate-Liquidity (Rev.)'!B74","v":"IR Up - Derivatives"}]
[null,{"$f":"'Interest Rate-Liquidity (Rev.)'!B75","v":"United States Dollars"},null,{"$f":"'Schedule XXIII'!M35","v":0},{"$f":"'Schedule XXIII'!P35","v":0},{"$f":"'Schedule XXIII'!S35","v":0},null,{"$f":"'Interest Rate-Liquidity (Rev.)'!S75","v":0},{"$f":"'Interest Rate-Liquidity (Rev.)'!T75","v":0},null,null,{"$f":"MAX(0,IF(K272=\"\",H272,K272))","v":0}]
[null,{"$f":"'Interest Rate-Liquidity (Rev.)'!B76","v":"Euro"},null,{"$f":"'Schedule XXIII'!M36","v":0},{"$f":"'Schedule XXIII'!P36","v":0},{"$f":"'Schedule XXIII'!S36","v":0},null,{"$f":"'Interest Rate-Liquidity (Rev.)'!S76","v":0},{"$f":"'Interest Rate-Liquidity (Rev.)'!T76","v":0},null,null,{"$f":"MAX(0,IF(K273=\"\",H273,K273))","v":0}]
[null,{"$f":"'Interest Rate-Liquidity (Rev.)'!B77","v":"United Kingdom Pounds"},null,{"$f":"'Schedule XXIII'!M37","v":0},{"$f":"'Schedule XXIII'!P37","v":0},{"$f":"'Schedule XXIII'!S37","v":0},null,{"$f":"'Interest Rate-Liquidity (Rev.)'!S77","v":0},{"$f":"'Interest Rate-Liquidity (Rev.)'!T77","v":0},null,null,0]
[null,{"$f":"'Interest Rate-Liquidity (Rev.)'!B78","v":"Japan Yen"},null,{"$f":"'Schedule XXIII'!M38","v":0},{"$f":"'Schedule XXIII'!P38","v":0},{"$f":"'Schedule XXIII'!S38","v":0},null,{"$f":"'Interest Rate-Liquidity (Rev.)'!S78","v":0},{"$f":"'Interest Rate-Liquidity (Rev.)'!T78","v":0},null,null,0]
[null,{"$f":"'Interest Rate-Liquidity (Rev.)'!B79","v":"Canada Dollars"},null,{"$f":"'Schedule XXIII'!M39","v":0},{"$f":"'Schedule XXIII'!P39","v":0},{"$f":"'Schedule XXIII'!S39","v":0},null,{"$f":"'Interest Rate-Liquidity (Rev.)'!S79","v":0},{"$f":"'Interest Rate-Liquidity (Rev.)'!T79","v":0},null,null,0]
[null,{"$f":"'Interest Rate-Liquidity (Rev.)'!B80","v":"Swiss Francs"},null,{"$f":"'Schedule XXIII'!M40","v":0},{"$f":"'Schedule XXIII'!P40","v":0},{"$f":"'Schedule XXIII'!S40","v":0},null,{"$f":"'Interest Rate-Liquidity (Rev.)'!S80","v":0},{"$f":"'Interest Rate-Liquidity (Rev.)'!T80","v":0},null,null,0]
[null,{"$f":"'Interest Rate-Liquidity (Rev.)'!B81","v":"Australia Dollar"},null,{"$f":"'Schedule XXIII'!M41","v":0},{"$f":"'Schedule XXIII'!P41","v":0},{"$f":"'Schedule XXIII'!S41","v":0},null,{"$f":"'Interest Rate-Liquidity (Rev.)'!S81","v":0},{"$f":"'Interest Rate-Liquidity (Rev.)'!T81","v":0},null,null,0]
[null,{"$f":"'Interest Rate-Liquidity (Rev.)'!B82","v":"New Zealand Dollar"},null,{"$f":"'Schedule XXIII'!M42","v":0},{"$f":"'Schedule XXIII'!P42","v":0},{"$f":"'Schedule XXIII'!S42","v":0},null,{"$f":"'Interest Rate-Liquidity (Rev.)'!S82","v":0},{"$f":"'Interest Rate-Liquidity (Rev.)'!T82","v":0},null,null,0]
[null,{"$f":"'Interest Rate-Liquidity (Rev.)'!B83","v":"Other currency 1"},null,{"$f":"'Schedule XXIII'!M43","v":0},{"$f":"'Schedule XXIII'!P43","v":0},{"$f":"'Schedule XXIII'!S43","v":0},null,{"$f":"'Interest Rate-Liquidity (Rev.)'!S83","v":0},{"$f":"'Interest Rate-Liquidity (Rev.)'!T83","v":0},null,null,0]
[null,{"$f":"'Interest Rate-Liquidity (Rev.)'!B84","v":"Other currency 2"},null,{"$f":"'Schedule XXIII'!M44","v":0},{"$f":"'Schedule XXIII'!P44","v":0},{"$f":"'Schedule XXIII'!S44","v":0},null,{"$f":"'Interest Rate-Liquidity (Rev.)'!S84","v":0},{"$f":"'Interest Rate-Liquidity (Rev.)'!T84","v":0},null,null,0]
[null,{"$f":"'Interest Rate-Liquidity (Rev.)'!B85","v":"Other currency 3"},null,{"$f":"'Schedule XXIII'!M45","v":0},{"$f":"'Schedule XXIII'!P45","v":0},{"$f":"'Schedule XXIII'!S45","v":0},null,{"$f":"'Interest Rate-Liquidity (Rev.)'!S85","v":0},{"$f":"'Interest Rate-Liquidity (Rev.)'!T85","v":0},null,null,0]
[null,{"$f":"'Interest Rate-Liquidity (Rev.)'!B86","v":"Other currency 4"},null,{"$f":"'Schedule XXIII'!M46","v":0},{"$f":"'Schedule XXIII'!P46","v":0},{"$f":"'Schedule XXIII'!S46","v":0},null,{"$f":"'Interest Rate-Liquidity (Rev.)'!S86","v":0},{"$f":"'Interest Rate-Liquidity (Rev.)'!T86","v":0},null,null,0]
[null,{"$f":"'Interest Rate-Liquidity (Rev.)'!B87","v":"Other currency 5"},null,{"$f":"'Schedule XXIII'!M47","v":0},{"$f":"'Schedule XXIII'!P47","v":0},{"$f":"'Schedule XXIII'!S47","v":0},null,{"$f":"'Interest Rate-Liquidity (Rev.)'!S87","v":0},{"$f":"'Interest Rate-Liquidity (Rev.)'!T87","v":0},null,null,0]
[null,{"$f":"'Interest Rate-Liquidity (Rev.)'!B88","v":"Other currency 6"},null,{"$f":"'Schedule XXIII'!M48","v":0},{"$f":"'Schedule XXIII'!P48","v":0},{"$f":"'Schedule XXIII'!S48","v":0},null,{"$f":"'Interest Rate-Liquidity (Rev.)'!S88","v":0},{"$f":"'Interest Rate-Liquidity (Rev.)'!T88","v":0},null,null,0]
[null,{"$f":"'Interest Rate-Liquidity (Rev.)'!B89","v":"Other currency 7"},null,{"$f":"'Schedule XXIII'!M49","v":0},{"$f":"'Schedule XXIII'!P49","v":0},{"$f":"'Schedule XXIII'!S49","v":0},null,{"$f":"'Interest Rate-Liquidity (Rev.)'!S89","v":0},{"$f":"'Interest Rate-Liquidity (Rev.)'!T89","v":0},null,null,0]
[null,{"$f":"'Interest Rate-Liquidity (Rev.)'!B90","v":"Other currency 8"},null,{"$f":"'Schedule XXIII'!M50","v":0},{"$f":"'Schedule XXIII'!P50","v":0},{"$f":"'Schedule XXIII'!S50","v":0},null,{"$f":"'Interest Rate-Liquidity (Rev.)'!S90","v":0},{"$f":"'Interest Rate-Liquidity (Rev.)'!T90","v":0},null,null,0]
[null,{"$f":"'Interest Rate-Liquidity (Rev.)'!B91","v":"Other currency 9"},null,{"$f":"'Schedule XXIII'!M51","v":0},{"$f":"'Schedule XXIII'!P51","v":0},{"$f":"'Schedule XXIII'!S51","v":0},null,{"$f":"'Interest Rate-Liquidity (Rev.)'!S91","v":0},{"$f":"'Interest Rate-Liquidity (Rev.)'!T91","v":0},null,null,0]
[null,{"$f":"'Interest Rate-Liquidity (Rev.)'!B92","v":"Other currency 10"},null,{"$f":"'Schedule XXIII'!M52","v":0},{"$f":"'Schedule XXIII'!P52","v":0},{"$f":"'Schedule XXIII'!S52","v":0},null,{"$f":"'Interest Rate-Liquidity (Rev.)'!S92","v":0},{"$f":"'Interest Rate-Liquidity (Rev.)'!T92","v":0},null,null,0]
[null,{"$f":"'Interest Rate-Liquidity (Rev.)'!B93","v":"Total IR - Derivatives"},null,{"$f":"SUM(D272:D289)","v":0},0,0,null,0,0,null,{"$f":"SUM(K272:K289)","v":0},{"$f":"SUM(L272:L289)","v":0}]
[null,{"$f":"'Interest Rate-Liquidity (Rev.)'!B94","v":"Total IR - UP"},null,{"$f":"D269+D290","v":0},{"$f":"E269+E290","v":0},{"$f":"F269+F290","v":0},null,{"$f":"MAX(0,H269+H290)","v":0},{"$f":"MAX(0,I269+I290)","v":0},null,{"$f":"MAX(0,K269+K290)","v":0},{"$f":"MAX(0,L269+L290)","v":0}]
[]
[null,{"$f":"'Interest Rate-Liquidity (Rev.)'!B97","v":"Overall Interest Rate Risk"},null,null,null,null,"Scenario-Based Approach"]
[]
[null,{"$f":"'Interest Rate-Liquidity (Rev.)'!B99","v":"Interest Rates Down Shock - without Management Actions"},null,null,null,{"$f":"H248","v":0}]
[null,{"$f":"'Interest Rate-Liquidity (Rev.)'!B100","v":"Interest Rates Up Shock - without Management Actions"},null,null,null,{"$f":"H269","v":0}]
[null,{"$f":"'Interest Rate-Liquidity (Rev.)'!B101","v":"Max(IR Down, IR Up) - without MA"},null,null,null,{"$f":"MAX(0,F295,F296)","v":0}]
[]
[null,{"$f":"'Interest Rate-Liquidity (Rev.)'!B103","v":"Interest Rate Risk without Management Actions"},null,null,null,{"$f":"IF(F305=\"UP\",F296,F295)","v":0},"Adj. IR Risk Cap. Req.",{"$f":"'Interest Rate-Liquidity (Rev.)'!D115","v":0},{"$f":"'Interest Rate-Liquidity (Rev.)'!E115","v":0},null,{"$f":"H299","v":0},{"$f":"I299","v":0}]
[]
[]
[null,{"$f":"'Interest Rate-Liquidity (Rev.)'!B106","v":"Interest Rates Down Shock - with Management Actions"},null,null,null,{"$f":"I248","v":0}]
[null,{"$f":"'Interest Rate-Liquidity (Rev.)'!B107","v":"Interest Rates Up Shock - with Management Actions"},null,null,null,{"$f":"I269","v":0}]
[null,{"$f":"'Interest Rate-Liquidity (Rev.)'!B108","v":"Max(IR Down, IR Up) - with Management Actions"},null,null,null,{"$f":"MAX(F302,F303)","v":0}]
[null,{"$f":"'Interest Rate-Liquidity (Rev.)'!B109","v":"Biting scenario"},null,null,null,{"$f":"IF(F304=F302,\"DOWN\",\"UP\")","v":"DOWN"},null,"W/O Mgmt. Action","Mgmt. Action",null,"W/O Mgmt. Action","Mgmt. Action"]
[]
[null,{"$f":"'Interest Rate-Liquidity (Rev.)'!B111","v":"Interest Rate Risk with Management Actions"},null,null,null,{"$f":"F304","v":0}]
[]
[null,"Interest Rate Risk capital requirement",null,null,null,null,null,{"$f":"'Interest Rate-Liquidity (Rev.)'!D117","v":0},{"$f":"'Interest Rate-Liquidity (Rev.)'!E117","v":0},null,{"$f":"H309","v":0},{"$f":"I309","v":0}]
[]
[null,null,"ASSETS",null,null,null,null,"CAPITAL","CAPITAL",null,"USER","USER"]
[null,null,null,"Long Exposures",null,"Long Exposures",null,"CHARGE","CHARGE",null,"CAPITAL","REQUIRED"]
[null,"CURRENCY RISK","Assets - Excluding currency-sensitive derivatives","Currency Derivatives Qualifying as held for risk-mitigation purposes","Currency Derivatives Not Qualifying as held for risk-mitigation purposes","Currency Derivatives Qualifying as held for risk-mitigation purposes","Currency Derivatives Not Qualifying as held for risk-mitigation purposes","W/O MGMT","W MGMT",null,"FACTOR","CAPITAL"]
[]
[null,{"$f":"'Currency Risk'!B12","v":"United States Dollars"},{"$f":"'Schedule XXA'!D10","v":0},{"$f":"'Schedule XXA'!F10","v":0},{"$f":"'Schedule XXA'!H10","v":0},{"$f":"'Schedule XXA'!J10","v":0},{"$f":"'Schedule XXA'!L10","v":0},{"$f":"'Currency Risk'!X12","v":0},{"$f":"'Currency Risk'!Y12","v":0},null,null,{"$f":"MAX(0,IF(K315=\"\",H315,K315*SUM(C315:G315)))","v":0}]
[null,{"$f":"'Currency Risk'!B13","v":"Bermuda Dollars"},{"$f":"'Schedule XXA'!D11","v":0},{"$f":"'Schedule XXA'!F11","v":0},{"$f":"'Schedule XXA'!H11","v":0},{"$f":"'Schedule XXA'!J11","v":0},{"$f":"'Schedule XXA'!L11","v":0},{"$f":"'Currency Risk'!X13","v":0},{"$f":"'Currency Risk'!Y13","v":0},null,null,{"$f":"MAX(0,IF(K316=\"\",H316,K316*SUM(C316:G316)))","v":0}]
[null,{"$f":"'Currency Risk'!B14","v":"Qatar Riyals"},{"$f":"'Schedule XXA'!D12","v":0},{"$f":"'Schedule XXA'!F12","v":0},{"$f":"'Schedule XXA'!H12","v":0},{"$f":"'Schedule XXA'!J12","v":0},{"$f":"'Schedule XXA'!L12","v":0},{"$f":"'Currency Risk'!X14","v":0},{"$f":"'Currency Risk'!Y14","v":0},null,null,{"$f":"MAX(0,IF(K317=\"\",H317,K317*SUM(C317:G317)))","v":0}]
[null,{"$f":"'Currency Risk'!B15","v":"Hong Kong Dollars"},{"$f":"'Schedule XXA'!D13","v":0},{"$f":"'Schedule XXA'!F13","v":0},{"$f":"'Schedule XXA'!H13","v":0},{"$f":"'Schedule XXA'!J13","v":0},{"$f":"'Schedule XXA'!L13","v":0},{"$f":"'Currency Risk'!X15","v":0},{"$f":"'Currency Risk'!Y15","v":0},null,null,0]
[null,{"$f":"'Currency Risk'!B16","v":"Euro"},{"$f":"'Schedule XXA'!D14","v":0},{"$f":"'Schedule XXA'!F14","v":0},{"$f":"'Schedule XXA'!H14","v":0},{"$f":"'Schedule XXA'!J14","v":0},{"$f":"'Schedule XXA'!L14","v":0},{"$f":"'Currency Risk'!X16","v":0},{"$f":"'Currency Risk'!Y16","v":0},null,null,0]
[null,{"$f":"'Currency Risk'!B17","v":"Denmark Kroner"},{"$f":"'Schedule XXA'!D15","v":0},{"$f":"'Schedule XXA'!F15","v":0},{"$f":"'Schedule XXA'!H15","v":0},{"$f":"'Schedule XXA'!J15","v":0},{"$f":"'Schedule XXA'!L15","v":0},{"$f":"'Currency Risk'!X17","v":0},{"$f":"'Currency Risk'!Y17","v":0},null,null,0]
[null,{"$f":"'Currency Risk'!B18","v":"Bulgaria Leva"},{"$f":"'Schedule XXA'!D16","v":0},{"$f":"'Schedule XXA'!F16","v":0},{"$f":"'Schedule XXA'!H16","v":0},{"$f":"'Schedule XXA'!J16","v":0},{"$f":"'Schedule XXA'!L16","v":0},{"$f":"'Currency Risk'!X18","v":0},{"$f":"'Currency Risk'!Y18","v":0},null,null,0]
[null,{"$f":"'Currency Risk'!B19","v":"West African CFA Francs"},{"$f":"'Schedule XXA'!D17","v":0},{"$f":"'Schedule XXA'!F17","v":0},{"$f":"'Schedule XXA'!H17","v":0},{"$f":"'Schedule XXA'!J17","v":0},{"$f":"'Schedule XXA'!L17","v":0},{"$f":"'Currency Risk'!X19","v":0},{"$f":"'Currency Risk'!Y19","v":0},null,null,0]
[null,{"$f":"'Currency Risk'!B20","v":"Central African CFA Francs"},{"$f":"'Schedule XXA'!D18","v":0},{"$f":"'Schedule XXA'!F18","v":0},{"$f":"'Schedule XXA'!H18","v":0},{"$f":"'Schedule XXA'!J18","v":0},{"$f":"'Schedule XXA'!L18","v":0},{"$f":"'Currency Risk'!X20","v":0},{"$f":"'Currency Risk'!Y20","v":0},null,null,0]
[null,{"$f":"'Currency Risk'!B21","v":"Comorian Francs"},{"$f":"'Schedule XXA'!D19","v":0},{"$f":"'Schedule XXA'!F19","v":0},{"$f":"'Schedule XXA'!H19","v":0},{"$f":"'Schedule XXA'!J19","v":0},{"$f":"'Schedule XXA'!L19","v":0},{"$f":"'Currency Risk'!X21","v":0},{"$f":"'Currency Risk'!Y21","v":0},null,null,0]
[null,{"$f":"'Currency Risk'!B22","v":"United Kingdom Pounds"},{"$f":"'Schedule XXA'!D20","v":0},{"$f":"'Schedule XXA'!F20","v":0},{"$f":"'Schedule XXA'!H20","v":0},{"$f":"'Schedule XXA'!J20","v":0},{"$f":"'Schedule XXA'!L20","v":0},{"$f":"'Currency Risk'!X22","v":0},{"$f":"'Currency Risk'!Y22","v":0},null,null,0]
[null,{"$f":"'Currency Risk'!B23","v":"Canada Dollars"},{"$f":"'Schedule XXA'!D21","v":0},{"$f":"'Schedule XXA'!F21","v":0},{"$f":"'Schedule XXA'!H21","v":0},{"$f":"'Schedule XXA'!J21","v":0},{"$f":"'Schedule XXA'!L21","v":0},{"$f":"'Currency Risk'!X23","v":0},{"$f":"'Currency Risk'!Y23","v":0},null,null,0]
[null,{"$f":"'Currency Risk'!B24","v":"Japan Yen"},{"$f":"'Schedule XXA'!D22","v":0},{"$f":"'Schedule XXA'!F22","v":0},{"$f":"'Schedule XXA'!H22","v":0},{"$f":"'Schedule XXA'!J22","v":0},{"$f":"'Schedule XXA'!L22","v":0},{"$f":"'Currency Risk'!X24","v":0},{"$f":"'Currency Risk'!Y24","v":0},null,null,0]
[null,{"$f":"'Currency Risk'!B25","v":"Other currency 1"},{"$f":"'Schedule XXA'!D23","v":0},{"$f":"'Schedule XXA'!F23","v":0},{"$f":"'Schedule XXA'!H23","v":0},{"$f":"'Schedule XXA'!J23","v":0},{"$f":"'Schedule XXA'!L23","v":0},{"$f":"'Currency Risk'!X25","v":0},{"$f":"'Currency Risk'!Y25","v":0},null,null,0]
[null,{"$f":"'Currency Risk'!B26","v":"Other currency 2"},{"$f":"'Schedule XXA'!D24","v":0},{"$f":"'Schedule XXA'!F24","v":0},{"$f":"'Schedule XXA'!H24","v":0},{"$f":"'Schedule XXA'!J24","v":0},{"$f":"'Schedule XXA'!L24","v":0},{"$f":"'Currency Risk'!X26","v":0},{"$f":"'Currency Risk'!Y26","v":0},null,null,0]
[null,{"$f":"'Currency Risk'!B27","v":"Other currency 3"},{"$f":"'Schedule XXA'!D25","v":0},{"$f":"'Schedule XXA'!F25","v":0},{"$f":"'Schedule XXA'!H25","v":0},{"$f":"'Schedule XXA'!J25","v":0},{"$f":"'Schedule XXA'!L25","v":0},{"$f":"'Currency Risk'!X27","v":0},{"$f":"'Currency Risk'!Y27","v":0},null,null,0]
[null,{"$f":"'Currency Risk'!B28","v":"Other currency 4"},{"$f":"'Schedule XXA'!D26","v":0},{"$f":"'Schedule XXA'!F26","v":0},{"$f":"'Schedule XXA'!H26","v":0},{"$f":"'Schedule XXA'!J26","v":0},{"$f":"'Schedule XXA'!L26","v":0},{"$f":"'Currency Risk'!X28","v":0},{"$f":"'Currency Risk'!Y28","v":0},null,null,0]
[null,{"$f":"'Currency Risk'!B29","v":"Other currency 5"},{"$f":"'Schedule XXA'!D27","v":0},{"$f":"'Schedule XXA'!F27","v":0},{"$f":"'Schedule XXA'!H27","v":0},{"$f":"'Schedule XXA'!J27","v":0},{"$f":"'Schedule XXA'!L27","v":0},{"$f":"'Currency Risk'!X29","v":0},{"$f":"'Currency Risk'!Y29","v":0},null,null,0]
[null,{"$f":"'Currency Risk'!B30","v":"Other currency 6"},{"$f":"'Schedule XXA'!D28","v":0},{"$f":"'Schedule XXA'!F28","v":0},{"$f":"'Schedule XXA'!H28","v":0},{"$f":"'Schedule XXA'!J28","v":0},{"$f":"'Schedule XXA'!L28","v":0},{"$f":"'Currency Risk'!X30","v":0},{"$f":"'Currency Risk'!Y30","v":0},null,null,0]
[null,{"$f":"'Currency Risk'!B31","v":"Other currency 7"},{"$f":"'Schedule XXA'!D29","v":0},{"$f":"'Schedule XXA'!F29","v":0},{"$f":"'Schedule XXA'!H29","v":0},{"$f":"'Schedule XXA'!J29","v":0},{"$f":"'Schedule XXA'!L29","v":0},{"$f":"'Currency Risk'!X31","v":0},{"$f":"'Currency Risk'!Y31","v":0},null,null,0]
[null,{"$f":"'Currency Risk'!B32","v":"Other currency 8"},{"$f":"'Schedule XXA'!D30","v":0},{"$f":"'Schedule XXA'!F30","v":0},{"$f":"'Schedule XXA'!H30","v":0},{"$f":"'Schedule XXA'!J30","v":0},{"$f":"'Schedule XXA'!L30","v":0},{"$f":"'Currency Risk'!X32","v":0},{"$f":"'Currency Risk'!Y32","v":0},null,null,0]
[null,{"$f":"'Currency Risk'!B33","v":"Other currency 9"},{"$f":"'Schedule XXA'!D31","v":0},{"$f":"'Schedule XXA'!F31","v":0},{"$f":"'Schedule XXA'!H31","v":0},{"$f":"'Schedule XXA'!J31","v":0},{"$f":"'Schedule XXA'!L31","v":0},{"$f":"'Currency Risk'!X33","v":0},{"$f":"'Currency Risk'!Y33","v":0},null,null,0]
[null,{"$f":"'Currency Risk'!B34","v":"Other currency 10"},{"$f":"'Schedule XXA'!D32","v":0},{"$f":"'Schedule XXA'!F32","v":0},{"$f":"'Schedule XXA'!H32","v":0},{"$f":"'Schedule XXA'!J32","v":0},{"$f":"'Schedule XXA'!L32","v":0},{"$f":"'Currency Risk'!X34","v":0},{"$f":"'Currency Risk'!Y34","v":0},null,null,0]
[null,{"$f":"'Currency Risk'!B36","v":"Total"},{"$f":"SUM(C315:C337)","v":0},{"$f":"SUM(D315:D337)","v":0},{"$f":"SUM(E315:E337)","v":0},{"$f":"SUM(F315:F337)","v":0},{"$f":"SUM(G315:G337)","v":0},0,0,null,{"$f":"SUM(K315:K337)","v":0},{"$f":"SUM(L315:L337)","v":0}]
[]
[null,null,null,null,null,null,null,"W/O Mgmt. Action","Mgmt. Action",null,"W/O Mgmt. Action","Mgmt. Action"]
[]
[null,"CURRENCY RISK",null,null,null,null,null,{"$f":"IF(SUM(H315:H337)>=0,SUM(H315:H337),0)","v":0},{"$f":"IF(SUM(I315:I337)>=0,SUM(I315:I337),0)","v":0},null,{"$f":"IF(SUM(L315:L337)>=0,SUM(L315:L337),0)","v":0},{"$f":"IF(SUM(L315:L337)>=0,SUM(L315:L337),0)","v":0}]
[]
[null,"CONCENTRATION RISK",null,null,null,null,null,"STANDARD","STANDARD",null,"USER","USER"]
[null,null,null,null,null,null,"EXPOSURE","CAPITAL","REQUIRED",null,"CAPITAL","REQUIRED"]
[null,"ASSET TYPE",null,null,null,null,"VALUE","FACTOR","CAPITAL",null,"FACTOR","CAPITAL"]
[]
[null,"(a) Cash and Cash Equivalents"]
[null,"BSCR Rating 0",null,null,null,null,{"$f":"'Concentration Risk'!D10","v":0},{"$f":"+'Fixed Income Investments (old)'!E83","v":0},{"$f":"IF(G349<0,0,G349*H349)","v":0},null,null,{"$f":"MAX(0,IF(K349=\"\",H349*G349,G349*K349))","v":0}]
[null,"BSCR Rating 1",null,null,null,null,{"$f":"'Concentration Risk'!D11","v":0},{"$f":"+'Fixed Income Investments (old)'!E84","v":1E-3},{"$f":"IF(G350<0,0,G350*H350)","v":0},null,null,{"$f":"MAX(0,IF(K350=\"\",H350*G350,G350*K350))","v":0}]
[null,"BSCR Rating 2",null,null,null,null,{"$f":"'Concentration Risk'!D12","v":0},{"$f":"+'Fixed Income Investments (old)'!E85","v":2E-3},{"$f":"IF(G351<0,0,G351*H351)","v":0},null,null,{"$f":"MAX(0,IF(K351=\"\",H351*G351,G351*K351))","v":0}]
[null,"BSCR Rating 3",null,null,null,null,{"$f":"'Concentration Risk'!D13","v":0},{"$f":"+'Fixed Income Investments (old)'!E86","v":3.0000000000000001E-3},0,null,null,0]
[null,"BSCR Rating 4",null,null,null,null,{"$f":"'Concentration Risk'!D14","v":0},{"$f":"+'Fixed Income Investments (old)'!E87","v":5.0000000000000001E-3},0,null,null,0]
[null,"BSCR Rating 5",null,null,null,null,{"$f":"'Concentration Risk'!D15","v":0},{"$f":"+'Fixed Income Investments (old)'!E88","v":1.4999999999999999E-2},0,null,null,0]
[null,"BSCR Rating 6",null,null,null,null,{"$f":"'Concentration Risk'!D16","v":0},{"$f":"+'Fixed Income Investments (old)'!E89","v":0.04},0,null,null,0]
[null,"BSCR Rating 7",null,null,null,null,{"$f":"'Concentration Risk'!D17","v":0},{"$f":"+'Fixed Income Investments (old)'!E90","v":0.06},0,null,null,0]
[null,"BSCR Rating 8",null,null,null,null,{"$f":"'Concentration Risk'!D18","v":0},{"$f":"+'Fixed Income Investments (old)'!E91","v":0.09},0,null,null,0]
[]
[null,"(a)  SUBTOTAL - CASH AND CASH EQUIVALENTS",null,null,null,null,{"$f":"SUM(G349:G357)","v":0},null,{"$f":"SUM(I349:I357)","v":0},null,null,{"$f":"SUM(L349:L357)","v":0}]
[]
[null,"(b) Corporate & Sovereign Bonds"]
[null,"BSCR Rating 0",null,null,null,null,{"$f":"'Concentration Risk'!D23","v":0},{"$f":"+H15","v":0},{"$f":"IF(G362<0,0,G362*H362)","v":0},null,null,{"$f":"MAX(0,IF(K362=\"\",H362*G362,G362*K362))","v":0}]
[null,"BSCR Rating 1",null,null,null,null,{"$f":"'Concentration Risk'!D24","v":0},4.0000000000000001E-3,0,null,null,{"$f":"MAX(0,IF(K363=\"\",H363*G363,G363*K363))","v":0}]
[null,"BSCR Rating 2",null,null,null,null,{"$f":"'Concentration Risk'!D25","v":0},8.0000000000000002E-3,0,null,null,{"$f":"MAX(0,IF(K364=\"\",H364*G364,G364*K364))","v":0}]
[null,"BSCR Rating 3",null,null,null,null,{"$f":"'Concentration Risk'!D26","v":0},1.4999999999999999E-2,0,null,null,0]
[null,"BSCR Rating 4",null,null,null,null,{"$f":"'Concentration Risk'!D27","v":0},0.03,0,null,null,0]
[null,"BSCR Rating 5",null,null,null,null,{"$f":"'Concentration Risk'!D28","v":0},0.08,0,null,null,0]
[null,"BSCR Rating 6",null,null,null,null,{"$f":"'Concentration Risk'!D29","v":0},0.15,0,null,null,0]
[null,"BSCR Rating 7",null,null,null,null,{"$f":"'Concentration Risk'!D30","v":0},0.26300000000000001,0,null,null,0]
[null,"BSCR Rating 8",null,null,null,null,{"$f":"'Concentration Risk'!D31","v":0},0.35,0,null,null,0]
[]
[null,"(b)  SUBTOTAL - CORPORATE & SOVEREIGN BONDS",null,null,null,null,{"$f":"SUM(G362:G370)","v":0},null,{"$f":"SUM(I362:I370)","v":0},null,null,{"$f":"SUM(L362:L370)","v":0}]
[]
[null,"(c) Residential Mortgage-Backed Securities"]
[null,"BSCR Rating 0",null,null,null,null,{"$f":"'Concentration Risk'!D36","v":0},0,{"$f":"IF(G375<0,0,G375*H375)","v":0},null,null,{"$f":"MAX(0,IF(K375=\"\",H375*G375,G375*K375))","v":0}]
[null,"BSCR Rating 1",null,null,null,null,{"$f":"'Concentration Risk'!D37","v":0},{"$f":"+H30","v":6.0000000000000001E-3},0,null,null,{"$f":"MAX(0,IF(K376=\"\",H376*G376,G376*K376))","v":0}]
[null,"BSCR Rating 2",null,null,null,null,{"$f":"'Concentration Risk'!D38","v":0},1.2E-2,0,null,null,{"$f":"MAX(0,IF(K377=\"\",H377*G377,G377*K377))","v":0}]
[null,"BSCR Rating 3",null,null,null,null,{"$f":"'Concentration Risk'!D39","v":0},0.02,0,null,null,0]
[null,"BSCR Rating 4",null,null,null,null,{"$f":"'Concentration Risk'!D40","v":0},0.04,0,null,null,0]
[null,"BSCR Rating 5",null,null,null,null,{"$f":"'Concentration Risk'!D41","v":0},0.11,0,null,null,0]
[null,"BSCR Rating 6",null,null,null,null,{"$f":"'Concentration Risk'!D42","v":0},0.25,0,null,null,0]
[null,"BSCR Rating 7",null,null,null,null,{"$f":"'Concentration Risk'!D43","v":0},0.35,0,null,null,0]
[null,"BSCR Rating 8",null,null,null,null,{"$f":"'Concentration Risk'!D44","v":0},0.35,0,null,null,0]
[]
[null,"(c)  SUBTOTAL - RESIDENTIAL MORTGAGE-BACKED SECURITIES",null,null,null,null,{"$f":"SUM(G375:G383)","v":0},null,{"$f":"SUM(I375:I383)","v":0},null,null,{"$f":"SUM(L375:L383)","v":0}]
[]
[null,"(d) Commercial Mortgage-Backed Securities / Asset Backed Securities"]
[null,"BSCR Rating 0",null,null,null,null,{"$f":"'Concentration Risk'!D49","v":0},0,{"$f":"IF(G388<0,0,G388*H388)","v":0},null,null,{"$f":"MAX(0,IF(K388=\"\",H388*G388,G388*K388))","v":0}]
[null,"BSCR Rating 1",null,null,null,null,{"$f":"'Concentration Risk'!D50","v":0},{"$f":"+H44","v":5.0000000000000001E-3},0,null,null,{"$f":"MAX(0,IF(K389=\"\",H389*G389,G389*K389))","v":0}]
[null,"BSCR Rating 2",null,null,null,null,{"$f":"'Concentration Risk'!D51","v":0},0.01,0,null,null,{"$f":"MAX(0,IF(K390=\"\",H390*G390,G390*K390))","v":0}]
[null,"BSCR Rating 3",null,null,null,null,{"$f":"'Concentration Risk'!D52","v":0},1.7999999999999999E-2,0,null,null,0]
[null,"BSCR Rating 4",null,null,null,null,{"$f":"'Concentration Risk'!D53","v":0},3.5000000000000003E-2,0,null,null,0]
[null,"BSCR Rating 5",null,null,null,null,{"$f":"'Concentration Risk'!D54","v":0},0.1,0,null,null,0]
[null,"BSCR Rating 6",null,null,null,null,{"$f":"'Concentration Risk'!D55","v":0},0.2,0,null,null,0]
[null,"BSCR Rating 7",null,null,null,null,{"$f":"'Concentration Risk'!D56","v":0},0.3,0,null,null,0]
[null,"BSCR Rating 8",null,null,null,null,{"$f":"'Concentration Risk'!D57","v":0},0.35,0,null,null,0]
[]
[null,"(d)  SUBTOTAL - COMMERCIAL MORTGAGE-BACKED SECURITIES / ASSET-BACKED SECURITIES",null,null,null,null,{"$f":"SUM(G388:G396)","v":0},null,{"$f":"SUM(I388:I396)","v":0},null,null,{"$f":"SUM(L388:L396)","v":0}]
[]
[null,"(e) Bond Mutual Funds"]
[null,"BSCR Rating 0",null,null,null,null,{"$f":"'Concentration Risk'!D62","v":0},{"$f":"+H58","v":0},{"$f":"IF(G401<0,0,G401*H401)","v":0},null,null,{"$f":"MAX(0,IF(K401=\"\",H401*G401,G401*K401))","v":0}]
[null,"BSCR Rating 1",null,null,null,null,{"$f":"'Concentration Risk'!D63","v":0},4.0000000000000001E-3,0,null,null,{"$f":"MAX(0,IF(K402=\"\",H402*G402,G402*K402))","v":0}]
[null,"BSCR Rating 2",null,null,null,null,{"$f":"'Concentration Risk'!D64","v":0},8.0000000000000002E-3,0,null,null,{"$f":"MAX(0,IF(K403=\"\",H403*G403,G403*K403))","v":0}]
[null,"BSCR Rating 3",null,null,null,null,{"$f":"'Concentration Risk'!D65","v":0},1.4999999999999999E-2,0,null,null,0]
[null,"BSCR Rating 4",null,null,null,null,{"$f":"'Concentration Risk'!D66","v":0},0.03,0,null,null,0]
[null,"BSCR Rating 5",null,null,null,null,{"$f":"'Concentration Risk'!D67","v":0},0.08,0,null,null,0]
[null,"BSCR Rating 6",null,null,null,null,{"$f":"'Concentration Risk'!D68","v":0},0.15,0,null,null,0]
[null,"BSCR Rating 7",null,null,null,null,{"$f":"'Concentration Risk'!D69","v":0},0.26300000000000001,0,null,null,0]
[null,"BSCR Rating 8",null,null,null,null,{"$f":"'Concentration Risk'!D70","v":0},0.35,0,null,null,0]
[]
[null,"(e)  SUBTOTAL - BOND MUTUAL FUNDS",null,null,null,null,{"$f":"SUM(G401:G409)","v":0},null,{"$f":"SUM(I401:I409)","v":0},null,null,{"$f":"SUM(L401:L409)","v":0}]
[]
[null,"(f) Preferred Shares"]
[null,"BSCR Rating 0",null,null,null,null,{"$f":"'Concentration Risk'!D75","v":0},{"$f":"+'Concentration Risk (old)'!E75","v":0},{"$f":"IF(G414<0,0,G414*H414)","v":0},null,null,{"$f":"MAX(0,IF(K414=\"\",H414*G414,G414*K414))","v":0}]
[null,"BSCR Rating 1",null,null,null,null,{"$f":"'Concentration Risk'!D76","v":0},{"$f":"+'Concentration Risk (old)'!E76","v":6.0000000000000001E-3},{"$f":"IF(G415<0,0,G415*H415)","v":0},null,null,{"$f":"MAX(0,IF(K415=\"\",H415*G415,G415*K415))","v":0}]
[null,"BSCR Rating 2",null,null,null,null,{"$f":"'Concentration Risk'!D77","v":0},{"$f":"+'Concentration Risk (old)'!E77","v":1.2E-2},0,null,null,0]
[null,"BSCR Rating 3",null,null,null,null,{"$f":"'Concentration Risk'!D78","v":0},{"$f":"+'Concentration Risk (old)'!E78","v":0.02},0,null,null,0]
[null,"BSCR Rating 4",null,null,null,null,{"$f":"'Concentration Risk'!D79","v":0},{"$f":"+'Concentration Risk (old)'!E79","v":0.04},0,null,null,0]
[null,"BSCR Rating 5",null,null,null,null,{"$f":"'Concentration Risk'!D80","v":0},{"$f":"+'Concentration Risk (old)'!E80","v":0.11},0,null,null,0]
[null,"BSCR Rating 6",null,null,null,null,{"$f":"'Concentration Risk'!D81","v":0},{"$f":"+'Concentration Risk (old)'!E81","v":0.25},0,null,null,0]
[null,"BSCR Rating 7",null,null,null,null,{"$f":"'Concentration Risk'!D82","v":0},{"$f":"+'Concentration Risk (old)'!E82","v":0.35},0,null,null,0]
[null,"BSCR Rating 8",null,null,null,null,{"$f":"'Concentration Risk'!D83","v":0},{"$f":"+'Concentration Risk (old)'!E83","v":0.35},0,null,null,0]
[]
[null,"(f)  SUBTOTAL - PREFERRED SHARES",null,null,null,null,{"$f":"SUM(G414:G422)","v":0},null,{"$f":"SUM(I414:I422)","v":0},null,null,{"$f":"SUM(L414:L422)","v":0}]
[]
[null,"(g) Mortgage Loans"]
[null,"Insured/Guaranteed Mortgages",null,null,null,null,{"$f":"'Concentration Risk'!D88","v":0},{"$f":"+'Concentration Risk (old)'!E88","v":3.0000000000000001E-3},{"$f":"IF(G427<0,0,G427*H427)","v":0},null,null,{"$f":"MAX(0,IF(K427=\"\",H427*G427,G427*K427))","v":0}]
[null,"Other Commercial and Farm Mortgages",null,null,null,null,{"$f":"'Concentration Risk'!D89","v":0},{"$f":"+'Concentration Risk (old)'!E89","v":0.05},{"$f":"IF(G428<0,0,G428*H428)","v":0},null,null,{"$f":"MAX(0,IF(K428=\"\",H428*G428,G428*K428))","v":0}]
[null,"Other Residential Mortgages",null,null,null,null,{"$f":"'Concentration Risk'!D90","v":0},{"$f":"+'Concentration Risk (old)'!E90","v":1.4999999999999999E-2},{"$f":"IF(G429<0,0,G429*H429)","v":0},null,null,{"$f":"MAX(0,IF(K429=\"\",H429*G429,G429*K429))","v":0}]
[null,"Mortgages Not In Good Standing",null,null,null,null,{"$f":"'Concentration Risk'!D91","v":0},{"$f":"+'Concentration Risk (old)'!E91","v":0.25},{"$f":"IF(G430<0,0,G430*H430)","v":0},null,null,{"$f":"MAX(0,IF(K430=\"\",H430*G430,G430*K430))","v":0}]
[]
[null,"(g)  SUBTOTAL - Mortgage Loans",null,null,null,null,{"$f":"SUM(G426:G430)","v":0},null,{"$f":"SUM(I426:I430)","v":0},null,null,{"$f":"SUM(L426:L430)","v":0}]
[]
[null,"(h) Other Asset Classes"]
[null,"Infrastructure (Non-affiliate holdings, non-duration based)",null,null,null,null,{"$f":"'Concentration Risk'!D96","v":0},{"$f":"'Concentration Risk'!E96","v":0.25},{"$f":"IF(G435<0,0,G435*H435)","v":0},null,null,{"$f":"MAX(0,IF(K435=\"\",H435*G435,G435*K435))","v":0}]
[null,"Listed Equity Securities in Developed Markets",null,null,null,null,{"$f":"'Concentration Risk'!D97","v":0},{"$f":"'Concentration Risk'!E97","v":0.35},{"$f":"IF(G436<0,0,G436*H436)","v":0},null,null,{"$f":"MAX(0,IF(K436=\"\",H436*G436,G436*K436))","v":0}]
[null,"Other Equities",null,null,null,null,{"$f":"'Concentration Risk'!D98","v":0},{"$f":"'Concentration Risk'!E98","v":0.45},0,null,null,0]
[null,"Strategic Holdings",null,null,null,null,{"$f":"'Concentration Risk'!D99","v":0},{"$f":"'Concentration Risk'!E99","v":0.2},0,null,null,0]
[null,"Duration Based",null,null,null,null,{"$f":"'Concentration Risk'!D100","v":0},{"$f":"'Concentration Risk'!E100","v":0.2},{"$f":"IF(G439<0,0,G439*H439)","v":0},null,null,{"$f":"MAX(0,IF(K439=\"\",H439*G439,G439*K439))","v":0}]
[null,"Letters of Credit",null,null,null,null,{"$f":"'Concentration Risk'!D101","v":0},{"$f":"'Concentration Risk'!E101","v":0.2},0,null,null,0]
[null,"Advances to Affiliates - ",null,null,null,null,{"$f":"'Concentration Risk'!D102","v":0},{"$f":"+'Concentration Risk (old)'!E103","v":0.05},0,null,null,0]
[null,"Policy Loans",null,null,null,null,{"$f":"'Concentration Risk'!D103","v":0},{"$f":"+'Concentration Risk (old)'!E104","v":0},0,null,null,0]
[null,"Equity Real Estate 1",null,null,null,null,{"$f":"'Concentration Risk'!D104","v":0},{"$f":"+'Concentration Risk (old)'!E105","v":0.1},0,null,null,0]
[null,"Equity Real Estate 2",null,null,null,null,{"$f":"'Concentration Risk'!D105","v":0},{"$f":"+'Concentration Risk (old)'!E106","v":0.2},0,null,null,0]
[null,"Collateral Loans",null,null,null,null,{"$f":"'Concentration Risk'!D106","v":0},{"$f":"+'Concentration Risk (old)'!E107","v":0.05},0,null,null,0]
[]
[null,"(h)  SUBTOTAL - OTHER ASSET CLASSES",null,null,null,null,{"$f":"SUM(G435:G446)","v":0},null,{"$f":"SUM(I435:I446)","v":0},null,null,{"$f":"SUM(L435:L446)","v":0}]
[]
[null,"TOTAL CONCENTRATION RISK",null,null,null,null,{"$f":"G359+G372+G385+G398+G411+G424+G432+G447","v":0},null,{"$f":"I359+I372+I385+I398+I411+I424+I432+I447","v":0},null,null,{"$f":"L359+L372+L385+L398+L411+L424+L432+L447","v":0}]
[]
[null,null,null,null,null,null,null,"STANDARD","STANDARD",null,"USER","USER"]
[null,"TYPE OF ",null,null,null,null,"ASSET","CAPITAL","REQUIRED",null,"CAPITAL","REQUIRED"]
[null,"CREDIT RISK",null,null,null,null,"VALUE","FACTOR","CAPITAL",null,"FACTOR","CAPITAL"]
[]
[null,"(a)  Receivables from Clearing Brokers",null,null,null,null,"(1) ","(2)","(1) x (2)",null,"(3)","(1) x (3)"]
[]
[null,"In Course of Collection",null,null,null,null,{"$f":"'Form 1SFS (Consolidated)'!M66","v":0},{"$f":"'Credit Risk'!G11","v":0.05},{"$f":"IF(G457<0,0,G457*H457)","v":0},null,null,{"$f":"MAX(0,IF(K457=\"\",H457*G457,G457*K457))","v":0}]
[]
[null,"(a)  SUBTOTAL - ACCOUNTS AND PREMIUMS RECEIVABLE",null,null,null,null,{"$f":"SUM(G457:G457)","v":0},null,{"$f":"IF(SUM(I457:I457)>=0,SUM(I457:I457),0)","v":0},null,null,{"$f":"IF(SUM(L457:L457)>=0,SUM(L457:L457),0)","v":0}]
[]
[null,"(b)  All Other Receivables"]
[]
[null,"Accrued Investment Income",null,null,null,null,{"$f":"'Form 1SFS (Consolidated)'!M64","v":0},{"$f":"'Credit Risk'!G17","v":2.5000000000000001E-2},{"$f":"IF(G463<0,0,G463*H463)","v":0},null,null,{"$f":"MAX(0,IF(K463=\"\",H463*G463,G463*K463))","v":0}]
[null,"Balances receivable on sale of investments",null,null,null,null,{"$f":"'Form 1SFS (Consolidated)'!M77","v":0},{"$f":"'Credit Risk'!G18","v":2.5000000000000001E-2},{"$f":"IF(G464<0,0,G464*H464)","v":0},null,null,{"$f":"MAX(0,IF(K464=\"\",H464*G464,G464*K464))","v":0}]
[]
[null,"(b)  SUBTOTAL - ALL OTHER RECEIVABLES",null,null,null,null,{"$f":"SUM(G463:G464)","v":0},null,{"$f":"IF(SUM(I463:I464)>=0,SUM(I463:I464),0)","v":0},null,null,{"$f":"IF(SUM(L463:L464)>=0,SUM(L463:L464),0)","v":0}]
[]
[null,"(c)(i) Particulars of Reinsurance Balances For Current Year By BSCR Rating"]
[]
[null,"BSCR Rating 0 (Domestic Affiliates)",null,null,null,null,{"$f":"'Schedule XVIII'!O87","v":0},{"$f":"'Credit Risk'!G24","v":0},{"$f":"IF(G470<0,0,G470*H470)","v":0},null,null,{"$f":"MAX(0,IF(K470=\"\",H470*G470,G470*K470))","v":0}]
[null,"BSCR Rating 1",null,null,null,null,{"$f":"'Schedule XVIII'!O88","v":0},{"$f":"'Credit Risk'!G25","v":7.0000000000000001E-3},{"$f":"IF(G471<0,0,G471*H471)","v":0},null,null,0]
[null,"BSCR Rating 2",null,null,null,null,{"$f":"'Schedule XVIII'!O89","v":0},{"$f":"'Credit Risk'!G26","v":1.4999999999999999E-2},0,null,null,0]
[null,"BSCR Rating 3",null,null,null,null,{"$f":"'Schedule XVIII'!O90","v":0},{"$f":"'Credit Risk'!G27","v":3.5000000000000003E-2},0,null,null,0]
[null,"BSCR Rating 4",null,null,null,null,{"$f":"'Schedule XVIII'!O91","v":0},{"$f":"'Credit Risk'!G28","v":7.0000000000000007E-2},0,null,null,0]
[null,"BSCR Rating 5",null,null,null,null,{"$f":"'Schedule XVIII'!O92","v":0},{"$f":"'Credit Risk'!G29","v":0.12},0,null,null,0]
[null,"BSCR Rating 6",null,null,null,null,{"$f":"'Schedule XVIII'!O93","v":0},{"$f":"'Credit Risk'!G30","v":0.2},0,null,null,0]
[null,"BSCR Rating 7",null,null,null,null,{"$f":"'Schedule XVIII'!O94","v":0},{"$f":"'Credit Risk'!G31","v":0.27},0,null,null,0]
[null,"BSCR Rating 8",null,null,null,null,{"$f":"'Schedule XVIII'!O95","v":0},{"$f":"'Credit Risk'!G32","v":0.35},0,null,null,0]
[]
[null,"Total",null,null,null,null,{"$f":"SUM(G470:G479)","v":0},null,{"$f":"SUM(I470:I479)","v":0},null,null,{"$f":"SUM(L470:L479)","v":0}]
[]
[null,"Diversification Adjustment at 40%",null,null,null,null,null,null,{"$f":"SUM(I470:I478)*-('Schedule XVIII'!O104)","v":0},null,null,{"$f":"SUM(L470:L478)*-('Schedule XVIII'!O104)","v":0}]
[]
[null,"(c)(i)  SUBTOTAL - PARTICULARS OF REINSURANCE BALANCES BY BSCR RATING",null,null,null,null,{"$f":"+G480","v":0},null,{"$f":"IF(SUM(I470:I478,I482)>=0,SUM(I470:I478,I482),0)","v":0},null,null,{"$f":"IF(SUM(L470:L478,L482)>=0,SUM(L470:L478,L482),0)","v":0}]
[]
[]
[null,"(c)(ii) Particulars of Reinsurance Balances For Future Premium By BSCR Rating"]
[]
[null,"Gross Premium Risk Charge",null,{"$f":"'Premium Risk'!Q59","v":0}]
[null,"Net Premium Risk Charge",null,{"$f":"'Premium Risk'!N59","v":0}]
[null,"% of Premiums Ceded Risk",null,{"$f":"D489-D490","v":0}]
[]
[null,"BSCR Rating 0 (Domestic Affiliates)",null,{"$f":"IF($G$480<>0, $D$491*G470/$G$480, 0)","v":0},null,null,{"$f":"IF($D$503=0,0,D493/$D$503)","v":0},{"$f":"'Credit Risk'!G47","v":0},{"$f":"IF($D$491<0,0,$D$491*G493*H493)","v":0},null,null,{"$f":"MAX(0,IF(K493=\"\",$D$491*G493*H493,$D$491*G493*K493))","v":0}]
[null,"BSCR Rating 1",null,{"$f":"IF($G$480<>0, $D$491*G471/$G$480, 0)","v":0},null,null,0,{"$f":"'Credit Risk'!G48","v":7.0000000000000001E-3},0,null,null,0]
[null,"BSCR Rating 2",null,{"$f":"IF($G$480<>0, $D$491*G472/$G$480, 0)","v":0},null,null,0,{"$f":"'Credit Risk'!G49","v":1.4999999999999999E-2},0,null,null,0]
[null,"BSCR Rating 3",null,{"$f":"IF($G$480<>0, $D$491*G473/$G$480, 0)","v":0},null,null,0,{"$f":"'Credit Risk'!G50","v":3.5000000000000003E-2},0,null,null,0]
[null,"BSCR Rating 4",null,{"$f":"IF($G$480<>0, $D$491*G474/$G$480, D491)","v":0},null,null,0,{"$f":"'Credit Risk'!G51","v":7.0000000000000007E-2},0,null,null,0]
[null,"BSCR Rating 5",null,{"$f":"IF($G$480<>0, $D$491*G475/$G$480, 0)","v":0},null,null,0,{"$f":"'Credit Risk'!G52","v":0.12},0,null,null,0]
[null,"BSCR Rating 6",null,{"$f":"IF($G$480<>0, $D$491*G476/$G$480, 0)","v":0},null,null,0,{"$f":"'Credit Risk'!G53","v":0.2},0,null,null,0]
[null,"BSCR Rating 7",null,{"$f":"IF($G$480<>0, $D$491*G477/$G$480, 0)","v":0},null,null,0,{"$f":"'Credit Risk'!G54","v":0.27},0,null,null,0]
[null,"BSCR Rating 8",null,{"$f":"IF($G$480<>0, $D$491*G478/$G$480, 0)","v":0},null,null,0,{"$f":"'Credit Risk'!G55","v":0.35},0,null,null,0]
[]
[null,"Total",null,{"$f":"SUM(D493:D502)","v":0},null,null,{"$f":"SUM(G493:G502)","v":0},null,{"$f":"SUM(I493:I502)","v":0},null,null,{"$f":"SUM(L493:L502)","v":0}]
[]
[null,"Diversification Adjustment at 40%",null,null,null,null,null,null,{"$f":"SUM(I493:I501)*-('Schedule XVIII'!O104)","v":0},null,null,{"$f":"SUM(L493:L501)*-('Schedule XVIII'!O104)","v":0}]
[]
[null,"(c)(ii)  SUBTOTAL - PARTICULARS OF REINSURANCE BALANCES BY BSCR RATING",null,null,null,null,null,null,{"$f":"IF(SUM(I503:I505)>=0,SUM(I503:I505),0)","v":0},null,null,{"$f":"IF(SUM(L503:L505)>=0,SUM(L503:L505),0)","v":0}]
[]
[null,"(c)  SUBTOTAL - PARTICULARS OF REINSURANCE BALANCES BY BSCR RATING (MAX OF (C)(I) AND (C)(II)",null,null,null,null,null,null,{"$f":"MAX(I484,I507)","v":0},null,null,{"$f":"MAX(L484,L507)","v":0}]
[]
[null,null,null,"Market Value of Derivatives with Positive Market Value","Market Value of Derivatives with Negative Market Value","Market Value of Collateral, Excluding any overcollateralization","STANDARD","HAIRCUT","STANDARD",null,"USER","USER"]
[null,null,null,null,null,null,"CAPITAL","ON","REQUIRED",null,"CAPITAL","REQUIRED"]
[null,null,null,null,null,null,"FACTOR","COLLATERAL","CAPITAL",null,"FACTOR","CAPITAL"]
[]
[null,"(d) Counterparty Default Risk for OTC Derivatives"]
[]
[null,"BSCR Rating 0 ",null,{"$f":"'Schedule IIB'!D84+'Schedule IIC'!D84+'Schedule IID'!D84+'Schedule IIE'!D84+'Schedule IIF'!D84","v":0},{"$f":"'Schedule IIB'!F84+'Schedule IIC'!F84+'Schedule IID'!F84+'Schedule IIE'!F84+'Schedule IIF'!F84","v":0},{"$f":"'Schedule IIB'!H84+'Schedule IIC'!H84+'Schedule IID'!H84+'Schedule IIE'!H84+'Schedule IIF'!H84","v":0},{"$f":"'Credit Risk'!F68","v":0},{"$f":"'Credit Risk'!G68","v":0.03},{"$f":"MAX(0,D517-(1-H517)*MIN(D517,F517))*G517","v":0},null,null,{"$f":"IF(K517=\"\",I517,MAX(0,D517-(1-H517)*MIN(D517,F517))*K517)","v":0}]
[null,"BSCR Rating 1",null,{"$f":"'Schedule IIB'!D85+'Schedule IIC'!D85+'Schedule IID'!D85+'Schedule IIE'!D85+'Schedule IIF'!D85","v":0},{"$f":"'Schedule IIB'!F85+'Schedule IIC'!F85+'Schedule IID'!F85+'Schedule IIE'!F85+'Schedule IIF'!F85","v":0},{"$f":"'Schedule IIB'!H85+'Schedule IIC'!H85+'Schedule IID'!H85+'Schedule IIE'!H85+'Schedule IIF'!H85","v":0},{"$f":"'Credit Risk'!F69","v":4.0000000000000001E-3},{"$f":"'Credit Risk'!G69","v":0.03},{"$f":"MAX(0,D518-(1-H518)*MIN(D518,F518))*G518","v":0},null,null,{"$f":"IF(K518=\"\",I518,MAX(0,D518-(1-H518)*MIN(D518,F518))*K518)","v":0}]
[null,"BSCR Rating 2",null,{"$f":"'Schedule IIB'!D86+'Schedule IIC'!D86+'Schedule IID'!D86+'Schedule IIE'!D86+'Schedule IIF'!D86","v":0},{"$f":"'Schedule IIB'!F86+'Schedule IIC'!F86+'Schedule IID'!F86+'Schedule IIE'!F86+'Schedule IIF'!F86","v":0},{"$f":"'Schedule IIB'!H86+'Schedule IIC'!H86+'Schedule IID'!H86+'Schedule IIE'!H86+'Schedule IIF'!H86","v":0},{"$f":"'Credit Risk'!F70","v":8.0000000000000002E-3},{"$f":"'Credit Risk'!G70","v":0.03},0,null,null,0]
[null,"BSCR Rating 3",null,{"$f":"'Schedule IIB'!D87+'Schedule IIC'!D87+'Schedule IID'!D87+'Schedule IIE'!D87+'Schedule IIF'!D87","v":0},{"$f":"'Schedule IIB'!F87+'Schedule IIC'!F87+'Schedule IID'!F87+'Schedule IIE'!F87+'Schedule IIF'!F87","v":0},{"$f":"'Schedule IIB'!H87+'Schedule IIC'!H87+'Schedule IID'!H87+'Schedule IIE'!H87+'Schedule IIF'!H87","v":0},{"$f":"'Credit Risk'!F71","v":1.4999999999999999E-2},{"$f":"'Credit Risk'!G71","v":0.03},0,null,null,0]
[null,"BSCR Rating 4",null,{"$f":"'Schedule IIB'!D88+'Schedule IIC'!D88+'Schedule IID'!D88+'Schedule IIE'!D88+'Schedule IIF'!D88","v":0},{"$f":"'Schedule IIB'!F88+'Schedule IIC'!F88+'Schedule IID'!F88+'Schedule IIE'!F88+'Schedule IIF'!F88","v":0},{"$f":"'Schedule IIB'!H88+'Schedule IIC'!H88+'Schedule IID'!H88+'Schedule IIE'!H88+'Schedule IIF'!H88","v":0},{"$f":"'Credit Risk'!F72","v":0.03},{"$f":"'Credit Risk'!G72","v":0.03},0,null,null,0]
[null,"BSCR Rating 5",null,{"$f":"'Schedule IIB'!D89+'Schedule IIC'!D89+'Schedule IID'!D89+'Schedule IIE'!D89+'Schedule IIF'!D89","v":0},{"$f":"'Schedule IIB'!F89+'Schedule IIC'!F89+'Schedule IID'!F89+'Schedule IIE'!F89+'Schedule IIF'!F89","v":0},{"$f":"'Schedule IIB'!H89+'Schedule IIC'!H89+'Schedule IID'!H89+'Schedule IIE'!H89+'Schedule IIF'!H89","v":0},{"$f":"'Credit Risk'!F73","v":0.08},{"$f":"'Credit Risk'!G73","v":0.03},0,null,null,0]
[null,"BSCR Rating 6",null,{"$f":"'Schedule IIB'!D90+'Schedule IIC'!D90+'Schedule IID'!D90+'Schedule IIE'!D90+'Schedule IIF'!D90","v":0},{"$f":"'Schedule IIB'!F90+'Schedule IIC'!F90+'Schedule IID'!F90+'Schedule IIE'!F90+'Schedule IIF'!F90","v":0},{"$f":"'Schedule IIB'!H90+'Schedule IIC'!H90+'Schedule IID'!H90+'Schedule IIE'!H90+'Schedule IIF'!H90","v":0},{"$f":"'Credit Risk'!F74","v":0.15},{"$f":"'Credit Risk'!G74","v":0.03},0,null,null,0]
[null,"BSCR Rating 7",null,{"$f":"'Schedule IIB'!D91+'Schedule IIC'!D91+'Schedule IID'!D91+'Schedule IIE'!D91+'Schedule IIF'!D91","v":0},{"$f":"'Schedule IIB'!F91+'Schedule IIC'!F91+'Schedule IID'!F91+'Schedule IIE'!F91+'Schedule IIF'!F91","v":0},{"$f":"'Schedule IIB'!H91+'Schedule IIC'!H91+'Schedule IID'!H91+'Schedule IIE'!H91+'Schedule IIF'!H91","v":0},{"$f":"'Credit Risk'!F75","v":0.26300000000000001},{"$f":"'Credit Risk'!G75","v":0.03},0,null,null,0]
[null,"BSCR Rating 8",null,{"$f":"'Schedule IIB'!D92+'Schedule IIC'!D92+'Schedule IID'!D92+'Schedule IIE'!D92+'Schedule IIF'!D92","v":0},{"$f":"'Schedule IIB'!F92+'Schedule IIC'!F92+'Schedule IID'!F92+'Schedule IIE'!F92+'Schedule IIF'!F92","v":0},{"$f":"'Schedule IIB'!H92+'Schedule IIC'!H92+'Schedule IID'!H92+'Schedule IIE'!H92+'Schedule IIF'!H92","v":0},{"$f":"'Credit Risk'!F76","v":0.35},{"$f":"'Credit Risk'!G76","v":0.03},0,null,null,0]
[null,null,null,{"$f":"SUM(D517:D525)","v":0},{"$f":"SUM(E517:E525)","v":0},{"$f":"SUM(F517:F525)","v":0},null,null,{"$f":"SUM(I517:I525)","v":0},null,{"$f":"SUM(K517:K525)","v":0},{"$f":"SUM(L517:L525)","v":0}]
[]
[null,"(d)  SUBTOTAL - COUNTERPARTY DEFAULT RISK FOR OTC DERIVATIVES",null,null,null,null,null,null,{"$f":"SUM(I517:I525)","v":0},null,null,{"$f":"SUM(L517:L525)","v":0}]
[]
[null,"(d)  TOTAL CREDIT RISK  [ (a) + (b) + (c) ]",null,null,null,null,{"$f":"G484+G466+G459","v":0},null,{"$f":"I466+I459+I509+I528","v":0},null,null,{"$f":"L466+L459+L509+L528","v":0}]
[]
[null,null,null,null,null,null,"STANDARD","Maximum factor reduction on fully hedged arrangements*","STANDARD",null,"USER","USER"]
[null,null,null,null,"ASSET","Fully Hedged","CAPITAL",null,"REQUIRED",null,"CAPITAL","REQUIRED"]
[null,"DIGITAL ASSET RISK",null,null,"VALUE","Arrangements","FACTOR",null,"CAPITAL",null,"FACTOR","CAPITAL"]
[]
[null,"Stablecoins"]
[null,"Audited Fiat backed stablecoin",null,null,{"$f":"'Schedule XXV'!C7","v":0},{"$f":"'Schedule XXV'!D7","v":0},{"$f":"'Digital Assets'!H5","v":0.03},0,{"$f":"(MAX(E537,F537,E537-F537)-MAX(H537*(MIN(F537,E537)),0))*G537","v":0},null,null,{"$f":"IF(K537=\"\",I537,E537*K537)","v":0}]
[]
[null,"All other digital assets - following the below tiers"]
[null,"BSCR Rating 1 - Top 1 by market cap",null,null,{"$f":"'Schedule XXV'!C18","v":0},{"$f":"'Schedule XXV'!D18","v":0},{"$f":"'Digital Assets'!H6","v":0.55000000000000004},{"$f":"'Digital Assets'!E6","v":0.99},{"$f":"(MAX(E540,F540,E540-F540)-MAX(H540*(MIN(F540,E540)),0))*G540","v":0},null,null,{"$f":"IF(K540=\"\",I540,E540*K540)","v":0}]
[null,"BSCR Rating 2 Top 2-3 by market cap",null,null,{"$f":"'Schedule XXV'!C19","v":0},{"$f":"'Schedule XXV'!D19","v":0},{"$f":"'Digital Assets'!H7","v":0.65},{"$f":"'Digital Assets'!E7","v":0.95},{"$f":"(MAX(E541,F541,E541-F541)-MAX(H541*(MIN(F541,E541)),0))*G541","v":0},null,null,0]
[null,"BSCR Rating 3 Top 4-10 by market cap",null,null,{"$f":"'Schedule XXV'!C20","v":0},{"$f":"'Schedule XXV'!D20","v":0},{"$f":"'Digital Assets'!H8","v":0.8},{"$f":"'Digital Assets'!E8","v":0.94},0,null,null,0]
[null,"BSCR Rating 4 Top 10 -20 ",null,null,{"$f":"'Schedule XXV'!C21","v":0},{"$f":"'Schedule XXV'!D21","v":0},{"$f":"'Digital Assets'!H9","v":0.9},{"$f":"'Digital Assets'!E9","v":0.92},0,null,null,0]
[null,"BSCR Rating 5 Top 21 and below",null,null,{"$f":"'Schedule XXV'!C22","v":0},{"$f":"'Schedule XXV'!D22","v":0},{"$f":"'Digital Assets'!H10","v":0.95},{"$f":"'Digital Assets'!E10","v":0.2},0,null,null,0]
[null,"BSCR Rating 6 Unlisted digital assets",null,null,{"$f":"'Schedule XXV'!C23","v":0},{"$f":"'Schedule XXV'!D23","v":0},{"$f":"'Digital Assets'!H11","v":1},0,0,null,null,0]
[]
[null,"Total Digital Asset Risk",null,null,{"$f":"SUM(E537:E546)","v":0},{"$f":"SUM(F537:F546)","v":0},null,null,{"$f":"SUM(I537:I546)","v":0},null,null,{"$f":"SUM(L537:L546)","v":0}]
[]
[null,null,null,"GROSS","GEO DIV","GEO DIV","GEO DIV","STANDARD","STANDARD",null,"USER","USER"]
[null,"TYPE OF ",null,"EXPOSURE","NET BASE","NET FP","NET FP","CAPITAL","REQUIRED",null,"CAPITAL","REQUIRED"]
[null,"PREMIUM RISK",null,"MEASURE","EXPOSURE","(EXISTING)","(FUTURE)","FACTOR","CAPITAL",null,"FACTOR","CAPITAL"]
[]
[null,"Property Catastrophe",null,{"$f":"'Premium Risk'!D11","v":0},{"$f":"'Premium Risk'!H11","v":0},{"$f":"'Premium Risk'!I11","v":0},{"$f":"'Premium Risk'!J11","v":0},{"$f":"'Premium Risk'!K11","v":0},{"$f":"IF($E553<0,0,$E553*'Premium Risk'!$K11)+IF($F553<0,0,$F553*'Premium Risk'!$L11)+IF($G553<0,0,$G553*'Premium Risk'!$M11)","v":0},null,null,{"$f":"MAX(0,IF(K553=\"\",I553,IF($E553<0,0,$E553*K553)+IF($F553<0,0,$F553*K553)+IF($G553<0,0,$G553*K553)))","v":0}]
[null,"Property",null,{"$f":"'Premium Risk'!D12","v":0},{"$f":"'Premium Risk'!H12","v":0},{"$f":"'Premium Risk'!I12","v":0},{"$f":"'Premium Risk'!J12","v":0},{"$f":"'Premium Risk'!K12","v":0.497450025355053},{"$f":"IF($E554<0,0,$E554*'Premium Risk'!$K12)+IF($F554<0,0,$F554*'Premium Risk'!$L12)+IF($G554<0,0,$G554*'Premium Risk'!$M12)","v":0},null,null,{"$f":"MAX(0,IF(K554=\"\",I554,IF($E554<0,0,$E554*K554)+IF($F554<0,0,$F554*K554*'Premium Risk'!S12)+IF($G554<0,0,$G554*K554*'Premium Risk'!S12*'Premium Risk'!T12)))","v":0}]
[null,"Property Non-Proportional",null,{"$f":"'Premium Risk'!D13","v":0},{"$f":"'Premium Risk'!H13","v":0},{"$f":"'Premium Risk'!I13","v":0},{"$f":"'Premium Risk'!J13","v":0},{"$f":"'Premium Risk'!K13","v":0.51625715924082105},{"$f":"IF($E555<0,0,$E555*'Premium Risk'!$K13)+IF($F555<0,0,$F555*'Premium Risk'!$L13)+IF($G555<0,0,$G555*'Premium Risk'!$M13)","v":0},null,null,{"$f":"MAX(0,IF(K555=\"\",I555,IF($E555<0,0,$E555*K555)+IF($F555<0,0,$F555*K555*'Premium Risk'!S13)+IF($G555<0,0,$G555*K555*'Premium Risk'!S13*'Premium Risk'!T13)))","v":0}]
[null,"Personal Accident",null,{"$f":"'Premium Risk'!D14","v":0},{"$f":"'Premium Risk'!H14","v":0},{"$f":"'Premium Risk'!I14","v":0},{"$f":"'Premium Risk'!J14","v":0},{"$f":"'Premium Risk'!K14","v":0.34115345724240698},{"$f":"IF($E556<0,0,$E556*'Premium Risk'!$K14)+IF($F556<0,0,$F556*'Premium Risk'!$L14)+IF($G556<0,0,$G556*'Premium Risk'!$M14)","v":0},null,null,{"$f":"MAX(0,IF(K556=\"\",I556,IF($E556<0,0,$E556*K556)+IF($F556<0,0,$F556*K556*'Premium Risk'!S14)+IF($G556<0,0,$G556*K556*'Premium Risk'!S14*'Premium Risk'!T14)))","v":0}]
[null,"Personal Accident Non-Proportional",null,{"$f":"'Premium Risk'!D15","v":0},{"$f":"'Premium Risk'!H15","v":0},{"$f":"'Premium Risk'!I15","v":0},{"$f":"'Premium Risk'!J15","v":0},{"$f":"'Premium Risk'!K15","v":0.41221262895987398},{"$f":"IF($E557<0,0,$E557*'Premium Risk'!$K15)+IF($F557<0,0,$F557*'Premium Risk'!$L15)+IF($G557<0,0,$G557*'Premium Risk'!$M15)","v":0},null,null,{"$f":"MAX(0,IF(K557=\"\",I557,IF($E557<0,0,$E557*K557)+IF($F557<0,0,$F557*K557*'Premium Risk'!S15)+IF($G557<0,0,$G557*K557*'Premium Risk'!S15*'Premium Risk'!T15)))","v":0}]
[null,"Aviation",null,{"$f":"'Premium Risk'!D16","v":0},{"$f":"'Premium Risk'!H16","v":0},{"$f":"'Premium Risk'!I16","v":0},{"$f":"'Premium Risk'!J16","v":0},{"$f":"'Premium Risk'!K16","v":0.48178449435856302},{"$f":"IF($E558<0,0,$E558*'Premium Risk'!$K16)+IF($F558<0,0,$F558*'Premium Risk'!$L16)+IF($G558<0,0,$G558*'Premium Risk'!$M16)","v":0},null,null,{"$f":"MAX(0,IF(K558=\"\",I558,IF($E558<0,0,$E558*K558)+IF($F558<0,0,$F558*K558*'Premium Risk'!S16)+IF($G558<0,0,$G558*K558*'Premium Risk'!S16*'Premium Risk'!T16)))","v":0}]
[null,"Aviation Non-Proportional",null,{"$f":"'Premium Risk'!D17","v":0},{"$f":"'Premium Risk'!H17","v":0},{"$f":"'Premium Risk'!I17","v":0},{"$f":"'Premium Risk'!J17","v":0},{"$f":"'Premium Risk'!K17","v":0.48201231799963601},{"$f":"IF($E559<0,0,$E559*'Premium Risk'!$K17)+IF($F559<0,0,$F559*'Premium Risk'!$L17)+IF($G559<0,0,$G559*'Premium Risk'!$M17)","v":0},null,null,{"$f":"MAX(0,IF(K559=\"\",I559,IF($E559<0,0,$E559*K559)+IF($F559<0,0,$F559*K559*'Premium Risk'!S17)+IF($G559<0,0,$G559*K559*'Premium Risk'!S17*'Premium Risk'!T17)))","v":0}]
[null,"Credit / Surety",null,{"$f":"'Premium Risk'!D18","v":0},{"$f":"'Premium Risk'!H18","v":0},{"$f":"'Premium Risk'!I18","v":0},{"$f":"'Premium Risk'!J18","v":0},{"$f":"'Premium Risk'!K18","v":0.39820522005250802},{"$f":"IF($E560<0,0,$E560*'Premium Risk'!$K18)+IF($F560<0,0,$F560*'Premium Risk'!$L18)+IF($G560<0,0,$G560*'Premium Risk'!$M18)","v":0},null,null,{"$f":"MAX(0,IF(K560=\"\",I560,IF($E560<0,0,$E560*K560)+IF($F560<0,0,$F560*K560*'Premium Risk'!S18)+IF($G560<0,0,$G560*K560*'Premium Risk'!S18*'Premium Risk'!T18)))","v":0}]
[null,"Credit / Surety Non-Proportional",null,{"$f":"'Premium Risk'!D19","v":0},{"$f":"'Premium Risk'!H19","v":0},{"$f":"'Premium Risk'!I19","v":0},{"$f":"'Premium Risk'!J19","v":0},{"$f":"'Premium Risk'!K19","v":0.45356665999464701},{"$f":"IF($E561<0,0,$E561*'Premium Risk'!$K19)+IF($F561<0,0,$F561*'Premium Risk'!$L19)+IF($G561<0,0,$G561*'Premium Risk'!$M19)","v":0},null,null,{"$f":"MAX(0,IF(K561=\"\",I561,IF($E561<0,0,$E561*K561)+IF($F561<0,0,$F561*K561*'Premium Risk'!S19)+IF($G561<0,0,$G561*K561*'Premium Risk'!S19*'Premium Risk'!T19)))","v":0}]
[null,"Energy Offshore / Marine",null,{"$f":"'Premium Risk'!D20","v":0},{"$f":"'Premium Risk'!H20","v":0},{"$f":"'Premium Risk'!I20","v":0},{"$f":"'Premium Risk'!J20","v":0},{"$f":"'Premium Risk'!K20","v":0.42102344656076801},{"$f":"IF($E562<0,0,$E562*'Premium Risk'!$K20)+IF($F562<0,0,$F562*'Premium Risk'!$L20)+IF($G562<0,0,$G562*'Premium Risk'!$M20)","v":0},null,null,{"$f":"MAX(0,IF(K562=\"\",I562,IF($E562<0,0,$E562*K562)+IF($F562<0,0,$F562*K562*'Premium Risk'!S20)+IF($G562<0,0,$G562*K562*'Premium Risk'!S20*'Premium Risk'!T20)))","v":0}]
[null,"Energy Offshore / Marine Non-Proportional",null,{"$f":"'Premium Risk'!D21","v":0},{"$f":"'Premium Risk'!H21","v":0},{"$f":"'Premium Risk'!I21","v":0},{"$f":"'Premium Risk'!J21","v":0},{"$f":"'Premium Risk'!K21","v":0.47016820069929899},{"$f":"IF($E563<0,0,$E563*'Premium Risk'!$K21)+IF($F563<0,0,$F563*'Premium Risk'!$L21)+IF($G563<0,0,$G563*'Premium Risk'!$M21)","v":0},null,null,{"$f":"MAX(0,IF(K563=\"\",I563,IF($E563<0,0,$E563*K563)+IF($F563<0,0,$F563*K563*'Premium Risk'!S21)+IF($G563<0,0,$G563*K563*'Premium Risk'!S21*'Premium Risk'!T21)))","v":0}]
[null,"US Casualty",null,{"$f":"'Premium Risk'!D22","v":0},{"$f":"'Premium Risk'!H22","v":0},{"$f":"'Premium Risk'!I22","v":0},{"$f":"'Premium Risk'!J22","v":0},{"$f":"'Premium Risk'!K22","v":0.50272577892886305},{"$f":"IF($E564<0,0,$E564*'Premium Risk'!$K22)+IF($F564<0,0,$F564*'Premium Risk'!$L22)+IF($G564<0,0,$G564*'Premium Risk'!$M22)","v":0},null,null,{"$f":"MAX(0,IF(K564=\"\",I564,IF($E564<0,0,$E564*K564)+IF($F564<0,0,$F564*K564*'Premium Risk'!S22)+IF($G564<0,0,$G564*K564*'Premium Risk'!S22*'Premium Risk'!T22)))","v":0}]
[null,"US Casualty Non-Proportional",null,{"$f":"'Premium Risk'!D23","v":0},{"$f":"'Premium Risk'!H23","v":0},{"$f":"'Premium Risk'!I23","v":0},{"$f":"'Premium Risk'!J23","v":0},{"$f":"'Premium Risk'!K23","v":0.555814073452775},{"$f":"IF($E565<0,0,$E565*'Premium Risk'!$K23)+IF($F565<0,0,$F565*'Premium Risk'!$L23)+IF($G565<0,0,$G565*'Premium Risk'!$M23)","v":0},null,null,{"$f":"MAX(0,IF(K565=\"\",I565,IF($E565<0,0,$E565*K565)+IF($F565<0,0,$F565*K565*'Premium Risk'!S23)+IF($G565<0,0,$G565*K565*'Premium Risk'!S23*'Premium Risk'!T23)))","v":0}]
[null,"US Professional",null,{"$f":"'Premium Risk'!D24","v":0},{"$f":"'Premium Risk'!H24","v":0},{"$f":"'Premium Risk'!I24","v":0},{"$f":"'Premium Risk'!J24","v":0},{"$f":"'Premium Risk'!K24","v":0.51225206482709496},{"$f":"IF($E566<0,0,$E566*'Premium Risk'!$K24)+IF($F566<0,0,$F566*'Premium Risk'!$L24)+IF($G566<0,0,$G566*'Premium Risk'!$M24)","v":0},null,null,{"$f":"MAX(0,IF(K566=\"\",I566,IF($E566<0,0,$E566*K566)+IF($F566<0,0,$F566*K566*'Premium Risk'!S24)+IF($G566<0,0,$G566*K566*'Premium Risk'!S24*'Premium Risk'!T24)))","v":0}]
[null,"US Professional Non-Proportional",null,{"$f":"'Premium Risk'!D25","v":0},{"$f":"'Premium Risk'!H25","v":0},{"$f":"'Premium Risk'!I25","v":0},{"$f":"'Premium Risk'!J25","v":0},{"$f":"'Premium Risk'!K25","v":0.53805556666757803},{"$f":"IF($E567<0,0,$E567*'Premium Risk'!$K25)+IF($F567<0,0,$F567*'Premium Risk'!$L25)+IF($G567<0,0,$G567*'Premium Risk'!$M25)","v":0},null,null,{"$f":"MAX(0,IF(K567=\"\",I567,IF($E567<0,0,$E567*K567)+IF($F567<0,0,$F567*K567*'Premium Risk'!S25)+IF($G567<0,0,$G567*K567*'Premium Risk'!S25*'Premium Risk'!T25)))","v":0}]
[null,"US Specialty",null,{"$f":"'Premium Risk'!D26","v":0},{"$f":"'Premium Risk'!H26","v":0},{"$f":"'Premium Risk'!I26","v":0},{"$f":"'Premium Risk'!J26","v":0},{"$f":"'Premium Risk'!K26","v":0.51436147942106603},{"$f":"IF($E568<0,0,$E568*'Premium Risk'!$K26)+IF($F568<0,0,$F568*'Premium Risk'!$L26)+IF($G568<0,0,$G568*'Premium Risk'!$M26)","v":0},null,null,{"$f":"MAX(0,IF(K568=\"\",I568,IF($E568<0,0,$E568*K568)+IF($F568<0,0,$F568*K568*'Premium Risk'!S26)+IF($G568<0,0,$G568*K568*'Premium Risk'!S26*'Premium Risk'!T26)))","v":0}]
[null,"US Specialty Non-Proportional",null,{"$f":"'Premium Risk'!D27","v":0},{"$f":"'Premium Risk'!H27","v":0},{"$f":"'Premium Risk'!I27","v":0},{"$f":"'Premium Risk'!J27","v":0},{"$f":"'Premium Risk'!K27","v":0.52697789035313303},{"$f":"IF($E569<0,0,$E569*'Premium Risk'!$K27)+IF($F569<0,0,$F569*'Premium Risk'!$L27)+IF($G569<0,0,$G569*'Premium Risk'!$M27)","v":0},null,null,{"$f":"MAX(0,IF(K569=\"\",I569,IF($E569<0,0,$E569*K569)+IF($F569<0,0,$F569*K569*'Premium Risk'!S27)+IF($G569<0,0,$G569*K569*'Premium Risk'!S27*'Premium Risk'!T27)))","v":0}]
[null,"International Motor",null,{"$f":"'Premium Risk'!D28","v":0},{"$f":"'Premium Risk'!H28","v":0},{"$f":"'Premium Risk'!I28","v":0},{"$f":"'Premium Risk'!J28","v":0},{"$f":"'Premium Risk'!K28","v":0.42191756117933499},{"$f":"IF($E570<0,0,$E570*'Premium Risk'!$K28)+IF($F570<0,0,$F570*'Premium Risk'!$L28)+IF($G570<0,0,$G570*'Premium Risk'!$M28)","v":0},null,null,{"$f":"MAX(0,IF(K570=\"\",I570,IF($E570<0,0,$E570*K570)+IF($F570<0,0,$F570*K570*'Premium Risk'!S28)+IF($G570<0,0,$G570*K570*'Premium Risk'!S28*'Premium Risk'!T28)))","v":0}]
[null,"International Motor Non-Proportional",null,{"$f":"'Premium Risk'!D29","v":0},{"$f":"'Premium Risk'!H29","v":0},{"$f":"'Premium Risk'!I29","v":0},{"$f":"'Premium Risk'!J29","v":0},{"$f":"'Premium Risk'!K29","v":0.482210885429324},{"$f":"IF($E571<0,0,$E571*'Premium Risk'!$K29)+IF($F571<0,0,$F571*'Premium Risk'!$L29)+IF($G571<0,0,$G571*'Premium Risk'!$M29)","v":0},null,null,{"$f":"MAX(0,IF(K571=\"\",I571,IF($E571<0,0,$E571*K571)+IF($F571<0,0,$F571*K571*'Premium Risk'!S29)+IF($G571<0,0,$G571*K571*'Premium Risk'!S29*'Premium Risk'!T29)))","v":0}]
[null,"International Casualty Non-Motor",null,{"$f":"'Premium Risk'!D30","v":0},{"$f":"'Premium Risk'!H30","v":0},{"$f":"'Premium Risk'!I30","v":0},{"$f":"'Premium Risk'!J30","v":0},{"$f":"'Premium Risk'!K30","v":0.50012106835589698},{"$f":"IF($E572<0,0,$E572*'Premium Risk'!$K30)+IF($F572<0,0,$F572*'Premium Risk'!$L30)+IF($G572<0,0,$G572*'Premium Risk'!$M30)","v":0},null,null,{"$f":"MAX(0,IF(K572=\"\",I572,IF($E572<0,0,$E572*K572)+IF($F572<0,0,$F572*K572*'Premium Risk'!S30)+IF($G572<0,0,$G572*K572*'Premium Risk'!S30*'Premium Risk'!T30)))","v":0}]
[null,"International Casualty Non-Motor Non-Proportional",null,{"$f":"'Premium Risk'!D31","v":0},{"$f":"'Premium Risk'!H31","v":0},{"$f":"'Premium Risk'!I31","v":0},{"$f":"'Premium Risk'!J31","v":0},{"$f":"'Premium Risk'!K31","v":0.53551360019381999},{"$f":"IF($E573<0,0,$E573*'Premium Risk'!$K31)+IF($F573<0,0,$F573*'Premium Risk'!$L31)+IF($G573<0,0,$G573*'Premium Risk'!$M31)","v":0},null,null,{"$f":"MAX(0,IF(K573=\"\",I573,IF($E573<0,0,$E573*K573)+IF($F573<0,0,$F573*K573*'Premium Risk'!S31)+IF($G573<0,0,$G573*K573*'Premium Risk'!S31*'Premium Risk'!T31)))","v":0}]
[null,"Retro Property",null,{"$f":"'Premium Risk'!D32","v":0},{"$f":"'Premium Risk'!H32","v":0},{"$f":"'Premium Risk'!I32","v":0},{"$f":"'Premium Risk'!J32","v":0},{"$f":"'Premium Risk'!K32","v":0.508030898436173},{"$f":"IF($E574<0,0,$E574*'Premium Risk'!$K32)+IF($F574<0,0,$F574*'Premium Risk'!$L32)+IF($G574<0,0,$G574*'Premium Risk'!$M32)","v":0},null,null,{"$f":"MAX(0,IF(K574=\"\",I574,IF($E574<0,0,$E574*K574)+IF($F574<0,0,$F574*K574*'Premium Risk'!S32)+IF($G574<0,0,$G574*K574*'Premium Risk'!S32*'Premium Risk'!T32)))","v":0}]
[null,"Structured / Finite Reinsurance",null,{"$f":"'Premium Risk'!D33","v":0},{"$f":"'Premium Risk'!H33","v":0},{"$f":"'Premium Risk'!I33","v":0},{"$f":"'Premium Risk'!J33","v":0},{"$f":"'Premium Risk'!K33","v":0.27200000000000002},{"$f":"IF($E575<0,0,$E575*'Premium Risk'!$K33)+IF($F575<0,0,$F575*'Premium Risk'!$L33)+IF($G575<0,0,$G575*'Premium Risk'!$M33)","v":0},null,null,{"$f":"MAX(0,IF(K575=\"\",I575,IF($E575<0,0,$E575*K575)+IF($F575<0,0,$F575*K575*'Premium Risk'!S33)+IF($G575<0,0,$G575*K575*'Premium Risk'!S33*'Premium Risk'!T33)))","v":0}]
[null,"Health",null,{"$f":"'Premium Risk'!D34","v":0},{"$f":"'Premium Risk'!H34","v":0},{"$f":"'Premium Risk'!I34","v":0},{"$f":"'Premium Risk'!J34","v":0},{"$f":"'Premium Risk'!K34","v":0.15},{"$f":"IF($E576<0,0,$E576*'Premium Risk'!$K34)+IF($F576<0,0,$F576*'Premium Risk'!$L34)+IF($G576<0,0,$G576*'Premium Risk'!$M34)","v":0},null,null,{"$f":"MAX(0,IF(K576=\"\",I576,IF($E576<0,0,$E576*K576)+IF($F576<0,0,$F576*K576*'Premium Risk'!S34)+IF($G576<0,0,$G576*K576*'Premium Risk'!S34*'Premium Risk'!T34)))","v":0}]
[]
[null,"(a)  TOTAL",null,{"$f":"SUM(D553:D576)","v":0},{"$f":"SUM(E553:E576)","v":0},{"$f":"SUM(F553:F576)","v":0},{"$f":"SUM(G553:G576)","v":0},null,{"$f":"SUM(I553:I577)","v":0},null,null,{"$f":"SUM(L553:L576)","v":0}]
[]
[null,"(b)  CORRELATION ADJUSTMENT"]
[]
[null,null,"(i)","Reduction in Capital Charge from Correlation Matrix",null,null,null,null,{"$f":"I578-I584","v":0},null,null,{"$f":"L578-L584","v":0}]
[]
[null,"(b)  CAPITAL CHARGE AFTER CORRELATION",null,null,null,null,null,{"$f":"'Premium Risk'!K42","v":0},{"$f":"SQRT(MMULT(TRANSPOSE(I553:I576),MMULT('Correlation Matrix'!C16:Z39,I553:I576)))","v":0},null,null,{"$f":"SQRT(MMULT(TRANSPOSE(L553:L576),MMULT('Correlation Matrix'!C16:Z39,L553:L576)))","v":0}]
[]
[null,"(c)  CATASTROPHE PREMIUM ADJUSTMENT CALCULATION"]
[]
[null,null,"(i)","Average Annual Loss (AAL) Excluding Property Catastrophe",null,null,null,null,{"$f":"+I660","v":0},null,null,{"$f":"+L660","v":0}]
[null,null,"(ii)","Industry Catastrophe Loss Ratio",null,null,null,null,{"$f":"+I662","v":0.4},null,null,{"$f":"+I589","v":0.4}]
[null,null,"(iii)","Avg Capital Factor  [ Total (3c) / (Total (1a) excl Prop CAT) ]",null,null,null,null,{"$f":"IF((E578-E553)=0,0,H584/(E578-E553))","v":0},null,null,{"$f":"IF((E578-E553)=0,0,H584/(E578-E553))","v":0}]
[]
[null,"(c)  CATASTROPHE PREMIUM ADJUSTMENT  [ (i) / (ii) x (iii) ]",null,null,null,null,null,null,{"$f":"I588/I589*I590","v":0},null,null,{"$f":"IF(L589=0,0,L588/L589*L590)","v":0}]
[]
[null,null,"(i)","Concentration Adjustment (up to 95%)",null,null,null,null,{"$f":"'Schedule IX(b)'!H51/900*95%","v":0},null,null,{"$f":"'Schedule IX(b)'!H51/900*95%","v":0}]
[null,null,"(ii)","Related Business % (up to 5%)",null,null,null,null,{"$f":"'Schedule IX(b)'!H55*5%","v":0},null,null,{"$f":"'Schedule IX(b)'!H55*5%","v":0}]
[null,null,"(iii)"," [ (i) + (ii) ]",null,null,null,null,{"$f":"I594+I595","v":0},null,null,{"$f":"L594+L595","v":0}]
[null,null,"(iv)","Maximum Adjustment",null,null,null,null,0.4,null,null,0.4]
[]
[null,"(c) CONCENTRATION ADJUSTMENT FACTOR (formula 2) [(iii) x (iv)]",null,null,null,null,null,null,{"$f":"I596*I597","v":0},null,null,{"$f":"L596*L597","v":0}]
[]
[null,"(d)  TOTAL PREMIUM RISK (AFTER CATASTROPHE PREMIUM ADJUSTMENT)   [ (b) - (c) ]",null,null,null,null,null,null,{"$f":"IF('Company Information'!$F$11=\"IIGB\",I584-I578*I599,IF(I584-I592>=0,I584-I592,0))","v":0},null,null,{"$f":"IF('Company Information'!$F$11=\"IIGB\",L584-L578*L599,IF(L584-L592>=0,L584-L592,0))","v":0}]
[]
[null,null,null,null,null,null,null,"STANDARD","STANDARD",null,"USER","USER"]
[null,"TYPE OF ",null,null,null,null,"LIABILITY","CAPITAL","REQUIRED",null,"CAPITAL","REQUIRED"]
[null,"RESERVE RISK",null,null,null,null,"VALUE","FACTOR","CAPITAL",null,"FACTOR","CAPITAL"]
[]
[null,null,null,null,null,null,"(1) ","(2)","(1) x (2)",null,"(3)","(1) x (3)"]
[]
[null,"Property Catastrophe",null,null,null,null,{"$f":"+'Geographic Diversification (old'!H40","v":0},{"$f":"+'Reserve Risk (old)'!G11","v":0.46158858246802098},{"$f":"IF(G609<0,0,G609*H609)","v":0},null,null,{"$f":"MAX(0,IF(K609=\"\",H609*G609,G609*K609))","v":0}]
[null,"Property",null,null,null,null,{"$f":"+'Geographic Diversification (old'!H41","v":0},{"$f":"+'Reserve Risk (old)'!G12","v":0.43844984238218698},{"$f":"IF(G610<0,0,G610*H610)","v":0},null,null,0]
[null,"Property Non-Proportional",null,null,null,null,{"$f":"+'Geographic Diversification (old'!H42","v":0},{"$f":"+'Reserve Risk (old)'!G13","v":0.49735573879029998},0,null,null,0]
[null,"Personal Accident",null,null,null,null,{"$f":"+'Geographic Diversification (old'!H43","v":0},{"$f":"+'Reserve Risk (old)'!G14","v":0.29666070682155399},0,null,null,0]
[null,"Personal Accident Non-Proportional",null,null,null,null,{"$f":"+'Geographic Diversification (old'!H44","v":0},{"$f":"+'Reserve Risk (old)'!G15","v":0.34876523067975901},0,null,null,0]
[null,"Aviation",null,null,null,null,{"$f":"+'Geographic Diversification (old'!H45","v":0},{"$f":"+'Reserve Risk (old)'!G16","v":0.45952604952349801},0,null,null,0]
[null,"Aviation Non-Proportional",null,null,null,null,{"$f":"+'Geographic Diversification (old'!H46","v":0},{"$f":"+'Reserve Risk (old)'!G17","v":0.48255646377949901},0,null,null,0]
[null,"Credit / Surety",null,null,null,null,{"$f":"+'Geographic Diversification (old'!H47","v":0},{"$f":"+'Reserve Risk (old)'!G18","v":0.383682680649994},0,null,null,0]
[null,"Credit / Surety Non-Proportional",null,null,null,null,{"$f":"+'Geographic Diversification (old'!H48","v":0},{"$f":"+'Reserve Risk (old)'!G19","v":0.43464696624596899},0,null,null,0]
[null,"Energy Offshore / Marine",null,null,null,null,{"$f":"+'Geographic Diversification (old'!H49","v":0},{"$f":"+'Reserve Risk (old)'!G20","v":0.39543823911176501},0,null,null,0]
[null,"Energy Offshore / Marine Non-Proportional",null,null,null,null,{"$f":"+'Geographic Diversification (old'!H50","v":0},{"$f":"+'Reserve Risk (old)'!G21","v":0.43945783577556502},0,null,null,0]
[null,"US Casualty",null,null,null,null,{"$f":"+'Geographic Diversification (old'!H51","v":0},{"$f":"+'Reserve Risk (old)'!G22","v":0.43018098459069698},0,null,null,0]
[null,"US Casualty Non-Proportional",null,null,null,null,{"$f":"+'Geographic Diversification (old'!H52","v":0},{"$f":"+'Reserve Risk (old)'!G23","v":0.48842309052279498},0,null,null,0]
[null,"US Professional",null,null,null,null,{"$f":"+'Geographic Diversification (old'!H53","v":0},{"$f":"+'Reserve Risk (old)'!G24","v":0.462752832710698},0,null,null,0]
[null,"US Professional Non-Proportional",null,null,null,null,{"$f":"+'Geographic Diversification (old'!H54","v":0},{"$f":"+'Reserve Risk (old)'!G25","v":0.51484129765284703},0,null,null,0]
[null,"US Specialty",null,null,null,null,{"$f":"+'Geographic Diversification (old'!H55","v":0},{"$f":"+'Reserve Risk (old)'!G26","v":0.46506790223690597},0,null,null,0]
[null,"US Specialty Non-Proportional",null,null,null,null,{"$f":"+'Geographic Diversification (old'!H56","v":0},{"$f":"+'Reserve Risk (old)'!G27","v":0.482760284027479},0,null,null,0]
[null,"International Motor",null,null,null,null,{"$f":"+'Geographic Diversification (old'!H57","v":0},{"$f":"+'Reserve Risk (old)'!G28","v":0.37080464615634001},0,null,null,0]
[null,"International Motor Non-Proportional",null,null,null,null,{"$f":"+'Geographic Diversification (old'!H58","v":0},{"$f":"+'Reserve Risk (old)'!G29","v":0.43541657269369},0,null,null,0]
[null,"International Casualty Non-Motor",null,null,null,null,{"$f":"+'Geographic Diversification (old'!H59","v":0},{"$f":"+'Reserve Risk (old)'!G30","v":0.43652386132510701},0,null,null,0]
[null,"International Casualty Non-Motor Non-Proportional",null,null,null,null,{"$f":"+'Geographic Diversification (old'!H60","v":0},{"$f":"+'Reserve Risk (old)'!G31","v":0.49410327959272199},0,null,null,0]
[null,"Retro Property",null,null,null,null,{"$f":"+'Geographic Diversification (old'!H61","v":0},{"$f":"+'Reserve Risk (old)'!G32","v":0.478452065307162},0,null,null,0]
[null,"Structured / Finite Reinsurance",null,null,null,null,{"$f":"+'Geographic Diversification (old'!H62","v":0},{"$f":"+'Reserve Risk (old)'!G33","v":0.24099999999999999},0,null,null,0]
[null,"Health",null,null,null,null,{"$f":"+'Geographic Diversification (old'!H63","v":0},{"$f":"+'Reserve Risk (old)'!G34","v":0.125},0,null,null,0]
[]
[null,"(a)  TOTAL",null,null,null,null,{"$f":"SUM(G609:G632)","v":0},null,{"$f":"SUM(I609:I633)","v":0},null,null,{"$f":"SUM(L609:L633)","v":0}]
[]
[null,"(b)  CORRELATION ADJUSTMENT"]
[]
[null,null,"(i)","Reduction in Capital Charge from Correlation Matrix",null,null,null,null,{"$f":"I634-I640","v":0},null,null,{"$f":"L634-L640","v":0}]
[]
[null,"(b)  RESERVE RISK AFTER CORRELATION ADJUSTMENT",null,null,null,null,null,null,{"$f":"SQRT(MMULT(TRANSPOSE(I609:I632),MMULT('Correlation Matrix'!C44:Z67,I609:I632)))","v":0},null,null,{"$f":"SQRT(MMULT(TRANSPOSE(L609:L632),MMULT('Correlation Matrix'!C44:Z67,L609:L632)))","v":0}]
[]
[null,"(b)(i) CONCENTRATION ADJUSTMENT FACTOR (formula 1) [(iv) + (v)]"]
[]
[null,null,"(i)","Concentration Adjustment (up to 95%)",null,null,null,null,{"$f":"'Schedule IX(b)'!H51/900*95%","v":0},null,null,{"$f":"'Schedule IX(b)'!H51/900*95%","v":0}]
[null,null,"(ii)","Related Business % (up to 5%)",null,null,null,null,{"$f":"'Schedule IX(b)'!H55*5%","v":0},null,null,{"$f":"'Schedule IX(b)'!H55*5%","v":0}]
[null,null,"(iii)"," [ (i) + (ii) ]",null,null,null,null,{"$f":"I644+I645","v":0},null,null,{"$f":"L644+L645","v":0}]
[null,null,"(iv)","Maximum Adjustment",null,null,null,null,0.4,null,null,0.4]
[]
[null,"(b)(ii) CONCENTRATION ADJUSTMENT FACTOR (formula 2) [(iii) x (iv)]",null,null,null,null,null,null,{"$f":"I646*I647","v":0},null,null,{"$f":"L646*L647","v":0}]
[]
[null,"(b)  CAPITAL CHARGE AFTER CORRELATION",null,null,null,null,null,null,{"$f":"IF('Company Information'!$F$11=\"IIGB\",IF(I640=0,0,I640-I634*I649),IF(I640>=0,I640,0))","v":0},null,null,{"$f":"IF('Company Information'!$F$11=\"IIGB\",IF(L640=0,0,L640-L634*L649),IF(L640>=0,L640,0))","v":0}]
[]
[null,"TYPE OF "]
[null,"CATASTROPHE RISK",null,"STATEMENT SOURCE"]
[]
[null,"(a)  Gross Probable Maximum Loss",null,"Schedule V, Line (g)",null,null,null,null,{"$f":"'Schedule V'!H16","v":0},null,null,{"$f":"+I656","v":0}]
[]
[null,"(b)  Net Probable Maximum Loss",null,"Schedule V, Line (h)",null,null,null,null,{"$f":"'Schedule V'!H18","v":0},null,null,{"$f":"+I658","v":0}]
[]
[null,"(c)  Average Annual Loss (AAL) Excluding Property Catastrophe",null,"Schedule V, Line (i)",null,null,null,null,{"$f":"'Schedule V'!H20","v":0},null,null,{"$f":"+I660","v":0}]
[]
[null,"(d)  Industry Catastrophe Loss Ratio",null,null,null,null,null,null,{"$f":"+'Catastrophe Risk'!E13","v":0.4},null,null,0.4]
[]
[null,"(e)  Property Catastrophe Premium",null,"Schedule IVD, Column C, Line (1)",null,null,null,null,{"$f":"IF('Schedule IVD'!G9=0,'Schedule IVD'!E9,'Schedule IVD'!G9)","v":0},null,null,{"$f":"+I664","v":0}]
[]
[null,"(f)  Total Catastrophe Premium  [ (c) / (d) + (e) ]",null,null,null,null,null,null,{"$f":"I660/I662+IF(I664>0,I664,0)","v":0},null,null,{"$f":"IF(L662=\"\",IF(I662=0,0,L660/I662+IF(L664>0,L664,0)),IF(L662=0,0,L660/L662+IF(L664>0,L664,0)))","v":0}]
[]
[null,"(g)  Credit Risk Capital Factor",null,null,null,null,null,null,{"$f":"+'Catastrophe Risk'!E19","v":0.1},null,null,0.1]
[]
[null,"(h) Arrangements with Respect to Property Catastrophe Recoverables",null,null,null,null,null,null,{"$f":"'Schedule V'!H29","v":0},null,null,{"$f":"I670","v":0}]
[]
[null,"(i)  Credit Risk Charge  [ ((a) - (b) - (h) x .98 (g) ]",null,null,null,null,null,null,{"$f":"MAX(0,((I656-I658)-(I670*98%))*I668)","v":0},null,null,{"$f":"MAX(0,((L656-L658)-(L670*98%))*L668)","v":0}]
[]
[null,"(j)  REQUIRED CAPITAL FOR CATASTROPHE RISK  [ (b) - (f) + (i) ]",null,null,null,null,null,null,{"$f":"IF('Company Information'!$F$11=\"IIGB\",(IF((I658-I664)>=0,I658-I664+I672,I672)),(IF((I658-I666)>=0,I658-I666+I672,I672)))","v":0},null,null,{"$f":"IF('Company Information'!$F$11=\"IIGB\",(IF((L658-L664)>=0,L658-L664+L672,L672)),(IF((L658-L666)>=0,L658-L666+L672,L672)))","v":0}]
[]
[null,"REQUIRED CAPITAL AND SURPLUS"]
[]
[null,null,null,null,null,null,null,"Net","Gross",null,"Net","Gross"]
[]
[null,"Fixed Income Investment Risk",null,null,null,null,null,{"$f":"I137","v":0},{"$f":"I137","v":0},null,{"$f":"+L137","v":0},{"$f":"+L137","v":0}]
[null,"Equity Investment Risk",null,null,null,null,null,{"$f":"H191","v":0},{"$f":"G191","v":0},null,{"$f":"L191","v":0},{"$f":"K191","v":0}]
[null,"Interest Rate / Liquidity Risk",null,null,null,null,null,{"$f":"IF(Summary!$E$57=\"Duration-Based Approach\",I201,I309)","v":0},{"$f":"IF(Summary!$E$57=\"Duration-Based Approach\",I201,H309)","v":0},null,{"$f":"IF(Summary!$E$57=\"Duration-Based Approach\",L201,L309)","v":0},{"$f":"IF(Summary!$E$57=\"Duration-Based Approach\",L201,K309)","v":0}]
[null,"Currency Risk",null,null,null,null,null,{"$f":"I342","v":0},{"$f":"H342","v":0},null,{"$f":"L342","v":0},{"$f":"K342","v":0}]
[null,"Digital Asset Business",null,null,null,null,null,{"$f":"I547","v":0},{"$f":"I449","v":0},null,{"$f":"L547","v":0},{"$f":"L547","v":0}]
[null,"Concentration Risk",null,null,null,null,null,{"$f":"I449","v":0},{"$f":"I449","v":0},null,{"$f":"+L449","v":0},{"$f":"+L449","v":0}]
[null,"Credit Risk",null,null,null,null,null,null,{"$f":"I530","v":0},null,null,{"$f":"+L530","v":0}]
[null,"Premium Risk",null,null,null,null,null,null,{"$f":"I601","v":0},null,null,{"$f":"L601","v":0}]
[null,"Reserve Risk",null,null,null,null,null,null,{"$f":"I651","v":0},null,null,{"$f":"+L651","v":0}]
[null,"Catastrophe Risk",null,null,null,null,null,null,{"$f":"I674","v":0},null,null,{"$f":"+L674","v":0}]
[]
[null,"BSCR (Prior to Correlation Adjustment)",null,null,null,null,null,null,{"$f":"I680+I681+I682+I683+I685+I687+I688+I686+I689","v":0},null,null,{"$f":"L680+L681+L682+L683+L685+L687+L688+L686+L689","v":0}]
[]
[null,"BSCR (After Correlation Adjustment)",null,null,null,null,null,null,{"$f":"SQRT(MMULT(TRANSPOSE(I711:I713),MMULT('Correlation Matrix'!O7:Q9,I711:I713)))","v":0},null,null,{"$f":"SQRT(MMULT(TRANSPOSE(L711:L713),MMULT('Correlation Matrix'!O7:Q9,L711:L713)))","v":0}]
[]
[null,"Operational risk charge (%)",null,null,null,null,null,null,{"$f":"Summary!N74","v":0.2}]
[]
[null,"Operational risk capital charge ($)",null,null,null,null,null,null,{"$f":"(I693+I719)*I695","v":0},null,null,{"$f":"IF(L695=\"\",(L693+L719)*I695,(L693+L719)*L695)","v":0}]
[]
[null,{"$f":"+Summary!C78","v":"Capital Adjustment for (Regulatory) Capital Requirement for Regulated Non-Insurance Financial Operating Entities:"},null,null,null,null,null,null,{"$f":"+'Schedule XVI'!M211","v":0},null,null,{"$f":"+Summary!N78","v":0}]
[]
[null,"CMgmtAction",null,null,null,null,null,null,{"$f":"I719","v":0},null,null,{"$f":"L719","v":0}]
[]
[null,"Other Capital Adjustment"]
[]
[null,"Capital add-on / reduction (BMA assessment)"]
[]
[null,"BSCR ",null,null,null,null,null,null,{"$f":"I693+I697+I705+I699+I701+I703","v":0},null,null,{"$f":"L693+L697+L705+L699+L701+L703","v":0}]
[]
[]
[null,"Capital Charges",null,null,null,null,null,"Net","Gross",null,"Net","Gross"]
[null,"Market Risk",null,null,null,null,null,{"$f":"SQRT(MMULT(TRANSPOSE(H680:H685),MMULT('Correlation Matrix'!$B$7:$G$12,H680:H685)))","v":0},{"$f":"SQRT(MMULT(TRANSPOSE(I680:I685),MMULT('Correlation Matrix'!$B$7:$G$12,I680:I685)))","v":0},null,{"$f":"SQRT(MMULT(TRANSPOSE(K680:K685),MMULT('Correlation Matrix'!$B$7:$G$12,K680:K685)))","v":0},{"$f":"SQRT(MMULT(TRANSPOSE(L680:L685),MMULT('Correlation Matrix'!$B$7:$G$12,L680:L685)))","v":0}]
[null,"Credit Risk",null,null,null,null,null,{"$f":"I686","v":0},{"$f":"I686","v":0},null,{"$f":"L686","v":0},{"$f":"L686","v":0}]
[null,"P&C Insurance Risk",null,null,null,null,null,{"$f":"SQRT(MMULT(TRANSPOSE(I687:I689),MMULT('Correlation Matrix'!J7:L9,I687:I689)))","v":0},{"$f":"SQRT(MMULT(TRANSPOSE(I687:I689),MMULT('Correlation Matrix'!J7:L9,I687:I689)))","v":0},null,{"$f":"SQRT(MMULT(TRANSPOSE(L687:L689),MMULT('Correlation Matrix'!J7:L9,L687:L689)))","v":0},{"$f":"SQRT(MMULT(TRANSPOSE(L687:L689),MMULT('Correlation Matrix'!J7:L9,L687:L689)))","v":0}]
[null,"Total",null,null,null,null,null,{"$f":"SUM(H711:H713)","v":0},{"$f":"SUM(I711:I713)","v":0},null,{"$f":"SUM(K711:K713)","v":0},{"$f":"SUM(L711:L713)","v":0}]
[]
[null,"Management Action"]
[null,"Implied Loss-absorbing capacity of Technical Provisions without cap",null,null,null,null,null,null,{"$f":"(I711+I712+I713)-(H711+H712+H713)","v":0},null,null,{"$f":"(L711+L712+L713)-(K711+K712+K713)","v":0}]
[null,"Initial FDB / Bonus reserve",null,null,null,null,null,null,{"$f":"Summary!M144","v":0},null,null,{"$f":"I718","v":0}]
[null,"Adjustment for the LaC of TP",null,null,null,null,null,null,{"$f":"-MAX(MIN((I711+I712+I713)-(H711+H712+H713),I718),0)","v":0},null,null,{"$f":"-MAX(MIN((L711+L712+L713)-(K711+K712+K713),L718),0)","v":0}]

{"sheet":"Crosscheck - SFS","index":137,"n_rows":151,"n_cols":4,"rows_kept":151,"cut":false,"hidden":true,"merged":[[3,0,3,1]]}
[null,"SUMMARY OF SFS INPUTS"]
[{"$f":"'Company Information'!C7","v":"Enter Company Name"}]
["Summary of SFS Inputs - For BMA Use Only"]
[{"$f":"'Company Information'!C3","v":"2022-12-31"}]
[]
[]
[null,"INPUT","STATEMENT SOURCE","VALUE"]
[]
[null,"Cash and time deposits","Form 1A, Line 1",{"$f":"'Form 1EBS'!F10","v":0}]
[null,"Quoted invesments, bonds and debentures - held to maturity","Form 1A, Line 2(a)(i)"]
[null,"Quoted invesments, bonds and debentures - others","Form 1A, Line 2(a)(ii)"]
[null,"Quoted investments, equities - common stocks","Form 1A, Line 2(c)(i)",{"$f":"'Form 1EBS'!F15","v":0}]
[null,"Quoted investments, equities - preferred stocks","Form 1A, Line 2(c)(ii)",{"$f":"'Form 1EBS'!F16","v":0}]
[null,"Quoted investments, equities - mutual funds","Form 1A, Line 2(c)(iii)",{"$f":"'Form 1EBS'!F17","v":0}]
[null,"Other quoted investments","Form 1A, Line 2(e)",{"$f":"'Form 1EBS'!F19","v":0}]
[null,"Unquoted investments, bonds and debentures - held to maturity","Form 1A, Line 3(a)(i)"]
[null,"Unquoted investments, bonds and debentures - others","Form 1A, Line 3(a)(ii)"]
[null,"Unquoted investments, equities - common stocks","Form 1A, Line 3(c)(i)",{"$f":"'Form 1EBS'!F25","v":0}]
[null,"Unquoted investments, equities - preferred stocks","Form 1A, Line 3(c)(ii)",{"$f":"'Form 1EBS'!F26","v":0}]
[null,"Unquoted investments, equities - mutual funds","Form 1A, Line 3(c)(iii)",{"$f":"'Form 1EBS'!F27","v":0}]
[null,"Other unquoted investments","Form 1A, Line 3(e)",{"$f":"'Form 1EBS'!F29","v":0}]
[null,"Investments in affiliates","Form 1A, Line 4(a)",{"$f":"'Form 1EBS'!F38","v":{"$error":"#REF!"}}]
[null,"Advances to affiliates","Form 1A, Line 4(b)",{"$f":"'Form 1EBS'!F39","v":{"$error":"#REF!"}}]
[null,"Investment in mortgage loans on real estate - first liens","Form 1A, Line 5(a)",{"$f":"'Form 1EBS'!F43","v":0}]
[null,"Investment in mortgage loans on real estate - other than first liens","Form 1A, Line 5(b)",{"$f":"'Form 1EBS'!F44","v":0}]
[null,"Real estate, occupied by the company (less encumbrances)","Form 1A, Line 7(a)",{"$f":"'Form 1EBS'!F48","v":0}]
[null,"Real estate, other properties (less encumbrances)","Form 1A, Line 7(b)",{"$f":"'Form 1EBS'!F49","v":{"$error":"#REF!"}}]
[null,"Collateral loans","Form 1A, Line 8",{"$f":"'Form 1EBS'!F52","v":0}]
[null,"Investment income due and accrued","Form 1A, Line 9",{"$f":"'Form 1EBS'!F54","v":0}]
[null,"Accounts and premium receivable - in course of collection","Form 1A, Line 10(a)",{"$f":"'Form 1EBS'!F57","v":0}]
[null,"Accounts and premium receivable - deferred - not yet due","Form 1A, Line 10(b)"]
[null,"Accounts and premium receivable - receivables from retrocessional contracts","Form 1A, Line 10(c)",{"$f":"'Form 1EBS'!F58","v":{"$error":"#REF!"}}]
[null,"Reinsurance balances receivable - foreign affiliates","Form 1A, Line 11(a)",{"$f":"'Form 1EBS'!F62","v":0}]
[null,"Reinsurance balances receivable - domestic affiliates","Form 1A, Line 11(b)",{"$f":"'Form 1EBS'!F63","v":0}]
[null,"Reinsurance balances receivable - pools & associations","Form 1A, Line 11(c)",{"$f":"'Form 1EBS'!F64","v":{"$error":"#REF!"}}]
[null,"Reinsurance balances receivable - all other insurers","Form 1A, Line 11(d)",{"$f":"'Form 1EBS'!F65","v":{"$error":"#REF!"}}]
[null,"Funds held by ceding reinsurers - affiliated","Form 1A, Line 12(a)",{"$f":"'Form 1EBS'!F69","v":{"$error":"#REF!"}}]
[null,"Funds held by ceding reinsurers - non-affiliated","Form 1A, Line 12(b)",{"$f":"'Form 1EBS'!F70","v":{"$error":"#REF!"}}]
[null,"Sundry assets - derivative instruments","Form 1A, Line 13(a)",{"$f":"'Form 1EBS'!F74","v":0}]
[null,"Sundry assets - segregated accounts companies","Form 1A, Line 13(b)",{"$f":"'Form 1EBS'!F75","v":{"$error":"#REF!"}}]
[null,"Sundry assets - deposit assets","Form 1A, Line 13(c)",{"$f":"'Form 1EBS'!F76","v":0}]
[null,"Sundry assets - others","Form 1A, Line 13(d)",{"$f":"'Form 1EBS'!F81","v":0}]
[null,"Letters of credit, guarantees and other instruments - letters of credit","Form 1A, Line 14(a)",{"$f":"'Form 1EBS'!F85","v":0}]
[null,"Letters of credit, guarantees and other instruments - guarantees","Form 1A, Line 14(b)",{"$f":"'Form 1EBS'!F86","v":0}]
[null,"Letters of credit, guarantees and other instruments - other instruments","Form 1A, Line 14(c)",{"$f":"'Form 1EBS'!F87","v":0}]
[null,"Unearned premium","Form 1A, Line 16",{"$f":"'Form 1EBS'!F105","v":{"$error":"#REF!"}}]
[null,"Loss and loss expense provisions - gross loss and loss expense provisions","Form 1A, Line 17(a)",{"$f":"'Form 1EBS'!F108","v":0}]
[null,"Loss and loss expense provisions - reinsurance recoverable - foreign affiliates","Form 1A, Line 17(b)(i)",{"$f":"'Form 1EBS'!F110","v":0}]
[null,"Loss and loss expense provisions - reinsurance recoverable - domestic affiliates","Form 1A, Line 17(b)(ii)",{"$f":"'Form 1EBS'!F111","v":0}]
[null,"Loss and loss expense provisions - reinsurance recoverable - pools  associations","Form 1A, Line 17(b)(iii)",{"$f":"'Form 1EBS'!F112","v":0}]
[null,"Loss and loss expense provisions - reinsurance recoverable - all other insurers","Form 1A, Line 17(b)(iv)",{"$f":"'Form 1EBS'!F113","v":0}]
[null,"Other insurance reserves - general business","Form 1A, Line 18"]
[null,"Insurance and reinsurance balances payable","Form 1A, Line 28",{"$f":"'Form 1EBS'!F123","v":0}]
[null,"Commissions, expenses, fees and taxes payable","Form 1A, Line 29",{"$f":"'Form 1EBS'!F125","v":0}]
[null,"Loans and notes payable","Form 1A, Line 30",{"$f":"'Form 1EBS'!F127","v":0}]
[null,"Income taxes payable","Form 1A, Line 31(a)",{"$f":"'Form 1EBS'!F130","v":0}]
[null,"Deferred income taxes","Form 1A, Line 31(b)",{"$f":"'Form 1EBS'!F131","v":{"$error":"#REF!"}}]
[null,"Amounts due to affiliates","Form 1A, Line 32",{"$f":"'Form 1EBS'!F133","v":0}]
[null,"Accounts payable and accrued liabilities","Form 1A, Line 33",{"$f":"'Form 1EBS'!F135","v":0}]
[null,"Funds held under reinsurance contracts - affiliates","Form 1A, Line 34(a)",{"$f":"'Form 1EBS'!F138","v":{"$error":"#REF!"}}]
[null,"Funds held under reinsurance contracts - non-affiliates","Form 1A, Line 34(b)",{"$f":"'Form 1EBS'!F139","v":{"$error":"#REF!"}}]
[null,"Dividends payable","Form 1A, Line 35",{"$f":"'Form 1EBS'!F142","v":0}]
[null,"Sundry liabilities - derivative instruments","Form 1A, Line 36(a)",{"$f":"'Form 1EBS'!F145","v":0}]
[null,"Sundry liabilities - segregated accounts companies","Form 1A, Line 36(b)",{"$f":"'Form 1EBS'!F147","v":{"$error":"#REF!"}}]
[null,"Sundry liabilities - deposit liabilities","Form 1A, Line 36(c)",{"$f":"'Form 1EBS'!F148","v":{"$error":"#REF!"}}]
[null,"Sundry liabilities - others","Form 1A, Line 36(d)",{"$f":"'Form 1EBS'!F151","v":0}]
[null,"Letters of credit, guarantees and other instruments - letters of credit","Form 1A, Line 37(a)",{"$f":"'Form 1EBS'!F155","v":0}]
[null,"Letters of credit, guarantees and other instruments - guarantees","Form 1A, Line 37(b)",{"$f":"'Form 1EBS'!F156","v":0}]
[null,"Letters of credit, guarantees and other instruments - other instruments","Form 1A, Line 37(c)",{"$f":"'Form 1EBS'!F157","v":0}]
[null,"Gross premium written - direct GPW","Form 2A, Line 1(a)"]
[null,"Gross premium written - assumed GPW","Form 2A, Line 1(b)"]
[null,"Reinsurance premiums ceded","Form 2A, Line 2"]
[null,"Increase (decrease) in unearned premiums","Form 2A, Line 4"]
[null,"Other insurance income","Form 2A, Line 6"]
[null,"Net losses incurred and net loss expenses incurred","Form 2A, Line 8"]
[null,"Commissions and brokerage","Form 2A, Line 9"]
[null,"General and administrative","Form 2A, Line 10"]
[null,"Personel costs","Form 2A, Line 11"]
[null,"Others","Form 2A, Line 12"]
[null,"Transferred from (to) open year business revenue statement","Form 2A, Line 15"]
[null,"General business investment income-net","Form 2A, Line 17"]
[null,"Other income (deductions)","Form 2A, Line 37"]
[null,"Income taxes - current","Form 2A, Line 39(a)"]
[null,"Income taxes - deferred","Form 2A, Line 39(b)"]
[null,"Realized gains (losses)","Form 2A, Line 41"]
[null,"Statutory Capital - authorized shares","Form 8, Line 1(a)"]
[null,"Statutory Capital - par value","Form 8, Line 1(a)"]
[null,"Statutory Capital - fully paid shares","Form 8, Line 1(a)"]
[null,"Statutory Capital - capital stock","Form 8, Line 1(a)"]
[null,"Statutory Capital - contributed surplus","Form 8, Line 1(b)"]
[null,"Statutory Capital - any other fixed capital","Form 8, Line 1(c)"]
[null,"Statutory surplus - beginning of year","Form 8, Line 2(a)"]
[null,"Statutory surplus - dividends paid and payable","Form 8, Line 2(c)"]
[null,"Statutory surplus - change in unrealized appreciation (depreciation) of investments","Form 8, Line 2(d)"]
[null,"Statutory surplus - change in non-admitted assets","Form 8, Line 2(e)"]
[null,"Statutory surplus - change in appraisal of real estate","Form 8, Line 2(f)"]
[null,"Statutory surplus - change in any other statutory capital","Form 8, Line 2(g)"]
[null,"Government","Schedule II, Line (1)"]
[null,"High Investment Grade (AAA & AA)","Schedule II, Line (2)"]
[null,"Medium Investment Grade (A)","Schedule II, Line (3)"]
[null,"Low Investment Grade (BBB)","Schedule II, Line (4)"]
[null,"Non Investment Grade","Schedule II, Line (5)"]
[null,"Mortgage Backed","Schedule II, Line (6)"]
[null,"Mutual Funds","Schedule II, Line (7)"]
[null,"Non Rated","Schedule II, Line (8)"]
[null,{"$f":"\"Reserves - \"&'Reserve Risk (old)'!B11","v":"Reserves - Property Catastrophe"},"Schedule III, Line (1)",{"$f":"'Schedule III'!F10","v":0}]
[null,{"$f":"\"Reserves - \"&'Reserve Risk (old)'!B12","v":"Reserves - Property"},"Schedule III, Line (2)",{"$f":"'Schedule III'!F11","v":0}]
[null,{"$f":"\"Reserves - \"&'Reserve Risk (old)'!B13","v":"Reserves - Property Non-Proportional"},"Schedule III, Line (3)",{"$f":"'Schedule III'!F12","v":0}]
[null,{"$f":"\"Reserves - \"&'Reserve Risk (old)'!B14","v":"Reserves - Personal Accident"},"Schedule III, Line (4)",{"$f":"'Schedule III'!F13","v":0}]
[null,{"$f":"\"Reserves - \"&'Reserve Risk (old)'!B15","v":"Reserves - Personal Accident Non-Proportional"},"Schedule III, Line (5)",{"$f":"'Schedule III'!F14","v":0}]
[null,{"$f":"\"Reserves - \"&'Reserve Risk (old)'!B16","v":"Reserves - Aviation"},"Schedule III, Line (6)",{"$f":"'Schedule III'!F15","v":0}]
[null,{"$f":"\"Reserves - \"&'Reserve Risk (old)'!B17","v":"Reserves - Aviation Non-Proportional"},"Schedule III, Line (7)",{"$f":"'Schedule III'!F16","v":0}]
[null,{"$f":"\"Reserves - \"&'Reserve Risk (old)'!B18","v":"Reserves - Credit / Surety"},"Schedule III, Line (8)",{"$f":"'Schedule III'!F17","v":0}]
[null,{"$f":"\"Reserves - \"&'Reserve Risk (old)'!B19","v":"Reserves - Credit / Surety Non-Proportional"},"Schedule III, Line (9)",{"$f":"'Schedule III'!F18","v":0}]
[null,{"$f":"\"Reserves - \"&'Reserve Risk (old)'!B20","v":"Reserves - Energy Offshore / Marine"},"Schedule III, Line (10)",{"$f":"'Schedule III'!F19","v":0}]
[null,{"$f":"\"Reserves - \"&'Reserve Risk (old)'!B21","v":"Reserves - Energy Offshore / Marine Non-Proportional"},"Schedule III, Line (11)",{"$f":"'Schedule III'!F20","v":0}]
[null,{"$f":"\"Reserves - \"&'Reserve Risk (old)'!B22","v":"Reserves - US Casualty"},"Schedule III, Line (12)",{"$f":"'Schedule III'!F21","v":0}]
[null,{"$f":"\"Reserves - \"&'Reserve Risk (old)'!B23","v":"Reserves - US Casualty Non-Proportional"},"Schedule III, Line (13)",{"$f":"'Schedule III'!F22","v":0}]
[null,{"$f":"\"Reserves - \"&'Reserve Risk (old)'!B24","v":"Reserves - US Professional"},"Schedule III, Line (14)",{"$f":"'Schedule III'!F23","v":0}]
[null,{"$f":"\"Reserves - \"&'Reserve Risk (old)'!B25","v":"Reserves - US Professional Non-Proportional"},"Schedule III, Line (15)",{"$f":"'Schedule III'!F24","v":0}]
[null,{"$f":"\"Reserves - \"&'Reserve Risk (old)'!B26","v":"Reserves - US Specialty"},"Schedule III, Line (16)",{"$f":"'Schedule III'!F25","v":0}]
[null,{"$f":"\"Reserves - \"&'Reserve Risk (old)'!B27","v":"Reserves - US Specialty Non-Proportional"},"Schedule III, Line (17)",{"$f":"'Schedule III'!F26","v":0}]
[null,{"$f":"\"Reserves - \"&'Reserve Risk (old)'!B28","v":"Reserves - International Motor"},"Schedule III, Line (18)",{"$f":"'Schedule III'!F27","v":0}]
[null,{"$f":"\"Reserves - \"&'Reserve Risk (old)'!B29","v":"Reserves - International Motor Non-Proportional"},"Schedule III, Line (19)",{"$f":"'Schedule III'!F28","v":0}]
[null,{"$f":"\"Reserves - \"&'Reserve Risk (old)'!B30","v":"Reserves - International Casualty Non-Motor"},"Schedule III, Line (20)",{"$f":"'Schedule III'!F29","v":0}]
[null,{"$f":"\"Reserves - \"&'Reserve Risk (old)'!B31","v":"Reserves - International Casualty Non-Motor Non-Proportional"},"Schedule III, Line (21)",{"$f":"'Schedule III'!F30","v":0}]
[null,{"$f":"\"Reserves - \"&'Reserve Risk (old)'!B32","v":"Reserves - Retro Property"},"Schedule III, Line (22)",{"$f":"'Schedule III'!F31","v":0}]
[null,{"$f":"\"Reserves - \"&'Reserve Risk (old)'!B33","v":"Reserves - Structured / Finite Reinsurance"},"Schedule III, Line (23)",{"$f":"'Schedule III'!F32","v":0}]
[null,"Premium - Property Catastrophe","Schedule IV, Line (1)",{"$f":"'Schedule IVA'!Q11","v":0}]
[null,"Premium - Property","Schedule IV, Line (2)",{"$f":"'Schedule IVA'!Q12","v":0}]
[null,"Premium - Property Non-Proportional","Schedule IV, Line (3)",{"$f":"'Schedule IVA'!Q13","v":0}]
[null,"Premium - Personal Accident","Schedule IV, Line (4)",{"$f":"'Schedule IVA'!Q14","v":0}]
[null,"Premium - Personal Accident Non-Proportional","Schedule IV, Line (5)",{"$f":"'Schedule IVA'!Q15","v":0}]
[null,"Premium - Aviation","Schedule IV, Line (6)",{"$f":"'Schedule IVA'!Q16","v":0}]
[null,"Premium - Aviation Non-Proportional","Schedule IV, Line (7)",{"$f":"'Schedule IVA'!Q17","v":0}]
[null,"Premium - Credit / Surety","Schedule IV, Line (8)",{"$f":"'Schedule IVA'!Q18","v":0}]
[null,"Premium - Credit / Surety Non-Proportional","Schedule IV, Line (9)",{"$f":"'Schedule IVA'!Q19","v":0}]
[null,"Premium - Energy Offshore / Marine","Schedule IV, Line (10)",{"$f":"'Schedule IVA'!Q20","v":0}]
[null,"Premium - Energy Offshore / Marine Non-Proportional","Schedule IV, Line (11)",{"$f":"'Schedule IVA'!Q21","v":0}]
[null,"Premium - US Casualty","Schedule IV, Line (12)",{"$f":"'Schedule IVA'!Q22","v":0}]
[null,"Premium - US Casualty Non-Proportional","Schedule IV, Line (13)",{"$f":"'Schedule IVA'!Q23","v":0}]
[null,"Premium - US Professional","Schedule IV, Line (14)",{"$f":"'Schedule IVA'!Q24","v":0}]
[null,"Premium - US Professional Non-Proportional","Schedule IV, Line (15)",{"$f":"'Schedule IVA'!Q25","v":0}]
[null,"Premium - US Specialty","Schedule IV, Line (16)",{"$f":"'Schedule IVA'!Q26","v":0}]
[null,"Premium - US Specialty Non-Proportional","Schedule IV, Line (17)",{"$f":"'Schedule IVA'!Q27","v":0}]
[null,"Premium - International Motor","Schedule IV, Line (18)",{"$f":"'Schedule IVA'!Q28","v":0}]
[null,"Premium - International Motor Non-Proportional","Schedule IV, Line (19)",{"$f":"'Schedule IVA'!Q29","v":0}]
[null,"Premium - International Casualty Non-Motor","Schedule IV, Line (20)",{"$f":"'Schedule IVA'!Q30","v":0}]
[null,"Premium - International Casualty Non-Motor Non-Proportional","Schedule IV, Line (21)",{"$f":"'Schedule IVA'!Q31","v":0}]
[null,"Premium - Retro Property","Schedule IV, Line (22)",{"$f":"'Schedule IVA'!Q32","v":0}]
[null,"Premium - Structured / Finite Reinsurance","Schedule IV, Line (23)",{"$f":"'Schedule IVA'!Q33","v":0}]

{"sheet":"Crosscheck-Model","index":138,"n_rows":95,"n_cols":4,"rows_kept":95,"cut":false,"hidden":true,"merged":[[3,0,3,1]]}
[null,"SUMMARY OF INPUTS"]
[{"$f":"'Company Information'!C7","v":"Enter Company Name"}]
["Summary of SFS Inputs - For BMA Use Only"]
[{"$f":"'Company Information'!C3","v":"2022-12-31"}]
[]
[]
[null,"INPUT","STATEMENT SOURCE","VALUE"]
[]
[null,"Reported Surplus","Form 1A, Line (40)",{"$f":"Summary!N92","v":0}]
[null,"Government","Schedule II, Line (1)",{"$f":"'Fixed Income Investments (old)'!D11","v":0}]
[null,"High Investment Grade (AAA & AA)","Schedule II, Line (2)",{"$f":"'Fixed Income Investments (old)'!D12","v":0}]
[null,"Medium Investment Grade (A)","Schedule II, Line (3)",{"$f":"'Fixed Income Investments (old)'!D13","v":0}]
[null,"Low Investment Grade (BBB)","Schedule II, Line (4)",{"$f":"'Fixed Income Investments (old)'!D14","v":0}]
[null,"Non Investment Grade","Schedule II, Line (5)",{"$f":"'Fixed Income Investments (old)'!D15","v":0}]
[null,"Mortgage Backed","Schedule II, Line (6)",{"$f":"'Fixed Income Investments (old)'!D16","v":0}]
[null,"Mutual Funds","Schedule II, Line (7)",{"$f":"'Fixed Income Investments (old)'!D17","v":0}]
[null,"Non Rated","Schedule II, Line (8)",{"$f":"'Fixed Income Investments (old)'!D20","v":0}]
[null,"Mortgage Loans","Form 1A, Line (5c)"]
[null,"Other Loans","Form 1A, Line (8)",{"$f":"'Fixed Income Investments (old)'!D79","v":0}]
[null,"Cash","Form 1A, Line (1)"]
[null,"Non-Affiliated (Quoted)","Form 1A, Line (2c)-i",{"$f":"'Equity Investments (old)'!D11","v":0}]
[null,"Non-Affiliated (Unquoted)","Form 1A, Line (3c)-i",{"$f":"'Equity Investments (old)'!D12","v":0}]
[null,"Mutual Funds","Form 1A, Lines (2c)-iii, (3c)-iii",{"$f":"'Equity Investments (old)'!D13","v":0}]
[null,"Non-Affiliated (Quoted)","Form 1A, Line (2c)-ii",{"$f":"'Equity Investments (old)'!D19","v":0}]
[null,"Non-Affiliated (Unquoted)","Form 1A, Line (3c)-ii",{"$f":"'Equity Investments (old)'!D27","v":0}]
[null,"Company-Occupied Less Encumbrances","Form 1A, Line (7a)",{"$f":"'Equity Investments (old)'!D33","v":0}]
[null,"Investments Less Encumbrances","Form 1A, Line (7b)",{"$f":"'Equity Investments (old)'!#REF!","v":{"$error":"#REF!"}}]
[null,"Other Investments","Form 1A, Lines (2e), (3e)",{"$f":"'Equity Investments (old)'!D34","v":0}]
[null,"Other Tangible Assets","Form 1A, Lines (13e), (14d)",{"$f":"'Equity Investments (old)'!D35","v":0}]
[null,"Bonds (Quoted Only)","Form 1A, Lines (2a)-ii and (3a)-ii",{"$f":"'Interest Rate-Liquidity Risk'!D10","v":0}]
[null,"In Course of Collection","Form 1A, Line (10a)",{"$f":"'Credit Risk (old)'!D11","v":0}]
[null,"Deferred - Not Yet Due","Form 1A, Line (10b)"]
[null,"Receivables from retrocessional contracts  less: Collateralized Balances","Form 1A, Line (10c)",{"$f":"'Credit Risk (old)'!#REF!","v":{"$error":"#REF!"}}]
[null,"Foreign Affiliates","Form 1A, Line (11a)"]
[null,"Domestic Affiliates","Form 1A, Line (11b)"]
[null,"Pools & Associations","Form 1A, Line (11c)"]
[null,"All Other Insurers","Form 1A, Line (11d)"]
[null,"Letter of credits","Notes to Form 1A, Line 11"]
[null,"Funds held by Company","Form 1A, Line 34(c)"]
[null,"Funds Held by Ceding Reinsurers","Form 1A, Line (12c)",{"$f":"'Form 1EBS'!F71","v":{"$error":"#REF!"}}]
[null,"Accrued Investment Income","Form 1A, Line (9)",{"$f":"'Credit Risk (old)'!D17","v":0}]
[null,"Receivable from Affiliates","Form 1A, Line (4c)",{"$f":"'Credit Risk (old)'!#REF!","v":{"$error":"#REF!"}}]
[null,"Foreign Affiliates","Form 1A, Line (17b)-i",{"$f":"'Credit Risk (old)'!D23","v":0}]
[null,"Domestic Affiliates","Form 1A, Line (17b)-ii",{"$f":"'Credit Risk (old)'!D24","v":0}]
[null,"Pools & Associations","Form 1A, Line (17b)-iii"]
[null,"All Other Insurers","Form 1A, Line (17b)-iv"]
[null,"Premium - Property Catastrophe","Schedule IV, Line (1)",{"$f":"'Premium Risk (old)'!F11","v":0}]
[null,"Premium - Property","Schedule IV, Line (2)",{"$f":"'Premium Risk (old)'!F12","v":0}]
[null,"Premium - Property Non-Proportional","Schedule IV, Line (3)",{"$f":"'Premium Risk (old)'!F13","v":0}]
[null,"Premium - Personal Accident","Schedule IV, Line (4)",{"$f":"'Premium Risk (old)'!F14","v":0}]
[null,"Premium - Personal Accident Non-Proportional","Schedule IV, Line (5)",{"$f":"'Premium Risk (old)'!F15","v":0}]
[null,"Premium - Aviation","Schedule IV, Line (6)",{"$f":"'Premium Risk (old)'!F16","v":0}]
[null,"Premium - Aviation Non-Proportional","Schedule IV, Line (7)",{"$f":"'Premium Risk (old)'!F17","v":0}]
[null,"Premium - Credit / Surety","Schedule IV, Line (8)",{"$f":"'Premium Risk (old)'!F18","v":0}]
[null,"Premium - Credit / Surety Non-Proportional","Schedule IV, Line (9)",{"$f":"'Premium Risk (old)'!F19","v":0}]
[null,"Premium - Energy Offshore / Marine","Schedule IV, Line (10)",{"$f":"'Premium Risk (old)'!F20","v":0}]
[null,"Premium - Energy Offshore / Marine Non-Proportional","Schedule IV, Line (11)",{"$f":"'Premium Risk (old)'!F21","v":0}]
[null,"Premium - US Casualty","Schedule IV, Line (12)",{"$f":"'Premium Risk (old)'!F22","v":0}]
[null,"Premium - US Casualty Non-Proportional","Schedule IV, Line (13)",{"$f":"'Premium Risk (old)'!F23","v":0}]
[null,"Premium - US Professional","Schedule IV, Line (14)",{"$f":"'Premium Risk (old)'!F24","v":0}]
[null,"Premium - US Professional Non-Proportional","Schedule IV, Line (15)",{"$f":"'Premium Risk (old)'!F25","v":0}]
[null,"Premium - US Specialty","Schedule IV, Line (16)",{"$f":"'Premium Risk (old)'!F26","v":0}]
[null,"Premium - US Specialty Non-Proportional","Schedule IV, Line (17)",{"$f":"'Premium Risk (old)'!F27","v":0}]
[null,"Premium - International Motor","Schedule IV, Line (18)",{"$f":"'Premium Risk (old)'!F28","v":0}]
[null,"Premium - International Motor Non-Proportional","Schedule IV, Line (19)",{"$f":"'Premium Risk (old)'!F29","v":0}]
[null,"Premium - International Casualty Non-Motor","Schedule IV, Line (20)",{"$f":"'Premium Risk (old)'!F30","v":0}]
[null,"Premium - International Casualty Non-Motor Non-Proportional","Schedule IV, Line (21)",{"$f":"'Premium Risk (old)'!F31","v":0}]
[null,"Premium - Retro Property","Schedule IV, Line (22)",{"$f":"'Premium Risk (old)'!F32","v":0}]
[null,"Premium - Structured / Finite Reinsurance","Schedule IV, Line (23)",{"$f":"'Premium Risk (old)'!F33","v":0}]
[null,{"$f":"\"Reserves - \"&'Reserve Risk (old)'!B11","v":"Reserves - Property Catastrophe"},"Schedule III, Line (1)",{"$f":"'Reserve Risk (old)'!E11","v":0}]
[null,{"$f":"\"Reserves - \"&'Reserve Risk (old)'!B12","v":"Reserves - Property"},"Schedule III, Line (2)",{"$f":"'Reserve Risk (old)'!E12","v":0}]
[null,{"$f":"\"Reserves - \"&'Reserve Risk (old)'!B13","v":"Reserves - Property Non-Proportional"},"Schedule III, Line (3)",{"$f":"'Reserve Risk (old)'!E13","v":0}]
[null,{"$f":"\"Reserves - \"&'Reserve Risk (old)'!B14","v":"Reserves - Personal Accident"},"Schedule III, Line (4)",{"$f":"'Reserve Risk (old)'!E14","v":0}]
[null,{"$f":"\"Reserves - \"&'Reserve Risk (old)'!B15","v":"Reserves - Personal Accident Non-Proportional"},"Schedule III, Line (5)",{"$f":"'Reserve Risk (old)'!E15","v":0}]
[null,{"$f":"\"Reserves - \"&'Reserve Risk (old)'!B16","v":"Reserves - Aviation"},"Schedule III, Line (6)",{"$f":"'Reserve Risk (old)'!E16","v":0}]
[null,{"$f":"\"Reserves - \"&'Reserve Risk (old)'!B17","v":"Reserves - Aviation Non-Proportional"},"Schedule III, Line (7)",{"$f":"'Reserve Risk (old)'!E17","v":0}]
[null,{"$f":"\"Reserves - \"&'Reserve Risk (old)'!B18","v":"Reserves - Credit / Surety"},"Schedule III, Line (8)",{"$f":"'Reserve Risk (old)'!E18","v":0}]
[null,{"$f":"\"Reserves - \"&'Reserve Risk (old)'!B19","v":"Reserves - Credit / Surety Non-Proportional"},"Schedule III, Line (9)",{"$f":"'Reserve Risk (old)'!E19","v":0}]
[null,{"$f":"\"Reserves - \"&'Reserve Risk (old)'!B20","v":"Reserves - Energy Offshore / Marine"},"Schedule III, Line (10)",{"$f":"'Reserve Risk (old)'!E20","v":0}]
[null,{"$f":"\"Reserves - \"&'Reserve Risk (old)'!B21","v":"Reserves - Energy Offshore / Marine Non-Proportional"},"Schedule III, Line (11)",{"$f":"'Reserve Risk (old)'!E21","v":0}]
[null,{"$f":"\"Reserves - \"&'Reserve Risk (old)'!B22","v":"Reserves - US Casualty"},"Schedule III, Line (12)",{"$f":"'Reserve Risk (old)'!E22","v":0}]
[null,{"$f":"\"Reserves - \"&'Reserve Risk (old)'!B23","v":"Reserves - US Casualty Non-Proportional"},"Schedule III, Line (13)",{"$f":"'Reserve Risk (old)'!E23","v":0}]
[null,{"$f":"\"Reserves - \"&'Reserve Risk (old)'!B24","v":"Reserves - US Professional"},"Schedule III, Line (14)",{"$f":"'Reserve Risk (old)'!E24","v":0}]
[null,{"$f":"\"Reserves - \"&'Reserve Risk (old)'!B25","v":"Reserves - US Professional Non-Proportional"},"Schedule III, Line (15)",{"$f":"'Reserve Risk (old)'!E25","v":0}]
[null,{"$f":"\"Reserves - \"&'Reserve Risk (old)'!B26","v":"Reserves - US Specialty"},"Schedule III, Line (16)",{"$f":"'Reserve Risk (old)'!E26","v":0}]
[null,{"$f":"\"Reserves - \"&'Reserve Risk (old)'!B27","v":"Reserves - US Specialty Non-Proportional"},"Schedule III, Line (17)",{"$f":"'Reserve Risk (old)'!E27","v":0}]
[null,{"$f":"\"Reserves - \"&'Reserve Risk (old)'!B28","v":"Reserves - International Motor"},"Schedule III, Line (18)",{"$f":"'Reserve Risk (old)'!E28","v":0}]
[null,{"$f":"\"Reserves - \"&'Reserve Risk (old)'!B29","v":"Reserves - International Motor Non-Proportional"},"Schedule III, Line (19)",{"$f":"'Reserve Risk (old)'!E29","v":0}]
[null,{"$f":"\"Reserves - \"&'Reserve Risk (old)'!B30","v":"Reserves - International Casualty Non-Motor"},"Schedule III, Line (20)",{"$f":"'Reserve Risk (old)'!E30","v":0}]
[null,{"$f":"\"Reserves - \"&'Reserve Risk (old)'!B31","v":"Reserves - International Casualty Non-Motor Non-Proportional"},"Schedule III, Line (21)",{"$f":"'Reserve Risk (old)'!E31","v":0}]
[null,{"$f":"\"Reserves - \"&'Reserve Risk (old)'!B32","v":"Reserves - Retro Property"},"Schedule III, Line (22)",{"$f":"'Reserve Risk (old)'!E32","v":0}]
[null,{"$f":"\"Reserves - \"&'Reserve Risk (old)'!B33","v":"Reserves - Structured / Finite Reinsurance"},"Schedule III, Line (23)",{"$f":"'Reserve Risk (old)'!E33","v":0}]
[null,"Gross Probable Maximum Loss","Schedule V, Line (b)",{"$f":"'Catastrophe Risk (old)'!E7","v":0}]
[null,"Net Probable Maximum Loss","Schedule V, Line (c)",{"$f":"'Catastrophe Risk (old)'!E9","v":0}]
[null,"Average Annual Loss (AAL) Excluding Property Catastrophe","Schedule V, Line (d)",{"$f":"'Catastrophe Risk (old)'!E11","v":0}]

{"sheet":"Crosscheck - Op Risk","index":139,"n_rows":153,"n_cols":4,"rows_kept":153,"cut":false,"hidden":true,"merged":[[3,0,3,1]]}
[null,"SUMMARY OF OPERATIONAL RISK"]
["Sample Company"]
["Summary of SFS Inputs - For BMA Use Only"]
[{"$f":"'Company Information'!C3","v":"2022-12-31"}]
[]
[]
[null,"INPUT","STATEMENT SOURCE","SCORE"]
[]
[null,"Corporate Governance - 1","Corp Gov",{"$f":"'Corp Gov'!C10","v":0}]
[null,"Corporate Governance - 2","Corp Gov",{"$f":"'Corp Gov'!C12","v":0}]
[null,"Corporate Governance - 3","Corp Gov",{"$f":"'Corp Gov'!C13","v":0}]
[null,"Corporate Governance - 4","Corp Gov",{"$f":"'Corp Gov'!C14","v":0}]
[null,"Corporate Governance - 5","Corp Gov",{"$f":"'Corp Gov'!C15","v":0}]
[null,"Corporate Governance - 6","Corp Gov",{"$f":"'Corp Gov'!C16","v":0}]
[null,"Risk Management - 1","Risk Man"]
[null,"Risk Management - 2","Risk Man"]
[null,"Risk Management - 3","Risk Man"]
[null,"Risk Management - 4","Risk Man"]
[null,"Risk Management - 5","Risk Man"]
[null,"Risk Management - 6","Risk Man"]
[null,"Risk Management - 7","Risk Man"]
[null,"Risk Identification"]
[null,"Fraud - Stage 1","Identification",{"$f":"Identification!E15","v":0}]
[null,"Fraud - Stage 2","Identification",{"$f":"Identification!E16","v":0}]
[null,"Fraud - Stage 3","Identification",{"$f":"Identification!E17","v":0}]
[null,"Fraud - Stage 4","Identification",{"$f":"Identification!E18","v":0}]
[null,"Human Resources - Stage 1","Identification",{"$f":"Identification!F15","v":0}]
[null,"Human Resources - Stage 2","Identification",{"$f":"Identification!F16","v":0}]
[null,"Human Resources - Stage 3","Identification",{"$f":"Identification!F17","v":0}]
[null,"Human Resources - Stage 4","Identification",{"$f":"Identification!F18","v":0}]
[null,"Outsourcing - Stage 1","Identification",{"$f":"Identification!G15","v":0}]
[null,"Outsourcing - Stage 2","Identification",{"$f":"Identification!G16","v":0}]
[null,"Outsourcing - Stage 3","Identification",{"$f":"Identification!G17","v":0}]
[null,"Outsourcing - Stage 4","Identification",{"$f":"Identification!G18","v":0}]
[null,"Distribution Channels - Stage 1","Identification",{"$f":"Identification!H15","v":0}]
[null,"Distribution Channels - Stage 2","Identification",{"$f":"Identification!H16","v":0}]
[null,"Distribution Channels - Stage 3","Identification",{"$f":"Identification!H17","v":0}]
[null,"Distribution Channels - Stage 4","Identification",{"$f":"Identification!H18","v":0}]
[null,"Business Processes - Stage 1","Identification",{"$f":"Identification!I15","v":0}]
[null,"Business Processes - Stage 2","Identification",{"$f":"Identification!I16","v":0}]
[null,"Business Processes - Stage 3","Identification",{"$f":"Identification!I17","v":0}]
[null,"Business Processes - Stage 4","Identification",{"$f":"Identification!I18","v":0}]
[null,"Business Continuity - Stage 1","Identification",{"$f":"Identification!J15","v":0}]
[null,"Business Continuity - Stage 2","Identification",{"$f":"Identification!J16","v":0}]
[null,"Business Continuity - Stage 3","Identification",{"$f":"Identification!J17","v":0}]
[null,"Business Continuity - Stage 4","Identification",{"$f":"Identification!J18","v":0}]
[null,"Information Systems - Stage 1","Identification",{"$f":"Identification!K15","v":0}]
[null,"Information Systems - Stage 2","Identification",{"$f":"Identification!K16","v":0}]
[null,"Information Systems - Stage 3","Identification",{"$f":"Identification!K17","v":0}]
[null,"Information Systems - Stage 4","Identification",{"$f":"Identification!K18","v":0}]
[null,"Compliance - Stage 1","Identification",{"$f":"Identification!L15","v":0}]
[null,"Compliance - Stage 2","Identification",{"$f":"Identification!L16","v":0}]
[null,"Compliance - Stage 3","Identification",{"$f":"Identification!L17","v":0}]
[null,"Compliance - Stage 4","Identification",{"$f":"Identification!L18","v":0}]
[null,"Risk Measurement"]
[null,"Fraud - Stage 1","Measurement",{"$f":"Measurement!E15","v":0}]
[null,"Fraud - Stage 2","Measurement",{"$f":"Measurement!E16","v":0}]
[null,"Fraud - Stage 3","Measurement",{"$f":"Measurement!E17","v":0}]
[null,"Fraud - Stage 4","Measurement",{"$f":"Measurement!E18","v":0}]
[null,"Human Resources - Stage 1","Measurement",{"$f":"Measurement!F15","v":0}]
[null,"Human Resources - Stage 2","Measurement",{"$f":"Measurement!F16","v":0}]
[null,"Human Resources - Stage 3","Measurement",{"$f":"Measurement!F17","v":0}]
[null,"Human Resources - Stage 4","Measurement",{"$f":"Measurement!F18","v":0}]
[null,"Outsourcing - Stage 1","Measurement",{"$f":"Measurement!G15","v":0}]
[null,"Outsourcing - Stage 2","Measurement",{"$f":"Measurement!G16","v":0}]
[null,"Outsourcing - Stage 3","Measurement",{"$f":"Measurement!G17","v":0}]
[null,"Outsourcing - Stage 4","Measurement",{"$f":"Measurement!G18","v":0}]
[null,"Distribution Channels - Stage 1","Measurement",{"$f":"Measurement!H15","v":0}]
[null,"Distribution Channels - Stage 2","Measurement",{"$f":"Measurement!H16","v":0}]
[null,"Distribution Channels - Stage 3","Measurement",{"$f":"Measurement!H17","v":0}]
[null,"Distribution Channels - Stage 4","Measurement",{"$f":"Measurement!H18","v":0}]
[null,"Business Processes - Stage 1","Measurement",{"$f":"Measurement!I15","v":0}]
[null,"Business Processes - Stage 2","Measurement",{"$f":"Measurement!I16","v":0}]
[null,"Business Processes - Stage 3","Measurement",{"$f":"Measurement!I17","v":0}]
[null,"Business Processes - Stage 4","Measurement",{"$f":"Measurement!I18","v":0}]
[null,"Business Continuity - Stage 1","Measurement",{"$f":"Measurement!J15","v":0}]
[null,"Business Continuity - Stage 2","Measurement",{"$f":"Measurement!J16","v":0}]
[null,"Business Continuity - Stage 3","Measurement",{"$f":"Measurement!J17","v":0}]
[null,"Business Continuity - Stage 4","Measurement",{"$f":"Measurement!J18","v":0}]
[null,"Information Systems - Stage 1","Measurement",{"$f":"Measurement!K15","v":0}]
[null,"Information Systems - Stage 2","Measurement",{"$f":"Measurement!K16","v":0}]
[null,"Information Systems - Stage 3","Measurement",{"$f":"Measurement!K17","v":0}]
[null,"Information Systems - Stage 4","Measurement",{"$f":"Measurement!K18","v":0}]
[null,"Compliance - Stage 1","Measurement",{"$f":"Measurement!L15","v":0}]
[null,"Compliance - Stage 2","Measurement",{"$f":"Measurement!L16","v":0}]
[null,"Compliance - Stage 3","Measurement",{"$f":"Measurement!L17","v":0}]
[null,"Compliance - Stage 4","Measurement",{"$f":"Measurement!L18","v":0}]
[null,"Risk Response"]
[null,"Fraud - Stage 1","Response",{"$f":"Response!E15","v":0}]
[null,"Fraud - Stage 2","Response",{"$f":"Response!E16","v":0}]
[null,"Fraud - Stage 3","Response",{"$f":"Response!E17","v":0}]
[null,"Fraud - Stage 4","Response",{"$f":"Response!E18","v":0}]
[null,"Human Resources - Stage 1","Response",{"$f":"Response!F15","v":0}]
[null,"Human Resources - Stage 2","Response",{"$f":"Response!F16","v":0}]
[null,"Human Resources - Stage 3","Response",{"$f":"Response!F17","v":0}]
[null,"Human Resources - Stage 4","Response",{"$f":"Response!F18","v":0}]
[null,"Outsourcing - Stage 1","Response",{"$f":"Response!G15","v":0}]
[null,"Outsourcing - Stage 2","Response",{"$f":"Response!G16","v":0}]
[null,"Outsourcing - Stage 3","Response",{"$f":"Response!G17","v":0}]
[null,"Outsourcing - Stage 4","Response",{"$f":"Response!G18","v":0}]
[null,"Distribution Channels - Stage 1","Response",{"$f":"Response!H15","v":0}]
[null,"Distribution Channels - Stage 2","Response",{"$f":"Response!H16","v":0}]
[null,"Distribution Channels - Stage 3","Response",{"$f":"Response!H17","v":0}]
[null,"Distribution Channels - Stage 4","Response",{"$f":"Response!H18","v":0}]
[null,"Business Processes - Stage 1","Response",{"$f":"Response!I15","v":0}]
[null,"Business Processes - Stage 2","Response",{"$f":"Response!I16","v":0}]
[null,"Business Processes - Stage 3","Response",{"$f":"Response!I17","v":0}]
[null,"Business Processes - Stage 4","Response",{"$f":"Response!I18","v":0}]
[null,"Business Continuity - Stage 1","Response",{"$f":"Response!J15","v":0}]
[null,"Business Continuity - Stage 2","Response",{"$f":"Response!J16","v":0}]
[null,"Business Continuity - Stage 3","Response",{"$f":"Response!J17","v":0}]
[null,"Business Continuity - Stage 4","Response",{"$f":"Response!J18","v":0}]
[null,"Information Systems - Stage 1","Response",{"$f":"Response!K15","v":0}]
[null,"Information Systems - Stage 2","Response",{"$f":"Response!K16","v":0}]
[null,"Information Systems - Stage 3","Response",{"$f":"Response!K17","v":0}]
[null,"Information Systems - Stage 4","Response",{"$f":"Response!K18","v":0}]
[null,"Compliance - Stage 1","Response",{"$f":"Response!L15","v":0}]
[null,"Compliance - Stage 2","Response",{"$f":"Response!L16","v":0}]
[null,"Compliance - Stage 3","Response",{"$f":"Response!L17","v":0}]
[null,"Compliance - Stage 4","Response",{"$f":"Response!L18","v":0}]
[null,"Risk Monitoring & Reporting"]
[null,"Fraud - Stage 1","Monitoring & Reporting",{"$f":"'Monitoring & Reporting'!E15","v":0}]
[null,"Fraud - Stage 2","Monitoring & Reporting",{"$f":"'Monitoring & Reporting'!E16","v":0}]
[null,"Fraud - Stage 3","Monitoring & Reporting",{"$f":"'Monitoring & Reporting'!E17","v":0}]
[null,"Fraud - Stage 4","Monitoring & Reporting",{"$f":"'Monitoring & Reporting'!E18","v":0}]
[null,"Human Resources - Stage 1","Monitoring & Reporting",{"$f":"'Monitoring & Reporting'!F15","v":0}]
[null,"Human Resources - Stage 2","Monitoring & Reporting",{"$f":"'Monitoring & Reporting'!F16","v":0}]
[null,"Human Resources - Stage 3","Monitoring & Reporting",{"$f":"'Monitoring & Reporting'!F17","v":0}]
[null,"Human Resources - Stage 4","Monitoring & Reporting",{"$f":"'Monitoring & Reporting'!F18","v":0}]
[null,"Outsourcing - Stage 1","Monitoring & Reporting",{"$f":"'Monitoring & Reporting'!G15","v":0}]
[null,"Outsourcing - Stage 2","Monitoring & Reporting",{"$f":"'Monitoring & Reporting'!G16","v":0}]
[null,"Outsourcing - Stage 3","Monitoring & Reporting",{"$f":"'Monitoring & Reporting'!G17","v":0}]
[null,"Outsourcing - Stage 4","Monitoring & Reporting",{"$f":"'Monitoring & Reporting'!G18","v":0}]
[null,"Distribution Channels - Stage 1","Monitoring & Reporting",{"$f":"'Monitoring & Reporting'!H15","v":0}]
[null,"Distribution Channels - Stage 2","Monitoring & Reporting",{"$f":"'Monitoring & Reporting'!H16","v":0}]
[null,"Distribution Channels - Stage 3","Monitoring & Reporting",{"$f":"'Monitoring & Reporting'!H17","v":0}]
[null,"Distribution Channels - Stage 4","Monitoring & Reporting",{"$f":"'Monitoring & Reporting'!H18","v":0}]
[null,"Business Processes - Stage 1","Monitoring & Reporting",{"$f":"'Monitoring & Reporting'!I15","v":0}]
[null,"Business Processes - Stage 2","Monitoring & Reporting",{"$f":"'Monitoring & Reporting'!I16","v":0}]
[null,"Business Processes - Stage 3","Monitoring & Reporting",{"$f":"'Monitoring & Reporting'!I17","v":0}]
[null,"Business Processes - Stage 4","Monitoring & Reporting",{"$f":"'Monitoring & Reporting'!I18","v":0}]
[null,"Business Continuity - Stage 1","Monitoring & Reporting",{"$f":"'Monitoring & Reporting'!J15","v":0}]
[null,"Business Continuity - Stage 2","Monitoring & Reporting",{"$f":"'Monitoring & Reporting'!J16","v":0}]
[null,"Business Continuity - Stage 3","Monitoring & Reporting",{"$f":"'Monitoring & Reporting'!J17","v":0}]
[null,"Business Continuity - Stage 4","Monitoring & Reporting",{"$f":"'Monitoring & Reporting'!J18","v":0}]
[null,"Information Systems - Stage 1","Monitoring & Reporting",{"$f":"'Monitoring & Reporting'!K15","v":0}]
[null,"Information Systems - Stage 2","Monitoring & Reporting",{"$f":"'Monitoring & Reporting'!K16","v":0}]
[null,"Information Systems - Stage 3","Monitoring & Reporting",{"$f":"'Monitoring & Reporting'!K17","v":0}]
[null,"Information Systems - Stage 4","Monitoring & Reporting",{"$f":"'Monitoring & Reporting'!K18","v":0}]
[null,"Compliance - Stage 1","Monitoring & Reporting",{"$f":"'Monitoring & Reporting'!L15","v":0}]
[null,"Compliance - Stage 2","Monitoring & Reporting",{"$f":"'Monitoring & Reporting'!L16","v":0}]
[null,"Compliance - Stage 3","Monitoring & Reporting",{"$f":"'Monitoring & Reporting'!L17","v":0}]
[null,"Compliance - Stage 4","Monitoring & Reporting",{"$f":"'Monitoring & Reporting'!L18","v":0}]

{"sheet":"prt_res","index":140,"n_rows":54,"n_cols":4,"rows_kept":54,"cut":false,"hidden":true,"merged":[]}
[true,"Company_Information_Print",null,true]
[true,"Summary_Print",null,false]
[true,"Fixed_Income_Print"]
[true,"Equity_Print"]
[true,"Interest_Rate_Print"]
[true,"Credit_Print"]
[true,"Premium_Print"]
[true,"Reserve_Print"]
[true,"Cat_Print"]
[]
[]
[]
[]
[]
[]
[]
[]
[]
[]
[]
[]
[]
[]
[]
[]
[]
[]
[]
[]
[]
[]
[]
[]
[]
[]
[]
[]
[]
[]
[]
[]
[]
[]
[]
[]
[]
[]
[]
[]
[]
[]
[]
[]
[null,"a"]

{"sheet":"HiddenFormulas","index":141,"n_rows":1155,"n_cols":33,"rows_kept":1155,"cut":false,"hidden":true,"merged":[]}
["Summary",null,null,"Fixed Income Investments",null,null,"Equity Investments",null,null,"Interest Rate-Liquidity Risk",null,null,"Currency Risk",null,null,"Concentration Risk",null,null,"Geographic Diversification",null,null,"Credit Risk",null,null,"Premium Risk",null,null,"Reserve Risk",null,null,"Catastrophe Risk"]
[{"$f":"IFERROR(SUM(C2:AG2),999)","v":0},null,{"$f":"IFERROR(SUM(C3:C277),999)","v":0},null,null,{"$f":"IFERROR(SUM(F3:F272),999)","v":0},null,null,{"$f":"IFERROR(SUM(I3:I342),999)","v":0},null,null,{"$f":"IFERROR(SUM(L3:L21),999)","v":0},null,null,{"$f":"IFERROR(SUM(O3:O535),999)","v":0},null,null,{"$f":"IFERROR(SUM(R3:R308),999)","v":0},null,null,{"$f":"IFERROR(SUM(U3:U1155),999)","v":0},null,null,{"$f":"IFERROR(SUM(X3:X157),999)","v":0},null,null,{"$f":"IFERROR(SUM(AA3:AA375),999)","v":0},null,null,{"$f":"IFERROR(SUM(AD3:AD140),999)","v":0},null,null,{"$f":"IFERROR(SUM(AG3:AG28),999)","v":0}]
[{"$f":"IF(_xlfn.FORMULATEXT(INDIRECT(AE27))=AF27,0,1)","v":0},null,277,null,null,272,null,null,342,null,null,21,null,null,535,null,null,308,null,null,1155,null,null,157,null,null,375,null,null,140,null,null,28]
[{"$f":"ADDRESS(2,1,1,1,$A$1)","v":"Summary!$A$2"},"='Company Information'!C7",{"$f":"IF(_xlfn.FORMULATEXT(INDIRECT(A4))=B4,0,1)","v":0},{"$f":"ADDRESS(2,1,1,1,$D$1)","v":"'Fixed Income Investments'!$A$2"},"='Company Information'!C7",{"$f":"IF(_xlfn.FORMULATEXT(INDIRECT(D4))=E4,0,1)","v":0},{"$f":"ADDRESS(2,1,1,1,$G$1)","v":"'Equity Investments'!$A$2"},"='Company Information'!C7",{"$f":"IF(_xlfn.FORMULATEXT(INDIRECT(G4))=H4,0,1)","v":0},{"$f":"ADDRESS(2,1,1,1,$J$1)","v":"'Interest Rate-Liquidity Risk'!$A$2"},"='Company Information'!C7",{"$f":"IF(_xlfn.FORMULATEXT(INDIRECT(J4))=K4,0,1)","v":0},{"$f":"ADDRESS(2,1,1,1,$M$1)","v":"'Currency Risk'!$A$2"},"='Company Information'!C7",{"$f":"IF(_xlfn.FORMULATEXT(INDIRECT(M4))=N4,0,1)","v":0},{"$f":"ADDRESS(2,1,1,1,$P$1)","v":"'Concentration Risk'!$A$2"},"='Company Information'!C7",{"$f":"IF(_xlfn.FORMULATEXT(INDIRECT(P4))=Q4,0,1)","v":0},{"$f":"ADDRESS(2,1,1,1,$S$1)","v":"'Geographic Diversification'!$A$2"},"='Company Information'!C7",{"$f":"IF(_xlfn.FORMULATEXT(INDIRECT(S4))=T4,0,1)","v":0},{"$f":"ADDRESS(2,1,1,1,$V$1)","v":"'Credit Risk'!$A$2"},"='Company Information'!C7",{"$f":"IF(_xlfn.FORMULATEXT(INDIRECT(V4))=W4,0,1)","v":0},{"$f":"ADDRESS(2,1,1,1,$Y$1)","v":"'Premium Risk'!$A$2"},"='Company Information'!C7",{"$f":"IF(_xlfn.FORMULATEXT(INDIRECT(Y4))=Z4,0,1)","v":0},{"$f":"ADDRESS(2,1,1,1,$AB$1)","v":"'Reserve Risk'!$A$2"},"='Company Information'!C7",{"$f":"IF(_xlfn.FORMULATEXT(INDIRECT(AB4))=AC4,0,1)","v":0},{"$f":"ADDRESS(2,1,1,1,$AE$1)","v":"'Catastrophe Risk'!$A$2"},"='Company Information'!C7",{"$f":"IF(_xlfn.FORMULATEXT(INDIRECT(AE4))=AF4,0,1)","v":0}]
[{"$f":"ADDRESS(4,1,1,1,$A$1)","v":"Summary!$A$4"},"=\"For the Year Ending \"",0,{"$f":"ADDRESS(3,1,1,1,$D$1)","v":"'Fixed Income Investments'!$A$3"},"=\"Fixed Income Investment Risk\"&\"($\"&IF(CONFIGURATION!$B$12>1,MID(CONFIGURATION!$B$12,2,LEN(CONFIGURATION!$B$12)),\"\")&\")\"",{"$f":"IF(_xlfn.FORMULATEXT(INDIRECT(D5))=E5,0,1)","v":0},{"$f":"ADDRESS(3,1,1,1,$G$1)","v":"'Equity Investments'!$A$3"},"=\"Equity Investment Risk\" & \"($\"&IF(CONFIGURATION!$B$12>1,MID(CONFIGURATION!$B$12,2,LEN(CONFIGURATION!$B$12)),\"\")&\")\"",{"$f":"IF(_xlfn.FORMULATEXT(INDIRECT(G5))=H5,0,1)","v":0},{"$f":"ADDRESS(3,1,1,1,$J$1)","v":"'Interest Rate-Liquidity Risk'!$A$3"},"=\"Interest Rate / Liquidity Risk\" & \"($\"&IF(CONFIGURATION!$B$12>1,MID(CONFIGURATION!$B$12,2,LEN(CONFIGURATION!$B$12)),\"\")&\")\"",{"$f":"IF(_xlfn.FORMULATEXT(INDIRECT(J5))=K5,0,1)","v":0},{"$f":"ADDRESS(3,1,1,1,$M$1)","v":"'Currency Risk'!$A$3"},"=\"Currency Risk\" & \"($\"&IF(CONFIGURATION!$B$12>1,MID(CONFIGURATION!$B$12,2,LEN(CONFIGURATION!$B$12)),\"\")&\")\"",{"$f":"IF(_xlfn.FORMULATEXT(INDIRECT(M5))=N5,0,1)","v":0},{"$f":"ADDRESS(3,1,1,1,$P$1)","v":"'Concentration Risk'!$A$3"},"=\"Concentration Risk\" & \"($\"&IF(CONFIGURATION!$B$12>1,MID(CONFIGURATION!$B$12,2,LEN(CONFIGURATION!$B$12)),\"\")&\")\"",{"$f":"IF(_xlfn.FORMULATEXT(INDIRECT(P5))=Q5,0,1)","v":0},{"$f":"ADDRESS(3,1,1,1,$S$1)","v":"'Geographic Diversification'!$A$3"},"=\"Geographic Diversification\" & \"($\"&IF(CONFIGURATION!$B$12>1,MID(CONFIGURATION!$B$12,2,LEN(CONFIGURATION!$B$12)),\"\")&\")\"",0,{"$f":"ADDRESS(3,1,1,1,$V$1)","v":"'Credit Risk'!$A$3"},"=\"Credit Risk\" & \"($\"&IF(CONFIGURATION!$B$12>1,MID(CONFIGURATION!$B$12,2,LEN(CONFIGURATION!$B$12)),\"\")&\")\"",{"$f":"IF(_xlfn.FORMULATEXT(INDIRECT(V5))=W5,0,1)","v":0},{"$f":"ADDRESS(3,1,1,1,$Y$1)","v":"'Premium Risk'!$A$3"},"=\"Premium Risk\" & \"($\"&IF(CONFIGURATION!$B$12>1,MID(CONFIGURATION!$B$12,2,LEN(CONFIGURATION!$B$12)),\"\")&\")\"",0,{"$f":"ADDRESS(3,1,1,1,$AB$1)","v":"'Reserve Risk'!$A$3"},"=\"Reserve Risk\"& \"($\"&IF(CONFIGURATION!$B$12>1,MID(CONFIGURATION!$B$12,2,LEN(CONFIGURATION!$B$12)),\"\")&\")\"",0,{"$f":"ADDRESS(3,1,1,1,$AE$1)","v":"'Catastrophe Risk'!$A$3"},"=\"Catastrophe Risk\" & \"($\"&IF(CONFIGURATION!$B$12>1,MID(CONFIGURATION!$B$12,2,LEN(CONFIGURATION!$B$12)),\"\")&\")\"",0]
[{"$f":"ADDRESS(4,4,1,1,$A$1)","v":"Summary!$D$4"},"=TEXT('Company Information'!C3,\"DD mmmm yyyy\")",0,{"$f":"ADDRESS(3,3,1,1,$D$1)","v":"'Fixed Income Investments'!$C$3"},"='Company Information'!C3",{"$f":"IF(_xlfn.FORMULATEXT(INDIRECT(D6))=E6,0,1)","v":0},{"$f":"ADDRESS(3,3,1,1,$G$1)","v":"'Equity Investments'!$C$3"},"='Company Information'!C3",{"$f":"IF(_xlfn.FORMULATEXT(INDIRECT(G6))=H6,0,1)","v":0},{"$f":"ADDRESS(3,3,1,1,$J$1)","v":"'Interest Rate-Liquidity Risk'!$C$3"},"='Company Information'!C3",{"$f":"IF(_xlfn.FORMULATEXT(INDIRECT(J6))=K6,0,1)","v":0},{"$f":"ADDRESS(3,5,1,1,$M$1)","v":"'Currency Risk'!$E$3"},"='Company Information'!C3",{"$f":"IF(_xlfn.FORMULATEXT(INDIRECT(M6))=N6,0,1)","v":0},{"$f":"ADDRESS(3,3,1,1,$P$1)","v":"'Concentration Risk'!$C$3"},"='Company Information'!C3",{"$f":"IF(_xlfn.FORMULATEXT(INDIRECT(P6))=Q6,0,1)","v":0},{"$f":"ADDRESS(3,3,1,1,$S$1)","v":"'Geographic Diversification'!$C$3"},"='Company Information'!C3",0,{"$f":"ADDRESS(3,4,1,1,$V$1)","v":"'Credit Risk'!$D$3"},"='Company Information'!C3",{"$f":"IF(_xlfn.FORMULATEXT(INDIRECT(V6))=W6,0,1)","v":0},{"$f":"ADDRESS(3,3,1,1,$Y$1)","v":"'Premium Risk'!$C$3"},"='Company Information'!C3",0,{"$f":"ADDRESS(3,3,1,1,$AB$1)","v":"'Reserve Risk'!$C$3"},"='Company Information'!$C$3",0,{"$f":"ADDRESS(3,3,1,1,$AE$1)","v":"'Catastrophe Risk'!$C$3"},"='Company Information'!C3",0]
[{"$f":"ADDRESS(5,1,1,1,$A$1)","v":"Summary!$A$5"},"=\"(\"&IF(CONFIGURATION!$B$12>1,MID(CONFIGURATION!$B$12,2,LEN(CONFIGURATION!$B$12)),\"\")&\")\"",0,{"$f":"ADDRESS(12,7,1,1,$D$1)","v":"'Fixed Income Investments'!$G$12"},"='Schedule IIB'!D13+'Schedule IIC'!D13+(MAX(0,'Schedule IID'!D13-'Schedule IID'!F13))+'Schedule IIE'!D13+'Schedule IIF'!D13",{"$f":"IF(_xlfn.FORMULATEXT(INDIRECT(D7))=E7,0,1)","v":0},{"$f":"ADDRESS(3,4,1,1,$G$1)","v":"'Equity Investments'!$D$3"},-1,{"$f":"IF(INDIRECT(G7)=H7,0,1)","v":0},{"$f":"ADDRESS(10,4,1,1,$J$1)","v":"'Interest Rate-Liquidity Risk'!$D$10"},"=SUM('Schedule IIB'!X13:X21)+SUM('Schedule IIC'!X13:X21)",{"$f":"IF(_xlfn.FORMULATEXT(INDIRECT(J7))=K7,0,1)","v":0},{"$f":"ADDRESS(5,3,1,1,$M$1)","v":"'Currency Risk'!$C$5"},-1,{"$f":"IF(INDIRECT(M7)=N7,0,1)","v":0},{"$f":"ADDRESS(9,4,1,1,$P$1)","v":"'Concentration Risk'!$D$9"},"Cash and Cash Equivalent",{"$f":"IF(INDIRECT(P7)=Q7,0,1)","v":0},{"$f":"ADDRESS(9,4,1,1,$S$1)","v":"'Geographic Diversification'!$D$9"},"=SUM(I9:Z9)",0,{"$f":"ADDRESS(11,6,1,1,$V$1)","v":"'Credit Risk'!$F$11"},"='Form 1SFS (Consolidated)'!M66",{"$f":"IF(_xlfn.FORMULATEXT(INDIRECT(V7))=W7,0,1)","v":0},{"$f":"ADDRESS(11,4,1,1,$Y$1)","v":"'Premium Risk'!$D$11"},"='Schedule IVD'!Q9",0,{"$f":"ADDRESS(11,4,1,1,$AB$1)","v":"'Reserve Risk'!$D$11"},"=+'Schedule III'!D10",0,{"$f":"ADDRESS(7,2,1,1,$AE$1)","v":"'Catastrophe Risk'!$B$7"},"=IF('Company Information'!F11=\"IIGB\",\"(a)  Gross Probable Maximum Loss (if property catastrophe writer)\",\"(a)  Gross Probable Maximum Loss\")",0]
[{"$f":"ADDRESS(11,12,1,1,$A$1)","v":"Summary!$L$11"},"='Form 1SFS (Consolidated)'!$M$149",0,{"$f":"ADDRESS(12,8,1,1,$D$1)","v":"'Fixed Income Investments'!$H$12"},0,{"$f":"IF(INDIRECT(D8)=E8,0,1)","v":0},{"$f":"ADDRESS(3,5,1,1,$G$1)","v":"'Equity Investments'!$E$3"},"=D3-1",{"$f":"IF(_xlfn.FORMULATEXT(INDIRECT(G8))=H8,0,1)","v":0},{"$f":"ADDRESS(10,5,1,1,$J$1)","v":"'Interest Rate-Liquidity Risk'!$E$10"},"=IF('Company Information'!F11=\"IIGB\",IF(('Schedule V'!$H$12-'Schedule V'!$H$10)>3.5,3.5,MAX(1,'Schedule V'!$H$10-'Schedule V'!$H$12,'Schedule V'!$H$12-'Schedule V'!$H$10)),IF('Schedule V'!$H$10-'Schedule V'!$H$12>=1,'Schedule V'!$H$10-'Schedule V'!$H$12,IF('Schedule V'!$H$12-'Schedule V'!$H$10>=1,'Schedule V'!$H$12-'Schedule V'!$H$10,1)))",{"$f":"IF(_xlfn.FORMULATEXT(INDIRECT(J8))=K8,0,1)","v":0},{"$f":"ADDRESS(5,4,1,1,$M$1)","v":"'Currency Risk'!$D$5"},"=C5-1",{"$f":"IF(_xlfn.FORMULATEXT(INDIRECT(M8))=N8,0,1)","v":0},{"$f":"ADDRESS(10,2,1,1,$P$1)","v":"'Concentration Risk'!$B$10"},"BSCR Rating 0",{"$f":"IF(INDIRECT(P8)=Q8,0,1)","v":0},{"$f":"ADDRESS(9,5,1,1,$S$1)","v":"'Geographic Diversification'!$E$9"},"=SUMSQ(I9:Z9)",0,{"$f":"ADDRESS(11,7,1,1,$V$1)","v":"'Credit Risk'!$G$11"},0.05,{"$f":"IF(INDIRECT(V8)=W8,0,1)","v":0},{"$f":"ADDRESS(11,5,1,1,$Y$1)","v":"'Premium Risk'!$E$11"},"='Schedule IVD'!O9",0,{"$f":"ADDRESS(11,5,1,1,$AB$1)","v":"'Reserve Risk'!$E$11"},"=+'Schedule III'!F10",0,{"$f":"ADDRESS(7,3,1,1,$AE$1)","v":"'Catastrophe Risk'!$C$7"},"=IF('Company Information'!F11=\"IIGB\",\"Schedule V, Line (f)\",\"Schedule V, Line (g)\")",0]
[{"$f":"ADDRESS(11,17,1,1,$A$1)","v":"Summary!$Q$11"},"='Form 1SFS (Consolidated)'!$M$12",0,{"$f":"ADDRESS(12,9,1,1,$D$1)","v":"'Fixed Income Investments'!$I$12"},"=IF(G12<0,0,G12*H12)",{"$f":"IF(_xlfn.FORMULATEXT(INDIRECT(D9))=E9,0,1)","v":0},{"$f":"ADDRESS(3,6,1,1,$G$1)","v":"'Equity Investments'!$F$3"},"=E3-1",0,{"$f":"ADDRESS(10,6,1,1,$J$1)","v":"'Interest Rate-Liquidity Risk'!$F$10"},0.02,{"$f":"IF(INDIRECT(J9)=K9,0,1)","v":0},{"$f":"ADDRESS(5,5,1,1,$M$1)","v":"'Currency Risk'!$E$5"},"=D5-1",0,{"$f":"ADDRESS(10,4,1,1,$P$1)","v":"'Concentration Risk'!$D$10"},"=SUMIFS('Schedule XXIA'!$M$8:$M$57,'Schedule XXIA'!$J$8:$J$57,$D$9,'Schedule XXIA'!$L$8:$L$57,$B10)",{"$f":"IF(_xlfn.FORMULATEXT(INDIRECT(P9))=Q9,0,1)","v":0},{"$f":"ADDRESS(9,6,1,1,$S$1)","v":"'Geographic Diversification'!$F$9"},"=(IF(D9>0,E9/D9^2,1))",0,{"$f":"ADDRESS(11,8,1,1,$V$1)","v":"'Credit Risk'!$H$11"},"=IF($F$11<0,0,$F$11*$G$11)",{"$f":"IF(_xlfn.FORMULATEXT(INDIRECT(V9))=W9,0,1)","v":0},{"$f":"ADDRESS(11,6,1,1,$Y$1)","v":"'Premium Risk'!$F$11"},"='Geographic Diversification'!H9",0,{"$f":"ADDRESS(11,6,1,1,$AB$1)","v":"'Reserve Risk'!$F$11"},"='Geographic Diversification'!H40",0,{"$f":"ADDRESS(7,5,1,1,$AE$1)","v":"'Catastrophe Risk'!$E$7"},"='Schedule V'!H16",0]
[{"$f":"ADDRESS(12,5,1,1,$A$1)","v":"Summary!$E$12"},"='Information Sheet'!$H$16",0,{"$f":"ADDRESS(13,7,1,1,$D$1)","v":"'Fixed Income Investments'!$G$13"},"='Schedule IIB'!D14+'Schedule IIC'!D14+(MAX(0,'Schedule IID'!D14-'Schedule IID'!F14))+'Schedule IIE'!D14+'Schedule IIF'!D14",{"$f":"IF(_xlfn.FORMULATEXT(INDIRECT(D10))=E10,0,1)","v":0},{"$f":"ADDRESS(3,7,1,1,$G$1)","v":"'Equity Investments'!$G$3"},"=F3-1",0,{"$f":"ADDRESS(10,7,1,1,$J$1)","v":"'Interest Rate-Liquidity Risk'!$G$10"},"=IF($E$10<0,0,$D$10*$E$10*$F$10)",{"$f":"IF(_xlfn.FORMULATEXT(INDIRECT(J10))=K10,0,1)","v":0},{"$f":"ADDRESS(5,6,1,1,$M$1)","v":"'Currency Risk'!$F$5"},"=E5-1",0,{"$f":"ADDRESS(10,5,1,1,$P$1)","v":"'Concentration Risk'!$E$10"},"=+'Fixed Income Investments (old)'!E83",{"$f":"IF(_xlfn.FORMULATEXT(INDIRECT(P10))=Q10,0,1)","v":0},{"$f":"ADDRESS(9,7,1,1,$S$1)","v":"'Geographic Diversification'!$G$9"},"=D9*(0.75+0.25*F9)",0,{"$f":"ADDRESS(13,6,1,1,$V$1)","v":"'Credit Risk'!$F$13"},"=SUM(F11:F11)",{"$f":"IF(_xlfn.FORMULATEXT(INDIRECT(V10))=W10,0,1)","v":0},{"$f":"ADDRESS(11,7,1,1,$Y$1)","v":"'Premium Risk'!$G$11"},"=IF(IFERROR(F11/E11,1)<0,1,IFERROR(F11/E11,1))",0,{"$f":"ADDRESS(11,7,1,1,$AB$1)","v":"'Reserve Risk'!$G$11"},0.46158858246802098,{"$f":"IF(INDIRECT(AB10)=AC10,0,1)","v":0},{"$f":"ADDRESS(9,2,1,1,$AE$1)","v":"'Catastrophe Risk'!$B$9"},"=IF('Company Information'!F11=\"IIGB\",\"(b)  Net Probable Maximum Loss (if property catastrophe writer)\",\"(b)  Net Probable Maximum Loss\")",0]
[{"$f":"ADDRESS(12,12,1,1,$A$1)","v":"Summary!$L$12"},"='Information Sheet'!$H$16",0,{"$f":"ADDRESS(13,8,1,1,$D$1)","v":"'Fixed Income Investments'!$H$13"},4.0000000000000001E-3,{"$f":"IF(INDIRECT(D11)=E11,0,1)","v":0},{"$f":"ADDRESS(3,8,1,1,$G$1)","v":"'Equity Investments'!$H$3"},"=G3-1",0,{"$f":"ADDRESS(11,4,1,1,$J$1)","v":"'Interest Rate-Liquidity Risk'!$D$11"},"=SUM('Schedule IIB'!X42:X49)+SUM('Schedule IIC'!X22:X25)",{"$f":"IF(_xlfn.FORMULATEXT(INDIRECT(J11))=K11,0,1)","v":0},{"$f":"ADDRESS(5,7,1,1,$M$1)","v":"'Currency Risk'!$G$5"},"=F5-1",0,{"$f":"ADDRESS(10,6,1,1,$P$1)","v":"'Concentration Risk'!$F$10"},"=MAX(0,(D10*E10))",{"$f":"IF(_xlfn.FORMULATEXT(INDIRECT(P11))=Q11,0,1)","v":0},{"$f":"ADDRESS(9,8,1,1,$S$1)","v":"'Geographic Diversification'!$H$9"},"=IF('Schedule IVE'!AB9=\"True\",G9,'Schedule IVD'!O9)",0,{"$f":"ADDRESS(13,8,1,1,$V$1)","v":"'Credit Risk'!$H$13"},"=IF(SUM(H11:H11)>=0,SUM(H11:H11),0)",{"$f":"IF(_xlfn.FORMULATEXT(INDIRECT(V11))=W11,0,1)","v":0},{"$f":"ADDRESS(11,8,1,1,$Y$1)","v":"'Premium Risk'!$H$11"},"='Schedule IVD'!I9*$G11",0,{"$f":"ADDRESS(11,8,1,1,$AB$1)","v":"'Reserve Risk'!$H$11"},"=IF($F$11<0,0,$F$11*$G$11)",{"$f":"IF(_xlfn.FORMULATEXT(INDIRECT(AB11))=AC11,0,1)","v":0},{"$f":"ADDRESS(9,3,1,1,$AE$1)","v":"'Catastrophe Risk'!$C$9"},"=IF('Company Information'!F11=\"IIGB\",\"Schedule V, Line (g)\",\"Schedule V, Line (h)\")",0]
[{"$f":"ADDRESS(12,17,1,1,$A$1)","v":"Summary!$Q$12"},"='Form 1SFS (Consolidated)'!$M$29",0,{"$f":"ADDRESS(13,9,1,1,$D$1)","v":"'Fixed Income Investments'!$I$13"},"=IF(G13<0,0,G13*H13)",{"$f":"IF(_xlfn.FORMULATEXT(INDIRECT(D12))=E12,0,1)","v":0},{"$f":"ADDRESS(3,9,1,1,$G$1)","v":"'Equity Investments'!$I$3"},"=H3-1",0,{"$f":"ADDRESS(11,5,1,1,$J$1)","v":"'Interest Rate-Liquidity Risk'!$E$11"},"=IF('Company Information'!F11=\"IIGB\",IF(('Schedule V'!$H$12-'Schedule V'!$H$10)>3.5,3.5,MAX(1,'Schedule V'!$H$10-'Schedule V'!$H$12,'Schedule V'!$H$12-'Schedule V'!$H$10)),IF('Schedule V'!$H$10-'Schedule V'!$H$12>=1,'Schedule V'!$H$10-'Schedule V'!$H$12,IF('Schedule V'!$H$12-'Schedule V'!$H$10>=1,'Schedule V'!$H$12-'Schedule V'!$H$10,1)))",{"$f":"IF(_xlfn.FORMULATEXT(INDIRECT(J12))=K12,0,1)","v":0},{"$f":"ADDRESS(5,8,1,1,$M$1)","v":"'Currency Risk'!$H$5"},"=G5-1",0,{"$f":"ADDRESS(11,2,1,1,$P$1)","v":"'Concentration Risk'!$B$11"},"BSCR Rating 1",{"$f":"IF(INDIRECT(P12)=Q12,0,1)","v":0},{"$f":"ADDRESS(9,9,1,1,$S$1)","v":"'Geographic Diversification'!$I$9"},"=+'Schedule IVE'!E9",0,{"$f":"ADDRESS(17,6,1,1,$V$1)","v":"'Credit Risk'!$F$17"},"='Form 1SFS (Consolidated)'!M64",{"$f":"IF(_xlfn.FORMULATEXT(INDIRECT(V12))=W12,0,1)","v":0},{"$f":"ADDRESS(11,9,1,1,$Y$1)","v":"'Premium Risk'!$I$11"},"='Schedule IVD'!K9*$G11",0,{"$f":"ADDRESS(12,4,1,1,$AB$1)","v":"'Reserve Risk'!$D$12"},"=+'Schedule III'!D11",{"$f":"IF(_xlfn.FORMULATEXT(INDIRECT(AB12))=AC12,0,1)","v":0},{"$f":"ADDRESS(9,5,1,1,$AE$1)","v":"'Catastrophe Risk'!$E$9"},"='Schedule V'!H18",0]
[{"$f":"ADDRESS(13,17,1,1,$A$1)","v":"Summary!$Q$13"},"='Form 1SFS (Consolidated)'!$M$35",0,{"$f":"ADDRESS(14,7,1,1,$D$1)","v":"'Fixed Income Investments'!$G$14"},"='Schedule IIB'!D15+'Schedule IIC'!D15+(MAX(0,'Schedule IID'!D15-'Schedule IID'!F15))+'Schedule IIE'!D15+'Schedule IIF'!D15",{"$f":"IF(_xlfn.FORMULATEXT(INDIRECT(D13))=E13,0,1)","v":0},{"$f":"ADDRESS(3,10,1,1,$G$1)","v":"'Equity Investments'!$J$3"},"=I3-1",0,{"$f":"ADDRESS(11,6,1,1,$J$1)","v":"'Interest Rate-Liquidity Risk'!$F$11"},0.02,{"$f":"IF(INDIRECT(J13)=K13,0,1)","v":0},{"$f":"ADDRESS(5,9,1,1,$M$1)","v":"'Currency Risk'!$I$5"},"=H5-1",0,{"$f":"ADDRESS(11,4,1,1,$P$1)","v":"'Concentration Risk'!$D$11"},"=SUMIFS('Schedule XXIA'!$M$8:$M$57,'Schedule XXIA'!$J$8:$J$57,$D$9,'Schedule XXIA'!$L$8:$L$57,$B11)",{"$f":"IF(_xlfn.FORMULATEXT(INDIRECT(P13))=Q13,0,1)","v":0},{"$f":"ADDRESS(9,10,1,1,$S$1)","v":"'Geographic Diversification'!$J$9"},"=+'Schedule IVE'!F9",0,{"$f":"ADDRESS(17,7,1,1,$V$1)","v":"'Credit Risk'!$G$17"},2.5000000000000001E-2,{"$f":"IF(INDIRECT(V13)=W13,0,1)","v":0},{"$f":"ADDRESS(11,10,1,1,$Y$1)","v":"'Premium Risk'!$J$11"},"='Schedule IVD'!M9*$G11",0,{"$f":"ADDRESS(12,5,1,1,$AB$1)","v":"'Reserve Risk'!$E$12"},"=+'Schedule III'!F11",{"$f":"IF(_xlfn.FORMULATEXT(INDIRECT(AB13))=AC13,0,1)","v":0},{"$f":"ADDRESS(11,3,1,1,$AE$1)","v":"'Catastrophe Risk'!$C$11"},"=IF('Company Information'!F11=\"IIGB\",\"Schedule V, Line (h)\",\"Schedule V, Line (i)\")",0]
[{"$f":"ADDRESS(14,17,1,1,$A$1)","v":"Summary!$Q$14"},"='Form 1SFS (Consolidated)'!$M$51",0,{"$f":"ADDRESS(14,8,1,1,$D$1)","v":"'Fixed Income Investments'!$H$14"},8.0000000000000002E-3,{"$f":"IF(INDIRECT(D14)=E14,0,1)","v":0},{"$f":"ADDRESS(3,11,1,1,$G$1)","v":"'Equity Investments'!$K$3"},"=J3-1",0,{"$f":"ADDRESS(11,7,1,1,$J$1)","v":"'Interest Rate-Liquidity Risk'!$G$11"},"=IF($E$11<0,0, $D$11*$E$11*$F$11)",{"$f":"IF(_xlfn.FORMULATEXT(INDIRECT(J14))=K14,0,1)","v":0},{"$f":"ADDRESS(5,10,1,1,$M$1)","v":"'Currency Risk'!$J$5"},"=I5-1",0,{"$f":"ADDRESS(11,5,1,1,$P$1)","v":"'Concentration Risk'!$E$11"},"=+'Fixed Income Investments (old)'!E84",{"$f":"IF(_xlfn.FORMULATEXT(INDIRECT(P14))=Q14,0,1)","v":0},{"$f":"ADDRESS(9,11,1,1,$S$1)","v":"'Geographic Diversification'!$K$9"},"=+'Schedule IVE'!G9",0,{"$f":"ADDRESS(17,8,1,1,$V$1)","v":"'Credit Risk'!$H$17"},"=IF($F$17<0,0,$F$17*$G$17)",{"$f":"IF(_xlfn.FORMULATEXT(INDIRECT(V14))=W14,0,1)","v":0},{"$f":"ADDRESS(11,11,1,1,$Y$1)","v":"'Premium Risk'!$K$11"},0,{"$f":"IF(INDIRECT(Y14)=Z14,0,1)","v":0},{"$f":"ADDRESS(12,6,1,1,$AB$1)","v":"'Reserve Risk'!$F$12"},"='Geographic Diversification'!H41",{"$f":"IF(_xlfn.FORMULATEXT(INDIRECT(AB14))=AC14,0,1)","v":0},{"$f":"ADDRESS(11,5,1,1,$AE$1)","v":"'Catastrophe Risk'!$E$11"},"='Schedule V'!H20",0]
[{"$f":"ADDRESS(15,17,1,1,$A$1)","v":"Summary!$Q$15"},"='Form 1SFS (Consolidated)'!$M$64",0,{"$f":"ADDRESS(14,9,1,1,$D$1)","v":"'Fixed Income Investments'!$I$14"},"=IF(G14<0,0,G14*H14)",{"$f":"IF(_xlfn.FORMULATEXT(INDIRECT(D15))=E15,0,1)","v":0},{"$f":"ADDRESS(3,12,1,1,$G$1)","v":"'Equity Investments'!$L$3"},"=K3-1",0,{"$f":"ADDRESS(12,4,1,1,$J$1)","v":"'Interest Rate-Liquidity Risk'!$D$12"},"=SUM('Schedule IIB'!X22:X25)+SUM('Schedule IIC'!X22:X25)",{"$f":"IF(_xlfn.FORMULATEXT(INDIRECT(J15))=K15,0,1)","v":0},{"$f":"ADDRESS(5,12,1,1,$M$1)","v":"'Currency Risk'!$L$5"},"=J5-1",0,{"$f":"ADDRESS(11,6,1,1,$P$1)","v":"'Concentration Risk'!$F$11"},"=MAX(0,(D11*E11))",{"$f":"IF(_xlfn.FORMULATEXT(INDIRECT(P15))=Q15,0,1)","v":0},{"$f":"ADDRESS(9,12,1,1,$S$1)","v":"'Geographic Diversification'!$L$9"},"=+'Schedule IVE'!H9",0,{"$f":"ADDRESS(18,6,1,1,$V$1)","v":"'Credit Risk'!$F$18"},"='Form 1SFS (Consolidated)'!M77",{"$f":"IF(_xlfn.FORMULATEXT(INDIRECT(V15))=W15,0,1)","v":0},{"$f":"ADDRESS(11,12,1,1,$Y$1)","v":"'Premium Risk'!$L$11"},0.115,{"$f":"IF(INDIRECT(Y15)=Z15,0,1)","v":0},{"$f":"ADDRESS(12,7,1,1,$AB$1)","v":"'Reserve Risk'!$G$12"},0.43844984238218698,{"$f":"IF(INDIRECT(AB15)=AC15,0,1)","v":0},{"$f":"ADDRESS(13,5,1,1,$AE$1)","v":"'Catastrophe Risk'!$E$13"},0.4,{"$f":"IF(INDIRECT(AE15)=AF15,0,1)","v":0}]
[{"$f":"ADDRESS(16,17,1,1,$A$1)","v":"Summary!$Q$16"},"='Form 1SFS (Consolidated)'!$M$66",0,{"$f":"ADDRESS(15,7,1,1,$D$1)","v":"'Fixed Income Investments'!$G$15"},"='Schedule IIB'!D16+'Schedule IIC'!D16+(MAX(0,'Schedule IID'!D16-'Schedule IID'!F16))+'Schedule IIE'!D16+'Schedule IIF'!D16",{"$f":"IF(_xlfn.FORMULATEXT(INDIRECT(D16))=E16,0,1)","v":0},{"$f":"ADDRESS(3,14,1,1,$G$1)","v":"'Equity Investments'!$N$3"},"=L3-1",0,{"$f":"ADDRESS(12,5,1,1,$J$1)","v":"'Interest Rate-Liquidity Risk'!$E$12"},"=IF('Company Information'!F11=\"IIGB\",IF(('Schedule V'!$H$12-'Schedule V'!$H$10)>3.5,3.5,MAX(1,'Schedule V'!$H$10-'Schedule V'!$H$12,'Schedule V'!$H$12-'Schedule V'!$H$10)),IF('Schedule V'!$H$10-'Schedule V'!$H$12>=1,'Schedule V'!$H$10-'Schedule V'!$H$12,IF('Schedule V'!$H$12-'Schedule V'!$H$10>=1,'Schedule V'!$H$12-'Schedule V'!$H$10,1)))",{"$f":"IF(_xlfn.FORMULATEXT(INDIRECT(J16))=K16,0,1)","v":0},{"$f":"ADDRESS(5,13,1,1,$M$1)","v":"'Currency Risk'!$M$5"},"=L5-1",0,{"$f":"ADDRESS(12,2,1,1,$P$1)","v":"'Concentration Risk'!$B$12"},"BSCR Rating 2",{"$f":"IF(INDIRECT(P16)=Q16,0,1)","v":0},{"$f":"ADDRESS(9,13,1,1,$S$1)","v":"'Geographic Diversification'!$M$9"},"=+'Schedule IVE'!I9",0,{"$f":"ADDRESS(18,7,1,1,$V$1)","v":"'Credit Risk'!$G$18"},2.5000000000000001E-2,{"$f":"IF(INDIRECT(V16)=W16,0,1)","v":0},{"$f":"ADDRESS(11,13,1,1,$Y$1)","v":"'Premium Risk'!$M$11"},"=+L11*T11",{"$f":"IF(_xlfn.FORMULATEXT(INDIRECT(Y16))=Z16,0,1)","v":0},{"$f":"ADDRESS(12,8,1,1,$AB$1)","v":"'Reserve Risk'!$H$12"},"=IF($F$12<0,0,$F$12*$G$12)",{"$f":"IF(_xlfn.FORMULATEXT(INDIRECT(AB16))=AC16,0,1)","v":0},{"$f":"ADDRESS(15,2,1,1,$AE$1)","v":"'Catastrophe Risk'!$B$15"},"=IF('Company Information'!F11=\"IIGB\",\"(c)  Property Catastrophe Premium\",\"(e)  Property Catastrophe Premium\")",{"$f":"IF(_xlfn.FORMULATEXT(INDIRECT(AE16))=AF16,0,1)","v":0}]
[{"$f":"ADDRESS(17,17,1,1,$A$1)","v":"Summary!$Q$17"},"='Form 1SFS (Consolidated)'!$M$71",0,{"$f":"ADDRESS(15,8,1,1,$D$1)","v":"'Fixed Income Investments'!$H$15"},1.4999999999999999E-2,{"$f":"IF(INDIRECT(D17)=E17,0,1)","v":0},{"$f":"ADDRESS(3,16,1,1,$G$1)","v":"'Equity Investments'!$P$3"},"=N3-1",0,{"$f":"ADDRESS(12,6,1,1,$J$1)","v":"'Interest Rate-Liquidity Risk'!$F$12"},0.02,{"$f":"IF(INDIRECT(J17)=K17,0,1)","v":0},{"$f":"ADDRESS(5,14,1,1,$M$1)","v":"'Currency Risk'!$N$5"},"=M5-1",0,{"$f":"ADDRESS(12,4,1,1,$P$1)","v":"'Concentration Risk'!$D$12"},"=SUMIFS('Schedule XXIA'!$M$8:$M$57,'Schedule XXIA'!$J$8:$J$57,$D$9,'Schedule XXIA'!$L$8:$L$57,$B12)",{"$f":"IF(_xlfn.FORMULATEXT(INDIRECT(P17))=Q17,0,1)","v":0},{"$f":"ADDRESS(9,14,1,1,$S$1)","v":"'Geographic Diversification'!$N$9"},"=+'Schedule IVE'!J9",0,{"$f":"ADDRESS(18,8,1,1,$V$1)","v":"'Credit Risk'!$H$18"},"=IF($F$18<0,0,$F$18*$G$18)",{"$f":"IF(_xlfn.FORMULATEXT(INDIRECT(V17))=W17,0,1)","v":0},{"$f":"ADDRESS(11,14,1,1,$Y$1)","v":"'Premium Risk'!$N$11"},"=IF($H11<0,0,$H11*$K11)+IF($I11<0,0,$I11*$L11)+IF($J11<0,0,$J11*$M11)",{"$f":"IF(_xlfn.FORMULATEXT(INDIRECT(Y17))=Z17,0,1)","v":0},{"$f":"ADDRESS(13,4,1,1,$AB$1)","v":"'Reserve Risk'!$D$13"},"=+'Schedule III'!D12",{"$f":"IF(_xlfn.FORMULATEXT(INDIRECT(AB17))=AC17,0,1)","v":0},{"$f":"ADDRESS(15,5,1,1,$AE$1)","v":"'Catastrophe Risk'!$E$15"},"=IF('Schedule IVD'!G9=0,'Schedule IVD'!E9,'Schedule IVD'!G9)",{"$f":"IF(_xlfn.FORMULATEXT(INDIRECT(AE17))=AF17,0,1)","v":0}]
[{"$f":"ADDRESS(18,3,1,1,$A$1)","v":"Summary!$C$18"},"=IF('Company Information'!F11=\"Class 4\",\"\",\"20% of 1st $6M NPW\")",0,{"$f":"ADDRESS(15,9,1,1,$D$1)","v":"'Fixed Income Investments'!$I$15"},"=IF(G15<0,0,G15*H15)",{"$f":"IF(_xlfn.FORMULATEXT(INDIRECT(D18))=E18,0,1)","v":0},{"$f":"ADDRESS(3,18,1,1,$G$1)","v":"'Equity Investments'!$R$3"},"=P3-1",0,{"$f":"ADDRESS(12,7,1,1,$J$1)","v":"'Interest Rate-Liquidity Risk'!$G$12"},"=IF($E$12<0,0, $D$12*$E$12*$F$12)",{"$f":"IF(_xlfn.FORMULATEXT(INDIRECT(J18))=K18,0,1)","v":0},{"$f":"ADDRESS(5,15,1,1,$M$1)","v":"'Currency Risk'!$O$5"},"=N5-1",0,{"$f":"ADDRESS(12,5,1,1,$P$1)","v":"'Concentration Risk'!$E$12"},"=+'Fixed Income Investments (old)'!E85",{"$f":"IF(_xlfn.FORMULATEXT(INDIRECT(P18))=Q18,0,1)","v":0},{"$f":"ADDRESS(9,15,1,1,$S$1)","v":"'Geographic Diversification'!$O$9"},"=+'Schedule IVE'!K9",0,{"$f":"ADDRESS(20,6,1,1,$V$1)","v":"'Credit Risk'!$F$20"},"=SUM(F17:F18)",{"$f":"IF(_xlfn.FORMULATEXT(INDIRECT(V18))=W18,0,1)","v":0},{"$f":"ADDRESS(11,17,1,1,$Y$1)","v":"'Premium Risk'!$Q$11"},"=IF(H11=E11,MAX(D11*K11,0),IF(E11=F11,IF(D11<0,0,D11*(H11/F11)*K11),IF(D11<0,0,D11*(H11/E11)*K11)))\n+IF(I11=E11,MAX(D11*L11,0),IF(E11=F11,IF(D11<0,0,D11*(I11/F11)*L11),IF(D11<0,0,D11*(I11/E11)*L11)))\n+IF(J11=E11,MAX(D11*M11,0),IF(E11=F11,IF(D11<0,0,D11*(J11/F11)*M11),IF(D11<0,0,D11*(J11/E11)*M11)))",{"$f":"IF(_xlfn.FORMULATEXT(INDIRECT(Y18))=Z18,0,1)","v":0},{"$f":"ADDRESS(13,5,1,1,$AB$1)","v":"'Reserve Risk'!$E$13"},"=+'Schedule III'!F12",{"$f":"IF(_xlfn.FORMULATEXT(INDIRECT(AB18))=AC18,0,1)","v":0},{"$f":"ADDRESS(17,5,1,1,$AE$1)","v":"'Catastrophe Risk'!$E$17"},"=$E$11/$E$13+IF($E$15>0,$E$15,0)",{"$f":"IF(_xlfn.FORMULATEXT(INDIRECT(AE18))=AF18,0,1)","v":0}]
[{"$f":"ADDRESS(18,11,1,1,$A$1)","v":"Summary!$K$18"},"=IF(CONFIGURATION!$B$12=1000,IF('Company Information'!$F$11=\"Class 4\",\"\",MIN(K16*20%,1200)),IF('Company Information'!$F$11=\"Class 4\",\"\",MIN(K16*20%,1200000)))",0,{"$f":"ADDRESS(16,7,1,1,$D$1)","v":"'Fixed Income Investments'!$G$16"},"='Schedule IIB'!D17+'Schedule IIC'!D17+(MAX(0,'Schedule IID'!D17-'Schedule IID'!F17))+'Schedule IIE'!D17+'Schedule IIF'!D17",{"$f":"IF(_xlfn.FORMULATEXT(INDIRECT(D19))=E19,0,1)","v":0},{"$f":"ADDRESS(11,4,1,1,$G$1)","v":"'Equity Investments'!$D$11"},"='Schedule IIB'!D39+'Schedule IIC'!D39+'Schedule IID'!D39+'Schedule IIE'!D39+'Schedule IIF'!D39",0,{"$f":"ADDRESS(14,4,1,1,$J$1)","v":"'Interest Rate-Liquidity Risk'!$D$14"},"=SUM(D10:D12)",{"$f":"IF(_xlfn.FORMULATEXT(INDIRECT(J19))=K19,0,1)","v":0},{"$f":"ADDRESS(5,16,1,1,$M$1)","v":"'Currency Risk'!$P$5"},"=O5-1",0,{"$f":"ADDRESS(12,6,1,1,$P$1)","v":"'Concentration Risk'!$F$12"},"=MAX(0,(D12*E12))",{"$f":"IF(_xlfn.FORMULATEXT(INDIRECT(P19))=Q19,0,1)","v":0},{"$f":"ADDRESS(9,16,1,1,$S$1)","v":"'Geographic Diversification'!$P$9"},"=+'Schedule IVE'!L9",0,{"$f":"ADDRESS(20,8,1,1,$V$1)","v":"'Credit Risk'!$H$20"},"=IF(SUM(H17:H18)>=0,SUM(H17:H18),0)",{"$f":"IF(_xlfn.FORMULATEXT(INDIRECT(V19))=W19,0,1)","v":0},{"$f":"ADDRESS(11,20,1,1,$Y$1)","v":"'Premium Risk'!$T$11"},0.5,{"$f":"IF(INDIRECT(Y19)=Z19,0,1)","v":0},{"$f":"ADDRESS(13,6,1,1,$AB$1)","v":"'Reserve Risk'!$F$13"},"='Geographic Diversification'!H42",{"$f":"IF(_xlfn.FORMULATEXT(INDIRECT(AB19))=AC19,0,1)","v":0},{"$f":"ADDRESS(19,2,1,1,$AE$1)","v":"'Catastrophe Risk'!$B$19"},"=IF('Company Information'!F11=\"IIGB\",\"(d)  Credit Risk Capital Factor\",\"(g)  Credit Risk Capital Factor\")",{"$f":"IF(_xlfn.FORMULATEXT(INDIRECT(AE19))=AF19,0,1)","v":0}]
[{"$f":"ADDRESS(18,17,1,1,$A$1)","v":"Summary!$Q$18"},"='Form 1SFS (Consolidated)'!$M$73",0,{"$f":"ADDRESS(16,8,1,1,$D$1)","v":"'Fixed Income Investments'!$H$16"},0.03,{"$f":"IF(INDIRECT(D20)=E20,0,1)","v":0},{"$f":"ADDRESS(11,5,1,1,$G$1)","v":"'Equity Investments'!$E$11"},"='Schedule IIB'!F39+'Schedule IIC'!F39+'Schedule IID'!F39+'Schedule IIE'!F39+'Schedule IIF'!F39",0,{"$f":"ADDRESS(14,7,1,1,$J$1)","v":"'Interest Rate-Liquidity Risk'!$G$14"},"=IF(SUM(G10:G12)>=0,SUM(G10:G12),0)",{"$f":"IF(_xlfn.FORMULATEXT(INDIRECT(J20))=K20,0,1)","v":0},{"$f":"ADDRESS(5,17,1,1,$M$1)","v":"'Currency Risk'!$Q$5"},"=P5-1",0,{"$f":"ADDRESS(13,2,1,1,$P$1)","v":"'Concentration Risk'!$B$13"},"BSCR Rating 3",{"$f":"IF(INDIRECT(P20)=Q20,0,1)","v":0},{"$f":"ADDRESS(9,17,1,1,$S$1)","v":"'Geographic Diversification'!$Q$9"},"=+'Schedule IVE'!M9",0,{"$f":"ADDRESS(24,6,1,1,$V$1)","v":"'Credit Risk'!$F$24"},"='Schedule XVIII'!O87",{"$f":"IF(_xlfn.FORMULATEXT(INDIRECT(V20))=W20,0,1)","v":0},{"$f":"ADDRESS(12,4,1,1,$Y$1)","v":"'Premium Risk'!$D$12"},"='Schedule IVD'!Q10",{"$f":"IF(_xlfn.FORMULATEXT(INDIRECT(Y20))=Z20,0,1)","v":0},{"$f":"ADDRESS(13,7,1,1,$AB$1)","v":"'Reserve Risk'!$G$13"},0.49735573879029998,{"$f":"IF(INDIRECT(AB20)=AC20,0,1)","v":0},{"$f":"ADDRESS(19,5,1,1,$AE$1)","v":"'Catastrophe Risk'!$E$19"},0.1,{"$f":"IF(INDIRECT(AE20)=AF20,0,1)","v":0}]
[{"$f":"ADDRESS(19,2,1,1,$A$1)","v":"Summary!$B$19"},"=IF('Company Information'!$F$11=\"Class 4\",50,15)",0,{"$f":"ADDRESS(16,9,1,1,$D$1)","v":"'Fixed Income Investments'!$I$16"},"=IF(G16<0,0,G16*H16)",{"$f":"IF(_xlfn.FORMULATEXT(INDIRECT(D21))=E21,0,1)","v":0},{"$f":"ADDRESS(11,6,1,1,$G$1)","v":"'Equity Investments'!$F$11"},"='Schedule IIB'!H39+'Schedule IIC'!H39+'Schedule IID'!H39+'Schedule IIE'!H39+'Schedule IIF'!H39",0,null,null,-21,{"$f":"ADDRESS(5,18,1,1,$M$1)","v":"'Currency Risk'!$R$5"},"=Q5-1",0,{"$f":"ADDRESS(13,4,1,1,$P$1)","v":"'Concentration Risk'!$D$13"},"=SUMIFS('Schedule XXIA'!$M$8:$M$57,'Schedule XXIA'!$J$8:$J$57,$D$9,'Schedule XXIA'!$L$8:$L$57,$B13)",{"$f":"IF(_xlfn.FORMULATEXT(INDIRECT(P21))=Q21,0,1)","v":0},{"$f":"ADDRESS(9,18,1,1,$S$1)","v":"'Geographic Diversification'!$R$9"},"=+'Schedule IVE'!N9",0,{"$f":"ADDRESS(24,7,1,1,$V$1)","v":"'Credit Risk'!$G$24"},0,{"$f":"IF(INDIRECT(V21)=W21,0,1)","v":0},{"$f":"ADDRESS(12,5,1,1,$Y$1)","v":"'Premium Risk'!$E$12"},"='Schedule IVD'!O10",0,{"$f":"ADDRESS(13,8,1,1,$AB$1)","v":"'Reserve Risk'!$H$13"},"=IF($F$13<0,0,$F$13*$G$13)",{"$f":"IF(_xlfn.FORMULATEXT(INDIRECT(AB21))=AC21,0,1)","v":0},{"$f":"ADDRESS(21,2,1,1,$AE$1)","v":"'Catastrophe Risk'!$B$21"},"=IF('Company Information'!F11=\"IIGB\",\"(e) Arrangements with Respect to Property Catastrophe Recoverables\",\"(h) Arrangements with Respect to Property Catastrophe Recoverables\")",{"$f":"IF(_xlfn.FORMULATEXT(INDIRECT(AE21))=AF21,0,1)","v":0}]
[{"$f":"ADDRESS(19,3,1,1,$A$1)","v":"Summary!$C$19"},"=IF('Company Information'!F11=\"Class 4\",\"% of NPW\",\"% of any above NPW above $6M\")",0,{"$f":"ADDRESS(17,7,1,1,$D$1)","v":"'Fixed Income Investments'!$G$17"},"='Schedule IIB'!D18+'Schedule IIC'!D18+(MAX(0,'Schedule IID'!D18-'Schedule IID'!F18))+'Schedule IIE'!D18+'Schedule IIF'!D18",{"$f":"IF(_xlfn.FORMULATEXT(INDIRECT(D22))=E22,0,1)","v":0},{"$f":"ADDRESS(11,7,1,1,$G$1)","v":"'Equity Investments'!$G$11"},"='Schedule IIB'!J39+'Schedule IIC'!J39+'Schedule IID'!J39+'Schedule IIE'!J39+'Schedule IIF'!J39",0,null,null,null,{"$f":"ADDRESS(5,20,1,1,$M$1)","v":"'Currency Risk'!$T$5"},"=R5-1",0,{"$f":"ADDRESS(13,5,1,1,$P$1)","v":"'Concentration Risk'!$E$13"},"=+'Fixed Income Investments (old)'!E86",{"$f":"IF(_xlfn.FORMULATEXT(INDIRECT(P22))=Q22,0,1)","v":0},{"$f":"ADDRESS(9,19,1,1,$S$1)","v":"'Geographic Diversification'!$S$9"},"=+'Schedule IVE'!O9",0,{"$f":"ADDRESS(24,8,1,1,$V$1)","v":"'Credit Risk'!$H$24"},"=IF(F24<0,0,F24*G24)",{"$f":"IF(_xlfn.FORMULATEXT(INDIRECT(V22))=W22,0,1)","v":0},{"$f":"ADDRESS(12,6,1,1,$Y$1)","v":"'Premium Risk'!$F$12"},"='Geographic Diversification'!H10",0,{"$f":"ADDRESS(14,4,1,1,$AB$1)","v":"'Reserve Risk'!$D$14"},"=+'Schedule III'!D13",{"$f":"IF(_xlfn.FORMULATEXT(INDIRECT(AB22))=AC22,0,1)","v":0},{"$f":"ADDRESS(21,3,1,1,$AE$1)","v":"'Catastrophe Risk'!$C$21"},"=IF('Company Information'!F11=\"IIGB\",\"Schedule V, Line (j)(v)\",\"Schedule V, Line (k)(v)\")",0]
[{"$f":"ADDRESS(20,11,1,1,$A$1)","v":"Summary!$K$20"},"=SUM(K18:K19)",0,{"$f":"ADDRESS(17,8,1,1,$D$1)","v":"'Fixed Income Investments'!$H$17"},0.08,{"$f":"IF(INDIRECT(D23)=E23,0,1)","v":0},{"$f":"ADDRESS(11,8,1,1,$G$1)","v":"'Equity Investments'!$H$11"},"='Schedule IIB'!L39+'Schedule IIC'!L39+'Schedule IID'!L39+'Schedule IIE'!L39+'Schedule IIF'!L39",0,null,null,null,{"$f":"ADDRESS(5,21,1,1,$M$1)","v":"'Currency Risk'!$U$5"},"=T5-1",0,{"$f":"ADDRESS(13,6,1,1,$P$1)","v":"'Concentration Risk'!$F$13"},"=MAX(0,(D13*E13))",{"$f":"IF(_xlfn.FORMULATEXT(INDIRECT(P23))=Q23,0,1)","v":0},{"$f":"ADDRESS(9,20,1,1,$S$1)","v":"'Geographic Diversification'!$T$9"},"=+'Schedule IVE'!P9",0,{"$f":"ADDRESS(25,6,1,1,$V$1)","v":"'Credit Risk'!$F$25"},"='Schedule XVIII'!O88",{"$f":"IF(_xlfn.FORMULATEXT(INDIRECT(V23))=W23,0,1)","v":0},{"$f":"ADDRESS(12,7,1,1,$Y$1)","v":"'Premium Risk'!$G$12"},"=IF(IFERROR(F12/E12,1)<0,1,IFERROR(F12/E12,1))",0,{"$f":"ADDRESS(14,5,1,1,$AB$1)","v":"'Reserve Risk'!$E$14"},"=+'Schedule III'!F13",{"$f":"IF(_xlfn.FORMULATEXT(INDIRECT(AB23))=AC23,0,1)","v":0},{"$f":"ADDRESS(21,5,1,1,$AE$1)","v":"'Catastrophe Risk'!$E$21"},"='Schedule V'!H29",0]
[{"$f":"ADDRESS(25,2,1,1,$A$1)","v":"Summary!$B$25"},0.15,{"$f":"IF(INDIRECT(A24)=B24,0,1)","v":0},{"$f":"ADDRESS(17,9,1,1,$D$1)","v":"'Fixed Income Investments'!$I$17"},"=IF(G17<0,0,G17*H17)",{"$f":"IF(_xlfn.FORMULATEXT(INDIRECT(D24))=E24,0,1)","v":0},{"$f":"ADDRESS(11,9,1,1,$G$1)","v":"'Equity Investments'!$I$11"},"='Schedule IIB'!N39+'Schedule IIC'!N39+'Schedule IID'!N39+'Schedule IIE'!N39+'Schedule IIF'!N39",0,null,null,null,{"$f":"ADDRESS(5,22,1,1,$M$1)","v":"'Currency Risk'!$V$5"},"=U5-1",0,{"$f":"ADDRESS(14,2,1,1,$P$1)","v":"'Concentration Risk'!$B$14"},"BSCR Rating 4",{"$f":"IF(INDIRECT(P24)=Q24,0,1)","v":0},{"$f":"ADDRESS(9,21,1,1,$S$1)","v":"'Geographic Diversification'!$U$9"},"=+'Schedule IVE'!Q9",0,{"$f":"ADDRESS(25,7,1,1,$V$1)","v":"'Credit Risk'!$G$25"},7.0000000000000001E-3,{"$f":"IF(INDIRECT(V24)=W24,0,1)","v":0},{"$f":"ADDRESS(12,8,1,1,$Y$1)","v":"'Premium Risk'!$H$12"},"='Schedule IVD'!I10*$G12",0,{"$f":"ADDRESS(14,6,1,1,$AB$1)","v":"'Reserve Risk'!$F$14"},"='Geographic Diversification'!H43",{"$f":"IF(_xlfn.FORMULATEXT(INDIRECT(AB24))=AC24,0,1)","v":0},{"$f":"ADDRESS(23,2,1,1,$AE$1)","v":"'Catastrophe Risk'!$B$23"},"=IF('Company Information'!F11=\"IIGB\",\"(f)  Credit Risk Charge [ ((a - b) - (e * 0.98)) * d ]\",\"(i)  Credit Risk Charge [ ((a - b) - (h * 0.98)) * g ]\")",0]
[{"$f":"ADDRESS(33,12,1,1,$A$1)","v":"Summary!$L$33"},"=IF(L11>=L31,\"YES\",\"NO\")",{"$f":"IF(_xlfn.FORMULATEXT(INDIRECT(A25))=B25,0,1)","v":0},{"$f":"ADDRESS(18,7,1,1,$D$1)","v":"'Fixed Income Investments'!$G$18"},"='Schedule IIB'!D19+'Schedule IIC'!D19+(MAX(0,'Schedule IID'!D19-'Schedule IID'!F19))+'Schedule IIE'!D19+'Schedule IIF'!D19",{"$f":"IF(_xlfn.FORMULATEXT(INDIRECT(D25))=E25,0,1)","v":0},{"$f":"ADDRESS(11,10,1,1,$G$1)","v":"'Equity Investments'!$J$11"},"='Schedule IIB'!P39+'Schedule IIC'!P39+'Schedule IID'!P39+'Schedule IIE'!P39+'Schedule IIF'!P39",0,null,null,null,{"$f":"ADDRESS(5,24,1,1,$M$1)","v":"'Currency Risk'!$X$5"},"=V5-1",0,{"$f":"ADDRESS(14,4,1,1,$P$1)","v":"'Concentration Risk'!$D$14"},"=SUMIFS('Schedule XXIA'!$M$8:$M$57,'Schedule XXIA'!$J$8:$J$57,$D$9,'Schedule XXIA'!$L$8:$L$57,$B14)",{"$f":"IF(_xlfn.FORMULATEXT(INDIRECT(P25))=Q25,0,1)","v":0},{"$f":"ADDRESS(9,22,1,1,$S$1)","v":"'Geographic Diversification'!$V$9"},"=+'Schedule IVE'!R9",0,{"$f":"ADDRESS(25,8,1,1,$V$1)","v":"'Credit Risk'!$H$25"},"=IF(F25<0,0,F25*G25)",{"$f":"IF(_xlfn.FORMULATEXT(INDIRECT(V25))=W25,0,1)","v":0},{"$f":"ADDRESS(12,9,1,1,$Y$1)","v":"'Premium Risk'!$I$12"},"='Schedule IVD'!K10*$G12",0,{"$f":"ADDRESS(14,7,1,1,$AB$1)","v":"'Reserve Risk'!$G$14"},0.29666070682155399,{"$f":"IF(INDIRECT(AB25)=AC25,0,1)","v":0},{"$f":"ADDRESS(23,5,1,1,$AE$1)","v":"'Catastrophe Risk'!$E$23"},"=MAX(0,((E7-E9)-(E21*98%))*E19)",0]
[{"$f":"ADDRESS(33,18,1,1,$A$1)","v":"Summary!$R$33"},"=IF(R20>=R28,\"YES\",\"NO\")",0,{"$f":"ADDRESS(18,8,1,1,$D$1)","v":"'Fixed Income Investments'!$H$18"},0.15,{"$f":"IF(INDIRECT(D26)=E26,0,1)","v":0},{"$f":"ADDRESS(11,11,1,1,$G$1)","v":"'Equity Investments'!$K$11"},"='Schedule IIB'!R39+'Schedule IIC'!R39+'Schedule IID'!R39+'Schedule IIE'!R39+'Schedule IIF'!R39",0,null,null,null,{"$f":"ADDRESS(5,25,1,1,$M$1)","v":"'Currency Risk'!$Y$5"},"=X5-1",0,{"$f":"ADDRESS(14,5,1,1,$P$1)","v":"'Concentration Risk'!$E$14"},"=+'Fixed Income Investments (old)'!E87",{"$f":"IF(_xlfn.FORMULATEXT(INDIRECT(P26))=Q26,0,1)","v":0},{"$f":"ADDRESS(9,23,1,1,$S$1)","v":"'Geographic Diversification'!$W$9"},"=+'Schedule IVE'!S9",0,{"$f":"ADDRESS(26,6,1,1,$V$1)","v":"'Credit Risk'!$F$26"},"='Schedule XVIII'!O89",{"$f":"IF(_xlfn.FORMULATEXT(INDIRECT(V26))=W26,0,1)","v":0},{"$f":"ADDRESS(12,10,1,1,$Y$1)","v":"'Premium Risk'!$J$12"},"='Schedule IVD'!M10*$G12",0,{"$f":"ADDRESS(14,8,1,1,$AB$1)","v":"'Reserve Risk'!$H$14"},"=IF($F$14<0,0,$F$14*$G$14)",{"$f":"IF(_xlfn.FORMULATEXT(INDIRECT(AB26))=AC26,0,1)","v":0},{"$f":"ADDRESS(25,2,1,1,$AE$1)","v":"'Catastrophe Risk'!$B$25"},"=IF('Company Information'!F11=\"IIGB\",\"(g)  REQUIRED CAPITAL FOR CATASTROPHE RISK  [ (b) - (c) + (f) ]\",\"(j)  REQUIRED CAPITAL FOR CATASTROPHE RISK  [ (b) - (f) + (i) ]\")",0]
[{"$f":"ADDRESS(40,2,1,1,$A$1)","v":"Summary!$B$40"},"=\"Unconsolidated Statutory Capital & Surplus for \"&YEAR('Form 1SFS (Consolidated)'!$G$9)",0,{"$f":"ADDRESS(18,9,1,1,$D$1)","v":"'Fixed Income Investments'!$I$18"},"=IF(G18<0,0,G18*H18)",{"$f":"IF(_xlfn.FORMULATEXT(INDIRECT(D27))=E27,0,1)","v":0},{"$f":"ADDRESS(11,12,1,1,$G$1)","v":"'Equity Investments'!$L$11"},"='Schedule IIB'!T39+'Schedule IIC'!T39+'Schedule IID'!T39+'Schedule IIE'!T39+'Schedule IIF'!T39",0,null,null,null,{"$f":"ADDRESS(10,9,1,1,$M$1)","v":"'Currency Risk'!$I$10"},"='Schedule XXA'!P45",0,{"$f":"ADDRESS(14,6,1,1,$P$1)","v":"'Concentration Risk'!$F$14"},"=MAX(0,(D14*E14))",{"$f":"IF(_xlfn.FORMULATEXT(INDIRECT(P27))=Q27,0,1)","v":0},{"$f":"ADDRESS(9,24,1,1,$S$1)","v":"'Geographic Diversification'!$X$9"},"=+'Schedule IVE'!T9",0,{"$f":"ADDRESS(26,7,1,1,$V$1)","v":"'Credit Risk'!$G$26"},1.4999999999999999E-2,{"$f":"IF(INDIRECT(V27)=W27,0,1)","v":0},{"$f":"ADDRESS(12,11,1,1,$Y$1)","v":"'Premium Risk'!$K$12"},0.497450025355053,{"$f":"IF(INDIRECT(Y27)=Z27,0,1)","v":0},{"$f":"ADDRESS(15,4,1,1,$AB$1)","v":"'Reserve Risk'!$D$15"},"=+'Schedule III'!D14",{"$f":"IF(_xlfn.FORMULATEXT(INDIRECT(AB27))=AC27,0,1)","v":0},{"$f":"ADDRESS(25,5,1,1,$AE$1)","v":"'Catastrophe Risk'!$E$25"},"=IF('Company Information'!F11=\"IIGB\",(IF((E9-E15)>=0,E9-E15+E23,E23)),(IF((E9-E17)>=0,E9-E17+E23,E23)))",0]
[{"$f":"ADDRESS(40,14,1,1,$A$1)","v":"Summary!$N$40"},"=\"Unconsolidated Statutory Capital for \"&YEAR('Form 1SFS (Consolidated)'!$E9)",0,{"$f":"ADDRESS(19,7,1,1,$D$1)","v":"'Fixed Income Investments'!$G$19"},"='Schedule IIB'!D20+'Schedule IIC'!D20+(MAX(0,'Schedule IID'!D20-'Schedule IID'!F20))+'Schedule IIE'!D20+'Schedule IIF'!D20",{"$f":"IF(_xlfn.FORMULATEXT(INDIRECT(D28))=E28,0,1)","v":0},{"$f":"ADDRESS(11,16,1,1,$G$1)","v":"'Equity Investments'!$P$11"},"=MAX(D11-E11,0)+(F11-G11)+MAX(H11-I11,0)+(K11-J11)",0,null,null,null,{"$f":"ADDRESS(12,2,1,1,$M$1)","v":"'Currency Risk'!$B$12"},"='Schedule XXA'!B10",0,{"$f":"ADDRESS(15,2,1,1,$P$1)","v":"'Concentration Risk'!$B$15"},"BSCR Rating 5",{"$f":"IF(INDIRECT(P28)=Q28,0,1)","v":0},{"$f":"ADDRESS(9,25,1,1,$S$1)","v":"'Geographic Diversification'!$Y$9"},"=+'Schedule IVE'!U9",0,{"$f":"ADDRESS(26,8,1,1,$V$1)","v":"'Credit Risk'!$H$26"},"=IF(F26<0,0,F26*G26)",{"$f":"IF(_xlfn.FORMULATEXT(INDIRECT(V28))=W28,0,1)","v":0},{"$f":"ADDRESS(12,12,1,1,$Y$1)","v":"'Premium Risk'!$L$12"},"=+K12*S12",{"$f":"IF(_xlfn.FORMULATEXT(INDIRECT(Y28))=Z28,0,1)","v":0},{"$f":"ADDRESS(15,5,1,1,$AB$1)","v":"'Reserve Risk'!$E$15"},"=+'Schedule III'!F14",{"$f":"IF(_xlfn.FORMULATEXT(INDIRECT(AB28))=AC28,0,1)","v":0},null,null,-28]
[{"$f":"ADDRESS(41,14,1,1,$A$1)","v":"Summary!$N$41"},"=\"Unconsolidated Statutory Capital for \"&YEAR('Form 1SFS (Consolidated)'!$G$9)",0,{"$f":"ADDRESS(19,8,1,1,$D$1)","v":"'Fixed Income Investments'!$H$19"},0.26300000000000001,{"$f":"IF(INDIRECT(D29)=E29,0,1)","v":0},{"$f":"ADDRESS(11,18,1,1,$G$1)","v":"'Equity Investments'!$R$11"},"=MAX(D11-E11,0)+(F11-G11)+MAX(H11-I11,0)+(L11-J11)",0,null,null,null,{"$f":"ADDRESS(12,3,1,1,$M$1)","v":"'Currency Risk'!$C$12"},"='Schedule XXA'!D10",0,{"$f":"ADDRESS(15,4,1,1,$P$1)","v":"'Concentration Risk'!$D$15"},"=SUMIFS('Schedule XXIA'!$M$8:$M$57,'Schedule XXIA'!$J$8:$J$57,$D$9,'Schedule XXIA'!$L$8:$L$57,$B15)",{"$f":"IF(_xlfn.FORMULATEXT(INDIRECT(P29))=Q29,0,1)","v":0},{"$f":"ADDRESS(9,26,1,1,$S$1)","v":"'Geographic Diversification'!$Z$9"},"=+'Schedule IVE'!V9",0,{"$f":"ADDRESS(27,6,1,1,$V$1)","v":"'Credit Risk'!$F$27"},"='Schedule XVIII'!O90",{"$f":"IF(_xlfn.FORMULATEXT(INDIRECT(V29))=W29,0,1)","v":0},{"$f":"ADDRESS(12,13,1,1,$Y$1)","v":"'Premium Risk'!$M$12"},"=+L12*T12",{"$f":"IF(_xlfn.FORMULATEXT(INDIRECT(Y29))=Z29,0,1)","v":0},{"$f":"ADDRESS(15,6,1,1,$AB$1)","v":"'Reserve Risk'!$F$15"},"='Geographic Diversification'!H44",{"$f":"IF(_xlfn.FORMULATEXT(INDIRECT(AB29))=AC29,0,1)","v":0}]
[{"$f":"ADDRESS(43,2,1,1,$A$1)","v":"Summary!$B$43"},"=\"Dividend Payment in \"&YEAR('Form 1SFS (Consolidated)'!$E$9)",0,{"$f":"ADDRESS(19,9,1,1,$D$1)","v":"'Fixed Income Investments'!$I$19"},"=IF(G19<0,0,G19*H19)",{"$f":"IF(_xlfn.FORMULATEXT(INDIRECT(D30))=E30,0,1)","v":0},{"$f":"ADDRESS(12,4,1,1,$G$1)","v":"'Equity Investments'!$D$12"},"='Schedule IIB'!D40+'Schedule IIC'!D40+'Schedule IID'!D40+'Schedule IIE'!D40+'Schedule IIF'!D40",0,null,null,null,{"$f":"ADDRESS(12,4,1,1,$M$1)","v":"'Currency Risk'!$D$12"},"='Schedule XXA'!F10",0,{"$f":"ADDRESS(15,5,1,1,$P$1)","v":"'Concentration Risk'!$E$15"},"=+'Fixed Income Investments (old)'!E88",{"$f":"IF(_xlfn.FORMULATEXT(INDIRECT(P30))=Q30,0,1)","v":0},{"$f":"ADDRESS(10,4,1,1,$S$1)","v":"'Geographic Diversification'!$D$10"},"=SUM(I10:Z10)",0,{"$f":"ADDRESS(27,7,1,1,$V$1)","v":"'Credit Risk'!$G$27"},3.5000000000000003E-2,{"$f":"IF(INDIRECT(V30)=W30,0,1)","v":0},{"$f":"ADDRESS(12,14,1,1,$Y$1)","v":"'Premium Risk'!$N$12"},"=IF($H12<0,0,$H12*$K12)+IF($I12<0,0,$I12*$L12)+IF($J12<0,0,$J12*$M12)",{"$f":"IF(_xlfn.FORMULATEXT(INDIRECT(Y30))=Z30,0,1)","v":0},{"$f":"ADDRESS(15,7,1,1,$AB$1)","v":"'Reserve Risk'!$G$15"},0.34876523067975901,{"$f":"IF(INDIRECT(AB30)=AC30,0,1)","v":0}]
[{"$f":"ADDRESS(43,14,1,1,$A$1)","v":"Summary!$N$43"},"=\"Statutory Capital Change from \"&YEAR('Form 1SFS (Consolidated)'!$G9)&\" to \"&YEAR('Form 1SFS (Consolidated)'!$E9)",0,{"$f":"ADDRESS(20,7,1,1,$D$1)","v":"'Fixed Income Investments'!$G$20"},"='Schedule IIB'!D21+'Schedule IIC'!D21+(MAX(0,'Schedule IID'!D21-'Schedule IID'!F21))+'Schedule IIE'!D21+'Schedule IIF'!D21",{"$f":"IF(_xlfn.FORMULATEXT(INDIRECT(D31))=E31,0,1)","v":0},{"$f":"ADDRESS(12,5,1,1,$G$1)","v":"'Equity Investments'!$E$12"},"='Schedule IIB'!F40+'Schedule IIC'!F40+'Schedule IID'!F40+'Schedule IIE'!F40+'Schedule IIF'!F40",0,null,null,null,{"$f":"ADDRESS(12,5,1,1,$M$1)","v":"'Currency Risk'!$E$12"},"='Schedule XXA'!H10",0,{"$f":"ADDRESS(15,6,1,1,$P$1)","v":"'Concentration Risk'!$F$15"},"=MAX(0,(D15*E15))",{"$f":"IF(_xlfn.FORMULATEXT(INDIRECT(P31))=Q31,0,1)","v":0},{"$f":"ADDRESS(10,5,1,1,$S$1)","v":"'Geographic Diversification'!$E$10"},"=SUMSQ(I10:Z10)",0,{"$f":"ADDRESS(27,8,1,1,$V$1)","v":"'Credit Risk'!$H$27"},"=IF(F27<0,0,F27*G27)",{"$f":"IF(_xlfn.FORMULATEXT(INDIRECT(V31))=W31,0,1)","v":0},{"$f":"ADDRESS(12,17,1,1,$Y$1)","v":"'Premium Risk'!$Q$12"},"=IF(H12=E12,MAX(D12*K12,0),IF(E12=F12,IF(D12<0,0,D12*(H12/F12)*K12),IF(D12<0,0,D12*(H12/E12)*K12)))\n+IF(I12=E12,MAX(D12*L12,0),IF(E12=F12,IF(D12<0,0,D12*(I12/F12)*L12),IF(D12<0,0,D12*(I12/E12)*L12)))\n+IF(J12=E12,MAX(D12*M12,0),IF(E12=F12,IF(D12<0,0,D12*(J12/F12)*M12),IF(D12<0,0,D12*(J12/E12)*M12)))",{"$f":"IF(_xlfn.FORMULATEXT(INDIRECT(Y31))=Z31,0,1)","v":0},{"$f":"ADDRESS(15,8,1,1,$AB$1)","v":"'Reserve Risk'!$H$15"},"=IF($F$15<0,0,$F$15*$G$15)",{"$f":"IF(_xlfn.FORMULATEXT(INDIRECT(AB31))=AC31,0,1)","v":0}]
[{"$f":"ADDRESS(46,12,1,1,$A$1)","v":"Summary!$L$46"},"=IF(K42>=K43,\"YES\",\"NO\")",0,{"$f":"ADDRESS(20,8,1,1,$D$1)","v":"'Fixed Income Investments'!$H$20"},0.35,{"$f":"IF(INDIRECT(D32)=E32,0,1)","v":0},{"$f":"ADDRESS(12,6,1,1,$G$1)","v":"'Equity Investments'!$F$12"},"='Schedule IIB'!H40+'Schedule IIC'!H40+'Schedule IID'!H40+'Schedule IIE'!H40+'Schedule IIF'!H40",0,null,null,null,{"$f":"ADDRESS(12,6,1,1,$M$1)","v":"'Currency Risk'!$F$12"},"='Schedule XXA'!J10",0,{"$f":"ADDRESS(16,2,1,1,$P$1)","v":"'Concentration Risk'!$B$16"},"BSCR Rating 6",{"$f":"IF(INDIRECT(P32)=Q32,0,1)","v":0},{"$f":"ADDRESS(10,6,1,1,$S$1)","v":"'Geographic Diversification'!$F$10"},"=(IF(D10>0,E10/D10^2,1))",0,{"$f":"ADDRESS(28,6,1,1,$V$1)","v":"'Credit Risk'!$F$28"},"='Schedule XVIII'!O91",{"$f":"IF(_xlfn.FORMULATEXT(INDIRECT(V32))=W32,0,1)","v":0},{"$f":"ADDRESS(12,19,1,1,$Y$1)","v":"'Premium Risk'!$S$12"},0.25,{"$f":"IF(INDIRECT(Y32)=Z32,0,1)","v":0},{"$f":"ADDRESS(16,4,1,1,$AB$1)","v":"'Reserve Risk'!$D$16"},"=+'Schedule III'!D15",{"$f":"IF(_xlfn.FORMULATEXT(INDIRECT(AB32))=AC32,0,1)","v":0}]
[{"$f":"ADDRESS(54,12,1,1,$A$1)","v":"Summary!$L$54"},"{=SQRT(MMULT(TRANSPOSE(K55:K60),MMULT('Correlation Matrix'!B7:G12,K55:K60)))}",0,{"$f":"ADDRESS(20,9,1,1,$D$1)","v":"'Fixed Income Investments'!$I$20"},"=IF(G20<0,0,G20*H20)",{"$f":"IF(_xlfn.FORMULATEXT(INDIRECT(D33))=E33,0,1)","v":0},{"$f":"ADDRESS(12,7,1,1,$G$1)","v":"'Equity Investments'!$G$12"},"='Schedule IIB'!J40+'Schedule IIC'!J40+'Schedule IID'!J40+'Schedule IIE'!J40+'Schedule IIF'!J40",0,null,null,null,{"$f":"ADDRESS(12,7,1,1,$M$1)","v":"'Currency Risk'!$G$12"},"='Schedule XXA'!L10",0,{"$f":"ADDRESS(16,4,1,1,$P$1)","v":"'Concentration Risk'!$D$16"},"=SUMIFS('Schedule XXIA'!$M$8:$M$57,'Schedule XXIA'!$J$8:$J$57,$D$9,'Schedule XXIA'!$L$8:$L$57,$B16)",{"$f":"IF(_xlfn.FORMULATEXT(INDIRECT(P33))=Q33,0,1)","v":0},{"$f":"ADDRESS(10,7,1,1,$S$1)","v":"'Geographic Diversification'!$G$10"},"=D10*(0.75+0.25*F10)",0,{"$f":"ADDRESS(28,7,1,1,$V$1)","v":"'Credit Risk'!$G$28"},7.0000000000000007E-2,{"$f":"IF(INDIRECT(V33)=W33,0,1)","v":0},{"$f":"ADDRESS(12,20,1,1,$Y$1)","v":"'Premium Risk'!$T$12"},0.5,{"$f":"IF(INDIRECT(Y33)=Z33,0,1)","v":0},{"$f":"ADDRESS(16,5,1,1,$AB$1)","v":"'Reserve Risk'!$E$16"},"=+'Schedule III'!F15",{"$f":"IF(_xlfn.FORMULATEXT(INDIRECT(AB33))=AC33,0,1)","v":0}]
[{"$f":"ADDRESS(54,14,1,1,$A$1)","v":"Summary!$N$54"},"{=SQRT(MMULT(TRANSPOSE(M55:M60),MMULT('Correlation Matrix'!B7:G12,M55:M60)))}",0,{"$f":"ADDRESS(22,7,1,1,$D$1)","v":"'Fixed Income Investments'!$G$22"},"=SUM(G11:G20)",{"$f":"IF(_xlfn.FORMULATEXT(INDIRECT(D34))=E34,0,1)","v":0},{"$f":"ADDRESS(12,8,1,1,$G$1)","v":"'Equity Investments'!$H$12"},"='Schedule IIB'!L40+'Schedule IIC'!L40+'Schedule IID'!L40+'Schedule IIE'!L40+'Schedule IIF'!L40",0,null,null,null,{"$f":"ADDRESS(12,8,1,1,$M$1)","v":"'Currency Risk'!$H$12"},"='Schedule XXA'!N10",0,{"$f":"ADDRESS(16,5,1,1,$P$1)","v":"'Concentration Risk'!$E$16"},"=+'Fixed Income Investments (old)'!E89",{"$f":"IF(_xlfn.FORMULATEXT(INDIRECT(P34))=Q34,0,1)","v":0},{"$f":"ADDRESS(10,8,1,1,$S$1)","v":"'Geographic Diversification'!$H$10"},"=IF('Schedule IVE'!AB10=\"True\",G10,'Schedule IVD'!O10)",0,{"$f":"ADDRESS(28,8,1,1,$V$1)","v":"'Credit Risk'!$H$28"},"=IF(F28<0,0,F28*G28)",{"$f":"IF(_xlfn.FORMULATEXT(INDIRECT(V34))=W34,0,1)","v":0},{"$f":"ADDRESS(13,4,1,1,$Y$1)","v":"'Premium Risk'!$D$13"},"='Schedule IVD'!Q11",{"$f":"IF(_xlfn.FORMULATEXT(INDIRECT(Y34))=Z34,0,1)","v":0},{"$f":"ADDRESS(16,6,1,1,$AB$1)","v":"'Reserve Risk'!$F$16"},"='Geographic Diversification'!H45",{"$f":"IF(_xlfn.FORMULATEXT(INDIRECT(AB34))=AC34,0,1)","v":0}]
[{"$f":"ADDRESS(55,3,1,1,$A$1)","v":"Summary!$C$55"},"Fixed Income Investment Risk",{"$f":"IF(INDIRECT(A35)=B35,0,1)","v":0},{"$f":"ADDRESS(22,9,1,1,$D$1)","v":"'Fixed Income Investments'!$I$22"},"=IF(SUM(I11:I20)>=0,SUM(I11:I20),0)",{"$f":"IF(_xlfn.FORMULATEXT(INDIRECT(D35))=E35,0,1)","v":0},{"$f":"ADDRESS(12,9,1,1,$G$1)","v":"'Equity Investments'!$I$12"},"='Schedule IIB'!N40+'Schedule IIC'!N40+'Schedule IID'!N40+'Schedule IIE'!N40+'Schedule IIF'!N40",0,null,null,null,{"$f":"ADDRESS(12,9,1,1,$M$1)","v":"'Currency Risk'!$I$12"},"=$I$10*H12",0,{"$f":"ADDRESS(16,6,1,1,$P$1)","v":"'Concentration Risk'!$F$16"},"=MAX(0,(D16*E16))",{"$f":"IF(_xlfn.FORMULATEXT(INDIRECT(P35))=Q35,0,1)","v":0},{"$f":"ADDRESS(10,9,1,1,$S$1)","v":"'Geographic Diversification'!$I$10"},"=+'Schedule IVE'!E10",0,{"$f":"ADDRESS(29,6,1,1,$V$1)","v":"'Credit Risk'!$F$29"},"='Schedule XVIII'!O92",{"$f":"IF(_xlfn.FORMULATEXT(INDIRECT(V35))=W35,0,1)","v":0},{"$f":"ADDRESS(13,5,1,1,$Y$1)","v":"'Premium Risk'!$E$13"},"='Schedule IVD'!O11",0,{"$f":"ADDRESS(16,7,1,1,$AB$1)","v":"'Reserve Risk'!$G$16"},0.45952604952349801,{"$f":"IF(INDIRECT(AB35)=AC35,0,1)","v":0}]
[{"$f":"ADDRESS(55,7,1,1,$A$1)","v":"Summary!$G$55"},"=ROUND('Fixed Income Investments (old)'!F99,$Q$164)",{"$f":"IF(_xlfn.FORMULATEXT(INDIRECT(A36))=B36,0,1)","v":0},{"$f":"ADDRESS(27,7,1,1,$D$1)","v":"'Fixed Income Investments'!$G$27"},"='Schedule IIB'!H14+'Schedule IIC'!H14+(MAX(0,'Schedule IID'!H14-'Schedule IID'!J14))+'Schedule IIE'!H14+'Schedule IIF'!H14",{"$f":"IF(_xlfn.FORMULATEXT(INDIRECT(D36))=E36,0,1)","v":0},{"$f":"ADDRESS(12,10,1,1,$G$1)","v":"'Equity Investments'!$J$12"},"='Schedule IIB'!P40+'Schedule IIC'!P40+'Schedule IID'!P40+'Schedule IIE'!P40+'Schedule IIF'!P40",0,null,null,null,{"$f":"ADDRESS(12,10,1,1,$M$1)","v":"'Currency Risk'!$J$12"},0,{"$f":"IF(INDIRECT(M36)=N36,0,1)","v":0},{"$f":"ADDRESS(17,2,1,1,$P$1)","v":"'Concentration Risk'!$B$17"},"BSCR Rating 7",{"$f":"IF(INDIRECT(P36)=Q36,0,1)","v":0},{"$f":"ADDRESS(10,10,1,1,$S$1)","v":"'Geographic Diversification'!$J$10"},"=+'Schedule IVE'!F10",0,{"$f":"ADDRESS(29,7,1,1,$V$1)","v":"'Credit Risk'!$G$29"},0.12,{"$f":"IF(INDIRECT(V36)=W36,0,1)","v":0},{"$f":"ADDRESS(13,6,1,1,$Y$1)","v":"'Premium Risk'!$F$13"},"='Geographic Diversification'!H11",0,{"$f":"ADDRESS(16,8,1,1,$AB$1)","v":"'Reserve Risk'!$H$16"},"=IF($F$16<0,0,$F$16*$G$16)",{"$f":"IF(_xlfn.FORMULATEXT(INDIRECT(AB36))=AC36,0,1)","v":0}]
[{"$f":"ADDRESS(55,11,1,1,$A$1)","v":"Summary!$K$55"},"=ROUND('Fixed Income Investments'!I136,$Q$164)",0,{"$f":"ADDRESS(27,8,1,1,$D$1)","v":"'Fixed Income Investments'!$H$27"},6.0000000000000001E-3,{"$f":"IF(INDIRECT(D37)=E37,0,1)","v":0},{"$f":"ADDRESS(12,11,1,1,$G$1)","v":"'Equity Investments'!$K$12"},"='Schedule IIB'!R40+'Schedule IIC'!R40+'Schedule IID'!R40+'Schedule IIE'!R40+'Schedule IIF'!R40",0,null,null,null,{"$f":"ADDRESS(12,12,1,1,$M$1)","v":"'Currency Risk'!$L$12"},"='Schedule XXA'!V10",{"$f":"IF(_xlfn.FORMULATEXT(INDIRECT(M37))=N37,0,1)","v":0},{"$f":"ADDRESS(17,4,1,1,$P$1)","v":"'Concentration Risk'!$D$17"},"=SUMIFS('Schedule XXIA'!$M$8:$M$57,'Schedule XXIA'!$J$8:$J$57,$D$9,'Schedule XXIA'!$L$8:$L$57,$B17)",{"$f":"IF(_xlfn.FORMULATEXT(INDIRECT(P37))=Q37,0,1)","v":0},{"$f":"ADDRESS(10,11,1,1,$S$1)","v":"'Geographic Diversification'!$K$10"},"=+'Schedule IVE'!G10",0,{"$f":"ADDRESS(29,8,1,1,$V$1)","v":"'Credit Risk'!$H$29"},"=IF(F29<0,0,F29*G29)",{"$f":"IF(_xlfn.FORMULATEXT(INDIRECT(V37))=W37,0,1)","v":0},{"$f":"ADDRESS(13,7,1,1,$Y$1)","v":"'Premium Risk'!$G$13"},"=IF(IFERROR(F13/E13,1)<0,1,IFERROR(F13/E13,1))",0,{"$f":"ADDRESS(17,4,1,1,$AB$1)","v":"'Reserve Risk'!$D$17"},"=+'Schedule III'!D16",{"$f":"IF(_xlfn.FORMULATEXT(INDIRECT(AB37))=AC37,0,1)","v":0}]
[{"$f":"ADDRESS(55,13,1,1,$A$1)","v":"Summary!$M$55"},"=ROUND('Fixed Income Investments'!I136,$Q$164)",0,{"$f":"ADDRESS(27,9,1,1,$D$1)","v":"'Fixed Income Investments'!$I$27"},"=IF(G27<0,0,G27*H27)",{"$f":"IF(_xlfn.FORMULATEXT(INDIRECT(D38))=E38,0,1)","v":0},{"$f":"ADDRESS(12,12,1,1,$G$1)","v":"'Equity Investments'!$L$12"},"='Schedule IIB'!T40+'Schedule IIC'!T40+'Schedule IID'!T40+'Schedule IIE'!T40+'Schedule IIF'!T40",0,null,null,null,{"$f":"ADDRESS(12,13,1,1,$M$1)","v":"'Currency Risk'!$M$12"},"='Schedule XXA'!X10",0,{"$f":"ADDRESS(17,5,1,1,$P$1)","v":"'Concentration Risk'!$E$17"},"=+'Fixed Income Investments (old)'!E90",{"$f":"IF(_xlfn.FORMULATEXT(INDIRECT(P38))=Q38,0,1)","v":0},{"$f":"ADDRESS(10,12,1,1,$S$1)","v":"'Geographic Diversification'!$L$10"},"=+'Schedule IVE'!H10",0,{"$f":"ADDRESS(30,6,1,1,$V$1)","v":"'Credit Risk'!$F$30"},"='Schedule XVIII'!O93",{"$f":"IF(_xlfn.FORMULATEXT(INDIRECT(V38))=W38,0,1)","v":0},{"$f":"ADDRESS(13,8,1,1,$Y$1)","v":"'Premium Risk'!$H$13"},"='Schedule IVD'!I11*$G13",0,{"$f":"ADDRESS(17,5,1,1,$AB$1)","v":"'Reserve Risk'!$E$17"},"=+'Schedule III'!F16",{"$f":"IF(_xlfn.FORMULATEXT(INDIRECT(AB38))=AC38,0,1)","v":0}]
[{"$f":"ADDRESS(55,20,1,1,$A$1)","v":"Summary!$T$55"},"=C55",0,{"$f":"ADDRESS(28,7,1,1,$D$1)","v":"'Fixed Income Investments'!$G$28"},"='Schedule IIB'!H15+'Schedule IIC'!H15+(MAX(0,'Schedule IID'!H15-'Schedule IID'!J15))+'Schedule IIE'!H15+'Schedule IIF'!H15",{"$f":"IF(_xlfn.FORMULATEXT(INDIRECT(D39))=E39,0,1)","v":0},{"$f":"ADDRESS(12,16,1,1,$G$1)","v":"'Equity Investments'!$P$12"},"=MAX(D12-E12,0)+(F12-G12)+MAX(H12-I12,0)+(K12-J12)",0,null,null,null,{"$f":"ADDRESS(12,14,1,1,$M$1)","v":"'Currency Risk'!$N$12"},"='Schedule XXA'!Z10",0,{"$f":"ADDRESS(17,6,1,1,$P$1)","v":"'Concentration Risk'!$F$17"},"=MAX(0,(D17*E17))",{"$f":"IF(_xlfn.FORMULATEXT(INDIRECT(P39))=Q39,0,1)","v":0},{"$f":"ADDRESS(10,13,1,1,$S$1)","v":"'Geographic Diversification'!$M$10"},"=+'Schedule IVE'!I10",0,{"$f":"ADDRESS(30,7,1,1,$V$1)","v":"'Credit Risk'!$G$30"},0.2,{"$f":"IF(INDIRECT(V39)=W39,0,1)","v":0},{"$f":"ADDRESS(13,9,1,1,$Y$1)","v":"'Premium Risk'!$I$13"},"='Schedule IVD'!K11*$G13",0,{"$f":"ADDRESS(17,6,1,1,$AB$1)","v":"'Reserve Risk'!$F$17"},"='Geographic Diversification'!H46",{"$f":"IF(_xlfn.FORMULATEXT(INDIRECT(AB39))=AC39,0,1)","v":0}]
[{"$f":"ADDRESS(55,24,1,1,$A$1)","v":"Summary!$X$55"},"=G55",0,{"$f":"ADDRESS(28,8,1,1,$D$1)","v":"'Fixed Income Investments'!$H$28"},1.2E-2,{"$f":"IF(INDIRECT(D40)=E40,0,1)","v":0},{"$f":"ADDRESS(12,18,1,1,$G$1)","v":"'Equity Investments'!$R$12"},"=MAX(D12-E12,0)+(F12-G12)+MAX(H12-I12,0)+(L12-J12)",0,null,null,null,{"$f":"ADDRESS(12,15,1,1,$M$1)","v":"'Currency Risk'!$O$12"},"='Schedule XXA'!AB10",0,{"$f":"ADDRESS(18,2,1,1,$P$1)","v":"'Concentration Risk'!$B$18"},"BSCR Rating 8",{"$f":"IF(INDIRECT(P40)=Q40,0,1)","v":0},{"$f":"ADDRESS(10,14,1,1,$S$1)","v":"'Geographic Diversification'!$N$10"},"=+'Schedule IVE'!J10",0,{"$f":"ADDRESS(30,8,1,1,$V$1)","v":"'Credit Risk'!$H$30"},"=IF(F30<0,0,F30*G30)",{"$f":"IF(_xlfn.FORMULATEXT(INDIRECT(V40))=W40,0,1)","v":0},{"$f":"ADDRESS(13,10,1,1,$Y$1)","v":"'Premium Risk'!$J$13"},"='Schedule IVD'!M11*$G13",0,{"$f":"ADDRESS(17,7,1,1,$AB$1)","v":"'Reserve Risk'!$G$17"},0.48255646377949901,{"$f":"IF(INDIRECT(AB40)=AC40,0,1)","v":0}]
[{"$f":"ADDRESS(55,25,1,1,$A$1)","v":"Summary!$Y$55"},"=IF($L$72=0,1/9,X55/$X$66)",0,{"$f":"ADDRESS(28,9,1,1,$D$1)","v":"'Fixed Income Investments'!$I$28"},"=IF(G28<0,0,G28*H28)",{"$f":"IF(_xlfn.FORMULATEXT(INDIRECT(D41))=E41,0,1)","v":0},{"$f":"ADDRESS(13,4,1,1,$G$1)","v":"'Equity Investments'!$D$13"},"='Schedule IIB'!D41+'Schedule IIC'!D41+'Schedule IID'!D41+'Schedule IIE'!D41+'Schedule IIF'!D41",0,null,null,null,{"$f":"ADDRESS(12,16,1,1,$M$1)","v":"'Currency Risk'!$P$12"},"='Schedule XXA'!AD10",0,{"$f":"ADDRESS(18,4,1,1,$P$1)","v":"'Concentration Risk'!$D$18"},"=SUMIFS('Schedule XXIA'!$M$8:$M$57,'Schedule XXIA'!$J$8:$J$57,$D$9,'Schedule XXIA'!$L$8:$L$57,$B18)",{"$f":"IF(_xlfn.FORMULATEXT(INDIRECT(P41))=Q41,0,1)","v":0},{"$f":"ADDRESS(10,15,1,1,$S$1)","v":"'Geographic Diversification'!$O$10"},"=+'Schedule IVE'!K10",0,{"$f":"ADDRESS(31,6,1,1,$V$1)","v":"'Credit Risk'!$F$31"},"='Schedule XVIII'!O94",{"$f":"IF(_xlfn.FORMULATEXT(INDIRECT(V41))=W41,0,1)","v":0},{"$f":"ADDRESS(13,11,1,1,$Y$1)","v":"'Premium Risk'!$K$13"},0.51625715924082105,{"$f":"IF(INDIRECT(Y41)=Z41,0,1)","v":0},{"$f":"ADDRESS(17,8,1,1,$AB$1)","v":"'Reserve Risk'!$H$17"},"=IF($F$17<0,0,$F$17*$G$17)",{"$f":"IF(_xlfn.FORMULATEXT(INDIRECT(AB41))=AC41,0,1)","v":0}]
[{"$f":"ADDRESS(55,26,1,1,$A$1)","v":"Summary!$Z$55"},"=M55",0,{"$f":"ADDRESS(29,7,1,1,$D$1)","v":"'Fixed Income Investments'!$G$29"},"='Schedule IIB'!H16+'Schedule IIC'!H16+(MAX(0,'Schedule IID'!H16-'Schedule IID'!J16))+'Schedule IIE'!H16+'Schedule IIF'!H16",{"$f":"IF(_xlfn.FORMULATEXT(INDIRECT(D42))=E42,0,1)","v":0},{"$f":"ADDRESS(13,5,1,1,$G$1)","v":"'Equity Investments'!$E$13"},"='Schedule IIB'!F41+'Schedule IIC'!F41+'Schedule IID'!F41+'Schedule IIE'!F41+'Schedule IIF'!F41",0,null,null,null,{"$f":"ADDRESS(12,17,1,1,$M$1)","v":"'Currency Risk'!$Q$12"},"='Schedule XXA'!AF10",0,{"$f":"ADDRESS(18,5,1,1,$P$1)","v":"'Concentration Risk'!$E$18"},"=+'Fixed Income Investments (old)'!E91",{"$f":"IF(_xlfn.FORMULATEXT(INDIRECT(P42))=Q42,0,1)","v":0},{"$f":"ADDRESS(10,16,1,1,$S$1)","v":"'Geographic Diversification'!$P$10"},"=+'Schedule IVE'!L10",0,{"$f":"ADDRESS(31,7,1,1,$V$1)","v":"'Credit Risk'!$G$31"},0.27,{"$f":"IF(INDIRECT(V42)=W42,0,1)","v":0},{"$f":"ADDRESS(13,12,1,1,$Y$1)","v":"'Premium Risk'!$L$13"},"=+K13*S13",{"$f":"IF(_xlfn.FORMULATEXT(INDIRECT(Y42))=Z42,0,1)","v":0},{"$f":"ADDRESS(18,4,1,1,$AB$1)","v":"'Reserve Risk'!$D$18"},"=+'Schedule III'!D17",{"$f":"IF(_xlfn.FORMULATEXT(INDIRECT(AB42))=AC42,0,1)","v":0}]
[{"$f":"ADDRESS(55,27,1,1,$A$1)","v":"Summary!$AA$55"},"=IF($N$72=0,1/9,Z55/$Z$66)",0,{"$f":"ADDRESS(29,8,1,1,$D$1)","v":"'Fixed Income Investments'!$H$29"},0.02,{"$f":"IF(INDIRECT(D43)=E43,0,1)","v":0},{"$f":"ADDRESS(13,6,1,1,$G$1)","v":"'Equity Investments'!$F$13"},"='Schedule IIB'!H41+'Schedule IIC'!H41+'Schedule IID'!H41+'Schedule IIE'!H41+'Schedule IIF'!H41",0,null,null,null,{"$f":"ADDRESS(12,18,1,1,$M$1)","v":"'Currency Risk'!$R$12"},"=IF('Schedule XXA'!AH10=0,Q12,'Schedule XXA'!AH10)",0,{"$f":"ADDRESS(18,6,1,1,$P$1)","v":"'Concentration Risk'!$F$18"},"=MAX(0,(D18*E18))",{"$f":"IF(_xlfn.FORMULATEXT(INDIRECT(P43))=Q43,0,1)","v":0},{"$f":"ADDRESS(10,17,1,1,$S$1)","v":"'Geographic Diversification'!$Q$10"},"=+'Schedule IVE'!M10",0,{"$f":"ADDRESS(31,8,1,1,$V$1)","v":"'Credit Risk'!$H$31"},"=IF(F31<0,0,F31*G31)",{"$f":"IF(_xlfn.FORMULATEXT(INDIRECT(V43))=W43,0,1)","v":0},{"$f":"ADDRESS(13,13,1,1,$Y$1)","v":"'Premium Risk'!$M$13"},"=+L13*T13",{"$f":"IF(_xlfn.FORMULATEXT(INDIRECT(Y43))=Z43,0,1)","v":0},{"$f":"ADDRESS(18,5,1,1,$AB$1)","v":"'Reserve Risk'!$E$18"},"=+'Schedule III'!F17",{"$f":"IF(_xlfn.FORMULATEXT(INDIRECT(AB43))=AC43,0,1)","v":0}]
[{"$f":"ADDRESS(55,29,1,1,$A$1)","v":"Summary!$AC$55"},"=(SUM(AA$55:AA55)/AA$66)",0,{"$f":"ADDRESS(29,9,1,1,$D$1)","v":"'Fixed Income Investments'!$I$29"},"=IF(G29<0,0,G29*H29)",{"$f":"IF(_xlfn.FORMULATEXT(INDIRECT(D44))=E44,0,1)","v":0},{"$f":"ADDRESS(13,7,1,1,$G$1)","v":"'Equity Investments'!$G$13"},"='Schedule IIB'!J41+'Schedule IIC'!J41+'Schedule IID'!J41+'Schedule IIE'!J41+'Schedule IIF'!J41",0,null,null,null,{"$f":"ADDRESS(12,20,1,1,$M$1)","v":"'Currency Risk'!$T$12"},"=(C12-L12)+(D12-M12)+(F12-O12)+MAX(E12-N12,0)+MAX(G12-P12,0)",0,{"$f":"ADDRESS(20,4,1,1,$P$1)","v":"'Concentration Risk'!$D$20"},"=SUM(D9:D18)",{"$f":"IF(_xlfn.FORMULATEXT(INDIRECT(P44))=Q44,0,1)","v":0},{"$f":"ADDRESS(10,18,1,1,$S$1)","v":"'Geographic Diversification'!$R$10"},"=+'Schedule IVE'!N10",0,{"$f":"ADDRESS(32,6,1,1,$V$1)","v":"'Credit Risk'!$F$32"},"='Schedule XVIII'!O95",{"$f":"IF(_xlfn.FORMULATEXT(INDIRECT(V44))=W44,0,1)","v":0},{"$f":"ADDRESS(13,14,1,1,$Y$1)","v":"'Premium Risk'!$N$13"},"=IF($H13<0,0,$H13*$K13)+IF($I13<0,0,$I13*$L13)+IF($J13<0,0,$J13*$M13)",{"$f":"IF(_xlfn.FORMULATEXT(INDIRECT(Y44))=Z44,0,1)","v":0},{"$f":"ADDRESS(18,6,1,1,$AB$1)","v":"'Reserve Risk'!$F$18"},"='Geographic Diversification'!H47",{"$f":"IF(_xlfn.FORMULATEXT(INDIRECT(AB44))=AC44,0,1)","v":0}]
[{"$f":"ADDRESS(55,32,1,1,$A$1)","v":"Summary!$AF$55"},"=IF(AO55=\"\",IF(Test_Statistic<$AJ$72,AI55,IF(Test_Statistic<$AL$72,AK55,AM55)),AO55)",0,{"$f":"ADDRESS(30,7,1,1,$D$1)","v":"'Fixed Income Investments'!$G$30"},"='Schedule IIB'!H17+'Schedule IIC'!H17+(MAX(0,'Schedule IID'!H17-'Schedule IID'!J17))+'Schedule IIE'!H17+'Schedule IIF'!H17",{"$f":"IF(_xlfn.FORMULATEXT(INDIRECT(D45))=E45,0,1)","v":0},{"$f":"ADDRESS(13,8,1,1,$G$1)","v":"'Equity Investments'!$H$13"},"='Schedule IIB'!L41+'Schedule IIC'!L41+'Schedule IID'!L41+'Schedule IIE'!L41+'Schedule IIF'!L41",0,null,null,null,{"$f":"ADDRESS(12,21,1,1,$M$1)","v":"'Currency Risk'!$U$12"},"=Q12-$H12",0,{"$f":"ADDRESS(20,6,1,1,$P$1)","v":"'Concentration Risk'!$F$20"},"=SUM(F9:F18)",{"$f":"IF(_xlfn.FORMULATEXT(INDIRECT(P45))=Q45,0,1)","v":0},{"$f":"ADDRESS(10,19,1,1,$S$1)","v":"'Geographic Diversification'!$S$10"},"=+'Schedule IVE'!O10",0,{"$f":"ADDRESS(32,7,1,1,$V$1)","v":"'Credit Risk'!$G$32"},0.35,{"$f":"IF(INDIRECT(V45)=W45,0,1)","v":0},{"$f":"ADDRESS(13,17,1,1,$Y$1)","v":"'Premium Risk'!$Q$13"},"=IF(H13=E13,MAX(D13*K13,0),IF(E13=F13,IF(D13<0,0,D13*(H13/F13)*K13),IF(D13<0,0,D13*(H13/E13)*K13)))\n+IF(I13=E13,MAX(D13*L13,0),IF(E13=F13,IF(D13<0,0,D13*(I13/F13)*L13),IF(D13<0,0,D13*(I13/E13)*L13)))\n+IF(J13=E13,MAX(D13*M13,0),IF(E13=F13,IF(D13<0,0,D13*(J13/F13)*M13),IF(D13<0,0,D13*(J13/E13)*M13)))",{"$f":"IF(_xlfn.FORMULATEXT(INDIRECT(Y45))=Z45,0,1)","v":0},{"$f":"ADDRESS(18,7,1,1,$AB$1)","v":"'Reserve Risk'!$G$18"},0.383682680649994,{"$f":"IF(INDIRECT(AB45)=AC45,0,1)","v":0}]
[{"$f":"ADDRESS(55,33,1,1,$A$1)","v":"Summary!$AG$55"},"=IF(AP55=\"\",IF(Test_Statistic<$AJ$72,AJ55,IF(Test_Statistic<$AL$72,AL55,AN55)),AP55)",0,{"$f":"ADDRESS(30,8,1,1,$D$1)","v":"'Fixed Income Investments'!$H$30"},0.04,{"$f":"IF(INDIRECT(D46)=E46,0,1)","v":0},{"$f":"ADDRESS(13,9,1,1,$G$1)","v":"'Equity Investments'!$I$13"},"='Schedule IIB'!N41+'Schedule IIC'!N41+'Schedule IID'!N41+'Schedule IIE'!N41+'Schedule IIF'!N41",0,null,null,null,{"$f":"ADDRESS(12,22,1,1,$M$1)","v":"'Currency Risk'!$V$12"},"=R12-$H12",0,{"$f":"ADDRESS(22,4,1,1,$P$1)","v":"'Concentration Risk'!$D$22"},"Corporate & Sovereign Bonds",{"$f":"IF(INDIRECT(P46)=Q46,0,1)","v":0},{"$f":"ADDRESS(10,20,1,1,$S$1)","v":"'Geographic Diversification'!$T$10"},"=+'Schedule IVE'!P10",0,{"$f":"ADDRESS(32,8,1,1,$V$1)","v":"'Credit Risk'!$H$32"},"=IF(F32<0,0,F32*G32)",{"$f":"IF(_xlfn.FORMULATEXT(INDIRECT(V46))=W46,0,1)","v":0},{"$f":"ADDRESS(13,19,1,1,$Y$1)","v":"'Premium Risk'!$S$13"},0.25,{"$f":"IF(INDIRECT(Y46)=Z46,0,1)","v":0},{"$f":"ADDRESS(18,8,1,1,$AB$1)","v":"'Reserve Risk'!$H$18"},"=IF($F$18<0,0,$F$18*$G$18)",{"$f":"IF(_xlfn.FORMULATEXT(INDIRECT(AB46))=AC46,0,1)","v":0}]
[{"$f":"ADDRESS(55,35,1,1,$A$1)","v":"Summary!$AI$55"},"=IF(AC61>1,300,IF(AC61>0.6,260,240))",0,{"$f":"ADDRESS(30,9,1,1,$D$1)","v":"'Fixed Income Investments'!$I$30"},"=IF(G30<0,0,G30*H30)",{"$f":"IF(_xlfn.FORMULATEXT(INDIRECT(D47))=E47,0,1)","v":0},{"$f":"ADDRESS(13,10,1,1,$G$1)","v":"'Equity Investments'!$J$13"},"='Schedule IIB'!P41+'Schedule IIC'!P41+'Schedule IID'!P41+'Schedule IIE'!P41+'Schedule IIF'!P41",0,null,null,null,{"$f":"ADDRESS(12,24,1,1,$M$1)","v":"'Currency Risk'!$X$12"},"=MAX(0,$T12+U12+(J12*I12))",0,{"$f":"ADDRESS(23,2,1,1,$P$1)","v":"'Concentration Risk'!$B$23"},"BSCR Rating 0",{"$f":"IF(INDIRECT(P47)=Q47,0,1)","v":0},{"$f":"ADDRESS(10,21,1,1,$S$1)","v":"'Geographic Diversification'!$U$10"},"=+'Schedule IVE'!Q10",0,{"$f":"ADDRESS(34,6,1,1,$V$1)","v":"'Credit Risk'!$F$34"},"=SUM(F24:F32)",0,{"$f":"ADDRESS(13,20,1,1,$Y$1)","v":"'Premium Risk'!$T$13"},0.5,{"$f":"IF(INDIRECT(Y47)=Z47,0,1)","v":0},{"$f":"ADDRESS(19,4,1,1,$AB$1)","v":"'Reserve Risk'!$D$19"},"=+'Schedule III'!D18",{"$f":"IF(_xlfn.FORMULATEXT(INDIRECT(AB47))=AC47,0,1)","v":0}]
[{"$f":"ADDRESS(55,36,1,1,$A$1)","v":"Summary!$AJ$55"},"=IF(AC63>1,50,IF(AC61>1,20,IF(AC61>0.6,25,15)))",0,{"$f":"ADDRESS(31,7,1,1,$D$1)","v":"'Fixed Income Investments'!$G$31"},"='Schedule IIB'!H18+'Schedule IIC'!H18+(MAX(0,'Schedule IID'!H18-'Schedule IID'!J18))+'Schedule IIE'!H18+'Schedule IIF'!H18",{"$f":"IF(_xlfn.FORMULATEXT(INDIRECT(D48))=E48,0,1)","v":0},{"$f":"ADDRESS(13,11,1,1,$G$1)","v":"'Equity Investments'!$K$13"},"='Schedule IIB'!R41+'Schedule IIC'!R41+'Schedule IID'!R41+'Schedule IIE'!R41+'Schedule IIF'!R41",0,null,null,null,{"$f":"ADDRESS(12,25,1,1,$M$1)","v":"'Currency Risk'!$Y$12"},"=MAX(0,$T12+V12+(J12*I12))",0,{"$f":"ADDRESS(23,4,1,1,$P$1)","v":"'Concentration Risk'!$D$23"},"=SUMIFS('Schedule XXIA'!$M$8:$M$57,'Schedule XXIA'!$K$8:$K$57,$D$22,'Schedule XXIA'!$L$8:$L$57,$B23)",{"$f":"IF(_xlfn.FORMULATEXT(INDIRECT(P48))=Q48,0,1)","v":0},{"$f":"ADDRESS(10,22,1,1,$S$1)","v":"'Geographic Diversification'!$V$10"},"=+'Schedule IVE'!R10",0,{"$f":"ADDRESS(34,8,1,1,$V$1)","v":"'Credit Risk'!$H$34"},"=SUM(H24:H32)",0,{"$f":"ADDRESS(14,4,1,1,$Y$1)","v":"'Premium Risk'!$D$14"},"='Schedule IVD'!Q12",{"$f":"IF(_xlfn.FORMULATEXT(INDIRECT(Y48))=Z48,0,1)","v":0},{"$f":"ADDRESS(19,5,1,1,$AB$1)","v":"'Reserve Risk'!$E$19"},"=+'Schedule III'!F18",{"$f":"IF(_xlfn.FORMULATEXT(INDIRECT(AB48))=AC48,0,1)","v":0}]
[{"$f":"ADDRESS(55,37,1,1,$A$1)","v":"Summary!$AK$55"},"=IF(Test_Statistic_2<1,300,300)",0,{"$f":"ADDRESS(31,8,1,1,$D$1)","v":"'Fixed Income Investments'!$H$31"},0.11,{"$f":"IF(INDIRECT(D49)=E49,0,1)","v":0},{"$f":"ADDRESS(13,12,1,1,$G$1)","v":"'Equity Investments'!$L$13"},"='Schedule IIB'!T41+'Schedule IIC'!T41+'Schedule IID'!T41+'Schedule IIE'!T41+'Schedule IIF'!T41",0,null,null,null,{"$f":"ADDRESS(13,2,1,1,$M$1)","v":"'Currency Risk'!$B$13"},"='Schedule XXA'!B11",0,{"$f":"ADDRESS(23,5,1,1,$P$1)","v":"'Concentration Risk'!$E$23"},"=+'Fixed Income Investments (old)'!E12",{"$f":"IF(_xlfn.FORMULATEXT(INDIRECT(P49))=Q49,0,1)","v":0},{"$f":"ADDRESS(10,23,1,1,$S$1)","v":"'Geographic Diversification'!$W$10"},"=+'Schedule IVE'!S10",0,{"$f":"ADDRESS(36,7,1,1,$V$1)","v":"'Credit Risk'!$G$36"},"='Schedule XVIII'!O104",0,{"$f":"ADDRESS(14,5,1,1,$Y$1)","v":"'Premium Risk'!$E$14"},"='Schedule IVD'!O12",0,{"$f":"ADDRESS(19,6,1,1,$AB$1)","v":"'Reserve Risk'!$F$19"},"='Geographic Diversification'!H48",{"$f":"IF(_xlfn.FORMULATEXT(INDIRECT(AB49))=AC49,0,1)","v":0}]
[{"$f":"ADDRESS(55,38,1,1,$A$1)","v":"Summary!$AL$55"},60,{"$f":"IF(INDIRECT(A50)=B50,0,1)","v":0},{"$f":"ADDRESS(31,9,1,1,$D$1)","v":"'Fixed Income Investments'!$I$31"},"=IF(G31<0,0,G31*H31)",{"$f":"IF(_xlfn.FORMULATEXT(INDIRECT(D50))=E50,0,1)","v":0},{"$f":"ADDRESS(13,16,1,1,$G$1)","v":"'Equity Investments'!$P$13"},"=MAX(D13-E13,0)+(F13-G13)+MAX(H13-I13,0)+(K13-J13)",0,null,null,null,{"$f":"ADDRESS(13,3,1,1,$M$1)","v":"'Currency Risk'!$C$13"},"='Schedule XXA'!D11",0,{"$f":"ADDRESS(23,6,1,1,$P$1)","v":"'Concentration Risk'!$F$23"},"=MAX(0,(D23*E23))",{"$f":"IF(_xlfn.FORMULATEXT(INDIRECT(P50))=Q50,0,1)","v":0},{"$f":"ADDRESS(10,24,1,1,$S$1)","v":"'Geographic Diversification'!$X$10"},"=+'Schedule IVE'!T10",0,{"$f":"ADDRESS(36,8,1,1,$V$1)","v":"'Credit Risk'!$H$36"},"=SUM(H24:H32)*-('Schedule XVIII'!O104)",0,{"$f":"ADDRESS(14,6,1,1,$Y$1)","v":"'Premium Risk'!$F$14"},"='Geographic Diversification'!H12",0,{"$f":"ADDRESS(19,7,1,1,$AB$1)","v":"'Reserve Risk'!$G$19"},0.43464696624596899,{"$f":"IF(INDIRECT(AB50)=AC50,0,1)","v":0}]
[{"$f":"ADDRESS(55,39,1,1,$A$1)","v":"Summary!$AM$55"},280,{"$f":"IF(INDIRECT(A51)=B51,0,1)","v":0},{"$f":"ADDRESS(32,7,1,1,$D$1)","v":"'Fixed Income Investments'!$G$32"},"='Schedule IIB'!H19+'Schedule IIC'!H19+(MAX(0,'Schedule IID'!H19-'Schedule IID'!J19))+'Schedule IIE'!H19+'Schedule IIF'!H19",{"$f":"IF(_xlfn.FORMULATEXT(INDIRECT(D51))=E51,0,1)","v":0},{"$f":"ADDRESS(13,18,1,1,$G$1)","v":"'Equity Investments'!$R$13"},"=MAX(D13-E13,0)+(F13-G13)+MAX(H13-I13,0)+(L13-J13)",0,null,null,null,{"$f":"ADDRESS(13,4,1,1,$M$1)","v":"'Currency Risk'!$D$13"},"='Schedule XXA'!F11",0,{"$f":"ADDRESS(24,2,1,1,$P$1)","v":"'Concentration Risk'!$B$24"},"BSCR Rating 1",{"$f":"IF(INDIRECT(P51)=Q51,0,1)","v":0},{"$f":"ADDRESS(10,25,1,1,$S$1)","v":"'Geographic Diversification'!$Y$10"},"=+'Schedule IVE'!U10",0,{"$f":"ADDRESS(38,6,1,1,$V$1)","v":"'Credit Risk'!$F$38"},"=+F34",0,{"$f":"ADDRESS(14,7,1,1,$Y$1)","v":"'Premium Risk'!$G$14"},"=IF(IFERROR(F14/E14,1)<0,1,IFERROR(F14/E14,1))",0,{"$f":"ADDRESS(19,8,1,1,$AB$1)","v":"'Reserve Risk'!$H$19"},"=IF($F$19<0,0,$F$19*$G$19)",{"$f":"IF(_xlfn.FORMULATEXT(INDIRECT(AB51))=AC51,0,1)","v":0}]
[{"$f":"ADDRESS(55,40,1,1,$A$1)","v":"Summary!$AN$55"},60,{"$f":"IF(INDIRECT(A52)=B52,0,1)","v":0},{"$f":"ADDRESS(32,8,1,1,$D$1)","v":"'Fixed Income Investments'!$H$32"},0.25,{"$f":"IF(INDIRECT(D52)=E52,0,1)","v":0},{"$f":"ADDRESS(14,4,1,1,$G$1)","v":"'Equity Investments'!$D$14"},"='Schedule IIB'!D42+'Schedule IIC'!D42+'Schedule IID'!D42+'Schedule IIE'!D42+'Schedule IIF'!D42",0,null,null,null,{"$f":"ADDRESS(13,5,1,1,$M$1)","v":"'Currency Risk'!$E$13"},"='Schedule XXA'!H11",0,{"$f":"ADDRESS(24,4,1,1,$P$1)","v":"'Concentration Risk'!$D$24"},"=SUMIFS('Schedule XXIA'!$M$8:$M$57,'Schedule XXIA'!$K$8:$K$57,$D$22,'Schedule XXIA'!$L$8:$L$57,$B24)",{"$f":"IF(_xlfn.FORMULATEXT(INDIRECT(P52))=Q52,0,1)","v":0},{"$f":"ADDRESS(10,26,1,1,$S$1)","v":"'Geographic Diversification'!$Z$10"},"=+'Schedule IVE'!V10",0,{"$f":"ADDRESS(38,8,1,1,$V$1)","v":"'Credit Risk'!$H$38"},"=SUM(H24:H32)+H36",0,{"$f":"ADDRESS(14,8,1,1,$Y$1)","v":"'Premium Risk'!$H$14"},"='Schedule IVD'!I12*$G14",0,{"$f":"ADDRESS(20,4,1,1,$AB$1)","v":"'Reserve Risk'!$D$20"},"=+'Schedule III'!D19",{"$f":"IF(_xlfn.FORMULATEXT(INDIRECT(AB52))=AC52,0,1)","v":0}]
[{"$f":"ADDRESS(56,3,1,1,$A$1)","v":"Summary!$C$56"},"Equity Investment Risk",{"$f":"IF(INDIRECT(A53)=B53,0,1)","v":0},{"$f":"ADDRESS(32,9,1,1,$D$1)","v":"'Fixed Income Investments'!$I$32"},"=IF(G32<0,0,G32*H32)",{"$f":"IF(_xlfn.FORMULATEXT(INDIRECT(D53))=E53,0,1)","v":0},{"$f":"ADDRESS(14,5,1,1,$G$1)","v":"'Equity Investments'!$E$14"},"='Schedule IIB'!F42+'Schedule IIC'!F42+'Schedule IID'!F42+'Schedule IIE'!F42+'Schedule IIF'!F42",0,null,null,null,{"$f":"ADDRESS(13,6,1,1,$M$1)","v":"'Currency Risk'!$F$13"},"='Schedule XXA'!J11",0,{"$f":"ADDRESS(24,5,1,1,$P$1)","v":"'Concentration Risk'!$E$24"},"=+'Fixed Income Investments (old)'!E13",{"$f":"IF(_xlfn.FORMULATEXT(INDIRECT(P53))=Q53,0,1)","v":0},{"$f":"ADDRESS(11,4,1,1,$S$1)","v":"'Geographic Diversification'!$D$11"},"=SUM(I11:Z11)",0,{"$f":"ADDRESS(43,4,1,1,$V$1)","v":"'Credit Risk'!$D$43"},"='Premium Risk'!Q59",0,{"$f":"ADDRESS(14,9,1,1,$Y$1)","v":"'Premium Risk'!$I$14"},"='Schedule IVD'!K12*$G14",0,{"$f":"ADDRESS(20,5,1,1,$AB$1)","v":"'Reserve Risk'!$E$20"},"=+'Schedule III'!F19",{"$f":"IF(_xlfn.FORMULATEXT(INDIRECT(AB53))=AC53,0,1)","v":0}]
[{"$f":"ADDRESS(56,7,1,1,$A$1)","v":"Summary!$G$56"},"=ROUND('Equity Investments (old)'!F43,$Q$164)",{"$f":"IF(_xlfn.FORMULATEXT(INDIRECT(A54))=B54,0,1)","v":0},{"$f":"ADDRESS(33,7,1,1,$D$1)","v":"'Fixed Income Investments'!$G$33"},"='Schedule IIB'!H20+'Schedule IIC'!H20+(MAX(0,'Schedule IID'!H20-'Schedule IID'!J20))+'Schedule IIE'!H20+'Schedule IIF'!H20",{"$f":"IF(_xlfn.FORMULATEXT(INDIRECT(D54))=E54,0,1)","v":0},{"$f":"ADDRESS(14,6,1,1,$G$1)","v":"'Equity Investments'!$F$14"},"='Schedule IIB'!H42+'Schedule IIC'!H42+'Schedule IID'!H42+'Schedule IIE'!H42+'Schedule IIF'!H42",0,null,null,null,{"$f":"ADDRESS(13,7,1,1,$M$1)","v":"'Currency Risk'!$G$13"},"='Schedule XXA'!L11",0,{"$f":"ADDRESS(24,6,1,1,$P$1)","v":"'Concentration Risk'!$F$24"},"=MAX(0,(D24*E24))",{"$f":"IF(_xlfn.FORMULATEXT(INDIRECT(P54))=Q54,0,1)","v":0},{"$f":"ADDRESS(11,5,1,1,$S$1)","v":"'Geographic Diversification'!$E$11"},"=SUMSQ(I11:Z11)",0,{"$f":"ADDRESS(44,4,1,1,$V$1)","v":"'Credit Risk'!$D$44"},"='Premium Risk'!N59",0,{"$f":"ADDRESS(14,10,1,1,$Y$1)","v":"'Premium Risk'!$J$14"},"='Schedule IVD'!M12*$G14",0,{"$f":"ADDRESS(20,6,1,1,$AB$1)","v":"'Reserve Risk'!$F$20"},"='Geographic Diversification'!H49",{"$f":"IF(_xlfn.FORMULATEXT(INDIRECT(AB54))=AC54,0,1)","v":0}]
[{"$f":"ADDRESS(56,11,1,1,$A$1)","v":"Summary!$K$56"},"=ROUND('Equity Investments'!R56,$Q$164)",0,{"$f":"ADDRESS(33,8,1,1,$D$1)","v":"'Fixed Income Investments'!$H$33"},0.35,{"$f":"IF(INDIRECT(D55)=E55,0,1)","v":0},{"$f":"ADDRESS(14,7,1,1,$G$1)","v":"'Equity Investments'!$G$14"},"='Schedule IIB'!J42+'Schedule IIC'!J42+'Schedule IID'!J42+'Schedule IIE'!J42+'Schedule IIF'!J42",0,null,null,null,{"$f":"ADDRESS(13,8,1,1,$M$1)","v":"'Currency Risk'!$H$13"},"='Schedule XXA'!N11",0,{"$f":"ADDRESS(25,2,1,1,$P$1)","v":"'Concentration Risk'!$B$25"},"BSCR Rating 2",{"$f":"IF(INDIRECT(P55)=Q55,0,1)","v":0},{"$f":"ADDRESS(11,6,1,1,$S$1)","v":"'Geographic Diversification'!$F$11"},"=(IF(D11>0,E11/D11^2,1))",0,{"$f":"ADDRESS(45,4,1,1,$V$1)","v":"'Credit Risk'!$D$45"},"=D43-D44",0,{"$f":"ADDRESS(14,11,1,1,$Y$1)","v":"'Premium Risk'!$K$14"},0.34115345724240698,{"$f":"IF(INDIRECT(Y55)=Z55,0,1)","v":0},{"$f":"ADDRESS(20,7,1,1,$AB$1)","v":"'Reserve Risk'!$G$20"},0.39543823911176501,{"$f":"IF(INDIRECT(AB55)=AC55,0,1)","v":0}]
[{"$f":"ADDRESS(56,13,1,1,$A$1)","v":"Summary!$M$56"},"=ROUND('Equity Investments'!P56,$Q$164)",0,{"$f":"ADDRESS(33,9,1,1,$D$1)","v":"'Fixed Income Investments'!$I$33"},"=IF(G33<0,0,G33*H33)",{"$f":"IF(_xlfn.FORMULATEXT(INDIRECT(D56))=E56,0,1)","v":0},{"$f":"ADDRESS(14,8,1,1,$G$1)","v":"'Equity Investments'!$H$14"},"='Schedule IIB'!L42+'Schedule IIC'!L42+'Schedule IID'!L42+'Schedule IIE'!L42+'Schedule IIF'!L42",0,null,null,null,{"$f":"ADDRESS(13,9,1,1,$M$1)","v":"'Currency Risk'!$I$13"},"=$I$10*H13",0,{"$f":"ADDRESS(25,4,1,1,$P$1)","v":"'Concentration Risk'!$D$25"},"=SUMIFS('Schedule XXIA'!$M$8:$M$57,'Schedule XXIA'!$K$8:$K$57,$D$22,'Schedule XXIA'!$L$8:$L$57,$B25)",{"$f":"IF(_xlfn.FORMULATEXT(INDIRECT(P56))=Q56,0,1)","v":0},{"$f":"ADDRESS(11,7,1,1,$S$1)","v":"'Geographic Diversification'!$G$11"},"=D11*(0.75+0.25*F11)",0,{"$f":"ADDRESS(47,4,1,1,$V$1)","v":"'Credit Risk'!$D$47"},"=IF($F$34<>0, $D$45*F24/$F$34, 0)",0,{"$f":"ADDRESS(14,12,1,1,$Y$1)","v":"'Premium Risk'!$L$14"},"=+K14*S14",{"$f":"IF(_xlfn.FORMULATEXT(INDIRECT(Y56))=Z56,0,1)","v":0},{"$f":"ADDRESS(20,8,1,1,$AB$1)","v":"'Reserve Risk'!$H$20"},"=IF($F$20<0,0,$F$20*$G$20)",{"$f":"IF(_xlfn.FORMULATEXT(INDIRECT(AB56))=AC56,0,1)","v":0}]
[{"$f":"ADDRESS(56,20,1,1,$A$1)","v":"Summary!$T$56"},"=C56",0,{"$f":"ADDRESS(34,7,1,1,$D$1)","v":"'Fixed Income Investments'!$G$34"},"='Schedule IIB'!H21+'Schedule IIC'!H21+(MAX(0,'Schedule IID'!H21-'Schedule IID'!J21))+'Schedule IIE'!H21+'Schedule IIF'!H21",{"$f":"IF(_xlfn.FORMULATEXT(INDIRECT(D57))=E57,0,1)","v":0},{"$f":"ADDRESS(14,9,1,1,$G$1)","v":"'Equity Investments'!$I$14"},"='Schedule IIB'!N42+'Schedule IIC'!N42+'Schedule IID'!N42+'Schedule IIE'!N42+'Schedule IIF'!N42",0,null,null,null,{"$f":"ADDRESS(13,10,1,1,$M$1)","v":"'Currency Risk'!$J$13"},"=IF($B$12=\"Bermuda Dollars\",0%,IF($B$12=\"United States Dollars\",0%,IF((SUM(C13:G13))>(H13+I13),0%,25%)))",0,{"$f":"ADDRESS(25,5,1,1,$P$1)","v":"'Concentration Risk'!$E$25"},"=+'Fixed Income Investments (old)'!E14",{"$f":"IF(_xlfn.FORMULATEXT(INDIRECT(P57))=Q57,0,1)","v":0},{"$f":"ADDRESS(11,8,1,1,$S$1)","v":"'Geographic Diversification'!$H$11"},"=IF('Schedule IVE'!AB11=\"True\",G11,'Schedule IVD'!O11)",0,{"$f":"ADDRESS(47,6,1,1,$V$1)","v":"'Credit Risk'!$F$47"},"=IF($D$57=0,0,D47/$D$57)",0,{"$f":"ADDRESS(14,13,1,1,$Y$1)","v":"'Premium Risk'!$M$14"},"=+L14*T14",{"$f":"IF(_xlfn.FORMULATEXT(INDIRECT(Y57))=Z57,0,1)","v":0},{"$f":"ADDRESS(21,4,1,1,$AB$1)","v":"'Reserve Risk'!$D$21"},"=+'Schedule III'!D20",{"$f":"IF(_xlfn.FORMULATEXT(INDIRECT(AB57))=AC57,0,1)","v":0}]
[{"$f":"ADDRESS(56,24,1,1,$A$1)","v":"Summary!$X$56"},"=G56",0,{"$f":"ADDRESS(34,8,1,1,$D$1)","v":"'Fixed Income Investments'!$H$34"},0.35,{"$f":"IF(INDIRECT(D58)=E58,0,1)","v":0},{"$f":"ADDRESS(14,10,1,1,$G$1)","v":"'Equity Investments'!$J$14"},"='Schedule IIB'!P42+'Schedule IIC'!P42+'Schedule IID'!P42+'Schedule IIE'!P42+'Schedule IIF'!P42",0,null,null,null,{"$f":"ADDRESS(13,12,1,1,$M$1)","v":"'Currency Risk'!$L$13"},"='Schedule XXA'!V11",0,{"$f":"ADDRESS(25,6,1,1,$P$1)","v":"'Concentration Risk'!$F$25"},"=MAX(0,(D25*E25))",{"$f":"IF(_xlfn.FORMULATEXT(INDIRECT(P58))=Q58,0,1)","v":0},{"$f":"ADDRESS(11,9,1,1,$S$1)","v":"'Geographic Diversification'!$I$11"},"=+'Schedule IVE'!E11",0,{"$f":"ADDRESS(47,7,1,1,$V$1)","v":"'Credit Risk'!$G$47"},0,{"$f":"IF(INDIRECT(V58)=W58,0,1)","v":0},{"$f":"ADDRESS(14,14,1,1,$Y$1)","v":"'Premium Risk'!$N$14"},"=IF($H14<0,0,$H14*$K14)+IF($I14<0,0,$I14*$L14)+IF($J14<0,0,$J14*$M14)",{"$f":"IF(_xlfn.FORMULATEXT(INDIRECT(Y58))=Z58,0,1)","v":0},{"$f":"ADDRESS(21,5,1,1,$AB$1)","v":"'Reserve Risk'!$E$21"},"=+'Schedule III'!F20",{"$f":"IF(_xlfn.FORMULATEXT(INDIRECT(AB58))=AC58,0,1)","v":0}]
[{"$f":"ADDRESS(56,25,1,1,$A$1)","v":"Summary!$Y$56"},"=IF($L$72=0,1/9,X56/$X$66)",0,{"$f":"ADDRESS(34,9,1,1,$D$1)","v":"'Fixed Income Investments'!$I$34"},"=IF(G34<0,0,G34*H34)",{"$f":"IF(_xlfn.FORMULATEXT(INDIRECT(D59))=E59,0,1)","v":0},{"$f":"ADDRESS(14,11,1,1,$G$1)","v":"'Equity Investments'!$K$14"},"='Schedule IIB'!R42+'Schedule IIC'!R42+'Schedule IID'!R42+'Schedule IIE'!R42+'Schedule IIF'!R42",0,null,null,null,{"$f":"ADDRESS(13,13,1,1,$M$1)","v":"'Currency Risk'!$M$13"},"='Schedule XXA'!X11",0,{"$f":"ADDRESS(26,2,1,1,$P$1)","v":"'Concentration Risk'!$B$26"},"BSCR Rating 3",{"$f":"IF(INDIRECT(P59)=Q59,0,1)","v":0},{"$f":"ADDRESS(11,10,1,1,$S$1)","v":"'Geographic Diversification'!$J$11"},"=+'Schedule IVE'!F11",0,{"$f":"ADDRESS(47,8,1,1,$V$1)","v":"'Credit Risk'!$H$47"},"=IF($D$45<0,0,$D$45*F47*G47)",{"$f":"IF(_xlfn.FORMULATEXT(INDIRECT(V59))=W59,0,1)","v":0},{"$f":"ADDRESS(14,17,1,1,$Y$1)","v":"'Premium Risk'!$Q$14"},"=IF(H14=E14,MAX(D14*K14,0),IF(E14=F14,IF(D14<0,0,D14*(H14/F14)*K14),IF(D14<0,0,D14*(H14/E14)*K14)))\n+IF(I14=E14,MAX(D14*L14,0),IF(E14=F14,IF(D14<0,0,D14*(I14/F14)*L14),IF(D14<0,0,D14*(I14/E14)*L14)))\n+IF(J14=E14,MAX(D14*M14,0),IF(E14=F14,IF(D14<0,0,D14*(J14/F14)*M14),IF(D14<0,0,D14*(J14/E14)*M14)))",{"$f":"IF(_xlfn.FORMULATEXT(INDIRECT(Y59))=Z59,0,1)","v":0},{"$f":"ADDRESS(21,6,1,1,$AB$1)","v":"'Reserve Risk'!$F$21"},"='Geographic Diversification'!H50",{"$f":"IF(_xlfn.FORMULATEXT(INDIRECT(AB59))=AC59,0,1)","v":0}]
[{"$f":"ADDRESS(56,26,1,1,$A$1)","v":"Summary!$Z$56"},"=M56",0,{"$f":"ADDRESS(36,7,1,1,$D$1)","v":"'Fixed Income Investments'!$G$36"},"=SUM(G27:G34)",{"$f":"IF(_xlfn.FORMULATEXT(INDIRECT(D60))=E60,0,1)","v":0},{"$f":"ADDRESS(14,12,1,1,$G$1)","v":"'Equity Investments'!$L$14"},"='Schedule IIB'!T42+'Schedule IIC'!T42+'Schedule IID'!T42+'Schedule IIE'!T42+'Schedule IIF'!T42",0,null,null,null,{"$f":"ADDRESS(13,14,1,1,$M$1)","v":"'Currency Risk'!$N$13"},"='Schedule XXA'!Z11",0,{"$f":"ADDRESS(26,4,1,1,$P$1)","v":"'Concentration Risk'!$D$26"},"=SUMIFS('Schedule XXIA'!$M$8:$M$57,'Schedule XXIA'!$K$8:$K$57,$D$22,'Schedule XXIA'!$L$8:$L$57,$B26)",{"$f":"IF(_xlfn.FORMULATEXT(INDIRECT(P60))=Q60,0,1)","v":0},{"$f":"ADDRESS(11,11,1,1,$S$1)","v":"'Geographic Diversification'!$K$11"},"=+'Schedule IVE'!G11",0,{"$f":"ADDRESS(48,4,1,1,$V$1)","v":"'Credit Risk'!$D$48"},"=IF($F$34<>0, $D$45*F25/$F$34, 0)",{"$f":"IF(_xlfn.FORMULATEXT(INDIRECT(V60))=W60,0,1)","v":0},{"$f":"ADDRESS(14,19,1,1,$Y$1)","v":"'Premium Risk'!$S$14"},0.25,{"$f":"IF(INDIRECT(Y60)=Z60,0,1)","v":0},{"$f":"ADDRESS(21,7,1,1,$AB$1)","v":"'Reserve Risk'!$G$21"},0.43945783577556502,{"$f":"IF(INDIRECT(AB60)=AC60,0,1)","v":0}]
[{"$f":"ADDRESS(56,27,1,1,$A$1)","v":"Summary!$AA$56"},"=IF($N$72=0,1/9,Z56/$Z$66)",0,{"$f":"ADDRESS(36,9,1,1,$D$1)","v":"'Fixed Income Investments'!$I$36"},"=IF(SUM(I27:I34)>=0,SUM(I27:I34),0)",{"$f":"IF(_xlfn.FORMULATEXT(INDIRECT(D61))=E61,0,1)","v":0},{"$f":"ADDRESS(14,16,1,1,$G$1)","v":"'Equity Investments'!$P$14"},"=MAX(D14-E14,0)+(F14-G14)+MAX(H14-I14,0)+(K14-J14)",0,null,null,null,{"$f":"ADDRESS(13,15,1,1,$M$1)","v":"'Currency Risk'!$O$13"},"='Schedule XXA'!AB11",0,{"$f":"ADDRESS(26,5,1,1,$P$1)","v":"'Concentration Risk'!$E$26"},"=+'Fixed Income Investments (old)'!E15",{"$f":"IF(_xlfn.FORMULATEXT(INDIRECT(P61))=Q61,0,1)","v":0},{"$f":"ADDRESS(11,12,1,1,$S$1)","v":"'Geographic Diversification'!$L$11"},"=+'Schedule IVE'!H11",0,{"$f":"ADDRESS(48,6,1,1,$V$1)","v":"'Credit Risk'!$F$48"},"=IF($D$57=0,0,D48/$D$57)",{"$f":"IF(_xlfn.FORMULATEXT(INDIRECT(V61))=W61,0,1)","v":0},{"$f":"ADDRESS(14,20,1,1,$Y$1)","v":"'Premium Risk'!$T$14"},0.5,{"$f":"IF(INDIRECT(Y61)=Z61,0,1)","v":0},{"$f":"ADDRESS(21,8,1,1,$AB$1)","v":"'Reserve Risk'!$H$21"},"=IF($F$21<0,0,$F$21*$G$21)",{"$f":"IF(_xlfn.FORMULATEXT(INDIRECT(AB61))=AC61,0,1)","v":0}]
[{"$f":"ADDRESS(56,29,1,1,$A$1)","v":"Summary!$AC$56"},"=(SUM(AA$55:AA56)/AA$66)",0,{"$f":"ADDRESS(41,7,1,1,$D$1)","v":"'Fixed Income Investments'!$G$41"},"='Schedule IIB'!L14+'Schedule IIC'!L14+(MAX(0,'Schedule IID'!L14-'Schedule IID'!N14))+'Schedule IIE'!L14+'Schedule IIF'!L14",{"$f":"IF(_xlfn.FORMULATEXT(INDIRECT(D62))=E62,0,1)","v":0},{"$f":"ADDRESS(14,18,1,1,$G$1)","v":"'Equity Investments'!$R$14"},"=MAX(D14-E14,0)+(F14-G14)+MAX(H14-I14,0)+(L14-J14)",0,null,null,null,{"$f":"ADDRESS(13,16,1,1,$M$1)","v":"'Currency Risk'!$P$13"},"='Schedule XXA'!AD11",0,{"$f":"ADDRESS(26,6,1,1,$P$1)","v":"'Concentration Risk'!$F$26"},"=MAX(0,(D26*E26))",{"$f":"IF(_xlfn.FORMULATEXT(INDIRECT(P62))=Q62,0,1)","v":0},{"$f":"ADDRESS(11,13,1,1,$S$1)","v":"'Geographic Diversification'!$M$11"},"=+'Schedule IVE'!I11",0,{"$f":"ADDRESS(48,7,1,1,$V$1)","v":"'Credit Risk'!$G$48"},7.0000000000000001E-3,{"$f":"IF(INDIRECT(V62)=W62,0,1)","v":0},{"$f":"ADDRESS(15,4,1,1,$Y$1)","v":"'Premium Risk'!$D$15"},"='Schedule IVD'!Q13",{"$f":"IF(_xlfn.FORMULATEXT(INDIRECT(Y62))=Z62,0,1)","v":0},{"$f":"ADDRESS(22,4,1,1,$AB$1)","v":"'Reserve Risk'!$D$22"},"=+'Schedule III'!D21",{"$f":"IF(_xlfn.FORMULATEXT(INDIRECT(AB62))=AC62,0,1)","v":0}]
[{"$f":"ADDRESS(56,32,1,1,$A$1)","v":"Summary!$AF$56"},"=IF(AO56=\"\",IF(Test_Statistic<$AJ$72,AI56,IF(Test_Statistic<$AL$72,AK56,AM56)),AO56)",0,{"$f":"ADDRESS(41,8,1,1,$D$1)","v":"'Fixed Income Investments'!$H$41"},5.0000000000000001E-3,{"$f":"IF(INDIRECT(D63)=E63,0,1)","v":0},{"$f":"ADDRESS(15,4,1,1,$G$1)","v":"'Equity Investments'!$D$15"},"='Schedule IIB'!D43+'Schedule IIC'!D43+'Schedule IID'!D43+'Schedule IIE'!D43+'Schedule IIF'!D43",0,null,null,null,{"$f":"ADDRESS(13,17,1,1,$M$1)","v":"'Currency Risk'!$Q$13"},"='Schedule XXA'!AF11",0,{"$f":"ADDRESS(27,2,1,1,$P$1)","v":"'Concentration Risk'!$B$27"},"BSCR Rating 4",{"$f":"IF(INDIRECT(P63)=Q63,0,1)","v":0},{"$f":"ADDRESS(11,14,1,1,$S$1)","v":"'Geographic Diversification'!$N$11"},"=+'Schedule IVE'!J11",0,{"$f":"ADDRESS(48,8,1,1,$V$1)","v":"'Credit Risk'!$H$48"},"=IF($D$45<0,0,$D$45*F48*G48)",{"$f":"IF(_xlfn.FORMULATEXT(INDIRECT(V63))=W63,0,1)","v":0},{"$f":"ADDRESS(15,5,1,1,$Y$1)","v":"'Premium Risk'!$E$15"},"='Schedule IVD'!O13",0,{"$f":"ADDRESS(22,5,1,1,$AB$1)","v":"'Reserve Risk'!$E$22"},"=+'Schedule III'!F21",{"$f":"IF(_xlfn.FORMULATEXT(INDIRECT(AB63))=AC63,0,1)","v":0}]
[{"$f":"ADDRESS(56,33,1,1,$A$1)","v":"Summary!$AG$56"},"=IF(AP56=\"\",IF(Test_Statistic<$AJ$72,AJ56,IF(Test_Statistic<$AL$72,AL56,AN56)),AP56)",0,{"$f":"ADDRESS(41,9,1,1,$D$1)","v":"'Fixed Income Investments'!$I$41"},"=IF(G41<0,0,G41*H41)",{"$f":"IF(_xlfn.FORMULATEXT(INDIRECT(D64))=E64,0,1)","v":0},{"$f":"ADDRESS(15,5,1,1,$G$1)","v":"'Equity Investments'!$E$15"},"='Schedule IIB'!F43+'Schedule IIC'!F43+'Schedule IID'!F43+'Schedule IIE'!F43+'Schedule IIF'!F43",0,null,null,null,{"$f":"ADDRESS(13,18,1,1,$M$1)","v":"'Currency Risk'!$R$13"},"=IF('Schedule XXA'!AH11=0,Q13,'Schedule XXA'!AH11)",0,{"$f":"ADDRESS(27,4,1,1,$P$1)","v":"'Concentration Risk'!$D$27"},"=SUMIFS('Schedule XXIA'!$M$8:$M$57,'Schedule XXIA'!$K$8:$K$57,$D$22,'Schedule XXIA'!$L$8:$L$57,$B27)",{"$f":"IF(_xlfn.FORMULATEXT(INDIRECT(P64))=Q64,0,1)","v":0},{"$f":"ADDRESS(11,15,1,1,$S$1)","v":"'Geographic Diversification'!$O$11"},"=+'Schedule IVE'!K11",0,{"$f":"ADDRESS(49,4,1,1,$V$1)","v":"'Credit Risk'!$D$49"},"=IF($F$34<>0, $D$45*F26/$F$34, 0)",{"$f":"IF(_xlfn.FORMULATEXT(INDIRECT(V64))=W64,0,1)","v":0},{"$f":"ADDRESS(15,6,1,1,$Y$1)","v":"'Premium Risk'!$F$15"},"='Geographic Diversification'!H13",0,{"$f":"ADDRESS(22,6,1,1,$AB$1)","v":"'Reserve Risk'!$F$22"},"='Geographic Diversification'!H51",{"$f":"IF(_xlfn.FORMULATEXT(INDIRECT(AB64))=AC64,0,1)","v":0}]
[{"$f":"ADDRESS(56,35,1,1,$A$1)","v":"Summary!$AI$56"},"=IF(AC61>0.6,300,300)",0,{"$f":"ADDRESS(42,7,1,1,$D$1)","v":"'Fixed Income Investments'!$G$42"},"='Schedule IIB'!L15+'Schedule IIC'!L15+(MAX(0,'Schedule IID'!L15-'Schedule IID'!N15))+'Schedule IIE'!L15+'Schedule IIF'!L15",{"$f":"IF(_xlfn.FORMULATEXT(INDIRECT(D65))=E65,0,1)","v":0},{"$f":"ADDRESS(15,6,1,1,$G$1)","v":"'Equity Investments'!$F$15"},"='Schedule IIB'!H43+'Schedule IIC'!H43+'Schedule IID'!H43+'Schedule IIE'!H43+'Schedule IIF'!H43",0,null,null,null,{"$f":"ADDRESS(13,20,1,1,$M$1)","v":"'Currency Risk'!$T$13"},"=(C13-L13)+(D13-M13)+(F13-O13)+MAX(E13-N13,0)+MAX(G13-P13,0)",0,{"$f":"ADDRESS(27,5,1,1,$P$1)","v":"'Concentration Risk'!$E$27"},"=+'Fixed Income Investments (old)'!E16",{"$f":"IF(_xlfn.FORMULATEXT(INDIRECT(P65))=Q65,0,1)","v":0},{"$f":"ADDRESS(11,16,1,1,$S$1)","v":"'Geographic Diversification'!$P$11"},"=+'Schedule IVE'!L11",0,{"$f":"ADDRESS(49,6,1,1,$V$1)","v":"'Credit Risk'!$F$49"},"=IF($D$57=0,0,D49/$D$57)",{"$f":"IF(_xlfn.FORMULATEXT(INDIRECT(V65))=W65,0,1)","v":0},{"$f":"ADDRESS(15,7,1,1,$Y$1)","v":"'Premium Risk'!$G$15"},"=IF(IFERROR(F15/E15,1)<0,1,IFERROR(F15/E15,1))",0,{"$f":"ADDRESS(22,7,1,1,$AB$1)","v":"'Reserve Risk'!$G$22"},0.43018098459069698,{"$f":"IF(INDIRECT(AB65)=AC65,0,1)","v":0}]
[{"$f":"ADDRESS(56,36,1,1,$A$1)","v":"Summary!$AJ$56"},"=IF(AC63>1,90,IF(AC61>1,60,IF(AC61>0.6,90,60)))",0,{"$f":"ADDRESS(42,8,1,1,$D$1)","v":"'Fixed Income Investments'!$H$42"},0.01,{"$f":"IF(INDIRECT(D66)=E66,0,1)","v":0},{"$f":"ADDRESS(15,7,1,1,$G$1)","v":"'Equity Investments'!$G$15"},"='Schedule IIB'!J43+'Schedule IIC'!J43+'Schedule IID'!J43+'Schedule IIE'!J43+'Schedule IIF'!J43",0,null,null,null,{"$f":"ADDRESS(13,21,1,1,$M$1)","v":"'Currency Risk'!$U$13"},"=Q13-$H13",0,{"$f":"ADDRESS(27,6,1,1,$P$1)","v":"'Concentration Risk'!$F$27"},"=MAX(0,(D27*E27))",{"$f":"IF(_xlfn.FORMULATEXT(INDIRECT(P66))=Q66,0,1)","v":0},{"$f":"ADDRESS(11,17,1,1,$S$1)","v":"'Geographic Diversification'!$Q$11"},"=+'Schedule IVE'!M11",0,{"$f":"ADDRESS(49,7,1,1,$V$1)","v":"'Credit Risk'!$G$49"},1.4999999999999999E-2,{"$f":"IF(INDIRECT(V66)=W66,0,1)","v":0},{"$f":"ADDRESS(15,8,1,1,$Y$1)","v":"'Premium Risk'!$H$15"},"='Schedule IVD'!I13*$G15",0,{"$f":"ADDRESS(22,8,1,1,$AB$1)","v":"'Reserve Risk'!$H$22"},"=IF($F$22<0,0,$F$22*$G$22)",{"$f":"IF(_xlfn.FORMULATEXT(INDIRECT(AB66))=AC66,0,1)","v":0}]
[{"$f":"ADDRESS(56,37,1,1,$A$1)","v":"Summary!$AK$56"},300,{"$f":"IF(INDIRECT(A67)=B67,0,1)","v":0},{"$f":"ADDRESS(42,9,1,1,$D$1)","v":"'Fixed Income Investments'!$I$42"},"=IF(G42<0,0,G42*H42)",{"$f":"IF(_xlfn.FORMULATEXT(INDIRECT(D67))=E67,0,1)","v":0},{"$f":"ADDRESS(15,8,1,1,$G$1)","v":"'Equity Investments'!$H$15"},"='Schedule IIB'!L43+'Schedule IIC'!L43+'Schedule IID'!L43+'Schedule IIE'!L43+'Schedule IIF'!L43",0,null,null,null,{"$f":"ADDRESS(13,22,1,1,$M$1)","v":"'Currency Risk'!$V$13"},"=R13-$H13",0,{"$f":"ADDRESS(28,2,1,1,$P$1)","v":"'Concentration Risk'!$B$28"},"BSCR Rating 5",{"$f":"IF(INDIRECT(P67)=Q67,0,1)","v":0},{"$f":"ADDRESS(11,18,1,1,$S$1)","v":"'Geographic Diversification'!$R$11"},"=+'Schedule IVE'!N11",0,{"$f":"ADDRESS(49,8,1,1,$V$1)","v":"'Credit Risk'!$H$49"},"=IF($D$45<0,0,$D$45*F49*G49)",{"$f":"IF(_xlfn.FORMULATEXT(INDIRECT(V67))=W67,0,1)","v":0},{"$f":"ADDRESS(15,9,1,1,$Y$1)","v":"'Premium Risk'!$I$15"},"='Schedule IVD'!K13*$G15",0,{"$f":"ADDRESS(23,4,1,1,$AB$1)","v":"'Reserve Risk'!$D$23"},"=+'Schedule III'!D22",{"$f":"IF(_xlfn.FORMULATEXT(INDIRECT(AB67))=AC67,0,1)","v":0}]
[{"$f":"ADDRESS(56,38,1,1,$A$1)","v":"Summary!$AL$56"},120,{"$f":"IF(INDIRECT(A68)=B68,0,1)","v":0},{"$f":"ADDRESS(43,7,1,1,$D$1)","v":"'Fixed Income Investments'!$G$43"},"='Schedule IIB'!L16+'Schedule IIC'!L16+(MAX(0,'Schedule IID'!L16-'Schedule IID'!N16))+'Schedule IIE'!L16+'Schedule IIF'!L16",{"$f":"IF(_xlfn.FORMULATEXT(INDIRECT(D68))=E68,0,1)","v":0},{"$f":"ADDRESS(15,9,1,1,$G$1)","v":"'Equity Investments'!$I$15"},"='Schedule IIB'!N43+'Schedule IIC'!N43+'Schedule IID'!N43+'Schedule IIE'!N43+'Schedule IIF'!N43",0,null,null,null,{"$f":"ADDRESS(13,24,1,1,$M$1)","v":"'Currency Risk'!$X$13"},"=MAX(0,$T13+U13+(J13*I13))",0,{"$f":"ADDRESS(28,4,1,1,$P$1)","v":"'Concentration Risk'!$D$28"},"=SUMIFS('Schedule XXIA'!$M$8:$M$57,'Schedule XXIA'!$K$8:$K$57,$D$22,'Schedule XXIA'!$L$8:$L$57,$B28)",{"$f":"IF(_xlfn.FORMULATEXT(INDIRECT(P68))=Q68,0,1)","v":0},{"$f":"ADDRESS(11,19,1,1,$S$1)","v":"'Geographic Diversification'!$S$11"},"=+'Schedule IVE'!O11",{"$f":"IF(_xlfn.FORMULATEXT(INDIRECT(S68))=T68,0,1)","v":0},{"$f":"ADDRESS(50,4,1,1,$V$1)","v":"'Credit Risk'!$D$50"},"=IF($F$34<>0, $D$45*F27/$F$34, 0)",{"$f":"IF(_xlfn.FORMULATEXT(INDIRECT(V68))=W68,0,1)","v":0},{"$f":"ADDRESS(15,10,1,1,$Y$1)","v":"'Premium Risk'!$J$15"},"='Schedule IVD'!M13*$G15",0,{"$f":"ADDRESS(23,5,1,1,$AB$1)","v":"'Reserve Risk'!$E$23"},"=+'Schedule III'!F22",{"$f":"IF(_xlfn.FORMULATEXT(INDIRECT(AB68))=AC68,0,1)","v":0}]
[{"$f":"ADDRESS(56,39,1,1,$A$1)","v":"Summary!$AM$56"},280,{"$f":"IF(INDIRECT(A69)=B69,0,1)","v":0},{"$f":"ADDRESS(43,8,1,1,$D$1)","v":"'Fixed Income Investments'!$H$43"},1.7999999999999999E-2,{"$f":"IF(INDIRECT(D69)=E69,0,1)","v":0},{"$f":"ADDRESS(15,10,1,1,$G$1)","v":"'Equity Investments'!$J$15"},"='Schedule IIB'!P43+'Schedule IIC'!P43+'Schedule IID'!P43+'Schedule IIE'!P43+'Schedule IIF'!P43",0,null,null,null,{"$f":"ADDRESS(13,25,1,1,$M$1)","v":"'Currency Risk'!$Y$13"},"=MAX(0,$T13+V13+(J13*I13))",0,{"$f":"ADDRESS(28,5,1,1,$P$1)","v":"'Concentration Risk'!$E$28"},"=+'Fixed Income Investments (old)'!E17",{"$f":"IF(_xlfn.FORMULATEXT(INDIRECT(P69))=Q69,0,1)","v":0},{"$f":"ADDRESS(11,20,1,1,$S$1)","v":"'Geographic Diversification'!$T$11"},"=+'Schedule IVE'!P11",0,{"$f":"ADDRESS(50,6,1,1,$V$1)","v":"'Credit Risk'!$F$50"},"=IF($D$57=0,0,D50/$D$57)",{"$f":"IF(_xlfn.FORMULATEXT(INDIRECT(V69))=W69,0,1)","v":0},{"$f":"ADDRESS(15,11,1,1,$Y$1)","v":"'Premium Risk'!$K$15"},0.41221262895987398,{"$f":"IF(INDIRECT(Y69)=Z69,0,1)","v":0},{"$f":"ADDRESS(23,6,1,1,$AB$1)","v":"'Reserve Risk'!$F$23"},"='Geographic Diversification'!H52",{"$f":"IF(_xlfn.FORMULATEXT(INDIRECT(AB69))=AC69,0,1)","v":0}]
[{"$f":"ADDRESS(56,40,1,1,$A$1)","v":"Summary!$AN$56"},140,{"$f":"IF(INDIRECT(A70)=B70,0,1)","v":0},{"$f":"ADDRESS(43,9,1,1,$D$1)","v":"'Fixed Income Investments'!$I$43"},"=IF(G43<0,0,G43*H43)",{"$f":"IF(_xlfn.FORMULATEXT(INDIRECT(D70))=E70,0,1)","v":0},{"$f":"ADDRESS(15,11,1,1,$G$1)","v":"'Equity Investments'!$K$15"},"='Schedule IIB'!R43+'Schedule IIC'!R43+'Schedule IID'!R43+'Schedule IIE'!R43+'Schedule IIF'!R43",0,null,null,null,{"$f":"ADDRESS(14,2,1,1,$M$1)","v":"'Currency Risk'!$B$14"},"='Schedule XXA'!B12",0,{"$f":"ADDRESS(28,6,1,1,$P$1)","v":"'Concentration Risk'!$F$28"},"=MAX(0,(D28*E28))",{"$f":"IF(_xlfn.FORMULATEXT(INDIRECT(P70))=Q70,0,1)","v":0},{"$f":"ADDRESS(11,21,1,1,$S$1)","v":"'Geographic Diversification'!$U$11"},"=+'Schedule IVE'!Q11",0,{"$f":"ADDRESS(50,7,1,1,$V$1)","v":"'Credit Risk'!$G$50"},3.5000000000000003E-2,{"$f":"IF(INDIRECT(V70)=W70,0,1)","v":0},{"$f":"ADDRESS(15,12,1,1,$Y$1)","v":"'Premium Risk'!$L$15"},"=+K15*S15",{"$f":"IF(_xlfn.FORMULATEXT(INDIRECT(Y70))=Z70,0,1)","v":0},{"$f":"ADDRESS(23,7,1,1,$AB$1)","v":"'Reserve Risk'!$G$23"},0.48842309052279498,{"$f":"IF(INDIRECT(AB70)=AC70,0,1)","v":0}]
[{"$f":"ADDRESS(57,3,1,1,$A$1)","v":"Summary!$C$57"},"Interest Rate / Liquidity Risk",{"$f":"IF(INDIRECT(A71)=B71,0,1)","v":0},{"$f":"ADDRESS(44,7,1,1,$D$1)","v":"'Fixed Income Investments'!$G$44"},"='Schedule IIB'!L17+'Schedule IIC'!L17+(MAX(0,'Schedule IID'!L17-'Schedule IID'!N17))+'Schedule IIE'!L17+'Schedule IIF'!L17",{"$f":"IF(_xlfn.FORMULATEXT(INDIRECT(D71))=E71,0,1)","v":0},{"$f":"ADDRESS(15,12,1,1,$G$1)","v":"'Equity Investments'!$L$15"},"='Schedule IIB'!T43+'Schedule IIC'!T43+'Schedule IID'!T43+'Schedule IIE'!T43+'Schedule IIF'!T43",0,null,null,null,{"$f":"ADDRESS(14,3,1,1,$M$1)","v":"'Currency Risk'!$C$14"},"='Schedule XXA'!D12",0,{"$f":"ADDRESS(29,2,1,1,$P$1)","v":"'Concentration Risk'!$B$29"},"BSCR Rating 6",{"$f":"IF(INDIRECT(P71)=Q71,0,1)","v":0},{"$f":"ADDRESS(11,22,1,1,$S$1)","v":"'Geographic Diversification'!$V$11"},"=+'Schedule IVE'!R11",0,{"$f":"ADDRESS(50,8,1,1,$V$1)","v":"'Credit Risk'!$H$50"},"=IF($D$45<0,0,$D$45*F50*G50)",{"$f":"IF(_xlfn.FORMULATEXT(INDIRECT(V71))=W71,0,1)","v":0},{"$f":"ADDRESS(15,13,1,1,$Y$1)","v":"'Premium Risk'!$M$15"},"=+L15*T15",{"$f":"IF(_xlfn.FORMULATEXT(INDIRECT(Y71))=Z71,0,1)","v":0},{"$f":"ADDRESS(23,8,1,1,$AB$1)","v":"'Reserve Risk'!$H$23"},"=IF($F$23<0,0,$F$23*$G$23)",{"$f":"IF(_xlfn.FORMULATEXT(INDIRECT(AB71))=AC71,0,1)","v":0}]
[{"$f":"ADDRESS(57,7,1,1,$A$1)","v":"Summary!$G$57"},"=ROUND('Interest Rate-Liquidity Risk'!G14,$Q$164)",{"$f":"IF(_xlfn.FORMULATEXT(INDIRECT(A72))=B72,0,1)","v":0},{"$f":"ADDRESS(44,8,1,1,$D$1)","v":"'Fixed Income Investments'!$H$44"},3.5000000000000003E-2,{"$f":"IF(INDIRECT(D72)=E72,0,1)","v":0},{"$f":"ADDRESS(15,16,1,1,$G$1)","v":"'Equity Investments'!$P$15"},"=MAX(D15-E15,0)+(F15-G15)+MAX(H15-I15,0)+(K15-J15)",{"$f":"IF(_xlfn.FORMULATEXT(INDIRECT(G72))=H72,0,1)","v":0},null,null,null,{"$f":"ADDRESS(14,4,1,1,$M$1)","v":"'Currency Risk'!$D$14"},"='Schedule XXA'!F12",0,{"$f":"ADDRESS(29,4,1,1,$P$1)","v":"'Concentration Risk'!$D$29"},"=SUMIFS('Schedule XXIA'!$M$8:$M$57,'Schedule XXIA'!$K$8:$K$57,$D$22,'Schedule XXIA'!$L$8:$L$57,$B29)",{"$f":"IF(_xlfn.FORMULATEXT(INDIRECT(P72))=Q72,0,1)","v":0},{"$f":"ADDRESS(11,23,1,1,$S$1)","v":"'Geographic Diversification'!$W$11"},"=+'Schedule IVE'!S11",0,{"$f":"ADDRESS(51,4,1,1,$V$1)","v":"'Credit Risk'!$D$51"},"=IF($F$34<>0, $D$45*F28/$F$34, D45)",{"$f":"IF(_xlfn.FORMULATEXT(INDIRECT(V72))=W72,0,1)","v":0},{"$f":"ADDRESS(15,14,1,1,$Y$1)","v":"'Premium Risk'!$N$15"},"=IF($H15<0,0,$H15*$K15)+IF($I15<0,0,$I15*$L15)+IF($J15<0,0,$J15*$M15)",{"$f":"IF(_xlfn.FORMULATEXT(INDIRECT(Y72))=Z72,0,1)","v":0},{"$f":"ADDRESS(24,4,1,1,$AB$1)","v":"'Reserve Risk'!$D$24"},"=+'Schedule III'!D23",{"$f":"IF(_xlfn.FORMULATEXT(INDIRECT(AB72))=AC72,0,1)","v":0}]
[{"$f":"ADDRESS(57,11,1,1,$A$1)","v":"Summary!$K$57"},"=ROUND(IF(E57=\"Duration-Based Approach\",'Interest Rate-Liquidity Risk'!G14,'Interest Rate-Liquidity (Rev.)'!E117),$Q$164)",0,{"$f":"ADDRESS(44,9,1,1,$D$1)","v":"'Fixed Income Investments'!$I$44"},"=IF(G44<0,0,G44*H44)",{"$f":"IF(_xlfn.FORMULATEXT(INDIRECT(D73))=E73,0,1)","v":0},{"$f":"ADDRESS(15,18,1,1,$G$1)","v":"'Equity Investments'!$R$15"},"=MAX(D15-E15,0)+(F15-G15)+MAX(H15-I15,0)+(L15-J15)",0,null,null,null,{"$f":"ADDRESS(14,5,1,1,$M$1)","v":"'Currency Risk'!$E$14"},"='Schedule XXA'!H12",0,{"$f":"ADDRESS(29,5,1,1,$P$1)","v":"'Concentration Risk'!$E$29"},"=+'Fixed Income Investments (old)'!E18",{"$f":"IF(_xlfn.FORMULATEXT(INDIRECT(P73))=Q73,0,1)","v":0},{"$f":"ADDRESS(11,24,1,1,$S$1)","v":"'Geographic Diversification'!$X$11"},"=+'Schedule IVE'!T11",0,{"$f":"ADDRESS(51,6,1,1,$V$1)","v":"'Credit Risk'!$F$51"},"=IF($D$57=0,0,D51/$D$57)",{"$f":"IF(_xlfn.FORMULATEXT(INDIRECT(V73))=W73,0,1)","v":0},{"$f":"ADDRESS(15,17,1,1,$Y$1)","v":"'Premium Risk'!$Q$15"},"=IF(H15=E15,MAX(D15*K15,0),IF(E15=F15,IF(D15<0,0,D15*(H15/F15)*K15),IF(D15<0,0,D15*(H15/E15)*K15)))\n+IF(I15=E15,MAX(D15*L15,0),IF(E15=F15,IF(D15<0,0,D15*(I15/F15)*L15),IF(D15<0,0,D15*(I15/E15)*L15)))\n+IF(J15=E15,MAX(D15*M15,0),IF(E15=F15,IF(D15<0,0,D15*(J15/F15)*M15),IF(D15<0,0,D15*(J15/E15)*M15)))",{"$f":"IF(_xlfn.FORMULATEXT(INDIRECT(Y73))=Z73,0,1)","v":0},{"$f":"ADDRESS(24,5,1,1,$AB$1)","v":"'Reserve Risk'!$E$24"},"=+'Schedule III'!F23",{"$f":"IF(_xlfn.FORMULATEXT(INDIRECT(AB73))=AC73,0,1)","v":0}]
[{"$f":"ADDRESS(57,13,1,1,$A$1)","v":"Summary!$M$57"},"=ROUND(IF(E57=\"Duration-Based Approach\",'Interest Rate-Liquidity Risk'!G14,'Interest Rate-Liquidity (Rev.)'!D117),$Q$164)",0,{"$f":"ADDRESS(45,7,1,1,$D$1)","v":"'Fixed Income Investments'!$G$45"},"='Schedule IIB'!L18+'Schedule IIC'!L18+(MAX(0,'Schedule IID'!L18-'Schedule IID'!N18))+'Schedule IIE'!L18+'Schedule IIF'!L18",{"$f":"IF(_xlfn.FORMULATEXT(INDIRECT(D74))=E74,0,1)","v":0},{"$f":"ADDRESS(16,4,1,1,$G$1)","v":"'Equity Investments'!$D$16"},"='Schedule IIB'!D44+'Schedule IIC'!D44+'Schedule IID'!D44+'Schedule IIE'!D44+'Schedule IIF'!D44",0,null,null,null,{"$f":"ADDRESS(14,6,1,1,$M$1)","v":"'Currency Risk'!$F$14"},"='Schedule XXA'!J12",0,{"$f":"ADDRESS(29,6,1,1,$P$1)","v":"'Concentration Risk'!$F$29"},"=MAX(0,(D29*E29))",{"$f":"IF(_xlfn.FORMULATEXT(INDIRECT(P74))=Q74,0,1)","v":0},{"$f":"ADDRESS(11,25,1,1,$S$1)","v":"'Geographic Diversification'!$Y$11"},"=+'Schedule IVE'!U11",0,{"$f":"ADDRESS(51,7,1,1,$V$1)","v":"'Credit Risk'!$G$51"},7.0000000000000007E-2,{"$f":"IF(INDIRECT(V74)=W74,0,1)","v":0},{"$f":"ADDRESS(15,19,1,1,$Y$1)","v":"'Premium Risk'!$S$15"},0.3,{"$f":"IF(INDIRECT(Y74)=Z74,0,1)","v":0},{"$f":"ADDRESS(24,6,1,1,$AB$1)","v":"'Reserve Risk'!$F$24"},"='Geographic Diversification'!H53",{"$f":"IF(_xlfn.FORMULATEXT(INDIRECT(AB74))=AC74,0,1)","v":0}]
[{"$f":"ADDRESS(57,20,1,1,$A$1)","v":"Summary!$T$57"},"=C57",0,{"$f":"ADDRESS(45,8,1,1,$D$1)","v":"'Fixed Income Investments'!$H$45"},0.1,{"$f":"IF(INDIRECT(D75)=E75,0,1)","v":0},{"$f":"ADDRESS(16,5,1,1,$G$1)","v":"'Equity Investments'!$E$16"},"='Schedule IIB'!F44+'Schedule IIC'!F44+'Schedule IID'!F44+'Schedule IIE'!F44+'Schedule IIF'!F44",0,null,null,null,{"$f":"ADDRESS(14,7,1,1,$M$1)","v":"'Currency Risk'!$G$14"},"='Schedule XXA'!L12",0,{"$f":"ADDRESS(30,2,1,1,$P$1)","v":"'Concentration Risk'!$B$30"},"BSCR Rating 7",{"$f":"IF(INDIRECT(P75)=Q75,0,1)","v":0},{"$f":"ADDRESS(11,26,1,1,$S$1)","v":"'Geographic Diversification'!$Z$11"},"=+'Schedule IVE'!V11",0,{"$f":"ADDRESS(51,8,1,1,$V$1)","v":"'Credit Risk'!$H$51"},"=IF($D$45<0,0,$D$45*F51*G51)",{"$f":"IF(_xlfn.FORMULATEXT(INDIRECT(V75))=W75,0,1)","v":0},{"$f":"ADDRESS(15,20,1,1,$Y$1)","v":"'Premium Risk'!$T$15"},0.5,{"$f":"IF(INDIRECT(Y75)=Z75,0,1)","v":0},{"$f":"ADDRESS(24,7,1,1,$AB$1)","v":"'Reserve Risk'!$G$24"},0.462752832710698,{"$f":"IF(INDIRECT(AB75)=AC75,0,1)","v":0}]
[{"$f":"ADDRESS(57,24,1,1,$A$1)","v":"Summary!$X$57"},"=G57",0,{"$f":"ADDRESS(45,9,1,1,$D$1)","v":"'Fixed Income Investments'!$I$45"},"=IF(G45<0,0,G45*H45)",{"$f":"IF(_xlfn.FORMULATEXT(INDIRECT(D76))=E76,0,1)","v":0},{"$f":"ADDRESS(16,6,1,1,$G$1)","v":"'Equity Investments'!$F$16"},"='Schedule IIB'!H44+'Schedule IIC'!H44+'Schedule IID'!H44+'Schedule IIE'!H44+'Schedule IIF'!H44",0,null,null,null,{"$f":"ADDRESS(14,8,1,1,$M$1)","v":"'Currency Risk'!$H$14"},"='Schedule XXA'!N12",0,{"$f":"ADDRESS(30,4,1,1,$P$1)","v":"'Concentration Risk'!$D$30"},"=SUMIFS('Schedule XXIA'!$M$8:$M$57,'Schedule XXIA'!$K$8:$K$57,$D$22,'Schedule XXIA'!$L$8:$L$57,$B30)",{"$f":"IF(_xlfn.FORMULATEXT(INDIRECT(P76))=Q76,0,1)","v":0},{"$f":"ADDRESS(12,4,1,1,$S$1)","v":"'Geographic Diversification'!$D$12"},"=SUM(I12:Z12)",0,{"$f":"ADDRESS(52,4,1,1,$V$1)","v":"'Credit Risk'!$D$52"},"=IF($F$34<>0, $D$45*F29/$F$34, 0)",{"$f":"IF(_xlfn.FORMULATEXT(INDIRECT(V76))=W76,0,1)","v":0},{"$f":"ADDRESS(16,4,1,1,$Y$1)","v":"'Premium Risk'!$D$16"},"='Schedule IVD'!Q14",{"$f":"IF(_xlfn.FORMULATEXT(INDIRECT(Y76))=Z76,0,1)","v":0},{"$f":"ADDRESS(24,8,1,1,$AB$1)","v":"'Reserve Risk'!$H$24"},"=IF($F$24<0,0,$F$24*$G$24)",{"$f":"IF(_xlfn.FORMULATEXT(INDIRECT(AB76))=AC76,0,1)","v":0}]
[{"$f":"ADDRESS(57,25,1,1,$A$1)","v":"Summary!$Y$57"},"=IF($L$72=0,1/9,X57/$X$66)",0,{"$f":"ADDRESS(46,7,1,1,$D$1)","v":"'Fixed Income Investments'!$G$46"},"='Schedule IIB'!L19+'Schedule IIC'!L19+(MAX(0,'Schedule IID'!L19-'Schedule IID'!N19))+'Schedule IIE'!L19+'Schedule IIF'!L19",{"$f":"IF(_xlfn.FORMULATEXT(INDIRECT(D77))=E77,0,1)","v":0},{"$f":"ADDRESS(16,7,1,1,$G$1)","v":"'Equity Investments'!$G$16"},"='Schedule IIB'!J44+'Schedule IIC'!J44+'Schedule IID'!J44+'Schedule IIE'!J44+'Schedule IIF'!J44",0,null,null,null,{"$f":"ADDRESS(14,9,1,1,$M$1)","v":"'Currency Risk'!$I$14"},"=$I$10*H14",0,{"$f":"ADDRESS(30,5,1,1,$P$1)","v":"'Concentration Risk'!$E$30"},"=+'Fixed Income Investments (old)'!E19",{"$f":"IF(_xlfn.FORMULATEXT(INDIRECT(P77))=Q77,0,1)","v":0},{"$f":"ADDRESS(12,5,1,1,$S$1)","v":"'Geographic Diversification'!$E$12"},"=SUMSQ(I12:Z12)",0,{"$f":"ADDRESS(52,6,1,1,$V$1)","v":"'Credit Risk'!$F$52"},"=IF($D$57=0,0,D52/$D$57)",{"$f":"IF(_xlfn.FORMULATEXT(INDIRECT(V77))=W77,0,1)","v":0},{"$f":"ADDRESS(16,5,1,1,$Y$1)","v":"'Premium Risk'!$E$16"},"='Schedule IVD'!O14",0,{"$f":"ADDRESS(25,4,1,1,$AB$1)","v":"'Reserve Risk'!$D$25"},"=+'Schedule III'!D24",{"$f":"IF(_xlfn.FORMULATEXT(INDIRECT(AB77))=AC77,0,1)","v":0}]
[{"$f":"ADDRESS(57,26,1,1,$A$1)","v":"Summary!$Z$57"},"=M57",0,{"$f":"ADDRESS(46,8,1,1,$D$1)","v":"'Fixed Income Investments'!$H$46"},0.2,{"$f":"IF(INDIRECT(D78)=E78,0,1)","v":0},{"$f":"ADDRESS(16,8,1,1,$G$1)","v":"'Equity Investments'!$H$16"},"='Schedule IIB'!L44+'Schedule IIC'!L44+'Schedule IID'!L44+'Schedule IIE'!L44+'Schedule IIF'!L44",0,null,null,null,{"$f":"ADDRESS(14,10,1,1,$M$1)","v":"'Currency Risk'!$J$14"},"=IF($B$12=\"Qatar Riyals\",IF((SUM(C14:G14))>(H14+I14),0%,5%),IF($B$12=\"United States Dollars\",IF((C14+E14)>(H14+I14),0%,5%),IF((SUM(C14:G14))>(H14+I14),0%,25%)))",0,{"$f":"ADDRESS(30,6,1,1,$P$1)","v":"'Concentration Risk'!$F$30"},"=MAX(0,(D30*E30))",{"$f":"IF(_xlfn.FORMULATEXT(INDIRECT(P78))=Q78,0,1)","v":0},{"$f":"ADDRESS(12,6,1,1,$S$1)","v":"'Geographic Diversification'!$F$12"},"=(IF(D12>0,E12/D12^2,1))",0,{"$f":"ADDRESS(52,7,1,1,$V$1)","v":"'Credit Risk'!$G$52"},0.12,{"$f":"IF(INDIRECT(V78)=W78,0,1)","v":0},{"$f":"ADDRESS(16,6,1,1,$Y$1)","v":"'Premium Risk'!$F$16"},"='Geographic Diversification'!H14",0,{"$f":"ADDRESS(25,5,1,1,$AB$1)","v":"'Reserve Risk'!$E$25"},"=+'Schedule III'!F24",{"$f":"IF(_xlfn.FORMULATEXT(INDIRECT(AB78))=AC78,0,1)","v":0}]
[{"$f":"ADDRESS(57,27,1,1,$A$1)","v":"Summary!$AA$57"},"=IF($N$72=0,1/9,Z57/$Z$66)",0,{"$f":"ADDRESS(46,9,1,1,$D$1)","v":"'Fixed Income Investments'!$I$46"},"=IF(G46<0,0,G46*H46)",{"$f":"IF(_xlfn.FORMULATEXT(INDIRECT(D79))=E79,0,1)","v":0},{"$f":"ADDRESS(16,9,1,1,$G$1)","v":"'Equity Investments'!$I$16"},"='Schedule IIB'!N44+'Schedule IIC'!N44+'Schedule IID'!N44+'Schedule IIE'!N44+'Schedule IIF'!N44",0,null,null,null,{"$f":"ADDRESS(14,12,1,1,$M$1)","v":"'Currency Risk'!$L$14"},"='Schedule XXA'!V12",0,{"$f":"ADDRESS(31,2,1,1,$P$1)","v":"'Concentration Risk'!$B$31"},"BSCR Rating 8",{"$f":"IF(INDIRECT(P79)=Q79,0,1)","v":0},{"$f":"ADDRESS(12,7,1,1,$S$1)","v":"'Geographic Diversification'!$G$12"},"=D12*(0.75+0.25*F12)",0,{"$f":"ADDRESS(52,8,1,1,$V$1)","v":"'Credit Risk'!$H$52"},"=IF($D$45<0,0,$D$45*F52*G52)",{"$f":"IF(_xlfn.FORMULATEXT(INDIRECT(V79))=W79,0,1)","v":0},{"$f":"ADDRESS(16,7,1,1,$Y$1)","v":"'Premium Risk'!$G$16"},"=IF(IFERROR(F16/E16,1)<0,1,IFERROR(F16/E16,1))",0,{"$f":"ADDRESS(25,6,1,1,$AB$1)","v":"'Reserve Risk'!$F$25"},"='Geographic Diversification'!H54",{"$f":"IF(_xlfn.FORMULATEXT(INDIRECT(AB79))=AC79,0,1)","v":0}]
[{"$f":"ADDRESS(57,29,1,1,$A$1)","v":"Summary!$AC$57"},"=(SUM(AA$55:AA57)/AA$66)",0,{"$f":"ADDRESS(47,7,1,1,$D$1)","v":"'Fixed Income Investments'!$G$47"},"='Schedule IIB'!L20+'Schedule IIC'!L20+(MAX(0,'Schedule IID'!L20-'Schedule IID'!N20))+'Schedule IIE'!L20+'Schedule IIF'!L20",{"$f":"IF(_xlfn.FORMULATEXT(INDIRECT(D80))=E80,0,1)","v":0},{"$f":"ADDRESS(16,10,1,1,$G$1)","v":"'Equity Investments'!$J$16"},"='Schedule IIB'!P44+'Schedule IIC'!P44+'Schedule IID'!P44+'Schedule IIE'!P44+'Schedule IIF'!P44",0,null,null,null,{"$f":"ADDRESS(14,13,1,1,$M$1)","v":"'Currency Risk'!$M$14"},"='Schedule XXA'!X12",0,{"$f":"ADDRESS(31,4,1,1,$P$1)","v":"'Concentration Risk'!$D$31"},"=SUMIFS('Schedule XXIA'!$M$8:$M$57,'Schedule XXIA'!$K$8:$K$57,$D$22,'Schedule XXIA'!$L$8:$L$57,$B31)",{"$f":"IF(_xlfn.FORMULATEXT(INDIRECT(P80))=Q80,0,1)","v":0},{"$f":"ADDRESS(12,8,1,1,$S$1)","v":"'Geographic Diversification'!$H$12"},"=IF('Schedule IVE'!AB12=\"True\",G12,'Schedule IVD'!O12)",0,{"$f":"ADDRESS(53,4,1,1,$V$1)","v":"'Credit Risk'!$D$53"},"=IF($F$34<>0, $D$45*F30/$F$34, 0)",{"$f":"IF(_xlfn.FORMULATEXT(INDIRECT(V80))=W80,0,1)","v":0},{"$f":"ADDRESS(16,8,1,1,$Y$1)","v":"'Premium Risk'!$H$16"},"='Schedule IVD'!I14*$G16",0,{"$f":"ADDRESS(25,7,1,1,$AB$1)","v":"'Reserve Risk'!$G$25"},0.51484129765284703,{"$f":"IF(INDIRECT(AB80)=AC80,0,1)","v":0}]
[{"$f":"ADDRESS(57,32,1,1,$A$1)","v":"Summary!$AF$57"},"=IF(AO57=\"\",IF(Test_Statistic<$AJ$72,AI57,IF(Test_Statistic<$AL$72,AK57,AM57)),AO57)",0,{"$f":"ADDRESS(47,8,1,1,$D$1)","v":"'Fixed Income Investments'!$H$47"},0.3,{"$f":"IF(INDIRECT(D81)=E81,0,1)","v":0},{"$f":"ADDRESS(16,11,1,1,$G$1)","v":"'Equity Investments'!$K$16"},"='Schedule IIB'!R44+'Schedule IIC'!R44+'Schedule IID'!R44+'Schedule IIE'!R44+'Schedule IIF'!R44",0,null,null,null,{"$f":"ADDRESS(14,14,1,1,$M$1)","v":"'Currency Risk'!$N$14"},"='Schedule XXA'!Z12",0,{"$f":"ADDRESS(31,5,1,1,$P$1)","v":"'Concentration Risk'!$E$31"},"=+'Fixed Income Investments (old)'!E20",{"$f":"IF(_xlfn.FORMULATEXT(INDIRECT(P81))=Q81,0,1)","v":0},{"$f":"ADDRESS(12,9,1,1,$S$1)","v":"'Geographic Diversification'!$I$12"},"=+'Schedule IVE'!E12",0,{"$f":"ADDRESS(53,6,1,1,$V$1)","v":"'Credit Risk'!$F$53"},"=IF($D$57=0,0,D53/$D$57)",{"$f":"IF(_xlfn.FORMULATEXT(INDIRECT(V81))=W81,0,1)","v":0},{"$f":"ADDRESS(16,9,1,1,$Y$1)","v":"'Premium Risk'!$I$16"},"='Schedule IVD'!K14*$G16",0,{"$f":"ADDRESS(25,8,1,1,$AB$1)","v":"'Reserve Risk'!$H$25"},"=IF($F$25<0,0,$F$25*$G$25)",{"$f":"IF(_xlfn.FORMULATEXT(INDIRECT(AB81))=AC81,0,1)","v":0}]
[{"$f":"ADDRESS(57,35,1,1,$A$1)","v":"Summary!$AI$57"},"=IF(AC61>0.6,300,300)",0,{"$f":"ADDRESS(47,9,1,1,$D$1)","v":"'Fixed Income Investments'!$I$47"},"=IF(G47<0,0,G47*H47)",{"$f":"IF(_xlfn.FORMULATEXT(INDIRECT(D82))=E82,0,1)","v":0},{"$f":"ADDRESS(16,12,1,1,$G$1)","v":"'Equity Investments'!$L$16"},"='Schedule IIB'!T44+'Schedule IIC'!T44+'Schedule IID'!T44+'Schedule IIE'!T44+'Schedule IIF'!T44",0,null,null,null,{"$f":"ADDRESS(14,15,1,1,$M$1)","v":"'Currency Risk'!$O$14"},"='Schedule XXA'!AB12",0,{"$f":"ADDRESS(31,6,1,1,$P$1)","v":"'Concentration Risk'!$F$31"},"=MAX(0,(D31*E31))",{"$f":"IF(_xlfn.FORMULATEXT(INDIRECT(P82))=Q82,0,1)","v":0},{"$f":"ADDRESS(12,10,1,1,$S$1)","v":"'Geographic Diversification'!$J$12"},"=+'Schedule IVE'!F12",0,{"$f":"ADDRESS(53,7,1,1,$V$1)","v":"'Credit Risk'!$G$53"},0.2,{"$f":"IF(INDIRECT(V82)=W82,0,1)","v":0},{"$f":"ADDRESS(16,10,1,1,$Y$1)","v":"'Premium Risk'!$J$16"},"='Schedule IVD'!M14*$G16",0,{"$f":"ADDRESS(26,4,1,1,$AB$1)","v":"'Reserve Risk'!$D$26"},"=+'Schedule III'!D25",{"$f":"IF(_xlfn.FORMULATEXT(INDIRECT(AB82))=AC82,0,1)","v":0}]
[{"$f":"ADDRESS(57,36,1,1,$A$1)","v":"Summary!$AJ$57"},"=IF(AC63>1,140,IF(AC61>1,120,IF(AC61>0.6,150,100)))",0,{"$f":"ADDRESS(48,7,1,1,$D$1)","v":"'Fixed Income Investments'!$G$48"},"='Schedule IIB'!L21+'Schedule IIC'!L21+(MAX(0,'Schedule IID'!L21-'Schedule IID'!N21))+'Schedule IIE'!L21+'Schedule IIF'!L21",{"$f":"IF(_xlfn.FORMULATEXT(INDIRECT(D83))=E83,0,1)","v":0},{"$f":"ADDRESS(16,16,1,1,$G$1)","v":"'Equity Investments'!$P$16"},"=MAX(D16-E16,0)+(F16-G16)+MAX(H16-I16,0)+(K16-J16)",0,null,null,null,{"$f":"ADDRESS(14,16,1,1,$M$1)","v":"'Currency Risk'!$P$14"},"='Schedule XXA'!AD12",0,{"$f":"ADDRESS(33,4,1,1,$P$1)","v":"'Concentration Risk'!$D$33"},"=SUM(D22:D31)",{"$f":"IF(_xlfn.FORMULATEXT(INDIRECT(P83))=Q83,0,1)","v":0},{"$f":"ADDRESS(12,11,1,1,$S$1)","v":"'Geographic Diversification'!$K$12"},"=+'Schedule IVE'!G12",0,{"$f":"ADDRESS(53,8,1,1,$V$1)","v":"'Credit Risk'!$H$53"},"=IF($D$45<0,0,$D$45*F53*G53)",{"$f":"IF(_xlfn.FORMULATEXT(INDIRECT(V83))=W83,0,1)","v":0},{"$f":"ADDRESS(16,11,1,1,$Y$1)","v":"'Premium Risk'!$K$16"},0.48178449435856302,{"$f":"IF(INDIRECT(Y83)=Z83,0,1)","v":0},{"$f":"ADDRESS(26,5,1,1,$AB$1)","v":"'Reserve Risk'!$E$26"},"=+'Schedule III'!F25",{"$f":"IF(_xlfn.FORMULATEXT(INDIRECT(AB83))=AC83,0,1)","v":0}]
[{"$f":"ADDRESS(57,37,1,1,$A$1)","v":"Summary!$AK$57"},"=IF(Test_Statistic_2<0.95,280,260)",0,{"$f":"ADDRESS(48,8,1,1,$D$1)","v":"'Fixed Income Investments'!$H$48"},0.35,{"$f":"IF(INDIRECT(D84)=E84,0,1)","v":0},{"$f":"ADDRESS(16,18,1,1,$G$1)","v":"'Equity Investments'!$R$16"},"=MAX(D16-E16,0)+(F16-G16)+MAX(H16-I16,0)+(L16-J16)",0,null,null,null,{"$f":"ADDRESS(14,17,1,1,$M$1)","v":"'Currency Risk'!$Q$14"},"='Schedule XXA'!AF12",0,{"$f":"ADDRESS(33,6,1,1,$P$1)","v":"'Concentration Risk'!$F$33"},"=SUM(F22:F31)",{"$f":"IF(_xlfn.FORMULATEXT(INDIRECT(P84))=Q84,0,1)","v":0},{"$f":"ADDRESS(12,12,1,1,$S$1)","v":"'Geographic Diversification'!$L$12"},"=+'Schedule IVE'!H12",0,{"$f":"ADDRESS(54,4,1,1,$V$1)","v":"'Credit Risk'!$D$54"},"=IF($F$34<>0, $D$45*F31/$F$34, 0)",{"$f":"IF(_xlfn.FORMULATEXT(INDIRECT(V84))=W84,0,1)","v":0},{"$f":"ADDRESS(16,12,1,1,$Y$1)","v":"'Premium Risk'!$L$16"},"=+K16*S16",{"$f":"IF(_xlfn.FORMULATEXT(INDIRECT(Y84))=Z84,0,1)","v":0},{"$f":"ADDRESS(26,6,1,1,$AB$1)","v":"'Reserve Risk'!$F$26"},"='Geographic Diversification'!H55",{"$f":"IF(_xlfn.FORMULATEXT(INDIRECT(AB84))=AC84,0,1)","v":0}]
[{"$f":"ADDRESS(57,38,1,1,$A$1)","v":"Summary!$AL$57"},"=IF(Test_Statistic_2<0.95,170,200)",0,{"$f":"ADDRESS(48,9,1,1,$D$1)","v":"'Fixed Income Investments'!$I$48"},"=IF(G48<0,0,G48*H48)",{"$f":"IF(_xlfn.FORMULATEXT(INDIRECT(D85))=E85,0,1)","v":0},{"$f":"ADDRESS(17,4,1,1,$G$1)","v":"'Equity Investments'!$D$17"},"='Schedule IIB'!D45+'Schedule IIC'!D45+'Schedule IID'!D45+'Schedule IIE'!D45+'Schedule IIF'!D45",0,null,null,null,{"$f":"ADDRESS(14,18,1,1,$M$1)","v":"'Currency Risk'!$R$14"},"=IF('Schedule XXA'!AH12=0,Q14,'Schedule XXA'!AH12)",0,{"$f":"ADDRESS(35,4,1,1,$P$1)","v":"'Concentration Risk'!$D$35"},"Residential Mortgage-Backed Securities",{"$f":"IF(INDIRECT(P85)=Q85,0,1)","v":0},{"$f":"ADDRESS(12,13,1,1,$S$1)","v":"'Geographic Diversification'!$M$12"},"=+'Schedule IVE'!I12",0,{"$f":"ADDRESS(54,6,1,1,$V$1)","v":"'Credit Risk'!$F$54"},"=IF($D$57=0,0,D54/$D$57)",{"$f":"IF(_xlfn.FORMULATEXT(INDIRECT(V85))=W85,0,1)","v":0},{"$f":"ADDRESS(16,13,1,1,$Y$1)","v":"'Premium Risk'!$M$16"},"=+L16*T16",{"$f":"IF(_xlfn.FORMULATEXT(INDIRECT(Y85))=Z85,0,1)","v":0},{"$f":"ADDRESS(26,7,1,1,$AB$1)","v":"'Reserve Risk'!$G$26"},0.46506790223690597,{"$f":"IF(INDIRECT(AB85)=AC85,0,1)","v":0}]
[{"$f":"ADDRESS(57,39,1,1,$A$1)","v":"Summary!$AM$57"},180,{"$f":"IF(INDIRECT(A86)=B86,0,1)","v":0},{"$f":"ADDRESS(51,7,1,1,$D$1)","v":"'Fixed Income Investments'!$G$51"},"=SUM(G41:G48)",{"$f":"IF(_xlfn.FORMULATEXT(INDIRECT(D86))=E86,0,1)","v":0},{"$f":"ADDRESS(17,5,1,1,$G$1)","v":"'Equity Investments'!$E$17"},"='Schedule IIB'!F45+'Schedule IIC'!F45+'Schedule IID'!F45+'Schedule IIE'!F45+'Schedule IIF'!F45",0,null,null,null,{"$f":"ADDRESS(14,20,1,1,$M$1)","v":"'Currency Risk'!$T$14"},"=(C14-L14)+(D14-M14)+(F14-O14)+MAX(E14-N14,0)+MAX(G14-P14,0)",0,{"$f":"ADDRESS(36,2,1,1,$P$1)","v":"'Concentration Risk'!$B$36"},"BSCR Rating 0",{"$f":"IF(INDIRECT(P86)=Q86,0,1)","v":0},{"$f":"ADDRESS(12,14,1,1,$S$1)","v":"'Geographic Diversification'!$N$12"},"=+'Schedule IVE'!J12",0,{"$f":"ADDRESS(54,7,1,1,$V$1)","v":"'Credit Risk'!$G$54"},0.27,{"$f":"IF(INDIRECT(V86)=W86,0,1)","v":0},{"$f":"ADDRESS(16,14,1,1,$Y$1)","v":"'Premium Risk'!$N$16"},"=IF($H16<0,0,$H16*$K16)+IF($I16<0,0,$I16*$L16)+IF($J16<0,0,$J16*$M16)",{"$f":"IF(_xlfn.FORMULATEXT(INDIRECT(Y86))=Z86,0,1)","v":0},{"$f":"ADDRESS(26,8,1,1,$AB$1)","v":"'Reserve Risk'!$H$26"},"=IF($F$26<0,0,$F$26*$G$26)",{"$f":"IF(_xlfn.FORMULATEXT(INDIRECT(AB86))=AC86,0,1)","v":0}]
[{"$f":"ADDRESS(58,7,1,1,$A$1)","v":"Summary!$G$58"},"=+'Currency Risk (old)'!I28",{"$f":"IF(_xlfn.FORMULATEXT(INDIRECT(A87))=B87,0,1)","v":0},{"$f":"ADDRESS(51,9,1,1,$D$1)","v":"'Fixed Income Investments'!$I$51"},"=IF(SUM(I41:I48)>=0,SUM(I41:I48),0)",{"$f":"IF(_xlfn.FORMULATEXT(INDIRECT(D87))=E87,0,1)","v":0},{"$f":"ADDRESS(17,6,1,1,$G$1)","v":"'Equity Investments'!$F$17"},"='Schedule IIB'!H45+'Schedule IIC'!H45+'Schedule IID'!H45+'Schedule IIE'!H45+'Schedule IIF'!H45",0,null,null,null,{"$f":"ADDRESS(14,21,1,1,$M$1)","v":"'Currency Risk'!$U$14"},"=Q14-$H14",0,{"$f":"ADDRESS(36,4,1,1,$P$1)","v":"'Concentration Risk'!$D$36"},"=SUMIFS('Schedule XXIA'!$M$8:$M$57,'Schedule XXIA'!$K$8:$K$57,$D$35,'Schedule XXIA'!$L$8:$L$57,$B36)",{"$f":"IF(_xlfn.FORMULATEXT(INDIRECT(P87))=Q87,0,1)","v":0},{"$f":"ADDRESS(12,15,1,1,$S$1)","v":"'Geographic Diversification'!$O$12"},"=+'Schedule IVE'!K12",0,{"$f":"ADDRESS(54,8,1,1,$V$1)","v":"'Credit Risk'!$H$54"},"=IF($D$45<0,0,$D$45*F54*G54)",{"$f":"IF(_xlfn.FORMULATEXT(INDIRECT(V87))=W87,0,1)","v":0},{"$f":"ADDRESS(16,17,1,1,$Y$1)","v":"'Premium Risk'!$Q$16"},"=IF(H16=E16,MAX(D16*K16,0),IF(E16=F16,IF(D16<0,0,D16*(H16/F16)*K16),IF(D16<0,0,D16*(H16/E16)*K16)))\n+IF(I16=E16,MAX(D16*L16,0),IF(E16=F16,IF(D16<0,0,D16*(I16/F16)*L16),IF(D16<0,0,D16*(I16/E16)*L16)))\n+IF(J16=E16,MAX(D16*M16,0),IF(E16=F16,IF(D16<0,0,D16*(J16/F16)*M16),IF(D16<0,0,D16*(J16/E16)*M16)))",{"$f":"IF(_xlfn.FORMULATEXT(INDIRECT(Y87))=Z87,0,1)","v":0},{"$f":"ADDRESS(27,4,1,1,$AB$1)","v":"'Reserve Risk'!$D$27"},"=+'Schedule III'!D26",{"$f":"IF(_xlfn.FORMULATEXT(INDIRECT(AB87))=AC87,0,1)","v":0}]
[{"$f":"ADDRESS(58,11,1,1,$A$1)","v":"Summary!$K$58"},"='Currency Risk'!Y39",0,{"$f":"ADDRESS(56,7,1,1,$D$1)","v":"'Fixed Income Investments'!$G$56"},"='Schedule IIB'!P13+'Schedule IIC'!P13+(MAX(0,'Schedule IID'!P13-'Schedule IID'!R13))+'Schedule IIE'!P13+'Schedule IIF'!P13",{"$f":"IF(_xlfn.FORMULATEXT(INDIRECT(D88))=E88,0,1)","v":0},{"$f":"ADDRESS(17,7,1,1,$G$1)","v":"'Equity Investments'!$G$17"},"='Schedule IIB'!J45+'Schedule IIC'!J45+'Schedule IID'!J45+'Schedule IIE'!J45+'Schedule IIF'!J45",0,null,null,null,{"$f":"ADDRESS(14,22,1,1,$M$1)","v":"'Currency Risk'!$V$14"},"=R14-$H14",0,{"$f":"ADDRESS(36,5,1,1,$P$1)","v":"'Concentration Risk'!$E$36"},0,{"$f":"IF(INDIRECT(P88)=Q88,0,1)","v":0},{"$f":"ADDRESS(12,16,1,1,$S$1)","v":"'Geographic Diversification'!$P$12"},"=+'Schedule IVE'!L12",0,{"$f":"ADDRESS(55,4,1,1,$V$1)","v":"'Credit Risk'!$D$55"},"=IF($F$34<>0, $D$45*F32/$F$34, 0)",{"$f":"IF(_xlfn.FORMULATEXT(INDIRECT(V88))=W88,0,1)","v":0},{"$f":"ADDRESS(16,19,1,1,$Y$1)","v":"'Premium Risk'!$S$16"},0.3,{"$f":"IF(INDIRECT(Y88)=Z88,0,1)","v":0},{"$f":"ADDRESS(27,5,1,1,$AB$1)","v":"'Reserve Risk'!$E$27"},"=+'Schedule III'!F26",{"$f":"IF(_xlfn.FORMULATEXT(INDIRECT(AB88))=AC88,0,1)","v":0}]
[{"$f":"ADDRESS(58,13,1,1,$A$1)","v":"Summary!$M$58"},"='Currency Risk'!X39",0,{"$f":"ADDRESS(56,8,1,1,$D$1)","v":"'Fixed Income Investments'!$H$56"},0,{"$f":"IF(INDIRECT(D89)=E89,0,1)","v":0},{"$f":"ADDRESS(17,8,1,1,$G$1)","v":"'Equity Investments'!$H$17"},"='Schedule IIB'!L45+'Schedule IIC'!L45+'Schedule IID'!L45+'Schedule IIE'!L45+'Schedule IIF'!L45",0,null,null,null,{"$f":"ADDRESS(14,24,1,1,$M$1)","v":"'Currency Risk'!$X$14"},"=MAX(0,$T14+U14+(J14*I14))",0,{"$f":"ADDRESS(36,6,1,1,$P$1)","v":"'Concentration Risk'!$F$36"},"=MAX(0,(D36*E36))",{"$f":"IF(_xlfn.FORMULATEXT(INDIRECT(P89))=Q89,0,1)","v":0},{"$f":"ADDRESS(12,17,1,1,$S$1)","v":"'Geographic Diversification'!$Q$12"},"=+'Schedule IVE'!M12",0,{"$f":"ADDRESS(55,6,1,1,$V$1)","v":"'Credit Risk'!$F$55"},"=IF($D$57=0,0,D55/$D$57)",{"$f":"IF(_xlfn.FORMULATEXT(INDIRECT(V89))=W89,0,1)","v":0},{"$f":"ADDRESS(16,20,1,1,$Y$1)","v":"'Premium Risk'!$T$16"},0.5,{"$f":"IF(INDIRECT(Y89)=Z89,0,1)","v":0},{"$f":"ADDRESS(27,6,1,1,$AB$1)","v":"'Reserve Risk'!$F$27"},"='Geographic Diversification'!H56",{"$f":"IF(_xlfn.FORMULATEXT(INDIRECT(AB89))=AC89,0,1)","v":0}]
[{"$f":"ADDRESS(58,24,1,1,$A$1)","v":"Summary!$X$58"},"=G58",0,{"$f":"ADDRESS(56,9,1,1,$D$1)","v":"'Fixed Income Investments'!$I$56"},"=IF(G56<0,0,G56*H56)",{"$f":"IF(_xlfn.FORMULATEXT(INDIRECT(D90))=E90,0,1)","v":0},{"$f":"ADDRESS(17,9,1,1,$G$1)","v":"'Equity Investments'!$I$17"},"='Schedule IIB'!N45+'Schedule IIC'!N45+'Schedule IID'!N45+'Schedule IIE'!N45+'Schedule IIF'!N45",0,null,null,null,{"$f":"ADDRESS(14,25,1,1,$M$1)","v":"'Currency Risk'!$Y$14"},"=MAX(0,$T14+V14+(J14*I14))",0,{"$f":"ADDRESS(37,2,1,1,$P$1)","v":"'Concentration Risk'!$B$37"},"BSCR Rating 1",{"$f":"IF(INDIRECT(P90)=Q90,0,1)","v":0},{"$f":"ADDRESS(12,18,1,1,$S$1)","v":"'Geographic Diversification'!$R$12"},"=+'Schedule IVE'!N12",0,{"$f":"ADDRESS(55,7,1,1,$V$1)","v":"'Credit Risk'!$G$55"},0.35,{"$f":"IF(INDIRECT(V90)=W90,0,1)","v":0},{"$f":"ADDRESS(17,4,1,1,$Y$1)","v":"'Premium Risk'!$D$17"},"='Schedule IVD'!Q15",{"$f":"IF(_xlfn.FORMULATEXT(INDIRECT(Y90))=Z90,0,1)","v":0},{"$f":"ADDRESS(27,7,1,1,$AB$1)","v":"'Reserve Risk'!$G$27"},0.482760284027479,{"$f":"IF(INDIRECT(AB90)=AC90,0,1)","v":0}]
[{"$f":"ADDRESS(58,25,1,1,$A$1)","v":"Summary!$Y$58"},"=IF($L$72=0,1/9,X58/$X$66)",0,{"$f":"ADDRESS(57,7,1,1,$D$1)","v":"'Fixed Income Investments'!$G$57"},"='Schedule IIB'!P14+'Schedule IIC'!P14+(MAX(0,'Schedule IID'!P14-'Schedule IID'!R14))+'Schedule IIE'!P14+'Schedule IIF'!P14",{"$f":"IF(_xlfn.FORMULATEXT(INDIRECT(D91))=E91,0,1)","v":0},{"$f":"ADDRESS(17,10,1,1,$G$1)","v":"'Equity Investments'!$J$17"},"='Schedule IIB'!P45+'Schedule IIC'!P45+'Schedule IID'!P45+'Schedule IIE'!P45+'Schedule IIF'!P45",0,null,null,null,{"$f":"ADDRESS(15,2,1,1,$M$1)","v":"'Currency Risk'!$B$15"},"='Schedule XXA'!B13",0,{"$f":"ADDRESS(37,4,1,1,$P$1)","v":"'Concentration Risk'!$D$37"},"=SUMIFS('Schedule XXIA'!$M$8:$M$57,'Schedule XXIA'!$K$8:$K$57,$D$35,'Schedule XXIA'!$L$8:$L$57,$B37)",{"$f":"IF(_xlfn.FORMULATEXT(INDIRECT(P91))=Q91,0,1)","v":0},{"$f":"ADDRESS(12,19,1,1,$S$1)","v":"'Geographic Diversification'!$S$12"},"=+'Schedule IVE'!O12",0,{"$f":"ADDRESS(55,8,1,1,$V$1)","v":"'Credit Risk'!$H$55"},"=IF($D$45<0,0,$D$45*F55*G55)",{"$f":"IF(_xlfn.FORMULATEXT(INDIRECT(V91))=W91,0,1)","v":0},{"$f":"ADDRESS(17,5,1,1,$Y$1)","v":"'Premium Risk'!$E$17"},"='Schedule IVD'!O15",0,{"$f":"ADDRESS(27,8,1,1,$AB$1)","v":"'Reserve Risk'!$H$27"},"=IF($F$27<0,0,$F$27*$G$27)",{"$f":"IF(_xlfn.FORMULATEXT(INDIRECT(AB91))=AC91,0,1)","v":0}]
[{"$f":"ADDRESS(58,26,1,1,$A$1)","v":"Summary!$Z$58"},"=M58",0,{"$f":"ADDRESS(57,8,1,1,$D$1)","v":"'Fixed Income Investments'!$H$57"},4.0000000000000001E-3,{"$f":"IF(INDIRECT(D92)=E92,0,1)","v":0},{"$f":"ADDRESS(17,11,1,1,$G$1)","v":"'Equity Investments'!$K$17"},"='Schedule IIB'!R45+'Schedule IIC'!R45+'Schedule IID'!R45+'Schedule IIE'!R45+'Schedule IIF'!R45",0,null,null,null,{"$f":"ADDRESS(15,3,1,1,$M$1)","v":"'Currency Risk'!$C$15"},"='Schedule XXA'!D13",0,{"$f":"ADDRESS(37,5,1,1,$P$1)","v":"'Concentration Risk'!$E$37"},"=+'Fixed Income Investments (old)'!E27",{"$f":"IF(_xlfn.FORMULATEXT(INDIRECT(P92))=Q92,0,1)","v":0},{"$f":"ADDRESS(12,20,1,1,$S$1)","v":"'Geographic Diversification'!$T$12"},"=+'Schedule IVE'!P12",0,{"$f":"ADDRESS(57,4,1,1,$V$1)","v":"'Credit Risk'!$D$57"},"=SUM(D47:D55)",0,{"$f":"ADDRESS(17,6,1,1,$Y$1)","v":"'Premium Risk'!$F$17"},"='Geographic Diversification'!H15",0,{"$f":"ADDRESS(28,4,1,1,$AB$1)","v":"'Reserve Risk'!$D$28"},"=+'Schedule III'!D27",{"$f":"IF(_xlfn.FORMULATEXT(INDIRECT(AB92))=AC92,0,1)","v":0}]
[{"$f":"ADDRESS(58,27,1,1,$A$1)","v":"Summary!$AA$58"},"=IF($N$72=0,1/9,Z58/$Z$66)",0,{"$f":"ADDRESS(57,9,1,1,$D$1)","v":"'Fixed Income Investments'!$I$57"},"=IF(G57<0,0,G57*H57)",{"$f":"IF(_xlfn.FORMULATEXT(INDIRECT(D93))=E93,0,1)","v":0},{"$f":"ADDRESS(17,12,1,1,$G$1)","v":"'Equity Investments'!$L$17"},"='Schedule IIB'!T45+'Schedule IIC'!T45+'Schedule IID'!T45+'Schedule IIE'!T45+'Schedule IIF'!T45",0,null,null,null,{"$f":"ADDRESS(15,4,1,1,$M$1)","v":"'Currency Risk'!$D$15"},"='Schedule XXA'!F13",0,{"$f":"ADDRESS(37,6,1,1,$P$1)","v":"'Concentration Risk'!$F$37"},"=MAX(0,(D37*E37))",{"$f":"IF(_xlfn.FORMULATEXT(INDIRECT(P93))=Q93,0,1)","v":0},{"$f":"ADDRESS(12,21,1,1,$S$1)","v":"'Geographic Diversification'!$U$12"},"=+'Schedule IVE'!Q12",0,{"$f":"ADDRESS(57,6,1,1,$V$1)","v":"'Credit Risk'!$F$57"},"=SUM(F47:F55)",0,{"$f":"ADDRESS(17,7,1,1,$Y$1)","v":"'Premium Risk'!$G$17"},"=IF(IFERROR(F17/E17,1)<0,1,IFERROR(F17/E17,1))",0,{"$f":"ADDRESS(28,5,1,1,$AB$1)","v":"'Reserve Risk'!$E$28"},"=+'Schedule III'!F27",{"$f":"IF(_xlfn.FORMULATEXT(INDIRECT(AB93))=AC93,0,1)","v":0}]
[{"$f":"ADDRESS(58,29,1,1,$A$1)","v":"Summary!$AC$58"},"=(SUM(AA$55:AA58)/AA$66)",0,{"$f":"ADDRESS(58,7,1,1,$D$1)","v":"'Fixed Income Investments'!$G$58"},"='Schedule IIB'!P15+'Schedule IIC'!P15+(MAX(0,'Schedule IID'!P15-'Schedule IID'!R15))+'Schedule IIE'!P15+'Schedule IIF'!P15",{"$f":"IF(_xlfn.FORMULATEXT(INDIRECT(D94))=E94,0,1)","v":0},{"$f":"ADDRESS(17,16,1,1,$G$1)","v":"'Equity Investments'!$P$17"},"=MAX(D17-E17,0)+(F17-G17)+MAX(H17-I17,0)+(K17-J17)",0,null,null,null,{"$f":"ADDRESS(15,5,1,1,$M$1)","v":"'Currency Risk'!$E$15"},"='Schedule XXA'!H13",0,{"$f":"ADDRESS(38,2,1,1,$P$1)","v":"'Concentration Risk'!$B$38"},"BSCR Rating 2",{"$f":"IF(INDIRECT(P94)=Q94,0,1)","v":0},{"$f":"ADDRESS(12,22,1,1,$S$1)","v":"'Geographic Diversification'!$V$12"},"=+'Schedule IVE'!R12",0,{"$f":"ADDRESS(57,8,1,1,$V$1)","v":"'Credit Risk'!$H$57"},"=SUM(H47:H55)",0,{"$f":"ADDRESS(17,8,1,1,$Y$1)","v":"'Premium Risk'!$H$17"},"='Schedule IVD'!I15*$G17",0,{"$f":"ADDRESS(28,6,1,1,$AB$1)","v":"'Reserve Risk'!$F$28"},"='Geographic Diversification'!H57",{"$f":"IF(_xlfn.FORMULATEXT(INDIRECT(AB94))=AC94,0,1)","v":0}]
[{"$f":"ADDRESS(59,7,1,1,$A$1)","v":"Summary!$G$59"},"=ROUND('Digital Assets'!I13,$P$150)",0,{"$f":"ADDRESS(58,8,1,1,$D$1)","v":"'Fixed Income Investments'!$H$58"},8.0000000000000002E-3,{"$f":"IF(INDIRECT(D95)=E95,0,1)","v":0},{"$f":"ADDRESS(17,18,1,1,$G$1)","v":"'Equity Investments'!$R$17"},"=MAX(D17-E17,0)+(F17-G17)+MAX(H17-I17,0)+(L17-J17)",0,null,null,null,{"$f":"ADDRESS(15,6,1,1,$M$1)","v":"'Currency Risk'!$F$15"},"='Schedule XXA'!J13",0,{"$f":"ADDRESS(38,4,1,1,$P$1)","v":"'Concentration Risk'!$D$38"},"=SUMIFS('Schedule XXIA'!$M$8:$M$57,'Schedule XXIA'!$K$8:$K$57,$D$35,'Schedule XXIA'!$L$8:$L$57,$B38)",{"$f":"IF(_xlfn.FORMULATEXT(INDIRECT(P95))=Q95,0,1)","v":0},{"$f":"ADDRESS(12,23,1,1,$S$1)","v":"'Geographic Diversification'!$W$12"},"=+'Schedule IVE'!S12",0,{"$f":"ADDRESS(59,7,1,1,$V$1)","v":"'Credit Risk'!$G$59"},"='Schedule XVIII'!O104",0,{"$f":"ADDRESS(17,9,1,1,$Y$1)","v":"'Premium Risk'!$I$17"},"='Schedule IVD'!K15*$G17",0,{"$f":"ADDRESS(28,7,1,1,$AB$1)","v":"'Reserve Risk'!$G$28"},0.37080464615634001,{"$f":"IF(INDIRECT(AB95)=AC95,0,1)","v":0}]
[{"$f":"ADDRESS(59,11,1,1,$A$1)","v":"Summary!$K$59"},"=ROUND('Digital Assets'!I13,$P$150)",0,{"$f":"ADDRESS(58,9,1,1,$D$1)","v":"'Fixed Income Investments'!$I$58"},"=IF(G58<0,0,G58*H58)",{"$f":"IF(_xlfn.FORMULATEXT(INDIRECT(D96))=E96,0,1)","v":0},{"$f":"ADDRESS(18,4,1,1,$G$1)","v":"'Equity Investments'!$D$18"},"='Schedule IIB'!D46+'Schedule IIC'!D46+'Schedule IID'!D46+'Schedule IIE'!D46+'Schedule IIF'!D46",0,null,null,null,{"$f":"ADDRESS(15,7,1,1,$M$1)","v":"'Currency Risk'!$G$15"},"='Schedule XXA'!L13",0,{"$f":"ADDRESS(38,5,1,1,$P$1)","v":"'Concentration Risk'!$E$38"},"=+'Fixed Income Investments (old)'!E28",{"$f":"IF(_xlfn.FORMULATEXT(INDIRECT(P96))=Q96,0,1)","v":0},{"$f":"ADDRESS(12,24,1,1,$S$1)","v":"'Geographic Diversification'!$X$12"},"=+'Schedule IVE'!T12",0,{"$f":"ADDRESS(59,8,1,1,$V$1)","v":"'Credit Risk'!$H$59"},"=SUM(H47:H55)*-('Schedule XVIII'!O104)",0,{"$f":"ADDRESS(17,10,1,1,$Y$1)","v":"'Premium Risk'!$J$17"},"='Schedule IVD'!M15*$G17",0,{"$f":"ADDRESS(28,8,1,1,$AB$1)","v":"'Reserve Risk'!$H$28"},"=IF($F$28<0,0,$F$28*$G$28)",{"$f":"IF(_xlfn.FORMULATEXT(INDIRECT(AB96))=AC96,0,1)","v":0}]
[{"$f":"ADDRESS(59,13,1,1,$A$1)","v":"Summary!$M$59"},"=ROUND('Digital Assets'!I13,$P$150)",0,{"$f":"ADDRESS(59,7,1,1,$D$1)","v":"'Fixed Income Investments'!$G$59"},"='Schedule IIB'!P16+'Schedule IIC'!P16+(MAX(0,'Schedule IID'!P16-'Schedule IID'!R16))+'Schedule IIE'!P16+'Schedule IIF'!P16",{"$f":"IF(_xlfn.FORMULATEXT(INDIRECT(D97))=E97,0,1)","v":0},{"$f":"ADDRESS(18,5,1,1,$G$1)","v":"'Equity Investments'!$E$18"},"='Schedule IIB'!F46+'Schedule IIC'!F46+'Schedule IID'!F46+'Schedule IIE'!F46+'Schedule IIF'!F46",0,null,null,null,{"$f":"ADDRESS(15,8,1,1,$M$1)","v":"'Currency Risk'!$H$15"},"='Schedule XXA'!N13",0,{"$f":"ADDRESS(38,6,1,1,$P$1)","v":"'Concentration Risk'!$F$38"},"=MAX(0,(D38*E38))",{"$f":"IF(_xlfn.FORMULATEXT(INDIRECT(P97))=Q97,0,1)","v":0},{"$f":"ADDRESS(12,25,1,1,$S$1)","v":"'Geographic Diversification'!$Y$12"},"=+'Schedule IVE'!U12",0,{"$f":"ADDRESS(61,8,1,1,$V$1)","v":"'Credit Risk'!$H$61"},"=SUM(H57:H59)",0,{"$f":"ADDRESS(17,11,1,1,$Y$1)","v":"'Premium Risk'!$K$17"},0.48201231799963601,{"$f":"IF(INDIRECT(Y97)=Z97,0,1)","v":0},{"$f":"ADDRESS(29,4,1,1,$AB$1)","v":"'Reserve Risk'!$D$29"},"=+'Schedule III'!D28",{"$f":"IF(_xlfn.FORMULATEXT(INDIRECT(AB97))=AC97,0,1)","v":0}]
[{"$f":"ADDRESS(59,24,1,1,$A$1)","v":"Summary!$X$59"},"=G59",0,{"$f":"ADDRESS(59,8,1,1,$D$1)","v":"'Fixed Income Investments'!$H$59"},1.4999999999999999E-2,{"$f":"IF(INDIRECT(D98)=E98,0,1)","v":0},{"$f":"ADDRESS(18,6,1,1,$G$1)","v":"'Equity Investments'!$F$18"},"='Schedule IIB'!H46+'Schedule IIC'!H46+'Schedule IID'!H46+'Schedule IIE'!H46+'Schedule IIF'!H46",0,null,null,null,{"$f":"ADDRESS(15,9,1,1,$M$1)","v":"'Currency Risk'!$I$15"},"=$I$10*H15",0,{"$f":"ADDRESS(39,2,1,1,$P$1)","v":"'Concentration Risk'!$B$39"},"BSCR Rating 3",{"$f":"IF(INDIRECT(P98)=Q98,0,1)","v":0},{"$f":"ADDRESS(12,26,1,1,$S$1)","v":"'Geographic Diversification'!$Z$12"},"=+'Schedule IVE'!V12",0,{"$f":"ADDRESS(63,6,1,1,$V$1)","v":"'Credit Risk'!$F$63"},"=MAX(F38,F61)",0,{"$f":"ADDRESS(17,12,1,1,$Y$1)","v":"'Premium Risk'!$L$17"},"=+K17*S17",{"$f":"IF(_xlfn.FORMULATEXT(INDIRECT(Y98))=Z98,0,1)","v":0},{"$f":"ADDRESS(29,5,1,1,$AB$1)","v":"'Reserve Risk'!$E$29"},"=+'Schedule III'!F28",{"$f":"IF(_xlfn.FORMULATEXT(INDIRECT(AB98))=AC98,0,1)","v":0}]
[{"$f":"ADDRESS(59,25,1,1,$A$1)","v":"Summary!$Y$59"},"=IF($L$72=0,1/9,X59/$X$66)",0,{"$f":"ADDRESS(59,9,1,1,$D$1)","v":"'Fixed Income Investments'!$I$59"},"=IF(G59<0,0,G59*H59)",{"$f":"IF(_xlfn.FORMULATEXT(INDIRECT(D99))=E99,0,1)","v":0},{"$f":"ADDRESS(18,7,1,1,$G$1)","v":"'Equity Investments'!$G$18"},"='Schedule IIB'!J46+'Schedule IIC'!J46+'Schedule IID'!J46+'Schedule IIE'!J46+'Schedule IIF'!J46",0,null,null,null,{"$f":"ADDRESS(15,10,1,1,$M$1)","v":"'Currency Risk'!$J$15"},"=IF($B$12=\"Hong Kong Dollars\",IF((SUM(C15:G15))>(H15+I15),0%,1%),IF($B$12=\"United States Dollars\",IF((C15+E15)>(H15+I15),0%,1%),IF((SUM(C15:G15))>(H15+I15),0%,25%)))",0,{"$f":"ADDRESS(39,4,1,1,$P$1)","v":"'Concentration Risk'!$D$39"},"=SUMIFS('Schedule XXIA'!$M$8:$M$57,'Schedule XXIA'!$K$8:$K$57,$D$35,'Schedule XXIA'!$L$8:$L$57,$B39)",{"$f":"IF(_xlfn.FORMULATEXT(INDIRECT(P99))=Q99,0,1)","v":0},{"$f":"ADDRESS(13,4,1,1,$S$1)","v":"'Geographic Diversification'!$D$13"},"=SUM(I13:Z13)",0,{"$f":"ADDRESS(63,8,1,1,$V$1)","v":"'Credit Risk'!$H$63"},"=MAX(H38,H61)",0,{"$f":"ADDRESS(17,13,1,1,$Y$1)","v":"'Premium Risk'!$M$17"},"=+L17*T17",{"$f":"IF(_xlfn.FORMULATEXT(INDIRECT(Y99))=Z99,0,1)","v":0},{"$f":"ADDRESS(29,6,1,1,$AB$1)","v":"'Reserve Risk'!$F$29"},"='Geographic Diversification'!H58",{"$f":"IF(_xlfn.FORMULATEXT(INDIRECT(AB99))=AC99,0,1)","v":0}]
[{"$f":"ADDRESS(59,26,1,1,$A$1)","v":"Summary!$Z$59"},"=M59",0,{"$f":"ADDRESS(60,7,1,1,$D$1)","v":"'Fixed Income Investments'!$G$60"},"='Schedule IIB'!P17+'Schedule IIC'!P17+(MAX(0,'Schedule IID'!P17-'Schedule IID'!R17))+'Schedule IIE'!P17+'Schedule IIF'!P17",{"$f":"IF(_xlfn.FORMULATEXT(INDIRECT(D100))=E100,0,1)","v":0},{"$f":"ADDRESS(18,8,1,1,$G$1)","v":"'Equity Investments'!$H$18"},"='Schedule IIB'!L46+'Schedule IIC'!L46+'Schedule IID'!L46+'Schedule IIE'!L46+'Schedule IIF'!L46",0,null,null,null,{"$f":"ADDRESS(15,12,1,1,$M$1)","v":"'Currency Risk'!$L$15"},"='Schedule XXA'!V13",0,{"$f":"ADDRESS(39,5,1,1,$P$1)","v":"'Concentration Risk'!$E$39"},"=+'Fixed Income Investments (old)'!E29",{"$f":"IF(_xlfn.FORMULATEXT(INDIRECT(P100))=Q100,0,1)","v":0},{"$f":"ADDRESS(13,5,1,1,$S$1)","v":"'Geographic Diversification'!$E$13"},"=SUMSQ(I13:Z13)",0,{"$f":"ADDRESS(68,3,1,1,$V$1)","v":"'Credit Risk'!$C$68"},"='Schedule IIB'!D84+'Schedule IIC'!D84+'Schedule IID'!D84+'Schedule IIE'!D84+'Schedule IIF'!D84",0,{"$f":"ADDRESS(17,14,1,1,$Y$1)","v":"'Premium Risk'!$N$17"},"=IF($H17<0,0,$H17*$K17)+IF($I17<0,0,$I17*$L17)+IF($J17<0,0,$J17*$M17)",{"$f":"IF(_xlfn.FORMULATEXT(INDIRECT(Y100))=Z100,0,1)","v":0},{"$f":"ADDRESS(29,7,1,1,$AB$1)","v":"'Reserve Risk'!$G$29"},0.43541657269369,{"$f":"IF(INDIRECT(AB100)=AC100,0,1)","v":0}]
[{"$f":"ADDRESS(59,27,1,1,$A$1)","v":"Summary!$AA$59"},"=IF($N$72=0,1/9,Z59/$Z$66)",0,{"$f":"ADDRESS(60,8,1,1,$D$1)","v":"'Fixed Income Investments'!$H$60"},0.03,{"$f":"IF(INDIRECT(D101)=E101,0,1)","v":0},{"$f":"ADDRESS(18,9,1,1,$G$1)","v":"'Equity Investments'!$I$18"},"='Schedule IIB'!N46+'Schedule IIC'!N46+'Schedule IID'!N46+'Schedule IIE'!N46+'Schedule IIF'!N46",0,null,null,null,{"$f":"ADDRESS(15,13,1,1,$M$1)","v":"'Currency Risk'!$M$15"},"='Schedule XXA'!X13",{"$f":"IF(_xlfn.FORMULATEXT(INDIRECT(M101))=N101,0,1)","v":0},{"$f":"ADDRESS(39,6,1,1,$P$1)","v":"'Concentration Risk'!$F$39"},"=MAX(0,(D39*E39))",{"$f":"IF(_xlfn.FORMULATEXT(INDIRECT(P101))=Q101,0,1)","v":0},{"$f":"ADDRESS(13,6,1,1,$S$1)","v":"'Geographic Diversification'!$F$13"},"=(IF(D13>0,E13/D13^2,1))",0,{"$f":"ADDRESS(68,4,1,1,$V$1)","v":"'Credit Risk'!$D$68"},"='Schedule IIB'!F84+'Schedule IIC'!F84+'Schedule IID'!F84+'Schedule IIE'!F84+'Schedule IIF'!F84",0,{"$f":"ADDRESS(17,17,1,1,$Y$1)","v":"'Premium Risk'!$Q$17"},"=IF(H17=E17,MAX(D17*K17,0),IF(E17=F17,IF(D17<0,0,D17*(H17/F17)*K17),IF(D17<0,0,D17*(H17/E17)*K17)))\n+IF(I17=E17,MAX(D17*L17,0),IF(E17=F17,IF(D17<0,0,D17*(I17/F17)*L17),IF(D17<0,0,D17*(I17/E17)*L17)))\n+IF(J17=E17,MAX(D17*M17,0),IF(E17=F17,IF(D17<0,0,D17*(J17/F17)*M17),IF(D17<0,0,D17*(J17/E17)*M17)))",{"$f":"IF(_xlfn.FORMULATEXT(INDIRECT(Y101))=Z101,0,1)","v":0},{"$f":"ADDRESS(29,8,1,1,$AB$1)","v":"'Reserve Risk'!$H$29"},"=IF($F$29<0,0,$F$29*$G$29)",{"$f":"IF(_xlfn.FORMULATEXT(INDIRECT(AB101))=AC101,0,1)","v":0}]
[{"$f":"ADDRESS(59,29,1,1,$A$1)","v":"Summary!$AC$59"},"=(SUM(AA$55:AA59)/AA$66)",0,{"$f":"ADDRESS(60,9,1,1,$D$1)","v":"'Fixed Income Investments'!$I$60"},"=IF(G60<0,0,G60*H60)",{"$f":"IF(_xlfn.FORMULATEXT(INDIRECT(D102))=E102,0,1)","v":0},{"$f":"ADDRESS(18,10,1,1,$G$1)","v":"'Equity Investments'!$J$18"},"='Schedule IIB'!P46+'Schedule IIC'!P46+'Schedule IID'!P46+'Schedule IIE'!P46+'Schedule IIF'!P46",0,null,null,null,{"$f":"ADDRESS(15,14,1,1,$M$1)","v":"'Currency Risk'!$N$15"},"='Schedule XXA'!Z13",0,{"$f":"ADDRESS(40,2,1,1,$P$1)","v":"'Concentration Risk'!$B$40"},"BSCR Rating 4",{"$f":"IF(INDIRECT(P102)=Q102,0,1)","v":0},{"$f":"ADDRESS(13,7,1,1,$S$1)","v":"'Geographic Diversification'!$G$13"},"=D13*(0.75+0.25*F13)",0,{"$f":"ADDRESS(68,5,1,1,$V$1)","v":"'Credit Risk'!$E$68"},"='Schedule IIB'!H84+'Schedule IIC'!H84+'Schedule IID'!H84+'Schedule IIE'!H84+'Schedule IIF'!H84",0,{"$f":"ADDRESS(17,19,1,1,$Y$1)","v":"'Premium Risk'!$S$17"},0.3,{"$f":"IF(INDIRECT(Y102)=Z102,0,1)","v":0},{"$f":"ADDRESS(30,4,1,1,$AB$1)","v":"'Reserve Risk'!$D$30"},"=+'Schedule III'!D29",{"$f":"IF(_xlfn.FORMULATEXT(INDIRECT(AB102))=AC102,0,1)","v":0}]
[{"$f":"ADDRESS(60,7,1,1,$A$1)","v":"Summary!$G$60"},"=+'Concentration Risk (old)'!F111",0,{"$f":"ADDRESS(61,7,1,1,$D$1)","v":"'Fixed Income Investments'!$G$61"},"='Schedule IIB'!P18+'Schedule IIC'!P18+(MAX(0,'Schedule IID'!P18-'Schedule IID'!R18))+'Schedule IIE'!P18+'Schedule IIF'!P18",{"$f":"IF(_xlfn.FORMULATEXT(INDIRECT(D103))=E103,0,1)","v":0},{"$f":"ADDRESS(18,11,1,1,$G$1)","v":"'Equity Investments'!$K$18"},"='Schedule IIB'!R46+'Schedule IIC'!R46+'Schedule IID'!R46+'Schedule IIE'!R46+'Schedule IIF'!R46",0,null,null,null,{"$f":"ADDRESS(15,15,1,1,$M$1)","v":"'Currency Risk'!$O$15"},"='Schedule XXA'!AB13",0,{"$f":"ADDRESS(40,4,1,1,$P$1)","v":"'Concentration Risk'!$D$40"},"=SUMIFS('Schedule XXIA'!$M$8:$M$57,'Schedule XXIA'!$K$8:$K$57,$D$35,'Schedule XXIA'!$L$8:$L$57,$B40)",{"$f":"IF(_xlfn.FORMULATEXT(INDIRECT(P103))=Q103,0,1)","v":0},{"$f":"ADDRESS(13,8,1,1,$S$1)","v":"'Geographic Diversification'!$H$13"},"=IF('Schedule IVE'!AB13=\"True\",G13,'Schedule IVD'!O13)",0,{"$f":"ADDRESS(68,6,1,1,$V$1)","v":"'Credit Risk'!$F$68"},0,{"$f":"IF(INDIRECT(V103)=W103,0,1)","v":0},{"$f":"ADDRESS(17,20,1,1,$Y$1)","v":"'Premium Risk'!$T$17"},0.5,{"$f":"IF(INDIRECT(Y103)=Z103,0,1)","v":0},{"$f":"ADDRESS(30,5,1,1,$AB$1)","v":"'Reserve Risk'!$E$30"},"=+'Schedule III'!F29",{"$f":"IF(_xlfn.FORMULATEXT(INDIRECT(AB103))=AC103,0,1)","v":0}]
[{"$f":"ADDRESS(60,11,1,1,$A$1)","v":"Summary!$K$60"},"='Concentration Risk'!F110",0,{"$f":"ADDRESS(61,8,1,1,$D$1)","v":"'Fixed Income Investments'!$H$61"},0.08,{"$f":"IF(INDIRECT(D104)=E104,0,1)","v":0},{"$f":"ADDRESS(18,12,1,1,$G$1)","v":"'Equity Investments'!$L$18"},"='Schedule IIB'!T46+'Schedule IIC'!T46+'Schedule IID'!T46+'Schedule IIE'!T46+'Schedule IIF'!T46",0,null,null,null,{"$f":"ADDRESS(15,16,1,1,$M$1)","v":"'Currency Risk'!$P$15"},"='Schedule XXA'!AD13",0,{"$f":"ADDRESS(40,5,1,1,$P$1)","v":"'Concentration Risk'!$E$40"},"=+'Fixed Income Investments (old)'!E30",{"$f":"IF(_xlfn.FORMULATEXT(INDIRECT(P104))=Q104,0,1)","v":0},{"$f":"ADDRESS(13,9,1,1,$S$1)","v":"'Geographic Diversification'!$I$13"},"=+'Schedule IVE'!E13",0,{"$f":"ADDRESS(68,7,1,1,$V$1)","v":"'Credit Risk'!$G$68"},0.03,{"$f":"IF(INDIRECT(V104)=W104,0,1)","v":0},{"$f":"ADDRESS(18,4,1,1,$Y$1)","v":"'Premium Risk'!$D$18"},"='Schedule IVD'!Q16",{"$f":"IF(_xlfn.FORMULATEXT(INDIRECT(Y104))=Z104,0,1)","v":0},{"$f":"ADDRESS(30,6,1,1,$AB$1)","v":"'Reserve Risk'!$F$30"},"='Geographic Diversification'!H59",{"$f":"IF(_xlfn.FORMULATEXT(INDIRECT(AB104))=AC104,0,1)","v":0}]
[{"$f":"ADDRESS(60,13,1,1,$A$1)","v":"Summary!$M$60"},"='Concentration Risk'!F110",0,{"$f":"ADDRESS(61,9,1,1,$D$1)","v":"'Fixed Income Investments'!$I$61"},"=IF(G61<0,0,G61*H61)",{"$f":"IF(_xlfn.FORMULATEXT(INDIRECT(D105))=E105,0,1)","v":0},{"$f":"ADDRESS(18,16,1,1,$G$1)","v":"'Equity Investments'!$P$18"},"=MAX(D18-E18,0)+(F18-G18)+MAX(H18-I18,0)+(K18-J18)",0,null,null,null,{"$f":"ADDRESS(15,17,1,1,$M$1)","v":"'Currency Risk'!$Q$15"},"='Schedule XXA'!AF13",0,{"$f":"ADDRESS(40,6,1,1,$P$1)","v":"'Concentration Risk'!$F$40"},"=MAX(0,(D40*E40))",{"$f":"IF(_xlfn.FORMULATEXT(INDIRECT(P105))=Q105,0,1)","v":0},{"$f":"ADDRESS(13,10,1,1,$S$1)","v":"'Geographic Diversification'!$J$13"},"=+'Schedule IVE'!F13",0,{"$f":"ADDRESS(68,8,1,1,$V$1)","v":"'Credit Risk'!$H$68"},"=MAX(0,C68-(1-G68)*MIN(C68,E68))*F68",{"$f":"IF(_xlfn.FORMULATEXT(INDIRECT(V105))=W105,0,1)","v":0},{"$f":"ADDRESS(18,5,1,1,$Y$1)","v":"'Premium Risk'!$E$18"},"='Schedule IVD'!O16",0,{"$f":"ADDRESS(30,7,1,1,$AB$1)","v":"'Reserve Risk'!$G$30"},0.43652386132510701,{"$f":"IF(INDIRECT(AB105)=AC105,0,1)","v":0}]
[{"$f":"ADDRESS(60,24,1,1,$A$1)","v":"Summary!$X$60"},"=G60",0,{"$f":"ADDRESS(62,7,1,1,$D$1)","v":"'Fixed Income Investments'!$G$62"},"='Schedule IIB'!P19+'Schedule IIC'!P19+(MAX(0,'Schedule IID'!P19-'Schedule IID'!R19))+'Schedule IIE'!P19+'Schedule IIF'!P19",{"$f":"IF(_xlfn.FORMULATEXT(INDIRECT(D106))=E106,0,1)","v":0},{"$f":"ADDRESS(18,18,1,1,$G$1)","v":"'Equity Investments'!$R$18"},"=MAX(D18-E18,0)+(F18-G18)+MAX(H18-I18,0)+(L18-J18)",0,null,null,null,{"$f":"ADDRESS(15,18,1,1,$M$1)","v":"'Currency Risk'!$R$15"},"=IF('Schedule XXA'!AH13=0,Q15,'Schedule XXA'!AH13)",0,{"$f":"ADDRESS(41,2,1,1,$P$1)","v":"'Concentration Risk'!$B$41"},"BSCR Rating 5",{"$f":"IF(INDIRECT(P106)=Q106,0,1)","v":0},{"$f":"ADDRESS(13,11,1,1,$S$1)","v":"'Geographic Diversification'!$K$13"},"=+'Schedule IVE'!G13",0,{"$f":"ADDRESS(69,3,1,1,$V$1)","v":"'Credit Risk'!$C$69"},"='Schedule IIB'!D85+'Schedule IIC'!D85+'Schedule IID'!D85+'Schedule IIE'!D85+'Schedule IIF'!D85",{"$f":"IF(_xlfn.FORMULATEXT(INDIRECT(V106))=W106,0,1)","v":0},{"$f":"ADDRESS(18,6,1,1,$Y$1)","v":"'Premium Risk'!$F$18"},"='Geographic Diversification'!H16",0,{"$f":"ADDRESS(30,8,1,1,$AB$1)","v":"'Reserve Risk'!$H$30"},"=IF($F$30<0,0,$F$30*$G$30)",{"$f":"IF(_xlfn.FORMULATEXT(INDIRECT(AB106))=AC106,0,1)","v":0}]
[{"$f":"ADDRESS(60,25,1,1,$A$1)","v":"Summary!$Y$60"},"=IF($L$72=0,1/9,X60/$X$66)",0,{"$f":"ADDRESS(62,8,1,1,$D$1)","v":"'Fixed Income Investments'!$H$62"},0.15,{"$f":"IF(INDIRECT(D107)=E107,0,1)","v":0},{"$f":"ADDRESS(19,4,1,1,$G$1)","v":"'Equity Investments'!$D$19"},"='Schedule IIB'!D47+'Schedule IIC'!D47+'Schedule IID'!D47+'Schedule IIE'!D47+'Schedule IIF'!D47",0,null,null,null,{"$f":"ADDRESS(15,20,1,1,$M$1)","v":"'Currency Risk'!$T$15"},"=(C15-L15)+(D15-M15)+(F15-O15)+MAX(E15-N15,0)+MAX(G15-P15,0)",0,{"$f":"ADDRESS(41,4,1,1,$P$1)","v":"'Concentration Risk'!$D$41"},"=SUMIFS('Schedule XXIA'!$M$8:$M$57,'Schedule XXIA'!$K$8:$K$57,$D$35,'Schedule XXIA'!$L$8:$L$57,$B41)",{"$f":"IF(_xlfn.FORMULATEXT(INDIRECT(P107))=Q107,0,1)","v":0},{"$f":"ADDRESS(13,12,1,1,$S$1)","v":"'Geographic Diversification'!$L$13"},"=+'Schedule IVE'!H13",0,{"$f":"ADDRESS(69,4,1,1,$V$1)","v":"'Credit Risk'!$D$69"},"='Schedule IIB'!F85+'Schedule IIC'!F85+'Schedule IID'!F85+'Schedule IIE'!F85+'Schedule IIF'!F85",{"$f":"IF(_xlfn.FORMULATEXT(INDIRECT(V107))=W107,0,1)","v":0},{"$f":"ADDRESS(18,7,1,1,$Y$1)","v":"'Premium Risk'!$G$18"},"=IF(IFERROR(F18/E18,1)<0,1,IFERROR(F18/E18,1))",0,{"$f":"ADDRESS(31,4,1,1,$AB$1)","v":"'Reserve Risk'!$D$31"},"=+'Schedule III'!D30",{"$f":"IF(_xlfn.FORMULATEXT(INDIRECT(AB107))=AC107,0,1)","v":0}]
[{"$f":"ADDRESS(60,26,1,1,$A$1)","v":"Summary!$Z$60"},"=M60",0,{"$f":"ADDRESS(62,9,1,1,$D$1)","v":"'Fixed Income Investments'!$I$62"},"=IF(G62<0,0,G62*H62)",{"$f":"IF(_xlfn.FORMULATEXT(INDIRECT(D108))=E108,0,1)","v":0},{"$f":"ADDRESS(19,5,1,1,$G$1)","v":"'Equity Investments'!$E$19"},"='Schedule IIB'!F47+'Schedule IIC'!F47+'Schedule IID'!F47+'Schedule IIE'!F47+'Schedule IIF'!F47",0,null,null,null,{"$f":"ADDRESS(15,21,1,1,$M$1)","v":"'Currency Risk'!$U$15"},"=Q15-$H15",0,{"$f":"ADDRESS(41,5,1,1,$P$1)","v":"'Concentration Risk'!$E$41"},"=+'Fixed Income Investments (old)'!E31",{"$f":"IF(_xlfn.FORMULATEXT(INDIRECT(P108))=Q108,0,1)","v":0},{"$f":"ADDRESS(13,13,1,1,$S$1)","v":"'Geographic Diversification'!$M$13"},"=+'Schedule IVE'!I13",0,{"$f":"ADDRESS(69,5,1,1,$V$1)","v":"'Credit Risk'!$E$69"},"='Schedule IIB'!H85+'Schedule IIC'!H85+'Schedule IID'!H85+'Schedule IIE'!H85+'Schedule IIF'!H85",{"$f":"IF(_xlfn.FORMULATEXT(INDIRECT(V108))=W108,0,1)","v":0},{"$f":"ADDRESS(18,8,1,1,$Y$1)","v":"'Premium Risk'!$H$18"},"='Schedule IVD'!I16*$G18",0,{"$f":"ADDRESS(31,5,1,1,$AB$1)","v":"'Reserve Risk'!$E$31"},"=+'Schedule III'!F30",{"$f":"IF(_xlfn.FORMULATEXT(INDIRECT(AB108))=AC108,0,1)","v":0}]
[{"$f":"ADDRESS(60,27,1,1,$A$1)","v":"Summary!$AA$60"},"=IF($N$72=0,1/9,Z60/$Z$66)",0,{"$f":"ADDRESS(63,7,1,1,$D$1)","v":"'Fixed Income Investments'!$G$63"},"='Schedule IIB'!P20+'Schedule IIC'!P20+(MAX(0,'Schedule IID'!P20-'Schedule IID'!R20))+'Schedule IIE'!P20+'Schedule IIF'!P20",{"$f":"IF(_xlfn.FORMULATEXT(INDIRECT(D109))=E109,0,1)","v":0},{"$f":"ADDRESS(19,6,1,1,$G$1)","v":"'Equity Investments'!$F$19"},"='Schedule IIB'!H47+'Schedule IIC'!H47+'Schedule IID'!H47+'Schedule IIE'!H47+'Schedule IIF'!H47",0,null,null,null,{"$f":"ADDRESS(15,22,1,1,$M$1)","v":"'Currency Risk'!$V$15"},"=R15-$H15",0,{"$f":"ADDRESS(41,6,1,1,$P$1)","v":"'Concentration Risk'!$F$41"},"=MAX(0,(D41*E41))",{"$f":"IF(_xlfn.FORMULATEXT(INDIRECT(P109))=Q109,0,1)","v":0},{"$f":"ADDRESS(13,14,1,1,$S$1)","v":"'Geographic Diversification'!$N$13"},"=+'Schedule IVE'!J13",0,{"$f":"ADDRESS(69,6,1,1,$V$1)","v":"'Credit Risk'!$F$69"},4.0000000000000001E-3,{"$f":"IF(INDIRECT(V109)=W109,0,1)","v":0},{"$f":"ADDRESS(18,9,1,1,$Y$1)","v":"'Premium Risk'!$I$18"},"='Schedule IVD'!K16*$G18",0,{"$f":"ADDRESS(31,6,1,1,$AB$1)","v":"'Reserve Risk'!$F$31"},"='Geographic Diversification'!H60",{"$f":"IF(_xlfn.FORMULATEXT(INDIRECT(AB109))=AC109,0,1)","v":0}]
[{"$f":"ADDRESS(60,29,1,1,$A$1)","v":"Summary!$AC$60"},"=(SUM(AA$55:AA60)/AA$66)",0,{"$f":"ADDRESS(63,8,1,1,$D$1)","v":"'Fixed Income Investments'!$H$63"},0.26300000000000001,{"$f":"IF(INDIRECT(D110)=E110,0,1)","v":0},{"$f":"ADDRESS(19,7,1,1,$G$1)","v":"'Equity Investments'!$G$19"},"='Schedule IIB'!J47+'Schedule IIC'!J47+'Schedule IID'!J47+'Schedule IIE'!J47+'Schedule IIF'!J47",0,null,null,null,{"$f":"ADDRESS(15,24,1,1,$M$1)","v":"'Currency Risk'!$X$15"},"=MAX(0,$T15+U15+(J15*I15))",0,{"$f":"ADDRESS(42,2,1,1,$P$1)","v":"'Concentration Risk'!$B$42"},"BSCR Rating 6",{"$f":"IF(INDIRECT(P110)=Q110,0,1)","v":0},{"$f":"ADDRESS(13,15,1,1,$S$1)","v":"'Geographic Diversification'!$O$13"},"=+'Schedule IVE'!K13",0,{"$f":"ADDRESS(69,7,1,1,$V$1)","v":"'Credit Risk'!$G$69"},0.03,{"$f":"IF(INDIRECT(V110)=W110,0,1)","v":0},{"$f":"ADDRESS(18,10,1,1,$Y$1)","v":"'Premium Risk'!$J$18"},"='Schedule IVD'!M16*$G18",0,{"$f":"ADDRESS(31,7,1,1,$AB$1)","v":"'Reserve Risk'!$G$31"},0.49410327959272199,{"$f":"IF(INDIRECT(AB110)=AC110,0,1)","v":0}]
[{"$f":"ADDRESS(61,20,1,1,$A$1)","v":"Summary!$T$61"},"=C63",0,{"$f":"ADDRESS(63,9,1,1,$D$1)","v":"'Fixed Income Investments'!$I$63"},"=IF(G63<0,0,G63*H63)",{"$f":"IF(_xlfn.FORMULATEXT(INDIRECT(D111))=E111,0,1)","v":0},{"$f":"ADDRESS(19,8,1,1,$G$1)","v":"'Equity Investments'!$H$19"},"='Schedule IIB'!L47+'Schedule IIC'!L47+'Schedule IID'!L47+'Schedule IIE'!L47+'Schedule IIF'!L47",0,null,null,null,{"$f":"ADDRESS(15,25,1,1,$M$1)","v":"'Currency Risk'!$Y$15"},"=MAX(0,$T15+V15+(J15*I15))",0,{"$f":"ADDRESS(42,4,1,1,$P$1)","v":"'Concentration Risk'!$D$42"},"=SUMIFS('Schedule XXIA'!$M$8:$M$57,'Schedule XXIA'!$K$8:$K$57,$D$35,'Schedule XXIA'!$L$8:$L$57,$B42)",{"$f":"IF(_xlfn.FORMULATEXT(INDIRECT(P111))=Q111,0,1)","v":0},{"$f":"ADDRESS(13,16,1,1,$S$1)","v":"'Geographic Diversification'!$P$13"},"=+'Schedule IVE'!L13",0,{"$f":"ADDRESS(69,8,1,1,$V$1)","v":"'Credit Risk'!$H$69"},"=MAX(0,C69-(1-G69)*MIN(C69,E69))*F69",{"$f":"IF(_xlfn.FORMULATEXT(INDIRECT(V111))=W111,0,1)","v":0},{"$f":"ADDRESS(18,11,1,1,$Y$1)","v":"'Premium Risk'!$K$18"},0.39820522005250802,{"$f":"IF(INDIRECT(Y111)=Z111,0,1)","v":0},{"$f":"ADDRESS(31,8,1,1,$AB$1)","v":"'Reserve Risk'!$H$31"},"=IF($F$31<0,0,$F$31*$G$31)",{"$f":"IF(_xlfn.FORMULATEXT(INDIRECT(AB111))=AC111,0,1)","v":0}]
[{"$f":"ADDRESS(61,24,1,1,$A$1)","v":"Summary!$X$61"},"=G63",0,{"$f":"ADDRESS(64,7,1,1,$D$1)","v":"'Fixed Income Investments'!$G$64"},"='Schedule IIB'!P21+'Schedule IIC'!P21+(MAX(0,'Schedule IID'!P21-'Schedule IID'!R21))+'Schedule IIE'!P21+'Schedule IIF'!P21",{"$f":"IF(_xlfn.FORMULATEXT(INDIRECT(D112))=E112,0,1)","v":0},{"$f":"ADDRESS(19,9,1,1,$G$1)","v":"'Equity Investments'!$I$19"},"='Schedule IIB'!N47+'Schedule IIC'!N47+'Schedule IID'!N47+'Schedule IIE'!N47+'Schedule IIF'!N47",0,null,null,null,{"$f":"ADDRESS(16,2,1,1,$M$1)","v":"'Currency Risk'!$B$16"},"='Schedule XXA'!B14",0,{"$f":"ADDRESS(42,5,1,1,$P$1)","v":"'Concentration Risk'!$E$42"},"=+'Fixed Income Investments (old)'!E32",{"$f":"IF(_xlfn.FORMULATEXT(INDIRECT(P112))=Q112,0,1)","v":0},{"$f":"ADDRESS(13,17,1,1,$S$1)","v":"'Geographic Diversification'!$Q$13"},"=+'Schedule IVE'!M13",0,{"$f":"ADDRESS(70,3,1,1,$V$1)","v":"'Credit Risk'!$C$70"},"='Schedule IIB'!D86+'Schedule IIC'!D86+'Schedule IID'!D86+'Schedule IIE'!D86+'Schedule IIF'!D86",{"$f":"IF(_xlfn.FORMULATEXT(INDIRECT(V112))=W112,0,1)","v":0},{"$f":"ADDRESS(18,12,1,1,$Y$1)","v":"'Premium Risk'!$L$18"},"=+K18*S18",{"$f":"IF(_xlfn.FORMULATEXT(INDIRECT(Y112))=Z112,0,1)","v":0},{"$f":"ADDRESS(32,4,1,1,$AB$1)","v":"'Reserve Risk'!$D$32"},"=+'Schedule III'!D31",{"$f":"IF(_xlfn.FORMULATEXT(INDIRECT(AB112))=AC112,0,1)","v":0}]
[{"$f":"ADDRESS(61,25,1,1,$A$1)","v":"Summary!$Y$61"},"=IF($L$72=0,1/9,X61/$X$66)",0,{"$f":"ADDRESS(64,8,1,1,$D$1)","v":"'Fixed Income Investments'!$H$64"},0.35,{"$f":"IF(INDIRECT(D113)=E113,0,1)","v":0},{"$f":"ADDRESS(19,10,1,1,$G$1)","v":"'Equity Investments'!$J$19"},"='Schedule IIB'!P47+'Schedule IIC'!P47+'Schedule IID'!P47+'Schedule IIE'!P47+'Schedule IIF'!P47",0,null,null,null,{"$f":"ADDRESS(16,3,1,1,$M$1)","v":"'Currency Risk'!$C$16"},"='Schedule XXA'!D14",0,{"$f":"ADDRESS(42,6,1,1,$P$1)","v":"'Concentration Risk'!$F$42"},"=MAX(0,(D42*E42))",{"$f":"IF(_xlfn.FORMULATEXT(INDIRECT(P113))=Q113,0,1)","v":0},{"$f":"ADDRESS(13,18,1,1,$S$1)","v":"'Geographic Diversification'!$R$13"},"=+'Schedule IVE'!N13",0,{"$f":"ADDRESS(70,4,1,1,$V$1)","v":"'Credit Risk'!$D$70"},"='Schedule IIB'!F86+'Schedule IIC'!F86+'Schedule IID'!F86+'Schedule IIE'!F86+'Schedule IIF'!F86",{"$f":"IF(_xlfn.FORMULATEXT(INDIRECT(V113))=W113,0,1)","v":0},{"$f":"ADDRESS(18,13,1,1,$Y$1)","v":"'Premium Risk'!$M$18"},"=+L18*T18",{"$f":"IF(_xlfn.FORMULATEXT(INDIRECT(Y113))=Z113,0,1)","v":0},{"$f":"ADDRESS(32,5,1,1,$AB$1)","v":"'Reserve Risk'!$E$32"},"=+'Schedule III'!F31",{"$f":"IF(_xlfn.FORMULATEXT(INDIRECT(AB113))=AC113,0,1)","v":0}]
[{"$f":"ADDRESS(61,26,1,1,$A$1)","v":"Summary!$Z$61"},"=M63",0,{"$f":"ADDRESS(64,9,1,1,$D$1)","v":"'Fixed Income Investments'!$I$64"},"=IF(G64<0,0,G64*H64)",{"$f":"IF(_xlfn.FORMULATEXT(INDIRECT(D114))=E114,0,1)","v":0},{"$f":"ADDRESS(19,11,1,1,$G$1)","v":"'Equity Investments'!$K$19"},"='Schedule IIB'!R47+'Schedule IIC'!R47+'Schedule IID'!R47+'Schedule IIE'!R47+'Schedule IIF'!R47",0,null,null,null,{"$f":"ADDRESS(16,4,1,1,$M$1)","v":"'Currency Risk'!$D$16"},"='Schedule XXA'!F14",0,{"$f":"ADDRESS(43,2,1,1,$P$1)","v":"'Concentration Risk'!$B$43"},"BSCR Rating 7",{"$f":"IF(INDIRECT(P114)=Q114,0,1)","v":0},{"$f":"ADDRESS(13,19,1,1,$S$1)","v":"'Geographic Diversification'!$S$13"},"=+'Schedule IVE'!O13",0,{"$f":"ADDRESS(70,5,1,1,$V$1)","v":"'Credit Risk'!$E$70"},"='Schedule IIB'!H86+'Schedule IIC'!H86+'Schedule IID'!H86+'Schedule IIE'!H86+'Schedule IIF'!H86",{"$f":"IF(_xlfn.FORMULATEXT(INDIRECT(V114))=W114,0,1)","v":0},{"$f":"ADDRESS(18,14,1,1,$Y$1)","v":"'Premium Risk'!$N$18"},"=IF($H18<0,0,$H18*$K18)+IF($I18<0,0,$I18*$L18)+IF($J18<0,0,$J18*$M18)",{"$f":"IF(_xlfn.FORMULATEXT(INDIRECT(Y114))=Z114,0,1)","v":0},{"$f":"ADDRESS(32,6,1,1,$AB$1)","v":"'Reserve Risk'!$F$32"},"='Geographic Diversification'!H61",{"$f":"IF(_xlfn.FORMULATEXT(INDIRECT(AB114))=AC114,0,1)","v":0}]
[{"$f":"ADDRESS(61,27,1,1,$A$1)","v":"Summary!$AA$61"},"=IF($N$72=0,1/9,Z61/$Z$66)",0,{"$f":"ADDRESS(66,7,1,1,$D$1)","v":"'Fixed Income Investments'!$G$66"},"=SUM(G56:G64)",{"$f":"IF(_xlfn.FORMULATEXT(INDIRECT(D115))=E115,0,1)","v":0},{"$f":"ADDRESS(19,12,1,1,$G$1)","v":"'Equity Investments'!$L$19"},"='Schedule IIB'!T47+'Schedule IIC'!T47+'Schedule IID'!T47+'Schedule IIE'!T47+'Schedule IIF'!T47",0,null,null,null,{"$f":"ADDRESS(16,5,1,1,$M$1)","v":"'Currency Risk'!$E$16"},"='Schedule XXA'!H14",0,{"$f":"ADDRESS(43,4,1,1,$P$1)","v":"'Concentration Risk'!$D$43"},"=SUMIFS('Schedule XXIA'!$M$8:$M$57,'Schedule XXIA'!$K$8:$K$57,$D$35,'Schedule XXIA'!$L$8:$L$57,$B43)",{"$f":"IF(_xlfn.FORMULATEXT(INDIRECT(P115))=Q115,0,1)","v":0},{"$f":"ADDRESS(13,20,1,1,$S$1)","v":"'Geographic Diversification'!$T$13"},"=+'Schedule IVE'!P13",0,{"$f":"ADDRESS(70,6,1,1,$V$1)","v":"'Credit Risk'!$F$70"},8.0000000000000002E-3,{"$f":"IF(INDIRECT(V115)=W115,0,1)","v":0},{"$f":"ADDRESS(18,17,1,1,$Y$1)","v":"'Premium Risk'!$Q$18"},"=IF(H18=E18,MAX(D18*K18,0),IF(E18=F18,IF(D18<0,0,D18*(H18/F18)*K18),IF(D18<0,0,D18*(H18/E18)*K18)))\n+IF(I18=E18,MAX(D18*L18,0),IF(E18=F18,IF(D18<0,0,D18*(I18/F18)*L18),IF(D18<0,0,D18*(I18/E18)*L18)))\n+IF(J18=E18,MAX(D18*M18,0),IF(E18=F18,IF(D18<0,0,D18*(J18/F18)*M18),IF(D18<0,0,D18*(J18/E18)*M18)))",{"$f":"IF(_xlfn.FORMULATEXT(INDIRECT(Y115))=Z115,0,1)","v":0},{"$f":"ADDRESS(32,7,1,1,$AB$1)","v":"'Reserve Risk'!$G$32"},0.478452065307162,{"$f":"IF(INDIRECT(AB115)=AC115,0,1)","v":0}]
[{"$f":"ADDRESS(61,29,1,1,$A$1)","v":"Summary!$AC$61"},"=(SUM(AA$55:AA63)/AA$66)",0,{"$f":"ADDRESS(66,9,1,1,$D$1)","v":"'Fixed Income Investments'!$I$66"},"=IF(SUM(I56:I64)>=0,SUM(I56:I64),0)",{"$f":"IF(_xlfn.FORMULATEXT(INDIRECT(D116))=E116,0,1)","v":0},{"$f":"ADDRESS(19,16,1,1,$G$1)","v":"'Equity Investments'!$P$19"},"=MAX(D19-E19,0)+(F19-G19)+MAX(H19-I19,0)+(K19-J19)",0,null,null,null,{"$f":"ADDRESS(16,6,1,1,$M$1)","v":"'Currency Risk'!$F$16"},"='Schedule XXA'!J14",0,{"$f":"ADDRESS(43,5,1,1,$P$1)","v":"'Concentration Risk'!$E$43"},"=+'Fixed Income Investments (old)'!E33",{"$f":"IF(_xlfn.FORMULATEXT(INDIRECT(P116))=Q116,0,1)","v":0},{"$f":"ADDRESS(13,21,1,1,$S$1)","v":"'Geographic Diversification'!$U$13"},"=+'Schedule IVE'!Q13",0,{"$f":"ADDRESS(70,7,1,1,$V$1)","v":"'Credit Risk'!$G$70"},0.03,{"$f":"IF(INDIRECT(V116)=W116,0,1)","v":0},{"$f":"ADDRESS(18,19,1,1,$Y$1)","v":"'Premium Risk'!$S$18"},0.3,{"$f":"IF(INDIRECT(Y116)=Z116,0,1)","v":0},{"$f":"ADDRESS(32,8,1,1,$AB$1)","v":"'Reserve Risk'!$H$32"},"=IF($F$32<0,0,$F$32*$G$32)",{"$f":"IF(_xlfn.FORMULATEXT(INDIRECT(AB116))=AC116,0,1)","v":0}]
[{"$f":"ADDRESS(61,30,1,1,$A$1)","v":"Summary!$AD$61"},"=IF(ISERROR(AVERAGE(AC63:AC63)),0,AVERAGE(AC63:AC63))",0,{"$f":"ADDRESS(70,7,1,1,$D$1)","v":"'Fixed Income Investments'!$G$70"},"='Schedule IIB'!T22+'Schedule IIC'!T22+(MAX(0,'Schedule IID'!T22-'Schedule IID'!V22))+'Schedule IIE'!T22+'Schedule IIF'!T22",{"$f":"IF(_xlfn.FORMULATEXT(INDIRECT(D117))=E117,0,1)","v":0},{"$f":"ADDRESS(19,18,1,1,$G$1)","v":"'Equity Investments'!$R$19"},"=MAX(D19-E19,0)+(F19-G19)+MAX(H19-I19,0)+(L19-J19)",0,null,null,null,{"$f":"ADDRESS(16,7,1,1,$M$1)","v":"'Currency Risk'!$G$16"},"='Schedule XXA'!L14",0,{"$f":"ADDRESS(43,6,1,1,$P$1)","v":"'Concentration Risk'!$F$43"},"=MAX(0,(D43*E43))",{"$f":"IF(_xlfn.FORMULATEXT(INDIRECT(P117))=Q117,0,1)","v":0},{"$f":"ADDRESS(13,22,1,1,$S$1)","v":"'Geographic Diversification'!$V$13"},"=+'Schedule IVE'!R13",0,{"$f":"ADDRESS(70,8,1,1,$V$1)","v":"'Credit Risk'!$H$70"},"=MAX(0,C70-(1-G70)*MIN(C70,E70))*F70",{"$f":"IF(_xlfn.FORMULATEXT(INDIRECT(V117))=W117,0,1)","v":0},{"$f":"ADDRESS(18,20,1,1,$Y$1)","v":"'Premium Risk'!$T$18"},0.5,{"$f":"IF(INDIRECT(Y117)=Z117,0,1)","v":0},{"$f":"ADDRESS(33,4,1,1,$AB$1)","v":"'Reserve Risk'!$D$33"},"=+'Schedule III'!D32",{"$f":"IF(_xlfn.FORMULATEXT(INDIRECT(AB117))=AC117,0,1)","v":0}]
[{"$f":"ADDRESS(61,32,1,1,$A$1)","v":"Summary!$AF$61"},"=IF(AO63=\"\",IF(Test_Statistic<$AJ$72,AI61,IF(Test_Statistic<$AL$72,AK61,AM61)),AO63)",0,{"$f":"ADDRESS(70,8,1,1,$D$1)","v":"'Fixed Income Investments'!$H$70"},3.0000000000000001E-3,{"$f":"IF(INDIRECT(D118)=E118,0,1)","v":0},{"$f":"ADDRESS(20,4,1,1,$G$1)","v":"'Equity Investments'!$D$20"},"='Schedule IIB'!D48+'Schedule IIC'!D48+'Schedule IID'!D48+'Schedule IIE'!D48+'Schedule IIF'!D48",0,null,null,null,{"$f":"ADDRESS(16,8,1,1,$M$1)","v":"'Currency Risk'!$H$16"},"='Schedule XXA'!N14",0,{"$f":"ADDRESS(44,2,1,1,$P$1)","v":"'Concentration Risk'!$B$44"},"BSCR Rating 8",{"$f":"IF(INDIRECT(P118)=Q118,0,1)","v":0},{"$f":"ADDRESS(13,23,1,1,$S$1)","v":"'Geographic Diversification'!$W$13"},"=+'Schedule IVE'!S13",0,{"$f":"ADDRESS(71,3,1,1,$V$1)","v":"'Credit Risk'!$C$71"},"='Schedule IIB'!D87+'Schedule IIC'!D87+'Schedule IID'!D87+'Schedule IIE'!D87+'Schedule IIF'!D87",{"$f":"IF(_xlfn.FORMULATEXT(INDIRECT(V118))=W118,0,1)","v":0},{"$f":"ADDRESS(19,4,1,1,$Y$1)","v":"'Premium Risk'!$D$19"},"='Schedule IVD'!Q17",{"$f":"IF(_xlfn.FORMULATEXT(INDIRECT(Y118))=Z118,0,1)","v":0},{"$f":"ADDRESS(33,5,1,1,$AB$1)","v":"'Reserve Risk'!$E$33"},"=+'Schedule III'!F32",{"$f":"IF(_xlfn.FORMULATEXT(INDIRECT(AB118))=AC118,0,1)","v":0}]
[{"$f":"ADDRESS(61,33,1,1,$A$1)","v":"Summary!$AG$61"},"=IF(AP63=\"\",IF(Test_Statistic<$AJ$72,AJ61,IF(Test_Statistic<$AL$72,AL61,AN61)),AP63)",{"$f":"IF(_xlfn.FORMULATEXT(INDIRECT(A119))=B119,0,1)","v":0},{"$f":"ADDRESS(70,9,1,1,$D$1)","v":"'Fixed Income Investments'!$I$70"},"=IF(G70<0,0,G70*H70)",{"$f":"IF(_xlfn.FORMULATEXT(INDIRECT(D119))=E119,0,1)","v":0},{"$f":"ADDRESS(20,5,1,1,$G$1)","v":"'Equity Investments'!$E$20"},"='Schedule IIB'!F48+'Schedule IIC'!F48+'Schedule IID'!F48+'Schedule IIE'!F48+'Schedule IIF'!F48",0,null,null,null,{"$f":"ADDRESS(16,9,1,1,$M$1)","v":"'Currency Risk'!$I$16"},"=$I$10*H16",0,{"$f":"ADDRESS(44,4,1,1,$P$1)","v":"'Concentration Risk'!$D$44"},"=SUMIFS('Schedule XXIA'!$M$8:$M$57,'Schedule XXIA'!$K$8:$K$57,$D$35,'Schedule XXIA'!$L$8:$L$57,$B44)",{"$f":"IF(_xlfn.FORMULATEXT(INDIRECT(P119))=Q119,0,1)","v":0},{"$f":"ADDRESS(13,24,1,1,$S$1)","v":"'Geographic Diversification'!$X$13"},"=+'Schedule IVE'!T13",0,{"$f":"ADDRESS(71,4,1,1,$V$1)","v":"'Credit Risk'!$D$71"},"='Schedule IIB'!F87+'Schedule IIC'!F87+'Schedule IID'!F87+'Schedule IIE'!F87+'Schedule IIF'!F87",{"$f":"IF(_xlfn.FORMULATEXT(INDIRECT(V119))=W119,0,1)","v":0},{"$f":"ADDRESS(19,5,1,1,$Y$1)","v":"'Premium Risk'!$E$19"},"='Schedule IVD'!O17",0,{"$f":"ADDRESS(33,6,1,1,$AB$1)","v":"'Reserve Risk'!$F$33"},"='Geographic Diversification'!H62",{"$f":"IF(_xlfn.FORMULATEXT(INDIRECT(AB119))=AC119,0,1)","v":0}]
[{"$f":"ADDRESS(61,35,1,1,$A$1)","v":"Summary!$AI$61"},"=IF(AC63>1,200,IF(AC61>1,50,IF(AC61>0.6,50,180)))",0,{"$f":"ADDRESS(71,7,1,1,$D$1)","v":"'Fixed Income Investments'!$G$71"},"='Schedule IIB'!T23+'Schedule IIC'!T23+(MAX(0,'Schedule IID'!T23-'Schedule IID'!V23))+'Schedule IIE'!T23+'Schedule IIF'!T23",{"$f":"IF(_xlfn.FORMULATEXT(INDIRECT(D120))=E120,0,1)","v":0},{"$f":"ADDRESS(20,6,1,1,$G$1)","v":"'Equity Investments'!$F$20"},"='Schedule IIB'!H48+'Schedule IIC'!H48+'Schedule IID'!H48+'Schedule IIE'!H48+'Schedule IIF'!H48",0,null,null,null,{"$f":"ADDRESS(16,10,1,1,$M$1)","v":"'Currency Risk'!$J$16"},"=IF($B$12=\"Denmark Kroner\",IF((C16+D16+E16+F16+G16)>(H16+I16),0%,0.39%),IF($B$12=\"Bulgaria Leva\",IF((C16+D16+E16+F16+G16)>(H16+I16),0%,1.81%),IF($B$12=\"West African CFA Francs\",IF((C16+D16+E16+F16+G16)>(H16+I16),0%,2.18%),IF($B$12=\"Central African CFA Francs\",IF((C16+D16+E16+F16+G16)>(H16+I16),0%,1.96%),IF($B$12=\"Comorian Francs\",IF((C16+D16+E16+F16+G16)>(H16+I16),0%,2%),IF((C16+D16+E16+F16+G16)>(H16+I16),0%,25%))))))",0,{"$f":"ADDRESS(44,5,1,1,$P$1)","v":"'Concentration Risk'!$E$44"},"=+'Fixed Income Investments (old)'!E34",{"$f":"IF(_xlfn.FORMULATEXT(INDIRECT(P120))=Q120,0,1)","v":0},{"$f":"ADDRESS(13,25,1,1,$S$1)","v":"'Geographic Diversification'!$Y$13"},"=+'Schedule IVE'!U13",0,{"$f":"ADDRESS(71,5,1,1,$V$1)","v":"'Credit Risk'!$E$71"},"='Schedule IIB'!H87+'Schedule IIC'!H87+'Schedule IID'!H87+'Schedule IIE'!H87+'Schedule IIF'!H87",{"$f":"IF(_xlfn.FORMULATEXT(INDIRECT(V120))=W120,0,1)","v":0},{"$f":"ADDRESS(19,6,1,1,$Y$1)","v":"'Premium Risk'!$F$19"},"='Geographic Diversification'!H17",0,{"$f":"ADDRESS(33,7,1,1,$AB$1)","v":"'Reserve Risk'!$G$33"},0.24099999999999999,{"$f":"IF(INDIRECT(AB120)=AC120,0,1)","v":0}]
[{"$f":"ADDRESS(61,36,1,1,$A$1)","v":"Summary!$AJ$61"},"=IF(AC63>1,5,IF(AC61>0.6,IF(AD63>0.5,60,120),IF(AC61>0.6,100,200)))",0,{"$f":"ADDRESS(71,8,1,1,$D$1)","v":"'Fixed Income Investments'!$H$71"},0.05,{"$f":"IF(INDIRECT(D121)=E121,0,1)","v":0},{"$f":"ADDRESS(20,7,1,1,$G$1)","v":"'Equity Investments'!$G$20"},"='Schedule IIB'!J48+'Schedule IIC'!J48+'Schedule IID'!J48+'Schedule IIE'!J48+'Schedule IIF'!J48",0,null,null,null,{"$f":"ADDRESS(16,12,1,1,$M$1)","v":"'Currency Risk'!$L$16"},"='Schedule XXA'!V14",0,{"$f":"ADDRESS(44,6,1,1,$P$1)","v":"'Concentration Risk'!$F$44"},"=MAX(0,(D44*E44))",{"$f":"IF(_xlfn.FORMULATEXT(INDIRECT(P121))=Q121,0,1)","v":0},{"$f":"ADDRESS(13,26,1,1,$S$1)","v":"'Geographic Diversification'!$Z$13"},"=+'Schedule IVE'!V13",0,{"$f":"ADDRESS(71,6,1,1,$V$1)","v":"'Credit Risk'!$F$71"},1.4999999999999999E-2,{"$f":"IF(INDIRECT(V121)=W121,0,1)","v":0},{"$f":"ADDRESS(19,7,1,1,$Y$1)","v":"'Premium Risk'!$G$19"},"=IF(IFERROR(F19/E19,1)<0,1,IFERROR(F19/E19,1))",0,{"$f":"ADDRESS(33,8,1,1,$AB$1)","v":"'Reserve Risk'!$H$33"},"=IF($F$33<0,0,$F$33*$G$33)",{"$f":"IF(_xlfn.FORMULATEXT(INDIRECT(AB121))=AC121,0,1)","v":0}]
[{"$f":"ADDRESS(61,37,1,1,$A$1)","v":"Summary!$AK$61"},"=IF(Test_Statistic_2<0.95,50,160)",0,{"$f":"ADDRESS(71,9,1,1,$D$1)","v":"'Fixed Income Investments'!$I$71"},"=IF(G71<0,0,G71*H71)",{"$f":"IF(_xlfn.FORMULATEXT(INDIRECT(D122))=E122,0,1)","v":0},{"$f":"ADDRESS(20,8,1,1,$G$1)","v":"'Equity Investments'!$H$20"},"='Schedule IIB'!L48+'Schedule IIC'!L48+'Schedule IID'!L48+'Schedule IIE'!L48+'Schedule IIF'!L48",0,null,null,null,{"$f":"ADDRESS(16,13,1,1,$M$1)","v":"'Currency Risk'!$M$16"},"='Schedule XXA'!X14",0,{"$f":"ADDRESS(46,4,1,1,$P$1)","v":"'Concentration Risk'!$D$46"},"=SUM(D35:D44)",{"$f":"IF(_xlfn.FORMULATEXT(INDIRECT(P122))=Q122,0,1)","v":0},{"$f":"ADDRESS(14,4,1,1,$S$1)","v":"'Geographic Diversification'!$D$14"},"=SUM(I14:Z14)",0,{"$f":"ADDRESS(71,7,1,1,$V$1)","v":"'Credit Risk'!$G$71"},0.03,{"$f":"IF(INDIRECT(V122)=W122,0,1)","v":0},{"$f":"ADDRESS(19,8,1,1,$Y$1)","v":"'Premium Risk'!$H$19"},"='Schedule IVD'!I17*$G19",0,{"$f":"ADDRESS(34,4,1,1,$AB$1)","v":"'Reserve Risk'!$D$34"},"=+'Schedule III'!D33",{"$f":"IF(_xlfn.FORMULATEXT(INDIRECT(AB122))=AC122,0,1)","v":0}]
[{"$f":"ADDRESS(61,38,1,1,$A$1)","v":"Summary!$AL$61"},"=IF(Test_Statistic_2<0.95,70,5)",0,{"$f":"ADDRESS(72,7,1,1,$D$1)","v":"'Fixed Income Investments'!$G$72"},"='Schedule IIB'!T24+'Schedule IIC'!T24+(MAX(0,'Schedule IID'!T24-'Schedule IID'!V24))+'Schedule IIE'!T24+'Schedule IIF'!T24",{"$f":"IF(_xlfn.FORMULATEXT(INDIRECT(D123))=E123,0,1)","v":0},{"$f":"ADDRESS(20,9,1,1,$G$1)","v":"'Equity Investments'!$I$20"},"='Schedule IIB'!N48+'Schedule IIC'!N48+'Schedule IID'!N48+'Schedule IIE'!N48+'Schedule IIF'!N48",0,null,null,null,{"$f":"ADDRESS(16,14,1,1,$M$1)","v":"'Currency Risk'!$N$16"},"='Schedule XXA'!Z14",0,{"$f":"ADDRESS(46,6,1,1,$P$1)","v":"'Concentration Risk'!$F$46"},"=SUM(F35:F44)",{"$f":"IF(_xlfn.FORMULATEXT(INDIRECT(P123))=Q123,0,1)","v":0},{"$f":"ADDRESS(14,5,1,1,$S$1)","v":"'Geographic Diversification'!$E$14"},"=SUMSQ(I14:Z14)",0,{"$f":"ADDRESS(71,8,1,1,$V$1)","v":"'Credit Risk'!$H$71"},"=MAX(0,C71-(1-G71)*MIN(C71,E71))*F71",{"$f":"IF(_xlfn.FORMULATEXT(INDIRECT(V123))=W123,0,1)","v":0},{"$f":"ADDRESS(19,9,1,1,$Y$1)","v":"'Premium Risk'!$I$19"},"='Schedule IVD'!K17*$G19",0,{"$f":"ADDRESS(34,5,1,1,$AB$1)","v":"'Reserve Risk'!$E$34"},"=+'Schedule III'!F33",{"$f":"IF(_xlfn.FORMULATEXT(INDIRECT(AB123))=AC123,0,1)","v":0}]
[{"$f":"ADDRESS(61,39,1,1,$A$1)","v":"Summary!$AM$61"},"=IF(Test_Statistic_2<1,50,180)",0,{"$f":"ADDRESS(72,8,1,1,$D$1)","v":"'Fixed Income Investments'!$H$72"},1.4999999999999999E-2,{"$f":"IF(INDIRECT(D124)=E124,0,1)","v":0},{"$f":"ADDRESS(20,10,1,1,$G$1)","v":"'Equity Investments'!$J$20"},"='Schedule IIB'!P48+'Schedule IIC'!P48+'Schedule IID'!P48+'Schedule IIE'!P48+'Schedule IIF'!P48",0,null,null,null,{"$f":"ADDRESS(16,15,1,1,$M$1)","v":"'Currency Risk'!$O$16"},"='Schedule XXA'!AB14",0,{"$f":"ADDRESS(48,4,1,1,$P$1)","v":"'Concentration Risk'!$D$48"},"Commercial Mortgage-Backed Securities",{"$f":"IF(INDIRECT(P124)=Q124,0,1)","v":0},{"$f":"ADDRESS(14,6,1,1,$S$1)","v":"'Geographic Diversification'!$F$14"},"=(IF(D14>0,E14/D14^2,1))",0,{"$f":"ADDRESS(72,3,1,1,$V$1)","v":"'Credit Risk'!$C$72"},"='Schedule IIB'!D88+'Schedule IIC'!D88+'Schedule IID'!D88+'Schedule IIE'!D88+'Schedule IIF'!D88",{"$f":"IF(_xlfn.FORMULATEXT(INDIRECT(V124))=W124,0,1)","v":0},{"$f":"ADDRESS(19,10,1,1,$Y$1)","v":"'Premium Risk'!$J$19"},"='Schedule IVD'!M17*$G19",0,{"$f":"ADDRESS(34,6,1,1,$AB$1)","v":"'Reserve Risk'!$F$34"},"='Geographic Diversification'!H63",{"$f":"IF(_xlfn.FORMULATEXT(INDIRECT(AB124))=AC124,0,1)","v":0}]
[{"$f":"ADDRESS(61,40,1,1,$A$1)","v":"Summary!$AN$61"},"=IF(Test_Statistic_2<1,50,5)",0,{"$f":"ADDRESS(72,9,1,1,$D$1)","v":"'Fixed Income Investments'!$I$72"},"=IF(G72<0,0,G72*H72)",{"$f":"IF(_xlfn.FORMULATEXT(INDIRECT(D125))=E125,0,1)","v":0},{"$f":"ADDRESS(20,11,1,1,$G$1)","v":"'Equity Investments'!$K$20"},"='Schedule IIB'!R48+'Schedule IIC'!R48+'Schedule IID'!R48+'Schedule IIE'!R48+'Schedule IIF'!R48",0,null,null,null,{"$f":"ADDRESS(16,16,1,1,$M$1)","v":"'Currency Risk'!$P$16"},"='Schedule XXA'!AD14",0,{"$f":"ADDRESS(49,2,1,1,$P$1)","v":"'Concentration Risk'!$B$49"},"BSCR Rating 0",{"$f":"IF(INDIRECT(P125)=Q125,0,1)","v":0},{"$f":"ADDRESS(14,7,1,1,$S$1)","v":"'Geographic Diversification'!$G$14"},"=D14*(0.75+0.25*F14)",0,{"$f":"ADDRESS(72,4,1,1,$V$1)","v":"'Credit Risk'!$D$72"},"='Schedule IIB'!F88+'Schedule IIC'!F88+'Schedule IID'!F88+'Schedule IIE'!F88+'Schedule IIF'!F88",{"$f":"IF(_xlfn.FORMULATEXT(INDIRECT(V125))=W125,0,1)","v":0},{"$f":"ADDRESS(19,11,1,1,$Y$1)","v":"'Premium Risk'!$K$19"},0.45356665999464701,{"$f":"IF(INDIRECT(Y125)=Z125,0,1)","v":0},{"$f":"ADDRESS(34,7,1,1,$AB$1)","v":"'Reserve Risk'!$G$34"},0.125,{"$f":"IF(INDIRECT(AB125)=AC125,0,1)","v":0}]
[{"$f":"ADDRESS(62,12,1,1,$A$1)","v":"Summary!$L$62"},"=K63",0,{"$f":"ADDRESS(73,7,1,1,$D$1)","v":"'Fixed Income Investments'!$G$73"},"='Schedule IIB'!T25+'Schedule IIC'!T25+(MAX(0,'Schedule IID'!T25-'Schedule IID'!V25))+'Schedule IIE'!T25+'Schedule IIF'!T25",{"$f":"IF(_xlfn.FORMULATEXT(INDIRECT(D126))=E126,0,1)","v":0},{"$f":"ADDRESS(20,12,1,1,$G$1)","v":"'Equity Investments'!$L$20"},"='Schedule IIB'!T48+'Schedule IIC'!T48+'Schedule IID'!T48+'Schedule IIE'!T48+'Schedule IIF'!T48",0,null,null,null,{"$f":"ADDRESS(16,17,1,1,$M$1)","v":"'Currency Risk'!$Q$16"},"='Schedule XXA'!AF14",0,{"$f":"ADDRESS(49,4,1,1,$P$1)","v":"'Concentration Risk'!$D$49"},"=SUMIFS('Schedule XXIA'!$M$8:$M$57,'Schedule XXIA'!$K$8:$K$57,$D$48,'Schedule XXIA'!$L$8:$L$57,$B49)",{"$f":"IF(_xlfn.FORMULATEXT(INDIRECT(P126))=Q126,0,1)","v":0},{"$f":"ADDRESS(14,8,1,1,$S$1)","v":"'Geographic Diversification'!$H$14"},"=IF('Schedule IVE'!AB14=\"True\",G14,'Schedule IVD'!O14)",0,{"$f":"ADDRESS(72,5,1,1,$V$1)","v":"'Credit Risk'!$E$72"},"='Schedule IIB'!H88+'Schedule IIC'!H88+'Schedule IID'!H88+'Schedule IIE'!H88+'Schedule IIF'!H88",{"$f":"IF(_xlfn.FORMULATEXT(INDIRECT(V126))=W126,0,1)","v":0},{"$f":"ADDRESS(19,12,1,1,$Y$1)","v":"'Premium Risk'!$L$19"},"=+K19*S19",{"$f":"IF(_xlfn.FORMULATEXT(INDIRECT(Y126))=Z126,0,1)","v":0},{"$f":"ADDRESS(34,8,1,1,$AB$1)","v":"'Reserve Risk'!$H$34"},"=IF($F$34<0,0,$F$34*$G$34)",{"$f":"IF(_xlfn.FORMULATEXT(INDIRECT(AB126))=AC126,0,1)","v":0}]
[{"$f":"ADDRESS(62,14,1,1,$A$1)","v":"Summary!$N$62"},"=M63",0,{"$f":"ADDRESS(73,8,1,1,$D$1)","v":"'Fixed Income Investments'!$H$73"},0.25,{"$f":"IF(INDIRECT(D127)=E127,0,1)","v":0},{"$f":"ADDRESS(20,16,1,1,$G$1)","v":"'Equity Investments'!$P$20"},"=MAX(D20-E20,0)+(F20-G20)+MAX(H20-I20,0)+(K20-J20)",0,null,null,null,{"$f":"ADDRESS(16,18,1,1,$M$1)","v":"'Currency Risk'!$R$16"},"=IF('Schedule XXA'!AH14=0,Q16,'Schedule XXA'!AH14)",0,{"$f":"ADDRESS(49,5,1,1,$P$1)","v":"'Concentration Risk'!$E$49"},0,{"$f":"IF(INDIRECT(P127)=Q127,0,1)","v":0},{"$f":"ADDRESS(14,9,1,1,$S$1)","v":"'Geographic Diversification'!$I$14"},"=+'Schedule IVE'!E14",0,{"$f":"ADDRESS(72,6,1,1,$V$1)","v":"'Credit Risk'!$F$72"},0.03,{"$f":"IF(INDIRECT(V127)=W127,0,1)","v":0},{"$f":"ADDRESS(19,13,1,1,$Y$1)","v":"'Premium Risk'!$M$19"},"=+L19*T19",{"$f":"IF(_xlfn.FORMULATEXT(INDIRECT(Y127))=Z127,0,1)","v":0},{"$f":"ADDRESS(36,4,1,1,$AB$1)","v":"'Reserve Risk'!$D$36"},"=SUM(D11:D34)",0]
[{"$f":"ADDRESS(62,20,1,1,$A$1)","v":"Summary!$T$62"},"=C66",0,{"$f":"ADDRESS(73,9,1,1,$D$1)","v":"'Fixed Income Investments'!$I$73"},"=IF(G73<0,0,G73*H73)",{"$f":"IF(_xlfn.FORMULATEXT(INDIRECT(D128))=E128,0,1)","v":0},{"$f":"ADDRESS(20,18,1,1,$G$1)","v":"'Equity Investments'!$R$20"},"=MAX(D20-E20,0)+(F20-G20)+MAX(H20-I20,0)+(L20-J20)",0,null,null,null,{"$f":"ADDRESS(16,20,1,1,$M$1)","v":"'Currency Risk'!$T$16"},"=(C16-L16)+(D16-M16)+(F16-O16)+MAX(E16-N16,0)+MAX(G16-P16,0)",0,{"$f":"ADDRESS(49,6,1,1,$P$1)","v":"'Concentration Risk'!$F$49"},"=MAX(0,(D49*E49))",{"$f":"IF(_xlfn.FORMULATEXT(INDIRECT(P128))=Q128,0,1)","v":0},{"$f":"ADDRESS(14,10,1,1,$S$1)","v":"'Geographic Diversification'!$J$14"},"=+'Schedule IVE'!F14",0,{"$f":"ADDRESS(72,7,1,1,$V$1)","v":"'Credit Risk'!$G$72"},0.03,{"$f":"IF(INDIRECT(V128)=W128,0,1)","v":0},{"$f":"ADDRESS(19,14,1,1,$Y$1)","v":"'Premium Risk'!$N$19"},"=IF($H19<0,0,$H19*$K19)+IF($I19<0,0,$I19*$L19)+IF($J19<0,0,$J19*$M19)",{"$f":"IF(_xlfn.FORMULATEXT(INDIRECT(Y128))=Z128,0,1)","v":0},{"$f":"ADDRESS(36,5,1,1,$AB$1)","v":"'Reserve Risk'!$E$36"},"=SUM(E11:E34)",0]
[{"$f":"ADDRESS(62,24,1,1,$A$1)","v":"Summary!$X$62"},"=G66",0,{"$f":"ADDRESS(75,7,1,1,$D$1)","v":"'Fixed Income Investments'!$G$75"},"=SUM(G70:G73)",{"$f":"IF(_xlfn.FORMULATEXT(INDIRECT(D129))=E129,0,1)","v":0},{"$f":"ADDRESS(21,4,1,1,$G$1)","v":"'Equity Investments'!$D$21"},"='Schedule IIB'!D49+'Schedule IIC'!D49+'Schedule IID'!D49+'Schedule IIE'!D49+'Schedule IIF'!D49",0,null,null,null,{"$f":"ADDRESS(16,21,1,1,$M$1)","v":"'Currency Risk'!$U$16"},"=Q16-$H16",0,{"$f":"ADDRESS(50,2,1,1,$P$1)","v":"'Concentration Risk'!$B$50"},"BSCR Rating 1",{"$f":"IF(INDIRECT(P129)=Q129,0,1)","v":0},{"$f":"ADDRESS(14,11,1,1,$S$1)","v":"'Geographic Diversification'!$K$14"},"=+'Schedule IVE'!G14",0,{"$f":"ADDRESS(72,8,1,1,$V$1)","v":"'Credit Risk'!$H$72"},"=MAX(0,C72-(1-G72)*MIN(C72,E72))*F72",{"$f":"IF(_xlfn.FORMULATEXT(INDIRECT(V129))=W129,0,1)","v":0},{"$f":"ADDRESS(19,17,1,1,$Y$1)","v":"'Premium Risk'!$Q$19"},"=IF(H19=E19,MAX(D19*K19,0),IF(E19=F19,IF(D19<0,0,D19*(H19/F19)*K19),IF(D19<0,0,D19*(H19/E19)*K19)))\n+IF(I19=E19,MAX(D19*L19,0),IF(E19=F19,IF(D19<0,0,D19*(I19/F19)*L19),IF(D19<0,0,D19*(I19/E19)*L19)))\n+IF(J19=E19,MAX(D19*M19,0),IF(E19=F19,IF(D19<0,0,D19*(J19/F19)*M19),IF(D19<0,0,D19*(J19/E19)*M19)))",{"$f":"IF(_xlfn.FORMULATEXT(INDIRECT(Y129))=Z129,0,1)","v":0},{"$f":"ADDRESS(36,6,1,1,$AB$1)","v":"'Reserve Risk'!$F$36"},"=SUM(F11:F34)",0]
[{"$f":"ADDRESS(62,25,1,1,$A$1)","v":"Summary!$Y$62"},"=IF($L$72=0,1/9,X62/$X$66)",0,{"$f":"ADDRESS(75,9,1,1,$D$1)","v":"'Fixed Income Investments'!$I$75"},"=IF(SUM(I70:I73)>=0,SUM(I70:I73),0)",{"$f":"IF(_xlfn.FORMULATEXT(INDIRECT(D130))=E130,0,1)","v":0},{"$f":"ADDRESS(21,5,1,1,$G$1)","v":"'Equity Investments'!$E$21"},"='Schedule IIB'!F49+'Schedule IIC'!F49+'Schedule IID'!F49+'Schedule IIE'!F49+'Schedule IIF'!F49",0,null,null,null,{"$f":"ADDRESS(16,22,1,1,$M$1)","v":"'Currency Risk'!$V$16"},"=R16-$H16",0,{"$f":"ADDRESS(50,4,1,1,$P$1)","v":"'Concentration Risk'!$D$50"},"=SUMIFS('Schedule XXIA'!$M$8:$M$57,'Schedule XXIA'!$K$8:$K$57,$D$48,'Schedule XXIA'!$L$8:$L$57,$B50)",{"$f":"IF(_xlfn.FORMULATEXT(INDIRECT(P130))=Q130,0,1)","v":0},{"$f":"ADDRESS(14,12,1,1,$S$1)","v":"'Geographic Diversification'!$L$14"},"=+'Schedule IVE'!H14",0,{"$f":"ADDRESS(73,3,1,1,$V$1)","v":"'Credit Risk'!$C$73"},"='Schedule IIB'!D89+'Schedule IIC'!D89+'Schedule IID'!D89+'Schedule IIE'!D89+'Schedule IIF'!D89",{"$f":"IF(_xlfn.FORMULATEXT(INDIRECT(V130))=W130,0,1)","v":0},{"$f":"ADDRESS(19,19,1,1,$Y$1)","v":"'Premium Risk'!$S$19"},0.3,{"$f":"IF(INDIRECT(Y130)=Z130,0,1)","v":0},{"$f":"ADDRESS(36,8,1,1,$AB$1)","v":"'Reserve Risk'!$H$36"},"=SUM(H11:H35)",0]
[{"$f":"ADDRESS(62,26,1,1,$A$1)","v":"Summary!$Z$62"},"=M66",0,{"$f":"ADDRESS(79,7,1,1,$D$1)","v":"'Fixed Income Investments'!$G$79"},"='Form 1SFS (Consolidated)'!M62",{"$f":"IF(_xlfn.FORMULATEXT(INDIRECT(D131))=E131,0,1)","v":0},{"$f":"ADDRESS(21,6,1,1,$G$1)","v":"'Equity Investments'!$F$21"},"='Schedule IIB'!H49+'Schedule IIC'!H49+'Schedule IID'!H49+'Schedule IIE'!H49+'Schedule IIF'!H49",0,null,null,null,{"$f":"ADDRESS(16,24,1,1,$M$1)","v":"'Currency Risk'!$X$16"},"=MAX(0,$T16+U16+(J16*I16))",0,{"$f":"ADDRESS(50,5,1,1,$P$1)","v":"'Concentration Risk'!$E$50"},"=+'Fixed Income Investments (old)'!E41",{"$f":"IF(_xlfn.FORMULATEXT(INDIRECT(P131))=Q131,0,1)","v":0},{"$f":"ADDRESS(14,13,1,1,$S$1)","v":"'Geographic Diversification'!$M$14"},"=+'Schedule IVE'!I14",0,{"$f":"ADDRESS(73,4,1,1,$V$1)","v":"'Credit Risk'!$D$73"},"='Schedule IIB'!F89+'Schedule IIC'!F89+'Schedule IID'!F89+'Schedule IIE'!F89+'Schedule IIF'!F89",{"$f":"IF(_xlfn.FORMULATEXT(INDIRECT(V131))=W131,0,1)","v":0},{"$f":"ADDRESS(19,20,1,1,$Y$1)","v":"'Premium Risk'!$T$19"},0.5,{"$f":"IF(INDIRECT(Y131)=Z131,0,1)","v":0},{"$f":"ADDRESS(40,8,1,1,$AB$1)","v":"'Reserve Risk'!$H$40"},"=H36-H42",0]
[{"$f":"ADDRESS(62,27,1,1,$A$1)","v":"Summary!$AA$62"},"=IF($N$72=0,1/9,Z62/$Z$66)",0,{"$f":"ADDRESS(79,8,1,1,$D$1)","v":"'Fixed Income Investments'!$H$79"},0.05,{"$f":"IF(INDIRECT(D132)=E132,0,1)","v":0},{"$f":"ADDRESS(21,7,1,1,$G$1)","v":"'Equity Investments'!$G$21"},"='Schedule IIB'!J49+'Schedule IIC'!J49+'Schedule IID'!J49+'Schedule IIE'!J49+'Schedule IIF'!J49",0,null,null,null,{"$f":"ADDRESS(16,25,1,1,$M$1)","v":"'Currency Risk'!$Y$16"},"=MAX(0,$T16+V16+(J16*I16))",0,{"$f":"ADDRESS(50,6,1,1,$P$1)","v":"'Concentration Risk'!$F$50"},"=MAX(0,(D50*E50))",{"$f":"IF(_xlfn.FORMULATEXT(INDIRECT(P132))=Q132,0,1)","v":0},{"$f":"ADDRESS(14,14,1,1,$S$1)","v":"'Geographic Diversification'!$N$14"},"=+'Schedule IVE'!J14",{"$f":"IF(_xlfn.FORMULATEXT(INDIRECT(S132))=T132,0,1)","v":0},{"$f":"ADDRESS(73,5,1,1,$V$1)","v":"'Credit Risk'!$E$73"},"='Schedule IIB'!H89+'Schedule IIC'!H89+'Schedule IID'!H89+'Schedule IIE'!H89+'Schedule IIF'!H89",{"$f":"IF(_xlfn.FORMULATEXT(INDIRECT(V132))=W132,0,1)","v":0},{"$f":"ADDRESS(20,4,1,1,$Y$1)","v":"'Premium Risk'!$D$20"},"='Schedule IVD'!Q18",{"$f":"IF(_xlfn.FORMULATEXT(INDIRECT(Y132))=Z132,0,1)","v":0},{"$f":"ADDRESS(42,8,1,1,$AB$1)","v":"'Reserve Risk'!$H$42"},"{=SQRT(MMULT(TRANSPOSE(H11:H34),MMULT('Correlation Matrix'!C44:Z67,H11:H34)))}",0]
[{"$f":"ADDRESS(62,29,1,1,$A$1)","v":"Summary!$AC$62"},"=(SUM(AA$55:AA62)/AA$66)",0,{"$f":"ADDRESS(79,9,1,1,$D$1)","v":"'Fixed Income Investments'!$I$79"},"=IF($G$79<0,0,$G$79*$H$79)",{"$f":"IF(_xlfn.FORMULATEXT(INDIRECT(D133))=E133,0,1)","v":0},{"$f":"ADDRESS(21,8,1,1,$G$1)","v":"'Equity Investments'!$H$21"},"='Schedule IIB'!L49+'Schedule IIC'!L49+'Schedule IID'!L49+'Schedule IIE'!L49+'Schedule IIF'!L49",0,null,null,null,{"$f":"ADDRESS(17,2,1,1,$M$1)","v":"'Currency Risk'!$B$17"},"='Schedule XXA'!B15",0,{"$f":"ADDRESS(51,2,1,1,$P$1)","v":"'Concentration Risk'!$B$51"},"BSCR Rating 2",{"$f":"IF(INDIRECT(P133)=Q133,0,1)","v":0},{"$f":"ADDRESS(14,15,1,1,$S$1)","v":"'Geographic Diversification'!$O$14"},"=+'Schedule IVE'!K14",0,{"$f":"ADDRESS(73,6,1,1,$V$1)","v":"'Credit Risk'!$F$73"},0.08,{"$f":"IF(INDIRECT(V133)=W133,0,1)","v":0},{"$f":"ADDRESS(20,5,1,1,$Y$1)","v":"'Premium Risk'!$E$20"},"='Schedule IVD'!O18",0,{"$f":"ADDRESS(46,8,1,1,$AB$1)","v":"'Reserve Risk'!$H$46"},"='Premium Risk'!N52",0]
[{"$f":"ADDRESS(62,30,1,1,$A$1)","v":"Summary!$AD$62"},"=IF(ISERROR(AVERAGE(AC57:AC62)),0,AVERAGE(AC57:AC62))",0,{"$f":"ADDRESS(83,7,1,1,$D$1)","v":"'Fixed Income Investments'!$G$83"},"='Schedule XIXA'!F81",{"$f":"IF(_xlfn.FORMULATEXT(INDIRECT(D134))=E134,0,1)","v":0},{"$f":"ADDRESS(21,9,1,1,$G$1)","v":"'Equity Investments'!$I$21"},"='Schedule IIB'!N49+'Schedule IIC'!N49+'Schedule IID'!N49+'Schedule IIE'!N49+'Schedule IIF'!N49",0,null,null,null,{"$f":"ADDRESS(17,3,1,1,$M$1)","v":"'Currency Risk'!$C$17"},"='Schedule XXA'!D15",0,{"$f":"ADDRESS(51,4,1,1,$P$1)","v":"'Concentration Risk'!$D$51"},"=SUMIFS('Schedule XXIA'!$M$8:$M$57,'Schedule XXIA'!$K$8:$K$57,$D$48,'Schedule XXIA'!$L$8:$L$57,$B51)",{"$f":"IF(_xlfn.FORMULATEXT(INDIRECT(P134))=Q134,0,1)","v":0},{"$f":"ADDRESS(14,16,1,1,$S$1)","v":"'Geographic Diversification'!$P$14"},"=+'Schedule IVE'!L14",0,{"$f":"ADDRESS(73,7,1,1,$V$1)","v":"'Credit Risk'!$G$73"},0.03,{"$f":"IF(INDIRECT(V134)=W134,0,1)","v":0},{"$f":"ADDRESS(20,6,1,1,$Y$1)","v":"'Premium Risk'!$F$20"},"='Geographic Diversification'!H18",0,{"$f":"ADDRESS(47,8,1,1,$AB$1)","v":"'Reserve Risk'!$H$47"},"='Premium Risk'!N53",0]
[{"$f":"ADDRESS(62,32,1,1,$A$1)","v":"Summary!$AF$62"},"=IF(AO66=\"\",IF(Test_Statistic<$AJ$72,AI62,IF(Test_Statistic<$AL$72,AK62,AM62)),AO66)",0,{"$f":"ADDRESS(83,8,1,1,$D$1)","v":"'Fixed Income Investments'!$H$83"},0,{"$f":"IF(INDIRECT(D135)=E135,0,1)","v":0},{"$f":"ADDRESS(21,10,1,1,$G$1)","v":"'Equity Investments'!$J$21"},"='Schedule IIB'!P49+'Schedule IIC'!P49+'Schedule IID'!P49+'Schedule IIE'!P49+'Schedule IIF'!P49",0,null,null,null,{"$f":"ADDRESS(17,4,1,1,$M$1)","v":"'Currency Risk'!$D$17"},"='Schedule XXA'!F15",0,{"$f":"ADDRESS(51,5,1,1,$P$1)","v":"'Concentration Risk'!$E$51"},"=+'Fixed Income Investments (old)'!E42",{"$f":"IF(_xlfn.FORMULATEXT(INDIRECT(P135))=Q135,0,1)","v":0},{"$f":"ADDRESS(14,17,1,1,$S$1)","v":"'Geographic Diversification'!$Q$14"},"=+'Schedule IVE'!M14",0,{"$f":"ADDRESS(73,8,1,1,$V$1)","v":"'Credit Risk'!$H$73"},"=MAX(0,C73-(1-G73)*MIN(C73,E73))*F73",{"$f":"IF(_xlfn.FORMULATEXT(INDIRECT(V135))=W135,0,1)","v":0},{"$f":"ADDRESS(20,7,1,1,$Y$1)","v":"'Premium Risk'!$G$20"},"=IF(IFERROR(F20/E20,1)<0,1,IFERROR(F20/E20,1))",0,{"$f":"ADDRESS(48,8,1,1,$AB$1)","v":"'Reserve Risk'!$H$48"},"=H46+H47",0]
[{"$f":"ADDRESS(62,35,1,1,$A$1)","v":"Summary!$AI$62"},"=IF(AC63>1,250,IF(AC61>1,300,IF(AC61>0.6,260,300)))",0,{"$f":"ADDRESS(83,9,1,1,$D$1)","v":"'Fixed Income Investments'!$I$83"},"=IF($G$83<0,0,$G$83*$H$83)",{"$f":"IF(_xlfn.FORMULATEXT(INDIRECT(D136))=E136,0,1)","v":0},{"$f":"ADDRESS(21,11,1,1,$G$1)","v":"'Equity Investments'!$K$21"},"='Schedule IIB'!R49+'Schedule IIC'!R49+'Schedule IID'!R49+'Schedule IIE'!R49+'Schedule IIF'!R49",{"$f":"IF(_xlfn.FORMULATEXT(INDIRECT(G136))=H136,0,1)","v":0},null,null,null,{"$f":"ADDRESS(17,5,1,1,$M$1)","v":"'Currency Risk'!$E$17"},"='Schedule XXA'!H15",0,{"$f":"ADDRESS(51,6,1,1,$P$1)","v":"'Concentration Risk'!$F$51"},"=MAX(0,(D51*E51))",{"$f":"IF(_xlfn.FORMULATEXT(INDIRECT(P136))=Q136,0,1)","v":0},{"$f":"ADDRESS(14,18,1,1,$S$1)","v":"'Geographic Diversification'!$R$14"},"=+'Schedule IVE'!N14",0,{"$f":"ADDRESS(74,3,1,1,$V$1)","v":"'Credit Risk'!$C$74"},"='Schedule IIB'!D90+'Schedule IIC'!D90+'Schedule IID'!D90+'Schedule IIE'!D90+'Schedule IIF'!D90",{"$f":"IF(_xlfn.FORMULATEXT(INDIRECT(V136))=W136,0,1)","v":0},{"$f":"ADDRESS(20,8,1,1,$Y$1)","v":"'Premium Risk'!$H$20"},"='Schedule IVD'!I18*$G20",0,{"$f":"ADDRESS(49,8,1,1,$AB$1)","v":"'Reserve Risk'!$H$49"},0.4,{"$f":"IF(INDIRECT(AB136)=AC136,0,1)","v":0}]
[{"$f":"ADDRESS(62,36,1,1,$A$1)","v":"Summary!$AJ$62"},"=IF(AC61>0.6,185,140)",0,{"$f":"ADDRESS(84,7,1,1,$D$1)","v":"'Fixed Income Investments'!$G$84"},"='Schedule XIXA'!F82",{"$f":"IF(_xlfn.FORMULATEXT(INDIRECT(D137))=E137,0,1)","v":0},{"$f":"ADDRESS(21,12,1,1,$G$1)","v":"'Equity Investments'!$L$21"},"='Schedule IIB'!T49+'Schedule IIC'!T49+'Schedule IID'!T49+'Schedule IIE'!T49+'Schedule IIF'!T49",0,null,null,null,{"$f":"ADDRESS(17,6,1,1,$M$1)","v":"'Currency Risk'!$F$17"},"='Schedule XXA'!J15",0,{"$f":"ADDRESS(52,2,1,1,$P$1)","v":"'Concentration Risk'!$B$52"},"BSCR Rating 3",{"$f":"IF(INDIRECT(P137)=Q137,0,1)","v":0},{"$f":"ADDRESS(14,19,1,1,$S$1)","v":"'Geographic Diversification'!$S$14"},"=+'Schedule IVE'!O14",0,{"$f":"ADDRESS(74,4,1,1,$V$1)","v":"'Credit Risk'!$D$74"},"='Schedule IIB'!F90+'Schedule IIC'!F90+'Schedule IID'!F90+'Schedule IIE'!F90+'Schedule IIF'!F90",{"$f":"IF(_xlfn.FORMULATEXT(INDIRECT(V137))=W137,0,1)","v":0},{"$f":"ADDRESS(20,9,1,1,$Y$1)","v":"'Premium Risk'!$I$20"},"='Schedule IVD'!K18*$G20",0,{"$f":"ADDRESS(51,8,1,1,$AB$1)","v":"'Reserve Risk'!$H$51"},"=H48*H49",{"$f":"IF(_xlfn.FORMULATEXT(INDIRECT(AB137))=AC137,0,1)","v":0}]
[{"$f":"ADDRESS(62,37,1,1,$A$1)","v":"Summary!$AK$62"},"=IF(Test_Statistic_2<0.95,180,120)",0,{"$f":"ADDRESS(84,8,1,1,$D$1)","v":"'Fixed Income Investments'!$H$84"},1E-3,{"$f":"IF(INDIRECT(D138)=E138,0,1)","v":0},{"$f":"ADDRESS(21,16,1,1,$G$1)","v":"'Equity Investments'!$P$21"},"=MAX(D21-E21,0)+(F21-G21)+MAX(H21-I21,0)+(K21-J21)",0,null,null,null,{"$f":"ADDRESS(17,7,1,1,$M$1)","v":"'Currency Risk'!$G$17"},"='Schedule XXA'!L15",0,{"$f":"ADDRESS(52,4,1,1,$P$1)","v":"'Concentration Risk'!$D$52"},"=SUMIFS('Schedule XXIA'!$M$8:$M$57,'Schedule XXIA'!$K$8:$K$57,$D$48,'Schedule XXIA'!$L$8:$L$57,$B52)",{"$f":"IF(_xlfn.FORMULATEXT(INDIRECT(P138))=Q138,0,1)","v":0},{"$f":"ADDRESS(14,20,1,1,$S$1)","v":"'Geographic Diversification'!$T$14"},"=+'Schedule IVE'!P14",0,{"$f":"ADDRESS(74,5,1,1,$V$1)","v":"'Credit Risk'!$E$74"},"='Schedule IIB'!H90+'Schedule IIC'!H90+'Schedule IID'!H90+'Schedule IIE'!H90+'Schedule IIF'!H90",{"$f":"IF(_xlfn.FORMULATEXT(INDIRECT(V138))=W138,0,1)","v":0},{"$f":"ADDRESS(20,10,1,1,$Y$1)","v":"'Premium Risk'!$J$20"},"='Schedule IVD'!M18*$G20",0,{"$f":"ADDRESS(53,2,1,1,$AB$1)","v":"'Reserve Risk'!$B$53"},"=IF('Company Information'!F4=\"IIGB\",\"(d) TOTAL RESERVE RISK [(a) x (c)]\",\"(c)  TOTAL RESERVE RISK  [ Total (a) x (b) ]\")",{"$f":"IF(_xlfn.FORMULATEXT(INDIRECT(AB138))=AC138,0,1)","v":0}]
[{"$f":"ADDRESS(62,39,1,1,$A$1)","v":"Summary!$AM$62"},100,{"$f":"IF(INDIRECT(A139)=B139,0,1)","v":0},{"$f":"ADDRESS(84,9,1,1,$D$1)","v":"'Fixed Income Investments'!$I$84"},"=IF($G$84<0,0,$G$84*$H$84)",{"$f":"IF(_xlfn.FORMULATEXT(INDIRECT(D139))=E139,0,1)","v":0},{"$f":"ADDRESS(21,18,1,1,$G$1)","v":"'Equity Investments'!$R$21"},"=MAX(D21-E21,0)+(F21-G21)+MAX(H21-I21,0)+(L21-J21)",0,null,null,null,{"$f":"ADDRESS(17,8,1,1,$M$1)","v":"'Currency Risk'!$H$17"},"='Schedule XXA'!N15",0,{"$f":"ADDRESS(52,5,1,1,$P$1)","v":"'Concentration Risk'!$E$52"},"=+'Fixed Income Investments (old)'!E43",{"$f":"IF(_xlfn.FORMULATEXT(INDIRECT(P139))=Q139,0,1)","v":0},{"$f":"ADDRESS(14,21,1,1,$S$1)","v":"'Geographic Diversification'!$U$14"},"=+'Schedule IVE'!Q14",0,{"$f":"ADDRESS(74,6,1,1,$V$1)","v":"'Credit Risk'!$F$74"},0.15,{"$f":"IF(INDIRECT(V139)=W139,0,1)","v":0},{"$f":"ADDRESS(20,11,1,1,$Y$1)","v":"'Premium Risk'!$K$20"},0.42102344656076801,{"$f":"IF(INDIRECT(Y139)=Z139,0,1)","v":0},{"$f":"ADDRESS(53,8,1,1,$AB$1)","v":"'Reserve Risk'!$H$53"},"=IF('Company Information'!$F$11=\"IIGB\",IF(H42=0,0,H42-H36*H51),IF(H42>=0,H42,0))",{"$f":"IF(_xlfn.FORMULATEXT(INDIRECT(AB139))=AC139,0,1)","v":0}]
[{"$f":"ADDRESS(63,3,1,1,$A$1)","v":"Summary!$C$63"},"Credit Risk",{"$f":"IF(INDIRECT(A140)=B140,0,1)","v":0},{"$f":"ADDRESS(85,7,1,1,$D$1)","v":"'Fixed Income Investments'!$G$85"},"='Schedule XIXA'!F83",{"$f":"IF(_xlfn.FORMULATEXT(INDIRECT(D140))=E140,0,1)","v":0},{"$f":"ADDRESS(22,4,1,1,$G$1)","v":"'Equity Investments'!$D$22"},"='Schedule IIB'!D50+'Schedule IIC'!D50+'Schedule IID'!D50+'Schedule IIE'!D50+'Schedule IIF'!D50",0,null,null,null,{"$f":"ADDRESS(17,9,1,1,$M$1)","v":"'Currency Risk'!$I$17"},"=$I$10*H17",0,{"$f":"ADDRESS(52,6,1,1,$P$1)","v":"'Concentration Risk'!$F$52"},"=MAX(0,(D52*E52))",{"$f":"IF(_xlfn.FORMULATEXT(INDIRECT(P140))=Q140,0,1)","v":0},{"$f":"ADDRESS(14,22,1,1,$S$1)","v":"'Geographic Diversification'!$V$14"},"=+'Schedule IVE'!R14",0,{"$f":"ADDRESS(74,7,1,1,$V$1)","v":"'Credit Risk'!$G$74"},0.03,{"$f":"IF(INDIRECT(V140)=W140,0,1)","v":0},{"$f":"ADDRESS(20,12,1,1,$Y$1)","v":"'Premium Risk'!$L$20"},"=+K20*S20",{"$f":"IF(_xlfn.FORMULATEXT(INDIRECT(Y140))=Z140,0,1)","v":0},null,null,-140]
[{"$f":"ADDRESS(63,7,1,1,$A$1)","v":"Summary!$G$63"},"=ROUND('Credit Risk (old)'!F39,$Q$164)",{"$f":"IF(_xlfn.FORMULATEXT(INDIRECT(A141))=B141,0,1)","v":0},{"$f":"ADDRESS(85,8,1,1,$D$1)","v":"'Fixed Income Investments'!$H$85"},2E-3,{"$f":"IF(INDIRECT(D141)=E141,0,1)","v":0},{"$f":"ADDRESS(22,5,1,1,$G$1)","v":"'Equity Investments'!$E$22"},"='Schedule IIB'!F50+'Schedule IIC'!F50+'Schedule IID'!F50+'Schedule IIE'!F50+'Schedule IIF'!F50",0,null,null,null,{"$f":"ADDRESS(17,10,1,1,$M$1)","v":"'Currency Risk'!$J$17"},"=IF($B$12=\"Euro\",IF((SUM(C17:G17))>(H17+I17),0%,0.39%),IF((SUM(C17:G17))>(H17+I17),0%,25%))",0,{"$f":"ADDRESS(53,2,1,1,$P$1)","v":"'Concentration Risk'!$B$53"},"BSCR Rating 4",{"$f":"IF(INDIRECT(P141)=Q141,0,1)","v":0},{"$f":"ADDRESS(14,23,1,1,$S$1)","v":"'Geographic Diversification'!$W$14"},"=+'Schedule IVE'!S14",0,{"$f":"ADDRESS(74,8,1,1,$V$1)","v":"'Credit Risk'!$H$74"},"=MAX(0,C74-(1-G74)*MIN(C74,E74))*F74",{"$f":"IF(_xlfn.FORMULATEXT(INDIRECT(V141))=W141,0,1)","v":0},{"$f":"ADDRESS(20,13,1,1,$Y$1)","v":"'Premium Risk'!$M$20"},"=+L20*T20",{"$f":"IF(_xlfn.FORMULATEXT(INDIRECT(Y141))=Z141,0,1)","v":0}]
[{"$f":"ADDRESS(63,11,1,1,$A$1)","v":"Summary!$K$63"},"=ROUND('Credit Risk'!H80,$Q$164)",0,{"$f":"ADDRESS(85,9,1,1,$D$1)","v":"'Fixed Income Investments'!$I$85"},"=IF($G$85<0,0,$G$85*$H$85)",{"$f":"IF(_xlfn.FORMULATEXT(INDIRECT(D142))=E142,0,1)","v":0},{"$f":"ADDRESS(22,6,1,1,$G$1)","v":"'Equity Investments'!$F$22"},"='Schedule IIB'!H50+'Schedule IIC'!H50+'Schedule IID'!H50+'Schedule IIE'!H50+'Schedule IIF'!H50",0,null,null,null,{"$f":"ADDRESS(17,12,1,1,$M$1)","v":"'Currency Risk'!$L$17"},"='Schedule XXA'!V15",0,{"$f":"ADDRESS(53,4,1,1,$P$1)","v":"'Concentration Risk'!$D$53"},"=SUMIFS('Schedule XXIA'!$M$8:$M$57,'Schedule XXIA'!$K$8:$K$57,$D$48,'Schedule XXIA'!$L$8:$L$57,$B53)",{"$f":"IF(_xlfn.FORMULATEXT(INDIRECT(P142))=Q142,0,1)","v":0},{"$f":"ADDRESS(14,24,1,1,$S$1)","v":"'Geographic Diversification'!$X$14"},"=+'Schedule IVE'!T14",0,{"$f":"ADDRESS(75,3,1,1,$V$1)","v":"'Credit Risk'!$C$75"},"='Schedule IIB'!D91+'Schedule IIC'!D91+'Schedule IID'!D91+'Schedule IIE'!D91+'Schedule IIF'!D91",{"$f":"IF(_xlfn.FORMULATEXT(INDIRECT(V142))=W142,0,1)","v":0},{"$f":"ADDRESS(20,14,1,1,$Y$1)","v":"'Premium Risk'!$N$20"},"=IF($H20<0,0,$H20*$K20)+IF($I20<0,0,$I20*$L20)+IF($J20<0,0,$J20*$M20)",{"$f":"IF(_xlfn.FORMULATEXT(INDIRECT(Y142))=Z142,0,1)","v":0}]
[{"$f":"ADDRESS(63,13,1,1,$A$1)","v":"Summary!$M$63"},"=ROUND('Credit Risk'!H80,$Q$164)",0,{"$f":"ADDRESS(86,7,1,1,$D$1)","v":"'Fixed Income Investments'!$G$86"},"='Schedule XIXA'!F84",{"$f":"IF(_xlfn.FORMULATEXT(INDIRECT(D143))=E143,0,1)","v":0},{"$f":"ADDRESS(22,7,1,1,$G$1)","v":"'Equity Investments'!$G$22"},"='Schedule IIB'!J50+'Schedule IIC'!J50+'Schedule IID'!J50+'Schedule IIE'!J50+'Schedule IIF'!J50",0,null,null,null,{"$f":"ADDRESS(17,13,1,1,$M$1)","v":"'Currency Risk'!$M$17"},"='Schedule XXA'!X15",0,{"$f":"ADDRESS(53,5,1,1,$P$1)","v":"'Concentration Risk'!$E$53"},"=+'Fixed Income Investments (old)'!E44",{"$f":"IF(_xlfn.FORMULATEXT(INDIRECT(P143))=Q143,0,1)","v":0},{"$f":"ADDRESS(14,25,1,1,$S$1)","v":"'Geographic Diversification'!$Y$14"},"=+'Schedule IVE'!U14",0,{"$f":"ADDRESS(75,4,1,1,$V$1)","v":"'Credit Risk'!$D$75"},"='Schedule IIB'!F91+'Schedule IIC'!F91+'Schedule IID'!F91+'Schedule IIE'!F91+'Schedule IIF'!F91",{"$f":"IF(_xlfn.FORMULATEXT(INDIRECT(V143))=W143,0,1)","v":0},{"$f":"ADDRESS(20,17,1,1,$Y$1)","v":"'Premium Risk'!$Q$20"},"=IF(H20=E20,MAX(D20*K20,0),IF(E20=F20,IF(D20<0,0,D20*(H20/F20)*K20),IF(D20<0,0,D20*(H20/E20)*K20)))\n+IF(I20=E20,MAX(D20*L20,0),IF(E20=F20,IF(D20<0,0,D20*(I20/F20)*L20),IF(D20<0,0,D20*(I20/E20)*L20)))\n+IF(J20=E20,MAX(D20*M20,0),IF(E20=F20,IF(D20<0,0,D20*(J20/F20)*M20),IF(D20<0,0,D20*(J20/E20)*M20)))",{"$f":"IF(_xlfn.FORMULATEXT(INDIRECT(Y143))=Z143,0,1)","v":0}]
[{"$f":"ADDRESS(63,20,1,1,$A$1)","v":"Summary!$T$63"},"=C67",0,{"$f":"ADDRESS(86,8,1,1,$D$1)","v":"'Fixed Income Investments'!$H$86"},3.0000000000000001E-3,{"$f":"IF(INDIRECT(D144)=E144,0,1)","v":0},{"$f":"ADDRESS(22,8,1,1,$G$1)","v":"'Equity Investments'!$H$22"},"='Schedule IIB'!L50+'Schedule IIC'!L50+'Schedule IID'!L50+'Schedule IIE'!L50+'Schedule IIF'!L50",0,null,null,null,{"$f":"ADDRESS(17,14,1,1,$M$1)","v":"'Currency Risk'!$N$17"},"='Schedule XXA'!Z15",0,{"$f":"ADDRESS(53,6,1,1,$P$1)","v":"'Concentration Risk'!$F$53"},"=MAX(0,(D53*E53))",{"$f":"IF(_xlfn.FORMULATEXT(INDIRECT(P144))=Q144,0,1)","v":0},{"$f":"ADDRESS(14,26,1,1,$S$1)","v":"'Geographic Diversification'!$Z$14"},"=+'Schedule IVE'!V14",0,{"$f":"ADDRESS(75,5,1,1,$V$1)","v":"'Credit Risk'!$E$75"},"='Schedule IIB'!H91+'Schedule IIC'!H91+'Schedule IID'!H91+'Schedule IIE'!H91+'Schedule IIF'!H91",{"$f":"IF(_xlfn.FORMULATEXT(INDIRECT(V144))=W144,0,1)","v":0},{"$f":"ADDRESS(20,19,1,1,$Y$1)","v":"'Premium Risk'!$S$20"},0.3,{"$f":"IF(INDIRECT(Y144)=Z144,0,1)","v":0}]
[{"$f":"ADDRESS(63,24,1,1,$A$1)","v":"Summary!$X$63"},"=G67",0,{"$f":"ADDRESS(86,9,1,1,$D$1)","v":"'Fixed Income Investments'!$I$86"},"=IF($G$86<0,0,$G$86*$H$86)",{"$f":"IF(_xlfn.FORMULATEXT(INDIRECT(D145))=E145,0,1)","v":0},{"$f":"ADDRESS(22,9,1,1,$G$1)","v":"'Equity Investments'!$I$22"},"='Schedule IIB'!N50+'Schedule IIC'!N50+'Schedule IID'!N50+'Schedule IIE'!N50+'Schedule IIF'!N50",0,null,null,null,{"$f":"ADDRESS(17,15,1,1,$M$1)","v":"'Currency Risk'!$O$17"},"='Schedule XXA'!AB15",0,{"$f":"ADDRESS(54,2,1,1,$P$1)","v":"'Concentration Risk'!$B$54"},"BSCR Rating 5",{"$f":"IF(INDIRECT(P145)=Q145,0,1)","v":0},{"$f":"ADDRESS(15,4,1,1,$S$1)","v":"'Geographic Diversification'!$D$15"},"=SUM(I15:Z15)",0,{"$f":"ADDRESS(75,6,1,1,$V$1)","v":"'Credit Risk'!$F$75"},0.26300000000000001,{"$f":"IF(INDIRECT(V145)=W145,0,1)","v":0},{"$f":"ADDRESS(20,20,1,1,$Y$1)","v":"'Premium Risk'!$T$20"},0.5,{"$f":"IF(INDIRECT(Y145)=Z145,0,1)","v":0}]
[{"$f":"ADDRESS(63,25,1,1,$A$1)","v":"Summary!$Y$63"},"=IF($L$72=0,1/9,X63/$X$66)",0,{"$f":"ADDRESS(87,7,1,1,$D$1)","v":"'Fixed Income Investments'!$G$87"},"='Schedule XIXA'!F85",{"$f":"IF(_xlfn.FORMULATEXT(INDIRECT(D146))=E146,0,1)","v":0},{"$f":"ADDRESS(22,10,1,1,$G$1)","v":"'Equity Investments'!$J$22"},"='Schedule IIB'!P50+'Schedule IIC'!P50+'Schedule IID'!P50+'Schedule IIE'!P50+'Schedule IIF'!P50",0,null,null,null,{"$f":"ADDRESS(17,16,1,1,$M$1)","v":"'Currency Risk'!$P$17"},"='Schedule XXA'!AD15",0,{"$f":"ADDRESS(54,4,1,1,$P$1)","v":"'Concentration Risk'!$D$54"},"=SUMIFS('Schedule XXIA'!$M$8:$M$57,'Schedule XXIA'!$K$8:$K$57,$D$48,'Schedule XXIA'!$L$8:$L$57,$B54)",{"$f":"IF(_xlfn.FORMULATEXT(INDIRECT(P146))=Q146,0,1)","v":0},{"$f":"ADDRESS(15,5,1,1,$S$1)","v":"'Geographic Diversification'!$E$15"},"=SUMSQ(I15:Z15)",0,{"$f":"ADDRESS(75,7,1,1,$V$1)","v":"'Credit Risk'!$G$75"},0.03,{"$f":"IF(INDIRECT(V146)=W146,0,1)","v":0},{"$f":"ADDRESS(21,4,1,1,$Y$1)","v":"'Premium Risk'!$D$21"},"='Schedule IVD'!Q19",{"$f":"IF(_xlfn.FORMULATEXT(INDIRECT(Y146))=Z146,0,1)","v":0}]
[{"$f":"ADDRESS(63,26,1,1,$A$1)","v":"Summary!$Z$63"},"=M67",0,{"$f":"ADDRESS(87,8,1,1,$D$1)","v":"'Fixed Income Investments'!$H$87"},5.0000000000000001E-3,{"$f":"IF(INDIRECT(D147)=E147,0,1)","v":0},{"$f":"ADDRESS(22,11,1,1,$G$1)","v":"'Equity Investments'!$K$22"},"='Schedule IIB'!R50+'Schedule IIC'!R50+'Schedule IID'!R50+'Schedule IIE'!R50+'Schedule IIF'!R50",0,null,null,null,{"$f":"ADDRESS(17,17,1,1,$M$1)","v":"'Currency Risk'!$Q$17"},"='Schedule XXA'!AF15",0,{"$f":"ADDRESS(54,5,1,1,$P$1)","v":"'Concentration Risk'!$E$54"},"=+'Fixed Income Investments (old)'!E45",{"$f":"IF(_xlfn.FORMULATEXT(INDIRECT(P147))=Q147,0,1)","v":0},{"$f":"ADDRESS(15,6,1,1,$S$1)","v":"'Geographic Diversification'!$F$15"},"=(IF(D15>0,E15/D15^2,1))",0,{"$f":"ADDRESS(75,8,1,1,$V$1)","v":"'Credit Risk'!$H$75"},"=MAX(0,C75-(1-G75)*MIN(C75,E75))*F75",{"$f":"IF(_xlfn.FORMULATEXT(INDIRECT(V147))=W147,0,1)","v":0},{"$f":"ADDRESS(21,5,1,1,$Y$1)","v":"'Premium Risk'!$E$21"},"='Schedule IVD'!O19",0]
[{"$f":"ADDRESS(63,27,1,1,$A$1)","v":"Summary!$AA$63"},"=IF($N$72=0,1/9,Z63/$Z$66)",0,{"$f":"ADDRESS(87,9,1,1,$D$1)","v":"'Fixed Income Investments'!$I$87"},"=IF($G$87<0,0,$G$87*$H$87)",{"$f":"IF(_xlfn.FORMULATEXT(INDIRECT(D148))=E148,0,1)","v":0},{"$f":"ADDRESS(22,12,1,1,$G$1)","v":"'Equity Investments'!$L$22"},"='Schedule IIB'!T50+'Schedule IIC'!T50+'Schedule IID'!T50+'Schedule IIE'!T50+'Schedule IIF'!T50",0,null,null,null,{"$f":"ADDRESS(17,18,1,1,$M$1)","v":"'Currency Risk'!$R$17"},"=IF('Schedule XXA'!AH15=0,Q17,'Schedule XXA'!AH15)",0,{"$f":"ADDRESS(54,6,1,1,$P$1)","v":"'Concentration Risk'!$F$54"},"=MAX(0,(D54*E54))",{"$f":"IF(_xlfn.FORMULATEXT(INDIRECT(P148))=Q148,0,1)","v":0},{"$f":"ADDRESS(15,7,1,1,$S$1)","v":"'Geographic Diversification'!$G$15"},"=D15*(0.75+0.25*F15)",0,{"$f":"ADDRESS(76,3,1,1,$V$1)","v":"'Credit Risk'!$C$76"},"='Schedule IIB'!D92+'Schedule IIC'!D92+'Schedule IID'!D92+'Schedule IIE'!D92+'Schedule IIF'!D92",{"$f":"IF(_xlfn.FORMULATEXT(INDIRECT(V148))=W148,0,1)","v":0},{"$f":"ADDRESS(21,6,1,1,$Y$1)","v":"'Premium Risk'!$F$21"},"='Geographic Diversification'!H19",0]
[{"$f":"ADDRESS(63,29,1,1,$A$1)","v":"Summary!$AC$63"},"=(SUM(AA$55:AA63)/AA$66)",0,{"$f":"ADDRESS(88,7,1,1,$D$1)","v":"'Fixed Income Investments'!$G$88"},"='Schedule XIXA'!F86",{"$f":"IF(_xlfn.FORMULATEXT(INDIRECT(D149))=E149,0,1)","v":0},{"$f":"ADDRESS(22,16,1,1,$G$1)","v":"'Equity Investments'!$P$22"},"=MAX(D22-E22,0)+(F22-G22)+MAX(H22-I22,0)+(K22-J22)",0,null,null,null,{"$f":"ADDRESS(17,20,1,1,$M$1)","v":"'Currency Risk'!$T$17"},"=(C17-L17)+(D17-M17)+(F17-O17)+MAX(E17-N17,0)+MAX(G17-P17,0)",0,{"$f":"ADDRESS(55,2,1,1,$P$1)","v":"'Concentration Risk'!$B$55"},"BSCR Rating 6",{"$f":"IF(INDIRECT(P149)=Q149,0,1)","v":0},{"$f":"ADDRESS(15,8,1,1,$S$1)","v":"'Geographic Diversification'!$H$15"},"=IF('Schedule IVE'!AB15=\"True\",G15,'Schedule IVD'!O15)",0,{"$f":"ADDRESS(76,4,1,1,$V$1)","v":"'Credit Risk'!$D$76"},"='Schedule IIB'!F92+'Schedule IIC'!F92+'Schedule IID'!F92+'Schedule IIE'!F92+'Schedule IIF'!F92",{"$f":"IF(_xlfn.FORMULATEXT(INDIRECT(V149))=W149,0,1)","v":0},{"$f":"ADDRESS(21,7,1,1,$Y$1)","v":"'Premium Risk'!$G$21"},"=IF(IFERROR(F21/E21,1)<0,1,IFERROR(F21/E21,1))",0]
[{"$f":"ADDRESS(63,30,1,1,$A$1)","v":"Summary!$AD$63"},"=IF(ISERROR(AVERAGE(AC62:AC63)),0,AVERAGE(AC62:AC63))",0,{"$f":"ADDRESS(88,8,1,1,$D$1)","v":"'Fixed Income Investments'!$H$88"},1.4999999999999999E-2,{"$f":"IF(INDIRECT(D150)=E150,0,1)","v":0},{"$f":"ADDRESS(22,18,1,1,$G$1)","v":"'Equity Investments'!$R$22"},"=MAX(D22-E22,0)+(F22-G22)+MAX(H22-I22,0)+(L22-J22)",0,null,null,null,{"$f":"ADDRESS(17,21,1,1,$M$1)","v":"'Currency Risk'!$U$17"},"=Q17-$H17",0,{"$f":"ADDRESS(55,4,1,1,$P$1)","v":"'Concentration Risk'!$D$55"},"=SUMIFS('Schedule XXIA'!$M$8:$M$57,'Schedule XXIA'!$K$8:$K$57,$D$48,'Schedule XXIA'!$L$8:$L$57,$B55)",{"$f":"IF(_xlfn.FORMULATEXT(INDIRECT(P150))=Q150,0,1)","v":0},{"$f":"ADDRESS(15,9,1,1,$S$1)","v":"'Geographic Diversification'!$I$15"},"=+'Schedule IVE'!E15",0,{"$f":"ADDRESS(76,5,1,1,$V$1)","v":"'Credit Risk'!$E$76"},"='Schedule IIB'!H92+'Schedule IIC'!H92+'Schedule IID'!H92+'Schedule IIE'!H92+'Schedule IIF'!H92",{"$f":"IF(_xlfn.FORMULATEXT(INDIRECT(V150))=W150,0,1)","v":0},{"$f":"ADDRESS(21,8,1,1,$Y$1)","v":"'Premium Risk'!$H$21"},"='Schedule IVD'!I19*$G21",0]
[{"$f":"ADDRESS(63,32,1,1,$A$1)","v":"Summary!$AF$63"},"=IF(AO67=\"\",IF(Test_Statistic<$AJ$72,AI63,IF(Test_Statistic<$AL$72,AK63,AM63)),AO67)",0,{"$f":"ADDRESS(88,9,1,1,$D$1)","v":"'Fixed Income Investments'!$I$88"},"=IF($G$88<0,0,$G$88*$H$88)",{"$f":"IF(_xlfn.FORMULATEXT(INDIRECT(D151))=E151,0,1)","v":0},{"$f":"ADDRESS(24,4,1,1,$G$1)","v":"'Equity Investments'!$D$24"},"=SUM(D11:D23)",0,null,null,null,{"$f":"ADDRESS(17,22,1,1,$M$1)","v":"'Currency Risk'!$V$17"},"=R17-$H17",0,{"$f":"ADDRESS(55,5,1,1,$P$1)","v":"'Concentration Risk'!$E$55"},"=+'Fixed Income Investments (old)'!E46",{"$f":"IF(_xlfn.FORMULATEXT(INDIRECT(P151))=Q151,0,1)","v":0},{"$f":"ADDRESS(15,10,1,1,$S$1)","v":"'Geographic Diversification'!$J$15"},"=+'Schedule IVE'!F15",0,{"$f":"ADDRESS(76,6,1,1,$V$1)","v":"'Credit Risk'!$F$76"},0.35,{"$f":"IF(INDIRECT(V151)=W151,0,1)","v":0},{"$f":"ADDRESS(21,9,1,1,$Y$1)","v":"'Premium Risk'!$I$21"},"='Schedule IVD'!K19*$G21",0]
[{"$f":"ADDRESS(63,35,1,1,$A$1)","v":"Summary!$AI$63"},"=IF(AC63>1,50,IF(AC61>0.6,120,260))",0,{"$f":"ADDRESS(89,7,1,1,$D$1)","v":"'Fixed Income Investments'!$G$89"},"='Schedule XIXA'!F87",{"$f":"IF(_xlfn.FORMULATEXT(INDIRECT(D152))=E152,0,1)","v":0},{"$f":"ADDRESS(24,5,1,1,$G$1)","v":"'Equity Investments'!$E$24"},"=SUM(E11:E23)",0,null,null,null,{"$f":"ADDRESS(17,24,1,1,$M$1)","v":"'Currency Risk'!$X$17"},"=MAX(0,$T17+U17+(J17*I17))",0,{"$f":"ADDRESS(55,6,1,1,$P$1)","v":"'Concentration Risk'!$F$55"},"=MAX(0,(D55*E55))",{"$f":"IF(_xlfn.FORMULATEXT(INDIRECT(P152))=Q152,0,1)","v":0},{"$f":"ADDRESS(15,11,1,1,$S$1)","v":"'Geographic Diversification'!$K$15"},"=+'Schedule IVE'!G15",0,{"$f":"ADDRESS(76,7,1,1,$V$1)","v":"'Credit Risk'!$G$76"},0.03,{"$f":"IF(INDIRECT(V152)=W152,0,1)","v":0},{"$f":"ADDRESS(21,10,1,1,$Y$1)","v":"'Premium Risk'!$J$21"},"='Schedule IVD'!M19*$G21",0]
[{"$f":"ADDRESS(63,36,1,1,$A$1)","v":"Summary!$AJ$63"},"=IF(AC63>1,90,IF(AC61>0.6,200,185))",0,{"$f":"ADDRESS(89,8,1,1,$D$1)","v":"'Fixed Income Investments'!$H$89"},0.04,{"$f":"IF(INDIRECT(D153)=E153,0,1)","v":0},{"$f":"ADDRESS(24,6,1,1,$G$1)","v":"'Equity Investments'!$F$24"},"=SUM(F11:F23)",0,null,null,null,{"$f":"ADDRESS(17,25,1,1,$M$1)","v":"'Currency Risk'!$Y$17"},"=MAX(0,$T17+V17+(J17*I17))",0,{"$f":"ADDRESS(56,2,1,1,$P$1)","v":"'Concentration Risk'!$B$56"},"BSCR Rating 7",{"$f":"IF(INDIRECT(P153)=Q153,0,1)","v":0},{"$f":"ADDRESS(15,12,1,1,$S$1)","v":"'Geographic Diversification'!$L$15"},"=+'Schedule IVE'!H15",0,{"$f":"ADDRESS(76,8,1,1,$V$1)","v":"'Credit Risk'!$H$76"},"=MAX(0,C76-(1-G76)*MIN(C76,E76))*F76",{"$f":"IF(_xlfn.FORMULATEXT(INDIRECT(V153))=W153,0,1)","v":0},{"$f":"ADDRESS(21,11,1,1,$Y$1)","v":"'Premium Risk'!$K$21"},0.47016820069929899,{"$f":"IF(INDIRECT(Y153)=Z153,0,1)","v":0}]
[{"$f":"ADDRESS(63,37,1,1,$A$1)","v":"Summary!$AK$63"},50,{"$f":"IF(INDIRECT(A154)=B154,0,1)","v":0},{"$f":"ADDRESS(89,9,1,1,$D$1)","v":"'Fixed Income Investments'!$I$89"},"=IF($G$89<0,0,$G$89*$H$89)",{"$f":"IF(_xlfn.FORMULATEXT(INDIRECT(D154))=E154,0,1)","v":0},{"$f":"ADDRESS(24,7,1,1,$G$1)","v":"'Equity Investments'!$G$24"},"=SUM(G11:G23)",0,null,null,null,{"$f":"ADDRESS(18,2,1,1,$M$1)","v":"'Currency Risk'!$B$18"},"='Schedule XXA'!B16",0,{"$f":"ADDRESS(56,4,1,1,$P$1)","v":"'Concentration Risk'!$D$56"},"=SUMIFS('Schedule XXIA'!$M$8:$M$57,'Schedule XXIA'!$K$8:$K$57,$D$48,'Schedule XXIA'!$L$8:$L$57,$B56)",{"$f":"IF(_xlfn.FORMULATEXT(INDIRECT(P154))=Q154,0,1)","v":0},{"$f":"ADDRESS(15,13,1,1,$S$1)","v":"'Geographic Diversification'!$M$15"},"=+'Schedule IVE'!I15",0,{"$f":"ADDRESS(78,8,1,1,$V$1)","v":"'Credit Risk'!$H$78"},"=SUM(H68:H76)",{"$f":"IF(_xlfn.FORMULATEXT(INDIRECT(V154))=W154,0,1)","v":0},{"$f":"ADDRESS(21,12,1,1,$Y$1)","v":"'Premium Risk'!$L$21"},"=+K21*S21",{"$f":"IF(_xlfn.FORMULATEXT(INDIRECT(Y154))=Z154,0,1)","v":0}]
[{"$f":"ADDRESS(63,38,1,1,$A$1)","v":"Summary!$AL$63"},"=IF(Test_Statistic_2<0.95,160,80)",{"$f":"IF(_xlfn.FORMULATEXT(INDIRECT(A155))=B155,0,1)","v":0},{"$f":"ADDRESS(90,7,1,1,$D$1)","v":"'Fixed Income Investments'!$G$90"},"='Schedule XIXA'!F88",{"$f":"IF(_xlfn.FORMULATEXT(INDIRECT(D155))=E155,0,1)","v":0},{"$f":"ADDRESS(24,8,1,1,$G$1)","v":"'Equity Investments'!$H$24"},"=SUM(H11:H23)",0,null,null,null,{"$f":"ADDRESS(18,3,1,1,$M$1)","v":"'Currency Risk'!$C$18"},"='Schedule XXA'!D16",0,{"$f":"ADDRESS(56,5,1,1,$P$1)","v":"'Concentration Risk'!$E$56"},"=+'Fixed Income Investments (old)'!E47",{"$f":"IF(_xlfn.FORMULATEXT(INDIRECT(P155))=Q155,0,1)","v":0},{"$f":"ADDRESS(15,14,1,1,$S$1)","v":"'Geographic Diversification'!$N$15"},"=+'Schedule IVE'!J15",0,{"$f":"ADDRESS(80,6,1,1,$V$1)","v":"'Credit Risk'!$F$80"},"=F13+F20+F63",{"$f":"IF(_xlfn.FORMULATEXT(INDIRECT(V155))=W155,0,1)","v":0},{"$f":"ADDRESS(21,13,1,1,$Y$1)","v":"'Premium Risk'!$M$21"},"=+L21*T21",{"$f":"IF(_xlfn.FORMULATEXT(INDIRECT(Y155))=Z155,0,1)","v":0}]
[{"$f":"ADDRESS(63,39,1,1,$A$1)","v":"Summary!$AM$63"},"=IF(Test_Statistic_2<1,50,50)",0,{"$f":"ADDRESS(90,8,1,1,$D$1)","v":"'Fixed Income Investments'!$H$90"},0.06,{"$f":"IF(INDIRECT(D156)=E156,0,1)","v":0},{"$f":"ADDRESS(24,9,1,1,$G$1)","v":"'Equity Investments'!$I$24"},"=SUM(I11:I23)",0,null,null,null,{"$f":"ADDRESS(18,4,1,1,$M$1)","v":"'Currency Risk'!$D$18"},"='Schedule XXA'!F16",0,{"$f":"ADDRESS(56,6,1,1,$P$1)","v":"'Concentration Risk'!$F$56"},"=MAX(0,(D56*E56))",{"$f":"IF(_xlfn.FORMULATEXT(INDIRECT(P156))=Q156,0,1)","v":0},{"$f":"ADDRESS(15,15,1,1,$S$1)","v":"'Geographic Diversification'!$O$15"},"=+'Schedule IVE'!K15",0,{"$f":"ADDRESS(80,8,1,1,$V$1)","v":"'Credit Risk'!$H$80"},"=H13+H20+H63+H78",{"$f":"IF(_xlfn.FORMULATEXT(INDIRECT(V156))=W156,0,1)","v":0},{"$f":"ADDRESS(21,14,1,1,$Y$1)","v":"'Premium Risk'!$N$21"},"=IF($H21<0,0,$H21*$K21)+IF($I21<0,0,$I21*$L21)+IF($J21<0,0,$J21*$M21)",{"$f":"IF(_xlfn.FORMULATEXT(INDIRECT(Y156))=Z156,0,1)","v":0}]
[{"$f":"ADDRESS(64,20,1,1,$A$1)","v":"Summary!$T$64"},"=C68",0,{"$f":"ADDRESS(90,9,1,1,$D$1)","v":"'Fixed Income Investments'!$I$90"},"=IF($G$90<0,0,$G$90*$H$90)",{"$f":"IF(_xlfn.FORMULATEXT(INDIRECT(D157))=E157,0,1)","v":0},{"$f":"ADDRESS(24,10,1,1,$G$1)","v":"'Equity Investments'!$J$24"},"=SUM(J11:J23)",0,null,null,null,{"$f":"ADDRESS(18,5,1,1,$M$1)","v":"'Currency Risk'!$E$18"},"='Schedule XXA'!H16",0,{"$f":"ADDRESS(57,2,1,1,$P$1)","v":"'Concentration Risk'!$B$57"},"BSCR Rating 8",{"$f":"IF(INDIRECT(P157)=Q157,0,1)","v":0},{"$f":"ADDRESS(15,16,1,1,$S$1)","v":"'Geographic Diversification'!$P$15"},"=+'Schedule IVE'!L15",0,null,null,-157,{"$f":"ADDRESS(21,17,1,1,$Y$1)","v":"'Premium Risk'!$Q$21"},"=IF(H21=E21,MAX(D21*K21,0),IF(E21=F21,IF(D21<0,0,D21*(H21/F21)*K21),IF(D21<0,0,D21*(H21/E21)*K21)))\n+IF(I21=E21,MAX(D21*L21,0),IF(E21=F21,IF(D21<0,0,D21*(I21/F21)*L21),IF(D21<0,0,D21*(I21/E21)*L21)))\n+IF(J21=E21,MAX(D21*M21,0),IF(E21=F21,IF(D21<0,0,D21*(J21/F21)*M21),IF(D21<0,0,D21*(J21/E21)*M21)))",{"$f":"IF(_xlfn.FORMULATEXT(INDIRECT(Y157))=Z157,0,1)","v":0}]
[{"$f":"ADDRESS(64,24,1,1,$A$1)","v":"Summary!$X$64"},"=G68",0,{"$f":"ADDRESS(91,7,1,1,$D$1)","v":"'Fixed Income Investments'!$G$91"},"='Schedule XIXA'!F89",{"$f":"IF(_xlfn.FORMULATEXT(INDIRECT(D158))=E158,0,1)","v":0},{"$f":"ADDRESS(24,11,1,1,$G$1)","v":"'Equity Investments'!$K$24"},"=SUM(K11:K23)",0,null,null,null,{"$f":"ADDRESS(18,6,1,1,$M$1)","v":"'Currency Risk'!$F$18"},"='Schedule XXA'!J16",0,{"$f":"ADDRESS(57,4,1,1,$P$1)","v":"'Concentration Risk'!$D$57"},"=SUMIFS('Schedule XXIA'!$M$8:$M$57,'Schedule XXIA'!$K$8:$K$57,$D$48,'Schedule XXIA'!$L$8:$L$57,$B57)",{"$f":"IF(_xlfn.FORMULATEXT(INDIRECT(P158))=Q158,0,1)","v":0},{"$f":"ADDRESS(15,17,1,1,$S$1)","v":"'Geographic Diversification'!$Q$15"},"=+'Schedule IVE'!M15",0,null,null,null,{"$f":"ADDRESS(21,19,1,1,$Y$1)","v":"'Premium Risk'!$S$21"},0.3,{"$f":"IF(INDIRECT(Y158)=Z158,0,1)","v":0}]
[{"$f":"ADDRESS(64,25,1,1,$A$1)","v":"Summary!$Y$64"},"=IF($L$72=0,1/9,X64/$X$66)",0,{"$f":"ADDRESS(91,8,1,1,$D$1)","v":"'Fixed Income Investments'!$H$91"},0.09,{"$f":"IF(INDIRECT(D159)=E159,0,1)","v":0},{"$f":"ADDRESS(24,12,1,1,$G$1)","v":"'Equity Investments'!$L$24"},"=SUM(L11:L23)",0,null,null,null,{"$f":"ADDRESS(18,7,1,1,$M$1)","v":"'Currency Risk'!$G$18"},"='Schedule XXA'!L16",0,{"$f":"ADDRESS(57,5,1,1,$P$1)","v":"'Concentration Risk'!$E$57"},"=+'Fixed Income Investments (old)'!E48",{"$f":"IF(_xlfn.FORMULATEXT(INDIRECT(P159))=Q159,0,1)","v":0},{"$f":"ADDRESS(15,18,1,1,$S$1)","v":"'Geographic Diversification'!$R$15"},"=+'Schedule IVE'!N15",0,null,null,null,{"$f":"ADDRESS(21,20,1,1,$Y$1)","v":"'Premium Risk'!$T$21"},0.5,{"$f":"IF(INDIRECT(Y159)=Z159,0,1)","v":0}]
[{"$f":"ADDRESS(64,26,1,1,$A$1)","v":"Summary!$Z$64"},"=M68",0,{"$f":"ADDRESS(91,9,1,1,$D$1)","v":"'Fixed Income Investments'!$I$91"},"=IF($G$91<0,0,$G$91*$H$91)",{"$f":"IF(_xlfn.FORMULATEXT(INDIRECT(D160))=E160,0,1)","v":0},{"$f":"ADDRESS(24,16,1,1,$G$1)","v":"'Equity Investments'!$P$24"},"=MAX(SUM(P11:P22),0)",0,null,null,null,{"$f":"ADDRESS(18,8,1,1,$M$1)","v":"'Currency Risk'!$H$18"},"='Schedule XXA'!N16",0,{"$f":"ADDRESS(57,6,1,1,$P$1)","v":"'Concentration Risk'!$F$57"},"=MAX(0,(D57*E57))",{"$f":"IF(_xlfn.FORMULATEXT(INDIRECT(P160))=Q160,0,1)","v":0},{"$f":"ADDRESS(15,19,1,1,$S$1)","v":"'Geographic Diversification'!$S$15"},"=+'Schedule IVE'!O15",0,null,null,null,{"$f":"ADDRESS(22,4,1,1,$Y$1)","v":"'Premium Risk'!$D$22"},"='Schedule IVD'!Q20",{"$f":"IF(_xlfn.FORMULATEXT(INDIRECT(Y160))=Z160,0,1)","v":0}]
[{"$f":"ADDRESS(64,27,1,1,$A$1)","v":"Summary!$AA$64"},"=IF($N$72=0,1/9,Z64/$Z$66)",0,{"$f":"ADDRESS(93,7,1,1,$D$1)","v":"'Fixed Income Investments'!$G$93"},"=SUM(G83:G92)",0,{"$f":"ADDRESS(24,18,1,1,$G$1)","v":"'Equity Investments'!$R$24"},"=MAX(SUM(R11:R22),0)",0,null,null,null,{"$f":"ADDRESS(18,9,1,1,$M$1)","v":"'Currency Risk'!$I$18"},"=$I$10*H18",0,{"$f":"ADDRESS(59,4,1,1,$P$1)","v":"'Concentration Risk'!$D$59"},"=SUM(D48:D57)",{"$f":"IF(_xlfn.FORMULATEXT(INDIRECT(P161))=Q161,0,1)","v":0},{"$f":"ADDRESS(15,20,1,1,$S$1)","v":"'Geographic Diversification'!$T$15"},"=+'Schedule IVE'!P15",0,null,null,null,{"$f":"ADDRESS(22,5,1,1,$Y$1)","v":"'Premium Risk'!$E$22"},"='Schedule IVD'!O20",0]
[{"$f":"ADDRESS(64,29,1,1,$A$1)","v":"Summary!$AC$64"},"=(SUM(AA$55:AA65)/AA$66)",0,{"$f":"ADDRESS(93,9,1,1,$D$1)","v":"'Fixed Income Investments'!$I$93"},"=SUM(I83:I92)",0,{"$f":"ADDRESS(27,4,1,1,$G$1)","v":"'Equity Investments'!$D$27"},"='Schedule IIB'!D51+'Schedule IIC'!D51+'Schedule IID'!D51+'Schedule IIE'!D51+'Schedule IIF'!D51",0,null,null,null,{"$f":"ADDRESS(18,10,1,1,$M$1)","v":"'Currency Risk'!$J$18"},"=IF($B$12=\"Euro\",IF((SUM(C18:G18))>(H18+I18),0%,1.81%),IF((SUM(C18:G18))>(H18+I18),0%,25%))",0,{"$f":"ADDRESS(59,6,1,1,$P$1)","v":"'Concentration Risk'!$F$59"},"=SUM(F48:F57)",{"$f":"IF(_xlfn.FORMULATEXT(INDIRECT(P162))=Q162,0,1)","v":0},{"$f":"ADDRESS(15,21,1,1,$S$1)","v":"'Geographic Diversification'!$U$15"},"=+'Schedule IVE'!Q15",0,null,null,null,{"$f":"ADDRESS(22,6,1,1,$Y$1)","v":"'Premium Risk'!$F$22"},"='Geographic Diversification'!H20",0]
[{"$f":"ADDRESS(64,32,1,1,$A$1)","v":"Summary!$AF$64"},"=IF(AO68=\"\",IF(Test_Statistic<$AJ$72,AI64,IF(Test_Statistic<$AL$72,AK64,AM64)),AO68)",0,{"$f":"ADDRESS(95,8,1,1,$D$1)","v":"'Fixed Income Investments'!$H$95"},"='Schedule XIXA'!F98",0,{"$f":"ADDRESS(27,5,1,1,$G$1)","v":"'Equity Investments'!$E$27"},"='Schedule IIB'!F51+'Schedule IIC'!F51+'Schedule IID'!F51+'Schedule IIE'!F51+'Schedule IIF'!F51",0,null,null,null,{"$f":"ADDRESS(18,12,1,1,$M$1)","v":"'Currency Risk'!$L$18"},"='Schedule XXA'!V16",0,{"$f":"ADDRESS(61,4,1,1,$P$1)","v":"'Concentration Risk'!$D$61"},"Bond Mutual Funds",{"$f":"IF(INDIRECT(P163)=Q163,0,1)","v":0},{"$f":"ADDRESS(15,22,1,1,$S$1)","v":"'Geographic Diversification'!$V$15"},"=+'Schedule IVE'!R15",0,null,null,null,{"$f":"ADDRESS(22,7,1,1,$Y$1)","v":"'Premium Risk'!$G$22"},"=IF(IFERROR(F22/E22,1)<0,1,IFERROR(F22/E22,1))",0]
[{"$f":"ADDRESS(64,33,1,1,$A$1)","v":"Summary!$AG$64"},"=IF(AP68=\"\",IF(Test_Statistic<$AJ$72,AJ64,IF(Test_Statistic<$AL$72,AL64,AN64)),AP68)",0,{"$f":"ADDRESS(95,9,1,1,$D$1)","v":"'Fixed Income Investments'!$I$95"},"=SUM(I83:I91)*-('Schedule XIXA'!F98)",0,{"$f":"ADDRESS(27,6,1,1,$G$1)","v":"'Equity Investments'!$F$27"},"='Schedule IIB'!H51+'Schedule IIC'!H51+'Schedule IID'!H51+'Schedule IIE'!H51+'Schedule IIF'!H51",0,null,null,null,{"$f":"ADDRESS(18,13,1,1,$M$1)","v":"'Currency Risk'!$M$18"},"='Schedule XXA'!X16",0,{"$f":"ADDRESS(62,2,1,1,$P$1)","v":"'Concentration Risk'!$B$62"},"BSCR Rating 0",{"$f":"IF(INDIRECT(P164)=Q164,0,1)","v":0},{"$f":"ADDRESS(15,23,1,1,$S$1)","v":"'Geographic Diversification'!$W$15"},"=+'Schedule IVE'!S15",0,null,null,null,{"$f":"ADDRESS(22,8,1,1,$Y$1)","v":"'Premium Risk'!$H$22"},"='Schedule IVD'!I20*$G22",0]
[{"$f":"ADDRESS(64,35,1,1,$A$1)","v":"Summary!$AI$64"},"=IF(AC63>1,260,IF(AC61>1,200,IF(AC61>0.6,180,40)))",0,{"$f":"ADDRESS(97,7,1,1,$D$1)","v":"'Fixed Income Investments'!$G$97"},"=G79+G93",0,{"$f":"ADDRESS(27,7,1,1,$G$1)","v":"'Equity Investments'!$G$27"},"='Schedule IIB'!J51+'Schedule IIC'!J51+'Schedule IID'!J51+'Schedule IIE'!J51+'Schedule IIF'!J51",0,null,null,null,{"$f":"ADDRESS(18,14,1,1,$M$1)","v":"'Currency Risk'!$N$18"},"='Schedule XXA'!Z16",{"$f":"IF(_xlfn.FORMULATEXT(INDIRECT(M165))=N165,0,1)","v":0},{"$f":"ADDRESS(62,4,1,1,$P$1)","v":"'Concentration Risk'!$D$62"},"=SUMIFS('Schedule XXIA'!$M$8:$M$57,'Schedule XXIA'!$K$8:$K$57,$D$61,'Schedule XXIA'!$L$8:$L$57,$B62)",{"$f":"IF(_xlfn.FORMULATEXT(INDIRECT(P165))=Q165,0,1)","v":0},{"$f":"ADDRESS(15,24,1,1,$S$1)","v":"'Geographic Diversification'!$X$15"},"=+'Schedule IVE'!T15",0,null,null,null,{"$f":"ADDRESS(22,9,1,1,$Y$1)","v":"'Premium Risk'!$I$22"},"='Schedule IVD'!K20*$G22",0]
[{"$f":"ADDRESS(64,36,1,1,$A$1)","v":"Summary!$AJ$64"},"=IF(AC63>1,15,IF(AC61>0.6,5,100))",0,{"$f":"ADDRESS(97,9,1,1,$D$1)","v":"'Fixed Income Investments'!$I$97"},"=IF(SUM(I79,I83:I91,I95)>=0,SUM(I79,I83:I91,I95),0)",0,{"$f":"ADDRESS(27,8,1,1,$G$1)","v":"'Equity Investments'!$H$27"},"='Schedule IIB'!L51+'Schedule IIC'!L51+'Schedule IID'!L51+'Schedule IIE'!L51+'Schedule IIF'!L51",0,null,null,null,{"$f":"ADDRESS(18,15,1,1,$M$1)","v":"'Currency Risk'!$O$18"},"='Schedule XXA'!AB16",0,{"$f":"ADDRESS(62,5,1,1,$P$1)","v":"'Concentration Risk'!$E$62"},"=+'Fixed Income Investments (old)'!E56",{"$f":"IF(_xlfn.FORMULATEXT(INDIRECT(P166))=Q166,0,1)","v":0},{"$f":"ADDRESS(15,25,1,1,$S$1)","v":"'Geographic Diversification'!$Y$15"},"=+'Schedule IVE'!U15",0,null,null,null,{"$f":"ADDRESS(22,10,1,1,$Y$1)","v":"'Premium Risk'!$J$22"},"='Schedule IVD'!M20*$G22",0]
[{"$f":"ADDRESS(64,37,1,1,$A$1)","v":"Summary!$AK$64"},"=IF(Test_Statistic_2<0.95,180,240)",0,{"$f":"ADDRESS(105,3,1,1,$D$1)","v":"'Fixed Income Investments'!$C$105"},"='Schedule IIB'!D68+'Schedule IIC'!D68+'Schedule IID'!D68+'Schedule IIE'!D68+'Schedule IIF'!D68",0,{"$f":"ADDRESS(27,9,1,1,$G$1)","v":"'Equity Investments'!$I$27"},"='Schedule IIB'!N51+'Schedule IIC'!N51+'Schedule IID'!N51+'Schedule IIE'!N51+'Schedule IIF'!N51",0,null,null,null,{"$f":"ADDRESS(18,16,1,1,$M$1)","v":"'Currency Risk'!$P$18"},"='Schedule XXA'!AD16",0,{"$f":"ADDRESS(62,6,1,1,$P$1)","v":"'Concentration Risk'!$F$62"},"=MAX(0,(D62*E62))",{"$f":"IF(_xlfn.FORMULATEXT(INDIRECT(P167))=Q167,0,1)","v":0},{"$f":"ADDRESS(15,26,1,1,$S$1)","v":"'Geographic Diversification'!$Z$15"},"=+'Schedule IVE'!V15",0,null,null,null,{"$f":"ADDRESS(22,11,1,1,$Y$1)","v":"'Premium Risk'!$K$22"},0.50272577892886305,{"$f":"IF(INDIRECT(Y167)=Z167,0,1)","v":0}]
[{"$f":"ADDRESS(64,38,1,1,$A$1)","v":"Summary!$AL$64"},"=IF(Test_Statistic_2<0.95,5,20)",0,{"$f":"ADDRESS(105,4,1,1,$D$1)","v":"'Fixed Income Investments'!$D$105"},"='Schedule IIB'!F68+'Schedule IIC'!F68+'Schedule IID'!F68+'Schedule IIE'!F68+'Schedule IIF'!F68",0,{"$f":"ADDRESS(27,10,1,1,$G$1)","v":"'Equity Investments'!$J$27"},"='Schedule IIB'!P51+'Schedule IIC'!P51+'Schedule IID'!P51+'Schedule IIE'!P51+'Schedule IIF'!P51",0,null,null,null,{"$f":"ADDRESS(18,17,1,1,$M$1)","v":"'Currency Risk'!$Q$18"},"='Schedule XXA'!AF16",0,{"$f":"ADDRESS(63,2,1,1,$P$1)","v":"'Concentration Risk'!$B$63"},"BSCR Rating 1",{"$f":"IF(INDIRECT(P168)=Q168,0,1)","v":0},{"$f":"ADDRESS(16,4,1,1,$S$1)","v":"'Geographic Diversification'!$D$16"},"=SUM(I16:Z16)",0,null,null,null,{"$f":"ADDRESS(22,12,1,1,$Y$1)","v":"'Premium Risk'!$L$22"},"=+K22*S22",{"$f":"IF(_xlfn.FORMULATEXT(INDIRECT(Y168))=Z168,0,1)","v":0}]
[{"$f":"ADDRESS(64,39,1,1,$A$1)","v":"Summary!$AM$64"},"=IF(Test_Statistic_2<1,180,240)",0,{"$f":"ADDRESS(105,5,1,1,$D$1)","v":"'Fixed Income Investments'!$E$105"},"='Schedule IIB'!H68+'Schedule IIC'!H68+'Schedule IID'!H68+'Schedule IIE'!H68+'Schedule IIF'!H68",0,{"$f":"ADDRESS(27,11,1,1,$G$1)","v":"'Equity Investments'!$K$27"},"='Schedule IIB'!R51+'Schedule IIC'!R51+'Schedule IID'!R51+'Schedule IIE'!R51+'Schedule IIF'!R51",0,null,null,null,{"$f":"ADDRESS(18,18,1,1,$M$1)","v":"'Currency Risk'!$R$18"},"=IF('Schedule XXA'!AH16=0,Q18,'Schedule XXA'!AH16)",0,{"$f":"ADDRESS(63,4,1,1,$P$1)","v":"'Concentration Risk'!$D$63"},"=SUMIFS('Schedule XXIA'!$M$8:$M$57,'Schedule XXIA'!$K$8:$K$57,$D$61,'Schedule XXIA'!$L$8:$L$57,$B63)",{"$f":"IF(_xlfn.FORMULATEXT(INDIRECT(P169))=Q169,0,1)","v":0},{"$f":"ADDRESS(16,5,1,1,$S$1)","v":"'Geographic Diversification'!$E$16"},"=SUMSQ(I16:Z16)",0,null,null,null,{"$f":"ADDRESS(22,13,1,1,$Y$1)","v":"'Premium Risk'!$M$22"},"=+L22*T22",{"$f":"IF(_xlfn.FORMULATEXT(INDIRECT(Y169))=Z169,0,1)","v":0}]
[{"$f":"ADDRESS(64,40,1,1,$A$1)","v":"Summary!$AN$64"},"=IF(Test_Statistic_2<1,5,20)",0,{"$f":"ADDRESS(105,6,1,1,$D$1)","v":"'Fixed Income Investments'!$F$105"},"='Schedule IIB'!J68+'Schedule IIC'!J68+'Schedule IID'!J68+'Schedule IIE'!J68+'Schedule IIF'!J68",0,{"$f":"ADDRESS(27,12,1,1,$G$1)","v":"'Equity Investments'!$L$27"},"='Schedule IIB'!T51+'Schedule IIC'!T51+'Schedule IID'!T51+'Schedule IIE'!T51+'Schedule IIF'!T51",0,null,null,null,{"$f":"ADDRESS(18,20,1,1,$M$1)","v":"'Currency Risk'!$T$18"},"=(C18-L18)+(D18-M18)+(F18-O18)+MAX(E18-N18,0)+MAX(G18-P18,0)",0,{"$f":"ADDRESS(63,5,1,1,$P$1)","v":"'Concentration Risk'!$E$63"},"=+'Fixed Income Investments (old)'!E57",{"$f":"IF(_xlfn.FORMULATEXT(INDIRECT(P170))=Q170,0,1)","v":0},{"$f":"ADDRESS(16,6,1,1,$S$1)","v":"'Geographic Diversification'!$F$16"},"=(IF(D16>0,E16/D16^2,1))",0,null,null,null,{"$f":"ADDRESS(22,14,1,1,$Y$1)","v":"'Premium Risk'!$N$22"},"=IF($H22<0,0,$H22*$K22)+IF($I22<0,0,$I22*$L22)+IF($J22<0,0,$J22*$M22)",{"$f":"IF(_xlfn.FORMULATEXT(INDIRECT(Y170))=Z170,0,1)","v":0}]
[{"$f":"ADDRESS(65,12,1,1,$A$1)","v":"Summary!$L$65"},"{=SQRT(MMULT(TRANSPOSE(K66:K68),MMULT('Correlation Matrix'!J7:L9,K66:K68)))}",0,{"$f":"ADDRESS(105,9,1,1,$D$1)","v":"'Fixed Income Investments'!$I$105"},"=(C105-D105)+MAX(0,E105-F105)",0,{"$f":"ADDRESS(27,16,1,1,$G$1)","v":"'Equity Investments'!$P$27"},"=MAX(D27-E27,0)+(F27-G27)+MAX(H27-I27,0)+(K27-J27)",0,null,null,null,{"$f":"ADDRESS(18,21,1,1,$M$1)","v":"'Currency Risk'!$U$18"},"=Q18-$H18",0,{"$f":"ADDRESS(63,6,1,1,$P$1)","v":"'Concentration Risk'!$F$63"},"=MAX(0,(D63*E63))",{"$f":"IF(_xlfn.FORMULATEXT(INDIRECT(P171))=Q171,0,1)","v":0},{"$f":"ADDRESS(16,7,1,1,$S$1)","v":"'Geographic Diversification'!$G$16"},"=D16*(0.75+0.25*F16)",0,null,null,null,{"$f":"ADDRESS(22,17,1,1,$Y$1)","v":"'Premium Risk'!$Q$22"},"=IF(H22=E22,MAX(D22*K22,0),IF(E22=F22,IF(D22<0,0,D22*(H22/F22)*K22),IF(D22<0,0,D22*(H22/E22)*K22)))\n+IF(I22=E22,MAX(D22*L22,0),IF(E22=F22,IF(D22<0,0,D22*(I22/F22)*L22),IF(D22<0,0,D22*(I22/E22)*L22)))\n+IF(J22=E22,MAX(D22*M22,0),IF(E22=F22,IF(D22<0,0,D22*(J22/F22)*M22),IF(D22<0,0,D22*(J22/E22)*M22)))",{"$f":"IF(_xlfn.FORMULATEXT(INDIRECT(Y171))=Z171,0,1)","v":0}]
[{"$f":"ADDRESS(65,14,1,1,$A$1)","v":"Summary!$N$65"},"{=SQRT(MMULT(TRANSPOSE(M66:M68),MMULT('Correlation Matrix'!J7:L9,M66:M68)))}",0,{"$f":"ADDRESS(106,3,1,1,$D$1)","v":"'Fixed Income Investments'!$C$106"},"='Schedule IIB'!D69+'Schedule IIC'!D69+'Schedule IID'!D69+'Schedule IIE'!D69+'Schedule IIF'!D69",0,{"$f":"ADDRESS(27,18,1,1,$G$1)","v":"'Equity Investments'!$R$27"},"=MAX(D27-E27,0)+(F27-G27)+MAX(H27-I27,0)+(L27-J27)",0,null,null,null,{"$f":"ADDRESS(18,22,1,1,$M$1)","v":"'Currency Risk'!$V$18"},"=R18-$H18",0,{"$f":"ADDRESS(64,2,1,1,$P$1)","v":"'Concentration Risk'!$B$64"},"BSCR Rating 2",{"$f":"IF(INDIRECT(P172)=Q172,0,1)","v":0},{"$f":"ADDRESS(16,8,1,1,$S$1)","v":"'Geographic Diversification'!$H$16"},"=IF('Schedule IVE'!AB16=\"True\",G16,'Schedule IVD'!O16)",0,null,null,null,{"$f":"ADDRESS(22,19,1,1,$Y$1)","v":"'Premium Risk'!$S$22"},0.5,{"$f":"IF(INDIRECT(Y172)=Z172,0,1)","v":0}]
[{"$f":"ADDRESS(66,3,1,1,$A$1)","v":"Summary!$C$66"},"Premium Risk",{"$f":"IF(INDIRECT(A173)=B173,0,1)","v":0},{"$f":"ADDRESS(106,4,1,1,$D$1)","v":"'Fixed Income Investments'!$D$106"},"='Schedule IIB'!F69+'Schedule IIC'!F69+'Schedule IID'!F69+'Schedule IIE'!F69+'Schedule IIF'!F69",0,{"$f":"ADDRESS(28,4,1,1,$G$1)","v":"'Equity Investments'!$D$28"},"='Schedule IIB'!D52+'Schedule IIC'!D52+'Schedule IID'!D52+'Schedule IIE'!D52+'Schedule IIF'!D52",0,null,null,null,{"$f":"ADDRESS(18,24,1,1,$M$1)","v":"'Currency Risk'!$X$18"},"=MAX(0,$T18+U18+(J18*I18))",0,{"$f":"ADDRESS(64,4,1,1,$P$1)","v":"'Concentration Risk'!$D$64"},"=SUMIFS('Schedule XXIA'!$M$8:$M$57,'Schedule XXIA'!$K$8:$K$57,$D$61,'Schedule XXIA'!$L$8:$L$57,$B64)",{"$f":"IF(_xlfn.FORMULATEXT(INDIRECT(P173))=Q173,0,1)","v":0},{"$f":"ADDRESS(16,9,1,1,$S$1)","v":"'Geographic Diversification'!$I$16"},"=+'Schedule IVE'!E16",0,null,null,null,{"$f":"ADDRESS(22,20,1,1,$Y$1)","v":"'Premium Risk'!$T$22"},0.5,{"$f":"IF(INDIRECT(Y173)=Z173,0,1)","v":0}]
[{"$f":"ADDRESS(66,7,1,1,$A$1)","v":"Summary!$G$66"},"=ROUND('Premium Risk (old)'!I78,$Q$164)",{"$f":"IF(_xlfn.FORMULATEXT(INDIRECT(A174))=B174,0,1)","v":0},{"$f":"ADDRESS(106,5,1,1,$D$1)","v":"'Fixed Income Investments'!$E$106"},"='Schedule IIB'!H69+'Schedule IIC'!H69+'Schedule IID'!H69+'Schedule IIE'!H69+'Schedule IIF'!H69",0,{"$f":"ADDRESS(28,5,1,1,$G$1)","v":"'Equity Investments'!$E$28"},"='Schedule IIB'!F52+'Schedule IIC'!F52+'Schedule IID'!F52+'Schedule IIE'!F52+'Schedule IIF'!F52",0,null,null,null,{"$f":"ADDRESS(18,25,1,1,$M$1)","v":"'Currency Risk'!$Y$18"},"=MAX(0,$T18+V18+(J18*I18))",0,{"$f":"ADDRESS(64,5,1,1,$P$1)","v":"'Concentration Risk'!$E$64"},"=+'Fixed Income Investments (old)'!E58",{"$f":"IF(_xlfn.FORMULATEXT(INDIRECT(P174))=Q174,0,1)","v":0},{"$f":"ADDRESS(16,10,1,1,$S$1)","v":"'Geographic Diversification'!$J$16"},"=+'Schedule IVE'!F16",0,null,null,null,{"$f":"ADDRESS(23,4,1,1,$Y$1)","v":"'Premium Risk'!$D$23"},"='Schedule IVD'!Q21",{"$f":"IF(_xlfn.FORMULATEXT(INDIRECT(Y174))=Z174,0,1)","v":0}]
[{"$f":"ADDRESS(66,11,1,1,$A$1)","v":"Summary!$K$66"},"=ROUND('Premium Risk'!N59,$Q$164)",0,{"$f":"ADDRESS(106,6,1,1,$D$1)","v":"'Fixed Income Investments'!$F$106"},"='Schedule IIB'!J69+'Schedule IIC'!J69+'Schedule IID'!J69+'Schedule IIE'!J69+'Schedule IIF'!J69",0,{"$f":"ADDRESS(28,6,1,1,$G$1)","v":"'Equity Investments'!$F$28"},"='Schedule IIB'!H52+'Schedule IIC'!H52+'Schedule IID'!H52+'Schedule IIE'!H52+'Schedule IIF'!H52",0,null,null,null,{"$f":"ADDRESS(19,2,1,1,$M$1)","v":"'Currency Risk'!$B$19"},"='Schedule XXA'!B17",0,{"$f":"ADDRESS(64,6,1,1,$P$1)","v":"'Concentration Risk'!$F$64"},"=MAX(0,(D64*E64))",{"$f":"IF(_xlfn.FORMULATEXT(INDIRECT(P175))=Q175,0,1)","v":0},{"$f":"ADDRESS(16,11,1,1,$S$1)","v":"'Geographic Diversification'!$K$16"},"=+'Schedule IVE'!G16",0,null,null,null,{"$f":"ADDRESS(23,5,1,1,$Y$1)","v":"'Premium Risk'!$E$23"},"='Schedule IVD'!O21",0]
[{"$f":"ADDRESS(66,13,1,1,$A$1)","v":"Summary!$M$66"},"=ROUND('Premium Risk'!N59,$Q$164)",0,{"$f":"ADDRESS(106,9,1,1,$D$1)","v":"'Fixed Income Investments'!$I$106"},"=(C106-D106)+MAX(0,E106-F106)",0,{"$f":"ADDRESS(28,7,1,1,$G$1)","v":"'Equity Investments'!$G$28"},"='Schedule IIB'!J52+'Schedule IIC'!J52+'Schedule IID'!J52+'Schedule IIE'!J52+'Schedule IIF'!J52",0,null,null,null,{"$f":"ADDRESS(19,3,1,1,$M$1)","v":"'Currency Risk'!$C$19"},"='Schedule XXA'!D17",0,{"$f":"ADDRESS(65,2,1,1,$P$1)","v":"'Concentration Risk'!$B$65"},"BSCR Rating 3",{"$f":"IF(INDIRECT(P176)=Q176,0,1)","v":0},{"$f":"ADDRESS(16,12,1,1,$S$1)","v":"'Geographic Diversification'!$L$16"},"=+'Schedule IVE'!H16",0,null,null,null,{"$f":"ADDRESS(23,6,1,1,$Y$1)","v":"'Premium Risk'!$F$23"},"='Geographic Diversification'!H21",0]
[{"$f":"ADDRESS(66,24,1,1,$A$1)","v":"Summary!$X$66"},"=SUM(X55:X65)",0,{"$f":"ADDRESS(107,3,1,1,$D$1)","v":"'Fixed Income Investments'!$C$107"},"='Schedule IIB'!D70+'Schedule IIC'!D70+'Schedule IID'!D70+'Schedule IIE'!D70+'Schedule IIF'!D70",0,{"$f":"ADDRESS(28,8,1,1,$G$1)","v":"'Equity Investments'!$H$28"},"='Schedule IIB'!L52+'Schedule IIC'!L52+'Schedule IID'!L52+'Schedule IIE'!L52+'Schedule IIF'!L52",0,null,null,null,{"$f":"ADDRESS(19,4,1,1,$M$1)","v":"'Currency Risk'!$D$19"},"='Schedule XXA'!F17",0,{"$f":"ADDRESS(65,4,1,1,$P$1)","v":"'Concentration Risk'!$D$65"},"=SUMIFS('Schedule XXIA'!$M$8:$M$57,'Schedule XXIA'!$K$8:$K$57,$D$61,'Schedule XXIA'!$L$8:$L$57,$B65)",{"$f":"IF(_xlfn.FORMULATEXT(INDIRECT(P177))=Q177,0,1)","v":0},{"$f":"ADDRESS(16,13,1,1,$S$1)","v":"'Geographic Diversification'!$M$16"},"=+'Schedule IVE'!I16",0,null,null,null,{"$f":"ADDRESS(23,7,1,1,$Y$1)","v":"'Premium Risk'!$G$23"},"=IF(IFERROR(F23/E23,1)<0,1,IFERROR(F23/E23,1))",0]
[{"$f":"ADDRESS(66,25,1,1,$A$1)","v":"Summary!$Y$66"},"=SUM(Y55:Y65)",0,{"$f":"ADDRESS(107,4,1,1,$D$1)","v":"'Fixed Income Investments'!$D$107"},"='Schedule IIB'!F70+'Schedule IIC'!F70+'Schedule IID'!F70+'Schedule IIE'!F70+'Schedule IIF'!F70",0,{"$f":"ADDRESS(28,9,1,1,$G$1)","v":"'Equity Investments'!$I$28"},"='Schedule IIB'!N52+'Schedule IIC'!N52+'Schedule IID'!N52+'Schedule IIE'!N52+'Schedule IIF'!N52",0,null,null,null,{"$f":"ADDRESS(19,5,1,1,$M$1)","v":"'Currency Risk'!$E$19"},"='Schedule XXA'!H17",0,{"$f":"ADDRESS(65,5,1,1,$P$1)","v":"'Concentration Risk'!$E$65"},"=+'Fixed Income Investments (old)'!E59",{"$f":"IF(_xlfn.FORMULATEXT(INDIRECT(P178))=Q178,0,1)","v":0},{"$f":"ADDRESS(16,14,1,1,$S$1)","v":"'Geographic Diversification'!$N$16"},"=+'Schedule IVE'!J16",0,null,null,null,{"$f":"ADDRESS(23,8,1,1,$Y$1)","v":"'Premium Risk'!$H$23"},"='Schedule IVD'!I21*$G23",0]
[{"$f":"ADDRESS(66,26,1,1,$A$1)","v":"Summary!$Z$66"},"=SUM(Z55:Z65)",0,{"$f":"ADDRESS(107,5,1,1,$D$1)","v":"'Fixed Income Investments'!$E$107"},"='Schedule IIB'!H70+'Schedule IIC'!H70+'Schedule IID'!H70+'Schedule IIE'!H70+'Schedule IIF'!H70",0,{"$f":"ADDRESS(28,10,1,1,$G$1)","v":"'Equity Investments'!$J$28"},"='Schedule IIB'!P52+'Schedule IIC'!P52+'Schedule IID'!P52+'Schedule IIE'!P52+'Schedule IIF'!P52",0,null,null,null,{"$f":"ADDRESS(19,6,1,1,$M$1)","v":"'Currency Risk'!$F$19"},"='Schedule XXA'!J17",0,{"$f":"ADDRESS(65,6,1,1,$P$1)","v":"'Concentration Risk'!$F$65"},"=MAX(0,(D65*E65))",{"$f":"IF(_xlfn.FORMULATEXT(INDIRECT(P179))=Q179,0,1)","v":0},{"$f":"ADDRESS(16,15,1,1,$S$1)","v":"'Geographic Diversification'!$O$16"},"=+'Schedule IVE'!K16",0,null,null,null,{"$f":"ADDRESS(23,9,1,1,$Y$1)","v":"'Premium Risk'!$I$23"},"='Schedule IVD'!K21*$G23",0]
[{"$f":"ADDRESS(66,27,1,1,$A$1)","v":"Summary!$AA$66"},"=SUM(AA55:AA65)",0,{"$f":"ADDRESS(107,6,1,1,$D$1)","v":"'Fixed Income Investments'!$F$107"},"='Schedule IIB'!J70+'Schedule IIC'!J70+'Schedule IID'!J70+'Schedule IIE'!J70+'Schedule IIF'!J70",0,{"$f":"ADDRESS(28,11,1,1,$G$1)","v":"'Equity Investments'!$K$28"},"='Schedule IIB'!R52+'Schedule IIC'!R52+'Schedule IID'!R52+'Schedule IIE'!R52+'Schedule IIF'!R52",0,null,null,null,{"$f":"ADDRESS(19,7,1,1,$M$1)","v":"'Currency Risk'!$G$19"},"='Schedule XXA'!L17",0,{"$f":"ADDRESS(66,2,1,1,$P$1)","v":"'Concentration Risk'!$B$66"},"BSCR Rating 4",{"$f":"IF(INDIRECT(P180)=Q180,0,1)","v":0},{"$f":"ADDRESS(16,16,1,1,$S$1)","v":"'Geographic Diversification'!$P$16"},"=+'Schedule IVE'!L16",0,null,null,null,{"$f":"ADDRESS(23,10,1,1,$Y$1)","v":"'Premium Risk'!$J$23"},"='Schedule IVD'!M21*$G23",0]
[{"$f":"ADDRESS(67,3,1,1,$A$1)","v":"Summary!$C$67"},"Reserve Risk",{"$f":"IF(INDIRECT(A181)=B181,0,1)","v":0},{"$f":"ADDRESS(107,9,1,1,$D$1)","v":"'Fixed Income Investments'!$I$107"},"=(C107-D107)+MAX(0,E107-F107)",0,{"$f":"ADDRESS(28,12,1,1,$G$1)","v":"'Equity Investments'!$L$28"},"='Schedule IIB'!T52+'Schedule IIC'!T52+'Schedule IID'!T52+'Schedule IIE'!T52+'Schedule IIF'!T52",0,null,null,null,{"$f":"ADDRESS(19,8,1,1,$M$1)","v":"'Currency Risk'!$H$19"},"='Schedule XXA'!N17",0,{"$f":"ADDRESS(66,4,1,1,$P$1)","v":"'Concentration Risk'!$D$66"},"=SUMIFS('Schedule XXIA'!$M$8:$M$57,'Schedule XXIA'!$K$8:$K$57,$D$61,'Schedule XXIA'!$L$8:$L$57,$B66)",{"$f":"IF(_xlfn.FORMULATEXT(INDIRECT(P181))=Q181,0,1)","v":0},{"$f":"ADDRESS(16,17,1,1,$S$1)","v":"'Geographic Diversification'!$Q$16"},"=+'Schedule IVE'!M16",0,null,null,null,{"$f":"ADDRESS(23,11,1,1,$Y$1)","v":"'Premium Risk'!$K$23"},0.555814073452775,{"$f":"IF(INDIRECT(Y181)=Z181,0,1)","v":0}]
[{"$f":"ADDRESS(67,7,1,1,$A$1)","v":"Summary!$G$67"},"=ROUND('Reserve Risk (old)'!H68,$Q$164)",{"$f":"IF(_xlfn.FORMULATEXT(INDIRECT(A182))=B182,0,1)","v":0},{"$f":"ADDRESS(108,3,1,1,$D$1)","v":"'Fixed Income Investments'!$C$108"},"='Schedule IIB'!D71+'Schedule IIC'!D71+'Schedule IID'!D71+'Schedule IIE'!D71+'Schedule IIF'!D71",0,{"$f":"ADDRESS(28,16,1,1,$G$1)","v":"'Equity Investments'!$P$28"},"=MAX(D28-E28,0)+(F28-G28)+MAX(H28-I28,0)+(K28-J28)",0,null,null,null,{"$f":"ADDRESS(19,9,1,1,$M$1)","v":"'Currency Risk'!$I$19"},"=$I$10*H19",0,{"$f":"ADDRESS(66,5,1,1,$P$1)","v":"'Concentration Risk'!$E$66"},"=+'Fixed Income Investments (old)'!E60",{"$f":"IF(_xlfn.FORMULATEXT(INDIRECT(P182))=Q182,0,1)","v":0},{"$f":"ADDRESS(16,18,1,1,$S$1)","v":"'Geographic Diversification'!$R$16"},"=+'Schedule IVE'!N16",0,null,null,null,{"$f":"ADDRESS(23,12,1,1,$Y$1)","v":"'Premium Risk'!$L$23"},"=+K23*S23",{"$f":"IF(_xlfn.FORMULATEXT(INDIRECT(Y182))=Z182,0,1)","v":0}]
[{"$f":"ADDRESS(67,11,1,1,$A$1)","v":"Summary!$K$67"},"=ROUND('Reserve Risk'!H53,$Q$164)",{"$f":"IF(_xlfn.FORMULATEXT(INDIRECT(A183))=B183,0,1)","v":0},{"$f":"ADDRESS(108,4,1,1,$D$1)","v":"'Fixed Income Investments'!$D$108"},"='Schedule IIB'!F71+'Schedule IIC'!F71+'Schedule IID'!F71+'Schedule IIE'!F71+'Schedule IIF'!F71",0,{"$f":"ADDRESS(28,18,1,1,$G$1)","v":"'Equity Investments'!$R$28"},"=MAX(D28-E28,0)+(F28-G28)+MAX(H28-I28,0)+(L28-J28)",0,null,null,null,{"$f":"ADDRESS(19,10,1,1,$M$1)","v":"'Currency Risk'!$J$19"},"=IF($B$12=\"Euro\",IF((SUM(C19:G19))>(H19+I19),0%,2.18%),IF((SUM(C19:G19))>(H19+I19),0%,25%))",0,{"$f":"ADDRESS(66,6,1,1,$P$1)","v":"'Concentration Risk'!$F$66"},"=MAX(0,(D66*E66))",{"$f":"IF(_xlfn.FORMULATEXT(INDIRECT(P183))=Q183,0,1)","v":0},{"$f":"ADDRESS(16,19,1,1,$S$1)","v":"'Geographic Diversification'!$S$16"},"=+'Schedule IVE'!O16",0,null,null,null,{"$f":"ADDRESS(23,13,1,1,$Y$1)","v":"'Premium Risk'!$M$23"},"=+L23*T23",{"$f":"IF(_xlfn.FORMULATEXT(INDIRECT(Y183))=Z183,0,1)","v":0}]
[{"$f":"ADDRESS(67,13,1,1,$A$1)","v":"Summary!$M$67"},"=ROUND('Reserve Risk'!H53,$Q$164)",{"$f":"IF(_xlfn.FORMULATEXT(INDIRECT(A184))=B184,0,1)","v":0},{"$f":"ADDRESS(108,5,1,1,$D$1)","v":"'Fixed Income Investments'!$E$108"},"='Schedule IIB'!H71+'Schedule IIC'!H71+'Schedule IID'!H71+'Schedule IIE'!H71+'Schedule IIF'!H71",0,{"$f":"ADDRESS(29,4,1,1,$G$1)","v":"'Equity Investments'!$D$29"},"='Schedule IIB'!D53+'Schedule IIC'!D53+'Schedule IID'!D53+'Schedule IIE'!D53+'Schedule IIF'!D53",0,null,null,null,{"$f":"ADDRESS(19,12,1,1,$M$1)","v":"'Currency Risk'!$L$19"},"='Schedule XXA'!V17",0,{"$f":"ADDRESS(67,2,1,1,$P$1)","v":"'Concentration Risk'!$B$67"},"BSCR Rating 5",{"$f":"IF(INDIRECT(P184)=Q184,0,1)","v":0},{"$f":"ADDRESS(16,20,1,1,$S$1)","v":"'Geographic Diversification'!$T$16"},"=+'Schedule IVE'!P16",0,null,null,null,{"$f":"ADDRESS(23,14,1,1,$Y$1)","v":"'Premium Risk'!$N$23"},"=IF($H23<0,0,$H23*$K23)+IF($I23<0,0,$I23*$L23)+IF($J23<0,0,$J23*$M23)",{"$f":"IF(_xlfn.FORMULATEXT(INDIRECT(Y184))=Z184,0,1)","v":0}]
[{"$f":"ADDRESS(68,3,1,1,$A$1)","v":"Summary!$C$68"},"Catastrophe Risk",{"$f":"IF(INDIRECT(A185)=B185,0,1)","v":0},{"$f":"ADDRESS(108,6,1,1,$D$1)","v":"'Fixed Income Investments'!$F$108"},"='Schedule IIB'!J71+'Schedule IIC'!J71+'Schedule IID'!J71+'Schedule IIE'!J71+'Schedule IIF'!J71",0,{"$f":"ADDRESS(29,5,1,1,$G$1)","v":"'Equity Investments'!$E$29"},"='Schedule IIB'!F53+'Schedule IIC'!F53+'Schedule IID'!F53+'Schedule IIE'!F53+'Schedule IIF'!F53",0,null,null,null,{"$f":"ADDRESS(19,13,1,1,$M$1)","v":"'Currency Risk'!$M$19"},"='Schedule XXA'!X17",0,{"$f":"ADDRESS(67,4,1,1,$P$1)","v":"'Concentration Risk'!$D$67"},"=SUMIFS('Schedule XXIA'!$M$8:$M$57,'Schedule XXIA'!$K$8:$K$57,$D$61,'Schedule XXIA'!$L$8:$L$57,$B67)",{"$f":"IF(_xlfn.FORMULATEXT(INDIRECT(P185))=Q185,0,1)","v":0},{"$f":"ADDRESS(16,21,1,1,$S$1)","v":"'Geographic Diversification'!$U$16"},"=+'Schedule IVE'!Q16",0,null,null,null,{"$f":"ADDRESS(23,17,1,1,$Y$1)","v":"'Premium Risk'!$Q$23"},"=IF(H23=E23,MAX(D23*K23,0),IF(E23=F23,IF(D23<0,0,D23*(H23/F23)*K23),IF(D23<0,0,D23*(H23/E23)*K23)))\n+IF(I23=E23,MAX(D23*L23,0),IF(E23=F23,IF(D23<0,0,D23*(I23/F23)*L23),IF(D23<0,0,D23*(I23/E23)*L23)))\n+IF(J23=E23,MAX(D23*M23,0),IF(E23=F23,IF(D23<0,0,D23*(J23/F23)*M23),IF(D23<0,0,D23*(J23/E23)*M23)))",{"$f":"IF(_xlfn.FORMULATEXT(INDIRECT(Y185))=Z185,0,1)","v":0}]
[{"$f":"ADDRESS(68,7,1,1,$A$1)","v":"Summary!$G$68"},"=ROUND('Catastrophe Risk (old)'!E25,$Q$164)",{"$f":"IF(_xlfn.FORMULATEXT(INDIRECT(A186))=B186,0,1)","v":0},{"$f":"ADDRESS(108,9,1,1,$D$1)","v":"'Fixed Income Investments'!$I$108"},"=(C108-D108)+MAX(0,E108-F108)",0,{"$f":"ADDRESS(29,6,1,1,$G$1)","v":"'Equity Investments'!$F$29"},"='Schedule IIB'!H53+'Schedule IIC'!H53+'Schedule IID'!H53+'Schedule IIE'!H53+'Schedule IIF'!H53",0,null,null,null,{"$f":"ADDRESS(19,14,1,1,$M$1)","v":"'Currency Risk'!$N$19"},"='Schedule XXA'!Z17",0,{"$f":"ADDRESS(67,5,1,1,$P$1)","v":"'Concentration Risk'!$E$67"},"=+'Fixed Income Investments (old)'!E61",{"$f":"IF(_xlfn.FORMULATEXT(INDIRECT(P186))=Q186,0,1)","v":0},{"$f":"ADDRESS(16,22,1,1,$S$1)","v":"'Geographic Diversification'!$V$16"},"=+'Schedule IVE'!R16",0,null,null,null,{"$f":"ADDRESS(23,19,1,1,$Y$1)","v":"'Premium Risk'!$S$23"},0.5,{"$f":"IF(INDIRECT(Y186)=Z186,0,1)","v":0}]
[{"$f":"ADDRESS(68,11,1,1,$A$1)","v":"Summary!$K$68"},"=ROUND('Catastrophe Risk'!E25,$Q$164)",0,{"$f":"ADDRESS(109,3,1,1,$D$1)","v":"'Fixed Income Investments'!$C$109"},"='Schedule IIB'!D72+'Schedule IIC'!D72+'Schedule IID'!D72+'Schedule IIE'!D72+'Schedule IIF'!D72",0,{"$f":"ADDRESS(29,7,1,1,$G$1)","v":"'Equity Investments'!$G$29"},"='Schedule IIB'!J53+'Schedule IIC'!J53+'Schedule IID'!J53+'Schedule IIE'!J53+'Schedule IIF'!J53",0,null,null,null,{"$f":"ADDRESS(19,15,1,1,$M$1)","v":"'Currency Risk'!$O$19"},"='Schedule XXA'!AB17",0,{"$f":"ADDRESS(67,6,1,1,$P$1)","v":"'Concentration Risk'!$F$67"},"=MAX(0,(D67*E67))",{"$f":"IF(_xlfn.FORMULATEXT(INDIRECT(P187))=Q187,0,1)","v":0},{"$f":"ADDRESS(16,23,1,1,$S$1)","v":"'Geographic Diversification'!$W$16"},"=+'Schedule IVE'!S16",0,null,null,null,{"$f":"ADDRESS(23,20,1,1,$Y$1)","v":"'Premium Risk'!$T$23"},0.5,{"$f":"IF(INDIRECT(Y187)=Z187,0,1)","v":0}]
[{"$f":"ADDRESS(68,13,1,1,$A$1)","v":"Summary!$M$68"},"=ROUND('Catastrophe Risk'!E25,$Q$164)",0,{"$f":"ADDRESS(109,4,1,1,$D$1)","v":"'Fixed Income Investments'!$D$109"},"='Schedule IIB'!F72+'Schedule IIC'!F72+'Schedule IID'!F72+'Schedule IIE'!F72+'Schedule IIF'!F72",0,{"$f":"ADDRESS(29,8,1,1,$G$1)","v":"'Equity Investments'!$H$29"},"='Schedule IIB'!L53+'Schedule IIC'!L53+'Schedule IID'!L53+'Schedule IIE'!L53+'Schedule IIF'!L53",0,null,null,null,{"$f":"ADDRESS(19,16,1,1,$M$1)","v":"'Currency Risk'!$P$19"},"='Schedule XXA'!AD17",0,{"$f":"ADDRESS(68,2,1,1,$P$1)","v":"'Concentration Risk'!$B$68"},"BSCR Rating 6",{"$f":"IF(INDIRECT(P188)=Q188,0,1)","v":0},{"$f":"ADDRESS(16,24,1,1,$S$1)","v":"'Geographic Diversification'!$X$16"},"=+'Schedule IVE'!T16",0,null,null,null,{"$f":"ADDRESS(24,4,1,1,$Y$1)","v":"'Premium Risk'!$D$24"},"='Schedule IVD'!Q22",{"$f":"IF(_xlfn.FORMULATEXT(INDIRECT(Y188))=Z188,0,1)","v":0}]
[{"$f":"ADDRESS(70,7,1,1,$A$1)","v":"Summary!$G$70"},"=SUM(G55:G68)",0,{"$f":"ADDRESS(109,5,1,1,$D$1)","v":"'Fixed Income Investments'!$E$109"},"='Schedule IIB'!H72+'Schedule IIC'!H72+'Schedule IID'!H72+'Schedule IIE'!H72+'Schedule IIF'!H72",0,{"$f":"ADDRESS(29,9,1,1,$G$1)","v":"'Equity Investments'!$I$29"},"='Schedule IIB'!N53+'Schedule IIC'!N53+'Schedule IID'!N53+'Schedule IIE'!N53+'Schedule IIF'!N53",0,null,null,null,{"$f":"ADDRESS(19,17,1,1,$M$1)","v":"'Currency Risk'!$Q$19"},"='Schedule XXA'!AF17",0,{"$f":"ADDRESS(68,4,1,1,$P$1)","v":"'Concentration Risk'!$D$68"},"=SUMIFS('Schedule XXIA'!$M$8:$M$57,'Schedule XXIA'!$K$8:$K$57,$D$61,'Schedule XXIA'!$L$8:$L$57,$B68)",{"$f":"IF(_xlfn.FORMULATEXT(INDIRECT(P189))=Q189,0,1)","v":0},{"$f":"ADDRESS(16,25,1,1,$S$1)","v":"'Geographic Diversification'!$Y$16"},"=+'Schedule IVE'!U16",0,null,null,null,{"$f":"ADDRESS(24,5,1,1,$Y$1)","v":"'Premium Risk'!$E$24"},"='Schedule IVD'!O22",0]
[{"$f":"ADDRESS(70,12,1,1,$A$1)","v":"Summary!$L$70"},"=SUM(K55:K68)",0,{"$f":"ADDRESS(109,6,1,1,$D$1)","v":"'Fixed Income Investments'!$F$109"},"='Schedule IIB'!J72+'Schedule IIC'!J72+'Schedule IID'!J72+'Schedule IIE'!J72+'Schedule IIF'!J72",0,{"$f":"ADDRESS(29,10,1,1,$G$1)","v":"'Equity Investments'!$J$29"},"='Schedule IIB'!P53+'Schedule IIC'!P53+'Schedule IID'!P53+'Schedule IIE'!P53+'Schedule IIF'!P53",0,null,null,null,{"$f":"ADDRESS(19,18,1,1,$M$1)","v":"'Currency Risk'!$R$19"},"=IF('Schedule XXA'!AH17=0,Q19,'Schedule XXA'!AH17)",0,{"$f":"ADDRESS(68,5,1,1,$P$1)","v":"'Concentration Risk'!$E$68"},"=+'Fixed Income Investments (old)'!E62",{"$f":"IF(_xlfn.FORMULATEXT(INDIRECT(P190))=Q190,0,1)","v":0},{"$f":"ADDRESS(16,26,1,1,$S$1)","v":"'Geographic Diversification'!$Z$16"},"=+'Schedule IVE'!V16",0,null,null,null,{"$f":"ADDRESS(24,6,1,1,$Y$1)","v":"'Premium Risk'!$F$24"},"='Geographic Diversification'!H22",0]
[{"$f":"ADDRESS(70,14,1,1,$A$1)","v":"Summary!$N$70"},"=SUM(M55:M68)",0,{"$f":"ADDRESS(109,9,1,1,$D$1)","v":"'Fixed Income Investments'!$I$109"},"=(C109-D109)+MAX(0,E109-F109)",0,{"$f":"ADDRESS(29,11,1,1,$G$1)","v":"'Equity Investments'!$K$29"},"='Schedule IIB'!R53+'Schedule IIC'!R53+'Schedule IID'!R53+'Schedule IIE'!R53+'Schedule IIF'!R53",0,null,null,null,{"$f":"ADDRESS(19,20,1,1,$M$1)","v":"'Currency Risk'!$T$19"},"=(C19-L19)+(D19-M19)+(F19-O19)+MAX(E19-N19,0)+MAX(G19-P19,0)",0,{"$f":"ADDRESS(68,6,1,1,$P$1)","v":"'Concentration Risk'!$F$68"},"=MAX(0,(D68*E68))",{"$f":"IF(_xlfn.FORMULATEXT(INDIRECT(P191))=Q191,0,1)","v":0},{"$f":"ADDRESS(17,4,1,1,$S$1)","v":"'Geographic Diversification'!$D$17"},"=SUM(I17:Z17)",0,null,null,null,{"$f":"ADDRESS(24,7,1,1,$Y$1)","v":"'Premium Risk'!$G$24"},"=IF(IFERROR(F24/E24,1)<0,1,IFERROR(F24/E24,1))",0]
[{"$f":"ADDRESS(70,35,1,1,$A$1)","v":"Summary!$AI$70"},"=AI72&\" - \"&AJ72",0,{"$f":"ADDRESS(110,3,1,1,$D$1)","v":"'Fixed Income Investments'!$C$110"},"='Schedule IIB'!D73+'Schedule IIC'!D73+'Schedule IID'!D73+'Schedule IIE'!D73+'Schedule IIF'!D73",{"$f":"IF(_xlfn.FORMULATEXT(INDIRECT(D192))=E192,0,1)","v":0},{"$f":"ADDRESS(29,12,1,1,$G$1)","v":"'Equity Investments'!$L$29"},"='Schedule IIB'!T53+'Schedule IIC'!T53+'Schedule IID'!T53+'Schedule IIE'!T53+'Schedule IIF'!T53",0,null,null,null,{"$f":"ADDRESS(19,21,1,1,$M$1)","v":"'Currency Risk'!$U$19"},"=Q19-$H19",0,{"$f":"ADDRESS(69,2,1,1,$P$1)","v":"'Concentration Risk'!$B$69"},"BSCR Rating 7",{"$f":"IF(INDIRECT(P192)=Q192,0,1)","v":0},{"$f":"ADDRESS(17,5,1,1,$S$1)","v":"'Geographic Diversification'!$E$17"},"=SUMSQ(I17:Z17)",0,null,null,null,{"$f":"ADDRESS(24,8,1,1,$Y$1)","v":"'Premium Risk'!$H$24"},"='Schedule IVD'!I22*$G24",0]
[{"$f":"ADDRESS(70,37,1,1,$A$1)","v":"Summary!$AK$70"},"=AJ72&\" - \"&AL72",0,{"$f":"ADDRESS(110,4,1,1,$D$1)","v":"'Fixed Income Investments'!$D$110"},"='Schedule IIB'!F73+'Schedule IIC'!F73+'Schedule IID'!F73+'Schedule IIE'!F73+'Schedule IIF'!F73",0,{"$f":"ADDRESS(29,16,1,1,$G$1)","v":"'Equity Investments'!$P$29"},"=MAX(D29-E29,0)+(F29-G29)+MAX(H29-I29,0)+(K29-J29)",0,null,null,null,{"$f":"ADDRESS(19,22,1,1,$M$1)","v":"'Currency Risk'!$V$19"},"=R19-$H19",0,{"$f":"ADDRESS(69,4,1,1,$P$1)","v":"'Concentration Risk'!$D$69"},"=SUMIFS('Schedule XXIA'!$M$8:$M$57,'Schedule XXIA'!$K$8:$K$57,$D$61,'Schedule XXIA'!$L$8:$L$57,$B69)",{"$f":"IF(_xlfn.FORMULATEXT(INDIRECT(P193))=Q193,0,1)","v":0},{"$f":"ADDRESS(17,6,1,1,$S$1)","v":"'Geographic Diversification'!$F$17"},"=(IF(D17>0,E17/D17^2,1))",0,null,null,null,{"$f":"ADDRESS(24,9,1,1,$Y$1)","v":"'Premium Risk'!$I$24"},"='Schedule IVD'!K22*$G24",0]
[{"$f":"ADDRESS(70,39,1,1,$A$1)","v":"Summary!$AM$70"},"=AL72&\" - \"&AN72",0,{"$f":"ADDRESS(110,5,1,1,$D$1)","v":"'Fixed Income Investments'!$E$110"},"='Schedule IIB'!H73+'Schedule IIC'!H73+'Schedule IID'!H73+'Schedule IIE'!H73+'Schedule IIF'!H73",0,{"$f":"ADDRESS(29,18,1,1,$G$1)","v":"'Equity Investments'!$R$29"},"=MAX(D29-E29,0)+(F29-G29)+MAX(H29-I29,0)+(L29-J29)",0,null,null,null,{"$f":"ADDRESS(19,24,1,1,$M$1)","v":"'Currency Risk'!$X$19"},"=MAX(0,$T19+U19+(J19*I19))",0,{"$f":"ADDRESS(69,5,1,1,$P$1)","v":"'Concentration Risk'!$E$69"},"=+'Fixed Income Investments (old)'!E63",{"$f":"IF(_xlfn.FORMULATEXT(INDIRECT(P194))=Q194,0,1)","v":0},{"$f":"ADDRESS(17,7,1,1,$S$1)","v":"'Geographic Diversification'!$G$17"},"=D17*(0.75+0.25*F17)",0,null,null,null,{"$f":"ADDRESS(24,10,1,1,$Y$1)","v":"'Premium Risk'!$J$24"},"='Schedule IVD'!M22*$G24",0]
[{"$f":"ADDRESS(72,7,1,1,$A$1)","v":"Summary!$G$72"},"=(G55^2+G56^2+G57^2+G58^2+G60^2+G66^2+G68^2+(1/2*G63+G67)^2+(1/2*G63)^2)^0.5",0,{"$f":"ADDRESS(110,6,1,1,$D$1)","v":"'Fixed Income Investments'!$F$110"},"='Schedule IIB'!J73+'Schedule IIC'!J73+'Schedule IID'!J73+'Schedule IIE'!J73+'Schedule IIF'!J73",0,{"$f":"ADDRESS(30,4,1,1,$G$1)","v":"'Equity Investments'!$D$30"},"='Schedule IIB'!D54+'Schedule IIC'!D54+'Schedule IID'!D54+'Schedule IIE'!D54+'Schedule IIF'!D54",0,null,null,null,{"$f":"ADDRESS(19,25,1,1,$M$1)","v":"'Currency Risk'!$Y$19"},"=MAX(0,$T19+V19+(J19*I19))",0,{"$f":"ADDRESS(69,6,1,1,$P$1)","v":"'Concentration Risk'!$F$69"},"=MAX(0,(D69*E69))",{"$f":"IF(_xlfn.FORMULATEXT(INDIRECT(P195))=Q195,0,1)","v":0},{"$f":"ADDRESS(17,8,1,1,$S$1)","v":"'Geographic Diversification'!$H$17"},"=IF('Schedule IVE'!AB17=\"True\",G17,'Schedule IVD'!O17)",0,null,null,null,{"$f":"ADDRESS(24,11,1,1,$Y$1)","v":"'Premium Risk'!$K$24"},0.51225206482709496,{"$f":"IF(INDIRECT(Y195)=Z195,0,1)","v":0}]
[{"$f":"ADDRESS(72,12,1,1,$A$1)","v":"Summary!$L$72"},"{=SQRT(MMULT(TRANSPOSE('Correlation Matrix'!Z6:Z8),MMULT('Correlation Matrix'!O7:Q9,'Correlation Matrix'!Z6:Z8)))}",0,{"$f":"ADDRESS(110,9,1,1,$D$1)","v":"'Fixed Income Investments'!$I$110"},"=(C110-D110)+MAX(0,E110-F110)",0,{"$f":"ADDRESS(30,5,1,1,$G$1)","v":"'Equity Investments'!$E$30"},"='Schedule IIB'!F54+'Schedule IIC'!F54+'Schedule IID'!F54+'Schedule IIE'!F54+'Schedule IIF'!F54",0,null,null,null,{"$f":"ADDRESS(20,2,1,1,$M$1)","v":"'Currency Risk'!$B$20"},"='Schedule XXA'!B18",0,{"$f":"ADDRESS(70,2,1,1,$P$1)","v":"'Concentration Risk'!$B$70"},"BSCR Rating 8",{"$f":"IF(INDIRECT(P196)=Q196,0,1)","v":0},{"$f":"ADDRESS(17,9,1,1,$S$1)","v":"'Geographic Diversification'!$I$17"},"=+'Schedule IVE'!E17",{"$f":"IF(_xlfn.FORMULATEXT(INDIRECT(S196))=T196,0,1)","v":0},null,null,null,{"$f":"ADDRESS(24,12,1,1,$Y$1)","v":"'Premium Risk'!$L$24"},"=+K24*S24",{"$f":"IF(_xlfn.FORMULATEXT(INDIRECT(Y196))=Z196,0,1)","v":0}]
[{"$f":"ADDRESS(72,14,1,1,$A$1)","v":"Summary!$N$72"},"{=SQRT(MMULT(TRANSPOSE('Correlation Matrix'!W6:W8),MMULT('Correlation Matrix'!O7:Q9,'Correlation Matrix'!W6:W8)))}",0,{"$f":"ADDRESS(111,3,1,1,$D$1)","v":"'Fixed Income Investments'!$C$111"},"='Schedule IIB'!D74+'Schedule IIC'!D74+'Schedule IID'!D74+'Schedule IIE'!D74+'Schedule IIF'!D74",0,{"$f":"ADDRESS(30,6,1,1,$G$1)","v":"'Equity Investments'!$F$30"},"='Schedule IIB'!H54+'Schedule IIC'!H54+'Schedule IID'!H54+'Schedule IIE'!H54+'Schedule IIF'!H54",0,null,null,null,{"$f":"ADDRESS(20,3,1,1,$M$1)","v":"'Currency Risk'!$C$20"},"='Schedule XXA'!D18",0,{"$f":"ADDRESS(70,4,1,1,$P$1)","v":"'Concentration Risk'!$D$70"},"=SUMIFS('Schedule XXIA'!$M$8:$M$57,'Schedule XXIA'!$K$8:$K$57,$D$61,'Schedule XXIA'!$L$8:$L$57,$B70)",{"$f":"IF(_xlfn.FORMULATEXT(INDIRECT(P197))=Q197,0,1)","v":0},{"$f":"ADDRESS(17,10,1,1,$S$1)","v":"'Geographic Diversification'!$J$17"},"=+'Schedule IVE'!F17",0,null,null,null,{"$f":"ADDRESS(24,13,1,1,$Y$1)","v":"'Premium Risk'!$M$24"},"=+L24*T24",{"$f":"IF(_xlfn.FORMULATEXT(INDIRECT(Y197))=Z197,0,1)","v":0}]
[{"$f":"ADDRESS(72,35,1,1,$A$1)","v":"Summary!$AI$72"},0,{"$f":"IF(INDIRECT(A198)=B198,0,1)","v":0},{"$f":"ADDRESS(111,4,1,1,$D$1)","v":"'Fixed Income Investments'!$D$111"},"='Schedule IIB'!F74+'Schedule IIC'!F74+'Schedule IID'!F74+'Schedule IIE'!F74+'Schedule IIF'!F74",0,{"$f":"ADDRESS(30,7,1,1,$G$1)","v":"'Equity Investments'!$G$30"},"='Schedule IIB'!J54+'Schedule IIC'!J54+'Schedule IID'!J54+'Schedule IIE'!J54+'Schedule IIF'!J54",0,null,null,null,{"$f":"ADDRESS(20,4,1,1,$M$1)","v":"'Currency Risk'!$D$20"},"='Schedule XXA'!F18",0,{"$f":"ADDRESS(70,5,1,1,$P$1)","v":"'Concentration Risk'!$E$70"},"=+'Fixed Income Investments (old)'!E64",{"$f":"IF(_xlfn.FORMULATEXT(INDIRECT(P198))=Q198,0,1)","v":0},{"$f":"ADDRESS(17,11,1,1,$S$1)","v":"'Geographic Diversification'!$K$17"},"=+'Schedule IVE'!G17",0,null,null,null,{"$f":"ADDRESS(24,14,1,1,$Y$1)","v":"'Premium Risk'!$N$24"},"=IF($H24<0,0,$H24*$K24)+IF($I24<0,0,$I24*$L24)+IF($J24<0,0,$J24*$M24)",{"$f":"IF(_xlfn.FORMULATEXT(INDIRECT(Y198))=Z198,0,1)","v":0}]
[{"$f":"ADDRESS(72,36,1,1,$A$1)","v":"Summary!$AJ$72"},"=0.5-AI90",{"$f":"IF(_xlfn.FORMULATEXT(INDIRECT(A199))=B199,0,1)","v":0},{"$f":"ADDRESS(111,5,1,1,$D$1)","v":"'Fixed Income Investments'!$E$111"},"='Schedule IIB'!H74+'Schedule IIC'!H74+'Schedule IID'!H74+'Schedule IIE'!H74+'Schedule IIF'!H74",0,{"$f":"ADDRESS(30,8,1,1,$G$1)","v":"'Equity Investments'!$H$30"},"='Schedule IIB'!L54+'Schedule IIC'!L54+'Schedule IID'!L54+'Schedule IIE'!L54+'Schedule IIF'!L54",0,null,null,null,{"$f":"ADDRESS(20,5,1,1,$M$1)","v":"'Currency Risk'!$E$20"},"='Schedule XXA'!H18",0,{"$f":"ADDRESS(70,6,1,1,$P$1)","v":"'Concentration Risk'!$F$70"},"=MAX(0,(D70*E70))",{"$f":"IF(_xlfn.FORMULATEXT(INDIRECT(P199))=Q199,0,1)","v":0},{"$f":"ADDRESS(17,12,1,1,$S$1)","v":"'Geographic Diversification'!$L$17"},"=+'Schedule IVE'!H17",0,null,null,null,{"$f":"ADDRESS(24,17,1,1,$Y$1)","v":"'Premium Risk'!$Q$24"},"=IF(H24=E24,MAX(D24*K24,0),IF(E24=F24,IF(D24<0,0,D24*(H24/F24)*K24),IF(D24<0,0,D24*(H24/E24)*K24)))\n+IF(I24=E24,MAX(D24*L24,0),IF(E24=F24,IF(D24<0,0,D24*(I24/F24)*L24),IF(D24<0,0,D24*(I24/E24)*L24)))\n+IF(J24=E24,MAX(D24*M24,0),IF(E24=F24,IF(D24<0,0,D24*(J24/F24)*M24),IF(D24<0,0,D24*(J24/E24)*M24)))",{"$f":"IF(_xlfn.FORMULATEXT(INDIRECT(Y199))=Z199,0,1)","v":0}]
[{"$f":"ADDRESS(72,37,1,1,$A$1)","v":"Summary!$AK$72"},"=AJ72",{"$f":"IF(_xlfn.FORMULATEXT(INDIRECT(A200))=B200,0,1)","v":0},{"$f":"ADDRESS(111,6,1,1,$D$1)","v":"'Fixed Income Investments'!$F$111"},"='Schedule IIB'!J74+'Schedule IIC'!J74+'Schedule IID'!J74+'Schedule IIE'!J74+'Schedule IIF'!J74",0,{"$f":"ADDRESS(30,9,1,1,$G$1)","v":"'Equity Investments'!$I$30"},"='Schedule IIB'!N54+'Schedule IIC'!N54+'Schedule IID'!N54+'Schedule IIE'!N54+'Schedule IIF'!N54",{"$f":"IF(_xlfn.FORMULATEXT(INDIRECT(G200))=H200,0,1)","v":0},null,null,null,{"$f":"ADDRESS(20,6,1,1,$M$1)","v":"'Currency Risk'!$F$20"},"='Schedule XXA'!J18",0,{"$f":"ADDRESS(72,4,1,1,$P$1)","v":"'Concentration Risk'!$D$72"},"=SUM(D61:D70)",{"$f":"IF(_xlfn.FORMULATEXT(INDIRECT(P200))=Q200,0,1)","v":0},{"$f":"ADDRESS(17,13,1,1,$S$1)","v":"'Geographic Diversification'!$M$17"},"=+'Schedule IVE'!I17",0,null,null,null,{"$f":"ADDRESS(24,19,1,1,$Y$1)","v":"'Premium Risk'!$S$24"},0.5,{"$f":"IF(INDIRECT(Y200)=Z200,0,1)","v":0}]
[{"$f":"ADDRESS(72,38,1,1,$A$1)","v":"Summary!$AL$72"},"=0.5+AI90",{"$f":"IF(_xlfn.FORMULATEXT(INDIRECT(A201))=B201,0,1)","v":0},{"$f":"ADDRESS(111,9,1,1,$D$1)","v":"'Fixed Income Investments'!$I$111"},"=(C111-D111)+MAX(0,E111-F111)",0,{"$f":"ADDRESS(30,10,1,1,$G$1)","v":"'Equity Investments'!$J$30"},"='Schedule IIB'!P54+'Schedule IIC'!P54+'Schedule IID'!P54+'Schedule IIE'!P54+'Schedule IIF'!P54",0,null,null,null,{"$f":"ADDRESS(20,7,1,1,$M$1)","v":"'Currency Risk'!$G$20"},"='Schedule XXA'!L18",0,{"$f":"ADDRESS(72,6,1,1,$P$1)","v":"'Concentration Risk'!$F$72"},"=SUM(F61:F70)",{"$f":"IF(_xlfn.FORMULATEXT(INDIRECT(P201))=Q201,0,1)","v":0},{"$f":"ADDRESS(17,14,1,1,$S$1)","v":"'Geographic Diversification'!$N$17"},"=+'Schedule IVE'!J17",0,null,null,null,{"$f":"ADDRESS(24,20,1,1,$Y$1)","v":"'Premium Risk'!$T$24"},0.5,{"$f":"IF(INDIRECT(Y201)=Z201,0,1)","v":0}]
[{"$f":"ADDRESS(72,39,1,1,$A$1)","v":"Summary!$AM$72"},"=AL72",{"$f":"IF(_xlfn.FORMULATEXT(INDIRECT(A202))=B202,0,1)","v":0},{"$f":"ADDRESS(112,3,1,1,$D$1)","v":"'Fixed Income Investments'!$C$112"},"='Schedule IIB'!D75+'Schedule IIC'!D75+'Schedule IID'!D75+'Schedule IIE'!D75+'Schedule IIF'!D75",0,{"$f":"ADDRESS(30,11,1,1,$G$1)","v":"'Equity Investments'!$K$30"},"='Schedule IIB'!R54+'Schedule IIC'!R54+'Schedule IID'!R54+'Schedule IIE'!R54+'Schedule IIF'!R54",0,null,null,null,{"$f":"ADDRESS(20,8,1,1,$M$1)","v":"'Currency Risk'!$H$20"},"='Schedule XXA'!N18",0,{"$f":"ADDRESS(74,4,1,1,$P$1)","v":"'Concentration Risk'!$D$74"},"Preferred Shares",{"$f":"IF(INDIRECT(P202)=Q202,0,1)","v":0},{"$f":"ADDRESS(17,15,1,1,$S$1)","v":"'Geographic Diversification'!$O$17"},"=+'Schedule IVE'!K17",0,null,null,null,{"$f":"ADDRESS(25,4,1,1,$Y$1)","v":"'Premium Risk'!$D$25"},"='Schedule IVD'!Q23",{"$f":"IF(_xlfn.FORMULATEXT(INDIRECT(Y202))=Z202,0,1)","v":0}]
[{"$f":"ADDRESS(72,40,1,1,$A$1)","v":"Summary!$AN$72"},1,{"$f":"IF(INDIRECT(A203)=B203,0,1)","v":0},{"$f":"ADDRESS(112,4,1,1,$D$1)","v":"'Fixed Income Investments'!$D$112"},"='Schedule IIB'!F75+'Schedule IIC'!F75+'Schedule IID'!F75+'Schedule IIE'!F75+'Schedule IIF'!F75",0,{"$f":"ADDRESS(30,12,1,1,$G$1)","v":"'Equity Investments'!$L$30"},"='Schedule IIB'!T54+'Schedule IIC'!T54+'Schedule IID'!T54+'Schedule IIE'!T54+'Schedule IIF'!T54",0,null,null,null,{"$f":"ADDRESS(20,9,1,1,$M$1)","v":"'Currency Risk'!$I$20"},"=$I$10*H20",0,{"$f":"ADDRESS(75,2,1,1,$P$1)","v":"'Concentration Risk'!$B$75"},"BSCR Rating 0",{"$f":"IF(INDIRECT(P203)=Q203,0,1)","v":0},{"$f":"ADDRESS(17,16,1,1,$S$1)","v":"'Geographic Diversification'!$P$17"},"=+'Schedule IVE'!L17",0,null,null,null,{"$f":"ADDRESS(25,5,1,1,$Y$1)","v":"'Premium Risk'!$E$25"},"='Schedule IVD'!O23",0]
[{"$f":"ADDRESS(74,7,1,1,$A$1)","v":"Summary!$G$74"},"='Op Risk (old)'!D23",{"$f":"IF(_xlfn.FORMULATEXT(INDIRECT(A204))=B204,0,1)","v":0},{"$f":"ADDRESS(112,5,1,1,$D$1)","v":"'Fixed Income Investments'!$E$112"},"='Schedule IIB'!H75+'Schedule IIC'!H75+'Schedule IID'!H75+'Schedule IIE'!H75+'Schedule IIF'!H75",0,{"$f":"ADDRESS(30,16,1,1,$G$1)","v":"'Equity Investments'!$P$30"},"=MAX(D30-E30,0)+(F30-G30)+MAX(H30-I30,0)+(K30-J30)",0,null,null,null,{"$f":"ADDRESS(20,10,1,1,$M$1)","v":"'Currency Risk'!$J$20"},"=IF($B$12=\"Euro\",IF((SUM(C20:G20))>(H20+I20),0%,1.96%),IF((SUM(C20:G20))>(H20+I20),0%,25%))",0,{"$f":"ADDRESS(75,4,1,1,$P$1)","v":"'Concentration Risk'!$D$75"},"=SUMIFS('Schedule XXIA'!$M$8:$M$57,'Schedule XXIA'!$J$8:$J$57,$D$74,'Schedule XXIA'!$L$8:$L$57,$B75)",{"$f":"IF(_xlfn.FORMULATEXT(INDIRECT(P204))=Q204,0,1)","v":0},{"$f":"ADDRESS(17,17,1,1,$S$1)","v":"'Geographic Diversification'!$Q$17"},"=+'Schedule IVE'!M17",0,null,null,null,{"$f":"ADDRESS(25,6,1,1,$Y$1)","v":"'Premium Risk'!$F$25"},"='Geographic Diversification'!H23",0]
[{"$f":"ADDRESS(74,14,1,1,$A$1)","v":"Summary!$N$74"},"='Op Risk'!D23",0,{"$f":"ADDRESS(112,6,1,1,$D$1)","v":"'Fixed Income Investments'!$F$112"},"='Schedule IIB'!J75+'Schedule IIC'!J75+'Schedule IID'!J75+'Schedule IIE'!J75+'Schedule IIF'!J75",0,{"$f":"ADDRESS(30,18,1,1,$G$1)","v":"'Equity Investments'!$R$30"},"=MAX(D30-E30,0)+(F30-G30)+MAX(H30-I30,0)+(L30-J30)",0,null,null,null,{"$f":"ADDRESS(20,12,1,1,$M$1)","v":"'Currency Risk'!$L$20"},"='Schedule XXA'!V18",0,{"$f":"ADDRESS(75,5,1,1,$P$1)","v":"'Concentration Risk'!$E$75"},0,{"$f":"IF(INDIRECT(P205)=Q205,0,1)","v":0},{"$f":"ADDRESS(17,18,1,1,$S$1)","v":"'Geographic Diversification'!$R$17"},"=+'Schedule IVE'!N17",0,null,null,null,{"$f":"ADDRESS(25,7,1,1,$Y$1)","v":"'Premium Risk'!$G$25"},"=IF(IFERROR(F25/E25,1)<0,1,IFERROR(F25/E25,1))",0]
[{"$f":"ADDRESS(76,7,1,1,$A$1)","v":"Summary!$G$76"},"=$G$72*$G$74",0,{"$f":"ADDRESS(112,9,1,1,$D$1)","v":"'Fixed Income Investments'!$I$112"},"=(C112-D112)+MAX(0,E112-F112)",0,{"$f":"ADDRESS(31,4,1,1,$G$1)","v":"'Equity Investments'!$D$31"},"='Schedule IIB'!D55+'Schedule IIC'!D55+'Schedule IID'!D55+'Schedule IIE'!D55+'Schedule IIF'!D55",0,null,null,null,{"$f":"ADDRESS(20,13,1,1,$M$1)","v":"'Currency Risk'!$M$20"},"='Schedule XXA'!X18",0,{"$f":"ADDRESS(75,6,1,1,$P$1)","v":"'Concentration Risk'!$F$75"},"=MAX(0,(D75*E75))",{"$f":"IF(_xlfn.FORMULATEXT(INDIRECT(P206))=Q206,0,1)","v":0},{"$f":"ADDRESS(17,19,1,1,$S$1)","v":"'Geographic Diversification'!$S$17"},"=+'Schedule IVE'!O17",0,null,null,null,{"$f":"ADDRESS(25,8,1,1,$Y$1)","v":"'Premium Risk'!$H$25"},"='Schedule IVD'!I23*$G25",0]
[{"$f":"ADDRESS(76,14,1,1,$A$1)","v":"Summary!$N$76"},"=($N$72+M145)*$N$74",0,{"$f":"ADDRESS(113,3,1,1,$D$1)","v":"'Fixed Income Investments'!$C$113"},"='Schedule IIB'!D76+'Schedule IIC'!D76+'Schedule IID'!D76+'Schedule IIE'!D76+'Schedule IIF'!D76",0,{"$f":"ADDRESS(31,5,1,1,$G$1)","v":"'Equity Investments'!$E$31"},"='Schedule IIB'!F55+'Schedule IIC'!F55+'Schedule IID'!F55+'Schedule IIE'!F55+'Schedule IIF'!F55",0,null,null,null,{"$f":"ADDRESS(20,14,1,1,$M$1)","v":"'Currency Risk'!$N$20"},"='Schedule XXA'!Z18",0,{"$f":"ADDRESS(76,2,1,1,$P$1)","v":"'Concentration Risk'!$B$76"},"BSCR Rating 1",{"$f":"IF(INDIRECT(P207)=Q207,0,1)","v":0},{"$f":"ADDRESS(17,20,1,1,$S$1)","v":"'Geographic Diversification'!$T$17"},"=+'Schedule IVE'!P17",0,null,null,null,{"$f":"ADDRESS(25,9,1,1,$Y$1)","v":"'Premium Risk'!$I$25"},"='Schedule IVD'!K23*$G25",0]
[{"$f":"ADDRESS(76,26,1,1,$A$1)","v":"Summary!$Z$76"},"=MAX(Z84,Z86,Z90)",0,{"$f":"ADDRESS(113,4,1,1,$D$1)","v":"'Fixed Income Investments'!$D$113"},"='Schedule IIB'!F76+'Schedule IIC'!F76+'Schedule IID'!F76+'Schedule IIE'!F76+'Schedule IIF'!F76",0,{"$f":"ADDRESS(31,6,1,1,$G$1)","v":"'Equity Investments'!$F$31"},"='Schedule IIB'!H55+'Schedule IIC'!H55+'Schedule IID'!H55+'Schedule IIE'!H55+'Schedule IIF'!H55",0,null,null,null,{"$f":"ADDRESS(20,15,1,1,$M$1)","v":"'Currency Risk'!$O$20"},"='Schedule XXA'!AB18",0,{"$f":"ADDRESS(76,4,1,1,$P$1)","v":"'Concentration Risk'!$D$76"},"=SUMIFS('Schedule XXIA'!$M$8:$M$57,'Schedule XXIA'!$J$8:$J$57,$D$74,'Schedule XXIA'!$L$8:$L$57,$B76)",{"$f":"IF(_xlfn.FORMULATEXT(INDIRECT(P208))=Q208,0,1)","v":0},{"$f":"ADDRESS(17,21,1,1,$S$1)","v":"'Geographic Diversification'!$U$17"},"=+'Schedule IVE'!Q17",0,null,null,null,{"$f":"ADDRESS(25,10,1,1,$Y$1)","v":"'Premium Risk'!$J$25"},"='Schedule IVD'!M23*$G25",0]
[{"$f":"ADDRESS(76,29,1,1,$A$1)","v":"Summary!$AC$76"},"=MAX($Z$76,$N$88)",0,{"$f":"ADDRESS(113,5,1,1,$D$1)","v":"'Fixed Income Investments'!$E$113"},"='Schedule IIB'!H76+'Schedule IIC'!H76+'Schedule IID'!H76+'Schedule IIE'!H76+'Schedule IIF'!H76",0,{"$f":"ADDRESS(31,7,1,1,$G$1)","v":"'Equity Investments'!$G$31"},"='Schedule IIB'!J55+'Schedule IIC'!J55+'Schedule IID'!J55+'Schedule IIE'!J55+'Schedule IIF'!J55",0,null,null,null,{"$f":"ADDRESS(20,16,1,1,$M$1)","v":"'Currency Risk'!$P$20"},"='Schedule XXA'!AD18",0,{"$f":"ADDRESS(76,5,1,1,$P$1)","v":"'Concentration Risk'!$E$76"},6.0000000000000001E-3,{"$f":"IF(INDIRECT(P209)=Q209,0,1)","v":0},{"$f":"ADDRESS(17,22,1,1,$S$1)","v":"'Geographic Diversification'!$V$17"},"=+'Schedule IVE'!R17",0,null,null,null,{"$f":"ADDRESS(25,11,1,1,$Y$1)","v":"'Premium Risk'!$K$25"},0.53805556666757803,{"$f":"IF(INDIRECT(Y209)=Z209,0,1)","v":0}]
[{"$f":"ADDRESS(78,7,1,1,$A$1)","v":"Summary!$G$78"},"=+'Schedule XVI'!M211",0,{"$f":"ADDRESS(113,6,1,1,$D$1)","v":"'Fixed Income Investments'!$F$113"},"='Schedule IIB'!J76+'Schedule IIC'!J76+'Schedule IID'!J76+'Schedule IIE'!J76+'Schedule IIF'!J76",0,{"$f":"ADDRESS(31,8,1,1,$G$1)","v":"'Equity Investments'!$H$31"},"='Schedule IIB'!L55+'Schedule IIC'!L55+'Schedule IID'!L55+'Schedule IIE'!L55+'Schedule IIF'!L55",0,null,null,null,{"$f":"ADDRESS(20,17,1,1,$M$1)","v":"'Currency Risk'!$Q$20"},"='Schedule XXA'!AF18",0,{"$f":"ADDRESS(76,6,1,1,$P$1)","v":"'Concentration Risk'!$F$76"},"=MAX(0,(D76*E76))",{"$f":"IF(_xlfn.FORMULATEXT(INDIRECT(P210))=Q210,0,1)","v":0},{"$f":"ADDRESS(17,23,1,1,$S$1)","v":"'Geographic Diversification'!$W$17"},"=+'Schedule IVE'!S17",0,null,null,null,{"$f":"ADDRESS(25,12,1,1,$Y$1)","v":"'Premium Risk'!$L$25"},"=+K25*S25",{"$f":"IF(_xlfn.FORMULATEXT(INDIRECT(Y210))=Z210,0,1)","v":0}]
[{"$f":"ADDRESS(78,14,1,1,$A$1)","v":"Summary!$N$78"},"=+'Schedule XVI'!M211",0,{"$f":"ADDRESS(113,9,1,1,$D$1)","v":"'Fixed Income Investments'!$I$113"},"=(C113-D113)+MAX(0,E113-F113)",0,{"$f":"ADDRESS(31,9,1,1,$G$1)","v":"'Equity Investments'!$I$31"},"='Schedule IIB'!N55+'Schedule IIC'!N55+'Schedule IID'!N55+'Schedule IIE'!N55+'Schedule IIF'!N55",0,null,null,null,{"$f":"ADDRESS(20,18,1,1,$M$1)","v":"'Currency Risk'!$R$20"},"=IF('Schedule XXA'!AH18=0,Q20,'Schedule XXA'!AH18)",0,{"$f":"ADDRESS(77,2,1,1,$P$1)","v":"'Concentration Risk'!$B$77"},"BSCR Rating 2",{"$f":"IF(INDIRECT(P211)=Q211,0,1)","v":0},{"$f":"ADDRESS(17,24,1,1,$S$1)","v":"'Geographic Diversification'!$X$17"},"=+'Schedule IVE'!T17",0,null,null,null,{"$f":"ADDRESS(25,13,1,1,$Y$1)","v":"'Premium Risk'!$M$25"},"=+L25*T25",{"$f":"IF(_xlfn.FORMULATEXT(INDIRECT(Y211))=Z211,0,1)","v":0}]
[{"$f":"ADDRESS(80,14,1,1,$A$1)","v":"Summary!$N$80"},"=M145",0,{"$f":"ADDRESS(114,3,1,1,$D$1)","v":"'Fixed Income Investments'!$C$114"},"=SUM(C105:C113)",0,{"$f":"ADDRESS(31,10,1,1,$G$1)","v":"'Equity Investments'!$J$31"},"='Schedule IIB'!P55+'Schedule IIC'!P55+'Schedule IID'!P55+'Schedule IIE'!P55+'Schedule IIF'!P55",0,null,null,null,{"$f":"ADDRESS(20,20,1,1,$M$1)","v":"'Currency Risk'!$T$20"},"=(C20-L20)+(D20-M20)+(F20-O20)+MAX(E20-N20,0)+MAX(G20-P20,0)",0,{"$f":"ADDRESS(77,4,1,1,$P$1)","v":"'Concentration Risk'!$D$77"},"=SUMIFS('Schedule XXIA'!$M$8:$M$57,'Schedule XXIA'!$J$8:$J$57,$D$74,'Schedule XXIA'!$L$8:$L$57,$B77)",{"$f":"IF(_xlfn.FORMULATEXT(INDIRECT(P212))=Q212,0,1)","v":0},{"$f":"ADDRESS(17,25,1,1,$S$1)","v":"'Geographic Diversification'!$Y$17"},"=+'Schedule IVE'!U17",0,null,null,null,{"$f":"ADDRESS(25,14,1,1,$Y$1)","v":"'Premium Risk'!$N$25"},"=IF($H25<0,0,$H25*$K25)+IF($I25<0,0,$I25*$L25)+IF($J25<0,0,$J25*$M25)",{"$f":"IF(_xlfn.FORMULATEXT(INDIRECT(Y212))=Z212,0,1)","v":0}]
[{"$f":"ADDRESS(82,14,1,1,$A$1)","v":"Summary!$N$82"},"=M150",0,{"$f":"ADDRESS(114,4,1,1,$D$1)","v":"'Fixed Income Investments'!$D$114"},"=SUM(D105:D113)",0,{"$f":"ADDRESS(31,11,1,1,$G$1)","v":"'Equity Investments'!$K$31"},"='Schedule IIB'!R55+'Schedule IIC'!R55+'Schedule IID'!R55+'Schedule IIE'!R55+'Schedule IIF'!R55",0,null,null,null,{"$f":"ADDRESS(20,21,1,1,$M$1)","v":"'Currency Risk'!$U$20"},"=Q20-$H20",0,{"$f":"ADDRESS(77,5,1,1,$P$1)","v":"'Concentration Risk'!$E$77"},1.2E-2,{"$f":"IF(INDIRECT(P213)=Q213,0,1)","v":0},{"$f":"ADDRESS(17,26,1,1,$S$1)","v":"'Geographic Diversification'!$Z$17"},"=+'Schedule IVE'!V17",0,null,null,null,{"$f":"ADDRESS(25,17,1,1,$Y$1)","v":"'Premium Risk'!$Q$25"},"=IF(H25=E25,MAX(D25*K25,0),IF(E25=F25,IF(D25<0,0,D25*(H25/F25)*K25),IF(D25<0,0,D25*(H25/E25)*K25)))\n+IF(I25=E25,MAX(D25*L25,0),IF(E25=F25,IF(D25<0,0,D25*(I25/F25)*L25),IF(D25<0,0,D25*(I25/E25)*L25)))\n+IF(J25=E25,MAX(D25*M25,0),IF(E25=F25,IF(D25<0,0,D25*(J25/F25)*M25),IF(D25<0,0,D25*(J25/E25)*M25)))",{"$f":"IF(_xlfn.FORMULATEXT(INDIRECT(Y213))=Z213,0,1)","v":0}]
[{"$f":"ADDRESS(84,7,1,1,$A$1)","v":"Summary!$G$84"},"='CSP (old)'!I532-'CSP (old)'!F532",0,{"$f":"ADDRESS(114,5,1,1,$D$1)","v":"'Fixed Income Investments'!$E$114"},"=SUM(E105:E113)",0,{"$f":"ADDRESS(31,12,1,1,$G$1)","v":"'Equity Investments'!$L$31"},"='Schedule IIB'!T55+'Schedule IIC'!T55+'Schedule IID'!T55+'Schedule IIE'!T55+'Schedule IIF'!T55",0,null,null,null,{"$f":"ADDRESS(20,22,1,1,$M$1)","v":"'Currency Risk'!$V$20"},"=R20-$H20",0,{"$f":"ADDRESS(77,6,1,1,$P$1)","v":"'Concentration Risk'!$F$77"},"=MAX(0,(D77*E77))",{"$f":"IF(_xlfn.FORMULATEXT(INDIRECT(P214))=Q214,0,1)","v":0},{"$f":"ADDRESS(18,4,1,1,$S$1)","v":"'Geographic Diversification'!$D$18"},"=SUM(I18:Z18)",0,null,null,null,{"$f":"ADDRESS(25,19,1,1,$Y$1)","v":"'Premium Risk'!$S$25"},0.5,{"$f":"IF(INDIRECT(Y214)=Z214,0,1)","v":0}]
[{"$f":"ADDRESS(84,14,1,1,$A$1)","v":"Summary!$N$84"},"='Company Specific Parameters'!L707-'Company Specific Parameters'!I707",0,{"$f":"ADDRESS(114,6,1,1,$D$1)","v":"'Fixed Income Investments'!$F$114"},"=SUM(F105:F113)",0,{"$f":"ADDRESS(31,16,1,1,$G$1)","v":"'Equity Investments'!$P$31"},"=MAX(D31-E31,0)+(F31-G31)+MAX(H31-I31,0)+(K31-J31)",0,null,null,null,{"$f":"ADDRESS(20,24,1,1,$M$1)","v":"'Currency Risk'!$X$20"},"=MAX(0,$T20+U20+(J20*I20))",0,{"$f":"ADDRESS(78,2,1,1,$P$1)","v":"'Concentration Risk'!$B$78"},"BSCR Rating 3",{"$f":"IF(INDIRECT(P215)=Q215,0,1)","v":0},{"$f":"ADDRESS(18,5,1,1,$S$1)","v":"'Geographic Diversification'!$E$18"},"=SUMSQ(I18:Z18)",0,null,null,null,{"$f":"ADDRESS(25,20,1,1,$Y$1)","v":"'Premium Risk'!$T$25"},0.5,{"$f":"IF(INDIRECT(Y215)=Z215,0,1)","v":0}]
[{"$f":"ADDRESS(84,26,1,1,$A$1)","v":"Summary!$Z$84"},"='Form 1SFS (Consolidated)'!M105*15%",0,{"$f":"ADDRESS(114,9,1,1,$D$1)","v":"'Fixed Income Investments'!$I$114"},"=MAX(SUM(I105:I113),0)",0,{"$f":"ADDRESS(31,18,1,1,$G$1)","v":"'Equity Investments'!$R$31"},"=MAX(D31-E31,0)+(F31-G31)+MAX(H31-I31,0)+(L31-J31)",0,null,null,null,{"$f":"ADDRESS(20,25,1,1,$M$1)","v":"'Currency Risk'!$Y$20"},"=MAX(0,$T20+V20+(J20*I20))",0,{"$f":"ADDRESS(78,4,1,1,$P$1)","v":"'Concentration Risk'!$D$78"},"=SUMIFS('Schedule XXIA'!$M$8:$M$57,'Schedule XXIA'!$J$8:$J$57,$D$74,'Schedule XXIA'!$L$8:$L$57,$B78)",{"$f":"IF(_xlfn.FORMULATEXT(INDIRECT(P216))=Q216,0,1)","v":0},{"$f":"ADDRESS(18,6,1,1,$S$1)","v":"'Geographic Diversification'!$F$18"},"=(IF(D18>0,E18/D18^2,1))",0,null,null,null,{"$f":"ADDRESS(26,4,1,1,$Y$1)","v":"'Premium Risk'!$D$26"},"='Schedule IVD'!Q24",{"$f":"IF(_xlfn.FORMULATEXT(INDIRECT(Y216))=Z216,0,1)","v":0}]
[{"$f":"ADDRESS(86,12,1,1,$A$1)","v":"Summary!$L$86"},"=IF('Information Sheet'!$H$13>='Correlation Matrix'!$S$8,'Correlation Matrix'!$T$8,IF('Information Sheet'!$H$13>='Correlation Matrix'!$S$7,'Correlation Matrix'!$T$7,'Correlation Matrix'!$T$6))",0,{"$f":"ADDRESS(120,3,1,1,$D$1)","v":"'Fixed Income Investments'!$C$120"},"='Schedule IIB'!N68+'Schedule IIC'!N68+'Schedule IID'!N68+'Schedule IIE'!N68+'Schedule IIF'!N68",0,{"$f":"ADDRESS(32,4,1,1,$G$1)","v":"'Equity Investments'!$D$32"},"='Schedule IIB'!D56+'Schedule IIC'!D56+'Schedule IID'!D56+'Schedule IIE'!D56+'Schedule IIF'!D56",0,null,null,null,{"$f":"ADDRESS(21,2,1,1,$M$1)","v":"'Currency Risk'!$B$21"},"='Schedule XXA'!B19",0,{"$f":"ADDRESS(78,5,1,1,$P$1)","v":"'Concentration Risk'!$E$78"},0.02,{"$f":"IF(INDIRECT(P217)=Q217,0,1)","v":0},{"$f":"ADDRESS(18,7,1,1,$S$1)","v":"'Geographic Diversification'!$G$18"},"=D18*(0.75+0.25*F18)",0,null,null,null,{"$f":"ADDRESS(26,5,1,1,$Y$1)","v":"'Premium Risk'!$E$26"},"='Schedule IVD'!O24",0]
[{"$f":"ADDRESS(86,14,1,1,$A$1)","v":"Summary!$N$86"},"=G88+((N88-G88)*L86)",0,{"$f":"ADDRESS(120,4,1,1,$D$1)","v":"'Fixed Income Investments'!$D$120"},"='Schedule IIB'!P68+'Schedule IIC'!P68+'Schedule IID'!P68+'Schedule IIE'!P68+'Schedule IIF'!P68",0,{"$f":"ADDRESS(32,5,1,1,$G$1)","v":"'Equity Investments'!$E$32"},"='Schedule IIB'!F56+'Schedule IIC'!F56+'Schedule IID'!F56+'Schedule IIE'!F56+'Schedule IIF'!F56",0,null,null,null,{"$f":"ADDRESS(21,3,1,1,$M$1)","v":"'Currency Risk'!$C$21"},"='Schedule XXA'!D19",0,{"$f":"ADDRESS(78,6,1,1,$P$1)","v":"'Concentration Risk'!$F$78"},"=MAX(0,(D78*E78))",{"$f":"IF(_xlfn.FORMULATEXT(INDIRECT(P218))=Q218,0,1)","v":0},{"$f":"ADDRESS(18,8,1,1,$S$1)","v":"'Geographic Diversification'!$H$18"},"=IF('Schedule IVE'!AB18=\"True\",G18,'Schedule IVD'!O18)",0,null,null,null,{"$f":"ADDRESS(26,6,1,1,$Y$1)","v":"'Premium Risk'!$F$26"},"='Geographic Diversification'!H24",0]
[{"$f":"ADDRESS(86,26,1,1,$A$1)","v":"Summary!$Z$86"},"=IF('Company Information'!F11=\"Class 4\",IF(CONFIGURATION!B12=1000,100000,100000000),IF(CONFIGURATION!B12=1000,1000,1000000))*IFERROR((1/'Information Sheet'!$H$18),1)",0,{"$f":"ADDRESS(120,5,1,1,$D$1)","v":"'Fixed Income Investments'!$E$120"},"='Schedule IIB'!R68+'Schedule IIC'!R68+'Schedule IID'!R68+'Schedule IIE'!R68+'Schedule IIF'!R68",0,{"$f":"ADDRESS(32,6,1,1,$G$1)","v":"'Equity Investments'!$F$32"},"='Schedule IIB'!H56+'Schedule IIC'!H56+'Schedule IID'!H56+'Schedule IIE'!H56+'Schedule IIF'!H56",0,null,null,null,{"$f":"ADDRESS(21,4,1,1,$M$1)","v":"'Currency Risk'!$D$21"},"='Schedule XXA'!F19",0,{"$f":"ADDRESS(79,2,1,1,$P$1)","v":"'Concentration Risk'!$B$79"},"BSCR Rating 4",{"$f":"IF(INDIRECT(P219)=Q219,0,1)","v":0},{"$f":"ADDRESS(18,9,1,1,$S$1)","v":"'Geographic Diversification'!$I$18"},"=+'Schedule IVE'!E18",0,null,null,null,{"$f":"ADDRESS(26,7,1,1,$Y$1)","v":"'Premium Risk'!$G$26"},"=IF(IFERROR(F26/E26,1)<0,1,IFERROR(F26/E26,1))",0]
[{"$f":"ADDRESS(88,7,1,1,$A$1)","v":"Summary!$G$88"},"=G72+G76+G84+G78",0,{"$f":"ADDRESS(120,6,1,1,$D$1)","v":"'Fixed Income Investments'!$F$120"},"='Schedule IIB'!T68+'Schedule IIC'!T68+'Schedule IID'!T68+'Schedule IIE'!T68+'Schedule IIF'!T68",0,{"$f":"ADDRESS(32,7,1,1,$G$1)","v":"'Equity Investments'!$G$32"},"='Schedule IIB'!J56+'Schedule IIC'!J56+'Schedule IID'!J56+'Schedule IIE'!J56+'Schedule IIF'!J56",0,null,null,null,{"$f":"ADDRESS(21,5,1,1,$M$1)","v":"'Currency Risk'!$E$21"},"='Schedule XXA'!H19",0,{"$f":"ADDRESS(79,4,1,1,$P$1)","v":"'Concentration Risk'!$D$79"},"=SUMIFS('Schedule XXIA'!$M$8:$M$57,'Schedule XXIA'!$J$8:$J$57,$D$74,'Schedule XXIA'!$L$8:$L$57,$B79)",{"$f":"IF(_xlfn.FORMULATEXT(INDIRECT(P220))=Q220,0,1)","v":0},{"$f":"ADDRESS(18,10,1,1,$S$1)","v":"'Geographic Diversification'!$J$18"},"=+'Schedule IVE'!F18",0,null,null,null,{"$f":"ADDRESS(26,8,1,1,$Y$1)","v":"'Premium Risk'!$H$26"},"='Schedule IVD'!I24*$G26",0]
[{"$f":"ADDRESS(88,14,1,1,$A$1)","v":"Summary!$N$88"},"=N72+N76+N84+N78+N82+N80",0,{"$f":"ADDRESS(120,9,1,1,$D$1)","v":"'Fixed Income Investments'!$I$120"},"=(C120-D120)+MAX(0,E120-F120)",0,{"$f":"ADDRESS(32,8,1,1,$G$1)","v":"'Equity Investments'!$H$32"},"='Schedule IIB'!L56+'Schedule IIC'!L56+'Schedule IID'!L56+'Schedule IIE'!L56+'Schedule IIF'!L56",0,null,null,null,{"$f":"ADDRESS(21,6,1,1,$M$1)","v":"'Currency Risk'!$F$21"},"='Schedule XXA'!J19",0,{"$f":"ADDRESS(79,5,1,1,$P$1)","v":"'Concentration Risk'!$E$79"},0.04,{"$f":"IF(INDIRECT(P221)=Q221,0,1)","v":0},{"$f":"ADDRESS(18,11,1,1,$S$1)","v":"'Geographic Diversification'!$K$18"},"=+'Schedule IVE'!G18",0,null,null,null,{"$f":"ADDRESS(26,9,1,1,$Y$1)","v":"'Premium Risk'!$I$26"},"='Schedule IVD'!K24*$G26",0]
[{"$f":"ADDRESS(90,26,1,1,$A$1)","v":"Summary!$Z$90"},"=L20",0,{"$f":"ADDRESS(121,3,1,1,$D$1)","v":"'Fixed Income Investments'!$C$121"},"='Schedule IIB'!N69+'Schedule IIC'!N69+'Schedule IID'!N69+'Schedule IIE'!N69+'Schedule IIF'!N69",0,{"$f":"ADDRESS(32,9,1,1,$G$1)","v":"'Equity Investments'!$I$32"},"='Schedule IIB'!N56+'Schedule IIC'!N56+'Schedule IID'!N56+'Schedule IIE'!N56+'Schedule IIF'!N56",0,null,null,null,{"$f":"ADDRESS(21,7,1,1,$M$1)","v":"'Currency Risk'!$G$21"},"='Schedule XXA'!L19",0,{"$f":"ADDRESS(79,6,1,1,$P$1)","v":"'Concentration Risk'!$F$79"},"=MAX(0,(D79*E79))",{"$f":"IF(_xlfn.FORMULATEXT(INDIRECT(P222))=Q222,0,1)","v":0},{"$f":"ADDRESS(18,12,1,1,$S$1)","v":"'Geographic Diversification'!$L$18"},"=+'Schedule IVE'!H18",0,null,null,null,{"$f":"ADDRESS(26,10,1,1,$Y$1)","v":"'Premium Risk'!$J$26"},"='Schedule IVD'!M24*$G26",0]
[{"$f":"ADDRESS(90,35,1,1,$A$1)","v":"Summary!$AI$90"},7.4999999999999997E-2,{"$f":"IF(INDIRECT(A223)=B223,0,1)","v":0},{"$f":"ADDRESS(121,4,1,1,$D$1)","v":"'Fixed Income Investments'!$D$121"},"='Schedule IIB'!P69+'Schedule IIC'!P69+'Schedule IID'!P69+'Schedule IIE'!P69+'Schedule IIF'!P69",0,{"$f":"ADDRESS(32,10,1,1,$G$1)","v":"'Equity Investments'!$J$32"},"='Schedule IIB'!P56+'Schedule IIC'!P56+'Schedule IID'!P56+'Schedule IIE'!P56+'Schedule IIF'!P56",0,null,null,null,{"$f":"ADDRESS(21,8,1,1,$M$1)","v":"'Currency Risk'!$H$21"},"='Schedule XXA'!N19",0,{"$f":"ADDRESS(80,2,1,1,$P$1)","v":"'Concentration Risk'!$B$80"},"BSCR Rating 5",{"$f":"IF(INDIRECT(P223)=Q223,0,1)","v":0},{"$f":"ADDRESS(18,13,1,1,$S$1)","v":"'Geographic Diversification'!$M$18"},"=+'Schedule IVE'!I18",0,null,null,null,{"$f":"ADDRESS(26,11,1,1,$Y$1)","v":"'Premium Risk'!$K$26"},0.51436147942106603,{"$f":"IF(INDIRECT(Y223)=Z223,0,1)","v":0}]
[{"$f":"ADDRESS(92,14,1,1,$A$1)","v":"Summary!$N$92"},"='Form 8SFS (Consolidated)'!O60",{"$f":"IF(_xlfn.FORMULATEXT(INDIRECT(A224))=B224,0,1)","v":0},{"$f":"ADDRESS(121,5,1,1,$D$1)","v":"'Fixed Income Investments'!$E$121"},"='Schedule IIB'!R69+'Schedule IIC'!R69+'Schedule IID'!R69+'Schedule IIE'!R69+'Schedule IIF'!R69",{"$f":"IF(_xlfn.FORMULATEXT(INDIRECT(D224))=E224,0,1)","v":0},{"$f":"ADDRESS(32,11,1,1,$G$1)","v":"'Equity Investments'!$K$32"},"='Schedule IIB'!R56+'Schedule IIC'!R56+'Schedule IID'!R56+'Schedule IIE'!R56+'Schedule IIF'!R56",0,null,null,null,{"$f":"ADDRESS(21,9,1,1,$M$1)","v":"'Currency Risk'!$I$21"},"=$I$10*H21",0,{"$f":"ADDRESS(80,4,1,1,$P$1)","v":"'Concentration Risk'!$D$80"},"=SUMIFS('Schedule XXIA'!$M$8:$M$57,'Schedule XXIA'!$J$8:$J$57,$D$74,'Schedule XXIA'!$L$8:$L$57,$B80)",{"$f":"IF(_xlfn.FORMULATEXT(INDIRECT(P224))=Q224,0,1)","v":0},{"$f":"ADDRESS(18,14,1,1,$S$1)","v":"'Geographic Diversification'!$N$18"},"=+'Schedule IVE'!J18",0,null,null,null,{"$f":"ADDRESS(26,12,1,1,$Y$1)","v":"'Premium Risk'!$L$26"},"=+K26*S26",{"$f":"IF(_xlfn.FORMULATEXT(INDIRECT(Y224))=Z224,0,1)","v":0}]
[{"$f":"ADDRESS(94,14,1,1,$A$1)","v":"Summary!$N$94"},"=N92+N93",0,{"$f":"ADDRESS(121,6,1,1,$D$1)","v":"'Fixed Income Investments'!$F$121"},"='Schedule IIB'!T69+'Schedule IIC'!T69+'Schedule IID'!T69+'Schedule IIE'!T69+'Schedule IIF'!T69",0,{"$f":"ADDRESS(32,12,1,1,$G$1)","v":"'Equity Investments'!$L$32"},"='Schedule IIB'!T56+'Schedule IIC'!T56+'Schedule IID'!T56+'Schedule IIE'!T56+'Schedule IIF'!T56",0,null,null,null,{"$f":"ADDRESS(21,10,1,1,$M$1)","v":"'Currency Risk'!$J$21"},"=IF($B$12=\"Euro\",IF((SUM(C21:G21))>(H21+I21),0%,2%),IF((SUM(C21:G21))>(H21+I21),0%,25%))",0,{"$f":"ADDRESS(80,5,1,1,$P$1)","v":"'Concentration Risk'!$E$80"},0.11,{"$f":"IF(INDIRECT(P225)=Q225,0,1)","v":0},{"$f":"ADDRESS(18,15,1,1,$S$1)","v":"'Geographic Diversification'!$O$18"},"=+'Schedule IVE'!K18",0,null,null,null,{"$f":"ADDRESS(26,13,1,1,$Y$1)","v":"'Premium Risk'!$M$26"},"=+L26*T26",{"$f":"IF(_xlfn.FORMULATEXT(INDIRECT(Y225))=Z225,0,1)","v":0}]
[{"$f":"ADDRESS(98,14,1,1,$A$1)","v":"Summary!$N$98"},"=N94-SUM(N96:N96)",0,{"$f":"ADDRESS(121,9,1,1,$D$1)","v":"'Fixed Income Investments'!$I$121"},"=(C121-D121)+MAX(0,E121-F121)",0,{"$f":"ADDRESS(32,16,1,1,$G$1)","v":"'Equity Investments'!$P$32"},"=MAX(D32-E32,0)+(F32-G32)+MAX(H32-I32,0)+(K32-J32)",0,null,null,null,{"$f":"ADDRESS(21,12,1,1,$M$1)","v":"'Currency Risk'!$L$21"},"='Schedule XXA'!V19",0,{"$f":"ADDRESS(80,6,1,1,$P$1)","v":"'Concentration Risk'!$F$80"},"=MAX(0,(D80*E80))",{"$f":"IF(_xlfn.FORMULATEXT(INDIRECT(P226))=Q226,0,1)","v":0},{"$f":"ADDRESS(18,16,1,1,$S$1)","v":"'Geographic Diversification'!$P$18"},"=+'Schedule IVE'!L18",0,null,null,null,{"$f":"ADDRESS(26,14,1,1,$Y$1)","v":"'Premium Risk'!$N$26"},"=IF($H26<0,0,$H26*$K26)+IF($I26<0,0,$I26*$L26)+IF($J26<0,0,$J26*$M26)",{"$f":"IF(_xlfn.FORMULATEXT(INDIRECT(Y226))=Z226,0,1)","v":0}]
[{"$f":"ADDRESS(102,14,1,1,$A$1)","v":"Summary!$N$102"},"=MAX(Z76,(N86*25%))",0,{"$f":"ADDRESS(122,3,1,1,$D$1)","v":"'Fixed Income Investments'!$C$122"},"='Schedule IIB'!N70+'Schedule IIC'!N70+'Schedule IID'!N70+'Schedule IIE'!N70+'Schedule IIF'!N70",0,{"$f":"ADDRESS(32,18,1,1,$G$1)","v":"'Equity Investments'!$R$32"},"=MAX(D32-E32,0)+(F32-G32)+MAX(H32-I32,0)+(L32-J32)",0,null,null,null,{"$f":"ADDRESS(21,13,1,1,$M$1)","v":"'Currency Risk'!$M$21"},"='Schedule XXA'!X19",0,{"$f":"ADDRESS(81,2,1,1,$P$1)","v":"'Concentration Risk'!$B$81"},"BSCR Rating 6",{"$f":"IF(INDIRECT(P227)=Q227,0,1)","v":0},{"$f":"ADDRESS(18,17,1,1,$S$1)","v":"'Geographic Diversification'!$Q$18"},"=+'Schedule IVE'!M18",0,null,null,null,{"$f":"ADDRESS(26,17,1,1,$Y$1)","v":"'Premium Risk'!$Q$26"},"=IF(H26=E26,MAX(D26*K26,0),IF(E26=F26,IF(D26<0,0,D26*(H26/F26)*K26),IF(D26<0,0,D26*(H26/E26)*K26)))\n+IF(I26=E26,MAX(D26*L26,0),IF(E26=F26,IF(D26<0,0,D26*(I26/F26)*L26),IF(D26<0,0,D26*(I26/E26)*L26)))\n+IF(J26=E26,MAX(D26*M26,0),IF(E26=F26,IF(D26<0,0,D26*(J26/F26)*M26),IF(D26<0,0,D26*(J26/E26)*M26)))",{"$f":"IF(_xlfn.FORMULATEXT(INDIRECT(Y227))=Z227,0,1)","v":0}]
[{"$f":"ADDRESS(104,14,1,1,$A$1)","v":"Summary!$N$104"},"=SUM(N102:N103)",0,{"$f":"ADDRESS(122,4,1,1,$D$1)","v":"'Fixed Income Investments'!$D$122"},"='Schedule IIB'!P70+'Schedule IIC'!P70+'Schedule IID'!P70+'Schedule IIE'!P70+'Schedule IIF'!P70",0,{"$f":"ADDRESS(34,4,1,1,$G$1)","v":"'Equity Investments'!$D$34"},"=SUM(D27:D33)",0,null,null,null,{"$f":"ADDRESS(21,14,1,1,$M$1)","v":"'Currency Risk'!$N$21"},"='Schedule XXA'!Z19",0,{"$f":"ADDRESS(81,4,1,1,$P$1)","v":"'Concentration Risk'!$D$81"},"=SUMIFS('Schedule XXIA'!$M$8:$M$57,'Schedule XXIA'!$J$8:$J$57,$D$74,'Schedule XXIA'!$L$8:$L$57,$B81)",{"$f":"IF(_xlfn.FORMULATEXT(INDIRECT(P228))=Q228,0,1)","v":0},{"$f":"ADDRESS(18,18,1,1,$S$1)","v":"'Geographic Diversification'!$R$18"},"=+'Schedule IVE'!N18",0,null,null,null,{"$f":"ADDRESS(26,19,1,1,$Y$1)","v":"'Premium Risk'!$S$26"},0.5,{"$f":"IF(INDIRECT(Y228)=Z228,0,1)","v":0}]
[{"$f":"ADDRESS(106,27,1,1,$A$1)","v":"Summary!$AA$106"},"=IF($N$98=0,15000000,$N$98)",0,{"$f":"ADDRESS(122,5,1,1,$D$1)","v":"'Fixed Income Investments'!$E$122"},"='Schedule IIB'!R70+'Schedule IIC'!R70+'Schedule IID'!R70+'Schedule IIE'!R70+'Schedule IIF'!R70",0,{"$f":"ADDRESS(34,5,1,1,$G$1)","v":"'Equity Investments'!$E$34"},"=SUM(E27:E33)",0,null,null,null,{"$f":"ADDRESS(21,15,1,1,$M$1)","v":"'Currency Risk'!$O$21"},"='Schedule XXA'!AB19",{"$f":"IF(_xlfn.FORMULATEXT(INDIRECT(M229))=N229,0,1)","v":0},{"$f":"ADDRESS(81,5,1,1,$P$1)","v":"'Concentration Risk'!$E$81"},0.25,{"$f":"IF(INDIRECT(P229)=Q229,0,1)","v":0},{"$f":"ADDRESS(18,19,1,1,$S$1)","v":"'Geographic Diversification'!$S$18"},"=+'Schedule IVE'!O18",0,null,null,null,{"$f":"ADDRESS(26,20,1,1,$Y$1)","v":"'Premium Risk'!$T$26"},0.5,{"$f":"IF(INDIRECT(Y229)=Z229,0,1)","v":0}]
[{"$f":"ADDRESS(106,29,1,1,$A$1)","v":"Summary!$AC$106"},"=AC$120-AA106",0,{"$f":"ADDRESS(122,6,1,1,$D$1)","v":"'Fixed Income Investments'!$F$122"},"='Schedule IIB'!T70+'Schedule IIC'!T70+'Schedule IID'!T70+'Schedule IIE'!T70+'Schedule IIF'!T70",0,{"$f":"ADDRESS(34,6,1,1,$G$1)","v":"'Equity Investments'!$F$34"},"=SUM(F27:F33)",0,null,null,null,{"$f":"ADDRESS(21,16,1,1,$M$1)","v":"'Currency Risk'!$P$21"},"='Schedule XXA'!AD19",0,{"$f":"ADDRESS(81,6,1,1,$P$1)","v":"'Concentration Risk'!$F$81"},"=MAX(0,(D81*E81))",{"$f":"IF(_xlfn.FORMULATEXT(INDIRECT(P230))=Q230,0,1)","v":0},{"$f":"ADDRESS(18,20,1,1,$S$1)","v":"'Geographic Diversification'!$T$18"},"=+'Schedule IVE'!P18",0,null,null,null,{"$f":"ADDRESS(27,4,1,1,$Y$1)","v":"'Premium Risk'!$D$27"},"='Schedule IVD'!Q25",{"$f":"IF(_xlfn.FORMULATEXT(INDIRECT(Y230))=Z230,0,1)","v":0}]
[{"$f":"ADDRESS(106,30,1,1,$A$1)","v":"Summary!$AD$106"},"=IF($N$98=0,25000000,$N$98)",0,{"$f":"ADDRESS(122,9,1,1,$D$1)","v":"'Fixed Income Investments'!$I$122"},"=(C122-D122)+MAX(0,E122-F122)",0,{"$f":"ADDRESS(34,7,1,1,$G$1)","v":"'Equity Investments'!$G$34"},"=SUM(G27:G33)",0,null,null,null,{"$f":"ADDRESS(21,17,1,1,$M$1)","v":"'Currency Risk'!$Q$21"},"='Schedule XXA'!AF19",0,{"$f":"ADDRESS(82,2,1,1,$P$1)","v":"'Concentration Risk'!$B$82"},"BSCR Rating 7",{"$f":"IF(INDIRECT(P231)=Q231,0,1)","v":0},{"$f":"ADDRESS(18,21,1,1,$S$1)","v":"'Geographic Diversification'!$U$18"},"=+'Schedule IVE'!Q18",0,null,null,null,{"$f":"ADDRESS(27,5,1,1,$Y$1)","v":"'Premium Risk'!$E$27"},"='Schedule IVD'!O25",0]
[{"$f":"ADDRESS(108,14,1,1,$A$1)","v":"Summary!$N$108"},"=MAX(N86,N104)",0,{"$f":"ADDRESS(123,3,1,1,$D$1)","v":"'Fixed Income Investments'!$C$123"},"='Schedule IIB'!N71+'Schedule IIC'!N71+'Schedule IID'!N71+'Schedule IIE'!N71+'Schedule IIF'!N71",0,{"$f":"ADDRESS(34,8,1,1,$G$1)","v":"'Equity Investments'!$H$34"},"=SUM(H27:H33)",0,null,null,null,{"$f":"ADDRESS(21,18,1,1,$M$1)","v":"'Currency Risk'!$R$21"},"=IF('Schedule XXA'!AH19=0,Q21,'Schedule XXA'!AH19)",0,{"$f":"ADDRESS(82,4,1,1,$P$1)","v":"'Concentration Risk'!$D$82"},"=SUMIFS('Schedule XXIA'!$M$8:$M$57,'Schedule XXIA'!$J$8:$J$57,$D$74,'Schedule XXIA'!$L$8:$L$57,$B82)",{"$f":"IF(_xlfn.FORMULATEXT(INDIRECT(P232))=Q232,0,1)","v":0},{"$f":"ADDRESS(18,22,1,1,$S$1)","v":"'Geographic Diversification'!$V$18"},"=+'Schedule IVE'!R18",0,null,null,null,{"$f":"ADDRESS(27,6,1,1,$Y$1)","v":"'Premium Risk'!$F$27"},"='Geographic Diversification'!H25",0]
[{"$f":"ADDRESS(110,14,1,1,$A$1)","v":"Summary!$N$110"},"=MAX(N104,N88)",0,{"$f":"ADDRESS(123,4,1,1,$D$1)","v":"'Fixed Income Investments'!$D$123"},"='Schedule IIB'!P71+'Schedule IIC'!P71+'Schedule IID'!P71+'Schedule IIE'!P71+'Schedule IIF'!P71",0,{"$f":"ADDRESS(34,9,1,1,$G$1)","v":"'Equity Investments'!$I$34"},"=SUM(I27:I33)",0,null,null,null,{"$f":"ADDRESS(21,20,1,1,$M$1)","v":"'Currency Risk'!$T$21"},"=(C21-L21)+(D21-M21)+(F21-O21)+MAX(E21-N21,0)+MAX(G21-P21,0)",0,{"$f":"ADDRESS(82,5,1,1,$P$1)","v":"'Concentration Risk'!$E$82"},0.35,{"$f":"IF(INDIRECT(P233)=Q233,0,1)","v":0},{"$f":"ADDRESS(18,23,1,1,$S$1)","v":"'Geographic Diversification'!$W$18"},"=+'Schedule IVE'!S18",0,null,null,null,{"$f":"ADDRESS(27,7,1,1,$Y$1)","v":"'Premium Risk'!$G$27"},"=IF(IFERROR(F27/E27,1)<0,1,IFERROR(F27/E27,1))",0]
[{"$f":"ADDRESS(110,26,1,1,$A$1)","v":"Summary!$Z$110"},1,{"$f":"IF(INDIRECT(A234)=B234,0,1)","v":0},{"$f":"ADDRESS(123,5,1,1,$D$1)","v":"'Fixed Income Investments'!$E$123"},"='Schedule IIB'!R71+'Schedule IIC'!R71+'Schedule IID'!R71+'Schedule IIE'!R71+'Schedule IIF'!R71",0,{"$f":"ADDRESS(34,10,1,1,$G$1)","v":"'Equity Investments'!$J$34"},"=SUM(J27:J33)",0,null,null,null,{"$f":"ADDRESS(21,21,1,1,$M$1)","v":"'Currency Risk'!$U$21"},"=Q21-$H21",0,{"$f":"ADDRESS(82,6,1,1,$P$1)","v":"'Concentration Risk'!$F$82"},"=MAX(0,(D82*E82))",{"$f":"IF(_xlfn.FORMULATEXT(INDIRECT(P234))=Q234,0,1)","v":0},{"$f":"ADDRESS(18,24,1,1,$S$1)","v":"'Geographic Diversification'!$X$18"},"=+'Schedule IVE'!T18",0,null,null,null,{"$f":"ADDRESS(27,8,1,1,$Y$1)","v":"'Premium Risk'!$H$27"},"='Schedule IVD'!I25*$G27",0]
[{"$f":"ADDRESS(110,27,1,1,$A$1)","v":"Summary!$AA$110"},"=IF($AC$76=100000,15000000,$AC$76)",{"$f":"IF(_xlfn.FORMULATEXT(INDIRECT(A235))=B235,0,1)","v":0},{"$f":"ADDRESS(123,6,1,1,$D$1)","v":"'Fixed Income Investments'!$F$123"},"='Schedule IIB'!T71+'Schedule IIC'!T71+'Schedule IID'!T71+'Schedule IIE'!T71+'Schedule IIF'!T71",0,{"$f":"ADDRESS(34,11,1,1,$G$1)","v":"'Equity Investments'!$K$34"},"=SUM(K27:K33)",0,null,null,null,{"$f":"ADDRESS(21,22,1,1,$M$1)","v":"'Currency Risk'!$V$21"},"=R21-$H21",0,{"$f":"ADDRESS(83,2,1,1,$P$1)","v":"'Concentration Risk'!$B$83"},"BSCR Rating 8",{"$f":"IF(INDIRECT(P235)=Q235,0,1)","v":0},{"$f":"ADDRESS(18,25,1,1,$S$1)","v":"'Geographic Diversification'!$Y$18"},"=+'Schedule IVE'!U18",0,null,null,null,{"$f":"ADDRESS(27,9,1,1,$Y$1)","v":"'Premium Risk'!$I$27"},"='Schedule IVD'!K25*$G27",0]
[{"$f":"ADDRESS(110,29,1,1,$A$1)","v":"Summary!$AC$110"},"=AC$120-AA110",{"$f":"IF(_xlfn.FORMULATEXT(INDIRECT(A236))=B236,0,1)","v":0},{"$f":"ADDRESS(123,9,1,1,$D$1)","v":"'Fixed Income Investments'!$I$123"},"=(C123-D123)+MAX(0,E123-F123)",0,{"$f":"ADDRESS(34,12,1,1,$G$1)","v":"'Equity Investments'!$L$34"},"=SUM(L27:L33)",0,null,null,null,{"$f":"ADDRESS(21,24,1,1,$M$1)","v":"'Currency Risk'!$X$21"},"=MAX(0,$T21+U21+(J21*I21))",0,{"$f":"ADDRESS(83,4,1,1,$P$1)","v":"'Concentration Risk'!$D$83"},"=SUMIFS('Schedule XXIA'!$M$8:$M$57,'Schedule XXIA'!$J$8:$J$57,$D$74,'Schedule XXIA'!$L$8:$L$57,$B83)",{"$f":"IF(_xlfn.FORMULATEXT(INDIRECT(P236))=Q236,0,1)","v":0},{"$f":"ADDRESS(18,26,1,1,$S$1)","v":"'Geographic Diversification'!$Z$18"},"=+'Schedule IVE'!V18",0,null,null,null,{"$f":"ADDRESS(27,10,1,1,$Y$1)","v":"'Premium Risk'!$J$27"},"='Schedule IVD'!M25*$G27",0]
[{"$f":"ADDRESS(110,30,1,1,$A$1)","v":"Summary!$AD$110"},"=Z110*AA$111",{"$f":"IF(_xlfn.FORMULATEXT(INDIRECT(A237))=B237,0,1)","v":0},{"$f":"ADDRESS(124,3,1,1,$D$1)","v":"'Fixed Income Investments'!$C$124"},"='Schedule IIB'!N72+'Schedule IIC'!N72+'Schedule IID'!N72+'Schedule IIE'!N72+'Schedule IIF'!N72",0,{"$f":"ADDRESS(34,16,1,1,$G$1)","v":"'Equity Investments'!$P$34"},"=MAX(SUM(P27:P33),0)",0,null,null,null,{"$f":"ADDRESS(21,25,1,1,$M$1)","v":"'Currency Risk'!$Y$21"},"=MAX(0,$T21+V21+(J21*I21))",0,{"$f":"ADDRESS(83,5,1,1,$P$1)","v":"'Concentration Risk'!$E$83"},0.35,{"$f":"IF(INDIRECT(P237)=Q237,0,1)","v":0},{"$f":"ADDRESS(19,4,1,1,$S$1)","v":"'Geographic Diversification'!$D$19"},"=SUM(I19:Z19)",0,null,null,null,{"$f":"ADDRESS(27,11,1,1,$Y$1)","v":"'Premium Risk'!$K$27"},0.52697789035313303,{"$f":"IF(INDIRECT(Y237)=Z237,0,1)","v":0}]
[{"$f":"ADDRESS(111,26,1,1,$A$1)","v":"Summary!$Z$111"},1.2,{"$f":"IF(INDIRECT(A238)=B238,0,1)","v":0},{"$f":"ADDRESS(124,4,1,1,$D$1)","v":"'Fixed Income Investments'!$D$124"},"='Schedule IIB'!P72+'Schedule IIC'!P72+'Schedule IID'!P72+'Schedule IIE'!P72+'Schedule IIF'!P72",0,{"$f":"ADDRESS(34,18,1,1,$G$1)","v":"'Equity Investments'!$R$34"},"=MAX(SUM(R27:R33),0)",0,null,null,null,{"$f":"ADDRESS(22,2,1,1,$M$1)","v":"'Currency Risk'!$B$22"},"='Schedule XXA'!B20",0,{"$f":"ADDRESS(83,6,1,1,$P$1)","v":"'Concentration Risk'!$F$83"},"=MAX(0,(D83*E83))",{"$f":"IF(_xlfn.FORMULATEXT(INDIRECT(P238))=Q238,0,1)","v":0},{"$f":"ADDRESS(19,5,1,1,$S$1)","v":"'Geographic Diversification'!$E$19"},"=SUMSQ(I19:Z19)",0,null,null,null,{"$f":"ADDRESS(27,12,1,1,$Y$1)","v":"'Premium Risk'!$L$27"},"=+K27*S27",{"$f":"IF(_xlfn.FORMULATEXT(INDIRECT(Y238))=Z238,0,1)","v":0}]
[{"$f":"ADDRESS(111,27,1,1,$A$1)","v":"Summary!$AA$111"},"=IF($AC$76=100000,15000000,$AC$76)",{"$f":"IF(_xlfn.FORMULATEXT(INDIRECT(A239))=B239,0,1)","v":0},{"$f":"ADDRESS(124,5,1,1,$D$1)","v":"'Fixed Income Investments'!$E$124"},"='Schedule IIB'!R72+'Schedule IIC'!R72+'Schedule IID'!R72+'Schedule IIE'!R72+'Schedule IIF'!R72",0,{"$f":"ADDRESS(37,4,1,1,$G$1)","v":"'Equity Investments'!$D$37"},"='Schedule IIB'!D57+'Schedule IIC'!D57+'Schedule IID'!D57+'Schedule IIE'!D57+'Schedule IIF'!D57",0,null,null,null,{"$f":"ADDRESS(22,3,1,1,$M$1)","v":"'Currency Risk'!$C$22"},"='Schedule XXA'!D20",0,{"$f":"ADDRESS(85,4,1,1,$P$1)","v":"'Concentration Risk'!$D$85"},"=SUM(D74:D83)",{"$f":"IF(_xlfn.FORMULATEXT(INDIRECT(P239))=Q239,0,1)","v":0},{"$f":"ADDRESS(19,6,1,1,$S$1)","v":"'Geographic Diversification'!$F$19"},"=(IF(D19>0,E19/D19^2,1))",0,null,null,null,{"$f":"ADDRESS(27,13,1,1,$Y$1)","v":"'Premium Risk'!$M$27"},"=+L27*T27",{"$f":"IF(_xlfn.FORMULATEXT(INDIRECT(Y239))=Z239,0,1)","v":0}]
[{"$f":"ADDRESS(111,29,1,1,$A$1)","v":"Summary!$AC$111"},"=AC$120-AA111",0,{"$f":"ADDRESS(124,6,1,1,$D$1)","v":"'Fixed Income Investments'!$F$124"},"='Schedule IIB'!T72+'Schedule IIC'!T72+'Schedule IID'!T72+'Schedule IIE'!T72+'Schedule IIF'!T72",0,{"$f":"ADDRESS(37,5,1,1,$G$1)","v":"'Equity Investments'!$E$37"},"='Schedule IIB'!F57+'Schedule IIC'!F57+'Schedule IID'!F57+'Schedule IIE'!F57+'Schedule IIF'!F57",0,null,null,null,{"$f":"ADDRESS(22,4,1,1,$M$1)","v":"'Currency Risk'!$D$22"},"='Schedule XXA'!F20",0,{"$f":"ADDRESS(85,6,1,1,$P$1)","v":"'Concentration Risk'!$F$85"},"=SUM(F74:F83)",{"$f":"IF(_xlfn.FORMULATEXT(INDIRECT(P240))=Q240,0,1)","v":0},{"$f":"ADDRESS(19,7,1,1,$S$1)","v":"'Geographic Diversification'!$G$19"},"=D19*(0.75+0.25*F19)",0,null,null,null,{"$f":"ADDRESS(27,14,1,1,$Y$1)","v":"'Premium Risk'!$N$27"},"=IF($H27<0,0,$H27*$K27)+IF($I27<0,0,$I27*$L27)+IF($J27<0,0,$J27*$M27)",{"$f":"IF(_xlfn.FORMULATEXT(INDIRECT(Y240))=Z240,0,1)","v":0}]
[{"$f":"ADDRESS(111,30,1,1,$A$1)","v":"Summary!$AD$111"},"=Z111*AA$111",0,{"$f":"ADDRESS(124,9,1,1,$D$1)","v":"'Fixed Income Investments'!$I$124"},"=(C124-D124)+MAX(0,E124-F124)",0,{"$f":"ADDRESS(37,6,1,1,$G$1)","v":"'Equity Investments'!$F$37"},"='Schedule IIB'!H57+'Schedule IIC'!H57+'Schedule IID'!H57+'Schedule IIE'!H57+'Schedule IIF'!H57",0,null,null,null,{"$f":"ADDRESS(22,5,1,1,$M$1)","v":"'Currency Risk'!$E$22"},"='Schedule XXA'!H20",0,{"$f":"ADDRESS(87,4,1,1,$P$1)","v":"'Concentration Risk'!$D$87"},"=+'Schedule XXIA'!C65",{"$f":"IF(_xlfn.FORMULATEXT(INDIRECT(P241))=Q241,0,1)","v":0},{"$f":"ADDRESS(19,8,1,1,$S$1)","v":"'Geographic Diversification'!$H$19"},"=IF('Schedule IVE'!AB19=\"True\",G19,'Schedule IVD'!O19)",0,null,null,null,{"$f":"ADDRESS(27,17,1,1,$Y$1)","v":"'Premium Risk'!$Q$27"},"=IF(H27=E27,MAX(D27*K27,0),IF(E27=F27,IF(D27<0,0,D27*(H27/F27)*K27),IF(D27<0,0,D27*(H27/E27)*K27)))\n+IF(I27=E27,MAX(D27*L27,0),IF(E27=F27,IF(D27<0,0,D27*(I27/F27)*L27),IF(D27<0,0,D27*(I27/E27)*L27)))\n+IF(J27=E27,MAX(D27*M27,0),IF(E27=F27,IF(D27<0,0,D27*(J27/F27)*M27),IF(D27<0,0,D27*(J27/E27)*M27)))",{"$f":"IF(_xlfn.FORMULATEXT(INDIRECT(Y241))=Z241,0,1)","v":0}]
[{"$f":"ADDRESS(112,14,1,1,$A$1)","v":"Summary!$N$112"},"=N108*1.2",0,{"$f":"ADDRESS(125,3,1,1,$D$1)","v":"'Fixed Income Investments'!$C$125"},"='Schedule IIB'!N73+'Schedule IIC'!N73+'Schedule IID'!N73+'Schedule IIE'!N73+'Schedule IIF'!N73",0,{"$f":"ADDRESS(37,7,1,1,$G$1)","v":"'Equity Investments'!$G$37"},"='Schedule IIB'!J57+'Schedule IIC'!J57+'Schedule IID'!J57+'Schedule IIE'!J57+'Schedule IIF'!J57",0,null,null,null,{"$f":"ADDRESS(22,6,1,1,$M$1)","v":"'Currency Risk'!$F$22"},"='Schedule XXA'!J20",0,{"$f":"ADDRESS(88,2,1,1,$P$1)","v":"'Concentration Risk'!$B$88"},"Insured/Guaranteed Mortgages",{"$f":"IF(INDIRECT(P242)=Q242,0,1)","v":0},{"$f":"ADDRESS(19,9,1,1,$S$1)","v":"'Geographic Diversification'!$I$19"},"=+'Schedule IVE'!E19",0,null,null,null,{"$f":"ADDRESS(27,19,1,1,$Y$1)","v":"'Premium Risk'!$S$27"},0.5,{"$f":"IF(INDIRECT(Y242)=Z242,0,1)","v":0}]
[{"$f":"ADDRESS(114,14,1,1,$A$1)","v":"Summary!$N$114"},"=$N$110*1.2",0,{"$f":"ADDRESS(125,4,1,1,$D$1)","v":"'Fixed Income Investments'!$D$125"},"='Schedule IIB'!P73+'Schedule IIC'!P73+'Schedule IID'!P73+'Schedule IIE'!P73+'Schedule IIF'!P73",0,{"$f":"ADDRESS(37,8,1,1,$G$1)","v":"'Equity Investments'!$H$37"},"='Schedule IIB'!L57+'Schedule IIC'!L57+'Schedule IID'!L57+'Schedule IIE'!L57+'Schedule IIF'!L57",0,null,null,null,{"$f":"ADDRESS(22,7,1,1,$M$1)","v":"'Currency Risk'!$G$22"},"='Schedule XXA'!L20",0,{"$f":"ADDRESS(88,4,1,1,$P$1)","v":"'Concentration Risk'!$D$88"},"=SUMIFS('Schedule XXIA'!$M$8:$M$57,'Schedule XXIA'!$J$8:$J$57,$D$87,'Schedule XXIA'!$K$8:$K$57,$B88)",{"$f":"IF(_xlfn.FORMULATEXT(INDIRECT(P243))=Q243,0,1)","v":0},{"$f":"ADDRESS(19,10,1,1,$S$1)","v":"'Geographic Diversification'!$J$19"},"=+'Schedule IVE'!F19",0,null,null,null,{"$f":"ADDRESS(27,20,1,1,$Y$1)","v":"'Premium Risk'!$T$27"},0.5,{"$f":"IF(INDIRECT(Y243)=Z243,0,1)","v":0}]
[{"$f":"ADDRESS(114,27,1,1,$A$1)","v":"Summary!$AA$114"},"=IF(N72=0,15000000,N72)",0,{"$f":"ADDRESS(125,5,1,1,$D$1)","v":"'Fixed Income Investments'!$E$125"},"='Schedule IIB'!R73+'Schedule IIC'!R73+'Schedule IID'!R73+'Schedule IIE'!R73+'Schedule IIF'!R73",0,{"$f":"ADDRESS(37,9,1,1,$G$1)","v":"'Equity Investments'!$I$37"},"='Schedule IIB'!N57+'Schedule IIC'!N57+'Schedule IID'!N57+'Schedule IIE'!N57+'Schedule IIF'!N57",0,null,null,null,{"$f":"ADDRESS(22,8,1,1,$M$1)","v":"'Currency Risk'!$H$22"},"='Schedule XXA'!N20",0,{"$f":"ADDRESS(88,5,1,1,$P$1)","v":"'Concentration Risk'!$E$88"},"='Fixed Income Investments'!H70",{"$f":"IF(_xlfn.FORMULATEXT(INDIRECT(P244))=Q244,0,1)","v":0},{"$f":"ADDRESS(19,11,1,1,$S$1)","v":"'Geographic Diversification'!$K$19"},"=+'Schedule IVE'!G19",0,null,null,null,{"$f":"ADDRESS(28,4,1,1,$Y$1)","v":"'Premium Risk'!$D$28"},"='Schedule IVD'!Q26",{"$f":"IF(_xlfn.FORMULATEXT(INDIRECT(Y244))=Z244,0,1)","v":0}]
[{"$f":"ADDRESS(114,29,1,1,$A$1)","v":"Summary!$AC$114"},"=AC$120-AA114",0,{"$f":"ADDRESS(125,6,1,1,$D$1)","v":"'Fixed Income Investments'!$F$125"},"='Schedule IIB'!T73+'Schedule IIC'!T73+'Schedule IID'!T73+'Schedule IIE'!T73+'Schedule IIF'!T73",0,{"$f":"ADDRESS(37,10,1,1,$G$1)","v":"'Equity Investments'!$J$37"},"='Schedule IIB'!P57+'Schedule IIC'!P57+'Schedule IID'!P57+'Schedule IIE'!P57+'Schedule IIF'!P57",0,null,null,null,{"$f":"ADDRESS(22,9,1,1,$M$1)","v":"'Currency Risk'!$I$22"},"=$I$10*H22",0,{"$f":"ADDRESS(88,6,1,1,$P$1)","v":"'Concentration Risk'!$F$88"},"=MAX(0,(D88*E88))",{"$f":"IF(_xlfn.FORMULATEXT(INDIRECT(P245))=Q245,0,1)","v":0},{"$f":"ADDRESS(19,12,1,1,$S$1)","v":"'Geographic Diversification'!$L$19"},"=+'Schedule IVE'!H19",0,null,null,null,{"$f":"ADDRESS(28,5,1,1,$Y$1)","v":"'Premium Risk'!$E$28"},"='Schedule IVD'!O26",0]
[{"$f":"ADDRESS(114,30,1,1,$A$1)","v":"Summary!$AD$114"},"=Z114*AA$111",0,{"$f":"ADDRESS(125,9,1,1,$D$1)","v":"'Fixed Income Investments'!$I$125"},"=(C125-D125)+MAX(0,E125-F125)",0,{"$f":"ADDRESS(37,11,1,1,$G$1)","v":"'Equity Investments'!$K$37"},"='Schedule IIB'!R57+'Schedule IIC'!R57+'Schedule IID'!R57+'Schedule IIE'!R57+'Schedule IIF'!R57",0,null,null,null,{"$f":"ADDRESS(22,10,1,1,$M$1)","v":"'Currency Risk'!$J$22"},"=IF((SUM(C22:G22))>(H22+I22),0%,25%)",0,{"$f":"ADDRESS(89,2,1,1,$P$1)","v":"'Concentration Risk'!$B$89"},"Other Commercial and Farm Mortgages",{"$f":"IF(INDIRECT(P246)=Q246,0,1)","v":0},{"$f":"ADDRESS(19,13,1,1,$S$1)","v":"'Geographic Diversification'!$M$19"},"=+'Schedule IVE'!I19",0,null,null,null,{"$f":"ADDRESS(28,6,1,1,$Y$1)","v":"'Premium Risk'!$F$28"},"='Geographic Diversification'!H26",0]
[{"$f":"ADDRESS(115,27,1,1,$A$1)","v":"Summary!$AA$115"},"=IF(N72=0,15000000,N72)",0,{"$f":"ADDRESS(126,3,1,1,$D$1)","v":"'Fixed Income Investments'!$C$126"},"='Schedule IIB'!N74+'Schedule IIC'!N74+'Schedule IID'!N74+'Schedule IIE'!N74+'Schedule IIF'!N74",0,{"$f":"ADDRESS(37,12,1,1,$G$1)","v":"'Equity Investments'!$L$37"},"='Schedule IIB'!T57+'Schedule IIC'!T57+'Schedule IID'!T57+'Schedule IIE'!T57+'Schedule IIF'!T57",0,null,null,null,{"$f":"ADDRESS(22,12,1,1,$M$1)","v":"'Currency Risk'!$L$22"},"='Schedule XXA'!V20",0,{"$f":"ADDRESS(89,4,1,1,$P$1)","v":"'Concentration Risk'!$D$89"},"=SUMIFS('Schedule XXIA'!$M$8:$M$57,'Schedule XXIA'!$J$8:$J$57,$D$87,'Schedule XXIA'!$K$8:$K$57,$B89)",{"$f":"IF(_xlfn.FORMULATEXT(INDIRECT(P247))=Q247,0,1)","v":0},{"$f":"ADDRESS(19,14,1,1,$S$1)","v":"'Geographic Diversification'!$N$19"},"=+'Schedule IVE'!J19",0,null,null,null,{"$f":"ADDRESS(28,7,1,1,$Y$1)","v":"'Premium Risk'!$G$28"},"=IF(IFERROR(F28/E28,1)<0,1,IFERROR(F28/E28,1))",0]
[{"$f":"ADDRESS(115,29,1,1,$A$1)","v":"Summary!$AC$115"},"=AC$120-AA115",0,{"$f":"ADDRESS(126,4,1,1,$D$1)","v":"'Fixed Income Investments'!$D$126"},"='Schedule IIB'!P74+'Schedule IIC'!P74+'Schedule IID'!P74+'Schedule IIE'!P74+'Schedule IIF'!P74",0,{"$f":"ADDRESS(37,16,1,1,$G$1)","v":"'Equity Investments'!$P$37"},"=MAX(D37-E37,0)+(F37-G37)+MAX(H37-I37,0)+(K37-J37)",0,null,null,null,{"$f":"ADDRESS(22,13,1,1,$M$1)","v":"'Currency Risk'!$M$22"},"='Schedule XXA'!X20",0,{"$f":"ADDRESS(89,5,1,1,$P$1)","v":"'Concentration Risk'!$E$89"},"='Fixed Income Investments'!H71",{"$f":"IF(_xlfn.FORMULATEXT(INDIRECT(P248))=Q248,0,1)","v":0},{"$f":"ADDRESS(19,15,1,1,$S$1)","v":"'Geographic Diversification'!$O$19"},"=+'Schedule IVE'!K19",0,null,null,null,{"$f":"ADDRESS(28,8,1,1,$Y$1)","v":"'Premium Risk'!$H$28"},"='Schedule IVD'!I26*$G28",0]
[{"$f":"ADDRESS(115,30,1,1,$A$1)","v":"Summary!$AD$115"},"=Z115*AA$111",0,{"$f":"ADDRESS(126,5,1,1,$D$1)","v":"'Fixed Income Investments'!$E$126"},"='Schedule IIB'!R74+'Schedule IIC'!R74+'Schedule IID'!R74+'Schedule IIE'!R74+'Schedule IIF'!R74",0,{"$f":"ADDRESS(37,18,1,1,$G$1)","v":"'Equity Investments'!$R$37"},"=MAX(D37-E37,0)+(F37-G37)+MAX(H37-I37,0)+(L37-J37)",0,null,null,null,{"$f":"ADDRESS(22,14,1,1,$M$1)","v":"'Currency Risk'!$N$22"},"='Schedule XXA'!Z20",0,{"$f":"ADDRESS(89,6,1,1,$P$1)","v":"'Concentration Risk'!$F$89"},"=MAX(0,(D89*E89))",{"$f":"IF(_xlfn.FORMULATEXT(INDIRECT(P249))=Q249,0,1)","v":0},{"$f":"ADDRESS(19,16,1,1,$S$1)","v":"'Geographic Diversification'!$P$19"},"=+'Schedule IVE'!L19",0,null,null,null,{"$f":"ADDRESS(28,9,1,1,$Y$1)","v":"'Premium Risk'!$I$28"},"='Schedule IVD'!K26*$G28",0]
[{"$f":"ADDRESS(118,14,1,1,$A$1)","v":"Summary!$N$118"},"=IF(N86=0,\"n/a\",N98/N86)",0,{"$f":"ADDRESS(126,6,1,1,$D$1)","v":"'Fixed Income Investments'!$F$126"},"='Schedule IIB'!T74+'Schedule IIC'!T74+'Schedule IID'!T74+'Schedule IIE'!T74+'Schedule IIF'!T74",0,{"$f":"ADDRESS(38,4,1,1,$G$1)","v":"'Equity Investments'!$D$38"},"='Schedule IIB'!D58+'Schedule IIC'!D58+'Schedule IID'!D58+'Schedule IIE'!D58+'Schedule IIF'!D58",0,null,null,null,{"$f":"ADDRESS(22,15,1,1,$M$1)","v":"'Currency Risk'!$O$22"},"='Schedule XXA'!AB20",0,{"$f":"ADDRESS(90,2,1,1,$P$1)","v":"'Concentration Risk'!$B$90"},"Other Residential Mortgages",{"$f":"IF(INDIRECT(P250)=Q250,0,1)","v":0},{"$f":"ADDRESS(19,17,1,1,$S$1)","v":"'Geographic Diversification'!$Q$19"},"=+'Schedule IVE'!M19",0,null,null,null,{"$f":"ADDRESS(28,10,1,1,$Y$1)","v":"'Premium Risk'!$J$28"},"='Schedule IVD'!M26*$G28",0]
[{"$f":"ADDRESS(120,14,1,1,$A$1)","v":"Summary!$N$120"},"=IF($N$88=0,\"n/a\",$N$98/$N$88)",0,{"$f":"ADDRESS(126,9,1,1,$D$1)","v":"'Fixed Income Investments'!$I$126"},"=(C126-D126)+MAX(0,E126-F126)",0,{"$f":"ADDRESS(38,5,1,1,$G$1)","v":"'Equity Investments'!$E$38"},"='Schedule IIB'!F58+'Schedule IIC'!F58+'Schedule IID'!F58+'Schedule IIE'!F58+'Schedule IIF'!F58",0,null,null,null,{"$f":"ADDRESS(22,16,1,1,$M$1)","v":"'Currency Risk'!$P$22"},"='Schedule XXA'!AD20",0,{"$f":"ADDRESS(90,4,1,1,$P$1)","v":"'Concentration Risk'!$D$90"},"=SUMIFS('Schedule XXIA'!$M$8:$M$57,'Schedule XXIA'!$J$8:$J$57,$D$87,'Schedule XXIA'!$K$8:$K$57,$B90)",{"$f":"IF(_xlfn.FORMULATEXT(INDIRECT(P251))=Q251,0,1)","v":0},{"$f":"ADDRESS(19,18,1,1,$S$1)","v":"'Geographic Diversification'!$R$19"},"=+'Schedule IVE'!N19",0,null,null,null,{"$f":"ADDRESS(28,11,1,1,$Y$1)","v":"'Premium Risk'!$K$28"},0.42191756117933499,{"$f":"IF(INDIRECT(Y251)=Z251,0,1)","v":0}]
[{"$f":"ADDRESS(120,29,1,1,$A$1)","v":"Summary!$AC$120"},"=MAX(AD106:AD115)",0,{"$f":"ADDRESS(127,3,1,1,$D$1)","v":"'Fixed Income Investments'!$C$127"},"='Schedule IIB'!N75+'Schedule IIC'!N75+'Schedule IID'!N75+'Schedule IIE'!N75+'Schedule IIF'!N75",0,{"$f":"ADDRESS(38,6,1,1,$G$1)","v":"'Equity Investments'!$F$38"},"='Schedule IIB'!H58+'Schedule IIC'!H58+'Schedule IID'!H58+'Schedule IIE'!H58+'Schedule IIF'!H58",0,null,null,null,{"$f":"ADDRESS(22,17,1,1,$M$1)","v":"'Currency Risk'!$Q$22"},"='Schedule XXA'!AF20",0,{"$f":"ADDRESS(90,5,1,1,$P$1)","v":"'Concentration Risk'!$E$90"},"='Fixed Income Investments'!H72",{"$f":"IF(_xlfn.FORMULATEXT(INDIRECT(P252))=Q252,0,1)","v":0},{"$f":"ADDRESS(19,19,1,1,$S$1)","v":"'Geographic Diversification'!$S$19"},"=+'Schedule IVE'!O19",0,null,null,null,{"$f":"ADDRESS(28,12,1,1,$Y$1)","v":"'Premium Risk'!$L$28"},"=+K28*S28",{"$f":"IF(_xlfn.FORMULATEXT(INDIRECT(Y252))=Z252,0,1)","v":0}]
[{"$f":"ADDRESS(122,14,1,1,$A$1)","v":"Summary!$N$122"},"=IF(N108=0,\"n/a\",N98/N108)",0,{"$f":"ADDRESS(127,4,1,1,$D$1)","v":"'Fixed Income Investments'!$D$127"},"='Schedule IIB'!P75+'Schedule IIC'!P75+'Schedule IID'!P75+'Schedule IIE'!P75+'Schedule IIF'!P75",0,{"$f":"ADDRESS(38,7,1,1,$G$1)","v":"'Equity Investments'!$G$38"},"='Schedule IIB'!J58+'Schedule IIC'!J58+'Schedule IID'!J58+'Schedule IIE'!J58+'Schedule IIF'!J58",0,null,null,null,{"$f":"ADDRESS(22,18,1,1,$M$1)","v":"'Currency Risk'!$R$22"},"=IF('Schedule XXA'!AH20=0,Q22,'Schedule XXA'!AH20)",0,{"$f":"ADDRESS(90,6,1,1,$P$1)","v":"'Concentration Risk'!$F$90"},"=MAX(0,(D90*E90))",{"$f":"IF(_xlfn.FORMULATEXT(INDIRECT(P253))=Q253,0,1)","v":0},{"$f":"ADDRESS(19,20,1,1,$S$1)","v":"'Geographic Diversification'!$T$19"},"=+'Schedule IVE'!P19",0,null,null,null,{"$f":"ADDRESS(28,13,1,1,$Y$1)","v":"'Premium Risk'!$M$28"},"=+L28*T28",{"$f":"IF(_xlfn.FORMULATEXT(INDIRECT(Y253))=Z253,0,1)","v":0}]
[{"$f":"ADDRESS(124,14,1,1,$A$1)","v":"Summary!$N$124"},"=IF($N$88=0,\"n/a\",$N$98/$N$110)",0,{"$f":"ADDRESS(127,5,1,1,$D$1)","v":"'Fixed Income Investments'!$E$127"},"='Schedule IIB'!R75+'Schedule IIC'!R75+'Schedule IID'!R75+'Schedule IIE'!R75+'Schedule IIF'!R75",0,{"$f":"ADDRESS(38,8,1,1,$G$1)","v":"'Equity Investments'!$H$38"},"='Schedule IIB'!L58+'Schedule IIC'!L58+'Schedule IID'!L58+'Schedule IIE'!L58+'Schedule IIF'!L58",0,null,null,null,{"$f":"ADDRESS(22,20,1,1,$M$1)","v":"'Currency Risk'!$T$22"},"=(C22-L22)+(D22-M22)+(F22-O22)+MAX(E22-N22,0)+MAX(G22-P22,0)",0,{"$f":"ADDRESS(91,2,1,1,$P$1)","v":"'Concentration Risk'!$B$91"},"Mortgages Not In Good Standing",{"$f":"IF(INDIRECT(P254)=Q254,0,1)","v":0},{"$f":"ADDRESS(19,21,1,1,$S$1)","v":"'Geographic Diversification'!$U$19"},"=+'Schedule IVE'!Q19",0,null,null,null,{"$f":"ADDRESS(28,14,1,1,$Y$1)","v":"'Premium Risk'!$N$28"},"=IF($H28<0,0,$H28*$K28)+IF($I28<0,0,$I28*$L28)+IF($J28<0,0,$J28*$M28)",{"$f":"IF(_xlfn.FORMULATEXT(INDIRECT(Y254))=Z254,0,1)","v":0}]
[{"$f":"ADDRESS(126,14,1,1,$A$1)","v":"Summary!$N$126"},"=IF(N124=\"n/a\",\"n/a\",IF(N124>100%,\"YES\",\"NO\"))",0,{"$f":"ADDRESS(127,6,1,1,$D$1)","v":"'Fixed Income Investments'!$F$127"},"='Schedule IIB'!T75+'Schedule IIC'!T75+'Schedule IID'!T75+'Schedule IIE'!T75+'Schedule IIF'!T75",0,{"$f":"ADDRESS(38,9,1,1,$G$1)","v":"'Equity Investments'!$I$38"},"='Schedule IIB'!N58+'Schedule IIC'!N58+'Schedule IID'!N58+'Schedule IIE'!N58+'Schedule IIF'!N58",0,null,null,null,{"$f":"ADDRESS(22,21,1,1,$M$1)","v":"'Currency Risk'!$U$22"},"=Q22-$H22",0,{"$f":"ADDRESS(91,4,1,1,$P$1)","v":"'Concentration Risk'!$D$91"},"=SUMIFS('Schedule XXIA'!$M$8:$M$57,'Schedule XXIA'!$J$8:$J$57,$D$87,'Schedule XXIA'!$K$8:$K$57,$B91)",{"$f":"IF(_xlfn.FORMULATEXT(INDIRECT(P255))=Q255,0,1)","v":0},{"$f":"ADDRESS(19,22,1,1,$S$1)","v":"'Geographic Diversification'!$V$19"},"=+'Schedule IVE'!R19",0,null,null,null,{"$f":"ADDRESS(28,17,1,1,$Y$1)","v":"'Premium Risk'!$Q$28"},"=IF(H28=E28,MAX(D28*K28,0),IF(E28=F28,IF(D28<0,0,D28*(H28/F28)*K28),IF(D28<0,0,D28*(H28/E28)*K28)))\n+IF(I28=E28,MAX(D28*L28,0),IF(E28=F28,IF(D28<0,0,D28*(I28/F28)*L28),IF(D28<0,0,D28*(I28/E28)*L28)))\n+IF(J28=E28,MAX(D28*M28,0),IF(E28=F28,IF(D28<0,0,D28*(J28/F28)*M28),IF(D28<0,0,D28*(J28/E28)*M28)))",{"$f":"IF(_xlfn.FORMULATEXT(INDIRECT(Y255))=Z255,0,1)","v":0}]
[{"$f":"ADDRESS(129,12,1,1,$A$1)","v":"Summary!$L$129"},"='Form 1SFS (Consolidated)'!$M$9",0,{"$f":"ADDRESS(127,9,1,1,$D$1)","v":"'Fixed Income Investments'!$I$127"},"=(C127-D127)+MAX(0,E127-F127)",{"$f":"IF(_xlfn.FORMULATEXT(INDIRECT(D256))=E256,0,1)","v":0},{"$f":"ADDRESS(38,10,1,1,$G$1)","v":"'Equity Investments'!$J$38"},"='Schedule IIB'!P58+'Schedule IIC'!P58+'Schedule IID'!P58+'Schedule IIE'!P58+'Schedule IIF'!P58",0,null,null,null,{"$f":"ADDRESS(22,22,1,1,$M$1)","v":"'Currency Risk'!$V$22"},"=R22-$H22",0,{"$f":"ADDRESS(91,5,1,1,$P$1)","v":"'Concentration Risk'!$E$91"},"='Fixed Income Investments'!H73",{"$f":"IF(_xlfn.FORMULATEXT(INDIRECT(P256))=Q256,0,1)","v":0},{"$f":"ADDRESS(19,23,1,1,$S$1)","v":"'Geographic Diversification'!$W$19"},"=+'Schedule IVE'!S19",0,null,null,null,{"$f":"ADDRESS(28,19,1,1,$Y$1)","v":"'Premium Risk'!$S$28"},0.3,{"$f":"IF(INDIRECT(Y256)=Z256,0,1)","v":0}]
[{"$f":"ADDRESS(133,5,1,1,$A$1)","v":"Summary!$E$133"},"='Schedule XII(a)'!G93",0,{"$f":"ADDRESS(128,3,1,1,$D$1)","v":"'Fixed Income Investments'!$C$128"},"='Schedule IIB'!N76+'Schedule IIC'!N76+'Schedule IID'!N76+'Schedule IIE'!N76+'Schedule IIF'!N76",0,{"$f":"ADDRESS(38,11,1,1,$G$1)","v":"'Equity Investments'!$K$38"},"='Schedule IIB'!R58+'Schedule IIC'!R58+'Schedule IID'!R58+'Schedule IIE'!R58+'Schedule IIF'!R58",0,null,null,null,{"$f":"ADDRESS(22,24,1,1,$M$1)","v":"'Currency Risk'!$X$22"},"=MAX(0,$T22+U22+(J22*I22))",0,{"$f":"ADDRESS(91,6,1,1,$P$1)","v":"'Concentration Risk'!$F$91"},"=MAX(0,(D91*E91))",{"$f":"IF(_xlfn.FORMULATEXT(INDIRECT(P257))=Q257,0,1)","v":0},{"$f":"ADDRESS(19,24,1,1,$S$1)","v":"'Geographic Diversification'!$X$19"},"=+'Schedule IVE'!T19",0,null,null,null,{"$f":"ADDRESS(28,20,1,1,$Y$1)","v":"'Premium Risk'!$T$28"},0.5,{"$f":"IF(INDIRECT(Y257)=Z257,0,1)","v":0}]
[{"$f":"ADDRESS(133,12,1,1,$A$1)","v":"Summary!$L$133"},"='Schedule XII(a)'!I93",0,{"$f":"ADDRESS(128,4,1,1,$D$1)","v":"'Fixed Income Investments'!$D$128"},"='Schedule IIB'!P76+'Schedule IIC'!P76+'Schedule IID'!P76+'Schedule IIE'!P76+'Schedule IIF'!P76",0,{"$f":"ADDRESS(38,12,1,1,$G$1)","v":"'Equity Investments'!$L$38"},"='Schedule IIB'!T58+'Schedule IIC'!T58+'Schedule IID'!T58+'Schedule IIE'!T58+'Schedule IIF'!T58",0,null,null,null,{"$f":"ADDRESS(22,25,1,1,$M$1)","v":"'Currency Risk'!$Y$22"},"=MAX(0,$T22+V22+(J22*I22))",0,{"$f":"ADDRESS(93,4,1,1,$P$1)","v":"'Concentration Risk'!$D$93"},"=SUM(D88:D91)",{"$f":"IF(_xlfn.FORMULATEXT(INDIRECT(P258))=Q258,0,1)","v":0},{"$f":"ADDRESS(19,25,1,1,$S$1)","v":"'Geographic Diversification'!$Y$19"},"=+'Schedule IVE'!U19",0,null,null,null,{"$f":"ADDRESS(29,4,1,1,$Y$1)","v":"'Premium Risk'!$D$29"},"='Schedule IVD'!Q27",{"$f":"IF(_xlfn.FORMULATEXT(INDIRECT(Y258))=Z258,0,1)","v":0}]
[{"$f":"ADDRESS(134,5,1,1,$A$1)","v":"Summary!$E$134"},"='Schedule XII(a)'!G94",0,{"$f":"ADDRESS(128,5,1,1,$D$1)","v":"'Fixed Income Investments'!$E$128"},"='Schedule IIB'!R76+'Schedule IIC'!R76+'Schedule IID'!R76+'Schedule IIE'!R76+'Schedule IIF'!R76",0,{"$f":"ADDRESS(38,16,1,1,$G$1)","v":"'Equity Investments'!$P$38"},"=MAX(D38-E38,0)+(F38-G38)+MAX(H38-I38,0)+(K38-J38)",0,null,null,null,{"$f":"ADDRESS(23,2,1,1,$M$1)","v":"'Currency Risk'!$B$23"},"='Schedule XXA'!B21",0,{"$f":"ADDRESS(93,6,1,1,$P$1)","v":"'Concentration Risk'!$F$93"},"=SUM(F88:F91)",{"$f":"IF(_xlfn.FORMULATEXT(INDIRECT(P259))=Q259,0,1)","v":0},{"$f":"ADDRESS(19,26,1,1,$S$1)","v":"'Geographic Diversification'!$Z$19"},"=+'Schedule IVE'!V19",0,null,null,null,{"$f":"ADDRESS(29,5,1,1,$Y$1)","v":"'Premium Risk'!$E$29"},"='Schedule IVD'!O27",0]
[{"$f":"ADDRESS(134,12,1,1,$A$1)","v":"Summary!$L$134"},"='Schedule XII(a)'!I94",0,{"$f":"ADDRESS(128,6,1,1,$D$1)","v":"'Fixed Income Investments'!$F$128"},"='Schedule IIB'!T76+'Schedule IIC'!T76+'Schedule IID'!T76+'Schedule IIE'!T76+'Schedule IIF'!T76",0,{"$f":"ADDRESS(38,18,1,1,$G$1)","v":"'Equity Investments'!$R$38"},"=MAX(D38-E38,0)+(F38-G38)+MAX(H38-I38,0)+(L38-J38)",0,null,null,null,{"$f":"ADDRESS(23,3,1,1,$M$1)","v":"'Currency Risk'!$C$23"},"='Schedule XXA'!D21",0,{"$f":"ADDRESS(96,2,1,1,$P$1)","v":"'Concentration Risk'!$B$96"},"Infrastructure (Non-affiliate holdings, non-duration based)",{"$f":"IF(INDIRECT(P260)=Q260,0,1)","v":0},{"$f":"ADDRESS(20,4,1,1,$S$1)","v":"'Geographic Diversification'!$D$20"},"=SUM(I20:Z20)",{"$f":"IF(_xlfn.FORMULATEXT(INDIRECT(S260))=T260,0,1)","v":0},null,null,null,{"$f":"ADDRESS(29,6,1,1,$Y$1)","v":"'Premium Risk'!$F$29"},"='Geographic Diversification'!H27",0]
[{"$f":"ADDRESS(135,12,1,1,$A$1)","v":"Summary!$L$135"},"='Schedule XII(a)'!I95",0,{"$f":"ADDRESS(128,9,1,1,$D$1)","v":"'Fixed Income Investments'!$I$128"},"=(C128-D128)+MAX(0,E128-F128)",0,{"$f":"ADDRESS(40,4,1,1,$G$1)","v":"'Equity Investments'!$D$40"},"=SUM(D37:D39)",0,null,null,null,{"$f":"ADDRESS(23,4,1,1,$M$1)","v":"'Currency Risk'!$D$23"},"='Schedule XXA'!F21",0,{"$f":"ADDRESS(96,4,1,1,$P$1)","v":"'Concentration Risk'!$D$96"},"=SUMIFS('Schedule XXIA'!$M$8:$M$57,'Schedule XXIA'!$J$8:$J$57,$B96)",{"$f":"IF(_xlfn.FORMULATEXT(INDIRECT(P261))=Q261,0,1)","v":0},{"$f":"ADDRESS(20,5,1,1,$S$1)","v":"'Geographic Diversification'!$E$20"},"=SUMSQ(I20:Z20)",0,null,null,null,{"$f":"ADDRESS(29,7,1,1,$Y$1)","v":"'Premium Risk'!$G$29"},"=IF(IFERROR(F29/E29,1)<0,1,IFERROR(F29/E29,1))",0]
[{"$f":"ADDRESS(136,5,1,1,$A$1)","v":"Summary!$E$136"},"=+'Schedule XII(a)'!G96",0,{"$f":"ADDRESS(129,3,1,1,$D$1)","v":"'Fixed Income Investments'!$C$129"},"=SUM(C120:C128)",0,{"$f":"ADDRESS(40,5,1,1,$G$1)","v":"'Equity Investments'!$E$40"},"=SUM(E37:E39)",0,null,null,null,{"$f":"ADDRESS(23,5,1,1,$M$1)","v":"'Currency Risk'!$E$23"},"='Schedule XXA'!H21",0,{"$f":"ADDRESS(96,5,1,1,$P$1)","v":"'Concentration Risk'!$E$96"},0.25,{"$f":"IF(INDIRECT(P262)=Q262,0,1)","v":0},{"$f":"ADDRESS(20,6,1,1,$S$1)","v":"'Geographic Diversification'!$F$20"},"=(IF(D20>0,E20/D20^2,1))",0,null,null,null,{"$f":"ADDRESS(29,8,1,1,$Y$1)","v":"'Premium Risk'!$H$29"},"='Schedule IVD'!I27*$G29",0]
[{"$f":"ADDRESS(136,12,1,1,$A$1)","v":"Summary!$L$136"},"=+'Schedule XII(a)'!I96",0,{"$f":"ADDRESS(129,4,1,1,$D$1)","v":"'Fixed Income Investments'!$D$129"},"=SUM(D120:D128)",0,{"$f":"ADDRESS(40,6,1,1,$G$1)","v":"'Equity Investments'!$F$40"},"=SUM(F37:F39)",0,null,null,null,{"$f":"ADDRESS(23,6,1,1,$M$1)","v":"'Currency Risk'!$F$23"},"='Schedule XXA'!J21",0,{"$f":"ADDRESS(96,6,1,1,$P$1)","v":"'Concentration Risk'!$F$96"},"=MAX(0,(D96*E96))",{"$f":"IF(_xlfn.FORMULATEXT(INDIRECT(P263))=Q263,0,1)","v":0},{"$f":"ADDRESS(20,7,1,1,$S$1)","v":"'Geographic Diversification'!$G$20"},"=D20*(0.75+0.25*F20)",0,null,null,null,{"$f":"ADDRESS(29,9,1,1,$Y$1)","v":"'Premium Risk'!$I$29"},"='Schedule IVD'!K27*$G29",0]
[{"$f":"ADDRESS(138,5,1,1,$A$1)","v":"Summary!$E$138"},"=IF(E136>=N108,\"YES\",\"NO\")",0,{"$f":"ADDRESS(129,5,1,1,$D$1)","v":"'Fixed Income Investments'!$E$129"},"=SUM(E120:E128)",0,{"$f":"ADDRESS(40,7,1,1,$G$1)","v":"'Equity Investments'!$G$40"},"=SUM(G37:G39)",{"$f":"IF(_xlfn.FORMULATEXT(INDIRECT(G264))=H264,0,1)","v":0},null,null,null,{"$f":"ADDRESS(23,7,1,1,$M$1)","v":"'Currency Risk'!$G$23"},"='Schedule XXA'!L21",0,{"$f":"ADDRESS(97,2,1,1,$P$1)","v":"'Concentration Risk'!$B$97"},"Listed Equity Securities in Developed Markets",{"$f":"IF(INDIRECT(P264)=Q264,0,1)","v":0},{"$f":"ADDRESS(20,8,1,1,$S$1)","v":"'Geographic Diversification'!$H$20"},"=IF('Schedule IVE'!AB20=\"True\",G20,'Schedule IVD'!O20)",0,null,null,null,{"$f":"ADDRESS(29,10,1,1,$Y$1)","v":"'Premium Risk'!$J$29"},"='Schedule IVD'!M27*$G29",0]
[{"$f":"ADDRESS(138,12,1,1,$A$1)","v":"Summary!$L$138"},"=IF(L136>=N112,\"YES\",\"NO\")",0,{"$f":"ADDRESS(129,6,1,1,$D$1)","v":"'Fixed Income Investments'!$F$129"},"=SUM(F120:F128)",0,{"$f":"ADDRESS(40,8,1,1,$G$1)","v":"'Equity Investments'!$H$40"},"=SUM(H37:H39)",0,null,null,null,{"$f":"ADDRESS(23,8,1,1,$M$1)","v":"'Currency Risk'!$H$23"},"='Schedule XXA'!N21",0,{"$f":"ADDRESS(97,4,1,1,$P$1)","v":"'Concentration Risk'!$D$97"},"=SUMIFS('Schedule XXIA'!$M$8:$M$57,'Schedule XXIA'!$J$8:$J$57,$B97)",{"$f":"IF(_xlfn.FORMULATEXT(INDIRECT(P265))=Q265,0,1)","v":0},{"$f":"ADDRESS(20,9,1,1,$S$1)","v":"'Geographic Diversification'!$I$20"},"=+'Schedule IVE'!E20",0,null,null,null,{"$f":"ADDRESS(29,11,1,1,$Y$1)","v":"'Premium Risk'!$K$29"},0.482210885429324,{"$f":"IF(INDIRECT(Y265)=Z265,0,1)","v":0}]
[{"$f":"ADDRESS(143,13,1,1,$A$1)","v":"Summary!$M$143"},"=N72-L72",0,{"$f":"ADDRESS(129,9,1,1,$D$1)","v":"'Fixed Income Investments'!$I$129"},"=MAX(SUM(I120:I128),0)",0,{"$f":"ADDRESS(40,9,1,1,$G$1)","v":"'Equity Investments'!$I$40"},"=SUM(I37:I39)",0,null,null,null,{"$f":"ADDRESS(23,9,1,1,$M$1)","v":"'Currency Risk'!$I$23"},"=$I$10*H23",0,{"$f":"ADDRESS(97,5,1,1,$P$1)","v":"'Concentration Risk'!$E$97"},0.35,{"$f":"IF(INDIRECT(P266)=Q266,0,1)","v":0},{"$f":"ADDRESS(20,10,1,1,$S$1)","v":"'Geographic Diversification'!$J$20"},"=+'Schedule IVE'!F20",0,null,null,null,{"$f":"ADDRESS(29,12,1,1,$Y$1)","v":"'Premium Risk'!$L$29"},"=+K29*S29",{"$f":"IF(_xlfn.FORMULATEXT(INDIRECT(Y266))=Z266,0,1)","v":0}]
[{"$f":"ADDRESS(145,13,1,1,$A$1)","v":"Summary!$M$145"},"=-MAX(MIN(M143,M144),0)",0,{"$f":"ADDRESS(131,9,1,1,$D$1)","v":"'Fixed Income Investments'!$I$131"},"=I114",0,{"$f":"ADDRESS(40,10,1,1,$G$1)","v":"'Equity Investments'!$J$40"},"=SUM(J37:J39)",0,null,null,null,{"$f":"ADDRESS(23,10,1,1,$M$1)","v":"'Currency Risk'!$J$23"},"=IF((SUM(C23:G23))>(H23+I23),0%,25%)",0,{"$f":"ADDRESS(97,6,1,1,$P$1)","v":"'Concentration Risk'!$F$97"},"=MAX(0,(D97*E97))",{"$f":"IF(_xlfn.FORMULATEXT(INDIRECT(P267))=Q267,0,1)","v":0},{"$f":"ADDRESS(20,11,1,1,$S$1)","v":"'Geographic Diversification'!$K$20"},"=+'Schedule IVE'!G20",0,null,null,null,{"$f":"ADDRESS(29,13,1,1,$Y$1)","v":"'Premium Risk'!$M$29"},"=+L29*T29",{"$f":"IF(_xlfn.FORMULATEXT(INDIRECT(Y267))=Z267,0,1)","v":0}]
[{"$f":"ADDRESS(150,13,1,1,$A$1)","v":"Summary!$M$150"},"=-MIN(D156,K159,M155)",0,{"$f":"ADDRESS(132,9,1,1,$D$1)","v":"'Fixed Income Investments'!$I$132"},"=I129",0,{"$f":"ADDRESS(40,11,1,1,$G$1)","v":"'Equity Investments'!$K$40"},"=SUM(K37:K39)",0,null,null,null,{"$f":"ADDRESS(23,12,1,1,$M$1)","v":"'Currency Risk'!$L$23"},"='Schedule XXA'!V21",0,{"$f":"ADDRESS(98,2,1,1,$P$1)","v":"'Concentration Risk'!$B$98"},"Other Equities",{"$f":"IF(INDIRECT(P268)=Q268,0,1)","v":0},{"$f":"ADDRESS(20,12,1,1,$S$1)","v":"'Geographic Diversification'!$L$20"},"=+'Schedule IVE'!H20",0,null,null,null,{"$f":"ADDRESS(29,14,1,1,$Y$1)","v":"'Premium Risk'!$N$29"},"=IF($H29<0,0,$H29*$K29)+IF($I29<0,0,$I29*$L29)+IF($J29<0,0,$J29*$M29)",{"$f":"IF(_xlfn.FORMULATEXT(INDIRECT(Y268))=Z268,0,1)","v":0}]
[{"$f":"ADDRESS(154,4,1,1,$A$1)","v":"Summary!$D$154"},"=N72+N76+N78+N80+N84",0,{"$f":"ADDRESS(134,9,1,1,$D$1)","v":"'Fixed Income Investments'!$I$134"},"=MAX(I131,I132)",0,{"$f":"ADDRESS(40,12,1,1,$G$1)","v":"'Equity Investments'!$L$40"},"=SUM(L37:L39)",0,null,null,null,{"$f":"ADDRESS(23,13,1,1,$M$1)","v":"'Currency Risk'!$M$23"},"='Schedule XXA'!X21",0,{"$f":"ADDRESS(98,4,1,1,$P$1)","v":"'Concentration Risk'!$D$98"},"=SUMIFS('Schedule XXIA'!$M$8:$M$57,'Schedule XXIA'!$J$8:$J$57,$B98)",{"$f":"IF(_xlfn.FORMULATEXT(INDIRECT(P269))=Q269,0,1)","v":0},{"$f":"ADDRESS(20,13,1,1,$S$1)","v":"'Geographic Diversification'!$M$20"},"=+'Schedule IVE'!I20",0,null,null,null,{"$f":"ADDRESS(29,17,1,1,$Y$1)","v":"'Premium Risk'!$Q$29"},"=IF(H29=E29,MAX(D29*K29,0),IF(E29=F29,IF(D29<0,0,D29*(H29/F29)*K29),IF(D29<0,0,D29*(H29/E29)*K29)))\n+IF(I29=E29,MAX(D29*L29,0),IF(E29=F29,IF(D29<0,0,D29*(I29/F29)*L29),IF(D29<0,0,D29*(I29/E29)*L29)))\n+IF(J29=E29,MAX(D29*M29,0),IF(E29=F29,IF(D29<0,0,D29*(J29/F29)*M29),IF(D29<0,0,D29*(J29/E29)*M29)))",{"$f":"IF(_xlfn.FORMULATEXT(INDIRECT(Y269))=Z269,0,1)","v":0}]
[{"$f":"ADDRESS(154,13,1,1,$A$1)","v":"Summary!$M$154"},"=N72+N76+N78+N84+N80",0,{"$f":"ADDRESS(136,7,1,1,$D$1)","v":"'Fixed Income Investments'!$G$136"},"=G22+G36+G51+G66+G75+G97",0,{"$f":"ADDRESS(40,16,1,1,$G$1)","v":"'Equity Investments'!$P$40"},"=MAX(SUM(P37:P39),0)",0,null,null,null,{"$f":"ADDRESS(23,14,1,1,$M$1)","v":"'Currency Risk'!$N$23"},"='Schedule XXA'!Z21",0,{"$f":"ADDRESS(98,5,1,1,$P$1)","v":"'Concentration Risk'!$E$98"},0.45,{"$f":"IF(INDIRECT(P270)=Q270,0,1)","v":0},{"$f":"ADDRESS(20,14,1,1,$S$1)","v":"'Geographic Diversification'!$N$20"},"=+'Schedule IVE'!J20",0,null,null,null,{"$f":"ADDRESS(29,19,1,1,$Y$1)","v":"'Premium Risk'!$S$29"},0.5,{"$f":"IF(INDIRECT(Y270)=Z270,0,1)","v":0}]
[{"$f":"ADDRESS(155,12,1,1,$A$1)","v":"Summary!$L$155"},0.2,{"$f":"IF(INDIRECT(A271)=B271,0,1)","v":0},{"$f":"ADDRESS(136,9,1,1,$D$1)","v":"'Fixed Income Investments'!$I$136"},"=I22+I36+I51+I66+I75+I97+I134",0,{"$f":"ADDRESS(40,18,1,1,$G$1)","v":"'Equity Investments'!$R$40"},"=MAX(SUM(R37:R39),0)",0,null,null,null,{"$f":"ADDRESS(23,15,1,1,$M$1)","v":"'Currency Risk'!$O$23"},"='Schedule XXA'!AB21",0,{"$f":"ADDRESS(98,6,1,1,$P$1)","v":"'Concentration Risk'!$F$98"},"=MAX(0,(D98*E98))",{"$f":"IF(_xlfn.FORMULATEXT(INDIRECT(P271))=Q271,0,1)","v":0},{"$f":"ADDRESS(20,15,1,1,$S$1)","v":"'Geographic Diversification'!$O$20"},"=+'Schedule IVE'!K20",0,null,null,null,{"$f":"ADDRESS(29,20,1,1,$Y$1)","v":"'Premium Risk'!$T$29"},0.5,{"$f":"IF(INDIRECT(Y271)=Z271,0,1)","v":0}]
[{"$f":"ADDRESS(155,13,1,1,$A$1)","v":"Summary!$M$155"},"=M154*L155",{"$f":"IF(_xlfn.FORMULATEXT(INDIRECT(A272))=B272,0,1)","v":0},null,null,-272,{"$f":"ADDRESS(43,4,1,1,$G$1)","v":"'Equity Investments'!$D$43"},"='Schedule IIB'!D59+'Schedule IIC'!D59+'Schedule IID'!D59+'Schedule IIE'!D59+'Schedule IIF'!D59",0,null,null,null,{"$f":"ADDRESS(23,16,1,1,$M$1)","v":"'Currency Risk'!$P$23"},"='Schedule XXA'!AD21",0,{"$f":"ADDRESS(99,2,1,1,$P$1)","v":"'Concentration Risk'!$B$99"},"Strategic Holdings",{"$f":"IF(INDIRECT(P272)=Q272,0,1)","v":0},{"$f":"ADDRESS(20,16,1,1,$S$1)","v":"'Geographic Diversification'!$P$20"},"=+'Schedule IVE'!L20",0,null,null,null,{"$f":"ADDRESS(30,4,1,1,$Y$1)","v":"'Premium Risk'!$D$30"},"='Schedule IVD'!Q28",{"$f":"IF(_xlfn.FORMULATEXT(INDIRECT(Y272))=Z272,0,1)","v":0}]
[{"$f":"ADDRESS(156,4,1,1,$A$1)","v":"Summary!$D$156"},"=MAX(0,D154*D155)",{"$f":"IF(_xlfn.FORMULATEXT(INDIRECT(A273))=B273,0,1)","v":0},null,null,null,{"$f":"ADDRESS(43,5,1,1,$G$1)","v":"'Equity Investments'!$E$43"},"='Schedule IIB'!F59+'Schedule IIC'!F59+'Schedule IID'!F59+'Schedule IIE'!F59+'Schedule IIF'!F59",0,null,null,null,{"$f":"ADDRESS(23,17,1,1,$M$1)","v":"'Currency Risk'!$Q$23"},"='Schedule XXA'!AF21",0,{"$f":"ADDRESS(99,4,1,1,$P$1)","v":"'Concentration Risk'!$D$99"},"=SUMIFS('Schedule XXIA'!$M$8:$M$57,'Schedule XXIA'!$J$8:$J$57,$B99)",{"$f":"IF(_xlfn.FORMULATEXT(INDIRECT(P273))=Q273,0,1)","v":0},{"$f":"ADDRESS(20,17,1,1,$S$1)","v":"'Geographic Diversification'!$Q$20"},"=+'Schedule IVE'!M20",0,null,null,null,{"$f":"ADDRESS(30,5,1,1,$Y$1)","v":"'Premium Risk'!$E$30"},"='Schedule IVD'!O28",0]
[{"$f":"ADDRESS(156,11,1,1,$A$1)","v":"Summary!$K$156"},"=K155*D155",{"$f":"IF(_xlfn.FORMULATEXT(INDIRECT(A274))=B274,0,1)","v":0},null,null,null,{"$f":"ADDRESS(43,6,1,1,$G$1)","v":"'Equity Investments'!$F$43"},"='Schedule IIB'!H59+'Schedule IIC'!H59+'Schedule IID'!H59+'Schedule IIE'!H59+'Schedule IIF'!H59",0,null,null,null,{"$f":"ADDRESS(23,18,1,1,$M$1)","v":"'Currency Risk'!$R$23"},"=IF('Schedule XXA'!AH21=0,Q23,'Schedule XXA'!AH21)",0,{"$f":"ADDRESS(99,5,1,1,$P$1)","v":"'Concentration Risk'!$E$99"},0.2,{"$f":"IF(INDIRECT(P274)=Q274,0,1)","v":0},{"$f":"ADDRESS(20,18,1,1,$S$1)","v":"'Geographic Diversification'!$R$20"},"=+'Schedule IVE'!N20",0,null,null,null,{"$f":"ADDRESS(30,6,1,1,$Y$1)","v":"'Premium Risk'!$F$30"},"='Geographic Diversification'!H28",0]
[{"$f":"ADDRESS(159,11,1,1,$A$1)","v":"Summary!$K$159"},"=MAX(0,SUM(K156:K158))",{"$f":"IF(_xlfn.FORMULATEXT(INDIRECT(A275))=B275,0,1)","v":0},null,null,null,{"$f":"ADDRESS(43,7,1,1,$G$1)","v":"'Equity Investments'!$G$43"},"='Schedule IIB'!J59+'Schedule IIC'!J59+'Schedule IID'!J59+'Schedule IIE'!J59+'Schedule IIF'!J59",0,null,null,null,{"$f":"ADDRESS(23,20,1,1,$M$1)","v":"'Currency Risk'!$T$23"},"=(C23-L23)+(D23-M23)+(F23-O23)+MAX(E23-N23,0)+MAX(G23-P23,0)",0,{"$f":"ADDRESS(99,6,1,1,$P$1)","v":"'Concentration Risk'!$F$99"},"=MAX(0,(D99*E99))",{"$f":"IF(_xlfn.FORMULATEXT(INDIRECT(P275))=Q275,0,1)","v":0},{"$f":"ADDRESS(20,19,1,1,$S$1)","v":"'Geographic Diversification'!$S$20"},"=+'Schedule IVE'!O20",0,null,null,null,{"$f":"ADDRESS(30,7,1,1,$Y$1)","v":"'Premium Risk'!$G$30"},"=IF(IFERROR(F30/E30,1)<0,1,IFERROR(F30/E30,1))",0]
[{"$f":"ADDRESS(164,17,1,1,$A$1)","v":"Summary!$Q$164"},10,{"$f":"IF(INDIRECT(A276)=B276,0,1)","v":0},null,null,null,{"$f":"ADDRESS(43,8,1,1,$G$1)","v":"'Equity Investments'!$H$43"},"='Schedule IIB'!L59+'Schedule IIC'!L59+'Schedule IID'!L59+'Schedule IIE'!L59+'Schedule IIF'!L59",0,null,null,null,{"$f":"ADDRESS(23,21,1,1,$M$1)","v":"'Currency Risk'!$U$23"},"=Q23-$H23",0,{"$f":"ADDRESS(100,2,1,1,$P$1)","v":"'Concentration Risk'!$B$100"},"Duration Based",{"$f":"IF(INDIRECT(P276)=Q276,0,1)","v":0},{"$f":"ADDRESS(20,20,1,1,$S$1)","v":"'Geographic Diversification'!$T$20"},"=+'Schedule IVE'!P20",0,null,null,null,{"$f":"ADDRESS(30,8,1,1,$Y$1)","v":"'Premium Risk'!$H$30"},"='Schedule IVD'!I28*$G30",0]
[null,null,-277,null,null,null,{"$f":"ADDRESS(43,9,1,1,$G$1)","v":"'Equity Investments'!$I$43"},"='Schedule IIB'!N59+'Schedule IIC'!N59+'Schedule IID'!N59+'Schedule IIE'!N59+'Schedule IIF'!N59",0,null,null,null,{"$f":"ADDRESS(23,22,1,1,$M$1)","v":"'Currency Risk'!$V$23"},"=R23-$H23",0,{"$f":"ADDRESS(100,4,1,1,$P$1)","v":"'Concentration Risk'!$D$100"},"=SUMIFS('Schedule XXIA'!$M$8:$M$57,'Schedule XXIA'!$J$8:$J$57,$B100)",{"$f":"IF(_xlfn.FORMULATEXT(INDIRECT(P277))=Q277,0,1)","v":0},{"$f":"ADDRESS(20,21,1,1,$S$1)","v":"'Geographic Diversification'!$U$20"},"=+'Schedule IVE'!Q20",0,null,null,null,{"$f":"ADDRESS(30,9,1,1,$Y$1)","v":"'Premium Risk'!$I$30"},"='Schedule IVD'!K28*$G30",0]
[null,null,null,null,null,null,{"$f":"ADDRESS(43,10,1,1,$G$1)","v":"'Equity Investments'!$J$43"},"='Schedule IIB'!P59+'Schedule IIC'!P59+'Schedule IID'!P59+'Schedule IIE'!P59+'Schedule IIF'!P59",0,null,null,null,{"$f":"ADDRESS(23,24,1,1,$M$1)","v":"'Currency Risk'!$X$23"},"=MAX(0,$T23+U23+(J23*I23))",0,{"$f":"ADDRESS(100,5,1,1,$P$1)","v":"'Concentration Risk'!$E$100"},"='Equity Investments'!$N$12",{"$f":"IF(_xlfn.FORMULATEXT(INDIRECT(P278))=Q278,0,1)","v":0},{"$f":"ADDRESS(20,22,1,1,$S$1)","v":"'Geographic Diversification'!$V$20"},"=+'Schedule IVE'!R20",0,null,null,null,{"$f":"ADDRESS(30,10,1,1,$Y$1)","v":"'Premium Risk'!$J$30"},"='Schedule IVD'!M28*$G30",0]
[null,null,null,null,null,null,{"$f":"ADDRESS(43,11,1,1,$G$1)","v":"'Equity Investments'!$K$43"},"='Schedule IIB'!R59+'Schedule IIC'!R59+'Schedule IID'!R59+'Schedule IIE'!R59+'Schedule IIF'!R59",0,null,null,null,{"$f":"ADDRESS(23,25,1,1,$M$1)","v":"'Currency Risk'!$Y$23"},"=MAX(0,$T23+V23+(J23*I23))",0,{"$f":"ADDRESS(100,6,1,1,$P$1)","v":"'Concentration Risk'!$F$100"},"=MAX(0,(D100*E100))",{"$f":"IF(_xlfn.FORMULATEXT(INDIRECT(P279))=Q279,0,1)","v":0},{"$f":"ADDRESS(20,23,1,1,$S$1)","v":"'Geographic Diversification'!$W$20"},"=+'Schedule IVE'!S20",0,null,null,null,{"$f":"ADDRESS(30,11,1,1,$Y$1)","v":"'Premium Risk'!$K$30"},0.50012106835589698,{"$f":"IF(INDIRECT(Y279)=Z279,0,1)","v":0}]
[null,null,null,null,null,null,{"$f":"ADDRESS(43,12,1,1,$G$1)","v":"'Equity Investments'!$L$43"},"='Schedule IIB'!T59+'Schedule IIC'!T59+'Schedule IID'!T59+'Schedule IIE'!T59+'Schedule IIF'!T59",0,null,null,null,{"$f":"ADDRESS(24,2,1,1,$M$1)","v":"'Currency Risk'!$B$24"},"='Schedule XXA'!B22",0,{"$f":"ADDRESS(101,2,1,1,$P$1)","v":"'Concentration Risk'!$B$101"},"Letters of Credit",{"$f":"IF(INDIRECT(P280)=Q280,0,1)","v":0},{"$f":"ADDRESS(20,24,1,1,$S$1)","v":"'Geographic Diversification'!$X$20"},"=+'Schedule IVE'!T20",0,null,null,null,{"$f":"ADDRESS(30,12,1,1,$Y$1)","v":"'Premium Risk'!$L$30"},"=+K30*S30",{"$f":"IF(_xlfn.FORMULATEXT(INDIRECT(Y280))=Z280,0,1)","v":0}]
[null,null,null,null,null,null,{"$f":"ADDRESS(43,16,1,1,$G$1)","v":"'Equity Investments'!$P$43"},"=MAX(D43-E43,0)+(F43-G43)+MAX(H43-I43,0)+(K43-J43)",0,null,null,null,{"$f":"ADDRESS(24,3,1,1,$M$1)","v":"'Currency Risk'!$C$24"},"='Schedule XXA'!D22",0,{"$f":"ADDRESS(101,4,1,1,$P$1)","v":"'Concentration Risk'!$D$101"},"=SUMIFS('Schedule XXIA'!$M$8:$M$57,'Schedule XXIA'!$J$8:$J$57,$B101)",{"$f":"IF(_xlfn.FORMULATEXT(INDIRECT(P281))=Q281,0,1)","v":0},{"$f":"ADDRESS(20,25,1,1,$S$1)","v":"'Geographic Diversification'!$Y$20"},"=+'Schedule IVE'!U20",0,null,null,null,{"$f":"ADDRESS(30,13,1,1,$Y$1)","v":"'Premium Risk'!$M$30"},"=+L30*T30",{"$f":"IF(_xlfn.FORMULATEXT(INDIRECT(Y281))=Z281,0,1)","v":0}]
[null,null,null,null,null,null,{"$f":"ADDRESS(43,18,1,1,$G$1)","v":"'Equity Investments'!$R$43"},"=MAX(D43-E43,0)+(F43-G43)+MAX(H43-I43,0)+(L43-J43)",0,null,null,null,{"$f":"ADDRESS(24,4,1,1,$M$1)","v":"'Currency Risk'!$D$24"},"='Schedule XXA'!F22",0,{"$f":"ADDRESS(101,5,1,1,$P$1)","v":"'Concentration Risk'!$E$101"},"='Equity Investments'!N29",{"$f":"IF(_xlfn.FORMULATEXT(INDIRECT(P282))=Q282,0,1)","v":0},{"$f":"ADDRESS(20,26,1,1,$S$1)","v":"'Geographic Diversification'!$Z$20"},"=+'Schedule IVE'!V20",0,null,null,null,{"$f":"ADDRESS(30,14,1,1,$Y$1)","v":"'Premium Risk'!$N$30"},"=IF($H30<0,0,$H30*$K30)+IF($I30<0,0,$I30*$L30)+IF($J30<0,0,$J30*$M30)",{"$f":"IF(_xlfn.FORMULATEXT(INDIRECT(Y282))=Z282,0,1)","v":0}]
[null,null,null,null,null,null,{"$f":"ADDRESS(44,4,1,1,$G$1)","v":"'Equity Investments'!$D$44"},"='Schedule IIB'!D60+'Schedule IIC'!D60+'Schedule IID'!D60+'Schedule IIE'!D60+'Schedule IIF'!D60",0,null,null,null,{"$f":"ADDRESS(24,5,1,1,$M$1)","v":"'Currency Risk'!$E$24"},"='Schedule XXA'!H22",0,{"$f":"ADDRESS(101,6,1,1,$P$1)","v":"'Concentration Risk'!$F$101"},"=MAX(0,(D101*E101))",{"$f":"IF(_xlfn.FORMULATEXT(INDIRECT(P283))=Q283,0,1)","v":0},{"$f":"ADDRESS(21,4,1,1,$S$1)","v":"'Geographic Diversification'!$D$21"},"=SUM(I21:Z21)",0,null,null,null,{"$f":"ADDRESS(30,17,1,1,$Y$1)","v":"'Premium Risk'!$Q$30"},"=IF(H30=E30,MAX(D30*K30,0),IF(E30=F30,IF(D30<0,0,D30*(H30/F30)*K30),IF(D30<0,0,D30*(H30/E30)*K30)))\n+IF(I30=E30,MAX(D30*L30,0),IF(E30=F30,IF(D30<0,0,D30*(I30/F30)*L30),IF(D30<0,0,D30*(I30/E30)*L30)))\n+IF(J30=E30,MAX(D30*M30,0),IF(E30=F30,IF(D30<0,0,D30*(J30/F30)*M30),IF(D30<0,0,D30*(J30/E30)*M30)))",{"$f":"IF(_xlfn.FORMULATEXT(INDIRECT(Y283))=Z283,0,1)","v":0}]
[null,null,null,null,null,null,{"$f":"ADDRESS(44,5,1,1,$G$1)","v":"'Equity Investments'!$E$44"},"='Schedule IIB'!F60+'Schedule IIC'!F60+'Schedule IID'!F60+'Schedule IIE'!F60+'Schedule IIF'!F60",0,null,null,null,{"$f":"ADDRESS(24,6,1,1,$M$1)","v":"'Currency Risk'!$F$24"},"='Schedule XXA'!J22",0,{"$f":"ADDRESS(102,2,1,1,$P$1)","v":"'Concentration Risk'!$B$102"},"Advances to Affiliates - ",{"$f":"IF(INDIRECT(P284)=Q284,0,1)","v":0},{"$f":"ADDRESS(21,5,1,1,$S$1)","v":"'Geographic Diversification'!$E$21"},"=SUMSQ(I21:Z21)",0,null,null,null,{"$f":"ADDRESS(30,19,1,1,$Y$1)","v":"'Premium Risk'!$S$30"},0.5,{"$f":"IF(INDIRECT(Y284)=Z284,0,1)","v":0}]
[null,null,null,null,null,null,{"$f":"ADDRESS(44,6,1,1,$G$1)","v":"'Equity Investments'!$F$44"},"='Schedule IIB'!H60+'Schedule IIC'!H60+'Schedule IID'!H60+'Schedule IIE'!H60+'Schedule IIF'!H60",0,null,null,null,{"$f":"ADDRESS(24,7,1,1,$M$1)","v":"'Currency Risk'!$G$24"},"='Schedule XXA'!L22",0,{"$f":"ADDRESS(102,4,1,1,$P$1)","v":"'Concentration Risk'!$D$102"},"=SUMIFS('Schedule XXIA'!$M$8:$M$57,'Schedule XXIA'!$J$8:$J$57,$B102)",{"$f":"IF(_xlfn.FORMULATEXT(INDIRECT(P285))=Q285,0,1)","v":0},{"$f":"ADDRESS(21,6,1,1,$S$1)","v":"'Geographic Diversification'!$F$21"},"=(IF(D21>0,E21/D21^2,1))",0,null,null,null,{"$f":"ADDRESS(30,20,1,1,$Y$1)","v":"'Premium Risk'!$T$30"},0.5,{"$f":"IF(INDIRECT(Y285)=Z285,0,1)","v":0}]
[null,null,null,null,null,null,{"$f":"ADDRESS(44,7,1,1,$G$1)","v":"'Equity Investments'!$G$44"},"='Schedule IIB'!J60+'Schedule IIC'!J60+'Schedule IID'!J60+'Schedule IIE'!J60+'Schedule IIF'!J60",0,null,null,null,{"$f":"ADDRESS(24,8,1,1,$M$1)","v":"'Currency Risk'!$H$24"},"='Schedule XXA'!N22",0,{"$f":"ADDRESS(102,5,1,1,$P$1)","v":"'Concentration Risk'!$E$102"},0.05,{"$f":"IF(INDIRECT(P286)=Q286,0,1)","v":0},{"$f":"ADDRESS(21,7,1,1,$S$1)","v":"'Geographic Diversification'!$G$21"},"=D21*(0.75+0.25*F21)",0,null,null,null,{"$f":"ADDRESS(31,4,1,1,$Y$1)","v":"'Premium Risk'!$D$31"},"='Schedule IVD'!Q29",{"$f":"IF(_xlfn.FORMULATEXT(INDIRECT(Y286))=Z286,0,1)","v":0}]
[null,null,null,null,null,null,{"$f":"ADDRESS(44,8,1,1,$G$1)","v":"'Equity Investments'!$H$44"},"='Schedule IIB'!L60+'Schedule IIC'!L60+'Schedule IID'!L60+'Schedule IIE'!L60+'Schedule IIF'!L60",0,null,null,null,{"$f":"ADDRESS(24,9,1,1,$M$1)","v":"'Currency Risk'!$I$24"},"=$I$10*H24",0,{"$f":"ADDRESS(102,6,1,1,$P$1)","v":"'Concentration Risk'!$F$102"},"=MAX(0,(D102*E102))",{"$f":"IF(_xlfn.FORMULATEXT(INDIRECT(P287))=Q287,0,1)","v":0},{"$f":"ADDRESS(21,8,1,1,$S$1)","v":"'Geographic Diversification'!$H$21"},"=IF('Schedule IVE'!AB21=\"True\",G21,'Schedule IVD'!O21)",0,null,null,null,{"$f":"ADDRESS(31,5,1,1,$Y$1)","v":"'Premium Risk'!$E$31"},"='Schedule IVD'!O29",0]
[null,null,null,null,null,null,{"$f":"ADDRESS(44,9,1,1,$G$1)","v":"'Equity Investments'!$I$44"},"='Schedule IIB'!N60+'Schedule IIC'!N60+'Schedule IID'!N60+'Schedule IIE'!N60+'Schedule IIF'!N60",0,null,null,null,{"$f":"ADDRESS(24,10,1,1,$M$1)","v":"'Currency Risk'!$J$24"},"=IF((SUM(C24:G24))>(H24+I24),0%,25%)",0,{"$f":"ADDRESS(103,2,1,1,$P$1)","v":"'Concentration Risk'!$B$103"},"Policy Loans",{"$f":"IF(INDIRECT(P288)=Q288,0,1)","v":0},{"$f":"ADDRESS(21,9,1,1,$S$1)","v":"'Geographic Diversification'!$I$21"},"=+'Schedule IVE'!E21",0,null,null,null,{"$f":"ADDRESS(31,6,1,1,$Y$1)","v":"'Premium Risk'!$F$31"},"='Geographic Diversification'!H29",0]
[null,null,null,null,null,null,{"$f":"ADDRESS(44,10,1,1,$G$1)","v":"'Equity Investments'!$J$44"},"='Schedule IIB'!P60+'Schedule IIC'!P60+'Schedule IID'!P60+'Schedule IIE'!P60+'Schedule IIF'!P60",0,null,null,null,{"$f":"ADDRESS(24,12,1,1,$M$1)","v":"'Currency Risk'!$L$24"},"='Schedule XXA'!V22",0,{"$f":"ADDRESS(103,4,1,1,$P$1)","v":"'Concentration Risk'!$D$103"},"=SUMIFS('Schedule XXIA'!$M$8:$M$57,'Schedule XXIA'!$J$8:$J$57,$B103)",{"$f":"IF(_xlfn.FORMULATEXT(INDIRECT(P289))=Q289,0,1)","v":0},{"$f":"ADDRESS(21,10,1,1,$S$1)","v":"'Geographic Diversification'!$J$21"},"=+'Schedule IVE'!F21",0,null,null,null,{"$f":"ADDRESS(31,7,1,1,$Y$1)","v":"'Premium Risk'!$G$31"},"=IF(IFERROR(F31/E31,1)<0,1,IFERROR(F31/E31,1))",0]
[null,null,null,null,null,null,{"$f":"ADDRESS(44,11,1,1,$G$1)","v":"'Equity Investments'!$K$44"},"='Schedule IIB'!R60+'Schedule IIC'!R60+'Schedule IID'!R60+'Schedule IIE'!R60+'Schedule IIF'!R60",0,null,null,null,{"$f":"ADDRESS(24,13,1,1,$M$1)","v":"'Currency Risk'!$M$24"},"='Schedule XXA'!X22",0,{"$f":"ADDRESS(103,5,1,1,$P$1)","v":"'Concentration Risk'!$E$103"},0,{"$f":"IF(INDIRECT(P290)=Q290,0,1)","v":0},{"$f":"ADDRESS(21,11,1,1,$S$1)","v":"'Geographic Diversification'!$K$21"},"=+'Schedule IVE'!G21",0,null,null,null,{"$f":"ADDRESS(31,8,1,1,$Y$1)","v":"'Premium Risk'!$H$31"},"='Schedule IVD'!I29*$G31",0]
[null,null,null,null,null,null,{"$f":"ADDRESS(44,12,1,1,$G$1)","v":"'Equity Investments'!$L$44"},"='Schedule IIB'!T60+'Schedule IIC'!T60+'Schedule IID'!T60+'Schedule IIE'!T60+'Schedule IIF'!T60",0,null,null,null,{"$f":"ADDRESS(24,14,1,1,$M$1)","v":"'Currency Risk'!$N$24"},"='Schedule XXA'!Z22",0,{"$f":"ADDRESS(103,6,1,1,$P$1)","v":"'Concentration Risk'!$F$103"},"=MAX(0,(D103*E103))",{"$f":"IF(_xlfn.FORMULATEXT(INDIRECT(P291))=Q291,0,1)","v":0},{"$f":"ADDRESS(21,12,1,1,$S$1)","v":"'Geographic Diversification'!$L$21"},"=+'Schedule IVE'!H21",0,null,null,null,{"$f":"ADDRESS(31,9,1,1,$Y$1)","v":"'Premium Risk'!$I$31"},"='Schedule IVD'!K29*$G31",0]
[null,null,null,null,null,null,{"$f":"ADDRESS(44,16,1,1,$G$1)","v":"'Equity Investments'!$P$44"},"=MAX(D44-E44,0)+(F44-G44)+MAX(H44-I44,0)+(K44-J44)",0,null,null,null,{"$f":"ADDRESS(24,15,1,1,$M$1)","v":"'Currency Risk'!$O$24"},"='Schedule XXA'!AB22",0,{"$f":"ADDRESS(104,2,1,1,$P$1)","v":"'Concentration Risk'!$B$104"},"Equity Real Estate 1",{"$f":"IF(INDIRECT(P292)=Q292,0,1)","v":0},{"$f":"ADDRESS(21,13,1,1,$S$1)","v":"'Geographic Diversification'!$M$21"},"=+'Schedule IVE'!I21",0,null,null,null,{"$f":"ADDRESS(31,10,1,1,$Y$1)","v":"'Premium Risk'!$J$31"},"='Schedule IVD'!M29*$G31",0]
[null,null,null,null,null,null,{"$f":"ADDRESS(44,18,1,1,$G$1)","v":"'Equity Investments'!$R$44"},"=MAX(D44-E44,0)+(F44-G44)+MAX(H44-I44,0)+(L44-J44)",0,null,null,null,{"$f":"ADDRESS(24,16,1,1,$M$1)","v":"'Currency Risk'!$P$24"},"='Schedule XXA'!AD22",{"$f":"IF(_xlfn.FORMULATEXT(INDIRECT(M293))=N293,0,1)","v":0},{"$f":"ADDRESS(104,4,1,1,$P$1)","v":"'Concentration Risk'!$D$104"},"=SUMIFS('Schedule XXIA'!$M$8:$M$57,'Schedule XXIA'!$J$8:$J$57,$B104)",{"$f":"IF(_xlfn.FORMULATEXT(INDIRECT(P293))=Q293,0,1)","v":0},{"$f":"ADDRESS(21,14,1,1,$S$1)","v":"'Geographic Diversification'!$N$21"},"=+'Schedule IVE'!J21",0,null,null,null,{"$f":"ADDRESS(31,11,1,1,$Y$1)","v":"'Premium Risk'!$K$31"},0.53551360019381999,{"$f":"IF(INDIRECT(Y293)=Z293,0,1)","v":0}]
[null,null,null,null,null,null,{"$f":"ADDRESS(46,4,1,1,$G$1)","v":"'Equity Investments'!$D$46"},"=SUM(D43:D45)",0,null,null,null,{"$f":"ADDRESS(24,17,1,1,$M$1)","v":"'Currency Risk'!$Q$24"},"='Schedule XXA'!AF22",0,{"$f":"ADDRESS(104,5,1,1,$P$1)","v":"'Concentration Risk'!$E$104"},0.1,{"$f":"IF(INDIRECT(P294)=Q294,0,1)","v":0},{"$f":"ADDRESS(21,15,1,1,$S$1)","v":"'Geographic Diversification'!$O$21"},"=+'Schedule IVE'!K21",0,null,null,null,{"$f":"ADDRESS(31,12,1,1,$Y$1)","v":"'Premium Risk'!$L$31"},"=+K31*S31",{"$f":"IF(_xlfn.FORMULATEXT(INDIRECT(Y294))=Z294,0,1)","v":0}]
[null,null,null,null,null,null,{"$f":"ADDRESS(46,5,1,1,$G$1)","v":"'Equity Investments'!$E$46"},"=SUM(E43:E45)",0,null,null,null,{"$f":"ADDRESS(24,18,1,1,$M$1)","v":"'Currency Risk'!$R$24"},"=IF('Schedule XXA'!AH22=0,Q24,'Schedule XXA'!AH22)",0,{"$f":"ADDRESS(104,6,1,1,$P$1)","v":"'Concentration Risk'!$F$104"},"=MAX(0,(D104*E104))",{"$f":"IF(_xlfn.FORMULATEXT(INDIRECT(P295))=Q295,0,1)","v":0},{"$f":"ADDRESS(21,16,1,1,$S$1)","v":"'Geographic Diversification'!$P$21"},"=+'Schedule IVE'!L21",0,null,null,null,{"$f":"ADDRESS(31,13,1,1,$Y$1)","v":"'Premium Risk'!$M$31"},"=+L31*T31",{"$f":"IF(_xlfn.FORMULATEXT(INDIRECT(Y295))=Z295,0,1)","v":0}]
[null,null,null,null,null,null,{"$f":"ADDRESS(46,6,1,1,$G$1)","v":"'Equity Investments'!$F$46"},"=SUM(F43:F45)",0,null,null,null,{"$f":"ADDRESS(24,20,1,1,$M$1)","v":"'Currency Risk'!$T$24"},"=(C24-L24)+(D24-M24)+(F24-O24)+MAX(E24-N24,0)+MAX(G24-P24,0)",0,{"$f":"ADDRESS(105,2,1,1,$P$1)","v":"'Concentration Risk'!$B$105"},"Equity Real Estate 2",{"$f":"IF(INDIRECT(P296)=Q296,0,1)","v":0},{"$f":"ADDRESS(21,17,1,1,$S$1)","v":"'Geographic Diversification'!$Q$21"},"=+'Schedule IVE'!M21",0,null,null,null,{"$f":"ADDRESS(31,14,1,1,$Y$1)","v":"'Premium Risk'!$N$31"},"=IF($H31<0,0,$H31*$K31)+IF($I31<0,0,$I31*$L31)+IF($J31<0,0,$J31*$M31)",{"$f":"IF(_xlfn.FORMULATEXT(INDIRECT(Y296))=Z296,0,1)","v":0}]
[null,null,null,null,null,null,{"$f":"ADDRESS(46,7,1,1,$G$1)","v":"'Equity Investments'!$G$46"},"=SUM(G43:G45)",0,null,null,null,{"$f":"ADDRESS(24,21,1,1,$M$1)","v":"'Currency Risk'!$U$24"},"=Q24-$H24",0,{"$f":"ADDRESS(105,4,1,1,$P$1)","v":"'Concentration Risk'!$D$105"},"=SUMIFS('Schedule XXIA'!$M$8:$M$57,'Schedule XXIA'!$J$8:$J$57,$B105)",{"$f":"IF(_xlfn.FORMULATEXT(INDIRECT(P297))=Q297,0,1)","v":0},{"$f":"ADDRESS(21,18,1,1,$S$1)","v":"'Geographic Diversification'!$R$21"},"=+'Schedule IVE'!N21",0,null,null,null,{"$f":"ADDRESS(31,17,1,1,$Y$1)","v":"'Premium Risk'!$Q$31"},"=IF(H31=E31,MAX(D31*K31,0),IF(E31=F31,IF(D31<0,0,D31*(H31/F31)*K31),IF(D31<0,0,D31*(H31/E31)*K31)))\n+IF(I31=E31,MAX(D31*L31,0),IF(E31=F31,IF(D31<0,0,D31*(I31/F31)*L31),IF(D31<0,0,D31*(I31/E31)*L31)))\n+IF(J31=E31,MAX(D31*M31,0),IF(E31=F31,IF(D31<0,0,D31*(J31/F31)*M31),IF(D31<0,0,D31*(J31/E31)*M31)))",{"$f":"IF(_xlfn.FORMULATEXT(INDIRECT(Y297))=Z297,0,1)","v":0}]
[null,null,null,null,null,null,{"$f":"ADDRESS(46,8,1,1,$G$1)","v":"'Equity Investments'!$H$46"},"=SUM(H43:H45)",0,null,null,null,{"$f":"ADDRESS(24,22,1,1,$M$1)","v":"'Currency Risk'!$V$24"},"=R24-$H24",0,{"$f":"ADDRESS(105,5,1,1,$P$1)","v":"'Concentration Risk'!$E$105"},0.2,{"$f":"IF(INDIRECT(P298)=Q298,0,1)","v":0},{"$f":"ADDRESS(21,19,1,1,$S$1)","v":"'Geographic Diversification'!$S$21"},"=+'Schedule IVE'!O21",0,null,null,null,{"$f":"ADDRESS(31,19,1,1,$Y$1)","v":"'Premium Risk'!$S$31"},0.5,{"$f":"IF(INDIRECT(Y298)=Z298,0,1)","v":0}]
[null,null,null,null,null,null,{"$f":"ADDRESS(46,9,1,1,$G$1)","v":"'Equity Investments'!$I$46"},"=SUM(I43:I45)",0,null,null,null,{"$f":"ADDRESS(24,24,1,1,$M$1)","v":"'Currency Risk'!$X$24"},"=MAX(0,$T24+U24+(J24*I24))",0,{"$f":"ADDRESS(105,6,1,1,$P$1)","v":"'Concentration Risk'!$F$105"},"=MAX(0,(D105*E105))",{"$f":"IF(_xlfn.FORMULATEXT(INDIRECT(P299))=Q299,0,1)","v":0},{"$f":"ADDRESS(21,20,1,1,$S$1)","v":"'Geographic Diversification'!$T$21"},"=+'Schedule IVE'!P21",0,null,null,null,{"$f":"ADDRESS(31,20,1,1,$Y$1)","v":"'Premium Risk'!$T$31"},0.5,{"$f":"IF(INDIRECT(Y299)=Z299,0,1)","v":0}]
[null,null,null,null,null,null,{"$f":"ADDRESS(46,10,1,1,$G$1)","v":"'Equity Investments'!$J$46"},"=SUM(J43:J45)",0,null,null,null,{"$f":"ADDRESS(24,25,1,1,$M$1)","v":"'Currency Risk'!$Y$24"},"=MAX(0,$T24+V24+(J24*I24))",0,{"$f":"ADDRESS(106,2,1,1,$P$1)","v":"'Concentration Risk'!$B$106"},"Collateral Loans",{"$f":"IF(INDIRECT(P300)=Q300,0,1)","v":0},{"$f":"ADDRESS(21,21,1,1,$S$1)","v":"'Geographic Diversification'!$U$21"},"=+'Schedule IVE'!Q21",0,null,null,null,{"$f":"ADDRESS(32,4,1,1,$Y$1)","v":"'Premium Risk'!$D$32"},"='Schedule IVD'!Q30",{"$f":"IF(_xlfn.FORMULATEXT(INDIRECT(Y300))=Z300,0,1)","v":0}]
[null,null,null,null,null,null,{"$f":"ADDRESS(46,11,1,1,$G$1)","v":"'Equity Investments'!$K$46"},"=SUM(K43:K45)",0,null,null,null,{"$f":"ADDRESS(25,2,1,1,$M$1)","v":"'Currency Risk'!$B$25"},"='Schedule XXA'!B23",0,{"$f":"ADDRESS(106,4,1,1,$P$1)","v":"'Concentration Risk'!$D$106"},"=SUMIFS('Schedule XXIA'!$M$8:$M$57,'Schedule XXIA'!$J$8:$J$57,$B106)",{"$f":"IF(_xlfn.FORMULATEXT(INDIRECT(P301))=Q301,0,1)","v":0},{"$f":"ADDRESS(21,22,1,1,$S$1)","v":"'Geographic Diversification'!$V$21"},"=+'Schedule IVE'!R21",0,null,null,null,{"$f":"ADDRESS(32,5,1,1,$Y$1)","v":"'Premium Risk'!$E$32"},"='Schedule IVD'!O30",0]
[null,null,null,null,null,null,{"$f":"ADDRESS(46,12,1,1,$G$1)","v":"'Equity Investments'!$L$46"},"=SUM(L43:L45)",0,null,null,null,{"$f":"ADDRESS(25,3,1,1,$M$1)","v":"'Currency Risk'!$C$25"},"='Schedule XXA'!D23",0,{"$f":"ADDRESS(106,5,1,1,$P$1)","v":"'Concentration Risk'!$E$106"},0.05,{"$f":"IF(INDIRECT(P302)=Q302,0,1)","v":0},{"$f":"ADDRESS(21,23,1,1,$S$1)","v":"'Geographic Diversification'!$W$21"},"=+'Schedule IVE'!S21",0,null,null,null,{"$f":"ADDRESS(32,6,1,1,$Y$1)","v":"'Premium Risk'!$F$32"},"='Geographic Diversification'!H30",0]
[null,null,null,null,null,null,{"$f":"ADDRESS(46,16,1,1,$G$1)","v":"'Equity Investments'!$P$46"},"=MAX(SUM(P43:P45),0)",0,null,null,null,{"$f":"ADDRESS(25,4,1,1,$M$1)","v":"'Currency Risk'!$D$25"},"='Schedule XXA'!F23",0,{"$f":"ADDRESS(106,6,1,1,$P$1)","v":"'Concentration Risk'!$F$106"},"=MAX(0,(D106*E106))",{"$f":"IF(_xlfn.FORMULATEXT(INDIRECT(P303))=Q303,0,1)","v":0},{"$f":"ADDRESS(21,24,1,1,$S$1)","v":"'Geographic Diversification'!$X$21"},"=+'Schedule IVE'!T21",0,null,null,null,{"$f":"ADDRESS(32,7,1,1,$Y$1)","v":"'Premium Risk'!$G$32"},"=IF(IFERROR(F32/E32,1)<0,1,IFERROR(F32/E32,1))",0]
[null,null,null,null,null,null,{"$f":"ADDRESS(46,18,1,1,$G$1)","v":"'Equity Investments'!$R$46"},"=MAX(SUM(R43:R45),0)",0,null,null,null,{"$f":"ADDRESS(25,5,1,1,$M$1)","v":"'Currency Risk'!$E$25"},"='Schedule XXA'!H23",0,{"$f":"ADDRESS(108,4,1,1,$P$1)","v":"'Concentration Risk'!$D$108"},"=SUM(D96:D107)",{"$f":"IF(_xlfn.FORMULATEXT(INDIRECT(P304))=Q304,0,1)","v":0},{"$f":"ADDRESS(21,25,1,1,$S$1)","v":"'Geographic Diversification'!$Y$21"},"=+'Schedule IVE'!U21",0,null,null,null,{"$f":"ADDRESS(32,8,1,1,$Y$1)","v":"'Premium Risk'!$H$32"},"='Schedule IVD'!I30*$G32",0]
[null,null,null,null,null,null,{"$f":"ADDRESS(48,4,1,1,$G$1)","v":"'Equity Investments'!$D$48"},"=D40+D34+D24+D46",0,null,null,null,{"$f":"ADDRESS(25,6,1,1,$M$1)","v":"'Currency Risk'!$F$25"},"='Schedule XXA'!J23",0,{"$f":"ADDRESS(108,6,1,1,$P$1)","v":"'Concentration Risk'!$F$108"},"=SUM(F96:F107)",{"$f":"IF(_xlfn.FORMULATEXT(INDIRECT(P305))=Q305,0,1)","v":0},{"$f":"ADDRESS(21,26,1,1,$S$1)","v":"'Geographic Diversification'!$Z$21"},"=+'Schedule IVE'!V21",0,null,null,null,{"$f":"ADDRESS(32,9,1,1,$Y$1)","v":"'Premium Risk'!$I$32"},"='Schedule IVD'!K30*$G32",0]
[null,null,null,null,null,null,{"$f":"ADDRESS(48,5,1,1,$G$1)","v":"'Equity Investments'!$E$48"},"=E40+E34+E24+E46",0,null,null,null,{"$f":"ADDRESS(25,7,1,1,$M$1)","v":"'Currency Risk'!$G$25"},"='Schedule XXA'!L23",0,{"$f":"ADDRESS(110,4,1,1,$P$1)","v":"'Concentration Risk'!$D$110"},"=D108+D93+D85+D72+D59+D46+D33+D20",{"$f":"IF(_xlfn.FORMULATEXT(INDIRECT(P306))=Q306,0,1)","v":0},{"$f":"ADDRESS(22,4,1,1,$S$1)","v":"'Geographic Diversification'!$D$22"},"=SUM(I22:Z22)",0,null,null,null,{"$f":"ADDRESS(32,10,1,1,$Y$1)","v":"'Premium Risk'!$J$32"},"='Schedule IVD'!M30*$G32",0]
[null,null,null,null,null,null,{"$f":"ADDRESS(48,6,1,1,$G$1)","v":"'Equity Investments'!$F$48"},"=F40+F34+F24+F46",0,null,null,null,{"$f":"ADDRESS(25,8,1,1,$M$1)","v":"'Currency Risk'!$H$25"},"='Schedule XXA'!N23",0,{"$f":"ADDRESS(110,6,1,1,$P$1)","v":"'Concentration Risk'!$F$110"},"=F108+F93+F85+F72+F59+F46+F33+F20",{"$f":"IF(_xlfn.FORMULATEXT(INDIRECT(P307))=Q307,0,1)","v":0},{"$f":"ADDRESS(22,5,1,1,$S$1)","v":"'Geographic Diversification'!$E$22"},"=SUMSQ(I22:Z22)",0,null,null,null,{"$f":"ADDRESS(32,11,1,1,$Y$1)","v":"'Premium Risk'!$K$32"},0.508030898436173,{"$f":"IF(INDIRECT(Y307)=Z307,0,1)","v":0}]
[null,null,null,null,null,null,{"$f":"ADDRESS(48,7,1,1,$G$1)","v":"'Equity Investments'!$G$48"},"=G40+G34+G24+G46",0,null,null,null,{"$f":"ADDRESS(25,9,1,1,$M$1)","v":"'Currency Risk'!$I$25"},"=$I$10*H25",0,null,null,-308,{"$f":"ADDRESS(22,6,1,1,$S$1)","v":"'Geographic Diversification'!$F$22"},"=(IF(D22>0,E22/D22^2,1))",0,null,null,null,{"$f":"ADDRESS(32,12,1,1,$Y$1)","v":"'Premium Risk'!$L$32"},"=+K32*S32",{"$f":"IF(_xlfn.FORMULATEXT(INDIRECT(Y308))=Z308,0,1)","v":0}]
[null,null,null,null,null,null,{"$f":"ADDRESS(48,8,1,1,$G$1)","v":"'Equity Investments'!$H$48"},"=H40+H34+H24+H46",0,null,null,null,{"$f":"ADDRESS(25,10,1,1,$M$1)","v":"'Currency Risk'!$J$25"},"=IF((SUM(C25:G25))>(H25+I25),0%,25%)",0,null,null,null,{"$f":"ADDRESS(22,7,1,1,$S$1)","v":"'Geographic Diversification'!$G$22"},"=D22*(0.75+0.25*F22)",0,null,null,null,{"$f":"ADDRESS(32,13,1,1,$Y$1)","v":"'Premium Risk'!$M$32"},"=+L32*T32",{"$f":"IF(_xlfn.FORMULATEXT(INDIRECT(Y309))=Z309,0,1)","v":0}]
[null,null,null,null,null,null,{"$f":"ADDRESS(48,9,1,1,$G$1)","v":"'Equity Investments'!$I$48"},"=I40+I34+I24+I46",0,null,null,null,{"$f":"ADDRESS(25,12,1,1,$M$1)","v":"'Currency Risk'!$L$25"},"='Schedule XXA'!V23",0,null,null,null,{"$f":"ADDRESS(22,8,1,1,$S$1)","v":"'Geographic Diversification'!$H$22"},"=IF('Schedule IVE'!AB22=\"True\",G22,'Schedule IVD'!O22)",0,null,null,null,{"$f":"ADDRESS(32,14,1,1,$Y$1)","v":"'Premium Risk'!$N$32"},"=IF($H32<0,0,$H32*$K32)+IF($I32<0,0,$I32*$L32)+IF($J32<0,0,$J32*$M32)",{"$f":"IF(_xlfn.FORMULATEXT(INDIRECT(Y310))=Z310,0,1)","v":0}]
[null,null,null,null,null,null,{"$f":"ADDRESS(48,10,1,1,$G$1)","v":"'Equity Investments'!$J$48"},"=J40+J34+J24+J46",0,null,null,null,{"$f":"ADDRESS(25,13,1,1,$M$1)","v":"'Currency Risk'!$M$25"},"='Schedule XXA'!X23",0,null,null,null,{"$f":"ADDRESS(22,9,1,1,$S$1)","v":"'Geographic Diversification'!$I$22"},"=+'Schedule IVE'!E22",0,null,null,null,{"$f":"ADDRESS(32,17,1,1,$Y$1)","v":"'Premium Risk'!$Q$32"},"=IF(H32=E32,MAX(D32*K32,0),IF(E32=F32,IF(D32<0,0,D32*(H32/F32)*K32),IF(D32<0,0,D32*(H32/E32)*K32)))\n+IF(I32=E32,MAX(D32*L32,0),IF(E32=F32,IF(D32<0,0,D32*(I32/F32)*L32),IF(D32<0,0,D32*(I32/E32)*L32)))\n+IF(J32=E32,MAX(D32*M32,0),IF(E32=F32,IF(D32<0,0,D32*(J32/F32)*M32),IF(D32<0,0,D32*(J32/E32)*M32)))",{"$f":"IF(_xlfn.FORMULATEXT(INDIRECT(Y311))=Z311,0,1)","v":0}]
[null,null,null,null,null,null,{"$f":"ADDRESS(48,11,1,1,$G$1)","v":"'Equity Investments'!$K$48"},"=K40+K34+K24+K46",0,null,null,null,{"$f":"ADDRESS(25,14,1,1,$M$1)","v":"'Currency Risk'!$N$25"},"='Schedule XXA'!Z23",0,null,null,null,{"$f":"ADDRESS(22,10,1,1,$S$1)","v":"'Geographic Diversification'!$J$22"},"=+'Schedule IVE'!F22",0,null,null,null,{"$f":"ADDRESS(32,19,1,1,$Y$1)","v":"'Premium Risk'!$S$32"},0.25,{"$f":"IF(INDIRECT(Y312)=Z312,0,1)","v":0}]
[null,null,null,null,null,null,{"$f":"ADDRESS(48,12,1,1,$G$1)","v":"'Equity Investments'!$L$48"},"=L40+L34+L24+L46",0,null,null,null,{"$f":"ADDRESS(25,15,1,1,$M$1)","v":"'Currency Risk'!$O$25"},"='Schedule XXA'!AB23",0,null,null,null,{"$f":"ADDRESS(22,11,1,1,$S$1)","v":"'Geographic Diversification'!$K$22"},"=+'Schedule IVE'!G22",0,null,null,null,{"$f":"ADDRESS(32,20,1,1,$Y$1)","v":"'Premium Risk'!$T$32"},0.5,{"$f":"IF(INDIRECT(Y313)=Z313,0,1)","v":0}]
[null,null,null,null,null,null,{"$f":"ADDRESS(48,16,1,1,$G$1)","v":"'Equity Investments'!$P$48"},"=P40+P34+P24+P46",0,null,null,null,{"$f":"ADDRESS(25,16,1,1,$M$1)","v":"'Currency Risk'!$P$25"},"='Schedule XXA'!AD23",0,null,null,null,{"$f":"ADDRESS(22,12,1,1,$S$1)","v":"'Geographic Diversification'!$L$22"},"=+'Schedule IVE'!H22",0,null,null,null,{"$f":"ADDRESS(33,4,1,1,$Y$1)","v":"'Premium Risk'!$D$33"},"='Schedule IVD'!Q31",{"$f":"IF(_xlfn.FORMULATEXT(INDIRECT(Y314))=Z314,0,1)","v":0}]
[null,null,null,null,null,null,{"$f":"ADDRESS(48,18,1,1,$G$1)","v":"'Equity Investments'!$R$48"},"=R40+R34+R24+R46",0,null,null,null,{"$f":"ADDRESS(25,17,1,1,$M$1)","v":"'Currency Risk'!$Q$25"},"='Schedule XXA'!AF23",0,null,null,null,{"$f":"ADDRESS(22,13,1,1,$S$1)","v":"'Geographic Diversification'!$M$22"},"=+'Schedule IVE'!I22",0,null,null,null,{"$f":"ADDRESS(33,5,1,1,$Y$1)","v":"'Premium Risk'!$E$33"},"='Schedule IVD'!O31",0]
[null,null,null,null,null,null,{"$f":"ADDRESS(51,4,1,1,$G$1)","v":"'Equity Investments'!$D$51"},1,{"$f":"IF(INDIRECT(G316)=H316,0,1)","v":0},null,null,null,{"$f":"ADDRESS(25,18,1,1,$M$1)","v":"'Currency Risk'!$R$25"},"=IF('Schedule XXA'!AH23=0,Q25,'Schedule XXA'!AH23)",0,null,null,null,{"$f":"ADDRESS(22,14,1,1,$S$1)","v":"'Geographic Diversification'!$N$22"},"=+'Schedule IVE'!J22",0,null,null,null,{"$f":"ADDRESS(33,6,1,1,$Y$1)","v":"'Premium Risk'!$F$33"},"='Geographic Diversification'!H31",0]
[null,null,null,null,null,null,{"$f":"ADDRESS(51,5,1,1,$G$1)","v":"'Equity Investments'!$E$51"},0.75,{"$f":"IF(INDIRECT(G317)=H317,0,1)","v":0},null,null,null,{"$f":"ADDRESS(25,20,1,1,$M$1)","v":"'Currency Risk'!$T$25"},"=(C25-L25)+(D25-M25)+(F25-O25)+MAX(E25-N25,0)+MAX(G25-P25,0)",0,null,null,null,{"$f":"ADDRESS(22,15,1,1,$S$1)","v":"'Geographic Diversification'!$O$22"},"=+'Schedule IVE'!K22",0,null,null,null,{"$f":"ADDRESS(33,7,1,1,$Y$1)","v":"'Premium Risk'!$G$33"},"=IF(IFERROR(F33/E33,1)<0,1,IFERROR(F33/E33,1))",0]
[null,null,null,null,null,null,{"$f":"ADDRESS(51,6,1,1,$G$1)","v":"'Equity Investments'!$F$51"},0.75,{"$f":"IF(INDIRECT(G318)=H318,0,1)","v":0},null,null,null,{"$f":"ADDRESS(25,21,1,1,$M$1)","v":"'Currency Risk'!$U$25"},"=Q25-$H25",0,null,null,null,{"$f":"ADDRESS(22,16,1,1,$S$1)","v":"'Geographic Diversification'!$P$22"},"=+'Schedule IVE'!L22",0,null,null,null,{"$f":"ADDRESS(33,8,1,1,$Y$1)","v":"'Premium Risk'!$H$33"},"='Schedule IVD'!I31*$G33",0]
[null,null,null,null,null,null,{"$f":"ADDRESS(51,7,1,1,$G$1)","v":"'Equity Investments'!$G$51"},0.5,{"$f":"IF(INDIRECT(G319)=H319,0,1)","v":0},null,null,null,{"$f":"ADDRESS(25,22,1,1,$M$1)","v":"'Currency Risk'!$V$25"},"=R25-$H25",0,null,null,null,{"$f":"ADDRESS(22,17,1,1,$S$1)","v":"'Geographic Diversification'!$Q$22"},"=+'Schedule IVE'!M22",0,null,null,null,{"$f":"ADDRESS(33,9,1,1,$Y$1)","v":"'Premium Risk'!$I$33"},"='Schedule IVD'!K31*$G33",0]
[null,null,null,null,null,null,{"$f":"ADDRESS(51,16,1,1,$G$1)","v":"'Equity Investments'!$P$51"},"=P24",{"$f":"IF(_xlfn.FORMULATEXT(INDIRECT(G320))=H320,0,1)","v":0},null,null,null,{"$f":"ADDRESS(25,24,1,1,$M$1)","v":"'Currency Risk'!$X$25"},"=MAX(0,$T25+U25+(J25*I25))",0,null,null,null,{"$f":"ADDRESS(22,18,1,1,$S$1)","v":"'Geographic Diversification'!$R$22"},"=+'Schedule IVE'!N22",0,null,null,null,{"$f":"ADDRESS(33,10,1,1,$Y$1)","v":"'Premium Risk'!$J$33"},"='Schedule IVD'!M31*$G33",0]
[null,null,null,null,null,null,{"$f":"ADDRESS(51,18,1,1,$G$1)","v":"'Equity Investments'!$R$51"},"=R24",{"$f":"IF(_xlfn.FORMULATEXT(INDIRECT(G321))=H321,0,1)","v":0},null,null,null,{"$f":"ADDRESS(25,25,1,1,$M$1)","v":"'Currency Risk'!$Y$25"},"=MAX(0,$T25+V25+(J25*I25))",0,null,null,null,{"$f":"ADDRESS(22,19,1,1,$S$1)","v":"'Geographic Diversification'!$S$22"},"=+'Schedule IVE'!O22",0,null,null,null,{"$f":"ADDRESS(33,11,1,1,$Y$1)","v":"'Premium Risk'!$K$33"},0.27200000000000002,{"$f":"IF(INDIRECT(Y321)=Z321,0,1)","v":0}]
[null,null,null,null,null,null,{"$f":"ADDRESS(52,4,1,1,$G$1)","v":"'Equity Investments'!$D$52"},0.75,{"$f":"IF(INDIRECT(G322)=H322,0,1)","v":0},null,null,null,{"$f":"ADDRESS(26,2,1,1,$M$1)","v":"'Currency Risk'!$B$26"},"='Schedule XXA'!B24",0,null,null,null,{"$f":"ADDRESS(22,20,1,1,$S$1)","v":"'Geographic Diversification'!$T$22"},"=+'Schedule IVE'!P22",0,null,null,null,{"$f":"ADDRESS(33,12,1,1,$Y$1)","v":"'Premium Risk'!$L$33"},"=+K33*S33",{"$f":"IF(_xlfn.FORMULATEXT(INDIRECT(Y322))=Z322,0,1)","v":0}]
[null,null,null,null,null,null,{"$f":"ADDRESS(52,5,1,1,$G$1)","v":"'Equity Investments'!$E$52"},1,{"$f":"IF(INDIRECT(G323)=H323,0,1)","v":0},null,null,null,{"$f":"ADDRESS(26,3,1,1,$M$1)","v":"'Currency Risk'!$C$26"},"='Schedule XXA'!D24",0,null,null,null,{"$f":"ADDRESS(22,21,1,1,$S$1)","v":"'Geographic Diversification'!$U$22"},"=+'Schedule IVE'!Q22",0,null,null,null,{"$f":"ADDRESS(33,13,1,1,$Y$1)","v":"'Premium Risk'!$M$33"},"=+L33*T33",{"$f":"IF(_xlfn.FORMULATEXT(INDIRECT(Y323))=Z323,0,1)","v":0}]
[null,null,null,null,null,null,{"$f":"ADDRESS(52,6,1,1,$G$1)","v":"'Equity Investments'!$F$52"},0.75,{"$f":"IF(INDIRECT(G324)=H324,0,1)","v":0},null,null,null,{"$f":"ADDRESS(26,4,1,1,$M$1)","v":"'Currency Risk'!$D$26"},"='Schedule XXA'!F24",0,null,null,null,{"$f":"ADDRESS(22,22,1,1,$S$1)","v":"'Geographic Diversification'!$V$22"},"=+'Schedule IVE'!R22",{"$f":"IF(_xlfn.FORMULATEXT(INDIRECT(S324))=T324,0,1)","v":0},null,null,null,{"$f":"ADDRESS(33,14,1,1,$Y$1)","v":"'Premium Risk'!$N$33"},"=IF($H33<0,0,$H33*$K33)+IF($I33<0,0,$I33*$L33)+IF($J33<0,0,$J33*$M33)",{"$f":"IF(_xlfn.FORMULATEXT(INDIRECT(Y324))=Z324,0,1)","v":0}]
[null,null,null,null,null,null,{"$f":"ADDRESS(52,7,1,1,$G$1)","v":"'Equity Investments'!$G$52"},0.5,{"$f":"IF(INDIRECT(G325)=H325,0,1)","v":0},null,null,null,{"$f":"ADDRESS(26,5,1,1,$M$1)","v":"'Currency Risk'!$E$26"},"='Schedule XXA'!H24",0,null,null,null,{"$f":"ADDRESS(22,23,1,1,$S$1)","v":"'Geographic Diversification'!$W$22"},"=+'Schedule IVE'!S22",0,null,null,null,{"$f":"ADDRESS(33,17,1,1,$Y$1)","v":"'Premium Risk'!$Q$33"},"=IF(H33=E33,MAX(D33*K33,0),IF(E33=F33,IF(D33<0,0,D33*(H33/F33)*K33),IF(D33<0,0,D33*(H33/E33)*K33)))\n+IF(I33=E33,MAX(D33*L33,0),IF(E33=F33,IF(D33<0,0,D33*(I33/F33)*L33),IF(D33<0,0,D33*(I33/E33)*L33)))\n+IF(J33=E33,MAX(D33*M33,0),IF(E33=F33,IF(D33<0,0,D33*(J33/F33)*M33),IF(D33<0,0,D33*(J33/E33)*M33)))",{"$f":"IF(_xlfn.FORMULATEXT(INDIRECT(Y325))=Z325,0,1)","v":0}]
[null,null,null,null,null,null,{"$f":"ADDRESS(52,16,1,1,$G$1)","v":"'Equity Investments'!$P$52"},"=P34",{"$f":"IF(_xlfn.FORMULATEXT(INDIRECT(G326))=H326,0,1)","v":0},null,null,null,{"$f":"ADDRESS(26,6,1,1,$M$1)","v":"'Currency Risk'!$F$26"},"='Schedule XXA'!J24",0,null,null,null,{"$f":"ADDRESS(22,24,1,1,$S$1)","v":"'Geographic Diversification'!$X$22"},"=+'Schedule IVE'!T22",0,null,null,null,{"$f":"ADDRESS(33,19,1,1,$Y$1)","v":"'Premium Risk'!$S$33"},0.25,{"$f":"IF(INDIRECT(Y326)=Z326,0,1)","v":0}]
[null,null,null,null,null,null,{"$f":"ADDRESS(52,18,1,1,$G$1)","v":"'Equity Investments'!$R$52"},"=R34",{"$f":"IF(_xlfn.FORMULATEXT(INDIRECT(G327))=H327,0,1)","v":0},null,null,null,{"$f":"ADDRESS(26,7,1,1,$M$1)","v":"'Currency Risk'!$G$26"},"='Schedule XXA'!L24",0,null,null,null,{"$f":"ADDRESS(22,25,1,1,$S$1)","v":"'Geographic Diversification'!$Y$22"},"=+'Schedule IVE'!U22",0,null,null,null,{"$f":"ADDRESS(33,20,1,1,$Y$1)","v":"'Premium Risk'!$T$33"},0.5,{"$f":"IF(INDIRECT(Y327)=Z327,0,1)","v":0}]
[null,null,null,null,null,null,{"$f":"ADDRESS(53,4,1,1,$G$1)","v":"'Equity Investments'!$D$53"},0.75,{"$f":"IF(INDIRECT(G328)=H328,0,1)","v":0},null,null,null,{"$f":"ADDRESS(26,8,1,1,$M$1)","v":"'Currency Risk'!$H$26"},"='Schedule XXA'!N24",0,null,null,null,{"$f":"ADDRESS(22,26,1,1,$S$1)","v":"'Geographic Diversification'!$Z$22"},"=+'Schedule IVE'!V22",0,null,null,null,{"$f":"ADDRESS(34,4,1,1,$Y$1)","v":"'Premium Risk'!$D$34"},"='Schedule IVD'!Q32",{"$f":"IF(_xlfn.FORMULATEXT(INDIRECT(Y328))=Z328,0,1)","v":0}]
[null,null,null,null,null,null,{"$f":"ADDRESS(53,5,1,1,$G$1)","v":"'Equity Investments'!$E$53"},0.75,{"$f":"IF(INDIRECT(G329)=H329,0,1)","v":0},null,null,null,{"$f":"ADDRESS(26,9,1,1,$M$1)","v":"'Currency Risk'!$I$26"},"=$I$10*H26",0,null,null,null,{"$f":"ADDRESS(23,4,1,1,$S$1)","v":"'Geographic Diversification'!$D$23"},"=SUM(I23:Z23)",0,null,null,null,{"$f":"ADDRESS(34,5,1,1,$Y$1)","v":"'Premium Risk'!$E$34"},"='Schedule IVD'!O32",0]
[null,null,null,null,null,null,{"$f":"ADDRESS(53,6,1,1,$G$1)","v":"'Equity Investments'!$F$53"},1,{"$f":"IF(INDIRECT(G330)=H330,0,1)","v":0},null,null,null,{"$f":"ADDRESS(26,10,1,1,$M$1)","v":"'Currency Risk'!$J$26"},"=IF((SUM(C26:G26))>(H26+I26),0%,25%)",0,null,null,null,{"$f":"ADDRESS(23,5,1,1,$S$1)","v":"'Geographic Diversification'!$E$23"},"=SUMSQ(I23:Z23)",0,null,null,null,{"$f":"ADDRESS(34,6,1,1,$Y$1)","v":"'Premium Risk'!$F$34"},"='Geographic Diversification'!H32",0]
[null,null,null,null,null,null,{"$f":"ADDRESS(53,7,1,1,$G$1)","v":"'Equity Investments'!$G$53"},0.5,{"$f":"IF(INDIRECT(G331)=H331,0,1)","v":0},null,null,null,{"$f":"ADDRESS(26,12,1,1,$M$1)","v":"'Currency Risk'!$L$26"},"='Schedule XXA'!V24",0,null,null,null,{"$f":"ADDRESS(23,6,1,1,$S$1)","v":"'Geographic Diversification'!$F$23"},"=(IF(D23>0,E23/D23^2,1))",0,null,null,null,{"$f":"ADDRESS(34,7,1,1,$Y$1)","v":"'Premium Risk'!$G$34"},"=IF(IFERROR(F34/E34,1)<0,1,IFERROR(F34/E34,1))",0]
[null,null,null,null,null,null,{"$f":"ADDRESS(53,16,1,1,$G$1)","v":"'Equity Investments'!$P$53"},"=P40",{"$f":"IF(_xlfn.FORMULATEXT(INDIRECT(G332))=H332,0,1)","v":0},null,null,null,{"$f":"ADDRESS(26,13,1,1,$M$1)","v":"'Currency Risk'!$M$26"},"='Schedule XXA'!X24",0,null,null,null,{"$f":"ADDRESS(23,7,1,1,$S$1)","v":"'Geographic Diversification'!$G$23"},"=D23*(0.75+0.25*F23)",0,null,null,null,{"$f":"ADDRESS(34,8,1,1,$Y$1)","v":"'Premium Risk'!$H$34"},"='Schedule IVD'!I32*$G34",0]
[null,null,null,null,null,null,{"$f":"ADDRESS(53,18,1,1,$G$1)","v":"'Equity Investments'!$R$53"},"=R40",{"$f":"IF(_xlfn.FORMULATEXT(INDIRECT(G333))=H333,0,1)","v":0},null,null,null,{"$f":"ADDRESS(26,14,1,1,$M$1)","v":"'Currency Risk'!$N$26"},"='Schedule XXA'!Z24",0,null,null,null,{"$f":"ADDRESS(23,8,1,1,$S$1)","v":"'Geographic Diversification'!$H$23"},"=IF('Schedule IVE'!AB23=\"True\",G23,'Schedule IVD'!O23)",0,null,null,null,{"$f":"ADDRESS(34,9,1,1,$Y$1)","v":"'Premium Risk'!$I$34"},"='Schedule IVD'!K32*$G34",0]
[null,null,null,null,null,null,{"$f":"ADDRESS(54,4,1,1,$G$1)","v":"'Equity Investments'!$D$54"},0.5,{"$f":"IF(INDIRECT(G334)=H334,0,1)","v":0},null,null,null,{"$f":"ADDRESS(26,15,1,1,$M$1)","v":"'Currency Risk'!$O$26"},"='Schedule XXA'!AB24",0,null,null,null,{"$f":"ADDRESS(23,9,1,1,$S$1)","v":"'Geographic Diversification'!$I$23"},"=+'Schedule IVE'!E23",0,null,null,null,{"$f":"ADDRESS(34,10,1,1,$Y$1)","v":"'Premium Risk'!$J$34"},"='Schedule IVD'!M32*$G34",0]
[null,null,null,null,null,null,{"$f":"ADDRESS(54,5,1,1,$G$1)","v":"'Equity Investments'!$E$54"},0.5,{"$f":"IF(INDIRECT(G335)=H335,0,1)","v":0},null,null,null,{"$f":"ADDRESS(26,16,1,1,$M$1)","v":"'Currency Risk'!$P$26"},"='Schedule XXA'!AD24",0,null,null,null,{"$f":"ADDRESS(23,10,1,1,$S$1)","v":"'Geographic Diversification'!$J$23"},"=+'Schedule IVE'!F23",0,null,null,null,{"$f":"ADDRESS(34,11,1,1,$Y$1)","v":"'Premium Risk'!$K$34"},0.15,{"$f":"IF(INDIRECT(Y335)=Z335,0,1)","v":0}]
[null,null,null,null,null,null,{"$f":"ADDRESS(54,6,1,1,$G$1)","v":"'Equity Investments'!$F$54"},0.5,{"$f":"IF(INDIRECT(G336)=H336,0,1)","v":0},null,null,null,{"$f":"ADDRESS(26,17,1,1,$M$1)","v":"'Currency Risk'!$Q$26"},"='Schedule XXA'!AF24",0,null,null,null,{"$f":"ADDRESS(23,11,1,1,$S$1)","v":"'Geographic Diversification'!$K$23"},"=+'Schedule IVE'!G23",0,null,null,null,{"$f":"ADDRESS(34,12,1,1,$Y$1)","v":"'Premium Risk'!$L$34"},"=+K34*S34",{"$f":"IF(_xlfn.FORMULATEXT(INDIRECT(Y336))=Z336,0,1)","v":0}]
[null,null,null,null,null,null,{"$f":"ADDRESS(54,7,1,1,$G$1)","v":"'Equity Investments'!$G$54"},1,{"$f":"IF(INDIRECT(G337)=H337,0,1)","v":0},null,null,null,{"$f":"ADDRESS(26,18,1,1,$M$1)","v":"'Currency Risk'!$R$26"},"=IF('Schedule XXA'!AH24=0,Q26,'Schedule XXA'!AH24)",0,null,null,null,{"$f":"ADDRESS(23,12,1,1,$S$1)","v":"'Geographic Diversification'!$L$23"},"=+'Schedule IVE'!H23",0,null,null,null,{"$f":"ADDRESS(34,13,1,1,$Y$1)","v":"'Premium Risk'!$M$34"},"=+L34*T34",{"$f":"IF(_xlfn.FORMULATEXT(INDIRECT(Y337))=Z337,0,1)","v":0}]
[null,null,null,null,null,null,{"$f":"ADDRESS(54,16,1,1,$G$1)","v":"'Equity Investments'!$P$54"},"=P46",{"$f":"IF(_xlfn.FORMULATEXT(INDIRECT(G338))=H338,0,1)","v":0},null,null,null,{"$f":"ADDRESS(26,20,1,1,$M$1)","v":"'Currency Risk'!$T$26"},"=(C26-L26)+(D26-M26)+(F26-O26)+MAX(E26-N26,0)+MAX(G26-P26,0)",0,null,null,null,{"$f":"ADDRESS(23,13,1,1,$S$1)","v":"'Geographic Diversification'!$M$23"},"=+'Schedule IVE'!I23",0,null,null,null,{"$f":"ADDRESS(34,14,1,1,$Y$1)","v":"'Premium Risk'!$N$34"},"=IF($H34<0,0,$H34*$K34)+IF($I34<0,0,$I34*$L34)+IF($J34<0,0,$J34*$M34)",{"$f":"IF(_xlfn.FORMULATEXT(INDIRECT(Y338))=Z338,0,1)","v":0}]
[null,null,null,null,null,null,{"$f":"ADDRESS(54,18,1,1,$G$1)","v":"'Equity Investments'!$R$54"},"=R46",{"$f":"IF(_xlfn.FORMULATEXT(INDIRECT(G339))=H339,0,1)","v":0},null,null,null,{"$f":"ADDRESS(26,21,1,1,$M$1)","v":"'Currency Risk'!$U$26"},"=Q26-$H26",0,null,null,null,{"$f":"ADDRESS(23,14,1,1,$S$1)","v":"'Geographic Diversification'!$N$23"},"=+'Schedule IVE'!J23",0,null,null,null,{"$f":"ADDRESS(34,17,1,1,$Y$1)","v":"'Premium Risk'!$Q$34"},"=IF(H34=E34,MAX(D34*K34,0),IF(E34=F34,IF(D34<0,0,D34*(H34/F34)*K34),IF(D34<0,0,D34*(H34/E34)*K34)))\n+IF(I34=E34,MAX(D34*L34,0),IF(E34=F34,IF(D34<0,0,D34*(I34/F34)*L34),IF(D34<0,0,D34*(I34/E34)*L34)))\n+IF(J34=E34,MAX(D34*M34,0),IF(E34=F34,IF(D34<0,0,D34*(J34/F34)*M34),IF(D34<0,0,D34*(J34/E34)*M34)))",{"$f":"IF(_xlfn.FORMULATEXT(INDIRECT(Y339))=Z339,0,1)","v":0}]
[null,null,null,null,null,null,{"$f":"ADDRESS(56,16,1,1,$G$1)","v":"'Equity Investments'!$P$56"},"{=SQRT(MMULT(TRANSPOSE($P$51:$P$54),MMULT($D$51:$G$54,$P$51:$P$54)))}",{"$f":"IF(_xlfn.FORMULATEXT(INDIRECT(G340))=H340,0,1)","v":0},null,null,null,{"$f":"ADDRESS(26,22,1,1,$M$1)","v":"'Currency Risk'!$V$26"},"=R26-$H26",0,null,null,null,{"$f":"ADDRESS(23,15,1,1,$S$1)","v":"'Geographic Diversification'!$O$23"},"=+'Schedule IVE'!K23",0,null,null,null,{"$f":"ADDRESS(34,19,1,1,$Y$1)","v":"'Premium Risk'!$S$34"},0.25,{"$f":"IF(INDIRECT(Y340)=Z340,0,1)","v":0}]
[null,null,null,null,null,null,{"$f":"ADDRESS(56,18,1,1,$G$1)","v":"'Equity Investments'!$R$56"},"{=SQRT(MMULT(TRANSPOSE($R$51:$R$54),MMULT($D$51:$G$54,$R$51:$R$54)))}",{"$f":"IF(_xlfn.FORMULATEXT(INDIRECT(G341))=H341,0,1)","v":0},null,null,null,{"$f":"ADDRESS(26,24,1,1,$M$1)","v":"'Currency Risk'!$X$26"},"=MAX(0,$T26+U26+(J26*I26))",0,null,null,null,{"$f":"ADDRESS(23,16,1,1,$S$1)","v":"'Geographic Diversification'!$P$23"},"=+'Schedule IVE'!L23",0,null,null,null,{"$f":"ADDRESS(34,20,1,1,$Y$1)","v":"'Premium Risk'!$T$34"},0.5,{"$f":"IF(INDIRECT(Y341)=Z341,0,1)","v":0}]
[null,null,null,null,null,null,null,null,-342,null,null,null,{"$f":"ADDRESS(26,25,1,1,$M$1)","v":"'Currency Risk'!$Y$26"},"=MAX(0,$T26+V26+(J26*I26))",0,null,null,null,{"$f":"ADDRESS(23,17,1,1,$S$1)","v":"'Geographic Diversification'!$Q$23"},"=+'Schedule IVE'!M23",0,null,null,null,{"$f":"ADDRESS(36,4,1,1,$Y$1)","v":"'Premium Risk'!$D$36"},"=SUM(D11:D34)",{"$f":"IF(_xlfn.FORMULATEXT(INDIRECT(Y342))=Z342,0,1)","v":0}]
[null,null,null,null,null,null,null,null,null,null,null,null,{"$f":"ADDRESS(27,2,1,1,$M$1)","v":"'Currency Risk'!$B$27"},"='Schedule XXA'!B25",0,null,null,null,{"$f":"ADDRESS(23,18,1,1,$S$1)","v":"'Geographic Diversification'!$R$23"},"=+'Schedule IVE'!N23",0,null,null,null,{"$f":"ADDRESS(36,5,1,1,$Y$1)","v":"'Premium Risk'!$E$36"},"=SUM(E11:E34)",0]
[null,null,null,null,null,null,null,null,null,null,null,null,{"$f":"ADDRESS(27,3,1,1,$M$1)","v":"'Currency Risk'!$C$27"},"='Schedule XXA'!D25",0,null,null,null,{"$f":"ADDRESS(23,19,1,1,$S$1)","v":"'Geographic Diversification'!$S$23"},"=+'Schedule IVE'!O23",0,null,null,null,{"$f":"ADDRESS(36,6,1,1,$Y$1)","v":"'Premium Risk'!$F$36"},"=SUM(F11:F34)",0]
[null,null,null,null,null,null,null,null,null,null,null,null,{"$f":"ADDRESS(27,4,1,1,$M$1)","v":"'Currency Risk'!$D$27"},"='Schedule XXA'!F25",0,null,null,null,{"$f":"ADDRESS(23,20,1,1,$S$1)","v":"'Geographic Diversification'!$T$23"},"=+'Schedule IVE'!P23",0,null,null,null,{"$f":"ADDRESS(36,8,1,1,$Y$1)","v":"'Premium Risk'!$H$36"},"=SUM(H11:H34)",0]
[null,null,null,null,null,null,null,null,null,null,null,null,{"$f":"ADDRESS(27,5,1,1,$M$1)","v":"'Currency Risk'!$E$27"},"='Schedule XXA'!H25",0,null,null,null,{"$f":"ADDRESS(23,21,1,1,$S$1)","v":"'Geographic Diversification'!$U$23"},"=+'Schedule IVE'!Q23",0,null,null,null,{"$f":"ADDRESS(36,9,1,1,$Y$1)","v":"'Premium Risk'!$I$36"},"=SUM(I11:I34)",0]
[null,null,null,null,null,null,null,null,null,null,null,null,{"$f":"ADDRESS(27,6,1,1,$M$1)","v":"'Currency Risk'!$F$27"},"='Schedule XXA'!J25",0,null,null,null,{"$f":"ADDRESS(23,22,1,1,$S$1)","v":"'Geographic Diversification'!$V$23"},"=+'Schedule IVE'!R23",0,null,null,null,{"$f":"ADDRESS(36,10,1,1,$Y$1)","v":"'Premium Risk'!$J$36"},"=SUM(J11:J34)",0]
[null,null,null,null,null,null,null,null,null,null,null,null,{"$f":"ADDRESS(27,7,1,1,$M$1)","v":"'Currency Risk'!$G$27"},"='Schedule XXA'!L25",0,null,null,null,{"$f":"ADDRESS(23,23,1,1,$S$1)","v":"'Geographic Diversification'!$W$23"},"=+'Schedule IVE'!S23",0,null,null,null,{"$f":"ADDRESS(36,14,1,1,$Y$1)","v":"'Premium Risk'!$N$36"},"=SUM(N11:N35)",0]
[null,null,null,null,null,null,null,null,null,null,null,null,{"$f":"ADDRESS(27,8,1,1,$M$1)","v":"'Currency Risk'!$H$27"},"='Schedule XXA'!N25",0,null,null,null,{"$f":"ADDRESS(23,24,1,1,$S$1)","v":"'Geographic Diversification'!$X$23"},"=+'Schedule IVE'!T23",0,null,null,null,{"$f":"ADDRESS(36,17,1,1,$Y$1)","v":"'Premium Risk'!$Q$36"},"=SUM(Q11:Q35)",0]
[null,null,null,null,null,null,null,null,null,null,null,null,{"$f":"ADDRESS(27,9,1,1,$M$1)","v":"'Currency Risk'!$I$27"},"=$I$10*H27",0,null,null,null,{"$f":"ADDRESS(23,25,1,1,$S$1)","v":"'Geographic Diversification'!$Y$23"},"=+'Schedule IVE'!U23",0,null,null,null,{"$f":"ADDRESS(40,14,1,1,$Y$1)","v":"'Premium Risk'!$N$40"},"=N36-N42",0]
[null,null,null,null,null,null,null,null,null,null,null,null,{"$f":"ADDRESS(27,10,1,1,$M$1)","v":"'Currency Risk'!$J$27"},"=IF((SUM(C27:G27))>(H27+I27),0%,25%)",0,null,null,null,{"$f":"ADDRESS(23,26,1,1,$S$1)","v":"'Geographic Diversification'!$Z$23"},"=+'Schedule IVE'!V23",0,null,null,null,{"$f":"ADDRESS(40,17,1,1,$Y$1)","v":"'Premium Risk'!$Q$40"},"=Q36-Q42",0]
[null,null,null,null,null,null,null,null,null,null,null,null,{"$f":"ADDRESS(27,12,1,1,$M$1)","v":"'Currency Risk'!$L$27"},"='Schedule XXA'!V25",0,null,null,null,{"$f":"ADDRESS(24,4,1,1,$S$1)","v":"'Geographic Diversification'!$D$24"},"=SUM(I24:Z24)",0,null,null,null,{"$f":"ADDRESS(42,11,1,1,$Y$1)","v":"'Premium Risk'!$K$42"},"{=SQRT(MMULT(TRANSPOSE(IF($H11:$H34<0,0,$H11:$H34*$K11:$K34)),MMULT('Correlation Matrix'!C16:Z39,IF($H11:$H34<0,0,$H11:$H34*$K11:$K34))))}",0]
[null,null,null,null,null,null,null,null,null,null,null,null,{"$f":"ADDRESS(27,13,1,1,$M$1)","v":"'Currency Risk'!$M$27"},"='Schedule XXA'!X25",0,null,null,null,{"$f":"ADDRESS(24,5,1,1,$S$1)","v":"'Geographic Diversification'!$E$24"},"=SUMSQ(I24:Z24)",0,null,null,null,{"$f":"ADDRESS(42,14,1,1,$Y$1)","v":"'Premium Risk'!$N$42"},"{=SQRT(MMULT(TRANSPOSE(N11:N34),MMULT('Correlation Matrix'!C16:Z39,N11:N34)))}",0]
[null,null,null,null,null,null,null,null,null,null,null,null,{"$f":"ADDRESS(27,14,1,1,$M$1)","v":"'Currency Risk'!$N$27"},"='Schedule XXA'!Z25",0,null,null,null,{"$f":"ADDRESS(24,6,1,1,$S$1)","v":"'Geographic Diversification'!$F$24"},"=(IF(D24>0,E24/D24^2,1))",0,null,null,null,{"$f":"ADDRESS(42,17,1,1,$Y$1)","v":"'Premium Risk'!$Q$42"},"{=SQRT(MMULT(TRANSPOSE(Q11:Q34),MMULT('Correlation Matrix'!C16:Z39,Q11:Q34)))}",0]
[null,null,null,null,null,null,null,null,null,null,null,null,{"$f":"ADDRESS(27,15,1,1,$M$1)","v":"'Currency Risk'!$O$27"},"='Schedule XXA'!AB25",0,null,null,null,{"$f":"ADDRESS(24,7,1,1,$S$1)","v":"'Geographic Diversification'!$G$24"},"=D24*(0.75+0.25*F24)",0,null,null,null,{"$f":"ADDRESS(46,14,1,1,$Y$1)","v":"'Premium Risk'!$N$46"},"='Catastrophe Risk'!E11",0]
[null,null,null,null,null,null,null,null,null,null,null,null,{"$f":"ADDRESS(27,16,1,1,$M$1)","v":"'Currency Risk'!$P$27"},"='Schedule XXA'!AD25",0,null,null,null,{"$f":"ADDRESS(24,8,1,1,$S$1)","v":"'Geographic Diversification'!$H$24"},"=IF('Schedule IVE'!AB24=\"True\",G24,'Schedule IVD'!O24)",0,null,null,null,{"$f":"ADDRESS(46,17,1,1,$Y$1)","v":"'Premium Risk'!$Q$46"},"='Catastrophe Risk'!E11",0]
[null,null,null,null,null,null,null,null,null,null,null,null,{"$f":"ADDRESS(27,17,1,1,$M$1)","v":"'Currency Risk'!$Q$27"},"='Schedule XXA'!AF25",{"$f":"IF(_xlfn.FORMULATEXT(INDIRECT(M357))=N357,0,1)","v":0},null,null,null,{"$f":"ADDRESS(24,9,1,1,$S$1)","v":"'Geographic Diversification'!$I$24"},"=+'Schedule IVE'!E24",0,null,null,null,{"$f":"ADDRESS(47,14,1,1,$Y$1)","v":"'Premium Risk'!$N$47"},"='Catastrophe Risk'!E13",0]
[null,null,null,null,null,null,null,null,null,null,null,null,{"$f":"ADDRESS(27,18,1,1,$M$1)","v":"'Currency Risk'!$R$27"},"=IF('Schedule XXA'!AH25=0,Q27,'Schedule XXA'!AH25)",0,null,null,null,{"$f":"ADDRESS(24,10,1,1,$S$1)","v":"'Geographic Diversification'!$J$24"},"=+'Schedule IVE'!F24",0,null,null,null,{"$f":"ADDRESS(47,17,1,1,$Y$1)","v":"'Premium Risk'!$Q$47"},"='Catastrophe Risk'!E13",0]
[null,null,null,null,null,null,null,null,null,null,null,null,{"$f":"ADDRESS(27,20,1,1,$M$1)","v":"'Currency Risk'!$T$27"},"=(C27-L27)+(D27-M27)+(F27-O27)+MAX(E27-N27,0)+MAX(G27-P27,0)",0,null,null,null,{"$f":"ADDRESS(24,11,1,1,$S$1)","v":"'Geographic Diversification'!$K$24"},"=+'Schedule IVE'!G24",0,null,null,null,{"$f":"ADDRESS(48,14,1,1,$Y$1)","v":"'Premium Risk'!$N$48"},"=IF((H36-H11)=0,0,K42/(H36-H11))",0]
[null,null,null,null,null,null,null,null,null,null,null,null,{"$f":"ADDRESS(27,21,1,1,$M$1)","v":"'Currency Risk'!$U$27"},"=Q27-$H27",0,null,null,null,{"$f":"ADDRESS(24,12,1,1,$S$1)","v":"'Geographic Diversification'!$L$24"},"=+'Schedule IVE'!H24",0,null,null,null,{"$f":"ADDRESS(48,17,1,1,$Y$1)","v":"'Premium Risk'!$Q$48"},"=IF((D36-D11)=0,0,Q42/(D36-D11))",0]
[null,null,null,null,null,null,null,null,null,null,null,null,{"$f":"ADDRESS(27,22,1,1,$M$1)","v":"'Currency Risk'!$V$27"},"=R27-$H27",0,null,null,null,{"$f":"ADDRESS(24,13,1,1,$S$1)","v":"'Geographic Diversification'!$M$24"},"=+'Schedule IVE'!I24",0,null,null,null,{"$f":"ADDRESS(50,14,1,1,$Y$1)","v":"'Premium Risk'!$N$50"},"=N46/N47*N48",0]
[null,null,null,null,null,null,null,null,null,null,null,null,{"$f":"ADDRESS(27,24,1,1,$M$1)","v":"'Currency Risk'!$X$27"},"=MAX(0,$T27+U27+(J27*I27))",0,null,null,null,{"$f":"ADDRESS(24,14,1,1,$S$1)","v":"'Geographic Diversification'!$N$24"},"=+'Schedule IVE'!J24",0,null,null,null,{"$f":"ADDRESS(50,17,1,1,$Y$1)","v":"'Premium Risk'!$Q$50"},"=Q46/Q47*Q48",0]
[null,null,null,null,null,null,null,null,null,null,null,null,{"$f":"ADDRESS(27,25,1,1,$M$1)","v":"'Currency Risk'!$Y$27"},"=MAX(0,$T27+V27+(J27*I27))",0,null,null,null,{"$f":"ADDRESS(24,15,1,1,$S$1)","v":"'Geographic Diversification'!$O$24"},"=+'Schedule IVE'!K24",0,null,null,null,{"$f":"ADDRESS(52,14,1,1,$Y$1)","v":"'Premium Risk'!$N$52"},"='Schedule IX(b)'!H51/900*95%",0]
[null,null,null,null,null,null,null,null,null,null,null,null,{"$f":"ADDRESS(28,2,1,1,$M$1)","v":"'Currency Risk'!$B$28"},"='Schedule XXA'!B26",0,null,null,null,{"$f":"ADDRESS(24,16,1,1,$S$1)","v":"'Geographic Diversification'!$P$24"},"=+'Schedule IVE'!L24",0,null,null,null,{"$f":"ADDRESS(52,17,1,1,$Y$1)","v":"'Premium Risk'!$Q$52"},"='Schedule IX(b)'!H51/900*95%",0]
[null,null,null,null,null,null,null,null,null,null,null,null,{"$f":"ADDRESS(28,3,1,1,$M$1)","v":"'Currency Risk'!$C$28"},"='Schedule XXA'!D26",0,null,null,null,{"$f":"ADDRESS(24,17,1,1,$S$1)","v":"'Geographic Diversification'!$Q$24"},"=+'Schedule IVE'!M24",0,null,null,null,{"$f":"ADDRESS(53,14,1,1,$Y$1)","v":"'Premium Risk'!$N$53"},"='Schedule IX(b)'!H55*5%",0]
[null,null,null,null,null,null,null,null,null,null,null,null,{"$f":"ADDRESS(28,4,1,1,$M$1)","v":"'Currency Risk'!$D$28"},"='Schedule XXA'!F26",0,null,null,null,{"$f":"ADDRESS(24,18,1,1,$S$1)","v":"'Geographic Diversification'!$R$24"},"=+'Schedule IVE'!N24",0,null,null,null,{"$f":"ADDRESS(53,17,1,1,$Y$1)","v":"'Premium Risk'!$Q$53"},"='Schedule IX(b)'!H55*5%",0]
[null,null,null,null,null,null,null,null,null,null,null,null,{"$f":"ADDRESS(28,5,1,1,$M$1)","v":"'Currency Risk'!$E$28"},"='Schedule XXA'!H26",0,null,null,null,{"$f":"ADDRESS(24,19,1,1,$S$1)","v":"'Geographic Diversification'!$S$24"},"=+'Schedule IVE'!O24",0,null,null,null,{"$f":"ADDRESS(54,14,1,1,$Y$1)","v":"'Premium Risk'!$N$54"},"=N52+N53",0]
[null,null,null,null,null,null,null,null,null,null,null,null,{"$f":"ADDRESS(28,6,1,1,$M$1)","v":"'Currency Risk'!$F$28"},"='Schedule XXA'!J26",0,null,null,null,{"$f":"ADDRESS(24,20,1,1,$S$1)","v":"'Geographic Diversification'!$T$24"},"=+'Schedule IVE'!P24",0,null,null,null,{"$f":"ADDRESS(54,17,1,1,$Y$1)","v":"'Premium Risk'!$Q$54"},"=Q52+Q53",0]
[null,null,null,null,null,null,null,null,null,null,null,null,{"$f":"ADDRESS(28,7,1,1,$M$1)","v":"'Currency Risk'!$G$28"},"='Schedule XXA'!L26",0,null,null,null,{"$f":"ADDRESS(24,21,1,1,$S$1)","v":"'Geographic Diversification'!$U$24"},"=+'Schedule IVE'!Q24",0,null,null,null,{"$f":"ADDRESS(55,14,1,1,$Y$1)","v":"'Premium Risk'!$N$55"},0.4,{"$f":"IF(INDIRECT(Y369)=Z369,0,1)","v":0}]
[null,null,null,null,null,null,null,null,null,null,null,null,{"$f":"ADDRESS(28,8,1,1,$M$1)","v":"'Currency Risk'!$H$28"},"='Schedule XXA'!N26",0,null,null,null,{"$f":"ADDRESS(24,22,1,1,$S$1)","v":"'Geographic Diversification'!$V$24"},"=+'Schedule IVE'!R24",0,null,null,null,{"$f":"ADDRESS(55,17,1,1,$Y$1)","v":"'Premium Risk'!$Q$55"},0.4,{"$f":"IF(INDIRECT(Y370)=Z370,0,1)","v":0}]
[null,null,null,null,null,null,null,null,null,null,null,null,{"$f":"ADDRESS(28,9,1,1,$M$1)","v":"'Currency Risk'!$I$28"},"=$I$10*H28",0,null,null,null,{"$f":"ADDRESS(24,23,1,1,$S$1)","v":"'Geographic Diversification'!$W$24"},"=+'Schedule IVE'!S24",0,null,null,null,{"$f":"ADDRESS(57,14,1,1,$Y$1)","v":"'Premium Risk'!$N$57"},"=N54*N55",{"$f":"IF(_xlfn.FORMULATEXT(INDIRECT(Y371))=Z371,0,1)","v":0}]
[null,null,null,null,null,null,null,null,null,null,null,null,{"$f":"ADDRESS(28,10,1,1,$M$1)","v":"'Currency Risk'!$J$28"},"=IF((SUM(C28:G28))>(H28+I28),0%,25%)",0,null,null,null,{"$f":"ADDRESS(24,24,1,1,$S$1)","v":"'Geographic Diversification'!$X$24"},"=+'Schedule IVE'!T24",0,null,null,null,{"$f":"ADDRESS(57,17,1,1,$Y$1)","v":"'Premium Risk'!$Q$57"},"=Q54*Q55",{"$f":"IF(_xlfn.FORMULATEXT(INDIRECT(Y372))=Z372,0,1)","v":0}]
[null,null,null,null,null,null,null,null,null,null,null,null,{"$f":"ADDRESS(28,12,1,1,$M$1)","v":"'Currency Risk'!$L$28"},"='Schedule XXA'!V26",0,null,null,null,{"$f":"ADDRESS(24,25,1,1,$S$1)","v":"'Geographic Diversification'!$Y$24"},"=+'Schedule IVE'!U24",0,null,null,null,{"$f":"ADDRESS(59,14,1,1,$Y$1)","v":"'Premium Risk'!$N$59"},"=IF('Company Information'!$F$11=\"IIGB\",N42-N36*N57,IF(N42-N50>=0,N42-N50,0))",{"$f":"IF(_xlfn.FORMULATEXT(INDIRECT(Y373))=Z373,0,1)","v":0}]
[null,null,null,null,null,null,null,null,null,null,null,null,{"$f":"ADDRESS(28,13,1,1,$M$1)","v":"'Currency Risk'!$M$28"},"='Schedule XXA'!X26",0,null,null,null,{"$f":"ADDRESS(24,26,1,1,$S$1)","v":"'Geographic Diversification'!$Z$24"},"=+'Schedule IVE'!V24",0,null,null,null,{"$f":"ADDRESS(59,17,1,1,$Y$1)","v":"'Premium Risk'!$Q$59"},"=IF('Company Information'!$F$11=\"IIGB\",Q42-Q36*Q57,IF(Q42-Q50>=0,Q42-Q50,0))",{"$f":"IF(_xlfn.FORMULATEXT(INDIRECT(Y374))=Z374,0,1)","v":0}]
[null,null,null,null,null,null,null,null,null,null,null,null,{"$f":"ADDRESS(28,14,1,1,$M$1)","v":"'Currency Risk'!$N$28"},"='Schedule XXA'!Z26",0,null,null,null,{"$f":"ADDRESS(25,4,1,1,$S$1)","v":"'Geographic Diversification'!$D$25"},"=SUM(I25:Z25)",0,null,null,null,null,null,-375]
[null,null,null,null,null,null,null,null,null,null,null,null,{"$f":"ADDRESS(28,15,1,1,$M$1)","v":"'Currency Risk'!$O$28"},"='Schedule XXA'!AB26",0,null,null,null,{"$f":"ADDRESS(25,5,1,1,$S$1)","v":"'Geographic Diversification'!$E$25"},"=SUMSQ(I25:Z25)",0]
[null,null,null,null,null,null,null,null,null,null,null,null,{"$f":"ADDRESS(28,16,1,1,$M$1)","v":"'Currency Risk'!$P$28"},"='Schedule XXA'!AD26",0,null,null,null,{"$f":"ADDRESS(25,6,1,1,$S$1)","v":"'Geographic Diversification'!$F$25"},"=(IF(D25>0,E25/D25^2,1))",0]
[null,null,null,null,null,null,null,null,null,null,null,null,{"$f":"ADDRESS(28,17,1,1,$M$1)","v":"'Currency Risk'!$Q$28"},"='Schedule XXA'!AF26",0,null,null,null,{"$f":"ADDRESS(25,7,1,1,$S$1)","v":"'Geographic Diversification'!$G$25"},"=D25*(0.75+0.25*F25)",0]
[null,null,null,null,null,null,null,null,null,null,null,null,{"$f":"ADDRESS(28,18,1,1,$M$1)","v":"'Currency Risk'!$R$28"},"=IF('Schedule XXA'!AH26=0,Q28,'Schedule XXA'!AH26)",0,null,null,null,{"$f":"ADDRESS(25,8,1,1,$S$1)","v":"'Geographic Diversification'!$H$25"},"=IF('Schedule IVE'!AB25=\"True\",G25,'Schedule IVD'!O25)",0]
[null,null,null,null,null,null,null,null,null,null,null,null,{"$f":"ADDRESS(28,20,1,1,$M$1)","v":"'Currency Risk'!$T$28"},"=(C28-L28)+(D28-M28)+(F28-O28)+MAX(E28-N28,0)+MAX(G28-P28,0)",0,null,null,null,{"$f":"ADDRESS(25,9,1,1,$S$1)","v":"'Geographic Diversification'!$I$25"},"=+'Schedule IVE'!E25",0]
[null,null,null,null,null,null,null,null,null,null,null,null,{"$f":"ADDRESS(28,21,1,1,$M$1)","v":"'Currency Risk'!$U$28"},"=Q28-$H28",0,null,null,null,{"$f":"ADDRESS(25,10,1,1,$S$1)","v":"'Geographic Diversification'!$J$25"},"=+'Schedule IVE'!F25",0]
[null,null,null,null,null,null,null,null,null,null,null,null,{"$f":"ADDRESS(28,22,1,1,$M$1)","v":"'Currency Risk'!$V$28"},"=R28-$H28",0,null,null,null,{"$f":"ADDRESS(25,11,1,1,$S$1)","v":"'Geographic Diversification'!$K$25"},"=+'Schedule IVE'!G25",0]
[null,null,null,null,null,null,null,null,null,null,null,null,{"$f":"ADDRESS(28,24,1,1,$M$1)","v":"'Currency Risk'!$X$28"},"=MAX(0,$T28+U28+(J28*I28))",0,null,null,null,{"$f":"ADDRESS(25,12,1,1,$S$1)","v":"'Geographic Diversification'!$L$25"},"=+'Schedule IVE'!H25",0]
[null,null,null,null,null,null,null,null,null,null,null,null,{"$f":"ADDRESS(28,25,1,1,$M$1)","v":"'Currency Risk'!$Y$28"},"=MAX(0,$T28+V28+(J28*I28))",0,null,null,null,{"$f":"ADDRESS(25,13,1,1,$S$1)","v":"'Geographic Diversification'!$M$25"},"=+'Schedule IVE'!I25",0]
[null,null,null,null,null,null,null,null,null,null,null,null,{"$f":"ADDRESS(29,2,1,1,$M$1)","v":"'Currency Risk'!$B$29"},"='Schedule XXA'!B27",0,null,null,null,{"$f":"ADDRESS(25,14,1,1,$S$1)","v":"'Geographic Diversification'!$N$25"},"=+'Schedule IVE'!J25",0]
[null,null,null,null,null,null,null,null,null,null,null,null,{"$f":"ADDRESS(29,3,1,1,$M$1)","v":"'Currency Risk'!$C$29"},"='Schedule XXA'!D27",0,null,null,null,{"$f":"ADDRESS(25,15,1,1,$S$1)","v":"'Geographic Diversification'!$O$25"},"=+'Schedule IVE'!K25",0]
[null,null,null,null,null,null,null,null,null,null,null,null,{"$f":"ADDRESS(29,4,1,1,$M$1)","v":"'Currency Risk'!$D$29"},"='Schedule XXA'!F27",0,null,null,null,{"$f":"ADDRESS(25,16,1,1,$S$1)","v":"'Geographic Diversification'!$P$25"},"=+'Schedule IVE'!L25",0]
[null,null,null,null,null,null,null,null,null,null,null,null,{"$f":"ADDRESS(29,5,1,1,$M$1)","v":"'Currency Risk'!$E$29"},"='Schedule XXA'!H27",0,null,null,null,{"$f":"ADDRESS(25,17,1,1,$S$1)","v":"'Geographic Diversification'!$Q$25"},"=+'Schedule IVE'!M25",{"$f":"IF(_xlfn.FORMULATEXT(INDIRECT(S388))=T388,0,1)","v":0}]
[null,null,null,null,null,null,null,null,null,null,null,null,{"$f":"ADDRESS(29,6,1,1,$M$1)","v":"'Currency Risk'!$F$29"},"='Schedule XXA'!J27",0,null,null,null,{"$f":"ADDRESS(25,18,1,1,$S$1)","v":"'Geographic Diversification'!$R$25"},"=+'Schedule IVE'!N25",0]
[null,null,null,null,null,null,null,null,null,null,null,null,{"$f":"ADDRESS(29,7,1,1,$M$1)","v":"'Currency Risk'!$G$29"},"='Schedule XXA'!L27",0,null,null,null,{"$f":"ADDRESS(25,19,1,1,$S$1)","v":"'Geographic Diversification'!$S$25"},"=+'Schedule IVE'!O25",0]
[null,null,null,null,null,null,null,null,null,null,null,null,{"$f":"ADDRESS(29,8,1,1,$M$1)","v":"'Currency Risk'!$H$29"},"='Schedule XXA'!N27",0,null,null,null,{"$f":"ADDRESS(25,20,1,1,$S$1)","v":"'Geographic Diversification'!$T$25"},"=+'Schedule IVE'!P25",0]
[null,null,null,null,null,null,null,null,null,null,null,null,{"$f":"ADDRESS(29,9,1,1,$M$1)","v":"'Currency Risk'!$I$29"},"=$I$10*H29",0,null,null,null,{"$f":"ADDRESS(25,21,1,1,$S$1)","v":"'Geographic Diversification'!$U$25"},"=+'Schedule IVE'!Q25",0]
[null,null,null,null,null,null,null,null,null,null,null,null,{"$f":"ADDRESS(29,10,1,1,$M$1)","v":"'Currency Risk'!$J$29"},"=IF((SUM(C29:G29))>(H29+I29),0%,25%)",0,null,null,null,{"$f":"ADDRESS(25,22,1,1,$S$1)","v":"'Geographic Diversification'!$V$25"},"=+'Schedule IVE'!R25",0]
[null,null,null,null,null,null,null,null,null,null,null,null,{"$f":"ADDRESS(29,12,1,1,$M$1)","v":"'Currency Risk'!$L$29"},"='Schedule XXA'!V27",0,null,null,null,{"$f":"ADDRESS(25,23,1,1,$S$1)","v":"'Geographic Diversification'!$W$25"},"=+'Schedule IVE'!S25",0]
[null,null,null,null,null,null,null,null,null,null,null,null,{"$f":"ADDRESS(29,13,1,1,$M$1)","v":"'Currency Risk'!$M$29"},"='Schedule XXA'!X27",0,null,null,null,{"$f":"ADDRESS(25,24,1,1,$S$1)","v":"'Geographic Diversification'!$X$25"},"=+'Schedule IVE'!T25",0]
[null,null,null,null,null,null,null,null,null,null,null,null,{"$f":"ADDRESS(29,14,1,1,$M$1)","v":"'Currency Risk'!$N$29"},"='Schedule XXA'!Z27",0,null,null,null,{"$f":"ADDRESS(25,25,1,1,$S$1)","v":"'Geographic Diversification'!$Y$25"},"=+'Schedule IVE'!U25",0]
[null,null,null,null,null,null,null,null,null,null,null,null,{"$f":"ADDRESS(29,15,1,1,$M$1)","v":"'Currency Risk'!$O$29"},"='Schedule XXA'!AB27",0,null,null,null,{"$f":"ADDRESS(25,26,1,1,$S$1)","v":"'Geographic Diversification'!$Z$25"},"=+'Schedule IVE'!V25",0]
[null,null,null,null,null,null,null,null,null,null,null,null,{"$f":"ADDRESS(29,16,1,1,$M$1)","v":"'Currency Risk'!$P$29"},"='Schedule XXA'!AD27",0,null,null,null,{"$f":"ADDRESS(26,4,1,1,$S$1)","v":"'Geographic Diversification'!$D$26"},"=SUM(I26:Z26)",0]
[null,null,null,null,null,null,null,null,null,null,null,null,{"$f":"ADDRESS(29,17,1,1,$M$1)","v":"'Currency Risk'!$Q$29"},"='Schedule XXA'!AF27",0,null,null,null,{"$f":"ADDRESS(26,5,1,1,$S$1)","v":"'Geographic Diversification'!$E$26"},"=SUMSQ(I26:Z26)",0]
[null,null,null,null,null,null,null,null,null,null,null,null,{"$f":"ADDRESS(29,18,1,1,$M$1)","v":"'Currency Risk'!$R$29"},"=IF('Schedule XXA'!AH27=0,Q29,'Schedule XXA'!AH27)",0,null,null,null,{"$f":"ADDRESS(26,6,1,1,$S$1)","v":"'Geographic Diversification'!$F$26"},"=(IF(D26>0,E26/D26^2,1))",0]
[null,null,null,null,null,null,null,null,null,null,null,null,{"$f":"ADDRESS(29,20,1,1,$M$1)","v":"'Currency Risk'!$T$29"},"=(C29-L29)+(D29-M29)+(F29-O29)+MAX(E29-N29,0)+MAX(G29-P29,0)",0,null,null,null,{"$f":"ADDRESS(26,7,1,1,$S$1)","v":"'Geographic Diversification'!$G$26"},"=D26*(0.75+0.25*F26)",0]
[null,null,null,null,null,null,null,null,null,null,null,null,{"$f":"ADDRESS(29,21,1,1,$M$1)","v":"'Currency Risk'!$U$29"},"=Q29-$H29",0,null,null,null,{"$f":"ADDRESS(26,8,1,1,$S$1)","v":"'Geographic Diversification'!$H$26"},"=IF('Schedule IVE'!AB26=\"True\",G26,'Schedule IVD'!O26)",0]
[null,null,null,null,null,null,null,null,null,null,null,null,{"$f":"ADDRESS(29,22,1,1,$M$1)","v":"'Currency Risk'!$V$29"},"=R29-$H29",0,null,null,null,{"$f":"ADDRESS(26,9,1,1,$S$1)","v":"'Geographic Diversification'!$I$26"},"=+'Schedule IVE'!E26",0]
[null,null,null,null,null,null,null,null,null,null,null,null,{"$f":"ADDRESS(29,24,1,1,$M$1)","v":"'Currency Risk'!$X$29"},"=MAX(0,$T29+U29+(J29*I29))",0,null,null,null,{"$f":"ADDRESS(26,10,1,1,$S$1)","v":"'Geographic Diversification'!$J$26"},"=+'Schedule IVE'!F26",0]
[null,null,null,null,null,null,null,null,null,null,null,null,{"$f":"ADDRESS(29,25,1,1,$M$1)","v":"'Currency Risk'!$Y$29"},"=MAX(0,$T29+V29+(J29*I29))",0,null,null,null,{"$f":"ADDRESS(26,11,1,1,$S$1)","v":"'Geographic Diversification'!$K$26"},"=+'Schedule IVE'!G26",0]
[null,null,null,null,null,null,null,null,null,null,null,null,{"$f":"ADDRESS(30,2,1,1,$M$1)","v":"'Currency Risk'!$B$30"},"='Schedule XXA'!B28",0,null,null,null,{"$f":"ADDRESS(26,12,1,1,$S$1)","v":"'Geographic Diversification'!$L$26"},"=+'Schedule IVE'!H26",0]
[null,null,null,null,null,null,null,null,null,null,null,null,{"$f":"ADDRESS(30,3,1,1,$M$1)","v":"'Currency Risk'!$C$30"},"='Schedule XXA'!D28",0,null,null,null,{"$f":"ADDRESS(26,13,1,1,$S$1)","v":"'Geographic Diversification'!$M$26"},"=+'Schedule IVE'!I26",0]
[null,null,null,null,null,null,null,null,null,null,null,null,{"$f":"ADDRESS(30,4,1,1,$M$1)","v":"'Currency Risk'!$D$30"},"='Schedule XXA'!F28",0,null,null,null,{"$f":"ADDRESS(26,14,1,1,$S$1)","v":"'Geographic Diversification'!$N$26"},"=+'Schedule IVE'!J26",0]
[null,null,null,null,null,null,null,null,null,null,null,null,{"$f":"ADDRESS(30,5,1,1,$M$1)","v":"'Currency Risk'!$E$30"},"='Schedule XXA'!H28",0,null,null,null,{"$f":"ADDRESS(26,15,1,1,$S$1)","v":"'Geographic Diversification'!$O$26"},"=+'Schedule IVE'!K26",0]
[null,null,null,null,null,null,null,null,null,null,null,null,{"$f":"ADDRESS(30,6,1,1,$M$1)","v":"'Currency Risk'!$F$30"},"='Schedule XXA'!J28",0,null,null,null,{"$f":"ADDRESS(26,16,1,1,$S$1)","v":"'Geographic Diversification'!$P$26"},"=+'Schedule IVE'!L26",0]
[null,null,null,null,null,null,null,null,null,null,null,null,{"$f":"ADDRESS(30,7,1,1,$M$1)","v":"'Currency Risk'!$G$30"},"='Schedule XXA'!L28",0,null,null,null,{"$f":"ADDRESS(26,17,1,1,$S$1)","v":"'Geographic Diversification'!$Q$26"},"=+'Schedule IVE'!M26",0]
[null,null,null,null,null,null,null,null,null,null,null,null,{"$f":"ADDRESS(30,8,1,1,$M$1)","v":"'Currency Risk'!$H$30"},"='Schedule XXA'!N28",0,null,null,null,{"$f":"ADDRESS(26,18,1,1,$S$1)","v":"'Geographic Diversification'!$R$26"},"=+'Schedule IVE'!N26",0]
[null,null,null,null,null,null,null,null,null,null,null,null,{"$f":"ADDRESS(30,9,1,1,$M$1)","v":"'Currency Risk'!$I$30"},"=$I$10*H30",0,null,null,null,{"$f":"ADDRESS(26,19,1,1,$S$1)","v":"'Geographic Diversification'!$S$26"},"=+'Schedule IVE'!O26",0]
[null,null,null,null,null,null,null,null,null,null,null,null,{"$f":"ADDRESS(30,10,1,1,$M$1)","v":"'Currency Risk'!$J$30"},"=IF((SUM(C30:G30))>(H30+I30),0%,25%)",0,null,null,null,{"$f":"ADDRESS(26,20,1,1,$S$1)","v":"'Geographic Diversification'!$T$26"},"=+'Schedule IVE'!P26",0]
[null,null,null,null,null,null,null,null,null,null,null,null,{"$f":"ADDRESS(30,12,1,1,$M$1)","v":"'Currency Risk'!$L$30"},"='Schedule XXA'!V28",0,null,null,null,{"$f":"ADDRESS(26,21,1,1,$S$1)","v":"'Geographic Diversification'!$U$26"},"=+'Schedule IVE'!Q26",0]
[null,null,null,null,null,null,null,null,null,null,null,null,{"$f":"ADDRESS(30,13,1,1,$M$1)","v":"'Currency Risk'!$M$30"},"='Schedule XXA'!X28",0,null,null,null,{"$f":"ADDRESS(26,22,1,1,$S$1)","v":"'Geographic Diversification'!$V$26"},"=+'Schedule IVE'!R26",0]
[null,null,null,null,null,null,null,null,null,null,null,null,{"$f":"ADDRESS(30,14,1,1,$M$1)","v":"'Currency Risk'!$N$30"},"='Schedule XXA'!Z28",0,null,null,null,{"$f":"ADDRESS(26,23,1,1,$S$1)","v":"'Geographic Diversification'!$W$26"},"=+'Schedule IVE'!S26",0]
[null,null,null,null,null,null,null,null,null,null,null,null,{"$f":"ADDRESS(30,15,1,1,$M$1)","v":"'Currency Risk'!$O$30"},"='Schedule XXA'!AB28",0,null,null,null,{"$f":"ADDRESS(26,24,1,1,$S$1)","v":"'Geographic Diversification'!$X$26"},"=+'Schedule IVE'!T26",0]
[null,null,null,null,null,null,null,null,null,null,null,null,{"$f":"ADDRESS(30,16,1,1,$M$1)","v":"'Currency Risk'!$P$30"},"='Schedule XXA'!AD28",0,null,null,null,{"$f":"ADDRESS(26,25,1,1,$S$1)","v":"'Geographic Diversification'!$Y$26"},"=+'Schedule IVE'!U26",0]
[null,null,null,null,null,null,null,null,null,null,null,null,{"$f":"ADDRESS(30,17,1,1,$M$1)","v":"'Currency Risk'!$Q$30"},"='Schedule XXA'!AF28",0,null,null,null,{"$f":"ADDRESS(26,26,1,1,$S$1)","v":"'Geographic Diversification'!$Z$26"},"=+'Schedule IVE'!V26",0]
[null,null,null,null,null,null,null,null,null,null,null,null,{"$f":"ADDRESS(30,18,1,1,$M$1)","v":"'Currency Risk'!$R$30"},"=IF('Schedule XXA'!AH28=0,Q30,'Schedule XXA'!AH28)",{"$f":"IF(_xlfn.FORMULATEXT(INDIRECT(M421))=N421,0,1)","v":0},null,null,null,{"$f":"ADDRESS(27,4,1,1,$S$1)","v":"'Geographic Diversification'!$D$27"},"=SUM(I27:Z27)",0]
[null,null,null,null,null,null,null,null,null,null,null,null,{"$f":"ADDRESS(30,20,1,1,$M$1)","v":"'Currency Risk'!$T$30"},"=(C30-L30)+(D30-M30)+(F30-O30)+MAX(E30-N30,0)+MAX(G30-P30,0)",0,null,null,null,{"$f":"ADDRESS(27,5,1,1,$S$1)","v":"'Geographic Diversification'!$E$27"},"=SUMSQ(I27:Z27)",0]
[null,null,null,null,null,null,null,null,null,null,null,null,{"$f":"ADDRESS(30,21,1,1,$M$1)","v":"'Currency Risk'!$U$30"},"=Q30-$H30",0,null,null,null,{"$f":"ADDRESS(27,6,1,1,$S$1)","v":"'Geographic Diversification'!$F$27"},"=(IF(D27>0,E27/D27^2,1))",0]
[null,null,null,null,null,null,null,null,null,null,null,null,{"$f":"ADDRESS(30,22,1,1,$M$1)","v":"'Currency Risk'!$V$30"},"=R30-$H30",0,null,null,null,{"$f":"ADDRESS(27,7,1,1,$S$1)","v":"'Geographic Diversification'!$G$27"},"=D27*(0.75+0.25*F27)",0]
[null,null,null,null,null,null,null,null,null,null,null,null,{"$f":"ADDRESS(30,24,1,1,$M$1)","v":"'Currency Risk'!$X$30"},"=MAX(0,$T30+U30+(J30*I30))",0,null,null,null,{"$f":"ADDRESS(27,8,1,1,$S$1)","v":"'Geographic Diversification'!$H$27"},"=IF('Schedule IVE'!AB27=\"True\",G27,'Schedule IVD'!O27)",0]
[null,null,null,null,null,null,null,null,null,null,null,null,{"$f":"ADDRESS(30,25,1,1,$M$1)","v":"'Currency Risk'!$Y$30"},"=MAX(0,$T30+V30+(J30*I30))",0,null,null,null,{"$f":"ADDRESS(27,9,1,1,$S$1)","v":"'Geographic Diversification'!$I$27"},"=+'Schedule IVE'!E27",0]
[null,null,null,null,null,null,null,null,null,null,null,null,{"$f":"ADDRESS(31,2,1,1,$M$1)","v":"'Currency Risk'!$B$31"},"='Schedule XXA'!B29",0,null,null,null,{"$f":"ADDRESS(27,10,1,1,$S$1)","v":"'Geographic Diversification'!$J$27"},"=+'Schedule IVE'!F27",0]
[null,null,null,null,null,null,null,null,null,null,null,null,{"$f":"ADDRESS(31,3,1,1,$M$1)","v":"'Currency Risk'!$C$31"},"='Schedule XXA'!D29",0,null,null,null,{"$f":"ADDRESS(27,11,1,1,$S$1)","v":"'Geographic Diversification'!$K$27"},"=+'Schedule IVE'!G27",0]
[null,null,null,null,null,null,null,null,null,null,null,null,{"$f":"ADDRESS(31,4,1,1,$M$1)","v":"'Currency Risk'!$D$31"},"='Schedule XXA'!F29",0,null,null,null,{"$f":"ADDRESS(27,12,1,1,$S$1)","v":"'Geographic Diversification'!$L$27"},"=+'Schedule IVE'!H27",0]
[null,null,null,null,null,null,null,null,null,null,null,null,{"$f":"ADDRESS(31,5,1,1,$M$1)","v":"'Currency Risk'!$E$31"},"='Schedule XXA'!H29",0,null,null,null,{"$f":"ADDRESS(27,13,1,1,$S$1)","v":"'Geographic Diversification'!$M$27"},"=+'Schedule IVE'!I27",0]
[null,null,null,null,null,null,null,null,null,null,null,null,{"$f":"ADDRESS(31,6,1,1,$M$1)","v":"'Currency Risk'!$F$31"},"='Schedule XXA'!J29",0,null,null,null,{"$f":"ADDRESS(27,14,1,1,$S$1)","v":"'Geographic Diversification'!$N$27"},"=+'Schedule IVE'!J27",0]
[null,null,null,null,null,null,null,null,null,null,null,null,{"$f":"ADDRESS(31,7,1,1,$M$1)","v":"'Currency Risk'!$G$31"},"='Schedule XXA'!L29",0,null,null,null,{"$f":"ADDRESS(27,15,1,1,$S$1)","v":"'Geographic Diversification'!$O$27"},"=+'Schedule IVE'!K27",0]
[null,null,null,null,null,null,null,null,null,null,null,null,{"$f":"ADDRESS(31,8,1,1,$M$1)","v":"'Currency Risk'!$H$31"},"='Schedule XXA'!N29",0,null,null,null,{"$f":"ADDRESS(27,16,1,1,$S$1)","v":"'Geographic Diversification'!$P$27"},"=+'Schedule IVE'!L27",0]
[null,null,null,null,null,null,null,null,null,null,null,null,{"$f":"ADDRESS(31,9,1,1,$M$1)","v":"'Currency Risk'!$I$31"},"=$I$10*H31",0,null,null,null,{"$f":"ADDRESS(27,17,1,1,$S$1)","v":"'Geographic Diversification'!$Q$27"},"=+'Schedule IVE'!M27",0]
[null,null,null,null,null,null,null,null,null,null,null,null,{"$f":"ADDRESS(31,10,1,1,$M$1)","v":"'Currency Risk'!$J$31"},"=IF((SUM(C31:G31))>(H31+I31),0%,25%)",0,null,null,null,{"$f":"ADDRESS(27,18,1,1,$S$1)","v":"'Geographic Diversification'!$R$27"},"=+'Schedule IVE'!N27",0]
[null,null,null,null,null,null,null,null,null,null,null,null,{"$f":"ADDRESS(31,12,1,1,$M$1)","v":"'Currency Risk'!$L$31"},"='Schedule XXA'!V29",0,null,null,null,{"$f":"ADDRESS(27,19,1,1,$S$1)","v":"'Geographic Diversification'!$S$27"},"=+'Schedule IVE'!O27",0]
[null,null,null,null,null,null,null,null,null,null,null,null,{"$f":"ADDRESS(31,13,1,1,$M$1)","v":"'Currency Risk'!$M$31"},"='Schedule XXA'!X29",0,null,null,null,{"$f":"ADDRESS(27,20,1,1,$S$1)","v":"'Geographic Diversification'!$T$27"},"=+'Schedule IVE'!P27",0]
[null,null,null,null,null,null,null,null,null,null,null,null,{"$f":"ADDRESS(31,14,1,1,$M$1)","v":"'Currency Risk'!$N$31"},"='Schedule XXA'!Z29",0,null,null,null,{"$f":"ADDRESS(27,21,1,1,$S$1)","v":"'Geographic Diversification'!$U$27"},"=+'Schedule IVE'!Q27",0]
[null,null,null,null,null,null,null,null,null,null,null,null,{"$f":"ADDRESS(31,15,1,1,$M$1)","v":"'Currency Risk'!$O$31"},"='Schedule XXA'!AB29",0,null,null,null,{"$f":"ADDRESS(27,22,1,1,$S$1)","v":"'Geographic Diversification'!$V$27"},"=+'Schedule IVE'!R27",0]
[null,null,null,null,null,null,null,null,null,null,null,null,{"$f":"ADDRESS(31,16,1,1,$M$1)","v":"'Currency Risk'!$P$31"},"='Schedule XXA'!AD29",0,null,null,null,{"$f":"ADDRESS(27,23,1,1,$S$1)","v":"'Geographic Diversification'!$W$27"},"=+'Schedule IVE'!S27",0]
[null,null,null,null,null,null,null,null,null,null,null,null,{"$f":"ADDRESS(31,17,1,1,$M$1)","v":"'Currency Risk'!$Q$31"},"='Schedule XXA'!AF29",0,null,null,null,{"$f":"ADDRESS(27,24,1,1,$S$1)","v":"'Geographic Diversification'!$X$27"},"=+'Schedule IVE'!T27",0]
[null,null,null,null,null,null,null,null,null,null,null,null,{"$f":"ADDRESS(31,18,1,1,$M$1)","v":"'Currency Risk'!$R$31"},"=IF('Schedule XXA'!AH29=0,Q31,'Schedule XXA'!AH29)",0,null,null,null,{"$f":"ADDRESS(27,25,1,1,$S$1)","v":"'Geographic Diversification'!$Y$27"},"=+'Schedule IVE'!U27",0]
[null,null,null,null,null,null,null,null,null,null,null,null,{"$f":"ADDRESS(31,20,1,1,$M$1)","v":"'Currency Risk'!$T$31"},"=(C31-L31)+(D31-M31)+(F31-O31)+MAX(E31-N31,0)+MAX(G31-P31,0)",0,null,null,null,{"$f":"ADDRESS(27,26,1,1,$S$1)","v":"'Geographic Diversification'!$Z$27"},"=+'Schedule IVE'!V27",0]
[null,null,null,null,null,null,null,null,null,null,null,null,{"$f":"ADDRESS(31,21,1,1,$M$1)","v":"'Currency Risk'!$U$31"},"=Q31-$H31",0,null,null,null,{"$f":"ADDRESS(28,4,1,1,$S$1)","v":"'Geographic Diversification'!$D$28"},"=SUM(I28:Z28)",0]
[null,null,null,null,null,null,null,null,null,null,null,null,{"$f":"ADDRESS(31,22,1,1,$M$1)","v":"'Currency Risk'!$V$31"},"=R31-$H31",0,null,null,null,{"$f":"ADDRESS(28,5,1,1,$S$1)","v":"'Geographic Diversification'!$E$28"},"=SUMSQ(I28:Z28)",0]
[null,null,null,null,null,null,null,null,null,null,null,null,{"$f":"ADDRESS(31,24,1,1,$M$1)","v":"'Currency Risk'!$X$31"},"=MAX(0,$T31+U31+(J31*I31))",0,null,null,null,{"$f":"ADDRESS(28,6,1,1,$S$1)","v":"'Geographic Diversification'!$F$28"},"=(IF(D28>0,E28/D28^2,1))",0]
[null,null,null,null,null,null,null,null,null,null,null,null,{"$f":"ADDRESS(31,25,1,1,$M$1)","v":"'Currency Risk'!$Y$31"},"=MAX(0,$T31+V31+(J31*I31))",0,null,null,null,{"$f":"ADDRESS(28,7,1,1,$S$1)","v":"'Geographic Diversification'!$G$28"},"=D28*(0.75+0.25*F28)",0]
[null,null,null,null,null,null,null,null,null,null,null,null,{"$f":"ADDRESS(32,2,1,1,$M$1)","v":"'Currency Risk'!$B$32"},"='Schedule XXA'!B30",0,null,null,null,{"$f":"ADDRESS(28,8,1,1,$S$1)","v":"'Geographic Diversification'!$H$28"},"=IF('Schedule IVE'!AB28=\"True\",G28,'Schedule IVD'!O28)",0]
[null,null,null,null,null,null,null,null,null,null,null,null,{"$f":"ADDRESS(32,3,1,1,$M$1)","v":"'Currency Risk'!$C$32"},"='Schedule XXA'!D30",0,null,null,null,{"$f":"ADDRESS(28,9,1,1,$S$1)","v":"'Geographic Diversification'!$I$28"},"=+'Schedule IVE'!E28",0]
[null,null,null,null,null,null,null,null,null,null,null,null,{"$f":"ADDRESS(32,4,1,1,$M$1)","v":"'Currency Risk'!$D$32"},"='Schedule XXA'!F30",0,null,null,null,{"$f":"ADDRESS(28,10,1,1,$S$1)","v":"'Geographic Diversification'!$J$28"},"=+'Schedule IVE'!F28",0]
[null,null,null,null,null,null,null,null,null,null,null,null,{"$f":"ADDRESS(32,5,1,1,$M$1)","v":"'Currency Risk'!$E$32"},"='Schedule XXA'!H30",0,null,null,null,{"$f":"ADDRESS(28,11,1,1,$S$1)","v":"'Geographic Diversification'!$K$28"},"=+'Schedule IVE'!G28",0]
[null,null,null,null,null,null,null,null,null,null,null,null,{"$f":"ADDRESS(32,6,1,1,$M$1)","v":"'Currency Risk'!$F$32"},"='Schedule XXA'!J30",0,null,null,null,{"$f":"ADDRESS(28,12,1,1,$S$1)","v":"'Geographic Diversification'!$L$28"},"=+'Schedule IVE'!H28",{"$f":"IF(_xlfn.FORMULATEXT(INDIRECT(S452))=T452,0,1)","v":0}]
[null,null,null,null,null,null,null,null,null,null,null,null,{"$f":"ADDRESS(32,7,1,1,$M$1)","v":"'Currency Risk'!$G$32"},"='Schedule XXA'!L30",0,null,null,null,{"$f":"ADDRESS(28,13,1,1,$S$1)","v":"'Geographic Diversification'!$M$28"},"=+'Schedule IVE'!I28",0]
[null,null,null,null,null,null,null,null,null,null,null,null,{"$f":"ADDRESS(32,8,1,1,$M$1)","v":"'Currency Risk'!$H$32"},"='Schedule XXA'!N30",0,null,null,null,{"$f":"ADDRESS(28,14,1,1,$S$1)","v":"'Geographic Diversification'!$N$28"},"=+'Schedule IVE'!J28",0]
[null,null,null,null,null,null,null,null,null,null,null,null,{"$f":"ADDRESS(32,9,1,1,$M$1)","v":"'Currency Risk'!$I$32"},"=$I$10*H32",0,null,null,null,{"$f":"ADDRESS(28,15,1,1,$S$1)","v":"'Geographic Diversification'!$O$28"},"=+'Schedule IVE'!K28",0]
[null,null,null,null,null,null,null,null,null,null,null,null,{"$f":"ADDRESS(32,10,1,1,$M$1)","v":"'Currency Risk'!$J$32"},"=IF((SUM(C32:G32))>(H32+I32),0%,25%)",0,null,null,null,{"$f":"ADDRESS(28,16,1,1,$S$1)","v":"'Geographic Diversification'!$P$28"},"=+'Schedule IVE'!L28",0]
[null,null,null,null,null,null,null,null,null,null,null,null,{"$f":"ADDRESS(32,12,1,1,$M$1)","v":"'Currency Risk'!$L$32"},"='Schedule XXA'!V30",0,null,null,null,{"$f":"ADDRESS(28,17,1,1,$S$1)","v":"'Geographic Diversification'!$Q$28"},"=+'Schedule IVE'!M28",0]
[null,null,null,null,null,null,null,null,null,null,null,null,{"$f":"ADDRESS(32,13,1,1,$M$1)","v":"'Currency Risk'!$M$32"},"='Schedule XXA'!X30",0,null,null,null,{"$f":"ADDRESS(28,18,1,1,$S$1)","v":"'Geographic Diversification'!$R$28"},"=+'Schedule IVE'!N28",0]
[null,null,null,null,null,null,null,null,null,null,null,null,{"$f":"ADDRESS(32,14,1,1,$M$1)","v":"'Currency Risk'!$N$32"},"='Schedule XXA'!Z30",0,null,null,null,{"$f":"ADDRESS(28,19,1,1,$S$1)","v":"'Geographic Diversification'!$S$28"},"=+'Schedule IVE'!O28",0]
[null,null,null,null,null,null,null,null,null,null,null,null,{"$f":"ADDRESS(32,15,1,1,$M$1)","v":"'Currency Risk'!$O$32"},"='Schedule XXA'!AB30",0,null,null,null,{"$f":"ADDRESS(28,20,1,1,$S$1)","v":"'Geographic Diversification'!$T$28"},"=+'Schedule IVE'!P28",0]
[null,null,null,null,null,null,null,null,null,null,null,null,{"$f":"ADDRESS(32,16,1,1,$M$1)","v":"'Currency Risk'!$P$32"},"='Schedule XXA'!AD30",0,null,null,null,{"$f":"ADDRESS(28,21,1,1,$S$1)","v":"'Geographic Diversification'!$U$28"},"=+'Schedule IVE'!Q28",0]
[null,null,null,null,null,null,null,null,null,null,null,null,{"$f":"ADDRESS(32,17,1,1,$M$1)","v":"'Currency Risk'!$Q$32"},"='Schedule XXA'!AF30",0,null,null,null,{"$f":"ADDRESS(28,22,1,1,$S$1)","v":"'Geographic Diversification'!$V$28"},"=+'Schedule IVE'!R28",0]
[null,null,null,null,null,null,null,null,null,null,null,null,{"$f":"ADDRESS(32,18,1,1,$M$1)","v":"'Currency Risk'!$R$32"},"=IF('Schedule XXA'!AH30=0,Q32,'Schedule XXA'!AH30)",0,null,null,null,{"$f":"ADDRESS(28,23,1,1,$S$1)","v":"'Geographic Diversification'!$W$28"},"=+'Schedule IVE'!S28",0]
[null,null,null,null,null,null,null,null,null,null,null,null,{"$f":"ADDRESS(32,20,1,1,$M$1)","v":"'Currency Risk'!$T$32"},"=(C32-L32)+(D32-M32)+(F32-O32)+MAX(E32-N32,0)+MAX(G32-P32,0)",0,null,null,null,{"$f":"ADDRESS(28,24,1,1,$S$1)","v":"'Geographic Diversification'!$X$28"},"=+'Schedule IVE'!T28",0]
[null,null,null,null,null,null,null,null,null,null,null,null,{"$f":"ADDRESS(32,21,1,1,$M$1)","v":"'Currency Risk'!$U$32"},"=Q32-$H32",0,null,null,null,{"$f":"ADDRESS(28,25,1,1,$S$1)","v":"'Geographic Diversification'!$Y$28"},"=+'Schedule IVE'!U28",0]
[null,null,null,null,null,null,null,null,null,null,null,null,{"$f":"ADDRESS(32,22,1,1,$M$1)","v":"'Currency Risk'!$V$32"},"=R32-$H32",0,null,null,null,{"$f":"ADDRESS(28,26,1,1,$S$1)","v":"'Geographic Diversification'!$Z$28"},"=+'Schedule IVE'!V28",0]
[null,null,null,null,null,null,null,null,null,null,null,null,{"$f":"ADDRESS(32,24,1,1,$M$1)","v":"'Currency Risk'!$X$32"},"=MAX(0,$T32+U32+(J32*I32))",0,null,null,null,{"$f":"ADDRESS(29,4,1,1,$S$1)","v":"'Geographic Diversification'!$D$29"},"=SUM(I29:Z29)",0]
[null,null,null,null,null,null,null,null,null,null,null,null,{"$f":"ADDRESS(32,25,1,1,$M$1)","v":"'Currency Risk'!$Y$32"},"=MAX(0,$T32+V32+(J32*I32))",0,null,null,null,{"$f":"ADDRESS(29,5,1,1,$S$1)","v":"'Geographic Diversification'!$E$29"},"=SUMSQ(I29:Z29)",0]
[null,null,null,null,null,null,null,null,null,null,null,null,{"$f":"ADDRESS(33,2,1,1,$M$1)","v":"'Currency Risk'!$B$33"},"='Schedule XXA'!B31",0,null,null,null,{"$f":"ADDRESS(29,6,1,1,$S$1)","v":"'Geographic Diversification'!$F$29"},"=(IF(D29>0,E29/D29^2,1))",0]
[null,null,null,null,null,null,null,null,null,null,null,null,{"$f":"ADDRESS(33,3,1,1,$M$1)","v":"'Currency Risk'!$C$33"},"='Schedule XXA'!D31",0,null,null,null,{"$f":"ADDRESS(29,7,1,1,$S$1)","v":"'Geographic Diversification'!$G$29"},"=D29*(0.75+0.25*F29)",0]
[null,null,null,null,null,null,null,null,null,null,null,null,{"$f":"ADDRESS(33,4,1,1,$M$1)","v":"'Currency Risk'!$D$33"},"='Schedule XXA'!F31",0,null,null,null,{"$f":"ADDRESS(29,8,1,1,$S$1)","v":"'Geographic Diversification'!$H$29"},"=IF('Schedule IVE'!AB29=\"True\",G29,'Schedule IVD'!O29)",0]
[null,null,null,null,null,null,null,null,null,null,null,null,{"$f":"ADDRESS(33,5,1,1,$M$1)","v":"'Currency Risk'!$E$33"},"='Schedule XXA'!H31",0,null,null,null,{"$f":"ADDRESS(29,9,1,1,$S$1)","v":"'Geographic Diversification'!$I$29"},"=+'Schedule IVE'!E29",0]
[null,null,null,null,null,null,null,null,null,null,null,null,{"$f":"ADDRESS(33,6,1,1,$M$1)","v":"'Currency Risk'!$F$33"},"='Schedule XXA'!J31",0,null,null,null,{"$f":"ADDRESS(29,10,1,1,$S$1)","v":"'Geographic Diversification'!$J$29"},"=+'Schedule IVE'!F29",0]
[null,null,null,null,null,null,null,null,null,null,null,null,{"$f":"ADDRESS(33,7,1,1,$M$1)","v":"'Currency Risk'!$G$33"},"='Schedule XXA'!L31",0,null,null,null,{"$f":"ADDRESS(29,11,1,1,$S$1)","v":"'Geographic Diversification'!$K$29"},"=+'Schedule IVE'!G29",0]
[null,null,null,null,null,null,null,null,null,null,null,null,{"$f":"ADDRESS(33,8,1,1,$M$1)","v":"'Currency Risk'!$H$33"},"='Schedule XXA'!N31",0,null,null,null,{"$f":"ADDRESS(29,12,1,1,$S$1)","v":"'Geographic Diversification'!$L$29"},"=+'Schedule IVE'!H29",0]
[null,null,null,null,null,null,null,null,null,null,null,null,{"$f":"ADDRESS(33,9,1,1,$M$1)","v":"'Currency Risk'!$I$33"},"=$I$10*H33",0,null,null,null,{"$f":"ADDRESS(29,13,1,1,$S$1)","v":"'Geographic Diversification'!$M$29"},"=+'Schedule IVE'!I29",0]
[null,null,null,null,null,null,null,null,null,null,null,null,{"$f":"ADDRESS(33,10,1,1,$M$1)","v":"'Currency Risk'!$J$33"},"=IF((SUM(C33:G33))>(H33+I33),0%,25%)",0,null,null,null,{"$f":"ADDRESS(29,14,1,1,$S$1)","v":"'Geographic Diversification'!$N$29"},"=+'Schedule IVE'!J29",0]
[null,null,null,null,null,null,null,null,null,null,null,null,{"$f":"ADDRESS(33,12,1,1,$M$1)","v":"'Currency Risk'!$L$33"},"='Schedule XXA'!V31",0,null,null,null,{"$f":"ADDRESS(29,15,1,1,$S$1)","v":"'Geographic Diversification'!$O$29"},"=+'Schedule IVE'!K29",0]
[null,null,null,null,null,null,null,null,null,null,null,null,{"$f":"ADDRESS(33,13,1,1,$M$1)","v":"'Currency Risk'!$M$33"},"='Schedule XXA'!X31",0,null,null,null,{"$f":"ADDRESS(29,16,1,1,$S$1)","v":"'Geographic Diversification'!$P$29"},"=+'Schedule IVE'!L29",0]
[null,null,null,null,null,null,null,null,null,null,null,null,{"$f":"ADDRESS(33,14,1,1,$M$1)","v":"'Currency Risk'!$N$33"},"='Schedule XXA'!Z31",0,null,null,null,{"$f":"ADDRESS(29,17,1,1,$S$1)","v":"'Geographic Diversification'!$Q$29"},"=+'Schedule IVE'!M29",0]
[null,null,null,null,null,null,null,null,null,null,null,null,{"$f":"ADDRESS(33,15,1,1,$M$1)","v":"'Currency Risk'!$O$33"},"='Schedule XXA'!AB31",0,null,null,null,{"$f":"ADDRESS(29,18,1,1,$S$1)","v":"'Geographic Diversification'!$R$29"},"=+'Schedule IVE'!N29",0]
[null,null,null,null,null,null,null,null,null,null,null,null,{"$f":"ADDRESS(33,16,1,1,$M$1)","v":"'Currency Risk'!$P$33"},"='Schedule XXA'!AD31",0,null,null,null,{"$f":"ADDRESS(29,19,1,1,$S$1)","v":"'Geographic Diversification'!$S$29"},"=+'Schedule IVE'!O29",0]
[null,null,null,null,null,null,null,null,null,null,null,null,{"$f":"ADDRESS(33,17,1,1,$M$1)","v":"'Currency Risk'!$Q$33"},"='Schedule XXA'!AF31",0,null,null,null,{"$f":"ADDRESS(29,20,1,1,$S$1)","v":"'Geographic Diversification'!$T$29"},"=+'Schedule IVE'!P29",0]
[null,null,null,null,null,null,null,null,null,null,null,null,{"$f":"ADDRESS(33,18,1,1,$M$1)","v":"'Currency Risk'!$R$33"},"=IF('Schedule XXA'!AH31=0,Q33,'Schedule XXA'!AH31)",0,null,null,null,{"$f":"ADDRESS(29,21,1,1,$S$1)","v":"'Geographic Diversification'!$U$29"},"=+'Schedule IVE'!Q29",0]
[null,null,null,null,null,null,null,null,null,null,null,null,{"$f":"ADDRESS(33,20,1,1,$M$1)","v":"'Currency Risk'!$T$33"},"=(C33-L33)+(D33-M33)+(F33-O33)+MAX(E33-N33,0)+MAX(G33-P33,0)",{"$f":"IF(_xlfn.FORMULATEXT(INDIRECT(M485))=N485,0,1)","v":0},null,null,null,{"$f":"ADDRESS(29,22,1,1,$S$1)","v":"'Geographic Diversification'!$V$29"},"=+'Schedule IVE'!R29",0]
[null,null,null,null,null,null,null,null,null,null,null,null,{"$f":"ADDRESS(33,21,1,1,$M$1)","v":"'Currency Risk'!$U$33"},"=Q33-$H33",0,null,null,null,{"$f":"ADDRESS(29,23,1,1,$S$1)","v":"'Geographic Diversification'!$W$29"},"=+'Schedule IVE'!S29",0]
[null,null,null,null,null,null,null,null,null,null,null,null,{"$f":"ADDRESS(33,22,1,1,$M$1)","v":"'Currency Risk'!$V$33"},"=R33-$H33",0,null,null,null,{"$f":"ADDRESS(29,24,1,1,$S$1)","v":"'Geographic Diversification'!$X$29"},"=+'Schedule IVE'!T29",0]
[null,null,null,null,null,null,null,null,null,null,null,null,{"$f":"ADDRESS(33,24,1,1,$M$1)","v":"'Currency Risk'!$X$33"},"=MAX(0,$T33+U33+(J33*I33))",0,null,null,null,{"$f":"ADDRESS(29,25,1,1,$S$1)","v":"'Geographic Diversification'!$Y$29"},"=+'Schedule IVE'!U29",0]
[null,null,null,null,null,null,null,null,null,null,null,null,{"$f":"ADDRESS(33,25,1,1,$M$1)","v":"'Currency Risk'!$Y$33"},"=MAX(0,$T33+V33+(J33*I33))",0,null,null,null,{"$f":"ADDRESS(29,26,1,1,$S$1)","v":"'Geographic Diversification'!$Z$29"},"=+'Schedule IVE'!V29",0]
[null,null,null,null,null,null,null,null,null,null,null,null,{"$f":"ADDRESS(34,2,1,1,$M$1)","v":"'Currency Risk'!$B$34"},"='Schedule XXA'!B32",0,null,null,null,{"$f":"ADDRESS(30,4,1,1,$S$1)","v":"'Geographic Diversification'!$D$30"},"=SUM(I30:Z30)",0]
[null,null,null,null,null,null,null,null,null,null,null,null,{"$f":"ADDRESS(34,3,1,1,$M$1)","v":"'Currency Risk'!$C$34"},"='Schedule XXA'!D32",0,null,null,null,{"$f":"ADDRESS(30,5,1,1,$S$1)","v":"'Geographic Diversification'!$E$30"},"=SUMSQ(I30:Z30)",0]
[null,null,null,null,null,null,null,null,null,null,null,null,{"$f":"ADDRESS(34,4,1,1,$M$1)","v":"'Currency Risk'!$D$34"},"='Schedule XXA'!F32",0,null,null,null,{"$f":"ADDRESS(30,6,1,1,$S$1)","v":"'Geographic Diversification'!$F$30"},"=(IF(D30>0,E30/D30^2,1))",0]
[null,null,null,null,null,null,null,null,null,null,null,null,{"$f":"ADDRESS(34,5,1,1,$M$1)","v":"'Currency Risk'!$E$34"},"='Schedule XXA'!H32",0,null,null,null,{"$f":"ADDRESS(30,7,1,1,$S$1)","v":"'Geographic Diversification'!$G$30"},"=D30*(0.75+0.25*F30)",0]
[null,null,null,null,null,null,null,null,null,null,null,null,{"$f":"ADDRESS(34,6,1,1,$M$1)","v":"'Currency Risk'!$F$34"},"='Schedule XXA'!J32",0,null,null,null,{"$f":"ADDRESS(30,8,1,1,$S$1)","v":"'Geographic Diversification'!$H$30"},"=IF('Schedule IVE'!AB30=\"True\",G30,'Schedule IVD'!O30)",0]
[null,null,null,null,null,null,null,null,null,null,null,null,{"$f":"ADDRESS(34,7,1,1,$M$1)","v":"'Currency Risk'!$G$34"},"='Schedule XXA'!L32",0,null,null,null,{"$f":"ADDRESS(30,9,1,1,$S$1)","v":"'Geographic Diversification'!$I$30"},"=+'Schedule IVE'!E30",0]
[null,null,null,null,null,null,null,null,null,null,null,null,{"$f":"ADDRESS(34,8,1,1,$M$1)","v":"'Currency Risk'!$H$34"},"='Schedule XXA'!N32",0,null,null,null,{"$f":"ADDRESS(30,10,1,1,$S$1)","v":"'Geographic Diversification'!$J$30"},"=+'Schedule IVE'!F30",0]
[null,null,null,null,null,null,null,null,null,null,null,null,{"$f":"ADDRESS(34,9,1,1,$M$1)","v":"'Currency Risk'!$I$34"},"=$I$10*H34",0,null,null,null,{"$f":"ADDRESS(30,11,1,1,$S$1)","v":"'Geographic Diversification'!$K$30"},"=+'Schedule IVE'!G30",0]
[null,null,null,null,null,null,null,null,null,null,null,null,{"$f":"ADDRESS(34,10,1,1,$M$1)","v":"'Currency Risk'!$J$34"},"=IF((SUM(C34:G34))>(H34+I34),0%,25%)",0,null,null,null,{"$f":"ADDRESS(30,12,1,1,$S$1)","v":"'Geographic Diversification'!$L$30"},"=+'Schedule IVE'!H30",0]
[null,null,null,null,null,null,null,null,null,null,null,null,{"$f":"ADDRESS(34,12,1,1,$M$1)","v":"'Currency Risk'!$L$34"},"='Schedule XXA'!V32",0,null,null,null,{"$f":"ADDRESS(30,13,1,1,$S$1)","v":"'Geographic Diversification'!$M$30"},"=+'Schedule IVE'!I30",0]
[null,null,null,null,null,null,null,null,null,null,null,null,{"$f":"ADDRESS(34,13,1,1,$M$1)","v":"'Currency Risk'!$M$34"},"='Schedule XXA'!X32",0,null,null,null,{"$f":"ADDRESS(30,14,1,1,$S$1)","v":"'Geographic Diversification'!$N$30"},"=+'Schedule IVE'!J30",0]
[null,null,null,null,null,null,null,null,null,null,null,null,{"$f":"ADDRESS(34,14,1,1,$M$1)","v":"'Currency Risk'!$N$34"},"='Schedule XXA'!Z32",0,null,null,null,{"$f":"ADDRESS(30,15,1,1,$S$1)","v":"'Geographic Diversification'!$O$30"},"=+'Schedule IVE'!K30",0]
[null,null,null,null,null,null,null,null,null,null,null,null,{"$f":"ADDRESS(34,15,1,1,$M$1)","v":"'Currency Risk'!$O$34"},"='Schedule XXA'!AB32",0,null,null,null,{"$f":"ADDRESS(30,16,1,1,$S$1)","v":"'Geographic Diversification'!$P$30"},"=+'Schedule IVE'!L30",0]
[null,null,null,null,null,null,null,null,null,null,null,null,{"$f":"ADDRESS(34,16,1,1,$M$1)","v":"'Currency Risk'!$P$34"},"='Schedule XXA'!AD32",0,null,null,null,{"$f":"ADDRESS(30,17,1,1,$S$1)","v":"'Geographic Diversification'!$Q$30"},"=+'Schedule IVE'!M30",0]
[null,null,null,null,null,null,null,null,null,null,null,null,{"$f":"ADDRESS(34,17,1,1,$M$1)","v":"'Currency Risk'!$Q$34"},"='Schedule XXA'!AF32",0,null,null,null,{"$f":"ADDRESS(30,18,1,1,$S$1)","v":"'Geographic Diversification'!$R$30"},"=+'Schedule IVE'!N30",0]
[null,null,null,null,null,null,null,null,null,null,null,null,{"$f":"ADDRESS(34,18,1,1,$M$1)","v":"'Currency Risk'!$R$34"},"=IF('Schedule XXA'!AH32=0,Q34,'Schedule XXA'!AH32)",0,null,null,null,{"$f":"ADDRESS(30,19,1,1,$S$1)","v":"'Geographic Diversification'!$S$30"},"=+'Schedule IVE'!O30",0]
[null,null,null,null,null,null,null,null,null,null,null,null,{"$f":"ADDRESS(34,20,1,1,$M$1)","v":"'Currency Risk'!$T$34"},"=(C34-L34)+(D34-M34)+(F34-O34)+MAX(E34-N34,0)+MAX(G34-P34,0)",0,null,null,null,{"$f":"ADDRESS(30,20,1,1,$S$1)","v":"'Geographic Diversification'!$T$30"},"=+'Schedule IVE'!P30",0]
[null,null,null,null,null,null,null,null,null,null,null,null,{"$f":"ADDRESS(34,21,1,1,$M$1)","v":"'Currency Risk'!$U$34"},"=Q34-$H34",0,null,null,null,{"$f":"ADDRESS(30,21,1,1,$S$1)","v":"'Geographic Diversification'!$U$30"},"=+'Schedule IVE'!Q30",0]
[null,null,null,null,null,null,null,null,null,null,null,null,{"$f":"ADDRESS(34,22,1,1,$M$1)","v":"'Currency Risk'!$V$34"},"=R34-$H34",0,null,null,null,{"$f":"ADDRESS(30,22,1,1,$S$1)","v":"'Geographic Diversification'!$V$30"},"=+'Schedule IVE'!R30",0]
[null,null,null,null,null,null,null,null,null,null,null,null,{"$f":"ADDRESS(34,24,1,1,$M$1)","v":"'Currency Risk'!$X$34"},"=MAX(0,$T34+U34+(J34*I34))",0,null,null,null,{"$f":"ADDRESS(30,23,1,1,$S$1)","v":"'Geographic Diversification'!$W$30"},"=+'Schedule IVE'!S30",0]
[null,null,null,null,null,null,null,null,null,null,null,null,{"$f":"ADDRESS(34,25,1,1,$M$1)","v":"'Currency Risk'!$Y$34"},"=MAX(0,$T34+V34+(J34*I34))",0,null,null,null,{"$f":"ADDRESS(30,24,1,1,$S$1)","v":"'Geographic Diversification'!$X$30"},"=+'Schedule IVE'!T30",0]
[null,null,null,null,null,null,null,null,null,null,null,null,{"$f":"ADDRESS(35,3,1,1,$M$1)","v":"'Currency Risk'!$C$35"},"=SUM(C12:C34)",0,null,null,null,{"$f":"ADDRESS(30,25,1,1,$S$1)","v":"'Geographic Diversification'!$Y$30"},"=+'Schedule IVE'!U30",0]
[null,null,null,null,null,null,null,null,null,null,null,null,{"$f":"ADDRESS(35,4,1,1,$M$1)","v":"'Currency Risk'!$D$35"},"=SUM(D12:D34)",0,null,null,null,{"$f":"ADDRESS(30,26,1,1,$S$1)","v":"'Geographic Diversification'!$Z$30"},"=+'Schedule IVE'!V30",0]
[null,null,null,null,null,null,null,null,null,null,null,null,{"$f":"ADDRESS(35,5,1,1,$M$1)","v":"'Currency Risk'!$E$35"},"=SUM(E12:E34)",0,null,null,null,{"$f":"ADDRESS(31,4,1,1,$S$1)","v":"'Geographic Diversification'!$D$31"},"=SUM(I31:Z31)",0]
[null,null,null,null,null,null,null,null,null,null,null,null,{"$f":"ADDRESS(35,6,1,1,$M$1)","v":"'Currency Risk'!$F$35"},"=SUM(F12:F34)",0,null,null,null,{"$f":"ADDRESS(31,5,1,1,$S$1)","v":"'Geographic Diversification'!$E$31"},"=SUMSQ(I31:Z31)",0]
[null,null,null,null,null,null,null,null,null,null,null,null,{"$f":"ADDRESS(35,7,1,1,$M$1)","v":"'Currency Risk'!$G$35"},"=SUM(G12:G34)",0,null,null,null,{"$f":"ADDRESS(31,6,1,1,$S$1)","v":"'Geographic Diversification'!$F$31"},"=(IF(D31>0,E31/D31^2,1))",0]
[null,null,null,null,null,null,null,null,null,null,null,null,{"$f":"ADDRESS(35,8,1,1,$M$1)","v":"'Currency Risk'!$H$35"},"=SUM(H12:H34)",0,null,null,null,{"$f":"ADDRESS(31,7,1,1,$S$1)","v":"'Geographic Diversification'!$G$31"},"=D31*(0.75+0.25*F31)",{"$f":"IF(_xlfn.FORMULATEXT(INDIRECT(S516))=T516,0,1)","v":0}]
[null,null,null,null,null,null,null,null,null,null,null,null,{"$f":"ADDRESS(35,12,1,1,$M$1)","v":"'Currency Risk'!$L$35"},"=SUM(L12:L34)",0,null,null,null,{"$f":"ADDRESS(31,8,1,1,$S$1)","v":"'Geographic Diversification'!$H$31"},"=IF('Schedule IVE'!AB31=\"True\",G31,'Schedule IVD'!O31)",0]
[null,null,null,null,null,null,null,null,null,null,null,null,{"$f":"ADDRESS(35,13,1,1,$M$1)","v":"'Currency Risk'!$M$35"},"=SUM(M12:M34)",0,null,null,null,{"$f":"ADDRESS(31,9,1,1,$S$1)","v":"'Geographic Diversification'!$I$31"},"=+'Schedule IVE'!E31",0]
[null,null,null,null,null,null,null,null,null,null,null,null,{"$f":"ADDRESS(35,14,1,1,$M$1)","v":"'Currency Risk'!$N$35"},"=SUM(N12:N34)",0,null,null,null,{"$f":"ADDRESS(31,10,1,1,$S$1)","v":"'Geographic Diversification'!$J$31"},"=+'Schedule IVE'!F31",0]
[null,null,null,null,null,null,null,null,null,null,null,null,{"$f":"ADDRESS(35,15,1,1,$M$1)","v":"'Currency Risk'!$O$35"},"=SUM(O12:O34)",0,null,null,null,{"$f":"ADDRESS(31,11,1,1,$S$1)","v":"'Geographic Diversification'!$K$31"},"=+'Schedule IVE'!G31",0]
[null,null,null,null,null,null,null,null,null,null,null,null,{"$f":"ADDRESS(35,16,1,1,$M$1)","v":"'Currency Risk'!$P$35"},"=SUM(P12:P34)",0,null,null,null,{"$f":"ADDRESS(31,12,1,1,$S$1)","v":"'Geographic Diversification'!$L$31"},"=+'Schedule IVE'!H31",0]
[null,null,null,null,null,null,null,null,null,null,null,null,{"$f":"ADDRESS(35,17,1,1,$M$1)","v":"'Currency Risk'!$Q$35"},"=SUM(Q12:Q34)",0,null,null,null,{"$f":"ADDRESS(31,13,1,1,$S$1)","v":"'Geographic Diversification'!$M$31"},"=+'Schedule IVE'!I31",0]
[null,null,null,null,null,null,null,null,null,null,null,null,{"$f":"ADDRESS(35,18,1,1,$M$1)","v":"'Currency Risk'!$R$35"},"=SUM(R12:R34)",0,null,null,null,{"$f":"ADDRESS(31,14,1,1,$S$1)","v":"'Geographic Diversification'!$N$31"},"=+'Schedule IVE'!J31",0]
[null,null,null,null,null,null,null,null,null,null,null,null,{"$f":"ADDRESS(35,20,1,1,$M$1)","v":"'Currency Risk'!$T$35"},"=SUM(T12:T34)",0,null,null,null,{"$f":"ADDRESS(31,15,1,1,$S$1)","v":"'Geographic Diversification'!$O$31"},"=+'Schedule IVE'!K31",0]
[null,null,null,null,null,null,null,null,null,null,null,null,{"$f":"ADDRESS(35,21,1,1,$M$1)","v":"'Currency Risk'!$U$35"},"=SUM(U12:U34)",0,null,null,null,{"$f":"ADDRESS(31,16,1,1,$S$1)","v":"'Geographic Diversification'!$P$31"},"=+'Schedule IVE'!L31",0]
[null,null,null,null,null,null,null,null,null,null,null,null,{"$f":"ADDRESS(35,22,1,1,$M$1)","v":"'Currency Risk'!$V$35"},"=SUM(V12:V34)",0,null,null,null,{"$f":"ADDRESS(31,17,1,1,$S$1)","v":"'Geographic Diversification'!$Q$31"},"=+'Schedule IVE'!M31",0]
[null,null,null,null,null,null,null,null,null,null,null,null,{"$f":"ADDRESS(35,24,1,1,$M$1)","v":"'Currency Risk'!$X$35"},"=SUM(X12:X34)",0,null,null,null,{"$f":"ADDRESS(31,18,1,1,$S$1)","v":"'Geographic Diversification'!$R$31"},"=+'Schedule IVE'!N31",0]
[null,null,null,null,null,null,null,null,null,null,null,null,{"$f":"ADDRESS(35,25,1,1,$M$1)","v":"'Currency Risk'!$Y$35"},"=SUM(Y12:Y34)",0,null,null,null,{"$f":"ADDRESS(31,19,1,1,$S$1)","v":"'Geographic Diversification'!$S$31"},"=+'Schedule IVE'!O31",0]
[null,null,null,null,null,null,null,null,null,null,null,null,{"$f":"ADDRESS(36,3,1,1,$M$1)","v":"'Currency Risk'!$C$36"},"='Schedule XXA'!D36",0,null,null,null,{"$f":"ADDRESS(31,20,1,1,$S$1)","v":"'Geographic Diversification'!$T$31"},"=+'Schedule IVE'!P31",0]
[null,null,null,null,null,null,null,null,null,null,null,null,{"$f":"ADDRESS(36,8,1,1,$M$1)","v":"'Currency Risk'!$H$36"},"='Schedule XXA'!N36",0,null,null,null,{"$f":"ADDRESS(31,21,1,1,$S$1)","v":"'Geographic Diversification'!$U$31"},"=+'Schedule IVE'!Q31",0]
[null,null,null,null,null,null,null,null,null,null,null,null,{"$f":"ADDRESS(37,3,1,1,$M$1)","v":"'Currency Risk'!$C$37"},"=IF(C35=0,0,(C35+E35)/C36)",0,null,null,null,{"$f":"ADDRESS(31,22,1,1,$S$1)","v":"'Geographic Diversification'!$V$31"},"=+'Schedule IVE'!R31",0]
[null,null,null,null,null,null,null,null,null,null,null,null,{"$f":"ADDRESS(37,8,1,1,$M$1)","v":"'Currency Risk'!$H$37"},"=IF(H35=0,0,H35/H36)",0,null,null,null,{"$f":"ADDRESS(31,23,1,1,$S$1)","v":"'Geographic Diversification'!$W$31"},"=+'Schedule IVE'!S31",0]
[null,null,null,null,null,null,null,null,null,null,null,null,{"$f":"ADDRESS(39,24,1,1,$M$1)","v":"'Currency Risk'!$X$39"},"=IF(SUM(X12:X34)>=0,SUM(X12:X34),0)",0,null,null,null,{"$f":"ADDRESS(31,24,1,1,$S$1)","v":"'Geographic Diversification'!$X$31"},"=+'Schedule IVE'!T31",0]
[null,null,null,null,null,null,null,null,null,null,null,null,{"$f":"ADDRESS(39,25,1,1,$M$1)","v":"'Currency Risk'!$Y$39"},"=IF(SUM(Y12:Y34)>=0,SUM(Y12:Y34),0)",0,null,null,null,{"$f":"ADDRESS(31,25,1,1,$S$1)","v":"'Geographic Diversification'!$Y$31"},"=+'Schedule IVE'!U31",0]
[null,null,null,null,null,null,null,null,null,null,null,null,null,null,-535,null,null,null,{"$f":"ADDRESS(31,26,1,1,$S$1)","v":"'Geographic Diversification'!$Z$31"},"=+'Schedule IVE'!V31",0]
[null,null,null,null,null,null,null,null,null,null,null,null,null,null,null,null,null,null,{"$f":"ADDRESS(32,4,1,1,$S$1)","v":"'Geographic Diversification'!$D$32"},"=SUM(I32:Z32)",0]
[null,null,null,null,null,null,null,null,null,null,null,null,null,null,null,null,null,null,{"$f":"ADDRESS(32,5,1,1,$S$1)","v":"'Geographic Diversification'!$E$32"},"=SUMSQ(I32:Z32)",0]
[null,null,null,null,null,null,null,null,null,null,null,null,null,null,null,null,null,null,{"$f":"ADDRESS(32,6,1,1,$S$1)","v":"'Geographic Diversification'!$F$32"},"=(IF(D32>0,E32/D32^2,1))",0]
[null,null,null,null,null,null,null,null,null,null,null,null,null,null,null,null,null,null,{"$f":"ADDRESS(32,7,1,1,$S$1)","v":"'Geographic Diversification'!$G$32"},"=D32*(0.75+0.25*F32)",0]
[null,null,null,null,null,null,null,null,null,null,null,null,null,null,null,null,null,null,{"$f":"ADDRESS(32,8,1,1,$S$1)","v":"'Geographic Diversification'!$H$32"},"=IF('Schedule IVE'!AB32=\"True\",G32,'Schedule IVD'!O32)",0]
[null,null,null,null,null,null,null,null,null,null,null,null,null,null,null,null,null,null,{"$f":"ADDRESS(32,9,1,1,$S$1)","v":"'Geographic Diversification'!$I$32"},"=+'Schedule IVE'!E32",0]
[null,null,null,null,null,null,null,null,null,null,null,null,null,null,null,null,null,null,{"$f":"ADDRESS(32,10,1,1,$S$1)","v":"'Geographic Diversification'!$J$32"},"=+'Schedule IVE'!F32",0]
[null,null,null,null,null,null,null,null,null,null,null,null,null,null,null,null,null,null,{"$f":"ADDRESS(32,11,1,1,$S$1)","v":"'Geographic Diversification'!$K$32"},"=+'Schedule IVE'!G32",0]
[null,null,null,null,null,null,null,null,null,null,null,null,null,null,null,null,null,null,{"$f":"ADDRESS(32,12,1,1,$S$1)","v":"'Geographic Diversification'!$L$32"},"=+'Schedule IVE'!H32",0]
[null,null,null,null,null,null,null,null,null,null,null,null,null,null,null,null,null,null,{"$f":"ADDRESS(32,13,1,1,$S$1)","v":"'Geographic Diversification'!$M$32"},"=+'Schedule IVE'!I32",0]
[null,null,null,null,null,null,null,null,null,null,null,null,null,null,null,null,null,null,{"$f":"ADDRESS(32,14,1,1,$S$1)","v":"'Geographic Diversification'!$N$32"},"=+'Schedule IVE'!J32",0]
[null,null,null,null,null,null,null,null,null,null,null,null,null,null,null,null,null,null,{"$f":"ADDRESS(32,15,1,1,$S$1)","v":"'Geographic Diversification'!$O$32"},"=+'Schedule IVE'!K32",0]
[null,null,null,null,null,null,null,null,null,null,null,null,null,null,null,null,null,null,{"$f":"ADDRESS(32,16,1,1,$S$1)","v":"'Geographic Diversification'!$P$32"},"=+'Schedule IVE'!L32",0]
[null,null,null,null,null,null,null,null,null,null,null,null,null,null,null,null,null,null,{"$f":"ADDRESS(32,17,1,1,$S$1)","v":"'Geographic Diversification'!$Q$32"},"=+'Schedule IVE'!M32",0]
[null,null,null,null,null,null,null,null,null,null,null,null,null,null,null,null,null,null,{"$f":"ADDRESS(32,18,1,1,$S$1)","v":"'Geographic Diversification'!$R$32"},"=+'Schedule IVE'!N32",0]
[null,null,null,null,null,null,null,null,null,null,null,null,null,null,null,null,null,null,{"$f":"ADDRESS(32,19,1,1,$S$1)","v":"'Geographic Diversification'!$S$32"},"=+'Schedule IVE'!O32",0]
[null,null,null,null,null,null,null,null,null,null,null,null,null,null,null,null,null,null,{"$f":"ADDRESS(32,20,1,1,$S$1)","v":"'Geographic Diversification'!$T$32"},"=+'Schedule IVE'!P32",0]
[null,null,null,null,null,null,null,null,null,null,null,null,null,null,null,null,null,null,{"$f":"ADDRESS(32,21,1,1,$S$1)","v":"'Geographic Diversification'!$U$32"},"=+'Schedule IVE'!Q32",0]
[null,null,null,null,null,null,null,null,null,null,null,null,null,null,null,null,null,null,{"$f":"ADDRESS(32,22,1,1,$S$1)","v":"'Geographic Diversification'!$V$32"},"=+'Schedule IVE'!R32",0]
[null,null,null,null,null,null,null,null,null,null,null,null,null,null,null,null,null,null,{"$f":"ADDRESS(32,23,1,1,$S$1)","v":"'Geographic Diversification'!$W$32"},"=+'Schedule IVE'!S32",0]
[null,null,null,null,null,null,null,null,null,null,null,null,null,null,null,null,null,null,{"$f":"ADDRESS(32,24,1,1,$S$1)","v":"'Geographic Diversification'!$X$32"},"=+'Schedule IVE'!T32",0]
[null,null,null,null,null,null,null,null,null,null,null,null,null,null,null,null,null,null,{"$f":"ADDRESS(32,25,1,1,$S$1)","v":"'Geographic Diversification'!$Y$32"},"=+'Schedule IVE'!U32",0]
[null,null,null,null,null,null,null,null,null,null,null,null,null,null,null,null,null,null,{"$f":"ADDRESS(32,26,1,1,$S$1)","v":"'Geographic Diversification'!$Z$32"},"=+'Schedule IVE'!V32",0]
[null,null,null,null,null,null,null,null,null,null,null,null,null,null,null,null,null,null,{"$f":"ADDRESS(34,4,1,1,$S$1)","v":"'Geographic Diversification'!$D$34"},"=SUM(D9:D32)",0]
[null,null,null,null,null,null,null,null,null,null,null,null,null,null,null,null,null,null,{"$f":"ADDRESS(34,5,1,1,$S$1)","v":"'Geographic Diversification'!$E$34"},"=SUM(E9:E32)",0]
[null,null,null,null,null,null,null,null,null,null,null,null,null,null,null,null,null,null,{"$f":"ADDRESS(34,7,1,1,$S$1)","v":"'Geographic Diversification'!$G$34"},"=SUM(G9:G32)",0]
[null,null,null,null,null,null,null,null,null,null,null,null,null,null,null,null,null,null,{"$f":"ADDRESS(34,8,1,1,$S$1)","v":"'Geographic Diversification'!$H$34"},"=SUM(H9:H32)",0]
[null,null,null,null,null,null,null,null,null,null,null,null,null,null,null,null,null,null,{"$f":"ADDRESS(34,9,1,1,$S$1)","v":"'Geographic Diversification'!$I$34"},"=SUM(I9:I32)",0]
[null,null,null,null,null,null,null,null,null,null,null,null,null,null,null,null,null,null,{"$f":"ADDRESS(34,10,1,1,$S$1)","v":"'Geographic Diversification'!$J$34"},"=SUM(J9:J32)",0]
[null,null,null,null,null,null,null,null,null,null,null,null,null,null,null,null,null,null,{"$f":"ADDRESS(34,11,1,1,$S$1)","v":"'Geographic Diversification'!$K$34"},"=SUM(K9:K32)",0]
[null,null,null,null,null,null,null,null,null,null,null,null,null,null,null,null,null,null,{"$f":"ADDRESS(34,12,1,1,$S$1)","v":"'Geographic Diversification'!$L$34"},"=SUM(L9:L32)",0]
[null,null,null,null,null,null,null,null,null,null,null,null,null,null,null,null,null,null,{"$f":"ADDRESS(34,13,1,1,$S$1)","v":"'Geographic Diversification'!$M$34"},"=SUM(M9:M32)",0]
[null,null,null,null,null,null,null,null,null,null,null,null,null,null,null,null,null,null,{"$f":"ADDRESS(34,14,1,1,$S$1)","v":"'Geographic Diversification'!$N$34"},"=SUM(N9:N32)",0]
[null,null,null,null,null,null,null,null,null,null,null,null,null,null,null,null,null,null,{"$f":"ADDRESS(34,15,1,1,$S$1)","v":"'Geographic Diversification'!$O$34"},"=SUM(O9:O32)",0]
[null,null,null,null,null,null,null,null,null,null,null,null,null,null,null,null,null,null,{"$f":"ADDRESS(34,16,1,1,$S$1)","v":"'Geographic Diversification'!$P$34"},"=SUM(P9:P32)",0]
[null,null,null,null,null,null,null,null,null,null,null,null,null,null,null,null,null,null,{"$f":"ADDRESS(34,17,1,1,$S$1)","v":"'Geographic Diversification'!$Q$34"},"=SUM(Q9:Q32)",0]
[null,null,null,null,null,null,null,null,null,null,null,null,null,null,null,null,null,null,{"$f":"ADDRESS(34,18,1,1,$S$1)","v":"'Geographic Diversification'!$R$34"},"=SUM(R9:R32)",0]
[null,null,null,null,null,null,null,null,null,null,null,null,null,null,null,null,null,null,{"$f":"ADDRESS(34,19,1,1,$S$1)","v":"'Geographic Diversification'!$S$34"},"=SUM(S9:S32)",0]
[null,null,null,null,null,null,null,null,null,null,null,null,null,null,null,null,null,null,{"$f":"ADDRESS(34,20,1,1,$S$1)","v":"'Geographic Diversification'!$T$34"},"=SUM(T9:T32)",0]
[null,null,null,null,null,null,null,null,null,null,null,null,null,null,null,null,null,null,{"$f":"ADDRESS(34,21,1,1,$S$1)","v":"'Geographic Diversification'!$U$34"},"=SUM(U9:U32)",0]
[null,null,null,null,null,null,null,null,null,null,null,null,null,null,null,null,null,null,{"$f":"ADDRESS(34,22,1,1,$S$1)","v":"'Geographic Diversification'!$V$34"},"=SUM(V9:V32)",0]
[null,null,null,null,null,null,null,null,null,null,null,null,null,null,null,null,null,null,{"$f":"ADDRESS(34,23,1,1,$S$1)","v":"'Geographic Diversification'!$W$34"},"=SUM(W9:W32)",0]
[null,null,null,null,null,null,null,null,null,null,null,null,null,null,null,null,null,null,{"$f":"ADDRESS(34,24,1,1,$S$1)","v":"'Geographic Diversification'!$X$34"},"=SUM(X9:X32)",0]
[null,null,null,null,null,null,null,null,null,null,null,null,null,null,null,null,null,null,{"$f":"ADDRESS(34,25,1,1,$S$1)","v":"'Geographic Diversification'!$Y$34"},"=SUM(Y9:Y32)",0]
[null,null,null,null,null,null,null,null,null,null,null,null,null,null,null,null,null,null,{"$f":"ADDRESS(34,26,1,1,$S$1)","v":"'Geographic Diversification'!$Z$34"},"=SUM(Z9:Z32)",{"$f":"IF(_xlfn.FORMULATEXT(INDIRECT(S580))=T580,0,1)","v":0}]
[null,null,null,null,null,null,null,null,null,null,null,null,null,null,null,null,null,null,{"$f":"ADDRESS(40,4,1,1,$S$1)","v":"'Geographic Diversification'!$D$40"},"=SUM(I40:Z40)",0]
[null,null,null,null,null,null,null,null,null,null,null,null,null,null,null,null,null,null,{"$f":"ADDRESS(40,5,1,1,$S$1)","v":"'Geographic Diversification'!$E$40"},"=SUMSQ(I40:Z40)",0]
[null,null,null,null,null,null,null,null,null,null,null,null,null,null,null,null,null,null,{"$f":"ADDRESS(40,6,1,1,$S$1)","v":"'Geographic Diversification'!$F$40"},"=(IF(D40>0,E40/D40^2,1))",0]
[null,null,null,null,null,null,null,null,null,null,null,null,null,null,null,null,null,null,{"$f":"ADDRESS(40,7,1,1,$S$1)","v":"'Geographic Diversification'!$G$40"},"=D40*(0.75+0.25*F40)",0]
[null,null,null,null,null,null,null,null,null,null,null,null,null,null,null,null,null,null,{"$f":"ADDRESS(40,8,1,1,$S$1)","v":"'Geographic Diversification'!$H$40"},"=IF('Schedule IIIA'!AB10=\"TRUE\",G40,'Schedule III'!F10)",0]
[null,null,null,null,null,null,null,null,null,null,null,null,null,null,null,null,null,null,{"$f":"ADDRESS(40,9,1,1,$S$1)","v":"'Geographic Diversification'!$I$40"},"='Schedule IIIA'!E10",0]
[null,null,null,null,null,null,null,null,null,null,null,null,null,null,null,null,null,null,{"$f":"ADDRESS(40,10,1,1,$S$1)","v":"'Geographic Diversification'!$J$40"},"='Schedule IIIA'!F10",0]
[null,null,null,null,null,null,null,null,null,null,null,null,null,null,null,null,null,null,{"$f":"ADDRESS(40,11,1,1,$S$1)","v":"'Geographic Diversification'!$K$40"},"='Schedule IIIA'!G10",0]
[null,null,null,null,null,null,null,null,null,null,null,null,null,null,null,null,null,null,{"$f":"ADDRESS(40,12,1,1,$S$1)","v":"'Geographic Diversification'!$L$40"},"='Schedule IIIA'!H10",0]
[null,null,null,null,null,null,null,null,null,null,null,null,null,null,null,null,null,null,{"$f":"ADDRESS(40,13,1,1,$S$1)","v":"'Geographic Diversification'!$M$40"},"='Schedule IIIA'!I10",0]
[null,null,null,null,null,null,null,null,null,null,null,null,null,null,null,null,null,null,{"$f":"ADDRESS(40,14,1,1,$S$1)","v":"'Geographic Diversification'!$N$40"},"='Schedule IIIA'!J10",0]
[null,null,null,null,null,null,null,null,null,null,null,null,null,null,null,null,null,null,{"$f":"ADDRESS(40,15,1,1,$S$1)","v":"'Geographic Diversification'!$O$40"},"='Schedule IIIA'!K10",0]
[null,null,null,null,null,null,null,null,null,null,null,null,null,null,null,null,null,null,{"$f":"ADDRESS(40,16,1,1,$S$1)","v":"'Geographic Diversification'!$P$40"},"='Schedule IIIA'!L10",0]
[null,null,null,null,null,null,null,null,null,null,null,null,null,null,null,null,null,null,{"$f":"ADDRESS(40,17,1,1,$S$1)","v":"'Geographic Diversification'!$Q$40"},"='Schedule IIIA'!M10",0]
[null,null,null,null,null,null,null,null,null,null,null,null,null,null,null,null,null,null,{"$f":"ADDRESS(40,18,1,1,$S$1)","v":"'Geographic Diversification'!$R$40"},"='Schedule IIIA'!N10",0]
[null,null,null,null,null,null,null,null,null,null,null,null,null,null,null,null,null,null,{"$f":"ADDRESS(40,19,1,1,$S$1)","v":"'Geographic Diversification'!$S$40"},"='Schedule IIIA'!O10",0]
[null,null,null,null,null,null,null,null,null,null,null,null,null,null,null,null,null,null,{"$f":"ADDRESS(40,20,1,1,$S$1)","v":"'Geographic Diversification'!$T$40"},"='Schedule IIIA'!P10",0]
[null,null,null,null,null,null,null,null,null,null,null,null,null,null,null,null,null,null,{"$f":"ADDRESS(40,21,1,1,$S$1)","v":"'Geographic Diversification'!$U$40"},"='Schedule IIIA'!Q10",0]
[null,null,null,null,null,null,null,null,null,null,null,null,null,null,null,null,null,null,{"$f":"ADDRESS(40,22,1,1,$S$1)","v":"'Geographic Diversification'!$V$40"},"='Schedule IIIA'!R10",0]
[null,null,null,null,null,null,null,null,null,null,null,null,null,null,null,null,null,null,{"$f":"ADDRESS(40,23,1,1,$S$1)","v":"'Geographic Diversification'!$W$40"},"='Schedule IIIA'!S10",0]
[null,null,null,null,null,null,null,null,null,null,null,null,null,null,null,null,null,null,{"$f":"ADDRESS(40,24,1,1,$S$1)","v":"'Geographic Diversification'!$X$40"},"='Schedule IIIA'!T10",0]
[null,null,null,null,null,null,null,null,null,null,null,null,null,null,null,null,null,null,{"$f":"ADDRESS(40,25,1,1,$S$1)","v":"'Geographic Diversification'!$Y$40"},"='Schedule IIIA'!U10",0]
[null,null,null,null,null,null,null,null,null,null,null,null,null,null,null,null,null,null,{"$f":"ADDRESS(40,26,1,1,$S$1)","v":"'Geographic Diversification'!$Z$40"},"='Schedule IIIA'!V10",0]
[null,null,null,null,null,null,null,null,null,null,null,null,null,null,null,null,null,null,{"$f":"ADDRESS(41,4,1,1,$S$1)","v":"'Geographic Diversification'!$D$41"},"=SUM(I41:Z41)",0]
[null,null,null,null,null,null,null,null,null,null,null,null,null,null,null,null,null,null,{"$f":"ADDRESS(41,5,1,1,$S$1)","v":"'Geographic Diversification'!$E$41"},"=SUMSQ(I41:Z41)",0]
[null,null,null,null,null,null,null,null,null,null,null,null,null,null,null,null,null,null,{"$f":"ADDRESS(41,6,1,1,$S$1)","v":"'Geographic Diversification'!$F$41"},"=(IF(D41>0,E41/D41^2,1))",0]
[null,null,null,null,null,null,null,null,null,null,null,null,null,null,null,null,null,null,{"$f":"ADDRESS(41,7,1,1,$S$1)","v":"'Geographic Diversification'!$G$41"},"=D41*(0.75+0.25*F41)",0]
[null,null,null,null,null,null,null,null,null,null,null,null,null,null,null,null,null,null,{"$f":"ADDRESS(41,8,1,1,$S$1)","v":"'Geographic Diversification'!$H$41"},"=IF('Schedule IIIA'!AB11=\"TRUE\",G41,'Schedule III'!F11)",0]
[null,null,null,null,null,null,null,null,null,null,null,null,null,null,null,null,null,null,{"$f":"ADDRESS(41,9,1,1,$S$1)","v":"'Geographic Diversification'!$I$41"},"='Schedule IIIA'!E11",0]
[null,null,null,null,null,null,null,null,null,null,null,null,null,null,null,null,null,null,{"$f":"ADDRESS(41,10,1,1,$S$1)","v":"'Geographic Diversification'!$J$41"},"='Schedule IIIA'!F11",0]
[null,null,null,null,null,null,null,null,null,null,null,null,null,null,null,null,null,null,{"$f":"ADDRESS(41,11,1,1,$S$1)","v":"'Geographic Diversification'!$K$41"},"='Schedule IIIA'!G11",0]
[null,null,null,null,null,null,null,null,null,null,null,null,null,null,null,null,null,null,{"$f":"ADDRESS(41,12,1,1,$S$1)","v":"'Geographic Diversification'!$L$41"},"='Schedule IIIA'!H11",0]
[null,null,null,null,null,null,null,null,null,null,null,null,null,null,null,null,null,null,{"$f":"ADDRESS(41,13,1,1,$S$1)","v":"'Geographic Diversification'!$M$41"},"='Schedule IIIA'!I11",0]
[null,null,null,null,null,null,null,null,null,null,null,null,null,null,null,null,null,null,{"$f":"ADDRESS(41,14,1,1,$S$1)","v":"'Geographic Diversification'!$N$41"},"='Schedule IIIA'!J11",0]
[null,null,null,null,null,null,null,null,null,null,null,null,null,null,null,null,null,null,{"$f":"ADDRESS(41,15,1,1,$S$1)","v":"'Geographic Diversification'!$O$41"},"='Schedule IIIA'!K11",0]
[null,null,null,null,null,null,null,null,null,null,null,null,null,null,null,null,null,null,{"$f":"ADDRESS(41,16,1,1,$S$1)","v":"'Geographic Diversification'!$P$41"},"='Schedule IIIA'!L11",0]
[null,null,null,null,null,null,null,null,null,null,null,null,null,null,null,null,null,null,{"$f":"ADDRESS(41,17,1,1,$S$1)","v":"'Geographic Diversification'!$Q$41"},"='Schedule IIIA'!M11",0]
[null,null,null,null,null,null,null,null,null,null,null,null,null,null,null,null,null,null,{"$f":"ADDRESS(41,18,1,1,$S$1)","v":"'Geographic Diversification'!$R$41"},"='Schedule IIIA'!N11",0]
[null,null,null,null,null,null,null,null,null,null,null,null,null,null,null,null,null,null,{"$f":"ADDRESS(41,19,1,1,$S$1)","v":"'Geographic Diversification'!$S$41"},"='Schedule IIIA'!O11",0]
[null,null,null,null,null,null,null,null,null,null,null,null,null,null,null,null,null,null,{"$f":"ADDRESS(41,20,1,1,$S$1)","v":"'Geographic Diversification'!$T$41"},"='Schedule IIIA'!P11",0]
[null,null,null,null,null,null,null,null,null,null,null,null,null,null,null,null,null,null,{"$f":"ADDRESS(41,21,1,1,$S$1)","v":"'Geographic Diversification'!$U$41"},"='Schedule IIIA'!Q11",0]
[null,null,null,null,null,null,null,null,null,null,null,null,null,null,null,null,null,null,{"$f":"ADDRESS(41,22,1,1,$S$1)","v":"'Geographic Diversification'!$V$41"},"='Schedule IIIA'!R11",0]
[null,null,null,null,null,null,null,null,null,null,null,null,null,null,null,null,null,null,{"$f":"ADDRESS(41,23,1,1,$S$1)","v":"'Geographic Diversification'!$W$41"},"='Schedule IIIA'!S11",0]
[null,null,null,null,null,null,null,null,null,null,null,null,null,null,null,null,null,null,{"$f":"ADDRESS(41,24,1,1,$S$1)","v":"'Geographic Diversification'!$X$41"},"='Schedule IIIA'!T11",0]
[null,null,null,null,null,null,null,null,null,null,null,null,null,null,null,null,null,null,{"$f":"ADDRESS(41,25,1,1,$S$1)","v":"'Geographic Diversification'!$Y$41"},"='Schedule IIIA'!U11",0]
[null,null,null,null,null,null,null,null,null,null,null,null,null,null,null,null,null,null,{"$f":"ADDRESS(41,26,1,1,$S$1)","v":"'Geographic Diversification'!$Z$41"},"='Schedule IIIA'!V11",0]
[null,null,null,null,null,null,null,null,null,null,null,null,null,null,null,null,null,null,{"$f":"ADDRESS(42,4,1,1,$S$1)","v":"'Geographic Diversification'!$D$42"},"=SUM(I42:Z42)",0]
[null,null,null,null,null,null,null,null,null,null,null,null,null,null,null,null,null,null,{"$f":"ADDRESS(42,5,1,1,$S$1)","v":"'Geographic Diversification'!$E$42"},"=SUMSQ(I42:Z42)",0]
[null,null,null,null,null,null,null,null,null,null,null,null,null,null,null,null,null,null,{"$f":"ADDRESS(42,6,1,1,$S$1)","v":"'Geographic Diversification'!$F$42"},"=(IF(D42>0,E42/D42^2,1))",0]
[null,null,null,null,null,null,null,null,null,null,null,null,null,null,null,null,null,null,{"$f":"ADDRESS(42,7,1,1,$S$1)","v":"'Geographic Diversification'!$G$42"},"=D42*(0.75+0.25*F42)",0]
[null,null,null,null,null,null,null,null,null,null,null,null,null,null,null,null,null,null,{"$f":"ADDRESS(42,8,1,1,$S$1)","v":"'Geographic Diversification'!$H$42"},"=IF('Schedule IIIA'!AB12=\"TRUE\",G42,'Schedule III'!F12)",0]
[null,null,null,null,null,null,null,null,null,null,null,null,null,null,null,null,null,null,{"$f":"ADDRESS(42,9,1,1,$S$1)","v":"'Geographic Diversification'!$I$42"},"='Schedule IIIA'!E12",0]
[null,null,null,null,null,null,null,null,null,null,null,null,null,null,null,null,null,null,{"$f":"ADDRESS(42,10,1,1,$S$1)","v":"'Geographic Diversification'!$J$42"},"='Schedule IIIA'!F12",0]
[null,null,null,null,null,null,null,null,null,null,null,null,null,null,null,null,null,null,{"$f":"ADDRESS(42,11,1,1,$S$1)","v":"'Geographic Diversification'!$K$42"},"='Schedule IIIA'!G12",0]
[null,null,null,null,null,null,null,null,null,null,null,null,null,null,null,null,null,null,{"$f":"ADDRESS(42,12,1,1,$S$1)","v":"'Geographic Diversification'!$L$42"},"='Schedule IIIA'!H12",0]
[null,null,null,null,null,null,null,null,null,null,null,null,null,null,null,null,null,null,{"$f":"ADDRESS(42,13,1,1,$S$1)","v":"'Geographic Diversification'!$M$42"},"='Schedule IIIA'!I12",0]
[null,null,null,null,null,null,null,null,null,null,null,null,null,null,null,null,null,null,{"$f":"ADDRESS(42,14,1,1,$S$1)","v":"'Geographic Diversification'!$N$42"},"='Schedule IIIA'!J12",0]
[null,null,null,null,null,null,null,null,null,null,null,null,null,null,null,null,null,null,{"$f":"ADDRESS(42,15,1,1,$S$1)","v":"'Geographic Diversification'!$O$42"},"='Schedule IIIA'!K12",0]
[null,null,null,null,null,null,null,null,null,null,null,null,null,null,null,null,null,null,{"$f":"ADDRESS(42,16,1,1,$S$1)","v":"'Geographic Diversification'!$P$42"},"='Schedule IIIA'!L12",0]
[null,null,null,null,null,null,null,null,null,null,null,null,null,null,null,null,null,null,{"$f":"ADDRESS(42,17,1,1,$S$1)","v":"'Geographic Diversification'!$Q$42"},"='Schedule IIIA'!M12",0]
[null,null,null,null,null,null,null,null,null,null,null,null,null,null,null,null,null,null,{"$f":"ADDRESS(42,18,1,1,$S$1)","v":"'Geographic Diversification'!$R$42"},"='Schedule IIIA'!N12",0]
[null,null,null,null,null,null,null,null,null,null,null,null,null,null,null,null,null,null,{"$f":"ADDRESS(42,19,1,1,$S$1)","v":"'Geographic Diversification'!$S$42"},"='Schedule IIIA'!O12",0]
[null,null,null,null,null,null,null,null,null,null,null,null,null,null,null,null,null,null,{"$f":"ADDRESS(42,20,1,1,$S$1)","v":"'Geographic Diversification'!$T$42"},"='Schedule IIIA'!P12",0]
[null,null,null,null,null,null,null,null,null,null,null,null,null,null,null,null,null,null,{"$f":"ADDRESS(42,21,1,1,$S$1)","v":"'Geographic Diversification'!$U$42"},"='Schedule IIIA'!Q12",{"$f":"IF(_xlfn.FORMULATEXT(INDIRECT(S644))=T644,0,1)","v":0}]
[null,null,null,null,null,null,null,null,null,null,null,null,null,null,null,null,null,null,{"$f":"ADDRESS(42,22,1,1,$S$1)","v":"'Geographic Diversification'!$V$42"},"='Schedule IIIA'!R12",0]
[null,null,null,null,null,null,null,null,null,null,null,null,null,null,null,null,null,null,{"$f":"ADDRESS(42,23,1,1,$S$1)","v":"'Geographic Diversification'!$W$42"},"='Schedule IIIA'!S12",0]
[null,null,null,null,null,null,null,null,null,null,null,null,null,null,null,null,null,null,{"$f":"ADDRESS(42,24,1,1,$S$1)","v":"'Geographic Diversification'!$X$42"},"='Schedule IIIA'!T12",0]
[null,null,null,null,null,null,null,null,null,null,null,null,null,null,null,null,null,null,{"$f":"ADDRESS(42,25,1,1,$S$1)","v":"'Geographic Diversification'!$Y$42"},"='Schedule IIIA'!U12",0]
[null,null,null,null,null,null,null,null,null,null,null,null,null,null,null,null,null,null,{"$f":"ADDRESS(42,26,1,1,$S$1)","v":"'Geographic Diversification'!$Z$42"},"='Schedule IIIA'!V12",0]
[null,null,null,null,null,null,null,null,null,null,null,null,null,null,null,null,null,null,{"$f":"ADDRESS(43,4,1,1,$S$1)","v":"'Geographic Diversification'!$D$43"},"=SUM(I43:Z43)",0]
[null,null,null,null,null,null,null,null,null,null,null,null,null,null,null,null,null,null,{"$f":"ADDRESS(43,5,1,1,$S$1)","v":"'Geographic Diversification'!$E$43"},"=SUMSQ(I43:Z43)",0]
[null,null,null,null,null,null,null,null,null,null,null,null,null,null,null,null,null,null,{"$f":"ADDRESS(43,6,1,1,$S$1)","v":"'Geographic Diversification'!$F$43"},"=(IF(D43>0,E43/D43^2,1))",0]
[null,null,null,null,null,null,null,null,null,null,null,null,null,null,null,null,null,null,{"$f":"ADDRESS(43,7,1,1,$S$1)","v":"'Geographic Diversification'!$G$43"},"=D43*(0.75+0.25*F43)",0]
[null,null,null,null,null,null,null,null,null,null,null,null,null,null,null,null,null,null,{"$f":"ADDRESS(43,8,1,1,$S$1)","v":"'Geographic Diversification'!$H$43"},"=IF('Schedule IIIA'!AB13=\"TRUE\",G43,'Schedule III'!F13)",0]
[null,null,null,null,null,null,null,null,null,null,null,null,null,null,null,null,null,null,{"$f":"ADDRESS(43,9,1,1,$S$1)","v":"'Geographic Diversification'!$I$43"},"='Schedule IIIA'!E13",0]
[null,null,null,null,null,null,null,null,null,null,null,null,null,null,null,null,null,null,{"$f":"ADDRESS(43,10,1,1,$S$1)","v":"'Geographic Diversification'!$J$43"},"='Schedule IIIA'!F13",0]
[null,null,null,null,null,null,null,null,null,null,null,null,null,null,null,null,null,null,{"$f":"ADDRESS(43,11,1,1,$S$1)","v":"'Geographic Diversification'!$K$43"},"='Schedule IIIA'!G13",0]
[null,null,null,null,null,null,null,null,null,null,null,null,null,null,null,null,null,null,{"$f":"ADDRESS(43,12,1,1,$S$1)","v":"'Geographic Diversification'!$L$43"},"='Schedule IIIA'!H13",0]
[null,null,null,null,null,null,null,null,null,null,null,null,null,null,null,null,null,null,{"$f":"ADDRESS(43,13,1,1,$S$1)","v":"'Geographic Diversification'!$M$43"},"='Schedule IIIA'!I13",0]
[null,null,null,null,null,null,null,null,null,null,null,null,null,null,null,null,null,null,{"$f":"ADDRESS(43,14,1,1,$S$1)","v":"'Geographic Diversification'!$N$43"},"='Schedule IIIA'!J13",0]
[null,null,null,null,null,null,null,null,null,null,null,null,null,null,null,null,null,null,{"$f":"ADDRESS(43,15,1,1,$S$1)","v":"'Geographic Diversification'!$O$43"},"='Schedule IIIA'!K13",0]
[null,null,null,null,null,null,null,null,null,null,null,null,null,null,null,null,null,null,{"$f":"ADDRESS(43,16,1,1,$S$1)","v":"'Geographic Diversification'!$P$43"},"='Schedule IIIA'!L13",0]
[null,null,null,null,null,null,null,null,null,null,null,null,null,null,null,null,null,null,{"$f":"ADDRESS(43,17,1,1,$S$1)","v":"'Geographic Diversification'!$Q$43"},"='Schedule IIIA'!M13",0]
[null,null,null,null,null,null,null,null,null,null,null,null,null,null,null,null,null,null,{"$f":"ADDRESS(43,18,1,1,$S$1)","v":"'Geographic Diversification'!$R$43"},"='Schedule IIIA'!N13",0]
[null,null,null,null,null,null,null,null,null,null,null,null,null,null,null,null,null,null,{"$f":"ADDRESS(43,19,1,1,$S$1)","v":"'Geographic Diversification'!$S$43"},"='Schedule IIIA'!O13",0]
[null,null,null,null,null,null,null,null,null,null,null,null,null,null,null,null,null,null,{"$f":"ADDRESS(43,20,1,1,$S$1)","v":"'Geographic Diversification'!$T$43"},"='Schedule IIIA'!P13",0]
[null,null,null,null,null,null,null,null,null,null,null,null,null,null,null,null,null,null,{"$f":"ADDRESS(43,21,1,1,$S$1)","v":"'Geographic Diversification'!$U$43"},"='Schedule IIIA'!Q13",0]
[null,null,null,null,null,null,null,null,null,null,null,null,null,null,null,null,null,null,{"$f":"ADDRESS(43,22,1,1,$S$1)","v":"'Geographic Diversification'!$V$43"},"='Schedule IIIA'!R13",0]
[null,null,null,null,null,null,null,null,null,null,null,null,null,null,null,null,null,null,{"$f":"ADDRESS(43,23,1,1,$S$1)","v":"'Geographic Diversification'!$W$43"},"='Schedule IIIA'!S13",0]
[null,null,null,null,null,null,null,null,null,null,null,null,null,null,null,null,null,null,{"$f":"ADDRESS(43,24,1,1,$S$1)","v":"'Geographic Diversification'!$X$43"},"='Schedule IIIA'!T13",0]
[null,null,null,null,null,null,null,null,null,null,null,null,null,null,null,null,null,null,{"$f":"ADDRESS(43,25,1,1,$S$1)","v":"'Geographic Diversification'!$Y$43"},"='Schedule IIIA'!U13",0]
[null,null,null,null,null,null,null,null,null,null,null,null,null,null,null,null,null,null,{"$f":"ADDRESS(43,26,1,1,$S$1)","v":"'Geographic Diversification'!$Z$43"},"='Schedule IIIA'!V13",0]
[null,null,null,null,null,null,null,null,null,null,null,null,null,null,null,null,null,null,{"$f":"ADDRESS(44,4,1,1,$S$1)","v":"'Geographic Diversification'!$D$44"},"=SUM(I44:Z44)",0]
[null,null,null,null,null,null,null,null,null,null,null,null,null,null,null,null,null,null,{"$f":"ADDRESS(44,5,1,1,$S$1)","v":"'Geographic Diversification'!$E$44"},"=SUMSQ(I44:Z44)",0]
[null,null,null,null,null,null,null,null,null,null,null,null,null,null,null,null,null,null,{"$f":"ADDRESS(44,6,1,1,$S$1)","v":"'Geographic Diversification'!$F$44"},"=(IF(D44>0,E44/D44^2,1))",0]
[null,null,null,null,null,null,null,null,null,null,null,null,null,null,null,null,null,null,{"$f":"ADDRESS(44,7,1,1,$S$1)","v":"'Geographic Diversification'!$G$44"},"=D44*(0.75+0.25*F44)",0]
[null,null,null,null,null,null,null,null,null,null,null,null,null,null,null,null,null,null,{"$f":"ADDRESS(44,8,1,1,$S$1)","v":"'Geographic Diversification'!$H$44"},"=IF('Schedule IIIA'!AB14=\"TRUE\",G44,'Schedule III'!F14)",0]
[null,null,null,null,null,null,null,null,null,null,null,null,null,null,null,null,null,null,{"$f":"ADDRESS(44,9,1,1,$S$1)","v":"'Geographic Diversification'!$I$44"},"='Schedule IIIA'!E14",0]
[null,null,null,null,null,null,null,null,null,null,null,null,null,null,null,null,null,null,{"$f":"ADDRESS(44,10,1,1,$S$1)","v":"'Geographic Diversification'!$J$44"},"='Schedule IIIA'!F14",0]
[null,null,null,null,null,null,null,null,null,null,null,null,null,null,null,null,null,null,{"$f":"ADDRESS(44,11,1,1,$S$1)","v":"'Geographic Diversification'!$K$44"},"='Schedule IIIA'!G14",0]
[null,null,null,null,null,null,null,null,null,null,null,null,null,null,null,null,null,null,{"$f":"ADDRESS(44,12,1,1,$S$1)","v":"'Geographic Diversification'!$L$44"},"='Schedule IIIA'!H14",0]
[null,null,null,null,null,null,null,null,null,null,null,null,null,null,null,null,null,null,{"$f":"ADDRESS(44,13,1,1,$S$1)","v":"'Geographic Diversification'!$M$44"},"='Schedule IIIA'!I14",0]
[null,null,null,null,null,null,null,null,null,null,null,null,null,null,null,null,null,null,{"$f":"ADDRESS(44,14,1,1,$S$1)","v":"'Geographic Diversification'!$N$44"},"='Schedule IIIA'!J14",0]
[null,null,null,null,null,null,null,null,null,null,null,null,null,null,null,null,null,null,{"$f":"ADDRESS(44,15,1,1,$S$1)","v":"'Geographic Diversification'!$O$44"},"='Schedule IIIA'!K14",0]
[null,null,null,null,null,null,null,null,null,null,null,null,null,null,null,null,null,null,{"$f":"ADDRESS(44,16,1,1,$S$1)","v":"'Geographic Diversification'!$P$44"},"='Schedule IIIA'!L14",0]
[null,null,null,null,null,null,null,null,null,null,null,null,null,null,null,null,null,null,{"$f":"ADDRESS(44,17,1,1,$S$1)","v":"'Geographic Diversification'!$Q$44"},"='Schedule IIIA'!M14",0]
[null,null,null,null,null,null,null,null,null,null,null,null,null,null,null,null,null,null,{"$f":"ADDRESS(44,18,1,1,$S$1)","v":"'Geographic Diversification'!$R$44"},"='Schedule IIIA'!N14",0]
[null,null,null,null,null,null,null,null,null,null,null,null,null,null,null,null,null,null,{"$f":"ADDRESS(44,19,1,1,$S$1)","v":"'Geographic Diversification'!$S$44"},"='Schedule IIIA'!O14",0]
[null,null,null,null,null,null,null,null,null,null,null,null,null,null,null,null,null,null,{"$f":"ADDRESS(44,20,1,1,$S$1)","v":"'Geographic Diversification'!$T$44"},"='Schedule IIIA'!P14",0]
[null,null,null,null,null,null,null,null,null,null,null,null,null,null,null,null,null,null,{"$f":"ADDRESS(44,21,1,1,$S$1)","v":"'Geographic Diversification'!$U$44"},"='Schedule IIIA'!Q14",0]
[null,null,null,null,null,null,null,null,null,null,null,null,null,null,null,null,null,null,{"$f":"ADDRESS(44,22,1,1,$S$1)","v":"'Geographic Diversification'!$V$44"},"='Schedule IIIA'!R14",0]
[null,null,null,null,null,null,null,null,null,null,null,null,null,null,null,null,null,null,{"$f":"ADDRESS(44,23,1,1,$S$1)","v":"'Geographic Diversification'!$W$44"},"='Schedule IIIA'!S14",0]
[null,null,null,null,null,null,null,null,null,null,null,null,null,null,null,null,null,null,{"$f":"ADDRESS(44,24,1,1,$S$1)","v":"'Geographic Diversification'!$X$44"},"='Schedule IIIA'!T14",0]
[null,null,null,null,null,null,null,null,null,null,null,null,null,null,null,null,null,null,{"$f":"ADDRESS(44,25,1,1,$S$1)","v":"'Geographic Diversification'!$Y$44"},"='Schedule IIIA'!U14",0]
[null,null,null,null,null,null,null,null,null,null,null,null,null,null,null,null,null,null,{"$f":"ADDRESS(44,26,1,1,$S$1)","v":"'Geographic Diversification'!$Z$44"},"='Schedule IIIA'!V14",0]
[null,null,null,null,null,null,null,null,null,null,null,null,null,null,null,null,null,null,{"$f":"ADDRESS(45,4,1,1,$S$1)","v":"'Geographic Diversification'!$D$45"},"=SUM(I45:Z45)",0]
[null,null,null,null,null,null,null,null,null,null,null,null,null,null,null,null,null,null,{"$f":"ADDRESS(45,5,1,1,$S$1)","v":"'Geographic Diversification'!$E$45"},"=SUMSQ(I45:Z45)",0]
[null,null,null,null,null,null,null,null,null,null,null,null,null,null,null,null,null,null,{"$f":"ADDRESS(45,6,1,1,$S$1)","v":"'Geographic Diversification'!$F$45"},"=(IF(D45>0,E45/D45^2,1))",0]
[null,null,null,null,null,null,null,null,null,null,null,null,null,null,null,null,null,null,{"$f":"ADDRESS(45,7,1,1,$S$1)","v":"'Geographic Diversification'!$G$45"},"=D45*(0.75+0.25*F45)",0]
[null,null,null,null,null,null,null,null,null,null,null,null,null,null,null,null,null,null,{"$f":"ADDRESS(45,8,1,1,$S$1)","v":"'Geographic Diversification'!$H$45"},"=IF('Schedule IIIA'!AB15=\"TRUE\",G45,'Schedule III'!F15)",0]
[null,null,null,null,null,null,null,null,null,null,null,null,null,null,null,null,null,null,{"$f":"ADDRESS(45,9,1,1,$S$1)","v":"'Geographic Diversification'!$I$45"},"='Schedule IIIA'!E15",0]
[null,null,null,null,null,null,null,null,null,null,null,null,null,null,null,null,null,null,{"$f":"ADDRESS(45,10,1,1,$S$1)","v":"'Geographic Diversification'!$J$45"},"='Schedule IIIA'!F15",0]
[null,null,null,null,null,null,null,null,null,null,null,null,null,null,null,null,null,null,{"$f":"ADDRESS(45,11,1,1,$S$1)","v":"'Geographic Diversification'!$K$45"},"='Schedule IIIA'!G15",0]
[null,null,null,null,null,null,null,null,null,null,null,null,null,null,null,null,null,null,{"$f":"ADDRESS(45,12,1,1,$S$1)","v":"'Geographic Diversification'!$L$45"},"='Schedule IIIA'!H15",0]
[null,null,null,null,null,null,null,null,null,null,null,null,null,null,null,null,null,null,{"$f":"ADDRESS(45,13,1,1,$S$1)","v":"'Geographic Diversification'!$M$45"},"='Schedule IIIA'!I15",0]
[null,null,null,null,null,null,null,null,null,null,null,null,null,null,null,null,null,null,{"$f":"ADDRESS(45,14,1,1,$S$1)","v":"'Geographic Diversification'!$N$45"},"='Schedule IIIA'!J15",0]
[null,null,null,null,null,null,null,null,null,null,null,null,null,null,null,null,null,null,{"$f":"ADDRESS(45,15,1,1,$S$1)","v":"'Geographic Diversification'!$O$45"},"='Schedule IIIA'!K15",0]
[null,null,null,null,null,null,null,null,null,null,null,null,null,null,null,null,null,null,{"$f":"ADDRESS(45,16,1,1,$S$1)","v":"'Geographic Diversification'!$P$45"},"='Schedule IIIA'!L15",{"$f":"IF(_xlfn.FORMULATEXT(INDIRECT(S708))=T708,0,1)","v":0}]
[null,null,null,null,null,null,null,null,null,null,null,null,null,null,null,null,null,null,{"$f":"ADDRESS(45,17,1,1,$S$1)","v":"'Geographic Diversification'!$Q$45"},"='Schedule IIIA'!M15",0]
[null,null,null,null,null,null,null,null,null,null,null,null,null,null,null,null,null,null,{"$f":"ADDRESS(45,18,1,1,$S$1)","v":"'Geographic Diversification'!$R$45"},"='Schedule IIIA'!N15",0]
[null,null,null,null,null,null,null,null,null,null,null,null,null,null,null,null,null,null,{"$f":"ADDRESS(45,19,1,1,$S$1)","v":"'Geographic Diversification'!$S$45"},"='Schedule IIIA'!O15",0]
[null,null,null,null,null,null,null,null,null,null,null,null,null,null,null,null,null,null,{"$f":"ADDRESS(45,20,1,1,$S$1)","v":"'Geographic Diversification'!$T$45"},"='Schedule IIIA'!P15",0]
[null,null,null,null,null,null,null,null,null,null,null,null,null,null,null,null,null,null,{"$f":"ADDRESS(45,21,1,1,$S$1)","v":"'Geographic Diversification'!$U$45"},"='Schedule IIIA'!Q15",0]
[null,null,null,null,null,null,null,null,null,null,null,null,null,null,null,null,null,null,{"$f":"ADDRESS(45,22,1,1,$S$1)","v":"'Geographic Diversification'!$V$45"},"='Schedule IIIA'!R15",0]
[null,null,null,null,null,null,null,null,null,null,null,null,null,null,null,null,null,null,{"$f":"ADDRESS(45,23,1,1,$S$1)","v":"'Geographic Diversification'!$W$45"},"='Schedule IIIA'!S15",0]
[null,null,null,null,null,null,null,null,null,null,null,null,null,null,null,null,null,null,{"$f":"ADDRESS(45,24,1,1,$S$1)","v":"'Geographic Diversification'!$X$45"},"='Schedule IIIA'!T15",0]
[null,null,null,null,null,null,null,null,null,null,null,null,null,null,null,null,null,null,{"$f":"ADDRESS(45,25,1,1,$S$1)","v":"'Geographic Diversification'!$Y$45"},"='Schedule IIIA'!U15",0]
[null,null,null,null,null,null,null,null,null,null,null,null,null,null,null,null,null,null,{"$f":"ADDRESS(45,26,1,1,$S$1)","v":"'Geographic Diversification'!$Z$45"},"='Schedule IIIA'!V15",0]
[null,null,null,null,null,null,null,null,null,null,null,null,null,null,null,null,null,null,{"$f":"ADDRESS(46,4,1,1,$S$1)","v":"'Geographic Diversification'!$D$46"},"=SUM(I46:Z46)",0]
[null,null,null,null,null,null,null,null,null,null,null,null,null,null,null,null,null,null,{"$f":"ADDRESS(46,5,1,1,$S$1)","v":"'Geographic Diversification'!$E$46"},"=SUMSQ(I46:Z46)",0]
[null,null,null,null,null,null,null,null,null,null,null,null,null,null,null,null,null,null,{"$f":"ADDRESS(46,6,1,1,$S$1)","v":"'Geographic Diversification'!$F$46"},"=(IF(D46>0,E46/D46^2,1))",0]
[null,null,null,null,null,null,null,null,null,null,null,null,null,null,null,null,null,null,{"$f":"ADDRESS(46,7,1,1,$S$1)","v":"'Geographic Diversification'!$G$46"},"=D46*(0.75+0.25*F46)",0]
[null,null,null,null,null,null,null,null,null,null,null,null,null,null,null,null,null,null,{"$f":"ADDRESS(46,8,1,1,$S$1)","v":"'Geographic Diversification'!$H$46"},"=IF('Schedule IIIA'!AB16=\"TRUE\",G46,'Schedule III'!F16)",0]
[null,null,null,null,null,null,null,null,null,null,null,null,null,null,null,null,null,null,{"$f":"ADDRESS(46,9,1,1,$S$1)","v":"'Geographic Diversification'!$I$46"},"='Schedule IIIA'!E16",0]
[null,null,null,null,null,null,null,null,null,null,null,null,null,null,null,null,null,null,{"$f":"ADDRESS(46,10,1,1,$S$1)","v":"'Geographic Diversification'!$J$46"},"='Schedule IIIA'!F16",0]
[null,null,null,null,null,null,null,null,null,null,null,null,null,null,null,null,null,null,{"$f":"ADDRESS(46,11,1,1,$S$1)","v":"'Geographic Diversification'!$K$46"},"='Schedule IIIA'!G16",0]
[null,null,null,null,null,null,null,null,null,null,null,null,null,null,null,null,null,null,{"$f":"ADDRESS(46,12,1,1,$S$1)","v":"'Geographic Diversification'!$L$46"},"='Schedule IIIA'!H16",0]
[null,null,null,null,null,null,null,null,null,null,null,null,null,null,null,null,null,null,{"$f":"ADDRESS(46,13,1,1,$S$1)","v":"'Geographic Diversification'!$M$46"},"='Schedule IIIA'!I16",0]
[null,null,null,null,null,null,null,null,null,null,null,null,null,null,null,null,null,null,{"$f":"ADDRESS(46,14,1,1,$S$1)","v":"'Geographic Diversification'!$N$46"},"='Schedule IIIA'!J16",0]
[null,null,null,null,null,null,null,null,null,null,null,null,null,null,null,null,null,null,{"$f":"ADDRESS(46,15,1,1,$S$1)","v":"'Geographic Diversification'!$O$46"},"='Schedule IIIA'!K16",0]
[null,null,null,null,null,null,null,null,null,null,null,null,null,null,null,null,null,null,{"$f":"ADDRESS(46,16,1,1,$S$1)","v":"'Geographic Diversification'!$P$46"},"='Schedule IIIA'!L16",0]
[null,null,null,null,null,null,null,null,null,null,null,null,null,null,null,null,null,null,{"$f":"ADDRESS(46,17,1,1,$S$1)","v":"'Geographic Diversification'!$Q$46"},"='Schedule IIIA'!M16",0]
[null,null,null,null,null,null,null,null,null,null,null,null,null,null,null,null,null,null,{"$f":"ADDRESS(46,18,1,1,$S$1)","v":"'Geographic Diversification'!$R$46"},"='Schedule IIIA'!N16",0]
[null,null,null,null,null,null,null,null,null,null,null,null,null,null,null,null,null,null,{"$f":"ADDRESS(46,19,1,1,$S$1)","v":"'Geographic Diversification'!$S$46"},"='Schedule IIIA'!O16",0]
[null,null,null,null,null,null,null,null,null,null,null,null,null,null,null,null,null,null,{"$f":"ADDRESS(46,20,1,1,$S$1)","v":"'Geographic Diversification'!$T$46"},"='Schedule IIIA'!P16",0]
[null,null,null,null,null,null,null,null,null,null,null,null,null,null,null,null,null,null,{"$f":"ADDRESS(46,21,1,1,$S$1)","v":"'Geographic Diversification'!$U$46"},"='Schedule IIIA'!Q16",0]
[null,null,null,null,null,null,null,null,null,null,null,null,null,null,null,null,null,null,{"$f":"ADDRESS(46,22,1,1,$S$1)","v":"'Geographic Diversification'!$V$46"},"='Schedule IIIA'!R16",0]
[null,null,null,null,null,null,null,null,null,null,null,null,null,null,null,null,null,null,{"$f":"ADDRESS(46,23,1,1,$S$1)","v":"'Geographic Diversification'!$W$46"},"='Schedule IIIA'!S16",0]
[null,null,null,null,null,null,null,null,null,null,null,null,null,null,null,null,null,null,{"$f":"ADDRESS(46,24,1,1,$S$1)","v":"'Geographic Diversification'!$X$46"},"='Schedule IIIA'!T16",0]
[null,null,null,null,null,null,null,null,null,null,null,null,null,null,null,null,null,null,{"$f":"ADDRESS(46,25,1,1,$S$1)","v":"'Geographic Diversification'!$Y$46"},"='Schedule IIIA'!U16",0]
[null,null,null,null,null,null,null,null,null,null,null,null,null,null,null,null,null,null,{"$f":"ADDRESS(46,26,1,1,$S$1)","v":"'Geographic Diversification'!$Z$46"},"='Schedule IIIA'!V16",0]
[null,null,null,null,null,null,null,null,null,null,null,null,null,null,null,null,null,null,{"$f":"ADDRESS(47,4,1,1,$S$1)","v":"'Geographic Diversification'!$D$47"},"=SUM(I47:Z47)",0]
[null,null,null,null,null,null,null,null,null,null,null,null,null,null,null,null,null,null,{"$f":"ADDRESS(47,5,1,1,$S$1)","v":"'Geographic Diversification'!$E$47"},"=SUMSQ(I47:Z47)",0]
[null,null,null,null,null,null,null,null,null,null,null,null,null,null,null,null,null,null,{"$f":"ADDRESS(47,6,1,1,$S$1)","v":"'Geographic Diversification'!$F$47"},"=(IF(D47>0,E47/D47^2,1))",0]
[null,null,null,null,null,null,null,null,null,null,null,null,null,null,null,null,null,null,{"$f":"ADDRESS(47,7,1,1,$S$1)","v":"'Geographic Diversification'!$G$47"},"=D47*(0.75+0.25*F47)",0]
[null,null,null,null,null,null,null,null,null,null,null,null,null,null,null,null,null,null,{"$f":"ADDRESS(47,8,1,1,$S$1)","v":"'Geographic Diversification'!$H$47"},"=IF('Schedule IIIA'!AB17=\"TRUE\",G47,'Schedule III'!F17)",0]
[null,null,null,null,null,null,null,null,null,null,null,null,null,null,null,null,null,null,{"$f":"ADDRESS(47,9,1,1,$S$1)","v":"'Geographic Diversification'!$I$47"},"='Schedule IIIA'!E17",0]
[null,null,null,null,null,null,null,null,null,null,null,null,null,null,null,null,null,null,{"$f":"ADDRESS(47,10,1,1,$S$1)","v":"'Geographic Diversification'!$J$47"},"='Schedule IIIA'!F17",0]
[null,null,null,null,null,null,null,null,null,null,null,null,null,null,null,null,null,null,{"$f":"ADDRESS(47,11,1,1,$S$1)","v":"'Geographic Diversification'!$K$47"},"='Schedule IIIA'!G17",0]
[null,null,null,null,null,null,null,null,null,null,null,null,null,null,null,null,null,null,{"$f":"ADDRESS(47,12,1,1,$S$1)","v":"'Geographic Diversification'!$L$47"},"='Schedule IIIA'!H17",0]
[null,null,null,null,null,null,null,null,null,null,null,null,null,null,null,null,null,null,{"$f":"ADDRESS(47,13,1,1,$S$1)","v":"'Geographic Diversification'!$M$47"},"='Schedule IIIA'!I17",0]
[null,null,null,null,null,null,null,null,null,null,null,null,null,null,null,null,null,null,{"$f":"ADDRESS(47,14,1,1,$S$1)","v":"'Geographic Diversification'!$N$47"},"='Schedule IIIA'!J17",0]
[null,null,null,null,null,null,null,null,null,null,null,null,null,null,null,null,null,null,{"$f":"ADDRESS(47,15,1,1,$S$1)","v":"'Geographic Diversification'!$O$47"},"='Schedule IIIA'!K17",0]
[null,null,null,null,null,null,null,null,null,null,null,null,null,null,null,null,null,null,{"$f":"ADDRESS(47,16,1,1,$S$1)","v":"'Geographic Diversification'!$P$47"},"='Schedule IIIA'!L17",0]
[null,null,null,null,null,null,null,null,null,null,null,null,null,null,null,null,null,null,{"$f":"ADDRESS(47,17,1,1,$S$1)","v":"'Geographic Diversification'!$Q$47"},"='Schedule IIIA'!M17",0]
[null,null,null,null,null,null,null,null,null,null,null,null,null,null,null,null,null,null,{"$f":"ADDRESS(47,18,1,1,$S$1)","v":"'Geographic Diversification'!$R$47"},"='Schedule IIIA'!N17",0]
[null,null,null,null,null,null,null,null,null,null,null,null,null,null,null,null,null,null,{"$f":"ADDRESS(47,19,1,1,$S$1)","v":"'Geographic Diversification'!$S$47"},"='Schedule IIIA'!O17",0]
[null,null,null,null,null,null,null,null,null,null,null,null,null,null,null,null,null,null,{"$f":"ADDRESS(47,20,1,1,$S$1)","v":"'Geographic Diversification'!$T$47"},"='Schedule IIIA'!P17",0]
[null,null,null,null,null,null,null,null,null,null,null,null,null,null,null,null,null,null,{"$f":"ADDRESS(47,21,1,1,$S$1)","v":"'Geographic Diversification'!$U$47"},"='Schedule IIIA'!Q17",0]
[null,null,null,null,null,null,null,null,null,null,null,null,null,null,null,null,null,null,{"$f":"ADDRESS(47,22,1,1,$S$1)","v":"'Geographic Diversification'!$V$47"},"='Schedule IIIA'!R17",0]
[null,null,null,null,null,null,null,null,null,null,null,null,null,null,null,null,null,null,{"$f":"ADDRESS(47,23,1,1,$S$1)","v":"'Geographic Diversification'!$W$47"},"='Schedule IIIA'!S17",0]
[null,null,null,null,null,null,null,null,null,null,null,null,null,null,null,null,null,null,{"$f":"ADDRESS(47,24,1,1,$S$1)","v":"'Geographic Diversification'!$X$47"},"='Schedule IIIA'!T17",0]
[null,null,null,null,null,null,null,null,null,null,null,null,null,null,null,null,null,null,{"$f":"ADDRESS(47,25,1,1,$S$1)","v":"'Geographic Diversification'!$Y$47"},"='Schedule IIIA'!U17",0]
[null,null,null,null,null,null,null,null,null,null,null,null,null,null,null,null,null,null,{"$f":"ADDRESS(47,26,1,1,$S$1)","v":"'Geographic Diversification'!$Z$47"},"='Schedule IIIA'!V17",0]
[null,null,null,null,null,null,null,null,null,null,null,null,null,null,null,null,null,null,{"$f":"ADDRESS(48,4,1,1,$S$1)","v":"'Geographic Diversification'!$D$48"},"=SUM(I48:Z48)",0]
[null,null,null,null,null,null,null,null,null,null,null,null,null,null,null,null,null,null,{"$f":"ADDRESS(48,5,1,1,$S$1)","v":"'Geographic Diversification'!$E$48"},"=SUMSQ(I48:Z48)",0]
[null,null,null,null,null,null,null,null,null,null,null,null,null,null,null,null,null,null,{"$f":"ADDRESS(48,6,1,1,$S$1)","v":"'Geographic Diversification'!$F$48"},"=(IF(D48>0,E48/D48^2,1))",0]
[null,null,null,null,null,null,null,null,null,null,null,null,null,null,null,null,null,null,{"$f":"ADDRESS(48,7,1,1,$S$1)","v":"'Geographic Diversification'!$G$48"},"=D48*(0.75+0.25*F48)",0]
[null,null,null,null,null,null,null,null,null,null,null,null,null,null,null,null,null,null,{"$f":"ADDRESS(48,8,1,1,$S$1)","v":"'Geographic Diversification'!$H$48"},"=IF('Schedule IIIA'!AB18=\"TRUE\",G48,'Schedule III'!F18)",0]
[null,null,null,null,null,null,null,null,null,null,null,null,null,null,null,null,null,null,{"$f":"ADDRESS(48,9,1,1,$S$1)","v":"'Geographic Diversification'!$I$48"},"='Schedule IIIA'!E18",0]
[null,null,null,null,null,null,null,null,null,null,null,null,null,null,null,null,null,null,{"$f":"ADDRESS(48,10,1,1,$S$1)","v":"'Geographic Diversification'!$J$48"},"='Schedule IIIA'!F18",0]
[null,null,null,null,null,null,null,null,null,null,null,null,null,null,null,null,null,null,{"$f":"ADDRESS(48,11,1,1,$S$1)","v":"'Geographic Diversification'!$K$48"},"='Schedule IIIA'!G18",{"$f":"IF(_xlfn.FORMULATEXT(INDIRECT(S772))=T772,0,1)","v":0}]
[null,null,null,null,null,null,null,null,null,null,null,null,null,null,null,null,null,null,{"$f":"ADDRESS(48,12,1,1,$S$1)","v":"'Geographic Diversification'!$L$48"},"='Schedule IIIA'!H18",0]
[null,null,null,null,null,null,null,null,null,null,null,null,null,null,null,null,null,null,{"$f":"ADDRESS(48,13,1,1,$S$1)","v":"'Geographic Diversification'!$M$48"},"='Schedule IIIA'!I18",0]
[null,null,null,null,null,null,null,null,null,null,null,null,null,null,null,null,null,null,{"$f":"ADDRESS(48,14,1,1,$S$1)","v":"'Geographic Diversification'!$N$48"},"='Schedule IIIA'!J18",0]
[null,null,null,null,null,null,null,null,null,null,null,null,null,null,null,null,null,null,{"$f":"ADDRESS(48,15,1,1,$S$1)","v":"'Geographic Diversification'!$O$48"},"='Schedule IIIA'!K18",0]
[null,null,null,null,null,null,null,null,null,null,null,null,null,null,null,null,null,null,{"$f":"ADDRESS(48,16,1,1,$S$1)","v":"'Geographic Diversification'!$P$48"},"='Schedule IIIA'!L18",0]
[null,null,null,null,null,null,null,null,null,null,null,null,null,null,null,null,null,null,{"$f":"ADDRESS(48,17,1,1,$S$1)","v":"'Geographic Diversification'!$Q$48"},"='Schedule IIIA'!M18",0]
[null,null,null,null,null,null,null,null,null,null,null,null,null,null,null,null,null,null,{"$f":"ADDRESS(48,18,1,1,$S$1)","v":"'Geographic Diversification'!$R$48"},"='Schedule IIIA'!N18",0]
[null,null,null,null,null,null,null,null,null,null,null,null,null,null,null,null,null,null,{"$f":"ADDRESS(48,19,1,1,$S$1)","v":"'Geographic Diversification'!$S$48"},"='Schedule IIIA'!O18",0]
[null,null,null,null,null,null,null,null,null,null,null,null,null,null,null,null,null,null,{"$f":"ADDRESS(48,20,1,1,$S$1)","v":"'Geographic Diversification'!$T$48"},"='Schedule IIIA'!P18",0]
[null,null,null,null,null,null,null,null,null,null,null,null,null,null,null,null,null,null,{"$f":"ADDRESS(48,21,1,1,$S$1)","v":"'Geographic Diversification'!$U$48"},"='Schedule IIIA'!Q18",0]
[null,null,null,null,null,null,null,null,null,null,null,null,null,null,null,null,null,null,{"$f":"ADDRESS(48,22,1,1,$S$1)","v":"'Geographic Diversification'!$V$48"},"='Schedule IIIA'!R18",0]
[null,null,null,null,null,null,null,null,null,null,null,null,null,null,null,null,null,null,{"$f":"ADDRESS(48,23,1,1,$S$1)","v":"'Geographic Diversification'!$W$48"},"='Schedule IIIA'!S18",0]
[null,null,null,null,null,null,null,null,null,null,null,null,null,null,null,null,null,null,{"$f":"ADDRESS(48,24,1,1,$S$1)","v":"'Geographic Diversification'!$X$48"},"='Schedule IIIA'!T18",0]
[null,null,null,null,null,null,null,null,null,null,null,null,null,null,null,null,null,null,{"$f":"ADDRESS(48,25,1,1,$S$1)","v":"'Geographic Diversification'!$Y$48"},"='Schedule IIIA'!U18",0]
[null,null,null,null,null,null,null,null,null,null,null,null,null,null,null,null,null,null,{"$f":"ADDRESS(48,26,1,1,$S$1)","v":"'Geographic Diversification'!$Z$48"},"='Schedule IIIA'!V18",0]
[null,null,null,null,null,null,null,null,null,null,null,null,null,null,null,null,null,null,{"$f":"ADDRESS(49,4,1,1,$S$1)","v":"'Geographic Diversification'!$D$49"},"=SUM(I49:Z49)",0]
[null,null,null,null,null,null,null,null,null,null,null,null,null,null,null,null,null,null,{"$f":"ADDRESS(49,5,1,1,$S$1)","v":"'Geographic Diversification'!$E$49"},"=SUMSQ(I49:Z49)",0]
[null,null,null,null,null,null,null,null,null,null,null,null,null,null,null,null,null,null,{"$f":"ADDRESS(49,6,1,1,$S$1)","v":"'Geographic Diversification'!$F$49"},"=(IF(D49>0,E49/D49^2,1))",0]
[null,null,null,null,null,null,null,null,null,null,null,null,null,null,null,null,null,null,{"$f":"ADDRESS(49,7,1,1,$S$1)","v":"'Geographic Diversification'!$G$49"},"=D49*(0.75+0.25*F49)",0]
[null,null,null,null,null,null,null,null,null,null,null,null,null,null,null,null,null,null,{"$f":"ADDRESS(49,8,1,1,$S$1)","v":"'Geographic Diversification'!$H$49"},"=IF('Schedule IIIA'!AB19=\"TRUE\",G49,'Schedule III'!F19)",0]
[null,null,null,null,null,null,null,null,null,null,null,null,null,null,null,null,null,null,{"$f":"ADDRESS(49,9,1,1,$S$1)","v":"'Geographic Diversification'!$I$49"},"='Schedule IIIA'!E19",0]
[null,null,null,null,null,null,null,null,null,null,null,null,null,null,null,null,null,null,{"$f":"ADDRESS(49,10,1,1,$S$1)","v":"'Geographic Diversification'!$J$49"},"='Schedule IIIA'!F19",0]
[null,null,null,null,null,null,null,null,null,null,null,null,null,null,null,null,null,null,{"$f":"ADDRESS(49,11,1,1,$S$1)","v":"'Geographic Diversification'!$K$49"},"='Schedule IIIA'!G19",0]
[null,null,null,null,null,null,null,null,null,null,null,null,null,null,null,null,null,null,{"$f":"ADDRESS(49,12,1,1,$S$1)","v":"'Geographic Diversification'!$L$49"},"='Schedule IIIA'!H19",0]
[null,null,null,null,null,null,null,null,null,null,null,null,null,null,null,null,null,null,{"$f":"ADDRESS(49,13,1,1,$S$1)","v":"'Geographic Diversification'!$M$49"},"='Schedule IIIA'!I19",0]
[null,null,null,null,null,null,null,null,null,null,null,null,null,null,null,null,null,null,{"$f":"ADDRESS(49,14,1,1,$S$1)","v":"'Geographic Diversification'!$N$49"},"='Schedule IIIA'!J19",0]
[null,null,null,null,null,null,null,null,null,null,null,null,null,null,null,null,null,null,{"$f":"ADDRESS(49,15,1,1,$S$1)","v":"'Geographic Diversification'!$O$49"},"='Schedule IIIA'!K19",0]
[null,null,null,null,null,null,null,null,null,null,null,null,null,null,null,null,null,null,{"$f":"ADDRESS(49,16,1,1,$S$1)","v":"'Geographic Diversification'!$P$49"},"='Schedule IIIA'!L19",0]
[null,null,null,null,null,null,null,null,null,null,null,null,null,null,null,null,null,null,{"$f":"ADDRESS(49,17,1,1,$S$1)","v":"'Geographic Diversification'!$Q$49"},"='Schedule IIIA'!M19",0]
[null,null,null,null,null,null,null,null,null,null,null,null,null,null,null,null,null,null,{"$f":"ADDRESS(49,18,1,1,$S$1)","v":"'Geographic Diversification'!$R$49"},"='Schedule IIIA'!N19",0]
[null,null,null,null,null,null,null,null,null,null,null,null,null,null,null,null,null,null,{"$f":"ADDRESS(49,19,1,1,$S$1)","v":"'Geographic Diversification'!$S$49"},"='Schedule IIIA'!O19",0]
[null,null,null,null,null,null,null,null,null,null,null,null,null,null,null,null,null,null,{"$f":"ADDRESS(49,20,1,1,$S$1)","v":"'Geographic Diversification'!$T$49"},"='Schedule IIIA'!P19",0]
[null,null,null,null,null,null,null,null,null,null,null,null,null,null,null,null,null,null,{"$f":"ADDRESS(49,21,1,1,$S$1)","v":"'Geographic Diversification'!$U$49"},"='Schedule IIIA'!Q19",0]
[null,null,null,null,null,null,null,null,null,null,null,null,null,null,null,null,null,null,{"$f":"ADDRESS(49,22,1,1,$S$1)","v":"'Geographic Diversification'!$V$49"},"='Schedule IIIA'!R19",0]
[null,null,null,null,null,null,null,null,null,null,null,null,null,null,null,null,null,null,{"$f":"ADDRESS(49,23,1,1,$S$1)","v":"'Geographic Diversification'!$W$49"},"='Schedule IIIA'!S19",0]
[null,null,null,null,null,null,null,null,null,null,null,null,null,null,null,null,null,null,{"$f":"ADDRESS(49,24,1,1,$S$1)","v":"'Geographic Diversification'!$X$49"},"='Schedule IIIA'!T19",0]
[null,null,null,null,null,null,null,null,null,null,null,null,null,null,null,null,null,null,{"$f":"ADDRESS(49,25,1,1,$S$1)","v":"'Geographic Diversification'!$Y$49"},"='Schedule IIIA'!U19",0]
[null,null,null,null,null,null,null,null,null,null,null,null,null,null,null,null,null,null,{"$f":"ADDRESS(49,26,1,1,$S$1)","v":"'Geographic Diversification'!$Z$49"},"='Schedule IIIA'!V19",0]
[null,null,null,null,null,null,null,null,null,null,null,null,null,null,null,null,null,null,{"$f":"ADDRESS(50,4,1,1,$S$1)","v":"'Geographic Diversification'!$D$50"},"=SUM(I50:Z50)",0]
[null,null,null,null,null,null,null,null,null,null,null,null,null,null,null,null,null,null,{"$f":"ADDRESS(50,5,1,1,$S$1)","v":"'Geographic Diversification'!$E$50"},"=SUMSQ(I50:Z50)",0]
[null,null,null,null,null,null,null,null,null,null,null,null,null,null,null,null,null,null,{"$f":"ADDRESS(50,6,1,1,$S$1)","v":"'Geographic Diversification'!$F$50"},"=(IF(D50>0,E50/D50^2,1))",0]
[null,null,null,null,null,null,null,null,null,null,null,null,null,null,null,null,null,null,{"$f":"ADDRESS(50,7,1,1,$S$1)","v":"'Geographic Diversification'!$G$50"},"=D50*(0.75+0.25*F50)",0]
[null,null,null,null,null,null,null,null,null,null,null,null,null,null,null,null,null,null,{"$f":"ADDRESS(50,8,1,1,$S$1)","v":"'Geographic Diversification'!$H$50"},"=IF('Schedule IIIA'!AB20=\"TRUE\",G50,'Schedule III'!F20)",0]
[null,null,null,null,null,null,null,null,null,null,null,null,null,null,null,null,null,null,{"$f":"ADDRESS(50,9,1,1,$S$1)","v":"'Geographic Diversification'!$I$50"},"='Schedule IIIA'!E20",0]
[null,null,null,null,null,null,null,null,null,null,null,null,null,null,null,null,null,null,{"$f":"ADDRESS(50,10,1,1,$S$1)","v":"'Geographic Diversification'!$J$50"},"='Schedule IIIA'!F20",0]
[null,null,null,null,null,null,null,null,null,null,null,null,null,null,null,null,null,null,{"$f":"ADDRESS(50,11,1,1,$S$1)","v":"'Geographic Diversification'!$K$50"},"='Schedule IIIA'!G20",0]
[null,null,null,null,null,null,null,null,null,null,null,null,null,null,null,null,null,null,{"$f":"ADDRESS(50,12,1,1,$S$1)","v":"'Geographic Diversification'!$L$50"},"='Schedule IIIA'!H20",0]
[null,null,null,null,null,null,null,null,null,null,null,null,null,null,null,null,null,null,{"$f":"ADDRESS(50,13,1,1,$S$1)","v":"'Geographic Diversification'!$M$50"},"='Schedule IIIA'!I20",0]
[null,null,null,null,null,null,null,null,null,null,null,null,null,null,null,null,null,null,{"$f":"ADDRESS(50,14,1,1,$S$1)","v":"'Geographic Diversification'!$N$50"},"='Schedule IIIA'!J20",0]
[null,null,null,null,null,null,null,null,null,null,null,null,null,null,null,null,null,null,{"$f":"ADDRESS(50,15,1,1,$S$1)","v":"'Geographic Diversification'!$O$50"},"='Schedule IIIA'!K20",0]
[null,null,null,null,null,null,null,null,null,null,null,null,null,null,null,null,null,null,{"$f":"ADDRESS(50,16,1,1,$S$1)","v":"'Geographic Diversification'!$P$50"},"='Schedule IIIA'!L20",0]
[null,null,null,null,null,null,null,null,null,null,null,null,null,null,null,null,null,null,{"$f":"ADDRESS(50,17,1,1,$S$1)","v":"'Geographic Diversification'!$Q$50"},"='Schedule IIIA'!M20",0]
[null,null,null,null,null,null,null,null,null,null,null,null,null,null,null,null,null,null,{"$f":"ADDRESS(50,18,1,1,$S$1)","v":"'Geographic Diversification'!$R$50"},"='Schedule IIIA'!N20",0]
[null,null,null,null,null,null,null,null,null,null,null,null,null,null,null,null,null,null,{"$f":"ADDRESS(50,19,1,1,$S$1)","v":"'Geographic Diversification'!$S$50"},"='Schedule IIIA'!O20",0]
[null,null,null,null,null,null,null,null,null,null,null,null,null,null,null,null,null,null,{"$f":"ADDRESS(50,20,1,1,$S$1)","v":"'Geographic Diversification'!$T$50"},"='Schedule IIIA'!P20",0]
[null,null,null,null,null,null,null,null,null,null,null,null,null,null,null,null,null,null,{"$f":"ADDRESS(50,21,1,1,$S$1)","v":"'Geographic Diversification'!$U$50"},"='Schedule IIIA'!Q20",0]
[null,null,null,null,null,null,null,null,null,null,null,null,null,null,null,null,null,null,{"$f":"ADDRESS(50,22,1,1,$S$1)","v":"'Geographic Diversification'!$V$50"},"='Schedule IIIA'!R20",0]
[null,null,null,null,null,null,null,null,null,null,null,null,null,null,null,null,null,null,{"$f":"ADDRESS(50,23,1,1,$S$1)","v":"'Geographic Diversification'!$W$50"},"='Schedule IIIA'!S20",0]
[null,null,null,null,null,null,null,null,null,null,null,null,null,null,null,null,null,null,{"$f":"ADDRESS(50,24,1,1,$S$1)","v":"'Geographic Diversification'!$X$50"},"='Schedule IIIA'!T20",0]
[null,null,null,null,null,null,null,null,null,null,null,null,null,null,null,null,null,null,{"$f":"ADDRESS(50,25,1,1,$S$1)","v":"'Geographic Diversification'!$Y$50"},"='Schedule IIIA'!U20",0]
[null,null,null,null,null,null,null,null,null,null,null,null,null,null,null,null,null,null,{"$f":"ADDRESS(50,26,1,1,$S$1)","v":"'Geographic Diversification'!$Z$50"},"='Schedule IIIA'!V20",0]
[null,null,null,null,null,null,null,null,null,null,null,null,null,null,null,null,null,null,{"$f":"ADDRESS(51,4,1,1,$S$1)","v":"'Geographic Diversification'!$D$51"},"=SUM(I51:Z51)",0]
[null,null,null,null,null,null,null,null,null,null,null,null,null,null,null,null,null,null,{"$f":"ADDRESS(51,5,1,1,$S$1)","v":"'Geographic Diversification'!$E$51"},"=SUMSQ(I51:Z51)",0]
[null,null,null,null,null,null,null,null,null,null,null,null,null,null,null,null,null,null,{"$f":"ADDRESS(51,6,1,1,$S$1)","v":"'Geographic Diversification'!$F$51"},"=(IF(D51>0,E51/D51^2,1))",{"$f":"IF(_xlfn.FORMULATEXT(INDIRECT(S836))=T836,0,1)","v":0}]
[null,null,null,null,null,null,null,null,null,null,null,null,null,null,null,null,null,null,{"$f":"ADDRESS(51,7,1,1,$S$1)","v":"'Geographic Diversification'!$G$51"},"=D51*(0.75+0.25*F51)",0]
[null,null,null,null,null,null,null,null,null,null,null,null,null,null,null,null,null,null,{"$f":"ADDRESS(51,8,1,1,$S$1)","v":"'Geographic Diversification'!$H$51"},"=IF('Schedule IIIA'!AB21=\"TRUE\",G51,'Schedule III'!F21)",0]
[null,null,null,null,null,null,null,null,null,null,null,null,null,null,null,null,null,null,{"$f":"ADDRESS(51,9,1,1,$S$1)","v":"'Geographic Diversification'!$I$51"},"='Schedule IIIA'!E21",0]
[null,null,null,null,null,null,null,null,null,null,null,null,null,null,null,null,null,null,{"$f":"ADDRESS(51,10,1,1,$S$1)","v":"'Geographic Diversification'!$J$51"},"='Schedule IIIA'!F21",0]
[null,null,null,null,null,null,null,null,null,null,null,null,null,null,null,null,null,null,{"$f":"ADDRESS(51,11,1,1,$S$1)","v":"'Geographic Diversification'!$K$51"},"='Schedule IIIA'!G21",0]
[null,null,null,null,null,null,null,null,null,null,null,null,null,null,null,null,null,null,{"$f":"ADDRESS(51,12,1,1,$S$1)","v":"'Geographic Diversification'!$L$51"},"='Schedule IIIA'!H21",0]
[null,null,null,null,null,null,null,null,null,null,null,null,null,null,null,null,null,null,{"$f":"ADDRESS(51,13,1,1,$S$1)","v":"'Geographic Diversification'!$M$51"},"='Schedule IIIA'!I21",0]
[null,null,null,null,null,null,null,null,null,null,null,null,null,null,null,null,null,null,{"$f":"ADDRESS(51,14,1,1,$S$1)","v":"'Geographic Diversification'!$N$51"},"='Schedule IIIA'!J21",0]
[null,null,null,null,null,null,null,null,null,null,null,null,null,null,null,null,null,null,{"$f":"ADDRESS(51,15,1,1,$S$1)","v":"'Geographic Diversification'!$O$51"},"='Schedule IIIA'!K21",0]
[null,null,null,null,null,null,null,null,null,null,null,null,null,null,null,null,null,null,{"$f":"ADDRESS(51,16,1,1,$S$1)","v":"'Geographic Diversification'!$P$51"},"='Schedule IIIA'!L21",0]
[null,null,null,null,null,null,null,null,null,null,null,null,null,null,null,null,null,null,{"$f":"ADDRESS(51,17,1,1,$S$1)","v":"'Geographic Diversification'!$Q$51"},"='Schedule IIIA'!M21",0]
[null,null,null,null,null,null,null,null,null,null,null,null,null,null,null,null,null,null,{"$f":"ADDRESS(51,18,1,1,$S$1)","v":"'Geographic Diversification'!$R$51"},"='Schedule IIIA'!N21",0]
[null,null,null,null,null,null,null,null,null,null,null,null,null,null,null,null,null,null,{"$f":"ADDRESS(51,19,1,1,$S$1)","v":"'Geographic Diversification'!$S$51"},"='Schedule IIIA'!O21",0]
[null,null,null,null,null,null,null,null,null,null,null,null,null,null,null,null,null,null,{"$f":"ADDRESS(51,20,1,1,$S$1)","v":"'Geographic Diversification'!$T$51"},"='Schedule IIIA'!P21",0]
[null,null,null,null,null,null,null,null,null,null,null,null,null,null,null,null,null,null,{"$f":"ADDRESS(51,21,1,1,$S$1)","v":"'Geographic Diversification'!$U$51"},"='Schedule IIIA'!Q21",0]
[null,null,null,null,null,null,null,null,null,null,null,null,null,null,null,null,null,null,{"$f":"ADDRESS(51,22,1,1,$S$1)","v":"'Geographic Diversification'!$V$51"},"='Schedule IIIA'!R21",0]
[null,null,null,null,null,null,null,null,null,null,null,null,null,null,null,null,null,null,{"$f":"ADDRESS(51,23,1,1,$S$1)","v":"'Geographic Diversification'!$W$51"},"='Schedule IIIA'!S21",0]
[null,null,null,null,null,null,null,null,null,null,null,null,null,null,null,null,null,null,{"$f":"ADDRESS(51,24,1,1,$S$1)","v":"'Geographic Diversification'!$X$51"},"='Schedule IIIA'!T21",0]
[null,null,null,null,null,null,null,null,null,null,null,null,null,null,null,null,null,null,{"$f":"ADDRESS(51,25,1,1,$S$1)","v":"'Geographic Diversification'!$Y$51"},"='Schedule IIIA'!U21",0]
[null,null,null,null,null,null,null,null,null,null,null,null,null,null,null,null,null,null,{"$f":"ADDRESS(51,26,1,1,$S$1)","v":"'Geographic Diversification'!$Z$51"},"='Schedule IIIA'!V21",0]
[null,null,null,null,null,null,null,null,null,null,null,null,null,null,null,null,null,null,{"$f":"ADDRESS(52,4,1,1,$S$1)","v":"'Geographic Diversification'!$D$52"},"=SUM(I52:Z52)",0]
[null,null,null,null,null,null,null,null,null,null,null,null,null,null,null,null,null,null,{"$f":"ADDRESS(52,5,1,1,$S$1)","v":"'Geographic Diversification'!$E$52"},"=SUMSQ(I52:Z52)",0]
[null,null,null,null,null,null,null,null,null,null,null,null,null,null,null,null,null,null,{"$f":"ADDRESS(52,6,1,1,$S$1)","v":"'Geographic Diversification'!$F$52"},"=(IF(D52>0,E52/D52^2,1))",0]
[null,null,null,null,null,null,null,null,null,null,null,null,null,null,null,null,null,null,{"$f":"ADDRESS(52,7,1,1,$S$1)","v":"'Geographic Diversification'!$G$52"},"=D52*(0.75+0.25*F52)",0]
[null,null,null,null,null,null,null,null,null,null,null,null,null,null,null,null,null,null,{"$f":"ADDRESS(52,8,1,1,$S$1)","v":"'Geographic Diversification'!$H$52"},"=IF('Schedule IIIA'!AB22=\"TRUE\",G52,'Schedule III'!F22)",0]
[null,null,null,null,null,null,null,null,null,null,null,null,null,null,null,null,null,null,{"$f":"ADDRESS(52,9,1,1,$S$1)","v":"'Geographic Diversification'!$I$52"},"='Schedule IIIA'!E22",0]
[null,null,null,null,null,null,null,null,null,null,null,null,null,null,null,null,null,null,{"$f":"ADDRESS(52,10,1,1,$S$1)","v":"'Geographic Diversification'!$J$52"},"='Schedule IIIA'!F22",0]
[null,null,null,null,null,null,null,null,null,null,null,null,null,null,null,null,null,null,{"$f":"ADDRESS(52,11,1,1,$S$1)","v":"'Geographic Diversification'!$K$52"},"='Schedule IIIA'!G22",0]
[null,null,null,null,null,null,null,null,null,null,null,null,null,null,null,null,null,null,{"$f":"ADDRESS(52,12,1,1,$S$1)","v":"'Geographic Diversification'!$L$52"},"='Schedule IIIA'!H22",0]
[null,null,null,null,null,null,null,null,null,null,null,null,null,null,null,null,null,null,{"$f":"ADDRESS(52,13,1,1,$S$1)","v":"'Geographic Diversification'!$M$52"},"='Schedule IIIA'!I22",0]
[null,null,null,null,null,null,null,null,null,null,null,null,null,null,null,null,null,null,{"$f":"ADDRESS(52,14,1,1,$S$1)","v":"'Geographic Diversification'!$N$52"},"='Schedule IIIA'!J22",0]
[null,null,null,null,null,null,null,null,null,null,null,null,null,null,null,null,null,null,{"$f":"ADDRESS(52,15,1,1,$S$1)","v":"'Geographic Diversification'!$O$52"},"='Schedule IIIA'!K22",0]
[null,null,null,null,null,null,null,null,null,null,null,null,null,null,null,null,null,null,{"$f":"ADDRESS(52,16,1,1,$S$1)","v":"'Geographic Diversification'!$P$52"},"='Schedule IIIA'!L22",0]
[null,null,null,null,null,null,null,null,null,null,null,null,null,null,null,null,null,null,{"$f":"ADDRESS(52,17,1,1,$S$1)","v":"'Geographic Diversification'!$Q$52"},"='Schedule IIIA'!M22",0]
[null,null,null,null,null,null,null,null,null,null,null,null,null,null,null,null,null,null,{"$f":"ADDRESS(52,18,1,1,$S$1)","v":"'Geographic Diversification'!$R$52"},"='Schedule IIIA'!N22",0]
[null,null,null,null,null,null,null,null,null,null,null,null,null,null,null,null,null,null,{"$f":"ADDRESS(52,19,1,1,$S$1)","v":"'Geographic Diversification'!$S$52"},"='Schedule IIIA'!O22",0]
[null,null,null,null,null,null,null,null,null,null,null,null,null,null,null,null,null,null,{"$f":"ADDRESS(52,20,1,1,$S$1)","v":"'Geographic Diversification'!$T$52"},"='Schedule IIIA'!P22",0]
[null,null,null,null,null,null,null,null,null,null,null,null,null,null,null,null,null,null,{"$f":"ADDRESS(52,21,1,1,$S$1)","v":"'Geographic Diversification'!$U$52"},"='Schedule IIIA'!Q22",0]
[null,null,null,null,null,null,null,null,null,null,null,null,null,null,null,null,null,null,{"$f":"ADDRESS(52,22,1,1,$S$1)","v":"'Geographic Diversification'!$V$52"},"='Schedule IIIA'!R22",0]
[null,null,null,null,null,null,null,null,null,null,null,null,null,null,null,null,null,null,{"$f":"ADDRESS(52,23,1,1,$S$1)","v":"'Geographic Diversification'!$W$52"},"='Schedule IIIA'!S22",0]
[null,null,null,null,null,null,null,null,null,null,null,null,null,null,null,null,null,null,{"$f":"ADDRESS(52,24,1,1,$S$1)","v":"'Geographic Diversification'!$X$52"},"='Schedule IIIA'!T22",0]
[null,null,null,null,null,null,null,null,null,null,null,null,null,null,null,null,null,null,{"$f":"ADDRESS(52,25,1,1,$S$1)","v":"'Geographic Diversification'!$Y$52"},"='Schedule IIIA'!U22",0]
[null,null,null,null,null,null,null,null,null,null,null,null,null,null,null,null,null,null,{"$f":"ADDRESS(52,26,1,1,$S$1)","v":"'Geographic Diversification'!$Z$52"},"='Schedule IIIA'!V22",0]
[null,null,null,null,null,null,null,null,null,null,null,null,null,null,null,null,null,null,{"$f":"ADDRESS(53,4,1,1,$S$1)","v":"'Geographic Diversification'!$D$53"},"=SUM(I53:Z53)",0]
[null,null,null,null,null,null,null,null,null,null,null,null,null,null,null,null,null,null,{"$f":"ADDRESS(53,5,1,1,$S$1)","v":"'Geographic Diversification'!$E$53"},"=SUMSQ(I53:Z53)",0]
[null,null,null,null,null,null,null,null,null,null,null,null,null,null,null,null,null,null,{"$f":"ADDRESS(53,6,1,1,$S$1)","v":"'Geographic Diversification'!$F$53"},"=(IF(D53>0,E53/D53^2,1))",0]
[null,null,null,null,null,null,null,null,null,null,null,null,null,null,null,null,null,null,{"$f":"ADDRESS(53,7,1,1,$S$1)","v":"'Geographic Diversification'!$G$53"},"=D53*(0.75+0.25*F53)",0]
[null,null,null,null,null,null,null,null,null,null,null,null,null,null,null,null,null,null,{"$f":"ADDRESS(53,8,1,1,$S$1)","v":"'Geographic Diversification'!$H$53"},"=IF('Schedule IIIA'!AB23=\"TRUE\",G53,'Schedule III'!F23)",0]
[null,null,null,null,null,null,null,null,null,null,null,null,null,null,null,null,null,null,{"$f":"ADDRESS(53,9,1,1,$S$1)","v":"'Geographic Diversification'!$I$53"},"='Schedule IIIA'!E23",0]
[null,null,null,null,null,null,null,null,null,null,null,null,null,null,null,null,null,null,{"$f":"ADDRESS(53,10,1,1,$S$1)","v":"'Geographic Diversification'!$J$53"},"='Schedule IIIA'!F23",0]
[null,null,null,null,null,null,null,null,null,null,null,null,null,null,null,null,null,null,{"$f":"ADDRESS(53,11,1,1,$S$1)","v":"'Geographic Diversification'!$K$53"},"='Schedule IIIA'!G23",0]
[null,null,null,null,null,null,null,null,null,null,null,null,null,null,null,null,null,null,{"$f":"ADDRESS(53,12,1,1,$S$1)","v":"'Geographic Diversification'!$L$53"},"='Schedule IIIA'!H23",0]
[null,null,null,null,null,null,null,null,null,null,null,null,null,null,null,null,null,null,{"$f":"ADDRESS(53,13,1,1,$S$1)","v":"'Geographic Diversification'!$M$53"},"='Schedule IIIA'!I23",0]
[null,null,null,null,null,null,null,null,null,null,null,null,null,null,null,null,null,null,{"$f":"ADDRESS(53,14,1,1,$S$1)","v":"'Geographic Diversification'!$N$53"},"='Schedule IIIA'!J23",0]
[null,null,null,null,null,null,null,null,null,null,null,null,null,null,null,null,null,null,{"$f":"ADDRESS(53,15,1,1,$S$1)","v":"'Geographic Diversification'!$O$53"},"='Schedule IIIA'!K23",0]
[null,null,null,null,null,null,null,null,null,null,null,null,null,null,null,null,null,null,{"$f":"ADDRESS(53,16,1,1,$S$1)","v":"'Geographic Diversification'!$P$53"},"='Schedule IIIA'!L23",0]
[null,null,null,null,null,null,null,null,null,null,null,null,null,null,null,null,null,null,{"$f":"ADDRESS(53,17,1,1,$S$1)","v":"'Geographic Diversification'!$Q$53"},"='Schedule IIIA'!M23",0]
[null,null,null,null,null,null,null,null,null,null,null,null,null,null,null,null,null,null,{"$f":"ADDRESS(53,18,1,1,$S$1)","v":"'Geographic Diversification'!$R$53"},"='Schedule IIIA'!N23",0]
[null,null,null,null,null,null,null,null,null,null,null,null,null,null,null,null,null,null,{"$f":"ADDRESS(53,19,1,1,$S$1)","v":"'Geographic Diversification'!$S$53"},"='Schedule IIIA'!O23",0]
[null,null,null,null,null,null,null,null,null,null,null,null,null,null,null,null,null,null,{"$f":"ADDRESS(53,20,1,1,$S$1)","v":"'Geographic Diversification'!$T$53"},"='Schedule IIIA'!P23",0]
[null,null,null,null,null,null,null,null,null,null,null,null,null,null,null,null,null,null,{"$f":"ADDRESS(53,21,1,1,$S$1)","v":"'Geographic Diversification'!$U$53"},"='Schedule IIIA'!Q23",0]
[null,null,null,null,null,null,null,null,null,null,null,null,null,null,null,null,null,null,{"$f":"ADDRESS(53,22,1,1,$S$1)","v":"'Geographic Diversification'!$V$53"},"='Schedule IIIA'!R23",0]
[null,null,null,null,null,null,null,null,null,null,null,null,null,null,null,null,null,null,{"$f":"ADDRESS(53,23,1,1,$S$1)","v":"'Geographic Diversification'!$W$53"},"='Schedule IIIA'!S23",0]
[null,null,null,null,null,null,null,null,null,null,null,null,null,null,null,null,null,null,{"$f":"ADDRESS(53,24,1,1,$S$1)","v":"'Geographic Diversification'!$X$53"},"='Schedule IIIA'!T23",{"$f":"IF(_xlfn.FORMULATEXT(INDIRECT(S900))=T900,0,1)","v":0}]
[null,null,null,null,null,null,null,null,null,null,null,null,null,null,null,null,null,null,{"$f":"ADDRESS(53,25,1,1,$S$1)","v":"'Geographic Diversification'!$Y$53"},"='Schedule IIIA'!U23",0]
[null,null,null,null,null,null,null,null,null,null,null,null,null,null,null,null,null,null,{"$f":"ADDRESS(53,26,1,1,$S$1)","v":"'Geographic Diversification'!$Z$53"},"='Schedule IIIA'!V23",0]
[null,null,null,null,null,null,null,null,null,null,null,null,null,null,null,null,null,null,{"$f":"ADDRESS(54,4,1,1,$S$1)","v":"'Geographic Diversification'!$D$54"},"=SUM(I54:Z54)",0]
[null,null,null,null,null,null,null,null,null,null,null,null,null,null,null,null,null,null,{"$f":"ADDRESS(54,5,1,1,$S$1)","v":"'Geographic Diversification'!$E$54"},"=SUMSQ(I54:Z54)",0]
[null,null,null,null,null,null,null,null,null,null,null,null,null,null,null,null,null,null,{"$f":"ADDRESS(54,6,1,1,$S$1)","v":"'Geographic Diversification'!$F$54"},"=(IF(D54>0,E54/D54^2,1))",0]
[null,null,null,null,null,null,null,null,null,null,null,null,null,null,null,null,null,null,{"$f":"ADDRESS(54,7,1,1,$S$1)","v":"'Geographic Diversification'!$G$54"},"=D54*(0.75+0.25*F54)",0]
[null,null,null,null,null,null,null,null,null,null,null,null,null,null,null,null,null,null,{"$f":"ADDRESS(54,8,1,1,$S$1)","v":"'Geographic Diversification'!$H$54"},"=IF('Schedule IIIA'!AB24=\"TRUE\",G54,'Schedule III'!F24)",0]
[null,null,null,null,null,null,null,null,null,null,null,null,null,null,null,null,null,null,{"$f":"ADDRESS(54,9,1,1,$S$1)","v":"'Geographic Diversification'!$I$54"},"='Schedule IIIA'!E24",0]
[null,null,null,null,null,null,null,null,null,null,null,null,null,null,null,null,null,null,{"$f":"ADDRESS(54,10,1,1,$S$1)","v":"'Geographic Diversification'!$J$54"},"='Schedule IIIA'!F24",0]
[null,null,null,null,null,null,null,null,null,null,null,null,null,null,null,null,null,null,{"$f":"ADDRESS(54,11,1,1,$S$1)","v":"'Geographic Diversification'!$K$54"},"='Schedule IIIA'!G24",0]
[null,null,null,null,null,null,null,null,null,null,null,null,null,null,null,null,null,null,{"$f":"ADDRESS(54,12,1,1,$S$1)","v":"'Geographic Diversification'!$L$54"},"='Schedule IIIA'!H24",0]
[null,null,null,null,null,null,null,null,null,null,null,null,null,null,null,null,null,null,{"$f":"ADDRESS(54,13,1,1,$S$1)","v":"'Geographic Diversification'!$M$54"},"='Schedule IIIA'!I24",0]
[null,null,null,null,null,null,null,null,null,null,null,null,null,null,null,null,null,null,{"$f":"ADDRESS(54,14,1,1,$S$1)","v":"'Geographic Diversification'!$N$54"},"='Schedule IIIA'!J24",0]
[null,null,null,null,null,null,null,null,null,null,null,null,null,null,null,null,null,null,{"$f":"ADDRESS(54,15,1,1,$S$1)","v":"'Geographic Diversification'!$O$54"},"='Schedule IIIA'!K24",0]
[null,null,null,null,null,null,null,null,null,null,null,null,null,null,null,null,null,null,{"$f":"ADDRESS(54,16,1,1,$S$1)","v":"'Geographic Diversification'!$P$54"},"='Schedule IIIA'!L24",0]
[null,null,null,null,null,null,null,null,null,null,null,null,null,null,null,null,null,null,{"$f":"ADDRESS(54,17,1,1,$S$1)","v":"'Geographic Diversification'!$Q$54"},"='Schedule IIIA'!M24",0]
[null,null,null,null,null,null,null,null,null,null,null,null,null,null,null,null,null,null,{"$f":"ADDRESS(54,18,1,1,$S$1)","v":"'Geographic Diversification'!$R$54"},"='Schedule IIIA'!N24",0]
[null,null,null,null,null,null,null,null,null,null,null,null,null,null,null,null,null,null,{"$f":"ADDRESS(54,19,1,1,$S$1)","v":"'Geographic Diversification'!$S$54"},"='Schedule IIIA'!O24",0]
[null,null,null,null,null,null,null,null,null,null,null,null,null,null,null,null,null,null,{"$f":"ADDRESS(54,20,1,1,$S$1)","v":"'Geographic Diversification'!$T$54"},"='Schedule IIIA'!P24",0]
[null,null,null,null,null,null,null,null,null,null,null,null,null,null,null,null,null,null,{"$f":"ADDRESS(54,21,1,1,$S$1)","v":"'Geographic Diversification'!$U$54"},"='Schedule IIIA'!Q24",0]
[null,null,null,null,null,null,null,null,null,null,null,null,null,null,null,null,null,null,{"$f":"ADDRESS(54,22,1,1,$S$1)","v":"'Geographic Diversification'!$V$54"},"='Schedule IIIA'!R24",0]
[null,null,null,null,null,null,null,null,null,null,null,null,null,null,null,null,null,null,{"$f":"ADDRESS(54,23,1,1,$S$1)","v":"'Geographic Diversification'!$W$54"},"='Schedule IIIA'!S24",0]
[null,null,null,null,null,null,null,null,null,null,null,null,null,null,null,null,null,null,{"$f":"ADDRESS(54,24,1,1,$S$1)","v":"'Geographic Diversification'!$X$54"},"='Schedule IIIA'!T24",0]
[null,null,null,null,null,null,null,null,null,null,null,null,null,null,null,null,null,null,{"$f":"ADDRESS(54,25,1,1,$S$1)","v":"'Geographic Diversification'!$Y$54"},"='Schedule IIIA'!U24",0]
[null,null,null,null,null,null,null,null,null,null,null,null,null,null,null,null,null,null,{"$f":"ADDRESS(54,26,1,1,$S$1)","v":"'Geographic Diversification'!$Z$54"},"='Schedule IIIA'!V24",0]
[null,null,null,null,null,null,null,null,null,null,null,null,null,null,null,null,null,null,{"$f":"ADDRESS(55,4,1,1,$S$1)","v":"'Geographic Diversification'!$D$55"},"=SUM(I55:Z55)",0]
[null,null,null,null,null,null,null,null,null,null,null,null,null,null,null,null,null,null,{"$f":"ADDRESS(55,5,1,1,$S$1)","v":"'Geographic Diversification'!$E$55"},"=SUMSQ(I55:Z55)",0]
[null,null,null,null,null,null,null,null,null,null,null,null,null,null,null,null,null,null,{"$f":"ADDRESS(55,6,1,1,$S$1)","v":"'Geographic Diversification'!$F$55"},"=(IF(D55>0,E55/D55^2,1))",0]
[null,null,null,null,null,null,null,null,null,null,null,null,null,null,null,null,null,null,{"$f":"ADDRESS(55,7,1,1,$S$1)","v":"'Geographic Diversification'!$G$55"},"=D55*(0.75+0.25*F55)",0]
[null,null,null,null,null,null,null,null,null,null,null,null,null,null,null,null,null,null,{"$f":"ADDRESS(55,8,1,1,$S$1)","v":"'Geographic Diversification'!$H$55"},"=IF('Schedule IIIA'!AB25=\"TRUE\",G55,'Schedule III'!F25)",0]
[null,null,null,null,null,null,null,null,null,null,null,null,null,null,null,null,null,null,{"$f":"ADDRESS(55,9,1,1,$S$1)","v":"'Geographic Diversification'!$I$55"},"='Schedule IIIA'!E25",0]
[null,null,null,null,null,null,null,null,null,null,null,null,null,null,null,null,null,null,{"$f":"ADDRESS(55,10,1,1,$S$1)","v":"'Geographic Diversification'!$J$55"},"='Schedule IIIA'!F25",0]
[null,null,null,null,null,null,null,null,null,null,null,null,null,null,null,null,null,null,{"$f":"ADDRESS(55,11,1,1,$S$1)","v":"'Geographic Diversification'!$K$55"},"='Schedule IIIA'!G25",0]
[null,null,null,null,null,null,null,null,null,null,null,null,null,null,null,null,null,null,{"$f":"ADDRESS(55,12,1,1,$S$1)","v":"'Geographic Diversification'!$L$55"},"='Schedule IIIA'!H25",0]
[null,null,null,null,null,null,null,null,null,null,null,null,null,null,null,null,null,null,{"$f":"ADDRESS(55,13,1,1,$S$1)","v":"'Geographic Diversification'!$M$55"},"='Schedule IIIA'!I25",0]
[null,null,null,null,null,null,null,null,null,null,null,null,null,null,null,null,null,null,{"$f":"ADDRESS(55,14,1,1,$S$1)","v":"'Geographic Diversification'!$N$55"},"='Schedule IIIA'!J25",0]
[null,null,null,null,null,null,null,null,null,null,null,null,null,null,null,null,null,null,{"$f":"ADDRESS(55,15,1,1,$S$1)","v":"'Geographic Diversification'!$O$55"},"='Schedule IIIA'!K25",0]
[null,null,null,null,null,null,null,null,null,null,null,null,null,null,null,null,null,null,{"$f":"ADDRESS(55,16,1,1,$S$1)","v":"'Geographic Diversification'!$P$55"},"='Schedule IIIA'!L25",0]
[null,null,null,null,null,null,null,null,null,null,null,null,null,null,null,null,null,null,{"$f":"ADDRESS(55,17,1,1,$S$1)","v":"'Geographic Diversification'!$Q$55"},"='Schedule IIIA'!M25",0]
[null,null,null,null,null,null,null,null,null,null,null,null,null,null,null,null,null,null,{"$f":"ADDRESS(55,18,1,1,$S$1)","v":"'Geographic Diversification'!$R$55"},"='Schedule IIIA'!N25",0]
[null,null,null,null,null,null,null,null,null,null,null,null,null,null,null,null,null,null,{"$f":"ADDRESS(55,19,1,1,$S$1)","v":"'Geographic Diversification'!$S$55"},"='Schedule IIIA'!O25",0]
[null,null,null,null,null,null,null,null,null,null,null,null,null,null,null,null,null,null,{"$f":"ADDRESS(55,20,1,1,$S$1)","v":"'Geographic Diversification'!$T$55"},"='Schedule IIIA'!P25",0]
[null,null,null,null,null,null,null,null,null,null,null,null,null,null,null,null,null,null,{"$f":"ADDRESS(55,21,1,1,$S$1)","v":"'Geographic Diversification'!$U$55"},"='Schedule IIIA'!Q25",0]
[null,null,null,null,null,null,null,null,null,null,null,null,null,null,null,null,null,null,{"$f":"ADDRESS(55,22,1,1,$S$1)","v":"'Geographic Diversification'!$V$55"},"='Schedule IIIA'!R25",0]
[null,null,null,null,null,null,null,null,null,null,null,null,null,null,null,null,null,null,{"$f":"ADDRESS(55,23,1,1,$S$1)","v":"'Geographic Diversification'!$W$55"},"='Schedule IIIA'!S25",0]
[null,null,null,null,null,null,null,null,null,null,null,null,null,null,null,null,null,null,{"$f":"ADDRESS(55,24,1,1,$S$1)","v":"'Geographic Diversification'!$X$55"},"='Schedule IIIA'!T25",0]
[null,null,null,null,null,null,null,null,null,null,null,null,null,null,null,null,null,null,{"$f":"ADDRESS(55,25,1,1,$S$1)","v":"'Geographic Diversification'!$Y$55"},"='Schedule IIIA'!U25",0]
[null,null,null,null,null,null,null,null,null,null,null,null,null,null,null,null,null,null,{"$f":"ADDRESS(55,26,1,1,$S$1)","v":"'Geographic Diversification'!$Z$55"},"='Schedule IIIA'!V25",0]
[null,null,null,null,null,null,null,null,null,null,null,null,null,null,null,null,null,null,{"$f":"ADDRESS(56,4,1,1,$S$1)","v":"'Geographic Diversification'!$D$56"},"=SUM(I56:Z56)",0]
[null,null,null,null,null,null,null,null,null,null,null,null,null,null,null,null,null,null,{"$f":"ADDRESS(56,5,1,1,$S$1)","v":"'Geographic Diversification'!$E$56"},"=SUMSQ(I56:Z56)",0]
[null,null,null,null,null,null,null,null,null,null,null,null,null,null,null,null,null,null,{"$f":"ADDRESS(56,6,1,1,$S$1)","v":"'Geographic Diversification'!$F$56"},"=(IF(D56>0,E56/D56^2,1))",0]
[null,null,null,null,null,null,null,null,null,null,null,null,null,null,null,null,null,null,{"$f":"ADDRESS(56,7,1,1,$S$1)","v":"'Geographic Diversification'!$G$56"},"=D56*(0.75+0.25*F56)",0]
[null,null,null,null,null,null,null,null,null,null,null,null,null,null,null,null,null,null,{"$f":"ADDRESS(56,8,1,1,$S$1)","v":"'Geographic Diversification'!$H$56"},"=IF('Schedule IIIA'!AB26=\"TRUE\",G56,'Schedule III'!F26)",0]
[null,null,null,null,null,null,null,null,null,null,null,null,null,null,null,null,null,null,{"$f":"ADDRESS(56,9,1,1,$S$1)","v":"'Geographic Diversification'!$I$56"},"='Schedule IIIA'!E26",0]
[null,null,null,null,null,null,null,null,null,null,null,null,null,null,null,null,null,null,{"$f":"ADDRESS(56,10,1,1,$S$1)","v":"'Geographic Diversification'!$J$56"},"='Schedule IIIA'!F26",0]
[null,null,null,null,null,null,null,null,null,null,null,null,null,null,null,null,null,null,{"$f":"ADDRESS(56,11,1,1,$S$1)","v":"'Geographic Diversification'!$K$56"},"='Schedule IIIA'!G26",0]
[null,null,null,null,null,null,null,null,null,null,null,null,null,null,null,null,null,null,{"$f":"ADDRESS(56,12,1,1,$S$1)","v":"'Geographic Diversification'!$L$56"},"='Schedule IIIA'!H26",0]
[null,null,null,null,null,null,null,null,null,null,null,null,null,null,null,null,null,null,{"$f":"ADDRESS(56,13,1,1,$S$1)","v":"'Geographic Diversification'!$M$56"},"='Schedule IIIA'!I26",0]
[null,null,null,null,null,null,null,null,null,null,null,null,null,null,null,null,null,null,{"$f":"ADDRESS(56,14,1,1,$S$1)","v":"'Geographic Diversification'!$N$56"},"='Schedule IIIA'!J26",0]
[null,null,null,null,null,null,null,null,null,null,null,null,null,null,null,null,null,null,{"$f":"ADDRESS(56,15,1,1,$S$1)","v":"'Geographic Diversification'!$O$56"},"='Schedule IIIA'!K26",0]
[null,null,null,null,null,null,null,null,null,null,null,null,null,null,null,null,null,null,{"$f":"ADDRESS(56,16,1,1,$S$1)","v":"'Geographic Diversification'!$P$56"},"='Schedule IIIA'!L26",0]
[null,null,null,null,null,null,null,null,null,null,null,null,null,null,null,null,null,null,{"$f":"ADDRESS(56,17,1,1,$S$1)","v":"'Geographic Diversification'!$Q$56"},"='Schedule IIIA'!M26",0]
[null,null,null,null,null,null,null,null,null,null,null,null,null,null,null,null,null,null,{"$f":"ADDRESS(56,18,1,1,$S$1)","v":"'Geographic Diversification'!$R$56"},"='Schedule IIIA'!N26",0]
[null,null,null,null,null,null,null,null,null,null,null,null,null,null,null,null,null,null,{"$f":"ADDRESS(56,19,1,1,$S$1)","v":"'Geographic Diversification'!$S$56"},"='Schedule IIIA'!O26",{"$f":"IF(_xlfn.FORMULATEXT(INDIRECT(S964))=T964,0,1)","v":0}]
[null,null,null,null,null,null,null,null,null,null,null,null,null,null,null,null,null,null,{"$f":"ADDRESS(56,20,1,1,$S$1)","v":"'Geographic Diversification'!$T$56"},"='Schedule IIIA'!P26",0]
[null,null,null,null,null,null,null,null,null,null,null,null,null,null,null,null,null,null,{"$f":"ADDRESS(56,21,1,1,$S$1)","v":"'Geographic Diversification'!$U$56"},"='Schedule IIIA'!Q26",0]
[null,null,null,null,null,null,null,null,null,null,null,null,null,null,null,null,null,null,{"$f":"ADDRESS(56,22,1,1,$S$1)","v":"'Geographic Diversification'!$V$56"},"='Schedule IIIA'!R26",0]
[null,null,null,null,null,null,null,null,null,null,null,null,null,null,null,null,null,null,{"$f":"ADDRESS(56,23,1,1,$S$1)","v":"'Geographic Diversification'!$W$56"},"='Schedule IIIA'!S26",0]
[null,null,null,null,null,null,null,null,null,null,null,null,null,null,null,null,null,null,{"$f":"ADDRESS(56,24,1,1,$S$1)","v":"'Geographic Diversification'!$X$56"},"='Schedule IIIA'!T26",0]
[null,null,null,null,null,null,null,null,null,null,null,null,null,null,null,null,null,null,{"$f":"ADDRESS(56,25,1,1,$S$1)","v":"'Geographic Diversification'!$Y$56"},"='Schedule IIIA'!U26",0]
[null,null,null,null,null,null,null,null,null,null,null,null,null,null,null,null,null,null,{"$f":"ADDRESS(56,26,1,1,$S$1)","v":"'Geographic Diversification'!$Z$56"},"='Schedule IIIA'!V26",0]
[null,null,null,null,null,null,null,null,null,null,null,null,null,null,null,null,null,null,{"$f":"ADDRESS(57,4,1,1,$S$1)","v":"'Geographic Diversification'!$D$57"},"=SUM(I57:Z57)",0]
[null,null,null,null,null,null,null,null,null,null,null,null,null,null,null,null,null,null,{"$f":"ADDRESS(57,5,1,1,$S$1)","v":"'Geographic Diversification'!$E$57"},"=SUMSQ(I57:Z57)",0]
[null,null,null,null,null,null,null,null,null,null,null,null,null,null,null,null,null,null,{"$f":"ADDRESS(57,6,1,1,$S$1)","v":"'Geographic Diversification'!$F$57"},"=(IF(D57>0,E57/D57^2,1))",0]
[null,null,null,null,null,null,null,null,null,null,null,null,null,null,null,null,null,null,{"$f":"ADDRESS(57,7,1,1,$S$1)","v":"'Geographic Diversification'!$G$57"},"=D57*(0.75+0.25*F57)",0]
[null,null,null,null,null,null,null,null,null,null,null,null,null,null,null,null,null,null,{"$f":"ADDRESS(57,8,1,1,$S$1)","v":"'Geographic Diversification'!$H$57"},"=IF('Schedule IIIA'!AB27=\"TRUE\",G57,'Schedule III'!F27)",0]
[null,null,null,null,null,null,null,null,null,null,null,null,null,null,null,null,null,null,{"$f":"ADDRESS(57,9,1,1,$S$1)","v":"'Geographic Diversification'!$I$57"},"='Schedule IIIA'!E27",0]
[null,null,null,null,null,null,null,null,null,null,null,null,null,null,null,null,null,null,{"$f":"ADDRESS(57,10,1,1,$S$1)","v":"'Geographic Diversification'!$J$57"},"='Schedule IIIA'!F27",0]
[null,null,null,null,null,null,null,null,null,null,null,null,null,null,null,null,null,null,{"$f":"ADDRESS(57,11,1,1,$S$1)","v":"'Geographic Diversification'!$K$57"},"='Schedule IIIA'!G27",0]
[null,null,null,null,null,null,null,null,null,null,null,null,null,null,null,null,null,null,{"$f":"ADDRESS(57,12,1,1,$S$1)","v":"'Geographic Diversification'!$L$57"},"='Schedule IIIA'!H27",0]
[null,null,null,null,null,null,null,null,null,null,null,null,null,null,null,null,null,null,{"$f":"ADDRESS(57,13,1,1,$S$1)","v":"'Geographic Diversification'!$M$57"},"='Schedule IIIA'!I27",0]
[null,null,null,null,null,null,null,null,null,null,null,null,null,null,null,null,null,null,{"$f":"ADDRESS(57,14,1,1,$S$1)","v":"'Geographic Diversification'!$N$57"},"='Schedule IIIA'!J27",0]
[null,null,null,null,null,null,null,null,null,null,null,null,null,null,null,null,null,null,{"$f":"ADDRESS(57,15,1,1,$S$1)","v":"'Geographic Diversification'!$O$57"},"='Schedule IIIA'!K27",0]
[null,null,null,null,null,null,null,null,null,null,null,null,null,null,null,null,null,null,{"$f":"ADDRESS(57,16,1,1,$S$1)","v":"'Geographic Diversification'!$P$57"},"='Schedule IIIA'!L27",0]
[null,null,null,null,null,null,null,null,null,null,null,null,null,null,null,null,null,null,{"$f":"ADDRESS(57,17,1,1,$S$1)","v":"'Geographic Diversification'!$Q$57"},"='Schedule IIIA'!M27",0]
[null,null,null,null,null,null,null,null,null,null,null,null,null,null,null,null,null,null,{"$f":"ADDRESS(57,18,1,1,$S$1)","v":"'Geographic Diversification'!$R$57"},"='Schedule IIIA'!N27",0]
[null,null,null,null,null,null,null,null,null,null,null,null,null,null,null,null,null,null,{"$f":"ADDRESS(57,19,1,1,$S$1)","v":"'Geographic Diversification'!$S$57"},"='Schedule IIIA'!O27",0]
[null,null,null,null,null,null,null,null,null,null,null,null,null,null,null,null,null,null,{"$f":"ADDRESS(57,20,1,1,$S$1)","v":"'Geographic Diversification'!$T$57"},"='Schedule IIIA'!P27",0]
[null,null,null,null,null,null,null,null,null,null,null,null,null,null,null,null,null,null,{"$f":"ADDRESS(57,21,1,1,$S$1)","v":"'Geographic Diversification'!$U$57"},"='Schedule IIIA'!Q27",0]
[null,null,null,null,null,null,null,null,null,null,null,null,null,null,null,null,null,null,{"$f":"ADDRESS(57,22,1,1,$S$1)","v":"'Geographic Diversification'!$V$57"},"='Schedule IIIA'!R27",0]
[null,null,null,null,null,null,null,null,null,null,null,null,null,null,null,null,null,null,{"$f":"ADDRESS(57,23,1,1,$S$1)","v":"'Geographic Diversification'!$W$57"},"='Schedule IIIA'!S27",0]
[null,null,null,null,null,null,null,null,null,null,null,null,null,null,null,null,null,null,{"$f":"ADDRESS(57,24,1,1,$S$1)","v":"'Geographic Diversification'!$X$57"},"='Schedule IIIA'!T27",0]
[null,null,null,null,null,null,null,null,null,null,null,null,null,null,null,null,null,null,{"$f":"ADDRESS(57,25,1,1,$S$1)","v":"'Geographic Diversification'!$Y$57"},"='Schedule IIIA'!U27",0]
[null,null,null,null,null,null,null,null,null,null,null,null,null,null,null,null,null,null,{"$f":"ADDRESS(57,26,1,1,$S$1)","v":"'Geographic Diversification'!$Z$57"},"='Schedule IIIA'!V27",0]
[null,null,null,null,null,null,null,null,null,null,null,null,null,null,null,null,null,null,{"$f":"ADDRESS(58,4,1,1,$S$1)","v":"'Geographic Diversification'!$D$58"},"=SUM(I58:Z58)",0]
[null,null,null,null,null,null,null,null,null,null,null,null,null,null,null,null,null,null,{"$f":"ADDRESS(58,5,1,1,$S$1)","v":"'Geographic Diversification'!$E$58"},"=SUMSQ(I58:Z58)",0]
[null,null,null,null,null,null,null,null,null,null,null,null,null,null,null,null,null,null,{"$f":"ADDRESS(58,6,1,1,$S$1)","v":"'Geographic Diversification'!$F$58"},"=(IF(D58>0,E58/D58^2,1))",0]
[null,null,null,null,null,null,null,null,null,null,null,null,null,null,null,null,null,null,{"$f":"ADDRESS(58,7,1,1,$S$1)","v":"'Geographic Diversification'!$G$58"},"=D58*(0.75+0.25*F58)",0]
[null,null,null,null,null,null,null,null,null,null,null,null,null,null,null,null,null,null,{"$f":"ADDRESS(58,8,1,1,$S$1)","v":"'Geographic Diversification'!$H$58"},"=IF('Schedule IIIA'!AB28=\"TRUE\",G58,'Schedule III'!F28)",0]
[null,null,null,null,null,null,null,null,null,null,null,null,null,null,null,null,null,null,{"$f":"ADDRESS(58,9,1,1,$S$1)","v":"'Geographic Diversification'!$I$58"},"='Schedule IIIA'!E28",0]
[null,null,null,null,null,null,null,null,null,null,null,null,null,null,null,null,null,null,{"$f":"ADDRESS(58,10,1,1,$S$1)","v":"'Geographic Diversification'!$J$58"},"='Schedule IIIA'!F28",0]
[null,null,null,null,null,null,null,null,null,null,null,null,null,null,null,null,null,null,{"$f":"ADDRESS(58,11,1,1,$S$1)","v":"'Geographic Diversification'!$K$58"},"='Schedule IIIA'!G28",0]
[null,null,null,null,null,null,null,null,null,null,null,null,null,null,null,null,null,null,{"$f":"ADDRESS(58,12,1,1,$S$1)","v":"'Geographic Diversification'!$L$58"},"='Schedule IIIA'!H28",0]
[null,null,null,null,null,null,null,null,null,null,null,null,null,null,null,null,null,null,{"$f":"ADDRESS(58,13,1,1,$S$1)","v":"'Geographic Diversification'!$M$58"},"='Schedule IIIA'!I28",0]
[null,null,null,null,null,null,null,null,null,null,null,null,null,null,null,null,null,null,{"$f":"ADDRESS(58,14,1,1,$S$1)","v":"'Geographic Diversification'!$N$58"},"='Schedule IIIA'!J28",0]
[null,null,null,null,null,null,null,null,null,null,null,null,null,null,null,null,null,null,{"$f":"ADDRESS(58,15,1,1,$S$1)","v":"'Geographic Diversification'!$O$58"},"='Schedule IIIA'!K28",0]
[null,null,null,null,null,null,null,null,null,null,null,null,null,null,null,null,null,null,{"$f":"ADDRESS(58,16,1,1,$S$1)","v":"'Geographic Diversification'!$P$58"},"='Schedule IIIA'!L28",0]
[null,null,null,null,null,null,null,null,null,null,null,null,null,null,null,null,null,null,{"$f":"ADDRESS(58,17,1,1,$S$1)","v":"'Geographic Diversification'!$Q$58"},"='Schedule IIIA'!M28",0]
[null,null,null,null,null,null,null,null,null,null,null,null,null,null,null,null,null,null,{"$f":"ADDRESS(58,18,1,1,$S$1)","v":"'Geographic Diversification'!$R$58"},"='Schedule IIIA'!N28",0]
[null,null,null,null,null,null,null,null,null,null,null,null,null,null,null,null,null,null,{"$f":"ADDRESS(58,19,1,1,$S$1)","v":"'Geographic Diversification'!$S$58"},"='Schedule IIIA'!O28",0]
[null,null,null,null,null,null,null,null,null,null,null,null,null,null,null,null,null,null,{"$f":"ADDRESS(58,20,1,1,$S$1)","v":"'Geographic Diversification'!$T$58"},"='Schedule IIIA'!P28",0]
[null,null,null,null,null,null,null,null,null,null,null,null,null,null,null,null,null,null,{"$f":"ADDRESS(58,21,1,1,$S$1)","v":"'Geographic Diversification'!$U$58"},"='Schedule IIIA'!Q28",0]
[null,null,null,null,null,null,null,null,null,null,null,null,null,null,null,null,null,null,{"$f":"ADDRESS(58,22,1,1,$S$1)","v":"'Geographic Diversification'!$V$58"},"='Schedule IIIA'!R28",0]
[null,null,null,null,null,null,null,null,null,null,null,null,null,null,null,null,null,null,{"$f":"ADDRESS(58,23,1,1,$S$1)","v":"'Geographic Diversification'!$W$58"},"='Schedule IIIA'!S28",0]
[null,null,null,null,null,null,null,null,null,null,null,null,null,null,null,null,null,null,{"$f":"ADDRESS(58,24,1,1,$S$1)","v":"'Geographic Diversification'!$X$58"},"='Schedule IIIA'!T28",0]
[null,null,null,null,null,null,null,null,null,null,null,null,null,null,null,null,null,null,{"$f":"ADDRESS(58,25,1,1,$S$1)","v":"'Geographic Diversification'!$Y$58"},"='Schedule IIIA'!U28",0]
[null,null,null,null,null,null,null,null,null,null,null,null,null,null,null,null,null,null,{"$f":"ADDRESS(58,26,1,1,$S$1)","v":"'Geographic Diversification'!$Z$58"},"='Schedule IIIA'!V28",0]
[null,null,null,null,null,null,null,null,null,null,null,null,null,null,null,null,null,null,{"$f":"ADDRESS(59,4,1,1,$S$1)","v":"'Geographic Diversification'!$D$59"},"=SUM(I59:Z59)",0]
[null,null,null,null,null,null,null,null,null,null,null,null,null,null,null,null,null,null,{"$f":"ADDRESS(59,5,1,1,$S$1)","v":"'Geographic Diversification'!$E$59"},"=SUMSQ(I59:Z59)",0]
[null,null,null,null,null,null,null,null,null,null,null,null,null,null,null,null,null,null,{"$f":"ADDRESS(59,6,1,1,$S$1)","v":"'Geographic Diversification'!$F$59"},"=(IF(D59>0,E59/D59^2,1))",0]
[null,null,null,null,null,null,null,null,null,null,null,null,null,null,null,null,null,null,{"$f":"ADDRESS(59,7,1,1,$S$1)","v":"'Geographic Diversification'!$G$59"},"=D59*(0.75+0.25*F59)",0]
[null,null,null,null,null,null,null,null,null,null,null,null,null,null,null,null,null,null,{"$f":"ADDRESS(59,8,1,1,$S$1)","v":"'Geographic Diversification'!$H$59"},"=IF('Schedule IIIA'!AB29=\"TRUE\",G59,'Schedule III'!F29)",0]
[null,null,null,null,null,null,null,null,null,null,null,null,null,null,null,null,null,null,{"$f":"ADDRESS(59,9,1,1,$S$1)","v":"'Geographic Diversification'!$I$59"},"='Schedule IIIA'!E29",0]
[null,null,null,null,null,null,null,null,null,null,null,null,null,null,null,null,null,null,{"$f":"ADDRESS(59,10,1,1,$S$1)","v":"'Geographic Diversification'!$J$59"},"='Schedule IIIA'!F29",0]
[null,null,null,null,null,null,null,null,null,null,null,null,null,null,null,null,null,null,{"$f":"ADDRESS(59,11,1,1,$S$1)","v":"'Geographic Diversification'!$K$59"},"='Schedule IIIA'!G29",0]
[null,null,null,null,null,null,null,null,null,null,null,null,null,null,null,null,null,null,{"$f":"ADDRESS(59,12,1,1,$S$1)","v":"'Geographic Diversification'!$L$59"},"='Schedule IIIA'!H29",0]
[null,null,null,null,null,null,null,null,null,null,null,null,null,null,null,null,null,null,{"$f":"ADDRESS(59,13,1,1,$S$1)","v":"'Geographic Diversification'!$M$59"},"='Schedule IIIA'!I29",0]
[null,null,null,null,null,null,null,null,null,null,null,null,null,null,null,null,null,null,{"$f":"ADDRESS(59,14,1,1,$S$1)","v":"'Geographic Diversification'!$N$59"},"='Schedule IIIA'!J29",{"$f":"IF(_xlfn.FORMULATEXT(INDIRECT(S1028))=T1028,0,1)","v":0}]
[null,null,null,null,null,null,null,null,null,null,null,null,null,null,null,null,null,null,{"$f":"ADDRESS(59,15,1,1,$S$1)","v":"'Geographic Diversification'!$O$59"},"='Schedule IIIA'!K29",0]
[null,null,null,null,null,null,null,null,null,null,null,null,null,null,null,null,null,null,{"$f":"ADDRESS(59,16,1,1,$S$1)","v":"'Geographic Diversification'!$P$59"},"='Schedule IIIA'!L29",0]
[null,null,null,null,null,null,null,null,null,null,null,null,null,null,null,null,null,null,{"$f":"ADDRESS(59,17,1,1,$S$1)","v":"'Geographic Diversification'!$Q$59"},"='Schedule IIIA'!M29",0]
[null,null,null,null,null,null,null,null,null,null,null,null,null,null,null,null,null,null,{"$f":"ADDRESS(59,18,1,1,$S$1)","v":"'Geographic Diversification'!$R$59"},"='Schedule IIIA'!N29",0]
[null,null,null,null,null,null,null,null,null,null,null,null,null,null,null,null,null,null,{"$f":"ADDRESS(59,19,1,1,$S$1)","v":"'Geographic Diversification'!$S$59"},"='Schedule IIIA'!O29",0]
[null,null,null,null,null,null,null,null,null,null,null,null,null,null,null,null,null,null,{"$f":"ADDRESS(59,20,1,1,$S$1)","v":"'Geographic Diversification'!$T$59"},"='Schedule IIIA'!P29",0]
[null,null,null,null,null,null,null,null,null,null,null,null,null,null,null,null,null,null,{"$f":"ADDRESS(59,21,1,1,$S$1)","v":"'Geographic Diversification'!$U$59"},"='Schedule IIIA'!Q29",0]
[null,null,null,null,null,null,null,null,null,null,null,null,null,null,null,null,null,null,{"$f":"ADDRESS(59,22,1,1,$S$1)","v":"'Geographic Diversification'!$V$59"},"='Schedule IIIA'!R29",0]
[null,null,null,null,null,null,null,null,null,null,null,null,null,null,null,null,null,null,{"$f":"ADDRESS(59,23,1,1,$S$1)","v":"'Geographic Diversification'!$W$59"},"='Schedule IIIA'!S29",0]
[null,null,null,null,null,null,null,null,null,null,null,null,null,null,null,null,null,null,{"$f":"ADDRESS(59,24,1,1,$S$1)","v":"'Geographic Diversification'!$X$59"},"='Schedule IIIA'!T29",0]
[null,null,null,null,null,null,null,null,null,null,null,null,null,null,null,null,null,null,{"$f":"ADDRESS(59,25,1,1,$S$1)","v":"'Geographic Diversification'!$Y$59"},"='Schedule IIIA'!U29",0]
[null,null,null,null,null,null,null,null,null,null,null,null,null,null,null,null,null,null,{"$f":"ADDRESS(59,26,1,1,$S$1)","v":"'Geographic Diversification'!$Z$59"},"='Schedule IIIA'!V29",0]
[null,null,null,null,null,null,null,null,null,null,null,null,null,null,null,null,null,null,{"$f":"ADDRESS(60,4,1,1,$S$1)","v":"'Geographic Diversification'!$D$60"},"=SUM(I60:Z60)",0]
[null,null,null,null,null,null,null,null,null,null,null,null,null,null,null,null,null,null,{"$f":"ADDRESS(60,5,1,1,$S$1)","v":"'Geographic Diversification'!$E$60"},"=SUMSQ(I60:Z60)",0]
[null,null,null,null,null,null,null,null,null,null,null,null,null,null,null,null,null,null,{"$f":"ADDRESS(60,6,1,1,$S$1)","v":"'Geographic Diversification'!$F$60"},"=(IF(D60>0,E60/D60^2,1))",0]
[null,null,null,null,null,null,null,null,null,null,null,null,null,null,null,null,null,null,{"$f":"ADDRESS(60,7,1,1,$S$1)","v":"'Geographic Diversification'!$G$60"},"=D60*(0.75+0.25*F60)",0]
[null,null,null,null,null,null,null,null,null,null,null,null,null,null,null,null,null,null,{"$f":"ADDRESS(60,8,1,1,$S$1)","v":"'Geographic Diversification'!$H$60"},"=IF('Schedule IIIA'!AB30=\"TRUE\",G60,'Schedule III'!F30)",0]
[null,null,null,null,null,null,null,null,null,null,null,null,null,null,null,null,null,null,{"$f":"ADDRESS(60,9,1,1,$S$1)","v":"'Geographic Diversification'!$I$60"},"='Schedule IIIA'!E30",0]
[null,null,null,null,null,null,null,null,null,null,null,null,null,null,null,null,null,null,{"$f":"ADDRESS(60,10,1,1,$S$1)","v":"'Geographic Diversification'!$J$60"},"='Schedule IIIA'!F30",0]
[null,null,null,null,null,null,null,null,null,null,null,null,null,null,null,null,null,null,{"$f":"ADDRESS(60,11,1,1,$S$1)","v":"'Geographic Diversification'!$K$60"},"='Schedule IIIA'!G30",0]
[null,null,null,null,null,null,null,null,null,null,null,null,null,null,null,null,null,null,{"$f":"ADDRESS(60,12,1,1,$S$1)","v":"'Geographic Diversification'!$L$60"},"='Schedule IIIA'!H30",0]
[null,null,null,null,null,null,null,null,null,null,null,null,null,null,null,null,null,null,{"$f":"ADDRESS(60,13,1,1,$S$1)","v":"'Geographic Diversification'!$M$60"},"='Schedule IIIA'!I30",0]
[null,null,null,null,null,null,null,null,null,null,null,null,null,null,null,null,null,null,{"$f":"ADDRESS(60,14,1,1,$S$1)","v":"'Geographic Diversification'!$N$60"},"='Schedule IIIA'!J30",0]
[null,null,null,null,null,null,null,null,null,null,null,null,null,null,null,null,null,null,{"$f":"ADDRESS(60,15,1,1,$S$1)","v":"'Geographic Diversification'!$O$60"},"='Schedule IIIA'!K30",0]
[null,null,null,null,null,null,null,null,null,null,null,null,null,null,null,null,null,null,{"$f":"ADDRESS(60,16,1,1,$S$1)","v":"'Geographic Diversification'!$P$60"},"='Schedule IIIA'!L30",0]
[null,null,null,null,null,null,null,null,null,null,null,null,null,null,null,null,null,null,{"$f":"ADDRESS(60,17,1,1,$S$1)","v":"'Geographic Diversification'!$Q$60"},"='Schedule IIIA'!M30",0]
[null,null,null,null,null,null,null,null,null,null,null,null,null,null,null,null,null,null,{"$f":"ADDRESS(60,18,1,1,$S$1)","v":"'Geographic Diversification'!$R$60"},"='Schedule IIIA'!N30",0]
[null,null,null,null,null,null,null,null,null,null,null,null,null,null,null,null,null,null,{"$f":"ADDRESS(60,19,1,1,$S$1)","v":"'Geographic Diversification'!$S$60"},"='Schedule IIIA'!O30",0]
[null,null,null,null,null,null,null,null,null,null,null,null,null,null,null,null,null,null,{"$f":"ADDRESS(60,20,1,1,$S$1)","v":"'Geographic Diversification'!$T$60"},"='Schedule IIIA'!P30",0]
[null,null,null,null,null,null,null,null,null,null,null,null,null,null,null,null,null,null,{"$f":"ADDRESS(60,21,1,1,$S$1)","v":"'Geographic Diversification'!$U$60"},"='Schedule IIIA'!Q30",0]
[null,null,null,null,null,null,null,null,null,null,null,null,null,null,null,null,null,null,{"$f":"ADDRESS(60,22,1,1,$S$1)","v":"'Geographic Diversification'!$V$60"},"='Schedule IIIA'!R30",0]
[null,null,null,null,null,null,null,null,null,null,null,null,null,null,null,null,null,null,{"$f":"ADDRESS(60,23,1,1,$S$1)","v":"'Geographic Diversification'!$W$60"},"='Schedule IIIA'!S30",0]
[null,null,null,null,null,null,null,null,null,null,null,null,null,null,null,null,null,null,{"$f":"ADDRESS(60,24,1,1,$S$1)","v":"'Geographic Diversification'!$X$60"},"='Schedule IIIA'!T30",0]
[null,null,null,null,null,null,null,null,null,null,null,null,null,null,null,null,null,null,{"$f":"ADDRESS(60,25,1,1,$S$1)","v":"'Geographic Diversification'!$Y$60"},"='Schedule IIIA'!U30",0]
[null,null,null,null,null,null,null,null,null,null,null,null,null,null,null,null,null,null,{"$f":"ADDRESS(60,26,1,1,$S$1)","v":"'Geographic Diversification'!$Z$60"},"='Schedule IIIA'!V30",0]
[null,null,null,null,null,null,null,null,null,null,null,null,null,null,null,null,null,null,{"$f":"ADDRESS(61,4,1,1,$S$1)","v":"'Geographic Diversification'!$D$61"},"=SUM(I61:Z61)",0]
[null,null,null,null,null,null,null,null,null,null,null,null,null,null,null,null,null,null,{"$f":"ADDRESS(61,5,1,1,$S$1)","v":"'Geographic Diversification'!$E$61"},"=SUMSQ(I61:Z61)",0]
[null,null,null,null,null,null,null,null,null,null,null,null,null,null,null,null,null,null,{"$f":"ADDRESS(61,6,1,1,$S$1)","v":"'Geographic Diversification'!$F$61"},"=(IF(D61>0,E61/D61^2,1))",0]
[null,null,null,null,null,null,null,null,null,null,null,null,null,null,null,null,null,null,{"$f":"ADDRESS(61,7,1,1,$S$1)","v":"'Geographic Diversification'!$G$61"},"=D61*(0.75+0.25*F61)",0]
[null,null,null,null,null,null,null,null,null,null,null,null,null,null,null,null,null,null,{"$f":"ADDRESS(61,8,1,1,$S$1)","v":"'Geographic Diversification'!$H$61"},"=IF('Schedule IIIA'!AB31=\"TRUE\",G61,'Schedule III'!F31)",0]
[null,null,null,null,null,null,null,null,null,null,null,null,null,null,null,null,null,null,{"$f":"ADDRESS(61,9,1,1,$S$1)","v":"'Geographic Diversification'!$I$61"},"='Schedule IIIA'!E31",0]
[null,null,null,null,null,null,null,null,null,null,null,null,null,null,null,null,null,null,{"$f":"ADDRESS(61,10,1,1,$S$1)","v":"'Geographic Diversification'!$J$61"},"='Schedule IIIA'!F31",0]
[null,null,null,null,null,null,null,null,null,null,null,null,null,null,null,null,null,null,{"$f":"ADDRESS(61,11,1,1,$S$1)","v":"'Geographic Diversification'!$K$61"},"='Schedule IIIA'!G31",0]
[null,null,null,null,null,null,null,null,null,null,null,null,null,null,null,null,null,null,{"$f":"ADDRESS(61,12,1,1,$S$1)","v":"'Geographic Diversification'!$L$61"},"='Schedule IIIA'!H31",0]
[null,null,null,null,null,null,null,null,null,null,null,null,null,null,null,null,null,null,{"$f":"ADDRESS(61,13,1,1,$S$1)","v":"'Geographic Diversification'!$M$61"},"='Schedule IIIA'!I31",0]
[null,null,null,null,null,null,null,null,null,null,null,null,null,null,null,null,null,null,{"$f":"ADDRESS(61,14,1,1,$S$1)","v":"'Geographic Diversification'!$N$61"},"='Schedule IIIA'!J31",0]
[null,null,null,null,null,null,null,null,null,null,null,null,null,null,null,null,null,null,{"$f":"ADDRESS(61,15,1,1,$S$1)","v":"'Geographic Diversification'!$O$61"},"='Schedule IIIA'!K31",0]
[null,null,null,null,null,null,null,null,null,null,null,null,null,null,null,null,null,null,{"$f":"ADDRESS(61,16,1,1,$S$1)","v":"'Geographic Diversification'!$P$61"},"='Schedule IIIA'!L31",0]
[null,null,null,null,null,null,null,null,null,null,null,null,null,null,null,null,null,null,{"$f":"ADDRESS(61,17,1,1,$S$1)","v":"'Geographic Diversification'!$Q$61"},"='Schedule IIIA'!M31",0]
[null,null,null,null,null,null,null,null,null,null,null,null,null,null,null,null,null,null,{"$f":"ADDRESS(61,18,1,1,$S$1)","v":"'Geographic Diversification'!$R$61"},"='Schedule IIIA'!N31",0]
[null,null,null,null,null,null,null,null,null,null,null,null,null,null,null,null,null,null,{"$f":"ADDRESS(61,19,1,1,$S$1)","v":"'Geographic Diversification'!$S$61"},"='Schedule IIIA'!O31",0]
[null,null,null,null,null,null,null,null,null,null,null,null,null,null,null,null,null,null,{"$f":"ADDRESS(61,20,1,1,$S$1)","v":"'Geographic Diversification'!$T$61"},"='Schedule IIIA'!P31",0]
[null,null,null,null,null,null,null,null,null,null,null,null,null,null,null,null,null,null,{"$f":"ADDRESS(61,21,1,1,$S$1)","v":"'Geographic Diversification'!$U$61"},"='Schedule IIIA'!Q31",0]
[null,null,null,null,null,null,null,null,null,null,null,null,null,null,null,null,null,null,{"$f":"ADDRESS(61,22,1,1,$S$1)","v":"'Geographic Diversification'!$V$61"},"='Schedule IIIA'!R31",0]
[null,null,null,null,null,null,null,null,null,null,null,null,null,null,null,null,null,null,{"$f":"ADDRESS(61,23,1,1,$S$1)","v":"'Geographic Diversification'!$W$61"},"='Schedule IIIA'!S31",0]
[null,null,null,null,null,null,null,null,null,null,null,null,null,null,null,null,null,null,{"$f":"ADDRESS(61,24,1,1,$S$1)","v":"'Geographic Diversification'!$X$61"},"='Schedule IIIA'!T31",0]
[null,null,null,null,null,null,null,null,null,null,null,null,null,null,null,null,null,null,{"$f":"ADDRESS(61,25,1,1,$S$1)","v":"'Geographic Diversification'!$Y$61"},"='Schedule IIIA'!U31",0]
[null,null,null,null,null,null,null,null,null,null,null,null,null,null,null,null,null,null,{"$f":"ADDRESS(61,26,1,1,$S$1)","v":"'Geographic Diversification'!$Z$61"},"='Schedule IIIA'!V31",0]
[null,null,null,null,null,null,null,null,null,null,null,null,null,null,null,null,null,null,{"$f":"ADDRESS(62,4,1,1,$S$1)","v":"'Geographic Diversification'!$D$62"},"=SUM(I62:Z62)",0]
[null,null,null,null,null,null,null,null,null,null,null,null,null,null,null,null,null,null,{"$f":"ADDRESS(62,5,1,1,$S$1)","v":"'Geographic Diversification'!$E$62"},"=SUMSQ(I62:Z62)",0]
[null,null,null,null,null,null,null,null,null,null,null,null,null,null,null,null,null,null,{"$f":"ADDRESS(62,6,1,1,$S$1)","v":"'Geographic Diversification'!$F$62"},"=(IF(D62>0,E62/D62^2,1))",0]
[null,null,null,null,null,null,null,null,null,null,null,null,null,null,null,null,null,null,{"$f":"ADDRESS(62,7,1,1,$S$1)","v":"'Geographic Diversification'!$G$62"},"=D62*(0.75+0.25*F62)",0]
[null,null,null,null,null,null,null,null,null,null,null,null,null,null,null,null,null,null,{"$f":"ADDRESS(62,8,1,1,$S$1)","v":"'Geographic Diversification'!$H$62"},"=IF('Schedule IIIA'!AB32=\"TRUE\",G62,'Schedule III'!F32)",0]
[null,null,null,null,null,null,null,null,null,null,null,null,null,null,null,null,null,null,{"$f":"ADDRESS(62,9,1,1,$S$1)","v":"'Geographic Diversification'!$I$62"},"='Schedule IIIA'!E32",{"$f":"IF(_xlfn.FORMULATEXT(INDIRECT(S1092))=T1092,0,1)","v":0}]
[null,null,null,null,null,null,null,null,null,null,null,null,null,null,null,null,null,null,{"$f":"ADDRESS(62,10,1,1,$S$1)","v":"'Geographic Diversification'!$J$62"},"='Schedule IIIA'!F32",0]
[null,null,null,null,null,null,null,null,null,null,null,null,null,null,null,null,null,null,{"$f":"ADDRESS(62,11,1,1,$S$1)","v":"'Geographic Diversification'!$K$62"},"='Schedule IIIA'!G32",0]
[null,null,null,null,null,null,null,null,null,null,null,null,null,null,null,null,null,null,{"$f":"ADDRESS(62,12,1,1,$S$1)","v":"'Geographic Diversification'!$L$62"},"='Schedule IIIA'!H32",0]
[null,null,null,null,null,null,null,null,null,null,null,null,null,null,null,null,null,null,{"$f":"ADDRESS(62,13,1,1,$S$1)","v":"'Geographic Diversification'!$M$62"},"='Schedule IIIA'!I32",0]
[null,null,null,null,null,null,null,null,null,null,null,null,null,null,null,null,null,null,{"$f":"ADDRESS(62,14,1,1,$S$1)","v":"'Geographic Diversification'!$N$62"},"='Schedule IIIA'!J32",0]
[null,null,null,null,null,null,null,null,null,null,null,null,null,null,null,null,null,null,{"$f":"ADDRESS(62,15,1,1,$S$1)","v":"'Geographic Diversification'!$O$62"},"='Schedule IIIA'!K32",0]
[null,null,null,null,null,null,null,null,null,null,null,null,null,null,null,null,null,null,{"$f":"ADDRESS(62,16,1,1,$S$1)","v":"'Geographic Diversification'!$P$62"},"='Schedule IIIA'!L32",0]
[null,null,null,null,null,null,null,null,null,null,null,null,null,null,null,null,null,null,{"$f":"ADDRESS(62,17,1,1,$S$1)","v":"'Geographic Diversification'!$Q$62"},"='Schedule IIIA'!M32",0]
[null,null,null,null,null,null,null,null,null,null,null,null,null,null,null,null,null,null,{"$f":"ADDRESS(62,18,1,1,$S$1)","v":"'Geographic Diversification'!$R$62"},"='Schedule IIIA'!N32",0]
[null,null,null,null,null,null,null,null,null,null,null,null,null,null,null,null,null,null,{"$f":"ADDRESS(62,19,1,1,$S$1)","v":"'Geographic Diversification'!$S$62"},"='Schedule IIIA'!O32",0]
[null,null,null,null,null,null,null,null,null,null,null,null,null,null,null,null,null,null,{"$f":"ADDRESS(62,20,1,1,$S$1)","v":"'Geographic Diversification'!$T$62"},"='Schedule IIIA'!P32",0]
[null,null,null,null,null,null,null,null,null,null,null,null,null,null,null,null,null,null,{"$f":"ADDRESS(62,21,1,1,$S$1)","v":"'Geographic Diversification'!$U$62"},"='Schedule IIIA'!Q32",0]
[null,null,null,null,null,null,null,null,null,null,null,null,null,null,null,null,null,null,{"$f":"ADDRESS(62,22,1,1,$S$1)","v":"'Geographic Diversification'!$V$62"},"='Schedule IIIA'!R32",0]
[null,null,null,null,null,null,null,null,null,null,null,null,null,null,null,null,null,null,{"$f":"ADDRESS(62,23,1,1,$S$1)","v":"'Geographic Diversification'!$W$62"},"='Schedule IIIA'!S32",0]
[null,null,null,null,null,null,null,null,null,null,null,null,null,null,null,null,null,null,{"$f":"ADDRESS(62,24,1,1,$S$1)","v":"'Geographic Diversification'!$X$62"},"='Schedule IIIA'!T32",0]
[null,null,null,null,null,null,null,null,null,null,null,null,null,null,null,null,null,null,{"$f":"ADDRESS(62,25,1,1,$S$1)","v":"'Geographic Diversification'!$Y$62"},"='Schedule IIIA'!U32",0]
[null,null,null,null,null,null,null,null,null,null,null,null,null,null,null,null,null,null,{"$f":"ADDRESS(62,26,1,1,$S$1)","v":"'Geographic Diversification'!$Z$62"},"='Schedule IIIA'!V32",0]
[null,null,null,null,null,null,null,null,null,null,null,null,null,null,null,null,null,null,{"$f":"ADDRESS(63,4,1,1,$S$1)","v":"'Geographic Diversification'!$D$63"},"=SUM(I63:Z63)",0]
[null,null,null,null,null,null,null,null,null,null,null,null,null,null,null,null,null,null,{"$f":"ADDRESS(63,5,1,1,$S$1)","v":"'Geographic Diversification'!$E$63"},"=SUMSQ(I63:Z63)",0]
[null,null,null,null,null,null,null,null,null,null,null,null,null,null,null,null,null,null,{"$f":"ADDRESS(63,6,1,1,$S$1)","v":"'Geographic Diversification'!$F$63"},"=(IF(D63>0,E63/D63^2,1))",0]
[null,null,null,null,null,null,null,null,null,null,null,null,null,null,null,null,null,null,{"$f":"ADDRESS(63,7,1,1,$S$1)","v":"'Geographic Diversification'!$G$63"},"=D63*(0.75+0.25*F63)",0]
[null,null,null,null,null,null,null,null,null,null,null,null,null,null,null,null,null,null,{"$f":"ADDRESS(63,8,1,1,$S$1)","v":"'Geographic Diversification'!$H$63"},"=IF('Schedule IIIA'!AB33=\"TRUE\",G63,'Schedule III'!F33)",0]
[null,null,null,null,null,null,null,null,null,null,null,null,null,null,null,null,null,null,{"$f":"ADDRESS(63,9,1,1,$S$1)","v":"'Geographic Diversification'!$I$63"},"='Schedule IIIA'!E33",0]
[null,null,null,null,null,null,null,null,null,null,null,null,null,null,null,null,null,null,{"$f":"ADDRESS(63,10,1,1,$S$1)","v":"'Geographic Diversification'!$J$63"},"='Schedule IIIA'!F33",0]
[null,null,null,null,null,null,null,null,null,null,null,null,null,null,null,null,null,null,{"$f":"ADDRESS(63,11,1,1,$S$1)","v":"'Geographic Diversification'!$K$63"},"='Schedule IIIA'!G33",0]
[null,null,null,null,null,null,null,null,null,null,null,null,null,null,null,null,null,null,{"$f":"ADDRESS(63,12,1,1,$S$1)","v":"'Geographic Diversification'!$L$63"},"='Schedule IIIA'!H33",0]
[null,null,null,null,null,null,null,null,null,null,null,null,null,null,null,null,null,null,{"$f":"ADDRESS(63,13,1,1,$S$1)","v":"'Geographic Diversification'!$M$63"},"='Schedule IIIA'!I33",0]
[null,null,null,null,null,null,null,null,null,null,null,null,null,null,null,null,null,null,{"$f":"ADDRESS(63,14,1,1,$S$1)","v":"'Geographic Diversification'!$N$63"},"='Schedule IIIA'!J33",0]
[null,null,null,null,null,null,null,null,null,null,null,null,null,null,null,null,null,null,{"$f":"ADDRESS(63,15,1,1,$S$1)","v":"'Geographic Diversification'!$O$63"},"='Schedule IIIA'!K33",0]
[null,null,null,null,null,null,null,null,null,null,null,null,null,null,null,null,null,null,{"$f":"ADDRESS(63,16,1,1,$S$1)","v":"'Geographic Diversification'!$P$63"},"='Schedule IIIA'!L33",0]
[null,null,null,null,null,null,null,null,null,null,null,null,null,null,null,null,null,null,{"$f":"ADDRESS(63,17,1,1,$S$1)","v":"'Geographic Diversification'!$Q$63"},"='Schedule IIIA'!M33",0]
[null,null,null,null,null,null,null,null,null,null,null,null,null,null,null,null,null,null,{"$f":"ADDRESS(63,18,1,1,$S$1)","v":"'Geographic Diversification'!$R$63"},"='Schedule IIIA'!N33",0]
[null,null,null,null,null,null,null,null,null,null,null,null,null,null,null,null,null,null,{"$f":"ADDRESS(63,19,1,1,$S$1)","v":"'Geographic Diversification'!$S$63"},"='Schedule IIIA'!O33",0]
[null,null,null,null,null,null,null,null,null,null,null,null,null,null,null,null,null,null,{"$f":"ADDRESS(63,20,1,1,$S$1)","v":"'Geographic Diversification'!$T$63"},"='Schedule IIIA'!P33",0]
[null,null,null,null,null,null,null,null,null,null,null,null,null,null,null,null,null,null,{"$f":"ADDRESS(63,21,1,1,$S$1)","v":"'Geographic Diversification'!$U$63"},"='Schedule IIIA'!Q33",0]
[null,null,null,null,null,null,null,null,null,null,null,null,null,null,null,null,null,null,{"$f":"ADDRESS(63,22,1,1,$S$1)","v":"'Geographic Diversification'!$V$63"},"='Schedule IIIA'!R33",0]
[null,null,null,null,null,null,null,null,null,null,null,null,null,null,null,null,null,null,{"$f":"ADDRESS(63,23,1,1,$S$1)","v":"'Geographic Diversification'!$W$63"},"='Schedule IIIA'!S33",0]
[null,null,null,null,null,null,null,null,null,null,null,null,null,null,null,null,null,null,{"$f":"ADDRESS(63,24,1,1,$S$1)","v":"'Geographic Diversification'!$X$63"},"='Schedule IIIA'!T33",0]
[null,null,null,null,null,null,null,null,null,null,null,null,null,null,null,null,null,null,{"$f":"ADDRESS(63,25,1,1,$S$1)","v":"'Geographic Diversification'!$Y$63"},"='Schedule IIIA'!U33",0]
[null,null,null,null,null,null,null,null,null,null,null,null,null,null,null,null,null,null,{"$f":"ADDRESS(63,26,1,1,$S$1)","v":"'Geographic Diversification'!$Z$63"},"='Schedule IIIA'!V33",0]
[null,null,null,null,null,null,null,null,null,null,null,null,null,null,null,null,null,null,{"$f":"ADDRESS(65,4,1,1,$S$1)","v":"'Geographic Diversification'!$D$65"},"=SUM(D40:D63)",0]
[null,null,null,null,null,null,null,null,null,null,null,null,null,null,null,null,null,null,{"$f":"ADDRESS(65,5,1,1,$S$1)","v":"'Geographic Diversification'!$E$65"},"=SUM(E40:E63)",0]
[null,null,null,null,null,null,null,null,null,null,null,null,null,null,null,null,null,null,{"$f":"ADDRESS(65,7,1,1,$S$1)","v":"'Geographic Diversification'!$G$65"},"=SUM(G40:G63)",0]
[null,null,null,null,null,null,null,null,null,null,null,null,null,null,null,null,null,null,{"$f":"ADDRESS(65,8,1,1,$S$1)","v":"'Geographic Diversification'!$H$65"},"=SUM(H40:H63)",0]
[null,null,null,null,null,null,null,null,null,null,null,null,null,null,null,null,null,null,{"$f":"ADDRESS(65,9,1,1,$S$1)","v":"'Geographic Diversification'!$I$65"},"=SUM(I40:I63)",0]
[null,null,null,null,null,null,null,null,null,null,null,null,null,null,null,null,null,null,{"$f":"ADDRESS(65,10,1,1,$S$1)","v":"'Geographic Diversification'!$J$65"},"=SUM(J40:J63)",0]
[null,null,null,null,null,null,null,null,null,null,null,null,null,null,null,null,null,null,{"$f":"ADDRESS(65,11,1,1,$S$1)","v":"'Geographic Diversification'!$K$65"},"=SUM(K40:K63)",0]
[null,null,null,null,null,null,null,null,null,null,null,null,null,null,null,null,null,null,{"$f":"ADDRESS(65,12,1,1,$S$1)","v":"'Geographic Diversification'!$L$65"},"=SUM(L40:L63)",0]
[null,null,null,null,null,null,null,null,null,null,null,null,null,null,null,null,null,null,{"$f":"ADDRESS(65,13,1,1,$S$1)","v":"'Geographic Diversification'!$M$65"},"=SUM(M40:M63)",0]
[null,null,null,null,null,null,null,null,null,null,null,null,null,null,null,null,null,null,{"$f":"ADDRESS(65,14,1,1,$S$1)","v":"'Geographic Diversification'!$N$65"},"=SUM(N40:N63)",0]
[null,null,null,null,null,null,null,null,null,null,null,null,null,null,null,null,null,null,{"$f":"ADDRESS(65,15,1,1,$S$1)","v":"'Geographic Diversification'!$O$65"},"=SUM(O40:O63)",0]
[null,null,null,null,null,null,null,null,null,null,null,null,null,null,null,null,null,null,{"$f":"ADDRESS(65,16,1,1,$S$1)","v":"'Geographic Diversification'!$P$65"},"=SUM(P40:P63)",0]
[null,null,null,null,null,null,null,null,null,null,null,null,null,null,null,null,null,null,{"$f":"ADDRESS(65,17,1,1,$S$1)","v":"'Geographic Diversification'!$Q$65"},"=SUM(Q40:Q63)",0]
[null,null,null,null,null,null,null,null,null,null,null,null,null,null,null,null,null,null,{"$f":"ADDRESS(65,18,1,1,$S$1)","v":"'Geographic Diversification'!$R$65"},"=SUM(R40:R63)",0]
[null,null,null,null,null,null,null,null,null,null,null,null,null,null,null,null,null,null,{"$f":"ADDRESS(65,19,1,1,$S$1)","v":"'Geographic Diversification'!$S$65"},"=SUM(S40:S63)",0]
[null,null,null,null,null,null,null,null,null,null,null,null,null,null,null,null,null,null,{"$f":"ADDRESS(65,20,1,1,$S$1)","v":"'Geographic Diversification'!$T$65"},"=SUM(T40:T63)",0]
[null,null,null,null,null,null,null,null,null,null,null,null,null,null,null,null,null,null,{"$f":"ADDRESS(65,21,1,1,$S$1)","v":"'Geographic Diversification'!$U$65"},"=SUM(U40:U63)",0]
[null,null,null,null,null,null,null,null,null,null,null,null,null,null,null,null,null,null,{"$f":"ADDRESS(65,22,1,1,$S$1)","v":"'Geographic Diversification'!$V$65"},"=SUM(V40:V63)",0]
[null,null,null,null,null,null,null,null,null,null,null,null,null,null,null,null,null,null,{"$f":"ADDRESS(65,23,1,1,$S$1)","v":"'Geographic Diversification'!$W$65"},"=SUM(W40:W63)",0]
[null,null,null,null,null,null,null,null,null,null,null,null,null,null,null,null,null,null,{"$f":"ADDRESS(65,24,1,1,$S$1)","v":"'Geographic Diversification'!$X$65"},"=SUM(X40:X63)",0]
[null,null,null,null,null,null,null,null,null,null,null,null,null,null,null,null,null,null,{"$f":"ADDRESS(65,25,1,1,$S$1)","v":"'Geographic Diversification'!$Y$65"},"=SUM(Y40:Y63)",0]
[null,null,null,null,null,null,null,null,null,null,null,null,null,null,null,null,null,null,{"$f":"ADDRESS(65,26,1,1,$S$1)","v":"'Geographic Diversification'!$Z$65"},"=SUM(Z40:Z63)",0]
[null,null,null,null,null,null,null,null,null,null,null,null,null,null,null,null,null,null,null,null,-1155]